{"text_format":"1","workbook":"xlsx","n_sheets":78,"sheets":["ACS_Notes","StartInstruction","ACS_Table_B08303","PopulationCharacteristics","SchoolEnrolEduAttain","HousingCharacteristics","CntyDataLink","CntyQuery","BuildingPermitsSince2000","EmploymentAndWages","EmpVsHUxCounty","HHIncome-10YearComparison","HHIncomeByAge","HHIncomeByTenure","ACS_Source_Table_List","Updates","OwnerHousingCost","OwnerHousingCostPrior5Year","OwnerHousingCostPrior10Year","ACS_Table_B25075_&_B25077","ACS_Table_B25088","ACS_Table_B25091","ACS_Table_B25106","SData_B08303Comuuting","ACS_Table_B01001","ACS_Table_B01002","ACS_Tbl_B11001_B11002_B25010","ACS_Table_B19001","ACS_Table_B19037","DisabilityByAge","DisabilityByAgePrior5YearEst","DisabilityByAgePrior10YearEst","ACS_Table_B18101","ACS_Table_B18102","ACS_Table_B18103","ACS_Table_B18104","ACS_Table_B18105","ACS_Table_B18106","ACS_Table_B18107","ACS_Table_C18108","ACS_TableB19201_ACS_Tbl_B19202","ACS_Table_B19049","ACS_Table_B25118","ACS_Table_B25119","ACS_Table_B25001","ACS_Table_B25003","ACS_Table_B25004","ACS_Table_B25008","ACS_Table_B25024","ACS_Table_B25032","ACS_Table_B25034","ACS_Table_B25041","PovertyCharacteristics","ACS_Table_ B17001","ACS_Table_B17010","ACS_Table_B17017","ACS_Table_B03002","RentalHousingCost","RentalHousingCost-Prior5Yr","RentalHousingCost-Prior10Yr","ACS_Table_B25063_&_B25064","ACS_Table_B25070","ACS_Table_B25074","PlaceOfBirthAndPriorRes","ACS_Table_B05002","ACS_Table_B07003","ACS_Table_B14001","ACS_Table_B15002","ACS_TableB19101_ACS_Tbl_B19113","PopComparison","HousingComparison","Housing_EmploymentComparison","DropDownList","CntyQryCensus","CntyDataLinkPrior5YearEstimates","CntyDataLinkPrior10YearEstimate","StatisticallySignificantCalcs","SmallTownEmploymentandWages"],"not_rendered":{"charts":241,"images":169,"macros":1,"external_links":0,"defined_names":73,"comments":0,"pivot_tables":0},"unopened":[],"bounds":{"document_bytes":16777216,"sheet_cells":100000,"rows_first":2000,"rows_last":500,"rows_between":2000,"halvings":0,"cell_chars":16384,"cell_head_chars":4096},"cells_cut":0,"cells_raw":0,"read":"whole","date_system":"1900"}

{"sheet":"ACS_Notes","index":0,"n_rows":28,"n_cols":1,"rows_kept":28,"cut":false,"hidden":true,"merged":[[10,0,12,14],[14,0,14,14],[18,0,19,14],[3,0,5,14],[7,0,8,14],[25,0,25,14],[20,0,21,14],[22,0,22,14],[23,0,23,14],[24,0,24,14],[31,60,31,74],[31,75,31,89],[31,90,31,104],[31,105,31,119],[29,0,29,14],[31,15,31,29],[31,30,31,44],[31,45,31,59],[31,120,31,134],[31,135,31,149],[31,150,31,164],[31,165,31,179],[31,240,31,254],[31,180,31,194],[31,195,31,209],[31,210,31,224],[31,225,31,239]]}
["NOTES:"]
[]
[]
["Data are based on a sample and are subject to sampling variability. The degree of uncertainty for an estimate arising from sampling variability is represented through the use of a margin of error. The value shown here is the 90 percent margin of error. The margin of error can be interpreted roughly as providing a 90 percent probability that the interval defined by the estimate minus the margin of error and the estimate plus the margin of error (the lower and upper confidence bounds) contains the true value. In addition to sampling variability, the ACS estimates are subject to nonsampling error (for a discussion of nonsampling variability, see Accuracy of the Data). The effect of nonsampling error is not represented in these tables."]
[]
[]
[]
["In addition to sampling variability, the ACS estimates are subject to nonsampling error (for a discussion of nonsampling variability, see Accuracy of the Data. The link is located at the end of this worksheet.).  The effect of nonsampling error is not represented in these tables."]
[]
[]
["While the 2005-2009 American Community Survey (ACS) data generally reflect the November 2008 Office of Management and Budget (OMB) definitions of metropolitan and micropolitan statistical areas; in certain instances the names, codes, and boundaries of the principal cities shown in ACS tables may differ from the OMB definitions due to differences in the effective dates of the geographic entities."]
[]
[]
[]
["Estimates of urban and rural population, housing units, and characteristics reflect boundaries of urban areas defined based on Census 2000 data.  Boundaries for urban areas have not been updated since Census 2000.  As a result, data for urban and rural areas from the ACS do not necessarily reflect the results of ongoing urbanization."]
[]
["Explanation of Symbols:"]
[]
["1. An '**' entry in the margin of error column indicates that either no sample observations or too few sample observations were available to compute a standard error and thus the margin of error. A statistical test is not appropriate."]
[]
["2. An '-' entry in the estimate column indicates that either no sample observations or too few sample observations were available to compute an estimate, or a ratio of medians cannot be calculated because one or both of the median estimates falls in the lowest interval or upper interval of an open-ended distribution."]
[]
["3. An '-' following a median estimate means the median falls in the lowest interval of an open-ended distribution."]
["4. An '+' following a median estimate means the median falls in the upper interval of an open-ended distribution."]
["5. An '***' entry in the margin of error column indicates that the median falls in the lowest interval or upper interval of an open-ended distribution. A statistical test is not appropriate."]
["6. An '*****' entry in the margin of error column indicates that the estimate is controlled. A statistical test for sampling variability is not appropriate."]
[]
["Accuracy of Data "]

{"sheet":"StartInstruction","index":1,"n_rows":33,"n_cols":16,"rows_kept":33,"cut":false,"hidden":false,"merged":[[26,1,29,3],[30,15,32,18]]}
["Demographic Profiles for Municipalities in Carroll County"]
[]
["To view or print a Demographic Profile follow the steps below"]
[]
[]
["Step 1. ",null,"Select the municipality you wish to view"]
[null,null,"from the drop down box below. "]
[]
[]
[]
[]
["Step 2. ",null,"Click one of the profile topic buttons below to review or print"]
[null,null,"the information for the selected geography."]
[null,null,"Don't forget to adjust the axis on charts as necessary. "]
[]
[]
[]
[]
[]
[]
[]
[]
[]
[]
[]
[]
[]
[null,null,null,null,null,null,null,null,null,null,null,null,null,"Updated:",null,"2024-07-18"]
[]
[]
[null,null,null,null,null,null,null,null,null,null,null,null,null,"Next Update:",null,"Spring 2024 Annual Employment Date"]
[]
[null,null,null,null,null,null,null,null,null,null," "]

{"sheet":"ACS_Table_B08303","index":2,"n_rows":51,"n_cols":40,"rows_kept":51,"cut":false,"hidden":true,"merged":[]}
[null,"B08303: TRAVEL TIME TO WORK"]
[null,"Universe: Workers 16 years and over who did not work at home"]
[null,"Data Set: 2014-2018 American Community Survey 5-Year Estimates"]
[]
[null,null,"Albany",null,"Bartlett",null,"Brookfield",null,"Chatham",null,"Conway",null,"Eaton",null,"Effingham",null,"Freedom",null,"Hale's location",null,"Hart's Location",null,"Jackson",null,"Madison",null,"Moultonborough",null,"Ossipee",null,"Sandwich",null,"Tamworth",null,"Tuftonboro",null,"Wakefield",null,"Wolfeboro"]
[null,null,"Estimates","Margin Of Error","Estimates","Margin Of Error","Estimates","Margin Of Error","Estimates","Margin Of Error","Estimates","Margin Of Error","Estimates","Margin Of Error","Estimates","Margin Of Error","Estimates","Margin Of Error","Estimates","Margin Of Error","Estimates","Margin Of Error","Estimates","Margin Of Error","Estimates","Margin Of Error","Estimates","Margin Of Error","Estimates","Margin Of Error","Estimates","Margin Of Error","Estimates","Margin Of Error","Estimates","Margin Of Error","Estimates","Margin Of Error","Estimates","Margin Of Error"]
[null,"Population Older than 16 not working at hom",288,63,1256,211,339,74,167,64,4817,421,135,46,672,137,522,104,33,17,38,26,466,136,1192,132,1692,190,1715,258,557,117,1553,208,858,136,2401,303,2626,333]
[null,"Less than 5 minutes",15,15,141,97,19,17,0,11,659,279,12,10,17,11,14,19,0,11,5,5,50,40,28,20,131,104,86,83,20,12,192,124,62,41,121,97,259,188]
[null,"5 to 9 minutes",10,7,189,93,10,12,5,8,1314,392,0,11,23,26,23,19,15,13,9,10,107,56,81,51,166,78,127,63,45,31,258,156,85,58,145,126,243,127]
[null,"10 to 14 minutes",34,19,238,119,22,13,0,11,1007,283,26,20,44,29,93,50,6,7,4,7,37,30,68,42,244,87,167,105,48,31,203,103,64,31,159,127,721,269]
[null,"15 to 19 minutes",87,38,254,170,27,19,9,7,863,220,22,20,96,45,77,31,2,3,2,3,95,39,134,54,202,75,158,71,69,41,93,68,198,74,202,161,236,147]
[null,"20 to 24 minutes",34,15,264,128,60,27,19,14,323,137,21,16,135,47,64,28,4,6,2,3,44,35,254,72,167,88,107,65,44,22,242,148,107,34,238,163,190,154]
[null,"25 to 29 minutes",13,15,0,11,16,10,11,10,76,52,10,8,32,25,41,27,0,11,6,8,13,21,200,85,90,53,140,76,38,23,61,75,27,23,151,106,85,76]
[null,"30 to 34 minutes",33,21,26,29,22,13,62,43,157,68,7,9,104,41,60,31,0,11,4,6,89,61,137,71,160,80,201,116,74,33,197,126,76,34,174,99,121,98]
[null,"35 to 39 minutes",5,6,0,11,10,9,9,7,9,14,3,4,19,13,51,38,0,11,0,11,9,14,38,33,113,74,9,18,27,25,59,67,0,11,159,114,13,21]
[null,"40 to 44 minutes",20,16,0,11,19,16,15,12,97,90,5,5,15,10,16,12,0,11,0,11,0,11,76,42,146,68,132,71,45,31,25,37,44,28,116,94,241,131]
[null,"45 to 59 minutes",22,15,64,69,49,21,23,15,132,103,1,3,93,39,42,23,2,3,0,11,13,19,58,44,68,43,280,173,63,32,159,106,75,69,398,174,126,92]
[null,"60 to 89 minutes",13,12,68,67,45,21,13,10,49,40,9,9,85,38,19,13,0,11,6,9,9,14,63,39,106,59,216,85,64,29,34,47,73,39,402,187,291,177]
[null,"90 or more minutes",2,4,12,17,40,23,1,2,131,89,19,16,9,9,22,21,4,5,0,11,0,11,55,37,99,79,92,74,20,13,30,30,47,42,136,74,100,81]
[]
[]
[]
[]
[]
[]
[]
[]
[]
[]
[]
[]
[]
[]
[]
[]
[]
[]
[]
[null,null,479,109,1383,187,316,81,203,78,4975,456,229,75,572,103,445,82,13,11,31,20,283,85,1144,142,1801,227,1775,226,655,96,1347,153,961,152,2323,283,2760,296]
[null,null,25,28,101,73,6,8,10,12,413,207,29,29,6,9,47,37,0,114,13,12,35,20,78,42,80,77,110,81,19,12,117,60,100,58,86,59,167,101]
[null,null,77,36,225,107,30,24,5,11,1118,252,9,9,67,39,45,25,0,114,0,114,64,34,10,17,308,103,193,92,51,26,201,103,44,45,330,137,601,208]
[null,null,53,39,353,132,21,18,1,5,1009,246,4,7,54,27,59,35,7,9,0,114,27,19,177,101,194,89,201,88,68,32,141,81,153,88,157,112,652,220]
[null,null,79,34,243,90,34,22,13,15,914,250,46,21,55,29,52,26,2,4,0,114,68,38,261,102,226,101,314,125,101,41,170,90,194,75,129,89,344,161]
[null,null,107,43,270,158,50,23,37,28,682,217,64,37,133,77,57,29,0,114,7,8,28,18,226,83,381,142,142,63,105,32,156,64,143,62,297,151,201,104]
[null,null,43,35,62,49,19,20,7,13,90,74,16,15,15,20,22,15,0,114,0,114,0,114,70,46,28,25,145,86,32,17,95,50,23,18,158,104,64,65]
[null,null,40,48,77,61,34,23,24,18,269,144,24,18,115,58,45,18,0,114,2,3,21,23,156,81,173,97,202,127,47,27,267,97,88,60,438,156,26,32]
[null,null,3,5,0,114,26,24,10,10,80,72,7,11,7,7,18,14,0,114,0,114,5,9,0,114,8,13,55,45,40,29,40,32,20,24,118,96,40,49]
[null,null,9,15,0,114,19,17,46,33,35,40,8,9,31,20,19,16,0,114,0,114,17,16,46,42,52,46,10,17,36,23,22,18,30,30,59,58,90,82]
[null,null,11,12,11,17,22,21,4,6,69,58,15,16,39,23,24,20,0,114,0,114,0,114,67,46,106,78,152,101,87,30,85,40,37,33,135,79,355,190]
[null,null,29,21,12,19,32,36,35,33,87,57,4,4,41,22,53,27,4,6,0,114,7,11,29,35,86,92,103,57,57,25,20,18,109,65,197,127,148,78]
[null,null,3,5,29,33,23,15,11,14,209,131,3,6,9,10,4,6,0,114,9,15,11,13,24,23,159,91,148,84,12,11,33,26,20,18,219,117,72,55]

{"sheet":"PopulationCharacteristics","index":3,"n_rows":87,"n_cols":23,"rows_kept":87,"cut":false,"hidden":true,"merged":[[46,13,46,15],[48,3,48,4],[48,6,48,7],[48,9,48,10],[63,1,63,3],[33,11,33,12],[2,8,2,12],[45,1,45,8],[18,15,18,21],[19,11,19,13],[19,18,19,20],[3,1,3,3],[19,15,19,17],[18,2,19,8]]}
[]
[null,{"$f":"CntyDataLink!$A35","v":"Wolfeboro"}]
[null,null,null,null,null,null,"Land Area:",{"$f":"((CntyDataLink!$F35*10.764)/43560)/640","v":48.307708742252061},null,null,"Water Area:",0.52121522469008263,{"$f":"((CntyDataLink!$G35*10.764)/43560)/640","v":10.180820654700412}]
[null,"POPULATION CHARACTERISTICS"]
[]
[]
[]
[]
[]
[]
[]
[]
[]
[]
[]
[]
[]
[]
[null,"Population ",{"$f":"\"Source:  US Census; Office of Planning and Development, NH BEA; \"& L20&\", \"&P20&\", and \"&S20&\" American Community Survey Table B01001\"","v":"Source:  US Census; Office of Planning and Development, NH BEA; 2008-2012, 2013-2017, and 2018-2022 American Community Survey Table B01001"},null,null,null,null,null,null,null,null,null,null,"Population by Age ",null,{"$f":"\"Source: \"& L20&\", \"&P20&\", and \"&S20&\"  American Community Survey Tables B01001 and B01002\"","v":"Source: 2008-2012, 2013-2017, and 2018-2022  American Community Survey Tables B01001 and B01002"}]
[null,null,null,null,null,null,null,null,null,null,null,"2008-2012",null,null,null,"2013-2017",null,null,"2018-2022"]
[null,null,1990,2000,2010,2020,"2018-2022",2025,2030,null,null,"Estimate",null,"Margin of Error","Percent Change","Estimate","Margin of Error","Percent Change","Estimate","Margin of Error",null,"Percent Change","Statistically Significant Change"]
[null,null,{"$f":"CntyDataLink!$F$20","v":4807},{"$f":"CntyDataLink!$G$20","v":6083},{"$f":"CntyDataLink!$H$20","v":6269},{"$f":"CntyDataLink!$I$20","v":6416},{"$f":"CntyDataLink!$B$132","v":6484},{"$f":"CntyDataLink!$J$20","v":6696},{"$f":"CntyDataLink!$K$20","v":6917},null,"Under 15 yrs.",{"$f":"CntyDataLinkPrior10YearEstimate!$D$132","v":1105},null,{"$f":"CntyDataLinkPrior10YearEstimate!$E$132","v":230.95887079737813},{"$f":"L22/SUM($L$22:$L$29)","v":0.17578746420617244},{"$f":"CntyDataLinkPrior5YearEstimates!$D$132","v":585},{"$f":"CntyDataLinkPrior5YearEstimates!$E$132","v":197.08627552419779},{"$f":"P22/SUM($P$22:$P$29)","v":9.3825180433039293E-2},{"$f":"CntyDataLink!$D$132","v":514},{"$f":"CntyDataLink!$E$132","v":144.91031709302138},{"$f":"S22/SUM($S$22:$S$29)","v":7.927205428747687E-2},{"$f":"(S22-P22)/P22","v":-0.12136752136752137},{"$f":"StatisticallySignificantCalcs!$A3","v":"Y"}]
[null,null,null,null,null,null,null,null,null,null,"15 to 24 yrs.",{"$f":"CntyDataLinkPrior10YearEstimate!$F$132","v":576},null,{"$f":"CntyDataLinkPrior10YearEstimate!$G$132","v":175.920436561532},{"$f":"L23/SUM($L$22:$L$29)","v":9.1632198536430162E-2},{"$f":"CntyDataLinkPrior5YearEstimates!$F$132","v":538},{"$f":"CntyDataLinkPrior5YearEstimates!$G$132","v":201.57628828808214},8.6287089013632717E-2,{"$f":"CntyDataLink!$F$132","v":727},{"$f":"CntyDataLink!$G$132","v":256.64372191814863},0.1121221468229488,0.35130111524163571,{"$f":"StatisticallySignificantCalcs!$A4","v":"Y"}]
[null,"Percent Change",null,null,null,null,null,null,null,null,"25 to 34 yrs.",{"$f":"CntyDataLinkPrior10YearEstimate!$H$132","v":433},null,{"$f":"CntyDataLinkPrior10YearEstimate!$I$132","v":142.95104056983985},{"$f":"L24/SUM($L$22:$L$29)","v":6.8883232580337253E-2},{"$f":"CntyDataLinkPrior5YearEstimates!$H$132","v":451},{"$f":"CntyDataLinkPrior5YearEstimates!$I$132","v":184.40715821247286},7.2333600641539694E-2,{"$f":"CntyDataLink!$H$132","v":259},{"$f":"CntyDataLink!$I$132","v":147.37028194313805},3.9944478716841453E-2,-0.42572062084257206,{"$f":"StatisticallySignificantCalcs!$A5","v":"Y"}]
[null,null,null,{"$f":"C21&\"-2020\"","v":"1990-2020"},{"$f":"D21&\"-2020\"","v":"2000-2020"},{"$f":"E21&\"-2020\"","v":"2010-2020"},{"$f":"F21&\"-2030\"","v":"2020-2030"},{"$f":"G21&\"-\"&H21","v":"2018-2022-2025"},{"$f":"H21&\"-\"&I21","v":"2025-2030"},null,"35 to 44 yrs.",{"$f":"CntyDataLinkPrior10YearEstimate!$J$132","v":449},null,{"$f":"CntyDataLinkPrior10YearEstimate!$K$132","v":151.22499793354271},7.1428571428571425E-2,{"$f":"CntyDataLinkPrior5YearEstimates!$J$132","v":619},{"$f":"CntyDataLinkPrior5YearEstimates!$K$132","v":167.08081876744561},9.9278267842822773E-2,{"$f":"CntyDataLink!$J$132","v":717},{"$f":"CntyDataLink!$K$132","v":247.32771781585663},0.11057988895743369,0.15831987075928919,{"$f":"StatisticallySignificantCalcs!$A6","v":"Y"}]
[null,null,null,{"$f":"(D22-C22)/C22","v":0.26544622425629288},3.057701791879007E-2,2.3448715903652894E-2,1.059850374064838E-2,3.2695866748920423E-2,3.300477897252091E-2,null,"45 to 54 yrs.",{"$f":"CntyDataLinkPrior10YearEstimate!$L$132","v":802},null,{"$f":"CntyDataLinkPrior10YearEstimate!$M$132","v":182.48013590525409},0.12758510976773782,{"$f":"CntyDataLinkPrior5YearEstimates!$L$132","v":765},{"$f":"CntyDataLinkPrior5YearEstimates!$M$132","v":214.82551058940834},0.12269446672012831,{"$f":"CntyDataLink!$L$132","v":681},{"$f":"CntyDataLink!$M$132","v":223.95312009436262},0.10502776064157927,-0.10980392156862745,{"$f":"StatisticallySignificantCalcs!$A7","v":"Y"}]
[null,null,null,null,null,null,null,null,null,null,"55 to 64 yrs.",{"$f":"CntyDataLinkPrior10YearEstimate!$N$132","v":1152},null,{"$f":"CntyDataLinkPrior10YearEstimate!$O$132","v":279.30091299528544},0.18326439707286032,{"$f":"CntyDataLinkPrior5YearEstimates!$N$132","v":973},{"$f":"CntyDataLinkPrior5YearEstimates!$O$132","v":232.37900077244501},0.15605453087409785,{"$f":"CntyDataLink!$N$132","v":1365},{"$f":"CntyDataLink!$O$132","v":361.16339792398674},0.21051819864281307,0.40287769784172661,{"$f":"StatisticallySignificantCalcs!$A8","v":"Y"}]
[null,null,null,null,null,null,null,null,null,null,"65 to 74 yrs.",{"$f":"CntyDataLinkPrior10YearEstimate!$P$132","v":949},null,{"$f":"CntyDataLinkPrior10YearEstimate!$Q$132","v":230.7834482799839},0.15097041043588927,{"$f":"CntyDataLinkPrior5YearEstimates!$P$132","v":1232},{"$f":"CntyDataLinkPrior5YearEstimates!$Q$132","v":233.4866163187946},0.19759422614274258,{"$f":"CntyDataLink!$P$132","v":999},{"$f":"CntyDataLink!$Q$132","v":238.01050396988785},0.1540715607649599,-0.18912337662337661,{"$f":"StatisticallySignificantCalcs!$A9","v":"Y"}]
[null,null,null,null,null,null,null,null,null,null,"Over 74 yrs. ",{"$f":"CntyDataLinkPrior10YearEstimate!$R$132","v":820},null,{"$f":"CntyDataLinkPrior10YearEstimate!$S$132","v":183.18296864064629},0.13044861597200128,{"$f":"CntyDataLinkPrior5YearEstimates!$R$132","v":1072},{"$f":"CntyDataLinkPrior5YearEstimates!$S$132","v":293.69882532962231},0.17193263833199679,{"$f":"CntyDataLink!$R$132","v":1222},{"$f":"CntyDataLink!$S$132","v":279.86067962470185},0.18846391116594693,0.13992537313432835,{"$f":"StatisticallySignificantCalcs!$A10","v":"Y"}]
[null,null,null,null,null,null,null,null,null,null,"Median Age (years)",{"$f":"CntyDataLinkPrior10YearEstimate!$AX$132","v":52.9},null,{"$f":"CntyDataLinkPrior10YearEstimate!$AY$132","v":2.7},null,{"$f":"CntyDataLinkPrior5YearEstimates!$AX132","v":57.2},{"$f":"CntyDataLinkPrior5YearEstimates!$AY$132","v":4.2},null,{"$f":"CntyDataLink!$AX$132","v":56.6},{"$f":"CntyDataLink!$AY$132","v":1.6}]
[]
[null,"Population By Race",null,null,null,null,null,null,null,null,null,null,"Statistically Significant Change"]
[null,null,null,null,null,null,null,null,null,null,null,null,{"$f":"IF(L36=\"\",\"-\",StatisticallySignificantCalcs!A20)","v":"N"}]
[null,null,{"$f":"$L$20","v":"2008-2012"},null,null,{"$f":"$P$20","v":"2013-2017"},null,null,{"$f":"$S$20","v":"2018-2022"},null,null,"Percent Change"]
[null,null,"Estimate","Margin of Error",null,"Estimate","Margin of Error",null,"Estimate","Margin of Error",null,"2012-2022","2017-2022"]
[null,"White",{"$f":"CntyDataLinkPrior10YearEstimate!$AL$132","v":5991},{"$f":"CntyDataLinkPrior10YearEstimate!$AM$132","v":156},{"$f":"IF(C$36=\"-\",\"-\",VALUE(C36/$C$41))","v":0.95307031498568251},{"$f":"CntyDataLinkPrior5YearEstimates!$AL$132","v":6048},{"$f":"CntyDataLinkPrior5YearEstimates!$AM$132","v":164},{"$f":"IF(F$36=\"-\",\"-\",VALUE(F36/$F$41))","v":0.97000801924619084},{"$f":"CntyDataLink!$AL$132","v":6166},{"$f":"CntyDataLink!$AM$132","v":119},{"$f":"IF(I$36=\"-\",\"-\",VALUE(I36/$I$41))","v":0.95095619987661939},{"$f":"StatisticallySignificantCalcs!A20","v":"N"},{"$f":"StatisticallySignificantCalcs!J20","v":"N"}]
[null,"Black",{"$f":"CntyDataLinkPrior10YearEstimate!$AN132","v":1},{"$f":"CntyDataLinkPrior10YearEstimate!$AO$132","v":2},{"$f":"IF(C$37=\"-\",\"-\",VALUE(C37/$C$41))","v":1.590836780146357E-4},{"$f":"CntyDataLinkPrior5YearEstimates!$AN132","v":0},{"$f":"CntyDataLinkPrior5YearEstimates!$AO$132","v":85},{"$f":"IF(F$37=\"-\",\"-\",VALUE(F37/$F$41))","v":0},{"$f":"CntyDataLink!$AN$132","v":0},{"$f":"CntyDataLink!$AO$132","v":17},{"$f":"IF(I$37=\"-\",\"-\",VALUE(I37/$I$41))","v":0},{"$f":"StatisticallySignificantCalcs!A21","v":"N"},{"$f":"StatisticallySignificantCalcs!J21","v":"N"}]
[null,"American Indian",{"$f":"CntyDataLinkPrior10YearEstimate!$AP$132","v":0},{"$f":"CntyDataLinkPrior10YearEstimate!$AQ$132","v":16},{"$f":"IF(C$38=\"-\",\"-\",VALUE(C38/$C$41))","v":0},{"$f":"CntyDataLinkPrior5YearEstimates!$AP$132","v":0},{"$f":"CntyDataLinkPrior5YearEstimates!$AQ$132","v":85},{"$f":"IF(F$38=\"-\",\"-\",VALUE(F38/$F$41))","v":0},{"$f":"CntyDataLink!$AP$132","v":27},{"$f":"CntyDataLink!$AQ$132","v":38},{"$f":"IF(I$38=\"-\",\"-\",VALUE(I38/$I$41))","v":4.1640962368908081E-3},{"$f":"StatisticallySignificantCalcs!A22","v":"N"},{"$f":"StatisticallySignificantCalcs!J22","v":"N"}]
[null,"Asian &Pacific Is.",{"$f":"CntyDataLinkPrior10YearEstimate!$AR$132","v":92},{"$f":"CntyDataLinkPrior10YearEstimate!$AS$132","v":99.297532698451278},{"$f":"IF(C$39=\"-\",\"-\",VALUE(C39/$C$41))","v":1.4635698377346485E-2},{"$f":"CntyDataLinkPrior5YearEstimates!$AR$132","v":107},{"$f":"CntyDataLinkPrior5YearEstimates!$AS$132","v":138.2244551445221},{"$f":"IF(F$39=\"-\",\"-\",VALUE(F39/$F$41))","v":1.7161186848436247E-2},{"$f":"CntyDataLink!$AR$132","v":16},{"$f":"CntyDataLink!$AS$132","v":31.064449134018133},{"$f":"IF(I$39=\"-\",\"-\",VALUE(I39/$I$41))","v":2.4676125848241827E-3},{"$f":"StatisticallySignificantCalcs!A23","v":"N"},{"$f":"StatisticallySignificantCalcs!J23","v":"N"}]
[null,"Other*",{"$f":"CntyDataLinkPrior10YearEstimate!$AT$132","v":123},{"$f":"CntyDataLinkPrior10YearEstimate!$AU$132","v":122.05326705991938},{"$f":"IF(C$40=\"-\",\"-\",VALUE(C40/$C$41))","v":1.9567292395800191E-2},{"$f":"CntyDataLinkPrior5YearEstimates!$AT$132","v":63},{"$f":"CntyDataLinkPrior5YearEstimates!$AU$132","v":112.69871339105873},{"$f":"IF(F$40=\"-\",\"-\",VALUE(F40/$F$41))","v":1.0104250200481155E-2},{"$f":"CntyDataLink!$AT$132","v":33},{"$f":"CntyDataLink!$AU$132","v":54.708317466359723},{"$f":"IF(I$40=\"-\",\"-\",VALUE(I40/$I$41))","v":5.0894509561998768E-3},{"$f":"StatisticallySignificantCalcs!A24","v":"N"},{"$f":"StatisticallySignificantCalcs!J24","v":"N"}]
[null,"Total Population",{"$f":"CntyDataLinkPrior10YearEstimate!$B$132","v":6286},{"$f":"CntyDataLinkPrior10YearEstimate!$C$132","v":17},null,{"$f":"CntyDataLinkPrior5YearEstimates!$B$132","v":6235},{"$f":"CntyDataLinkPrior5YearEstimates!$C$132","v":19},null,{"$f":"CntyDataLink!$B$132","v":6484},{"$f":"CntyDataLink!$C$132","v":18}]
[null,"Hispanic",{"$f":"CntyDataLinkPrior10YearEstimate!$AV132","v":79},{"$f":"CntyDataLinkPrior10YearEstimate!$AW$132","v":78},{"$f":"IF(C$42=\"-\",\"-\",VALUE(C42/$C$41))","v":1.2567610563156219E-2},{"$f":"CntyDataLinkPrior5YearEstimates!$AV132","v":84},{"$f":"CntyDataLinkPrior5YearEstimates!$AW$132","v":102},{"$f":"IF(F$42=\"-\",\"-\",VALUE(F42/$F$41))","v":1.347233360064154E-2},{"$f":"CntyDataLink!$AV$132","v":242},{"$f":"CntyDataLink!$AW$132","v":98},{"$f":"IF(I$42=\"-\",\"-\",VALUE(I42/$I$41))","v":3.7322640345465764E-2},{"$f":"StatisticallySignificantCalcs!$A$26","v":"N"},{"$f":"StatisticallySignificantCalcs!$J$26","v":"Y"}]
[]
[null,"*","Other includes population of 2 or more races"]
[]
[null,{"$f":"\"Source: \"& L20&\", \"&P20&\", and \"&S20&\" American Community Survey Table B03002\"","v":"Source: 2008-2012, 2013-2017, and 2018-2022 American Community Survey Table B03002"}]
[null,null,null,null,null,null,null,null,null,null,null,null,null,"Percent Change"]
[null,null,"Households and Families"]
[null,null,null,{"$f":"$L$20","v":"2008-2012"},null,null,{"$f":"$P$20","v":"2013-2017"},null,null,{"$f":"$S$20","v":"2018-2022"},null,null,null,{"$f":"$L$35","v":"2012-2022"},null,{"$f":"$M$35","v":"2017-2022"}]
[null,null,null,"Estimate","Margin of Error",null,"Estimate","Margin of Error",null,"Estimate","Margin of Error"]
[null,null,"Total Households",{"$f":"CntyDataLinkPrior10YearEstimate!$T$132","v":2590},{"$f":"CntyDataLinkPrior10YearEstimate!$U$132","v":178},null,{"$f":"CntyDataLinkPrior5YearEstimates!$T$132","v":2935},{"$f":"CntyDataLinkPrior5YearEstimates!$U$132","v":210},null,{"$f":"CntyDataLink!$T$132","v":2787},{"$f":"CntyDataLink!$U$132","v":260},null,null,{"$f":"(J51-D51)/D51","v":7.6061776061776068E-2},null,{"$f":"(J51-G51)/G51","v":-5.0425894378194211E-2}]
[null,null,"Persons per Household",{"$f":"CntyDataLinkPrior10YearEstimate!$BD$132","v":2.39},{"$f":"CntyDataLinkPrior10YearEstimate!$BE$132","v":0.16},null,{"$f":"CntyDataLinkPrior5YearEstimates!$BD$132","v":2.0885860306643953},{"$f":"CntyDataLinkPrior5YearEstimates!$BE$132","v":0.21206297554320677},null,{"$f":"CntyDataLink!$BD$132","v":2.2719770362396843},{"$f":"CntyDataLink!$BE$132","v":0.21206297554320677},null,null,{"$f":"(J52-D52)/D52","v":-4.9381993205153074E-2},null,{"$f":"(J52-G52)/G52","v":8.7806297122915683E-2}]
[null,null,"Family Households",{"$f":"CntyDataLinkPrior10YearEstimate!$V$132","v":1778},{"$f":"CntyDataLinkPrior10YearEstimate!$U$132","v":178},null,{"$f":"CntyDataLinkPrior5YearEstimates!$V$132","v":2010},{"$f":"CntyDataLinkPrior5YearEstimates!$U$132","v":210},null,{"$f":"CntyDataLink!$V$132","v":1708},{"$f":"CntyDataLink!$U$132","v":260},null,null,-3.937007874015748E-2,null,-0.15024875621890546]
[null,null,"Persons per Family Household",{"$f":"CntyDataLinkPrior10YearEstimate!$BF$132","v":2.46},{"$f":"CntyDataLinkPrior10YearEstimate!$BG$132","v":0.19},null,{"$f":"CntyDataLinkPrior5YearEstimates!$BF$132","v":2.5572139303482588},{"$f":"CntyDataLinkPrior5YearEstimates!$BG$132","v":0.39357217918576809},null,{"$f":"CntyDataLink!$BF$132","v":2.9718969555035128},{"$f":"CntyDataLink!$BG$132","v":0.39357217918576809},null,null,0.20808819329411093,null,0.16216203901985612]
[null,null,"Married-Couple Family Hh",{"$f":"CntyDataLinkPrior10YearEstimate!$X$132","v":1505},{"$f":"CntyDataLinkPrior10YearEstimate!$Y$132","v":167},null,{"$f":"CntyDataLinkPrior5YearEstimates!$X$132","v":1754},{"$f":"CntyDataLinkPrior5YearEstimates!$Y$132","v":187},null,{"$f":"CntyDataLink!$X$132","v":1305},{"$f":"CntyDataLink!$Y$132","v":192},null,null,-0.13289036544850499,null,-0.25598631698973773]
[null,null,"Single-Parent Family Hh",{"$f":"CntyDataLinkPrior10YearEstimate!$Z$132","v":273},{"$f":"CntyDataLinkPrior10YearEstimate!$AA$132","v":125},null,{"$f":"CntyDataLinkPrior5YearEstimates!$Z$132","v":256},{"$f":"CntyDataLinkPrior5YearEstimates!$AA$132","v":154},null,{"$f":"CntyDataLink!$Z$132","v":403},{"$f":"CntyDataLink!$AA$132","v":187},null,null,0.47619047619047616,null,0.57421875]
[null,null,"Non-Family Households*",{"$f":"CntyDataLinkPrior10YearEstimate!$AF$132","v":812},{"$f":"CntyDataLinkPrior10YearEstimate!$AG$132","v":205},null,{"$f":"CntyDataLinkPrior5YearEstimates!$AF$132","v":925},{"$f":"CntyDataLinkPrior5YearEstimates!$AG$132","v":261},null,{"$f":"CntyDataLink!$AF$132","v":1079},{"$f":"CntyDataLink!$AG$132","v":302},null,null,0.3288177339901478,null,0.16648648648648648]
[null,null,"Persons per Non-Family Hh",{"$f":"CntyDataLinkPrior10YearEstimate!$BH$132","v":2.0499999999999998},{"$f":"CntyDataLinkPrior10YearEstimate!$BI$132","v":0.47},null,{"$f":"CntyDataLinkPrior5YearEstimates!$BH$132","v":1.0702702702702702},{"$f":"CntyDataLinkPrior5YearEstimates!$BI$132","v":0.44244557729846928},null,{"$f":"CntyDataLink!$BH$132","v":1.1640407784986098},{"$f":"CntyDataLink!$BI$132","v":0.44244557729846928},null,null,-0.43217523000067809,null,8.7613858698196045E-2]
[]
[]
[null,"As a result of changes in the American Community Survey, direct comparisons between the data should be made with caution."]
[]
[null,{"$f":"\"Source: \"& L20&\", \"&P20&\", and \"&S20&\" American Community Survey Table B11001\"","v":"Source: 2008-2012, 2013-2017, and 2018-2022 American Community Survey Table B11001"}]
[null,"POPULATION CHARACTERISTICS"]
[]
[]
[]
[]
[]
[]
[]
[]
[]
[]
[]
[]
[]
[]
[]
[]
[]
[]
[]
[]
[]
[]
[null,"As a result of changes in the American Community Survey, direct comparisons between the data should be made with caution."]

{"sheet":"SchoolEnrolEduAttain","index":4,"n_rows":67,"n_cols":17,"rows_kept":67,"cut":false,"hidden":true,"merged":[[20,15,20,16],[49,15,49,16],[20,5,20,7],[49,5,49,7],[49,8,49,10],[20,8,20,10],[20,11,20,13],[49,11,49,12]]}
[]
[null,null,{"$f":"CntyDataLink!A50","v":"Wolfeboro"}]
[null,null,"SOCIAL CHARACTERISTICS"]
[]
[]
[]
[]
[]
[]
[]
[]
[]
[]
[]
[]
[]
[]
[]
[]
[]
[null,null,"School Enrollment",null,null,"2008-2012",null,null,"2013-2017",null,null,"2018-2022",null,null,null,"Statistically Significant Change"]
[null,null,null,null,null,"Estimate"," Margin of Error","Percent of Population","Estimate"," Margin of Error","Percent of Population","Estimate"," Margin of Error","Percent of Population",null,"2012-2022","2017-2022"]
[null,null,"Population 3 years and over",null,null,{"$f":"CntyDataLinkPrior10YearEstimate!$B$140","v":6121},{"$f":"CntyDataLinkPrior10YearEstimate!$C$140","v":115},null,{"$f":"CntyDataLinkPrior5YearEstimates!$B$140","v":6094},{"$f":"CntyDataLinkPrior5YearEstimates!$C$140","v":66},null,{"$f":"CntyDataLink!$B$140","v":6482},{"$f":"CntyDataLink!$C$140","v":19},null,null,{"$f":"StatisticallySignificantCalcs!$A$45","v":"Y"},{"$f":"StatisticallySignificantCalcs!$J$45","v":"Y"}]
[null,null,"Population 3 years & over enrolled in school",null,null,{"$f":"CntyDataLinkPrior10YearEstimate!$D$140","v":1382},{"$f":"CntyDataLinkPrior10YearEstimate!$E$140","v":228},{"$f":"F24/$F$23","v":0.22578010129063877},{"$f":"CntyDataLinkPrior5YearEstimates!$D$140","v":839},{"$f":"CntyDataLinkPrior5YearEstimates!$E$140","v":237},{"$f":"I24/$I$23","v":0.13767640301936332},{"$f":"CntyDataLink!$D$140","v":1082},{"$f":"CntyDataLink!$E$140","v":243},{"$f":"L24/$L$23","v":0.16692378895402654},null,{"$f":"StatisticallySignificantCalcs!$A$46","v":"N"},{"$f":"StatisticallySignificantCalcs!$J$46","v":"N"}]
[null,null,"Preprimary (Nursery, Preschool, Kindergarten)",null,null,{"$f":"CntyDataLinkPrior10YearEstimate!$F$140","v":68},{"$f":"CntyDataLinkPrior10YearEstimate!$G$140","v":59.539902586416787},1.110929586668845E-2,{"$f":"CntyDataLinkPrior5YearEstimates!$F$140","v":46},{"$f":"CntyDataLinkPrior5YearEstimates!$G$140","v":45.694638635183452},{"$f":"I25/$I$23","v":7.5484082704299314E-3},{"$f":"CntyDataLink!$F$140","v":64},{"$f":"CntyDataLink!$G$140","v":50.24937810560445},{"$f":"L25/$L$23","v":9.8734958346189446E-3},null,{"$f":"StatisticallySignificantCalcs!$A$47","v":"N"},{"$f":"StatisticallySignificantCalcs!$J$47","v":"N"}]
[null,null,"        Nursery school and Preschool",null,null,{"$f":"CntyDataLinkPrior10YearEstimate!$H$140","v":27},{"$f":"CntyDataLinkPrior10YearEstimate!$I$140","v":29},4.411043947067473E-3,{"$f":"CntyDataLinkPrior5YearEstimates!$H$140","v":37},{"$f":"CntyDataLinkPrior5YearEstimates!$I$140","v":42},6.0715457827371184E-3,{"$f":"CntyDataLink!$H$140","v":24},{"$f":"CntyDataLink!$I$140","v":34},{"$f":"L26/$L$23","v":3.7025609379821045E-3},null,{"$f":"StatisticallySignificantCalcs!$A$48","v":"N"},{"$f":"StatisticallySignificantCalcs!$J$48","v":"N"}]
[null,null,"        Kindergarten",null,null,{"$f":"CntyDataLinkPrior10YearEstimate!$J$140","v":41},{"$f":"CntyDataLinkPrior10YearEstimate!$K$140","v":52},6.6982519196209771E-3,{"$f":"CntyDataLinkPrior5YearEstimates!$J$140","v":9},{"$f":"CntyDataLinkPrior5YearEstimates!$K$140","v":18},1.4768624876928126E-3,{"$f":"CntyDataLink!$J$140","v":40},{"$f":"CntyDataLink!$K$140","v":37},6.1709348966368406E-3,null,{"$f":"StatisticallySignificantCalcs!$A$49","v":"N"},{"$f":"StatisticallySignificantCalcs!$J$49","v":"N"}]
[null,null,"Elementary through High school",null,null,{"$f":"CntyDataLinkPrior10YearEstimate!$P$140","v":1110},{"$f":"CntyDataLinkPrior10YearEstimate!$Q$140","v":232.37039398339883},0.18134291782388498,{"$f":"CntyDataLinkPrior5YearEstimates!$P$140","v":588},{"$f":"CntyDataLinkPrior5YearEstimates!$Q$140","v":197.43353311937665},9.6488349195930426E-2,{"$f":"CntyDataLink!$P$140","v":861},{"$f":"CntyDataLink!$Q$140","v":258.50725328315258},0.132829373650108,null,{"$f":"StatisticallySignificantCalcs!$A$50","v":"N"},{"$f":"StatisticallySignificantCalcs!$J$50","v":"N"}]
[null,null,"        Elementary school (grades 1-8)",null,null,{"$f":"CntyDataLinkPrior10YearEstimate!$L$140","v":814},{"$f":"CntyDataLinkPrior10YearEstimate!$M$140","v":189.84203960134857},0.13298480640418231,{"$f":"CntyDataLinkPrior5YearEstimates!$L$140","v":375},{"$f":"CntyDataLinkPrior5YearEstimates!$M$140","v":175.72706109191037},{"$f":"I29/$I$23","v":6.1535936987200522E-2},{"$f":"CntyDataLink!$L$140","v":380},{"$f":"CntyDataLink!$M$140","v":116.03878661895772},5.8623881518049988E-2,null,{"$f":"StatisticallySignificantCalcs!$A$51","v":"Y"},{"$f":"StatisticallySignificantCalcs!$J$51","v":"N"}]
[null,null,"        High school (grades 9-12)",null,null,{"$f":"CntyDataLinkPrior10YearEstimate!$N$140","v":296},{"$f":"CntyDataLinkPrior10YearEstimate!$O$140","v":134},4.8358111419702664E-2,{"$f":"CntyDataLinkPrior5YearEstimates!$N$140","v":213},{"$f":"CntyDataLinkPrior5YearEstimates!$O$140","v":90},3.4952412208729897E-2,{"$f":"CntyDataLink!$N$140","v":481},{"$f":"CntyDataLink!$O$140","v":231},7.4205492132058001E-2,null,{"$f":"StatisticallySignificantCalcs!$A$52","v":"N"},{"$f":"StatisticallySignificantCalcs!$J$52","v":"Y"}]
[null,null,"College or Graduate School",null,null,{"$f":"CntyDataLinkPrior10YearEstimate!$R$140","v":204},{"$f":"CntyDataLinkPrior10YearEstimate!$S$140","v":99.126182212370111},3.3327887600065352E-2,{"$f":"CntyDataLinkPrior5YearEstimates!$R$140","v":205},{"$f":"CntyDataLinkPrior5YearEstimates!$S$140","v":136.75159962501354},3.3639645553002952E-2,{"$f":"CntyDataLink!$R$140","v":157},{"$f":"CntyDataLink!$S$140","v":105.77334257741882},2.42209194692996E-2,null,{"$f":"StatisticallySignificantCalcs!$A$53","v":"N"},{"$f":"StatisticallySignificantCalcs!$J$53","v":"N"}]
[]
[null,null,{"$f":"\"Source: \"&F21&\", \"& I21&\" and \"&L21&\" American Community Survey Table B14001\"","v":"Source: 2008-2012, 2013-2017 and 2018-2022 American Community Survey Table B14001"}]
[]
[]
[]
[]
[]
[]
[]
[]
[]
[]
[]
[]
[]
[]
[]
[]
[null,null,"Educational Attainment",null,null,{"$f":"F21","v":"2008-2012"},null,null,{"$f":"I21","v":"2013-2017"},null,null,{"$f":"L21","v":"2018-2022"},null,null,null,"Statistically Significant Change"]
[null,null,null,null,null,"Estimate"," Margin of Error","Percent of Population","Estimate"," Margin of Error","Percent of Population","Estimate"," Margin of Error","Percent of Population",null,{"$f":"P22","v":"2012-2022"},{"$f":"Q22","v":"2017-2022"}]
[null,null,"Population 25 years and over",null,null,{"$f":"CntyDataLinkPrior10YearEstimate!$V$140","v":4605},{"$f":"CntyDataLinkPrior10YearEstimate!$W$140","v":243},null,{"$f":"CntyDataLinkPrior5YearEstimates!$V$140","v":5112},{"$f":"CntyDataLinkPrior5YearEstimates!$W$140","v":242},null,{"$f":"CntyDataLink!$V$140","v":5243},{"$f":"CntyDataLink!$W$140","v":306},null,null,{"$f":"StatisticallySignificantCalcs!A54","v":"N"},{"$f":"StatisticallySignificantCalcs!$J$54","v":"N"}]
[null,null,"Less than 9th Grade",null,null,{"$f":"CntyDataLinkPrior10YearEstimate!$X$140","v":37},{"$f":"CntyDataLinkPrior10YearEstimate!$Y$140","v":51.166395221864128},{"$f":"F53/$F$52","v":8.0347448425624329E-3},{"$f":"CntyDataLinkPrior5YearEstimates!$X$140","v":89},{"$f":"CntyDataLinkPrior5YearEstimates!$Y$140","v":91.285267157411553},{"$f":"I53/$I$52","v":1.7410015649452271E-2},{"$f":"CntyDataLink!$X$140","v":0},{"$f":"CntyDataLink!$Y$140","v":41.641325627314025},{"$f":"L53/$L$52","v":0},null,{"$f":"StatisticallySignificantCalcs!A55","v":"Y"},{"$f":"StatisticallySignificantCalcs!$J$55","v":"N"}]
[null,null,"9th to 12th Grade, no Diploma",null,null,{"$f":"CntyDataLinkPrior10YearEstimate!$Z$140","v":99},{"$f":"CntyDataLinkPrior10YearEstimate!$AA$140","v":82.152297594163485},{"$f":"F54/$F$52","v":2.1498371335504887E-2},{"$f":"CntyDataLinkPrior5YearEstimates!$Z$140","v":269},{"$f":"CntyDataLinkPrior5YearEstimates!$AA$140","v":142.46754016266303},5.2621283255086075E-2,{"$f":"CntyDataLink!$Z$140","v":220},{"$f":"CntyDataLink!$AA$140","v":178.91338686638292},4.1960709517451837E-2,null,{"$f":"StatisticallySignificantCalcs!A56","v":"N"},{"$f":"StatisticallySignificantCalcs!$J$56","v":"N"}]
[null,null,"High School Graduate ",null,null,{"$f":"CntyDataLinkPrior10YearEstimate!$AB$140","v":1051},{"$f":"CntyDataLinkPrior10YearEstimate!$AC$140","v":210.10711553871752},0.22823018458197611,{"$f":"CntyDataLinkPrior5YearEstimates!$AB$140","v":1384},{"$f":"CntyDataLinkPrior5YearEstimates!$AC$140","v":261.34460009726621},0.27073552425665104,{"$f":"CntyDataLink!$AB$140","v":1244},{"$f":"CntyDataLink!$AC$140","v":324.9692293125612},0.23726873927140951,null,{"$f":"StatisticallySignificantCalcs!A57","v":"N"},{"$f":"StatisticallySignificantCalcs!$J$57","v":"N"}]
[null,null,"Some College, No Degree",null,null,{"$f":"CntyDataLinkPrior10YearEstimate!$AD$140","v":1032},{"$f":"CntyDataLinkPrior10YearEstimate!$AE$140","v":249.90198078446679},0.2241042345276873,{"$f":"CntyDataLinkPrior5YearEstimates!$AD$140","v":801},{"$f":"CntyDataLinkPrior5YearEstimates!$AE$140","v":289.25767059837841},0.15669014084507044,{"$f":"CntyDataLink!$AD$140","v":937},{"$f":"CntyDataLink!$AE$140","v":267.44345196695321},0.17871447644478353,null,{"$f":"StatisticallySignificantCalcs!A58","v":"N"},{"$f":"StatisticallySignificantCalcs!$J$58","v":"N"}]
[null,null,"Associate Degree",null,null,{"$f":"CntyDataLinkPrior10YearEstimate!$AF$140","v":558},{"$f":"CntyDataLinkPrior10YearEstimate!$AG$140","v":144.40221604947757},0.12117263843648209,{"$f":"CntyDataLinkPrior5YearEstimates!$AF$140","v":304},{"$f":"CntyDataLinkPrior5YearEstimates!$AG$140","v":117.64777940955791},5.9467918622848198E-2,{"$f":"CntyDataLink!$AF$140","v":704},{"$f":"CntyDataLink!$AG$140","v":261.42876658852981},0.13427427045584589,null,{"$f":"StatisticallySignificantCalcs!A59","v":"Y"},{"$f":"StatisticallySignificantCalcs!$J$59","v":"Y"}]
[null,null,"Bachelor's Degree",null,null,{"$f":"CntyDataLinkPrior10YearEstimate!$AH$140","v":1060},{"$f":"CntyDataLinkPrior10YearEstimate!$AI$140","v":248.92770034690795},0.23018458197611291,{"$f":"CntyDataLinkPrior5YearEstimates!$AH$140","v":1253},{"$f":"CntyDataLinkPrior5YearEstimates!$AI$140","v":293.47061181658376},0.24510954616588421,{"$f":"CntyDataLink!$AH$140","v":1233},{"$f":"CntyDataLink!$AI$140","v":278.30379084734005},0.2351707037955369,null,{"$f":"StatisticallySignificantCalcs!A60","v":"N"},{"$f":"StatisticallySignificantCalcs!$J$60","v":"N"}]
[null,null,"Graduate or Professional Degree",null,null,{"$f":"CntyDataLinkPrior10YearEstimate!$AJ$140","v":349},{"$f":"CntyDataLinkPrior10YearEstimate!$AK$140","v":144.75496537252184},7.5787187839305103E-2,{"$f":"CntyDataLinkPrior5YearEstimates!$AJ$140","v":1012},{"$f":"CntyDataLinkPrior5YearEstimates!$AK$140","v":221.63709075874462},0.19796557120500782,{"$f":"CntyDataLink!$AJ$140","v":905},{"$f":"CntyDataLink!$AK$140","v":254.97843046030383},0.17261110051497233,null,{"$f":"StatisticallySignificantCalcs!A61","v":"N"},{"$f":"StatisticallySignificantCalcs!$J$61","v":"N"}]
[]
[null,null,"Percent of High School Graduate or Higher",null,null,null,null,{"$f":"SUM(F55:F59)/F52","v":0.87947882736156346},null,null,{"$f":"SUM(I55:I59)/I52","v":0.9299687010954617},null,null,{"$f":"SUM(L55:L59)/L52","v":0.95803929048254821}]
[null,null,"Percent of Bachelor's Degree or Higher",null,null,null,null,{"$f":"SUM(F58:F59)/F52","v":0.30597176981541802},null,null,{"$f":"SUM(I58:I59)/I52","v":0.443075117370892},null,null,{"$f":"SUM(L58:L59)/L52","v":0.40778180431050925}]
[]
[null,null,{"$f":"\"Source: \"&F21&\", \"&I21&\" and \"&L21&\" American Community Survey Table B15002\"","v":"Source: 2008-2012, 2013-2017 and 2018-2022 American Community Survey Table B15002"}]
[]
[null,null,"As a result of changes in the American Community Survey, direct comparisons between the data should be made with caution."]
[null,null,"Data from the American Community Survey are estimates"]

{"sheet":"HousingCharacteristics","index":5,"n_rows":112,"n_cols":16,"rows_kept":112,"cut":false,"hidden":true,"merged":[[29,14,29,15],[68,9,68,11],[68,12,68,13],[68,14,68,15],[85,14,85,15],[29,2,29,4],[29,5,29,7],[29,8,29,10],[85,2,85,4],[85,6,85,8],[85,10,85,12],[68,3,68,5],[68,6,68,8],[29,11,29,12]]}
[]
[null,{"$f":"CntyDataLink!$A35","v":"Wolfeboro"}]
[]
[null,"HOUSING CHARACTERISTICS"]
[]
[]
[]
[]
[]
[]
[]
[]
[]
[]
[]
[]
[]
[]
[]
[]
[]
[]
[]
[]
[]
[]
[null,null,null,{"$f":"\"Source:  \"& \" \"&D69&\", \"&G69&\" and \"&J69& \" American Community Survey Table B25004, B25024; B25032\"","v":"Source:   2008-2012, 2013-2017 and 2018-2022 American Community Survey Table B25004, B25024; B25032"}]
[null,"Units by Tenure & Vacancy"]
[]
[null,null,"2008-2012",null,null,"2013-2017",null,null,"2018-2022",null,null,"Percent Change",null,null,"Statistically Significant Change"]
[null,null,"Estimate","Margin of Error","%","Estimate","Margin of Error","%","Estimate","Margin of Error","%","2012-2022","2017-2022",null,{"$f":"L31","v":"2012-2022"},{"$f":"M31","v":"2017-2022"}]
[null,"Total Units",{"$f":"CntyDataLinkPrior10YearEstimate!$B$108","v":4182},{"$f":"CntyDataLinkPrior5YearEstimates!$C$108","v":248},null,{"$f":"CntyDataLinkPrior5YearEstimates!$B$108","v":4758},{"$f":"CntyDataLinkPrior5YearEstimates!$C$108","v":248},null,{"$f":"CntyDataLink!$B$108","v":4285},{"$f":"CntyDataLink!$C$108","v":287},null,{"$f":"IF(I32=\"-\",\"-\",(I32-C32)/C32)","v":2.4629363940698229E-2},{"$f":"IF(I32=\"-\",\"-\",(I32-F32)/F32)","v":-9.9411517444304334E-2},null,{"$f":"StatisticallySignificantCalcs!$A62","v":"N"},{"$f":"StatisticallySignificantCalcs!$J62","v":"Y"}]
[null,"Occupied Units",{"$f":"CntyDataLinkPrior10YearEstimate!$D$108","v":2590},{"$f":"CntyDataLinkPrior5YearEstimates!$E$108","v":210},{"$f":"ROUND(C33/C32,2)*100&\"% of Total\"","v":"62% of Total"},{"$f":"CntyDataLinkPrior5YearEstimates!$D$108","v":2935},{"$f":"CntyDataLinkPrior5YearEstimates!$E$108","v":210},{"$f":"ROUND(F33/F32,2)*100&\"% of Total\"","v":"62% of Total"},{"$f":"CntyDataLink!$D$108","v":2787},{"$f":"CntyDataLink!$E$108","v":260},{"$f":"ROUND(I33/I32,2)*100&\"% of Total\"","v":"65% of Total"},{"$f":"IF(I33=\"-\",\"-\",(I33-C33)/C33)","v":7.6061776061776068E-2},{"$f":"IF(I33=\"-\",\"-\",(I33-F33)/F33)","v":-5.0425894378194211E-2},null,{"$f":"StatisticallySignificantCalcs!$A63","v":"N"},{"$f":"StatisticallySignificantCalcs!$J63","v":"Y"}]
[null,"Owner Occupied",{"$f":"CntyDataLinkPrior10YearEstimate!$F$108","v":2165},{"$f":"CntyDataLinkPrior5YearEstimates!$G$108","v":218},{"$f":"ROUND(C34/C33,2)*100&\"% of Occ.\"","v":"84% of Occ."},{"$f":"CntyDataLinkPrior5YearEstimates!$F$108","v":2302},{"$f":"CntyDataLinkPrior5YearEstimates!$G$108","v":218},{"$f":"ROUND(F34/F33,2)*100&\"% of Occ.\"","v":"78% of Occ."},{"$f":"CntyDataLink!$F$108","v":2165},{"$f":"CntyDataLink!$G$108","v":270},{"$f":"ROUND(I34/I33,2)*100&\"% of Occ.\"","v":"78% of Occ."},{"$f":"IF(I34=\"-\",\"-\",(I34-C34)/C34)","v":0},-5.9513466550825372E-2,null,{"$f":"StatisticallySignificantCalcs!$A64","v":"N"},{"$f":"StatisticallySignificantCalcs!$J64","v":"Y"}]
[null,"Renter Occupied",{"$f":"CntyDataLinkPrior10YearEstimate!$H$108","v":425},{"$f":"CntyDataLinkPrior5YearEstimates!$I$108","v":207},{"$f":"ROUND(C35/C33,2)*100&\"% of Occ.\"","v":"16% of Occ."},{"$f":"CntyDataLinkPrior5YearEstimates!$H$108","v":633},{"$f":"CntyDataLinkPrior5YearEstimates!$I$108","v":207},{"$f":"ROUND(F35/F33,2)*100&\"% of Occ.\"","v":"22% of Occ."},{"$f":"CntyDataLink!$H$108","v":622},{"$f":"CntyDataLink!$I$108","v":231},{"$f":"ROUND(I35/I33,2)*100&\"% of Occ.\"","v":"22% of Occ."},{"$f":"IF(I35=\"-\",\"-\",(I35-C35)/C35)","v":0.46352941176470586},-1.7377567140600316E-2,null,{"$f":"StatisticallySignificantCalcs!$A65","v":"N"},{"$f":"StatisticallySignificantCalcs!$J65","v":"Y"}]
[null,"Vacant Units",{"$f":"CntyDataLinkPrior10YearEstimate!$J$108","v":1592},{"$f":"CntyDataLinkPrior5YearEstimates!$K$108","v":249},{"$f":"ROUND(C36/C$32,2)*100&\"% of Total\"","v":"38% of Total"},{"$f":"CntyDataLinkPrior5YearEstimates!$J$108","v":1823},{"$f":"CntyDataLinkPrior5YearEstimates!$K$108","v":249},{"$f":"ROUND(F36/F32,2)*100&\"% of Total\"","v":"38% of Total"},{"$f":"CntyDataLink!$J$108","v":1498},{"$f":"CntyDataLink!$K$108","v":272},{"$f":"ROUND(I36/I32,2)*100&\"% of Total\"","v":"35% of Total"},{"$f":"IF(I36=\"-\",I36,VALUE((I36-C36)/C36))","v":-5.9045226130653265E-2},-0.17827756445419637,null,{"$f":"StatisticallySignificantCalcs!$A66","v":"N"},{"$f":"StatisticallySignificantCalcs!$J66","v":"Y"}]
[null,"Vacant For Sale",{"$f":"CntyDataLinkPrior10YearEstimate!$P$108","v":101},{"$f":"CntyDataLinkPrior5YearEstimates!$Q$108","v":93},{"$f":"ROUND(C37/(C$36),3)*100&\"% Vac.\"","v":"6.3% Vac."},{"$f":"CntyDataLinkPrior5YearEstimates!$P$108","v":96},{"$f":"CntyDataLinkPrior5YearEstimates!$Q$108","v":93},{"$f":"ROUND(F37/(F$36),3)*100&\"% Vac.\"","v":"5.3% Vac."},{"$f":"CntyDataLink!$P$108","v":54},{"$f":"CntyDataLink!$Q$108","v":86},{"$f":"ROUND(I37/(I$36),3)*100&\"% Vac.\"","v":"3.6% Vac."},{"$f":"IF(I37=\"-\",I37,VALUE((I37-C37)/C37))","v":-0.46534653465346537},-0.4375,null,{"$f":"StatisticallySignificantCalcs!$A67","v":"N"},{"$f":"StatisticallySignificantCalcs!$J67","v":"N"}]
[null,"Vacant For Rent",{"$f":"CntyDataLinkPrior10YearEstimate!$L$108","v":87},{"$f":"CntyDataLinkPrior5YearEstimates!$M$108","v":72},{"$f":"ROUND(C38/(C$36),3)*100&\"% Vac.\"","v":"5.5% Vac."},{"$f":"CntyDataLinkPrior5YearEstimates!$L$108","v":53},{"$f":"CntyDataLinkPrior5YearEstimates!$M$108","v":72},{"$f":"ROUND(F38/(F$36),3)*100&\"% Vac.\"","v":"2.9% Vac."},{"$f":"CntyDataLink!$L$108","v":0},{"$f":"CntyDataLink!$M$108","v":17},{"$f":"ROUND(I38/(I$36),3)*100&\"% Vac.\"","v":"0% Vac."},{"$f":"IF(I38=\"-\",I38,VALUE((I38-C38)/C38))","v":-1},-1,null,{"$f":"StatisticallySignificantCalcs!$A68","v":"Y"},{"$f":"StatisticallySignificantCalcs!$J68","v":"N"}]
[null,"Vacant Seasonal",{"$f":"CntyDataLinkPrior10YearEstimate!$T$108","v":1225},{"$f":"CntyDataLinkPrior5YearEstimates!$U$108","v":244},{"$f":"ROUND(C39/(C$36),3)*100&\"% Vac.\"","v":"76.9% Vac."},{"$f":"CntyDataLinkPrior5YearEstimates!$T$108","v":1337},{"$f":"CntyDataLinkPrior5YearEstimates!$U$108","v":244},{"$f":"ROUND(F39/(F$36),3)*100&\"% Vac.\"","v":"73.3% Vac."},{"$f":"CntyDataLink!$T$108","v":1375},{"$f":"CntyDataLink!$U$108","v":251},{"$f":"ROUND(I39/(I$36),3)*100&\"% Vac.\"","v":"91.8% Vac."},{"$f":"IF(I39=\"-\",I39,VALUE((I39-C39)/C39))","v":0.12244897959183673},2.8421839940164548E-2,null,{"$f":"StatisticallySignificantCalcs!$A69","v":"N"},{"$f":"StatisticallySignificantCalcs!$J69","v":"Y"}]
[]
[null,"Data from the American Community Survey are estimates"]
[]
[]
[]
[]
[]
[]
[]
[]
[]
[]
[]
[]
[]
[]
[]
[]
[]
[]
[]
[]
[]
[]
[]
[null,null,null,{"$f":"\"Source: \"& \" \"&D69&\", \"&G69&\" and \"&J69& \"  American Community Survey Table B25024; B25032\"","v":"Source:  2008-2012, 2013-2017 and 2018-2022  American Community Survey Table B25024; B25032"}]
[]
[null,null,"Units by Type"]
[]
[null,null,null,{"$f":"C30","v":"2008-2012"},null,null,{"$f":"F30","v":"2013-2017"},null,null,{"$f":"I30","v":"2018-2022"},null,null,"Percent Change",null,"Statistically Significant Change"]
[null,null,null,"Estimate","Margin of Error","% of Total","Estimate","Margin of Error","% of Total","Estimate","Margin of Error","% of Total",{"$f":"L31","v":"2012-2022"},{"$f":"M31","v":"2017-2022"},{"$f":"O31","v":"2012-2022"},{"$f":"P31","v":"2017-2022"}]
[null,null,"Total Units",{"$f":"CntyDataLinkPrior10YearEstimate!$B$108","v":4182},{"$f":"CntyDataLinkPrior10YearEstimate!$C$108","v":237},null,{"$f":"CntyDataLinkPrior5YearEstimates!$B$108","v":4758},{"$f":"CntyDataLinkPrior5YearEstimates!$C$108","v":248},null,{"$f":"CntyDataLink!$B$108","v":4285},{"$f":"CntyDataLink!$C$108","v":287},null,null,null,{"$f":"StatisticallySignificantCalcs!$A70","v":"N"},{"$f":"StatisticallySignificantCalcs!$J70","v":"Y"}]
[null,null,"Single Family Units",{"$f":"CntyDataLinkPrior10YearEstimate!$AT$108","v":3187},{"$f":"CntyDataLinkPrior10YearEstimate!$AU$108","v":267},{"$f":"IF(D72=\"-\",\"-\",($D$72/$D$71))","v":0.76207556193208992},{"$f":"CntyDataLinkPrior5YearEstimates!$AT$108","v":3636},{"$f":"CntyDataLinkPrior5YearEstimates!$AU$108","v":321},{"$f":"IF(G72=\"-\",\"-\",($G$72/$G$71))","v":0.76418663303909207},{"$f":"CntyDataLink!$AT$108","v":3434},{"$f":"CntyDataLink!$AU$108","v":374},{"$f":"IF(J72=\"-\",\"-\",($J$72/$J$71))","v":0.80140023337222865},{"$f":"IF(J72=\"-\",\"-\",($J72-$D72)/$D72)","v":7.7502353310323194E-2},{"$f":"IF(J72=\"-\",\"-\",($J72-$G72)/$G72)","v":-5.5555555555555552E-2},{"$f":"StatisticallySignificantCalcs!$A71","v":"N"},{"$f":"StatisticallySignificantCalcs!$J71","v":"N"}]
[null,null,"SF Owner Occ.",{"$f":"CntyDataLinkPrior10YearEstimate!$AF$108","v":1963},{"$f":"CntyDataLinkPrior10YearEstimate!$AG$108","v":189},null,{"$f":"CntyDataLinkPrior5YearEstimates!$AF$108","v":2116},{"$f":"CntyDataLinkPrior5YearEstimates!$AG$108","v":219},null,{"$f":"CntyDataLink!$AF$108","v":1801},{"$f":"CntyDataLink!$AG$108","v":283},null,null,null,{"$f":"StatisticallySignificantCalcs!$A72","v":"N"},{"$f":"StatisticallySignificantCalcs!$J72","v":"N"}]
[null,null,"SF Renter Occ.",{"$f":"CntyDataLinkPrior10YearEstimate!$AN$108","v":226},{"$f":"CntyDataLinkPrior10YearEstimate!$AO$108","v":121},null,{"$f":"CntyDataLinkPrior5YearEstimates!$AN$108","v":211},{"$f":"CntyDataLinkPrior5YearEstimates!$AO$108","v":148},null,{"$f":"CntyDataLink!$AN$108","v":257},{"$f":"CntyDataLink!$AO$108","v":130},null,null,null,{"$f":"StatisticallySignificantCalcs!$A73","v":"N"},{"$f":"StatisticallySignificantCalcs!$J73","v":"N"}]
[null,null,"Multi-family Units",{"$f":"CntyDataLinkPrior10YearEstimate!$AV$108","v":835},{"$f":"CntyDataLinkPrior10YearEstimate!$AW$108","v":299.79993328885183},{"$f":"IF(D75=\"-\",\"-\",$D$75/$D$71)","v":0.19966523194643712},{"$f":"CntyDataLinkPrior5YearEstimates!$AV$108","v":916},{"$f":"CntyDataLinkPrior5YearEstimates!$AW$108","v":270.51062825700581},{"$f":"IF(G75=\"-\",\"-\",$G$75/$G$71)","v":0.19251786464901219},{"$f":"CntyDataLink!$AV$108","v":634},{"$f":"CntyDataLink!$AW$108","v":254.59968578142431},{"$f":"IF(J75=\"-\",\"-\",$J$75/$J$71)","v":0.14795799299883314},{"$f":"IF(J75=\"-\",\"-\",($J75-$D75)/$D75)","v":-0.2407185628742515},{"$f":"IF(J75=\"-\",\"-\",($J75-$G75)/$G75)","v":-0.30786026200873362},{"$f":"StatisticallySignificantCalcs!$A74","v":"N"},{"$f":"StatisticallySignificantCalcs!$J74","v":"N"}]
[null,null,"MF Owner Occ.",{"$f":"CntyDataLinkPrior10YearEstimate!$AH$108","v":115},{"$f":"CntyDataLinkPrior10YearEstimate!$AI$108","v":74.256312862947894},null,{"$f":"CntyDataLinkPrior5YearEstimates!$AH$108","v":155},{"$f":"CntyDataLinkPrior5YearEstimates!$AI$108","v":111.10805551354051},null,{"$f":"CntyDataLink!$AH$108","v":203},{"$f":"CntyDataLink!$AI$108","v":109.45318634009702},null,null,null,{"$f":"StatisticallySignificantCalcs!$A75","v":"N"},{"$f":"StatisticallySignificantCalcs!$J75","v":"N"}]
[null,null,"MF Renter Occ.",{"$f":"CntyDataLinkPrior10YearEstimate!$AP$108","v":199},{"$f":"CntyDataLinkPrior10YearEstimate!$AQ$108","v":139.27670300520472},null,{"$f":"CntyDataLinkPrior5YearEstimates!$AP$108","v":422},{"$f":"CntyDataLinkPrior5YearEstimates!$AQ$108","v":217.51551668789057},null,{"$f":"CntyDataLink!$AP$108","v":344},{"$f":"CntyDataLink!$AQ$108","v":200.71870864471003},null,null,null,{"$f":"StatisticallySignificantCalcs!$A76","v":"N"},{"$f":"StatisticallySignificantCalcs!$J76","v":"N"}]
[null,null,"Mobile Home & Other",{"$f":"CntyDataLinkPrior10YearEstimate!$AX$108","v":160},{"$f":"CntyDataLinkPrior10YearEstimate!$AY$108","v":103.24727599312246},{"$f":"IF(D78=\"-\",\"-\",($D$78/$D$71))","v":3.8259206121472981E-2},{"$f":"CntyDataLinkPrior5YearEstimates!$AX$108","v":206},{"$f":"CntyDataLinkPrior5YearEstimates!$AY$108","v":134.9518432626987},{"$f":"IF(G78=\"-\",\"-\",($G$78/$G$71))","v":4.3295502311895752E-2},{"$f":"CntyDataLink!$AX$108","v":217},{"$f":"CntyDataLink!$AY$108","v":144.00694427700353},{"$f":"IF(J78=\"-\",\"-\",($J$78/$J$71))","v":5.064177362893816E-2},{"$f":"IF(J78=\"-\",\"-\",($J78-$D78)/$D78)","v":0.35625000000000001},{"$f":"IF(J78=\"-\",\"-\",($J78-$G78)/$G78)","v":5.3398058252427182E-2},{"$f":"StatisticallySignificantCalcs!$A77","v":"N"},{"$f":"StatisticallySignificantCalcs!$J77","v":"N"}]
[]
[null,"Data from the American Community Survey are estimates"]
[]
[]
[null,"Units by Number of Bedrooms "]
[null,null,null,{"$f":"\"Source: \"& \" \"&D69&\", \"&G69&\" and \"&J69& \" American Community Survey Table B25041\"","v":"Source:  2008-2012, 2013-2017 and 2018-2022 American Community Survey Table B25041"}]
[]
[null,null,{"$f":"C30","v":"2008-2012"},null,null,null,{"$f":"F30","v":"2013-2017"},null,null,null,"2018-2022",null,null,null,"Statistically Significant Change"]
[null,"Bedrooms","Estimate","Margin of Error","% of Total",null,"Estimate","Margin of Error","% of Total",null,"Estimate","Margin of Error","% of Total",null,{"$f":"O31","v":"2012-2022"},{"$f":"P31","v":"2017-2022"}]
[null,"No Bedrooms",{"$f":"CntyDataLinkPrior10YearEstimate!$BR$108","v":59},{"$f":"CntyDataLinkPrior10YearEstimate!$BS$108","v":83},{"$f":"C88/SUM($C$88:$C$92)","v":1.3944693925785866E-2},null,{"$f":"CntyDataLinkPrior5YearEstimates!$BR$108","v":153},{"$f":"CntyDataLinkPrior5YearEstimates!$BS$108","v":102},{"$f":"G88/SUM($G$88:$G$92)","v":3.3693019158775601E-2},null,{"$f":"CntyDataLink!$BT$108","v":122},{"$f":"CntyDataLink!$BU$108","v":88},{"$f":"K88/SUM($K$88:$K$92)","v":2.8471411901983663E-2},null,{"$f":"StatisticallySignificantCalcs!$A78","v":"N"},{"$f":"StatisticallySignificantCalcs!$J78","v":"N"}]
[null,"1 Bedroom",{"$f":"CntyDataLinkPrior10YearEstimate!$BT$108","v":523},{"$f":"CntyDataLinkPrior10YearEstimate!$BU$108","v":221},{"$f":"C89/SUM($C$88:$C$92)","v":0.12361143937603404},null,{"$f":"CntyDataLinkPrior5YearEstimates!$BT$108","v":417},{"$f":"CntyDataLinkPrior5YearEstimates!$BU$108","v":155},{"$f":"G89/SUM($G$88:$G$92)","v":9.1829993393525655E-2},null,{"$f":"CntyDataLink!$BV$108","v":287},{"$f":"CntyDataLink!$BW$108","v":147},{"$f":"K89/SUM($K$88:$K$92)","v":6.6977829638273048E-2},null,{"$f":"StatisticallySignificantCalcs!$A79","v":"N"},{"$f":"StatisticallySignificantCalcs!$J79","v":"N"}]
[null,"2 Bedrooms",{"$f":"CntyDataLinkPrior10YearEstimate!$BV$108","v":943},{"$f":"CntyDataLinkPrior10YearEstimate!$BW$108","v":268},{"$f":"C90/SUM($C$88:$C$92)","v":0.22287875206806901},null,{"$f":"CntyDataLinkPrior5YearEstimates!$BV$108","v":1435},{"$f":"CntyDataLinkPrior5YearEstimates!$BW$108","v":320},{"$f":"G90/SUM($G$88:$G$92)","v":0.31600968949570579},null,{"$f":"CntyDataLink!$BX$108","v":1073},{"$f":"CntyDataLink!$BY$108","v":267},{"$f":"K90/SUM($K$88:$K$92)","v":0.25040840140023335},null,{"$f":"StatisticallySignificantCalcs!$A80","v":"N"},{"$f":"StatisticallySignificantCalcs!$J80","v":"N"}]
[null,"3 Bedrooms",{"$f":"CntyDataLinkPrior10YearEstimate!$BX$108","v":1743},{"$f":"CntyDataLinkPrior10YearEstimate!$BY$108","v":300},{"$f":"C91/SUM($C$88:$C$92)","v":0.41195934767194514},null,{"$f":"CntyDataLinkPrior5YearEstimates!$BX$108","v":1799},{"$f":"CntyDataLinkPrior5YearEstimates!$BY$108","v":319},{"$f":"G91/SUM($G$88:$G$92)","v":0.39616824487998237},null,{"$f":"CntyDataLink!$BZ$108","v":1883},{"$f":"CntyDataLink!$CA$108","v":289},{"$f":"K91/SUM($K$88:$K$92)","v":0.43943990665110849},null,{"$f":"StatisticallySignificantCalcs!$A81","v":"N"},{"$f":"StatisticallySignificantCalcs!$J81","v":"N"}]
[null,"4+ Bedrooms",{"$f":"CntyDataLinkPrior10YearEstimate!$BZ$108","v":963},{"$f":"CntyDataLinkPrior10YearEstimate!$CA$108","v":227.06827167175956},{"$f":"C92/SUM($C$88:$C$92)","v":0.22760576695816592},null,{"$f":"CntyDataLinkPrior5YearEstimates!$BZ$108","v":737},{"$f":"CntyDataLinkPrior5YearEstimates!$CA$108","v":247},{"$f":"G92/SUM($G$88:$G$92)","v":0.16229905307201056},null,{"$f":"CntyDataLink!$CB$108","v":920},{"$f":"CntyDataLink!$CC$108","v":281.44093518889537},{"$f":"K92/SUM($K$88:$K$92)","v":0.21470245040840141},null,{"$f":"StatisticallySignificantCalcs!$A82","v":"N"},{"$f":"StatisticallySignificantCalcs!$J82","v":"N"}]
[]
[]
[null,"Data from the American Community Survey are estimates"]
[]
[null,"Units by Year Built   "]
[null,{"$f":"\"Source: \"&K86& \" American Community Survey Table B25034\"","v":"Source: 2018-2022 American Community Survey Table B25034"}]
[]
[null,null,null,"Year Built",null,null,"Units  ",null,"% of Total",null,"Margin of Error"]
[null,null,null,null,null,"2020 or later",{"$f":"CntyDataLink!$AZ$108","v":0},null,{"$f":"G101/SUM($G$101:$G$110)","v":0},null,{"$f":"CntyDataLink!$BA$108","v":17}]
[null,null,null,null,null,"2010 through 2019",{"$f":"CntyDataLink!$BB$108","v":138},null,3.2205367561260211E-2,null,{"$f":"CntyDataLink!$BC$108","v":84}]
[null,null,null,null,null,"2000 through 2009",{"$f":"CntyDataLink!$BD$108","v":526},null,0.12275379229871645,null,{"$f":"CntyDataLink!$BE$108","v":192}]
[null,null,null,null,null,"1990 through 1999",{"$f":"CntyDataLink!$BF$108","v":681},null,0.15892648774795801,null,{"$f":"CntyDataLink!$BG$108","v":234}]
[null,null,null,null,null,"1980 through 1989",{"$f":"CntyDataLink!$BH$108","v":1013},null,0.23640606767794634,null,{"$f":"CntyDataLink!$BI$108","v":263}]
[null,null,null,null,null,"1970 through 1979",{"$f":"CntyDataLink!$BJ$108","v":458},null,0.10688448074679113,null,{"$f":"CntyDataLink!$BK$108","v":218}]
[null,null,null,null,null,"1960 through 1969",{"$f":"CntyDataLink!$BL$108","v":312},null,7.2812135355892649E-2,null,{"$f":"CntyDataLink!$BM$108","v":138}]
[null,null,null,null,null,"1950 through 1959",{"$f":"CntyDataLink!$BN$108","v":112},null,2.6137689614935823E-2,null,{"$f":"CntyDataLink!$BO$108","v":96}]
[null,null,null,null,null,"1940 through 1949",{"$f":"CntyDataLink!$BP$108","v":218},null,5.0875145857642939E-2,null,{"$f":"CntyDataLink!$BQ$108","v":135}]
[null,null,null,null,null,"1939 and earlier",{"$f":"CntyDataLink!$BR$108","v":827},null,0.19299883313885646,null,{"$f":"CntyDataLink!$BS$108","v":276}]
[]
[null,"Data from the American Community Survey are estimates"]

{"sheet":"CntyDataLink","index":6,"n_rows":167,"n_cols":343,"rows_kept":167,"cut":false,"hidden":true,"merged":[]}
[1,{"$f":"A1+1","v":2},{"$f":"B1+1","v":3},4,5,6,7,8,9,10,11,12,13,14,15,{"$f":"O1+1","v":16},17,18,19,20,21,22,23,24,25,26,27,28,29,30,31,32,33,34,35,36,37,38,39,40,41,42,43,44,45,46,47,48,49,50,51,52,53,54,55,56,57,58,59,60,61,62,63,64,65,66,{"$f":"BN1+1","v":67},68,69,70,71,72,73,74,75,76,77,78,79,80,81,82,83,84,85,86,87,88,89,90,91,92,93,94,95,96,97,98,99,100,101,102,103,104,105,106,107,108,109,110,111,112,113,114,115,116,117,118,119,120,121,122,123,124,125,126,127,128,129,130,{"$f":"DZ1+1","v":131},132,133,134,135,136,137,138,139,140,141,142,143,144,145,146,147,148,149,150,151,152,153,154,155,156,157,158,159,160,161,162,163,164,165,166,167,168,169,170,171,172,173,174,175,176,177,178,179,180,181,182,183,184,185,186,187,188,189,190,191,192,193,194,{"$f":"GL1+1","v":195},196,197,198,199,200,201,202,203,204,205,206,207,208,209,210,211,212,213,214,215,216,217,218,219,220,221,222,223,224,225,226,227,228,229,230,231,232,233,234,235,236,237,238,239,240,241,242,243,244,245,246,247,248,249,250,251,252,253,254,255]
[]
["Census 1990 Data -           Query Name:  DPCnty90Census"]
["TownName","Cnty_Code","Census_Cnty_Code","LandAcres","WaterAcres","HousingUnits90Cen","Persons90Cen","Families90Cen","Households90cen","MalePop90cen","FemalePop90cen","WhitePop","BlackPop","AmerIndianPop","AsianPIPop","OtherRacePop","HispanicOrPop","AgeUnder15_90cen","Age15to24_90cen","Age25to34_90cen","Age35to44_90cen","Age45to54_90cen","Age55to64_90cen","Age65to74_90cen","Age75andOver_90cen","PersonsInHH90cen","PersonsInFamHH90cen","PersonsInGC","PersonsPerHH90cen","PersonsPerFam90Cen","SinglePersonHH90cen","MarriedCoupleHH90cen","SingleParentHH90cen","NonFamilyHH90cen","TotalHousingUnits","OccupiedHousingUnits","VacantHousingUnits","OwnerOccHU","RenterOccHU","VacantForRent90","VacantForSale90","VacantSeasonalRec","SingFamHU90cen","MultiFamHU90cen","MobileHom90cen","SingFamOwnHU90cen","MultiFamOwnHU90cen","MobileHomOwnHU90cen","SingFamRntrHU90cen","MultiFamRntrHU90cen","MobileHomRntrHU90cen","HU<5yrs90cen","HU5to20yrs90cen","HU20to50yrs90cen","HU>50yrs90cen","Units0Bedroom90cen","Units1Bedroom90cen","Units2Bedroom90cen","Units3Bedroom90cen","Units4+Bedroom90cen","HI<5K","HI5Kto10K","HI10Kto15K","HI15Kto25K","HI25Kto35K","HI35Kto50K","HI50Kto75K","HI75Kto100K","HI>100K","MedHI","HH<25HI<5K","HH<25HI5Kto10K","HH<25HI10Kto15K","HH<25HI15Kto25K","HH<25HI25Kto35K","HH<25HI35Kto50K","HH<25HI50Kto75K","HH<25HI75Kto100K","HH<25HI>100K","HH25to34HI<5K","HH25to34HI5Kto10K","HH25to34HI10Kto15K","HH25to34HI15Kto25K","HH25to34HI25Kto35K","HH25to34HI35Kto50K","HH25to34HI50Kto75K","HH25to34HI75Kto100K","HH25to34HI>100K","HH35to44HI<5K","HH35to44HI5Kto10K","HH35to44HI10Kto15K","HH35to44HI15Kto25K","HH35to44HI25Kto35K","HH35to44HI35Kto50K","HH35to44HI50Kto75K","HH35to44HI75Kto100K","HH35to44HI>100K","HH45to54HI<5K","HH45to54HI5Kto10K","HH45to54HI10Kto15K","HH45to54HI15Kto25K","HH45to54HI25Kto35K","HH45to54HI35Kto50K","HH45to54HI50Kto75K","HH45to54HI75Kto100K","HH45to54HI>100K","HH55to64HI<5K","HH55to64HI5Kto10K","HH55to64HI10Kto15K","HH55to64HI15Kto25K","HH55to64HI25Kto35K","HH55to64HI35Kto50K","HH55to64HI50Kto75K","HH55to64HI75Kto100K","HH55to64HI>100K","HH65to74HI<5K","HH65to74HI5Kto10K","HH65to74HI10Kto15K","HH65to74HI15Kto25K","HH65to74HI25Kto35K","HH65to74HI35Kto50K","HH65to74HI50Kto75K","HH65to74HI75Kto100K","HH65to74HI>100K","HH>75HI<5K","HH>75HI5Kto10K","HH>75HI10Kto15K","HH>75HI15Kto25K","HH>75HI25Kto35K","HH>75HI35Kto50K","HH>75HI50Kto75K","HH>75HI75Kto100K","HH>75HI>100K","SchoolEnrollment1thru12","Pop25andOver","HSGradorHigher","CollGradorHigher","NativePop","ForeignBornPop","BornStateOfRes","NativePop2","ForeignBornPop2","DroveAlone","CarPooled","PublicTranspt","Walked","OtherMeans","WorkedAtHome","HHInc<10K","HHInc10to15K","HHInc15to25K","HHInc25to35K","HHInc35to50K","HHInc50to75K","HHInc75to100K","HHInc100to150K","HHInc>150K"]
[{"$f":"VLOOKUP(DropDownList!$A$24,CntyQuery!$A$4:$FA$22,A1)","v":"Wolfeboro"},{"$f":"VLOOKUP(DropDownList!$A$24,CntyQuery!$A$4:$FA$22,B$1)","v":3095},{"$f":"VLOOKUP(DropDownList!$A$24,CntyQuery!$A$4:$FA$22,C$1)","v":"86420"},{"$f":"VLOOKUP(DropDownList!$A$24,CntyQuery!$A$4:$FA$22,D$1)","v":30940.29},{"$f":"VLOOKUP(DropDownList!$A$24,CntyQuery!$A$4:$FA$22,E$1)","v":6465.23},{"$f":"VLOOKUP(DropDownList!$A$24,CntyQuery!$A$4:$FA$22,F$1)","v":3631},{"$f":"VLOOKUP(DropDownList!$A$24,CntyQuery!$A$4:$FA$22,G$1)","v":4807},{"$f":"VLOOKUP(DropDownList!$A$24,CntyQuery!$A$4:$FA$22,H$1)","v":1375},{"$f":"VLOOKUP(DropDownList!$A$24,CntyQuery!$A$4:$FA$22,I$1)","v":2017},{"$f":"VLOOKUP(DropDownList!$A$24,CntyQuery!$A$4:$FA$22,J$1)","v":2240},{"$f":"VLOOKUP(DropDownList!$A$24,CntyQuery!$A$4:$FA$22,K$1)","v":2567},{"$f":"VLOOKUP(DropDownList!$A$24,CntyQuery!$A$4:$FA$22,L$1)","v":4796},{"$f":"VLOOKUP(DropDownList!$A$24,CntyQuery!$A$4:$FA$22,M$1)","v":2},{"$f":"VLOOKUP(DropDownList!$A$24,CntyQuery!$A$4:$FA$22,N$1)","v":3},{"$f":"VLOOKUP(DropDownList!$A$24,CntyQuery!$A$4:$FA$22,O$1)","v":6},{"$f":"VLOOKUP(DropDownList!$A$24,CntyQuery!$A$4:$FA$22,P$1)","v":0},{"$f":"VLOOKUP(DropDownList!$A$24,CntyQuery!$A$4:$FA$22,Q$1)","v":25},{"$f":"VLOOKUP(DropDownList!$A$24,CntyQuery!$A$4:$FA$22,R$1)","v":897},{"$f":"VLOOKUP(DropDownList!$A$24,CntyQuery!$A$4:$FA$22,S$1)","v":421},{"$f":"VLOOKUP(DropDownList!$A$24,CntyQuery!$A$4:$FA$22,T$1)","v":648},{"$f":"VLOOKUP(DropDownList!$A$24,CntyQuery!$A$4:$FA$22,U$1)","v":708},{"$f":"VLOOKUP(DropDownList!$A$24,CntyQuery!$A$4:$FA$22,V$1)","v":467},{"$f":"VLOOKUP(DropDownList!$A$24,CntyQuery!$A$4:$FA$22,W$1)","v":572},{"$f":"VLOOKUP(DropDownList!$A$24,CntyQuery!$A$4:$FA$22,X$1)","v":577},{"$f":"VLOOKUP(DropDownList!$A$24,CntyQuery!$A$4:$FA$22,Y$1)","v":517},{"$f":"VLOOKUP(DropDownList!$A$24,CntyQuery!$A$4:$FA$22,Z$1)","v":4716},{"$f":"VLOOKUP(DropDownList!$A$24,CntyQuery!$A$4:$FA$22,AA$1)","v":3981},{"$f":"VLOOKUP(DropDownList!$A$24,CntyQuery!$A$4:$FA$22,AB$1)","v":91},{"$f":"VLOOKUP(DropDownList!$A$24,CntyQuery!$A$4:$FA$22,AC$1)","v":2.3381259295984136},{"$f":"VLOOKUP(DropDownList!$A$24,CntyQuery!$A$4:$FA$22,AD$1)","v":2.8952727272727272},{"$f":"VLOOKUP(DropDownList!$A$24,CntyQuery!$A$4:$FA$22,AE$1)","v":564},{"$f":"VLOOKUP(DropDownList!$A$24,CntyQuery!$A$4:$FA$22,AF$1)","v":1187},{"$f":"VLOOKUP(DropDownList!$A$24,CntyQuery!$A$4:$FA$22,AG$1)","v":188},{"$f":"VLOOKUP(DropDownList!$A$24,CntyQuery!$A$4:$FA$22,AH$1)","v":78},{"$f":"VLOOKUP(DropDownList!$A$24,CntyQuery!$A$4:$FA$22,AI$1)","v":3631},{"$f":"VLOOKUP(DropDownList!$A$24,CntyQuery!$A$4:$FA$22,AJ$1)","v":2017},{"$f":"VLOOKUP(DropDownList!$A$24,CntyQuery!$A$4:$FA$22,AK$1)","v":1614},{"$f":"VLOOKUP(DropDownList!$A$24,CntyQuery!$A$4:$FA$22,AL$1)","v":1482},{"$f":"VLOOKUP(DropDownList!$A$24,CntyQuery!$A$4:$FA$22,AM$1)","v":535},{"$f":"VLOOKUP(DropDownList!$A$24,CntyQuery!$A$4:$FA$22,AN$1)","v":77},{"$f":"VLOOKUP(DropDownList!$A$24,CntyQuery!$A$4:$FA$22,AO$1)","v":64},{"$f":"VLOOKUP(DropDownList!$A$24,CntyQuery!$A$4:$FA$22,AP$1)","v":1345},{"$f":"VLOOKUP(DropDownList!$A$24,CntyQuery!$A$4:$FA$22,AQ$1)","v":2716},{"$f":"VLOOKUP(DropDownList!$A$24,CntyQuery!$A$4:$FA$22,AR$1)","v":628},{"$f":"VLOOKUP(DropDownList!$A$24,CntyQuery!$A$4:$FA$22,AS$1)","v":287},{"$f":"VLOOKUP(DropDownList!$A$24,CntyQuery!$A$4:$FA$22,AT$1)","v":1296},{"$f":"VLOOKUP(DropDownList!$A$24,CntyQuery!$A$4:$FA$22,AU$1)","v":73},{"$f":"VLOOKUP(DropDownList!$A$24,CntyQuery!$A$4:$FA$22,AV$1)","v":287},{"$f":"VLOOKUP(DropDownList!$A$24,CntyQuery!$A$4:$FA$22,AW$1)","v":174},{"$f":"VLOOKUP(DropDownList!$A$24,CntyQuery!$A$4:$FA$22,AX$1)","v":314},{"$f":"VLOOKUP(DropDownList!$A$24,CntyQuery!$A$4:$FA$22,AY$1)","v":47},{"$f":"VLOOKUP(DropDownList!$A$24,CntyQuery!$A$4:$FA$22,AZ$1)","v":805},{"$f":"VLOOKUP(DropDownList!$A$24,CntyQuery!$A$4:$FA$22,BA$1)","v":907},{"$f":"VLOOKUP(DropDownList!$A$24,CntyQuery!$A$4:$FA$22,BB$1)","v":774},{"$f":"VLOOKUP(DropDownList!$A$24,CntyQuery!$A$4:$FA$22,BC$1)","v":1167},{"$f":"VLOOKUP(DropDownList!$A$24,CntyQuery!$A$4:$FA$22,BD$1)","v":39},{"$f":"VLOOKUP(DropDownList!$A$24,CntyQuery!$A$4:$FA$22,BE$1)","v":298},{"$f":"VLOOKUP(DropDownList!$A$24,CntyQuery!$A$4:$FA$22,BF$1)","v":1201},{"$f":"VLOOKUP(DropDownList!$A$24,CntyQuery!$A$4:$FA$22,BG$1)","v":1380},{"$f":"VLOOKUP(DropDownList!$A$24,CntyQuery!$A$4:$FA$22,BH$1)","v":735},{"$f":"VLOOKUP(DropDownList!$A$24,CntyQuery!$A$4:$FA$22,BI$1)","v":94},{"$f":"VLOOKUP(DropDownList!$A$24,CntyQuery!$A$4:$FA$22,BJ$1)","v":108},{"$f":"VLOOKUP(DropDownList!$A$24,CntyQuery!$A$4:$FA$22,BK$1)","v":202},{"$f":"VLOOKUP(DropDownList!$A$24,CntyQuery!$A$4:$FA$22,BL$1)","v":416},{"$f":"VLOOKUP(DropDownList!$A$24,CntyQuery!$A$4:$FA$22,BM$1)","v":389},{"$f":"VLOOKUP(DropDownList!$A$24,CntyQuery!$A$4:$FA$22,BN$1)","v":356},{"$f":"VLOOKUP(DropDownList!$A$24,CntyQuery!$A$4:$FA$22,BO$1)","v":297},{"$f":"VLOOKUP(DropDownList!$A$24,CntyQuery!$A$4:$FA$22,BP$1)","v":119},{"$f":"VLOOKUP(DropDownList!$A$24,CntyQuery!$A$4:$FA$22,BQ$1)","v":35},{"$f":"VLOOKUP(DropDownList!$A$24,CntyQuery!$A$4:$FA$22,BR$1)","v":29542},{"$f":"VLOOKUP(DropDownList!$A$24,CntyQuery!$A$4:$FA$22,BS$1)","v":0},{"$f":"VLOOKUP(DropDownList!$A$24,CntyQuery!$A$4:$FA$22,BT$1)","v":0},{"$f":"VLOOKUP(DropDownList!$A$24,CntyQuery!$A$4:$FA$22,BU$1)","v":0},{"$f":"VLOOKUP(DropDownList!$A$24,CntyQuery!$A$4:$FA$22,BV$1)","v":18},{"$f":"VLOOKUP(DropDownList!$A$24,CntyQuery!$A$4:$FA$22,BW$1)","v":7},{"$f":"VLOOKUP(DropDownList!$A$24,CntyQuery!$A$4:$FA$22,BX$1)","v":8},{"$f":"VLOOKUP(DropDownList!$A$24,CntyQuery!$A$4:$FA$22,BY$1)","v":0},{"$f":"VLOOKUP(DropDownList!$A$24,CntyQuery!$A$4:$FA$22,BZ$1)","v":0},{"$f":"VLOOKUP(DropDownList!$A$24,CntyQuery!$A$4:$FA$22,CA$1)","v":0},{"$f":"VLOOKUP(DropDownList!$A$24,CntyQuery!$A$4:$FA$22,CB$1)","v":0},{"$f":"VLOOKUP(DropDownList!$A$24,CntyQuery!$A$4:$FA$22,CC$1)","v":14},{"$f":"VLOOKUP(DropDownList!$A$24,CntyQuery!$A$4:$FA$22,CD$1)","v":15},{"$f":"VLOOKUP(DropDownList!$A$24,CntyQuery!$A$4:$FA$22,CE$1)","v":104},{"$f":"VLOOKUP(DropDownList!$A$24,CntyQuery!$A$4:$FA$22,CF$1)","v":85},{"$f":"VLOOKUP(DropDownList!$A$24,CntyQuery!$A$4:$FA$22,CG$1)","v":93},{"$f":"VLOOKUP(DropDownList!$A$24,CntyQuery!$A$4:$FA$22,CH$1)","v":40},{"$f":"VLOOKUP(DropDownList!$A$24,CntyQuery!$A$4:$FA$22,CI$1)","v":8},{"$f":"VLOOKUP(DropDownList!$A$24,CntyQuery!$A$4:$FA$22,CJ$1)","v":5},{"$f":"VLOOKUP(DropDownList!$A$24,CntyQuery!$A$4:$FA$22,CK$1)","v":17},{"$f":"VLOOKUP(DropDownList!$A$24,CntyQuery!$A$4:$FA$22,CL$1)","v":0},{"$f":"VLOOKUP(DropDownList!$A$24,CntyQuery!$A$4:$FA$22,CM$1)","v":27},{"$f":"VLOOKUP(DropDownList!$A$24,CntyQuery!$A$4:$FA$22,CN$1)","v":38},{"$f":"VLOOKUP(DropDownList!$A$24,CntyQuery!$A$4:$FA$22,CO$1)","v":69},{"$f":"VLOOKUP(DropDownList!$A$24,CntyQuery!$A$4:$FA$22,CP$1)","v":94},{"$f":"VLOOKUP(DropDownList!$A$24,CntyQuery!$A$4:$FA$22,CQ$1)","v":64},{"$f":"VLOOKUP(DropDownList!$A$24,CntyQuery!$A$4:$FA$22,CR$1)","v":57},{"$f":"VLOOKUP(DropDownList!$A$24,CntyQuery!$A$4:$FA$22,CS$1)","v":23},{"$f":"VLOOKUP(DropDownList!$A$24,CntyQuery!$A$4:$FA$22,CT$1)","v":20},{"$f":"VLOOKUP(DropDownList!$A$24,CntyQuery!$A$4:$FA$22,CU$1)","v":0},{"$f":"VLOOKUP(DropDownList!$A$24,CntyQuery!$A$4:$FA$22,CV$1)","v":16},{"$f":"VLOOKUP(DropDownList!$A$24,CntyQuery!$A$4:$FA$22,CW$1)","v":38},{"$f":"VLOOKUP(DropDownList!$A$24,CntyQuery!$A$4:$FA$22,CX$1)","v":49},{"$f":"VLOOKUP(DropDownList!$A$24,CntyQuery!$A$4:$FA$22,CY$1)","v":61},{"$f":"VLOOKUP(DropDownList!$A$24,CntyQuery!$A$4:$FA$22,CZ$1)","v":53},{"$f":"VLOOKUP(DropDownList!$A$24,CntyQuery!$A$4:$FA$22,DA$1)","v":9},{"$f":"VLOOKUP(DropDownList!$A$24,CntyQuery!$A$4:$FA$22,DB$1)","v":0},{"$f":"VLOOKUP(DropDownList!$A$24,CntyQuery!$A$4:$FA$22,DC$1)","v":7},{"$f":"VLOOKUP(DropDownList!$A$24,CntyQuery!$A$4:$FA$22,DD$1)","v":16},{"$f":"VLOOKUP(DropDownList!$A$24,CntyQuery!$A$4:$FA$22,DE$1)","v":18},{"$f":"VLOOKUP(DropDownList!$A$24,CntyQuery!$A$4:$FA$22,DF$1)","v":76},{"$f":"VLOOKUP(DropDownList!$A$24,CntyQuery!$A$4:$FA$22,DG$1)","v":71},{"$f":"VLOOKUP(DropDownList!$A$24,CntyQuery!$A$4:$FA$22,DH$1)","v":54},{"$f":"VLOOKUP(DropDownList!$A$24,CntyQuery!$A$4:$FA$22,DI$1)","v":32},{"$f":"VLOOKUP(DropDownList!$A$24,CntyQuery!$A$4:$FA$22,DJ$1)","v":39},{"$f":"VLOOKUP(DropDownList!$A$24,CntyQuery!$A$4:$FA$22,DK$1)","v":7},{"$f":"VLOOKUP(DropDownList!$A$24,CntyQuery!$A$4:$FA$22,DL$1)","v":7},{"$f":"VLOOKUP(DropDownList!$A$24,CntyQuery!$A$4:$FA$22,DM$1)","v":43},{"$f":"VLOOKUP(DropDownList!$A$24,CntyQuery!$A$4:$FA$22,DN$1)","v":65},{"$f":"VLOOKUP(DropDownList!$A$24,CntyQuery!$A$4:$FA$22,DO$1)","v":70},{"$f":"VLOOKUP(DropDownList!$A$24,CntyQuery!$A$4:$FA$22,DP$1)","v":80},{"$f":"VLOOKUP(DropDownList!$A$24,CntyQuery!$A$4:$FA$22,DQ$1)","v":32},{"$f":"VLOOKUP(DropDownList!$A$24,CntyQuery!$A$4:$FA$22,DR$1)","v":59},{"$f":"VLOOKUP(DropDownList!$A$24,CntyQuery!$A$4:$FA$22,DS$1)","v":6},{"$f":"VLOOKUP(DropDownList!$A$24,CntyQuery!$A$4:$FA$22,DT$1)","v":0},{"$f":"VLOOKUP(DropDownList!$A$24,CntyQuery!$A$4:$FA$22,DU$1)","v":43},{"$f":"VLOOKUP(DropDownList!$A$24,CntyQuery!$A$4:$FA$22,DV$1)","v":35},{"$f":"VLOOKUP(DropDownList!$A$24,CntyQuery!$A$4:$FA$22,DW$1)","v":61},{"$f":"VLOOKUP(DropDownList!$A$24,CntyQuery!$A$4:$FA$22,DX$1)","v":72},{"$f":"VLOOKUP(DropDownList!$A$24,CntyQuery!$A$4:$FA$22,DY$1)","v":28},{"$f":"VLOOKUP(DropDownList!$A$24,CntyQuery!$A$4:$FA$22,DZ$1)","v":14},{"$f":"VLOOKUP(DropDownList!$A$24,CntyQuery!$A$4:$FA$22,EA$1)","v":49},{"$f":"VLOOKUP(DropDownList!$A$24,CntyQuery!$A$4:$FA$22,EB$1)","v":0},{"$f":"VLOOKUP(DropDownList!$A$24,CntyQuery!$A$4:$FA$22,EC$1)","v":0},{"$f":"VLOOKUP(DropDownList!$A$24,CntyQuery!$A$4:$FA$22,ED$1)","v":696},{"$f":"VLOOKUP(DropDownList!$A$24,CntyQuery!$A$4:$FA$22,EE$1)","v":3503},{"$f":"VLOOKUP(DropDownList!$A$24,CntyQuery!$A$4:$FA$22,EF$1)","v":2972},{"$f":"VLOOKUP(DropDownList!$A$24,CntyQuery!$A$4:$FA$22,EG$1)","v":1022},{"$f":"VLOOKUP(DropDownList!$A$24,CntyQuery!$A$4:$FA$22,EH$1)","v":4584},{"$f":"VLOOKUP(DropDownList!$A$24,CntyQuery!$A$4:$FA$22,EI$1)","v":156},{"$f":"VLOOKUP(DropDownList!$A$24,CntyQuery!$A$4:$FA$22,EJ$1)","v":2285},{"$f":"VLOOKUP(DropDownList!$A$24,CntyQuery!$A$4:$FA$22,EK$1)","v":4584},{"$f":"VLOOKUP(DropDownList!$A$24,CntyQuery!$A$4:$FA$22,EL$1)","v":156},{"$f":"VLOOKUP(DropDownList!$A$24,CntyQuery!$A$4:$FA$22,EM$1)","v":1725},{"$f":"VLOOKUP(DropDownList!$A$24,CntyQuery!$A$4:$FA$22,EN$1)","v":224},{"$f":"VLOOKUP(DropDownList!$A$24,CntyQuery!$A$4:$FA$22,EO$1)","v":9},{"$f":"VLOOKUP(DropDownList!$A$24,CntyQuery!$A$4:$FA$22,EP$1)","v":174},{"$f":"VLOOKUP(DropDownList!$A$24,CntyQuery!$A$4:$FA$22,EQ$1)","v":26},{"$f":"VLOOKUP(DropDownList!$A$24,CntyQuery!$A$4:$FA$22,ER$1)","v":128},{"$f":"VLOOKUP(DropDownList!$A$24,CntyQuery!$A$4:$FA$22,ES$1)","v":202},{"$f":"VLOOKUP(DropDownList!$A$24,CntyQuery!$A$4:$FA$22,ET$1)","v":202},{"$f":"VLOOKUP(DropDownList!$A$24,CntyQuery!$A$4:$FA$22,EU$1)","v":416},{"$f":"VLOOKUP(DropDownList!$A$24,CntyQuery!$A$4:$FA$22,EV$1)","v":389},{"$f":"VLOOKUP(DropDownList!$A$24,CntyQuery!$A$4:$FA$22,EW$1)","v":356},{"$f":"VLOOKUP(DropDownList!$A$24,CntyQuery!$A$4:$FA$22,EX$1)","v":297},{"$f":"VLOOKUP(DropDownList!$A$24,CntyQuery!$A$4:$FA$22,EY$1)","v":119},{"$f":"VLOOKUP(DropDownList!$A$24,CntyQuery!$A$4:$FA$22,EZ$1)","v":35},{"$f":"VLOOKUP(DropDownList!$A$24,CntyQuery!$A$4:$FA$22,FA$1)","v":0}]
[]
[]
["Census 1990 Data -    Query Name:  TownSTF1Qry1"]
["NAME","COUSUBFP","Census_Cnty_Code","FIPS","LandAcres","WaterAcres","HousingUnits90Cen","P01Persons90Cen","P02Families90Cen","P03Households90cen","P05MalePop90cen","P05FemalePop90cen","P06WhitePop","P06BlackPop","P06AmerIndianPop","P06AsianPIPop","P06OtherRacePop","P08HispanicOrPop","P11AgeUnder15_90cen","P11Age15to24_90cen","P11Age25to34_90cen","P11Age35to44_90cen","P11Age45to54_90cen","P11Age55to64_90cen","P11Age65to74_90cen","P11Age75andOver_90cen","P15PersonsInHH90cen","P15PersonsInFamHH90cen","P15PersonsInGC","PersonsPerHH90cen","PersonsPerFam90Cen","P16SinglePersonHH90cen","P16MarriedCoupleHH90cen","P16SingleParentHH90cen","P16NonFamilyHH90cen","H01TotalHousingUnits","H02OccupiedHousingUnits","H02VacantHousingUnits","H03OwnerOccHU","H03RenterOccHU","H05VacantForRent90","H05VacantForSale90","H05VacantSeasonalRec","H23OOHUVal<15k","H23OOHUVal15to19k","H23OOHUVal20to24k","H23OOHUVal25to29k","H23OOHUVal30to34k","H23OOHUVal35to39k","H23OOHUVal40to44k","H23OOHUVal45to49k","H23OOHUVal50to59k","H23OOHUVal60to74k","H23OOHUVal75to99k","H23OOHUVal100to124k","H23OOHUVal125to149k","H23OOHUVal150to174k","H23OOHUVal175to199k","H23OOHUVal200to249k","H23OOHUVal250to299k","H23OOHUVal300to399k","H23OOHUVal400to499k","H23OOHUVal500kOrMore","H23BOOHUMedVal","H41SingFamHU90cen","H41MultiFamHU90cen","H41MobileHom90cen","H43SingFamOwnHU90cen","H43MultiFamOwnHU90cen","H43MobileHomOwnHU90cen","H43SingFamRntrHU90cen","H43MultiFamRntrHU90cen","H43MobileHomRntrHU90cen","H41HU1UnitDet","H41HU1UnitAtt","H41HU2Unit","H41HU3to4Unit","H41HU5to9Unit","H41HU10to19Unit","H41HU20to49Unit","H41HU50PlusUnit","H41HUMobilH","H41HUOther"]
[{"$f":"VLOOKUP(DropDownList!$B$24,CntyQuery!$A$37:$CE$45,A$1)","v":"Wolfeboro"},{"$f":"VLOOKUP(DropDownList!$B$24,CntyQuery!$A$37:$CE$45,B$1)","v":218},{"$f":"VLOOKUP(DropDownList!$B$24,CntyQuery!$A$37:$CE$45,C$1)","v":3095},{"$f":"VLOOKUP(DropDownList!$B$24,CntyQuery!$A$37:$CE$45,D$1)","v":"86420"},{"$f":"VLOOKUP(DropDownList!$B$24,CntyQuery!$A$37:$CE$45,E$1)","v":30940.29},{"$f":"VLOOKUP(DropDownList!$B$24,CntyQuery!$A$37:$CE$45,F$1)","v":6465.23},{"$f":"VLOOKUP(DropDownList!$B$24,CntyQuery!$A$37:$CE$45,G$1)","v":3631},{"$f":"VLOOKUP(DropDownList!$B$24,CntyQuery!$A$37:$CE$45,H$1)","v":4807},{"$f":"VLOOKUP(DropDownList!$B$24,CntyQuery!$A$37:$CE$45,I$1)","v":1375},{"$f":"VLOOKUP(DropDownList!$B$24,CntyQuery!$A$37:$CE$45,J$1)","v":2017},{"$f":"VLOOKUP(DropDownList!$B$24,CntyQuery!$A$37:$CE$45,K$1)","v":2240},{"$f":"VLOOKUP(DropDownList!$B$24,CntyQuery!$A$37:$CE$45,L$1)","v":2567},{"$f":"VLOOKUP(DropDownList!$B$24,CntyQuery!$A$37:$CE$45,M$1)","v":4796},{"$f":"VLOOKUP(DropDownList!$B$24,CntyQuery!$A$37:$CE$45,N$1)","v":2},{"$f":"VLOOKUP(DropDownList!$B$24,CntyQuery!$A$37:$CE$45,O$1)","v":3},{"$f":"VLOOKUP(DropDownList!$B$24,CntyQuery!$A$37:$CE$45,P$1)","v":6},{"$f":"VLOOKUP(DropDownList!$B$24,CntyQuery!$A$37:$CE$45,Q$1)","v":0},{"$f":"VLOOKUP(DropDownList!$B$24,CntyQuery!$A$37:$CE$45,R$1)","v":25},{"$f":"VLOOKUP(DropDownList!$B$24,CntyQuery!$A$37:$CE$45,S$1)","v":897},{"$f":"VLOOKUP(DropDownList!$B$24,CntyQuery!$A$37:$CE$45,T$1)","v":421},{"$f":"VLOOKUP(DropDownList!$B$24,CntyQuery!$A$37:$CE$45,U$1)","v":648},{"$f":"VLOOKUP(DropDownList!$B$24,CntyQuery!$A$37:$CE$45,V$1)","v":708},{"$f":"VLOOKUP(DropDownList!$B$24,CntyQuery!$A$37:$CE$45,W$1)","v":467},{"$f":"VLOOKUP(DropDownList!$B$24,CntyQuery!$A$37:$CE$45,X$1)","v":572},{"$f":"VLOOKUP(DropDownList!$B$24,CntyQuery!$A$37:$CE$45,Y$1)","v":577},{"$f":"VLOOKUP(DropDownList!$B$24,CntyQuery!$A$37:$CE$45,Z$1)","v":517},{"$f":"VLOOKUP(DropDownList!$B$24,CntyQuery!$A$37:$CE$45,AA$1)","v":4716},{"$f":"VLOOKUP(DropDownList!$B$24,CntyQuery!$A$37:$CE$45,AB$1)","v":3981},{"$f":"VLOOKUP(DropDownList!$B$24,CntyQuery!$A$37:$CE$45,AC$1)","v":91},{"$f":"VLOOKUP(DropDownList!$B$24,CntyQuery!$A$37:$CE$45,AD$1)","v":2.3381259295984136},{"$f":"VLOOKUP(DropDownList!$B$24,CntyQuery!$A$37:$CE$45,AE$1)","v":2.8952727272727272},{"$f":"VLOOKUP(DropDownList!$B$24,CntyQuery!$A$37:$CE$45,AF$1)","v":564},{"$f":"VLOOKUP(DropDownList!$B$24,CntyQuery!$A$37:$CE$45,AG$1)","v":1187},{"$f":"VLOOKUP(DropDownList!$B$24,CntyQuery!$A$37:$CE$45,AH$1)","v":188},{"$f":"VLOOKUP(DropDownList!$B$24,CntyQuery!$A$37:$CE$45,AI$1)","v":78},{"$f":"VLOOKUP(DropDownList!$B$24,CntyQuery!$A$37:$CE$45,AJ$1)","v":3631},{"$f":"VLOOKUP(DropDownList!$B$24,CntyQuery!$A$37:$CE$45,AK$1)","v":2017},{"$f":"VLOOKUP(DropDownList!$B$24,CntyQuery!$A$37:$CE$45,AL$1)","v":1614},{"$f":"VLOOKUP(DropDownList!$B$24,CntyQuery!$A$37:$CE$45,AM$1)","v":1482},{"$f":"VLOOKUP(DropDownList!$B$24,CntyQuery!$A$37:$CE$45,AN$1)","v":535},{"$f":"VLOOKUP(DropDownList!$B$24,CntyQuery!$A$37:$CE$45,AO$1)","v":77},{"$f":"VLOOKUP(DropDownList!$B$24,CntyQuery!$A$37:$CE$45,AP$1)","v":64},{"$f":"VLOOKUP(DropDownList!$B$24,CntyQuery!$A$37:$CE$45,AQ$1)","v":1345},{"$f":"VLOOKUP(DropDownList!$B$24,CntyQuery!$A$37:$CE$45,AR$1)","v":3},{"$f":"VLOOKUP(DropDownList!$B$24,CntyQuery!$A$37:$CE$45,AS$1)","v":1},{"$f":"VLOOKUP(DropDownList!$B$24,CntyQuery!$A$37:$CE$45,AT$1)","v":7},{"$f":"VLOOKUP(DropDownList!$B$24,CntyQuery!$A$37:$CE$45,AU$1)","v":1},{"$f":"VLOOKUP(DropDownList!$B$24,CntyQuery!$A$37:$CE$45,AV$1)","v":2},{"$f":"VLOOKUP(DropDownList!$B$24,CntyQuery!$A$37:$CE$45,AW$1)","v":7},{"$f":"VLOOKUP(DropDownList!$B$24,CntyQuery!$A$37:$CE$45,AX$1)","v":10},{"$f":"VLOOKUP(DropDownList!$B$24,CntyQuery!$A$37:$CE$45,AY$1)","v":11},{"$f":"VLOOKUP(DropDownList!$B$24,CntyQuery!$A$37:$CE$45,AZ$1)","v":22},{"$f":"VLOOKUP(DropDownList!$B$24,CntyQuery!$A$37:$CE$45,BA$1)","v":71},{"$f":"VLOOKUP(DropDownList!$B$24,CntyQuery!$A$37:$CE$45,BB$1)","v":163},{"$f":"VLOOKUP(DropDownList!$B$24,CntyQuery!$A$37:$CE$45,BC$1)","v":176},{"$f":"VLOOKUP(DropDownList!$B$24,CntyQuery!$A$37:$CE$45,BD$1)","v":164},{"$f":"VLOOKUP(DropDownList!$B$24,CntyQuery!$A$37:$CE$45,BE$1)","v":137},{"$f":"VLOOKUP(DropDownList!$B$24,CntyQuery!$A$37:$CE$45,BF$1)","v":94},{"$f":"VLOOKUP(DropDownList!$B$24,CntyQuery!$A$37:$CE$45,BG$1)","v":118},{"$f":"VLOOKUP(DropDownList!$B$24,CntyQuery!$A$37:$CE$45,BH$1)","v":54},{"$f":"VLOOKUP(DropDownList!$B$24,CntyQuery!$A$37:$CE$45,BI$1)","v":30},{"$f":"VLOOKUP(DropDownList!$B$24,CntyQuery!$A$37:$CE$45,BJ$1)","v":20},{"$f":"VLOOKUP(DropDownList!$B$24,CntyQuery!$A$37:$CE$45,BK$1)","v":38},{"$f":"VLOOKUP(DropDownList!$B$24,CntyQuery!$A$37:$CE$45,BL$1)","v":138800},{"$f":"VLOOKUP(DropDownList!$B$24,CntyQuery!$A$37:$CE$45,BM$1)","v":2716},{"$f":"VLOOKUP(DropDownList!$B$24,CntyQuery!$A$37:$CE$45,BN$1)","v":628},{"$f":"VLOOKUP(DropDownList!$B$24,CntyQuery!$A$37:$CE$45,BO$1)","v":287},{"$f":"VLOOKUP(DropDownList!$B$24,CntyQuery!$A$37:$CE$45,BP$1)","v":1296},{"$f":"VLOOKUP(DropDownList!$B$24,CntyQuery!$A$37:$CE$45,BQ$1)","v":73},{"$f":"VLOOKUP(DropDownList!$B$24,CntyQuery!$A$37:$CE$45,BR$1)","v":113},{"$f":"VLOOKUP(DropDownList!$B$24,CntyQuery!$A$37:$CE$45,BS$1)","v":174},{"$f":"VLOOKUP(DropDownList!$B$24,CntyQuery!$A$37:$CE$45,BT$1)","v":314},{"$f":"VLOOKUP(DropDownList!$B$24,CntyQuery!$A$37:$CE$45,BU$1)","v":47},{"$f":"VLOOKUP(DropDownList!$B$24,CntyQuery!$A$37:$CE$45,BV$1)","v":2716},{"$f":"VLOOKUP(DropDownList!$B$24,CntyQuery!$A$37:$CE$45,BW$1)","v":153},{"$f":"VLOOKUP(DropDownList!$B$24,CntyQuery!$A$37:$CE$45,BX$1)","v":106},{"$f":"VLOOKUP(DropDownList!$B$24,CntyQuery!$A$37:$CE$45,BY$1)","v":210},{"$f":"VLOOKUP(DropDownList!$B$24,CntyQuery!$A$37:$CE$45,BZ$1)","v":93},{"$f":"VLOOKUP(DropDownList!$B$24,CntyQuery!$A$37:$CE$45,CA$1)","v":0},{"$f":"VLOOKUP(DropDownList!$B$24,CntyQuery!$A$37:$CE$45,CB$1)","v":66},{"$f":"VLOOKUP(DropDownList!$B$24,CntyQuery!$A$37:$CE$45,CC$1)","v":0},{"$f":"VLOOKUP(DropDownList!$B$24,CntyQuery!$A$37:$CE$45,CD$1)","v":165},{"$f":"VLOOKUP(DropDownList!$B$24,CntyQuery!$A$37:$CE$45,CE$1)","v":122}]
[]
[]
["Census 1990 Data -          Query Name: TownSTF3Qry1"]
["NAME","FIPS","COUSUBFP","LandAcres","WaterAcres","HousingUnits90Cen","P01Persons90Cen","P02Families90Cen","P03Households90cen","H25HU<5yrs90cen","H25HU5to20yrs90cen","H25HU20to50yrs90cen","H25HU>50yrs90cen","H31Units0Bedroom90cen","H31Units1Bedroom90cen","H31Units2Bedroom90cen","H31Units3Bedroom90cen","H31Units4Bedroom90cen","H31Units5+Bedroom90cen","P80HI<5K","P80HI5Kto10K","P80HI10Kto15K","P80HI15Kto25K","P80HI25Kto35K","P80HI35Kto50K","P80HI50Kto75K","P80HI75Kto100K","P80HI>100K","P80AMedHI","P86HH<25HI<5K","P86HH<25HI5Kto10K","P86HH<25HI10Kto15K","P86HH<25HI15Kto25K","P86HH<25HI25Kto35K","P86HH<25HI35Kto50K","P86HH<25HI50Kto75K","P86HH<25HI75Kto100K","P86HH<25HI>100K","P86HH25to34HI<5K","P86HH25to34HI5Kto10K","P86HH25to34HI10Kto15K","P86HH25to34HI15Kto25K","P86HH25to34HI25Kto35K","P86HH25to34HI35Kto50K","P86HH25to34HI50Kto75K","P86HH25to34HI75Kto100K","P86HH25to34HI>100K","P86HH35to44HI<5K","P86HH35to44HI5Kto10K","P86HH35to44HI10Kto15K","P86HH35to44HI15Kto25K","P86HH35to44HI25Kto35K","P86HH35to44HI35Kto50K","P86HH35to44HI50Kto75K","P86HH35to44HI75Kto100K","P86HH35to44HI>100K","P86HH45to54HI<5K","P86HH45to54HI5Kto10K","P86HH45to54HI10Kto15K","P86HH45to54HI15Kto25K","P86HH45to54HI25Kto35K","P86HH45to54HI35Kto50K","P86HH45to54HI50Kto75K","P86HH45to54HI75Kto100K","P86HH45to54HI>100K","P86HH55to64HI<5K","P86HH55to64HI5Kto10K","P86HH55to64HI10Kto15K","P86HH55to64HI15Kto25K","P86HH55to64HI25Kto35K","P86HH55to64HI35Kto50K","P86HH55to64HI50Kto75K","P86HH55to64HI75Kto100K","P86HH55to64HI>100K","P86HH65to74HI<5K","P86HH65to74HI5Kto10K","P86HH65to74HI10Kto15K","P86HH65to74HI15Kto25K","P86HH65to74HI25Kto35K","P86HH65to74HI35Kto50K","P86HH65to74HI50Kto75K","P86HH65to74HI75Kto100K","P86HH65to74HI>100K","P86HH>75HI<5K","P86HH>75HI5Kto10K","P86HH>75HI10Kto15K","P86HH>75HI15Kto25K","P86HH>75HI25Kto35K","P86HH>75HI35Kto50K","P86HH>75HI50Kto75K","P86HH>75HI75Kto100K","P86HH>75HI>100K","P54SchlEnrlPrePrim","P54SchlEnrlElemThrHS","P54SchlEnrlCollege","P54NotEnrlInSch","P57Pop25andOver","P57LessThan9thGrade","P579thto12thNoDip","P57HSGrad","P57SomeCollege","P57AssocDeg","P57BachelDeg","P57GradorProfDeg","P57HSGradorHigher","P57CollGradorHigher","P42NativePop","P42ForeignBornPop","P42BornStateOfRes","P37NativePop2","P37ForeignBornPop2","P49DroveAlone","P49CarPooled","P49PublicTranspt","P49Walked","P49OtherMeans","P49WorkedAtHome","P80HHInc<10K","P80HHInc10to15K","P80HHInc15to25K","P80HHInc25to35K","P80HHInc35to50K","P80HHInc50to75K","P80HHInc75to100K","P80HHInc100to150K","P80HHInc>150K","H25YearStBlt89to90","H25YearStBlt85to88","H25YearStBlt80to84","H25YearStBlt70to79","H25YearStBlt60to69","H25YearStBlt50to59","H25YearStBlt40to49","H25YearStBlt39earlier","P107FamInc<10K","P107FamInc10to15K","P107FamInc15to25K","P107FamInc25to35K","P107FamInc35to50K","P107FamInc50to75K","P107FamInc75to100K","P107FamInc100to150K","P107FamInc>150K","P107AMedFamInc","P110NonFamInc<10K","P110NonFamInc10to15K","P110NonFamInc15to25K","P110NonFamInc25to35K","P110NonFamInc35to50K","P110NonFamInc50to75K","P110NonFamInc75to100K","P110NonFamInc100to150K","P110NonFamInc>150K","P110AMedNonFamInc","H16HU1Room","H16HU2Room","H16HU3Room","H16HU4Room","H16HU5Room","H16HU6Room","H16HU7Room","H16HU8Room","H16HU9+Room","H43GrossRnt<100","H43GrossRnt100to149","H43GrossRnt150to199","H43GrossRnt200to249","H43GrossRnt250to299","H43GrossRnt300to349","H43GrossRnt350to399","H43GrossRnt400to449","H43GrossRnt450to499","H43GrossRnt500to549","H43GrossRnt550to599","H43GrossRnt600to649","H43GrossRnt650to699","H43GrossRnt700to749","H43GrossRnt750to999","H43GrossRnt1000Plus","H43NoCashRent","H43MedGrossRent","H51GrossRnt<20PctHHInc","H51GrossRnt20to24PctHHInc","H51GrossRnt25to29PctHHInc","H51GrossRnt30to34PctHHInc","H51GrossRnt35PctOrMoreHHInc","H51GrossRntAsPctHHIncNotComp","H52HUwMtgMoOwnCst<200","H52HUwMtgMoOwnCst200to299","H52HUwMtgMoOwnCst300to399","H52HUwMtgMoOwnCst400to499","H52HUwMtgMoOwnCst500to599","H52HUwMtgMoOwnCst600to699","H52HUwMtgMoOwnCst700to799","H52HUwMtgMoOwnCst800to899","H52HUwMtgMoOwnCst900to999","H52HUwMtgMoOwnCst1000to1249","H52HUwMtgMoOwnCst1250to1499","H52HUwMtgMoOwnCst1500to1999","H52HUwMtgMoOwnCst2000More","H52HUwNoMtgMoOwnCst<100","H52HUwNoMtgMoOwnCst100to149","H52HUwNoMtgMoOwnCst150to199","H52HUwNoMtgMoOwnCst200to249","H52HUwNoMtgMoOwnCst250to299","H52HUwNoMtgMoOwnCst300to349","H52HUwNoMtgMoOwnCst350to399","H52HUwNoMtgMoOwnCst400More","H52AMedMoOwnCstWMortg","H52AMedMoOwnCstWNoMortg","H58HUwMtgMOC<20pHHInc","H58HUwMtgMOC20to24pHHInc","H58HUwMtgMOC25to29pHHInc","H58HUwMtgMOC30to34pHHInc","H58wMtgMOC>35pHHInc","H58HUwMtgMOCNotComp","H58HUwNoMtgMOC<20pHHInc","H58HUwNoMtgMOC20to24pHHInc","H58HUwNoMtgMOC25to29pHHInc","H58HUwNoMtgMOC30to34pHHInc","H58wNoMtgMOC>35pHHInc","H58HUwNoMtgMOCNotComp","H61OOHUVal<15k","H61OOHUVal15to19k","H61OOHUVal20to24k","H61OOHUVal25to29k","H61OOHUVal30to34k","H61OOHUVal35to39k","H61OOHUVal40to44k","H61OOHUVal45to49k","H61OOHUVal50to59k","H61OOHUVal60to74k","H61OOHUVal75to99k","H61OOHUVal100to124k","H61OOHUVal125to149k","H61OOHUVal150to174k","H61OOHUVal175to199k","H61OOHUVal200to249k","H61OOHUVal250to299k","H61OOHUVal300to399k","H61OOHUVal400to499k","H61OOHUVal500kOrMore","H61aOOHUMedVal"]
[{"$f":"A20","v":"Wolfeboro"},{"$f":"VLOOKUP(DropDownList!$B$24,CntyQuery!$A$52:$II$62,B$1)","v":{"$error":"#N/A"}},{"$f":"VLOOKUP(DropDownList!$B$24,CntyQuery!$A$52:$II$62,C$1)","v":{"$error":"#N/A"}},{"$f":"VLOOKUP(DropDownList!$B$24,CntyQuery!$A$52:$II$62,D$1)","v":{"$error":"#N/A"}},{"$f":"VLOOKUP(DropDownList!$B$24,CntyQuery!$A$52:$II$62,E$1)","v":{"$error":"#N/A"}},{"$f":"VLOOKUP(DropDownList!$B$24,CntyQuery!$A$52:$II$62,F$1)","v":{"$error":"#N/A"}},{"$f":"VLOOKUP(DropDownList!$B$24,CntyQuery!$A$52:$II$62,G$1)","v":{"$error":"#N/A"}},{"$f":"VLOOKUP(DropDownList!$B$24,CntyQuery!$A$52:$II$62,H$1)","v":{"$error":"#N/A"}},{"$f":"VLOOKUP(DropDownList!$B$24,CntyQuery!$A$52:$II$62,I$1)","v":{"$error":"#N/A"}},{"$f":"VLOOKUP(DropDownList!$B$24,CntyQuery!$A$52:$II$62,J$1)","v":{"$error":"#N/A"}},{"$f":"VLOOKUP(DropDownList!$B$24,CntyQuery!$A$52:$II$62,K$1)","v":{"$error":"#N/A"}},{"$f":"VLOOKUP(DropDownList!$B$24,CntyQuery!$A$52:$II$62,L$1)","v":{"$error":"#N/A"}},{"$f":"VLOOKUP(DropDownList!$B$24,CntyQuery!$A$52:$II$62,M$1)","v":{"$error":"#N/A"}},{"$f":"VLOOKUP(DropDownList!$B$24,CntyQuery!$A$52:$II$62,N$1)","v":{"$error":"#N/A"}},{"$f":"VLOOKUP(DropDownList!$B$24,CntyQuery!$A$52:$II$62,O$1)","v":{"$error":"#N/A"}},{"$f":"VLOOKUP(DropDownList!$B$24,CntyQuery!$A$52:$II$62,P$1)","v":{"$error":"#N/A"}},{"$f":"VLOOKUP(DropDownList!$B$24,CntyQuery!$A$52:$II$62,Q$1)","v":{"$error":"#N/A"}},{"$f":"VLOOKUP(DropDownList!$B$24,CntyQuery!$A$52:$II$62,R$1)","v":{"$error":"#N/A"}},{"$f":"VLOOKUP(DropDownList!$B$24,CntyQuery!$A$52:$II$62,S$1)","v":{"$error":"#N/A"}},{"$f":"VLOOKUP(DropDownList!$B$24,CntyQuery!$A$52:$II$62,T$1)","v":{"$error":"#N/A"}},{"$f":"VLOOKUP(DropDownList!$B$24,CntyQuery!$A$52:$II$62,U$1)","v":{"$error":"#N/A"}},{"$f":"VLOOKUP(DropDownList!$B$24,CntyQuery!$A$52:$II$62,V$1)","v":{"$error":"#N/A"}},{"$f":"VLOOKUP(DropDownList!$B$24,CntyQuery!$A$52:$II$62,W$1)","v":{"$error":"#N/A"}},{"$f":"VLOOKUP(DropDownList!$B$24,CntyQuery!$A$52:$II$62,X$1)","v":{"$error":"#N/A"}},{"$f":"VLOOKUP(DropDownList!$B$24,CntyQuery!$A$52:$II$62,Y$1)","v":{"$error":"#N/A"}},{"$f":"VLOOKUP(DropDownList!$B$24,CntyQuery!$A$52:$II$62,Z$1)","v":{"$error":"#N/A"}},{"$f":"VLOOKUP(DropDownList!$B$24,CntyQuery!$A$52:$II$62,AA$1)","v":{"$error":"#N/A"}},{"$f":"VLOOKUP(DropDownList!$B$24,CntyQuery!$A$52:$II$62,AB$1)","v":{"$error":"#N/A"}},{"$f":"VLOOKUP(DropDownList!$B$24,CntyQuery!$A$52:$II$62,AC$1)","v":{"$error":"#N/A"}},{"$f":"VLOOKUP(DropDownList!$B$24,CntyQuery!$A$52:$II$62,AD$1)","v":{"$error":"#N/A"}},{"$f":"VLOOKUP(DropDownList!$B$24,CntyQuery!$A$52:$II$62,AE$1)","v":{"$error":"#N/A"}},{"$f":"VLOOKUP(DropDownList!$B$24,CntyQuery!$A$52:$II$62,AF$1)","v":{"$error":"#N/A"}},{"$f":"VLOOKUP(DropDownList!$B$24,CntyQuery!$A$52:$II$62,AG$1)","v":{"$error":"#N/A"}},{"$f":"VLOOKUP(DropDownList!$B$24,CntyQuery!$A$52:$II$62,AH$1)","v":{"$error":"#N/A"}},{"$f":"VLOOKUP(DropDownList!$B$24,CntyQuery!$A$52:$II$62,AI$1)","v":{"$error":"#N/A"}},{"$f":"VLOOKUP(DropDownList!$B$24,CntyQuery!$A$52:$II$62,AJ$1)","v":{"$error":"#N/A"}},{"$f":"VLOOKUP(DropDownList!$B$24,CntyQuery!$A$52:$II$62,AK$1)","v":{"$error":"#N/A"}},{"$f":"VLOOKUP(DropDownList!$B$24,CntyQuery!$A$52:$II$62,AL$1)","v":{"$error":"#N/A"}},{"$f":"VLOOKUP(DropDownList!$B$24,CntyQuery!$A$52:$II$62,AM$1)","v":{"$error":"#N/A"}},{"$f":"VLOOKUP(DropDownList!$B$24,CntyQuery!$A$52:$II$62,AN$1)","v":{"$error":"#N/A"}},{"$f":"VLOOKUP(DropDownList!$B$24,CntyQuery!$A$52:$II$62,AO$1)","v":{"$error":"#N/A"}},{"$f":"VLOOKUP(DropDownList!$B$24,CntyQuery!$A$52:$II$62,AP$1)","v":{"$error":"#N/A"}},{"$f":"VLOOKUP(DropDownList!$B$24,CntyQuery!$A$52:$II$62,AQ$1)","v":{"$error":"#N/A"}},{"$f":"VLOOKUP(DropDownList!$B$24,CntyQuery!$A$52:$II$62,AR$1)","v":{"$error":"#N/A"}},{"$f":"VLOOKUP(DropDownList!$B$24,CntyQuery!$A$52:$II$62,AS$1)","v":{"$error":"#N/A"}},{"$f":"VLOOKUP(DropDownList!$B$24,CntyQuery!$A$52:$II$62,AT$1)","v":{"$error":"#N/A"}},{"$f":"VLOOKUP(DropDownList!$B$24,CntyQuery!$A$52:$II$62,AU$1)","v":{"$error":"#N/A"}},{"$f":"VLOOKUP(DropDownList!$B$24,CntyQuery!$A$52:$II$62,AV$1)","v":{"$error":"#N/A"}},{"$f":"VLOOKUP(DropDownList!$B$24,CntyQuery!$A$52:$II$62,AW$1)","v":{"$error":"#N/A"}},{"$f":"VLOOKUP(DropDownList!$B$24,CntyQuery!$A$52:$II$62,AX$1)","v":{"$error":"#N/A"}},{"$f":"VLOOKUP(DropDownList!$B$24,CntyQuery!$A$52:$II$62,AY$1)","v":{"$error":"#N/A"}},{"$f":"VLOOKUP(DropDownList!$B$24,CntyQuery!$A$52:$II$62,AZ$1)","v":{"$error":"#N/A"}},{"$f":"VLOOKUP(DropDownList!$B$24,CntyQuery!$A$52:$II$62,BA$1)","v":{"$error":"#N/A"}},{"$f":"VLOOKUP(DropDownList!$B$24,CntyQuery!$A$52:$II$62,BB$1)","v":{"$error":"#N/A"}},{"$f":"VLOOKUP(DropDownList!$B$24,CntyQuery!$A$52:$II$62,BC$1)","v":{"$error":"#N/A"}},{"$f":"VLOOKUP(DropDownList!$B$24,CntyQuery!$A$52:$II$62,BD$1)","v":{"$error":"#N/A"}},{"$f":"VLOOKUP(DropDownList!$B$24,CntyQuery!$A$52:$II$62,BE$1)","v":{"$error":"#N/A"}},{"$f":"VLOOKUP(DropDownList!$B$24,CntyQuery!$A$52:$II$62,BF$1)","v":{"$error":"#N/A"}},{"$f":"VLOOKUP(DropDownList!$B$24,CntyQuery!$A$52:$II$62,BG$1)","v":{"$error":"#N/A"}},{"$f":"VLOOKUP(DropDownList!$B$24,CntyQuery!$A$52:$II$62,BH$1)","v":{"$error":"#N/A"}},{"$f":"VLOOKUP(DropDownList!$B$24,CntyQuery!$A$52:$II$62,BI$1)","v":{"$error":"#N/A"}},{"$f":"VLOOKUP(DropDownList!$B$24,CntyQuery!$A$52:$II$62,BJ$1)","v":{"$error":"#N/A"}},{"$f":"VLOOKUP(DropDownList!$B$24,CntyQuery!$A$52:$II$62,BK$1)","v":{"$error":"#N/A"}},{"$f":"VLOOKUP(DropDownList!$B$24,CntyQuery!$A$52:$II$62,BL$1)","v":{"$error":"#N/A"}},{"$f":"VLOOKUP(DropDownList!$B$24,CntyQuery!$A$52:$II$62,BM$1)","v":{"$error":"#N/A"}},{"$f":"VLOOKUP(DropDownList!$B$24,CntyQuery!$A$52:$II$62,BN$1)","v":{"$error":"#N/A"}},{"$f":"VLOOKUP(DropDownList!$B$24,CntyQuery!$A$52:$II$62,BO$1)","v":{"$error":"#N/A"}},{"$f":"VLOOKUP(DropDownList!$B$24,CntyQuery!$A$52:$II$62,BP$1)","v":{"$error":"#N/A"}},{"$f":"VLOOKUP(DropDownList!$B$24,CntyQuery!$A$52:$II$62,BQ$1)","v":{"$error":"#N/A"}},{"$f":"VLOOKUP(DropDownList!$B$24,CntyQuery!$A$52:$II$62,BR$1)","v":{"$error":"#N/A"}},{"$f":"VLOOKUP(DropDownList!$B$24,CntyQuery!$A$52:$II$62,BS$1)","v":{"$error":"#N/A"}},{"$f":"VLOOKUP(DropDownList!$B$24,CntyQuery!$A$52:$II$62,BT$1)","v":{"$error":"#N/A"}},{"$f":"VLOOKUP(DropDownList!$B$24,CntyQuery!$A$52:$II$62,BU$1)","v":{"$error":"#N/A"}},{"$f":"VLOOKUP(DropDownList!$B$24,CntyQuery!$A$52:$II$62,BV$1)","v":{"$error":"#N/A"}},{"$f":"VLOOKUP(DropDownList!$B$24,CntyQuery!$A$52:$II$62,BW$1)","v":{"$error":"#N/A"}},{"$f":"VLOOKUP(DropDownList!$B$24,CntyQuery!$A$52:$II$62,BX$1)","v":{"$error":"#N/A"}},{"$f":"VLOOKUP(DropDownList!$B$24,CntyQuery!$A$52:$II$62,BY$1)","v":{"$error":"#N/A"}},{"$f":"VLOOKUP(DropDownList!$B$24,CntyQuery!$A$52:$II$62,BZ$1)","v":{"$error":"#N/A"}},{"$f":"VLOOKUP(DropDownList!$B$24,CntyQuery!$A$52:$II$62,CA$1)","v":{"$error":"#N/A"}},{"$f":"VLOOKUP(DropDownList!$B$24,CntyQuery!$A$52:$II$62,CB$1)","v":{"$error":"#N/A"}},{"$f":"VLOOKUP(DropDownList!$B$24,CntyQuery!$A$52:$II$62,CC$1)","v":{"$error":"#N/A"}},{"$f":"VLOOKUP(DropDownList!$B$24,CntyQuery!$A$52:$II$62,CD$1)","v":{"$error":"#N/A"}},{"$f":"VLOOKUP(DropDownList!$B$24,CntyQuery!$A$52:$II$62,CE$1)","v":{"$error":"#N/A"}},{"$f":"VLOOKUP(DropDownList!$B$24,CntyQuery!$A$52:$II$62,CF$1)","v":{"$error":"#N/A"}},{"$f":"VLOOKUP(DropDownList!$B$24,CntyQuery!$A$52:$II$62,CG$1)","v":{"$error":"#N/A"}},{"$f":"VLOOKUP(DropDownList!$B$24,CntyQuery!$A$52:$II$62,CH$1)","v":{"$error":"#N/A"}},{"$f":"VLOOKUP(DropDownList!$B$24,CntyQuery!$A$52:$II$62,CI$1)","v":{"$error":"#N/A"}},{"$f":"VLOOKUP(DropDownList!$B$24,CntyQuery!$A$52:$II$62,CJ$1)","v":{"$error":"#N/A"}},{"$f":"VLOOKUP(DropDownList!$B$24,CntyQuery!$A$52:$II$62,CK$1)","v":{"$error":"#N/A"}},{"$f":"VLOOKUP(DropDownList!$B$24,CntyQuery!$A$52:$II$62,CL$1)","v":{"$error":"#N/A"}},{"$f":"VLOOKUP(DropDownList!$B$24,CntyQuery!$A$52:$II$62,CM$1)","v":{"$error":"#N/A"}},{"$f":"VLOOKUP(DropDownList!$B$24,CntyQuery!$A$52:$II$62,CN$1)","v":{"$error":"#N/A"}},{"$f":"VLOOKUP(DropDownList!$B$24,CntyQuery!$A$52:$II$62,CO$1)","v":{"$error":"#N/A"}},{"$f":"VLOOKUP(DropDownList!$B$24,CntyQuery!$A$52:$II$62,CP$1)","v":{"$error":"#N/A"}},{"$f":"VLOOKUP(DropDownList!$B$24,CntyQuery!$A$52:$II$62,CQ$1)","v":{"$error":"#N/A"}},{"$f":"VLOOKUP(DropDownList!$B$24,CntyQuery!$A$52:$II$62,CR$1)","v":{"$error":"#N/A"}},{"$f":"VLOOKUP(DropDownList!$B$24,CntyQuery!$A$52:$II$62,CS$1)","v":{"$error":"#N/A"}},{"$f":"VLOOKUP(DropDownList!$B$24,CntyQuery!$A$52:$II$62,CT$1)","v":{"$error":"#N/A"}},{"$f":"VLOOKUP(DropDownList!$B$24,CntyQuery!$A$52:$II$62,CU$1)","v":{"$error":"#N/A"}},{"$f":"VLOOKUP(DropDownList!$B$24,CntyQuery!$A$52:$II$62,CV$1)","v":{"$error":"#N/A"}},{"$f":"VLOOKUP(DropDownList!$B$24,CntyQuery!$A$52:$II$62,CW$1)","v":{"$error":"#N/A"}},{"$f":"VLOOKUP(DropDownList!$B$24,CntyQuery!$A$52:$II$62,CX$1)","v":{"$error":"#N/A"}},{"$f":"VLOOKUP(DropDownList!$B$24,CntyQuery!$A$52:$II$62,CY$1)","v":{"$error":"#N/A"}},{"$f":"VLOOKUP(DropDownList!$B$24,CntyQuery!$A$52:$II$62,CZ$1)","v":{"$error":"#N/A"}},{"$f":"VLOOKUP(DropDownList!$B$24,CntyQuery!$A$52:$II$62,DA$1)","v":{"$error":"#N/A"}},{"$f":"VLOOKUP(DropDownList!$B$24,CntyQuery!$A$52:$II$62,DB$1)","v":{"$error":"#N/A"}},{"$f":"VLOOKUP(DropDownList!$B$24,CntyQuery!$A$52:$II$62,DC$1)","v":{"$error":"#N/A"}},{"$f":"VLOOKUP(DropDownList!$B$24,CntyQuery!$A$52:$II$62,DD$1)","v":{"$error":"#N/A"}},{"$f":"VLOOKUP(DropDownList!$B$24,CntyQuery!$A$52:$II$62,DE$1)","v":{"$error":"#N/A"}},{"$f":"VLOOKUP(DropDownList!$B$24,CntyQuery!$A$52:$II$62,DF$1)","v":{"$error":"#N/A"}},{"$f":"VLOOKUP(DropDownList!$B$24,CntyQuery!$A$52:$II$62,DG$1)","v":{"$error":"#N/A"}},{"$f":"VLOOKUP(DropDownList!$B$24,CntyQuery!$A$52:$II$62,DH$1)","v":{"$error":"#N/A"}},{"$f":"VLOOKUP(DropDownList!$B$24,CntyQuery!$A$52:$II$62,DI$1)","v":{"$error":"#N/A"}},{"$f":"VLOOKUP(DropDownList!$B$24,CntyQuery!$A$52:$II$62,DJ$1)","v":{"$error":"#N/A"}},{"$f":"VLOOKUP(DropDownList!$B$24,CntyQuery!$A$52:$II$62,DK$1)","v":{"$error":"#N/A"}},{"$f":"VLOOKUP(DropDownList!$B$24,CntyQuery!$A$52:$II$62,DL$1)","v":{"$error":"#N/A"}},{"$f":"VLOOKUP(DropDownList!$B$24,CntyQuery!$A$52:$II$62,DM$1)","v":{"$error":"#N/A"}},{"$f":"VLOOKUP(DropDownList!$B$24,CntyQuery!$A$52:$II$62,DN$1)","v":{"$error":"#N/A"}},{"$f":"VLOOKUP(DropDownList!$B$24,CntyQuery!$A$52:$II$62,DO$1)","v":{"$error":"#N/A"}},{"$f":"VLOOKUP(DropDownList!$B$24,CntyQuery!$A$52:$II$62,DP$1)","v":{"$error":"#N/A"}},{"$f":"VLOOKUP(DropDownList!$B$24,CntyQuery!$A$52:$II$62,DQ$1)","v":{"$error":"#N/A"}},{"$f":"VLOOKUP(DropDownList!$B$24,CntyQuery!$A$52:$II$62,DR$1)","v":{"$error":"#N/A"}},{"$f":"VLOOKUP(DropDownList!$B$24,CntyQuery!$A$52:$II$62,DS$1)","v":{"$error":"#N/A"}},{"$f":"VLOOKUP(DropDownList!$B$24,CntyQuery!$A$52:$II$62,DT$1)","v":{"$error":"#N/A"}},{"$f":"VLOOKUP(DropDownList!$B$24,CntyQuery!$A$52:$II$62,DU$1)","v":{"$error":"#N/A"}},{"$f":"VLOOKUP(DropDownList!$B$24,CntyQuery!$A$52:$II$62,DV$1)","v":{"$error":"#N/A"}},{"$f":"VLOOKUP(DropDownList!$B$24,CntyQuery!$A$52:$II$62,DW$1)","v":{"$error":"#N/A"}},{"$f":"VLOOKUP(DropDownList!$B$24,CntyQuery!$A$52:$II$62,DX$1)","v":{"$error":"#N/A"}},{"$f":"VLOOKUP(DropDownList!$B$24,CntyQuery!$A$52:$II$62,DY$1)","v":{"$error":"#N/A"}},{"$f":"VLOOKUP(DropDownList!$B$24,CntyQuery!$A$52:$II$62,DZ$1)","v":{"$error":"#N/A"}},{"$f":"VLOOKUP(DropDownList!$B$24,CntyQuery!$A$52:$II$62,EA$1)","v":{"$error":"#N/A"}},{"$f":"VLOOKUP(DropDownList!$B$24,CntyQuery!$A$52:$II$62,EB$1)","v":{"$error":"#N/A"}},{"$f":"VLOOKUP(DropDownList!$B$24,CntyQuery!$A$52:$II$62,EC$1)","v":{"$error":"#N/A"}},{"$f":"VLOOKUP(DropDownList!$B$24,CntyQuery!$A$52:$II$62,ED$1)","v":{"$error":"#N/A"}},{"$f":"VLOOKUP(DropDownList!$B$24,CntyQuery!$A$52:$II$62,EE$1)","v":{"$error":"#N/A"}},{"$f":"VLOOKUP(DropDownList!$B$24,CntyQuery!$A$52:$II$62,EF$1)","v":{"$error":"#N/A"}},{"$f":"VLOOKUP(DropDownList!$B$24,CntyQuery!$A$52:$II$62,EG$1)","v":{"$error":"#N/A"}},{"$f":"VLOOKUP(DropDownList!$B$24,CntyQuery!$A$52:$II$62,EH$1)","v":{"$error":"#N/A"}},{"$f":"VLOOKUP(DropDownList!$B$24,CntyQuery!$A$52:$II$62,EI$1)","v":{"$error":"#N/A"}},{"$f":"VLOOKUP(DropDownList!$B$24,CntyQuery!$A$52:$II$62,EJ$1)","v":{"$error":"#N/A"}},{"$f":"VLOOKUP(DropDownList!$B$24,CntyQuery!$A$52:$II$62,EK$1)","v":{"$error":"#N/A"}},{"$f":"VLOOKUP(DropDownList!$B$24,CntyQuery!$A$52:$II$62,EL$1)","v":{"$error":"#N/A"}},{"$f":"VLOOKUP(DropDownList!$B$24,CntyQuery!$A$52:$II$62,EM$1)","v":{"$error":"#N/A"}},{"$f":"VLOOKUP(DropDownList!$B$24,CntyQuery!$A$52:$II$62,EN$1)","v":{"$error":"#N/A"}},{"$f":"VLOOKUP(DropDownList!$B$24,CntyQuery!$A$52:$II$62,EO$1)","v":{"$error":"#N/A"}},{"$f":"VLOOKUP(DropDownList!$B$24,CntyQuery!$A$52:$II$62,EP$1)","v":{"$error":"#N/A"}},{"$f":"VLOOKUP(DropDownList!$B$24,CntyQuery!$A$52:$II$62,EQ$1)","v":{"$error":"#N/A"}},{"$f":"VLOOKUP(DropDownList!$B$24,CntyQuery!$A$52:$II$62,ER$1)","v":{"$error":"#N/A"}},{"$f":"VLOOKUP(DropDownList!$B$24,CntyQuery!$A$52:$II$62,ES$1)","v":{"$error":"#N/A"}},{"$f":"VLOOKUP(DropDownList!$B$24,CntyQuery!$A$52:$II$62,ET$1)","v":{"$error":"#N/A"}},{"$f":"VLOOKUP(DropDownList!$B$24,CntyQuery!$A$52:$II$62,EU$1)","v":{"$error":"#N/A"}},{"$f":"VLOOKUP(DropDownList!$B$24,CntyQuery!$A$52:$II$62,EV$1)","v":{"$error":"#N/A"}},{"$f":"VLOOKUP(DropDownList!$B$24,CntyQuery!$A$52:$II$62,EW$1)","v":{"$error":"#N/A"}},{"$f":"VLOOKUP(DropDownList!$B$24,CntyQuery!$A$52:$II$62,EX$1)","v":{"$error":"#N/A"}},{"$f":"VLOOKUP(DropDownList!$B$24,CntyQuery!$A$52:$II$62,EY$1)","v":{"$error":"#N/A"}},{"$f":"VLOOKUP(DropDownList!$B$24,CntyQuery!$A$52:$II$62,EZ$1)","v":{"$error":"#N/A"}},{"$f":"VLOOKUP(DropDownList!$B$24,CntyQuery!$A$52:$II$62,FA$1)","v":{"$error":"#N/A"}},{"$f":"VLOOKUP(DropDownList!$B$24,CntyQuery!$A$52:$II$62,FB$1)","v":{"$error":"#N/A"}},{"$f":"VLOOKUP(DropDownList!$B$24,CntyQuery!$A$52:$II$62,FC$1)","v":{"$error":"#N/A"}},{"$f":"VLOOKUP(DropDownList!$B$24,CntyQuery!$A$52:$II$62,FD$1)","v":{"$error":"#N/A"}},{"$f":"VLOOKUP(DropDownList!$B$24,CntyQuery!$A$52:$II$62,FE$1)","v":{"$error":"#N/A"}},{"$f":"VLOOKUP(DropDownList!$B$24,CntyQuery!$A$52:$II$62,FF$1)","v":{"$error":"#N/A"}},{"$f":"VLOOKUP(DropDownList!$B$24,CntyQuery!$A$52:$II$62,FG$1)","v":{"$error":"#N/A"}},{"$f":"VLOOKUP(DropDownList!$B$24,CntyQuery!$A$52:$II$62,FH$1)","v":{"$error":"#N/A"}},{"$f":"VLOOKUP(DropDownList!$B$24,CntyQuery!$A$52:$II$62,FI$1)","v":{"$error":"#N/A"}},{"$f":"VLOOKUP(DropDownList!$B$24,CntyQuery!$A$52:$II$62,FJ$1)","v":{"$error":"#N/A"}},{"$f":"VLOOKUP(DropDownList!$B$24,CntyQuery!$A$52:$II$62,FK$1)","v":{"$error":"#N/A"}},{"$f":"VLOOKUP(DropDownList!$B$24,CntyQuery!$A$52:$II$62,FL$1)","v":{"$error":"#N/A"}},{"$f":"VLOOKUP(DropDownList!$B$24,CntyQuery!$A$52:$II$62,FM$1)","v":{"$error":"#N/A"}},{"$f":"VLOOKUP(DropDownList!$B$24,CntyQuery!$A$52:$II$62,FN$1)","v":{"$error":"#N/A"}},{"$f":"VLOOKUP(DropDownList!$B$24,CntyQuery!$A$52:$II$62,FO$1)","v":{"$error":"#N/A"}},{"$f":"VLOOKUP(DropDownList!$B$24,CntyQuery!$A$52:$II$62,FP$1)","v":{"$error":"#N/A"}},{"$f":"VLOOKUP(DropDownList!$B$24,CntyQuery!$A$52:$II$62,FQ$1)","v":{"$error":"#N/A"}},{"$f":"VLOOKUP(DropDownList!$B$24,CntyQuery!$A$52:$II$62,FR$1)","v":{"$error":"#N/A"}},{"$f":"VLOOKUP(DropDownList!$B$24,CntyQuery!$A$52:$II$62,FS$1)","v":{"$error":"#N/A"}},{"$f":"VLOOKUP(DropDownList!$B$24,CntyQuery!$A$52:$II$62,FT$1)","v":{"$error":"#N/A"}},{"$f":"VLOOKUP(DropDownList!$B$24,CntyQuery!$A$52:$II$62,FU$1)","v":{"$error":"#N/A"}},{"$f":"VLOOKUP(DropDownList!$B$24,CntyQuery!$A$52:$II$62,FV$1)","v":{"$error":"#N/A"}},{"$f":"VLOOKUP(DropDownList!$B$24,CntyQuery!$A$52:$II$62,FW$1)","v":{"$error":"#N/A"}},{"$f":"VLOOKUP(DropDownList!$B$24,CntyQuery!$A$52:$II$62,FX$1)","v":{"$error":"#N/A"}},{"$f":"VLOOKUP(DropDownList!$B$24,CntyQuery!$A$52:$II$62,FY$1)","v":{"$error":"#N/A"}},{"$f":"VLOOKUP(DropDownList!$B$24,CntyQuery!$A$52:$II$62,FZ$1)","v":{"$error":"#N/A"}},{"$f":"VLOOKUP(DropDownList!$B$24,CntyQuery!$A$52:$II$62,GA$1)","v":{"$error":"#N/A"}},{"$f":"VLOOKUP(DropDownList!$B$24,CntyQuery!$A$52:$II$62,GB$1)","v":{"$error":"#N/A"}},{"$f":"VLOOKUP(DropDownList!$B$24,CntyQuery!$A$52:$II$62,GC$1)","v":{"$error":"#N/A"}},{"$f":"VLOOKUP(DropDownList!$B$24,CntyQuery!$A$52:$II$62,GD$1)","v":{"$error":"#N/A"}},{"$f":"VLOOKUP(DropDownList!$B$24,CntyQuery!$A$52:$II$62,GE$1)","v":{"$error":"#N/A"}},{"$f":"VLOOKUP(DropDownList!$B$24,CntyQuery!$A$52:$II$62,GF$1)","v":{"$error":"#N/A"}},{"$f":"VLOOKUP(DropDownList!$B$24,CntyQuery!$A$52:$II$62,GG$1)","v":{"$error":"#N/A"}},{"$f":"VLOOKUP(DropDownList!$B$24,CntyQuery!$A$52:$II$62,GH$1)","v":{"$error":"#N/A"}},{"$f":"VLOOKUP(DropDownList!$B$24,CntyQuery!$A$52:$II$62,GI$1)","v":{"$error":"#N/A"}},{"$f":"VLOOKUP(DropDownList!$B$24,CntyQuery!$A$52:$II$62,GJ$1)","v":{"$error":"#N/A"}},{"$f":"VLOOKUP(DropDownList!$B$24,CntyQuery!$A$52:$II$62,GK$1)","v":{"$error":"#N/A"}},{"$f":"VLOOKUP(DropDownList!$B$24,CntyQuery!$A$52:$II$62,GL$1)","v":{"$error":"#N/A"}},{"$f":"VLOOKUP(DropDownList!$B$24,CntyQuery!$A$52:$II$62,GM$1)","v":{"$error":"#N/A"}},{"$f":"VLOOKUP(DropDownList!$B$24,CntyQuery!$A$52:$II$62,GN$1)","v":{"$error":"#N/A"}},{"$f":"VLOOKUP(DropDownList!$B$24,CntyQuery!$A$52:$II$62,GO$1)","v":{"$error":"#N/A"}},{"$f":"VLOOKUP(DropDownList!$B$24,CntyQuery!$A$52:$II$62,GP$1)","v":{"$error":"#N/A"}},{"$f":"VLOOKUP(DropDownList!$B$24,CntyQuery!$A$52:$II$62,GQ$1)","v":{"$error":"#N/A"}},{"$f":"VLOOKUP(DropDownList!$B$24,CntyQuery!$A$52:$II$62,GR$1)","v":{"$error":"#N/A"}},{"$f":"VLOOKUP(DropDownList!$B$24,CntyQuery!$A$52:$II$62,GS$1)","v":{"$error":"#N/A"}},{"$f":"VLOOKUP(DropDownList!$B$24,CntyQuery!$A$52:$II$62,GT$1)","v":{"$error":"#N/A"}},{"$f":"VLOOKUP(DropDownList!$B$24,CntyQuery!$A$52:$II$62,GU$1)","v":{"$error":"#N/A"}},{"$f":"VLOOKUP(DropDownList!$B$24,CntyQuery!$A$52:$II$62,GV$1)","v":{"$error":"#N/A"}},{"$f":"VLOOKUP(DropDownList!$B$24,CntyQuery!$A$52:$II$62,GW$1)","v":{"$error":"#N/A"}},{"$f":"VLOOKUP(DropDownList!$B$24,CntyQuery!$A$52:$II$62,GX$1)","v":{"$error":"#N/A"}},{"$f":"VLOOKUP(DropDownList!$B$24,CntyQuery!$A$52:$II$62,GY$1)","v":{"$error":"#N/A"}},{"$f":"VLOOKUP(DropDownList!$B$24,CntyQuery!$A$52:$II$62,GZ$1)","v":{"$error":"#N/A"}},{"$f":"VLOOKUP(DropDownList!$B$24,CntyQuery!$A$52:$II$62,HA$1)","v":{"$error":"#N/A"}},{"$f":"VLOOKUP(DropDownList!$B$24,CntyQuery!$A$52:$II$62,HB$1)","v":{"$error":"#N/A"}},{"$f":"VLOOKUP(DropDownList!$B$24,CntyQuery!$A$52:$II$62,HC$1)","v":{"$error":"#N/A"}},{"$f":"VLOOKUP(DropDownList!$B$24,CntyQuery!$A$52:$II$62,HD$1)","v":{"$error":"#N/A"}},{"$f":"VLOOKUP(DropDownList!$B$24,CntyQuery!$A$52:$II$62,HE$1)","v":{"$error":"#N/A"}},{"$f":"VLOOKUP(DropDownList!$B$24,CntyQuery!$A$52:$II$62,HF$1)","v":{"$error":"#N/A"}},{"$f":"VLOOKUP(DropDownList!$B$24,CntyQuery!$A$52:$II$62,HG$1)","v":{"$error":"#N/A"}},{"$f":"VLOOKUP(DropDownList!$B$24,CntyQuery!$A$52:$II$62,HH$1)","v":{"$error":"#N/A"}},{"$f":"VLOOKUP(DropDownList!$B$24,CntyQuery!$A$52:$II$62,HI$1)","v":{"$error":"#N/A"}},{"$f":"VLOOKUP(DropDownList!$B$24,CntyQuery!$A$52:$II$62,HJ$1)","v":{"$error":"#N/A"}},{"$f":"VLOOKUP(DropDownList!$B$24,CntyQuery!$A$52:$II$62,HK$1)","v":{"$error":"#N/A"}},{"$f":"VLOOKUP(DropDownList!$B$24,CntyQuery!$A$52:$II$62,HL$1)","v":{"$error":"#N/A"}},{"$f":"VLOOKUP(DropDownList!$B$24,CntyQuery!$A$52:$II$62,HM$1)","v":{"$error":"#N/A"}},{"$f":"VLOOKUP(DropDownList!$B$24,CntyQuery!$A$52:$II$62,HN$1)","v":{"$error":"#N/A"}},{"$f":"VLOOKUP(DropDownList!$B$24,CntyQuery!$A$52:$II$62,HO$1)","v":{"$error":"#N/A"}},{"$f":"VLOOKUP(DropDownList!$B$24,CntyQuery!$A$52:$II$62,HP$1)","v":{"$error":"#N/A"}},{"$f":"VLOOKUP(DropDownList!$B$24,CntyQuery!$A$52:$II$62,HQ$1)","v":{"$error":"#N/A"}},{"$f":"VLOOKUP(DropDownList!$B$24,CntyQuery!$A$52:$II$62,HR$1)","v":{"$error":"#N/A"}},{"$f":"VLOOKUP(DropDownList!$B$24,CntyQuery!$A$52:$II$62,HS$1)","v":{"$error":"#N/A"}},{"$f":"VLOOKUP(DropDownList!$B$24,CntyQuery!$A$52:$II$62,HT$1)","v":{"$error":"#N/A"}},{"$f":"VLOOKUP(DropDownList!$B$24,CntyQuery!$A$52:$II$62,HU$1)","v":{"$error":"#N/A"}},{"$f":"VLOOKUP(DropDownList!$B$24,CntyQuery!$A$52:$II$62,HV$1)","v":{"$error":"#N/A"}},{"$f":"VLOOKUP(DropDownList!$B$24,CntyQuery!$A$52:$II$62,HW$1)","v":{"$error":"#N/A"}},{"$f":"VLOOKUP(DropDownList!$B$24,CntyQuery!$A$52:$II$62,HX$1)","v":{"$error":"#N/A"}},{"$f":"VLOOKUP(DropDownList!$B$24,CntyQuery!$A$52:$II$62,HY$1)","v":{"$error":"#N/A"}},{"$f":"VLOOKUP(DropDownList!$B$24,CntyQuery!$A$52:$II$62,HZ$1)","v":{"$error":"#N/A"}},{"$f":"VLOOKUP(DropDownList!$B$24,CntyQuery!$A$52:$II$62,IA$1)","v":{"$error":"#N/A"}},{"$f":"VLOOKUP(DropDownList!$B$24,CntyQuery!$A$52:$II$62,IB$1)","v":{"$error":"#N/A"}},{"$f":"VLOOKUP(DropDownList!$B$24,CntyQuery!$A$52:$II$62,IC$1)","v":{"$error":"#N/A"}},{"$f":"VLOOKUP(DropDownList!$B$24,CntyQuery!$A$52:$II$62,ID$1)","v":{"$error":"#N/A"}},{"$f":"VLOOKUP(DropDownList!$B$24,CntyQuery!$A$52:$II$62,IE$1)","v":{"$error":"#N/A"}},{"$f":"VLOOKUP(DropDownList!$B$24,CntyQuery!$A$52:$II$62,IF$1)","v":{"$error":"#N/A"}},{"$f":"VLOOKUP(DropDownList!$B$24,CntyQuery!$A$52:$II$62,IG$1)","v":{"$error":"#N/A"}},{"$f":"VLOOKUP(DropDownList!$B$24,CntyQuery!$A$52:$II$62,IH$1)","v":{"$error":"#N/A"}},{"$f":"VLOOKUP(DropDownList!$B$24,CntyQuery!$A$52:$II$62,II$1)","v":{"$error":"#N/A"}}]
[]
[]
[]
["TOWN_NAME","FIPS","TOWNCNTY","COUSUB","POP80","POP90CDCEN","POP2000CEN","POP2010CEN","POP2020CEN","POP2025-Proj","POP2030-Proj","POP2035-Proj","SF80","MF80","MH80","SF81","MF81","MH81","SF82","MF82","MH82","SF83","MF83","MH83","SF84_OSP","MF84_OSP","MH84_OSP","SF85_OSP","MF85_OSP","MH85_OSP","SF86_OSP","MF86_OSP","MH86_OSP","SF87_OSP","MF87_OSP","MH87_OSP","SF88_OSP","MF88_OSP","MH88_OSP","SF89_OSP","MF89_OSP","MH89_OSP","SF90_OSP","MF90_OSP","MH90_OSP","SF91_OSP","MF91_OSP","MH91_OSP","SF92_OSP","MF92_OSP","MH92_OSP","SF93_OSP","MF93_OSP","MH93_OSP","SF94_OSP","MF94_OSP","MH94_OSP","SF95_OSP","MF95_OSP","MH95_OSP","SF96_OSP","MF96_OSP","MH96_OSP","SF97_OSP","MF97_OSP","MH97_OSP","SF98_OSP","MF98_OSP","MH98_OSP","SF99_OSP","MF99_OSP","MH99_OSP","SF00_OSP","MF00_OSP","MH00_OSP","SF01_OSP","MF01_OSP","MH01_OSP","SF02_OSP","MF02_OSP","MH02_OSP","SF03_OSP","MF03_OSP","MH03_OSP","SF04_OSP","MF04_OSP","MH04_OSP","SF05_OSP","MF05_OSP","MH05_OSP","SF06_OSP","MF06_OSP","MH06_OSP","SF07_OSP","MF07_OSP","MH07_OSP","SF08_OSP","MF08_OSP","MH08_OSP","SF09_OSP","MF09_OSP","MH09_OSP","SF10_OSP","MF10_OSP","MH10_OSP","SF11_OSP","MF11_OSP","MH11_OSP","SF12_OSP","MF12_OSP","MH12_OSP","SF13_OSP","MF13_OSP","MH13_OSP","SF14_OSP","MF14_OSP","MH14_OSP","SF15_OSP","MF15_OSP","MH15_OSP","SF16_OSP","MF16_OSP","MH16_OSP","SF17_OSP","MF17_OSP","MH17_OSP","SF18_OSP","MF18_OSP","MH18_OSP","SF19_OSP","MF19_OSP","MH19_OSP","SF20_OSP","MF20_OSP","MH20_OSP","SF20 Census_OSP","MF20 Census OSP","MH20 Census_OSP","SF21_OSP","MF21_OSP","MH21_OSP","COMMENTS","CNTY_CODE"]
[{"$f":"VLOOKUP(DropDownList!$B$24,CntyQuery!$A$99:$FT$117,A$1)","v":"Wolfeboro"},{"$f":"VLOOKUP(DropDownList!$B$24,CntyQuery!$A$99:$FT$117,B$1)","v":2},{"$f":"VLOOKUP(DropDownList!$B$24,CntyQuery!$A$70:$FZ$88,C$1)","v":218},{"$f":"VLOOKUP(DropDownList!$B$24,CntyQuery!$A$70:$FZ$88,D$1)","v":"86420"},{"$f":"VLOOKUP(DropDownList!$B$24,CntyQuery!$A$70:$FZ$88,E$1)","v":3968},{"$f":"VLOOKUP(DropDownList!$B$24,CntyQuery!$A$70:$FZ$88,F$1)","v":4807},{"$f":"VLOOKUP(DropDownList!$B$24,CntyQuery!$A$70:$FZ$88,G$1)","v":6083},{"$f":"VLOOKUP(DropDownList!$B$24,CntyQuery!$A$70:$FZ$88,H$1)","v":6269},{"$f":"VLOOKUP(DropDownList!$B$24,CntyQuery!$A$70:$FZ$88,I$1)","v":6416},{"$f":"VLOOKUP(DropDownList!$B$24,CntyQuery!$A$70:$FZ$88,J$1)","v":6696},{"$f":"VLOOKUP(DropDownList!$B$24,CntyQuery!$A$70:$FZ$88,K$1)","v":6917},{"$f":"VLOOKUP(DropDownList!$B$24,CntyQuery!$A$70:$FZ$88,L$1)","v":7035},{"$f":"VLOOKUP(DropDownList!$B$24,CntyQuery!$A$70:$FZ$88,M$1)","v":34},{"$f":"VLOOKUP(DropDownList!$B$24,CntyQuery!$A$70:$FZ$88,N$1)","v":7},{"$f":"VLOOKUP(DropDownList!$B$24,CntyQuery!$A$70:$FZ$88,O$1)","v":0},{"$f":"VLOOKUP(DropDownList!$B$24,CntyQuery!$A$70:$FZ$88,P$1)","v":26},{"$f":"VLOOKUP(DropDownList!$B$24,CntyQuery!$A$70:$FZ$88,Q$1)","v":16},{"$f":"VLOOKUP(DropDownList!$B$24,CntyQuery!$A$70:$FZ$88,R$1)","v":0},{"$f":"VLOOKUP(DropDownList!$B$24,CntyQuery!$A$70:$FZ$88,S$1)","v":31},{"$f":"VLOOKUP(DropDownList!$B$24,CntyQuery!$A$70:$FZ$88,T$1)","v":38},{"$f":"VLOOKUP(DropDownList!$B$24,CntyQuery!$A$70:$FZ$88,U$1)","v":0},{"$f":"VLOOKUP(DropDownList!$B$24,CntyQuery!$A$70:$FZ$88,V$1)","v":37},{"$f":"VLOOKUP(DropDownList!$B$24,CntyQuery!$A$70:$FZ$88,W$1)","v":0},{"$f":"VLOOKUP(DropDownList!$B$24,CntyQuery!$A$70:$FZ$88,X$1)","v":0},{"$f":"VLOOKUP(DropDownList!$B$24,CntyQuery!$A$70:$FZ$88,Y$1)","v":80},{"$f":"VLOOKUP(DropDownList!$B$24,CntyQuery!$A$70:$FZ$88,Z$1)","v":6},{"$f":"VLOOKUP(DropDownList!$B$24,CntyQuery!$A$70:$FZ$88,AA$1)","v":0},{"$f":"VLOOKUP(DropDownList!$B$24,CntyQuery!$A$70:$FZ$88,AB$1)","v":91},{"$f":"VLOOKUP(DropDownList!$B$24,CntyQuery!$A$70:$FZ$88,AC$1)","v":9},{"$f":"VLOOKUP(DropDownList!$B$24,CntyQuery!$A$70:$FZ$88,AD$1)","v":12},{"$f":"VLOOKUP(DropDownList!$B$24,CntyQuery!$A$70:$FZ$88,AE$1)","v":160},{"$f":"VLOOKUP(DropDownList!$B$24,CntyQuery!$A$70:$FZ$88,AF$1)","v":40},{"$f":"VLOOKUP(DropDownList!$B$24,CntyQuery!$A$70:$FZ$88,AG$1)","v":23},{"$f":"VLOOKUP(DropDownList!$B$24,CntyQuery!$A$70:$FZ$88,AH$1)","v":59},{"$f":"VLOOKUP(DropDownList!$B$24,CntyQuery!$A$70:$FZ$88,AI$1)","v":-1},{"$f":"VLOOKUP(DropDownList!$B$24,CntyQuery!$A$70:$FZ$88,AJ$1)","v":4},{"$f":"VLOOKUP(DropDownList!$B$24,CntyQuery!$A$70:$FZ$88,AK$1)","v":57},{"$f":"VLOOKUP(DropDownList!$B$24,CntyQuery!$A$70:$FZ$88,AL$1)","v":3},{"$f":"VLOOKUP(DropDownList!$B$24,CntyQuery!$A$70:$FZ$88,AM$1)","v":16},{"$f":"VLOOKUP(DropDownList!$B$24,CntyQuery!$A$70:$FZ$88,AN$1)","v":19},{"$f":"VLOOKUP(DropDownList!$B$24,CntyQuery!$A$70:$FZ$88,AO$1)","v":2},{"$f":"VLOOKUP(DropDownList!$B$24,CntyQuery!$A$70:$FZ$88,AP$1)","v":5},{"$f":"VLOOKUP(DropDownList!$B$24,CntyQuery!$A$70:$FZ$88,AQ$1)","v":33},{"$f":"VLOOKUP(DropDownList!$B$24,CntyQuery!$A$70:$FZ$88,AR$1)","v":0},{"$f":"VLOOKUP(DropDownList!$B$24,CntyQuery!$A$70:$FZ$88,AS$1)","v":1},{"$f":"VLOOKUP(DropDownList!$B$24,CntyQuery!$A$70:$FZ$88,AT$1)","v":55},{"$f":"VLOOKUP(DropDownList!$B$24,CntyQuery!$A$70:$FZ$88,AU$1)","v":0},{"$f":"VLOOKUP(DropDownList!$B$24,CntyQuery!$A$70:$FZ$88,AV$1)","v":3},{"$f":"VLOOKUP(DropDownList!$B$24,CntyQuery!$A$70:$FZ$88,AW$1)","v":45},{"$f":"VLOOKUP(DropDownList!$B$24,CntyQuery!$A$70:$FZ$88,AX$1)","v":2},{"$f":"VLOOKUP(DropDownList!$B$24,CntyQuery!$A$70:$FZ$88,AY$1)","v":3},{"$f":"VLOOKUP(DropDownList!$B$24,CntyQuery!$A$70:$FZ$88,AZ$1)","v":50},{"$f":"VLOOKUP(DropDownList!$B$24,CntyQuery!$A$70:$FZ$88,BA$1)","v":3},{"$f":"VLOOKUP(DropDownList!$B$24,CntyQuery!$A$70:$FZ$88,BB$1)","v":0},{"$f":"VLOOKUP(DropDownList!$B$24,CntyQuery!$A$70:$FZ$88,BC$1)","v":44},{"$f":"VLOOKUP(DropDownList!$B$24,CntyQuery!$A$70:$FZ$88,BD$1)","v":0},{"$f":"VLOOKUP(DropDownList!$B$24,CntyQuery!$A$70:$FZ$88,BE$1)","v":2},{"$f":"VLOOKUP(DropDownList!$B$24,CntyQuery!$A$70:$FZ$88,BF$1)","v":40},{"$f":"VLOOKUP(DropDownList!$B$24,CntyQuery!$A$70:$FZ$88,BG$1)","v":0},{"$f":"VLOOKUP(DropDownList!$B$24,CntyQuery!$A$70:$FZ$88,BH$1)","v":7},{"$f":"VLOOKUP(DropDownList!$B$24,CntyQuery!$A$70:$FZ$88,BI$1)","v":44},{"$f":"VLOOKUP(DropDownList!$B$24,CntyQuery!$A$70:$FZ$88,BJ$1)","v":1},{"$f":"VLOOKUP(DropDownList!$B$24,CntyQuery!$A$70:$FZ$88,BK$1)","v":5},{"$f":"VLOOKUP(DropDownList!$B$24,CntyQuery!$A$70:$FZ$88,BL$1)","v":19},{"$f":"VLOOKUP(DropDownList!$B$24,CntyQuery!$A$70:$FZ$88,BM$1)","v":0},{"$f":"VLOOKUP(DropDownList!$B$24,CntyQuery!$A$70:$FZ$88,BN$1)","v":0},{"$f":"VLOOKUP(DropDownList!$B$24,CntyQuery!$A$70:$FZ$88,BO$1)","v":43},{"$f":"VLOOKUP(DropDownList!$B$24,CntyQuery!$A$70:$FZ$88,BP$1)","v":0},{"$f":"VLOOKUP(DropDownList!$B$24,CntyQuery!$A$70:$FZ$88,BQ$1)","v":6},{"$f":"VLOOKUP(DropDownList!$B$24,CntyQuery!$A$70:$FZ$88,BR$1)","v":45},{"$f":"VLOOKUP(DropDownList!$B$24,CntyQuery!$A$70:$FZ$88,BS$1)","v":0},{"$f":"VLOOKUP(DropDownList!$B$24,CntyQuery!$A$70:$FZ$88,BT$1)","v":3},{"$f":"VLOOKUP(DropDownList!$B$24,CntyQuery!$A$70:$FZ$88,BU$1)","v":55},{"$f":"VLOOKUP(DropDownList!$B$24,CntyQuery!$A$70:$FZ$88,BV$1)","v":0},{"$f":"VLOOKUP(DropDownList!$B$24,CntyQuery!$A$70:$FZ$88,BW$1)","v":0},{"$f":"VLOOKUP(DropDownList!$B$24,CntyQuery!$A$70:$FZ$88,BX$1)","v":70},{"$f":"VLOOKUP(DropDownList!$B$24,CntyQuery!$A$70:$FZ$88,BY$1)","v":0},{"$f":"VLOOKUP(DropDownList!$B$24,CntyQuery!$A$70:$FZ$88,BZ$1)","v":0},{"$f":"VLOOKUP(DropDownList!$B$24,CntyQuery!$A$70:$FZ$88,CA$1)","v":66},{"$f":"VLOOKUP(DropDownList!$B$24,CntyQuery!$A$70:$FZ$88,CB$1)","v":0},{"$f":"VLOOKUP(DropDownList!$B$24,CntyQuery!$A$70:$FZ$88,CC$1)","v":1},{"$f":"VLOOKUP(DropDownList!$B$24,CntyQuery!$A$70:$FZ$88,CD$1)","v":60},{"$f":"VLOOKUP(DropDownList!$B$24,CntyQuery!$A$70:$FZ$88,CE$1)","v":0},{"$f":"VLOOKUP(DropDownList!$B$24,CntyQuery!$A$70:$FZ$88,CF$1)","v":0},{"$f":"VLOOKUP(DropDownList!$B$24,CntyQuery!$A$70:$FZ$88,CG$1)","v":60},{"$f":"VLOOKUP(DropDownList!$B$24,CntyQuery!$A$70:$FZ$88,CH$1)","v":0},{"$f":"VLOOKUP(DropDownList!$B$24,CntyQuery!$A$70:$FZ$88,CI$1)","v":0},{"$f":"VLOOKUP(DropDownList!$B$24,CntyQuery!$A$70:$FZ$88,CJ$1)","v":16},{"$f":"VLOOKUP(DropDownList!$B$24,CntyQuery!$A$70:$FZ$88,CK$1)","v":4},{"$f":"VLOOKUP(DropDownList!$B$24,CntyQuery!$A$70:$FZ$88,CL$1)","v":0},{"$f":"VLOOKUP(DropDownList!$B$24,CntyQuery!$A$70:$FZ$88,CM$1)","v":4},{"$f":"VLOOKUP(DropDownList!$B$24,CntyQuery!$A$70:$FZ$88,CN$1)","v":0},{"$f":"VLOOKUP(DropDownList!$B$24,CntyQuery!$A$70:$FZ$88,CO$1)","v":0},{"$f":"VLOOKUP(DropDownList!$B$24,CntyQuery!$A$70:$FZ$88,CP$1)","v":17},{"$f":"VLOOKUP(DropDownList!$B$24,CntyQuery!$A$70:$FZ$88,CQ$1)","v":0},{"$f":"VLOOKUP(DropDownList!$B$24,CntyQuery!$A$70:$FZ$88,CR$1)","v":0},{"$f":"VLOOKUP(DropDownList!$B$24,CntyQuery!$A$70:$FZ$88,CS$1)","v":2},{"$f":"VLOOKUP(DropDownList!$B$24,CntyQuery!$A$70:$FZ$88,CT$1)","v":2},{"$f":"VLOOKUP(DropDownList!$B$24,CntyQuery!$A$70:$FZ$88,CU$1)","v":0},{"$f":"VLOOKUP(DropDownList!$B$24,CntyQuery!$A$70:$FZ$88,CV$1)","v":-8},{"$f":"VLOOKUP(DropDownList!$B$24,CntyQuery!$A$70:$FZ$88,CW$1)","v":0},{"$f":"VLOOKUP(DropDownList!$B$24,CntyQuery!$A$70:$FZ$88,CX$1)","v":0},{"$f":"VLOOKUP(DropDownList!$B$24,CntyQuery!$A$70:$FZ$88,CY$1)","v":-9},{"$f":"VLOOKUP(DropDownList!$B$24,CntyQuery!$A$70:$FZ$88,CZ$1)","v":0},{"$f":"VLOOKUP(DropDownList!$B$24,CntyQuery!$A$70:$FZ$88,DA$1)","v":0},{"$f":"VLOOKUP(DropDownList!$B$24,CntyQuery!$A$70:$FZ$88,DB$1)","v":0},{"$f":"VLOOKUP(DropDownList!$B$24,CntyQuery!$A$70:$FZ$88,DC$1)","v":0},{"$f":"VLOOKUP(DropDownList!$B$24,CntyQuery!$A$70:$FZ$88,DD$1)","v":0},{"$f":"VLOOKUP(DropDownList!$B$24,CntyQuery!$A$70:$FZ$88,DE$1)","v":2},{"$f":"VLOOKUP(DropDownList!$B$24,CntyQuery!$A$70:$FZ$88,DF$1)","v":24},{"$f":"VLOOKUP(DropDownList!$B$24,CntyQuery!$A$70:$FZ$88,DG$1)","v":-1},{"$f":"VLOOKUP(DropDownList!$B$24,CntyQuery!$A$70:$FZ$88,DH$1)","v":8},{"$f":"VLOOKUP(DropDownList!$B$24,CntyQuery!$A$70:$FZ$88,DI$1)","v":24},{"$f":"VLOOKUP(DropDownList!$B$24,CntyQuery!$A$70:$FZ$88,DJ$1)","v":0},{"$f":"VLOOKUP(DropDownList!$B$24,CntyQuery!$A$70:$FZ$88,DK$1)","v":12},{"$f":"VLOOKUP(DropDownList!$B$24,CntyQuery!$A$70:$FZ$88,DL$1)","v":0},{"$f":"VLOOKUP(DropDownList!$B$24,CntyQuery!$A$70:$FZ$88,DM$1)","v":0},{"$f":"VLOOKUP(DropDownList!$B$24,CntyQuery!$A$70:$FZ$88,DN$1)","v":5},{"$f":"VLOOKUP(DropDownList!$B$24,CntyQuery!$A$70:$FZ$88,DO$1)","v":0},{"$f":"VLOOKUP(DropDownList!$B$24,CntyQuery!$A$70:$FZ$88,DP$1)","v":0},{"$f":"VLOOKUP(DropDownList!$B$24,CntyQuery!$A$70:$FZ$88,DQ$1)","v":6},{"$f":"VLOOKUP(DropDownList!$B$24,CntyQuery!$A$70:$FZ$88,DR$1)","v":0},{"$f":"VLOOKUP(DropDownList!$B$24,CntyQuery!$A$70:$FZ$88,DS$1)","v":0},{"$f":"VLOOKUP(DropDownList!$B$24,CntyQuery!$A$70:$FZ$88,DT$1)","v":15},{"$f":"VLOOKUP(DropDownList!$B$24,CntyQuery!$A$70:$FZ$88,DU$1)","v":2},{"$f":"VLOOKUP(DropDownList!$B$24,CntyQuery!$A$70:$FZ$88,DV$1)","v":0},{"$f":"VLOOKUP(DropDownList!$B$24,CntyQuery!$A$70:$FZ$88,DW$1)","v":22},{"$f":"VLOOKUP(DropDownList!$B$24,CntyQuery!$A$70:$FZ$88,DX$1)","v":2},{"$f":"VLOOKUP(DropDownList!$B$24,CntyQuery!$A$70:$FZ$88,DY$1)","v":0},{"$f":"VLOOKUP(DropDownList!$B$24,CntyQuery!$A$70:$FZ$88,DZ$1)","v":30},{"$f":"VLOOKUP(DropDownList!$B$24,CntyQuery!$A$70:$FZ$88,EA$1)","v":6},{"$f":"VLOOKUP(DropDownList!$B$24,CntyQuery!$A$70:$FZ$88,EB$1)","v":0},{"$f":"VLOOKUP(DropDownList!$B$24,CntyQuery!$A$70:$FZ$88,EC$1)","v":14},{"$f":"VLOOKUP(DropDownList!$B$24,CntyQuery!$A$70:$FZ$88,ED$1)","v":7},{"$f":"VLOOKUP(DropDownList!$B$24,CntyQuery!$A$70:$FZ$88,EE$1)","v":0},{"$f":"VLOOKUP(DropDownList!$B$24,CntyQuery!$A$70:$FZ$88,EF$1)","v":0},{"$f":"VLOOKUP(DropDownList!$B$24,CntyQuery!$A$70:$FZ$88,EG$1)","v":0},{"$f":"VLOOKUP(DropDownList!$B$24,CntyQuery!$A$70:$FZ$88,EH$1)","v":0},{"$f":"VLOOKUP(DropDownList!$B$24,CntyQuery!$A$70:$FZ$88,EI$1)","v":9},{"$f":"VLOOKUP(DropDownList!$B$24,CntyQuery!$A$70:$FZ$88,EJ$1)","v":1},{"$f":"VLOOKUP(DropDownList!$B$24,CntyQuery!$A$70:$FZ$88,EK$1)","v":0},{"$f":"VLOOKUP(DropDownList!$B$24,CntyQuery!$A$70:$FZ$88,EL$1)","v":""},{"$f":"VLOOKUP(DropDownList!$B$24,CntyQuery!$A$70:$FZ$88,EM$1)","v":2}]
[]
[]
["NH Employment Data","Query Name: DPQryEmploymentByCnty"]
["NAME","COUNTYCODE","TOTP & G2001","TOT2001","GOODPRO2001","SERVICEPROMAN2001","WAGEP & G2001","WAGETOT2001","WAGEGOODPRO2001","WAGESERVICEPRO2001","TOTP & G2002","TOT2002","GOODPRO2002","SERVICEPROMAN2002","WAGEP & G2002","WAGETOT2002","WAGEGOODPRO2002","WAGESERVICEPRO2002","TOTP & G2003","TOT2003","GOODPRO2003","SERVICEPROMAN2003","WAGEP & G2003","WAGETOT2003","WAGEGOODPRO2003","WAGESERVICEPRO2003","TOTP & G2004","TOT2004","GOODPRO2004","SERVICEPROMAN2004","WAGEP & G2004","WAGETOT2004","WAGEGOODPRO2004","WAGESERVICEPRO2004","TOTP & G2005","TOT2005","GOODPRO2005","SERVICEPROMAN2005","WAGEP & G2005","WAGETOT2005","WAGEGOODPRO2005","WAGESERVICEPRO2005","TOTP & G2006","TOT2006","GOODPRO2006","SERVICEPROMAN2006","WAGEP & G2006","WAGETOT2006","WAGEGOODPRO2006","WAGESERVICEPRO2006","TOTP & G2007","TOT2007","GOODPRO2007","SERVICEPROMAN2007","WAGEP & G2007","WAGETOT2007","WAGEGOODPRO2007","WAGESERVICEPRO2007","TOTP & G2008","TOT2008","GOODPRO2008","SERVICEPROMAN2008","WAGEP & G2008","WAGETOT2008","WAGEGOODPRO2008","WAGESERVICEPRO2008","TOTP & G2009","TOT2009","GOODPRO2009","SERVICEPROMAN2009","WAGEP & G2009","WAGETOT2009","WAGEGOODPRO2009","WAGESERVICEPRO2009","TOTP & G2010","TOT2010","GOODPRO2010","SERVICEPROMAN2010","WAGEP & G2010","WAGETOT2010","WAGEGOODPRO2010","WAGESERVICEPRO2010","TOTP & G2011","TOT2011","GOODPRO2011","SERVICEPROMAN2011","WAGEP & G2011","WAGETOT2011","WAGEGOODPRO2011","WAGESERVICEPRO2011","TOTP & G2012","TOT2012","GOODPRO2012","SERVICEPROMAN2012","WAGEP & G2012","WAGETOT2012","WAGEGOODPRO2012","WAGESERVICEPRO2012","TOTP & G2013","TOT2013","GOODPRO2013","SERVICEPROMAN2013","WAGEP & G2013","WAGETOT2013","WAGEGOODPRO2013","WAGESERVICEPRO2013","TOTP & G2014","TOT2014","GOODPRO2014","SERVICEPROMAN2014","WAGEP & G2014","WAGETOT2014","WAGEGOODPRO2014","WAGESERVICEPRO2014","TOTP & G2015","TOT2015","GOODPRO2015","SERVICEPROMAN2015","WAGEP & G2015","WAGETOT2015","WAGEGOODPRO2015","WAGESERVICEPRO2015","TOTP & G2016","TOT2016","GOODPRO2016","SERVICEPROMAN2016","WAGEP & G2016","WAGETOT2016","WAGEGOODPRO2016","WAGESERVICEPRO2016","TOTP & G2017","TOT2017","GOODPRO2017","SERVICEPROMAN2017","WAGEP & G2017","WAGETOT2017","WAGEGOODPRO2017","WAGESERVICEPRO2017","TOTP & G2018","TOT2018","GOODPRO2018","SERVICEPROMAN2018","WAGEP & G2018","WAGETOT2018","WAGEGOODPRO2018","WAGESERVICEPRO2018","TOTP & G2019","TOT2019","TOTGov2019","GOODPRO2019","SERVICEPROMAN2019","WAGEP & G2019","WAGETOT2019","WAGEGov2019","WAGEGOODPRO2019","WAGESERVICEPRO2019","TOTP & G2020","TOT2020","TOTGov2020","GOODPRO2020","SERVICEPROMAN2020","WAGEP & G2020","WAGETOT2020","WAGEGov2020","WAGEGOODPRO2020","WAGESERVICEPRO2020","TOTP & G2021","TOT2021","TOTGov2021","GOODPRO2021","SERVICEPROMAN2021","WAGEP & G2021","WAGETOT2021","WAGEGov2021","WAGEGOODPRO2021","WAGESERVICEPRO2021","TOTP & G2022","TOT2022","TOTGov2022","GOODPRO2022","SERVICEPROMAN2022","WAGEP & G2022","WAGETOT2022","WAGEGov2022","WAGEGOODPRO2022","WAGESERVICEPRO2022","COUNTYCODE"]
[{"$f":"VLOOKUP(DropDownList!$B$24,CntyQuery!$A$99:$GZ$117,A$1)","v":"Wolfeboro"},{"$f":"VLOOKUP(DropDownList!$B$24,CntyQuery!$A$99:$GZ$117,B$1)","v":2},{"$f":"VLOOKUP(DropDownList!$B$24,CntyQuery!$A$99:$GZ$117,C$1)","v":3283},{"$f":"VLOOKUP(DropDownList!$B$24,CntyQuery!$A$99:$GZ$117,D$1)","v":2830},{"$f":"VLOOKUP(DropDownList!$B$24,CntyQuery!$A$99:$GZ$117,E$1)","v":374},{"$f":"VLOOKUP(DropDownList!$B$24,CntyQuery!$A$99:$GZ$117,F$1)","v":2456},{"$f":"VLOOKUP(DropDownList!$B$24,CntyQuery!$A$99:$GZ$117,G$1)","v":545.19000000000005},{"$f":"VLOOKUP(DropDownList!$B$24,CntyQuery!$A$99:$GZ$117,H$1)","v":535.09},{"$f":"VLOOKUP(DropDownList!$B$24,CntyQuery!$A$99:$GZ$117,I$1)","v":599.39},{"$f":"VLOOKUP(DropDownList!$B$24,CntyQuery!$A$99:$GZ$117,J$1)","v":525.30999999999995},{"$f":"VLOOKUP(DropDownList!$B$24,CntyQuery!$A$99:$GZ$117,K$1)","v":3409},{"$f":"VLOOKUP(DropDownList!$B$24,CntyQuery!$A$99:$GZ$117,L$1)","v":2937},{"$f":"VLOOKUP(DropDownList!$B$24,CntyQuery!$A$99:$GZ$117,M$1)","v":358},{"$f":"VLOOKUP(DropDownList!$B$24,CntyQuery!$A$99:$GZ$117,N$1)","v":2579},{"$f":"VLOOKUP(DropDownList!$B$24,CntyQuery!$A$99:$GZ$117,O$1)","v":544.08000000000004},{"$f":"VLOOKUP(DropDownList!$B$24,CntyQuery!$A$99:$GZ$117,P$1)","v":534.38},{"$f":"VLOOKUP(DropDownList!$B$24,CntyQuery!$A$99:$GZ$117,Q$1)","v":565.14},{"$f":"VLOOKUP(DropDownList!$B$24,CntyQuery!$A$99:$GZ$117,R$1)","v":530.11},{"$f":"VLOOKUP(DropDownList!$B$24,CntyQuery!$A$99:$GZ$117,S$1)","v":3459},{"$f":"VLOOKUP(DropDownList!$B$24,CntyQuery!$A$99:$GZ$117,T$1)","v":2989},{"$f":"VLOOKUP(DropDownList!$B$24,CntyQuery!$A$99:$GZ$117,U$1)","v":372},{"$f":"VLOOKUP(DropDownList!$B$24,CntyQuery!$A$99:$GZ$117,V$1)","v":2617},{"$f":"VLOOKUP(DropDownList!$B$24,CntyQuery!$A$99:$GZ$117,W$1)","v":568.21},{"$f":"VLOOKUP(DropDownList!$B$24,CntyQuery!$A$99:$GZ$117,X$1)","v":557.88},{"$f":"VLOOKUP(DropDownList!$B$24,CntyQuery!$A$99:$GZ$117,Y$1)","v":609.41999999999996},{"$f":"VLOOKUP(DropDownList!$B$24,CntyQuery!$A$99:$GZ$117,Z$1)","v":550.54999999999995},{"$f":"VLOOKUP(DropDownList!$B$24,CntyQuery!$A$99:$GZ$117,AA$1)","v":3540},{"$f":"VLOOKUP(DropDownList!$B$24,CntyQuery!$A$99:$GZ$117,AB$1)","v":3068},{"$f":"VLOOKUP(DropDownList!$B$24,CntyQuery!$A$99:$GZ$117,AC$1)","v":345},{"$f":"VLOOKUP(DropDownList!$B$24,CntyQuery!$A$99:$GZ$117,AD$1)","v":2724},{"$f":"VLOOKUP(DropDownList!$B$24,CntyQuery!$A$99:$GZ$117,AE$1)","v":598.21},{"$f":"VLOOKUP(DropDownList!$B$24,CntyQuery!$A$99:$GZ$117,AF$1)","v":589.04999999999995},{"$f":"VLOOKUP(DropDownList!$B$24,CntyQuery!$A$99:$GZ$117,AG$1)","v":653.38},{"$f":"VLOOKUP(DropDownList!$B$24,CntyQuery!$A$99:$GZ$117,AH$1)","v":580.91},{"$f":"VLOOKUP(DropDownList!$B$24,CntyQuery!$A$99:$GZ$117,AI$1)","v":3514},{"$f":"VLOOKUP(DropDownList!$B$24,CntyQuery!$A$99:$GZ$117,AJ$1)","v":3009},{"$f":"VLOOKUP(DropDownList!$B$24,CntyQuery!$A$99:$GZ$117,AK$1)","v":342},{"$f":"VLOOKUP(DropDownList!$B$24,CntyQuery!$A$99:$GZ$117,AL$1)","v":2667},{"$f":"VLOOKUP(DropDownList!$B$24,CntyQuery!$A$99:$GZ$117,AM$1)","v":611.36},{"$f":"VLOOKUP(DropDownList!$B$24,CntyQuery!$A$99:$GZ$117,AN$1)","v":605.86},{"$f":"VLOOKUP(DropDownList!$B$24,CntyQuery!$A$99:$GZ$117,AO$1)","v":682.86},{"$f":"VLOOKUP(DropDownList!$B$24,CntyQuery!$A$99:$GZ$117,AP$1)","v":595.99},{"$f":"VLOOKUP(DropDownList!$B$24,CntyQuery!$A$99:$GZ$117,AQ$1)","v":3493},{"$f":"VLOOKUP(DropDownList!$B$24,CntyQuery!$A$99:$GZ$117,AR$1)","v":2981},{"$f":"VLOOKUP(DropDownList!$B$24,CntyQuery!$A$99:$GZ$117,AS$1)","v":342},{"$f":"VLOOKUP(DropDownList!$B$24,CntyQuery!$A$99:$GZ$117,AT$1)","v":2639},{"$f":"VLOOKUP(DropDownList!$B$24,CntyQuery!$A$99:$GZ$117,AU$1)","v":640.87},{"$f":"VLOOKUP(DropDownList!$B$24,CntyQuery!$A$99:$GZ$117,AV$1)","v":637.52},{"$f":"VLOOKUP(DropDownList!$B$24,CntyQuery!$A$99:$GZ$117,AW$1)","v":777.77},{"$f":"VLOOKUP(DropDownList!$B$24,CntyQuery!$A$99:$GZ$117,AX$1)","v":619.37},{"$f":"VLOOKUP(DropDownList!$B$24,CntyQuery!$A$99:$GZ$117,AY$1)","v":3410},{"$f":"VLOOKUP(DropDownList!$B$24,CntyQuery!$A$99:$GZ$117,AZ$1)","v":2897},{"$f":"VLOOKUP(DropDownList!$B$24,CntyQuery!$A$99:$GZ$117,BA$1)","v":322},{"$f":"VLOOKUP(DropDownList!$B$24,CntyQuery!$A$99:$GZ$117,BB$1)","v":2575},{"$f":"VLOOKUP(DropDownList!$B$24,CntyQuery!$A$99:$GZ$117,BC$1)","v":695.31},{"$f":"VLOOKUP(DropDownList!$B$24,CntyQuery!$A$99:$GZ$117,BD$1)","v":695.42},{"$f":"VLOOKUP(DropDownList!$B$24,CntyQuery!$A$99:$GZ$117,BE$1)","v":838.44},{"$f":"VLOOKUP(DropDownList!$B$24,CntyQuery!$A$99:$GZ$117,BF$1)","v":677.53},{"$f":"VLOOKUP(DropDownList!$B$24,CntyQuery!$A$99:$GZ$117,BG$1)","v":3382},{"$f":"VLOOKUP(DropDownList!$B$24,CntyQuery!$A$99:$GZ$117,BH$1)","v":2873},{"$f":"VLOOKUP(DropDownList!$B$24,CntyQuery!$A$99:$GZ$117,BI$1)","v":312},{"$f":"VLOOKUP(DropDownList!$B$24,CntyQuery!$A$99:$GZ$117,BJ$1)","v":2562},{"$f":"VLOOKUP(DropDownList!$B$24,CntyQuery!$A$99:$GZ$117,BK$1)","v":715.72},{"$f":"VLOOKUP(DropDownList!$B$24,CntyQuery!$A$99:$GZ$117,BL$1)","v":713.3},{"$f":"VLOOKUP(DropDownList!$B$24,CntyQuery!$A$99:$GZ$117,BM$1)","v":818.01},{"$f":"VLOOKUP(DropDownList!$B$24,CntyQuery!$A$99:$GZ$117,BN$1)","v":700.56},{"$f":"VLOOKUP(DropDownList!$B$24,CntyQuery!$A$99:$GZ$117,BO$1)","v":3292},{"$f":"VLOOKUP(DropDownList!$B$24,CntyQuery!$A$99:$GZ$117,BP$1)","v":2770},{"$f":"VLOOKUP(DropDownList!$B$24,CntyQuery!$A$99:$GZ$117,BQ$1)","v":272},{"$f":"VLOOKUP(DropDownList!$B$24,CntyQuery!$A$99:$GZ$117,BR$1)","v":2498},{"$f":"VLOOKUP(DropDownList!$B$24,CntyQuery!$A$99:$GZ$117,BS$1)","v":691.4},{"$f":"VLOOKUP(DropDownList!$B$24,CntyQuery!$A$99:$GZ$117,BT$1)","v":681.23},{"$f":"VLOOKUP(DropDownList!$B$24,CntyQuery!$A$99:$GZ$117,BU$1)","v":841.75},{"$f":"VLOOKUP(DropDownList!$B$24,CntyQuery!$A$99:$GZ$117,BV$1)","v":663.73},{"$f":"VLOOKUP(DropDownList!$B$24,CntyQuery!$A$99:$GZ$117,BW$1)","v":3196},{"$f":"VLOOKUP(DropDownList!$B$24,CntyQuery!$A$99:$GZ$117,BX$1)","v":2688},{"$f":"VLOOKUP(DropDownList!$B$24,CntyQuery!$A$99:$GZ$117,BY$1)","v":261},{"$f":"VLOOKUP(DropDownList!$B$24,CntyQuery!$A$99:$GZ$117,BZ$1)","v":2427},{"$f":"VLOOKUP(DropDownList!$B$24,CntyQuery!$A$99:$GZ$117,CA$1)","v":702.45},{"$f":"VLOOKUP(DropDownList!$B$24,CntyQuery!$A$99:$GZ$117,CB$1)","v":692.79},{"$f":"VLOOKUP(DropDownList!$B$24,CntyQuery!$A$99:$GZ$117,CC$1)","v":836.35},{"$f":"VLOOKUP(DropDownList!$B$24,CntyQuery!$A$99:$GZ$117,CD$1)","v":677.38},{"$f":"VLOOKUP(DropDownList!$B$24,CntyQuery!$A$99:$GZ$117,CE$1)","v":3118},{"$f":"VLOOKUP(DropDownList!$B$24,CntyQuery!$A$99:$GZ$117,CF$1)","v":2616},{"$f":"VLOOKUP(DropDownList!$B$24,CntyQuery!$A$99:$GZ$117,CG$1)","v":273},{"$f":"VLOOKUP(DropDownList!$B$24,CntyQuery!$A$99:$GZ$117,CH$1)","v":2344},{"$f":"VLOOKUP(DropDownList!$B$24,CntyQuery!$A$99:$GZ$117,CI$1)","v":718.76},{"$f":"VLOOKUP(DropDownList!$B$24,CntyQuery!$A$99:$GZ$117,CJ$1)","v":701.84},{"$f":"VLOOKUP(DropDownList!$B$24,CntyQuery!$A$99:$GZ$117,CK$1)","v":851.81},{"$f":"VLOOKUP(DropDownList!$B$24,CntyQuery!$A$99:$GZ$117,CL$1)","v":684.4},{"$f":"VLOOKUP(DropDownList!$B$24,CntyQuery!$A$99:$GZ$117,CM$1)","v":3028},{"$f":"VLOOKUP(DropDownList!$B$24,CntyQuery!$A$99:$GZ$117,CN$1)","v":2517},{"$f":"VLOOKUP(DropDownList!$B$24,CntyQuery!$A$99:$GZ$117,CO$1)","v":211},{"$f":"VLOOKUP(DropDownList!$B$24,CntyQuery!$A$99:$GZ$117,CP$1)","v":2306},{"$f":"VLOOKUP(DropDownList!$B$24,CntyQuery!$A$99:$GZ$117,CQ$1)","v":720.14},{"$f":"VLOOKUP(DropDownList!$B$24,CntyQuery!$A$99:$GZ$117,CR$1)","v":702.92},{"$f":"VLOOKUP(DropDownList!$B$24,CntyQuery!$A$99:$GZ$117,CS$1)","v":781.9},{"$f":"VLOOKUP(DropDownList!$B$24,CntyQuery!$A$99:$GZ$117,CT$1)","v":695.7},{"$f":"VLOOKUP(DropDownList!$B$24,CntyQuery!$A$99:$GZ$117,CU$1)","v":3001},{"$f":"VLOOKUP(DropDownList!$B$24,CntyQuery!$A$99:$GZ$117,CV$1)","v":2480},{"$f":"VLOOKUP(DropDownList!$B$24,CntyQuery!$A$99:$GZ$117,CW$1)","v":216},{"$f":"VLOOKUP(DropDownList!$B$24,CntyQuery!$A$99:$GZ$117,CX$1)","v":2264},{"$f":"VLOOKUP(DropDownList!$B$24,CntyQuery!$A$99:$GZ$117,CY$1)","v":740.65},{"$f":"VLOOKUP(DropDownList!$B$24,CntyQuery!$A$99:$GZ$117,CZ$1)","v":726.5},{"$f":"VLOOKUP(DropDownList!$B$24,CntyQuery!$A$99:$GZ$117,DA$1)","v":827.03},{"$f":"VLOOKUP(DropDownList!$B$24,CntyQuery!$A$99:$GZ$117,DB$1)","v":716.89},{"$f":"VLOOKUP(DropDownList!$B$24,CntyQuery!$A$99:$GZ$117,DC$1)","v":2993},{"$f":"VLOOKUP(DropDownList!$B$24,CntyQuery!$A$99:$GZ$117,DD$1)","v":2477},{"$f":"VLOOKUP(DropDownList!$B$24,CntyQuery!$A$99:$GZ$117,DE$1)","v":214},{"$f":"VLOOKUP(DropDownList!$B$24,CntyQuery!$A$99:$GZ$117,DF$1)","v":2262},{"$f":"VLOOKUP(DropDownList!$B$24,CntyQuery!$A$99:$GZ$117,DG$1)","v":750.08},{"$f":"VLOOKUP(DropDownList!$B$24,CntyQuery!$A$99:$GZ$117,DH$1)","v":735.1},{"$f":"VLOOKUP(DropDownList!$B$24,CntyQuery!$A$99:$GZ$117,DI$1)","v":818.56},{"$f":"VLOOKUP(DropDownList!$B$24,CntyQuery!$A$99:$GZ$117,DJ$1)","v":727.19},{"$f":"VLOOKUP(DropDownList!$B$24,CntyQuery!$A$99:$GZ$117,DK$1)","v":3025},{"$f":"VLOOKUP(DropDownList!$B$24,CntyQuery!$A$99:$GZ$117,DL$1)","v":2515},{"$f":"VLOOKUP(DropDownList!$B$24,CntyQuery!$A$99:$GZ$117,DM$1)","v":223},{"$f":"VLOOKUP(DropDownList!$B$24,CntyQuery!$A$99:$GZ$117,DN$1)","v":2292},{"$f":"VLOOKUP(DropDownList!$B$24,CntyQuery!$A$99:$GZ$117,DO$1)","v":768.38},{"$f":"VLOOKUP(DropDownList!$B$24,CntyQuery!$A$99:$GZ$117,DP$1)","v":753.87},{"$f":"VLOOKUP(DropDownList!$B$24,CntyQuery!$A$99:$GZ$117,DQ$1)","v":865.09},{"$f":"VLOOKUP(DropDownList!$B$24,CntyQuery!$A$99:$GZ$117,DR$1)","v":743.05},{"$f":"VLOOKUP(DropDownList!$B$24,CntyQuery!$A$99:$GZ$117,DS$1)","v":3126},{"$f":"VLOOKUP(DropDownList!$B$24,CntyQuery!$A$99:$GZ$117,DT$1)","v":2611},{"$f":"VLOOKUP(DropDownList!$B$24,CntyQuery!$A$99:$GZ$117,DU$1)","v":253},{"$f":"VLOOKUP(DropDownList!$B$24,CntyQuery!$A$99:$GZ$117,DV$1)","v":2358},{"$f":"VLOOKUP(DropDownList!$B$24,CntyQuery!$A$99:$GZ$117,DW$1)","v":793.72},{"$f":"VLOOKUP(DropDownList!$B$24,CntyQuery!$A$99:$GZ$117,DX$1)","v":773.56},{"$f":"VLOOKUP(DropDownList!$B$24,CntyQuery!$A$99:$GZ$117,DY$1)","v":958.13},{"$f":"VLOOKUP(DropDownList!$B$24,CntyQuery!$A$99:$GZ$117,DZ$1)","v":753.77},{"$f":"VLOOKUP(DropDownList!$B$24,CntyQuery!$A$99:$GZ$117,EA$1)","v":3093},{"$f":"VLOOKUP(DropDownList!$B$24,CntyQuery!$A$99:$GZ$117,EB$1)","v":2565},{"$f":"VLOOKUP(DropDownList!$B$24,CntyQuery!$A$99:$GZ$117,EC$1)","v":270},{"$f":"VLOOKUP(DropDownList!$B$24,CntyQuery!$A$99:$GZ$117,ED$1)","v":2295},{"$f":"VLOOKUP(DropDownList!$B$24,CntyQuery!$A$99:$GZ$117,EE$1)","v":822.13},{"$f":"VLOOKUP(DropDownList!$B$24,CntyQuery!$A$99:$GZ$117,EF$1)","v":808.54},{"$f":"VLOOKUP(DropDownList!$B$24,CntyQuery!$A$99:$GZ$117,EG$1)","v":971.06},{"$f":"VLOOKUP(DropDownList!$B$24,CntyQuery!$A$99:$GZ$117,EH$1)","v":789.43},{"$f":"VLOOKUP(DropDownList!$B$24,CntyQuery!$A$99:$GZ$117,EI$1)","v":3105},{"$f":"VLOOKUP(DropDownList!$B$24,CntyQuery!$A$99:$GZ$117,EJ$1)","v":2569},{"$f":"VLOOKUP(DropDownList!$B$24,CntyQuery!$A$99:$GZ$117,EK$1)","v":300},{"$f":"VLOOKUP(DropDownList!$B$24,CntyQuery!$A$99:$GZ$117,EL$1)","v":2269},{"$f":"VLOOKUP(DropDownList!$B$24,CntyQuery!$A$99:$GZ$117,EM$1)","v":860.01},{"$f":"VLOOKUP(DropDownList!$B$24,CntyQuery!$A$99:$GZ$117,EN$1)","v":855.1},{"$f":"VLOOKUP(DropDownList!$B$24,CntyQuery!$A$99:$GZ$117,EO$1)","v":935.78},{"$f":"VLOOKUP(DropDownList!$B$24,CntyQuery!$A$99:$GZ$117,EP$1)","v":844.42},{"$f":"VLOOKUP(DropDownList!$B$24,CntyQuery!$A$99:$GZ$117,EQ$1)","v":3193},{"$f":"VLOOKUP(DropDownList!$B$24,CntyQuery!$A$99:$GZ$117,ER$1)","v":2653},{"$f":"VLOOKUP(DropDownList!$B$24,CntyQuery!$A$99:$GZ$117,ES$1)","v":540},{"$f":"VLOOKUP(DropDownList!$B$24,CntyQuery!$A$99:$GZ$117,ET$1)","v":312},{"$f":"VLOOKUP(DropDownList!$B$24,CntyQuery!$A$99:$GZ$117,EU$1)","v":2342},{"$f":"VLOOKUP(DropDownList!$B$24,CntyQuery!$A$99:$GZ$117,EV$1)","v":867.43},{"$f":"VLOOKUP(DropDownList!$B$24,CntyQuery!$A$99:$GZ$117,EW$1)","v":861.4},{"$f":"VLOOKUP(DropDownList!$B$24,CntyQuery!$A$99:$GZ$117,EX$1)","v":897.07},{"$f":"VLOOKUP(DropDownList!$B$24,CntyQuery!$A$99:$GZ$117,EY$1)","v":1003.32},{"$f":"VLOOKUP(DropDownList!$B$24,CntyQuery!$A$99:$GZ$117,EZ$1)","v":842.51},{"$f":"VLOOKUP(DropDownList!$B$24,CntyQuery!$A$99:$GZ$117,FA$1)","v":3015},{"$f":"VLOOKUP(DropDownList!$B$24,CntyQuery!$A$99:$GZ$117,FB$1)","v":2509},{"$f":"VLOOKUP(DropDownList!$B$24,CntyQuery!$A$99:$GZ$117,FC$1)","v":507},{"$f":"VLOOKUP(DropDownList!$B$24,CntyQuery!$A$99:$GZ$117,FD$1)","v":312},{"$f":"VLOOKUP(DropDownList!$B$24,CntyQuery!$A$99:$GZ$117,FE$1)","v":2196},{"$f":"VLOOKUP(DropDownList!$B$24,CntyQuery!$A$99:$GZ$117,FF$1)","v":978.38},{"$f":"VLOOKUP(DropDownList!$B$24,CntyQuery!$A$99:$GZ$117,FG$1)","v":971.94},{"$f":"VLOOKUP(DropDownList!$B$24,CntyQuery!$A$99:$GZ$117,FH$1)","v":1010.27},{"$f":"VLOOKUP(DropDownList!$B$24,CntyQuery!$A$99:$GZ$117,FI$1)","v":1079.8699999999999},{"$f":"VLOOKUP(DropDownList!$B$24,CntyQuery!$A$99:$GZ$117,FJ$1)","v":956.6},{"$f":"VLOOKUP(DropDownList!$B$24,CntyQuery!$A$99:$GZ$117,FK$1)","v":3139},{"$f":"VLOOKUP(DropDownList!$B$24,CntyQuery!$A$99:$GZ$117,FL$1)","v":2636},{"$f":"VLOOKUP(DropDownList!$B$24,CntyQuery!$A$99:$GZ$117,FM$1)","v":503},null,{"$f":"VLOOKUP(DropDownList!$B$24,CntyQuery!$A$99:$GZ$117,FN$1)","v":309},{"$f":"VLOOKUP(DropDownList!$B$24,CntyQuery!$A$99:$GZ$117,FP$1)","v":1005.07},{"$f":"VLOOKUP(DropDownList!$B$24,CntyQuery!$A$99:$GZ$117,FQ$1)","v":1003.49},{"$f":"VLOOKUP(DropDownList!$B$24,CntyQuery!$A$99:$GZ$117,FR$1)","v":1013.33},{"$f":"VLOOKUP(DropDownList!$B$24,CntyQuery!$A$99:$GZ$117,FS$1)","v":1081.19},{"$f":"VLOOKUP(DropDownList!$B$24,CntyQuery!$A$99:$GZ$117,FT$1)","v":993.18},{"$f":"VLOOKUP(DropDownList!$B$24,CntyQuery!$A$99:$GZ$117,FU$1)","v":3197},{"$f":"VLOOKUP(DropDownList!$B$24,CntyQuery!$A$99:$GZ$117,FV$1)","v":2688},{"$f":"VLOOKUP(DropDownList!$B$24,CntyQuery!$A$99:$GZ$117,FW$1)","v":509},{"$f":"VLOOKUP(DropDownList!$B$24,CntyQuery!$A$99:$GZ$117,FX$1)","v":274},{"$f":"VLOOKUP(DropDownList!$B$24,CntyQuery!$A$99:$GZ$117,FY$1)","v":2414},{"$f":"VLOOKUP(DropDownList!$B$24,CntyQuery!$A$99:$GZ$117,FZ$1)","v":1046},{"$f":"VLOOKUP(DropDownList!$B$24,CntyQuery!$A$99:$GZ$117,GA$1)","v":1039},{"$f":"VLOOKUP(DropDownList!$B$24,CntyQuery!$A$99:$GZ$117,GB$1)","v":1080},{"$f":"VLOOKUP(DropDownList!$B$24,CntyQuery!$A$99:$GZ$117,GC$1)","v":1159},{"$f":"VLOOKUP(DropDownList!$B$24,CntyQuery!$A$99:$GZ$117,GD$1)","v":1026},{"$f":"VLOOKUP(DropDownList!$B$24,CntyQuery!$A$99:$GZ$117,GE$1)","v":0}]
[]
[]
[]
[]
[]
[]
[null,null,null,null,null,null,null,null,null,null,null,null,{"$f":"IF((CntyDataLink!$BL$25)=\"n\",NA(),IF(VALUE(CntyDataLink!$BL$25)=\"\",NA(),VALUE(CntyDataLink!$BL$25)))","v":713.3}]
["Census 2000   -           Query Name:  TownAllQuery3",2,{"$f":"B33+1","v":3},{"$f":"C33+1","v":4},5,6,7,8,9,10,11,12,13,14,15,16,17,18,19,20,21,22,23,24,25,26,27,28,29,30,31,32,33,34,35,36,37,38,39,40,41,42,43,44,45,46,47,48,49,50,51,52,53,54,55,56,57,58,59,60,61,62,63,64,65,66,67,{"$f":"BO33+1","v":68},69,70,71,72,73,74,75,76,77,78,79,80,81,82,83,84,85,86,87,88,89,90,91,92,93,94,95,96,97,98,99,100,101,102]
["NAME","COUNTY","LOGRECNO","COUSUB","TRACT","AREALAND","AREAWATR","POP100","HU100","2000Population","PopOfOneRace","PopWhite","PopBlack","PopAmIndian","PopAsian","PopHawaiian","PopOtherRace","Pop2orMoreRaces","PopHispanicLatino","PopNotHispanicLatino","PopMale","PopMale<15","PopMale15to24","PopMale25to34","PopMale35to44","PopMale45to54","PopMale55to64","PopMale65to74","PopMale75to84","PopMale85andOver","PopFemale","PopFemale<15","PopFemale15to24","PopFemale25to34","PopFemale35t44","PopFemale45to54","PopFemale55to64","PopFemale65to74","PopFemale75to84","PopFemale85andOver","Households2000","PopInHH","AvgHHSize","HHs1Person","HHs2orMorePerson","HHsFamily","HHMarriedCoupleFam","HHSingleParentFam","HHsNonFamily","Families","PopInFam","AvgFamSize","TotHsUnits","OccHsUnits","OwnerOccHU","RenterOccHU","VctHsUnits","VctHUForRent","VctHUForSale","VctHUSeasonal","PopInOccHU","PopInOwnOccHU","PopInRntOccHU","AvgHHSize2","AvgHHSizOwnOcc","AvgHHSizRntOcc","OwnOccWhtHsHldr","OwnOccBlkHsHldr","OwnOccAmIHsHldr","OwnOccAsnHsHldr","OwnOccPIsHsHldr","OwnOccORHsHldr","OwnOcc2RcHsHldr","RntOccWhtHsHldr","RntOccBlkHsHldr","RntOccAmIHsHldr","RntOccAsnHsHldr","RntOccPIsHsHldr","RntOccORHsHldr","RntOcc2RcHsHldr","OwnOccHH15to24","OwnOccHH25to34","OwnOccHH35to44","OwnOccHH45to54","OwnOccHH55to64","OwnOccHH65to74","OwnOccHH75to84","OwnOccHH85Over","RntOccHH15to24","RntOccHH25to34","RntOccHH35to44","RntOccHH45to54","RntOccHH55to64","RntOccHH65to74","RntOccHH75to84","RntOccHH85Over","P27TotalPop","P27PopInHseHlds","P27PopInGrpQtrs","Median Age Total","Median Age (Male)","Median Age (Female)"]
[{"$f":"VLOOKUP(DropDownList!$B$24,CntyQryCensus!$A$4:$CX$22,A$1)","v":"Wolfeboro"},{"$f":"VLOOKUP(DropDownList!$B$24,CntyQryCensus!$A$4:$CX$22,B$1)","v":"003"},{"$f":"VLOOKUP(DropDownList!$B$24,CntyQryCensus!$A$4:$CX$22,C$1)","v":"0004531"},{"$f":"VLOOKUP(DropDownList!$B$24,CntyQryCensus!$A$4:$CX$22,D$1)","v":"86420"},{"$f":"VLOOKUP(DropDownList!$B$24,CntyQryCensus!$A$4:$CX$22,E$1)","v":""},{"$f":"VLOOKUP(DropDownList!$B$24,CntyQryCensus!$A$4:$CX$22,F$1)","v":"     125115350"},{"$f":"VLOOKUP(DropDownList!$B$24,CntyQryCensus!$A$4:$CX$22,G$1)","v":"      26367985"},{"$f":"VLOOKUP(DropDownList!$B$24,CntyQryCensus!$A$4:$CX$22,H$1)","v":"     6083"},{"$f":"VLOOKUP(DropDownList!$B$24,CntyQryCensus!$A$4:$CX$22,I$1)","v":"     3903"},{"$f":"VLOOKUP(DropDownList!$B$24,CntyQryCensus!$A$4:$CX$22,J$1)","v":6083},{"$f":"VLOOKUP(DropDownList!$B$24,CntyQryCensus!$A$4:$CX$22,K$1)","v":6069},{"$f":"VLOOKUP(DropDownList!$B$24,CntyQryCensus!$A$4:$CX$22,L$1)","v":6030},{"$f":"VLOOKUP(DropDownList!$B$24,CntyQryCensus!$A$4:$CX$22,M$1)","v":10},{"$f":"VLOOKUP(DropDownList!$B$24,CntyQryCensus!$A$4:$CX$22,N$1)","v":4},{"$f":"VLOOKUP(DropDownList!$B$24,CntyQryCensus!$A$4:$CX$22,O$1)","v":22},{"$f":"VLOOKUP(DropDownList!$B$24,CntyQryCensus!$A$4:$CX$22,P$1)","v":0},{"$f":"VLOOKUP(DropDownList!$B$24,CntyQryCensus!$A$4:$CX$22,Q$1)","v":3},{"$f":"VLOOKUP(DropDownList!$B$24,CntyQryCensus!$A$4:$CX$22,R$1)","v":14},{"$f":"VLOOKUP(DropDownList!$B$24,CntyQryCensus!$A$4:$CX$22,S$1)","v":37},{"$f":"VLOOKUP(DropDownList!$B$24,CntyQryCensus!$A$4:$CX$22,T$1)","v":6046},{"$f":"VLOOKUP(DropDownList!$B$24,CntyQryCensus!$A$4:$CX$22,U$1)","v":2864},{"$f":"VLOOKUP(DropDownList!$B$24,CntyQryCensus!$A$4:$CX$22,V$1)","v":533},{"$f":"VLOOKUP(DropDownList!$B$24,CntyQryCensus!$A$4:$CX$22,W$1)","v":279},{"$f":"VLOOKUP(DropDownList!$B$24,CntyQryCensus!$A$4:$CX$22,X$1)","v":220},{"$f":"VLOOKUP(DropDownList!$B$24,CntyQryCensus!$A$4:$CX$22,Y$1)","v":458},{"$f":"VLOOKUP(DropDownList!$B$24,CntyQryCensus!$A$4:$CX$22,Z$1)","v":421},{"$f":"VLOOKUP(DropDownList!$B$24,CntyQryCensus!$A$4:$CX$22,AA$1)","v":340},{"$f":"VLOOKUP(DropDownList!$B$24,CntyQryCensus!$A$4:$CX$22,AB$1)","v":330},{"$f":"VLOOKUP(DropDownList!$B$24,CntyQryCensus!$A$4:$CX$22,AC$1)","v":215},{"$f":"VLOOKUP(DropDownList!$B$24,CntyQryCensus!$A$4:$CX$22,AD$1)","v":68},{"$f":"VLOOKUP(DropDownList!$B$24,CntyQryCensus!$A$4:$CX$22,AE$1)","v":3219},{"$f":"VLOOKUP(DropDownList!$B$24,CntyQryCensus!$A$4:$CX$22,AF$1)","v":529},{"$f":"VLOOKUP(DropDownList!$B$24,CntyQryCensus!$A$4:$CX$22,AG$1)","v":261},{"$f":"VLOOKUP(DropDownList!$B$24,CntyQryCensus!$A$4:$CX$22,AH$1)","v":280},{"$f":"VLOOKUP(DropDownList!$B$24,CntyQryCensus!$A$4:$CX$22,AI$1)","v":457},{"$f":"VLOOKUP(DropDownList!$B$24,CntyQryCensus!$A$4:$CX$22,AJ$1)","v":461},{"$f":"VLOOKUP(DropDownList!$B$24,CntyQryCensus!$A$4:$CX$22,AK$1)","v":349},{"$f":"VLOOKUP(DropDownList!$B$24,CntyQryCensus!$A$4:$CX$22,AL$1)","v":419},{"$f":"VLOOKUP(DropDownList!$B$24,CntyQryCensus!$A$4:$CX$22,AM$1)","v":296},{"$f":"VLOOKUP(DropDownList!$B$24,CntyQryCensus!$A$4:$CX$22,AN$1)","v":167},{"$f":"VLOOKUP(DropDownList!$B$24,CntyQryCensus!$A$4:$CX$22,AO$1)","v":2574},{"$f":"VLOOKUP(DropDownList!$B$24,CntyQryCensus!$A$4:$CX$22,AP$1)","v":5978},{"$f":"VLOOKUP(DropDownList!$B$24,CntyQryCensus!$A$4:$CX$22,AQ$1)","v":2.3199999999999998},{"$f":"VLOOKUP(DropDownList!$B$24,CntyQryCensus!$A$4:$CX$22,AR$1)","v":736},{"$f":"VLOOKUP(DropDownList!$B$24,CntyQryCensus!$A$4:$CX$22,AS$1)","v":1838},{"$f":"VLOOKUP(DropDownList!$B$24,CntyQryCensus!$A$4:$CX$22,AT$1)","v":1723},{"$f":"VLOOKUP(DropDownList!$B$24,CntyQryCensus!$A$4:$CX$22,AU$1)","v":1460},{"$f":"VLOOKUP(DropDownList!$B$24,CntyQryCensus!$A$4:$CX$22,AV$1)","v":263},{"$f":"VLOOKUP(DropDownList!$B$24,CntyQryCensus!$A$4:$CX$22,AW$1)","v":115},{"$f":"VLOOKUP(DropDownList!$B$24,CntyQryCensus!$A$4:$CX$22,AX$1)","v":1723},{"$f":"VLOOKUP(DropDownList!$B$24,CntyQryCensus!$A$4:$CX$22,AY$1)","v":4875},{"$f":"VLOOKUP(DropDownList!$B$24,CntyQryCensus!$A$4:$CX$22,AZ$1)","v":2.83},{"$f":"VLOOKUP(DropDownList!$B$24,CntyQryCensus!$A$4:$CX$22,BA$1)","v":3903},{"$f":"VLOOKUP(DropDownList!$B$24,CntyQryCensus!$A$4:$CX$22,BB$1)","v":2574},{"$f":"VLOOKUP(DropDownList!$B$24,CntyQryCensus!$A$4:$CX$22,BC$1)","v":1987},{"$f":"VLOOKUP(DropDownList!$B$24,CntyQryCensus!$A$4:$CX$22,BD$1)","v":587},{"$f":"VLOOKUP(DropDownList!$B$24,CntyQryCensus!$A$4:$CX$22,BE$1)","v":1329},{"$f":"VLOOKUP(DropDownList!$B$24,CntyQryCensus!$A$4:$CX$22,BF$1)","v":24},{"$f":"VLOOKUP(DropDownList!$B$24,CntyQryCensus!$A$4:$CX$22,BG$1)","v":40},{"$f":"VLOOKUP(DropDownList!$B$24,CntyQryCensus!$A$4:$CX$22,BH$1)","v":1194},{"$f":"VLOOKUP(DropDownList!$B$24,CntyQryCensus!$A$4:$CX$22,BI$1)","v":5978},{"$f":"VLOOKUP(DropDownList!$B$24,CntyQryCensus!$A$4:$CX$22,BJ$1)","v":4784},{"$f":"VLOOKUP(DropDownList!$B$24,CntyQryCensus!$A$4:$CX$22,BK$1)","v":1194},{"$f":"VLOOKUP(DropDownList!$B$24,CntyQryCensus!$A$4:$CX$22,BL$1)","v":2.3199999999999998},{"$f":"VLOOKUP(DropDownList!$B$24,CntyQryCensus!$A$4:$CX$22,BM$1)","v":2.41},{"$f":"VLOOKUP(DropDownList!$B$24,CntyQryCensus!$A$4:$CX$22,BN$1)","v":2.0299999999999998},{"$f":"VLOOKUP(DropDownList!$B$24,CntyQryCensus!$A$4:$CX$22,BO$1)","v":1980},{"$f":"VLOOKUP(DropDownList!$B$24,CntyQryCensus!$A$4:$CX$22,BP$1)","v":1},{"$f":"VLOOKUP(DropDownList!$B$24,CntyQryCensus!$A$4:$CX$22,BQ$1)","v":0},{"$f":"VLOOKUP(DropDownList!$B$24,CntyQryCensus!$A$4:$CX$22,BR$1)","v":4},{"$f":"VLOOKUP(DropDownList!$B$24,CntyQryCensus!$A$4:$CX$22,BS$1)","v":0},{"$f":"VLOOKUP(DropDownList!$B$24,CntyQryCensus!$A$4:$CX$22,BT$1)","v":0},{"$f":"VLOOKUP(DropDownList!$B$24,CntyQryCensus!$A$4:$CX$22,BU$1)","v":2},{"$f":"VLOOKUP(DropDownList!$B$24,CntyQryCensus!$A$4:$CX$22,BV$1)","v":581},{"$f":"VLOOKUP(DropDownList!$B$24,CntyQryCensus!$A$4:$CX$22,BW$1)","v":2},{"$f":"VLOOKUP(DropDownList!$B$24,CntyQryCensus!$A$4:$CX$22,BX$1)","v":1},{"$f":"VLOOKUP(DropDownList!$B$24,CntyQryCensus!$A$4:$CX$22,BY$1)","v":0},{"$f":"VLOOKUP(DropDownList!$B$24,CntyQryCensus!$A$4:$CX$22,BZ$1)","v":0},{"$f":"VLOOKUP(DropDownList!$B$24,CntyQryCensus!$A$4:$CX$22,CA$1)","v":1},{"$f":"VLOOKUP(DropDownList!$B$24,CntyQryCensus!$A$4:$CX$22,CB$1)","v":2},{"$f":"VLOOKUP(DropDownList!$B$24,CntyQryCensus!$A$4:$CX$22,CC$1)","v":4},{"$f":"VLOOKUP(DropDownList!$B$24,CntyQryCensus!$A$4:$CX$22,CD$1)","v":126},{"$f":"VLOOKUP(DropDownList!$B$24,CntyQryCensus!$A$4:$CX$22,CE$1)","v":364},{"$f":"VLOOKUP(DropDownList!$B$24,CntyQryCensus!$A$4:$CX$22,CF$1)","v":386},{"$f":"VLOOKUP(DropDownList!$B$24,CntyQryCensus!$A$4:$CX$22,CG$1)","v":345},{"$f":"VLOOKUP(DropDownList!$B$24,CntyQryCensus!$A$4:$CX$22,CH$1)","v":388},{"$f":"VLOOKUP(DropDownList!$B$24,CntyQryCensus!$A$4:$CX$22,CI$1)","v":287},{"$f":"VLOOKUP(DropDownList!$B$24,CntyQryCensus!$A$4:$CX$22,CJ$1)","v":87},{"$f":"VLOOKUP(DropDownList!$B$24,CntyQryCensus!$A$4:$CX$22,CK$1)","v":34},{"$f":"VLOOKUP(DropDownList!$B$24,CntyQryCensus!$A$4:$CX$22,CL$1)","v":121},{"$f":"VLOOKUP(DropDownList!$B$24,CntyQryCensus!$A$4:$CX$22,CM$1)","v":139},{"$f":"VLOOKUP(DropDownList!$B$24,CntyQryCensus!$A$4:$CX$22,CN$1)","v":101},{"$f":"VLOOKUP(DropDownList!$B$24,CntyQryCensus!$A$4:$CX$22,CO$1)","v":52},{"$f":"VLOOKUP(DropDownList!$B$24,CntyQryCensus!$A$4:$CX$22,CP$1)","v":57},{"$f":"VLOOKUP(DropDownList!$B$24,CntyQryCensus!$A$4:$CX$22,CQ$1)","v":47},{"$f":"VLOOKUP(DropDownList!$B$24,CntyQryCensus!$A$4:$CX$22,CR$1)","v":36},{"$f":"VLOOKUP(DropDownList!$B$24,CntyQryCensus!$A$4:$CX$22,CS$1)","v":6083},{"$f":"VLOOKUP(DropDownList!$B$24,CntyQryCensus!$A$4:$CX$22,CT$1)","v":5978},{"$f":"VLOOKUP(DropDownList!$B$24,CntyQryCensus!$A$4:$CX$22,CU$1)","v":105},{"$f":"VLOOKUP(DropDownList!$B$24,CntyQryCensus!$A$4:$CX$22,CV$1)","v":45.3},{"$f":"VLOOKUP(DropDownList!$B$24,CntyQryCensus!$A$4:$CX$22,CW$1)","v":44.1},{"$f":"VLOOKUP(DropDownList!$B$24,CntyQryCensus!$A$4:$CX$22,CX$1)","v":46.7}]
[]
[]
["Census 2000 DemoProfile Sample Data Tables 2&3   -  DPTab23TownQry"]
["NAME","COUSUB","AREANAME","PopInSchool","Preschool","Kindergarten","Elementary","HighSchool","College","Pop25andOver","HighSchoolGrad","SomeCollege","AssocDegree","BachelDegree","GradDegree","HSGradorHigher","CollegeGradorHigher","Pop5to20yrs","Pop5to20wDis","Pop21to64","Pop21to64wDis","Pop65over","Pop65overwDis","Pop5yrsOver","SameHUin95","DiffHUinUSin95","HUinSameCountyin95","HUinSameStatein95","TotalPop","NativePop","NatPopBornUS","NatPopBornInStatRes","NatPopBornDiffState","NatPopBornOutUS","FornBornPop","FornPopEnt90to00","FornPopNatCit","FornPopNotCit","Households","HHIncLessThn10k","HHInc10to15K","HHInc15to25K","HHInc25to35K","HHInc35to50K","HHInc50to75K","HHInc75to100K","HHInc100to150K","HHInc150to200K","HHIncOver200K","MedianHHInc","HHwithPubAssistInc","MeanPubAssist","FamilyHH","FHHIncLessThn10k","FHHInc10to15K","FHHInc15to25K","FHHInc25to35K","FHHInc35to50K","FHHInc50to75K","FHHInc75to100K","FHHInc100to150K","FHHInc150to200K","FHHIncOver200K","MedianFHHInc","PerCapitaInc","PovStatFamilies","PovStatFHHwChilUnd18","PovStatFHHwChilUnd5","PovStFmalHH","DP3088","DP3089","PovStatIndiv","PovStatIndiv18yrOver","PovStatIndiv65yrOver","DP3093","DP3094","DP3095"]
[{"$f":"VLOOKUP(DropDownList!$B$24,CntyQryCensus!$A$29:$BY$47,A$1)","v":"Wolfeboro"},{"$f":"VLOOKUP(DropDownList!$B$24,CntyQryCensus!$A$29:$BY$47,B$1)","v":"86420"},{"$f":"VLOOKUP(DropDownList!$B$24,CntyQryCensus!$A$29:$BY$47,C$1)","v":"Wolfeboro town, Carroll County, New Hampshire"},{"$f":"VLOOKUP(DropDownList!$B$24,CntyQryCensus!$A$29:$BY$47,D$1)","v":1401},{"$f":"VLOOKUP(DropDownList!$B$24,CntyQryCensus!$A$29:$BY$47,E$1)","v":83},{"$f":"VLOOKUP(DropDownList!$B$24,CntyQryCensus!$A$29:$BY$47,F$1)","v":53},{"$f":"VLOOKUP(DropDownList!$B$24,CntyQryCensus!$A$29:$BY$47,G$1)","v":655},{"$f":"VLOOKUP(DropDownList!$B$24,CntyQryCensus!$A$29:$BY$47,H$1)","v":411},{"$f":"VLOOKUP(DropDownList!$B$24,CntyQryCensus!$A$29:$BY$47,I$1)","v":199},{"$f":"VLOOKUP(DropDownList!$B$24,CntyQryCensus!$A$29:$BY$47,J$1)","v":4508},{"$f":"VLOOKUP(DropDownList!$B$24,CntyQryCensus!$A$29:$BY$47,K$1)","v":1202},{"$f":"VLOOKUP(DropDownList!$B$24,CntyQryCensus!$A$29:$BY$47,L$1)","v":925},{"$f":"VLOOKUP(DropDownList!$B$24,CntyQryCensus!$A$29:$BY$47,M$1)","v":425},{"$f":"VLOOKUP(DropDownList!$B$24,CntyQryCensus!$A$29:$BY$47,N$1)","v":913},{"$f":"VLOOKUP(DropDownList!$B$24,CntyQryCensus!$A$29:$BY$47,O$1)","v":623},{"$f":"VLOOKUP(DropDownList!$B$24,CntyQryCensus!$A$29:$BY$47,P$1)","v":4088},{"$f":"VLOOKUP(DropDownList!$B$24,CntyQryCensus!$A$29:$BY$47,Q$1)","v":1536},{"$f":"VLOOKUP(DropDownList!$B$24,CntyQryCensus!$A$29:$BY$47,R$1)","v":1219},{"$f":"VLOOKUP(DropDownList!$B$24,CntyQryCensus!$A$29:$BY$47,S$1)","v":119},{"$f":"VLOOKUP(DropDownList!$B$24,CntyQryCensus!$A$29:$BY$47,T$1)","v":3097},{"$f":"VLOOKUP(DropDownList!$B$24,CntyQryCensus!$A$29:$BY$47,U$1)","v":451},{"$f":"VLOOKUP(DropDownList!$B$24,CntyQryCensus!$A$29:$BY$47,V$1)","v":1403},{"$f":"VLOOKUP(DropDownList!$B$24,CntyQryCensus!$A$29:$BY$47,W$1)","v":522},{"$f":"VLOOKUP(DropDownList!$B$24,CntyQryCensus!$A$29:$BY$47,X$1)","v":5820},{"$f":"VLOOKUP(DropDownList!$B$24,CntyQryCensus!$A$29:$BY$47,Y$1)","v":2896},{"$f":"VLOOKUP(DropDownList!$B$24,CntyQryCensus!$A$29:$BY$47,Z$1)","v":2918},{"$f":"VLOOKUP(DropDownList!$B$24,CntyQryCensus!$A$29:$BY$47,AA$1)","v":1240},{"$f":"VLOOKUP(DropDownList!$B$24,CntyQryCensus!$A$29:$BY$47,AB$1)","v":1678},{"$f":"VLOOKUP(DropDownList!$B$24,CntyQryCensus!$A$29:$BY$47,AC$1)","v":6083},{"$f":"VLOOKUP(DropDownList!$B$24,CntyQryCensus!$A$29:$BY$47,AD$1)","v":5909},{"$f":"VLOOKUP(DropDownList!$B$24,CntyQryCensus!$A$29:$BY$47,AE$1)","v":5847},{"$f":"VLOOKUP(DropDownList!$B$24,CntyQryCensus!$A$29:$BY$47,AF$1)","v":2157},{"$f":"VLOOKUP(DropDownList!$B$24,CntyQryCensus!$A$29:$BY$47,AG$1)","v":3690},{"$f":"VLOOKUP(DropDownList!$B$24,CntyQryCensus!$A$29:$BY$47,AH$1)","v":62},{"$f":"VLOOKUP(DropDownList!$B$24,CntyQryCensus!$A$29:$BY$47,AI$1)","v":174},{"$f":"VLOOKUP(DropDownList!$B$24,CntyQryCensus!$A$29:$BY$47,AJ$1)","v":20},{"$f":"VLOOKUP(DropDownList!$B$24,CntyQryCensus!$A$29:$BY$47,AK$1)","v":135},{"$f":"VLOOKUP(DropDownList!$B$24,CntyQryCensus!$A$29:$BY$47,AL$1)","v":39},{"$f":"VLOOKUP(DropDownList!$B$24,CntyQryCensus!$A$29:$BY$47,AM$1)","v":2575},{"$f":"VLOOKUP(DropDownList!$B$24,CntyQryCensus!$A$29:$BY$47,AN$1)","v":151},{"$f":"VLOOKUP(DropDownList!$B$24,CntyQryCensus!$A$29:$BY$47,AO$1)","v":170},{"$f":"VLOOKUP(DropDownList!$B$24,CntyQryCensus!$A$29:$BY$47,AP$1)","v":412},{"$f":"VLOOKUP(DropDownList!$B$24,CntyQryCensus!$A$29:$BY$47,AQ$1)","v":302},{"$f":"VLOOKUP(DropDownList!$B$24,CntyQryCensus!$A$29:$BY$47,AR$1)","v":415},{"$f":"VLOOKUP(DropDownList!$B$24,CntyQryCensus!$A$29:$BY$47,AS$1)","v":533},{"$f":"VLOOKUP(DropDownList!$B$24,CntyQryCensus!$A$29:$BY$47,AT$1)","v":224},{"$f":"VLOOKUP(DropDownList!$B$24,CntyQryCensus!$A$29:$BY$47,AU$1)","v":203},{"$f":"VLOOKUP(DropDownList!$B$24,CntyQryCensus!$A$29:$BY$47,AV$1)","v":79},{"$f":"VLOOKUP(DropDownList!$B$24,CntyQryCensus!$A$29:$BY$47,AW$1)","v":86},{"$f":"VLOOKUP(DropDownList!$B$24,CntyQryCensus!$A$29:$BY$47,AX$1)","v":44012},{"$f":"VLOOKUP(DropDownList!$B$24,CntyQryCensus!$A$29:$BY$47,AY$1)","v":72},{"$f":"VLOOKUP(DropDownList!$B$24,CntyQryCensus!$A$29:$BY$47,AZ$1)","v":1254},{"$f":"VLOOKUP(DropDownList!$B$24,CntyQryCensus!$A$29:$BY$47,BA$1)","v":1734},{"$f":"VLOOKUP(DropDownList!$B$24,CntyQryCensus!$A$29:$BY$47,BB$1)","v":33},{"$f":"VLOOKUP(DropDownList!$B$24,CntyQryCensus!$A$29:$BY$47,BC$1)","v":64},{"$f":"VLOOKUP(DropDownList!$B$24,CntyQryCensus!$A$29:$BY$47,BD$1)","v":188},{"$f":"VLOOKUP(DropDownList!$B$24,CntyQryCensus!$A$29:$BY$47,BE$1)","v":187},{"$f":"VLOOKUP(DropDownList!$B$24,CntyQryCensus!$A$29:$BY$47,BF$1)","v":311},{"$f":"VLOOKUP(DropDownList!$B$24,CntyQryCensus!$A$29:$BY$47,BG$1)","v":406},{"$f":"VLOOKUP(DropDownList!$B$24,CntyQryCensus!$A$29:$BY$47,BH$1)","v":214},{"$f":"VLOOKUP(DropDownList!$B$24,CntyQryCensus!$A$29:$BY$47,BI$1)","v":190},{"$f":"VLOOKUP(DropDownList!$B$24,CntyQryCensus!$A$29:$BY$47,BJ$1)","v":64},{"$f":"VLOOKUP(DropDownList!$B$24,CntyQryCensus!$A$29:$BY$47,BK$1)","v":77},{"$f":"VLOOKUP(DropDownList!$B$24,CntyQryCensus!$A$29:$BY$47,BL$1)","v":53269},{"$f":"VLOOKUP(DropDownList!$B$24,CntyQryCensus!$A$29:$BY$47,BM$1)","v":26361},{"$f":"VLOOKUP(DropDownList!$B$24,CntyQryCensus!$A$29:$BY$47,BN$1)","v":61},{"$f":"VLOOKUP(DropDownList!$B$24,CntyQryCensus!$A$29:$BY$47,BO$1)","v":53},{"$f":"VLOOKUP(DropDownList!$B$24,CntyQryCensus!$A$29:$BY$47,BP$1)","v":22},{"$f":"VLOOKUP(DropDownList!$B$24,CntyQryCensus!$A$29:$BY$47,BQ$1)","v":27},{"$f":"VLOOKUP(DropDownList!$B$24,CntyQryCensus!$A$29:$BY$47,BR$1)","v":27},{"$f":"VLOOKUP(DropDownList!$B$24,CntyQryCensus!$A$29:$BY$47,BS$1)","v":8},{"$f":"VLOOKUP(DropDownList!$B$24,CntyQryCensus!$A$29:$BY$47,BT$1)","v":375},{"$f":"VLOOKUP(DropDownList!$B$24,CntyQryCensus!$A$29:$BY$47,BU$1)","v":250},{"$f":"VLOOKUP(DropDownList!$B$24,CntyQryCensus!$A$29:$BY$47,BV$1)","v":40},{"$f":"VLOOKUP(DropDownList!$B$24,CntyQryCensus!$A$29:$BY$47,BW$1)","v":119},{"$f":"VLOOKUP(DropDownList!$B$24,CntyQryCensus!$A$29:$BY$47,BX$1)","v":94},{"$f":"VLOOKUP(DropDownList!$B$24,CntyQryCensus!$A$29:$BY$47,BY$1)","v":156}]
[]
[]
["Census 2000 DemoProfile Sample Data Table 4   -  DPTab4TownQry"]
["NAME","COUSUB","TotHousingUnits","1UnitDet","1UnitAtt","2Units","3to4Units","5to9Units","10to19Units","20orMoreUnits","MobileHomes","BoatRvVan","SingleFamilyUnits","MultiFamUnits","MobileHomeUnits","YearBuilt99to00","YearBuilt95to98","YearBUilt90to94","YearBuilt80to89","YearBuilt70to79","YearBuilt60to69","YearBuilt40to59","YearBuilt39orEarlier","Rooms1","Rooms2","Rooms3","Rooms4","Rooms5","Rooms6","Rooms7","Rooms8","Rooms9orMore","MedianRooms","OccHU1","YrHHMvdIn99to00","YrHHMvdIn95to98","YrHHMvdIn90to94","YrHHMvdIn80to89","YrHHMvdIn70to79","YrHHMvdIn69orBefore","HeatFuelNatGas","HeatFuelBotGas","HeatFuelElectric","HeatFuelOil","HeatFuelCoal","HeatFuelWood","HeatFuelSolar","HeatFuelOther","HeatFuelNone","LackCompPlumb","LackCompKit","NoTelephone","OccHU","OccPerRm1orLess","OccPerRm1to1_5","OccPerRm1_5orMore","SpecOwnOccUnits","Value<50K","Value50to100K","Value100to150K","Value150to200K","Value200to300K","Value300to500K","Value500Kto1mil","Value1MilorMore","MedianValue","WithMortg","MnthOwnCst<300","MnthOwnCst300to500","MnthOwnCst500to700","MnthOwnCst700to1000","MnthOwnCst1000to1500","MnthOwnCst1500to2000","MnthOwnCst2000orMore","MediMnthOwnCst","NotMrtg","NotMrtgMediMnthOwnCst","OwnCst%HHInc<15","OwnCst%HHInc15to20","OwnCst%HHInc20to25","OwnCst%HHInc25to30","OwnCst%HHInc30to35","OwnCst%HHInc35orMor","NotComputed","SpecRntOccUnits","Rnt<200","Rnt200to300","Rnt300to500","Rnt500to750","Rnt750to1000","Rnt1000to1500","Rnt1500orMore","NoRent","MedianRent","Rnt%HHInc<15","Rnt%HHInc15to20","Rnt%HHInc20to25","Rnt%HHInc25to30","Rnt%HHInc30to35","Rnt%HHInc35orMore","Rnt%NotCompute"]
[{"$f":"VLOOKUP(DropDownList!$B$24,CntyQryCensus!$A$55:$CW$73,A$1)","v":"Wolfeboro"},{"$f":"VLOOKUP(DropDownList!$B$24,CntyQryCensus!$A$55:$CW$73,B$1)","v":"86420"},{"$f":"VLOOKUP(DropDownList!$B$24,CntyQryCensus!$A$55:$CW$73,C$1)","v":3903},{"$f":"VLOOKUP(DropDownList!$B$24,CntyQryCensus!$A$55:$CW$73,D$1)","v":3092},{"$f":"VLOOKUP(DropDownList!$B$24,CntyQryCensus!$A$55:$CW$73,E$1)","v":157},{"$f":"VLOOKUP(DropDownList!$B$24,CntyQryCensus!$A$55:$CW$73,F$1)","v":151},{"$f":"VLOOKUP(DropDownList!$B$24,CntyQryCensus!$A$55:$CW$73,G$1)","v":217},{"$f":"VLOOKUP(DropDownList!$B$24,CntyQryCensus!$A$55:$CW$73,H$1)","v":76},{"$f":"VLOOKUP(DropDownList!$B$24,CntyQryCensus!$A$55:$CW$73,I$1)","v":0},{"$f":"VLOOKUP(DropDownList!$B$24,CntyQryCensus!$A$55:$CW$73,J$1)","v":87},{"$f":"VLOOKUP(DropDownList!$B$24,CntyQryCensus!$A$55:$CW$73,K$1)","v":107},{"$f":"VLOOKUP(DropDownList!$B$24,CntyQryCensus!$A$55:$CW$73,L$1)","v":16},{"$f":"VLOOKUP(DropDownList!$B$24,CntyQryCensus!$A$55:$CW$73,M$1)","v":3092},{"$f":"VLOOKUP(DropDownList!$B$24,CntyQryCensus!$A$55:$CW$73,N$1)","v":688},{"$f":"VLOOKUP(DropDownList!$B$24,CntyQryCensus!$A$55:$CW$73,O$1)","v":123},{"$f":"VLOOKUP(DropDownList!$B$24,CntyQryCensus!$A$55:$CW$73,P$1)","v":156},{"$f":"VLOOKUP(DropDownList!$B$24,CntyQryCensus!$A$55:$CW$73,Q$1)","v":295},{"$f":"VLOOKUP(DropDownList!$B$24,CntyQryCensus!$A$55:$CW$73,R$1)","v":279},{"$f":"VLOOKUP(DropDownList!$B$24,CntyQryCensus!$A$55:$CW$73,S$1)","v":811},{"$f":"VLOOKUP(DropDownList!$B$24,CntyQryCensus!$A$55:$CW$73,T$1)","v":485},{"$f":"VLOOKUP(DropDownList!$B$24,CntyQryCensus!$A$55:$CW$73,U$1)","v":414},{"$f":"VLOOKUP(DropDownList!$B$24,CntyQryCensus!$A$55:$CW$73,V$1)","v":517},{"$f":"VLOOKUP(DropDownList!$B$24,CntyQryCensus!$A$55:$CW$73,W$1)","v":946},{"$f":"VLOOKUP(DropDownList!$B$24,CntyQryCensus!$A$55:$CW$73,X$1)","v":8},{"$f":"VLOOKUP(DropDownList!$B$24,CntyQryCensus!$A$55:$CW$73,Y$1)","v":121},{"$f":"VLOOKUP(DropDownList!$B$24,CntyQryCensus!$A$55:$CW$73,Z$1)","v":299},{"$f":"VLOOKUP(DropDownList!$B$24,CntyQryCensus!$A$55:$CW$73,AA$1)","v":500},{"$f":"VLOOKUP(DropDownList!$B$24,CntyQryCensus!$A$55:$CW$73,AB$1)","v":679},{"$f":"VLOOKUP(DropDownList!$B$24,CntyQryCensus!$A$55:$CW$73,AC$1)","v":968},{"$f":"VLOOKUP(DropDownList!$B$24,CntyQryCensus!$A$55:$CW$73,AD$1)","v":484},{"$f":"VLOOKUP(DropDownList!$B$24,CntyQryCensus!$A$55:$CW$73,AE$1)","v":308},{"$f":"VLOOKUP(DropDownList!$B$24,CntyQryCensus!$A$55:$CW$73,AF$1)","v":536},{"$f":"VLOOKUP(DropDownList!$B$24,CntyQryCensus!$A$55:$CW$73,AG$1)","v":5.9},{"$f":"VLOOKUP(DropDownList!$B$24,CntyQryCensus!$A$55:$CW$73,AH$1)","v":2574},{"$f":"VLOOKUP(DropDownList!$B$24,CntyQryCensus!$A$55:$CW$73,AI$1)","v":395},{"$f":"VLOOKUP(DropDownList!$B$24,CntyQryCensus!$A$55:$CW$73,AJ$1)","v":941},{"$f":"VLOOKUP(DropDownList!$B$24,CntyQryCensus!$A$55:$CW$73,AK$1)","v":326},{"$f":"VLOOKUP(DropDownList!$B$24,CntyQryCensus!$A$55:$CW$73,AL$1)","v":472},{"$f":"VLOOKUP(DropDownList!$B$24,CntyQryCensus!$A$55:$CW$73,AM$1)","v":267},{"$f":"VLOOKUP(DropDownList!$B$24,CntyQryCensus!$A$55:$CW$73,AN$1)","v":173},{"$f":"VLOOKUP(DropDownList!$B$24,CntyQryCensus!$A$55:$CW$73,AO$1)","v":0},{"$f":"VLOOKUP(DropDownList!$B$24,CntyQryCensus!$A$55:$CW$73,AP$1)","v":247},{"$f":"VLOOKUP(DropDownList!$B$24,CntyQryCensus!$A$55:$CW$73,AQ$1)","v":316},{"$f":"VLOOKUP(DropDownList!$B$24,CntyQryCensus!$A$55:$CW$73,AR$1)","v":1884},{"$f":"VLOOKUP(DropDownList!$B$24,CntyQryCensus!$A$55:$CW$73,AS$1)","v":0},{"$f":"VLOOKUP(DropDownList!$B$24,CntyQryCensus!$A$55:$CW$73,AT$1)","v":109},{"$f":"VLOOKUP(DropDownList!$B$24,CntyQryCensus!$A$55:$CW$73,AU$1)","v":0},{"$f":"VLOOKUP(DropDownList!$B$24,CntyQryCensus!$A$55:$CW$73,AV$1)","v":18},{"$f":"VLOOKUP(DropDownList!$B$24,CntyQryCensus!$A$55:$CW$73,AW$1)","v":0},{"$f":"VLOOKUP(DropDownList!$B$24,CntyQryCensus!$A$55:$CW$73,AX$1)","v":33},{"$f":"VLOOKUP(DropDownList!$B$24,CntyQryCensus!$A$55:$CW$73,AY$1)","v":37},{"$f":"VLOOKUP(DropDownList!$B$24,CntyQryCensus!$A$55:$CW$73,AZ$1)","v":10},{"$f":"VLOOKUP(DropDownList!$B$24,CntyQryCensus!$A$55:$CW$73,BA$1)","v":2574},{"$f":"VLOOKUP(DropDownList!$B$24,CntyQryCensus!$A$55:$CW$73,BB$1)","v":2559},{"$f":"VLOOKUP(DropDownList!$B$24,CntyQryCensus!$A$55:$CW$73,BC$1)","v":15},{"$f":"VLOOKUP(DropDownList!$B$24,CntyQryCensus!$A$55:$CW$73,BD$1)","v":0},{"$f":"VLOOKUP(DropDownList!$B$24,CntyQryCensus!$A$55:$CW$73,BE$1)","v":1552},{"$f":"VLOOKUP(DropDownList!$B$24,CntyQryCensus!$A$55:$CW$73,BF$1)","v":0},{"$f":"VLOOKUP(DropDownList!$B$24,CntyQryCensus!$A$55:$CW$73,BG$1)","v":351},{"$f":"VLOOKUP(DropDownList!$B$24,CntyQryCensus!$A$55:$CW$73,BH$1)","v":427},{"$f":"VLOOKUP(DropDownList!$B$24,CntyQryCensus!$A$55:$CW$73,BI$1)","v":284},{"$f":"VLOOKUP(DropDownList!$B$24,CntyQryCensus!$A$55:$CW$73,BJ$1)","v":305},{"$f":"VLOOKUP(DropDownList!$B$24,CntyQryCensus!$A$55:$CW$73,BK$1)","v":97},{"$f":"VLOOKUP(DropDownList!$B$24,CntyQryCensus!$A$55:$CW$73,BL$1)","v":75},{"$f":"VLOOKUP(DropDownList!$B$24,CntyQryCensus!$A$55:$CW$73,BM$1)","v":13},{"$f":"VLOOKUP(DropDownList!$B$24,CntyQryCensus!$A$55:$CW$73,BN$1)","v":149800},{"$f":"VLOOKUP(DropDownList!$B$24,CntyQryCensus!$A$55:$CW$73,BO$1)","v":913},{"$f":"VLOOKUP(DropDownList!$B$24,CntyQryCensus!$A$55:$CW$73,BP$1)","v":0},{"$f":"VLOOKUP(DropDownList!$B$24,CntyQryCensus!$A$55:$CW$73,BQ$1)","v":29},{"$f":"VLOOKUP(DropDownList!$B$24,CntyQryCensus!$A$55:$CW$73,BR$1)","v":72},{"$f":"VLOOKUP(DropDownList!$B$24,CntyQryCensus!$A$55:$CW$73,BS$1)","v":276},{"$f":"VLOOKUP(DropDownList!$B$24,CntyQryCensus!$A$55:$CW$73,BT$1)","v":314},{"$f":"VLOOKUP(DropDownList!$B$24,CntyQryCensus!$A$55:$CW$73,BU$1)","v":131},{"$f":"VLOOKUP(DropDownList!$B$24,CntyQryCensus!$A$55:$CW$73,BV$1)","v":91},{"$f":"VLOOKUP(DropDownList!$B$24,CntyQryCensus!$A$55:$CW$73,BW$1)","v":1098},{"$f":"VLOOKUP(DropDownList!$B$24,CntyQryCensus!$A$55:$CW$73,BX$1)","v":639},{"$f":"VLOOKUP(DropDownList!$B$24,CntyQryCensus!$A$55:$CW$73,BY$1)","v":441},{"$f":"VLOOKUP(DropDownList!$B$24,CntyQryCensus!$A$55:$CW$73,BZ$1)","v":517},{"$f":"VLOOKUP(DropDownList!$B$24,CntyQryCensus!$A$55:$CW$73,CA$1)","v":182},{"$f":"VLOOKUP(DropDownList!$B$24,CntyQryCensus!$A$55:$CW$73,CB$1)","v":253},{"$f":"VLOOKUP(DropDownList!$B$24,CntyQryCensus!$A$55:$CW$73,CC$1)","v":167},{"$f":"VLOOKUP(DropDownList!$B$24,CntyQryCensus!$A$55:$CW$73,CD$1)","v":119},{"$f":"VLOOKUP(DropDownList!$B$24,CntyQryCensus!$A$55:$CW$73,CE$1)","v":299},{"$f":"VLOOKUP(DropDownList!$B$24,CntyQryCensus!$A$55:$CW$73,CF$1)","v":15},{"$f":"VLOOKUP(DropDownList!$B$24,CntyQryCensus!$A$55:$CW$73,CG$1)","v":579},{"$f":"VLOOKUP(DropDownList!$B$24,CntyQryCensus!$A$55:$CW$73,CH$1)","v":61},{"$f":"VLOOKUP(DropDownList!$B$24,CntyQryCensus!$A$55:$CW$73,CI$1)","v":18},{"$f":"VLOOKUP(DropDownList!$B$24,CntyQryCensus!$A$55:$CW$73,CJ$1)","v":136},{"$f":"VLOOKUP(DropDownList!$B$24,CntyQryCensus!$A$55:$CW$73,CK$1)","v":192},{"$f":"VLOOKUP(DropDownList!$B$24,CntyQryCensus!$A$55:$CW$73,CL$1)","v":99},{"$f":"VLOOKUP(DropDownList!$B$24,CntyQryCensus!$A$55:$CW$73,CM$1)","v":26},{"$f":"VLOOKUP(DropDownList!$B$24,CntyQryCensus!$A$55:$CW$73,CN$1)","v":9},{"$f":"VLOOKUP(DropDownList!$B$24,CntyQryCensus!$A$55:$CW$73,CO$1)","v":38},{"$f":"VLOOKUP(DropDownList!$B$24,CntyQryCensus!$A$55:$CW$73,CP$1)","v":606},{"$f":"VLOOKUP(DropDownList!$B$24,CntyQryCensus!$A$55:$CW$73,CQ$1)","v":67},{"$f":"VLOOKUP(DropDownList!$B$24,CntyQryCensus!$A$55:$CW$73,CR$1)","v":90},{"$f":"VLOOKUP(DropDownList!$B$24,CntyQryCensus!$A$55:$CW$73,CS$1)","v":116},{"$f":"VLOOKUP(DropDownList!$B$24,CntyQryCensus!$A$55:$CW$73,CT$1)","v":52},{"$f":"VLOOKUP(DropDownList!$B$24,CntyQryCensus!$A$55:$CW$73,CU$1)","v":34},{"$f":"VLOOKUP(DropDownList!$B$24,CntyQryCensus!$A$55:$CW$73,CV$1)","v":164},{"$f":"VLOOKUP(DropDownList!$B$24,CntyQryCensus!$A$55:$CW$73,CW$1)","v":56}]
[]
[]
["Census 2000 SummaryFile3 Sample Data  -  SF3TownQry1SocialChar"]
["NAME","LOGRECNO","COUNTY","P01TotalPopulation","P02SampleCountOfPop","P03Pop100pctCount","P05UrbanPopulation","P05RuralPopulation","P06WhiteAlone","P06BlackOrAfAm","P06AmIndAlone","P06AsianAlone","P06HawaiianOrPI","P06OtherRace","P06TwoPlusRaces","P07NotHispanicOrLatino","P07HispanicOrLatino","P08MalePop","P08FemalePop","P09PopInHouseholds","P09PopInFamHH","P09PopInNonFamHH","P09PopInGroupQtr","P13TotalHH","P13FamilyHH","P13FamHHolder15to24yrs","P13FamHHolder25to34yrs","P13FamHHolder35to44yrs","P13FamHHolder45to54yrs","P13FamHHolder55to64yrs","P13FamHHolder65to74yrs","P13FamHHolder75to84yrs","P13FamHHolder85yrsOver","P13NonFamilyHH","P13NonFamHHolder15to24yrs","P13NonFamHHolder25to34yrs","P13NonFamHHolder35to44yrs","P13NonFamHHolder45to54yrs","P13NonFamHHolder55to64yrs","P13NonFamHHolder65to74yrs","P13NonFamHHolder75to84yrs","P13NonFamHHolder85yrsOver","P18Pop15yrsOver","P18MaritalStatNeverMarried","P18MaritalStatNowMarried","P18MaritalStatSeparated","P18MaritalStatWidowed","P18MaritalStatWidowFemale","P18MaritalStatDivorced","P18MaritalStatDivorcedFemale","P21NativeBornPop","P21NatPopBornInState","P21NatPopBornOtherState","P021005","P021006","P021007","P021008","P21NatPopBornOutUS","P21ForeignBornPop","P021014","P021015","P24Pop5YrsPlus","P24ResSameHouseIn95","P24ResDiffHouseIn95","P24ResDiffHouseInUSIn95","P24ResDiffHouseSameCountyIn95","P24ResDiffHouseDiffCountyIn95","P24ResDiffHouseDiffCntySamStIn95","P24ResDiffHouseDiffCntyDifStIn95","P24ResDiffHouseDiffCntyNEStIn95","P24ResDiffHouseDiffCntyMWStIn95","P24ResDiffHouseDiffCntySoStIn95","P24ResDiffHouseDiffCntyWstStIn95","P24ResDiffInPR","P24ResDiffElsewhereIn95","P26Workers16yrsOver","P26WorkedInState","P26WorkedInCnty","P26WorkedOutsideCnty","P26WorkedOutsideState","P30Workers16Over","P30TranspToWrkCar","P30TranspToWrkPublic","P30TranspToWrkOther","P30WrkdAtHome","P31WrkrsNotWrkAtHom","P31TravTim<5min","P31TravTim5to9Min","P31TravTim10to14Min","P31TravTim15to19Min","P31TravTim20to24Min","P31TravTim25to29Min","P31TravTim30to34Min","P31TravTim35to39Min","P31TravTim40to44Min","P31TravTim45to59Min","P31TravTim60to89Min","P31TravTim90MinMore","P31WorkAtHome","P36SchEnrlPop3yrOver","P36NurserSchEnrl","P36KinderSchEnrl","P36ElemSchEnrl","P36HighSchEnrl","P36CollGradSchEnrl","P37Pop25yrsOver","P37EduAtain<9grd","P37EduAtainHSnoDip","P37EduAtainHSgrad","P37EduAtainCollNoDeg","P37EduAtainAssocDeg","P37EduAtainBachDeg","P37EduAtainGradProfDeg","P42NIPop5to15","P42NIPop5to15wDisabl","P42NIPop16to20","P42NIPop16to20wDisab","P42NIPop16to20wDisEmp","P42NIPop16to21NoDis","P42NIPop16to21NoDisEmpl","P42NIPop21to64","P42NIPop21to64wDis","P42NIPop21to64wDisEmp","P42NIPop21to64NoDis","P42NIPop21to64NoDisEmp","P42NIPop65to74","P42NIPop65to74wDis","P42NIPop75Over","P42NIPop75OverwDis","P43Pop16YrsOver","P43Pop16OvrInLaborForce","P43Pop16OvrCivlLabFrc","P43Pop16OvrCivlLbrFrcEmp","P48Families","P48MarriedFam","P48MarrFamNoWorkers","P48MarrFam1Worker","P48MarrFam2Worker","P48MarrFamHusbWifeWorked","P48MarrFamOther","P48MarrFam3PlusWorker","P48MarrFam3WorkHsbWif","P48MarrFam3PlsWrkOther","P48OtherFam","P48MaleHHNoWif","P48MaleHHNoWifNoWorker","P48MaleHHNoWif1Worker","P48MaleHHNoWif2Worker","P48MaleHHNoWif3PlusWorker","P48FemaleHHNoHsb","P48FemaleHHNoHsbNoWorker","P48FemaleHHNoHsb1Worker","P48FemaleHHNoHsb2Worker","P48FemaleHHNoHsb3Worker","P49EmpCivPop16YrOver","P49IndustAgricult","P49IndustConst","P49IndustMnftg","P49IndustWhlslTrd","P49IndustRtlTrd","P49IndustTrspWrhsUtlt","P49IndustInfrm","P49IndustFinInsRE","P49IndustPrfsScntfMngmt","P49IndustEduHlthSocSrv","P49IndustArtsEntRec","P49IndustOthrSrvc","P49IndustPubAdm","P50OccupMngmtProfs","P50OccupService","P50OccupSalesOff","P50OccupFarmFishForest","P50OccupConstExtrctMaint","P50OccupPrdctTrnspMatMv"]
[{"$f":"VLOOKUP(DropDownList!$B$24,CntyQryCensus!$A$83:$FR$101,A$1)","v":"Wolfeboro"},{"$f":"VLOOKUP(DropDownList!$B$24,CntyQryCensus!$A$83:$FR$101,B$1)","v":"0000440"},{"$f":"VLOOKUP(DropDownList!$B$24,CntyQryCensus!$A$83:$FR$101,C$1)","v":"86420"},{"$f":"VLOOKUP(DropDownList!$B$24,CntyQryCensus!$A$83:$FR$101,D$1)","v":6083},{"$f":"VLOOKUP(DropDownList!$B$24,CntyQryCensus!$A$83:$FR$101,E$1)","v":780},{"$f":"VLOOKUP(DropDownList!$B$24,CntyQryCensus!$A$83:$FR$101,F$1)","v":6083},{"$f":"VLOOKUP(DropDownList!$B$24,CntyQryCensus!$A$83:$FR$101,G$1)","v":0},{"$f":"VLOOKUP(DropDownList!$B$24,CntyQryCensus!$A$83:$FR$101,H$1)","v":6083},{"$f":"VLOOKUP(DropDownList!$B$24,CntyQryCensus!$A$83:$FR$101,I$1)","v":6066},{"$f":"VLOOKUP(DropDownList!$B$24,CntyQryCensus!$A$83:$FR$101,J$1)","v":8},{"$f":"VLOOKUP(DropDownList!$B$24,CntyQryCensus!$A$83:$FR$101,K$1)","v":0},{"$f":"VLOOKUP(DropDownList!$B$24,CntyQryCensus!$A$83:$FR$101,L$1)","v":0},{"$f":"VLOOKUP(DropDownList!$B$24,CntyQryCensus!$A$83:$FR$101,M$1)","v":0},{"$f":"VLOOKUP(DropDownList!$B$24,CntyQryCensus!$A$83:$FR$101,N$1)","v":0},{"$f":"VLOOKUP(DropDownList!$B$24,CntyQryCensus!$A$83:$FR$101,O$1)","v":9},{"$f":"VLOOKUP(DropDownList!$B$24,CntyQryCensus!$A$83:$FR$101,P$1)","v":6026},{"$f":"VLOOKUP(DropDownList!$B$24,CntyQryCensus!$A$83:$FR$101,Q$1)","v":57},{"$f":"VLOOKUP(DropDownList!$B$24,CntyQryCensus!$A$83:$FR$101,R$1)","v":2840},{"$f":"VLOOKUP(DropDownList!$B$24,CntyQryCensus!$A$83:$FR$101,S$1)","v":3243},{"$f":"VLOOKUP(DropDownList!$B$24,CntyQryCensus!$A$83:$FR$101,T$1)","v":5977},{"$f":"VLOOKUP(DropDownList!$B$24,CntyQryCensus!$A$83:$FR$101,U$1)","v":5027},{"$f":"VLOOKUP(DropDownList!$B$24,CntyQryCensus!$A$83:$FR$101,V$1)","v":950},{"$f":"VLOOKUP(DropDownList!$B$24,CntyQryCensus!$A$83:$FR$101,W$1)","v":106},{"$f":"VLOOKUP(DropDownList!$B$24,CntyQryCensus!$A$83:$FR$101,X$1)","v":2575},{"$f":"VLOOKUP(DropDownList!$B$24,CntyQryCensus!$A$83:$FR$101,Y$1)","v":1734},{"$f":"VLOOKUP(DropDownList!$B$24,CntyQryCensus!$A$83:$FR$101,Z$1)","v":6},{"$f":"VLOOKUP(DropDownList!$B$24,CntyQryCensus!$A$83:$FR$101,AA$1)","v":187},{"$f":"VLOOKUP(DropDownList!$B$24,CntyQryCensus!$A$83:$FR$101,AB$1)","v":394},{"$f":"VLOOKUP(DropDownList!$B$24,CntyQryCensus!$A$83:$FR$101,AC$1)","v":355},{"$f":"VLOOKUP(DropDownList!$B$24,CntyQryCensus!$A$83:$FR$101,AD$1)","v":305},{"$f":"VLOOKUP(DropDownList!$B$24,CntyQryCensus!$A$83:$FR$101,AE$1)","v":261},{"$f":"VLOOKUP(DropDownList!$B$24,CntyQryCensus!$A$83:$FR$101,AF$1)","v":204},{"$f":"VLOOKUP(DropDownList!$B$24,CntyQryCensus!$A$83:$FR$101,AG$1)","v":22},{"$f":"VLOOKUP(DropDownList!$B$24,CntyQryCensus!$A$83:$FR$101,AH$1)","v":841},{"$f":"VLOOKUP(DropDownList!$B$24,CntyQryCensus!$A$83:$FR$101,AI$1)","v":16},{"$f":"VLOOKUP(DropDownList!$B$24,CntyQryCensus!$A$83:$FR$101,AJ$1)","v":70},{"$f":"VLOOKUP(DropDownList!$B$24,CntyQryCensus!$A$83:$FR$101,AK$1)","v":106},{"$f":"VLOOKUP(DropDownList!$B$24,CntyQryCensus!$A$83:$FR$101,AL$1)","v":137},{"$f":"VLOOKUP(DropDownList!$B$24,CntyQryCensus!$A$83:$FR$101,AM$1)","v":76},{"$f":"VLOOKUP(DropDownList!$B$24,CntyQryCensus!$A$83:$FR$101,AN$1)","v":188},{"$f":"VLOOKUP(DropDownList!$B$24,CntyQryCensus!$A$83:$FR$101,AO$1)","v":126},{"$f":"VLOOKUP(DropDownList!$B$24,CntyQryCensus!$A$83:$FR$101,AP$1)","v":122},{"$f":"VLOOKUP(DropDownList!$B$24,CntyQryCensus!$A$83:$FR$101,AQ$1)","v":5023},{"$f":"VLOOKUP(DropDownList!$B$24,CntyQryCensus!$A$83:$FR$101,AR$1)","v":832},{"$f":"VLOOKUP(DropDownList!$B$24,CntyQryCensus!$A$83:$FR$101,AS$1)","v":3196},{"$f":"VLOOKUP(DropDownList!$B$24,CntyQryCensus!$A$83:$FR$101,AT$1)","v":40},{"$f":"VLOOKUP(DropDownList!$B$24,CntyQryCensus!$A$83:$FR$101,AU$1)","v":462},{"$f":"VLOOKUP(DropDownList!$B$24,CntyQryCensus!$A$83:$FR$101,AV$1)","v":408},{"$f":"VLOOKUP(DropDownList!$B$24,CntyQryCensus!$A$83:$FR$101,AW$1)","v":493},{"$f":"VLOOKUP(DropDownList!$B$24,CntyQryCensus!$A$83:$FR$101,AX$1)","v":241},{"$f":"VLOOKUP(DropDownList!$B$24,CntyQryCensus!$A$83:$FR$101,AY$1)","v":5909},{"$f":"VLOOKUP(DropDownList!$B$24,CntyQryCensus!$A$83:$FR$101,AZ$1)","v":2157},{"$f":"VLOOKUP(DropDownList!$B$24,CntyQryCensus!$A$83:$FR$101,BA$1)","v":3690},{"$f":"VLOOKUP(DropDownList!$B$24,CntyQryCensus!$A$83:$FR$101,BB$1)","v":3012},{"$f":"VLOOKUP(DropDownList!$B$24,CntyQryCensus!$A$83:$FR$101,BC$1)","v":172},{"$f":"VLOOKUP(DropDownList!$B$24,CntyQryCensus!$A$83:$FR$101,BD$1)","v":324},{"$f":"VLOOKUP(DropDownList!$B$24,CntyQryCensus!$A$83:$FR$101,BE$1)","v":182},{"$f":"VLOOKUP(DropDownList!$B$24,CntyQryCensus!$A$83:$FR$101,BF$1)","v":62},{"$f":"VLOOKUP(DropDownList!$B$24,CntyQryCensus!$A$83:$FR$101,BG$1)","v":174},{"$f":"VLOOKUP(DropDownList!$B$24,CntyQryCensus!$A$83:$FR$101,BH$1)","v":135},{"$f":"VLOOKUP(DropDownList!$B$24,CntyQryCensus!$A$83:$FR$101,BI$1)","v":39},{"$f":"VLOOKUP(DropDownList!$B$24,CntyQryCensus!$A$83:$FR$101,BJ$1)","v":5820},{"$f":"VLOOKUP(DropDownList!$B$24,CntyQryCensus!$A$83:$FR$101,BK$1)","v":2896},{"$f":"VLOOKUP(DropDownList!$B$24,CntyQryCensus!$A$83:$FR$101,BL$1)","v":2924},{"$f":"VLOOKUP(DropDownList!$B$24,CntyQryCensus!$A$83:$FR$101,BM$1)","v":2918},{"$f":"VLOOKUP(DropDownList!$B$24,CntyQryCensus!$A$83:$FR$101,BN$1)","v":1240},{"$f":"VLOOKUP(DropDownList!$B$24,CntyQryCensus!$A$83:$FR$101,BO$1)","v":1678},{"$f":"VLOOKUP(DropDownList!$B$24,CntyQryCensus!$A$83:$FR$101,BP$1)","v":755},{"$f":"VLOOKUP(DropDownList!$B$24,CntyQryCensus!$A$83:$FR$101,BQ$1)","v":923},{"$f":"VLOOKUP(DropDownList!$B$24,CntyQryCensus!$A$83:$FR$101,BR$1)","v":692},{"$f":"VLOOKUP(DropDownList!$B$24,CntyQryCensus!$A$83:$FR$101,BS$1)","v":20},{"$f":"VLOOKUP(DropDownList!$B$24,CntyQryCensus!$A$83:$FR$101,BT$1)","v":181},{"$f":"VLOOKUP(DropDownList!$B$24,CntyQryCensus!$A$83:$FR$101,BU$1)","v":30},{"$f":"VLOOKUP(DropDownList!$B$24,CntyQryCensus!$A$83:$FR$101,BV$1)","v":0},{"$f":"VLOOKUP(DropDownList!$B$24,CntyQryCensus!$A$83:$FR$101,BW$1)","v":6},{"$f":"VLOOKUP(DropDownList!$B$24,CntyQryCensus!$A$83:$FR$101,BX$1)","v":2522},{"$f":"VLOOKUP(DropDownList!$B$24,CntyQryCensus!$A$83:$FR$101,BY$1)","v":2348},{"$f":"VLOOKUP(DropDownList!$B$24,CntyQryCensus!$A$83:$FR$101,BZ$1)","v":1890},{"$f":"VLOOKUP(DropDownList!$B$24,CntyQryCensus!$A$83:$FR$101,CA$1)","v":458},{"$f":"VLOOKUP(DropDownList!$B$24,CntyQryCensus!$A$83:$FR$101,CB$1)","v":174},{"$f":"VLOOKUP(DropDownList!$B$24,CntyQryCensus!$A$83:$FR$101,CC$1)","v":2522},{"$f":"VLOOKUP(DropDownList!$B$24,CntyQryCensus!$A$83:$FR$101,CD$1)","v":2220},{"$f":"VLOOKUP(DropDownList!$B$24,CntyQryCensus!$A$83:$FR$101,CE$1)","v":6},{"$f":"VLOOKUP(DropDownList!$B$24,CntyQryCensus!$A$83:$FR$101,CF$1)","v":26},{"$f":"VLOOKUP(DropDownList!$B$24,CntyQryCensus!$A$83:$FR$101,CG$1)","v":168},{"$f":"VLOOKUP(DropDownList!$B$24,CntyQryCensus!$A$83:$FR$101,CH$1)","v":2354},{"$f":"VLOOKUP(DropDownList!$B$24,CntyQryCensus!$A$83:$FR$101,CI$1)","v":181},{"$f":"VLOOKUP(DropDownList!$B$24,CntyQryCensus!$A$83:$FR$101,CJ$1)","v":508},{"$f":"VLOOKUP(DropDownList!$B$24,CntyQryCensus!$A$83:$FR$101,CK$1)","v":448},{"$f":"VLOOKUP(DropDownList!$B$24,CntyQryCensus!$A$83:$FR$101,CL$1)","v":238},{"$f":"VLOOKUP(DropDownList!$B$24,CntyQryCensus!$A$83:$FR$101,CM$1)","v":183},{"$f":"VLOOKUP(DropDownList!$B$24,CntyQryCensus!$A$83:$FR$101,CN$1)","v":58},{"$f":"VLOOKUP(DropDownList!$B$24,CntyQryCensus!$A$83:$FR$101,CO$1)","v":114},{"$f":"VLOOKUP(DropDownList!$B$24,CntyQryCensus!$A$83:$FR$101,CP$1)","v":0},{"$f":"VLOOKUP(DropDownList!$B$24,CntyQryCensus!$A$83:$FR$101,CQ$1)","v":79},{"$f":"VLOOKUP(DropDownList!$B$24,CntyQryCensus!$A$83:$FR$101,CR$1)","v":205},{"$f":"VLOOKUP(DropDownList!$B$24,CntyQryCensus!$A$83:$FR$101,CS$1)","v":169},{"$f":"VLOOKUP(DropDownList!$B$24,CntyQryCensus!$A$83:$FR$101,CT$1)","v":171},{"$f":"VLOOKUP(DropDownList!$B$24,CntyQryCensus!$A$83:$FR$101,CU$1)","v":168},{"$f":"VLOOKUP(DropDownList!$B$24,CntyQryCensus!$A$83:$FR$101,CV$1)","v":5938},{"$f":"VLOOKUP(DropDownList!$B$24,CntyQryCensus!$A$83:$FR$101,CW$1)","v":83},{"$f":"VLOOKUP(DropDownList!$B$24,CntyQryCensus!$A$83:$FR$101,CX$1)","v":53},{"$f":"VLOOKUP(DropDownList!$B$24,CntyQryCensus!$A$83:$FR$101,CY$1)","v":655},{"$f":"VLOOKUP(DropDownList!$B$24,CntyQryCensus!$A$83:$FR$101,CZ$1)","v":411},{"$f":"VLOOKUP(DropDownList!$B$24,CntyQryCensus!$A$83:$FR$101,DA$1)","v":199},{"$f":"VLOOKUP(DropDownList!$B$24,CntyQryCensus!$A$83:$FR$101,DB$1)","v":4508},{"$f":"VLOOKUP(DropDownList!$B$24,CntyQryCensus!$A$83:$FR$101,DC$1)","v":123},{"$f":"VLOOKUP(DropDownList!$B$24,CntyQryCensus!$A$83:$FR$101,DD$1)","v":297},{"$f":"VLOOKUP(DropDownList!$B$24,CntyQryCensus!$A$83:$FR$101,DE$1)","v":1202},{"$f":"VLOOKUP(DropDownList!$B$24,CntyQryCensus!$A$83:$FR$101,DF$1)","v":925},{"$f":"VLOOKUP(DropDownList!$B$24,CntyQryCensus!$A$83:$FR$101,DG$1)","v":425},{"$f":"VLOOKUP(DropDownList!$B$24,CntyQryCensus!$A$83:$FR$101,DH$1)","v":913},{"$f":"VLOOKUP(DropDownList!$B$24,CntyQryCensus!$A$83:$FR$101,DI$1)","v":623},{"$f":"VLOOKUP(DropDownList!$B$24,CntyQryCensus!$A$83:$FR$101,DJ$1)","v":886},{"$f":"VLOOKUP(DropDownList!$B$24,CntyQryCensus!$A$83:$FR$101,DK$1)","v":61},{"$f":"VLOOKUP(DropDownList!$B$24,CntyQryCensus!$A$83:$FR$101,DL$1)","v":333},{"$f":"VLOOKUP(DropDownList!$B$24,CntyQryCensus!$A$83:$FR$101,DM$1)","v":58},{"$f":"VLOOKUP(DropDownList!$B$24,CntyQryCensus!$A$83:$FR$101,DN$1)","v":42},{"$f":"VLOOKUP(DropDownList!$B$24,CntyQryCensus!$A$83:$FR$101,DO$1)","v":275},{"$f":"VLOOKUP(DropDownList!$B$24,CntyQryCensus!$A$83:$FR$101,DP$1)","v":83},{"$f":"VLOOKUP(DropDownList!$B$24,CntyQryCensus!$A$83:$FR$101,DQ$1)","v":3097},{"$f":"VLOOKUP(DropDownList!$B$24,CntyQryCensus!$A$83:$FR$101,DR$1)","v":451},{"$f":"VLOOKUP(DropDownList!$B$24,CntyQryCensus!$A$83:$FR$101,DS$1)","v":302},{"$f":"VLOOKUP(DropDownList!$B$24,CntyQryCensus!$A$83:$FR$101,DT$1)","v":2646},{"$f":"VLOOKUP(DropDownList!$B$24,CntyQryCensus!$A$83:$FR$101,DU$1)","v":1999},{"$f":"VLOOKUP(DropDownList!$B$24,CntyQryCensus!$A$83:$FR$101,DV$1)","v":718},{"$f":"VLOOKUP(DropDownList!$B$24,CntyQryCensus!$A$83:$FR$101,DW$1)","v":154},{"$f":"VLOOKUP(DropDownList!$B$24,CntyQryCensus!$A$83:$FR$101,DX$1)","v":685},{"$f":"VLOOKUP(DropDownList!$B$24,CntyQryCensus!$A$83:$FR$101,DY$1)","v":368},{"$f":"VLOOKUP(DropDownList!$B$24,CntyQryCensus!$A$83:$FR$101,DZ$1)","v":4934},{"$f":"VLOOKUP(DropDownList!$B$24,CntyQryCensus!$A$83:$FR$101,EA$1)","v":2662},{"$f":"VLOOKUP(DropDownList!$B$24,CntyQryCensus!$A$83:$FR$101,EB$1)","v":2662},{"$f":"VLOOKUP(DropDownList!$B$24,CntyQryCensus!$A$83:$FR$101,EC$1)","v":2583},{"$f":"VLOOKUP(DropDownList!$B$24,CntyQryCensus!$A$83:$FR$101,ED$1)","v":1734},{"$f":"VLOOKUP(DropDownList!$B$24,CntyQryCensus!$A$83:$FR$101,EE$1)","v":1493},{"$f":"VLOOKUP(DropDownList!$B$24,CntyQryCensus!$A$83:$FR$101,EF$1)","v":319},{"$f":"VLOOKUP(DropDownList!$B$24,CntyQryCensus!$A$83:$FR$101,EG$1)","v":291},{"$f":"VLOOKUP(DropDownList!$B$24,CntyQryCensus!$A$83:$FR$101,EH$1)","v":717},{"$f":"VLOOKUP(DropDownList!$B$24,CntyQryCensus!$A$83:$FR$101,EI$1)","v":624},{"$f":"VLOOKUP(DropDownList!$B$24,CntyQryCensus!$A$83:$FR$101,EJ$1)","v":93},{"$f":"VLOOKUP(DropDownList!$B$24,CntyQryCensus!$A$83:$FR$101,EK$1)","v":166},{"$f":"VLOOKUP(DropDownList!$B$24,CntyQryCensus!$A$83:$FR$101,EL$1)","v":166},{"$f":"VLOOKUP(DropDownList!$B$24,CntyQryCensus!$A$83:$FR$101,EM$1)","v":0},{"$f":"VLOOKUP(DropDownList!$B$24,CntyQryCensus!$A$83:$FR$101,EN$1)","v":241},{"$f":"VLOOKUP(DropDownList!$B$24,CntyQryCensus!$A$83:$FR$101,EO$1)","v":64},{"$f":"VLOOKUP(DropDownList!$B$24,CntyQryCensus!$A$83:$FR$101,EP$1)","v":16},{"$f":"VLOOKUP(DropDownList!$B$24,CntyQryCensus!$A$83:$FR$101,EQ$1)","v":37},{"$f":"VLOOKUP(DropDownList!$B$24,CntyQryCensus!$A$83:$FR$101,ER$1)","v":11},{"$f":"VLOOKUP(DropDownList!$B$24,CntyQryCensus!$A$83:$FR$101,ES$1)","v":0},{"$f":"VLOOKUP(DropDownList!$B$24,CntyQryCensus!$A$83:$FR$101,ET$1)","v":177},{"$f":"VLOOKUP(DropDownList!$B$24,CntyQryCensus!$A$83:$FR$101,EU$1)","v":7},{"$f":"VLOOKUP(DropDownList!$B$24,CntyQryCensus!$A$83:$FR$101,EV$1)","v":81},{"$f":"VLOOKUP(DropDownList!$B$24,CntyQryCensus!$A$83:$FR$101,EW$1)","v":80},{"$f":"VLOOKUP(DropDownList!$B$24,CntyQryCensus!$A$83:$FR$101,EX$1)","v":9},{"$f":"VLOOKUP(DropDownList!$B$24,CntyQryCensus!$A$83:$FR$101,EY$1)","v":2583},{"$f":"VLOOKUP(DropDownList!$B$24,CntyQryCensus!$A$83:$FR$101,EZ$1)","v":26},{"$f":"VLOOKUP(DropDownList!$B$24,CntyQryCensus!$A$83:$FR$101,FA$1)","v":298},{"$f":"VLOOKUP(DropDownList!$B$24,CntyQryCensus!$A$83:$FR$101,FB$1)","v":210},{"$f":"VLOOKUP(DropDownList!$B$24,CntyQryCensus!$A$83:$FR$101,FC$1)","v":132},{"$f":"VLOOKUP(DropDownList!$B$24,CntyQryCensus!$A$83:$FR$101,FD$1)","v":254},{"$f":"VLOOKUP(DropDownList!$B$24,CntyQryCensus!$A$83:$FR$101,FE$1)","v":104},{"$f":"VLOOKUP(DropDownList!$B$24,CntyQryCensus!$A$83:$FR$101,FF$1)","v":8},{"$f":"VLOOKUP(DropDownList!$B$24,CntyQryCensus!$A$83:$FR$101,FG$1)","v":136},{"$f":"VLOOKUP(DropDownList!$B$24,CntyQryCensus!$A$83:$FR$101,FH$1)","v":244},{"$f":"VLOOKUP(DropDownList!$B$24,CntyQryCensus!$A$83:$FR$101,FI$1)","v":699},{"$f":"VLOOKUP(DropDownList!$B$24,CntyQryCensus!$A$83:$FR$101,FJ$1)","v":270},{"$f":"VLOOKUP(DropDownList!$B$24,CntyQryCensus!$A$83:$FR$101,FK$1)","v":104},{"$f":"VLOOKUP(DropDownList!$B$24,CntyQryCensus!$A$83:$FR$101,FL$1)","v":98},{"$f":"VLOOKUP(DropDownList!$B$24,CntyQryCensus!$A$83:$FR$101,FM$1)","v":950},{"$f":"VLOOKUP(DropDownList!$B$24,CntyQryCensus!$A$83:$FR$101,FN$1)","v":423},{"$f":"VLOOKUP(DropDownList!$B$24,CntyQryCensus!$A$83:$FR$101,FO$1)","v":593},{"$f":"VLOOKUP(DropDownList!$B$24,CntyQryCensus!$A$83:$FR$101,FP$1)","v":8},{"$f":"VLOOKUP(DropDownList!$B$24,CntyQryCensus!$A$83:$FR$101,FQ$1)","v":347},{"$f":"VLOOKUP(DropDownList!$B$24,CntyQryCensus!$A$83:$FR$101,FR$1)","v":262}]
[]
[]
["Census 2000 SummaryFile3 Sample Data  -  SF3TownQry2aIncomeChar"]
["NAME","LOGRECNO","COUNTY","TotalPop","P52Households1","P52HHInc<10K","P52HHInc10to15K","P52HHInc15to20K","P52HHInc20to25K","P52HHInc25to30K","P52HHInc30to35K","P52HHInc35to40K","P52HHInc40to45K","P52HHInc45to50K","P52HHInc50to60K","P52HHInc60to75K","P52HHInc75to100K","P52HHInc100to125K","P52HHInc125to150K","P52HHInc150to200K","P52HHInc>200K","P53MedianHHInc","P54AggregHHInc","P55Households2","P55HHUnder25yrs","P55HH<25HHInc<10K","P55HH<25HHInc10to15K","P55HH<25HHInc15to20K","P55HH<25HHInc20to25K","P55HH<25HHInc25to30K","P55HH<25HHInc30to35K","P55HH<25HHInc35to40K","P55HH<25HHInc40to45K","P55HH<25HHInc45to50K","P55HH<25HHInc50to60K","P55HH<25HHInc60to75K","P55HH<25HHInc75to100K","P55HH<25HHInc100to125K","P55HH<25HHInc125to150K","P55HH<25HHInc150to200K","P55HH<25HHInc>200K","P55HH25to34yrs","P55HH25to34HHInc<10K","P55HH25to34HHInc10to15K","P55HH25to34HHInc15to20K","P55HH25to34HHInc20to25K","P55HH25to34HHInc25to30K","P55HH25to34HHInc30to35K","P55HH25to34HHInc35to40K","P55HH25to34HHInc40to45K","P55HH25to34HHInc45to50K","P55HH25to34HHInc50to60K","P55HH25to34HHInc60to75K","P55HH25to34HHInc75to100K","P55HH25to34HHInc100to125K","P55HH25to34HHInc125to150K","P55HH25to34HHInc150to200K","P55HH25to34HHInc>200K","P55HH35to44yrs","P55HH35to44HHInc<10K","P55HH35to44HHInc10to15K","P55HH35to44HHInc15to20K","P55HH35to44HHInc20to25K","P55HH35to44HHInc25to30K","P55HH35to44HHInc30to35K","P55HH35to44HHInc35to40K","P55HH35to44HHInc40to45K","P55HH35to44HHInc45to50K","P55HH35to44HHInc50to60K","P55HH35to44HHInc60to75K","P55HH35to44HHInc75to100K","P55HH35to44HHInc100to125K","P55HH35to44HHInc125to150K","P55HH35to44HHInc150to200K","P55HH35to44HHInc>200K","P55HH45to54yrs","P55HH45to55HHInc<10K","P55HH45to55HHInc10to15K","P55HH45to55HHInc15to20K","P55HH45to55HHInc20to25K","P55HH45to55HHInc25to30K","P55HH45to55HHInc30to35K","P55HH45to55HHInc35to40K","P55HH45to55HHInc40to45K","P55HH45to55HHInc45to50K","P55HH45to55HHInc50to60K","P55HH45to55HHInc60to75K","P55HH45to55HHInc75to100K","P55HH45to55HHInc100to125K","P55HH45to55HHInc125to150K","P55HH45to55HHInc150to200K","P55HH45to55HHInc>200K","P55HH55to64yrs","P55HH55to64HHInc<10K","P55HH55to64HHInc10to15K","P55HH55to64HHInc15to20K","P55HH55to64HHInc20to25K","P55HH55to64HHInc25to30K","P55HH55to64HHInc30to35K","P55HH55to64HHInc35to40K","P55HH55to64HHInc40to45K","P55HH55to64HHInc45to50K","P55HH55to64HHInc50to60K","P55HH55to64HHInc60to75K","P55HH55to64HHInc75to100K","P55HH55to64HHInc100to125K","P55HH55to64HHInc125to150K","P55HH55to64HHInc150to200K","P55HH55to64HHInc>200K","P55HH65to74yrs","P55HH65to74HHInc<10K","P55HH65to74HHInc10to15K","P55HH65to74HHInc15to20K","P55HH65to74HHInc20to25K","P55HH65to74HHInc25to30K","P55HH65to74HHInc30to35K","P55HH65to74HHInc35to40K","P55HH65to74HHInc40to45K","P55HH65to74HHInc45to50K","P55HH65to74HHInc50to60K","P55HH65to74HHInc60to75K","P55HH65to74HHInc75to100K","P55HH65to74HHInc100to125K","P55HH65to74HHInc125to150K","P55HH65to74HHInc150to200K","P55HH65to74HHInc>200K","P55HH>75yrs","P55HH>75HHInc<10K","P55HH>75HHInc10to15K","P55HH>75HHInc15to20K","P55HH>75HHInc20to25K","P55HH>75HHInc25to30K","P55HH>75HHInc30to35K","P55HH>75HHInc35to40K","P55HH>75HHInc40to45K","P55HH>75HHInc45to50K","P55HH>75HHInc50to60K","P55HH>75HHInc60to75K","P55HH>75HHInc75to100K","P55HH>75HHInc100to125K","P55HH>75HHInc125to150K","P55HH>75HHInc150to200K","P55HH>75HHInc>200K","P56MedHHInc","P56MedHHIncHH<25y","P56MedHHIncHH25to34y","P56MedHHIncHH35to44y","P56MedHHIncHH45to54y","P56MedHHIncHH55to64y","P56MedHHIncHH65to74y","P56MedHHIncHH>75y","P58Households3","P58HHwithEarnings","P58HHNoEarnings","P59HHwWageSalInc","P59HHNoWageSalInc","P60HHwSelfEmpInc","P60HHNoSelfEmpInc","P61HHwIndDivInc","P61HHNoIndDivInc","P62HHwSocSecInc","P62HHNoSocSecInc","P63HHwSSI","P63HHNoSSI","P64HHwPubAssInc","P64HHNoPubAssInc","P65HHwRetInc","P65HHNoRetInc","P66HHwOtherTypInc","P66HHNoOtherTypInc","P67AggregEarnings","P68AggregWageSalInc","P69AggregSelfEmpInc","P70AggregIntDivInc","P71AggregSocSecInc","P72AggregSSIInc","P73AggregPublicAssInc","P74AggregRetireInc","P76Families1","P76FamInc<10K","P76FamInc10to15K","P76FamInc15to20K","P76FamInc20to25K","P76FamInc25to30K","P76FamInc30to35K","P76FamInc35to40K","P76FamInc40to45K","P76FamInc45to50K","P76FamInc50to60K","P76FamInc60to75K","P76FamInc75to100K","P76FamInc100to125K","P76FamInc125to150K","P76FamInc150to200K","P76FamInc>200K","P77MedFamInc","P78AggregFamInc","P79NonFamHH","P79NonFamHHwInc<10K","P79NonFamHHwInc10to15K","P79NonFamHHwInc15to20K","P79NonFamHHwInc20to25K","P79NonFamHHwInc25to30K","P79NonFamHHwInc30to35K","P79NonFamHHwInc35to40K","P79NonFamHHwInc40to45K","P79NonFamHHwInc45to50K","P79NonFamHHwInc50to60K","P79NonFamHHwInc60to75K","P79NonFamHHwInc75to100K","P79NonFamHHwInc100to125K","P79NonFamHHwInc125to150K","P79NonFamHHwInc150to200K","P79NonFamHHwInc200KorMore","P80MedNonFamInc","P82PerCapitaInc"]
[{"$f":"VLOOKUP(DropDownList!$B$24,CntyQryCensus!$A$109:$HH$127,A$1)","v":"Wolfeboro"},{"$f":"VLOOKUP(DropDownList!$B$24,CntyQryCensus!$A$109:$HH$127,B$1)","v":"0000440"},{"$f":"VLOOKUP(DropDownList!$B$24,CntyQryCensus!$A$109:$HH$127,C$1)","v":"86420"},{"$f":"VLOOKUP(DropDownList!$B$24,CntyQryCensus!$A$109:$HH$127,D$1)","v":6083},{"$f":"VLOOKUP(DropDownList!$B$24,CntyQryCensus!$A$109:$HH$127,E$1)","v":2575},{"$f":"VLOOKUP(DropDownList!$B$24,CntyQryCensus!$A$109:$HH$127,F$1)","v":151},{"$f":"VLOOKUP(DropDownList!$B$24,CntyQryCensus!$A$109:$HH$127,G$1)","v":170},{"$f":"VLOOKUP(DropDownList!$B$24,CntyQryCensus!$A$109:$HH$127,H$1)","v":184},{"$f":"VLOOKUP(DropDownList!$B$24,CntyQryCensus!$A$109:$HH$127,I$1)","v":228},{"$f":"VLOOKUP(DropDownList!$B$24,CntyQryCensus!$A$109:$HH$127,J$1)","v":187},{"$f":"VLOOKUP(DropDownList!$B$24,CntyQryCensus!$A$109:$HH$127,K$1)","v":115},{"$f":"VLOOKUP(DropDownList!$B$24,CntyQryCensus!$A$109:$HH$127,L$1)","v":124},{"$f":"VLOOKUP(DropDownList!$B$24,CntyQryCensus!$A$109:$HH$127,M$1)","v":168},{"$f":"VLOOKUP(DropDownList!$B$24,CntyQryCensus!$A$109:$HH$127,N$1)","v":123},{"$f":"VLOOKUP(DropDownList!$B$24,CntyQryCensus!$A$109:$HH$127,O$1)","v":255},{"$f":"VLOOKUP(DropDownList!$B$24,CntyQryCensus!$A$109:$HH$127,P$1)","v":278},{"$f":"VLOOKUP(DropDownList!$B$24,CntyQryCensus!$A$109:$HH$127,Q$1)","v":224},{"$f":"VLOOKUP(DropDownList!$B$24,CntyQryCensus!$A$109:$HH$127,R$1)","v":139},{"$f":"VLOOKUP(DropDownList!$B$24,CntyQryCensus!$A$109:$HH$127,S$1)","v":64},{"$f":"VLOOKUP(DropDownList!$B$24,CntyQryCensus!$A$109:$HH$127,T$1)","v":79},{"$f":"VLOOKUP(DropDownList!$B$24,CntyQryCensus!$A$109:$HH$127,U$1)","v":86},{"$f":"VLOOKUP(DropDownList!$B$24,CntyQryCensus!$A$109:$HH$127,V$1)","v":44013},{"$f":"VLOOKUP(DropDownList!$B$24,CntyQryCensus!$A$109:$HH$127,W$1)","v":157196700},{"$f":"VLOOKUP(DropDownList!$B$24,CntyQryCensus!$A$109:$HH$127,X$1)","v":2575},{"$f":"VLOOKUP(DropDownList!$B$24,CntyQryCensus!$A$109:$HH$127,Y$1)","v":22},{"$f":"VLOOKUP(DropDownList!$B$24,CntyQryCensus!$A$109:$HH$127,Z$1)","v":0},{"$f":"VLOOKUP(DropDownList!$B$24,CntyQryCensus!$A$109:$HH$127,AA$1)","v":0},{"$f":"VLOOKUP(DropDownList!$B$24,CntyQryCensus!$A$109:$HH$127,AB$1)","v":0},{"$f":"VLOOKUP(DropDownList!$B$24,CntyQryCensus!$A$109:$HH$127,AC$1)","v":8},{"$f":"VLOOKUP(DropDownList!$B$24,CntyQryCensus!$A$109:$HH$127,AD$1)","v":0},{"$f":"VLOOKUP(DropDownList!$B$24,CntyQryCensus!$A$109:$HH$127,AE$1)","v":8},{"$f":"VLOOKUP(DropDownList!$B$24,CntyQryCensus!$A$109:$HH$127,AF$1)","v":0},{"$f":"VLOOKUP(DropDownList!$B$24,CntyQryCensus!$A$109:$HH$127,AG$1)","v":0},{"$f":"VLOOKUP(DropDownList!$B$24,CntyQryCensus!$A$109:$HH$127,AH$1)","v":0},{"$f":"VLOOKUP(DropDownList!$B$24,CntyQryCensus!$A$109:$HH$127,AI$1)","v":6},{"$f":"VLOOKUP(DropDownList!$B$24,CntyQryCensus!$A$109:$HH$127,AJ$1)","v":0},{"$f":"VLOOKUP(DropDownList!$B$24,CntyQryCensus!$A$109:$HH$127,AK$1)","v":0},{"$f":"VLOOKUP(DropDownList!$B$24,CntyQryCensus!$A$109:$HH$127,AL$1)","v":0},{"$f":"VLOOKUP(DropDownList!$B$24,CntyQryCensus!$A$109:$HH$127,AM$1)","v":0},{"$f":"VLOOKUP(DropDownList!$B$24,CntyQryCensus!$A$109:$HH$127,AN$1)","v":0},{"$f":"VLOOKUP(DropDownList!$B$24,CntyQryCensus!$A$109:$HH$127,AO$1)","v":0},{"$f":"VLOOKUP(DropDownList!$B$24,CntyQryCensus!$A$109:$HH$127,AP$1)","v":257},{"$f":"VLOOKUP(DropDownList!$B$24,CntyQryCensus!$A$109:$HH$127,AQ$1)","v":17},{"$f":"VLOOKUP(DropDownList!$B$24,CntyQryCensus!$A$109:$HH$127,AR$1)","v":15},{"$f":"VLOOKUP(DropDownList!$B$24,CntyQryCensus!$A$109:$HH$127,AS$1)","v":8},{"$f":"VLOOKUP(DropDownList!$B$24,CntyQryCensus!$A$109:$HH$127,AT$1)","v":41},{"$f":"VLOOKUP(DropDownList!$B$24,CntyQryCensus!$A$109:$HH$127,AU$1)","v":20},{"$f":"VLOOKUP(DropDownList!$B$24,CntyQryCensus!$A$109:$HH$127,AV$1)","v":25},{"$f":"VLOOKUP(DropDownList!$B$24,CntyQryCensus!$A$109:$HH$127,AW$1)","v":8},{"$f":"VLOOKUP(DropDownList!$B$24,CntyQryCensus!$A$109:$HH$127,AX$1)","v":24},{"$f":"VLOOKUP(DropDownList!$B$24,CntyQryCensus!$A$109:$HH$127,AY$1)","v":11},{"$f":"VLOOKUP(DropDownList!$B$24,CntyQryCensus!$A$109:$HH$127,AZ$1)","v":27},{"$f":"VLOOKUP(DropDownList!$B$24,CntyQryCensus!$A$109:$HH$127,BA$1)","v":45},{"$f":"VLOOKUP(DropDownList!$B$24,CntyQryCensus!$A$109:$HH$127,BB$1)","v":7},{"$f":"VLOOKUP(DropDownList!$B$24,CntyQryCensus!$A$109:$HH$127,BC$1)","v":9},{"$f":"VLOOKUP(DropDownList!$B$24,CntyQryCensus!$A$109:$HH$127,BD$1)","v":0},{"$f":"VLOOKUP(DropDownList!$B$24,CntyQryCensus!$A$109:$HH$127,BE$1)","v":0},{"$f":"VLOOKUP(DropDownList!$B$24,CntyQryCensus!$A$109:$HH$127,BF$1)","v":0},{"$f":"VLOOKUP(DropDownList!$B$24,CntyQryCensus!$A$109:$HH$127,BG$1)","v":500},{"$f":"VLOOKUP(DropDownList!$B$24,CntyQryCensus!$A$109:$HH$127,BH$1)","v":32},{"$f":"VLOOKUP(DropDownList!$B$24,CntyQryCensus!$A$109:$HH$127,BI$1)","v":27},{"$f":"VLOOKUP(DropDownList!$B$24,CntyQryCensus!$A$109:$HH$127,BJ$1)","v":8},{"$f":"VLOOKUP(DropDownList!$B$24,CntyQryCensus!$A$109:$HH$127,BK$1)","v":6},{"$f":"VLOOKUP(DropDownList!$B$24,CntyQryCensus!$A$109:$HH$127,BL$1)","v":60},{"$f":"VLOOKUP(DropDownList!$B$24,CntyQryCensus!$A$109:$HH$127,BM$1)","v":14},{"$f":"VLOOKUP(DropDownList!$B$24,CntyQryCensus!$A$109:$HH$127,BN$1)","v":43},{"$f":"VLOOKUP(DropDownList!$B$24,CntyQryCensus!$A$109:$HH$127,BO$1)","v":24},{"$f":"VLOOKUP(DropDownList!$B$24,CntyQryCensus!$A$109:$HH$127,BP$1)","v":29},{"$f":"VLOOKUP(DropDownList!$B$24,CntyQryCensus!$A$109:$HH$127,BQ$1)","v":73},{"$f":"VLOOKUP(DropDownList!$B$24,CntyQryCensus!$A$109:$HH$127,BR$1)","v":64},{"$f":"VLOOKUP(DropDownList!$B$24,CntyQryCensus!$A$109:$HH$127,BS$1)","v":50},{"$f":"VLOOKUP(DropDownList!$B$24,CntyQryCensus!$A$109:$HH$127,BT$1)","v":28},{"$f":"VLOOKUP(DropDownList!$B$24,CntyQryCensus!$A$109:$HH$127,BU$1)","v":17},{"$f":"VLOOKUP(DropDownList!$B$24,CntyQryCensus!$A$109:$HH$127,BV$1)","v":11},{"$f":"VLOOKUP(DropDownList!$B$24,CntyQryCensus!$A$109:$HH$127,BW$1)","v":14},{"$f":"VLOOKUP(DropDownList!$B$24,CntyQryCensus!$A$109:$HH$127,BX$1)","v":492},{"$f":"VLOOKUP(DropDownList!$B$24,CntyQryCensus!$A$109:$HH$127,BY$1)","v":17},{"$f":"VLOOKUP(DropDownList!$B$24,CntyQryCensus!$A$109:$HH$127,BZ$1)","v":0},{"$f":"VLOOKUP(DropDownList!$B$24,CntyQryCensus!$A$109:$HH$127,CA$1)","v":0},{"$f":"VLOOKUP(DropDownList!$B$24,CntyQryCensus!$A$109:$HH$127,CB$1)","v":44},{"$f":"VLOOKUP(DropDownList!$B$24,CntyQryCensus!$A$109:$HH$127,CC$1)","v":30},{"$f":"VLOOKUP(DropDownList!$B$24,CntyQryCensus!$A$109:$HH$127,CD$1)","v":8},{"$f":"VLOOKUP(DropDownList!$B$24,CntyQryCensus!$A$109:$HH$127,CE$1)","v":26},{"$f":"VLOOKUP(DropDownList!$B$24,CntyQryCensus!$A$109:$HH$127,CF$1)","v":59},{"$f":"VLOOKUP(DropDownList!$B$24,CntyQryCensus!$A$109:$HH$127,CG$1)","v":37},{"$f":"VLOOKUP(DropDownList!$B$24,CntyQryCensus!$A$109:$HH$127,CH$1)","v":17},{"$f":"VLOOKUP(DropDownList!$B$24,CntyQryCensus!$A$109:$HH$127,CI$1)","v":88},{"$f":"VLOOKUP(DropDownList!$B$24,CntyQryCensus!$A$109:$HH$127,CJ$1)","v":36},{"$f":"VLOOKUP(DropDownList!$B$24,CntyQryCensus!$A$109:$HH$127,CK$1)","v":62},{"$f":"VLOOKUP(DropDownList!$B$24,CntyQryCensus!$A$109:$HH$127,CL$1)","v":17},{"$f":"VLOOKUP(DropDownList!$B$24,CntyQryCensus!$A$109:$HH$127,CM$1)","v":17},{"$f":"VLOOKUP(DropDownList!$B$24,CntyQryCensus!$A$109:$HH$127,CN$1)","v":34},{"$f":"VLOOKUP(DropDownList!$B$24,CntyQryCensus!$A$109:$HH$127,CO$1)","v":381},{"$f":"VLOOKUP(DropDownList!$B$24,CntyQryCensus!$A$109:$HH$127,CP$1)","v":7},{"$f":"VLOOKUP(DropDownList!$B$24,CntyQryCensus!$A$109:$HH$127,CQ$1)","v":17},{"$f":"VLOOKUP(DropDownList!$B$24,CntyQryCensus!$A$109:$HH$127,CR$1)","v":18},{"$f":"VLOOKUP(DropDownList!$B$24,CntyQryCensus!$A$109:$HH$127,CS$1)","v":33},{"$f":"VLOOKUP(DropDownList!$B$24,CntyQryCensus!$A$109:$HH$127,CT$1)","v":27},{"$f":"VLOOKUP(DropDownList!$B$24,CntyQryCensus!$A$109:$HH$127,CU$1)","v":8},{"$f":"VLOOKUP(DropDownList!$B$24,CntyQryCensus!$A$109:$HH$127,CV$1)","v":0},{"$f":"VLOOKUP(DropDownList!$B$24,CntyQryCensus!$A$109:$HH$127,CW$1)","v":0},{"$f":"VLOOKUP(DropDownList!$B$24,CntyQryCensus!$A$109:$HH$127,CX$1)","v":20},{"$f":"VLOOKUP(DropDownList!$B$24,CntyQryCensus!$A$109:$HH$127,CY$1)","v":64},{"$f":"VLOOKUP(DropDownList!$B$24,CntyQryCensus!$A$109:$HH$127,CZ$1)","v":9},{"$f":"VLOOKUP(DropDownList!$B$24,CntyQryCensus!$A$109:$HH$127,DA$1)","v":101},{"$f":"VLOOKUP(DropDownList!$B$24,CntyQryCensus!$A$109:$HH$127,DB$1)","v":0},{"$f":"VLOOKUP(DropDownList!$B$24,CntyQryCensus!$A$109:$HH$127,DC$1)","v":11},{"$f":"VLOOKUP(DropDownList!$B$24,CntyQryCensus!$A$109:$HH$127,DD$1)","v":28},{"$f":"VLOOKUP(DropDownList!$B$24,CntyQryCensus!$A$109:$HH$127,DE$1)","v":38},{"$f":"VLOOKUP(DropDownList!$B$24,CntyQryCensus!$A$109:$HH$127,DF$1)","v":449},{"$f":"VLOOKUP(DropDownList!$B$24,CntyQryCensus!$A$109:$HH$127,DG$1)","v":24},{"$f":"VLOOKUP(DropDownList!$B$24,CntyQryCensus!$A$109:$HH$127,DH$1)","v":26},{"$f":"VLOOKUP(DropDownList!$B$24,CntyQryCensus!$A$109:$HH$127,DI$1)","v":80},{"$f":"VLOOKUP(DropDownList!$B$24,CntyQryCensus!$A$109:$HH$127,DJ$1)","v":34},{"$f":"VLOOKUP(DropDownList!$B$24,CntyQryCensus!$A$109:$HH$127,DK$1)","v":28},{"$f":"VLOOKUP(DropDownList!$B$24,CntyQryCensus!$A$109:$HH$127,DL$1)","v":37},{"$f":"VLOOKUP(DropDownList!$B$24,CntyQryCensus!$A$109:$HH$127,DM$1)","v":16},{"$f":"VLOOKUP(DropDownList!$B$24,CntyQryCensus!$A$109:$HH$127,DN$1)","v":36},{"$f":"VLOOKUP(DropDownList!$B$24,CntyQryCensus!$A$109:$HH$127,DO$1)","v":26},{"$f":"VLOOKUP(DropDownList!$B$24,CntyQryCensus!$A$109:$HH$127,DP$1)","v":37},{"$f":"VLOOKUP(DropDownList!$B$24,CntyQryCensus!$A$109:$HH$127,DQ$1)","v":28},{"$f":"VLOOKUP(DropDownList!$B$24,CntyQryCensus!$A$109:$HH$127,DR$1)","v":24},{"$f":"VLOOKUP(DropDownList!$B$24,CntyQryCensus!$A$109:$HH$127,DS$1)","v":28},{"$f":"VLOOKUP(DropDownList!$B$24,CntyQryCensus!$A$109:$HH$127,DT$1)","v":9},{"$f":"VLOOKUP(DropDownList!$B$24,CntyQryCensus!$A$109:$HH$127,DU$1)","v":16},{"$f":"VLOOKUP(DropDownList!$B$24,CntyQryCensus!$A$109:$HH$127,DV$1)","v":0},{"$f":"VLOOKUP(DropDownList!$B$24,CntyQryCensus!$A$109:$HH$127,DW$1)","v":474},{"$f":"VLOOKUP(DropDownList!$B$24,CntyQryCensus!$A$109:$HH$127,DX$1)","v":54},{"$f":"VLOOKUP(DropDownList!$B$24,CntyQryCensus!$A$109:$HH$127,DY$1)","v":85},{"$f":"VLOOKUP(DropDownList!$B$24,CntyQryCensus!$A$109:$HH$127,DZ$1)","v":70},{"$f":"VLOOKUP(DropDownList!$B$24,CntyQryCensus!$A$109:$HH$127,EA$1)","v":62},{"$f":"VLOOKUP(DropDownList!$B$24,CntyQryCensus!$A$109:$HH$127,EB$1)","v":22},{"$f":"VLOOKUP(DropDownList!$B$24,CntyQryCensus!$A$109:$HH$127,EC$1)","v":15},{"$f":"VLOOKUP(DropDownList!$B$24,CntyQryCensus!$A$109:$HH$127,ED$1)","v":31},{"$f":"VLOOKUP(DropDownList!$B$24,CntyQryCensus!$A$109:$HH$127,EE$1)","v":25},{"$f":"VLOOKUP(DropDownList!$B$24,CntyQryCensus!$A$109:$HH$127,EF$1)","v":0},{"$f":"VLOOKUP(DropDownList!$B$24,CntyQryCensus!$A$109:$HH$127,EG$1)","v":31},{"$f":"VLOOKUP(DropDownList!$B$24,CntyQryCensus!$A$109:$HH$127,EH$1)","v":44},{"$f":"VLOOKUP(DropDownList!$B$24,CntyQryCensus!$A$109:$HH$127,EI$1)","v":6},{"$f":"VLOOKUP(DropDownList!$B$24,CntyQryCensus!$A$109:$HH$127,EJ$1)","v":12},{"$f":"VLOOKUP(DropDownList!$B$24,CntyQryCensus!$A$109:$HH$127,EK$1)","v":10},{"$f":"VLOOKUP(DropDownList!$B$24,CntyQryCensus!$A$109:$HH$127,EL$1)","v":7},{"$f":"VLOOKUP(DropDownList!$B$24,CntyQryCensus!$A$109:$HH$127,EM$1)","v":0},{"$f":"VLOOKUP(DropDownList!$B$24,CntyQryCensus!$A$109:$HH$127,EN$1)","v":44013},{"$f":"VLOOKUP(DropDownList!$B$24,CntyQryCensus!$A$109:$HH$127,EO$1)","v":30938},{"$f":"VLOOKUP(DropDownList!$B$24,CntyQryCensus!$A$109:$HH$127,EP$1)","v":38281},{"$f":"VLOOKUP(DropDownList!$B$24,CntyQryCensus!$A$109:$HH$127,EQ$1)","v":50625},{"$f":"VLOOKUP(DropDownList!$B$24,CntyQryCensus!$A$109:$HH$127,ER$1)","v":61176},{"$f":"VLOOKUP(DropDownList!$B$24,CntyQryCensus!$A$109:$HH$127,ES$1)","v":58750},{"$f":"VLOOKUP(DropDownList!$B$24,CntyQryCensus!$A$109:$HH$127,ET$1)","v":34408},{"$f":"VLOOKUP(DropDownList!$B$24,CntyQryCensus!$A$109:$HH$127,EU$1)","v":21750},{"$f":"VLOOKUP(DropDownList!$B$24,CntyQryCensus!$A$109:$HH$127,EV$1)","v":2575},{"$f":"VLOOKUP(DropDownList!$B$24,CntyQryCensus!$A$109:$HH$127,EW$1)","v":1820},{"$f":"VLOOKUP(DropDownList!$B$24,CntyQryCensus!$A$109:$HH$127,EX$1)","v":755},{"$f":"VLOOKUP(DropDownList!$B$24,CntyQryCensus!$A$109:$HH$127,EY$1)","v":1608},{"$f":"VLOOKUP(DropDownList!$B$24,CntyQryCensus!$A$109:$HH$127,EZ$1)","v":967},{"$f":"VLOOKUP(DropDownList!$B$24,CntyQryCensus!$A$109:$HH$127,FA$1)","v":590},{"$f":"VLOOKUP(DropDownList!$B$24,CntyQryCensus!$A$109:$HH$127,FB$1)","v":1985},{"$f":"VLOOKUP(DropDownList!$B$24,CntyQryCensus!$A$109:$HH$127,FC$1)","v":1149},{"$f":"VLOOKUP(DropDownList!$B$24,CntyQryCensus!$A$109:$HH$127,FD$1)","v":1426},{"$f":"VLOOKUP(DropDownList!$B$24,CntyQryCensus!$A$109:$HH$127,FE$1)","v":951},{"$f":"VLOOKUP(DropDownList!$B$24,CntyQryCensus!$A$109:$HH$127,FF$1)","v":1624},{"$f":"VLOOKUP(DropDownList!$B$24,CntyQryCensus!$A$109:$HH$127,FG$1)","v":64},{"$f":"VLOOKUP(DropDownList!$B$24,CntyQryCensus!$A$109:$HH$127,FH$1)","v":2511},{"$f":"VLOOKUP(DropDownList!$B$24,CntyQryCensus!$A$109:$HH$127,FI$1)","v":72},{"$f":"VLOOKUP(DropDownList!$B$24,CntyQryCensus!$A$109:$HH$127,FJ$1)","v":2503},{"$f":"VLOOKUP(DropDownList!$B$24,CntyQryCensus!$A$109:$HH$127,FK$1)","v":709},{"$f":"VLOOKUP(DropDownList!$B$24,CntyQryCensus!$A$109:$HH$127,FL$1)","v":1866},{"$f":"VLOOKUP(DropDownList!$B$24,CntyQryCensus!$A$109:$HH$127,FM$1)","v":332},{"$f":"VLOOKUP(DropDownList!$B$24,CntyQryCensus!$A$109:$HH$127,FN$1)","v":2243},{"$f":"VLOOKUP(DropDownList!$B$24,CntyQryCensus!$A$109:$HH$127,FO$1)","v":107224100},{"$f":"VLOOKUP(DropDownList!$B$24,CntyQryCensus!$A$109:$HH$127,FP$1)","v":83810600},{"$f":"VLOOKUP(DropDownList!$B$24,CntyQryCensus!$A$109:$HH$127,FQ$1)","v":23413500},{"$f":"VLOOKUP(DropDownList!$B$24,CntyQryCensus!$A$109:$HH$127,FR$1)","v":17876300},{"$f":"VLOOKUP(DropDownList!$B$24,CntyQryCensus!$A$109:$HH$127,FS$1)","v":11917200},{"$f":"VLOOKUP(DropDownList!$B$24,CntyQryCensus!$A$109:$HH$127,FT$1)","v":362300},{"$f":"VLOOKUP(DropDownList!$B$24,CntyQryCensus!$A$109:$HH$127,FU$1)","v":90300},{"$f":"VLOOKUP(DropDownList!$B$24,CntyQryCensus!$A$109:$HH$127,FV$1)","v":16185500},{"$f":"VLOOKUP(DropDownList!$B$24,CntyQryCensus!$A$109:$HH$127,FW$1)","v":1734},{"$f":"VLOOKUP(DropDownList!$B$24,CntyQryCensus!$A$109:$HH$127,FX$1)","v":33},{"$f":"VLOOKUP(DropDownList!$B$24,CntyQryCensus!$A$109:$HH$127,FY$1)","v":64},{"$f":"VLOOKUP(DropDownList!$B$24,CntyQryCensus!$A$109:$HH$127,FZ$1)","v":49},{"$f":"VLOOKUP(DropDownList!$B$24,CntyQryCensus!$A$109:$HH$127,GA$1)","v":139},{"$f":"VLOOKUP(DropDownList!$B$24,CntyQryCensus!$A$109:$HH$127,GB$1)","v":122},{"$f":"VLOOKUP(DropDownList!$B$24,CntyQryCensus!$A$109:$HH$127,GC$1)","v":65},{"$f":"VLOOKUP(DropDownList!$B$24,CntyQryCensus!$A$109:$HH$127,GD$1)","v":85},{"$f":"VLOOKUP(DropDownList!$B$24,CntyQryCensus!$A$109:$HH$127,GE$1)","v":113},{"$f":"VLOOKUP(DropDownList!$B$24,CntyQryCensus!$A$109:$HH$127,GF$1)","v":113},{"$f":"VLOOKUP(DropDownList!$B$24,CntyQryCensus!$A$109:$HH$127,GG$1)","v":187},{"$f":"VLOOKUP(DropDownList!$B$24,CntyQryCensus!$A$109:$HH$127,GH$1)","v":219},{"$f":"VLOOKUP(DropDownList!$B$24,CntyQryCensus!$A$109:$HH$127,GI$1)","v":214},{"$f":"VLOOKUP(DropDownList!$B$24,CntyQryCensus!$A$109:$HH$127,GJ$1)","v":126},{"$f":"VLOOKUP(DropDownList!$B$24,CntyQryCensus!$A$109:$HH$127,GK$1)","v":64},{"$f":"VLOOKUP(DropDownList!$B$24,CntyQryCensus!$A$109:$HH$127,GL$1)","v":64},{"$f":"VLOOKUP(DropDownList!$B$24,CntyQryCensus!$A$109:$HH$127,GM$1)","v":77},{"$f":"VLOOKUP(DropDownList!$B$24,CntyQryCensus!$A$109:$HH$127,GN$1)","v":53269},{"$f":"VLOOKUP(DropDownList!$B$24,CntyQryCensus!$A$109:$HH$127,GO$1)","v":122919400},{"$f":"VLOOKUP(DropDownList!$B$24,CntyQryCensus!$A$109:$HH$127,GP$1)","v":841},{"$f":"VLOOKUP(DropDownList!$B$24,CntyQryCensus!$A$109:$HH$127,GQ$1)","v":118},{"$f":"VLOOKUP(DropDownList!$B$24,CntyQryCensus!$A$109:$HH$127,GR$1)","v":106},{"$f":"VLOOKUP(DropDownList!$B$24,CntyQryCensus!$A$109:$HH$127,GS$1)","v":143},{"$f":"VLOOKUP(DropDownList!$B$24,CntyQryCensus!$A$109:$HH$127,GT$1)","v":81},{"$f":"VLOOKUP(DropDownList!$B$24,CntyQryCensus!$A$109:$HH$127,GU$1)","v":65},{"$f":"VLOOKUP(DropDownList!$B$24,CntyQryCensus!$A$109:$HH$127,GV$1)","v":58},{"$f":"VLOOKUP(DropDownList!$B$24,CntyQryCensus!$A$109:$HH$127,GW$1)","v":50},{"$f":"VLOOKUP(DropDownList!$B$24,CntyQryCensus!$A$109:$HH$127,GX$1)","v":42},{"$f":"VLOOKUP(DropDownList!$B$24,CntyQryCensus!$A$109:$HH$127,GY$1)","v":10},{"$f":"VLOOKUP(DropDownList!$B$24,CntyQryCensus!$A$109:$HH$127,GZ$1)","v":68},{"$f":"VLOOKUP(DropDownList!$B$24,CntyQryCensus!$A$109:$HH$127,HA$1)","v":53},{"$f":"VLOOKUP(DropDownList!$B$24,CntyQryCensus!$A$109:$HH$127,HB$1)","v":10},{"$f":"VLOOKUP(DropDownList!$B$24,CntyQryCensus!$A$109:$HH$127,HC$1)","v":13},{"$f":"VLOOKUP(DropDownList!$B$24,CntyQryCensus!$A$109:$HH$127,HD$1)","v":0},{"$f":"VLOOKUP(DropDownList!$B$24,CntyQryCensus!$A$109:$HH$127,HE$1)","v":15},{"$f":"VLOOKUP(DropDownList!$B$24,CntyQryCensus!$A$109:$HH$127,HF$1)","v":9},{"$f":"VLOOKUP(DropDownList!$B$24,CntyQryCensus!$A$109:$HH$127,HG$1)","v":21651},{"$f":"VLOOKUP(DropDownList!$B$24,CntyQryCensus!$A$109:$HH$127,HH$1)","v":26361}]
[]
[]
["Census 2000 SummaryFile3 Sample Data  -  SF3TownQry2bPovertyChar"]
["NAME","LOGRECNO","COUNTY","TotalPop","P52Households1","P82PerCapitaInc","P87PopForPovStatus","P87PopWIncBelowPovStatus","P87PopUnder5yrBelowPoverty","P87Pop5yrBelowPoverty","P87Pop5to11yrBelowPoverty","P87Pop12to17yrBelowPoverty","P87Pop18to64yrBelowPoverty","P87Pop65to74yrBelowPoverty","P87PopOver75yrBelowPoverty","P87PopWIncAbovePovStatus","P87PopUnder5yrAbovePoverty","P87Pop5yrAbovePoverty","P87Pop5to11yrAbovePoverty","P87Pop12to17yrAbovePoverty","P87Pop18to64yrAbovePoverty","P87Pop65to74yrAbovePoverty","P87PopOver75yrAbovePoverty","P90Families","P90FamWIncBelowPov","P90MarCupFamWIncBelowPov","P90MCFamWRltdChld<18WIncBelowPov","P90MCFamWRltdChld<5WIncBelowPov","P90MaleHhlrWIncBelowPov","P90MaleHhlrWRltdChld<18yrWIncBelowPov","P90MaleHhlrWRltdChld<5yrWIncBelowPov","P90FemaleHhlrWIncBelowPov","P90FemaleHhlrWRltdChld<18yWIncBelowPov","P90FemaleHhlrWRltdChld<5yWIncBelowPov","P90FamWIncAbovePov","P90MarCupFamWIncAbovePov","P90MCFamWRltdChld<18WIncAbovePov","P90MCFamWRltdChld<5WIncAbovePov","P90MaleHhlrWIncAbovePov","P90MaleHhlrWRltdChld<18yrWIncAbovePov","P90MaleHhlrWRltdChld<5yrWIncAbovePov","P90FemaleHhlrWIncAbovePov","P90FemaleHhlrWRltdChld<18yWIncAbovePov","P90FemaleHhlrWRltdChld<5yWIncAbovePov","P92Households","P92HHwIncBelowPov","P92FamHHwIncBelowPov","P92MCFamHHwIncBelowPov","P92MaleFamHHwIncBelowPov","P92FemaleFamHHwIncBelowPov","P92NonFamHHwIncBelowPov","P92NonFamMaleHHwIncBelowPov","P92NonFamFemaleHHwIncBelowPov","P92HHwIncAbovePov","P92FamHHwIncAbovePov","P92MCFamHHwIncAbovePov","P92MaleFamHHwIncAbovePov","P92FemaleFamHHwIncAbovePov","P92NonFamHHwIncAbovePov","P92NonFamMaleHHwIncAbovePov","P92NonFamFemaleHHwIncAbovePov"]
[{"$f":"VLOOKUP(DropDownList!$B$24,CntyQryCensus!$A$135:$FZ$153,A$1)","v":"Wolfeboro"},{"$f":"VLOOKUP(DropDownList!$B$24,CntyQryCensus!$A$135:$FZ$153,B$1)","v":"0000440"},{"$f":"VLOOKUP(DropDownList!$B$24,CntyQryCensus!$A$135:$FZ$153,C$1)","v":"86420"},{"$f":"VLOOKUP(DropDownList!$B$24,CntyQryCensus!$A$135:$FZ$153,D$1)","v":6083},{"$f":"VLOOKUP(DropDownList!$B$24,CntyQryCensus!$A$135:$FZ$153,E$1)","v":2575},{"$f":"VLOOKUP(DropDownList!$B$24,CntyQryCensus!$A$135:$FZ$153,F$1)","v":26361},{"$f":"VLOOKUP(DropDownList!$B$24,CntyQryCensus!$A$135:$FZ$153,G$1)","v":5964},{"$f":"VLOOKUP(DropDownList!$B$24,CntyQryCensus!$A$135:$FZ$153,H$1)","v":375},{"$f":"VLOOKUP(DropDownList!$B$24,CntyQryCensus!$A$135:$FZ$153,I$1)","v":25},{"$f":"VLOOKUP(DropDownList!$B$24,CntyQryCensus!$A$135:$FZ$153,J$1)","v":7},{"$f":"VLOOKUP(DropDownList!$B$24,CntyQryCensus!$A$135:$FZ$153,K$1)","v":21},{"$f":"VLOOKUP(DropDownList!$B$24,CntyQryCensus!$A$135:$FZ$153,L$1)","v":72},{"$f":"VLOOKUP(DropDownList!$B$24,CntyQryCensus!$A$135:$FZ$153,M$1)","v":210},{"$f":"VLOOKUP(DropDownList!$B$24,CntyQryCensus!$A$135:$FZ$153,N$1)","v":16},{"$f":"VLOOKUP(DropDownList!$B$24,CntyQryCensus!$A$135:$FZ$153,O$1)","v":24},{"$f":"VLOOKUP(DropDownList!$B$24,CntyQryCensus!$A$135:$FZ$153,P$1)","v":5589},{"$f":"VLOOKUP(DropDownList!$B$24,CntyQryCensus!$A$135:$FZ$153,Q$1)","v":238},{"$f":"VLOOKUP(DropDownList!$B$24,CntyQryCensus!$A$135:$FZ$153,R$1)","v":71},{"$f":"VLOOKUP(DropDownList!$B$24,CntyQryCensus!$A$135:$FZ$153,S$1)","v":428},{"$f":"VLOOKUP(DropDownList!$B$24,CntyQryCensus!$A$135:$FZ$153,T$1)","v":464},{"$f":"VLOOKUP(DropDownList!$B$24,CntyQryCensus!$A$135:$FZ$153,U$1)","v":3025},{"$f":"VLOOKUP(DropDownList!$B$24,CntyQryCensus!$A$135:$FZ$153,V$1)","v":702},{"$f":"VLOOKUP(DropDownList!$B$24,CntyQryCensus!$A$135:$FZ$153,W$1)","v":661},{"$f":"VLOOKUP(DropDownList!$B$24,CntyQryCensus!$A$135:$FZ$153,X$1)","v":1734},{"$f":"VLOOKUP(DropDownList!$B$24,CntyQryCensus!$A$135:$FZ$153,Y$1)","v":61},{"$f":"VLOOKUP(DropDownList!$B$24,CntyQryCensus!$A$135:$FZ$153,Z$1)","v":28},{"$f":"VLOOKUP(DropDownList!$B$24,CntyQryCensus!$A$135:$FZ$153,AA$1)","v":20},{"$f":"VLOOKUP(DropDownList!$B$24,CntyQryCensus!$A$135:$FZ$153,AB$1)","v":0},{"$f":"VLOOKUP(DropDownList!$B$24,CntyQryCensus!$A$135:$FZ$153,AC$1)","v":6},{"$f":"VLOOKUP(DropDownList!$B$24,CntyQryCensus!$A$135:$FZ$153,AD$1)","v":6},{"$f":"VLOOKUP(DropDownList!$B$24,CntyQryCensus!$A$135:$FZ$153,AE$1)","v":0},{"$f":"VLOOKUP(DropDownList!$B$24,CntyQryCensus!$A$135:$FZ$153,AF$1)","v":27},{"$f":"VLOOKUP(DropDownList!$B$24,CntyQryCensus!$A$135:$FZ$153,AG$1)","v":27},{"$f":"VLOOKUP(DropDownList!$B$24,CntyQryCensus!$A$135:$FZ$153,AH$1)","v":0},{"$f":"VLOOKUP(DropDownList!$B$24,CntyQryCensus!$A$135:$FZ$153,AI$1)","v":1673},{"$f":"VLOOKUP(DropDownList!$B$24,CntyQryCensus!$A$135:$FZ$153,AJ$1)","v":1465},{"$f":"VLOOKUP(DropDownList!$B$24,CntyQryCensus!$A$135:$FZ$153,AK$1)","v":473},{"$f":"VLOOKUP(DropDownList!$B$24,CntyQryCensus!$A$135:$FZ$153,AL$1)","v":57},{"$f":"VLOOKUP(DropDownList!$B$24,CntyQryCensus!$A$135:$FZ$153,AM$1)","v":58},{"$f":"VLOOKUP(DropDownList!$B$24,CntyQryCensus!$A$135:$FZ$153,AN$1)","v":29},{"$f":"VLOOKUP(DropDownList!$B$24,CntyQryCensus!$A$135:$FZ$153,AO$1)","v":15},{"$f":"VLOOKUP(DropDownList!$B$24,CntyQryCensus!$A$135:$FZ$153,AP$1)","v":150},{"$f":"VLOOKUP(DropDownList!$B$24,CntyQryCensus!$A$135:$FZ$153,AQ$1)","v":111},{"$f":"VLOOKUP(DropDownList!$B$24,CntyQryCensus!$A$135:$FZ$153,AR$1)","v":0},{"$f":"VLOOKUP(DropDownList!$B$24,CntyQryCensus!$A$135:$FZ$153,AS$1)","v":2575},{"$f":"VLOOKUP(DropDownList!$B$24,CntyQryCensus!$A$135:$FZ$153,AT$1)","v":133},{"$f":"VLOOKUP(DropDownList!$B$24,CntyQryCensus!$A$135:$FZ$153,AU$1)","v":61},{"$f":"VLOOKUP(DropDownList!$B$24,CntyQryCensus!$A$135:$FZ$153,AV$1)","v":28},{"$f":"VLOOKUP(DropDownList!$B$24,CntyQryCensus!$A$135:$FZ$153,AW$1)","v":6},{"$f":"VLOOKUP(DropDownList!$B$24,CntyQryCensus!$A$135:$FZ$153,AX$1)","v":27},{"$f":"VLOOKUP(DropDownList!$B$24,CntyQryCensus!$A$135:$FZ$153,AY$1)","v":72},{"$f":"VLOOKUP(DropDownList!$B$24,CntyQryCensus!$A$135:$FZ$153,AZ$1)","v":33},{"$f":"VLOOKUP(DropDownList!$B$24,CntyQryCensus!$A$135:$FZ$153,BA$1)","v":39},{"$f":"VLOOKUP(DropDownList!$B$24,CntyQryCensus!$A$135:$FZ$153,BB$1)","v":2442},{"$f":"VLOOKUP(DropDownList!$B$24,CntyQryCensus!$A$135:$FZ$153,BC$1)","v":1673},{"$f":"VLOOKUP(DropDownList!$B$24,CntyQryCensus!$A$135:$FZ$153,BD$1)","v":1465},{"$f":"VLOOKUP(DropDownList!$B$24,CntyQryCensus!$A$135:$FZ$153,BE$1)","v":58},{"$f":"VLOOKUP(DropDownList!$B$24,CntyQryCensus!$A$135:$FZ$153,BF$1)","v":150},{"$f":"VLOOKUP(DropDownList!$B$24,CntyQryCensus!$A$135:$FZ$153,BG$1)","v":769},{"$f":"VLOOKUP(DropDownList!$B$24,CntyQryCensus!$A$135:$FZ$153,BH$1)","v":273},{"$f":"VLOOKUP(DropDownList!$B$24,CntyQryCensus!$A$135:$FZ$153,BI$1)","v":496}]
[null,null,null,null,null,null,null,null,null,null,null,null,null,null,null,null,null,null,{"$f":"SUM(R60:T60)","v":963}]
[]
["Census 2000 SummaryFile3 Sample Data  -  SF3TownQry7HousingA"]
["NAME","LOGRECNO","COUNTY","TotalPop","H1HousingUnitsTotal","H2SampleHU","H2SampleOccHU","H2SampleVacHU","H3HU100pctCount","H5HUTotal","H5HUUrban","H5HUUrbanInUrbanAreas","H5HUUrbanInUrbanClusters","H5HURural","H5HURuralFarm","H5HURuralNonFarm","H7HUOcc","H7HUOwnrOcc","H7HURentrOcc","H8HUVacant","H8HUVacantForRent","H8HUVacantForSale","H8HUVacRentedorSold","H8HUVacSeasonal","H8HUVacForMigrantWrkrs","H8HUOtherVacant","H14OccHUa","H14OwnerOccHU","H14OwnOccHuHh15to24","H14OwnOccHuHh25to34","H14OwnOccHuHh35to44","H14OwnOccHuHh45to54","H14OwnOccHuHh55to59","H14OwnOccHuHh60to64","H14OwnOccHuHh65to74","H14OwnOccHuHh75to84","H14OwnOccHuHh85Over","H14RenterOccHU1","H14RntrOccHuHh15to24","H14RntrOccHuHh25to34","H14RntrOccHuHh35to44","H14RntrOccHuHh45to54","H14RntrOccHuHh55to59","H14RntrOccHuHh60to64","H14RntrOccHuHh65to74","H14RntrOccHuHh75to84","H14RntrOccHuHh85Over","H15PopInOccHU","H15PopInOwnOccHU1","H15PopInRentOccHU1","H17OccupHUb","H17OwnOccHU2","H17OwnOccHU1PersonHH","H17OwnOccHU2PersonHH","H17OwnOccHU3PersonHH","H17OwnOccHU4PersonHH","H17OwnOccHU5PersonHH","H17OwnOccHU6PersonHH","H17OwnOccHU7PlusPersonHH","H17RentOccHU2","H17RntOccHU1PersonHH","H17RntOccHU2PersonHH","H17RntOccHU3PersonHH","H17RntOccHU4PersonHH","H17RntOccHU5PersonHH","H17RntOccHU6PersonHH","H17RntOccHU7PlusPersonHH","H18AvgHHSize","H18AvgHHSizeOwnOcc","H18AvgHHSizeRentOcc","H23TotHU","H23HU1Room","H23HU2Room","H23HU3Room","H23HU4Room","H23HU5Room","H23HU6Room","H23HU7Room","H23HU8Room","H23HU9orMoreRoom","H24MedianNumRooms","H25AggregNumRooms","H30TotalHU","H30Det1HU","H30Att1HU","H30Units2","H30Units3or4","H30Units5to9","H30Units10to19","H30Units20to49","H30Units50orMore","H30UnitsMobileHome","H30UnitsBoatRv","H32OccHUcTotal","H32OwnerOccHU3","H32OwnOccHU1Det","H32OwnOccHU1Att","H32OwnOccHU2Unit","H32OwnOccHU3to4Unit","H32OwnOccHU5to9Unit","H32OwnOccHU10to19Unit","H32OwnOccHU20to49Unit","H32OwnOccHU50plusUnit","H32OwnOccHUMobHom","H32OwnOccHUBoatRVOth","H32RentrOccHU3","H32RntrOccHU1Det","H32RntrOccHU1Att","H32RntrOccHU2Unit","H32RntrOccHU3to4Unit","H32RntrOccHU5to9Unit","H32RntrOccHU10to19Unit","H32RntrOccHU20to49Unit","H32RntrOccHU50PlusUnit","H32RntrOccHUMobHom","H32RntrOccHUBoatRVOth","H33TotPopInOccHU","H33PopInOwnOccHU2","H33PopInOOHU1Det","H33PopInOOHU1Att","H33PopInOOHU2unit","H33PopInOOHU3to4Unit","H33PopInOOHU5to9Unit","H33PopInOOHU10to19Unit","H33PopInOOHU20to49Unit","H33PopInOOHU50PlusUnit","H33PopInOOHUMobilHome","H33PopInOOHUOtherUnit","H33PopInRentOccHU2","H33PopInROHU1Det","H33PopInROHU1Att","H33PopInROHU2Unit","H33PopInROHU3to4Unit","H33PopInROHU5to9Unit","H33PopInROHU10to19Unit","H33PopInROHU20to49Unit","H33PopInROHU50PlusUnit","H33PopInROHUMobilHome","H33PopInROHUOtherUnit","H36OccHousingUnitsdTotal","H36OwnerOccHU4","H36OOHUBuilt99to0300","H36OOHUBuilt95to98","H36OOHUBuilt90to94","H36OOHUBuilt80to89","H36OOHUBuilt70to79","H36OOHUBuilt60to69","H36OOHUBuilt50to59","H36OOHUBuilt40to49","H36OOHUBuilt39Earlier","H36RentOccHU4","H36ROHUBuilt99to0300","H36ROHUBuilt95to98","H36ROHUBuilt90to94","H36ROHUBuilt80to89","H36ROHUBuilt70to79","H36ROHUBuilt60to69","H36ROHUBuilt50to59","H36ROHUBuilt40to49","H36ROHUBuilt39Earlier","H40OccupHousUnitse","H40HeatFuelUtilGas","H40HeatFuelBotGas","H40HeatFuelElect","H40HeatFuelOilKero","H40HeatFuelCoal","H40HeatFuelWood","H40HeatFuelSolar","H40HeatFuelOther","H40HeatFuelNone","H41TotalHU","H41HUNoBdrm","H41HU1Bdrm","H41HU2Bdrm","H41HU3Bdrm","H41HU4Bdrm","H41HU5MoreBdrm","H42OccuHousUnitf","H42OwnerOccHU5","H42OOHUNoBdrm","H42OOHU1Bdrm","H42OOHU2Bdrm","H42OOHU3Bdrm","H42OOHU4Bdrm","H42OOHU5PlusBdrm","H42RentOccHU5","H42ROHUNoBdrm","H42ROHU1Bdrm","H42ROHU2Bdrm","H42ROHU3Bdrm","H42ROHU4Bdrm","H42ROHU5PlusBdrm","H48OccupHousUnitsg","H48OwnerOccHU6","H48OOHUwCompltPlumFacil","H48OOHULackCompltPlumFacil","H48RentOccHU6","H48ROHUwCompltPlumFacil","H48ROHULackCompltPlumFacil","H51OccupHousUnitf","H51OwnerOccHU7","H51OOHUwCompleteKitFacil","H51OOHULackCompleteKitFacil","H51RenterOccHU7","H51ROHUwCompleteKitFacil","H51ROHULackCompleteKitFacil"]
[{"$f":"VLOOKUP(DropDownList!$B$24,CntyQryCensus!$A$161:$GX$179,A$1)","v":"Wolfeboro"},{"$f":"VLOOKUP(DropDownList!$B$24,CntyQryCensus!$A$161:$GX$179,B$1)","v":"0000440"},{"$f":"VLOOKUP(DropDownList!$B$24,CntyQryCensus!$A$161:$GX$179,C$1)","v":"86420"},{"$f":"VLOOKUP(DropDownList!$B$24,CntyQryCensus!$A$161:$GX$179,D$1)","v":6083},{"$f":"VLOOKUP(DropDownList!$B$24,CntyQryCensus!$A$161:$GX$179,E$1)","v":3903},{"$f":"VLOOKUP(DropDownList!$B$24,CntyQryCensus!$A$161:$GX$179,F$1)","v":498},{"$f":"VLOOKUP(DropDownList!$B$24,CntyQryCensus!$A$161:$GX$179,G$1)","v":315},{"$f":"VLOOKUP(DropDownList!$B$24,CntyQryCensus!$A$161:$GX$179,H$1)","v":183},{"$f":"VLOOKUP(DropDownList!$B$24,CntyQryCensus!$A$161:$GX$179,I$1)","v":3903},{"$f":"VLOOKUP(DropDownList!$B$24,CntyQryCensus!$A$161:$GX$179,J$1)","v":3903},{"$f":"VLOOKUP(DropDownList!$B$24,CntyQryCensus!$A$161:$GX$179,K$1)","v":0},{"$f":"VLOOKUP(DropDownList!$B$24,CntyQryCensus!$A$161:$GX$179,L$1)","v":0},{"$f":"VLOOKUP(DropDownList!$B$24,CntyQryCensus!$A$161:$GX$179,M$1)","v":0},{"$f":"VLOOKUP(DropDownList!$B$24,CntyQryCensus!$A$161:$GX$179,N$1)","v":3903},{"$f":"VLOOKUP(DropDownList!$B$24,CntyQryCensus!$A$161:$GX$179,O$1)","v":20},{"$f":"VLOOKUP(DropDownList!$B$24,CntyQryCensus!$A$161:$GX$179,P$1)","v":3883},{"$f":"VLOOKUP(DropDownList!$B$24,CntyQryCensus!$A$161:$GX$179,Q$1)","v":2574},{"$f":"VLOOKUP(DropDownList!$B$24,CntyQryCensus!$A$161:$GX$179,R$1)","v":1985},{"$f":"VLOOKUP(DropDownList!$B$24,CntyQryCensus!$A$161:$GX$179,S$1)","v":589},{"$f":"VLOOKUP(DropDownList!$B$24,CntyQryCensus!$A$161:$GX$179,T$1)","v":1329},{"$f":"VLOOKUP(DropDownList!$B$24,CntyQryCensus!$A$161:$GX$179,U$1)","v":9},{"$f":"VLOOKUP(DropDownList!$B$24,CntyQryCensus!$A$161:$GX$179,V$1)","v":55},{"$f":"VLOOKUP(DropDownList!$B$24,CntyQryCensus!$A$161:$GX$179,W$1)","v":0},{"$f":"VLOOKUP(DropDownList!$B$24,CntyQryCensus!$A$161:$GX$179,X$1)","v":1210},{"$f":"VLOOKUP(DropDownList!$B$24,CntyQryCensus!$A$161:$GX$179,Y$1)","v":0},{"$f":"VLOOKUP(DropDownList!$B$24,CntyQryCensus!$A$161:$GX$179,Z$1)","v":55},{"$f":"VLOOKUP(DropDownList!$B$24,CntyQryCensus!$A$161:$GX$179,AA$1)","v":2574},{"$f":"VLOOKUP(DropDownList!$B$24,CntyQryCensus!$A$161:$GX$179,AB$1)","v":1985},{"$f":"VLOOKUP(DropDownList!$B$24,CntyQryCensus!$A$161:$GX$179,AC$1)","v":6},{"$f":"VLOOKUP(DropDownList!$B$24,CntyQryCensus!$A$161:$GX$179,AD$1)","v":152},{"$f":"VLOOKUP(DropDownList!$B$24,CntyQryCensus!$A$161:$GX$179,AE$1)","v":403},{"$f":"VLOOKUP(DropDownList!$B$24,CntyQryCensus!$A$161:$GX$179,AF$1)","v":337},{"$f":"VLOOKUP(DropDownList!$B$24,CntyQryCensus!$A$161:$GX$179,AG$1)","v":207},{"$f":"VLOOKUP(DropDownList!$B$24,CntyQryCensus!$A$161:$GX$179,AH$1)","v":119},{"$f":"VLOOKUP(DropDownList!$B$24,CntyQryCensus!$A$161:$GX$179,AI$1)","v":363},{"$f":"VLOOKUP(DropDownList!$B$24,CntyQryCensus!$A$161:$GX$179,AJ$1)","v":310},{"$f":"VLOOKUP(DropDownList!$B$24,CntyQryCensus!$A$161:$GX$179,AK$1)","v":88},{"$f":"VLOOKUP(DropDownList!$B$24,CntyQryCensus!$A$161:$GX$179,AL$1)","v":589},{"$f":"VLOOKUP(DropDownList!$B$24,CntyQryCensus!$A$161:$GX$179,AM$1)","v":21},{"$f":"VLOOKUP(DropDownList!$B$24,CntyQryCensus!$A$161:$GX$179,AN$1)","v":103},{"$f":"VLOOKUP(DropDownList!$B$24,CntyQryCensus!$A$161:$GX$179,AO$1)","v":170},{"$f":"VLOOKUP(DropDownList!$B$24,CntyQryCensus!$A$161:$GX$179,AP$1)","v":113},{"$f":"VLOOKUP(DropDownList!$B$24,CntyQryCensus!$A$161:$GX$179,AQ$1)","v":22},{"$f":"VLOOKUP(DropDownList!$B$24,CntyQryCensus!$A$161:$GX$179,AR$1)","v":10},{"$f":"VLOOKUP(DropDownList!$B$24,CntyQryCensus!$A$161:$GX$179,AS$1)","v":50},{"$f":"VLOOKUP(DropDownList!$B$24,CntyQryCensus!$A$161:$GX$179,AT$1)","v":51},{"$f":"VLOOKUP(DropDownList!$B$24,CntyQryCensus!$A$161:$GX$179,AU$1)","v":49},{"$f":"VLOOKUP(DropDownList!$B$24,CntyQryCensus!$A$161:$GX$179,AV$1)","v":5977},{"$f":"VLOOKUP(DropDownList!$B$24,CntyQryCensus!$A$161:$GX$179,AW$1)","v":5023},{"$f":"VLOOKUP(DropDownList!$B$24,CntyQryCensus!$A$161:$GX$179,AX$1)","v":954},{"$f":"VLOOKUP(DropDownList!$B$24,CntyQryCensus!$A$161:$GX$179,AY$1)","v":2574},{"$f":"VLOOKUP(DropDownList!$B$24,CntyQryCensus!$A$161:$GX$179,AZ$1)","v":1985},{"$f":"VLOOKUP(DropDownList!$B$24,CntyQryCensus!$A$161:$GX$179,BA$1)","v":442},{"$f":"VLOOKUP(DropDownList!$B$24,CntyQryCensus!$A$161:$GX$179,BB$1)","v":888},{"$f":"VLOOKUP(DropDownList!$B$24,CntyQryCensus!$A$161:$GX$179,BC$1)","v":264},{"$f":"VLOOKUP(DropDownList!$B$24,CntyQryCensus!$A$161:$GX$179,BD$1)","v":240},{"$f":"VLOOKUP(DropDownList!$B$24,CntyQryCensus!$A$161:$GX$179,BE$1)","v":103},{"$f":"VLOOKUP(DropDownList!$B$24,CntyQryCensus!$A$161:$GX$179,BF$1)","v":13},{"$f":"VLOOKUP(DropDownList!$B$24,CntyQryCensus!$A$161:$GX$179,BG$1)","v":35},{"$f":"VLOOKUP(DropDownList!$B$24,CntyQryCensus!$A$161:$GX$179,BH$1)","v":589},{"$f":"VLOOKUP(DropDownList!$B$24,CntyQryCensus!$A$161:$GX$179,BI$1)","v":295},{"$f":"VLOOKUP(DropDownList!$B$24,CntyQryCensus!$A$161:$GX$179,BJ$1)","v":146},{"$f":"VLOOKUP(DropDownList!$B$24,CntyQryCensus!$A$161:$GX$179,BK$1)","v":61},{"$f":"VLOOKUP(DropDownList!$B$24,CntyQryCensus!$A$161:$GX$179,BL$1)","v":58},{"$f":"VLOOKUP(DropDownList!$B$24,CntyQryCensus!$A$161:$GX$179,BM$1)","v":21},{"$f":"VLOOKUP(DropDownList!$B$24,CntyQryCensus!$A$161:$GX$179,BN$1)","v":8},{"$f":"VLOOKUP(DropDownList!$B$24,CntyQryCensus!$A$161:$GX$179,BO$1)","v":0},{"$f":"VLOOKUP(DropDownList!$B$24,CntyQryCensus!$A$161:$GX$179,BP$1)","v":2},{"$f":"VLOOKUP(DropDownList!$B$24,CntyQryCensus!$A$161:$GX$179,BQ$1)","v":3},{"$f":"VLOOKUP(DropDownList!$B$24,CntyQryCensus!$A$161:$GX$179,BR$1)","v":2},{"$f":"VLOOKUP(DropDownList!$B$24,CntyQryCensus!$A$161:$GX$179,BS$1)","v":3903},{"$f":"VLOOKUP(DropDownList!$B$24,CntyQryCensus!$A$161:$GX$179,BT$1)","v":8},{"$f":"VLOOKUP(DropDownList!$B$24,CntyQryCensus!$A$161:$GX$179,BU$1)","v":121},{"$f":"VLOOKUP(DropDownList!$B$24,CntyQryCensus!$A$161:$GX$179,BV$1)","v":299},{"$f":"VLOOKUP(DropDownList!$B$24,CntyQryCensus!$A$161:$GX$179,BW$1)","v":500},{"$f":"VLOOKUP(DropDownList!$B$24,CntyQryCensus!$A$161:$GX$179,BX$1)","v":679},{"$f":"VLOOKUP(DropDownList!$B$24,CntyQryCensus!$A$161:$GX$179,BY$1)","v":968},{"$f":"VLOOKUP(DropDownList!$B$24,CntyQryCensus!$A$161:$GX$179,BZ$1)","v":484},{"$f":"VLOOKUP(DropDownList!$B$24,CntyQryCensus!$A$161:$GX$179,CA$1)","v":308},{"$f":"VLOOKUP(DropDownList!$B$24,CntyQryCensus!$A$161:$GX$179,CB$1)","v":536},{"$f":"VLOOKUP(DropDownList!$B$24,CntyQryCensus!$A$161:$GX$179,CC$1)","v":6},{"$f":"VLOOKUP(DropDownList!$B$24,CntyQryCensus!$A$161:$GX$179,CD$1)","v":23562},{"$f":"VLOOKUP(DropDownList!$B$24,CntyQryCensus!$A$161:$GX$179,CE$1)","v":3903},{"$f":"VLOOKUP(DropDownList!$B$24,CntyQryCensus!$A$161:$GX$179,CF$1)","v":3092},{"$f":"VLOOKUP(DropDownList!$B$24,CntyQryCensus!$A$161:$GX$179,CG$1)","v":157},{"$f":"VLOOKUP(DropDownList!$B$24,CntyQryCensus!$A$161:$GX$179,CH$1)","v":151},{"$f":"VLOOKUP(DropDownList!$B$24,CntyQryCensus!$A$161:$GX$179,CI$1)","v":217},{"$f":"VLOOKUP(DropDownList!$B$24,CntyQryCensus!$A$161:$GX$179,CJ$1)","v":76},{"$f":"VLOOKUP(DropDownList!$B$24,CntyQryCensus!$A$161:$GX$179,CK$1)","v":0},{"$f":"VLOOKUP(DropDownList!$B$24,CntyQryCensus!$A$161:$GX$179,CL$1)","v":87},{"$f":"VLOOKUP(DropDownList!$B$24,CntyQryCensus!$A$161:$GX$179,CM$1)","v":0},{"$f":"VLOOKUP(DropDownList!$B$24,CntyQryCensus!$A$161:$GX$179,CN$1)","v":107},{"$f":"VLOOKUP(DropDownList!$B$24,CntyQryCensus!$A$161:$GX$179,CO$1)","v":16},{"$f":"VLOOKUP(DropDownList!$B$24,CntyQryCensus!$A$161:$GX$179,CP$1)","v":2574},{"$f":"VLOOKUP(DropDownList!$B$24,CntyQryCensus!$A$161:$GX$179,CQ$1)","v":1985},{"$f":"VLOOKUP(DropDownList!$B$24,CntyQryCensus!$A$161:$GX$179,CR$1)","v":1772},{"$f":"VLOOKUP(DropDownList!$B$24,CntyQryCensus!$A$161:$GX$179,CS$1)","v":52},{"$f":"VLOOKUP(DropDownList!$B$24,CntyQryCensus!$A$161:$GX$179,CT$1)","v":47},{"$f":"VLOOKUP(DropDownList!$B$24,CntyQryCensus!$A$161:$GX$179,CU$1)","v":8},{"$f":"VLOOKUP(DropDownList!$B$24,CntyQryCensus!$A$161:$GX$179,CV$1)","v":0},{"$f":"VLOOKUP(DropDownList!$B$24,CntyQryCensus!$A$161:$GX$179,CW$1)","v":0},{"$f":"VLOOKUP(DropDownList!$B$24,CntyQryCensus!$A$161:$GX$179,CX$1)","v":16},{"$f":"VLOOKUP(DropDownList!$B$24,CntyQryCensus!$A$161:$GX$179,CY$1)","v":0},{"$f":"VLOOKUP(DropDownList!$B$24,CntyQryCensus!$A$161:$GX$179,CZ$1)","v":82},{"$f":"VLOOKUP(DropDownList!$B$24,CntyQryCensus!$A$161:$GX$179,DA$1)","v":8},{"$f":"VLOOKUP(DropDownList!$B$24,CntyQryCensus!$A$161:$GX$179,DB$1)","v":589},{"$f":"VLOOKUP(DropDownList!$B$24,CntyQryCensus!$A$161:$GX$179,DC$1)","v":173},{"$f":"VLOOKUP(DropDownList!$B$24,CntyQryCensus!$A$161:$GX$179,DD$1)","v":16},{"$f":"VLOOKUP(DropDownList!$B$24,CntyQryCensus!$A$161:$GX$179,DE$1)","v":66},{"$f":"VLOOKUP(DropDownList!$B$24,CntyQryCensus!$A$161:$GX$179,DF$1)","v":182},{"$f":"VLOOKUP(DropDownList!$B$24,CntyQryCensus!$A$161:$GX$179,DG$1)","v":71},{"$f":"VLOOKUP(DropDownList!$B$24,CntyQryCensus!$A$161:$GX$179,DH$1)","v":0},{"$f":"VLOOKUP(DropDownList!$B$24,CntyQryCensus!$A$161:$GX$179,DI$1)","v":71},{"$f":"VLOOKUP(DropDownList!$B$24,CntyQryCensus!$A$161:$GX$179,DJ$1)","v":0},{"$f":"VLOOKUP(DropDownList!$B$24,CntyQryCensus!$A$161:$GX$179,DK$1)","v":10},{"$f":"VLOOKUP(DropDownList!$B$24,CntyQryCensus!$A$161:$GX$179,DL$1)","v":0},{"$f":"VLOOKUP(DropDownList!$B$24,CntyQryCensus!$A$161:$GX$179,DM$1)","v":5977},{"$f":"VLOOKUP(DropDownList!$B$24,CntyQryCensus!$A$161:$GX$179,DN$1)","v":5023},{"$f":"VLOOKUP(DropDownList!$B$24,CntyQryCensus!$A$161:$GX$179,DO$1)","v":4548},{"$f":"VLOOKUP(DropDownList!$B$24,CntyQryCensus!$A$161:$GX$179,DP$1)","v":100},{"$f":"VLOOKUP(DropDownList!$B$24,CntyQryCensus!$A$161:$GX$179,DQ$1)","v":156},{"$f":"VLOOKUP(DropDownList!$B$24,CntyQryCensus!$A$161:$GX$179,DR$1)","v":17},{"$f":"VLOOKUP(DropDownList!$B$24,CntyQryCensus!$A$161:$GX$179,DS$1)","v":0},{"$f":"VLOOKUP(DropDownList!$B$24,CntyQryCensus!$A$161:$GX$179,DT$1)","v":0},{"$f":"VLOOKUP(DropDownList!$B$24,CntyQryCensus!$A$161:$GX$179,DU$1)","v":25},{"$f":"VLOOKUP(DropDownList!$B$24,CntyQryCensus!$A$161:$GX$179,DV$1)","v":0},{"$f":"VLOOKUP(DropDownList!$B$24,CntyQryCensus!$A$161:$GX$179,DW$1)","v":168},{"$f":"VLOOKUP(DropDownList!$B$24,CntyQryCensus!$A$161:$GX$179,DX$1)","v":9},{"$f":"VLOOKUP(DropDownList!$B$24,CntyQryCensus!$A$161:$GX$179,DY$1)","v":954},{"$f":"VLOOKUP(DropDownList!$B$24,CntyQryCensus!$A$161:$GX$179,DZ$1)","v":379},{"$f":"VLOOKUP(DropDownList!$B$24,CntyQryCensus!$A$161:$GX$179,EA$1)","v":74},{"$f":"VLOOKUP(DropDownList!$B$24,CntyQryCensus!$A$161:$GX$179,EB$1)","v":86},{"$f":"VLOOKUP(DropDownList!$B$24,CntyQryCensus!$A$161:$GX$179,EC$1)","v":261},{"$f":"VLOOKUP(DropDownList!$B$24,CntyQryCensus!$A$161:$GX$179,ED$1)","v":83},{"$f":"VLOOKUP(DropDownList!$B$24,CntyQryCensus!$A$161:$GX$179,EE$1)","v":0},{"$f":"VLOOKUP(DropDownList!$B$24,CntyQryCensus!$A$161:$GX$179,EF$1)","v":59},{"$f":"VLOOKUP(DropDownList!$B$24,CntyQryCensus!$A$161:$GX$179,EG$1)","v":0},{"$f":"VLOOKUP(DropDownList!$B$24,CntyQryCensus!$A$161:$GX$179,EH$1)","v":12},{"$f":"VLOOKUP(DropDownList!$B$24,CntyQryCensus!$A$161:$GX$179,EI$1)","v":0},{"$f":"VLOOKUP(DropDownList!$B$24,CntyQryCensus!$A$161:$GX$179,EJ$1)","v":2574},{"$f":"VLOOKUP(DropDownList!$B$24,CntyQryCensus!$A$161:$GX$179,EK$1)","v":1985},{"$f":"VLOOKUP(DropDownList!$B$24,CntyQryCensus!$A$161:$GX$179,EL$1)","v":106},{"$f":"VLOOKUP(DropDownList!$B$24,CntyQryCensus!$A$161:$GX$179,EM$1)","v":197},{"$f":"VLOOKUP(DropDownList!$B$24,CntyQryCensus!$A$161:$GX$179,EN$1)","v":172},{"$f":"VLOOKUP(DropDownList!$B$24,CntyQryCensus!$A$161:$GX$179,EO$1)","v":409},{"$f":"VLOOKUP(DropDownList!$B$24,CntyQryCensus!$A$161:$GX$179,EP$1)","v":275},{"$f":"VLOOKUP(DropDownList!$B$24,CntyQryCensus!$A$161:$GX$179,EQ$1)","v":194},{"$f":"VLOOKUP(DropDownList!$B$24,CntyQryCensus!$A$161:$GX$179,ER$1)","v":152},{"$f":"VLOOKUP(DropDownList!$B$24,CntyQryCensus!$A$161:$GX$179,ES$1)","v":38},{"$f":"VLOOKUP(DropDownList!$B$24,CntyQryCensus!$A$161:$GX$179,ET$1)","v":442},{"$f":"VLOOKUP(DropDownList!$B$24,CntyQryCensus!$A$161:$GX$179,EU$1)","v":589},{"$f":"VLOOKUP(DropDownList!$B$24,CntyQryCensus!$A$161:$GX$179,EV$1)","v":0},{"$f":"VLOOKUP(DropDownList!$B$24,CntyQryCensus!$A$161:$GX$179,EW$1)","v":10},{"$f":"VLOOKUP(DropDownList!$B$24,CntyQryCensus!$A$161:$GX$179,EX$1)","v":19},{"$f":"VLOOKUP(DropDownList!$B$24,CntyQryCensus!$A$161:$GX$179,EY$1)","v":69},{"$f":"VLOOKUP(DropDownList!$B$24,CntyQryCensus!$A$161:$GX$179,EZ$1)","v":60},{"$f":"VLOOKUP(DropDownList!$B$24,CntyQryCensus!$A$161:$GX$179,FA$1)","v":56},{"$f":"VLOOKUP(DropDownList!$B$24,CntyQryCensus!$A$161:$GX$179,FB$1)","v":71},{"$f":"VLOOKUP(DropDownList!$B$24,CntyQryCensus!$A$161:$GX$179,FC$1)","v":35},{"$f":"VLOOKUP(DropDownList!$B$24,CntyQryCensus!$A$161:$GX$179,FD$1)","v":269},{"$f":"VLOOKUP(DropDownList!$B$24,CntyQryCensus!$A$161:$GX$179,FE$1)","v":2574},{"$f":"VLOOKUP(DropDownList!$B$24,CntyQryCensus!$A$161:$GX$179,FF$1)","v":0},{"$f":"VLOOKUP(DropDownList!$B$24,CntyQryCensus!$A$161:$GX$179,FG$1)","v":247},{"$f":"VLOOKUP(DropDownList!$B$24,CntyQryCensus!$A$161:$GX$179,FH$1)","v":316},{"$f":"VLOOKUP(DropDownList!$B$24,CntyQryCensus!$A$161:$GX$179,FI$1)","v":1884},{"$f":"VLOOKUP(DropDownList!$B$24,CntyQryCensus!$A$161:$GX$179,FJ$1)","v":0},{"$f":"VLOOKUP(DropDownList!$B$24,CntyQryCensus!$A$161:$GX$179,FK$1)","v":109},{"$f":"VLOOKUP(DropDownList!$B$24,CntyQryCensus!$A$161:$GX$179,FL$1)","v":0},{"$f":"VLOOKUP(DropDownList!$B$24,CntyQryCensus!$A$161:$GX$179,FM$1)","v":18},{"$f":"VLOOKUP(DropDownList!$B$24,CntyQryCensus!$A$161:$GX$179,FN$1)","v":0},{"$f":"VLOOKUP(DropDownList!$B$24,CntyQryCensus!$A$161:$GX$179,FO$1)","v":3903},{"$f":"VLOOKUP(DropDownList!$B$24,CntyQryCensus!$A$161:$GX$179,FP$1)","v":16},{"$f":"VLOOKUP(DropDownList!$B$24,CntyQryCensus!$A$161:$GX$179,FQ$1)","v":489},{"$f":"VLOOKUP(DropDownList!$B$24,CntyQryCensus!$A$161:$GX$179,FR$1)","v":1193},{"$f":"VLOOKUP(DropDownList!$B$24,CntyQryCensus!$A$161:$GX$179,FS$1)","v":1410},{"$f":"VLOOKUP(DropDownList!$B$24,CntyQryCensus!$A$161:$GX$179,FT$1)","v":611},{"$f":"VLOOKUP(DropDownList!$B$24,CntyQryCensus!$A$161:$GX$179,FU$1)","v":184},{"$f":"VLOOKUP(DropDownList!$B$24,CntyQryCensus!$A$161:$GX$179,FV$1)","v":2574},{"$f":"VLOOKUP(DropDownList!$B$24,CntyQryCensus!$A$161:$GX$179,FW$1)","v":1985},{"$f":"VLOOKUP(DropDownList!$B$24,CntyQryCensus!$A$161:$GX$179,FX$1)","v":0},{"$f":"VLOOKUP(DropDownList!$B$24,CntyQryCensus!$A$161:$GX$179,FY$1)","v":65},{"$f":"VLOOKUP(DropDownList!$B$24,CntyQryCensus!$A$161:$GX$179,FZ$1)","v":576},{"$f":"VLOOKUP(DropDownList!$B$24,CntyQryCensus!$A$161:$GX$179,GA$1)","v":906},{"$f":"VLOOKUP(DropDownList!$B$24,CntyQryCensus!$A$161:$GX$179,GB$1)","v":325},{"$f":"VLOOKUP(DropDownList!$B$24,CntyQryCensus!$A$161:$GX$179,GC$1)","v":113},{"$f":"VLOOKUP(DropDownList!$B$24,CntyQryCensus!$A$161:$GX$179,GD$1)","v":589},{"$f":"VLOOKUP(DropDownList!$B$24,CntyQryCensus!$A$161:$GX$179,GE$1)","v":8},{"$f":"VLOOKUP(DropDownList!$B$24,CntyQryCensus!$A$161:$GX$179,GF$1)","v":250},{"$f":"VLOOKUP(DropDownList!$B$24,CntyQryCensus!$A$161:$GX$179,GG$1)","v":159},{"$f":"VLOOKUP(DropDownList!$B$24,CntyQryCensus!$A$161:$GX$179,GH$1)","v":136},{"$f":"VLOOKUP(DropDownList!$B$24,CntyQryCensus!$A$161:$GX$179,GI$1)","v":36},{"$f":"VLOOKUP(DropDownList!$B$24,CntyQryCensus!$A$161:$GX$179,GJ$1)","v":0},{"$f":"VLOOKUP(DropDownList!$B$24,CntyQryCensus!$A$161:$GX$179,GK$1)","v":2574},{"$f":"VLOOKUP(DropDownList!$B$24,CntyQryCensus!$A$161:$GX$179,GL$1)","v":1985},{"$f":"VLOOKUP(DropDownList!$B$24,CntyQryCensus!$A$161:$GX$179,GM$1)","v":1960},{"$f":"VLOOKUP(DropDownList!$B$24,CntyQryCensus!$A$161:$GX$179,GN$1)","v":25},{"$f":"VLOOKUP(DropDownList!$B$24,CntyQryCensus!$A$161:$GX$179,GO$1)","v":589},{"$f":"VLOOKUP(DropDownList!$B$24,CntyQryCensus!$A$161:$GX$179,GP$1)","v":581},{"$f":"VLOOKUP(DropDownList!$B$24,CntyQryCensus!$A$161:$GX$179,GQ$1)","v":8},{"$f":"VLOOKUP(DropDownList!$B$24,CntyQryCensus!$A$161:$GX$179,GR$1)","v":2574},{"$f":"VLOOKUP(DropDownList!$B$24,CntyQryCensus!$A$161:$GX$179,GS$1)","v":1985},{"$f":"VLOOKUP(DropDownList!$B$24,CntyQryCensus!$A$161:$GX$179,GT$1)","v":1959},{"$f":"VLOOKUP(DropDownList!$B$24,CntyQryCensus!$A$161:$GX$179,GU$1)","v":26},{"$f":"VLOOKUP(DropDownList!$B$24,CntyQryCensus!$A$161:$GX$179,GV$1)","v":589},{"$f":"VLOOKUP(DropDownList!$B$24,CntyQryCensus!$A$161:$GX$179,GW$1)","v":578},{"$f":"VLOOKUP(DropDownList!$B$24,CntyQryCensus!$A$161:$GX$179,GX$1)","v":11}]
[]
[]
["Census 2000 SummaryFile3 Sample Data  -  SF3TownQry8HousingCostA"]
["NAME","LOGRECNO","COUNTY","TotalPop","H62RntrOccHU","H62RntrOccHUwRent","H62ROHUGRent<100","H62ROHUGRent100to149","H62ROHUGRent150to199","H62ROHUGRent200to249","H62ROHUGRent250to299","H62ROHUGRent300to349","H62ROHUGRent350to399","H62ROHUGRent400to449","H62ROHUGRent450to499","H62ROHUGRent500to549","H62ROHUGRent550to599","H62ROHUGRent600to649","H62ROHUGRent650to699","H62ROHUGRent700to749","H62ROHUGRent750to799","H62ROHUGRent800to899","H62ROHUGRent900to999","H62ROHUGRent1000to1249","H62ROHUGRent1250to1499","H62ROHUGRent1500to1999","H62ROHUGRent2000>","H62ROHUNoGRent","H63MedianGrossRnt","H69RenterOccHsU","H69GRnt<10PctHHInc","H69GRnt10to15PctHHInc","H69GRnt15to20PctHHInc","H69GRnt20to25PctHHInc","H69GRnt25to30PctHHInc","H69GRnt30to35PctHHInc","H69GRnt35to40PctHHInc","H69GRnt40to50PctHHInc","H69GRnt>50PctHHInc","H69GRntPctNotcomputed","H73RenterOccHU","H73ROHUHhInc<10k","H73ROHUHhInc<10kRnt<20pct","H73ROHUHhInc<10kRnt20to25pct","H73ROHUHhInc<10kRnt25to30pct","H73ROHUHhInc<10kRnt30to35pct","H73ROHUHhInc<10kRnt>35pct","H73ROHUHhInc<10kPctNotComput","H73ROHUHhInc10to20k","H73ROHUHhInc10to20kRnt<20pct","H73ROHUHhInc10to20kRnt20to25pct","H73ROHUHhInc10to20kRnt25to30pct","H73ROHUHhInc10to20kRnt30to35pct","H73ROHUHhInc10to20kRnt>35pct","H73ROHUHhInc10to20kRntPctNC","H73ROHUHhInc20to35k","H73ROHUHhInc20to35kRnt<20pct","H73ROHUHhInc20to35kRnt20to25pct","H73ROHUHhInc20to35kRnt25to30pct","H73ROHUHhInc20to35kRnt30to35pct","H73ROHUHhInc20to35kRnt>35pct","H73ROHUHhInc20to35kRntPctNC","H73ROHUHhInc35to40k","H73ROHUHhInc35to40kRnt<20pct","H73ROHUHhInc35to40kRnt20to25pct","H73ROHUHhInc35to40kRnt25to30pct","H73ROHUHhInc35to40kRnt30to35pct","H73ROHUHhInc35to40kRnt>35pct","H73ROHUHhInc35to40kRntPctNC","H73ROHUHhInc50to75k","H73ROHUHhInc50to75kRnt<20pct","H73ROHUHhInc50to75kRnt20to25pct","H73ROHUHhInc50to75kRnt25to30pct","H73ROHUHhInc50to75kRnt30to35pct","H73ROHUHhInc50to75kRnt>35pct","H73ROHUHhInc50to75kRntPctNC","H73ROHUHhInc75to100k","H73ROHUHhInc75to100kRnt<20pct","H73ROHUHhInc75to100kRnt20to25pct","H73ROHUHhInc75to100kRnt25to30pct","H73ROHUHhInc75to100kRnt30to35pct","H73ROHUHhInc75to100kRnt>35pct","H73ROHUHhInc75to100kRntPctNC","H73ROHUHhInc>100k","H73ROHUHhInc>100kRnt<20pct","H73ROHUHhInc>100kRnt20to25pct","H73ROHUHhInc>100kRnt25to30pct","H73ROHUHhInc>100kRnt30to35pct","H73ROHUHhInc>100kRnt>35pct","H73ROHUHhInc>100kRntPctNC"]
[{"$f":"VLOOKUP(DropDownList!$B$24,CntyQryCensus!$A$187:$CL$205,A$1)","v":"Wolfeboro"},{"$f":"VLOOKUP(DropDownList!$B$24,CntyQryCensus!$A$187:$CL$205,B$1)","v":"0000440"},{"$f":"VLOOKUP(DropDownList!$B$24,CntyQryCensus!$A$187:$CL$205,C$1)","v":"86420"},{"$f":"VLOOKUP(DropDownList!$B$24,CntyQryCensus!$A$187:$CL$205,D$1)","v":6083},{"$f":"VLOOKUP(DropDownList!$B$24,CntyQryCensus!$A$187:$CL$205,E$1)","v":579},{"$f":"VLOOKUP(DropDownList!$B$24,CntyQryCensus!$A$187:$CL$205,F$1)","v":541},{"$f":"VLOOKUP(DropDownList!$B$24,CntyQryCensus!$A$187:$CL$205,G$1)","v":10},{"$f":"VLOOKUP(DropDownList!$B$24,CntyQryCensus!$A$187:$CL$205,H$1)","v":10},{"$f":"VLOOKUP(DropDownList!$B$24,CntyQryCensus!$A$187:$CL$205,I$1)","v":41},{"$f":"VLOOKUP(DropDownList!$B$24,CntyQryCensus!$A$187:$CL$205,J$1)","v":10},{"$f":"VLOOKUP(DropDownList!$B$24,CntyQryCensus!$A$187:$CL$205,K$1)","v":8},{"$f":"VLOOKUP(DropDownList!$B$24,CntyQryCensus!$A$187:$CL$205,L$1)","v":10},{"$f":"VLOOKUP(DropDownList!$B$24,CntyQryCensus!$A$187:$CL$205,M$1)","v":11},{"$f":"VLOOKUP(DropDownList!$B$24,CntyQryCensus!$A$187:$CL$205,N$1)","v":37},{"$f":"VLOOKUP(DropDownList!$B$24,CntyQryCensus!$A$187:$CL$205,O$1)","v":78},{"$f":"VLOOKUP(DropDownList!$B$24,CntyQryCensus!$A$187:$CL$205,P$1)","v":37},{"$f":"VLOOKUP(DropDownList!$B$24,CntyQryCensus!$A$187:$CL$205,Q$1)","v":9},{"$f":"VLOOKUP(DropDownList!$B$24,CntyQryCensus!$A$187:$CL$205,R$1)","v":80},{"$f":"VLOOKUP(DropDownList!$B$24,CntyQryCensus!$A$187:$CL$205,S$1)","v":66},{"$f":"VLOOKUP(DropDownList!$B$24,CntyQryCensus!$A$187:$CL$205,T$1)","v":0},{"$f":"VLOOKUP(DropDownList!$B$24,CntyQryCensus!$A$187:$CL$205,U$1)","v":22},{"$f":"VLOOKUP(DropDownList!$B$24,CntyQryCensus!$A$187:$CL$205,V$1)","v":56},{"$f":"VLOOKUP(DropDownList!$B$24,CntyQryCensus!$A$187:$CL$205,W$1)","v":21},{"$f":"VLOOKUP(DropDownList!$B$24,CntyQryCensus!$A$187:$CL$205,X$1)","v":26},{"$f":"VLOOKUP(DropDownList!$B$24,CntyQryCensus!$A$187:$CL$205,Y$1)","v":0},{"$f":"VLOOKUP(DropDownList!$B$24,CntyQryCensus!$A$187:$CL$205,Z$1)","v":0},{"$f":"VLOOKUP(DropDownList!$B$24,CntyQryCensus!$A$187:$CL$205,AA$1)","v":9},{"$f":"VLOOKUP(DropDownList!$B$24,CntyQryCensus!$A$187:$CL$205,AB$1)","v":38},{"$f":"VLOOKUP(DropDownList!$B$24,CntyQryCensus!$A$187:$CL$205,AC$1)","v":606},{"$f":"VLOOKUP(DropDownList!$B$24,CntyQryCensus!$A$187:$CL$205,AD$1)","v":579},{"$f":"VLOOKUP(DropDownList!$B$24,CntyQryCensus!$A$187:$CL$205,AE$1)","v":47},{"$f":"VLOOKUP(DropDownList!$B$24,CntyQryCensus!$A$187:$CL$205,AF$1)","v":20},{"$f":"VLOOKUP(DropDownList!$B$24,CntyQryCensus!$A$187:$CL$205,AG$1)","v":90},{"$f":"VLOOKUP(DropDownList!$B$24,CntyQryCensus!$A$187:$CL$205,AH$1)","v":116},{"$f":"VLOOKUP(DropDownList!$B$24,CntyQryCensus!$A$187:$CL$205,AI$1)","v":52},{"$f":"VLOOKUP(DropDownList!$B$24,CntyQryCensus!$A$187:$CL$205,AJ$1)","v":34},{"$f":"VLOOKUP(DropDownList!$B$24,CntyQryCensus!$A$187:$CL$205,AK$1)","v":48},{"$f":"VLOOKUP(DropDownList!$B$24,CntyQryCensus!$A$187:$CL$205,AL$1)","v":30},{"$f":"VLOOKUP(DropDownList!$B$24,CntyQryCensus!$A$187:$CL$205,AM$1)","v":86},{"$f":"VLOOKUP(DropDownList!$B$24,CntyQryCensus!$A$187:$CL$205,AN$1)","v":56},{"$f":"VLOOKUP(DropDownList!$B$24,CntyQryCensus!$A$187:$CL$205,AO$1)","v":579},{"$f":"VLOOKUP(DropDownList!$B$24,CntyQryCensus!$A$187:$CL$205,AP$1)","v":116},{"$f":"VLOOKUP(DropDownList!$B$24,CntyQryCensus!$A$187:$CL$205,AQ$1)","v":10},{"$f":"VLOOKUP(DropDownList!$B$24,CntyQryCensus!$A$187:$CL$205,AR$1)","v":10},{"$f":"VLOOKUP(DropDownList!$B$24,CntyQryCensus!$A$187:$CL$205,AS$1)","v":20},{"$f":"VLOOKUP(DropDownList!$B$24,CntyQryCensus!$A$187:$CL$205,AT$1)","v":0},{"$f":"VLOOKUP(DropDownList!$B$24,CntyQryCensus!$A$187:$CL$205,AU$1)","v":58},{"$f":"VLOOKUP(DropDownList!$B$24,CntyQryCensus!$A$187:$CL$205,AV$1)","v":18},{"$f":"VLOOKUP(DropDownList!$B$24,CntyQryCensus!$A$187:$CL$205,AW$1)","v":81},{"$f":"VLOOKUP(DropDownList!$B$24,CntyQryCensus!$A$187:$CL$205,AX$1)","v":10},{"$f":"VLOOKUP(DropDownList!$B$24,CntyQryCensus!$A$187:$CL$205,AY$1)","v":11},{"$f":"VLOOKUP(DropDownList!$B$24,CntyQryCensus!$A$187:$CL$205,AZ$1)","v":0},{"$f":"VLOOKUP(DropDownList!$B$24,CntyQryCensus!$A$187:$CL$205,BA$1)","v":0},{"$f":"VLOOKUP(DropDownList!$B$24,CntyQryCensus!$A$187:$CL$205,BB$1)","v":50},{"$f":"VLOOKUP(DropDownList!$B$24,CntyQryCensus!$A$187:$CL$205,BC$1)","v":10},{"$f":"VLOOKUP(DropDownList!$B$24,CntyQryCensus!$A$187:$CL$205,BD$1)","v":164},{"$f":"VLOOKUP(DropDownList!$B$24,CntyQryCensus!$A$187:$CL$205,BE$1)","v":52},{"$f":"VLOOKUP(DropDownList!$B$24,CntyQryCensus!$A$187:$CL$205,BF$1)","v":27},{"$f":"VLOOKUP(DropDownList!$B$24,CntyQryCensus!$A$187:$CL$205,BG$1)","v":11},{"$f":"VLOOKUP(DropDownList!$B$24,CntyQryCensus!$A$187:$CL$205,BH$1)","v":18},{"$f":"VLOOKUP(DropDownList!$B$24,CntyQryCensus!$A$187:$CL$205,BI$1)","v":56},{"$f":"VLOOKUP(DropDownList!$B$24,CntyQryCensus!$A$187:$CL$205,BJ$1)","v":0},{"$f":"VLOOKUP(DropDownList!$B$24,CntyQryCensus!$A$187:$CL$205,BK$1)","v":87},{"$f":"VLOOKUP(DropDownList!$B$24,CntyQryCensus!$A$187:$CL$205,BL$1)","v":19},{"$f":"VLOOKUP(DropDownList!$B$24,CntyQryCensus!$A$187:$CL$205,BM$1)","v":40},{"$f":"VLOOKUP(DropDownList!$B$24,CntyQryCensus!$A$187:$CL$205,BN$1)","v":21},{"$f":"VLOOKUP(DropDownList!$B$24,CntyQryCensus!$A$187:$CL$205,BO$1)","v":7},{"$f":"VLOOKUP(DropDownList!$B$24,CntyQryCensus!$A$187:$CL$205,BP$1)","v":0},{"$f":"VLOOKUP(DropDownList!$B$24,CntyQryCensus!$A$187:$CL$205,BQ$1)","v":0},{"$f":"VLOOKUP(DropDownList!$B$24,CntyQryCensus!$A$187:$CL$205,BR$1)","v":92},{"$f":"VLOOKUP(DropDownList!$B$24,CntyQryCensus!$A$187:$CL$205,BS$1)","v":44},{"$f":"VLOOKUP(DropDownList!$B$24,CntyQryCensus!$A$187:$CL$205,BT$1)","v":28},{"$f":"VLOOKUP(DropDownList!$B$24,CntyQryCensus!$A$187:$CL$205,BU$1)","v":0},{"$f":"VLOOKUP(DropDownList!$B$24,CntyQryCensus!$A$187:$CL$205,BV$1)","v":0},{"$f":"VLOOKUP(DropDownList!$B$24,CntyQryCensus!$A$187:$CL$205,BW$1)","v":0},{"$f":"VLOOKUP(DropDownList!$B$24,CntyQryCensus!$A$187:$CL$205,BX$1)","v":20},{"$f":"VLOOKUP(DropDownList!$B$24,CntyQryCensus!$A$187:$CL$205,BY$1)","v":39},{"$f":"VLOOKUP(DropDownList!$B$24,CntyQryCensus!$A$187:$CL$205,BZ$1)","v":22},{"$f":"VLOOKUP(DropDownList!$B$24,CntyQryCensus!$A$187:$CL$205,CA$1)","v":0},{"$f":"VLOOKUP(DropDownList!$B$24,CntyQryCensus!$A$187:$CL$205,CB$1)","v":0},{"$f":"VLOOKUP(DropDownList!$B$24,CntyQryCensus!$A$187:$CL$205,CC$1)","v":9},{"$f":"VLOOKUP(DropDownList!$B$24,CntyQryCensus!$A$187:$CL$205,CD$1)","v":0},{"$f":"VLOOKUP(DropDownList!$B$24,CntyQryCensus!$A$187:$CL$205,CE$1)","v":8},{"$f":"VLOOKUP(DropDownList!$B$24,CntyQryCensus!$A$187:$CL$205,CF$1)","v":0},{"$f":"VLOOKUP(DropDownList!$B$24,CntyQryCensus!$A$187:$CL$205,CG$1)","v":0},{"$f":"VLOOKUP(DropDownList!$B$24,CntyQryCensus!$A$187:$CL$205,CH$1)","v":0},{"$f":"VLOOKUP(DropDownList!$B$24,CntyQryCensus!$A$187:$CL$205,CI$1)","v":0},{"$f":"VLOOKUP(DropDownList!$B$24,CntyQryCensus!$A$187:$CL$205,CJ$1)","v":0},{"$f":"VLOOKUP(DropDownList!$B$24,CntyQryCensus!$A$187:$CL$205,CK$1)","v":0},{"$f":"VLOOKUP(DropDownList!$B$24,CntyQryCensus!$A$187:$CL$205,CL$1)","v":0}]
[]
[]
["Census 2000 SummaryFile3 Sample Data  -  SF3TownQry8HousingCostB"]
["NAME","LOGRECNO","COUNTY","TotalPop","H74SpecOwnerOccHU","H74OOHU<10k","H74OOHU10to15k","H74OOHU15to20k","H74OOHU20to25k","H74OOHU25to30k","H74OOHU30to35k","H74OOHU35to40k","H74OOHU40to50k","H74OOHU50to60k","H74OOHU60to70k","H74OOHU70to80k","H74OOHU80to90k","H74OOHU90to100k","H74OOHU100to125k","H74OOHU125to150k","H74OOHU150to175k","H74OOHU175to200k","H74OOHU200to250k","H74OOHU250to300k","H74OOHU300to400k","H74OOHU400to500k","H74OOHU500to750k","H74OOHU750to1000k","H74OOHU1000kmore","H76OOHUMedianVal","H84OwnerOccHU","H84AllOOHU<10k","H84AllOOHU10to15k","H84AllOOHU15to20k","H84AllOOHU20to25k","H84AllOOHU25to30k","H84AllOOHU30to35k","H84AllOOHU35to40k","H84AllOOHU40to50k","H84AllOOHU50to60k","H84AllOOHU60to70k","H84AllOOHU70to80k","H84AllOOHU80to90k","H84AllOOHU90to100k","H84AllOOHU100to125k","H84AllOOHU125to150k","H84AllOOHU150to175k","H84AllOOHU175to200k","H84AllOOHU200to250k","H84AllOOHU250to300k","H84AllOOHU300to400k","H84AllOOHU400to500k","H84AllOOHU500to750k","H84AllOOHU750to1000k","H84AllOOHU1000kmore","H85OOHUMedVal","H90SOOHU","H90HUwMorgt","H90HUwMtgHC<200","H90HUwMtgHC200to300","H90HUwMtgHC300to400","H90HUwMtgHC400to500","H90HUwMtgHC500to600","H90HUwMtgHC600to700","H90HUwMtgHC700to800","H90HUwMtgHC800to900","H90HUwMtgHC900to1000","H90HUwMtgHC1000to1250","H90HUwMtgHC1250to1500","H90HUwMtgHC1500to2000","H90HUwMtgHC2000to2500","H90HUwMtgHC2500to3000","H90HUwMtgHC3000orMore","H90HUwOutMorgt","H90HUwOutMtgHC<100","H90HUwOutMtgHC100to150","H90HUwOutMtgHC150to200","H90HUwOutMtgHC200to250","H90HUwOutMtgHC250to300","H90HUwOutMtgHC300to350","H90HUwOutMtgHC350to400","H90HUwOutMtgHC400to500","H90HUwOutMtgHC500to600","H90HUwOutMtgHC600to700","H90HUwOutMtgHC700to800","H90HUwOutMtgHC800to900","H90HUwOutMtgHC900to1000","H90HUwOutMtgHC1000orMore","H91MedianOCHUwMtg","H91MedianOCHUwOutMtg","H94SpecOOHU","H94HUwMortg","H94HUwMtgHC<10pct","H94HUwMtgHC10to15pct","H94HUwMtgHC15to20pct","H94HUwMtgHC20to25pct","H94HUwMtgHC25to30pct","H94HUwMtgHC30to35pct","H94HUwMtgHC35to40pct","H94HUwMtgHC40to50pct","H94HUwMtgHC50pctOrMore","H94HUwMtgHCpctNotComp","H94HUWOutMortg","H94HUWOutMortgHC<10pct","H94HUWOutMortgHC10to15pct","H94HUWOutMortgHC15to20pct","H94HUWOutMortgHC20to25pct","H94HUWOutMortgHC25to30pct","H94HUWOutMortgHC30to35pct","H94HUWOutMortgHC35to40pct","H94HUWOutMortgHC40to50pct","H94HUWOutMortgHC50pctOrMore","H94HUWOutMortgHCpctNotComp","H97SpecifOwnOccHU","H97SOOHUInc<10k","H97SOOHUInc<10kHC<20pct","H97SOOHUInc<10kHC20to25pct","H97SOOHUInc<10kHC25to30pct","H97SOOHUInc<10kHC30to35pct","H97SOOHUInc<10kHC>35pct","H97SOOHUInc<10kHCpctNotComput","H97SOOHUInc10to20k","H97SOOHUInc10to20kHC<20pct","H97SOOHUInc10to20kHC20to25pct","H97SOOHUInc10to20kHC25to30pct","H97SOOHUInc10to20kHC30to35pct","H97SOOHUInc10to20kHC>35pct","H97SOOHUInc10to20kHCpctNotComput","H97SOOHUInc20to35k","H97SOOHUInc20to35kRC<20pct","H97SOOHUInc20to35kRC20to25pct","H97SOOHUInc20to35kRC25to30pct","H97SOOHUInc20to35kRC30to35pct","H97SOOHUInc20to35kRC>35pct","H97SOOHUInc20to35kRCpctNotComput","H97SOOHUInc35to50k","H97SOOHUInc35to50kRC<20pct","H97SOOHUInc35to50kRC20to25pct","H97SOOHUInc35to50kRC25to30pct","H97SOOHUInc35to50kRC30to35pct","H97SOOHUInc35to50kRC>35pct","H97SOOHUInc35to50kRCpctNotCompute","H97SOOHUInc50to75k","H97SOOHUInc50to75kRC<20pct","H97SOOHUInc50to75kRC20to25pct","H97SOOHUInc50to75kRC25to30pct","H97SOOHUInc50to75kRC30to35pct","H97SOOHUInc50to75kRC>35pct","H97SOOHUInc50to75kRCpctNotComput","H97SOOHUInc75to100k","H97SOOHUInc75to100kRC<20pct","H97SOOHUInc75to100kRC20to25pct","H97SOOHUInc75to100kRC25to30pct","H97SOOHUInc75to100kRC30to35pct","H97SOOHUInc75to100kRC>35pct","H97SOOHUInc75to100kRCpctNotCompute","H97SOOHUInc100to150k","H97SOOHUInc100to150kRC<20pct","H97SOOHUInc100to150kRC20to25pct","H97SOOHUInc100to150kRC25to30pct","H97SOOHUInc100to150kRC30to35pct","H97SOOHUInc100to150kRC>35pct","H97SOOHUInc100to150kRCpctNotCompute","H97SOOHUInc>150k","H97SOOHUInc>150kRC<20pct","H97SOOHUInc>150kRC20to25pct","H97SOOHUInc>150kRC25to30pct","H97SOOHUInc>150kRC30to35pct","H97SOOHUInc>150kRC>35pct","H97SOOHUInc>150kRCpctNotCompute"]
[{"$f":"VLOOKUP(DropDownList!$B$24,CntyQryCensus!$A$213:$FN$231,A$1)","v":"Wolfeboro"},{"$f":"VLOOKUP(DropDownList!$B$24,CntyQryCensus!$A$213:$FN$231,B$1)","v":"0000440"},{"$f":"VLOOKUP(DropDownList!$B$24,CntyQryCensus!$A$213:$FN$231,C$1)","v":"86420"},{"$f":"VLOOKUP(DropDownList!$B$24,CntyQryCensus!$A$213:$FN$231,D$1)","v":6083},{"$f":"VLOOKUP(DropDownList!$B$24,CntyQryCensus!$A$213:$FN$231,E$1)","v":1552},{"$f":"VLOOKUP(DropDownList!$B$24,CntyQryCensus!$A$213:$FN$231,F$1)","v":0},{"$f":"VLOOKUP(DropDownList!$B$24,CntyQryCensus!$A$213:$FN$231,G$1)","v":0},{"$f":"VLOOKUP(DropDownList!$B$24,CntyQryCensus!$A$213:$FN$231,H$1)","v":0},{"$f":"VLOOKUP(DropDownList!$B$24,CntyQryCensus!$A$213:$FN$231,I$1)","v":0},{"$f":"VLOOKUP(DropDownList!$B$24,CntyQryCensus!$A$213:$FN$231,J$1)","v":0},{"$f":"VLOOKUP(DropDownList!$B$24,CntyQryCensus!$A$213:$FN$231,K$1)","v":0},{"$f":"VLOOKUP(DropDownList!$B$24,CntyQryCensus!$A$213:$FN$231,L$1)","v":0},{"$f":"VLOOKUP(DropDownList!$B$24,CntyQryCensus!$A$213:$FN$231,M$1)","v":0},{"$f":"VLOOKUP(DropDownList!$B$24,CntyQryCensus!$A$213:$FN$231,N$1)","v":15},{"$f":"VLOOKUP(DropDownList!$B$24,CntyQryCensus!$A$213:$FN$231,O$1)","v":9},{"$f":"VLOOKUP(DropDownList!$B$24,CntyQryCensus!$A$213:$FN$231,P$1)","v":92},{"$f":"VLOOKUP(DropDownList!$B$24,CntyQryCensus!$A$213:$FN$231,Q$1)","v":86},{"$f":"VLOOKUP(DropDownList!$B$24,CntyQryCensus!$A$213:$FN$231,R$1)","v":149},{"$f":"VLOOKUP(DropDownList!$B$24,CntyQryCensus!$A$213:$FN$231,S$1)","v":204},{"$f":"VLOOKUP(DropDownList!$B$24,CntyQryCensus!$A$213:$FN$231,T$1)","v":223},{"$f":"VLOOKUP(DropDownList!$B$24,CntyQryCensus!$A$213:$FN$231,U$1)","v":183},{"$f":"VLOOKUP(DropDownList!$B$24,CntyQryCensus!$A$213:$FN$231,V$1)","v":101},{"$f":"VLOOKUP(DropDownList!$B$24,CntyQryCensus!$A$213:$FN$231,W$1)","v":189},{"$f":"VLOOKUP(DropDownList!$B$24,CntyQryCensus!$A$213:$FN$231,X$1)","v":116},{"$f":"VLOOKUP(DropDownList!$B$24,CntyQryCensus!$A$213:$FN$231,Y$1)","v":53},{"$f":"VLOOKUP(DropDownList!$B$24,CntyQryCensus!$A$213:$FN$231,Z$1)","v":44},{"$f":"VLOOKUP(DropDownList!$B$24,CntyQryCensus!$A$213:$FN$231,AA$1)","v":61},{"$f":"VLOOKUP(DropDownList!$B$24,CntyQryCensus!$A$213:$FN$231,AB$1)","v":14},{"$f":"VLOOKUP(DropDownList!$B$24,CntyQryCensus!$A$213:$FN$231,AC$1)","v":13},{"$f":"VLOOKUP(DropDownList!$B$24,CntyQryCensus!$A$213:$FN$231,AD$1)","v":149800},{"$f":"VLOOKUP(DropDownList!$B$24,CntyQryCensus!$A$213:$FN$231,AE$1)","v":1985},{"$f":"VLOOKUP(DropDownList!$B$24,CntyQryCensus!$A$213:$FN$231,AF$1)","v":0},{"$f":"VLOOKUP(DropDownList!$B$24,CntyQryCensus!$A$213:$FN$231,AG$1)","v":7},{"$f":"VLOOKUP(DropDownList!$B$24,CntyQryCensus!$A$213:$FN$231,AH$1)","v":0},{"$f":"VLOOKUP(DropDownList!$B$24,CntyQryCensus!$A$213:$FN$231,AI$1)","v":8},{"$f":"VLOOKUP(DropDownList!$B$24,CntyQryCensus!$A$213:$FN$231,AJ$1)","v":0},{"$f":"VLOOKUP(DropDownList!$B$24,CntyQryCensus!$A$213:$FN$231,AK$1)","v":0},{"$f":"VLOOKUP(DropDownList!$B$24,CntyQryCensus!$A$213:$FN$231,AL$1)","v":8},{"$f":"VLOOKUP(DropDownList!$B$24,CntyQryCensus!$A$213:$FN$231,AM$1)","v":0},{"$f":"VLOOKUP(DropDownList!$B$24,CntyQryCensus!$A$213:$FN$231,AN$1)","v":31},{"$f":"VLOOKUP(DropDownList!$B$24,CntyQryCensus!$A$213:$FN$231,AO$1)","v":34},{"$f":"VLOOKUP(DropDownList!$B$24,CntyQryCensus!$A$213:$FN$231,AP$1)","v":114},{"$f":"VLOOKUP(DropDownList!$B$24,CntyQryCensus!$A$213:$FN$231,AQ$1)","v":99},{"$f":"VLOOKUP(DropDownList!$B$24,CntyQryCensus!$A$213:$FN$231,AR$1)","v":157},{"$f":"VLOOKUP(DropDownList!$B$24,CntyQryCensus!$A$213:$FN$231,AS$1)","v":240},{"$f":"VLOOKUP(DropDownList!$B$24,CntyQryCensus!$A$213:$FN$231,AT$1)","v":324},{"$f":"VLOOKUP(DropDownList!$B$24,CntyQryCensus!$A$213:$FN$231,AU$1)","v":190},{"$f":"VLOOKUP(DropDownList!$B$24,CntyQryCensus!$A$213:$FN$231,AV$1)","v":116},{"$f":"VLOOKUP(DropDownList!$B$24,CntyQryCensus!$A$213:$FN$231,AW$1)","v":243},{"$f":"VLOOKUP(DropDownList!$B$24,CntyQryCensus!$A$213:$FN$231,AX$1)","v":188},{"$f":"VLOOKUP(DropDownList!$B$24,CntyQryCensus!$A$213:$FN$231,AY$1)","v":60},{"$f":"VLOOKUP(DropDownList!$B$24,CntyQryCensus!$A$213:$FN$231,AZ$1)","v":53},{"$f":"VLOOKUP(DropDownList!$B$24,CntyQryCensus!$A$213:$FN$231,BA$1)","v":61},{"$f":"VLOOKUP(DropDownList!$B$24,CntyQryCensus!$A$213:$FN$231,BB$1)","v":31},{"$f":"VLOOKUP(DropDownList!$B$24,CntyQryCensus!$A$213:$FN$231,BC$1)","v":21},{"$f":"VLOOKUP(DropDownList!$B$24,CntyQryCensus!$A$213:$FN$231,BD$1)","v":147700},{"$f":"VLOOKUP(DropDownList!$B$24,CntyQryCensus!$A$213:$FN$231,BE$1)","v":1552},{"$f":"VLOOKUP(DropDownList!$B$24,CntyQryCensus!$A$213:$FN$231,BF$1)","v":913},{"$f":"VLOOKUP(DropDownList!$B$24,CntyQryCensus!$A$213:$FN$231,BG$1)","v":0},{"$f":"VLOOKUP(DropDownList!$B$24,CntyQryCensus!$A$213:$FN$231,BH$1)","v":0},{"$f":"VLOOKUP(DropDownList!$B$24,CntyQryCensus!$A$213:$FN$231,BI$1)","v":0},{"$f":"VLOOKUP(DropDownList!$B$24,CntyQryCensus!$A$213:$FN$231,BJ$1)","v":29},{"$f":"VLOOKUP(DropDownList!$B$24,CntyQryCensus!$A$213:$FN$231,BK$1)","v":37},{"$f":"VLOOKUP(DropDownList!$B$24,CntyQryCensus!$A$213:$FN$231,BL$1)","v":35},{"$f":"VLOOKUP(DropDownList!$B$24,CntyQryCensus!$A$213:$FN$231,BM$1)","v":98},{"$f":"VLOOKUP(DropDownList!$B$24,CntyQryCensus!$A$213:$FN$231,BN$1)","v":76},{"$f":"VLOOKUP(DropDownList!$B$24,CntyQryCensus!$A$213:$FN$231,BO$1)","v":102},{"$f":"VLOOKUP(DropDownList!$B$24,CntyQryCensus!$A$213:$FN$231,BP$1)","v":203},{"$f":"VLOOKUP(DropDownList!$B$24,CntyQryCensus!$A$213:$FN$231,BQ$1)","v":111},{"$f":"VLOOKUP(DropDownList!$B$24,CntyQryCensus!$A$213:$FN$231,BR$1)","v":131},{"$f":"VLOOKUP(DropDownList!$B$24,CntyQryCensus!$A$213:$FN$231,BS$1)","v":51},{"$f":"VLOOKUP(DropDownList!$B$24,CntyQryCensus!$A$213:$FN$231,BT$1)","v":27},{"$f":"VLOOKUP(DropDownList!$B$24,CntyQryCensus!$A$213:$FN$231,BU$1)","v":13},{"$f":"VLOOKUP(DropDownList!$B$24,CntyQryCensus!$A$213:$FN$231,BV$1)","v":639},{"$f":"VLOOKUP(DropDownList!$B$24,CntyQryCensus!$A$213:$FN$231,BW$1)","v":0},{"$f":"VLOOKUP(DropDownList!$B$24,CntyQryCensus!$A$213:$FN$231,BX$1)","v":0},{"$f":"VLOOKUP(DropDownList!$B$24,CntyQryCensus!$A$213:$FN$231,BY$1)","v":8},{"$f":"VLOOKUP(DropDownList!$B$24,CntyQryCensus!$A$213:$FN$231,BZ$1)","v":74},{"$f":"VLOOKUP(DropDownList!$B$24,CntyQryCensus!$A$213:$FN$231,CA$1)","v":48},{"$f":"VLOOKUP(DropDownList!$B$24,CntyQryCensus!$A$213:$FN$231,CB$1)","v":65},{"$f":"VLOOKUP(DropDownList!$B$24,CntyQryCensus!$A$213:$FN$231,CC$1)","v":62},{"$f":"VLOOKUP(DropDownList!$B$24,CntyQryCensus!$A$213:$FN$231,CD$1)","v":152},{"$f":"VLOOKUP(DropDownList!$B$24,CntyQryCensus!$A$213:$FN$231,CE$1)","v":107},{"$f":"VLOOKUP(DropDownList!$B$24,CntyQryCensus!$A$213:$FN$231,CF$1)","v":31},{"$f":"VLOOKUP(DropDownList!$B$24,CntyQryCensus!$A$213:$FN$231,CG$1)","v":30},{"$f":"VLOOKUP(DropDownList!$B$24,CntyQryCensus!$A$213:$FN$231,CH$1)","v":15},{"$f":"VLOOKUP(DropDownList!$B$24,CntyQryCensus!$A$213:$FN$231,CI$1)","v":6},{"$f":"VLOOKUP(DropDownList!$B$24,CntyQryCensus!$A$213:$FN$231,CJ$1)","v":41},{"$f":"VLOOKUP(DropDownList!$B$24,CntyQryCensus!$A$213:$FN$231,CK$1)","v":1098},{"$f":"VLOOKUP(DropDownList!$B$24,CntyQryCensus!$A$213:$FN$231,CL$1)","v":441},{"$f":"VLOOKUP(DropDownList!$B$24,CntyQryCensus!$A$213:$FN$231,CM$1)","v":1552},{"$f":"VLOOKUP(DropDownList!$B$24,CntyQryCensus!$A$213:$FN$231,CN$1)","v":913},{"$f":"VLOOKUP(DropDownList!$B$24,CntyQryCensus!$A$213:$FN$231,CO$1)","v":61},{"$f":"VLOOKUP(DropDownList!$B$24,CntyQryCensus!$A$213:$FN$231,CP$1)","v":113},{"$f":"VLOOKUP(DropDownList!$B$24,CntyQryCensus!$A$213:$FN$231,CQ$1)","v":102},{"$f":"VLOOKUP(DropDownList!$B$24,CntyQryCensus!$A$213:$FN$231,CR$1)","v":184},{"$f":"VLOOKUP(DropDownList!$B$24,CntyQryCensus!$A$213:$FN$231,CS$1)","v":127},{"$f":"VLOOKUP(DropDownList!$B$24,CntyQryCensus!$A$213:$FN$231,CT$1)","v":82},{"$f":"VLOOKUP(DropDownList!$B$24,CntyQryCensus!$A$213:$FN$231,CU$1)","v":29},{"$f":"VLOOKUP(DropDownList!$B$24,CntyQryCensus!$A$213:$FN$231,CV$1)","v":35},{"$f":"VLOOKUP(DropDownList!$B$24,CntyQryCensus!$A$213:$FN$231,CW$1)","v":165},{"$f":"VLOOKUP(DropDownList!$B$24,CntyQryCensus!$A$213:$FN$231,CX$1)","v":15},{"$f":"VLOOKUP(DropDownList!$B$24,CntyQryCensus!$A$213:$FN$231,CY$1)","v":639},{"$f":"VLOOKUP(DropDownList!$B$24,CntyQryCensus!$A$213:$FN$231,CZ$1)","v":211},{"$f":"VLOOKUP(DropDownList!$B$24,CntyQryCensus!$A$213:$FN$231,DA$1)","v":132},{"$f":"VLOOKUP(DropDownList!$B$24,CntyQryCensus!$A$213:$FN$231,DB$1)","v":80},{"$f":"VLOOKUP(DropDownList!$B$24,CntyQryCensus!$A$213:$FN$231,DC$1)","v":69},{"$f":"VLOOKUP(DropDownList!$B$24,CntyQryCensus!$A$213:$FN$231,DD$1)","v":40},{"$f":"VLOOKUP(DropDownList!$B$24,CntyQryCensus!$A$213:$FN$231,DE$1)","v":37},{"$f":"VLOOKUP(DropDownList!$B$24,CntyQryCensus!$A$213:$FN$231,DF$1)","v":24},{"$f":"VLOOKUP(DropDownList!$B$24,CntyQryCensus!$A$213:$FN$231,DG$1)","v":8},{"$f":"VLOOKUP(DropDownList!$B$24,CntyQryCensus!$A$213:$FN$231,DH$1)","v":38},{"$f":"VLOOKUP(DropDownList!$B$24,CntyQryCensus!$A$213:$FN$231,DI$1)","v":0},{"$f":"VLOOKUP(DropDownList!$B$24,CntyQryCensus!$A$213:$FN$231,DJ$1)","v":1552},{"$f":"VLOOKUP(DropDownList!$B$24,CntyQryCensus!$A$213:$FN$231,DK$1)","v":46},{"$f":"VLOOKUP(DropDownList!$B$24,CntyQryCensus!$A$213:$FN$231,DL$1)","v":0},{"$f":"VLOOKUP(DropDownList!$B$24,CntyQryCensus!$A$213:$FN$231,DM$1)","v":0},{"$f":"VLOOKUP(DropDownList!$B$24,CntyQryCensus!$A$213:$FN$231,DN$1)","v":0},{"$f":"VLOOKUP(DropDownList!$B$24,CntyQryCensus!$A$213:$FN$231,DO$1)","v":7},{"$f":"VLOOKUP(DropDownList!$B$24,CntyQryCensus!$A$213:$FN$231,DP$1)","v":24},{"$f":"VLOOKUP(DropDownList!$B$24,CntyQryCensus!$A$213:$FN$231,DQ$1)","v":15},{"$f":"VLOOKUP(DropDownList!$B$24,CntyQryCensus!$A$213:$FN$231,DR$1)","v":256},{"$f":"VLOOKUP(DropDownList!$B$24,CntyQryCensus!$A$213:$FN$231,DS$1)","v":34},{"$f":"VLOOKUP(DropDownList!$B$24,CntyQryCensus!$A$213:$FN$231,DT$1)","v":24},{"$f":"VLOOKUP(DropDownList!$B$24,CntyQryCensus!$A$213:$FN$231,DU$1)","v":8},{"$f":"VLOOKUP(DropDownList!$B$24,CntyQryCensus!$A$213:$FN$231,DV$1)","v":37},{"$f":"VLOOKUP(DropDownList!$B$24,CntyQryCensus!$A$213:$FN$231,DW$1)","v":153},{"$f":"VLOOKUP(DropDownList!$B$24,CntyQryCensus!$A$213:$FN$231,DX$1)","v":0},{"$f":"VLOOKUP(DropDownList!$B$24,CntyQryCensus!$A$213:$FN$231,DY$1)","v":267},{"$f":"VLOOKUP(DropDownList!$B$24,CntyQryCensus!$A$213:$FN$231,DZ$1)","v":93},{"$f":"VLOOKUP(DropDownList!$B$24,CntyQryCensus!$A$213:$FN$231,EA$1)","v":47},{"$f":"VLOOKUP(DropDownList!$B$24,CntyQryCensus!$A$213:$FN$231,EB$1)","v":32},{"$f":"VLOOKUP(DropDownList!$B$24,CntyQryCensus!$A$213:$FN$231,EC$1)","v":8},{"$f":"VLOOKUP(DropDownList!$B$24,CntyQryCensus!$A$213:$FN$231,ED$1)","v":87},{"$f":"VLOOKUP(DropDownList!$B$24,CntyQryCensus!$A$213:$FN$231,EE$1)","v":0},{"$f":"VLOOKUP(DropDownList!$B$24,CntyQryCensus!$A$213:$FN$231,EF$1)","v":230},{"$f":"VLOOKUP(DropDownList!$B$24,CntyQryCensus!$A$213:$FN$231,EG$1)","v":47},{"$f":"VLOOKUP(DropDownList!$B$24,CntyQryCensus!$A$213:$FN$231,EH$1)","v":45},{"$f":"VLOOKUP(DropDownList!$B$24,CntyQryCensus!$A$213:$FN$231,EI$1)","v":65},{"$f":"VLOOKUP(DropDownList!$B$24,CntyQryCensus!$A$213:$FN$231,EJ$1)","v":38},{"$f":"VLOOKUP(DropDownList!$B$24,CntyQryCensus!$A$213:$FN$231,EK$1)","v":35},{"$f":"VLOOKUP(DropDownList!$B$24,CntyQryCensus!$A$213:$FN$231,EL$1)","v":0},{"$f":"VLOOKUP(DropDownList!$B$24,CntyQryCensus!$A$213:$FN$231,EM$1)","v":376},{"$f":"VLOOKUP(DropDownList!$B$24,CntyQryCensus!$A$213:$FN$231,EN$1)","v":207},{"$f":"VLOOKUP(DropDownList!$B$24,CntyQryCensus!$A$213:$FN$231,EO$1)","v":104},{"$f":"VLOOKUP(DropDownList!$B$24,CntyQryCensus!$A$213:$FN$231,EP$1)","v":49},{"$f":"VLOOKUP(DropDownList!$B$24,CntyQryCensus!$A$213:$FN$231,EQ$1)","v":16},{"$f":"VLOOKUP(DropDownList!$B$24,CntyQryCensus!$A$213:$FN$231,ER$1)","v":0},{"$f":"VLOOKUP(DropDownList!$B$24,CntyQryCensus!$A$213:$FN$231,ES$1)","v":0},{"$f":"VLOOKUP(DropDownList!$B$24,CntyQryCensus!$A$213:$FN$231,ET$1)","v":111},{"$f":"VLOOKUP(DropDownList!$B$24,CntyQryCensus!$A$213:$FN$231,EU$1)","v":78},{"$f":"VLOOKUP(DropDownList!$B$24,CntyQryCensus!$A$213:$FN$231,EV$1)","v":20},{"$f":"VLOOKUP(DropDownList!$B$24,CntyQryCensus!$A$213:$FN$231,EW$1)","v":7},{"$f":"VLOOKUP(DropDownList!$B$24,CntyQryCensus!$A$213:$FN$231,EX$1)","v":6},{"$f":"VLOOKUP(DropDownList!$B$24,CntyQryCensus!$A$213:$FN$231,EY$1)","v":0},{"$f":"VLOOKUP(DropDownList!$B$24,CntyQryCensus!$A$213:$FN$231,EZ$1)","v":0},{"$f":"VLOOKUP(DropDownList!$B$24,CntyQryCensus!$A$213:$FN$231,FA$1)","v":151},{"$f":"VLOOKUP(DropDownList!$B$24,CntyQryCensus!$A$213:$FN$231,FB$1)","v":125},{"$f":"VLOOKUP(DropDownList!$B$24,CntyQryCensus!$A$213:$FN$231,FC$1)","v":13},{"$f":"VLOOKUP(DropDownList!$B$24,CntyQryCensus!$A$213:$FN$231,FD$1)","v":6},{"$f":"VLOOKUP(DropDownList!$B$24,CntyQryCensus!$A$213:$FN$231,FE$1)","v":7},{"$f":"VLOOKUP(DropDownList!$B$24,CntyQryCensus!$A$213:$FN$231,FF$1)","v":0},{"$f":"VLOOKUP(DropDownList!$B$24,CntyQryCensus!$A$213:$FN$231,FG$1)","v":0},{"$f":"VLOOKUP(DropDownList!$B$24,CntyQryCensus!$A$213:$FN$231,FH$1)","v":115},{"$f":"VLOOKUP(DropDownList!$B$24,CntyQryCensus!$A$213:$FN$231,FI$1)","v":115},{"$f":"VLOOKUP(DropDownList!$B$24,CntyQryCensus!$A$213:$FN$231,FJ$1)","v":0},{"$f":"VLOOKUP(DropDownList!$B$24,CntyQryCensus!$A$213:$FN$231,FK$1)","v":0},{"$f":"VLOOKUP(DropDownList!$B$24,CntyQryCensus!$A$213:$FN$231,FL$1)","v":0},{"$f":"VLOOKUP(DropDownList!$B$24,CntyQryCensus!$A$213:$FN$231,FM$1)","v":0},{"$f":"VLOOKUP(DropDownList!$B$24,CntyQryCensus!$A$213:$FN$231,FN$1)","v":0}]
[]
[]
["Census 2000 SummaryFile3 Sample Data  -  SF3TownQry9HHIncomeByTenure"]
["NAME","LOGRECNO","COUNTY","TotalPop","HCT11OccHU","HCT11OwnOccHU","HCT11OOHUInc<5K","HCT11OOHUInc5to10K","HCT11OOHUInc10to15K","HCT11OOHUInc15to20K","HCT11OOHUInc20to25K","HCT11OOHUInc25to35K","HCT11OOHUInc35to50K","HCT11OOHUInc50to75K","HCT11OOHUInc75to100K","HCT11OOHUInc100to150K","HCT11OOHUInc>150K","HCT11RentOccHU","HCT11ROHUInc<5K","HCT11ROHUInc5to10K","HCT11ROHUInc10to15K","HCT11ROHUInc15to20K","HCT11ROHUInc20to25K","HCT11ROHUInc25to35K","HCT11ROHUInc35to50K","HCT11ROHUInc50to75K","HCT11ROHUInc75to100K","HCT11ROHUInc100to150K","HCT11ROHUInc>150K","HCT12MedHHInc","HCT12MedOwnOccHHInc","HCT12MedRentOccHHInc"]
[{"$f":"VLOOKUP(DropDownList!$B$24,CntyQryCensus!$A$239:$AX$257,A$1)","v":"Wolfeboro"},{"$f":"VLOOKUP(DropDownList!$B$24,CntyQryCensus!$A$239:$AX$257,B$1)","v":"0000440"},{"$f":"VLOOKUP(DropDownList!$B$24,CntyQryCensus!$A$239:$AX$257,C$1)","v":"86420"},{"$f":"VLOOKUP(DropDownList!$B$24,CntyQryCensus!$A$239:$AX$257,D$1)","v":6083},{"$f":"VLOOKUP(DropDownList!$B$24,CntyQryCensus!$A$239:$AX$257,E$1)","v":2574},{"$f":"VLOOKUP(DropDownList!$B$24,CntyQryCensus!$A$239:$AX$257,F$1)","v":1985},{"$f":"VLOOKUP(DropDownList!$B$24,CntyQryCensus!$A$239:$AX$257,G$1)","v":39},{"$f":"VLOOKUP(DropDownList!$B$24,CntyQryCensus!$A$239:$AX$257,H$1)","v":15},{"$f":"VLOOKUP(DropDownList!$B$24,CntyQryCensus!$A$239:$AX$257,I$1)","v":137},{"$f":"VLOOKUP(DropDownList!$B$24,CntyQryCensus!$A$239:$AX$257,J$1)","v":142},{"$f":"VLOOKUP(DropDownList!$B$24,CntyQryCensus!$A$239:$AX$257,K$1)","v":156},{"$f":"VLOOKUP(DropDownList!$B$24,CntyQryCensus!$A$239:$AX$257,L$1)","v":196},{"$f":"VLOOKUP(DropDownList!$B$24,CntyQryCensus!$A$239:$AX$257,M$1)","v":326},{"$f":"VLOOKUP(DropDownList!$B$24,CntyQryCensus!$A$239:$AX$257,N$1)","v":455},{"$f":"VLOOKUP(DropDownList!$B$24,CntyQryCensus!$A$239:$AX$257,O$1)","v":179},{"$f":"VLOOKUP(DropDownList!$B$24,CntyQryCensus!$A$239:$AX$257,P$1)","v":187},{"$f":"VLOOKUP(DropDownList!$B$24,CntyQryCensus!$A$239:$AX$257,Q$1)","v":153},{"$f":"VLOOKUP(DropDownList!$B$24,CntyQryCensus!$A$239:$AX$257,R$1)","v":589},{"$f":"VLOOKUP(DropDownList!$B$24,CntyQryCensus!$A$239:$AX$257,S$1)","v":48},{"$f":"VLOOKUP(DropDownList!$B$24,CntyQryCensus!$A$239:$AX$257,T$1)","v":68},{"$f":"VLOOKUP(DropDownList!$B$24,CntyQryCensus!$A$239:$AX$257,U$1)","v":40},{"$f":"VLOOKUP(DropDownList!$B$24,CntyQryCensus!$A$239:$AX$257,V$1)","v":41},{"$f":"VLOOKUP(DropDownList!$B$24,CntyQryCensus!$A$239:$AX$257,W$1)","v":72},{"$f":"VLOOKUP(DropDownList!$B$24,CntyQryCensus!$A$239:$AX$257,X$1)","v":102},{"$f":"VLOOKUP(DropDownList!$B$24,CntyQryCensus!$A$239:$AX$257,Y$1)","v":87},{"$f":"VLOOKUP(DropDownList!$B$24,CntyQryCensus!$A$239:$AX$257,Z$1)","v":92},{"$f":"VLOOKUP(DropDownList!$B$24,CntyQryCensus!$A$239:$AX$257,AA$1)","v":39},{"$f":"VLOOKUP(DropDownList!$B$24,CntyQryCensus!$A$239:$AX$257,AB$1)","v":0},{"$f":"VLOOKUP(DropDownList!$B$24,CntyQryCensus!$A$239:$AX$257,AC$1)","v":0},{"$f":"VLOOKUP(DropDownList!$B$24,CntyQryCensus!$A$239:$AX$257,AD$1)","v":43360},{"$f":"VLOOKUP(DropDownList!$B$24,CntyQryCensus!$A$239:$AX$257,AE$1)","v":49111},{"$f":"VLOOKUP(DropDownList!$B$24,CntyQryCensus!$A$239:$AX$257,AF$1)","v":27781}]
[]
[]
[]
[]
[]
[{"$f":"A96","v":"Wolfeboro"}]
[]
[]
[]
[]
[]
[]
[]
["Census 2000 SummaryFile3 Sample Data - SF3TownQry10Disabil"]
["NAME","LOGRECNO","COUNTY","TotalPop","PCT026001-NonInstPop5yrs+","PCT026002-MaleNonInstPop5yrs+","PCT026003","PCT026004","PCT026005","PCT026006","PCT026007","PCT026008","PCT026009","PCT026010","PCT026011","PCT026012","PCT026013","PCT026014","PCT026015","PCT026016","PCT026017","PCT026018","PCT026019","PCT026020","PCT026021","PCT026022","PCT026023","PCT026024","PCT026025","PCT026026","PCT026027","PCT026028","PCT026029","PCT026030","PCT026031","PCT026032","PCT026033","PCT026034","PCT026035","PCT026036","PCT026037","PCT026038","PCT026039","PCT026040","PCT026041","PCT026042","PCT026043","PCT026044","PCT026045","PCT026046","PCT026047","PCT026048","PCT026049","PCT026050","PCT026051","PCT026052","PCT026053","PCT026054","PCT026055","PCT026056","PCT026057","PCT026058","PCT026059","PCT026060","PCT026061","PCT026062","PCT026063","PCT026064","PCT026065","PCT026066","PCT026067","PCT026068","PCT026069","PCT026070","PCT026071","PCT026072","PCT026073","PCT026074","PCT026075","PCT026076","PCT026077","PCT026078","PCT026079","PCT026080","PCT026081","PCT026082","PCT026083","PCT026084","PCT026085","PCT026086","PCT026087","PCT026088","PCT026089","PCT026090","PCT026091","PCT026092","PCT026093","PCT026094","PCT026095","PCT026096","PCT026097","PCT026098","PCT026099","PCT026100","PCT026101"]
[{"$f":"VLOOKUP(DropDownList!$B$24,CntyQuery!$A$70:$CF$88,A$1)","v":"Wolfeboro"},{"$f":"VLOOKUP(DropDownList!$B$24,CntyQryCensus!$A$266:$DA$284,B$1)","v":"0000440"},{"$f":"VLOOKUP(DropDownList!$B$24,CntyQryCensus!$A$266:$DA$284,C$1)","v":"86420"},{"$f":"VLOOKUP(DropDownList!$B$24,CntyQryCensus!$A$266:$DA$284,D$1)","v":6083},{"$f":"VLOOKUP(DropDownList!$B$24,CntyQryCensus!$A$266:$DA$284,E$1)","v":5719},{"$f":"VLOOKUP(DropDownList!$B$24,CntyQryCensus!$A$266:$DA$284,F$1)","v":2700},{"$f":"VLOOKUP(DropDownList!$B$24,CntyQryCensus!$A$266:$DA$284,G$1)","v":424},{"$f":"VLOOKUP(DropDownList!$B$24,CntyQryCensus!$A$266:$DA$284,H$1)","v":29},{"$f":"VLOOKUP(DropDownList!$B$24,CntyQryCensus!$A$266:$DA$284,I$1)","v":0},{"$f":"VLOOKUP(DropDownList!$B$24,CntyQryCensus!$A$266:$DA$284,J$1)","v":9},{"$f":"VLOOKUP(DropDownList!$B$24,CntyQryCensus!$A$266:$DA$284,K$1)","v":20},{"$f":"VLOOKUP(DropDownList!$B$24,CntyQryCensus!$A$266:$DA$284,L$1)","v":0},{"$f":"VLOOKUP(DropDownList!$B$24,CntyQryCensus!$A$266:$DA$284,M$1)","v":7},{"$f":"VLOOKUP(DropDownList!$B$24,CntyQryCensus!$A$266:$DA$284,N$1)","v":7},{"$f":"VLOOKUP(DropDownList!$B$24,CntyQryCensus!$A$266:$DA$284,O$1)","v":0},{"$f":"VLOOKUP(DropDownList!$B$24,CntyQryCensus!$A$266:$DA$284,P$1)","v":388},{"$f":"VLOOKUP(DropDownList!$B$24,CntyQryCensus!$A$266:$DA$284,Q$1)","v":165},{"$f":"VLOOKUP(DropDownList!$B$24,CntyQryCensus!$A$266:$DA$284,R$1)","v":11},{"$f":"VLOOKUP(DropDownList!$B$24,CntyQryCensus!$A$266:$DA$284,S$1)","v":6},{"$f":"VLOOKUP(DropDownList!$B$24,CntyQryCensus!$A$266:$DA$284,T$1)","v":0},{"$f":"VLOOKUP(DropDownList!$B$24,CntyQryCensus!$A$266:$DA$284,U$1)","v":0},{"$f":"VLOOKUP(DropDownList!$B$24,CntyQryCensus!$A$266:$DA$284,V$1)","v":0},{"$f":"VLOOKUP(DropDownList!$B$24,CntyQryCensus!$A$266:$DA$284,W$1)","v":0},{"$f":"VLOOKUP(DropDownList!$B$24,CntyQryCensus!$A$266:$DA$284,X$1)","v":5},{"$f":"VLOOKUP(DropDownList!$B$24,CntyQryCensus!$A$266:$DA$284,Y$1)","v":10},{"$f":"VLOOKUP(DropDownList!$B$24,CntyQryCensus!$A$266:$DA$284,Z$1)","v":6},{"$f":"VLOOKUP(DropDownList!$B$24,CntyQryCensus!$A$266:$DA$284,AA$1)","v":4},{"$f":"VLOOKUP(DropDownList!$B$24,CntyQryCensus!$A$266:$DA$284,AB$1)","v":4},{"$f":"VLOOKUP(DropDownList!$B$24,CntyQryCensus!$A$266:$DA$284,AC$1)","v":0},{"$f":"VLOOKUP(DropDownList!$B$24,CntyQryCensus!$A$266:$DA$284,AD$1)","v":144},{"$f":"VLOOKUP(DropDownList!$B$24,CntyQryCensus!$A$266:$DA$284,AE$1)","v":1516},{"$f":"VLOOKUP(DropDownList!$B$24,CntyQryCensus!$A$266:$DA$284,AF$1)","v":185},{"$f":"VLOOKUP(DropDownList!$B$24,CntyQryCensus!$A$266:$DA$284,AG$1)","v":49},{"$f":"VLOOKUP(DropDownList!$B$24,CntyQryCensus!$A$266:$DA$284,AH$1)","v":18},{"$f":"VLOOKUP(DropDownList!$B$24,CntyQryCensus!$A$266:$DA$284,AI$1)","v":9},{"$f":"VLOOKUP(DropDownList!$B$24,CntyQryCensus!$A$266:$DA$284,AJ$1)","v":0},{"$f":"VLOOKUP(DropDownList!$B$24,CntyQryCensus!$A$266:$DA$284,AK$1)","v":0},{"$f":"VLOOKUP(DropDownList!$B$24,CntyQryCensus!$A$266:$DA$284,AL$1)","v":109},{"$f":"VLOOKUP(DropDownList!$B$24,CntyQryCensus!$A$266:$DA$284,AM$1)","v":91},{"$f":"VLOOKUP(DropDownList!$B$24,CntyQryCensus!$A$266:$DA$284,AN$1)","v":9},{"$f":"VLOOKUP(DropDownList!$B$24,CntyQryCensus!$A$266:$DA$284,AO$1)","v":82},{"$f":"VLOOKUP(DropDownList!$B$24,CntyQryCensus!$A$266:$DA$284,AP$1)","v":31},{"$f":"VLOOKUP(DropDownList!$B$24,CntyQryCensus!$A$266:$DA$284,AQ$1)","v":51},{"$f":"VLOOKUP(DropDownList!$B$24,CntyQryCensus!$A$266:$DA$284,AR$1)","v":1240},{"$f":"VLOOKUP(DropDownList!$B$24,CntyQryCensus!$A$266:$DA$284,AS$1)","v":595},{"$f":"VLOOKUP(DropDownList!$B$24,CntyQryCensus!$A$266:$DA$284,AT$1)","v":101},{"$f":"VLOOKUP(DropDownList!$B$24,CntyQryCensus!$A$266:$DA$284,AU$1)","v":23},{"$f":"VLOOKUP(DropDownList!$B$24,CntyQryCensus!$A$266:$DA$284,AV$1)","v":53},{"$f":"VLOOKUP(DropDownList!$B$24,CntyQryCensus!$A$266:$DA$284,AW$1)","v":0},{"$f":"VLOOKUP(DropDownList!$B$24,CntyQryCensus!$A$266:$DA$284,AX$1)","v":0},{"$f":"VLOOKUP(DropDownList!$B$24,CntyQryCensus!$A$266:$DA$284,AY$1)","v":25},{"$f":"VLOOKUP(DropDownList!$B$24,CntyQryCensus!$A$266:$DA$284,AZ$1)","v":92},{"$f":"VLOOKUP(DropDownList!$B$24,CntyQryCensus!$A$266:$DA$284,BA$1)","v":41},{"$f":"VLOOKUP(DropDownList!$B$24,CntyQryCensus!$A$266:$DA$284,BB$1)","v":51},{"$f":"VLOOKUP(DropDownList!$B$24,CntyQryCensus!$A$266:$DA$284,BC$1)","v":402},{"$f":"VLOOKUP(DropDownList!$B$24,CntyQryCensus!$A$266:$DA$284,BD$1)","v":3019},{"$f":"VLOOKUP(DropDownList!$B$24,CntyQryCensus!$A$266:$DA$284,BE$1)","v":462},{"$f":"VLOOKUP(DropDownList!$B$24,CntyQryCensus!$A$266:$DA$284,BF$1)","v":25},{"$f":"VLOOKUP(DropDownList!$B$24,CntyQryCensus!$A$266:$DA$284,BG$1)","v":0},{"$f":"VLOOKUP(DropDownList!$B$24,CntyQryCensus!$A$266:$DA$284,BH$1)","v":0},{"$f":"VLOOKUP(DropDownList!$B$24,CntyQryCensus!$A$266:$DA$284,BI$1)","v":25},{"$f":"VLOOKUP(DropDownList!$B$24,CntyQryCensus!$A$266:$DA$284,BJ$1)","v":0},{"$f":"VLOOKUP(DropDownList!$B$24,CntyQryCensus!$A$266:$DA$284,BK$1)","v":0},{"$f":"VLOOKUP(DropDownList!$B$24,CntyQryCensus!$A$266:$DA$284,BL$1)","v":0},{"$f":"VLOOKUP(DropDownList!$B$24,CntyQryCensus!$A$266:$DA$284,BM$1)","v":0},{"$f":"VLOOKUP(DropDownList!$B$24,CntyQryCensus!$A$266:$DA$284,BN$1)","v":437},{"$f":"VLOOKUP(DropDownList!$B$24,CntyQryCensus!$A$266:$DA$284,BO$1)","v":168},{"$f":"VLOOKUP(DropDownList!$B$24,CntyQryCensus!$A$266:$DA$284,BP$1)","v":37},{"$f":"VLOOKUP(DropDownList!$B$24,CntyQryCensus!$A$266:$DA$284,BQ$1)","v":0},{"$f":"VLOOKUP(DropDownList!$B$24,CntyQryCensus!$A$266:$DA$284,BR$1)","v":0},{"$f":"VLOOKUP(DropDownList!$B$24,CntyQryCensus!$A$266:$DA$284,BS$1)","v":0},{"$f":"VLOOKUP(DropDownList!$B$24,CntyQryCensus!$A$266:$DA$284,BT$1)","v":0},{"$f":"VLOOKUP(DropDownList!$B$24,CntyQryCensus!$A$266:$DA$284,BU$1)","v":10},{"$f":"VLOOKUP(DropDownList!$B$24,CntyQryCensus!$A$266:$DA$284,BV$1)","v":27},{"$f":"VLOOKUP(DropDownList!$B$24,CntyQryCensus!$A$266:$DA$284,BW$1)","v":0},{"$f":"VLOOKUP(DropDownList!$B$24,CntyQryCensus!$A$266:$DA$284,BX$1)","v":0},{"$f":"VLOOKUP(DropDownList!$B$24,CntyQryCensus!$A$266:$DA$284,BY$1)","v":0},{"$f":"VLOOKUP(DropDownList!$B$24,CntyQryCensus!$A$266:$DA$284,BZ$1)","v":0},{"$f":"VLOOKUP(DropDownList!$B$24,CntyQryCensus!$A$266:$DA$284,CA$1)","v":0},{"$f":"VLOOKUP(DropDownList!$B$24,CntyQryCensus!$A$266:$DA$284,CB$1)","v":131},{"$f":"VLOOKUP(DropDownList!$B$24,CntyQryCensus!$A$266:$DA$284,CC$1)","v":1581},{"$f":"VLOOKUP(DropDownList!$B$24,CntyQryCensus!$A$266:$DA$284,CD$1)","v":85},{"$f":"VLOOKUP(DropDownList!$B$24,CntyQryCensus!$A$266:$DA$284,CE$1)","v":6},{"$f":"VLOOKUP(DropDownList!$B$24,CntyQryCensus!$A$266:$DA$284,CF$1)","v":24},{"$f":"VLOOKUP(DropDownList!$B$24,CntyQryCensus!$A$266:$DA$284,CG$1)","v":0},{"$f":"VLOOKUP(DropDownList!$B$24,CntyQryCensus!$A$266:$DA$284,CH$1)","v":0},{"$f":"VLOOKUP(DropDownList!$B$24,CntyQryCensus!$A$266:$DA$284,CI$1)","v":0},{"$f":"VLOOKUP(DropDownList!$B$24,CntyQryCensus!$A$266:$DA$284,CJ$1)","v":55},{"$f":"VLOOKUP(DropDownList!$B$24,CntyQryCensus!$A$266:$DA$284,CK$1)","v":90},{"$f":"VLOOKUP(DropDownList!$B$24,CntyQryCensus!$A$266:$DA$284,CL$1)","v":6},{"$f":"VLOOKUP(DropDownList!$B$24,CntyQryCensus!$A$266:$DA$284,CM$1)","v":84},{"$f":"VLOOKUP(DropDownList!$B$24,CntyQryCensus!$A$266:$DA$284,CN$1)","v":27},{"$f":"VLOOKUP(DropDownList!$B$24,CntyQryCensus!$A$266:$DA$284,CO$1)","v":57},{"$f":"VLOOKUP(DropDownList!$B$24,CntyQryCensus!$A$266:$DA$284,CP$1)","v":1406},{"$f":"VLOOKUP(DropDownList!$B$24,CntyQryCensus!$A$266:$DA$284,CQ$1)","v":808},{"$f":"VLOOKUP(DropDownList!$B$24,CntyQryCensus!$A$266:$DA$284,CR$1)","v":199},{"$f":"VLOOKUP(DropDownList!$B$24,CntyQryCensus!$A$266:$DA$284,CS$1)","v":44},{"$f":"VLOOKUP(DropDownList!$B$24,CntyQryCensus!$A$266:$DA$284,CT$1)","v":121},{"$f":"VLOOKUP(DropDownList!$B$24,CntyQryCensus!$A$266:$DA$284,CU$1)","v":8},{"$f":"VLOOKUP(DropDownList!$B$24,CntyQryCensus!$A$266:$DA$284,CV$1)","v":0},{"$f":"VLOOKUP(DropDownList!$B$24,CntyQryCensus!$A$266:$DA$284,CW$1)","v":26},{"$f":"VLOOKUP(DropDownList!$B$24,CntyQryCensus!$A$266:$DA$284,CX$1)","v":130},{"$f":"VLOOKUP(DropDownList!$B$24,CntyQryCensus!$A$266:$DA$284,CY$1)","v":52},{"$f":"VLOOKUP(DropDownList!$B$24,CntyQryCensus!$A$266:$DA$284,CZ$1)","v":78},{"$f":"VLOOKUP(DropDownList!$B$24,CntyQryCensus!$A$266:$DA$284,DA$1)","v":479}]
[]
[]
[]
[]
[]
[]
[]
[]
["ACS",2,{"$f":"B105+1","v":3},{"$f":"C105+1","v":4},5,6,7,8,9,10,11,{"$f":"K105+1","v":12},13,14,15,{"$f":"O105+1","v":16},17,18,19,20,21,22,23,24,25,26,27,28,29,30,31,32,33,34,35,36,37,38,39,40,41,42,43,44,45,46,47,48,49,50,51,52,53,54,55,56,57,58,59,60,61,62,63,64,65,66,67,{"$f":"BO105+1","v":68},69,70,71,72,73,74,75,76,77,78,79,80,81,82,83,84,85,86,87,88,89,90,91,92,93,94,95,96,97,98,99,100,101,102,103,104,105,106,107,108,109,110,111,112,113,114,115,116,117,118,119,120,121,122,123,124,125]
["Househould Data (Housing Unit Type)"]
["NAME","TotalHU",{"$f":"\"MOE \"&B107","v":"MOE TotalHU"},"TotalOccHU",{"$f":"\"MOE \"&D107","v":"MOE TotalOccHU"},"TotalOwnerOccUn",{"$f":"\"MOE \"&F107","v":"MOE TotalOwnerOccUn"},"TotalRenterOccn",{"$f":"\"MOE \"&H107","v":"MOE TotalRenterOccn"},"TotalVacantUntis",{"$f":"\"MOE \"&J107","v":"MOE TotalVacantUntis"},"VacantUnitsForRent",{"$f":"\"MOE \"&L107","v":"MOE VacantUnitsForRent"},"VacantUnitRentedNotOcc",{"$f":"\"MOE \"&N107","v":"MOE VacantUnitRentedNotOcc"},"VacantUnitForSale",{"$f":"\"MOE \"&P107","v":"MOE VacantUnitForSale"},"VacantUnitSoldNotOcc",{"$f":"\"MOE \"&R107","v":"MOE VacantUnitSoldNotOcc"},"VacantUnitSeasonalRec",{"$f":"\"MOE \"&T107","v":"MOE VacantUnitSeasonalRec"},"TotalPopInHousingUnits",{"$f":"\"MOE \"&V107","v":"MOE TotalPopInHousingUnits"},"OwnerOccPopHousingUnits",{"$f":"\"MOE \"&X107","v":"MOE OwnerOccPopHousingUnits"},"RenterOccPopHousingUnits",{"$f":"\"MOE \"&Z107","v":"MOE RenterOccPopHousingUnits"},"TotalUntis",{"$f":"\"MOE \"&AB107","v":"MOE TotalUntis"},"TotalOwnerOccUnits",{"$f":"\"MOE \"&AD107","v":"MOE TotalOwnerOccUnits"},"SigFamOwnerOcc",{"$f":"\"MOE \"&AF107","v":"MOE SigFamOwnerOcc"},"MultiFamOwnerOcc",{"$f":"\"MOE \"&AH107","v":"MOE MultiFamOwnerOcc"},"MobileOwnerOcc",{"$f":"\"MOE \"&AJ107","v":"MOE MobileOwnerOcc"},"TotalRenterOccUnits",{"$f":"\"MOE \"&AL107","v":"MOE TotalRenterOccUnits"},"SigFamRenterOcc",{"$f":"\"MOE \"&AN107","v":"MOE SigFamRenterOcc"},"MultiFamRenterOcc",{"$f":"\"MOE \"&AP107","v":"MOE MultiFamRenterOcc"},"MobileRenterOcc",{"$f":"\"MOE \"&AR107","v":"MOE MobileRenterOcc"},"TotalSigFamilyUnits",{"$f":"\"MOE \"&AT107","v":"MOE TotalSigFamilyUnits"},"TotalMultiFamilyUnits",{"$f":"\"MOE \"&AV107","v":"MOE TotalMultiFamilyUnits"},"TotalMobileUnits",{"$f":"\"MOE \"&AX107","v":"MOE TotalMobileUnits"},"YrHouseBuilt2014Later",{"$f":"\"MOE \"&AZ107","v":"MOE YrHouseBuilt2014Later"},"YrHouseBuilt2010-2013",{"$f":"\"MOE \"&BB107","v":"MOE YrHouseBuilt2010-2013"},"YrHouseBuilt2000-2009",{"$f":"\"MOE \"&BD107","v":"MOE YrHouseBuilt2000-2009"},"YrHouseBuilt1990-1999",{"$f":"\"MOE \"&BF107","v":"MOE YrHouseBuilt1990-1999"},"YrHouseBuilt1980-1989",{"$f":"\"MOE \"&BH107","v":"MOE YrHouseBuilt1980-1989"},"YrHouseBuilt1970-1979",{"$f":"\"MOE \"&BJ107","v":"MOE YrHouseBuilt1970-1979"},"YrHouseBuilt1960-1969",{"$f":"\"MOE \"&BL107","v":"MOE YrHouseBuilt1960-1969"},"YrHouseBuilt1950-1959",{"$f":"\"MOE \"&BN107","v":"MOE YrHouseBuilt1950-1959"},"YrHouseBuilt1940-1949",{"$f":"\"MOE \"&BP107","v":"MOE YrHouseBuilt1940-1949"},"YrHouseBuilt1939orEarlier",{"$f":"\"MOE \"&BR107","v":"MOE YrHouseBuilt1939orEarlier"},"NoBedrooms",{"$f":"\"MOE \"&BT107","v":"MOE NoBedrooms"},"1Bedroom",{"$f":"\"MOE \"&BV107","v":"MOE 1Bedroom"},"2Bedroom",{"$f":"\"MOE \"&BX107","v":"MOE 2Bedroom"},"3Bedroom",{"$f":"\"MOE \"&BZ107","v":"MOE 3Bedroom"},"4+Bedroom",{"$f":"\"MOE \"&CB107","v":"MOE 4+Bedroom"}]
[{"$f":"VLOOKUP(DropDownList!$B$24,CntyQuery!$A$70:$CF$88,A$1)","v":"Wolfeboro"},4285,287,2787,260,2165,270,622,231,1498,272,0,17,0,17,54,86,54,87,1375,251,6332,19,5299,400,1033,401,2787,260,2165,270,1801,283,203,109.45318634009702,161,135.07405376311175,622,231,257,130,344,200.71870864471003,21,36.235341863986875,3434,374,634,254.59968578142431,217,144.00694427700353,0,17,138,84,526,192,681,234,1013,263,458,218,312,138,112,96,218,135,827,276,122,88,287,147,1073,267,1883,289,920,281.44093518889537]
[]
["Disability Data"]
["NAME","TotalPop",{"$f":"\"MOE \"&B111","v":"MOE TotalPop"},"PopUnder 5 years:",{"$f":"\"MOE \"&D111","v":"MOE PopUnder 5 years:"},{"$f":"D$111&\"-WithDisability\"","v":"PopUnder 5 years:-WithDisability"},{"$f":"\"MOE \"&F111","v":"MOE PopUnder 5 years:-WithDisability"},{"$f":"D111&\"-NoDisability\"","v":"PopUnder 5 years:-NoDisability"},{"$f":"\"MOE \"&H111","v":"MOE PopUnder 5 years:-NoDisability"},"PopUnder 5 to 17years:",{"$f":"\"MOE \"&J111","v":"MOE PopUnder 5 to 17years:"},{"$f":"J$111&\"-WithDisability\"","v":"PopUnder 5 to 17years:-WithDisability"},{"$f":"\"MOE \"&L111","v":"MOE PopUnder 5 to 17years:-WithDisability"},{"$f":"J111&\"-NoDisability\"","v":"PopUnder 5 to 17years:-NoDisability"},{"$f":"\"MOE \"&N111","v":"MOE PopUnder 5 to 17years:-NoDisability"},"PopUnder 18 to 34 years:",{"$f":"\"MOE \"&P111","v":"MOE PopUnder 18 to 34 years:"},{"$f":"P$111&\"-WithDisability\"","v":"PopUnder 18 to 34 years:-WithDisability"},{"$f":"\"MOE \"&R111","v":"MOE PopUnder 18 to 34 years:-WithDisability"},{"$f":"P111&\"-NoDisability\"","v":"PopUnder 18 to 34 years:-NoDisability"},{"$f":"\"MOE \"&T111","v":"MOE PopUnder 18 to 34 years:-NoDisability"},"Pop 35 years to 64:",{"$f":"\"MOE \"&V111","v":"MOE Pop 35 years to 64:"},{"$f":"$V$111&\"-WithDisability\"","v":"Pop 35 years to 64:-WithDisability"},{"$f":"\"MOE \"&X111","v":"MOE Pop 35 years to 64:-WithDisability"},{"$f":"$V$111&\"-NoDisability\"","v":"Pop 35 years to 64:-NoDisability"},{"$f":"\"MOE \"&Z111","v":"MOE Pop 35 years to 64:-NoDisability"},"Pop 65 years to 74:",{"$f":"\"MOE \"&AB111","v":"MOE Pop 65 years to 74:"},{"$f":"$AB$111&\"-WithDisability\"","v":"Pop 65 years to 74:-WithDisability"},{"$f":"\"MOE \"&AD111","v":"MOE Pop 65 years to 74:-WithDisability"},{"$f":"$AB$111&\"-NoDisability\"","v":"Pop 65 years to 74:-NoDisability"},{"$f":"\"MOE \"&AF111","v":"MOE Pop 65 years to 74:-NoDisability"},"Pop 75 and older:",{"$f":"\"MOE \"&AH111","v":"MOE Pop 75 and older:"},{"$f":"$AH$111&\"-WithDisability\"","v":"Pop 75 and older:-WithDisability"},{"$f":"\"MOE \"&AJ111","v":"MOE Pop 75 and older:-WithDisability"},{"$f":"$AH$111&\"-NoDisability\"","v":"Pop 75 and older:-NoDisability"},{"$f":"\"MOE \"&AL111","v":"MOE Pop 75 and older:-NoDisability"},"TotalPopUnder5_HearingDisability",{"$f":"\"MOE \"&AN111","v":"MOE TotalPopUnder5_HearingDisability"},"TotalUnder5_HearingDisability",{"$f":"\"MOE \"&AP111","v":"MOE TotalUnder5_HearingDisability"},"TotalPop18To34_HearingDisability",{"$f":"\"MOE \"&AR111","v":"MOE TotalPop18To34_HearingDisability"},"TotalPop35To64_HearingDisability",{"$f":"\"MOE \"&AT111","v":"MOE TotalPop35To64_HearingDisability"},"TotalPop65To74_HearingDisability",{"$f":"\"MOE \"&AV111","v":"MOE TotalPop65To74_HearingDisability"},"TotalPop75andOlder_HearingDisability",{"$f":"\"MOE \"&AX111","v":"MOE TotalPop75andOlder_HearingDisability"},"TotalUnder5_VisionDisability",{"$f":"\"MOE \"&AZ111","v":"MOE TotalUnder5_VisionDisability"},"Total5To17_VisionDisability",{"$f":"\"MOE \"&BB111","v":"MOE Total5To17_VisionDisability"},"Total18To34_VisionDisability",{"$f":"\"MOE \"&BD111","v":"MOE Total18To34_VisionDisability"},"Total35To64_VisionDisability",{"$f":"\"MOE \"&BF111","v":"MOE Total35To64_VisionDisability"},"Total65To74_VisionDisability",{"$f":"\"MOE \"&BH111","v":"MOE Total65To74_VisionDisability"},"Total75andOlder_VisionDisability",{"$f":"\"MOE \"&BJ111","v":"MOE Total75andOlder_VisionDisability"},"Total5To17_CongnitiveDisability",{"$f":"\"MOE \"&BL111","v":"MOE Total5To17_CongnitiveDisability"},"Total18To34_CongnitiveDisability",{"$f":"\"MOE \"&BN111","v":"MOE Total18To34_CongnitiveDisability"},"Total35To64_CongnitiveDisability",{"$f":"\"MOE \"&BP111","v":"MOE Total35To64_CongnitiveDisability"},"Total65To74_CongnitiveDisability",{"$f":"\"MOE \"&BR111","v":"MOE Total65To74_CongnitiveDisability"},"Total75andOlder_CongnitiveDisability",{"$f":"\"MOE \"&BT111","v":"MOE Total75andOlder_CongnitiveDisability"},"Total5To17_AmbulatoryDisability",{"$f":"\"MOE \"&BV111","v":"MOE Total5To17_AmbulatoryDisability"},"Total18To34_AmbulatoryDisability",{"$f":"\"MOE \"&BX111","v":"MOE Total18To34_AmbulatoryDisability"},"Total35To64_AmbulatoryDisability",{"$f":"\"MOE \"&BZ111","v":"MOE Total35To64_AmbulatoryDisability"},"Total65To74_AmbulatoryDisability",{"$f":"\"MOE \"&CB111","v":"MOE Total65To74_AmbulatoryDisability"},"Total75andOlder_AmbulatoryDisability",{"$f":"\"MOE \"&CD111","v":"MOE Total75andOlder_AmbulatoryDisability"},"Total5To17_SelfCareDisability",{"$f":"\"MOE \"&CF111","v":"MOE Total5To17_SelfCareDisability"},"Total18To34_SelfCareDisability",{"$f":"\"MOE \"&CH111","v":"MOE Total18To34_SelfCareDisability"},"Total35To64_SelfCareDisability",{"$f":"\"MOE \"&CJ111","v":"MOE Total35To64_SelfCareDisability"},"Total65To74_SelfCareDisability",{"$f":"\"MOE \"&CL111","v":"MOE Total65To74_SelfCareDisability"},"Total75andOlder_SelfCareDisability",{"$f":"\"MOE \"&CN111","v":"MOE Total75andOlder_SelfCareDisability"},"Total18To34_IndependantLivingDisability",{"$f":"\"MOE \"&CP111","v":"MOE Total18To34_IndependantLivingDisability"},"Total35To64_IndependantLivingDisability",{"$f":"\"MOE \"&CR111","v":"MOE Total35To64_IndependantLivingDisability"},"Total65To74_IndependantLivingDisability",{"$f":"\"MOE \"&CT111","v":"MOE Total65To74_IndependantLivingDisability"},"Total75andOlder_IndependantLivingDisability",{"$f":"\"MOE \"&CV111","v":"MOE Total75andOlder_IndependantLivingDisability"},"TotalUnder18_OneDisability",{"$f":"\"MOE \"&CX111","v":"MOE TotalUnder18_OneDisability"},"TotalUnder18_TwoDisability",{"$f":"\"MOE \"&CZ111","v":"MOE TotalUnder18_TwoDisability"},"18to6YearWIthOneDisability",{"$f":"\"MOE \"&DB111","v":"MOE 18to6YearWIthOneDisability"},"18to64YearWIthTwoOrMoreDisability",{"$f":"\"MOE \"&DD111","v":"MOE 18to64YearWIthTwoOrMoreDisability"},"Over64YearsWIthOneDisability",{"$f":"\"MOE \"&DF111","v":"MOE Over64YearsWIthOneDisability"},"Over64YearsWIthTwoOrMoreDisability",{"$f":"\"MOE \"&DH111","v":"MOE Over64YearsWIthTwoOrMoreDisability"}]
[{"$f":"VLOOKUP(DropDownList!$B$24,CntyQuery!$A$70:$CF$88,A$1)","v":"Wolfeboro"},6383,16,26,38.013155617496423,0,24.041630560342615,26,38.013155617496423,817,195.64508682816444,72,72.47068372797375,745,208.85641000457707,657,280.23204670415549,29,56.612719418872643,628,277.71388153997634,2721,359.31045072471801,316,174.62244987400675,2405,355.02816789657692,983,239.00836805434241,151,116.27553482998907,832,225.22211259110415,1179,215.23243250030885,532,212.13674834879504,647,163.93291310777101,0,24.041630560342615,0,24.041630560342615,0,24.041630560342615,20,36.235341863986875,101,109.11003620199197,338,155.46703830716015,0,24.041630560342615,0,24.041630560342615,0,24.041630560342615,59,94.540996398387932,20,31.064449134018133,206,137.7679207943562,72,72.47068372797375,29,56.612719418872643,285,168.83423823383691,0,24.041630560342615,206,129.84991336154215,0,22.627416997969522,30,41.231056256176608,67,56.797887284651708,138,91.214034007931033,87,54.405882034941776,13,24.041630560342615,18,51.86520991955976,213,164.7573974060042,0,24.041630560342615,165,103.94229168149026,11,25.495097567963924,154,137.05838172107534,4,18.384776310850235,209,124.48293055676348,59,59,13,17,103,79,242,156,275,149,408,184]
[]
["Househould Income By Age"]
["NAME","TotalHouseholds",{"$f":"\"MOE \"&B115","v":"MOE TotalHouseholds"},"HHInc<10K",{"$f":"\"MOE \"&D115","v":"MOE HHInc<10K"},"HHInc10to15K",{"$f":"\"MOE \"&F115","v":"MOE HHInc10to15K"},"HHInc15to20K",{"$f":"\"MOE \"&H115","v":"MOE HHInc15to20K"},"HHInc20to25K",{"$f":"\"MOE \"&J115","v":"MOE HHInc20to25K"},"HHInc25to30K",{"$f":"\"MOE \"&L115","v":"MOE HHInc25to30K"},"HHInc30to35K",{"$f":"\"MOE \"&N115","v":"MOE HHInc30to35K"},"HHInc35to40K",{"$f":"\"MOE \"&P115","v":"MOE HHInc35to40K"},"HHInc40to45K",{"$f":"\"MOE \"&R115","v":"MOE HHInc40to45K"},"HHInc45to50K",{"$f":"\"MOE \"&T115","v":"MOE HHInc45to50K"},"HHInc50to60K",{"$f":"\"MOE \"&V115","v":"MOE HHInc50to60K"},"HHInc60to75K",{"$f":"\"MOE \"&X115","v":"MOE HHInc60to75K"},"HHInc75to100K",{"$f":"\"MOE \"&Z115","v":"MOE HHInc75to100K"},"HHInc100to125K",{"$f":"\"MOE \"&AB115","v":"MOE HHInc100to125K"},"HHInc125to150K",{"$f":"\"MOE \"&AD115","v":"MOE HHInc125to150K"},"HHInc150to200K",{"$f":"\"MOE \"&AF115","v":"MOE HHInc150to200K"},"HHInc>200K",{"$f":"\"MOE \"&AH115","v":"MOE HHInc>200K"},"TotalHH",{"$f":"\"MOE \"&AJ115","v":"MOE TotalHH"},"HHAgeHHUnder25yrs",{"$f":"\"MOE \"&AL115","v":"MOE HHAgeHHUnder25yrs"},"HHAgeHH<25HHInc<10K",{"$f":"\"MOE \"&AN115","v":"MOE HHAgeHH<25HHInc<10K"},"HHAgeHH<25HHInc10to15K",{"$f":"\"MOE \"&AP115","v":"MOE HHAgeHH<25HHInc10to15K"},"HHAgeHH<25HHInc15to20K",{"$f":"\"MOE \"&AR115","v":"MOE HHAgeHH<25HHInc15to20K"},"HHAgeHH<25HHInc20to25K",{"$f":"\"MOE \"&AT115","v":"MOE HHAgeHH<25HHInc20to25K"},"HHAgeHH<25HHInc25to30K",{"$f":"\"MOE \"&AV115","v":"MOE HHAgeHH<25HHInc25to30K"},"HHAgeHH<25HHInc30to35K",{"$f":"\"MOE \"&AX115","v":"MOE HHAgeHH<25HHInc30to35K"},"HHAgeHH<25HHInc35to40K",{"$f":"\"MOE \"&AZ115","v":"MOE HHAgeHH<25HHInc35to40K"},"HHAgeHH<25HHInc40to45K",{"$f":"\"MOE \"&BB115","v":"MOE HHAgeHH<25HHInc40to45K"},"HHAgeHH<25HHInc45to50K",{"$f":"\"MOE \"&BD115","v":"MOE HHAgeHH<25HHInc45to50K"},"HHAgeHH<25HHInc50to60K",{"$f":"\"MOE \"&BF115","v":"MOE HHAgeHH<25HHInc50to60K"},"HHAgeHH<25HHInc60to75K",{"$f":"\"MOE \"&BH115","v":"MOE HHAgeHH<25HHInc60to75K"},"HHAgeHH<25HHInc75to100K",{"$f":"\"MOE \"&BJ115","v":"MOE HHAgeHH<25HHInc75to100K"},"HHAgeHH<25HHInc100to125K",{"$f":"\"MOE \"&BL115","v":"MOE HHAgeHH<25HHInc100to125K"},"HHAgeHH<25HHInc125to150K",{"$f":"\"MOE \"&BN115","v":"MOE HHAgeHH<25HHInc125to150K"},"HHAgeHH<25HHInc150to200K",{"$f":"\"MOE \"&BP115","v":"MOE HHAgeHH<25HHInc150to200K"},"HHAge<25HHInc>200K",{"$f":"\"MOE \"&BR115","v":"MOE HHAge<25HHInc>200K"},"HHAgeHH25to44yrs",{"$f":"\"MOE \"&BT115","v":"MOE HHAgeHH25to44yrs"},"HHAgeHH25To44yrsHHInc<10K",{"$f":"\"MOE \"&BV115","v":"MOE HHAgeHH25To44yrsHHInc<10K"},"HHAgeHH25To44yrsHHInc10to15K",{"$f":"\"MOE \"&BX115","v":"MOE HHAgeHH25To44yrsHHInc10to15K"},"HHAgeHH25To44yrsHHInc15to20K",{"$f":"\"MOE \"&BZ115","v":"MOE HHAgeHH25To44yrsHHInc15to20K"},"HHAgeHH25To44yrsHHInc20to25K",{"$f":"\"MOE \"&CB115","v":"MOE HHAgeHH25To44yrsHHInc20to25K"},"HHAgeHH25To44yrsHHInc25to30K",{"$f":"\"MOE \"&CD115","v":"MOE HHAgeHH25To44yrsHHInc25to30K"},"HHAgeHH25To44yrsHHInc30to35K",{"$f":"\"MOE \"&CF115","v":"MOE HHAgeHH25To44yrsHHInc30to35K"},"HHAgeHH25To44yrsHHInc35to40K",{"$f":"\"MOE \"&CH115","v":"MOE HHAgeHH25To44yrsHHInc35to40K"},"HHAgeHH25To44yrsHHInc40to45K",{"$f":"\"MOE \"&CJ115","v":"MOE HHAgeHH25To44yrsHHInc40to45K"},"HHAgeHH25To44yrsHHInc45to50K",{"$f":"\"MOE \"&CL115","v":"MOE HHAgeHH25To44yrsHHInc45to50K"},"HHAgeHH25To44yrsHHInc50to60K",{"$f":"\"MOE \"&CN115","v":"MOE HHAgeHH25To44yrsHHInc50to60K"},"HHAgeHH25To44yrsHHInc60to75K",{"$f":"\"MOE \"&CP115","v":"MOE HHAgeHH25To44yrsHHInc60to75K"},"HHAgeHH25To44yrsHHInc75to100K",{"$f":"\"MOE \"&CR115","v":"MOE HHAgeHH25To44yrsHHInc75to100K"},"HHAgeHH25To44yrsHHInc100to125K",{"$f":"\"MOE \"&CT115","v":"MOE HHAgeHH25To44yrsHHInc100to125K"},"HHAgeHH25To44yrsHHInc125to150K",{"$f":"\"MOE \"&CV115","v":"MOE HHAgeHH25To44yrsHHInc125to150K"},"HHAgeHH25To44yrsHHInc150to200K",{"$f":"\"MOE \"&CX115","v":"MOE HHAgeHH25To44yrsHHInc150to200K"},"HHAge25To44yrsHHInc>200K",{"$f":"\"MOE \"&CZ115","v":"MOE HHAge25To44yrsHHInc>200K"},"HHAgeHH45To64yrs",{"$f":"\"MOE \"&DB115","v":"MOE HHAgeHH45To64yrs"},"HHAgeHH45To64yrsHHInc<10K",{"$f":"\"MOE \"&DD115","v":"MOE HHAgeHH45To64yrsHHInc<10K"},"HHAgeHH45To64yrsHHInc10to15K",{"$f":"\"MOE \"&DF115","v":"MOE HHAgeHH45To64yrsHHInc10to15K"},"HHAgeHH45To64yrsHHInc15to20K",{"$f":"\"MOE \"&DH115","v":"MOE HHAgeHH45To64yrsHHInc15to20K"},"HHAgeHH45To64yrsHHInc20to25K",{"$f":"\"MOE \"&DJ115","v":"MOE HHAgeHH45To64yrsHHInc20to25K"},"HHAgeHH45To64yrsHHInc25to30K",{"$f":"\"MOE \"&DL115","v":"MOE HHAgeHH45To64yrsHHInc25to30K"},"HHAgeHH45To64yrsHHInc30to35K",{"$f":"\"MOE \"&DN115","v":"MOE HHAgeHH45To64yrsHHInc30to35K"},"HHAgeHH45To64yrsHHInc35to40K",{"$f":"\"MOE \"&DP115","v":"MOE HHAgeHH45To64yrsHHInc35to40K"},"HHAgeHH45To64yrsHHInc40to45K",{"$f":"\"MOE \"&DR115","v":"MOE HHAgeHH45To64yrsHHInc40to45K"},"HHAgeHH45To64yrsHHInc45to50K",{"$f":"\"MOE \"&DT115","v":"MOE HHAgeHH45To64yrsHHInc45to50K"},"HHAgeHH45To64yrsHHInc50to60K",{"$f":"\"MOE \"&DV115","v":"MOE HHAgeHH45To64yrsHHInc50to60K"},"HHAgeHH45To64yrsHHInc60to75K",{"$f":"\"MOE \"&DX115","v":"MOE HHAgeHH45To64yrsHHInc60to75K"},"HHAgeHH45To64yrsHHInc75to100K",{"$f":"\"MOE \"&DZ115","v":"MOE HHAgeHH45To64yrsHHInc75to100K"},"HHAgeHH45To64yrsHHInc100to125K",{"$f":"\"MOE \"&EB115","v":"MOE HHAgeHH45To64yrsHHInc100to125K"},"HHAgeHH45To64yrsHHInc125to150K",{"$f":"\"MOE \"&ED115","v":"MOE HHAgeHH45To64yrsHHInc125to150K"},"HHAgeHH45To64yrsHHInc150to200K",{"$f":"\"MOE \"&EF115","v":"MOE HHAgeHH45To64yrsHHInc150to200K"},"HHAge45To64yrsHHInc>200K",{"$f":"\"MOE \"&EH115","v":"MOE HHAge45To64yrsHHInc>200K"},"HHAgeHH65yrsorOlder",{"$f":"\"MOE \"&EJ115","v":"MOE HHAgeHH65yrsorOlder"},"HHAgeHH65yrsorOlderHHInc<10K",{"$f":"\"MOE \"&EL115","v":"MOE HHAgeHH65yrsorOlderHHInc<10K"},"HHAgeHH65yrsorOlderHHInc10to15K",{"$f":"\"MOE \"&EN115","v":"MOE HHAgeHH65yrsorOlderHHInc10to15K"},"HHAgeHH65yrsorOlderHHInc15to20K",{"$f":"\"MOE \"&EP115","v":"MOE HHAgeHH65yrsorOlderHHInc15to20K"},"HHAgeHH65yrsorOlderHHInc20to25K",{"$f":"\"MOE \"&ER115","v":"MOE HHAgeHH65yrsorOlderHHInc20to25K"},"HHAgeHH65yrsorOlderHHInc25to30K",{"$f":"\"MOE \"&ET115","v":"MOE HHAgeHH65yrsorOlderHHInc25to30K"},"HHAgeHH65yrsorOlderHHInc30to35K",{"$f":"\"MOE \"&EV115","v":"MOE HHAgeHH65yrsorOlderHHInc30to35K"},"HHAgeHH65yrsorOlderHHInc35to40K",{"$f":"\"MOE \"&EX115","v":"MOE HHAgeHH65yrsorOlderHHInc35to40K"},"HHAgeHH65yrsorOlderHHInc40to45K",{"$f":"\"MOE \"&EZ115","v":"MOE HHAgeHH65yrsorOlderHHInc40to45K"},"HHAgeHH65yrsorOlderHHInc45to50K",{"$f":"\"MOE \"&FB115","v":"MOE HHAgeHH65yrsorOlderHHInc45to50K"},"HHAgeHH65yrsorOlderHHInc50to60K",{"$f":"\"MOE \"&FD115","v":"MOE HHAgeHH65yrsorOlderHHInc50to60K"},"HHAgeHH65yrsorOlderHHInc60to75K",{"$f":"\"MOE \"&FF115","v":"MOE HHAgeHH65yrsorOlderHHInc60to75K"},"HHAgeHH65yrsorOlderHHInc75to100K",{"$f":"\"MOE \"&FH115","v":"MOE HHAgeHH65yrsorOlderHHInc75to100K"},"HHAgeHH65yrsorOlderHHInc100to125K",{"$f":"\"MOE \"&FJ115","v":"MOE HHAgeHH65yrsorOlderHHInc100to125K"},"HHAgeHH65yrsorOlderHHInc125to150K",{"$f":"\"MOE \"&FL115","v":"MOE HHAgeHH65yrsorOlderHHInc125to150K"},"HHAgeHH65yrsorOlderHHInc150to200K",{"$f":"\"MOE \"&FN115","v":"MOE HHAgeHH65yrsorOlderHHInc150to200K"},"HHAge65yrsorOlderHHInc>200K",{"$f":"\"MOE \"&FP115","v":"MOE HHAge65yrsorOlderHHInc>200K"},"MedianHHInc",{"$f":"\"MOE \"&FR115","v":"MOE MedianHHInc"},"HH under 25 years",{"$f":"\"MOE \"&FT115","v":"MOE HH under 25 years"},"Householder 25 to 44 years",{"$f":"\"MOE \"&FV115","v":"MOE Householder 25 to 44 years"},"Householder 45 to 64 years",{"$f":"\"MOE \"&FX115","v":"MOE Householder 45 to 64 years"},"Householder 65 years and over",{"$f":"\"MOE \"&FZ115","v":"MOE Householder 65 years and over"}]
[{"$f":"VLOOKUP(DropDownList!$B$24,CntyQuery!$A$70:$CF$88,A$1)","v":"Wolfeboro"},2787,260,144,122,173,138,59,74,84,59,87,57,214,150,118,110,51,46,158,132,35,40,232,115,339,124,352,190,318,171,154,78,269,135,2787,260,0,17,0,17,0,17,0,17,0,17,0,17,0,17,0,17,0,17,0,17,0,17,0,17,0,17,0,17,0,17,0,17,0,17,486,187,0,17,11,19,0,17,8,13,0,17,0,17,27,39,0,17,40,58,0,17,24,34,71,67,111,150,133,117,16,26,45,43,1006,220,63,72,70,102,0,17,15,23,54,43,98,103,59,93,19,31,0,17,0,17,99,65,126,80,132,110,110,96,43,47,118,87,1295,225,81,99,92,100,59,74,61,51,33,36,116,105,32,47,32,33,118,121,35,40,109,88,142,78,109,63,75,71,95,62,106,70,75783,15064,"-","**",121396,26902,76161,21951,55288,15645]
[]
["Number of Households by Income"]
["NAME","HHIncLessThn10k",{"$f":"\"MOE \"&B119","v":"MOE HHIncLessThn10k"},"HHInc10to15K",{"$f":"\"MOE \"&D119","v":"MOE HHInc10to15K"},"HHInc15to25K",{"$f":"\"MOE \"&F119","v":"MOE HHInc15to25K"},"HHInc25to35K",{"$f":"\"MOE \"&H119","v":"MOE HHInc25to35K"},"HHInc35to50K",{"$f":"\"MOE \"&J119","v":"MOE HHInc35to50K"},"HHInc50to75K",{"$f":"\"MOE \"&L119","v":"MOE HHInc50to75K"},"HHInc75to100K",{"$f":"\"MOE \"&N119","v":"MOE HHInc75to100K"},"HHInc100to150K",{"$f":"\"MOE \"&P119","v":"MOE HHInc100to150K"},"HHInc150to200K",{"$f":"\"MOE \"&R119","v":"MOE HHInc150to200K"},"HHIncOver200K",{"$f":"\"MOE \"&T119","v":"MOE HHIncOver200K"}]
[{"$f":"VLOOKUP(DropDownList!$B$24,CntyQuery!$A$70:$CF$88,A$1)","v":"Wolfeboro"},144,122,173,138,143,94.641428560646744,301,160.46494944379597,327,177.87636155487328,267,121.75795661885921,339,124,670,255.61885689440049,154,78,269,135,30,19,39,22,12,9,27,22,0,114,30,19,null,null,null,null,null,null,null,null,null,null,null,null,null,null,null,null,null,null,null,null,null,null,null,null,null,null,null,null,null,null,null,null,null,null,null,null,null,null,null,null,null,null,null,null,null,null,null,null,null,null,null,null,"Ossipee",null,"Estimate","Margin of Error",1842,183,null,null,153,99,80,46,84,79,86,59,155,88,118,80,127,78,74,51,65,55,295,111,196,108,263,113,55,34,41,33,0,114,50,50,null,null,null,null,null,null,null,null,null,null,null,null,null,null,"Ossipee",null,"Estimate","Margin of Error",1842,183,null,null,153,99,80,46,170,98.600202839547947,273,118.92854997854805,266,108.21275340735028,491,154.87091398968369,263,113,96,47.381430961928537,0,114,50,50]
[]
[]
["NAME","TotalPop",{"$f":"\"MOE \"&B123","v":"MOE TotalPop"},"Total Individuals living in Poverty",{"$f":"\"MOE \"&D123","v":"MOE Total Individuals living in Poverty"},"Under 5 yrs.",{"$f":"\"MOE \"&F123","v":"MOE Under 5 yrs."},"5 to 17 yrs.",{"$f":"\"MOE \"&H123","v":"MOE 5 to 17 yrs."},"18 to 64 yrs.",{"$f":"\"MOE \"&J123","v":"MOE 18 to 64 yrs."},"65 to 74 yrs.",{"$f":"\"MOE \"&L123","v":"MOE 65 to 74 yrs."},"75 yrs. & Over",{"$f":"\"MOE \"&N123","v":"MOE 75 yrs. & Over"},"Total Individuals  Not living Poverty",{"$f":"\"MOE \"&P123","v":"MOE Total Individuals  Not living Poverty"},"Under 5 yrs.",{"$f":"\"MOE \"&R123","v":"MOE Under 5 yrs."},"5 to 17 yrs.",{"$f":"\"MOE \"&T123","v":"MOE 5 to 17 yrs."},"18 to 64 yrs.",{"$f":"\"MOE \"&V123","v":"MOE 18 to 64 yrs."},"65 to 74 yrs.",{"$f":"\"MOE \"&X123","v":"MOE 65 to 74 yrs."},"75 yrs. & Over",{"$f":"\"MOE \"&Z123","v":"MOE 75 yrs. & Over"},"Total HH",{"$f":"\"MOE \"&AB123","v":"MOE Total HH"},"Total Households Below Poverty",{"$f":"\"MOE \"&AD123","v":"MOE Total Households Below Poverty"},"Family Households in Poverty",{"$f":"\"MOE \"&AF123","v":"MOE Family Households in Poverty"},"Married Couple Fam HH",{"$f":"\"MOE \"&AH123","v":"MOE Married Couple Fam HH"},"Other Family",{"$f":"\"MOE \"&AJ123","v":"MOE Other Family"},"Male Head of Family HH no wife",{"$f":"\"MOE \"&AL123","v":"MOE Male Head of Family HH no wife"},"Female Head of Family HH no husband",{"$f":"\"MOE \"&AN123","v":"MOE Female Head of Family HH no husband"},"Non-Family HH",{"$f":"\"MOE \"&AP123","v":"MOE Non-Family HH"},"Non-Family Male HH",{"$f":"\"MOE \"&AR123","v":"MOE Non-Family Male HH"},"Non-Family Female HH",{"$f":"\"MOE \"&AT123","v":"MOE Non-Family Female HH"},"Total Households at or Above Poverty",{"$f":"\"MOE \"&AV123","v":"MOE Total Households at or Above Poverty"},"Family Households above Poverty",{"$f":"\"MOE \"&AX123","v":"MOE Family Households above Poverty"},"Married Couple Fam HH",{"$f":"\"MOE \"&AZ123","v":"MOE Married Couple Fam HH"},"Other Family",{"$f":"\"MOE \"&BB123","v":"MOE Other Family"},"Male Head of Family HH no wife",{"$f":"\"MOE \"&BD123","v":"MOE Male Head of Family HH no wife"},"Female Head of Family HH no husband",{"$f":"\"MOE \"&BF123","v":"MOE Female Head of Family HH no husband"},"Non-Family HH",{"$f":"\"MOE \"&BH123","v":"MOE Non-Family HH"},"Non-Family Male HH",{"$f":"\"MOE \"&BJ123","v":"MOE Non-Family Male HH"},"Non-Family Female HH",{"$f":"\"MOE \"&BL123","v":"MOE Non-Family Female HH"},"Married Couple with Children Below Poverty",{"$f":"\"MOE \"&BN123","v":"MOE Married Couple with Children Below Poverty"},"Male HH with children below poverty",{"$f":"\"MOE \"&BP123","v":"MOE Male HH with children below poverty"},"Female HH with children below poverty",{"$f":"\"MOE \"&BR123","v":"MOE Female HH with children below poverty"},"Married Couple with Children At or Above Poverty",{"$f":"\"MOE \"&BT123","v":"MOE Married Couple with Children At or Above Poverty"},"Male HH with children at or above poverty",{"$f":"\"MOE \"&BV123","v":"MOE Male HH with children at or above poverty"},"Female HH with children at or above poverty",{"$f":"\"MOE \"&BX123","v":"MOE Female HH with children at or above poverty"}]
[{"$f":"VLOOKUP(DropDownList!$B$24,CntyQuery!$A$70:$CF$88,A$1)","v":"Wolfeboro"},6383,16,588,242,24,86.005813756978085,115,64.529063219606712,264,164.11276610916045,70,95.524865872714003,115,107.05606008068857,5795,243,2,17.720045146669349,702,191.48629193756926,3114,538.07620278172499,913,228.80996481796853,1064,208.8276801575883,2787,260,364,191,98,91,63,72,35,41,8,13,27,39,266,170,138,130,128,117,2423,275,1610,207,1242,200,368,184,0,17,368,184,813,263,302,154,511,192,0,17,8,13,27,39,209,106,0,17,264,176,null,null,null,null,null,null,null,null,null,null,null,null,null,null,null,null,null,null,null,null,null,null,null,null,null,null,null,null,null,null,null,null,null,null,null,null,null,null,null,null,null,null,null,null,null,null,null,null,null,null,null,null,null,null,null,null,null,null,null,null,null,null,null,null,"Albany",null,"Estimate","Margin of Error",797,175,131,102,19,21.587033144922902,24,34.205262752974143,83,49.406477308142499,3,12.083045973594572,2,11.704699910719626,666,171,41,33.837848631377263,128,59.715994507334464,368,72.221880341071156,73,25.45584412271571,56,24.041630560342615,null,null,null,null,null,null,null,null,null,null,null,null,null,null,null,null,null,null,null,null,null,null,null,null,null,null,null,null,null,null,null,null,null,null,null,null,null,null,null,null,null,null,null,null,null,null,null,null,null,null,null,null,null,null,null,null,null,null,null,null,null,null,null,null,null,null,null,null,null,null,null,null,null,null,null,null,null,null,null,null,null,null,null,null,null,null,null,null,null,null,null,null,"Albany",null,"Estimate","Margin of Error",966,265,280,139,30,115.11733144926528,100,169.72330423368501,139,172.37459209523891,11,9.8994949366116654,0,161.22034611053283,686,217,14,12.083045973594572,101,202.29186834868079,468,108.16653826391968,70,30.413812651491099,33,28.160255680657446]
[]
["Household Income By Tenure"]
["NAME","TotalOccHU",{"$f":"\"MOE \"&B127","v":"MOE TotalOccHU"},"OwnOccHU",{"$f":"\"MOE \"&D127","v":"MOE OwnOccHU"},"OOHUInc<5K",{"$f":"\"MOE \"&F127","v":"MOE OOHUInc<5K"},"OOHUInc5to10K",{"$f":"\"MOE \"&H127","v":"MOE OOHUInc5to10K"},"OOHUInc10to15K",{"$f":"\"MOE \"&J127","v":"MOE OOHUInc10to15K"},"OOHUInc15to20K",{"$f":"\"MOE \"&L127","v":"MOE OOHUInc15to20K"},"OOHUInc20to25K",{"$f":"\"MOE \"&N127","v":"MOE OOHUInc20to25K"},"OOHUInc25to35K",{"$f":"\"MOE \"&P127","v":"MOE OOHUInc25to35K"},"OOHUInc35to50K",{"$f":"\"MOE \"&R127","v":"MOE OOHUInc35to50K"},"OOHUInc50to75K",{"$f":"\"MOE \"&T127","v":"MOE OOHUInc50to75K"},"OOHUInc75to100K",{"$f":"\"MOE \"&V127","v":"MOE OOHUInc75to100K"},"OOHUInc100to150K",{"$f":"\"MOE \"&X127","v":"MOE OOHUInc100to150K"},"OOHUInc>150K",{"$f":"\"MOE \"&Z127","v":"MOE OOHUInc>150K"},"RentOccHU",{"$f":"\"MOE \"&AB127","v":"MOE RentOccHU"},"ROHUInc<5K",{"$f":"\"MOE \"&AD127","v":"MOE ROHUInc<5K"},"ROHUInc5to10K",{"$f":"\"MOE \"&AF127","v":"MOE ROHUInc5to10K"},"ROHUInc10to15K",{"$f":"\"MOE \"&AH127","v":"MOE ROHUInc10to15K"},"ROHUInc15to20K",{"$f":"\"MOE \"&AJ127","v":"MOE ROHUInc15to20K"},"ROHUInc20to25K",{"$f":"\"MOE \"&AL127","v":"MOE ROHUInc20to25K"},"ROHUInc25to35K",{"$f":"\"MOE \"&AN127","v":"MOE ROHUInc25to35K"},"ROHUInc35to50K",{"$f":"\"MOE \"&AP127","v":"MOE ROHUInc35to50K"},"ROHUInc50to75K",{"$f":"\"MOE \"&AR127","v":"MOE ROHUInc50to75K"},"ROHUInc75to100K",{"$f":"\"MOE \"&AT127","v":"MOE ROHUInc75to100K"},"ROHUInc100to150K",{"$f":"\"MOE \"&AV127","v":"MOE ROHUInc100to150K"},"ROHUInc>150K",{"$f":"\"MOE \"&AX127","v":"MOE ROHUInc>150K"},"Total OCC HUInc<5K",{"$f":"\"MOE \"&AZ127","v":"MOE Total OCC HUInc<5K"},"Total OCC HUInc5to10K",{"$f":"\"MOE \"&BB127","v":"MOE Total OCC HUInc5to10K"},"Total OCC HUInc10to15K",{"$f":"\"MOE \"&BD127","v":"MOE Total OCC HUInc10to15K"},"Total OCC HUInc15to20K",{"$f":"\"MOE \"&BF127","v":"MOE Total OCC HUInc15to20K"},"Total OCC HUInc20to25K",{"$f":"\"MOE \"&BH127","v":"MOE Total OCC HUInc20to25K"},"Total OCC HUInc25to35K",{"$f":"\"MOE \"&BJ127","v":"MOE Total OCC HUInc25to35K"},"Total OCC HUInc35to50K",{"$f":"\"MOE \"&BL127","v":"MOE Total OCC HUInc35to50K"},"Total OCC HUInc50to75K",{"$f":"\"MOE \"&BN127","v":"MOE Total OCC HUInc50to75K"},"Total OCC HUInc75to100K",{"$f":"\"MOE \"&BP127","v":"MOE Total OCC HUInc75to100K"},"Total OCC HUInc100to150K",{"$f":"\"MOE \"&BR127","v":"MOE Total OCC HUInc100to150K"},"Total OCC HUInc>150K",{"$f":"\"MOE \"&BT127","v":"MOE Total OCC HUInc>150K"},"MedHHInc",{"$f":"\"MOE \"&BV127","v":"MOE MedHHInc"},"MedOwnOccHHInc",{"$f":"\"MOE \"&BX127","v":"MOE MedOwnOccHHInc"},"MedRentOccHHInc",{"$f":"\"MOE \"&BZ127","v":"MOE MedRentOccHHInc"}]
[{"$f":"VLOOKUP(DropDownList!$B$24,CntyQuery!$A$70:$CF$88,A$1)","v":"Wolfeboro"},2787,260,2165,270,121,119,23,29,92,100,47,72,52,44,240,151,294,178,208,98,224,99,466,184,398,117,622,231,0,17,0,17,81,103,12,19,32,38,61,56,33,40,59,77,115,89,204,179,25,34,121,120.20815280171308,23,33.61547262794322,173,143.55835050598765,59,74.464756764525859,84,58.137767414994535,301,161.04968177553161,327,182.43903091169938,267,124.63145670335399,339,133.12400234367956,670,256.70410982296329,423,121.8400590938793,75783,15064,75172,19861,76919,31610]
[]
["Population Data"]
["NAME","Total Population","MOE Total Population","Under 15 Years","MOE Under 15 yrs.","15 to 24 yrs.","MOE 15 to 24 yrs.","25 to 34 yrs.","MOE 25 to 34 yrs.","35 to 44 yrs.","MOE 35 to 44 yrs.","45 to 54 yrs.","MOE 45 to 54 yrs.","55 to 64 yrs.","MOE 55 to 64 yrs.","65 to 74 yrs.","MOE 65 to 74 yrs.","Over 74 yrs. ","MOE Over 74 yrs. ","TotalHH","MOE TotalHH","FamilyHH","MOE FamilyHH","MarriedFamilyHH","MOE MarriedFamilyHH","SingleFamilyHH","MOE SingleFamilyHH","Sfamily-MaleHH","MOE Sfamily-MaleHH","Sfamily-FemaleHH","MOE Sfamily-FemaleHH","NonFamilyHH","MOE NonFamilyHH","NonFamilyHH-LivingAlone","MOE NonFamilyHH-LivingAlone","NonFamilyHH-NotLivingAlone","MOE NonFamilyHH-NotLivingAlone","PopRaceWhite","MOE PopRaceWhite","PopRaceBlack","MOE PopRaceBlack","PopRaceAmerican Indian","MOE PopRaceAmerican Indian","PopRaceAsian &Pacific Is.","MOE PopRaceAsian &Pacific Is.","PopRaceOther*","MOE PopRaceOther*","PopRaceHispanic or Latino:","MOE PopRaceHispanic or Latino:","MedianAgeTotalPop","MOE MedianAgeTotalPop","MedianAgeMale","MOE MedianAgeMale","MedianAgeFemale","MOE MedianAgeFemale","AvgHHSizeTotal","MOE AvgHHSizeTotal","AvgHHSizeFamilyHH","MOE AvgHHSizeFamilyHH","AvgHHSizeNonFamilyHH","MOE AvgHHSizeNonFamilyHH"]
[{"$f":"VLOOKUP(DropDownList!$B$24,CntyQuery!$A$70:$CF$88,A$1)","v":"Wolfeboro"},6484,18,514,144.91031709302138,727,256.64372191814863,259,147.37028194313805,717,247.32771781585663,681,223.95312009436262,1365,361.16339792398674,999,238.01050396988785,1222,279.86067962470185,2787,260,1708,198,1305,192,403,187,8,13,395,185,1079,302,989,311,90,71,6166,119,0,17,27,38,16,31.064449134018133,33,54.708317466359723,242,98,56.6,1.6,55.9,2.4,58,3.3,2.2719770362396843,0.21206297554320677,2.9718969555035128,0.39357217918576809,1.1640407784986098,0.44244557729846928,null,null,null,null,null,null,null,null,null,null,null,null,null,null,null,null,null,null,null,null,null,null,null,null,null,null,null,null,null,null,null,null,null,null,null,null,null,null,null,null,null,null,null,null,null,null,null,null,null,null,null,null,null,null,null,null,null,null,null,null,null,null,null,null,null,null,null,null,null,null,null,null,null,null,null,null,null,null,"Wolfeboro",null,"Estimate","Margin of Error",6235,19,585,197.08627552419779,538,201.57628828808214,451,184.40715821247286,619,167.08081876744561,765,214.82551058940834,973,232.37900077244501,1232,233.4866163187946,1072,293.69882532962231,null,null,null,null,null,null,null,null,null,null,null,null,null,null,null,null,null,null,null,null,null,null,null,null,null,null,null,null,null,null,null,null,null,null,null,null,null,null,null,null,null,null,null,null,null,null,null,null,null,null,null,null,null,null,null,null,null,null,null,null,null,null,null,null,null,null,null,null,null,null,null,null,null,null,null,null,null,null,null,null,null,null,null,null,null,null,null,null,null,null,null,null,null,null,null,null,null,null,null,null,null,null,null,null,null,null,null,null,null,null,null,null,null,null,null,null,null,null,null,null,null,null,null,null,null,null,null,null,null,null,null,null,null,null,null,null,null,null,null,null,null,null,null,null,null,null,null,null,null,null,null,null,null,null,null,null,null,null,null,null,"Wolfeboro",null,"Estimate","Margin of Error",6286,17,1105,230.95887079737813,576,175.920436561532,433,142.95104056983985,449,151.22499793354271,802,182.48013590525409,1152,279.30091299528544,949,230.7834482799839,820,183.18296864064629]
[]
["Nativity and Prior Place of Residence"]
["NAME","TotalPop",{"$f":"\"MOE \"&B135","v":"MOE TotalPop"},"Native:",{"$f":"\"MOE \"&D135","v":"MOE Native:"},"NatBornInStateOfResidence",{"$f":"\"MOE \"&F135","v":"MOE NatBornInStateOfResidence"},"Born in other state in the United States:",{"$f":"\"MOE \"&H135","v":"MOE Born in other state in the United States:"},"Northeast",{"$f":"\"MOE \"&J135","v":"MOE Northeast"},"Midwest",{"$f":"\"MOE \"&L135","v":"MOE Midwest"},"South",{"$f":"\"MOE \"&N135","v":"MOE South"},"West",{"$f":"\"MOE \"&P135","v":"MOE West"},"Born outside the United States:",{"$f":"\"MOE \"&R135","v":"MOE Born outside the United States:"},"Puerto Rico",{"$f":"\"MOE \"&T135","v":"MOE Puerto Rico"},"U.S. Island Areas",{"$f":"\"MOE \"&V135","v":"MOE U.S. Island Areas"},"Born abroad of American parent(s)",{"$f":"\"MOE \"&X135","v":"MOE Born abroad of American parent(s)"},"Foreign born:",{"$f":"\"MOE \"&Z135","v":"MOE Foreign born:"},"Naturalized U.S. citizen",{"$f":"\"MOE \"&AB135","v":"MOE Naturalized U.S. citizen"},"Not a U.S. citizen",{"$f":"\"MOE \"&AD135","v":"MOE Not a U.S. citizen"},"CurrentResidenceTotal:",{"$f":"\"MOE \"&AF135","v":"MOE CurrentResidenceTotal:"},"SameHouse:",{"$f":"\"MOE \"&AH135","v":"MOE SameHouse:"},"DifferentHouse:",{"$f":"\"MOE \"&AJ135","v":"MOE DifferentHouse:"},"DiffHouseInNH",{"$f":"\"MOE \"&AL135","v":"MOE DiffHouseInNH"},"DiffHouseInNHSameCnty",{"$f":"\"MOE \"&AN135","v":"MOE DiffHouseInNHSameCnty"},"DiffHouseInNHDiffCnty",{"$f":"\"MOE \"&AP135","v":"MOE DiffHouseInNHDiffCnty"},"DiffHouseInDiffState",{"$f":"\"MOE \"&AR135","v":"MOE DiffHouseInDiffState"},"DiffHouseInElsewhere",{"$f":"\"MOE \"&AT135","v":"MOE DiffHouseInElsewhere"}]
[{"$f":"VLOOKUP(DropDownList!$B$24,CntyQuery!$A$70:$CF$88,A$1)","v":"Wolfeboro"},6484,18,6273,157,2219,406,3954,426,3332,457,240,153,218,127,164,106,100,79,0,17,0,17,100,79,211,158,78,60,133,125,6482,19,5631,336,851,342.87023784516498,383,222.25210910135362,180,150,203,164,444,258,24,40]
[]
["School Enrollment - Education"]
["NAME","Total Pop 3 Years and Older","MOE Total Pop 3 Years and Older","P36SchEnrlPop3yrOver",{"$f":"\"MOE \"&D139","v":"MOE P36SchEnrlPop3yrOver"},"TotalEnrollNursy&Kinder",{"$f":"\"MOE \"&F139","v":"MOE TotalEnrollNursy&Kinder"},"P36NurserSchEnrl",{"$f":"\"MOE \"&H139","v":"MOE P36NurserSchEnrl"},"P36KinderSchEnrl",{"$f":"\"MOE \"&J139","v":"MOE P36KinderSchEnrl"},"P36ElemSchEnrl",{"$f":"\"MOE \"&L139","v":"MOE P36ElemSchEnrl"},"P36HighSchEnrl",{"$f":"\"MOE \"&N139","v":"MOE P36HighSchEnrl"},"TotalElementry&HSEnroll",{"$f":"\"MOE \"&P139","v":"MOE TotalElementry&HSEnroll"},"P36CollGradSchEnrl",{"$f":"\"MOE \"&R139","v":"MOE P36CollGradSchEnrl"},"PopNotEnrolled","MOE PopNotEnrolled","P37Pop25yrsOver",{"$f":"\"MOE \"&V139","v":"MOE P37Pop25yrsOver"},"P37EduAtain<9grd",{"$f":"\"MOE \"&X139","v":"MOE P37EduAtain<9grd"},"P37EduAtainHSnoDip",{"$f":"\"MOE \"&Z139","v":"MOE P37EduAtainHSnoDip"},"P37EduAtainHSgrad",{"$f":"\"MOE \"&AB139","v":"MOE P37EduAtainHSgrad"},"P37EduAtainCollNoDeg",{"$f":"\"MOE \"&AD139","v":"MOE P37EduAtainCollNoDeg"},"P37EduAtainAssocDeg",{"$f":"\"MOE \"&AF139","v":"MOE P37EduAtainAssocDeg"},"P37EduAtainBachDeg",{"$f":"\"MOE \"&AH139","v":"MOE P37EduAtainBachDeg"},"P37EduAtainGradProfDeg",{"$f":"\"MOE \"&AJ139","v":"MOE P37EduAtainGradProfDeg"}]
[{"$f":"VLOOKUP(DropDownList!$B$24,CntyQuery!$A$70:$CF$88,A$1)","v":"Wolfeboro"},6482,19,1082,243,64,50.24937810560445,24,34,40,37,380,116.03878661895772,481,231,861,258.50725328315258,157,105.77334257741882,5400,241,5243,306,0,41.641325627314025,220,178.91338686638292,1244,324.9692293125612,937,267.44345196695321,704,261.42876658852981,1233,278.30379084734005,905,254.97843046030383,null,null,null,null,null,null,null,null,null,null,null,null,null,null,null,null,null,null,null,null,null,null,null,null,null,null,null,null,null,null,null,null,null,null,null,null,null,116.49892703368559,723,136]
[]
["Occupied Owner Housing Value"]
["NAME","Estimate; Total:","Margin of Error; Total:","Estimate; Total: - Less than $10,000","Margin of Error; Total: - Less than $10,000","Estimate; Total: - $10,000 to $14,999","Margin of Error; Total: - $10,000 to $14,999","Estimate; Total: - $15,000 to $19,999","Margin of Error; Total: - $15,000 to $19,999","Estimate; Total: - $20,000 to $24,999","Margin of Error; Total: - $20,000 to $24,999","Estimate; Total: - $25,000 to $29,999","Margin of Error; Total: - $25,000 to $29,999","Estimate; Total: - $30,000 to $34,999","Margin of Error; Total: - $30,000 to $34,999","Estimate; Total: - $35,000 to $39,999","Margin of Error; Total: - $35,000 to $39,999","Estimate; Total: - $40,000 to $49,999","Margin of Error; Total: - $40,000 to $49,999","Estimate; Total: - $50,000 to $59,999","Margin of Error; Total: - $50,000 to $59,999","Estimate; Total: - $60,000 to $69,999","Margin of Error; Total: - $60,000 to $69,999","Estimate; Total: - $70,000 to $79,999","Margin of Error; Total: - $70,000 to $79,999","Estimate; Total: - $80,000 to $89,999","Margin of Error; Total: - $80,000 to $89,999","Estimate; Total: - $90,000 to $99,999","Margin of Error; Total: - $90,000 to $99,999","Estimate; Total: - $100,000 to $124,999","Margin of Error; Total: - $100,000 to $124,999","Estimate; Total: - $125,000 to $149,999","Margin of Error; Total: - $125,000 to $149,999","Estimate; Total: - $150,000 to $174,999","Margin of Error; Total: - $150,000 to $174,999","Estimate; Total: - $175,000 to $199,999","Margin of Error; Total: - $175,000 to $199,999","Estimate; Total: - $200,000 to $249,999","Margin of Error; Total: - $200,000 to $249,999","Estimate; Total: - $250,000 to $299,999","Margin of Error; Total: - $250,000 to $299,999","Estimate; Total: - $300,000 to $399,999","Margin of Error; Total: - $300,000 to $399,999","Estimate; Total: - $400,000 to $499,999","Margin of Error; Total: - $400,000 to $499,999","Estimate; Total: - $500,000 to $749,999","Margin of Error; Total: - $500,000 to $749,999","Estimate; Total: - $750,000 to $999,999","Margin of Error; Total: - $750,000 to $999,999","Estimate; Total: - $1,000,000 to $1,499,999","Margin of Error; Total: - $1,000,000 to $1,499,999","Estimate; Total: - $1,500,000 to $1,999,999","Margin of Error; Total: - $1,500,000 to $1,999,999","Estimate; Total: - $2,000,000 or more","Margin of Error; Total: - $2,000,000 or more","MedianOwnOCCHomeValue","MOE MedianOwnOCCHomeValue","OnwerOccHsU","MOE OnwerOccHsU","OwnerCosts>20PctHHInc","MOE OwnerCosts>20PctHHInc","OwnerCosts20to29.9PctHHInc","MOE OwnerCosts20to29.9PctHHInc","OwnerCosts<30PctHHInc","MOE OwnerCosts<30PctHHInc","OwnerCosts>30PctHHInc","MOE OwnerCosts>30PctHHInc","OwnerCosts30to34.9PctHHInc","MOE OwnerCosts30to34.9PctHHInc","OwnerCosts<35PctHHInc","MOE OwnerCosts<35PctHHInc","OwnerCosts>35PctHHInc","MOE OwnerCosts>35PctHHInc","OwnerCosts>50PctHHInc","MOE OwnerCosts>50PctHHInc","OwnerCostsPctNotcomputed","MOE OwnerCostsPctNotcomputed","OwnerOHUHhInc<20k","MOE OwnerOHUHhInc<20k","OwnerOHUHhInc<20kHCosts<20pct","MOE OwnerOHUHhInc<20kHCosts<20pct","OwnerOHUHhInc<20kHCosts20to29pct","MOE OwnerOHUHhInc<20kHCosts20to29pct","OwnerOHUHhInc>20kHCosts30pct","MOE OwnerOHUHhInc>20kHCosts30pct","OwnerOHUHhInc20kTo34999","MOE OwnerOHUHhInc20kTo34999","OwnerOHUHhInc20kTo34999HCosts<20pct","MOE OwnerOHUHhInc20kTo34999HCosts<20pct","OwnerOHUHhInc20kTo34999HCosts20to29pct","MOE OwnerOHUHhInc20kTo34999HCosts20to29pct","OwnerOHUHhInc20kTo34999HCosts30pct","MOE OwnerOHUHhInc20kTo34999HCosts30pct","OwnerOHUHhInc35kTo49999","MOE OwnerOHUHhInc35kTo49999","OwnerOHUHhInc35kTo49999HCosts<20pct","MOE OwnerOHUHhInc35kTo49999HCosts<20pct","OwnerOHUHhInc35kTo49999HCosts20to29pct","MOE OwnerOHUHhInc35kTo49999HCosts20to29pct","OwnerOHUHhInc35kTo49999HCosts30pct","MOE OwnerOHUHhInc35kTo49999HCosts30pct","OwnerOHUHhInc50kTo74999","MOE OwnerOHUHhInc50kTo74999","OwnerOHUHhInc50kTo74999HCosts<20pct","MOE OwnerOHUHhInc50kTo74999HCosts<20pct","OwnerOHUHhInc50kTo74999HCosts20to29pct","MOE OwnerOHUHhInc50kTo74999HCosts20to29pct","OwnerOHUHhInc50kTo74999HCosts30pct","MOE OwnerOHUHhInc50kTo74999HCosts30pct","OwnerOHUHhInc>75000","MOE OwnerOHUHhInc>75000","OwnerOHUHhInc>75000HCosts<20pct","MOE OwnerOHUHhInc>75000HCosts<20pct","OwnerOHUHhInc>75000HCosts20to29pct","MOE OwnerOHUHhInc>75000HCosts20to29pct","OwnerOHUHhInc>75000HCosts30pct","MOE OwnerOHUHhInc>75000HCosts30pct","ZeroOrNegativeIncome","MOE ZeroOrNegativeIncome"]
[{"$f":"VLOOKUP(DropDownList!$B$24,CntyQuery!$A$70:$CF$88,A$1)","v":"Wolfeboro"},2154,275,15,24,0,17,0,17,15,24,0,17,0,17,0,17,20,33,40,63,0,17,0,17,0,17,0,17,29,49,43,41,30,33,116,100,353,172,307,162,451,174,158,122,354,162,84,82,67,84,17,26,55,89,324200,43323,2165,196,1129,251.04581255221129,604,198.07574308834484,1733,319.77804802706515,432,140.46351839534705,55,40.80441152620633,1788,322.3709043943017,377,134.40610105199838,254,111.83022847155415,0,22.627416997969522,119,71,0,16,0,16,119,71,138,82,25,29,71,72,42,39,413,144,233,121,81,58,99,63,468,148,209,91,133,96,126,77,1027,208,662,199,319,130,46,49,0,16,0,15,84,73,0,15,107,76,239,121,282,107,492,223,477,155,168,87,80,56,144,121,55,54,14,23,29,34,null,null,null,null,null,null,null,null,null,null,null,null,"Wolfeboro",null,"Estimate","Margin of Error",null,null,283200,14764,null,null,null,null,null,null,null,null,null,null,null,null,null,null,null,null,null,null,"Wolfeboro",null,"Estimate","Margin of Error",2132,198,0,85,0,85,28,32,0,85,0,85,0,85,0,85,11,21,11,22,0,85,14,23,15,25,0,85,37,27,65,46,135,68,102,75,290,121,394,176,361,134,234,120,186,106,97,98,152,78,null,null,null,null,null,null,null,null,null,null,null,null,null,null,null,null,"Wolfeboro",null,"Estimate","Margin of Error",null,null,295400,27619]
[]
["Occupied Rental Housing Value"]
["NAME","RntrOccHU","MOE RntrOccHU","RntrOccHUwRent","MOE RntrOccHUwRent","ROHUGRent<100","MOE ROHUGRent<100","ROHUGRent100to149","MOE ROHUGRent100to149","ROHUGRent150to199","MOE ROHUGRent150to199","ROHUGRent200to249","MOE ROHUGRent200to249","ROHUGRent250to299","MOE ROHUGRent250to299","ROHUGRent300to349","MOE ROHUGRent300to349","ROHUGRent350to399","MOE ROHUGRent350to399","ROHUGRent400to449","MOE ROHUGRent400to449","ROHUGRent450to499","MOE ROHUGRent450to499","ROHUGRent500to549","MOE ROHUGRent500to549","ROHUGRent550to599","MOE ROHUGRent550to599","ROHUGRent600to649","MOE ROHUGRent600to649","ROHUGRent650to699","MOE ROHUGRent650to699","ROHUGRent700to749","MOE ROHUGRent700to749","ROHUGRent750to799","MOE ROHUGRent750to799","ROHUGRent800to899","MOE ROHUGRent800to899","ROHUGRent900to999","MOE ROHUGRent900to999","ROHUGRent1000to1249","MOE ROHUGRent1000to1249","ROHUGRent1250to1499","MOE ROHUGRent1250to1499","ROHUGRent1500to1999","MOE ROHUGRent1500to1999","ROHUGRent$2,000 to $2,499","MOE ROHUGRent$2,000 to $2,499","ROHUGRent$2,500 to $2,999","MOE ROHUGRent$2,500 to $2,999","ROHUGRent$3,000 to $3,499","MOE ROHUGRent$3,000 to $3,499","ROHUGRent$3,500 or more","MOE ROHUGRent$3,500 or more","ROHUNoGRent","MOE ROHUNoGRent","MedianGrossRnt","MOE MedianGrossRnt","H73RenterOccHU","MOE H73RenterOccHU","H73ROHUHhInc<10k","MOE H73ROHUHhInc<10k","H73ROHUHhInc<10kRnt<20pct","MOE H73ROHUHhInc<10kRnt<20pct","H73ROHUHhInc<10kRnt20to25pct","MOE H73ROHUHhInc<10kRnt20to25pct","H73ROHUHhInc<10kRnt25to30pct","MOE H73ROHUHhInc<10kRnt25to30pct","H73ROHUHhInc<10kRnt30to35pct","MOE H73ROHUHhInc<10kRnt30to35pct","H73ROHUHhInc<10kRnt35to39.9","MOE H73ROHUHhInc<10kRnt35to39.9","H73ROHUHhInc<10kRnt40to49.9","MOE H73ROHUHhInc<10kRnt40to49.9","H73ROHUHhInc<10kRnt>50pct","MOE H73ROHUHhInc<10kRnt>50pct","H73ROHUHhInc<10kPctNotComput","MOE H73ROHUHhInc<10kPctNotComput","H73ROHUHhInc10to20k","MOE H73ROHUHhInc10to20k","H73ROHUHhInc10to20kRnt<20pct","MOE H73ROHUHhInc10to20kRnt<20pct","H73ROHUHhInc10to20kRnt20to25pct","MOE H73ROHUHhInc10to20kRnt20to25pct","H73ROHUHhInc10to20kRnt25to30pct","MOE H73ROHUHhInc10to20kRnt25to30pct","H73ROHUHhInc10to20kRnt30to35pct","MOE H73ROHUHhInc10to20kRnt30to35pct","H73ROHUHhInc10to20kRnt35to39.9","MOE H73ROHUHhInc10to20kRnt35to39.9","H73ROHUHhInc10to20kRnt40to49.9","MOE H73ROHUHhInc10to20kRnt40to49.9","H73ROHUHhInc10to20kRnt>50pct","MOE H73ROHUHhInc10to20kRnt>50pct","H73ROHUHhInc10to20kRntPctNC","MOE H73ROHUHhInc10to20kRntPctNC","H73ROHUHhInc20to34.9k","MOE H73ROHUHhInc20to34.9k","H73ROHUHhInc20to34.9kRnt<20pct","MOE H73ROHUHhInc20to34.9kRnt<20pct","H73ROHUHhInc20to34.9kRnt20to25pct","MOE H73ROHUHhInc20to34.9kRnt20to25pct","H73ROHUHhInc20to34.9kRnt25to30pct","MOE H73ROHUHhInc20to34.9kRnt25to30pct","H73ROHUHhInc20to34.9kRnt30to35pct","MOE H73ROHUHhInc20to34.9kRnt30to35pct","H73ROHUHhInc20to34.9kRnt35to39.9","MOE H73ROHUHhInc20to34.9kRnt35to39.9","H73ROHUHhInc20to34.9kRnt40to49.9","MOE H73ROHUHhInc20to34.9kRnt40to49.9","H73ROHUHhInc20to34.9kRnt>50pct","MOE H73ROHUHhInc20to34.9kRnt>50pct","H73ROHUHhInc20to34.9kRntPctNC","MOE H73ROHUHhInc20to34.9kRntPctNC","H73ROHUHhInc35to49.9k","MOE H73ROHUHhInc35to49.9k","H73ROHUHhInc35to49.9kRnt<20pct","MOE H73ROHUHhInc35to49.9kRnt<20pct","H73ROHUHhInc35to49.9kRnt20to25pct","MOE H73ROHUHhInc35to49.9kRnt20to25pct","H73ROHUHhInc35to49.9kRnt25to30pct","MOE H73ROHUHhInc35to49.9kRnt25to30pct","H73ROHUHhInc35to49.9kRnt30to35pct","MOE H73ROHUHhInc35to49.9kRnt30to35pct","H73ROHUHhInc35to49.9kRnt35to39.9","MOE H73ROHUHhInc35to49.9kRnt35to39.9","H73ROHUHhInc35to49.9kRnt40to49.9","MOE H73ROHUHhInc35to49.9kRnt40to49.9","H73ROHUHhInc35to49.9kRnt>50pct","MOE H73ROHUHhInc35to49.9kRnt>50pct","H73ROHUHhInc35to49.9kRntPctNC","MOE H73ROHUHhInc35to49.9kRntPctNC","H73ROHUHhInc50to74.9k","MOE H73ROHUHhInc50to74.9k","H73ROHUHhInc50to74.9kRnt<20pct","MOE H73ROHUHhInc50to74.9kRnt<20pct","H73ROHUHhInc50to74.9kRnt20to25pct","MOE H73ROHUHhInc50to74.9kRnt20to25pct","H73ROHUHhInc50to74.9kRnt25to30pct","MOE H73ROHUHhInc50to74.9kRnt25to30pct","H73ROHUHhInc50to74.9kRnt30to35pct","MOE H73ROHUHhInc50to74.9kRnt30to35pct","H73ROHUHhInc50to74.9kRnt35to39.9","MOE H73ROHUHhInc50to74.9kRnt35to39.9","H73ROHUHhInc50to74.9kRnt40to49.9","MOE H73ROHUHhInc50to74.9kRnt40to49.9","H73ROHUHhInc50to74.9kRnt>50pct","MOE H73ROHUHhInc50to74.9kRnt>50pct","H73ROHUHhInc50to74.9kRntPctNC","MOE H73ROHUHhInc50to74.9kRntPctNC","H73ROHUHhInc75to99.9k","MOE H73ROHUHhInc75to99.9k","H73ROHUHhInc75to99.9kRnt<20pct","MOE H73ROHUHhInc75to99.9kRnt<20pct","H73ROHUHhInc75to99.9kRnt20to25pct","MOE H73ROHUHhInc75to99.9kRnt20to25pct","H73ROHUHhInc75to99.9kRnt25to30pct","MOE H73ROHUHhInc75to99.9kRnt25to30pct","H73ROHUHhInc75to99.9kRnt30to35pct","MOE H73ROHUHhInc75to99.9kRnt30to35pct","H73ROHUHhInc75to99.9kRnt35to39.9","MOE H73ROHUHhInc75to99.9kRnt35to39.9","H73ROHUHhInc75to99.9kRnt40to49.9","MOE H73ROHUHhInc75to99.9kRnt40to49.9","H73ROHUHhInc75to99.9kRnt>50pct","MOE H73ROHUHhInc75to99.9kRnt>50pct","H73ROHUHhInc75to99.9kRntPctNC","MOE H73ROHUHhInc75to99.9kRntPctNC","H73ROHUHhInc>100k","MOE H73ROHUHhInc>100k","H73ROHUHhInc>100kRnt<20pct","MOE H73ROHUHhInc>100kRnt<20pct","H73ROHUHhInc>100kRnt20to25pct","MOE H73ROHUHhInc>100kRnt20to25pct","H73ROHUHhInc>100kRnt25to30pct","MOE H73ROHUHhInc>100kRnt25to30pct","H73ROHUHhInc>100kRnt30to35pct","MOE H73ROHUHhInc>100kRnt30to35pct","H73ROHUHhInc>100kRnt35to39.9","MOE H73ROHUHhInc>100kRnt35to39.9","H73ROHUHhInc>100kRnt40to49.9","MOE H73ROHUHhInc>100kRnt40to49.9","H73ROHUHhInc>100kRnt>50pct","MOE H73ROHUHhInc>100kRnt>50pct","H73ROHUHhInc>100kRntPctNC","MOE H73ROHUHhInc>100kRntPctNC"]
[{"$f":"VLOOKUP(DropDownList!$B$24,CntyQuery!$A$70:$CF$88,A$1)","v":"Wolfeboro"},622,231,546,229,0,17,0,17,0,17,0,17,0,17,11,19,72,86,0,17,0,17,82,84,0,17,0,17,0,17,0,17,91,104,0,17,0,17,213,165,40,45,12,19,0,17,25,34,0,17,0,17,76,57,1020,416,622,231,0,17,0,17,0,17,0,17,0,17,0,17,0,17,0,17,0,17,93,106,0,17,0,17,11,19,0,17,0,17,0,17,82,105,0,17,93,70,0,17,20,32,16,27,21,32,0,17,20,31,0,17,16,25,33,40,0,17,0,17,0,17,0,17,0,17,27,39,0,17,6,10,59,77,46,74,0,17,0,17,13,21,0,17,0,17,0,17,0,17,115,89,82,81,0,17,0,17,0,17,0,17,0,17,0,17,33,37,229,183,208,180,0,17,0,17,0,17,0,17,0,17,0,17,21,34]
[]
[]
[]
[]
[]
["Occupied Rental Housing Cost Burdern All Incomes"]
["NAME","RenterOccHsU",{"$f":"\"MOE \"&B155","v":"MOE RenterOccHsU"},"GRnt<20PctHHInc",{"$f":"\"MOE \"&D155","v":"MOE GRnt<20PctHHInc"},"GRnt20to249PctHHInc",{"$f":"\"MOE \"&F155","v":"MOE GRnt20to249PctHHInc"},"GRnt25to29.9PctHHInc",{"$f":"\"MOE \"&H155","v":"MOE GRnt25to29.9PctHHInc"},"GRnt<30PctHHInc",{"$f":"\"MOE \"&J155","v":"MOE GRnt<30PctHHInc"},"GRnt>30PctHHInc",{"$f":"\"MOE \"&L155","v":"MOE GRnt>30PctHHInc"},"GRnt30to349PctHHInc",{"$f":"\"MOE \"&N155","v":"MOE GRnt30to349PctHHInc"},"GRnt<35PctHHInc",{"$f":"\"MOE \"&P155","v":"MOE GRnt<35PctHHInc"},"GRnt>35PctHHInc",{"$f":"\"MOE \"&R155","v":"MOE GRnt>35PctHHInc"},"GRnt>50PctHHInc",{"$f":"\"MOE \"&T155","v":"MOE GRnt>50PctHHInc"},"HCB Not Calculated",{"$f":"\"MOE \"&V155","v":"MOE HCB Not Calculated"}]
[{"$f":"VLOOKUP(DropDownList!$B$24,CntyQuery!$A$70:$CF$88,A$1)","v":"Wolfeboro"},622,231,336,205.78629691988726,20,32,27,27,383,210.00238093888365,163,117.957619508025,34,38,417,213.41274563624359,129,111.66915420114903,82,105,76,57]
[]
["Income By Household Type and Tenure"]
["NAME","TotalFamilyHouseholds",{"$f":"\"MOE \"&B159","v":"MOE TotalFamilyHouseholds"},"FamInc<10K",{"$f":"\"MOE \"&D159","v":"MOE FamInc<10K"},"FamInc10to15K",{"$f":"\"MOE \"&F159","v":"MOE FamInc10to15K"},"FamInc15to20K",{"$f":"\"MOE \"&H159","v":"MOE FamInc15to20K"},"FamInc20to25K",{"$f":"\"MOE \"&J159","v":"MOE FamInc20to25K"},"FamInc25to30K",{"$f":"\"MOE \"&L159","v":"MOE FamInc25to30K"},"FamInc30to35K",{"$f":"\"MOE \"&N159","v":"MOE FamInc30to35K"},"FamInc35to40K",{"$f":"\"MOE \"&P159","v":"MOE FamInc35to40K"},"FamInc40to45K",{"$f":"\"MOE \"&R159","v":"MOE FamInc40to45K"},"FamInc45to50K",{"$f":"\"MOE \"&T159","v":"MOE FamInc45to50K"},"FamInc50to60K",{"$f":"\"MOE \"&V159","v":"MOE FamInc50to60K"},"FamInc60to75K",{"$f":"\"MOE \"&X159","v":"MOE FamInc60to75K"},"FamInc75to100K",{"$f":"\"MOE \"&Z159","v":"MOE FamInc75to100K"},"FamInc100to125K",{"$f":"\"MOE \"&AB159","v":"MOE FamInc100to125K"},"FamInc125to150K",{"$f":"\"MOE \"&AD159","v":"MOE FamInc125to150K"},"FamInc150to200K",{"$f":"\"MOE \"&AF159","v":"MOE FamInc150to200K"},"FamInc>200K",{"$f":"\"MOE \"&AH159","v":"MOE FamInc>200K"},"MedFamInc",{"$f":"\"MOE \"&AJ159","v":"MOE MedFamInc"},"TotalNonNonFamilyHouseholds",{"$f":"\"MOE \"&AL159","v":"MOE TotalNonNonFamilyHouseholds"},"NonFamInc<10K",{"$f":"\"MOE \"&AN159","v":"MOE NonFamInc<10K"},"NonFamInc10to15K",{"$f":"\"MOE \"&AP159","v":"MOE NonFamInc10to15K"},"NonFamInc15to20K",{"$f":"\"MOE \"&AR159","v":"MOE NonFamInc15to20K"},"NonFamInc20to25K",{"$f":"\"MOE \"&AT159","v":"MOE NonFamInc20to25K"},"NonFamInc25to30K",{"$f":"\"MOE \"&AV159","v":"MOE NonFamInc25to30K"},"NonFamInc30to35K",{"$f":"\"MOE \"&AX159","v":"MOE NonFamInc30to35K"},"NonFamInc35to40K",{"$f":"\"MOE \"&AZ159","v":"MOE NonFamInc35to40K"},"NonFamInc40to45K",{"$f":"\"MOE \"&BB159","v":"MOE NonFamInc40to45K"},"NonFamInc45to50K",{"$f":"\"MOE \"&BD159","v":"MOE NonFamInc45to50K"},"NonFamInc50to60K",{"$f":"\"MOE \"&BF159","v":"MOE NonFamInc50to60K"},"NonFamInc60to75K",{"$f":"\"MOE \"&BH159","v":"MOE NonFamInc60to75K"},"NonFamInc75to100K",{"$f":"\"MOE \"&BJ159","v":"MOE NonFamInc75to100K"},"NonFamInc100to125K",{"$f":"\"MOE \"&BL159","v":"MOE NonFamInc100to125K"},"NonFamInc125to150K",{"$f":"\"MOE \"&BN159","v":"MOE NonFamInc125to150K"},"NonFamInc150to200K",{"$f":"\"MOE \"&BP159","v":"MOE NonFamInc150to200K"},"NonFamInc>200K",{"$f":"\"MOE \"&BR159","v":"MOE NonFamInc>200K"},"MedNonFamInc",{"$f":"\"MOE \"&BT159","v":"MOE MedNonFamInc"}]
[{"$f":"VLOOKUP(DropDownList!$B$24,CntyQuery!$A$70:$CF$88,A$1)","v":"Wolfeboro"},1708,198,63,72,27,39,47,72,8,13,33,37,140,125,16,33,28,33,115,119,22,33,152,102,186,76,233,175,246,151,137,75,255,128,101214,31280,1079,302,81,99,173,138,12,19,76,58,54,48,74,79,75,96,23,32,43,56,13,21,80,63,153,99,119,77,72,86,17,19,14,20,39141,19122,35527,5009]
[]
[]
[]
["2010 Census"]
[]
["TownName","LOGRECNO","COUNTY","TotalPop","TotalPop1Race","TotalPopWhite","TotalPopAfricanAmerican","TotalPopAmericanIndAlaska","TotalPopAsian","TotalPopNativeHawaiianPIsland","TotalPopSomeOtherRace","TotalPopTwoOrMoreRaces","TotalPopHispanicLatino","TotalNonHispanicLatino","TotPopUnder15yrs","TotPop15to24yrs","TotPop25to34yrs","TotPop35to44yrs","TotPop45to54yrs","TotPop55to64yrs","TotPop65to74yrs","TotPopOver74yrs","MedianAge","MedianAgeMale","MedianAgeFemale","TotalHH","TotalPopInHouseholds","TotalPopInFamilyHH","TotalPopInNonFamilyHH","AvgHHSize","TotalFamilyHH","TotalFamilyHHSpouse","TotalSingleParentHH","TotalNonFamilyHH","AvgFamilyHHSize","AvgNonFamilyHHSize","AverageHHSizeOwnerOccupied","AverageHHSizeRentalOccupied","TotalHousingUnits","TotalOccupiedHU","TotalOwnerOccupiedHUs","TotalRentalOccupiedHU","TotalVacantHU","VacantHUForRent","VacantHURentNotOccupied","VacantHUForSale","VacantHUsSoldNotOccupied","VacantHUSeasonalRecreational","VacantHUsAllOtherVacants","HomeOwnerVacancyRate","HomeRentalVacancyRate","TotalHousingUnits2010","SingFamHU2010","MultiFamHU2010","MobileHom2010"]
[{"$f":"VLOOKUP(DropDownList!$B$24,CntyQuery!$A$70:$CF$88,A$1)","v":"Wolfeboro"},{"$f":"VLOOKUP(DropDownList!$A$24,CntyQryCensus!$A$289:$BC$308,B$1)","v":"0000039"},{"$f":"VLOOKUP(DropDownList!$A$24,CntyQryCensus!$A$289:$BC$308,C$1)","v":"003"},{"$f":"VLOOKUP(DropDownList!$A$24,CntyQryCensus!$A$289:$BC$308,D$1)","v":6269},{"$f":"VLOOKUP(DropDownList!$A$24,CntyQryCensus!$A$289:$BC$308,E$1)","v":6205},{"$f":"VLOOKUP(DropDownList!$A$24,CntyQryCensus!$A$289:$BC$308,F$1)","v":6119},{"$f":"VLOOKUP(DropDownList!$A$24,CntyQryCensus!$A$289:$BC$308,G$1)","v":11},{"$f":"VLOOKUP(DropDownList!$A$24,CntyQryCensus!$A$289:$BC$308,H$1)","v":11},{"$f":"VLOOKUP(DropDownList!$A$24,CntyQryCensus!$A$289:$BC$308,I$1)","v":50},{"$f":"VLOOKUP(DropDownList!$A$24,CntyQryCensus!$A$289:$BC$308,J$1)","v":1},{"$f":"VLOOKUP(DropDownList!$A$24,CntyQryCensus!$A$289:$BC$308,K$1)","v":13},{"$f":"VLOOKUP(DropDownList!$A$24,CntyQryCensus!$A$289:$BC$308,L$1)","v":64},{"$f":"VLOOKUP(DropDownList!$A$24,CntyQryCensus!$A$289:$BC$308,M$1)","v":81},{"$f":"VLOOKUP(DropDownList!$A$24,CntyQryCensus!$A$289:$BC$308,N$1)","v":6188},{"$f":"VLOOKUP(DropDownList!$A$24,CntyQryCensus!$A$289:$BC$308,O$1)","v":876},{"$f":"VLOOKUP(DropDownList!$A$24,CntyQryCensus!$A$289:$BC$308,P$1)","v":546},{"$f":"VLOOKUP(DropDownList!$A$24,CntyQryCensus!$A$289:$BC$308,Q$1)","v":364},{"$f":"VLOOKUP(DropDownList!$A$24,CntyQryCensus!$A$289:$BC$308,R$1)","v":626},{"$f":"VLOOKUP(DropDownList!$A$24,CntyQryCensus!$A$289:$BC$308,S$1)","v":1041},{"$f":"VLOOKUP(DropDownList!$A$24,CntyQryCensus!$A$289:$BC$308,T$1)","v":1060},{"$f":"VLOOKUP(DropDownList!$A$24,CntyQryCensus!$A$289:$BC$308,U$1)","v":861},{"$f":"VLOOKUP(DropDownList!$A$24,CntyQryCensus!$A$289:$BC$308,V$1)","v":895},{"$f":"VLOOKUP(DropDownList!$A$24,CntyQryCensus!$A$289:$BC$308,W$1)","v":52.1},{"$f":"VLOOKUP(DropDownList!$A$24,CntyQryCensus!$A$289:$BC$308,X$1)","v":50.7},{"$f":"VLOOKUP(DropDownList!$A$24,CntyQryCensus!$A$289:$BC$308,Y$1)","v":53.2},{"$f":"VLOOKUP(DropDownList!$A$24,CntyQryCensus!$A$289:$BC$308,Z$1)","v":2839},{"$f":"VLOOKUP(DropDownList!$A$24,CntyQryCensus!$A$289:$BC$308,AA$1)","v":6185},{"$f":"VLOOKUP(DropDownList!$A$24,CntyQryCensus!$A$289:$BC$308,AB$1)","v":3102},{"$f":"VLOOKUP(DropDownList!$A$24,CntyQryCensus!$A$289:$BC$308,AC$1)","v":3083},{"$f":"VLOOKUP(DropDownList!$A$24,CntyQryCensus!$A$289:$BC$308,AD$1)","v":2.1800000000000002},{"$f":"VLOOKUP(DropDownList!$A$24,CntyQryCensus!$A$289:$BC$308,AE$1)","v":1848},{"$f":"VLOOKUP(DropDownList!$A$24,CntyQryCensus!$A$289:$BC$308,AF$1)","v":1539},{"$f":"VLOOKUP(DropDownList!$A$24,CntyQryCensus!$A$289:$BC$308,AG$1)","v":309},{"$f":"VLOOKUP(DropDownList!$A$24,CntyQryCensus!$A$289:$BC$308,AH$1)","v":991},{"$f":"VLOOKUP(DropDownList!$A$24,CntyQryCensus!$A$289:$BC$308,AI$1)","v":2.68},{"$f":"VLOOKUP(DropDownList!$A$24,CntyQryCensus!$A$289:$BC$308,AJ$1)","v":3.1109989909182643},{"$f":"VLOOKUP(DropDownList!$A$24,CntyQryCensus!$A$289:$BC$308,AK$1)","v":2.25},{"$f":"VLOOKUP(DropDownList!$A$24,CntyQryCensus!$A$289:$BC$308,AL$1)","v":1.93},{"$f":"VLOOKUP(DropDownList!$A$24,CntyQryCensus!$A$289:$BC$308,AM$1)","v":4443},{"$f":"VLOOKUP(DropDownList!$A$24,CntyQryCensus!$A$289:$BC$308,AN$1)","v":2839},{"$f":"VLOOKUP(DropDownList!$A$24,CntyQryCensus!$A$289:$BC$308,AO$1)","v":2238},{"$f":"VLOOKUP(DropDownList!$A$24,CntyQryCensus!$A$289:$BC$308,AP$1)","v":601},{"$f":"VLOOKUP(DropDownList!$A$24,CntyQryCensus!$A$289:$BC$308,AQ$1)","v":1604},{"$f":"VLOOKUP(DropDownList!$A$24,CntyQryCensus!$A$289:$BC$308,AR$1)","v":100},{"$f":"VLOOKUP(DropDownList!$A$24,CntyQryCensus!$A$289:$BC$308,AS$1)","v":8},{"$f":"VLOOKUP(DropDownList!$A$24,CntyQryCensus!$A$289:$BC$308,AT$1)","v":93},{"$f":"VLOOKUP(DropDownList!$A$24,CntyQryCensus!$A$289:$BC$308,AU$1)","v":14},{"$f":"VLOOKUP(DropDownList!$A$24,CntyQryCensus!$A$289:$BC$308,AV$1)","v":1322},{"$f":"VLOOKUP(DropDownList!$A$24,CntyQryCensus!$A$289:$BC$308,AW$1)","v":67},{"$f":"VLOOKUP(DropDownList!$A$24,CntyQryCensus!$A$289:$BC$308,AX$1)","v":4},{"$f":"VLOOKUP(DropDownList!$A$24,CntyQryCensus!$A$289:$BC$308,AY$1)","v":14.1},{"$f":"VLOOKUP(DropDownList!$A$24,CntyQryCensus!$A$289:$BC$308,AZ$1)","v":4443},{"$f":"VLOOKUP(DropDownList!$A$24,CntyQryCensus!$A$289:$BC$308,BA$1)","v":3386},{"$f":"VLOOKUP(DropDownList!$A$24,CntyQryCensus!$A$289:$BC$308,BB$1)","v":887},{"$f":"VLOOKUP(DropDownList!$A$24,CntyQryCensus!$A$289:$BC$308,BC$1)","v":170}]

{"sheet":"CntyQuery","index":7,"n_rows":134,"n_cols":243,"rows_kept":134,"cut":false,"hidden":true,"merged":[]}
["CountyName","Cnty_Code","Census_Cnty_Code","LandAcres","WaterAcres","HousingUnits90Cen","Persons90Cen","Families90Cen","Households90cen","MalePop90cen","FemalePop90cen","WhitePop","BlackPop","AmerIndianPop","AsianPIPop","OtherRacePop","HispanicOrPop","AgeUnder15_90cen","Age15to24_90cen","Age25to34_90cen","Age35to44_90cen","Age45to54_90cen","Age55to64_90cen","Age65to74_90cen","Age75andOver_90cen","PersonsInHH90cen","PersonsInFamHH90cen","PersonsInGC","PersonsPerHH90cen","PersonsPerFam90Cen","SinglePersonHH90cen","MarriedCoupleHH90cen","SingleParentHH90cen","NonFamilyHH90cen","TotalHousingUnits","OccupiedHousingUnits","VacantHousingUnits","OwnerOccHU","RenterOccHU","VacantForRent90","VacantForSale90","VacantSeasonalRec","SingFamHU90cen","MultiFamHU90cen","MobileHom90cen","SingFamOwnHU90cen","MultiFamOwnHU90cen","MobileHomOwnHU90cen","SingFamRntrHU90cen","MultiFamRntrHU90cen","MobileHomRntrHU90cen","HU<5yrs90cen","HU5to20yrs90cen","HU20to50yrs90cen","HU>50yrs90cen","Units0Bedroom90cen","Units1Bedroom90cen","Units2Bedroom90cen","Units3Bedroom90cen","Units4+Bedroom90cen","HI<5K","HI5Kto10K","HI10Kto15K","HI15Kto25K","HI25Kto35K","HI35Kto50K","HI50Kto75K","HI75Kto100K","HI>100K","MedHI","HH<25HI<5K","HH<25HI5Kto10K","HH<25HI10Kto15K","HH<25HI15Kto25K","HH<25HI25Kto35K","HH<25HI35Kto50K","HH<25HI50Kto75K","HH<25HI75Kto100K","HH<25HI>100K","HH25to34HI<5K","HH25to34HI5Kto10K","HH25to34HI10Kto15K","HH25to34HI15Kto25K","HH25to34HI25Kto35K","HH25to34HI35Kto50K","HH25to34HI50Kto75K","HH25to34HI75Kto100K","HH25to34HI>100K","HH35to44HI<5K","HH35to44HI5Kto10K","HH35to44HI10Kto15K","HH35to44HI15Kto25K","HH35to44HI25Kto35K","HH35to44HI35Kto50K","HH35to44HI50Kto75K","HH35to44HI75Kto100K","HH35to44HI>100K","HH45to54HI<5K","HH45to54HI5Kto10K","HH45to54HI10Kto15K","HH45to54HI15Kto25K","HH45to54HI25Kto35K","HH45to54HI35Kto50K","HH45to54HI50Kto75K","HH45to54HI75Kto100K","HH45to54HI>100K","HH55to64HI<5K","HH55to64HI5Kto10K","HH55to64HI10Kto15K","HH55to64HI15Kto25K","HH55to64HI25Kto35K","HH55to64HI35Kto50K","HH55to64HI50Kto75K","HH55to64HI75Kto100K","HH55to64HI>100K","HH65to74HI<5K","HH65to74HI5Kto10K","HH65to74HI10Kto15K","HH65to74HI15Kto25K","HH65to74HI25Kto35K","HH65to74HI35Kto50K","HH65to74HI50Kto75K","HH65to74HI75Kto100K","HH65to74HI>100K","HH>75HI<5K","HH>75HI5Kto10K","HH>75HI10Kto15K","HH>75HI15Kto25K","HH>75HI25Kto35K","HH>75HI35Kto50K","HH>75HI50Kto75K","HH>75HI75Kto100K","HH>75HI>100K","SchoolEnrollment1thru12","Pop25andOver","HSGradorHigher","CollGradorHigher","NativePop","ForeignBornPop","BornStateOfRes","NativePop2","ForeignBornPop2","DroveAlone","CarPooled","PublicTranspt","Walked","OtherMeans","WorkedAtHome","HHInc<10K","HHInc10to15K","HHInc15to25K","HHInc25to35K","HHInc35to50K","HHInc50to75K","HHInc75to100K","HHInc100to150K","HHInc>150K"]
["Census 1990 Data -           Query Name:  DPCnty90Census"]
["NAME","FIPS","COUSUBFP","LandAcres","WaterAcres","HousingUnits90Cen","Persons90Cen","Families90Cen","Households90cen","MalePop90cen","FemalePop90cen","WhitePop","BlackPop","AmerIndianPop","AsianPIPop","OtherRacePop","HispanicOrPop","AgeUnder15_90cen","Age15to24_90cen","Age25to34_90cen","Age35to44_90cen","Age45to54_90cen","Age55to64_90cen","Age65to74_90cen","Age75andOver_90cen","PersonsInHH90cen","PersonsInFamHH90cen","PersonsInGC","PersonsPerHH90cen","PersonsPerFam90Cen","SinglePersonHH90cen","MarriedCoupleHH90cen","SingleParentHH90cen","NonFamilyHH90cen","TotalHousingUnits","OccupiedHousingUnits","VacantHousingUnits","OwnerOccHU","RenterOccHU","VacantForRent90","VacantForSale90","VacantSeasonalRec","SingFamHU90cen","MultiFamHU90cen","MobileHom90cen","SingFamOwnHU90cen","MultiFamOwnHU90cen","MobileHomOwnHU90cen","SingFamRntrHU90cen","MultiFamRntrHU90cen","MobileHomRntrHU90cen","HU<5yrs90cen","HU5to20yrs90cen","HU20to50yrs90cen","HU>50yrs90cen","Units0Bedroom90cen","Units1Bedroom90cen","Units2Bedroom90cen","Units3Bedroom90cen","Units4+Bedroom90cen","HI<5K","HI5Kto10K","HI10Kto15K","HI15Kto25K","HI25Kto35K","HI35Kto50K","HI50Kto75K","HI75Kto100K","HI>100K","MedHI","HH<25HI<5K","HH<25HI5Kto10K","HH<25HI10Kto15K","HH<25HI15Kto25K","HH<25HI25Kto35K","HH<25HI35Kto50K","HH<25HI50Kto75K","HH<25HI75Kto100K","HH<25HI>100K","HH25to34HI<5K","HH25to34HI5Kto10K","HH25to34HI10Kto15K","HH25to34HI15Kto25K","HH25to34HI25Kto35K","HH25to34HI35Kto50K","HH25to34HI50Kto75K","HH25to34HI75Kto100K","HH25to34HI>100K","HH35to44HI<5K","HH35to44HI5Kto10K","HH35to44HI10Kto15K","HH35to44HI15Kto25K","HH35to44HI25Kto35K","HH35to44HI35Kto50K","HH35to44HI50Kto75K","HH35to44HI75Kto100K","HH35to44HI>100K","HH45to54HI<5K","HH45to54HI5Kto10K","HH45to54HI10Kto15K","HH45to54HI15Kto25K","HH45to54HI25Kto35K","HH45to54HI35Kto50K","HH45to54HI50Kto75K","HH45to54HI75Kto100K","HH45to54HI>100K","HH55to64HI<5K","HH55to64HI5Kto10K","HH55to64HI10Kto15K","HH55to64HI15Kto25K","HH55to64HI25Kto35K","HH55to64HI35Kto50K","HH55to64HI50Kto75K","HH55to64HI75Kto100K","HH55to64HI>100K","HH65to74HI<5K","HH65to74HI5Kto10K","HH65to74HI10Kto15K","HH65to74HI15Kto25K","HH65to74HI25Kto35K","HH65to74HI35Kto50K","HH65to74HI50Kto75K","HH65to74HI75Kto100K","HH65to74HI>100K","HH>75HI<5K","HH>75HI5Kto10K","HH>75HI10Kto15K","HH>75HI15Kto25K","HH>75HI25Kto35K","HH>75HI35Kto50K","HH>75HI50Kto75K","HH>75HI75Kto100K","HH>75HI>100K","SchoolEnrollment1thru12","Pop25andOver","HSGradorHigher","CollGradorHigher","NativePop","ForeignBornPop","BornStateOfRes","NativePop2","ForeignBornPop2","DroveAlone","CarPooled","PublicTranspt","Walked","OtherMeans","WorkedAtHome","HHInc<10K","HHInc10to15K","HHInc15to25K","HHInc25to35K","HHInc35to50K","HHInc50to75K","HHInc75to100K","HHInc100to150K","HHInc>150K"]
["Albany",3005,"00420",48252.959999999999,222.58,451,536,142,214,268,268,531,0,5,0,0,1,126,58,123,82,56,45,32,14,536,433,0,2.5046728971962615,3.0492957746478875,46,121,21,26,451,214,237,165,49,18,11,175,337,27,87,113,4,87,24,18,7,126,165,62,113,11,62,202,139,52,2,24,25,53,51,31,18,6,2,25455,0,5,5,5,3,0,0,0,0,2,2,8,27,18,9,6,3,0,0,0,8,9,11,6,5,0,2,0,4,0,2,8,9,3,0,0,0,4,0,6,8,4,2,3,0,0,3,2,4,3,3,2,0,0,0,6,2,0,0,0,0,0,0,72,330,247,41,520,10,226,520,10,216,22,0,2,4,20,26,25,53,51,31,18,6,2,0]
["Bartlett",3010,"03700",47877.75,4.5,3407,2290,617,958,1150,1140,2270,3,4,10,3,7,439,220,422,461,251,228,172,97,2267,1809,23,2.3663883089770357,2.9319286871961103,240,519,98,101,3407,958,2449,618,340,467,47,1871,1602,1677,128,517,59,128,134,170,36,866,1105,550,904,47,262,1152,1562,402,43,69,81,227,169,163,123,34,37,28485,2,4,2,14,4,6,2,0,2,2,11,24,59,61,34,16,5,2,8,8,11,48,51,73,47,17,2,5,3,6,23,29,27,27,3,18,8,7,16,27,13,12,24,9,7,9,26,8,36,8,9,5,0,6,9,10,14,20,3,2,2,0,0,313,1603,1408,407,2203,74,802,2203,74,976,84,4,45,4,75,112,81,227,169,163,123,34,30,7]
["Brookfield",3015,"07940",14628.95,251.36,274,518,152,192,246,272,518,0,0,0,0,2,121,46,68,95,57,52,40,39,518,471,0,2.6979166666666665,3.0986842105263159,33,136,16,7,274,192,82,178,14,1,8,66,256,11,7,168,7,7,13,1,0,54,89,53,101,5,10,68,129,85,6,11,12,21,29,59,50,8,9,39653,0,0,2,0,0,3,0,0,0,2,0,3,1,4,12,10,2,0,0,0,0,8,11,14,7,0,2,0,0,2,0,0,6,21,3,0,2,2,0,5,9,6,8,0,5,2,0,0,2,3,14,2,3,0,0,9,5,5,2,4,2,0,2,91,377,349,110,565,14,241,565,14,181,40,0,3,3,37,17,12,21,29,59,50,8,7,2]
["Chatham",3020,"11780",36313.620000000003,325.56,211,268,71,97,131,137,266,1,0,1,0,0,50,39,44,59,30,19,18,9,268,233,0,2.7628865979381443,3.2816901408450705,19,61,10,7,211,97,114,87,10,5,2,105,183,6,22,79,0,22,7,2,1,23,36,60,83,3,11,48,89,51,3,7,6,30,10,11,19,0,2,24286,0,0,0,2,0,0,0,0,0,0,2,0,6,2,0,4,0,0,0,2,0,8,6,5,1,0,0,0,0,0,5,2,0,14,0,2,0,0,2,5,0,4,0,0,0,3,3,2,4,0,2,0,0,0,0,0,2,0,0,0,0,0,0,55,178,149,18,282,0,138,282,0,75,17,0,14,0,16,10,6,30,10,11,19,0,2,0]
["Conway",3025,"14660",44596.85,1284.22,5499,7940,2056,3306,3837,4103,7855,18,11,48,8,34,1618,905,1448,1407,755,687,628,492,7824,6207,116,2.366606170598911,3.0189688715953307,957,1650,406,293,5499,3306,2193,2153,1153,206,122,1700,2972,1751,776,1602,178,776,279,754,120,1182,1845,1016,1465,68,635,2080,1798,927,126,312,364,748,550,622,404,90,94,26823,17,7,21,46,84,3,29,0,0,21,44,65,231,142,160,47,13,22,16,35,37,177,139,235,146,23,18,16,5,20,69,57,103,65,28,25,25,19,32,95,48,68,60,8,18,4,92,126,103,49,39,53,4,11,27,110,63,27,31,14,4,14,0,1193,5418,4577,1236,7778,148,3298,7778,148,2984,435,14,280,35,200,438,364,748,550,622,404,90,32,62]
["Eaton",3030,"23380",15618.56,764.53,240,362,103,138,187,175,360,0,1,1,0,1,83,35,50,83,39,36,21,15,362,318,0,2.6231884057971016,3.087378640776699,27,96,7,8,240,138,102,113,25,5,4,87,218,10,12,104,1,12,18,6,1,46,59,55,75,9,21,58,104,43,4,10,8,18,24,27,31,11,7,40313,0,0,0,0,0,2,0,0,0,0,2,0,0,10,2,5,0,3,0,2,3,7,5,16,10,2,3,2,0,0,4,7,6,12,7,1,0,0,0,2,0,0,0,0,0,0,0,5,2,2,0,4,0,0,2,6,0,3,0,1,0,2,0,45,251,231,93,347,24,118,347,24,108,15,2,6,2,48,14,8,18,24,27,31,11,3,4]
["Effingham",3035,"23620",24877.94,677.85,682,941,250,320,487,454,921,12,7,0,1,4,203,121,143,162,99,83,80,50,865,777,76,2.703125,3.1080000000000001,53,213,37,17,682,320,362,287,33,3,15,287,573,6,103,244,1,103,23,3,7,125,178,119,260,6,69,242,265,100,19,32,28,79,58,56,25,10,7,24853,2,2,0,0,0,0,0,0,0,2,1,2,24,12,14,0,0,0,0,3,8,17,14,22,9,2,0,6,0,5,3,18,8,10,2,5,2,6,4,12,5,10,2,4,2,0,5,7,13,9,2,4,2,0,7,15,2,10,0,0,0,0,0,162,617,488,87,930,11,352,930,11,272,48,5,22,6,25,51,28,79,58,56,25,10,7,0]
["Freedom",3040,"27700",22077.17,2184.7600000000002,1359,935,287,376,456,479,929,3,1,2,0,0,184,87,134,153,108,119,104,46,935,815,0,2.4867021276595747,2.8397212543554007,64,244,43,25,1359,376,983,308,68,7,15,890,1111,60,188,274,10,188,36,24,8,494,392,245,228,4,117,431,582,225,7,20,38,68,96,67,54,16,13,30491,0,0,0,2,5,0,1,0,0,2,0,4,9,15,14,7,0,2,2,5,3,16,13,16,19,9,0,0,3,3,11,16,20,11,5,8,3,6,7,13,17,7,10,0,3,0,0,9,15,27,5,3,2,0,0,6,12,2,3,5,3,0,0,160,664,578,187,914,21,284,914,21,374,34,2,7,4,18,27,38,68,96,67,54,16,6,7]
["Hale's Location",3045,"32500",1599.76,0.04,2,0,0,0,0,0,0,0,0,0,0,0,0,0,0,0,0,0,0,0,0,0,0,0,0,0,0,0,0,2,0,2,0,0,0,2,0,2,0,0,0,0,0,0,0,0,0,1,0,0,0,0,0,1,0,0,0,0,0,0,0,0,0,0,0,0,0,0,0,0,0,0,0,0,0,0,0,0,0,0,0,0,0,0,0,0,0,0,0,0,0,0,0,0,0,0,0,0,0,0,0,0,0,0,0,0,0,0,0,0,0,0,0,0,0,0,0,0,0,0,0,0,0,0,0,0,0,0,0,0,0,0,0,0,0,0,0,0,0,0,0,0,0,0,0,0,0,0,0,0,0,0]
["Hart's Location",3050,"34500",12302.44,0.03,64,36,13,15,19,17,36,0,0,0,0,0,7,1,3,10,6,2,6,1,36,34,0,2.4,2.6153846153846154,2,13,0,0,64,15,49,13,2,2,2,44,62,0,2,11,0,2,2,0,0,21,28,2,11,0,2,16,32,12,0,0,3,8,2,1,3,2,0,23125,0,0,0,0,0,0,0,0,0,0,0,0,0,0,0,0,0,0,0,0,0,0,0,0,3,2,0,0,0,0,3,2,0,0,0,0,0,0,0,0,0,1,0,0,0,0,0,3,3,0,0,0,0,0,0,0,0,2,0,0,0,0,0,5,35,33,9,42,0,13,42,0,13,2,0,0,0,7,0,3,8,2,1,3,2,0,0]
["Jackson",3055,"38260",42753.69,4.3,865,678,190,313,348,330,672,1,5,0,0,2,89,55,101,133,105,82,76,37,678,516,0,2.1661341853035143,2.7157894736842105,90,176,14,33,865,313,552,230,83,5,8,530,655,176,34,212,13,34,45,27,11,209,188,271,182,25,31,171,373,250,7,14,46,40,56,71,54,23,18,35187,0,0,1,2,0,5,0,0,0,0,3,9,6,14,7,7,2,0,0,2,8,8,16,16,16,2,8,4,0,0,0,14,10,11,11,2,0,3,3,12,3,15,13,5,8,0,6,20,10,6,9,2,3,0,3,0,5,2,3,9,5,0,0,57,555,502,222,669,16,209,669,16,277,12,0,48,6,15,21,46,40,56,71,54,23,11,7]
["Madison",3060,"45060",24765.919999999998,1391.32,1422,1704,469,676,832,872,1702,1,0,1,0,8,384,163,320,302,174,145,143,73,1704,1427,0,2.5207100591715976,3.0426439232409384,148,408,61,59,1422,676,746,538,138,45,15,661,1219,105,98,481,13,98,62,56,20,378,441,315,293,25,119,418,664,201,22,45,49,160,137,126,93,22,16,30000,0,3,1,21,12,6,0,0,0,2,10,4,34,46,32,27,2,3,2,0,8,29,42,26,30,4,0,5,7,11,20,16,25,21,7,6,9,2,12,24,3,22,7,6,5,3,15,9,16,10,15,4,3,2,1,8,4,16,8,0,4,0,0,254,1150,1029,303,1650,45,649,1650,45,640,51,14,15,6,58,67,49,160,137,126,93,22,8,8]
["Moultonborough",3065,"49380",38425.42,9622.85,3850,2956,874,1164,1438,1518,2935,3,6,10,2,6,617,337,380,487,329,335,306,165,2956,2612,0,2.5395189003436425,2.9885583524027459,242,757,117,48,3850,1164,2686,942,222,23,58,2526,3516,171,163,866,18,163,152,42,28,570,1620,894,740,13,114,1205,1715,777,68,106,115,172,203,221,155,41,43,29476,0,0,0,7,19,7,0,0,0,0,14,9,36,26,61,18,0,15,9,0,64,47,63,37,58,6,9,0,11,6,22,26,34,51,6,7,7,11,6,25,41,38,22,17,12,40,32,14,28,19,44,6,12,0,12,38,16,7,9,0,0,0,0,508,1938,1646,473,2825,71,1046,2825,71,928,171,7,32,17,95,174,115,172,203,221,155,41,34,9]
["Ossipee",3070,"58740",45385.95,2792.5,2617,3309,909,1254,1623,1686,3285,4,8,9,3,9,710,335,524,478,350,326,314,272,3176,2755,133,2.532695374800638,3.0308030803080306,276,771,138,69,2617,1254,1363,999,255,44,44,1069,1810,147,660,698,23,660,103,87,65,706,791,735,385,78,289,951,1041,258,53,70,170,350,304,166,136,25,19,25117,0,0,10,9,9,0,0,0,0,0,11,55,61,118,33,22,0,10,12,8,37,53,36,78,52,5,0,9,0,21,75,24,10,25,0,9,0,35,11,27,47,35,7,20,0,20,0,24,85,45,0,10,0,0,12,16,12,40,25,10,20,0,0,592,2326,1607,307,3236,73,1277,3236,73,1103,157,0,23,8,67,123,170,350,304,166,136,25,14,5]
["Sandwich",3075,"67780",58394.47,1856.35,864,1066,333,456,506,560,1054,5,2,4,1,6,185,72,131,206,105,133,137,97,1066,928,0,2.3377192982456139,2.7867867867867866,111,292,41,12,864,456,408,386,70,7,11,352,775,27,62,363,3,62,53,14,3,162,212,105,385,17,78,254,295,220,6,49,38,93,74,82,62,11,40,29728,0,0,0,0,2,0,0,0,0,2,2,7,12,11,9,7,0,2,0,8,7,34,22,25,14,2,5,0,4,4,8,19,12,11,0,4,0,3,3,7,14,15,10,4,15,2,18,12,22,4,18,7,5,3,2,14,5,10,2,3,13,0,11,136,808,730,315,1047,19,388,1047,19,332,62,0,18,9,94,55,38,93,74,82,62,11,19,21]
["Tamworth",3080,"76100",38289.06,523.49,1523,2165,609,875,1103,1062,2154,2,4,1,4,11,460,203,370,353,227,225,187,140,2165,1831,0,2.4742857142857142,3.006568144499179,214,526,83,52,1523,875,648,677,198,29,25,524,1156,128,239,559,11,239,75,96,27,298,405,254,551,25,184,489,530,280,58,68,123,181,165,141,104,27,12,25552,2,0,3,5,3,4,0,0,0,0,17,16,33,45,39,20,0,0,8,9,22,66,36,34,45,7,5,8,3,10,28,21,21,12,9,2,15,8,14,19,35,23,11,0,5,8,13,42,14,10,12,11,11,0,17,18,16,16,15,8,5,0,0,339,1524,1243,321,2124,47,886,2124,47,776,102,3,23,2,124,126,123,181,165,141,104,27,12,0]
["Tuftonboro",3085,"77620",25998.87,5639.62,2027,1842,538,710,884,958,1836,0,1,3,2,7,400,168,239,304,176,201,223,131,1842,1635,0,2.5943661971830987,3.0390334572490705,140,486,52,32,2027,710,1317,596,114,5,33,1236,1739,95,193,540,20,193,72,30,12,418,717,380,512,15,105,661,807,439,23,60,59,141,154,116,97,36,23,30175,0,1,0,2,7,2,0,0,0,2,10,0,25,30,27,5,0,9,2,1,9,37,27,29,35,9,6,8,2,0,9,19,25,21,8,0,4,6,11,21,28,13,22,7,2,3,21,27,35,23,16,6,10,3,4,19,12,12,20,4,8,2,3,328,1274,1134,328,1803,39,751,1803,39,670,46,4,22,9,39,83,59,141,154,116,97,36,15,8]
["Wakefield",3090,"78180",25297.02,3420.05,3158,3057,878,1172,1487,1570,3030,11,2,10,4,9,679,335,515,452,315,321,303,137,3057,2698,0,2.6083617747440271,3.0728929384965831,239,766,112,55,3158,1172,1986,967,205,30,40,1842,2726,200,232,871,27,232,85,94,26,602,914,813,810,34,319,1346,1140,300,60,100,162,191,217,187,197,56,25,28171,0,12,7,6,0,0,0,0,0,15,6,20,46,65,20,22,6,2,8,9,48,38,44,39,35,45,3,17,12,7,25,21,48,79,0,3,5,19,25,30,36,13,43,5,4,7,39,46,21,42,55,16,0,13,8,3,9,25,9,12,2,0,0,549,2067,1643,275,3072,51,1308,3072,51,1041,268,0,10,9,94,160,162,191,217,187,197,56,12,13]
["Wolfeboro",3095,"86420",30940.29,6465.23,3631,4807,1375,2017,2240,2567,4796,2,3,6,0,25,897,421,648,708,467,572,577,517,4716,3981,91,2.3381259295984136,2.8952727272727272,564,1187,188,78,3631,2017,1614,1482,535,77,64,1345,2716,628,287,1296,73,287,174,314,47,805,907,774,1167,39,298,1201,1380,735,94,108,202,416,389,356,297,119,35,29542,0,0,0,18,7,8,0,0,0,0,14,15,104,85,93,40,8,5,17,0,27,38,69,94,64,57,23,20,0,16,38,49,61,53,9,0,7,16,18,76,71,54,32,39,7,7,43,65,70,80,32,59,6,0,43,35,61,72,28,14,49,0,0,696,3503,2972,1022,4584,156,2285,4584,156,1725,224,9,174,26,128,202,202,416,389,356,297,119,35,0]
[]
[]
["Census 1990 Data -    Query Name:  CountySTF1Qry1"]
["NAME","COUSUBFP","Census_Cnty_Code","FIPS","LandAcres","WaterAcres","HousingUnits90Cen","P01Persons90Cen","P02Families90Cen","P03Households90cen","P05MalePop90cen","P05FemalePop90cen","P06WhitePop","P06BlackPop","P06AmerIndianPop","P06AsianPIPop","P06OtherRacePop","P08HispanicOrPop","P11AgeUnder15_90cen","P11Age15to24_90cen","P11Age25to34_90cen","P11Age35to44_90cen","P11Age45to54_90cen","P11Age55to64_90cen","P11Age65to74_90cen","P11Age75andOver_90cen","P15PersonsInHH90cen","P15PersonsInFamHH90cen","P15PersonsInGC","PersonsPerHH90cen","PersonsPerFam90Cen","P16SinglePersonHH90cen","P16MarriedCoupleHH90cen","P16SingleParentHH90cen","P16NonFamilyHH90cen","H01TotalHousingUnits","H02OccupiedHousingUnits","H02VacantHousingUnits","H03OwnerOccHU","H03RenterOccHU","H05VacantForRent90","H05VacantForSale90","H05VacantSeasonalRec","H23OOHUVal<15k","H23OOHUVal15to19k","H23OOHUVal20to24k","H23OOHUVal25to29k","H23OOHUVal30to34k","H23OOHUVal35to39k","H23OOHUVal40to44k","H23OOHUVal45to49k","H23OOHUVal50to59k","H23OOHUVal60to74k","H23OOHUVal75to99k","H23OOHUVal100to124k","H23OOHUVal125to149k","H23OOHUVal150to174k","H23OOHUVal175to199k","H23OOHUVal200to249k","H23OOHUVal250to299k","H23OOHUVal300to399k","H23OOHUVal400to499k","H23OOHUVal500kOrMore","H23BOOHUMedVal","H41SingFamHU90cen","H41MultiFamHU90cen","H41MobileHom90cen","H43SingFamOwnHU90cen","H43MultiFamOwnHU90cen","H43MobileHomOwnHU90cen","H43SingFamRntrHU90cen","H43MultiFamRntrHU90cen","H43MobileHomRntrHU90cen","H41HU1UnitDet","H41HU1UnitAtt","H41HU2Unit","H41HU3to4Unit","H41HU5to9Unit","H41HU10to19Unit","H41HU20to49Unit","H41HU50PlusUnit","H41HUMobilH","H41HUOther"]
["Albany",201,3005,"00420",48252.959999999999,222.58,451,536,142,214,268,268,531,0,5,0,0,1,126,58,123,82,56,45,32,14,536,433,0,2.5046728971962615,3.0492957746478875,46,121,21,26,451,214,237,165,49,18,11,175,1,0,1,1,4,0,1,1,4,12,29,18,12,3,1,2,0,1,1,1,93500,337,27,87,113,4,48,24,18,7,337,3,17,7,0,0,0,0,75,12]
["Bartlett",202,3010,"03700",47877.75,4.5,3407,2290,617,958,1150,1140,2270,3,4,10,3,7,439,220,422,461,251,228,172,97,2267,1809,23,2.3663883089770357,2.9319286871961103,240,519,98,101,3407,958,2449,618,340,467,47,1871,2,0,5,2,1,3,9,6,11,33,102,74,67,61,35,27,15,7,5,4,120400,1602,1677,128,517,59,42,134,170,36,1602,870,109,194,393,91,20,0,86,42]
["Brookfield",203,3015,"07940",14628.95,251.36,274,518,152,192,246,272,518,0,0,0,0,2,121,46,68,95,57,52,40,39,518,471,0,2.6979166666666665,3.0986842105263159,33,136,16,7,274,192,82,178,14,1,8,66,0,0,1,0,0,0,0,2,1,8,21,15,29,23,15,2,2,3,1,1,137100,256,11,7,168,7,3,13,1,0,256,7,4,0,0,0,0,0,5,2]
["Chatham",204,3020,"11780",36313.620000000003,325.56,211,268,71,97,131,137,266,1,0,1,0,0,50,39,44,59,30,19,18,9,268,233,0,2.7628865979381443,3.2816901408450705,19,61,10,7,211,97,114,87,10,5,2,105,2,0,2,0,1,2,0,1,1,4,16,9,2,1,2,1,3,0,0,0,91400,183,6,22,79,0,8,7,2,1,183,1,0,0,5,0,0,0,19,3]
["Conway",205,3025,"14660",44596.85,1284.22,5499,7940,2056,3306,3837,4103,7855,18,11,48,8,34,1618,905,1448,1407,755,687,628,492,7824,6207,116,2.366606170598911,3.0189688715953307,957,1650,406,293,5499,3306,2193,2153,1153,206,122,1700,4,1,4,5,5,4,6,10,33,65,348,325,263,128,77,61,31,16,8,4,116500,2972,1751,776,1602,178,373,279,754,120,2972,366,281,320,473,186,125,0,638,138]
["Eaton",206,3030,"23380",15618.56,764.53,240,362,103,138,187,175,360,0,1,1,0,1,83,35,50,83,39,36,21,15,362,318,0,2.6231884057971016,3.087378640776699,27,96,7,8,240,138,102,113,25,5,4,87,2,0,0,0,0,0,2,1,3,5,10,1,11,7,4,3,4,2,0,1,134100,218,10,12,104,1,8,18,6,1,218,0,6,4,0,0,0,0,6,6]
["Effingham",207,3035,"23620",24877.94,677.85,682,941,250,320,487,454,921,12,7,0,1,4,203,121,143,162,99,83,80,50,865,777,76,2.703125,3.1080000000000001,53,213,37,17,682,320,362,287,33,3,15,287,0,1,0,1,2,1,3,4,9,28,57,24,17,13,1,3,0,0,0,0,89500,573,6,103,244,1,42,23,3,7,573,1,4,1,0,0,0,0,97,6]
["Freedom",208,3040,"27700",22077.17,2184.7600000000002,1359,935,287,376,456,479,929,3,1,2,0,0,184,87,134,153,108,119,104,46,935,815,0,2.4867021276595747,2.8397212543554007,64,244,43,25,1359,376,983,308,68,7,15,890,2,0,3,2,1,2,0,3,10,11,31,29,35,24,11,18,7,5,0,0,127100,1111,60,188,274,10,24,36,24,8,1111,12,16,10,22,0,0,0,114,74]
["Hart's Location",209,3050,"34500",12302.44,0.03,64,36,13,15,19,17,36,0,0,0,0,0,7,1,3,10,6,2,6,1,36,34,0,2.4,2.6153846153846154,2,13,0,0,64,15,49,13,2,2,2,44,0,0,0,0,0,0,0,1,0,1,1,2,4,0,1,0,0,0,0,0,125000,62,0,2,11,0,2,2,0,0,62,0,0,0,0,0,0,0,0,2]
["Jackson",210,3055,"38260",42753.69,4.3,865,678,190,313,348,330,672,1,5,0,0,2,89,55,101,133,105,82,76,37,678,516,0,2.1661341853035143,2.7157894736842105,90,176,14,33,865,313,552,230,83,5,8,530,0,1,1,0,0,2,1,1,5,3,21,25,22,14,14,27,11,9,2,6,150900,655,176,34,212,13,5,45,27,11,655,55,16,75,9,21,0,0,10,24]
["Madison",211,3060,"45060",24765.919999999998,1391.32,1422,1704,469,676,832,872,1702,1,0,1,0,8,384,163,320,302,174,145,143,73,1704,1427,0,2.5207100591715976,3.0426439232409384,148,408,61,59,1422,676,746,538,138,45,15,661,2,0,0,1,0,2,2,1,17,22,94,84,47,38,27,17,7,8,1,2,113400,1219,105,98,481,13,44,62,56,20,1219,15,56,11,1,0,22,0,83,15]
["Moultonborough",212,3065,"49380",38425.42,9622.85,3850,2956,874,1164,1438,1518,2935,3,6,10,2,6,617,337,380,487,329,335,306,165,2956,2612,0,2.5395189003436425,2.9885583524027459,242,757,117,48,3850,1164,2686,942,222,23,58,2526,3,0,0,1,0,5,6,3,10,41,112,111,94,68,36,59,57,59,24,47,145200,3516,171,163,866,18,58,152,42,28,3516,83,39,31,8,10,0,0,94,69]
["Ossipee",213,3070,"58740",45385.95,2792.5,2617,3309,909,1254,1623,1686,3285,4,8,9,3,9,710,335,524,478,350,326,314,272,3176,2755,133,2.532695374800638,3.0308030803080306,276,771,138,69,2617,1254,1363,999,255,44,44,1069,8,2,6,7,9,8,10,16,31,61,120,120,60,45,25,21,9,3,1,0,100600,1810,147,660,698,23,278,103,87,65,1810,11,43,31,28,34,0,0,553,107]
["Sandwich",214,3075,"67780",58394.47,1856.35,864,1066,333,456,506,560,1054,5,2,4,1,6,185,72,131,206,105,133,137,97,1066,928,0,2.3377192982456139,2.7867867867867866,111,292,41,12,864,456,408,386,70,7,11,352,3,0,2,0,1,4,2,3,4,18,28,23,44,14,15,14,10,5,2,1,129800,775,27,62,363,3,20,53,14,3,775,9,8,0,7,3,0,0,33,29]
["Tamworth",215,3080,"76100",38289.06,523.49,1523,2165,609,875,1103,1062,2154,2,4,1,4,11,460,203,370,353,227,225,187,140,2165,1831,0,2.4742857142857142,3.006568144499179,214,526,83,52,1523,875,648,677,198,29,25,524,6,1,4,2,4,4,6,7,23,53,127,62,48,29,10,8,4,0,0,0,92500,1156,128,239,559,11,107,75,96,27,1156,10,27,42,25,0,24,0,206,33]
["Tuftonboro",216,3085,"77620",25998.87,5639.62,2027,1842,538,710,884,958,1836,0,1,3,2,7,400,168,239,304,176,201,223,131,1842,1635,0,2.5943661971830987,3.0390334572490705,140,486,52,32,2027,710,1317,596,114,5,33,1236,1,0,0,0,1,1,4,4,7,13,65,52,58,47,35,41,28,18,13,14,147800,1739,95,193,540,20,36,72,30,12,1739,19,17,33,26,0,0,0,177,16]
["Wakefield",217,3090,"78180",25297.02,3420.05,3158,3057,878,1172,1487,1570,3030,11,2,10,4,9,679,335,515,452,315,321,303,137,3057,2698,0,2.6083617747440271,3.0728929384965831,239,766,112,55,3158,1172,1986,967,205,30,40,1842,0,0,2,0,1,1,3,6,23,68,231,152,90,60,35,43,15,10,3,2,106200,2726,200,232,871,27,69,85,94,26,2726,65,59,69,2,5,0,0,209,23]
["Wolfeboro",218,3095,"86420",30940.29,6465.23,3631,4807,1375,2017,2240,2567,4796,2,3,6,0,25,897,421,648,708,467,572,577,517,4716,3981,91,2.3381259295984136,2.8952727272727272,564,1187,188,78,3631,2017,1614,1482,535,77,64,1345,3,1,7,1,2,7,10,11,22,71,163,176,164,137,94,118,54,30,20,38,138800,2716,628,287,1296,73,113,174,314,47,2716,153,106,210,93,0,66,0,165,122]
["Hale's Location",219,3045,"32500",1599.76,0.04,2,0,0,0,0,0,0,0,0,0,0,0,0,0,0,0,0,0,0,0,0,0,0,0,0,0,0,0,0,2,0,2,0,0,0,2,0,0,0,0,0,0,0,0,0,0,0,0,0,0,0,0,0,0,0,0,0,0,2,0,0,0,0,0,0,0,0,2,0,0,0,0,0,0,0,0,0]
[]
[]
[]
["Census 1990 Data -          Query Name: CountySTF3Qry1"]
[]
["NAME","FIPS","COUSUBFP","LandAcres","WaterAcres","HousingUnits90Cen","P01Persons90Cen","P02Families90Cen","P03Households90cen","H25HU<5yrs90cen","H25HU5to20yrs90cen","H25HU20to50yrs90cen","H25HU>50yrs90cen","H31Units0Bedroom90cen","H31Units1Bedroom90cen","H31Units2Bedroom90cen","H31Units3Bedroom90cen","H31Units4Bedroom90cen","H31Units5+Bedroom90cen","P80HI<5K","P80HI5Kto10K","P80HI10Kto15K","P80HI15Kto25K","P80HI25Kto35K","P80HI35Kto50K","P80HI50Kto75K","P80HI75Kto100K","P80HI>100K","P80AMedHI","P86HH<25HI<5K","P86HH<25HI5Kto10K","P86HH<25HI10Kto15K","P86HH<25HI15Kto25K","P86HH<25HI25Kto35K","P86HH<25HI35Kto50K","P86HH<25HI50Kto75K","P86HH<25HI75Kto100K","P86HH<25HI>100K","P86HH25to34HI<5K","P86HH25to34HI5Kto10K","P86HH25to34HI10Kto15K","P86HH25to34HI15Kto25K","P86HH25to34HI25Kto35K","P86HH25to34HI35Kto50K","P86HH25to34HI50Kto75K","P86HH25to34HI75Kto100K","P86HH25to34HI>100K","P86HH35to44HI<5K","P86HH35to44HI5Kto10K","P86HH35to44HI10Kto15K","P86HH35to44HI15Kto25K","P86HH35to44HI25Kto35K","P86HH35to44HI35Kto50K","P86HH35to44HI50Kto75K","P86HH35to44HI75Kto100K","P86HH35to44HI>100K","P86HH45to54HI<5K","P86HH45to54HI5Kto10K","P86HH45to54HI10Kto15K","P86HH45to54HI15Kto25K","P86HH45to54HI25Kto35K","P86HH45to54HI35Kto50K","P86HH45to54HI50Kto75K","P86HH45to54HI75Kto100K","P86HH45to54HI>100K","P86HH55to64HI<5K","P86HH55to64HI5Kto10K","P86HH55to64HI10Kto15K","P86HH55to64HI15Kto25K","P86HH55to64HI25Kto35K","P86HH55to64HI35Kto50K","P86HH55to64HI50Kto75K","P86HH55to64HI75Kto100K","P86HH55to64HI>100K","P86HH65to74HI<5K","P86HH65to74HI5Kto10K","P86HH65to74HI10Kto15K","P86HH65to74HI15Kto25K","P86HH65to74HI25Kto35K","P86HH65to74HI35Kto50K","P86HH65to74HI50Kto75K","P86HH65to74HI75Kto100K","P86HH65to74HI>100K","P86HH>75HI<5K","P86HH>75HI5Kto10K","P86HH>75HI10Kto15K","P86HH>75HI15Kto25K","P86HH>75HI25Kto35K","P86HH>75HI35Kto50K","P86HH>75HI50Kto75K","P86HH>75HI75Kto100K","P86HH>75HI>100K","P54SchlEnrlPrePrim","P54SchlEnrlElemThrHS","P54SchlEnrlCollege","P54NotEnrlInSch","P57Pop25andOver","P57LessThan9thGrade","P579thto12thNoDip","P57HSGrad","P57SomeCollege","P57AssocDeg","P57BachelDeg","P57GradorProfDeg","P57HSGradorHigher","P57CollGradorHigher","P42NativePop","P42ForeignBornPop","P42BornStateOfRes","P37NativePop2","P37ForeignBornPop2","P49DroveAlone","P49CarPooled","P49PublicTranspt","P49Walked","P49OtherMeans","P49WorkedAtHome","P80HHInc<10K","P80HHInc10to15K","P80HHInc15to25K","P80HHInc25to35K","P80HHInc35to50K","P80HHInc50to75K","P80HHInc75to100K","P80HHInc100to150K","P80HHInc>150K","H25YearStBlt89to90","H25YearStBlt85to88","H25YearStBlt80to84","H25YearStBlt70to79","H25YearStBlt60to69","H25YearStBlt50to59","H25YearStBlt40to49","H25YearStBlt39earlier","P107FamInc<10K","P107FamInc10to15K","P107FamInc15to25K","P107FamInc25to35K","P107FamInc35to50K","P107FamInc50to75K","P107FamInc75to100K","P107FamInc100to150K","P107FamInc>150K","P107AMedFamInc","P110NonFamInc<10K","P110NonFamInc10to15K","P110NonFamInc15to25K","P110NonFamInc25to35K","P110NonFamInc35to50K","P110NonFamInc50to75K","P110NonFamInc75to100K","P110NonFamInc100to150K","P110NonFamInc>150K","P110AMedNonFamInc","H16HU1Room","H16HU2Room","H16HU3Room",null,null,"H16HU6Room","H16HU7Room","H16HU8Room","H16HU9+Room","H43GrossRnt<100","H43GrossRnt100to149","H43GrossRnt150to199","H43GrossRnt200to249","H43GrossRnt250to299","H43GrossRnt300to349","H43GrossRnt350to399","H43GrossRnt400to449","H43GrossRnt450to499","H43GrossRnt500to549","H43GrossRnt550to599","H43GrossRnt600to649","H43GrossRnt650to699","H43GrossRnt700to749","H43GrossRnt750to999","H43GrossRnt1000Plus","H43NoCashRent","H43MedGrossRent","H51GrossRnt<20PctHHInc","H51GrossRnt20to24PctHHInc","H51GrossRnt25to29PctHHInc","H51GrossRnt30to34PctHHInc","H51GrossRnt35PctOrMoreHHInc","H51GrossRntAsPctHHIncNotComp","H52HUwMtgMoOwnCst<200","H52HUwMtgMoOwnCst200to299","H52HUwMtgMoOwnCst300to399","H52HUwMtgMoOwnCst400to499","H52HUwMtgMoOwnCst500to599","H52HUwMtgMoOwnCst600to699","H52HUwMtgMoOwnCst700to799","H52HUwMtgMoOwnCst800to899","H52HUwMtgMoOwnCst900to999","H52HUwMtgMoOwnCst1000to1249","H52HUwMtgMoOwnCst1250to1499","H52HUwMtgMoOwnCst1500to1999","H52HUwMtgMoOwnCst2000More","H52HUwNoMtgMoOwnCst<100","H52HUwNoMtgMoOwnCst100to149","H52HUwNoMtgMoOwnCst150to199","H52HUwNoMtgMoOwnCst200to249","H52HUwNoMtgMoOwnCst250to299","H52HUwNoMtgMoOwnCst300to349","H52HUwNoMtgMoOwnCst350to399","H52HUwNoMtgMoOwnCst400More","H52AMedMoOwnCstWMortg","H52AMedMoOwnCstWNoMortg","H58HUwMtgMOC<20pHHInc","H58HUwMtgMOC20to24pHHInc","H58HUwMtgMOC25to29pHHInc","H58HUwMtgMOC30to34pHHInc","H58wMtgMOC>35pHHInc","H58HUwMtgMOCNotComp","H58HUwNoMtgMOC<20pHHInc","H58HUwNoMtgMOC20to24pHHInc","H58HUwNoMtgMOC25to29pHHInc","H58HUwNoMtgMOC30to34pHHInc","H58wNoMtgMOC>35pHHInc","H58HUwNoMtgMOCNotComp","H61OOHUVal<15k","H61OOHUVal15to19k","H61OOHUVal20to24k","H61OOHUVal25to29k","H61OOHUVal30to34k","H61OOHUVal35to39k","H61OOHUVal40to44k","H61OOHUVal45to49k","H61OOHUVal50to59k","H61OOHUVal60to74k","H61OOHUVal75to99k","H61OOHUVal100to124k","H61OOHUVal125to149k","H61OOHUVal150to174k","H61OOHUVal175to199k","H61OOHUVal200to249k","H61OOHUVal250to299k","H61OOHUVal300to399k","H61OOHUVal400to499k","H61OOHUVal500kOrMore","H61aOOHUMedVal"]
[]
[]
[]
[]
[]
[]
[]
[]
[]
[]
[]
[]
[]
[]
[]
["Other Demo Data -             Query Name: QryAllTowns-ACSDemographicSheet",null,null,"2022-11-01"]
[]
["TOWN_NAME","FIPS","TOWNCNTY","COUSUB","POP80","POP90CDCEN","POP2000CEN","POP2010CEN","POP2020CEN","POP2025-Proj","POP2030-Proj","POP2035-Proj","SF80","MF80","MH80","SF81","MF81","MH81","SF82","MF82","MH82","SF83","MF83","MH83","SF84_OSP","MF84_OSP","MH84_OSP","SF85_OSP","MF85_OSP","MH85_OSP","SF86_OSP","MF86_OSP","MH86_OSP","SF87_OSP","MF87_OSP","MH87_OSP","SF88_OSP","MF88_OSP","MH88_OSP","SF89_OSP","MF89_OSP","MH89_OSP","SF90_OSP","MF90_OSP","MH90_OSP","SF91_OSP","MF91_OSP","MH91_OSP","SF92_OSP","MF92_OSP","MH92_OSP","SF93_OSP","MF93_OSP","MH93_OSP","SF94_OSP","MF94_OSP","MH94_OSP","SF95_OSP","MF95_OSP","MH95_OSP","SF96_OSP","MF96_OSP","MH96_OSP","SF97_OSP","MF97_OSP","MH97_OSP","SF98_OSP","MF98_OSP","MH98_OSP","SF99_OSP","MF99_OSP","MH99_OSP","SF00_OSP","MF00_OSP","MH00_OSP","SF01_OSP","MF01_OSP","MH01_OSP","SF02_OSP","MF02_OSP","MH02_OSP","SF03_OSP","MF03_OSP","MH03_OSP","SF04_OSP","MF04_OSP","MH04_OSP","SF05_OSP","MF05_OSP","MH05_OSP","SF06_OSP","MF06_OSP","MH06_OSP","SF07_OSP","MF07_OSP","MH07_OSP","SF08_OSP","MF08_OSP","MH08_OSP","SF09_OSP","MF09_OSP","MH09_OSP","SF10_OSP","MF10_OSP","MH10_OSP","SF11_OSP","MF11_OSP","MH11_OSP","SF12_OSP","MF12_OSP","MH12_OSP","SF13_OSP","MF13_OSP","MH13_OSP","SF14_OSP","MF14_OSP","MH14_OSP","SF15_OSP","MF15_OSP","MH15_OSP","SF16_OSP","MF16_OSP","MH16_OSP","SF17_OSP","MF17_OSP","MH17_OSP","SF18_OSP","MF18_OSP","MH18_OSP","SF19_OSP","MF19_OSP","MH19_OSP","SF20_OSP","MF20_OSP","MH20_OSP","SF20 Census_OSP","MF20 Census OSP","MH20 Census_OSP","SF21_OSP","MF21_OSP","MH21_OSP","COMMENTS","CNTY_CODE"]
["Albany",3005,201,"00420",383,536,654,735,759,792,818,832,2,5,0,-2,0,0,0,0,0,1,0,1,1,0,-1,1,0,12,17,0,9,5,2,8,9,0,1,8,0,1,4,0,6,6,0,1,3,0,2,5,0,0,1,0,3,6,0,1,4,0,7,3,0,0,1,0,0,7,0,0,2,0,0,3,0,0,11,1,0,8,0,0,16,0,1,5,0,1,4,0,1,2,0,0,3,0,0,3,0,0,0,0,1,2,0,-1,2,0,-2,2,0,0,3,0,0,1,0,1,1,0,0,2,0,2,7,0,0,1,0,0,2,0,1,null,null,null,3,0,1,"",2]
["Bartlett",3010,202,"03700",1566,2290,2705,2788,3200,3340,3450,3509,15,0,0,9,0,0,6,0,0,8,0,0,11,0,0,9,0,0,10,0,0,10,1,0,40,38,1,15,17,1,12,1,-1,16,0,0,24,0,0,30,96,3,17,16,0,25,9,0,18,0,0,17,0,0,24,22,0,30,8,0,34,20,0,61,12,0,49,9,2,48,0,0,62,6,0,46,4,0,51,0,0,23,0,0,12,0,0,14,0,0,15,0,0,14,0,0,18,0,0,6,0,0,29,0,0,7,4,0,17,0,0,6,0,0,15,0,0,28,0,0,12,2,0,null,null,null,25,0,0,"",2]
["Brookfield",3015,203,"07940",385,518,604,712,755,788,814,828,3,0,0,2,0,0,1,0,0,5,0,0,1,0,1,4,0,0,4,0,0,13,0,0,4,0,0,8,0,0,2,0,0,1,0,0,3,0,0,3,0,0,0,0,0,0,0,0,0,0,0,4,0,0,7,0,0,10,0,0,10,0,0,7,0,0,4,0,2,9,0,1,6,0,0,5,0,0,5,0,0,5,0,2,1,0,0,0,0,0,1,0,0,1,0,0,0,0,0,0,0,0,0,0,0,0,0,0,3,0,0,4,0,0,5,1,0,6,0,1,2,1,0,null,null,null,6,0,0,"2004, 2005 Did not submit data to OEP. Used Census Data",2]
["Chatham",3020,204,"11780",189,268,260,337,341,356,368,374,1,0,1,1,0,0,2,0,0,0,0,0,-2,0,0,0,0,0,2,0,0,5,0,0,3,0,0,1,0,0,5,0,1,1,0,0,0,0,0,1,0,0,2,0,0,0,0,0,0,0,0,1,0,0,2,0,0,0,0,0,0,0,0,1,0,0,2,0,0,6,0,0,1,0,0,8,0,0,5,0,1,4,0,3,4,0,0,1,0,0,2,0,0,1,0,-2,0,0,0,0,0,0,0,0,0,2,0,0,3,0,0,3,0,1,0,0,0,1,0,0,1,0,0,null,null,null,0,0,1,"2000 Did not provide data to OEP. Census data used",2]
["Conway",3025,205,"14660",7158,7940,8604,10115,9822,10256,10595,10775,61,0,10,50,2,6,38,0,26,85,0,16,91,0,0,90,6,19,230,16,55,355,46,14,196,14,6,50,24,11,31,8,3,21,4,11,24,72,7,21,96,7,12,0,10,7,9,19,17,26,16,12,-5,18,18,0,13,34,21,0,41,-6,25,63,2,18,51,13,23,79,20,24,99,10,14,72,0,14,35,2,8,23,0,4,10,-3,-20,9,2,0,16,0,-11,6,32,0,7,0,-8,-6,-2,7,14,-5,-1,14,2,-2,28,22,15,17,-3,5,22,3,3,28,32,2,42,11,2,null,null,null,46,37,0,"",2]
["Eaton",3030,206,"23380",256,362,375,393,405,423,437,444,4,0,1,3,0,0,1,0,0,0,0,0,8,0,0,6,0,1,8,0,0,11,0,0,5,0,0,10,0,0,3,0,0,2,0,0,0,0,0,1,0,0,3,0,0,0,0,0,3,0,0,0,0,0,2,0,0,4,0,0,8,0,1,7,0,0,6,0,0,6,0,0,6,0,1,5,0,0,3,0,0,3,0,0,3,0,-1,2,0,0,2,0,0,4,0,0,0,0,0,3,1,0,0,0,0,3,0,0,0,0,1,2,2,0,1,2,0,1,0,0,5,1,0,null,null,null,2,0,0,"",2]
["Effingham",3035,207,"23620",599,941,1273,1465,1691,1765,1823,1854,0,0,0,5,0,-2,0,0,0,0,0,0,0,0,0,4,0,1,0,0,0,0,0,0,12,0,2,24,0,0,2,2,1,0,0,2,3,0,1,3,0,-1,0,0,0,7,1,1,3,0,2,4,0,3,0,0,0,0,0,0,3,0,3,0,0,0,22,0,0,30,0,0,32,0,0,31,0,0,14,0,1,7,1,1,8,0,0,8,0,0,2,1,0,8,0,1,1,0,1,2,0,-1,1,0,1,2,0,0,2,0,2,3,0,1,6,0,1,4,0,1,7,0,0,null,null,null,8,2,0,"2001 Did not submit data to OEP. Used Census Data",2]
["Freedom",3040,208,"27700",720,935,1303,1489,1689,1763,1821,1852,26,0,5,8,0,4,0,0,0,28,0,3,0,0,0,0,0,0,0,0,0,0,0,0,25,0,3,30,0,1,9,0,2,5,0,1,1,0,5,0,0,0,13,0,0,-1,0,0,12,0,1,10,0,3,20,0,0,11,0,2,31,0,6,10,0,14,37,0,0,20,0,12,26,0,0,16,0,3,13,0,0,14,0,0,10,0,0,11,0,0,14,0,0,6,0,0,14,0,0,15,0,0,9,0,0,9,0,0,31,0,2,18,0,0,17,0,0,1,0,0,-7,0,0,null,null,null,9,0,0,"",2]
["Hale's Location",3045,219,"32500",0,0,58,120,132,138,142,145,null,null,null,null,null,null,null,null,null,null,null,null,null,null,null,null,null,null,null,null,null,null,null,null,null,null,null,null,null,null,null,null,null,null,null,null,null,null,null,null,null,null,null,null,null,null,null,null,null,null,null,null,null,null,null,null,null,null,null,null,null,null,null,null,null,null,null,null,null,null,null,null,null,null,null,null,null,null,null,null,null,null,null,null,null,null,null,null,null,null,null,null,null,null,null,null,null,null,null,null,null,null,null,null,null,null,null,null,null,null,null,null,null,null,null,null,null,null,null,null,null,null,null,null,null,null,null,null,null,"",2]
["Hart's Location",3050,209,"34500",27,36,37,41,68,71,73,75,0,0,0,0,0,0,1,0,0,0,0,0,0,0,0,0,0,0,1,0,0,0,0,0,0,0,0,0,0,0,0,0,0,0,0,0,0,0,0,0,0,0,0,0,0,1,0,0,0,0,0,2,0,0,0,0,0,2,0,0,3,0,0,1,0,0,0,0,0,0,0,0,0,0,0,0,0,0,0,0,0,1,1,0,2,0,0,1,0,0,1,0,0,0,0,0,1,0,0,0,0,0,0,0,0,0,0,0,1,0,0,2,0,0,2,0,0,3,0,0,1,0,0,null,null,null,-1,0,0,"",2]
["Jackson",3055,210,"38260",642,678,835,816,1028,1073,1108,1127,6,14,0,9,0,0,1,0,0,8,21,0,5,26,0,13,26,0,6,3,0,48,0,0,6,0,0,2,0,0,4,1,0,6,0,0,7,1,0,7,0,0,6,0,0,11,0,0,9,0,0,9,3,0,8,0,0,10,0,0,14,0,0,6,0,0,11,1,0,13,0,0,12,0,0,13,0,0,5,0,0,2,0,0,12,0,0,-1,1,0,1,0,0,5,0,0,5,0,0,10,0,0,10,0,0,6,4,0,-3,-2,0,4,2,0,9,0,0,4,5,0,4,3,0,null,null,null,3,7,0,"",2]
["Madison",3060,211,"45060",1051,1704,1984,2502,2565,2677,2765,2812,18,0,3,5,0,0,23,0,0,20,0,2,16,0,1,52,0,2,71,4,5,128,16,0,82,0,5,35,22,0,15,8,1,0,0,0,26,0,0,21,0,0,8,0,4,7,0,1,7,0,3,7,0,3,15,0,6,28,0,3,31,0,0,36,0,0,42,0,0,55,2,1,58,0,2,39,2,0,28,0,0,22,2,0,28,0,0,24,0,0,14,0,0,18,0,0,21,0,0,6,0,0,16,0,0,13,0,0,16,0,0,18,0,1,7,0,2,21,0,0,25,0,0,null,null,null,29,0,0,"",2]
["Moultonborough",3065,212,"49380",2206,2956,4484,4044,4918,5133,5302,5392,59,0,3,0,0,0,0,0,0,65,11,1,100,4,3,130,1,2,167,0,12,151,2,3,111,0,0,72,1,0,52,0,3,38,0,0,71,2,0,62,0,3,69,0,3,70,0,2,62,0,0,64,0,1,95,0,0,62,0,0,94,0,0,73,0,0,110,0,0,88,0,0,89,0,0,77,0,0,60,0,0,75,0,0,37,0,0,21,0,0,21,0,0,29,0,0,19,0,0,17,0,0,21,-1,0,21,0,0,1,0,0,12,0,0,33,1,0,25,6,0,25,3,3,null,null,null,40,3,-2,"",2]
["Ossipee",3070,213,"58740",2465,3309,4211,4345,4372,4563,4714,4794,0,0,0,15,0,0,0,0,0,0,0,0,52,0,0,30,0,60,0,0,0,0,0,0,0,0,0,26,0,5,12,0,3,6,20,0,12,0,2,9,0,0,10,0,3,10,1,5,10,0,7,13,0,12,33,0,3,21,2,7,18,0,10,33,2,9,58,0,10,41,0,10,78,0,5,56,25,3,28,0,0,32,0,0,10,0,3,13,0,1,13,0,0,10,0,0,8,0,0,8,0,2,13,0,5,19,0,1,20,0,2,24,-1,2,11,0,-1,10,0,2,13,1,12,null,null,null,24,0,14,"2006 Did not submit data to OEP. Used Census Data",2]
["Sandwich",3075,214,"67780",905,1066,1286,1326,1466,1530,1581,1607,4,0,0,7,0,0,11,0,0,9,0,1,8,6,0,17,1,0,17,0,2,22,3,2,16,0,1,12,1,0,5,2,0,9,7,0,19,0,0,8,2,0,5,0,1,5,0,0,4,0,0,5,0,0,4,0,1,13,0,0,10,0,0,10,0,0,11,0,0,17,0,0,18,0,0,18,0,0,10,0,1,10,0,0,8,0,2,1,0,0,2,0,0,3,0,0,4,0,0,5,0,1,1,0,0,3,0,1,3,0,0,7,0,1,3,0,2,6,0,1,11,2,0,null,null,null,3,0,0,"",2]
["Tamworth",3080,215,"76100",1672,2165,2510,2856,2812,2935,3032,3083,0,0,0,-1,0,0,0,0,0,31,0,0,27,15,0,17,1,3,48,14,0,0,0,0,0,0,0,0,0,0,20,0,7,11,0,3,11,0,0,0,0,0,3,7,0,4,0,0,15,0,6,4,0,0,11,0,0,6,0,2,6,2,0,0,0,0,0,0,0,0,0,0,0,0,0,40,33,2,35,0,3,17,0,0,9,0,1,5,0,1,6,0,2,2,0,1,6,0,3,9,0,1,4,0,1,7,0,0,1,0,1,8,0,1,10,0,0,6,0,0,6,0,2,null,null,null,11,0,1,"2001, 2002 Did not submit data to OEP. Used Census Data",2]
["Tuftonboro",3085,216,"77620",1500,1842,2148,2387,2467,2575,2660,2705,16,0,1,10,0,5,24,0,0,3,1,4,12,9,2,27,6,4,46,3,4,48,1,1,24,0,8,14,0,2,20,1,-1,17,0,1,14,0,0,7,0,0,10,0,0,23,5,0,22,0,0,13,0,0,15,4,1,17,0,2,19,0,6,37,2,0,48,0,0,34,0,0,30,0,1,51,0,0,25,0,0,15,0,0,17,0,0,7,0,0,5,0,1,3,0,0,4,0,0,2,0,-1,8,0,0,9,0,1,8,0,-1,16,0,1,12,0,0,12,0,0,11,0,0,null,null,null,27,0,0,"",2]
["Wakefield",3090,217,"78180",2237,3057,4252,5078,5201,5428,5607,5703,13,0,0,4,0,3,27,0,0,27,0,6,39,4,9,62,1,16,93,0,8,119,4,0,48,1,3,22,0,4,23,0,5,19,0,6,22,24,5,16,0,4,15,0,6,21,0,3,22,0,2,32,0,6,30,0,6,29,0,11,31,0,17,44,0,30,44,0,27,116,1,1,53,2,30,77,2,1,53,2,-1,31,0,0,20,0,0,-8,0,-2,3,0,0,7,0,2,6,0,-3,3,0,1,13,0,-1,6,-3,0,15,4,0,21,2,0,19,2,0,13,5,0,19,0,0,null,null,null,42,0,4,"",2]
["Wolfeboro",3095,218,"86420",3968,4807,6083,6269,6416,6696,6917,7035,34,7,0,26,16,0,31,38,0,37,0,0,80,6,0,91,9,12,160,40,23,59,-1,4,57,3,16,19,2,5,33,0,1,55,0,3,45,2,3,50,3,0,44,0,2,40,0,7,44,1,5,19,0,0,43,0,6,45,0,3,55,0,0,70,0,0,66,0,1,60,0,0,60,0,0,16,4,0,4,0,0,17,0,0,2,2,0,-8,0,0,-9,0,0,0,0,0,2,24,-1,8,24,0,12,0,0,5,0,0,6,0,0,15,2,0,22,2,0,30,6,0,14,7,0,null,null,null,9,1,0,"",2]
[]
[]
[]
[]
[]
[]
[]
["NH Employment Data","Query Name: DPQryEmploymentByCnty-Good-Serv-Total","Updated:","2022-09-14"]
[]
["AreaName","COUNTYCODE","TOTP & G2001","TOT2001","GOODPRO2001","SERVICEPROMAN2001","WAGEP & G2001","WAGETOT2001","WAGEGOODPRO2001","WAGESERVICEPRO2001","TOTP & G2002","TOT2002","GOODPRO2002","SERVICEPROMAN2002","WAGEP & G2002","WAGETOT2002","WAGEGOODPRO2002","WAGESERVICEPRO2002","TOTP & G2003","TOT2003","GOODPRO2003","SERVICEPROMAN2003","WAGEP & G2003","WAGETOT2003","WAGEGOODPRO2003","WAGESERVICEPRO2003","TOTP & G2004","TOT2004","GOODPRO2004","SERVICEPROMAN2004","WAGEP & G2004","WAGETOT2004","WAGEGOODPRO2004","WAGESERVICEPRO2004","TOTP & G2005","TOT2005","GOODPRO2005","SERVICEPROMAN2005","WAGEP & G2005","WAGETOT2005","WAGEGOODPRO2005","WAGESERVICEPRO2005","TOTP & G2006","TOT2006","GOODPRO2006","SERVICEPROMAN2006","WAGEP & G2006","WAGETOT2006","WAGEGOODPRO2006","WAGESERVICEPRO2006","TOTP & G2007","TOT2007","GOODPRO2007","SERVICEPROMAN2007","WAGEP & G2007","WAGETOT2007","WAGEGOODPRO2007","WAGESERVICEPRO2007","TOTP & G2008","TOT2008","GOODPRO2008","SERVICEPROMAN2008","WAGEP & G2008","WAGETOT2008","WAGEGOODPRO2008","WAGESERVICEPRO2008","TOTP & G2009","TOT2009","GOODPRO2009","SERVICEPROMAN2009","WAGEP & G2009","WAGETOT2009","WAGEGOODPRO2009","WAGESERVICEPRO2009","TOTP & G2010","TOT2010","GOODPRO2010","SERVICEPROMAN2010","WAGEP & G2010","WAGETOT2010","WAGEGOODPRO2010","WAGESERVICEPRO2010","TOTP & G2011","TOT2011","GOODPRO2011","SERVICEPROMAN2011","WAGEP & G2011","WAGETOT2011","WAGEGOODPRO2011","WAGESERVICEPRO2011","TOTP & G2012","TOT2012","GOODPRO2012","SERVICEPROMAN2012","WAGEP & G2012","WAGETOT2012","WAGEGOODPRO2012","WAGESERVICEPRO2012","TOTP & G2013","TOT2013","GOODPRO2013","SERVICEPROMAN2013","WAGEP & G2013","WAGETOT2013","WAGEGOODPRO2013","WAGESERVICEPRO2013","TOTP & G2014","TOT2014","GOODPRO2014","SERVICEPROMAN2014","WAGEP & G2014","WAGETOT2014","WAGEGOODPRO2014","WAGESERVICEPRO2014","TOTP & G2015","TOT2015","GOODPRO2015","SERVICEPROMAN2015","WAGEP & G2015","WAGETOT2015","WAGEGOODPRO2015","WAGESERVICEPRO2015","TOTP & G2016","TOT2016","GOODPRO2016","SERVICEPROMAN2016","WAGEP & G2016","WAGETOT2016","WAGEGOODPRO2016","WAGESERVICEPRO2016","TOTP & G2017","TOT2017","GOODPRO2017","SERVICEPROMAN2017","WAGEP & G2017","WAGETOT2017","WAGEGOODPRO2017","WAGESERVICEPRO2017","TOTP & G2018","TOT2018","GOODPRO2018","SERVICEPROMAN2018","WAGEP & G2018","WAGETOT2018","WAGEGOODPRO2018","WAGESERVICEPRO2018","TOTP & G2019","TOT2019","TOTGov2019","GOODPRO2019","SERVICEPROMAN2019","WAGEP & G2019","WAGETOT2019","WAGEGov2019","WAGEGOODPRO2019","WAGESERVICEPRO2019","TOTP & G2020","TOT2020","TOTGov2020","GOODPRO2020","SERVICEPROMAN2020","WAGEP & G2020","WAGETOT2020","WAGEGov2020","WAGEGOODPRO2020","WAGESERVICEPRO2020","TOTP & G2021","TOT2021","TOTGov2021","GOODPRO2021","SERVICEPROMAN2021","WAGEP & G2021","WAGETOT2021","WAGEGov2021","WAGEGOODPRO2021","WAGESERVICEPRO2021","TOTP & G2022","TOT2022","TOTGov2022","GOODPRO2022","SERVICEPROMAN2022","WAGEP & G2022","WAGETOT2022","WAGEGov2022","WAGEGOODPRO2022","WAGESERVICEPRO2022"]
["Albany",2,86,78,51,28,677.37,730.8,885.02,447.91,83,76,55,22,689.15,732.58,882.63,353.41,76,70,"n","n",593.96,625.03,"n","n",64,59,"n","n",483.1,500.11,"n","n",83,78,"n","n",412.5,422.63,"n","n",119,114,36,78,484.8,492.96,789.77,353.96,109,104,38,66,480.9,486.64,740.23,341.87,104,100,39,61,481.11,484.88,713.22,337.97,93,89,31,58,462.19,465.23,645.57000000000005,369.62,105,101,32,70,469.17,471.65,669.95,380.83,103,98,"n","n",482.62,486.7,"n","n",127,121,25,96,431.61,438.06,727.6,361.82,107,101,16,84,448.58,456.81,751.25,399.38,112,107,15,92,447.3,451.52,695.65,411.53,105,99,13,86,448.18,458.44,796.77,407.05,123,114,"n","n",486.97,505.69,"n","n",125,118,"n","n",538.03,552.39,"n","n",134,126,"n","n",586.77,609.08000000000004,"n","n",128,120,8,27,94,605.94000000000005,628.27,266.01,803.32,578.52,110,101,10,"n","n",674.04,719.75,192.64,"n","n",115,105,10,24,80,733.22,785.21,193.55,874.34,757.97,128,119,9,23,96,806,852,225,889,843]
["Bartlett",2,1251,1102,57,1045,331.11,318.60000000000002,510.15,308.14,1327,1179,49,1129,327.55,313.89,536.66,304.16000000000003,1292,1150,62,1087,338.93,322.85000000000002,526.33000000000004,311.22000000000003,1229,1082,60,1021,374.06,359.42,609.86,344.64,1303,1170,128,1042,394.86,380.29,607.74,352.26,1261,1144,137,1007,413.28,392.51,636.97,359.24,1293,1157,144,1013,409.57,393.4,673.67,353.71,1327,1187,139,1048,412.96,397.09,796.94,343.94,1225,1084,135,949,419.51,399.81,762.85,348.35,1139,1003,78,925,407.12,380.02,724.59,351.09,1144,1002,90,912,403.38,379.36,720.34,345.63,1072,962,46,916,408.68,382.61,863.92,358.31,1103,1001,46,955,405.32,379.91,765.54,361.4,1143,1037,73,964,421.18,397.11,770.54,368.67,1076,980,77,903,467.78,447.01,889.05,409.49,1064,965,78,887,468.76,447,837.12,412.69,1073,980,90,890,500.58,480.13,892.14,438.33,938,841,41,800,502.16,475.58,750.69,461.36,949,852,98,40,812,536.45000000000005,516.51,710.5,781.23,503.44,774,680,94,36,644,646.64,625.72,798.34,858.65,612.64,842,750,93,42,708,712.92,702.81,794.58,821.28,695.82,930,834,96,45,790,814,817,786,853,815]
["Brookfield",2,"n","n","n","n","n","n","n","n","n","n","n","n","n","n","n","n","n","n","n","n","n","n","n","n",22,16,"n","n",625.75,802.6,"n","n",24,19,"n","n",935.22,1161.57,"n","n",23,18,4,14,673.23,857.63,1583.52,655.26,33,28,7,20,812.3,936.99,1387.25,770.71,28,22,6,16,965.29,1183.68,1758.67,962.06,28,21,5,16,976.15,1234.47,2081,974.34,30,26,5,21,924.46,1021.68,1996.48,793.22,28,24,7,17,857.99,955.97,1298.01,813.18,20,20,5,15,708.2,708.2,821.14,670.13,24,24,9,15,662.7,662.7,816.63,569.12,15,15,8,7,952.09,952.09,872.63,1051.93,12,12,8,4,978.29,978.29,852.5,1242.96,13,13,9,4,901.46,901.46,918.25,866.15,14,14,"n","n",1013.49,1013.49,"n","n",12,12,"n","n",849.09,849.09,"n","n",14,14,0,"n","n",922.66,922.66,0,"","n",14,14,0,"n","n",988.82,988.82,0,"n","n",24,24,0,20,4,1082.55,1082.55,0,1147.69,773.76,24,24,0,"n",0,1096,1096,0,"n",0]
["Chatham",2,"n","n","n","n","n","n","n","n",38,26,"n","n",274.5,395.24,"n","n","n","n","n","n","n","n","n","n",45,32,"n","n",323.06,447.14,"n","n",37,25,"n","n",305.85000000000002,441.06,"n","n",30,18,"n","n",293.48,472.8,"n","n",24,12,"n","n",292.70999999999998,558.45000000000005,"n","n","n","n","n","n","n","n","n","n","n","n","n","n","n","n","n","n","n","n","n","n","n","n","n","n","n","n","n","n","n","n","n","n",7,7,"n","n",522.66,522.66,"n","n","n","n","n","n","n","n","n","n",5,5,"n","n",911.13,911.13,"n","n","n","n","n","n","n","n","n","n","n","n","n","n","n","n","n","n","n","n","n","n","n","n","n","n","n","n",0,"n","n","n",0,"n","n","n",0,0,"n","n","n",0,0,"n","n","n",0,0,"n","n","n",0,0,"",0,0,0,0,0,0,0,0,0,0,0,0,0,0,0,0,0,0,0,0]
["Conway",2,8259,7664,783,6881,443.37,431.89,587.4,414.2,8393,7789,821,6968,460.72,448.75,622.28,428.3,8582,7972,851,7122,468.82,455.97,613.78,437.11,8641,8029,881,7148,492.27,480.36,663.64,457.79,8290,7677,873,6804,519.64,508.73,699.65,484.23,8380,7757,930,6827,586.91999999999996,581.16,728.72,561.04999999999995,8483,7815,952,6863,550.41,540.59,746.84,511.98,8760,8065,1006,7059,554.78,542.95000000000005,750,513.44000000000005,8515,7800,914,6886,563.88,551.64,755.88,524.53,8527,7769,841,6928,574.62,565.07000000000005,722.75,545.92999999999995,8605,7912,865,7047,587.54999999999995,576.99,736.19,557.45000000000005,8870,8158,972,7186,613.5,604.99,751.48,585.17999999999995,8860,8112,968,7144,631.36,622.48,741.94,606.28,8802,8010,873,7137,606.78,597.09,768.42,576.13,8786,8008,859,7149,626.71,616.19000000000005,792.66,594.99,8876,8105,871,7234,635.14,625.1,818.06,601.86,8887,8121,849,7273,664.3,653.84,858.56,629.96,8864,8102,802,7300,677.37,666.27,844.78,646.65,8871,8134,"n",790,7344,704.67,693.41,"n",860.29,675.46,7731,7000,730,750,6251,802.32,793.28,888.96,919.72,778.11,8191,7470,721,800,6670,850.86,841.89,943.76,925.98,831.8,8392,7643,750,855,6788,900,900,904,957,893]
["Eaton",2,45,40,"n","n",378.24,411.66,"n","n",49,44,10,34,362.95,384.73,403.92,379.19,47,42,8,34,460.83,492.93,498.32,491.68,"n","n","n","n","n","n","n","n",47,43,11,31,482.91,511.85,549.32000000000005,498.44,51,46,10,36,509.68,543.94000000000005,516.98,551.28,"n","n","n","n","n","n","n","n",51,45,"n","n",516.85,546.09,"n","n",41,37,"n","n",454.05,461.87,"n","n",38,33,"n","n",688.9,738.4,"n","n",32,27,"n","n",903,1003.66,"n","n",37,32,"n","n",843.7,924.34,"n","n",41,37,"n","n",968.28,1021.82,"n","n",39,35,"n","n",602.62,600.91,"n","n",41,37,"n","n",634.55999999999995,646.69000000000005,"n","n",37,32,"n","n",757.36,802.26,"n","n",40,35,"n","n",593.27,595.52,"n","n","n","n","","n","n","n","","n","n","n",6,"n","n","n","n",519.59,"n","n","","",5,"n","n","n","n",624.74,"n","n",45,40,5,5,34,665.82,665.44,668.9,474.32,695.06,45,39,5,6,33,807,813,758,650,843]
["Effingham",2,"n","n","n","n","n","n","n","n","n","n","n","n","n","n","n","n","n","n","n","n","n","n","n","n","n","n","n","n","n","n","n","n",52,37,"n",35,300.36,325.83999999999997,"n",309.81,54,42,6,36,351.11,363.64,310.05,373.16,"n","n","n","n","n","n","n","n","n","n","n","n","n","n","n","n","n","n","n","n","n","n","n","n","n","n","n","n","n","n","n","n","n","n","n","n","n","n","n","n","n","n","n","n","n","n","n","n","n","n","n","n","n","n","n","n","n","n","n","n","n","n","n","n",250,209,0,209,631.62,629.41,0,629.41,88,47,"n","n",585.97,511.19,"n","n",97,57,"n",0,588.42999999999995,515.44000000000005,"n",0,96,58,"",0,651.71,577.38,"",0,96,55,1,"n",0,680.84,675.82,520.53,"n",0,99,56,43,"n","n",688.79,673.27,708.95,"n","n",93,49,44,9,40,706.09,699.13,713.92,890.94,658.08,94,50,0,0,0,867,953,0,0,0]
["Freedom",2,192,161,43,118,443.7,456.07,551.36,421.08,243,180,48,131,448.82,471.32,594.4,425.97,264,194,37,156,428.81,436.05,642.82000000000005,386.7,242,169,35,134,434.06,459.26,558.87,433.52,229,164,34,130,472.6,478.86,643.21,435.34,240,178,30,149,460.54,444.14,626.64,407.89,233,167,27,140,541.22,545.04999999999995,774.77,500.85,214,151,26,125,607.85,619.29999999999995,804.58,580.28,226,165,"n","n",615.33000000000004,628.69000000000005,"n","n",246,182,30,152,615.85,637.84,682.7,629.04999999999995,249,179,25,153,618.29,637.65,724.52,623.39,259,186,24,162,576.61,577.63,866.17,535.41,255,183,35,148,607.61,620.16999999999996,928.73,547.11,271,202,40,161,617.89,632.12,881.54,569.64,274,212,31,180,613.6,608.42999999999995,999.22,540.53,260,196,29,167,648.5,658.81,896.85,617.20000000000005,267,205,29,176,636.28,623.5,896.09,578.20000000000005,281,220,34,186,647.59,632.73,1065.19,554.38,269,209,60,28,181,677.41,667.33,712.73,1206.27,584.61,237,179,58,27,152,741.53,746.53,726.09,1224.8900000000001,661.03,273,219,54,25,194,836.31,846.63,794.36,1223.1600000000001,797.68,296,240,56,31,210,929,955,820,1280,908]
["Hale's Location",2,0,0,0,0,0,0,0,0,0,0,0,0,0,0,0,0,0,0,0,0,0,0,0,0,0,0,0,0,0,0,0,0,"n","n",0,"n","n","n",0,"n","n","n",0,"n","n","n",0,"n",11,11,"n","n",563.39,563.39,"n","n",11,11,"n","n",557.83000000000004,557.83000000000004,"n","n",12,12,"n","n",476.46,476.46,"n","n",11,11,"n","n",578.85,578.85,"n","n","n","n","n","n","n","n","n","n",10,10,"n","n",545.33000000000004,545.33000000000004,"n","n",9,9,"n","n",612.08000000000004,612.08000000000004,"n","n","n","n","n","n","n","n","n","n","n","n",0,"n","n","n",0,"n","n","n",0,"n","n","n",0,"n","n","n",0,"n","n","n",0,"n","n","n",0,"n","n","n",0,"n","n","n",0,0,"n","n","n",0,0,"n","n","n",0,0,"n","n","n",0,0,"n","n","n",0,0,"n","n","n",0,0,"n","n","n",0,0,"n","n","n",0,0,"n"]
["Hart's Location",2,"n","n",0,"n","n","n",0,"n","n","n",0,"n","n","n",0,"n","n","n",0,"n","n","n",0,"n","n","n",0,"n","n","n",0,"n","n","n","n",0,"n","n","n",0,"n","n","n","n","n","n","n","n","n","n",0,"n","n","n",0,"n","n","n",0,"n","n","n",0,"n","n","n",0,"n","n","n",0,"n","n","n",0,"n","n","n",0,"n","n","n",0,"n","n","n",0,"n","n","n",0,"n","n","n",0,"n",20,15,0,15,486.34,530.66999999999996,0,530.66999999999996,22,15,0,15,488.82,561.17999999999995,0,561.17999999999995,21,15,0,15,536.29,594.38,0,594.38,21,15,0,15,469.07,506.09,0,506.09,"n","n",0,"n","n","n",0,"n","n","n",0,"n","n","n",0,"n","n","n",5,0,"n","n","n",496.37,0,"n","n","n",3,0,"n","n","n",380.37,0,"n","n","n",4,0,"n","n","n",420.16,0,"n","n","n",0,0,"n","n","n",0,0,865]
["Jackson",2,571,532,22,510,388.26,392.11,571.34,384.36,520,485,18,467,387.56,386.35,472.03,383.14,514,478,10,468,395.69,394.14,487.12,392.17,550,513,9,504,436.24,437.2,459.11,436.79,553,515,10,506,414.88,413.54,444.47,412.96,551,513,14,499,462.63,462.89,722.11,455.63,556,517,13,504,545.97,550.22,560.07000000000005,549.97,514,478,11,467,484.45,478.4,563.25,476.49,476,437,11,425,491.73,487.42,501.37,487.05,487,445,10,435,472.39,464.88,519.61,463.61,525,482,12,470,581.34,584.92999999999995,880.76,577.37,500,457,7,449,576.62,578.74,1173.74,569.03,511,471,"n","n",625.17999999999995,628.99,"n","n",483,445,"n","n",606.04,601.29,"n","n",476,438,7,431,628.95000000000005,627.33000000000004,697.82,626.20000000000005,497,454,6,449,719.24,727.44,794.93,726.57,11,477,382,190,477.72,639.19000000000005,1542.35,1039.1199999999999,533,479,10,469,685.5,702.37,565.54,705.41,522,468,54,"n","n",778.31,800.26,588.27,"n","n",425,372,53,10,362,1100.5999999999999,1170.96,609.26,1508,1161.97,477,423,54,10,413,862.44,889.55,647.95000000000005,1698.28,869.98,470,419,50,11,409,809,817,745,1749,792]
["Madison",2,451,427,176,251,495.17,496.42,672.86,372.8,455,429,167,262,478.83,480.08,702.75,337.71,519,431,161,270,473.75,490.51,731.34,346.92,538,446,170,276,510.24,533.96,780.93,382.3,523,436,159,277,539.96,560.89,755.8,449.3,559,476,159,318,557.9,566.79999999999995,759.27,470.72,591,503,162,342,571.05999999999995,578.42999999999995,777.57,484.28,612,521,190,331,619.53,631.74,836.86,514.22,565,466,180,286,590.79,610.04,793.72,494.41,562,460,180,280,612.25,636.36,873.58,484.03,555,457,187,270,596.46,610.24,827.06,460.29,528,428,185,243,597.89,609.95000000000005,833.13,440.05,513,416,159,257,635.49,654.72,938.5,479.4,495,408,149,260,728.24,758.02,1220.07,493.4,492,407,150,257,806.56,842.83,1290.49,581.30999999999995,490,405,132,273,815.31,847.03,1345.23,605.98,"n",445,94,384,"n",883.75,988.27,926.61,586,506,157,349,725.43,724.94,985.92,607.47,584,510,73,162,348,803.31,800.99,819.43,1019.15,699.31,501,430,71,161,270,831.1,833.51,816.49,1112.7,667.12,492,427,66,168,259,868.34,856.98,942.36,1136.8499999999999,675.54,497,425,72,172,253,913,910,929,1160,741]
["Moultonborough",2,1046,848,250,598,561.30999999999995,547.51,664.96,498.45,1113,904,291,613,599.97,590.67999999999995,686.89,545.04,1174,981,309,673,632.33000000000004,611.54999999999995,688.79,576.13,1083,867,197,671,689.48,686.51,778.94,659.42,1198,979,223,755,603.34,574.83000000000004,776.36,515.24,1263,1031,227,804,614.30999999999995,585.67999999999995,793.51,526.9,1273,1038,206,832,647.29,614.38,835.26,559.82000000000005,1370,1127,225,901,659.7,623.66,829.1,572.34,1316,1058,198,860,669.45,635.29999999999995,820.98,592.59,1313,1060,205,855,714.82,684.37,877.2,638.07000000000005,1436,1162,234,928,739.31,727.98,942.21,673.92,1467,1193,231,962,704.51,691.39,982.61,621.54999999999995,1447,1188,206,982,764.25,748.66,1012.95,693.24,1456,1196,223,974,759.08,747.15,1030.07,682.42,1506,1248,211,1037,755.46,741.07,1070.1300000000001,674.25,1544,1303,195,1108,813.05,804.69,1160.31,742.09,83,1290,304,1547,565.07000000000005,754.22,885.45,1045.3800000000001,1588,1339,182,1157,786.93,767.36,1228.75,695,1608,1362,246,189,1173,801.11,783.81,896.88,1252.8699999999999,708.16,1390,1156,234,199,957,894.35,884.58,942.66,1311.53,795.96,1520,1281,238,205,1076,937.96,932.36,968.13,1346.59,853.43,1581,1345,236,216,1129,959,951,1002,1268,890]
["Ossipee",2,1914,1458,319,1140,495.11,507.46,730.19,445.21,1810,1350,241,1109,521.58000000000004,534.66,744.47,488.98,1819,1353,251,1103,529.37,535.79,728.84,491.87,1898,1406,263,1143,562.42999999999995,572.33000000000004,778.01,524.94000000000005,2267,1727,293,1434,571.28,570.29999999999995,754.97,532.53,2212,1648,296,1352,604.41,603.01,774.26,565.47,1871,1342,292,1050,590.07000000000005,569.01,790.57,507.45,1790,1258,218,1039,603.12,573.77,792.92,527.75,1692,1183,166,1017,620.23,609,868.73,566.59,1696,1187,175,1012,613.49,602.86,975.24,538.35,1713,1213,188,1025,609.4,593.37,1023.15,514.6,1687,1158,179,979,619.04999999999995,589.76,998.95,514.84,1639,1099,156,943,604,563.09,1026.6300000000001,486.38,1687,1147,137,1010,607.07000000000005,560.87,1023.24,498.3,1672,1141,131,1010,625.52,579.38,1024.29,521.57000000000005,1669,1154,138,1016,632.05999999999995,593.47,1064.05,529.41,1686,1170,157,1013,650.32000000000005,605.91,1091.69,530.51,1708,1190,172,1018,675.84,623.51,1023.2,555.80999999999995,1743,1215,528,182,1033,702.13,656.41,807.38,1103.67,577.57000000000005,1631,1103,528,182,921,805.44,753.57,913.7,1229.99,659.63,1622,1136,486,185,951,810.89,780.51,881.96,1223.33,694.42,1661,1195,467,196,999,839,797,945,1187,721]
["Sandwich",2,285,240,79,161,603.89,631.41999999999996,651.95000000000005,621.32000000000005,279,232,62,171,601.22,626.03,731.48,588.04999999999995,281,233,68,165,587.54,599.63,639.12,583.37,301,251,75,176,584.66,605.80999999999995,659.23,582.95000000000005,258,203,78,125,594.26,625.61,718.87,567.20000000000005,256,200,83,118,545.14,556.54999999999995,733.43,432.06,256,198,75,123,534.71,535.89,737.48,413.35,251,203,71,132,560.53,547.89,753.9,436.86,224,174,56,119,550.21,544.88,705.52,469.09,213,163,56,107,540.32000000000005,524.64,722.78,420.78,199,149,54,95,594.99,584.66999999999996,762.73,484.01,198,149,56,92,611.24,605.48,776.92,500.98,201,154,51,103,610.59,598.58000000000004,780.04,507.85,201,151,57,94,663.53,678.54,838.4,581.54999999999995,192,143,0,87,780.92,817.19,0,723.03,223,176,60,115,867.17,912.73,876.5,931.58,229,183,55,128,936.69,985.35,766.66,1080.19,223,178,57,121,881.15,903.49,741.71,979.54,219,172,46,55,117,916.94,945.22,812.23,774.93,1025.3399999999999,191,143,48,43,100,1073.03,1149.9000000000001,843.34,941.51,1240.1300000000001,212,164,48,43,120,1163.46,1248.69,871.84,939.93,1359.59,245,195,49,45,151,1304,1413,873,1068,1516]
["Tamworth",2,664,452,162,290,444.01,439.15,631.97,331.63,661,485,152,333,465.55,430.4,656.97,326.7,635,502,163,339,472.51,432.72,631.84,337.08,697,552,176,376,488.28,464.91,697.25,356.24,719,602,166,436,491.79,477.81,772.53,365.3,662,559,140,419,518.19000000000005,503.85,843.08,390.37,673,565,132,433,513.74,493.09,733.26,419.96,643,522,149,373,535.49,516.15,733.38,429.04,678,526,127,400,559.04,481.16,647.5,428.54,670,523,118,406,576.35,504.34,662.43,458.48,660,516,95,421,592.29,523.26,684.03,487.07,601,482,96,386,569.62,542.23,702.95,502.29,564,441,96,345,598.09,572.58000000000004,681.49,542.26,594,466,117,348,612.80999999999995,580.53,662.77,552.83000000000004,605,475,126,349,654.54999999999995,620.05999999999995,748.29,573.99,614,484,114,369,694.2,661.48,755.04,632.5,618,489,122,367,711.74,685.26,850.69,630.49,616,487,129,359,771.17,764.77,893.36,718.69,670,540,8,164,376,767.97,762.56,926.34,893.67,705.36,577,457,120,150,307,871.86,883.02,829.14,949.08,850.76,622,488,135,148,340,913.61,885.93,1013.83,968.6,849.98,636,482,153,138,344,940,917,1013,1007,881]
["Tuftonboro",2,385,325,161,163,557.72,577.52,616.66,538.77,401,326,146,180,545.51,579.04999999999995,680.04,497.04,395,323,138,185,572.58000000000004,600.11,767.17,475.97,418,360,"n","n",612.28,620.52,"n","n",412,337,"n","n",588.08000000000004,613.38,"n","n",425,349,73,276,613.34,627.97,631.59,627.01,460,373,75,299,579.25,592.16999999999996,693.37,566.91,449,364,63,301,587.86,599.70000000000005,659.4,587.28,430,351,53,298,581.77,576.29,636.35,565.64,427,337,51,286,541.95000000000005,544.96,645.15,527.1,423,333,52,282,574.65,578.9,618.33000000000004,571.67999999999995,434,338,55,283,585.41999999999996,603.73,561.88,611.79999999999995,391,309,45,264,631.76,644.80999999999995,494.89,670.42,"n","n","n","n","n","n","n","n",375,306,32,274,687.34,674.09,595.22,683.38,370,300,"n","n",710.9,695.66,"n","n",412,340,36,304,691.83,672.57,741.77,664.41,399,331,45,285,706.3,682.26,635.14,689.76,414,342,72,47,295,722.26,702.64,815.21,694.4,703.96,334,268,66,60,207,896.35,894.05,905.64,726.51,942.74,380,316,63,64,252,837.33,819.41,926.7,846.56,812.49,381,316,65,63,254,906,896,954,926,888]
["Wakefield",2,639,383,52,332,363.98,314.20999999999998,535.04,279.93,637,381,57,324,374.4,327.98,504.62,296.7,671,402,74,328,394.77,350.16,518.54,312.20999999999998,686,416,86,329,423.92,363.6,503.47,327.05,678,415,86,329,463.42,385.39,537.01,345.92,695,415,88,328,480.32,394.02,509.56,363.07,720,404,76,328,499.69,426.44,578.89,391,723,390,72,318,530.49,449.03,608.83000000000004,412.82,727,389,67,322,558.78,489.73,607.70000000000005,465.26,745,417,70,347,661.84,677.81,617.69000000000005,690,800,472,69,403,730.38,775.64,662.84,794.89,831,503,54,448,752.75,818.98,638.79,840.83,861,537,61,477,749.41,801.1,634.98,822.24,889,566,67,499,803.79,874.74,645.89,905.56,888,572,70,502,868.98,973.61,683.78,1014.12,975,669,78,"n",853.13,929.74,687.03,"n",850,540,"n","n",610.53,552.67999999999995,"n","n",876,555,"","",639.74,589.74,"n","n",897,579,318,"n","n",641.97,582.65,750,"","",809,496,313,91,405,718.9,664.66,804.77,803.62,633.44000000000005,796,495,301,88,407,730.01,670.79,827.29,838.45,634.66999999999996,816,508,309,84,424,760,717,832,931,674]
["Wolfeboro",2,3283,2830,374,2456,545.19000000000005,535.09,599.39,525.30999999999995,3409,2937,358,2579,544.08000000000004,534.38,565.14,530.11,3459,2989,372,2617,568.21,557.88,609.41999999999996,550.54999999999995,3540,3068,345,2724,598.21,589.04999999999995,653.38,580.91,3514,3009,342,2667,611.36,605.86,682.86,595.99,3493,2981,342,2639,640.87,637.52,777.77,619.37,3410,2897,322,2575,695.31,695.42,838.44,677.53,3382,2873,312,2562,715.72,713.3,818.01,700.56,3292,2770,272,2498,691.4,681.23,841.75,663.73,3196,2688,261,2427,702.45,692.79,836.35,677.38,3118,2616,273,2344,718.76,701.84,851.81,684.4,3028,2517,211,2306,720.14,702.92,781.9,695.7,3001,2480,216,2264,740.65,726.5,827.03,716.89,2993,2477,214,2262,750.08,735.1,818.56,727.19,3025,2515,223,2292,768.38,753.87,865.09,743.05,3126,2611,253,2358,793.72,773.56,958.13,753.77,3093,2565,270,2295,822.13,808.54,971.06,789.43,3105,2569,300,2269,860.01,855.1,935.78,844.42,3193,2653,540,312,2342,867.43,861.4,897.07,1003.32,842.51,3015,2509,507,312,2196,978.38,971.94,1010.27,1079.8699999999999,956.6,3139,2636,503,309,2327,1005.07,1003.49,1013.33,1081.19,993.18,3197,2688,509,274,2414,1046,1039,1080,1159,1026]
[null,null,null,null,null,null,null,null,null,null,null,null,null,null,null,null,null,null,null,null,null,null,null,null,null,null,null,null,null,null,null,null,null,null,null,null,null,null,null,null,null,null,null,null,null,null,null,null,null,null,null,null,null,null,null,null,null,null,null,null,null,null,null,null,null,null,null,null,null,null,null,null,null,null,null,null,null,null,null,null,null,null,null,null,null,null,null,null,null,null,null,null,null,null,null,null,null,null,null,null,null,null,null,null,null,null,null,null,null,null,null,null,null,null,null,null,null,null,null,null,null,null,null,null,null,null,null,null,null,null,null,null,null,null,null,null,null,null,"","","","","","",""]
[null,null,null,null,null,null,null,null,null,null,null,null,null,null,null,null,null,null,null,null,null,null,null,null,null,null,null,null,null,null,null,null,null,null,null,null,null,null,null,null,null,null,null,null,null,null,null,null,null,null,null,null,null,null,null,null,null,null,null,null,null,null,null,null,null,null,null,null,null,null,null,null,null,null,null,null,null,null,null,null,null,null,null,null,null,null,null,null,null,null,null,null,null,null,null,null,null,null,null,null,null,null,null,null,null,null,null,null,null,null,null,null,null,null,null,null,null,null,null,null,null,null,null,null,null,null,null,null,null,null,null,null,null,null,null,null,null,null,"","","","","","",""]
[]
["NH Employment Data","Query Name: DPQryEmploymentByCnty-Good-Serv-Total","Updated:","2022-09-14"]
[]
["AreaName","COUNTYCODE","TOTP & G2001","TOT2001","GOODPRO2001","SERVICEPROMAN2001","WAGEP & G2001","WAGETOT2001","WAGEGOODPRO2001","WAGESERVICEPRO2001","TOTP & G2002","TOT2002","GOODPRO2002","SERVICEPROMAN2002","WAGEP & G2002","WAGETOT2002","WAGEGOODPRO2002","WAGESERVICEPRO2002","TOTP & G2003","TOT2003","GOODPRO2003","SERVICEPROMAN2003","WAGEP & G2003","WAGETOT2003","WAGEGOODPRO2003","WAGESERVICEPRO2003","TOTP & G2004","TOT2004","GOODPRO2004","SERVICEPROMAN2004","WAGEP & G2004","WAGETOT2004","WAGEGOODPRO2004","WAGESERVICEPRO2004","TOTP & G2005","TOT2005","GOODPRO2005","SERVICEPROMAN2005","WAGEP & G2005","WAGETOT2005","WAGEGOODPRO2005","WAGESERVICEPRO2005","TOTP & G2006","TOT2006","GOODPRO2006","SERVICEPROMAN2006","WAGEP & G2006","WAGETOT2006","WAGEGOODPRO2006","WAGESERVICEPRO2006","TOTP & G2007","TOT2007","GOODPRO2007","SERVICEPROMAN2007","WAGEP & G2007","WAGETOT2007","WAGEGOODPRO2007","WAGESERVICEPRO2007","TOTP & G2008","TOT2008","GOODPRO2008","SERVICEPROMAN2008","WAGEP & G2008","WAGETOT2008","WAGEGOODPRO2008","WAGESERVICEPRO2008","TOTP & G2009","TOT2009","GOODPRO2009","SERVICEPROMAN2009","WAGEP & G2009","WAGETOT2009","WAGEGOODPRO2009","WAGESERVICEPRO2009","TOTP & G2010","TOT2010","GOODPRO2010","SERVICEPROMAN2010","WAGEP & G2010","WAGETOT2010","WAGEGOODPRO2010","WAGESERVICEPRO2010","TOTP & G2011","TOT2011","GOODPRO2011","SERVICEPROMAN2011","WAGEP & G2011","WAGETOT2011","WAGEGOODPRO2011","WAGESERVICEPRO2011","TOTP & G2012","TOT2012","GOODPRO2012","SERVICEPROMAN2012","WAGEP & G2012","WAGETOT2012","WAGEGOODPRO2012","WAGESERVICEPRO2012","TOTP & G2013","TOT2013","GOODPRO2013","SERVICEPROMAN2013","WAGEP & G2013","WAGETOT2013","WAGEGOODPRO2013","WAGESERVICEPRO2013","TOTP & G2014","TOT2014","GOODPRO2014","SERVICEPROMAN2014","WAGEP & G2014","WAGETOT2014","WAGEGOODPRO2014","WAGESERVICEPRO2014","TOTP & G2015","TOT2015","GOODPRO2015","SERVICEPROMAN2015","WAGEP & G2015","WAGETOT2015","WAGEGOODPRO2015","WAGESERVICEPRO2015","TOTP & G2016","TOT2016","GOODPRO2016","SERVICEPROMAN2016","WAGEP & G2016","WAGETOT2016","WAGEGOODPRO2016","WAGESERVICEPRO2016","TOTP & G2017","TOT2017","GOODPRO2017","SERVICEPROMAN2017","WAGEP & G2017","WAGETOT2017","WAGEGOODPRO2017","WAGESERVICEPRO2017","TOTP & G2018","TOT2018","GOODPRO2018","SERVICEPROMAN2018","WAGEP & G2018","WAGETOT2018","WAGEGOODPRO2018","WAGESERVICEPRO2018","TOTP & G2019","TOT2019","TOTGov2019","GOODPRO2019","SERVICEPROMAN2019","WAGEP & G2019","WAGETOT2019","WAGEGov2019","WAGEGOODPRO2019","WAGESERVICEPRO2019","TOTP & G2020","TOT2020","TOTGov2020","GOODPRO2020","SERVICEPROMAN2020","WAGEP & G2020","WAGETOT2020","WAGEGov2020","WAGEGOODPRO2020","WAGESERVICEPRO2020","TOTP & G2021","TOT2021","TOTGov2021","GOODPRO2021","SERVICEPROMAN2021","WAGEP & G2021","WAGETOT2021","WAGEGov2021","WAGEGOODPRO2021","WAGESERVICEPRO2021","TOTP & G2022","TOT2022","GOODPRO2022","SERVICEPROMAN2022","WAGEP & G2022","WAGETOT2022","WAGEGOODPRO2022","WAGESERVICEPRO2022","PlaceTownIDNumber","COUNTYCODE"]
["Belknap County",1,26173,22708,6138,16570,541.07000000000005,538.34,689.88,482.21,26052,22334,5408,16926,561.11,555.84,731.15,499.83,26286,22376,5281,17095,579.91,573.04,754.28,517.04999999999995,26931,23030,5431,17599,610.04,602.01,777.41,547.89,26940,22891,5467,17424,636.41999999999996,634.14,819.42,576,27237,23042,5133,17909,657.93,655.07000000000005,862.32,595.66999999999996,27266,23032,4820,18212,674.29,668.31,921.91,601.17999999999995,26793,22507,4572,17935,689.74,680.53,938.61,614.74,25570,21280,3944,17337,692.98,680.87,934.72,623.12,24943,20713,3480,17234,698.61,690.71,945.91,639.19000000000005,24953,20748,3411,17337,706.01,697.17,959.24,645.61,25196,20972,3400,17572,708.66,703.81,960.55,654.13,25517,21311,3517,17794,718.36,714.81,997.67,658.89,25490,21315,3554,17761,748.41,745.98,1036.05,687.93,25584,21457,3597,17859,776.57,774.35,1066.24,715.55,25708,21577,3626,17951,797.95,796.89,1088.81,737.93,25829,21725,3676,18049,823.13,823.31,1139.79,758.85,25898,21803,3774,18029,851.06,851.82,1167.98,785.64,26080,22008,4072,3799,18209,854.12,849.87,877.08,1177.3,781.56,23895,20018,3878,3578,16439,949.48,948,957.09,1212.92,890.34,24938,21021,3917,3619,17402,965.32,969.25,944.22,1287.7,903.02,25226,21338,3632,17706,1005,1007,1332,941,1016,1]
["Carroll County",2,19495,16938,2563,14374,467.52,460.32,627.98,430.42,19756,17153,2497,14656,481.01,472.65,645.74,443.16,20167,17534,2567,14967,492.28,481.72,647.55999999999995,453.27,20405,17701,2526,15175,519.72,511.1,687.06,481.81,20205,17448,2541,14906,533.86,524.08000000000004,703.81,493.43,20294,17504,2588,14916,575.59,568.1,737.84,538.66,20402,17510,2544,14966,573.29999999999995,562.55999999999995,760.1,528.99,20584,17636,2552,15084,584.17999999999995,570.32000000000005,770.38,536.47,19942,16904,2265,14639,587.36,570.99,765.31,540.91999999999996,19810,16754,2124,14630,600.19000000000005,586.5,775.97,558.99,19997,17005,2189,14816,617.28,603.41999999999996,798.39,574.61,20082,17083,2162,14921,627.16999999999996,615.41,800.29,588.62,19971,16958,2084,14874,645.66999999999996,633.79,805.62,609.71,20015,16952,2024,14928,640.24,627.02,843.7,597.64,19806,16828,1996,14832,667.3,653.87,884.26,622.86,19997,17053,2030,15023,686.74,674.21,909.04,642.48,20005,17047,2057,14991,692.33,677.15,941.62,640.87,20015,17037,2078,14959,710.33,694.81,905.58,665.54,20228,17268,2960,2128,15140,735.27,721.26,816.99,942.12,690.22,17882,15000,2883,2074,12926,841.07,832.06,888,1019.76,801.94,18856,16033,2823,2145,13888,872.88,865.29,916,1033.17,839.36,19410,16536,2187,14349,918,915,1060,893,1017,2]
["Cheshire County",3,32349,27819,"n","n",571.92999999999995,577.30999999999995,"n","n",32369,27595,7795,19800,584.33000000000004,590.97,743.2,531.04,32548,27626,7754,19873,598.89,603.04,763.11,540.59,33075,28132,7648,20484,631.09,634.67999999999995,807.42,570.17999999999995,33995,28886,8110,20776,656.03,666.98,828.9,603.78,34194,29151,7889,21262,723.95,741.43,987.42,650.15,33638,28601,7473,21128,707.44,717.07,867.3,663.94,33220,28351,7351,21000,746.75,752.8,902.94,700.24,32207,27212,6761,20451,742.41,745.7,870.79,704.34,31527,26585,6300,20286,754.45,756.21,900.6,711.38,31690,26854,6240,20614,768.13,768.69,935.64,718.15,32021,27158,6245,20914,790.24,793.9,933.87,752.11,31923,27008,6032,20975,796.52,797.61,965.3,749.39,31904,26935,6025,20910,810.83,815.88,993.69,764.64,32067,27097,6073,21024,830.63,834.25,1010.79,783.25,32005,27109,6177,20932,838.96,843.47,1028.03,789.01,31743,26953,6194,20759,867.06,873.07,1043.75,822.14,31642,26825,6445,20380,895.81,907.01,1090.07,849.12,31737,26923,4814,6652,20272,913.17,927.09,835.36,1100.44,870.2,29801,25226,4575,6410,18816,1000.19,1013.03,929.37,1159.32,963.2,30189,26304,3884,6689,19615,1014.16,1025.44,937.75,1193.71,968.06,31326,26866,7145,19722,1081,1104,1278,1041,1018,3]
["Coos County",4,13872,11234,"n","n",489.02,487.7,"n","n",13737,11021,2332,8689,490.8,484.33,650.88,439.63,13946,11225,2578,8647,525.08000000000004,519.66,703.37,464.89,14103,11341,2590,8751,542.98,540.59,726.42,485.6,14026,11222,2533,8689,556.04,552.64,754.89,493.68,13898,10991,2334,8657,572.86,571.41999999999996,766.73,518.76,13876,11050,2184,8866,583.63,572.30999999999995,758.88,526.34,13566,10747,1988,8759,602.53,587.51,755.51,549.38,13002,10134,1720,8414,609.67999999999995,592.77,751.35,560.36,12832,9977,1593,8384,608.57000000000005,589.54,744.88,560.02,12555,9785,1473,8312,620.23,600.46,757.95,572.54,12371,9564,1568,7995,640.94000000000005,622.74,825.56,582.97,12515,9564,1649,7915,667.37,647.75,855.89,604.39,12064,9083,1293,7789,675.59,651.58000000000004,777.89,630.61,11974,9046,1222,7824,694.46,666.94,788.97,647.89,11990,9038,1167,7870,706.62,682.98,853.55,657.68,11999,9070,1223,7846,729.45,705.37,867.99,680.02,11970,9060,1296,7764,749.69,723.06,852.68,701.43,12083,9226,2857,1304,7921,766.79,735.31,868.44,914.39,705.82,10860,8144,2716,1260,6884,857.08,825.46,951.91,905.94,810.72,11341,8617,2724,1357,7260,875.17,849.5,956.35,872.32,845.23,11633,8928,1393,7535,954,944,1180,900,1019,4]
["Grafton County",5,49352,43256,8085,35171,617.73,624.04999999999995,672.45,612.92999999999995,49690,43362,7763,35599,658.93,668.77,701.81,661.56,50615,44009,7790,36220,704.15,717.01,753.77,709.11,51355,44704,7636,37069,728.96,740.6,770.78,734.38,51541,44954,7698,37256,768.82,783.94,809.26,778.7,52267,45531,7761,37770,803.4,820.96,855.22,813.92,52729,45992,7672,38320,843.04,860.73,901.98,852.47,52901,46166,7347,38819,867.61,884.82,928.14,876.62,51401,44646,6446,38200,879.4,895.26,899.95,894.47,51256,44376,6289,38086,905.77,925.54,949.83,921.53,51663,44867,6681,38186,926.58,946.3,981.6,940.12,52026,45246,6818,38428,950.95,973.52,996.15,969.5,52153,45454,6717,38736,965.05,986.68,1028.75,979.39,52226,45565,6778,38787,1004.06,1029.1500000000001,1069.54,1022.09,52654,46056,6882,39174,1037.55,1061.83,1078.8900000000001,1058.83,53361,46686,6801,39885,1058.5999999999999,1086.92,1082.4000000000001,1087.69,53790,47161,6781,40380,1079.6300000000001,1108.6099999999999,1125.3,1105.81,54119,47417,6926,40491,1105.33,1135.81,1167.74,1130.3399999999999,54388,47685,6703,6855,40830,1142.8,1174.8,915.17,1156.02,1177.95,50622,44208,6414,6338,37870,1251.72,1287.53,1004.85,1194.47,1303.1099999999999,52299,45834,6465,6526,39308,1284.3900000000001,1324,1003.57,1309.54,1326.4,53193,47047,6756,40292,1320,1356,1348,1358,1020,5]
["Hillsborough County",6,192842,173003,47169,125834,756.14,762.49,941.37,695.43,188573,168164,42086,126078,768.52,773.3,968.23,708.23,190864,169969,41006,128962,801.91,806.79,1014.82,740.64,193543,172567,40910,131656,839.56,844.4,1064.01,776.16,196190,174854,40181,134673,866.71,873.18,1101.58,805.03,196502,175094,39123,135971,897.24,904,1171.1600000000001,827.13,197183,175821,38588,137233,946.54,951.14,1248.82,867.44,195976,174253,36628,137625,973.54,979.17,1267.17,902.52,187240,165260,33003,132257,959.3,962.96,1236.24,894.76,184628,162829,32117,130712,980.99,986.25,1287.9100000000001,912.12,186437,165030,32694,132336,1013.7,1018.86,1329.81,942.03,188425,167133,31642,135492,1029.82,1035.95,1325.69,968.28,190568,169383,30861,138522,1038.74,1045.24,1365.43,973.9,193565,172574,31422,141152,1092.9000000000001,1101.22,1393.55,1036.1500000000001,196842,175848,31842,144005,1099.51,1106.52,1401.46,1041.3,199729,178867,32654,146213,1118.6300000000001,1126.21,1436.51,1056.9100000000001,201740,180839,33513,147327,1147.78,1156.08,1490.14,1080.0899999999999,203961,182874,34296,148577,1182,1189.98,1525.57,1112.51,205989,184819,21170,35047,149772,1219.73,1229.8399999999999,1131.48,1558.29,1152.98,192746,172283,20463,33774,138510,1350.41,1366.74,1212.8699999999999,1698.45,1285.8599999999999,196932,176563,20368,33764,142800,1406.98,1425.94,1242.6500000000001,1745.36,1350.42,200919,180392,34516,145876,1452,1472,1832,1386,1021,6]
["Merrimack County",7,71543,56168,12137,44031,631.86,633.92999999999995,772.48,595.74,71850,56025,11403,44622,653.27,655.12,799.93,618.12,72840,56631,11036,45595,667.06,666.91,826.68,628.24,72381,56515,10742,45773,690.51,689.4,845.49,652.77,72963,56979,11012,45967,710.07,710.67,861.87,674.44,74077,57818,10760,47058,739.28,739.89,906.79,701.73,74070,57629,10051,47579,774.05,772.96,972.47,730.82,73959,57295,9822,47472,795.3,789.49,978.78,750.33,72134,55582,8724,46857,810.16,788.36,966.04,755.28,71882,55306,8662,46645,821.15,806.64,998.67,770.98,72140,55913,9059,46854,835.3,821.63,1012.78,784.67,72901,56946,9282,47664,850.4,842.26,1036.72,804.39,73510,57805,9457,48348,866.04,857.51,1050.8699999999999,819.69,74884,58800,9698,49103,892.44,882.46,1086.78,842.11,75670,59563,9801,49762,929.04,918.53,1114.06,880.02,76413,60219,9936,50283,946.35,937.29,1126.3800000000001,899.92,76803,60570,10042,50528,980.03,971.23,1164.72,932.78,77469,61326,10142,51184,1012.33,1004.39,1186.1199999999999,968.39,77816,61536,16281,10313,51222,1038.6300000000001,1030.98,1067.56,1209.32,995.07,73101,57299,15802,9711,47587,1132,1126.1500000000001,1153.22,1268.4000000000001,1097.1199999999999,73335,57980,15355,9834,48146,1169.23,1172.8,1155.74,1298.8699999999999,1147.05,75215,59610,10148,49462,1250,1269,1360,1250,1022,7]
["New Hampshire",1026,610446,531225,127190,404035,682.38,691.51,842.11,644.1,603100,521320,115244,406076,695.8,703.84,868.13,657.22,604198,520362,111472,408890,717.94,724.91,888.81,680.22,613327,529515,111893,417622,753.7,760.58,928.63,715.56,620909,536173,112033,424140,779.84,788.93,958.48,744.15,627301,541435,110189,431246,816.3,827.48,1013.11,780.04,630171,543800,107673,436127,843.46,852.45,1054.1600000000001,802.65,628819,541768,104441,437326,863.66,870.64,1074.5999999999999,821.93,604915,517658,92952,424706,864.05,867.37,1066.42,823.81,600540,513386,89428,423957,883.88,890.13,1119.47,841.75,605864,520338,90996,429342,909.31,916.27,1140.95,868.65,612432,527263,90404,436858,928.33,938.02,1152.07,893.72,618756,534106,90890,443216,941.75,950.79,1173.1099999999999,905.2,626567,541441,92176,449265,983.96,996.35,1200.71,954.42,636798,552276,93968,458308,1010.64,1021.89,1224.55,980.34,647375,562836,96138,466699,1030.04,1042.6300000000001,1251.03,999.7,653496,569023,97995,471029,1060.3399999999999,1073.99,1294.46,1028.1199999999999,658816,574044,100089,473955,1091.97,1106.44,1317.59,1061.8499999999999,665374,580394,84980,101907,478487,1128.27,1145.04,1013.77,1346.98,1102.03,624442,542824,81618,97843,444981,1247.45,1269.51,1100.73,1431.08,1233.99,647978,567574,80404,99578,467996,1386.82,1425,1117.32,1483.75,1412.5,670634,589201,102750,486451,1389,1423,1549,1396,1026]
["Rockingham County",8,130960,117604,24384,93220,704.6,714.62,913.02,662.73,130242,116589,22286,94302,712.56,720.57,945.47,667.42,130329,116466,21075,95392,725.68,731.51,920.38,689.79,133803,119786,21944,97841,774.11,781.14,964.22,740.08,136154,122028,22051,99976,796.86,803.2,996.54,760.55,138063,123549,22274,101275,842.13,851.8,1013.05,816.33,138382,123679,22407,101273,849.04,856.27,1052.77,812.8,137191,122378,22407,99970,839.01,841.86,1081.82,788.07,131375,116492,19644,96848,839.06,840.45,1104.3599999999999,786.93,131892,117079,18689,98391,862.17,865.32,1199.72,801.8,133444,119079,18941,100138,880.6,883.65,1146.49,833.93,135396,121125,18942,102183,907.06,912.95,1200.98,859.56,137505,123255,19558,103698,919.22,924.42,1204.8699999999999,871.53,139972,125705,20107,105598,967.99,976.63,1214.5999999999999,931.32,143650,129571,20954,108617,999.45,1007.52,1260.8800000000001,958.65,146926,132843,21711,111132,1008.63,1016.49,1289.1199999999999,963.24,149059,134948,22384,112564,1040.5999999999999,1049.82,1335.62,992.99,149817,135525,22957,112568,1068.69,1079.1600000000001,1345.67,1024.8,151694,137342,14352,23611,113731,1110.28,1122.81,990.42,1388.53,1067.6400000000001,141876,128387,13488,23301,105086,1204.1600000000001,1216.3900000000001,1087.78,1435.04,1167.9100000000001,147153,133559,13593,23930,109629,1266.5,1282.33,1110.97,1480.19,1239.1400000000001,151310,137387,24619,112767,1327,1345,1543,1301,1023,8]
["Strafford County",9,43645,34821,9068,25753,655.37,655.92,770.85,615.45000000000005,42874,33684,7630,26054,655.35,652.99,800.21,609.88,43046,33530,7366,26164,668.52,656.47,806.84,614.13,43436,33873,7230,26643,693.72,673.65,820.17,633.9,43773,34267,7211,27056,709.03,692.76,828.02,656.71,44557,35064,7140,27925,723.22,705.71,858.22,666.71,45570,35960,6960,29000,746.96,729.16,880.17,692.91,46580,36991,6754,30237,803.35,784.14,900.05,758.25,44375,35115,5981,29133,822.2,798.7,916.04,774.61,44144,34793,5960,28833,843.68,824.98,964.85,796.07,44154,34870,6008,28863,879.87,868.02,1098.93,819.95,45017,35667,6036,29631,875.8,864.35,1039.17,828.73,45379,36187,6365,29822,896.63,880.93,1050.44,844.76,46249,36899,6431,30469,915.86,906.58,1082.2,869.52,46826,37517,6657,30860,954.37,941.53,1121.8,902.65,47632,38313,6879,31434,967.61,953.88,1119.03,917.74,48165,38780,6935,31845,990.95,980.7,1148.01,944.26,48371,39036,6997,32039,1004.47,991.1,1131.83,960.36,48714,39366,9348,7127,32239,1034.79,1028.5999999999999,1060.8599999999999,1146.21,1002.6,45799,36761,9038,6439,30321,1109.92,1099.0999999999999,1153.96,1214.9000000000001,1074.5,46804,37871,8933,6556,31316,1140.3699999999999,1132.99,1171.6600000000001,1259.19,1106.57,47470,38529,6974,31554,1186,1184,1296,1159,1024,9]
["Sullivan County",10,14086,11544,"n","n",536.78,549.33000000000004,"n","n",13793,11231,4452,6779,561.15,569.74,685.65,493.64,13370,10809,4059,6750,577.41,588.45000000000005,688.92,528.03,13551,11127,4066,7061,602.70000000000005,607.34,721.67,541.5,13862,11386,4086,7300,615.79,621.85,741.34,554.98,13826,11306,3928,7377,642.61,650.96,800.27,571.45000000000005,13873,11351,3958,7393,676.8,687.32,843.22,603.85,13799,11227,3909,7318,687.34,698.53,866.24,608.95000000000005,13185,10586,3466,7121,698.02,705.82,887.35,617.47,13076,10479,3303,7176,714.38,723.66,917.55,634.42999999999995,13190,10617,3204,7413,723.57,732.12,955.94,635.39,13597,11070,3448,7622,757.15,771.77,1038.8399999999999,650.94000000000005,13793,11373,3704,7670,768.35,784.88,1012.65,674.88,13873,11439,3932,7507,795.94,816.28,1039.17,699.53,14090,11709,3948,7761,803.2,815.31,1021.57,710.37,14204,11783,4061,7722,810.76,830.28,1066.2,706.22,13997,11636,4031,7605,821.95,836.22,1048.48,723.72,13966,11628,3919,7708,836.09,849.04,1063.6199999999999,739.94,13735,11390,2344,3818,7573,854.16,864.16,805.53,1081.23,754.74,13162,10897,2266,3666,7231,933.76,950.68,852.41,1145.6400000000001,851.82,13487,11250,2237,3748,7502,996.61,1021.24,872.79,1258.53,902.68,13460,11234,3901,7333,1031,1058,1256,952,1025,10]

{"sheet":"BuildingPermitsSince2000","index":8,"n_rows":41,"n_cols":25,"rows_kept":41,"cut":false,"hidden":true,"merged":[[3,1,3,3]]}
[]
[null,{"$f":"CntyDataLink!A35","v":"Wolfeboro"}]
[]
[null,"HOUSING CHARACTERISTICS"]
[]
[]
[]
[]
[]
[]
[]
[]
[]
[]
[]
[]
[]
[]
[]
[]
[]
[]
[]
[]
[]
[]
[]
[]
[]
[]
[]
[]
[]
[]
[null,"Housing Units Authorized by Permit",null,null,null,"Source: Office of Planning and Development, NH BEA"]
[]
[null,"Year",2000,{"$f":"C37+1","v":2001},{"$f":"D37+1","v":2002},2003,2004,2005,2006,2007,2008,2009,2010,2011,2012,2013,2014,2015,2016,2017,2018,2019,2020,2021,"Total"]
[null,"Single Family",{"$f":"CntyDataLink!$BU$20","v":55},{"$f":"CntyDataLink!$BX$20","v":70},{"$f":"CntyDataLink!$CA$20","v":66},{"$f":"CntyDataLink!$CD$20","v":60},{"$f":"CntyDataLink!$CG$20","v":60},{"$f":"CntyDataLink!$CJ$20","v":16},{"$f":"CntyDataLink!$CM$20","v":4},{"$f":"CntyDataLink!$CO$20","v":0},{"$f":"CntyDataLink!$CS$20","v":2},{"$f":"CntyDataLink!$CV$20","v":-8},{"$f":"CntyDataLink!$CY$20","v":-9},{"$f":"CntyDataLink!$DB$20","v":0},{"$f":"CntyDataLink!$DE$20","v":2},{"$f":"CntyDataLink!$DH$20","v":8},{"$f":"CntyDataLink!$DK$20","v":12},{"$f":"CntyDataLink!$DN$20","v":5},{"$f":"CntyDataLink!$DQ$20","v":6},{"$f":"CntyDataLink!$DT$20","v":15},{"$f":"CntyDataLink!$DW$20","v":22},{"$f":"CntyDataLink!$DZ$20","v":30},{"$f":"CntyDataLink!$EC$20","v":14},{"$f":"CntyDataLink!$EI$20","v":9},{"$f":"SUM(C38:X38)","v":439}]
[null,"Multi-family",{"$f":"CntyDataLink!$BV$20","v":0},{"$f":"CntyDataLink!$BY$20","v":0},{"$f":"CntyDataLink!$CB$20","v":0},{"$f":"CntyDataLink!$CE$20","v":0},{"$f":"CntyDataLink!$CH$20","v":0},{"$f":"CntyDataLink!$CK$20","v":4},{"$f":"CntyDataLink!$CN$20","v":0},{"$f":"CntyDataLink!$CP$20","v":17},{"$f":"CntyDataLink!$CT$20","v":2},{"$f":"CntyDataLink!$CW$20","v":0},{"$f":"CntyDataLink!$CZ$20","v":0},{"$f":"CntyDataLink!$DC$20","v":0},{"$f":"CntyDataLink!$DF$20","v":24},{"$f":"CntyDataLink!$DI$20","v":24},{"$f":"CntyDataLink!$DL$20","v":0},{"$f":"CntyDataLink!$DO$20","v":0},{"$f":"CntyDataLink!$DR$20","v":0},{"$f":"CntyDataLink!$DU$20","v":2},{"$f":"CntyDataLink!$DX$20","v":2},{"$f":"CntyDataLink!$EA$20","v":6},{"$f":"CntyDataLink!$ED$20","v":7},{"$f":"CntyDataLink!$EJ$20","v":1},{"$f":"SUM(C39:X39)","v":89}]
[null,"Manufactured",{"$f":"CntyDataLink!$BW$20","v":0},{"$f":"CntyDataLink!$BZ$20","v":0},{"$f":"CntyDataLink!$CC$20","v":1},{"$f":"CntyDataLink!$CF$20","v":0},{"$f":"CntyDataLink!$CI$20","v":0},{"$f":"CntyDataLink!$CL$20","v":0},{"$f":"CntyDataLink!$CO$20","v":0},{"$f":"CntyDataLink!$CR$20","v":0},{"$f":"CntyDataLink!$CU$20","v":0},{"$f":"CntyDataLink!$CX$20","v":0},{"$f":"CntyDataLink!$DA$20","v":0},{"$f":"CntyDataLink!$DD$20","v":0},{"$f":"CntyDataLink!$DG$20","v":-1},{"$f":"CntyDataLink!$DJ$20","v":0},{"$f":"CntyDataLink!$DM$20","v":0},{"$f":"CntyDataLink!$DP$20","v":0},{"$f":"CntyDataLink!$DR$20","v":0},{"$f":"CntyDataLink!$DV$20","v":0},{"$f":"CntyDataLink!$DY$20","v":0},{"$f":"CntyDataLink!$EB$20","v":0},{"$f":"CntyDataLink!$EE$20","v":0},{"$f":"CntyDataLink!$EK$20","v":0},{"$f":"SUM(C40:X40)","v":0}]
[null,"Total",{"$f":"SUM(C38:C40)","v":55},{"$f":"SUM(D38:D40)","v":70},67,60,60,20,4,17,4,-8,-9,0,25,32,12,5,6,17,{"$f":"SUM(U38:U40)","v":24},{"$f":"SUM(V38:V40)","v":36},{"$f":"SUM(W38:W40)","v":21},{"$f":"SUM(X38:X40)","v":10},{"$f":"SUM(C41:X41)","v":528}]

{"sheet":"EmploymentAndWages","index":9,"n_rows":0,"n_cols":0,"rows_kept":0,"cut":false,"hidden":true,"merged":[]}

{"sheet":"EmpVsHUxCounty","index":10,"n_rows":124,"n_cols":14,"rows_kept":124,"cut":false,"hidden":true,"merged":[[79,0,80,9],[64,0,64,11]]}
[]
[{"$f":"A44","v":"Housing Units "}]
[]
[]
[]
[]
[]
[]
[]
[]
[]
[]
[]
[]
[]
[]
[]
[]
[]
[]
[]
[]
[]
[]
[]
[]
[]
[]
[]
[]
[]
[]
[]
[]
[]
[]
[]
[]
[null,null,null,"Source: New Hampshire Office of Planning and Development"]
[]
[]
[]
[]
["Housing Units "]
[{"$f":"CntyDataLink!A20","v":"Wolfeboro"}]
[null,null,null,"Source:  Office of Planning and Development, NH BEA"]
["Units Authorized By Permit",2010,{"$f":"B47+1","v":2011},{"$f":"C47+1","v":2012},2013,2014,2015,2016,2017,2018,2019,2020,2021]
["Single Family",{"$f":"CntyDataLink!$CY$20","v":-9},{"$f":"CntyDataLink!$DB$20","v":0},{"$f":"CntyDataLink!$DE$20","v":2},{"$f":"CntyDataLink!$DH$20","v":8},{"$f":"CntyDataLink!$DK$20","v":12},{"$f":"CntyDataLink!$DN$20","v":5},{"$f":"CntyDataLink!$DQ$20","v":6},{"$f":"CntyDataLink!$DT$20","v":15},{"$f":"CntyDataLink!$DW$20","v":22},{"$f":"CntyDataLink!$DZ$20","v":30},{"$f":"CntyDataLink!$EC$20","v":14},{"$f":"CntyDataLink!$EI$20","v":9}]
["Multi-family",{"$f":"CntyDataLink!$CZ$20","v":0},{"$f":"CntyDataLink!$DC$20","v":0},{"$f":"CntyDataLink!$DF$20","v":24},{"$f":"CntyDataLink!$DI$20","v":24},{"$f":"CntyDataLink!$DL$20","v":0},{"$f":"CntyDataLink!$DO$20","v":0},{"$f":"CntyDataLink!$DR$20","v":0},{"$f":"CntyDataLink!$DU$20","v":2},{"$f":"CntyDataLink!$DX$20","v":2},{"$f":"CntyDataLink!$EA$20","v":6},{"$f":"CntyDataLink!$ED$20","v":7},{"$f":"CntyDataLink!$EJ$20","v":1}]
["Mobile Home",{"$f":"CntyDataLink!$DA$20","v":0},{"$f":"CntyDataLink!$DD$20","v":0},{"$f":"CntyDataLink!$DG$20","v":-1},{"$f":"CntyDataLink!$DJ$20","v":0},{"$f":"CntyDataLink!$DM$20","v":0},{"$f":"CntyDataLink!$DP$20","v":0},{"$f":"CntyDataLink!$DR$20","v":0},{"$f":"CntyDataLink!$DV$20","v":0},{"$f":"CntyDataLink!$DY$20","v":0},{"$f":"CntyDataLink!$EB$20","v":0},{"$f":"CntyDataLink!$EE$20","v":0},{"$f":"CntyDataLink!$EK$20","v":0}]
["Total",{"$f":"SUM(B48:B50)","v":-9},0,25,32,12,5,6,17,{"$f":"SUM(J48:J50)","v":24},{"$f":"SUM(K48:K50)","v":36},{"$f":"SUM(L48:L50)","v":21},{"$f":"SUM(M48:M50)","v":10}]
[]
["Total Housing Units","2010 Census",2011,{"$f":"C53+1","v":2012},2013,2014,2015,2016,2017,2018,2019,2020,2021,2022]
["Single Family",{"$f":"CntyDataLink!$BA$167","v":3386},{"$f":"B48+B54","v":3377},3377,3379,3387,3399,3404,3410,3425,3447,{"$f":"K54+K48","v":3477},3491,{"$f":"M54+M48","v":3500}]
["Multi Family",{"$f":"CntyDataLink!$BB$167","v":887},887,887,911,935,935,935,935,937,939,945,952,953]
["Mobile Home",{"$f":"CntyDataLink!$BC$167","v":170},170,170,169,169,169,169,169,169,169,169,169,169]
["Total",{"$f":"SUM(B54:B56)","v":4443},4434,4434,4459,4491,4503,4508,4514,4531,4555,4591,4612,{"$f":"SUM(N54:N56)","v":4622}]
[]
["Percent Change","2000-2010 Census"," 10-11"," 11-12","12-13","13-14","14-15","15-16","16-17","17-18","18-19","19-20","20-21","21-22"]
["Single Family",{"$f":"(B54-CntyDataLink!CF$65)/CntyDataLink!CF$65","v":9.5084087968952138E-2},{"$f":"(C54-B54)/B54","v":-2.6580035440047253E-3},0,5.9224163458691142E-4,2.3675643681562593E-3,3.5429583702391498E-3,1.4710208884966167E-3,1.7626321974148062E-3,4.3988269794721412E-3,6.4233576642335763E-3,8.7032201914708437E-3,4.0264595916019554E-3,2.5780578630764826E-3]
["Multi Family",{"$f":"(B55-SUM(CntyDataLink!CG65:CM65))/SUM(CntyDataLink!CG65:CM65)","v":0.28924418604651164},0,0,2.7057497181510709E-2,2.6344676180021953E-2,0,0,0,2.1390374331550803E-3,2.1344717182497333E-3,6.3897763578274758E-3,7.4074074074074077E-3,1.0504201680672268E-3]
["Mobile Home",{"$f":"(B56-SUM(CntyDataLink!CN65))/(CntyDataLink!CN65)","v":0.58878504672897192},0,0,-5.8823529411764705E-3,0,0,0,0,0,0,0,0,0]
["Total",{"$f":"(B57-CntyDataLink!$CE65)/CntyDataLink!$CE65","v":0.13835511145272866},-2.0256583389601621E-3,0,5.6382498872350022E-3,7.1764969724153402E-3,2.6720106880427524E-3,1.1103708638685321E-3,1.3309671694764862E-3,3.7660611431103233E-3,5.2968439638048995E-3,7.9034028540065863E-3,4.5741668481812242E-3,2.1682567215958368E-3]
[]
[]
[]
[]
["Private Employment"]
[{"$f":"CntyDataLink!A25","v":"Wolfeboro"}]
[null,null,2011,{"$f":"C70+1","v":2012},{"$f":"D70+1","v":2013},{"$f":"E70+1","v":2014},{"$f":"F70+1","v":2015},{"$f":"G70+1","v":2016},{"$f":"H70+1","v":2017},{"$f":"I70+1","v":2018},{"$f":"J70+1","v":2019},{"$f":"K70+1","v":2020},{"$f":"L70+1","v":2021},{"$f":"M70+1","v":2022}]
["Goods Producing",null,{"$f":"IF((CntyDataLink!$CG$25)=\"n\",NA(),IF(VALUE(CntyDataLink!$CG$25)=\"\",NA(),VALUE(CntyDataLink!$CG$25)))","v":273},{"$f":"IF((CntyDataLink!$CO$25)=\"n\",NA(),IF(VALUE(CntyDataLink!$CO$25)=\"\",NA(),VALUE(CntyDataLink!$CO$25)))","v":211},{"$f":"IF((CntyDataLink!$CW$25)=\"n\",NA(),IF(VALUE(CntyDataLink!$CW$25)=\"\",NA(),VALUE(CntyDataLink!$CW$25)))","v":216},{"$f":"IF((CntyDataLink!$DE$25)=\"n\",NA(),IF(VALUE(CntyDataLink!$DE$25)=\"\",NA(),VALUE(CntyDataLink!$DE$25)))","v":214},{"$f":"IF((CntyDataLink!$DM$25)=\"n\",NA(),IF(VALUE(CntyDataLink!$DM$25)=\"\",NA(),VALUE(CntyDataLink!$DM$25)))","v":223},{"$f":"IF((CntyDataLink!$DU$25)=\"n\",NA(),IF(VALUE(CntyDataLink!$DU$25)=\"\",NA(),VALUE(CntyDataLink!$DU$25)))","v":253},{"$f":"IF((CntyDataLink!$EC$25)=\"n\",NA(),IF(VALUE(CntyDataLink!$EC$25)=\"\",NA(),VALUE(CntyDataLink!$EC$25)))","v":270},{"$f":"IF((CntyDataLink!$EK$25)=\"n\",NA(),IF(VALUE(CntyDataLink!$EK$25)=\"\",NA(),VALUE(CntyDataLink!$EK$25)))","v":300},{"$f":"IF((CntyDataLink!$ET$25)=\"n\",NA(),IF(VALUE(CntyDataLink!$ET$25)=\"\",NA(),VALUE(CntyDataLink!$ET$25)))","v":312},{"$f":"IF((CntyDataLink!$FD$25)=\"n\",NA(),IF(VALUE(CntyDataLink!$FD$25)=\"\",NA(),VALUE(CntyDataLink!$FD$25)))","v":312},{"$f":"IF((CntyDataLink!$FO$25)=\"n\",NA(),IF(VALUE(CntyDataLink!$FO$25)=\"\",NA(),VALUE(CntyDataLink!$FO$25)))","v":309},{"$f":"IF((CntyDataLink!$FX$25)=\"n\",NA(),IF(VALUE(CntyDataLink!$FX$25)=\"\",NA(),VALUE(CntyDataLink!$FX$25)))","v":274}]
["Service Providing",null,{"$f":"IF((CntyDataLink!$CH$25)=\"n\",NA(),IF(VALUE(CntyDataLink!$CH$25)=\"\",NA(),VALUE(CntyDataLink!$CH$25)))","v":2344},{"$f":"IF((CntyDataLink!$CP$25)=\"n\",NA(),IF(VALUE(CntyDataLink!$CP$25)=\"\",NA(),VALUE(CntyDataLink!$CP$25)))","v":2306},{"$f":"IF((CntyDataLink!$CX$25)=\"n\",NA(),IF(VALUE(CntyDataLink!$CX$25)=\"\",NA(),VALUE(CntyDataLink!$CX$25)))","v":2264},{"$f":"IF((CntyDataLink!$DF$25)=\"n\",NA(),IF(VALUE(CntyDataLink!$DF$25)=\"\",NA(),VALUE(CntyDataLink!$DF$25)))","v":2262},{"$f":"IF((CntyDataLink!$DN$25)=\"n\",NA(),IF(VALUE(CntyDataLink!$DN$25)=\"\",NA(),VALUE(CntyDataLink!$DN$25)))","v":2292},{"$f":"IF((CntyDataLink!$DV$25)=\"n\",NA(),IF(VALUE(CntyDataLink!$DV$25)=\"\",NA(),VALUE(CntyDataLink!$DV$25)))","v":2358},{"$f":"IF((CntyDataLink!$ED$25)=\"n\",NA(),IF(VALUE(CntyDataLink!$ED$25)=\"\",NA(),VALUE(CntyDataLink!$ED$25)))","v":2295},{"$f":"IF((CntyDataLink!$EL$25)=\"n\",NA(),IF(VALUE(CntyDataLink!$EL$25)=\"\",NA(),VALUE(CntyDataLink!$EL$25)))","v":2269},{"$f":"IF((CntyDataLink!$EU$25)=\"n\",NA(),IF(VALUE(CntyDataLink!$EU$25)=\"\",NA(),VALUE(CntyDataLink!$EU$25)))","v":2342},{"$f":"IF((CntyDataLink!$FE$25)=\"n\",NA(),IF(VALUE(CntyDataLink!$FE$25)=\"\",NA(),VALUE(CntyDataLink!$FE$25)))","v":2196},{"$f":"IF((CntyDataLink!$FP$25)=\"n\",NA(),IF(VALUE(CntyDataLink!$FP$25)=\"\",NA(),VALUE(CntyDataLink!$FP$25)))","v":1005.07},{"$f":"IF((CntyDataLink!$FY$25)=\"n\",NA(),IF(VALUE(CntyDataLink!$FY$25)=\"\",NA(),VALUE(CntyDataLink!$FY$25)))","v":2414}]
["Total Private Emp",null,{"$f":"IF((CntyDataLink!$CF$25)=\"n\",NA(),IF(VALUE(CntyDataLink!$CF$25)=\"\",NA(),VALUE(CntyDataLink!$CF$25)))","v":2616},{"$f":"IF((CntyDataLink!$CN$25)=\"n\",NA(),IF(VALUE(CntyDataLink!$CN$25)=\"\",NA(),VALUE(CntyDataLink!$CN$25)))","v":2517},{"$f":"IF((CntyDataLink!$CV$25)=\"n\",NA(),IF(VALUE(CntyDataLink!$CV$25)=\"\",NA(),VALUE(CntyDataLink!$CV$25)))","v":2480},{"$f":"IF((CntyDataLink!$DD$25)=\"n\",NA(),IF(VALUE(CntyDataLink!$DD$25)=\"\",NA(),VALUE(CntyDataLink!$DD$25)))","v":2477},{"$f":"IF((CntyDataLink!$DL$25)=\"n\",NA(),IF(VALUE(CntyDataLink!$DL$25)=\"\",NA(),VALUE(CntyDataLink!$DL$25)))","v":2515},{"$f":"IF((CntyDataLink!$DT$25)=\"n\",NA(),IF(VALUE(CntyDataLink!$DT$25)=\"\",NA(),VALUE(CntyDataLink!$DT$25)))","v":2611},{"$f":"IF((CntyDataLink!$EB$25)=\"n\",NA(),IF(VALUE(CntyDataLink!$EB$25)=\"\",NA(),VALUE(CntyDataLink!$EB$25)))","v":2565},{"$f":"IF((CntyDataLink!$EJ$25)=\"n\",NA(),IF(VALUE(CntyDataLink!$EJ$25)=\"\",NA(),VALUE(CntyDataLink!$EJ$25)))","v":2569},{"$f":"IF((CntyDataLink!$ER$25)=\"n\",NA(),IF(VALUE(CntyDataLink!$ER$25)=\"\",NA(),VALUE(CntyDataLink!$ER$25)))","v":2653},{"$f":"IF((CntyDataLink!$FB$25)=\"n\",NA(),IF(VALUE(CntyDataLink!$FB$25)=\"\",NA(),VALUE(CntyDataLink!$FB$25)))","v":2509},{"$f":"IF((CntyDataLink!$FL$25)=\"n\",NA(),IF(VALUE(CntyDataLink!$FL$25)=\"\",NA(),VALUE(CntyDataLink!$FL$25)))","v":2636},{"$f":"IF((CntyDataLink!$FV$25)=\"n\",NA(),IF(VALUE(CntyDataLink!$FV$25)=\"\",NA(),VALUE(CntyDataLink!$FV$25)))","v":2688}]
[]
["Percent Change",null,null,"10-11","11-12","12-13","13-14","14-15","15-16","16-17","17-18","18-19","19-20","20-21"]
["Goods Producing",null,null,{"$f":"(D71-C71)/C71","v":-0.2271062271062271},{"$f":"(E71-D71)/D71","v":2.3696682464454975E-2},-9.2592592592592587E-3,4.2056074766355138E-2,0.13452914798206278,6.7193675889328064E-2,0.1111111111111111,0.04,0,-9.6153846153846159E-3,{"$f":"(N71-M71)/M71","v":-0.11326860841423948}]
["Service Providing",null,null,-1.6211604095563138E-2,-1.8213356461405029E-2,-8.8339222614840988E-4,1.3262599469496022E-2,2.8795811518324606E-2,-2.6717557251908396E-2,-1.1328976034858388E-2,3.2172763331864258E-2,-6.2339880444064903E-2,-0.54231785063752269,{"$f":"(N72-M72)/M72","v":1.4018227586138277}]
["Total Private Emp",null,null,-3.7844036697247709E-2,{"$f":"(E73-D73)/D73","v":-1.4700039729837107E-2},-1.2096774193548388E-3,1.5341138473960436E-2,3.8170974155069586E-2,-1.7617770968977403E-2,1.5594541910331384E-3,3.2697547683923703E-2,-5.427817565020731E-2,5.0617776006377041E-2,{"$f":"(N73-M73)/M73","v":1.9726858877086494E-2}]
[]
["Source: New Hampshire Department of Employment Security"]
[]
[]
[]
[{"$f":"A2","v":"Housing Units "}]
[]
[]
[]
[]
[]
[]
[]
[]
[]
[]
[]
[]
[]
[]
[]
[]
[]
[]
[]
[]
[]
[]
[]
[]
[]
[]
[]
[]
[]
[]
[]
[]
[]
[]
[]
[null,null,2012,{"$f":"C120+1","v":2013},2014,2015,2016,2017,2018,2019,2020,2021,2022]
["Total Housing Units",null,{"$f":"D$57","v":4434},4459,4491,4503,4508,4514,4531,4555,4591,4612,4622]
["Private & Government Emp.",null,{"$f":"VALUE(CntyDataLink!$CM$25)","v":3028},{"$f":"VALUE(CntyDataLink!$CU$25)","v":3001},{"$f":"VALUE(CntyDataLink!$DC$25)","v":2993},{"$f":"VALUE(CntyDataLink!$DK$25)","v":3025},{"$f":"VALUE(CntyDataLink!$DS$25)","v":3126},{"$f":"VALUE(CntyDataLink!$EA$25)","v":3093},{"$f":"VALUE(CntyDataLink!$EI$25)","v":3105},{"$f":"VALUE(CntyDataLink!$EQ$25)","v":3193},{"$f":"VALUE(CntyDataLink!$FA$25)","v":3015},{"$f":"VALUE(CntyDataLink!$FK$25)","v":3139},{"$f":"VALUE(CntyDataLink!$FU$25)","v":3197}]
[]
["Source: New Hampshire Department of Employment Security and New Hampshire Office of Planning and Development, NH BEA"]

{"sheet":"HHIncome-10YearComparison","index":11,"n_rows":50,"n_cols":17,"rows_kept":50,"cut":false,"hidden":true,"merged":[[27,15,27,16],[27,11,27,13],[28,1,28,2],[3,1,3,3],[26,1,26,4],[27,4,27,7],[27,8,27,10]]}
[]
[null,{"$f":"CntyDataLink!A35","v":"Wolfeboro"}]
[]
[null,"INCOME CHARACTERISTICS"]
[]
[]
[]
[]
[]
[]
[]
[]
[]
[]
[]
[]
[]
[]
[]
[]
[]
[]
[]
[]
[]
[]
[null,"Households By Household Income"]
[null,null,null,null,"2008-2012",null,null,null,"2013-2017",null,null,"2018-2022",null,null,null,"Statistically Significant Change"]
[null,"Household Income",null,null,"Estimate","Margin of Error",null,null,"Estimate"," Margin of Error",null,"Estimate"," Margin of Error",null,null,"2012-2022","2017-2022"]
[null,"Less than $10,000",null,null,{"$f":"CntyDataLinkPrior10YearEstimate!$B$120","v":81},{"$f":"CntyDataLinkPrior10YearEstimate!$C$120","v":59},{"$f":"E30/SUM($E$30:$E$39)","v":7.1936056838365903E-2},null,{"$f":"CntyDataLinkPrior5YearEstimates!$B$120","v":54},{"$f":"CntyDataLinkPrior5YearEstimates!$C$120","v":65},{"$f":"I30/SUM($I$30:$I$39)","v":1.8398637137989778E-2},{"$f":"CntyDataLink!$B$120","v":144},{"$f":"CntyDataLink!$C$120","v":122},{"$f":"L30/SUM($L$30:$L$39)","v":5.1668460710441337E-2},null,{"$f":"StatisticallySignificantCalcs!$A$83","v":"N"},{"$f":"StatisticallySignificantCalcs!$J$83","v":"N"}]
[null,"$10,000 to $14,999",null,null,{"$f":"CntyDataLinkPrior10YearEstimate!$D$120","v":150},{"$f":"CntyDataLinkPrior10YearEstimate!$E$120","v":107},{"$f":"E31/SUM($E$30:$E$39)","v":0.13321492007104796},null,{"$f":"CntyDataLinkPrior5YearEstimates!$D$120","v":221},{"$f":"CntyDataLinkPrior5YearEstimates!$E$120","v":157},{"$f":"I31/SUM($I$30:$I$39)","v":7.5298126064735946E-2},{"$f":"CntyDataLink!$D$120","v":173},{"$f":"CntyDataLink!$E$120","v":138},{"$f":"L31/SUM($L$30:$L$39)","v":6.2073914603516328E-2},null,{"$f":"StatisticallySignificantCalcs!$A$84","v":"N"},{"$f":"StatisticallySignificantCalcs!$J$84","v":"N"}]
[null,"$15,000 to $24,999",null,null,{"$f":"CntyDataLinkPrior10YearEstimate!$F$120","v":34},{"$f":"CntyDataLinkPrior10YearEstimate!$G$120","v":31},3.0195381882770871E-2,null,{"$f":"CntyDataLinkPrior5YearEstimates!$F$120","v":278},{"$f":"CntyDataLinkPrior5YearEstimates!$G$120","v":164.63899902513984},9.4718909710391819E-2,{"$f":"CntyDataLink!$F$120","v":143},{"$f":"CntyDataLink!$G$120","v":94.641428560646744},5.1309651955507712E-2,null,{"$f":"StatisticallySignificantCalcs!$A$85","v":"Y"},{"$f":"StatisticallySignificantCalcs!$J$85","v":"Y"}]
[null,"$25,000 to $34,999",null,null,{"$f":"CntyDataLinkPrior10YearEstimate!$H$120","v":73},{"$f":"CntyDataLinkPrior10YearEstimate!$I$120","v":78},6.4831261101243334E-2,null,{"$f":"CntyDataLinkPrior5YearEstimates!$H$120","v":415},{"$f":"CntyDataLinkPrior5YearEstimates!$I$120","v":177.48521065147935},0.141396933560477,{"$f":"CntyDataLink!$H$120","v":301},{"$f":"CntyDataLink!$I$120","v":160.46494944379597},0.10800143523501973,null,{"$f":"StatisticallySignificantCalcs!$A$86","v":"Y"},{"$f":"StatisticallySignificantCalcs!$J$86","v":"Y"}]
[null,"$35,000 to $49,999",null,null,{"$f":"CntyDataLinkPrior10YearEstimate!$J$120","v":72},{"$f":"CntyDataLinkPrior10YearEstimate!$K$120","v":74},6.3943161634103018E-2,null,{"$f":"CntyDataLinkPrior5YearEstimates!$J$120","v":481},{"$f":"CntyDataLinkPrior5YearEstimates!$K$120","v":206.05339113928702},0.16388415672913118,{"$f":"CntyDataLink!$J$120","v":327},{"$f":"CntyDataLink!$K$120","v":177.87636155487328},0.11733046286329386,null,{"$f":"StatisticallySignificantCalcs!$A$87","v":"Y"},{"$f":"StatisticallySignificantCalcs!$J$87","v":"Y"}]
[null,"$50,000 to $74,999",null,null,{"$f":"CntyDataLinkPrior10YearEstimate!$L$120","v":103},{"$f":"CntyDataLinkPrior10YearEstimate!$M$120","v":73},9.1474245115452935E-2,null,{"$f":"CntyDataLinkPrior5YearEstimates!$L$120","v":334},{"$f":"CntyDataLinkPrior5YearEstimates!$M$120","v":122.00409829181969},0.11379897785349233,{"$f":"CntyDataLink!$L$120","v":267},{"$f":"CntyDataLink!$M$120","v":121.75795661885921},9.5801937567276646E-2,null,{"$f":"StatisticallySignificantCalcs!$A$88","v":"Y"},{"$f":"StatisticallySignificantCalcs!$J$88","v":"Y"}]
[null,"$75,000 to $99,999",null,null,{"$f":"CntyDataLinkPrior10YearEstimate!$N$120","v":194},{"$f":"CntyDataLinkPrior10YearEstimate!$O$120","v":117},0.17229129662522202,null,{"$f":"CntyDataLinkPrior5YearEstimates!$N$120","v":242},{"$f":"CntyDataLinkPrior5YearEstimates!$O$120","v":111},8.245315161839864E-2,{"$f":"CntyDataLink!$N$120","v":339},{"$f":"CntyDataLink!$O$120","v":124},0.1216361679224973,null,{"$f":"StatisticallySignificantCalcs!$A$89","v":"N"},{"$f":"StatisticallySignificantCalcs!$J$89","v":"N"}]
[null,"$100,000 to $149,999",null,null,{"$f":"CntyDataLinkPrior10YearEstimate!$P$120","v":117},{"$f":"CntyDataLinkPrior10YearEstimate!$Q$120","v":70},0.10390763765541741,null,{"$f":"CntyDataLinkPrior5YearEstimates!$P$120","v":492},{"$f":"CntyDataLinkPrior5YearEstimates!$Q$120","v":189.52836199366047},0.16763202725724022,{"$f":"CntyDataLink!$P$120","v":670},{"$f":"CntyDataLink!$Q$120","v":255.61885689440049},0.24040186580552567,null,{"$f":"StatisticallySignificantCalcs!$A$90","v":"Y"},{"$f":"StatisticallySignificantCalcs!$J$90","v":"Y"}]
[null,"$150,000 to $199,999",null,null,{"$f":"CntyDataLinkPrior10YearEstimate!$R$120","v":196},{"$f":"CntyDataLinkPrior10YearEstimate!$S$120","v":115},0.17406749555950266,null,{"$f":"CntyDataLinkPrior5YearEstimates!$R$120","v":200},{"$f":"CntyDataLinkPrior5YearEstimates!$S$120","v":108},6.8143100511073251E-2,{"$f":"CntyDataLink!$R$120","v":154},{"$f":"CntyDataLink!$S$120","v":78},5.5256548259777535E-2,null,{"$f":"StatisticallySignificantCalcs!$A$91","v":"N"},{"$f":"StatisticallySignificantCalcs!$J$91","v":"N"}]
[null,"Greater than $200,000",null,null,{"$f":"CntyDataLinkPrior10YearEstimate!$T$120","v":106},{"$f":"CntyDataLinkPrior10YearEstimate!$U$120","v":62},9.4138543516873896E-2,null,{"$f":"CntyDataLinkPrior5YearEstimates!$T$120","v":218},{"$f":"CntyDataLinkPrior5YearEstimates!$U$120","v":132},7.4275979557069841E-2,{"$f":"CntyDataLink!$T$120","v":269},{"$f":"CntyDataLink!$U$120","v":135},9.6519555077143881E-2,null,{"$f":"StatisticallySignificantCalcs!$A$92","v":"Y"},{"$f":"StatisticallySignificantCalcs!$J$92","v":"N"}]
[null,null,null,null,491895,null,null,null,491895]
[null,null,"Median HH Income",null,{"$f":"CntyDataLinkPrior10YearEstimate!$BV$128","v":67533},{"$f":"CntyDataLinkPrior10YearEstimate!$BW$128","v":6552},null,null,{"$f":"CntyDataLinkPrior5YearEstimates!$BV$128","v":50907},{"$f":"CntyDataLinkPrior5YearEstimates!$BW$128","v":13342},null,{"$f":"CntyDataLink!$BV$128","v":75783},{"$f":"CntyDataLink!$BW$128","v":15064}]
[null,null,"HH Income in 2022 Dollars",null,{"$f":"($E$50)*E41","v":86081.823196599231},{"$f":"($E$50)*F41","v":8351.5926374382616},null,null,{"$f":"($E$49)*I41","v":60779.161573922975},{"$f":"($E$49)*J41","v":15929.353010770235}]
[]
[null,{"$f":"\"Source:  \"& \" \"&E28&\", \"&I28&\" and \"&L28& \"  American Community Survey; Tables B25119; B19001\"","v":"Source:   2008-2012, 2013-2017 and 2018-2022  American Community Survey; Tables B25119; B19001"}]
[]
[null,"Data from the American Community Survey are estimates."]
[]
[null,"CPI Adjustment Factor"]
[null,"2013-2017",null,null,1.1939254242819843]
[null,"2008-2012",null,null,1.2746631009521157,null,null,null,null,null,"`"]

{"sheet":"HHIncomeByAge","index":12,"n_rows":80,"n_cols":22,"rows_kept":80,"cut":false,"hidden":true,"merged":[[21,6,21,15]]}
[]
[null,null,{"$f":"CntyDataLink!A55","v":"Wolfeboro"}]
[null,null,"INCOME CHARACTERISTICS"]
[]
[]
[]
[]
[]
[]
[]
[]
[]
[]
[]
[]
[]
[]
[]
[]
[]
[null,null,{"$f":"HHIncomeByAge!C2","v":"Wolfeboro"},"Household Income in 2022"]
[null,null,null,null,null,null,"Households by Age of Householder "]
[null,null,null,"Households","Margin of Error Households",null,"Under 25","Margin of Error Under 25",null,"25 to 44","Margin of Error 25 to 44",null,"45 to 64","Margin of Error 45 to 64",null,"65 & Over","Margin of Error 65 & Over",null,"Family Households","Margin of Error Family HH","Non-Family HH","Margin of Error Non-Family HH"]
[null,null,"Less Than $10,000",{"$f":"CntyDataLink!$D$116","v":144},{"$f":"CntyDataLink!$E$116","v":122},null,{"$f":"CntyDataLink!$AN$116","v":0},{"$f":"CntyDataLink!$AO$116","v":17},null,{"$f":"CntyDataLink!$BV$116","v":0},{"$f":"CntyDataLink!$BW$116","v":17},null,{"$f":"CntyDataLink!$DD$116","v":63},{"$f":"CntyDataLink!$DE$116","v":72},null,{"$f":"CntyDataLink!$EL$116","v":81},{"$f":"CntyDataLink!$EM$116","v":99},null,{"$f":"CntyDataLink!$D$160","v":63},{"$f":"CntyDataLink!$E$160","v":72},{"$f":"CntyDataLink!$AN$160","v":81},{"$f":"CntyDataLink!$AO$160","v":99}]
[null,null,"$10,000 to $14,999",{"$f":"CntyDataLink!$F$116","v":173},{"$f":"CntyDataLink!$G$116","v":138},null,{"$f":"CntyDataLink!$AP$116","v":0},{"$f":"CntyDataLink!$AQ$116","v":17},null,{"$f":"CntyDataLink!$BX$116","v":11},{"$f":"CntyDataLink!$BY$116","v":19},null,{"$f":"CntyDataLink!$DF$116","v":70},{"$f":"CntyDataLink!$DG$116","v":102},null,{"$f":"CntyDataLink!$EN$116","v":92},{"$f":"CntyDataLink!$EO$116","v":100},null,{"$f":"CntyDataLink!$F$160","v":27},{"$f":"CntyDataLink!$G$160","v":39},{"$f":"CntyDataLink!$AP$160","v":173},{"$f":"CntyDataLink!$AQ$160","v":138}]
[null,null,"$15,000 to $19,999",{"$f":"CntyDataLink!$H$116","v":59},{"$f":"CntyDataLink!$I$116","v":74},null,{"$f":"CntyDataLink!$AR$116","v":0},{"$f":"CntyDataLink!$AS$116","v":17},null,{"$f":"CntyDataLink!$BZ$116","v":0},{"$f":"CntyDataLink!$CA$116","v":17},null,{"$f":"CntyDataLink!$DH$116","v":0},{"$f":"CntyDataLink!$DI$116","v":17},null,{"$f":"CntyDataLink!$EP$116","v":59},{"$f":"CntyDataLink!$EQ$116","v":74},null,{"$f":"CntyDataLink!$H$160","v":47},{"$f":"CntyDataLink!$I$160","v":72},{"$f":"CntyDataLink!$AR$160","v":12},{"$f":"CntyDataLink!$AS$160","v":19}]
[null,null,"$20,000 to $24,999",{"$f":"CntyDataLink!$J$116","v":84},{"$f":"CntyDataLink!$K$116","v":59},null,{"$f":"CntyDataLink!$AT$116","v":0},{"$f":"CntyDataLink!$AU$116","v":17},null,{"$f":"CntyDataLink!$CB$116","v":8},{"$f":"CntyDataLink!$CC$116","v":13},null,{"$f":"CntyDataLink!$DJ$116","v":15},{"$f":"CntyDataLink!$DK$116","v":23},null,{"$f":"CntyDataLink!$ER$116","v":61},{"$f":"CntyDataLink!$ES$116","v":51},null,{"$f":"CntyDataLink!$J$160","v":8},{"$f":"CntyDataLink!$K$160","v":13},{"$f":"CntyDataLink!$AT$160","v":76},{"$f":"CntyDataLink!$AU$160","v":58}]
[null,null,"$25,000 to $29,999",{"$f":"CntyDataLink!$L$116","v":87},{"$f":"CntyDataLink!$M$116","v":57},null,{"$f":"CntyDataLink!$AV$116","v":0},{"$f":"CntyDataLink!$AW$116","v":17},null,{"$f":"CntyDataLink!$CD$116","v":0},{"$f":"CntyDataLink!$CE$116","v":17},null,{"$f":"CntyDataLink!$DL$116","v":54},{"$f":"CntyDataLink!$DM$116","v":43},null,{"$f":"CntyDataLink!$ET$116","v":33},{"$f":"CntyDataLink!$EU$116","v":36},null,{"$f":"CntyDataLink!$L$160","v":33},{"$f":"CntyDataLink!$M$160","v":37},{"$f":"CntyDataLink!$AV$160","v":54},{"$f":"CntyDataLink!$AW$160","v":48}]
[null,null,"$30,000 to $34,999",{"$f":"CntyDataLink!$N$116","v":214},{"$f":"CntyDataLink!$O$116","v":150},null,{"$f":"CntyDataLink!$AX$116","v":0},{"$f":"CntyDataLink!$AY$116","v":17},null,{"$f":"CntyDataLink!$CF$116","v":0},{"$f":"CntyDataLink!$CG$116","v":17},null,{"$f":"CntyDataLink!$DN$116","v":98},{"$f":"CntyDataLink!$DO$116","v":103},null,{"$f":"CntyDataLink!$EV$116","v":116},{"$f":"CntyDataLink!$EW$116","v":105},null,{"$f":"CntyDataLink!$N$160","v":140},{"$f":"CntyDataLink!$O$160","v":125},{"$f":"CntyDataLink!$AX$160","v":74},{"$f":"CntyDataLink!$AY$160","v":79}]
[null,null,"$35,000 to $39,999",{"$f":"CntyDataLink!$P$116","v":118},{"$f":"CntyDataLink!$Q$116","v":110},null,{"$f":"CntyDataLink!$AZ$116","v":0},{"$f":"CntyDataLink!$BA$116","v":17},null,{"$f":"CntyDataLink!$CH$116","v":27},{"$f":"CntyDataLink!$CI$116","v":39},null,{"$f":"CntyDataLink!$DP$116","v":59},{"$f":"CntyDataLink!$DQ$116","v":93},null,{"$f":"CntyDataLink!$EX$116","v":32},{"$f":"CntyDataLink!$EY$116","v":47},null,{"$f":"CntyDataLink!$P$160","v":16},{"$f":"CntyDataLink!$Q$160","v":33},{"$f":"CntyDataLink!$AZ$160","v":75},{"$f":"CntyDataLink!$BA$160","v":96}]
[null,null,"$40,000 to $44,999",{"$f":"CntyDataLink!$R$116","v":51},{"$f":"CntyDataLink!$S$116","v":46},null,{"$f":"CntyDataLink!$BB$116","v":0},{"$f":"CntyDataLink!$BC$116","v":17},null,{"$f":"CntyDataLink!$CJ$116","v":0},{"$f":"CntyDataLink!$CK$116","v":17},null,{"$f":"CntyDataLink!$DR$116","v":19},{"$f":"CntyDataLink!$DS$116","v":31},null,{"$f":"CntyDataLink!$EZ$116","v":32},{"$f":"CntyDataLink!$FA$116","v":33},null,{"$f":"CntyDataLink!$R$160","v":28},{"$f":"CntyDataLink!$S$160","v":33},{"$f":"CntyDataLink!$BB$160","v":23},{"$f":"CntyDataLink!$BC$160","v":32}]
[null,null,"$45,000 to $49,999",{"$f":"CntyDataLink!$T$116","v":158},{"$f":"CntyDataLink!$U$116","v":132},null,{"$f":"CntyDataLink!$BD$116","v":0},{"$f":"CntyDataLink!$BE$116","v":17},null,{"$f":"CntyDataLink!$CL$116","v":40},{"$f":"CntyDataLink!$CM$116","v":58},null,{"$f":"CntyDataLink!$DT$116","v":0},{"$f":"CntyDataLink!$DU$116","v":17},null,{"$f":"CntyDataLink!$FB$116","v":118},{"$f":"CntyDataLink!$FC$116","v":121},null,{"$f":"CntyDataLink!$T$160","v":115},{"$f":"CntyDataLink!$U$160","v":119},{"$f":"CntyDataLink!$BD$160","v":43},{"$f":"CntyDataLink!$BE$160","v":56}]
[null,null,"$50,000 to $59,999",{"$f":"CntyDataLink!$V$116","v":35},{"$f":"CntyDataLink!$W$116","v":40},null,{"$f":"CntyDataLink!$BF$116","v":0},{"$f":"CntyDataLink!$BG$116","v":17},null,{"$f":"CntyDataLink!$CN$116","v":0},{"$f":"CntyDataLink!$CO$116","v":17},null,{"$f":"CntyDataLink!$DV$116","v":0},{"$f":"CntyDataLink!$DW$116","v":17},null,{"$f":"CntyDataLink!$FD$116","v":35},{"$f":"CntyDataLink!$FE$116","v":40},null,{"$f":"CntyDataLink!$V$160","v":22},{"$f":"CntyDataLink!$W$160","v":33},{"$f":"CntyDataLink!$BF$160","v":13},{"$f":"CntyDataLink!$BG$160","v":21}]
[null,null,"$60,000 to $74,999",{"$f":"CntyDataLink!$X$116","v":232},{"$f":"CntyDataLink!$Y$116","v":115},null,{"$f":"CntyDataLink!$BH$116","v":0},{"$f":"CntyDataLink!$BI$116","v":17},null,{"$f":"CntyDataLink!$CP$116","v":24},{"$f":"CntyDataLink!$CQ$116","v":34},null,{"$f":"CntyDataLink!$DX$116","v":99},{"$f":"CntyDataLink!$DY$116","v":65},null,{"$f":"CntyDataLink!$FF$116","v":109},{"$f":"CntyDataLink!$FG$116","v":88},null,{"$f":"CntyDataLink!$X$160","v":152},{"$f":"CntyDataLink!$Y$160","v":102},{"$f":"CntyDataLink!$BH$160","v":80},{"$f":"CntyDataLink!$BI$160","v":63}]
[null,null,"$75,000 to $99,999",{"$f":"CntyDataLink!$Z$116","v":339},{"$f":"CntyDataLink!$AA$116","v":124},null,{"$f":"CntyDataLink!$BJ$116","v":0},{"$f":"CntyDataLink!$BK$116","v":17},null,{"$f":"CntyDataLink!$CR$116","v":71},{"$f":"CntyDataLink!$CS$116","v":67},null,{"$f":"CntyDataLink!$DZ$116","v":126},{"$f":"CntyDataLink!$EA$116","v":80},null,{"$f":"CntyDataLink!$FH$116","v":142},{"$f":"CntyDataLink!$FI$116","v":78},null,{"$f":"CntyDataLink!$Z$160","v":186},{"$f":"CntyDataLink!$AA$160","v":76},{"$f":"CntyDataLink!$BJ$160","v":153},{"$f":"CntyDataLink!$BK$160","v":99}]
[null,null,"$100,000 to $124,999",{"$f":"CntyDataLink!$AB$116","v":352},{"$f":"CntyDataLink!$AC$116","v":190},null,{"$f":"CntyDataLink!$BL$116","v":0},{"$f":"CntyDataLink!$BM$116","v":17},null,{"$f":"CntyDataLink!$CT$116","v":111},{"$f":"CntyDataLink!$CU$116","v":150},null,{"$f":"CntyDataLink!$EB$116","v":132},{"$f":"CntyDataLink!$EC$116","v":110},null,{"$f":"CntyDataLink!$FJ$116","v":109},{"$f":"CntyDataLink!$FK$116","v":63},null,{"$f":"CntyDataLink!$AB$160","v":233},{"$f":"CntyDataLink!$AC$160","v":175},{"$f":"CntyDataLink!$BL$160","v":119},{"$f":"CntyDataLink!$BM$160","v":77}]
[null,null,"$125,000 to $149,999",{"$f":"CntyDataLink!$AD$116","v":318},{"$f":"CntyDataLink!$AE$116","v":171},null,{"$f":"CntyDataLink!$BN$116","v":0},{"$f":"CntyDataLink!$BO$116","v":17},null,{"$f":"CntyDataLink!$CV$116","v":133},{"$f":"CntyDataLink!$CW$116","v":117},null,{"$f":"CntyDataLink!$ED$116","v":110},{"$f":"CntyDataLink!$EE$116","v":96},null,{"$f":"CntyDataLink!$FL$116","v":75},{"$f":"CntyDataLink!$FM$116","v":71},null,{"$f":"CntyDataLink!$AD$160","v":246},{"$f":"CntyDataLink!$AE$160","v":151},{"$f":"CntyDataLink!$BN$160","v":72},{"$f":"CntyDataLink!$BO$160","v":86}]
[null,null,"$150,000 to $199,999",{"$f":"CntyDataLink!$AF$116","v":154},{"$f":"CntyDataLink!$AG$116","v":78},null,{"$f":"CntyDataLink!$BP$116","v":0},{"$f":"CntyDataLink!$BQ$116","v":17},null,{"$f":"CntyDataLink!$CX$116","v":16},{"$f":"CntyDataLink!$CY$116","v":26},null,{"$f":"CntyDataLink!$EF$116","v":43},{"$f":"CntyDataLink!$EG$116","v":47},null,{"$f":"CntyDataLink!$FN$116","v":95},{"$f":"CntyDataLink!$FO$116","v":62},null,{"$f":"CntyDataLink!$AF$160","v":137},{"$f":"CntyDataLink!$AG$160","v":75},{"$f":"CntyDataLink!$BP$160","v":17},{"$f":"CntyDataLink!$BQ$160","v":19}]
[null,null,"$200,000 or More",{"$f":"CntyDataLink!$AH$116","v":269},{"$f":"CntyDataLink!$AI$116","v":135},null,{"$f":"CntyDataLink!$BR$116","v":0},{"$f":"CntyDataLink!$BS$116","v":17},null,{"$f":"CntyDataLink!$CZ$116","v":45},{"$f":"CntyDataLink!$DA$116","v":43},null,{"$f":"CntyDataLink!$EH$116","v":118},{"$f":"CntyDataLink!$EI$116","v":87},null,{"$f":"CntyDataLink!$FP$116","v":106},{"$f":"CntyDataLink!$FQ$116","v":70},null,{"$f":"CntyDataLink!$AH$160","v":255},{"$f":"CntyDataLink!$AI$160","v":128},{"$f":"CntyDataLink!$BR$160","v":14},{"$f":"CntyDataLink!$BS$160","v":20}]
[]
[null,null,"Total Households",{"$f":"CntyDataLink!$B$116","v":2787},{"$f":"CntyDataLink!$C$116","v":260},null,{"$f":"CntyDataLink!$AL$116","v":0},{"$f":"CntyDataLink!$AM$116","v":17},null,{"$f":"CntyDataLink!$BT$116","v":486},{"$f":"CntyDataLink!$BU$116","v":187},null,{"$f":"CntyDataLink!$DB$116","v":1006},{"$f":"CntyDataLink!$DC$116","v":220},null,{"$f":"CntyDataLink!$EJ$116","v":1295},{"$f":"CntyDataLink!$EK$116","v":225},null,{"$f":"CntyDataLink!$B$160","v":1708},{"$f":"CntyDataLink!$C$160","v":198},{"$f":"CntyDataLink!$AL$160","v":1079},{"$f":"CntyDataLink!$AM$160","v":302}]
[null,null,"Median Household Inc ",{"$f":"CntyDataLink!$FR$116","v":75783},{"$f":"CntyDataLink!$FS$116","v":15064},null,{"$f":"CntyDataLink!$FT$116","v":"-"},{"$f":"CntyDataLink!$FU$116","v":"**"},null,{"$f":"CntyDataLink!$FV$116","v":121396},{"$f":"CntyDataLink!$FW$116","v":26902},null,{"$f":"CntyDataLink!$FX$116","v":76161},{"$f":"CntyDataLink!$FY$116","v":21951},null,{"$f":"CntyDataLink!$FZ$116","v":55288},{"$f":"CntyDataLink!$GA$116","v":15645},null,{"$f":"CntyDataLink!$AJ$160","v":101214},{"$f":"CntyDataLink!$AK$160","v":31280},{"$f":"CntyDataLink!BT$160","v":39141},{"$f":"CntyDataLink!$BU$160","v":19122}]
[]
[null,null,"Source: 2018-2022 American Community Survey Tables B19001; B19037; B19101; B19102; B19112; B19113, and B19049"]
[null,null,"Data from the American Community Survey are estimates"]
[]
[null,null,"INCOME CHARACTERISTICS"]
[]
[]
[]
[]
[]
[]
[]
[]
[]
[]
[]
[]
[]
[]
[]
[]
[]
[]
[]
[]
[]
[]
[]
[]
[]
[]
[]
[]
[]
[]
[]
[]
[null,null,"Source: 2018-2022 American Community Survey Tables B19001; B19102",null,null,null,null,null,null,null,null,null,null,null,null,"Data from the American Community Survey are estimates"]

{"sheet":"HHIncomeByTenure","index":13,"n_rows":64,"n_cols":17,"rows_kept":64,"cut":false,"hidden":true,"merged":[[63,3,63,4],[63,8,63,9],[63,13,63,14],[61,3,61,4],[61,8,61,9],[61,13,61,14],[62,3,62,4],[62,8,62,9],[62,13,62,14],[2,3,2,5],[58,3,58,6],[58,8,58,11],[58,13,58,16],[59,3,59,6],[59,8,59,11],[59,13,59,16]]}
[]
[null,null,null,{"$f":"CntyDataLink!A80","v":"Wolfeboro"}]
[null,null,null,"INCOME CHARACTERISTICS"]
[]
[]
[]
[]
[]
[]
[]
[]
[]
[]
[]
[]
[]
[]
[]
[]
[]
[]
[]
[]
[]
[]
[]
[]
[null,null,null,{"$f":"D2","v":"Wolfeboro"}]
[null,null,null,"Household Income By Tenure"]
[null,null,null,null,null,"2022 Household Income 1",null,"Occupied Housing Units","Margin of Error Occupied Housing Units","Owner Occupied Housing Units","Margin of Error Owner Occupied Housing Units","Renter Occupied Housing Units","Margin of Error Renter Occupied Housing Units"]
[]
[null,null,null,null,null,"Total",null,{"$f":"CntyDataLink!$B$128","v":2787},{"$f":"CntyDataLink!$C$128","v":260},{"$f":"CntyDataLink!$D$128","v":2165},{"$f":"CntyDataLink!$E$128","v":270},{"$f":"CntyDataLink!$AB$128","v":622},{"$f":"CntyDataLink!$AC$128","v":231}]
[null,null,null,4999,{"$f":"VALUE(RIGHT(F33,7))","v":5000},"Less Than $5,000",null,{"$f":"CntyDataLink!$AZ$128","v":121},{"$f":"CntyDataLink!$BA$128","v":120.20815280171308},{"$f":"CntyDataLink!$F$128","v":121},{"$f":"CntyDataLink!$G$128","v":119},{"$f":"CntyDataLink!$AD$128","v":0},{"$f":"CntyDataLink!$AE$128","v":17}]
[null,null,{"$f":"VALUE(RIGHT($F33,7))","v":5000},4999,10000,"$5,000 to $10,000",null,{"$f":"CntyDataLink!$BB$128","v":23},{"$f":"CntyDataLink!$BC$128","v":33.61547262794322},{"$f":"CntyDataLink!$H$128","v":23},{"$f":"CntyDataLink!$I$128","v":29},{"$f":"CntyDataLink!$AF$128","v":0},{"$f":"CntyDataLink!$AG$128","v":17}]
[null,null,10000,4999,15000,"$10,000 to $15,000",null,{"$f":"CntyDataLink!$BD$128","v":173},{"$f":"CntyDataLink!$BE$128","v":143.55835050598765},{"$f":"CntyDataLink!$J$128","v":92},{"$f":"CntyDataLink!$K$128","v":100},{"$f":"CntyDataLink!$AH$128","v":81},{"$f":"CntyDataLink!$AI$128","v":103}]
[null,null,15000,4999,20000,"$15,000 to $20,000",null,{"$f":"CntyDataLink!$BF$128","v":59},{"$f":"CntyDataLink!$BG$128","v":74.464756764525859},{"$f":"CntyDataLink!$L$128","v":47},{"$f":"CntyDataLink!$M$128","v":72},{"$f":"CntyDataLink!$AJ$128","v":12},{"$f":"CntyDataLink!$AK$128","v":19}]
[null,null,20000,4999,25000,"$20,000 to $25,000",null,{"$f":"CntyDataLink!$BH$128","v":84},{"$f":"CntyDataLink!$BI$128","v":58.137767414994535},{"$f":"CntyDataLink!$N$128","v":52},{"$f":"CntyDataLink!$O$128","v":44},{"$f":"CntyDataLink!$AL$128","v":32},{"$f":"CntyDataLink!$AM$128","v":38}]
[null,null,25000,9999,35000,"$25,000 to $35,000",null,{"$f":"CntyDataLink!$BJ$128","v":301},{"$f":"CntyDataLink!$BK$128","v":161.04968177553161},{"$f":"CntyDataLink!$P$128","v":240},{"$f":"CntyDataLink!$Q$128","v":151},{"$f":"CntyDataLink!$AN$128","v":61},{"$f":"CntyDataLink!$AO$128","v":56}]
[null,null,35000,14999,50000,"$35,000 to $50,000",null,{"$f":"CntyDataLink!$BL$128","v":327},{"$f":"CntyDataLink!$BM$128","v":182.43903091169938},{"$f":"CntyDataLink!$R$128","v":294},{"$f":"CntyDataLink!$S$128","v":178},{"$f":"CntyDataLink!$AP$128","v":33},{"$f":"CntyDataLink!$AQ$128","v":40}]
[null,null,50000,24999,75000,"$50,000 to $75,000",null,{"$f":"CntyDataLink!$BN$128","v":267},{"$f":"CntyDataLink!$BO$128","v":124.63145670335399},{"$f":"CntyDataLink!$T$128","v":208},{"$f":"CntyDataLink!$U$128","v":98},{"$f":"CntyDataLink!$AR$128","v":59},{"$f":"CntyDataLink!$AS$128","v":77}]
[null,null,75000,24999,100000,"$75,000 to $100,000",null,{"$f":"CntyDataLink!$BP$128","v":339},{"$f":"CntyDataLink!$BQ$128","v":133.12400234367956},{"$f":"CntyDataLink!$V$128","v":224},{"$f":"CntyDataLink!$W$128","v":99},{"$f":"CntyDataLink!$AT$128","v":115},{"$f":"CntyDataLink!$AU$128","v":89}]
[null,null,100000,49999,150000,"$100,000 to $150,000",null,{"$f":"CntyDataLink!$BR$128","v":670},{"$f":"CntyDataLink!$BS$128","v":256.70410982296329},{"$f":"CntyDataLink!$X$128","v":466},{"$f":"CntyDataLink!$Y$128","v":184},{"$f":"CntyDataLink!$AV$128","v":204},{"$f":"CntyDataLink!$AW$128","v":179}]
[null,null,150000,null,null,"$150,000 and More",null,{"$f":"CntyDataLink!$BT$128","v":423},{"$f":"CntyDataLink!$BU$128","v":121.8400590938793},{"$f":"CntyDataLink!$Z$128","v":398},{"$f":"CntyDataLink!$AA$128","v":117},{"$f":"CntyDataLink!$AX$128","v":25},{"$f":"CntyDataLink!$AY$128","v":34}]
[]
[]
[null,null,null,null,null,"Median Household Income 2",null,{"$f":"CntyDataLink!$BV$128","v":75783},{"$f":"CntyDataLink!$BW$128","v":15064},{"$f":"CntyDataLink!$BX$128","v":75172},{"$f":"CntyDataLink!$BY$128","v":19861},{"$f":"CntyDataLink!$BZ$128","v":76919},{"$f":"CntyDataLink!$CA$128","v":31610}]
[]
[]
[null,null,null,null,null,"Data from the American Community Survey are estimates"]
[]
[null,null,null,"Source:",1,"2018-2022 American Community Survey Table B25118;  2022 Inflation Adjusted dollars"]
[null,null,null,null,2,"2018-2022 American Community Survey Table B25119;  2022 Inflation Adjusted dollars"]
[]
[]
[]
[null,null,null,"HOUSEHOLD INCOME IN THE PAST 12 MONTHS BY PERCENT OF MEDIAN THRESHOLD"]
[]
[]
[null,null,null,"All Occupied Housing Units",null,null,null,null,"Owner Occupied Households",null,null,null,null,"Renter Occupied Households"]
[]
[null,null,null,"HOUSEHOLD INCOME",null,"Estimate","Margin Of Error",null,"HOUSEHOLD INCOME",null,"Estimate","Margin Of Error",null,"HOUSEHOLD INCOME",null,"Estimate","Margin Of Error"]
[null,null,{"$f":"$H$46*0.3","v":22734.899999999998},"30% of Median Household Income",null,{"$f":"IF($C$62<$C$36,((($C$62-$C$35)/$D$35)*$H$35)+SUM($H$33:$H$34),IF($C$62<$C$37,((($C$62-$C$36)/$D$36)*$H$36)+SUM($H$33:$H$35),IF($C$62<$C$38,((($C$62-$C$37)/$D$37)*$H$37)+SUM($H$33:$H$36),IF($C$62<$C$39,((($C$62-$C$38)/$D$38)*$H$38)+SUM($H$33:$H$37),IF($C$62<$C$40,((($C$62-$C$39)/$D$39)*$H$39)+SUM($H$33:$H$38),IF($C$62<$C$41,((($C$62-$C$40)/$D$40)*$H$40)+SUM($H$33:$H$39),IF($C$62<$C$42,((($C$62-$C$41)/$D$41)*$H$41)+SUM($H$33:$H$40),\"False\")))))))","v":421.95551110222038},{"$f":"IF($C$62<$C$36,((($C$62-$C$35)/$D$35)*$I$35)+SQRT(SUM(($I$33^2),($I$34^2))),IF($C$62<$C$37,((($C$62-$C$36)/$D$36)*$I$36)+SQRT(SUM(($I$33^2),($I$34^2),($I$35^2))),IF($C$62<$C$38,((($C$62-$C$37)/$D$37)*$I$37)+SQRT(SUM(($I$33^2),($I$34^2),($I$35^2),($I$36^2))),IF($C$62<$C$39,((($C$62-$C$38)/$D$38)*$I$38)+SQRT(SUM(($I$33^2),($I$34^2),($I$35^2),($I$36^2),($I$37^2))),IF($C$62<$C$40,((($C$62-$C$39)/$D$39)*$I$39)+SQRT(SUM(($I$33^2),($I$34^2),($I$35^2),($I$36^2),($I$37^2),($I$38^2))),IF($C$62<$C$41,((($C$62-$C$40)/$D$40)*$I$40)+SQRT(SUM(($I$33^2),($I$34^2),($I$35^2),($I$36^2),($I$37^2),($I$38^2),($I$39^2))),IF($C$62<$C$42,((($C$62-$C$41)/$D$41)*$I$41)+SQRT((($I$33^2)+($I$34^2)+($I$35^2)+($I$36^2)+($I$37^2)+($I$38^2)+($I$39^2)+($I$40^2))),\"False\")))))))","v":236.09556829453095},{"$f":"$J$46*0.3","v":22551.599999999999},"30% of Median Household Income",null,{"$f":"IF($H$62<$C$36,((($H$62-$C$35)/$D$35)*$J$35)+SUM($J$33:$J$34),IF($H$62<$C$37,((($H$62-$C$36)/$D$36)*$J$36)+SUM($J$33:$J$35),IF($H$62<$C$38,((($H$62-$C$37)/$D$37)*$J$37)+SUM($J$33:$J$36),IF($H$62<$C$39,((($H$62-$C$38)/$D$38)*$J$38)+SUM($J$33:$J$37),IF($H$62<$C$40,((($H$62-$C$39)/$D$39)*$J$39)+SUM($J$33:$J$38),IF($H$62<$C$41,((($H$62-$C$40)/$D$40)*$J$40)+SUM($J$33:$J$39),IF($H$62<$C$42,((($H$62-$C$41)/$D$41)*$J$41)+SUM($J$33:$J$40),\"False\")))))))","v":309.54194838967794},{"$f":"IF($H$62<$C$36,((($H$62-$C$35)/$D$35)*$K$35)+SQRT(SUM(($K$33^2),($K$34^2))),IF($H$62<$C$37,((($H$62-$C$36)/$D$36)*$K$36)+SQRT(SUM(($K$33^2),($K$34^2),($K$35^2))),IF($H$62<$C$38,((($H$62-$C$37)/$D$37)*$K$37)+SQRT(SUM(($K$33^2),($K$34^2),($K$35^2),($K$36^2))),IF($H$62<$C$39,((($H$62-$C$38)/$D$38)*$K$38)+SQRT(SUM(($K$33^2),($K$34^2),($K$35^2),($K$36^2),($K$37^2))),IF($H$62<$C$40,((($H$62-$C$39)/$D$39)*$K$39)+SQRT(SUM(($K$33^2),($K$34^2),($K$35^2),($K$36^2),($K$37^2),($K$38^2))),IF($H$62<$C$41,((($H$62-$C$40)/$D$40)*$K$40)+SQRT(SUM(($K$33^2),($K$34^2),($K$35^2),($K$36^2),($K$37^2),($K$38^2),($K$39^2))),IF($H$62<$C$42,((($H$62-$C$41)/$D$41)*$K$41)+SQRT((($K$33^2)+($K$34^2)+($K$35^2)+($K$36^2)+($K$37^2)+($K$38^2)+($K$39^2)+($K$40^2))),\"False\")))))))","v":196.19975854118596},{"$f":"$L$46*0.3","v":23075.7},"30% of Median Household Income",null,{"$f":"IF($M$62<$C$36,((($M$62-$C$35)/$D$35)*$L$35)+SUM($L$33:$L$34),IF($M$62<$C$37,((($M$62-$C$36)/$D$36)*$L$36)+SUM($L$33:$L$35),IF($M$62<$C$38,((($M$62-$C$37)/$D$37)*$L$37)+SUM($L$33:$L$36),IF($M$62<$C$39,((($M$62-$C$38)/$D$38)*$L$38)+SUM($L$33:$L$37),IF($M$62<$C$40,((($M$62-$C$39)/$D$39)*$L$39)+SUM($L$33:$L$38),IF($M$62<$C$41,((($M$62-$C$40)/$D$40)*$L$40)+SUM($L$33:$L$39),IF($M$62<$C$42,((($M$62-$C$41)/$D$41)*$L$41)+SUM($L$33:$L$40),\"False\")))))))","v":112.68841768353671},{"$f":"IF($M$62<$C$36,((($M$62-$C$35)/$D$35)*$M$35)+SQRT(SUM(($M$33^2),($M$34^2))),IF($M$62<$C$37,((($M$62-$C$36)/$D$36)*$M$36)+SQRT(SUM(($M$33^2),($M$34^2),($M$35^2))),IF($M$62<$C$38,((($M$62-$C$37)/$D$37)*$M$37)+SQRT(SUM(($M$33^2),($M$34^2),($M$35^2),($M$36^2))),IF($M$62<$C$39,((($M$62-$C$38)/$D$38)*$M$38)+SQRT(SUM(($M$33^2),($M$34^2),($M$35^2),($M$36^2),($M$37^2))),IF($M$62<$C$40,((($M$62-$C$39)/$D$39)*$M$39)+SQRT(SUM(($M$33^2),($M$34^2),($M$35^2),($M$36^2),($M$37^2),($M$38^2))),IF($M$62<$C$41,((($M$62-$C$40)/$D$40)*$M$40)+SQRT(SUM(($M$33^2),($M$34^2),($M$35^2),($M$36^2),($M$37^2),($M$38^2),($M$39^2))),IF($M$62<$C$42,((($M$62-$C$41)/$D$41)*$M$41)+SQRT((($M$33^2)+($M$34^2)+($M$35^2)+($M$36^2)+($M$37^2)+($M$38^2)+($M$39^2)+($M$40^2))),\"False\")))))))","v":130.84161705527734}]
[490,null,{"$f":"$H$46*0.5","v":37891.5},"50% of Median Household Income",null,{"$f":"IF($C$63<$C$36,((($C$63-$C$35)/$D$35)*$H$35)+SUM($H$33:$H$34),IF($C$63<$C$37,((($C$63-$C$36)/$D$36)*$H$36)+SUM($H$33:$H$35),IF($C$63<$C$38,((($C$63-$C$37)/$D$37)*$H$37)+SUM($H$33:$H$36),IF($C$63<$C$39,((($C$63-$C$38)/$D$38)*$H$38)+SUM($H$33:$H$37),IF($C$63<$C$40,((($C$63-$C$39)/$D$39)*$H$39)+SUM($H$33:$H$38),IF($C$63<$C$41,((($C$63-$C$40)/$D$40)*$H$40)+SUM($H$33:$H$39),IF($C$63<$C$42,((($C$63-$C$41)/$D$41)*$H$41)+SUM($H$33:$H$40),\"False\")))))))","v":824.03890259350624},{"$f":"IF($C$63<$C$36,((($C$63-$C$35)/$D$35)*$I$35)+SQRT(SUM(($I$33^2),($I$34^2))),IF($C$63<$C$37,((($C$63-$C$36)/$D$36)*$I$36)+SQRT(SUM(($I$33^2),($I$34^2),($I$35^2))),IF($C$63<$C$38,((($C$63-$C$37)/$D$37)*$I$37)+SQRT(SUM(($I$33^2),($I$34^2),($I$35^2),($I$36^2))),IF($C$63<$C$39,((($C$63-$C$38)/$D$38)*$I$38)+SQRT(SUM(($I$33^2),($I$34^2),($I$35^2),($I$36^2),($I$37^2))),IF($C$63<$C$40,((($C$63-$C$39)/$D$39)*$I$39)+SQRT(SUM(($I$33^2),($I$34^2),($I$35^2),($I$36^2),($I$37^2),($I$38^2))),IF($C$63<$C$41,((($C$63-$C$40)/$D$40)*$I$40)+SQRT(SUM(($I$33^2),($I$34^2),($I$35^2),($I$36^2),($I$37^2),($I$38^2),($I$39^2))),IF($C$63<$C$42,((($C$63-$C$41)/$D$41)*$I$41)+SQRT((($I$33^2)+($I$34^2)+($I$35^2)+($I$36^2)+($I$37^2)+($I$38^2)+($I$39^2)+($I$40^2))),\"False\")))))))","v":301.7244430641361},{"$f":"$J$46*0.5","v":37586},"50% of Median Household Income",null,{"$f":"IF($H$63<$C$36,((($H$63-$C$35)/$D$35)*$J$35)+SUM($J$33:$J$34),IF($H$63<$C$37,((($H$63-$C$36)/$D$36)*$J$36)+SUM($J$33:$J$35),IF($H$63<$C$38,((($H$63-$C$37)/$D$37)*$J$37)+SUM($J$33:$J$36),IF($H$63<$C$39,((($H$63-$C$38)/$D$38)*$J$38)+SUM($J$33:$J$37),IF($H$63<$C$40,((($H$63-$C$39)/$D$39)*$J$39)+SUM($J$33:$J$38),IF($H$63<$C$41,((($H$63-$C$40)/$D$40)*$J$40)+SUM($J$33:$J$39),IF($H$63<$C$42,((($H$63-$C$41)/$D$41)*$J$41)+SUM($J$33:$J$40),\"False\")))))))","v":625.68897926528439},{"$f":"IF($H$63<$C$36,((($H$63-$C$35)/$D$35)*$K$35)+SQRT(SUM(($K$33^2),($K$34^2))),IF($H$63<$C$37,((($H$63-$C$36)/$D$36)*$K$36)+SQRT(SUM(($K$33^2),($K$34^2),($K$35^2))),IF($H$63<$C$38,((($H$63-$C$37)/$D$37)*$K$37)+SQRT(SUM(($K$33^2),($K$34^2),($K$35^2),($K$36^2))),IF($H$63<$C$39,((($H$63-$C$38)/$D$38)*$K$38)+SQRT(SUM(($K$33^2),($K$34^2),($K$35^2),($K$36^2),($K$37^2))),IF($H$63<$C$40,((($H$63-$C$39)/$D$39)*$K$39)+SQRT(SUM(($K$33^2),($K$34^2),($K$35^2),($K$36^2),($K$37^2),($K$38^2))),IF($H$63<$C$41,((($H$63-$C$40)/$D$40)*$K$40)+SQRT(SUM(($K$33^2),($K$34^2),($K$35^2),($K$36^2),($K$37^2),($K$38^2),($K$39^2))),IF($H$63<$C$42,((($H$63-$C$41)/$D$41)*$K$41)+SQRT((($K$33^2)+($K$34^2)+($K$35^2)+($K$36^2)+($K$37^2)+($K$38^2)+($K$39^2)+($K$40^2))),\"False\")))))))","v":265.04581189145904},{"$f":"$L$46*0.5","v":38459.5},"50% of Median Household Income",null,{"$f":"IF($M$63<$C$36,((($M$63-$C$35)/$D$35)*$L$35)+SUM($L$33:$L$34),IF($M$63<$C$37,((($M$63-$C$36)/$D$36)*$L$36)+SUM($L$33:$L$35),IF($M$63<$C$38,((($M$63-$C$37)/$D$37)*$L$37)+SUM($L$33:$L$36),IF($M$63<$C$39,((($M$63-$C$38)/$D$38)*$L$38)+SUM($L$33:$L$37),IF($M$63<$C$40,((($M$63-$C$39)/$D$39)*$L$39)+SUM($L$33:$L$38),IF($M$63<$C$41,((($M$63-$C$40)/$D$40)*$L$40)+SUM($L$33:$L$39),IF($M$63<$C$42,((($M$63-$C$41)/$D$41)*$L$41)+SUM($L$33:$L$40),\"False\")))))))","v":193.61140742716182},{"$f":"IF($M$63<$C$36,((($M$63-$C$35)/$D$35)*$M$35)+SQRT(SUM(($M$33^2),($M$34^2))),IF($M$63<$C$37,((($M$63-$C$36)/$D$36)*$M$36)+SQRT(SUM(($M$33^2),($M$34^2),($M$35^2))),IF($M$63<$C$38,((($M$63-$C$37)/$D$37)*$M$37)+SQRT(SUM(($M$33^2),($M$34^2),($M$35^2),($M$36^2))),IF($M$63<$C$39,((($M$63-$C$38)/$D$38)*$M$38)+SQRT(SUM(($M$33^2),($M$34^2),($M$35^2),($M$36^2),($M$37^2))),IF($M$63<$C$40,((($M$63-$C$39)/$D$39)*$M$39)+SQRT(SUM(($M$33^2),($M$34^2),($M$35^2),($M$36^2),($M$37^2),($M$38^2))),IF($M$63<$C$41,((($M$63-$C$40)/$D$40)*$M$40)+SQRT(SUM(($M$33^2),($M$34^2),($M$35^2),($M$36^2),($M$37^2),($M$38^2),($M$39^2))),IF($M$63<$C$42,((($M$63-$C$41)/$D$41)*$M$41)+SQRT((($M$33^2)+($M$34^2)+($M$35^2)+($M$36^2)+($M$37^2)+($M$38^2)+($M$39^2)+($M$40^2))),\"False\")))))))","v":136.22201132766011}]
[null,null,{"$f":"$H$46*0.8","v":60626.400000000001},"80% of Median Household Income",null,{"$f":"IF($C$64<$C$36,((($C$64-$C$35)/$D$35)*$H$35)+SUM($H$33:$H$34),IF($C$64<$C$37,((($C$64-$C$36)/$D$36)*$H$36)+SUM($H$33:$H$35),IF($C$64<$C$38,((($C$64-$C$37)/$D$37)*$H$37)+SUM($H$33:$H$36),IF($C$64<$C$39,((($C$64-$C$38)/$D$38)*$H$38)+SUM($H$33:$H$37),IF($C$64<$C$40,((($C$64-$C$39)/$D$39)*$H$39)+SUM($H$33:$H$38),IF($C$64<$C$41,((($C$64-$C$40)/$D$40)*$H$40)+SUM($H$33:$H$39),IF($C$64<$C$42,((($C$64-$C$41)/$D$41)*$H$41)+SUM($H$33:$H$40),\"False\")))))))","v":1201.4944917796711},{"$f":"IF($C$64<$C$36,((($C$64-$C$35)/$D$35)*$I$35)+SQRT(SUM(($I$33^2),($I$34^2))),IF($C$64<$C$37,((($C$64-$C$36)/$D$36)*$I$36)+SQRT(SUM(($I$33^2),($I$34^2),($I$35^2))),IF($C$64<$C$38,((($C$64-$C$37)/$D$37)*$I$37)+SQRT(SUM(($I$33^2),($I$34^2),($I$35^2),($I$36^2))),IF($C$64<$C$39,((($C$64-$C$38)/$D$38)*$I$38)+SQRT(SUM(($I$33^2),($I$34^2),($I$35^2),($I$36^2),($I$37^2))),IF($C$64<$C$40,((($C$64-$C$39)/$D$39)*$I$39)+SQRT(SUM(($I$33^2),($I$34^2),($I$35^2),($I$36^2),($I$37^2),($I$38^2))),IF($C$64<$C$41,((($C$64-$C$40)/$D$40)*$I$40)+SQRT(SUM(($I$33^2),($I$34^2),($I$35^2),($I$36^2),($I$37^2),($I$38^2),($I$39^2))),IF($C$64<$C$42,((($C$64-$C$41)/$D$41)*$I$41)+SQRT((($I$33^2)+($I$34^2)+($I$35^2)+($I$36^2)+($I$37^2)+($I$38^2)+($I$39^2)+($I$40^2))),\"False\")))))))","v":375.98675535136562},{"$f":"$J$46*0.8","v":60137.600000000006},"80% of Median Household Income",null,{"$f":"IF($H$64<$C$36,((($H$64-$C$35)/$D$35)*$J$35)+SUM($J$33:$J$34),IF($H$64<$C$37,((($H$64-$C$36)/$D$36)*$J$36)+SUM($J$33:$J$35),IF($H$64<$C$38,((($H$64-$C$37)/$D$37)*$J$37)+SUM($J$33:$J$36),IF($H$64<$C$39,((($H$64-$C$38)/$D$38)*$J$38)+SUM($J$33:$J$37),IF($H$64<$C$40,((($H$64-$C$39)/$D$39)*$J$39)+SUM($J$33:$J$38),IF($H$64<$C$41,((($H$64-$C$40)/$D$40)*$J$40)+SUM($J$33:$J$39),IF($H$64<$C$42,((($H$64-$C$41)/$D$41)*$J$41)+SUM($J$33:$J$40),\"False\")))))))","v":953.34820592823712},{"$f":"IF($H$64<$C$36,((($H$64-$C$35)/$D$35)*$K$35)+SQRT(SUM(($K$33^2),($K$34^2))),IF($H$64<$C$37,((($H$64-$C$36)/$D$36)*$K$36)+SQRT(SUM(($K$33^2),($K$34^2),($K$35^2))),IF($H$64<$C$38,((($H$64-$C$37)/$D$37)*$K$37)+SQRT(SUM(($K$33^2),($K$34^2),($K$35^2),($K$36^2))),IF($H$64<$C$39,((($H$64-$C$38)/$D$38)*$K$38)+SQRT(SUM(($K$33^2),($K$34^2),($K$35^2),($K$36^2),($K$37^2))),IF($H$64<$C$40,((($H$64-$C$39)/$D$39)*$K$39)+SQRT(SUM(($K$33^2),($K$34^2),($K$35^2),($K$36^2),($K$37^2),($K$38^2))),IF($H$64<$C$41,((($H$64-$C$40)/$D$40)*$K$40)+SQRT(SUM(($K$33^2),($K$34^2),($K$35^2),($K$36^2),($K$37^2),($K$38^2),($K$39^2))),IF($H$64<$C$42,((($H$64-$C$41)/$D$41)*$K$41)+SQRT((($K$33^2)+($K$34^2)+($K$35^2)+($K$36^2)+($K$37^2)+($K$38^2)+($K$39^2)+($K$40^2))),\"False\")))))))","v":334.03165427433231},{"$f":"$L$46*0.8","v":61535.200000000004},"80% of Median Household Income",null,{"$f":"IF($M$64<$C$36,((($M$64-$C$35)/$D$35)*$L$35)+SUM($L$33:$L$34),IF($M$64<$C$37,((($M$64-$C$36)/$D$36)*$L$36)+SUM($L$33:$L$35),IF($M$64<$C$38,((($M$64-$C$37)/$D$37)*$L$37)+SUM($L$33:$L$36),IF($M$64<$C$39,((($M$64-$C$38)/$D$38)*$L$38)+SUM($L$33:$L$37),IF($M$64<$C$40,((($M$64-$C$39)/$D$39)*$L$39)+SUM($L$33:$L$38),IF($M$64<$C$41,((($M$64-$C$40)/$D$40)*$L$40)+SUM($L$33:$L$39),IF($M$64<$C$42,((($M$64-$C$41)/$D$41)*$L$41)+SUM($L$33:$L$40),\"False\")))))))","v":246.22416096643866},{"$f":"IF($M$64<$C$36,((($M$64-$C$35)/$D$35)*$M$35)+SQRT(SUM(($M$33^2),($M$34^2))),IF($M$64<$C$37,((($M$64-$C$36)/$D$36)*$M$36)+SQRT(SUM(($M$33^2),($M$34^2),($M$35^2))),IF($M$64<$C$38,((($M$64-$C$37)/$D$37)*$M$37)+SQRT(SUM(($M$33^2),($M$34^2),($M$35^2),($M$36^2))),IF($M$64<$C$39,((($M$64-$C$38)/$D$38)*$M$38)+SQRT(SUM(($M$33^2),($M$34^2),($M$35^2),($M$36^2),($M$37^2))),IF($M$64<$C$40,((($M$64-$C$39)/$D$39)*$M$39)+SQRT(SUM(($M$33^2),($M$34^2),($M$35^2),($M$36^2),($M$37^2),($M$38^2))),IF($M$64<$C$41,((($M$64-$C$40)/$D$40)*$M$40)+SQRT(SUM(($M$33^2),($M$34^2),($M$35^2),($M$36^2),($M$37^2),($M$38^2),($M$39^2))),IF($M$64<$C$42,((($M$64-$C$41)/$D$41)*$M$41)+SQRT((($M$33^2)+($M$34^2)+($M$35^2)+($M$36^2)+($M$37^2)+($M$38^2)+($M$39^2)+($M$40^2))),\"False\")))))))","v":168.67637301023365}]

{"sheet":"ACS_Source_Table_List","index":14,"n_rows":49,"n_cols":4,"rows_kept":49,"cut":false,"hidden":true,"merged":[]}
[]
["ACS Table B01001","x"]
["ACS Table B01002","x"]
["ACS Table B03002","x"]
["ACS Table B05002 ","x"]
["ACS Table B07003","x","Replaces C07001"]
["ACS Table B11001","x"]
["ACS Table B11002","x"]
["ACS Table B14001 & B15002","x","Replaces C15002"]
["ACS Table B17001 ","x"]
["ACS Table B17010 ","x","Replaces C17010","Poverty Status by family type"]
["ACS Table B17017","x","Replaces C17017","Poverty Status by HH type"]
["ACS Table B18001 ",null,"Removed Disability Tables"]
["ACS Table C18001 ",null,"Removed Disability Tables"]
["ACS Table B18003",null,"Removed Disability Tables"]
["ACS Table B18004",null,"Removed Disability Tables"]
["ACS Table B18005",null,"Removed Disability Tables"]
["ACS Table B18006",null,"Removed Disability Tables"]
["ACS Table B18007",null,"Removed Disability Tables"]
["ACS Table B18008",null,"Removed Disability Tables"]
["ACS Table B19001","x"]
["ACS Table B19037 ","x"]
["ACS Table B19049 ","x"]
["ACS Table B19101& B19113 ","s"]
["ACS Table B19201 & B19202","s"]
["ACS Table B25001, B25003 & B25004 ","x"]
["ACS Table B25008","x"]
["ACS Table B25010","x"]
["ACS Table B25024","x"]
["ACS Table B25032","x"]
["ACS Table B25034 & B25041 ","x"]
["ACS Table B25063 & B25064","x"]
["ACS Table B25070 & B25074","x"]
["ACS Table B25075 & B25077","x"]
["ACS Table B25088","x"]
["ACS Table B25091","x"]
["ACS Table B25118 & B25119","x"]
[]
[]
[]
[]
[]
[]
["Tables Removed from 5 Year Estimates"]
["ACS Table C19001 ","x","May have to consolidate this table from Table B19001. This has already been done. For 5 year estimates remove worksheet."]
["ACS Table B25094","x","No Comparison Table for B25094 Removed"]
["ACS Table B25101",null,"No Comparison Table for B25101 Removed"]
["ACS Table B25104 & B25105",null,"No Comparison Table for B25104 & B25105 Removed"]
["ACS Table B25106","x","No Comparison Table for  B25106 Removed"]

{"sheet":"Updates","index":15,"n_rows":61,"n_cols":3,"rows_kept":61,"cut":false,"hidden":false,"merged":[[4,2,4,11],[0,2,0,10],[1,2,1,10],[2,2,2,10],[23,2,23,11],[21,2,21,11],[22,2,22,11],[20,2,20,11],[19,2,19,11],[18,2,18,11],[11,2,11,11],[10,2,10,11],[9,2,9,11],[8,2,8,11],[7,2,7,11],[6,2,6,11],[5,2,5,11],[42,2,42,11],[41,2,41,11],[38,2,38,11],[36,2,36,11],[37,2,37,11],[39,2,39,11],[40,2,40,11],[57,2,57,11],[58,2,58,11],[35,2,35,11],[34,2,34,11],[3,2,3,11],[33,2,33,11],[26,2,26,11],[27,2,27,11],[28,2,28,11],[29,2,29,11],[32,2,32,11],[25,2,25,11],[24,2,24,11],[30,2,30,11],[31,2,31,11],[43,2,43,11],[44,2,44,11],[45,2,45,11],[59,2,59,11],[60,2,60,11],[61,2,61,11],[46,2,46,11],[47,2,47,11],[48,2,48,11],[49,2,49,11],[50,2,50,11],[51,2,51,11],[52,2,52,11],[53,2,53,11],[54,2,54,11],[55,2,55,11],[56,2,56,11]]}
[]
["Important Notes"]
[]
["Date",null,"Task"]
["2024-07-18",null,"Updated a programming problem. A reference worksheet was deleted before the file was uploaded in December."]
["2023-12-11",null,"Updated 2018-2022 Amreican Community Survey Data. Updated CPI Adjustement Factor  factor 1.19 for 2013-2017 and 1.27 for 2008-2012"]
["2023-10-24",null,"Updated Employment and Wage Information for 2022"]
["2023-09-13",null,"Updated 2008-2012 and 2013-2017 ACS Data; Added 10 Year Disability Comparison Worksheet"]
["2023-01-25",null,"Updated Permit Data and appropriate worksheets."]
["2022-12-14",null,"Updated historical data 2017-2021 ACS Data"]
["2022-11-01",null,"Updated NH Population Estimates through 2030"]
["2022-09-14",null,"Updated Employment and Wage Information for 2021. Updated CPI Adjustment factor 1.08 for 2012-2016 and 1.15 for 2007-2011"]
["2022-07-19",null,"Updated 2007-2011 and 2012-2016 Amreican Community Survey Data."]
["2022-03-21",null,"Updated historical data 2016-2020 ACS Data"]
["2022-03-14",null,"Updated CPI Adjustement factor to adjust 2010 (1.19) and 2015 (1.09) dollars to 2020 dollars. "]
["2022-02-17",null,"Updated with 2020 Permit Data"]
["2021-10-28",null,"Updated 2020 Annual Wage and Employment data"]
["2021-09-09",null,"Updated with 2020 Decennial Population data"]
["2020-12-18",null,"Updated 2015-2019 Amreican Community Survey Data and added 2019 NH Permit data."]
["2020-09-03",null,"Updated historical data 2005-2009 and 2010-2014 ACS Data"]
["2019-12-31",null,"Updated Visual Basic Code changing the footer font from Gotham Medium to Verdana."]
["2019-12-20",null,"Updated with 2015-2019 ACS Data. Updated 2018 Permit data. Updated CPI Adjustment Factor (1.02437673) to the 2009-2013 and 2015-2019 Income Comparison Table. This factor was provided by Census"]
["2019-11-26",null,"Updated 2009-2013 ACS Data"]
["2019-09-17",null,"Updated 2018 Annual Employment and Wage data; updated Housing and Employment worksheet."]
["2018-12-20",null,"Updated 2017 Annual Employment and Wage data; updated Housing and Employment worksheet. Updated 2017 Permit data"]
["2018-12-11",null,"Updated the 2009-2013 ACS data for comparison purposes. Updated CPI Adjustment Factor (1.0676) to the 2009-2013 and 2013-2017  Income Comparison Table. This factor was provided by Census."]
["2018-12-06",null,"Updated 2013-2017 ACS Data"]
["2018-12-05",null,"Updated labels in workbook to reflect 2013-2017 data set and 2009-2013 comparison data set. Updated footer text. "]
["2018-08-13",null,"Updated charts colors and layout."]
["2018-05-09",null,"Reviewed that unemployment rate data does not need to updated. There are no cities or towns that needed this update. Only a select number of locations are updated with this data."]
["2017-12-18",null,"Updated 2016 NH Permit Data"]
["2017-12-08",null,"Updated Charts with 2012-2016 data; updated code to reflect additional data points in various tables. Updated CPI Adjustment Factor (1.06686838) to the 2007-2011 and 2012-2016 Income Comparison Table. This factor was provided by Census."]
["2017-11-16",null,"Updated the 2007-2011 ACS data for comparison purposes."]
["2017-10-12",null,"Updated 2016 Annual Employment and Wage data; updated Housing and Employment worksheet"]
["2017-05-15",null,"Reviewed that unemployment rate data does not need to updated. There are no cities or towns that needed this update. Only a select number of locations are updated with this data."]
["2017-01-04",null,"Verified Charts; Added 2015 Permit Data; Updated Housing and Permit data"]
["2016-12-28",null,"Updated the 2006-2010 ACS data for comparison purposes."]
["2016-12-23",null,"Updated Town Comparisons: Employment and Housing with 2015 data"]
["2016-12-20",null,"Updated Charts with 2011-2015 data; updated code to reflect additional data points in various tables"]
["2016-12-14",null,"Updated 2011-2015 ACS Data"]
["2016-10-31",null,"Updated 2015 Annual Employment and Wage data"]
["2016-01-14",null,"Fixed error in School Attainment worksheet - Graduate or Professional Degree data."]
["2016-01-07",null,"Fixed formula in Poverty worksheet; fixed Non-Family Persons per Household data; fixed legend of Rental Cost Charts."]
["2015-12-23",null,"Fixed Table ACS_B25074"]
["2015-12-21",null,"Updated Code to correct an error on the Owner Housing Cost worksheet; updated column names on CntyDataLink."]
["2015-12-15",null,"Updated Code to correct an error on the Rental Housing Cost worksheet; updated column names on CntyDataLink; updated all charts with 2011-2015 data"]
["2015-12-09",null,"Updated 2010-2014 ACS Data"]
["2015-12-07",null,"Updated Permit Data and appropriate worksheets."]
["2015-12-03",null,"Updated Rental Housing Cost and Owner Cost worksheet to eliminate a printed page. Charts were moved and reduced in size."]
["2015-11-20",null,"Updated Color scheme on charts and added correct logo to the charts"]
["2015-10-05",null,"Added County Comparison Employment and Housing data. Added Visual basic code to automatically update footer. Visual basic code will run when Ctrl-j is selected. "]
["2015-09-15",null,"Updated Charts and code to allow for prior 5 year estimates to be update. Updated Rental Housing Cost worksheet to accommodate changes to Table B25074"]
["2015-09-01",null,"Updated Code to include Prior 5 year estimate. Added Statistically Significant worksheet."]
["2015-08-11",null,"Updated Owner Housing Cost Chart with Table B25106 data."]
["2015-08-06",null,"Corrected the Employment vs. Housing worksheet."]
["2015-03-17",null,"Added Labor Force Data"]
["2014-12-30",null,"Corrected Rental Cost formula."]
["2014-12-17",null,"Corrected and verified household pie charts. All Permit data and employment data has been updated through 2013."]
["2011-10-14",null,"Reformatted the code in the worksheet and corrected an error in the Income Comparison Sheet"]
["2010-12-21",null,"Added Margin of Error information on all applicable ACS Sheets"]
["2010-12-07",null,"Created a calculated Table B19001 in anticipation for the 5 year data.  Table C19001 will not be provided"]

{"sheet":"OwnerHousingCost","index":16,"n_rows":112,"n_cols":17,"rows_kept":112,"cut":false,"hidden":true,"merged":[]}
[]
[null,null,"HIDE THIS COLUMN",{"$f":"CntyDataLink!A$35","v":"Wolfeboro"}]
[null,null,null,"OWNER HOUSING COST CHARACTERISTICS"]
[]
[]
[]
[]
[]
[]
[]
[]
[]
[]
[]
[]
[]
[]
[]
[]
[]
[]
[]
[]
[]
[]
[]
[]
[]
[]
[]
[]
[]
[]
[]
[]
[]
[null,null,null,"Income in 2022 Inflation Adjusted Dollars"]
[null,null,null,"Source: 2018-2022 American Community Survey Table B25106"]
[null,null,null,"Data from the American Community Survey are estimates."]
[]
[]
[null,null,null,{"$f":"CntyDataLink!A$35","v":"Wolfeboro"}]
[]
[null,null,null,{"$f":"D3","v":"OWNER HOUSING COST CHARACTERISTICS"}]
[]
[null,null,null,"Owner Households by "]
[null,null,null,"Selected Monthly Housing Costs as a Percent of 2022 Household Income",null,null,null,"By Household Income"]
[null,null,"H73RenterOccHU",null,"Specified Owner Occ Housing Units","Margin of Error Owner Occ Housing Units",null,"Less than $20,000",{"$f":"\"Margin of Error \"&H48","v":"Margin of Error Less than $20,000"},"$20,000 to $34,999",{"$f":"\"Margin of Error \"&J48","v":"Margin of Error $20,000 to $34,999"},"$35,000 to $49,999",{"$f":"\"Margin of Error \"&L48","v":"Margin of Error $35,000 to $49,999"},"$50,000 to $74,999",{"$f":"\"Margin of Error \"&N48","v":"Margin of Error $50,000 to $74,999"},"$75,000 or More",{"$f":"\"Margin of Error \"&P48","v":"Margin of Error $75,000 or More"}]
[]
[null,null,null,"Total Households",{"$f":"CntyDataLink!$BF144","v":2165},{"$f":"CntyDataLink!$BG$144","v":196},null,{"$f":"CntyDataLink!$BZ$144","v":119},{"$f":"CntyDataLink!$CA$144","v":71},{"$f":"CntyDataLink!$CH$144","v":138},{"$f":"CntyDataLink!$CI$144","v":82},{"$f":"CntyDataLink!$CP$144","v":413},{"$f":"CntyDataLink!$CQ$144","v":144},{"$f":"CntyDataLink!$CX$144","v":468},{"$f":"CntyDataLink!$CY$144","v":148},{"$f":"CntyDataLink!$DF$144","v":1027},{"$f":"CntyDataLink!$DG$144","v":208}]
[null,null,null,"Monthly Costs Less than 20% of HH Income",{"$f":"CntyDataLink!$BH$144","v":1129},{"$f":"CntyDataLink!$BI$144","v":251.04581255221129},null,{"$f":"CntyDataLink!$CB$144","v":0},{"$f":"CntyDataLink!$CC$144","v":16},{"$f":"CntyDataLink!CJ$144","v":25},{"$f":"CntyDataLink!CK$144","v":29},{"$f":"CntyDataLink!CR$144","v":233},{"$f":"CntyDataLink!CS$144","v":121},{"$f":"CntyDataLink!CZ$144","v":209},{"$f":"CntyDataLink!DA$144","v":91},{"$f":"CntyDataLink!DH$144","v":662},{"$f":"CntyDataLink!DI$144","v":199}]
[null,null,null,"Monthly Costs 20% to 29.9% of HH Income",{"$f":"CntyDataLink!$BJ$144","v":604},{"$f":"CntyDataLink!$BK$144","v":198.07574308834484},null,{"$f":"CntyDataLink!$CD$144","v":0},{"$f":"CntyDataLink!$CE$144","v":16},{"$f":"CntyDataLink!CL$144","v":71},{"$f":"CntyDataLink!CM$144","v":72},{"$f":"CntyDataLink!CT$144","v":81},{"$f":"CntyDataLink!CU$144","v":58},{"$f":"CntyDataLink!DB$144","v":133},{"$f":"CntyDataLink!DC$144","v":96},{"$f":"CntyDataLink!DJ$144","v":319},{"$f":"CntyDataLink!DK$144","v":130}]
[null,null,null,"Monthly Costs Less Than 30% of HH Income",{"$f":"CntyDataLink!$BL$144","v":1733},{"$f":"CntyDataLink!$BM$144","v":319.77804802706515},null,{"$f":"H52+H51","v":0},{"$f":"SQRT((I52^2)+(I51^2))","v":22.627416997969522},{"$f":"J52+J51","v":96},{"$f":"SQRT((K52^2)+(K51^2))","v":77.620873481300123},{"$f":"L52+L51","v":314},{"$f":"SQRT((M52^2)+(M51^2))","v":134.18271125595876},{"$f":"N52+N51","v":342},{"$f":"SQRT((O52^2)+(O51^2))","v":132.27622613304328},{"$f":"P52+P51","v":981},{"$f":"SQRT((Q52^2)+(Q51^2))","v":237.69938998659632}]
[null,null,null,"Monthly Costs 30% or More of HH Income",{"$f":"CntyDataLink!$BN$144","v":432},{"$f":"CntyDataLink!$BO$144","v":140.46351839534705},null,{"$f":"CntyDataLink!$CF$144","v":119},{"$f":"CntyDataLink!$CG$144","v":71},{"$f":"CntyDataLink!CN$144","v":42},{"$f":"CntyDataLink!CO$144","v":39},{"$f":"CntyDataLink!CV$144","v":99},{"$f":"CntyDataLink!CW$144","v":63},{"$f":"CntyDataLink!DD$144","v":126},{"$f":"CntyDataLink!DE$144","v":77},{"$f":"CntyDataLink!$DL$144","v":46},{"$f":"CntyDataLink!$DM$144","v":49}]
[]
[null,null,null,"Monthly Costs 35% or More of HH Income",{"$f":"CntyDataLink!$BT$144","v":377},{"$f":"CntyDataLink!$BU$144","v":134.40610105199838},null,"NA","NA","NA","NA","NA","NA","NA","NA","NA","NA"]
[null,null,null,"Monthly Costs 50% or More of HH Income",{"$f":"CntyDataLink!$BV$144","v":254},{"$f":"CntyDataLink!$BW$144","v":111.83022847155415},null,"NA","NA","NA","NA","NA","NA","NA","NA","NA","NA"]
[null,null,null,"Percent not computed",{"$f":"CntyDataLink!$BX$144","v":0},{"$f":"CntyDataLink!$BY$144","v":22.627416997969522},null,"NA","NA","NA","NA","NA","NA","NA","NA","NA","NA"]
[]
[null,null,null,"Percent of Owner Households Paying ",null,null,null,"By Household Income"]
[null,null,null,{"$f":"D53","v":"Monthly Costs Less Than 30% of HH Income"},{"$f":"E53/E$50","v":0.80046189376443422},null,null,{"$f":"H53/H$50","v":0},null,{"$f":"J53/J$50","v":0.69565217391304346},null,{"$f":"L53/L$50","v":0.76029055690072644},null,{"$f":"N53/N$50","v":0.73076923076923073},null,{"$f":"P53/P$50","v":0.9552093476144109}]
[null,null,null,{"$f":"D54","v":"Monthly Costs 30% or More of HH Income"},{"$f":"E54/E$50","v":0.19953810623556581},null,null,{"$f":"H54/H50","v":1},null,{"$f":"J54/J50","v":0.30434782608695654},null,{"$f":"L54/L50","v":0.23970944309927361},null,{"$f":"N54/N50","v":0.26923076923076922},null,{"$f":"P54/P50","v":4.4790652385589096E-2}]
[]
[null,null,null,"Monthly Costs 35% or More of HH Income",{"$f":"E56/E$50","v":0.1741339491916859},null,null,"NA","NA","NA","NA","NA","NA","NA","NA","NA","NA"]
[null,null,null,"Monthly Costs 50% or More of HH Income",{"$f":"E57/E$50","v":0.11732101616628175},null,null,"NA","NA","NA","NA","NA","NA","NA","NA","NA","NA"]
[null,null,null,"Percent not computed",{"$f":"E58/$E$50","v":0},null,null,"NA","NA","NA","NA","NA","NA","NA","NA","NA","NA"]
[]
[null,null,null,{"$f":"D37","v":"Income in 2022 Inflation Adjusted Dollars"}]
[null,null,null,"Source: 2018-2022 American Community Survey Table B25091; B25106",null,null,null,"NA indicates that the American Community Survey does not provide that data."]
[null,null,null,"Data from the American Community Survey are estimates."]
[]
[null,null,null,{"$f":"CntyDataLink!$A35","v":"Wolfeboro"}]
[null,null,"H62ROHUGRent250to299",{"$f":"D3","v":"OWNER HOUSING COST CHARACTERISTICS"}]
[null,null,"H62ROHUGRent300to349"]
[null,null,"H62ROHUGRent350to399","Value of Owner Occupied Housing Units"]
[null,null,"H62ROHUGRent400to449"]
[null,null,"H62ROHUGRent450to499","Owner Occupied Housing Units",{"$f":"CntyDataLink!$B$144","v":2154},{"$f":"CntyDataLink!$C$144","v":275}]
[null,null,"H62ROHUGRent500to549"]
[null,null,"H62ROHUGRent550to599","Value","Housing Units","Margin of Error"]
[null,null,"H62ROHUGRent600to649","Less than $10,000",{"$f":"CntyDataLink!$D$144","v":15},{"$f":"CntyDataLink!$E$144","v":24}]
[null,null,"H62ROHUGRent650to699","$10,000 to $14,999",{"$f":"CntyDataLink!$F$144","v":0},{"$f":"CntyDataLink!$G$144","v":17}]
[null,null,"H62ROHUGRent700to749","$15,000 to $19,999",{"$f":"CntyDataLink!$H$144","v":0},{"$f":"CntyDataLink!$I$144","v":17}]
[null,null,"H62ROHUGRent750to799","$20,000 to $24,999",{"$f":"CntyDataLink!$J$144","v":15},{"$f":"CntyDataLink!$K$144","v":24}]
[null,null,"H62ROHUGRent800to899","$25,000 to $29,999",{"$f":"CntyDataLink!$L$144","v":0},{"$f":"CntyDataLink!$M$144","v":17}]
[null,null,"H62ROHUGRent900to999","$30,000 to $34,999",{"$f":"CntyDataLink!$N$144","v":0},{"$f":"CntyDataLink!$O$144","v":17}]
[null,null,"H62ROHUGRent1000to1249","$35,000 to $39,999",{"$f":"CntyDataLink!$P$144","v":0},{"$f":"CntyDataLink!$Q$144","v":17}]
[null,null,"H62ROHUGRent1250to1499","$40,000 to $49,999",{"$f":"CntyDataLink!$R$144","v":20},{"$f":"CntyDataLink!$S$144","v":33}]
[null,null,"H62ROHUGRent1500to1999","$50,000 to $59,999",{"$f":"CntyDataLink!$T$144","v":40},{"$f":"CntyDataLink!$U$144","v":63}]
[null,null,"H62ROHUGRent2000>","$60,000 to $69,999",{"$f":"CntyDataLink!$V$144","v":0},{"$f":"CntyDataLink!$W$144","v":17}]
[null,null,"H62ROHUNoGRent","$70,000 to $79,999",{"$f":"CntyDataLink!$X$144","v":0},{"$f":"CntyDataLink!$Y$144","v":17}]
[null,null,"H63MedianGrossRnt","$80,000 to $89,999",{"$f":"CntyDataLink!$Z$144","v":0},{"$f":"CntyDataLink!$AA$144","v":17}]
[null,null,null,"$90,000 to $99,999",{"$f":"CntyDataLink!$AB$144","v":0},{"$f":"CntyDataLink!$AC$144","v":17}]
[null,null,null,"$100,000 to $124,999",{"$f":"CntyDataLink!$AD$144","v":29},{"$f":"CntyDataLink!$AE$144","v":49}]
[null,null,null,"$125,000 to $149,999",{"$f":"CntyDataLink!$AF$144","v":43},{"$f":"CntyDataLink!$AG$144","v":41}]
[null,null,null,"$150,000 to $174,999",{"$f":"CntyDataLink!$AH$144","v":30},{"$f":"CntyDataLink!$AI$144","v":33}]
[null,null,null,"$175,000 to $199,999",{"$f":"CntyDataLink!$AJ$144","v":116},{"$f":"CntyDataLink!$AK$144","v":100}]
[null,null,null,"$200,000 to $249,999",{"$f":"CntyDataLink!$AL$144","v":353},{"$f":"CntyDataLink!$AM$144","v":172}]
[null,null,null,"$250,000 to $299,999",{"$f":"CntyDataLink!$AN$144","v":307},{"$f":"CntyDataLink!$AO$144","v":162}]
[null,null,null,"$300,000 to $399,999",{"$f":"CntyDataLink!$AP$144","v":451},{"$f":"CntyDataLink!$AQ$144","v":174}]
[null,null,null,"$400,000 to $499,999",{"$f":"CntyDataLink!$AR$144","v":158},{"$f":"CntyDataLink!$AS$144","v":122}]
[null,null,null,"$500,000 to $749,999",{"$f":"CntyDataLink!$AT$144","v":354},{"$f":"CntyDataLink!$AU$144","v":162}]
[null,null,null,"$750,000 to $999,999",{"$f":"CntyDataLink!$AV$144","v":84},{"$f":"CntyDataLink!$AW$144","v":82}]
[null,null,null,"$1,000,000 to $1,499,999",{"$f":"CntyDataLink!$AX$144","v":67},{"$f":"CntyDataLink!$AY$144","v":84}]
[null,null,null,"$1,500,000 to $1,999,999",{"$f":"CntyDataLink!$AZ$144","v":17},{"$f":"CntyDataLink!$BA$144","v":26}]
[null,null,null,"$2,000,000 or more",{"$f":"CntyDataLink!$BB$144","v":55},{"$f":"CntyDataLink!$BC$144","v":89}]
[]
[null,null,null,"Median Value",{"$f":"CntyDataLink!$BD$144","v":324200},{"$f":"CntyDataLink!$BE$144","v":43323}]
[]
[]
[]
[null,null,null,"Source: 2018-2022 American Community Survey Tables B25075 and B25077"]
[null,null,null,"Data from the American Community Survey are estimates."]

{"sheet":"OwnerHousingCostPrior5Year","index":17,"n_rows":107,"n_cols":17,"rows_kept":107,"cut":false,"hidden":true,"merged":[]}
[]
[null,null,"HIDE THIS COLUMN",{"$f":"CntyDataLinkPrior5YearEstimates!$A$108","v":"Wolfeboro"}]
[null,null,null,"OWNER HOUSING COST CHARACTERISTICS"]
[]
[]
[]
[]
[]
[]
[]
[]
[]
[]
[]
[]
[]
[]
[]
[]
[]
[]
[]
[]
[]
[]
[]
[]
[]
[]
[]
[]
[]
[]
[]
[]
[]
[null,null,null,"Income in 2017 Inflation Adjusted Dollars"]
[null,null,null,"Source: 2013-20175 American Community Survey Table B25106"]
[null,null,null,"Data from the American Community Survey are estimates."]
[]
[]
[null,null,null,{"$f":"CntyDataLinkPrior5YearEstimates!$A$108","v":"Wolfeboro"}]
[]
[null,null,null,{"$f":"D3","v":"OWNER HOUSING COST CHARACTERISTICS"}]
[]
[null,null,null,"Owner Households by "]
[null,null,null,"Selected Monthly Housing Costs as a Percent of 2017 Household Income",null,null,null,"By Household Income"]
[null,null,"H73RenterOccHU",null,"Specified Owner Occ Housing Units","Margin of Error Owner Occ Housing Units",null,"Less than $20,000",{"$f":"\"Margin of Error \"&H48","v":"Margin of Error Less than $20,000"},"$20,000 to $34,999",{"$f":"\"Margin of Error \"&J48","v":"Margin of Error $20,000 to $34,999"},"$35,000 to $49,999",{"$f":"\"Margin of Error \"&L48","v":"Margin of Error $35,000 to $49,999"},"$50,000 to $74,999",{"$f":"\"Margin of Error \"&N48","v":"Margin of Error $50,000 to $74,999"},"$75,000 or More",{"$f":"\"Margin of Error \"&P48","v":"Margin of Error $75,000 or More"}]
[]
[null,null,null,"Total Households",{"$f":"CntyDataLinkPrior5YearEstimates!$BF144","v":2302},{"$f":"CntyDataLinkPrior5YearEstimates!$BG$144","v":218},null,{"$f":"CntyDataLinkPrior5YearEstimates!$BZ$144","v":100},{"$f":"CntyDataLinkPrior5YearEstimates!$CA$144","v":95},{"$f":"CntyDataLinkPrior5YearEstimates!$CH$144","v":485},{"$f":"CntyDataLinkPrior5YearEstimates!$CI$144","v":200},{"$f":"CntyDataLinkPrior5YearEstimates!$CP$144","v":283},{"$f":"CntyDataLinkPrior5YearEstimates!$CQ$144","v":145},{"$f":"CntyDataLinkPrior5YearEstimates!$CX$144","v":334},{"$f":"CntyDataLinkPrior5YearEstimates!$CY$144","v":127},{"$f":"CntyDataLinkPrior5YearEstimates!$DF$144","v":1077},{"$f":"CntyDataLinkPrior5YearEstimates!$DG$144","v":219}]
[null,null,null,"Monthly Costs Less than 20% of HH Income",{"$f":"CntyDataLinkPrior5YearEstimates!$BH$144","v":1190},{"$f":"CntyDataLinkPrior5YearEstimates!$BI$144","v":259.00579144104097},null,{"$f":"CntyDataLinkPrior5YearEstimates!$CB$144","v":0},{"$f":"CntyDataLinkPrior5YearEstimates!$CC$144","v":16},{"$f":"CntyDataLinkPrior5YearEstimates!CJ$144","v":44},{"$f":"CntyDataLinkPrior5YearEstimates!CK$144","v":49},{"$f":"CntyDataLinkPrior5YearEstimates!CR$144","v":86},{"$f":"CntyDataLinkPrior5YearEstimates!CS$144","v":72},{"$f":"CntyDataLinkPrior5YearEstimates!CZ$144","v":224},{"$f":"CntyDataLinkPrior5YearEstimates!DA$144","v":103},{"$f":"CntyDataLinkPrior5YearEstimates!DH$144","v":836},{"$f":"CntyDataLinkPrior5YearEstimates!DI$144","v":199}]
[null,null,null,"Monthly Costs 20% to 29.9% of HH Income",{"$f":"CntyDataLinkPrior5YearEstimates!$BJ$144","v":453},{"$f":"CntyDataLinkPrior5YearEstimates!$BK$144","v":169.09760495051373},null,{"$f":"CntyDataLinkPrior5YearEstimates!$CD$144","v":0},{"$f":"CntyDataLinkPrior5YearEstimates!$CE$144","v":16},{"$f":"CntyDataLinkPrior5YearEstimates!CL$144","v":124},{"$f":"CntyDataLinkPrior5YearEstimates!CM$144","v":102},{"$f":"CntyDataLinkPrior5YearEstimates!CT$144","v":40},{"$f":"CntyDataLinkPrior5YearEstimates!CU$144","v":38},{"$f":"CntyDataLinkPrior5YearEstimates!DB$144","v":78},{"$f":"CntyDataLinkPrior5YearEstimates!DC$144","v":68},{"$f":"CntyDataLinkPrior5YearEstimates!DJ$144","v":211},{"$f":"CntyDataLinkPrior5YearEstimates!DK$144","v":123}]
[null,null,null,"Monthly Costs Less Than 30% of HH Income",{"$f":"CntyDataLinkPrior5YearEstimates!$BL$144","v":1643},{"$f":"CntyDataLinkPrior5YearEstimates!$BM$144","v":309.31860597125416},null,{"$f":"H52+H51","v":0},{"$f":"SQRT((I52^2)+(I51^2))","v":22.627416997969522},{"$f":"J52+J51","v":168},{"$f":"SQRT((K52^2)+(K51^2))","v":113.1591799192624},{"$f":"L52+L51","v":126},{"$f":"SQRT((M52^2)+(M51^2))","v":81.412529748190479},{"$f":"N52+N51","v":302},{"$f":"SQRT((O52^2)+(O51^2))","v":123.42204017111368},{"$f":"P52+P51","v":1047},{"$f":"SQRT((Q52^2)+(Q51^2))","v":233.94443784796422}]
[null,null,null,"Monthly Costs 30% or More of HH Income",{"$f":"CntyDataLinkPrior5YearEstimates!$BN$144","v":636},{"$f":"CntyDataLinkPrior5YearEstimates!$BO$144","v":237.10967926257248},null,{"$f":"CntyDataLinkPrior5YearEstimates!$CF$144","v":100},{"$f":"CntyDataLinkPrior5YearEstimates!$CG$144","v":95},{"$f":"CntyDataLinkPrior5YearEstimates!CN$144","v":317},{"$f":"CntyDataLinkPrior5YearEstimates!CO$144","v":170},{"$f":"CntyDataLinkPrior5YearEstimates!CV$144","v":157},{"$f":"CntyDataLinkPrior5YearEstimates!CW$144","v":124},{"$f":"CntyDataLinkPrior5YearEstimates!DD$144","v":32},{"$f":"CntyDataLinkPrior5YearEstimates!DE$144","v":36},{"$f":"CntyDataLinkPrior5YearEstimates!$DL$144","v":30},{"$f":"CntyDataLinkPrior5YearEstimates!$DM$144","v":34}]
[]
[null,null,null,"Monthly Costs 35% or More of HH Income",{"$f":"CntyDataLinkPrior5YearEstimates!$BT$144","v":394},{"$f":"CntyDataLinkPrior5YearEstimates!$BU$144","v":177.32174147577055},null,"NA","NA","NA","NA","NA","NA","NA","NA","NA","NA"]
[null,null,null,"Monthly Costs 50% or More of HH Income",{"$f":"CntyDataLinkPrior5YearEstimates!$BV$144","v":198},{"$f":"CntyDataLinkPrior5YearEstimates!$BW$144","v":136.49908424601244},null,"NA","NA","NA","NA","NA","NA","NA","NA","NA","NA"]
[null,null,null,"Percent not computed",{"$f":"CntyDataLinkPrior5YearEstimates!$BX$144","v":23},{"$f":"CntyDataLinkPrior5YearEstimates!$BY$144","v":41.231056256176608},null,"NA","NA","NA","NA","NA","NA","NA","NA","NA","NA"]
[]
[null,null,null,"Percent of Owner Households Paying ",null,null,null,"By Household Income"]
[null,null,null,{"$f":"D53","v":"Monthly Costs Less Than 30% of HH Income"},{"$f":"E53/E$50","v":0.71372719374456994},null,null,{"$f":"H53/H$50","v":0},null,{"$f":"J53/J$50","v":0.34639175257731958},null,{"$f":"L53/L$50","v":0.44522968197879859},null,{"$f":"N53/N$50","v":0.90419161676646709},null,{"$f":"P53/P$50","v":0.97214484679665736}]
[null,null,null,{"$f":"D54","v":"Monthly Costs 30% or More of HH Income"},{"$f":"E54/E$50","v":0.27628149435273675},null,null,{"$f":"H54/H50","v":1},null,{"$f":"J54/J50","v":0.65360824742268042},null,{"$f":"L54/L50","v":0.55477031802120136},null,{"$f":"N54/N50","v":9.580838323353294E-2},null,{"$f":"P54/P50","v":2.7855153203342618E-2}]
[]
[null,null,null,"Monthly Costs 35% or More of HH Income",{"$f":"E56/E$50","v":0.17115551694178974},null,null,"NA","NA","NA","NA","NA","NA","NA","NA","NA","NA"]
[null,null,null,"Monthly Costs 50% or More of HH Income",{"$f":"E57/E$50","v":8.6012163336229366E-2},null,null,"NA","NA","NA","NA","NA","NA","NA","NA","NA","NA"]
[null,null,null,"Percent not computed",{"$f":"E58/$E$50","v":9.99131190269331E-3},null,null,"NA","NA","NA","NA","NA","NA","NA","NA","NA","NA"]
[]
[null,null,"H62ROHUGRent200to249",{"$f":"D37","v":"Income in 2017 Inflation Adjusted Dollars"}]
[null,null,null,"Source: 2013-2017 American Community Survey Table B25091; B25106",null,null,null,null,"NA indicates that the American Community Survey does not provide that data."]
[null,null,null,"Data from the American Community Survey are estimates."]
[]
[null,null,null,{"$f":"CntyDataLinkPrior5YearEstimates!$A35","v":"Wolfeboro"}]
[null,null,"H62ROHUGRent250to299",{"$f":"D3","v":"OWNER HOUSING COST CHARACTERISTICS"}]
[null,null,"H62ROHUGRent300to349"]
[null,null,"H62ROHUGRent350to399","Value of Owner Occupied Housing Units"]
[null,null,"H62ROHUGRent400to449"]
[null,null,"H62ROHUGRent450to499","Owner Occupied Housing Units",{"$f":"CntyDataLinkPrior5YearEstimates!$B$144","v":2302},{"$f":"CntyDataLinkPrior5YearEstimates!$C$144","v":218}]
[null,null,"H62ROHUGRent500to549"]
[null,null,"H62ROHUGRent550to599","Value","Housing Units","Margin of Error"]
[null,null,"H62ROHUGRent600to649","Less than $10,000",{"$f":"CntyDataLinkPrior5YearEstimates!$D$144","v":19},{"$f":"CntyDataLinkPrior5YearEstimates!$E$144","v":30}]
[null,null,"H62ROHUGRent650to699","$10,000 to $14,999",{"$f":"CntyDataLinkPrior5YearEstimates!$F$144","v":0},{"$f":"CntyDataLinkPrior5YearEstimates!$G$144","v":16}]
[null,null,"H62ROHUGRent700to749","$15,000 to $19,999",{"$f":"CntyDataLinkPrior5YearEstimates!$H$144","v":0},{"$f":"CntyDataLinkPrior5YearEstimates!$I$144","v":16}]
[null,null,"H62ROHUGRent750to799","$20,000 to $24,999",{"$f":"CntyDataLinkPrior5YearEstimates!$J$144","v":0},{"$f":"CntyDataLinkPrior5YearEstimates!$K$144","v":16}]
[null,null,"H62ROHUGRent800to899","$25,000 to $29,999",{"$f":"CntyDataLinkPrior5YearEstimates!$L$144","v":0},{"$f":"CntyDataLinkPrior5YearEstimates!$M$144","v":16}]
[null,null,"H62ROHUGRent900to999","$30,000 to $34,999",{"$f":"CntyDataLinkPrior5YearEstimates!$N$144","v":0},{"$f":"CntyDataLinkPrior5YearEstimates!$O$144","v":16}]
[null,null,"H62ROHUGRent1000to1249","$35,000 to $39,999",{"$f":"CntyDataLinkPrior5YearEstimates!$P$144","v":0},{"$f":"CntyDataLinkPrior5YearEstimates!$Q$144","v":16}]
[null,null,"H62ROHUGRent1250to1499","$40,000 to $49,999",{"$f":"CntyDataLinkPrior5YearEstimates!$R$144","v":31},{"$f":"CntyDataLinkPrior5YearEstimates!$S$144","v":36}]
[null,null,"H62ROHUGRent1500to1999","$50,000 to $59,999",{"$f":"CntyDataLinkPrior5YearEstimates!$T$144","v":0},{"$f":"CntyDataLinkPrior5YearEstimates!$U$144","v":16}]
[null,null,"H62ROHUGRent2000>","$60,000 to $69,999",{"$f":"CntyDataLinkPrior5YearEstimates!$V$144","v":0},{"$f":"CntyDataLinkPrior5YearEstimates!$W$144","v":16}]
[null,null,"H62ROHUNoGRent","$70,000 to $79,999",{"$f":"CntyDataLinkPrior5YearEstimates!$X$144","v":0},{"$f":"CntyDataLinkPrior5YearEstimates!$Y$144","v":16}]
[null,null,"H63MedianGrossRnt","$80,000 to $89,999",{"$f":"CntyDataLinkPrior5YearEstimates!$Z$144","v":20},{"$f":"CntyDataLinkPrior5YearEstimates!$AA$144","v":31}]
[null,null,null,"$90,000 to $99,999",{"$f":"CntyDataLinkPrior5YearEstimates!$AB$144","v":0},{"$f":"CntyDataLinkPrior5YearEstimates!$AC$144","v":16}]
[null,null,null,"$100,000 to $124,999",{"$f":"CntyDataLinkPrior5YearEstimates!$AD$144","v":56},{"$f":"CntyDataLinkPrior5YearEstimates!$AE$144","v":58}]
[null,null,null,"$125,000 to $149,999",{"$f":"CntyDataLinkPrior5YearEstimates!$AF$144","v":0},{"$f":"CntyDataLinkPrior5YearEstimates!$AG$144","v":16}]
[null,null,null,"$150,000 to $174,999",{"$f":"CntyDataLinkPrior5YearEstimates!$AH$144","v":117},{"$f":"CntyDataLinkPrior5YearEstimates!$AI$144","v":77}]
[null,null,null,"$175,000 to $199,999",{"$f":"CntyDataLinkPrior5YearEstimates!$AJ$144","v":233},{"$f":"CntyDataLinkPrior5YearEstimates!$AK$144","v":133}]
[null,null,null,"$200,000 to $249,999",{"$f":"CntyDataLinkPrior5YearEstimates!$AL$144","v":330},{"$f":"CntyDataLinkPrior5YearEstimates!$AM$144","v":154}]
[null,null,null,"$250,000 to $299,999",{"$f":"CntyDataLinkPrior5YearEstimates!$AN$144","v":500},{"$f":"CntyDataLinkPrior5YearEstimates!$AO$144","v":170}]
[null,null,null,"$300,000 to $399,999",{"$f":"CntyDataLinkPrior5YearEstimates!$AP$144","v":460},{"$f":"CntyDataLinkPrior5YearEstimates!$AQ$144","v":176}]
[null,null,null,"$400,000 to $499,999",{"$f":"CntyDataLinkPrior5YearEstimates!$AR$144","v":134},{"$f":"CntyDataLinkPrior5YearEstimates!$AS$144","v":72}]
[null,null,null,"$500,000 to $749,999",{"$f":"CntyDataLinkPrior5YearEstimates!$AT$144","v":212},{"$f":"CntyDataLinkPrior5YearEstimates!$AU$144","v":133}]
[null,null,null,"$750,000 to $999,999",{"$f":"CntyDataLinkPrior5YearEstimates!$AV$144","v":129},{"$f":"CntyDataLinkPrior5YearEstimates!$AW$144","v":93}]
[null,null,null,"$1,000,000 to $1,499,999",{"$f":"CntyDataLinkPrior5YearEstimates!$AX$144","v":61},{"$f":"CntyDataLinkPrior5YearEstimates!$AY$144","v":57}]
[null,null,null,"$1,500,000 to $1,999,999",{"$f":"CntyDataLinkPrior5YearEstimates!$AZ$144","v":0},{"$f":"CntyDataLinkPrior5YearEstimates!$BA$144","v":16}]
[null,null,null,"$2,000,000 or more",{"$f":"CntyDataLinkPrior5YearEstimates!$BB$144","v":0},{"$f":"CntyDataLinkPrior5YearEstimates!$BC$144","v":16}]
[]
[null,null,null,"Median Value",{"$f":"CntyDataLinkPrior5YearEstimates!$BD$144","v":284500},{"$f":"CntyDataLinkPrior5YearEstimates!$BE$144","v":20074}]

{"sheet":"OwnerHousingCostPrior10Year","index":18,"n_rows":107,"n_cols":17,"rows_kept":107,"cut":false,"hidden":true,"merged":[]}
[]
[null,null,"HIDE THIS COLUMN",{"$f":"CntyDataLinkPrior5YearEstimates!$A$108","v":"Wolfeboro"}]
[null,null,null,"OWNER HOUSING COST CHARACTERISTICS"]
[]
[]
[]
[]
[]
[]
[]
[]
[]
[]
[]
[]
[]
[]
[]
[]
[]
[]
[]
[]
[]
[]
[]
[]
[]
[]
[]
[]
[]
[]
[]
[]
[]
[null,null,null,"Income in 2012 Inflation Adjusted Dollars"]
[null,null,null,"Source: 2008-2012 American Community Survey Table B25106"]
[null,null,null,"Data from the American Community Survey are estimates."]
[]
[]
[null,null,null,{"$f":"CntyDataLinkPrior5YearEstimates!$A$108","v":"Wolfeboro"}]
[]
[null,null,null,{"$f":"D3","v":"OWNER HOUSING COST CHARACTERISTICS"}]
[]
[null,null,null,"Owner Households by "]
[null,null,null,"Selected Monthly Housing Costs as a Percent of 2012 Household Income",null,null,null,"By Household Income"]
[null,null,"H73RenterOccHU",null,"Specified Owner Occ Housing Units","Margin of Error Owner Occ Housing Units",null,"Less than $20,000",{"$f":"\"Margin of Error \"&H48","v":"Margin of Error Less than $20,000"},"$20,000 to $34,999",{"$f":"\"Margin of Error \"&J48","v":"Margin of Error $20,000 to $34,999"},"$35,000 to $49,999",{"$f":"\"Margin of Error \"&L48","v":"Margin of Error $35,000 to $49,999"},"$50,000 to $74,999",{"$f":"\"Margin of Error \"&N48","v":"Margin of Error $50,000 to $74,999"},"$75,000 or More",{"$f":"\"Margin of Error \"&P48","v":"Margin of Error $75,000 or More"}]
[]
[null,null,null,"Total Households",{"$f":"CntyDataLinkPrior10YearEstimate!$BF144","v":2165},{"$f":"CntyDataLinkPrior10YearEstimate!$BG$144","v":196},null,{"$f":"CntyDataLinkPrior10YearEstimate!$BZ$144","v":119},{"$f":"CntyDataLinkPrior10YearEstimate!$CA$144","v":71},{"$f":"CntyDataLinkPrior10YearEstimate!$CH$144","v":138},{"$f":"CntyDataLinkPrior10YearEstimate!$CI$144","v":82},{"$f":"CntyDataLinkPrior10YearEstimate!$CP$144","v":413},{"$f":"CntyDataLinkPrior10YearEstimate!$CQ$144","v":144},{"$f":"CntyDataLinkPrior10YearEstimate!$CX$144","v":468},{"$f":"CntyDataLinkPrior10YearEstimate!$CY$144","v":148},{"$f":"CntyDataLinkPrior10YearEstimate!$DF$144","v":1027},{"$f":"CntyDataLinkPrior10YearEstimate!$DG$144","v":208}]
[null,null,null,"Monthly Costs Less than 20% of HH Income",{"$f":"CntyDataLinkPrior10YearEstimate!$BH$144","v":1129},{"$f":"CntyDataLinkPrior10YearEstimate!$BI$144","v":251.04581255221129},null,{"$f":"CntyDataLinkPrior10YearEstimate!$CB$144","v":0},{"$f":"CntyDataLinkPrior10YearEstimate!$CC$144","v":16},{"$f":"CntyDataLinkPrior10YearEstimate!CJ$144","v":25},{"$f":"CntyDataLinkPrior10YearEstimate!CK$144","v":29},{"$f":"CntyDataLinkPrior10YearEstimate!CR$144","v":233},{"$f":"CntyDataLinkPrior10YearEstimate!CS$144","v":121},{"$f":"CntyDataLinkPrior10YearEstimate!CZ$144","v":209},{"$f":"CntyDataLinkPrior10YearEstimate!DA$144","v":91},{"$f":"CntyDataLinkPrior10YearEstimate!DH$144","v":662},{"$f":"CntyDataLinkPrior10YearEstimate!DI$144","v":199}]
[null,null,null,"Monthly Costs 20% to 29.9% of HH Income",{"$f":"CntyDataLinkPrior10YearEstimate!$BJ$144","v":604},{"$f":"CntyDataLinkPrior10YearEstimate!$BK$144","v":198.07574308834484},null,{"$f":"CntyDataLinkPrior10YearEstimate!$CD$144","v":0},{"$f":"CntyDataLinkPrior10YearEstimate!$CE$144","v":16},{"$f":"CntyDataLinkPrior10YearEstimate!CL$144","v":71},{"$f":"CntyDataLinkPrior10YearEstimate!CM$144","v":72},{"$f":"CntyDataLinkPrior10YearEstimate!CT$144","v":81},{"$f":"CntyDataLinkPrior10YearEstimate!CU$144","v":58},{"$f":"CntyDataLinkPrior10YearEstimate!DB$144","v":133},{"$f":"CntyDataLinkPrior10YearEstimate!DC$144","v":96},{"$f":"CntyDataLinkPrior10YearEstimate!DJ$144","v":319},{"$f":"CntyDataLinkPrior10YearEstimate!DK$144","v":130}]
[null,null,null,"Monthly Costs Less Than 30% of HH Income",{"$f":"CntyDataLinkPrior10YearEstimate!$BL$144","v":1733},{"$f":"CntyDataLinkPrior10YearEstimate!$BM$144","v":319.77804802706515},null,{"$f":"H52+H51","v":0},{"$f":"SQRT((I52^2)+(I51^2))","v":22.627416997969522},{"$f":"J52+J51","v":96},{"$f":"SQRT((K52^2)+(K51^2))","v":77.620873481300123},{"$f":"L52+L51","v":314},{"$f":"SQRT((M52^2)+(M51^2))","v":134.18271125595876},{"$f":"N52+N51","v":342},{"$f":"SQRT((O52^2)+(O51^2))","v":132.27622613304328},{"$f":"P52+P51","v":981},{"$f":"SQRT((Q52^2)+(Q51^2))","v":237.69938998659632}]
[null,null,null,"Monthly Costs 30% or More of HH Income",{"$f":"CntyDataLinkPrior10YearEstimate!$BN$144","v":432},{"$f":"CntyDataLinkPrior10YearEstimate!$BO$144","v":140.46351839534705},null,{"$f":"CntyDataLinkPrior10YearEstimate!$CF$144","v":119},{"$f":"CntyDataLinkPrior10YearEstimate!$CG$144","v":71},{"$f":"CntyDataLinkPrior10YearEstimate!CN$144","v":42},{"$f":"CntyDataLinkPrior10YearEstimate!CO$144","v":39},{"$f":"CntyDataLinkPrior10YearEstimate!CV$144","v":99},{"$f":"CntyDataLinkPrior10YearEstimate!CW$144","v":63},{"$f":"CntyDataLinkPrior10YearEstimate!DD$144","v":126},{"$f":"CntyDataLinkPrior10YearEstimate!DE$144","v":77},{"$f":"CntyDataLinkPrior10YearEstimate!$DL$144","v":46},{"$f":"CntyDataLinkPrior10YearEstimate!$DM$144","v":49}]
[]
[null,null,null,"Monthly Costs 35% or More of HH Income",{"$f":"CntyDataLinkPrior10YearEstimate!$BT$144","v":377},{"$f":"CntyDataLinkPrior10YearEstimate!$BU$144","v":134.40610105199838},null,"NA","NA","NA","NA","NA","NA","NA","NA","NA","NA"]
[null,null,null,"Monthly Costs 50% or More of HH Income",{"$f":"CntyDataLinkPrior10YearEstimate!$BV$144","v":254},{"$f":"CntyDataLinkPrior10YearEstimate!$BW$144","v":111.83022847155415},null,"NA","NA","NA","NA","NA","NA","NA","NA","NA","NA"]
[null,null,null,"Percent not computed",{"$f":"CntyDataLinkPrior10YearEstimate!$BX$144","v":0},{"$f":"CntyDataLinkPrior10YearEstimate!$BY$144","v":22.627416997969522},null,"NA","NA","NA","NA","NA","NA","NA","NA","NA","NA"]
[]
[null,null,null,"Percent of Owner Households Paying ",null,null,null,"By Household Income"]
[null,null,null,{"$f":"D53","v":"Monthly Costs Less Than 30% of HH Income"},{"$f":"E53/E$50","v":0.80046189376443422},null,null,{"$f":"H53/H$50","v":0},null,{"$f":"J53/J$50","v":0.69565217391304346},null,{"$f":"L53/L$50","v":0.76029055690072644},null,{"$f":"N53/N$50","v":0.73076923076923073},null,{"$f":"P53/P$50","v":0.9552093476144109}]
[null,null,null,{"$f":"D54","v":"Monthly Costs 30% or More of HH Income"},{"$f":"E54/E$50","v":0.19953810623556581},null,null,{"$f":"H54/H50","v":1},null,{"$f":"J54/J50","v":0.30434782608695654},null,{"$f":"L54/L50","v":0.23970944309927361},null,{"$f":"N54/N50","v":0.26923076923076922},null,{"$f":"P54/P50","v":4.4790652385589096E-2}]
[]
[null,null,null,"Monthly Costs 35% or More of HH Income",{"$f":"E56/E$50","v":0.1741339491916859},null,null,"NA","NA","NA","NA","NA","NA","NA","NA","NA","NA"]
[null,null,null,"Monthly Costs 50% or More of HH Income",{"$f":"E57/E$50","v":0.11732101616628175},null,null,"NA","NA","NA","NA","NA","NA","NA","NA","NA","NA"]
[null,null,null,"Percent not computed",{"$f":"E58/$E$50","v":0},null,null,"NA","NA","NA","NA","NA","NA","NA","NA","NA","NA"]
[]
[null,null,"H62ROHUGRent200to249",{"$f":"D37","v":"Income in 2012 Inflation Adjusted Dollars"}]
[null,null,null,"Source: 2008-2012 American Community Survey Table B25091; B25106",null,null,null,null,"NA indicates that the American Community Survey does not provide that data."]
[null,null,null,"Data from the American Community Survey are estimates."]
[]
[null,null,null,{"$f":"CntyDataLinkPrior5YearEstimates!$A35","v":"Wolfeboro"}]
[null,null,"H62ROHUGRent250to299",{"$f":"D3","v":"OWNER HOUSING COST CHARACTERISTICS"}]
[null,null,"H62ROHUGRent300to349"]
[null,null,"H62ROHUGRent350to399","Value of Owner Occupied Housing Units"]
[null,null,"H62ROHUGRent400to449"]
[null,null,"H62ROHUGRent450to499","Owner Occupied Housing Units",{"$f":"CntyDataLinkPrior10YearEstimate!$B$144","v":2165},{"$f":"CntyDataLinkPrior10YearEstimate!$C$144","v":196}]
[null,null,"H62ROHUGRent500to549"]
[null,null,"H62ROHUGRent550to599","Value","Housing Units","Margin of Error"]
[null,null,"H62ROHUGRent600to649","Less than $10,000",{"$f":"CntyDataLinkPrior10YearEstimate!$D$144","v":0},{"$f":"CntyDataLinkPrior10YearEstimate!$E$144","v":16}]
[null,null,"H62ROHUGRent650to699","$10,000 to $14,999",{"$f":"CntyDataLinkPrior10YearEstimate!$F$144","v":0},{"$f":"CntyDataLinkPrior10YearEstimate!$G$144","v":16}]
[null,null,"H62ROHUGRent700to749","$15,000 to $19,999",{"$f":"CntyDataLinkPrior10YearEstimate!$H$144","v":24},{"$f":"CntyDataLinkPrior10YearEstimate!$I$144","v":31}]
[null,null,"H62ROHUGRent750to799","$20,000 to $24,999",{"$f":"CntyDataLinkPrior10YearEstimate!$J$144","v":0},{"$f":"CntyDataLinkPrior10YearEstimate!$K$144","v":16}]
[null,null,"H62ROHUGRent800to899","$25,000 to $29,999",{"$f":"CntyDataLinkPrior10YearEstimate!$L$144","v":0},{"$f":"CntyDataLinkPrior10YearEstimate!$M$144","v":16}]
[null,null,"H62ROHUGRent900to999","$30,000 to $34,999",{"$f":"CntyDataLinkPrior10YearEstimate!$N$144","v":0},{"$f":"CntyDataLinkPrior10YearEstimate!$O$144","v":16}]
[null,null,"H62ROHUGRent1000to1249","$35,000 to $39,999",{"$f":"CntyDataLinkPrior10YearEstimate!$P$144","v":0},{"$f":"CntyDataLinkPrior10YearEstimate!$Q$144","v":16}]
[null,null,"H62ROHUGRent1250to1499","$40,000 to $49,999",{"$f":"CntyDataLinkPrior10YearEstimate!$R$144","v":23},{"$f":"CntyDataLinkPrior10YearEstimate!$S$144","v":28}]
[null,null,"H62ROHUGRent1500to1999","$50,000 to $59,999",{"$f":"CntyDataLinkPrior10YearEstimate!$T$144","v":10},{"$f":"CntyDataLinkPrior10YearEstimate!$U$144","v":17}]
[null,null,"H62ROHUGRent2000>","$60,000 to $69,999",{"$f":"CntyDataLinkPrior10YearEstimate!$V$144","v":0},{"$f":"CntyDataLinkPrior10YearEstimate!$W$144","v":16}]
[null,null,"H62ROHUNoGRent","$70,000 to $79,999",{"$f":"CntyDataLinkPrior10YearEstimate!$X$144","v":23},{"$f":"CntyDataLinkPrior10YearEstimate!$Y$144","v":35}]
[null,null,"H63MedianGrossRnt","$80,000 to $89,999",{"$f":"CntyDataLinkPrior10YearEstimate!$Z$144","v":13},{"$f":"CntyDataLinkPrior10YearEstimate!$AA$144","v":21}]
[null,null,null,"$90,000 to $99,999",{"$f":"CntyDataLinkPrior10YearEstimate!$AB$144","v":0},{"$f":"CntyDataLinkPrior10YearEstimate!$AC$144","v":16}]
[null,null,null,"$100,000 to $124,999",{"$f":"CntyDataLinkPrior10YearEstimate!$AD$144","v":38},{"$f":"CntyDataLinkPrior10YearEstimate!$AE$144","v":36}]
[null,null,null,"$125,000 to $149,999",{"$f":"CntyDataLinkPrior10YearEstimate!$AF$144","v":46},{"$f":"CntyDataLinkPrior10YearEstimate!$AG$144","v":34}]
[null,null,null,"$150,000 to $174,999",{"$f":"CntyDataLinkPrior10YearEstimate!$AH$144","v":110},{"$f":"CntyDataLinkPrior10YearEstimate!$AI$144","v":76}]
[null,null,null,"$175,000 to $199,999",{"$f":"CntyDataLinkPrior10YearEstimate!$AJ$144","v":97},{"$f":"CntyDataLinkPrior10YearEstimate!$AK$144","v":70}]
[null,null,null,"$200,000 to $249,999",{"$f":"CntyDataLinkPrior10YearEstimate!$AL$144","v":359},{"$f":"CntyDataLinkPrior10YearEstimate!$AM$144","v":146}]
[null,null,null,"$250,000 to $299,999",{"$f":"CntyDataLinkPrior10YearEstimate!$AN$144","v":448},{"$f":"CntyDataLinkPrior10YearEstimate!$AO$144","v":195}]
[null,null,null,"$300,000 to $399,999",{"$f":"CntyDataLinkPrior10YearEstimate!$AP$144","v":391},{"$f":"CntyDataLinkPrior10YearEstimate!$AQ$144","v":116}]
[null,null,null,"$400,000 to $499,999",{"$f":"CntyDataLinkPrior10YearEstimate!$AR$144","v":207},{"$f":"CntyDataLinkPrior10YearEstimate!$AS$144","v":101}]
[null,null,null,"$500,000 to $749,999",{"$f":"CntyDataLinkPrior10YearEstimate!$AT$144","v":142},{"$f":"CntyDataLinkPrior10YearEstimate!$AU$144","v":89}]
[null,null,null,"$750,000 to $999,999",{"$f":"CntyDataLinkPrior10YearEstimate!$AV$144","v":51},{"$f":"CntyDataLinkPrior10YearEstimate!$AW$144","v":67}]
[null,null,null,"$1,000,000 to $1,499,999",{"$f":"CntyDataLinkPrior10YearEstimate!$AX$144","v":183},{"$f":"CntyDataLinkPrior10YearEstimate!$AY$144","v":95}]
[null,null,null,"$1,500,000 to $1,999,999",{"$f":"CntyDataLinkPrior10YearEstimate!$AZ$144","v":0},{"$f":"CntyDataLinkPrior10YearEstimate!$BA$144","v":0}]
[null,null,null,"$2,000,000 or more",{"$f":"CntyDataLinkPrior10YearEstimate!$BB$144","v":0},{"$f":"CntyDataLinkPrior10YearEstimate!$BC$144","v":0}]
[]
[null,null,null,"Median Value",{"$f":"CntyDataLinkPrior10YearEstimate!$BD$144","v":287900},{"$f":"CntyDataLinkPrior10YearEstimate!$BE$144","v":17900}]

{"sheet":"ACS_Table_B25075_&_B25077","index":19,"n_rows":160,"n_cols":40,"rows_kept":160,"cut":false,"hidden":true,"merged":[]}
[null,"B25075. VALUE"]
[null,"Universe:  OWNER-OCCUPIED HOUSING UNITS"]
[null,"Data Set: 2018-2022 American Community Survey 5-Year Estimates"]
[]
[null,null,"Albany",null,"Bartlett",null,"Brookfield",null,"Chatham",null,"Conway",null,"Eaton",null,"Effingham",null,"Freedom",null,"Hale's Location",null,"Hart's Location",null,"Jackson",null,"Madison",null,"Moultonborough",null,"Ossipee",null,"Sandwich",null,"Tamworth",null,"Tuftonboro",null,"Wakefield",null,"Wolfeboro"]
[null," ","Estimate","Margin of Error","Estimate","Margin of Error","Estimate","Margin of Error","Estimate","Margin of Error","Estimate","Margin of Error","Estimate","Margin of Error","Estimate","Margin of Error","Estimate","Margin of Error","Estimate","Margin of Error","Estimate","Margin of Error","Estimate","Margin of Error","Estimate","Margin of Error","Estimate","Margin of Error","Estimate","Margin of Error","Estimate","Margin of Error","Estimate","Margin of Error","Estimate","Margin of Error","Estimate","Margin of Error","Estimate","Margin of Error"]
[null,"Total:",252,56,1376,221,231,57,141,36,3119,350,123,29,477,55,543,72,85,31,43,32,385,96,839,100,1880,213,1383,151,857,171,646,161,1005,95,2100,207,2165,270]
[null,"Less than $10,000",18,16,0,12,11,17,0,12,10,19,0,12,10,15,0,12,0,12,0,12,0,12,0,12,10,15,0,12,0,12,0,12,0,12,0,17,16,25]
[null,"$10,000 to $14,999",0,12,0,12,0,12,0,12,28,37,0,12,0,12,0,12,0,12,0,12,0,12,0,12,0,12,0,12,0,12,0,12,0,12,0,17,0,17]
[null,"$15,000 to $19,999",0,12,0,12,0,12,0,12,0,17,0,12,0,12,0,12,0,12,0,12,0,12,5,7,0,12,0,12,0,12,0,12,0,12,0,17,0,17]
[null,"$20,000 to $24,999",0,12,0,12,0,12,0,12,28,47,0,12,0,12,5,7,0,12,0,12,0,12,0,12,0,12,9,18,4,5,0,12,0,12,15,24,0,17]
[null,"$25,000 to $29,999",5,6,0,12,2,3,0,12,125,115,0,12,3,4,3,4,0,12,0,12,0,12,0,12,0,12,0,12,0,12,0,12,8,12,0,17,13,21]
[null,"$30,000 to $34,999",0,12,0,12,0,12,1,2,0,17,0,12,0,12,0,12,0,12,0,12,0,12,0,12,17,22,8,12,0,12,0,12,0,12,0,17,0,17]
[null,"$35,000 to $39,999",0,12,0,12,0,12,2,5,21,24,0,12,4,5,0,12,0,12,0,12,0,12,0,12,0,12,0,12,3,5,13,21,7,10,15,22,0,17]
[null,"$40,000 to $49,999",10,13,14,19,0,12,0,12,39,59,0,12,4,5,0,12,0,12,0,12,0,12,0,12,0,12,0,12,0,12,0,12,0,12,0,17,0,17]
[null,"$50,000 to $59,999",0,12,44,69,0,12,0,12,48,45,0,12,9,13,19,28,0,12,0,12,0,12,0,12,0,12,0,12,0,12,37,56,7,11,0,17,0,17]
[null,"$60,000 to $69,999",0,12,0,12,0,12,1,3,30,46,0,12,0,12,0,12,0,12,0,12,0,12,0,12,0,12,95,72,0,12,0,12,0,12,0,17,69,103]
[null,"$70,000 to $79,999",0,12,0,12,7,11,2,3,33,51,0,12,16,15,4,7,0,12,0,12,0,12,0,12,0,12,0,12,0,12,0,12,0,12,0,17,0,17]
[null,"$80,000 to $89,999",0,12,41,63,0,12,4,5,146,162,0,12,0,12,0,12,0,12,0,12,3,4,0,12,0,12,13,19,0,12,12,19,3,7,0,17,0,17]
[null,"$90,000 to $99,999",5,6,0,12,0,12,0,12,57,47,0,12,18,26,4,5,0,12,0,12,0,12,0,12,0,12,0,12,0,12,0,12,0,12,27,45,47,72]
[null,"$100,000 to $124,999",20,20,18,30,0,12,2,3,159,133,0,12,20,13,0,12,0,12,0,12,7,12,16,17,42,38,139,84,3,5,16,20,34,30,15,24,23,37]
[null,"$125,000 to $149,999",0,12,0,12,2,4,1,2,185,118,6,7,15,13,3,4,0,12,0,12,0,12,8,12,54,41,33,38,0,12,0,12,8,12,57,56,17,28]
[null,"$150,000 to $174,999",9,12,56,92,8,8,12,12,181,97,3,4,17,11,10,15,0,12,27,28,3,5,4,7,45,49,34,32,3,4,78,53,9,13,139,109,24,28]
[null,"$175,000 to $199,999",14,11,62,100,2,4,14,11,214,207,11,9,37,23,46,28,0,12,3,5,14,23,38,30,46,35,171,99,8,8,35,29,8,12,18,28,31,34]
[null,"$200,000 to $249,999",44,27,253,148,27,13,18,11,261,116,11,8,94,33,46,27,0,12,7,11,41,33,158,74,83,69,191,80,98,59,76,46,176,88,410,240,250,140]
[null,"$250,000 to $299,999",39,28,106,84,30,14,22,12,437,137,20,14,45,24,81,33,0,12,0,12,10,16,127,53,257,109,292,127,61,23,72,73,127,51,399,160,326,161]
[null,"$300,000 to $399,999",47,23,291,157,69,35,18,8,459,136,31,15,81,35,129,41,0,12,5,8,68,31,201,72,222,84,239,96,316,150,202,99,134,50,406,158,275,119]
[null,"$400,000 to $499,999",20,10,249,156,28,15,21,11,285,118,13,9,75,26,71,30,9,10,1,2,46,26,145,70,329,125,37,48,122,38,56,50,175,62,342,153,333,147]
[null,"$500,000 to $749,999",14,10,158,100,34,21,2,3,189,116,10,7,20,19,82,30,49,24,0,12,84,45,94,46,186,78,47,41,152,85,34,29,193,98,183,140,389,151]
[null,"$750,000 to $999,999",7,8,84,89,0,12,14,12,132,108,8,6,0,12,20,11,23,12,0,12,35,24,39,28,217,106,0,12,26,17,15,23,15,15,44,33,182,109]
[null,"$1,000,000 to $1,499,999",0,12,0,12,9,7,7,7,52,70,10,7,6,7,6,8,4,5,0,12,65,58,4,6,108,59,0,12,29,22,0,12,52,44,30,35,62,57]
[null,"$1,500,000 to $1,999,999",0,12,0,12,0,12,0,12,0,17,0,12,0,12,0,12,0,12,0,12,9,14,0,12,91,55,37,57,17,17,0,12,26,31,0,17,0,17]
[null,"$2,000,000 or more",0,12,0,12,2,4,0,12,0,17,0,12,3,4,14,10,0,12,0,12,0,12,0,12,173,127,38,56,15,15,0,12,23,25,0,17,108,97]
[]
[]
[null,"B25077. MEDIAN VALUE (Dollars)"]
[null,"Universe:  OWNER-OCCUPIED HOUSING UNITS"]
[null,"Data Set: 2018-2022 American Community Survey 5-Year Estimates"]
[]
[null,null,"Albany",null,"Bartlett",null,"Brookfield",null,"Chatham",null,"Conway",null,"Eaton",null,"Effingham",null,"Freedom",null,"Hale's Location",null,"Hart's Location",null,"Jackson",null,"Madison",null,"Moultonborough",null,"Ossipee",null,"Sandwich",null,"Tamworth",null,"Tuftonboro",null,"Wakefield",null,"Wolfeboro"]
[null," ","Estimate","Margin of Error","Estimate","Margin of Error","Estimate","Margin of Error","Estimate","Margin of Error","Estimate","Margin of Error","Estimate","Margin of Error","Estimate","Margin of Error","Estimate","Margin of Error","Estimate","Margin of Error","Estimate","Margin of Error","Estimate","Margin of Error","Estimate","Margin of Error","Estimate","Margin of Error","Estimate","Margin of Error","Estimate","Margin of Error","Estimate","Margin of Error","Estimate","Margin of Error","Estimate","Margin of Error","Estimate","Margin of Error"]
[]
[null,"Median value (dollars)",251300,35323,332300,55747,338400,33749,280700,34197,248900,33348,333900,37535,245500,26576,339100,30815,670900,49281,169900,32726,501500,116670,331600,30870,449800,46553,249600,30123,378600,29001,288900,50790,386200,69041,294400,31140,396900,65336]
[]
[]
[]
[]
[]
[]
[]
[]
[]
[]
[]
[]
[]
[]
[]
[]
[]
[]
[]
[]
[]
[]
[]
[]
[]
[]
[null,"B25075. VALUE"]
[null,"Universe:  OWNER-OCCUPIED HOUSING UNITS"]
[null,"Data Set: 2013-2017 American Community Survey 5-Year Estimates"]
[]
[null,null,"Albany",null,"Bartlett",null,"Brookfield",null,"Chatham",null,"Conway",null,"Eaton",null,"Effingham",null,"Freedom",null,"Hale's Location",null,"Hart's Location",null,"Jackson",null,"Madison",null,"Moultonborough",null,"Ossipee",null,"Sandwich",null,"Tamworth",null,"Tuftonboro",null,"Wakefield",null,"Wolfeboro"]
[null," ","Estimate","Margin of Error","Estimate","Margin of Error","Estimate","Margin of Error","Estimate","Margin of Error","Estimate","Margin of Error","Estimate","Margin of Error","Estimate","Margin of Error","Estimate","Margin of Error","Estimate","Margin of Error","Estimate","Margin of Error","Estimate","Margin of Error","Estimate","Margin of Error","Estimate","Margin of Error","Estimate","Margin of Error","Estimate","Margin of Error","Estimate","Margin of Error","Estimate","Margin of Error","Estimate","Margin of Error","Estimate","Margin of Error"]
[null,"Total:",270,43,972,176,290,65,124,27,3210,230,139,33,495,59,502,65,79,24,18,14,365,82,894,105,1498,124,1580,173,513,73,937,124,841,100,1841,183,2302,218]
[null,"Less than $10,000",9,10,8,14,4,6,4,4,35,28,2,4,0,11,19,17,1,4,0,11,0,11,13,15,0,11,51,54,3,4,0,11,0,11,0,16,19,30]
[null,"$10,000 to $14,999",9,14,0,11,0,11,0,11,54,76,0,11,0,11,0,11,0,11,0,11,0,11,0,11,0,11,32,51,0,11,52,78,0,11,0,16,0,16]
[null,"$15,000 to $19,999",7,14,0,11,0,11,1,4,24,28,0,11,4,6,0,11,0,11,0,11,0,11,7,10,0,11,27,23,3,5,0,11,0,11,15,25,0,16]
[null,"$20,000 to $24,999",0,11,0,11,0,11,0,11,134,141,0,11,0,11,0,11,0,11,0,11,0,11,0,11,0,11,21,24,0,11,0,11,4,7,0,16,0,16]
[null,"$25,000 to $29,999",0,11,0,11,0,11,0,11,0,18,0,11,0,11,0,11,0,11,0,11,0,11,0,11,0,11,0,11,0,11,7,12,0,11,15,23,0,16]
[null,"$30,000 to $34,999",11,11,0,11,0,11,0,11,0,18,0,11,0,11,0,11,0,11,0,11,0,11,0,11,0,11,86,62,0,11,0,11,5,8,0,16,0,16]
[null,"$35,000 to $39,999",0,11,0,11,0,11,0,11,73,74,0,11,0,11,0,11,0,11,0,11,0,11,15,25,0,11,0,11,0,11,0,11,6,9,0,16,0,16]
[null,"$40,000 to $49,999",0,11,0,11,0,11,1,4,34,28,0,11,4,5,0,11,0,11,0,11,0,11,0,11,0,11,0,11,0,11,31,34,43,39,17,25,31,36]
[null,"$50,000 to $59,999",2,3,0,11,0,11,2,3,63,79,0,11,12,9,0,11,2,5,0,11,2,4,0,11,0,11,11,18,0,11,39,63,28,31,56,53,0,16]
[null,"$60,000 to $69,999",2,3,0,11,0,11,1,3,65,65,0,11,0,11,0,11,0,11,0,11,0,11,5,8,0,11,6,11,3,4,15,22,5,8,0,16,0,16]
[null,"$70,000 to $79,999",0,11,30,45,0,11,0,11,114,106,0,11,8,8,14,16,0,11,0,11,0,11,8,13,0,11,27,32,0,11,0,11,11,15,0,16,0,16]
[null,"$80,000 to $89,999",17,15,25,39,0,11,4,5,132,80,0,11,27,15,3,6,0,11,0,11,0,11,26,23,0,11,82,74,6,6,0,11,0,11,0,16,20,31]
[null,"$90,000 to $99,999",9,12,10,15,0,11,1,3,66,49,0,11,42,24,9,13,0,11,0,11,0,11,45,43,0,11,17,20,0,11,27,31,0,11,20,28,0,16]
[null,"$100,000 to $124,999",24,16,47,46,12,12,19,14,167,112,2,3,33,21,19,15,0,11,0,11,0,11,23,19,18,21,138,75,11,10,93,85,6,9,128,108,56,58]
[null,"$125,000 to $149,999",31,16,8,10,2,3,1,3,124,72,6,6,53,31,13,11,0,11,0,11,9,14,39,28,21,19,94,51,0,11,88,60,11,11,316,169,0,16]
[null,"$150,000 to $174,999",30,13,110,68,21,17,7,7,508,153,14,10,76,28,27,13,0,11,0,11,47,27,166,65,67,43,275,117,29,22,112,73,57,42,322,152,117,77]
[null,"$175,000 to $199,999",26,15,177,104,33,22,11,9,272,95,24,19,50,22,48,27,0,11,0,11,9,14,58,40,110,57,208,107,30,20,129,92,50,25,155,103,233,133]
[null,"$200,000 to $249,999",41,23,113,80,54,23,16,8,361,113,7,7,57,25,68,32,3,4,8,9,25,27,130,61,172,86,202,98,62,21,45,33,132,52,268,151,330,154]
[null,"$250,000 to $299,999",18,10,123,78,74,33,9,12,307,126,13,9,32,25,84,27,0,11,0,11,21,22,152,63,196,92,88,72,134,37,164,113,114,37,208,101,500,170]
[null,"$300,000 to $399,999",7,8,166,93,59,26,19,12,219,106,17,9,61,24,109,33,4,4,0,11,97,45,84,39,354,99,115,55,136,43,48,37,156,59,154,86,460,176]
[null,"$400,000 to $499,999",18,11,14,16,7,7,12,9,236,126,18,13,12,9,31,18,18,14,4,7,56,38,44,44,129,75,15,19,33,26,73,77,74,36,106,87,134,72]
[null,"$500,000 to $749,999",7,6,134,91,17,12,10,8,156,84,13,8,10,9,51,26,37,16,6,7,81,41,49,30,143,68,81,66,29,15,0,11,93,54,38,40,212,133]
[null,"$750,000 to $999,999",0,11,7,11,4,6,6,7,59,56,13,13,3,5,0,11,7,5,0,11,7,7,15,13,113,56,4,8,19,12,0,11,19,25,0,16,129,93]
[null,"$1,000,000 to $1,499,999",0,11,0,11,3,4,0,11,7,11,8,13,8,8,7,8,4,4,0,11,11,17,15,14,103,50,0,11,12,15,0,11,23,23,23,36,61,57]
[null,"$1,500,000 to $1,999,999",0,11,0,11,0,11,0,11,0,18,0,11,3,4,0,11,0,11,0,11,0,11,0,11,35,37,0,11,3,5,0,11,4,6,0,16,0,16]
[null,"$2,000,000 or more",2,3,0,11,0,11,0,11,0,18,2,3,0,11,0,11,3,5,0,11,0,11,0,11,37,29,0,11,0,11,14,21,0,11,0,16,0,16]
[]
[]
[null,"B25077. MEDIAN VALUE (Dollars)"]
[null,"Universe:  OWNER-OCCUPIED HOUSING UNITS"]
[null,"Data Set: 2013-2017 American Community Survey 5-Year Estimates"]
[]
[null,null,"Albany",null,"Bartlett",null,"Brookfield",null,"Chatham",null,"Conway",null,"Eaton",null,"Effingham",null,"Freedom",null,"Hale's Location",null,"Hart's Location",null,"Jackson",null,"Madison",null,"Moultonborough",null,"Ossipee",null,"Sandwich",null,"Tamworth",null,"Tuftonboro",null,"Wakefield",null,"Wolfeboro"]
[null," ","Estimate","Margin of Error","Estimate","Margin of Error","Estimate","Margin of Error","Estimate","Margin of Error","Estimate","Margin of Error","Estimate","Margin of Error","Estimate","Margin of Error","Estimate","Margin of Error","Estimate","Margin of Error","Estimate","Margin of Error","Estimate","Margin of Error","Estimate","Margin of Error","Estimate","Margin of Error","Estimate","Margin of Error","Estimate","Margin of Error","Estimate","Margin of Error","Estimate","Margin of Error","Estimate","Margin of Error","Estimate","Margin of Error"]
[]
[null,"Median value (dollars)",161700,19337,231400,45541,262800,19188,231300,41901,176100,13616,308800,71755,171200,12289,268500,26292,577700,56841,425000,374481,371600,39675,216200,29715,346600,28594,168000,12186,290900,14710,175900,23740,277400,27911,180100,23870,284500,20074]
[]
[]
[]
[]
[]
[null,"B25075. VALUE"]
[null,"Universe:  OWNER-OCCUPIED HOUSING UNITS"]
[null,"Data Set: 2008-2012 American Community Survey 5-Year Estimates"]
[]
[null,null,"Albany",null,"Bartlett",null,"Brookfield",null,"Chatham",null,"Conway",null,"Eaton",null,"Effingham",null,"Freedom",null,"Hale's Location",null,"Hart's Location",null,"Jackson",null,"Madison",null,"Moultonborough",null,"Ossipee",null,"Sandwich",null,"Tamworth",null,"Tuftonboro",null,"Wakefield",null,"Wolfeboro"]
[null," ","Estimate","Margin of Error","Estimate","Margin of Error","Estimate","Margin of Error","Estimate","Margin of Error","Estimate","Margin of Error","Estimate","Margin of Error","Estimate","Margin of Error","Estimate","Margin of Error","Estimate","Margin of Error","Estimate","Margin of Error","Estimate","Margin of Error","Estimate","Margin of Error","Estimate","Margin of Error","Estimate","Margin of Error","Estimate","Margin of Error","Estimate","Margin of Error","Estimate","Margin of Error","Estimate","Margin of Error","Estimate","Margin of Error"]
[null,"Total:",288,61,1128,151,242,53,146,42,2834,277,156,30,434,64,482,65,52,13,7,9,334,75,853,97,1631,128,1404,150,494,70,1070,136,907,104,1991,198,2165,196]
[null,"Less than $10,000",20,19,0,11,0,11,5,8,37,30,0,11,2,4,0,11,0,11,0,11,0,11,0,11,18,21,34,46,0,11,0,11,0,11,0,16,0,16]
[null,"$10,000 to $14,999",7,12,0,11,0,11,0,11,66,88,2,3,0,11,0,11,0,11,0,11,0,11,0,11,0,11,114,87,0,11,0,11,0,11,15,23,0,16]
[null,"$15,000 to $19,999",3,6,16,26,0,11,0,11,63,68,0,11,0,11,0,11,0,11,0,11,0,11,6,9,7,10,35,35,0,11,6,10,0,11,0,16,24,31]
[null,"$20,000 to $24,999",11,17,0,11,0,11,4,5,0,18,0,11,0,11,0,11,0,11,0,11,0,11,0,11,0,11,39,51,0,11,7,10,0,11,0,16,0,16]
[null,"$25,000 to $29,999",0,11,0,11,0,11,0,11,68,56,0,11,0,11,0,11,0,11,0,11,0,11,0,11,0,11,29,33,3,5,17,20,0,11,0,16,0,16]
[null,"$30,000 to $34,999",0,11,0,11,0,11,0,11,77,53,0,11,0,11,0,11,0,11,0,11,0,11,0,11,0,11,28,43,0,11,7,12,0,11,0,16,0,16]
[null,"$35,000 to $39,999",0,11,0,11,0,11,0,11,0,18,0,11,0,11,0,11,0,11,0,11,0,11,0,11,0,11,10,14,0,11,19,28,0,11,17,26,0,16]
[null,"$40,000 to $49,999",16,20,0,11,0,11,0,11,63,62,0,11,7,11,0,11,1,2,0,11,0,11,0,11,10,14,33,28,0,11,15,22,8,12,0,16,23,28]
[null,"$50,000 to $59,999",6,7,30,48,0,11,8,9,15,23,0,11,9,10,6,6,0,11,0,11,0,11,0,11,0,11,10,16,0,11,0,11,15,19,0,16,10,17]
[null,"$60,000 to $69,999",3,5,0,11,0,11,0,11,45,41,0,11,7,8,3,6,0,11,0,11,0,11,0,11,0,11,18,21,4,5,70,72,3,6,0,16,0,16]
[null,"$70,000 to $79,999",2,3,0,11,0,11,18,23,12,19,0,11,6,6,0,11,0,11,0,11,0,11,0,11,0,11,14,17,3,4,14,20,0,11,0,16,23,35]
[null,"$80,000 to $89,999",0,11,17,27,8,11,0,11,70,75,0,11,12,10,10,5,0,11,0,11,5,10,0,11,0,11,25,29,0,11,52,46,5,7,41,46,13,21]
[null,"$90,000 to $99,999",2,3,0,11,0,11,0,11,32,36,0,11,7,7,4,5,0,11,0,11,0,11,0,11,0,11,38,30,0,11,22,26,17,13,59,90,0,16]
[null,"$100,000 to $124,999",6,9,77,67,2,3,3,6,118,69,4,6,36,23,19,13,0,11,0,11,8,13,29,32,9,15,123,58,21,13,94,81,42,32,113,101,38,36]
[null,"$125,000 to $149,999",24,21,114,85,4,6,10,11,115,81,4,6,30,13,39,22,1,4,0,11,0,11,66,42,45,39,59,40,9,8,108,66,47,46,157,76,46,34]
[null,"$150,000 to $174,999",30,19,100,69,8,8,14,18,399,142,13,10,76,37,31,22,0,11,7,9,5,9,146,70,91,48,106,64,26,15,102,57,40,35,193,111,110,76]
[null,"$175,000 to $199,999",22,16,70,56,19,14,14,14,252,109,6,6,77,28,48,24,0,11,0,11,12,18,58,43,37,30,245,85,12,13,129,61,97,60,231,108,97,70]
[null,"$200,000 to $249,999",47,28,243,112,56,22,30,18,607,160,27,17,85,30,71,23,0,11,0,11,47,33,175,73,240,89,184,96,59,24,167,80,219,89,487,155,359,146]
[null,"$250,000 to $299,999",54,31,208,94,69,33,8,7,231,117,20,15,54,25,36,21,0,11,0,11,27,19,206,69,261,106,146,101,92,32,85,45,94,59,189,91,448,195]
[null,"$300,000 to $399,999",16,12,207,98,29,15,18,12,343,142,32,14,14,11,79,31,8,7,0,11,66,31,76,39,246,87,38,28,154,35,91,53,130,52,271,132,391,116]
[null,"$400,000 to $499,999",9,10,21,33,9,9,7,9,94,72,24,12,9,11,37,18,10,8,0,11,58,30,34,32,139,64,28,26,36,17,26,21,62,39,132,97,207,101]
[null,"$500,000 to $749,999",8,8,18,19,27,22,7,9,60,40,18,12,3,4,68,26,24,11,0,11,85,45,35,22,224,105,20,27,37,23,23,36,83,53,50,68,142,89]
[null,"$750,000 to $999,999",2,3,7,9,11,11,0,11,67,65,0,11,0,11,15,11,8,6,0,11,15,13,0,11,150,87,8,12,28,18,7,10,18,18,15,23,51,67]
[null,"$1,000,000 or more",0,11,0,11,0,11,0,11,0,18,6,7,0,11,16,13,0,11,0,11,6,9,22,35,154,65,20,22,10,9,9,14,27,21,21,36,183,95]
[]
[]
[]
[]
[null,"B25077.MEDIAN VALUE (Dollars)"]
[null,"Universe:  OWNER-OCCUPIED HOUSING UNITS"]
[null,"Data Set: 2008-2012 American Community Survey 5-Year Estimates"]
[]
[null,null,"Albany",null,"Bartlett",null,"Brookfield",null,"Chatham",null,"Conway",null,"Eaton",null,"Effingham",null,"Freedom",null,"Hale's Location",null,"Hart's Location",null,"Jackson",null,"Madison",null,"Moultonborough",null,"Ossipee",null,"Sandwich",null,"Tamworth",null,"Tuftonboro",null,"Wakefield",null,"Wolfeboro"]
[null," ","Estimate","Margin of Error","Estimate","Margin of Error","Estimate","Margin of Error","Estimate","Margin of Error","Estimate","Margin of Error","Estimate","Margin of Error","Estimate","Margin of Error","Estimate","Margin of Error","Estimate","Margin of Error","Estimate","Margin of Error","Estimate","Margin of Error","Estimate","Margin of Error","Estimate","Margin of Error","Estimate","Margin of Error","Estimate","Margin of Error","Estimate","Margin of Error","Estimate","Margin of Error","Estimate","Margin of Error","Estimate","Margin of Error"]
[]
[null,"Median value (dollars)",190900,34713,228800,27490,267400,13932,194600,38632,198500,16586,306300,42227,183400,10337,263900,43937,562500,97811,"-","**",395500,63727,234700,20987,339600,48342,171900,23350,311700,22057,175400,20472,241000,22606,217400,17711,287900,17900]

{"sheet":"ACS_Table_B25088","index":20,"n_rows":62,"n_cols":40,"rows_kept":62,"cut":false,"hidden":true,"merged":[]}
[null,"B25088. MEDIAN SELECTED MONTHLY OWNER COSTS (DOLLARS) BY MORTGAGE STATUS"]
[null,"Universe:  OWNER-OCCUPIED HOUSING UNITS"]
[null,"Data Set: 2018-2022 American Community Survey 5-Year Estimates"]
[]
[null,null,"Albany",null,"Bartlett",null,"Brookfield",null,"Chatham",null,"Conway",null,"Eaton",null,"Effingham",null,"Freedom",null,"Hale's Location",null,"Hart's Location",null,"Jackson",null,"Madison",null,"Moultonborough",null,"Ossipee",null,"Sandwich",null,"Tamworth",null,"Tuftonboro",null,"Wakefield",null,"Wolfeboro"]
[null," ","Estimate","Margin of Error","Estimate","Margin of Error","Estimate","Margin of Error","Estimate","Margin of Error","Estimate","Margin of Error","Estimate","Margin of Error","Estimate","Margin of Error","Estimate","Margin of Error","Estimate","Margin of Error","Estimate","Margin of Error","Estimate","Margin of Error","Estimate","Margin of Error","Estimate","Margin of Error","Estimate","Margin of Error","Estimate","Margin of Error","Estimate","Margin of Error","Estimate","Margin of Error","Estimate","Margin of Error","Estimate","Margin of Error"]
[null,"Median selected monthly owner costs (dollars)"]
[null,"Total:",912,234,1103,748,1470,265,1094,285,1078,156,910,208,1145,105,1193,153,963,746,669,396,1369,214,1404,167,1403,329,1235,143,845,369,1237,267,1279,220,1341,161,1490,243]
[null,"Housing units with a mortgage (dollars)",1607,237,1963,346,1894,156,1556,357,1681,144,1875,375,1821,287,1479,78,3267,239,"-","**",1732,483,1816,114,2089,448,1721,219,1722,137,1435,119,1903,159,1542,182,2144,289]
[null,"Housing units without a mortgage (dollars)",634,74,616,112,875,220,679,157,773,49,743,170,740,118,764,66,814,220,"-","**",1092,167,787,190,626,185,733,207,630,60,774,93,705,120,744,105,676,184]
[]
[]
[]
[]
[]
[]
[]
[]
[]
[]
[]
[]
[]
[]
[]
[]
[]
[]
[]
[]
[]
[]
[]
[]
[]
[]
[]
[]
[]
[null,"B25088. MEDIAN SELECTED MONTHLY OWNER COSTS (DOLLARS) BY MORTGAGE STATUS"]
[null,"Universe:  OWNER-OCCUPIED HOUSING UNITS"]
[null,"Data Set: 2013-2017 American Community Survey 5-Year Estimates"]
[]
[null,null,"Albany",null,"Bartlett",null,"Brookfield",null,"Chatham",null,"Conway",null,"Eaton",null,"Effingham",null,"Freedom",null,"Hale's Location",null,"Hart's Location",null,"Jackson",null,"Madison",null,"Moultonborough",null,"Ossipee",null,"Sandwich",null,"Tamworth",null,"Tuftonboro",null,"Wakefield",null,"Wolfeboro"]
[null," ","Estimate","Margin of Error","Estimate","Margin of Error","Estimate","Margin of Error","Estimate","Margin of Error","Estimate","Margin of Error","Estimate","Margin of Error","Estimate","Margin of Error","Estimate","Margin of Error","Estimate","Margin of Error","Estimate","Margin of Error","Estimate","Margin of Error","Estimate","Margin of Error","Estimate","Margin of Error","Estimate","Margin of Error","Estimate","Margin of Error","Estimate","Margin of Error","Estimate","Margin of Error","Estimate","Margin of Error","Estimate","Margin of Error"]
[null,"Median selected monthly owner costs (dollars)"]
[null,"Total:",836,282,936,103,1481,195,833,133,1025,136,1117,301,1055,135,895,150,788,167,750,340,1042,176,1153,252,1263,154,849,195,916,97,1039,157,938,193,1178,85,1133,189]
[null,"Housing units with a mortgage (dollars)",1305,153,1301,302,1697,101,1319,473,1403,86,1480,229,1396,101,1470,138,2167,1016,933,114,1558,299,1591,64,1665,130,1407,86,1402,166,1504,308,1488,182,1366,144,1597,168]
[null,"Housing units without a mortgage (dollars)",466,81,494,61,726,124,530,147,643,38,745,132,581,45,591,50,595,200,525,319,664,91,527,63,719,196,590,64,644,122,696,203,514,80,463,39,680,75]
[]
[]
[]
[null,"B25088. MEDIAN SELECTED MONTHLY OWNER COSTS (DOLLARS) BY MORTGAGE STATUS"]
[null,"Universe:  OWNER-OCCUPIED HOUSING UNITS"]
[null,"Data Set: 2008-2012 American Community Survey 5-Year Estimates"]
[]
[null,null,"Albany",null,"Bartlett",null,"Brookfield",null,"Chatham",null,"Conway",null,"Eaton",null,"Effingham",null,"Freedom",null,"Hale's Location",null,"Hart's Location",null,"Jackson",null,"Madison",null,"Moultonborough",null,"Ossipee",null,"Sandwich",null,"Tamworth",null,"Tuftonboro",null,"Wakefield",null,"Wolfeboro"]
[null," ","Estimate","Margin of Error","Estimate","Margin of Error","Estimate","Margin of Error","Estimate","Margin of Error","Estimate","Margin of Error","Estimate","Margin of Error","Estimate","Margin of Error","Estimate","Margin of Error","Estimate","Margin of Error","Estimate","Margin of Error","Estimate","Margin of Error","Estimate","Margin of Error","Estimate","Margin of Error","Estimate","Margin of Error","Estimate","Margin of Error","Estimate","Margin of Error","Estimate","Margin of Error","Estimate","Margin of Error","Estimate","Margin of Error"]
[null,"Median selected monthly owner costs (dollars)"]
[null,"Total:",700,171,780,128,1542,218,700,225,922,94,917,241,1006,173,922,71,950,365,270,84,933,87,1313,117,1235,188,968,164,966,104,896,112,975,209,1123,181,994,146]
[null,"Housing units with a mortgage (dollars)",1446,181,1109,127,1741,251,1545,265,1524,177,1514,206,1539,180,1314,134,1958,503,"-","**",1765,196,1484,125,1726,190,1439,253,1423,109,1532,254,1429,143,1495,138,1712,244]
[null,"Housing units without a mortgage (dollars)",466,24,403,145,677,92,567,172,593,54,570,78,476,62,664,120,572,66,"-","**",643,82,631,62,571,103,547,68,603,51,491,72,563,115,546,95,631,51]

{"sheet":"ACS_Table_B25091","index":21,"n_rows":219,"n_cols":40,"rows_kept":219,"cut":false,"hidden":true,"merged":[]}
[null,"B25091. MORTGAGE STATUS BY SELECTED MONTHLY OWNER COSTS AS A PERCENTAGE OF HOUSEHOLD INCOME IN THE PAST 12 MONTHS "]
[null,"Universe:  OWNER-OCCUPIED HOUSING UNITS"]
[null,"Data Set: 2018-2022 American Community Survey 5-Year Estimates"]
[]
[null,null,"Albany",null,"Bartlett",null,"Brookfield",null,"Chatham",null,"Conway",null,"Eaton",null,"Effingham",null,"Freedom",null,"Hale's Location",null,"Hart's Location",null,"Jackson",null,"Madison",null,"Moultonborough",null,"Ossipee",null,"Sandwich",null,"Tamworth",null,"Tuftonboro",null,"Wakefield",null,"Wolfeboro"]
[null," ","Estimate","Margin of Error","Estimate","Margin of Error","Estimate","Margin of Error","Estimate","Margin of Error","Estimate","Margin of Error","Estimate","Margin of Error","Estimate","Margin of Error","Estimate","Margin of Error","Estimate","Margin of Error","Estimate","Margin of Error","Estimate","Margin of Error","Estimate","Margin of Error","Estimate","Margin of Error","Estimate","Margin of Error","Estimate","Margin of Error","Estimate","Margin of Error","Estimate","Margin of Error","Estimate","Margin of Error","Estimate","Margin of Error"]
[null,"Total:",252,56,1376,221,231,57,141,36,3119,350,123,29,477,55,543,72,85,31,43,32,385,96,839,100,1880,213,1383,151,857,171,646,161,1005,95,2100,207,2165,270]
[null,"Housing units with a mortgage:",124,38,613,169,139,39,74,24,1570,266,45,18,257,52,275,56,36,22,29,27,177,60,503,81,995,146,849,128,315,71,398,123,518,107,1545,251,1180,243]
[null,"Less than 10.0 percent",14,13,56,57,12,10,8,7,109,74,6,6,3,4,7,7,11,16,0,12,14,23,68,54,104,60,73,48,31,21,26,27,41,45,132,78,58,54]
[null,"10.0 to 14.9 percent",15,10,85,90,22,20,8,7,156,81,7,6,41,30,74,32,8,9,0,12,11,18,93,76,249,91,240,105,64,30,61,74,30,23,419,246,151,84]
[null,"15.0 to 19.9 percent",21,15,146,115,28,12,12,9,416,152,4,5,77,37,24,18,2,3,7,11,59,26,95,44,165,89,104,70,98,57,149,88,79,51,277,128,84,65]
[null,"20.0 to 24.9 percent",15,14,94,79,15,12,12,11,97,53,9,9,23,16,41,22,2,3,18,24,49,35,74,39,53,62,148,61,38,21,35,33,70,33,121,83,92,85]
[null,"25.0 to 29.9 percent",8,13,25,25,13,9,9,10,61,32,5,7,13,10,24,14,3,4,0,12,15,21,53,41,98,49,47,37,9,8,0,12,124,93,117,65,162,85]
[null,"30.0 to 34.9 percent",18,19,34,54,7,7,14,12,132,98,0,12,4,5,13,14,1,3,0,12,3,5,18,15,67,55,43,40,19,13,49,58,25,18,132,102,149,115]
[null,"35.0 to 39.9 percent",21,18,0,12,9,8,4,5,91,67,3,4,21,18,10,8,0,12,0,12,0,12,0,12,95,69,65,47,17,21,7,9,0,12,62,73,64,59]
[null,"40.0 to 49.9 percent",0,12,58,63,16,14,1,3,220,144,2,3,25,16,26,15,0,12,0,12,0,12,54,38,47,50,23,27,16,15,0,12,60,61,98,93,174,101]
[null,"50.0 percent or more",12,9,115,92,17,10,6,5,288,183,9,9,50,28,56,34,4,4,4,7,26,23,40,32,103,65,106,63,23,15,71,53,89,51,187,114,246,163]
[null,"Not computed",0,12,0,12,0,12,0,12,0,17,0,12,0,12,0,12,5,8,0,12,0,12,8,9,14,17,0,12,0,12,0,12,0,12,0,17,0,17]
[null,"Housing units without a mortgage:",128,41,763,236,92,36,67,27,1549,321,78,24,220,46,268,57,49,23,14,17,208,73,336,88,885,189,534,162,542,173,248,100,487,105,555,201,985,237]
[null,"Less than 10.0 percent",51,30,275,149,20,13,28,16,424,205,28,14,86,31,103,37,24,16,10,17,50,36,167,69,418,130,54,58,335,170,47,35,175,71,221,126,232,106]
[null,"10.0 to 14.9 percent",24,19,89,100,24,17,19,11,245,129,23,14,41,22,51,21,3,4,4,5,54,38,53,31,128,70,180,108,72,31,51,44,116,49,80,58,290,152]
[null,"15.0 to 19.9 percent",7,7,222,170,12,9,1,3,220,99,10,9,25,17,23,14,8,9,0,12,11,16,51,37,127,64,48,54,44,29,29,27,40,25,71,52,108,103]
[null,"20.0 to 24.9 percent",7,6,16,22,5,5,13,11,63,50,4,6,6,6,36,30,2,3,0,12,24,22,23,23,62,38,34,39,13,10,26,26,27,23,0,17,58,49]
[null,"25.0 to 29.9 percent",7,11,44,70,23,26,6,9,156,170,5,5,25,17,18,20,0,12,0,12,0,12,0,12,39,50,58,66,18,15,13,21,16,23,13,21,42,66]
[null,"30.0 to 34.9 percent",0,12,0,12,0,12,0,12,63,59,2,3,6,5,2,5,2,3,0,12,3,4,13,13,16,22,12,18,16,15,15,23,12,20,19,30,16,26]
[null,"35.0 to 39.9 percent",9,12,0,12,2,3,0,12,0,17,1,3,6,7,7,7,8,9,0,12,16,19,0,12,7,10,43,48,3,6,47,57,11,13,0,17,15,23]
[null,"40.0 to 49.9 percent",3,4,41,63,2,3,0,12,191,118,0,12,4,5,14,16,0,12,0,12,8,12,0,12,0,12,9,18,15,14,0,12,57,39,29,40,13,19]
[null,"50.0 percent or more",20,23,76,81,4,6,0,12,177,116,5,5,13,14,10,12,2,3,0,12,42,55,29,20,88,112,96,71,26,17,20,22,33,29,122,121,211,124]
[null,"Not computed",0,12,0,12,0,12,0,12,10,19,0,12,8,12,4,7,0,12,0,12,0,12,0,12,0,12,0,12,0,12,0,12,0,12,0,17,0,17]
[]
[]
[]
[null,"Calculated B25091. MORTGAGE STATUS BY SELECTED MONTHLY OWNER COSTS AS A PERCENTAGE OF HOUSEHOLD INCOME IN THE PAST 12 MONTHS "]
[null,"Universe:  OWNER-OCCUPIED HOUSING UNITS"]
[null,{"$f":"B3","v":"Data Set: 2018-2022 American Community Survey 5-Year Estimates"}]
[]
[null,null,"Albany",null,"Bartlett",null,"Brookfield",null,"Chatham",null,"Conway",null,"Eaton",null,"Effingham",null,"Freedom",null,"Hale's Location",null,"Hart's Location",null,"Jackson",null,"Madison",null,"Moultonborough",null,"Ossipee",null,"Sandwich",null,"Tamworth",null,"Tuftonboro",null,"Wakefield",null,"Wolfeboro"]
[null," ","Estimate","Margin of Error","Estimate","Margin of Error","Estimate","Margin of Error","Estimate","Margin of Error","Estimate","Margin of Error","Estimate","Margin of Error","Estimate","Margin of Error","Estimate","Margin of Error","Estimate","Margin of Error","Estimate","Margin of Error","Estimate","Margin of Error","Estimate","Margin of Error","Estimate","Margin of Error","Estimate","Margin of Error","Estimate","Margin of Error","Estimate","Margin of Error","Estimate","Margin of Error","Estimate","Margin of Error","Estimate","Margin of Error"]
[null,"Total:",{"$f":"C7","v":252},{"$f":"D7","v":56},{"$f":"E7","v":1376},221,231,57,141,36,3119,350,123,29,477,55,543,72,85,31,43,32,385,96,{"$f":"Y7","v":839},100,1880,213,1383,151,857,171,646,161,1005,95,2100,207,2165,270]
[null,"Less than 10.0 percent",{"$f":"C9+C20","v":65},{"$f":"SQRT((D9^2)+(D20^2))","v":32.695565448543633},{"$f":"E9+E20","v":331},{"$f":"SQRT((F9^2)+(F20^2))","v":159.53056133543816},{"$f":"G9+G20","v":32},{"$f":"SQRT((H9^2)+(H20^2))","v":16.401219466856727},{"$f":"I9+I20","v":36},{"$f":"SQRT((J9^2)+(J20^2))","v":17.464249196572979},{"$f":"K9+K20","v":533},{"$f":"SQRT((L9^2)+(L20^2))","v":217.947241322298},{"$f":"M9+M20","v":34},{"$f":"SQRT((N9^2)+(N20^2))","v":15.231546211727817},{"$f":"O9+O20","v":89},{"$f":"SQRT((P9^2)+(P20^2))","v":31.256999216175569},{"$f":"Q9+Q20","v":110},{"$f":"SQRT((R9^2)+(R20^2))","v":37.656340767525464},{"$f":"S9+S20","v":35},{"$f":"SQRT((T9^2)+(T20^2))","v":22.627416997969522},{"$f":"U9+U20","v":10},{"$f":"SQRT((V9^2)+(V20^2))","v":20.808652046684813},{"$f":"W9+W20","v":64},{"$f":"SQRT((X9^2)+(X20^2))","v":42.720018726587654},{"$f":"Y9+Y20","v":235},{"$f":"SQRT((Z9^2)+(Z20^2))","v":87.618491199061395},{"$f":"AA9+AA20","v":522},{"$f":"SQRT((AB9^2)+(AB20^2))","v":143.17821063276352},{"$f":"AC9+AC20","v":127},{"$f":"SQRT((AD9^2)+(AD20^2))","v":75.286120898874842},{"$f":"AE9+AE20","v":366},{"$f":"SQRT((AF9^2)+(AF20^2))","v":171.29214809792072},{"$f":"AG9+AG20","v":73},{"$f":"SQRT((AH9^2)+(AH20^2))","v":44.204072210600685},{"$f":"AI9+AI20","v":216},{"$f":"SQRT((AJ9^2)+(AJ20^2))","v":84.059502734670033},{"$f":"AK9+AK20","v":353},{"$f":"SQRT((AL9^2)+(AL20^2))","v":148.18906842274163},{"$f":"AM9+AM20","v":290},{"$f":"SQRT((AN9^2)+(AN20^2))","v":118.96217886370441}]
[null,"10.0 to 14.9 percent",{"$f":"C10+C21","v":39},21.470910553583888,174,134.53624047073711,46,26.248809496813376,27,13.038404810405298,401,152.32202729743324,30,15.231546211727817,82,37.20215047547655,125,38.275318418009277,11,9.8488578017961039,4,13,65,42.047592083257278,146,82.079230015881606,377,114.80853626799707,420,150.6286825275983,136,43.139309220245984,112,86.092973000123536,146,54.12947441089743,499,252.74493071078598,441,173.66634676873929]
[null,"15.0 to 19.9 percent",28,16.552945357246848,368,205.24375751773792,40,15,13,9.4868329805051381,636,181.39735389470266,14,10.295630140987001,102,40.718546143004666,47,22.803508501982758,10,9.4868329805051381,7,16.278820596099706,70,30.528675044947494,146,57.489129407219238,292,109.62207806824317,152,88.408144421201371,142,63.953107821277925,178,92.048900047746358,119,56.797887284651708,348,138.15932831336434,192,121.79490958164057]
[null,"20.0 to 24.9 percent",22,15.231546211727817,110,82.006097334283623,20,13,25,15.556349186104045,160,72.862884927787476,13,10.816653826391969,29,17.088007490635061,77,37.20215047547655,4,4.2426406871192848,18,26.832815729997478,73,41.340053217188775,97,45.276925690687087,115,72.718635850791372,182,72.401657439591816,51,23.259406699226016,61,42.01190307520001,97,40.224370722237531,121,84.723078319900537,150,98.112180691288273]
[null,"25.0 to 29.9 percent",15,17.029386365926403,69,74.330343736592525,36,27.513632984395208,15,13.45362404707371,217,172.9855485293497,10,8.6023252670426267,38,19.723082923316021,42,24.413111231467404,3,12.649110640673518,0,16.970562748477139,15,24.186773244895647,53,42.720018726587654,137,70.007142492748557,105,75.663729752107784,27,17,13,24.186773244895647,140,95.801878895979911,130,68.308125431752259,204,107.61505470890214]
[null,"30.0 to 34.9 percent",18,22.472205054244231,34,55.317266743757322,7,13.892443989449804,14,16.970562748477139,195,114.38968484964018,2,12.369316876852981,10,7.0710678118654755,15,14.866068747318506,3,4.2426406871192848,0,16.970562748477139,6,6.4031242374328485,31,19.849433241279208,83,59.236812878479547,55,43.863424398922618,35,19.849433241279208,64,62.393909959225986,37,26.90724809414742,151,106.3202708800161,165,117.90250209389112]
[null,"35.0 to 39.9 percent",30,21.633307652783937,0,16.970562748477139,11,8.5440037453175304,4,13,91,69.123078635141823,4,5,27,19.313207915827967,17,10.63014581273465,8,15,0,16.970562748477139,16,22.472205054244231,0,16.970562748477139,102,69.72087205421343,108,67.178865724273734,20,21.840329667841555,54,57.706152185014034,11,17.691806012954132,62,74.953318805774032,79,63.324560795950255]
[null,"40.0 to 49.9 percent",3,12.649110640673518,99,89.095454429504983,18,14.317821063276353,1,12.369316876852981,411,186.17196351760379,2,12.369316876852981,29,16.763054614240211,40,21.931712199461309,0,16.970562748477139,0,16.970562748477139,8,16.970562748477139,54,39.849717690342551,47,51.419840528729765,32,32.449961479175904,31,20.518284528683193,0,16.970562748477139,117,72.401657439591816,127,101.23734488813898,187,102.77159140540736]
[null,"50.0 percent or more",{"$f":"C17+C28","v":32},24.698178070456937,191,122.57650672131263,21,11.661903789690601,6,13,465,216.6679487141557,14,10.295630140987001,63,31.304951684997057,66,36.055512754639892,6,5,4,13.892443989449804,68,59.615434243155519,69,37.735924528226413,191,129.49517365523704,202,94.921019800674287,49,22.671568097509269,91,57.384666941614292,122,58.668560575490517,309,166.24379687675568,457,204.80478510034868]
[null,"Not computed",{"$f":"C18+C29","v":0},16.970562748477139,0,16.970562748477139,0,16.970562748477139,0,16.970562748477139,10,25.495097567963924,0,16.970562748477139,8,16.970562748477139,4,13.892443989449804,5,14.422205101855956,0,16.970562748477139,0,16.970562748477139,8,15,14,20.808652046684813,0,16.970562748477139,0,16.970562748477139,0,16.970562748477139,0,16.970562748477139,0,24.041630560342615,0,24.041630560342615]
[]
[]
[]
[]
[null,"Calculated MONTHLY OWNER COSTS AS A PERCENTAGE OF HOUSEHOLD INCOME IN THE PAST 12 MONTHS "]
[null,"Universe:  OWNER-OCCUPIED HOUSING UNITS"]
[null,{"$f":"B3","v":"Data Set: 2018-2022 American Community Survey 5-Year Estimates"}]
[null,null,"Albany",null,"Bartlett",null,"Brookfield",null,"Chatham",null,"Conway",null,"Eaton",null,"Effingham",null,"Freedom",null,"Hale's Location",null,"Hart's Location",null,"Jackson",null,"Madison",null,"Moultonborough",null,"Ossipee",null,"Sandwich",null,"Tamworth",null,"Tuftonboro",null,"Wakefield",null,"Wolfeboro"]
[null," ","Estimate","Margin of Error","Estimate","Margin of Error","Estimate","Margin of Error","Estimate","Margin of Error","Estimate","Margin of Error","Estimate","Margin of Error","Estimate","Margin of Error","Estimate","Margin of Error","Estimate","Margin of Error","Estimate","Margin of Error","Estimate","Margin of Error","Estimate","Margin of Error","Estimate","Margin of Error","Estimate","Margin of Error","Estimate","Margin of Error","Estimate","Margin of Error","Estimate","Margin of Error","Estimate","Margin of Error","Estimate","Margin of Error"]
[null,"Total:",{"$f":"C39","v":252},{"$f":"D39","v":56},1376,221,231,57,141,36,3119,350,123,29,477,55,543,72,85,31,43,32,385,96,{"$f":"Y39","v":839},100,1880,213,1383,151,857,171,646,161,1005,95,2100,207,2165,270]
[null,"Less than 20% of HH Income",{"$f":"C40+C41+C42","v":132},{"$f":"SQRT((D40^2)+(D41^2)+(D42^2))","v":42.473521163190604},{"$f":"E40+E41+E42","v":873},{"$f":"SQRT((F40^2)+(F41^2)+(F42^2))","v":292.70292106502797},{"$f":"G40+G41+G42","v":118},{"$f":"SQRT((H40^2)+(H41^2)+(H42^2))","v":34.394767043839678},{"$f":"I40+I41+I42","v":76},{"$f":"SQRT((J40^2)+(J41^2)+(J42^2))","v":23.769728648009426},{"$f":"K40+K41+K42","v":1570},{"$f":"SQRT((L40^2)+(L41^2)+(L42^2))","v":321.88196594403979},{"$f":"M40+M41+M42","v":78},{"$f":"SQRT((N40^2)+(N41^2)+(N42^2))","v":23.874672772626646},{"$f":"O40+O41+O42","v":273},{"$f":"SQRT((P40^2)+(P41^2)+(P42^2))","v":63.395583442381849},{"$f":"Q40+Q41+Q42","v":282},{"$f":"SQRT((R40^2)+(R41^2)+(R42^2))","v":58.33523806414096},{"$f":"S40+S41+S42","v":56},{"$f":"SQRT((T40^2)+(T41^2)+(T42^2))","v":26.438608132804575},{"$f":"U40+U41+U42","v":21},{"$f":"SQRT((V40^2)+(V41^2)+(V42^2))","v":29.444863728670914},{"$f":"W40+W41+W42","v":199},{"$f":"SQRT((X40^2)+(X41^2)+(X42^2))","v":67.268120235368556},{"$f":"Y40+Y41+Y42","v":527},{"$f":"SQRT((Z40^2)+(Z41^2)+(Z42^2))","v":133.11273417671202},{"$f":"AA40+AA41+AA42","v":1191},{"$f":"SQRT((AB40^2)+(AB41^2)+(AB42^2))","v":213.77090541044166},{"$f":"AC40+AC41+AC42","v":699},{"$f":"SQRT((AD40^2)+(AD41^2)+(AD42^2))","v":190.1920082443003},{"$f":"AE40+AE41+AE42","v":644},{"$f":"SQRT((AF40^2)+(AF41^2)+(AF42^2))","v":187.86165122238228},{"$f":"AG40+AG41+AG42","v":363},{"$f":"SQRT((AH40^2)+(AH41^2)+(AH42^2))","v":133.56271934937533},{"$f":"AI40+AI41+AI42","v":481},{"$f":"SQRT((AJ40^2)+(AJ41^2)+(AJ42^2))","v":114.98695578194945},{"$f":"AK40+AK41+AK42","v":1200},{"$f":"SQRT((AL40^2)+(AL41^2)+(AL42^2))","v":323.92591745644557},{"$f":"AM40+AM41+AM42","v":923},{"$f":"SQRT((AN40^2)+(AN41^2)+(AN42^2))","v":243.19950657844683}]
[null," 20% to 29.9% of HH Income",{"$f":"C43+C44","v":37},{"$f":"SQRT((D43^2)+(D44^2))","v":22.847319317591726},{"$f":"E43+E44","v":179},{"$f":"SQRT((F43^2)+(F44^2))","v":110.67971810589327},{"$f":"G43+G44","v":56},{"$f":"SQRT((H43^2)+(H44^2))","v":30.430248109405877},{"$f":"I43+I44","v":40},{"$f":"SQRT((J43^2)+(J44^2))","v":20.566963801203133},{"$f":"K43+K44","v":377},{"$f":"SQRT((L43^2)+(L44^2))","v":187.70455508591155},{"$f":"M43+M44","v":23},{"$f":"SQRT((N43^2)+(N44^2))","v":13.820274961085254},{"$f":"O43+O44","v":67},{"$f":"SQRT((P43^2)+(P44^2))","v":26.095976701399778},{"$f":"Q43+Q44","v":119},{"$f":"SQRT((R43^2)+(R44^2))","v":44.497190922573978},{"$f":"S43+S44","v":7},{"$f":"SQRT((T43^2)+(T44^2))","v":13.341664064126334},{"$f":"U43+U44","v":18},{"$f":"SQRT((V43^2)+(V44^2))","v":31.749015732775089},{"$f":"W43+W44","v":88},{"$f":"SQRT((X43^2)+(X44^2))","v":47.89572005931219},{"$f":"Y43+Y44","v":150},{"$f":"SQRT((Z43^2)+(Z44^2))","v":62.249497989943663},{"$f":"AA43+AA44","v":252},{"$f":"SQRT((AB43^2)+(AB44^2))","v":100.94057657849989},{"$f":"AC43+AC44","v":287},{"$f":"SQRT((AD43^2)+(AD44^2))","v":104.72344532147518},{"$f":"AE43+AE44","v":78},{"$f":"SQRT((AF43^2)+(AF44^2))","v":28.809720581775871},{"$f":"AG43+AG44","v":74},{"$f":"SQRT((AH43^2)+(AH44^2))","v":48.47679857416329},{"$f":"AI43+AI44","v":237},{"$f":"SQRT((AJ43^2)+(AJ44^2))","v":103.90380166288432},{"$f":"AK43+AK44","v":251},{"$f":"SQRT((AL43^2)+(AL44^2))","v":108.83014288330233},{"$f":"AM43+AM44","v":354},{"$f":"SQRT((AN43^2)+(AN44^2))","v":145.62623390035191}]
[null," Less Than 30% of HH Income",{"$f":"C40+C41+C42+C43+C44","v":169},{"$f":"SQRT((D40^2)+(D41^2)+(D42^2)+(D43^2)+(D44^2))","v":48.228622207149982},{"$f":"E40+E41+E42+E43+E44","v":1052},{"$f":"SQRT((F40^2)+(F41^2)+(F42^2)+(F43^2)+(F44^2))","v":312.92970456637704},{"$f":"G40+G41+G42+G43+G44","v":174},{"$f":"SQRT((H40^2)+(H41^2)+(H42^2)+(H43^2)+(H44^2))","v":45.923850012820139},{"$f":"I40+I41+I42+I43+I44","v":116},{"$f":"SQRT((J40^2)+(J41^2)+(J42^2)+(J43^2)+(J44^2))","v":31.432467291003423},{"$f":"K40+K41+K42+K43+K44","v":1947},{"$f":"SQRT((L40^2)+(L41^2)+(L42^2)+(L43^2)+(L44^2))","v":372.61374102413345},{"$f":"M40+M41+M42+M43+M44","v":101},{"$f":"SQRT((N40^2)+(N41^2)+(N42^2)+(N43^2)+(N44^2))","v":27.586228448267445},{"$f":"O40+O41+O42+O43+O44","v":340},{"$f":"SQRT((P40^2)+(P41^2)+(P42^2)+(P43^2)+(P44^2))","v":68.556546004010443},{"$f":"Q40+Q41+Q42+Q43+Q44","v":401},{"$f":"SQRT((R40^2)+(R41^2)+(R42^2)+(R43^2)+(R44^2))","v":73.368930754100546},{"$f":"S40+S41+S42+S43+S44","v":63},{"$f":"SQRT((T40^2)+(T41^2)+(T42^2)+(T43^2)+(T44^2))","v":29.614185789921695},{"$f":"U40+U41+U42+U43+U44","v":39},{"$f":"SQRT((V40^2)+(V41^2)+(V42^2)+(V43^2)+(V44^2))","v":43.301270189221931},{"$f":"W40+W41+W42+W43+W44","v":287},{"$f":"SQRT((X40^2)+(X41^2)+(X42^2)+(X43^2)+(X44^2))","v":82.577236572798924},{"$f":"Y40+Y41+Y42+Y43+Y44","v":677},{"$f":"SQRT((Z40^2)+(Z41^2)+(Z42^2)+(Z43^2)+(Z44^2))","v":146.94897073474181},{"$f":"AA40+AA41+AA42+AA43+AA44","v":1443},{"$f":"SQRT((AB40^2)+(AB41^2)+(AB42^2)+(AB43^2)+(AB44^2))","v":236.40431468143723},{"$f":"AC40+AC41+AC42+AC43+AC44","v":986},{"$f":"SQRT((AD40^2)+(AD41^2)+(AD42^2)+(AD43^2)+(AD44^2))","v":217.11747972008149},{"$f":"AE40+AE41+AE42+AE43+AE44","v":722},{"$f":"SQRT((AF40^2)+(AF41^2)+(AF42^2)+(AF43^2)+(AF44^2))","v":190.057885919001},{"$f":"AG40+AG41+AG42+AG43+AG44","v":437},{"$f":"SQRT((AH40^2)+(AH41^2)+(AH42^2)+(AH43^2)+(AH44^2))","v":142.08800090085018},{"$f":"AI40+AI41+AI42+AI43+AI44","v":718},{"$f":"SQRT((AJ40^2)+(AJ41^2)+(AJ42^2)+(AJ43^2)+(AJ44^2))","v":154.97741770980699},{"$f":"AK40+AK41+AK42+AK43+AK44","v":1451},{"$f":"SQRT((AL40^2)+(AL41^2)+(AL42^2)+(AL43^2)+(AL44^2))","v":341.71918295582998},{"$f":"AM40+AM41+AM42+AM43+AM44","v":1277},{"$f":"SQRT((AN40^2)+(AN41^2)+(AN42^2)+(AN43^2)+(AN44^2))","v":283.46604734958999}]
[null," 30% or More of HH Income",{"$f":"C45+C46+C47+C48","v":83},{"$f":"SQRT((D45^2)+(D46^2)+(D47^2)+(D48^2))","v":41.749251490296203},{"$f":"E45+E46+E47+E48","v":324},{"$f":"SQRT((F45^2)+(F46^2)+(F47^2)+(F48^2))","v":162.20665830970071},{"$f":"G45+G46+G47+G48","v":57},{"$f":"SQRT((H45^2)+(H46^2)+(H47^2)+(H48^2))","v":24.637369989509839},{"$f":"I45+I46+I47+I48","v":25},{"$f":"SQRT((J45^2)+(J46^2)+(J47^2)+(J48^2))","v":27.910571473905723},{"$f":"K45+K46+K47+K48","v":1162},{"$f":"SQRT((L45^2)+(L46^2)+(L47^2)+(L48^2))","v":315.38547842283418},{"$f":"M45+M46+M47+M48","v":22},{"$f":"SQRT((N45^2)+(N46^2)+(N47^2)+(N48^2))","v":20.90454496036687},{"$f":"O45+O46+O47+O48","v":129},{"$f":"SQRT((P45^2)+(P46^2)+(P47^2)+(P48^2))","v":41.036569057366385},{"$f":"Q45+Q46+Q47+Q48","v":138},{"$f":"SQRT((R45^2)+(R46^2)+(R47^2)+(R48^2))","v":45.989129150267672},{"$f":"S45+S46+S47+S48","v":17},{"$f":"SQRT((T45^2)+(T46^2)+(T47^2)+(T48^2))","v":23.57965224510319},{"$f":"U45+U46+U47+U48","v":4},{"$f":"SQRT((V45^2)+(V46^2)+(V47^2)+(V48^2))","v":32.511536414017712},{"$f":"W45+W46+W47+W48","v":98},{"$f":"SQRT((X45^2)+(X46^2)+(X47^2)+(X48^2))","v":66.241980646716783},{"$f":"Y45+Y46+Y47+Y48","v":154},{"$f":"SQRT((Z45^2)+(Z46^2)+(Z47^2)+(Z48^2))","v":60.778285596090974},{"$f":"AA45+AA46+AA47+AA48","v":423},{"$f":"SQRT((AB45^2)+(AB46^2)+(AB47^2)+(AB48^2))","v":166.68233259706921},{"$f":"AC45+AC46+AC47+AC48","v":397},{"$f":"SQRT((AD45^2)+(AD46^2)+(AD47^2)+(AD48^2))","v":128.4523257866513},{"$f":"AE45+AE46+AE47+AE48","v":135},{"$f":"SQRT((AF45^2)+(AF46^2)+(AF47^2)+(AF48^2))","v":42.497058721751557},{"$f":"AG45+AG46+AG47+AG48","v":209},{"$f":"SQRT((AH45^2)+(AH46^2)+(AH47^2)+(AH48^2))","v":103.94229168149026},{"$f":"AI45+AI46+AI47+AI48","v":287},{"$f":"SQRT((AJ45^2)+(AJ46^2)+(AJ47^2)+(AJ48^2))","v":98.595131725658746},{"$f":"AK45+AK46+AK47+AK48","v":649},{"$f":"SQRT((AL45^2)+(AL46^2)+(AL47^2)+(AL48^2))","v":234.11108474397363},{"$f":"AM45+AM46+AM47+AM48","v":888},{"$f":"SQRT((AN45^2)+(AN46^2)+(AN47^2)+(AN48^2))","v":265.36390108679063}]
[null," 30% to 34.9% of HH Income",{"$f":"C45","v":18},{"$f":"D45","v":22.472205054244231},{"$f":"E45","v":34},55.317266743757322,7,13.892443989449804,14,16.970562748477139,195,114.38968484964018,2,12.369316876852981,10,7.0710678118654755,15,14.866068747318506,3,4.2426406871192848,0,16.970562748477139,6,6.4031242374328485,{"$f":"Y45","v":31},19.849433241279208,83,59.236812878479547,55,43.863424398922618,35,19.849433241279208,64,62.393909959225986,37,26.90724809414742,151,106.3202708800161,165,117.90250209389112]
[null," Less Than 35% of HH Income",{"$f":"C40+C41+C42+C43+C44+C45","v":187},{"$f":"SQRT((D40^2)+(D41^2)+(D42^2)+(D43^2)+(D44^2)+(D45^2))","v":53.207142377692115},{"$f":"E40+E41+E42+E43+E44+E45","v":1086},{"$f":"SQRT((F40^2)+(F41^2)+(F42^2)+(F43^2)+(F44^2)+(F45^2))","v":317.78137138605217},{"$f":"G40+G41+G42+G43+G44+G45","v":181},{"$f":"SQRT((H40^2)+(H41^2)+(H42^2)+(H43^2)+(H44^2)+(H45^2))","v":47.979162143580623},{"$f":"I40+I41+I42+I43+I44+I45","v":130},{"$f":"SQRT((J40^2)+(J41^2)+(J42^2)+(J43^2)+(J44^2)+(J45^2))","v":35.7211421989835},{"$f":"K40+K41+K42+K43+K44+K45","v":2142},{"$f":"SQRT((L40^2)+(L41^2)+(L42^2)+(L43^2)+(L44^2)+(L45^2))","v":389.77685924128434},{"$f":"M40+M41+M42+M43+M44+M45","v":103},{"$f":"SQRT((N40^2)+(N41^2)+(N42^2)+(N43^2)+(N44^2)+(N45^2))","v":30.232432915661949},{"$f":"O40+O41+O42+O43+O44+O45","v":350},{"$f":"SQRT((P40^2)+(P41^2)+(P42^2)+(P43^2)+(P44^2)+(P45^2))","v":68.920243760451115},{"$f":"Q40+Q41+Q42+Q43+Q44+Q45","v":416},{"$f":"SQRT((R40^2)+(R41^2)+(R42^2)+(R43^2)+(R44^2)+(R45^2))","v":74.85986908885161},{"$f":"S40+S41+S42+S43+S44+S45","v":66},{"$f":"SQRT((T40^2)+(T41^2)+(T42^2)+(T43^2)+(T44^2)+(T45^2))","v":29.916550603303182},{"$f":"U40+U41+U42+U43+U44+U45","v":39},{"$f":"SQRT((V40^2)+(V41^2)+(V42^2)+(V43^2)+(V44^2)+(V45^2))","v":46.508063816933941},{"$f":"W40+W41+W42+W43+W44+W45","v":293},{"$f":"SQRT((X40^2)+(X41^2)+(X42^2)+(X43^2)+(X44^2)+(X45^2))","v":82.82511696339462},{"$f":"Y40+Y41+Y42+Y43+Y44+Y45","v":708},{"$f":"SQRT((Z40^2)+(Z41^2)+(Z42^2)+(Z43^2)+(Z44^2)+(Z45^2))","v":148.28351223247984},{"$f":"AA40+AA41+AA42+AA43+AA44+AA45","v":1526},{"$f":"SQRT((AB40^2)+(AB41^2)+(AB42^2)+(AB43^2)+(AB44^2)+(AB45^2))","v":243.7129459015257},{"$f":"AC40+AC41+AC42+AC43+AC44+AC45","v":1041},{"$f":"SQRT((AD40^2)+(AD41^2)+(AD42^2)+(AD43^2)+(AD44^2)+(AD45^2))","v":221.50395030337492},{"$f":"AE40+AE41+AE42+AE43+AE44+AE45","v":757},{"$f":"SQRT((AF40^2)+(AF41^2)+(AF42^2)+(AF43^2)+(AF44^2)+(AF45^2))","v":191.09160107131868},{"$f":"AG40+AG41+AG42+AG43+AG44+AG45","v":501},{"$f":"SQRT((AH40^2)+(AH41^2)+(AH42^2)+(AH43^2)+(AH44^2)+(AH45^2))","v":155.18376203714098},{"$f":"AI40+AI41+AI42+AI43+AI44+AI45","v":755},{"$f":"SQRT((AJ40^2)+(AJ41^2)+(AJ42^2)+(AJ43^2)+(AJ44^2)+(AJ45^2))","v":157.29589950154454},{"$f":"AK40+AK41+AK42+AK43+AK44+AK45","v":1602},{"$f":"SQRT((AL40^2)+(AL41^2)+(AL42^2)+(AL43^2)+(AL44^2)+(AL45^2))","v":357.87707386755022},{"$f":"AM40+AM41+AM42+AM43+AM44+AM45","v":1442},{"$f":"SQRT((AN40^2)+(AN41^2)+(AN42^2)+(AN43^2)+(AN44^2)+(AN45^2))","v":307.00814321447564}]
[null," 35% or More of HH Income",{"$f":"C46+C47+C48","v":65},{"$f":"SQRT((D46^2)+(D47^2)+(D48^2))","v":35.185224171518364},{"$f":"E46+E47+E48","v":290},{"$f":"SQRT((F46^2)+(F47^2)+(F48^2))","v":152.4827859136893},{"$f":"G46+G47+G48","v":50},{"$f":"SQRT((H46^2)+(H47^2)+(H48^2))","v":20.346989949375804},{"$f":"I46+I47+I48","v":11},{"$f":"SQRT((J46^2)+(J47^2)+(J48^2))","v":22.158519806160339},{"$f":"K46+K47+K48","v":967},{"$f":"SQRT((L46^2)+(L47^2)+(L48^2))","v":293.90985012414944},{"$f":"M46+M47+M48","v":20},{"$f":"SQRT((N46^2)+(N47^2)+(N48^2))","v":16.852299546352718},{"$f":"O46+O47+O48","v":119},{"$f":"SQRT((P46^2)+(P47^2)+(P48^2))","v":40.422765862815474},{"$f":"Q46+Q47+Q48","v":123},{"$f":"SQRT((R46^2)+(R47^2)+(R48^2))","v":43.520110293977886},{"$f":"S46+S47+S48","v":14},{"$f":"SQRT((T46^2)+(T47^2)+(T48^2))","v":23.194827009486403},{"$f":"U46+U47+U48","v":4},{"$f":"SQRT((V46^2)+(V47^2)+(V48^2))","v":27.730849247724091},{"$f":"W46+W47+W48","v":92},{"$f":"SQRT((X46^2)+(X47^2)+(X48^2))","v":65.931782927507726},{"$f":"Y46+Y47+Y48","v":123},{"$f":"SQRT((Z46^2)+(Z47^2)+(Z48^2))","v":57.445626465380286},{"$f":"AA46+AA47+AA48","v":340},{"$f":"SQRT((AB46^2)+(AB47^2)+(AB48^2))","v":155.80115532305913},{"$f":"AC46+AC47+AC48","v":342},{"$f":"SQRT((AD46^2)+(AD47^2)+(AD48^2))","v":120.73110618229256},{"$f":"AE46+AE47+AE48","v":100},{"$f":"SQRT((AF46^2)+(AF47^2)+(AF48^2))","v":37.576588456111871},{"$f":"AG46+AG47+AG48","v":145},{"$f":"SQRT((AH46^2)+(AH47^2)+(AH48^2))","v":83.132424480463698},{"$f":"AI46+AI47+AI48","v":250},{"$f":"SQRT((AJ46^2)+(AJ47^2)+(AJ48^2))","v":94.8525170989152},{"$f":"AK46+AK47+AK48","v":498},{"$f":"SQRT((AL46^2)+(AL47^2)+(AL48^2))","v":208.57612519173904},{"$f":"AM46+AM47+AM48","v":723},{"$f":"SQRT((AN46^2)+(AN47^2)+(AN48^2))","v":237.73304355936725}]
[null," 50% or More of HH Income",{"$f":"C48","v":32},{"$f":"D48","v":24.698178070456937},{"$f":"E48","v":191},122.57650672131263,21,11.661903789690601,6,13,465,216.6679487141557,14,10.295630140987001,63,31.304951684997057,66,36.055512754639892,6,5,4,13.892443989449804,68,59.615434243155519,{"$f":"Y48","v":69},37.735924528226413,191,129.49517365523704,202,94.921019800674287,49,22.671568097509269,91,57.384666941614292,122,58.668560575490517,309,166.24379687675568,457,204.80478510034868]
[null,"Not computed",{"$f":"C49","v":0},{"$f":"D49","v":16.970562748477139},0,16.970562748477139,0,16.970562748477139,0,16.970562748477139,10,25.495097567963924,0,16.970562748477139,8,16.970562748477139,4,13.892443989449804,5,14.422205101855956,0,16.970562748477139,0,16.970562748477139,{"$f":"Y49","v":8},15,14,20.808652046684813,0,16.970562748477139,0,16.970562748477139,0,16.970562748477139,0,16.970562748477139,0,24.041630560342615,0,24.041630560342615]
[]
[]
[]
[]
[]
[]
[]
[]
[]
[]
[]
[]
[null,"B25091. MORTGAGE STATUS BY SELECTED MONTHLY OWNER COSTS AS A PERCENTAGE OF HOUSEHOLD INCOME IN THE PAST 12 MONTHS "]
[null,"Universe:  OWNER-OCCUPIED HOUSING UNITS"]
[null,"Data Set: 2013-2017 American Community Survey 5-Year Estimates"]
[]
[null,null,"Albany",null,"Bartlett",null,"Brookfield",null,"Chatham",null,"Conway",null,"Eaton",null,"Effingham",null,"Freedom",null,"Hale's Location",null,"Hart's Location",null,"Jackson",null,"Madison",null,"Moultonborough",null,"Ossipee",null,"Sandwich",null,"Tamworth",null,"Tuftonboro",null,"Wakefield",null,"Wolfeboro"]
[null," ","Estimate","Margin of Error","Estimate","Margin of Error","Estimate","Margin of Error","Estimate","Margin of Error","Estimate","Margin of Error","Estimate","Margin of Error","Estimate","Margin of Error","Estimate","Margin of Error","Estimate","Margin of Error","Estimate","Margin of Error","Estimate","Margin of Error","Estimate","Margin of Error","Estimate","Margin of Error","Estimate","Margin of Error","Estimate","Margin of Error","Estimate","Margin of Error","Estimate","Margin of Error","Estimate","Margin of Error","Estimate","Margin of Error"]
[null,"Total:",270,43,972,176,290,65,124,27,3210,230,139,33,495,59,502,65,79,24,18,14,365,82,894,105,1498,124,1580,173,513,73,937,124,841,100,1841,183,2302,218]
[null,"Housing units with a mortgage:",143,37,625,138,204,60,63,27,1853,280,67,24,280,48,243,49,30,15,8,9,179,64,518,91,833,152,659,148,251,51,494,144,465,72,1309,214,1141,186]
[null,"Less than 10.0 percent",10,7,51,41,4,8,4,4,109,86,2,3,21,23,10,15,1,4,0,11,22,22,28,31,58,41,14,21,16,17,14,20,17,23,60,58,129,95]
[null,"10.0 to 14.9 percent",39,21,73,67,24,16,17,13,297,153,6,6,23,15,36,17,3,4,3,5,42,28,44,25,114,63,66,45,44,28,116,96,60,35,173,119,136,95]
[null,"15.0 to 19.9 percent",18,12,101,67,54,29,7,7,272,86,9,9,60,22,30,16,7,6,2,4,38,32,138,57,161,65,217,108,43,23,36,41,69,34,155,87,211,105]
[null,"20.0 to 24.9 percent",21,13,71,58,43,23,16,14,294,137,8,7,39,17,31,15,5,5,0,11,21,21,57,36,215,76,80,50,38,21,111,94,94,44,254,136,184,105]
[null,"25.0 to 29.9 percent",7,7,121,67,15,15,10,8,314,149,13,13,50,28,32,20,1,3,3,6,10,17,84,43,80,58,122,83,35,22,59,45,59,26,144,83,104,80]
[null,"30.0 to 34.9 percent",8,7,124,81,25,20,1,3,88,63,9,12,40,23,24,19,1,3,0,11,0,11,77,45,19,19,40,41,16,11,16,22,23,16,85,67,154,127]
[null,"35.0 to 39.9 percent",4,6,0,11,19,15,3,4,105,78,6,7,6,7,19,17,1,4,0,11,0,11,14,19,57,52,22,23,13,12,0,11,35,34,71,85,17,27]
[null,"40.0 to 49.9 percent",14,14,0,11,6,7,3,4,117,58,12,12,28,16,8,9,3,4,0,11,23,22,44,37,41,28,42,34,5,6,14,21,38,29,165,113,91,52]
[null,"50.0 percent or more",22,18,84,78,14,10,2,3,257,108,2,3,13,17,53,31,8,6,0,11,23,24,32,25,88,50,56,32,41,26,128,101,55,40,202,124,115,106]
[null,"Not computed",0,11,0,11,0,11,0,11,0,18,0,11,0,11,0,11,0,11,0,11,0,11,0,11,0,11,0,11,0,11,0,11,15,24,0,16,0,16]
[null,"Housing units without a mortgage:",127,37,347,135,86,31,61,23,1357,257,72,27,215,46,259,56,49,18,10,10,186,61,376,98,665,109,921,188,262,50,443,139,376,92,532,178,1161,231]
[null,"Less than 10.0 percent",55,25,98,64,13,10,30,12,461,157,35,18,33,18,113,38,22,12,4,7,55,30,77,34,305,89,169,63,108,34,107,59,149,50,280,133,315,137]
[null,"10.0 to 14.9 percent",29,19,77,70,33,15,12,9,338,145,5,5,28,14,48,27,6,6,0,11,49,36,125,60,59,33,179,93,52,24,95,86,71,40,24,27,230,102]
[null,"15.0 to 19.9 percent",0,11,69,57,20,18,8,8,124,84,5,7,43,24,30,19,11,10,0,11,29,25,64,49,73,50,192,103,29,16,27,36,32,17,31,33,169,94]
[null,"20.0 to 24.9 percent",5,6,32,40,8,8,3,4,54,68,9,7,47,24,13,10,4,4,0,11,3,5,39,38,90,59,64,53,32,17,128,108,33,26,40,45,157,105]
[null,"25.0 to 29.9 percent",6,6,61,61,0,11,2,5,160,119,6,7,15,11,19,18,0,11,0,11,23,22,6,8,16,18,12,21,12,9,19,22,5,7,73,81,8,12]
[null,"30.0 to 34.9 percent",0,11,0,11,0,11,0,11,76,71,2,3,3,5,18,10,2,3,2,3,0,11,0,11,52,46,37,31,13,10,0,11,6,9,34,38,88,93]
[null,"35.0 to 39.9 percent",11,15,0,11,0,11,0,11,40,33,0,11,4,6,6,8,0,11,0,11,0,11,29,35,9,14,105,78,6,5,0,11,6,9,0,16,71,93]
[null,"40.0 to 49.9 percent",10,12,0,11,0,11,0,11,30,25,0,11,4,5,5,7,2,5,4,6,0,11,5,8,22,35,56,40,7,7,0,11,17,26,0,16,17,27]
[null,"50.0 percent or more",11,9,10,15,12,15,3,6,74,62,10,7,32,23,7,7,2,3,0,11,24,28,18,16,28,21,107,81,3,5,67,50,40,32,31,35,83,86]
[null,"Not computed",0,11,0,11,0,11,3,5,0,18,0,11,6,6,0,11,0,11,0,11,3,4,13,15,11,16,0,11,0,11,0,11,17,16,19,30,23,38]
[]
[]
[]
[null,"Calculated B25091. MORTGAGE STATUS BY SELECTED MONTHLY OWNER COSTS AS A PERCENTAGE OF HOUSEHOLD INCOME IN THE PAST 12 MONTHS "]
[null,"Universe:  OWNER-OCCUPIED HOUSING UNITS"]
[null,{"$f":"B83","v":"Data Set: 2013-2017 American Community Survey 5-Year Estimates"}]
[]
[null,null,"Albany",null,"Bartlett",null,"Brookfield",null,"Chatham",null,"Conway",null,"Eaton",null,"Effingham",null,"Freedom",null,"Hale's Location",null,"Hart's Location",null,"Jackson",null,"Madison",null,"Moultonborough",null,"Ossipee",null,"Sandwich",null,"Tamworth",null,"Tuftonboro",null,"Wakefield",null,"Wolfeboro"]
[null," ","Estimate","Margin of Error","Estimate","Margin of Error","Estimate","Margin of Error","Estimate","Margin of Error","Estimate","Margin of Error","Estimate","Margin of Error","Estimate","Margin of Error","Estimate","Margin of Error","Estimate","Margin of Error","Estimate","Margin of Error","Estimate","Margin of Error","Estimate","Margin of Error","Estimate","Margin of Error","Estimate","Margin of Error","Estimate","Margin of Error","Estimate","Margin of Error","Estimate","Margin of Error","Estimate","Margin of Error","Estimate","Margin of Error"]
[null,"Total:",{"$f":"C87","v":270},{"$f":"D87","v":43},{"$f":"E87","v":972},176,290,65,124,27,3210,230,139,33,495,59,502,65,79,24,18,14,365,82,{"$f":"Y87","v":894},105,1498,124,1580,173,513,73,937,124,841,100,1841,183,2302,218]
[null,"Less than 10.0 percent",{"$f":"C89+C100","v":65},{"$f":"SQRT((D89^2)+(D100^2))","v":25.96150997149434},{"$f":"E89+E100","v":149},{"$f":"SQRT((F89^2)+(F100^2))","v":76.006578662639456},{"$f":"G89+G100","v":17},{"$f":"SQRT((H89^2)+(H100^2))","v":12.806248474865697},{"$f":"I89+I100","v":34},{"$f":"SQRT((J89^2)+(J100^2))","v":12.649110640673518},{"$f":"K89+K100","v":570},{"$f":"SQRT((L89^2)+(L100^2))","v":179.0111728356641},{"$f":"M89+M100","v":37},{"$f":"SQRT((N89^2)+(N100^2))","v":18.248287590894659},{"$f":"O89+O100","v":54},{"$f":"SQRT((P89^2)+(P100^2))","v":29.206163733020468},{"$f":"Q89+Q100","v":123},{"$f":"SQRT((R89^2)+(R100^2))","v":40.853396431630991},{"$f":"S89+S100","v":23},{"$f":"SQRT((T89^2)+(T100^2))","v":12.649110640673518},{"$f":"U89+U100","v":4},{"$f":"SQRT((V89^2)+(V100^2))","v":13.038404810405298},{"$f":"W89+W100","v":77},{"$f":"SQRT((X89^2)+(X100^2))","v":37.20215047547655},{"$f":"Y89+Y100","v":105},{"$f":"SQRT((Z89^2)+(Z100^2))","v":46.010868281309364},{"$f":"AA89+AA100","v":363},{"$f":"SQRT((AB89^2)+(AB100^2))","v":97.989795387070785},{"$f":"AC89+AC100","v":183},{"$f":"SQRT((AD89^2)+(AD100^2))","v":66.407830863535963},{"$f":"AE89+AE100","v":124},{"$f":"SQRT((AF89^2)+(AF100^2))","v":38.013155617496423},{"$f":"AG89+AG100","v":121},{"$f":"SQRT((AH89^2)+(AH100^2))","v":62.297672508690084},{"$f":"AI89+AI100","v":166},{"$f":"SQRT((AJ89^2)+(AJ100^2))","v":55.036351623268054},{"$f":"AK89+AK100","v":340},{"$f":"SQRT((AL89^2)+(AL100^2))","v":145.09651959988565},{"$f":"AM89+AM100","v":444},{"$f":"SQRT((AN89^2)+(AN100^2))","v":166.715326230074}]
[null,"10.0 to 14.9 percent",{"$f":"C90+C101","v":68},28.319604517012593,150,96.896852374058057,57,21.931712199461309,29,15.811388300841896,635,210.79373804740976,11,7.810249675906654,51,20.518284528683193,84,31.906112267087632,9,7.2111025509279782,3,12.083045973594572,91,45.607017003965517,169,65,173,71.119617546778187,245,103.31505214633539,96,36.878177829171548,211,128.8875478857442,131,53.150729063673246,197,122.0245876862528,366,139.38794782907166]
[null,"15.0 to 19.9 percent",18,16.278820596099706,170,87.965902484996988,74,34.132096331752024,15,10.63014581273465,396,120.21647141718975,14,11.401754250991379,103,32.557641192199412,60,24.839484696748443,18,11.661903789690601,2,11.704699910719626,67,40.607881008493905,202,75.166481891864535,234,82.006097334283623,409,149.24141516348604,72,28.0178514522438,63,54.561891462814962,101,38.013155617496423,186,93.048374515624943,380,140.92906016858268]
[null,"20.0 to 24.9 percent",26,14.317821063276353,103,70.455659815234142,51,24.351591323771842,19,14.560219778561036,348,152.9477034806342,17,9.8994949366116654,86,29.410882339705484,44,18.027756377319946,9,6.4031242374328485,0,15.556349186104045,24,21.587033144922902,96,52.345009313209601,305,96.213304693269947,144,72.862884927787476,70,27.018512172212592,239,143.17821063276352,127,51.107729356722551,294,143.25152704247171,341,148.49242404917499]
[null,"25.0 to 29.9 percent",13,9.2195444572928871,182,90.609050320594349,15,18.601075237738275,12,9.4339811320566032,474,190.68822721919673,19,14.7648230602334,65,30.083217912982647,51,26.90724809414742,1,11.401754250991379,3,12.529964086141668,33,27.802877548915689,90,43.737855457258078,96,60.728905802755904,134,85.615419172015976,47,23.769728648009426,78,50.089919145472777,64,26.92582403567252,217,115.97413504743201,112,80.894993664626739]
[null,"30.0 to 34.9 percent",8,13.038404810405298,124,81.743501270743224,25,22.825424421026653,1,11.401754250991379,164,94.921019800674287,11,12.369316876852981,43,23.53720459187964,42,21.470910553583888,3,4.2426406871192848,2,11.401754250991379,0,15.556349186104045,77,46.324939287601879,71,49.769468552517218,77,51.400389103585589,29,14.866068747318506,16,24.596747752497688,29,18.357559750685819,119,77.025969646606853,242,157.4102919125684]
[null,"35.0 to 39.9 percent",15,16.15549442140351,0,15.556349186104045,19,18.601075237738275,3,11.704699910719626,145,84.693565280958623,6,13.038404810405298,10,9.2195444572928871,25,18.788294228055936,1,11.704699910719626,0,15.556349186104045,0,15.556349186104045,43,39.824615503479755,66,53.851648071345039,127,81.320354155647891,19,13,0,15.556349186104045,41,35.171010790137949,71,86.49277426467485,88,96.84007434941384]
[null,"40.0 to 49.9 percent",24,18.439088914585774,0,15.556349186104045,6,13.038404810405298,3,11.704699910719626,147,63.158530698552511,12,16.278820596099706,32,16.763054614240211,13,11.401754250991379,5,6.4031242374328485,4,12.529964086141668,23,24.596747752497688,49,37.8549864614954,63,44.82186966202994,98,52.497618993626752,12,9.2195444572928871,14,23.706539182259394,55,38.948684188300895,165,114.12712210513327,108,58.591808301161009]
[null,"50.0 percent or more",{"$f":"C97+C108","v":33},20.124611797498108,94,79.429213769242352,26,18.027756377319946,5,6.7082039324993694,331,124.53112060846478,12,7.6157731058639087,45,28.600699292150182,60,31.780497164141408,10,6.7082039324993694,0,15.556349186104045,47,36.878177829171548,50,29.681644159311659,116,54.230987451824994,163,87.091905479212016,44,26.476404589747453,195,112.69871339105873,95,51.224993899462788,233,128.84486796143648,198,136.49908424601244]
[null,"Not computed",{"$f":"C98+C109","v":0},15.556349186104045,0,15.556349186104045,0,15.556349186104045,3,12.083045973594572,0,25.45584412271571,0,15.556349186104045,6,12.529964086141668,0,15.556349186104045,0,15.556349186104045,0,15.556349186104045,3,11.704699910719626,13,18.601075237738275,11,19.416487838947599,0,15.556349186104045,0,15.556349186104045,0,15.556349186104045,32,28.844410203711913,19,34,23,41.231056256176608]
[]
[]
[]
[]
[null,"Calculated MONTHLY OWNER COSTS AS A PERCENTAGE OF HOUSEHOLD INCOME IN THE PAST 12 MONTHS "]
[null,"Universe:  OWNER-OCCUPIED HOUSING UNITS"]
[null,{"$f":"B83","v":"Data Set: 2013-2017 American Community Survey 5-Year Estimates"}]
[null,null,"Albany",null,"Bartlett",null,"Brookfield",null,"Chatham",null,"Conway",null,"Eaton",null,"Effingham",null,"Freedom",null,"Hale's Location",null,"Hart's Location",null,"Jackson",null,"Madison",null,"Moultonborough",null,"Ossipee",null,"Sandwich",null,"Tamworth",null,"Tuftonboro",null,"Wakefield",null,"Wolfeboro"]
[null," ","Estimate","Margin of Error","Estimate","Margin of Error","Estimate","Margin of Error","Estimate","Margin of Error","Estimate","Margin of Error","Estimate","Margin of Error","Estimate","Margin of Error","Estimate","Margin of Error","Estimate","Margin of Error","Estimate","Margin of Error","Estimate","Margin of Error","Estimate","Margin of Error","Estimate","Margin of Error","Estimate","Margin of Error","Estimate","Margin of Error","Estimate","Margin of Error","Estimate","Margin of Error","Estimate","Margin of Error","Estimate","Margin of Error"]
[null,"Total:",{"$f":"C119","v":270},{"$f":"D119","v":43},972,176,290,65,124,27,3210,230,139,33,495,59,502,65,79,24,18,14,365,82,{"$f":"Y119","v":894},105,1498,124,1580,173,513,73,937,124,841,100,1841,183,2302,218]
[null,"Less than 20% of HH Income",{"$f":"C120+C121+C122","v":151},{"$f":"SQRT((D120^2)+(D121^2)+(D122^2))","v":41.725292090050132},{"$f":"E120+E121+E122","v":469},{"$f":"SQRT((F120^2)+(F121^2)+(F122^2))","v":151.34067529914091},{"$f":"G120+G121+G122","v":148},{"$f":"SQRT((H120^2)+(H121^2)+(H122^2))","v":42.544094772365298},{"$f":"I120+I121+I122","v":78},{"$f":"SQRT((J120^2)+(J121^2)+(J122^2))","v":22.869193252058544},{"$f":"K120+K121+K122","v":1601},{"$f":"SQRT((L120^2)+(L121^2)+(L122^2))","v":301.54767450603896},{"$f":"M120+M121+M122","v":62},{"$f":"SQRT((N120^2)+(N121^2)+(N122^2))","v":22.891046284519195},{"$f":"O120+O121+O122","v":208},{"$f":"SQRT((P120^2)+(P121^2)+(P122^2))","v":48.311489316724654},{"$f":"Q120+Q121+Q122","v":267},{"$f":"SQRT((R120^2)+(R121^2)+(R122^2))","v":57.48043145279965},{"$f":"S120+S121+S122","v":50},{"$f":"SQRT((T120^2)+(T121^2)+(T122^2))","v":18.654758106177631},{"$f":"U120+U121+U122","v":9},{"$f":"SQRT((V120^2)+(V121^2)+(V122^2))","v":21.283796653792763},{"$f":"W120+W121+W122","v":235},{"$f":"SQRT((X120^2)+(X121^2)+(X122^2))","v":71.505244562899023},{"$f":"Y120+Y121+Y122","v":476},{"$f":"SQRT((Z120^2)+(Z121^2)+(Z122^2))","v":109.50799057603056},{"$f":"AA120+AA121+AA122","v":770},{"$f":"SQRT((AB120^2)+(AB121^2)+(AB122^2))","v":146.23611045155707},{"$f":"AC120+AC121+AC122","v":837},{"$f":"SQRT((AD120^2)+(AD121^2)+(AD122^2))","v":193.27959023135372},{"$f":"AE120+AE121+AE122","v":292},{"$f":"SQRT((AF120^2)+(AF121^2)+(AF122^2))","v":59.916608715780967},{"$f":"AG120+AG121+AG122","v":395},{"$f":"SQRT((AH120^2)+(AH121^2)+(AH122^2))","v":153.19921670818036},{"$f":"AI120+AI121+AI122","v":398},{"$f":"SQRT((AJ120^2)+(AJ121^2)+(AJ122^2))","v":85.434185195388849},{"$f":"AK120+AK121+AK122","v":723},{"$f":"SQRT((AL120^2)+(AL121^2)+(AL122^2))","v":211.18948837477683},{"$f":"AM120+AM121+AM122","v":1190},{"$f":"SQRT((AN120^2)+(AN121^2)+(AN122^2))","v":259.00579144104097}]
[null," 20% to 29.9% of HH Income",{"$f":"C123+C124","v":39},{"$f":"SQRT((D123^2)+(D124^2))","v":17.029386365926403},{"$f":"E123+E124","v":285},{"$f":"SQRT((F123^2)+(F124^2))","v":114.77804668141027},{"$f":"G123+G124","v":66},{"$f":"SQRT((H123^2)+(H124^2))","v":30.643106892089126},{"$f":"I123+I124","v":31},{"$f":"SQRT((J123^2)+(J124^2))","v":17.349351572897472},{"$f":"K123+K124","v":822},{"$f":"SQRT((L123^2)+(L124^2))","v":244.44835855452169},{"$f":"M123+M124","v":36},{"$f":"SQRT((N123^2)+(N124^2))","v":17.776388834631177},{"$f":"O123+O124","v":151},{"$f":"SQRT((P123^2)+(P124^2))","v":42.071367935925259},{"$f":"Q123+Q124","v":95},{"$f":"SQRT((R123^2)+(R124^2))","v":32.388269481403292},{"$f":"S123+S124","v":10},{"$f":"SQRT((T123^2)+(T124^2))","v":13.076696830622021},{"$f":"U123+U124","v":3},{"$f":"SQRT((V123^2)+(V124^2))","v":19.974984355438178},{"$f":"W123+W124","v":57},{"$f":"SQRT((X123^2)+(X124^2))","v":35.199431813596085},{"$f":"Y123+Y124","v":186},{"$f":"SQRT((Z123^2)+(Z124^2))","v":68.212902005412431},{"$f":"AA123+AA124","v":401},{"$f":"SQRT((AB123^2)+(AB124^2))","v":113.77609590770814},{"$f":"AC123+AC124","v":278},{"$f":"SQRT((AD123^2)+(AD124^2))","v":112.42330719205872},{"$f":"AE123+AE124","v":117},{"$f":"SQRT((AF123^2)+(AF124^2))","v":35.986108430893161},{"$f":"AG123+AG124","v":317},{"$f":"SQRT((AH123^2)+(AH124^2))","v":151.68717810019407},{"$f":"AI123+AI124","v":191},{"$f":"SQRT((AJ123^2)+(AJ124^2))","v":57.766772456144714},{"$f":"AK123+AK124","v":511},{"$f":"SQRT((AL123^2)+(AL124^2))","v":184.31223507949764},{"$f":"AM123+AM124","v":453},{"$f":"SQRT((AN123^2)+(AN124^2))","v":169.09760495051373}]
[null," Less Than 30% of HH Income",{"$f":"C120+C121+C122+C123+C124","v":190},{"$f":"SQRT((D120^2)+(D121^2)+(D122^2)+(D123^2)+(D124^2))","v":45.066617356974994},{"$f":"E120+E121+E122+E123+E124","v":754},{"$f":"SQRT((F120^2)+(F121^2)+(F122^2)+(F123^2)+(F124^2))","v":189.94209643994139},{"$f":"G120+G121+G122+G123+G124","v":214},{"$f":"SQRT((H120^2)+(H121^2)+(H122^2)+(H123^2)+(H124^2))","v":52.430906915673319},{"$f":"I120+I121+I122+I123+I124","v":109},{"$f":"SQRT((J120^2)+(J121^2)+(J122^2)+(J123^2)+(J124^2))","v":28.705400188814647},{"$f":"K120+K121+K122+K123+K124","v":2423},{"$f":"SQRT((L120^2)+(L121^2)+(L122^2)+(L123^2)+(L124^2))","v":388.18294655999506},{"$f":"M120+M121+M122+M123+M124","v":98},{"$f":"SQRT((N120^2)+(N121^2)+(N122^2)+(N123^2)+(N124^2))","v":28.982753492378876},{"$f":"O120+O121+O122+O123+O124","v":359},{"$f":"SQRT((P120^2)+(P121^2)+(P122^2)+(P123^2)+(P124^2))","v":64.06246951218786},{"$f":"Q120+Q121+Q122+Q123+Q124","v":362},{"$f":"SQRT((R120^2)+(R121^2)+(R122^2)+(R123^2)+(R124^2))","v":65.977268812826736},{"$f":"S120+S121+S122+S123+S124","v":60},{"$f":"SQRT((T120^2)+(T121^2)+(T122^2)+(T123^2)+(T124^2))","v":22.781571499789035},{"$f":"U120+U121+U122+U123+U124","v":12},{"$f":"SQRT((V120^2)+(V121^2)+(V122^2)+(V123^2)+(V124^2))","v":29.189039038652847},{"$f":"W120+W121+W122+W123+W124","v":292},{"$f":"SQRT((X120^2)+(X121^2)+(X122^2)+(X123^2)+(X124^2))","v":79.699435380685102},{"$f":"Y120+Y121+Y122+Y123+Y124","v":662},{"$f":"SQRT((Z120^2)+(Z121^2)+(Z122^2)+(Z123^2)+(Z124^2))","v":129.01550294441361},{"$f":"AA120+AA121+AA122+AA123+AA124","v":1171},{"$f":"SQRT((AB120^2)+(AB121^2)+(AB122^2)+(AB123^2)+(AB124^2))","v":185.28356645962967},{"$f":"AC120+AC121+AC122+AC123+AC124","v":1115},{"$f":"SQRT((AD120^2)+(AD121^2)+(AD122^2)+(AD123^2)+(AD124^2))","v":223.59785329917636},{"$f":"AE120+AE121+AE122+AE123+AE124","v":409},{"$f":"SQRT((AF120^2)+(AF121^2)+(AF122^2)+(AF123^2)+(AF124^2))","v":69.892775020026207},{"$f":"AG120+AG121+AG122+AG123+AG124","v":712},{"$f":"SQRT((AH120^2)+(AH121^2)+(AH122^2)+(AH123^2)+(AH124^2))","v":215.58988844563189},{"$f":"AI120+AI121+AI122+AI123+AI124","v":589},{"$f":"SQRT((AJ120^2)+(AJ121^2)+(AJ122^2)+(AJ123^2)+(AJ124^2))","v":103.1309846748299},{"$f":"AK120+AK121+AK122+AK123+AK124","v":1234},{"$f":"SQRT((AL120^2)+(AL121^2)+(AL122^2)+(AL123^2)+(AL124^2))","v":280.30697458322368},{"$f":"AM120+AM121+AM122+AM123+AM124","v":1643},{"$f":"SQRT((AN120^2)+(AN121^2)+(AN122^2)+(AN123^2)+(AN124^2))","v":309.31860597125416}]
[null," 30% or More of HH Income",{"$f":"C125+C126+C127+C128","v":80},{"$f":"SQRT((D125^2)+(D126^2)+(D127^2)+(D128^2))","v":34.292856398964496},{"$f":"E125+E126+E127+E128","v":218},{"$f":"SQRT((F125^2)+(F126^2)+(F127^2)+(F128^2))","v":116.08186766243898},{"$f":"G125+G126+G127+G128","v":76},{"$f":"SQRT((H125^2)+(H126^2)+(H127^2)+(H128^2))","v":36.905284174491868},{"$f":"I125+I126+I127+I128","v":12},{"$f":"SQRT((J125^2)+(J126^2)+(J127^2)+(J128^2))","v":21.189620100417091},{"$f":"K125+K126+K127+K128","v":787},{"$f":"SQRT((L125^2)+(L126^2)+(L127^2)+(L128^2))","v":188.89150324988151},{"$f":"M125+M126+M127+M128","v":41},{"$f":"SQRT((N125^2)+(N126^2)+(N127^2)+(N128^2))","v":25.416530054277668},{"$f":"O125+O126+O127+O128","v":130},{"$f":"SQRT((P125^2)+(P126^2)+(P127^2)+(P128^2))","v":41.689327171351664},{"$f":"Q125+Q126+Q127+Q128","v":140},{"$f":"SQRT((R125^2)+(R126^2)+(R127^2)+(R128^2))","v":44.204072210600685},{"$f":"S125+S126+S127+S128","v":19},{"$f":"SQRT((T125^2)+(T126^2)+(T127^2)+(T128^2))","v":15.524174696260024},{"$f":"U125+U126+U127+U128","v":6},{"$f":"SQRT((V125^2)+(V126^2)+(V127^2)+(V128^2))","v":27.766886753829642},{"$f":"W125+W126+W127+W128","v":70},{"$f":"SQRT((X125^2)+(X126^2)+(X127^2)+(X128^2))","v":49.48737212663449},{"$f":"Y125+Y126+Y127+Y128","v":219},{"$f":"SQRT((Z125^2)+(Z126^2)+(Z127^2)+(Z128^2))","v":77.756028705175012},{"$f":"AA125+AA126+AA127+AA128","v":316},{"$f":"SQRT((AB125^2)+(AB126^2)+(AB127^2)+(AB128^2))","v":101.62184804460112},{"$f":"AC125+AC126+AC127+AC128","v":465},{"$f":"SQRT((AD125^2)+(AD126^2)+(AD127^2)+(AD128^2))","v":139.98571355677691},{"$f":"AE125+AE126+AE127+AE128","v":104},{"$f":"SQRT((AF125^2)+(AF126^2)+(AF127^2)+(AF128^2))","v":34.292856398964496},{"$f":"AG125+AG126+AG127+AG128","v":225},{"$f":"SQRT((AH125^2)+(AH126^2)+(AH127^2)+(AH128^2))","v":118.78552100319298},{"$f":"AI125+AI126+AI127+AI128","v":220},{"$f":"SQRT((AJ125^2)+(AJ126^2)+(AJ127^2)+(AJ128^2))","v":75.597619010124916},{"$f":"AK125+AK126+AK127+AK128","v":588},{"$f":"SQRT((AL125^2)+(AL126^2)+(AL127^2)+(AL128^2))","v":207.46083967823904},{"$f":"AM125+AM126+AM127+AM128","v":636},{"$f":"SQRT((AN125^2)+(AN126^2)+(AN127^2)+(AN128^2))","v":237.10967926257248}]
[null," 30% to 34.9% of HH Income",{"$f":"C125","v":8},{"$f":"D125","v":13.038404810405298},{"$f":"E125","v":124},81.743501270743224,25,22.825424421026653,1,11.401754250991379,164,94.921019800674287,11,12.369316876852981,43,23.53720459187964,42,21.470910553583888,3,4.2426406871192848,2,11.401754250991379,0,15.556349186104045,{"$f":"Y125","v":77},46.324939287601879,71,49.769468552517218,77,51.400389103585589,29,14.866068747318506,16,24.596747752497688,29,18.357559750685819,119,77.025969646606853,242,157.4102919125684]
[null," Less Than 35% of HH Income",{"$f":"C120+C121+C122+C123+C124+C125","v":198},{"$f":"SQRT((D120^2)+(D121^2)+(D122^2)+(D123^2)+(D124^2)+(D125^2))","v":46.914816422959603},{"$f":"E120+E121+E122+E123+E124+E125","v":878},{"$f":"SQRT((F120^2)+(F121^2)+(F122^2)+(F123^2)+(F124^2)+(F125^2))","v":206.7849124090053},{"$f":"G120+G121+G122+G123+G124+G125","v":239},{"$f":"SQRT((H120^2)+(H121^2)+(H122^2)+(H123^2)+(H124^2)+(H125^2))","v":57.18391382198319},{"$f":"I120+I121+I122+I123+I124+I125","v":110},{"$f":"SQRT((J120^2)+(J121^2)+(J122^2)+(J123^2)+(J124^2)+(J125^2))","v":30.886890422961002},{"$f":"K120+K121+K122+K123+K124+K125","v":2587},{"$f":"SQRT((L120^2)+(L121^2)+(L122^2)+(L123^2)+(L124^2)+(L125^2))","v":399.61981932832111},{"$f":"M120+M121+M122+M123+M124+M125","v":109},{"$f":"SQRT((N120^2)+(N121^2)+(N122^2)+(N123^2)+(N124^2)+(N125^2))","v":31.511902513177461},{"$f":"O120+O121+O122+O123+O124+O125","v":402},{"$f":"SQRT((P120^2)+(P121^2)+(P122^2)+(P123^2)+(P124^2)+(P125^2))","v":68.249542123006222},{"$f":"Q120+Q121+Q122+Q123+Q124+Q125","v":404},{"$f":"SQRT((R120^2)+(R121^2)+(R122^2)+(R123^2)+(R124^2)+(R125^2))","v":69.382995034806626},{"$f":"S120+S121+S122+S123+S124+S125","v":63},{"$f":"SQRT((T120^2)+(T121^2)+(T122^2)+(T123^2)+(T124^2)+(T125^2))","v":23.173260452512935},{"$f":"U120+U121+U122+U123+U124+U125","v":14},{"$f":"SQRT((V120^2)+(V121^2)+(V122^2)+(V123^2)+(V124^2)+(V125^2))","v":31.336879231984796},{"$f":"W120+W121+W122+W123+W124+W125","v":292},{"$f":"SQRT((X120^2)+(X121^2)+(X122^2)+(X123^2)+(X124^2)+(X125^2))","v":81.203448202647152},{"$f":"Y120+Y121+Y122+Y123+Y124+Y125","v":739},{"$f":"SQRT((Z120^2)+(Z121^2)+(Z122^2)+(Z123^2)+(Z124^2)+(Z125^2))","v":137.08026845611298},{"$f":"AA120+AA121+AA122+AA123+AA124+AA125","v":1242},{"$f":"SQRT((AB120^2)+(AB121^2)+(AB122^2)+(AB123^2)+(AB124^2)+(AB125^2))","v":191.85150507619167},{"$f":"AC120+AC121+AC122+AC123+AC124+AC125","v":1192},{"$f":"SQRT((AD120^2)+(AD121^2)+(AD122^2)+(AD123^2)+(AD124^2)+(AD125^2))","v":229.42972780352594},{"$f":"AE120+AE121+AE122+AE123+AE124+AE125","v":438},{"$f":"SQRT((AF120^2)+(AF121^2)+(AF122^2)+(AF123^2)+(AF124^2)+(AF125^2))","v":71.456280339799378},{"$f":"AG120+AG121+AG122+AG123+AG124+AG125","v":728},{"$f":"SQRT((AH120^2)+(AH121^2)+(AH122^2)+(AH123^2)+(AH124^2)+(AH125^2))","v":216.98847895683309},{"$f":"AI120+AI121+AI122+AI123+AI124+AI125","v":618},{"$f":"SQRT((AJ120^2)+(AJ121^2)+(AJ122^2)+(AJ123^2)+(AJ124^2)+(AJ125^2))","v":104.75208828467335},{"$f":"AK120+AK121+AK122+AK123+AK124+AK125","v":1353},{"$f":"SQRT((AL120^2)+(AL121^2)+(AL122^2)+(AL123^2)+(AL124^2)+(AL125^2))","v":290.69743720920553},{"$f":"AM120+AM121+AM122+AM123+AM124+AM125","v":1885},{"$f":"SQRT((AN120^2)+(AN121^2)+(AN122^2)+(AN123^2)+(AN124^2)+(AN125^2))","v":347.06771673550969}]
[null," 35% or More of HH Income",{"$f":"C126+C127+C128","v":72},{"$f":"SQRT((D126^2)+(D127^2)+(D128^2))","v":31.717503054307411},{"$f":"E126+E127+E128","v":94},{"$f":"SQRT((F126^2)+(F127^2)+(F128^2))","v":82.419657849326214},{"$f":"G126+G127+G128","v":51},{"$f":"SQRT((H126^2)+(H127^2)+(H128^2))","v":29},{"$f":"I126+I127+I128","v":11},{"$f":"SQRT((J126^2)+(J127^2)+(J128^2))","v":17.86057109949175},{"$f":"K126+K127+K128","v":623},{"$f":"SQRT((L126^2)+(L127^2)+(L128^2))","v":163.30952207388276},{"$f":"M126+M127+M128","v":30},{"$f":"SQRT((N126^2)+(N127^2)+(N128^2))","v":22.203603311174518},{"$f":"O126+O127+O128","v":87},{"$f":"SQRT((P126^2)+(P127^2)+(P128^2))","v":34.409301068170507},{"$f":"Q126+Q127+Q128","v":98},{"$f":"SQRT((R126^2)+(R127^2)+(R128^2))","v":38.639358172723313},{"$f":"S126+S127+S128","v":16},{"$f":"SQRT((T126^2)+(T127^2)+(T128^2))","v":14.933184523068078},{"$f":"U126+U127+U128","v":4},{"$f":"SQRT((V126^2)+(V127^2)+(V128^2))","v":25.317977802344327},{"$f":"W126+W127+W128","v":70},{"$f":"SQRT((X126^2)+(X127^2)+(X128^2))","v":46.97871858618538},{"$f":"Y126+Y127+Y128","v":142},{"$f":"SQRT((Z126^2)+(Z127^2)+(Z128^2))","v":62.44997998398398},{"$f":"AA126+AA127+AA128","v":245},{"$f":"SQRT((AB126^2)+(AB127^2)+(AB128^2))","v":88.600225733346747},{"$f":"AC126+AC127+AC128","v":388},{"$f":"SQRT((AD126^2)+(AD127^2)+(AD128^2))","v":130.20752666416791},{"$f":"AE126+AE127+AE128","v":75},{"$f":"SQRT((AF126^2)+(AF127^2)+(AF128^2))","v":30.903074280724887},{"$f":"AG126+AG127+AG128","v":209},{"$f":"SQRT((AH126^2)+(AH127^2)+(AH128^2))","v":116.21101496846157},{"$f":"AI126+AI127+AI128","v":191},{"$f":"SQRT((AJ126^2)+(AJ127^2)+(AJ128^2))","v":73.334848469196416},{"$f":"AK126+AK127+AK128","v":469},{"$f":"SQRT((AL126^2)+(AL127^2)+(AL128^2))","v":192.63177308014377},{"$f":"AM126+AM127+AM128","v":394},{"$f":"SQRT((AN126^2)+(AN127^2)+(AN128^2))","v":177.32174147577055}]
[null," 50% or More of HH Income",{"$f":"C128","v":33},{"$f":"D128","v":20.124611797498108},{"$f":"E128","v":94},79.429213769242352,26,18.027756377319946,5,6.7082039324993694,331,124.53112060846478,12,7.6157731058639087,45,28.600699292150182,60,31.780497164141408,10,6.7082039324993694,0,15.556349186104045,47,36.878177829171548,{"$f":"Y128","v":50},29.681644159311659,116,54.230987451824994,163,87.091905479212016,44,26.476404589747453,195,112.69871339105873,95,51.224993899462788,233,128.84486796143648,198,136.49908424601244]
[null,"Not computed",{"$f":"C129","v":0},{"$f":"D129","v":15.556349186104045},0,15.556349186104045,0,15.556349186104045,3,12.083045973594572,0,25.45584412271571,0,15.556349186104045,6,12.529964086141668,0,15.556349186104045,0,15.556349186104045,0,15.556349186104045,3,11.704699910719626,{"$f":"Y129","v":13},18.601075237738275,11,19.416487838947599,0,15.556349186104045,0,15.556349186104045,0,15.556349186104045,32,28.844410203711913,19,34,23,41.231056256176608]
[]
[]
[]
[null,"B25091. MORTGAGE STATUS BY SELECTED MONTHLY OWNER COSTS AS A PERCENTAGE OF HOUSEHOLD INCOME IN THE PAST 12 MONTHS "]
[null,"Universe:  OWNER-OCCUPIED HOUSING UNITS"]
[null,"Data Set: 2008-2012 American Community Survey 5-Year Estimates"]
[]
[null,null,"Albany",null,"Bartlett",null,"Brookfield",null,"Chatham",null,"Conway",null,"Eaton",null,"Effingham",null,"Freedom",null,"Hale's Location",null,"Hart's Location",null,"Jackson",null,"Madison",null,"Moultonborough",null,"Ossipee",null,"Sandwich",null,"Tamworth",null,"Tuftonboro",null,"Wakefield",null,"Wolfeboro"]
[null," ","Estimate","Margin of Error","Estimate","Margin of Error","Estimate","Margin of Error","Estimate","Margin of Error","Estimate","Margin of Error","Estimate","Margin of Error","Estimate","Margin of Error","Estimate","Margin of Error","Estimate","Margin of Error","Estimate","Margin of Error","Estimate","Margin of Error","Estimate","Margin of Error","Estimate","Margin of Error","Estimate","Margin of Error","Estimate","Margin of Error","Estimate","Margin of Error","Estimate","Margin of Error","Estimate","Margin of Error","Estimate","Margin of Error"]
[null,"Total:",288,61,1128,151,242,53,146,42,2834,277,156,30,434,64,482,65,52,13,7,9,334,75,853,97,1631,128,1404,150,494,70,1070,136,907,104,1991,198,2165,196]
[null,"Housing units with a mortgage:",144,39,547,132,194,46,62,27,1684,254,65,20,262,50,259,40,25,11,5,8,142,51,625,96,1023,151,821,123,267,52,587,121,532,110,1309,181,1055,185]
[null,"Less than 10.0 percent",5,7,27,30,2,4,3,5,22,25,3,5,0,11,14,17,1,4,0,11,15,15,6,9,34,38,0,11,8,8,0,11,0,11,43,47,108,95]
[null,"10.0 to 14.9 percent",24,20,116,79,12,9,7,12,181,101,17,12,33,22,14,11,0,11,5,8,36,28,65,50,89,44,57,31,24,17,6,10,26,28,49,46,92,60]
[null,"15.0 to 19.9 percent",31,19,62,57,20,13,11,12,430,146,4,7,25,21,71,27,1,2,0,11,20,18,133,53,186,70,85,60,44,20,140,65,67,45,193,94,84,63]
[null,"20.0 to 24.9 percent",23,23,87,71,23,16,4,5,104,58,9,8,31,19,28,22,5,6,0,11,17,13,93,52,190,84,173,66,37,16,59,43,85,46,171,94,324,158]
[null,"25.0 to 29.9 percent",9,11,67,51,23,20,8,10,273,115,0,11,15,11,10,8,1,2,0,11,0,11,55,31,99,51,93,68,25,16,66,40,98,62,63,49,163,85]
[null,"30.0 to 34.9 percent",16,16,33,30,18,11,7,9,98,85,8,7,25,15,15,11,6,7,0,11,15,22,93,61,42,30,58,36,40,19,120,93,88,55,230,126,12,24]
[null,"35.0 to 39.9 percent",0,11,30,21,20,16,4,7,189,90,7,9,29,22,9,7,0,11,0,11,12,19,59,40,72,62,91,73,19,17,17,19,33,27,128,101,34,37]
[null,"40.0 to 49.9 percent",21,20,56,63,39,26,6,7,103,68,2,3,42,25,37,23,5,5,0,11,9,14,44,46,122,80,109,59,19,13,73,50,76,48,234,128,67,59]
[null,"50.0 percent or more",15,12,69,56,37,22,12,13,284,110,15,10,57,28,61,24,6,5,0,11,18,14,77,50,169,85,155,79,51,24,106,53,59,36,198,95,171,95]
[null,"Not computed",0,11,0,11,0,11,0,11,0,18,0,11,5,9,0,11,0,11,0,11,0,11,0,11,20,32,0,11,0,11,0,11,0,11,0,16,0,16]
[null,"Housing units without a mortgage:",144,51,581,157,48,25,84,39,1150,227,91,25,172,43,223,45,27,9,2,3,192,56,228,74,608,135,583,138,227,49,483,106,375,85,682,202,1110,219]
[null,"Less than 10.0 percent",52,26,256,118,13,11,21,21,342,147,18,9,33,20,31,16,14,7,0,11,74,39,80,43,269,111,98,47,71,27,145,84,169,77,74,60,404,151]
[null,"10.0 to 14.9 percent",25,16,124,78,13,18,14,12,238,155,33,19,60,29,56,23,5,5,0,11,26,17,37,30,134,75,155,78,80,26,63,49,95,58,71,46,208,102]
[null,"15.0 to 19.9 percent",15,18,62,60,4,5,9,9,124,65,7,7,22,15,26,20,2,3,2,3,14,10,14,17,50,49,57,42,18,13,107,56,49,32,186,121,233,115]
[null,"20.0 to 24.9 percent",10,13,14,24,8,7,0,11,107,93,0,11,21,19,39,23,2,3,0,11,21,22,32,29,40,27,42,29,15,17,60,40,39,30,32,35,104,81]
[null,"25.0 to 29.9 percent",16,25,13,17,2,3,6,7,129,84,10,11,7,7,11,8,2,3,0,11,23,17,18,23,26,25,18,21,12,9,6,9,6,11,107,117,13,22]
[null,"30.0 to 34.9 percent",3,5,54,40,0,11,9,9,29,27,14,12,6,6,10,10,0,11,0,11,0,11,0,11,0,11,66,65,2,5,15,18,0,11,18,28,43,33]
[null,"35.0 to 39.9 percent",11,17,0,11,0,11,0,11,21,34,2,3,0,11,10,8,0,11,0,11,9,11,7,11,0,11,38,27,8,12,14,20,5,9,40,66,9,15]
[null,"40.0 to 49.9 percent",4,6,34,52,0,11,3,4,22,23,1,3,3,4,12,10,0,11,0,11,9,13,35,27,18,21,73,74,7,7,6,9,5,7,37,39,13,22]
[null,"50.0 percent or more",6,6,0,11,8,8,21,24,138,104,4,6,20,14,25,13,2,4,0,11,6,9,5,8,54,41,14,17,14,11,54,44,7,10,100,83,83,59]
[null,"Not computed",2,4,24,39,0,11,1,2,0,18,2,3,0,11,3,5,0,11,0,11,10,18,0,11,17,28,22,25,0,11,13,19,0,11,17,26,0,16]
[]
[]
[]
[null,"Calculated B25091. MORTGAGE STATUS BY SELECTED MONTHLY OWNER COSTS AS A PERCENTAGE OF HOUSEHOLD INCOME IN THE PAST 12 MONTHS "]
[null,"Universe:  OWNER-OCCUPIED HOUSING UNITS"]
[null,{"$f":"B154","v":"Data Set: 2008-2012 American Community Survey 5-Year Estimates"}]
[]
[null,null,"Albany",null,"Bartlett",null,"Brookfield",null,"Chatham",null,"Conway",null,"Eaton",null,"Effingham",null,"Freedom",null,"Hale's Location",null,"Hart's Location",null,"Jackson",null,"Madison",null,"Moultonborough",null,"Ossipee",null,"Sandwich",null,"Tamworth",null,"Tuftonboro",null,"Wakefield",null,"Wolfeboro"]
[null," ","Estimate","Margin of Error","Estimate","Margin of Error","Estimate","Margin of Error","Estimate","Margin of Error","Estimate","Margin of Error","Estimate","Margin of Error","Estimate","Margin of Error","Estimate","Margin of Error","Estimate","Margin of Error","Estimate","Margin of Error","Estimate","Margin of Error","Estimate","Margin of Error","Estimate","Margin of Error","Estimate","Margin of Error","Estimate","Margin of Error","Estimate","Margin of Error","Estimate","Margin of Error","Estimate","Margin of Error","Estimate","Margin of Error"]
[null,"Total:",{"$f":"C158","v":288},{"$f":"D158","v":61},{"$f":"E158","v":1128},151,242,53,146,42,2834,277,156,30,434,64,482,65,52,13,7,9,334,75,{"$f":"Y158","v":853},97,1631,128,1404,150,494,70,1070,136,907,104,1991,198,2165,196]
[null,"Less than 10.0 percent",{"$f":"C160+C171","v":57},{"$f":"SQRT((D160^2)+(D171^2))","v":26.92582403567252},{"$f":"E160+E171","v":283},{"$f":"SQRT((F160^2)+(F171^2))","v":121.75385004179539},{"$f":"G160+G171","v":15},{"$f":"SQRT((H160^2)+(H171^2))","v":11.704699910719626},{"$f":"I160+I171","v":24},{"$f":"SQRT((J160^2)+(J171^2))","v":21.587033144922902},{"$f":"K160+K171","v":364},{"$f":"SQRT((L160^2)+(L171^2))","v":149.11069713471264},{"$f":"M160+M171","v":21},{"$f":"SQRT((N160^2)+(N171^2))","v":10.295630140987001},{"$f":"O160+O171","v":33},{"$f":"SQRT((P160^2)+(P171^2))","v":22.825424421026653},{"$f":"Q160+Q171","v":45},{"$f":"SQRT((R160^2)+(R171^2))","v":23.345235059857504},{"$f":"S160+S171","v":15},{"$f":"SQRT((T160^2)+(T171^2))","v":8.0622577482985491},{"$f":"U160+U171","v":0},{"$f":"SQRT((V160^2)+(V171^2))","v":15.556349186104045},{"$f":"W160+W171","v":89},{"$f":"SQRT((X160^2)+(X171^2))","v":41.785164831552358},{"$f":"Y160+Y171","v":86},{"$f":"SQRT((Z160^2)+(Z171^2))","v":43.931765272977593},{"$f":"AA160+AA171","v":303},{"$f":"SQRT((AB160^2)+(AB171^2))","v":117.32433677630571},{"$f":"AC160+AC171","v":98},{"$f":"SQRT((AD160^2)+(AD171^2))","v":48.270073544588683},{"$f":"AE160+AE171","v":79},{"$f":"SQRT((AF160^2)+(AF171^2))","v":28.160255680657446},{"$f":"AG160+AG171","v":145},{"$f":"SQRT((AH160^2)+(AH171^2))","v":84.717176534631989},{"$f":"AI160+AI171","v":169},{"$f":"SQRT((AJ160^2)+(AJ171^2))","v":77.781745930520231},{"$f":"AK160+AK171","v":117},{"$f":"SQRT((AL160^2)+(AL171^2))","v":76.216796049164913},{"$f":"AM160+AM171","v":512},{"$f":"SQRT((AN160^2)+(AN171^2))","v":178.39843048636948}]
[null,"10.0 to 14.9 percent",{"$f":"C161+C172","v":49},25.612496949731394,240,111.01801655587259,25,20.124611797498108,21,16.970562748477139,419,185.00270268296083,50,22.472205054244231,93,36.400549446402593,70,25.495097567963924,5,12.083045973594572,5,13.601470508735444,62,32.756678708318397,102,58.309518948453004,223,86.95401083331349,212,83.93449827097318,104,31.064449134018133,69,50.009999000199947,121,64.404968752418469,120,65.053823869162372,300,118.33849753989612]
[null,"15.0 to 19.9 percent",46,26.172504656604801,124,82.758685344802331,24,13.928388277184119,20,15,554,159.8155186457185,11,9.8994949366116654,47,25.80697580112788,97,33.600595232822883,3,3.6055512754639891,2,11.401754250991379,34,20.591260281974002,147,55.659680200302986,236,85.445889310135925,142,73.23933369440222,62,23.853720883753127,247,85.796270315206598,116,55.21775076911409,379,153.22206107476822,317,131.12589370524802]
[null,"20.0 to 24.9 percent",33,26.419689627245813,101,74.94664769020693,31,17.464249196572979,4,12.083045973594572,211,109.60383204979651,9,13.601470508735444,52,26.870057685088806,67,31.827660925679098,7,6.7082039324993694,0,15.556349186104045,38,25.553864678361276,125,59.539902586416787,230,88.232647019116456,215,72.090221250874237,52,23.345235059857504,119,58.728187440104094,124,54.918120870983927,203,100.30453628824571,428,177.55280904564702]
[null,"25.0 to 29.9 percent",25,27.313000567495326,80,53.758720222862451,25,20.223748416156685,14,12.206555615733702,402,142.41137595009747,10,15.556349186104045,22,13.038404810405298,21,11.313708498984761,3,3.6055512754639891,0,15.556349186104045,23,20.248456731316587,73,38.600518131237564,125,56.797887284651708,111,71.168813394632338,37,18.357559750685819,72,41,104,62.968245965724662,170,126.84636376341263,176,87.80091115700337]
[null,"30.0 to 34.9 percent",19,16.763054614240211,87,50,18,15.556349186104045,16,12.727922061357855,127,89.185200566013194,22,13.892443989449804,31,16.15549442140351,25,14.866068747318506,6,13.038404810405298,0,15.556349186104045,15,24.596747752497688,93,61.98386886924694,42,31.953090617340916,124,74.303431953039691,42,19.646882704388499,135,94.725920423081661,88,56.089214649520635,248,129.07362240210043,55,40.80441152620633]
[null,"35.0 to 39.9 percent",11,20.248456731316587,30,23.706539182259394,20,19.416487838947599,4,13.038404810405298,210,96.208107766445551,9,9.4868329805051381,29,24.596747752497688,19,10.63014581273465,0,15.556349186104045,0,15.556349186104045,21,21.95449840010015,66,41.484937025383083,72,62.968245965724662,129,77.833154889160184,27,20.808652046684813,31,27.586228448267445,38,28.460498941515414,168,120.65239326262865,43,39.924929555354261]
[null,"40.0 to 49.9 percent",25,20.880613017821101,90,81.688432473637292,39,28.231188426986208,9,8.0622577482985491,125,71.784399419372448,3,4.2426406871192848,45,25.317977802344327,49,25.079872407968907,5,12.083045973594572,0,15.556349186104045,18,19.104973174542799,79,53.338541412378348,140,82.710337927008865,182,94.641428560646744,26,14.7648230602334,79,50.803543183522152,81,48.507731342539614,271,133.80956617521784,80,62.968245965724662]
[null,"50.0 percent or more",{"$f":"C168+C179","v":21},13.416407864998739,69,57.070132293521098,45,23.409399821439251,33,27.294688127912362,422,151.38031576133008,19,11.661903789690601,77,31.304951684997057,86,27.294688127912362,8,6.4031242374328485,0,15.556349186104045,24,16.643316977093239,82,50.635955604688654,223,94.371605899232208,169,80.808415403347695,65,26.40075756488817,160,68.8839603971781,66,37.363083384538811,298,126.15070352558483,254,111.83022847155415]
[null,"Not computed",{"$f":"C169+C180","v":2},11.704699910719626,24,40.521599178709621,0,15.556349186104045,1,11.180339887498949,0,25.45584412271571,2,11.401754250991379,5,14.212670403551895,3,12.083045973594572,0,15.556349186104045,0,15.556349186104045,10,21.095023109728988,0,15.556349186104045,37,42.5205832509386,22,27.313000567495326,0,15.556349186104045,13,21.95449840010015,0,15.556349186104045,17,30.528675044947494,0,22.627416997969522]
[]
[]
[]
[]
[null,"Calculated MONTHLY OWNER COSTS AS A PERCENTAGE OF HOUSEHOLD INCOME IN THE PAST 12 MONTHS "]
[null,"Universe:  OWNER-OCCUPIED HOUSING UNITS"]
[null,{"$f":"B154","v":"Data Set: 2008-2012 American Community Survey 5-Year Estimates"}]
[null,null,"Albany",null,"Bartlett",null,"Brookfield",null,"Chatham",null,"Conway",null,"Eaton",null,"Effingham",null,"Freedom",null,"Hale's Location",null,"Hart's Location",null,"Jackson",null,"Madison",null,"Moultonborough",null,"Ossipee",null,"Sandwich",null,"Tamworth",null,"Tuftonboro",null,"Wakefield",null,"Wolfeboro"]
[null," ","Estimate","Margin of Error","Estimate","Margin of Error","Estimate","Margin of Error","Estimate","Margin of Error","Estimate","Margin of Error","Estimate","Margin of Error","Estimate","Margin of Error","Estimate","Margin of Error","Estimate","Margin of Error","Estimate","Margin of Error","Estimate","Margin of Error","Estimate","Margin of Error","Estimate","Margin of Error","Estimate","Margin of Error","Estimate","Margin of Error","Estimate","Margin of Error","Estimate","Margin of Error","Estimate","Margin of Error","Estimate","Margin of Error"]
[null,"Total:",{"$f":"C190","v":288},{"$f":"D190","v":61},1128,151,242,53,146,42,2834,277,156,30,434,64,482,65,52,13,7,9,334,75,{"$f":"Y190","v":853},97,1631,128,1404,150,494,70,1070,136,907,104,1991,198,2165,196]
[null,"Less than 20% of HH Income",{"$f":"C191+C192+C193","v":152},{"$f":"SQRT((D191^2)+(D192^2)+(D193^2))","v":45.453272709454048},{"$f":"E191+E192+E193","v":647},{"$f":"SQRT((F191^2)+(F192^2)+(F193^2))","v":184.38546580465609},{"$f":"G191+G192+G193","v":64},{"$f":"SQRT((H191^2)+(H192^2)+(H193^2))","v":27.129319932501073},{"$f":"I191+I192+I193","v":65},{"$f":"SQRT((J191^2)+(J192^2)+(J193^2))","v":31.28897569432403},{"$f":"K191+K192+K193","v":1337},{"$f":"SQRT((L191^2)+(L192^2)+(L193^2))","v":286.35816733594311},{"$f":"M191+M192+M193","v":82},{"$f":"SQRT((N191^2)+(N192^2)+(N193^2))","v":26.627053911388696},{"$f":"O191+O192+O193","v":173},{"$f":"SQRT((P191^2)+(P192^2)+(P193^2))","v":50.119856344566671},{"$f":"Q191+Q192+Q193","v":212},{"$f":"SQRT((R191^2)+(R192^2)+(R193^2))","v":48.207883172775801},{"$f":"S191+S192+S193","v":23},{"$f":"SQRT((T191^2)+(T192^2)+(T193^2))","v":14.966629547095765},{"$f":"U191+U192+U193","v":7},{"$f":"SQRT((V191^2)+(V192^2)+(V193^2))","v":23.600847442411894},{"$f":"W191+W192+W193","v":185},{"$f":"SQRT((X191^2)+(X192^2)+(X193^2))","v":56.947344099615393},{"$f":"Y191+Y192+Y193","v":335},{"$f":"SQRT((Z191^2)+(Z192^2)+(Z193^2))","v":91.804139340228005},{"$f":"AA191+AA192+AA193","v":762},{"$f":"SQRT((AB191^2)+(AB192^2)+(AB193^2))","v":169.19515359489466},{"$f":"AC191+AC192+AC193","v":452},{"$f":"SQRT((AD191^2)+(AD192^2)+(AD193^2))","v":121.40428328522844},{"$f":"AE191+AE192+AE193","v":245},{"$f":"SQRT((AF191^2)+(AF192^2)+(AF193^2))","v":48.238988380769349},{"$f":"AG191+AG192+AG193","v":461},{"$f":"SQRT((AH191^2)+(AH192^2)+(AH193^2))","v":130.5335205991166},{"$f":"AI191+AI192+AI193","v":406},{"$f":"SQRT((AJ191^2)+(AJ192^2)+(AJ193^2))","v":115.09561242723373},{"$f":"AK191+AK192+AK193","v":616},{"$f":"SQRT((AL191^2)+(AL192^2)+(AL193^2))","v":183.07921782660094},{"$f":"AM191+AM192+AM193","v":1129},{"$f":"SQRT((AN191^2)+(AN192^2)+(AN193^2))","v":251.04581255221129}]
[null," 20% to 29.9% of HH Income",{"$f":"C194+C195","v":58},{"$f":"SQRT((D194^2)+(D195^2))","v":38},{"$f":"E194+E195","v":181},{"$f":"SQRT((F194^2)+(F195^2))","v":92.233399590386995},{"$f":"G194+G195","v":56},{"$f":"SQRT((H194^2)+(H195^2))","v":26.720778431774775},{"$f":"I194+I195","v":18},{"$f":"SQRT((J194^2)+(J195^2))","v":17.175564037317667},{"$f":"K194+K195","v":613},{"$f":"SQRT((L194^2)+(L195^2))","v":179.70531433432902},{"$f":"M194+M195","v":19},{"$f":"SQRT((N194^2)+(N195^2))","v":20.663978319771825},{"$f":"O194+O195","v":74},{"$f":"SQRT((P194^2)+(P195^2))","v":29.866369046136157},{"$f":"Q194+Q195","v":88},{"$f":"SQRT((R194^2)+(R195^2))","v":33.77869150810907},{"$f":"S194+S195","v":10},{"$f":"SQRT((T194^2)+(T195^2))","v":7.6157731058639087},{"$f":"U194+U195","v":0},{"$f":"SQRT((V194^2)+(V195^2))","v":22},{"$f":"W194+W195","v":61},{"$f":"SQRT((X194^2)+(X195^2))","v":32.603680773802211},{"$f":"Y194+Y195","v":198},{"$f":"SQRT((Z194^2)+(Z195^2))","v":70.957733898427165},{"$f":"AA194+AA195","v":355},{"$f":"SQRT((AB194^2)+(AB195^2))","v":104.93331215586402},{"$f":"AC194+AC195","v":326},{"$f":"SQRT((AD194^2)+(AD195^2))","v":101.30153009703258},{"$f":"AE194+AE195","v":89},{"$f":"SQRT((AF194^2)+(AF195^2))","v":29.698484809834994},{"$f":"AG194+AG195","v":191},{"$f":"SQRT((AH194^2)+(AH195^2))","v":71.62401831787993},{"$f":"AI194+AI195","v":228},{"$f":"SQRT((AJ194^2)+(AJ195^2))","v":83.552378781217243},{"$f":"AK194+AK195","v":373},{"$f":"SQRT((AL194^2)+(AL195^2))","v":161.7127082204735},{"$f":"AM194+AM195","v":604},{"$f":"SQRT((AN194^2)+(AN195^2))","v":198.07574308834484}]
[null," Less Than 30% of HH Income",{"$f":"C191+C192+C193+C194+C195","v":210},{"$f":"SQRT((D191^2)+(D192^2)+(D193^2)+(D194^2)+(D195^2))","v":59.245252974394496},{"$f":"E191+E192+E193+E194+E195","v":828},{"$f":"SQRT((F191^2)+(F192^2)+(F193^2)+(F194^2)+(F195^2))","v":206.1674077054858},{"$f":"G191+G192+G193+G194+G195","v":120},{"$f":"SQRT((H191^2)+(H192^2)+(H193^2)+(H194^2)+(H195^2))","v":38.078865529319543},{"$f":"I191+I192+I193+I194+I195","v":83},{"$f":"SQRT((J191^2)+(J192^2)+(J193^2)+(J194^2)+(J195^2))","v":35.693136595149497},{"$f":"K191+K192+K193+K194+K195","v":1950},{"$f":"SQRT((L191^2)+(L192^2)+(L193^2)+(L194^2)+(L195^2))","v":338.07543536909037},{"$f":"M191+M192+M193+M194+M195","v":101},{"$f":"SQRT((N191^2)+(N192^2)+(N193^2)+(N194^2)+(N195^2))","v":33.704599092705436},{"$f":"O191+O192+O193+O194+O195","v":247},{"$f":"SQRT((P191^2)+(P192^2)+(P193^2)+(P194^2)+(P195^2))","v":58.343808583259289},{"$f":"Q191+Q192+Q193+Q194+Q195","v":300},{"$f":"SQRT((R191^2)+(R192^2)+(R193^2)+(R194^2)+(R195^2))","v":58.864250611045748},{"$f":"S191+S192+S193+S194+S195","v":33},{"$f":"SQRT((T191^2)+(T192^2)+(T193^2)+(T194^2)+(T195^2))","v":16.792855623746664},{"$f":"U191+U192+U193+U194+U195","v":7},{"$f":"SQRT((V191^2)+(V192^2)+(V193^2)+(V194^2)+(V195^2))","v":32.264531609803356},{"$f":"W191+W192+W193+W194+W195","v":246},{"$f":"SQRT((X191^2)+(X192^2)+(X193^2)+(X194^2)+(X195^2))","v":65.620118866091673},{"$f":"Y191+Y192+Y193+Y194+Y195","v":533},{"$f":"SQRT((Z191^2)+(Z192^2)+(Z193^2)+(Z194^2)+(Z195^2))","v":116.03016849078519},{"$f":"AA191+AA192+AA193+AA194+AA195","v":1117},{"$f":"SQRT((AB191^2)+(AB192^2)+(AB193^2)+(AB194^2)+(AB195^2))","v":199.09294311953903},{"$f":"AC191+AC192+AC193+AC194+AC195","v":778},{"$f":"SQRT((AD191^2)+(AD192^2)+(AD193^2)+(AD194^2)+(AD195^2))","v":158.117045254457},{"$f":"AE191+AE192+AE193+AE194+AE195","v":334},{"$f":"SQRT((AF191^2)+(AF192^2)+(AF193^2)+(AF194^2)+(AF195^2))","v":56.648036153074187},{"$f":"AG191+AG192+AG193+AG194+AG195","v":652},{"$f":"SQRT((AH191^2)+(AH192^2)+(AH193^2)+(AH194^2)+(AH195^2))","v":148.89257872708095},{"$f":"AI191+AI192+AI193+AI194+AI195","v":634},{"$f":"SQRT((AJ191^2)+(AJ192^2)+(AJ193^2)+(AJ194^2)+(AJ195^2))","v":142.22517358048822},{"$f":"AK191+AK192+AK193+AK194+AK195","v":989},{"$f":"SQRT((AL191^2)+(AL192^2)+(AL193^2)+(AL194^2)+(AL195^2))","v":244.27238894316321},{"$f":"AM191+AM192+AM193+AM194+AM195","v":1733},{"$f":"SQRT((AN191^2)+(AN192^2)+(AN193^2)+(AN194^2)+(AN195^2))","v":319.77804802706515}]
[null," 30% or More of HH Income",{"$f":"C196+C197+C198+C199","v":76},{"$f":"SQRT((D196^2)+(D197^2)+(D198^2)+(D199^2))","v":36.152454965050438},{"$f":"E196+E197+E198+E199","v":276},{"$f":"SQRT((F196^2)+(F197^2)+(F198^2)+(F199^2))","v":113.98245479020005},{"$f":"G196+G197+G198+G199","v":122},{"$f":"SQRT((H196^2)+(H197^2)+(H198^2)+(H199^2))","v":44.317039612320677},{"$f":"I196+I197+I198+I199","v":62},{"$f":"SQRT((J196^2)+(J197^2)+(J198^2)+(J199^2))","v":33.793490497431605},{"$f":"K196+K197+K198+K199","v":884},{"$f":"SQRT((L196^2)+(L197^2)+(L198^2)+(L199^2))","v":212.78862751566399},{"$f":"M196+M197+M198+M199","v":53},{"$f":"SQRT((N196^2)+(N197^2)+(N198^2)+(N199^2))","v":20.904544960366874},{"$f":"O196+O197+O198+O199","v":182},{"$f":"SQRT((P196^2)+(P197^2)+(P198^2)+(P199^2))","v":49.869830559166729},{"$f":"Q196+Q197+Q198+Q199","v":179},{"$f":"SQRT((R196^2)+(R197^2)+(R198^2)+(R199^2))","v":41.327956639543658},{"$f":"S196+S197+S198+S199","v":19},{"$f":"SQRT((T196^2)+(T197^2)+(T198^2)+(T199^2))","v":24.474476501040833},{"$f":"U196+U197+U198+U199","v":0},{"$f":"SQRT((V196^2)+(V197^2)+(V198^2)+(V199^2))","v":31.11269837220809},{"$f":"W196+W197+W198+W199","v":78},{"$f":"SQRT((X196^2)+(X197^2)+(X198^2)+(X199^2))","v":41.581245772583578},{"$f":"Y196+Y197+Y198+Y199","v":320},{"$f":"SQRT((Z196^2)+(Z197^2)+(Z198^2)+(Z199^2))","v":104.74731500138799},{"$f":"AA196+AA197+AA198+AA199","v":477},{"$f":"SQRT((AB196^2)+(AB197^2)+(AB198^2)+(AB199^2))","v":143.98958295654586},{"$f":"AC196+AC197+AC198+AC199","v":604},{"$f":"SQRT((AD196^2)+(AD197^2)+(AD198^2)+(AD199^2))","v":164.51747627531856},{"$f":"AE196+AE197+AE198+AE199","v":160},{"$f":"SQRT((AF196^2)+(AF197^2)+(AF198^2)+(AF199^2))","v":41.641325627314025},{"$f":"AG196+AG197+AG198+AG199","v":405},{"$f":"SQRT((AH196^2)+(AH197^2)+(AH198^2)+(AH199^2))","v":130.61393493804556},{"$f":"AI196+AI197+AI198+AI199","v":273},{"$f":"SQRT((AJ196^2)+(AJ197^2)+(AJ198^2)+(AJ199^2))","v":87.778129394513755},{"$f":"AK196+AK197+AK198+AK199","v":985},{"$f":"SQRT((AL196^2)+(AL197^2)+(AL198^2)+(AL199^2))","v":255.02156771536011},{"$f":"AM196+AM197+AM198+AM199","v":432},{"$f":"SQRT((AN196^2)+(AN197^2)+(AN198^2)+(AN199^2))","v":140.46351839534705}]
[null," 30% to 34.9% of HH Income",{"$f":"C196","v":19},{"$f":"D196","v":16.763054614240211},{"$f":"E196","v":87},50,18,15.556349186104045,16,12.727922061357855,127,89.185200566013194,22,13.892443989449804,31,16.15549442140351,25,14.866068747318506,6,13.038404810405298,0,15.556349186104045,15,24.596747752497688,{"$f":"Y196","v":93},61.98386886924694,42,31.953090617340916,124,74.303431953039691,42,19.646882704388499,135,94.725920423081661,88,56.089214649520635,248,129.07362240210043,55,40.80441152620633]
[null," Less Than 35% of HH Income",{"$f":"C191+C192+C193+C194+C195+C196","v":229},{"$f":"SQRT((D191^2)+(D192^2)+(D193^2)+(D194^2)+(D195^2)+(D196^2))","v":61.571097115448573},{"$f":"E191+E192+E193+E194+E195+E196","v":915},{"$f":"SQRT((F191^2)+(F192^2)+(F193^2)+(F194^2)+(F195^2)+(F196^2))","v":212.14381914163798},{"$f":"G191+G192+G193+G194+G195+G196","v":138},{"$f":"SQRT((H191^2)+(H192^2)+(H193^2)+(H194^2)+(H195^2)+(H196^2))","v":41.133927602406267},{"$f":"I191+I192+I193+I194+I195+I196","v":99},{"$f":"SQRT((J191^2)+(J192^2)+(J193^2)+(J194^2)+(J195^2)+(J196^2))","v":37.894590642992831},{"$f":"K191+K192+K193+K194+K195+K196","v":2077},{"$f":"SQRT((L191^2)+(L192^2)+(L193^2)+(L194^2)+(L195^2)+(L196^2))","v":349.64124470662784},{"$f":"M191+M192+M193+M194+M195+M196","v":123},{"$f":"SQRT((N191^2)+(N192^2)+(N193^2)+(N194^2)+(N195^2)+(N196^2))","v":36.455452267116371},{"$f":"O191+O192+O193+O194+O195+O196","v":278},{"$f":"SQRT((P191^2)+(P192^2)+(P193^2)+(P194^2)+(P195^2)+(P196^2))","v":60.539243470661241},{"$f":"Q191+Q192+Q193+Q194+Q195+Q196","v":325},{"$f":"SQRT((R191^2)+(R192^2)+(R193^2)+(R194^2)+(R195^2)+(R196^2))","v":60.712436946642157},{"$f":"S191+S192+S193+S194+S195+S196","v":39},{"$f":"SQRT((T191^2)+(T192^2)+(T193^2)+(T194^2)+(T195^2)+(T196^2))","v":21.2602916254693},{"$f":"U191+U192+U193+U194+U195+U196","v":7},{"$f":"SQRT((V191^2)+(V192^2)+(V193^2)+(V194^2)+(V195^2)+(V196^2))","v":35.818989377144632},{"$f":"W191+W192+W193+W194+W195+W196","v":261},{"$f":"SQRT((X191^2)+(X192^2)+(X193^2)+(X194^2)+(X195^2)+(X196^2))","v":70.078527381787922},{"$f":"Y191+Y192+Y193+Y194+Y195+Y196","v":626},{"$f":"SQRT((Z191^2)+(Z192^2)+(Z193^2)+(Z194^2)+(Z195^2)+(Z196^2))","v":131.54847015454038},{"$f":"AA191+AA192+AA193+AA194+AA195+AA196","v":1159},{"$f":"SQRT((AB191^2)+(AB192^2)+(AB193^2)+(AB194^2)+(AB195^2)+(AB196^2))","v":201.64076968708486},{"$f":"AC191+AC192+AC193+AC194+AC195+AC196","v":902},{"$f":"SQRT((AD191^2)+(AD192^2)+(AD193^2)+(AD194^2)+(AD195^2)+(AD196^2))","v":174.70546642850076},{"$f":"AE191+AE192+AE193+AE194+AE195+AE196","v":376},{"$f":"SQRT((AF191^2)+(AF192^2)+(AF193^2)+(AF194^2)+(AF195^2)+(AF196^2))","v":59.958318855685071},{"$f":"AG191+AG192+AG193+AG194+AG195+AG196","v":787},{"$f":"SQRT((AH191^2)+(AH192^2)+(AH193^2)+(AH194^2)+(AH195^2)+(AH196^2))","v":176.47096078392048},{"$f":"AI191+AI192+AI193+AI194+AI195+AI196","v":722},{"$f":"SQRT((AJ191^2)+(AJ192^2)+(AJ193^2)+(AJ194^2)+(AJ195^2)+(AJ196^2))","v":152.88557812952797},{"$f":"AK191+AK192+AK193+AK194+AK195+AK196","v":1237},{"$f":"SQRT((AL191^2)+(AL192^2)+(AL193^2)+(AL194^2)+(AL195^2)+(AL196^2))","v":276.27703487622711},{"$f":"AM191+AM192+AM193+AM194+AM195+AM196","v":1788},{"$f":"SQRT((AN191^2)+(AN192^2)+(AN193^2)+(AN194^2)+(AN195^2)+(AN196^2))","v":322.3709043943017}]
[null," 35% or More of HH Income",{"$f":"C197+C198+C199","v":57},{"$f":"SQRT((D197^2)+(D198^2)+(D199^2))","v":32.03123475609393},{"$f":"E197+E198+E199","v":189},{"$f":"SQRT((F197^2)+(F198^2)+(F199^2))","v":102.43046421841503},{"$f":"G197+G198+G199","v":104},{"$f":"SQRT((H197^2)+(H198^2)+(H199^2))","v":41.496987842492857},{"$f":"I197+I198+I199","v":46},{"$f":"SQRT((J197^2)+(J198^2)+(J199^2))","v":31.304951684997057},{"$f":"K197+K198+K199","v":757},{"$f":"SQRT((L197^2)+(L198^2)+(L199^2))","v":193.19679086361657},{"$f":"M197+M198+M199","v":31},{"$f":"SQRT((N197^2)+(N198^2)+(N199^2))","v":15.620499351813308},{"$f":"O197+O198+O199","v":151},{"$f":"SQRT((P197^2)+(P198^2)+(P199^2))","v":47.1805044483418},{"$f":"Q197+Q198+Q199","v":154},{"$f":"SQRT((R197^2)+(R198^2)+(R199^2))","v":38.561638969317684},{"$f":"S197+S198+S199","v":13},{"$f":"SQRT((T197^2)+(T198^2)+(T199^2))","v":20.71231517720798},{"$f":"U197+U198+U199","v":0},{"$f":"SQRT((V197^2)+(V198^2)+(V199^2))","v":26.944387170614956},{"$f":"W197+W198+W199","v":63},{"$f":"SQRT((X197^2)+(X198^2)+(X199^2))","v":33.526109228480422},{"$f":"Y197+Y198+Y199","v":227},{"$f":"SQRT((Z197^2)+(Z198^2)+(Z199^2))","v":84.439327330338202},{"$f":"AA197+AA198+AA199","v":435},{"$f":"SQRT((AB197^2)+(AB198^2)+(AB199^2))","v":140.39943019827396},{"$f":"AC197+AC198+AC199","v":480},{"$f":"SQRT((AD197^2)+(AD198^2)+(AD199^2))","v":146.78215150351218},{"$f":"AE197+AE198+AE199","v":118},{"$f":"SQRT((AF197^2)+(AF198^2)+(AF199^2))","v":36.715119501371639},{"$f":"AG197+AG198+AG199","v":270},{"$f":"SQRT((AH197^2)+(AH198^2)+(AH199^2))","v":89.927748776448311},{"$f":"AI197+AI198+AI199","v":185},{"$f":"SQRT((AJ197^2)+(AJ198^2)+(AJ199^2))","v":67.520367297579185},{"$f":"AK197+AK198+AK199","v":737},{"$f":"SQRT((AL197^2)+(AL198^2)+(AL199^2))","v":219.94544778194435},{"$f":"AM197+AM198+AM199","v":377},{"$f":"SQRT((AN197^2)+(AN198^2)+(AN199^2))","v":134.40610105199838}]
[null," 50% or More of HH Income",{"$f":"C199","v":21},{"$f":"D199","v":13.416407864998739},{"$f":"E199","v":69},57.070132293521098,45,23.409399821439251,33,27.294688127912362,422,151.38031576133008,19,11.661903789690601,77,31.304951684997057,86,27.294688127912362,8,6.4031242374328485,0,15.556349186104045,24,16.643316977093239,{"$f":"Y199","v":82},50.635955604688654,223,94.371605899232208,169,80.808415403347695,65,26.40075756488817,160,68.8839603971781,66,37.363083384538811,298,126.15070352558483,254,111.83022847155415]
[null,"Not computed",{"$f":"C200","v":2},{"$f":"D200","v":11.704699910719626},24,40.521599178709621,0,15.556349186104045,1,11.180339887498949,0,25.45584412271571,2,11.401754250991379,5,14.212670403551895,3,12.083045973594572,0,15.556349186104045,0,15.556349186104045,10,21.095023109728988,{"$f":"Y200","v":0},15.556349186104045,37,42.5205832509386,22,27.313000567495326,0,15.556349186104045,13,21.95449840010015,0,15.556349186104045,17,30.528675044947494,0,22.627416997969522]

{"sheet":"ACS_Table_B25106","index":22,"n_rows":255,"n_cols":40,"rows_kept":255,"cut":false,"hidden":true,"merged":[]}
[null,"B25106. TENURE BY HOUSING COSTS AS A PERCENTAGE OF HOUSEHOLD INCOME IN THE PAST 12 MONTHS"]
[null,"Universe:  OCCUPIED HOUSING UNITS"]
[null,"Data Set: 2018-2022 American Community Survey 5-Year Estimates"]
[]
[null,null,"Albany",null,"Bartlett",null,"Brookfield",null,"Chatham",null,"Conway",null,"Eaton",null,"Effingham",null,"Freedom",null,"Hale's location",null,"Hart's Location",null,"Jackson",null,"Madison",null,"Moultonborough",null,"Ossipee",null,"Sandwich",null,"Tamworth",null,"Tuftonboro",null,"Wakefield",null,"Wolfeboro"]
[null,null,"Estimate","Margin of Error","Estimate","Margin of Error","Estimate","Margin of Error","Estimate","Margin of Error","Estimate","Margin of Error","Estimate","Margin of Error","Estimate","Margin of Error","Estimate","Margin of Error","Estimate","Margin of Error","Estimate","Margin of Error","Estimate","Margin of Error","Estimate","Margin of Error","Estimate","Margin of Error","Estimate","Margin of Error","Estimate","Margin of Error","Estimate","Margin of Error","Estimate","Margin of Error","Estimate","Margin of Error","Estimate","Margin of Error"]
[null,"Total:",343,91,1722,223,232,58,160,41,4468,345,158,37,549,65,576,78,105,41,43,32,500,96,978,100,2111,184,1677,153,930,170,987,167,1113,87,2205,225,2787,260]
[null,"Owner occupied housing units:",252,56,1376,221,231,57,141,36,3119,350,123,29,477,55,543,72,85,31,43,32,385,96,839,100,1880,213,1383,151,857,171,646,161,1005,95,2100,207,2165,270]
[null,"Less than $20,000:",35,27,8,16,18,14,5,7,401,211,15,10,53,36,21,16,3,4,0,12,48,60,63,36,35,31,150,88,46,23,77,65,70,42,188,138,283,147]
[null,"Less than 20 percent",0,12,0,12,0,12,0,12,0,17,0,12,10,15,2,3,0,12,0,12,0,12,0,12,13,20,13,25,0,12,0,12,0,12,15,22,0,17]
[null,"20 to 29 percent",0,12,0,12,7,11,5,7,0,17,0,12,3,5,0,12,0,12,0,12,0,12,0,12,0,12,0,12,0,12,0,12,0,12,0,17,0,17]
[null,"30 percent or more",35,27,8,16,11,8,0,12,401,211,15,10,40,32,19,15,3,4,0,12,48,60,63,36,22,24,137,88,46,23,77,65,70,42,173,131,283,147]
[null,"$20,000 to $34,999:",26,20,254,136,24,24,6,5,471,244,3,5,30,18,81,39,11,10,4,7,30,26,41,27,100,61,124,72,31,17,79,64,128,61,92,58,292,157]
[null,"Less than 20 percent",8,13,97,96,0,12,0,12,43,43,0,12,3,4,2,4,0,12,0,12,0,12,0,12,35,43,26,39,3,4,6,11,22,20,0,17,103,93]
[null,"20 to 29 percent",9,11,44,70,14,23,0,12,140,166,2,4,4,5,2,4,0,12,0,12,0,12,15,18,10,12,0,12,4,5,11,15,10,13,13,21,42,66]
[null,"30 percent or more",9,13,113,97,10,8,6,5,288,148,1,3,23,17,77,39,11,10,4,7,30,26,26,20,55,41,98,62,24,15,62,60,96,57,79,55,147,108]
[null,"$35,000 to $49,999:",20,16,182,131,17,14,18,11,322,141,8,6,42,21,62,27,3,4,18,24,15,17,38,22,314,145,96,62,50,33,43,39,78,41,187,120,294,178]
[null,"Less than 20 percent",6,6,90,96,0,12,0,12,142,95,4,5,14,12,16,12,1,3,0,12,7,12,0,12,136,83,35,48,30,28,0,12,15,16,13,22,101,116]
[null,"20 to 29 percent",2,3,16,22,0,12,12,9,36,31,2,4,10,11,19,20,0,12,18,24,0,12,12,13,65,58,28,29,17,15,28,32,26,23,6,9,16,20]
[null,"30 percent or more",12,13,76,81,17,14,6,5,144,112,2,3,18,12,27,16,2,3,0,12,8,12,26,18,113,114,33,32,3,5,15,23,37,29,168,121,177,124]
[null,"$50,000 to $74,999:",53,28,267,174,44,24,28,17,434,162,32,16,83,28,88,40,14,11,10,17,36,29,77,46,231,98,330,109,81,29,88,57,154,65,399,148,208,98]
[null,"Less than 20 percent",25,18,142,140,26,20,17,12,145,80,21,14,30,12,46,23,11,10,10,17,11,16,31,24,134,76,90,65,46,25,33,28,71,44,148,81,71,60]
[null,"20 to 29 percent",3,4,13,20,6,7,10,11,54,41,7,7,25,15,34,31,2,3,0,12,16,19,22,27,23,26,114,78,18,13,12,18,34,22,89,73,87,69]
[null,"30 percent or more",25,21,112,93,12,8,1,3,235,127,4,4,28,22,8,7,1,3,0,12,9,12,24,26,74,56,126,77,17,15,43,43,49,54,162,107,50,44]
[null,"$75,000 or more:",118,34,665,189,128,36,84,23,1481,278,65,20,261,54,287,51,49,23,11,12,256,82,612,90,1186,164,683,124,649,172,359,121,575,102,1234,239,1088,216]
[null,"Less than 20 percent",93,32,544,182,92,30,59,19,1240,262,53,17,216,51,216,47,44,22,11,12,181,71,496,95,873,155,535,140,565,175,324,118,373,103,1024,238,648,166]
[null,"20 to 29 percent",23,17,106,90,29,15,13,11,147,61,12,10,25,17,64,25,5,5,0,12,72,42,101,50,154,74,145,63,39,19,23,26,167,106,143,82,209,112]
[null,"30 percent or more",2,4,15,24,7,6,12,13,94,96,0,12,20,18,7,7,0,12,0,12,3,5,15,16,159,86,3,6,45,28,12,18,35,27,67,80,231,125]
[null,"Zero or negative income",0,12,0,12,0,12,0,12,10,19,0,12,8,12,4,7,5,8,0,12,0,12,8,9,14,17,0,12,0,12,0,12,0,12,0,17,0,17]
[null,"Renter occupied housing units:",91,72,346,180,1,5,19,16,1349,254,35,22,72,40,33,48,20,31,0,12,115,59,139,66,231,101,294,118,73,32,341,136,108,67,105,98,622,231]
[null,"Less than $20,000:",12,13,39,54,0,12,0,12,357,214,6,10,4,6,33,48,0,12,0,12,0,12,0,12,9,14,72,66,3,6,57,62,0,12,0,17,93,106]
[null,"Less than 20 percent",0,12,0,12,0,12,0,12,10,15,0,12,0,12,0,12,0,12,0,12,0,12,0,12,0,12,26,42,0,12,0,12,0,12,0,17,0,17]
[null,"20 to 29 percent",0,12,0,12,0,12,0,12,38,57,0,12,0,12,0,12,0,12,0,12,0,12,0,12,0,12,0,12,0,12,0,12,0,12,0,17,11,19]
[null,"30 percent or more",12,13,39,54,0,12,0,12,309,194,6,10,4,6,33,48,0,12,0,12,0,12,0,12,9,14,46,49,3,6,57,62,0,12,0,17,82,105]
[null,"$20,000 to $34,999:",3,4,75,76,0,12,4,6,175,110,6,10,4,5,0,12,0,12,0,12,0,12,31,35,0,12,56,60,0,12,65,63,0,12,50,80,77,63]
[null,"Less than 20 percent",0,12,0,12,0,12,0,12,0,17,0,12,0,12,0,12,0,12,0,12,0,12,3,5,0,12,0,12,0,12,0,12,0,12,0,17,0,17]
[null,"20 to 29 percent",3,4,0,12,0,12,0,12,44,72,0,12,0,12,0,12,0,12,0,12,0,12,0,12,0,12,0,12,0,12,11,20,0,12,0,17,36,42]
[null,"30 percent or more",0,12,75,76,0,12,4,6,131,109,6,10,4,5,0,12,0,12,0,12,0,12,28,34,0,12,56,60,0,12,54,57,0,12,50,80,41,45]
[null,"$35,000 to $49,999:",5,6,95,112,0,12,5,7,181,118,11,14,0,12,0,12,0,12,0,12,62,60,1,4,51,47,19,23,9,13,32,45,13,21,14,22,27,39]
[null,"Less than 20 percent",0,12,0,12,0,12,5,7,0,17,0,12,0,12,0,12,0,12,0,12,0,12,0,12,20,31,9,14,0,12,0,12,0,12,0,17,0,17]
[null,"20 to 29 percent",0,12,0,12,0,12,0,12,60,72,8,13,0,12,0,12,0,12,0,12,13,26,0,12,0,12,0,12,0,12,0,12,0,12,0,17,0,17]
[null,"30 percent or more",5,6,95,112,0,12,0,12,121,91,3,4,0,12,0,12,0,12,0,12,49,55,1,4,31,33,10,20,9,13,32,45,13,21,14,22,27,39]
[null,"$50,000 to $74,999:",0,12,57,54,0,12,0,12,185,117,7,8,23,28,0,12,0,12,0,12,0,12,33,25,17,22,77,73,5,7,61,67,19,22,17,22,59,77]
[null,"Less than 20 percent",0,12,23,34,0,12,0,12,12,21,0,12,0,12,0,12,0,12,0,12,0,12,0,12,17,22,21,33,0,12,0,12,11,18,11,19,46,74]
[null,"20 to 29 percent",0,12,0,12,0,12,0,12,95,91,7,8,21,26,0,12,0,12,0,12,0,12,25,23,0,12,28,49,5,7,49,66,8,13,6,10,0,17]
[null,"30 percent or more",0,12,34,47,0,12,0,12,78,70,0,12,2,4,0,12,0,12,0,12,0,12,8,10,0,12,28,41,0,12,12,19,0,12,0,17,13,21]
[null,"$75,000 or more:",5,6,38,58,0,12,0,12,370,147,2,5,23,20,0,12,20,31,0,12,45,33,57,38,134,91,3,25,32,24,81,56,69,62,0,17,290,192]
[null,"Less than 20 percent",5,6,38,58,0,12,0,12,319,146,2,5,11,8,0,12,20,31,0,12,45,33,50,32,75,68,3,25,5,7,81,56,16,17,0,17,290,192]
[null,"20 to 29 percent",0,12,0,12,0,12,0,12,51,46,0,12,12,19,0,12,0,12,0,12,0,12,7,10,59,49,0,12,21,22,0,12,35,54,0,17,0,17]
[null,"30 percent or more",0,12,0,12,0,12,0,12,0,17,0,12,0,12,0,12,0,12,0,12,0,12,0,12,0,12,0,12,6,9,0,12,18,29,0,17,0,17]
[null,"Zero or negative income",0,12,0,12,0,12,0,12,36,51,0,12,0,12,0,12,0,12,0,12,0,12,0,12,0,12,6,21,0,12,0,12,0,12,0,17,0,17]
[null,"No cash rent",66,70,42,68,1,5,10,15,45,47,3,4,18,15,0,12,0,12,0,12,8,14,17,28,20,20,61,37,24,16,45,35,7,9,24,41,76,57]
[]
[]
[]
[]
[]
[]
[null,"Calculated B25106. TENURE BY HOUSING COSTS AS A PERCENTAGE OF HOUSEHOLD INCOME IN THE PAST 12 MONTHS"]
[null,"Universe:  OCCUPIED HOUSING UNITS"]
[null,{"$f":"B3","v":"Data Set: 2018-2022 American Community Survey 5-Year Estimates"}]
[]
[null,null,"Albany",null,"Bartlett",null,"Brookfield",null,"Chatham",null,"Conway",null,"Eaton",null,"Effingham",null,"Freedom",null,"Hale's location",null,"Hart's Location",null,"Jackson",null,"Madison",null,"Moultonborough",null,"Ossipee",null,"Sandwich",null,"Tamworth",null,"Tuftonboro",null,"Wakefield",null,"Wolfeboro"]
[null,null,"Estimate","Margin of Error","Estimate","Margin of Error","Estimate","Margin of Error","Estimate","Margin of Error","Estimate","Margin of Error","Estimate","Margin of Error","Estimate","Margin of Error","Estimate","Margin of Error","Estimate","Margin of Error","Estimate","Margin of Error","Estimate","Margin of Error","Estimate","Margin of Error","Estimate","Margin of Error","Estimate","Margin of Error","Estimate","Margin of Error","Estimate","Margin of Error","Estimate","Margin of Error","Estimate","Margin of Error","Estimate","Margin of Error"]
[null,{"$f":"B7","v":"Total:"},343,91,1722,223,232,58,160,41,4468,345,158,37,549,65,576,78,105,41,43,32,500,96,{"$f":"Y186","v":1044},102,1793,98,1697,144,592,81,1353,138,1041,115,2216,215,2590,178]
[null,"Owner occupied housing units:",252,56,1376,221,231,57,141,36,3119,350,123,29,477,55,543,72,85,31,43,32,385,96,{"$f":"Y187","v":853},97,1631,128,1404,150,494,70,1070,136,907,104,1991,198,2165,196]
[null,"Less than 20 percent",{"$f":"C10+C14+C18+C22+C26","v":132},{"$f":"SQRT((D10^2)+(D14^2)+(D18^2)+(D22^2)+(D26^2))","v":41.194659848091959},{"$f":"SQRT((E10^2)+(E14^2)+(E18^2)+(E22^2)+(E26^2))","v":577.5889541880108},267.02059845637376,95.603347221736954,41.617304093369626,61.400325732035007,30.610455730027933,1257.2342661572663,293.61028592336476,57.148928248918196,28.24889378365107,218.77157036507279,55.946402922797461,221.44073699299324,53.916602266834282,45.365184888855019,29.681644159311659,14.866068747318506,29.410882339705484,181.46900561803935,75.690157880665041,{"$f":"SQRT((Y189^2)+(Y193^2)+(Y197^2)+(Y201^2)+(Y205^2))","v":260.28253879198274},90.835015274947793,500.85726509655422,161.04968177553161,270.27393511028771,126.70832648251653,164.1554141659665,47.560487802376457,259.10036665354221,129.83065893693984,256.8929738237307,104.11532067856297,346.28889673219385,179.70253197993623,732.6929779928289,252.23005372080465]
[null,"20 to 29 percent",{"$f":"C11+C15+C19+C23+C27","v":37},{"$f":"SQRT((D11^2)+(D15^2)+(D19^2)+(D23^2)+(D27^2))","v":24.06241883103193},116.60617479361889,118.43985815594343,33.496268448888451,32.680269276736382,20.928449536456348,22.715633383201094,213.12203077110541,184.95404834715026,14.177446878757825,18.027756377319946,37.080992435478315,26.172504656604801,74.94664769020693,46.324939287601879,5.3851648071345037,21.587033144922902,18,33.941125496954278,73.756355658343097,50.566787519082126,{"$f":"SQRT((Y190^2)+(Y194^2)+(Y198^2)+(Y202^2)+(Y206^2))","v":120.55704044144414},71.77046746399246,206.18195847357742,105.32805893967665,184.34749794884661,93.268429814165955,45.376205218153707,31.048349392520048,92.558089867931045,68.30080526611674,117.983049630021,81.111035007574642,199.090431713832,161.641578809414,362.01104955512062,186.86893802876924]
[null,"30 percent or more",{"$f":"C12+C16+C20+C24+C28","v":83},{"$f":"SQRT((D12^2)+(D16^2)+(D20^2)+(D24^2)+(D28^2))","v":39.038442591886273},177.13836399831629,159.53369550035504,26.514147167125703,20.591260281974002,14.730919862656235,19.28730152198591,573.18583373980903,322.97677935108584,15.684387141358123,16.673332000533065,60.307545133258408,47.592016137163178,84.451169322869646,45.825756949558397,11.61895003862225,16.673332000533065,4,25,57.948252777801677,67.742158217759794,{"$f":"SQRT((Y191^2)+(Y195^2)+(Y199^2)+(Y203^2)+(Y207^2))","v":167.11672567400308},103.52777405121778,220.15222006602613,147.88509052639486,310.13222986332784,161.5580391066938,75.907838857393372,41.073105555825698,198.66806487203723,125.72986916401369,136.01838111078959,83.558362837001539,482.67898234748111,245.37929823031118,209.088498009814,137.33535597216036]
[null,"Zero or negative income",{"$f":"C29","v":0},{"$f":"D29","v":12},{"$f":"E29","v":0},12,0,12,0,12,10,19,0,12,8,12,4,7,5,8,0,12,0,12,{"$f":"Y208","v":0},11,37,42,22,25,0,11,13,19,0,11,17,26,0,16]
[null,"Renter occupied housing units:",{"$f":"C30","v":91},{"$f":"D30","v":72},346,180,1,5,19,16,1349,254,35,22,72,40,33,48,20,31,0,12,115,59,{"$f":"Y209","v":191},79,162,74,293,97,98,37,283,117,134,71,225,131,425,154]
[null,"Less than 20 percent",{"$f":"C32+C36+C40+C44+C48","v":5},{"$f":"SQRT((D32^2)+(D36^2)+(D40^2)+(D44^2)+(D48^2))","v":24.738633753705962},{"$f":"SQRT((E32^2)+(E36^2)+(E40^2)+(E44^2)+(E48^2))","v":44.418464629025621},70.370448343036728,0,26.832815729997478,5,25,319.38221616113822,150.19986684414869,2,24.515301344262525,11,25.298221281347036,0,26.832815729997478,20,39.204591567825318,0,26.832815729997478,45,40.80441152620633,{"$f":"SQRT((Y211^2)+(Y215^2)+(Y219^2)+(Y223^2)+(Y227^2))","v":58.940648113165501},56.356011214421486,20,31.827660925679098,0,24.596747752497688,5.8309518948453007,18.466185312619388,47.801673610868477,74.060785845142092,37.656340767525464,45.420259796703057,28,54.405882034941776,34.957116585897069,55.244909267732531]
[null,"20 to 29 percent",{"$f":"C33+C37+C41+C45+C49","v":3},{"$f":"SQRT((D33^2)+(D37^2)+(D41^2)+(D45^2)+(D49^2))","v":24.331050121192877},0,26.832815729997478,0,26.832815729997478,0,26.832815729997478,136.40381226344078,154.96451206647282,10.63014581273465,25.787593916455254,24.186773244895647,38.327535793473601,0,26.832815729997478,0,26.832815729997478,0,26.832815729997478,13,35.383612025908263,{"$f":"SQRT((Y212^2)+(Y216^2)+(Y220^2)+(Y224^2)+(Y228^2))","v":15},31.827660925679098,37,38.832975677895199,39.064049969249218,58.420886675914119,18.138357147217054,28.913664589601922,69.260378283691168,86.301796041565666,0,24.596747752497688,13,37.215588131856791,59,95.519631490076421]
[null,"30 percent or more",{"$f":"C34+C38+C42+C46+C50","v":17},{"$f":"SQRT((D34^2)+(D38^2)+(D42^2)+(D46^2)+(D50^2))","v":25.238858928247925},131.63206296339808,153.58710883404245,0,26.832815729997478,4,24.738633753705962,365.19446874234006,250.97211000427916,9,22.449944320643649,6,19.104973174542799,33,53.665631459994955,0,26.832815729997478,0,26.832815729997478,49,60.00833275470999,{"$f":"SQRT((Y213^2)+(Y217^2)+(Y221^2)+(Y225^2)+(Y229^2))","v":50.069951068480187},53.888774341229919,39.686269665968858,41.315856520227193,130.5450113945378,111.6288493177279,27.477263328068172,32.062439083762797,70.405965656327737,65.023072828035438,26.92582403567252,43.669211121796096,112.79184367674819,131.14877048604001,164.84841521834537,150.32963779641059]
[null,"Zero or negative income",{"$f":"C51","v":0},{"$f":"D51","v":12},{"$f":"E51","v":0},12,0,12,0,12,36,51,0,12,0,12,0,12,0,12,0,12,0,12,{"$f":"Y230","v":0},11,0,11,0,11,0,11,0,11,0,11,0,16,14,23]
[null,"No cash rent",{"$f":"C52","v":66},{"$f":"D52","v":70},42,68,1,5,10,15,45,47,3,4,18,15,0,12,0,12,0,12,8,14,{"$f":"Y231","v":19},30,44,44,37,39,14,11,22,26,49,36,16,25,23,26]
[]
[]
[]
[]
[]
[]
[]
[]
[]
[]
[]
[]
[]
[]
[]
[]
[]
[]
[]
[]
[]
[]
[]
[null,"B25106. TENURE BY HOUSING COSTS AS A PERCENTAGE OF HOUSEHOLD INCOME IN THE PAST 12 MONTHS"]
[null,"Universe:  OCCUPIED HOUSING UNITS"]
[null,"Data Set: 2013-2017 American Community Survey 5-Year Estimates"]
[]
[null,null,"Albany",null,"Bartlett",null,"Brookfield",null,"Chatham",null,"Conway",null,"Eaton",null,"Effingham",null,"Freedom",null,"Hale's location",null,"Hart's Location",null,"Jackson",null,"Madison",null,"Moultonborough",null,"Ossipee",null,"Sandwich",null,"Tamworth",null,"Tuftonboro",null,"Wakefield",null,"Wolfeboro"]
[null,null,"Estimate","Margin of Error","Estimate","Margin of Error","Estimate","Margin of Error","Estimate","Margin of Error","Estimate","Margin of Error","Estimate","Margin of Error","Estimate","Margin of Error","Estimate","Margin of Error","Estimate","Margin of Error","Estimate","Margin of Error","Estimate","Margin of Error","Estimate","Margin of Error","Estimate","Margin of Error","Estimate","Margin of Error","Estimate","Margin of Error","Estimate","Margin of Error","Estimate","Margin of Error","Estimate","Margin of Error","Estimate","Margin of Error"]
[null,"Total:",312,44,1408,164,326,77,142,36,4346,208,169,38,602,72,587,74,79,24,26,16,455,89,1069,85,1758,102,1962,185,617,73,1378,137,966,103,2066,185,2935,210]
[null,"Owner occupied housing units:",270,43,972,176,290,65,124,27,3210,230,139,33,495,59,502,65,79,24,18,14,365,82,894,105,1498,124,1580,173,513,73,937,124,841,100,1841,183,2302,218]
[null,"Less than $20,000:",48,21,86,71,11,9,10,8,212,100,13,10,55,30,51,27,2,5,4,6,25,27,86,51,119,69,307,131,31,21,84,72,118,66,222,137,100,95]
[null,"Less than 20 percent",6,10,0,11,0,11,5,4,18,27,0,11,4,5,0,11,0,11,0,11,9,13,42,32,0,11,60,65,0,11,0,11,18,29,0,16,0,16]
[null,"20 to 29 percent",2,3,30,45,0,11,0,11,0,18,3,4,16,18,4,6,0,11,0,11,0,11,0,11,62,53,9,14,4,6,0,11,28,32,47,51,0,16]
[null,"30 percent or more",40,21,56,53,11,9,5,6,194,103,10,8,35,22,47,27,2,5,4,6,16,25,44,35,57,39,238,111,27,20,84,72,72,39,175,125,100,95]
[null,"$20,000 to $34,999:",29,19,175,91,20,16,9,13,481,149,12,8,74,25,71,31,12,8,2,3,31,23,91,48,110,75,270,117,60,28,180,110,70,25,226,120,485,200]
[null,"Less than 20 percent",0,11,63,57,9,10,6,8,30,28,0,11,18,13,4,6,2,3,0,11,8,13,9,12,0,11,117,90,6,8,0,11,25,16,20,28,44,49]
[null,"20 to 29 percent",9,8,39,43,0,11,3,7,175,106,3,4,32,16,20,16,0,11,0,11,12,14,38,37,0,11,41,52,19,12,85,78,15,13,66,80,124,102]
[null,"30 percent or more",20,16,73,53,11,14,0,11,276,98,9,7,24,20,47,24,10,7,2,3,11,15,44,31,110,75,112,57,35,21,95,88,30,18,140,95,317,170]
[null,"$35,000 to $49,999:",34,18,151,80,41,25,21,13,404,148,19,14,92,31,78,33,6,6,3,6,43,30,105,55,94,45,142,60,64,31,70,70,98,49,179,117,283,145]
[null,"Less than 20 percent",20,17,80,65,17,18,12,8,131,88,0,11,31,18,48,27,3,4,0,11,9,14,62,43,20,21,44,29,22,20,40,62,32,27,18,20,86,72]
[null,"20 to 29 percent",7,6,20,18,9,8,9,11,145,102,9,8,26,21,13,10,2,3,3,6,5,8,14,15,44,31,33,30,31,19,0,11,18,14,0,16,40,38]
[null,"30 percent or more",7,8,51,48,15,15,0,11,128,69,10,12,35,20,17,17,1,3,0,11,29,26,29,31,30,20,65,42,11,10,30,30,48,35,161,113,157,124]
[null,"$50,000 to $74,999:",46,19,158,89,66,28,25,14,676,209,34,18,100,33,105,32,23,12,5,6,81,42,239,78,354,112,392,125,86,32,275,116,181,60,547,190,334,127]
[null,"Less than 20 percent",25,15,56,51,24,15,11,9,292,145,20,12,32,18,40,20,12,10,5,6,59,33,81,44,165,65,181,90,44,26,101,73,93,48,191,125,224,103]
[null,"20 to 29 percent",10,11,64,67,17,13,8,8,253,138,11,11,53,28,43,21,5,5,0,11,11,17,98,50,140,87,161,84,23,15,158,103,63,31,244,147,78,68]
[null,"30 percent or more",11,9,38,44,25,16,6,6,131,83,3,5,15,9,22,18,6,6,0,11,11,17,60,43,49,31,50,39,19,15,16,23,25,17,112,81,32,36]
[null,"$75,000 or more:",113,30,402,118,152,41,56,15,1437,288,61,21,168,43,197,42,36,14,4,7,182,59,360,75,810,119,469,112,272,51,328,128,342,67,648,135,1077,219]
[null,"Less than 20 percent",100,30,270,102,98,31,44,15,1130,241,42,19,123,37,175,41,33,14,4,7,150,50,282,73,585,98,435,109,220,51,254,117,230,62,494,143,836,199]
[null,"20 to 29 percent",11,6,132,77,40,23,11,8,249,137,10,9,24,13,15,12,3,4,0,11,29,26,36,27,155,60,34,32,40,22,74,81,67,32,154,87,211,123]
[null,"30 percent or more",2,4,0,11,14,12,1,2,58,71,9,11,21,15,7,9,0,11,0,11,3,4,42,35,70,58,0,11,12,9,0,11,45,39,0,16,30,34]
[null,"Zero or negative income",0,11,0,11,0,11,3,5,0,18,0,11,6,6,0,11,0,11,0,11,3,4,13,15,11,16,0,11,0,11,0,11,32,29,19,30,23,38]
[null,"Renter occupied housing units:",42,21,436,142,36,38,18,22,1136,254,30,14,107,48,85,32,0,11,8,9,90,48,175,56,260,93,382,138,104,43,441,148,125,64,225,101,633,207]
[null,"Less than $20,000:",5,6,129,72,0,11,1,2,275,111,0,11,17,13,0,11,0,11,0,11,19,23,10,15,35,28,96,81,9,10,200,116,12,12,29,48,235,153]
[null,"Less than 20 percent",0,11,0,11,0,11,0,11,17,26,0,11,0,11,0,11,0,11,0,11,0,11,0,11,6,10,0,11,0,11,13,20,0,11,0,16,0,16]
[null,"20 to 29 percent",0,11,0,11,0,11,0,11,29,33,0,11,0,11,0,11,0,11,0,11,0,11,0,11,6,9,31,51,6,9,15,22,0,11,0,16,18,30]
[null,"30 percent or more",5,6,129,72,0,11,1,2,229,111,0,11,17,13,0,11,0,11,0,11,19,23,10,15,23,23,65,70,3,6,172,117,12,12,29,48,217,153]
[null,"$20,000 to $34,999:",11,12,12,18,8,14,7,14,219,125,0,11,41,27,17,18,0,11,0,11,0,11,38,33,13,13,140,102,16,17,82,68,50,44,17,26,125,125]
[null,"Less than 20 percent",0,11,0,11,0,11,0,11,0,18,0,11,0,11,0,11,0,11,0,11,0,11,0,11,6,9,31,51,0,11,0,11,0,11,0,16,0,16]
[null,"20 to 29 percent",0,11,12,18,0,11,0,11,72,62,0,11,0,11,0,11,0,11,0,11,0,11,17,26,0,11,0,11,7,7,14,23,12,18,17,26,81,92]
[null,"30 percent or more",11,12,0,11,8,14,7,14,147,107,0,11,41,27,17,18,0,11,0,11,0,11,21,22,7,10,109,85,9,14,68,64,38,39,0,16,44,67]
[null,"$35,000 to $49,999:",11,16,69,62,0,11,0,11,210,118,0,11,0,11,15,12,0,11,0,11,27,23,22,26,18,27,0,11,31,24,18,20,17,26,139,84,198,124]
[null,"Less than 20 percent",0,11,0,11,0,11,0,11,45,52,0,11,0,11,0,11,0,11,0,11,12,19,0,11,0,11,0,11,0,11,11,17,0,11,35,41,0,16]
[null,"20 to 29 percent",8,15,69,62,0,11,0,11,57,55,0,11,0,11,9,8,0,11,0,11,15,13,14,23,0,11,0,11,14,17,7,10,17,26,0,16,63,79]
[null,"30 percent or more",3,6,0,11,0,11,0,11,108,95,0,11,0,11,6,8,0,11,0,11,0,11,8,12,18,27,0,11,17,17,0,11,0,11,104,79,135,103]
[null,"$50,000 to $74,999:",0,11,96,72,0,11,10,14,266,133,13,11,20,19,10,11,0,11,0,11,8,13,32,30,60,45,0,11,10,7,99,87,10,13,20,31,0,16]
[null,"Less than 20 percent",0,11,25,41,0,11,10,14,89,86,10,9,11,17,0,11,0,11,0,11,8,13,17,27,30,37,0,11,4,6,60,73,0,11,20,31,0,16]
[null,"20 to 29 percent",0,11,71,62,0,11,0,11,177,111,3,4,5,6,7,10,0,11,0,11,0,11,7,12,23,24,0,11,0,11,0,11,5,8,0,16,0,16]
[null,"30 percent or more",0,11,0,11,0,11,0,11,0,18,0,11,4,6,3,5,0,11,0,11,0,11,8,11,7,11,0,11,6,6,39,59,5,7,0,16,0,16]
[null,"$75,000 or more:",12,9,50,57,28,35,0,11,107,94,0,11,13,18,34,20,0,11,8,9,31,31,44,29,56,58,71,81,10,12,42,39,7,11,0,16,58,75]
[null,"Less than 20 percent",9,7,22,37,28,35,0,11,107,94,0,11,13,18,22,19,0,11,5,8,20,23,12,13,0,11,71,81,7,11,26,29,7,11,0,16,43,71]
[null,"20 to 29 percent",3,4,28,43,0,11,0,11,0,18,0,11,0,11,12,19,0,11,3,4,11,19,32,28,56,58,0,11,3,5,16,25,0,11,0,16,15,25]
[null,"30 percent or more",0,11,0,11,0,11,0,11,0,18,0,11,0,11,0,11,0,11,0,11,0,11,0,11,0,11,0,11,0,11,0,11,0,11,0,16,0,16]
[null,"Zero or negative income",0,11,25,40,0,11,0,11,0,18,0,11,0,11,0,11,0,11,0,11,0,11,0,11,0,11,14,22,0,11,0,11,0,11,0,16,0,16]
[null,"No cash rent",3,5,55,52,0,11,0,11,59,67,17,14,16,24,9,9,0,11,0,11,5,6,29,30,78,59,61,45,28,25,0,11,29,26,20,24,17,26]
[]
[]
[]
[]
[]
[]
[null,"Calculated B25106. TENURE BY HOUSING COSTS AS A PERCENTAGE OF HOUSEHOLD INCOME IN THE PAST 12 MONTHS"]
[null,"Universe:  OCCUPIED HOUSING UNITS"]
[null,{"$f":"B102","v":"Data Set: 2013-2017 American Community Survey 5-Year Estimates"}]
[]
[null,null,"Albany",null,"Bartlett",null,"Brookfield",null,"Chatham",null,"Conway",null,"Eaton",null,"Effingham",null,"Freedom",null,"Hale's location",null,"Hart's Location",null,"Jackson",null,"Madison",null,"Moultonborough",null,"Ossipee",null,"Sandwich",null,"Tamworth",null,"Tuftonboro",null,"Wakefield",null,"Wolfeboro"]
[null,null,"Estimate","Margin of Error","Estimate","Margin of Error","Estimate","Margin of Error","Estimate","Margin of Error","Estimate","Margin of Error","Estimate","Margin of Error","Estimate","Margin of Error","Estimate","Margin of Error","Estimate","Margin of Error","Estimate","Margin of Error","Estimate","Margin of Error","Estimate","Margin of Error","Estimate","Margin of Error","Estimate","Margin of Error","Estimate","Margin of Error","Estimate","Margin of Error","Estimate","Margin of Error","Estimate","Margin of Error","Estimate","Margin of Error"]
[null,"Total:",{"$f":"C106","v":312},44,1408,164,326,77,142,36,4346,208,169,38,602,72,587,74,79,24,26,16,455,89,1096,97,1799,110,1797,175,656,72,1509,117,974,114,2250,216,2740,185]
[null,"Owner occupied housing units:",270,43,972,176,290,65,124,27,3210,230,139,33,495,59,502,65,79,24,18,14,365,82,935,108,1545,138,1455,181,520,64,1060,139,858,112,2028,255,2223,217]
[null,"Less than 20 percent",{"$f":"C109+C113+C117+C121+C125","v":151},{"$f":"SQRT((D109^2)+(D113^2)+(D117^2)+(D121^2)+(D125^2))","v":40.435133238311458},{"$f":"SQRT((E109^2)+(E113^2)+(E117^2)+(E121^2)+(E125^2))","v":293.94727418365358},143.52700094407325,102.71319292087068,41.605288125429439,47.560487802376457,21.213203435596427,1174.9676591293908,297.2591462007519,46.518813398452032,29.461839725312469,132.11358749197601,47.021271782034987,185.86285266292455,54.470175325585288,35.298725189445584,21.023796041628639,6.4031242374328485,21.166010488516726,161.88576219050273,64.210591026714582,279.20601712713858,98.924213416129831,628.19980897800338,156.66843970627906,393.04834308262895,163,207.38852427268006,51.058789644878971,238.0567159313091,151.62783385645261,282.75961522112738,103.75451797391764,432.13308135341828,228.523521765266,698.09741440575465,237.01476747240878]
[null,"20 to 29 percent",{"$f":"C110+C114+C118+C122+C126","v":39},{"$f":"SQRT((D110^2)+(D114^2)+(D118^2)+(D122^2)+(D126^2))","v":16.30950643030009},156.01602481796542,120.8966500776593,44.384682042344295,31.685959035509718,16.583123951777001,20.46948949045872,421.49733095240356,244.49335369289693,17.888543819998318,17.262676501632068,73.082145562373853,44.429719783046124,51.565492337414952,31.256999216175569,6.164414002968976,17.088007490635061,3,22.803508501982758,33.630343441600473,36.687872655688281,116.05602095539895,67.793805026713173,185.42383881259713,108.8577052853862,170.20869543005139,99.050492174446063,51.710733895391584,30.675723300355934,161.80234856144702,142.92655456562298,122.62952336203546,72.387844283415433,257.75181861628056,183.99456513712573,291.93492425538949,160.60821896777264]
[null,"30 percent or more",{"$f":"C111+C115+C119+C123+C127","v":80},{"$f":"SQRT((D111^2)+(D115^2)+(D119^2)+(D123^2)+(D127^2))","v":29.29163703175362},111.84811129384349,99.894944817042671,35.888716889852724,30.033314835362415,7.8740078740118111,17.832554500127006,388.22802577866531,192.1041384249699,19.261360284258224,20.074859899884732,60.761830123853251,39.874804074753769,72.387844283415433,44.710177812216315,11.874342087037917,15.491933384829668,4.4721359549995796,20.199009876724155,36.715119501371639,42.790185790669334,136.49175799292792,88.70174744614674,136.26077939010918,88.639720216164946,314.50755157865444,140.11067054296757,72.78736154031138,39.812058474788763,172.1481919742406,135.79396157414365,92.817024300502112,58.403767001795352,454.30936596112565,260.07498918581155,340.49229066162422,230.06520814760324]
[null,"Zero or negative income",{"$f":"C128","v":0},{"$f":"D128","v":11},{"$f":"E128","v":0},11,0,11,3,5,0,18,0,11,6,6,0,11,0,11,0,11,3,4,10,12,43,46,8,14,0,11,14,21,20,26,36,39,12,19]
[null,"Renter occupied housing units:",{"$f":"C129","v":42},{"$f":"D129","v":21},436,142,36,38,18,22,1136,254,30,14,107,48,85,32,0,11,8,9,90,48,161,68,254,111,342,125,136,49,449,139,116,59,222,121,517,197]
[null,"Less than 20 percent",{"$f":"C131+C135+C139+C143+C147","v":9},{"$f":"SQRT((D131^2)+(D135^2)+(D139^2)+(D143^2)+(D147^2))","v":23.086792761230392},{"$f":"SQRT((E131^2)+(E135^2)+(E139^2)+(E143^2)+(E147^2))","v":33.301651610693426},58.420886675914119,28,41.340053217188775,10,26.076809620810597,147.25488107359973,141.19490075778234,10,23.769728648009426,17.029386365926403,31.240998703626616,22,29.068883707497267,0,24.596747752497688,5,23.409399821439251,24.657656011875904,36.069377593742864,33.734255586865999,39.395431207184416,9.2195444572928871,24.166091947189145,63.560994328282817,82.993975684985713,13.601470508735444,28.982753492378876,91.301697684106614,113.89029809426262,7.810249675906654,22.627416997969522,31.827660925679098,51.068581339214816,63,76.157731058639087]
[null,"20 to 29 percent",{"$f":"C132+C136+C140+C144+C148","v":11},{"$f":"SQRT((D132^2)+(D136^2)+(D140^2)+(D144^2)+(D148^2))","v":24.576411454889016},103.58571330062848,99.90995946350894,0,24.596747752497688,0,24.596747752497688,201.50186103358948,143.53745155881791,3,22.360679774997898,5,22.803508501982758,16.552945357246848,27.694764848252458,0,24.596747752497688,3,22.360679774997898,18.601075237738275,29.883105594967869,22.045407685048602,29.765752132274432,49.899899799498598,51.797683345879477,31.827660925679098,52.915026221291811,16.492422502470642,27.568097504180443,61.392181912683313,98.934321648253089,14,30.413812651491099,22,39.66106403010388,69.260378283691168,96.607453128627711]
[null,"30 percent or more",{"$f":"C133+C137+C141+C145+C149","v":19},{"$f":"SQRT((D133^2)+(D137^2)+(D141^2)+(D145^2)+(D149^2))","v":21.400934559032695},129,75.286120898874842,8,26.076809620810597,7.0710678118654755,23.727621035409346,292.76953393411685,182.87427375112117,0,24.596747752497688,44.564559910314387,34.292856398964496,18.275666882497067,25.592967784139454,0,24.596747752497688,0,24.596747752497688,19,31.827660925679098,30.033314835362415,40.385641012617342,33.541019662496844,46.130250378683186,81.320354155647891,88.136258146122813,46.75467891024384,39.281038682804713,137.41178988718545,116.940155635265,52.316345438113316,51.303021353522638,91.087869664407023,118.72236520555005,188.14090464330184,184.50474248647376]
[null,"Zero or negative income",{"$f":"C150","v":0},{"$f":"D150","v":11},{"$f":"E150","v":25},40,0,11,0,11,0,18,0,11,0,11,0,11,0,11,0,11,0,11,0,11,0,11,0,11,0,11,0,11,0,11,0,11,0,15]
[null,"No cash rent",{"$f":"C151","v":3},{"$f":"D151","v":5},55,52,0,11,0,11,59,67,17,14,16,24,9,9,0,11,0,11,5,6,47,39,102,80,76,53,27,25,16,24,24,27,0,11,30,34]
[]
[]
[]
[]
[null,"B25106. TENURE BY HOUSING COSTS AS A PERCENTAGE OF HOUSEHOLD INCOME IN THE PAST 12 MONTHS"]
[null,"Universe:  OCCUPIED HOUSING UNITS"]
[null,"Data Set: 2008-2012 American Community Survey 5-Year Estimates"]
[]
[null,null,"Albany",null,"Bartlett",null,"Brookfield",null,"Chatham",null,"Conway",null,"Eaton",null,"Effingham",null,"Freedom",null,"Hale's location",null,"Hart's Location",null,"Jackson",null,"Madison",null,"Moultonborough",null,"Ossipee",null,"Sandwich",null,"Tamworth",null,"Tuftonboro",null,"Wakefield",null,"Wolfeboro"]
[null,null,"Estimate","Margin of Error","Estimate","Margin of Error","Estimate","Margin of Error","Estimate","Margin of Error","Estimate","Margin of Error","Estimate","Margin of Error","Estimate","Margin of Error","Estimate","Margin of Error","Estimate","Margin of Error","Estimate","Margin of Error","Estimate","Margin of Error","Estimate","Margin of Error","Estimate","Margin of Error","Estimate","Margin of Error","Estimate","Margin of Error","Estimate","Margin of Error","Estimate","Margin of Error","Estimate","Margin of Error","Estimate","Margin of Error"]
[null,"Total:",338,61,1381,148,257,57,166,46,4452,262,176,34,495,68,554,65,52,13,28,19,407,80,1044,102,1793,98,1697,144,592,81,1353,138,1041,115,2216,215,2590,178]
[null,"Owner occupied housing units:",288,61,1128,151,242,53,146,42,2834,277,156,30,434,64,482,65,52,13,7,9,334,75,853,97,1631,128,1404,150,494,70,1070,136,907,104,1991,198,2165,196]
[null,"Less than $20,000:",52,29,43,39,25,14,34,24,322,132,13,11,73,38,61,22,3,5,0,11,10,11,37,23,94,51,259,95,42,20,132,73,26,18,327,130,119,71]
[null,"Less than 20 percent",0,11,13,22,0,11,0,11,33,32,4,6,7,11,0,11,0,11,0,11,0,11,0,11,7,10,16,29,0,11,11,18,0,11,28,45,0,16]
[null,"20 to 29 percent",10,13,3,6,0,11,2,3,0,18,0,11,11,17,4,5,0,11,0,11,0,11,5,8,0,11,35,27,3,5,19,28,6,9,15,23,0,16]
[null,"30 percent or more",42,26,27,31,25,14,32,24,289,125,9,10,55,29,57,21,3,5,0,11,10,11,32,21,87,49,208,88,39,20,102,59,20,16,284,125,119,71]
[null,"$20,000 to $34,999:",21,27,176,85,39,25,16,14,324,154,23,15,55,20,97,34,1,2,7,9,37,27,113,62,102,51,209,99,82,33,249,109,130,64,390,171,138,82]
[null,"Less than 20 percent",2,3,58,56,0,11,5,6,62,80,7,7,15,10,36,24,0,11,7,9,0,11,19,29,10,14,36,35,11,10,124,84,17,30,105,99,25,29]
[null,"20 to 29 percent",16,25,0,11,7,5,2,5,120,87,0,11,12,8,7,8,1,2,0,11,17,19,0,11,25,24,15,17,21,17,21,24,33,36,124,118,71,72]
[null,"30 percent or more",3,5,118,69,32,24,9,12,142,76,16,12,28,13,54,23,0,11,0,11,20,18,94,62,67,42,158,93,50,25,104,81,80,43,161,108,42,39]
[null,"$35,000 to $49,999:",27,16,354,132,24,13,24,14,554,146,28,16,77,23,115,38,9,7,0,11,37,24,206,70,313,122,201,83,52,20,117,61,155,62,352,126,413,144]
[null,"Less than 20 percent",18,11,178,101,2,4,10,9,174,87,12,12,37,17,32,23,2,3,0,11,20,16,35,24,122,74,26,23,20,13,20,22,30,17,97,53,233,121]
[null,"20 to 29 percent",6,10,112,88,3,5,4,6,209,120,7,8,5,7,34,26,3,4,0,11,9,15,75,50,81,56,23,24,12,9,54,31,41,32,16,25,81,58]
[null,"30 percent or more",3,4,64,40,19,12,10,10,171,80,9,6,35,19,49,31,4,4,0,11,8,10,96,54,110,86,152,82,20,13,43,46,84,50,239,119,99,63]
[null,"$50,000 to $74,999:",67,34,218,88,57,30,25,15,675,214,34,17,120,39,86,29,19,12,0,11,77,40,147,65,380,106,401,110,127,36,287,80,312,95,449,152,468,148]
[null,"Less than 20 percent",49,31,151,80,17,19,12,10,362,160,20,13,53,29,54,22,7,6,0,11,31,20,25,28,167,79,208,94,65,24,106,44,166,67,83,63,209,91]
[null,"20 to 29 percent",3,5,43,32,19,19,6,8,144,84,7,9,27,20,23,15,4,6,0,11,23,22,28,21,78,50,126,63,32,20,57,38,83,53,106,81,133,96]
[null,"30 percent or more",15,13,24,26,21,16,7,7,169,93,7,6,40,25,9,8,8,6,0,11,23,23,94,59,135,78,67,50,30,18,124,55,63,44,260,131,126,77]
[null,"$75,000 or more:",119,41,313,101,97,32,46,25,959,213,56,20,104,33,120,34,20,10,0,11,163,54,350,78,705,130,312,91,191,41,272,93,284,78,456,127,1027,208]
[null,"Less than 20 percent",83,35,247,91,45,21,38,26,706,184,39,15,61,29,90,30,14,9,0,11,134,50,256,77,456,118,166,68,149,36,200,84,193,71,303,117,662,199]
[null,"20 to 29 percent",23,22,23,32,27,17,4,6,140,81,5,5,19,14,20,12,2,4,0,11,12,9,90,45,171,69,127,56,21,13,40,30,65,37,112,67,319,130]
[null,"30 percent or more",13,15,43,47,25,21,4,7,113,75,12,11,24,17,10,9,4,6,0,11,17,20,4,6,78,65,19,22,21,13,32,25,26,21,41,40,46,49]
[null,"Zero or negative income",2,4,24,39,0,11,1,2,0,18,2,3,5,9,3,5,0,11,0,11,10,18,0,11,37,42,22,25,0,11,13,19,0,11,17,26,0,16]
[null,"Renter occupied housing units:",50,26,253,105,15,19,20,13,1618,293,20,17,61,34,72,32,0,11,21,17,73,37,191,79,162,74,293,97,98,37,283,117,134,71,225,131,425,154]
[null,"Less than $20,000:",17,17,59,56,0,11,3,5,466,178,0,11,17,19,0,11,0,11,0,11,9,16,5,9,5,9,133,95,16,17,120,86,7,12,32,36,119,99]
[null,"Less than 20 percent",4,6,0,11,0,11,0,11,0,18,0,11,0,11,0,11,0,11,0,11,0,11,0,11,0,11,0,11,3,5,0,11,0,11,0,16,0,16]
[null,"20 to 29 percent",0,11,0,11,0,11,0,11,99,71,0,11,0,11,0,11,0,11,0,11,0,11,0,11,0,11,10,16,0,11,66,77,0,11,0,16,0,16]
[null,"30 percent or more",13,16,59,56,0,11,3,5,367,160,0,11,17,19,0,11,0,11,0,11,9,16,5,9,5,9,123,95,13,16,54,44,7,12,32,36,119,99]
[null,"$20,000 to $34,999:",7,11,42,43,3,5,1,4,464,223,3,5,16,15,30,21,0,11,0,11,6,9,46,42,37,32,25,31,19,19,61,46,24,36,116,115,110,105]
[null,"Less than 20 percent",0,11,12,19,0,11,0,11,53,51,0,11,0,11,0,11,0,11,0,11,0,11,7,10,0,11,0,11,0,11,0,11,0,11,0,16,0,16]
[null,"20 to 29 percent",7,11,0,11,0,11,0,11,125,131,0,11,0,11,11,17,0,11,0,11,0,11,0,11,0,11,17,28,0,11,21,34,0,11,13,19,0,16]
[null,"30 percent or more",0,11,30,38,3,5,1,4,286,177,3,5,16,15,19,15,0,11,0,11,6,9,39,41,37,32,8,13,19,19,40,33,24,36,103,116,110,105]
[null,"$35,000 to $49,999:",2,4,66,59,0,11,0,11,187,117,4,6,4,5,24,23,0,11,8,12,6,9,31,30,10,16,53,49,31,23,46,69,10,15,33,44,94,97]
[null,"Less than 20 percent",0,11,0,11,0,11,0,11,13,21,0,11,0,11,0,11,0,11,0,11,6,9,0,11,0,11,0,11,0,11,46,69,0,11,0,16,18,30]
[null,"20 to 29 percent",0,11,49,54,0,11,0,11,111,90,4,6,4,5,24,23,0,11,0,11,0,11,0,11,0,11,10,17,16,20,0,11,0,11,0,16,59,90]
[null,"30 percent or more",2,4,17,26,0,11,0,11,63,71,0,11,0,11,0,11,0,11,8,12,0,11,31,30,10,16,43,55,15,13,0,11,10,15,33,44,17,26]
[null,"$50,000 to $74,999:",10,12,55,57,0,11,11,10,219,112,5,6,5,8,5,7,0,11,2,4,17,16,70,51,37,32,19,22,11,14,34,36,37,40,28,44,38,36]
[null,"Less than 20 percent",8,12,27,43,0,11,6,9,109,70,0,11,5,8,0,11,0,11,0,11,5,9,55,47,0,11,0,11,3,5,13,19,37,40,28,44,13,22]
[null,"20 to 29 percent",2,3,28,35,0,11,0,11,70,62,5,6,0,11,5,7,0,11,2,4,12,13,15,23,37,32,19,22,8,13,0,11,0,11,0,16,0,16]
[null,"30 percent or more",0,11,0,11,0,11,5,8,40,55,0,11,0,11,0,11,0,11,0,11,0,11,0,11,0,11,0,11,0,11,21,31,0,11,0,16,25,29]
[null,"$75,000 or more:",10,10,0,11,0,11,0,11,118,84,7,11,8,15,4,6,0,11,2,3,5,8,20,25,29,32,26,40,7,9,0,11,7,10,0,16,27,34]
[null,"Less than 20 percent",10,10,0,11,0,11,0,11,118,84,7,11,8,15,4,6,0,11,2,3,5,8,20,25,20,23,0,11,4,7,0,11,7,10,0,16,27,34]
[null,"20 to 29 percent",0,11,0,11,0,11,0,11,0,18,0,11,0,11,0,11,0,11,0,11,0,11,0,11,0,11,26,40,3,5,0,11,0,11,0,16,0,16]
[null,"30 percent or more",0,11,0,11,0,11,0,11,0,18,0,11,0,11,0,11,0,11,0,11,0,11,0,11,9,15,0,11,0,11,0,11,0,11,0,16,0,16]
[null,"Zero or negative income",0,11,0,11,0,11,0,11,9,15,0,11,0,11,2,4,0,11,0,11,0,11,0,11,0,11,0,11,0,11,0,11,0,11,0,16,14,23]
[null,"No cash rent",4,5,31,34,12,18,5,7,155,109,1,3,11,15,7,9,0,11,9,12,30,24,19,30,44,44,37,39,14,11,22,26,49,36,16,25,23,26]
[]
[]
[]
[]
[]
[]
[null,"Calculated B25106. TENURE BY HOUSING COSTS AS A PERCENTAGE OF HOUSEHOLD INCOME IN THE PAST 12 MONTHS"]
[null,"Universe:  OCCUPIED HOUSING UNITS"]
[null,{"$f":"B182","v":"Data Set: 2008-2012 American Community Survey 5-Year Estimates"}]
[]
[null,null,"Albany",null,"Bartlett",null,"Brookfield",null,"Chatham",null,"Conway",null,"Eaton",null,"Effingham",null,"Freedom",null,"Hale's location",null,"Hart's Location",null,"Jackson",null,"Madison",null,"Moultonborough",null,"Ossipee",null,"Sandwich",null,"Tamworth",null,"Tuftonboro",null,"Wakefield",null,"Wolfeboro"]
[null,null,"Estimate","Margin of Error","Estimate","Margin of Error","Estimate","Margin of Error","Estimate","Margin of Error","Estimate","Margin of Error","Estimate","Margin of Error","Estimate","Margin of Error","Estimate","Margin of Error","Estimate","Margin of Error","Estimate","Margin of Error","Estimate","Margin of Error","Estimate","Margin of Error","Estimate","Margin of Error","Estimate","Margin of Error","Estimate","Margin of Error","Estimate","Margin of Error","Estimate","Margin of Error","Estimate","Margin of Error","Estimate","Margin of Error"]
[null,"Total:",{"$f":"C186","v":338},61,1381,148,257,57,166,46,4452,262,176,34,495,68,554,65,52,13,28,19,407,80,{"$f":"Y186","v":1044},102,1793,98,1697,144,592,81,1353,138,1041,115,2216,215,2590,178]
[null,"Owner occupied housing units:",288,61,1128,151,242,53,146,42,2834,277,156,30,434,64,482,65,52,13,7,9,334,75,{"$f":"Y187","v":853},97,1631,128,1404,150,494,70,1070,136,907,104,1991,198,2165,196]
[null,"Less than 20 percent",{"$f":"C189+C193+C197+C201+C205","v":152},{"$f":"SQRT((D189^2)+(D193^2)+(D197^2)+(D201^2)+(D205^2))","v":49.365980188789933},{"$f":"SQRT((E189^2)+(E193^2)+(E197^2)+(E201^2)+(E205^2))","v":345.00289853854849},168.82535354620171,48.145612468842891,32.557641192199412,41.388404173149752,31.843366656181317,815.2846128806799,272.85344051340087,46.151923036857305,24.959967948697368,90.404645898316531,46.818799642878503,115.4816002660164,51.088159097779204,15.779733838059499,19.183326093250876,7,23.769728648009426,138.985610766007,58.292366567158687,{"$f":"SQRT((Y189^2)+(Y193^2)+(Y197^2)+(Y201^2)+(Y205^2))","v":260.28253879198274},90.835015274947793,500.85726509655422,161.04968177553161,270.27393511028771,126.70832648251653,164.1554141659665,47.560487802376457,259.10036665354221,129.83065893693984,256.8929738237307,104.11532067856297,346.28889673219385,179.70253197993623,732.6929779928289,252.23005372080465]
[null,"20 to 29 percent",{"$f":"C190+C194+C198+C202+C206","v":58},{"$f":"SQRT((D190^2)+(D194^2)+(D198^2)+(D202^2)+(D206^2))","v":37.456641600656084},122.19247112649781,99.744674043279119,33.882148692194832,28.653097563788805,8.717797887081348,13.038404810405298,313.71483866722019,189.49934036824507,11.090536506409418,20.297783130184438,37.148351242013419,31.591137997862628,46.36809247747852,33.674916480965472,5.4772255750516612,13.892443989449804,0,24.596747752497688,32.295510523910288,35.665109000254013,{"$f":"SQRT((Y190^2)+(Y194^2)+(Y198^2)+(Y202^2)+(Y206^2))","v":120.55704044144414},71.77046746399246,206.18195847357742,105.32805893967665,184.34749794884661,93.268429814165955,45.376205218153707,31.048349392520048,92.558089867931045,68.30080526611674,117.983049630021,81.111035007574642,199.090431713832,161.641578809414,362.01104955512062,186.86893802876924]
[null,"30 percent or more",{"$f":"C191+C195+C199+C203+C207","v":76},{"$f":"SQRT((D191^2)+(D195^2)+(D199^2)+(D203^2)+(D207^2))","v":33.331666624997915},145.5128860273206,101.02969860392537,55.461698495448189,40.162171256046406,35.637059362410923,30.298514815086232,417.43981602142361,205.12191496766016,24.718414188616549,20.904544960366874,84.911718861415125,47.801673610868477,93.525397620111733,45.563142999578069,10.246950765959598,15.297058540778355,0,24.596747752497688,37.17526059088221,38.392707640904931,{"$f":"SQRT((Y191^2)+(Y195^2)+(Y199^2)+(Y203^2)+(Y207^2))","v":167.11672567400308},103.52777405121778,220.15222006602613,147.88509052639486,310.13222986332784,161.5580391066938,75.907838857393372,41.073105555825698,198.66806487203723,125.72986916401369,136.01838111078959,83.558362837001539,482.67898234748111,245.37929823031118,209.088498009814,137.33535597216036]
[null,"Zero or negative income",{"$f":"C208","v":2},{"$f":"D208","v":4},{"$f":"E208","v":24},39,0,11,1,2,0,18,2,3,5,9,3,5,0,11,0,11,10,18,{"$f":"Y208","v":0},11,37,42,22,25,0,11,13,19,0,11,17,26,0,16]
[null,"Renter occupied housing units:",{"$f":"C209","v":50},{"$f":"D209","v":26},253,105,15,19,20,13,1618,293,20,17,61,34,72,32,0,11,21,17,73,37,{"$f":"Y209","v":191},79,162,74,293,97,98,37,283,117,134,71,225,131,425,154]
[null,"Less than 20 percent",{"$f":"C211+C215+C219+C223+C227","v":22},{"$f":"SQRT((D211^2)+(D215^2)+(D219^2)+(D223^2)+(D227^2))","v":22.847319317591726},{"$f":"SQRT((E211^2)+(E215^2)+(E219^2)+(E223^2)+(E227^2))","v":29.546573405388315},50.724747411889595,0,24.596747752497688,6,23.769728648009426,169.65553336098412,123.78206655246954,7,24.596747752497688,9.4339811320566032,25.534290669607408,4,22.803508501982758,0,24.596747752497688,2,22.203603311174518,9.2736184954957039,21.633307652783937,{"$f":"SQRT((Y211^2)+(Y215^2)+(Y219^2)+(Y223^2)+(Y227^2))","v":58.940648113165501},56.356011214421486,20,31.827660925679098,0,24.596747752497688,5.8309518948453007,18.466185312619388,47.801673610868477,74.060785845142092,37.656340767525464,45.420259796703057,28,54.405882034941776,34.957116585897069,55.244909267732531]
[null,"20 to 29 percent",{"$f":"C212+C216+C220+C224+C228","v":9},{"$f":"SQRT((D212^2)+(D216^2)+(D220^2)+(D224^2)+(D228^2))","v":22.203603311174518},56.435804238089851,67.111846942250068,0,24.596747752497688,0,24.596747752497688,206.51150089038626,185.66098136118961,6.4031242374328485,20.85665361461421,4,22.561028345356956,26.870057685088806,33.301651610693426,0,24.596747752497688,2,22.360679774997898,12,25.553864678361276,{"$f":"SQRT((Y212^2)+(Y216^2)+(Y220^2)+(Y224^2)+(Y228^2))","v":15},31.827660925679098,37,38.832975677895199,39.064049969249218,58.420886675914119,18.138357147217054,28.913664589601922,69.260378283691168,86.301796041565666,0,24.596747752497688,13,37.215588131856791,59,95.519631490076421]
[null,"30 percent or more",{"$f":"C213+C217+C221+C225+C229","v":15},{"$f":"SQRT((D213^2)+(D217^2)+(D221^2)+(D225^2)+(D229^2))","v":25.199206336708304},68.337398253079556,74.148499647666512,3,22.561028345356956,5.9160797830996161,18.627936010197157,471.22606039988915,255.5758204525616,3,22.561028345356956,23.345235059857504,30.805843601498726,19,26.627053911388696,0,24.596747752497688,8,25.059928172283335,10.816653826391969,26.457513110645905,{"$f":"SQRT((Y213^2)+(Y217^2)+(Y221^2)+(Y225^2)+(Y229^2))","v":50.069951068480187},53.888774341229919,39.686269665968858,41.315856520227193,130.5450113945378,111.6288493177279,27.477263328068172,32.062439083762797,70.405965656327737,65.023072828035438,26.92582403567252,43.669211121796096,112.79184367674819,131.14877048604001,164.84841521834537,150.32963779641059]
[null,"Zero or negative income",{"$f":"C230","v":0},{"$f":"D230","v":11},{"$f":"E230","v":0},11,0,11,0,11,9,15,0,11,0,11,2,4,0,11,0,11,0,11,{"$f":"Y230","v":0},11,0,11,0,11,0,11,0,11,0,11,0,16,14,23]
[null,"No cash rent",{"$f":"C231","v":4},{"$f":"D231","v":5},31,34,12,18,5,7,155,109,1,3,11,15,7,9,0,11,9,12,30,24,{"$f":"Y231","v":19},30,44,44,37,39,14,11,22,26,49,36,16,25,23,26]

{"sheet":"SData_B08303Comuuting","index":23,"n_rows":148,"n_cols":183,"rows_kept":148,"cut":false,"hidden":true,"merged":[]}
["GEO_ID","GEO_ID2","SUMLEVEL",null,"VD01","VD01","VD02","VD02","VD03","VD03","VD04","VD04","VD05","VD05","VD06","VD06","VD07","VD07","VD08","VD08","VD09","VD09","VD10","VD10","VD11","VD11","VD12","VD12","VD13","VD13"]
["Geography Identifier","Geography Identifier","Geographic Summary Level","Estimate!!Total:","Margin of Error!!Total:","Estimate!!Total:!!Less than 5 minutes","Margin of Error!!Total:!!Less than 5 minutes","Estimate!!Total:!!5 to 9 minutes","Margin of Error!!Total:!!5 to 9 minutes","Estimate!!Total:!!10 to 14 minutes","Margin of Error!!Total:!!10 to 14 minutes","Estimate!!Total:!!15 to 19 minutes","Margin of Error!!Total:!!15 to 19 minutes","Estimate!!Total:!!20 to 24 minutes","Margin of Error!!Total:!!20 to 24 minutes","Estimate!!Total:!!25 to 29 minutes","Margin of Error!!Total:!!25 to 29 minutes","Estimate!!Total:!!30 to 34 minutes","Margin of Error!!Total:!!30 to 34 minutes","Estimate!!Total:!!35 to 39 minutes","Margin of Error!!Total:!!35 to 39 minutes","Estimate!!Total:!!40 to 44 minutes","Margin of Error!!Total:!!40 to 44 minutes","Estimate!!Total:!!45 to 59 minutes","Margin of Error!!Total:!!45 to 59 minutes","Estimate!!Total:!!60 to 89 minutes","Margin of Error!!Total:!!60 to 89 minutes","Estimate!!Total:!!90 or more minutes","Margin of Error!!Total:!!90 or more minutes","Margin of Error; Total: - 90 or more minutes"]
["06000US3300300420","3300300420","060","Albany",306,87,8,11,22,15,46,28,60,32,35,27,10,14,57,30,3,4,26,19,12,11,25,23,2,4]
["06000US3300303700","3300303700","060","Bartlett",1360,234,47,50,142,92,323,154,257,152,210,128,120,108,41,58,0,12,0,12,0,12,86,83,134,118]
["06000US3300307940","3300307940","060","Brookfield",337,109,11,11,50,35,29,25,32,23,32,22,11,10,51,28,4,8,17,20,47,37,34,22,19,17]
["06000US3300311780","3300311780","060","Chatham",201,88,1,2,0,12,0,12,13,10,22,24,13,15,62,46,33,24,21,16,23,16,13,13,0,12]
["06000US3300314660","3300314660","060","Conway",4732,483,300,202,1119,316,871,285,675,220,698,275,69,40,134,88,68,72,163,146,367,204,102,100,166,115]
["06000US3300323380","3300323380","060","Eaton",121,47,7,9,11,22,11,11,25,13,9,11,13,11,16,18,12,13,3,4,5,5,2,4,7,8]
["06000US3300323620","3300323620","060","Effingham",835,232,0,12,34,26,44,26,68,37,144,64,115,101,138,60,76,72,35,33,102,47,72,31,7,7]
["06000US3300327700","3300327700","060","Freedom",489,101,18,17,35,25,38,23,75,40,63,35,48,33,71,34,15,15,46,30,24,20,14,20,42,32]
["06000US3300332500","3300332500","060","Hale's location",52,41,0,12,41,38,2,6,1,3,3,5,0,12,0,12,0,12,0,12,5,8,0,12,0,12]
["06000US3300334500","3300334500","060","Hart's Location",33,31,2,3,4,6,0,12,15,21,1,3,0,12,4,7,0,12,0,12,0,12,7,12,0,12]
["06000US3300338260","3300338260","060","Jackson",402,126,24,25,87,56,39,35,46,47,65,49,0,12,64,56,19,21,0,12,58,50,0,12,0,12]
["06000US3300345060","3300345060","060","Madison",1142,155,34,46,129,56,59,39,173,55,233,72,164,82,136,74,26,18,66,45,60,49,21,21,41,24]
["06000US3300349380","3300349380","060","Moultonborough",1976,244,218,119,305,168,288,98,200,110,272,140,101,71,136,79,85,64,140,70,25,23,146,82,60,66]
["06000US3300358740","3300358740","060","Ossipee",1839,271,131,70,63,49,170,92,174,99,233,152,120,80,407,189,13,22,135,79,234,102,74,57,85,66]
["06000US3300367780","3300367780","060","Sandwich",628,127,29,22,30,21,58,29,68,34,57,27,17,16,102,48,25,22,22,22,74,41,124,71,22,17]
["06000US3300376100","3300376100","060","Tamworth",1370,234,109,111,81,73,285,160,218,217,67,57,235,134,47,44,76,73,67,80,142,94,16,23,27,23]
["06000US3300377620","3300377620","060","Tuftonboro",818,140,71,67,126,92,36,24,175,116,158,63,9,13,53,27,2,5,6,8,58,35,54,31,70,51]
["06000US3300378180","3300378180","060","Wakefield",2755,289,80,117,138,111,209,127,102,87,132,95,240,142,274,124,94,79,37,58,692,195,556,282,201,134]
["06000US3300386420","3300386420","060","Wolfeboro",2409,396,340,228,234,195,705,329,61,59,147,125,246,225,113,83,0,17,125,97,70,63,321,141,47,52]
[]
[]
[]
[]
[]
[null,null,null,null,{"$f":"$D$3","v":"Albany"},null,{"$f":"$D$4","v":"Bartlett"},null,{"$f":"$D$5","v":"Brookfield"},null,{"$f":"$D$6","v":"Chatham"},null,{"$f":"$D$7","v":"Conway"},null,{"$f":"$D$8","v":"Eaton"},null,{"$f":"$D$9","v":"Effingham"},null,{"$f":"$D$10","v":"Freedom"},null,{"$f":"$D$11","v":"Hale's location"},null,{"$f":"$D$12","v":"Hart's Location"},null,{"$f":"$D$13","v":"Jackson"},null,{"$f":"$D$14","v":"Madison"},null,{"$f":"$D$15","v":"Moultonborough"},null,{"$f":"$D$16","v":"Ossipee"},null,{"$f":"$D$17","v":"Sandwich"},null,{"$f":"$D$18","v":"Tamworth"},null,{"$f":"$D$19","v":"Tuftonboro"},null,{"$f":"$D$20","v":"Wakefield"},null,{"$f":"$D$21","v":"Wolfeboro"}]
[null,null,null,null,"Estimate","Margin of Error","Estimate","Margin of Error","Estimate","Margin of Error","Estimate","Margin of Error","Estimate","Margin of Error","Estimate","Margin of Error","Estimate","Margin of Error","Estimate","Margin of Error","Estimate","Margin of Error","Estimate","Margin of Error","Estimate","Margin of Error","Estimate","Margin of Error","Estimate","Margin of Error","Estimate","Margin of Error","Estimate","Margin of Error","Estimate","Margin of Error","Estimate","Margin of Error","Estimate","Margin of Error","Estimate","Margin of Error"]
[null,null,null,"Estimate; Total:",288,63,1256,211,339,74,167,64,4817,421,135,46,672,137,522,104,33,17,38,26,466,136,1192,132,1692,190,1715,258,557,117,1553,208,858,136,2401,303,2626,333]
[null,null,null,"Estimate; Total: - Less than 5 minutes",15,15,141,97,19,17,0,11,659,279,12,10,17,11,14,19,0,11,5,5,50,40,28,20,131,104,86,83,20,12,192,124,62,41,121,97,259,188]
[null,null,null,"Estimate; Total: - 5 to 9 minutes",10,7,189,93,10,12,5,8,1314,392,0,11,23,26,23,19,15,13,9,10,107,56,81,51,166,78,127,63,45,31,258,156,85,58,145,126,243,127]
[null,null,null,"Estimate; Total: - 10 to 14 minutes",34,19,238,119,22,13,0,11,1007,283,26,20,44,29,93,50,6,7,4,7,37,30,68,42,244,87,167,105,48,31,203,103,64,31,159,127,721,269]
[null,null,null,"Estimate; Total: - 15 to 19 minutes",87,38,254,170,27,19,9,7,863,220,22,20,96,45,77,31,2,3,2,3,95,39,134,54,202,75,158,71,69,41,93,68,198,74,202,161,236,147]
[null,null,null,"Estimate; Total: - 20 to 24 minutes",34,15,264,128,60,27,19,14,323,137,21,16,135,47,64,28,4,6,2,3,44,35,254,72,167,88,107,65,44,22,242,148,107,34,238,163,190,154]
[null,null,null,"Estimate; Total: - 25 to 29 minutes",13,15,0,11,16,10,11,10,76,52,10,8,32,25,41,27,0,11,6,8,13,21,200,85,90,53,140,76,38,23,61,75,27,23,151,106,85,76]
[null,null,null,"Estimate; Total: - 30 to 34 minutes",33,21,26,29,22,13,62,43,157,68,7,9,104,41,60,31,0,11,4,6,89,61,137,71,160,80,201,116,74,33,197,126,76,34,174,99,121,98]
[null,null,null,"Estimate; Total: - 35 to 39 minutes",5,6,0,11,10,9,9,7,9,14,3,4,19,13,51,38,0,11,0,11,9,14,38,33,113,74,9,18,27,25,59,67,0,11,159,114,13,21]
[null,null,null,"Estimate; Total: - 40 to 44 minutes",20,16,0,11,19,16,15,12,97,90,5,5,15,10,16,12,0,11,0,11,0,11,76,42,146,68,132,71,45,31,25,37,44,28,116,94,241,131]
[null,null,null,"Estimate; Total: - 45 to 59 minutes",22,15,64,69,49,21,23,15,132,103,1,3,93,39,42,23,2,3,0,11,13,19,58,44,68,43,280,173,63,32,159,106,75,69,398,174,126,92]
[null,null,null,"Estimate; Total: - 60 to 89 minutes",13,12,68,67,45,21,13,10,49,40,9,9,85,38,19,13,0,11,6,9,9,14,63,39,106,59,216,85,64,29,34,47,73,39,402,187,291,177]
[null,null,null,"Estimate; Total: - 90 or more minutes",2,4,12,17,40,23,1,2,131,89,19,16,9,9,22,21,4,5,0,11,0,11,55,37,99,79,92,74,20,13,30,30,47,42,136,74,100,81]
[]
[]
[]
[]
[]
[]
[]
[]
[]
[]
[]
[]
[]
[]
[]
[]
[]
[]
[]
[]
[]
[]
[]
[]
[]
[]
[]
[]
[]
[]
[]
[]
[]
[]
[]
[]
[]
[]
[]
[]
[]
[]
[]
[]
[]
[]
[]
[]
[]
[]
[]
[]
[]
[]
[]
[]
[]
[]
[]
[]
[]
[]
[]
[]
[]
[]
[null,225,35,151,31,138,30,13,9,74,22,3,5,0,114,0,114,0,114,68,21,381,88,349,92,32,27,151,31,138,30,131,30,7,279.30628349537716,0,161.22034611053283,13,9,5,7,8,279.32955446926843,0,161.22034611053283,200,34,25,255.34486483969087,0,161.22034611053283,2,4,13,10,34,16,41,20,14,12,13,12,21,17,7,7,80,23,8,9,12,12,59,25,106,26,40,20.124611797498108]
[]
[]
[]
[null,6181,35,192,117.2006825918689,0,22.627416997969522,192,117.2006825918689,1108,215.20455385516357,66,54.405882034941776,1042,223.1815404552984,801,172.00290695217916,162,96.426137535421375,639,155.62133529821674,2401,251.46172671005024,178,86.53323061113575,2223,267.34621747838514,936,200.11246837716035,196,114.33722053644648,740,185.27007313648906,743,163.46559270990332,176,74.4043009509531,567,157.0350279396288,0,22.627416997969522,0,22.627416997969522,0,22.627416997969522,79,60.440052945046304,44,72.780491891715045,62,41.182520563948003,0,22.627416997969522,0,22.627416997969522,12,22.627416997969522,24,41.231056256176608,11,23.345235059857504,11,24.839484696748443,66,54.405882034941776,56,63.253458403473878,63,49.648766349225639,0,22.627416997969522,65,46.529560496527367,0,22.627416997969522,94,82.09750300709517,74,59.076221950967721,141,95.801878895979911,101,55.865910893853687,30,39.395431207184416,13,27.202941017470888,47,51.546095875439491,28,31.144823004794873,51,40.496913462633174,36,38,3202,253,2862,278,93,55,36,38,30,36,240,123,100,78,279,128,93,55]
[]
[]
[]
[null,null,null,null,null,null,null,null,null,null,null,null,null,null,null,null,null,null,null,null,null,null,null,null,null,null,null,null,null,null,null,null,null,null,null,151,31,2,5,0,114,0,114,0,114,0,114,0,114,0,114,0,114,2,5,0,114,0,114,0,114,0,114,0,114,0,114,0,114,0,114,21,13,0,114,4,6,0,114,4,6,0,114,0,114,0,114,0,114,0,114,0,114,0,114,9,9,0,114,0,114,0,114,4,6,94,27,3,5,5,9,3,6,3,5,3,6,0,114,4,6,4,6,8,8,9,9,25,17,14,13,3,5,10,7,0,114,0,114,34,15,3,4,2,4,0,114,3,6,2,5,0,114,3,5,0,114,5,6,7,7,4,7,2,3,3,5,0,114,0,114,0,114,56563,12033,"-","**",77083,68446,61786,10828,49500,16827]
[]
[]
[]
[]
[]
[]
[]
[null,8931,172,1088,424,93,75.927597090912869,193,262.79840182162445,664,226.68259747938305,45,127.01181047445942,93,56.400354608814297,7843,453,396,133.05637902783917,1093,231.26824252369801,5137,506.62116023711445,620,144.40221604947757,597,160.42443704124381,3783,258,476,171,131,102,null,null,73,79,0,114,73,79,345,144,200,109,145,81,3307,247,1982,208,null,null,1325,285,168,101,205,86,684,224,1325,285,641,183,10,16,0,114,62,76,867,175,146,99,120,77]
[]
[]
[]
[null,151,31,138,30,6,7,0,114,7,11,3,6,7,8,5,8,24,12,41,19,25,15,16,10,4,6,13,9,0,114,0,114,4,6,0,114,3,5,0,114,2,5,4,6,0,114,0,114,0,114]
[]
[]
[]
[]
[]
[]
[]
[null,6588,17,6420,63,2586,272,3834,283,3227,342,291,189,207,113,109,97,0,114,0,114,0,114,0,114,168,63,154,59,14,22,6538,50,5758,356,780,336.81151999300732,483,264.23663636975095,267,155,216,214,297,175,0,114]
[]
[]
[]
[null,4896,128,829,212,116,80.156097709406993,48,52,68,61,301,121.65936051122412,230,160,531,201,182,101.23734488813898,4067,222]
[]
[]
[]
[null,138,30,0,114,0,114,0,114,0,114,0,114,0,114,0,114,0,114,0,114,0,114,0,114,0,114,0,114,7,10,2,4,8,7,0,114,21,16,26,13,17,11,30,12,18,12,9,10,0,114,null,null,null,null,329400,87194,0,0,0,0,0,0,0,0,0,0,0,0,0,0,0,0,0,0,0,0]
[]
[]
[]
[null,null,null,null,null,null,null,null,null,null,null,null,null,null,null,null,null,null,null,null,null,null,null,null,null,null,null,null,null,null,null,null,null,null,null,null,null,null,null,null,null,null,null,null,null,null,null,null,null,null,null,null,null,null,null,null,null,null,null,null,null,"Eaton",null,"Estimate","Margin of Error",13,9,0,114,0,114,0,114,0,114,0,114,0,114,0,114,4,6,0,114,4,6,0,114,0,114,0,114,0,114,3,5,0,114,0,114,0,114,0,114,3,5,0,114,2,5,0,114,0,114,0,114,0,114,2,5,0,114,4,6,4,6,0,114,0,114,0,114,0,114,0,114,0,114,0,114,0,114,0,114,0,114,0,114,0,114]

{"sheet":"ACS_Table_B01001","index":24,"n_rows":265,"n_cols":40,"rows_kept":265,"cut":false,"hidden":true,"merged":[[64928,24,64928,25],[64928,26,64928,27],[64928,28,64928,29],[64928,30,64928,31],[64928,32,64928,33],[64928,34,64928,35],[64928,36,64928,37],[64928,38,64928,39],[64948,24,64948,25],[64948,26,64948,27],[64948,28,64948,29],[64948,30,64948,31],[64948,32,64948,33],[64948,34,64948,35],[64948,36,64948,37],[64948,38,64948,39],[65010,24,65010,25],[65010,26,65010,27],[65010,28,65010,29],[65010,30,65010,31],[65010,32,65010,33],[65010,34,65010,35],[65010,36,65010,37],[65010,38,65010,39],[65030,24,65030,25],[65030,26,65030,27],[65030,28,65030,29],[65030,30,65030,31],[65030,32,65030,33],[65030,34,65030,35],[65030,36,65030,37],[65030,38,65030,39],[64702,24,64702,25],[64702,26,64702,27],[64702,28,64702,29],[64702,30,64702,31],[64702,32,64702,33],[64702,34,64702,35],[64702,36,64702,37],[64702,38,64702,39],[64764,24,64764,25],[64764,26,64764,27],[64764,28,64764,29],[64764,30,64764,31],[64764,32,64764,33],[64764,34,64764,35],[64764,36,64764,37],[64764,38,64764,39],[64784,24,64784,25],[64784,26,64784,27],[64784,28,64784,29],[64784,30,64784,31],[64784,32,64784,33],[64784,34,64784,35],[64784,36,64784,37],[64784,38,64784,39],[64846,24,64846,25],[64846,26,64846,27],[64846,28,64846,29],[64846,30,64846,31],[64846,32,64846,33],[64846,34,64846,35],[64846,36,64846,37],[64846,38,64846,39],[64436,24,64436,25],[64436,26,64436,27],[64436,28,64436,29],[64436,30,64436,31],[64436,32,64436,33],[64436,34,64436,35],[64436,36,64436,37],[64436,38,64436,39],[64456,24,64456,25],[64456,26,64456,27],[64456,28,64456,29],[64456,30,64456,31],[64456,32,64456,33],[64456,34,64456,35],[64456,36,64456,37],[64456,38,64456,39],[64866,24,64866,25],[64866,26,64866,27],[64866,28,64866,29],[64866,30,64866,31],[64866,32,64866,33],[64866,34,64866,35],[64866,36,64866,37],[64866,38,64866,39],[64518,24,64518,25],[64518,26,64518,27],[64518,28,64518,29],[64518,30,64518,31],[64518,32,64518,33],[64518,34,64518,35],[64518,36,64518,37],[64518,38,64518,39],[64538,24,64538,25],[64538,26,64538,27],[64538,28,64538,29],[64538,30,64538,31],[64538,32,64538,33],[64538,34,64538,35],[64538,36,64538,37],[64538,38,64538,39],[64600,24,64600,25],[64600,26,64600,27],[64600,28,64600,29],[64600,30,64600,31],[64600,32,64600,33],[64600,34,64600,35],[64600,36,64600,37],[64600,38,64600,39],[64620,24,64620,25],[64620,26,64620,27],[64620,28,64620,29],[64620,30,64620,31],[64620,32,64620,33],[64620,34,64620,35],[64620,36,64620,37],[64620,38,64620,39],[64682,24,64682,25],[64682,26,64682,27],[64682,28,64682,29],[64682,30,64682,31],[64682,32,64682,33],[64682,34,64682,35],[64682,36,64682,37],[64682,38,64682,39],[64210,24,64210,25],[64210,26,64210,27],[64210,28,64210,29],[64210,30,64210,31],[64210,32,64210,33],[64210,34,64210,35],[64210,36,64210,37],[64210,38,64210,39],[64272,24,64272,25],[64272,26,64272,27],[64272,28,64272,29],[64272,30,64272,31],[64272,32,64272,33],[64272,34,64272,35],[64272,36,64272,37],[64272,38,64272,39],[64292,24,64292,25],[64292,26,64292,27],[64292,28,64292,29],[64292,30,64292,31],[64292,32,64292,33],[64292,34,64292,35],[64292,36,64292,37],[64292,38,64292,39],[64354,24,64354,25],[64354,26,64354,27],[64354,28,64354,29],[64354,30,64354,31],[64354,32,64354,33],[64354,34,64354,35],[64354,36,64354,37],[64354,38,64354,39],[64374,24,64374,25],[64374,26,64374,27],[64374,28,64374,29],[64374,30,64374,31],[64374,32,64374,33],[64374,34,64374,35],[64374,36,64374,37],[64374,38,64374,39],[64026,24,64026,25],[64026,26,64026,27],[64026,28,64026,29],[64026,30,64026,31],[64026,32,64026,33],[64026,34,64026,35],[64026,36,64026,37],[64026,38,64026,39],[64046,24,64046,25],[64046,26,64046,27],[64046,28,64046,29],[64046,30,64046,31],[64046,32,64046,33],[64046,34,64046,35],[64046,36,64046,37],[64046,38,64046,39],[64108,24,64108,25],[64108,26,64108,27],[64108,28,64108,29],[64108,30,64108,31],[64108,32,64108,33],[64108,34,64108,35],[64108,36,64108,37],[64108,38,64108,39],[64128,24,64128,25],[64128,26,64128,27],[64128,28,64128,29],[64128,30,64128,31],[64128,32,64128,33],[64128,34,64128,35],[64128,36,64128,37],[64128,38,64128,39],[64190,24,64190,25],[64190,26,64190,27],[64190,28,64190,29],[64190,30,64190,31],[64190,32,64190,33],[64190,34,64190,35],[64190,36,64190,37],[64190,38,64190,39],[63800,24,63800,25],[63800,26,63800,27],[63800,28,63800,29],[63800,30,63800,31],[63800,32,63800,33],[63800,34,63800,35],[63800,36,63800,37],[63800,38,63800,39],[63862,24,63862,25],[63862,26,63862,27],[63862,28,63862,29],[63862,30,63862,31],[63862,32,63862,33],[63862,34,63862,35],[63862,36,63862,37],[63862,38,63862,39],[63882,24,63882,25],[63882,26,63882,27],[63882,28,63882,29],[63882,30,63882,31],[63882,32,63882,33],[63882,34,63882,35],[63882,36,63882,37],[63882,38,63882,39],[63944,24,63944,25],[63944,26,63944,27],[63944,28,63944,29],[63944,30,63944,31],[63944,32,63944,33],[63944,34,63944,35],[63944,36,63944,37],[63944,38,63944,39],[63964,24,63964,25],[63964,26,63964,27],[63964,28,63964,29],[63964,30,63964,31],[63964,32,63964,33],[63964,34,63964,35],[63964,36,63964,37],[63964,38,63964,39],[63616,24,63616,25],[63616,26,63616,27],[63616,28,63616,29],[63616,30,63616,31],[63616,32,63616,33],[63616,34,63616,35],[63616,36,63616,37],[63616,38,63616,39],[63636,24,63636,25],[63636,26,63636,27],[63636,28,63636,29],[63636,30,63636,31],[63636,32,63636,33],[63636,34,63636,35],[63636,36,63636,37],[63636,38,63636,39],[63698,24,63698,25],[63698,26,63698,27],[63698,28,63698,29],[63698,30,63698,31],[63698,32,63698,33],[63698,34,63698,35],[63698,36,63698,37],[63698,38,63698,39],[63718,24,63718,25],[63718,26,63718,27],[63718,28,63718,29],[63718,30,63718,31],[63718,32,63718,33],[63718,34,63718,35],[63718,36,63718,37],[63718,38,63718,39],[63780,24,63780,25],[63780,26,63780,27],[63780,28,63780,29],[63780,30,63780,31],[63780,32,63780,33],[63780,34,63780,35],[63780,36,63780,37],[63780,38,63780,39],[63390,24,63390,25],[63390,26,63390,27],[63390,28,63390,29],[63390,30,63390,31],[63390,32,63390,33],[63390,34,63390,35],[63390,36,63390,37],[63390,38,63390,39],[63452,24,63452,25],[63452,26,63452,27],[63452,28,63452,29],[63452,30,63452,31],[63452,32,63452,33],[63452,34,63452,35],[63452,36,63452,37],[63452,38,63452,39],[63472,24,63472,25],[63472,26,63472,27],[63472,28,63472,29],[63472,30,63472,31],[63472,32,63472,33],[63472,34,63472,35],[63472,36,63472,37],[63472,38,63472,39],[63534,24,63534,25],[63534,26,63534,27],[63534,28,63534,29],[63534,30,63534,31],[63534,32,63534,33],[63534,34,63534,35],[63534,36,63534,37],[63534,38,63534,39],[63554,24,63554,25],[63554,26,63554,27],[63554,28,63554,29],[63554,30,63554,31],[63554,32,63554,33],[63554,34,63554,35],[63554,36,63554,37],[63554,38,63554,39],[63206,24,63206,25],[63206,26,63206,27],[63206,28,63206,29],[63206,30,63206,31],[63206,32,63206,33],[63206,34,63206,35],[63206,36,63206,37],[63206,38,63206,39],[63226,24,63226,25],[63226,26,63226,27],[63226,28,63226,29],[63226,30,63226,31],[63226,32,63226,33],[63226,34,63226,35],[63226,36,63226,37],[63226,38,63226,39],[63288,24,63288,25],[63288,26,63288,27],[63288,28,63288,29],[63288,30,63288,31],[63288,32,63288,33],[63288,34,63288,35],[63288,36,63288,37],[63288,38,63288,39],[63308,24,63308,25],[63308,26,63308,27],[63308,28,63308,29],[63308,30,63308,31],[63308,32,63308,33],[63308,34,63308,35],[63308,36,63308,37],[63308,38,63308,39],[63370,24,63370,25],[63370,26,63370,27],[63370,28,63370,29],[63370,30,63370,31],[63370,32,63370,33],[63370,34,63370,35],[63370,36,63370,37],[63370,38,63370,39],[62980,24,62980,25],[62980,26,62980,27],[62980,28,62980,29],[62980,30,62980,31],[62980,32,62980,33],[62980,34,62980,35],[62980,36,62980,37],[62980,38,62980,39],[63042,24,63042,25],[63042,26,63042,27],[63042,28,63042,29],[63042,30,63042,31],[63042,32,63042,33],[63042,34,63042,35],[63042,36,63042,37],[63042,38,63042,39],[63062,24,63062,25],[63062,26,63062,27],[63062,28,63062,29],[63062,30,63062,31],[63062,32,63062,33],[63062,34,63062,35],[63062,36,63062,37],[63062,38,63062,39],[63124,24,63124,25],[63124,26,63124,27],[63124,28,63124,29],[63124,30,63124,31],[63124,32,63124,33],[63124,34,63124,35],[63124,36,63124,37],[63124,38,63124,39],[63144,24,63144,25],[63144,26,63144,27],[63144,28,63144,29],[63144,30,63144,31],[63144,32,63144,33],[63144,34,63144,35],[63144,36,63144,37],[63144,38,63144,39],[62796,24,62796,25],[62796,26,62796,27],[62796,28,62796,29],[62796,30,62796,31],[62796,32,62796,33],[62796,34,62796,35],[62796,36,62796,37],[62796,38,62796,39],[62816,24,62816,25],[62816,26,62816,27],[62816,28,62816,29],[62816,30,62816,31],[62816,32,62816,33],[62816,34,62816,35],[62816,36,62816,37],[62816,38,62816,39],[62878,24,62878,25],[62878,26,62878,27],[62878,28,62878,29],[62878,30,62878,31],[62878,32,62878,33],[62878,34,62878,35],[62878,36,62878,37],[62878,38,62878,39],[62898,24,62898,25],[62898,26,62898,27],[62898,28,62898,29],[62898,30,62898,31],[62898,32,62898,33],[62898,34,62898,35],[62898,36,62898,37],[62898,38,62898,39],[62960,24,62960,25],[62960,26,62960,27],[62960,28,62960,29],[62960,30,62960,31],[62960,32,62960,33],[62960,34,62960,35],[62960,36,62960,37],[62960,38,62960,39],[62570,24,62570,25],[62570,26,62570,27],[62570,28,62570,29],[62570,30,62570,31],[62570,32,62570,33],[62570,34,62570,35],[62570,36,62570,37],[62570,38,62570,39],[62632,24,62632,25],[62632,26,62632,27],[62632,28,62632,29],[62632,30,62632,31],[62632,32,62632,33],[62632,34,62632,35],[62632,36,62632,37],[62632,38,62632,39],[62652,24,62652,25],[62652,26,62652,27],[62652,28,62652,29],[62652,30,62652,31],[62652,32,62652,33],[62652,34,62652,35],[62652,36,62652,37],[62652,38,62652,39],[62714,24,62714,25],[62714,26,62714,27],[62714,28,62714,29],[62714,30,62714,31],[62714,32,62714,33],[62714,34,62714,35],[62714,36,62714,37],[62714,38,62714,39],[62734,24,62734,25],[62734,26,62734,27],[62734,28,62734,29],[62734,30,62734,31],[62734,32,62734,33],[62734,34,62734,35],[62734,36,62734,37],[62734,38,62734,39],[62386,24,62386,25],[62386,26,62386,27],[62386,28,62386,29],[62386,30,62386,31],[62386,32,62386,33],[62386,34,62386,35],[62386,36,62386,37],[62386,38,62386,39],[62406,24,62406,25],[62406,26,62406,27],[62406,28,62406,29],[62406,30,62406,31],[62406,32,62406,33],[62406,34,62406,35],[62406,36,62406,37],[62406,38,62406,39],[62468,24,62468,25],[62468,26,62468,27],[62468,28,62468,29],[62468,30,62468,31],[62468,32,62468,33],[62468,34,62468,35],[62468,36,62468,37],[62468,38,62468,39],[62488,24,62488,25],[62488,26,62488,27],[62488,28,62488,29],[62488,30,62488,31],[62488,32,62488,33],[62488,34,62488,35],[62488,36,62488,37],[62488,38,62488,39],[62550,24,62550,25],[62550,26,62550,27],[62550,28,62550,29],[62550,30,62550,31],[62550,32,62550,33],[62550,34,62550,35],[62550,36,62550,37],[62550,38,62550,39],[62160,24,62160,25],[62160,26,62160,27],[62160,28,62160,29],[62160,30,62160,31],[62160,32,62160,33],[62160,34,62160,35],[62160,36,62160,37],[62160,38,62160,39],[62222,24,62222,25],[62222,26,62222,27],[62222,28,62222,29],[62222,30,62222,31],[62222,32,62222,33],[62222,34,62222,35],[62222,36,62222,37],[62222,38,62222,39],[62242,24,62242,25],[62242,26,62242,27],[62242,28,62242,29],[62242,30,62242,31],[62242,32,62242,33],[62242,34,62242,35],[62242,36,62242,37],[62242,38,62242,39],[62304,24,62304,25],[62304,26,62304,27],[62304,28,62304,29],[62304,30,62304,31],[62304,32,62304,33],[62304,34,62304,35],[62304,36,62304,37],[62304,38,62304,39],[62324,24,62324,25],[62324,26,62324,27],[62324,28,62324,29],[62324,30,62324,31],[62324,32,62324,33],[62324,34,62324,35],[62324,36,62324,37],[62324,38,62324,39],[61976,24,61976,25],[61976,26,61976,27],[61976,28,61976,29],[61976,30,61976,31],[61976,32,61976,33],[61976,34,61976,35],[61976,36,61976,37],[61976,38,61976,39],[61996,24,61996,25],[61996,26,61996,27],[61996,28,61996,29],[61996,30,61996,31],[61996,32,61996,33],[61996,34,61996,35],[61996,36,61996,37],[61996,38,61996,39],[62058,24,62058,25],[62058,26,62058,27],[62058,28,62058,29],[62058,30,62058,31],[62058,32,62058,33],[62058,34,62058,35],[62058,36,62058,37],[62058,38,62058,39],[62078,24,62078,25],[62078,26,62078,27],[62078,28,62078,29],[62078,30,62078,31],[62078,32,62078,33],[62078,34,62078,35],[62078,36,62078,37],[62078,38,62078,39],[62140,24,62140,25],[62140,26,62140,27],[62140,28,62140,29],[62140,30,62140,31],[62140,32,62140,33],[62140,34,62140,35],[62140,36,62140,37],[62140,38,62140,39],[61750,24,61750,25],[61750,26,61750,27],[61750,28,61750,29],[61750,30,61750,31],[61750,32,61750,33],[61750,34,61750,35],[61750,36,61750,37],[61750,38,61750,39],[61812,24,61812,25],[61812,26,61812,27],[61812,28,61812,29],[61812,30,61812,31],[61812,32,61812,33],[61812,34,61812,35],[61812,36,61812,37],[61812,38,61812,39],[61832,24,61832,25],[61832,26,61832,27],[61832,28,61832,29],[61832,30,61832,31],[61832,32,61832,33],[61832,34,61832,35],[61832,36,61832,37],[61832,38,61832,39],[61894,24,61894,25],[61894,26,61894,27],[61894,28,61894,29],[61894,30,61894,31],[61894,32,61894,33],[61894,34,61894,35],[61894,36,61894,37],[61894,38,61894,39],[61914,24,61914,25],[61914,26,61914,27],[61914,28,61914,29],[61914,30,61914,31],[61914,32,61914,33],[61914,34,61914,35],[61914,36,61914,37],[61914,38,61914,39],[61566,24,61566,25],[61566,26,61566,27],[61566,28,61566,29],[61566,30,61566,31],[61566,32,61566,33],[61566,34,61566,35],[61566,36,61566,37],[61566,38,61566,39],[61586,24,61586,25],[61586,26,61586,27],[61586,28,61586,29],[61586,30,61586,31],[61586,32,61586,33],[61586,34,61586,35],[61586,36,61586,37],[61586,38,61586,39],[61648,24,61648,25],[61648,26,61648,27],[61648,28,61648,29],[61648,30,61648,31],[61648,32,61648,33],[61648,34,61648,35],[61648,36,61648,37],[61648,38,61648,39],[61668,24,61668,25],[61668,26,61668,27],[61668,28,61668,29],[61668,30,61668,31],[61668,32,61668,33],[61668,34,61668,35],[61668,36,61668,37],[61668,38,61668,39],[61730,24,61730,25],[61730,26,61730,27],[61730,28,61730,29],[61730,30,61730,31],[61730,32,61730,33],[61730,34,61730,35],[61730,36,61730,37],[61730,38,61730,39],[61340,24,61340,25],[61340,26,61340,27],[61340,28,61340,29],[61340,30,61340,31],[61340,32,61340,33],[61340,34,61340,35],[61340,36,61340,37],[61340,38,61340,39],[61402,24,61402,25],[61402,26,61402,27],[61402,28,61402,29],[61402,30,61402,31],[61402,32,61402,33],[61402,34,61402,35],[61402,36,61402,37],[61402,38,61402,39],[61422,24,61422,25],[61422,26,61422,27],[61422,28,61422,29],[61422,30,61422,31],[61422,32,61422,33],[61422,34,61422,35],[61422,36,61422,37],[61422,38,61422,39],[61484,24,61484,25],[61484,26,61484,27],[61484,28,61484,29],[61484,30,61484,31],[61484,32,61484,33],[61484,34,61484,35],[61484,36,61484,37],[61484,38,61484,39],[61504,24,61504,25],[61504,26,61504,27],[61504,28,61504,29],[61504,30,61504,31],[61504,32,61504,33],[61504,34,61504,35],[61504,36,61504,37],[61504,38,61504,39],[61156,24,61156,25],[61156,26,61156,27],[61156,28,61156,29],[61156,30,61156,31],[61156,32,61156,33],[61156,34,61156,35],[61156,36,61156,37],[61156,38,61156,39],[61176,24,61176,25],[61176,26,61176,27],[61176,28,61176,29],[61176,30,61176,31],[61176,32,61176,33],[61176,34,61176,35],[61176,36,61176,37],[61176,38,61176,39],[61238,24,61238,25],[61238,26,61238,27],[61238,28,61238,29],[61238,30,61238,31],[61238,32,61238,33],[61238,34,61238,35],[61238,36,61238,37],[61238,38,61238,39],[61258,24,61258,25],[61258,26,61258,27],[61258,28,61258,29],[61258,30,61258,31],[61258,32,61258,33],[61258,34,61258,35],[61258,36,61258,37],[61258,38,61258,39],[61320,24,61320,25],[61320,26,61320,27],[61320,28,61320,29],[61320,30,61320,31],[61320,32,61320,33],[61320,34,61320,35],[61320,36,61320,37],[61320,38,61320,39],[60930,24,60930,25],[60930,26,60930,27],[60930,28,60930,29],[60930,30,60930,31],[60930,32,60930,33],[60930,34,60930,35],[60930,36,60930,37],[60930,38,60930,39],[60992,24,60992,25],[60992,26,60992,27],[60992,28,60992,29],[60992,30,60992,31],[60992,32,60992,33],[60992,34,60992,35],[60992,36,60992,37],[60992,38,60992,39],[61012,24,61012,25],[61012,26,61012,27],[61012,28,61012,29],[61012,30,61012,31],[61012,32,61012,33],[61012,34,61012,35],[61012,36,61012,37],[61012,38,61012,39],[61074,24,61074,25],[61074,26,61074,27],[61074,28,61074,29],[61074,30,61074,31],[61074,32,61074,33],[61074,34,61074,35],[61074,36,61074,37],[61074,38,61074,39],[61094,24,61094,25],[61094,26,61094,27],[61094,28,61094,29],[61094,30,61094,31],[61094,32,61094,33],[61094,34,61094,35],[61094,36,61094,37],[61094,38,61094,39],[60746,24,60746,25],[60746,26,60746,27],[60746,28,60746,29],[60746,30,60746,31],[60746,32,60746,33],[60746,34,60746,35],[60746,36,60746,37],[60746,38,60746,39],[60766,24,60766,25],[60766,26,60766,27],[60766,28,60766,29],[60766,30,60766,31],[60766,32,60766,33],[60766,34,60766,35],[60766,36,60766,37],[60766,38,60766,39],[60828,24,60828,25],[60828,26,60828,27],[60828,28,60828,29],[60828,30,60828,31],[60828,32,60828,33],[60828,34,60828,35],[60828,36,60828,37],[60828,38,60828,39],[60848,24,60848,25],[60848,26,60848,27],[60848,28,60848,29],[60848,30,60848,31],[60848,32,60848,33],[60848,34,60848,35],[60848,36,60848,37],[60848,38,60848,39],[60910,24,60910,25],[60910,26,60910,27],[60910,28,60910,29],[60910,30,60910,31],[60910,32,60910,33],[60910,34,60910,35],[60910,36,60910,37],[60910,38,60910,39],[60520,24,60520,25],[60520,26,60520,27],[60520,28,60520,29],[60520,30,60520,31],[60520,32,60520,33],[60520,34,60520,35],[60520,36,60520,37],[60520,38,60520,39],[60582,24,60582,25],[60582,26,60582,27],[60582,28,60582,29],[60582,30,60582,31],[60582,32,60582,33],[60582,34,60582,35],[60582,36,60582,37],[60582,38,60582,39],[60602,24,60602,25],[60602,26,60602,27],[60602,28,60602,29],[60602,30,60602,31],[60602,32,60602,33],[60602,34,60602,35],[60602,36,60602,37],[60602,38,60602,39],[60664,24,60664,25],[60664,26,60664,27],[60664,28,60664,29],[60664,30,60664,31],[60664,32,60664,33],[60664,34,60664,35],[60664,36,60664,37],[60664,38,60664,39],[60684,24,60684,25],[60684,26,60684,27],[60684,28,60684,29],[60684,30,60684,31],[60684,32,60684,33],[60684,34,60684,35],[60684,36,60684,37],[60684,38,60684,39],[60336,24,60336,25],[60336,26,60336,27],[60336,28,60336,29],[60336,30,60336,31],[60336,32,60336,33],[60336,34,60336,35],[60336,36,60336,37],[60336,38,60336,39],[60356,24,60356,25],[60356,26,60356,27],[60356,28,60356,29],[60356,30,60356,31],[60356,32,60356,33],[60356,34,60356,35],[60356,36,60356,37],[60356,38,60356,39],[60418,24,60418,25],[60418,26,60418,27],[60418,28,60418,29],[60418,30,60418,31],[60418,32,60418,33],[60418,34,60418,35],[60418,36,60418,37],[60418,38,60418,39],[60438,24,60438,25],[60438,26,60438,27],[60438,28,60438,29],[60438,30,60438,31],[60438,32,60438,33],[60438,34,60438,35],[60438,36,60438,37],[60438,38,60438,39],[60500,24,60500,25],[60500,26,60500,27],[60500,28,60500,29],[60500,30,60500,31],[60500,32,60500,33],[60500,34,60500,35],[60500,36,60500,37],[60500,38,60500,39],[60110,24,60110,25],[60110,26,60110,27],[60110,28,60110,29],[60110,30,60110,31],[60110,32,60110,33],[60110,34,60110,35],[60110,36,60110,37],[60110,38,60110,39],[60172,24,60172,25],[60172,26,60172,27],[60172,28,60172,29],[60172,30,60172,31],[60172,32,60172,33],[60172,34,60172,35],[60172,36,60172,37],[60172,38,60172,39],[60192,24,60192,25],[60192,26,60192,27],[60192,28,60192,29],[60192,30,60192,31],[60192,32,60192,33],[60192,34,60192,35],[60192,36,60192,37],[60192,38,60192,39],[60254,24,60254,25],[60254,26,60254,27],[60254,28,60254,29],[60254,30,60254,31],[60254,32,60254,33],[60254,34,60254,35],[60254,36,60254,37],[60254,38,60254,39],[60274,24,60274,25],[60274,26,60274,27],[60274,28,60274,29],[60274,30,60274,31],[60274,32,60274,33],[60274,34,60274,35],[60274,36,60274,37],[60274,38,60274,39],[59926,24,59926,25],[59926,26,59926,27],[59926,28,59926,29],[59926,30,59926,31],[59926,32,59926,33],[59926,34,59926,35],[59926,36,59926,37],[59926,38,59926,39],[59946,24,59946,25],[59946,26,59946,27],[59946,28,59946,29],[59946,30,59946,31],[59946,32,59946,33],[59946,34,59946,35],[59946,36,59946,37],[59946,38,59946,39],[60008,24,60008,25],[60008,26,60008,27],[60008,28,60008,29],[60008,30,60008,31],[60008,32,60008,33],[60008,34,60008,35],[60008,36,60008,37],[60008,38,60008,39],[60028,24,60028,25],[60028,26,60028,27],[60028,28,60028,29],[60028,30,60028,31],[60028,32,60028,33],[60028,34,60028,35],[60028,36,60028,37],[60028,38,60028,39]],"merged_total":30061,"flags":["merged_cut"]}
[null,"B01001. GENDER BY AGE"]
[null,"Universe:  TOTAL POPULATION"]
[null,"Data Set: 2018-2022 American Community Survey 5-Year Estimates"]
[]
[null,null,"Albany",null,"Bartlett",null,"Brookfield",null,"Chatham",null,"Conway",null,"Eaton",null,"Effingham",null,"Freedom",null,"Hale's Location",null,"Hart's Location",null,"Jackson",null,"Madison",null,"Moultonborough",null,"Ossipee",null,"Sandwich",null,"Tamworth",null,"Tuftonboro",null,"Wakefield",null,"Wolfeboro"]
[null," ","Estimate","Margin of Error","Estimate","Margin of Error","Estimate","Margin of Error","Estimate","Margin of Error","Estimate","Margin of Error","Estimate","Margin of Error","Estimate","Margin of Error","Estimate","Margin of Error","Estimate","Margin of Error","Estimate","Margin of Error","Estimate","Margin of Error","Estimate","Margin of Error","Estimate","Margin of Error","Estimate","Margin of Error","Estimate","Margin of Error","Estimate","Margin of Error","Estimate","Margin of Error","Estimate","Margin of Error","Estimate","Margin of Error"]
[null,"Total:",708,164,3207,17,536,142,423,109,9981,18,355,72,1794,280,1336,184,196,61,53,37,1149,182,2609,21,4950,16,4443,15,1838,254,2844,15,2507,27,5266,18,6484,18]
[null,"Male:",304,77,1736,181,275,81,222,58,5142,308,179,44,786,120,629,97,111,42,41,32,494,88,1248,148,2562,164,2467,157,1007,183,1406,156,1268,101,2800,184,2978,251]
[null,"Under 5 years",5,6,44,68,6,17,9,10,239,110,0,12,40,24,25,18,0,12,0,12,10,14,39,34,75,63,177,98,23,17,41,38,31,41,109,85,26,34]
[null,"5 to 9 years",24,20,33,37,8,9,15,11,211,77,6,7,62,46,8,9,0,12,0,12,20,23,174,111,144,68,63,47,15,13,80,57,37,25,211,155,80,51]
[null,"10 to 14 years",12,11,37,55,12,9,9,8,319,196,5,9,25,19,68,56,0,12,0,12,0,12,55,33,138,92,84,70,30,18,123,72,32,23,149,102,171,80]
[null,"15 to 17 years",4,7,13,20,4,6,19,34,116,85,0,12,29,20,23,19,0,12,0,12,0,12,102,84,67,49,6,13,22,14,70,67,53,37,55,80,200,116]
[null,"18 and 19 years",3,6,0,12,9,12,9,10,102,78,6,8,45,35,0,12,0,12,0,12,0,12,1,6,51,51,118,57,32,28,0,12,16,19,0,17,100,77]
[null,"20 years",4,7,0,12,0,12,5,6,32,49,0,12,5,8,0,12,0,12,0,12,0,12,19,19,16,27,14,21,0,12,0,12,21,29,28,42,0,17]
[null,"21 years",0,12,0,12,0,12,0,12,96,104,0,12,0,12,0,12,0,12,0,12,0,12,0,12,29,45,41,61,6,9,46,57,0,12,0,17,0,17]
[null,"22 to 24 years",4,6,147,159,25,26,3,4,181,125,7,10,9,10,2,4,0,12,0,12,0,12,19,19,44,49,90,77,9,13,58,77,26,22,119,96,17,35]
[null,"25 to 29 years",25,17,67,83,5,6,5,6,324,156,20,21,72,58,4,5,28,33,2,5,0,12,63,40,151,102,82,68,25,19,105,65,53,38,144,98,55,63]
[null,"30 to 34 years",16,15,19,23,4,6,16,11,332,137,0,12,40,27,51,36,0,12,0,12,22,24,41,32,223,100,85,44,11,10,87,83,41,30,113,95,122,108]
[null,"35 to 39 years",5,6,76,77,9,8,17,11,307,133,13,11,49,23,14,13,0,12,0,12,42,33,63,39,9,14,93,38,22,15,117,89,70,61,225,107,80,71]
[null,"40 to 44 years",10,12,75,77,7,8,11,9,454,213,2,4,24,17,21,19,3,4,0,12,17,22,97,78,0,12,165,71,11,9,16,20,12,13,41,38,173,109]
[null,"45 to 49 years",29,24,0,12,49,31,5,6,213,109,17,16,43,33,30,26,0,12,0,12,78,63,46,35,92,46,95,84,93,54,156,157,149,75,140,93,115,101]
[null,"50 to 54 years",17,14,205,130,17,10,18,11,185,109,5,6,69,38,14,11,0,12,0,12,33,8,124,56,155,90,244,128,40,29,50,46,49,37,240,124,254,128]
[null,"55 to 59 years",42,29,223,139,11,9,19,13,516,205,7,7,57,21,53,23,11,16,6,8,26,21,77,41,264,113,345,114,56,28,54,32,66,56,373,219,435,217]
[null,"60 and 61 years",11,12,45,53,4,5,7,8,113,70,4,4,20,17,34,20,6,8,1,3,46,47,42,34,71,46,15,24,22,15,74,66,42,38,112,85,85,64]
[null,"62 to 64 years",18,15,50,50,18,13,6,5,223,108,7,6,31,16,36,17,4,4,9,17,36,28,65,37,200,84,75,51,68,37,71,45,99,52,120,68,145,112]
[null,"65 and 66 years",21,16,208,161,14,13,18,13,118,65,15,16,26,17,40,28,13,9,0,12,2,3,28,21,138,74,247,144,57,33,9,14,70,53,44,53,76,51]
[null,"67 to 69 years",13,15,154,96,25,16,10,7,223,105,16,9,86,47,20,11,3,5,18,24,11,18,50,31,182,117,83,73,61,29,93,80,45,28,67,56,56,49]
[null,"70 to 74 years",22,17,188,124,28,15,7,6,339,151,27,13,33,19,105,33,13,11,4,7,96,43,73,44,192,86,200,94,249,145,24,26,137,62,255,154,295,135]
[null,"75 to 79 years",8,9,112,71,15,10,7,5,282,113,11,7,8,8,34,17,12,9,0,12,40,30,37,26,146,77,103,64,119,79,70,62,142,100,143,77,237,106]
[null,"80 to 84 years",4,3,40,52,4,5,4,5,85,65,7,7,10,11,24,15,8,6,1,2,7,10,5,6,110,66,31,26,24,16,48,47,32,29,84,61,154,113]
[null,"85 years and over",7,7,0,12,1,4,3,3,132,79,4,4,3,4,23,16,10,10,0,12,8,13,28,30,65,46,11,21,12,9,14,18,45,28,28,29,102,66]
[null,"Female:",404,116,1471,179,261,70,201,63,4839,309,176,46,1008,205,707,127,85,32,12,13,655,117,1361,148,2388,164,1976,153,831,137,1438,157,1239,103,2466,184,3506,253]
[null,"Under 5 years",11,10,3,6,13,15,10,9,51,42,8,10,94,61,31,20,0,12,0,12,71,40,69,42,45,40,83,72,36,27,101,103,51,32,163,111,0,17]
[null,"5 to 9 years",4,5,42,63,4,7,8,8,200,111,4,5,29,21,46,48,0,12,0,12,21,25,86,40,103,54,58,88,13,10,98,95,41,28,127,103,126,53]
[null,"10 to 14 years",20,15,2,6,2,4,20,19,213,88,1,3,101,71,0,12,0,12,0,12,50,33,31,31,121,102,65,56,45,37,123,81,55,38,91,95,111,88]
[null,"15 to 17 years",4,5,0,12,2,3,11,14,115,68,6,6,18,12,17,17,2,3,0,12,42,28,98,54,42,31,31,39,18,14,40,47,55,37,37,54,129,106]
[null,"18 and 19 years",13,19,0,12,3,6,0,12,75,70,0,12,47,42,46,61,0,12,0,12,0,12,11,15,16,24,54,74,6,9,0,12,33,29,23,35,59,56]
[null,"20 years",0,12,0,12,0,12,2,3,45,51,0,12,16,20,0,12,0,12,0,12,0,12,26,31,0,12,1,2,0,12,0,12,10,16,23,43,124,121]
[null,"21 years",3,6,0,12,0,12,7,12,0,17,0,12,5,8,7,11,0,12,0,12,0,12,1,3,0,12,0,12,9,11,37,47,0,12,0,17,0,17]
[null,"22 to 24 years",26,25,4,8,0,12,0,12,294,205,0,12,11,11,7,11,0,12,0,12,0,12,2,5,27,34,28,30,5,7,0,12,24,30,135,122,98,124]
[null,"25 to 29 years",38,24,62,68,13,11,10,10,242,104,2,4,97,96,0,12,0,12,3,5,39,38,65,51,282,138,41,44,15,20,51,47,31,31,56,52,36,63]
[null,"30 to 34 years",12,14,4,7,18,16,11,9,316,111,5,7,76,33,44,36,0,12,0,12,26,35,46,33,108,56,47,24,56,37,137,92,30,25,187,102,46,46]
[null,"35 to 39 years",48,56,48,74,6,7,8,9,280,142,21,22,53,33,21,17,0,12,0,12,51,38,122,63,98,62,91,70,26,18,81,75,19,15,167,82,269,157]
[null,"40 to 44 years",17,15,3,8,12,8,10,6,202,120,14,13,32,19,29,20,0,12,0,12,10,15,105,51,43,40,170,85,20,27,60,74,52,30,77,95,195,140]
[null,"45 to 49 years",16,17,55,57,20,11,20,18,226,104,2,3,95,72,24,18,0,12,0,12,38,18,18,17,139,81,119,73,56,24,44,49,91,57,176,104,166,119]
[null,"50 to 54 years",34,22,277,142,25,15,7,6,200,87,4,5,94,42,60,52,19,18,7,11,19,20,114,51,217,106,148,83,49,28,47,58,103,61,126,93,146,97]
[null,"55 to 59 years",59,64,258,128,15,9,25,16,276,147,24,16,30,15,42,20,9,8,0,12,51,69,149,63,176,101,306,111,64,26,132,83,108,71,347,240,444,215]
[null,"60 and 61 years",8,6,53,68,9,11,5,4,241,128,13,12,46,29,47,27,1,3,0,12,20,22,65,41,125,78,50,50,69,34,8,12,21,19,134,91,77,62]
[null,"62 to 64 years",46,39,94,97,19,15,9,9,68,40,5,9,20,10,48,22,4,5,0,12,104,57,64,33,198,73,176,85,75,36,163,115,40,36,107,75,179,129]
[null,"65 and 66 years",8,11,135,93,11,8,17,11,327,198,5,5,60,26,10,8,6,6,1,3,3,5,24,16,48,30,55,29,50,38,78,53,42,37,49,42,37,45]
[null,"67 to 69 years",14,13,39,54,22,11,3,3,205,122,17,14,30,15,43,14,5,6,0,12,36,22,55,28,164,100,54,49,81,27,75,71,106,56,104,91,111,74]
[null,"70 to 74 years",7,10,289,155,32,19,8,5,598,230,25,15,38,24,101,29,10,6,0,12,17,14,76,38,202,80,187,70,54,22,45,29,122,44,132,69,424,161]
[null,"75 to 79 years",3,5,54,58,16,10,4,5,447,177,8,6,13,9,18,12,10,8,1,3,23,20,51,34,143,62,81,80,45,23,19,16,117,131,127,89,272,124]
[null,"80 to 84 years",7,7,0,12,5,6,4,4,51,50,7,7,0,12,33,34,14,12,0,12,15,15,61,49,43,37,81,54,12,9,50,41,39,31,64,55,264,131]
[null,"85 years and over",6,6,49,63,14,23,2,3,167,95,5,6,3,4,33,25,5,8,0,12,19,20,22,31,48,38,50,42,27,17,49,57,49,36,14,21,193,132]
[]
[]
[]
[]
[]
[]
[]
[]
[]
[]
[]
[]
[]
[null,"Calculated B01001. GENDER BY AGE"]
[null,"Universe:  TOTAL POPULATION"]
[null,"Data Set: 2018-2022 American Community Survey 5-Year Estimates"]
[]
[null,null,"Albany",null,"Bartlett",null,"Brookfield",null,"Chatham",null,"Conway",null,"Eaton",null,"Effingham",null,"Freedom",null,"Hale's Location",null,"Hart's Location",null,"Jackson",null,"Madison",null,"Moultonborough",null,"Ossipee",null,"Sandwich",null,"Tamworth",null,"Tuftonboro",null,"Wakefield",null,"Wolfeboro"]
[null," ","Estimate","Margin of Error","Estimate","Margin of Error","Estimate","Margin of Error","Estimate","Margin of Error","Estimate","Margin of Error","Estimate","Margin of Error","Estimate","Margin of Error","Estimate","Margin of Error","Estimate","Margin of Error","Estimate","Margin of Error","Estimate","Margin of Error","Estimate","Margin of Error","Estimate","Margin of Error","Estimate","Margin of Error","Estimate","Margin of Error","Estimate","Margin of Error","Estimate","Margin of Error","Estimate","Margin of Error","Estimate","Margin of Error"]
[null,"Total",{"$f":"C7","v":708},{"$f":"D7","v":164},3207,17,536,142,423,109,9981,18,355,72,1794,280,1336,184,196,61,53,37,1149,182,{"$f":"Y7","v":2609},21,4950,16,4443,15,1838,254,2844,15,2507,27,5266,18,6484,18]
[null,"Under 15 yrs.",{"$f":"C9+C10+C11+C33+C34+C35","v":76},{"$f":"SQRT((D9^2)+(D10^2)+(D11^2)+(D33^2)+(D34^2)+(D35^2))","v":30.116440692751194},{"$f":"E9+E10+E11+E33+E34+E35","v":161},{"$f":"SQRT((F9^2)+(F10^2)+(F11^2)+(F33^2)+(F34^2)+(F35^2))","v":114.27598172844546},{"$f":"G9+G10+G11+G33+G34+G35","v":45},{"$f":"SQRT((H9^2)+(H10^2)+(H11^2)+(H33^2)+(H34^2)+(H35^2))","v":27.221315177632398},{"$f":"I9+I10+I11+I33+I34+I35","v":71},{"$f":"SQRT((J9^2)+(J10^2)+(J11^2)+(J33^2)+(J34^2)+(J35^2))","v":28.124722220850465},{"$f":"K9+K10+K11+K33+K34+K35","v":1233},{"$f":"SQRT((L9^2)+(L10^2)+(L11^2)+(L33^2)+(L34^2)+(L35^2))","v":279.77490952549692},{"$f":"M9+M10+M11+M33+M34+M35","v":24},{"$f":"SQRT((N9^2)+(N10^2)+(N11^2)+(N33^2)+(N34^2)+(N35^2))","v":20.199009876724155},{"$f":"O9+O10+O11+O33+O34+O35","v":351},{"$f":"SQRT((P9^2)+(P10^2)+(P11^2)+(P33^2)+(P34^2)+(P35^2))","v":110.70682002478438},{"$f":"Q9+Q10+Q11+Q33+Q34+Q35","v":178},{"$f":"SQRT((R9^2)+(R10^2)+(R11^2)+(R33^2)+(R34^2)+(R35^2))","v":79.93122043357026},{"$f":"S9+S10+S11+S33+S34+S35","v":0},{"$f":"SQRT((T9^2)+(T10^2)+(T11^2)+(T33^2)+(T34^2)+(T35^2))","v":29.393876913398138},{"$f":"U9+U10+U11+U33+U34+U35","v":0},{"$f":"SQRT((V9^2)+(V10^2)+(V11^2)+(V33^2)+(V34^2)+(V35^2))","v":29.393876913398138},{"$f":"W9+W10+W11+W33+W34+W35","v":172},{"$f":"SQRT((X9^2)+(X10^2)+(X11^2)+(X33^2)+(X34^2)+(X35^2))","v":64.67611614808051},{"$f":"Y9+Y10+Y11+Y33+Y34+Y35","v":454},{"$f":"SQRT((Z9^2)+(Z10^2)+(Z11^2)+(Z33^2)+(Z34^2)+(Z35^2))","v":137.44453426746369},{"$f":"AA9+AA10+AA11+AA33+AA34+AA35","v":626},{"$f":"SQRT((AB9^2)+(AB10^2)+(AB11^2)+(AB33^2)+(AB34^2)+(AB35^2))","v":178.82113968991473},{"$f":"AC9+AC10+AC11+AC33+AC34+AC35","v":530},{"$f":"SQRT((AD9^2)+(AD10^2)+(AD11^2)+(AD33^2)+(AD34^2)+(AD35^2))","v":181.04419349981927},{"$f":"AE9+AE10+AE11+AE33+AE34+AE35","v":162},{"$f":"SQRT((AF9^2)+(AF10^2)+(AF11^2)+(AF33^2)+(AF34^2)+(AF35^2))","v":54.589376255824725},{"$f":"AG9+AG10+AG11+AG33+AG34+AG35","v":566},{"$f":"SQRT((AH9^2)+(AH10^2)+(AH11^2)+(AH33^2)+(AH34^2)+(AH35^2))","v":189.92630149613296},{"$f":"AI9+AI10+AI11+AI33+AI34+AI35","v":247},{"$f":"SQRT((AJ9^2)+(AJ10^2)+(AJ11^2)+(AJ33^2)+(AJ34^2)+(AJ35^2))","v":78.019228399158109},{"$f":"AK9+AK10+AK11+AK33+AK34+AK35","v":850},{"$f":"SQRT((AL9^2)+(AL10^2)+(AL11^2)+(AL33^2)+(AL34^2)+(AL35^2))","v":271.30978603802703},{"$f":"AM9+AM10+AM11+AM33+AM34+AM35","v":514},{"$f":"SQRT((AN9^2)+(AN10^2)+(AN11^2)+(AN33^2)+(AN34^2)+(AN35^2))","v":144.91031709302138}]
[null,"15 to 24 yrs.",{"$f":"C12+C13+C14+C15+C16+C36+C37+C38+C39+C40","v":61},{"$f":"SQRT((D12^2)+(D13^2)+(D14^2)+(D15^2)+(D16^2)+(D36^2)+(D37^2)+(D38^2)+(D39^2)+(D40^2))","v":38.794329482541649},{"$f":"E12+E13+E14+E15+E16+E36+E37+E38+E39+E40","v":164},{"$f":"SQRT((F12^2)+(F13^2)+(F14^2)+(F15^2)+(F16^2)+(F36^2)+(F37^2)+(F38^2)+(F39^2)+(F40^2))","v":163.56344334844508},{"$f":"G12+G13+G14+G15+G16+G36+G37+G38+G39+G40","v":43},{"$f":"SQRT((H12^2)+(H13^2)+(H14^2)+(H15^2)+(H16^2)+(H36^2)+(H37^2)+(H38^2)+(H39^2)+(H40^2))","v":40.26164427839479},{"$f":"I12+I13+I14+I15+I16+I36+I37+I38+I39+I40","v":56},{"$f":"SQRT((J12^2)+(J13^2)+(J14^2)+(J15^2)+(J16^2)+(J36^2)+(J37^2)+(J38^2)+(J39^2)+(J40^2))","v":45.705579528105758},{"$f":"K12+K13+K14+K15+K16+K36+K37+K38+K39+K40","v":1056},{"$f":"SQRT((L12^2)+(L13^2)+(L14^2)+(L15^2)+(L16^2)+(L36^2)+(L37^2)+(L38^2)+(L39^2)+(L40^2))","v":310.78931770574098},{"$f":"M12+M13+M14+M15+M16+M36+M37+M38+M39+M40","v":19},{"$f":"SQRT((N12^2)+(N13^2)+(N14^2)+(N15^2)+(N16^2)+(N36^2)+(N37^2)+(N38^2)+(N39^2)+(N40^2))","v":34.756294393965533},{"$f":"O12+O13+O14+O15+O16+O36+O37+O38+O39+O40","v":185},{"$f":"SQRT((P12^2)+(P13^2)+(P14^2)+(P15^2)+(P16^2)+(P36^2)+(P37^2)+(P38^2)+(P39^2)+(P40^2))","v":66.528189513919585},{"$f":"Q12+Q13+Q14+Q15+Q16+Q36+Q37+Q38+Q39+Q40","v":102},{"$f":"SQRT((R12^2)+(R13^2)+(R14^2)+(R15^2)+(R16^2)+(R36^2)+(R37^2)+(R38^2)+(R39^2)+(R40^2))","v":72.145685941711022},{"$f":"S12+S13+S14+S15+S16+S36+S37+S38+S39+S40","v":2},{"$f":"SQRT((T12^2)+(T13^2)+(T14^2)+(T15^2)+(T16^2)+(T36^2)+(T37^2)+(T38^2)+(T39^2)+(T40^2))","v":36.124783736376884},{"$f":"U12+U13+U14+U15+U16+U36+U37+U38+U39+U40","v":0},{"$f":"SQRT((V12^2)+(V13^2)+(V14^2)+(V15^2)+(V16^2)+(V36^2)+(V37^2)+(V38^2)+(V39^2)+(V40^2))","v":37.947331922020552},{"$f":"W12+W13+W14+W15+W16+W36+W37+W38+W39+W40","v":42},{"$f":"SQRT((X12^2)+(X13^2)+(X14^2)+(X15^2)+(X16^2)+(X36^2)+(X37^2)+(X38^2)+(X39^2)+(X40^2))","v":45.607017003965517},{"$f":"Y12+Y13+Y14+Y15+Y16+Y36+Y37+Y38+Y39+Y40","v":279},{"$f":"SQRT((Z12^2)+(Z13^2)+(Z14^2)+(Z15^2)+(Z16^2)+(Z36^2)+(Z37^2)+(Z38^2)+(Z39^2)+(Z40^2))","v":109.97272389097216},{"$f":"AA12+AA13+AA14+AA15+AA16+AA36+AA37+AA38+AA39+AA40","v":292},{"$f":"SQRT((AB12^2)+(AB13^2)+(AB14^2)+(AB15^2)+(AB16^2)+(AB36^2)+(AB37^2)+(AB38^2)+(AB39^2)+(AB40^2))","v":114.62111498323509},{"$f":"AC12+AC13+AC14+AC15+AC16+AC36+AC37+AC38+AC39+AC40","v":383},{"$f":"SQRT((AD12^2)+(AD13^2)+(AD14^2)+(AD15^2)+(AD16^2)+(AD36^2)+(AD37^2)+(AD38^2)+(AD39^2)+(AD40^2))","v":146.81280598094978},{"$f":"AE12+AE13+AE14+AE15+AE16+AE36+AE37+AE38+AE39+AE40","v":107},{"$f":"SQRT((AF12^2)+(AF13^2)+(AF14^2)+(AF15^2)+(AF16^2)+(AF36^2)+(AF37^2)+(AF38^2)+(AF39^2)+(AF40^2))","v":44.328320518603},{"$f":"AG12+AG13+AG14+AG15+AG16+AG36+AG37+AG38+AG39+AG40","v":251},{"$f":"SQRT((AH12^2)+(AH13^2)+(AH14^2)+(AH15^2)+(AH16^2)+(AH36^2)+(AH37^2)+(AH38^2)+(AH39^2)+(AH40^2))","v":137.13132391981054},{"$f":"AI12+AI13+AI14+AI15+AI16+AI36+AI37+AI38+AI39+AI40","v":238},{"$f":"SQRT((AJ12^2)+(AJ13^2)+(AJ14^2)+(AJ15^2)+(AJ16^2)+(AJ36^2)+(AJ37^2)+(AJ38^2)+(AJ39^2)+(AJ40^2))","v":81.908485518900903},{"$f":"AK12+AK13+AK14+AK15+AK16+AK36+AK37+AK38+AK39+AK40","v":420},{"$f":"SQRT((AL12^2)+(AL13^2)+(AL14^2)+(AL15^2)+(AL16^2)+(AL36^2)+(AL37^2)+(AL38^2)+(AL39^2)+(AL40^2))","v":197.790292987295},{"$f":"AM12+AM13+AM14+AM15+AM16+AM36+AM37+AM38+AM39+AM40","v":727},{"$f":"SQRT((AN12^2)+(AN13^2)+(AN14^2)+(AN15^2)+(AN16^2)+(AN36^2)+(AN37^2)+(AN38^2)+(AN39^2)+(AN40^2))","v":256.64372191814863}]
[null,"25 to 34 yrs.",{"$f":"C17+C18+C41+C42","v":91},{"$f":"SQRT((D17^2)+(D18^2)+(D41^2)+(D42^2))","v":35.860842154082214},{"$f":"E17+E18+E41+E42","v":152},{"$f":"SQRT((F17^2)+(F18^2)+(F41^2)+(F42^2))","v":109.95908329919816},{"$f":"G17+G18+G41+G42","v":40},{"$f":"SQRT((H17^2)+(H18^2)+(H41^2)+(H42^2))","v":21.189620100417091},{"$f":"I17+I18+I41+I42","v":42},{"$f":"SQRT((J17^2)+(J18^2)+(J41^2)+(J42^2))","v":18.384776310850235},{"$f":"K17+K18+K41+K42","v":1214},{"$f":"SQRT((L17^2)+(L18^2)+(L41^2)+(L42^2))","v":257.37521248169958},{"$f":"M17+M18+M41+M42","v":27},{"$f":"SQRT((N17^2)+(N18^2)+(N41^2)+(N42^2))","v":25.495097567963924},{"$f":"O17+O18+O41+O42","v":285},{"$f":"SQRT((P17^2)+(P18^2)+(P41^2)+(P42^2))","v":119.99166637729472},{"$f":"Q17+Q18+Q41+Q42","v":99},{"$f":"SQRT((R17^2)+(R18^2)+(R41^2)+(R42^2))","v":52.545218621678607},{"$f":"S17+S18+S41+S42","v":28},{"$f":"SQRT((T17^2)+(T18^2)+(T41^2)+(T42^2))","v":39},{"$f":"U17+U18+U41+U42","v":5},{"$f":"SQRT((V17^2)+(V18^2)+(V41^2)+(V42^2))","v":18.384776310850235},{"$f":"W17+W18+W41+W42","v":87},{"$f":"SQRT((X17^2)+(X18^2)+(X41^2)+(X42^2))","v":58.215118311311535},{"$f":"Y17+Y18+Y41+Y42","v":215},{"$f":"SQRT((Z17^2)+(Z18^2)+(Z41^2)+(Z42^2))","v":79.460682101275722},{"$f":"AA17+AA18+AA41+AA42","v":764},{"$f":"SQRT((AB17^2)+(AB18^2)+(AB41^2)+(AB42^2))","v":206.35891063872188},{"$f":"AC17+AC18+AC41+AC42","v":255},{"$f":"SQRT((AD17^2)+(AD18^2)+(AD41^2)+(AD42^2))","v":95.247047198325262},{"$f":"AE17+AE18+AE41+AE42","v":107},{"$f":"SQRT((AF17^2)+(AF18^2)+(AF41^2)+(AF42^2))","v":47.222875812470377},{"$f":"AG17+AG18+AG41+AG42","v":380},{"$f":"SQRT((AH17^2)+(AH18^2)+(AH41^2)+(AH42^2))","v":147.6042004822356},{"$f":"AI17+AI18+AI41+AI42","v":155},{"$f":"SQRT((AJ17^2)+(AJ18^2)+(AJ41^2)+(AJ42^2))","v":62.689712074629917},{"$f":"AK17+AK18+AK41+AK42","v":500},{"$f":"SQRT((AL17^2)+(AL18^2)+(AL41^2)+(AL42^2))","v":178.1488141975691},{"$f":"AM17+AM18+AM41+AM42","v":259},{"$f":"SQRT((AN17^2)+(AN18^2)+(AN41^2)+(AN42^2))","v":147.37028194313805}]
[null,"35 to 44 yrs.",{"$f":"C19+C20+C43+C44","v":80},{"$f":"SQRT((D19^2)+(D20^2)+(D43^2)+(D44^2))","v":59.506302187247357},{"$f":"E19+E20+E43+E44","v":202},{"$f":"SQRT((F19^2)+(F20^2)+(F43^2)+(F44^2))","v":131.90147838443661},{"$f":"G19+G20+G43+G44","v":34},{"$f":"SQRT((H19^2)+(H20^2)+(H43^2)+(H44^2))","v":15.524174696260024},{"$f":"I19+I20+I43+I44","v":46},{"$f":"SQRT((J19^2)+(J20^2)+(J43^2)+(J44^2))","v":17.86057109949175},{"$f":"K19+K20+K43+K44","v":1243},{"$f":"SQRT((L19^2)+(L20^2)+(L43^2)+(L44^2))","v":312.44519519429326},{"$f":"M19+M20+M43+M44","v":50},{"$f":"SQRT((N19^2)+(N20^2)+(N43^2)+(N44^2))","v":28.106938645110393},{"$f":"O19+O20+O43+O44","v":158},{"$f":"SQRT((P19^2)+(P20^2)+(P43^2)+(P44^2))","v":47.623523599162631},{"$f":"Q19+Q20+Q43+Q44","v":85},{"$f":"SQRT((R19^2)+(R20^2)+(R43^2)+(R44^2))","v":34.914180500192181},{"$f":"S19+S20+S43+S44","v":3},{"$f":"SQRT((T19^2)+(T20^2)+(T43^2)+(T44^2))","v":21.166010488516726},{"$f":"U19+U20+U43+U44","v":0},{"$f":"SQRT((V19^2)+(V20^2)+(V43^2)+(V44^2))","v":24},{"$f":"W19+W20+W43+W44","v":120},{"$f":"SQRT((X19^2)+(X20^2)+(X43^2)+(X44^2))","v":56.938563381947034},{"$f":"Y19+Y20+Y43+Y44","v":387},{"$f":"SQRT((Z19^2)+(Z20^2)+(Z43^2)+(Z44^2))","v":119.05880899790658},{"$f":"AA19+AA20+AA43+AA44","v":150},{"$f":"SQRT((AB19^2)+(AB20^2)+(AB43^2)+(AB44^2))","v":76.052613367326174},{"$f":"AC19+AC20+AC43+AC44","v":519},{"$f":"SQRT((AD19^2)+(AD20^2)+(AD43^2)+(AD44^2))","v":136.41847382227965},{"$f":"AE19+AE20+AE43+AE44","v":79},{"$f":"SQRT((AF19^2)+(AF20^2)+(AF43^2)+(AF44^2))","v":36.864617182333525},{"$f":"AG19+AG20+AG43+AG44","v":274},{"$f":"SQRT((AH19^2)+(AH20^2)+(AH43^2)+(AH44^2))","v":139.3628357920432},{"$f":"AI19+AI20+AI43+AI44","v":153},{"$f":"SQRT((AJ19^2)+(AJ20^2)+(AJ43^2)+(AJ44^2))","v":70.816664705420862},{"$f":"AK19+AK20+AK43+AK44","v":510},{"$f":"SQRT((AL19^2)+(AL20^2)+(AL43^2)+(AL44^2))","v":169.23947530053383},{"$f":"AM19+AM20+AM43+AM44","v":717},{"$f":"SQRT((AN19^2)+(AN20^2)+(AN43^2)+(AN44^2))","v":247.32771781585663}]
[null,"45 to 54 yrs.",{"$f":"C21+C22+C45+C46","v":96},{"$f":"SQRT((D21^2)+(D22^2)+(D45^2)+(D46^2))","v":39.306488014067092},{"$f":"E21+E22+E45+E46","v":537},{"$f":"SQRT((F21^2)+(F22^2)+(F45^2)+(F46^2))","v":201.13925524372411},{"$f":"G21+G22+G45+G46","v":111},{"$f":"SQRT((H21^2)+(H22^2)+(H45^2)+(H46^2))","v":37.509998667022103},{"$f":"I21+I22+I45+I46","v":50},{"$f":"SQRT((J21^2)+(J22^2)+(J45^2)+(J46^2))","v":22.737634001804146},{"$f":"K21+K22+K45+K46","v":824},{"$f":"SQRT((L21^2)+(L22^2)+(L45^2)+(L46^2))","v":205.29734533110749},{"$f":"M21+M22+M45+M46","v":28},{"$f":"SQRT((N21^2)+(N22^2)+(N45^2)+(N46^2))","v":18.055470085267789},{"$f":"O21+O22+O45+O46","v":301},{"$f":"SQRT((P21^2)+(P22^2)+(P45^2)+(P46^2))","v":97.37042672187485},{"$f":"Q21+Q22+Q45+Q46","v":128},{"$f":"SQRT((R21^2)+(R22^2)+(R45^2)+(R46^2))","v":61.846584384264908},{"$f":"S21+S22+S45+S46","v":19},{"$f":"SQRT((T21^2)+(T22^2)+(T45^2)+(T46^2))","v":27.495454169735041},{"$f":"U21+U22+U45+U46","v":7},{"$f":"SQRT((V21^2)+(V22^2)+(V45^2)+(V46^2))","v":23.515952032609693},{"$f":"W21+W22+W45+W46","v":168},{"$f":"SQRT((X21^2)+(X22^2)+(X45^2)+(X46^2))","v":68.971008402081523},{"$f":"Y21+Y22+Y45+Y46","v":302},{"$f":"SQRT((Z21^2)+(Z22^2)+(Z45^2)+(Z46^2))","v":85.152803829351384},{"$f":"AA21+AA22+AA45+AA46","v":603},{"$f":"SQRT((AB21^2)+(AB22^2)+(AB45^2)+(AB46^2))","v":167.37084572887835},{"$f":"AC21+AC22+AC45+AC46","v":606},{"$f":"SQRT((AD21^2)+(AD22^2)+(AD45^2)+(AD46^2))","v":188.83325978227458},{"$f":"AE21+AE22+AE45+AE46","v":238},{"$f":"SQRT((AF21^2)+(AF22^2)+(AF45^2)+(AF46^2))","v":71.533209071032175},{"$f":"AG21+AG22+AG45+AG46","v":297},{"$f":"SQRT((AH21^2)+(AH22^2)+(AH45^2)+(AH46^2))","v":180.36074961032958},{"$f":"AI21+AI22+AI45+AI46","v":392},{"$f":"SQRT((AJ21^2)+(AJ22^2)+(AJ45^2)+(AJ46^2))","v":118.16936997377958},{"$f":"AK21+AK22+AK45+AK46","v":682},{"$f":"SQRT((AL21^2)+(AL22^2)+(AL45^2)+(AL46^2))","v":208.54256160314134},{"$f":"AM21+AM22+AM45+AM46","v":681},{"$f":"SQRT((AN21^2)+(AN22^2)+(AN45^2)+(AN46^2))","v":223.95312009436262}]
[null,"55 to 64 yrs.",{"$f":"C23+C24+C25+C47+C48+C49","v":184},{"$f":"SQRT((D23^2)+(D24^2)+(D25^2)+(D47^2)+(D48^2)+(D49^2))","v":82.843225432137785},{"$f":"E23+E24+E25+E47+E48+E49","v":723},{"$f":"SQRT((F23^2)+(F24^2)+(F25^2)+(F47^2)+(F48^2)+(F49^2))","v":234.62097092971038},{"$f":"G23+G24+G25+G47+G48+G49","v":76},{"$f":"SQRT((H23^2)+(H24^2)+(H25^2)+(H47^2)+(H48^2)+(H49^2))","v":26.49528259898354},{"$f":"I23+I24+I25+I47+I48+I49","v":71},{"$f":"SQRT((J23^2)+(J24^2)+(J25^2)+(J47^2)+(J48^2)+(J49^2))","v":24.718414188616549},{"$f":"K23+K24+K25+K47+K48+K49","v":1437},{"$f":"SQRT((L23^2)+(L24^2)+(L25^2)+(L47^2)+(L48^2)+(L49^2))","v":313.3400708495484},{"$f":"M23+M24+M25+M47+M48+M49","v":60},{"$f":"SQRT((N23^2)+(N24^2)+(N25^2)+(N47^2)+(N48^2)+(N49^2))","v":24.124676163629637},{"$f":"O23+O24+O25+O47+O48+O49","v":204},{"$f":"SQRT((P23^2)+(P24^2)+(P25^2)+(P47^2)+(P48^2)+(P49^2))","v":46.389654018972806},{"$f":"Q23+Q24+Q25+Q47+Q48+Q49","v":260},{"$f":"SQRT((R23^2)+(R24^2)+(R25^2)+(R47^2)+(R48^2)+(R49^2))","v":53.207142377692115},{"$f":"S23+S24+S25+S47+S48+S49","v":35},{"$f":"SQRT((T23^2)+(T24^2)+(T25^2)+(T47^2)+(T48^2)+(T49^2))","v":20.83266665599966},{"$f":"U23+U24+U25+U47+U48+U49","v":16},{"$f":"SQRT((V23^2)+(V24^2)+(V25^2)+(V47^2)+(V48^2)+(V49^2))","v":28.178005607210743},{"$f":"W23+W24+W25+W47+W48+W49","v":283},{"$f":"SQRT((X23^2)+(X24^2)+(X25^2)+(X47^2)+(X48^2)+(X49^2))","v":109.21538353180837},{"$f":"Y23+Y24+Y25+Y47+Y48+Y49","v":462},{"$f":"SQRT((Z23^2)+(Z24^2)+(Z25^2)+(Z47^2)+(Z48^2)+(Z49^2))","v":104.61835403025609},{"$f":"AA23+AA24+AA25+AA47+AA48+AA49","v":1034},{"$f":"SQRT((AB23^2)+(AB24^2)+(AB25^2)+(AB47^2)+(AB48^2)+(AB49^2))","v":208.69834690289235},{"$f":"AC23+AC24+AC25+AC47+AC48+AC49","v":967},{"$f":"SQRT((AD23^2)+(AD24^2)+(AD25^2)+(AD47^2)+(AD48^2)+(AD49^2))","v":195.49680304291422},{"$f":"AE23+AE24+AE25+AE47+AE48+AE49","v":354},{"$f":"SQRT((AF23^2)+(AF24^2)+(AF25^2)+(AF47^2)+(AF48^2)+(AF49^2))","v":74.202425836356596},{"$f":"AG23+AG24+AG25+AG47+AG48+AG49","v":502},{"$f":"SQRT((AH23^2)+(AH24^2)+(AH25^2)+(AH47^2)+(AH48^2)+(AH49^2))","v":166.32197690022807},{"$f":"AI23+AI24+AI25+AI47+AI48+AI49","v":376},{"$f":"SQRT((AJ23^2)+(AJ24^2)+(AJ25^2)+(AJ47^2)+(AJ48^2)+(AJ49^2))","v":118.2455073142316},{"$f":"AK23+AK24+AK25+AK47+AK48+AK49","v":1193},{"$f":"SQRT((AL23^2)+(AL24^2)+(AL25^2)+(AL47^2)+(AL48^2)+(AL49^2))","v":362.37549586030235},{"$f":"AM23+AM24+AM25+AM47+AM48+AM49","v":1365},{"$f":"SQRT((AN23^2)+(AN24^2)+(AN25^2)+(AN47^2)+(AN48^2)+(AN49^2))","v":361.16339792398674}]
[null,"65 to 74 yrs.",{"$f":"C26+C27+C28+C50+C51+C52","v":85},{"$f":"SQRT((D26^2)+(D27^2)+(D28^2)+(D50^2)+(D51^2)+(D52^2))","v":34.058772731852805},{"$f":"E26+E27+E28+E50+E51+E52","v":1013},{"$f":"SQRT((F26^2)+(F27^2)+(F28^2)+(F50^2)+(F51^2)+(F52^2))","v":293.43312696421992},{"$f":"G26+G27+G28+G50+G51+G52","v":132},{"$f":"SQRT((H26^2)+(H27^2)+(H28^2)+(H50^2)+(H51^2)+(H52^2))","v":34.583232931581165},{"$f":"I26+I27+I28+I50+I51+I52","v":63},{"$f":"SQRT((J26^2)+(J27^2)+(J28^2)+(J50^2)+(J51^2)+(J52^2))","v":20.223748416156685},{"$f":"K26+K27+K28+K50+K51+K52","v":1810},{"$f":"SQRT((L26^2)+(L27^2)+(L28^2)+(L50^2)+(L51^2)+(L52^2))","v":380.83986135907571},{"$f":"M26+M27+M28+M50+M51+M52","v":105},{"$f":"SQRT((N26^2)+(N27^2)+(N28^2)+(N50^2)+(N51^2)+(N52^2))","v":30.854497241083024},{"$f":"O26+O27+O28+O50+O51+O52","v":273},{"$f":"SQRT((P26^2)+(P27^2)+(P28^2)+(P50^2)+(P51^2)+(P52^2))","v":65.848310532617319},{"$f":"Q26+Q27+Q28+Q50+Q51+Q52","v":319},{"$f":"SQRT((R26^2)+(R27^2)+(R28^2)+(R50^2)+(R51^2)+(R52^2))","v":55.632724182804495},{"$f":"S26+S27+S28+S50+S51+S52","v":50},{"$f":"SQRT((T26^2)+(T27^2)+(T28^2)+(T50^2)+(T51^2)+(T52^2))","v":18.303005217723125},{"$f":"U26+U27+U28+U50+U51+U52","v":23},{"$f":"SQRT((V26^2)+(V27^2)+(V28^2)+(V50^2)+(V51^2)+(V52^2))","v":32.649655434629018},{"$f":"W26+W27+W28+W50+W51+W52","v":165},{"$f":"SQRT((X26^2)+(X27^2)+(X28^2)+(X50^2)+(X51^2)+(X52^2))","v":53.730810528038752},{"$f":"Y26+Y27+Y28+Y50+Y51+Y52","v":306},{"$f":"SQRT((Z26^2)+(Z27^2)+(Z28^2)+(Z50^2)+(Z51^2)+(Z52^2))","v":76.302031427741156},{"$f":"AA26+AA27+AA28+AA50+AA51+AA52","v":926},{"$f":"SQRT((AB26^2)+(AB27^2)+(AB28^2)+(AB50^2)+(AB51^2)+(AB52^2))","v":209.43017929610812},{"$f":"AC26+AC27+AC28+AC50+AC51+AC52","v":826},{"$f":"SQRT((AD26^2)+(AD27^2)+(AD28^2)+(AD50^2)+(AD51^2)+(AD52^2))","v":207.46806983244434},{"$f":"AE26+AE27+AE28+AE50+AE51+AE52","v":552},{"$f":"SQRT((AF26^2)+(AF27^2)+(AF28^2)+(AF50^2)+(AF51^2)+(AF52^2))","v":160.03749560649842},{"$f":"AG26+AG27+AG28+AG50+AG51+AG52","v":324},{"$f":"SQRT((AH26^2)+(AH27^2)+(AH28^2)+(AH50^2)+(AH51^2)+(AH52^2))","v":126.34476641317598},{"$f":"AI26+AI27+AI28+AI50+AI51+AI52","v":522},{"$f":"SQRT((AJ26^2)+(AJ27^2)+(AJ28^2)+(AJ50^2)+(AJ51^2)+(AJ52^2))","v":117.80492349643117},{"$f":"AK26+AK27+AK28+AK50+AK51+AK52","v":651},{"$f":"SQRT((AL26^2)+(AL27^2)+(AL28^2)+(AL50^2)+(AL51^2)+(AL52^2))","v":210.87199908949503},{"$f":"AM26+AM27+AM28+AM50+AM51+AM52","v":999},{"$f":"SQRT((AN26^2)+(AN27^2)+(AN28^2)+(AN50^2)+(AN51^2)+(AN52^2))","v":238.01050396988785}]
[null,"Over 74 yrs. ",{"$f":"C29+C30+C31+C53+C54+C55","v":35},{"$f":"SQRT((D29^2)+(D30^2)+(D31^2)+(D53^2)+(D54^2)+(D55^2))","v":15.779733838059499},{"$f":"E29+E30+E31+E53+E54+E55","v":255},{"$f":"SQRT((F29^2)+(F30^2)+(F31^2)+(F53^2)+(F54^2)+(F55^2))","v":123.95967086113129},{"$f":"G29+G30+G31+G53+G54+G55","v":55},{"$f":"SQRT((H29^2)+(H30^2)+(H31^2)+(H53^2)+(H54^2)+(H55^2))","v":28.390139133156779},{"$f":"I29+I30+I31+I53+I54+I55","v":24},{"$f":"SQRT((J29^2)+(J30^2)+(J31^2)+(J53^2)+(J54^2)+(J55^2))","v":10.440306508910551},{"$f":"K29+K30+K31+K53+K54+K55","v":1164},{"$f":"SQRT((L29^2)+(L30^2)+(L31^2)+(L53^2)+(L54^2)+(L55^2))","v":257.07780923292466},{"$f":"M29+M30+M31+M53+M54+M55","v":42},{"$f":"SQRT((N29^2)+(N30^2)+(N31^2)+(N53^2)+(N54^2)+(N55^2))","v":15.329709716755891},{"$f":"O29+O30+O31+O53+O54+O55","v":37},{"$f":"SQRT((P29^2)+(P30^2)+(P31^2)+(P53^2)+(P54^2)+(P55^2))","v":21.023796041628639},{"$f":"Q29+Q30+Q31+Q53+Q54+Q55","v":165},{"$f":"SQRT((R29^2)+(R30^2)+(R31^2)+(R53^2)+(R54^2)+(R55^2))","v":51.913389409669641},{"$f":"S29+S30+S31+S53+S54+S55","v":59},{"$f":"SQRT((T29^2)+(T30^2)+(T31^2)+(T53^2)+(T54^2)+(T55^2))","v":22.113344387495982},{"$f":"U29+U30+U31+U53+U54+U55","v":2},{"$f":"SQRT((V29^2)+(V30^2)+(V31^2)+(V53^2)+(V54^2)+(V55^2))","v":24.269322199023193},{"$f":"W29+W30+W31+W53+W54+W55","v":112},{"$f":"SQRT((X29^2)+(X30^2)+(X31^2)+(X53^2)+(X54^2)+(X55^2))","v":46.840153714521477},{"$f":"Y29+Y30+Y31+Y53+Y54+Y55","v":204},{"$f":"SQRT((Z29^2)+(Z30^2)+(Z31^2)+(Z53^2)+(Z54^2)+(Z55^2))","v":78.294316524253531},{"$f":"AA29+AA30+AA31+AA53+AA54+AA55","v":555},{"$f":"SQRT((AB29^2)+(AB30^2)+(AB31^2)+(AB53^2)+(AB54^2)+(AB55^2))","v":138.05071531868279},{"$f":"AC29+AC30+AC31+AC53+AC54+AC55","v":357},{"$f":"SQRT((AD29^2)+(AD30^2)+(AD31^2)+(AD53^2)+(AD54^2)+(AD55^2))","v":127.64403628842203},{"$f":"AE29+AE30+AE31+AE53+AE54+AE55","v":239},{"$f":"SQRT((AF29^2)+(AF30^2)+(AF31^2)+(AF53^2)+(AF54^2)+(AF55^2))","v":86.469647854030256},{"$f":"AG29+AG30+AG31+AG53+AG54+AG55","v":250},{"$f":"SQRT((AH29^2)+(AH30^2)+(AH31^2)+(AH53^2)+(AH54^2)+(AH55^2))","v":107.53139076567363},{"$f":"AI29+AI30+AI31+AI53+AI54+AI55","v":424},{"$f":"SQRT((AJ29^2)+(AJ30^2)+(AJ31^2)+(AJ53^2)+(AJ54^2)+(AJ55^2))","v":176.19023809507723},{"$f":"AK29+AK30+AK31+AK53+AK54+AK55","v":460},{"$f":"SQRT((AL29^2)+(AL30^2)+(AL31^2)+(AL53^2)+(AL54^2)+(AL55^2))","v":147.91213608085039},{"$f":"AM29+AM30+AM31+AM53+AM54+AM55","v":1222},{"$f":"SQRT((AN29^2)+(AN30^2)+(AN31^2)+(AN53^2)+(AN54^2)+(AN55^2))","v":279.86067962470185}]
[]
[]
[]
[]
[]
[]
[]
[]
[]
[]
[]
[]
[]
[]
[]
[]
[]
[]
[]
[]
[]
[]
[]
[]
[]
[]
[]
[]
[]
[]
[]
[]
[]
[]
[]
[]
[]
[]
[]
[]
[]
[]
[]
[]
[]
[]
[]
[]
[]
[]
[]
[]
[]
[]
[]
[]
[]
[]
[]
[]
[]
[]
[]
[]
[]
[]
[]
[]
[]
[]
[]
[]
[]
[]
[]
[]
[null,"Calculated B01001. GENDER BY AGE"]
[null,"Universe:  TOTAL POPULATION"]
[null,"Data Set: 2013-2017 American Community Survey 5-Year Estimates"]
[]
[null,null,"Albany",null,"Bartlett",null,"Brookfield",null,"Chatham",null,"Conway",null,"Eaton",null,"Effingham",null,"Freedom",null,"Hale's Location",null,"Hart's Location",null,"Jackson",null,"Madison",null,"Moultonborough",null,"Ossipee",null,"Sandwich",null,"Tamworth",null,"Tuftonboro",null,"Wakefield",null,"Wolfeboro"]
[null," ","Estimate","Margin of Error","Estimate","Margin of Error","Estimate","Margin of Error","Estimate","Margin of Error","Estimate","Margin of Error","Estimate","Margin of Error","Estimate","Margin of Error","Estimate","Margin of Error","Estimate","Margin of Error","Estimate","Margin of Error","Estimate","Margin of Error","Estimate","Margin of Error","Estimate","Margin of Error","Estimate","Margin of Error","Estimate","Margin of Error","Estimate","Margin of Error","Estimate","Margin of Error","Estimate","Margin of Error","Estimate","Margin of Error"]
[null,"Total",782,141,2760,22,876,265,339,109,10021,19,321,68,1435,174,1314,175,159,48,52,31,957,220,2518,22,4049,20,4287,18,1342,199,2917,13,2153,183,5007,19,6235,19]
[null,"Under 15 yrs.",187,74.893257373411132,291,138.08692914247894,172,77.058419397233934,44,22.271057451320086,1737,290.09481208735878,24,19.974984355438178,249,62.481997407253232,123,42.130748865881792,0,26.944387170614959,0,26.944387170614959,99,54.626001134990652,385,104.86181383134664,426,135.26270735128733,462,154.9580588417395,181,66.241980646716783,429,184.82694608741443,209,71.63099887618489,615,183.81240436923727,585,197.08627552419779]
[null,"15 to 24 yrs.",52,35.114099732158877,502,171.95348208163742,88,46.238512086787566,41,32.12475680841802,1050,279.09138288381462,18,30.232432915661949,181,54.516052681756044,145,62.201286160335947,5,33.955853692699293,2,33.376638536557273,59,47.254629402842639,240,78.409183135650636,474,136.75159962501354,327,126.11899143269423,56,37.643060449437421,158,116.30993078838969,249,85.743804440904071,547,199.79989989987482,538,201.57628828808214]
[null,"25 to 34 yrs.",49,28.879058156387302,81,62.193247221864851,56,33.075670817082454,33,28.653097563788805,1175,209.6687864227768,21,17.832554500127006,116,46.893496350773418,61,28.407745422683583,0,22,0,22,78,46,148,61.627915752522412,340,118.78131166138888,428,148.73130134574902,114,46.292547996410825,205,119.15536076903967,155,64.892218331630488,540,189.58111720316452,451,184.40715821247286]
[null,"35 to 44 yrs.",113,34.351128074635334,326,129.0310040261642,135,57.991378669591917,18,11.224972160321824,1168,256.56772984925442,23,14.628738838327793,129,31.733263305244861,90,36.041642581880197,0,22,3,19.467922333931785,83,47.444704657105831,334,88.096537956948112,283,81.60882305241266,473,166.63132958720578,117,42.825226210727713,265,129.91920566259631,167,63.718129288295962,371,136.9927005354665,619,167.08081876744561]
[null,"45 to 54 yrs.",129,42.249260348555218,437,136.15432420602733,140,52.848841046895245,79,29.223278392404914,1461,248.48541204666321,48,21.725560982400431,231,50.219518117958877,215,59.548299723837623,5,16.340134638368191,19,17.606816861659009,70,37.416573867739416,418,95.299527805755673,664,143.62451044302989,542,168.61198059449987,139,44.24929377967517,539,171.40595088852663,267,71.707740167990238,800,196.23964940857391,765,214.82551058940834]
[null,"55 to 64 yrs.",128,31.968734726291562,496,148.55302083767936,131,39.648455203198019,58,18.384776310850235,1516,272.91756997305981,70,26.095976701399778,249,54.735728733616035,295,61.196405123176966,27,14.282856857085701,18,22.956480566497994,211,71.407282541768808,437,93.87757985802574,758,136.31947769852994,891,201.34795752626843,297,61.684682053164543,784,210.82457162294912,370,76.778903352418368,1107,257.59852484049674,973,232.37900077244501]
[null,"65 to 74 yrs.",59,20.371548787463361,425,149.37871334296597,126,36.345563690772494,36,16.763054614240211,1144,229.8608274587038,85,24.474476501040833,169,43.988634895845543,200,38.57460304397182,69,21.908902300206645,6,23,242,73.986485252375658,313,79.987499023284883,812,144.46798953401407,726,184.42884806884197,236,51.710733895391584,256,117.96185824239969,464,99.252204005754962,657,195.64764245960134,1232,233.4866163187946]
[null,"Over 74 yrs. ",65,24.454038521274967,202,109.34806811279292,28,24.698178070456937,30,18.894443627691185,770,151.12246689357607,32,13.820274961085254,111,37.443290453698111,185,52.182372502598994,53,16.673332000533065,4,22.405356502408079,115,49.446941260304463,243,84.439327330338202,292,95.289033996572769,438,123.95160345876934,202,52.763623833091678,281,152.36141243766414,272,79.435508432942001,370,155.74016822900893,1072,293.69882532962231]
[]
[]
[]
[]
[]
[]
[]
[]
[]
[]
[]
[]
[]
[]
[]
[]
[]
[]
[]
[]
[]
[]
[]
[]
[]
[]
[]
[]
[]
[]
[]
[]
[]
[]
[]
[]
[]
[]
[]
[]
[]
[]
[]
[]
[]
[]
[]
[]
[]
[]
[]
[]
[]
[]
[]
[]
[]
[]
[]
[]
[]
[]
[]
[]
[]
[]
[]
[]
[]
[]
[]
[]
[]
[]
[]
[]
[null,"Calculated B01001. GENDER BY AGE"]
[null,"Universe:  TOTAL POPULATION"]
[null,"Data Set: 2008-2012 American Community Survey 5-Year Estimates"]
[]
[null,null,"Albany",null,"Bartlett",null,"Brookfield",null,"Chatham",null,"Conway",null,"Eaton",null,"Effingham",null,"Freedom",null,"Hale's Location",null,"Hart's Location",null,"Jackson",null,"Madison",null,"Moultonborough",null,"Ossipee",null,"Sandwich",null,"Tamworth",null,"Tuftonboro",null,"Wakefield",null,"Wolfeboro"]
[null," ","Estimate","Margin of Error","Estimate","Margin of Error","Estimate","Margin of Error","Estimate","Margin of Error","Estimate","Margin of Error","Estimate","Margin of Error","Estimate","Margin of Error","Estimate","Margin of Error","Estimate","Margin of Error","Estimate","Margin of Error","Estimate","Margin of Error","Estimate","Margin of Error","Estimate","Margin of Error","Estimate","Margin of Error","Estimate","Margin of Error","Estimate","Margin of Error","Estimate","Margin of Error","Estimate","Margin of Error","Estimate","Margin of Error"]
[null,"Total",875,179,2793,17,681,160,446,148,10063,28,393,77,1344,202,1197,167,110,29,33,21,990,232,2496,24,4078,16,4341,24,1224,201,2854,18,2513,307,5044,19,6286,17]
[null,"Under 15 yrs.",94,50.626080235388557,428,166.85322891691368,123,50.388490749376487,117,50.457903246171455,1409,285.42774917656482,16,15.427248620541512,205,64.202803677098089,160,42.602816808281588,4,25.317977802344327,0,26.944387170614959,161,60.440052945046304,288,99.010100494848501,533,135.97058505426827,854,215.87727995321788,148,52.848841046895245,316,128.61181905252721,469,141.24446891825534,655,166.35504200354134,1105,230.95887079737813]
[null,"15 to 24 yrs.",150,60.802960454241045,164,96.876209669866839,78,43.954521951671822,21,24.718414188616549,1227,245.29573987332108,58,32.954514106568162,102,41.496987842492857,118,45.265881191025102,2,33.136083051561783,0,34.785054261852174,69,52.287665849605489,204,90.669730340395304,196,77.2916554357584,611,173.60875553957524,76,29.410882339705484,289,106.5269918846862,161,73.16419889536138,467,145.81495122243123,576,175.920436561532]
[null,"25 to 34 yrs.",36,28.774989139876318,228,114.02192771568107,60,36.041642581880197,71,43.749285708454714,1255,245.69493279268093,11,19.874606914351791,175,57.463031594234565,48,25.159491250818249,0,22,9,17.406895185529212,49,34.219877264537345,172,82.504545329333226,281,96.545326142698386,322,127.39701723352867,65,34.176014981270121,253,118.17360111293893,217,86.458082328952912,351,146.38647478507022,433,142.95104056983985]
[null,"35 to 44 yrs.",151,51.575187832910508,382,143.9930553880985,67,27.313000567495326,58,34.190641994557517,1181,252.09125331911062,22,12.727922061357855,173,78.224037226417821,93,35.156791662493895,1,19.467922333931785,5,20.663978319771825,99,39.761790704142086,398,111.27443551867607,402,104.74731500138799,549,150.12994371543607,124,45.967379738244816,311,100.23472452199387,259,80.486023631435543,795,225.16660498395404,449,151.22499793354271]
[null,"45 to 54 yrs.",206,61.652250567193406,472,152.73833834371774,85,28.26658805020514,58,35.128336140500593,1942,271.16600081868671,57,21.563858652847824,171,40.39801975344831,170,39.370039370059054,14,14.282856857085701,8,22.516660498395403,225,67.97793759742936,542,114.64292389851194,543,129.56851469396415,702,167.50522379914005,206,48.301138702933287,819,173.30897264711945,335,107.76363022838457,943,209.1387099510753,802,182.48013590525409]
[null,"55 to 64 yrs.",100,38.091993909481822,524,159.92498241363043,136,47.613023428469653,58,24.186773244895647,1359,282.62696262034166,143,33.090784215548595,242,58.84725991921799,219,49.979995998399197,19,9.8488578017961039,7,26.944387170614959,129,53.169540152233779,425,101.52339631828714,1153,203.75720846144316,659,152.53196386331621,264,52.239831546435909,419,131.23261789661899,525,121.92210628101861,768,209.76892048156228,1152,279.30091299528544]
[null,"65 to 74 yrs.",83,30.659419433511783,373,137.16778047340418,83,36.235341863986875,43,21.95449840010015,983,252.39255139563846,68,23.748684174075834,127,31.32091952673165,244,51.39066063011839,43,16.643316977093239,0,26.944387170614959,182,58.702640485756689,273,83.779472426125963,626,154.95160534825058,277,91.087869664407023,203,42.80186911806539,209,74.047282191853611,294,90.016665123742499,537,176.24982269494629,949,230.7834482799839]
[null,"Over 74 yrs. ",55,29.933259094191531,222,95.645177609746739,49,30.083217912982647,20,21.494185260204677,707,166.88618876348036,18,19.493588689617926,149,99.989999499949988,145,40.385641012617342,27,19.183326093250876,4,22.405356502408079,76,32.249030993194197,194,77.330459716724818,344,111.65124271587845,367,91.776903412568899,138,35.805027579936315,238,84.474848327771497,253,89.744080584738285,528,177.24841325100769,820,183.18296864064629]

{"sheet":"ACS_Table_B01002","index":25,"n_rows":49,"n_cols":40,"rows_kept":49,"cut":false,"hidden":true,"merged":[[64836,24,64836,25],[64836,26,64836,27],[64836,28,64836,29],[64836,30,64836,31],[64836,32,64836,33],[64836,34,64836,35],[64836,36,64836,37],[64836,38,64836,39],[64856,24,64856,25],[64856,26,64856,27],[64856,28,64856,29],[64856,30,64856,31],[64856,32,64856,33],[64856,34,64856,35],[64856,36,64856,37],[64856,38,64856,39],[64918,24,64918,25],[64918,26,64918,27],[64918,28,64918,29],[64918,30,64918,31],[64918,32,64918,33],[64918,34,64918,35],[64918,36,64918,37],[64918,38,64918,39],[64938,24,64938,25],[64938,26,64938,27],[64938,28,64938,29],[64938,30,64938,31],[64938,32,64938,33],[64938,34,64938,35],[64938,36,64938,37],[64938,38,64938,39],[64610,24,64610,25],[64610,26,64610,27],[64610,28,64610,29],[64610,30,64610,31],[64610,32,64610,33],[64610,34,64610,35],[64610,36,64610,37],[64610,38,64610,39],[64672,24,64672,25],[64672,26,64672,27],[64672,28,64672,29],[64672,30,64672,31],[64672,32,64672,33],[64672,34,64672,35],[64672,36,64672,37],[64672,38,64672,39],[64692,24,64692,25],[64692,26,64692,27],[64692,28,64692,29],[64692,30,64692,31],[64692,32,64692,33],[64692,34,64692,35],[64692,36,64692,37],[64692,38,64692,39],[64754,24,64754,25],[64754,26,64754,27],[64754,28,64754,29],[64754,30,64754,31],[64754,32,64754,33],[64754,34,64754,35],[64754,36,64754,37],[64754,38,64754,39],[64774,24,64774,25],[64774,26,64774,27],[64774,28,64774,29],[64774,30,64774,31],[64774,32,64774,33],[64774,34,64774,35],[64774,36,64774,37],[64774,38,64774,39],[64426,24,64426,25],[64426,26,64426,27],[64426,28,64426,29],[64426,30,64426,31],[64426,32,64426,33],[64426,34,64426,35],[64426,36,64426,37],[64426,38,64426,39],[64446,24,64446,25],[64446,26,64446,27],[64446,28,64446,29],[64446,30,64446,31],[64446,32,64446,33],[64446,34,64446,35],[64446,36,64446,37],[64446,38,64446,39],[64508,24,64508,25],[64508,26,64508,27],[64508,28,64508,29],[64508,30,64508,31],[64508,32,64508,33],[64508,34,64508,35],[64508,36,64508,37],[64508,38,64508,39],[64528,24,64528,25],[64528,26,64528,27],[64528,28,64528,29],[64528,30,64528,31],[64528,32,64528,33],[64528,34,64528,35],[64528,36,64528,37],[64528,38,64528,39],[64590,24,64590,25],[64590,26,64590,27],[64590,28,64590,29],[64590,30,64590,31],[64590,32,64590,33],[64590,34,64590,35],[64590,36,64590,37],[64590,38,64590,39],[64200,24,64200,25],[64200,26,64200,27],[64200,28,64200,29],[64200,30,64200,31],[64200,32,64200,33],[64200,34,64200,35],[64200,36,64200,37],[64200,38,64200,39],[64262,24,64262,25],[64262,26,64262,27],[64262,28,64262,29],[64262,30,64262,31],[64262,32,64262,33],[64262,34,64262,35],[64262,36,64262,37],[64262,38,64262,39],[64282,24,64282,25],[64282,26,64282,27],[64282,28,64282,29],[64282,30,64282,31],[64282,32,64282,33],[64282,34,64282,35],[64282,36,64282,37],[64282,38,64282,39],[64344,24,64344,25],[64344,26,64344,27],[64344,28,64344,29],[64344,30,64344,31],[64344,32,64344,33],[64344,34,64344,35],[64344,36,64344,37],[64344,38,64344,39],[64364,24,64364,25],[64364,26,64364,27],[64364,28,64364,29],[64364,30,64364,31],[64364,32,64364,33],[64364,34,64364,35],[64364,36,64364,37],[64364,38,64364,39],[64016,24,64016,25],[64016,26,64016,27],[64016,28,64016,29],[64016,30,64016,31],[64016,32,64016,33],[64016,34,64016,35],[64016,36,64016,37],[64016,38,64016,39],[64036,24,64036,25],[64036,26,64036,27],[64036,28,64036,29],[64036,30,64036,31],[64036,32,64036,33],[64036,34,64036,35],[64036,36,64036,37],[64036,38,64036,39],[64098,24,64098,25],[64098,26,64098,27],[64098,28,64098,29],[64098,30,64098,31],[64098,32,64098,33],[64098,34,64098,35],[64098,36,64098,37],[64098,38,64098,39],[64118,24,64118,25],[64118,26,64118,27],[64118,28,64118,29],[64118,30,64118,31],[64118,32,64118,33],[64118,34,64118,35],[64118,36,64118,37],[64118,38,64118,39],[64180,24,64180,25],[64180,26,64180,27],[64180,28,64180,29],[64180,30,64180,31],[64180,32,64180,33],[64180,34,64180,35],[64180,36,64180,37],[64180,38,64180,39],[63790,24,63790,25],[63790,26,63790,27],[63790,28,63790,29],[63790,30,63790,31],[63790,32,63790,33],[63790,34,63790,35],[63790,36,63790,37],[63790,38,63790,39],[63852,24,63852,25],[63852,26,63852,27],[63852,28,63852,29],[63852,30,63852,31],[63852,32,63852,33],[63852,34,63852,35],[63852,36,63852,37],[63852,38,63852,39],[63872,24,63872,25],[63872,26,63872,27],[63872,28,63872,29],[63872,30,63872,31],[63872,32,63872,33],[63872,34,63872,35],[63872,36,63872,37],[63872,38,63872,39],[63934,24,63934,25],[63934,26,63934,27],[63934,28,63934,29],[63934,30,63934,31],[63934,32,63934,33],[63934,34,63934,35],[63934,36,63934,37],[63934,38,63934,39],[63954,24,63954,25],[63954,26,63954,27],[63954,28,63954,29],[63954,30,63954,31],[63954,32,63954,33],[63954,34,63954,35],[63954,36,63954,37],[63954,38,63954,39],[63606,24,63606,25],[63606,26,63606,27],[63606,28,63606,29],[63606,30,63606,31],[63606,32,63606,33],[63606,34,63606,35],[63606,36,63606,37],[63606,38,63606,39],[63626,24,63626,25],[63626,26,63626,27],[63626,28,63626,29],[63626,30,63626,31],[63626,32,63626,33],[63626,34,63626,35],[63626,36,63626,37],[63626,38,63626,39],[63688,24,63688,25],[63688,26,63688,27],[63688,28,63688,29],[63688,30,63688,31],[63688,32,63688,33],[63688,34,63688,35],[63688,36,63688,37],[63688,38,63688,39],[63708,24,63708,25],[63708,26,63708,27],[63708,28,63708,29],[63708,30,63708,31],[63708,32,63708,33],[63708,34,63708,35],[63708,36,63708,37],[63708,38,63708,39],[63770,24,63770,25],[63770,26,63770,27],[63770,28,63770,29],[63770,30,63770,31],[63770,32,63770,33],[63770,34,63770,35],[63770,36,63770,37],[63770,38,63770,39],[63380,24,63380,25],[63380,26,63380,27],[63380,28,63380,29],[63380,30,63380,31],[63380,32,63380,33],[63380,34,63380,35],[63380,36,63380,37],[63380,38,63380,39],[63442,24,63442,25],[63442,26,63442,27],[63442,28,63442,29],[63442,30,63442,31],[63442,32,63442,33],[63442,34,63442,35],[63442,36,63442,37],[63442,38,63442,39],[63462,24,63462,25],[63462,26,63462,27],[63462,28,63462,29],[63462,30,63462,31],[63462,32,63462,33],[63462,34,63462,35],[63462,36,63462,37],[63462,38,63462,39],[63524,24,63524,25],[63524,26,63524,27],[63524,28,63524,29],[63524,30,63524,31],[63524,32,63524,33],[63524,34,63524,35],[63524,36,63524,37],[63524,38,63524,39],[63544,24,63544,25],[63544,26,63544,27],[63544,28,63544,29],[63544,30,63544,31],[63544,32,63544,33],[63544,34,63544,35],[63544,36,63544,37],[63544,38,63544,39],[63196,24,63196,25],[63196,26,63196,27],[63196,28,63196,29],[63196,30,63196,31],[63196,32,63196,33],[63196,34,63196,35],[63196,36,63196,37],[63196,38,63196,39],[63216,24,63216,25],[63216,26,63216,27],[63216,28,63216,29],[63216,30,63216,31],[63216,32,63216,33],[63216,34,63216,35],[63216,36,63216,37],[63216,38,63216,39],[63278,24,63278,25],[63278,26,63278,27],[63278,28,63278,29],[63278,30,63278,31],[63278,32,63278,33],[63278,34,63278,35],[63278,36,63278,37],[63278,38,63278,39],[63298,24,63298,25],[63298,26,63298,27],[63298,28,63298,29],[63298,30,63298,31],[63298,32,63298,33],[63298,34,63298,35],[63298,36,63298,37],[63298,38,63298,39],[63360,24,63360,25],[63360,26,63360,27],[63360,28,63360,29],[63360,30,63360,31],[63360,32,63360,33],[63360,34,63360,35],[63360,36,63360,37],[63360,38,63360,39],[62970,24,62970,25],[62970,26,62970,27],[62970,28,62970,29],[62970,30,62970,31],[62970,32,62970,33],[62970,34,62970,35],[62970,36,62970,37],[62970,38,62970,39],[63032,24,63032,25],[63032,26,63032,27],[63032,28,63032,29],[63032,30,63032,31],[63032,32,63032,33],[63032,34,63032,35],[63032,36,63032,37],[63032,38,63032,39],[63052,24,63052,25],[63052,26,63052,27],[63052,28,63052,29],[63052,30,63052,31],[63052,32,63052,33],[63052,34,63052,35],[63052,36,63052,37],[63052,38,63052,39],[63114,24,63114,25],[63114,26,63114,27],[63114,28,63114,29],[63114,30,63114,31],[63114,32,63114,33],[63114,34,63114,35],[63114,36,63114,37],[63114,38,63114,39],[63134,24,63134,25],[63134,26,63134,27],[63134,28,63134,29],[63134,30,63134,31],[63134,32,63134,33],[63134,34,63134,35],[63134,36,63134,37],[63134,38,63134,39],[62786,24,62786,25],[62786,26,62786,27],[62786,28,62786,29],[62786,30,62786,31],[62786,32,62786,33],[62786,34,62786,35],[62786,36,62786,37],[62786,38,62786,39],[62806,24,62806,25],[62806,26,62806,27],[62806,28,62806,29],[62806,30,62806,31],[62806,32,62806,33],[62806,34,62806,35],[62806,36,62806,37],[62806,38,62806,39],[62868,24,62868,25],[62868,26,62868,27],[62868,28,62868,29],[62868,30,62868,31],[62868,32,62868,33],[62868,34,62868,35],[62868,36,62868,37],[62868,38,62868,39],[62888,24,62888,25],[62888,26,62888,27],[62888,28,62888,29],[62888,30,62888,31],[62888,32,62888,33],[62888,34,62888,35],[62888,36,62888,37],[62888,38,62888,39],[62950,24,62950,25],[62950,26,62950,27],[62950,28,62950,29],[62950,30,62950,31],[62950,32,62950,33],[62950,34,62950,35],[62950,36,62950,37],[62950,38,62950,39],[62560,24,62560,25],[62560,26,62560,27],[62560,28,62560,29],[62560,30,62560,31],[62560,32,62560,33],[62560,34,62560,35],[62560,36,62560,37],[62560,38,62560,39],[62622,24,62622,25],[62622,26,62622,27],[62622,28,62622,29],[62622,30,62622,31],[62622,32,62622,33],[62622,34,62622,35],[62622,36,62622,37],[62622,38,62622,39],[62642,24,62642,25],[62642,26,62642,27],[62642,28,62642,29],[62642,30,62642,31],[62642,32,62642,33],[62642,34,62642,35],[62642,36,62642,37],[62642,38,62642,39],[62704,24,62704,25],[62704,26,62704,27],[62704,28,62704,29],[62704,30,62704,31],[62704,32,62704,33],[62704,34,62704,35],[62704,36,62704,37],[62704,38,62704,39],[62724,24,62724,25],[62724,26,62724,27],[62724,28,62724,29],[62724,30,62724,31],[62724,32,62724,33],[62724,34,62724,35],[62724,36,62724,37],[62724,38,62724,39],[62376,24,62376,25],[62376,26,62376,27],[62376,28,62376,29],[62376,30,62376,31],[62376,32,62376,33],[62376,34,62376,35],[62376,36,62376,37],[62376,38,62376,39],[62396,24,62396,25],[62396,26,62396,27],[62396,28,62396,29],[62396,30,62396,31],[62396,32,62396,33],[62396,34,62396,35],[62396,36,62396,37],[62396,38,62396,39],[62458,24,62458,25],[62458,26,62458,27],[62458,28,62458,29],[62458,30,62458,31],[62458,32,62458,33],[62458,34,62458,35],[62458,36,62458,37],[62458,38,62458,39],[62478,24,62478,25],[62478,26,62478,27],[62478,28,62478,29],[62478,30,62478,31],[62478,32,62478,33],[62478,34,62478,35],[62478,36,62478,37],[62478,38,62478,39],[62540,24,62540,25],[62540,26,62540,27],[62540,28,62540,29],[62540,30,62540,31],[62540,32,62540,33],[62540,34,62540,35],[62540,36,62540,37],[62540,38,62540,39],[62150,24,62150,25],[62150,26,62150,27],[62150,28,62150,29],[62150,30,62150,31],[62150,32,62150,33],[62150,34,62150,35],[62150,36,62150,37],[62150,38,62150,39],[62212,24,62212,25],[62212,26,62212,27],[62212,28,62212,29],[62212,30,62212,31],[62212,32,62212,33],[62212,34,62212,35],[62212,36,62212,37],[62212,38,62212,39],[62232,24,62232,25],[62232,26,62232,27],[62232,28,62232,29],[62232,30,62232,31],[62232,32,62232,33],[62232,34,62232,35],[62232,36,62232,37],[62232,38,62232,39],[62294,24,62294,25],[62294,26,62294,27],[62294,28,62294,29],[62294,30,62294,31],[62294,32,62294,33],[62294,34,62294,35],[62294,36,62294,37],[62294,38,62294,39],[62314,24,62314,25],[62314,26,62314,27],[62314,28,62314,29],[62314,30,62314,31],[62314,32,62314,33],[62314,34,62314,35],[62314,36,62314,37],[62314,38,62314,39],[61966,24,61966,25],[61966,26,61966,27],[61966,28,61966,29],[61966,30,61966,31],[61966,32,61966,33],[61966,34,61966,35],[61966,36,61966,37],[61966,38,61966,39],[61986,24,61986,25],[61986,26,61986,27],[61986,28,61986,29],[61986,30,61986,31],[61986,32,61986,33],[61986,34,61986,35],[61986,36,61986,37],[61986,38,61986,39],[62048,24,62048,25],[62048,26,62048,27],[62048,28,62048,29],[62048,30,62048,31],[62048,32,62048,33],[62048,34,62048,35],[62048,36,62048,37],[62048,38,62048,39],[62068,24,62068,25],[62068,26,62068,27],[62068,28,62068,29],[62068,30,62068,31],[62068,32,62068,33],[62068,34,62068,35],[62068,36,62068,37],[62068,38,62068,39],[62130,24,62130,25],[62130,26,62130,27],[62130,28,62130,29],[62130,30,62130,31],[62130,32,62130,33],[62130,34,62130,35],[62130,36,62130,37],[62130,38,62130,39],[61740,24,61740,25],[61740,26,61740,27],[61740,28,61740,29],[61740,30,61740,31],[61740,32,61740,33],[61740,34,61740,35],[61740,36,61740,37],[61740,38,61740,39],[61802,24,61802,25],[61802,26,61802,27],[61802,28,61802,29],[61802,30,61802,31],[61802,32,61802,33],[61802,34,61802,35],[61802,36,61802,37],[61802,38,61802,39],[61822,24,61822,25],[61822,26,61822,27],[61822,28,61822,29],[61822,30,61822,31],[61822,32,61822,33],[61822,34,61822,35],[61822,36,61822,37],[61822,38,61822,39],[61884,24,61884,25],[61884,26,61884,27],[61884,28,61884,29],[61884,30,61884,31],[61884,32,61884,33],[61884,34,61884,35],[61884,36,61884,37],[61884,38,61884,39],[61904,24,61904,25],[61904,26,61904,27],[61904,28,61904,29],[61904,30,61904,31],[61904,32,61904,33],[61904,34,61904,35],[61904,36,61904,37],[61904,38,61904,39],[61556,24,61556,25],[61556,26,61556,27],[61556,28,61556,29],[61556,30,61556,31],[61556,32,61556,33],[61556,34,61556,35],[61556,36,61556,37],[61556,38,61556,39],[61576,24,61576,25],[61576,26,61576,27],[61576,28,61576,29],[61576,30,61576,31],[61576,32,61576,33],[61576,34,61576,35],[61576,36,61576,37],[61576,38,61576,39],[61638,24,61638,25],[61638,26,61638,27],[61638,28,61638,29],[61638,30,61638,31],[61638,32,61638,33],[61638,34,61638,35],[61638,36,61638,37],[61638,38,61638,39],[61658,24,61658,25],[61658,26,61658,27],[61658,28,61658,29],[61658,30,61658,31],[61658,32,61658,33],[61658,34,61658,35],[61658,36,61658,37],[61658,38,61658,39],[61720,24,61720,25],[61720,26,61720,27],[61720,28,61720,29],[61720,30,61720,31],[61720,32,61720,33],[61720,34,61720,35],[61720,36,61720,37],[61720,38,61720,39],[61330,24,61330,25],[61330,26,61330,27],[61330,28,61330,29],[61330,30,61330,31],[61330,32,61330,33],[61330,34,61330,35],[61330,36,61330,37],[61330,38,61330,39],[61392,24,61392,25],[61392,26,61392,27],[61392,28,61392,29],[61392,30,61392,31],[61392,32,61392,33],[61392,34,61392,35],[61392,36,61392,37],[61392,38,61392,39],[61412,24,61412,25],[61412,26,61412,27],[61412,28,61412,29],[61412,30,61412,31],[61412,32,61412,33],[61412,34,61412,35],[61412,36,61412,37],[61412,38,61412,39],[61474,24,61474,25],[61474,26,61474,27],[61474,28,61474,29],[61474,30,61474,31],[61474,32,61474,33],[61474,34,61474,35],[61474,36,61474,37],[61474,38,61474,39],[61494,24,61494,25],[61494,26,61494,27],[61494,28,61494,29],[61494,30,61494,31],[61494,32,61494,33],[61494,34,61494,35],[61494,36,61494,37],[61494,38,61494,39],[61146,24,61146,25],[61146,26,61146,27],[61146,28,61146,29],[61146,30,61146,31],[61146,32,61146,33],[61146,34,61146,35],[61146,36,61146,37],[61146,38,61146,39],[61166,24,61166,25],[61166,26,61166,27],[61166,28,61166,29],[61166,30,61166,31],[61166,32,61166,33],[61166,34,61166,35],[61166,36,61166,37],[61166,38,61166,39],[61228,24,61228,25],[61228,26,61228,27],[61228,28,61228,29],[61228,30,61228,31],[61228,32,61228,33],[61228,34,61228,35],[61228,36,61228,37],[61228,38,61228,39],[61248,24,61248,25],[61248,26,61248,27],[61248,28,61248,29],[61248,30,61248,31],[61248,32,61248,33],[61248,34,61248,35],[61248,36,61248,37],[61248,38,61248,39],[61310,24,61310,25],[61310,26,61310,27],[61310,28,61310,29],[61310,30,61310,31],[61310,32,61310,33],[61310,34,61310,35],[61310,36,61310,37],[61310,38,61310,39],[60920,24,60920,25],[60920,26,60920,27],[60920,28,60920,29],[60920,30,60920,31],[60920,32,60920,33],[60920,34,60920,35],[60920,36,60920,37],[60920,38,60920,39],[60982,24,60982,25],[60982,26,60982,27],[60982,28,60982,29],[60982,30,60982,31],[60982,32,60982,33],[60982,34,60982,35],[60982,36,60982,37],[60982,38,60982,39],[61002,24,61002,25],[61002,26,61002,27],[61002,28,61002,29],[61002,30,61002,31],[61002,32,61002,33],[61002,34,61002,35],[61002,36,61002,37],[61002,38,61002,39],[61064,24,61064,25],[61064,26,61064,27],[61064,28,61064,29],[61064,30,61064,31],[61064,32,61064,33],[61064,34,61064,35],[61064,36,61064,37],[61064,38,61064,39],[61084,24,61084,25],[61084,26,61084,27],[61084,28,61084,29],[61084,30,61084,31],[61084,32,61084,33],[61084,34,61084,35],[61084,36,61084,37],[61084,38,61084,39],[60736,24,60736,25],[60736,26,60736,27],[60736,28,60736,29],[60736,30,60736,31],[60736,32,60736,33],[60736,34,60736,35],[60736,36,60736,37],[60736,38,60736,39],[60756,24,60756,25],[60756,26,60756,27],[60756,28,60756,29],[60756,30,60756,31],[60756,32,60756,33],[60756,34,60756,35],[60756,36,60756,37],[60756,38,60756,39],[60818,24,60818,25],[60818,26,60818,27],[60818,28,60818,29],[60818,30,60818,31],[60818,32,60818,33],[60818,34,60818,35],[60818,36,60818,37],[60818,38,60818,39],[60838,24,60838,25],[60838,26,60838,27],[60838,28,60838,29],[60838,30,60838,31],[60838,32,60838,33],[60838,34,60838,35],[60838,36,60838,37],[60838,38,60838,39],[60900,24,60900,25],[60900,26,60900,27],[60900,28,60900,29],[60900,30,60900,31],[60900,32,60900,33],[60900,34,60900,35],[60900,36,60900,37],[60900,38,60900,39],[60510,24,60510,25],[60510,26,60510,27],[60510,28,60510,29],[60510,30,60510,31],[60510,32,60510,33],[60510,34,60510,35],[60510,36,60510,37],[60510,38,60510,39],[60572,24,60572,25],[60572,26,60572,27],[60572,28,60572,29],[60572,30,60572,31],[60572,32,60572,33],[60572,34,60572,35],[60572,36,60572,37],[60572,38,60572,39],[60592,24,60592,25],[60592,26,60592,27],[60592,28,60592,29],[60592,30,60592,31],[60592,32,60592,33],[60592,34,60592,35],[60592,36,60592,37],[60592,38,60592,39],[60654,24,60654,25],[60654,26,60654,27],[60654,28,60654,29],[60654,30,60654,31],[60654,32,60654,33],[60654,34,60654,35],[60654,36,60654,37],[60654,38,60654,39],[60674,24,60674,25],[60674,26,60674,27],[60674,28,60674,29],[60674,30,60674,31],[60674,32,60674,33],[60674,34,60674,35],[60674,36,60674,37],[60674,38,60674,39],[60326,24,60326,25],[60326,26,60326,27],[60326,28,60326,29],[60326,30,60326,31],[60326,32,60326,33],[60326,34,60326,35],[60326,36,60326,37],[60326,38,60326,39],[60346,24,60346,25],[60346,26,60346,27],[60346,28,60346,29],[60346,30,60346,31],[60346,32,60346,33],[60346,34,60346,35],[60346,36,60346,37],[60346,38,60346,39],[60408,24,60408,25],[60408,26,60408,27],[60408,28,60408,29],[60408,30,60408,31],[60408,32,60408,33],[60408,34,60408,35],[60408,36,60408,37],[60408,38,60408,39],[60428,24,60428,25],[60428,26,60428,27],[60428,28,60428,29],[60428,30,60428,31],[60428,32,60428,33],[60428,34,60428,35],[60428,36,60428,37],[60428,38,60428,39],[60490,24,60490,25],[60490,26,60490,27],[60490,28,60490,29],[60490,30,60490,31],[60490,32,60490,33],[60490,34,60490,35],[60490,36,60490,37],[60490,38,60490,39],[60100,24,60100,25],[60100,26,60100,27],[60100,28,60100,29],[60100,30,60100,31],[60100,32,60100,33],[60100,34,60100,35],[60100,36,60100,37],[60100,38,60100,39],[60162,24,60162,25],[60162,26,60162,27],[60162,28,60162,29],[60162,30,60162,31],[60162,32,60162,33],[60162,34,60162,35],[60162,36,60162,37],[60162,38,60162,39],[60182,24,60182,25],[60182,26,60182,27],[60182,28,60182,29],[60182,30,60182,31],[60182,32,60182,33],[60182,34,60182,35],[60182,36,60182,37],[60182,38,60182,39],[60244,24,60244,25],[60244,26,60244,27],[60244,28,60244,29],[60244,30,60244,31],[60244,32,60244,33],[60244,34,60244,35],[60244,36,60244,37],[60244,38,60244,39],[60264,24,60264,25],[60264,26,60264,27],[60264,28,60264,29],[60264,30,60264,31],[60264,32,60264,33],[60264,34,60264,35],[60264,36,60264,37],[60264,38,60264,39],[59916,24,59916,25],[59916,26,59916,27],[59916,28,59916,29],[59916,30,59916,31],[59916,32,59916,33],[59916,34,59916,35],[59916,36,59916,37],[59916,38,59916,39],[59936,24,59936,25],[59936,26,59936,27],[59936,28,59936,29],[59936,30,59936,31],[59936,32,59936,33],[59936,34,59936,35],[59936,36,59936,37],[59936,38,59936,39],[59998,24,59998,25],[59998,26,59998,27],[59998,28,59998,29],[59998,30,59998,31],[59998,32,59998,33],[59998,34,59998,35],[59998,36,59998,37],[59998,38,59998,39],[60018,24,60018,25],[60018,26,60018,27],[60018,28,60018,29],[60018,30,60018,31],[60018,32,60018,33],[60018,34,60018,35],[60018,36,60018,37],[60018,38,60018,39],[60080,24,60080,25],[60080,26,60080,27],[60080,28,60080,29],[60080,30,60080,31],[60080,32,60080,33],[60080,34,60080,35],[60080,36,60080,37],[60080,38,60080,39],[59690,24,59690,25],[59690,26,59690,27],[59690,28,59690,29],[59690,30,59690,31],[59690,32,59690,33],[59690,34,59690,35],[59690,36,59690,37],[59690,38,59690,39]],"merged_total":30096,"flags":["merged_cut"]}
[null,"B01001. GENDER BY AGE"]
[null,"Universe:  TOTAL POPULATION, Median Age"]
[null,"Data Set: 2018-2022 American Community Survey 5-Year Estimates"]
[]
[null,null,"Albany",null,"Bartlett",null,"Brookfield",null,"Chatham",null,"Conway",null,"Eaton",null,"Effingham",null,"Freedom",null,"Hale's Location",null,"Hart's Location",null,"Jackson",null,"Madison",null,"Moultonborough",null,"Ossipee",null,"Sandwich",null,"Tamworth",null,"Tuftonboro",null,"Wakefield",null,"Wolfeboro"]
[null," ","Estimate","Margin of Error","Estimate","Margin of Error","Estimate","Margin of Error","Estimate","Margin of Error","Estimate","Margin of Error","Estimate","Margin of Error","Estimate","Margin of Error","Estimate","Margin of Error","Estimate","Margin of Error","Estimate","Margin of Error","Estimate","Margin of Error","Estimate","Margin of Error","Estimate","Margin of Error","Estimate","Margin of Error","Estimate","Margin of Error","Estimate","Margin of Error","Estimate","Margin of Error","Estimate","Margin of Error","Estimate","Margin of Error"]
[null,"Total:",50.1,8.9,58.6,4.5,54,7.1,44.4,9.8000000000000007,48.3,5.5,59.9,5.5,39.299999999999997,6.8,58.8,5.3,65.8,5.6,64.8,10.7,53.9,6.4,43.8,10.8,55.5,2.8,54.5,2.8,62.3,3.5,42.9,13.5,57.4,6.8,50.9,6.1,56.6,1.6]
[null,"Male:",53.8,8.6999999999999993,59.1,5.0999999999999996,50,4,42.8,13.4,42.8,5.2,60.5,12.2,41.6,12.2,60.1,4,65.400000000000006,7.2,69.099999999999994,9.3000000000000007,59.9,6.7,40.799999999999997,11.9,56.5,2.8,51.9,4.9000000000000004,65.599999999999994,4.5999999999999996,37.5,16.8,59.4,9.5,52,6.4,55.9,2.4]
[null,"Female:",47.6,14.9,58.5,5.6,59.4,8.1999999999999993,46.2,10.8,53.8,8.1,59.7,4.9000000000000004,36.5,7.7,57.4,8.1,67.8,7.4,53.4,12.7,49.5,15.2,50,11.6,53.9,3,56.3,4.0999999999999996,59.6,3.6,43.8,14.9,56.4,5.4,49.6,7.6,58,3.3]
[]
[]
[]
[]
[]
[]
[]
[]
[]
[]
[]
[null,"B01001. GENDER BY AGE"]
[null,"Universe:  TOTAL POPULATION, Median Age"]
[null,"Data Set: 2013-2017 American Community Survey 5-Year Estimates"]
[]
[null,null,"Albany",null,"Bartlett",null,"Brookfield",null,"Chatham",null,"Conway",null,"Eaton",null,"Effingham",null,"Freedom",null,"Hale's Location",null,"Hart's Location",null,"Jackson",null,"Madison",null,"Moultonborough",null,"Ossipee",null,"Sandwich",null,"Tamworth",null,"Tuftonboro",null,"Wakefield",null,"Wolfeboro"]
[null," ","Estimate","Margin of Error","Estimate","Margin of Error","Estimate","Margin of Error","Estimate","Margin of Error","Estimate","Margin of Error","Estimate","Margin of Error","Estimate","Margin of Error","Estimate","Margin of Error","Estimate","Margin of Error","Estimate","Margin of Error","Estimate","Margin of Error","Estimate","Margin of Error","Estimate","Margin of Error","Estimate","Margin of Error","Estimate","Margin of Error","Estimate","Margin of Error","Estimate","Margin of Error","Estimate","Margin of Error","Estimate","Margin of Error"]
[null,"Total:",43.5,6.1,50.1,4.8,44.6,3.3,49.7,4.3,44.1,4.3,58.9,4.4000000000000004,47.3,4.7,55.7,3.1,71.599999999999994,2.5,56.3,5.5,60,4.5999999999999996,49.8,2.9,52.9,3.5,53.9,5.5,57.7,3.9,53.3,4,55.8,5.5,53.2,3.6,57.2,4.2]
[null,"Male:",41.3,9.4,51.9,6.3,44,2.9,49.6,7.4,43.7,5.4,62.3,8.1999999999999993,46.7,4.7,55.9,4.3,72.3,2.7,55.5,4.5999999999999996,61.9,3.1,49.2,3.5,52.4,5.3,49.8,7.5,57.8,4.5999999999999996,51.8,4.2,55.9,6,49.6,7.8,52.7,5.9]
[null,"Female:",45.5,5.0999999999999996,49.2,9.1999999999999993,46,3.6,50,4.5,44.2,4.5999999999999996,58.3,4.3,47.6,6,55.4,4.5,71.099999999999994,2.8,58.3,11.4,55.7,8.3000000000000007,50.5,3.8,53.2,2.8,55.1,4.0999999999999996,57.6,4.3,54.1,3.5,55.7,6.5,54.6,2.9,60.4,4.8]
[]
[]
[]
[]
[]
[]
[]
[]
[]
[]
[]
[null,"B01001. GENDER BY AGE"]
[null,"Universe:  TOTAL POPULATION, Median Age"]
[null,"Data Set: 2008-2012 American Community Survey 5-Year Estimates"]
[]
[null,null,"Albany",null,"Bartlett",null,"Brookfield",null,"Chatham",null,"Conway",null,"Eaton",null,"Effingham",null,"Freedom",null,"Hale's Location",null,"Hart's Location",null,"Jackson",null,"Madison",null,"Moultonborough",null,"Ossipee",null,"Sandwich",null,"Tamworth",null,"Tuftonboro",null,"Wakefield",null,"Wolfeboro"]
[null," ","Estimate","Margin of Error","Estimate","Margin of Error","Estimate","Margin of Error","Estimate","Margin of Error","Estimate","Margin of Error","Estimate","Margin of Error","Estimate","Margin of Error","Estimate","Margin of Error","Estimate","Margin of Error","Estimate","Margin of Error","Estimate","Margin of Error","Estimate","Margin of Error","Estimate","Margin of Error","Estimate","Margin of Error","Estimate","Margin of Error","Estimate","Margin of Error","Estimate","Margin of Error","Estimate","Margin of Error","Estimate","Margin of Error"]
[null,"Total:",45.4,2.5,48.2,5.3,47.4,10.5,39,10.8,44.8,2.8,58.6,2.8,45.7,4.9000000000000004,55.4,5.7,67.3,2.6,50.3,19.5,48.4,4.5,48.8,3,56,2.9,41.8,4.7,54.8,4.0999999999999996,49.1,3.9,50.6,5.6,47.6,4.8,52.9,2.7]
[null,"Male:",45,4.3,53,5.8,42.8,11.5,38.299999999999997,22.7,42.5,4.8,58.8,3.1,44.6,7.2,55.3,6.3,67.400000000000006,1.5,41.9,18.100000000000001,49.3,6.4,48.2,4.8,56.1,3.5,41.1,4.4000000000000004,54.2,6.5,46.9,4.7,45.8,7.2,47.4,4.5,51.9,8.4]
[null,"Female:",45.6,2.1,44.9,5.7,51.4,11.1,40.6,8.1,45.9,1.6,58.3,3.5,48.4,6.4,55.4,6.7,65.900000000000006,6,59.4,34.6,47.7,4.9000000000000004,49.3,3.3,55.9,3.4,44.1,5.9,55.2,3.6,49.8,3.7,54.3,6.4,47.9,6,53.6,2.7]

{"sheet":"ACS_Tbl_B11001_B11002_B25010","index":26,"n_rows":202,"n_cols":40,"rows_kept":202,"cut":false,"hidden":true,"merged":[]}
[null,"B11001. HOUSEHOLD TYPE (INCLUDING LIVING ALONE)"]
[null,"Universe:  HOUSEHOLDS"]
[null,"Data Set: 2018-2022 American Community Survey 5-Year Estimates"]
[]
[null,null,"Albany",null,"Bartlett",null,"Brookfield",null,"Chatham",null,"Conway",null,"Eaton",null,"Effingham",null,"Freedom",null,"Hale's Location",null,"Hart's Location",null,"Jackson",null,"Madison",null,"Moultonborough",null,"Ossipee",null,"Sandwich",null,"Tamworth",null,"Tuftonboro",null,"Wakefield",null,"Wolfeboro"]
[null," ","Estimate","Margin of Error","Estimate","Margin of Error","Estimate","Margin of Error","Estimate","Margin of Error","Estimate","Margin of Error","Estimate","Margin of Error","Estimate","Margin of Error","Estimate","Margin of Error","Estimate","Margin of Error","Estimate","Margin of Error","Estimate","Margin of Error","Estimate","Margin of Error","Estimate","Margin of Error","Estimate","Margin of Error","Estimate","Margin of Error","Estimate","Margin of Error","Estimate","Margin of Error","Estimate","Margin of Error","Estimate","Margin of Error"]
[null,"Total:",343,91,1722,223,232,58,160,41,4468,345,158,37,549,65,576,78,105,41,43,32,500,96,978,100,2111,184,1677,153,930,170,987,167,1113,87,2205,225,2787,260]
[null,"Family households:",211,79,763,163,161,39,108,31,2400,262,84,21,412,55,410,76,70,28,2,4,354,89,683,73,1511,131,1270,117,510,90,660,94,729,96,1480,231,1708,198]
[null,"Married-couple family",178,79,724,164,150,38,87,23,1720,238,66,19,310,55,305,52,68,28,2,4,326,85,582,115,1283,143,1038,138,446,87,530,124,671,100,1387,237,1305,192]
[null,"Other family:",33,20,39,41,11,9,21,18,680,184,18,12,102,45,105,62,2,3,0,12,28,26,101,74,228,81,232,110,64,33,130,71,58,31,93,75,403,187]
[null,"Male householder, no spouse present",9,11,0,12,3,6,10,9,257,121,7,7,27,18,56,39,2,3,0,12,20,23,65,75,126,56,84,81,31,20,32,45,42,27,43,42,8,13]
[null,"Female householder, no spouse present",24,18,39,41,8,6,11,16,423,185,11,9,75,43,49,50,0,12,0,12,8,12,36,27,102,76,148,76,33,22,98,66,16,16,50,59,395,185]
[null,"Nonfamily households:",132,57,959,281,71,39,52,22,2068,393,74,30,137,44,166,44,35,34,41,32,146,61,295,86,600,167,407,143,420,174,327,152,384,124,725,230,1079,302]
[null,"Householder living alone",111,56,735,269,67,38,42,21,1801,385,58,27,104,39,140,42,31,33,31,29,79,40,253,84,531,157,382,142,377,171,271,133,329,107,420,193,989,311]
[null,"Householder not living alone",21,17,224,135,4,5,10,8,267,136,16,12,33,17,26,20,4,5,10,12,67,50,42,29,69,48,25,22,43,20,56,60,55,40,305,153,90,71]
[]
[]
[]
[]
[]
[]
[]
[]
[]
[]
[]
[]
[]
[]
[]
[]
[]
[null,"B11002. HOUSEHOLD TYPE BY RELATIVES AND NONRELATIVES FOR POPULATION IN HOUSEHOLDS "]
[null,"Universe:  POPULATION IN HOUSEHOLDS"]
[null,"Data Set: 2018-2022 American Community Survey 5-Year Estimates"]
[]
[null,null,"Albany",null,"Bartlett",null,"Brookfield",null,"Chatham",null,"Conway",null,"Eaton",null,"Effingham",null,"Freedom",null,"Hale's Location",null,"Hart's Location",null,"Jackson",null,"Madison",null,"Moultonborough",null,"Ossipee",null,"Sandwich",null,"Tamworth",null,"Tuftonboro",null,"Wakefield",null,"Wolfeboro"]
[null," ","Estimate","Margin of Error","Estimate","Margin of Error","Estimate","Margin of Error","Estimate","Margin of Error","Estimate","Margin of Error","Estimate","Margin of Error","Estimate","Margin of Error","Estimate","Margin of Error","Estimate","Margin of Error","Estimate","Margin of Error","Estimate","Margin of Error","Estimate","Margin of Error","Estimate","Margin of Error","Estimate","Margin of Error","Estimate","Margin of Error","Estimate","Margin of Error","Estimate","Margin of Error","Estimate","Margin of Error","Estimate","Margin of Error"]
[null,"Total:",708,164,3182,18,536,142,423,109,9808,21,355,72,1771,280,1319,184,196,61,53,37,1149,182,2586,23,4944,16,4267,16,1838,254,2829,16,2506,27,5266,18,6332,19]
[null,"In family households:",557,162,1944,368,462,132,358,107,7313,507,267,63,1594,292,1125,186,157,54,4,7,936,202,2244,100,4256,194,3830,152,1368,237,2459,178,2056,148,4134,412,5076,325]
[null,"In married-couple family:",433,145,1855,372,426,122,286,75,4819,603,191,55,957,165,777,107,152,53,4,7,860,192,1814,290,3628,292,2937,369,1169,218,1815,364,1794,189,3807,424,3867,523]
[null,"Relatives",433,145,1855,372,426,122,275,73,4744,589,191,55,938,165,777,107,152,53,4,7,860,192,1758,283,3605,290,2862,357,1143,211,1790,359,1770,195,3781,426,3867,523]
[null,"Nonrelatives",0,12,0,12,0,12,11,12,75,74,0,12,19,19,0,12,0,12,0,12,0,12,56,72,23,34,75,83,26,31,25,37,24,28,26,39,0,17]
[null,"In male householder, no spouse present, family:",28,35,0,12,6,12,27,20,978,433,25,22,114,72,210,153,5,7,0,12,55,61,295,316,368,156,293,239,103,61,167,226,214,129,145,144,24,40]
[null,"Relatives",20,23,0,12,6,12,25,20,878,379,23,20,95,68,187,128,5,7,0,12,55,61,251,269,303,127,289,238,82,47,59,82,199,121,145,144,24,40]
[null,"Nonrelatives",8,13,0,12,0,12,2,3,100,86,2,4,19,14,23,31,0,12,0,12,0,12,44,52,65,55,4,11,21,22,108,145,15,14,0,17,0,17]
[null,"In female householder, no spouse present, family:",96,74,89,93,30,25,45,66,1516,627,51,47,523,324,138,122,0,12,0,12,21,33,135,117,260,198,600,266,96,60,477,346,48,50,182,211,1185,510]
[null,"Relatives",94,74,72,77,26,22,31,40,1419,577,37,36,381,192,123,114,0,12,0,12,21,33,103,82,260,198,600,266,96,60,472,346,48,50,137,151,1163,504]
[null,"Nonrelatives",2,4,17,24,4,6,14,33,97,104,14,21,142,153,15,23,0,12,0,12,0,12,32,40,0,12,0,12,0,12,5,8,0,12,45,67,22,32]
[null,"In nonfamily households",151,62,1238,368,74,39,65,27,2495,505,88,36,177,55,194,54,39,35,49,36,213,96,342,99,688,195,437,150,470,180,370,178,450,148,1132,412,1256,323]
[]
[]
[]
[null,"Calculated Average  Household Size by Household Type"]
[null,"Universe:  POPULATION IN HOUSEHOLDS"]
[null,"Data Set: 2018-2022 American Community Survey 5-Year Estimates"]
[]
[null,null,"Albany",null,"Bartlett",null,"Brookfield",null,"Chatham",null,"Conway",null,"Eaton",null,"Effingham",null,"Freedom",null,"Hale's Location",null,"Hart's Location",null,"Jackson",null,"Madison",null,"Moultonborough",null,"Ossipee",null,"Sandwich",null,"Tamworth",null,"Tuftonboro",null,"Wakefield",null,"Wolfeboro"]
[null," ","Estimate","Margin of Error","Estimate","Margin of Error","Estimate","Margin of Error","Estimate","Margin of Error","Estimate","Margin of Error","Estimate","Margin of Error","Estimate","Margin of Error","Estimate","Margin of Error","Estimate","Margin of Error","Estimate","Margin of Error","Estimate","Margin of Error","Estimate","Margin of Error","Estimate","Margin of Error","Estimate","Margin of Error","Estimate","Margin of Error","Estimate","Margin of Error","Estimate","Margin of Error","Estimate","Margin of Error","Estimate","Margin of Error"]
[null,"Total:",{"$f":"C39/C7","v":2.064139941690962},{"$f":"D73","v":0.28000000000000003},{"$f":"E39/E7","v":1.8478513356562136},{"$f":"(SQRT((F$39^2)+((E$39^2)/(E$7^2))*(F$7^2)))/E$7","v":0.23952601438654492},{"$f":"G39/G7","v":2.3103448275862069},{"$f":"(SQRT((H$39^2)+((G$39^2)/(G$7^2))*(H$7^2)))/G$7","v":0.84156654219764004},{"$f":"I39/I7","v":2.6437499999999998},{"$f":"(SQRT((J$39^2)+((I$39^2)/(I$7^2))*(J$7^2)))/I$7","v":0.96075745343888896},{"$f":"K39/K7","v":2.1951656222023277},{"$f":"(SQRT((L$39^2)+((K$39^2)/(K$7^2))*(L$7^2)))/K$7","v":0.16956652581529569},{"$f":"M39/M7","v":2.2468354430379747},{"$f":"(SQRT((N$39^2)+((M$39^2)/(M$7^2))*(N$7^2)))/M$7","v":0.69606100277727423},{"$f":"O39/O7","v":3.2258652094717668},{"$f":"(SQRT((P$39^2)+((O$39^2)/(O$7^2))*(P$7^2)))/O$7","v":0.63717456488100499},{"$f":"Q39/Q7","v":2.2899305555555554},{"$f":"(SQRT((R$39^2)+((Q$39^2)/(Q$7^2))*(R$7^2)))/Q$7","v":0.44520053342276394},{"$f":"S39/S7","v":1.8666666666666667},{"$f":"(SQRT((T$39^2)+((S$39^2)/(S$7^2))*(T$7^2)))/S$7","v":0.93208619841724905},{"$f":"U39/U7","v":1.2325581395348837},{"$f":"(SQRT((V$39^2)+((U$39^2)/(U$7^2))*(V$7^2)))/U$7","v":1.2576774195277134},{"$f":"W39/W7","v":2.298},{"$f":"(SQRT((X$39^2)+((W$39^2)/(W$7^2))*(X$7^2)))/W$7","v":0.5719856280152501},{"$f":"Y39/Y7","v":2.6441717791411041},{"$f":"(SQRT((Z$39^2)+((Y$39^2)/(Y$7^2))*(Z$7^2)))/Y$7","v":0.27138610033493282},{"$f":"AA39/AA7","v":2.3420180009474181},{"$f":"(SQRT((AB$39^2)+((AA$39^2)/(AA$7^2))*(AB$7^2)))/AA$7","v":0.20427676029017375},{"$f":"AC39/AC7","v":2.5444245676803816},{"$f":"(SQRT((AD$39^2)+((AC$39^2)/(AC$7^2))*(AD$7^2)))/AC$7","v":0.23233489443291538},{"$f":"AE39/AE7","v":1.9763440860215054},{"$f":"(SQRT((AF$39^2)+((AE$39^2)/(AE$7^2))*(AF$7^2)))/AE$7","v":0.4528880472718953},{"$f":"AG39/AG7","v":2.8662613981762917},{"$f":"(SQRT((AH$39^2)+((AG$39^2)/(AG$7^2))*(AH$7^2)))/AG$7","v":0.48524112348392034},{"$f":"AI39/AI7","v":2.2515723270440251},{"$f":"(SQRT((AJ$39^2)+((AI$39^2)/(AI$7^2))*(AJ$7^2)))/AI$7","v":0.17766289860698331},{"$f":"AK39/AK7","v":2.3882086167800454},{"$f":"(SQRT((AL$39^2)+((AK$39^2)/(AK$7^2))*(AL$7^2)))/AK$7","v":0.24383144464821238},{"$f":"AM39/AM7","v":2.2719770362396843},{"$f":"(SQRT((AN$39^2)+((AM$39^2)/(AM$7^2))*(AN$7^2)))/AM$7","v":0.21206297554320677}]
[null,"In family households:",{"$f":"C40/C8","v":2.6398104265402842},{"$f":"(SQRT((D$40^2)+((C$40^2)/(C$8^2))*(D$8^2)))/C$8","v":1.2515350912574581},{"$f":"E40/E8","v":2.5478374836173003},{"$f":"(SQRT((F$40^2)+((E$40^2)/(E$8^2))*(F$8^2)))/E$8","v":0.72723956899175168},{"$f":"G40/G8","v":2.8695652173913042},{"$f":"(SQRT((H$40^2)+((G$40^2)/(G$8^2))*(H$8^2)))/G$8","v":1.0748846823643139},{"$f":"I40/I8","v":3.3148148148148149},{"$f":"(SQRT((J$40^2)+((I$40^2)/(I$8^2))*(J$8^2)))/I$8","v":1.3736342938135224},{"$f":"K40/K8","v":3.0470833333333331},{"$f":"(SQRT((L$40^2)+((K$40^2)/(K$8^2))*(L$8^2)))/K$8","v":0.39405061337346603},{"$f":"M40/M8","v":3.1785714285714284},{"$f":"(SQRT((N$40^2)+((M$40^2)/(M$8^2))*(N$8^2)))/M$8","v":1.092683517953924},{"$f":"O40/O8","v":3.8689320388349513},{"$f":"(SQRT((P$40^2)+((O$40^2)/(O$8^2))*(P$8^2)))/O$8","v":0.8769633495890925},{"$f":"Q40/Q8","v":2.7439024390243905},{"$f":"(SQRT((R$40^2)+((Q$40^2)/(Q$8^2))*(R$8^2)))/Q$8","v":0.68154698335319952},{"$f":"S40/S8","v":2.2428571428571429},{"$f":"(SQRT((T$40^2)+((S$40^2)/(S$8^2))*(T$8^2)))/S$8","v":1.1832021581026531},{"$f":"U40/U8","v":2},{"$f":"(SQRT((V$40^2)+((U$40^2)/(U$8^2))*(V$8^2)))/U$8","v":5.315072906367325},{"$f":"W40/W8","v":2.6440677966101696},{"$f":"(SQRT((X$40^2)+((W$40^2)/(W$8^2))*(X$8^2)))/W$8","v":0.87607273010703346},{"$f":"Y40/Y8","v":3.2855051244509519},{"$f":"(SQRT((Z$40^2)+((Y$40^2)/(Y$8^2))*(Z$8^2)))/Y$8","v":0.38045980195299767},{"$f":"AA40/AA8","v":2.8166776968894771},{"$f":"(SQRT((AB$40^2)+((AA$40^2)/(AA$8^2))*(AB$8^2)))/AA$8","v":0.27589424260878681},{"$f":"AC40/AC8","v":3.015748031496063},{"$f":"(SQRT((AD$40^2)+((AC$40^2)/(AC$8^2))*(AD$8^2)))/AC$8","v":0.30251169583872028},{"$f":"AE40/AE8","v":2.6823529411764704},{"$f":"(SQRT((AF$40^2)+((AE$40^2)/(AE$8^2))*(AF$8^2)))/AE$8","v":0.66333840520861953},{"$f":"AG40/AG8","v":3.7257575757575756},{"$f":"(SQRT((AH$40^2)+((AG$40^2)/(AG$8^2))*(AH$8^2)))/AG$8","v":0.59524226576905348},{"$f":"AI40/AI8","v":2.8203017832647461},{"$f":"(SQRT((AJ$40^2)+((AI$40^2)/(AI$8^2))*(AJ$8^2)))/AI$8","v":0.42326415007404666},{"$f":"AK40/AK8","v":2.7932432432432432},{"$f":"(SQRT((AL$40^2)+((AK$40^2)/(AK$8^2))*(AL$8^2)))/AK$8","v":0.51726828340853981},{"$f":"AM40/AM8","v":2.9718969555035128},{"$f":"(SQRT((AN$40^2)+((AM$40^2)/(AM$8^2))*(AN$8^2)))/AM$8","v":0.39357217918576809}]
[null,"In nonfamily households",{"$f":"C50/C13","v":1.143939393939394},{"$f":"(SQRT((D$50^2)+((C$50^2)/(C$13^2))*(D$13^2)))/C$13","v":0.68163435013071005},{"$f":"E50/E13","v":1.2909280500521376},{"$f":"(SQRT((F$50^2)+((E$50^2)/(E$13^2))*(F$13^2)))/E$13","v":0.53882394635842412},{"$f":"G50/G13","v":1.0422535211267605},{"$f":"(SQRT((H$50^2)+((G$50^2)/(G$13^2))*(H$13^2)))/G$13","v":0.79340301509149969},{"$f":"I50/I13","v":1.25},{"$f":"(SQRT((J$50^2)+((I$50^2)/(I$13^2))*(J$13^2)))/I$13","v":0.74113348740550522},{"$f":"K50/K13","v":1.2064796905222437},{"$f":"(SQRT((L$50^2)+((K$50^2)/(K$13^2))*(L$13^2)))/K$13","v":0.33496362971250315},{"$f":"M50/M13","v":1.1891891891891893},{"$f":"(SQRT((N$50^2)+((M$50^2)/(M$13^2))*(N$13^2)))/M$13","v":0.68490371843595044},{"$f":"O50/O13","v":1.2919708029197081},{"$f":"(SQRT((P$50^2)+((O$50^2)/(O$13^2))*(P$13^2)))/O$13","v":0.57736022225007444},{"$f":"Q50/Q13","v":1.1686746987951808},{"$f":"(SQRT((R$50^2)+((Q$50^2)/(Q$13^2))*(R$13^2)))/Q$13","v":0.44919687157726318},{"$f":"S50/S13","v":1.1142857142857143},{"$f":"(SQRT((T$50^2)+((S$50^2)/(S$13^2))*(T$13^2)))/S$13","v":1.4736674636495875},{"$f":"U50/U13","v":1.1951219512195121},{"$f":"(SQRT((V$50^2)+((U$50^2)/(U$13^2))*(V$13^2)))/U$13","v":1.2810326538311996},{"$f":"W50/W13","v":1.4589041095890412},{"$f":"(SQRT((X$50^2)+((W$50^2)/(W$13^2))*(X$13^2)))/W$13","v":0.89660074236002618},{"$f":"Y50/Y13","v":1.159322033898305},{"$f":"(SQRT((Z$50^2)+((Y$50^2)/(Y$13^2))*(Z$13^2)))/Y$13","v":0.47628539660295055},{"$f":"AA50/AA13","v":1.1466666666666667},{"$f":"(SQRT((AB$50^2)+((AA$50^2)/(AA$13^2))*(AB$13^2)))/AA$13","v":0.45550550890409142},{"$f":"AC50/AC13","v":1.0737100737100738},{"$f":"(SQRT((AD$50^2)+((AC$50^2)/(AC$13^2))*(AD$13^2)))/AC$13","v":0.5273960071532412},{"$f":"AE50/AE13","v":1.1190476190476191},{"$f":"(SQRT((AF$50^2)+((AE$50^2)/(AE$13^2))*(AF$13^2)))/AE$13","v":0.63135051706937484},{"$f":"AG50/AG13","v":1.1314984709480123},{"$f":"(SQRT((AH$50^2)+((AG$50^2)/(AG$13^2))*(AH$13^2)))/AG$13","v":0.7569273281216875},{"$f":"AI50/AI13","v":1.171875},{"$f":"(SQRT((AJ$50^2)+((AI$50^2)/(AI$13^2))*(AJ$13^2)))/AI$13","v":0.54013532194934299},{"$f":"AK50/AK13","v":1.5613793103448277},{"$f":"(SQRT((AL$50^2)+((AK$50^2)/(AK$13^2))*(AL$13^2)))/AK$13","v":0.7538523408668707},{"$f":"AM50/AM13","v":1.1640407784986098},{"$f":"(SQRT((AN$50^2)+((AM$50^2)/(AM$13^2))*(AN$13^2)))/AM$13","v":0.44244557729846928}]
[]
[]
[]
[null,"B25010. AVERAGE HOUSEHOLD SIZE OF OCCUPIED HOUSING UNITS BY TENURE"]
[null,"Universe:  OCCUPIED HOUSING UNITS"]
[null,"Data Set: 2018-2022 American Community Survey 5-Year Estimates"]
[]
[null,null,"Albany",null,"Bartlett",null,"Brookfield",null,"Chatham",null,"Conway",null,"Eaton",null,"Effingham",null,"Freedom",null,"Hale's Location",null,"Hart's Location",null,"Jackson",null,"Madison",null,"Moultonborough",null,"Ossipee",null,"Sandwich",null,"Tamworth",null,"Tuftonboro",null,"Wakefield",null,"Wolfeboro"]
[null," ","Estimate","Margin of Error","Estimate","Margin of Error","Estimate","Margin of Error","Estimate","Margin of Error","Estimate","Margin of Error","Estimate","Margin of Error","Estimate","Margin of Error","Estimate","Margin of Error","Estimate","Margin of Error","Estimate","Margin of Error","Estimate","Margin of Error","Estimate","Margin of Error","Estimate","Margin of Error","Estimate","Margin of Error","Estimate","Margin of Error","Estimate","Margin of Error","Estimate","Margin of Error","Estimate","Margin of Error","Estimate","Margin of Error"]
[null,"Average household size --"]
[null,"Total:",2.06,0.28000000000000003,1.85,0.24,2.31,0.33,2.64,0.54,2.2000000000000002,0.17,2.25,0.37,3.23,0.54,2.29,0.18,1.87,0.34,1.23,0.28999999999999998,2.2999999999999998,0.24,2.64,0.27,2.34,0.2,2.54,0.23,1.98,0.23,2.87,0.46,2.25,0.17,2.39,0.24,2.27,0.22]
[null,"Owner occupied",2.29,0.33,1.93,0.28000000000000003,2.3199999999999998,0.34,2.62,0.52,2.2400000000000002,0.19,2.5,0.43,3.35,0.62,2.2799999999999998,0.19,2.0699999999999998,0.25,1.23,0.28999999999999998,2.0699999999999998,0.13,2.62,0.28999999999999998,2.23,0.21,2.59,0.22,1.95,0.24,2.67,0.5,2.23,0.16,2.42,0.24,2.4500000000000002,0.25]
[null,"Renter occupied",1.44,0.28000000000000003,1.53,0.31,"-","**",2.84,1.83,2.08,0.32,1.37,0.42,2.42,0.98,2.39,0.78,"-","**","-","**",3.06,0.84,2.78,0.77,3.24,0.86,2.34,0.77,2.27,0.4,3.25,0.83,2.4700000000000002,0.9,1.84,1.32,1.66,0.39]
[]
[]
[]
[]
[]
[]
[null,"B11001. HOUSEHOLD TYPE (INCLUDING LIVING ALONE)"]
[null,"Universe:  HOUSEHOLDS"]
[null,"Data Set: 2013-2017 American Community Survey 5-Year Estimates"]
[]
[null,null,"Albany",null,"Bartlett",null,"Brookfield",null,"Chatham",null,"Conway",null,"Eaton",null,"Effingham",null,"Freedom",null,"Hale's Location",null,"Hart's Location",null,"Jackson",null,"Madison",null,"Moultonborough",null,"Ossipee",null,"Sandwich",null,"Tamworth",null,"Tuftonboro",null,"Wakefield",null,"Wolfeboro"]
[null," ","Estimate","Margin of Error","Estimate","Margin of Error","Estimate","Margin of Error","Estimate","Margin of Error","Estimate","Margin of Error","Estimate","Margin of Error","Estimate","Margin of Error","Estimate","Margin of Error","Estimate","Margin of Error","Estimate","Margin of Error","Estimate","Margin of Error","Estimate","Margin of Error","Estimate","Margin of Error","Estimate","Margin of Error","Estimate","Margin of Error","Estimate","Margin of Error","Estimate","Margin of Error","Estimate","Margin of Error","Estimate","Margin of Error"]
[null,"Total:",312,44,1408,164,326,77,142,36,4346,208,169,38,602,72,587,74,79,24,26,16,455,89,1069,85,1758,102,1962,185,617,73,1378,137,966,103,2066,185,2935,210]
[null,"Family households:",222,43,669,104,285,70,93,27,2832,214,95,28,406,49,408,57,62,21,17,12,274,70,738,63,1307,105,1076,131,413,64,929,110,718,79,1507,150,2010,153]
[null,"Married-couple family",174,36,535,107,278,68,73,19,2051,252,87,27,298,49,384,54,62,21,14,11,258,69,611,82,1119,130,917,144,357,59,724,164,613,74,1394,155,1754,187]
[null,"Other family:",48,30,134,90,7,9,20,16,781,223,8,7,108,37,24,19,0,11,3,4,16,18,127,51,188,87,159,82,56,28,205,117,105,51,113,85,256,154]
[null,"Male householder, no wife present",12,10,74,73,7,9,8,7,284,195,2,3,41,20,17,18,0,11,3,4,0,11,54,40,89,62,65,63,14,12,88,90,45,36,44,67,137,121]
[null,"Female householder, no husband present",36,28,60,51,0,11,12,15,497,172,6,6,67,34,7,6,0,11,0,11,16,18,73,34,99,53,94,53,42,25,117,91,60,38,69,59,119,107]
[null,"Nonfamily households:",90,31,739,220,41,22,49,22,1514,276,74,24,196,55,179,40,17,10,9,11,181,59,331,94,451,122,886,224,204,53,449,145,248,74,559,223,925,261]
[null,"Householder living alone",74,29,585,196,34,21,32,15,1039,247,55,22,146,52,164,39,7,6,4,7,104,47,261,85,360,103,692,201,171,51,360,132,200,61,416,186,860,260]
[null,"Householder not living alone",16,13,154,89,7,8,17,15,475,163,19,12,50,26,15,11,10,8,5,8,77,44,70,52,91,61,194,106,33,22,89,84,48,36,143,125,65,56]
[]
[]
[]
[]
[]
[]
[]
[]
[]
[]
[]
[]
[]
[]
[]
[]
[]
[null,"B11002. HOUSEHOLD TYPE BY RELATIVES AND NONRELATIVES FOR POPULATION IN HOUSEHOLDS "]
[null,"Universe:  POPULATION IN HOUSEHOLDS"]
[null,"Data Set: 2013-2017 American Community Survey 5-Year Estimates"]
[]
[null,null,"Albany",null,"Bartlett",null,"Brookfield",null,"Chatham",null,"Conway",null,"Eaton",null,"Effingham",null,"Freedom",null,"Hale's Location",null,"Hart's Location",null,"Jackson",null,"Madison",null,"Moultonborough",null,"Ossipee",null,"Sandwich",null,"Tamworth",null,"Tuftonboro",null,"Wakefield",null,"Wolfeboro"]
[null," ","Estimate","Margin of Error","Estimate","Margin of Error","Estimate","Margin of Error","Estimate","Margin of Error","Estimate","Margin of Error","Estimate","Margin of Error","Estimate","Margin of Error","Estimate","Margin of Error","Estimate","Margin of Error","Estimate","Margin of Error","Estimate","Margin of Error","Estimate","Margin of Error","Estimate","Margin of Error","Estimate","Margin of Error","Estimate","Margin of Error","Estimate","Margin of Error","Estimate","Margin of Error","Estimate","Margin of Error","Estimate","Margin of Error"]
[null,"Total:",782,141,2745,20,876,265,339,109,9829,73,321,68,1435,174,1305,175,159,48,52,31,957,220,2496,27,4044,20,4081,118,1342,199,2906,26,2153,183,5007,19,6130,40]
[null,"In family households:",665,143,1857,271,829,259,263,96,7745,436,230,64,1184,157,1112,167,132,45,39,27,694,200,2097,127,3471,177,2973,302,1093,204,2380,191,1850,171,4271,317,5140,265]
[null,"In married-couple family:",515,129,1534,320,809,255,213,73,5468,681,204,61,811,144,1033,158,132,45,31,24,644,199,1696,201,2858,327,2445,332,910,182,1769,391,1533,177,3903,350,4512,406]
[null,"Relatives",515,129,1534,320,809,255,213,73,5431,681,204,61,811,144,1009,147,132,45,31,24,638,195,1692,199,2858,327,2445,332,908,182,1769,391,1516,171,3853,359,4512,406]
[null,"Nonrelatives",0,11,0,11,0,11,0,11,37,36,0,11,0,11,24,21,0,11,0,11,6,10,4,6,0,11,0,11,2,4,0,11,17,26,50,63,0,16]
[null,"In male householder, no wife present, family:",27,22,196,188,20,25,20,17,819,551,5,9,113,54,65,78,0,11,8,12,0,11,183,137,231,163,158,149,40,34,284,315,134,109,139,206,344,272]
[null,"Relatives",27,22,161,149,20,25,16,13,639,418,3,5,91,43,54,63,0,11,5,7,0,11,154,116,201,150,146,144,34,28,245,261,124,106,96,141,310,254]
[null,"Nonrelatives",0,11,35,53,0,11,4,5,180,145,2,4,22,15,11,16,0,11,3,6,0,11,29,28,30,31,12,20,6,10,39,59,10,14,43,66,34,44]
[null,"In female householder, no husband present, family:",123,89,127,107,0,11,30,40,1458,493,21,20,260,134,14,11,0,11,0,11,50,55,218,110,382,222,370,273,143,106,327,303,183,107,229,217,284,266]
[null,"Relatives",109,83,127,107,0,11,25,32,1349,437,21,20,239,128,14,11,0,11,0,11,33,30,186,94,339,201,335,224,124,91,327,303,173,105,207,195,284,266]
[null,"Nonrelatives",14,14,0,11,0,11,5,10,109,94,0,11,21,17,0,11,0,11,0,11,17,27,32,28,43,45,35,56,19,23,0,11,10,11,22,36,0,16]
[null,"In nonfamily households",117,46,888,274,47,26,76,48,2084,422,91,29,251,71,193,43,27,17,13,16,263,98,399,123,573,175,1108,296,249,68,526,186,303,98,736,316,990,271]
[]
[]
[]
[null,"Calculated Average  Household Size by Household Type"]
[null,"Universe:  POPULATION IN HOUSEHOLDS"]
[null,"Data Set: 2013-2017 American Community Survey 5-Year Estimates"]
[]
[null,null,"Albany",null,"Bartlett",null,"Brookfield",null,"Chatham",null,"Conway",null,"Eaton",null,"Effingham",null,"Freedom",null,"Hale's Location",null,"Hart's Location",null,"Jackson",null,"Madison",null,"Moultonborough",null,"Ossipee",null,"Sandwich",null,"Tamworth",null,"Tuftonboro",null,"Wakefield",null,"Wolfeboro"]
[null," ","Estimate","Margin of Error","Estimate","Margin of Error","Estimate","Margin of Error","Estimate","Margin of Error","Estimate","Margin of Error","Estimate","Margin of Error","Estimate","Margin of Error","Estimate","Margin of Error","Estimate","Margin of Error","Estimate","Margin of Error","Estimate","Margin of Error","Estimate","Margin of Error","Estimate","Margin of Error","Estimate","Margin of Error","Estimate","Margin of Error","Estimate","Margin of Error","Estimate","Margin of Error","Estimate","Margin of Error","Estimate","Margin of Error"]
[null,"Total:",{"$f":"C120/C88","v":2.5064102564102564},{"$f":"D154","v":0.3},{"$f":"E120/E88","v":1.9495738636363635},{"$f":"(SQRT((F$39^2)+((E$39^2)/(E$7^2))*(F$7^2)))/E$7","v":0.23952601438654492},{"$f":"G120/G88","v":2.6871165644171779},{"$f":"(SQRT((H$39^2)+((G$39^2)/(G$7^2))*(H$7^2)))/G$7","v":0.84156654219764004},{"$f":"I120/I88","v":2.387323943661972},{"$f":"(SQRT((J$39^2)+((I$39^2)/(I$7^2))*(J$7^2)))/I$7","v":0.96075745343888896},{"$f":"K120/K88","v":2.2616198803497469},{"$f":"(SQRT((L$39^2)+((K$39^2)/(K$7^2))*(L$7^2)))/K$7","v":0.16956652581529569},{"$f":"M120/M88","v":1.8994082840236686},{"$f":"(SQRT((N$39^2)+((M$39^2)/(M$7^2))*(N$7^2)))/M$7","v":0.69606100277727423},{"$f":"O120/O88","v":2.3837209302325579},{"$f":"(SQRT((P$39^2)+((O$39^2)/(O$7^2))*(P$7^2)))/O$7","v":0.63717456488100499},{"$f":"Q120/Q88","v":2.2231686541737647},{"$f":"(SQRT((R$39^2)+((Q$39^2)/(Q$7^2))*(R$7^2)))/Q$7","v":0.44520053342276394},{"$f":"S120/S88","v":2.0126582278481013},{"$f":"(SQRT((T$39^2)+((S$39^2)/(S$7^2))*(T$7^2)))/S$7","v":0.93208619841724905},{"$f":"U120/U88","v":2},{"$f":"(SQRT((V$39^2)+((U$39^2)/(U$7^2))*(V$7^2)))/U$7","v":1.2576774195277134},{"$f":"W120/W88","v":2.1032967032967034},{"$f":"(SQRT((X$39^2)+((W$39^2)/(W$7^2))*(X$7^2)))/W$7","v":0.5719856280152501},{"$f":"Y120/Y88","v":2.33489242282507},{"$f":"(SQRT((Z$39^2)+((Y$39^2)/(Y$7^2))*(Z$7^2)))/Y$7","v":0.27138610033493282},{"$f":"AA120/AA88","v":2.3003412969283277},{"$f":"(SQRT((AB$39^2)+((AA$39^2)/(AA$7^2))*(AB$7^2)))/AA$7","v":0.20427676029017375},{"$f":"AC120/AC88","v":2.0800203873598369},{"$f":"(SQRT((AD$39^2)+((AC$39^2)/(AC$7^2))*(AD$7^2)))/AC$7","v":0.23233489443291538},{"$f":"AE120/AE88","v":2.1750405186385739},{"$f":"(SQRT((AF$39^2)+((AE$39^2)/(AE$7^2))*(AF$7^2)))/AE$7","v":0.4528880472718953},{"$f":"AG120/AG88","v":2.108853410740203},{"$f":"(SQRT((AH$39^2)+((AG$39^2)/(AG$7^2))*(AH$7^2)))/AG$7","v":0.48524112348392034},{"$f":"AI120/AI88","v":2.2287784679089029},{"$f":"(SQRT((AJ$39^2)+((AI$39^2)/(AI$7^2))*(AJ$7^2)))/AI$7","v":0.17766289860698331},{"$f":"AK120/AK88","v":2.4235237173281705},{"$f":"(SQRT((AL$39^2)+((AK$39^2)/(AK$7^2))*(AL$7^2)))/AK$7","v":0.24383144464821238},{"$f":"AM120/AM88","v":2.0885860306643953},{"$f":"(SQRT((AN$39^2)+((AM$39^2)/(AM$7^2))*(AN$7^2)))/AM$7","v":0.21206297554320677}]
[null,"In family households:",{"$f":"C121/C89","v":2.9954954954954953},{"$f":"(SQRT((D$40^2)+((C$40^2)/(C$8^2))*(D$8^2)))/C$8","v":1.2515350912574581},{"$f":"E121/E89","v":2.7757847533632285},{"$f":"(SQRT((F$40^2)+((E$40^2)/(E$8^2))*(F$8^2)))/E$8","v":0.72723956899175168},{"$f":"G121/G89","v":2.9087719298245616},{"$f":"(SQRT((H$40^2)+((G$40^2)/(G$8^2))*(H$8^2)))/G$8","v":1.0748846823643139},{"$f":"I121/I89","v":2.827956989247312},{"$f":"(SQRT((J$40^2)+((I$40^2)/(I$8^2))*(J$8^2)))/I$8","v":1.3736342938135224},{"$f":"K121/K89","v":2.7348163841807911},{"$f":"(SQRT((L$40^2)+((K$40^2)/(K$8^2))*(L$8^2)))/K$8","v":0.39405061337346603},{"$f":"M121/M89","v":2.4210526315789473},{"$f":"(SQRT((N$40^2)+((M$40^2)/(M$8^2))*(N$8^2)))/M$8","v":1.092683517953924},{"$f":"O121/O89","v":2.916256157635468},{"$f":"(SQRT((P$40^2)+((O$40^2)/(O$8^2))*(P$8^2)))/O$8","v":0.8769633495890925},{"$f":"Q121/Q89","v":2.7254901960784315},{"$f":"(SQRT((R$40^2)+((Q$40^2)/(Q$8^2))*(R$8^2)))/Q$8","v":0.68154698335319952},{"$f":"S121/S89","v":2.129032258064516},{"$f":"(SQRT((T$40^2)+((S$40^2)/(S$8^2))*(T$8^2)))/S$8","v":1.1832021581026531},{"$f":"U121/U89","v":2.2941176470588234},{"$f":"(SQRT((V$40^2)+((U$40^2)/(U$8^2))*(V$8^2)))/U$8","v":5.315072906367325},{"$f":"W121/W89","v":2.5328467153284673},{"$f":"(SQRT((X$40^2)+((W$40^2)/(W$8^2))*(X$8^2)))/W$8","v":0.87607273010703346},{"$f":"Y121/Y89","v":2.8414634146341462},{"$f":"(SQRT((Z$40^2)+((Y$40^2)/(Y$8^2))*(Z$8^2)))/Y$8","v":0.38045980195299767},{"$f":"AA121/AA89","v":2.6557000765110943},{"$f":"(SQRT((AB$40^2)+((AA$40^2)/(AA$8^2))*(AB$8^2)))/AA$8","v":0.27589424260878681},{"$f":"AC121/AC89","v":2.763011152416357},{"$f":"(SQRT((AD$40^2)+((AC$40^2)/(AC$8^2))*(AD$8^2)))/AC$8","v":0.30251169583872028},{"$f":"AE121/AE89","v":2.6464891041162226},{"$f":"(SQRT((AF$40^2)+((AE$40^2)/(AE$8^2))*(AF$8^2)))/AE$8","v":0.66333840520861953},{"$f":"AG121/AG89","v":2.5618945102260495},{"$f":"(SQRT((AH$40^2)+((AG$40^2)/(AG$8^2))*(AH$8^2)))/AG$8","v":0.59524226576905348},{"$f":"AI121/AI89","v":2.5766016713091924},{"$f":"(SQRT((AJ$40^2)+((AI$40^2)/(AI$8^2))*(AJ$8^2)))/AI$8","v":0.42326415007404666},{"$f":"AK121/AK89","v":2.834107498341075},{"$f":"(SQRT((AL$40^2)+((AK$40^2)/(AK$8^2))*(AL$8^2)))/AK$8","v":0.51726828340853981},{"$f":"AM121/AM89","v":2.5572139303482588},{"$f":"(SQRT((AN$40^2)+((AM$40^2)/(AM$8^2))*(AN$8^2)))/AM$8","v":0.39357217918576809}]
[null,"In nonfamily households",{"$f":"C131/C94","v":1.3},{"$f":"(SQRT((D$50^2)+((C$50^2)/(C$13^2))*(D$13^2)))/C$13","v":0.68163435013071005},{"$f":"E131/E94","v":1.2016238159675237},{"$f":"(SQRT((F$50^2)+((E$50^2)/(E$13^2))*(F$13^2)))/E$13","v":0.53882394635842412},{"$f":"G131/G94","v":1.1463414634146341},{"$f":"(SQRT((H$50^2)+((G$50^2)/(G$13^2))*(H$13^2)))/G$13","v":0.79340301509149969},{"$f":"I131/I94","v":1.5510204081632653},{"$f":"(SQRT((J$50^2)+((I$50^2)/(I$13^2))*(J$13^2)))/I$13","v":0.74113348740550522},{"$f":"K131/K94","v":1.3764861294583883},{"$f":"(SQRT((L$50^2)+((K$50^2)/(K$13^2))*(L$13^2)))/K$13","v":0.33496362971250315},{"$f":"M131/M94","v":1.2297297297297298},{"$f":"(SQRT((N$50^2)+((M$50^2)/(M$13^2))*(N$13^2)))/M$13","v":0.68490371843595044},{"$f":"O131/O94","v":1.2806122448979591},{"$f":"(SQRT((P$50^2)+((O$50^2)/(O$13^2))*(P$13^2)))/O$13","v":0.57736022225007444},{"$f":"Q131/Q94","v":1.0782122905027933},{"$f":"(SQRT((R$50^2)+((Q$50^2)/(Q$13^2))*(R$13^2)))/Q$13","v":0.44919687157726318},{"$f":"S131/S94","v":1.588235294117647},{"$f":"(SQRT((T$50^2)+((S$50^2)/(S$13^2))*(T$13^2)))/S$13","v":1.4736674636495875},{"$f":"U131/U94","v":1.4444444444444444},{"$f":"(SQRT((V$50^2)+((U$50^2)/(U$13^2))*(V$13^2)))/U$13","v":1.2810326538311996},{"$f":"W131/W94","v":1.4530386740331491},{"$f":"(SQRT((X$50^2)+((W$50^2)/(W$13^2))*(X$13^2)))/W$13","v":0.89660074236002618},{"$f":"Y131/Y94","v":1.2054380664652569},{"$f":"(SQRT((Z$50^2)+((Y$50^2)/(Y$13^2))*(Z$13^2)))/Y$13","v":0.47628539660295055},{"$f":"AA131/AA94","v":1.270509977827051},{"$f":"(SQRT((AB$50^2)+((AA$50^2)/(AA$13^2))*(AB$13^2)))/AA$13","v":0.45550550890409142},{"$f":"AC131/AC94","v":1.2505643340857788},{"$f":"(SQRT((AD$50^2)+((AC$50^2)/(AC$13^2))*(AD$13^2)))/AC$13","v":0.5273960071532412},{"$f":"AE131/AE94","v":1.2205882352941178},{"$f":"(SQRT((AF$50^2)+((AE$50^2)/(AE$13^2))*(AF$13^2)))/AE$13","v":0.63135051706937484},{"$f":"AG131/AG94","v":1.1714922048997773},{"$f":"(SQRT((AH$50^2)+((AG$50^2)/(AG$13^2))*(AH$13^2)))/AG$13","v":0.7569273281216875},{"$f":"AI131/AI94","v":1.221774193548387},{"$f":"(SQRT((AJ$50^2)+((AI$50^2)/(AI$13^2))*(AJ$13^2)))/AI$13","v":0.54013532194934299},{"$f":"AK131/AK94","v":1.3166368515205724},{"$f":"(SQRT((AL$50^2)+((AK$50^2)/(AK$13^2))*(AL$13^2)))/AK$13","v":0.7538523408668707},{"$f":"AM131/AM94","v":1.0702702702702702},{"$f":"(SQRT((AN$50^2)+((AM$50^2)/(AM$13^2))*(AN$13^2)))/AM$13","v":0.44244557729846928}]
[]
[]
[]
[null,"B25010. AVERAGE HOUSEHOLD SIZE OF OCCUPIED HOUSING UNITS BY TENURE"]
[null,"Universe:  OCCUPIED HOUSING UNITS"]
[null,"Data Set: 2013-2017 American Community Survey 5-Year Estimates"]
[]
[null,null,"Albany",null,"Bartlett",null,"Brookfield",null,"Chatham",null,"Conway",null,"Eaton",null,"Effingham",null,"Freedom",null,"Hale's Location",null,"Hart's Location",null,"Jackson",null,"Madison",null,"Moultonborough",null,"Ossipee",null,"Sandwich",null,"Tamworth",null,"Tuftonboro",null,"Wakefield",null,"Wolfeboro"]
[null," ","Estimate","Margin of Error","Estimate","Margin of Error","Estimate","Margin of Error","Estimate","Margin of Error","Estimate","Margin of Error","Estimate","Margin of Error","Estimate","Margin of Error","Estimate","Margin of Error","Estimate","Margin of Error","Estimate","Margin of Error","Estimate","Margin of Error","Estimate","Margin of Error","Estimate","Margin of Error","Estimate","Margin of Error","Estimate","Margin of Error","Estimate","Margin of Error","Estimate","Margin of Error","Estimate","Margin of Error","Estimate","Margin of Error"]
[null,"Average household size --"]
[null,"Total:",2.5099999999999998,0.3,1.95,0.22,2.69,0.33,2.39,0.44,2.2599999999999998,0.11,1.9,0.24,2.38,0.22,2.2200000000000002,0.21,2.0099999999999998,0.25,2,0.49,2.1,0.25,2.33,0.18,2.2999999999999998,0.13,2.08,0.2,2.1800000000000002,0.21,2.11,0.21,2.23,0.15,2.42,0.22,2.09,0.15]
[null,"Owner occupied",2.54,0.32,2,0.27,2.54,0.31,2.3199999999999998,0.51,2.37,0.14000000000000001,1.92,0.22,2.37,0.22,2.19,0.22,2.0099999999999998,0.25,1.94,0.59,2.09,0.25,2.2000000000000002,0.17,2.31,0.14000000000000001,2.1,0.2,2.09,0.19,2.42,0.27,2.13,0.15,2.36,0.26,2.17,0.17]
[null,"Renter occupied",2.29,0.6,1.84,0.4,3.83,1.62,2.83,0.79,1.95,0.19,1.8,0.7,2.46,0.67,2.41,0.7,"-","**",2.13,1.17,2.14,0.72,3.04,0.46,2.2599999999999998,0.61,1.98,0.68,2.6,0.66,1.44,0.2,2.86,0.53,2.96,0.44,1.8,0.33]
[]
[]
[]
[]
[]
[]
[null,"B11001. HOUSEHOLD TYPE (INCLUDING LIVING ALONE)"]
[null,"Universe:  HOUSEHOLDS"]
[null,"Data Set: 2008-2012 American Community Survey 5-Year Estimates"]
[]
[null,null,"Albany",null,"Bartlett",null,"Brookfield",null,"Chatham",null,"Conway",null,"Eaton",null,"Effingham",null,"Freedom",null,"Hale's Location",null,"Hart's Location",null,"Jackson",null,"Madison",null,"Moultonborough",null,"Ossipee",null,"Sandwich",null,"Tamworth",null,"Tuftonboro",null,"Wakefield",null,"Wolfeboro"]
[null," ","Estimate","Margin of Error","Estimate","Margin of Error","Estimate","Margin of Error","Estimate","Margin of Error","Estimate","Margin of Error","Estimate","Margin of Error","Estimate","Margin of Error","Estimate","Margin of Error","Estimate","Margin of Error","Estimate","Margin of Error","Estimate","Margin of Error","Estimate","Margin of Error","Estimate","Margin of Error","Estimate","Margin of Error","Estimate","Margin of Error","Estimate","Margin of Error","Estimate","Margin of Error","Estimate","Margin of Error","Estimate","Margin of Error"]
[null,"Total:",338,61,1381,148,257,57,166,46,4452,262,176,34,495,68,554,65,52,13,28,19,407,80,1044,102,1793,98,1697,144,592,81,1353,138,1041,115,2216,215,2590,178]
[null,"Family households:",259,62,742,110,183,48,122,41,2660,238,138,29,340,58,384,62,44,14,2,4,305,75,790,81,1361,88,1099,114,373,67,740,90,807,109,1567,173,1778,171]
[null,"Married-couple family",209,57,596,120,148,41,94,34,2169,234,116,29,248,49,322,57,44,14,2,4,270,66,670,91,1244,111,768,116,321,59,500,116,636,102,1316,161,1505,167]
[null,"Other family:",50,32,146,92,35,25,28,24,491,188,22,14,92,38,62,29,0,11,0,11,35,30,120,59,117,57,331,119,52,27,240,91,171,78,251,125,273,125]
[null,"Male householder, no wife present",3,5,21,29,15,18,1,3,118,82,13,12,33,20,32,25,0,11,0,11,0,11,9,10,67,49,178,96,15,16,100,65,41,38,169,119,93,95]
[null,"Female householder, no husband present",47,33,125,90,20,16,27,25,373,172,9,7,59,30,30,14,0,11,0,11,35,30,111,60,50,31,153,91,37,20,140,84,130,73,82,66,180,90]
[null,"Nonfamily households:",79,25,639,184,74,31,44,20,1792,307,38,18,155,49,170,41,8,9,26,19,102,46,254,99,432,119,598,145,219,47,613,143,234,78,649,215,812,205]
[null,"Householder living alone",63,24,527,169,43,21,23,15,1379,286,35,17,120,43,156,40,6,8,24,19,82,43,191,88,360,120,527,139,183,46,504,141,173,70,600,212,521,185]
[null,"Householder not living alone",16,13,112,75,31,24,21,13,413,138,3,5,35,22,14,9,2,4,2,3,20,19,63,46,72,45,71,37,36,16,109,96,61,35,49,44,291,143]
[]
[]
[]
[null,"Calculated Average  Household Size by Household Type"]
[null,"Universe:  POPULATION IN HOUSEHOLDS"]
[null,"Data Set: 2008-2012 American Community Survey 5-Year Estimates"]
[]
[null,null,"Albany",null,"Bartlett",null,"Brookfield",null,"Chatham",null,"Conway",null,"Eaton",null,"Effingham",null,"Freedom",null,"Hale's Location",null,"Hart's Location",null,"Jackson",null,"Madison",null,"Moultonborough",null,"Ossipee",null,"Sandwich",null,"Tamworth",null,"Tuftonboro",null,"Wakefield",null,"Wolfeboro"]
[null," ","Estimate","Margin of Error","Estimate","Margin of Error","Estimate","Margin of Error","Estimate","Margin of Error","Estimate","Margin of Error","Estimate","Margin of Error","Estimate","Margin of Error","Estimate","Margin of Error","Estimate","Margin of Error","Estimate","Margin of Error","Estimate","Margin of Error","Estimate","Margin of Error","Estimate","Margin of Error","Estimate","Margin of Error","Estimate","Margin of Error","Estimate","Margin of Error","Estimate","Margin of Error","Estimate","Margin of Error","Estimate","Margin of Error"]
[null,"Total:",{"$f":"C200","v":2.59},0.25,2,0.22,2.65,0.38,2.69,0.48,2.2200000000000002,0.13,2.2200000000000002,0.24,2.5299999999999998,0.32,2.16,0.21,2.12,0.37,1.18,0.26,2.41,0.34,2.38,0.23,2.25,0.12,2.4500000000000002,0.2,2.0699999999999998,0.17,2.1,0.21,2.4,0.16,2.2799999999999998,0.22,2.39,0.16]
[null,"In family households:",{"$f":"C201","v":2.64},0.31,2.0499999999999998,0.25,2.71,0.4,2.59,0.45,2.4500000000000002,0.15,2.27,0.25,2.56,0.33,2.0099999999999998,0.16,2.12,0.37,"-","**",2.56,0.37,2.4,0.23,2.2200000000000002,0.13,2.38,0.21,2.04,0.17,2.16,0.21,2.52,0.17,2.2799999999999998,0.24,2.46,0.19]
[null,"In nonfamily households",{"$f":"C202","v":2.3199999999999998},0.67,1.76,0.44,1.67,0.48,3.4,1.75,1.8,0.28000000000000003,1.8,0.68,2.2999999999999998,0.61,3.14,1.0900000000000001,"-","**",1.24,0.38,1.73,0.42,2.31,0.59,2.61,0.62,2.77,0.64,2.2200000000000002,0.46,1.9,0.6,1.62,0.32,2.2000000000000002,0.41,2.0499999999999998,0.47]
[]
[]
[]
[null,"B25010. AVERAGE HOUSEHOLD SIZE OF OCCUPIED HOUSING UNITS BY TENURE"]
[null,"Universe:  OCCUPIED HOUSING UNITS"]
[null,"Data Set: 2008-2012 American Community Survey 5-Year Estimates"]
[]
[null,null,"Albany",null,"Bartlett",null,"Brookfield",null,"Chatham",null,"Conway",null,"Eaton",null,"Effingham",null,"Freedom",null,"Hale's Location",null,"Hart's Location",null,"Jackson",null,"Madison",null,"Moultonborough",null,"Ossipee",null,"Sandwich",null,"Tamworth",null,"Tuftonboro",null,"Wakefield",null,"Wolfeboro"]
[null," ","Estimate","Margin of Error","Estimate","Margin of Error","Estimate","Margin of Error","Estimate","Margin of Error","Estimate","Margin of Error","Estimate","Margin of Error","Estimate","Margin of Error","Estimate","Margin of Error","Estimate","Margin of Error","Estimate","Margin of Error","Estimate","Margin of Error","Estimate","Margin of Error","Estimate","Margin of Error","Estimate","Margin of Error","Estimate","Margin of Error","Estimate","Margin of Error","Estimate","Margin of Error","Estimate","Margin of Error","Estimate","Margin of Error"]
[null,"Average household size --"]
[null,"Total:",2.59,0.25,2,0.22,2.65,0.38,2.69,0.48,2.2200000000000002,0.13,2.2200000000000002,0.24,2.5299999999999998,0.32,2.16,0.21,2.12,0.37,1.18,0.26,2.41,0.34,2.38,0.23,2.25,0.12,2.4500000000000002,0.2,2.0699999999999998,0.17,2.1,0.21,2.4,0.16,2.2799999999999998,0.22,2.39,0.16]
[null,"Owner occupied",2.64,0.31,2.0499999999999998,0.25,2.71,0.4,2.59,0.45,2.4500000000000002,0.15,2.27,0.25,2.56,0.33,2.0099999999999998,0.16,2.12,0.37,"-","**",2.56,0.37,2.4,0.23,2.2200000000000002,0.13,2.38,0.21,2.04,0.17,2.16,0.21,2.52,0.17,2.2799999999999998,0.24,2.46,0.19]
[null,"Renter occupied",2.3199999999999998,0.67,1.76,0.44,1.67,0.48,3.4,1.75,1.8,0.28000000000000003,1.8,0.68,2.2999999999999998,0.61,3.14,1.0900000000000001,"-","**",1.24,0.38,1.73,0.42,2.31,0.59,2.61,0.62,2.77,0.64,2.2200000000000002,0.46,1.9,0.6,1.62,0.32,2.2000000000000002,0.41,2.0499999999999998,0.47]

{"sheet":"ACS_Table_B19001","index":27,"n_rows":162,"n_cols":40,"rows_kept":162,"cut":false,"hidden":true,"merged":[]}
[null,"B19001. HOUSEHOLD INCOME IN THE PAST 12 MONTHS (IN 2022 INFLATION-ADJUSTED DOLLARS)"]
[null,"Universe:  HOUSEHOLDS",null,null,null,null,null,null,null,null,null,null,null,null,{"$f":"$B$1","v":"B19001. HOUSEHOLD INCOME IN THE PAST 12 MONTHS (IN 2022 INFLATION-ADJUSTED DOLLARS)"}]
[null,"Data Set: 2018-2022 American Community Survey 5-Year Estimates",null,null,null,null,null,null,null,null,null,null,null,null,{"$f":"$B$3","v":"Data Set: 2018-2022 American Community Survey 5-Year Estimates"}]
[]
[null,null,"Albany",null,"Bartlett",null,"Brookfield",null,"Chatham",null,"Conway",null,"Eaton",null,"Effingham",null,"Freedom",null,"Hale's Location",null,"Hart's Location",null,"Jackson",null,"Madison",null,"Moultonborough",null,"Ossipee",null,"Sandwich",null,"Tamworth",null,"Tuftonboro",null,"Wakefield",null,"Wolfeboro"]
[null," ","Estimate","Margin of Error","Estimate","Margin of Error","Estimate","Margin of Error","Estimate","Margin of Error","Estimate","Margin of Error","Estimate","Margin of Error","Estimate","Margin of Error","Estimate","Margin of Error","Estimate","Margin of Error","Estimate","Margin of Error","Estimate","Margin of Error","Estimate","Margin of Error","Estimate","Margin of Error","Estimate","Margin of Error","Estimate","Margin of Error","Estimate","Margin of Error","Estimate","Margin of Error","Estimate","Margin of Error","Estimate","Margin of Error"]
[null,"Total Households",343,91,1722,223,232,58,160,41,4468,345,158,37,549,65,576,78,105,41,43,32,500,96,978,100,2111,184,1677,153,930,170,987,167,1113,87,2205,225,2787,260]
[null,"Households With"]
[null,"Income Less than $10,000 ",37,27,42,68,2,4,5,7,301,173,1,3,25,19,18,16,5,8,0,12,48,62,32,24,27,25,66,61,8,9,0,12,14,21,0,17,144,122]
[null,"Income $10,000 to $14,999 ",5,5,8,16,4,5,0,12,343,216,12,12,17,17,33,48,0,12,0,12,0,12,39,27,0,12,105,66,11,10,100,73,39,30,83,78,173,138]
[null,"Income $15,000 to $19,999 ",7,11,39,54,13,13,0,12,166,124,8,8,30,27,7,8,3,4,0,12,8,12,0,12,44,30,57,77,32,19,34,55,17,17,105,117,59,74]
[null,"Income $20,000 to $24,999 ",2,4,72,73,4,6,0,12,325,153,1,2,12,11,27,22,2,4,0,12,20,19,34,34,8,12,66,48,16,14,13,20,7,11,18,27,84,59]
[null,"Income $25,000 to $29,999 ",22,34,157,93,2,3,8,8,187,98,2,4,5,8,31,16,7,7,4,7,10,16,27,25,30,29,90,68,14,10,77,64,89,56,98,109,87,57]
[null,"Income $30,000 to $34,999 ",36,28,100,97,18,24,11,16,168,164,7,10,22,14,23,22,2,3,0,12,0,12,11,9,62,48,24,28,8,7,54,57,32,25,26,30,214,150]
[null,"Income $35,000 to $39,999 ",7,7,193,153,7,6,11,10,188,131,13,14,7,9,14,11,0,12,18,24,8,12,8,12,73,60,73,58,8,13,28,32,32,29,124,99,118,110]
[null,"Income $40,000 to $44,999 ",4,4,25,38,0,12,8,10,203,109,2,3,22,16,39,22,2,3,0,12,22,28,1,4,87,74,32,31,24,17,15,23,29,28,27,30,51,46]
[null,"Income $45,000 to $49,999 ",14,14,59,71,10,13,4,5,112,75,4,4,19,15,9,13,1,3,0,12,47,55,30,19,205,135,18,24,27,28,32,45,30,23,50,68,158,132]
[null,"Income $50,000 to $59,999 ",22,20,241,164,12,10,16,13,283,141,24,16,66,34,39,31,3,4,0,12,29,24,46,32,123,69,190,110,33,19,130,92,72,66,131,84,35,40]
[null,"Income $60,000 to $74,999 ",64,64,83,76,32,21,13,10,341,143,15,9,40,23,49,24,11,10,10,17,7,11,64,38,132,65,228,93,53,23,54,41,101,42,285,128,232,115]
[null,"Income $75,000 to $99,999 ",43,25,80,63,26,12,28,17,824,275,24,14,78,38,57,21,24,30,3,5,56,36,189,74,382,137,124,85,151,71,209,93,209,89,275,138,339,124]
[null,"Income $100,000 to $124,999 ",27,18,181,128,38,18,11,7,403,148,11,10,64,32,86,32,8,9,7,11,109,57,163,52,173,79,183,72,82,34,126,87,193,100,289,108,352,190]
[null,"Income $125,000 to $149,999 ",9,8,53,62,15,9,20,12,138,73,8,8,41,18,49,25,1,2,1,3,38,30,57,36,179,83,154,71,88,58,37,26,70,37,387,249,318,171]
[null,"Income $150,000 to $199,999 ",30,16,84,89,26,15,10,8,210,110,2,2,33,16,59,25,8,9,0,12,63,35,118,77,246,105,143,110,135,85,45,70,75,48,171,120,154,78]
[null,"Income $200,000 or more ",14,10,305,149,23,14,15,11,276,120,24,12,68,39,36,21,28,18,0,12,35,28,159,73,340,94,124,84,240,147,33,31,104,58,136,78,269,135]
[]
[]
[]
[]
[null,{"$f":"\"Calculated \"&B1","v":"Calculated B19001. HOUSEHOLD INCOME IN THE PAST 12 MONTHS (IN 2022 INFLATION-ADJUSTED DOLLARS)"}]
[null,"Universe:  HOUSEHOLDS"]
[null,"Data Set: 2018-2022 American Community Survey 5-Year Estimates"]
[null,null,"Albany",null,"Bartlett",null,"Brookfield",null,"Chatham",null,"Conway",null,"Eaton",null,"Effingham",null,"Freedom",null,"Hale's Location",null,"Hart's Location",null,"Jackson",null,"Madison",null,"Moultonborough",null,"Ossipee",null,"Sandwich",null,"Tamworth",null,"Tuftonboro",null,"Wakefield",null,"Wolfeboro"]
[null," ","Estimate","Margin of Error","Estimate","Margin of Error","Estimate","Margin of Error","Estimate","Margin of Error","Estimate","Margin of Error","Estimate","Margin of Error","Estimate","Margin of Error","Estimate","Margin of Error","Estimate","Margin of Error","Estimate","Margin of Error","Estimate","Margin of Error","Estimate","Margin of Error","Estimate","Margin of Error","Estimate","Margin of Error","Estimate","Margin of Error","Estimate","Margin of Error","Estimate","Margin of Error","Estimate","Margin of Error","Estimate","Margin of Error"]
[null,"Total Households",{"$f":"$C$7","v":343},{"$f":"$D$7","v":91},{"$f":"$E$7","v":1722},{"$f":"$F$7","v":223},{"$f":"$G$7","v":232},{"$f":"$H$7","v":58},{"$f":"$I$7","v":160},{"$f":"$J$7","v":41},{"$f":"$K$7","v":4468},{"$f":"$L$7","v":345},{"$f":"$M$7","v":158},{"$f":"$N$7","v":37},{"$f":"$O$7","v":549},{"$f":"$P$7","v":65},{"$f":"$Q$7","v":576},{"$f":"R7","v":78},105,41,43,32,500,96,{"$f":"Y7","v":978},100,2111,184,1677,153,930,170,987,167,1113,87,2205,225,2787,260]
[null,"Households With"]
[null,"Income Less than $10,000 ",{"$f":"$C$9","v":37},{"$f":"$D$9","v":27},{"$f":"$E$9","v":42},{"$f":"$F$9","v":68},{"$f":"$G$9","v":2},{"$f":"$H$9","v":4},{"$f":"$I$9","v":5},{"$f":"$J$9","v":7},{"$f":"$K$9","v":301},{"$f":"$L$9","v":173},{"$f":"$M$9","v":1},{"$f":"$N$9","v":3},{"$f":"$O$9","v":25},{"$f":"$P$9","v":19},{"$f":"$Q$9","v":18},{"$f":"R9","v":16},5,8,0,12,48,62,{"$f":"Y9","v":32},24,27,25,66,61,8,9,0,12,14,21,0,17,144,122]
[null,"Income $10,000 to $14,999 ",{"$f":"$C$10","v":5},{"$f":"$D$10","v":5},{"$f":"$E$10","v":8},{"$f":"$F$10","v":16},{"$f":"$G$10","v":4},{"$f":"$H$10","v":5},{"$f":"$I$10","v":0},{"$f":"$J$10","v":12},{"$f":"$K$10","v":343},{"$f":"$L$10","v":216},{"$f":"$M$10","v":12},{"$f":"$N$10","v":12},{"$f":"$O$10","v":17},{"$f":"$P$10","v":17},{"$f":"$Q$10","v":33},48,0,12,0,12,0,12,{"$f":"Y10","v":39},27,0,12,105,66,11,10,100,73,39,30,83,78,173,138]
[null,"Income $15,000 to $24,999 ",{"$f":"$C$11+$C$12","v":9},{"$f":"SQRT(($D$11^2)+($D$12^2))","v":11.704699910719626},{"$f":"$E$11+$E$12","v":111},{"$f":"SQRT(($F$11^2)+($F$12^2))","v":90.801982357215081},{"$f":"$G$11+$G$12","v":17},{"$f":"SQRT(($H$11^2)+($H$12^2))","v":14.317821063276353},{"$f":"$I$11+$I$12","v":0},{"$f":"SQRT(($J$11^2)+($J$12^2))","v":16.970562748477139},{"$f":"$K$11+$K$12","v":491},{"$f":"SQRT(($L$11^2)+($L$12^2))","v":196.93907687404246},{"$f":"$M$11+$M$12","v":9},{"$f":"SQRT(($N$11^2)+($N$12^2))","v":8.2462112512353212},{"$f":"$O$11+$O$12","v":42},{"$f":"SQRT(($P$11^2)+($P$12^2))","v":29.154759474226502},{"$f":"Q11+Q12","v":34},{"$f":"SQRT((R11^2)+(R12^2))","v":23.409399821439251},{"$f":"S11+S12","v":5},{"$f":"SQRT((T11^2)+(T12^2))","v":5.6568542494923806},{"$f":"U11+U12","v":0},{"$f":"SQRT((V11^2)+(V12^2))","v":16.970562748477139},{"$f":"W11+W12","v":28},{"$f":"SQRT((X11^2)+(X12^2))","v":22.472205054244231},{"$f":"Y11+Y12","v":34},{"$f":"SQRT((Z11^2)+(Z12^2))","v":36.055512754639892},{"$f":"AA11+AA12","v":52},{"$f":"SQRT((AB11^2)+(AB12^2))","v":32.310988842807021},{"$f":"AC11+AC12","v":123},{"$f":"SQRT((AD11^2)+(AD12^2))","v":90.735880444287304},{"$f":"AE11+AE12","v":48},{"$f":"SQRT((AF11^2)+(AF12^2))","v":23.600847442411894},{"$f":"AG11+AG12","v":47},{"$f":"SQRT((AH11^2)+(AH12^2))","v":58.523499553598128},{"$f":"AI11+AI12","v":24},{"$f":"SQRT((AJ11^2)+(AJ12^2))","v":20.248456731316587},{"$f":"AK11+AK12","v":123},{"$f":"SQRT((AL11^2)+(AL12^2))","v":120.07497657713701},{"$f":"AM11+AM12","v":143},{"$f":"SQRT((AN11^2)+(AN12^2))","v":94.641428560646744}]
[null,"Income $25,000 to $34,999 ",{"$f":"$C$13+$C$14","v":58},{"$f":"SQRT(($D$13^2)+($D$14^2))","v":44.045431091090478},{"$f":"$E$13+$E$14","v":257},{"$f":"SQRT(($F$13^2)+($F$14^2))","v":134.38005804433931},{"$f":"$G$13+$G$14","v":20},{"$f":"SQRT(($H$13^2)+($H$14^2))","v":24.186773244895647},{"$f":"$I$13+$I$14","v":19},{"$f":"SQRT(($J$13^2)+($J$14^2))","v":17.888543819998318},{"$f":"$K$13+$K$14","v":355},{"$f":"SQRT(($L$13^2)+($L$14^2))","v":191.04973174542801},{"$f":"$M$13+$M$14","v":9},{"$f":"SQRT(($N$13^2)+($N$14^2))","v":10.770329614269007},{"$f":"$O$13+$O$14","v":27},{"$f":"SQRT(($P$13^2)+($P$14^2))","v":16.124515496597098},{"$f":"Q13+Q14","v":54},{"$f":"SQRT((R13^2)+(R14^2))","v":27.202941017470888},{"$f":"S13+S14","v":9},{"$f":"SQRT((T13^2)+(T14^2))","v":7.6157731058639087},{"$f":"U13+U14","v":4},{"$f":"SQRT((V13^2)+(V14^2))","v":13.892443989449804},{"$f":"W13+W14","v":10},{"$f":"SQRT((X13^2)+(X14^2))","v":20},{"$f":"Y13+Y14","v":38},{"$f":"SQRT((Z13^2)+(Z14^2))","v":26.570660511172846},{"$f":"AA13+AA14","v":92},{"$f":"SQRT((AB13^2)+(AB14^2))","v":56.080299571239813},{"$f":"AC13+AC14","v":114},{"$f":"SQRT((AD13^2)+(AD14^2))","v":73.53910524340094},{"$f":"AE13+AE14","v":22},{"$f":"SQRT((AF13^2)+(AF14^2))","v":12.206555615733702},{"$f":"AG13+AG14","v":131},{"$f":"SQRT((AH13^2)+(AH14^2))","v":85.702975444263316},{"$f":"AI13+AI14","v":121},{"$f":"SQRT((AJ13^2)+(AJ14^2))","v":61.326992425847855},{"$f":"AK13+AK14","v":124},{"$f":"SQRT((AL13^2)+(AL14^2))","v":113.05308487608819},{"$f":"AM13+AM14","v":301},{"$f":"SQRT((AN13^2)+(AN14^2))","v":160.46494944379597}]
[null,"Income $35,000 to $49,999 ",{"$f":"$C$15+$C$16+$C$17","v":25},{"$f":"SQRT(($D$15^2)+($D$16^2)+($D$17^2))","v":16.15549442140351},{"$f":"$E$15+$E$16+$E$17","v":277},{"$f":"SQRT(($F$15^2)+($F$16^2)+($F$17^2))","v":172.89881433948585},{"$f":"$G$15+$G$16+$G$17","v":17},{"$f":"SQRT(($H$15^2)+($H$16^2)+($H$17^2))","v":18.681541692269406},{"$f":"$I$15+$I$16+$I$17","v":23},{"$f":"SQRT(($J$15^2)+($J$16^2)+($J$17^2))","v":15},{"$f":"$K$15+$K$16+$K$17","v":503},{"$f":"SQRT(($L$15^2)+($L$16^2)+($L$17^2))","v":186.19076239169331},{"$f":"$M$15+$M$16+$M$17","v":19},{"$f":"SQRT(($N$15^2)+($N$16^2)+($N$17^2))","v":14.866068747318506},{"$f":"$O$15+$O$16+$O$17","v":48},{"$f":"SQRT(($P$15^2)+($P$16^2)+($P$17^2))","v":23.706539182259394},{"$f":"Q15+Q16+Q17","v":62},{"$f":"SQRT((R15^2)+(R16^2)+(R17^2))","v":27.820855486487112},{"$f":"S15+S16+S17","v":3},{"$f":"SQRT((T15^2)+(T16^2)+(T17^2))","v":12.727922061357855},{"$f":"U15+U16+U17","v":18},{"$f":"SQRT((V15^2)+(V16^2)+(V17^2))","v":29.393876913398138},{"$f":"W15+W16+W17","v":77},{"$f":"SQRT((X15^2)+(X16^2)+(X17^2))","v":62.872887638472598},{"$f":"Y15+Y16+Y17","v":39},{"$f":"SQRT((Z15^2)+(Z16^2)+(Z17^2))","v":22.825424421026653},{"$f":"AA15+AA16+AA17","v":365},{"$f":"SQRT((AB15^2)+(AB16^2)+(AB17^2))","v":165.23014252853503},{"$f":"AC15+AC16+AC17","v":123},{"$f":"SQRT((AD15^2)+(AD16^2)+(AD17^2))","v":70.007142492748557},{"$f":"AE15+AE16+AE17","v":59},{"$f":"SQRT((AF15^2)+(AF16^2)+(AF17^2))","v":35.242020373412188},{"$f":"AG15+AG16+AG17","v":75},{"$f":"SQRT((AH15^2)+(AH16^2)+(AH17^2))","v":59.816385714952723},{"$f":"AI15+AI16+AI17","v":91},{"$f":"SQRT((AJ15^2)+(AJ16^2)+(AJ17^2))","v":46.411205543489174},{"$f":"AK15+AK16+AK17","v":201},{"$f":"SQRT((AL15^2)+(AL16^2)+(AL17^2))","v":123.79418403139947},{"$f":"AM15+AM16+AM17","v":327},{"$f":"SQRT((AN15^2)+(AN16^2)+(AN17^2))","v":177.87636155487328}]
[null,"Income $50,000 to $74,999 ",{"$f":"$C$18+$C$19","v":86},{"$f":"SQRT(($D$18^2)+($D$19^2))","v":67.052218456960844},{"$f":"$E$18+$E$19","v":324},{"$f":"SQRT(($F$18^2)+($F$19^2))","v":180.75397644312005},{"$f":"$G$18+$G$19","v":44},{"$f":"SQRT(($H$18^2)+($H$19^2))","v":23.259406699226016},{"$f":"$I$18+$I$19","v":29},{"$f":"SQRT(($J$18^2)+($J$19^2))","v":16.401219466856727},{"$f":"$K$18+$K$19","v":624},{"$f":"SQRT(($L$18^2)+($L$19^2))","v":200.82330542046159},{"$f":"$M$18+$M$19","v":39},{"$f":"SQRT(($N$18^2)+($N$19^2))","v":18.357559750685819},{"$f":"$O$18+$O$19","v":106},{"$f":"SQRT(($P$18^2)+($P$19^2))","v":41.048751503547585},{"$f":"Q18+Q19","v":88},{"$f":"SQRT((R18^2)+(R19^2))","v":39.204591567825318},{"$f":"S18+S19","v":14},{"$f":"SQRT((T18^2)+(T19^2))","v":10.770329614269007},{"$f":"U18+U19","v":10},{"$f":"SQRT((V18^2)+(V19^2))","v":20.808652046684813},{"$f":"W18+W19","v":36},{"$f":"SQRT((X18^2)+(X19^2))","v":26.40075756488817},{"$f":"Y18+Y19","v":110},{"$f":"SQRT((Z18^2)+(Z19^2))","v":49.678969393496885},{"$f":"AA18+AA19","v":255},{"$f":"SQRT((AB18^2)+(AB19^2))","v":94.794514609232536},{"$f":"AC18+AC19","v":418},{"$f":"SQRT((AD18^2)+(AD19^2))","v":144.04513181638595},{"$f":"AE18+AE19","v":86},{"$f":"SQRT((AF18^2)+(AF19^2))","v":29.832867780352597},{"$f":"AG18+AG19","v":184},{"$f":"SQRT((AH18^2)+(AH19^2))","v":100.72239075796404},{"$f":"AI18+AI19","v":173},{"$f":"SQRT((AJ18^2)+(AJ19^2))","v":78.230428862431779},{"$f":"AK18+AK19","v":416},{"$f":"SQRT((AL18^2)+(AL19^2))","v":153.10127367203711},{"$f":"AM18+AM19","v":267},{"$f":"SQRT((AN18^2)+(AN19^2))","v":121.75795661885921}]
[null,"Income $75,000 to $99,999 ",{"$f":"$C$20","v":43},{"$f":"$D$20","v":25},{"$f":"$E$20","v":80},{"$f":"$F$20","v":63},{"$f":"$G$20","v":26},{"$f":"$H$20","v":12},{"$f":"$I$20","v":28},{"$f":"$J$20","v":17},{"$f":"$K$20","v":824},{"$f":"$L$20","v":275},{"$f":"$M$20","v":24},{"$f":"$N$20","v":14},{"$f":"$O$20","v":78},{"$f":"$P$20","v":38},{"$f":"Q20","v":57},21,24,30,3,5,56,36,{"$f":"Y20","v":189},74,382,137,124,85,151,71,209,93,209,89,275,138,339,124]
[null,"Income $100,000 to $149,999 ",{"$f":"$C$21+$C$22","v":36},{"$f":"SQRT(($D$21^2)+($D$22^2))","v":19.697715603592208},{"$f":"$E$21+$E$22","v":234},{"$f":"SQRT(($F$21^2)+($F$22^2))","v":142.22517358048822},{"$f":"$G$21+$G$22","v":53},{"$f":"SQRT(($H$21^2)+($H$22^2))","v":20.124611797498108},{"$f":"$I$21+$I$22","v":31},{"$f":"SQRT(($J$21^2)+($J$22^2))","v":13.892443989449804},{"$f":"$K$21+$K$22","v":541},{"$f":"SQRT(($L$21^2)+($L$22^2))","v":165.02424064360969},{"$f":"$M$21+$M$22","v":19},{"$f":"SQRT(($N$21^2)+($N$22^2))","v":12.806248474865697},{"$f":"$O$21+$O$22","v":105},{"$f":"SQRT(($P$21^2)+($P$22^2))","v":36.715119501371639},{"$f":"Q21+Q22","v":135},{"$f":"SQRT((R21^2)+(R22^2))","v":40.607881008493905},{"$f":"S21+S22","v":9},{"$f":"SQRT((T21^2)+(T22^2))","v":9.2195444572928871},{"$f":"U21+U22","v":8},{"$f":"SQRT((V21^2)+(V22^2))","v":11.401754250991379},{"$f":"W21+W22","v":147},{"$f":"SQRT((X21^2)+(X22^2))","v":64.41273166075166},{"$f":"Y21+Y22","v":220},{"$f":"SQRT((Z21^2)+(Z22^2))","v":63.245553203367585},{"$f":"AA21+AA22","v":352},{"$f":"SQRT((AB21^2)+(AB22^2))","v":114.58621208504974},{"$f":"AC21+AC22","v":337},{"$f":"SQRT((AD21^2)+(AD22^2))","v":101.11874208078342},{"$f":"AE21+AE22","v":170},{"$f":"SQRT((AF21^2)+(AF22^2))","v":67.230945255886439},{"$f":"AG21+AG22","v":163},{"$f":"SQRT((AH21^2)+(AH22^2))","v":90.801982357215081},{"$f":"AI21+AI22","v":263},{"$f":"SQRT((AJ21^2)+(AJ22^2))","v":106.62551289442879},{"$f":"AK21+AK22","v":676},{"$f":"SQRT((AL21^2)+(AL22^2))","v":271.41296947640507},{"$f":"AM21+AM22","v":670},{"$f":"SQRT((AN21^2)+(AN22^2))","v":255.61885689440049}]
[null,"Income $150,000 to $199,999 ",{"$f":"$C$23","v":30},{"$f":"$D$23","v":16},{"$f":"$E$23","v":84},{"$f":"$F$23","v":89},{"$f":"$G$23","v":26},{"$f":"$H$23","v":15},{"$f":"$I$23","v":10},{"$f":"$J$23","v":8},{"$f":"$K$23","v":210},{"$f":"$L$23","v":110},{"$f":"$M$23","v":2},{"$f":"$N$23","v":2},{"$f":"$O$23","v":33},{"$f":"$P$23","v":16},{"$f":"Q23","v":59},25,8,9,0,12,63,35,{"$f":"Y23","v":118},77,246,105,143,110,135,85,45,70,75,48,171,120,154,78]
[null,"Income $200,000 or more ",{"$f":"$C$24","v":14},{"$f":"$D$24","v":10},{"$f":"$E$24","v":305},{"$f":"$F$24","v":149},{"$f":"$G$24","v":23},{"$f":"$H$24","v":14},{"$f":"$I$24","v":15},{"$f":"$J$24","v":11},{"$f":"$K$24","v":276},{"$f":"$L$24","v":120},{"$f":"$M$24","v":24},{"$f":"$N$24","v":12},{"$f":"$O$24","v":68},{"$f":"$P$24","v":39},36,21,28,18,0,12,35,28,{"$f":"Y24","v":159},73,340,94,124,84,240,147,33,31,104,58,136,78,269,135]
[]
[]
[]
[]
[]
[]
[]
[]
[]
[]
[]
[]
[]
[]
[]
[]
[]
[]
[]
[]
[]
[]
[]
[]
[null,"B19001. HOUSEHOLD INCOME IN THE PAST 12 MONTHS (IN 2017 INFLATION-ADJUSTED DOLLARS)",null,null,null,null,null,null,null,null,null,null,null,null,{"$f":"B70","v":"B19001. HOUSEHOLD INCOME IN THE PAST 12 MONTHS (IN 2017 INFLATION-ADJUSTED DOLLARS)"}]
[null,"Universe:  HOUSEHOLDS",null,null,null,null,null,null,null,null,null,null,null,null,{"$f":"$B$3","v":"Data Set: 2018-2022 American Community Survey 5-Year Estimates"}]
[null,"Data Set: 2013-2017 American Community Survey 5-Year Estimates"]
[]
[null,null,"Albany",null,"Bartlett",null,"Brookfield",null,"Chatham",null,"Conway",null,"Eaton",null,"Effingham",null,"Freedom",null,"Hale's Location",null,"Hart's Location",null,"Jackson",null,"Madison",null,"Moultonborough",null,"Ossipee",null,"Sandwich",null,"Tamworth",null,"Tuftonboro",null,"Wakefield",null,"Wolfeboro"]
[null," ","Estimate","Margin of Error","Estimate","Margin of Error","Estimate","Margin of Error","Estimate","Margin of Error","Estimate","Margin of Error","Estimate","Margin of Error","Estimate","Margin of Error","Estimate","Margin of Error","Estimate","Margin of Error","Estimate","Margin of Error","Estimate","Margin of Error","Estimate","Margin of Error","Estimate","Margin of Error","Estimate","Margin of Error","Estimate","Margin of Error","Estimate","Margin of Error","Estimate","Margin of Error","Estimate","Margin of Error","Estimate","Margin of Error"]
[null,"Total Households",312,44,1408,164,326,77,142,36,4346,208,169,38,602,72,587,74,79,24,26,16,455,89,1069,85,1758,102,1962,185,617,73,1378,137,966,103,2066,185,2935,210]
[null,"Households With"]
[null,"Income Less than $10,000 ",11,8,104,77,3,5,6,7,187,115,2,3,25,21,32,25,0,11,0,11,19,25,33,37,45,35,104,92,14,11,117,91,85,50,50,47,54,65]
[null,"Income $10,000 to $14,999 ",19,15,35,41,2,3,3,4,193,91,8,7,11,8,21,13,0,11,0,11,2,5,59,48,41,53,147,108,3,6,101,95,21,26,146,120,221,157]
[null,"Income $15,000 to $19,999 ",23,17,120,86,6,7,5,5,137,80,6,6,58,36,7,8,2,5,4,6,28,26,17,14,116,65,166,76,23,19,66,70,56,37,79,67,83,85]
[null,"Income $20,000 to $24,999 ",18,15,51,49,9,14,2,5,218,97,7,7,25,16,34,23,6,6,0,11,14,14,67,46,64,57,165,89,30,21,56,67,39,26,98,88,195,141]
[null,"Income $25,000 to $29,999 ",21,17,28,24,16,17,11,16,235,120,3,4,42,25,11,11,0,11,2,3,8,14,27,27,73,54,120,82,28,19,131,97,85,45,66,57,166,126]
[null,"Income $30,000 to $34,999 ",4,5,118,71,3,6,3,6,247,108,2,3,48,24,43,23,6,5,0,11,12,13,35,31,6,10,150,99,22,18,75,60,6,8,79,92,249,125]
[null,"Income $35,000 to $39,999 ",17,12,65,58,15,15,7,7,153,74,7,6,32,23,33,20,5,5,0,11,29,26,66,48,25,30,38,30,32,22,56,67,22,17,106,100,149,104]
[null,"Income $40,000 to $44,999 ",22,22,115,79,5,7,6,6,175,98,5,6,16,11,30,20,1,4,3,6,38,27,23,19,22,19,28,30,15,10,0,11,58,40,144,99,183,139]
[null,"Income $45,000 to $49,999 ",6,6,66,57,21,17,8,9,287,147,7,11,44,21,30,21,0,11,0,11,3,5,56,44,72,42,93,48,58,35,32,28,40,36,68,47,149,111]
[null,"Income $50,000 to $59,999 ",19,12,122,71,25,15,18,15,351,150,16,11,47,24,60,28,13,10,0,11,52,39,158,67,152,70,134,63,74,26,159,100,76,43,241,153,163,97]
[null,"Income $60,000 to $74,999 ",27,16,132,78,41,24,17,11,619,199,39,20,73,33,55,27,10,8,5,6,37,24,118,48,269,97,267,107,33,17,215,110,129,51,326,132,171,74]
[null,"Income $75,000 to $99,999 ",30,14,255,114,55,33,23,11,606,207,24,15,73,27,97,28,12,7,5,8,57,40,127,48,211,74,261,121,108,32,76,65,158,50,173,83,242,111]
[null,"Income $100,000 to $124,999 ",52,23,51,56,36,15,4,5,487,189,24,15,42,19,70,29,6,6,7,8,66,38,73,44,236,71,91,71,67,31,124,97,73,41,203,116,345,161]
[null,"Income $125,000 to $149,999 ",21,18,50,51,50,25,7,7,179,100,6,7,15,10,10,10,0,11,0,11,20,27,126,54,82,54,73,42,47,24,58,51,51,36,116,96,147,100]
[null,"Income $150,000 to $199,999 ",14,13,23,36,16,12,10,7,194,93,2,4,31,26,20,17,3,4,0,11,32,29,14,15,59,33,109,88,19,12,63,64,39,29,111,75,200,108]
[null,"Income $200,000 or more ",8,6,73,69,23,28,12,8,78,50,11,14,20,17,34,17,15,10,0,11,38,23,70,39,285,82,16,20,44,30,49,43,28,17,60,62,218,132]
[]
[]
[]
[]
[null,{"$f":"\"Calculated \"&B70","v":"Calculated B19001. HOUSEHOLD INCOME IN THE PAST 12 MONTHS (IN 2017 INFLATION-ADJUSTED DOLLARS)"}]
[null,"Universe:  HOUSEHOLDS"]
[null,{"$f":"B72","v":"Data Set: 2013-2017 American Community Survey 5-Year Estimates"}]
[null,null,"Albany",null,"Bartlett",null,"Brookfield",null,"Chatham",null,"Conway",null,"Eaton",null,"Effingham",null,"Freedom",null,"Hale's Location",null,"Hart's Location",null,"Jackson",null,"Madison",null,"Moultonborough",null,"Ossipee",null,"Sandwich",null,"Tamworth",null,"Tuftonboro",null,"Wakefield",null,"Wolfeboro"]
[null," ","Estimate","Margin of Error","Estimate","Margin of Error","Estimate","Margin of Error","Estimate","Margin of Error","Estimate","Margin of Error","Estimate","Margin of Error","Estimate","Margin of Error","Estimate","Margin of Error","Estimate","Margin of Error","Estimate","Margin of Error","Estimate","Margin of Error","Estimate","Margin of Error","Estimate","Margin of Error","Estimate","Margin of Error","Estimate","Margin of Error","Estimate","Margin of Error","Estimate","Margin of Error","Estimate","Margin of Error","Estimate","Margin of Error"]
[null,"Total Households",{"$f":"C76","v":312},44,1408,164,326,77,142,36,4346,208,169,38,602,72,587,{"$f":"R76","v":74},79,24,26,16,455,89,1069,85,1758,102,1962,185,617,73,1378,137,966,103,{"$f":"AK76","v":2066},{"$f":"AL76","v":185},{"$f":"AM76","v":2935},{"$f":"AN76","v":210}]
[null,"Households With"]
[null,"Income Less than $10,000 ",{"$f":"C78","v":11},8,104,77,3,5,6,7,187,115,2,3,25,21,32,{"$f":"R78","v":25},0,11,0,11,19,25,33,37,45,35,104,92,14,11,117,91,85,50,{"$f":"AK78","v":50},47,54,65]
[null,"Income $10,000 to $14,999 ",{"$f":"C79","v":19},15,35,41,2,3,3,4,193,91,8,7,11,8,21,13,0,11,0,11,2,5,59,48,41,53,147,108,3,6,101,95,21,26,146,120,221,157]
[null,"Income $15,000 to $24,999 ",{"$f":"C80+C81","v":41},{"$f":"SQRT((D80^2)+(D81^2))","v":22.671568097509269},{"$f":"E80+E81","v":171},{"$f":"SQRT((F80^2)+(F81^2))","v":98.979795918156952},{"$f":"G80+G81","v":15},{"$f":"SQRT((H80^2)+(H81^2))","v":15.652475842498529},{"$f":"I80+I81","v":7},{"$f":"SQRT((J80^2)+(J81^2))","v":7.0710678118654755},{"$f":"K80+K81","v":355},{"$f":"SQRT((L80^2)+(L81^2))","v":125.73384588089239},{"$f":"M80+M81","v":13},{"$f":"SQRT((N80^2)+(N81^2))","v":9.2195444572928871},{"$f":"O80+O81","v":83},{"$f":"SQRT((P80^2)+(P81^2))","v":39.395431207184416},{"$f":"Q80+Q81","v":41},{"$f":"SQRT((R80^2)+(R81^2))","v":24.351591323771842},{"$f":"S80+S81","v":8},{"$f":"SQRT((T80^2)+(T81^2))","v":7.810249675906654},{"$f":"U80+U81","v":4},{"$f":"SQRT((V80^2)+(V81^2))","v":12.529964086141668},{"$f":"W80+W81","v":42},{"$f":"SQRT((X80^2)+(X81^2))","v":29.529646120466801},{"$f":"Y80+Y81","v":84},{"$f":"SQRT((Z80^2)+(Z81^2))","v":48.083261120685229},{"$f":"AA80+AA81","v":180},{"$f":"SQRT((AB80^2)+(AB81^2))","v":86.452298986203942},{"$f":"AC80+AC81","v":331},{"$f":"SQRT((AD80^2)+(AD81^2))","v":117.03418304068261},{"$f":"AE80+AE81","v":53},{"$f":"SQRT((AF80^2)+(AF81^2))","v":28.319604517012593},{"$f":"AG80+AG81","v":122},{"$f":"SQRT((AH80^2)+(AH81^2))","v":96.896852374058057},{"$f":"AI80+AI81","v":95},{"$f":"SQRT((AJ80^2)+(AJ81^2))","v":45.221676218380054},{"$f":"AK80+AK81","v":177},{"$f":"SQRT((AL80^2)+(AL81^2))","v":110.60289327137876},{"$f":"AM80+AM81","v":278},{"$f":"SQRT((AN80^2)+(AN81^2))","v":164.63899902513984}]
[null,"Income $25,000 to $34,999 ",{"$f":"C82+C83","v":25},{"$f":"SQRT((D82^2)+(D83^2))","v":17.720045146669349},{"$f":"E82+E83","v":146},{"$f":"SQRT((F82^2)+(F83^2))","v":74.94664769020693},{"$f":"G82+G83","v":19},{"$f":"SQRT((H82^2)+(H83^2))","v":18.027756377319946},{"$f":"I82+I83","v":14},{"$f":"SQRT((J82^2)+(J83^2))","v":17.088007490635061},{"$f":"K82+K83","v":482},{"$f":"SQRT((L82^2)+(L83^2))","v":161.44348856488452},{"$f":"M82+M83","v":5},{"$f":"SQRT((N82^2)+(N83^2))","v":5},{"$f":"O82+O83","v":90},{"$f":"SQRT((P82^2)+(P83^2))","v":34.655446902326915},{"$f":"Q82+Q83","v":54},{"$f":"SQRT((R82^2)+(R83^2))","v":25.495097567963924},{"$f":"S82+S83","v":6},{"$f":"SQRT((T82^2)+(T83^2))","v":12.083045973594572},{"$f":"U82+U83","v":2},{"$f":"SQRT((V82^2)+(V83^2))","v":11.401754250991379},{"$f":"W82+W83","v":20},{"$f":"SQRT((X82^2)+(X83^2))","v":19.104973174542799},{"$f":"Y82+Y83","v":62},{"$f":"SQRT((Z82^2)+(Z83^2))","v":41.109609582188931},{"$f":"AA82+AA83","v":79},{"$f":"SQRT((AB82^2)+(AB83^2))","v":54.918120870983927},{"$f":"AC82+AC83","v":270},{"$f":"SQRT((AD82^2)+(AD83^2))","v":128.54960132182441},{"$f":"AE82+AE83","v":50},{"$f":"SQRT((AF82^2)+(AF83^2))","v":26.172504656604801},{"$f":"AG82+AG83","v":206},{"$f":"SQRT((AH82^2)+(AH83^2))","v":114.05700329221349},{"$f":"AI82+AI83","v":91},{"$f":"SQRT((AJ82^2)+(AJ83^2))","v":45.705579528105758},{"$f":"AK82+AK83","v":145},{"$f":"SQRT((AL82^2)+(AL83^2))","v":108.22661410207751},{"$f":"AM82+AM83","v":415},{"$f":"SQRT((AN82^2)+(AN83^2))","v":177.48521065147935}]
[null,"Income $35,000 to $49,999 ",{"$f":"C84+C85+C86","v":45},{"$f":"SQRT((D84^2)+(D85^2)+(D86^2))","v":25.768197453450252},{"$f":"E84+E85+E86","v":246},{"$f":"SQRT((F84^2)+(F85^2)+(F86^2))","v":113.37548235840057},{"$f":"G84+G85+G86","v":41},{"$f":"SQRT((H84^2)+(H85^2)+(H86^2))","v":23.727621035409346},{"$f":"I84+I85+I86","v":21},{"$f":"SQRT((J84^2)+(J85^2)+(J86^2))","v":12.884098726725126},{"$f":"K84+K85+K86","v":615},{"$f":"SQRT((L84^2)+(L85^2)+(L86^2))","v":191.54372868877749},{"$f":"M84+M85+M86","v":19},{"$f":"SQRT((N84^2)+(N85^2)+(N86^2))","v":13.892443989449804},{"$f":"O84+O85+O86","v":92},{"$f":"SQRT((P84^2)+(P85^2)+(P86^2))","v":33.030289129827487},{"$f":"Q84+Q85+Q86","v":93},{"$f":"SQRT((R84^2)+(R85^2)+(R86^2))","v":35.227829907617071},{"$f":"S84+S85+S86","v":6},{"$f":"SQRT((T84^2)+(T85^2)+(T86^2))","v":12.727922061357855},{"$f":"U84+U85+U86","v":3},{"$f":"SQRT((V84^2)+(V85^2)+(V86^2))","v":16.673332000533065},{"$f":"W84+W85+W86","v":70},{"$f":"SQRT((X84^2)+(X85^2)+(X86^2))","v":37.815340802378074},{"$f":"Y84+Y85+Y86","v":145},{"$f":"SQRT((Z84^2)+(Z85^2)+(Z86^2))","v":67.830671528446487},{"$f":"AA84+AA85+AA86","v":119},{"$f":"SQRT((AB84^2)+(AB85^2)+(AB86^2))","v":55},{"$f":"AC84+AC85+AC86","v":159},{"$f":"SQRT((AD84^2)+(AD85^2)+(AD86^2))","v":64.06246951218786},{"$f":"AE84+AE85+AE86","v":105},{"$f":"SQRT((AF84^2)+(AF85^2)+(AF86^2))","v":42.532340636273474},{"$f":"AG84+AG85+AG86","v":88},{"$f":"SQRT((AH84^2)+(AH85^2)+(AH86^2))","v":73.443856107914158},{"$f":"AI84+AI85+AI86","v":120},{"$f":"SQRT((AJ84^2)+(AJ85^2)+(AJ86^2))","v":56.435804238089851},{"$f":"AK84+AK85+AK86","v":318},{"$f":"SQRT((AL84^2)+(AL85^2)+(AL86^2))","v":148.35767590522573},{"$f":"AM84+AM85+AM86","v":481},{"$f":"SQRT((AN84^2)+(AN85^2)+(AN86^2))","v":206.05339113928702}]
[null,"Income $50,000 to $74,999 ",{"$f":"C87+C88","v":46},{"$f":"SQRT((D87^2)+(D88^2))","v":20},{"$f":"E87+E88","v":254},{"$f":"SQRT((F87^2)+(F88^2))","v":105.47511554864494},{"$f":"G87+G88","v":66},{"$f":"SQRT((H87^2)+(H88^2))","v":28.301943396169811},{"$f":"I87+I88","v":35},{"$f":"SQRT((J87^2)+(J88^2))","v":18.601075237738275},{"$f":"K87+K88","v":970},{"$f":"SQRT((L87^2)+(L88^2))","v":249.20072231034965},{"$f":"M87+M88","v":55},{"$f":"SQRT((N87^2)+(N88^2))","v":22.825424421026653},{"$f":"O87+O88","v":120},{"$f":"SQRT((P87^2)+(P88^2))","v":40.80441152620633},{"$f":"Q87+Q88","v":115},{"$f":"SQRT((R87^2)+(R88^2))","v":38.897300677553446},{"$f":"S87+S88","v":23},{"$f":"SQRT((T87^2)+(T88^2))","v":12.806248474865697},{"$f":"U87+U88","v":5},{"$f":"SQRT((V87^2)+(V88^2))","v":12.529964086141668},{"$f":"W87+W88","v":89},{"$f":"SQRT((X87^2)+(X88^2))","v":45.793012567421243},{"$f":"Y87+Y88","v":276},{"$f":"SQRT((Z87^2)+(Z88^2))","v":82.419657849326214},{"$f":"AA87+AA88","v":421},{"$f":"SQRT((AB87^2)+(AB88^2))","v":119.6202324023825},{"$f":"AC87+AC88","v":401},{"$f":"SQRT((AD87^2)+(AD88^2))","v":124.16923934694937},{"$f":"AE87+AE88","v":107},{"$f":"SQRT((AF87^2)+(AF88^2))","v":31.064449134018133},{"$f":"AG87+AG88","v":374},{"$f":"SQRT((AH87^2)+(AH88^2))","v":148.66068747318505},{"$f":"AI87+AI88","v":205},{"$f":"SQRT((AJ87^2)+(AJ88^2))","v":66.708320320631671},{"$f":"AK87+AK88","v":567},{"$f":"SQRT((AL87^2)+(AL88^2))","v":202.07176942858692},{"$f":"AM87+AM88","v":334},{"$f":"SQRT((AN87^2)+(AN88^2))","v":122.00409829181969}]
[null,"Income $75,000 to $99,999 ",{"$f":"C89","v":30},14,255,114,55,33,23,11,606,207,24,15,73,27,{"$f":"Q89","v":97},28,12,7,5,8,57,40,127,48,211,74,261,121,108,32,76,65,158,50,{"$f":"AK89","v":173},{"$f":"AL89","v":83},{"$f":"AM89","v":242},{"$f":"AN89","v":111}]
[null,"Income $100,000 to $149,999 ",{"$f":"C90+C91","v":73},{"$f":"SQRT((D90^2)+(D91^2))","v":29.206163733020468},{"$f":"E90+E91","v":101},{"$f":"SQRT((F90^2)+(F91^2))","v":75.742986473996396},{"$f":"G90+G91","v":86},{"$f":"SQRT((H90^2)+(H91^2))","v":29.154759474226502},{"$f":"I90+I91","v":11},{"$f":"SQRT((J90^2)+(J91^2))","v":8.6023252670426267},{"$f":"K90+K91","v":666},{"$f":"SQRT((L90^2)+(L91^2))","v":213.82469455140114},{"$f":"M90+M91","v":30},{"$f":"SQRT((N90^2)+(N91^2))","v":16.552945357246848},{"$f":"O90+O91","v":57},{"$f":"SQRT((P90^2)+(P91^2))","v":21.470910553583888},{"$f":"Q90+Q91","v":80},{"$f":"SQRT((R90^2)+(R91^2))","v":30.675723300355934},{"$f":"S90+S91","v":6},{"$f":"SQRT((T90^2)+(T91^2))","v":12.529964086141668},{"$f":"U90+U91","v":7},{"$f":"SQRT((V90^2)+(V91^2))","v":13.601470508735444},{"$f":"W90+W91","v":86},{"$f":"SQRT((X90^2)+(X91^2))","v":46.61544808322666},{"$f":"Y90+Y91","v":199},{"$f":"SQRT((Z90^2)+(Z91^2))","v":69.656299069071991},{"$f":"AA90+AA91","v":318},{"$f":"SQRT((AB90^2)+(AB91^2))","v":89.202017914394744},{"$f":"AC90+AC91","v":164},{"$f":"SQRT((AD90^2)+(AD91^2))","v":82.492423894561369},{"$f":"AE90+AE91","v":114},{"$f":"SQRT((AF90^2)+(AF91^2))","v":39.204591567825318},{"$f":"AG90+AG91","v":182},{"$f":"SQRT((AH90^2)+(AH91^2))","v":109.59014554237986},{"$f":"AI90+AI91","v":124},{"$f":"SQRT((AJ90^2)+(AJ91^2))","v":54.561891462814962},{"$f":"AK90+AK91","v":319},{"$f":"SQRT((AL90^2)+(AL91^2))","v":150.57224179774968},{"$f":"AM90+AM91","v":492},{"$f":"SQRT((AN90^2)+(AN91^2))","v":189.52836199366047}]
[null,"Income $150,000 to $199,999 ",{"$f":"C92","v":14},13,23,36,16,12,10,7,194,93,2,4,31,26,{"$f":"Q92","v":20},17,3,4,0,11,32,29,14,15,59,33,109,88,19,12,63,64,39,29,{"$f":"AK92","v":111},75,200,108]
[null,"Income $200,000 or more ",{"$f":"C93","v":8},6,73,69,23,28,12,8,78,50,11,14,20,17,34,17,15,10,0,11,38,23,70,39,285,82,16,20,44,30,49,43,28,17,60,62,218,132]
[]
[]
[]
[null,"B19001. HOUSEHOLD INCOME IN THE PAST 12 MONTHS (IN 2012 INFLATION-ADJUSTED DOLLARS)",null,null,null,null,null,null,null,null,null,null,null,null,{"$f":"B118","v":"B19001. HOUSEHOLD INCOME IN THE PAST 12 MONTHS (IN 2012 INFLATION-ADJUSTED DOLLARS)"}]
[null,"Universe:  HOUSEHOLDS",null,null,null,null,null,null,null,null,null,null,null,null,{"$f":"B120","v":"Data Set: 2008-2012 American Community Survey 5-Year Estimates"}]
[null,"Data Set: 2008-2012 American Community Survey 5-Year Estimates"]
[]
[null,null,"Albany",null,"Bartlett",null,"Brookfield",null,"Chatham",null,"Conway",null,"Eaton",null,"Effingham",null,"Freedom",null,"Hale's Location",null,"Hart's Location",null,"Jackson",null,"Madison",null,"Moultonborough",null,"Ossipee",null,"Sandwich",null,"Tamworth",null,"Tuftonboro",null,"Wakefield",null,"Wolfeboro"]
[null," ","Estimate","Margin of Error","Estimate","Margin of Error","Estimate","Margin of Error","Estimate","Margin of Error","Estimate","Margin of Error","Estimate","Margin of Error","Estimate","Margin of Error","Estimate","Margin of Error","Estimate","Margin of Error","Estimate","Margin of Error","Estimate","Margin of Error","Estimate","Margin of Error","Estimate","Margin of Error","Estimate","Margin of Error","Estimate","Margin of Error","Estimate","Margin of Error","Estimate","Margin of Error","Estimate","Margin of Error","Estimate","Margin of Error"]
[null,"Total Households",338,61,1381,148,257,57,166,46,4452,262,176,34,495,68,554,65,52,13,28,19,407,80,1044,102,1793,98,1697,144,592,81,1353,138,1041,115,2216,215,2590,178]
[null,"Households With"]
[null,"Income Less than $10,000 ",8,7,78,68,11,10,26,25,381,160,3,4,39,25,20,12,3,5,0,11,19,25,0,11,92,61,144,87,31,19,63,42,19,18,116,67,81,59]
[null,"Income $10,000 to $14,999 ",13,10,46,43,8,8,9,9,320,144,8,9,41,27,22,14,0,11,0,11,10,11,15,13,14,17,210,96,14,11,129,91,0,11,99,59,150,107]
[null,"Income $15,000 to $19,999 ",50,30,16,24,6,11,8,8,170,96,4,6,24,20,27,17,0,11,0,11,0,11,27,22,30,28,97,47,16,15,95,65,14,13,161,114,34,31]
[null,"Income $20,000 to $24,999 ",23,22,47,44,5,7,7,8,254,146,13,11,25,14,23,14,0,11,9,11,41,25,19,21,18,21,64,38,44,27,63,48,60,42,159,108,73,78]
[null,"Income $25,000 to $29,999 ",2,3,72,42,17,19,8,13,300,165,13,12,13,9,55,27,1,2,0,11,6,11,60,45,61,47,102,72,32,23,82,50,73,51,183,119,72,74]
[null,"Income $30,000 to $34,999 ",5,5,99,76,22,16,2,3,294,123,1,3,35,19,53,33,0,11,7,9,17,19,80,60,60,37,68,56,30,20,165,104,40,39,164,135,103,73]
[null,"Income $35,000 to $39,999 ",13,10,176,90,4,6,9,10,230,119,6,7,14,10,70,34,4,4,0,11,27,21,87,49,87,64,61,59,22,13,61,39,20,18,71,56,194,117]
[null,"Income $40,000 to $44,999 ",18,14,151,97,21,19,7,8,253,127,12,10,33,16,22,15,2,4,8,12,8,13,80,50,140,82,79,45,20,14,48,39,89,51,139,85,117,70]
[null,"Income $45,000 to $49,999 ",0,11,110,77,9,8,8,9,258,115,14,12,34,21,47,30,3,4,0,11,17,13,89,50,96,77,114,74,41,22,54,70,56,34,191,103,196,115]
[null,"Income $50,000 to $59,999 ",33,27,176,92,12,9,18,12,434,174,26,14,60,29,47,21,8,8,0,11,33,26,81,51,169,69,150,81,66,28,206,67,146,70,255,114,106,62]
[null,"Income $60,000 to $74,999 ",44,25,97,68,45,27,18,15,460,173,13,11,65,29,44,22,11,8,2,4,61,38,136,76,277,92,270,93,72,29,115,47,228,85,222,106,400,145]
[null,"Income $75,000 to $99,999 ",68,36,115,76,38,19,29,20,535,173,33,15,67,29,53,22,8,7,2,3,20,15,154,61,202,79,236,82,83,28,123,71,166,70,167,82,379,140]
[null,"Income $100,000 to $124,999 ",16,14,76,69,16,12,7,12,245,117,6,7,35,22,42,21,6,5,0,11,64,36,96,52,144,73,64,45,38,16,30,23,38,28,139,79,333,150]
[null,"Income $125,000 to $149,999 ",17,13,53,53,8,9,1,3,91,71,8,7,0,11,14,10,1,4,0,11,19,18,58,38,186,85,17,19,35,21,37,36,17,17,55,44,95,71]
[null,"Income $150,000 to $199,999 ",13,16,43,50,21,18,3,6,196,93,5,6,7,7,4,5,0,11,0,11,19,21,26,20,113,64,21,27,32,18,16,17,39,35,44,45,90,75]
[null,"Income $200,000 or more ",15,16,26,28,14,12,6,8,31,28,11,14,3,4,11,16,5,5,0,11,46,29,36,40,104,59,0,11,16,12,66,54,36,22,51,50,167,91]
[]
[]
[]
[]
[null,{"$f":"\"Calculated \"&B118","v":"Calculated B19001. HOUSEHOLD INCOME IN THE PAST 12 MONTHS (IN 2012 INFLATION-ADJUSTED DOLLARS)"}]
[null,"Universe:  HOUSEHOLDS"]
[null,{"$f":"B120","v":"Data Set: 2008-2012 American Community Survey 5-Year Estimates"}]
[null,null,"Albany",null,"Bartlett",null,"Brookfield",null,"Chatham",null,"Conway",null,"Eaton",null,"Effingham",null,"Freedom",null,"Hale's Location",null,"Hart's Location",null,"Jackson",null,"Madison",null,"Moultonborough",null,"Ossipee",null,"Sandwich",null,"Tamworth",null,"Tuftonboro",null,"Wakefield",null,"Wolfeboro"]
[null," ","Estimate","Margin of Error","Estimate","Margin of Error","Estimate","Margin of Error","Estimate","Margin of Error","Estimate","Margin of Error","Estimate","Margin of Error","Estimate","Margin of Error","Estimate","Margin of Error","Estimate","Margin of Error","Estimate","Margin of Error","Estimate","Margin of Error","Estimate","Margin of Error","Estimate","Margin of Error","Estimate","Margin of Error","Estimate","Margin of Error","Estimate","Margin of Error","Estimate","Margin of Error","Estimate","Margin of Error","Estimate","Margin of Error"]
[null,"Total Households",{"$f":"C124","v":338},61,1381,148,257,57,166,46,4452,262,176,34,495,68,554,{"$f":"R124","v":65},52,13,28,19,407,80,1044,102,1793,98,1697,144,592,81,1353,138,1041,115,2029,194,2704,231]
[null,"Households With"]
[null,"Income Less than $10,000 ",{"$f":"C126","v":8},7,78,68,11,10,26,25,381,160,3,4,39,25,20,{"$f":"R126","v":12},3,5,0,11,19,25,0,11,92,61,144,87,31,19,63,42,19,18,155,85,161,144]
[null,"Income $10,000 to $14,999 ",{"$f":"C127","v":13},10,46,43,8,8,9,9,320,144,8,9,41,27,22,14,0,11,0,11,10,11,15,13,14,17,210,96,14,11,129,91,0,11,113,81,211,120]
[null,"Income $15,000 to $24,999 ",{"$f":"C128+C129","v":73},{"$f":"SQRT((D128^2)+(D129^2))","v":37.20215047547655},{"$f":"E128+E129","v":63},{"$f":"SQRT((F128^2)+(F129^2))","v":50.119856344566671},{"$f":"G128+G129","v":11},{"$f":"SQRT((H128^2)+(H129^2))","v":13.038404810405298},{"$f":"I128+I129","v":15},{"$f":"SQRT((J128^2)+(J129^2))","v":11.313708498984761},{"$f":"K128+K129","v":424},{"$f":"SQRT((L128^2)+(L129^2))","v":174.73408368146153},{"$f":"M128+M129","v":17},{"$f":"SQRT((N128^2)+(N129^2))","v":12.529964086141668},{"$f":"O128+O129","v":49},{"$f":"SQRT((P128^2)+(P129^2))","v":24.413111231467404},{"$f":"Q128+Q129","v":50},{"$f":"SQRT((R128^2)+(R129^2))","v":22.022715545545239},{"$f":"S128+S129","v":0},{"$f":"SQRT((T128^2)+(T129^2))","v":15.556349186104045},{"$f":"U128+U129","v":9},{"$f":"SQRT((V128^2)+(V129^2))","v":15.556349186104045},{"$f":"W128+W129","v":41},{"$f":"SQRT((X128^2)+(X129^2))","v":27.313000567495326},{"$f":"Y128+Y129","v":46},{"$f":"SQRT((Z128^2)+(Z129^2))","v":30.413812651491099},{"$f":"AA128+AA129","v":48},{"$f":"SQRT((AB128^2)+(AB129^2))","v":35},{"$f":"AC128+AC129","v":161},{"$f":"SQRT((AD128^2)+(AD129^2))","v":60.440052945046304},{"$f":"AE128+AE129","v":60},{"$f":"SQRT((AF128^2)+(AF129^2))","v":30.886890422961002},{"$f":"AG128+AG129","v":158},{"$f":"SQRT((AH128^2)+(AH129^2))","v":80.802227692063042},{"$f":"AI128+AI129","v":74},{"$f":"SQRT((AJ128^2)+(AJ129^2))","v":43.965895873961216},309,160.11246047700348,147,91.438503924769023]
[null,"Income $25,000 to $34,999 ",{"$f":"C130+C131","v":7},{"$f":"SQRT((D130^2)+(D131^2))","v":5.8309518948453007},{"$f":"E130+E131","v":171},{"$f":"SQRT((F130^2)+(F131^2))","v":86.833173384369644},{"$f":"G130+G131","v":39},{"$f":"SQRT((H130^2)+(H131^2))","v":24.839484696748443},{"$f":"I130+I131","v":10},{"$f":"SQRT((J130^2)+(J131^2))","v":13.341664064126334},{"$f":"K130+K131","v":594},{"$f":"SQRT((L130^2)+(L131^2))","v":205.80087463370995},{"$f":"M130+M131","v":14},{"$f":"SQRT((N130^2)+(N131^2))","v":12.369316876852981},{"$f":"O130+O131","v":48},{"$f":"SQRT((P130^2)+(P131^2))","v":21.023796041628639},{"$f":"Q130+Q131","v":108},{"$f":"SQRT((R130^2)+(R131^2))","v":42.638011210655684},{"$f":"S130+S131","v":1},{"$f":"SQRT((T130^2)+(T131^2))","v":11.180339887498949},{"$f":"U130+U131","v":7},{"$f":"SQRT((V130^2)+(V131^2))","v":14.212670403551895},{"$f":"W130+W131","v":23},{"$f":"SQRT((X130^2)+(X131^2))","v":21.95449840010015},{"$f":"Y130+Y131","v":140},{"$f":"SQRT((Z130^2)+(Z131^2))","v":75},{"$f":"AA130+AA131","v":121},{"$f":"SQRT((AB130^2)+(AB131^2))","v":59.816385714952723},{"$f":"AC130+AC131","v":170},{"$f":"SQRT((AD130^2)+(AD131^2))","v":91.214034007931033},{"$f":"AE130+AE131","v":62},{"$f":"SQRT((AF130^2)+(AF131^2))","v":30.479501308256342},{"$f":"AG130+AG131","v":247},{"$f":"SQRT((AH130^2)+(AH131^2))","v":115.39497389401325},{"$f":"AI130+AI131","v":113},{"$f":"SQRT((AJ130^2)+(AJ131^2))","v":64.202803677098089},185,111.51681487560519,384,175.41379649275024]
[null,"Income $35,000 to $49,999 ",{"$f":"C132+C133+C134","v":31},{"$f":"SQRT((D132^2)+(D133^2)+(D134^2))","v":20.420577856662138},{"$f":"E132+E133+E134","v":437},{"$f":"SQRT((F132^2)+(F133^2)+(F134^2))","v":153.09474190840129},{"$f":"G132+G133+G134","v":34},{"$f":"SQRT((H132^2)+(H133^2)+(H134^2))","v":21.470910553583888},{"$f":"I132+I133+I134","v":24},{"$f":"SQRT((J132^2)+(J133^2)+(J134^2))","v":15.652475842498529},{"$f":"K132+K133+K134","v":741},{"$f":"SQRT((L132^2)+(L133^2)+(L134^2))","v":208.60249279430963},{"$f":"M132+M133+M134","v":32},{"$f":"SQRT((N132^2)+(N133^2)+(N134^2))","v":17.11724276862369},{"$f":"O132+O133+O134","v":81},{"$f":"SQRT((P132^2)+(P133^2)+(P134^2))","v":28.231188426986208},{"$f":"Q132+Q133+Q134","v":139},{"$f":"SQRT((R132^2)+(R133^2)+(R134^2))","v":47.75981574503821},{"$f":"S132+S133+S134","v":9},{"$f":"SQRT((T132^2)+(T133^2)+(T134^2))","v":6.9282032302755088},{"$f":"U132+U133+U134","v":8},{"$f":"SQRT((V132^2)+(V133^2)+(V134^2))","v":19.646882704388499},{"$f":"W132+W133+W134","v":52},{"$f":"SQRT((X132^2)+(X133^2)+(X134^2))","v":27.910571473905726},{"$f":"Y132+Y133+Y134","v":256},{"$f":"SQRT((Z132^2)+(Z133^2)+(Z134^2))","v":86.029064856012468},{"$f":"AA132+AA133+AA134","v":323},{"$f":"SQRT((AB132^2)+(AB133^2)+(AB134^2))","v":129.41792766073794},{"$f":"AC132+AC133+AC134","v":254},{"$f":"SQRT((AD132^2)+(AD133^2)+(AD134^2))","v":104.7950380504726},{"$f":"AE132+AE133+AE134","v":83},{"$f":"SQRT((AF132^2)+(AF133^2)+(AF134^2))","v":29.13760456866693},{"$f":"AG132+AG133+AG134","v":163},{"$f":"SQRT((AH132^2)+(AH133^2)+(AH134^2))","v":89.11789943664516},{"$f":"AI132+AI133+AI134","v":165},{"$f":"SQRT((AJ132^2)+(AJ133^2)+(AJ134^2))","v":63.882705014737752},302,129.20526305069774,406,142.15836239912164]
[null,"Income $50,000 to $74,999 ",{"$f":"C135+C136","v":77},{"$f":"SQRT((D135^2)+(D136^2))","v":36.796738985948195},{"$f":"E135+E136","v":273},{"$f":"SQRT((F135^2)+(F136^2))","v":114.40279716860073},{"$f":"G135+G136","v":57},{"$f":"SQRT((H135^2)+(H136^2))","v":28.460498941515414},{"$f":"I135+I136","v":36},{"$f":"SQRT((J135^2)+(J136^2))","v":19.209372712298546},{"$f":"K135+K136","v":894},{"$f":"SQRT((L135^2)+(L136^2))","v":245.36707195546839},{"$f":"M135+M136","v":39},{"$f":"SQRT((N135^2)+(N136^2))","v":17.804493814764857},{"$f":"O135+O136","v":125},{"$f":"SQRT((P135^2)+(P136^2))","v":41.012193308819754},{"$f":"Q135+Q136","v":91},{"$f":"SQRT((R135^2)+(R136^2))","v":30.413812651491099},{"$f":"S135+S136","v":19},{"$f":"SQRT((T135^2)+(T136^2))","v":11.313708498984761},{"$f":"U135+U136","v":2},{"$f":"SQRT((V135^2)+(V136^2))","v":11.704699910719626},{"$f":"W135+W136","v":94},{"$f":"SQRT((X135^2)+(X136^2))","v":46.043457732885351},{"$f":"Y135+Y136","v":217},{"$f":"SQRT((Z135^2)+(Z136^2))","v":91.525952603619487},{"$f":"AA135+AA136","v":446},{"$f":"SQRT((AB135^2)+(AB136^2))","v":115},{"$f":"AC135+AC136","v":420},{"$f":"SQRT((AD135^2)+(AD136^2))","v":123.3288287465668},{"$f":"AE135+AE136","v":138},{"$f":"SQRT((AF135^2)+(AF136^2))","v":40.311288741492746},{"$f":"AG135+AG136","v":321},{"$f":"SQRT((AH135^2)+(AH136^2))","v":81.841309862440497},{"$f":"AI135+AI136","v":374},{"$f":"SQRT((AJ135^2)+(AJ136^2))","v":110.11357772772621},381,149.01342221424215,520,158.40454538932903]
[null,"Income $75,000 to $99,999 ",{"$f":"C137","v":68},36,115,76,38,19,29,20,535,173,33,15,67,29,{"$f":"Q137","v":53},22,8,7,2,3,20,15,154,61,202,79,236,82,83,28,123,71,166,70,349,110,309,127]
[null,"Income $100,000 to $149,999 ",{"$f":"C138+C139","v":33},{"$f":"SQRT((D138^2)+(D139^2))","v":19.104973174542799},{"$f":"E138+E139","v":129},{"$f":"SQRT((F138^2)+(F139^2))","v":87.005746936624831},{"$f":"G138+G139","v":24},{"$f":"SQRT((H138^2)+(H139^2))","v":15},{"$f":"I138+I139","v":8},{"$f":"SQRT((J138^2)+(J139^2))","v":12.369316876852981},{"$f":"K138+K139","v":336},{"$f":"SQRT((L138^2)+(L139^2))","v":136.85759021698431},{"$f":"M138+M139","v":14},{"$f":"SQRT((N138^2)+(N139^2))","v":9.8994949366116654},{"$f":"O138+O139","v":35},{"$f":"SQRT((P138^2)+(P139^2))","v":24.596747752497688},{"$f":"Q138+Q139","v":56},{"$f":"SQRT((R138^2)+(R139^2))","v":23.259406699226016},{"$f":"S138+S139","v":7},{"$f":"SQRT((T138^2)+(T139^2))","v":6.4031242374328485},{"$f":"U138+U139","v":0},{"$f":"SQRT((V138^2)+(V139^2))","v":15.556349186104045},{"$f":"W138+W139","v":83},{"$f":"SQRT((X138^2)+(X139^2))","v":40.249223594996216},{"$f":"Y138+Y139","v":154},{"$f":"SQRT((Z138^2)+(Z139^2))","v":64.404968752418469},{"$f":"AA138+AA139","v":330},{"$f":"SQRT((AB138^2)+(AB139^2))","v":112.04463396343441},{"$f":"AC138+AC139","v":81},{"$f":"SQRT((AD138^2)+(AD139^2))","v":48.846698967279252},{"$f":"AE138+AE139","v":73},{"$f":"SQRT((AF138^2)+(AF139^2))","v":26.40075756488817},{"$f":"AG138+AG139","v":67},{"$f":"SQRT((AH138^2)+(AH139^2))","v":42.720018726587654},{"$f":"AI138+AI139","v":55},{"$f":"SQRT((AJ138^2)+(AJ139^2))","v":32.756678708318397},200,98.183501669068619,303,128.84486796143648]
[null,"Income $150,000 to $199,999 ",{"$f":"C140","v":13},16,43,50,21,18,3,6,196,93,5,6,7,7,{"$f":"Q140","v":4},5,0,11,0,11,19,21,26,20,113,64,21,27,32,18,16,17,39,35,35,43,129,95]
[null,"Income $200,000 or more ",{"$f":"C141","v":15},16,26,28,14,12,6,8,31,28,11,14,3,4,11,16,5,5,0,11,46,29,36,40,104,59,0,11,16,12,66,54,36,22,0,114,134,80]

{"sheet":"ACS_Table_B19037","index":28,"n_rows":253,"n_cols":40,"rows_kept":253,"cut":false,"hidden":true,"merged":[]}
[null,"B19037. AGE OF HOUSEHOLDER BY HOUSEHOLD INCOME IN THE PAST 12 MONTHS (IN 2022 INFLATION-ADJUSTED DOLLARS)"]
[null,"Universe:  HOUSEHOLDS"]
[null,"Data Set: 2018-2022 American Community Survey 5-Year Estimates"]
[]
[null,null,"Albany",null,"Bartlett",null,"Brookfield",null,"Chatham",null,"Conway",null,"Eaton",null,"Effingham",null,"Freedom",null,"Hale's Location",null,"Hart's Location",null,"Jackson",null,"Madison",null,"Moultonborough",null,"Ossipee",null,"Sandwich",null,"Tamworth",null,"Tuftonboro",null,"Wakefield",null,"Wolfeboro"]
[null," ","Estimate","Margin of Error","Estimate","Margin of Error","Estimate","Margin of Error","Estimate","Margin of Error","Estimate","Margin of Error","Estimate","Margin of Error","Estimate","Margin of Error","Estimate","Margin of Error","Estimate","Margin of Error","Estimate","Margin of Error","Estimate","Margin of Error","Estimate","Margin of Error","Estimate","Margin of Error","Estimate","Margin of Error","Estimate","Margin of Error","Estimate","Margin of Error","Estimate","Margin of Error","Estimate","Margin of Error","Estimate","Margin of Error"]
[null,"Total:",343,91,1722,223,232,58,160,41,4468,345,158,37,549,65,576,78,105,41,43,32,500,96,978,100,2111,184,1677,153,930,170,987,167,1113,87,2205,225,2787,260]
[null,"Householder under 25 years:",16,21,0,12,0,12,0,12,116,108,6,10,3,5,0,12,0,12,0,12,0,12,6,9,0,12,0,12,9,13,46,57,13,21,80,80,0,17]
[null,"Less than $10,000",5,10,0,12,0,12,0,12,10,18,0,12,0,12,0,12,0,12,0,12,0,12,0,12,0,12,0,12,0,12,0,12,0,12,0,17,0,17]
[null,"$10,000 to $14,999",0,12,0,12,0,12,0,12,0,17,0,12,0,12,0,12,0,12,0,12,0,12,0,12,0,12,0,12,0,12,0,12,0,12,0,17,0,17]
[null,"$15,000 to $19,999",0,12,0,12,0,12,0,12,0,17,0,12,0,12,0,12,0,12,0,12,0,12,0,12,0,12,0,12,0,12,0,12,0,12,0,17,0,17]
[null,"$20,000 to $24,999",0,12,0,12,0,12,0,12,52,80,0,12,0,12,0,12,0,12,0,12,0,12,0,12,0,12,0,12,0,12,0,12,0,12,0,17,0,17]
[null,"$25,000 to $29,999",0,12,0,12,0,12,0,12,0,17,0,12,0,12,0,12,0,12,0,12,0,12,0,12,0,12,0,12,0,12,0,12,0,12,0,17,0,17]
[null,"$30,000 to $34,999",11,18,0,12,0,12,0,12,0,17,6,10,0,12,0,12,0,12,0,12,0,12,0,12,0,12,0,12,0,12,46,57,0,12,0,17,0,17]
[null,"$35,000 to $39,999",0,12,0,12,0,12,0,12,46,70,0,12,0,12,0,12,0,12,0,12,0,12,0,12,0,12,0,12,0,12,0,12,0,12,0,17,0,17]
[null,"$40,000 to $44,999",0,12,0,12,0,12,0,12,0,17,0,12,0,12,0,12,0,12,0,12,0,12,1,4,0,12,0,12,9,13,0,12,13,21,0,17,0,17]
[null,"$45,000 to $49,999",0,12,0,12,0,12,0,12,0,17,0,12,0,12,0,12,0,12,0,12,0,12,0,12,0,12,0,12,0,12,0,12,0,12,44,68,0,17]
[null,"$50,000 to $59,999",0,12,0,12,0,12,0,12,0,17,0,12,0,12,0,12,0,12,0,12,0,12,0,12,0,12,0,12,0,12,0,12,0,12,0,17,0,17]
[null,"$60,000 to $74,999",0,12,0,12,0,12,0,12,8,13,0,12,0,12,0,12,0,12,0,12,0,12,0,12,0,12,0,12,0,12,0,12,0,12,36,54,0,17]
[null,"$75,000 to $99,999",0,12,0,12,0,12,0,12,0,17,0,12,3,5,0,12,0,12,0,12,0,12,5,8,0,12,0,12,0,12,0,12,0,12,0,17,0,17]
[null,"$100,000 to $124,999",0,12,0,12,0,12,0,12,0,17,0,12,0,12,0,12,0,12,0,12,0,12,0,12,0,12,0,12,0,12,0,12,0,12,0,17,0,17]
[null,"$125,000 to $149,999",0,12,0,12,0,12,0,12,0,17,0,12,0,12,0,12,0,12,0,12,0,12,0,12,0,12,0,12,0,12,0,12,0,12,0,17,0,17]
[null,"$150,000 to $199,999",0,12,0,12,0,12,0,12,0,17,0,12,0,12,0,12,0,12,0,12,0,12,0,12,0,12,0,12,0,12,0,12,0,12,0,17,0,17]
[null,"$200,000 or more",0,12,0,12,0,12,0,12,0,17,0,12,0,12,0,12,0,12,0,12,0,12,0,12,0,12,0,12,0,12,0,12,0,12,0,17,0,17]
[null,"Householder 25 to 44 years:",60,31,190,110,21,12,38,14,1037,230,18,11,130,47,68,35,20,31,3,5,107,58,243,84,258,82,275,79,47,25,247,105,98,58,391,126,486,187]
[null,"Less than $10,000",0,12,0,12,0,12,5,7,6,9,0,12,0,12,4,7,0,12,0,12,0,12,4,7,13,17,6,21,0,12,0,12,0,12,0,17,0,17]
[null,"$10,000 to $14,999",0,12,0,12,0,12,0,12,55,79,0,12,0,12,0,12,0,12,0,12,0,12,0,12,0,12,5,22,3,5,0,12,0,12,0,17,11,19]
[null,"$15,000 to $19,999",0,12,0,12,0,12,0,12,92,102,0,12,0,12,0,12,0,12,0,12,0,12,0,12,9,14,0,12,0,12,0,12,0,12,0,17,0,17]
[null,"Calculated B19001. HOUSEHOLD INCOME IN THE PAST 12 MONTHS (IN 2019 INFLATION-ADJUSTED DOLLARS)",0,12,37,49,0,12,0,12,0,17,0,12,8,10,0,12,0,12,0,12,0,12,28,34,0,12,0,12,0,12,0,12,0,12,0,17,8,13]
[null,"$25,000 to $29,999",0,12,0,12,0,12,4,6,0,17,0,12,0,12,0,12,0,12,0,12,0,12,0,12,0,12,41,57,0,12,11,20,0,12,0,17,0,17]
[null,"$30,000 to $34,999",0,12,0,12,0,12,0,12,0,17,0,12,0,12,0,12,0,12,0,12,0,12,3,5,0,12,15,22,0,12,8,13,5,9,0,17,0,17]
[null,"$35,000 to $39,999",3,4,0,12,3,4,4,5,20,24,3,4,0,12,0,12,0,12,0,12,0,12,0,12,0,12,0,12,0,12,13,21,4,7,14,22,27,39]
[null,"$40,000 to $44,999",2,4,0,12,0,12,4,8,26,39,0,12,0,12,6,8,0,12,0,12,22,28,0,12,27,31,3,14,0,12,0,12,0,12,0,17,0,17]
[null,"$45,000 to $49,999",3,5,0,12,0,12,0,12,23,29,0,12,3,6,0,12,0,12,0,12,0,12,0,12,17,24,8,14,0,12,32,45,0,12,0,17,40,58]
[null,"$50,000 to $59,999",19,19,60,62,2,3,1,2,100,98,0,12,14,12,16,28,0,12,0,12,0,12,0,12,32,33,41,44,0,12,82,72,0,12,19,24,0,17]
[null,"$60,000 to $74,999",11,12,0,12,0,12,2,3,134,80,3,6,12,15,0,12,0,12,0,12,0,12,30,24,29,32,1,3,0,12,7,9,4,6,66,64,24,34]
[null,"$75,000 to $99,999",8,12,0,12,0,12,1,3,227,102,3,7,25,23,0,12,20,31,3,5,21,24,15,12,65,56,35,38,23,20,34,32,23,19,89,68,71,67]
[null,"$100,000 to $124,999",9,11,16,24,9,6,3,4,111,83,5,7,14,16,0,12,0,12,0,12,35,32,53,31,0,12,46,41,11,10,0,12,9,10,74,78,111,150]
[null,"$125,000 to $149,999",0,12,38,58,0,12,3,5,89,57,0,12,8,8,9,13,0,12,0,12,9,15,2,5,25,31,59,40,3,4,0,12,8,13,48,50,133,117]
[null,"$150,000 to $199,999",5,6,39,61,4,5,4,5,139,98,0,12,4,5,30,21,0,12,0,12,20,22,69,75,0,12,15,24,4,6,45,70,21,28,64,83,16,26]
[null,"$200,000 or more",0,12,0,12,3,5,7,9,15,19,4,5,42,34,3,5,0,12,0,12,0,12,39,30,41,48,0,12,3,5,15,23,24,37,17,24,45,43]
[null,"Householder 45 to 64 years:",185,78,680,185,93,35,65,24,1287,271,56,26,250,59,236,61,23,18,17,21,216,93,425,97,925,133,779,148,339,78,343,107,451,121,1013,226,1006,220]
[null,"Less than $10,000",32,26,42,68,2,4,0,12,126,101,1,3,16,14,8,11,5,8,0,12,33,53,23,21,5,10,13,25,3,4,0,12,14,21,0,17,63,72]
[null,"$10,000 to $14,999",3,4,0,12,2,4,0,12,40,66,12,12,0,12,33,48,0,12,0,12,0,12,0,12,0,12,79,56,6,7,84,71,9,12,58,83,70,102]
[null,"$15,000 to $19,999",7,11,0,12,0,12,0,12,23,29,2,3,19,25,0,12,1,2,0,12,8,12,0,12,28,29,0,12,0,12,0,12,0,12,0,17,0,17]
[null,"$20,000 to $24,999",0,12,35,53,0,12,0,12,59,68,0,12,4,5,4,6,0,12,0,12,9,13,0,12,0,12,15,24,4,5,0,12,0,12,0,17,15,23]
[null,"$25,000 to $29,999",22,34,41,55,0,12,2,3,58,56,0,12,5,8,3,4,0,12,0,12,0,12,20,20,21,25,28,44,4,5,11,15,41,37,0,17,54,43]
[null,"$30,000 to $34,999",10,12,38,59,0,12,9,15,5,8,0,12,12,11,17,22,0,12,0,12,0,12,0,12,17,22,0,12,5,6,0,12,7,10,0,17,98,103]
[null,"$35,000 to $39,999",0,12,107,116,2,4,2,3,49,71,10,13,3,8,6,7,0,12,0,12,8,12,8,12,47,58,20,24,8,13,0,12,0,12,77,72,59,93]
[null,"$40,000 to $44,999",0,12,4,10,0,12,0,12,47,48,0,12,6,6,9,14,0,12,0,12,0,12,0,12,0,12,29,31,0,12,0,12,0,12,14,21,19,31]
[null,"$45,000 to $49,999",2,4,59,71,8,12,0,12,40,38,0,12,6,6,0,12,1,3,0,12,40,54,8,11,13,21,0,12,9,8,0,12,0,12,0,17,0,17]
[null,"$50,000 to $59,999",0,12,0,12,1,3,8,10,106,86,11,11,40,31,3,5,0,12,0,12,9,12,41,32,14,22,69,68,11,9,38,41,51,60,54,51,0,17]
[null,"$60,000 to $74,999",46,62,34,47,13,17,11,10,131,108,2,3,15,12,26,19,0,12,9,17,0,12,8,10,66,49,201,90,18,16,12,19,37,24,84,77,99,65]
[null,"$75,000 to $99,999",15,17,29,29,13,8,11,10,236,117,6,6,23,22,19,17,0,12,0,12,19,17,104,58,169,99,36,33,70,35,131,69,103,79,137,95,126,80]
[null,"$100,000 to $124,999",10,14,112,116,16,13,5,5,104,72,3,5,38,25,52,31,0,12,7,11,45,24,57,33,52,50,64,50,34,22,12,16,52,52,118,85,132,110]
[null,"$125,000 to $149,999",4,5,15,22,9,8,13,10,26,28,0,12,25,16,22,16,0,12,1,3,18,21,43,33,124,70,92,63,56,56,37,26,45,37,287,239,110,96]
[null,"$150,000 to $199,999",23,15,0,12,20,13,2,3,33,42,0,12,12,9,23,14,1,4,0,12,18,21,42,34,148,100,62,69,50,28,0,12,21,17,95,85,43,47]
[null,"$200,000 or more",11,9,164,108,7,7,2,4,204,99,9,7,26,24,11,11,15,16,0,12,9,14,71,44,221,85,71,64,61,31,18,21,71,46,89,71,118,87]
[null,"Householder 65 years and over:",82,34,852,258,118,40,57,24,2028,340,78,22,166,44,272,43,62,25,23,25,177,56,304,74,928,189,623,133,535,169,351,113,551,107,721,225,1295,225]
[null,"Less than $10,000",0,12,0,12,0,12,0,12,159,136,0,12,9,13,6,8,0,12,0,12,15,18,5,7,9,14,47,56,5,8,0,12,0,12,0,17,81,99]
[null,"$10,000 to $14,999",2,4,8,16,2,3,0,12,248,191,0,12,17,17,0,12,0,12,0,12,0,12,39,27,0,12,21,17,2,3,16,17,30,28,25,30,92,100]
[null,"$15,000 to $19,999",0,12,39,54,13,13,0,12,51,37,6,7,11,9,7,8,2,3,0,12,0,12,0,12,7,10,57,77,32,19,34,55,17,17,105,117,59,74]
[null,"$20,000 to $24,999",2,4,0,12,4,6,0,12,214,116,1,2,0,12,23,20,2,4,0,12,11,14,6,6,8,12,51,43,12,13,13,20,7,11,18,27,61,51]
[null,"$25,000 to $29,999",0,12,116,91,2,3,2,4,129,82,2,4,0,12,28,16,7,7,4,7,10,16,7,14,9,14,21,24,10,9,55,59,48,39,98,109,33,36]
[null,"$30,000 to $34,999",15,17,62,75,18,24,2,3,163,167,1,3,10,8,6,4,2,3,0,12,0,12,8,8,45,43,9,18,3,4,0,12,20,19,26,30,116,105]
[null,"$35,000 to $39,999",4,5,86,97,2,3,5,6,73,82,0,12,4,5,8,8,0,12,18,24,0,12,0,12,26,24,53,52,0,12,15,23,28,28,33,53,32,47]
[null,"$40,000 to $44,999",2,3,21,35,0,12,4,6,130,79,2,3,16,14,24,17,2,3,0,12,0,12,0,12,60,62,0,12,15,10,15,23,16,17,13,22,32,33]
[null,"$45,000 to $49,999",9,12,0,12,2,3,4,5,49,59,4,4,10,10,9,13,0,12,0,12,7,12,22,17,175,134,10,20,18,27,0,12,30,23,6,9,118,121]
[null,"$50,000 to $59,999",3,5,181,154,9,8,7,6,77,65,13,12,12,9,20,14,3,4,0,12,20,21,5,7,77,55,80,67,22,16,10,14,21,18,58,47,35,40]
[null,"$60,000 to $74,999",7,10,49,60,19,11,0,12,68,44,10,8,13,9,23,16,11,10,1,2,7,11,26,26,37,26,26,24,35,22,35,30,60,42,99,70,109,88]
[null,"$75,000 to $99,999",20,16,51,55,13,8,16,13,361,229,15,11,27,19,38,15,4,5,0,12,16,18,65,31,148,62,53,63,58,55,44,43,83,53,49,46,142,78]
[null,"$100,000 to $124,999",8,8,53,56,13,12,3,3,188,97,3,4,12,13,34,16,8,9,0,12,29,31,53,37,121,64,73,50,37,26,114,86,132,96,97,57,109,63]
[null,"$125,000 to $149,999",5,6,0,12,6,6,4,5,23,23,8,8,8,8,18,15,1,2,0,12,11,14,12,14,30,34,3,5,29,20,0,12,17,17,52,81,75,71]
[null,"$150,000 to $199,999",2,3,45,72,2,3,4,6,38,35,2,2,17,13,6,8,7,8,0,12,25,22,7,10,98,57,66,56,81,81,0,12,33,34,12,21,95,62]
[null,"$200,000 or more",3,4,141,116,13,15,6,5,57,63,11,8,0,12,22,17,13,12,0,12,26,24,49,42,78,47,53,60,176,145,0,12,9,13,30,27,106,70]
[]
[]
[]
[]
[]
[]
[]
[]
[]
[]
[]
[]
[]
[]
[null,"B19037. AGE OF HOUSEHOLDER BY HOUSEHOLD INCOME IN THE PAST 12 MONTHS (IN 2017 INFLATION-ADJUSTED DOLLARS)"]
[null,"Universe:  HOUSEHOLDS"]
[null,"Data Set: 2013-2017 American Community Survey 5-Year Estimates"]
[]
[null,null,"Albany",null,"Bartlett",null,"Brookfield",null,"Chatham",null,"Conway",null,"Eaton",null,"Effingham",null,"Freedom",null,"Hale's Location",null,"Hart's Location",null,"Jackson",null,"Madison",null,"Moultonborough",null,"Ossipee",null,"Sandwich",null,"Tamworth",null,"Tuftonboro",null,"Wakefield",null,"Wolfeboro"]
[null," ","Estimate","Margin of Error","Estimate","Margin of Error","Estimate","Margin of Error","Estimate","Margin of Error","Estimate","Margin of Error","Estimate","Margin of Error","Estimate","Margin of Error","Estimate","Margin of Error","Estimate","Margin of Error","Estimate","Margin of Error","Estimate","Margin of Error","Estimate","Margin of Error","Estimate","Margin of Error","Estimate","Margin of Error","Estimate","Margin of Error","Estimate","Margin of Error","Estimate","Margin of Error","Estimate","Margin of Error","Estimate","Margin of Error"]
[null,"Total:",312,44,1408,164,326,77,142,36,4346,208,169,38,602,72,587,74,79,24,26,16,455,89,1069,85,1758,102,1962,185,617,73,1378,137,966,103,2066,185,2935,210]
[null,"Householder under 25 years:",8,15,73,78,0,11,0,11,184,141,0,11,21,26,6,8,0,11,0,11,11,19,14,23,15,26,21,33,0,11,0,11,12,18,0,16,44,67]
[null,"Less than $10,000",0,11,39,61,0,11,0,11,25,41,0,11,0,11,0,11,0,11,0,11,0,11,0,11,0,11,0,11,0,11,0,11,0,11,0,16,0,16]
[null,"$10,000 to $14,999",0,11,0,11,0,11,0,11,0,18,0,11,0,11,0,11,0,11,0,11,0,11,0,11,0,11,0,11,0,11,0,11,0,11,0,16,0,16]
[null,"$15,000 to $19,999",0,11,0,11,0,11,0,11,0,18,0,11,16,24,0,11,0,11,0,11,0,11,0,11,0,11,0,11,0,11,0,11,0,11,0,16,0,16]
[null,"$20,000 to $24,999",0,11,0,11,0,11,0,11,0,18,0,11,0,11,0,11,0,11,0,11,0,11,0,11,0,11,0,11,0,11,0,11,12,18,0,16,0,16]
[null,"$25,000 to $29,999",0,11,0,11,0,11,0,11,0,18,0,11,0,11,0,11,0,11,0,11,0,11,0,11,0,11,21,33,0,11,0,11,0,11,0,16,0,16]
[null,"$30,000 to $34,999",0,11,0,11,0,11,0,11,0,18,0,11,0,11,0,11,0,11,0,11,0,11,0,11,0,11,0,11,0,11,0,11,0,11,0,16,44,67]
[null,"$35,000 to $39,999",0,11,0,11,0,11,0,11,0,18,0,11,0,11,0,11,0,11,0,11,0,11,0,11,0,11,0,11,0,11,0,11,0,11,0,16,0,16]
[null,"$40,000 to $44,999",8,15,34,55,0,11,0,11,29,46,0,11,0,11,6,8,0,11,0,11,0,11,0,11,0,11,0,11,0,11,0,11,0,11,0,16,0,16]
[null,"$45,000 to $49,999",0,11,0,11,0,11,0,11,18,31,0,11,0,11,0,11,0,11,0,11,0,11,14,23,0,11,0,11,0,11,0,11,0,11,0,16,0,16]
[null,"$50,000 to $59,999",0,11,0,11,0,11,0,11,0,18,0,11,0,11,0,11,0,11,0,11,0,11,0,11,0,11,0,11,0,11,0,11,0,11,0,16,0,16]
[null,"$60,000 to $74,999",0,11,0,11,0,11,0,11,112,122,0,11,5,7,0,11,0,11,0,11,0,11,0,11,0,11,0,11,0,11,0,11,0,11,0,16,0,16]
[null,"$75,000 to $99,999",0,11,0,11,0,11,0,11,0,18,0,11,0,11,0,11,0,11,0,11,11,19,0,11,0,11,0,11,0,11,0,11,0,11,0,16,0,16]
[null,"$100,000 to $124,999",0,11,0,11,0,11,0,11,0,18,0,11,0,11,0,11,0,11,0,11,0,11,0,11,15,26,0,11,0,11,0,11,0,11,0,16,0,16]
[null,"$125,000 to $149,999",0,11,0,11,0,11,0,11,0,18,0,11,0,11,0,11,0,11,0,11,0,11,0,11,0,11,0,11,0,11,0,11,0,11,0,16,0,16]
[null,"$150,000 to $199,999",0,11,0,11,0,11,0,11,0,18,0,11,0,11,0,11,0,11,0,11,0,11,0,11,0,11,0,11,0,11,0,11,0,11,0,16,0,16]
[null,"$200,000 or more",0,11,0,11,0,11,0,11,0,18,0,11,0,11,0,11,0,11,0,11,0,11,0,11,0,11,0,11,0,11,0,11,0,11,0,16,0,16]
[null,"Householder 25 to 44 years:",85,30,228,117,91,53,24,19,1340,204,26,17,123,43,68,29,0,11,3,4,73,42,246,60,272,95,411,120,101,40,235,134,195,63,441,139,457,144]
[null,"Less than $10,000",3,5,25,40,0,11,0,11,91,93,0,11,7,7,3,5,0,11,0,11,0,11,0,11,11,18,0,11,6,9,0,11,0,11,0,16,31,50]
[null,"$10,000 to $14,999",5,12,0,11,0,11,0,11,47,66,3,4,0,11,0,11,0,11,0,11,2,5,10,15,30,50,0,11,0,11,55,88,0,11,34,49,86,122]
[null,"$15,000 to $19,999",0,11,37,52,0,11,2,4,17,27,0,11,10,11,0,11,0,11,0,11,0,11,0,11,0,11,0,11,0,11,0,11,0,11,26,38,0,16]
[null,"$20,000 to $24,999",9,13,0,11,0,11,0,11,46,52,0,11,10,9,0,11,0,11,0,11,0,11,16,25,0,11,26,37,0,11,0,11,7,10,0,16,0,16]
[null,"$25,000 to $29,999",9,11,0,11,8,14,0,11,23,28,0,11,0,11,0,11,0,11,0,11,0,11,0,11,0,11,30,46,4,6,48,53,43,40,0,16,0,16]
[null,"$30,000 to $34,999",4,5,0,11,0,11,1,3,78,74,0,11,16,17,10,10,0,11,0,11,0,11,5,8,0,11,35,56,0,11,14,23,2,4,0,16,48,55]
[null,"$35,000 to $39,999",0,11,0,11,0,11,0,11,41,43,0,11,0,11,0,11,0,11,0,11,7,13,60,47,0,11,0,11,12,15,0,11,0,11,46,56,30,45]
[null,"$40,000 to $44,999",0,11,27,35,0,11,2,4,83,75,0,11,3,5,0,11,0,11,0,11,12,19,8,12,0,11,24,29,3,6,0,11,24,28,136,95,0,16]
[null,"$45,000 to $49,999",2,3,0,11,4,8,0,11,81,74,7,11,19,16,0,11,0,11,0,11,0,11,0,11,15,22,0,11,4,6,0,11,28,35,0,16,37,61]
[null,"$50,000 to $59,999",5,6,0,11,5,7,10,14,94,77,7,8,2,3,4,6,0,11,0,11,0,11,16,20,15,16,0,11,15,18,0,11,0,11,104,117,0,16]
[null,"$60,000 to $74,999",4,6,47,54,10,9,0,11,358,161,2,3,26,24,12,13,0,11,0,11,10,17,29,20,90,74,85,38,3,5,55,69,29,18,32,45,0,16]
[null,"$75,000 to $99,999",9,9,92,83,11,14,5,6,160,100,4,6,23,15,34,21,0,11,0,11,21,24,42,33,33,30,127,105,19,16,63,61,42,27,35,40,79,69]
[null,"$100,000 to $124,999",19,17,0,11,5,10,0,11,127,98,0,11,3,5,5,6,0,11,3,4,0,11,23,26,10,16,35,35,21,18,0,11,0,11,28,46,114,104]
[null,"$125,000 to $149,999",13,15,0,11,27,19,0,11,48,50,3,4,0,11,0,11,0,11,0,11,0,11,26,22,45,52,0,11,11,14,0,11,14,21,0,16,0,16]
[null,"$150,000 to $199,999",3,4,0,11,4,7,2,3,46,38,0,11,0,11,0,11,0,11,0,11,21,25,7,10,0,11,49,68,3,5,0,11,0,11,0,16,0,16]
[null,"$200,000 or more",0,11,0,11,17,29,2,3,0,18,0,11,4,7,0,11,0,11,0,11,0,11,4,7,23,20,0,11,0,11,0,11,6,10,0,16,32,51]
[null,"Householder 45 to 64 years:",137,34,687,158,152,56,84,28,1750,249,59,22,256,39,280,54,13,10,17,14,148,65,465,75,799,101,863,177,235,54,786,173,301,59,1071,172,1061,199]
[null,"Less than $10,000",0,11,40,46,3,5,3,5,61,65,2,3,6,6,22,24,0,11,0,11,16,25,5,8,21,23,68,72,0,11,117,91,25,21,31,35,23,38]
[null,"$10,000 to $14,999",3,5,35,41,2,3,2,3,82,54,2,3,0,11,3,5,0,11,0,11,0,11,12,14,4,8,124,105,0,11,16,22,0,11,91,101,68,59]
[null,"$15,000 to $19,999",15,14,31,34,2,5,0,11,65,64,0,11,8,8,0,11,0,11,0,11,19,23,5,7,26,26,43,49,4,6,53,67,30,26,16,23,50,76]
[null,"$20,000 to $24,999",4,5,0,11,0,11,0,11,96,79,5,6,7,7,6,8,4,5,0,11,8,12,10,8,57,56,73,52,20,19,14,19,0,11,35,38,68,80]
[null,"$25,000 to $29,999",10,12,18,20,8,10,10,15,105,100,0,11,27,20,11,11,0,11,0,11,0,11,21,25,38,36,62,69,9,14,31,29,23,19,49,52,0,16]
[null,"$30,000 to $34,999",0,11,85,56,1,4,2,4,72,55,2,3,8,8,25,21,0,11,0,11,0,11,4,8,0,11,22,25,3,5,49,55,0,11,79,92,107,65]
[null,"$35,000 to $39,999",8,9,22,34,8,14,2,3,63,53,2,4,23,19,16,15,0,11,0,11,9,14,0,11,25,30,10,17,9,11,40,62,9,9,60,86,0,16]
[null,"$40,000 to $44,999",9,14,30,37,0,11,2,3,45,55,0,11,8,7,9,8,0,11,3,6,0,11,0,11,0,11,4,8,6,7,0,11,5,7,0,16,87,110]
[null,"$45,000 to $49,999",4,5,46,45,6,8,5,8,122,102,0,11,12,12,14,16,0,11,0,11,0,11,31,31,28,22,12,20,42,32,32,28,8,8,35,38,31,47]
[null,"$50,000 to $59,999",12,8,78,58,9,9,5,6,161,119,4,5,23,14,39,24,0,11,0,11,11,17,122,55,42,37,70,42,28,16,87,60,16,19,37,41,83,75]
[null,"$60,000 to $74,999",16,15,65,59,27,21,12,9,103,52,15,13,33,16,25,12,0,11,5,6,18,21,46,30,75,38,144,96,16,12,111,81,40,25,179,109,65,53]
[null,"$75,000 to $99,999",10,8,131,79,39,27,17,11,308,138,11,12,33,17,34,20,2,3,5,8,0,11,63,30,117,61,96,60,45,18,0,11,68,30,86,73,55,56]
[null,"$100,000 to $124,999",23,13,51,56,20,12,2,4,262,142,14,12,26,17,37,18,0,11,4,7,40,29,36,29,140,64,56,59,21,14,80,59,17,15,146,102,110,100]
[null,"$125,000 to $149,999",6,7,27,35,20,18,7,7,69,52,1,3,11,9,5,8,0,11,0,11,10,17,94,47,30,20,43,36,14,11,58,51,27,27,101,88,121,92]
[null,"$150,000 to $199,999",11,12,0,11,7,8,6,6,80,63,0,11,18,19,13,16,0,11,0,11,11,13,0,11,45,30,24,31,3,5,63,64,20,18,93,78,62,58]
[null,"$200,000 or more",6,6,28,44,0,11,9,8,56,39,1,3,13,16,21,18,7,8,0,11,6,7,16,16,151,72,12,18,15,15,35,39,13,11,33,45,131,97]
[null,"Householder 65 years and over:",82,28,420,156,83,34,34,16,1072,170,84,28,202,50,233,49,66,20,6,7,223,63,344,83,672,108,667,153,281,57,357,139,458,85,554,148,1373,205]
[null,"Less than $10,000",8,7,0,11,0,11,3,6,10,16,0,11,12,18,7,8,0,11,0,11,3,4,28,32,13,14,36,58,8,7,0,11,60,46,19,30,0,16]
[null,"$10,000 to $14,999",11,14,0,11,0,11,1,4,64,44,3,5,11,8,18,12,0,11,0,11,0,11,37,44,7,11,23,27,3,6,30,33,21,26,21,33,67,87]
[null,"$15,000 to $19,999",8,10,52,57,4,5,3,5,55,38,6,6,24,21,7,8,2,5,4,6,9,13,12,12,90,56,123,63,19,18,13,20,26,27,37,47,33,38]
[null,"$20,000 to $24,999",5,5,51,49,9,14,2,5,76,46,2,3,8,8,28,22,2,3,0,11,6,7,41,38,7,11,66,61,10,10,42,64,20,16,63,78,127,121]
[null,"$25,000 to $29,999",2,4,10,15,0,11,1,4,107,56,3,4,15,17,0,11,0,11,2,3,8,14,6,8,35,39,7,12,15,11,52,78,19,13,17,26,166,126]
[null,"$30,000 to $34,999",0,11,33,43,2,4,0,11,97,69,0,11,24,14,8,8,6,5,0,11,12,13,26,29,6,10,93,77,19,17,12,18,4,6,0,16,50,48]
[null,"$35,000 to $39,999",9,7,43,48,7,7,5,5,49,32,5,6,9,14,17,11,5,5,0,11,13,18,6,9,0,11,28,25,11,10,16,22,13,12,0,16,119,97]
[null,"$40,000 to $44,999",5,5,24,38,5,7,2,3,18,26,5,6,5,7,15,16,1,4,0,11,26,19,15,14,22,19,0,11,6,7,0,11,29,28,8,14,96,98]
[null,"$45,000 to $49,999",0,11,20,33,11,14,3,4,66,71,0,11,13,10,16,13,0,11,0,11,3,5,11,13,29,26,81,44,12,14,0,11,4,6,33,33,81,80]
[null,"$50,000 to $59,999",2,3,44,50,11,9,3,4,96,74,5,6,22,19,17,13,13,10,0,11,41,35,20,18,95,57,64,49,31,23,72,82,60,37,100,100,80,55]
[null,"$60,000 to $74,999",7,7,20,31,4,5,5,8,46,36,22,14,9,8,18,17,10,8,0,11,9,10,43,32,104,56,38,29,14,10,49,61,60,38,115,81,106,62]
[null,"$75,000 to $99,999",11,9,32,43,5,6,1,2,138,93,9,8,17,12,29,17,10,7,0,11,25,22,22,28,61,45,38,31,44,21,13,20,48,35,52,45,108,55]
[null,"$100,000 to $124,999",10,9,0,11,11,8,2,3,98,75,10,9,13,9,28,22,6,6,0,11,26,23,14,15,71,45,0,11,25,19,44,69,56,36,29,32,121,76]
[null,"$125,000 to $149,999",2,3,23,36,3,5,0,11,62,71,2,4,4,5,5,6,0,11,0,11,10,15,6,9,7,11,30,27,22,17,0,11,10,11,15,23,26,35]
[null,"$150,000 to $199,999",0,11,23,36,5,6,2,4,68,59,2,4,13,18,7,7,3,4,0,11,0,11,7,10,14,15,36,58,13,11,0,11,19,24,18,28,138,89]
[null,"$200,000 or more",2,3,45,52,6,7,1,2,22,30,10,13,3,4,13,12,8,6,0,11,32,24,50,35,111,60,4,7,29,25,14,20,9,10,27,44,55,51]
[]
[]
[]
[]
[]
[]
[]
[]
[]
[]
[]
[]
[]
[]
[null,"B19037. AGE OF HOUSEHOLDER BY HOUSEHOLD INCOME IN THE PAST 12 MONTHS (IN 2012 INFLATION-ADJUSTED DOLLARS)"]
[null,"Universe:  HOUSEHOLDS"]
[null,"Data Set: 2008-2012 American Community Survey 5-Year Estimates"]
[]
[null,null,"Albany",null,"Bartlett",null,"Brookfield",null,"Chatham",null,"Conway",null,"Eaton",null,"Effingham",null,"Freedom",null,"Hale's Location",null,"Hart's Location",null,"Jackson",null,"Madison",null,"Moultonborough",null,"Ossipee",null,"Sandwich",null,"Tamworth",null,"Tuftonboro",null,"Wakefield",null,"Wolfeboro"]
[null," ","Estimate","Margin of Error","Estimate","Margin of Error","Estimate","Margin of Error","Estimate","Margin of Error","Estimate","Margin of Error","Estimate","Margin of Error","Estimate","Margin of Error","Estimate","Margin of Error","Estimate","Margin of Error","Estimate","Margin of Error","Estimate","Margin of Error","Estimate","Margin of Error","Estimate","Margin of Error","Estimate","Margin of Error","Estimate","Margin of Error","Estimate","Margin of Error","Estimate","Margin of Error","Estimate","Margin of Error","Estimate","Margin of Error"]
[null,"Total:",338,61,1381,148,257,57,166,46,4452,262,176,34,495,68,554,65,52,13,28,19,407,80,1044,102,1793,98,1697,144,592,81,1353,138,1041,115,2216,215,2590,178]
[null,"Householder under 25 years:",0,11,59,61,10,18,8,11,187,117,0,11,11,16,0,11,0,11,0,11,12,20,0,11,8,14,0,11,3,4,29,31,7,12,31,37,51,61]
[null,"Less than $10,000",0,11,25,42,0,11,3,5,54,75,0,11,0,11,0,11,0,11,0,11,0,11,0,11,0,11,0,11,0,11,0,11,7,12,17,28,0,16]
[null,"$10,000 to $14,999",0,11,0,11,0,11,0,11,32,49,0,11,0,11,0,11,0,11,0,11,0,11,0,11,0,11,0,11,0,11,0,11,0,11,14,21,34,57]
[null,"$15,000 to $19,999",0,11,0,11,0,11,0,11,0,18,0,11,0,11,0,11,0,11,0,11,0,11,0,11,0,11,0,11,0,11,0,11,0,11,0,16,0,16]
[null,"$20,000 to $24,999",0,11,0,11,0,11,0,11,0,18,0,11,0,11,0,11,0,11,0,11,0,11,0,11,0,11,0,11,0,11,0,11,0,11,0,16,0,16]
[null,"$25,000 to $29,999",0,11,12,19,0,11,0,11,0,18,0,11,0,11,0,11,0,11,0,11,0,11,0,11,8,14,0,11,0,11,0,11,0,11,0,16,17,27]
[null,"$30,000 to $34,999",0,11,0,11,0,11,0,11,0,18,0,11,0,11,0,11,0,11,0,11,0,11,0,11,0,11,0,11,0,11,16,26,0,11,0,16,0,16]
[null,"$35,000 to $39,999",0,11,0,11,0,11,0,11,0,18,0,11,0,11,0,11,0,11,0,11,0,11,0,11,0,11,0,11,0,11,0,11,0,11,0,16,0,16]
[null,"$40,000 to $44,999",0,11,0,11,10,18,0,11,0,18,0,11,0,11,0,11,0,11,0,11,0,11,0,11,0,11,0,11,0,11,0,11,0,11,0,16,0,16]
[null,"$45,000 to $49,999",0,11,0,11,0,11,0,11,0,18,0,11,3,4,0,11,0,11,0,11,0,11,0,11,0,11,0,11,3,4,0,11,0,11,0,16,0,16]
[null,"$50,000 to $59,999",0,11,22,38,0,11,5,8,0,18,0,11,0,11,0,11,0,11,0,11,0,11,0,11,0,11,0,11,0,11,0,11,0,11,0,16,0,16]
[null,"$60,000 to $74,999",0,11,0,11,0,11,0,11,61,59,0,11,0,11,0,11,0,11,0,11,0,11,0,11,0,11,0,11,0,11,13,19,0,11,0,16,0,16]
[null,"$75,000 to $99,999",0,11,0,11,0,11,0,11,29,49,0,11,0,11,0,11,0,11,0,11,0,11,0,11,0,11,0,11,0,11,0,11,0,11,0,16,0,16]
[null,"$100,000 to $124,999",0,11,0,11,0,11,0,11,11,18,0,11,8,15,0,11,0,11,0,11,12,20,0,11,0,11,0,11,0,11,0,11,0,11,0,16,0,16]
[null,"$125,000 to $149,999",0,11,0,11,0,11,0,11,0,18,0,11,0,11,0,11,0,11,0,11,0,11,0,11,0,11,0,11,0,11,0,11,0,11,0,16,0,16]
[null,"$150,000 to $199,999",0,11,0,11,0,11,0,11,0,18,0,11,0,11,0,11,0,11,0,11,0,11,0,11,0,11,0,11,0,11,0,11,0,11,0,16,0,16]
[null,"$200,000 or more",0,11,0,11,0,11,0,11,0,18,0,11,0,11,0,11,0,11,0,11,0,11,0,11,0,11,0,11,0,11,0,11,0,11,0,16,0,16]
[null,"Householder 25 to 44 years:",103,43,319,121,42,21,51,31,1315,195,9,7,142,47,72,30,1,4,9,10,69,32,266,74,252,94,477,101,99,38,221,65,248,71,599,159,417,114]
[null,"Less than $10,000",0,11,0,11,0,11,0,11,116,95,0,11,9,11,5,7,0,11,0,11,0,11,0,11,0,11,49,58,10,15,0,11,0,11,18,27,0,16]
[null,"$10,000 to $14,999",0,11,0,11,0,11,0,11,100,87,0,11,10,17,0,11,0,11,0,11,0,11,0,11,0,11,110,78,0,11,0,11,0,11,17,26,16,26]
[null,"$15,000 to $19,999",11,16,16,24,0,11,5,7,34,43,0,11,0,11,0,11,0,11,0,11,0,11,5,9,0,11,9,13,0,11,0,11,0,11,0,16,0,16]
[null,"$20,000 to $24,999",0,11,0,11,0,11,0,11,53,65,0,11,4,5,0,11,0,11,0,11,12,13,0,11,0,11,11,17,0,11,0,11,16,18,0,16,0,16]
[null,"$25,000 to $29,999",0,11,18,29,3,6,3,7,45,70,0,11,0,11,10,11,0,11,0,11,0,11,34,37,0,11,8,13,0,11,0,11,20,32,31,37,0,16]
[null,"$30,000 to $34,999",0,11,34,52,0,11,0,11,161,93,0,11,10,14,17,18,0,11,5,8,0,11,0,11,25,27,0,11,9,9,21,25,18,28,71,106,52,70]
[null,"$35,000 to $39,999",0,11,74,81,0,11,3,5,43,67,0,11,0,11,18,20,0,11,0,11,6,9,19,30,32,50,29,32,3,6,13,19,0,11,50,48,17,26]
[null,"$40,000 to $44,999",8,11,0,11,0,11,0,11,110,100,0,11,16,14,3,5,0,11,0,11,0,11,30,34,19,17,10,16,4,6,26,42,16,19,45,53,0,16]
[null,"$45,000 to $49,999",0,11,33,49,0,11,3,7,53,59,0,11,16,19,4,6,0,11,0,11,3,6,49,40,0,11,65,71,19,20,8,13,17,13,65,75,44,50]
[null,"$50,000 to $59,999",22,24,0,11,2,4,8,10,109,81,4,6,28,22,0,11,0,11,0,11,6,9,4,7,10,15,9,15,20,17,36,34,44,37,100,68,20,32]
[null,"$60,000 to $74,999",18,16,27,43,13,10,12,13,183,90,1,3,18,13,2,5,0,11,2,4,22,23,64,59,63,47,86,62,11,10,33,29,58,50,63,69,33,40]
[null,"$75,000 to $99,999",32,26,39,50,11,12,13,17,136,85,0,11,21,20,9,8,0,11,2,3,9,10,6,10,5,11,64,42,10,10,48,47,49,30,88,54,73,58]
[null,"$100,000 to $124,999",0,11,34,52,8,9,0,11,17,28,2,3,10,12,0,11,0,11,0,11,0,11,0,11,54,45,27,42,2,4,0,11,10,17,39,50,92,78]
[null,"$125,000 to $149,999",8,9,13,21,0,11,0,11,53,50,0,11,0,11,0,11,1,4,0,11,0,11,36,32,17,18,0,11,11,17,20,25,0,11,12,21,39,55]
[null,"$150,000 to $199,999",0,11,21,33,5,11,0,11,87,71,0,11,0,11,4,5,0,11,0,11,0,11,19,17,20,29,0,11,0,11,10,14,0,11,0,16,0,16]
[null,"$200,000 or more",4,7,10,14,0,11,4,7,15,23,2,4,0,11,0,11,0,11,0,11,11,13,0,11,7,11,0,11,0,11,6,10,0,11,0,16,31,46]
[null,"Householder 45 to 64 years:",150,42,622,163,131,34,60,26,1992,224,111,28,208,44,232,36,15,10,15,17,174,64,545,95,963,108,908,158,262,53,778,147,452,106,945,193,1168,197]
[null,"Less than $10,000",6,6,53,52,11,10,17,24,126,81,0,11,14,16,15,10,0,11,0,11,19,25,0,11,74,57,89,61,11,8,31,30,7,10,47,44,54,51]
[null,"$10,000 to $14,999",4,6,19,26,6,8,4,6,78,78,8,9,16,10,5,6,0,11,0,11,10,11,0,11,14,17,49,66,2,4,91,83,0,11,23,33,56,78]
[null,"$15,000 to $19,999",30,23,0,11,0,11,1,3,63,65,0,11,16,19,11,10,0,11,0,11,0,11,6,11,9,13,53,50,13,15,67,50,3,7,53,70,10,17]
[null,"$20,000 to $24,999",16,25,22,36,0,11,0,11,163,113,9,10,15,13,3,6,0,11,7,11,9,16,13,19,0,11,33,30,13,15,7,10,24,34,159,108,73,78]
[null,"$25,000 to $29,999",0,11,33,39,3,5,0,11,175,118,9,10,8,8,16,12,0,11,0,11,0,11,0,11,37,41,63,64,21,20,76,48,15,21,75,79,0,16]
[null,"$30,000 to $34,999",3,5,65,61,15,15,0,11,111,85,0,11,19,13,23,21,0,11,0,11,11,17,61,53,18,20,47,50,2,4,98,95,0,11,39,36,12,19]
[null,"$35,000 to $39,999",7,6,51,44,4,6,6,8,133,102,2,3,7,7,24,20,0,11,0,11,6,9,41,30,8,12,32,47,13,10,19,19,12,13,0,16,87,95]
[null,"$40,000 to $44,999",3,5,78,70,6,7,4,6,71,57,5,6,9,7,6,9,0,11,8,12,8,13,39,34,35,46,53,35,3,4,0,11,49,43,38,43,25,26]
[null,"$45,000 to $49,999",0,11,32,36,7,7,0,11,123,65,5,6,12,10,18,19,3,4,0,11,0,11,31,29,39,50,40,30,7,8,46,69,31,28,47,37,32,37]
[null,"$50,000 to $59,999",9,10,78,53,5,6,3,6,242,112,10,9,28,19,29,17,4,5,0,11,17,18,69,49,124,58,119,74,22,16,135,54,81,48,58,51,43,42]
[null,"$60,000 to $74,999",9,8,31,28,22,19,5,6,142,96,9,10,21,16,16,12,4,5,0,11,6,10,36,31,182,76,161,70,37,21,33,25,101,52,138,76,223,118]
[null,"$75,000 to $99,999",30,19,62,59,17,13,9,7,297,117,30,15,32,20,23,14,3,4,0,11,8,10,126,54,99,54,141,67,36,17,69,53,59,48,79,60,161,73]
[null,"$100,000 to $124,999",16,14,42,50,8,8,7,12,142,85,4,6,7,7,33,19,0,11,0,11,34,25,80,51,56,38,18,20,30,16,30,23,13,13,66,49,181,105]
[null,"$125,000 to $149,999",4,6,40,49,5,6,1,3,12,19,6,6,0,11,10,8,0,11,0,11,5,8,22,23,149,84,0,11,15,11,17,26,9,12,43,41,56,52]
[null,"$150,000 to $199,999",11,16,0,11,13,17,3,6,98,74,5,6,4,7,0,11,0,11,0,11,17,21,7,11,66,54,10,15,30,18,6,9,12,13,44,45,64,80]
[null,"$200,000 or more",2,3,16,25,9,10,0,11,16,18,9,13,0,11,0,11,1,2,0,11,24,19,14,21,53,54,0,11,7,7,53,52,36,22,36,43,91,66]
[null,"Householder 65 years and over:",85,31,381,126,74,38,47,20,958,196,56,22,134,41,250,57,36,14,4,4,152,47,233,72,570,100,312,79,228,46,325,95,334,81,641,182,954,179]
[null,"Less than $10,000",2,3,0,11,0,11,6,7,85,66,3,4,16,16,0,11,3,5,0,11,0,11,0,11,18,22,6,10,10,9,32,29,5,7,34,35,27,31]
[null,"$10,000 to $14,999",9,8,27,32,2,3,5,5,110,67,0,11,15,19,17,11,0,11,0,11,0,11,15,13,0,11,51,38,12,10,38,31,0,11,45,39,44,48]
[null,"$15,000 to $19,999",9,14,0,11,6,11,2,3,73,51,4,6,8,8,16,12,0,11,0,11,0,11,16,20,21,20,35,25,3,4,28,34,11,12,108,90,24,27]
[null,"$20,000 to $24,999",7,11,25,24,5,7,7,8,38,47,4,5,6,7,20,14,0,11,2,3,20,18,6,9,18,21,20,19,31,20,56,46,20,19,0,16,0,16]
[null,"$25,000 to $29,999",2,3,9,13,11,18,5,11,80,74,4,6,5,5,29,19,1,2,0,11,6,11,26,32,16,18,31,25,11,10,6,10,38,37,77,92,55,69]
[null,"$30,000 to $34,999",2,3,0,11,7,5,2,3,22,25,1,3,6,7,13,15,0,11,2,3,6,10,19,29,17,19,21,29,19,17,30,31,22,27,54,58,39,37]
[null,"$35,000 to $39,999",6,6,51,50,0,11,0,11,54,40,4,6,7,7,28,19,4,4,0,11,15,18,27,26,47,42,0,11,6,5,29,26,8,13,21,29,90,61]
[null,"$40,000 to $44,999",7,8,73,63,5,6,3,5,72,55,7,7,8,9,13,13,2,4,0,11,0,11,11,10,86,67,16,18,13,11,22,24,24,26,56,46,92,67]
[null,"$45,000 to $49,999",0,11,45,51,2,4,5,7,82,71,9,10,3,4,25,20,0,11,0,11,14,14,9,15,57,59,9,14,12,9,0,11,8,12,79,77,120,100]
[null,"$50,000 to $59,999",2,3,76,61,5,7,2,3,83,83,12,8,4,5,18,12,4,5,0,11,10,15,8,11,35,37,22,32,24,15,35,27,21,33,97,80,43,39]
[null,"$60,000 to $74,999",17,14,39,44,10,17,1,3,74,82,3,3,26,23,26,20,7,7,0,11,33,20,36,36,32,29,23,22,24,13,36,34,69,53,21,36,144,85]
[null,"$75,000 to $99,999",6,7,14,24,10,9,7,11,73,61,3,5,14,11,21,14,5,6,0,11,3,4,22,21,98,64,31,38,37,18,6,10,58,42,0,16,145,109]
[null,"$100,000 to $124,999",0,11,0,11,0,11,0,11,75,83,0,11,10,11,9,10,6,5,0,11,18,16,16,14,34,46,19,20,6,6,0,11,15,17,34,34,60,43]
[null,"$125,000 to $149,999",5,8,0,11,3,6,0,11,26,39,2,3,0,11,4,5,0,11,0,11,14,16,0,11,20,25,17,19,9,9,0,11,8,12,0,16,0,16]
[null,"$150,000 to $199,999",2,3,22,37,3,4,0,11,11,18,0,11,3,4,0,11,0,11,0,11,2,3,0,11,27,27,11,22,2,4,0,11,27,41,0,16,26,29]
[null,"$200,000 or more",9,14,0,11,5,6,2,4,0,18,0,11,3,4,11,16,4,5,0,11,11,13,22,35,44,37,0,11,9,9,7,10,0,11,15,23,45,44]

{"sheet":"DisabilityByAge","index":29,"n_rows":72,"n_cols":15,"rows_kept":72,"cut":false,"hidden":true,"merged":[[28,11,28,12],[28,13,28,14],[51,3,51,4],[51,5,51,6],[51,7,51,8],[51,9,51,10],[51,11,51,12],[51,13,51,14],[28,3,28,4],[28,5,28,6],[28,7,28,8],[28,9,28,10]]}
[]
[]
[]
[]
[null,{"$f":"CntyDataLink!A20","v":"Wolfeboro"}]
[null,"SOCIAL CHARACTERISTICS"]
[]
[null,"Disabilities By Age"]
[null,null,"Universe: Civilian Non-institutionalized Population"]
[]
[]
[]
[]
[]
[]
[]
[]
[]
[]
[]
[]
[]
[]
[]
[]
[]
[]
[]
[null,null,null,"Under 5",null,"5 to 17 years",null,"18 to 34 years",null,"35 to 64 years",null,"65 to 74 years",null,"75 years and older"]
[null,null,null,"Estimate","Margin of Error","Estimate","Margin of Error","Estimate","Margin of Error","Estimate","Margin of Error","Estimate","Margin of Error","Estimate","Margin of Error"]
[null,"Total ",null,{"$f":"CntyDataLink!D112","v":26},{"$f":"CntyDataLink!E112","v":38.013155617496423},{"$f":"CntyDataLink!J112","v":817},{"$f":"CntyDataLink!K112","v":195.64508682816444},{"$f":"CntyDataLink!P112","v":657},{"$f":"CntyDataLink!Q112","v":280.23204670415549},{"$f":"CntyDataLink!V112","v":2721},{"$f":"CntyDataLink!W112","v":359.31045072471801},{"$f":"CntyDataLink!AB112","v":983},{"$f":"CntyDataLink!AC112","v":239.00836805434241},{"$f":"CntyDataLink!AH112","v":1179},{"$f":"CntyDataLink!AI112","v":215.23243250030885}]
[]
[null,"With a disability:",null,{"$f":"CntyDataLink!F112","v":0},{"$f":"CntyDataLink!G112","v":24.041630560342615},{"$f":"CntyDataLink!L112","v":72},{"$f":"CntyDataLink!M112","v":72.47068372797375},{"$f":"CntyDataLink!R112","v":29},{"$f":"CntyDataLink!S112","v":56.612719418872643},{"$f":"CntyDataLink!X112","v":316},{"$f":"CntyDataLink!Y112","v":174.62244987400675},{"$f":"CntyDataLink!AD112","v":151},{"$f":"CntyDataLink!AE112","v":116.27553482998907},{"$f":"CntyDataLink!AJ112","v":532},{"$f":"CntyDataLink!AK112","v":212.13674834879504}]
[]
[null,"With one disability:",null,{"$f":"CntyDataLink!CX112","v":59},{"$f":"CntyDataLink!CY112","v":59},{"$f":"CntyDataLink!DB112","v":103},{"$f":"CntyDataLink!DC112","v":79},{"$f":"CntyDataLink!DF112","v":275},{"$f":"CntyDataLink!DG112","v":149},{"$f":"CntyDataLink!DJ112","v":0},{"$f":"CntyDataLink!DK112","v":0},{"$f":"CntyDataLink!DN112","v":0},{"$f":"CntyDataLink!DO112","v":0},{"$f":"CntyDataLink!DR112","v":0},{"$f":"CntyDataLink!DS112","v":0}]
[]
[null,"Type of disability"]
[null,null,"Hearing disability",{"$f":"CntyDataLink!AN112","v":0},{"$f":"CntyDataLink!AO112","v":24.041630560342615},{"$f":"CntyDataLink!AP112","v":0},{"$f":"CntyDataLink!AQ112","v":24.041630560342615},{"$f":"CntyDataLink!AR112","v":0},{"$f":"CntyDataLink!AS112","v":24.041630560342615},{"$f":"CntyDataLink!AT112","v":20},{"$f":"CntyDataLink!AU112","v":36.235341863986875},{"$f":"CntyDataLink!AV112","v":101},{"$f":"CntyDataLink!AW112","v":109.11003620199197},{"$f":"CntyDataLink!AX112","v":338},{"$f":"CntyDataLink!AY112","v":155.46703830716015}]
[null,null,"Visual disability",{"$f":"CntyDataLink!AZ112","v":0},{"$f":"CntyDataLink!BA112","v":24.041630560342615},{"$f":"CntyDataLink!BB112","v":0},{"$f":"CntyDataLink!BC112","v":24.041630560342615},{"$f":"CntyDataLink!BD112","v":0},{"$f":"CntyDataLink!BE112","v":24.041630560342615},{"$f":"CntyDataLink!BF112","v":59},{"$f":"CntyDataLink!BG112","v":94.540996398387932},{"$f":"CntyDataLink!BH112","v":20},{"$f":"CntyDataLink!BI112","v":31.064449134018133},{"$f":"CntyDataLink!BJ112","v":206},{"$f":"CntyDataLink!BK112","v":137.7679207943562}]
[null,null,"Cognitive disability","NA","NA",{"$f":"CntyDataLink!BL112","v":72},{"$f":"CntyDataLink!BM112","v":72.47068372797375},{"$f":"CntyDataLink!BN112","v":29},{"$f":"CntyDataLink!BO112","v":56.612719418872643},{"$f":"CntyDataLink!BP112","v":285},{"$f":"CntyDataLink!BQ112","v":168.83423823383691},{"$f":"CntyDataLink!BR112","v":0},{"$f":"CntyDataLink!BS112","v":24.041630560342615},{"$f":"CntyDataLink!BT112","v":206},{"$f":"CntyDataLink!BU112","v":129.84991336154215}]
[null,null,"Ambulatory disability","NA","NA",{"$f":"CntyDataLink!BV112","v":0},{"$f":"CntyDataLink!BW112","v":22.627416997969522},{"$f":"CntyDataLink!BX112","v":30},{"$f":"CntyDataLink!BY112","v":41.231056256176608},{"$f":"CntyDataLink!BZ112","v":67},{"$f":"CntyDataLink!CA112","v":56.797887284651708},{"$f":"CntyDataLink!CB112","v":138},{"$f":"CntyDataLink!CC112","v":91.214034007931033},{"$f":"CntyDataLink!CD112","v":87},{"$f":"CntyDataLink!CE112","v":54.405882034941776}]
[null,null,"Self-care disability","NA","NA",{"$f":"CntyDataLink!CF112","v":13},{"$f":"CntyDataLink!CG112","v":24.041630560342615},{"$f":"CntyDataLink!CH112","v":18},{"$f":"CntyDataLink!CI112","v":51.86520991955976},{"$f":"CntyDataLink!CJ112","v":213},{"$f":"CntyDataLink!CK112","v":164.7573974060042},{"$f":"CntyDataLink!CL112","v":0},{"$f":"CntyDataLink!CM112","v":24.041630560342615},{"$f":"CntyDataLink!CN112","v":165},{"$f":"CntyDataLink!CO112","v":103.94229168149026}]
[null,null,"Independent living disability","NA","NA","NA","NA",{"$f":"CntyDataLink!CP112","v":11},{"$f":"CntyDataLink!CQ112","v":25.495097567963924},{"$f":"CntyDataLink!CR112","v":154},{"$f":"CntyDataLink!CS112","v":137.05838172107534},{"$f":"CntyDataLink!CT112","v":4},{"$f":"CntyDataLink!CU112","v":18.384776310850235},{"$f":"CntyDataLink!CV112","v":209},{"$f":"CntyDataLink!CW112","v":124.48293055676348}]
[]
[null,"With two or more types of disability:",null,{"$f":"CntyDataLink!CZ112","v":13},{"$f":"CntyDataLink!DA112","v":17},{"$f":"CntyDataLink!DD112","v":242},{"$f":"CntyDataLink!DE112","v":156},{"$f":"CntyDataLink!DH112","v":408},{"$f":"CntyDataLink!DI112","v":184},{"$f":"CntyDataLink!DL112","v":0},{"$f":"CntyDataLink!DM112","v":0},{"$f":"CntyDataLink!DP112","v":0},{"$f":"CntyDataLink!DQ112","v":0},{"$f":"CntyDataLink!DT112","v":0},{"$f":"CntyDataLink!DU112","v":0}]
[]
[null,"No disability",null,{"$f":"CntyDataLink!H112","v":26},{"$f":"CntyDataLink!I112","v":38.013155617496423},{"$f":"CntyDataLink!N112","v":745},{"$f":"CntyDataLink!O112","v":208.85641000457707},{"$f":"CntyDataLink!T112","v":628},{"$f":"CntyDataLink!U112","v":277.71388153997634},{"$f":"CntyDataLink!Z112","v":2405},{"$f":"CntyDataLink!AA112","v":355.02816789657692},{"$f":"CntyDataLink!AF112","v":832},{"$f":"CntyDataLink!AG112","v":225.22211259110415},{"$f":"CntyDataLink!AL112","v":647},{"$f":"CntyDataLink!AM112","v":163.93291310777101}]
[null,"Source: 2018-2022 American Community Survey Tables B18101;  B18102; B18103; B18104; B18105; B18106; and B18107"]
[null,"NA indicates that the American Community Survey does not calculate the number for that disability."]
[null,"Percent of Population with Disabilities"]
[]
[null,null,null,"Under 5",null,"5 to 17 years",null,"18 to 34 years",null,"35 to 64 years",null,"65 to 74 years",null,"75 years and older"]
[]
[null,"With a disability:",null,{"$f":"D33/D$31","v":0},null,{"$f":"F33/F$31","v":8.8127294981640153E-2},null,{"$f":"H33/H$31","v":4.4140030441400302E-2},null,{"$f":"J33/J$31","v":0.11613377434766629},null,{"$f":"L33/L$31","v":0.15361139369277721},null,{"$f":"N33/N$31","v":0.45122985581000846}]
[]
[null,"Type of disability"]
[null,null,"Hearing disability",{"$f":"D38/D$31","v":0},null,{"$f":"F38/F$31","v":0},null,{"$f":"H38/H$31","v":0},null,{"$f":"J38/J$31","v":7.3502388827636897E-3},null,{"$f":"L38/L$31","v":0.10274669379450661},null,{"$f":"N38/N$31","v":0.28668363019508059}]
[null,null,"Visual disability",{"$f":"D39/D$31","v":0},null,{"$f":"F39/F$31","v":0},null,0,null,2.1683204704152886E-2,null,2.0345879959308241E-2,null,0.17472434266327397]
[null,null,"Cognitive disability","NA",null,{"$f":"F40/F$31","v":8.8127294981640153E-2},null,4.4140030441400302E-2,null,0.10474090407938258,null,0,null,0.17472434266327397]
[null,null,"Ambulatory disability","NA",null,{"$f":"F41/F$31","v":0},null,4.5662100456621002E-2,null,2.4623300257258361E-2,null,0.14038657171922686,null,7.3791348600508899E-2]
[null,null,"Self-care disability","NA",null,{"$f":"F42/F$31","v":1.591187270501836E-2},null,2.7397260273972601E-2,null,7.8280044101433299E-2,null,0,null,0.13994910941475827]
[null,null,"Independent living disability","NA",null,"NA",null,1.6742770167427701E-2,null,5.6596839397280413E-2,null,4.0691759918616479E-3,null,0.17726887192536048]
[]
[null,"With two or more types of disability:",null,{"$f":"D45/D$31","v":0.5},null,{"$f":"F45/F$31","v":0.29620563035495717},null,{"$f":"H45/H$31","v":0.62100456621004563},null,{"$f":"J45/J$31","v":0},null,{"$f":"L45/L$31","v":0},null,{"$f":"N45/N$31","v":0}]
[]
[null,"No disability",null,{"$f":"D47/D$31","v":1},null,{"$f":"F47/F$31","v":0.91187270501835982},null,{"$f":"H47/H$31","v":0.95585996955859964},null,{"$f":"J47/J$31","v":0.88386622565233375},null,{"$f":"L47/L$31","v":0.84638860630722279},null,{"$f":"N47/N$31","v":0.54877014418999148}]
[]
[]
[null,"Source: 2018-2022 American Community Survey Tables B18101;  B18102; B18103; B18104; B18105; B18106; and B18107"]
[null,"NA indicates that the American Community Survey does not calculate the number for that disability."]
[]
[null,"Data from the American Community Survey are estimates."]

{"sheet":"DisabilityByAgePrior5YearEst","index":30,"n_rows":72,"n_cols":15,"rows_kept":72,"cut":false,"hidden":true,"merged":[[51,13,51,14],[28,3,28,4],[28,5,28,6],[28,7,28,8],[28,9,28,10],[28,11,28,12],[28,13,28,14],[51,3,51,4],[51,5,51,6],[51,7,51,8],[51,9,51,10],[51,11,51,12]]}
[]
[]
[]
[]
[null,{"$f":"CntyDataLinkPrior5YearEstimates!A112","v":"Wolfeboro"}]
[null,"SOCIAL CHARACTERISTICS"]
[]
[null,"Disabilities By Age"]
[null,null,"Universe: Civilian Non-institutionalized Population"]
[]
[]
[]
[]
[]
[]
[]
[]
[]
[]
[]
[]
[]
[]
[]
[]
[]
[]
[]
[null,null,null,"Under 5",null,"5 to 17 years",null,"18 to 34 years",null,"35 to 64 years",null,"65 to 74 years",null,"75 years and older"]
[null,null,null,"Estimate","Margin of Error","Estimate","Margin of Error","Estimate","Margin of Error","Estimate","Margin of Error","Estimate","Margin of Error","Estimate","Margin of Error"]
[null,"Total ",null,{"$f":"CntyDataLinkPrior5YearEstimates!D112","v":201},{"$f":"CntyDataLinkPrior5YearEstimates!E112","v":81.584312217484552},{"$f":"CntyDataLinkPrior5YearEstimates!J112","v":597},{"$f":"CntyDataLinkPrior5YearEstimates!K112","v":179.40178371465541},{"$f":"CntyDataLinkPrior5YearEstimates!P112","v":773},{"$f":"CntyDataLinkPrior5YearEstimates!Q112","v":216.67025638051939},{"$f":"CntyDataLinkPrior5YearEstimates!V112","v":2351},{"$f":"CntyDataLinkPrior5YearEstimates!W112","v":196.65706191235543},{"$f":"CntyDataLinkPrior5YearEstimates!AB112","v":1222},{"$f":"CntyDataLinkPrior5YearEstimates!AC112","v":170.18225524419401},{"$f":"CntyDataLinkPrior5YearEstimates!AH112","v":986},{"$f":"CntyDataLinkPrior5YearEstimates!AI112","v":230.20208513391012}]
[]
[null,"With a disability:",null,{"$f":"CntyDataLinkPrior5YearEstimates!F112","v":0},{"$f":"CntyDataLinkPrior5YearEstimates!G112","v":22.627416997969522},{"$f":"CntyDataLinkPrior5YearEstimates!L112","v":0},{"$f":"CntyDataLinkPrior5YearEstimates!M112","v":22.627416997969522},{"$f":"CntyDataLinkPrior5YearEstimates!R112","v":33},{"$f":"CntyDataLinkPrior5YearEstimates!S112","v":41.231056256176608},{"$f":"CntyDataLinkPrior5YearEstimates!X112","v":310},{"$f":"CntyDataLinkPrior5YearEstimates!Y112","v":152.3975065412817},{"$f":"CntyDataLinkPrior5YearEstimates!AD112","v":218},{"$f":"CntyDataLinkPrior5YearEstimates!AE112","v":97.652444925869617},{"$f":"CntyDataLinkPrior5YearEstimates!AJ112","v":557},{"$f":"CntyDataLinkPrior5YearEstimates!AK112","v":217.27862297059966}]
[]
[null,"With one disability:",null,{"$f":"CntyDataLinkPrior5YearEstimates!CX112","v":0},{"$f":"CntyDataLinkPrior5YearEstimates!CY112","v":16},{"$f":"CntyDataLinkPrior5YearEstimates!DB112","v":205},{"$f":"CntyDataLinkPrior5YearEstimates!DC112","v":123},{"$f":"CntyDataLinkPrior5YearEstimates!DF112","v":221},{"$f":"CntyDataLinkPrior5YearEstimates!DG112","v":125},{"$f":"CntyDataLinkPrior5YearEstimates!DJ112","v":0},{"$f":"CntyDataLinkPrior5YearEstimates!DK112","v":0},{"$f":"CntyDataLinkPrior5YearEstimates!DN112","v":0},{"$f":"CntyDataLinkPrior5YearEstimates!DO112","v":0},{"$f":"CntyDataLinkPrior5YearEstimates!DR112","v":0},{"$f":"CntyDataLinkPrior5YearEstimates!DS112","v":0}]
[]
[null,"Type of disability"]
[null,null,"Hearing disability",{"$f":"CntyDataLinkPrior5YearEstimates!AN112","v":0},{"$f":"CntyDataLinkPrior5YearEstimates!AO112","v":22.627416997969522},{"$f":"CntyDataLinkPrior5YearEstimates!AP112","v":0},{"$f":"CntyDataLinkPrior5YearEstimates!AQ112","v":22.627416997969522},{"$f":"CntyDataLinkPrior5YearEstimates!AR112","v":0},{"$f":"CntyDataLinkPrior5YearEstimates!AS112","v":22.627416997969522},{"$f":"CntyDataLinkPrior5YearEstimates!AT112","v":43},{"$f":"CntyDataLinkPrior5YearEstimates!AU112","v":50.596442562694072},{"$f":"CntyDataLinkPrior5YearEstimates!AV112","v":135},{"$f":"CntyDataLinkPrior5YearEstimates!AW112","v":76.53757247260981},{"$f":"CntyDataLinkPrior5YearEstimates!AX112","v":291},{"$f":"CntyDataLinkPrior5YearEstimates!AY112","v":157.8131806916013}]
[null,null,"Visual disability",{"$f":"CntyDataLinkPrior5YearEstimates!AZ112","v":0},{"$f":"CntyDataLinkPrior5YearEstimates!BA112","v":22.627416997969522},{"$f":"CntyDataLinkPrior5YearEstimates!BB112","v":0},{"$f":"CntyDataLinkPrior5YearEstimates!BC112","v":22.627416997969522},{"$f":"CntyDataLinkPrior5YearEstimates!BD112","v":0},{"$f":"CntyDataLinkPrior5YearEstimates!BE112","v":22.627416997969522},{"$f":"CntyDataLinkPrior5YearEstimates!BF112","v":108},{"$f":"CntyDataLinkPrior5YearEstimates!BG112","v":105.38026380684383},{"$f":"CntyDataLinkPrior5YearEstimates!BH112","v":18},{"$f":"CntyDataLinkPrior5YearEstimates!BI112","v":33.120990323358392},{"$f":"CntyDataLinkPrior5YearEstimates!BJ112","v":118},{"$f":"CntyDataLinkPrior5YearEstimates!BK112","v":117.51595636338071}]
[null,null,"Cognitive disability","NA","NA",{"$f":"CntyDataLinkPrior5YearEstimates!BL112","v":0},{"$f":"CntyDataLinkPrior5YearEstimates!BM112","v":22.627416997969522},{"$f":"CntyDataLinkPrior5YearEstimates!BN112","v":33},{"$f":"CntyDataLinkPrior5YearEstimates!BO112","v":41.231056256176608},{"$f":"CntyDataLinkPrior5YearEstimates!BP112","v":153},{"$f":"CntyDataLinkPrior5YearEstimates!BQ112","v":112.57886124845996},{"$f":"CntyDataLinkPrior5YearEstimates!BR112","v":32},{"$f":"CntyDataLinkPrior5YearEstimates!BS112","v":36.796738985948195},{"$f":"CntyDataLinkPrior5YearEstimates!BT112","v":194},{"$f":"CntyDataLinkPrior5YearEstimates!BU112","v":143.95138068111746}]
[null,null,"Ambulatory disability","NA","NA",{"$f":"CntyDataLinkPrior5YearEstimates!BV112","v":0},{"$f":"CntyDataLinkPrior5YearEstimates!BW112","v":22.627416997969522},{"$f":"CntyDataLinkPrior5YearEstimates!BX112","v":0},{"$f":"CntyDataLinkPrior5YearEstimates!BY112","v":22.627416997969522},{"$f":"CntyDataLinkPrior5YearEstimates!BZ112","v":120},{"$f":"CntyDataLinkPrior5YearEstimates!CA112","v":96.041657628343756},{"$f":"CntyDataLinkPrior5YearEstimates!CB112","v":125},{"$f":"CntyDataLinkPrior5YearEstimates!CC112","v":94.826156729037578},{"$f":"CntyDataLinkPrior5YearEstimates!CD112","v":469},{"$f":"CntyDataLinkPrior5YearEstimates!CE112","v":206.64946164943183}]
[null,null,"Self-care disability","NA","NA",{"$f":"CntyDataLinkPrior5YearEstimates!CF112","v":0},{"$f":"CntyDataLinkPrior5YearEstimates!CG112","v":22.627416997969522},{"$f":"CntyDataLinkPrior5YearEstimates!CH112","v":0},{"$f":"CntyDataLinkPrior5YearEstimates!CI112","v":22.627416997969522},{"$f":"CntyDataLinkPrior5YearEstimates!CJ112","v":56},{"$f":"CntyDataLinkPrior5YearEstimates!CK112","v":54.083269131959838},{"$f":"CntyDataLinkPrior5YearEstimates!CL112","v":32},{"$f":"CntyDataLinkPrior5YearEstimates!CM112","v":36.796738985948195},{"$f":"CntyDataLinkPrior5YearEstimates!CN112","v":52},{"$f":"CntyDataLinkPrior5YearEstimates!CO112","v":84.528101836016646}]
[null,null,"Independent living disability","NA","NA","NA","NA",{"$f":"CntyDataLinkPrior5YearEstimates!CP112","v":38},{"$f":"CntyDataLinkPrior5YearEstimates!CQ112","v":48.703182647543684},{"$f":"CntyDataLinkPrior5YearEstimates!CR112","v":47},{"$f":"CntyDataLinkPrior5YearEstimates!CS112","v":51.546095875439491},{"$f":"CntyDataLinkPrior5YearEstimates!CT112","v":14},{"$f":"CntyDataLinkPrior5YearEstimates!CU112","v":28.0178514522438},{"$f":"CntyDataLinkPrior5YearEstimates!CV112","v":75},{"$f":"CntyDataLinkPrior5YearEstimates!CW112","v":50.089919145472777}]
[]
[null,"With two or more types of disability:",null,{"$f":"CntyDataLinkPrior5YearEstimates!CZ112","v":0},{"$f":"CntyDataLinkPrior5YearEstimates!DA112","v":16},{"$f":"CntyDataLinkPrior5YearEstimates!DD112","v":138},{"$f":"CntyDataLinkPrior5YearEstimates!DE112","v":99},{"$f":"CntyDataLinkPrior5YearEstimates!DH112","v":554},{"$f":"CntyDataLinkPrior5YearEstimates!DI112","v":272},{"$f":"CntyDataLinkPrior5YearEstimates!DL112","v":0},{"$f":"CntyDataLinkPrior5YearEstimates!DM112","v":0},{"$f":"CntyDataLinkPrior5YearEstimates!DP112","v":0},{"$f":"CntyDataLinkPrior5YearEstimates!DQ112","v":0},{"$f":"CntyDataLinkPrior5YearEstimates!DT112","v":0},{"$f":"CntyDataLinkPrior5YearEstimates!DU112","v":0}]
[]
[null,"No disability",null,{"$f":"CntyDataLinkPrior5YearEstimates!H112","v":201},{"$f":"CntyDataLinkPrior5YearEstimates!I112","v":81.584312217484552},{"$f":"CntyDataLinkPrior5YearEstimates!N112","v":597},{"$f":"CntyDataLinkPrior5YearEstimates!O112","v":179.40178371465541},{"$f":"CntyDataLinkPrior5YearEstimates!T112","v":740},{"$f":"CntyDataLinkPrior5YearEstimates!U112","v":221.16509670379727},{"$f":"CntyDataLinkPrior5YearEstimates!Z112","v":2041},{"$f":"CntyDataLinkPrior5YearEstimates!AA112","v":220.09543384632039},{"$f":"CntyDataLinkPrior5YearEstimates!AF112","v":1004},{"$f":"CntyDataLinkPrior5YearEstimates!AG112","v":162.68988905276197},{"$f":"CntyDataLinkPrior5YearEstimates!AL112","v":429},{"$f":"CntyDataLinkPrior5YearEstimates!AM112","v":156.20499351813308}]
[null,"Source: 2013-2017 American Community Survey Tables B18101;  B18102; B18103; B18104; B18105; B18106;  and B18107"]
[null,"NA indicates that the American Community Survey does not calculate the number for that disability."]
[null,"Percent of Population with Disabilities"]
[]
[null,null,null,"Under 5",null,"5 to 17 years",null,"18 to 34 years",null,"35 to 64 years",null,"65 to 74 years",null,"75 years and older"]
[]
[null,"With a disability:",null,{"$f":"D33/D$31","v":0},null,{"$f":"F33/F$31","v":0},null,{"$f":"H33/H$31","v":4.2690815006468305E-2},null,{"$f":"J33/J$31","v":0.13185878349638452},null,{"$f":"L33/L$31","v":0.17839607201309329},null,{"$f":"N33/N$31","v":0.56490872210953347}]
[]
[null,"Type of disability"]
[null,null,"Hearing disability",{"$f":"D38/D$31","v":0},null,{"$f":"F38/F$31","v":0},null,{"$f":"H38/H$31","v":0},null,{"$f":"J38/J$31","v":1.8290089323692044E-2},null,{"$f":"L38/L$31","v":0.1104746317512275},null,{"$f":"N38/N$31","v":0.29513184584178498}]
[null,null,"Visual disability",{"$f":"D39/D$31","v":0},null,{"$f":"F39/F$31","v":0},null,0,null,4.5937898766482348E-2,null,1.4729950900163666E-2,null,0.11967545638945233]
[null,null,"Cognitive disability","NA",null,{"$f":"F40/F$31","v":0},null,4.2690815006468305E-2,null,6.5078689919183322E-2,null,2.6186579378068741E-2,null,0.19675456389452334]
[null,null,"Ambulatory disability","NA",null,{"$f":"F41/F$31","v":0},null,0,null,5.104210974053594E-2,null,0.10229132569558101,null,0.47565922920892495]
[null,null,"Self-care disability","NA",null,{"$f":"F42/F$31","v":0},null,0,null,2.3819651212250107E-2,null,2.6186579378068741E-2,null,5.2738336713995942E-2]
[null,null,"Independent living disability","NA",null,"NA",null,4.9159120310478657E-2,null,1.9991492981709911E-2,null,1.1456628477905073E-2,null,7.6064908722109539E-2]
[]
[]
[]
[null,"No disability",null,{"$f":"D47/D$31","v":1},null,{"$f":"F47/F$31","v":1},null,{"$f":"H47/H$31","v":0.95730918499353168},null,{"$f":"J47/J$31","v":0.86814121650361553},null,{"$f":"L47/L$31","v":0.82160392798690673},null,{"$f":"N47/N$31","v":0.43509127789046653}]
[]
[]
[null,"Source: 2013-2017 American Community Survey Tables B18101;  B18102; B18103; B18104; B18105; B18106;  and B18107"]
[null,"NA indicates that the American Community Survey does not calculate the number for that disability."]
[]
[null,"Data from the American Community Survey are estimates."]

{"sheet":"DisabilityByAgePrior10YearEst","index":31,"n_rows":72,"n_cols":15,"rows_kept":72,"cut":false,"hidden":true,"merged":[[51,13,51,14],[28,3,28,4],[28,5,28,6],[28,7,28,8],[28,9,28,10],[28,11,28,12],[28,13,28,14],[51,3,51,4],[51,5,51,6],[51,7,51,8],[51,9,51,10],[51,11,51,12]]}
[]
[]
[]
[]
[null,{"$f":"CntyDataLinkPrior5YearEstimates!A112","v":"Wolfeboro"}]
[null,"SOCIAL CHARACTERISTICS"]
[]
[null,"Disabilities By Age"]
[null,null,"Universe: Civilian Non-institutionalized Population"]
[]
[]
[]
[]
[]
[]
[]
[]
[]
[]
[]
[]
[]
[]
[]
[]
[]
[]
[]
[null,null,null,"Under 5",null,"5 to 17 years",null,"18 to 34 years",null,"35 to 64 years",null,"65 to 74 years",null,"75 years and older"]
[null,null,null,"Estimate","Margin of Error","Estimate","Margin of Error","Estimate","Margin of Error","Estimate","Margin of Error","Estimate","Margin of Error","Estimate","Margin of Error"]
[null,"Total ",null,{"$f":"CntyDataLinkPrior5YearEstimates!D112","v":201},{"$f":"CntyDataLinkPrior5YearEstimates!E112","v":81.584312217484552},{"$f":"CntyDataLinkPrior5YearEstimates!J112","v":597},{"$f":"CntyDataLinkPrior5YearEstimates!K112","v":179.40178371465541},{"$f":"CntyDataLinkPrior5YearEstimates!P112","v":773},{"$f":"CntyDataLinkPrior5YearEstimates!Q112","v":216.67025638051939},{"$f":"CntyDataLinkPrior5YearEstimates!V112","v":2351},{"$f":"CntyDataLinkPrior5YearEstimates!W112","v":196.65706191235543},{"$f":"CntyDataLinkPrior5YearEstimates!AB112","v":1222},{"$f":"CntyDataLinkPrior5YearEstimates!AC112","v":170.18225524419401},{"$f":"CntyDataLinkPrior5YearEstimates!AH112","v":986},{"$f":"CntyDataLinkPrior5YearEstimates!AI112","v":230.20208513391012}]
[]
[null,"With a disability:",null,{"$f":"CntyDataLinkPrior5YearEstimates!F112","v":0},{"$f":"CntyDataLinkPrior5YearEstimates!G112","v":22.627416997969522},{"$f":"CntyDataLinkPrior5YearEstimates!L112","v":0},{"$f":"CntyDataLinkPrior5YearEstimates!M112","v":22.627416997969522},{"$f":"CntyDataLinkPrior5YearEstimates!R112","v":33},{"$f":"CntyDataLinkPrior5YearEstimates!S112","v":41.231056256176608},{"$f":"CntyDataLinkPrior5YearEstimates!X112","v":310},{"$f":"CntyDataLinkPrior5YearEstimates!Y112","v":152.3975065412817},{"$f":"CntyDataLinkPrior5YearEstimates!AD112","v":218},{"$f":"CntyDataLinkPrior5YearEstimates!AE112","v":97.652444925869617},{"$f":"CntyDataLinkPrior5YearEstimates!AJ112","v":557},{"$f":"CntyDataLinkPrior5YearEstimates!AK112","v":217.27862297059966}]
[]
[null,"With one disability:",null,{"$f":"CntyDataLinkPrior5YearEstimates!CX112","v":0},{"$f":"CntyDataLinkPrior5YearEstimates!CY112","v":16},{"$f":"CntyDataLinkPrior5YearEstimates!DB112","v":205},{"$f":"CntyDataLinkPrior5YearEstimates!DC112","v":123},{"$f":"CntyDataLinkPrior5YearEstimates!DF112","v":221},{"$f":"CntyDataLinkPrior5YearEstimates!DG112","v":125},{"$f":"CntyDataLinkPrior5YearEstimates!DJ112","v":0},{"$f":"CntyDataLinkPrior5YearEstimates!DK112","v":0},{"$f":"CntyDataLinkPrior5YearEstimates!DN112","v":0},{"$f":"CntyDataLinkPrior5YearEstimates!DO112","v":0},{"$f":"CntyDataLinkPrior5YearEstimates!DR112","v":0},{"$f":"CntyDataLinkPrior5YearEstimates!DS112","v":0}]
[]
[null,"Type of disability"]
[null,null,"Hearing disability",{"$f":"CntyDataLinkPrior5YearEstimates!AN112","v":0},{"$f":"CntyDataLinkPrior5YearEstimates!AO112","v":22.627416997969522},{"$f":"CntyDataLinkPrior5YearEstimates!AP112","v":0},{"$f":"CntyDataLinkPrior5YearEstimates!AQ112","v":22.627416997969522},{"$f":"CntyDataLinkPrior5YearEstimates!AR112","v":0},{"$f":"CntyDataLinkPrior5YearEstimates!AS112","v":22.627416997969522},{"$f":"CntyDataLinkPrior5YearEstimates!AT112","v":43},{"$f":"CntyDataLinkPrior5YearEstimates!AU112","v":50.596442562694072},{"$f":"CntyDataLinkPrior5YearEstimates!AV112","v":135},{"$f":"CntyDataLinkPrior5YearEstimates!AW112","v":76.53757247260981},{"$f":"CntyDataLinkPrior5YearEstimates!AX112","v":291},{"$f":"CntyDataLinkPrior5YearEstimates!AY112","v":157.8131806916013}]
[null,null,"Visual disability",{"$f":"CntyDataLinkPrior5YearEstimates!AZ112","v":0},{"$f":"CntyDataLinkPrior5YearEstimates!BA112","v":22.627416997969522},{"$f":"CntyDataLinkPrior5YearEstimates!BB112","v":0},{"$f":"CntyDataLinkPrior5YearEstimates!BC112","v":22.627416997969522},{"$f":"CntyDataLinkPrior5YearEstimates!BD112","v":0},{"$f":"CntyDataLinkPrior5YearEstimates!BE112","v":22.627416997969522},{"$f":"CntyDataLinkPrior5YearEstimates!BF112","v":108},{"$f":"CntyDataLinkPrior5YearEstimates!BG112","v":105.38026380684383},{"$f":"CntyDataLinkPrior5YearEstimates!BH112","v":18},{"$f":"CntyDataLinkPrior5YearEstimates!BI112","v":33.120990323358392},{"$f":"CntyDataLinkPrior5YearEstimates!BJ112","v":118},{"$f":"CntyDataLinkPrior5YearEstimates!BK112","v":117.51595636338071}]
[null,null,"Cognitive disability","NA","NA",{"$f":"CntyDataLinkPrior5YearEstimates!BL112","v":0},{"$f":"CntyDataLinkPrior5YearEstimates!BM112","v":22.627416997969522},{"$f":"CntyDataLinkPrior5YearEstimates!BN112","v":33},{"$f":"CntyDataLinkPrior5YearEstimates!BO112","v":41.231056256176608},{"$f":"CntyDataLinkPrior5YearEstimates!BP112","v":153},{"$f":"CntyDataLinkPrior5YearEstimates!BQ112","v":112.57886124845996},{"$f":"CntyDataLinkPrior5YearEstimates!BR112","v":32},{"$f":"CntyDataLinkPrior5YearEstimates!BS112","v":36.796738985948195},{"$f":"CntyDataLinkPrior5YearEstimates!BT112","v":194},{"$f":"CntyDataLinkPrior5YearEstimates!BU112","v":143.95138068111746}]
[null,null,"Ambulatory disability","NA","NA",{"$f":"CntyDataLinkPrior5YearEstimates!BV112","v":0},{"$f":"CntyDataLinkPrior5YearEstimates!BW112","v":22.627416997969522},{"$f":"CntyDataLinkPrior5YearEstimates!BX112","v":0},{"$f":"CntyDataLinkPrior5YearEstimates!BY112","v":22.627416997969522},{"$f":"CntyDataLinkPrior5YearEstimates!BZ112","v":120},{"$f":"CntyDataLinkPrior5YearEstimates!CA112","v":96.041657628343756},{"$f":"CntyDataLinkPrior5YearEstimates!CB112","v":125},{"$f":"CntyDataLinkPrior5YearEstimates!CC112","v":94.826156729037578},{"$f":"CntyDataLinkPrior5YearEstimates!CD112","v":469},{"$f":"CntyDataLinkPrior5YearEstimates!CE112","v":206.64946164943183}]
[null,null,"Self-care disability","NA","NA",{"$f":"CntyDataLinkPrior5YearEstimates!CF112","v":0},{"$f":"CntyDataLinkPrior5YearEstimates!CG112","v":22.627416997969522},{"$f":"CntyDataLinkPrior5YearEstimates!CH112","v":0},{"$f":"CntyDataLinkPrior5YearEstimates!CI112","v":22.627416997969522},{"$f":"CntyDataLinkPrior5YearEstimates!CJ112","v":56},{"$f":"CntyDataLinkPrior5YearEstimates!CK112","v":54.083269131959838},{"$f":"CntyDataLinkPrior5YearEstimates!CL112","v":32},{"$f":"CntyDataLinkPrior5YearEstimates!CM112","v":36.796738985948195},{"$f":"CntyDataLinkPrior5YearEstimates!CN112","v":52},{"$f":"CntyDataLinkPrior5YearEstimates!CO112","v":84.528101836016646}]
[null,null,"Independent living disability","NA","NA","NA","NA",{"$f":"CntyDataLinkPrior5YearEstimates!CP112","v":38},{"$f":"CntyDataLinkPrior5YearEstimates!CQ112","v":48.703182647543684},{"$f":"CntyDataLinkPrior5YearEstimates!CR112","v":47},{"$f":"CntyDataLinkPrior5YearEstimates!CS112","v":51.546095875439491},{"$f":"CntyDataLinkPrior5YearEstimates!CT112","v":14},{"$f":"CntyDataLinkPrior5YearEstimates!CU112","v":28.0178514522438},{"$f":"CntyDataLinkPrior5YearEstimates!CV112","v":75},{"$f":"CntyDataLinkPrior5YearEstimates!CW112","v":50.089919145472777}]
[]
[null,"With two or more types of disability:",null,{"$f":"CntyDataLinkPrior5YearEstimates!CZ112","v":0},{"$f":"CntyDataLinkPrior5YearEstimates!DA112","v":16},{"$f":"CntyDataLinkPrior5YearEstimates!DD112","v":138},{"$f":"CntyDataLinkPrior5YearEstimates!DE112","v":99},{"$f":"CntyDataLinkPrior5YearEstimates!DH112","v":554},{"$f":"CntyDataLinkPrior5YearEstimates!DI112","v":272},{"$f":"CntyDataLinkPrior5YearEstimates!DL112","v":0},{"$f":"CntyDataLinkPrior5YearEstimates!DM112","v":0},{"$f":"CntyDataLinkPrior5YearEstimates!DP112","v":0},{"$f":"CntyDataLinkPrior5YearEstimates!DQ112","v":0},{"$f":"CntyDataLinkPrior5YearEstimates!DT112","v":0},{"$f":"CntyDataLinkPrior5YearEstimates!DU112","v":0}]
[]
[null,"No disability",null,{"$f":"CntyDataLinkPrior5YearEstimates!H112","v":201},{"$f":"CntyDataLinkPrior5YearEstimates!I112","v":81.584312217484552},{"$f":"CntyDataLinkPrior5YearEstimates!N112","v":597},{"$f":"CntyDataLinkPrior5YearEstimates!O112","v":179.40178371465541},{"$f":"CntyDataLinkPrior5YearEstimates!T112","v":740},{"$f":"CntyDataLinkPrior5YearEstimates!U112","v":221.16509670379727},{"$f":"CntyDataLinkPrior5YearEstimates!Z112","v":2041},{"$f":"CntyDataLinkPrior5YearEstimates!AA112","v":220.09543384632039},{"$f":"CntyDataLinkPrior5YearEstimates!AF112","v":1004},{"$f":"CntyDataLinkPrior5YearEstimates!AG112","v":162.68988905276197},{"$f":"CntyDataLinkPrior5YearEstimates!AL112","v":429},{"$f":"CntyDataLinkPrior5YearEstimates!AM112","v":156.20499351813308}]
[null,"Source: 2008-2012 American Community Survey Tables B18101;  B18102; B18103; B18104; B18105; B18106;  and B18107"]
[null,"NA indicates that the American Community Survey does not calculate the number for that disability."]
[null,"Percent of Population with Disabilities"]
[]
[null,null,null,"Under 5",null,"5 to 17 years",null,"18 to 34 years",null,"35 to 64 years",null,"65 to 74 years",null,"75 years and older"]
[]
[null,"With a disability:",null,{"$f":"D33/D$31","v":0},null,{"$f":"F33/F$31","v":0},null,{"$f":"H33/H$31","v":4.2690815006468305E-2},null,{"$f":"J33/J$31","v":0.13185878349638452},null,{"$f":"L33/L$31","v":0.17839607201309329},null,{"$f":"N33/N$31","v":0.56490872210953347}]
[]
[null,"Type of disability"]
[null,null,"Hearing disability",{"$f":"D38/D$31","v":0},null,{"$f":"F38/F$31","v":0},null,{"$f":"H38/H$31","v":0},null,{"$f":"J38/J$31","v":1.8290089323692044E-2},null,{"$f":"L38/L$31","v":0.1104746317512275},null,{"$f":"N38/N$31","v":0.29513184584178498}]
[null,null,"Visual disability",{"$f":"D39/D$31","v":0},null,{"$f":"F39/F$31","v":0},null,0,null,4.5937898766482348E-2,null,1.4729950900163666E-2,null,0.11967545638945233]
[null,null,"Cognitive disability","NA",null,{"$f":"F40/F$31","v":0},null,4.2690815006468305E-2,null,6.5078689919183322E-2,null,2.6186579378068741E-2,null,0.19675456389452334]
[null,null,"Ambulatory disability","NA",null,{"$f":"F41/F$31","v":0},null,0,null,5.104210974053594E-2,null,0.10229132569558101,null,0.47565922920892495]
[null,null,"Self-care disability","NA",null,{"$f":"F42/F$31","v":0},null,0,null,2.3819651212250107E-2,null,2.6186579378068741E-2,null,5.2738336713995942E-2]
[null,null,"Independent living disability","NA",null,"NA",null,4.9159120310478657E-2,null,1.9991492981709911E-2,null,1.1456628477905073E-2,null,7.6064908722109539E-2]
[]
[]
[]
[null,"No disability",null,{"$f":"D47/D$31","v":1},null,{"$f":"F47/F$31","v":1},null,{"$f":"H47/H$31","v":0.95730918499353168},null,{"$f":"J47/J$31","v":0.86814121650361553},null,{"$f":"L47/L$31","v":0.82160392798690673},null,{"$f":"N47/N$31","v":0.43509127789046653}]
[]
[]
[null,"Source: 2008-2012 American Community Survey Tables B18101;  B18102; B18103; B18104; B18105; B18106;  and B18107"]
[null,"NA indicates that the American Community Survey does not calculate the number for that disability."]
[]
[null,"Data from the American Community Survey are estimates."]

{"sheet":"ACS_Table_B18101","index":32,"n_rows":156,"n_cols":40,"rows_kept":156,"cut":false,"hidden":true,"merged":[]}
["B18101. SEX BY AGE BY DISABILITY STATUS\n"]
["Universe:  Civilian non-institutionalized population"]
["Data Set: 2018-2022 American Community Survey 5-Year Estimates"]
[]
[null,null,"Albany",null,"Bartlett",null,"Brookfield",null,"Chatham",null,"Conway",null,"Eaton",null,"Effingham",null,"Freedom",null,"Hale's Location",null,"Hart's Location",null,"Jackson",null,"Madison",null,"Moultonborough",null,"Ossipee",null,"Sandwich",null,"Tamworth",null,"Tuftonboro",null,"Wakefield",null,"Wolfeboro"]
[null,null,"Estimate","Margin Of Error","Estimate","Margin Of Error","Estimate","Margin Of Error","Estimate","Margin Of Error","Estimate","Margin Of Error","Estimate","Margin Of Error","Estimate","Margin Of Error","Estimate","Margin Of Error","Estimate","Margin Of Error","Estimate","Margin Of Error","Estimate","Margin Of Error","Estimate","Margin Of Error","Estimate","Margin Of Error","Estimate","Margin Of Error","Estimate","Margin Of Error","Estimate","Margin Of Error","Estimate","Margin Of Error","Estimate","Margin Of Error","Estimate","Margin Of Error"]
[null,"Total",708,164,3207,17,536,142,423,109,9862,20,355,72,1794,280,1336,184,196,61,53,37,1149,182,2609,21,4931,42,4280,15,1838,254,2844,15,2507,27,5266,18,6383,16]
[null,"Male:",304,77,1736,181,275,81,222,58,5074,305,179,44,786,120,629,97,111,42,41,32,494,88,1248,148,2543,164,2363,155,1007,183,1406,156,1268,101,2800,184,2953,248]
[null,"Under 5 years:",5,6,44,68,6,17,9,10,239,110,0,12,40,24,25,18,0,12,0,12,10,14,39,34,75,63,177,98,23,17,41,38,31,41,109,85,26,34]
[null,"With a disability",0,12,0,12,0,12,0,12,0,17,0,12,0,12,0,12,0,12,0,12,0,12,0,12,0,12,0,12,0,12,0,12,0,12,0,17,0,17]
[null,"No disability",5,6,44,68,6,17,9,10,239,110,0,12,40,24,25,18,0,12,0,12,10,14,39,34,75,63,177,98,23,17,41,38,31,41,109,85,26,34]
[null,"5 to 17 years:",40,22,83,67,24,17,43,40,646,237,11,11,116,54,99,65,0,12,0,12,20,23,331,176,349,121,153,85,67,33,273,109,122,49,415,146,451,159]
[null,"With a disability",8,10,20,29,1,2,5,5,58,65,0,12,32,43,3,4,0,12,0,12,0,12,15,25,35,42,4,19,0,12,12,18,23,20,30,35,49,64]
[null,"No disability",32,20,63,58,23,17,38,39,588,213,11,11,84,34,96,65,0,12,0,12,20,23,316,181,314,113,149,87,67,33,261,103,99,39,385,131,402,175]
[null,"18 to 34 years:",52,25,233,169,43,31,38,16,1067,254,33,25,171,74,57,38,28,33,2,5,22,24,143,58,495,134,417,151,83,37,296,117,157,60,404,150,294,143]
[null,"With a disability",7,9,67,83,3,5,10,8,25,36,0,12,7,10,0,12,8,12,0,12,0,12,22,22,44,49,27,41,3,4,136,97,0,12,0,17,29,54]
[null,"No disability",45,24,166,161,40,30,28,14,1042,255,33,25,164,73,57,38,20,31,2,5,22,24,121,53,451,132,390,146,80,37,160,92,157,60,404,150,265,138]
[null,"35 to 64 years:",132,48,674,174,115,41,83,27,2011,350,55,25,293,61,202,46,24,17,16,20,278,77,514,83,791,122,989,162,312,77,538,164,487,106,1251,218,1273,248]
[null,"With a disability",33,24,185,114,13,10,11,12,231,125,5,5,54,27,27,18,9,8,0,12,13,13,14,15,93,71,180,93,54,30,184,157,104,78,246,212,186,138]
[null,"No disability",99,42,489,176,102,39,72,25,1780,337,50,25,239,63,175,42,15,16,16,20,265,76,500,82,698,141,809,157,258,73,354,100,383,99,1005,200,1087,234]
[null,"65 to 74 years:",56,27,550,211,67,27,35,17,646,204,58,22,145,61,165,44,29,18,22,25,109,48,151,52,512,152,508,165,367,152,126,83,252,85,366,170,427,145]
[null,"With a disability",3,4,256,146,6,7,9,9,123,93,16,11,71,57,34,16,4,6,0,12,0,12,34,25,75,55,70,73,23,18,30,32,46,32,51,45,79,104]
[null,"No disability",53,26,294,172,61,26,26,14,523,165,42,20,74,29,131,43,25,15,22,25,109,48,117,46,437,145,438,156,344,153,96,80,206,77,315,163,348,127]
[null,"75 years and over:",19,12,152,88,20,10,14,8,465,138,22,11,21,14,81,28,30,16,1,2,55,35,70,40,321,118,119,58,155,80,132,78,219,96,255,108,482,137]
[null,"With a disability",7,7,103,74,8,7,6,4,141,58,9,7,6,4,44,20,10,8,0,12,10,16,32,30,164,87,44,37,52,24,58,50,67,39,61,58,290,149]
[null,"No disability",12,10,49,50,12,8,8,6,324,120,13,8,15,14,37,19,20,14,1,2,45,31,38,26,157,87,75,51,103,77,74,64,152,102,194,84,192,93]
[null,"Female:",404,116,1471,179,261,70,201,63,4788,306,176,46,1008,205,707,127,85,32,12,13,655,117,1361,148,2388,164,1917,152,831,137,1438,157,1239,103,2466,184,3430,250]
[null,"Under 5 years:",11,10,3,6,13,15,10,9,51,42,8,10,94,61,31,20,0,12,0,12,71,40,69,42,45,40,83,72,36,27,101,103,51,32,163,111,0,17]
[null,"With a disability",0,12,0,12,0,12,0,12,0,17,0,12,0,12,0,12,0,12,0,12,0,12,0,12,0,12,0,12,0,12,0,12,0,12,0,17,0,17]
[null,"No disability",11,10,3,6,13,15,10,9,51,42,8,10,94,61,31,20,0,12,0,12,71,40,69,42,45,40,83,72,36,27,101,103,51,32,163,111,0,17]
[null,"5 to 17 years:",28,18,44,63,8,8,39,33,528,136,11,9,148,71,63,53,2,3,0,12,113,45,215,75,266,118,154,121,76,39,261,115,151,56,255,129,366,114]
[null,"With a disability",2,4,0,12,2,4,0,12,0,17,2,3,2,4,0,12,0,12,0,12,0,12,15,19,21,22,24,26,3,4,0,12,0,12,0,17,23,34]
[null,"No disability",26,18,44,63,6,7,39,33,528,136,9,8,146,70,63,53,2,3,0,12,113,45,200,74,245,114,130,126,73,38,261,115,151,56,255,129,343,114]
[null,"18 to 34 years:",92,43,70,69,34,19,30,17,972,232,7,8,252,104,104,71,0,12,3,5,65,49,151,67,433,153,171,86,91,42,225,106,128,55,424,151,363,241]
[null,"With a disability",9,11,4,8,7,8,4,5,136,99,0,12,17,14,49,61,0,12,0,12,0,12,23,31,132,157,11,17,8,9,40,47,34,31,94,90,0,17]
[null,"No disability",83,41,66,68,27,18,26,17,836,222,7,8,235,105,55,39,0,12,3,5,65,49,128,58,301,112,160,88,83,42,185,100,94,53,330,137,363,241]
[null,"35 to 64 years:",228,100,788,170,106,32,84,28,1487,226,83,35,370,82,271,58,33,21,7,11,293,99,637,83,996,144,1049,158,359,75,535,160,434,102,1134,234,1448,260]
[null,"With a disability",71,66,125,129,11,9,0,12,210,133,12,12,75,30,49,49,10,10,0,12,33,40,41,33,52,40,189,82,33,27,14,19,30,26,322,261,130,107]
[null,"No disability",157,73,663,178,95,31,84,28,1277,193,71,33,295,79,222,45,23,18,7,11,260,95,596,87,944,146,860,148,326,70,521,159,404,102,812,184,1318,267]
[null,"65 to 74 years:",29,21,463,199,65,26,28,12,1113,239,47,25,128,37,154,32,21,11,1,3,56,29,155,54,414,126,296,84,185,54,198,85,270,74,285,129,556,190]
[null,"With a disability",6,10,59,65,4,5,2,3,234,140,3,4,15,11,8,7,2,3,0,12,16,17,24,25,9,10,127,77,15,13,38,52,46,28,7,14,72,52]
[null,"No disability",23,18,404,203,61,25,26,11,879,217,44,23,113,35,146,32,19,10,1,3,40,26,131,51,405,126,169,57,170,49,160,66,224,73,278,127,484,186]
[null,"75 years and over:",16,10,103,79,35,26,10,7,637,180,20,12,16,9,84,42,29,17,1,3,57,33,134,69,234,73,164,99,84,34,118,72,205,128,205,105,697,166]
[null,"With a disability",9,9,14,22,2,3,4,4,262,146,7,6,0,12,41,32,12,10,0,12,8,14,98,66,105,55,33,35,39,20,72,62,63,40,63,55,242,151]
[null,"No disability",7,7,89,80,33,26,6,6,375,147,13,9,16,9,43,23,17,13,1,3,49,29,36,27,129,47,131,93,45,25,46,42,142,130,142,90,455,135]
[]
[]
[{"$f":"A1& \"-Calculated\"","v":"B18101. SEX BY AGE BY DISABILITY STATUS\n-Calculated"}]
[{"$f":"A2","v":"Universe:  Civilian non-institutionalized population"}]
[{"$f":"A3","v":"Data Set: 2018-2022 American Community Survey 5-Year Estimates"}]
[]
[]
[null,null,"Albany",null,"Bartlett",null,"Brookfield",null,"Chatham",null,"Conway",null,"Eaton",null,"Effingham",null,"Freedom",null,"Hale's Location",null,"Hart's Location",null,"Jackson",null,"Madison",null,"Moultonborough",null,"Ossipee",null,"Sandwich",null,"Tamworth",null,"Tuftonboro",null,"Wakefield",null,"Wolfeboro"]
[null,null,"Estimate","Margin Of Error","Estimate","Margin Of Error","Estimate","Margin Of Error","Estimate","Margin Of Error","Estimate","Margin Of Error","Estimate","Margin Of Error","Estimate","Margin Of Error","Estimate","Margin Of Error","Estimate","Margin Of Error","Estimate","Margin Of Error","Estimate","Margin Of Error","Estimate","Margin Of Error","Estimate","Margin Of Error","Estimate","Margin Of Error","Estimate","Margin Of Error","Estimate","Margin Of Error","Estimate","Margin Of Error","Estimate","Margin Of Error","Estimate","Margin Of Error"]
[null,"Total",{"$f":"C7","v":708},164,3207,17,536,142,423,109,9862,20,355,72,1794,280,1336,184,196,61,53,37,1149,182,2609,21,4931,42,4280,15,1838,254,2844,15,2507,27,5266,18,6383,16]
[null,"Under 5 years:",{"$f":"C28+C9","v":16},{"$f":"SQRT((D28^2)+(D9^2))","v":11.661903789690601},{"$f":"E28+E9","v":47},{"$f":"SQRT((F28^2)+(F9^2))","v":68.264192663504048},{"$f":"G28+G9","v":19},{"$f":"SQRT((H28^2)+(H9^2))","v":22.671568097509269},{"$f":"I28+I9","v":19},{"$f":"SQRT((J28^2)+(J9^2))","v":13.45362404707371},{"$f":"K28+K9","v":290},{"$f":"SQRT((L28^2)+(L9^2))","v":117.74548823628021},{"$f":"M28+M9","v":8},{"$f":"SQRT((N28^2)+(N9^2))","v":15.620499351813308},{"$f":"O28+O9","v":134},{"$f":"SQRT((P28^2)+(P9^2))","v":65.551506466289538},{"$f":"Q28+Q9","v":56},{"$f":"SQRT((R28^2)+(R9^2))","v":26.90724809414742},{"$f":"S28+S9","v":0},{"$f":"SQRT((T28^2)+(T9^2))","v":16.970562748477139},{"$f":"U28+U9","v":0},{"$f":"SQRT((V28^2)+(V9^2))","v":16.970562748477139},{"$f":"W28+W9","v":81},{"$f":"SQRT((X28^2)+(X9^2))","v":42.379240200834182},{"$f":"Y28+Y9","v":108},{"$f":"SQRT((Z28^2)+(Z9^2))","v":54.037024344425184},{"$f":"AA28+AA9","v":120},{"$f":"SQRT((AB28^2)+(AB9^2))","v":74.625732827222535},{"$f":"AC28+AC9","v":260},{"$f":"SQRT((AD28^2)+(AD9^2))","v":121.60592090848209},{"$f":"AE28+AE9","v":59},{"$f":"SQRT((AF28^2)+(AF9^2))","v":31.906112267087632},{"$f":"AG28+AG9","v":142},{"$f":"SQRT((AH28^2)+(AH9^2))","v":109.78615577567146},{"$f":"AI28+AI9","v":82},{"$f":"SQRT((AJ28^2)+(AJ9^2))","v":52.009614495783374},{"$f":"AK28+AK9","v":272},{"$f":"SQRT((AL28^2)+(AL9^2))","v":139.80700983856281},{"$f":"AM28+AM9","v":26},{"$f":"SQRT((AN28^2)+(AN9^2))","v":38.013155617496423}]
[null,"With a disability",{"$f":"C29+C10","v":0},{"$f":"SQRT((D29^2)+(D10^2))","v":16.970562748477139},{"$f":"E29+E10","v":0},{"$f":"SQRT((F29^2)+(F10^2))","v":16.970562748477139},{"$f":"G29+G10","v":0},{"$f":"SQRT((H29^2)+(H10^2))","v":16.970562748477139},{"$f":"I29+I10","v":0},{"$f":"SQRT((J29^2)+(J10^2))","v":16.970562748477139},{"$f":"K29+K10","v":0},{"$f":"SQRT((L29^2)+(L10^2))","v":24.041630560342615},{"$f":"M29+M10","v":0},{"$f":"SQRT((N29^2)+(N10^2))","v":16.970562748477139},{"$f":"O29+O10","v":0},{"$f":"SQRT((P29^2)+(P10^2))","v":16.970562748477139},{"$f":"Q29+Q10","v":0},{"$f":"SQRT((R29^2)+(R10^2))","v":16.970562748477139},{"$f":"S29+S10","v":0},{"$f":"SQRT((T29^2)+(T10^2))","v":16.970562748477139},{"$f":"U29+U10","v":0},{"$f":"SQRT((V29^2)+(V10^2))","v":16.970562748477139},{"$f":"W29+W10","v":0},{"$f":"SQRT((X29^2)+(X10^2))","v":16.970562748477139},0,16.970562748477139,0,16.970562748477139,0,16.970562748477139,0,16.970562748477139,0,16.970562748477139,0,16.970562748477139,0,24.041630560342615,0,24.041630560342615]
[null,"No disability",16,11.661903789690601,47,68.264192663504048,19,22.671568097509269,19,13.45362404707371,290,117.74548823628021,8,15.620499351813308,134,65.551506466289538,56,26.90724809414742,0,16.970562748477139,0,16.970562748477139,81,42.379240200834182,108,54.037024344425184,120,74.625732827222535,260,121.60592090848209,59,31.906112267087632,142,109.78615577567146,82,52.009614495783374,272,139.80700983856281,26,38.013155617496423]
[null,"5 to 17 years:",68,28.42534080710379,127,91.967385523347346,32,18.788294228055936,82,51.855568649856693,1174,273.24897072084281,22,14.212670403551895,264,89.202017914394744,162,83.868945385047027,2,12.369316876852981,0,16.970562748477139,133,50.537115073973112,546,191.31387822110554,615,169.01183390520322,307,147.87156589419075,143,51.088159097779204,534,158.44872987815333,273,74.411020689142546,670,194.82556300444764,817,195.64508682816444]
[null,"With a disability",10,10.770329614269007,20,31.384709652950431,3,4.4721359549995796,5,13,58,67.186308128963304,2,12.369316876852981,34,43.185645763378368,3,12.649110640673518,0,16.970562748477139,0,16.970562748477139,0,16.970562748477139,30,31.400636936215164,56,47.413078364518789,28,32.202484376209235,3,12.649110640673518,12,21.633307652783937,23,23.323807579381203,30,38.910152916687437,72,72.47068372797375]
[null,"No disability",58,26.90724809414742,107,85.632937588290176,29,18.384776310850235,77,51.088159097779204,1116,252.71525478292759,20,13.601470508735444,230,77.820305833374874,159,83.868945385047027,2,12.369316876852981,0,16.970562748477139,133,50.537115073973112,516,195.54283418218117,559,160.51479682571323,279,153.11760186209813,140,50.328918128646478,522,154.38264151127873,250,68.24221567329127,640,183.85320231097418,745,208.85641000457707]
[null,"18 to 34 years:",144,49.739320461783549,303,182.54314558481784,77,36.359317925395686,68,23.345235059857504,2039,344.00581390435832,40,26.248809496813376,423,127.6401190848708,161,80.529497701152962,28,35.114099732158877,5,7.0710678118654755,87,54.561891462814962,294,88.617154095581284,928,203.38387350033435,588,173.77284022539311,174,55.97320787662612,521,157.87653403846943,285,81.394102980498531,828,212.84031572989173,657,280.23204670415549]
[null,"With a disability",16,14.212670403551895,71,83.384650865731871,10,9.4339811320566032,14,9.4339811320566032,161,105.34229919647663,0,16.970562748477139,24,17.204650534085253,49,62.169124169478209,8,16.970562748477139,0,16.970562748477139,0,16.970562748477139,45,38.013155617496423,176,164.46884203398528,38,44.384682042344295,11,9.8488578017961039,176,107.78682665335315,34,33.241540277189323,94,91.591484320323147,29,56.612719418872643]
[null,"No disability",128,47.507894080878813,232,174.77127910500627,67,34.985711369071801,54,22.022715545545239,1878,338.0961401731762,40,26.248809496813376,399,127.88275880665071,112,54.451813560247928,20,33.241540277189323,5,7.0710678118654755,87,54.561891462814962,249,78.568441501661468,752,173.11268006705922,550,170.46993869888027,163,55.97320787662612,345,135.88230201170424,251,80.05623023850174,734,203.147729497526,628,277.71388153997634]
[null,"35 to 64 years:",360,110.92339699089638,1462,243.26117651610582,221,52.009614495783374,167,38.897300677553446,3498,416.62453120285659,138,43.011626335213137,663,102.20078277586722,473,74.027022093286988,57,27.018512172212592,23,22.825424421026653,571,125.41929676090518,1151,117.37972567696688,1787,188.73261509341728,2038,226.29184695874486,671,107.48953437428223,1073,229.12005586591496,921,147.10540438746634,2385,319.81244503614926,2721,359.31045072471801]
[null,"With a disability",104,70.228199464317754,310,172.15400082484288,24,13.45362404707371,11,16.970562748477139,441,182.52123164169149,17,13,129,40.36087214122113,76,52.201532544552748,19,12.806248474865697,0,16.970562748477139,46,42.059481689626182,55,36.249137920783717,145,81.492330927517344,369,123.98790263570072,87,40.36087214122113,198,158.14550262337528,134,82.219219164377861,568,336.25139404915484,316,174.62244987400675]
[null,"No disability",256,84.219950130595535,1152,250.31979546172531,197,49.819674828324601,156,37.536648758246919,3057,388.35293226651453,121,41.400483088968905,534,101.04454463255303,397,61.554853586049575,38,24.083189157584592,23,22.825424421026653,525,121.65936051122412,1096,119.55333537798099,1642,202.97044119772713,1669,215.76144233852349,584,101.13851887386922,875,187.83237207680682,787,142.1442928857856,1817,271.76460402340848,2405,355.02816789657692]
[null,"65 to 74 years:",85,34.205262752974143,1013,290.03792855418067,132,37.483329627982627,63,20.808652046684813,1759,314.22444207922462,105,33.301651610693426,273,71.344235926947874,319,54.405882034941776,50,21.095023109728988,23,25.179356624028344,165,56.080299571239813,306,74.966659255965254,926,197.43353311937665,804,185.15128949051368,552,161.3071604114337,324,118.80235687897779,522,112.69871339105873,651,213.40337391897066,983,239.00836805434241]
[null,"With a disability",9,10.770329614269007,315,159.8155186457185,10,8.6023252670426267,11,9.4868329805051381,357,168.07438829280326,19,11.704699910719626,86,58.051701094799967,42,17.464249196572979,6,6.7082039324993694,0,16.970562748477139,16,20.808652046684813,58,35.355339059327378,84,55.901699437494742,197,106.10372283760829,38,22.203603311174518,68,61.057350089894989,92,42.5205832509386,58,47.127486671792717,151,116.27553482998907]
[null,"No disability",76,31.622776601683793,698,266.06953978236589,122,36.069377593742864,52,17.804493814764857,1402,272.6059427085184,86,30.479501308256342,187,45.453272709454048,277,53.600373133029585,44,18.027756377319946,23,25.179356624028344,149,54.589376255824725,248,68.680419334771102,842,192.09633000138237,607,166.08732642799691,514,160.65490966665163,256,103.71113729971339,430,106.10372283760829,593,206.63494380186523,832,225.22211259110415]
[null,"75 years and over:",35,15.620499351813308,255,118.25819210524064,55,27.856776554368238,24,10.63014581273465,1102,226.8126980572296,42,16.278820596099706,37,16.643316977093239,165,50.47771785649585,59,23.345235059857504,2,3.6055512754639891,112,48.104053883222775,204,79.755877526361658,555,138.75518008348374,283,114.73883387938018,239,86.92525524840292,250,106.15083607772479,424,160,460,150.6286825275983,1179,215.23243250030885]
[null,"With a disability",16,11.401754250991379,117,77.201036262475128,10,7.6157731058639087,10,5.6568542494923806,403,157.09869509324386,16,9.2195444572928871,6,12.649110640673518,85,37.735924528226413,22,12.806248474865697,0,16.970562748477139,18,21.2602916254693,130,72.498275841567434,269,102.92715870944851,77,50.931326312987373,91,31.240998703626616,130,79.649231006959511,130,55.865910893853687,124,79.93122043357026,532,212.13674834879504]
[null,"No disability",19,12.206555615733702,138,94.339811320566042,45,27.202941017470888,14,8.4852813742385695,699,189.76037521042164,26,12.041594578792296,31,16.643316977093239,80,29.832867780352597,37,19.104973174542799,2,3.6055512754639891,{"$f":"W45+W26","v":94},{"$f":"SQRT((X45^2)+(X26^2))","v":42.449970553582247},{"$f":"Y45+Y26","v":74},{"$f":"SQRT((Z45^2)+(Z26^2))","v":37.483329627982627},286,98.883770154661889,206,106.06601717798213,148,80.956778592036386,120,76.550636836018555,294,165.23922052587878,336,123.10970717209915,647,163.93291310777101]
[]
[]
[]
[]
[]
[]
[]
[]
[]
[]
[]
[]
[]
[]
[]
[]
[]
[]
[]
[]
[]
[]
[]
[]
[]
[]
["B18101. SEX BY AGE BY DISABILITY STATUS\n-Calculated"]
["Universe:  Civilian non-institutionalized population"]
["Data Set: 2013-2017 American Community Survey 5-Year Estimates"]
[]
[]
[null,null,"Albany",null,"Bartlett",null,"Brookfield",null,"Chatham",null,"Conway",null,"Eaton",null,"Effingham",null,"Freedom",null,"Hale's Location",null,"Hart's Location",null,"Jackson",null,"Madison",null,"Moultonborough",null,"Ossipee",null,"Sandwich",null,"Tamworth",null,"Tuftonboro",null,"Wakefield",null,"Wolfeboro"]
[null,null,"Estimate","Margin Of Error","Estimate","Margin Of Error","Estimate","Margin Of Error","Estimate","Margin Of Error","Estimate","Margin Of Error","Estimate","Margin Of Error","Estimate","Margin Of Error","Estimate","Margin Of Error","Estimate","Margin Of Error","Estimate","Margin Of Error","Estimate","Margin Of Error","Estimate","Margin Of Error","Estimate","Margin Of Error","Estimate","Margin Of Error","Estimate","Margin Of Error","Estimate","Margin Of Error","Estimate","Margin Of Error","Estimate","Margin Of Error","Estimate","Margin Of Error"]
[null,"Total",782,141,2760,22,868,263,339,109,9872,71,321,68,1435,174,1314,175,159,48,52,31,957,220,2518,22,4049,20,4104,116,1342,199,2917,13,2153,183,4987,37,6130,40]
[null,"Under 5 years:",41,32.280024783137947,78,64.474801279259481,32,24.083189157584592,17,13.45362404707371,446,119.5198728245642,10,16.278820596099706,68,35.468295701936398,5,13.601470508735444,0,15.556349186104045,0,15.556349186104045,39,36.891733491393431,156,59.941638282582836,80,54.203320931470607,135,81.394102980498531,42,32.526911934581186,95,74.431176263713581,63,49.396356140913873,305,109.07795377618706,201,81.584312217484552]
[null,"With a disability",0,15.556349186104045,0,15.556349186104045,4,12.529964086141668,0,15.556349186104045,0,25.45584412271571,0,15.556349186104045,0,15.556349186104045,0,15.556349186104045,0,15.556349186104045,0,15.556349186104045,0,15.556349186104045,0,15.556349186104045,0,15.556349186104045,0,15.556349186104045,0,15.556349186104045,0,15.556349186104045,0,15.556349186104045,0,22.627416997969522,0,22.627416997969522]
[null,"No disability",41,32.280024783137947,78,64.474801279259481,28,23.345235059857504,17,13.45362404707371,446,119.5198728245642,10,16.278820596099706,68,35.468295701936398,5,13.601470508735444,0,15.556349186104045,0,15.556349186104045,39,36.891733491393431,156,59.941638282582836,80,54.203320931470607,135,81.394102980498531,42,32.526911934581186,95,74.431176263713581,63,49.396356140913873,305,109.07795377618706,201,81.584312217484552]
[null,"5 to 17 years:",166,70.092795635500224,332,139.84276885130672,193,100.41912168506553,45,21.633307652783937,1674,269.48283804353849,20,14.212670403551895,219,53.413481444294568,196,66.037867924396224,0,15.556349186104045,2,12.083045973594572,78,47.801673610868477,291,91.678787077491378,529,121.62236636408618,449,142.61135999632006,160,68.249542123006222,401,192.28364465029262,260,71.589105316381762,453,164.01219466856725,597,179.40178371465541]
[null,"With a disability",3,12.083045973594572,13,23.706539182259394,5,14.212670403551895,4,12.529964086141668,96,76.550636836018555,0,15.556349186104045,15,19.416487838947599,28,16.970562748477139,0,15.556349186104045,0,15.556349186104045,0,15.556349186104045,17,18.439088914585774,40,48.270073544588683,55,59.033888572581766,1,11.401754250991379,0,15.556349186104045,20,25.495097567963924,52,44.045431091090478,0,22.627416997969522]
[null,"No disability",163,70.092795635500224,319,141.7603611733548,188,99.724620831567975,41,20.591260281974002,1578,262.38330739587838,20,14.212670403551895,204,50.328918128646478,168,62.265560304232388,0,15.556349186104045,2,12.083045973594572,78,47.801673610868477,274,89.899944382630181,489,126.66885963013956,394,149.57606760441325,159,68.249542123006222,401,192.28364465029262,240,71.589105316381762,401,154.84185480676729,597,179.40178371465541]
[null,"18 to 34 years:",81,40.36087214122113,464,155.70806016388491,83,39.597979746446661,56,37.576588456111871,1842,278.15283568570715,33,21.095023109728988,259,77.103826104804938,128,50.219518117958877,5,13.601470508735444,0,15.556349186104045,119,75.451971478550519,326,80.808415403347695,631,149.93665329064805,599,150.6286825275983,149,57.982756057296896,296,137.64446955835166,290,89.810912477270818,924,248.1954874690513,773,216.67025638051939]
[null,"With a disability",0,15.556349186104045,12,21.95449840010015,5,6.4031242374328485,11,18.601075237738275,201,107.70329614269008,0,15.556349186104045,14,16.278820596099706,12,10.63014581273465,0,15.556349186104045,0,15.556349186104045,0,15.556349186104045,45,37.013511046643494,27,31.906112267087632,161,107.07007051459338,21,15.620499351813308,77,93.300589494386372,8,16.278820596099706,125,85.510233305727795,33,41.231056256176608]
[null,"No disability",81,40.36087214122113,452,155.08062419270823,78,39.623225512317902,45,29.681644159311659,1641,277.36257858622531,33,21.095023109728988,245,74.953318805774032,116,48.826222462934808,5,13.601470508735444,0,15.556349186104045,119,75.451971478550519,281,75.742986473996396,604,145.24462124292245,438,145.34441853748632,128,55.226805085936306,219,104.86181383134664,282,89.022469073824283,799,241.89667215569543,740,221.16509670379727]
[null,"35 to 64 years:",370,55.172456896534889,1259,159.22311389996113,406,107.07474025184464,155,33.241540277189323,4145,341.67235767618075,141,35.510561809129406,609,60.207972893961475,600,73.109506905736964,32,15.556349186104045,40,21.213203435596427,364,94.762861923857074,1189,114.21471008587291,1705,134.41726079637243,1884,218.3323155192561,553,87.692645073575008,1588,201.37527157027003,804,99.809819156233317,2278,193.04144632694815,2351,196.65706191235543]
[null,"With a disability",28,14.212670403551895,110,81.412529748190479,35,21.400934559032695,14,10.816653826391969,521,189.85520798756087,19,13.038404810405298,79,29.206163733020468,101,37.013511046643494,0,15.556349186104045,7,13.601470508735444,30,27.166155414412248,130,44.82186966202994,115,67.542579163073128,318,130.90836489697671,36,22.135943621178654,409,149.04026301640775,146,62.481997407253232,598,170.42300314218147,310,152.3975065412817]
[null,"No disability",342,55.865910893853687,1149,156.81836627130127,371,100.70253224224304,141,31.827660925679098,3624,324.56894491001447,122,33.837848631377263,530,57.489129407219238,499,70.035705179572517,32,15.556349186104045,33,19.209372712298546,334,90.027773492406226,1059,113.07077429645558,1590,136.61991070118586,1566,210.84591530309521,517,83.486525858967212,1179,181.1573901335521,658,90.609050320594349,1680,211.29126815843574,2041,220.09543384632039]
[null,"65 to 74 years:",59,22.203603311174518,425,150.24313628249379,126,41.773197148410844,36,16.970562748477139,1119,189.55210365490541,85,26.248809496813376,169,42.426406871192853,200,38.897300677553446,69,21.400934559032695,6,6.7082039324993694,242,70.007142492748557,313,77.077882690172544,812,127.61269529321916,688,157.4102919125684,236,45.967379738244816,256,104.89041900955492,464,93.380940239430018,657,181.81309083781619,1222,170.18225524419401]
[null,"With a disability",8,7.810249675906654,127,79.025312400521386,20,15.652475842498529,11,11.661903789690601,263,130.86252328302402,17,14.317821063276353,46,21.470910553583888,39,17.691806012954132,4,4.2426406871192848,2,11.401754250991379,20,18.788294228055936,67,42.154477816715982,179,76.967525619575426,259,109.01834707974616,41,22.803508501982758,92,72.069410986909006,50,28.792360097775937,295,157.54364474646383,218,97.652444925869617]
[null,"No disability",51,20.248456731316587,298,130.38404810405297,106,36.796738985948195,25,13.038404810405298,856,180.54639292990598,68,22.671568097509269,123,35.608987629529715,161,35.383612025908263,65,21.2602916254693,4,12.529964086141668,222,66.468037431535464,246,66.400301204136113,633,102.30347012687302,429,138.57128129594531,195,41.773197148410844,164,85.492689745966004,414,87.863530545955186,362,131.52946437965906,1004,162.68988905276197]
[null,"75 years and over:",65,25.80697580112788,202,107.00467279516349,28,21.931712199461309,30,20.615528128088304,646,129.07362240210043,32,15,111,37.12142238654117,185,52.32590180780452,53,16.970562748477139,4,4.2426406871192848,115,42.80186911806539,243,80,292,92.195444572928878,349,96.260064408871031,202,60.21627686929839,281,140.41723540933285,272,77.388629655783419,370,142.89856542317,986,230.20208513391012]
[null,"With a disability",42,22.360679774997898,64,61,1,11.401754250991379,21,15.811388300841896,196,81.688432473637292,16,10.295630140987001,61,25.612496949731394,106,40.80441152620633,11,9.2195444572928871,2,11.401754250991379,36,26.248809496813376,110,55.443665102516448,126,55.605755097831377,194,89.140338792266206,41,19.104973174542799,83,78.714674616617714,112,52.32590180780452,127,99.724620831567975,557,217.27862297059966]
[null,"No disability",23,14.7648230602334,138,91.923881554251182,27,21.931712199461309,9,12.206555615733702,450,118.98319209031165,16,9.8994949366116654,50,28.160255680657446,79,31.76476034853718,42,15.556349186104045,2,11.401754250991379,79,36.76955262170047,133,62.968245965724662,166,77.52418977325722,155,68.24221567329127,161,52.801515129776341,198,123.5556554755791,160,61.611687202997452,243,109.41663493271945,429,156.20499351813308]
[]
[]
[]
[]
[]
["B18101. SEX BY AGE BY DISABILITY STATUS\n-Calculated"]
["Universe:  Civilian non-institutionalized population"]
["Data Set: 2008-2012 American Community Survey 5-Year Estimates"]
[]
[]
[null,null,"Albany",null,"Bartlett",null,"Brookfield",null,"Chatham",null,"Conway",null,"Eaton",null,"Effingham",null,"Freedom",null,"Hale's Location",null,"Hart's Location",null,"Jackson",null,"Madison",null,"Moultonborough",null,"Ossipee",null,"Sandwich",null,"Tamworth",null,"Tuftonboro",null,"Wakefield",null,"Wolfeboro"]
[null,null,"Estimate","Margin Of Error","Estimate","Margin Of Error","Estimate","Margin Of Error","Estimate","Margin Of Error","Estimate","Margin Of Error","Estimate","Margin Of Error","Estimate","Margin Of Error","Estimate","Margin Of Error","Estimate","Margin Of Error","Estimate","Margin Of Error","Estimate","Margin Of Error","Estimate","Margin Of Error","Estimate","Margin Of Error","Estimate","Margin Of Error","Estimate","Margin Of Error","Estimate","Margin Of Error","Estimate","Margin Of Error","Estimate","Margin Of Error","Estimate","Margin Of Error"]
[null,"Total",875,179,2793,17,681,160,446,148,9965,62,393,77,1344,202,1197,167,110,29,33,21,990,232,2496,24,4078,16,4183,104,1224,201,2854,18,2513,307,5044,19,6181,35]
[null,"Under 5 years:",46,34.985711369071801,74,66.128662469461759,15,14.317821063276353,55,38.948684188300895,584,160.03124694883809,1,11.401754250991379,63,40.249223594996216,60,27.459060435491963,0,15.556349186104045,0,15.556349186104045,51,35.355339059327378,85,49.648766349225639,128,66.483080554378645,173,95.963534741067136,20,13.45362404707371,113,81.884064383737083,125,68.117545463705611,205,95.603347221736954,192,117.2006825918689]
[null,"With a disability",0,15.556349186104045,0,15.556349186104045,0,15.556349186104045,3,12.083045973594572,0,25.45584412271571,0,15.556349186104045,0,15.556349186104045,0,15.556349186104045,0,15.556349186104045,0,15.556349186104045,0,15.556349186104045,13,21.95449840010015,0,15.556349186104045,0,15.556349186104045,0,15.556349186104045,0,15.556349186104045,0,15.556349186104045,0,22.627416997969522,0,22.627416997969522]
[null,"No disability",46,34.985711369071801,74,66.128662469461759,15,14.317821063276353,52,37.643060449437421,584,160.03124694883809,1,11.401754250991379,63,40.249223594996216,60,27.459060435491963,0,15.556349186104045,0,15.556349186104045,51,35.355339059327378,72,37.8549864614954,128,66.483080554378645,173,95.963534741067136,20,13.45362404707371,113,81.884064383737083,125,68.117545463705611,205,95.603347221736954,192,117.2006825918689]
[null,"5 to 17 years:",106,55.605755097831377,431,143.69411957348845,123,57.688820407423826,69,41.629316592997299,1276,247.24279564832622,29,14.422205101855956,173,64.404968752418469,142,47.010637094172637,4,12.529964086141668,0,15.556349186104045,146,71.196910045310247,340,100.56838469419701,494,113.56936206565572,937,192.46298345396187,170,68,294,133.45411196362591,451,158.79546593023366,540,156.20499351813308,1108,215.20455385516357]
[null,"With a disability",13,21.95449840010015,0,15.556349186104045,4,13.601470508735444,3,12.083045973594572,67,54.589376255824725,0,15.556349186104045,28,21.470910553583888,27,29.154759474226502,0,15.556349186104045,0,15.556349186104045,0,15.556349186104045,29,24.839484696748443,11,20.248456731316587,64,48.270073544588683,9,9.2195444572928871,0,15.556349186104045,20,24.166091947189145,14,29.681644159311659,66,54.405882034941776]
[null,"No disability",93,51.739733281106119,431,143.69411957348845,119,57.688820407423826,66,41.629316592997299,1209,256.01757752154441,29,14.422205101855956,145,54.561891462814962,115,35.805027579936315,4,12.529964086141668,0,15.556349186104045,146,71.196910045310247,311,104.06248123122954,483,112.04463396343441,873,171.7032323516363,161,67.601775124622279,294,133.45411196362591,431,158.04113388608675,526,154.67385040788247,1042,223.1815404552984]
[null,"18 to 34 years:",128,49.678969393496885,315,119.20151005754919,123,54.644304369257,85,42.544094772365298,2030,315.31730050855123,55,27.784887978899608,246,71.449282711584999,124,50.606323715519977,2,11.401754250991379,9,7.810249675906654,82,48.010415536631214,239,91.923881554251182,388,109.12378292562992,650,164.01524319403975,99,39.408120990476064,451,120.25389806571761,271,97.8008179924892,728,189.992105099133,801,172.00290695217916]
[null,"With a disability",16,22.825424421026653,0,15.556349186104045,5,15.556349186104045,26,31.256999216175569,96,84.38601779915912,9,15.556349186104045,11,8.6023252670426267,0,15.556349186104045,0,15.556349186104045,0,15.556349186104045,0,15.556349186104045,28,31.144823004794873,44,38.078865529319543,26,24.083189157584592,8,14.212670403551895,14,23.706539182259394,0,15.556349186104045,138,100.2845950283492,162,96.426137535421375]
[null,"No disability",112,45.254833995939045,315,119.20151005754919,118,54.083269131959838,59,31.906112267087632,1934,310.22088904520922,46,23.600847442411894,235,71.449282711584999,124,50.606323715519977,2,11.401754250991379,9,7.810249675906654,82,48.010415536631214,211,83.258633185994597,344,105.19030373565806,624,163.37686494727458,91,38.275318418009277,437,121.03718436910205,271,97.8008179924892,590,146.37281168304446,639,155.62133529821674]
[null,"35 to 64 years:",457,82.807004534640669,1378,181.81584089402111,288,54.644304369257,174,53.814496188294839,4480,320.66337489647924,222,37.536648758246919,586,96.254870006665115,482,59.816385714952723,34,13.45362404707371,20,18.601075237738275,453,95.482982777037293,1365,120.24142381059865,2098,152.75143207184672,1892,186.80738743422327,594,83.630138108220294,1549,164.29546554911369,1119,145.45446022724775,2506,260.40929322894755,2401,251.46172671005024]
[null,"With a disability",70,33.241540277189323,223,130.080744155313,36,21.095023109728988,17,26.40075756488817,562,196.82479518597245,12,9.2195444572928871,90,34.409301068170507,59,29,4,5.8309518948453007,7,15.556349186104045,30,27.802877548915689,122,54.203320931470607,278,100.4987562112089,334,127.31457104353767,53,24.839484696748443,398,133.9589489358587,117,66.483080554378645,373,139.20488497175666,178,86.53323061113575]
[null,"No disability",387,74.276510418839678,1155,167.17057157286985,252,51.623637996561229,157,49.51767361255979,3918,320.32639604003913,210,36.124783736376884,496,94.154128958851288,423,55.317266743757322,30,12.806248474865697,13,18.601075237738275,423,93.434469014384618,1243,124.52309022827855,1820,165.42369842317032,1558,187.3846311734236,541,81.394102980498531,1151,191.20669444347391,1002,135.88230201170424,2133,236.20541907416094,2223,267.34621747838514]
[null,"65 to 74 years:",83,29.832867780352597,373,125.60652849274993,83,36.796738985948195,43,22.203603311174518,981,231.70023737579555,68,26.076809620810597,127,34.713109915419565,244,48.836461788299118,43,16.278820596099706,0,15.556349186104045,182,53.814496188294839,273,76.216796049164913,626,138.68309197591464,264,72.801098892805186,203,41.231056256176608,209,77.336925203941234,294,81.400245699874887,537,164.83931569865243,936,200.11246837716035]
[null,"With a disability",23,16.15549442140351,146,84.403791384036765,10,8.6023252670426267,6,5.6568542494923806,338,159.8311609167624,7,7.2111025509279782,22,17,30,15.556349186104045,4,3.6055512754639891,0,15.556349186104045,19,17.804493814764857,66,42.01190307520001,46,30.805843601498726,69,44.643028571099428,28,13.45362404707371,80,41.725292090050132,50,43.965895873961216,84,93.637599285757005,196,114.33722053644648]
[null,"No disability",60,25.553864678361276,227,114.69088891450794,73,36.124783736376884,37,20.808652046684813,643,194.01030900444439,61,25.553864678361276,105,31.400636936215164,214,48.166378315169183,39,15.620499351813308,0,15.556349186104045,163,49.819674828324601,207,68.8839603971781,580,136.49908424601244,195,78.492037812761623,175,38.418745424597091,129,62.201286160335947,244,73.593477971896391,453,145.71547618561317,740,185.27007313648906]
[null,"75 years and over:",55,28.231188426986208,222,93.23625904121208,49,31.240998703626616,20,15,614,137.56816492197603,18,11.180339887498949,149,98.290386101591849,145,41.725292090050132,27,10.63014581273465,4,11.704699910719626,76,31.240998703626616,194,75.006666370396701,344,112.44554237496477,267,80.709355095924295,138,35.468295701936398,238,77.466121627457255,253,100.65783625729296,528,155.66630977832037,743,163.46559270990332]
[null,"With a disability",26,19.646882704388499,94,60.811183182043088,29,25.495097567963924,11,11.704699910719626,264,122.77621919573839,10,8.0622577482985491,66,67.896980787071826,62,23.430749027719962,7,5.6568542494923806,4,11.704699910719626,20,15,101,59.816385714952723,157,82.800966177937809,168,69.892775020026207,62,24.698178070456937,146,64.031242374328485,92,49.406477308142499,280,127.20062892926276,176,74.4043009509531]
[null,"No disability",29,21.470910553583888,128,71.400280111495363,20,15.652475842498529,9,8.0622577482985491,350,98.595131725658746,8,8.5440037453175304,83,72.801098892805186,83,34.655446902326915,20,10,0,15.556349186104045,56,25.80697580112788,93,48.373546489791295,187,71.449282711584999,99,43.046486500061768,76,26.40075756488817,92,46.010868281309364,161,99.040395798886024,248,118.25819210524064,567,157.0350279396288]

{"sheet":"ACS_Table_B18102","index":33,"n_rows":156,"n_cols":40,"rows_kept":156,"cut":false,"hidden":true,"merged":[]}
["B18102. SEX BY AGE BY HEARING DIFFICULTY\n\n"]
["Universe:  Civilian non-institutionalized population"]
["Data Set: 2018-2022 American Community Survey 5-Year Estimates"]
[]
[null,null,"Albany",null,"Bartlett",null,"Brookfield",null,"Chatham",null,"Conway",null,"Eaton",null,"Effingham",null,"Freedom",null,"Hale's Location",null,"Hart's Location",null,"Jackson",null,"Madison",null,"Moultonborough",null,"Ossipee",null,"Sandwich",null,"Tamworth",null,"Tuftonboro",null,"Wakefield",null,"Wolfeboro"]
[null,null,"Estimate","Margin Of Error","Estimate","Margin Of Error","Estimate","Margin Of Error","Estimate","Margin Of Error","Estimate","Margin Of Error","Estimate","Margin Of Error","Estimate","Margin Of Error","Estimate","Margin Of Error","Estimate","Margin Of Error","Estimate","Margin Of Error","Estimate","Margin Of Error","Estimate","Margin Of Error","Estimate","Margin Of Error","Estimate","Margin Of Error","Estimate","Margin Of Error","Estimate","Margin Of Error","Estimate","Margin Of Error","Estimate","Margin Of Error","Estimate","Margin Of Error"]
[null,"Total:",708,164,3207,17,536,142,423,109,9862,20,355,72,1794,280,1336,184,196,61,53,37,1149,182,2609,21,4931,42,4280,15,1838,254,2844,15,2507,27,5266,18,6383,16]
[null,"Male:",304,77,1736,181,275,81,222,58,5074,305,179,44,786,120,629,97,111,42,41,32,494,88,1248,148,2543,164,2363,155,1007,183,1406,156,1268,101,2800,184,2953,248]
[null,"Under 5 years:",5,6,44,68,6,17,9,10,239,110,0,12,40,24,25,18,0,12,0,12,10,14,39,34,75,63,177,98,23,17,41,38,31,41,109,85,26,34]
[null,"With hearing difficulty",0,12,0,12,0,12,0,12,0,17,0,12,0,12,0,12,0,12,0,12,0,12,0,12,0,12,0,12,0,12,0,12,0,12,0,17,0,17]
[null,"With no hearing difficulty",5,6,44,68,6,17,9,10,239,110,0,12,40,24,25,18,0,12,0,12,10,14,39,34,75,63,177,98,23,17,41,38,31,41,109,85,26,34]
[null,"5 to 17  years:",40,22,83,67,24,17,43,40,646,237,11,11,116,54,99,65,0,12,0,12,20,23,331,176,349,121,153,85,67,33,273,109,122,49,415,146,451,159]
[null,"With hearing difficulty",0,12,20,29,0,12,2,4,0,17,0,12,0,12,0,12,0,12,0,12,0,12,0,12,0,12,0,12,0,12,0,12,0,12,0,17,0,17]
[null,"With no hearing difficulty",40,22,63,58,24,17,41,39,646,237,11,11,116,54,99,65,0,12,0,12,20,23,331,176,349,121,153,85,67,33,273,109,122,49,415,146,451,159]
[null,"18 to 34  years:",52,25,233,169,43,31,38,16,1067,254,33,25,171,74,57,38,28,33,2,5,22,24,143,58,495,134,417,151,83,37,296,117,157,60,404,150,294,143]
[null,"With hearing difficulty",0,12,0,12,0,12,4,6,25,36,0,12,0,12,0,12,0,12,0,12,0,12,1,3,0,12,24,41,0,12,0,12,0,12,0,17,0,17]
[null,"With no hearing difficulty",52,25,233,169,43,31,34,16,1042,255,33,25,171,74,57,38,28,33,2,5,22,24,142,58,495,134,393,147,83,37,296,117,157,60,404,150,294,143]
[null,"35 to 64  years:",132,48,674,174,115,41,83,27,2011,350,55,25,293,61,202,46,24,17,16,20,278,77,514,83,791,122,989,162,312,77,538,164,487,106,1251,218,1273,248]
[null,"With hearing difficulty",3,4,144,101,9,7,6,9,126,97,1,4,8,12,4,6,0,12,0,12,7,10,4,6,10,15,38,41,29,18,38,37,8,12,207,209,0,17]
[null,"With no hearing difficulty",129,48,530,180,106,41,77,26,1885,341,54,25,285,61,198,45,24,17,16,20,271,75,510,82,781,120,951,159,283,76,500,165,479,106,1044,201,1273,248]
[null,"65 to 74  years:",56,27,550,211,67,27,35,17,646,204,58,22,145,61,165,44,29,18,22,25,109,48,151,52,512,152,508,165,367,152,126,83,252,85,366,170,427,145]
[null,"With hearing difficulty",3,4,85,74,6,7,9,9,81,76,12,11,58,45,19,11,4,6,0,12,0,12,28,23,68,54,22,23,5,9,30,32,10,15,15,23,79,104]
[null,"With no hearing difficulty",53,26,465,204,61,26,26,14,565,179,46,22,87,32,146,45,25,15,22,25,109,48,123,47,444,144,486,162,362,153,96,80,242,82,351,166,348,127]
[null,"75  years and Older:",19,12,152,88,20,10,14,8,465,138,22,11,21,14,81,28,30,16,1,2,55,35,70,40,321,118,119,58,155,80,132,78,219,96,255,108,482,137]
[null,"With hearing difficulty",7,7,18,30,6,6,4,4,64,48,3,3,3,4,32,18,4,5,0,12,10,16,3,7,131,78,14,20,45,24,37,44,22,23,60,58,247,143]
[null,"With no hearing difficulty",12,10,134,90,14,9,10,7,401,138,19,10,18,14,49,23,26,16,1,2,45,31,67,40,190,91,105,56,110,77,95,66,197,100,195,84,235,95]
[null,"Female:",404,116,1471,179,261,70,201,63,4788,306,176,46,1008,205,707,127,85,32,12,13,655,117,1361,148,2388,164,1917,152,831,137,1438,157,1239,103,2466,184,3430,250]
[null,"Under 5 years:",11,10,3,6,13,15,10,9,51,42,8,10,94,61,31,20,0,12,0,12,71,40,69,42,45,40,83,72,36,27,101,103,51,32,163,111,0,17]
[null,"With hearing difficulty",0,12,0,12,0,12,0,12,0,17,0,12,0,12,0,12,0,12,0,12,0,12,0,12,0,12,0,12,0,12,0,12,0,12,0,17,0,17]
[null,"With no hearing difficulty",11,10,3,6,13,15,10,9,51,42,8,10,94,61,31,20,0,12,0,12,71,40,69,42,45,40,83,72,36,27,101,103,51,32,163,111,0,17]
[null,"5 to 17  years:",28,18,44,63,8,8,39,33,528,136,11,9,148,71,63,53,2,3,0,12,113,45,215,75,266,118,154,121,76,39,261,115,151,56,255,129,366,114]
[null,"With hearing difficulty",0,12,0,12,2,4,0,12,0,17,0,12,0,12,0,12,0,12,0,12,0,12,0,12,0,12,0,12,0,12,0,12,0,12,0,17,0,17]
[null,"With no hearing difficulty",28,18,44,63,6,7,39,33,528,136,11,9,148,71,63,53,2,3,0,12,113,45,215,75,266,118,154,121,76,39,261,115,151,56,255,129,366,114]
[null,"18 to 34  years:",92,43,70,69,34,19,30,17,972,232,7,8,252,104,104,71,0,12,3,5,65,49,151,67,433,153,171,86,91,42,225,106,128,55,424,151,363,241]
[null,"With hearing difficulty",0,12,0,12,4,6,2,3,0,17,0,12,0,12,0,12,0,12,0,12,0,12,0,12,0,12,0,12,0,12,0,12,0,12,0,17,0,17]
[null,"With no hearing difficulty",92,43,70,69,30,19,28,17,972,232,7,8,252,104,104,71,0,12,3,5,65,49,151,67,433,153,171,86,91,42,225,106,128,55,424,151,363,241]
[null,"35 to 64  years:",228,100,788,170,106,32,84,28,1487,226,83,35,370,82,271,58,33,21,7,11,293,99,637,83,996,144,1049,158,359,75,535,160,434,102,1134,234,1448,260]
[null,"With hearing difficulty",5,5,0,12,0,12,0,12,20,23,2,3,2,4,4,5,0,12,0,12,0,12,0,12,0,12,47,44,12,20,0,12,9,13,77,95,20,32]
[null,"With no hearing difficulty",223,100,788,170,106,32,84,28,1467,229,81,36,368,83,267,59,33,21,7,11,293,99,637,83,996,144,1002,150,347,74,535,160,425,101,1057,211,1428,254]
[null,"65 to 74  years:",29,21,463,199,65,26,28,12,1113,239,47,25,128,37,154,32,21,11,1,3,56,29,155,54,414,126,296,84,185,54,198,85,270,74,285,129,556,190]
[null,"With hearing difficulty",0,12,36,59,0,12,0,12,43,43,1,2,3,4,5,5,0,12,0,12,8,12,16,22,0,12,14,24,0,12,26,39,18,20,0,17,22,33]
[null,"With no hearing difficulty",29,21,427,203,65,26,28,12,1070,239,46,25,125,37,149,31,21,11,1,3,48,27,139,51,414,126,282,86,185,54,172,68,252,74,285,129,534,191]
[null,"75  years and Older:",16,10,103,79,35,26,10,7,637,180,20,12,16,9,84,42,29,17,1,3,57,33,134,69,234,73,164,99,84,34,118,72,205,128,205,105,697,166]
[null,"With hearing difficulty",2,4,0,12,0,12,0,12,74,74,2,4,0,12,18,18,9,9,0,12,8,14,34,32,90,55,3,7,23,16,68,62,40,34,14,23,91,61]
[null,"With no hearing difficulty",14,9,103,79,35,26,10,7,563,182,18,11,16,9,66,41,20,14,1,3,49,29,100,63,144,52,161,99,61,31,50,43,165,129,191,100,606,150]
[]
[]
["B18102. SEX BY AGE BY HEARING DIFFICULTY\n\n-Calculated"]
["Universe:  Civilian non-institutionalized population"]
[{"$f":"$A$3","v":"Data Set: 2018-2022 American Community Survey 5-Year Estimates"}]
[]
[]
[null,null,"Albany",null,"Bartlett",null,"Brookfield",null,"Chatham",null,"Conway",null,"Eaton",null,"Effingham",null,"Freedom",null,"Hale's Location",null,"Hart's Location",null,"Jackson",null,"Madison",null,"Moultonborough",null,"Ossipee",null,"Sandwich",null,"Tamworth",null,"Tuftonboro",null,"Wakefield",null,"Wolfeboro"]
[null,null,"Estimate","Margin Of Error","Estimate","Margin Of Error","Estimate","Margin Of Error","Estimate","Margin Of Error","Estimate","Margin Of Error","Estimate","Margin Of Error","Estimate","Margin Of Error","Estimate","Margin Of Error","Estimate","Margin Of Error","Estimate","Margin Of Error","Estimate","Margin Of Error","Estimate","Margin Of Error","Estimate","Margin Of Error","Estimate","Margin Of Error","Estimate","Margin Of Error","Estimate","Margin Of Error","Estimate","Margin Of Error","Estimate","Margin Of Error","Estimate","Margin Of Error"]
[null,"Total",{"$f":"C7","v":708},164,3207,17,536,142,423,109,9862,20,355,72,1794,280,1336,184,196,61,53,37,1149,182,2609,21,4931,42,4280,15,1838,254,2844,15,2507,27,5266,18,6383,16]
[null,"Under 5 years:",{"$f":"C28+C9","v":16},{"$f":"SQRT((D28^2)+(D9^2))","v":11.661903789690601},{"$f":"E28+E9","v":47},{"$f":"SQRT((F28^2)+(F9^2))","v":68.264192663504048},{"$f":"G28+G9","v":19},{"$f":"SQRT((H28^2)+(H9^2))","v":22.671568097509269},{"$f":"I28+I9","v":19},{"$f":"SQRT((J28^2)+(J9^2))","v":13.45362404707371},{"$f":"K28+K9","v":290},{"$f":"SQRT((L28^2)+(L9^2))","v":117.74548823628021},{"$f":"M28+M9","v":8},{"$f":"SQRT((N28^2)+(N9^2))","v":15.620499351813308},{"$f":"O28+O9","v":134},{"$f":"SQRT((P28^2)+(P9^2))","v":65.551506466289538},{"$f":"Q28+Q9","v":56},{"$f":"SQRT((R28^2)+(R9^2))","v":26.90724809414742},{"$f":"S28+S9","v":0},{"$f":"SQRT((T28^2)+(T9^2))","v":16.970562748477139},{"$f":"U28+U9","v":0},{"$f":"SQRT((V28^2)+(V9^2))","v":16.970562748477139},{"$f":"W28+W9","v":81},{"$f":"SQRT((X28^2)+(X9^2))","v":42.379240200834182},{"$f":"Y28+Y9","v":108},{"$f":"SQRT((Z28^2)+(Z9^2))","v":54.037024344425184},{"$f":"AA28+AA9","v":120},{"$f":"SQRT((AB28^2)+(AB9^2))","v":74.625732827222535},{"$f":"AC28+AC9","v":260},{"$f":"SQRT((AD28^2)+(AD9^2))","v":121.60592090848209},{"$f":"AE28+AE9","v":59},{"$f":"SQRT((AF28^2)+(AF9^2))","v":31.906112267087632},{"$f":"AG28+AG9","v":142},{"$f":"SQRT((AH28^2)+(AH9^2))","v":109.78615577567146},{"$f":"AI28+AI9","v":82},{"$f":"SQRT((AJ28^2)+(AJ9^2))","v":52.009614495783374},{"$f":"AK28+AK9","v":272},{"$f":"SQRT((AL28^2)+(AL9^2))","v":139.80700983856281},{"$f":"AM28+AM9","v":26},{"$f":"SQRT((AN28^2)+(AN9^2))","v":38.013155617496423}]
[null,"With hearing difficulty",{"$f":"C29+C10","v":0},{"$f":"SQRT((D29^2)+(D10^2))","v":16.970562748477139},{"$f":"E29+E10","v":0},{"$f":"SQRT((F29^2)+(F10^2))","v":16.970562748477139},{"$f":"G29+G10","v":0},{"$f":"SQRT((H29^2)+(H10^2))","v":16.970562748477139},{"$f":"I29+I10","v":0},{"$f":"SQRT((J29^2)+(J10^2))","v":16.970562748477139},{"$f":"K29+K10","v":0},{"$f":"SQRT((L29^2)+(L10^2))","v":24.041630560342615},{"$f":"M29+M10","v":0},{"$f":"SQRT((N29^2)+(N10^2))","v":16.970562748477139},{"$f":"O29+O10","v":0},{"$f":"SQRT((P29^2)+(P10^2))","v":16.970562748477139},{"$f":"Q29+Q10","v":0},{"$f":"SQRT((R29^2)+(R10^2))","v":16.970562748477139},{"$f":"S29+S10","v":0},{"$f":"SQRT((T29^2)+(T10^2))","v":16.970562748477139},{"$f":"U29+U10","v":0},{"$f":"SQRT((V29^2)+(V10^2))","v":16.970562748477139},{"$f":"W29+W10","v":0},{"$f":"SQRT((X29^2)+(X10^2))","v":16.970562748477139},0,16.970562748477139,0,16.970562748477139,0,16.970562748477139,0,16.970562748477139,0,16.970562748477139,0,16.970562748477139,0,24.041630560342615,0,24.041630560342615]
[null,"With no hearing difficulty",16,11.661903789690601,47,68.264192663504048,19,22.671568097509269,19,13.45362404707371,290,117.74548823628021,8,15.620499351813308,134,65.551506466289538,56,26.90724809414742,0,16.970562748477139,0,16.970562748477139,81,42.379240200834182,108,54.037024344425184,120,74.625732827222535,260,121.60592090848209,59,31.906112267087632,142,109.78615577567146,82,52.009614495783374,272,139.80700983856281,26,38.013155617496423]
[null,"5 to 17  years:",68,28.42534080710379,127,91.967385523347346,32,18.788294228055936,82,51.855568649856693,1174,273.24897072084281,22,14.212670403551895,264,89.202017914394744,162,83.868945385047027,2,12.369316876852981,0,16.970562748477139,133,50.537115073973112,546,191.31387822110554,615,169.01183390520322,307,147.87156589419075,143,51.088159097779204,534,158.44872987815333,273,74.411020689142546,670,194.82556300444764,817,195.64508682816444]
[null,"With hearing difficulty",0,16.970562748477139,20,31.384709652950431,2,12.649110640673518,2,12.649110640673518,0,24.041630560342615,0,16.970562748477139,0,16.970562748477139,0,16.970562748477139,0,16.970562748477139,0,16.970562748477139,0,16.970562748477139,0,16.970562748477139,0,16.970562748477139,0,16.970562748477139,0,16.970562748477139,0,16.970562748477139,0,16.970562748477139,0,24.041630560342615,0,24.041630560342615]
[null,"With no hearing difficulty",68,28.42534080710379,107,85.632937588290176,30,18.384776310850235,80,51.088159097779204,1174,273.24897072084281,22,14.212670403551895,264,89.202017914394744,162,83.868945385047027,2,12.369316876852981,0,16.970562748477139,133,50.537115073973112,546,191.31387822110554,615,169.01183390520322,307,147.87156589419075,143,51.088159097779204,534,158.44872987815333,273,74.411020689142546,670,194.82556300444764,817,195.64508682816444]
[null,"18 to 34  years:",144,49.739320461783549,303,182.54314558481784,77,36.359317925395686,68,23.345235059857504,2039,344.00581390435832,40,26.248809496813376,423,127.6401190848708,161,80.529497701152962,28,35.114099732158877,5,7.0710678118654755,87,54.561891462814962,294,88.617154095581284,928,203.38387350033435,588,173.77284022539311,174,55.97320787662612,521,157.87653403846943,285,81.394102980498531,828,212.84031572989173,657,280.23204670415549]
[null,"With hearing difficulty",0,16.970562748477139,0,16.970562748477139,4,13.416407864998739,6,6.7082039324993694,25,39.812058474788763,0,16.970562748477139,0,16.970562748477139,0,16.970562748477139,0,16.970562748477139,0,16.970562748477139,0,16.970562748477139,1,12.369316876852981,0,16.970562748477139,24,42.720018726587654,0,16.970562748477139,0,16.970562748477139,0,16.970562748477139,0,24.041630560342615,0,24.041630560342615]
[null,"With no hearing difficulty",144,49.739320461783549,303,182.54314558481784,73,36.359317925395686,62,23.345235059857504,2014,344.74483317375478,40,26.248809496813376,423,127.6401190848708,161,80.529497701152962,28,35.114099732158877,5,7.0710678118654755,87,54.561891462814962,293,88.617154095581284,928,203.38387350033435,564,170.30854353202602,174,55.97320787662612,521,157.87653403846943,285,81.394102980498531,828,212.84031572989173,657,280.23204670415549]
[null,"35 to 64  years:",360,110.92339699089638,1462,243.26117651610582,221,52.009614495783374,167,38.897300677553446,3498,416.62453120285659,138,43.011626335213137,663,102.20078277586722,473,74.027022093286988,57,27.018512172212592,23,22.825424421026653,571,125.41929676090518,1151,117.37972567696688,1787,188.73261509341728,2038,226.29184695874486,671,107.48953437428223,1073,229.12005586591496,921,147.10540438746634,2385,319.81244503614926,2721,359.31045072471801]
[null,"With hearing difficulty",8,6.4031242374328485,144,101.71037311896953,9,13.892443989449804,6,15,146,99.689518004652825,3,5,10,12.649110640673518,8,7.810249675906654,0,16.970562748477139,0,16.970562748477139,7,15.620499351813308,4,13.416407864998739,10,19.209372712298546,85,60.141499815019579,41,26.90724809414742,38,38.897300677553446,17,17.691806012954132,284,229.57787349829687,20,36.235341863986875]
[null,"With no hearing difficulty",352,110.92339699089638,1318,247.58836806279893,212,52.009614495783374,161,38.209946349085598,3352,410.75783620035781,135,43.829214001622255,653,103.00485425454472,465,74.202425836356596,57,27.018512172212592,23,22.825424421026653,564,124.20144926690671,1147,116.67476162392619,1777,187.4459922217597,1953,218.58865478336244,630,106.07544484940895,1035,229.83689869122406,904,146.4137971640651,2101,291.41379514360676,2701,354.99295767662773]
[null,"65 to 74  years:",85,34.205262752974143,1013,290.03792855418067,132,37.483329627982627,63,20.808652046684813,1759,314.22444207922462,105,33.301651610693426,273,71.344235926947874,319,54.405882034941776,50,21.095023109728988,23,25.179356624028344,165,56.080299571239813,306,74.966659255965254,926,197.43353311937665,804,185.15128949051368,552,161.3071604114337,324,118.80235687897779,522,112.69871339105873,651,213.40337391897066,983,239.00836805434241]
[null,"With hearing difficulty",3,12.649110640673518,121,94.641428560646744,6,13.892443989449804,9,15,124,87.321245982864909,13,11.180339887498949,61,45.177427992306072,24,12.083045973594572,4,13.416407864998739,0,16.970562748477139,8,16.970562748477139,44,31.827660925679098,68,55.317266743757322,36,33.241540277189323,5,15,56,50.447993022517757,28,25,15,28.600699292150182,101,109.11003620199197]
[null,"With no hearing difficulty",82,33.421549934136806,892,287.79332862316318,126,36.76955262170047,54,18.439088914585774,1635,298.60006697922893,92,33.301651610693426,212,48.918299234540036,295,54.644304369257,46,18.601075237738275,23,25.179356624028344,157,55.072679252057455,262,69.354163537598808,858,191.34262462922368,768,183.41210428976601,547,162.24980739587951,268,104.9952379872535,494,110.45361017187261,636,210.23082552280482,882,229.36869882353173]
[null,"75  years and Older:",35,15.620499351813308,255,118.25819210524064,55,27.856776554368238,24,10.63014581273465,1102,226.8126980572296,42,16.278820596099706,37,16.643316977093239,165,50.47771785649585,59,23.345235059857504,2,3.6055512754639891,112,48.104053883222775,204,79.755877526361658,555,138.75518008348374,283,114.73883387938018,239,86.92525524840292,250,106.15083607772479,424,160,460,150.6286825275983,1179,215.23243250030885]
[null,"With hearing difficulty",9,8.0622577482985491,18,32.310988842807021,6,13.416407864998739,4,12.649110640673518,138,88.204308284799779,5,5,3,12.649110640673518,50,25.45584412271571,13,10.295630140987001,0,16.970562748477139,18,21.2602916254693,37,32.756678708318397,221,95.44108130150245,17,21.189620100417091,68,28.844410203711913,105,76.026311234992846,62,41.048751503547585,74,62.393909959225986,338,155.46703830716015]
[null,"With no hearing difficulty",26,13.45362404707371,237,119.75391434103521,49,27.513632984395208,20,9.8994949366116654,964,228.40315234251912,37,14.866068747318506,34,16.643316977093239,115,47.010637094172637,46,21.2602916254693,2,3.6055512754639891,{"$f":"W45+W26","v":94},{"$f":"SQRT((X45^2)+(X26^2))","v":42.449970553582247},{"$f":"Y45+Y26","v":167},{"$f":"SQRT((Z45^2)+(Z26^2))","v":74.625732827222535},334,104.80935072788114,266,113.74093370462545,171,83.006023877788536,145,78.771822373231913,362,163.22070947033652,386,130.59862173851607,841,177.55280904564702]
[]
[]
[]
[]
[]
[]
[]
[]
[]
[]
[]
[]
[]
[]
[]
[]
[]
[]
[]
[]
[]
[]
[]
[]
[]
[]
["B18102. SEX BY AGE BY HEARING DIFFICULTY\n\n-Calculated"]
["Universe:  Civilian non-institutionalized population"]
["Data Set: 2013-2017 American Community Survey 5-Year Estimates"]
[]
[]
[null,null,"Albany",null,"Bartlett",null,"Brookfield",null,"Chatham",null,"Conway",null,"Eaton",null,"Effingham",null,"Freedom",null,"Hale's Location",null,"Hart's Location",null,"Jackson",null,"Madison",null,"Moultonborough",null,"Ossipee",null,"Sandwich",null,"Tamworth",null,"Tuftonboro",null,"Wakefield",null,"Wolfeboro"]
[null,null,"Estimate","Margin Of Error","Estimate","Margin Of Error","Estimate","Margin Of Error","Estimate","Margin Of Error","Estimate","Margin Of Error","Estimate","Margin Of Error","Estimate","Margin Of Error","Estimate","Margin Of Error","Estimate","Margin Of Error","Estimate","Margin Of Error","Estimate","Margin Of Error","Estimate","Margin Of Error","Estimate","Margin Of Error","Estimate","Margin Of Error","Estimate","Margin Of Error","Estimate","Margin Of Error","Estimate","Margin Of Error","Estimate","Margin Of Error","Estimate","Margin Of Error"]
[null,"Total",782,141,2760,22,868,263,339,109,9872,71,321,68,1435,174,1314,175,159,48,52,31,957,220,2518,22,4049,20,4104,116,1342,199,2917,13,2153,183,4987,37,6130,40]
[null,"Under 5 years:",41,32.280024783137947,78,64.474801279259481,32,24.083189157584592,17,13.45362404707371,446,119.5198728245642,10,16.278820596099706,68,35.468295701936398,5,13.601470508735444,0,15.556349186104045,0,15.556349186104045,39,36.891733491393431,156,59.941638282582836,80,54.203320931470607,135,81.394102980498531,42,32.526911934581186,95,74.431176263713581,63,49.396356140913873,305,109.07795377618706,201,81.584312217484552]
[null,"With hearing difficulty",0,15.556349186104045,0,15.556349186104045,4,12.529964086141668,0,15.556349186104045,0,25.45584412271571,0,15.556349186104045,0,15.556349186104045,0,15.556349186104045,0,15.556349186104045,0,15.556349186104045,0,15.556349186104045,0,15.556349186104045,0,15.556349186104045,0,15.556349186104045,0,15.556349186104045,0,15.556349186104045,0,15.556349186104045,0,22.627416997969522,0,22.627416997969522]
[null,"With no hearing difficulty",41,32.280024783137947,78,64.474801279259481,28,23.345235059857504,17,13.45362404707371,446,119.5198728245642,10,16.278820596099706,68,35.468295701936398,5,13.601470508735444,0,15.556349186104045,0,15.556349186104045,39,36.891733491393431,156,59.941638282582836,80,54.203320931470607,135,81.394102980498531,42,32.526911934581186,95,74.431176263713581,63,49.396356140913873,305,109.07795377618706,201,81.584312217484552]
[null,"5 to 17 years:",166,70.092795635500224,332,139.84276885130672,193,100.41912168506553,45,21.633307652783937,1674,269.48283804353849,20,14.212670403551895,219,53.413481444294568,196,66.037867924396224,0,15.556349186104045,2,12.083045973594572,78,47.801673610868477,291,91.678787077491378,529,121.62236636408618,449,142.61135999632006,160,68.249542123006222,401,192.28364465029262,260,71.589105316381762,453,164.01219466856725,597,179.40178371465541]
[null,"With hearing difficulty",0,15.556349186104045,13,23.706539182259394,0,15.556349186104045,0,15.556349186104045,0,25.45584412271571,0,15.556349186104045,0,15.556349186104045,0,15.556349186104045,0,15.556349186104045,0,15.556349186104045,0,15.556349186104045,9,17.804493814764857,0,15.556349186104045,0,15.556349186104045,0,15.556349186104045,0,15.556349186104045,0,15.556349186104045,0,22.627416997969522,0,22.627416997969522]
[null,"With no hearing difficulty",166,70.092795635500224,319,141.7603611733548,193,100.41912168506553,45,21.633307652783937,1674,269.48283804353849,20,14.212670403551895,219,53.413481444294568,196,66.037867924396224,0,15.556349186104045,2,12.083045973594572,78,47.801673610868477,282,90.801982357215081,529,121.62236636408618,449,142.61135999632006,160,68.249542123006222,401,192.28364465029262,260,71.589105316381762,453,164.01219466856725,597,179.40178371465541]
[null,"18 to 34 years:",81,40.36087214122113,464,155.70806016388491,83,39.597979746446661,56,37.576588456111871,1842,278.15283568570715,33,21.095023109728988,259,77.103826104804938,128,50.219518117958877,5,13.601470508735444,0,15.556349186104045,119,75.451971478550519,326,80.808415403347695,631,149.93665329064805,599,150.6286825275983,149,57.982756057296896,296,137.64446955835166,290,89.810912477270818,924,248.1954874690513,773,216.67025638051939]
[null,"With hearing difficulty",0,15.556349186104045,0,15.556349186104045,2,11.704699910719626,8,17.804493814764857,0,25.45584412271571,0,15.556349186104045,6,14.212670403551895,0,15.556349186104045,0,15.556349186104045,0,15.556349186104045,0,15.556349186104045,0,15.556349186104045,0,15.556349186104045,60,69.462219947249025,0,15.556349186104045,22,32.893768406797051,0,15.556349186104045,63,66.940271884718243,0,22.627416997969522]
[null,"With no hearing difficulty",81,40.36087214122113,464,155.70806016388491,81,38.897300677553446,48,30.528675044947494,1842,278.15283568570715,33,21.095023109728988,253,76.380625815713245,128,50.219518117958877,5,13.601470508735444,0,15.556349186104045,119,75.451971478550519,326,80.808415403347695,631,149.93665329064805,539,156.54072952429985,149,57.982756057296896,274,135.72398461583714,290,89.810912477270818,861,232.4521456128121,773,216.67025638051939]
[null,"35 to 64 years:",370,55.172456896534889,1259,159.22311389996113,406,107.07474025184464,155,33.241540277189323,4145,341.67235767618075,141,35.510561809129406,609,60.207972893961475,600,73.109506905736964,32,15.556349186104045,40,21.213203435596427,364,94.762861923857074,1189,114.21471008587291,1705,134.41726079637243,1884,218.3323155192561,553,87.692645073575008,1588,201.37527157027003,804,99.809819156233317,2278,193.04144632694815,2351,196.65706191235543]
[null,"With hearing difficulty",10,7.810249675906654,71,66.219332524573218,0,15.556349186104045,7,6.4031242374328485,194,135.05924625881784,7,13.038404810405298,18,21.095023109728988,37,20.615528128088304,0,15.556349186104045,4,13.038404810405298,28,29.154759474226502,65,40.311288741492746,71,58.940648113165501,21,25.495097567963924,9,9.4339811320566032,164,115.66330446602328,67,42.047592083257278,100,96.30160954002794,43,50.596442562694072]
[null,"With no hearing difficulty",360,54.451813560247928,1188,150.60212481900777,406,107.07474025184464,148,32.557641192199412,3951,328.86623420472949,134,36.055512754639892,591,58.728187440104094,563,70.767224051816527,32,15.556349186104045,36,19.849433241279208,336,90.027773492406226,1124,117.29023829799307,1634,136.517398158623,1863,220.86421167767313,544,86.977008456258133,1424,198.09088823063013,737,95.425363504678359,2178,209.69024774652732,2308,195.28952864913163]
[null,"65 to 74 years:",59,22.203603311174518,425,150.24313628249379,126,41.773197148410844,36,16.970562748477139,1119,189.55210365490541,85,26.248809496813376,169,42.426406871192853,200,38.897300677553446,69,21.400934559032695,6,6.7082039324993694,242,70.007142492748557,313,77.077882690172544,812,127.61269529321916,688,157.4102919125684,236,45.967379738244816,256,104.89041900955492,464,93.380940239430018,657,181.81309083781619,1222,170.18225524419401]
[null,"With hearing difficulty",4,5.8309518948453007,36,36.715119501371639,11,9.4339811320566032,0,15.556349186104045,104,79.202272694664515,4,11.704699910719626,31,18.681541692269406,20,13.45362404707371,4,4.2426406871192848,0,15.556349186104045,9,13.601470508735444,29,30.083217912982647,100,59.033888572581766,108,70.859014952227497,19,20.248456731316587,0,15.556349186104045,34,25.96150997149434,129,105.22357150372724,135,76.53757247260981]
[null,"With no hearing difficulty",55,20.808652046684813,389,148.83883901724039,115,37.536648758246919,36,16.970562748477139,1015,184.11409506064439,81,25.495097567963924,138,37.20215047547655,180,38.288379438153292,65,21.2602916254693,6,6.7082039324993694,233,68.622153857191051,284,69.526973183074787,712,111.72287142747452,580,150.09663553857561,217,43.931765272977593,256,104.89041900955492,430,88.617154095581284,528,161.27616066858735,1087,166.90116836020053]
[null,"75 years and over:",65,25.80697580112788,202,107.00467279516349,28,21.931712199461309,30,20.615528128088304,646,129.07362240210043,32,15,111,37.12142238654117,185,52.32590180780452,53,16.970562748477139,4,4.2426406871192848,115,42.80186911806539,243,80,292,92.195444572928878,349,96.260064408871031,202,60.21627686929839,281,140.41723540933285,272,77.388629655783419,370,142.89856542317,986,230.20208513391012]
[null,"With hearing difficulty",17,12.529964086141668,0,15.556349186104045,0,15.556349186104045,8,8.0622577482985491,131,63.245553203367585,11,14.212670403551895,29,20.615528128088304,51,28.600699292150182,7,8.0622577482985491,0,15.556349186104045,15,21.095023109728988,51,36.359317925395686,78,40.496913462633174,175,85.562842402528915,16,13,39,40.249223594996216,51,25.495097567963924,34,37.483329627982627,291,157.8131806916013]
[null,"With no hearing difficulty",48,22.803508501982758,202,107.00467279516349,28,21.931712199461309,22,18.357559750685819,515,128.22636234409833,21,11.401754250991379,82,31.304951684997057,134,41.725292090050132,46,16.970562748477139,4,4.2426406871192848,100,38.209946349085598,192,72.945184899347538,214,86.683331731077345,174,71.840100222647237,186,58.821764679410968,242,137.87675656179326,221,74.793047805260613,336,140.18559127100045,695,195.06409203131159]
[]
[]
[]
[]
[]
["B18102. SEX BY AGE BY HEARING DIFFICULTY\n\n-Calculated"]
["Universe:  Civilian non-institutionalized population"]
["Data Set: 2008-2012 American Community Survey 5-Year Estimates"]
[]
[]
[null,null,"Albany",null,"Bartlett",null,"Brookfield",null,"Chatham",null,"Conway",null,"Eaton",null,"Effingham",null,"Freedom",null,"Hale's Location",null,"Hart's Location",null,"Jackson",null,"Madison",null,"Moultonborough",null,"Ossipee",null,"Sandwich",null,"Tamworth",null,"Tuftonboro",null,"Wakefield",null,"Wolfeboro"]
[null,null,"Estimate","Margin Of Error","Estimate","Margin Of Error","Estimate","Margin Of Error","Estimate","Margin Of Error","Estimate","Margin Of Error","Estimate","Margin Of Error","Estimate","Margin Of Error","Estimate","Margin Of Error","Estimate","Margin Of Error","Estimate","Margin Of Error","Estimate","Margin Of Error","Estimate","Margin Of Error","Estimate","Margin Of Error","Estimate","Margin Of Error","Estimate","Margin Of Error","Estimate","Margin Of Error","Estimate","Margin Of Error","Estimate","Margin Of Error","Estimate","Margin Of Error"]
[null,"Total",875,179,2793,17,681,160,446,148,9965,62,393,77,1344,202,1197,167,110,29,33,21,990,232,2496,24,4078,16,4183,104,1224,201,2854,18,2513,307,5044,19,6181,35]
[null,"Under 5 years:",46,34.985711369071801,74,66.128662469461759,15,14.317821063276353,55,38.948684188300895,584,160.03124694883809,1,11.401754250991379,63,40.249223594996216,60,27.459060435491963,0,15.556349186104045,0,15.556349186104045,51,35.355339059327378,85,49.648766349225639,128,66.483080554378645,173,95.963534741067136,20,13.45362404707371,113,81.884064383737083,125,68.117545463705611,205,95.603347221736954,192,117.2006825918689]
[null,"With hearing difficulty",0,15.556349186104045,0,15.556349186104045,0,15.556349186104045,3,12.083045973594572,0,25.45584412271571,0,15.556349186104045,0,15.556349186104045,0,15.556349186104045,0,15.556349186104045,0,15.556349186104045,0,15.556349186104045,13,21.95449840010015,0,15.556349186104045,0,15.556349186104045,0,15.556349186104045,0,15.556349186104045,0,15.556349186104045,0,22.627416997969522,0,22.627416997969522]
[null,"With no hearing difficulty",46,34.985711369071801,74,66.128662469461759,15,14.317821063276353,52,37.643060449437421,584,160.03124694883809,1,11.401754250991379,63,40.249223594996216,60,27.459060435491963,0,15.556349186104045,0,15.556349186104045,51,35.355339059327378,72,37.8549864614954,128,66.483080554378645,173,95.963534741067136,20,13.45362404707371,113,81.884064383737083,125,68.117545463705611,205,95.603347221736954,192,117.2006825918689]
[null,"5 to 17 years:",106,55.605755097831377,431,143.69411957348845,123,57.688820407423826,69,41.629316592997299,1276,247.24279564832622,29,14.422205101855956,173,64.404968752418469,142,47.010637094172637,4,12.529964086141668,0,15.556349186104045,146,71.196910045310247,340,100.56838469419701,494,113.56936206565572,937,192.46298345396187,170,68,294,133.45411196362591,451,158.79546593023366,540,156.20499351813308,1108,215.20455385516357]
[null,"With hearing difficulty",0,15.556349186104045,0,15.556349186104045,0,15.556349186104045,0,15.556349186104045,0,25.45584412271571,0,15.556349186104045,4,12.529964086141668,0,15.556349186104045,0,15.556349186104045,0,15.556349186104045,0,15.556349186104045,0,15.556349186104045,0,15.556349186104045,0,15.556349186104045,0,15.556349186104045,0,15.556349186104045,0,15.556349186104045,0,22.627416997969522,0,22.627416997969522]
[null,"With no hearing difficulty",106,55.605755097831377,431,143.69411957348845,123,57.688820407423826,69,41.629316592997299,1276,247.24279564832622,29,14.422205101855956,169,64.404968752418469,142,47.010637094172637,4,12.529964086141668,0,15.556349186104045,146,71.196910045310247,340,100.56838469419701,494,113.56936206565572,937,192.46298345396187,170,68,294,133.45411196362591,451,158.79546593023366,540,156.20499351813308,1108,215.20455385516357]
[null,"18 to 34 years:",128,49.678969393496885,315,119.20151005754919,123,54.644304369257,85,42.544094772365298,2030,315.31730050855123,55,27.784887978899608,246,71.449282711584999,124,50.606323715519977,2,11.401754250991379,9,7.810249675906654,82,48.010415536631214,239,91.923881554251182,388,109.12378292562992,650,164.01524319403975,99,39.408120990476064,451,120.25389806571761,271,97.8008179924892,728,189.992105099133,801,172.00290695217916]
[null,"With hearing difficulty",0,15.556349186104045,0,15.556349186104045,0,15.556349186104045,20,31.016124838541646,21,38.470768123342687,0,15.556349186104045,0,15.556349186104045,0,15.556349186104045,0,15.556349186104045,0,15.556349186104045,0,15.556349186104045,0,15.556349186104045,0,15.556349186104045,0,15.556349186104045,0,15.556349186104045,0,15.556349186104045,0,15.556349186104045,0,22.627416997969522,0,22.627416997969522]
[null,"With no hearing difficulty",128,49.678969393496885,315,119.20151005754919,123,54.644304369257,65,31.906112267087632,2009,315.31730050855123,55,27.784887978899608,246,71.449282711584999,124,50.606323715519977,2,11.401754250991379,9,7.810249675906654,82,48.010415536631214,239,91.923881554251182,388,109.12378292562992,650,164.01524319403975,99,39.408120990476064,451,120.25389806571761,271,97.8008179924892,728,189.992105099133,801,172.00290695217916]
[null,"35 to 64 years:",457,82.807004534640669,1378,181.81584089402111,288,54.644304369257,174,53.814496188294839,4480,320.66337489647924,222,37.536648758246919,586,96.254870006665115,482,59.816385714952723,34,13.45362404707371,20,18.601075237738275,453,95.482982777037293,1365,120.24142381059865,2098,152.75143207184672,1892,186.80738743422327,594,83.630138108220294,1549,164.29546554911369,1119,145.45446022724775,2506,260.40929322894755,2401,251.46172671005024]
[null,"With hearing difficulty",19,16.492422502470642,45,51.195702944680818,17,17.720045146669349,16,24.596747752497688,151,95.524865872714003,1,11.401754250991379,18,14.317821063276353,3,12.529964086141668,0,15.556349186104045,0,15.556349186104045,8,17.029386365926403,44,32.802438933713454,121,73.878278269055514,95,75.802374632988901,7,7.2111025509279782,173,102.30347012687302,56,55.443665102516448,143,93.536089291780854,79,60.440052945046304]
[null,"With no hearing difficulty",438,82.807004534640669,1333,180.23595645708434,271,52.153619241621193,158,48.836461788299118,4329,316.11548522652288,221,37.536648758246919,568,96.896852374058057,479,60.440052945046304,34,13.45362404707371,20,18.601075237738275,445,93.434469014384618,1321,123.10970717209915,1977,156.08331108738051,1797,183.74166647769363,587,84.291162051546067,1376,188.04254837669055,1063,141.11342955225771,2363,247.38633753705963,2322,258.897663179875]
[null,"65 to 74 years:",83,29.832867780352597,373,125.60652849274993,83,36.796738985948195,43,22.203603311174518,981,231.70023737579555,68,26.076809620810597,127,34.713109915419565,244,48.836461788299118,43,16.278820596099706,0,15.556349186104045,182,53.814496188294839,273,76.216796049164913,626,138.68309197591464,264,72.801098892805186,203,41.231056256176608,209,77.336925203941234,294,81.400245699874887,537,164.83931569865243,936,200.11246837716035]
[null,"With hearing difficulty",18,18.601075237738275,58,51.195702944680818,5,6.4031242374328485,1,11.180339887498949,153,107.00467279516349,5,12.529964086141668,13,18.601075237738275,15,12.806248474865697,3,11.401754250991379,0,15.556349186104045,2,11.704699910719626,28,21.931712199461309,19,19.209372712298546,35,34.785054261852174,22,13.038404810405298,10,16.278820596099706,18,31.953090617340916,84,93.637599285757005,44,72.780491891715045]
[null,"With no hearing difficulty",65,26.419689627245813,315,117.41379816699569,78,36.124783736376884,42,21.633307652783937,828,213.21350801485352,63,26.076809620810597,114,32.202484376209235,229,47.423622805517503,40,15.620499351813308,0,15.556349186104045,180,53.814496188294839,245,75.432088662584434,607,137.27709204379295,229,75.213030785895072,181,39.824615503479755,199,76.05918747922567,276,76.694197955256044,453,145.71547618561317,892,192.52012881774206]
[null,"75 years and over:",55,28.231188426986208,222,93.23625904121208,49,31.240998703626616,20,15,614,137.56816492197603,18,11.180339887498949,149,98.290386101591849,145,41.725292090050132,27,10.63014581273465,4,11.704699910719626,76,31.240998703626616,194,75.006666370396701,344,112.44554237496477,267,80.709355095924295,138,35.468295701936398,238,77.466121627457255,253,100.65783625729296,528,155.66630977832037,743,163.46559270990332]
[null,"With hearing difficulty",5,12.083045973594572,47,39.849717690342551,19,18.788294228055936,10,11.401754250991379,110,79.075912893876861,7,8.0622577482985491,47,65.924198895398035,25,14.212670403551895,2,11.180339887498949,4,11.704699910719626,7,14.212670403551895,41,36.674241641784498,91,67.178865724273734,110,59.640590204993778,43,20.591260281974002,65,47.885279575251516,37,30.870698080866262,93,66.610809933523555,62,41.182520563948003]
[null,"With no hearing difficulty",50,28.231188426986208,175,85.702975444263316,30,22.803508501982758,10,9.8488578017961039,504,126.05157674539419,11,8.5440037453175304,102,75.026661927610775,120,38.948684188300895,25,10.63014581273465,0,15.556349186104045,69,29.410882339705484,153,67.623960250786851,253,86.400231481171389,157,54.120236510939236,95,28.301943396169811,173,67.268120235368556,216,100.65783625729296,435,151.34728276384746,681,159.86244086714052]

{"sheet":"ACS_Table_B18103","index":34,"n_rows":156,"n_cols":40,"rows_kept":156,"cut":false,"hidden":true,"merged":[]}
["B18103. SEX BY AGE BY VISION DIFFICULTY\n\n\n"]
["Universe:  Civilian non-institutionalized population"]
["Data Set: 2018-2022 American Community Survey 5-Year Estimates"]
[]
[null,null,"Albany",null,"Bartlett",null,"Brookfield",null,"Chatham",null,"Conway",null,"Eaton",null,"Effingham",null,"Freedom",null,"Hale's Location",null,"Hart's Location",null,"Jackson",null,"Madison",null,"Moultonborough",null,"Ossipee",null,"Sandwich",null,"Tamworth",null,"Tuftonboro",null,"Wakefield",null,"Wolfeboro"]
[null,null,"Estimate","Margin Of Error","Estimate","Margin Of Error","Estimate","Margin Of Error","Estimate","Margin Of Error","Estimate","Margin Of Error","Estimate","Margin Of Error","Estimate","Margin Of Error","Estimate","Margin Of Error","Estimate","Margin Of Error","Estimate","Margin Of Error","Estimate","Margin Of Error","Estimate","Margin Of Error","Estimate","Margin Of Error","Estimate","Margin Of Error","Estimate","Margin Of Error","Estimate","Margin Of Error","Estimate","Margin Of Error","Estimate","Margin Of Error","Estimate","Margin Of Error"]
[null,"Total:",708,164,3207,17,536,142,423,109,9862,20,355,72,1794,280,1336,184,196,61,53,37,1149,182,2609,21,4931,42,4280,15,1838,254,2844,15,2507,27,5266,18,6383,16]
[null,"Male:",304,77,1736,181,275,81,222,58,5074,305,179,44,786,120,629,97,111,42,41,32,494,88,1248,148,2543,164,2363,155,1007,183,1406,156,1268,101,2800,184,2953,248]
[null,"Under 5 years:",5,6,44,68,6,17,9,10,239,110,0,12,40,24,25,18,0,12,0,12,10,14,39,34,75,63,177,98,23,17,41,38,31,41,109,85,26,34]
[null,"With vision difficulty",0,12,0,12,0,12,0,12,0,17,0,12,0,12,0,12,0,12,0,12,0,12,0,12,0,12,0,12,0,12,0,12,0,12,0,17,0,17]
[null,"With no vision difficulty",5,6,44,68,6,17,9,10,239,110,0,12,40,24,25,18,0,12,0,12,10,14,39,34,75,63,177,98,23,17,41,38,31,41,109,85,26,34]
[null,"5 to 17  years:",40,22,83,67,24,17,43,40,646,237,11,11,116,54,99,65,0,12,0,12,20,23,331,176,349,121,153,85,67,33,273,109,122,49,415,146,451,159]
[null,"With vision difficulty",0,12,0,12,0,12,0,12,0,17,0,12,0,12,0,12,0,12,0,12,0,12,0,12,0,12,4,19,0,12,0,12,0,12,0,17,0,17]
[null,"With no vision difficulty",40,22,83,67,24,17,43,40,646,237,11,11,116,54,99,65,0,12,0,12,20,23,331,176,349,121,149,87,67,33,273,109,122,49,415,146,451,159]
[null,"18 to 34  years:",52,25,233,169,43,31,38,16,1067,254,33,25,171,74,57,38,28,33,2,5,22,24,143,58,495,134,417,151,83,37,296,117,157,60,404,150,294,143]
[null,"With vision difficulty",0,12,0,12,0,12,0,12,0,17,0,12,0,12,0,12,0,12,0,12,0,12,0,12,0,12,0,12,0,12,0,12,0,12,0,17,0,17]
[null,"With no vision difficulty",52,25,233,169,43,31,38,16,1067,254,33,25,171,74,57,38,28,33,2,5,22,24,143,58,495,134,417,151,83,37,296,117,157,60,404,150,294,143]
[null,"35 to 64  years:",132,48,674,174,115,41,83,27,2011,350,55,25,293,61,202,46,24,17,16,20,278,77,514,83,791,122,989,162,312,77,538,164,487,106,1251,218,1273,248]
[null,"With vision difficulty",4,5,4,10,1,2,4,9,0,17,2,3,8,10,4,6,0,12,0,12,4,6,0,12,0,12,0,12,0,12,129,158,0,12,0,17,0,17]
[null,"With no vision difficulty",128,46,670,174,114,41,79,26,2011,350,53,25,285,63,198,45,24,17,16,20,274,77,514,83,791,122,989,162,312,77,409,108,487,106,1251,218,1273,248]
[null,"65 to 74  years:",56,27,550,211,67,27,35,17,646,204,58,22,145,61,165,44,29,18,22,25,109,48,151,52,512,152,508,165,367,152,126,83,252,85,366,170,427,145]
[null,"With vision difficulty",0,12,44,70,0,12,0,12,0,17,0,12,4,5,3,4,0,12,0,12,0,12,0,12,0,12,12,19,4,6,0,12,9,14,0,17,0,17]
[null,"With no vision difficulty",56,27,506,209,67,27,35,17,646,204,58,22,141,61,162,44,29,18,22,25,109,48,151,52,512,152,496,164,363,152,126,83,243,86,366,170,427,145]
[null,"75  years and Older:",19,12,152,88,20,10,14,8,465,138,22,11,21,14,81,28,30,16,1,2,55,35,70,40,321,118,119,58,155,80,132,78,219,96,255,108,482,137]
[null,"With vision difficulty",0,12,0,12,2,3,0,12,45,35,5,7,0,12,4,5,0,12,0,12,0,12,17,28,0,12,0,12,5,9,0,12,8,12,1,3,140,122]
[null,"With no vision difficulty",19,12,152,88,18,10,14,8,420,134,17,10,21,14,77,28,30,16,1,2,55,35,53,30,321,118,119,58,150,79,132,78,211,98,254,108,342,120]
[null,"Female:",404,116,1471,179,261,70,201,63,4788,306,176,46,1008,205,707,127,85,32,12,13,655,117,1361,148,2388,164,1917,152,831,137,1438,157,1239,103,2466,184,3430,250]
[null,"Under 5 years:",11,10,3,6,13,15,10,9,51,42,8,10,94,61,31,20,0,12,0,12,71,40,69,42,45,40,83,72,36,27,101,103,51,32,163,111,0,17]
[null,"With vision difficulty",0,12,0,12,0,12,0,12,0,17,0,12,0,12,0,12,0,12,0,12,0,12,0,12,0,12,0,12,0,12,0,12,0,12,0,17,0,17]
[null,"With no vision difficulty",11,10,3,6,13,15,10,9,51,42,8,10,94,61,31,20,0,12,0,12,71,40,69,42,45,40,83,72,36,27,101,103,51,32,163,111,0,17]
[null,"5 to 17  years:",28,18,44,63,8,8,39,33,528,136,11,9,148,71,63,53,2,3,0,12,113,45,215,75,266,118,154,121,76,39,261,115,151,56,255,129,366,114]
[null,"With vision difficulty",0,12,0,12,0,12,0,12,0,17,0,12,0,12,0,12,0,12,0,12,0,12,0,12,0,12,13,21,3,4,0,12,0,12,0,17,0,17]
[null,"With no vision difficulty",28,18,44,63,8,8,39,33,528,136,11,9,148,71,63,53,2,3,0,12,113,45,215,75,266,118,141,124,73,38,261,115,151,56,255,129,366,114]
[null,"18 to 34  years:",92,43,70,69,34,19,30,17,972,232,7,8,252,104,104,71,0,12,3,5,65,49,151,67,433,153,171,86,91,42,225,106,128,55,424,151,363,241]
[null,"With vision difficulty",0,12,0,12,0,12,0,12,0,17,0,12,0,12,0,12,0,12,0,12,0,12,0,12,0,12,4,11,0,12,0,12,0,12,0,17,0,17]
[null,"With no vision difficulty",92,43,70,69,34,19,30,17,972,232,7,8,252,104,104,71,0,12,3,5,65,49,151,67,433,153,167,88,91,42,225,106,128,55,424,151,363,241]
[null,"35 to 64  years:",228,100,788,170,106,32,84,28,1487,226,83,35,370,82,271,58,33,21,7,11,293,99,637,83,996,144,1049,158,359,75,535,160,434,102,1134,234,1448,260]
[null,"With vision difficulty",38,57,0,12,3,4,0,12,19,21,0,12,18,17,0,12,0,12,0,12,0,12,0,12,0,12,106,53,3,5,0,12,0,12,195,236,59,93]
[null,"With no vision difficulty",190,79,788,170,103,31,84,28,1468,227,83,35,352,81,271,58,33,21,7,11,293,99,637,83,996,144,943,153,356,76,535,160,434,102,939,214,1389,258]
[null,"65 to 74  years:",29,21,463,199,65,26,28,12,1113,239,47,25,128,37,154,32,21,11,1,3,56,29,155,54,414,126,296,84,185,54,198,85,270,74,285,129,556,190]
[null,"With vision difficulty",0,12,44,61,0,12,0,12,50,48,0,12,0,12,2,4,0,12,0,12,0,12,0,12,0,12,57,50,0,12,0,12,0,12,0,17,20,26]
[null,"With no vision difficulty",29,21,419,203,65,26,28,12,1063,242,47,25,128,37,152,32,21,11,1,3,56,29,155,54,414,126,239,72,185,54,198,85,270,74,285,129,536,189]
[null,"75  years and Older:",16,10,103,79,35,26,10,7,637,180,20,12,16,9,84,42,29,17,1,3,57,33,134,69,234,73,164,99,84,34,118,72,205,128,205,105,697,166]
[null,"With vision difficulty",0,12,0,12,0,12,0,12,26,39,0,12,0,12,9,15,0,12,0,12,8,14,0,12,8,12,0,12,13,12,34,55,16,26,0,17,66,64]
[null,"With no vision difficulty",16,10,103,79,35,26,10,7,611,166,20,12,16,9,75,40,29,17,1,3,49,29,134,69,226,72,164,99,71,31,84,48,189,130,205,105,631,144]
[]
[]
[{"$f":"A1& \"-Calculated\"","v":"B18103. SEX BY AGE BY VISION DIFFICULTY\n\n\n-Calculated"}]
[{"$f":"A2","v":"Universe:  Civilian non-institutionalized population"}]
[{"$f":"A3","v":"Data Set: 2018-2022 American Community Survey 5-Year Estimates"}]
[]
[]
[null,null,"Albany",null,"Bartlett",null,"Brookfield",null,"Chatham",null,"Conway",null,"Eaton",null,"Effingham",null,"Freedom",null,"Hale's Location",null,"Hart's Location",null,"Jackson",null,"Madison",null,"Moultonborough",null,"Ossipee",null,"Sandwich",null,"Tamworth",null,"Tuftonboro",null,"Wakefield",null,"Wolfeboro"]
[null,null,"Estimate","Margin Of Error","Estimate","Margin Of Error","Estimate","Margin Of Error","Estimate","Margin Of Error","Estimate","Margin Of Error","Estimate","Margin Of Error","Estimate","Margin Of Error","Estimate","Margin Of Error","Estimate","Margin Of Error","Estimate","Margin Of Error","Estimate","Margin Of Error","Estimate","Margin Of Error","Estimate","Margin Of Error","Estimate","Margin Of Error","Estimate","Margin Of Error","Estimate","Margin Of Error","Estimate","Margin Of Error","Estimate","Margin Of Error","Estimate","Margin Of Error"]
[null,"Total",{"$f":"C7","v":708},164,3207,17,536,142,423,109,9862,20,355,72,1794,280,1336,184,196,61,53,37,1149,182,{"$f":"Y7","v":2609},21,4931,42,4280,15,1838,254,2844,15,2507,27,5266,18,6383,16]
[null,"Under 5 years:",{"$f":"C28+C9","v":16},{"$f":"SQRT((D28^2)+(D9^2))","v":11.661903789690601},{"$f":"E28+E9","v":47},{"$f":"SQRT((F28^2)+(F9^2))","v":68.264192663504048},{"$f":"G28+G9","v":19},{"$f":"SQRT((H28^2)+(H9^2))","v":22.671568097509269},{"$f":"I28+I9","v":19},{"$f":"SQRT((J28^2)+(J9^2))","v":13.45362404707371},{"$f":"K28+K9","v":290},{"$f":"SQRT((L28^2)+(L9^2))","v":117.74548823628021},{"$f":"M28+M9","v":8},{"$f":"SQRT((N28^2)+(N9^2))","v":15.620499351813308},{"$f":"O28+O9","v":134},{"$f":"SQRT((P28^2)+(P9^2))","v":65.551506466289538},{"$f":"Q28+Q9","v":56},{"$f":"SQRT((R28^2)+(R9^2))","v":26.90724809414742},{"$f":"S28+S9","v":0},{"$f":"SQRT((T28^2)+(T9^2))","v":16.970562748477139},{"$f":"U28+U9","v":0},{"$f":"SQRT((V28^2)+(V9^2))","v":16.970562748477139},{"$f":"W28+W9","v":81},{"$f":"SQRT((X28^2)+(X9^2))","v":42.379240200834182},{"$f":"Y28+Y9","v":108},{"$f":"SQRT((Z28^2)+(Z9^2))","v":54.037024344425184},{"$f":"AA28+AA9","v":120},{"$f":"SQRT((AB28^2)+(AB9^2))","v":74.625732827222535},{"$f":"AC28+AC9","v":260},{"$f":"SQRT((AD28^2)+(AD9^2))","v":121.60592090848209},{"$f":"AE28+AE9","v":59},{"$f":"SQRT((AF28^2)+(AF9^2))","v":31.906112267087632},{"$f":"AG28+AG9","v":142},{"$f":"SQRT((AH28^2)+(AH9^2))","v":109.78615577567146},{"$f":"AI28+AI9","v":82},{"$f":"SQRT((AJ28^2)+(AJ9^2))","v":52.009614495783374},{"$f":"AK28+AK9","v":272},{"$f":"SQRT((AL28^2)+(AL9^2))","v":139.80700983856281},{"$f":"AM28+AM9","v":26},{"$f":"SQRT((AN28^2)+(AN9^2))","v":38.013155617496423}]
[null,"With vision difficulty",{"$f":"C29+C10","v":0},{"$f":"SQRT((D29^2)+(D10^2))","v":16.970562748477139},{"$f":"E29+E10","v":0},{"$f":"SQRT((F29^2)+(F10^2))","v":16.970562748477139},{"$f":"G29+G10","v":0},{"$f":"SQRT((H29^2)+(H10^2))","v":16.970562748477139},{"$f":"I29+I10","v":0},{"$f":"SQRT((J29^2)+(J10^2))","v":16.970562748477139},{"$f":"K29+K10","v":0},{"$f":"SQRT((L29^2)+(L10^2))","v":24.041630560342615},{"$f":"M29+M10","v":0},{"$f":"SQRT((N29^2)+(N10^2))","v":16.970562748477139},{"$f":"O29+O10","v":0},{"$f":"SQRT((P29^2)+(P10^2))","v":16.970562748477139},{"$f":"Q29+Q10","v":0},{"$f":"SQRT((R29^2)+(R10^2))","v":16.970562748477139},{"$f":"S29+S10","v":0},{"$f":"SQRT((T29^2)+(T10^2))","v":16.970562748477139},{"$f":"U29+U10","v":0},{"$f":"SQRT((V29^2)+(V10^2))","v":16.970562748477139},{"$f":"W29+W10","v":0},{"$f":"SQRT((X29^2)+(X10^2))","v":16.970562748477139},0,16.970562748477139,0,16.970562748477139,0,16.970562748477139,0,16.970562748477139,0,16.970562748477139,0,16.970562748477139,0,24.041630560342615,0,24.041630560342615]
[null,"With no vision difficulty",16,11.661903789690601,47,68.264192663504048,19,22.671568097509269,19,13.45362404707371,290,117.74548823628021,8,15.620499351813308,134,65.551506466289538,56,26.90724809414742,0,16.970562748477139,0,16.970562748477139,81,42.379240200834182,108,54.037024344425184,120,74.625732827222535,260,121.60592090848209,59,31.906112267087632,142,109.78615577567146,82,52.009614495783374,272,139.80700983856281,26,38.013155617496423]
[null,"5 to 17 years:",68,28.42534080710379,127,91.967385523347346,32,18.788294228055936,82,51.855568649856693,1174,273.24897072084281,22,14.212670403551895,264,89.202017914394744,162,83.868945385047027,2,12.369316876852981,0,16.970562748477139,133,50.537115073973112,546,191.31387822110554,615,169.01183390520322,307,147.87156589419075,143,51.088159097779204,534,158.44872987815333,273,74.411020689142546,670,194.82556300444764,817,195.64508682816444]
[null,"With vision difficulty",0,16.970562748477139,0,16.970562748477139,0,16.970562748477139,0,16.970562748477139,0,24.041630560342615,0,16.970562748477139,0,16.970562748477139,0,16.970562748477139,0,16.970562748477139,0,16.970562748477139,0,16.970562748477139,0,16.970562748477139,0,16.970562748477139,17,28.319604517012593,3,12.649110640673518,0,16.970562748477139,0,16.970562748477139,0,24.041630560342615,0,24.041630560342615]
[null,"With no vision difficulty",68,28.42534080710379,127,91.967385523347346,32,18.788294228055936,82,51.855568649856693,1174,273.24897072084281,22,14.212670403551895,264,89.202017914394744,162,83.868945385047027,2,12.369316876852981,0,16.970562748477139,133,50.537115073973112,546,191.31387822110554,615,169.01183390520322,290,151.47607071745688,140,50.328918128646478,534,158.44872987815333,273,74.411020689142546,670,194.82556300444764,817,195.64508682816444]
[null,"18 to 34 years:",144,49.739320461783549,303,182.54314558481784,77,36.359317925395686,68,23.345235059857504,2039,344.00581390435832,40,26.248809496813376,423,127.6401190848708,161,80.529497701152962,28,35.114099732158877,5,7.0710678118654755,87,54.561891462814962,294,88.617154095581284,928,203.38387350033435,588,173.77284022539311,174,55.97320787662612,521,157.87653403846943,285,81.394102980498531,828,212.84031572989173,657,280.23204670415549]
[null,"With vision difficulty",0,16.970562748477139,0,16.970562748477139,0,16.970562748477139,0,16.970562748477139,0,24.041630560342615,0,16.970562748477139,0,16.970562748477139,0,16.970562748477139,0,16.970562748477139,0,16.970562748477139,0,16.970562748477139,0,16.970562748477139,0,16.970562748477139,4,16.278820596099706,0,16.970562748477139,0,16.970562748477139,0,16.970562748477139,0,24.041630560342615,0,24.041630560342615]
[null,"With no vision difficulty",144,49.739320461783549,303,182.54314558481784,77,36.359317925395686,68,23.345235059857504,2039,344.00581390435832,40,26.248809496813376,423,127.6401190848708,161,80.529497701152962,28,35.114099732158877,5,7.0710678118654755,87,54.561891462814962,294,88.617154095581284,928,203.38387350033435,584,174.77127910500627,174,55.97320787662612,521,157.87653403846943,285,81.394102980498531,828,212.84031572989173,657,280.23204670415549]
[null,"35 to 64 years:",360,110.92339699089638,1462,243.26117651610582,221,52.009614495783374,167,38.897300677553446,3498,416.62453120285659,138,43.011626335213137,663,102.20078277586722,473,74.027022093286988,57,27.018512172212592,23,22.825424421026653,571,125.41929676090518,1151,117.37972567696688,1787,188.73261509341728,2038,226.29184695874486,671,107.48953437428223,1073,229.12005586591496,921,147.10540438746634,2385,319.81244503614926,2721,359.31045072471801]
[null,"With vision difficulty",42,57.218878003679869,4,15.620499351813308,4,4.4721359549995796,4,15,19,27.018512172212592,2,12.369316876852981,26,19.723082923316021,4,13.416407864998739,0,16.970562748477139,0,16.970562748477139,4,13.416407864998739,0,16.970562748477139,0,16.970562748477139,106,54.341512676774101,3,13,129,158.45504094221806,0,16.970562748477139,195,236.61149591682988,59,94.540996398387932]
[null,"With no vision difficulty",318,91.4166286842826,1458,243.26117651610582,217,51.400389103585589,163,38.209946349085598,3479,417.16783193338387,136,43.011626335213137,637,102.61578825892242,469,73.409808608931812,57,27.018512172212592,23,22.825424421026653,567,125.41929676090518,1151,117.37972567696688,1787,188.73261509341728,1932,222.82953125651906,668,108.18964830333815,944,193.03885619221847,921,147.10540438746634,2190,305.48322376196046,2662,357.86589667080602]
[null,"65 to 74 years:",85,34.205262752974143,1013,290.03792855418067,132,37.483329627982627,63,20.808652046684813,1759,314.22444207922462,105,33.301651610693426,273,71.344235926947874,319,54.405882034941776,50,21.095023109728988,23,25.179356624028344,165,56.080299571239813,306,74.966659255965254,926,197.43353311937665,804,185.15128949051368,552,161.3071604114337,324,118.80235687897779,522,112.69871339105873,651,213.40337391897066,983,239.00836805434241]
[null,"With vision difficulty",0,16.970562748477139,88,92.849340331528467,0,16.970562748477139,0,16.970562748477139,50,50.921508225896062,0,16.970562748477139,4,13,5,5.6568542494923806,0,16.970562748477139,0,16.970562748477139,0,16.970562748477139,0,16.970562748477139,0,16.970562748477139,69,53.488316481265329,4,13.416407864998739,0,16.970562748477139,9,18.439088914585774,0,24.041630560342615,20,31.064449134018133]
[null,"With no vision difficulty",85,34.205262752974143,925,291.35888522576414,132,37.483329627982627,63,20.808652046684813,1709,316.51224304914336,105,33.301651610693426,269,71.344235926947874,314,54.405882034941776,50,21.095023109728988,23,25.179356624028344,165,56.080299571239813,306,74.966659255965254,926,197.43353311937665,735,179.10890541790488,548,161.3071604114337,324,118.80235687897779,513,113.45483682946268,651,213.40337391897066,963,238.21418933388497]
[null,"75 years and over:",35,15.620499351813308,255,118.25819210524064,55,27.856776554368238,24,10.63014581273465,1102,226.8126980572296,42,16.278820596099706,37,16.643316977093239,165,50.47771785649585,59,23.345235059857504,2,3.6055512754639891,112,48.104053883222775,204,79.755877526361658,555,138.75518008348374,283,114.73883387938018,239,86.92525524840292,250,106.15083607772479,424,160,460,150.6286825275983,1179,215.23243250030885]
[null,"With vision difficulty",0,16.970562748477139,0,16.970562748477139,2,12.369316876852981,0,16.970562748477139,71,52.40229002629561,5,13.892443989449804,0,16.970562748477139,13,15.811388300841896,0,16.970562748477139,0,16.970562748477139,8,18.439088914585774,17,30.463092423455635,8,16.970562748477139,0,16.970562748477139,18,15,34,56.293871780150276,24,28.635642126552707,1,17.262676501632068,206,137.7679207943562]
[null,"With no vision difficulty",35,15.620499351813308,255,118.25819210524064,53,27.856776554368238,24,10.63014581273465,1031,213.33541665649423,37,15.620499351813308,37,16.643316977093239,152,48.826222462934808,59,23.345235059857504,2,3.6055512754639891,104,45.453272709454048,187,75.23961722390672,547,138.23168956501979,283,114.73883387938018,221,84.864598037108507,216,91.586025134842487,400,162.80049139974977,459,150.6286825275983,973,187.4459922217597]
[]
[]
[]
[]
[]
[]
[]
[]
[]
[]
[]
[]
[]
[]
[]
[]
[]
[]
[]
[]
[]
[]
[]
[]
[]
[]
["B18103. SEX BY AGE BY VISION DIFFICULTY\n\n\n-Calculated"]
["Universe:  Civilian non-institutionalized population"]
["Data Set: 2013-2017 American Community Survey 5-Year Estimates"]
[]
[]
[null,null,"Albany",null,"Bartlett",null,"Brookfield",null,"Chatham",null,"Conway",null,"Eaton",null,"Effingham",null,"Freedom",null,"Hale's Location",null,"Hart's Location",null,"Jackson",null,"Madison",null,"Moultonborough",null,"Ossipee",null,"Sandwich",null,"Tamworth",null,"Tuftonboro",null,"Wakefield",null,"Wolfeboro"]
[null,null,"Estimate","Margin Of Error","Estimate","Margin Of Error","Estimate","Margin Of Error","Estimate","Margin Of Error","Estimate","Margin Of Error","Estimate","Margin Of Error","Estimate","Margin Of Error","Estimate","Margin Of Error","Estimate","Margin Of Error","Estimate","Margin Of Error","Estimate","Margin Of Error","Estimate","Margin Of Error","Estimate","Margin Of Error","Estimate","Margin Of Error","Estimate","Margin Of Error","Estimate","Margin Of Error","Estimate","Margin Of Error","Estimate","Margin Of Error","Estimate","Margin Of Error"]
[null,"Total",782,141,2760,22,868,263,339,109,9872,71,321,68,1435,174,1314,175,159,48,52,31,957,220,2518,22,4049,20,4104,116,1342,199,2917,13,2153,183,4987,37,6130,40]
[null,"Under 5 years:",41,32.280024783137947,78,64.474801279259481,32,24.083189157584592,17,13.45362404707371,446,119.5198728245642,10,16.278820596099706,68,35.468295701936398,5,13.601470508735444,0,15.556349186104045,0,15.556349186104045,39,36.891733491393431,156,59.941638282582836,80,54.203320931470607,135,81.394102980498531,42,32.526911934581186,95,74.431176263713581,63,49.396356140913873,305,109.07795377618706,201,81.584312217484552]
[null,"With vision difficulty",0,15.556349186104045,0,15.556349186104045,0,15.556349186104045,0,15.556349186104045,0,25.45584412271571,0,15.556349186104045,0,15.556349186104045,0,15.556349186104045,0,15.556349186104045,0,15.556349186104045,0,15.556349186104045,0,15.556349186104045,0,15.556349186104045,0,15.556349186104045,0,15.556349186104045,0,15.556349186104045,0,15.556349186104045,0,22.627416997969522,0,22.627416997969522]
[null,"With no vision difficulty",41,32.280024783137947,78,64.474801279259481,32,24.083189157584592,17,13.45362404707371,446,119.5198728245642,10,16.278820596099706,68,35.468295701936398,5,13.601470508735444,0,15.556349186104045,0,15.556349186104045,39,36.891733491393431,156,59.941638282582836,80,54.203320931470607,135,81.394102980498531,42,32.526911934581186,95,74.431176263713581,63,49.396356140913873,305,109.07795377618706,201,81.584312217484552]
[null,"5 to 17 years:",166,70.092795635500224,332,139.84276885130672,193,100.41912168506553,45,21.633307652783937,1674,269.48283804353849,20,14.212670403551895,219,53.413481444294568,196,66.037867924396224,0,15.556349186104045,2,12.083045973594572,78,47.801673610868477,291,91.678787077491378,529,121.62236636408618,449,142.61135999632006,160,68.249542123006222,401,192.28364465029262,260,71.589105316381762,453,164.01219466856725,597,179.40178371465541]
[null,"With vision difficulty",0,15.556349186104045,0,15.556349186104045,0,15.556349186104045,0,15.556349186104045,0,25.45584412271571,0,15.556349186104045,0,15.556349186104045,0,15.556349186104045,0,15.556349186104045,0,15.556349186104045,0,15.556349186104045,0,15.556349186104045,0,15.556349186104045,31,50.219518117958877,0,15.556349186104045,0,15.556349186104045,6,14.212670403551895,0,22.627416997969522,0,22.627416997969522]
[null,"With no vision difficulty",166,70.092795635500224,332,139.84276885130672,193,100.41912168506553,45,21.633307652783937,1674,269.48283804353849,20,14.212670403551895,219,53.413481444294568,196,66.037867924396224,0,15.556349186104045,2,12.083045973594572,78,47.801673610868477,291,91.678787077491378,529,121.62236636408618,418,148.92279879185725,160,68.249542123006222,401,192.28364465029262,254,70.837842993699354,453,164.01219466856725,597,179.40178371465541]
[null,"18 to 34 years:",81,40.36087214122113,464,155.70806016388491,83,39.597979746446661,56,37.576588456111871,1842,278.15283568570715,33,21.095023109728988,259,77.103826104804938,128,50.219518117958877,5,13.601470508735444,0,15.556349186104045,119,75.451971478550519,326,80.808415403347695,631,149.93665329064805,599,150.6286825275983,149,57.982756057296896,296,137.64446955835166,290,89.810912477270818,924,248.1954874690513,773,216.67025638051939]
[null,"With vision difficulty",0,15.556349186104045,0,15.556349186104045,0,15.556349186104045,0,15.556349186104045,0,25.45584412271571,0,15.556349186104045,0,15.556349186104045,3,12.083045973594572,0,15.556349186104045,0,15.556349186104045,0,15.556349186104045,0,15.556349186104045,0,15.556349186104045,4,13.601470508735444,0,15.556349186104045,0,15.556349186104045,0,15.556349186104045,73,73.756355658343097,0,22.627416997969522]
[null,"With no vision difficulty",81,40.36087214122113,464,155.70806016388491,83,39.597979746446661,56,37.576588456111871,1842,278.15283568570715,33,21.095023109728988,259,77.103826104804938,125,50.219518117958877,5,13.601470508735444,0,15.556349186104045,119,75.451971478550519,326,80.808415403347695,631,149.93665329064805,595,149.93331851193051,149,57.982756057296896,296,137.64446955835166,290,89.810912477270818,851,233.11156127485398,773,216.67025638051939]
[null,"35 to 64 years:",370,55.172456896534889,1259,159.22311389996113,406,107.07474025184464,155,33.241540277189323,4145,341.67235767618075,141,35.510561809129406,609,60.207972893961475,600,73.109506905736964,32,15.556349186104045,40,21.213203435596427,364,94.762861923857074,1189,114.21471008587291,1705,134.41726079637243,1884,218.3323155192561,553,87.692645073575008,1588,201.37527157027003,804,99.809819156233317,2278,193.04144632694815,2351,196.65706191235543]
[null,"With vision difficulty",8,10.440306508910551,1,11.704699910719626,11,12.806248474865697,3,12.083045973594572,71,58.898217290508889,1,11.401754250991379,21,19.646882704388499,21,21.931712199461309,0,15.556349186104045,3,12.083045973594572,0,15.556349186104045,5,15.556349186104045,6,14.866068747318506,117,85.959292691366414,0,15.556349186104045,22,24.083189157584592,33,33.541019662496844,22,36.674241641784498,108,105.38026380684383]
[null,"With no vision difficulty",362,55.901699437494742,1258,160.31219541881399,395,104.29285689825551,152,33.241540277189323,4074,334.85668576273042,140,34.985711369071801,588,59.464274989274024,579,71.505244562899023,32,15.556349186104045,37,20.518284528683193,364,94.762861923857074,1184,114.21471008587291,1699,135.10366390294527,1767,216.83634381717471,553,87.692645073575008,1566,199.48433522459854,771,93.722996110879848,2256,195.88006534611938,2243,203.76947759662141]
[null,"65 to 74 years:",59,22.203603311174518,425,150.24313628249379,126,41.773197148410844,36,16.970562748477139,1119,189.55210365490541,85,26.248809496813376,169,42.426406871192853,200,38.897300677553446,69,21.400934559032695,6,6.7082039324993694,242,70.007142492748557,313,77.077882690172544,812,127.61269529321916,688,157.4102919125684,236,45.967379738244816,256,104.89041900955492,464,93.380940239430018,657,181.81309083781619,1222,170.18225524419401]
[null,"With vision difficulty",0,15.556349186104045,20,33.837848631377263,5,14.866068747318506,1,11.180339887498949,98,100.64790112068906,0,15.556349186104045,0,15.556349186104045,4,12.083045973594572,0,15.556349186104045,2,11.401754250991379,14,17.464249196572979,21,27.313000567495326,47,40.311288741492746,44,32.802438933713454,13,17.029386365926403,0,15.556349186104045,9,14.866068747318506,44,70.83078426785913,18,33.120990323358392]
[null,"With no vision difficulty",59,22.203603311174518,405,149.45902448497381,121,41.036569057366385,35,16.970562748477139,1021,184.94593804677083,85,26.248809496813376,169,42.426406871192853,196,38.209946349085598,69,21.400934559032695,4,12.529964086141668,228,67.178865724273734,292,74.966659255965254,765,119.20570456148481,644,156.81836627130127,223,45.254833995939045,256,104.89041900955492,455,91.934759476489631,613,172.04650534085255,1204,170.18225524419401]
[null,"75 years and over:",65,25.80697580112788,202,107.00467279516349,28,21.931712199461309,30,20.615528128088304,646,129.07362240210043,32,15,111,37.12142238654117,185,52.32590180780452,53,16.970562748477139,4,4.2426406871192848,115,42.80186911806539,243,80,292,92.195444572928878,349,96.260064408871031,202,60.21627686929839,281,140.41723540933285,272,77.388629655783419,370,142.89856542317,986,230.20208513391012]
[null,"With vision difficulty",0,15.556349186104045,0,15.556349186104045,0,15.556349186104045,4,13.038404810405298,26,18.439088914585774,0,15.556349186104045,21,14.866068747318506,15,20.248456731316587,4,12.083045973594572,0,15.556349186104045,0,15.556349186104045,18,29.154759474226502,33,40.162171256046406,57,59.615434243155519,2,11.704699910719626,0,15.556349186104045,23,31.048349392520048,21,36.674241641784498,118,117.51595636338071]
[null,"With no vision difficulty",65,25.80697580112788,202,107.00467279516349,28,21.931712199461309,26,19.849433241279208,620,127.1416532848303,32,15,90,35.114099732158877,170,50.24937810560445,49,16.278820596099706,4,4.2426406871192848,115,42.80186911806539,225,76.006578662639456,259,89.643739324059879,292,90.13878188659973,200,59.405386961116584,281,140.41723540933285,249,73.23933369440222,349,137.88763541376724,868,222.14634815814551]
[]
[]
[]
[]
[]
["B18103. SEX BY AGE BY VISION DIFFICULTY\n\n\n-Calculated"]
["Universe:  Civilian non-institutionalized population"]
["Data Set: 2008-2012 American Community Survey 5-Year Estimates"]
[]
[]
[null,null,"Albany",null,"Bartlett",null,"Brookfield",null,"Chatham",null,"Conway",null,"Eaton",null,"Effingham",null,"Freedom",null,"Hale's Location",null,"Hart's Location",null,"Jackson",null,"Madison",null,"Moultonborough",null,"Ossipee",null,"Sandwich",null,"Tamworth",null,"Tuftonboro",null,"Wakefield",null,"Wolfeboro"]
[null,null,"Estimate","Margin Of Error","Estimate","Margin Of Error","Estimate","Margin Of Error","Estimate","Margin Of Error","Estimate","Margin Of Error","Estimate","Margin Of Error","Estimate","Margin Of Error","Estimate","Margin Of Error","Estimate","Margin Of Error","Estimate","Margin Of Error","Estimate","Margin Of Error","Estimate","Margin Of Error","Estimate","Margin Of Error","Estimate","Margin Of Error","Estimate","Margin Of Error","Estimate","Margin Of Error","Estimate","Margin Of Error","Estimate","Margin Of Error","Estimate","Margin Of Error"]
[null,"Total",875,179,2793,17,681,160,446,148,9965,62,393,77,1344,202,1197,167,110,29,33,21,990,232,2496,24,4078,16,4183,104,1224,201,2854,18,2513,307,5044,19,6181,35]
[null,"Under 5 years:",46,34.985711369071801,74,66.128662469461759,15,14.317821063276353,55,38.948684188300895,584,160.03124694883809,1,11.401754250991379,63,40.249223594996216,60,27.459060435491963,0,15.556349186104045,0,15.556349186104045,51,35.355339059327378,85,49.648766349225639,128,66.483080554378645,173,95.963534741067136,20,13.45362404707371,113,81.884064383737083,125,68.117545463705611,205,95.603347221736954,192,117.2006825918689]
[null,"With vision difficulty",0,15.556349186104045,0,15.556349186104045,0,15.556349186104045,3,12.083045973594572,0,25.45584412271571,0,15.556349186104045,0,15.556349186104045,0,15.556349186104045,0,15.556349186104045,0,15.556349186104045,0,15.556349186104045,0,15.556349186104045,0,15.556349186104045,0,15.556349186104045,0,15.556349186104045,0,15.556349186104045,0,15.556349186104045,0,22.627416997969522,0,22.627416997969522]
[null,"With no vision difficulty",46,34.985711369071801,74,66.128662469461759,15,14.317821063276353,52,37.643060449437421,584,160.03124694883809,1,11.401754250991379,63,40.249223594996216,60,27.459060435491963,0,15.556349186104045,0,15.556349186104045,51,35.355339059327378,85,49.648766349225639,128,66.483080554378645,173,95.963534741067136,20,13.45362404707371,113,81.884064383737083,125,68.117545463705611,205,95.603347221736954,192,117.2006825918689]
[null,"5 to 17 years:",106,55.605755097831377,431,143.69411957348845,123,57.688820407423826,69,41.629316592997299,1276,247.24279564832622,29,14.422205101855956,173,64.404968752418469,142,47.010637094172637,4,12.529964086141668,0,15.556349186104045,146,71.196910045310247,340,100.56838469419701,494,113.56936206565572,937,192.46298345396187,170,68,294,133.45411196362591,451,158.79546593023366,540,156.20499351813308,1108,215.20455385516357]
[null,"With vision difficulty",0,15.556349186104045,0,15.556349186104045,0,15.556349186104045,0,15.556349186104045,11,24.758836806279895,0,15.556349186104045,4,12.529964086141668,12,17.804493814764857,0,15.556349186104045,0,15.556349186104045,0,15.556349186104045,0,15.556349186104045,0,15.556349186104045,0,15.556349186104045,0,15.556349186104045,0,15.556349186104045,0,15.556349186104045,0,22.627416997969522,0,22.627416997969522]
[null,"With no vision difficulty",106,55.605755097831377,431,143.69411957348845,123,57.688820407423826,69,41.629316592997299,1265,247.24279564832622,29,14.422205101855956,169,64.404968752418469,130,40.311288741492746,4,12.529964086141668,0,15.556349186104045,146,71.196910045310247,340,100.56838469419701,494,113.56936206565572,937,192.46298345396187,170,68,294,133.45411196362591,451,158.79546593023366,540,156.20499351813308,1108,215.20455385516357]
[null,"18 to 34 years:",128,49.678969393496885,315,119.20151005754919,123,54.644304369257,85,42.544094772365298,2030,315.31730050855123,55,27.784887978899608,246,71.449282711584999,124,50.606323715519977,2,11.401754250991379,9,7.810249675906654,82,48.010415536631214,239,91.923881554251182,388,109.12378292562992,650,164.01524319403975,99,39.408120990476064,451,120.25389806571761,271,97.8008179924892,728,189.992105099133,801,172.00290695217916]
[null,"With vision difficulty",0,15.556349186104045,0,15.556349186104045,0,15.556349186104045,0,15.556349186104045,21,38.470768123342687,0,15.556349186104045,0,15.556349186104045,0,15.556349186104045,0,15.556349186104045,0,15.556349186104045,0,15.556349186104045,0,15.556349186104045,8,17.804493814764857,8,18.601075237738275,0,15.556349186104045,0,15.556349186104045,0,15.556349186104045,0,22.627416997969522,12,22.627416997969522]
[null,"With no vision difficulty",128,49.678969393496885,315,119.20151005754919,123,54.644304369257,85,42.544094772365298,2009,315.31730050855123,55,27.784887978899608,246,71.449282711584999,124,50.606323715519977,2,11.401754250991379,9,7.810249675906654,82,48.010415536631214,239,91.923881554251182,380,108.25894882179486,642,162.48384535085327,99,39.408120990476064,451,120.25389806571761,271,97.8008179924892,728,189.992105099133,789,171.26587517658035]
[null,"35 to 64 years:",457,82.807004534640669,1378,181.81584089402111,288,54.644304369257,174,53.814496188294839,4480,320.66337489647924,222,37.536648758246919,586,96.254870006665115,482,59.816385714952723,34,13.45362404707371,20,18.601075237738275,453,95.482982777037293,1365,120.24142381059865,2098,152.75143207184672,1892,186.80738743422327,594,83.630138108220294,1549,164.29546554911369,1119,145.45446022724775,2506,260.40929322894755,2401,251.46172671005024]
[null,"With vision difficulty",2,11.704699910719626,16,27.313000567495326,7,7.0710678118654755,16,24.596747752497688,58,56.080299571239813,0,15.556349186104045,7,13.038404810405298,13,16.278820596099706,0,15.556349186104045,7,15.556349186104045,8,19.416487838947599,11,21.095023109728988,53,54.708317466359723,9,17.804493814764857,10,10.816653826391969,22,33.837848631377263,5,13.601470508735444,81,78.644770964127048,24,41.231056256176608]
[null,"With no vision difficulty",455,82.807004534640669,1362,181.20706387997132,281,53.254107822777392,158,48.836461788299118,4422,321.10434441159464,222,37.536648758246919,579,95.414883535012507,469,58.258046654518033,34,13.45362404707371,13,18.601075237738275,445,95.482982777037293,1354,122.3315167894194,2045,156.08331108738051,1883,187.4459922217597,584,84.219950130595535,1527,165.85837331892532,1114,144.81022063376605,2425,255.04901489713697,2377,253.46400138875737]
[null,"65 to 74 years:",83,29.832867780352597,373,125.60652849274993,83,36.796738985948195,43,22.203603311174518,981,231.70023737579555,68,26.076809620810597,127,34.713109915419565,244,48.836461788299118,43,16.278820596099706,0,15.556349186104045,182,53.814496188294839,273,76.216796049164913,626,138.68309197591464,264,72.801098892805186,203,41.231056256176608,209,77.336925203941234,294,81.400245699874887,537,164.83931569865243,936,200.11246837716035]
[null,"With vision difficulty",0,15.556349186104045,43,50.219518117958877,0,15.556349186104045,0,15.556349186104045,20,35.846896657869841,0,15.556349186104045,9,18.601075237738275,13,12.041594578792296,0,15.556349186104045,0,15.556349186104045,0,15.556349186104045,15,18.601075237738275,7,14.866068747318506,0,15.556349186104045,0,15.556349186104045,24,26.248809496813376,9,19.416487838947599,56,89.442719099991592,11,23.345235059857504]
[null,"With no vision difficulty",83,29.832867780352597,330,119.4026800369238,83,36.796738985948195,43,22.203603311174518,961,230.38446128157167,68,26.076809620810597,118,32.802438933713454,231,46.690470119715009,43,16.278820596099706,0,15.556349186104045,182,53.814496188294839,258,74.813100457072352,619,137.13132391981054,264,72.801098892805186,203,41.231056256176608,185,74.652528423356159,285,79.81227975693966,481,148.27339613025663,925,200.11246837716035]
[null,"75 years and over:",55,28.231188426986208,222,93.23625904121208,49,31.240998703626616,20,15,614,137.56816492197603,18,11.180339887498949,149,98.290386101591849,145,41.725292090050132,27,10.63014581273465,4,11.704699910719626,76,31.240998703626616,194,75.006666370396701,344,112.44554237496477,267,80.709355095924295,138,35.468295701936398,238,77.466121627457255,253,100.65783625729296,528,155.66630977832037,743,163.46559270990332]
[null,"With vision difficulty",0,15.556349186104045,47,46.141087980237309,7,8.6023252670426267,2,11.401754250991379,105,78.108898340714035,0,15.556349186104045,4,12.529964086141668,13,11.313708498984761,2,11.401754250991379,0,15.556349186104045,0,15.556349186104045,8,10.63014581273465,18,23.706539182259394,49,41.773197148410844,9,13.601470508735444,7,15.556349186104045,24,22.847319317591726,99,71.028163428319047,11,24.839484696748443]
[null,"With no vision difficulty",55,28.231188426986208,175,79.93122043357026,42,29.832867780352597,18,14.212670403551895,509,128.70508925446578,18,11.180339887498949,145,99.005050376230813,132,39.597979746446661,25,11.401754250991379,4,11.704699910719626,76,31.240998703626616,186,73.552702193733168,326,110.60289327137876,218,66.730802482811484,129,34.828149534535996,231,77.466121627457255,229,103.24727599312246,429,147.18695594379278,732,162.73291000900832]

{"sheet":"ACS_Table_B18104","index":35,"n_rows":153,"n_cols":48,"rows_kept":153,"cut":false,"hidden":true,"merged":[]}
["B18104. SEX BY AGE BY COGNITIVE DIFFICULTY\n\n"]
["Universe:  Civilian non-institutionalized population 5 years and over"]
["Data Set: 2018-2022 American Community Survey 5-Year Estimates"]
[]
[null,null,"Albany",null,"Bartlett",null,"Brookfield",null,"Chatham",null,"Conway",null,"Eaton",null,"Effingham",null,"Freedom",null,"Hale's Location",null,"Hart's Location",null,"Jackson",null,"Madison",null,"Moultonborough",null,"Ossipee",null,"Sandwich",null,"Tamworth",null,"Tuftonboro",null,"Wakefield",null,"Wolfeboro"]
[null,null,"Estimate","Margin Of Error","Estimate","Margin Of Error","Estimate","Margin Of Error","Estimate","Margin Of Error","Estimate","Margin Of Error","Estimate","Margin Of Error","Estimate","Margin Of Error","Estimate","Margin Of Error","Estimate","Margin Of Error","Estimate","Margin Of Error","Estimate","Margin Of Error","Estimate","Margin Of Error","Estimate","Margin Of Error","Estimate","Margin Of Error","Estimate","Margin Of Error","Estimate","Margin Of Error","Estimate","Margin Of Error","Estimate","Margin Of Error","Estimate","Margin Of Error"]
[null,"Total:",692,164,3160,68,517,136,404,103,9572,132,347,70,1660,271,1280,186,196,61,53,37,1068,176,2501,57,4811,84,4020,145,1779,245,2702,122,2425,61,4994,137,6357,37]
[null,"Male:",299,77,1692,202,269,80,213,55,4835,322,179,44,746,118,604,100,111,42,41,32,484,88,1209,148,2468,163,2186,188,984,184,1365,156,1237,100,2691,163,2927,248]
[null,"5 to 17  years:",40,22,83,67,24,17,43,40,646,237,11,11,116,54,99,65,0,12,0,12,20,23,331,176,349,121,153,85,67,33,273,109,122,49,415,146,451,159]
[null,"With cognitive difficulty",8,10,0,12,1,2,1,2,16,24,0,12,32,43,3,4,0,12,0,12,0,12,15,25,35,42,0,12,0,12,12,18,23,20,30,35,49,64]
[null,"With no cognitive difficulty",32,20,83,67,23,17,42,40,630,235,11,11,84,34,96,65,0,12,0,12,20,23,316,181,314,113,153,85,67,33,261,103,99,39,385,131,402,175]
[null,"18 to 34  years:",52,25,233,169,43,31,38,16,1067,254,33,25,171,74,57,38,28,33,2,5,22,24,143,58,495,134,417,151,83,37,296,117,157,60,404,150,294,143]
[null,"With cognitive difficulty",7,9,67,83,0,12,3,5,0,17,0,12,0,12,0,12,8,12,0,12,0,12,21,22,44,49,3,6,3,4,136,97,0,12,0,17,29,54]
[null,"With no cognitive difficulty",45,24,166,161,43,31,35,15,1067,254,33,25,171,74,57,38,20,31,2,5,22,24,122,54,451,132,414,149,80,37,160,92,157,60,404,150,265,138]
[null,"35 to 64  years:",132,48,674,174,115,41,83,27,2011,350,55,25,293,61,202,46,24,17,16,20,278,77,514,83,791,122,989,162,312,77,538,164,487,106,1251,218,1273,248]
[null,"With cognitive difficulty",17,20,0,12,0,12,0,12,144,89,4,5,13,18,13,12,8,8,0,12,2,5,0,12,30,47,103,63,14,18,30,31,49,54,25,38,175,133]
[null,"With no cognitive difficulty",115,45,674,174,115,41,83,27,1867,342,51,25,280,61,189,42,16,16,16,20,276,77,514,83,761,129,886,161,298,74,508,163,438,99,1226,220,1098,234]
[null,"65 to 74  years:",56,27,550,211,67,27,35,17,646,204,58,22,145,61,165,44,29,18,22,25,109,48,151,52,512,152,508,165,367,152,126,83,252,85,366,170,427,145]
[null,"With cognitive difficulty",0,12,17,25,0,12,0,12,0,17,2,3,0,12,3,4,0,12,0,12,0,12,0,12,0,12,23,22,0,12,0,12,0,12,0,17,0,17]
[null,"With no cognitive difficulty",56,27,533,211,67,27,35,17,646,204,56,21,145,61,162,44,29,18,22,25,109,48,151,52,512,152,485,163,367,152,126,83,252,85,366,170,427,145]
[null,"75  years and Older:",19,12,152,88,20,10,14,8,465,138,22,11,21,14,81,28,30,16,1,2,55,35,70,40,321,118,119,58,155,80,132,78,219,96,255,108,482,137]
[null,"With cognitive difficulty",3,5,51,57,2,3,0,12,14,14,1,2,3,4,0,12,4,6,0,12,0,12,4,6,33,33,0,12,14,15,7,11,3,5,0,17,137,110]
[null,"With no cognitive difficulty",16,11,101,68,18,10,14,8,451,133,21,11,18,14,81,28,26,15,1,2,55,35,66,40,288,114,119,58,141,79,125,77,216,97,255,108,345,135]
[null,"Female:",393,116,1468,180,248,65,191,59,4737,315,168,45,914,199,676,126,85,32,12,13,584,106,1292,141,2343,159,1834,158,795,128,1337,173,1188,106,2303,180,3430,250]
[null,"5 to 17  years:",28,18,44,63,8,8,39,33,528,136,11,9,148,71,63,53,2,3,0,12,113,45,215,75,266,118,154,121,76,39,261,115,151,56,255,129,366,114]
[null,"With cognitive difficulty",2,4,0,12,0,12,0,12,0,17,0,12,2,4,0,12,0,12,0,12,0,12,15,19,21,22,5,13,0,12,0,12,0,12,0,17,23,34]
[null,"With no cognitive difficulty",26,18,44,63,8,8,39,33,528,136,11,9,146,70,63,53,2,3,0,12,113,45,200,74,245,114,149,122,76,39,261,115,151,56,255,129,343,114]
[null,"18 to 34  years:",92,43,70,69,34,19,30,17,972,232,7,8,252,104,104,71,0,12,3,5,65,49,151,67,433,153,171,86,91,42,225,106,128,55,424,151,363,241]
[null,"With cognitive difficulty",5,10,4,8,3,6,2,3,136,99,0,12,17,14,49,61,0,12,0,12,0,12,23,31,132,157,10,17,3,5,40,47,34,31,94,90,0,17]
[null,"With no cognitive difficulty",87,42,66,68,31,19,28,17,836,222,7,8,235,105,55,39,0,12,3,5,65,49,128,58,301,112,161,89,88,42,185,100,94,53,330,137,363,241]
[null,"35 to 64  years:",228,100,788,170,106,32,84,28,1487,226,83,35,370,82,271,58,33,21,7,11,293,99,637,83,996,144,1049,158,359,75,535,160,434,102,1134,234,1448,260]
[null,"With cognitive difficulty",29,29,0,12,4,6,0,12,169,127,10,11,41,26,45,49,0,12,0,12,0,12,24,29,30,32,92,50,21,18,0,12,7,10,18,28,110,104]
[null,"With no cognitive difficulty",199,94,788,170,102,32,84,28,1318,190,73,33,329,82,226,44,33,21,7,11,293,99,613,91,966,145,957,160,338,72,535,160,427,102,1116,228,1338,273]
[null,"65 to 74  years:",29,21,463,199,65,26,28,12,1113,239,47,25,128,37,154,32,21,11,1,3,56,29,155,54,414,126,296,84,185,54,198,85,270,74,285,129,556,190]
[null,"With cognitive difficulty",1,2,36,59,2,3,0,12,103,103,1,3,4,8,2,4,0,12,0,12,0,12,4,10,0,12,33,30,9,12,0,12,0,12,0,17,0,17]
[null,"With no cognitive difficulty",28,21,427,203,63,25,28,12,1010,220,46,23,124,38,152,32,21,11,1,3,56,29,151,54,414,126,263,84,176,50,198,85,270,74,285,129,556,190]
[null,"75  years and Older:",16,10,103,79,35,26,10,7,637,180,20,12,16,9,84,42,29,17,1,3,57,33,134,69,234,73,164,99,84,34,118,72,205,128,205,105,697,166]
[null,"With cognitive difficulty",5,6,0,12,0,12,0,12,61,53,5,6,0,12,4,9,7,9,0,12,8,14,45,41,23,25,5,9,6,9,4,7,28,34,0,17,69,69]
[null,"With no cognitive difficulty",11,8,103,79,35,26,10,7,576,190,15,10,16,9,80,41,22,14,1,3,49,29,89,58,211,72,159,98,78,34,114,72,177,129,205,105,628,163]
[]
[]
[{"$f":"A1& \"-Calculated\"","v":"B18104. SEX BY AGE BY COGNITIVE DIFFICULTY\n\n-Calculated"}]
[{"$f":"A2","v":"Universe:  Civilian non-institutionalized population 5 years and over"}]
[{"$f":"A3","v":"Data Set: 2018-2022 American Community Survey 5-Year Estimates"}]
[]
[]
[null,null,"Albany",null,"Bartlett",null,"Brookfield",null,"Chatham",null,"Conway",null,"Eaton",null,"Effingham",null,"Freedom",null,"Hale's Location",null,"Hart's Location",null,"Jackson",null,"Madison",null,"Moultonborough",null,"Ossipee",null,"Sandwich",null,"Tamworth",null,"Tuftonboro",null,"Wakefield",null,"Wolfeboro"]
[null,null,"Estimate","Margin Of Error","Estimate","Margin Of Error","Estimate","Margin Of Error","Estimate","Margin Of Error","Estimate","Margin Of Error","Estimate","Margin Of Error","Estimate","Margin Of Error","Estimate","Margin Of Error","Estimate","Margin Of Error","Estimate","Margin Of Error","Estimate","Margin Of Error","Estimate","Margin Of Error","Estimate","Margin Of Error","Estimate","Margin Of Error","Estimate","Margin Of Error","Estimate","Margin Of Error","Estimate","Margin Of Error","Estimate","Margin Of Error","Estimate","Margin Of Error"]
[null,"Total:",{"$f":"C7","v":692},164,3160,68,517,136,404,103,9572,132,347,70,1660,271,1280,186,196,61,53,37,1068,176,2501,57,4811,84,4020,145,1779,245,2702,122,2425,61,4994,137,6357,37]
[null,"5 to 17  years:",{"$f":"C25+C9","v":68},{"$f":"SQRT((D25^2)+(D9^2))","v":28.42534080710379},{"$f":"E25+E9","v":127},{"$f":"SQRT((F25^2)+(F9^2))","v":91.967385523347346},{"$f":"G25+G9","v":32},{"$f":"SQRT((H25^2)+(H9^2))","v":18.788294228055936},{"$f":"I25+I9","v":82},{"$f":"SQRT((J25^2)+(J9^2))","v":51.855568649856693},{"$f":"K25+K9","v":1174},{"$f":"SQRT((L25^2)+(L9^2))","v":273.24897072084281},{"$f":"M25+M9","v":22},{"$f":"SQRT((N25^2)+(N9^2))","v":14.212670403551895},{"$f":"O25+O9","v":264},{"$f":"SQRT((P25^2)+(P9^2))","v":89.202017914394744},{"$f":"Q25+Q9","v":162},{"$f":"SQRT((R25^2)+(R9^2))","v":83.868945385047027},{"$f":"S25+S9","v":2},{"$f":"SQRT((T25^2)+(T9^2))","v":12.369316876852981},{"$f":"U25+U9","v":0},{"$f":"SQRT((V25^2)+(V9^2))","v":16.970562748477139},{"$f":"W25+W9","v":133},{"$f":"SQRT((X25^2)+(X9^2))","v":50.537115073973112},{"$f":"Y25+Y9","v":546},{"$f":"SQRT((Z25^2)+(Z9^2))","v":191.31387822110554},{"$f":"AA25+AA9","v":615},{"$f":"SQRT((AB25^2)+(AB9^2))","v":169.01183390520322},{"$f":"AC25+AC9","v":307},{"$f":"SQRT((AD25^2)+(AD9^2))","v":147.87156589419075},{"$f":"AE25+AE9","v":143},{"$f":"SQRT((AF25^2)+(AF9^2))","v":51.088159097779204},{"$f":"AG25+AG9","v":534},{"$f":"SQRT((AH25^2)+(AH9^2))","v":158.44872987815333},{"$f":"AI25+AI9","v":273},{"$f":"SQRT((AJ25^2)+(AJ9^2))","v":74.411020689142546},{"$f":"AK25+AK9","v":670},{"$f":"SQRT((AL25^2)+(AL9^2))","v":194.82556300444764},{"$f":"AM25+AM9","v":817},{"$f":"SQRT((AN25^2)+(AN9^2))","v":195.64508682816444}]
[null,"With cognitive difficulty",{"$f":"C26+C10","v":10},10.770329614269007,0,16.970562748477139,1,12.165525060596439,1,12.165525060596439,16,29.410882339705484,0,16.970562748477139,34,43.185645763378368,3,12.649110640673518,0,16.970562748477139,0,16.970562748477139,0,16.970562748477139,30,31.400636936215164,56,47.413078364518789,5,17.691806012954132,0,16.970562748477139,12,21.633307652783937,23,23.323807579381203,30,38.910152916687437,72,72.47068372797375]
[null,"With no cognitive difficulty",58,26.90724809414742,127,91.967385523347346,31,18.788294228055936,81,51.855568649856693,1158,271.51611370229944,22,14.212670403551895,230,77.820305833374874,159,83.868945385047027,2,12.369316876852981,0,16.970562748477139,133,50.537115073973112,516,195.54283418218117,559,160.51479682571323,302,148.69095466772686,143,51.088159097779204,522,154.38264151127873,250,68.24221567329127,640,183.85320231097418,745,208.85641000457707]
[null,"18 to 34  years:",144,49.739320461783549,303,182.54314558481784,77,36.359317925395686,68,23.345235059857504,2039,344.00581390435832,40,26.248809496813376,423,127.6401190848708,161,80.529497701152962,28,35.114099732158877,5,7.0710678118654755,87,54.561891462814962,294,88.617154095581284,928,203.38387350033435,588,173.77284022539311,174,55.97320787662612,521,157.87653403846943,285,81.394102980498531,828,212.84031572989173,657,280.23204670415549]
[null,"With cognitive difficulty",12,13.45362404707371,71,83.384650865731871,3,13.416407864998739,5,5.8309518948453007,136,100.44899203078147,0,16.970562748477139,17,18.439088914585774,49,62.169124169478209,8,16.970562748477139,0,16.970562748477139,0,16.970562748477139,44,38.013155617496423,176,164.46884203398528,13,18.027756377319946,6,6.4031242374328485,176,107.78682665335315,34,33.241540277189323,94,91.591484320323147,29,56.612719418872643]
[null,"With no cognitive difficulty",132,48.373546489791295,232,174.77127910500627,74,36.359317925395686,63,22.671568097509269,1903,337.34255586865999,40,26.248809496813376,406,128.4562182223967,112,54.451813560247928,20,33.241540277189323,5,7.0710678118654755,87,54.561891462814962,250,79.246451024635803,752,173.11268006705922,575,173.55690709389816,168,55.97320787662612,345,135.88230201170424,251,80.05623023850174,734,203.147729497526,628,277.71388153997634]
[null,"35 to 64  years:",360,110.92339699089638,1462,243.26117651610582,221,52.009614495783374,167,38.897300677553446,3498,416.62453120285659,138,43.011626335213137,663,102.20078277586722,473,74.027022093286988,57,27.018512172212592,23,22.825424421026653,571,125.41929676090518,1151,117.37972567696688,1787,188.73261509341728,2038,226.29184695874486,671,107.48953437428223,1073,229.12005586591496,921,147.10540438746634,2385,319.81244503614926,2721,359.31045072471801]
[null,"With cognitive difficulty",46,35.227829907617071,0,16.970562748477139,4,13.416407864998739,0,16.970562748477139,313,155.08062419270823,14,12.083045973594572,54,31.622776601683793,58,50.447993022517757,8,14.422205101855956,0,16.970562748477139,2,13,24,31.384709652950431,60,56.859475903318,195,80.430093870391573,35,25.45584412271571,30,33.241540277189323,56,54.918120870983927,43,47.201694884823787,285,168.83423823383691]
[null,"With no cognitive difficulty",314,104.21612159354233,1462,243.26117651610582,217,52.009614495783374,167,38.897300677553446,3185,391.233945357506,124,41.400483088968905,609,102.20078277586722,415,60.827625302982199,49,26.40075756488817,23,22.825424421026653,569,125.41929676090518,1127,123.16655390161731,1727,194.07730418572905,1843,226.98237817064125,636,103.24727599312246,1043,228.40534144367115,865,142.1442928857856,2342,316.83434157300564,2436,359.56223383442261]
[null,"65 to 74  years:",85,34.205262752974143,1013,290.03792855418067,132,37.483329627982627,63,20.808652046684813,1759,314.22444207922462,105,33.301651610693426,273,71.344235926947874,319,54.405882034941776,50,21.095023109728988,23,25.179356624028344,165,56.080299571239813,306,74.966659255965254,926,197.43353311937665,804,185.15128949051368,552,161.3071604114337,324,118.80235687897779,522,112.69871339105873,651,213.40337391897066,983,239.00836805434241]
[null,"With cognitive difficulty",1,12.165525060596439,53,64.078077374403179,2,12.369316876852981,0,16.970562748477139,103,104.39348638684312,3,4.2426406871192848,4,14.422205101855956,5,5.6568542494923806,0,16.970562748477139,0,16.970562748477139,0,16.970562748477139,4,15.620499351813308,0,16.970562748477139,56,37.20215047547655,9,16.970562748477139,0,16.970562748477139,0,16.970562748477139,0,24.041630560342615,0,24.041630560342615]
[null,"With no cognitive difficulty",84,34.205262752974143,960,292.79685790663808,130,36.796738985948195,63,20.808652046684813,1656,300.0266654815868,102,31.144823004794873,269,71.867934435323804,314,54.405882034941776,50,21.095023109728988,23,25.179356624028344,165,56.080299571239813,302,74.966659255965254,926,197.43353311937665,748,183.3712082089225,543,160.01249951175689,324,118.80235687897779,522,112.69871339105873,651,213.40337391897066,983,239.00836805434241]
[null,"75  years and Older:",35,15.620499351813308,255,118.25819210524064,55,27.856776554368238,24,10.63014581273465,1102,226.8126980572296,42,16.278820596099706,37,16.643316977093239,165,50.47771785649585,59,23.345235059857504,2,3.6055512754639891,112,48.104053883222775,204,79.755877526361658,555,138.75518008348374,283,114.73883387938018,239,86.92525524840292,250,106.15083607772479,424,160,460,150.6286825275983,1179,215.23243250030885]
[null,"With cognitive difficulty",8,7.810249675906654,51,58.249463516842795,2,12.369316876852981,0,16.970562748477139,75,54.817880294662984,6,6.324555320336759,3,12.649110640673518,4,15,11,10.816653826391969,0,16.970562748477139,8,18.439088914585774,49,41.43669871020132,56,41.400483088968905,5,15,20,17.4928556845359,11,13.038404810405298,31,34.365680554879162,0,24.041630560342615,206,129.84991336154215]
[null,"With no cognitive difficulty",27,13.601470508735444,204,104.23531071570709,53,27.856776554368238,24,10.63014581273465,1027,231.92455669894036,36,14.866068747318506,34,16.643316977093239,161,49.648766349225639,48,20.518284528683193,2,3.6055512754639891,104,45.453272709454048,155,70.455659815234142,499,134.83323032546539,278,113.87712676389407,219,86.005813756978085,239,105.41821474489122,393,161.40012391568973,460,150.6286825275983,973,211.64593074283286]
[]
[]
[]
[]
[]
[]
[]
[]
[]
[]
[]
[]
[]
[]
[]
[]
[]
[]
[]
[]
[]
[]
[]
[]
[]
[]
[]
[]
[]
[]
[]
[]
[]
[]
[]
["B18104. SEX BY AGE BY COGNITIVE DIFFICULTY\n\n-Calculated"]
["Universe:  Civilian non-institutionalized population 5 years and over"]
["Data Set: 2013-2017 American Community Survey 5-Year Estimates"]
[]
[]
[null,null,"Albany",null,"Bartlett",null,"Brookfield",null,"Chatham",null,"Conway",null,"Eaton",null,"Effingham",null,"Freedom",null,"Hale's Location",null,"Hart's Location",null,"Jackson",null,"Madison",null,"Moultonborough",null,"Ossipee",null,"Sandwich",null,"Tamworth",null,"Tuftonboro",null,"Wakefield",null,"Wolfeboro"]
[null,null,"Estimate","Margin Of Error","Estimate","Margin Of Error","Estimate","Margin Of Error","Estimate","Margin Of Error","Estimate","Margin Of Error","Estimate","Margin Of Error","Estimate","Margin Of Error","Estimate","Margin Of Error","Estimate","Margin Of Error","Estimate","Margin Of Error","Estimate","Margin Of Error","Estimate","Margin Of Error","Estimate","Margin Of Error","Estimate","Margin Of Error","Estimate","Margin Of Error","Estimate","Margin Of Error","Estimate","Margin Of Error","Estimate","Margin Of Error","Estimate","Margin Of Error","Estimate","Margin Of Error","Estimate","Margin Of Error","Estimate","Margin Of Error","Estimate","Margin Of Error"]
[null,"Total:",741,127,2682,79,836,253,322,100,9426,122,311,66,1367,165,1309,174,159,48,52,31,918,213,2362,68,3969,48,3969,139,1300,191,2822,98,2090,166,4682,129,5929,94,0,0,0,0,0,0,0,0]
[null,"5 to 17  years:",166,70.092795635500224,332,139.84276885130672,193,100.41912168506553,45,21.633307652783937,1674,269.48283804353849,20,14.212670403551895,219,53.413481444294568,196,66.037867924396224,0,15.556349186104045,2,12.083045973594572,78,47.801673610868477,291,91.678787077491378,529,121.62236636408618,449,142.61135999632006,160,68.249542123006222,401,192.28364465029262,260,71.589105316381762,453,164.01219466856725,597,179.40178371465541,0,0,0,0,0,0,0,0]
[null,"With cognitive difficulty",3,12.083045973594572,13,23.706539182259394,5,14.212670403551895,4,12.529964086141668,96,76.550636836018555,0,15.556349186104045,15,19.416487838947599,28,16.970562748477139,0,15.556349186104045,0,15.556349186104045,0,15.556349186104045,8,16.278820596099706,40,48.270073544588683,55,59.033888572581766,1,11.401754250991379,0,15.556349186104045,14,23.706539182259394,52,44.045431091090478,0,22.627416997969522,0,0,0,0,0,0,0,0]
[null,"With no cognitive difficulty",163,70.092795635500224,319,141.7603611733548,188,99.724620831567975,41,20.591260281974002,1578,262.38330739587838,20,14.212670403551895,204,50.328918128646478,168,62.265560304232388,0,15.556349186104045,2,12.083045973594572,78,47.801673610868477,283,90.785461391128038,489,126.66885963013956,394,149.57606760441325,159,68.249542123006222,401,192.28364465029262,246,71.589105316381762,401,154.84185480676729,597,179.40178371465541,0,0,0,0,0,0,0,0]
[null,"18 to 34  years:",81,40.36087214122113,464,155.70806016388491,83,39.597979746446661,56,37.576588456111871,1842,278.15283568570715,33,21.095023109728988,259,77.103826104804938,128,50.219518117958877,5,13.601470508735444,0,15.556349186104045,119,75.451971478550519,326,80.808415403347695,631,149.93665329064805,599,150.6286825275983,149,57.982756057296896,296,137.64446955835166,290,89.810912477270818,924,248.1954874690513,773,216.67025638051939,0,0,0,0,0,0,0,0]
[null,"With cognitive difficulty",0,15.556349186104045,12,21.95449840010015,3,12.083045973594572,3,11.401754250991379,113,96.84007434941384,0,15.556349186104045,3,12.083045973594572,9,9.2195444572928871,0,15.556349186104045,0,15.556349186104045,0,15.556349186104045,45,37.013511046643494,27,31.906112267087632,43,57.55866572463264,21,15.620499351813308,55,88.68483523128404,0,15.556349186104045,92,80.603970125546539,33,41.231056256176608,0,0,0,0,0,0,0,0]
[null,"With no cognitive difficulty",81,40.36087214122113,452,155.08062419270823,80,40.311288741492746,53,37.576588456111871,1729,275.94927070025028,33,21.095023109728988,256,77.103826104804938,119,48.826222462934808,5,13.601470508735444,0,15.556349186104045,119,75.451971478550519,281,75.742986473996396,604,145.24462124292245,556,144.27751037497146,128,55.226805085936306,241,107.33592129385204,290,89.810912477270818,832,241.89667215569543,740,221.16509670379727,0,0,0,0,0,0,0,0]
[null,"35 to 64  years:",370,55.172456896534889,1259,159.22311389996113,406,107.07474025184464,155,33.241540277189323,4145,341.67235767618075,141,35.510561809129406,609,60.207972893961475,600,73.109506905736964,32,15.556349186104045,40,21.213203435596427,364,94.762861923857074,1189,114.21471008587291,1705,134.41726079637243,1884,218.3323155192561,553,87.692645073575008,1588,201.37527157027003,804,99.809819156233317,2278,193.04144632694815,2351,196.65706191235543,0,0,0,0,0,0,0,0]
[null,"With cognitive difficulty",8,10.440306508910551,23,36.687872655688281,13,11.401754250991379,8,7.0710678118654755,170,97.04638066409278,8,14.866068747318506,26,14.212670403551895,8,14.212670403551895,0,15.556349186104045,0,15.556349186104045,8,17.029386365926403,46,30,86,61.741396161732524,119,92.763139231054481,14,19.416487838947599,115,96.690227013902501,104,55,209,106.94391053257777,153,112.57886124845996,0,0,0,0,0,0,0,0]
[null,"With no cognitive difficulty",362,55.901699437494742,1236,166.01204775557707,393,106.25441167311595,147,32.557641192199412,3975,331.90510692063776,133,33.837848631377263,583,59.548299723837623,592,72.47068372797375,32,15.556349186104045,40,21.213203435596427,356,93.380940239430018,1143,111.39569111954016,1619,135.20724832641184,1765,210.41150158677164,539,84.864598037108507,1473,194.61243536834948,700,91.678787077491378,2069,210.10711553871752,2198,211.42611002428248,0,0,0,0,0,0,0,0]
[null,"65 to 74  years:",59,22.203603311174518,425,150.24313628249379,126,41.773197148410844,36,16.970562748477139,1119,189.55210365490541,85,26.248809496813376,169,42.426406871192853,200,38.897300677553446,69,21.400934559032695,6,6.7082039324993694,242,70.007142492748557,313,77.077882690172544,812,127.61269529321916,688,157.4102919125684,236,45.967379738244816,256,104.89041900955492,464,93.380940239430018,657,181.81309083781619,1222,170.18225524419401,0,0,0,0,0,0,0,0]
[null,"With cognitive difficulty",0,15.556349186104045,75,61.400325732035007,0,15.556349186104045,6,10.295630140987001,47,48.259714048054619,0,15.556349186104045,0,15.556349186104045,3,12.529964086141668,0,15.556349186104045,0,15.556349186104045,0,15.556349186104045,8,15.556349186104045,27,22.360679774997898,55,62.393909959225986,7,13.038404810405298,11,25.495097567963924,4,13.038404810405298,105,90.13878188659973,32,36.796738985948195,0,0,0,0,0,0,0,0]
[null,"With no cognitive difficulty",59,22.203603311174518,350,138.2208377922808,126,41.773197148410844,30,14.7648230602334,1072,188.83061192507955,85,26.248809496813376,169,42.426406871192853,197,38.209946349085598,69,21.400934559032695,6,6.7082039324993694,242,70.007142492748557,305,77.077882690172544,785,126.82271089990152,633,153.44705927452634,229,45.276925690687087,245,104.1393297462587,460,92.655275079188016,552,164.02743672934722,1190,168.58232410309213,0,0,0,0,0,0,0,0]
[null,"75  years and Older:",65,25.80697580112788,202,107.00467279516349,28,21.931712199461309,30,20.615528128088304,646,129.07362240210043,32,15,111,37.12142238654117,185,52.32590180780452,53,16.970562748477139,4,4.2426406871192848,115,42.80186911806539,243,80,292,92.195444572928878,349,96.260064408871031,202,60.21627686929839,281,140.41723540933285,272,77.388629655783419,370,142.89856542317,986,230.20208513391012,0,0,0,0,0,0,0,0]
[null,"With cognitive difficulty",16,13,10,18.601075237738275,0,15.556349186104045,2,12.083045973594572,41,34,0,15.556349186104045,18,12.727922061357855,15,20.248456731316587,0,15.556349186104045,0,15.556349186104045,0,15.556349186104045,40,34.785054261852174,15,16.970562748477139,49,58.523499553598128,3,12.083045973594572,44,69.871310278253688,28,32.015621187164243,72,55.946402922797461,194,143.95138068111746,0,0,0,0,0,0,0,0]
[null,"With no cognitive difficulty",49,21.931712199461309,192,106.21205204683694,28,21.931712199461309,28,19.416487838947599,605,120.41594578792295,32,15,93,34.928498393145958,170,49.578221024962161,53,16.970562748477139,4,4.2426406871192848,115,42.80186911806539,203,72.945184899347538,277,90.13878188659973,300,89.375611886017325,199,59.640590204993778,237,127.40486646906389,244,73.23933369440222,298,134.35773144854747,792,198.69826370655582,0,0,0,0,0,0,0,0]
[]
[]
[]
[]
[]
[]
[]
[]
["B18104. SEX BY AGE BY COGNITIVE DIFFICULTY\n\n-Calculated"]
["Universe:  Civilian non-institutionalized population 5 years and over"]
["Data Set: 2008-2012 American Community Survey 5-Year Estimates"]
[]
[]
[null,null,"Albany",null,"Bartlett",null,"Brookfield",null,"Chatham",null,"Conway",null,"Eaton",null,"Effingham",null,"Freedom",null,"Hale's Location",null,"Hart's Location",null,"Jackson",null,"Madison",null,"Moultonborough",null,"Ossipee",null,"Sandwich",null,"Tamworth",null,"Tuftonboro",null,"Wakefield",null,"Wolfeboro"]
[null,null,"Estimate","Margin Of Error","Estimate","Margin Of Error","Estimate","Margin Of Error","Estimate","Margin Of Error","Estimate","Margin Of Error","Estimate","Margin Of Error","Estimate","Margin Of Error","Estimate","Margin Of Error","Estimate","Margin Of Error","Estimate","Margin Of Error","Estimate","Margin Of Error","Estimate","Margin Of Error","Estimate","Margin Of Error","Estimate","Margin Of Error","Estimate","Margin Of Error","Estimate","Margin Of Error","Estimate","Margin Of Error","Estimate","Margin Of Error","Estimate","Margin Of Error"]
[null,"Total:",829,167,2719,66,666,154,391,120,9381,165,392,77,1281,180,1137,153,110,29,33,21,939,206,2411,53,3950,53,4010,132,1204,194,2741,82,2388,289,4839,81,5989,117]
[null,"5 to 17  years:",106,55.605755097831377,431,143.69411957348845,123,57.688820407423826,69,41.629316592997299,1276,247.24279564832622,29,14.422205101855956,173,64.404968752418469,142,47.010637094172637,4,12.529964086141668,0,15.556349186104045,146,71.196910045310247,340,100.56838469419701,494,113.56936206565572,937,192.46298345396187,170,68,294,133.45411196362591,451,158.79546593023366,540,156.20499351813308,1108,215.20455385516357]
[null,"With cognitive difficulty",13,21.95449840010015,0,15.556349186104045,4,13.601470508735444,3,12.083045973594572,56,46.043457732885351,0,15.556349186104045,26,21.023796041628639,27,29.154759474226502,0,15.556349186104045,0,15.556349186104045,0,15.556349186104045,29,24.839484696748443,11,20.248456731316587,64,48.270073544588683,9,9.2195444572928871,0,15.556349186104045,20,24.166091947189145,14,29.681644159311659,66,54.405882034941776]
[null,"With no cognitive difficulty",93,51.739733281106119,431,143.69411957348845,119,57.688820407423826,66,41.629316592997299,1220,255.22539058643832,29,14.422205101855956,147,54.561891462814962,115,35.805027579936315,4,12.529964086141668,0,15.556349186104045,146,71.196910045310247,311,104.06248123122954,483,112.04463396343441,873,171.7032323516363,161,67.601775124622279,294,133.45411196362591,431,158.04113388608675,526,154.67385040788247,1042,223.1815404552984]
[null,"18 to 34  years:",128,49.678969393496885,315,119.20151005754919,123,54.644304369257,85,42.544094772365298,2030,315.31730050855123,55,27.784887978899608,246,71.449282711584999,124,50.606323715519977,2,11.401754250991379,9,7.810249675906654,82,48.010415536631214,239,91.923881554251182,388,109.12378292562992,650,164.01524319403975,99,39.408120990476064,451,120.25389806571761,271,97.8008179924892,728,189.992105099133,801,172.00290695217916]
[null,"With cognitive difficulty",16,22.825424421026653,0,15.556349186104045,5,15.556349186104045,26,31.256999216175569,96,84.38601779915912,5,13.601470508735444,8,7.0710678118654755,0,15.556349186104045,0,15.556349186104045,0,15.556349186104045,0,15.556349186104045,1,11.401754250991379,44,38.078865529319543,26,24.083189157584592,4,12.529964086141668,14,23.706539182259394,0,15.556349186104045,124,97.862147942909985,56,63.253458403473878]
[null,"With no cognitive difficulty",112,45.254833995939045,315,119.20151005754919,118,54.083269131959838,59,31.906112267087632,1934,310.22088904520922,50,24.413111231467404,238,71.449282711584999,124,50.606323715519977,2,11.401754250991379,9,7.810249675906654,82,48.010415536631214,238,91.547801721286575,344,105.19030373565806,624,163.37686494727458,95,38.832975677895199,437,121.03718436910205,271,97.8008179924892,604,147.78700890132393,745,167.70509831248424]
[null,"35 to 64  years:",457,82.807004534640669,1378,181.81584089402111,288,54.644304369257,174,53.814496188294839,4480,320.66337489647924,222,37.536648758246919,586,96.254870006665115,482,59.816385714952723,34,13.45362404707371,20,18.601075237738275,453,95.482982777037293,1365,120.24142381059865,2098,152.75143207184672,1892,186.80738743422327,594,83.630138108220294,1549,164.29546554911369,1119,145.45446022724775,2506,260.40929322894755,2401,251.46172671005024]
[null,"With cognitive difficulty",26,16.970562748477139,38,53.150729063673246,15,9.4339811320566032,16,24.596747752497688,199,112.50777750893491,6,5.3851648071345037,35,21.400934559032695,22,20.396078054371138,1,11.704699910719626,0,15.556349186104045,13,17.464249196572979,45,34.785054261852174,109,64.660652641308843,202,115.10430052782563,23,14.866068747318506,159,65.192024052026483,15,14.212670403551895,211,125.2836781069266,63,49.648766349225639]
[null,"With no cognitive difficulty",431,81.394102980498531,1340,178.66449003649271,273,54.644304369257,158,48.836461788299118,4281,334.5220471060166,216,36.124783736376884,551,94.339811320566042,460,59.816385714952723,33,13.45362404707371,20,18.601075237738275,440,95.482982777037293,1320,121.63058825805291,1989,163.40440630533806,1690,187.39530410338463,571,82.134036793524274,1390,178.21896644296868,1104,146.86388255796589,2295,241.22396232547047,2338,258.21115390315731]
[null,"65 to 74  years:",83,29.832867780352597,373,125.60652849274993,83,36.796738985948195,43,22.203603311174518,981,231.70023737579555,68,26.076809620810597,127,34.713109915419565,244,48.836461788299118,43,16.278820596099706,0,15.556349186104045,182,53.814496188294839,273,76.216796049164913,626,138.68309197591464,264,72.801098892805186,203,41.231056256176608,209,77.336925203941234,294,81.400245699874887,537,164.83931569865243,936,200.11246837716035]
[null,"With cognitive difficulty",3,12.083045973594572,23,37.643060449437421,2,11.401754250991379,3,11.704699910719626,92,108.50345616615168,0,15.556349186104045,9,18.601075237738275,13,12.041594578792296,1,11.180339887498949,0,15.556349186104045,0,15.556349186104045,11,18.601075237738275,11,19.416487838947599,0,15.556349186104045,5,6.4031242374328485,7,15.556349186104045,0,15.556349186104045,14,26.40075756488817,0,22.627416997969522]
[null,"With no cognitive difficulty",80,29.832867780352597,350,121.82774724995944,81,36.124783736376884,40,21.633307652783937,889,215.6687274502263,68,26.076809620810597,118,32.802438933713454,231,46.690470119715009,42,16.278820596099706,0,15.556349186104045,182,53.814496188294839,262,75.604232685743199,615,138.68309197591464,264,72.801098892805186,198,39.824615503479755,202,76.05918747922567,294,81.400245699874887,523,163.11039206623224,936,200.11246837716035]
[null,"75  years and Older:",55,28.231188426986208,222,93.23625904121208,49,31.240998703626616,20,15,614,137.56816492197603,18,11.180339887498949,149,98.290386101591849,145,41.725292090050132,27,10.63014581273465,4,11.704699910719626,76,31.240998703626616,194,75.006666370396701,344,112.44554237496477,267,80.709355095924295,138,35.468295701936398,238,77.466121627457255,253,100.65783625729296,528,155.66630977832037,743,163.46559270990332]
[null,"With cognitive difficulty",0,15.556349186104045,18,26.40075756488817,3,12.083045973594572,2,11.401754250991379,74,75.23961722390672,2,11.401754250991379,13,10.816653826391969,4,12.083045973594572,0,15.556349186104045,0,15.556349186104045,11,12.041594578792296,40,34.928498393145958,17,25.495097567963924,69,43.278170016764804,3,12.083045973594572,7,14.866068747318506,21,22.203603311174518,118,101.55294185792945,65,46.529560496527367]
[null,"With no cognitive difficulty",55,28.231188426986208,204,89.627004859026727,46,30.479501308256342,18,14.212670403551895,540,113.27841806805037,16,10.770329614269007,136,99.005050376230813,141,41.012193308819754,27,10.63014581273465,4,11.704699910719626,65,29.068883707497267,154,69.426219830839131,327,109.34349546269316,198,65.863495200300449,135,35.468295701936398,231,75.166481891864535,232,100.65783625729296,410,139.70325694127536,678,159.86244086714052]

{"sheet":"ACS_Table_B18105","index":36,"n_rows":153,"n_cols":40,"rows_kept":153,"cut":false,"hidden":true,"merged":[]}
["B18105. SEX BY AGE BY AMBULATORY DIFFICULTY\n\n"]
["Universe:  Civilian non-institutionalized population 5 years and over"]
["Data Set: 2018-2022 American Community Survey 5-Year Estimates"]
[]
[null,null,"Albany",null,"Bartlett",null,"Brookfield",null,"Chatham",null,"Conway",null,"Eaton",null,"Effingham",null,"Freedom",null,"Hale's Location",null,"Hart's Location",null,"Jackson",null,"Madison",null,"Moultonborough",null,"Ossipee",null,"Sandwich",null,"Tamworth",null,"Tuftonboro",null,"Wakefield",null,"Wolfeboro"]
[null,null,"Estimate","Margin Of Error","Estimate","Margin Of Error","Estimate","Margin Of Error","Estimate","Margin Of Error","Estimate","Margin Of Error","Estimate","Margin Of Error","Estimate","Margin Of Error","Estimate","Margin Of Error","Estimate","Margin Of Error","Estimate","Margin Of Error","Estimate","Margin Of Error","Estimate","Margin Of Error","Estimate","Margin Of Error","Estimate","Margin Of Error","Estimate","Margin Of Error","Estimate","Margin Of Error","Estimate","Margin Of Error","Estimate","Margin Of Error","Estimate","Margin Of Error"]
[null,"Total:",692,164,3160,68,517,136,404,103,9572,132,347,70,1660,271,1280,186,196,61,53,37,1068,176,2501,57,4811,84,4020,145,1779,245,2702,122,2425,61,4994,137,6357,37]
[null,"Male:",299,77,1692,202,269,80,213,55,4835,322,179,44,746,118,604,100,111,42,41,32,484,88,1209,148,2468,163,2186,188,984,184,1365,156,1237,100,2691,163,2927,248]
[null,"5 to 17  years:",40,22,83,67,24,17,43,40,646,237,11,11,116,54,99,65,0,12,0,12,20,23,331,176,349,121,153,85,67,33,273,109,122,49,415,146,451,159]
[null,"With ambulatory difficulty",0,12,0,12,0,12,0,12,42,60,0,12,0,12,0,12,0,12,0,12,0,12,0,12,0,12,0,12,0,12,0,12,0,12,0,17,0,17]
[null,"With no ambulatory difficulty",40,22,83,67,24,17,43,40,604,215,11,11,116,54,99,65,0,12,0,12,20,23,331,176,349,121,153,85,67,33,273,109,122,49,415,146,451,159]
[null,"18 to 34  years:",52,25,233,169,43,31,38,16,1067,254,33,25,171,74,57,38,28,33,2,5,22,24,143,58,495,134,417,151,83,37,296,117,157,60,404,150,294,143]
[null,"With ambulatory difficulty",0,12,0,12,0,12,3,5,0,17,0,12,0,12,0,12,0,12,0,12,0,12,0,12,0,12,0,12,0,12,0,12,0,12,0,17,0,17]
[null,"With no ambulatory difficulty",52,25,233,169,43,31,35,15,1067,254,33,25,171,74,57,38,28,33,2,5,22,24,143,58,495,134,417,151,83,37,296,117,157,60,404,150,294,143]
[null,"35 to 64  years:",132,48,674,174,115,41,83,27,2011,350,55,25,293,61,202,46,24,17,16,20,278,77,514,83,791,122,989,162,312,77,538,164,487,106,1251,218,1273,248]
[null,"With ambulatory difficulty",29,22,37,53,1,5,0,12,102,77,0,12,23,24,6,8,6,8,0,12,2,5,10,13,63,56,54,53,17,16,144,157,55,59,39,46,154,136]
[null,"With no ambulatory difficulty",103,43,637,170,114,41,83,27,1909,351,55,25,270,64,196,46,18,16,16,20,276,77,504,83,728,135,935,156,295,77,394,100,432,107,1212,218,1119,240]
[null,"65 to 74  years:",56,27,550,211,67,27,35,17,646,204,58,22,145,61,165,44,29,18,22,25,109,48,151,52,512,152,508,165,367,152,126,83,252,85,366,170,427,145]
[null,"With ambulatory difficulty",0,12,154,127,0,12,0,12,73,69,7,8,36,55,27,15,0,12,0,12,0,12,6,8,13,15,58,63,14,14,0,12,27,24,36,40,0,17]
[null,"With no ambulatory difficulty",56,27,396,182,67,27,35,17,573,181,51,21,109,31,138,42,29,18,22,25,109,48,145,51,499,154,450,154,353,152,126,83,225,78,330,167,427,145]
[null,"75  years and Older:",19,12,152,88,20,10,14,8,465,138,22,11,21,14,81,28,30,16,1,2,55,35,70,40,321,118,119,58,155,80,132,78,219,96,255,108,482,137]
[null,"With ambulatory difficulty",0,12,34,54,2,3,3,5,63,47,5,6,3,4,35,21,0,12,0,12,0,12,15,14,30,27,18,23,15,11,48,47,51,37,15,22,184,121]
[null,"With no ambulatory difficulty",19,12,118,82,18,10,11,8,402,131,17,10,18,14,46,21,30,16,1,2,55,35,55,39,291,120,101,55,140,80,84,64,168,100,240,106,298,131]
[null,"Female:",393,116,1468,180,248,65,191,59,4737,315,168,45,914,199,676,126,85,32,12,13,584,106,1292,141,2343,159,1834,158,795,128,1337,173,1188,106,2303,180,3430,250]
[null,"5 to 17  years:",28,18,44,63,8,8,39,33,528,136,11,9,148,71,63,53,2,3,0,12,113,45,215,75,266,118,154,121,76,39,261,115,151,56,255,129,366,114]
[null,"With ambulatory difficulty",0,12,0,12,0,12,0,12,0,17,0,12,0,12,0,12,0,12,0,12,0,12,0,12,0,12,6,11,0,12,0,12,0,12,0,17,0,17]
[null,"With no ambulatory difficulty",28,18,44,63,8,8,39,33,528,136,11,9,148,71,63,53,2,3,0,12,113,45,215,75,266,118,148,122,76,39,261,115,151,56,255,129,366,114]
[null,"18 to 34  years:",92,43,70,69,34,19,30,17,972,232,7,8,252,104,104,71,0,12,3,5,65,49,151,67,433,153,171,86,91,42,225,106,128,55,424,151,363,241]
[null,"With ambulatory difficulty",0,12,0,12,0,12,0,12,0,17,0,12,0,12,0,12,0,12,0,12,0,12,0,12,0,12,0,12,3,5,0,12,12,18,0,17,0,17]
[null,"With no ambulatory difficulty",92,43,70,69,34,19,30,17,972,232,7,8,252,104,104,71,0,12,3,5,65,49,151,67,433,153,171,86,88,42,225,106,116,55,424,151,363,241]
[null,"35 to 64  years:",228,100,788,170,106,32,84,28,1487,226,83,35,370,82,271,58,33,21,7,11,293,99,637,83,996,144,1049,158,359,75,535,160,434,102,1134,234,1448,260]
[null,"With ambulatory difficulty",44,57,125,129,6,6,0,12,113,99,2,3,32,20,33,48,5,8,0,12,33,40,17,20,27,28,70,63,6,7,14,19,0,12,227,238,59,93]
[null,"With no ambulatory difficulty",184,77,663,178,100,32,84,28,1374,226,81,35,338,80,238,47,28,19,7,11,260,95,620,80,969,150,979,153,353,74,521,159,434,102,907,212,1389,258]
[null,"65 to 74  years:",29,21,463,199,65,26,28,12,1113,239,47,25,128,37,154,32,21,11,1,3,56,29,155,54,414,126,296,84,185,54,198,85,270,74,285,129,556,190]
[null,"With ambulatory difficulty",6,10,23,27,4,5,0,12,165,134,1,3,12,11,3,4,2,3,0,12,8,12,8,12,9,10,84,55,6,6,12,20,18,18,0,17,50,42]
[null,"With no ambulatory difficulty",23,18,440,199,61,25,28,12,948,221,46,24,116,36,151,33,19,10,1,3,48,28,147,54,405,126,212,67,179,54,186,79,252,73,285,129,506,185]
[null,"75  years and Older:",16,10,103,79,35,26,10,7,637,180,20,12,16,9,84,42,29,17,1,3,57,33,134,69,234,73,164,99,84,34,118,72,205,128,205,105,697,166]
[null,"With ambulatory difficulty",4,5,14,22,2,3,4,4,203,138,2,4,0,12,21,28,1,2,0,12,0,12,80,62,35,28,27,35,26,17,21,19,51,39,40,46,191,135]
[null,"With no ambulatory difficulty",12,9,89,80,33,26,6,6,434,150,18,13,16,9,63,29,28,17,1,3,57,33,54,38,199,71,137,93,58,30,97,71,154,130,165,95,506,136]
[]
[]
[{"$f":"A1& \"-Calculated\"","v":"B18105. SEX BY AGE BY AMBULATORY DIFFICULTY\n\n-Calculated"}]
[{"$f":"A2","v":"Universe:  Civilian non-institutionalized population 5 years and over"}]
[{"$f":"A3","v":"Data Set: 2018-2022 American Community Survey 5-Year Estimates"}]
[]
[]
[null,null,"Albany",null,"Bartlett",null,"Brookfield",null,"Chatham",null,"Conway",null,"Eaton",null,"Effingham",null,"Freedom",null,"Hale's Location",null,"Hart's Location",null,"Jackson",null,"Madison",null,"Moultonborough",null,"Ossipee",null,"Sandwich",null,"Tamworth",null,"Tuftonboro",null,"Wakefield",null,"Wolfeboro"]
[null,null,"Estimate","Margin Of Error","Estimate","Margin Of Error","Estimate","Margin Of Error","Estimate","Margin Of Error","Estimate","Margin Of Error","Estimate","Margin Of Error","Estimate","Margin Of Error","Estimate","Margin Of Error","Estimate","Margin Of Error","Estimate","Margin Of Error","Estimate","Margin Of Error","Estimate","Margin Of Error","Estimate","Margin Of Error","Estimate","Margin Of Error","Estimate","Margin Of Error","Estimate","Margin Of Error","Estimate","Margin Of Error","Estimate","Margin Of Error","Estimate","Margin Of Error"]
[null,"Total:",823,166,2641,87,656,141,358,91,9484,147,365,77,1339,167,1142,156,98,28,39,25,966,209,2404,62,3938,46,3998,135,1344,195,2740,80,2247,260,4867,95,5968,97]
[null,"5 to 17  years:",114,55.470712993434653,402,169.80577139779436,135,62.625873247404705,45,22.671568097509269,1440,243.00205760445732,25,15,157,48.301138702933287,130,47.381430961928537,3,11.704699910719626,2,12.083045973594572,139,79.699435380685102,330,96.896852374058057,480,113.14592347937243,872,181.04419349981927,246,83.671978583035795,267,110.11357772772621,416,141.40014144264495,480,140.80127840328723,998,197.64867821465441]
[null,"With ambulatory difficulty",0,15.556349186104045,0,15.556349186104045,0,15.556349186104045,0,15.556349186104045,0,25.45584412271571,0,15.556349186104045,2,12.083045973594572,0,15.556349186104045,0,15.556349186104045,0,15.556349186104045,0,15.556349186104045,0,15.556349186104045,0,15.556349186104045,0,15.556349186104045,0,15.556349186104045,0,15.556349186104045,0,15.556349186104045,0,22.627416997969522,0,22.627416997969522]
[null,"With no ambulatory difficulty",114,55.470712993434653,402,169.80577139779436,135,62.625873247404705,45,22.671568097509269,1440,243.00205760445732,25,15,155,46.529560496527367,130,47.381430961928537,3,11.704699910719626,2,12.083045973594572,139,79.699435380685102,330,96.896852374058057,480,113.14592347937243,872,181.04419349981927,246,83.671978583035795,267,110.11357772772621,416,141.40014144264495,480,140.80127840328723,998,197.64867821465441]
[null,"18 to 34  years:",109,52.009614495783374,384,142.13022197970423,112,49.091750834534309,90,36.76955262170047,2079,295.02542263337239,40,20.808652046684813,273,70.035705179572517,133,48.104053883222775,0,15.556349186104045,10,8.4852813742385695,56,36.61966684720111,259,82.346827504160714,485,136.85759021698431,563,155.86211855354719,98,40,450,119.97082978791136,260,83.815273071201048,719,198.65799757371965,715,199.24858845171275]
[null,"With ambulatory difficulty",0,15.556349186104045,0,15.556349186104045,0,15.556349186104045,7,16.278820596099706,50,57.245087125446844,0,15.556349186104045,7,9.2195444572928871,0,15.556349186104045,0,15.556349186104045,0,15.556349186104045,0,15.556349186104045,25,28.231188426986208,0,15.556349186104045,30,35.735136770411273,4,12.529964086141668,0,15.556349186104045,0,15.556349186104045,16,28.844410203711913,30,41.231056256176608]
[null,"With no ambulatory difficulty",109,52.009614495783374,384,142.13022197970423,112,49.091750834534309,83,35.383612025908263,2029,303.11713907332921,40,20.808652046684813,266,69.31089380465383,133,48.104053883222775,0,15.556349186104045,10,8.4852813742385695,56,36.61966684720111,234,80.529497701152962,485,136.85759021698431,533,158.22136391777187,94,38.418745424597091,450,119.97082978791136,260,83.815273071201048,703,201.8142710513803,685,192.00260414900626]
[null,"35 to 64  years:",435,73.552702193733168,1285,167.60966559241146,268,48.836461788299118,145,35.468295701936398,4359,328.87687665751145,198,39.623225512317902,643,92.282175960474618,486,71.505244562899023,30,13.45362404707371,25,20.808652046684813,440,92.655275079188016,1437,111.28791488746656,1923,149.93665329064805,1941,197.31446981911895,644,81.394102980498531,1494,180.05554698481245,1076,135.14806694880988,2595,244.85914318236107,2406,221]
[null,"With ambulatory difficulty",44,21.931712199461309,98,70.384657419071104,19,12.206555615733702,9,16.278820596099706,320,149.5125412799876,3,4.2426406871192848,82,34.669871646719429,25,17.888543819998318,3,4.2426406871192848,0,15.556349186104045,9,16.278820596099706,93,47.507894080878813,147,75.927597090912869,295,122.0245876862528,19,13.416407864998739,232,112.25862995778988,22,17,294,127.13772060250254,67,56.797887284651708]
[null,"With no ambulatory difficulty",391,70.035705179572517,1187,167.10774967068403,249,48.836461788299118,136,37.013511046643494,4039,340.57745080965066,195,38.897300677553446,561,86.608313688698502,461,69.354163537598808,27,12.727922061357855,25,20.808652046684813,431,92.655275079188016,1344,114.86513831445988,1776,157.11460785044781,1646,187.97074240423694,625,80.721744282442259,1262,164.93938280471406,1054,133.68993978605869,2301,265.85146228674387,2339,229.4558781116753]
[null,"65 to 74  years:",100,34.713109915419565,404,135.07405376311175,96,36.400549446402593,51,22.472205054244231,959,209.74508337503408,80,25.238858928247925,131,34.713109915419565,211,42.5205832509386,35,13.45362404707371,0,15.556349186104045,203,63.245553203367585,216,69.814038702828242,641,126.66885963013956,330,94.047860156411858,155,37.20215047547655,202,94.667840368310934,248,77.420927403383644,618,179.61347388211163,1171,199.80990966416056]
[null,"With ambulatory difficulty",12,10,73,60.016664352494629,0,15.556349186104045,8,6.7082039324993694,122,93.295230317524812,1,11.401754250991379,22,17.088007490635061,27,17.804493814764857,2,11.401754250991379,0,15.556349186104045,19,16.401219466856727,32,25.612496949731394,22,23.345235059857504,42,27.784887978899608,8,7.810249675906654,23,24.186773244895647,46,31.048349392520048,0,22.627416997969522,138,91.214034007931033]
[null,"With no ambulatory difficulty",88,33.241540277189323,331,128.76334882255898,96,36.400549446402593,43,20.808652046684813,837,196.32880583347927,79,25.238858928247925,109,31.400636936215164,184,40.459856648287818,33,14.142135623730951,0,15.556349186104045,184,63.245553203367585,184,66.219332524573218,619,129.4488315899375,288,91.263355187062899,147,35.805027579936315,179,90.824005637276315,202,72.622310621461224,618,179.61347388211163,1033,208.58091954922435]
[null,"75  years and Older:",65,30.528675044947494,166,85.959292691366414,45,31.144823004794873,27,14.142135623730951,647,140.90067423543437,22,14.212670403551895,135,73.16419889536138,182,38.418745424597091,30,11.313708498984761,2,11.401754250991379,128,47.381430961928537,162,64.031242374328485,409,118.81077392223317,292,102.06860437960343,201,47.434164902525687,327,114.62983904725679,247,99.458534073250846,455,135.83077707206124,678,159.10059710761615]
[null,"With ambulatory difficulty",27,19.723082923316021,19,28.231188426986208,24,27.018512172212592,8,8.5440037453175304,224,113.5649593844862,6,6.7082039324993694,23,12.727922061357855,34,15,5,5,0,15.556349186104045,12,19.416487838947599,45,37.107950630558946,66,49.739320461783549,114,64.660652641308843,30,15.620499351813308,89,57.801384066473702,29,22.472205054244231,115,77.103826104804938,87,54.405882034941776]
[null,"With no ambulatory difficulty",38,20.248456731316587,147,82.764726786234249,21,15.620499351813308,19,11.313708498984761,423,111.80339887498948,16,10.63014581273465,112,70.384657419071104,148,37.802116342871599,25,10.63014581273465,2,11.401754250991379,116,43.931765272977593,117,50.606323715519977,343,106.30145812734649,178,80.05623023850174,171,45.803929962395145,238,104.89041900955492,218,97.744565066299216,340,120.10412149464314,591,159.86244086714052]
[]
[]
[]
[]
[]
[]
[]
[]
[]
[]
[]
[]
[]
[]
[]
[]
[]
[]
[]
[]
[]
[]
[]
[]
[]
[]
[]
[]
[]
[]
[]
[]
[]
[]
[]
["B18105. SEX BY AGE BY AMBULATORY DIFFICULTY\n\n-Calculated"]
["Universe:  Civilian non-institutionalized population 5 years and over"]
["Data Set: 2013-2017 American Community Survey 5-Year Estimates"]
[]
[]
[null,null,"Albany",null,"Bartlett",null,"Brookfield",null,"Chatham",null,"Conway",null,"Eaton",null,"Effingham",null,"Freedom",null,"Hale's Location",null,"Hart's Location",null,"Jackson",null,"Madison",null,"Moultonborough",null,"Ossipee",null,"Sandwich",null,"Tamworth",null,"Tuftonboro",null,"Wakefield",null,"Wolfeboro"]
[null,null,"Estimate","Margin Of Error","Estimate","Margin Of Error","Estimate","Margin Of Error","Estimate","Margin Of Error","Estimate","Margin Of Error","Estimate","Margin Of Error","Estimate","Margin Of Error","Estimate","Margin Of Error","Estimate","Margin Of Error","Estimate","Margin Of Error","Estimate","Margin Of Error","Estimate","Margin Of Error","Estimate","Margin Of Error","Estimate","Margin Of Error","Estimate","Margin Of Error","Estimate","Margin Of Error","Estimate","Margin Of Error","Estimate","Margin Of Error","Estimate","Margin Of Error"]
[null,"Total:",741,127,2682,79,836,253,322,100,9426,122,311,66,1367,165,1309,174,159,48,52,31,918,213,2362,68,3969,48,3969,139,1300,191,2822,98,2090,166,4682,129,5929,94]
[null,"5 to 17  years:",166,70.092795635500224,332,139.84276885130672,193,100.41912168506553,45,21.633307652783937,1674,269.48283804353849,20,14.212670403551895,219,53.413481444294568,196,66.037867924396224,0,15.556349186104045,2,12.083045973594572,78,47.801673610868477,291,91.678787077491378,529,121.62236636408618,449,142.61135999632006,160,68.249542123006222,401,192.28364465029262,260,71.589105316381762,453,164.01219466856725,597,179.40178371465541]
[null,"With ambulatory difficulty",0,15.556349186104045,0,15.556349186104045,0,15.556349186104045,0,15.556349186104045,28,37.589892258425003,0,15.556349186104045,0,15.556349186104045,0,15.556349186104045,0,15.556349186104045,0,15.556349186104045,0,15.556349186104045,0,15.556349186104045,0,15.556349186104045,0,15.556349186104045,0,15.556349186104045,0,15.556349186104045,0,15.556349186104045,0,22.627416997969522,0,22.627416997969522]
[null,"With no ambulatory difficulty",166,70.092795635500224,332,139.84276885130672,193,100.41912168506553,45,21.633307652783937,1646,264.4617174564213,20,14.212670403551895,219,53.413481444294568,196,66.037867924396224,0,15.556349186104045,2,12.083045973594572,78,47.801673610868477,291,91.678787077491378,529,121.62236636408618,449,142.61135999632006,160,68.249542123006222,401,192.28364465029262,260,71.589105316381762,453,164.01219466856725,597,179.40178371465541]
[null,"18 to 34  years:",81,40.36087214122113,464,155.70806016388491,83,39.597979746446661,56,37.576588456111871,1842,278.15283568570715,33,21.095023109728988,259,77.103826104804938,128,50.219518117958877,5,13.601470508735444,0,15.556349186104045,119,75.451971478550519,326,80.808415403347695,631,149.93665329064805,599,150.6286825275983,149,57.982756057296896,296,137.64446955835166,290,89.810912477270818,924,248.1954874690513,773,216.67025638051939]
[null,"With ambulatory difficulty",0,15.556349186104045,0,15.556349186104045,0,15.556349186104045,0,15.556349186104045,135,89.196412483911033,0,15.556349186104045,5,13.601470508735444,0,15.556349186104045,0,15.556349186104045,0,15.556349186104045,0,15.556349186104045,0,15.556349186104045,0,15.556349186104045,27,38.600518131237564,1,11.401754250991379,0,15.556349186104045,0,15.556349186104045,69,80.603970125546539,0,22.627416997969522]
[null,"With no ambulatory difficulty",81,40.36087214122113,464,155.70806016388491,83,39.597979746446661,56,37.576588456111871,1707,280.30340704315387,33,21.095023109728988,254,75.663729752107784,128,50.219518117958877,5,13.601470508735444,0,15.556349186104045,119,75.451971478550519,326,80.808415403347695,631,149.93665329064805,572,143.17821063276352,148,57.982756057296896,296,137.64446955835166,290,89.810912477270818,855,242.58812831628839,773,216.67025638051939]
[null,"35 to 64  years:",370,55.172456896534889,1259,159.22311389996113,406,107.07474025184464,155,33.241540277189323,4145,341.67235767618075,141,35.510561809129406,609,60.207972893961475,600,73.109506905736964,32,15.556349186104045,40,21.213203435596427,364,94.762861923857074,1189,114.21471008587291,1705,134.41726079637243,1884,218.3323155192561,553,87.692645073575008,1588,201.37527157027003,804,99.809819156233317,2278,193.04144632694815,2351,196.65706191235543]
[null,"With ambulatory difficulty",16,10.295630140987001,17,28.284271247461902,14,14.560219778561036,3,11.704699910719626,165,95.189285111298105,3,5,59,26.90724809414742,42,26.92582403567252,0,15.556349186104045,0,15.556349186104045,2,11.401754250991379,21,17.691806012954132,79,60.827625302982199,188,108.2450922675019,21,17.464249196572979,254,127.61269529321916,46,34.885527085024819,381,164.59647626847908,120,96.041657628343756]
[null,"With no ambulatory difficulty",354,55.154328932550705,1242,157.8131806916013,392,104.84750831564858,152,33.241540277189323,3980,349.12605173489987,138,34.985711369071801,550,58.258046654518033,558,71.449282711584999,32,15.556349186104045,40,21.213203435596427,362,94.762861923857074,1168,114.97825881443848,1626,138.03260484392808,1696,229.95651762887695,532,86.267027304758798,1334,210.64187617850351,758,94.493386011932074,1897,218.49713956937742,2231,203.147729497526]
[null,"65 to 74  years:",59,22.203603311174518,425,150.24313628249379,126,41.773197148410844,36,16.970562748477139,1119,189.55210365490541,85,26.248809496813376,169,42.426406871192853,200,38.897300677553446,69,21.400934559032695,6,6.7082039324993694,242,70.007142492748557,313,77.077882690172544,812,127.61269529321916,688,157.4102919125684,236,45.967379738244816,256,104.89041900955492,464,93.380940239430018,657,181.81309083781619,1222,170.18225524419401]
[null,"With ambulatory difficulty",4,12.083045973594572,64,58.051701094799967,10,11.180339887498949,5,12.529964086141668,168,94.021274188345274,13,13.341664064126334,22,12.806248474865697,15,10.816653826391969,0,15.556349186104045,2,11.401754250991379,0,15.556349186104045,33,29.529646120466801,79,55.946402922797461,110,66.030296076876709,18,17.804493814764857,92,72.069410986909006,19,13.892443989449804,80,82.006097334283623,125,94.826156729037578]
[null,"With no ambulatory difficulty",55,21.633307652783937,361,140.356688476182,116,39.623225512317902,31,16.278820596099706,951,187.41664813991312,72,23.345235059857504,147,40.311288741492746,185,36.069377593742864,69,21.400934559032695,4,12.529964086141668,242,70.007142492748557,280,73.593477971896391,733,115.36463929644994,578,152.20052562327109,218,44.553338819890925,164,85.492689745966004,445,91.285267157411553,577,170.59015211904818,1097,174.72549899771354]
[null,"75  years and Older:",65,25.80697580112788,202,107.00467279516349,28,21.931712199461309,30,20.615528128088304,646,129.07362240210043,32,15,111,37.12142238654117,185,52.32590180780452,53,16.970562748477139,4,4.2426406871192848,115,42.80186911806539,243,80,292,92.195444572928878,349,96.260064408871031,202,60.21627686929839,281,140.41723540933285,272,77.388629655783419,370,142.89856542317,986,230.20208513391012]
[null,"With ambulatory difficulty",35,21.023796041628639,27,44.384682042344295,1,11.401754250991379,6,5.6568542494923806,80,53.488316481265329,8,6.4031242374328485,23,12.727922061357855,40,25.553864678361276,4,5.8309518948453007,0,15.556349186104045,18,17.464249196572979,71,48.414873747640819,39,28.635642126552707,102,67.53517601961218,22,13.892443989449804,27,37.643060449437421,65,46.324939287601879,72,89.185200566013194,469,206.64946164943183]
[null,"With no ambulatory difficulty",30,17,175,100.7670581092849,27,21.931712199461309,24,20.808652046684813,566,117.64352935882194,24,13.038404810405298,88,35.846896657869841,145,44.598206241955516,49,16.278820596099706,4,4.2426406871192848,97,41.868842830916641,172,69.202601107183824,253,88.238313673823114,247,87.206651122491792,180,55.803225713214822,254,136.24243098242192,207,65.436992595931542,298,117.80067911519016,517,177.28226081590904]
[]
[]
[]
[]
[]
[]
[]
[]
["B18105. SEX BY AGE BY AMBULATORY DIFFICULTY\n\n-Calculated"]
["Universe:  Civilian non-institutionalized population 5 years and over"]
["Data Set: 2008-2012 American Community Survey 5-Year Estimates"]
[]
[]
[null,null,"Albany",null,"Bartlett",null,"Brookfield",null,"Chatham",null,"Conway",null,"Eaton",null,"Effingham",null,"Freedom",null,"Hale's Location",null,"Hart's Location",null,"Jackson",null,"Madison",null,"Moultonborough",null,"Ossipee",null,"Sandwich",null,"Tamworth",null,"Tuftonboro",null,"Wakefield",null,"Wolfeboro"]
[null,null,"Estimate","Margin Of Error","Estimate","Margin Of Error","Estimate","Margin Of Error","Estimate","Margin Of Error","Estimate","Margin Of Error","Estimate","Margin Of Error","Estimate","Margin Of Error","Estimate","Margin Of Error","Estimate","Margin Of Error","Estimate","Margin Of Error","Estimate","Margin Of Error","Estimate","Margin Of Error","Estimate","Margin Of Error","Estimate","Margin Of Error","Estimate","Margin Of Error","Estimate","Margin Of Error","Estimate","Margin Of Error","Estimate","Margin Of Error","Estimate","Margin Of Error"]
[null,"Total:",829,167,2719,66,666,154,391,120,9381,165,392,77,1281,180,1137,153,110,29,33,21,939,206,2411,53,3950,53,4010,132,1204,194,2741,82,2388,289,4839,81,5989,117]
[null,"5 to 17  years:",106,55.605755097831377,431,143.69411957348845,123,57.688820407423826,69,41.629316592997299,1276,247.24279564832622,29,14.422205101855956,173,64.404968752418469,142,47.010637094172637,4,12.529964086141668,0,15.556349186104045,146,71.196910045310247,340,100.56838469419701,494,113.56936206565572,937,192.46298345396187,170,68,294,133.45411196362591,451,158.79546593023366,540,156.20499351813308,1108,215.20455385516357]
[null,"With ambulatory difficulty",13,21.95449840010015,0,15.556349186104045,0,15.556349186104045,0,15.556349186104045,0,25.45584412271571,0,15.556349186104045,2,11.401754250991379,0,15.556349186104045,0,15.556349186104045,0,15.556349186104045,0,15.556349186104045,0,15.556349186104045,0,15.556349186104045,0,15.556349186104045,4,12.529964086141668,0,15.556349186104045,0,15.556349186104045,0,22.627416997969522,0,22.627416997969522]
[null,"With no ambulatory difficulty",93,51.739733281106119,431,143.69411957348845,123,57.688820407423826,69,41.629316592997299,1276,247.24279564832622,29,14.422205101855956,171,64.404968752418469,142,47.010637094172637,4,12.529964086141668,0,15.556349186104045,146,71.196910045310247,340,100.56838469419701,494,113.56936206565572,937,192.46298345396187,166,68.47627326307996,294,133.45411196362591,451,158.79546593023366,540,156.20499351813308,1108,215.20455385516357]
[null,"18 to 34  years:",128,49.678969393496885,315,119.20151005754919,123,54.644304369257,85,42.544094772365298,2030,315.31730050855123,55,27.784887978899608,246,71.449282711584999,124,50.606323715519977,2,11.401754250991379,9,7.810249675906654,82,48.010415536631214,239,91.923881554251182,388,109.12378292562992,650,164.01524319403975,99,39.408120990476064,451,120.25389806571761,271,97.8008179924892,728,189.992105099133,801,172.00290695217916]
[null,"With ambulatory difficulty",0,15.556349186104045,0,15.556349186104045,0,15.556349186104045,25,32.893768406797051,0,25.45584412271571,0,15.556349186104045,7,6.4031242374328485,0,15.556349186104045,0,15.556349186104045,0,15.556349186104045,0,15.556349186104045,27,32.893768406797051,0,15.556349186104045,8,18.601075237738275,4,12.529964086141668,0,15.556349186104045,0,15.556349186104045,13,24.839484696748443,94,82.09750300709517]
[null,"With no ambulatory difficulty",128,49.678969393496885,315,119.20151005754919,123,54.644304369257,60,31.906112267087632,2030,315.31730050855123,55,27.784887978899608,239,71.449282711584999,124,50.606323715519977,2,11.401754250991379,9,7.810249675906654,82,48.010415536631214,212,83.671978583035795,388,109.12378292562992,642,162.48384535085327,95,38.832975677895199,451,120.25389806571761,271,97.8008179924892,715,188.32153355365392,707,166.1836333698358]
[null,"35 to 64  years:",457,82.807004534640669,1378,181.81584089402111,288,54.644304369257,174,53.814496188294839,4480,320.66337489647924,222,37.536648758246919,586,96.254870006665115,482,59.816385714952723,34,13.45362404707371,20,18.601075237738275,453,95.482982777037293,1365,120.24142381059865,2098,152.75143207184672,1892,186.80738743422327,594,83.630138108220294,1549,164.29546554911369,1119,145.45446022724775,2506,260.40929322894755,2401,251.46172671005024]
[null,"With ambulatory difficulty",63,32.557641192199412,146,103.58088626768937,20,11.401754250991379,17,26.40075756488817,382,173.216627377397,7,6.7082039324993694,70,29.832867780352597,21,16.15549442140351,3,5,0,15.556349186104045,17,22.627416997969522,92,46.669047558312137,175,83.600239234107462,288,123.45849504995596,18,14.317821063276353,173,98.412397592986224,50,37.336309405188942,150,75.663729752107784,74,59.076221950967721]
[null,"With no ambulatory difficulty",394,74.276510418839678,1232,165.61400906928134,268,51.86520991955976,157,49.51767361255979,4098,328.03201063310877,215,36.124783736376884,516,93.813645062965122,461,57.489129407219238,31,12.206555615733702,20,18.601075237738275,436,94.794514609232536,1273,123.84264209067892,1923,167.47537132366656,1604,186.67619023324855,576,82.134036793524274,1376,171.20747647226156,1069,142.3411395205195,2356,256.81121470839236,2327,260.52639021795852]
[null,"65 to 74  years:",83,29.832867780352597,373,125.60652849274993,83,36.796738985948195,43,22.203603311174518,981,231.70023737579555,68,26.076809620810597,127,34.713109915419565,244,48.836461788299118,43,16.278820596099706,0,15.556349186104045,182,53.814496188294839,273,76.216796049164913,626,138.68309197591464,264,72.801098892805186,203,41.231056256176608,209,77.336925203941234,294,81.400245699874887,537,164.83931569865243,936,200.11246837716035]
[null,"With ambulatory difficulty",8,7.810249675906654,45,51.195702944680818,5,5.8309518948453007,4,4.4721359549995796,138,106.02358228243375,1,11.401754250991379,18,17,27,15.556349186104045,2,11.401754250991379,0,15.556349186104045,19,17.804493814764857,52,39.11521443121589,22,21.931712199461309,45,36.055512754639892,5,5.6568542494923806,46,33.421549934136806,32,32.695565448543633,0,22.627416997969522,141,95.801878895979911]
[null,"With no ambulatory difficulty",75,29.068883707497267,328,129.5569372901351,78,36.124783736376884,39,20.808652046684813,843,218.08255317654368,67,26.076809620810597,109,32.015621187164243,217,48.166378315169183,41,16.278820596099706,0,15.556349186104045,163,49.819674828324601,221,68.8839603971781,604,138.05795884337854,219,74.4043009509531,198,40.607881008493905,163,68.01470429252781,262,78.87331614684399,537,164.83931569865243,795,197.31446981911895]
[null,"75  years and Older:",55,28.231188426986208,222,93.23625904121208,49,31.240998703626616,20,15,614,137.56816492197603,18,11.180339887498949,149,98.290386101591849,145,41.725292090050132,27,10.63014581273465,4,11.704699910719626,76,31.240998703626616,194,75.006666370396701,344,112.44554237496477,267,80.709355095924295,138,35.468295701936398,238,77.466121627457255,253,100.65783625729296,528,155.66630977832037,743,163.46559270990332]
[null,"With ambulatory difficulty",21,18.681541692269406,18,26.40075756488817,25,24.758836806279895,4,4.2426406871192848,191,112.61438629233834,6,5,24,18.973665961010276,36,16.278820596099706,5,5,0,15.556349186104045,2,11.401754250991379,63,47.074409183759279,57,49.040799340956916,94,54.378304497290095,28,15.652475842498529,67,48.166378315169183,50,36.359317925395686,129,69.634761434214738,101,55.865910893853687]
[null,"With no ambulatory difficulty",34,22.360679774997898,204,89.627004859026727,24,16.643316977093239,16,13.601470508735444,423,107.48953437428223,12,10.440306508910551,125,97.621718894926246,109,37.483329627982627,22,10,4,11.704699910719626,74,30.479501308256342,131,55.901699437494742,287,103.32473082471591,173,58.258046654518033,110,31.400636936215164,171,66.400301204136113,203,99.040395798886024,399,145.34441853748632,642,162.85576440519384]

{"sheet":"ACS_Table_B18106","index":37,"n_rows":153,"n_cols":40,"rows_kept":153,"cut":false,"hidden":true,"merged":[]}
["B18106. SEX BY AGE BY SELF-CARE DIFFICULTY\n\n\n\n"]
["Universe:  Civilian non-institutionalized population 5 years and over"]
["Data Set: 2018-2022 American Community Survey 5-Year Estimates"]
[]
[null,null,"Albany",null,"Bartlett",null,"Brookfield",null,"Chatham",null,"Conway",null,"Eaton",null,"Effingham",null,"Freedom",null,"Hale's Location",null,"Hart's Location",null,"Jackson",null,"Madison",null,"Moultonborough",null,"Ossipee",null,"Sandwich",null,"Tamworth",null,"Tuftonboro",null,"Wakefield",null,"Wolfeboro"]
[null,null,"Estimate","Margin Of Error","Estimate","Margin Of Error","Estimate","Margin Of Error","Estimate","Margin Of Error","Estimate","Margin Of Error","Estimate","Margin Of Error","Estimate","Margin Of Error","Estimate","Margin Of Error","Estimate","Margin Of Error","Estimate","Margin Of Error","Estimate","Margin Of Error","Estimate","Margin Of Error","Estimate","Margin Of Error","Estimate","Margin Of Error","Estimate","Margin Of Error","Estimate","Margin Of Error","Estimate","Margin Of Error","Estimate","Margin Of Error","Estimate","Margin Of Error"]
[null,"Total:",692,164,3160,68,517,136,404,103,9572,132,347,70,1660,271,1280,186,196,61,53,37,1068,176,2501,57,4811,84,4020,145,1779,245,2702,122,2425,61,4994,137,6357,37]
[null,"Male:",299,77,1692,202,269,80,213,55,4835,322,179,44,746,118,604,100,111,42,41,32,484,88,1209,148,2468,163,2186,188,984,184,1365,156,1237,100,2691,163,2927,248]
[null,"5 to 17  years:",40,22,83,67,24,17,43,40,646,237,11,11,116,54,99,65,0,12,0,12,20,23,331,176,349,121,153,85,67,33,273,109,122,49,415,146,451,159]
[null,"With self care difficulty",0,12,0,12,0,12,0,12,42,60,0,12,0,12,0,12,0,12,0,12,0,12,0,12,0,12,0,12,0,12,0,12,0,12,0,17,13,17]
[null,"With no self care difficulty",40,22,83,67,24,17,43,40,604,215,11,11,116,54,99,65,0,12,0,12,20,23,331,176,349,121,153,85,67,33,273,109,122,49,415,146,438,161]
[null,"18 to 34  years:",52,25,233,169,43,31,38,16,1067,254,33,25,171,74,57,38,28,33,2,5,22,24,143,58,495,134,417,151,83,37,296,117,157,60,404,150,294,143]
[null,"With self care difficulty",0,12,0,12,0,12,3,5,0,17,0,12,0,12,0,12,0,12,0,12,0,12,4,8,0,12,0,12,0,12,0,12,0,12,0,17,18,49]
[null,"With no self care difficulty",52,25,233,169,43,31,35,15,1067,254,33,25,171,74,57,38,28,33,2,5,22,24,139,57,495,134,417,151,83,37,296,117,157,60,404,150,276,137]
[null,"35 to 64  years:",132,48,674,174,115,41,83,27,2011,350,55,25,293,61,202,46,24,17,16,20,278,77,514,83,791,122,989,162,312,77,538,164,487,106,1251,218,1273,248]
[null,"With self care difficulty",10,16,0,12,0,12,0,12,0,17,0,12,21,21,10,12,6,8,0,12,0,12,2,3,0,12,0,12,0,12,3,6,0,12,39,46,154,136]
[null,"With no self care difficulty",122,45,674,174,115,41,83,27,2011,350,55,25,272,62,192,42,18,16,16,20,278,77,512,83,791,122,989,162,312,77,535,163,487,106,1212,218,1119,240]
[null,"65 to 74  years:",56,27,550,211,67,27,35,17,646,204,58,22,145,61,165,44,29,18,22,25,109,48,151,52,512,152,508,165,367,152,126,83,252,85,366,170,427,145]
[null,"With self care difficulty",0,12,61,75,0,12,0,12,15,24,0,12,27,44,2,5,0,12,0,12,0,12,0,12,0,12,13,19,0,12,0,12,0,12,19,30,0,17]
[null,"With no self care difficulty",56,27,489,209,67,27,35,17,631,201,58,22,118,34,163,44,29,18,22,25,109,48,151,52,512,152,495,165,367,152,126,83,252,85,347,168,427,145]
[null,"75  years and Older:",19,12,152,88,20,10,14,8,465,138,22,11,21,14,81,28,30,16,1,2,55,35,70,40,321,118,119,58,155,80,132,78,219,96,255,108,482,137]
[null,"With self care difficulty",0,12,0,12,0,12,0,12,6,9,1,2,0,12,0,12,0,12,0,12,0,12,0,12,25,25,11,18,9,9,30,42,11,12,0,17,47,52]
[null,"With no self care difficulty",19,12,152,88,20,10,14,8,459,138,21,11,21,14,81,28,30,16,1,2,55,35,70,40,296,120,108,56,146,79,102,66,208,95,255,108,435,139]
[null,"Female:",393,116,1468,180,248,65,191,59,4737,315,168,45,914,199,676,126,85,32,12,13,584,106,1292,141,2343,159,1834,158,795,128,1337,173,1188,106,2303,180,3430,250]
[null,"5 to 17  years:",28,18,44,63,8,8,39,33,528,136,11,9,148,71,63,53,2,3,0,12,113,45,215,75,266,118,154,121,76,39,261,115,151,56,255,129,366,114]
[null,"With self care difficulty",0,12,0,12,0,12,0,12,0,17,2,3,0,12,0,12,0,12,0,12,0,12,0,12,0,12,0,12,0,12,0,12,0,12,0,17,0,17]
[null,"With no self care difficulty",28,18,44,63,8,8,39,33,528,136,9,8,148,71,63,53,2,3,0,12,113,45,215,75,266,118,154,121,76,39,261,115,151,56,255,129,366,114]
[null,"18 to 34  years:",92,43,70,69,34,19,30,17,972,232,7,8,252,104,104,71,0,12,3,5,65,49,151,67,433,153,171,86,91,42,225,106,128,55,424,151,363,241]
[null,"With self care difficulty",0,12,0,12,0,12,0,12,0,17,0,12,5,7,0,12,0,12,0,12,0,12,0,12,0,12,0,12,0,12,0,12,12,18,23,43,0,17]
[null,"With no self care difficulty",92,43,70,69,34,19,30,17,972,232,7,8,247,105,104,71,0,12,3,5,65,49,151,67,433,153,171,86,91,42,225,106,116,55,401,146,363,241]
[null,"35 to 64  years:",228,100,788,170,106,32,84,28,1487,226,83,35,370,82,271,58,33,21,7,11,293,99,637,83,996,144,1049,158,359,75,535,160,434,102,1134,234,1448,260]
[null,"With self care difficulty",44,57,0,12,0,12,0,12,8,17,0,12,4,6,0,12,5,8,0,12,0,12,0,12,0,12,17,27,3,6,0,12,0,12,14,22,59,93]
[null,"With no self care difficulty",184,77,788,170,106,32,84,28,1479,224,83,35,366,81,271,58,28,19,7,11,293,99,637,83,996,144,1032,153,356,74,535,160,434,102,1120,232,1389,258]
[null,"65 to 74  years:",29,21,463,199,65,26,28,12,1113,239,47,25,128,37,154,32,21,11,1,3,56,29,155,54,414,126,296,84,185,54,198,85,270,74,285,129,556,190]
[null,"With self care difficulty",1,2,36,59,4,5,0,12,0,17,1,3,0,12,0,12,0,12,0,12,0,12,8,12,5,8,12,16,3,5,0,12,10,14,0,17,0,17]
[null,"With no self care difficulty",28,21,427,203,61,25,28,12,1113,239,46,24,128,37,154,32,21,11,1,3,56,29,147,54,409,125,284,83,182,54,198,85,260,74,285,129,556,190]
[null,"75  years and Older:",16,10,103,79,35,26,10,7,637,180,20,12,16,9,84,42,29,17,1,3,57,33,134,69,234,73,164,99,84,34,118,72,205,128,205,105,697,166]
[null,"With self care difficulty",0,12,0,12,0,12,0,12,10,33,2,4,0,12,25,29,0,12,0,12,0,12,30,32,15,19,18,30,17,14,6,9,28,34,26,41,118,90]
[null,"With no self care difficulty",16,10,103,79,35,26,10,7,627,180,18,11,16,9,59,27,29,17,1,3,57,33,104,63,219,72,146,95,67,31,112,72,177,129,179,96,579,141]
[]
[]
[{"$f":"A1& \"-Calculated\"","v":"B18106. SEX BY AGE BY SELF-CARE DIFFICULTY\n\n\n\n-Calculated"}]
[{"$f":"A2","v":"Universe:  Civilian non-institutionalized population 5 years and over"}]
[{"$f":"A3","v":"Data Set: 2018-2022 American Community Survey 5-Year Estimates"}]
[]
[]
[null,null,"Albany",null,"Bartlett",null,"Brookfield",null,"Chatham",null,"Conway",null,"Eaton",null,"Effingham",null,"Freedom",null,"Hale's Location",null,"Hart's Location",null,"Jackson",null,"Madison",null,"Moultonborough",null,"Ossipee",null,"Sandwich",null,"Tamworth",null,"Tuftonboro",null,"Wakefield",null,"Wolfeboro"]
[null,null,"Estimate","Margin Of Error","Estimate","Margin Of Error","Estimate","Margin Of Error","Estimate","Margin Of Error","Estimate","Margin Of Error","Estimate","Margin Of Error","Estimate","Margin Of Error","Estimate","Margin Of Error","Estimate","Margin Of Error","Estimate","Margin Of Error","Estimate","Margin Of Error","Estimate","Margin Of Error","Estimate","Margin Of Error","Estimate","Margin Of Error","Estimate","Margin Of Error","Estimate","Margin Of Error","Estimate","Margin Of Error","Estimate","Margin Of Error","Estimate","Margin Of Error"]
[null,"Total:",{"$f":"C7","v":692},164,3160,68,517,136,404,103,9572,132,347,70,1660,271,1280,186,196,61,53,37,1068,176,{"$f":"Y7","v":2501},57,4811,84,4020,145,1779,245,2702,122,2425,61,4994,137,6357,37]
[null,"5 to 17  years:",{"$f":"C25+C9","v":68},{"$f":"SQRT((D25^2)+(D9^2))","v":28.42534080710379},{"$f":"E25+E9","v":127},{"$f":"SQRT((F25^2)+(F9^2))","v":91.967385523347346},{"$f":"G25+G9","v":32},{"$f":"SQRT((H25^2)+(H9^2))","v":18.788294228055936},{"$f":"I25+I9","v":82},{"$f":"SQRT((J25^2)+(J9^2))","v":51.855568649856693},{"$f":"K25+K9","v":1174},{"$f":"SQRT((L25^2)+(L9^2))","v":273.24897072084281},{"$f":"M25+M9","v":22},{"$f":"SQRT((N25^2)+(N9^2))","v":14.212670403551895},{"$f":"O25+O9","v":264},{"$f":"SQRT((P25^2)+(P9^2))","v":89.202017914394744},{"$f":"Q25+Q9","v":162},{"$f":"SQRT((R25^2)+(R9^2))","v":83.868945385047027},{"$f":"S25+S9","v":2},{"$f":"SQRT((T25^2)+(T9^2))","v":12.369316876852981},{"$f":"U25+U9","v":0},{"$f":"SQRT((V25^2)+(V9^2))","v":16.970562748477139},{"$f":"W25+W9","v":133},{"$f":"SQRT((X25^2)+(X9^2))","v":50.537115073973112},{"$f":"Y25+Y9","v":546},{"$f":"SQRT((Z25^2)+(Z9^2))","v":191.31387822110554},{"$f":"AA25+AA9","v":615},{"$f":"SQRT((AB25^2)+(AB9^2))","v":169.01183390520322},{"$f":"AC25+AC9","v":307},{"$f":"SQRT((AD25^2)+(AD9^2))","v":147.87156589419075},{"$f":"AE25+AE9","v":143},{"$f":"SQRT((AF25^2)+(AF9^2))","v":51.088159097779204},{"$f":"AG25+AG9","v":534},{"$f":"SQRT((AH25^2)+(AH9^2))","v":158.44872987815333},{"$f":"AI25+AI9","v":273},{"$f":"SQRT((AJ25^2)+(AJ9^2))","v":74.411020689142546},{"$f":"AK25+AK9","v":670},{"$f":"SQRT((AL25^2)+(AL9^2))","v":194.82556300444764},{"$f":"AM25+AM9","v":817},{"$f":"SQRT((AN25^2)+(AN9^2))","v":195.64508682816444}]
[null,"With self care difficulty",0,16.970562748477139,0,16.970562748477139,0,16.970562748477139,0,16.970562748477139,42,62.361847310675458,2,12.369316876852981,0,16.970562748477139,0,16.970562748477139,0,16.970562748477139,0,16.970562748477139,0,16.970562748477139,0,16.970562748477139,0,16.970562748477139,0,16.970562748477139,0,16.970562748477139,0,16.970562748477139,0,16.970562748477139,0,24.041630560342615,13,24.041630560342615]
[null,"With no self care difficulty",68,28.42534080710379,127,91.967385523347346,32,18.788294228055936,82,51.855568649856693,1132,254.40322325002094,20,13.601470508735444,264,89.202017914394744,162,83.868945385047027,2,12.369316876852981,0,16.970562748477139,133,50.537115073973112,546,191.31387822110554,615,169.01183390520322,307,147.87156589419075,143,51.088159097779204,534,158.44872987815333,273,74.411020689142546,670,194.82556300444764,804,197.27392123643713]
[null,"18 to 34  years:",144,49.739320461783549,303,182.54314558481784,77,36.359317925395686,68,23.345235059857504,2039,344.00581390435832,40,26.248809496813376,423,127.6401190848708,161,80.529497701152962,28,35.114099732158877,5,7.0710678118654755,87,54.561891462814962,294,88.617154095581284,928,203.38387350033435,588,173.77284022539311,174,55.97320787662612,521,157.87653403846943,285,81.394102980498531,828,212.84031572989173,657,280.23204670415549]
[null,"With self care difficulty",0,16.970562748477139,0,16.970562748477139,0,16.970562748477139,3,13,0,24.041630560342615,0,16.970562748477139,5,13.892443989449804,0,16.970562748477139,0,16.970562748477139,0,16.970562748477139,0,16.970562748477139,4,14.422205101855956,0,16.970562748477139,0,16.970562748477139,0,16.970562748477139,0,16.970562748477139,12,21.633307652783937,23,46.238512086787566,18,51.86520991955976]
[null,"With no self care difficulty",144,49.739320461783549,303,182.54314558481784,77,36.359317925395686,65,22.671568097509269,2039,344.00581390435832,40,26.248809496813376,418,128.4562182223967,161,80.529497701152962,28,35.114099732158877,5,7.0710678118654755,87,54.561891462814962,290,87.965902484996988,928,203.38387350033435,588,173.77284022539311,174,55.97320787662612,521,157.87653403846943,273,81.394102980498531,805,209.32271735289507,639,277.21832551258223]
[null,"35 to 64  years:",360,110.92339699089638,1462,243.26117651610582,221,52.009614495783374,167,38.897300677553446,3498,416.62453120285659,138,43.011626335213137,663,102.20078277586722,473,74.027022093286988,57,27.018512172212592,23,22.825424421026653,571,125.41929676090518,1151,117.37972567696688,1787,188.73261509341728,2038,226.29184695874486,671,107.48953437428223,1073,229.12005586591496,921,147.10540438746634,2385,319.81244503614926,2721,359.31045072471801]
[null,"With self care difficulty",54,59.203040462462738,0,16.970562748477139,0,16.970562748477139,0,16.970562748477139,8,24.041630560342615,0,16.970562748477139,25,21.840329667841555,10,16.970562748477139,11,11.313708498984761,0,16.970562748477139,0,16.970562748477139,2,12.369316876852981,0,16.970562748477139,17,29.546573405388315,3,13.416407864998739,3,13.416407864998739,0,16.970562748477139,53,50.990195135927848,213,164.7573974060042]
[null,"With no self care difficulty",306,89.185200566013194,1462,243.26117651610582,221,52.009614495783374,167,38.897300677553446,3490,415.54301823036326,138,43.011626335213137,638,102.00490184299969,463,71.61005515987263,46,24.839484696748443,23,22.825424421026653,571,125.41929676090518,1149,117.37972567696688,1787,188.73261509341728,2021,222.82953125651906,668,106.7941945987702,1070,228.40534144367115,921,147.10540438746634,2332,318.35200643313055,2508,352.36912464062453]
[null,"65 to 74  years:",85,34.205262752974143,1013,290.03792855418067,132,37.483329627982627,63,20.808652046684813,1759,314.22444207922462,105,33.301651610693426,273,71.344235926947874,319,54.405882034941776,50,21.095023109728988,23,25.179356624028344,165,56.080299571239813,306,74.966659255965254,926,197.43353311937665,804,185.15128949051368,552,161.3071604114337,324,118.80235687897779,522,112.69871339105873,651,213.40337391897066,983,239.00836805434241]
[null,"With self care difficulty",1,12.165525060596439,97,95.425363504678359,4,13,0,16.970562748477139,15,29.410882339705484,1,12.369316876852981,27,45.607017003965517,2,13,0,16.970562748477139,0,16.970562748477139,0,16.970562748477139,8,16.970562748477139,5,14.422205101855956,25,24.839484696748443,3,13,0,16.970562748477139,10,18.439088914585774,19,34.481879299133332,0,24.041630560342615]
[null,"With no self care difficulty",84,34.205262752974143,916,291.35888522576414,128,36.796738985948195,63,20.808652046684813,1744,312.28512612674973,104,32.557641192199412,246,50.24937810560445,317,54.405882034941776,50,21.095023109728988,23,25.179356624028344,165,56.080299571239813,298,74.966659255965254,921,196.79684956827941,779,184.69975636150687,549,161.3071604114337,324,118.80235687897779,512,112.69871339105873,632,211.81359729724625,983,239.00836805434241]
[null,"75  years and Older:",35,15.620499351813308,255,118.25819210524064,55,27.856776554368238,24,10.63014581273465,1102,226.8126980572296,42,16.278820596099706,37,16.643316977093239,165,50.47771785649585,59,23.345235059857504,2,3.6055512754639891,112,48.104053883222775,204,79.755877526361658,555,138.75518008348374,283,114.73883387938018,239,86.92525524840292,250,106.15083607772479,424,160,460,150.6286825275983,1179,215.23243250030885]
[null,"With self care difficulty",0,16.970562748477139,0,16.970562748477139,0,16.970562748477139,0,16.970562748477139,16,34.205262752974143,3,4.4721359549995796,0,16.970562748477139,25,31.384709652950431,0,16.970562748477139,0,16.970562748477139,0,16.970562748477139,30,34.176014981270121,40,31.400636936215164,29,34.985711369071801,26,16.643316977093239,36,42.953463189829058,39,36.055512754639892,26,44.384682042344295,165,103.94229168149026]
[null,"With no self care difficulty",35,15.620499351813308,255,118.25819210524064,55,27.856776554368238,24,10.63014581273465,1086,226.8126980572296,39,15.556349186104045,37,16.643316977093239,140,38.897300677553446,59,23.345235059857504,2,3.6055512754639891,112,48.104053883222775,174,74.625732827222535,515,139.9428454762872,254,110.27692415006868,213,84.864598037108507,214,97.672923576598237,385,160.20611723651504,434,144.49913494550754,1014,197.99494943053472]
[]
[]
[]
[]
[]
[]
[]
[]
[]
[]
[]
[]
[]
[]
[]
[]
[]
[]
[]
[]
[]
[]
[]
[]
[]
[]
[]
[]
[]
[]
[]
[]
[]
[]
[]
["B18106. SEX BY AGE BY SELF-CARE DIFFICULTY\n\n\n\n-Calculated"]
["Universe:  Civilian non-institutionalized population 5 years and over"]
["Data Set: 2013-2017 American Community Survey 5-Year Estimates"]
[]
[]
[null,null,"Albany",null,"Bartlett",null,"Brookfield",null,"Chatham",null,"Conway",null,"Eaton",null,"Effingham",null,"Freedom",null,"Hale's Location",null,"Hart's Location",null,"Jackson",null,"Madison",null,"Moultonborough",null,"Ossipee",null,"Sandwich",null,"Tamworth",null,"Tuftonboro",null,"Wakefield",null,"Wolfeboro"]
[null,null,"Estimate","Margin Of Error","Estimate","Margin Of Error","Estimate","Margin Of Error","Estimate","Margin Of Error","Estimate","Margin Of Error","Estimate","Margin Of Error","Estimate","Margin Of Error","Estimate","Margin Of Error","Estimate","Margin Of Error","Estimate","Margin Of Error","Estimate","Margin Of Error","Estimate","Margin Of Error","Estimate","Margin Of Error","Estimate","Margin Of Error","Estimate","Margin Of Error","Estimate","Margin Of Error","Estimate","Margin Of Error","Estimate","Margin Of Error","Estimate","Margin Of Error"]
[null,"Total:",741,127,2682,79,836,253,322,100,9426,122,311,66,1367,165,1309,174,159,48,52,31,918,213,2362,68,3969,48,3969,139,1300,191,2822,98,2090,166,4682,129,5929,94]
[null,"5 to 17  years:",166,70.092795635500224,332,139.84276885130672,193,100.41912168506553,45,21.633307652783937,1674,269.48283804353849,20,14.212670403551895,219,53.413481444294568,196,66.037867924396224,0,15.556349186104045,2,12.083045973594572,78,47.801673610868477,291,91.678787077491378,529,121.62236636408618,449,142.61135999632006,160,68.249542123006222,401,192.28364465029262,260,71.589105316381762,453,164.01219466856725,597,179.40178371465541]
[null,"With self care difficulty",0,15.556349186104045,0,15.556349186104045,0,15.556349186104045,0,15.556349186104045,10,23.430749027719962,0,15.556349186104045,4,12.529964086141668,11,10,0,15.556349186104045,0,15.556349186104045,0,15.556349186104045,8,16.278820596099706,0,15.556349186104045,0,15.556349186104045,0,15.556349186104045,0,15.556349186104045,0,15.556349186104045,25,32.249030993194197,0,22.627416997969522]
[null,"With no self care difficulty",166,70.092795635500224,332,139.84276885130672,193,100.41912168506553,45,21.633307652783937,1664,270.20732780589054,20,14.212670403551895,215,52.630789467763066,185,64.660652641308843,0,15.556349186104045,2,12.083045973594572,78,47.801673610868477,283,90.785461391128038,529,121.62236636408618,449,142.61135999632006,160,68.249542123006222,401,192.28364465029262,260,71.589105316381762,428,158.11388300841898,597,179.40178371465541]
[null,"18 to 34  years:",81,40.36087214122113,464,155.70806016388491,83,39.597979746446661,56,37.576588456111871,1842,278.15283568570715,33,21.095023109728988,259,77.103826104804938,128,50.219518117958877,5,13.601470508735444,0,15.556349186104045,119,75.451971478550519,326,80.808415403347695,631,149.93665329064805,599,150.6286825275983,149,57.982756057296896,296,137.64446955835166,290,89.810912477270818,924,248.1954874690513,773,216.67025638051939]
[null,"With self care difficulty",0,15.556349186104045,0,15.556349186104045,0,15.556349186104045,0,15.556349186104045,41,63.600314464631381,0,15.556349186104045,0,15.556349186104045,0,15.556349186104045,0,15.556349186104045,0,15.556349186104045,0,15.556349186104045,0,15.556349186104045,0,15.556349186104045,4,13.601470508735444,0,15.556349186104045,0,15.556349186104045,0,15.556349186104045,40,65.969690009882569,0,22.627416997969522]
[null,"With no self care difficulty",81,40.36087214122113,464,155.70806016388491,83,39.597979746446661,56,37.576588456111871,1801,280.37118254200089,33,21.095023109728988,259,77.103826104804938,128,50.219518117958877,5,13.601470508735444,0,15.556349186104045,119,75.451971478550519,326,80.808415403347695,631,149.93665329064805,595,149.93331851193051,149,57.982756057296896,296,137.64446955835166,290,89.810912477270818,884,232.4521456128121,773,216.67025638051939]
[null,"35 to 64  years:",370,55.172456896534889,1259,159.22311389996113,406,107.07474025184464,155,33.241540277189323,4145,341.67235767618075,141,35.510561809129406,609,60.207972893961475,600,73.109506905736964,32,15.556349186104045,40,21.213203435596427,364,94.762861923857074,1189,114.21471008587291,1705,134.41726079637243,1884,218.3323155192561,553,87.692645073575008,1588,201.37527157027003,804,99.809819156233317,2278,193.04144632694815,2351,196.65706191235543]
[null,"With self care difficulty",8,8.6023252670426267,0,15.556349186104045,5,14.212670403551895,3,4.2426406871192848,84,81.154174261093928,1,11.704699910719626,28,20.591260281974002,22,17.464249196572979,0,15.556349186104045,0,15.556349186104045,0,15.556349186104045,9,17.029386365926403,70,59.033888572581766,114,86.023252670426274,0,15.556349186104045,38,33.837848631377263,34,36.055512754639892,84,66.603303221386852,56,54.083269131959838]
[null,"With no self care difficulty",362,55.154328932550705,1259,159.22311389996113,401,105.94810050208545,152,33.241540277189323,4061,351.13530155767592,140,34.985711369071801,581,58.898217290508889,578,72.249567472753768,32,15.556349186104045,40,21.213203435596427,364,94.762861923857074,1180,114.97825881443848,1635,137.2953021774598,1770,223.14345161801185,553,87.692645073575008,1550,201.00995000248122,770,92.195444572928878,2194,191.04973174542801,2295,202.72641663088706]
[null,"65 to 74  years:",59,22.203603311174518,425,150.24313628249379,126,41.773197148410844,36,16.970562748477139,1119,189.55210365490541,85,26.248809496813376,169,42.426406871192853,200,38.897300677553446,69,21.400934559032695,6,6.7082039324993694,242,70.007142492748557,313,77.077882690172544,812,127.61269529321916,688,157.4102919125684,236,45.967379738244816,256,104.89041900955492,464,93.380940239430018,657,181.81309083781619,1222,170.18225524419401]
[null,"With self care difficulty",2,11.401754250991379,21,35.735136770411273,5,14.866068747318506,1,12.083045973594572,19,25.079872407968907,0,15.556349186104045,4,12.529964086141668,3,12.529964086141668,0,15.556349186104045,0,15.556349186104045,0,15.556349186104045,0,15.556349186104045,11,14.866068747318506,21,24.413111231467404,13,17.029386365926403,11,25.495097567963924,0,15.556349186104045,0,22.627416997969522,32,36.796738985948195]
[null,"With no self care difficulty",57,22.203603311174518,404,149.01342221424215,121,41.036569057366385,35,17.691806012954132,1100,189.55210365490541,85,26.248809496813376,165,41.725292090050132,197,38.209946349085598,69,21.400934559032695,6,6.7082039324993694,242,70.007142492748557,313,77.077882690172544,801,127.00393694685216,667,156.20819440733575,223,45.254833995939045,245,104.1393297462587,464,93.380940239430018,657,181.81309083781619,1190,168.58232410309213]
[null,"75  years and Older:",65,25.80697580112788,202,107.00467279516349,28,21.931712199461309,30,20.615528128088304,646,129.07362240210043,32,15,111,37.12142238654117,185,52.32590180780452,53,16.970562748477139,4,4.2426406871192848,115,42.80186911806539,243,80,292,92.195444572928878,349,96.260064408871031,202,60.21627686929839,281,140.41723540933285,272,77.388629655783419,370,142.89856542317,986,230.20208513391012]
[null,"With self care difficulty",12,16.278820596099706,0,15.556349186104045,0,15.556349186104045,3,11.704699910719626,18,20.396078054371138,3,11.704699910719626,4,12.083045973594572,9,14.212670403551895,2,11.401754250991379,2,11.401754250991379,0,15.556349186104045,18,29.154759474226502,0,15.556349186104045,54,57.870545184921149,6,12.529964086141668,0,15.556349186104045,27,32.015621187164243,17,31.384709652950431,52,84.528101836016646]
[null,"With no self care difficulty",53,21.931712199461309,202,107.00467279516349,28,21.931712199461309,27,20.615528128088304,628,124.96399481450646,29,14.212670403551895,107,37.12142238654117,176,51.623637996561229,51,16.970562748477139,2,11.401754250991379,115,42.80186911806539,225,76.006578662639456,292,92.195444572928878,295,92.849340331528467,196,58.600341295934449,281,140.41723540933285,245,73.23933369440222,353,140.18559127100045,934,217.0829334609241]
[]
[]
[]
[]
[]
[]
[]
[]
["B18106. SEX BY AGE BY SELF-CARE DIFFICULTY\n\n\n\n-Calculated"]
["Universe:  Civilian non-institutionalized population 5 years and over"]
["Data Set: 2008-2012 American Community Survey 5-Year Estimates"]
[]
[]
[null,null,"Albany",null,"Bartlett",null,"Brookfield",null,"Chatham",null,"Conway",null,"Eaton",null,"Effingham",null,"Freedom",null,"Hale's Location",null,"Hart's Location",null,"Jackson",null,"Madison",null,"Moultonborough",null,"Ossipee",null,"Sandwich",null,"Tamworth",null,"Tuftonboro",null,"Wakefield",null,"Wolfeboro"]
[null,null,"Estimate","Margin Of Error","Estimate","Margin Of Error","Estimate","Margin Of Error","Estimate","Margin Of Error","Estimate","Margin Of Error","Estimate","Margin Of Error","Estimate","Margin Of Error","Estimate","Margin Of Error","Estimate","Margin Of Error","Estimate","Margin Of Error","Estimate","Margin Of Error","Estimate","Margin Of Error","Estimate","Margin Of Error","Estimate","Margin Of Error","Estimate","Margin Of Error","Estimate","Margin Of Error","Estimate","Margin Of Error","Estimate","Margin Of Error","Estimate","Margin Of Error"]
[null,"Total:",829,167,2719,66,666,154,391,120,9381,165,392,77,1281,180,1137,153,110,29,33,21,939,206,2411,53,3950,53,4010,132,1204,194,2741,82,2388,289,4839,81,5989,117]
[null,"5 to 17  years:",106,55.605755097831377,431,143.69411957348845,123,57.688820407423826,69,41.629316592997299,1276,247.24279564832622,29,14.422205101855956,173,64.404968752418469,142,47.010637094172637,4,12.529964086141668,0,15.556349186104045,146,71.196910045310247,340,100.56838469419701,494,113.56936206565572,937,192.46298345396187,170,68,294,133.45411196362591,451,158.79546593023366,540,156.20499351813308,1108,215.20455385516357]
[null,"With self care difficulty",0,15.556349186104045,0,15.556349186104045,0,15.556349186104045,0,15.556349186104045,17,34.132096331752024,0,15.556349186104045,0,15.556349186104045,0,15.556349186104045,0,15.556349186104045,0,15.556349186104045,0,15.556349186104045,7,14.866068747318506,0,15.556349186104045,0,15.556349186104045,0,15.556349186104045,0,15.556349186104045,0,15.556349186104045,0,22.627416997969522,30,39.395431207184416]
[null,"With no self care difficulty",106,55.605755097831377,431,143.69411957348845,123,57.688820407423826,69,41.629316592997299,1259,252.80031645549812,29,14.422205101855956,173,64.404968752418469,142,47.010637094172637,4,12.529964086141668,0,15.556349186104045,146,71.196910045310247,333,103.27632836231156,494,113.56936206565572,937,192.46298345396187,170,68,294,133.45411196362591,451,158.79546593023366,540,156.20499351813308,1078,218.82641522448793]
[null,"18 to 34  years:",128,49.678969393496885,315,119.20151005754919,123,54.644304369257,85,42.544094772365298,2030,315.31730050855123,55,27.784887978899608,246,71.449282711584999,124,50.606323715519977,2,11.401754250991379,9,7.810249675906654,82,48.010415536631214,239,91.923881554251182,388,109.12378292562992,650,164.01524319403975,99,39.408120990476064,451,120.25389806571761,271,97.8008179924892,728,189.992105099133,801,172.00290695217916]
[null,"With self care difficulty",0,15.556349186104045,0,15.556349186104045,0,15.556349186104045,0,15.556349186104045,0,25.45584412271571,0,15.556349186104045,4,12.083045973594572,0,15.556349186104045,0,15.556349186104045,0,15.556349186104045,0,15.556349186104045,0,15.556349186104045,0,15.556349186104045,0,15.556349186104045,4,12.529964086141668,14,23.706539182259394,0,15.556349186104045,0,22.627416997969522,13,27.202941017470888]
[null,"With no self care difficulty",128,49.678969393496885,315,119.20151005754919,123,54.644304369257,85,42.544094772365298,2030,315.31730050855123,55,27.784887978899608,242,71.449282711584999,124,50.606323715519977,2,11.401754250991379,9,7.810249675906654,82,48.010415536631214,239,91.923881554251182,388,109.12378292562992,650,164.01524319403975,95,38.832975677895199,437,121.03718436910205,271,97.8008179924892,728,189.992105099133,788,167.62159765376299]
[null,"35 to 64  years:",457,82.807004534640669,1378,181.81584089402111,288,54.644304369257,174,53.814496188294839,4480,320.66337489647924,222,37.536648758246919,586,96.254870006665115,482,59.816385714952723,34,13.45362404707371,20,18.601075237738275,453,95.482982777037293,1365,120.24142381059865,2098,152.75143207184672,1892,186.80738743422327,594,83.630138108220294,1549,164.29546554911369,1119,145.45446022724775,2506,260.40929322894755,2401,251.46172671005024]
[null,"With self care difficulty",6,7.0710678118654755,19,29.154759474226502,14,9.8488578017961039,0,15.556349186104045,86,58.051701094799967,1,11.180339887498949,23,13.601470508735444,7,7.0710678118654755,2,11.704699910719626,0,15.556349186104045,8,19.416487838947599,42,32.015621187164243,87,62.169124169478209,103,76.157731058639087,7,8.0622577482985491,78,51.478150704935004,28,35.735136770411273,54,51.546095875439491,47,51.546095875439491]
[null,"With no self care difficulty",451,81.394102980498531,1359,177.10166571774531,274,52.430906915673319,174,53.814496188294839,4394,323.32182110089633,221,36.796738985948195,563,94.339811320566042,475,59.816385714952723,32,12.206555615733702,20,18.601075237738275,445,95.482982777037293,1323,124.48293055676348,2011,161.33505508723144,1789,186.45374761586316,587,82.134036793524274,1471,169.29264603047588,1091,142.42541907960108,2452,260.40929322894755,2354,256.84431081883048]
[null,"65 to 74  years:",83,29.832867780352597,373,125.60652849274993,83,36.796738985948195,43,22.203603311174518,981,231.70023737579555,68,26.076809620810597,127,34.713109915419565,244,48.836461788299118,43,16.278820596099706,0,15.556349186104045,182,53.814496188294839,273,76.216796049164913,626,138.68309197591464,264,72.801098892805186,203,41.231056256176608,209,77.336925203941234,294,81.400245699874887,537,164.83931569865243,936,200.11246837716035]
[null,"With self care difficulty",3,12.083045973594572,0,15.556349186104045,3,12.083045973594572,0,15.556349186104045,52,87.863530545955186,2,11.704699910719626,9,18.601075237738275,9,10.63014581273465,2,11.401754250991379,0,15.556349186104045,0,15.556349186104045,6,15.556349186104045,13,17.088007490635061,20,28.231188426986208,0,15.556349186104045,22,28.231188426986208,0,15.556349186104045,0,22.627416997969522,28,31.144823004794873]
[null,"With no self care difficulty",80,29.832867780352597,373,125.60652849274993,80,36.796738985948195,43,22.203603311174518,929,219.22134932528812,66,25.553864678361276,118,32.802438933713454,235,46.690470119715009,41,16.278820596099706,0,15.556349186104045,182,53.814496188294839,267,75.604232685743199,613,138.68309197591464,244,74.4043009509531,203,41.231056256176608,187,71.421285342676384,294,81.400245699874887,537,164.83931569865243,908,200.8183258569795]
[null,"75  years and Older:",55,28.231188426986208,222,93.23625904121208,49,31.240998703626616,20,15,614,137.56816492197603,18,11.180339887498949,149,98.290386101591849,145,41.725292090050132,27,10.63014581273465,4,11.704699910719626,76,31.240998703626616,194,75.006666370396701,344,112.44554237496477,267,80.709355095924295,138,35.468295701936398,238,77.466121627457255,253,100.65783625729296,528,155.66630977832037,743,163.46559270990332]
[null,"With self care difficulty",0,15.556349186104045,18,26.40075756488817,5,6.4031242374328485,3,4.2426406871192848,84,76.236474210183673,0,15.556349186104045,13,10,11,8.6023252670426267,2,11.401754250991379,0,15.556349186104045,0,15.556349186104045,49,42.755116652863897,24,27.313000567495326,33,31.780497164141408,9,9.2195444572928871,0,15.556349186104045,12,21.095023109728988,63,47.201694884823787,51,40.496913462633174]
[null,"With no self care difficulty",55,28.231188426986208,204,89.627004859026727,44,30.479501308256342,17,13.601470508735444,530,118.56221995222593,18,11.180339887498949,136,99.005050376230813,134,40.311288741492746,25,11.401754250991379,4,11.704699910719626,76,31.240998703626616,145,60.207972893961475,320,109.34349546269316,234,75.663729752107784,129,33.97057550292606,238,77.466121627457255,241,100.65783625729296,465,150.74813431681335,692,162.78820596099706]

{"sheet":"ACS_Table_B18107","index":38,"n_rows":153,"n_cols":40,"rows_kept":153,"cut":false,"hidden":true,"merged":[]}
["B18107. SEX BY AGE BY INDEPENDENT LIVING DIFFICULTY\n\n\n"]
["Universe:  Civilian non-institutionalized population 18 years and over"]
["Data Set: 2018-2022 American Community Survey 5-Year Estimates"]
[]
[null,null,"Albany",null,"Bartlett",null,"Brookfield",null,"Chatham",null,"Conway",null,"Eaton",null,"Effingham",null,"Freedom",null,"Hale's Location",null,"Hart's Location",null,"Jackson",null,"Madison",null,"Moultonborough",null,"Ossipee",null,"Sandwich",null,"Tamworth",null,"Tuftonboro",null,"Wakefield",null,"Wolfeboro"]
[null,null,"Estimate","Margin Of Error","Estimate","Margin Of Error","Estimate","Margin Of Error","Estimate","Margin Of Error","Estimate","Margin Of Error","Estimate","Margin Of Error","Estimate","Margin Of Error","Estimate","Margin Of Error","Estimate","Margin Of Error","Estimate","Margin Of Error","Estimate","Margin Of Error","Estimate","Margin Of Error","Estimate","Margin Of Error","Estimate","Margin Of Error","Estimate","Margin Of Error","Estimate","Margin Of Error","Estimate","Margin Of Error","Estimate","Margin Of Error","Estimate","Margin Of Error"]
[null,"Total:",624,156,3033,138,485,125,322,71,8398,361,325,67,1396,194,1118,140,194,61,53,37,935,172,1955,180,4196,220,3713,189,1636,227,2168,202,2152,96,4324,251,5540,193]
[null,"Male:",259,68,1609,198,245,73,170,41,4189,384,168,45,630,98,505,68,111,42,41,32,464,86,878,98,2119,188,2033,206,917,185,1092,178,1115,87,2276,177,2476,288]
[null,"18 to 34  years:",52,25,233,169,43,31,38,16,1067,254,33,25,171,74,57,38,28,33,2,5,22,24,143,58,495,134,417,151,83,37,296,117,157,60,404,150,294,143]
[null,"With independent living difficulty",4,6,67,83,3,5,0,12,0,17,0,12,7,10,0,12,8,12,0,12,0,12,0,12,15,24,0,12,0,12,0,12,0,12,0,17,11,19]
[null,"With no independent living difficulty",48,24,166,161,40,30,38,16,1067,254,33,25,164,73,57,38,20,31,2,5,22,24,143,58,480,134,417,151,83,37,296,117,157,60,404,150,283,144]
[null,"35 to 64  years:",132,48,674,174,115,41,83,27,2011,350,55,25,293,61,202,46,24,17,16,20,278,77,514,83,791,122,989,162,312,77,538,164,487,106,1251,218,1273,248]
[null,"With independent living difficulty",10,16,37,53,4,8,5,8,58,88,0,12,31,25,17,17,5,8,0,12,2,5,8,12,0,12,22,34,14,15,160,158,20,28,39,46,154,136]
[null,"With no independent living difficulty",122,45,637,170,111,40,78,26,1953,353,55,25,262,62,185,41,19,16,16,20,276,77,506,83,791,122,967,165,298,78,378,101,467,106,1212,218,1119,240]
[null,"65 to 74  years:",56,27,550,211,67,27,35,17,646,204,58,22,145,61,165,44,29,18,22,25,109,48,151,52,512,152,508,165,367,152,126,83,252,85,366,170,427,145]
[null,"With independent living difficulty",0,12,106,104,0,12,0,12,15,24,0,12,0,12,5,7,0,12,0,12,0,12,0,12,13,15,23,22,0,12,0,12,0,12,36,40,0,17]
[null,"With no independent living difficulty",56,27,444,196,67,27,35,17,631,201,58,22,145,61,160,44,29,18,22,25,109,48,151,52,499,154,485,163,367,152,126,83,252,85,330,167,427,145]
[null,"75  years and Older:",19,12,152,88,20,10,14,8,465,138,22,11,21,14,81,28,30,16,1,2,55,35,70,40,321,118,119,58,155,80,132,78,219,96,255,108,482,137]
[null,"With independent living difficulty",0,12,14,23,0,12,0,12,25,21,1,2,0,12,0,12,2,3,0,12,0,12,7,11,18,22,12,19,9,9,3,8,8,10,1,3,91,86]
[null,"With no independent living difficulty",19,12,138,84,20,10,14,8,440,134,21,11,21,14,81,28,28,16,1,2,55,35,63,39,303,118,107,55,146,79,129,78,211,97,254,108,391,144]
[null,"Female:",365,115,1424,179,240,62,152,39,4209,313,157,42,766,146,613,111,83,31,12,13,471,100,1077,142,2077,172,1680,151,719,112,1076,153,1037,106,2048,183,3064,244]
[null,"18 to 34  years:",92,43,70,69,34,19,30,17,972,232,7,8,252,104,104,71,0,12,3,5,65,49,151,67,433,153,171,86,91,42,225,106,128,55,424,151,363,241]
[null,"With independent living difficulty",4,6,0,12,0,12,0,12,96,91,0,12,17,14,0,12,0,12,0,12,0,12,23,31,0,12,1,2,8,9,0,12,24,26,23,43,0,17]
[null,"With no independent living difficulty",88,42,70,69,34,19,30,17,876,223,7,8,235,105,104,71,0,12,3,5,65,49,128,58,433,153,170,86,83,42,225,106,104,54,401,146,363,241]
[null,"35 to 64  years:",228,100,788,170,106,32,84,28,1487,226,83,35,370,82,271,58,33,21,7,11,293,99,637,83,996,144,1049,158,359,75,535,160,434,102,1134,234,1448,260]
[null,"With independent living difficulty",44,57,88,116,5,6,0,12,86,88,2,3,43,22,0,12,10,10,0,12,9,14,0,12,25,27,63,47,13,16,0,12,14,21,32,37,0,17]
[null,"With no independent living difficulty",184,76,700,175,101,30,84,28,1401,193,81,35,327,82,271,58,23,18,7,11,284,100,637,83,971,148,986,151,346,75,535,160,420,102,1102,227,1448,260]
[null,"65 to 74  years:",29,21,463,199,65,26,28,12,1113,239,47,25,128,37,154,32,21,11,1,3,56,29,155,54,414,126,296,84,185,54,198,85,270,74,285,129,556,190]
[null,"With independent living difficulty",1,2,44,61,0,12,2,3,58,91,1,3,0,12,3,4,0,12,0,12,0,12,8,12,5,8,49,37,3,5,0,12,6,9,7,14,4,7]
[null,"With no independent living difficulty",28,21,419,203,65,26,26,11,1055,216,46,23,128,37,151,33,21,11,1,3,56,29,147,54,409,125,247,78,182,54,198,85,264,73,278,127,552,190]
[null,"75  years and Older:",16,10,103,79,35,26,10,7,637,180,20,12,16,9,84,42,29,17,1,3,57,33,134,69,234,73,164,99,84,34,118,72,205,128,205,105,697,166]
[null,"With independent living difficulty",0,12,14,22,2,3,4,4,107,69,2,4,0,12,32,32,6,8,0,12,8,14,76,62,16,19,23,33,17,14,19,21,35,35,35,43,118,90]
[null,"With no independent living difficulty",16,10,89,80,33,26,6,6,530,178,18,11,16,9,52,24,23,15,1,3,49,29,58,39,218,72,141,94,67,31,99,71,170,130,170,96,579,141]
[]
[]
[{"$f":"A1& \"-Calculated\"","v":"B18107. SEX BY AGE BY INDEPENDENT LIVING DIFFICULTY\n\n\n-Calculated"}]
[{"$f":"A2","v":"Universe:  Civilian non-institutionalized population 18 years and over"}]
[{"$f":"A3","v":"Data Set: 2018-2022 American Community Survey 5-Year Estimates"}]
[]
[]
[null,null,"Albany",null,"Bartlett",null,"Brookfield",null,"Chatham",null,"Conway",null,"Eaton",null,"Effingham",null,"Freedom",null,"Hale's Location",null,"Hart's Location",null,"Jackson",null,"Madison",null,"Moultonborough",null,"Ossipee",null,"Sandwich",null,"Tamworth",null,"Tuftonboro",null,"Wakefield",null,"Wolfeboro"]
[null,null,"Estimate","Margin Of Error","Estimate","Margin Of Error","Estimate","Margin Of Error","Estimate","Margin Of Error","Estimate","Margin Of Error","Estimate","Margin Of Error","Estimate","Margin Of Error","Estimate","Margin Of Error","Estimate","Margin Of Error","Estimate","Margin Of Error","Estimate","Margin Of Error","Estimate","Margin Of Error","Estimate","Margin Of Error","Estimate","Margin Of Error","Estimate","Margin Of Error","Estimate","Margin Of Error","Estimate","Margin Of Error","Estimate","Margin Of Error","Estimate","Margin Of Error"]
[null,"Total:",{"$f":"C7","v":624},156,3033,138,485,125,322,71,8398,361,325,67,1396,194,1118,140,194,61,53,37,935,172,{"$f":"Y7","v":1955},180,4196,220,3713,189,1636,227,2168,202,2152,96,4324,251,5540,193]
[null,"18 to 34  years:",{"$f":"C22+C9","v":144},{"$f":"SQRT((D22^2)+(D9^2))","v":49.739320461783549},{"$f":"E22+E9","v":303},{"$f":"SQRT((F22^2)+(F9^2))","v":182.54314558481784},{"$f":"G22+G9","v":77},{"$f":"SQRT((H22^2)+(H9^2))","v":36.359317925395686},{"$f":"I22+I9","v":68},{"$f":"SQRT((J22^2)+(J9^2))","v":23.345235059857504},{"$f":"K22+K9","v":2039},{"$f":"SQRT((L22^2)+(L9^2))","v":344.00581390435832},{"$f":"M22+M9","v":40},{"$f":"SQRT((N22^2)+(N9^2))","v":26.248809496813376},{"$f":"O22+O9","v":423},{"$f":"SQRT((P22^2)+(P9^2))","v":127.6401190848708},{"$f":"Q22+Q9","v":161},{"$f":"SQRT((R22^2)+(R9^2))","v":80.529497701152962},{"$f":"S22+S9","v":28},{"$f":"SQRT((T22^2)+(T9^2))","v":35.114099732158877},{"$f":"U22+U9","v":5},{"$f":"SQRT((V22^2)+(V9^2))","v":7.0710678118654755},{"$f":"W22+W9","v":87},{"$f":"SQRT((X22^2)+(X9^2))","v":54.561891462814962},{"$f":"Y22+Y9","v":294},{"$f":"SQRT((Z22^2)+(Z9^2))","v":88.617154095581284},{"$f":"AA22+AA9","v":928},{"$f":"SQRT((AB22^2)+(AB9^2))","v":203.38387350033435},{"$f":"AC22+AC9","v":588},{"$f":"SQRT((AD22^2)+(AD9^2))","v":173.77284022539311},{"$f":"AE22+AE9","v":174},{"$f":"SQRT((AF22^2)+(AF9^2))","v":55.97320787662612},{"$f":"AG22+AG9","v":521},{"$f":"SQRT((AH22^2)+(AH9^2))","v":157.87653403846943},{"$f":"AI22+AI9","v":285},{"$f":"SQRT((AJ22^2)+(AJ9^2))","v":81.394102980498531},{"$f":"AK22+AK9","v":828},{"$f":"SQRT((AL22^2)+(AL9^2))","v":212.84031572989173},{"$f":"AM22+AM9","v":657},{"$f":"SQRT((AN22^2)+(AN9^2))","v":280.23204670415549}]
[null,"With independent living difficulty",{"$f":"C23+C10","v":8},{"$f":"SQRT((D23^2)+(D10^2))","v":8.4852813742385695},67,83.86298349093002,3,13,0,16.970562748477139,96,92.57429448826494,0,16.970562748477139,24,17.204650534085253,0,16.970562748477139,8,16.970562748477139,0,16.970562748477139,0,16.970562748477139,23,33.241540277189323,15,26.832815729997478,1,12.165525060596439,8,15,0,16.970562748477139,24,28.635642126552707,23,46.238512086787566,11,25.495097567963924]
[null,"With no independent living difficulty",136,48.373546489791295,236,175.16278143486988,74,35.510561809129406,68,23.345235059857504,1943,338.00147928670373,40,26.248809496813376,399,127.88275880665071,161,80.529497701152962,20,33.241540277189323,5,7.0710678118654755,87,54.561891462814962,271,82.024386617639507,913,203.38387350033435,587,173.77284022539311,166,55.97320787662612,521,157.87653403846943,261,80.721744282442259,805,209.32271735289507,646,280.74365531566337]
[null,"35 to 64  years:",360,110.92339699089638,1462,243.26117651610582,221,52.009614495783374,167,38.897300677553446,3498,416.62453120285659,138,43.011626335213137,663,102.20078277586722,473,74.027022093286988,57,27.018512172212592,23,22.825424421026653,571,125.41929676090518,1151,117.37972567696688,1787,188.73261509341728,2038,226.29184695874486,671,107.48953437428223,1073,229.12005586591496,921,147.10540438746634,2385,319.81244503614926,2721,359.31045072471801]
[null,"With independent living difficulty",54,59.203040462462738,125,127.534309109353,9,10,5,14.422205101855956,144,124.45079348883236,2,12.369316876852981,74,33.301651610693426,17,20.808652046684813,15,12.806248474865697,0,16.970562748477139,11,14.866068747318506,8,16.970562748477139,25,29.546573405388315,85,58.008620049092706,27,21.931712199461309,160,158.45504094221806,34,35,71,59.033888572581766,154,137.05838172107534]
[null,"With no independent living difficulty",306,88.323269867006175,1337,243.97745797511703,212,50,162,38.209946349085598,3354,402.31579635902938,136,43.011626335213137,589,102.80077820717118,456,71.028163428319047,42,24.083189157584592,23,22.825424421026653,560,126.21014222319853,1143,117.37972567696688,1762,191.80198122021577,1953,223.66492796144863,644,108.2081327812286,913,189.21152184790438,887,147.10540438746634,2314,314.7268657105713,2567,353.83612025908263]
[null,"65 to 74  years:",85,34.205262752974143,1013,290.03792855418067,132,37.483329627982627,63,20.808652046684813,1759,314.22444207922462,105,33.301651610693426,273,71.344235926947874,319,54.405882034941776,50,21.095023109728988,23,25.179356624028344,165,56.080299571239813,306,74.966659255965254,926,197.43353311937665,804,185.15128949051368,552,161.3071604114337,324,118.80235687897779,522,112.69871339105873,651,213.40337391897066,983,239.00836805434241]
[null,"With independent living difficulty",1,12.165525060596439,150,120.56948204251356,0,16.970562748477139,2,12.369316876852981,73,94.111635837445732,1,12.369316876852981,0,16.970562748477139,8,8.0622577482985491,0,16.970562748477139,0,16.970562748477139,0,16.970562748477139,8,16.970562748477139,18,17,72,43.046486500061768,3,13,0,16.970562748477139,6,15,43,42.379240200834182,4,18.384776310850235]
[null,"With no independent living difficulty",84,34.205262752974143,863,282.17902119044925,132,37.483329627982627,61,20.248456731316587,1686,295.05423230314796,104,31.827660925679098,273,71.344235926947874,311,55,50,21.095023109728988,23,25.179356624028344,165,56.080299571239813,298,74.966659255965254,908,198.3456578803781,732,180.70141117323905,549,161.3071604114337,324,118.80235687897779,516,112.04463396343441,608,209.80467106334882,979,239.00836805434241]
[null,"75  years and Older:",35,15.620499351813308,255,118.25819210524064,55,27.856776554368238,24,10.63014581273465,1102,226.8126980572296,42,16.278820596099706,37,16.643316977093239,165,50.47771785649585,59,23.345235059857504,2,3.6055512754639891,112,48.104053883222775,204,79.755877526361658,555,138.75518008348374,283,114.73883387938018,239,86.92525524840292,250,106.15083607772479,424,160,460,150.6286825275983,1179,215.23243250030885]
[null,"With independent living difficulty",0,16.970562748477139,28,31.827660925679098,2,12.369316876852981,4,12.649110640673518,132,72.124891681027847,3,4.4721359549995796,0,16.970562748477139,32,34.176014981270121,8,8.5440037453175304,0,16.970562748477139,8,18.439088914585774,83,62.968245965724662,34,29.068883707497267,35,38.078865529319543,26,16.643316977093239,22,22.472205054244231,43,36.400549446402593,36,43.104524124504614,209,124.48293055676348]
[null,"With no independent living difficulty",{"$f":"C33+C20","v":35},15.620499351813308,227,116,53,27.856776554368238,20,10,970,222.80035906613796,39,15.556349186104045,37,16.643316977093239,133,36.878177829171548,51,21.931712199461309,2,3.6055512754639891,104,45.453272709454048,121,55.154328932550705,521,138.23168956501979,248,108.90821823902914,213,84.864598037108507,228,105.47511554864494,381,162.2004932174992,424,144.49913494550754,970,201.53659717282119]
[]
[]
[]
[]
[]
[]
[]
[]
[]
[]
[]
[]
[]
[]
[]
[]
[]
[]
[]
[]
[]
[]
[]
[]
[]
[]
[]
[]
[]
[]
[]
[]
[]
[]
[]
[]
[]
[]
[]
[]
[]
[]
[]
[]
["B18107. SEX BY AGE BY INDEPENDENT LIVING DIFFICULTY\n\n\n-Calculated"]
["Universe:  Civilian non-institutionalized population 18 years and over"]
["Data Set: 2013-2017 American Community Survey 5-Year Estimates"]
[]
[]
[null,null,"Albany",null,"Bartlett",null,"Brookfield",null,"Chatham",null,"Conway",null,"Eaton",null,"Effingham",null,"Freedom",null,"Hale's Location",null,"Hart's Location",null,"Jackson",null,"Madison",null,"Moultonborough",null,"Ossipee",null,"Sandwich",null,"Tamworth",null,"Tuftonboro",null,"Wakefield",null,"Wolfeboro"]
[null,null,"Estimate","Margin Of Error","Estimate","Margin Of Error","Estimate","Margin Of Error","Estimate","Margin Of Error","Estimate","Margin Of Error","Estimate","Margin Of Error","Estimate","Margin Of Error","Estimate","Margin Of Error","Estimate","Margin Of Error","Estimate","Margin Of Error","Estimate","Margin Of Error","Estimate","Margin Of Error","Estimate","Margin Of Error","Estimate","Margin Of Error","Estimate","Margin Of Error","Estimate","Margin Of Error","Estimate","Margin Of Error","Estimate","Margin Of Error","Estimate","Margin Of Error"]
[null,"Total:",723,147,2288,196,543,135,322,97,8105,262,363,70,1108,151,995,131,106,28,33,21,793,167,2071,94,3456,113,3073,170,1034,146,2447,130,1937,207,4299,155,4881,219]
[null,"18 to 34  years:",128,49.678969393496885,315,119.20151005754919,123,54.644304369257,85,42.544094772365298,2030,315.31730050855123,55,27.784887978899608,246,71.449282711584999,124,50.606323715519977,2,11.401754250991379,9,7.810249675906654,82,48.010415536631214,239,91.923881554251182,388,109.12378292562992,650,164.01524319403975,99,39.408120990476064,451,120.25389806571761,271,97.8008179924892,728,189.992105099133,801,172.00290695217916]
[null,"With independent living difficulty",0,15.556349186104045,0,15.556349186104045,0,15.556349186104045,1,11.704699910719626,9,23.430749027719962,9,15.556349186104045,4,12.083045973594572,0,15.556349186104045,0,15.556349186104045,0,15.556349186104045,0,15.556349186104045,0,15.556349186104045,0,15.556349186104045,17,21.095023109728988,4,12.529964086141668,14,23.706539182259394,0,15.556349186104045,35,37.443290453698111,38,48.703182647543684]
[null,"With no independent living difficulty",128,49.678969393496885,315,119.20151005754919,123,54.644304369257,84,42.544094772365298,2021,314.0780157858872,46,23.600847442411894,242,71.449282711584999,124,50.606323715519977,2,11.401754250991379,9,7.810249675906654,82,48.010415536631214,239,91.923881554251182,388,109.12378292562992,633,164.01524319403975,95,38.832975677895199,437,121.03718436910205,271,97.8008179924892,693,192.28364465029262,763,166.1836333698358]
[null,"35 to 64  years:",457,82.807004534640669,1378,181.81584089402111,288,54.644304369257,174,53.814496188294839,4480,320.66337489647924,222,37.536648758246919,586,96.254870006665115,482,59.816385714952723,34,13.45362404707371,20,18.601075237738275,453,95.482982777037293,1365,120.24142381059865,2098,152.75143207184672,1892,186.80738743422327,594,83.630138108220294,1549,164.29546554911369,1119,145.45446022724775,2506,260.40929322894755,2401,251.46172671005024]
[null,"With independent living difficulty",13,9.2195444572928871,31,35.735136770411273,19,12.083045973594572,0,15.556349186104045,167,82.37718130647589,1,11.180339887498949,47,23.021728866442675,5,12.529964086141668,0,15.556349186104045,0,15.556349186104045,11,20.248456731316587,41,32.015621187164243,156,81.055536516637773,146,94.667840368310934,28,18.867962264113206,73,48.270073544588683,33,36.687872655688281,122,92.395887354362259,47,51.546095875439491]
[null,"With no independent living difficulty",444,81.394102980498531,1347,176.32356620712955,269,53.254107822777392,174,53.814496188294839,4313,332.34319610908238,221,36.796738985948195,539,94.154128958851288,477,59.816385714952723,34,13.45362404707371,20,18.601075237738275,442,95.482982777037293,1324,122.42957159118053,1942,164.01524319403975,1746,188.90473789717399,566,82.134036793524274,1476,167.73789077009405,1086,144.49913494550754,2384,258.00193797721755,2354,256.84431081883048]
[null,"65 to 74  years:",83,29.832867780352597,373,125.60652849274993,83,36.796738985948195,43,22.203603311174518,981,231.70023737579555,68,26.076809620810597,127,34.713109915419565,244,48.836461788299118,43,16.278820596099706,0,15.556349186104045,182,53.814496188294839,273,76.216796049164913,626,138.68309197591464,264,72.801098892805186,203,41.231056256176608,209,77.336925203941234,294,81.400245699874887,537,164.83931569865243,936,200.11246837716035]
[null,"With independent living difficulty",8,7.810249675906654,16,28.231188426986208,3,12.083045973594572,3,11.704699910719626,71,93.744333162063725,2,11.704699910719626,16,16.552945357246848,17,13.45362404707371,0,15.556349186104045,0,15.556349186104045,0,15.556349186104045,20,21.213203435596427,11,19.416487838947599,8,20.248456731316587,6,5.6568542494923806,32,28.42534080710379,8,17.029386365926403,0,22.627416997969522,14,28.0178514522438]
[null,"With no independent living difficulty",75,29.068883707497267,357,126.90547663517127,80,36.796738985948195,40,21.633307652783937,910,219.22134932528812,66,25.553864678361276,111,32.015621187164243,227,47.423622805517503,43,16.278820596099706,0,15.556349186104045,182,53.814496188294839,253,74.813100457072352,615,138.68309197591464,256,76.843997813752509,197,40.607881008493905,177,70.178344238091,286,82.006097334283623,537,164.83931569865243,922,200.11246837716035]
[null,"75  years and Older:",55,28.231188426986208,222,93.23625904121208,49,31.240998703626616,20,15,614,137.56816492197603,18,11.180339887498949,149,98.290386101591849,145,41.725292090050132,27,10.63014581273465,4,11.704699910719626,76,31.240998703626616,194,75.006666370396701,344,112.44554237496477,267,80.709355095924295,138,35.468295701936398,238,77.466121627457255,253,100.65783625729296,528,155.66630977832037,743,163.46559270990332]
[null,"With independent living difficulty",3,12.083045973594572,18,26.40075756488817,5,6.4031242374328485,4,4.2426406871192848,180,107.96758772891057,2,11.401754250991379,17,11.661903789690601,20,13,2,11.401754250991379,0,15.556349186104045,0,15.556349186104045,59,51.224993899462788,40,30.805843601498726,51,37.215588131856791,12,9.8994949366116654,14,18.601075237738275,41,30.232432915661949,102,66.219332524573218,75,50.089919145472777]
[null,"With no independent living difficulty",52,27.856776554368238,204,89.627004859026727,44,30.479501308256342,16,13.601470508735444,434,109.87720418721983,16,11.180339887498949,132,99.005050376230813,125,38.897300677553446,25,11.401754250991379,4,11.704699910719626,76,31.240998703626616,135,57.801384066473702,304,108.70602559196064,216,72.006944109578768,126,33.301651610693426,224,75.927597090912869,212,102.69371937952194,426,145.16542288024377,668,159.86244086714052]
[]
[]
[]
[]
[]
[]
[]
[]
[]
[]
[]
["B18107. SEX BY AGE BY INDEPENDENT LIVING DIFFICULTY\n\n\n-Calculated"]
["Universe:  Civilian non-institutionalized population 18 years and over"]
["Data Set: 2008-2012 American Community Survey 5-Year Estimates"]
[]
[]
[null,null,"Albany",null,"Bartlett",null,"Brookfield",null,"Chatham",null,"Conway",null,"Eaton",null,"Effingham",null,"Freedom",null,"Hale's Location",null,"Hart's Location",null,"Jackson",null,"Madison",null,"Moultonborough",null,"Ossipee",null,"Sandwich",null,"Tamworth",null,"Tuftonboro",null,"Wakefield",null,"Wolfeboro"]
[null,null,"Estimate","Margin Of Error","Estimate","Margin Of Error","Estimate","Margin Of Error","Estimate","Margin Of Error","Estimate","Margin Of Error","Estimate","Margin Of Error","Estimate","Margin Of Error","Estimate","Margin Of Error","Estimate","Margin Of Error","Estimate","Margin Of Error","Estimate","Margin Of Error","Estimate","Margin Of Error","Estimate","Margin Of Error","Estimate","Margin Of Error","Estimate","Margin Of Error","Estimate","Margin Of Error","Estimate","Margin Of Error","Estimate","Margin Of Error","Estimate","Margin Of Error"]
[null,"Total:",875,179,2793,17,681,160,446,148,9965,62,393,77,1344,202,1197,167,110,29,33,21,990,232,2496,24,4078,16,4183,104,1224,201,2854,18,2513,307,5044,19,6181,35]
[null,"18 to 34  years:",152,57,505,197,138,65,124,74,1860,253,30,17,236,93,202,63,4,6,0,11,197,104,425,91,622,111,1110,163,190,77,407,129,576,163,745,157,1300,224]
[null,"With independent living difficulty",0,11,0,11,4,8,3,5,50,47,0,11,24,20,15,14,0,11,0,11,0,11,35,33,11,17,64,47,5,7,0,11,20,24,14,25,36,38]
[null,"With no independent living difficulty",13,19,0,11,0,11,3,5,17,29,0,11,4,6,12,14,0,11,0,11,0,11,7,10,0,11,0,11,4,6,0,11,0,11,0,16,30,36]
[null,"35 to 64  years:",139,55,505,197,134,66,118,72,1793,256,30,17,208,86,175,50,4,6,0,11,197,104,383,95,611,109,1046,164,181,75,407,129,556,157,731,160,1234,216]
[null,"With independent living difficulty",585,139,1693,193,411,109,259,94,6510,275,277,63,832,151,606,109,36,18,29,20,535,149,1604,113,2486,168,2542,160,693,127,2000,144,1390,191,3234,230,3202,253]
[null,"With no independent living difficulty",48,43,183,119,17,20,1,4,351,164,13,11,36,23,50,32,2,5,7,11,19,22,81,59,141,78,121,62,28,19,268,126,79,59,307,132,240,123]
[null,"65 to 74  years:",38,25,40,38,24,16,42,52,307,133,8,9,65,25,9,8,2,4,0,11,11,17,69,41,181,75,239,141,33,18,144,59,38,37,204,109,100,78]
[null,"With independent living difficulty",499,123,1470,211,370,101,216,84,5852,319,256,57,731,141,547,102,32,18,22,17,505,147,1454,131,2164,181,2182,181,632,119,1588,190,1273,182,2723,214,2862,278]
[null,"With no independent living difficulty",138,46,595,193,132,61,63,29,1595,296,86,34,276,91,389,80,70,25,4,4,258,77,467,121,970,170,531,112,341,67,447,131,547,130,1065,250,1679,319]
[null,"75  years and Older:",38,23,183,111,15,18,10,12,312,127,10,9,55,67,44,20,7,7,4,4,37,26,73,46,142,102,117,57,56,23,173,87,84,53,163,111,279,128]
[null,"With independent living difficulty",11,12,57,51,24,20,7,6,290,142,7,6,33,19,48,25,4,5,0,11,2,4,94,61,61,39,120,62,34,18,53,36,58,36,201,116,93,55]
[null,"With no independent living difficulty",89,38,355,159,93,47,46,22,993,226,69,31,188,91,297,77,59,23,0,11,219,69,300,95,767,147,294,92,251,55,221,82,405,117,701,193,1307,279]
[null,"75  years and Older:",380,129.00387591076478,214,72.346388990743691,382,119.63277142990545,82,31.11269837220809,601,156.63013758533191,189,70.007142492748557,1183,156.84705926475002,471,116.8289347721702,167,62.241465278381739,204,53.851648071345039,320,127.47548783981962]
[null,"With self care difficulty",47,56.320511361314892,23,25.942243542145693,65,74.732857566133518,7,7.810249675906654,31,28.42534080710379,45,31.384709652950431,144,65.863495200300449,77,65.79513659838392,17,17.464249196572979,7,15.556349186104045,75,73.006848993775918]
[null,"With no self care difficulty",333,119.85407794480753,191,66.708320320631671,317,102.55242561733974,75,30.413812651491099,570,156.46405337968207,144,60.876925020897694,1039,157.11460785044781,394,98.716766559688324,150,60.415229867972862,197,54.708317466359723,245,100.12492197250393]

{"sheet":"ACS_Table_C18108","index":39,"n_rows":149,"n_cols":40,"rows_kept":149,"cut":false,"hidden":true,"merged":[]}
["B18108. AGE BY NUMBER OF DISABILITIES\n\n"]
["Universe:  Civilian non-institutionalized population"]
["Data Set: 2018-2022 American Community Survey 5-Year Estimates"]
[]
[null,null,"Albany",null,"Bartlett",null,"Brookfield",null,"Chatham",null,"Conway",null,"Eaton",null,"Effingham",null,"Freedom",null,"Hale's Location",null,"Hart's Location",null,"Jackson",null,"Madison",null,"Moultonborough",null,"Ossipee",null,"Sandwich",null,"Tamworth",null,"Tuftonboro",null,"Wakefield",null,"Wolfeboro"]
[null,null,"Estimate","Margin Of Error","Estimate","Margin Of Error","Estimate","Margin Of Error","Estimate","Margin Of Error","Estimate","Margin Of Error","Estimate","Margin Of Error","Estimate","Margin Of Error","Estimate","Margin Of Error","Estimate","Margin Of Error","Estimate","Margin Of Error","Estimate","Margin Of Error","Estimate","Margin Of Error","Estimate","Margin Of Error","Estimate","Margin Of Error","Estimate","Margin Of Error","Estimate","Margin Of Error","Estimate","Margin Of Error","Estimate","Margin Of Error","Estimate","Margin Of Error"]
[null,"Total:",708,164,3207,17,536,142,423,109,9862,20,355,72,1794,280,1336,184,196,61,53,37,1149,182,2609,21,4931,42,4280,15,1838,254,2844,15,2507,27,5266,18,6383,16]
[null,"Under 18 years:",84,40,174,139,51,30,101,71,1464,363,30,21,398,123,218,106,2,3,0,12,214,78,654,180,735,216,567,187,202,74,676,203,355,91,942,251,843,195]
[null,"With one type of disability",10,11,20,29,3,4,5,5,0,17,2,3,34,43,3,4,0,12,0,12,0,12,30,28,43,42,28,26,3,4,12,18,23,20,30,35,59,59]
[null,"With two or more types of disability",0,12,0,12,0,12,0,12,58,65,0,12,0,12,0,12,0,12,0,12,0,12,0,12,13,20,0,12,0,12,0,12,0,12,0,17,13,17]
[null,"No disability",74,39,154,135,48,30,96,70,1406,340,28,20,364,98,215,106,2,3,0,12,214,78,624,188,679,208,539,192,199,73,664,201,332,91,912,243,771,206]
[null,"18 to 64  years:",504,140,1765,296,298,91,235,61,5537,457,178,52,1086,196,634,126,85,45,28,28,658,154,1445,143,2715,262,2626,221,845,164,1594,178,1206,191,3213,337,3378,355]
[null,"With one type of disability",49,31,189,119,27,16,18,15,238,133,13,12,61,26,78,62,8,8,0,12,35,41,63,39,281,181,260,119,65,35,200,134,116,74,373,228,103,79]
[null,"With two or more types of disability",71,63,192,143,7,7,7,10,364,191,4,5,92,30,47,47,19,19,0,12,11,15,37,33,40,35,147,72,33,23,174,158,52,40,289,247,242,156]
[null,"No disability",384,116,1384,275,264,85,210,57,4935,452,161,50,933,197,509,92,58,45,28,28,612,151,1345,132,2394,231,2219,252,747,157,1220,186,1038,177,2551,403,3033,386]
[null,"65 years and over:",120,50,1268,323,187,59,87,31,2861,409,147,50,310,75,484,82,109,41,25,25,277,89,510,116,1481,270,1087,212,791,179,574,186,946,222,1111,309,2162,372]
[null,"With one type of disability",19,13,254,138,12,10,16,11,388,154,23,12,58,28,44,21,22,14,0,12,26,23,89,62,261,122,156,85,76,34,89,78,154,59,105,83,275,149]
[null,"With two or more types of disability",6,7,178,152,8,6,5,5,372,161,12,10,34,44,83,40,6,8,0,12,8,14,99,63,92,46,118,63,53,30,109,76,68,55,77,49,408,184]
[null,"No disability",95,44,836,273,167,57,66,25,2101,352,112,42,218,55,357,69,81,33,25,25,243,86,322,94,1128,219,813,196,662,171,376,142,724,241,929,284,1479,284]
[]
[]
[]
[]
[]
[]
[]
[]
[]
[]
[]
[]
[]
[]
[]
[]
[]
[]
[]
[]
[]
[]
[]
[]
[]
[]
[]
[]
[]
[]
[]
[]
[]
[]
[]
[]
[]
[]
[]
[]
[]
[]
[]
[]
[]
[]
[]
[]
[]
[]
[]
[]
[]
[]
[]
[]
[]
[]
[]
[]
[]
[]
[]
[]
[]
[]
[]
[]
[]
[]
[]
[]
[]
[]
[]
[]
[]
[]
[]
[]
["B18108. AGE BY NUMBER OF DISABILITIES\n\n"]
["Universe:  Civilian non-institutionalized population"]
["Data Set: 2013-2017 American Community Survey 5-Year Estimates"]
[]
[null,null,"Albany",null,"Bartlett",null,"Brookfield",null,"Chatham",null,"Conway",null,"Eaton",null,"Effingham",null,"Freedom",null,"Hale's Location",null,"Hart's Location",null,"Jackson",null,"Madison",null,"Moultonborough",null,"Ossipee",null,"Sandwich",null,"Tamworth",null,"Tuftonboro",null,"Wakefield",null,"Wolfeboro"]
[null,null,"Estimate","Margin Of Error","Estimate","Margin Of Error","Estimate","Margin Of Error","Estimate","Margin Of Error","Estimate","Margin Of Error","Estimate","Margin Of Error","Estimate","Margin Of Error","Estimate","Margin Of Error","Estimate","Margin Of Error","Estimate","Margin Of Error","Estimate","Margin Of Error","Estimate","Margin Of Error","Estimate","Margin Of Error","Estimate","Margin Of Error","Estimate","Margin Of Error","Estimate","Margin Of Error","Estimate","Margin Of Error","Estimate","Margin Of Error","Estimate","Margin Of Error"]
[null,"Total:",782,141,2760,22,868,263,339,109,9872,71,321,68,1435,174,1314,175,159,48,52,31,957,220,2518,22,4049,20,4104,116,1342,199,2917,13,2153,183,4987,37,6130,40]
[null,"Under 18 years:",207,87,410,148,225,124,62,32,2120,255,30,17,287,85,201,68,0,11,2,5,117,76,447,84,609,122,584,152,202,91,496,206,323,71,758,140,798,191]
[null,"With one type of disability",3,5,0,11,9,12,2,5,52,67,0,11,11,13,17,13,0,11,0,11,0,11,9,14,0,11,24,29,1,3,0,11,20,23,27,34,0,16]
[null,"With two or more types of disability",0,11,13,21,0,11,2,3,44,41,0,11,4,6,11,10,0,11,0,11,0,11,8,12,40,47,31,49,0,11,0,11,0,11,25,28,0,16]
[null,"No disability",204,86,397,147,216,121,58,31,2024,261,30,17,272,84,173,64,0,11,2,5,117,76,430,89,569,143,529,166,201,90,496,206,303,69,706,128,798,191]
[null,"18 to 64  years:",451,86,1723,203,489,154,211,72,5987,290,174,45,868,115,728,120,37,24,40,27,483,157,1515,124,2336,164,2483,180,702,139,1884,236,1094,144,3202,226,3124,256]
[null,"With one type of disability",10,6,105,76,25,21,15,15,351,163,18,12,33,16,79,29,0,11,7,8,22,23,138,68,61,35,262,119,31,17,222,117,67,43,370,163,205,123]
[null,"With two or more types of disability",18,12,17,28,15,13,10,8,371,161,1,4,60,28,34,27,0,11,0,11,8,13,37,27,81,60,217,132,26,19,264,136,87,50,353,160,138,99]
[null,"No disability",423,85,1601,219,449,144,186,63,5265,330,155,43,775,113,615,111,37,24,33,22,453,147,1340,117,2194,169,2004,226,645,131,1398,210,940,137,2479,263,2781,264]
[null,"65 years and over:",124,38,627,214,154,63,66,31,1765,237,117,35,280,65,385,74,122,37,10,9,357,102,556,118,1104,146,1037,168,438,86,537,189,736,131,1027,243,2208,267]
[null,"With one type of disability",19,15,110,83,13,11,17,18,209,94,30,19,66,31,108,36,11,8,0,11,41,28,102,53,186,66,222,105,51,23,137,96,105,47,304,138,221,125]
[null,"With two or more types of disability",31,20,81,58,8,11,15,12,250,125,3,4,41,22,37,24,4,5,4,5,15,16,75,44,119,59,231,81,31,17,38,50,57,36,118,91,554,272]
[null,"No disability",74,26,436,171,133,55,34,16,1306,221,84,27,173,51,240,55,107,35,6,7,301,91,379,106,799,141,584,155,356,79,362,174,574,123,605,194,1433,227]
[]
[]
[]
[]
[]
[]
[]
[]
[]
[]
[]
[]
["B18108. AGE BY NUMBER OF DISABILITIES\n\n"]
["Universe:  Civilian non-institutionalized population"]
["Data Set: 2008-2012 American Community Survey 5-Year Estimates"]
[]
[null,null,"Albany",null,"Bartlett",null,"Brookfield",null,"Chatham",null,"Conway",null,"Eaton",null,"Effingham",null,"Freedom",null,"Hale's Location",null,"Hart's Location",null,"Jackson",null,"Madison",null,"Moultonborough",null,"Ossipee",null,"Sandwich",null,"Tamworth",null,"Tuftonboro",null,"Wakefield",null,"Wolfeboro"]
[null,null,"Estimate","Margin Of Error","Estimate","Margin Of Error","Estimate","Margin Of Error","Estimate","Margin Of Error","Estimate","Margin Of Error","Estimate","Margin Of Error","Estimate","Margin Of Error","Estimate","Margin Of Error","Estimate","Margin Of Error","Estimate","Margin Of Error","Estimate","Margin Of Error","Estimate","Margin Of Error","Estimate","Margin Of Error","Estimate","Margin Of Error","Estimate","Margin Of Error","Estimate","Margin Of Error","Estimate","Margin Of Error","Estimate","Margin Of Error","Estimate","Margin Of Error"]
[null,"Total:",875,179,2793,17,681,160,446,148,9965,62,393,77,1344,202,1197,167,110,29,33,21,990,232,2496,24,4078,16,4183,104,1224,201,2854,18,2513,307,5044,19,6181,35]
[null,"Under 18 years:",152,57,505,197,138,65,124,74,1860,253,30,17,236,93,202,63,4,6,0,11,197,104,425,91,622,111,1110,163,190,77,407,129,576,163,745,157,1300,224]
[null,"With one type of disability",0,11,0,11,4,8,3,5,50,47,0,11,24,20,15,14,0,11,0,11,0,11,35,33,11,17,64,47,5,7,0,11,20,24,14,25,36,38]
[null,"With two or more types of disability",13,19,0,11,0,11,3,5,17,29,0,11,4,6,12,14,0,11,0,11,0,11,7,10,0,11,0,11,4,6,0,11,0,11,0,16,30,36]
[null,"No disability",139,55,505,197,134,66,118,72,1793,256,30,17,208,86,175,50,4,6,0,11,197,104,383,95,611,109,1046,164,181,75,407,129,556,157,731,160,1234,216]
[null,"18 to 64  years:",585,139,1693,193,411,109,259,94,6510,275,277,63,832,151,606,109,36,18,29,20,535,149,1604,113,2486,168,2542,160,693,127,2000,144,1390,191,3234,230,3202,253]
[null,"With one type of disability",48,43,183,119,17,20,1,4,351,164,13,11,36,23,50,32,2,5,7,11,19,22,81,59,141,78,121,62,28,19,268,126,79,59,307,132,240,123]
[null,"With two or more types of disability",38,25,40,38,24,16,42,52,307,133,8,9,65,25,9,8,2,4,0,11,11,17,69,41,181,75,239,141,33,18,144,59,38,37,204,109,100,78]
[null,"No disability",499,123,1470,211,370,101,216,84,5852,319,256,57,731,141,547,102,32,18,22,17,505,147,1454,131,2164,181,2182,181,632,119,1588,190,1273,182,2723,214,2862,278]
[null,"65 years and over:",138,46,595,193,132,61,63,29,1595,296,86,34,276,91,389,80,70,25,4,4,258,77,467,121,970,170,531,112,341,67,447,131,547,130,1065,250,1679,319]
[null,"With one type of disability",38,23,183,111,15,18,10,12,312,127,10,9,55,67,44,20,7,7,4,4,37,26,73,46,142,102,117,57,56,23,173,87,84,53,163,111,279,128]
[null,"With two or more types of disability",11,12,57,51,24,20,7,6,290,142,7,6,33,19,48,25,4,5,0,11,2,4,94,61,61,39,120,62,34,18,53,36,58,36,201,116,93,55]
[null,"No disability",89,38,355,159,93,47,46,22,993,226,69,31,188,91,297,77,59,23,0,11,219,69,300,95,767,147,294,92,251,55,221,82,405,117,701,193,1307,279]

{"sheet":"ACS_TableB19201_ACS_Tbl_B19202","index":40,"n_rows":115,"n_cols":40,"rows_kept":115,"cut":false,"hidden":true,"merged":[]}
[null,"B19102. NON-FAMILY INCOME IN THE PAST 12 MONTHS (IN 2022 INFLATION-ADJUSTED DOLLARS)"]
[null,"Universe:  FAMILIES"]
[null,"Data Set: 2018-2022 American Community Survey 5-Year Estimates"]
[]
[null,null,"Albany",null,"Bartlett",null,"Brookfield",null,"Chatham",null,"Conway",null,"Eaton",null,"Effingham",null,"Freedom",null,"Hale's Location",null,"Hart's Location",null,"Jackson",null,"Madison",null,"Moultonborough",null,"Ossipee",null,"Sandwich",null,"Tamworth",null,"Tuftonboro",null,"Wakefield",null,"Wolfeboro"]
[null," ","Estimate","Margin of Error","Estimate","Margin of Error","Estimate","Margin of Error","Estimate","Margin of Error","Estimate","Margin of Error","Estimate","Margin of Error","Estimate","Margin of Error","Estimate","Margin of Error","Estimate","Margin of Error","Estimate","Margin of Error","Estimate","Margin of Error","Estimate","Margin of Error","Estimate","Margin of Error","Estimate","Margin of Error","Estimate","Margin of Error","Estimate","Margin of Error","Estimate","Margin of Error","Estimate","Margin of Error","Estimate","Margin of Error"]
[null,"Total:",132,57,959,281,71,39,52,22,2068,393,74,30,137,44,166,44,35,34,41,32,146,61,295,86,600,167,407,143,420,174,327,152,384,124,725,230,1079,302]
[null,"Less than $10,000",32,26,42,68,2,4,5,7,301,173,0,12,4,5,6,8,0,12,0,12,8,14,13,12,9,14,50,52,8,9,0,12,14,21,0,17,81,99]
[null,"$10,000 to $14,999",2,4,8,16,0,12,0,12,343,216,8,10,17,17,0,12,0,12,0,12,0,12,30,26,0,12,89,56,11,10,93,72,30,28,58,83,173,138]
[null,"$15,000 to $19,999",7,11,39,54,11,13,0,12,60,41,6,7,11,9,2,3,2,3,0,12,0,12,0,12,44,30,57,77,27,18,34,55,12,14,44,65,12,19]
[null,"$20,000 to $24,999",0,12,72,73,3,4,0,12,232,118,0,12,0,12,22,21,2,4,0,12,12,13,28,34,8,12,38,41,16,14,13,20,7,11,18,27,76,58]
[null,"$25,000 to $29,999",20,34,116,91,2,3,8,8,97,67,0,12,5,8,26,16,4,6,4,7,0,12,27,25,10,14,49,47,11,9,34,35,66,51,69,84,54,48]
[null,"$30,000 to $34,999",33,27,56,67,16,24,0,12,150,163,7,10,9,8,6,4,0,12,0,12,0,12,3,5,17,22,9,18,6,6,46,57,19,18,0,17,74,79]
[null,"$35,000 to $39,999",3,4,144,138,2,3,9,9,160,133,8,13,4,5,8,8,0,12,18,24,0,12,0,12,17,24,10,20,0,12,0,12,32,29,73,79,75,96]
[null,"$40,000 to $44,999",0,12,21,35,0,12,7,9,10,14,0,12,12,10,0,12,0,12,0,12,22,28,1,4,53,56,19,22,17,15,0,12,13,21,27,30,23,32]
[null,"$45,000 to $49,999",0,12,0,12,2,3,1,3,43,54,2,4,4,6,9,13,0,12,0,12,7,12,14,14,97,113,0,12,3,4,0,12,24,21,44,68,43,56]
[null,"$50,000 to $59,999",0,12,205,155,2,4,11,12,108,102,14,13,34,29,10,10,0,12,0,12,9,12,27,27,29,25,13,18,15,10,34,39,50,60,69,57,13,21]
[null,"$60,000 to $74,999",4,5,68,71,16,19,2,3,73,52,4,4,7,7,14,11,2,3,9,17,0,12,25,28,40,25,47,48,21,20,0,12,19,25,55,61,80,63]
[null,"$75,000 to $99,999",12,13,29,29,6,7,8,8,275,209,7,7,15,10,24,20,20,31,3,5,15,16,75,50,179,108,11,21,60,58,10,15,17,18,55,56,153,99]
[null,"$100,000 to $124,999",19,17,16,24,0,12,0,12,123,86,10,9,3,4,19,18,5,8,7,11,37,38,23,25,64,48,12,16,23,19,63,75,24,18,15,24,119,77]
[null,"$125,000 to $149,999",0,12,38,58,2,3,0,12,4,7,3,4,8,8,3,5,0,12,0,12,18,21,0,12,11,16,3,5,6,6,0,12,7,10,87,89,72,86]
[null,"$150,000 to $199,999",0,12,45,72,7,7,0,12,30,28,0,12,4,5,14,15,0,12,0,12,9,11,0,12,22,34,0,12,63,79,0,12,27,30,53,51,17,19]
[null,"$200,000 or more",0,12,60,81,0,12,1,3,59,58,5,5,0,12,3,4,0,12,0,12,9,14,29,20,0,12,0,12,133,149,0,12,23,36,58,64,14,20]
[]
[]
[null,"B19112. MEDIAN NON-FAMILY INCOME IN THE PAST 12 MONTHS (IN 2022 INFLATION-ADJUSTED DOLLARS)"]
[null,"Universe:  FAMILIES"]
[null,"Data Set: 2018-2022 American Community Survey 5-Year Estimates"]
[null,"Calculated B19001. HOUSEHOLD INCOME IN THE PAST 12 MONTHS (IN 2019 INFLATION-ADJUSTED DOLLARS)"]
[null,null,"Albany",null,"Bartlett",null,"Brookfield",null,"Chatham",null,"Conway",null,"Eaton",null,"Effingham",null,"Freedom",null,"Hale's Location",null,"Hart's Location",null,"Jackson",null,"Madison",null,"Moultonborough",null,"Ossipee",null,"Sandwich",null,"Tamworth",null,"Tuftonboro",null,"Wakefield",null,"Wolfeboro"]
[null," ","Estimate","Margin of Error","Estimate","Margin of Error","Estimate","Margin of Error","Estimate","Margin of Error","Estimate","Margin of Error","Estimate","Margin of Error","Estimate","Margin of Error","Estimate","Margin of Error","Estimate","Margin of Error","Estimate","Margin of Error","Estimate","Margin of Error","Estimate","Margin of Error","Estimate","Margin of Error","Estimate","Margin of Error","Estimate","Margin of Error","Estimate","Margin of Error","Estimate","Margin of Error","Estimate","Margin of Error","Estimate","Margin of Error"]
[null,"Median family income in the past 12 months",30481,2723,42798,21840,"-","**",41429,15746,30018,7172,55000,16943,50250,9667,52000,18447,83438,22578,"-","**",97500,50503,61406,27494,69545,31510,21563,11272,"-","**",29228,12982,44808,14478,52458,18031,39141,19122]
[]
[]
[]
[]
[]
[]
[]
[]
[]
[]
[]
[]
[]
[]
[]
[]
[]
[null,"B19102. NON-FAMILY INCOME IN THE PAST 12 MONTHS (IN 2017 INFLATION-ADJUSTED DOLLARS)"]
[null,"Universe:  FAMILIES"]
[null,"Data Set: 2013-2017 American Community Survey 5-Year Estimates"]
[]
[null,null,"Albany",null,"Bartlett",null,"Brookfield",null,"Chatham",null,"Conway",null,"Eaton",null,"Effingham",null,"Freedom",null,"Hale's Location",null,"Hart's Location",null,"Jackson",null,"Madison",null,"Moultonborough",null,"Ossipee",null,"Sandwich",null,"Tamworth",null,"Tuftonboro",null,"Wakefield",null,"Wolfeboro"]
[null," ","Estimate","Margin of Error","Estimate","Margin of Error","Estimate","Margin of Error","Estimate","Margin of Error","Estimate","Margin of Error","Estimate","Margin of Error","Estimate","Margin of Error","Estimate","Margin of Error","Estimate","Margin of Error","Estimate","Margin of Error","Estimate","Margin of Error","Estimate","Margin of Error","Estimate","Margin of Error","Estimate","Margin of Error","Estimate","Margin of Error","Estimate","Margin of Error","Estimate","Margin of Error","Estimate","Margin of Error","Estimate","Margin of Error"]
[null,"Total:",90,31,739,220,41,22,49,22,1514,276,74,24,196,55,179,40,17,10,9,11,181,59,331,94,451,122,886,224,204,53,449,145,248,74,559,223,925,261]
[null,"Less than $10,000",11,8,65,50,0,11,6,7,105,83,2,3,21,20,17,16,0,11,0,11,6,7,20,30,24,21,104,92,9,10,103,87,69,49,50,47,23,38]
[null,"$10,000 to $14,999",11,14,35,41,0,11,3,4,137,68,8,7,7,7,21,13,0,11,0,11,0,11,37,44,41,53,124,107,3,6,101,95,21,26,141,119,188,149]
[null,"$15,000 to $19,999",8,10,101,78,6,7,5,5,91,61,6,6,40,32,7,8,2,5,0,11,8,13,6,8,110,64,134,64,20,19,66,70,26,27,79,67,50,76]
[null,"$20,000 to $24,999",2,4,51,49,0,11,2,5,99,80,4,4,3,5,25,21,2,3,0,11,11,13,32,36,14,14,55,58,13,10,14,19,15,14,32,34,195,141]
[null,"$25,000 to $29,999",16,15,10,15,3,4,0,11,119,70,3,4,19,18,6,8,0,11,0,11,8,14,11,11,56,52,83,70,16,16,43,50,33,17,20,27,63,61]
[null,"$30,000 to $34,999",0,11,106,69,0,11,3,6,72,73,0,11,19,20,5,7,2,3,0,11,8,13,30,29,0,11,88,78,7,7,32,46,0,11,0,16,39,44]
[null,"$35,000 to $39,999",1,3,0,11,10,14,4,5,52,32,5,5,14,15,12,10,0,11,0,11,18,20,21,32,0,11,10,15,9,12,40,62,9,10,60,86,36,41]
[null,"$40,000 to $44,999",12,15,93,75,5,7,1,2,71,68,0,11,3,5,21,17,1,4,0,11,38,27,8,11,0,11,24,29,7,7,0,11,5,7,0,16,59,75]
[null,"$45,000 to $49,999",2,3,20,33,6,8,5,8,134,108,7,11,4,5,14,16,0,11,0,11,0,11,37,40,14,16,42,36,7,7,18,20,0,11,0,16,62,73]
[null,"$50,000 to $59,999",10,10,72,68,0,11,10,14,45,59,7,8,16,10,17,16,0,11,0,11,11,17,63,39,47,44,10,15,23,21,0,11,18,22,72,107,37,42]
[null,"$60,000 to $74,999",7,7,45,52,4,7,7,7,183,112,10,10,15,12,18,15,2,3,0,11,18,21,12,16,65,55,118,83,6,8,16,23,19,18,31,34,28,31]
[null,"$75,000 to $99,999",2,4,62,57,3,5,2,4,120,73,13,13,13,13,5,6,2,3,5,8,21,25,35,35,34,30,42,51,30,18,0,11,16,17,57,60,60,62]
[null,"$100,000 to $124,999",4,4,22,35,0,11,0,11,161,120,9,11,3,6,5,7,3,5,4,7,15,17,5,7,19,19,42,54,23,20,16,24,8,10,17,27,52,50]
[null,"$125,000 to $149,999",0,11,7,11,4,6,0,11,11,18,0,11,3,5,0,11,0,11,0,11,10,15,14,19,5,9,10,17,11,14,0,11,0,11,0,16,33,52]
[null,"$150,000 to $199,999",0,11,0,11,0,11,1,3,68,59,0,11,12,18,3,4,1,3,0,11,0,11,0,11,14,17,0,11,5,7,0,11,5,8,0,16,0,16]
[null,"$200,000 or more",4,4,50,58,0,11,0,11,46,36,0,11,4,6,3,5,2,3,0,11,9,14,0,11,8,13,0,11,15,21,0,11,4,7,0,16,0,16]
[]
[]
[null,"B19112. MEDIAN NON-FAMILY INCOME IN THE PAST 12 MONTHS (IN 2017 INFLATION-ADJUSTED DOLLARS)"]
[null,"Universe:  FAMILIES"]
[null,"Data Set: 2013-2017 American Community Survey 5-Year Estimates"]
[]
[null,null,"Albany",null,"Bartlett",null,"Brookfield",null,"Chatham",null,"Conway",null,"Eaton",null,"Effingham",null,"Freedom",null,"Hale's Location",null,"Hart's Location",null,"Jackson",null,"Madison",null,"Moultonborough",null,"Ossipee",null,"Sandwich",null,"Tamworth",null,"Tuftonboro",null,"Wakefield",null,"Wolfeboro"]
[null," ","Estimate","Margin of Error","Estimate","Margin of Error","Estimate","Margin of Error","Estimate","Margin of Error","Estimate","Margin of Error","Estimate","Margin of Error","Estimate","Margin of Error","Estimate","Margin of Error","Estimate","Margin of Error","Estimate","Margin of Error","Estimate","Margin of Error","Estimate","Margin of Error","Estimate","Margin of Error","Estimate","Margin of Error","Estimate","Margin of Error","Estimate","Margin of Error","Estimate","Margin of Error","Estimate","Margin of Error","Estimate","Margin of Error"]
[null,"Median family income in the past 12 months",29250,17761,40040,15028,43250,9806,47750,26445,45474,6556,58214,15670,33281,7641,37813,10088,64375,64007,"-","**",44572,22784,45034,15298,"-","**",27031,7664,55962,15915,15986,7718,22222,9986,21484,20204,25258,9392]
[]
[null,"B19102. NON-FAMILY INCOME IN THE PAST 12 MONTHS (IN 2012 INFLATION-ADJUSTED DOLLARS)"]
[null,"Universe:  FAMILIES"]
[null,"Data Set: 2008-2012 American Community Survey 5-Year Estimates"]
[]
[null,null,"Albany",null,"Bartlett",null,"Brookfield",null,"Chatham",null,"Conway",null,"Eaton",null,"Effingham",null,"Freedom",null,"Hale's Location",null,"Hart's Location",null,"Jackson",null,"Madison",null,"Moultonborough",null,"Ossipee",null,"Sandwich",null,"Tamworth",null,"Tuftonboro",null,"Wakefield",null,"Wolfeboro"]
[null," ","Estimate","Margin of Error","Estimate","Margin of Error","Estimate","Margin of Error","Estimate","Margin of Error","Estimate","Margin of Error","Estimate","Margin of Error","Estimate","Margin of Error","Estimate","Margin of Error","Estimate","Margin of Error","Estimate","Margin of Error","Estimate","Margin of Error","Estimate","Margin of Error","Estimate","Margin of Error","Estimate","Margin of Error","Estimate","Margin of Error","Estimate","Margin of Error","Estimate","Margin of Error","Estimate","Margin of Error","Estimate","Margin of Error"]
[null,"Total:",79,25,639,184,74,31,44,20,1792,307,38,18,155,49,170,41,8,9,26,19,102,46,254,99,432,119,598,145,219,47,613,143,234,78,649,215,812,205]
[null,"Less than $10,000",6,6,78,68,11,10,9,9,305,144,1,3,28,23,5,5,3,5,0,11,0,11,0,11,92,61,88,61,23,17,63,42,5,7,70,56,66,53]
[null,"$10,000 to $14,999",7,7,33,36,4,6,9,9,255,133,0,11,22,19,14,10,0,11,0,11,6,9,11,11,14,17,115,64,11,9,118,88,0,11,67,51,100,90]
[null,"$15,000 to $19,999",23,19,0,11,0,11,1,4,96,63,3,5,8,8,15,11,0,11,0,11,0,11,5,8,30,28,62,29,16,15,63,48,11,12,161,114,24,27]
[null,"$20,000 to $24,999",7,11,47,44,5,7,3,6,60,50,10,10,18,14,8,10,0,11,9,11,26,22,19,21,9,14,16,19,29,23,36,38,30,36,59,90,58,76]
[null,"$25,000 to $29,999",0,11,9,13,0,11,3,7,93,68,0,11,9,7,25,18,0,11,0,11,6,11,7,12,13,15,58,42,11,10,29,36,29,34,71,68,41,66]
[null,"$30,000 to $34,999",5,5,65,61,15,14,0,11,144,104,1,3,10,14,38,26,0,11,7,9,6,10,61,53,26,24,17,20,19,17,108,96,13,21,38,53,12,19]
[null,"$35,000 to $39,999",8,8,74,81,2,4,0,11,52,69,0,11,4,5,10,8,0,11,0,11,15,17,16,19,40,52,42,50,9,8,29,26,14,16,0,16,128,104]
[null,"$40,000 to $44,999",2,3,64,64,10,18,4,6,130,89,4,6,6,6,6,9,1,2,8,12,8,13,5,7,85,67,8,15,14,11,22,24,11,16,79,67,13,21]
[null,"$45,000 to $49,999",0,11,77,63,7,7,0,11,37,60,0,11,5,8,11,17,0,11,0,11,0,11,35,33,0,11,65,51,21,14,0,11,0,11,0,16,15,24]
[null,"$50,000 to $59,999",8,10,79,61,0,11,6,9,109,74,7,7,3,4,12,12,2,4,0,11,9,14,13,16,31,32,37,42,8,8,38,22,49,35,104,83,11,18]
[null,"$60,000 to $74,999",0,11,16,26,3,5,7,9,208,113,0,11,17,17,6,6,0,11,0,11,5,9,27,33,30,24,28,28,22,13,40,34,32,24,0,16,116,88]
[null,"$75,000 to $99,999",13,12,44,55,6,7,0,11,179,114,5,6,21,20,9,9,0,11,2,3,0,11,4,6,20,23,33,30,18,10,23,36,18,21,0,16,145,87]
[null,"$100,000 to $124,999",0,11,0,11,7,9,0,11,108,87,0,11,4,6,11,13,1,2,0,11,0,11,10,12,21,28,10,16,2,4,0,11,3,6,0,16,22,25]
[null,"$125,000 to $149,999",0,11,0,11,0,11,0,11,0,18,1,3,0,11,0,11,1,4,0,11,0,11,16,16,11,17,9,14,6,7,0,11,0,11,0,16,0,16]
[null,"$150,000 to $199,999",0,11,43,50,0,11,0,11,16,26,0,11,0,11,0,11,0,11,0,11,0,11,11,12,10,16,10,15,7,7,0,11,12,13,0,16,46,74]
[null,"$200,000 or more",0,11,10,14,4,7,2,4,0,18,6,10,0,11,0,11,0,11,0,11,21,19,14,21,0,11,0,11,3,5,44,50,7,10,0,16,15,24]
[null,"$200,000 or more"]
[]
[]
[null,"B19112. MEDIAN NON-FAMILY INCOME IN THE PAST 12 MONTHS (IN 2012 INFLATION-ADJUSTED DOLLARS)"]
[null,"Universe:  FAMILIES"]
[null,"Data Set: 2008-2012 American Community Survey 5-Year Estimates"]
[null,null,"Albany",null,"Bartlett",null,"Brookfield",null,"Chatham",null,"Conway",null,"Eaton",null,"Effingham",null,"Freedom",null,"Hale's Location",null,"Hart's Location",null,"Jackson",null,"Madison",null,"Moultonborough",null,"Ossipee",null,"Sandwich",null,"Tamworth",null,"Tuftonboro",null,"Wakefield",null,"Wolfeboro"]
[null,null,"Estimate","Margin of Error","Estimate","Margin of Error","Estimate","Margin of Error","Estimate","Margin of Error","Estimate","Margin of Error","Estimate","Margin of Error","Estimate","Margin of Error","Estimate","Margin of Error","Estimate","Margin of Error","Estimate","Margin of Error","Estimate","Margin of Error","Estimate","Margin of Error","Estimate","Margin of Error","Estimate","Margin of Error","Estimate","Margin of Error","Estimate","Margin of Error","Estimate","Margin of Error","Estimate","Margin of Error","Estimate","Margin of Error"]
[null," ",21250,16797,40614,5190,41250,17325,25000,22423,33417,6396,48750,25703,25625,11699,32500,2802,50000,59846,31429,13996,36944,9295,45288,16048,37500,6275,28276,10490,35208,10765,27284,9527,50303,24003,23623,8555,38631,14419]
[null,"Median family income in the past 12 months",19792,19078,40263,8967,36667,19759,26875,24223,29350,10679,56667,14513,30417,12095,34773,9487,54167,91981,31500,12185,35500,9951,32314,14675,33942,6760,28819,6494,35000,9630,26250,7196,50000,17988,23567,5781,35224,6146]

{"sheet":"ACS_Table_B19049","index":41,"n_rows":56,"n_cols":40,"rows_kept":56,"cut":false,"hidden":true,"merged":[]}
[null,"B19049. MEDIAN HOUSEHOLD INCOME IN THE PAST 12 MONTHS (IN 2022 INFLATION-ADJUSTED DOLLARS) BY AGE OF HOUSEHOLDER "]
[null,"Universe:  HOUSEHOLDS"]
[null,"Data Set: 2018-2022 American Community Survey 5-Year Estimates"]
[]
[null,null,"Albany",null,"Bartlett",null,"Brookfield",null,"Chatham",null,"Conway",null,"Eaton",null,"Effingham",null,"Freedom",null,"Hale's Location",null,"Hart's Location",null,"Jackson",null,"Madison",null,"Moultonborough",null,"Ossipee",null,"Sandwich",null,"Tamworth",null,"Tuftonboro",null,"Wakefield",null,"Wolfeboro"]
[null," ","Estimate","Margin of Error","Estimate","Margin of Error","Estimate","Margin of Error","Estimate","Margin of Error","Estimate","Margin of Error","Estimate","Margin of Error","Estimate","Margin of Error","Estimate","Margin of Error","Estimate","Margin of Error","Estimate","Margin of Error","Estimate","Margin of Error","Estimate","Margin of Error","Estimate","Margin of Error","Estimate","Margin of Error","Estimate","Margin of Error","Estimate","Margin of Error","Estimate","Margin of Error","Estimate","Margin of Error","Estimate","Margin of Error"]
[null,"Median household income in the past 12 months"]
[null,"Total:",66607,12114,55833,12790,89286,21649,76250,12689,59271,10673,67813,15734,83021,23560,74167,19636,84313,58091,"-","**",94219,36192,101333,15380,95020,16395,69659,7668,124833,22999,61094,20828,82837,9931,86573,22930,75783,15064]
[null,"Householder under 25 years","-","**","-","**","-","**","-","**","-","**","-","**","-","**","-","**","-","**","-","**","-","**","-","**","-","**","-","**","-","**","-","**","-","**","-","**","-","**"]
[null,"Householder 25 to 44 years",70833,22338,"-","**",108750,23296,"-","**",84193,15775,93750,40160,119375,56259,132222,84743,"-","**","-","**",101010,22594,123083,59288,82692,36261,88589,38289,98438,16006,58393,25350,128750,54222,103839,41650,121396,26902]
[null,"Householder 45 to 64 years",67765,27092,68529,60298,110625,25624,76250,23617,72154,16461,56071,26724,71667,28160,87250,44073,"250,000+","***",74861,73903,78333,75006,105074,23780,135965,32592,70997,7377,124583,9353,76410,17848,95341,21207,123695,32416,76161,21951]
[null,"Householder 65 years and over",67000,32920,54782,4740,66250,16741,76607,19013,39212,13513,73750,14005,55000,19114,65417,14673,"-","**",36042,3806,107847,71371,86719,12320,75640,20117,53355,21874,138125,99392,70598,44929,72232,16807,56339,19784,55288,15645]
[]
[]
[]
[]
[]
[]
[]
[]
[]
[]
[]
[]
[]
[]
[]
[]
[]
[null,"B19049. MEDIAN HOUSEHOLD INCOME IN THE PAST 12 MONTHS (IN 2017 INFLATION-ADJUSTED DOLLARS) BY AGE OF HOUSEHOLDER "]
[null,"Universe:  HOUSEHOLDS"]
[null,"Data Set: 2013-2017 American Community Survey 5-Year Estimates"]
[]
[null,null,"Albany",null,"Bartlett",null,"Brookfield",null,"Chatham",null,"Conway",null,"Eaton",null,"Effingham",null,"Freedom",null,"Hale's Location",null,"Hart's Location",null,"Jackson",null,"Madison",null,"Moultonborough",null,"Ossipee",null,"Sandwich",null,"Tamworth",null,"Tuftonboro",null,"Wakefield",null,"Wolfeboro"]
[null," ","Estimate","Margin of Error","Estimate","Margin of Error","Estimate","Margin of Error","Estimate","Margin of Error","Estimate","Margin of Error","Estimate","Margin of Error","Estimate","Margin of Error","Estimate","Margin of Error","Estimate","Margin of Error","Estimate","Margin of Error","Estimate","Margin of Error","Estimate","Margin of Error","Estimate","Margin of Error","Estimate","Margin of Error","Estimate","Margin of Error","Estimate","Margin of Error","Estimate","Margin of Error","Estimate","Margin of Error","Estimate","Margin of Error"]
[null,"Median household income in the past 12 months"]
[null,"Total:",58750,16561,50250,11453,82045,11949,60556,9632,59510,6241,70855,4612,50000,9434,59330,8881,67917,18034,72000,19061,62875,20246,59675,4776,74625,8454,47500,12281,63583,15436,52963,9865,57426,9725,56291,10565,50907,13342]
[null,"Householder under 25 years","-","**","-","**","-","**","-","**",60515,21768,"-","**","-","**","-","**","-","**","-","**","-","**","-","**","-","**","-","**","-","**","-","**","-","**","-","**","-","**"]
[null,"Householder 25 to 44 years",76250,46042,61330,31348,126563,43331,57188,13019,61127,4748,58571,17102,48250,25211,81042,14578,"-","**","-","**",81146,38107,63036,20735,72167,17775,79464,26086,82188,42442,"-","**",49145,21876,44488,15663,"-","**"]
[null,"Householder 45 to 64 years",66875,18129,55194,11095,82083,15367,71667,18445,63571,20063,71875,11781,66250,12858,58864,11192,"-","**",75250,10057,63250,52745,61758,20435,85063,20310,50993,29880,58250,17515,54398,9624,69345,24125,69034,7842,62411,38719]
[null,"Householder 65 years and over",37500,14228,42188,17440,52188,12075,45000,14035,49423,9255,71071,13381,39444,15403,57574,22536,63750,10438,"-","**",58021,15501,45227,20728,63512,8795,32110,14197,63594,26746,50750,31087,55517,7681,54028,13400,46619,13503]
[]
[]
[]
[null,"B19049. MEDIAN HOUSEHOLD INCOME IN THE PAST 12 MONTHS (IN 2012 INFLATION-ADJUSTED DOLLARS) BY AGE OF HOUSEHOLDER "]
[null,"Universe:  HOUSEHOLDS"]
[null,"Data Set: 2008-2012 American Community Survey 5-Year Estimates"]
[]
[null,null,"Albany",null,"Bartlett",null,"Brookfield",null,"Chatham",null,"Conway",null,"Eaton",null,"Effingham",null,"Freedom",null,"Hale's Location",null,"Hart's Location",null,"Jackson",null,"Madison",null,"Moultonborough",null,"Ossipee",null,"Sandwich",null,"Tamworth",null,"Tuftonboro",null,"Wakefield",null,"Wolfeboro"]
[null," ","Estimate","Margin of Error","Estimate","Margin of Error","Estimate","Margin of Error","Estimate","Margin of Error","Estimate","Margin of Error","Estimate","Margin of Error","Estimate","Margin of Error","Estimate","Margin of Error","Estimate","Margin of Error","Estimate","Margin of Error","Estimate","Margin of Error","Estimate","Margin of Error","Estimate","Margin of Error","Estimate","Margin of Error","Estimate","Margin of Error","Estimate","Margin of Error","Estimate","Margin of Error","Estimate","Margin of Error","Estimate","Margin of Error"]
[null,"Median household income in the past 12 months"]
[null,"Total:",62000,11840,45320,5688,67604,16531,49167,14202,45395,5914,56250,7351,48542,5803,42188,7568,64375,18462,31786,15760,67750,10230,58000,13715,68022,4567,46049,6533,56364,6594,41128,10539,60143,8597,45323,5587,67533,6552]
[null,"Householder under 25 years","-","**",28438,47406,"-","**",50500,76577,62969,101835,"-","**",103281,60377,"-","**","-","**","-","**","-","**","-","**","-","**","-","**","-","**",32266,54338,"-","**",9779,6297,11875,25308]
[null,"Householder 25 to 44 years",72344,12683,48826,40702,82500,22865,72639,28119,44726,11958,63750,98838,53250,6094,35556,3865,"-","**",32250,52826,68750,11152,48000,28676,68958,26373,45947,15245,50938,7678,61625,20178,52256,25126,52606,13148,76656,34420]
[null,"Householder 45 to 64 years",58750,30011,44038,8612,68875,23832,41250,54457,47824,8508,69375,21289,45000,10420,49167,8882,60625,18357,40156,32541,85500,58352,61838,25134,69818,6358,49265,9647,68750,13203,41250,19243,60244,7682,49315,15101,71779,13570]
[null,"Householder 65 years and over",44464,33057,45491,6643,48750,37208,29250,23259,41012,8552,45500,4842,43750,20205,40625,8187,65000,30461,26250,12902,62727,18305,42813,25211,50357,17479,31548,20859,49167,9829,30208,11844,61250,18311,35298,14372,48600,13879]

{"sheet":"ACS_Table_B25118","index":42,"n_rows":191,"n_cols":40,"rows_kept":191,"cut":false,"hidden":true,"merged":[]}
[null,"B25118. TENURE BY HOUSEHOLD INCOME IN THE PAST 12 MONTHS (IN 2022 INFLATION-ADJUSTED DOLLARS) "]
[null,"Universe:  OCCUPIED HOUSING UNITS"]
[null,"Data Set: 2018-2022 American Community Survey 5-Year Estimates"]
[]
[null,null,"Albany",null,"Bartlett",null,"Brookfield",null,"Chatham",null,"Conway",null,"Eaton",null,"Effingham",null,"Freedom",null,"Hale's Location",null,"Hart's Location",null,"Jackson",null,"Madison",null,"Moultonborough",null,"Ossipee",null,"Sandwich",null,"Tamworth",null,"Tuftonboro",null,"Wakefield",null,"Wolfeboro"]
[null," ","Estimate","Margin of Error","Estimate","Margin of Error","Estimate","Margin of Error","Estimate","Margin of Error","Estimate","Margin of Error","Estimate","Margin of Error","Estimate","Margin of Error","Estimate","Margin of Error","Estimate","Margin of Error","Estimate","Margin of Error","Estimate","Margin of Error","Estimate","Margin of Error","Estimate","Margin of Error","Estimate","Margin of Error","Estimate","Margin of Error","Estimate","Margin of Error","Estimate","Margin of Error","Estimate","Margin of Error","Estimate","Margin of Error"]
[null,"Total:",343,91,1722,223,232,58,160,41,4468,345,158,37,549,65,576,78,105,41,43,32,500,96,978,100,2111,184,1677,153,930,170,987,167,1113,87,2205,225,2787,260]
[null,"Owner occupied:",252,56,1376,221,231,57,141,36,3119,350,123,29,477,55,543,72,85,31,43,32,385,96,839,100,1880,213,1383,151,857,171,646,161,1005,95,2100,207,2165,270]
[null,"Less than $5,000",5,5,0,12,2,4,0,12,117,120,1,3,17,17,12,13,5,8,0,12,40,59,25,24,14,17,40,55,8,9,0,12,14,21,0,17,121,119]
[null,"$5,000 to $9,999",20,23,0,12,0,12,5,7,52,60,0,12,8,8,6,8,0,12,0,12,0,12,7,9,0,12,13,25,0,12,0,12,0,12,0,17,23,29]
[null,"$10,000 to $14,999",3,4,8,16,4,5,0,12,136,120,6,7,14,16,0,12,0,12,0,12,0,12,39,27,0,12,66,46,6,8,43,33,39,30,83,78,92,100]
[null,"$15,000 to $19,999",7,11,0,12,12,13,0,12,106,98,8,8,22,26,7,8,3,4,0,12,8,12,0,12,35,31,31,46,32,19,34,55,17,17,105,117,47,72]
[null,"$20,000 to $24,999",2,4,35,53,4,6,0,12,176,117,0,12,8,10,27,22,2,4,0,12,20,19,6,6,8,12,66,48,16,14,13,20,7,11,18,27,52,44]
[null,"$25,000 to $34,999",24,19,219,117,20,24,6,5,295,185,3,5,22,14,54,30,9,9,4,7,10,16,35,26,92,60,58,50,15,10,66,61,121,62,74,54,240,151]
[null,"$35,000 to $49,999",20,16,182,131,17,14,18,11,322,141,8,6,42,21,62,27,3,4,18,24,15,17,38,22,314,145,96,62,50,33,43,39,78,41,187,120,294,178]
[null,"$50,000 to $74,999",53,28,267,174,44,24,28,17,434,162,32,16,83,28,88,40,14,11,10,17,36,29,77,46,231,98,330,109,81,29,88,57,154,65,399,148,208,98]
[null,"$75,000 to $99,999",41,24,80,63,26,12,28,17,580,254,22,13,66,33,57,21,4,5,3,5,35,26,189,74,322,119,124,85,118,65,118,76,168,80,251,123,224,99]
[null,"$100,000 to $149,999",36,19,196,129,53,20,31,14,454,133,17,13,98,32,135,41,9,9,8,11,147,65,178,52,346,109,310,78,167,59,163,89,245,104,676,250,466,184]
[null,"$150,000 or more",41,19,389,158,49,22,25,13,447,153,26,12,97,44,95,28,36,22,0,12,74,35,245,84,518,114,249,102,364,172,78,76,162,73,307,134,398,117]
[null,"Renter occupied:",91,72,346,180,1,5,19,16,1349,254,35,22,72,40,33,48,20,31,0,12,115,59,139,66,231,101,294,118,73,32,341,136,108,67,105,98,622,231]
[null,"Less than $5,000",0,12,0,12,0,12,0,12,87,71,0,12,0,12,0,12,0,12,0,12,0,12,0,12,0,12,13,24,0,12,0,12,0,12,0,17,0,17]
[null,"$5,000 to $9,999",12,13,42,68,0,12,0,12,45,73,0,12,0,12,0,12,0,12,0,12,8,14,0,12,13,17,0,12,0,12,0,12,0,12,0,17,0,17]
[null,"$10,000 to $14,999",2,4,0,12,0,12,0,12,207,172,6,10,3,6,33,48,0,12,0,12,0,12,0,12,0,12,39,49,5,6,57,62,0,12,0,17,81,103]
[null,"$15,000 to $19,999",0,12,39,54,1,5,0,12,60,64,0,12,8,8,0,12,0,12,0,12,0,12,0,12,9,14,26,42,0,12,0,12,0,12,0,17,12,19]
[null,"$20,000 to $24,999",0,12,37,49,0,12,0,12,149,109,1,2,4,5,0,12,0,12,0,12,0,12,28,34,0,12,0,12,0,12,0,12,0,12,0,17,32,38]
[null,"$25,000 to $34,999",34,36,38,59,0,12,13,16,60,51,6,10,5,8,0,12,0,12,0,12,0,12,3,5,0,12,56,60,7,7,65,63,0,12,50,80,61,56]
[null,"$35,000 to $49,999",5,6,95,112,0,12,5,7,181,118,11,14,6,8,0,12,0,12,0,12,62,60,1,4,51,47,27,28,9,13,32,45,13,21,14,22,33,40]
[null,"$50,000 to $74,999",33,60,57,54,0,12,1,2,190,118,7,8,23,28,0,12,0,12,0,12,0,12,33,25,24,25,88,76,5,7,96,74,19,22,17,22,59,77]
[null,"$75,000 to $99,999",2,3,0,12,0,12,0,12,244,136,2,5,12,19,0,12,20,31,0,12,21,24,0,12,60,55,0,12,33,25,91,59,41,54,24,41,115,89]
[null,"$100,000 to $149,999",0,12,38,58,0,12,0,12,87,82,2,3,7,7,0,12,0,12,0,12,0,12,42,43,6,11,27,12,3,6,0,12,18,29,0,17,204,179]
[null,"$150,000 or more",3,5,0,12,0,12,0,12,39,54,0,12,4,5,0,12,0,12,0,12,24,24,32,22,68,66,18,36,11,11,0,12,17,16,0,17,25,34]
[]
[]
[]
[]
[]
[null,{"$f":"\"Calculated \"&B1","v":"Calculated B25118. TENURE BY HOUSEHOLD INCOME IN THE PAST 12 MONTHS (IN 2022 INFLATION-ADJUSTED DOLLARS) "}]
[null,"Universe:  OCCUPIED HOUSING UNITS"]
[null,{"$f":"B3","v":"Data Set: 2018-2022 American Community Survey 5-Year Estimates"}]
[null,null,"Albany",null,"Bartlett",null,"Brookfield",null,"Chatham",null,"Conway",null,"Eaton",null,"Effingham",null,"Freedom",null,"Hale's Location",null,"Hart's Location",null,"Jackson",null,"Madison",null,"Moultonborough",null,"Ossipee",null,"Sandwich",null,"Tamworth",null,"Tuftonboro",null,"Wakefield",null,"Wolfeboro"]
[null," ","Estimate","Margin of Error","Estimate","Margin of Error","Estimate","Margin of Error","Estimate","Margin of Error","Estimate","Margin of Error","Estimate","Margin of Error","Estimate","Margin of Error","Estimate","Margin of Error","Estimate","Margin of Error","Estimate","Margin of Error","Estimate","Margin of Error","Estimate","Margin of Error","Estimate","Margin of Error","Estimate","Margin of Error","Estimate","Margin of Error","Estimate","Margin of Error","Estimate","Margin of Error","Estimate","Margin of Error","Estimate","Margin of Error"]
[null,{"$f":"B7","v":"Total:"},343,91,1722,223,232,58,160,41,4468,345,158,37,549,65,576,78,105,41,43,32,500,96,{"$f":"Y7","v":978},100,2111,184,1677,153,930,170,987,167,1113,87,2205,225,2787,260]
[null,"Less than $5,000",{"$f":"C9+C21","v":5},{"$f":"SQRT((D9^2)+(D21^2))","v":13},{"$f":"E9+E21","v":0},{"$f":"SQRT((F9^2)+(F21^2))","v":16.970562748477139},{"$f":"G9+G21","v":2},{"$f":"SQRT((H9^2)+(H21^2))","v":12.649110640673518},{"$f":"I9+I21","v":0},{"$f":"SQRT((J9^2)+(J21^2))","v":16.970562748477139},{"$f":"K9+K21","v":204},{"$f":"SQRT((L9^2)+(L21^2))","v":139.43098651304163},{"$f":"M9+M21","v":1},{"$f":"SQRT((N9^2)+(N21^2))","v":12.369316876852981},{"$f":"O9+O21","v":17},{"$f":"SQRT((P9^2)+(P21^2))","v":20.808652046684813},{"$f":"Q9+Q21","v":12},{"$f":"SQRT((R9^2)+(R21^2))","v":17.691806012954132},{"$f":"S9+S21","v":5},{"$f":"SQRT((T9^2)+(T21^2))","v":14.422205101855956},{"$f":"U9+U21","v":0},{"$f":"SQRT((V9^2)+(V21^2))","v":16.970562748477139},{"$f":"W9+W21","v":40},{"$f":"SQRT((X9^2)+(X21^2))","v":60.207972893961475},{"$f":"Y9+Y21","v":25},{"$f":"SQRT((Z9^2)+(Z21^2))","v":26.832815729997478},{"$f":"AA9+AA21","v":14},{"$f":"SQRT((AB9^2)+(AB21^2))","v":20.808652046684813},{"$f":"AC9+AC21","v":53},{"$f":"SQRT((AD9^2)+(AD21^2))","v":60.00833275470999},{"$f":"AE9+AE21","v":8},{"$f":"SQRT((AF9^2)+(AF21^2))","v":15},{"$f":"AG9+AG21","v":0},{"$f":"SQRT((AH9^2)+(AH21^2))","v":16.970562748477139},{"$f":"AI9+AI21","v":14},{"$f":"SQRT((AJ9^2)+(AJ21^2))","v":24.186773244895647},{"$f":"AK9+AK21","v":0},{"$f":"SQRT((AL9^2)+(AL21^2))","v":24.041630560342615},{"$f":"AM9+AM21","v":121},{"$f":"SQRT((AN9^2)+(AN21^2))","v":120.20815280171308}]
[null,"$5,000 to $9,999",{"$f":"C10+C22","v":32},{"$f":"SQRT((D10^2)+(D22^2))","v":26.419689627245813},{"$f":"E10+E22","v":42},69.050706006528273,{"$f":"G10+G22","v":0},16.970562748477139,{"$f":"I10+I22","v":5},13.892443989449804,{"$f":"K10+K22","v":97},94.493386011932074,{"$f":"M10+M22","v":0},16.970562748477139,{"$f":"O10+O22","v":8},14.422205101855956,{"$f":"Q10+Q22","v":6},14.422205101855956,0,16.970562748477139,0,16.970562748477139,8,18.439088914585774,7,15,13,20.808652046684813,13,27.730849247724095,0,16.970562748477139,0,16.970562748477139,0,16.970562748477139,0,24.041630560342615,23,33.61547262794322]
[null,"$10,000 to $14,999",{"$f":"C11+C23","v":5},5.6568542494923806,{"$f":"E11+E23","v":8},20,{"$f":"G11+G23","v":4},13,{"$f":"I11+I23","v":0},16.970562748477139,{"$f":"K11+K23","v":343},209.72362766269327,{"$f":"M11+M23","v":12},12.206555615733702,{"$f":"O11+O23","v":17},17.088007490635061,{"$f":"Q11+Q23","v":33},49.477267507411923,0,16.970562748477139,0,16.970562748477139,0,16.970562748477139,39,29.546573405388315,0,16.970562748477139,105,67.208630398186216,11,10,100,70.235318750611498,39,32.310988842807021,83,79.831071645068121,173,143.55835050598765]
[null,"$15,000 to $19,999",{"$f":"C12+C24","v":7},16.278820596099706,39,55.317266743757322,13,13.928388277184119,0,16.970562748477139,166,117.04699910719626,8,14.422205101855956,30,27.202941017470888,7,14.422205101855956,3,12.649110640673518,0,16.970562748477139,8,16.970562748477139,0,16.970562748477139,44,34.014702703389901,57,62.289646009589745,32,22.472205054244231,34,56.293871780150276,17,20.808652046684813,105,118.2285921425101,59,74.464756764525859]
[null,"$20,000 to $24,999",2,12.649110640673518,72,72.180329730474355,4,13.416407864998739,0,16.970562748477139,325,159.90622251807463,1,12.165525060596439,12,11.180339887498949,27,25.059928172283335,2,12.649110640673518,0,16.970562748477139,20,22.472205054244231,34,34.525353003264136,8,16.970562748477139,66,49.477267507411923,16,18.439088914585774,13,23.323807579381203,7,16.278820596099706,18,31.906112267087632,84,58.137767414994535]
[null,"$25,000 to $34,999",58,40.70626487409524,257,131.03434664239754,20,26.832815729997478,19,16.763054614240211,355,191.90101615155663,9,11.180339887498949,27,16.124515496597098,54,32.310988842807021,9,15,4,13.892443989449804,10,20,38,26.476404589747453,92,61.188234163113421,114,78.10249675906654,22,12.206555615733702,131,87.692645073575008,121,63.150613615387776,124,96.519428096109237,301,161.04968177553161]
[null,"$35,000 to $49,999",25,17.088007490635061,277,172.35138525698017,17,18.439088914585774,23,13.038404810405298,503,183.86136081297778,19,15.231546211727817,48,22.472205054244231,62,29.546573405388315,3,12.649110640673518,18,26.832815729997478,77,62.361847310675458,39,22.360679774997898,365,152.42703172337903,123,68.029405406779802,59,35.468295701936398,75,59.548299723837623,91,46.065171225124082,201,122,327,182.43903091169938]
[null,"$50,000 to $74,999",86,66.211781428987393,324,182.18671740826773,44,26.832815729997478,29,17.11724276862369,624,200.4195599236761,39,17.888543819998318,106,39.597979746446661,88,41.761226035642203,14,16.278820596099706,10,20.808652046684813,36,31.384709652950431,110,52.354560450833695,255,101.13851887386922,418,132.87964479181903,86,29.832867780352597,184,93.407708461347028,173,68.622153857191051,416,149.6262009141447,267,124.63145670335399]
[null,"$75,000 to $99,999",43,24.186773244895647,80,64.132674979295857,26,16.970562748477139,28,20.808652046684813,824,288.11803136909015,24,13.928388277184119,78,38.078865529319543,57,24.186773244895647,24,31.400636936215164,3,13,56,35.383612025908263,189,74.966659255965254,382,131.09538512091109,124,85.84287972802403,151,69.641941385920603,209,96.213304693269947,209,96.519428096109237,275,129.65338406690356,339,133.12400234367956]
[null,"$100,000 to $149,999",36,22.472205054244231,234,141.43903280212291,53,23.323807579381203,31,18.439088914585774,541,156.24659996300718,19,13.341664064126334,105,32.756678708318397,135,42.720018726587654,9,15,8,16.278820596099706,147,66.098411478642959,220,67.475921631349351,352,109.55363982999378,337,78.917678627795439,170,59.304300012730948,163,89.805345052507874,263,107.96758772891057,676,250.57733337235433,670,256.70410982296329]
[null,"$150,000 or more",44,19.646882704388499,{"$f":"E19+E31","v":389},158.45504094221806,49,25.059928172283335,25,17.691806012954132,486,162.24980739587951,26,16.970562748477139,101,44.283179650969061,95,30.463092423455635,36,25.059928172283335,0,16.970562748477139,98,42.43819034784589,277,86.833173384369644,586,131.7269904006009,267,108.16653826391968,375,172.35138525698017,78,76.941536246685374,179,74.732857566133518,307,135.07405376311175,423,121.8400590938793]
[]
[]
[]
[]
[]
[]
[]
[]
[]
[]
[]
[]
[]
[]
[]
[]
[null,"B25118. TENURE BY HOUSEHOLD INCOME IN THE PAST 12 MONTHS (IN 2017 INFLATION-ADJUSTED DOLLARS) "]
[null,"Universe:  OCCUPIED HOUSING UNITS"]
[null,"Data Set: 2013-2017 American Community Survey 5-Year Estimates"]
[]
[null,null,"Albany",null,"Bartlett",null,"Brookfield",null,"Chatham",null,"Conway",null,"Eaton",null,"Effingham",null,"Freedom",null,"Hale's Location",null,"Hart's Location",null,"Jackson",null,"Madison",null,"Moultonborough",null,"Ossipee",null,"Sandwich",null,"Tamworth",null,"Tuftonboro",null,"Wakefield",null,"Wolfeboro"]
[null," ","Estimate","Margin of Error","Estimate","Margin of Error","Estimate","Margin of Error","Estimate","Margin of Error","Estimate","Margin of Error","Estimate","Margin of Error","Estimate","Margin of Error","Estimate","Margin of Error","Estimate","Margin of Error","Estimate","Margin of Error","Estimate","Margin of Error","Estimate","Margin of Error","Estimate","Margin of Error","Estimate","Margin of Error","Estimate","Margin of Error","Estimate","Margin of Error","Estimate","Margin of Error","Estimate","Margin of Error","Estimate","Margin of Error"]
[null,"Total:",312,44,1408,164,326,77,142,36,4346,208,169,38,602,72,587,74,79,24,26,16,455,89,1069,85,1758,102,1962,185,617,73,1378,137,966,103,2066,185,2935,210]
[null,"Owner occupied:",270,43,972,176,290,65,124,27,3210,230,139,33,495,59,502,65,79,24,18,14,365,82,894,105,1498,124,1580,173,513,73,937,124,841,100,1841,183,2302,218]
[null,"Less than $5,000",2,3,0,11,3,5,5,6,0,18,2,3,9,8,12,18,0,11,0,11,6,7,13,15,22,23,12,19,0,11,0,11,45,33,50,47,23,38]
[null,"$5,000 to $9,999",9,8,21,34,0,11,1,4,53,63,0,11,16,19,20,17,0,11,0,11,13,24,20,30,0,11,36,58,8,7,14,21,40,39,0,16,0,16]
[null,"$10,000 to $14,999",19,15,35,41,2,3,3,4,82,69,5,5,8,8,12,10,0,11,0,11,0,11,49,46,11,14,135,106,0,11,31,31,21,26,112,107,67,87]
[null,"$15,000 to $19,999",18,16,30,45,6,7,4,4,77,52,6,6,28,22,7,8,2,5,4,6,9,13,17,14,97,64,124,61,23,19,39,63,44,34,79,67,33,38]
[null,"$20,000 to $24,999",16,15,41,46,9,14,2,5,165,89,7,7,15,11,34,23,6,6,0,11,11,13,51,39,57,57,83,52,23,21,56,67,27,19,98,88,139,117]
[null,"$25,000 to $34,999",13,11,134,78,11,11,7,10,316,122,5,5,59,23,37,22,6,5,2,3,20,19,40,31,53,43,187,107,37,21,124,85,43,20,128,102,346,148]
[null,"$35,000 to $49,999",34,18,151,80,41,25,21,13,404,148,19,14,92,31,78,33,6,6,3,6,43,30,105,55,94,45,142,60,64,31,70,70,98,49,179,117,283,145]
[null,"$50,000 to $74,999",46,19,158,89,66,28,25,14,676,209,34,18,100,33,105,32,23,12,5,6,81,42,239,78,354,112,392,125,86,32,275,116,181,60,547,190,334,127]
[null,"$75,000 to $99,999",27,14,227,90,44,26,23,11,597,206,24,15,73,27,73,23,12,7,0,11,34,27,104,45,191,69,222,109,98,27,60,62,151,48,173,83,227,106]
[null,"$100,000 to $149,999",67,28,101,78,86,28,11,9,591,181,24,13,57,22,70,28,6,6,4,7,78,44,172,64,275,77,122,61,114,35,168,103,124,58,304,132,449,188]
[null,"$150,000 or more",19,13,74,69,22,14,22,10,249,102,13,14,38,25,54,22,18,10,0,11,70,37,84,38,344,83,125,95,60,32,100,74,67,31,171,102,401,155]
[null,"Renter occupied:",42,21,436,142,36,38,18,22,1136,254,30,14,107,48,85,32,0,11,8,9,90,48,175,56,260,93,382,138,104,43,441,148,125,64,225,101,633,207]
[null,"Less than $5,000",0,11,25,40,0,11,0,11,35,45,0,11,0,11,0,11,0,11,0,11,0,11,0,11,7,10,14,22,0,11,48,75,0,11,0,16,31,50]
[null,"$5,000 to $9,999",0,11,58,67,0,11,0,11,99,94,0,11,0,11,0,11,0,11,0,11,0,11,0,11,16,19,42,65,6,9,55,62,0,11,0,16,0,16]
[null,"$10,000 to $14,999",0,11,0,11,0,11,0,11,111,63,3,5,3,4,9,9,0,11,0,11,2,5,10,15,30,50,12,20,3,6,70,91,0,11,34,49,154,131]
[null,"$15,000 to $19,999",5,6,90,75,0,11,1,2,60,60,0,11,30,29,0,11,0,11,0,11,19,23,0,11,19,19,42,54,0,11,27,30,12,12,0,16,50,76]
[null,"$20,000 to $24,999",2,3,10,15,0,11,0,11,53,56,0,11,10,9,0,11,0,11,0,11,3,4,16,25,7,10,82,72,7,7,0,11,12,18,0,16,56,86]
[null,"$25,000 to $34,999",12,13,12,18,8,14,7,14,166,112,0,11,31,24,17,18,0,11,0,11,0,11,22,27,26,33,83,78,13,15,82,68,48,41,17,26,69,93]
[null,"$35,000 to $49,999",11,16,95,74,0,11,0,11,211,119,0,11,0,11,15,12,0,11,0,11,27,23,40,37,25,30,17,19,41,30,18,20,22,28,139,84,198,124]
[null,"$50,000 to $74,999",0,11,96,72,0,11,10,14,294,146,21,13,20,19,10,11,0,11,0,11,8,13,37,33,67,47,9,14,21,19,99,87,24,24,20,31,0,16]
[null,"$75,000 to $99,999",3,4,28,43,11,19,0,11,9,14,0,11,0,11,24,18,0,11,5,8,23,28,23,21,20,24,39,62,10,12,16,25,7,11,0,16,15,25]
[null,"$100,000 to $149,999",6,5,0,11,0,11,0,11,75,87,6,10,0,11,10,8,0,11,3,4,8,12,27,22,43,53,42,54,0,11,14,21,0,11,15,23,43,71]
[null,"$150,000 or more",3,4,22,37,17,29,0,11,23,27,0,11,13,18,0,11,0,11,0,11,0,11,0,11,0,11,0,11,3,5,12,18,0,11,0,16,17,26]
[]
[]
[]
[]
[]
[null,{"$f":"\"Calculated \"&B70","v":"Calculated B25118. TENURE BY HOUSEHOLD INCOME IN THE PAST 12 MONTHS (IN 2017 INFLATION-ADJUSTED DOLLARS) "}]
[null,"Universe:  OCCUPIED HOUSING UNITS"]
[null,{"$f":"B72","v":"Data Set: 2013-2017 American Community Survey 5-Year Estimates"}]
[null,null,"Albany",null,"Bartlett",null,"Brookfield",null,"Chatham",null,"Conway",null,"Eaton",null,"Effingham",null,"Freedom",null,"Hale's Location",null,"Hart's Location",null,"Jackson",null,"Madison",null,"Moultonborough",null,"Ossipee",null,"Sandwich",null,"Tamworth",null,"Tuftonboro",null,"Wakefield",null,"Wolfeboro"]
[null," ","Estimate","Margin of Error","Estimate","Margin of Error","Estimate","Margin of Error","Estimate","Margin of Error","Estimate","Margin of Error","Estimate","Margin of Error","Estimate","Margin of Error","Estimate","Margin of Error","Estimate","Margin of Error","Estimate","Margin of Error","Estimate","Margin of Error","Estimate","Margin of Error","Estimate","Margin of Error","Estimate","Margin of Error","Estimate","Margin of Error","Estimate","Margin of Error","Estimate","Margin of Error","Estimate","Margin of Error","Estimate","Margin of Error"]
[null,"Total:",{"$f":"C76","v":312},44,1408,164,326,77,142,36,4346,208,169,38,602,72,587,74,79,24,26,16,455,89,1069,85,1758,102,1962,185,617,73,1378,137,966,103,2066,185,2935,210]
[null,"Less than $5,000",{"$f":"C78+C90","v":2},{"$f":"SQRT((D78^2)+(D90^2))","v":11.401754250991379},{"$f":"E78+E90","v":25},{"$f":"SQRT((F78^2)+(F90^2))","v":41.484937025383083},{"$f":"G78+G90","v":3},{"$f":"SQRT((H78^2)+(H90^2))","v":12.083045973594572},{"$f":"I78+I90","v":5},{"$f":"SQRT((J78^2)+(J90^2))","v":12.529964086141668},{"$f":"K78+K90","v":35},{"$f":"SQRT((L78^2)+(L90^2))","v":48.466483264210538},{"$f":"M78+M90","v":2},{"$f":"SQRT((N78^2)+(N90^2))","v":11.401754250991379},{"$f":"O78+O90","v":9},{"$f":"SQRT((P78^2)+(P90^2))","v":13.601470508735444},{"$f":"Q78+Q90","v":12},{"$f":"SQRT((R78^2)+(R90^2))","v":21.095023109728988},{"$f":"S78+S90","v":0},{"$f":"SQRT((T78^2)+(T90^2))","v":15.556349186104045},{"$f":"U78+U90","v":0},{"$f":"SQRT((V78^2)+(V90^2))","v":15.556349186104045},{"$f":"W78+W90","v":6},{"$f":"SQRT((X78^2)+(X90^2))","v":13.038404810405298},{"$f":"Y78+Y90","v":13},{"$f":"SQRT((Z78^2)+(Z90^2))","v":18.601075237738275},{"$f":"AA78+AA90","v":29},{"$f":"SQRT((AB78^2)+(AB90^2))","v":25.079872407968907},{"$f":"AC78+AC90","v":26},{"$f":"SQRT((AD78^2)+(AD90^2))","v":29.068883707497267},{"$f":"AE78+AE90","v":0},{"$f":"SQRT((AF78^2)+(AF90^2))","v":15.556349186104045},{"$f":"AG78+AG90","v":48},{"$f":"SQRT((AH78^2)+(AH90^2))","v":75.802374632988901},{"$f":"AI78+AI90","v":45},{"$f":"SQRT((AJ78^2)+(AJ90^2))","v":34.785054261852174},{"$f":"AK78+AK90","v":50},{"$f":"SQRT((AL78^2)+(AL90^2))","v":49.648766349225639},{"$f":"AM78+AM90","v":54},{"$f":"SQRT((AN78^2)+(AN90^2))","v":62.801273872430329}]
[null,"$5,000 to $9,999",9,13.601470508735444,79,75.133215025047349,0,15.556349186104045,1,11.704699910719626,152,113.1591799192624,0,15.556349186104045,16,21.95449840010015,20,20.248456731316587,0,15.556349186104045,0,15.556349186104045,13,26.40075756488817,20,31.953090617340916,16,21.95449840010015,78,87.114866699088736,14,11.401754250991379,69,65.459911396212561,40,40.521599178709621,0,22.627416997969522,0,22.627416997969522]
[null,"$10,000 to $14,999",19,18.601075237738275,35,42.449970553582247,2,11.401754250991379,3,11.704699910719626,193,93.434469014384618,8,7.0710678118654755,11,8.9442719099991592,21,13.45362404707371,0,15.556349186104045,0,15.556349186104045,2,12.083045973594572,59,48.383881613611777,41,51.923019942988681,147,107.8702924812944,3,12.529964086141668,101,96.135321292436529,21,28.231188426986208,146,117.6860229593982,221,157.25775020646836]
[null,"$15,000 to $19,999",23,17.088007490635061,120,87.464278422679513,6,13.038404810405298,5,4.4721359549995796,137,79.39773296511683,6,12.529964086141668,58,36.400549446402593,7,13.601470508735444,2,12.083045973594572,4,12.529964086141668,28,26.419689627245813,17,17.804493814764857,116,66.760766921898067,166,81.467785044151043,23,21.95449840010015,66,69.778220097678044,56,36.055512754639892,79,68.8839603971781,83,84.970583144992005]
[null,"$20,000 to $24,999",18,15.297058540778355,51,48.383881613611777,9,17.804493814764857,2,12.083045973594572,218,105.152270541344,7,13.038404810405298,25,14.212670403551895,34,25.495097567963924,6,12.529964086141668,0,15.556349186104045,14,13.601470508735444,67,46.324939287601879,64,57.870545184921149,165,88.814413244698073,30,22.135943621178654,56,67.896980787071826,39,26.172504656604801,98,89.442719099991592,195,145.2067491544384]
[null,"$25,000 to $34,999",25,17.029386365926403,146,80.049984384758005,19,17.804493814764857,14,17.204650534085253,482,165.61400906928134,5,12.083045973594572,90,33.241540277189323,54,28.42534080710379,6,12.083045973594572,2,11.401754250991379,20,21.95449840010015,62,41.109609582188931,79,54.203320931470607,270,132.41223508422476,50,25.80697580112788,206,108.85311203635843,91,45.617978911828175,145,105.26157893552613,415,174.79416466232504]
[null,"$35,000 to $49,999",45,24.083189157584592,246,108.97706180660222,41,27.313000567495326,21,17.029386365926403,615,189.90787240133042,19,17.804493814764857,92,32.893768406797051,93,35.114099732158877,6,12.529964086141668,3,12.529964086141668,70,37.802116342871599,145,66.2872536767062,119,54.083269131959838,159,62.936475910238251,105,43.139309220245984,88,72.801098892805186,120,56.435804238089851,318,144.03124660989366,481,190.79046097748179]
[null,"$50,000 to $74,999",46,21.95449840010015,254,114.47707194019246,66,30.083217912982647,35,19.798989873223331,970,254.94509212769717,55,22.203603311174518,120,38.078865529319543,115,33.837848631377263,23,16.278820596099706,5,12.529964086141668,89,43.965895873961216,276,84.693565280958623,421,121.46192819151193,401,125.78155667664477,107,37.215588131856791,374,145,205,64.621977685614041,567,192.51233726699181,334,128.00390619039717]
[null,"$75,000 to $99,999",30,14.560219778561036,255,99.744674043279119,55,32.202484376209235,23,15.556349186104045,606,206.47518010647187,24,18.601075237738275,73,29.154759474226502,97,29.206163733020468,12,13.038404810405298,5,13.601470508735444,57,38.897300677553446,127,49.658836071740545,211,73.054773971315527,261,125.39936203984452,108,29.546573405388315,76,66.850579653433073,158,49.244289008980523,173,84.528101836016646,242,108.90821823902914]
[null,"$100,000 to $149,999",73,28.442925306655784,101,78.771822373231913,86,30.083217912982647,11,14.212670403551895,666,200.82330542046159,30,16.401219466856727,57,24.596747752497688,80,29.120439557122072,6,12.529964086141668,7,8.0622577482985491,86,45.607017003965517,199,67.675697262754525,318,93.477269964414347,164,81.467785044151043,114,36.687872655688281,182,105.11898020814318,124,59.033888572581766,319,133.98880550254935,492,200.9601950635996]
[null,"$150,000 or more",22,13.601470508735444,96,78.294316524253531,39,32.202484376209235,22,14.866068747318506,272,105.51303237041384,13,17.804493814764857,51,30.805843601498726,54,24.596747752497688,18,14.866068747318506,0,15.556349186104045,70,38.600518131237564,84,39.560080889704963,344,83.725742755737912,125,95.634721728041853,63,32.388269481403292,112,76.157731058639087,67,32.893768406797051,171,103.24727599312246,418,157.16551784663199]
[]
[]
[]
[]
[]
[]
[]
[]
[]
[]
[]
[]
[]
[]
[]
[]
[null,"B25118. TENURE BY HOUSEHOLD INCOME IN THE PAST 12 MONTHS (IN 2012 INFLATION-ADJUSTED DOLLARS) "]
[null,"Universe:  OCCUPIED HOUSING UNITS"]
[null,"Data Set: 2008-2012 American Community Survey 5-Year Estimates"]
[]
[null,null,"Albany",null,"Bartlett",null,"Brookfield",null,"Chatham",null,"Conway",null,"Eaton",null,"Effingham",null,"Freedom",null,"Hale's Location",null,"Hart's Location",null,"Jackson",null,"Madison",null,"Moultonborough",null,"Ossipee",null,"Sandwich",null,"Tamworth",null,"Tuftonboro",null,"Wakefield",null,"Wolfeboro"]
[null," ","Estimate","Margin of Error","Estimate","Margin of Error","Estimate","Margin of Error","Estimate","Margin of Error","Estimate","Margin of Error","Estimate","Margin of Error","Estimate","Margin of Error","Estimate","Margin of Error","Estimate","Margin of Error","Estimate","Margin of Error","Estimate","Margin of Error","Estimate","Margin of Error","Estimate","Margin of Error","Estimate","Margin of Error","Estimate","Margin of Error","Estimate","Margin of Error","Estimate","Margin of Error","Estimate","Margin of Error","Estimate","Margin of Error"]
[null,"Total:",338,61,1381,148,257,57,166,46,4452,262,176,34,495,68,554,65,52,13,28,19,407,80,1044,102,1793,98,1697,144,592,81,1353,138,1041,115,2216,215,2590,178]
[null,"Owner occupied:",288,61,1128,151,242,53,146,42,2834,277,156,30,434,64,482,65,52,13,7,9,334,75,853,97,1631,128,1404,150,494,70,1070,136,907,104,1991,198,2165,196]
[null,"Less than $5,000",2,4,35,43,8,8,4,6,59,65,2,3,16,13,7,7,1,3,0,11,10,18,0,11,72,56,53,39,4,5,13,19,7,10,63,43,15,24]
[null,"$5,000 to $9,999",4,4,0,11,3,5,18,24,29,29,1,3,20,21,11,9,2,4,0,11,0,11,0,11,20,25,43,48,8,9,16,19,5,7,35,40,36,40]
[null,"$10,000 to $14,999",13,10,32,35,8,8,9,9,150,79,8,9,27,19,22,14,0,11,0,11,10,11,15,13,9,14,143,75,14,11,52,43,0,11,85,57,47,47]
[null,"$15,000 to $19,999",35,27,0,11,6,11,4,6,84,64,4,6,15,14,24,15,0,11,0,11,0,11,22,19,30,28,42,26,16,15,64,47,14,13,161,114,21,24]
[null,"$20,000 to $24,999",16,25,17,26,2,4,7,8,134,106,10,10,21,14,19,12,0,11,2,3,20,18,19,21,18,21,64,38,39,29,51,43,50,38,159,108,15,24]
[null,"$25,000 to $34,999",5,6,159,82,37,25,9,11,190,122,13,12,34,16,78,33,1,2,5,8,17,19,94,62,84,48,145,86,43,22,198,102,80,51,231,139,123,80]
[null,"$35,000 to $49,999",27,16,354,132,24,13,24,14,554,146,28,16,77,23,115,38,9,7,0,11,37,24,206,70,313,122,201,83,52,20,117,61,155,62,352,126,413,144]
[null,"$50,000 to $74,999",67,34,218,88,57,30,25,15,675,214,34,17,120,39,86,29,19,12,0,11,77,40,147,65,380,106,401,110,127,36,287,80,312,95,449,152,468,148]
[null,"$75,000 to $99,999",60,34,115,76,38,19,29,20,459,174,31,15,67,29,49,21,8,7,0,11,15,12,139,54,193,80,210,73,76,27,123,71,161,71,167,82,363,139]
[null,"$100,000 to $149,999",31,19,129,83,24,14,8,12,273,119,14,10,27,16,56,24,7,8,0,11,83,39,149,59,304,99,81,47,73,25,67,39,55,34,194,84,407,158]
[null,"$150,000 or more",28,23,69,60,35,23,9,10,227,95,11,9,10,8,15,17,5,5,0,11,65,36,62,43,208,72,21,27,42,22,82,56,68,42,95,67,257,117]
[null,"Renter occupied:",50,26,253,105,15,19,20,13,1618,293,20,17,61,34,72,32,0,11,21,17,73,37,191,79,162,74,293,97,98,37,283,117,134,71,225,131,425,154]
[null,"Less than $5,000",0,11,0,11,0,11,3,5,189,121,0,11,0,11,2,4,0,11,0,11,0,11,0,11,0,11,0,11,0,11,0,11,7,12,0,16,14,23]
[null,"$5,000 to $9,999",2,4,43,51,0,11,1,2,104,70,0,11,3,5,0,11,0,11,0,11,9,16,0,11,0,11,48,61,19,17,34,27,0,11,18,27,16,27]
[null,"$10,000 to $14,999",0,11,14,23,0,11,0,11,170,118,0,11,14,19,0,11,0,11,0,11,0,11,0,11,5,9,67,62,0,11,77,83,0,11,14,21,103,97]
[null,"$15,000 to $19,999",15,17,16,24,0,11,4,6,86,72,0,11,9,15,3,5,0,11,0,11,0,11,5,9,0,11,55,45,0,11,31,34,0,11,0,16,13,21]
[null,"$20,000 to $24,999",7,11,30,38,3,5,0,11,120,96,3,5,4,5,4,7,0,11,7,11,21,21,0,11,0,11,0,11,5,7,12,19,10,13,0,16,58,76]
[null,"$25,000 to $34,999",2,3,12,19,2,4,1,4,404,194,1,3,14,15,30,21,0,11,2,3,6,11,46,42,37,32,25,31,19,19,49,48,33,40,116,115,52,70]
[null,"$35,000 to $49,999",4,6,83,61,10,18,0,11,187,117,4,6,4,5,24,23,0,11,8,12,15,12,50,40,10,16,53,49,31,23,46,69,10,15,49,61,94,97]
[null,"$50,000 to $74,999",10,12,55,57,0,11,11,10,219,112,5,6,5,8,5,7,0,11,2,4,17,16,70,51,66,53,19,22,11,14,34,36,62,51,28,44,38,36]
[null,"$75,000 to $99,999",8,9,0,11,0,11,0,11,76,67,2,4,0,11,4,6,0,11,2,3,5,8,15,24,9,15,26,40,7,9,0,11,5,8,0,16,16,32]
[null,"$100,000 to $149,999",2,4,0,11,0,11,0,11,63,81,0,11,8,15,0,11,0,11,0,11,0,11,5,8,26,32,0,11,0,11,0,11,0,11,0,16,21,25]
[null,"$150,000 or more",0,11,0,11,0,11,0,11,0,18,5,9,0,11,0,11,0,11,0,11,0,11,0,11,9,15,0,11,6,8,0,11,7,10,0,16,0,16]
[]
[]
[]
[]
[]
[null,{"$f":"\"Calculated \"&B139","v":"Calculated B25118. TENURE BY HOUSEHOLD INCOME IN THE PAST 12 MONTHS (IN 2012 INFLATION-ADJUSTED DOLLARS) "}]
[null,"Universe:  OCCUPIED HOUSING UNITS"]
[null,{"$f":"B141","v":"Data Set: 2008-2012 American Community Survey 5-Year Estimates"}]
[null,null,"Albany",null,"Bartlett",null,"Brookfield",null,"Chatham",null,"Conway",null,"Eaton",null,"Effingham",null,"Freedom",null,"Hale's Location",null,"Hart's Location",null,"Jackson",null,"Madison",null,"Moultonborough",null,"Ossipee",null,"Sandwich",null,"Tamworth",null,"Tuftonboro",null,"Wakefield",null,"Wolfeboro"]
[null," ","Estimate","Margin of Error","Estimate","Margin of Error","Estimate","Margin of Error","Estimate","Margin of Error","Estimate","Margin of Error","Estimate","Margin of Error","Estimate","Margin of Error","Estimate","Margin of Error","Estimate","Margin of Error","Estimate","Margin of Error","Estimate","Margin of Error","Estimate","Margin of Error","Estimate","Margin of Error","Estimate","Margin of Error","Estimate","Margin of Error","Estimate","Margin of Error","Estimate","Margin of Error","Estimate","Margin of Error","Estimate","Margin of Error"]
[null,"Total:",{"$f":"C145","v":338},61,1381,148,257,57,166,46,4452,262,176,34,495,68,554,65,52,13,28,19,407,80,1044,102,1793,98,1697,144,592,81,1353,138,1041,115,2216,215,2590,178]
[null,"Less than $5,000",{"$f":"C147+C159","v":2},{"$f":"SQRT((D147^2)+(D159^2))","v":11.704699910719626},{"$f":"E147+E159","v":35},{"$f":"SQRT((F147^2)+(F159^2))","v":44.384682042344295},{"$f":"G147+G159","v":8},{"$f":"SQRT((H147^2)+(H159^2))","v":13.601470508735444},{"$f":"I147+I159","v":7},{"$f":"SQRT((J147^2)+(J159^2))","v":7.810249675906654},{"$f":"K147+K159","v":248},{"$f":"SQRT((L147^2)+(L159^2))","v":137.35355838128112},{"$f":"M147+M159","v":2},{"$f":"SQRT((N147^2)+(N159^2))","v":11.401754250991379},{"$f":"O147+O159","v":16},{"$f":"SQRT((P147^2)+(P159^2))","v":17.029386365926403},{"$f":"Q147+Q159","v":9},{"$f":"SQRT((R147^2)+(R159^2))","v":8.0622577482985491},{"$f":"S147+S159","v":1},{"$f":"SQRT((T147^2)+(T159^2))","v":11.401754250991379},{"$f":"U147+U159","v":0},{"$f":"SQRT((V147^2)+(V159^2))","v":15.556349186104045},{"$f":"W147+W159","v":10},{"$f":"SQRT((X147^2)+(X159^2))","v":21.095023109728988},{"$f":"Y147+Y159","v":0},{"$f":"SQRT((Z147^2)+(Z159^2))","v":15.556349186104045},{"$f":"AA147+AA159","v":72},{"$f":"SQRT((AB147^2)+(AB159^2))","v":57.070132293521098},{"$f":"AC147+AC159","v":53},{"$f":"SQRT((AD147^2)+(AD159^2))","v":40.521599178709621},{"$f":"AE147+AE159","v":4},{"$f":"SQRT((AF147^2)+(AF159^2))","v":12.083045973594572},{"$f":"AG147+AG159","v":13},{"$f":"SQRT((AH147^2)+(AH159^2))","v":21.95449840010015},{"$f":"AI147+AI159","v":14},{"$f":"SQRT((AJ147^2)+(AJ159^2))","v":15.620499351813308},{"$f":"AK147+AK159","v":63},{"$f":"SQRT((AL147^2)+(AL159^2))","v":45.880278987817846},{"$f":"AM147+AM159","v":29},{"$f":"SQRT((AN147^2)+(AN159^2))","v":33.241540277189323}]
[null,"$5,000 to $9,999",6,5.6568542494923806,43,52.172789842982326,3,12.083045973594572,19,24.083189157584592,133,75.769386958058462,1,11.401754250991379,23,21.587033144922902,11,14.212670403551895,2,11.704699910719626,0,15.556349186104045,9,19.416487838947599,0,15.556349186104045,20,27.313000567495326,91,77.620873481300123,27,19.235384061671343,50,33.015148038438355,5,13.038404810405298,53,48.259714048054619,52,48.259714048054619]
[null,"$10,000 to $14,999",13,14.866068747318506,46,41.880783182743848,8,13.601470508735444,9,14.212670403551895,320,142.00352108310554,8,14.212670403551895,41,26.870057685088806,22,17.804493814764857,0,15.556349186104045,0,15.556349186104045,10,15.556349186104045,15,17.029386365926403,14,16.643316977093239,210,97.308786859152647,14,15.556349186104045,129,93.477269964414347,0,15.556349186104045,99,60.745370193949761,150,107.78682665335315]
[null,"$15,000 to $19,999",50,31.906112267087632,16,26.40075756488817,6,15.556349186104045,8,8.4852813742385695,170,96.332756630338366,4,12.529964086141668,24,20.518284528683193,27,15.811388300841896,0,15.556349186104045,0,15.556349186104045,0,15.556349186104045,27,21.023796041628639,30,30.083217912982647,97,51.97114584074513,16,18.601075237738275,95,58.008620049092706,14,17.029386365926403,161,115.11733144926528,34,31.89043743820395]
[null,"$20,000 to $24,999",23,27.313000567495326,47,46.043457732885351,5,6.4031242374328485,7,13.601470508735444,254,143.01048912579805,13,11.180339887498949,25,14.866068747318506,23,13.892443989449804,0,15.556349186104045,9,11.401754250991379,41,27.658633371878661,19,23.706539182259394,18,23.706539182259394,64,39.560080889704963,44,29.832867780352597,63,47.010637094172637,60,40.162171256046406,159,109.17875251164945,73,79.699435380685102]
[null,"$25,000 to $34,999",7,6.7082039324993694,171,84.172442046075858,39,25.317977802344327,10,11.704699910719626,594,229.17242417009948,14,12.369316876852981,48,21.931712199461309,108,39.11521443121589,1,11.180339887498949,7,8.5440037453175304,23,21.95449840010015,140,74.886580907396223,121,57.688820407423826,170,91.4166286842826,62,29.068883707497267,247,112.72976536833562,113,64.815121692395209,347,180.40509970618902,175,106.30145812734649]
[null,"$35,000 to $49,999",31,17.088007490635061,437,145.41320435228707,34,22.203603311174518,24,17.804493814764857,741,187.09623192357455,32,17.088007490635061,81,23.53720459187964,139,44.418464629025621,9,13.038404810405298,8,16.278820596099706,52,26.832815729997478,256,80.622577482985491,323,123.04470732217619,254,96.384646080171919,83,30.479501308256342,163,92.097774131626011,165,63.788713735268246,401,139.98928530426892,507,173.62315513778685]
[null,"$50,000 to $74,999",77,36.055512754639892,273,104.84750831564858,57,31.953090617340916,36,18.027756377319946,894,241.53674668671019,39,18.027756377319946,125,39.812058474788763,91,29.832867780352597,19,16.278820596099706,2,11.704699910719626,94,43.08131845707603,217,82.619610262939389,446,118.51160280748886,420,112.17842929904127,138,38.626415831655933,321,87.726848797845236,374,107.82393055347222,477,158.24032355881985,506,152.31546211727817]
[null,"$75,000 to $99,999",68,35.171010790137949,115,76.791926658991954,38,21.95449840010015,29,22.825424421026653,535,186.45374761586316,33,15.524174696260024,67,31.016124838541646,53,21.840329667841555,8,13.038404810405298,2,11.401754250991379,20,14.422205101855956,154,59.093146810776631,202,81.394102980498531,236,83.240615086627031,83,28.460498941515414,123,71.847059786744225,166,71.449282711584999,167,83.546394296821688,379,142.63590010933433]
[null,"$100,000 to $149,999",33,19.416487838947599,129,83.725742755737912,24,17.804493814764857,8,16.278820596099706,336,143.95138068111746,14,14.866068747318506,35,21.931712199461309,56,26.40075756488817,7,13.601470508735444,0,15.556349186104045,83,40.521599178709621,154,59.539902586416787,330,104.04326023342406,81,48.270073544588683,73,27.313000567495326,67,40.521599178709621,55,35.735136770411273,194,85.510233305727795,428,159.96562130657949]
[null,"$150,000 or more",28,25.495097567963924,69,61,35,25.495097567963924,9,14.866068747318506,227,96.690227013902501,16,12.727922061357855,10,13.601470508735444,15,20.248456731316587,5,12.083045973594572,0,15.556349186104045,65,37.643060449437421,62,44.384682042344295,217,73.545904032787575,21,29.154759474226502,48,23.409399821439251,82,57.070132293521098,75,43.174066289845804,95,68.8839603971781,257,118.0889495253472]

{"sheet":"ACS_Table_B25119","index":43,"n_rows":68,"n_cols":40,"rows_kept":68,"cut":false,"hidden":true,"merged":[[40,16,40,17],[40,18,40,19],[40,20,40,21],[40,22,40,23],[71,18,71,19],[71,20,71,21],[71,22,71,23],[77,4,77,5],[77,6,77,7],[77,8,77,9],[77,10,77,11],[77,12,77,13],[83,2,83,3],[83,4,83,5],[83,6,83,7],[83,8,83,9],[89,2,89,3],[77,18,77,19],[77,16,77,17],[77,14,77,15],[77,2,77,3],[89,10,89,11],[89,12,89,13],[89,16,89,17],[89,14,89,15],[83,10,83,11],[83,12,83,13],[83,14,83,15],[83,16,83,17],[40,4,40,5],[40,6,40,7],[40,8,40,9],[40,10,40,11],[40,12,40,13],[40,14,40,15],[46,2,46,3],[46,4,46,5],[46,6,46,7],[46,8,46,9],[46,10,46,11],[46,12,46,13],[46,14,46,15],[46,16,46,17],[46,18,46,19],[46,20,46,21],[46,22,46,23],[52,2,52,3],[52,4,52,5],[52,6,52,7],[52,8,52,9],[52,10,52,11],[52,12,52,13],[52,14,52,15],[52,16,52,17],[52,18,52,19],[52,20,52,21],[52,22,52,23],[40,2,40,3],[11,2,11,3],[11,4,11,5],[11,6,11,7],[11,8,11,9],[17,2,17,3],[17,10,17,11],[17,12,17,13],[17,16,17,17],[17,14,17,15],[11,10,11,11],[11,12,11,13],[11,14,11,15],[11,16,11,17],[17,18,17,19],[17,20,17,21],[17,22,17,23],[11,18,11,19],[11,20,11,21],[11,22,11,23],[17,4,17,5],[17,6,17,7],[17,8,17,9],[23,10,23,11],[23,12,23,13],[23,14,23,15],[23,16,23,17],[23,2,23,3],[23,4,23,5],[23,6,23,7],[23,8,23,9],[23,18,23,19],[23,20,23,21],[23,22,23,23],[101,2,101,3],[89,18,89,19],[89,20,89,21],[89,22,89,23],[83,18,83,19],[83,20,83,21],[83,22,83,23],[89,4,89,5],[89,6,89,7],[89,8,89,9],[95,10,95,11],[95,12,95,13],[95,14,95,15],[95,16,95,17],[95,2,95,3],[95,4,95,5],[95,6,95,7],[95,8,95,9],[101,4,101,5],[101,6,101,7],[101,8,101,9],[101,10,101,11],[101,12,101,13],[101,16,101,17],[101,14,101,15],[101,18,101,19],[101,20,101,21],[101,22,101,23],[95,18,95,19],[95,20,95,21],[95,22,95,23],[71,10,71,11],[71,12,71,13],[71,14,71,15],[71,16,71,17],[71,2,71,3],[71,4,71,5],[71,6,71,7],[71,8,71,9],[77,20,77,21],[77,22,77,23],[107,10,107,11],[107,12,107,13],[107,14,107,15],[107,16,107,17],[107,2,107,3],[107,4,107,5],[107,6,107,7],[107,8,107,9],[113,20,113,21],[113,22,113,23],[107,18,107,19],[107,20,107,21],[107,22,107,23],[113,4,113,5],[113,6,113,7],[113,8,113,9],[113,10,113,11],[113,12,113,13],[119,2,119,3],[119,4,119,5],[119,6,119,7],[119,8,119,9],[125,2,125,3],[113,18,113,19],[113,16,113,17],[113,14,113,15],[113,2,113,3],[125,10,125,11],[125,12,125,13],[125,16,125,17],[125,14,125,15],[119,10,119,11],[119,12,119,13],[119,14,119,15],[119,16,119,17],[137,2,137,3],[125,18,125,19],[125,20,125,21],[125,22,125,23],[119,18,119,19],[119,20,119,21],[119,22,119,23],[125,4,125,5],[125,6,125,7],[125,8,125,9],[131,10,131,11],[131,12,131,13],[131,14,131,15],[131,16,131,17],[131,2,131,3],[131,4,131,5],[131,6,131,7],[131,8,131,9],[137,4,137,5],[137,6,137,7],[137,8,137,9],[137,10,137,11],[137,12,137,13],[137,16,137,17],[137,14,137,15],[137,18,137,19],[137,20,137,21],[137,22,137,23],[131,18,131,19],[131,20,131,21],[131,22,131,23],[143,10,143,11],[143,12,143,13],[143,14,143,15],[143,16,143,17],[143,2,143,3],[143,4,143,5],[143,6,143,7],[143,8,143,9],[149,20,149,21],[149,22,149,23],[143,18,143,19],[143,20,143,21],[143,22,143,23],[149,4,149,5],[149,6,149,7],[149,8,149,9],[149,10,149,11],[149,12,149,13],[155,2,155,3],[155,4,155,5],[155,6,155,7],[155,8,155,9],[161,2,161,3],[149,18,149,19],[149,16,149,17],[149,14,149,15],[149,2,149,3],[161,10,161,11],[161,12,161,13],[161,16,161,17],[161,14,161,15],[155,10,155,11],[155,12,155,13],[155,14,155,15],[155,16,155,17],[173,2,173,3],[161,18,161,19],[161,20,161,21],[161,22,161,23],[155,18,155,19],[155,20,155,21],[155,22,155,23],[161,4,161,5],[161,6,161,7],[161,8,161,9],[167,10,167,11],[167,12,167,13],[167,14,167,15],[167,16,167,17],[167,2,167,3],[167,4,167,5],[167,6,167,7],[167,8,167,9],[173,4,173,5],[173,6,173,7],[173,8,173,9],[173,10,173,11],[173,12,173,13],[173,16,173,17],[173,14,173,15],[173,18,173,19],[173,20,173,21],[173,22,173,23],[167,18,167,19],[167,20,167,21],[167,22,167,23],[179,10,179,11],[179,12,179,13],[179,14,179,15],[179,16,179,17],[179,2,179,3],[179,4,179,5],[179,6,179,7],[179,8,179,9],[185,20,185,21],[185,22,185,23],[179,18,179,19],[179,20,179,21],[179,22,179,23],[185,4,185,5],[185,6,185,7],[185,8,185,9],[185,10,185,11],[185,12,185,13],[191,2,191,3],[191,4,191,5],[191,6,191,7],[191,8,191,9],[197,2,197,3],[185,18,185,19],[185,16,185,17],[185,14,185,15],[185,2,185,3],[197,10,197,11],[197,12,197,13],[197,16,197,17],[197,14,197,15],[191,10,191,11],[191,12,191,13],[191,14,191,15],[191,16,191,17],[209,2,209,3],[197,18,197,19],[197,20,197,21],[197,22,197,23],[191,18,191,19],[191,20,191,21],[191,22,191,23],[197,4,197,5],[197,6,197,7],[197,8,197,9],[203,10,203,11],[203,12,203,13],[203,14,203,15],[203,16,203,17],[203,2,203,3],[203,4,203,5],[203,6,203,7],[203,8,203,9],[209,4,209,5],[209,6,209,7],[209,8,209,9],[209,10,209,11],[209,12,209,13],[209,16,209,17],[209,14,209,15],[209,18,209,19],[209,20,209,21],[209,22,209,23],[203,18,203,19],[203,20,203,21],[203,22,203,23],[215,10,215,11],[215,12,215,13],[215,14,215,15],[215,16,215,17],[215,2,215,3],[215,4,215,5],[215,6,215,7],[215,8,215,9],[221,20,221,21],[221,22,221,23],[215,18,215,19],[215,20,215,21],[215,22,215,23],[221,4,221,5],[221,6,221,7],[221,8,221,9],[221,10,221,11],[221,12,221,13],[227,2,227,3],[227,4,227,5],[227,6,227,7],[227,8,227,9],[233,2,233,3],[221,18,221,19],[221,16,221,17],[221,14,221,15],[221,2,221,3],[233,10,233,11],[233,12,233,13],[233,16,233,17],[233,14,233,15],[227,10,227,11],[227,12,227,13],[227,14,227,15],[227,16,227,17],[245,2,245,3],[233,18,233,19],[233,20,233,21],[233,22,233,23],[227,18,227,19],[227,20,227,21],[227,22,227,23],[233,4,233,5],[233,6,233,7],[233,8,233,9],[239,10,239,11],[239,12,239,13],[239,14,239,15],[239,16,239,17],[239,2,239,3],[239,4,239,5],[239,6,239,7],[239,8,239,9],[245,4,245,5],[245,6,245,7],[245,8,245,9],[245,10,245,11],[245,12,245,13],[245,16,245,17],[245,14,245,15],[245,18,245,19],[245,20,245,21],[245,22,245,23],[239,18,239,19],[239,20,239,21],[239,22,239,23],[251,10,251,11],[251,12,251,13],[251,14,251,15],[251,16,251,17],[251,2,251,3],[251,4,251,5],[251,6,251,7],[251,8,251,9],[257,20,257,21],[257,22,257,23],[251,18,251,19],[251,20,251,21],[251,22,251,23],[257,4,257,5],[257,6,257,7],[257,8,257,9],[257,10,257,11],[257,12,257,13],[263,2,263,3],[263,4,263,5],[263,6,263,7],[263,8,263,9],[269,2,269,3],[257,18,257,19],[257,16,257,17],[257,14,257,15],[257,2,257,3],[269,10,269,11],[269,12,269,13],[269,16,269,17],[269,14,269,15],[263,10,263,11],[263,12,263,13],[263,14,263,15],[263,16,263,17],[281,2,281,3],[269,18,269,19],[269,20,269,21],[269,22,269,23],[263,18,263,19],[263,20,263,21],[263,22,263,23],[269,4,269,5],[269,6,269,7],[269,8,269,9],[275,10,275,11],[275,12,275,13],[275,14,275,15],[275,16,275,17],[275,2,275,3],[275,4,275,5],[275,6,275,7],[275,8,275,9],[281,4,281,5],[281,6,281,7],[281,8,281,9],[281,10,281,11],[281,12,281,13],[281,16,281,17],[281,14,281,15],[281,18,281,19],[281,20,281,21],[281,22,281,23],[275,18,275,19],[275,20,275,21],[275,22,275,23],[287,10,287,11],[287,12,287,13],[287,14,287,15],[287,16,287,17],[287,2,287,3],[287,4,287,5],[287,6,287,7],[287,8,287,9],[293,20,293,21],[293,22,293,23],[287,18,287,19],[287,20,287,21],[287,22,287,23],[293,4,293,5],[293,6,293,7],[293,8,293,9],[293,10,293,11],[293,12,293,13],[299,2,299,3],[299,4,299,5],[299,6,299,7],[299,8,299,9],[305,2,305,3],[293,18,293,19],[293,16,293,17],[293,14,293,15],[293,2,293,3],[305,10,305,11],[305,12,305,13],[305,16,305,17],[305,14,305,15],[299,10,299,11],[299,12,299,13],[299,14,299,15],[299,16,299,17],[317,2,317,3],[305,18,305,19],[305,20,305,21],[305,22,305,23],[299,18,299,19],[299,20,299,21],[299,22,299,23],[305,4,305,5],[305,6,305,7],[305,8,305,9],[311,10,311,11],[311,12,311,13],[311,14,311,15],[311,16,311,17],[311,2,311,3],[311,4,311,5],[311,6,311,7],[311,8,311,9],[317,4,317,5],[317,6,317,7],[317,8,317,9],[317,10,317,11],[317,12,317,13],[317,16,317,17],[317,14,317,15],[317,18,317,19],[317,20,317,21],[317,22,317,23],[311,18,311,19],[311,20,311,21],[311,22,311,23],[323,10,323,11],[323,12,323,13],[323,14,323,15],[323,16,323,17],[323,2,323,3],[323,4,323,5],[323,6,323,7],[323,8,323,9],[329,20,329,21],[329,22,329,23],[323,18,323,19],[323,20,323,21],[323,22,323,23],[329,4,329,5],[329,6,329,7],[329,8,329,9],[329,10,329,11],[329,12,329,13],[335,2,335,3],[335,4,335,5],[335,6,335,7],[335,8,335,9],[341,2,341,3],[329,18,329,19],[329,16,329,17],[329,14,329,15],[329,2,329,3],[341,10,341,11],[341,12,341,13],[341,16,341,17],[341,14,341,15],[335,10,335,11],[335,12,335,13],[335,14,335,15],[335,16,335,17],[353,2,353,3],[341,18,341,19],[341,20,341,21],[341,22,341,23],[335,18,335,19],[335,20,335,21],[335,22,335,23],[341,4,341,5],[341,6,341,7],[341,8,341,9],[347,10,347,11],[347,12,347,13],[347,14,347,15],[347,16,347,17],[347,2,347,3],[347,4,347,5],[347,6,347,7],[347,8,347,9],[353,4,353,5],[353,6,353,7],[353,8,353,9],[353,10,353,11],[353,12,353,13],[353,16,353,17],[353,14,353,15],[353,18,353,19],[353,20,353,21],[353,22,353,23],[347,18,347,19],[347,20,347,21],[347,22,347,23],[359,10,359,11],[359,12,359,13],[359,14,359,15],[359,16,359,17],[359,2,359,3],[359,4,359,5],[359,6,359,7],[359,8,359,9],[365,20,365,21],[365,22,365,23],[359,18,359,19],[359,20,359,21],[359,22,359,23],[365,4,365,5],[365,6,365,7],[365,8,365,9],[365,10,365,11],[365,12,365,13],[371,2,371,3],[371,4,371,5],[371,6,371,7],[371,8,371,9],[377,2,377,3],[365,18,365,19],[365,16,365,17],[365,14,365,15],[365,2,365,3],[377,10,377,11],[377,12,377,13],[377,16,377,17],[377,14,377,15],[371,10,371,11],[371,12,371,13],[371,14,371,15],[371,16,371,17],[389,2,389,3],[377,18,377,19],[377,20,377,21],[377,22,377,23],[371,18,371,19],[371,20,371,21],[371,22,371,23],[377,4,377,5],[377,6,377,7],[377,8,377,9],[383,10,383,11],[383,12,383,13],[383,14,383,15],[383,16,383,17],[383,2,383,3],[383,4,383,5],[383,6,383,7],[383,8,383,9],[389,4,389,5],[389,6,389,7],[389,8,389,9],[389,10,389,11],[389,12,389,13],[389,16,389,17],[389,14,389,15],[389,18,389,19],[389,20,389,21],[389,22,389,23],[383,18,383,19],[383,20,383,21],[383,22,383,23],[395,10,395,11],[395,12,395,13],[395,14,395,15],[395,16,395,17],[395,2,395,3],[395,4,395,5],[395,6,395,7],[395,8,395,9],[401,20,401,21],[401,22,401,23],[395,18,395,19],[395,20,395,21],[395,22,395,23],[401,4,401,5],[401,6,401,7],[401,8,401,9],[401,10,401,11],[401,12,401,13],[407,2,407,3],[407,4,407,5],[407,6,407,7],[407,8,407,9],[413,2,413,3],[401,18,401,19],[401,16,401,17],[401,14,401,15],[401,2,401,3],[413,10,413,11],[413,12,413,13],[413,16,413,17],[413,14,413,15],[407,10,407,11],[407,12,407,13],[407,14,407,15],[407,16,407,17],[425,2,425,3],[413,18,413,19],[413,20,413,21],[413,22,413,23],[407,18,407,19],[407,20,407,21],[407,22,407,23],[413,4,413,5],[413,6,413,7],[413,8,413,9],[419,10,419,11],[419,12,419,13],[419,14,419,15],[419,16,419,17],[419,2,419,3],[419,4,419,5],[419,6,419,7],[419,8,419,9],[425,4,425,5],[425,6,425,7],[425,8,425,9],[425,10,425,11],[425,12,425,13],[425,16,425,17],[425,14,425,15],[425,18,425,19],[425,20,425,21],[425,22,425,23],[419,18,419,19],[419,20,419,21],[419,22,419,23],[431,10,431,11],[431,12,431,13],[431,14,431,15],[431,16,431,17],[431,2,431,3],[431,4,431,5],[431,6,431,7],[431,8,431,9],[437,20,437,21],[437,22,437,23],[431,18,431,19],[431,20,431,21],[431,22,431,23],[437,4,437,5],[437,6,437,7],[437,8,437,9],[437,10,437,11],[437,12,437,13],[443,2,443,3],[443,4,443,5],[443,6,443,7],[443,8,443,9],[449,2,449,3],[437,18,437,19],[437,16,437,17],[437,14,437,15],[437,2,437,3],[449,10,449,11],[449,12,449,13],[449,16,449,17],[449,14,449,15],[443,10,443,11],[443,12,443,13],[443,14,443,15],[443,16,443,17],[461,2,461,3],[449,18,449,19],[449,20,449,21],[449,22,449,23],[443,18,443,19],[443,20,443,21],[443,22,443,23],[449,4,449,5],[449,6,449,7],[449,8,449,9],[455,10,455,11],[455,12,455,13],[455,14,455,15],[455,16,455,17],[455,2,455,3],[455,4,455,5],[455,6,455,7],[455,8,455,9],[461,4,461,5],[461,6,461,7],[461,8,461,9],[461,10,461,11],[461,12,461,13],[461,16,461,17],[461,14,461,15],[461,18,461,19],[461,20,461,21],[461,22,461,23],[455,18,455,19],[455,20,455,21],[455,22,455,23],[467,10,467,11],[467,12,467,13],[467,14,467,15],[467,16,467,17],[467,2,467,3],[467,4,467,5],[467,6,467,7],[467,8,467,9],[473,20,473,21],[473,22,473,23],[467,18,467,19],[467,20,467,21],[467,22,467,23],[473,4,473,5],[473,6,473,7],[473,8,473,9],[473,10,473,11],[473,12,473,13],[479,2,479,3],[479,4,479,5],[479,6,479,7],[479,8,479,9],[485,2,485,3],[473,18,473,19],[473,16,473,17],[473,14,473,15],[473,2,473,3],[485,10,485,11],[485,12,485,13],[485,16,485,17],[485,14,485,15],[479,10,479,11],[479,12,479,13],[479,14,479,15],[479,16,479,17],[497,2,497,3],[485,18,485,19],[485,20,485,21],[485,22,485,23],[479,18,479,19],[479,20,479,21],[479,22,479,23],[485,4,485,5],[485,6,485,7],[485,8,485,9],[491,10,491,11],[491,12,491,13],[491,14,491,15],[491,16,491,17],[491,2,491,3],[491,4,491,5],[491,6,491,7],[491,8,491,9],[497,4,497,5],[497,6,497,7],[497,8,497,9],[497,10,497,11],[497,12,497,13],[497,16,497,17],[497,14,497,15],[497,18,497,19],[497,20,497,21],[497,22,497,23],[491,18,491,19],[491,20,491,21],[491,22,491,23],[503,10,503,11],[503,12,503,13],[503,14,503,15],[503,16,503,17],[503,2,503,3],[503,4,503,5],[503,6,503,7],[503,8,503,9],[509,20,509,21],[509,22,509,23],[503,18,503,19],[503,20,503,21],[503,22,503,23],[509,4,509,5],[509,6,509,7],[509,8,509,9],[509,10,509,11],[509,12,509,13],[515,2,515,3],[515,4,515,5],[515,6,515,7],[515,8,515,9],[521,2,521,3],[509,18,509,19],[509,16,509,17],[509,14,509,15],[509,2,509,3],[521,10,521,11],[521,12,521,13],[521,16,521,17],[521,14,521,15],[515,10,515,11],[515,12,515,13],[515,14,515,15],[515,16,515,17],[533,2,533,3],[521,18,521,19],[521,20,521,21],[521,22,521,23],[515,18,515,19],[515,20,515,21],[515,22,515,23],[521,4,521,5],[521,6,521,7],[521,8,521,9],[527,10,527,11],[527,12,527,13],[527,14,527,15],[527,16,527,17],[527,2,527,3],[527,4,527,5],[527,6,527,7],[527,8,527,9],[533,4,533,5],[533,6,533,7],[533,8,533,9],[533,10,533,11],[533,12,533,13],[533,16,533,17],[533,14,533,15],[533,18,533,19],[533,20,533,21],[533,22,533,23],[527,18,527,19],[527,20,527,21],[527,22,527,23],[539,10,539,11],[539,12,539,13],[539,14,539,15],[539,16,539,17],[539,2,539,3],[539,4,539,5],[539,6,539,7],[539,8,539,9],[545,20,545,21],[545,22,545,23],[539,18,539,19],[539,20,539,21],[539,22,539,23],[545,4,545,5],[545,6,545,7],[545,8,545,9],[545,10,545,11],[545,12,545,13],[551,2,551,3],[551,4,551,5],[551,6,551,7],[551,8,551,9],[557,2,557,3],[545,18,545,19],[545,16,545,17],[545,14,545,15],[545,2,545,3],[557,10,557,11],[557,12,557,13],[557,16,557,17],[557,14,557,15],[551,10,551,11],[551,12,551,13],[551,14,551,15],[551,16,551,17],[569,2,569,3],[557,18,557,19],[557,20,557,21],[557,22,557,23],[551,18,551,19],[551,20,551,21],[551,22,551,23],[557,4,557,5],[557,6,557,7],[557,8,557,9],[563,10,563,11],[563,12,563,13],[563,14,563,15],[563,16,563,17],[563,2,563,3],[563,4,563,5],[563,6,563,7],[563,8,563,9],[569,4,569,5],[569,6,569,7],[569,8,569,9],[569,10,569,11],[569,12,569,13],[569,16,569,17],[569,14,569,15],[569,18,569,19],[569,20,569,21],[569,22,569,23],[563,18,563,19],[563,20,563,21],[563,22,563,23],[575,10,575,11],[575,12,575,13],[575,14,575,15],[575,16,575,17],[575,2,575,3],[575,4,575,5],[575,6,575,7],[575,8,575,9],[581,20,581,21],[581,22,581,23]],"merged_total":89628,"flags":["merged_cut"]}
[null,"B25119. MEDIAN HOUSEHOLD INCOME THE PAST 12 MONTHS (IN 2022 INFLATION-ADJUSTED DOLLARS) BY TENURE"]
[null," Universe:  OCCUPIED HOUSING UNITS"]
[null,"Data Set: 2018-2022 American Community Survey 5-Year Estimates"]
[]
[null,null,"Albany",null,"Bartlett",null,"Brookfield",null,"Chatham",null,"Conway",null,"Eaton",null,"Effingham",null,"Freedom",null,"Hale's Location",null,"Hart's Location",null,"Jackson",null,"Madison",null,"Moultonborough",null,"Ossipee",null,"Sandwich",null,"Tamworth",null,"Tuftonboro",null,"Wakefield",null,"Wolfeboro"]
[null," ","Estimate","Margin of Error","Estimate","Margin of Error","Estimate","Margin of Error","Estimate","Margin of Error","Estimate","Margin of Error","Estimate","Margin of Error","Estimate","Margin of Error","Estimate","Margin of Error","Estimate","Margin of Error","Estimate","Margin of Error","Estimate","Margin of Error","Estimate","Margin of Error","Estimate","Margin of Error","Estimate","Margin of Error","Estimate","Margin of Error","Estimate","Margin of Error","Estimate","Margin of Error","Estimate","Margin of Error","Estimate","Margin of Error"]
[null,"Median household income in the past 12 months"]
[null,"Total:",66607,12114,55833,12790,89286,21649,76250,12689,59271,10673,67813,15734,83021,23560,74167,19636,84313,58091,"-","**",94219,36192,101333,15380,95020,16395,69659,7668,124833,22999,61094,20828,82837,9931,86573,22930,75783,15064]
[null,"Owner occupied (dollars)",70833,19223,64412,45291,89464,20565,79028,8171,69515,19693,76750,14667,88542,20256,78854,13938,113250,89628,"-","**",107695,21133,100583,17178,96667,12845,74393,18465,127260,22642,80855,17394,84087,13176,94750,21179,75172,19861]
[null,"Renter occupied (dollars)","-","**",38074,9152,"-","**",34028,5375,38858,14267,36023,8578,51389,5959,"-","**","-","**","-","**",49219,44418,105662,81372,83317,21375,40833,25084,78672,12001,55771,12791,81571,17664,"-","**",76919,31610]
[]
[]
[]
[]
[]
[]
[]
[]
[]
[]
[]
[]
[]
[]
[]
[]
[]
[]
[]
[null,"B25119. MEDIAN HOUSEHOLD INCOME THE PAST 12 MONTHS (IN 2017 INFLATION-ADJUSTED DOLLARS) BY TENURE"]
[null," Universe:  OCCUPIED HOUSING UNITS"]
[null,"Data Set: 2013-2017 American Community Survey 5-Year Estimates"]
[]
[null,null,"Albany",null,"Bartlett",null,"Brookfield",null,"Chatham",null,"Conway",null,"Eaton",null,"Effingham",null,"Freedom",null,"Hale's Location",null,"Hart's Location",null,"Jackson",null,"Madison",null,"Moultonborough",null,"Ossipee",null,"Sandwich",null,"Tamworth",null,"Tuftonboro",null,"Wakefield",null,"Wolfeboro"]
[null," ","Estimate","Margin of Error","Estimate","Margin of Error","Estimate","Margin of Error","Estimate","Margin of Error","Estimate","Margin of Error","Estimate","Margin of Error","Estimate","Margin of Error","Estimate","Margin of Error","Estimate","Margin of Error","Estimate","Margin of Error","Estimate","Margin of Error","Estimate","Margin of Error","Estimate","Margin of Error","Estimate","Margin of Error","Estimate","Margin of Error","Estimate","Margin of Error","Estimate","Margin of Error","Estimate","Margin of Error","Estimate","Margin of Error"]
[null,"Median household income in the past 12 months"]
[null,"Total:",58750,16561,50250,11453,82045,11949,60556,9632,59510,6241,70855,4612,50000,9434,59330,8881,67917,18034,72000,19061,62875,20246,59675,4776,74625,8454,47500,12281,63583,15436,52963,9865,57426,9725,56291,10565,50907,13342]
[null,"Owner occupied (dollars)",64286,12795,58750,22045,79688,16985,68333,14946,66378,9451,71953,5768,55313,11104,59464,9730,67917,18034,56250,47158,72083,32070,61757,9855,81029,11118,57750,13819,78688,10585,61603,7546,65184,7265,63361,12561,67447,21646]
[null,"Renter occupied (dollars)",39167,14540,40833,17943,"-","**",55313,54637,40259,13061,66250,11290,27386,10360,51250,41078,"-","**","-","**",44250,30428,47411,20197,48750,31283,24965,2809,48125,8228,26424,16459,27005,16423,43017,10934,30924,16226]
[]
[]
[]
[]
[]
[]
[]
[]
[]
[]
[]
[]
[]
[]
[]
[]
[]
[]
[]
[null,"B25119. MEDIAN HOUSEHOLD INCOME THE PAST 12 MONTHS (IN 2012 INFLATION-ADJUSTED DOLLARS) BY TENURE"]
[null," Universe:  OCCUPIED HOUSING UNITS"]
[null,"Data Set: 2008-2012 American Community Survey 5-Year Estimates"]
[]
[null,null,"Albany",null,"Bartlett",null,"Brookfield",null,"Chatham",null,"Conway",null,"Eaton",null,"Effingham",null,"Freedom",null,"Hale's Location",null,"Hart's Location",null,"Jackson",null,"Madison",null,"Moultonborough",null,"Ossipee",null,"Sandwich",null,"Tamworth",null,"Tuftonboro",null,"Wakefield",null,"Wolfeboro"]
[null," ","Estimate","Margin of Error","Estimate","Margin of Error","Estimate","Margin of Error","Estimate","Margin of Error","Estimate","Margin of Error","Estimate","Margin of Error","Estimate","Margin of Error","Estimate","Margin of Error","Estimate","Margin of Error","Estimate","Margin of Error","Estimate","Margin of Error","Estimate","Margin of Error","Estimate","Margin of Error","Estimate","Margin of Error","Estimate","Margin of Error","Estimate","Margin of Error","Estimate","Margin of Error","Estimate","Margin of Error","Estimate","Margin of Error"]
[null,"Median household income in the past 12 months"]
[null,"Total:",62000,11840,45320,5688,67604,16531,49167,14202,45395,5914,56250,7351,48542,5803,42188,7568,64375,18462,31786,15760,67750,10230,58000,13715,68022,4567,46049,6533,56364,6594,41128,10539,60143,8597,45323,5587,67533,6552]
[null,"Owner occupied (dollars)",63750,13471,46570,9100,69167,10042,48333,25752,54227,6244,55750,9056,51750,5316,47569,4632,64375,18462,30750,12102,74286,33285,60688,12368,68845,5694,50458,5878,61739,4344,50845,10570,61250,8642,47026,5185,71322,7259]
[null,"Renter occupied (dollars)",33750,49546,35871,19449,43125,19505,50500,56584,29339,4972,58500,36931,25313,18635,32000,6192,"-","**",40469,24765,37708,27633,47056,10278,63375,16306,16712,15682,45179,20634,19922,14944,50700,23033,33750,4285,30409,17590]

{"sheet":"ACS_Table_B25001","index":44,"n_rows":29,"n_cols":40,"rows_kept":29,"cut":false,"hidden":true,"merged":[]}
[null,"B25001. HOUSING UNITS"]
[null,"Universe:  HOUSING UNITS"]
[null,"Data Set: 2018-2022 American Community Survey 5-Year Estimates"]
[]
[null,null,"Albany",null,"Bartlett",null,"Brookfield",null,"Chatham",null,"Conway",null,"Eaton",null,"Effingham",null,"Freedom",null,"Hale's Location",null,"Hart's Location",null,"Jackson",null,"Madison",null,"Moultonborough",null,"Ossipee",null,"Sandwich",null,"Tamworth",null,"Tuftonboro",null,"Wakefield",null,"Wolfeboro"]
[null," ","Estimate","Margin of Error","Estimate","Margin of Error","Estimate","Margin of Error","Estimate","Margin of Error","Estimate","Margin of Error","Estimate","Margin of Error","Estimate","Margin of Error","Estimate","Margin of Error","Estimate","Margin of Error","Estimate","Margin of Error","Estimate","Margin of Error","Estimate","Margin of Error","Estimate","Margin of Error","Estimate","Margin of Error","Estimate","Margin of Error","Estimate","Margin of Error","Estimate","Margin of Error","Estimate","Margin of Error","Estimate","Margin of Error"]
[null,"Total",538,100,4613,297,291,70,269,55,6810,414,260,47,886,70,1728,130,133,46,69,36,1065,139,1822,164,4998,252,2879,218,1325,190,1591,234,2542,122,3785,241,4285,287]
[]
[]
[]
[]
[null,"B25001. HOUSING UNITS"]
[null,"Universe:  HOUSING UNITS"]
[null,"Data Set: 2013-2017 American Community Survey 5-Year Estimates"]
[]
[null,null,"Albany",null,"Bartlett",null,"Brookfield",null,"Chatham",null,"Conway",null,"Eaton",null,"Effingham",null,"Freedom",null,"Hale's Location",null,"Hart's Location",null,"Jackson",null,"Madison",null,"Moultonborough",null,"Ossipee",null,"Sandwich",null,"Tamworth",null,"Tuftonboro",null,"Wakefield",null,"Wolfeboro"]
[null," ","Estimate","Margin of Error","Estimate","Margin of Error","Estimate","Margin of Error","Estimate","Margin of Error","Estimate","Margin of Error","Estimate","Margin of Error","Estimate","Margin of Error","Estimate","Margin of Error","Estimate","Margin of Error","Estimate","Margin of Error","Estimate","Margin of Error","Estimate","Margin of Error","Estimate","Margin of Error","Estimate","Margin of Error","Estimate","Margin of Error","Estimate","Margin of Error","Estimate","Margin of Error","Estimate","Margin of Error","Estimate","Margin of Error"]
[null,"Total",553,69,4245,245,389,79,256,49,6823,309,288,48,968,91,1899,102,101,29,58,21,999,111,2030,122,4843,222,3270,268,971,108,2060,213,2373,95,3845,265,4758,248]
[]
[]
[]
[]
[null,"B25001. HOUSING UNITS"]
[null,"Universe:  HOUSING UNITS"]
[null,"Data Set: 2008-2012 American Community Survey 5-Year Estimates"]
[]
[null,null,"Albany",null,"Bartlett",null,"Brookfield",null,"Chatham",null,"Conway",null,"Eaton",null,"Effingham",null,"Freedom",null,"Hale's Location",null,"Hart's Location",null,"Jackson",null,"Madison",null,"Moultonborough",null,"Ossipee",null,"Sandwich",null,"Tamworth",null,"Tuftonboro",null,"Wakefield",null,"Wolfeboro"]
[null," ","Estimate","Margin of Error","Estimate","Margin of Error","Estimate","Margin of Error","Estimate","Margin of Error","Estimate","Margin of Error","Estimate","Margin of Error","Estimate","Margin of Error","Estimate","Margin of Error","Estimate","Margin of Error","Estimate","Margin of Error","Estimate","Margin of Error","Estimate","Margin of Error","Estimate","Margin of Error","Estimate","Margin of Error","Estimate","Margin of Error","Estimate","Margin of Error","Estimate","Margin of Error","Estimate","Margin of Error","Estimate","Margin of Error"]
[null,"Total",632,80,4161,244,312,62,267,57,6654,297,284,43,926,85,1712,99,83,23,63,24,998,104,1988,141,4917,178,3055,225,979,100,2066,154,2391,92,4108,244,4182,237]

{"sheet":"ACS_Table_B25003","index":45,"n_rows":42,"n_cols":40,"rows_kept":42,"cut":false,"hidden":true,"merged":[]}
[null,"B25003. TENURE"]
[null,"Universe:  OCCUPIED HOUSING UNITS"]
[null,"Data Set: 2018-2022 American Community Survey 5-Year Estimates"]
[]
[null,null,"Albany",null,"Bartlett",null,"Brookfield",null,"Chatham",null,"Conway",null,"Eaton",null,"Effingham",null,"Freedom",null,"Hale's Location",null,"Hart's Location",null,"Jackson",null,"Madison",null,"Moultonborough",null,"Ossipee",null,"Sandwich",null,"Tamworth",null,"Tuftonboro",null,"Wakefield",null,"Wolfeboro"]
[null," ","Estimate","Margin of Error","Estimate","Margin of Error","Estimate","Margin of Error","Estimate","Margin of Error","Estimate","Margin of Error","Estimate","Margin of Error","Estimate","Margin of Error","Estimate","Margin of Error","Estimate","Margin of Error","Estimate","Margin of Error","Estimate","Margin of Error","Estimate","Margin of Error","Estimate","Margin of Error","Estimate","Margin of Error","Estimate","Margin of Error","Estimate","Margin of Error","Estimate","Margin of Error","Estimate","Margin of Error","Estimate","Margin of Error"]
[null,"Total:",343,91,1722,223,232,58,160,41,4468,345,158,37,549,65,576,78,105,41,43,32,500,96,978,100,2111,184,1677,153,930,170,987,167,1113,87,2205,225,2787,260]
[null,"Owner occupied",252,56,1376,221,231,57,141,36,3119,350,123,29,477,55,543,72,85,31,43,32,385,96,839,100,1880,213,1383,151,857,171,646,161,1005,95,2100,207,2165,270]
[null,"Renter occupied",91,72,346,180,1,5,19,16,1349,254,35,22,72,40,33,48,20,31,0,12,115,59,139,66,231,101,294,118,73,32,341,136,108,67,105,98,622,231]
[]
[]
[]
[]
[]
[]
[]
[]
[]
[]
[]
[]
[null,"B25003. TENURE"]
[null,"Universe:  OCCUPIED HOUSING UNITS"]
[null,"Data Set: 2013-2017 American Community Survey 5-Year Estimates"]
[]
[null,null,"Albany",null,"Bartlett",null,"Brookfield",null,"Chatham",null,"Conway",null,"Eaton",null,"Effingham",null,"Freedom",null,"Hale's Location",null,"Hart's Location",null,"Jackson",null,"Madison",null,"Moultonborough",null,"Ossipee",null,"Sandwich",null,"Tamworth",null,"Tuftonboro",null,"Wakefield",null,"Wolfeboro"]
[null," ","Estimate","Margin of Error","Estimate","Margin of Error","Estimate","Margin of Error","Estimate","Margin of Error","Estimate","Margin of Error","Estimate","Margin of Error","Estimate","Margin of Error","Estimate","Margin of Error","Estimate","Margin of Error","Estimate","Margin of Error","Estimate","Margin of Error","Estimate","Margin of Error","Estimate","Margin of Error","Estimate","Margin of Error","Estimate","Margin of Error","Estimate","Margin of Error","Estimate","Margin of Error","Estimate","Margin of Error","Estimate","Margin of Error"]
[null,"Total:",312,44,1408,164,326,77,142,36,4346,208,169,38,602,72,587,74,79,24,26,16,455,89,1069,85,1758,102,1962,185,617,73,1378,137,966,103,2066,185,2935,210]
[null,"Owner occupied",270,43,972,176,290,65,124,27,3210,230,139,33,495,59,502,65,79,24,18,14,365,82,894,105,1498,124,1580,173,513,73,937,124,841,100,1841,183,2302,218]
[null,"Renter occupied",42,21,436,142,36,38,18,22,1136,254,30,14,107,48,85,32,0,11,8,9,90,48,175,56,260,93,382,138,104,43,441,148,125,64,225,101,633,207]
[]
[]
[]
[null,"B25003. TENURE"]
[null,"Universe:  OCCUPIED HOUSING UNITS"]
[null,"Data Set: 2008-2012 American Community Survey 5-Year Estimates"]
[]
[null,null,"Albany",null,"Bartlett",null,"Brookfield",null,"Chatham",null,"Conway",null,"Eaton",null,"Effingham",null,"Freedom",null,"Hale's Location",null,"Hart's Location",null,"Jackson",null,"Madison",null,"Moultonborough",null,"Ossipee",null,"Sandwich",null,"Tamworth",null,"Tuftonboro",null,"Wakefield",null,"Wolfeboro"]
[null," ","Estimate","Margin of Error","Estimate","Margin of Error","Estimate","Margin of Error","Estimate","Margin of Error","Estimate","Margin of Error","Estimate","Margin of Error","Estimate","Margin of Error","Estimate","Margin of Error","Estimate","Margin of Error","Estimate","Margin of Error","Estimate","Margin of Error","Estimate","Margin of Error","Estimate","Margin of Error","Estimate","Margin of Error","Estimate","Margin of Error","Estimate","Margin of Error","Estimate","Margin of Error","Estimate","Margin of Error","Estimate","Margin of Error"]
[null,"Total:",338,61,1381,148,257,57,166,46,4452,262,176,34,495,68,554,65,52,13,28,19,407,80,1044,102,1793,98,1697,144,592,81,1353,138,1041,115,2216,215,2590,178]
[null,"Owner occupied",288,61,1128,151,242,53,146,42,2834,277,156,30,434,64,482,65,52,13,7,9,334,75,853,97,1631,128,1404,150,494,70,1070,136,907,104,1991,198,2165,196]
[null,"Renter occupied",50,26,253,105,15,19,20,13,1618,293,20,17,61,34,72,32,0,11,21,17,73,37,191,79,162,74,293,97,98,37,283,117,134,71,225,131,425,154]

{"sheet":"ACS_Table_B25004","index":46,"n_rows":56,"n_cols":40,"rows_kept":56,"cut":false,"hidden":true,"merged":[]}
[null,"B25004. VACANCY STATUS"]
[null,"Universe:  VACANT HOUSING UNITS"]
[null,"Data Set: 2018-2022 American Community Survey 5-Year Estimates"]
[]
[null,null,"Albany",null,"Bartlett",null,"Brookfield",null,"Chatham",null,"Conway",null,"Eaton",null,"Effingham",null,"Freedom",null,"Hale's Location",null,"Hart's Location",null,"Jackson",null,"Madison",null,"Moultonborough",null,"Ossipee",null,"Sandwich",null,"Tamworth",null,"Tuftonboro",null,"Wakefield",null,"Wolfeboro"]
[null," ","Estimate","Margin of Error","Estimate","Margin of Error","Estimate","Margin of Error","Estimate","Margin of Error","Estimate","Margin of Error","Estimate","Margin of Error","Estimate","Margin of Error","Estimate","Margin of Error","Estimate","Margin of Error","Estimate","Margin of Error","Estimate","Margin of Error","Estimate","Margin of Error","Estimate","Margin of Error","Estimate","Margin of Error","Estimate","Margin of Error","Estimate","Margin of Error","Estimate","Margin of Error","Estimate","Margin of Error","Estimate","Margin of Error"]
[null,"Total:",195,48,2891,214,59,34,109,32,2342,361,102,31,337,53,1152,128,28,17,26,15,565,89,844,128,2887,223,1202,174,395,87,604,183,1429,104,1580,309,1498,272]
[null,"For rent",0,12,55,51,0,12,0,12,0,17,0,12,0,12,0,12,0,12,0,12,8,13,34,33,54,60,36,47,0,12,0,12,15,23,0,17,0,17]
[null,"Rented, not occupied",0,12,0,12,0,12,0,12,0,17,0,12,0,12,0,12,0,12,0,12,0,12,0,12,8,12,0,12,0,12,0,12,0,12,0,17,0,17]
[null,"For sale only",7,12,24,40,11,15,5,7,0,17,4,7,3,5,5,7,1,2,0,12,0,12,0,12,27,43,102,96,5,7,0,12,35,39,0,17,54,86]
[null,"Sold, not occupied",0,12,0,12,13,15,0,12,54,84,3,7,0,12,0,12,0,12,0,12,0,12,0,12,75,97,0,12,0,12,0,12,5,7,76,92,54,87]
[null,"For seasonal, recreational, or occasional use",177,47,2748,227,29,22,101,32,2132,319,74,26,293,54,1128,126,20,14,26,15,549,90,777,131,2674,251,961,195,381,85,560,188,1298,109,1440,306,1375,251]
[null,"For migrant workers",0,12,0,12,0,12,0,12,0,17,0,12,0,12,0,12,0,12,0,12,0,12,0,12,0,12,0,12,0,12,0,12,0,12,0,17,0,17]
[null,"Other vacant",11,13,64,83,6,9,3,4,156,132,21,14,41,31,19,20,7,11,0,12,8,13,33,29,49,56,103,81,9,14,44,68,76,49,64,78,15,25]
[]
[]
[]
[]
[]
[]
[]
[null,"B25004. VACANCY STATUS"]
[null,"Universe:  VACANT HOUSING UNITS"]
[null,"Data Set: 2013-2017 American Community Survey 5-Year Estimates"]
[]
[null,null,"Albany",null,"Bartlett",null,"Brookfield",null,"Chatham",null,"Conway",null,"Eaton",null,"Effingham",null,"Freedom",null,"Hale's Location",null,"Hart's Location",null,"Jackson",null,"Madison",null,"Moultonborough",null,"Ossipee",null,"Sandwich",null,"Tamworth",null,"Tuftonboro",null,"Wakefield",null,"Wolfeboro"]
[null," ","Estimate","Margin of Error","Estimate","Margin of Error","Estimate","Margin of Error","Estimate","Margin of Error","Estimate","Margin of Error","Estimate","Margin of Error","Estimate","Margin of Error","Estimate","Margin of Error","Estimate","Margin of Error","Estimate","Margin of Error","Estimate","Margin of Error","Estimate","Margin of Error","Estimate","Margin of Error","Estimate","Margin of Error","Estimate","Margin of Error","Estimate","Margin of Error","Estimate","Margin of Error","Estimate","Margin of Error","Estimate","Margin of Error"]
[null,"Total:",241,59,2837,190,63,30,114,35,2477,325,119,35,366,66,1312,78,22,15,32,17,544,87,961,101,3085,193,1308,197,354,86,682,177,1407,113,1779,258,1823,249]
[null,"For rent",0,11,21,34,7,11,0,11,23,37,0,11,9,14,0,11,0,11,0,11,0,11,0,11,0,11,0,11,0,11,0,11,0,11,0,16,53,72]
[null,"Rented, not occupied",0,11,0,11,0,11,0,11,0,18,0,11,19,20,0,11,0,11,0,11,0,11,0,11,0,11,0,11,0,11,0,11,0,11,0,16,36,59]
[null,"For sale only",12,14,68,64,0,11,2,5,53,72,2,3,3,4,21,23,0,11,0,11,25,23,53,43,0,11,59,58,33,28,0,11,32,37,52,84,96,93]
[null,"Sold, not occupied",5,10,0,11,0,11,0,11,0,18,4,7,0,11,0,11,0,11,0,11,0,11,0,11,0,11,0,11,0,11,0,11,0,11,0,16,0,16]
[null,"For seasonal, recreational, or occasional use",215,54,2682,209,42,22,98,30,2067,279,113,35,258,62,1277,80,22,15,25,14,476,79,886,106,2979,202,1080,202,296,79,600,172,1286,119,1611,264,1337,244]
[null,"For migrant workers",0,11,0,11,0,11,0,11,48,33,0,11,0,11,0,11,0,11,0,11,0,11,0,11,0,11,0,11,0,11,0,11,0,11,0,16,0,16]
[null,"Other vacant",9,11,66,55,14,17,14,14,286,167,0,11,77,31,14,16,0,11,7,10,43,33,22,25,106,77,169,94,25,26,82,92,89,56,116,110,301,138]
[]
[]
[]
[]
[]
[]
[]
[null,"B25004. VACANCY STATUS"]
[null,"Universe:  VACANT HOUSING UNITS"]
[null,"Data Set: 2008-2012 American Community Survey 5-Year Estimates"]
[]
[null,null,"Albany",null,"Bartlett",null,"Brookfield",null,"Chatham",null,"Conway",null,"Eaton",null,"Effingham",null,"Freedom",null,"Hale's Location",null,"Hart's Location",null,"Jackson",null,"Madison",null,"Moultonborough",null,"Ossipee",null,"Sandwich",null,"Tamworth",null,"Tuftonboro",null,"Wakefield",null,"Wolfeboro"]
[null," ","Estimate","Margin of Error","Estimate","Margin of Error","Estimate","Margin of Error","Estimate","Margin of Error","Estimate","Margin of Error","Estimate","Margin of Error","Estimate","Margin of Error","Estimate","Margin of Error","Estimate","Margin of Error","Estimate","Margin of Error","Estimate","Margin of Error","Estimate","Margin of Error","Estimate","Margin of Error","Estimate","Margin of Error","Estimate","Margin of Error","Estimate","Margin of Error","Estimate","Margin of Error","Estimate","Margin of Error","Estimate","Margin of Error"]
[null,"Total:",294,60,2780,204,55,31,101,28,2202,266,108,33,431,67,1158,92,31,20,35,21,591,94,944,109,3124,192,1358,184,387,71,713,112,1350,135,1892,273,1592,248]
[null,"For rent",3,5,0,11,0,11,0,11,0,18,4,6,10,8,0,11,0,11,0,11,10,17,0,11,10,17,60,66,0,11,21,32,0,11,91,100,87,101]
[null,"Rented, not occupied",0,11,13,21,0,11,0,11,16,25,0,11,11,17,0,11,0,11,0,11,0,11,0,11,0,11,14,23,0,11,23,24,0,11,0,16,86,99]
[null,"For sale only",6,10,24,38,7,11,0,11,83,71,0,11,8,14,33,26,2,3,0,11,10,16,30,27,10,16,38,49,14,13,39,62,39,31,34,51,101,88]
[null,"Sold, not occupied",0,11,0,11,0,11,0,11,0,18,0,11,0,11,0,11,0,11,0,11,0,11,0,11,0,11,55,60,0,11,39,59,0,11,0,16,0,16]
[null,"For seasonal, recreational, or occasional use",242,57,2274,205,36,28,94,27,1909,276,91,31,381,64,1080,91,23,17,32,20,554,95,850,108,2977,202,1077,178,332,72,533,111,1238,132,1718,295,1225,282]
[null,"For migrant workers",0,11,0,11,0,11,0,11,0,18,0,11,0,11,0,11,0,11,0,11,0,11,0,11,0,11,0,11,4,8,0,11,0,11,0,16,0,16]
[null,"Other vacant",43,24,469,121,12,14,7,8,194,117,13,11,21,19,45,27,6,11,3,5,17,17,64,43,127,78,114,86,37,29,58,69,73,52,49,72,93,105]

{"sheet":"ACS_Table_B25008","index":47,"n_rows":51,"n_cols":40,"rows_kept":51,"cut":false,"hidden":true,"merged":[]}
[null,"B25008. TOTAL POPULATION IN OCCUPIED HOUSING UNITS BY TENURE"]
[null,"Universe:  TOTAL POPULATION IN OCCUPIED HOUSING UNITS"]
[null,"Data Set: 2018-2022 American Community Survey 5-Year Estimates"]
[]
[null,null,"Albany",null,"Bartlett",null,"Brookfield",null,"Chatham",null,"Conway",null,"Eaton",null,"Effingham",null,"Freedom",null,"Hale's Location",null,"Hart's Location",null,"Jackson",null,"Madison",null,"Moultonborough",null,"Ossipee",null,"Sandwich",null,"Tamworth",null,"Tuftonboro",null,"Wakefield",null,"Wolfeboro"]
[null," ","Estimate","Margin of Error","Estimate","Margin of Error","Estimate","Margin of Error","Estimate","Margin of Error","Estimate","Margin of Error","Estimate","Margin of Error","Estimate","Margin of Error","Estimate","Margin of Error","Estimate","Margin of Error","Estimate","Margin of Error","Estimate","Margin of Error","Estimate","Margin of Error","Estimate","Margin of Error","Estimate","Margin of Error","Estimate","Margin of Error","Estimate","Margin of Error","Estimate","Margin of Error","Estimate","Margin of Error","Estimate","Margin of Error"]
[null,"Total:",708,164,3182,18,536,142,423,109,9808,21,355,72,1771,280,1319,184,196,61,53,37,1149,182,2586,23,4944,16,4267,16,1838,254,2829,16,2506,27,5266,18,6332,19]
[null,"Owner occupied",577,125,2651,294,535,141,369,82,6997,562,307,69,1597,285,1240,171,176,57,53,37,797,186,2200,198,4195,381,3578,336,1672,248,1722,400,2239,167,5073,146,5299,400]
[null,"Renter occupied",131,98,531,295,1,5,54,65,2811,562,48,27,174,118,79,107,20,31,0,12,352,151,386,199,749,381,689,335,166,76,1107,403,267,164,193,149,1033,401]
[]
[]
[]
[]
[]
[]
[]
[]
[]
[]
[]
[]
[null,"B25008. TOTAL POPULATION IN OCCUPIED HOUSING UNITS BY TENURE"]
[null,"Universe:  TOTAL POPULATION IN OCCUPIED HOUSING UNITS"]
[null,"Data Set: 2013-2017 American Community Survey 5-Year Estimates"]
[]
[null,null,"Albany",null,"Bartlett",null,"Brookfield",null,"Chatham",null,"Conway",null,"Eaton",null,"Effingham",null,"Freedom",null,"Hale's Location",null,"Hart's Location",null,"Jackson",null,"Madison",null,"Moultonborough",null,"Ossipee",null,"Sandwich",null,"Tamworth",null,"Tuftonboro",null,"Wakefield",null,"Wolfeboro"]
[null," ","Estimate","Margin of Error","Estimate","Margin of Error","Estimate","Margin of Error","Estimate","Margin of Error","Estimate","Margin of Error","Estimate","Margin of Error","Estimate","Margin of Error","Estimate","Margin of Error","Estimate","Margin of Error","Estimate","Margin of Error","Estimate","Margin of Error","Estimate","Margin of Error","Estimate","Margin of Error","Estimate","Margin of Error","Estimate","Margin of Error","Estimate","Margin of Error","Estimate","Margin of Error","Estimate","Margin of Error","Estimate","Margin of Error"]
[null,"Total:",782,141,2745,20,876,265,339,109,9829,73,321,68,1435,174,1305,175,159,48,52,31,957,220,2496,27,4044,20,4081,118,1342,199,2906,26,2153,183,5007,19,6130,40]
[null,"Owner occupied",686,140,1944,281,738,206,288,78,7610,534,267,62,1172,147,1100,164,159,48,35,25,764,196,1964,178,3456,272,3324,336,1072,168,2270,222,1795,186,4340,323,4992,356]
[null,"Renter occupied",96,51,801,285,138,145,51,58,2219,534,54,23,263,120,205,99,0,11,17,19,193,117,532,176,588,273,757,320,270,138,636,213,358,182,667,321,1138,354]
[]
[]
[]
[]
[]
[]
[]
[]
[]
[]
[]
[]
[null,"B25008. TOTAL POPULATION IN OCCUPIED HOUSING UNITS BY TENURE"]
[null,"Universe:  TOTAL POPULATION IN OCCUPIED HOUSING UNITS"]
[null,"Data Set: 2008-2012 American Community Survey 5-Year Estimates"]
[]
[null,null,"Albany",null,"Bartlett",null,"Brookfield",null,"Chatham",null,"Conway",null,"Eaton",null,"Effingham",null,"Freedom",null,"Hale's Location",null,"Hart's Location",null,"Jackson",null,"Madison",null,"Moultonborough",null,"Ossipee",null,"Sandwich",null,"Tamworth",null,"Tuftonboro",null,"Wakefield",null,"Wolfeboro"]
[null," ","Estimate","Margin of Error","Estimate","Margin of Error","Estimate","Margin of Error","Estimate","Margin of Error","Estimate","Margin of Error","Estimate","Margin of Error","Estimate","Margin of Error","Estimate","Margin of Error","Estimate","Margin of Error","Estimate","Margin of Error","Estimate","Margin of Error","Estimate","Margin of Error","Estimate","Margin of Error","Estimate","Margin of Error","Estimate","Margin of Error","Estimate","Margin of Error","Estimate","Margin of Error","Estimate","Margin of Error","Estimate","Margin of Error"]
[null,"Total:",875,179,2761,34,681,160,446,148,9870,179,390,77,1252,197,1197,167,110,29,33,21,980,234,2486,31,4041,33,4156,106,1224,201,2846,23,2502,304,5044,19,6191,32]
[null,"Owner occupied",759,176,2315,190,656,154,378,125,6954,632,354,75,1112,194,971,128,110,29,7,9,854,228,2044,185,3618,225,3345,316,1006,167,2309,236,2285,288,4548,294,5320,322]
[null,"Renter occupied",116,74,446,186,25,34,68,56,2916,629,36,28,140,84,226,145,0,11,26,19,126,60,442,185,423,222,811,305,218,94,537,235,217,123,496,293,871,321]

{"sheet":"ACS_Table_B25024","index":48,"n_rows":78,"n_cols":40,"rows_kept":78,"cut":false,"hidden":true,"merged":[]}
[null,"B25024. UNITS IN STRUCTURE "]
[null,"Universe:  HOUSING UNITS"]
[null,"Data Set: 2018-2022 American Community Survey 5-Year Estimates"]
[]
[null,null,"Albany",null,"Bartlett",null,"Brookfield",null,"Chatham",null,"Conway",null,"Eaton",null,"Effingham",null,"Freedom",null,"Hale's Location",null,"Hart's Location",null,"Jackson",null,"Madison",null,"Moultonborough",null,"Ossipee",null,"Sandwich",null,"Tamworth",null,"Tuftonboro",null,"Wakefield",null,"Wolfeboro"]
[null," ","Estimate","Margin of Error","Estimate","Margin of Error","Estimate","Margin of Error","Estimate","Margin of Error","Estimate","Margin of Error","Estimate","Margin of Error","Estimate","Margin of Error","Estimate","Margin of Error","Estimate","Margin of Error","Estimate","Margin of Error","Estimate","Margin of Error","Estimate","Margin of Error","Estimate","Margin of Error","Estimate","Margin of Error","Estimate","Margin of Error","Estimate","Margin of Error","Estimate","Margin of Error","Estimate","Margin of Error","Estimate","Margin of Error"]
[null,"Total:",538,100,4613,297,291,70,269,55,6810,414,260,47,886,70,1728,130,133,46,69,36,1065,139,1822,164,4998,252,2879,218,1325,190,1591,234,2542,122,3785,241,4285,287]
[null,"1, detached",436,92,2472,361,289,70,242,53,4030,417,240,43,752,78,1303,119,133,46,69,36,902,139,1657,164,4669,276,2273,257,1291,186,1303,221,2218,202,3401,267,3434,374]
[null,"1, attached",7,11,215,109,0,12,0,12,155,104,8,13,13,15,8,8,0,12,0,12,57,54,28,26,30,30,11,17,0,12,0,12,6,8,77,120,168,81]
[null,2,7,10,316,138,2,3,0,12,376,146,0,12,7,8,9,9,0,12,0,12,26,18,40,34,136,101,60,66,11,11,0,12,14,22,0,17,60,74]
[null,"3 or 4",9,10,346,143,0,12,1,3,306,156,12,14,6,6,33,31,0,12,0,12,77,32,11,17,47,40,130,81,0,12,43,49,27,32,0,17,296,211]
[null,"5 to 9",0,12,932,210,0,12,7,6,411,193,0,12,0,12,58,39,0,12,0,12,0,12,0,12,42,63,0,12,0,12,78,66,44,42,50,80,0,17]
[null,"10 to 19",0,12,225,104,0,12,0,12,277,162,0,12,22,27,9,14,0,12,0,12,0,12,0,12,0,12,6,21,6,9,37,56,66,96,0,17,0,17]
[null,"20 to 49",0,12,29,45,0,12,0,12,479,243,0,12,6,8,0,12,0,12,0,12,0,12,17,28,0,12,26,42,0,12,14,21,0,12,25,30,110,86]
[null,"50 or more",0,12,0,12,0,12,0,12,50,46,0,12,0,12,0,12,0,12,0,12,0,12,0,12,0,12,0,12,0,12,0,12,0,12,0,17,0,17]
[null,"Mobile home",79,37,78,70,0,12,19,14,726,202,0,12,76,44,308,81,0,12,0,12,3,4,69,37,63,55,373,139,17,16,116,81,167,76,202,139,217,143]
[null,"Boat, RV, van, etc.",0,12,0,12,0,12,0,12,0,17,0,12,4,5,0,12,0,12,0,12,0,12,0,12,11,18,0,12,0,12,0,12,0,12,30,31,0,17]
[]
[]
[null,"Calculated B25024. UNITS IN STRUCTURE "]
[null,"Universe:  HOUSING UNITS"]
[null,"Data Set: 2018-2022 American Community Survey 5-Year Estimates"]
[]
[null,null,"Albany",null,"Bartlett",null,"Brookfield",null,"Chatham",null,"Conway",null,"Eaton",null,"Effingham",null,"Freedom",null,"Hale's Location",null,"Hart's Location",null,"Jackson",null,"Madison",null,"Moultonborough",null,"Ossipee",null,"Sandwich",null,"Tamworth",null,"Tuftonboro",null,"Wakefield",null,"Wolfeboro"]
[null," ","Estimate","Margin of Error","Estimate","Margin of Error","Estimate","Margin of Error","Estimate","Margin of Error","Estimate","Margin of Error","Estimate","Margin of Error","Estimate","Margin of Error","Estimate","Margin of Error","Estimate","Margin of Error","Estimate","Margin of Error","Estimate","Margin of Error","Estimate","Margin of Error","Estimate","Margin of Error","Estimate","Margin of Error","Estimate","Margin of Error","Estimate","Margin of Error","Estimate","Margin of Error","Estimate","Margin of Error","Estimate","Margin of Error"]
[null,"Total:",{"$f":"C7","v":538},100,4613,297,291,70,269,55,6810,414,260,47,886,70,1728,130,133,46,69,36,1065,139,{"$f":"Y7","v":1822},164,4998,252,2879,218,1325,190,1591,234,2542,122,3785,241,4285,287]
[null,"Single Family",{"$f":"C8","v":436},92,2472,361,289,70,242,53,4030,417,240,43,752,78,1303,119,133,46,69,36,902,139,{"$f":"Y8","v":1657},164,4669,276,2273,257,1291,186,1303,221,2218,202,3401,267,3434,374]
[null,"Multi-Family",{"$f":"C9+C10+C11+C12+C13+C14+C15","v":23},{"$f":"SQRT((D9^2)+(D10^2)+(D11^2)+(D12^2)+(D13^2)+(D14^2)+(D15^2))","v":29.949958263743873},{"$f":"E9+E10+E11+E12+E13+E14+E15","v":2063},{"$f":"SQRT((F9^2)+(F10^2)+(F11^2)+(F12^2)+(F13^2)+(F14^2)+(F15^2))","v":329.33114034357578},{"$f":"G9+G10+G11+G12+G13+G14+G15","v":2},{"$f":"SQRT((H9^2)+(H10^2)+(H11^2)+(H12^2)+(H13^2)+(H14^2)+(H15^2))","v":29.546573405388315},{"$f":"I9+I10+I11+I12+I13+I14+I15","v":8},{"$f":"SQRT((J9^2)+(J10^2)+(J11^2)+(J12^2)+(J13^2)+(J14^2)+(J15^2))","v":27.658633371878661},{"$f":"K9+K10+K11+K12+K13+K14+K15","v":2054},{"$f":"SQRT((L9^2)+(L10^2)+(L11^2)+(L12^2)+(L13^2)+(L14^2)+(L15^2))","v":425.5890036173397},{"$f":"M9+M10+M11+M12+M13+M14+M15","v":20},{"$f":"SQRT((N9^2)+(N10^2)+(N11^2)+(N12^2)+(N13^2)+(N14^2)+(N15^2))","v":32.939338184001208},{"$f":"O9+O10+O11+O12+O13+O14+O15","v":54},{"$f":"SQRT((P9^2)+(P10^2)+(P11^2)+(P12^2)+(P13^2)+(P14^2)+(P15^2))","v":37.49666651850535},{"$f":"Q9+Q10+Q11+Q12+Q13+Q14+Q15","v":117},{"$f":"SQRT((R9^2)+(R10^2)+(R11^2)+(R12^2)+(R13^2)+(R14^2)+(R15^2))","v":55.776339069537364},{"$f":"S9+S10+S11+S12+S13+S14+S15","v":0},{"$f":"SQRT((T9^2)+(T10^2)+(T11^2)+(T12^2)+(T13^2)+(T14^2)+(T15^2))","v":31.749015732775089},{"$f":"U9+U10+U11+U12+U13+U14+U15","v":0},{"$f":"SQRT((V9^2)+(V10^2)+(V11^2)+(V12^2)+(V13^2)+(V14^2)+(V15^2))","v":31.749015732775089},{"$f":"W9+W10+W11+W12+W13+W14+W15","v":160},{"$f":"SQRT((X9^2)+(X10^2)+(X11^2)+(X12^2)+(X13^2)+(X14^2)+(X15^2))","v":69.570108523704349},{"$f":"Y9+Y10+Y11+Y12+Y13+Y14+Y15","v":96},{"$f":"SQRT((Z9^2)+(Z10^2)+(Z11^2)+(Z12^2)+(Z13^2)+(Z14^2)+(Z15^2))","v":57.766772456144714},{"$f":"AA9+AA10+AA11+AA12+AA13+AA14+AA15","v":255},{"$f":"SQRT((AB9^2)+(AB10^2)+(AB11^2)+(AB12^2)+(AB13^2)+(AB14^2)+(AB15^2))","v":130.77461527376022},{"$f":"AC9+AC10+AC11+AC12+AC13+AC14+AC15","v":233},{"$f":"SQRT((AD9^2)+(AD10^2)+(AD11^2)+(AD12^2)+(AD13^2)+(AD14^2)+(AD15^2))","v":117.04272724095249},{"$f":"AE9+AE10+AE11+AE12+AE13+AE14+AE15","v":17},{"$f":"SQRT((AF9^2)+(AF10^2)+(AF11^2)+(AF12^2)+(AF13^2)+(AF14^2)+(AF15^2))","v":30.364452901377952},{"$f":"AG9+AG10+AG11+AG12+AG13+AG14+AG15","v":172},{"$f":"SQRT((AH9^2)+(AH10^2)+(AH11^2)+(AH12^2)+(AH13^2)+(AH14^2)+(AH15^2))","v":103.75933692926145},{"$f":"AI9+AI10+AI11+AI12+AI13+AI14+AI15","v":157},{"$f":"SQRT((AJ9^2)+(AJ10^2)+(AJ11^2)+(AJ12^2)+(AJ13^2)+(AJ14^2)+(AJ15^2))","v":113.31372379372236},{"$f":"AK9+AK10+AK11+AK12+AK13+AK14+AK15","v":152},{"$f":"SQRT((AL9^2)+(AL10^2)+(AL11^2)+(AL12^2)+(AL13^2)+(AL14^2)+(AL15^2))","v":151.18200951171406},{"$f":"AM9+AM10+AM11+AM12+AM13+AM14+AM15","v":634},{"$f":"SQRT((AN9^2)+(AN10^2)+(AN11^2)+(AN12^2)+(AN13^2)+(AN14^2)+(AN15^2))","v":254.59968578142431}]
[null,"Mobile Home & Other",{"$f":"C16+C17","v":79},{"$f":"SQRT((D16^2)+(D17^2))","v":38.897300677553446},{"$f":"E16+E17","v":78},{"$f":"SQRT((F16^2)+(F17^2))","v":71.021123618258812},{"$f":"G16+G17","v":0},{"$f":"SQRT((H16^2)+(H17^2))","v":16.970562748477139},{"$f":"I16+I17","v":19},{"$f":"SQRT((J16^2)+(J17^2))","v":18.439088914585774},{"$f":"K16+K17","v":726},{"$f":"SQRT((L16^2)+(L17^2))","v":202.71408436514716},{"$f":"M16+M17","v":0},{"$f":"SQRT((N16^2)+(N17^2))","v":16.970562748477139},{"$f":"O16+O17","v":80},{"$f":"SQRT((P16^2)+(P17^2))","v":44.283179650969061},{"$f":"Q16+Q17","v":308},{"$f":"SQRT((R16^2)+(R17^2))","v":81.884064383737083},{"$f":"S16+S17","v":0},{"$f":"SQRT((T16^2)+(T17^2))","v":16.970562748477139},{"$f":"U16+U17","v":0},{"$f":"SQRT((V16^2)+(V17^2))","v":16.970562748477139},{"$f":"W16+W17","v":3},{"$f":"SQRT((X16^2)+(X17^2))","v":12.649110640673518},{"$f":"Y16+Y17","v":69},{"$f":"SQRT((Z16^2)+(Z17^2))","v":38.897300677553446},{"$f":"AA16+AA17","v":74},{"$f":"SQRT((AB16^2)+(AB17^2))","v":57.870545184921149},{"$f":"AC16+AC17","v":373},{"$f":"SQRT((AD16^2)+(AD17^2))","v":139.51702405083043},{"$f":"AE16+AE17","v":17},{"$f":"SQRT((AF16^2)+(AF17^2))","v":20},{"$f":"AG16+AG17","v":116},{"$f":"SQRT((AH16^2)+(AH17^2))","v":81.884064383737083},{"$f":"AI16+AI17","v":167},{"$f":"SQRT((AJ16^2)+(AJ17^2))","v":76.941536246685374},{"$f":"AK16+AK17","v":232},{"$f":"SQRT((AL16^2)+(AL17^2))","v":142.414886862294},{"$f":"AM16+AM17","v":217},{"$f":"SQRT((AN16^2)+(AN17^2))","v":144.00694427700353}]
[]
[]
[]
[]
[]
[]
[]
[]
[]
[]
[]
[]
[]
[]
[]
[]
[]
[]
[]
[]
[]
[]
[]
[]
[]
[]
[]
[null,"Calculated B25024. UNITS IN STRUCTURE "]
[null,"Universe:  HOUSING UNITS"]
[null,"Data Set: 2013-2017 American Community Survey 5-Year Estimates"]
[]
[null,null,"Albany",null,"Bartlett",null,"Brookfield",null,"Chatham",null,"Conway",null,"Eaton",null,"Effingham",null,"Freedom",null,"Hale's Location",null,"Hart's Location",null,"Jackson",null,"Madison",null,"Moultonborough",null,"Ossipee",null,"Sandwich",null,"Tamworth",null,"Tuftonboro",null,"Wakefield",null,"Wolfeboro"]
[null," ","Estimate","Margin of Error","Estimate","Margin of Error","Estimate","Margin of Error","Estimate","Margin of Error","Estimate","Margin of Error","Estimate","Margin of Error","Estimate","Margin of Error","Estimate","Margin of Error","Estimate","Margin of Error","Estimate","Margin of Error","Estimate","Margin of Error","Estimate","Margin of Error","Estimate","Margin of Error","Estimate","Margin of Error","Estimate","Margin of Error","Estimate","Margin of Error","Estimate","Margin of Error","Estimate","Margin of Error","Estimate","Margin of Error"]
[null,"Total:",553,69,4245,245,389,79,256,49,6823,309,288,48,968,91,1899,102,101,29,58,21,999,111,2030,122,4843,222,3270,268,971,108,2060,213,2373,95,3845,265,4758,248]
[null,"Single Family",446,61,2131,243,380,78,212,44,3957,298,283,47,806,85,1422,101,99,28,58,21,840,106,1809,133,4545,233,2422,312,920,106,1578,245,2102,107,3252,295,3636,321]
[null,"Multi-Family",27,31.480152477394387,2059,292.61578904768623,9,30.364452901377952,28,29.34280150224242,2023,335.98660687592889,5,27.239676943752471,68,40.06245124802026,68,40.484564959994323,0,29.103264421710495,0,29.103264421710495,159,54.808758424178883,130,65.924198895398035,127,68.249542123006222,331,151.23161045231251,25,23.53720459187964,281,137.88763541376724,143,70.121323433032842,261,152.4827859136893,916,270.51062825700581]
[null,"Mobile Home & Other",80,35.735136770411273,55,49.244289008980523,0,15.556349186104045,16,18.601075237738275,843,210.77001684300356,0,15.556349186104045,94,38.600518131237564,409,73.824115301166998,2,12.083045973594572,0,15.556349186104045,0,15.556349186104045,91,56.089214649520635,171,94.641428560646744,517,157.27682601070001,26,25.495097567963924,201,101.59724405711013,128,54.12947441089743,332,171.74690681348528,206,134.9518432626987]
[]
[]
[null,"Calculated B25024. UNITS IN STRUCTURE "]
[null,"Universe:  HOUSING UNITS"]
[null,"Data Set: 2008-2012 American Community Survey 5-Year Estimates"]
[]
[null,null,"Albany",null,"Bartlett",null,"Brookfield",null,"Chatham",null,"Conway",null,"Eaton",null,"Effingham",null,"Freedom",null,"Hale's Location",null,"Hart's Location",null,"Jackson",null,"Madison",null,"Moultonborough",null,"Ossipee",null,"Sandwich",null,"Tamworth",null,"Tuftonboro",null,"Wakefield",null,"Wolfeboro"]
[null," ","Estimate","Margin of Error","Estimate","Margin of Error","Estimate","Margin of Error","Estimate","Margin of Error","Estimate","Margin of Error","Estimate","Margin of Error","Estimate","Margin of Error","Estimate","Margin of Error","Estimate","Margin of Error","Estimate","Margin of Error","Estimate","Margin of Error","Estimate","Margin of Error","Estimate","Margin of Error","Estimate","Margin of Error","Estimate","Margin of Error","Estimate","Margin of Error","Estimate","Margin of Error","Estimate","Margin of Error","Estimate","Margin of Error"]
[null,"Total:",632,80,4161,244,312,62,267,57,6654,297,284,43,926,85,1712,99,83,23,63,24,998,104,1988,141,4917,178,3055,225,979,100,2066,154,2391,92,4108,244,4182,237]
[null,"Single Family",510,70,1882,206,303,62,230,51,3841,325,260,37,785,84,1450,94,82,23,63,24,790,97,1731,160,4655,209,2173,239,948,99,1633,188,2083,120,3639,291,3187,267]
[null,"Multi-Family",20,31.859064644147981,2216,294.15302140212668,2,27.239676943752471,12,26.343879744638983,2108,389.06426204420268,24,28.460498941515414,46,31.811947441173732,104,39.306488014067092,1,27.018512172212592,0,29.103264421710495,201,60.406953242155822,135,68.585712797928991,226,106.39078907499464,325,135.91541487263319,13,28.740215726399828,237,104.30244484191154,132,77.175125526298956,310,194.39135783259502,835,299.79993328885183]
[null,"Mobile Home & Other",102,47.296934361541872,63,46.324939287601879,7,15.556349186104045,25,20.248456731316587,705,199.81241202688085,0,15.556349186104045,95,41.484937025383083,158,54.12947441089743,0,15.556349186104045,0,15.556349186104045,7,15.556349186104045,122,64.938432380216881,36,30.083217912982647,557,157.68956845650888,18,17.029386365926403,196,81.743501270743224,176,78.771822373231913,159,122.05326705991938,160,103.24727599312246]

{"sheet":"ACS_Table_B25032","index":49,"n_rows":119,"n_cols":40,"rows_kept":119,"cut":false,"hidden":true,"merged":[]}
[null,"B25032. TENURE BY UNITS IN STRUCTURE "]
[null,"Universe:  OCCUPIED HOUSING UNITS"]
[null,"Data Set: 2018-2022 American Community Survey 5-Year Estimates"]
[]
[null,null,"Albany",null,"Bartlett",null,"Brookfield",null,"Chatham",null,"Conway",null,"Eaton",null,"Effingham",null,"Freedom",null,"Hale's Location",null,"Hart's Location",null,"Jackson",null,"Madison",null,"Moultonborough",null,"Ossipee",null,"Sandwich",null,"Tamworth",null,"Tuftonboro",null,"Wakefield",null,"Wolfeboro"]
[null," ","Estimate","Margin of Error","Estimate","Margin of Error","Estimate","Margin of Error","Estimate","Margin of Error","Estimate","Margin of Error","Estimate","Margin of Error","Estimate","Margin of Error","Estimate","Margin of Error","Estimate","Margin of Error","Estimate","Margin of Error","Estimate","Margin of Error","Estimate","Margin of Error","Estimate","Margin of Error","Estimate","Margin of Error","Estimate","Margin of Error","Estimate","Margin of Error","Estimate","Margin of Error","Estimate","Margin of Error","Estimate","Margin of Error"]
[null,"Total:",343,91,1722,223,232,58,160,41,4468,345,158,37,549,65,576,78,105,41,43,32,500,96,978,100,2111,184,1677,153,930,170,987,167,1113,87,2205,225,2787,260]
[null,"Owner-occupied housing units:",252,56,1376,221,231,57,141,36,3119,350,123,29,477,55,543,72,85,31,43,32,385,96,839,100,1880,213,1383,151,857,171,646,161,1005,95,2100,207,2165,270]
[null,"1, detached",178,46,1245,245,229,58,131,34,2301,341,123,29,428,57,482,61,85,31,43,32,356,97,783,103,1771,236,1267,156,839,167,591,149,896,134,1999,207,1801,283]
[null,"1, attached",7,11,0,12,0,12,0,12,71,62,0,12,9,15,8,8,0,12,0,12,17,12,28,26,22,26,11,17,0,12,0,12,2,3,0,17,112,70]
[null,2,7,10,0,12,2,3,0,12,17,21,0,12,4,6,9,9,0,12,0,12,0,12,16,21,0,12,0,12,6,7,0,12,0,12,0,17,18,28]
[null,"3 or 4",0,12,46,67,0,12,1,3,78,78,0,12,0,12,0,12,0,12,0,12,9,12,0,12,0,12,18,19,0,12,0,12,0,12,0,17,58,70]
[null,"5 to 9",0,12,44,70,0,12,0,12,13,16,0,12,0,12,9,13,0,12,0,12,0,12,0,12,39,60,0,12,0,12,0,12,0,12,0,17,0,17]
[null,"10 to 19",0,12,0,12,0,12,0,12,0,17,0,12,0,12,0,12,0,12,0,12,0,12,0,12,0,12,0,12,0,12,0,12,66,96,0,17,0,17]
[null,"20 to 49",0,12,0,12,0,12,0,12,156,170,0,12,0,12,0,12,0,12,0,12,0,12,0,12,0,12,0,12,0,12,14,21,0,12,0,17,15,23]
[null,"50 or more",0,12,0,12,0,12,0,12,0,17,0,12,0,12,0,12,0,12,0,12,0,12,0,12,0,12,0,12,0,12,0,12,0,12,0,17,0,17]
[null,"Mobile home",60,35,41,63,0,12,9,8,483,150,0,12,32,20,35,32,0,12,0,12,3,4,12,14,37,36,87,64,12,14,41,33,41,31,71,64,161,134]
[null,"Boat, RV, van, etc.",0,12,0,12,0,12,0,12,0,17,0,12,4,5,0,12,0,12,0,12,0,12,0,12,11,18,0,12,0,12,0,12,0,12,30,31,0,17]
[null,"Renter-occupied housing units:",91,72,346,180,1,5,19,16,1349,254,35,22,72,40,33,48,20,31,0,12,115,59,139,66,231,101,294,118,73,32,341,136,108,67,105,98,622,231]
[null,"1, detached",77,70,112,119,1,5,12,16,212,116,15,10,32,23,33,48,20,31,0,12,66,47,59,39,172,85,147,87,62,31,173,91,108,67,30,41,257,130]
[null,"1, attached",0,12,0,12,0,12,0,12,9,13,8,13,4,6,0,12,0,12,0,12,40,54,0,12,0,12,0,12,0,12,0,12,0,12,0,17,56,43]
[null,2,0,12,72,74,0,12,0,12,176,98,0,12,0,12,0,12,0,12,0,12,0,12,9,12,59,65,28,41,5,7,0,12,0,12,0,17,42,64]
[null,"3 or 4",9,10,83,83,0,12,0,12,125,108,12,14,6,6,0,12,0,12,0,12,9,12,11,17,0,12,36,37,0,12,43,49,0,12,0,17,194,176]
[null,"5 to 9",0,12,79,84,0,12,7,6,128,97,0,12,0,12,0,12,0,12,0,12,0,12,0,12,0,12,0,12,0,12,78,66,0,12,50,80,0,17]
[null,"10 to 19",0,12,0,12,0,12,0,12,186,129,0,12,22,27,0,12,0,12,0,12,0,12,0,12,0,12,6,21,6,9,37,56,0,12,0,17,0,17]
[null,"20 to 49",0,12,0,12,0,12,0,12,323,159,0,12,0,12,0,12,0,12,0,12,0,12,17,28,0,12,26,42,0,12,0,12,0,12,25,30,52,50]
[null,"50 or more",0,12,0,12,0,12,0,12,50,46,0,12,0,12,0,12,0,12,0,12,0,12,0,12,0,12,0,12,0,12,0,12,0,12,0,17,0,17]
[null,"Mobile home",5,5,0,12,0,12,0,12,140,96,0,12,8,9,0,12,0,12,0,12,0,12,43,31,0,12,51,57,0,12,10,15,0,12,0,17,21,32]
[null,"Boat, RV, van, etc.",0,12,0,12,0,12,0,12,0,17,0,12,0,12,0,12,0,12,0,12,0,12,0,12,0,12,0,12,0,12,0,12,0,12,0,17,0,17]
[]
[]
[null,"Calculated B25032. TENURE BY UNITS IN STRUCTURE "]
[null,"Universe:  OCCUPIED HOUSING UNITS"]
[null,"Data Set: 2018-2022 American Community Survey 5-Year Estimates"]
[]
[null,null,"Albany",null,"Bartlett",null,"Brookfield",null,"Chatham",null,"Conway",null,"Eaton",null,"Effingham",null,"Freedom",null,"Hale's Location",null,"Hart's Location",null,"Jackson",null,"Madison",null,"Moultonborough",null,"Ossipee",null,"Sandwich",null,"Tamworth",null,"Tuftonboro",null,"Wakefield",null,"Wolfeboro"]
[null," ","Estimate","Margin of Error","Estimate","Margin of Error","Estimate","Margin of Error","Estimate","Margin of Error","Estimate","Margin of Error","Estimate","Margin of Error","Estimate","Margin of Error","Estimate","Margin of Error","Estimate","Margin of Error","Estimate","Margin of Error","Estimate","Margin of Error","Estimate","Margin of Error","Estimate","Margin of Error","Estimate","Margin of Error","Estimate","Margin of Error","Estimate","Margin of Error","Estimate","Margin of Error","Estimate","Margin of Error","Estimate","Margin of Error"]
[null,"Total:",{"$f":"C7","v":343},91,{"$f":"E7","v":1722},223,232,58,160,41,4468,345,158,37,549,65,576,78,105,41,43,32,500,96,978,100,2111,184,1677,153,930,170,987,167,1113,87,2205,225,2787,260]
[null,"Owner-occupied housing units:",252,56,{"$f":"E8","v":1376},221,231,57,141,36,3119,350,123,29,477,55,543,72,85,31,43,32,385,96,839,100,1880,213,1383,151,857,171,646,161,1005,95,2100,207,2165,270]
[null,"Single Family",{"$f":"C9","v":178},46,1245,{"$f":"F9","v":245},229,58,131,34,2301,341,123,29,428,57,482,61,85,31,43,32,356,97,783,103,1771,236,1267,156,839,167,591,149,896,134,1999,207,1801,283]
[null,"Multi-Family",{"$f":"C10+C11+C12+C13+C14+C15+C16","v":14},{"$f":"SQRT((D10^2)+(D11^2)+(D12^2)+(D13^2)+(D14^2)+(D15^2)+(D16^2))","v":30.675723300355934},{"$f":"E10+E11+E12+E13+E14+E15+E16","v":90},{"$f":"SQRT((F10^2)+(F11^2)+(F12^2)+(F13^2)+(F14^2)+(F15^2)+(F16^2))","v":100.54352291420865},{"$f":"G10+G11+G12+G13+G14+G15+G16","v":2},{"$f":"SQRT((H10^2)+(H11^2)+(H12^2)+(H13^2)+(H14^2)+(H15^2)+(H16^2))","v":29.546573405388315},{"$f":"I10+I11+I12+I13+I14+I15+I16","v":1},{"$f":"SQRT((J10^2)+(J11^2)+(J12^2)+(J13^2)+(J14^2)+(J15^2)+(J16^2))","v":29.546573405388315},{"$f":"K10+K11+K12+K13+K14+K15+K16","v":335},{"$f":"SQRT((L10^2)+(L11^2)+(L12^2)+(L13^2)+(L14^2)+(L15^2)+(L16^2))","v":200.25733444745538},{"$f":"M10+M11+M12+M13+M14+M15+M16","v":0},{"$f":"SQRT((N10^2)+(N11^2)+(N12^2)+(N13^2)+(N14^2)+(N15^2)+(N16^2))","v":31.749015732775089},{"$f":"O10+O11+O12+O13+O14+O15+O16","v":13},{"$f":"SQRT((P10^2)+(P11^2)+(P12^2)+(P13^2)+(P14^2)+(P15^2)+(P16^2))","v":31.32091952673165},{"$f":"Q10+Q11+Q12+Q13+Q14+Q15+Q16","v":26},{"$f":"SQRT((R10^2)+(R11^2)+(R12^2)+(R13^2)+(R14^2)+(R15^2)+(R16^2))","v":29.832867780352597},{"$f":"S10+S11+S12+S13+S14+S15+S16","v":0},{"$f":"SQRT((T10^2)+(T11^2)+(T12^2)+(T13^2)+(T14^2)+(T15^2)+(T16^2))","v":31.749015732775089},{"$f":"U10+U11+U12+U13+U14+U15+U16","v":0},{"$f":"SQRT((V10^2)+(V11^2)+(V12^2)+(V13^2)+(V14^2)+(V15^2)+(V16^2))","v":31.749015732775089},{"$f":"W10+W11+W12+W13+W14+W15+W16","v":26},{"$f":"SQRT((X10^2)+(X11^2)+(X12^2)+(X13^2)+(X14^2)+(X15^2)+(X16^2))","v":31.749015732775089},{"$f":"Y10+Y11+Y12+Y13+Y14+Y15+Y16","v":44},{"$f":"SQRT((Z10^2)+(Z11^2)+(Z12^2)+(Z13^2)+(Z14^2)+(Z15^2)+(Z16^2))","v":42.860237983473681},{"$f":"AA10+AA11+AA12+AA13+AA14+AA15+AA16","v":61},{"$f":"SQRT((AB10^2)+(AB11^2)+(AB12^2)+(AB13^2)+(AB14^2)+(AB15^2)+(AB16^2))","v":70.682388188289167},{"$f":"AC10+AC11+AC12+AC13+AC14+AC15+AC16","v":29},{"$f":"SQRT((AD10^2)+(AD11^2)+(AD12^2)+(AD13^2)+(AD14^2)+(AD15^2)+(AD16^2))","v":37.013511046643494},{"$f":"AE10+AE11+AE12+AE13+AE14+AE15+AE16","v":6},{"$f":"SQRT((AF10^2)+(AF11^2)+(AF12^2)+(AF13^2)+(AF14^2)+(AF15^2)+(AF16^2))","v":30.215889859476256},{"$f":"AG10+AG11+AG12+AG13+AG14+AG15+AG16","v":14},{"$f":"SQRT((AH10^2)+(AH11^2)+(AH12^2)+(AH13^2)+(AH14^2)+(AH15^2)+(AH16^2))","v":36.124783736376884},{"$f":"AI10+AI11+AI12+AI13+AI14+AI15+AI16","v":68},{"$f":"SQRT((AJ10^2)+(AJ11^2)+(AJ12^2)+(AJ13^2)+(AJ14^2)+(AJ15^2)+(AJ16^2))","v":99.724620831567975},{"$f":"AK10+AK11+AK12+AK13+AK14+AK15+AK16","v":0},{"$f":"SQRT((AL10^2)+(AL11^2)+(AL12^2)+(AL13^2)+(AL14^2)+(AL15^2)+(AL16^2))","v":44.977772288098038},{"$f":"AM10+AM11+AM12+AM13+AM14+AM15+AM16","v":203},{"$f":"SQRT((AN10^2)+(AN11^2)+(AN12^2)+(AN13^2)+(AN14^2)+(AN15^2)+(AN16^2))","v":109.45318634009702}]
[null,"Mobile Home & Other",{"$f":"C17+C18","v":60},{"$f":"SQRT((D17^2)+(D18^2))","v":37},{"$f":"E17+E18","v":41},{"$f":"SQRT((F17^2)+(F18^2))","v":64.132674979295857},{"$f":"G17+G18","v":0},{"$f":"SQRT((H17^2)+(H18^2))","v":16.970562748477139},{"$f":"I17+I18","v":9},{"$f":"SQRT((J17^2)+(J18^2))","v":14.422205101855956},{"$f":"K17+K18","v":483},{"$f":"SQRT((L17^2)+(L18^2))","v":150.96025967121281},{"$f":"M17+M18","v":0},{"$f":"SQRT((N17^2)+(N18^2))","v":16.970562748477139},{"$f":"O17+O18","v":36},{"$f":"SQRT((P17^2)+(P18^2))","v":20.615528128088304},{"$f":"Q17+Q18","v":35},{"$f":"SQRT((R17^2)+(R18^2))","v":34.176014981270121},{"$f":"S17+S18","v":0},{"$f":"SQRT((T17^2)+(T18^2))","v":16.970562748477139},{"$f":"U17+U18","v":0},{"$f":"SQRT((V17^2)+(V18^2))","v":16.970562748477139},{"$f":"W17+W18","v":3},{"$f":"SQRT((X17^2)+(X18^2))","v":12.649110640673518},{"$f":"Y17+Y18","v":12},{"$f":"SQRT((Z17^2)+(Z18^2))","v":18.439088914585774},{"$f":"AA17+AA18","v":48},{"$f":"SQRT((AB17^2)+(AB18^2))","v":40.249223594996216},{"$f":"AC17+AC18","v":87},{"$f":"SQRT((AD17^2)+(AD18^2))","v":65.115282384398824},{"$f":"AE17+AE18","v":12},{"$f":"SQRT((AF17^2)+(AF18^2))","v":18.439088914585774},{"$f":"AG17+AG18","v":41},{"$f":"SQRT((AH17^2)+(AH18^2))","v":35.114099732158877},{"$f":"AI17+AI18","v":41},{"$f":"SQRT((AJ17^2)+(AJ18^2))","v":33.241540277189323},{"$f":"AK17+AK18","v":101},{"$f":"SQRT((AL17^2)+(AL18^2))","v":71.112586790244109},{"$f":"AM17+AM18","v":161},{"$f":"SQRT((AN17^2)+(AN18^2))","v":135.07405376311175}]
[null,"Renter-occupied housing units:",{"$f":"C19","v":91},{"$f":"D19","v":72},{"$f":"E19","v":346},180,1,5,19,16,1349,254,35,22,72,40,33,48,20,31,0,12,115,59,139,66,231,101,294,118,73,32,341,136,108,67,105,98,622,231]
[null,"Single Family",{"$f":"C20","v":77},{"$f":"D20","v":70},{"$f":"E20","v":112},119,1,5,12,16,212,116,15,10,32,23,33,48,20,31,0,12,66,47,59,39,172,85,147,87,62,31,173,91,108,67,30,41,257,130]
[null,"Multi-Family",{"$f":"C21+C22+C23+C24+C25+C26+C27","v":9},{"$f":"SQRT((D21^2)+(D22^2)+(D23^2)+(D24^2)+(D25^2)+(D26^2)+(D27^2))","v":31.048349392520048},{"$f":"E21+E22+E23+E24+E25+E26+E27","v":234},{"$f":"SQRT((F21^2)+(F22^2)+(F23^2)+(F24^2)+(F25^2)+(F26^2)+(F27^2))","v":141.41074923781431},{"$f":"G21+G22+G23+G24+G25+G26+G27","v":0},{"$f":"SQRT((H21^2)+(H22^2)+(H23^2)+(H24^2)+(H25^2)+(H26^2)+(H27^2))","v":31.749015732775089},{"$f":"I21+I22+I23+I24+I25+I26+I27","v":7},{"$f":"SQRT((J21^2)+(J22^2)+(J23^2)+(J24^2)+(J25^2)+(J26^2)+(J27^2))","v":30},{"$f":"K21+K22+K23+K24+K25+K26+K27","v":997},{"$f":"SQRT((L21^2)+(L22^2)+(L23^2)+(L24^2)+(L25^2)+(L26^2)+(L27^2))","v":273.64941074301623},{"$f":"M21+M22+M23+M24+M25+M26+M27","v":20},{"$f":"SQRT((N21^2)+(N22^2)+(N23^2)+(N24^2)+(N25^2)+(N26^2)+(N27^2))","v":32.939338184001208},{"$f":"O21+O22+O23+O24+O25+O26+O27","v":32},{"$f":"SQRT((P21^2)+(P22^2)+(P23^2)+(P24^2)+(P25^2)+(P26^2)+(P27^2))","v":37.107950630558946},{"$f":"Q21+Q22+Q23+Q24+Q25+Q26+Q27","v":0},{"$f":"SQRT((R21^2)+(R22^2)+(R23^2)+(R24^2)+(R25^2)+(R26^2)+(R27^2))","v":31.749015732775089},{"$f":"S21+S22+S23+S24+S25+S26+S27","v":0},{"$f":"SQRT((T21^2)+(T22^2)+(T23^2)+(T24^2)+(T25^2)+(T26^2)+(T27^2))","v":31.749015732775089},{"$f":"U21+U22+U23+U24+U25+U26+U27","v":0},{"$f":"SQRT((V21^2)+(V22^2)+(V23^2)+(V24^2)+(V25^2)+(V26^2)+(V27^2))","v":31.749015732775089},{"$f":"W21+W22+W23+W24+W25+W26+W27","v":49},{"$f":"SQRT((X21^2)+(X22^2)+(X23^2)+(X24^2)+(X25^2)+(X26^2)+(X27^2))","v":61.481704595757591},{"$f":"Y21+Y22+Y23+Y24+Y25+Y26+Y27","v":37},{"$f":"SQRT((Z21^2)+(Z22^2)+(Z23^2)+(Z24^2)+(Z25^2)+(Z26^2)+(Z27^2))","v":42.343830719480259},{"$f":"AA21+AA22+AA23+AA24+AA25+AA26+AA27","v":59},{"$f":"SQRT((AB21^2)+(AB22^2)+(AB23^2)+(AB24^2)+(AB25^2)+(AB26^2)+(AB27^2))","v":71.337227308047233},{"$f":"AC21+AC22+AC23+AC24+AC25+AC26+AC27","v":96},{"$f":"SQRT((AD21^2)+(AD22^2)+(AD23^2)+(AD24^2)+(AD25^2)+(AD26^2)+(AD27^2))","v":75.412200604411481},{"$f":"AE21+AE22+AE23+AE24+AE25+AE26+AE27","v":11},{"$f":"SQRT((AF21^2)+(AF22^2)+(AF23^2)+(AF24^2)+(AF25^2)+(AF26^2)+(AF27^2))","v":29.154759474226502},{"$f":"AG21+AG22+AG23+AG24+AG25+AG26+AG27","v":158},{"$f":"SQRT((AH21^2)+(AH22^2)+(AH23^2)+(AH24^2)+(AH25^2)+(AH26^2)+(AH27^2))","v":102.31813133555558},{"$f":"AI21+AI22+AI23+AI24+AI25+AI26+AI27","v":0},{"$f":"SQRT((AJ21^2)+(AJ22^2)+(AJ23^2)+(AJ24^2)+(AJ25^2)+(AJ26^2)+(AJ27^2))","v":31.749015732775089},{"$f":"AK21+AK22+AK23+AK24+AK25+AK26+AK27","v":75},{"$f":"SQRT((AL21^2)+(AL22^2)+(AL23^2)+(AL24^2)+(AL25^2)+(AL26^2)+(AL27^2))","v":93.514704726048294},{"$f":"AM21+AM22+AM23+AM24+AM25+AM26+AM27","v":344},{"$f":"SQRT((AN21^2)+(AN22^2)+(AN23^2)+(AN24^2)+(AN25^2)+(AN26^2)+(AN27^2))","v":200.71870864471003}]
[null,"Mobile Home & Other",{"$f":"C28+C29","v":5},{"$f":"SQRT((D28^2)+(D29^2))","v":13},{"$f":"E28+E29","v":0},{"$f":"SQRT((F28^2)+(F29^2))","v":16.970562748477139},{"$f":"G28+G29","v":0},{"$f":"SQRT((H28^2)+(H29^2))","v":16.970562748477139},{"$f":"I28+I29","v":0},{"$f":"SQRT((J28^2)+(J29^2))","v":16.970562748477139},{"$f":"K28+K29","v":140},{"$f":"SQRT((L28^2)+(L29^2))","v":97.49358953285082},{"$f":"M28+M29","v":0},{"$f":"SQRT((N28^2)+(N29^2))","v":16.970562748477139},{"$f":"O28+O29","v":8},{"$f":"SQRT((P28^2)+(P29^2))","v":15},{"$f":"Q28+Q29","v":0},{"$f":"SQRT((R28^2)+(R29^2))","v":16.970562748477139},{"$f":"S28+S29","v":0},{"$f":"SQRT((T28^2)+(T29^2))","v":16.970562748477139},{"$f":"U28+U29","v":0},{"$f":"SQRT((V28^2)+(V29^2))","v":16.970562748477139},{"$f":"W28+W29","v":0},{"$f":"SQRT((X28^2)+(X29^2))","v":16.970562748477139},{"$f":"Y28+Y29","v":43},{"$f":"SQRT((Z28^2)+(Z29^2))","v":33.241540277189323},{"$f":"AA28+AA29","v":0},{"$f":"SQRT((AB28^2)+(AB29^2))","v":16.970562748477139},{"$f":"AC28+AC29","v":51},{"$f":"SQRT((AD28^2)+(AD29^2))","v":58.249463516842795},{"$f":"AE28+AE29","v":0},{"$f":"SQRT((AF28^2)+(AF29^2))","v":16.970562748477139},{"$f":"AG28+AG29","v":10},{"$f":"SQRT((AH28^2)+(AH29^2))","v":19.209372712298546},{"$f":"AI28+AI29","v":0},{"$f":"SQRT((AJ28^2)+(AJ29^2))","v":16.970562748477139},{"$f":"AK28+AK29","v":0},{"$f":"SQRT((AL28^2)+(AL29^2))","v":24.041630560342615},{"$f":"AM28+AM29","v":21},{"$f":"SQRT((AN28^2)+(AN29^2))","v":36.235341863986875}]
[]
[]
[]
[]
[]
[]
[]
[]
[]
[]
[]
[]
[]
[]
[]
[]
[]
[]
[]
[]
[]
[]
[]
[]
[]
[]
[]
[]
[]
[]
[]
[]
[]
[]
[]
[]
[]
[]
[]
[]
[null,"Calculated B25032. TENURE BY UNITS IN STRUCTURE "]
[null,"Universe:  OCCUPIED HOUSING UNITS"]
[null,"Data Set: 2013-2017 American Community Survey 5-Year Estimates"]
[]
[null,null,"Albany",null,"Bartlett",null,"Brookfield",null,"Chatham",null,"Conway",null,"Eaton",null,"Effingham",null,"Freedom",null,"Hale's Location",null,"Hart's Location",null,"Jackson",null,"Madison",null,"Moultonborough",null,"Ossipee",null,"Sandwich",null,"Tamworth",null,"Tuftonboro",null,"Wakefield",null,"Wolfeboro"]
[null," ","Estimate","Margin of Error","Estimate","Margin of Error","Estimate","Margin of Error","Estimate","Margin of Error","Estimate","Margin of Error","Estimate","Margin of Error","Estimate","Margin of Error","Estimate","Margin of Error","Estimate","Margin of Error","Estimate","Margin of Error","Estimate","Margin of Error","Estimate","Margin of Error","Estimate","Margin of Error","Estimate","Margin of Error","Estimate","Margin of Error","Estimate","Margin of Error","Estimate","Margin of Error","Estimate","Margin of Error","Estimate","Margin of Error"]
[null,"Total:",312,44,1408,164,326,77,142,36,4346,208,169,38,602,72,587,74,79,24,26,16,455,89,1069,85,1758,102,1962,185,617,73,1378,137,966,103,2066,185,2935,210]
[null,"Owner-occupied housing units:",270,43,972,176,290,65,124,27,3210,230,139,33,495,59,502,65,79,24,18,14,365,82,894,105,1498,124,1580,173,513,73,937,124,841,100,1841,183,2302,218]
[null,"Single Family",212,37,866,170,281,65,109,26,2324,231,137,33,448,59,479,63,77,23,18,14,339,79,811,107,1461,120,1212,173,504,74,794,153,754,85,1638,189,2116,219]
[null,"Multi-Family",9,29.103264421710495,85,75.465223778903621,9,30.364452901377952,8,25.278449319529077,466,203.80628057054571,2,27.239676943752471,6,27.604347483684521,10,30.838287890218549,0,29.103264421710495,0,29.103264421710495,26,35.284557528754704,0,29.103264421710495,30,32.649655434629018,42,39.887341350358263,3,27.404379212089442,0,29.103264421710495,4,27.604347483684521,33,51.322509681425359,155,111.10805551354051]
[null,"Mobile Home & Other",49,30.083217912982647,21,27.313000567495326,0,15.556349186104045,7,12.529964086141668,420,176.91806012954132,0,15.556349186104045,41,21.95449840010015,13,15.556349186104045,2,12.083045973594572,0,15.556349186104045,0,15.556349186104045,83,53.150729063673246,7,15.556349186104045,326,127.57742747053649,6,12.529964086141668,143,78.771822373231913,83,45.354161881794269,170,104.23531071570709,31,39.395431207184416]
[null,"Renter-occupied housing units:",42,21,436,142,36,38,18,22,1136,254,30,14,107,48,85,32,0,11,8,9,90,48,175,56,260,93,382,138,104,43,441,148,125,64,225,101,633,207]
[null,"Single Family",19,10,209,92,36,38,3,6,238,127,27,14,58,37,71,29,0,11,8,9,74,42,122,51,194,87,107,90,82,41,145,86,116,62,141,98,211,148]
[null,"Multi-Family",18,31.480152477394387,227,128.49902723367208,0,29.103264421710495,15,33.555923471125034,805,236.74247612120644,3,27.239676943752471,41,36.783148315499041,9,28.407745422683583,0,29.103264421710495,0,29.103264421710495,16,32.403703492039298,53,45.420259796703057,33,30.182776545573141,228,131.06105447462264,22,25.495097567963924,281,137.88763541376724,9,26.267851073127396,66,63.694583757176716,422,217.51551668789057]
[null,"Mobile Home & Other",5,12.529964086141668,0,15.556349186104045,0,15.556349186104045,0,15.556349186104045,93,76.157731058639087,0,15.556349186104045,8,13.601470508735444,5,12.529964086141668,0,15.556349186104045,0,15.556349186104045,0,15.556349186104045,0,15.556349186104045,33,40.521599178709621,47,46.324939287601879,0,15.556349186104045,15,23.706539182259394,0,15.556349186104045,18,32.249030993194197,0,22.627416997969522]
[]
[]
[]
[null,"Calculated B25032. TENURE BY UNITS IN STRUCTURE "]
[null,"Universe:  OCCUPIED HOUSING UNITS"]
[null,"Data Set: 2008-2012 American Community Survey 5-Year Estimates"]
[]
[null,null,"Albany",null,"Bartlett",null,"Brookfield",null,"Chatham",null,"Conway",null,"Eaton",null,"Effingham",null,"Freedom",null,"Hale's Location",null,"Hart's Location",null,"Jackson",null,"Madison",null,"Moultonborough",null,"Ossipee",null,"Sandwich",null,"Tamworth",null,"Tuftonboro",null,"Wakefield",null,"Wolfeboro"]
[null," ","Estimate","Margin of Error","Estimate","Margin of Error","Estimate","Margin of Error","Estimate","Margin of Error","Estimate","Margin of Error","Estimate","Margin of Error","Estimate","Margin of Error","Estimate","Margin of Error","Estimate","Margin of Error","Estimate","Margin of Error","Estimate","Margin of Error","Estimate","Margin of Error","Estimate","Margin of Error","Estimate","Margin of Error","Estimate","Margin of Error","Estimate","Margin of Error","Estimate","Margin of Error","Estimate","Margin of Error","Estimate","Margin of Error"]
[null,"Total:",338,61,1381,148,257,57,166,46,4452,262,176,34,495,68,554,65,52,13,28,19,407,80,1044,102,1793,98,1697,144,592,81,1353,138,1041,115,2216,215,2590,178]
[null,"Owner-occupied housing units:",288,61,1128,151,242,53,146,42,2834,277,156,30,434,64,482,65,52,13,7,9,334,75,853,97,1631,128,1404,150,494,70,1070,136,907,104,1991,198,2165,196]
[null,"Single Family",224,49,858,145,242,53,130,38,2246,262,152,30,405,59,455,62,51,13,7,9,309,74,810,107,1608,131,978,150,481,69,923,133,830,98,1794,195,1963,189]
[null,"Multi-Family",4,27.404379212089442,236,114.76933388322858,0,29.103264421710495,0,29.103264421710495,207,116.30133275246678,4,27.604347483684521,6,25.238858928247925,3,27.239676943752471,1,27.018512172212592,0,29.103264421710495,25,33.451457367355459,17,30.364452901377952,0,29.103264421710495,12,32.403703492039298,3,27.404379212089442,44,50.049975024968795,0,29.103264421710495,163,114.85207877961983,115,74.256312862947894]
[null,"Mobile Home & Other",60,40.521599178709621,34,38.600518131237564,0,15.556349186104045,16,17.804493814764857,381,135.20355024924456,0,15.556349186104045,23,19.416487838947599,24,21.095023109728988,0,15.556349186104045,0,15.556349186104045,0,15.556349186104045,26,32.893768406797051,23,23.706539182259394,414,138.07968713753664,10,14.212670403551895,103,55.108982933819419,77,42.449970553582247,34,39.395431207184416,87,59.203040462462738]
[null,"Renter-occupied housing units:",50,26,253,105,15,19,20,13,1618,293,20,17,61,34,72,32,0,11,21,17,73,37,191,79,162,74,293,97,98,37,283,117,134,71,225,131,425,154]
[null,"Single Family",20,14,97,77,13,19,6,9,389,170,11,10,22,17,42,28,0,11,21,17,56,35,54,38,95,66,151,72,88,35,107,82,79,51,90,65,226,121]
[null,"Multi-Family",10,29.49576240750525,140,87.034475927646056,2,27.239676943752471,9,28.106938645110393,1129,272.11578418019047,9,26.870057685088806,30,34.612136599753562,30,32.093613071762427,0,29.103264421710495,0,29.103264421710495,17,29.49576240750525,72,56.258332716140814,54,43.058100283221968,118,87.384209099813916,10,28.26658805020514,157,91.869472622846814,55,50.089919145472777,102,116.92732785794773,199,139.27670300520472]
[null,"Mobile Home & Other",20,21.095023109728988,16,26.40075756488817,0,15.556349186104045,5,13.038404810405298,100,71.309185944028272,0,15.556349186104045,9,18.601075237738275,0,15.556349186104045,0,15.556349186104045,0,15.556349186104045,0,15.556349186104045,65,50.219518117958877,13,21.095023109728988,24,35.735136770411273,0,15.556349186104045,19,26.40075756488817,0,15.556349186104045,33,46.818799642878503,0,22.627416997969522]

{"sheet":"ACS_Table_B25034","index":50,"n_rows":58,"n_cols":40,"rows_kept":58,"cut":false,"hidden":true,"merged":[]}
[null,"B25034. YEAR STRUCTURE BUILT"]
[null,"Universe:  HOUSING UNITS"]
[null,"Data Set: 2018-2022 American Community Survey 5-Year Estimates"]
[]
[null,null,"Albany",null,"Bartlett",null,"Brookfield",null,"Chatham",null,"Conway",null,"Eaton",null,"Effingham",null,"Freedom",null,"Hale's Location",null,"Hart's Location",null,"Jackson",null,"Madison",null,"Moultonborough",null,"Ossipee",null,"Sandwich",null,"Tamworth",null,"Tuftonboro",null,"Wakefield",null,"Wolfeboro"]
[null," ","Estimate","Margin of Error","Estimate","Margin of Error","Estimate","Margin of Error","Estimate","Margin of Error","Estimate","Margin of Error","Estimate","Margin of Error","Estimate","Margin of Error","Estimate","Margin of Error","Estimate","Margin of Error","Estimate","Margin of Error","Estimate","Margin of Error","Estimate","Margin of Error","Estimate","Margin of Error","Estimate","Margin of Error","Estimate","Margin of Error","Estimate","Margin of Error","Estimate","Margin of Error","Estimate","Margin of Error","Estimate","Margin of Error"]
[null,"Total:",538,100,4613,297,291,70,269,55,6810,414,260,47,886,70,1728,130,133,46,69,36,1065,139,1822,164,4998,252,2879,218,1325,190,1591,234,2542,122,3785,241,4285,287]
[null,"Built 2020 or later",0,12,0,12,0,12,0,12,0,17,0,12,4,5,0,12,0,12,0,12,0,12,0,12,51,38,0,12,3,4,0,12,3,7,0,17,0,17]
[null,"Built 2010 to 2019",33,16,34,44,8,7,20,15,396,165,2,3,70,42,123,59,6,7,1,3,35,29,74,44,249,111,218,111,120,81,69,69,37,35,271,135,138,84]
[null,"Built 2000 to 2009",106,71,608,187,41,22,57,21,907,238,36,20,146,47,215,60,80,39,7,8,72,40,286,91,687,230,652,179,124,44,174,119,362,107,637,221,526,192]
[null,"Built 1990 to 1999",24,17,190,98,25,19,24,12,656,212,28,15,124,42,230,73,46,21,6,7,94,65,249,101,983,221,120,90,113,44,164,78,146,60,338,145,681,234]
[null,"Built 1980 to 1989",93,35,2079,288,41,21,48,22,1662,361,58,23,100,36,454,99,1,2,5,7,224,76,388,103,982,206,476,145,111,39,223,91,372,113,664,254,1013,263]
[null,"Built 1970 to 1979",69,30,696,189,59,23,25,18,960,283,19,12,69,30,219,67,0,12,32,25,233,79,299,100,736,205,415,158,154,69,357,172,379,110,418,177,458,218]
[null,"Built 1960 to 1969",65,37,483,168,31,28,10,9,383,189,24,14,109,47,170,55,0,12,18,24,180,54,168,80,622,181,106,72,70,40,81,83,402,120,494,248,312,138]
[null,"Built 1950 to 1959",27,21,158,155,12,11,7,8,391,179,20,14,77,48,83,40,0,12,0,12,26,20,52,35,211,101,228,106,76,36,59,50,269,108,314,167,112,96]
[null,"Built 1940 to 1949",21,17,67,64,0,12,8,11,291,144,3,5,21,19,12,18,0,12,0,12,17,20,31,28,11,19,197,84,167,147,117,97,136,85,221,246,218,135]
[null,"Built 1939 or earlier",100,49,298,138,74,32,70,28,1164,288,70,23,166,53,222,77,0,12,0,12,184,71,275,87,466,146,467,157,387,91,347,133,436,126,428,180,827,276]
[]
[]
[]
[]
[null,"B25034. YEAR STRUCTURE BUILT"]
[null,"Universe:  HOUSING UNITS"]
[null,"Data Set: 2013-2017 American Community Survey 5-Year Estimates"]
[]
[null,null,"Albany",null,"Bartlett",null,"Brookfield",null,"Chatham",null,"Conway",null,"Eaton",null,"Effingham",null,"Freedom",null,"Hale's Location",null,"Hart's Location",null,"Jackson",null,"Madison",null,"Moultonborough",null,"Ossipee",null,"Sandwich",null,"Tamworth",null,"Tuftonboro",null,"Wakefield",null,"Wolfeboro"]
[null," ","Estimate","Margin of Error","Estimate","Margin of Error","Estimate","Margin of Error","Estimate","Margin of Error","Estimate","Margin of Error","Estimate","Margin of Error","Estimate","Margin of Error","Estimate","Margin of Error","Estimate","Margin of Error","Estimate","Margin of Error","Estimate","Margin of Error","Estimate","Margin of Error","Estimate","Margin of Error","Estimate","Margin of Error","Estimate","Margin of Error","Estimate","Margin of Error","Estimate","Margin of Error","Estimate","Margin of Error","Estimate","Margin of Error"]
[null,"Total:",553,69,4245,245,389,79,256,49,6823,309,288,48,968,91,1899,102,101,29,58,21,999,111,2030,122,4843,222,3270,268,971,108,2060,213,2373,95,3845,265,4758,248]
[null,"Built 2014 or later",0,11,0,11,0,11,0,11,0,18,0,11,0,11,0,11,0,11,0,11,0,11,11,13,35,45,0,11,3,4,0,11,0,11,0,16,0,16]
[null,"Built 2010 to 2013",15,11,0,11,0,11,4,5,90,56,0,11,11,9,8,8,7,6,0,11,0,11,39,31,52,41,35,47,3,5,0,11,16,26,0,16,168,122]
[null,"Built 2000 to 2009",83,32,367,146,73,26,48,19,700,238,51,25,280,51,308,64,60,21,10,10,75,38,426,92,619,156,573,160,144,53,258,127,436,104,1044,262,692,265]
[null,"Built 1990 to 1999",67,27,537,143,25,16,29,22,505,180,15,13,98,36,409,80,32,15,3,4,94,42,177,67,856,199,413,166,93,35,238,135,242,78,300,131,855,242]
[null,"Built 1980 to 1989",88,36,1824,242,60,36,38,24,2076,320,41,17,134,40,408,76,2,5,10,8,194,59,459,97,969,199,681,186,174,54,620,205,378,99,727,253,710,211]
[null,"Built 1970 to 1979",102,34,663,171,73,35,25,17,1425,278,46,23,126,39,256,53,0,11,20,15,183,57,407,92,800,209,517,190,73,29,299,150,271,90,449,192,287,150]
[null,"Built 1960 to 1969",58,27,270,122,20,14,21,17,550,196,39,25,35,20,212,53,0,11,4,6,157,60,110,47,586,191,233,91,58,30,66,67,306,110,293,155,334,163]
[null,"Built 1950 to 1959",37,22,43,49,26,24,7,8,176,80,12,12,72,34,115,41,0,11,6,6,77,42,88,54,399,139,151,84,19,16,154,118,205,66,286,137,438,197]
[null,"Built 1940 to 1949",21,16,22,23,5,6,15,15,108,57,4,4,13,15,26,22,0,11,0,11,30,26,51,37,145,69,44,50,29,24,0,11,110,50,46,72,183,142]
[null,"Built 1939 or earlier",82,34,519,143,107,35,69,21,1193,219,80,24,199,53,157,44,0,11,5,8,189,58,262,85,382,135,623,165,375,67,425,152,409,114,700,233,1091,258]
[]
[]
[]
[]
[null,"B25034. YEAR STRUCTURE BUILT"]
[null,"Universe:  HOUSING UNITS"]
[null,"Data Set: 2008-2012 American Community Survey 5-Year Estimates"]
[]
[null,null,"Albany",null,"Bartlett",null,"Brookfield",null,"Chatham",null,"Conway",null,"Eaton",null,"Effingham",null,"Freedom",null,"Hale's Location",null,"Hart's Location",null,"Jackson",null,"Madison",null,"Moultonborough",null,"Ossipee",null,"Sandwich",null,"Tamworth",null,"Tuftonboro",null,"Wakefield",null,"Wolfeboro"]
[null," ","Estimate","Margin of Error","Estimate","Margin of Error","Estimate","Margin of Error","Estimate","Margin of Error","Estimate","Margin of Error","Estimate","Margin of Error","Estimate","Margin of Error","Estimate","Margin of Error","Estimate","Margin of Error","Estimate","Margin of Error","Estimate","Margin of Error","Estimate","Margin of Error","Estimate","Margin of Error","Estimate","Margin of Error","Estimate","Margin of Error","Estimate","Margin of Error","Estimate","Margin of Error","Estimate","Margin of Error","Estimate","Margin of Error"]
[null,"Total:",632,80,4161,244,312,62,267,57,6654,297,284,43,926,85,1712,99,83,23,63,24,998,104,1988,141,4917,178,3055,225,979,100,2066,154,2391,92,4108,244,4182,237]
[null,"Built 2010 or later",0,11,0,11,0,11,0,11,0,18,0,11,0,11,3,5,0,11,0,11,0,11,0,11,7,11,30,46,0,11,0,11,0,11,0,16,0,16]
[null,"Built 2000 to 2009",78,45,147,86,56,30,24,16,756,203,33,14,127,38,161,44,36,18,0,11,68,37,265,87,474,137,475,153,114,38,91,53,372,116,460,182,458,162]
[null,"Built 1990 to 1999",45,22,321,139,3,5,52,34,931,211,17,16,82,28,233,71,43,18,14,13,142,49,267,80,696,151,364,136,110,41,299,140,279,88,131,91,553,160]
[null,"Built 1980 to 1989",113,45,2078,300,40,20,25,15,1674,308,52,23,160,43,574,93,0,11,16,13,216,70,465,109,1162,220,915,178,111,38,386,109,284,96,748,216,601,220]
[null,"Built 1970 to 1979",156,49,883,184,52,22,46,18,1144,311,27,15,134,44,236,56,2,4,21,18,195,52,339,107,963,222,542,190,101,33,471,130,295,97,914,244,437,162]
[null,"Built 1960 to 1969",34,23,251,122,28,23,20,17,505,169,26,18,102,39,179,57,0,11,7,9,134,43,285,86,612,167,156,78,67,31,223,79,285,100,670,230,547,212]
[null,"Built 1950 to 1959",50,25,69,61,19,15,22,12,173,91,35,21,139,46,92,41,0,11,5,6,40,34,93,60,393,117,226,113,42,26,42,33,343,114,292,152,380,183]
[null,"Built 1940 to 1949",35,25,27,33,14,17,16,12,193,105,10,8,12,11,55,26,0,11,0,11,22,19,34,37,158,88,14,23,31,22,0,11,132,57,336,192,155,110]
[null,"Built 1939 or earlier",121,47,385,123,100,41,62,25,1278,236,84,27,170,52,179,51,2,5,0,11,181,52,240,90,452,147,333,122,403,71,554,143,401,103,557,170,1051,256]

{"sheet":"ACS_Table_B25041","index":51,"n_rows":73,"n_cols":40,"rows_kept":73,"cut":false,"hidden":true,"merged":[]}
[null,"B25041. BEDROOMS "]
[null,"Universe:  HOUSING UNITS"]
[null,"Data Set: 2018-2022 American Community Survey 5-Year Estimates"]
[]
[null,null,"Albany",null,"Bartlett",null,"Brookfield",null,"Chatham",null,"Conway",null,"Eaton",null,"Effingham",null,"Freedom",null,"Hale's Location",null,"Hart's Location",null,"Jackson",null,"Madison",null,"Moultonborough",null,"Ossipee",null,"Sandwich",null,"Tamworth",null,"Tuftonboro",null,"Wakefield",null,"Wolfeboro"]
[null," ","Estimate","Margin of Error","Estimate","Margin of Error","Estimate","Margin of Error","Estimate","Margin of Error","Estimate","Margin of Error","Estimate","Margin of Error","Estimate","Margin of Error","Estimate","Margin of Error","Estimate","Margin of Error","Estimate","Margin of Error","Estimate","Margin of Error","Estimate","Margin of Error","Estimate","Margin of Error","Estimate","Margin of Error","Estimate","Margin of Error","Estimate","Margin of Error","Estimate","Margin of Error","Estimate","Margin of Error","Estimate","Margin of Error"]
[null,"Total:",538,100,4613,297,291,70,269,55,6810,414,260,47,886,70,1728,130,133,46,69,36,1065,139,1822,164,4998,252,2879,218,1325,190,1591,234,2542,122,3785,241,4285,287]
[null,"No bedroom",29,22,125,85,6,9,18,14,169,120,25,20,21,18,0,12,0,12,4,6,24,22,12,17,44,49,57,54,31,27,0,12,74,49,104,105,122,88]
[null,"1 bedroom",53,30,483,157,3,4,21,15,617,220,2,2,111,54,140,67,0,12,7,8,111,59,73,45,414,144,293,120,225,160,190,111,160,73,102,92,287,147]
[null,"2 bedrooms",174,48,1794,352,45,27,55,23,1957,364,85,29,231,54,529,106,3,4,26,25,189,63,429,118,908,210,761,201,393,122,409,165,535,118,971,292,1073,267]
[null,"3 bedrooms",220,75,1627,304,153,39,134,33,2945,363,89,28,297,62,789,109,77,31,25,25,444,106,944,182,2179,326,1301,204,407,89,671,186,1298,170,1835,382,1883,289]
[null,"4 bedrooms",53,26,518,181,53,38,25,16,844,225,46,19,150,50,184,54,49,34,4,7,262,85,258,91,1004,222,413,142,217,53,321,130,393,106,705,289,636,228]
[null,"5 or more bedrooms",9,14,66,74,31,16,16,12,278,155,13,10,76,43,86,47,4,7,3,5,35,29,106,52,449,141,54,57,52,27,0,12,82,51,68,84,284,165]
[]
[]
[null,"Calculated B25041. BEDROOMS "]
[null,"Universe:  HOUSING UNITS"]
[null,"Data Set: 2018-2022 American Community Survey 5-Year Estimates"]
[]
[null,null,"Albany",null,"Bartlett",null,"Brookfield",null,"Chatham",null,"Conway",null,"Eaton",null,"Effingham",null,"Freedom",null,"Hale's Location",null,"Hart's Location",null,"Jackson",null,"Madison",null,"Moultonborough",null,"Ossipee",null,"Sandwich",null,"Tamworth",null,"Tuftonboro",null,"Wakefield",null,"Wolfeboro"]
[null," ","Estimate","Margin of Error","Estimate","Margin of Error","Estimate","Margin of Error","Estimate","Margin of Error","Estimate","Margin of Error","Estimate","Margin of Error","Estimate","Margin of Error","Estimate","Margin of Error","Estimate","Margin of Error","Estimate","Margin of Error","Estimate","Margin of Error","Estimate","Margin of Error","Estimate","Margin of Error","Estimate","Margin of Error","Estimate","Margin of Error","Estimate","Margin of Error","Estimate","Margin of Error","Estimate","Margin of Error","Estimate","Margin of Error"]
[null,"Total:",{"$f":"C7","v":538},{"$f":"D7","v":100},4613,297,291,70,269,55,6810,414,260,47,886,70,1728,130,133,46,69,36,1065,139,1822,164,4998,252,2879,218,1325,190,1591,234,2542,122,3785,241,4285,287]
[null,"No bedroom",{"$f":"C8","v":29},22,125,85,6,9,18,14,169,120,25,20,21,18,0,12,0,12,4,6,24,22,12,17,44,49,57,54,31,27,0,12,74,49,104,105,122,88]
[null,"1 bedroom",{"$f":"C9","v":53},30,483,157,3,4,21,15,617,220,2,2,111,54,140,67,0,12,7,8,111,59,73,45,414,144,293,120,225,160,190,111,160,73,102,92,287,147]
[null,"2 bedrooms",{"$f":"C10","v":174},48,1794,352,45,27,55,23,1957,364,85,29,231,54,529,106,3,4,26,25,189,63,429,118,908,210,761,201,393,122,409,165,535,118,971,292,1073,267]
[null,"3 bedrooms",{"$f":"C11","v":220},75,1627,304,153,39,134,33,2945,363,89,28,297,62,789,109,77,31,25,25,444,106,944,182,2179,326,1301,204,407,89,671,186,1298,170,1835,382,1883,289]
[null,"4 + bedrooms",{"$f":"C12+C13","v":62},{"$f":"SQRT((D12^2)+(D13^2))","v":29.529646120466801},{"$f":"E12+E13","v":584},{"$f":"SQRT((F12^2)+(F13^2))","v":195.54283418218117},{"$f":"G12+G13","v":84},{"$f":"SQRT((H12^2)+(H13^2))","v":41.231056256176608},{"$f":"I12+I13","v":41},{"$f":"SQRT((J12^2)+(J13^2))","v":20},{"$f":"K12+K13","v":1122},{"$f":"SQRT((L12^2)+(L13^2))","v":273.22152184628504},{"$f":"M12+M13","v":59},{"$f":"SQRT((N12^2)+(N13^2))","v":21.470910553583888},{"$f":"O12+O13","v":226},{"$f":"SQRT((P12^2)+(P13^2))","v":65.946948375190189},{"$f":"Q12+Q13","v":270},{"$f":"SQRT((R12^2)+(R13^2))","v":71.589105316381762},{"$f":"S12+S13","v":53},{"$f":"SQRT((T12^2)+(T13^2))","v":34.713109915419565},{"$f":"U12+U13","v":7},{"$f":"SQRT((V12^2)+(V13^2))","v":8.6023252670426267},{"$f":"W12+W13","v":297},{"$f":"SQRT((X12^2)+(X13^2))","v":89.810912477270818},{"$f":"Y12+Y13","v":364},{"$f":"SQRT((Z12^2)+(Z13^2))","v":104.80935072788114},{"$f":"AA12+AA13","v":1453},{"$f":"SQRT((AB12^2)+(AB13^2))","v":262.99239532731741},{"$f":"AC12+AC13","v":467},{"$f":"SQRT((AD12^2)+(AD13^2))","v":153.0130713370593},{"$f":"AE12+AE13","v":269},{"$f":"SQRT((AF12^2)+(AF13^2))","v":59.481089431852205},{"$f":"AG12+AG13","v":321},{"$f":"SQRT((AH12^2)+(AH13^2))","v":130.55267136294071},{"$f":"AI12+AI13","v":475},{"$f":"SQRT((AJ12^2)+(AJ13^2))","v":117.63077828527702},{"$f":"AK12+AK13","v":773},{"$f":"SQRT((AL12^2)+(AL13^2))","v":300.96013024983893},{"$f":"AM12+AM13","v":920},{"$f":"SQRT((AN12^2)+(AN13^2))","v":281.44093518889537}]
[]
[]
[]
[]
[]
[]
[]
[]
[]
[]
[]
[]
[]
[]
[]
[]
[]
[]
[]
[null,"Calculated B25041. BEDROOMS "]
[null,"Universe:  HOUSING UNITS"]
[null,"Data Set: 2013-2017 American Community Survey 5-Year Estimates"]
[]
[null,null,"Albany",null,"Bartlett",null,"Brookfield",null,"Chatham",null,"Conway",null,"Eaton",null,"Effingham",null,"Freedom",null,"Hale's Location",null,"Hart's Location",null,"Jackson",null,"Madison",null,"Moultonborough",null,"Ossipee",null,"Sandwich",null,"Tamworth",null,"Tuftonboro",null,"Wakefield",null,"Wolfeboro"]
[null," ","Estimate","Margin of Error","Estimate","Margin of Error","Estimate","Margin of Error","Estimate","Margin of Error","Estimate","Margin of Error","Estimate","Margin of Error","Estimate","Margin of Error","Estimate","Margin of Error","Estimate","Margin of Error","Estimate","Margin of Error","Estimate","Margin of Error","Estimate","Margin of Error","Estimate","Margin of Error","Estimate","Margin of Error","Estimate","Margin of Error","Estimate","Margin of Error","Estimate","Margin of Error","Estimate","Margin of Error","Estimate","Margin of Error"]
[null,"Total:",553,69,4245,245,389,79,256,49,6823,309,288,48,968,91,1899,102,101,29,58,21,999,111,2030,122,4843,222,3270,268,971,108,2060,213,2373,95,3845,265,4758,248]
[null,"No bedroom",28,19,376,129,4,6,9,12,72,84,0,11,4,5,26,23,0,11,0,11,9,14,37,36,33,39,144,104,18,20,27,30,60,43,68,79,153,102]
[null,"1 bedroom",71,28,338,107,11,15,36,19,569,155,13,11,44,24,245,53,0,11,2,3,39,29,117,55,189,106,413,134,75,38,325,144,143,57,306,151,417,155]
[null,"2 bedrooms",149,44,1241,220,48,27,88,33,2516,293,83,27,316,63,547,91,8,6,18,13,255,63,375,97,1374,251,872,206,292,57,504,196,651,123,876,282,1435,320]
[null,"3 bedrooms",252,45,1810,238,204,50,79,31,2297,322,120,34,456,80,809,108,58,22,28,17,441,94,1085,121,2112,279,1325,228,374,76,834,255,937,141,2149,354,1799,319]
[null,"4 bedrooms",47,27,428,153,72,33,35,16,1035,249,53,25,108,39,218,59,35,17,10,9,208,62,275,81,793,206,397,161,189,52,257,134,413,97,257,155,737,247]
[null,"5 or more bedrooms",6,10,52,53,50,36,9,8,334,142,19,15,40,35,54,26,0,11,0,11,47,36,141,67,342,125,119,83,23,17,113,83,169,73,189,120,217,105]
[]
[]
[null,"Calculated B25041. BEDROOMS "]
[null,"Universe:  HOUSING UNITS"]
[null,"Data Set: 2008-2012 American Community Survey 5-Year Estimates"]
[]
[null,null,"Albany",null,"Bartlett",null,"Brookfield",null,"Chatham",null,"Conway",null,"Eaton",null,"Effingham",null,"Freedom",null,"Hale's Location",null,"Hart's Location",null,"Jackson",null,"Madison",null,"Moultonborough",null,"Ossipee",null,"Sandwich",null,"Tamworth",null,"Tuftonboro",null,"Wakefield",null,"Wolfeboro"]
[null," ","Estimate","Margin of Error","Estimate","Margin of Error","Estimate","Margin of Error","Estimate","Margin of Error","Estimate","Margin of Error","Estimate","Margin of Error","Estimate","Margin of Error","Estimate","Margin of Error","Estimate","Margin of Error","Estimate","Margin of Error","Estimate","Margin of Error","Estimate","Margin of Error","Estimate","Margin of Error","Estimate","Margin of Error","Estimate","Margin of Error","Estimate","Margin of Error","Estimate","Margin of Error","Estimate","Margin of Error","Estimate","Margin of Error"]
[null,"Total:",652,75,4111,226,297,57,243,41,6689,319,293,45,917,87,1734,94,105,29,61,24,974,100,1915,96,4919,199,3080,205,1037,98,1977,166,2392,104,4022,273,4231,285]
[null,"No bedroom",14,12,161,56,0,85,10,9,97,96,5,6,22,16,5,8,6,11,0,85,32,28,0,85,20,25,28,35,23,22,45,39,31,30,68,79,59,83]
[null,"1 bedroom",59,29,360,149,13,14,24,14,603,178,18,12,147,44,167,65,0,85,17,16,74,35,92,54,282,107,350,122,102,41,231,103,221,85,331,137,523,221]
[null,"2 bedrooms",170,51,1585,238,71,33,75,29,2120,361,67,26,344,65,498,86,9,9,26,16,265,63,608,118,1159,223,888,175,307,57,674,149,806,152,1736,291,943,268]
[null,"3 bedrooms",378,64,1466,215,133,41,100,35,2870,417,150,34,298,59,835,81,71,26,14,13,367,73,937,133,2559,246,1362,220,372,67,836,152,987,157,1402,308,1743,300]
[null,"4 + bedrooms",31,88.056799851005266,539,162.07714212682799,80,36.687872655688281,34,17.029386365926403,999,199.96499693696396,53,25,106,41.677331968349414,229,63.7808748764079,19,15.132745950421556,4,85.211501571090736,236,62.241465278381739,278,81.394102980498531,899,199.61963831246663,452,146.72763884149435,233,55.317266743757322,191,66.037867924396224,347,113.52973178863765,485,155.12897859523216,963,227.06827167175956]

{"sheet":"PovertyCharacteristics","index":52,"n_rows":80,"n_cols":17,"rows_kept":80,"cut":false,"hidden":true,"merged":[[21,15,21,16],[49,15,49,16],[64,15,64,16],[77,2,78,3],[77,6,78,9],[77,11,78,13],[21,11,21,13],[49,11,49,14],[64,3,64,5],[64,7,64,9],[64,11,64,14],[21,3,21,5],[21,7,21,9],[30,2,31,4],[30,7,31,9],[30,11,31,13]]}
[]
[null,null,{"$f":"CntyDataLink!A86","v":"Wolfeboro"}]
[null,null,"POVERTY CHARACTERISTICS"]
[]
[]
[]
[]
[]
[]
[]
[]
[]
[]
[]
[]
[]
[]
[null,null,null,null,null,null,null,null,null,null,null,null,"2012 Income (2008-2012 ACS)"]
[null,null,null,null,null,null,null,null,null,null,null,null,"2017 Income (2013-2017 ACS)"]
[null,null,null,null,null,null,null,null,null,null,null,null,"2022 Income (2018-2022 ACS)"]
[]
[null,null,null,"2012 Inc below Poverty Level",null,null,null,"2017 Inc below Poverty Level",null,null,null,"2022 Inc below Poverty Level",null,null,null,"Statistically Significant Change"]
[null,null,"Population","Estimate","Margin of Error","% of Population in Poverty",null,"Estimate","Margin of Error","% of Population in Poverty",null,"Estimate","Margin of Error","% of Population in Poverty",null,"2012-2022","2017-2022"]
[null,null," Total Individuals living Poverty",{"$f":"CntyDataLinkPrior10YearEstimate!$D$124","v":484},{"$f":"CntyDataLinkPrior10YearEstimate!$E$124","v":239},{"$f":"D24/CntyDataLinkPrior10YearEstimate!$B$124","v":7.8635255889520708E-2},null,{"$f":"CntyDataLinkPrior5YearEstimates!$D$124","v":340},{"$f":"CntyDataLinkPrior5YearEstimates!$E$124","v":252},{"$f":"H24/CntyDataLinkPrior5YearEstimates!$B$124","v":5.5464926590538338E-2},null,{"$f":"CntyDataLink!$D$124","v":588},{"$f":"CntyDataLink!$E$124","v":242},{"$f":"L24/CntyDataLink!$B$124","v":9.2119692934356887E-2},null,{"$f":"StatisticallySignificantCalcs!A111","v":"N"},{"$f":"StatisticallySignificantCalcs!J111","v":"N"}]
[null,null,"Under 5 yrs.",{"$f":"CntyDataLinkPrior10YearEstimate!$F$124","v":75},{"$f":"CntyDataLinkPrior10YearEstimate!$G$124","v":98.615414616580097},{"$f":"D25/(CntyDataLinkPrior10YearEstimate!$F$124+CntyDataLinkPrior10YearEstimate!$R$124)","v":0.390625},null,{"$f":"CntyDataLinkPrior5YearEstimates!$F$124","v":39},{"$f":"CntyDataLinkPrior5YearEstimates!$G$124","v":72.718635850791372},{"$f":"H25/(CntyDataLinkPrior5YearEstimates!$F$124+CntyDataLinkPrior5YearEstimates!$R$124)","v":0.19402985074626866},null,{"$f":"CntyDataLink!$F$124","v":24},{"$f":"CntyDataLink!$G$124","v":86.005813756978085},{"$f":"L25/(CntyDataLink!$F$124+CntyDataLink!$R$124)","v":0.92307692307692313},null,{"$f":"StatisticallySignificantCalcs!A112","v":"N"},{"$f":"StatisticallySignificantCalcs!J112","v":"N"}]
[null,null,"5 to 17 yrs.",{"$f":"CntyDataLinkPrior10YearEstimate!$H$124","v":52},{"$f":"CntyDataLinkPrior10YearEstimate!$I$124","v":92.870878105033555},{"$f":"D26/(CntyDataLinkPrior10YearEstimate!$H$124+CntyDataLinkPrior10YearEstimate!$T$124)","v":4.8507462686567165E-2},null,{"$f":"CntyDataLinkPrior5YearEstimates!$H$124","v":0},{"$f":"CntyDataLinkPrior5YearEstimates!$I$124","v":48.166378315169183},{"$f":"H26/(CntyDataLinkPrior5YearEstimates!$H$124+CntyDataLinkPrior5YearEstimates!$T$124)","v":0},null,{"$f":"CntyDataLink!$H$124","v":115},{"$f":"CntyDataLink!$I$124","v":64.529063219606712},{"$f":"L26/(CntyDataLink!$H$124+CntyDataLink!$T$124)","v":0.14075887392900857},null,{"$f":"StatisticallySignificantCalcs!A113","v":"N"},{"$f":"StatisticallySignificantCalcs!J113","v":"N"}]
[null,null,"18 to 64 yrs.",{"$f":"CntyDataLinkPrior10YearEstimate!$J$124","v":265},{"$f":"CntyDataLinkPrior10YearEstimate!$K$124","v":154.60595072635465},{"$f":"D27/(CntyDataLinkPrior10YearEstimate!$J$124+CntyDataLinkPrior10YearEstimate!$V$124)","v":8.250311332503113E-2},null,{"$f":"CntyDataLinkPrior5YearEstimates!$J$124","v":301},{"$f":"CntyDataLinkPrior5YearEstimates!$K$124","v":196.80701207020039},{"$f":"H27/(CntyDataLinkPrior5YearEstimates!$J$124+CntyDataLinkPrior5YearEstimates!$V$124)","v":9.6350832266325223E-2},null,{"$f":"CntyDataLink!$J$124","v":264},{"$f":"CntyDataLink!$K$124","v":164.11276610916045},{"$f":"L27/(CntyDataLink!$J$124+CntyDataLink!$V$124)","v":7.8152753108348141E-2},null,{"$f":"StatisticallySignificantCalcs!A114","v":"Y"},{"$f":"StatisticallySignificantCalcs!J114","v":"Y"}]
[null,null,"65 to 74 yrs.",{"$f":"CntyDataLinkPrior10YearEstimate!$L$124","v":0},{"$f":"CntyDataLinkPrior10YearEstimate!$M$124","v":22.627416997969522},{"$f":"D28/(CntyDataLinkPrior10YearEstimate!$L$124+CntyDataLinkPrior10YearEstimate!$X$124)","v":0},null,{"$f":"CntyDataLinkPrior5YearEstimates!$L$124","v":0},{"$f":"CntyDataLinkPrior5YearEstimates!$M$124","v":22.627416997969522},{"$f":"H28/(CntyDataLinkPrior5YearEstimates!$L$124+CntyDataLinkPrior5YearEstimates!$X$124)","v":0},null,{"$f":"CntyDataLink!$L$124","v":70},{"$f":"CntyDataLink!$M$124","v":95.524865872714003},{"$f":"L28/(CntyDataLink!$L$124+CntyDataLink!$X$124)","v":7.1210579857578837E-2},null,{"$f":"StatisticallySignificantCalcs!A115","v":"N"},{"$f":"StatisticallySignificantCalcs!J115","v":"N"}]
[null,null,"75 yrs. & Over",{"$f":"CntyDataLinkPrior10YearEstimate!$N$124","v":92},{"$f":"CntyDataLinkPrior10YearEstimate!$O$124","v":89.537701556383496},{"$f":"D29/(CntyDataLinkPrior10YearEstimate!$N$124+CntyDataLinkPrior10YearEstimate!$Z$124)","v":0.12382234185733512},null,{"$f":"CntyDataLinkPrior5YearEstimates!$N$124","v":0},{"$f":"CntyDataLinkPrior5YearEstimates!$O$124","v":22.627416997969522},{"$f":"H29/(CntyDataLinkPrior5YearEstimates!$N$124+CntyDataLinkPrior5YearEstimates!$Z$124)","v":0},null,{"$f":"CntyDataLink!$N$124","v":115},{"$f":"CntyDataLink!$O$124","v":107.05606008068857},{"$f":"L29/(CntyDataLink!$N$124+CntyDataLink!$Z$124)","v":9.7540288379983034E-2},null,{"$f":"StatisticallySignificantCalcs!A116","v":"N"},{"$f":"StatisticallySignificantCalcs!J116","v":"N"}]
[]
[null,null,"Source: 2005-2009 American Community Survey  Table B1701",null,null,null,null,"Source: 2018-2022 American Community Survey  Table B1701",null,null,null,"Source: 2018-2022 American Community Survey  Table B1701"]
[]
[]
[]
[]
[]
[]
[]
[]
[]
[]
[]
[]
[]
[]
[]
[]
[]
[]
[null,null,null,{"$f":"D22","v":"2012 Inc below Poverty Level"},null,null,null,{"$f":"H22","v":"2017 Inc below Poverty Level"},null,null,null,{"$f":"L22","v":"2022 Inc below Poverty Level"},null,null,null,"Statistically Significant Change"]
[null,null,null,"Estimate","Margin of Error","% of Family Type in Poverty",null,"Estimate","Margin of Error ","% of Family Type in Poverty",null,"Estimate","Margin of Error ","% of Family Type in Poverty",null,{"$f":"P23","v":"2012-2022"},{"$f":"Q23","v":"2017-2022"}]
[]
[]
[null,null,"Total Households",{"$f":"CntyDataLinkPrior10YearEstimate!$AD$124","v":258},{"$f":"CntyDataLinkPrior10YearEstimate!$AE$124","v":135},{"$f":"$D54/($D54+$D68)","v":9.9613899613899617E-2},null,{"$f":"CntyDataLinkPrior5YearEstimates!$AD$124","v":190},{"$f":"CntyDataLinkPrior5YearEstimates!$AE$124","v":143},{"$f":"$H54/($H54+$H68)","v":6.4735945485519586E-2},null,{"$f":"CntyDataLink!$AD$124","v":364},{"$f":"CntyDataLink!$AE$124","v":191},{"$f":"$L54/($L54+$L68)","v":0.13060638679583783},null,{"$f":"StatisticallySignificantCalcs!A93","v":"Y"},{"$f":"StatisticallySignificantCalcs!J93","v":"Y"}]
[null,null,"Family Households",{"$f":"CntyDataLinkPrior10YearEstimate!$AF$124","v":86},{"$f":"CntyDataLinkPrior10YearEstimate!$AG$124","v":81},4.8368953880764905E-2,null,{"$f":"CntyDataLinkPrior5YearEstimates!$AF$124","v":64},{"$f":"CntyDataLinkPrior5YearEstimates!$AG$124","v":67},3.1840796019900496E-2,null,{"$f":"CntyDataLink!$AF$124","v":98},{"$f":"CntyDataLink!$AG$124","v":91},5.737704918032787E-2,null,{"$f":"StatisticallySignificantCalcs!A94","v":"N"},{"$f":"StatisticallySignificantCalcs!J94","v":"N"}]
[null,null,"Married Couple Fam HH",{"$f":"CntyDataLinkPrior10YearEstimate!$AH$124","v":31},{"$f":"CntyDataLinkPrior10YearEstimate!$AI$124","v":35},2.8054298642533938E-2,null,{"$f":"CntyDataLinkPrior5YearEstimates!$AH$124","v":64},{"$f":"CntyDataLinkPrior5YearEstimates!$AI$124","v":67},3.6488027366020526E-2,null,{"$f":"CntyDataLink!$AH$124","v":63},{"$f":"CntyDataLink!$AI$124","v":72},4.8275862068965517E-2,null,{"$f":"StatisticallySignificantCalcs!A95","v":"N"},{"$f":"StatisticallySignificantCalcs!J95","v":"N"}]
[null,null,"M C Fam HH w/Children",{"$f":"CntyDataLinkPrior10YearEstimate!$BN$124","v":16},{"$f":"CntyDataLinkPrior10YearEstimate!$BO$124","v":26},1,null,{"$f":"CntyDataLinkPrior5YearEstimates!$BN$124","v":31},{"$f":"CntyDataLinkPrior5YearEstimates!$BO$124","v":50},7.1100917431192664E-2,null,{"$f":"CntyDataLink!$BN$124","v":0},{"$f":"CntyDataLink!$BO$124","v":17},0,null,{"$f":"StatisticallySignificantCalcs!A96","v":"N"},{"$f":"StatisticallySignificantCalcs!J96","v":"N"}]
[null,null,"Male Head of Family HH ",{"$f":"CntyDataLinkPrior10YearEstimate!$AL$124","v":21},{"$f":"CntyDataLinkPrior10YearEstimate!$AM$124","v":40},0.22580645161290322,null,{"$f":"CntyDataLinkPrior5YearEstimates!$AL$124","v":0},{"$f":"CntyDataLinkPrior5YearEstimates!$AM$124","v":16},0,null,{"$f":"CntyDataLink!$AL$124","v":8},{"$f":"CntyDataLink!$AM$124","v":13},1,null,{"$f":"StatisticallySignificantCalcs!A97","v":"N"},{"$f":"StatisticallySignificantCalcs!J97","v":"N"}]
[null,null,"Male Head of HH w/Children",{"$f":"CntyDataLinkPrior10YearEstimate!$BP$124","v":21},{"$f":"CntyDataLinkPrior10YearEstimate!$BQ$124","v":40},0.63636363636363635,null,{"$f":"CntyDataLinkPrior5YearEstimates!$BP$124","v":0},{"$f":"CntyDataLinkPrior5YearEstimates!$BQ$124","v":16},0,null,{"$f":"CntyDataLink!$BP$124","v":8},{"$f":"CntyDataLink!$BQ$124","v":13},1,null,{"$f":"StatisticallySignificantCalcs!A98","v":"N"},{"$f":"StatisticallySignificantCalcs!J98","v":"N"}]
[null,null,"Female Head of Family HH ",{"$f":"CntyDataLinkPrior10YearEstimate!$AN$124","v":34},{"$f":"CntyDataLinkPrior10YearEstimate!$AO$124","v":57},0.18888888888888888,null,{"$f":"CntyDataLinkPrior5YearEstimates!$AN$124","v":0},{"$f":"CntyDataLinkPrior5YearEstimates!$AO$124","v":16},0,null,{"$f":"CntyDataLink!$AN$124","v":27},{"$f":"CntyDataLink!$AO$124","v":39},6.8354430379746839E-2,null,{"$f":"StatisticallySignificantCalcs!A99","v":"N"},{"$f":"StatisticallySignificantCalcs!J99","v":"N"}]
[null,null,"Female Head of HH w/Children",{"$f":"CntyDataLinkPrior10YearEstimate!$BR$124","v":34},{"$f":"CntyDataLinkPrior10YearEstimate!$BS$124","v":57},0.23943661971830985,null,{"$f":"CntyDataLinkPrior5YearEstimates!$BR$124","v":0},{"$f":"CntyDataLinkPrior5YearEstimates!$BS$124","v":16},0,null,{"$f":"CntyDataLink!$BR$124","v":27},{"$f":"CntyDataLink!$BS$124","v":39},9.2783505154639179E-2,null,{"$f":"StatisticallySignificantCalcs!A100","v":"N"},{"$f":"StatisticallySignificantCalcs!J100","v":"N"}]
[null,null,"Non-Family HH ",{"$f":"CntyDataLinkPrior10YearEstimate!$AP$124","v":172},{"$f":"CntyDataLinkPrior10YearEstimate!$AQ$124","v":109},0.21182266009852216,null,{"$f":"CntyDataLinkPrior5YearEstimates!$AP$124","v":126},{"$f":"CntyDataLinkPrior5YearEstimates!$AQ$124","v":131},0.13621621621621621,null,{"$f":"CntyDataLink!$AP$124","v":266},{"$f":"CntyDataLink!$AQ$124","v":170},0.24652455977757182,null,{"$f":"StatisticallySignificantCalcs!A101","v":"N"},{"$f":"StatisticallySignificantCalcs!J101","v":"N"}]
[]
[null,"Data from the American Community Survey are estimates."]
[null,null,null,"2012  Inc at or Above Poverty Level",null,null,null,"2017 Inc at or Above Poverty Level",null,null,null,"2022 Inc at or above Poverty Level",null,null,null,"Statistically Significant Change"]
[null,null,"Households","Estimate","Margin of Error",null,null,"Estimate","Margin of Error",null,null,"Estimate","Margin of Error",null,null,{"$f":"P23","v":"2012-2022"},{"$f":"Q23","v":"2017-2022"}]
[]
[null,null,"Total Households",{"$f":"CntyDataLinkPrior10YearEstimate!$AV$124","v":2332},{"$f":"CntyDataLinkPrior10YearEstimate!$AW$124","v":203},{"$f":"$H68/($H68+$H54)","v":0.93526405451448036},null,{"$f":"CntyDataLinkPrior5YearEstimates!$AV$124","v":2745},{"$f":"CntyDataLinkPrior5YearEstimates!$AW$124","v":198},{"$f":"$H68/($H68+$H54)","v":0.93526405451448036},null,{"$f":"CntyDataLink!$AV$124","v":2423},{"$f":"CntyDataLink!$AW$124","v":275},{"$f":"$L68/($L68+$L54)","v":0.8693936132041622},null,{"$f":"StatisticallySignificantCalcs!A102","v":"N"},{"$f":"StatisticallySignificantCalcs!J102","v":"N"}]
[null,null,"Family Households",{"$f":"CntyDataLinkPrior10YearEstimate!$AX$124","v":1692},{"$f":"CntyDataLinkPrior10YearEstimate!$AY$124","v":175},0.96815920398009947,null,{"$f":"CntyDataLinkPrior5YearEstimates!$AX$124","v":1946},{"$f":"CntyDataLinkPrior5YearEstimates!$AY$124","v":158},0.96815920398009947,null,{"$f":"CntyDataLink!$AX$124","v":1610},{"$f":"CntyDataLink!$AY$124","v":207},0.94262295081967218,null,{"$f":"StatisticallySignificantCalcs!A103","v":"N"},{"$f":"StatisticallySignificantCalcs!J103","v":"N"}]
[null,null,"Married Couple Fam HH",{"$f":"CntyDataLinkPrior10YearEstimate!$AZ$124","v":1074},{"$f":"CntyDataLinkPrior10YearEstimate!$BA$124","v":172},0.96351197263397947,null,{"$f":"CntyDataLinkPrior5YearEstimates!$AZ$124","v":1690},{"$f":"CntyDataLinkPrior5YearEstimates!$BA$124","v":191},0.96351197263397947,null,{"$f":"CntyDataLink!$AZ$124","v":1242},{"$f":"CntyDataLink!$BA$124","v":200},0.9517241379310345,null,{"$f":"StatisticallySignificantCalcs!A104","v":"N"},{"$f":"StatisticallySignificantCalcs!J104","v":"Y"}]
[null,null,"M C Fam HH w/Children",{"$f":"CntyDataLinkPrior10YearEstimate!$BT$124","v":0},{"$f":"CntyDataLinkPrior10YearEstimate!$BU$124","v":0},0.92889908256880738,null,{"$f":"CntyDataLinkPrior5YearEstimates!$BT$124","v":405},{"$f":"CntyDataLinkPrior5YearEstimates!$BU$124","v":128},0.92889908256880738,null,{"$f":"CntyDataLink!$BT$124","v":209},{"$f":"CntyDataLink!$BU$124","v":106},1,null,{"$f":"StatisticallySignificantCalcs!A105","v":"N"},{"$f":"StatisticallySignificantCalcs!J105","v":"Y"}]
[null,null,"Male Head of Family HH ",{"$f":"CntyDataLinkPrior10YearEstimate!$BD$124","v":72},{"$f":"CntyDataLinkPrior10YearEstimate!$BE$124","v":89},1,null,{"$f":"CntyDataLinkPrior5YearEstimates!$BD$124","v":137},{"$f":"CntyDataLinkPrior5YearEstimates!$BE$124","v":121},1,null,{"$f":"CntyDataLink!$BD$124","v":0},{"$f":"CntyDataLink!$BE$124","v":17},0,null,{"$f":"StatisticallySignificantCalcs!A106","v":"Y"},{"$f":"StatisticallySignificantCalcs!J106","v":"Y"}]
[null,null,"Male Head of HH w/Children",{"$f":"CntyDataLinkPrior10YearEstimate!$BV$124","v":12},{"$f":"CntyDataLinkPrior10YearEstimate!$BW$124","v":17},1,null,{"$f":"CntyDataLinkPrior5YearEstimates!$BV$124","v":18},{"$f":"CntyDataLinkPrior5YearEstimates!$BW$124","v":33},1,null,{"$f":"CntyDataLink!$BV$124","v":0},{"$f":"CntyDataLink!$BW$124","v":17},0,null,{"$f":"StatisticallySignificantCalcs!A107","v":"N"},{"$f":"StatisticallySignificantCalcs!J107","v":"Y"}]
[null,null,"Female Head of Family HH ",{"$f":"CntyDataLinkPrior10YearEstimate!$BF$124","v":146},{"$f":"CntyDataLinkPrior10YearEstimate!$BG$124","v":95},1,null,{"$f":"CntyDataLinkPrior5YearEstimates!$BF$124","v":119},{"$f":"CntyDataLinkPrior5YearEstimates!$BG$124","v":107},1,null,{"$f":"CntyDataLink!$BF$124","v":368},{"$f":"CntyDataLink!$BG$124","v":184},0.93164556962025313,null,{"$f":"StatisticallySignificantCalcs!A108","v":"N"},{"$f":"StatisticallySignificantCalcs!J108","v":"N"}]
[null,null,"Female Head of HH w/Children",{"$f":"CntyDataLinkPrior10YearEstimate!$BX$124","v":108},{"$f":"CntyDataLinkPrior10YearEstimate!$BY$124","v":85},1,null,{"$f":"CntyDataLinkPrior5YearEstimates!$BX$124","v":69},{"$f":"CntyDataLinkPrior5YearEstimates!$BY$124","v":93},1,null,{"$f":"CntyDataLink!$BX$124","v":264},{"$f":"CntyDataLink!$BY$124","v":176},0.90721649484536082,null,{"$f":"StatisticallySignificantCalcs!A109","v":"Y"},{"$f":"StatisticallySignificantCalcs!J109","v":"Y"}]
[null,null,"Non-Family HH ",{"$f":"CntyDataLinkPrior10YearEstimate!$BH$124","v":640},{"$f":"CntyDataLinkPrior10YearEstimate!$BI$124","v":178},0.86378378378378373,null,{"$f":"CntyDataLinkPrior5YearEstimates!$BH$124","v":799},{"$f":"CntyDataLinkPrior5YearEstimates!$BI$124","v":241},0.86378378378378373,null,{"$f":"CntyDataLink!$BH$124","v":813},{"$f":"CntyDataLink!$BI$124","v":263},0.75347544022242818,null,{"$f":"StatisticallySignificantCalcs!A110","v":"N"},{"$f":"StatisticallySignificantCalcs!J110","v":"N"}]
[]
[null,null,"Source: 2008-2012 American Community Survey ",null,null,null,"Source: 2013-2017 American Community Survey",null,null,null,null,"Source: 2018-2022 American Community Survey"]
[]
[null,null,"Tables B17010; and B17017",null,null,null,"Tables B17010; and B17017",null,null,null,null,"Tables B17010; and B17017"]

{"sheet":"ACS_Table_ B17001","index":53,"n_rows":209,"n_cols":40,"rows_kept":209,"cut":false,"hidden":true,"merged":[]}
[null,"B17001. POVERTY STATUS IN THE PAST 12 MONTHS BY SEX BY AGE"]
[null,"Universe:  POPULATION FOR WHOM POVERTY STATUS IS DETERMINED"]
[null,"Data Set: 2018-2022 American Community Survey 5-Year Estimates"]
[]
[null,null,"Albany",null,"Bartlett",null,"Brookfield",null,"Chatham",null,"Conway",null,"Eaton",null,"Effingham",null,"Freedom",null,"Hale's Location",null,"Hart's Location",null,"Jackson",null,"Madison",null,"Moultonborough",null,"Ossipee",null,"Sandwich",null,"Tamworth",null,"Tuftonboro",null,"Wakefield",null,"Wolfeboro"]
[null," ","Estimate","Margin of Error","Estimate","Margin of Error","Estimate","Margin of Error","Estimate","Margin of Error","Estimate","Margin of Error","Estimate","Margin of Error","Estimate","Margin of Error","Estimate","Margin of Error","Estimate","Margin of Error","Estimate","Margin of Error","Estimate","Margin of Error","Estimate","Margin of Error","Estimate","Margin of Error","Estimate","Margin of Error","Estimate","Margin of Error","Estimate","Margin of Error","Estimate","Margin of Error","Estimate","Margin of Error","Estimate","Margin of Error"]
[null,"Total:",708,164,3202,17,536,142,418,109,9862,20,355,72,1765,250,1336,184,196,61,53,37,1149,182,2572,41,4927,40,4249,46,1820,247,2767,102,2506,27,5173,147,6383,16]
[null,"Income in the past 12 months below poverty level:",61,35,200,143,22,19,28,34,1230,454,38,29,221,104,175,116,21,18,0,12,111,112,113,56,96,67,305,135,59,28,216,106,85,54,429,299,588,242]
[null,"Male:",11,9,54,59,7,7,28,34,677,263,17,15,99,63,56,31,7,9,0,12,40,48,52,29,52,42,96,69,13,12,155,91,32,30,207,190,250,166]
[null,"Under 5 years",2,4,0,12,0,12,0,12,0,17,0,12,0,12,0,12,0,12,0,12,0,12,0,12,0,12,6,21,0,12,0,12,0,12,0,17,24,34]
[null,"5 years",0,12,0,12,0,12,0,12,0,17,0,12,0,12,0,12,0,12,0,12,0,12,0,12,0,12,0,12,0,12,0,12,0,12,0,17,0,17]
[null,"6 to 11 years",2,3,0,12,0,12,0,12,83,120,0,12,0,12,3,6,0,12,0,12,0,12,0,12,10,14,11,37,0,12,27,38,0,12,0,17,0,17]
[null,"12 to 14 years",0,12,0,12,0,12,0,12,42,60,0,12,0,12,0,12,0,12,0,12,0,12,0,12,0,12,4,19,0,12,0,12,0,12,0,17,0,17]
[null,"15 years",0,12,0,12,0,12,0,12,0,17,0,12,9,11,0,12,0,12,0,12,0,12,0,12,0,12,0,12,5,7,0,12,0,12,0,17,0,17]
[null,"16 and 17 years",0,12,0,12,0,12,12,32,22,33,0,12,0,12,0,12,0,12,0,12,0,12,0,12,13,18,0,12,0,12,0,12,8,12,55,80,0,17]
[null,"18 to 24 years",0,12,0,12,0,12,2,4,50,68,6,8,0,12,0,12,0,12,0,12,0,12,2,5,0,12,7,13,0,12,46,57,0,12,0,17,0,17]
[null,"25 to 34 years",0,12,0,12,0,12,4,6,6,9,0,12,11,11,3,7,0,12,0,12,0,12,4,8,0,12,18,31,3,4,32,45,10,16,24,36,29,54]
[null,"35 to 44 years",0,12,37,53,0,12,5,7,57,79,4,6,8,10,0,12,0,12,0,12,0,12,0,12,0,12,0,12,0,12,0,12,0,12,0,17,8,13]
[null,"45 to 54 years",3,4,17,24,2,4,0,12,63,89,0,12,11,21,0,12,0,12,0,12,0,12,0,12,0,12,12,21,0,12,0,12,0,12,0,17,0,17]
[null,"55 to 64 years",2,3,0,12,3,6,5,8,167,109,7,7,12,12,3,7,6,8,0,12,33,42,22,21,20,25,28,31,0,12,34,39,14,21,58,61,132,121]
[null,"65 to 74 years",2,4,0,12,0,12,0,12,108,106,0,12,48,54,33,27,1,3,0,12,0,12,12,11,9,14,10,13,5,9,9,14,0,12,61,96,0,17]
[null,"75 years and over",0,12,0,12,2,3,0,12,79,62,0,12,0,12,14,15,0,12,0,12,7,10,12,13,0,12,0,12,0,12,7,10,0,12,9,19,57,81]
[null,"Female:",50,31,146,131,15,13,0,12,553,260,21,23,122,78,119,114,14,11,0,12,71,69,61,35,44,32,209,111,46,21,61,62,53,34,222,138,338,156]
[null,"Under 5 years",3,5,0,12,0,12,0,12,0,17,0,12,0,12,4,8,0,12,0,12,0,12,0,12,0,12,7,25,0,12,0,12,0,12,0,17,0,17]
[null,"5 years",0,12,0,12,0,12,0,12,37,51,0,12,0,12,0,12,0,12,0,12,0,12,0,12,0,12,0,12,0,12,0,12,0,12,0,17,0,17]
[null,"6 to 11 years",0,12,0,12,0,12,0,12,45,66,0,12,13,15,0,12,0,12,0,12,0,12,0,12,0,12,21,46,0,12,0,12,0,12,0,17,39,42]
[null,"12 to 14 years",5,6,0,12,0,12,0,12,0,17,0,12,0,12,0,12,0,12,0,12,0,12,0,12,0,12,0,12,0,12,0,12,0,12,16,25,0,17]
[null,"15 years",0,12,0,12,0,12,0,12,0,17,1,2,0,12,0,12,0,12,0,12,0,12,0,12,10,14,0,12,3,4,0,12,0,12,0,17,76,88]
[null,"16 and 17 years",2,3,0,12,0,12,0,12,7,11,0,12,0,12,0,12,2,3,0,12,0,12,0,12,0,12,0,12,0,12,0,12,0,12,0,17,0,17]
[null,"18 to 24 years",5,10,4,8,0,12,0,12,34,52,0,12,23,36,46,61,0,12,0,12,0,12,0,12,0,12,4,11,0,12,0,12,22,23,34,56,0,17]
[null,"25 to 34 years",0,12,4,7,0,12,0,12,63,76,0,12,14,9,22,31,0,12,0,12,13,26,4,7,1,4,11,15,3,5,0,12,0,12,0,17,0,17]
[null,"35 to 44 years",5,6,0,12,0,12,0,12,90,92,10,19,11,14,4,7,0,12,0,12,0,12,0,12,13,17,28,36,5,7,0,12,10,14,77,95,27,39]
[null,"45 to 54 years",3,4,88,116,9,9,0,12,41,47,0,12,23,29,33,48,1,3,0,12,0,12,0,12,0,12,11,21,0,12,37,56,13,13,16,25,0,17]
[null,"55 to 64 years",27,25,42,68,2,4,0,12,43,44,10,11,14,11,8,11,9,9,0,12,42,54,27,23,15,17,68,51,21,17,13,19,0,12,63,77,68,79]
[null,"65 to 74 years",0,12,8,16,2,3,0,12,97,109,0,12,21,18,2,4,2,4,0,12,8,12,12,8,5,9,59,53,11,11,0,12,0,12,16,24,70,94]
[null,"75 years and over",0,12,0,12,2,3,0,12,96,96,0,12,3,4,0,12,0,12,0,12,8,14,18,21,0,12,0,12,3,4,11,10,8,11,0,17,58,70]
[null,"Income in the past 12 months at or above poverty level:",647,164,3002,142,514,140,390,97,8632,452,317,68,1544,266,1161,157,175,58,53,37,1038,144,2459,71,4831,75,3944,135,1761,248,2551,179,2421,58,4744,333,5795,243]
[null,"Male:",293,76,1682,185,268,80,189,49,4397,359,162,40,658,100,573,100,104,41,41,32,454,81,1180,157,2499,165,2236,166,990,185,1251,178,1235,103,2567,247,2703,244]
[null,"Under 5 years",3,4,44,68,6,17,9,10,239,110,0,12,40,24,25,18,0,12,0,12,10,14,39,34,75,63,140,86,23,17,41,38,31,41,109,85,2,5]
[null,"5 years",2,3,0,12,0,12,1,3,79,56,4,6,0,12,0,12,0,12,0,12,20,23,80,52,15,19,0,12,9,9,8,14,13,13,44,43,0,17]
[null,"6 to 11 years",32,21,70,62,13,13,15,13,193,74,2,3,43,22,17,15,0,12,0,12,0,12,113,66,147,69,96,64,18,15,168,74,27,24,196,138,107,70]
[null,"12 to 14 years",0,12,0,12,7,7,3,5,133,133,5,9,15,12,56,50,0,12,0,12,0,12,24,25,99,87,36,55,14,14,0,12,28,21,94,78,144,69]
[null,"15 years",4,7,0,12,2,4,0,12,11,13,0,12,3,4,17,18,0,12,0,12,0,12,16,21,13,21,6,13,5,7,31,35,0,12,0,17,0,17]
[null,"16 and 17 years",0,12,13,20,2,4,7,8,83,83,0,12,17,15,6,6,0,12,0,12,0,12,86,81,41,40,0,12,12,10,39,55,45,34,0,17,200,116]
[null,"18 to 24 years",11,12,147,159,34,29,15,12,361,163,7,10,59,38,2,4,0,12,0,12,0,12,33,27,140,88,256,134,47,33,58,77,63,36,147,98,117,89]
[null,"25 to 34 years",41,24,86,89,9,8,17,12,650,208,20,21,101,62,52,36,28,33,2,5,22,24,100,49,374,131,136,69,33,22,160,92,84,47,233,134,148,113]
[null,"35 to 44 years",15,13,114,93,16,13,23,14,704,180,11,10,65,29,35,23,3,4,0,12,59,38,160,81,9,14,243,86,33,19,133,87,82,62,266,109,245,124]
[null,"45 to 54 years",43,27,188,130,64,33,23,13,335,126,22,17,101,44,44,28,0,12,0,12,111,63,170,65,247,109,322,140,133,60,206,157,198,81,380,142,369,160]
[null,"55 to 64 years",69,32,318,137,30,14,27,15,685,223,11,6,96,36,120,27,15,16,16,20,75,40,162,61,515,120,384,128,146,47,165,77,193,78,547,222,519,209]
[null,"65 to 74 years",54,26,550,211,67,27,35,17,538,163,58,22,97,30,132,36,28,17,22,25,109,48,139,53,503,146,498,164,362,153,117,82,252,85,305,152,427,145]
[null,"75 years and over",19,12,152,88,18,9,14,8,386,125,22,11,21,14,67,26,30,16,1,2,48,34,58,39,321,118,119,58,155,80,125,77,219,96,246,108,425,128]
[null,"Female:",354,116,1320,202,246,69,201,63,4235,350,155,40,886,209,588,87,71,29,12,13,584,90,1279,135,2332,171,1708,170,771,129,1300,173,1186,104,2177,247,3092,265]
[null,"Under 5 years",8,9,0,12,13,15,10,9,51,42,8,10,94,61,27,20,0,12,0,12,71,40,69,42,45,40,76,68,22,18,24,18,51,32,163,111,0,17]
[null,"5 years",2,3,42,63,0,12,1,3,34,39,0,12,0,12,0,12,0,12,0,12,0,12,13,12,19,28,0,12,0,12,41,48,8,12,0,17,12,16]
[null,"6 to 11 years",12,15,0,12,4,7,8,8,206,70,5,6,38,26,46,48,0,12,0,12,45,24,75,49,106,67,74,86,48,40,119,70,57,36,135,106,110,57]
[null,"12 to 14 years",5,6,0,12,2,4,19,19,91,50,0,12,79,68,0,12,0,12,0,12,26,5,15,19,87,62,28,39,10,8,61,64,31,22,0,17,76,83]
[null,"15 years",0,12,0,12,0,12,0,12,0,17,5,6,13,10,17,17,0,12,0,12,0,12,21,21,0,12,13,21,0,12,0,12,18,18,37,54,27,43]
[null,"16 and 17 years",2,3,0,12,2,3,11,14,108,64,0,12,5,5,0,12,0,12,0,12,42,28,77,52,32,28,18,34,15,13,40,47,37,31,0,17,26,27]
[null,"18 to 24 years",37,30,0,12,3,6,9,13,380,221,0,12,56,30,14,16,0,12,0,12,0,12,33,35,43,43,79,77,20,16,37,47,45,37,147,132,281,241]
[null,"25 to 34 years",50,30,62,68,31,19,21,13,495,128,7,8,159,97,22,18,0,12,3,5,52,40,107,52,389,147,77,47,68,41,188,101,61,39,243,112,82,75]
[null,"35 to 44 years",60,57,51,74,18,11,18,11,392,189,25,17,74,34,46,25,0,12,0,12,61,42,227,64,128,67,233,86,41,28,141,84,61,36,167,82,435,214]
[null,"45 to 54 years",47,25,244,137,36,18,27,18,385,122,6,6,166,73,51,25,18,17,7,11,57,29,132,47,356,121,256,112,105,36,54,52,181,79,286,140,311,146]
[null,"55 to 64 years",86,72,363,144,41,21,39,19,536,175,32,20,82,32,129,38,5,5,0,12,133,69,251,72,484,114,453,141,187,56,290,113,169,81,525,240,607,231]
[null,"65 to 74 years",29,21,455,199,63,26,28,12,1016,218,47,25,107,34,152,32,19,10,1,3,48,30,143,53,409,125,237,67,174,52,198,85,270,74,269,123,486,177]
[null,"75 years and over",16,10,103,79,33,26,10,7,541,180,20,12,13,9,84,42,29,17,1,3,49,29,116,61,234,73,164,99,81,33,107,72,197,128,205,105,639,165]
[]
[]
[]
[null,"Calculated Table B17001. POVERTY STATUS IN THE PAST 12 MONTHS BY SEX BY AGE"]
[null,"Universe:  POPULATION FOR WHOM POVERTY STATUS IS DETERMINED"]
[null,"Data Set: 2018-2022 American Community Survey 5-Year Estimates"]
[]
[null,null,"Albany",null,"Bartlett",null,"Brookfield",null,"Chatham",null,"Conway",null,"Eaton",null,"Effingham",null,"Freedom",null,"Hale's Location",null,"Hart's Location",null,"Jackson",null,"Madison",null,"Moultonborough",null,"Ossipee",null,"Sandwich",null,"Tamworth",null,"Tuftonboro",null,"Wakefield",null,"Wolfeboro"]
[null," ","Estimate","Margin of Error","Estimate","Margin of Error","Estimate","Margin of Error","Estimate","Margin of Error","Estimate","Margin of Error","Estimate","Margin of Error","Estimate","Margin of Error","Estimate","Margin of Error","Estimate","Margin of Error","Estimate","Margin of Error","Estimate","Margin of Error","Estimate","Margin of Error","Estimate","Margin of Error","Estimate","Margin of Error","Estimate","Margin of Error","Estimate","Margin of Error","Estimate","Margin of Error","Estimate","Margin of Error","Estimate","Margin of Error"]
[null,"Total:",{"$f":"C7","v":708},{"$f":"D7","v":164},3202,17,536,142,418,109,9862,20,355,72,1765,250,1336,184,196,61,53,37,1149,182,{"$f":"Y7","v":2572},41,4927,40,4249,46,1820,247,2767,102,2506,27,5173,147,6383,16]
[null,"Income in the past 12 months below poverty level:",{"$f":"C8","v":61},{"$f":"D8","v":35},200,143,22,19,28,34,1230,454,38,29,221,104,175,116,21,18,0,12,111,112,{"$f":"Y8","v":113},56,96,67,305,135,59,28,216,106,85,54,429,299,588,242]
[null,"Under 5 years",{"$f":"C10+C24","v":5},{"$f":"SQRT(((D10^2))+((D34^2)))","v":25.317977802344327},{"$f":"E10+E24","v":0},{"$f":"SQRT(((F10^2))+((F34^2)))","v":69.050706006528273},{"$f":"G10+G24","v":0},{"$f":"SQRT(((H10^2))+((H34^2)))","v":12.649110640673518},{"$f":"I10+I24","v":0},{"$f":"SQRT(((J10^2))+((J34^2)))","v":16.970562748477139},{"$f":"K10+K24","v":0},{"$f":"SQRT(((L10^2))+((L34^2)))","v":47.169905660283021},{"$f":"M10+M24","v":0},{"$f":"SQRT(((N10^2))+((N34^2)))","v":16.278820596099706},{"$f":"O10+O24","v":0},{"$f":"SQRT(((P10^2))+((P34^2)))","v":16.278820596099706},{"$f":"Q10+Q24","v":4},{"$f":"SQRT(((R10^2))+((R34^2)))","v":16.278820596099706},{"$f":"S10+S24","v":0},{"$f":"SQRT(((T10^2))+((T34^2)))","v":15},{"$f":"U10+U24","v":0},{"$f":"SQRT(((V10^2))+((V34^2)))","v":16.970562748477139},{"$f":"W10+W24","v":0},{"$f":"SQRT(((X10^2))+((X34^2)))","v":55.317266743757322},{"$f":"Y10+Y24","v":0},{"$f":"SQRT(((Z10^2))+((Z34^2)))","v":25.942243542145693},{"$f":"AA10+AA24","v":0},{"$f":"SQRT(((AB10^2))+((AB34^2)))","v":20.808652046684813},{"$f":"AC10+AC24","v":13},{"$f":"SQRT(((AD10^2))+((AD34^2)))","v":55.154328932550705},{"$f":"AE10+AE24","v":0},{"$f":"SQRT(((AF10^2))+((AF34^2)))","v":20.808652046684813},{"$f":"AG10+AG24","v":0},{"$f":"SQRT(((AH10^2))+((AH34^2)))","v":22.472205054244231},{"$f":"AI10+AI24","v":0},{"$f":"SQRT(((AJ10^2))+((AJ34^2)))","v":16.970562748477139},{"$f":"AK10+AK24","v":0},{"$f":"SQRT(((AL10^2))+((AL34^2)))","v":78.854296014865284},{"$f":"AM10+AM24","v":24},{"$f":"SQRT(((AN10^2))+((AN34^2)))","v":86.005813756978085}]
[null,"5 to 17 years",{"$f":"C11+C12+C13+C14+C15+C25+C26+C27+C28+C29","v":9},{"$f":"SQRT((D11^2)+(D12^2)+(D13^2)+(D14^2)+(D15^2)+(D25^2)+(D26^2)+(D27^2)+(D28)+(D29^2))","v":30.495901363953813},{"$f":"E11+E12+E13+E14+E15+E25+E26+E27+E28+E29","v":0},{"$f":"SQRT((F11^2)+(F12^2)+(F13^2)+(F14^2)+(F15^2)+(F25^2)+(F26^2)+(F27^2)+(F28)+(F29^2))","v":36.166282640050248},{"$f":"G11+G12+G13+G14+G15+G25+G26+G27+G28+G29","v":0},{"$f":"SQRT((H11^2)+(H12^2)+(H13^2)+(H14^2)+(H15^2)+(H25^2)+(H26^2)+(H27^2)+(H28)+(H29^2))","v":36.166282640050248},{"$f":"I11+I12+I13+I14+I15+I25+I26+I27+I28+I29","v":12},{"$f":"SQRT((J11^2)+(J12^2)+(J13^2)+(J14^2)+(J15^2)+(J25^2)+(J26^2)+(J27^2)+(J28)+(J29^2))","v":46.776062254106002},{"$f":"K11+K12+K13+K14+K15+K25+K26+K27+K28+K29","v":236},{"$f":"SQRT((L11^2)+(L12^2)+(L13^2)+(L14^2)+(L15^2)+(L25^2)+(L26^2)+(L27^2)+(L28)+(L29^2))","v":164.47188209539038},{"$f":"M11+M12+M13+M14+M15+M25+M26+M27+M28+M29","v":1},{"$f":"SQRT((N11^2)+(N12^2)+(N13^2)+(N14^2)+(N15^2)+(N25^2)+(N26^2)+(N27^2)+(N28)+(N29^2))","v":36.027767069303643},{"$f":"O11+O12+O13+O14+O15+O25+O26+O27+O28+O29","v":22},{"$f":"SQRT((P11^2)+(P12^2)+(P13^2)+(P14^2)+(P15^2)+(P25^2)+(P26^2)+(P27^2)+(P28)+(P29^2))","v":36.959437225152655},{"$f":"Q11+Q12+Q13+Q14+Q15+Q25+Q26+Q27+Q28+Q29","v":3},{"$f":"SQRT((R11^2)+(R12^2)+(R13^2)+(R14^2)+(R15^2)+(R25^2)+(R26^2)+(R27^2)+(R28)+(R29^2))","v":34.641016151377549},{"$f":"S11+S12+S13+S14+S15+S25+S26+S27+S28+S29","v":2},{"$f":"SQRT((T11^2)+(T12^2)+(T13^2)+(T14^2)+(T15^2)+(T25^2)+(T26^2)+(T27^2)+(T28)+(T29^2))","v":34.249087579087416},{"$f":"U11+U12+U13+U14+U15+U25+U26+U27+U28+U29","v":0},{"$f":"SQRT((V11^2)+(V12^2)+(V13^2)+(V14^2)+(V15^2)+(V25^2)+(V26^2)+(V27^2)+(V28)+(V29^2))","v":36.166282640050248},{"$f":"W11+W12+W13+W14+W15+W25+W26+W27+W28+W29","v":0},{"$f":"SQRT((X11^2)+(X12^2)+(X13^2)+(X14^2)+(X15^2)+(X25^2)+(X26^2)+(X27^2)+(X28)+(X29^2))","v":36.166282640050248},{"$f":"Y11+Y12+Y13+Y14+Y15+Y25+Y26+Y27+Y28+Y29","v":0},{"$f":"SQRT((Z11^2)+(Z12^2)+(Z13^2)+(Z14^2)+(Z15^2)+(Z25^2)+(Z26^2)+(Z27^2)+(Z28)+(Z29^2))","v":36.166282640050248},{"$f":"AA11+AA12+AA13+AA14+AA15+AA25+AA26+AA27+AA28+AA29","v":33},{"$f":"SQRT((AB11^2)+(AB12^2)+(AB13^2)+(AB14^2)+(AB15^2)+(AB25^2)+(AB26^2)+(AB27^2)+(AB28)+(AB29^2))","v":39.268307832143719},{"$f":"AC11+AC12+AC13+AC14+AC15+AC25+AC26+AC27+AC28+AC29","v":36},{"$f":"SQRT((AD11^2)+(AD12^2)+(AD13^2)+(AD14^2)+(AD15^2)+(AD25^2)+(AD26^2)+(AD27^2)+(AD28)+(AD29^2))","v":68.716810170437924},{"$f":"AE11+AE12+AE13+AE14+AE15+AE25+AE26+AE27+AE28+AE29","v":8},{"$f":"SQRT((AF11^2)+(AF12^2)+(AF13^2)+(AF14^2)+(AF15^2)+(AF25^2)+(AF26^2)+(AF27^2)+(AF28)+(AF29^2))","v":34.713109915419565},{"$f":"AG11+AG12+AG13+AG14+AG15+AG25+AG26+AG27+AG28+AG29","v":27},{"$f":"SQRT((AH11^2)+(AH12^2)+(AH13^2)+(AH14^2)+(AH15^2)+(AH25^2)+(AH26^2)+(AH27^2)+(AH28)+(AH29^2))","v":51.068581339214816},{"$f":"AI11+AI12+AI13+AI14+AI15+AI25+AI26+AI27+AI28+AI29","v":8},{"$f":"SQRT((AJ11^2)+(AJ12^2)+(AJ13^2)+(AJ14^2)+(AJ15^2)+(AJ25^2)+(AJ26^2)+(AJ27^2)+(AJ28)+(AJ29^2))","v":36.166282640050248},{"$f":"AK11+AK12+AK13+AK14+AK15+AK25+AK26+AK27+AK28+AK29","v":71},{"$f":"SQRT((AL11^2)+(AL12^2)+(AL13^2)+(AL14^2)+(AL15^2)+(AL25^2)+(AL26^2)+(AL27^2)+(AL28)+(AL29^2))","v":95.210293561148106},{"$f":"AM11+AM12+AM13+AM14+AM15+AM25+AM26+AM27+AM28+AM29","v":115},{"$f":"SQRT((AN11^2)+(AN12^2)+(AN13^2)+(AN14^2)+(AN15^2)+(AN25^2)+(AN26^2)+(AN27^2)+(AN28)+(AN29^2))","v":64.529063219606712}]
[null,"18 to 64 years",{"$f":"C16+C17+C18+C19+C20+C30+C31+C32+C33+C34","v":45},{"$f":"SQRT((D16^2)+(D17^2)+(D18^2)+(D19^2)+(D20^2)+(D30^2)+(D31^2)+(D32^2)+(D33^2)+(D34^2))","v":37.12142238654117},{"$f":"E16+E17+E18+E19+E20+E30+E31+E32+E33+E34","v":192},{"$f":"SQRT((F16^2)+(F17^2)+(F18^2)+(F19^2)+(F20^2)+(F30^2)+(F31^2)+(F32^2)+(F33^2)+(F34^2))","v":148.84219831754703},{"$f":"G16+G17+G18+G19+G20+G30+G31+G32+G33+G34","v":16},{"$f":"SQRT((H16^2)+(H17^2)+(H18^2)+(H19^2)+(H20^2)+(H30^2)+(H31^2)+(H32^2)+(H33^2)+(H34^2))","v":31.827660925679098},{"$f":"I16+I17+I18+I19+I20+I30+I31+I32+I33+I34","v":16},{"$f":"SQRT((J16^2)+(J17^2)+(J18^2)+(J19^2)+(J20^2)+(J30^2)+(J31^2)+(J32^2)+(J33^2)+(J34^2))","v":32.078029864690883},{"$f":"K16+K17+K18+K19+K20+K30+K31+K32+K33+K34","v":614},{"$f":"SQRT((L16^2)+(L17^2)+(L18^2)+(L19^2)+(L20^2)+(L30^2)+(L31^2)+(L32^2)+(L33^2)+(L34^2))","v":227.67740335834824},{"$f":"M16+M17+M18+M19+M20+M30+M31+M32+M33+M34","v":37},{"$f":"SQRT((N16^2)+(N17^2)+(N18^2)+(N19^2)+(N20^2)+(N30^2)+(N31^2)+(N32^2)+(N33^2)+(N34^2))","v":36.755951898978211},{"$f":"O16+O17+O18+O19+O20+O30+O31+O32+O33+O34","v":127},{"$f":"SQRT((P16^2)+(P17^2)+(P18^2)+(P19^2)+(P20^2)+(P30^2)+(P31^2)+(P32^2)+(P33^2)+(P34^2))","v":59.033888572581766},{"$f":"Q16+Q17+Q18+Q19+Q20+Q30+Q31+Q32+Q33+Q34","v":119},{"$f":"SQRT((R16^2)+(R17^2)+(R18^2)+(R19^2)+(R20^2)+(R30^2)+(R31^2)+(R32^2)+(R33^2)+(R34^2))","v":87.66983517721475},{"$f":"S16+S17+S18+S19+S20+S30+S31+S32+S33+S34","v":16},{"$f":"SQRT((T16^2)+(T17^2)+(T18^2)+(T19^2)+(T20^2)+(T30^2)+(T31^2)+(T32^2)+(T33^2)+(T34^2))","v":34.08812109811862},{"$f":"U16+U17+U18+U19+U20+U30+U31+U32+U33+U34","v":0},{"$f":"SQRT((V16^2)+(V17^2)+(V18^2)+(V19^2)+(V20^2)+(V30^2)+(V31^2)+(V32^2)+(V33^2)+(V34^2))","v":37.947331922020552},{"$f":"W16+W17+W18+W19+W20+W30+W31+W32+W33+W34","v":88},{"$f":"SQRT((X16^2)+(X17^2)+(X18^2)+(X19^2)+(X20^2)+(X30^2)+(X31^2)+(X32^2)+(X33^2)+(X34^2))","v":79.774682700716525},{"$f":"Y16+Y17+Y18+Y19+Y20+Y30+Y31+Y32+Y33+Y34","v":59},{"$f":"SQRT((Z16^2)+(Z17^2)+(Z18^2)+(Z19^2)+(Z20^2)+(Z30^2)+(Z31^2)+(Z32^2)+(Z33^2)+(Z34^2))","v":42.755116652863897},{"$f":"AA16+AA17+AA18+AA19+AA20+AA30+AA31+AA32+AA33+AA34","v":49},{"$f":"SQRT((AB16^2)+(AB17^2)+(AB18^2)+(AB19^2)+(AB20^2)+(AB30^2)+(AB31^2)+(AB32^2)+(AB33^2)+(AB34^2))","v":45.639894828976104},{"$f":"AC16+AC17+AC18+AC19+AC20+AC30+AC31+AC32+AC33+AC34","v":187},{"$f":"SQRT((AD16^2)+(AD17^2)+(AD18^2)+(AD19^2)+(AD20^2)+(AD30^2)+(AD31^2)+(AD32^2)+(AD33^2)+(AD34^2))","v":85.790442358108862},{"$f":"AE16+AE17+AE18+AE19+AE20+AE30+AE31+AE32+AE33+AE34","v":32},{"$f":"SQRT((AF16^2)+(AF17^2)+(AF18^2)+(AF19^2)+(AF20^2)+(AF30^2)+(AF31^2)+(AF32^2)+(AF33^2)+(AF34^2))","v":35.256205127608389},{"$f":"AG16+AG17+AG18+AG19+AG20+AG30+AG31+AG32+AG33+AG34","v":162},{"$f":"SQRT((AH16^2)+(AH17^2)+(AH18^2)+(AH19^2)+(AH20^2)+(AH30^2)+(AH31^2)+(AH32^2)+(AH33^2)+(AH34^2))","v":104.93807697875924},{"$f":"AI16+AI17+AI18+AI19+AI20+AI30+AI31+AI32+AI33+AI34","v":69},{"$f":"SQRT((AJ16^2)+(AJ17^2)+(AJ18^2)+(AJ19^2)+(AJ20^2)+(AJ30^2)+(AJ31^2)+(AJ32^2)+(AJ33^2)+(AJ34^2))","v":48.072861366887658},{"$f":"AK16+AK17+AK18+AK19+AK20+AK30+AK31+AK32+AK33+AK34","v":272},{"$f":"SQRT((AL16^2)+(AL17^2)+(AL18^2)+(AL19^2)+(AL20^2)+(AL30^2)+(AL31^2)+(AL32^2)+(AL33^2)+(AL34^2))","v":157.75931034332015},{"$f":"AM16+AM17+AM18+AM19+AM20+AM30+AM31+AM32+AM33+AM34","v":264},{"$f":"SQRT((AN16^2)+(AN17^2)+(AN18^2)+(AN19^2)+(AN20^2)+(AN30^2)+(AN31^2)+(AN32^2)+(AN33^2)+(AN34^2))","v":164.11276610916045}]
[null,"65 to 74 years",{"$f":"C21+C35","v":2},{"$f":"SQRT((D21^2)+(D35^2))","v":12.649110640673518},{"$f":"E21+E35","v":8},{"$f":"SQRT((F21^2)+(F35^2))","v":20},{"$f":"G21+G35","v":2},{"$f":"SQRT((H21^2)+(H35^2))","v":12.369316876852981},{"$f":"I21+I35","v":0},{"$f":"SQRT((J21^2)+(J35^2))","v":16.970562748477139},{"$f":"K21+K35","v":205},{"$f":"SQRT((L21^2)+(L35^2))","v":152.04275714416653},{"$f":"M21+M35","v":0},{"$f":"SQRT((N21^2)+(N35^2))","v":16.970562748477139},{"$f":"O21+O35","v":69},{"$f":"SQRT((P21^2)+(P35^2))","v":56.920997883030829},{"$f":"Q21+Q35","v":35},{"$f":"SQRT((R21^2)+(R35^2))","v":27.294688127912362},{"$f":"S21+S35","v":3},{"$f":"SQRT((T21^2)+(T35^2))","v":5},{"$f":"U21+U35","v":0},{"$f":"SQRT((V21^2)+(V35^2))","v":16.970562748477139},{"$f":"W21+W35","v":8},{"$f":"SQRT((X21^2)+(X35^2))","v":16.970562748477139},{"$f":"Y21+Y35","v":24},{"$f":"SQRT((Z21^2)+(Z35^2))","v":13.601470508735444},{"$f":"AA21+AA35","v":14},{"$f":"SQRT((AB21^2)+(AB35^2))","v":16.643316977093239},{"$f":"AC21+AC35","v":69},{"$f":"SQRT((AD21^2)+(AD35^2))","v":54.571054598569013},{"$f":"AE21+AE35","v":16},{"$f":"SQRT((AF21^2)+(AF35^2))","v":14.212670403551895},{"$f":"AG21+AG35","v":9},{"$f":"SQRT((AH21^2)+(AH35^2))","v":18.439088914585774},{"$f":"AI21+AI35","v":0},{"$f":"SQRT((AJ21^2)+(AJ35^2))","v":16.970562748477139},{"$f":"AK21+AK35","v":77},{"$f":"SQRT((AL21^2)+(AL35^2))","v":98.954535014823847},{"$f":"AM21+AM35","v":70},{"$f":"SQRT((AN21^2)+(AN35^2))","v":95.524865872714003}]
[null,"75 years and over",{"$f":"C22+C36","v":0},{"$f":"SQRT((D22^2)+(D36^2))","v":16.970562748477139},{"$f":"E22+E36","v":0},{"$f":"SQRT((F22^2)+(F36^2))","v":16.970562748477139},{"$f":"G22+G36","v":4},{"$f":"SQRT((H22^2)+(H36^2))","v":4.2426406871192848},{"$f":"I22+I36","v":0},{"$f":"SQRT((J22^2)+(J36^2))","v":16.970562748477139},{"$f":"K22+K36","v":175},{"$f":"SQRT((L22^2)+(L36^2))","v":114.28035701729323},{"$f":"M22+M36","v":0},{"$f":"SQRT((N22^2)+(N36^2))","v":16.970562748477139},{"$f":"O22+O36","v":3},{"$f":"SQRT((P22^2)+(P36^2))","v":12.649110640673518},{"$f":"Q22+Q36","v":14},{"$f":"SQRT((R22^2)+(R36^2))","v":19.209372712298546},{"$f":"S22+S36","v":0},{"$f":"SQRT((T22^2)+(T36^2))","v":16.970562748477139},{"$f":"U22+U36","v":0},{"$f":"SQRT((V22^2)+(V36^2))","v":16.970562748477139},{"$f":"W22+W36","v":15},{"$f":"SQRT((X22^2)+(X36^2))","v":17.204650534085253},{"$f":"Y22+Y36","v":30},{"$f":"SQRT((Z22^2)+(Z36^2))","v":24.698178070456937},{"$f":"AA22+AA36","v":0},{"$f":"SQRT((AB22^2)+(AB36^2))","v":16.970562748477139},{"$f":"AC22+AC36","v":0},{"$f":"SQRT((AD22^2)+(AD36^2))","v":16.970562748477139},{"$f":"AE22+AE36","v":3},{"$f":"SQRT((AF22^2)+(AF36^2))","v":12.649110640673518},{"$f":"AG22+AG36","v":18},{"$f":"SQRT((AH22^2)+(AH36^2))","v":14.142135623730951},{"$f":"AI22+AI36","v":8},{"$f":"SQRT((AJ22^2)+(AJ36^2))","v":16.278820596099706},{"$f":"AK22+AK36","v":9},{"$f":"SQRT((AL22^2)+(AL36^2))","v":25.495097567963924},{"$f":"AM22+AM36","v":115},{"$f":"SQRT((AN22^2)+(AN36^2))","v":107.05606008068857}]
[null," Income in the past 12 months at or above poverty level ",{"$f":"C37","v":647},164,3002,142,514,140,390,97,8632,452,317,68,1544,266,1161,157,175,58,53,37,1038,144,{"$f":"Y37","v":2459},71,4831,75,3944,135,1761,248,2551,179,2421,58,4744,333,5795,243]
[null,"Under 5 years",{"$f":"C39+C53","v":11},{"$f":"SQRT(((D39))^2+((D53))^2)","v":9.8488578017961039},{"$f":"E39+E53","v":44},{"$f":"SQRT(((F39))^2+((F53))^2)","v":69.050706006528273},{"$f":"G39+G53","v":19},{"$f":"SQRT(((H39))^2+((H53))^2)","v":22.671568097509269},{"$f":"I39+I53","v":19},{"$f":"SQRT(((J39))^2+((J53))^2)","v":13.45362404707371},{"$f":"K39+K53","v":290},{"$f":"SQRT(((L39))^2+((L53))^2)","v":117.74548823628021},{"$f":"M39+M53","v":8},{"$f":"SQRT(((N39))^2+((N53))^2)","v":15.620499351813308},{"$f":"O39+O53","v":134},{"$f":"SQRT(((P39))^2+((P53))^2)","v":65.551506466289538},{"$f":"Q39+Q53","v":52},{"$f":"SQRT(((R39))^2+((R53))^2)","v":26.90724809414742},{"$f":"S39+S53","v":0},{"$f":"SQRT(((T39))^2+((T53))^2)","v":16.970562748477139},{"$f":"U39+U53","v":0},{"$f":"SQRT(((V39))^2+((V53))^2)","v":16.970562748477139},{"$f":"W39+W53","v":81},{"$f":"SQRT(((X39))^2+((X53))^2)","v":42.379240200834182},{"$f":"Y39+Y53","v":108},{"$f":"SQRT(((Z39))^2+((Z53))^2)","v":54.037024344425184},{"$f":"AA39+AA53","v":120},{"$f":"SQRT(((AB39))^2+((AB53))^2)","v":74.625732827222535},{"$f":"AC39+AC53","v":216},{"$f":"SQRT(((AD39))^2+((AD53))^2)","v":109.63576058932597},{"$f":"AE39+AE53","v":45},{"$f":"SQRT(((AF39))^2+((AF53))^2)","v":24.758836806279895},{"$f":"AG39+AG53","v":65},{"$f":"SQRT(((AH39))^2+((AH53))^2)","v":42.047592083257278},{"$f":"AI39+AI53","v":82},{"$f":"SQRT(((AJ39))^2+((AJ53))^2)","v":52.009614495783374},{"$f":"AK39+AK53","v":272},{"$f":"SQRT(((AL39))^2+((AL53))^2)","v":139.80700983856281},{"$f":"AM39+AM53","v":2},{"$f":"SQRT(((AN39))^2+((AN53))^2)","v":17.720045146669349}]
[null,"5 to 17 years",{"$f":"((C40)+(C41)+(C42)+(C43)+(C44)+(C54)+(C55)+(C56)+(C57)+(C58))","v":59},{"$f":"SQRT((D40^2)+(D41^2)+(D42^2)+(D43^2)+(D44^2)+(D54^2)+(D55^2)+(D56^2)+(D57^2)+(D58^2))","v":34.785054261852174},{"$f":"((E40)+(E41)+(E42)+(E43)+(E44)+(E54)+(E55)+(E56)+(E57)+(E58))","v":125},{"$f":"SQRT((F40^2)+(F41^2)+(F42^2)+(F43^2)+(F44^2)+(F54^2)+(F55^2)+(F56^2)+(F57^2)+(F58^2))","v":96.026038135497402},{"$f":"((G40)+(G41)+(G42)+(G43)+(G44)+(G54)+(G55)+(G56)+(G57)+(G58))","v":32},{"$f":"SQRT((H40^2)+(H41^2)+(H42^2)+(H43^2)+(H44^2)+(H54^2)+(H55^2)+(H56^2)+(H57^2)+(H58^2))","v":27.495454169735041},{"$f":"((I40)+(I41)+(I42)+(I43)+(I44)+(I54)+(I55)+(I56)+(I57)+(I58))","v":65},{"$f":"SQRT((J40^2)+(J41^2)+(J42^2)+(J43^2)+(J44^2)+(J54^2)+(J55^2)+(J56^2)+(J57^2)+(J58^2))","v":34.423828956117013},{"$f":"((K40)+(K41)+(K42)+(K43)+(K44)+(K54)+(K55)+(K56)+(K57)+(K58))","v":938},{"$f":"SQRT((L40^2)+(L41^2)+(L42^2)+(L43^2)+(L44^2)+(L54^2)+(L55^2)+(L56^2)+(L57^2)+(L58^2))","v":216.0208323287363},{"$f":"((M40)+(M41)+(M42)+(M43)+(M44)+(M54)+(M55)+(M56)+(M57)+(M58))","v":21},{"$f":"SQRT((N40^2)+(N41^2)+(N42^2)+(N43^2)+(N44^2)+(N54^2)+(N55^2)+(N56^2)+(N57^2)+(N58^2))","v":30.298514815086232},{"$f":"((O40)+(O41)+(O42)+(O43)+(O44)+(O54)+(O55)+(O56)+(O57)+(O58))","v":213},{"$f":"SQRT((P40^2)+(P41^2)+(P42^2)+(P43^2)+(P44^2)+(P54^2)+(P55^2)+(P56^2)+(P57^2)+(P58^2))","v":81.129526067887269},{"$f":"((Q40)+(Q41)+(Q42)+(Q43)+(Q44)+(Q54)+(Q55)+(Q56)+(Q57)+(Q58))","v":159},{"$f":"SQRT((R40^2)+(R41^2)+(R42^2)+(R43^2)+(R44^2)+(R54^2)+(R55^2)+(R56^2)+(R57^2)+(R58^2))","v":79.08223567907018},{"$f":"((S40)+(S41)+(S42)+(S43)+(S44)+(S54)+(S55)+(S56)+(S57)+(S58))","v":0},{"$f":"SQRT((T40^2)+(T41^2)+(T42^2)+(T43^2)+(T44^2)+(T54^2)+(T55^2)+(T56^2)+(T57^2)+(T58^2))","v":37.947331922020552},{"$f":"((U40)+(U41)+(U42)+(U43)+(U44)+(U54)+(U55)+(U56)+(U57)+(U58))","v":0},{"$f":"SQRT((V40^2)+(V41^2)+(V42^2)+(V43^2)+(V44^2)+(V54^2)+(V55^2)+(V56^2)+(V57^2)+(V58^2))","v":37.947331922020552},{"$f":"((W40)+(W41)+(W42)+(W43)+(W44)+(W54)+(W55)+(W56)+(W57)+(W58))","v":133},{"$f":"SQRT((X40^2)+(X41^2)+(X42^2)+(X43^2)+(X44^2)+(X54^2)+(X55^2)+(X56^2)+(X57^2)+(X58^2))","v":52.706735812417755},{"$f":"((Y40)+(Y41)+(Y42)+(Y43)+(Y44)+(Y54)+(Y55)+(Y56)+(Y57)+(Y58))","v":520},{"$f":"SQRT((Z40^2)+(Z41^2)+(Z42^2)+(Z43^2)+(Z44^2)+(Z54^2)+(Z55^2)+(Z56^2)+(Z57^2)+(Z58^2))","v":144.00694427700353},{"$f":"((AA40)+(AA41)+(AA42)+(AA43)+(AA44)+(AA54)+(AA55)+(AA56)+(AA57)+(AA58))","v":559},{"$f":"SQRT((AB40^2)+(AB41^2)+(AB42^2)+(AB43^2)+(AB44^2)+(AB54^2)+(AB55^2)+(AB56^2)+(AB57^2)+(AB58^2))","v":157.40711546813887},{"$f":"((AC40)+(AC41)+(AC42)+(AC43)+(AC44)+(AC54)+(AC55)+(AC56)+(AC57)+(AC58))","v":271},{"$f":"SQRT((AD40^2)+(AD41^2)+(AD42^2)+(AD43^2)+(AD44^2)+(AD54^2)+(AD55^2)+(AD56^2)+(AD57^2)+(AD58^2))","v":135.04073459515837},{"$f":"((AE40)+(AE41)+(AE42)+(AE43)+(AE44)+(AE54)+(AE55)+(AE56)+(AE57)+(AE58))","v":131},{"$f":"SQRT((AF40^2)+(AF41^2)+(AF42^2)+(AF43^2)+(AF44^2)+(AF54^2)+(AF55^2)+(AF56^2)+(AF57^2)+(AF58^2))","v":52.649786324352732},{"$f":"((AG40)+(AG41)+(AG42)+(AG43)+(AG44)+(AG54)+(AG55)+(AG56)+(AG57)+(AG58))","v":507},{"$f":"SQRT((AH40^2)+(AH41^2)+(AH42^2)+(AH43^2)+(AH44^2)+(AH54^2)+(AH55^2)+(AH56^2)+(AH57^2)+(AH58^2))","v":154.00973995173163},{"$f":"((AI40)+(AI41)+(AI42)+(AI43)+(AI44)+(AI54)+(AI55)+(AI56)+(AI57)+(AI58))","v":264},{"$f":"SQRT((AJ40^2)+(AJ41^2)+(AJ42^2)+(AJ43^2)+(AJ44^2)+(AJ54^2)+(AJ55^2)+(AJ56^2)+(AJ57^2)+(AJ58^2))","v":75.465223778903621},{"$f":"((AK40)+(AK41)+(AK42)+(AK43)+(AK44)+(AK54)+(AK55)+(AK56)+(AK57)+(AK58))","v":506},{"$f":"SQRT((AL40^2)+(AL41^2)+(AL42^2)+(AL43^2)+(AL44^2)+(AL54^2)+(AL55^2)+(AL56^2)+(AL57^2)+(AL58^2))","v":206.33467958634583},{"$f":"((AM40)+(AM41)+(AM42)+(AM43)+(AM44)+(AM54)+(AM55)+(AM56)+(AM57)+(AM58))","v":702},{"$f":"SQRT((AN40^2)+(AN41^2)+(AN42^2)+(AN43^2)+(AN44^2)+(AN54^2)+(AN55^2)+(AN56^2)+(AN57^2)+(AN58^2))","v":191.48629193756926}]
[null,"18 to 64 years",{"$f":"((C45)+(C46)+(C47)+(C48)+(C49)+(C59)+(C60)+(C61)+(C62)+(C63))","v":459},{"$f":"SQRT((D45^2)+(D46^2)+(D47^2)+(D48^2)+(D49^2)+(D59^2)+(D60^2)+(D61^2)+(D62^2)+(D63^2))","v":116.18950038622251},{"$f":"((E45)+(E46)+(E47)+(E48)+(E49)+(E59)+(E60)+(E61)+(E62)+(E63))","v":1573},{"$f":"SQRT((F45^2)+(F46^2)+(F47^2)+(F48^2)+(F49^2)+(F59^2)+(F60^2)+(F61^2)+(F62^2)+(F63^2))","v":356.74781008437878},{"$f":"((G45)+(G46)+(G47)+(G48)+(G49)+(G59)+(G60)+(G61)+(G62)+(G63))","v":282},{"$f":"SQRT((H45^2)+(H46^2)+(H47^2)+(H48^2)+(H49^2)+(H59^2)+(H60^2)+(H61^2)+(H62^2)+(H63^2))","v":60.348985078458448},{"$f":"((I45)+(I46)+(I47)+(I48)+(I49)+(I59)+(I60)+(I61)+(I62)+(I63))","v":219},{"$f":"SQRT((J45^2)+(J46^2)+(J47^2)+(J48^2)+(J49^2)+(J59^2)+(J60^2)+(J61^2)+(J62^2)+(J63^2))","v":44.966654311834233},{"$f":"((K45)+(K46)+(K47)+(K48)+(K49)+(K59)+(K60)+(K61)+(K62)+(K63))","v":4923},{"$f":"SQRT((L45^2)+(L46^2)+(L47^2)+(L48^2)+(L49^2)+(L59^2)+(L60^2)+(L61^2)+(L62^2)+(L63^2))","v":560.61840854542049},{"$f":"((M45)+(M46)+(M47)+(M48)+(M49)+(M59)+(M60)+(M61)+(M62)+(M63))","v":141},{"$f":"SQRT((N45^2)+(N46^2)+(N47^2)+(N48^2)+(N49^2)+(N59^2)+(N60^2)+(N61^2)+(N62^2)+(N63^2))","v":43.577517139001849},{"$f":"((O45)+(O46)+(O47)+(O48)+(O49)+(O59)+(O60)+(O61)+(O62)+(O63))","v":959},{"$f":"SQRT((P45^2)+(P46^2)+(P47^2)+(P48^2)+(P49^2)+(P59^2)+(P60^2)+(P61^2)+(P62^2)+(P63^2))","v":164.86054712999106},{"$f":"((Q45)+(Q46)+(Q47)+(Q48)+(Q49)+(Q59)+(Q60)+(Q61)+(Q62)+(Q63))","v":515},{"$f":"SQRT((R45^2)+(R46^2)+(R47^2)+(R48^2)+(R49^2)+(R59^2)+(R60^2)+(R61^2)+(R62^2)+(R63^2))","v":81.412529748190479},{"$f":"((S45)+(S46)+(S47)+(S48)+(S49)+(S59)+(S60)+(S61)+(S62)+(S63))","v":69},{"$f":"SQRT((T45^2)+(T46^2)+(T47^2)+(T48^2)+(T49^2)+(T59^2)+(T60^2)+(T61^2)+(T62^2)+(T63^2))","v":48.938737212968626},{"$f":"((U45)+(U46)+(U47)+(U48)+(U49)+(U59)+(U60)+(U61)+(U62)+(U63))","v":28},{"$f":"SQRT((V45^2)+(V46^2)+(V47^2)+(V48^2)+(V49^2)+(V59^2)+(V60^2)+(V61^2)+(V62^2)+(V63^2))","v":37.881393849751625},{"$f":"((W45)+(W46)+(W47)+(W48)+(W49)+(W59)+(W60)+(W61)+(W62)+(W63))","v":570},{"$f":"SQRT((X45^2)+(X46^2)+(X47^2)+(X48^2)+(X49^2)+(X59^2)+(X60^2)+(X61^2)+(X62^2)+(X63^2))","v":129.78058406402707},{"$f":"((Y45)+(Y46)+(Y47)+(Y48)+(Y49)+(Y59)+(Y60)+(Y61)+(Y62)+(Y63))","v":1375},{"$f":"SQRT((Z45^2)+(Z46^2)+(Z47^2)+(Z48^2)+(Z49^2)+(Z59^2)+(Z60^2)+(Z61^2)+(Z62^2)+(Z63^2))","v":181.81034074001403},{"$f":"((AA45)+(AA46)+(AA47)+(AA48)+(AA49)+(AA59)+(AA60)+(AA61)+(AA62)+(AA63))","v":2685},{"$f":"SQRT((AB45^2)+(AB46^2)+(AB47^2)+(AB48^2)+(AB49^2)+(AB59^2)+(AB60^2)+(AB61^2)+(AB62^2)+(AB63^2))","v":327.05657003032366},{"$f":"((AC45)+(AC46)+(AC47)+(AC48)+(AC49)+(AC59)+(AC60)+(AC61)+(AC62)+(AC63))","v":2439},{"$f":"SQRT((AD45^2)+(AD46^2)+(AD47^2)+(AD48^2)+(AD49^2)+(AD59^2)+(AD60^2)+(AD61^2)+(AD62^2)+(AD63^2))","v":337.72177898382569},{"$f":"((AE45)+(AE46)+(AE47)+(AE48)+(AE49)+(AE59)+(AE60)+(AE61)+(AE62)+(AE63))","v":813},{"$f":"SQRT((AF45^2)+(AF46^2)+(AF47^2)+(AF48^2)+(AF49^2)+(AF59^2)+(AF60^2)+(AF61^2)+(AF62^2)+(AF63^2))","v":122.04917041913886},{"$f":"((AG45)+(AG46)+(AG47)+(AG48)+(AG49)+(AG59)+(AG60)+(AG61)+(AG62)+(AG63))","v":1432},{"$f":"SQRT((AH45^2)+(AH46^2)+(AH47^2)+(AH48^2)+(AH49^2)+(AH59^2)+(AH60^2)+(AH61^2)+(AH62^2)+(AH63^2))","v":295.76849054623784},{"$f":"((AI45)+(AI46)+(AI47)+(AI48)+(AI49)+(AI59)+(AI60)+(AI61)+(AI62)+(AI63))","v":1137},{"$f":"SQRT((AJ45^2)+(AJ46^2)+(AJ47^2)+(AJ48^2)+(AJ49^2)+(AJ59^2)+(AJ60^2)+(AJ61^2)+(AJ62^2)+(AJ63^2))","v":192.30704615276062},{"$f":"((AK45)+(AK46)+(AK47)+(AK48)+(AK49)+(AK59)+(AK60)+(AK61)+(AK62)+(AK63))","v":2941},{"$f":"SQRT((AL45^2)+(AL46^2)+(AL47^2)+(AL48^2)+(AL49^2)+(AL59^2)+(AL60^2)+(AL61^2)+(AL62^2)+(AL63^2))","v":471.99682202319963},{"$f":"((AM45)+(AM46)+(AM47)+(AM48)+(AM49)+(AM59)+(AM60)+(AM61)+(AM62)+(AM63))","v":3114},{"$f":"SQRT((AN45^2)+(AN46^2)+(AN47^2)+(AN48^2)+(AN49^2)+(AN59^2)+(AN60^2)+(AN61^2)+(AN62^2)+(AN63^2))","v":538.07620278172499}]
[null,"65 to 74 years",{"$f":"((C50)+(C64))","v":83},{"$f":"SQRT((D50^2)+(D64^2))","v":33.421549934136806},{"$f":"((E50)+(E64))","v":1005},{"$f":"SQRT((F50^2)+(F64^2))","v":290.03792855418067},{"$f":"((G50)+(G64))","v":130},{"$f":"SQRT((H50^2)+(H64^2))","v":37.483329627982627},{"$f":"((I50)+(I64))","v":63},{"$f":"SQRT((J50^2)+(J64^2))","v":20.808652046684813},{"$f":"((K50)+(K64))","v":1554},{"$f":"SQRT((L50^2)+(L64^2))","v":272.20029390138433},{"$f":"((M50)+(M64))","v":105},{"$f":"SQRT((N50^2)+(N64^2))","v":33.301651610693426},{"$f":"((O50)+(O64))","v":204},{"$f":"SQRT((P50^2)+(P64^2))","v":45.343136195018538},{"$f":"((Q50)+(Q64))","v":284},{"$f":"SQRT((R50^2)+(R64^2))","v":48.166378315169183},{"$f":"((S50)+(S64))","v":47},{"$f":"SQRT((T50^2)+(T64^2))","v":19.723082923316021},{"$f":"((U50)+(U64))","v":23},{"$f":"SQRT((V50^2)+(V64^2))","v":25.179356624028344},{"$f":"((W50)+(W64))","v":157},{"$f":"SQRT((X50^2)+(X64^2))","v":56.603886792339623},{"$f":"((Y50)+(Y64))","v":282},{"$f":"SQRT((Z50^2)+(Z64^2))","v":74.953318805774032},{"$f":"((AA50)+(AA64))","v":912},{"$f":"SQRT((AB50^2)+(AB64^2))","v":192.20041623263984},{"$f":"((AC50)+(AC64))","v":735},{"$f":"SQRT((AD50^2)+(AD64^2))","v":177.15812146215595},{"$f":"((AE50)+(AE64))","v":536},{"$f":"SQRT((AF50^2)+(AF64^2))","v":161.59517319524119},{"$f":"((AG50)+(AG64))","v":315},{"$f":"SQRT((AH50^2)+(AH64^2))","v":118.10588469674151},{"$f":"((AI50)+(AI64))","v":522},{"$f":"SQRT((AJ50^2)+(AJ64^2))","v":112.69871339105873},{"$f":"((AK50)+(AK64))","v":574},{"$f":"SQRT((AL50^2)+(AL64^2))","v":195.5326059765992},{"$f":"((AM50)+(AM64))","v":913},{"$f":"SQRT((AN50^2)+(AN64^2))","v":228.80996481796853}]
[null,"75 years and over",{"$f":"((C51)+(C65))","v":35},{"$f":"SQRT((D51^2)+(D65^2))","v":15.620499351813308},{"$f":"((E51)+(E65))","v":255},{"$f":"SQRT((F51^2)+(F65^2))","v":118.25819210524064},{"$f":"((G51)+(G65))","v":51},{"$f":"SQRT((H51^2)+(H65^2))","v":27.513632984395208},{"$f":"((I51)+(I65))","v":24},{"$f":"SQRT((J51^2)+(J65^2))","v":10.63014581273465},{"$f":"((K51)+(K65))","v":927},{"$f":"SQRT((L51^2)+(L65^2))","v":219.14607000811125},{"$f":"((M51)+(M65))","v":42},{"$f":"SQRT((N51^2)+(N65^2))","v":16.278820596099706},{"$f":"((O51)+(O65))","v":34},{"$f":"SQRT((P51^2)+(P65^2))","v":16.643316977093239},{"$f":"((Q51)+(Q65))","v":151},{"$f":"SQRT((R51^2)+(R65^2))","v":49.396356140913873},{"$f":"((S51)+(S65))","v":59},{"$f":"SQRT((T51^2)+(T65^2))","v":23.345235059857504},{"$f":"((U51)+(U65))","v":2},{"$f":"SQRT((V51^2)+(V65^2))","v":3.6055512754639891},{"$f":"((W51)+(W65))","v":97},{"$f":"SQRT((X51^2)+(X65^2))","v":44.687805943008662},{"$f":"((Y51)+(Y65))","v":174},{"$f":"SQRT((Z51^2)+(Z65^2))","v":72.401657439591816},{"$f":"((AA51)+(AA65))","v":555},{"$f":"SQRT((AB51^2)+(AB65^2))","v":138.75518008348374},{"$f":"((AC51)+(AC65))","v":283},{"$f":"SQRT((AD51^2)+(AD65^2))","v":114.73883387938018},{"$f":"((AE51)+(AE65))","v":236},{"$f":"SQRT((AF51^2)+(AF65^2))","v":86.539008545279742},{"$f":"((AG51)+(AG65))","v":232},{"$f":"SQRT((AH51^2)+(AH65^2))","v":105.41821474489122},{"$f":"((AI51)+(AI65))","v":416},{"$f":"SQRT((AJ51^2)+(AJ65^2))","v":160},{"$f":"((AK51)+(AK65))","v":451},{"$f":"SQRT((AL51^2)+(AL65^2))","v":150.6286825275983},{"$f":"((AM51)+(AM65))","v":1064},{"$f":"SQRT((AN51^2)+(AN65^2))","v":208.8276801575883}]
[]
[]
[]
[]
[]
[]
[]
[]
[]
[]
[]
[]
[]
[]
[]
[]
[]
[]
[]
[]
[]
[]
[]
[]
[]
[]
[]
[]
[]
[]
[]
[]
[]
[]
[]
[]
[]
[]
[]
[]
[]
[]
[null,"Calculated Table B17001. POVERTY STATUS IN THE PAST 12 MONTHS BY SEX BY AGE"]
[null,"Universe:  POPULATION FOR WHOM POVERTY STATUS IS DETERMINED"]
[null,"Data Set: 2013-2017 American Community Survey 5-Year Estimates"]
[]
[null,null,"Albany",null,"Bartlett",null,"Brookfield",null,"Chatham",null,"Conway",null,"Eaton",null,"Effingham",null,"Freedom",null,"Hale's Location",null,"Hart's Location",null,"Jackson",null,"Madison",null,"Moultonborough",null,"Ossipee",null,"Sandwich",null,"Tamworth",null,"Tuftonboro",null,"Wakefield",null,"Wolfeboro"]
[null," ","Estimate","Margin of Error","Estimate","Margin of Error","Estimate","Margin of Error","Estimate","Margin of Error","Estimate","Margin of Error","Estimate","Margin of Error","Estimate","Margin of Error","Estimate","Margin of Error","Estimate","Margin of Error","Estimate","Margin of Error","Estimate","Margin of Error","Estimate","Margin of Error","Estimate","Margin of Error","Estimate","Margin of Error","Estimate","Margin of Error","Estimate","Margin of Error","Estimate","Margin of Error","Estimate","Margin of Error","Estimate","Margin of Error"]
[null,"Total:",778,140,2760,22,876,265,334,105,9832,85,321,68,1429,173,1314,175,159,48,52,31,957,220,2501,26,4037,25,4049,127,1339,199,2917,13,2129,176,4959,51,6130,40]
[null,"Income in the past 12 months below poverty level:",142,82,250,162,9,10,26,27,1170,408,14,10,167,71,112,75,4,7,0,11,123,88,201,102,184,107,734,395,77,61,287,146,204,104,269,197,340,252]
[null,"Under 5 years",20,30.083217912982647,29,34.785054261852174,0,12.529964086141668,0,11.704699910719626,88,49.396356140913873,0,11.401754250991379,14,13.601470508735444,0,15.556349186104045,0,11.704699910719626,0,15.556349186104045,15,26.40075756488817,0,13.038404810405298,0,13.601470508735444,78,93.984041198492847,24,25.495097567963924,0,30.083217912982647,6,26.40075756488817,0,78.644770964127048,39,72.718635850791372]
[null,"5 to 17 years",29,32.109188716004645,0,33.166247903554002,0,33.166247903554002,4,30.133038346638727,295,133.68245958239996,0,33.166247903554002,49,33.734255586865999,27,32.832910318764007,0,33.166247903554002,0,33.166247903554002,19,35.142566781611158,38,44.48595283907045,46,42.696604080418389,33,58.98304841223451,4,31.859064644147981,0,33.166247903554002,12,35.142566781611158,11,44.384682042344295,0,48.166378315169183]
[null,"18 to 64 years",79,41.109609582188931,193,114.06577050105786,9,32.249030993194197,13,29.949958263743873,710,218.84926319272816,11,28.442925306655784,74,25.13961017995307,71,51.137070702182385,2,33.241540277189323,0,34.785054261852174,67,48.641546028061235,103,53.460265618494638,117,71.133676975114952,511,190.49409439665052,35,33.526109228480422,272,156.46724896923317,104,52.067264187779251,218,149.52926135041261,301,196.80701207020039]
[null,"65 to 74 years",6,12.529964086141668,1,11.704699910719626,0,15.556349186104045,2,11.704699910719626,54,52.153619241621193,0,15.556349186104045,15,9.4339811320566032,3,12.529964086141668,0,15.556349186104045,0,15.556349186104045,19,22.803508501982758,12,17.029386365926403,20,17.804493814764857,72,72.945184899347538,11,8.4852813742385695,0,15.556349186104045,18,14.212670403551895,19,34,0,22.627416997969522]
[null,"75 years and over",8,10.770329614269007,27,42.449970553582247,0,15.556349186104045,7,11.661903789690601,23,21.633307652783937,3,12.083045973594572,15,21.095023109728988,11,15.556349186104045,2,12.083045973594572,0,15.556349186104045,3,11.704699910719626,48,46.840153714521477,1,11.401754250991379,40,55.578772926361012,3,12.529964086141668,15,24.596747752497688,64,49.406477308142499,21,36.674241641784498,0,22.627416997969522]
[null," Income in the past 12 months at or above poverty level ",636,127,2510,161,867,265,308,89,8662,416,307,68,1262,153,1202,166,155,47,52,31,834,202,2300,101,3853,114,3315,397,1262,198,2630,150,1925,171,4690,210,5790,246]
[null,"Under 5 years",17,12.206555615733702,49,51.107729356722551,32,24.083189157584592,12,10.816653826391969,358,123.76186811776881,10,16.278820596099706,54,31.144823004794873,5,13.601470508735444,0,15.556349186104045,0,15.556349186104045,24,27.586228448267445,156,59.941638282582836,80,54.203320931470607,46,38.418745424597091,18,15.811388300841896,95,74.431176263713581,40,41.484937025383083,284,107.54068997360952,162,72.780491891715045]
[null,"5 to 17 years",137,53.693575034635195,332,130.95800853708795,193,75.352504935138029,41,22.803508501982758,1339,274.47768579613171,20,25.612496949731394,164,45.672748986676943,169,55.641710972974224,0,34.785054261852174,2,33.376638536557273,59,46.010868281309364,253,87.977269791691086,471,143.57228144736015,372,144.29830213831346,153,58.120564346881558,401,187.60063965775811,241,79.529868602934329,415,172.36008818749195,597,209.81896959045434]
[null,"18 to 64 years",372,62.369864518050704,1530,252.22410669878485,488,101.19288512538814,198,50.189640365318418,5277,475.21258400846244,163,39.912404086950211,794,102.62553288533999,657,88.147603484156051,35,32.357379374726875,40,31.384709652950431,416,108.82095386459356,1395,166.08130538986018,2219,244.92651959312204,1972,305.00819661117305,667,98.549479958039356,1612,294.62688268384471,990,138.21722034536796,3004,382.86028783356471,2823,359.93332715935043]
[null,"65 to 74 years",53,21.633307652783937,424,150.24313628249379,126,41.773197148410844,34,16.970562748477139,1065,186.76188047886004,85,26.248809496813376,154,40.311288741492746,197,38.209946349085598,69,21.400934559032695,6,6.7082039324993694,223,67.896980787071826,301,77.077882690172544,792,126.65701717630967,616,149.80654191322887,225,45.967379738244816,256,104.89041900955492,446,91.967385523347346,638,176.47946056127893,1222,170.18225524419401]
[null,"75 years and over",57,24.207436873820409,175,100.7670581092849,28,21.931712199461309,23,16.401219466856727,623,124.65151423067431,29,14.212670403551895,96,33.61547262794322,174,50.931326312987373,51,16.278820596099706,4,4.2426406871192848,112,43.416586692184822,195,70.724818840347695,291,91.438503924769023,309,90.906545418908095,199,59.405386961116584,266,140.41723540933285,208,53.009433122794285,349,137.88763541376724,986,230.20208513391012]
[]
[]
[]
[]
[]
[]
[]
[]
[]
[]
[]
[]
[]
[]
[]
[]
[]
[]
[]
[]
[]
[]
[]
[]
[]
[]
[]
[]
[]
[]
[]
[]
[]
[]
[]
[]
[]
[]
[]
[]
[]
[]
[null,"Calculated Table B17001. POVERTY STATUS IN THE PAST 12 MONTHS BY SEX BY AGE"]
[null,"Universe:  POPULATION FOR WHOM POVERTY STATUS IS DETERMINED"]
[null,"Data Set: 2008-2012 American Community Survey 5-Year Estimates"]
[]
[null,null,"Albany",null,"Bartlett",null,"Brookfield",null,"Chatham",null,"Conway",null,"Eaton",null,"Effingham",null,"Freedom",null,"Hale's Location",null,"Hart's Location",null,"Jackson",null,"Madison",null,"Moultonborough",null,"Ossipee",null,"Sandwich",null,"Tamworth",null,"Tuftonboro",null,"Wakefield",null,"Wolfeboro"]
[null," ","Estimate","Margin of Error","Estimate","Margin of Error","Estimate","Margin of Error","Estimate","Margin of Error","Estimate","Margin of Error","Estimate","Margin of Error","Estimate","Margin of Error","Estimate","Margin of Error","Estimate","Margin of Error","Estimate","Margin of Error","Estimate","Margin of Error","Estimate","Margin of Error","Estimate","Margin of Error","Estimate","Margin of Error","Estimate","Margin of Error","Estimate","Margin of Error","Estimate","Margin of Error","Estimate","Margin of Error","Estimate","Margin of Error"]
[null,"Total:",872,177,2793,17,677,160,441,149,9930,82,393,77,1339,201,1197,167,110,29,33,21,990,232,2475,33,4057,31,4173,104,1221,201,2846,21,2506,305,5044,19,6155,58]
[null,"Income in the past 12 months below poverty level:",124,90,250,131,29,18,126,103,1203,361,22,20,254,101,174,91,6,6,0,11,64,50,81,57,207,89,681,283,83,52,530,238,203,129,334,137,484,239]
[null,"Under 5 years",27,19.646882704388499,14,15.556349186104045,0,15.556349186104045,46,29.274562336608895,101,101.01980003939822,0,13.038404810405298,11,24.083189157584592,19,9.2195444572928871,0,15.556349186104045,0,15.556349186104045,0,28.231188426986208,0,15.556349186104045,10,37.643060449437421,47,71.505244562899023,4,12.083045973594572,42,13.601470508735444,17,19.849433241279208,0,42.154477816715982,75,98.615414616580097]
[null,"5 to 17 years",4,31.685959035509718,45,59.858165691908738,2,32.295510523910288,11,31.859064644147981,81,85.656289903310665,4,31.859064644147981,6,32.062439083762797,58,42.01190307520001,0,33.166247903554002,0,33.166247903554002,8,35.142566781611158,14,33.511192160232078,11,34.278273002005221,181,117.33285984752951,13,31.606961258558215,99,62.257529665093521,88,73.511903797956421,14,51.855568649856693,52,92.870878105033555]
[null,"18 to 64 years",91,44.24929377967517,163,90.592494170322965,27,28.774989139876318,58,44.113490000225553,818,250.91034255287286,15,27.184554438136374,148,80.65977932030313,87,33.301651610693426,3,33.241540277189323,0,34.785054261852174,56,45.672748986676943,57,44.079473681068379,160,76.628976242672067,416,153.61315047872691,47,32.863353450309965,340,133.49906366712838,87,47.360320944858472,221,95.603347221736954,265,154.60595072635465]
[null,"65 to 74 years",0,15.556349186104045,28,45.354161881794269,0,15.556349186104045,8,6.7082039324993694,68,92.763139231054481,3,4.2426406871192848,14,10.63014581273465,3,11.704699910719626,1,11.401754250991379,0,15.556349186104045,0,15.556349186104045,10,11.661903789690601,8,18.601075237738275,0,15.556349186104045,7,7.2111025509279782,13,22.825424421026653,5,13.038404810405298,48,40.496913462633174,0,22.627416997969522]
[null,"75 years and over",2,11.401754250991379,0,15.556349186104045,0,15.556349186104045,3,11.704699910719626,135,77.388629655783419,0,15.556349186104045,75,94.794514609232536,7,13.038404810405298,2,11.704699910719626,0,15.556349186104045,0,15.556349186104045,0,15.556349186104045,18,23.345235059857504,37,29.966648127543394,12,10.295630140987001,36,32.202484376209235,6,14.212670403551895,51,44.407206622349037,92,89.537701556383496]
[null," Income in the past 12 months at or above poverty level ",748,172,2543,132,648,158,315,111,8727,361,371,77,1085,172,1023,142,104,30,33,21,926,228,2394,71,3850,103,3492,311,1138,182,2316,234,2303,289,4710,144,5671,262]
[null,"Under 5 years",19,24.596747752497688,60,62.968245965724662,15,14.317821063276353,9,12.083045973594572,483,145.24462124292245,1,11.401754250991379,52,34.985711369071801,41,26.076809620810597,0,15.556349186104045,0,15.556349186104045,51,35.355339059327378,85,49.648766349225639,118,65.115282384398824,126,82.879430499973878,16,12.206555615733702,71,55.154328932550705,108,63.7808748764079,205,95.603347221736954,117,74.330343736592525]
[null,"5 to 17 years",99,50.289163842720633,386,151.29771974487917,117,44.933283877321941,53,39.912404086950211,1160,278.74899102956408,25,26.229754097208001,162,53.730810528038752,84,33.301651610693426,4,33.541019662496844,0,34.785054261852174,138,59.724366886556446,312,111.7899816620434,462,123.88704532758864,746,192.01822830137769,154,60.365553091146282,187,88.436417837902056,356,116.20240961357041,526,163.52064089893972,1020,246.70630312174839]
[null,"18 to 64 years",494,97.836598469080073,1530,276.16842687027059,384,81.578183358052286,201,56.338264084013097,5692,502.43308012112419,262,45.858477951192405,684,92.924700699006834,519,76.098620224022454,33,25.96150997149434,29,31.54362059117501,479,97.69851585361981,1540,190,2326,247.90118999310997,2126,270.72495267337291,646,89.833178725902826,1660,251.54522456210535,1303,189.79462584593907,3013,359.64148815174258,2947,340.03088095053954]
[null,"65 to 74 years",83,29.832867780352597,345,120.60265337047937,83,36.796738985948195,35,21.633307652783937,913,219.93862780330335,65,26.076809620810597,113,33.97057550292606,241,49.51767361255979,42,16.278820596099706,0,15.556349186104045,182,53.814496188294839,263,77.620873481300123,618,138.05795884337854,264,72.801098892805186,196,40.607881008493905,196,75.432088662584434,289,81.400245699874887,489,154.84185480676729,936,200.11246837716035]
[null,"75 years and over",53,28.231188426986208,222,93.23625904121208,49,31.240998703626616,17,13.892443989449804,479,126.49110640673517,18,11.180339887498949,74,30.479501308256342,138,40.311288741492746,25,10,4,11.704699910719626,76,31.240998703626616,194,75.006666370396701,326,109.48059188732951,230,75.716576784743779,126,33.301651610693426,202,75.604232685743199,247,100.65783625729296,477,154.20765220960988,651,152.04275714416653]

{"sheet":"ACS_Table_B17010","index":54,"n_rows":156,"n_cols":40,"rows_kept":156,"cut":false,"hidden":true,"merged":[]}
[null,"B17010. POVERTY STATUS IN THE PAST 12 MONTHS OF FAMILIES BY FAMILY TYPE BY PRESENCE OF RELATED CHILDREN UNDER 18 YEARS"]
[null,"Universe: FAMILIES"]
[null,"Data Set: 2018-2022 American Community Survey 5-Year Estimates"]
[]
[null,null,"Albany",null,"Bartlett",null,"Brookfield",null,"Chatham",null,"Conway",null,"Eaton",null,"Effingham",null,"Freedom",null,"Hale's Location",null,"Hart's Location",null,"Jackson",null,"Madison",null,"Moultonborough",null,"Ossipee",null,"Sandwich",null,"Tamworth",null,"Tuftonboro",null,"Wakefield",null,"Wolfeboro"]
[null," ","Estimate","Margin of Error","Estimate","Margin of Error","Estimate","Margin of Error","Estimate","Margin of Error","Estimate","Margin of Error","Estimate","Margin of Error","Estimate","Margin of Error","Estimate","Margin of Error","Estimate","Margin of Error","Estimate","Margin of Error","Estimate","Margin of Error","Estimate","Margin of Error","Estimate","Margin of Error","Estimate","Margin of Error","Estimate","Margin of Error","Estimate","Margin of Error","Estimate","Margin of Error","Estimate","Margin of Error","Estimate","Margin of Error"]
[null,"Total:",211,79,763,163,161,39,108,31,2400,262,84,21,412,55,410,76,70,28,2,4,354,89,683,73,1511,131,1270,117,510,90,660,94,729,96,1480,231,1708,198]
[null,"Income in the past 12 months below poverty level:",8,7,0,12,6,6,0,12,130,109,5,6,52,36,48,48,7,9,0,12,48,60,28,23,18,21,45,29,5,9,39,45,9,12,86,100,98,91]
[null,"Married-couple family:",6,7,0,12,4,5,0,12,38,42,1,3,16,15,15,14,7,9,0,12,48,60,28,23,5,10,11,21,5,9,7,11,0,12,77,99,63,72]
[null,"With related children under 18 years:",6,7,0,12,0,12,0,12,24,37,1,3,0,12,4,7,1,3,0,12,0,12,0,12,0,12,0,12,0,12,0,12,0,12,61,96,0,17]
[null,"Under 5 years only",3,4,0,12,0,12,0,12,0,17,0,12,0,12,0,12,0,12,0,12,0,12,0,12,0,12,0,12,0,12,0,12,0,12,0,17,0,17]
[null,"Under 5 years and 5 to 17 years",0,12,0,12,0,12,0,12,0,17,0,12,0,12,4,7,0,12,0,12,0,12,0,12,0,12,0,12,0,12,0,12,0,12,0,17,0,17]
[null,"5 to 17 years only",3,4,0,12,0,12,0,12,24,37,1,3,0,12,0,12,1,3,0,12,0,12,0,12,0,12,0,12,0,12,0,12,0,12,61,96,0,17]
[null,"No related children under 18 years",0,12,0,12,4,5,0,12,14,19,0,12,16,15,11,12,6,8,0,12,48,60,28,23,5,10,11,21,5,9,7,11,0,12,16,24,63,72]
[null,"Other family:",2,3,0,12,2,3,0,12,92,102,4,6,36,31,33,48,0,12,0,12,0,12,0,12,13,17,34,25,0,12,32,45,9,12,9,19,35,41]
[null,"Male householder, no spouse present:",2,3,0,12,0,12,0,12,0,17,4,6,21,17,0,12,0,12,0,12,0,12,0,12,0,12,10,13,0,12,32,45,0,12,9,19,8,13]
[null,"With related children under 18 years:",2,3,0,12,0,12,0,12,0,17,0,12,12,11,0,12,0,12,0,12,0,12,0,12,0,12,0,12,0,12,32,45,0,12,9,19,8,13]
[null,"Under 5 years only",0,12,0,12,0,12,0,12,0,17,0,12,0,12,0,12,0,12,0,12,0,12,0,12,0,12,0,12,0,12,0,12,0,12,0,17,0,17]
[null,"Under 5 years and 5 to 17 years",0,12,0,12,0,12,0,12,0,17,0,12,0,12,0,12,0,12,0,12,0,12,0,12,0,12,0,12,0,12,0,12,0,12,0,17,0,17]
[null,"5 to 17 years only",2,3,0,12,0,12,0,12,0,17,0,12,12,11,0,12,0,12,0,12,0,12,0,12,0,12,0,12,0,12,32,45,0,12,9,19,8,13]
[null,"No related children under 18 years",0,12,0,12,0,12,0,12,0,17,4,6,9,13,0,12,0,12,0,12,0,12,0,12,0,12,10,13,0,12,0,12,0,12,0,17,0,17]
[null,"Female householder, no spouse present:",0,12,0,12,2,3,0,12,92,102,0,12,15,25,33,48,0,12,0,12,0,12,0,12,13,17,24,20,0,12,0,12,9,12,0,17,27,39]
[null,"With related children under 18 years:",0,12,0,12,0,12,0,12,92,102,0,12,15,25,0,12,0,12,0,12,0,12,0,12,13,17,24,20,0,12,0,12,9,12,0,17,27,39]
[null,"Under 5 years only",0,12,0,12,0,12,0,12,0,17,0,12,0,12,0,12,0,12,0,12,0,12,0,12,0,12,0,12,0,12,0,12,0,12,0,17,0,17]
[null,"Under 5 years and 5 to 17 years",0,12,0,12,0,12,0,12,0,17,0,12,0,12,0,12,0,12,0,12,0,12,0,12,0,12,6,21,0,12,0,12,0,12,0,17,27,39]
[null,"5 to 17 years only",0,12,0,12,0,12,0,12,92,102,0,12,15,25,0,12,0,12,0,12,0,12,0,12,13,17,18,29,0,12,0,12,9,12,0,17,0,17]
[null,"No related children under 18 years",0,12,0,12,2,3,0,12,0,17,0,12,0,12,33,48,0,12,0,12,0,12,0,12,0,12,0,12,0,12,0,12,0,12,0,17,0,17]
[null,"Income in the past 12 months at or above poverty level:",203,79,763,163,155,39,108,31,2270,273,79,20,360,59,362,59,63,26,2,4,306,67,655,73,1493,132,1225,121,505,89,621,103,720,97,1394,233,1610,207]
[null,"Married-couple family:",172,78,724,164,146,37,87,23,1682,243,65,19,294,57,290,50,61,26,2,4,278,67,554,109,1278,143,1027,144,441,86,523,123,671,100,1310,236,1242,200]
[null,"With related children under 18 years:",30,18,95,81,38,20,27,13,377,110,10,10,108,38,43,16,0,12,0,12,99,41,196,57,222,83,203,92,114,53,236,93,152,65,291,107,209,106]
[null,"Under 5 years only",2,4,0,12,15,14,1,3,25,24,0,12,18,15,22,15,0,12,0,12,10,15,23,28,21,26,71,51,10,9,8,13,6,6,13,21,2,4]
[null,"Under 5 years and 5 to 17 years",5,6,39,61,0,12,8,7,69,49,6,8,23,17,0,12,0,12,0,12,61,41,33,21,52,42,12,16,6,7,35,33,34,31,113,72,0,17]
[null,"5 to 17 years only",23,16,56,57,23,15,18,10,283,105,4,6,67,34,21,21,0,12,0,12,28,7,140,60,149,79,120,72,98,51,193,92,112,59,165,93,207,106]
[null,"No related children under 18 years",142,78,629,168,108,31,60,21,1305,243,55,18,186,40,247,45,61,26,2,4,179,68,358,100,1056,159,824,138,327,67,287,115,519,122,1019,261,1033,187]
[null,"Other family:",31,21,39,41,9,8,21,18,588,178,14,10,66,37,72,39,2,3,0,12,28,26,101,74,215,80,198,111,64,33,98,66,49,29,84,71,368,184]
[null,"Male householder, no spouse present:",7,11,0,12,3,6,10,9,257,121,3,4,6,7,56,39,2,3,0,12,20,23,65,75,126,56,74,81,31,20,0,12,42,27,34,38,0,17]
[null,"With related children under 18 years:",7,11,0,12,0,12,5,6,97,86,0,12,3,5,49,39,0,12,0,12,0,12,54,75,85,42,1,3,10,12,0,12,37,28,0,17,0,17]
[null,"Under 5 years only",0,12,0,12,0,12,0,12,68,81,0,12,3,5,0,12,0,12,0,12,0,12,0,12,0,12,1,3,0,12,0,12,0,12,0,17,0,17]
[null,"Under 5 years and 5 to 17 years",0,12,0,12,0,12,0,12,0,17,0,12,0,12,6,8,0,12,0,12,0,12,0,12,0,12,0,12,4,6,0,12,13,12,0,17,0,17]
[null,"5 to 17 years only",7,11,0,12,0,12,5,6,29,40,0,12,0,12,43,38,0,12,0,12,0,12,54,75,85,42,0,12,6,10,0,12,24,27,0,17,0,17]
[null,"No related children under 18 years",0,12,0,12,3,6,5,8,160,102,3,4,3,5,7,8,2,3,0,12,20,23,11,15,41,39,73,81,21,16,0,12,5,7,34,38,0,17]
[null,"Female householder, no spouse present:",24,18,39,41,6,6,11,16,331,162,11,9,60,36,16,17,0,12,0,12,8,12,36,27,89,74,124,79,33,22,98,66,7,10,50,59,368,184]
[null,"With related children under 18 years:",14,15,39,41,0,12,9,15,184,95,5,6,55,36,3,5,0,12,0,12,0,12,17,20,49,58,74,67,8,8,61,52,0,12,36,54,264,176]
[null,"Under 5 years only",0,12,0,12,0,12,0,12,0,17,0,12,0,12,0,12,0,12,0,12,0,12,0,12,0,12,0,12,0,12,7,9,0,12,36,54,0,17]
[null,"Under 5 years and 5 to 17 years",0,12,0,12,0,12,0,12,7,13,0,12,25,22,0,12,0,12,0,12,0,12,0,12,0,12,6,14,0,12,0,12,0,12,0,17,0,17]
[null,"5 to 17 years only",14,15,39,41,0,12,9,15,177,95,5,6,30,31,3,5,0,12,0,12,0,12,17,20,49,58,68,66,8,8,54,52,0,12,0,17,264,176]
[null,"No related children under 18 years",10,10,0,12,6,6,2,3,147,124,6,8,5,5,13,16,0,12,0,12,8,12,19,16,40,37,50,27,25,22,37,56,7,10,14,22,104,64]
[]
[]
[]
[]
[]
[]
[]
[]
[]
[]
[]
[]
[null,"B17010. POVERTY STATUS IN THE PAST 12 MONTHS OF FAMILIES BY FAMILY TYPE BY PRESENCE OF RELATED CHILDREN UNDER 18 YEARS"]
[null,"Universe: FAMILIES"]
[null,"Data Set: 2013-2017 American Community Survey 5-Year Estimates"]
[]
[null,null,"Albany",null,"Bartlett",null,"Brookfield",null,"Chatham",null,"Conway",null,"Eaton",null,"Effingham",null,"Freedom",null,"Hale's Location",null,"Hart's Location",null,"Jackson",null,"Madison",null,"Moultonborough",null,"Ossipee",null,"Sandwich",null,"Tamworth",null,"Tuftonboro",null,"Wakefield",null,"Wolfeboro"]
[null," ","Estimate","Margin of Error","Estimate","Margin of Error","Estimate","Margin of Error","Estimate","Margin of Error","Estimate","Margin of Error","Estimate","Margin of Error","Estimate","Margin of Error","Estimate","Margin of Error","Estimate","Margin of Error","Estimate","Margin of Error","Estimate","Margin of Error","Estimate","Margin of Error","Estimate","Margin of Error","Estimate","Margin of Error","Estimate","Margin of Error","Estimate","Margin of Error","Estimate","Margin of Error","Estimate","Margin of Error","Estimate","Margin of Error"]
[null,"Total:",222,43,669,104,285,70,93,27,2832,214,95,28,406,49,408,57,62,21,17,12,274,70,738,63,1307,105,1076,131,413,64,929,110,718,79,1507,150,2010,153]
[null,"Income in the past 12 months below poverty level:",32,23,39,61,5,6,1,4,229,115,0,11,25,14,27,24,0,11,0,11,26,30,35,24,27,28,111,86,14,17,14,21,42,28,5,8,64,67]
[null,"Married-couple family:",15,16,0,11,5,6,0,11,44,39,0,11,11,8,12,18,0,11,0,11,24,31,25,21,0,11,81,62,5,6,14,21,16,12,0,16,64,67]
[null,"With related children under 18 years:",15,16,0,11,0,11,0,11,35,37,0,11,3,5,0,11,0,11,0,11,11,20,7,11,0,11,26,37,0,11,0,11,0,11,0,16,31,50]
[null,"Under 5 years only",0,11,0,11,0,11,0,11,0,18,0,11,0,11,0,11,0,11,0,11,0,11,0,11,0,11,26,37,0,11,0,11,0,11,0,16,31,50]
[null,"Under 5 years and 5 to 17 years",6,10,0,11,0,11,0,11,0,18,0,11,0,11,0,11,0,11,0,11,11,20,0,11,0,11,0,11,0,11,0,11,0,11,0,16,0,16]
[null,"5 to 17 years only",9,13,0,11,0,11,0,11,35,37,0,11,3,5,0,11,0,11,0,11,0,11,7,11,0,11,0,11,0,11,0,11,0,11,0,16,0,16]
[null,"No related children under 18 years",0,11,0,11,5,6,0,11,9,14,0,11,8,7,12,18,0,11,0,11,13,24,18,17,0,11,55,51,5,6,14,21,16,12,0,16,33,49]
[null,"Other family:",17,16,39,61,0,11,1,4,185,110,0,11,14,12,15,17,0,11,0,11,2,5,10,15,27,28,30,46,9,14,0,11,26,25,5,8,0,16]
[null,"Male householder, no wife present:",9,11,39,61,0,11,0,11,60,75,0,11,0,11,12,16,0,11,0,11,0,11,0,11,10,16,0,11,0,11,0,11,8,11,0,16,0,16]
[null,"With related children under 18 years:",3,5,39,61,0,11,0,11,13,25,0,11,0,11,12,16,0,11,0,11,0,11,0,11,10,16,0,11,0,11,0,11,0,11,0,16,0,16]
[null,"Under 5 years only",0,11,39,61,0,11,0,11,0,18,0,11,0,11,0,11,0,11,0,11,0,11,0,11,0,11,0,11,0,11,0,11,0,11,0,16,0,16]
[null,"Under 5 years and 5 to 17 years",0,11,0,11,0,11,0,11,13,25,0,11,0,11,0,11,0,11,0,11,0,11,0,11,0,11,0,11,0,11,0,11,0,11,0,16,0,16]
[null,"5 to 17 years only",3,5,0,11,0,11,0,11,0,18,0,11,0,11,12,16,0,11,0,11,0,11,0,11,10,16,0,11,0,11,0,11,0,11,0,16,0,16]
[null,"No related children under 18 years",6,10,0,11,0,11,0,11,47,66,0,11,0,11,0,11,0,11,0,11,0,11,0,11,0,11,0,11,0,11,0,11,8,11,0,16,0,16]
[null,"Female householder, no husband present:",8,13,0,11,0,11,1,4,125,88,0,11,14,12,3,5,0,11,0,11,2,5,10,15,17,21,30,46,9,14,0,11,18,22,5,8,0,16]
[null,"With related children under 18 years:",8,13,0,11,0,11,1,4,125,88,0,11,14,12,3,5,0,11,0,11,2,5,10,15,17,21,30,46,9,14,0,11,5,7,5,8,0,16]
[null,"Under 5 years only",5,12,0,11,0,11,0,11,25,41,0,11,0,11,0,11,0,11,0,11,0,11,0,11,0,11,0,11,9,14,0,11,0,11,0,16,0,16]
[null,"Under 5 years and 5 to 17 years",0,11,0,11,0,11,0,11,25,41,0,11,12,12,0,11,0,11,0,11,0,11,0,11,0,11,30,46,0,11,0,11,5,7,0,16,0,16]
[null,"5 to 17 years only",3,5,0,11,0,11,1,4,75,70,0,11,2,4,3,5,0,11,0,11,2,5,10,15,17,21,0,11,0,11,0,11,0,11,5,8,0,16]
[null,"No related children under 18 years",0,11,0,11,0,11,0,11,0,18,0,11,0,11,0,11,0,11,0,11,0,11,0,11,0,11,0,11,0,11,0,11,13,21,0,16,0,16]
[null,"Income in the past 12 months at or above poverty level:",190,39,630,94,280,70,92,27,2603,234,95,28,381,46,381,58,62,21,17,12,248,68,703,64,1280,108,965,157,399,66,915,111,676,82,1502,150,1946,158]
[null,"Married-couple family:",159,31,535,107,273,68,73,19,2007,249,87,27,287,46,372,56,62,21,14,11,234,68,586,79,1119,130,836,160,352,60,710,164,597,74,1394,155,1690,191]
[null,"With related children under 18 years:",60,23,181,78,125,65,30,17,637,171,14,9,75,32,113,36,0,11,2,4,53,38,171,52,247,91,222,92,59,31,176,73,121,50,427,102,405,128]
[null,"Under 5 years only",5,5,35,42,14,15,8,9,111,74,3,4,14,14,4,6,0,11,0,11,21,25,51,35,34,40,25,25,8,8,61,59,26,40,160,90,73,81]
[null,"Under 5 years and 5 to 17 years",15,14,0,11,10,17,2,4,140,77,3,4,10,9,0,11,0,11,0,11,0,11,25,23,6,9,15,22,3,5,9,17,0,11,32,45,30,47]
[null,"5 to 17 years only",40,18,146,73,101,58,20,14,386,139,8,9,51,26,109,36,0,11,2,4,32,27,95,49,207,84,182,90,48,29,106,62,95,42,235,121,302,122]
[null,"No related children under 18 years",99,25,354,118,148,41,43,16,1370,228,73,26,212,41,259,47,62,21,12,10,181,58,415,72,872,118,614,168,293,49,534,160,476,70,967,177,1285,216]
[null,"Other family:",31,24,95,67,7,9,19,15,596,214,8,7,94,36,9,10,0,11,3,4,14,20,117,51,161,83,129,76,47,25,205,117,79,45,108,84,256,154]
[null,"Male householder, no wife present:",3,5,35,41,7,9,8,7,224,158,2,3,41,20,5,8,0,11,3,4,0,11,54,40,79,59,65,63,14,12,88,90,37,34,44,67,137,121]
[null,"With related children under 18 years:",3,5,20,32,5,8,3,5,173,149,2,3,17,12,0,11,0,11,0,11,0,11,49,39,41,34,42,57,8,9,46,68,37,34,0,16,18,33]
[null,"Under 5 years only",0,11,0,11,0,11,0,11,0,18,0,11,5,7,0,11,0,11,0,11,0,11,0,11,30,28,0,11,4,6,0,11,0,11,0,16,0,16]
[null,"Under 5 years and 5 to 17 years",3,5,0,11,0,11,0,11,83,123,0,11,8,8,0,11,0,11,0,11,0,11,41,38,0,11,0,11,0,11,0,11,0,11,0,16,0,16]
[null,"5 to 17 years only",0,11,20,32,5,8,3,5,90,96,2,3,4,7,0,11,0,11,0,11,0,11,8,12,11,20,42,57,4,6,46,68,37,34,0,16,18,33]
[null,"No related children under 18 years",0,11,15,24,2,4,5,6,51,79,0,11,24,15,5,8,0,11,3,4,0,11,5,7,38,47,23,26,6,8,42,64,0,11,44,67,119,122]
[null,"Female householder, no husband present:",28,23,60,51,0,11,11,14,372,157,6,6,53,32,4,6,0,11,0,11,14,20,63,32,82,54,64,39,33,20,117,91,42,31,64,58,119,107]
[null,"With related children under 18 years:",10,14,0,11,0,11,0,11,344,158,2,4,32,27,0,11,0,11,0,11,0,11,24,18,70,53,8,15,20,17,74,81,16,17,23,43,69,93]
[null,"Under 5 years only",0,11,0,11,0,11,0,11,51,55,0,11,0,11,0,11,0,11,0,11,0,11,0,11,7,13,0,11,3,6,0,11,0,11,0,16,69,93]
[null,"Under 5 years and 5 to 17 years",0,11,0,11,0,11,0,11,26,41,0,11,15,23,0,11,0,11,0,11,0,11,0,11,18,27,8,15,0,11,0,11,12,16,6,29,0,16]
[null,"5 to 17 years only",10,14,0,11,0,11,0,11,267,140,2,4,17,12,0,11,0,11,0,11,0,11,24,18,45,46,0,11,17,16,74,81,4,7,17,28,0,16]
[null,"No related children under 18 years",18,18,60,51,0,11,11,14,28,29,4,5,21,17,4,6,0,11,0,11,14,20,39,27,12,15,56,38,13,11,43,43,26,27,41,50,50,49]
[]
[]
[]
[null,"B17010. POVERTY STATUS IN THE PAST 12 MONTHS OF FAMILIES BY FAMILY TYPE BY PRESENCE OF RELATED CHILDREN UNDER 18 YEARS"]
[null,"Universe: FAMILIES"]
[null,"Data Set: 2008-2012 American Community Survey 5-Year Estimates"]
[]
[null,null,"Albany",null,"Bartlett",null,"Brookfield",null,"Chatham",null,"Conway",null,"Eaton",null,"Effingham",null,"Freedom",null,"Hale's Location",null,"Hart's Location",null,"Jackson",null,"Madison",null,"Moultonborough",null,"Ossipee",null,"Sandwich",null,"Tamworth",null,"Tuftonboro",null,"Wakefield",null,"Wolfeboro"]
[null," ","Estimate","Margin of Error","Estimate","Margin of Error","Estimate","Margin of Error","Estimate","Margin of Error","Estimate","Margin of Error","Estimate","Margin of Error","Estimate","Margin of Error","Estimate","Margin of Error","Estimate","Margin of Error","Estimate","Margin of Error","Estimate","Margin of Error","Estimate","Margin of Error","Estimate","Margin of Error","Estimate","Margin of Error","Estimate","Margin of Error","Estimate","Margin of Error","Estimate","Margin of Error","Estimate","Margin of Error","Estimate","Margin of Error"]
[null,"Total:",259,62,742,110,183,48,122,41,2660,238,138,29,340,58,384,62,44,14,2,4,305,75,790,81,1361,88,1099,114,373,67,740,90,807,109,1567,173,1778,171]
[null,"Income in the past 12 months below poverty level:",33,26,28,29,2,4,26,25,168,89,10,10,37,25,38,18,0,11,0,11,23,26,16,13,8,14,187,103,15,14,59,44,45,31,78,56,86,81]
[null,"Married-couple family:",11,9,0,11,0,11,5,6,87,70,6,7,27,25,22,15,0,11,0,11,14,20,6,11,0,11,74,49,7,7,0,11,15,19,61,47,31,35]
[null,"With related children under 18 years:",7,9,0,11,0,11,4,6,0,18,0,11,13,18,15,13,0,11,0,11,0,11,6,11,0,11,35,37,0,11,0,11,8,14,0,16,16,26]
[null,"Under 5 years only",7,9,0,11,0,11,0,11,0,18,0,11,10,17,0,11,0,11,0,11,0,11,0,11,0,11,0,11,0,11,0,11,0,11,0,16,0,16]
[null,"Under 5 years and 5 to 17 years",0,11,0,11,0,11,4,6,0,18,0,11,0,11,5,7,0,11,0,11,0,11,0,11,0,11,0,11,0,11,0,11,8,14,0,16,0,16]
[null,"5 to 17 years only",0,11,0,11,0,11,0,11,0,18,0,11,3,5,10,11,0,11,0,11,0,11,6,11,0,11,35,37,0,11,0,11,0,11,0,16,16,26]
[null,"No related children under 18 years",4,6,0,11,0,11,1,2,87,70,6,7,14,14,7,7,0,11,0,11,14,20,0,11,0,11,39,45,7,7,0,11,7,10,61,47,15,24]
[null,"Other family:",22,24,28,29,2,4,21,24,81,60,4,6,10,9,16,11,0,11,0,11,9,16,10,8,8,14,113,92,8,11,59,44,30,28,17,26,55,75]
[null,"Male householder, no wife present:",0,11,0,11,0,11,0,11,4,23,0,11,7,7,0,11,0,11,0,11,0,11,4,6,0,11,82,80,0,11,32,31,23,26,0,16,21,40]
[null,"With related children under 18 years:",0,11,0,11,0,11,0,11,4,23,0,11,4,6,0,11,0,11,0,11,0,11,0,11,0,11,82,80,0,11,32,31,23,26,0,16,21,40]
[null,"Under 5 years only",0,11,0,11,0,11,0,11,0,18,0,11,0,11,0,11,0,11,0,11,0,11,0,11,0,11,0,11,0,11,0,11,0,11,0,16,21,40]
[null,"Under 5 years and 5 to 17 years",0,11,0,11,0,11,0,11,0,18,0,11,0,11,0,11,0,11,0,11,0,11,0,11,0,11,14,22,0,11,0,11,0,11,0,16,0,16]
[null,"5 to 17 years only",0,11,0,11,0,11,0,11,4,23,0,11,4,6,0,11,0,11,0,11,0,11,0,11,0,11,68,77,0,11,32,31,23,26,0,16,0,16]
[null,"No related children under 18 years",0,11,0,11,0,11,0,11,0,18,0,11,3,4,0,11,0,11,0,11,0,11,4,6,0,11,0,11,0,11,0,11,0,11,0,16,0,16]
[null,"Female householder, no husband present:",22,24,28,29,2,4,21,24,77,54,4,6,3,4,16,11,0,11,0,11,9,16,6,8,8,14,31,49,8,11,27,31,7,12,17,26,34,57]
[null,"With related children under 18 years:",22,24,28,29,2,4,21,24,64,49,4,6,0,11,11,9,0,11,0,11,9,16,0,11,8,14,31,49,4,7,16,26,7,12,17,26,34,57]
[null,"Under 5 years only",22,24,0,11,0,11,16,22,32,49,0,11,0,11,4,5,0,11,0,11,0,11,0,11,8,14,31,49,0,11,16,26,7,12,0,16,34,57]
[null,"Under 5 years and 5 to 17 years",0,11,16,24,0,11,5,8,32,42,0,11,0,11,4,6,0,11,0,11,0,11,0,11,0,11,0,11,4,7,0,11,0,11,0,16,0,16]
[null,"5 to 17 years only",0,11,12,16,2,4,0,11,0,18,4,6,0,11,3,5,0,11,0,11,9,16,0,11,0,11,0,11,0,11,0,11,0,11,17,26,0,16]
[null,"No related children under 18 years",0,11,0,11,0,11,0,11,13,22,0,11,3,4,5,6,0,11,0,11,0,11,6,8,0,11,0,11,4,6,11,17,0,11,0,16,0,16]
[null,"Income in the past 12 months at or above poverty level:",226,59,714,110,181,48,96,34,2492,246,128,30,303,49,346,60,44,14,2,4,282,69,774,85,1353,89,912,124,358,64,681,104,762,105,1489,183,1692,175]
[null,"Married-couple family:",198,55,596,120,148,41,89,33,2082,233,110,30,221,41,300,57,44,14,2,4,256,62,664,92,1244,111,694,109,314,59,500,116,621,101,1255,170,1474,169]
[null,"With related children under 18 years:",70,38,158,80,41,22,26,20,791,155,12,9,68,27,47,19,2,3,0,11,77,35,207,64,248,59,258,84,64,29,86,42,164,58,387,121,405,122]
[null,"Under 5 years only",11,18,0,11,3,5,3,5,233,122,0,11,11,10,10,9,0,11,0,11,9,11,13,19,50,40,16,27,0,11,15,17,70,47,139,91,54,55]
[null,"Under 5 years and 5 to 17 years",0,11,38,52,0,11,4,7,117,70,1,3,12,18,0,11,0,11,0,11,17,20,44,32,74,32,43,37,13,11,6,10,16,26,42,43,51,49]
[null,"5 to 17 years only",59,34,120,74,38,21,19,17,441,138,11,8,45,19,37,17,2,3,0,11,51,27,150,65,124,56,199,87,51,28,65,37,78,26,206,96,300,116]
[null,"No related children under 18 years",128,39,438,138,107,41,63,28,1291,243,98,27,153,35,253,51,42,14,2,4,179,52,457,99,996,136,436,93,250,46,414,109,457,87,868,178,1069,198]
[null,"Other family:",28,22,118,82,33,25,7,8,410,186,18,13,82,36,46,28,0,11,0,11,26,26,110,60,109,56,218,101,44,25,181,87,141,70,234,135,218,133]
[null,"Male householder, no wife present:",3,5,21,29,15,18,1,3,114,78,13,12,26,19,32,25,0,11,0,11,0,11,5,9,67,49,96,77,15,16,68,58,18,30,169,119,72,89]
[null,"With related children under 18 years:",3,5,18,28,5,6,1,3,88,74,4,9,12,10,27,25,0,11,0,11,0,11,0,11,41,35,75,75,3,6,63,56,0,11,34,35,12,17]
[null,"Under 5 years only",0,11,0,11,0,11,0,11,4,10,0,11,0,11,16,20,0,11,0,11,0,11,0,11,0,11,39,51,0,11,21,31,0,11,0,16,0,16]
[null,"Under 5 years and 5 to 17 years",0,11,0,11,0,11,0,11,34,57,0,11,0,11,0,11,0,11,0,11,0,11,0,11,0,11,0,11,0,11,26,42,0,11,0,16,0,16]
[null,"5 to 17 years only",3,5,18,28,5,6,1,3,50,47,4,9,12,10,11,17,0,11,0,11,0,11,0,11,41,35,36,56,3,6,16,25,0,11,34,35,12,17]
[null,"No related children under 18 years",0,11,3,6,10,17,0,11,26,26,9,9,14,15,5,6,0,11,0,11,0,11,5,9,26,35,21,25,12,15,5,7,18,30,135,105,60,85]
[null,"Female householder, no husband present:",25,22,97,79,18,16,6,8,296,169,5,5,56,29,14,11,0,11,0,11,26,26,105,62,42,29,122,80,29,17,113,81,123,72,65,63,146,95]
[null,"With related children under 18 years:",14,16,68,65,14,14,4,6,180,125,3,4,34,25,7,7,0,11,0,11,12,20,45,36,26,28,108,78,25,16,40,40,75,59,18,33,108,85]
[null,"Under 5 years only",6,10,12,19,9,12,0,11,0,18,0,11,3,4,7,7,0,11,0,11,12,20,0,11,0,11,17,27,0,11,0,11,0,11,0,16,0,16]
[null,"Under 5 years and 5 to 17 years",0,11,0,11,0,11,0,11,0,18,0,11,23,23,0,11,0,11,0,11,0,11,15,23,0,11,0,11,0,11,0,11,0,11,18,33,0,16]
[null,"5 to 17 years only",8,12,56,63,5,7,4,6,180,125,3,4,8,7,0,11,0,11,0,11,0,11,30,27,26,28,91,74,25,16,40,40,75,59,0,16,108,85]
[null,"No related children under 18 years",11,14,29,44,4,6,2,3,116,77,2,3,22,16,7,8,0,11,0,11,14,16,60,51,16,18,14,17,4,6,73,73,48,49,47,50,38,37]

{"sheet":"ACS_Table_B17017","index":55,"n_rows":213,"n_cols":40,"rows_kept":213,"cut":false,"hidden":true,"merged":[]}
[null,"B17017. POVERTY STATUS IN THE PAST 12 MONTHS BY HOUSEHOLD TYPE BY AGE OF HOUSEHOLDER"]
[null,"Universe: HOUSEHOLDS"]
[null,"Data Set: 2018-2022 American Community Survey 5-Year Estimates"]
[]
[null,null,"Albany",null,"Bartlett",null,"Brookfield",null,"Chatham",null,"Conway",null,"Eaton",null,"Effingham",null,"Freedom",null,"Hale's Location",null,"Hart's Location",null,"Jackson",null,"Madison",null,"Moultonborough",null,"Ossipee",null,"Sandwich",null,"Tamworth",null,"Tuftonboro",null,"Wakefield",null,"Wolfeboro"]
[null," ","Estimate","Margin of Error","Estimate","Margin of Error","Estimate","Margin of Error","Estimate","Margin of Error","Estimate","Margin of Error","Estimate","Margin of Error","Estimate","Margin of Error","Estimate","Margin of Error","Estimate","Margin of Error","Estimate","Margin of Error","Estimate","Margin of Error","Estimate","Margin of Error","Estimate","Margin of Error","Estimate","Margin of Error","Estimate","Margin of Error","Estimate","Margin of Error","Estimate","Margin of Error","Estimate","Margin of Error","Estimate","Margin of Error"]
[null,"Total:",343,91,1722,223,232,58,160,41,4468,345,158,37,549,65,576,78,105,41,43,32,500,96,978,100,2111,184,1677,153,930,170,987,167,1113,87,2205,225,2787,260]
[null,"Income in the past 12 months below poverty level:",42,27,87,87,10,8,9,9,704,268,13,12,73,39,68,51,7,9,0,12,69,68,71,38,32,27,172,86,27,19,178,93,31,27,144,122,364,191]
[null,"Family households:",8,7,0,12,6,6,0,12,130,109,5,6,52,36,48,48,7,9,0,12,48,60,28,23,18,21,45,29,5,9,39,45,9,12,86,100,98,91]
[null,"Married-couple family:",6,7,0,12,4,5,0,12,38,42,1,3,16,15,15,14,7,9,0,12,48,60,28,23,5,10,11,21,5,9,7,11,0,12,77,99,63,72]
[null,"Householder under 25 years",0,12,0,12,0,12,0,12,0,17,0,12,0,12,0,12,0,12,0,12,0,12,0,12,0,12,0,12,0,12,0,12,0,12,0,17,0,17]
[null,"Householder 25 to 44 years",0,12,0,12,0,12,0,12,0,17,0,12,0,12,4,7,0,12,0,12,0,12,0,12,0,12,0,12,0,12,0,12,0,12,0,17,0,17]
[null,"Householder 45 to 64 years",6,7,0,12,2,4,0,12,24,37,1,3,12,13,8,11,6,8,0,12,41,54,19,20,5,10,11,21,0,12,0,12,0,12,0,17,63,72]
[null,"Householder 65 years and over",0,12,0,12,2,3,0,12,14,19,0,12,4,5,3,4,1,3,0,12,7,10,9,11,0,12,0,12,5,9,7,11,0,12,77,99,0,17]
[null,"Other family:",2,3,0,12,2,3,0,12,92,102,4,6,36,31,33,48,0,12,0,12,0,12,0,12,13,17,34,25,0,12,32,45,9,12,9,19,35,41]
[null,"Male householder, no spouse present:",2,3,0,12,0,12,0,12,0,17,4,6,21,17,0,12,0,12,0,12,0,12,0,12,0,12,10,13,0,12,32,45,0,12,9,19,8,13]
[null,"Householder under 25 years",0,12,0,12,0,12,0,12,0,17,0,12,0,12,0,12,0,12,0,12,0,12,0,12,0,12,0,12,0,12,0,12,0,12,0,17,0,17]
[null,"Householder 25 to 44 years",0,12,0,12,0,12,0,12,0,17,0,12,8,10,0,12,0,12,0,12,0,12,0,12,0,12,0,12,0,12,32,45,0,12,0,17,8,13]
[null,"Householder 45 to 64 years",2,3,0,12,0,12,0,12,0,17,4,6,4,5,0,12,0,12,0,12,0,12,0,12,0,12,0,12,0,12,0,12,0,12,0,17,0,17]
[null,"Householder 65 years and over",0,12,0,12,0,12,0,12,0,17,0,12,9,13,0,12,0,12,0,12,0,12,0,12,0,12,10,13,0,12,0,12,0,12,9,19,0,17]
[null,"Female householder, no spouse present:",0,12,0,12,2,3,0,12,92,102,0,12,15,25,33,48,0,12,0,12,0,12,0,12,13,17,24,20,0,12,0,12,9,12,0,17,27,39]
[null,"Householder under 25 years",0,12,0,12,0,12,0,12,0,17,0,12,0,12,0,12,0,12,0,12,0,12,0,12,0,12,0,12,0,12,0,12,0,12,0,17,0,17]
[null,"Householder 25 to 44 years",0,12,0,12,0,12,0,12,92,102,0,12,0,12,0,12,0,12,0,12,0,12,0,12,13,17,11,15,0,12,0,12,0,12,0,17,27,39]
[null,"Householder 45 to 64 years",0,12,0,12,0,12,0,12,0,17,0,12,15,25,33,48,0,12,0,12,0,12,0,12,0,12,0,12,0,12,0,12,9,12,0,17,0,17]
[null,"Householder 65 years and over",0,12,0,12,2,3,0,12,0,17,0,12,0,12,0,12,0,12,0,12,0,12,0,12,0,12,13,16,0,12,0,12,0,12,0,17,0,17]
[null,"Nonfamily households:",34,26,87,87,4,5,9,9,574,254,8,10,21,18,20,17,0,12,0,12,21,29,43,29,14,17,127,78,22,15,139,95,22,25,58,83,266,170]
[null,"Male householder:",2,4,37,53,0,12,9,9,376,184,0,12,7,7,20,17,0,12,0,12,0,12,17,15,9,14,13,25,0,12,89,70,14,21,43,69,138,130]
[null,"Householder under 25 years",0,12,0,12,0,12,0,12,10,18,0,12,0,12,0,12,0,12,0,12,0,12,0,12,0,12,0,12,0,12,46,57,0,12,0,17,0,17]
[null,"Householder 25 to 44 years",0,12,37,53,0,12,9,9,61,79,0,12,0,12,0,12,0,12,0,12,0,12,0,12,0,12,0,12,0,12,0,12,0,12,0,17,11,19]
[null,"Householder 45 to 64 years",0,12,0,12,0,12,0,12,147,102,0,12,0,12,0,12,0,12,0,12,0,12,4,6,0,12,13,25,0,12,34,39,14,21,43,69,70,102]
[null,"Householder 65 years and over",2,4,0,12,0,12,0,12,158,130,0,12,7,7,20,17,0,12,0,12,0,12,13,13,9,14,0,12,0,12,9,14,0,12,0,17,57,81]
[null,"Female householder:",32,26,50,69,4,5,0,12,198,162,8,10,14,17,0,12,0,12,0,12,21,29,26,24,5,9,114,75,22,15,50,60,8,11,15,22,128,117]
[null,"Householder under 25 years",5,10,0,12,0,12,0,12,0,17,0,12,0,12,0,12,0,12,0,12,0,12,0,12,0,12,0,12,0,12,0,12,0,12,0,17,0,17]
[null,"Householder 25 to 44 years",0,12,0,12,0,12,0,12,0,17,0,12,0,12,0,12,0,12,0,12,13,26,4,7,0,12,0,12,3,5,0,12,0,12,0,17,0,17]
[null,"Householder 45 to 64 years",27,25,42,68,4,5,0,12,19,24,8,10,4,5,0,12,0,12,0,12,0,12,0,12,0,12,68,51,9,9,50,60,0,12,15,22,0,17]
[null,"Householder 65 years and over",0,12,8,16,0,12,0,12,179,161,0,12,10,15,0,12,0,12,0,12,8,14,22,22,5,9,46,51,10,10,0,12,8,11,0,17,128,117]
[null,"Income in the past 12 months at or above poverty level:",301,92,1635,216,222,59,151,40,3764,298,145,35,476,71,508,74,98,40,43,32,431,72,907,92,2079,181,1505,147,903,173,809,145,1082,88,2061,237,2423,275]
[null,"Family households:",203,79,763,163,155,39,108,31,2270,273,79,20,360,59,362,59,63,26,2,4,306,67,655,73,1493,132,1225,121,505,89,621,103,720,97,1394,233,1610,207]
[null,"Married-couple family:",172,78,724,164,146,37,87,23,1682,243,65,19,294,57,290,50,61,26,2,4,278,67,554,109,1278,143,1027,144,441,86,523,123,671,100,1310,236,1242,200]
[null,"Householder under 25 years",0,12,0,12,0,12,0,12,0,17,0,12,3,5,0,12,0,12,0,12,0,12,0,12,0,12,0,12,0,12,0,12,0,12,0,17,0,17]
[null,"Householder 25 to 44 years",21,17,39,61,19,11,17,11,433,132,8,9,62,32,31,13,0,12,0,12,50,37,112,50,165,66,161,64,22,13,174,84,41,23,309,117,151,97]
[null,"Householder 45 to 64 years",95,68,412,153,62,24,31,14,574,150,16,9,155,43,112,28,17,16,1,3,120,63,248,81,548,105,566,147,239,70,224,82,289,93,609,239,492,160]
[null,"Householder 65 years and over",56,29,273,124,65,26,39,18,675,147,41,18,74,28,147,37,44,19,1,2,108,52,194,64,565,143,300,99,180,54,125,75,341,112,392,135,599,183]
[null,"Other family:",31,21,39,41,9,8,21,18,588,178,14,10,66,37,72,39,2,3,0,12,28,26,101,74,215,80,198,111,64,33,98,66,49,29,84,71,368,184]
[null,"Male householder, no spouse present:",7,11,0,12,3,6,10,9,257,121,3,4,6,7,56,39,2,3,0,12,20,23,65,75,126,56,74,81,31,20,0,12,42,27,34,38,0,17]
[null,"Householder under 25 years",0,12,0,12,0,12,0,12,52,80,0,12,0,12,0,12,0,12,0,12,0,12,0,12,0,12,0,12,0,12,0,12,0,12,0,17,0,17]
[null,"Householder 25 to 44 years",7,11,0,12,0,12,3,5,109,68,0,12,3,5,24,29,0,12,0,12,9,18,54,75,0,12,34,36,10,12,0,12,9,12,16,25,0,17]
[null,"Householder 45 to 64 years",0,12,0,12,3,6,7,7,18,29,0,12,3,5,25,26,0,12,0,12,0,12,11,15,117,55,0,12,13,15,0,12,9,9,18,28,0,17]
[null,"Householder 65 years and over",0,12,0,12,0,12,0,12,78,71,3,4,0,12,7,8,2,3,0,12,11,14,0,12,9,14,40,61,8,8,0,12,24,27,0,17,0,17]
[null,"Female householder, no spouse present:",24,18,39,41,6,6,11,16,331,162,11,9,60,36,16,17,0,12,0,12,8,12,36,27,89,74,124,79,33,22,98,66,7,10,50,59,368,184]
[null,"Householder under 25 years",0,12,0,12,0,12,0,12,0,17,0,12,0,12,0,12,0,12,0,12,0,12,0,12,0,12,0,12,0,12,0,12,0,12,36,54,0,17]
[null,"Householder 25 to 44 years",12,15,23,34,0,12,2,3,83,55,3,4,43,34,0,12,0,12,0,12,0,12,7,10,14,21,56,60,3,6,20,23,0,12,0,17,175,151]
[null,"Householder 45 to 64 years",5,6,16,22,2,4,9,15,179,126,2,3,14,12,12,15,0,12,0,12,0,12,24,23,64,66,18,28,27,22,0,12,7,10,0,17,104,95]
[null,"Householder 65 years and over",7,10,0,12,4,4,0,12,69,67,6,8,3,4,4,6,0,12,0,12,8,12,5,7,11,15,50,27,3,5,78,66,0,12,14,22,89,72]
[null,"Nonfamily households:",98,51,872,270,67,39,43,20,1494,325,66,28,116,41,146,41,35,34,41,32,125,54,252,83,586,166,280,128,398,176,188,108,362,122,667,218,813,263]
[null,"Male householder:",44,28,629,259,33,22,23,13,545,189,36,22,52,19,43,18,28,33,31,29,61,34,68,40,336,145,124,78,292,178,73,77,184,78,564,207,302,154]
[null,"Householder under 25 years",0,12,0,12,0,12,0,12,8,13,6,10,0,12,0,12,0,12,0,12,0,12,5,8,0,12,0,12,9,13,0,12,0,12,44,68,0,17]
[null,"Householder 25 to 44 years",11,13,91,80,2,3,2,4,259,139,2,3,7,7,0,12,20,31,0,12,0,12,30,28,26,24,0,12,0,12,0,12,48,46,66,72,114,109]
[null,"Householder 45 to 64 years",18,13,195,144,18,20,14,11,196,95,13,13,14,12,12,13,0,12,9,17,37,27,33,25,106,57,57,55,11,14,0,12,48,45,280,150,125,84]
[null,"Householder 65 years and over",15,17,343,194,13,8,7,7,82,63,15,12,31,13,31,12,8,9,22,25,24,24,0,12,204,134,67,46,272,175,73,77,88,41,174,107,63,50]
[null,"Female householder:",54,42,243,148,34,28,20,13,949,287,30,16,64,33,103,42,7,9,10,12,64,39,184,70,250,106,156,94,106,33,115,84,178,88,103,81,511,192]
[null,"Householder under 25 years",11,18,0,12,0,12,0,12,46,70,0,12,0,12,0,12,0,12,0,12,0,12,1,4,0,12,0,12,0,12,0,12,13,21,0,17,0,17]
[null,"Householder 25 to 44 years",9,11,0,12,0,12,5,7,0,17,5,7,7,8,9,13,0,12,3,5,35,30,36,27,40,48,13,18,9,15,21,26,0,12,0,17,0,17]
[null,"Householder 45 to 64 years",32,38,15,24,2,3,4,5,130,83,12,11,29,27,34,24,0,12,7,11,18,19,86,45,85,64,46,47,40,16,35,41,75,61,48,38,152,121]
[null,"Householder 65 years and over",2,4,228,149,32,27,11,9,773,276,13,9,28,13,60,32,7,9,0,12,11,13,61,41,125,72,97,86,57,25,59,60,90,49,55,67,359,132]
[]
[]
[]
[]
[]
[]
[]
[]
[]
[null,"B17017. POVERTY STATUS IN THE PAST 12 MONTHS BY HOUSEHOLD TYPE BY AGE OF HOUSEHOLDER"]
[null,"Universe: HOUSEHOLDS"]
[null,"Data Set: 2013-2017 American Community Survey 5-Year Estimates"]
[]
[null,null,"Albany",null,"Bartlett",null,"Brookfield",null,"Chatham",null,"Conway",null,"Eaton",null,"Effingham",null,"Freedom",null,"Hale's Location",null,"Hart's Location",null,"Jackson",null,"Madison",null,"Moultonborough",null,"Ossipee",null,"Sandwich",null,"Tamworth",null,"Tuftonboro",null,"Wakefield",null,"Wolfeboro"]
[null," ","Estimate","Margin of Error","Estimate","Margin of Error","Estimate","Margin of Error","Estimate","Margin of Error","Estimate","Margin of Error","Estimate","Margin of Error","Estimate","Margin of Error","Estimate","Margin of Error","Estimate","Margin of Error","Estimate","Margin of Error","Estimate","Margin of Error","Estimate","Margin of Error","Estimate","Margin of Error","Estimate","Margin of Error","Estimate","Margin of Error","Estimate","Margin of Error","Estimate","Margin of Error","Estimate","Margin of Error","Estimate","Margin of Error"]
[null,"Total:",312,44,1408,164,326,77,142,36,4346,208,169,38,602,72,587,74,79,24,26,16,455,89,1069,85,1758,102,1962,185,617,73,1378,137,966,103,2066,185,2935,210]
[null,"Income in the past 12 months below poverty level:",45,24,114,78,5,6,7,9,438,158,10,8,53,26,48,30,2,5,0,11,48,33,75,52,98,63,306,141,29,20,236,131,111,59,133,112,190,143]
[null,"Family households:",32,23,39,61,5,6,1,4,229,115,0,11,25,14,27,24,0,11,0,11,26,30,35,24,27,28,111,86,14,17,14,21,42,28,5,8,64,67]
[null,"Married-couple family:",15,16,0,11,5,6,0,11,44,39,0,11,11,8,12,18,0,11,0,11,24,31,25,21,0,11,81,62,5,6,14,21,16,12,0,16,64,67]
[null,"Householder under 25 years",0,11,0,11,0,11,0,11,0,18,0,11,0,11,0,11,0,11,0,11,0,11,0,11,0,11,0,11,0,11,0,11,0,11,0,16,0,16]
[null,"Householder 25 to 44 years",9,13,0,11,0,11,0,11,17,28,0,11,3,5,0,11,0,11,0,11,0,11,0,11,0,11,26,37,0,11,0,11,0,11,0,16,31,50]
[null,"Householder 45 to 64 years",6,10,0,11,5,6,0,11,27,30,0,11,4,5,12,18,0,11,0,11,24,31,17,16,0,11,55,51,0,11,14,21,11,10,0,16,33,49]
[null,"Householder 65 years and over",0,11,0,11,0,11,0,11,0,18,0,11,4,5,0,11,0,11,0,11,0,11,8,13,0,11,0,11,5,6,0,11,5,7,0,16,0,16]
[null,"Other family:",17,16,39,61,0,11,1,4,185,110,0,11,14,12,15,17,0,11,0,11,2,5,10,15,27,28,30,46,9,14,0,11,26,25,5,8,0,16]
[null,"Male householder, no wife present:",9,11,39,61,0,11,0,11,60,75,0,11,0,11,12,16,0,11,0,11,0,11,0,11,10,16,0,11,0,11,0,11,8,11,0,16,0,16]
[null,"Householder under 25 years",0,11,39,61,0,11,0,11,0,18,0,11,0,11,0,11,0,11,0,11,0,11,0,11,0,11,0,11,0,11,0,11,0,11,0,16,0,16]
[null,"Householder 25 to 44 years",0,11,0,11,0,11,0,11,60,75,0,11,0,11,0,11,0,11,0,11,0,11,0,11,0,11,0,11,0,11,0,11,0,11,0,16,0,16]
[null,"Householder 45 to 64 years",9,11,0,11,0,11,0,11,0,18,0,11,0,11,12,16,0,11,0,11,0,11,0,11,10,16,0,11,0,11,0,11,8,11,0,16,0,16]
[null,"Householder 65 years and over",0,11,0,11,0,11,0,11,0,18,0,11,0,11,0,11,0,11,0,11,0,11,0,11,0,11,0,11,0,11,0,11,0,11,0,16,0,16]
[null,"Female householder, no husband present:",8,13,0,11,0,11,1,4,125,88,0,11,14,12,3,5,0,11,0,11,2,5,10,15,17,21,30,46,9,14,0,11,18,22,5,8,0,16]
[null,"Householder under 25 years",0,11,0,11,0,11,0,11,25,41,0,11,0,11,0,11,0,11,0,11,0,11,0,11,0,11,0,11,0,11,0,11,0,11,0,16,0,16]
[null,"Householder 25 to 44 years",5,12,0,11,0,11,0,11,71,68,0,11,14,12,3,5,0,11,0,11,2,5,10,15,11,18,30,46,9,14,0,11,5,7,5,8,0,16]
[null,"Householder 45 to 64 years",3,5,0,11,0,11,1,4,29,45,0,11,0,11,0,11,0,11,0,11,0,11,0,11,6,10,0,11,0,11,0,11,13,21,0,16,0,16]
[null,"Householder 65 years and over",0,11,0,11,0,11,0,11,0,18,0,11,0,11,0,11,0,11,0,11,0,11,0,11,0,11,0,11,0,11,0,11,0,11,0,16,0,16]
[null,"Nonfamily households:",13,9,75,52,0,11,6,7,209,109,10,8,28,21,21,18,2,5,0,11,22,15,40,45,71,57,195,123,15,12,222,129,69,49,128,111,126,131]
[null,"Male householder:",5,5,46,38,0,11,5,6,85,63,8,7,6,6,10,15,2,5,0,11,3,6,0,11,60,54,69,90,3,4,167,119,18,29,57,94,17,28]
[null,"Householder under 25 years",0,11,0,11,0,11,0,11,0,18,0,11,0,11,0,11,0,11,0,11,0,11,0,11,0,11,0,11,0,11,0,11,0,11,0,16,0,16]
[null,"Householder 25 to 44 years",3,5,25,40,0,11,0,11,19,29,3,4,0,11,0,11,0,11,0,11,0,11,0,11,30,50,0,11,0,11,55,88,0,11,0,16,0,16]
[null,"Householder 45 to 64 years",0,11,21,34,0,11,3,5,56,51,2,3,6,6,10,15,0,11,0,11,3,6,0,11,17,18,69,90,0,11,112,94,0,11,57,94,17,28]
[null,"Householder 65 years and over",2,4,0,11,0,11,2,4,10,16,3,5,0,11,0,11,2,5,0,11,0,11,0,11,13,14,0,11,3,4,0,11,18,29,0,16,0,16]
[null,"Female householder:",8,7,29,35,0,11,1,4,124,87,2,3,22,20,11,11,0,11,0,11,19,15,40,45,11,14,126,95,12,11,55,51,51,41,71,58,109,127]
[null,"Householder under 25 years",0,11,0,11,0,11,0,11,18,31,0,11,0,11,0,11,0,11,0,11,0,11,0,11,0,11,0,11,0,11,0,11,0,11,0,16,0,16]
[null,"Householder 25 to 44 years",2,3,0,11,0,11,0,11,44,60,0,11,3,4,0,11,0,11,0,11,0,11,0,11,0,11,0,11,6,9,26,44,0,11,0,16,86,122]
[null,"Householder 45 to 64 years",0,11,29,35,0,11,0,11,45,46,2,3,0,11,0,11,0,11,0,11,8,12,0,11,4,8,79,75,3,5,14,22,14,18,31,35,23,38]
[null,"Householder 65 years and over",6,6,0,11,0,11,1,4,17,20,0,11,19,20,11,11,0,11,0,11,11,12,40,45,7,11,47,61,3,6,15,22,37,37,40,45,0,16]
[null,"Income in the past 12 months at or above poverty level:",267,42,1294,177,321,77,135,34,3908,255,159,37,549,62,539,76,77,23,26,16,407,84,994,90,1660,100,1656,221,588,78,1142,131,855,89,1933,177,2745,198]
[null,"Family households:",190,39,630,94,280,70,92,27,2603,234,95,28,381,46,381,58,62,21,17,12,248,68,703,64,1280,108,965,157,399,66,915,111,676,82,1502,150,1946,158]
[null,"Married-couple family:",159,31,535,107,273,68,73,19,2007,249,87,27,287,46,372,56,62,21,14,11,234,68,586,79,1119,130,836,160,352,60,710,164,597,74,1394,155,1690,191]
[null,"Householder under 25 years",0,11,0,11,0,11,0,11,0,18,0,11,5,7,0,11,0,11,0,11,0,11,0,11,15,26,0,11,0,11,0,11,12,18,0,16,0,16]
[null,"Householder 25 to 44 years",49,20,87,61,86,52,13,11,527,150,3,4,47,24,55,27,0,11,0,11,30,28,128,35,128,67,247,119,48,28,86,55,123,54,268,91,279,104]
[null,"Householder 45 to 64 years",73,27,284,94,117,46,48,17,867,194,32,13,149,34,192,40,13,10,8,9,77,39,288,72,538,95,330,91,143,42,447,134,212,51,713,173,585,153]
[null,"Householder 65 years and over",37,15,164,91,70,30,12,8,613,143,52,22,86,32,125,32,49,17,6,7,127,52,170,44,438,88,259,88,161,41,177,118,250,61,413,130,826,160]
[null,"Other family:",31,24,95,67,7,9,19,15,596,214,8,7,94,36,9,10,0,11,3,4,14,20,117,51,161,83,129,76,47,25,205,117,79,45,108,84,256,154]
[null,"Male householder, no wife present:",3,5,35,41,7,9,8,7,224,158,2,3,41,20,5,8,0,11,3,4,0,11,54,40,79,59,65,63,14,12,88,90,37,34,44,67,137,121]
[null,"Householder under 25 years",0,11,0,11,0,11,0,11,77,123,0,11,0,11,0,11,0,11,0,11,0,11,0,11,0,11,0,11,0,11,0,11,0,11,0,16,0,16]
[null,"Householder 25 to 44 years",3,5,0,11,5,8,0,11,91,94,2,3,13,12,0,11,0,11,3,4,0,11,49,39,30,28,54,60,4,6,46,68,37,34,0,16,0,16]
[null,"Householder 45 to 64 years",0,11,35,41,0,11,7,6,51,79,0,11,16,12,5,8,0,11,0,11,0,11,5,7,49,50,0,11,10,10,0,11,0,11,44,67,105,110]
[null,"Householder 65 years and over",0,11,0,11,2,4,1,3,5,9,0,11,12,10,0,11,0,11,0,11,0,11,0,11,0,11,11,17,0,11,42,64,0,11,0,16,32,42]
[null,"Female householder, no husband present:",28,23,60,51,0,11,11,14,372,157,6,6,53,32,4,6,0,11,0,11,14,20,63,32,82,54,64,39,33,20,117,91,42,31,64,58,119,107]
[null,"Householder under 25 years",8,15,0,11,0,11,0,11,0,18,0,11,0,11,0,11,0,11,0,11,11,19,0,11,0,11,0,11,0,11,0,11,0,11,0,16,44,67]
[null,"Householder 25 to 44 years",8,13,0,11,0,11,0,11,188,101,0,11,20,24,0,11,0,11,0,11,0,11,25,23,31,40,0,11,6,7,22,31,16,17,23,43,25,41]
[null,"Householder 45 to 64 years",10,9,60,51,0,11,9,14,172,115,0,11,20,14,0,11,0,11,0,11,0,11,38,23,44,38,56,41,18,17,0,11,10,11,41,50,14,21]
[null,"Householder 65 years and over",2,3,0,11,0,11,2,3,12,20,6,6,13,15,4,6,0,11,0,11,3,4,0,11,7,12,8,12,9,9,95,85,16,25,0,16,36,43]
[null,"Nonfamily households:",77,30,664,213,41,22,43,20,1305,259,64,23,168,48,158,40,15,9,9,11,159,56,291,99,380,106,691,190,189,53,227,112,179,48,431,184,799,241]
[null,"Male householder:",28,18,432,160,17,14,34,20,644,152,27,16,68,33,67,26,8,7,4,7,82,39,163,87,173,74,338,135,69,29,147,103,66,28,297,156,296,158]
[null,"Householder under 25 years",0,11,0,11,0,11,0,11,15,25,0,11,0,11,6,8,0,11,0,11,0,11,14,23,0,11,21,33,0,11,0,11,0,11,0,16,0,16]
[null,"Householder 25 to 44 years",0,11,116,85,0,11,11,14,159,126,8,9,18,20,0,11,0,11,0,11,22,25,34,36,29,48,44,39,10,10,0,11,0,11,145,107,36,41]
[null,"Householder 45 to 64 years",12,13,208,110,17,14,11,11,191,91,10,12,35,25,21,18,0,11,4,7,19,21,72,47,71,47,164,105,19,14,132,100,28,18,136,110,128,97]
[null,"Householder 65 years and over",16,12,108,89,0,11,12,9,279,114,9,7,15,9,40,19,8,7,0,11,41,25,43,40,73,42,109,68,40,24,15,22,38,21,16,26,132,115]
[null,"Female householder:",49,26,232,122,24,17,9,7,661,215,37,19,100,41,91,32,7,6,5,8,77,46,128,54,207,82,353,122,120,40,80,50,113,44,134,79,503,208]
[null,"Householder under 25 years",0,11,34,55,0,11,0,11,49,55,0,11,16,24,0,11,0,11,0,11,0,11,0,11,0,11,0,11,0,11,0,11,0,11,0,16,0,16]
[null,"Householder 25 to 44 years",6,9,0,11,0,11,0,11,164,129,10,12,5,6,10,10,0,11,0,11,19,23,0,11,13,20,10,17,18,18,0,11,14,15,0,16,0,16]
[null,"Householder 45 to 64 years",24,18,50,56,13,15,5,6,312,163,13,12,26,17,28,19,0,11,5,8,17,19,45,29,60,30,110,82,42,22,67,45,5,7,49,48,156,113]
[null,"Householder 65 years and over",19,15,148,92,11,9,4,4,136,72,14,9,53,26,53,24,7,6,0,11,41,29,83,49,134,71,233,91,60,34,13,20,94,43,85,56,347,170]
[]
[]
[]
[]
[]
[]
[]
[]
[]
[null,"B17017. POVERTY STATUS IN THE PAST 12 MONTHS BY HOUSEHOLD TYPE BY AGE OF HOUSEHOLDER"]
[null,"Universe: HOUSEHOLDS"]
[null,"Data Set: 2008-2012 American Community Survey 5-Year Estimates"]
[]
[null,null,"Albany",null,"Bartlett",null,"Brookfield",null,"Chatham",null,"Conway",null,"Eaton",null,"Effingham",null,"Freedom",null,"Hale's Location",null,"Hart's Location",null,"Jackson",null,"Madison",null,"Moultonborough",null,"Ossipee",null,"Sandwich",null,"Tamworth",null,"Tuftonboro",null,"Wakefield",null,"Wolfeboro"]
[null," ","Estimate","Margin of Error","Estimate","Margin of Error","Estimate","Margin of Error","Estimate","Margin of Error","Estimate","Margin of Error","Estimate","Margin of Error","Estimate","Margin of Error","Estimate","Margin of Error","Estimate","Margin of Error","Estimate","Margin of Error","Estimate","Margin of Error","Estimate","Margin of Error","Estimate","Margin of Error","Estimate","Margin of Error","Estimate","Margin of Error","Estimate","Margin of Error","Estimate","Margin of Error","Estimate","Margin of Error","Estimate","Margin of Error"]
[null,"Total:",338,61,1381,148,257,57,166,46,4452,262,176,34,495,68,554,65,52,13,28,19,407,80,1044,102,1793,98,1697,144,592,81,1353,138,1041,115,2216,215,2590,178]
[null,"Income in the past 12 months below poverty level:",39,26,149,86,13,10,40,28,587,176,11,10,73,39,53,22,3,5,0,11,29,28,27,22,105,64,298,129,42,22,257,107,50,32,171,82,258,135]
[null,"Family households:",33,26,28,29,2,4,26,25,168,89,10,10,37,25,38,18,0,11,0,11,23,26,16,13,8,14,187,103,15,14,59,44,45,31,78,56,86,81]
[null,"Married-couple family:",11,9,0,11,0,11,5,6,87,70,6,7,27,25,22,15,0,11,0,11,14,20,6,11,0,11,74,49,7,7,0,11,15,19,61,47,31,35]
[null,"Householder under 25 years",0,11,0,11,0,11,0,11,0,18,0,11,0,11,0,11,0,11,0,11,0,11,0,11,0,11,0,11,0,11,0,11,0,11,0,16,0,16]
[null,"Householder 25 to 44 years",0,11,0,11,0,11,4,6,8,13,0,11,10,17,15,13,0,11,0,11,0,11,0,11,0,11,35,37,0,11,0,11,8,14,0,16,16,26]
[null,"Householder 45 to 64 years",11,9,0,11,0,11,0,11,68,67,4,6,10,12,7,7,0,11,0,11,14,20,6,11,0,11,32,44,4,5,0,11,7,10,29,33,15,24]
[null,"Householder 65 years and over",0,11,0,11,0,11,1,2,11,16,2,3,7,8,0,11,0,11,0,11,0,11,0,11,0,11,7,12,3,5,0,11,0,11,32,34,0,16]
[null,"Other family:",22,24,28,29,2,4,21,24,81,60,4,6,10,9,16,11,0,11,0,11,9,16,10,8,8,14,113,92,8,11,59,44,30,28,17,26,55,75]
[null,"Male householder, no wife present:",0,11,0,11,0,11,0,11,4,23,0,11,7,7,0,11,0,11,0,11,0,11,4,6,0,11,82,80,0,11,32,31,23,26,0,16,21,40]
[null,"Householder under 25 years",0,11,0,11,0,11,0,11,0,18,0,11,0,11,0,11,0,11,0,11,0,11,0,11,0,11,0,11,0,11,0,11,0,11,0,16,0,16]
[null,"Householder 25 to 44 years",0,11,0,11,0,11,0,11,0,18,0,11,4,6,0,11,0,11,0,11,0,11,0,11,0,11,82,80,0,11,0,11,0,11,0,16,21,40]
[null,"Householder 45 to 64 years",0,11,0,11,0,11,0,11,4,23,0,11,3,4,0,11,0,11,0,11,0,11,0,11,0,11,0,11,0,11,32,31,23,26,0,16,0,16]
[null,"Householder 65 years and over",0,11,0,11,0,11,0,11,0,18,0,11,0,11,0,11,0,11,0,11,0,11,4,6,0,11,0,11,0,11,0,11,0,11,0,16,0,16]
[null,"Female householder, no husband present:",22,24,28,29,2,4,21,24,77,54,4,6,3,4,16,11,0,11,0,11,9,16,6,8,8,14,31,49,8,11,27,31,7,12,17,26,34,57]
[null,"Householder under 25 years",0,11,0,11,0,11,5,8,32,49,0,11,0,11,0,11,0,11,0,11,0,11,0,11,8,14,0,11,0,11,16,26,7,12,0,16,34,57]
[null,"Householder 25 to 44 years",11,16,16,24,0,11,0,11,32,42,0,11,0,11,8,8,0,11,0,11,0,11,0,11,0,11,31,49,4,7,0,11,0,11,17,26,0,16]
[null,"Householder 45 to 64 years",11,17,12,16,2,4,16,22,0,18,4,6,3,4,8,7,0,11,0,11,9,16,6,8,0,11,0,11,0,11,11,17,0,11,0,16,0,16]
[null,"Householder 65 years and over",0,11,0,11,0,11,0,11,13,22,0,11,0,11,0,11,0,11,0,11,0,11,0,11,0,11,0,11,4,6,0,11,0,11,0,16,0,16]
[null,"Nonfamily households:",6,6,121,83,11,10,14,10,419,155,1,3,36,24,15,10,3,5,0,11,6,9,11,18,97,62,111,67,27,18,198,101,5,7,93,66,172,109]
[null,"Male householder:",0,11,68,58,3,5,1,2,162,101,0,11,7,7,6,6,0,11,0,11,6,9,11,18,42,43,46,42,4,6,162,98,0,11,17,28,129,105]
[null,"Householder under 25 years",0,11,0,11,0,11,0,11,37,66,0,11,0,11,0,11,0,11,0,11,0,11,0,11,0,11,0,11,0,11,0,11,0,11,17,28,0,16]
[null,"Householder 25 to 44 years",0,11,0,11,0,11,0,11,85,70,0,11,0,11,0,11,0,11,0,11,0,11,0,11,0,11,0,11,0,11,0,11,0,11,0,16,0,16]
[null,"Householder 45 to 64 years",0,11,68,58,3,5,0,11,20,31,0,11,7,7,6,6,0,11,0,11,6,9,11,18,42,43,46,42,4,6,149,101,0,11,0,16,129,105]
[null,"Householder 65 years and over",0,11,0,11,0,11,1,2,20,23,0,11,0,11,0,11,0,11,0,11,0,11,0,11,0,11,0,11,0,11,13,19,0,11,0,16,0,16]
[null,"Female householder:",6,6,53,58,8,8,13,10,257,112,1,3,29,24,9,8,3,5,0,11,0,11,0,11,55,41,65,54,23,17,36,32,5,7,76,58,43,41]
[null,"Householder under 25 years",0,11,25,42,0,11,3,5,17,30,0,11,0,11,0,11,0,11,0,11,0,11,0,11,0,11,0,11,0,11,0,11,0,11,0,16,0,16]
[null,"Householder 25 to 44 years",0,11,0,11,0,11,1,4,49,58,0,11,5,9,0,11,0,11,0,11,0,11,0,11,0,11,0,11,10,15,0,11,0,11,18,27,0,16]
[null,"Householder 45 to 64 years",4,5,0,11,8,8,1,4,106,67,0,11,11,16,2,4,0,11,0,11,0,11,0,11,37,35,49,51,7,5,0,11,0,11,41,45,16,27]
[null,"Householder 65 years and over",2,3,28,44,0,11,8,7,85,65,1,3,13,15,7,7,3,5,0,11,0,11,0,11,18,22,16,19,6,7,36,32,5,7,17,26,27,31]
[null,"Income in the past 12 months at or above poverty level:",299,60,1232,144,244,58,126,37,3865,255,165,34,422,56,501,63,49,14,28,19,378,72,1017,105,1688,95,1399,135,550,77,1096,168,991,109,2045,216,2332,203]
[null,"Family households:",226,59,714,110,181,48,96,34,2492,246,128,30,303,49,346,60,44,14,2,4,282,69,774,85,1353,89,912,124,358,64,681,104,762,105,1489,183,1692,175]
[null,"Married-couple family:",198,55,596,120,148,41,89,33,2082,233,110,30,221,41,300,57,44,14,2,4,256,62,664,92,1244,111,694,109,314,59,500,116,621,101,1255,170,1474,169]
[null,"Householder under 25 years",0,11,0,11,0,11,0,11,0,18,0,11,3,4,0,11,0,11,0,11,0,11,0,11,0,11,0,11,0,11,0,11,0,11,0,16,17,27]
[null,"Householder 25 to 44 years",74,39,168,91,34,19,32,27,755,155,9,7,60,28,20,12,0,11,2,4,46,27,187,69,186,72,164,70,55,31,152,53,159,61,328,114,241,101]
[null,"Householder 45 to 64 years",84,35,262,107,56,25,26,17,834,174,69,23,100,30,123,35,13,9,0,11,103,44,334,76,655,112,374,90,159,41,234,84,277,84,597,126,616,130]
[null,"Householder 65 years and over",40,19,166,80,58,36,31,17,493,142,32,19,58,26,157,40,31,13,0,11,107,38,143,59,403,107,156,51,100,29,114,56,185,71,330,135,600,141]
[null,"Other family:",28,22,118,82,33,25,7,8,410,186,18,13,82,36,46,28,0,11,0,11,26,26,110,60,109,56,218,101,44,25,181,87,141,70,234,135,218,133]
[null,"Male householder, no wife present:",3,5,21,29,15,18,1,3,114,78,13,12,26,19,32,25,0,11,0,11,0,11,5,9,67,49,96,77,15,16,68,58,18,30,169,119,72,89]
[null,"Householder under 25 years",0,11,0,11,0,11,0,11,0,18,0,11,8,15,0,11,0,11,0,11,0,11,0,11,0,11,0,11,0,11,0,11,0,11,0,16,0,16]
[null,"Householder 25 to 44 years",0,11,0,11,0,11,0,11,57,62,0,11,10,10,27,25,0,11,0,11,0,11,5,9,0,11,39,51,11,15,42,49,0,11,127,111,12,17]
[null,"Householder 45 to 64 years",3,5,21,29,15,18,1,3,57,50,11,12,8,7,2,4,0,11,0,11,0,11,0,11,67,49,57,61,4,6,26,31,0,11,42,44,60,85]
[null,"Householder 65 years and over",0,11,0,11,0,11,0,11,0,18,2,3,0,11,3,4,0,11,0,11,0,11,0,11,0,11,0,11,0,11,0,11,18,30,0,16,0,16]
[null,"Female householder, no husband present:",25,22,97,79,18,16,6,8,296,169,5,5,56,29,14,11,0,11,0,11,26,26,105,62,42,29,122,80,29,17,113,81,123,72,65,63,146,95]
[null,"Householder under 25 years",0,11,12,19,0,11,0,11,0,18,0,11,0,11,0,11,0,11,0,11,12,20,0,11,0,11,0,11,0,11,0,11,0,11,0,16,0,16]
[null,"Householder 25 to 44 years",14,16,0,11,3,6,0,11,11,18,0,11,24,22,0,11,0,11,0,11,0,11,42,41,0,11,43,55,0,11,20,24,46,43,51,58,108,85]
[null,"Householder 45 to 64 years",0,11,56,63,9,12,6,8,274,163,5,5,21,12,10,10,0,11,0,11,6,10,44,36,35,26,72,55,29,17,83,78,50,43,14,23,28,33]
[null,"Householder 65 years and over",11,14,29,44,6,7,0,11,11,18,0,11,11,13,4,5,0,11,0,11,8,13,19,29,7,10,7,12,0,11,10,15,27,41,0,16,10,16]
[null,"Nonfamily households:",73,24,518,168,63,32,30,19,1373,251,37,19,119,43,155,41,5,7,26,19,96,44,243,98,335,103,487,124,192,47,415,132,229,75,556,207,640,178]
[null,"Male householder:",52,21,252,117,42,30,13,11,733,178,19,14,75,36,84,30,4,6,13,15,52,34,107,57,172,84,252,104,84,32,258,115,121,58,224,125,172,95]
[null,"Householder under 25 years",0,11,0,11,10,18,0,11,69,68,0,11,0,11,0,11,0,11,0,11,0,11,0,11,0,11,0,11,0,11,13,19,0,11,0,16,0,16]
[null,"Householder 25 to 44 years",0,11,27,30,5,8,6,8,183,117,0,11,26,23,2,4,1,4,5,8,6,9,11,14,47,56,70,62,6,7,0,11,35,28,45,52,19,30]
[null,"Householder 45 to 64 years",29,16,141,72,27,20,4,6,422,152,11,12,35,21,40,27,2,4,8,12,26,25,70,47,45,30,146,86,35,22,193,107,63,42,74,80,97,75]
[null,"Householder 65 years and over",23,19,84,78,0,11,3,4,59,46,8,9,14,16,42,19,1,2,0,11,20,20,26,23,80,65,36,26,43,22,52,46,23,31,105,76,56,52]
[null,"Female householder:",21,12,266,113,21,14,17,14,640,194,18,13,44,22,71,32,1,2,13,12,44,29,136,69,163,63,235,80,108,29,157,66,108,51,332,174,468,158]
[null,"Householder under 25 years",0,11,22,38,0,11,0,11,32,33,0,11,0,11,0,11,0,11,0,11,0,11,0,11,0,11,0,11,3,4,0,11,0,11,14,21,0,16]
[null,"Householder 25 to 44 years",4,6,108,74,0,11,8,9,135,100,0,11,3,4,0,11,0,11,2,3,17,16,21,24,19,17,13,22,13,13,7,10,0,11,13,23,0,16]
[null,"Householder 45 to 64 years",8,7,62,53,11,10,6,8,207,96,7,9,10,8,34,23,0,11,7,11,10,14,74,50,82,51,132,59,20,13,50,40,32,25,148,125,207,113]
[null,"Householder 65 years and over",9,7,74,47,10,9,3,6,266,127,11,9,31,20,37,21,1,2,4,4,17,17,41,36,62,35,90,48,72,24,100,52,76,45,157,122,261,124]

{"sheet":"ACS_Table_B03002","index":56,"n_rows":108,"n_cols":40,"rows_kept":108,"cut":false,"hidden":true,"merged":[]}
[null,"B03002. HISPANIC OR LATINO ORIGIN BY RACE"]
[null,"Universe:  TOTAL POPULATION"]
[null,"Data Set: 2018-2022 American Community Survey 5-Year Estimates"]
[]
[null,null,"Albany",null,"Bartlett",null,"Brookfield",null,"Chatham",null,"Conway",null,"Eaton",null,"Effingham",null,"Freedom",null,"Hale's Location",null,"Hart's Location",null,"Jackson",null,"Madison",null,"Moultonborough",null,"Ossipee",null,"Sandwich",null,"Tamworth",null,"Tuftonboro",null,"Wakefield",null,"Wolfeboro"]
[null," ","Estimate","Margin of Error","Estimate","Margin of Error","Estimate","Margin of Error","Estimate","Margin of Error","Estimate","Margin of Error","Estimate","Margin of Error","Estimate","Margin of Error","Estimate","Margin of Error","Estimate","Margin of Error","Estimate","Margin of Error","Estimate","Margin of Error","Estimate","Margin of Error","Estimate","Margin of Error","Estimate","Margin of Error","Estimate","Margin of Error","Estimate","Margin of Error","Estimate","Margin of Error","Estimate","Margin of Error","Estimate","Margin of Error"]
[null,"Total:",708,164,3207,17,536,142,423,109,9981,18,355,72,1794,280,1336,184,196,61,53,37,1149,182,2609,21,4950,16,4443,15,1838,254,2844,15,2507,27,5266,18,6484,18]
[null,"Not Hispanic or Latino:",657,135,3203,21,525,139,417,108,9845,104,350,71,1730,287,1336,184,196,61,53,37,1149,182,2586,33,4859,92,4438,24,1833,252,2755,61,2493,33,5165,107,6242,100]
[null,"White alone",626,129,3164,40,517,137,384,95,9422,168,347,70,1571,293,1322,185,181,59,53,37,1122,171,2546,47,4819,105,4001,182,1798,249,2487,197,2433,81,5092,103,6166,119]
[null,"Black or African American alone",0,12,3,8,2,5,0,12,5,8,0,12,4,14,0,12,0,12,0,12,27,52,0,12,2,4,203,161,0,12,41,63,0,12,0,17,0,17]
[null,"American Indian and Alaska Native alone",0,12,0,12,0,12,0,12,79,79,0,12,0,12,0,12,0,12,0,12,0,12,0,12,0,12,0,12,0,12,0,12,0,12,0,17,27,38]
[null,"Asian alone",5,7,3,7,0,12,6,9,157,110,0,12,16,19,6,11,10,16,0,12,0,12,5,6,1,2,144,80,12,19,31,33,0,12,9,14,16,26]
[null,"Native Hawaiian and Other Pacific Islander alone",0,12,0,12,0,12,0,12,0,17,0,12,0,12,0,12,0,12,0,12,0,12,0,12,0,12,0,12,0,12,0,12,0,12,0,17,0,17]
[null,"Some other race alone",20,34,0,12,0,12,0,12,0,17,0,12,0,12,0,12,0,12,0,12,0,12,0,12,0,12,0,12,0,12,0,12,5,8,1,3,0,17]
[null,"Two or more races:",6,10,33,40,6,17,27,39,182,96,3,5,139,89,8,14,5,6,0,12,0,12,35,29,37,45,90,55,23,24,196,130,55,74,63,65,33,52]
[null,"Two races including Some other race",3,4,0,12,0,12,13,14,38,43,0,12,61,64,8,14,4,5,0,12,0,12,17,25,27,42,54,36,20,23,0,12,50,74,16,25,0,17]
[null,"Two races excluding Some other race, and three or more races",3,10,33,40,6,17,14,32,144,80,3,5,78,65,0,12,1,3,0,12,0,12,18,18,10,15,36,59,3,7,196,130,5,7,47,59,33,52]
[null,"Hispanic or Latino:",51,84,4,7,11,14,6,7,136,103,5,7,64,62,0,12,0,12,0,12,0,12,23,23,91,90,5,24,5,10,89,63,14,21,101,101,242,98]
[null,"White alone",0,12,4,7,10,13,4,5,130,102,4,6,59,61,0,12,0,12,0,12,0,12,0,12,10,15,5,24,0,12,89,63,14,21,15,19,22,33]
[null,"Black or African American alone",0,12,0,12,0,12,0,12,0,17,0,12,0,12,0,12,0,12,0,12,0,12,1,3,0,12,0,12,0,12,0,12,0,12,0,17,0,17]
[null,"American Indian and Alaska Native alone",0,12,0,12,0,12,0,12,0,17,0,12,0,12,0,12,0,12,0,12,0,12,0,12,0,12,0,12,4,8,0,12,0,12,77,95,61,80]
[null,"Asian alone",0,12,0,12,0,12,0,12,0,17,0,12,0,12,0,12,0,12,0,12,0,12,0,12,0,12,0,12,0,12,0,12,0,12,0,17,0,17]
[null,"Native Hawaiian and Other Pacific Islander alone",0,12,0,12,0,12,0,12,0,17,0,12,0,12,0,12,0,12,0,12,0,12,0,12,0,12,0,12,0,12,0,12,0,12,0,17,0,17]
[null,"Some other race alone",5,9,0,12,1,2,0,12,0,17,0,12,5,8,0,12,0,12,0,12,0,12,0,12,81,89,0,12,0,12,0,12,0,12,0,17,0,17]
[null,"Two or more races:",46,84,0,12,0,12,2,5,6,9,1,2,0,12,0,12,0,12,0,12,0,12,22,22,0,12,0,12,1,4,0,12,0,12,9,15,159,116]
[null,"Two races including Some other race",0,12,0,12,0,12,2,5,6,9,1,2,0,12,0,12,0,12,0,12,0,12,20,21,0,12,0,12,0,12,0,12,0,12,9,15,159,116]
[null,"Two races excluding Some other race, and three or more races",46,84,0,12,0,12,0,12,0,17,0,12,0,12,0,12,0,12,0,12,0,12,2,5,0,12,0,12,1,4,0,12,0,12,0,17,0,17]
[]
[]
[]
[null,null,"Albany",null,"Bartlett",null,"Brookfield",null,"Chatham",null,"Conway",null,"Eaton",null,"Effingham",null,"Freedom",null,"Hale's Location",null,"Hart's Location",null,"Jackson",null,"Madison",null,"Moultonborough",null,"Ossipee",null,"Sandwich",null,"Tamworth",null,"Tuftonboro",null,"Wakefield",null,"Wolfeboro"]
[null," ","Estimate","Margin of Error","Estimate","Margin of Error","Estimate","Margin of Error","Estimate","Margin of Error","Estimate","Margin of Error","Estimate","Margin of Error","Estimate","Margin of Error","Estimate","Margin of Error","Estimate","Margin of Error","Estimate","Margin of Error","Estimate","Margin of Error","Estimate","Margin of Error","Estimate","Margin of Error","Estimate","Margin of Error","Estimate","Margin of Error","Estimate","Margin of Error","Estimate","Margin of Error","Estimate","Margin of Error","Estimate","Margin of Error"]
[null,"Total:",{"$f":"C7","v":708},164,3207,17,536,142,423,109,9981,18,355,72,1794,280,1336,184,196,61,53,37,1149,182,{"$f":"Y7","v":2609},21,4950,16,4443,15,1838,254,2844,15,2507,27,5266,18,6484,18]
[null,"Not Hispanic or Latino:",657,135,3203,21,525,139,417,108,9845,104,350,71,1730,287,1336,184,196,61,53,37,1149,182,{"$f":"Y8","v":2586},33,4859,92,4438,24,1833,252,2755,61,2493,33,5165,107,6242,100]
[null,"White",626,129,3164,40,517,137,384,95,9422,168,347,70,1571,293,1322,185,181,59,53,37,1122,171,{"$f":"Y9","v":2546},47,4819,105,4001,182,1798,249,2487,197,2433,81,5092,103,6166,119]
[null,"Black",0,12,3,8,2,5,0,12,5,8,0,12,4,14,0,12,0,12,0,12,27,52,{"$f":"Y10","v":0},12,2,4,203,161,0,12,41,63,0,12,0,17,0,17]
[null,"American Indian",{"$f":"$C$11","v":0},{"$f":"D11","v":12},0,12,0,12,0,12,79,79,0,12,0,12,0,12,0,12,0,12,0,12,{"$f":"Y11","v":0},12,0,12,0,12,0,12,0,12,0,12,0,17,27,38]
[null,"Asian &Pacific Is.",{"$f":"C12+C13","v":5},{"$f":"SQRT((D12^2)+(D13^2))","v":13.892443989449804},{"$f":"E12+E13","v":3},{"$f":"SQRT((F12^2)+(F13^2))","v":13.892443989449804},{"$f":"G12+G13","v":0},{"$f":"SQRT((H12^2)+(H13^2))","v":16.970562748477139},{"$f":"I12+I13","v":6},{"$f":"SQRT((J12^2)+(J13^2))","v":15},{"$f":"K12+K13","v":157},{"$f":"SQRT((L12^2)+(L13^2))","v":111.30588483993108},{"$f":"M12+M13","v":0},{"$f":"SQRT((N12^2)+(N13^2))","v":16.970562748477139},{"$f":"O12+O13","v":16},{"$f":"SQRT((P12^2)+(P13^2))","v":22.472205054244231},{"$f":"Q12+Q13","v":6},{"$f":"SQRT((R12^2)+(R13^2))","v":16.278820596099706},{"$f":"S12+S13","v":10},{"$f":"SQRT((T12^2)+(T13^2))","v":20},{"$f":"U12+U13","v":0},{"$f":"SQRT((V12^2)+(V13^2))","v":16.970562748477139},{"$f":"W12+W13","v":0},{"$f":"SQRT((X12^2)+(X13^2))","v":16.970562748477139},{"$f":"Y12+Y13","v":5},{"$f":"SQRT((Z12^2)+(Z13^2))","v":13.416407864998739},{"$f":"AA12+AA13","v":1},{"$f":"SQRT((AB12^2)+(AB13^2))","v":12.165525060596439},{"$f":"AC12+AC13","v":144},{"$f":"SQRT((AD12^2)+(AD13^2))","v":80.894993664626739},{"$f":"AE12+AE13","v":12},{"$f":"SQRT((AF12^2)+(AF13^2))","v":22.472205054244231},{"$f":"AG12+AG13","v":31},{"$f":"SQRT((AH12^2)+(AH13^2))","v":35.114099732158877},{"$f":"AI12+AI13","v":0},{"$f":"SQRT((AJ12^2)+(AJ13^2))","v":16.970562748477139},{"$f":"AK12+AK13","v":9},{"$f":"SQRT((AL12^2)+(AL13^2))","v":22.022715545545239},{"$f":"AM12+AM13","v":16},{"$f":"SQRT((AN12^2)+(AN13^2))","v":31.064449134018133}]
[null,"Other*",{"$f":"C14+C15","v":26},{"$f":"SQRT((D14^2)+(D15^2))","v":35.440090293338699},{"$f":"E14+E15","v":33},{"$f":"SQRT((F14^2)+(F15^2))","v":41.761226035642203},{"$f":"G14+G15","v":6},{"$f":"SQRT((H14^2)+(H15^2))","v":20.808652046684813},{"$f":"I14+I15","v":27},{"$f":"SQRT((J14^2)+(J15^2))","v":40.80441152620633},{"$f":"K14+K15","v":182},{"$f":"SQRT((L14^2)+(L15^2))","v":97.49358953285082},{"$f":"M14+M15","v":3},{"$f":"SQRT((N14^2)+(N15^2))","v":13},{"$f":"O14+O15","v":139},{"$f":"SQRT((P14^2)+(P15^2))","v":89.805345052507874},{"$f":"Q14+Q15","v":8},{"$f":"SQRT((R14^2)+(R15^2))","v":18.439088914585774},{"$f":"S14+S15","v":5},{"$f":"SQRT((T14^2)+(T15^2))","v":13.416407864998739},{"$f":"U14+U15","v":0},{"$f":"SQRT((V14^2)+(V15^2))","v":16.970562748477139},{"$f":"W14+W15","v":0},{"$f":"SQRT((X14^2)+(X15^2))","v":16.970562748477139},{"$f":"Y14+Y15","v":35},{"$f":"SQRT((Z14^2)+(Z15^2))","v":31.384709652950431},{"$f":"AA14+AA15","v":37},{"$f":"SQRT((AB14^2)+(AB15^2))","v":46.572524088780071},{"$f":"AC14+AC15","v":90},{"$f":"SQRT((AD14^2)+(AD15^2))","v":56.293871780150276},{"$f":"AE14+AE15","v":23},{"$f":"SQRT((AF14^2)+(AF15^2))","v":26.832815729997478},{"$f":"AG14+AG15","v":196},{"$f":"SQRT((AH14^2)+(AH15^2))","v":130.55267136294071},{"$f":"AI14+AI15","v":60},{"$f":"SQRT((AJ14^2)+(AJ15^2))","v":74.431176263713581},{"$f":"AK14+AK15","v":64},{"$f":"SQRT((AL14^2)+(AL15^2))","v":65.069193939989759},{"$f":"AM14+AM15","v":33},{"$f":"SQRT((AN14^2)+(AN15^2))","v":54.708317466359723}]
[null,"Hispanic or Latino:",{"$f":"C18","v":51},{"$f":"D18","v":84},{"$f":"E18","v":4},7,11,14,6,7,136,103,5,7,64,62,0,12,0,12,0,12,0,12,{"$f":"Y18","v":23},23,91,90,5,24,5,10,89,63,14,21,101,101,242,98]
[]
[]
[]
[]
[]
[]
[]
[]
[]
[]
[]
[]
[]
[]
[]
[]
[]
[]
[]
[]
[]
[]
[]
[]
[]
[]
[]
[]
[]
[]
[]
[]
[]
[]
[]
[]
[]
["C03002. HISPANIC OR LATINO ORIGIN BY RACE"]
["Universe:  TOTAL POPULATION"]
["Data Set: 2013-2017 American Community Survey 5-Year Estimates"]
[]
[null,null,"Albany",null,"Bartlett",null,"Brookfield",null,"Chatham",null,"Conway",null,"Eaton",null,"Effingham",null,"Freedom",null,"Hale's Location",null,"Hart's Location",null,"Jackson",null,"Madison",null,"Moultonborough",null,"Ossipee",null,"Sandwich",null,"Tamworth",null,"Tuftonboro",null,"Wakefield",null,"Wolfeboro"]
[null," ","Estimate","Margin of Error","Estimate","Margin of Error","Estimate","Margin of Error","Estimate","Margin of Error","Estimate","Margin of Error","Estimate","Margin of Error","Estimate","Margin of Error","Estimate","Margin of Error","Estimate","Margin of Error","Estimate","Margin of Error","Estimate","Margin of Error","Estimate","Margin of Error","Estimate","Margin of Error","Estimate","Margin of Error","Estimate","Margin of Error","Estimate","Margin of Error","Estimate","Margin of Error","Estimate","Margin of Error","Estimate","Margin of Error"]
[null,"Total:",996,216,2798,25,639,152,358,142,10056,29,413,83,1461,274,1077,134,125,34,44,26,878,170,2292,293,4131,13,4362,20,1402,184,2847,19,2594,261,5042,26,6302,23]
[null,"Not Hispanic or Latino:",988,216,2798,25,639,152,358,142,9886,155,413,83,1453,270,1077,134,125,34,44,26,878,170,2275,291,4056,94,4360,22,1380,174,2847,19,2594,261,4918,112,6218,103]
[null,"White",970,219,2798,25,632,150,358,142,9786,182,405,84,1426,271,1067,127,122,34,44,26,820,156,2265,294,3900,157,4249,120,1364,173,2738,73,2582,260,4760,153,6048,164]
[null,"Black",0,85,0,85,0,85,0,85,0,85,0,85,9,13,0,85,3,7,0,85,0,85,10,16,0,85,2,3,10,11,17,27,2,5,0,85,0,85]
[null,"American Indian",0,85,0,85,0,85,0,85,19,29,0,85,8,13,0,85,0,85,0,85,17,29,0,85,143,123,80,113,0,85,0,85,0,85,50,66,0,85]
[null,"Asian &Pacific Is.",0,120.20815280171308,0,120.20815280171308,0,120.20815280171308,0,120.20815280171308,44,98.615414616580097,8,85.988371306822643,10,86.49277426467485,0,120.20815280171308,0,120.20815280171308,0,120.20815280171308,41,98.112180691288273,0,120.20815280171308,0,120.20815280171308,0,120.20815280171308,6,85.287748240881584,0,120.20815280171308,0,120.20815280171308,0,120.20815280171308,107,138.2244551445221]
[null,"Other*",18,86.884981440983225,0,120.20815280171308,7,86.145226217127089,0,120.20815280171308,37,95.257545632878873,0,120.20815280171308,0,120.20815280171308,10,87.097646351666697,0,120.20815280171308,0,120.20815280171308,0,120.20815280171308,0,120.20815280171308,13,86.884981440983225,29,94.810336989170125,0,120.20815280171308,92,108.23123393919151,10,86.884981440983225,108,114.02192771568107,63,112.69871339105873]
[null,"Hispanic or Latino:",8,12,0,85,0,85,0,85,170,154,0,85,8,16,0,85,0,85,0,85,0,85,17,27,75,92,2,4,22,33,0,85,0,85,124,113,84,102]
[]
[]
[]
["C03002. HISPANIC OR LATINO ORIGIN BY RACE"]
["Universe:  TOTAL POPULATION"]
["Data Set: 2008-2012 American Community Survey 5-Year Estimates"]
[]
[null,null,"Albany",null,"Bartlett",null,"Brookfield",null,"Chatham",null,"Conway",null,"Eaton",null,"Effingham",null,"Freedom",null,"Hale's Location",null,"Hart's Location",null,"Jackson",null,"Madison",null,"Moultonborough",null,"Ossipee",null,"Sandwich",null,"Tamworth",null,"Tuftonboro",null,"Wakefield",null,"Wolfeboro"]
[null," ","Estimate","Margin of Error","Estimate","Margin of Error","Estimate","Margin of Error","Estimate","Margin of Error","Estimate","Margin of Error","Estimate","Margin of Error","Estimate","Margin of Error","Estimate","Margin of Error","Estimate","Margin of Error","Estimate","Margin of Error","Estimate","Margin of Error","Estimate","Margin of Error","Estimate","Margin of Error","Estimate","Margin of Error","Estimate","Margin of Error","Estimate","Margin of Error","Estimate","Margin of Error","Estimate","Margin of Error","Estimate","Margin of Error"]
[null,"Total:",875,179,2793,17,681,160,446,148,10063,28,393,77,1344,202,1197,167,110,29,33,21,990,232,2496,24,4078,16,4341,24,1224,201,2854,18,2513,307,5044,19,6286,17]
[null,"Not Hispanic or Latino:",875,179,2793,17,681,160,446,148,9919,94,391,77,1339,201,1193,168,110,29,33,21,990,232,2496,24,3999,90,4290,72,1209,196,2854,18,2513,307,4925,85,6207,78]
[null,"White",858,175,2793,17,674,157,381,135,9760,165,385,76,1333,200,1154,163,109,31,33,21,916,212,2484,31,3882,140,4257,87,1196,194,2793,57,2493,309,4715,108,5991,156]
[null,"Black",10,19,0,11,0,11,0,11,0,18,0,11,6,9,10,16,1,4,0,11,0,11,12,18,0,11,1,2,8,12,12,19,2,6,0,16,1,2]
[null,"American Indian",0,11,0,11,2,8,0,11,0,18,0,11,0,11,0,11,0,11,0,11,17,31,0,11,117,97,0,11,0,11,0,11,0,11,54,59,0,16]
[null,"Asian &Pacific Is.",0,15.556349186104045,0,15.556349186104045,0,15.556349186104045,0,15.556349186104045,74,73.246160308919954,6,14.866068747318506,0,15.556349186104045,5,13.601470508735444,0,15.556349186104045,0,15.556349186104045,45,49.244289008980523,0,15.556349186104045,0,15.556349186104045,0,15.556349186104045,5,13.601470508735444,0,15.556349186104045,0,15.556349186104045,23,41.231056256176608,92,99.297532698451278]
[null,"Other*",7,14.866068747318506,0,15.556349186104045,5,15.556349186104045,65,87.692645073575008,85,92.763139231054481,0,15.556349186104045,0,15.556349186104045,24,21.095023109728988,0,15.556349186104045,0,15.556349186104045,12,22.825424421026653,0,15.556349186104045,0,15.556349186104045,32,48.270073544588683,0,15.556349186104045,49,50.219518117958877,18,23.853720883753127,133,85.510233305727795,123,122.05326705991938]
[null,"Hispanic or Latino:",0,11,0,11,0,11,0,11,144,90,2,4,5,10,4,7,0,11,0,11,0,11,0,11,79,89,51,66,15,18,0,11,0,11,119,84,79,78]

{"sheet":"RentalHousingCost","index":57,"n_rows":124,"n_cols":21,"rows_kept":124,"cut":false,"hidden":true,"merged":[]}
[]
[null,null,"HIDE THIS COLUMN",{"$f":"CntyDataLink!A70","v":"Wolfeboro"}]
[]
[null,null,null,"RENTAL HOUSING COST CHARACTERISTICS"]
[]
[]
[]
[]
[]
[]
[]
[]
[]
[]
[]
[]
[]
[]
[]
[]
[]
[]
[]
[]
[]
[]
[]
[]
[]
[]
[]
[]
[]
[]
[]
[]
[]
[]
[null,null,null,"Source:  2018-2022 American Community Survey Table B25074"]
[]
[null,null,null,"Income in 2022 Inflation Adjusted Dollars"]
[null,null,null,"Data from the American Community Survey are estimates"]
[null,null,null,{"$f":"CntyDataLink!A70","v":"Wolfeboro"}]
[]
[null,null,null,{"$f":"D4","v":"RENTAL HOUSING COST CHARACTERISTICS"}]
[]
[null,null,null,"Renter Households by "]
[null,null,null,"Gross Rent as a Percent of 2022 Household Income"]
[null,null,null,null,null,null,"By Household Income"]
[null,null,{"$f":"CntyDataLink!AO$69","v":"H73RenterOccHU"},null,"Specified Renter Occ Housing Units",{"$f":"\"Margin of Error Renter Occupied Units\"","v":"Margin of Error Renter Occupied Units"},null,"Less than $10,000",{"$f":"\"Margin of Error \"&H50","v":"Margin of Error Less than $10,000"},"$10,000 to $19,999",{"$f":"\"Margin of Error \"&J50","v":"Margin of Error $10,000 to $19,999"},"$20,000 to $34,999",{"$f":"\"Margin of Error \"&L50","v":"Margin of Error $20,000 to $34,999"},"$35,000 to $49,999",{"$f":"\"Margin of Error \"&N50","v":"Margin of Error $35,000 to $49,999"},"$50,000 to $74,999",{"$f":"\"Margin of Error \"&P50","v":"Margin of Error $50,000 to $74,999"},"$75,000 to $99,999",{"$f":"\"Margin of Error \"&R50","v":"Margin of Error $75,000 to $99,999"},"$100,000 or More",{"$f":"\"Margin of Error \"&T50","v":"Margin of Error $100,000 or More"}]
[]
[null,null,null,"All Renter Households",{"$f":"CntyDataLink!$B$156","v":622},{"$f":"CntyDataLink!$C$156","v":231},null,{"$f":"CntyDataLink!$BH$148","v":0},{"$f":"CntyDataLink!$BI$148","v":17},{"$f":"CntyDataLink!$BZ$148","v":93},{"$f":"CntyDataLink!$CA$148","v":106},{"$f":"CntyDataLink!$CR$148","v":93},{"$f":"CntyDataLink!$CS$148","v":70},{"$f":"CntyDataLink!$DJ$148","v":33},{"$f":"CntyDataLink!$DK$148","v":40},{"$f":"CntyDataLink!$EB$148","v":59},{"$f":"CntyDataLink!$EC$148","v":77},{"$f":"CntyDataLink!$ET$148","v":115},{"$f":"CntyDataLink!$EU$148","v":89},{"$f":"CntyDataLink!$FL$148","v":229},{"$f":"CntyDataLink!$FM$148","v":183}]
[null,null,null,"Rent Less than 20% of HH Income",{"$f":"CntyDataLink!$D$156","v":336},{"$f":"CntyDataLink!$E$156","v":205.78629691988726},null,{"$f":"CntyDataLink!$BJ$148","v":0},{"$f":"CntyDataLink!$BK$148","v":17},{"$f":"CntyDataLink!$CB$148","v":0},{"$f":"CntyDataLink!$CC$148","v":17},{"$f":"CntyDataLink!$CT$148","v":0},{"$f":"CntyDataLink!$CU$148","v":17},{"$f":"CntyDataLink!$DL$148","v":0},{"$f":"CntyDataLink!$DM$148","v":17},{"$f":"CntyDataLink!$ED$148","v":46},{"$f":"CntyDataLink!$EE$148","v":74},{"$f":"CntyDataLink!$EV$148","v":82},{"$f":"CntyDataLink!$EW$148","v":81},{"$f":"CntyDataLink!$FN$148","v":208},{"$f":"CntyDataLink!$FO$148","v":180}]
[null,null,null,"Rent 20% to 24.9% of HH Income",{"$f":"CntyDataLink!$F$156","v":20},{"$f":"CntyDataLink!$G$156","v":32},null,{"$f":"CntyDataLink!$BL$148","v":0},{"$f":"CntyDataLink!$BM$148","v":17},{"$f":"CntyDataLink!$CD$148","v":0},{"$f":"CntyDataLink!$CE$148","v":17},{"$f":"CntyDataLink!$CV$148","v":20},{"$f":"CntyDataLink!$CW$148","v":32},{"$f":"CntyDataLink!$DN$148","v":0},{"$f":"CntyDataLink!$DO$148","v":17},{"$f":"CntyDataLink!$EF$148","v":0},{"$f":"CntyDataLink!$EG$148","v":17},{"$f":"CntyDataLink!$EX$148","v":0},{"$f":"CntyDataLink!$EY$148","v":17},{"$f":"CntyDataLink!$FP$148","v":0},{"$f":"CntyDataLink!$FQ$148","v":17}]
[null,null,null,"Rent 25% to 29.9% of HH Income",{"$f":"CntyDataLink!$H$156","v":27},{"$f":"CntyDataLink!$I$156","v":27},null,{"$f":"CntyDataLink!$BN$148","v":0},{"$f":"CntyDataLink!$BO$148","v":17},{"$f":"CntyDataLink!$CF$148","v":11},{"$f":"CntyDataLink!$CG$148","v":19},{"$f":"CntyDataLink!$CX$148","v":16},{"$f":"CntyDataLink!$CY$148","v":27},{"$f":"CntyDataLink!$DP$148","v":0},{"$f":"CntyDataLink!$DQ$148","v":17},{"$f":"CntyDataLink!$EH$148","v":0},{"$f":"CntyDataLink!$EI$148","v":17},{"$f":"CntyDataLink!$EZ$148","v":0},{"$f":"CntyDataLink!$FA$148","v":17},{"$f":"CntyDataLink!$FR$148","v":0},{"$f":"CntyDataLink!$FS$148","v":17}]
[null,null,null,"Rent Less Than 30% of HH Income",{"$f":"CntyDataLink!$J$156","v":383},{"$f":"CntyDataLink!$K$156","v":210.00238093888365},null,{"$f":"SUM(H53:H55)","v":0},{"$f":"SQRT((I53^2)+(I54^2)+(I55^2))","v":29.444863728670914},{"$f":"SUM(J53:J55)","v":11},{"$f":"SQRT((K53^2)+(K54^2)+(K55^2))","v":30.643106892089126},{"$f":"SUM(L53:L55)","v":36},{"$f":"SQRT((M53^2)+(M54^2)+(M55^2))","v":45.188494110780013},{"$f":"SUM(N53:N55)","v":0},{"$f":"SQRT((O53^2)+(O54^2)+(O55^2))","v":29.444863728670914},{"$f":"SUM(P53:P55)","v":46},{"$f":"SQRT((Q53^2)+(Q54^2)+(Q55^2))","v":77.80745465570763},{"$f":"SUM(R53:R55)","v":82},{"$f":"SQRT((S53^2)+(S54^2)+(S55^2))","v":84.492603226554692},{"$f":"SUM(T53:T55)","v":208},{"$f":"SQRT((U53^2)+(U54^2)+(U55^2))","v":181.59845814323424}]
[null,null,null,"Rent 30% or More of HH Income",{"$f":"CntyDataLink!$L$156","v":163},{"$f":"CntyDataLink!$M$156","v":117.957619508025},null,{"$f":"H60+H58","v":0},{"$f":"SQRT((I58^2)+(I60^2))","v":34},{"$f":"J60+J58","v":82},{"$f":"SQRT((K58^2)+(K60^2))","v":109.05044704172468},{"$f":"L60+L58","v":41},{"$f":"SQRT((M58^2)+(M60^2))","v":50.626080235388557},{"$f":"N60+N58","v":27},{"$f":"SQRT((O58^2)+(O60^2))","v":48.867166891482462},13,{"$f":"SQRT((Q58^2)+(Q60^2))","v":36.166282640050248},{"$f":"R60+R58","v":0},{"$f":"SQRT((S58^2)+(S60^2))","v":34},0,{"$f":"SQRT((U58^2)+(U60^2))","v":34}]
[null,null,null,"Rent 30% to 34.9% of HH Income",{"$f":"CntyDataLink!$N$156","v":34},{"$f":"CntyDataLink!$O$156","v":38},null,{"$f":"CntyDataLink!$BP$148","v":0},{"$f":"CntyDataLink!$BQ$148","v":17},{"$f":"CntyDataLink!$CH$148","v":0},{"$f":"CntyDataLink!$CI$148","v":17},{"$f":"CntyDataLink!$CZ$148","v":21},{"$f":"CntyDataLink!$DA$148","v":32},{"$f":"CntyDataLink!$DR$148","v":0},{"$f":"CntyDataLink!$DS$148","v":17},{"$f":"CntyDataLink!$EJ$148","v":13},{"$f":"CntyDataLink!$EK$148","v":21},{"$f":"CntyDataLink!$FB$148","v":0},{"$f":"CntyDataLink!$FC$148","v":17},{"$f":"CntyDataLink!$FT$148","v":0},{"$f":"CntyDataLink!$FU$148","v":17}]
[null,null,null,"Rent Less Than 35% of HH Income",{"$f":"CntyDataLink!$P$156","v":417},{"$f":"CntyDataLink!$Q$156","v":213.41274563624359},null,{"$f":"SUM(H56,H58)","v":0},{"$f":"SQRT((I56^2)+(I58^2))","v":34},{"$f":"SUM(J56,J58)","v":11},{"$f":"SQRT((K56^2)+(K58^2))","v":35.042830935870462},{"$f":"SUM(L56,L58)","v":57},{"$f":"SQRT((M56^2)+(M58^2))","v":55.371472799628513},0,46.44486372867091,59,{"$f":"SQRT((Q58^2)+(Q56^2))","v":80.591562833835155},{"$f":"SUM(R56,R58)","v":82},{"$f":"SQRT((S58^2)+(S56^2))","v":86.185845705660967},208,{"$f":"SQRT((U58^2)+(U56^2))","v":182.3924340536087}]
[null,null,null,"Rent 35% or More of HH Income",{"$f":"CntyDataLink!$R$156","v":129},{"$f":"CntyDataLink!$S$156","v":111.66915420114903},null,{"$f":"CntyDataLink!$BR$148+CntyDataLink!$BT$148+CntyDataLink!$BV$148","v":0},{"$f":"SQRT((CntyDataLink!$BS$148^2)+(CntyDataLink!$BU$148^2)+(CntyDataLink!$BW$148^2))","v":29.444863728670914},{"$f":"CntyDataLink!$CJ$148+CntyDataLink!$CL$148+CntyDataLink!$CN$148","v":82},{"$f":"SQRT((CntyDataLink!$CK$148^2)+(CntyDataLink!$CM$148^2)+(CntyDataLink!$CO$148^2))","v":107.71722239270747},{"$f":"CntyDataLink!$DB$148+CntyDataLink!$DD$148+CntyDataLink!$DF$148","v":20},{"$f":"SQRT((CntyDataLink!$DC$148^2)+(CntyDataLink!$DE$148^2)+(CntyDataLink!$DG$148^2))","v":39.230090491866065},{"$f":"CntyDataLink!$DT$148+CntyDataLink!$DV$148+CntyDataLink!$DX$148","v":27},{"$f":"SQRT((CntyDataLink!$DU$148^2)+(CntyDataLink!$DW$148^2)+(CntyDataLink!$DY$148^2))","v":45.814844755821227},{"$f":"CntyDataLink!$EL$148+CntyDataLink!$EN$148+CntyDataLink!$EP$148","v":0},{"$f":"SQRT((CntyDataLink!$EM$148^2)+(CntyDataLink!$EO$148^2)+(CntyDataLink!$EQ$148^2))","v":29.444863728670914},{"$f":"CntyDataLink!$FD$148+CntyDataLink!$FF$148+CntyDataLink!$FH$148","v":0},{"$f":"SQRT((CntyDataLink!$FE$148^2)+(CntyDataLink!$FG$148^2)+(CntyDataLink!$FI$148^2))","v":29.444863728670914},{"$f":"CntyDataLink!$FV$148+CntyDataLink!$FX$148+CntyDataLink!$FZ$148","v":0},{"$f":"SQRT((CntyDataLink!$FW$148^2)+(CntyDataLink!$FY$148^2)+(CntyDataLink!$GA$148^2))","v":29.444863728670914}]
[null,null,null,"Rent 50% or More of HH Income",{"$f":"CntyDataLink!$T$156","v":82},{"$f":"CntyDataLink!$U$156","v":105},null,{"$f":"CntyDataLink!$BV$148","v":0},{"$f":"CntyDataLink!$BW$148","v":17},{"$f":"CntyDataLink!$CN$148","v":82},{"$f":"CntyDataLink!$CO$148","v":105},{"$f":"CntyDataLink!$DF$148","v":0},{"$f":"CntyDataLink!$DG$148","v":17},{"$f":"CntyDataLink!$DX$148","v":0},{"$f":"CntyDataLink!$DY$148","v":17},{"$f":"CntyDataLink!$EP$148","v":0},{"$f":"CntyDataLink!$EQ$148","v":17},{"$f":"CntyDataLink!$FH$148","v":0},{"$f":"CntyDataLink!$FI$148","v":17},{"$f":"CntyDataLink!$FZ$148","v":0},{"$f":"CntyDataLink!$GA$148","v":17}]
[null,null,null,"Percent not computed",{"$f":"CntyDataLink!$V$156","v":76},{"$f":"CntyDataLink!$W$156","v":57},null,{"$f":"CntyDataLink!$BX$148","v":0},{"$f":"CntyDataLink!$BY$148","v":17},{"$f":"CntyDataLink!$CP$148","v":0},{"$f":"CntyDataLink!$CQ$148","v":17},{"$f":"CntyDataLink!$DH$148","v":16},{"$f":"CntyDataLink!$DI$148","v":25},{"$f":"CntyDataLink!$DZ$148","v":6},{"$f":"CntyDataLink!$EA$148","v":10},{"$f":"CntyDataLink!$ER$148","v":0},{"$f":"CntyDataLink!$ES$148","v":17},{"$f":"CntyDataLink!$FJ$148","v":33},{"$f":"CntyDataLink!$FK$148","v":37},{"$f":"CntyDataLink!$GB$148","v":21},{"$f":"CntyDataLink!$GC148","v":34}]
[]
[]
[]
[null,null,null,"Percent of Households Paying ",null,null,null,"By Household Income"]
[null,null,null,{"$f":"D56","v":"Rent Less Than 30% of HH Income"},{"$f":"E56/E$52","v":0.61575562700964626},null,null,{"$f":"H56/H$52","v":{"$error":"#DIV/0!"}},null,{"$f":"J56/J$52","v":0.11827956989247312},null,{"$f":"L56/L$52","v":0.38709677419354838},null,{"$f":"N56/N$52","v":0},null,{"$f":"P56/P$52","v":0.77966101694915257},null,{"$f":"R56/R$52","v":0.71304347826086956},null,{"$f":"T56/T$52","v":0.90829694323144106}]
[null,null,null,{"$f":"D57","v":"Rent 30% or More of HH Income"},{"$f":"E57/E$52","v":0.26205787781350481},null,null,{"$f":"H57/H$52","v":{"$error":"#DIV/0!"}},null,{"$f":"J57/J$52","v":0.88172043010752688},null,{"$f":"L57/L$52","v":0.44086021505376344},null,{"$f":"N57/N$52","v":0.81818181818181823},null,{"$f":"P57/P$52","v":0.22033898305084745},null,{"$f":"R57/R$52","v":0},null,{"$f":"T57/T$52","v":0}]
[null,null,null,{"$f":"D59","v":"Rent Less Than 35% of HH Income"},{"$f":"E59/E$52","v":0.67041800643086813},null,null,{"$f":"H59/H$52","v":{"$error":"#DIV/0!"}},null,{"$f":"J59/J$52","v":0.11827956989247312},null,{"$f":"L59/L$52","v":0.61290322580645162},null,{"$f":"N59/N$52","v":0},null,{"$f":"P59/P$52","v":1},null,{"$f":"R59/R$52","v":0.71304347826086956},null,{"$f":"T59/T$52","v":0.90829694323144106}]
[null,null,null,{"$f":"D60","v":"Rent 35% or More of HH Income"},{"$f":"E60/E$52","v":0.20739549839228297},null,null,{"$f":"H60/H$52","v":{"$error":"#DIV/0!"}},null,{"$f":"J60/J$52","v":0.88172043010752688},null,{"$f":"L60/L$52","v":0.21505376344086022},null,{"$f":"N60/N$52","v":0.81818181818181823},null,{"$f":"P60/P$52","v":0},null,{"$f":"R60/R$52","v":0},null,{"$f":"T60/T$52","v":0}]
[null,null,null,"Rent 50% or More of HH Income",{"$f":"E61/E$52","v":0.13183279742765272},null,null,{"$f":"H61/H$52","v":{"$error":"#DIV/0!"}},null,{"$f":"J61/J$52","v":0.88172043010752688},null,{"$f":"L61/L$52","v":0},null,{"$f":"N61/N$52","v":0},null,{"$f":"P61/P$52","v":0},null,{"$f":"R61/R$52","v":0},null,{"$f":"T61/T$52","v":0}]
[null,null,null,"Percent not computed",{"$f":"E62/E$52","v":0.12218649517684887},null,null,{"$f":"H62/H$52","v":{"$error":"#DIV/0!"}},null,{"$f":"J62/J$52","v":0},null,{"$f":"L62/L$52","v":0.17204301075268819},null,{"$f":"N62/N$52","v":0.18181818181818182},null,{"$f":"P62/P$52","v":0},null,{"$f":"R62/R$52","v":0.28695652173913044},null,{"$f":"T62/T$52","v":9.1703056768558958E-2}]
[]
[]
[null,null,null,"Source:  2018-2022 American Community Survey Table B25070; B25074"]
[]
[null,null,null,{"$f":"D41","v":"Income in 2022 Inflation Adjusted Dollars"}]
[null,null,null,"Data from the American Community Survey are estimates"]
[]
[null,null,null,{"$f":"CntyDataLink!A70","v":"Wolfeboro"}]
[null,null,null,{"$f":"D4","v":"RENTAL HOUSING COST CHARACTERISTICS"}]
[]
[null,null,null,"Rental Housing Costs"]
[]
[null,null,null,"Renter Occupied Housing Units By Gross Rent "]
[]
[null,null,null,null,"Units","Margin of Error"]
[null,null,{"$f":"CntyDataLink!E$69","v":"H62RntrOccHU"},"Specified Renter Occ Housing Units",{"$f":"CntyDataLink!$B$148","v":622},{"$f":"CntyDataLink!$C$148","v":231}]
[null,null,{"$f":"CntyDataLink!F$69","v":"H62RntrOccHUwRent"},"Renter Occ. Housing Units w/ Cash Rent",{"$f":"CntyDataLink!$D$148","v":546},{"$f":"CntyDataLink!$E$148","v":229}]
[]
[null,null,{"$f":"CntyDataLink!G$69","v":"H62ROHUGRent<100"},"Gross Rent","Units","Margin of Error 2018-2022"]
[null,null,{"$f":"CntyDataLink!H$69","v":"H62ROHUGRent100to149"},"Less than $100",{"$f":"CntyDataLink!$F$148","v":0},{"$f":"CntyDataLink!$G$148","v":17}]
[null,null,{"$f":"CntyDataLink!I$69","v":"H62ROHUGRent150to199"},"$100 to $149",{"$f":"CntyDataLink!$H$148","v":0},{"$f":"CntyDataLink!$I$148","v":17}]
[null,null,{"$f":"CntyDataLink!J$69","v":"H62ROHUGRent200to249"},"$150 to $199",{"$f":"CntyDataLink!J$148","v":0},{"$f":"CntyDataLink!$K$148","v":17}]
[null,null,{"$f":"CntyDataLink!K$69","v":"H62ROHUGRent250to299"},"$200 to $249",{"$f":"CntyDataLink!$L$148","v":0},{"$f":"CntyDataLink!$M$148","v":17}]
[null,null,{"$f":"CntyDataLink!L$69","v":"H62ROHUGRent300to349"},"$250 to $299",{"$f":"CntyDataLink!$N$148","v":0},{"$f":"CntyDataLink!$O$148","v":17}]
[null,null,{"$f":"CntyDataLink!M$69","v":"H62ROHUGRent350to399"},"$300 to $349",{"$f":"CntyDataLink!$P$148","v":11},{"$f":"CntyDataLink!$Q$148","v":19}]
[null,null,{"$f":"CntyDataLink!N$69","v":"H62ROHUGRent400to449"},"$350 to $399",{"$f":"CntyDataLink!$R$148","v":72},{"$f":"CntyDataLink!$S$148","v":86}]
[null,null,{"$f":"CntyDataLink!O$69","v":"H62ROHUGRent450to499"},"$400 to $449",{"$f":"CntyDataLink!$T$148","v":0},{"$f":"CntyDataLink!$U$148","v":17}]
[null,null,{"$f":"CntyDataLink!P$69","v":"H62ROHUGRent500to549"},"$450 to $499",{"$f":"CntyDataLink!$V$148","v":0},{"$f":"CntyDataLink!$W$148","v":17}]
[null,null,{"$f":"CntyDataLink!Q$69","v":"H62ROHUGRent550to599"},"$500 to $549",{"$f":"CntyDataLink!$X$148","v":82},{"$f":"CntyDataLink!$Y$148","v":84}]
[null,null,{"$f":"CntyDataLink!R$69","v":"H62ROHUGRent600to649"},"$550 to $599",{"$f":"CntyDataLink!$Z$148","v":0},{"$f":"CntyDataLink!$AA$148","v":17}]
[null,null,{"$f":"CntyDataLink!S$69","v":"H62ROHUGRent650to699"},"$600 to $649",{"$f":"CntyDataLink!$AB$148","v":0},{"$f":"CntyDataLink!$AC$148","v":17}]
[null,null,{"$f":"CntyDataLink!T$69","v":"H62ROHUGRent700to749"},"$650 to $699",{"$f":"CntyDataLink!$AD$148","v":0},{"$f":"CntyDataLink!$AE$148","v":17}]
[null,null,{"$f":"CntyDataLink!U$69","v":"H62ROHUGRent750to799"},"$700 to $749",{"$f":"CntyDataLink!$AF$148","v":0},{"$f":"CntyDataLink!$AG$148","v":17}]
[null,null,{"$f":"CntyDataLink!V$69","v":"H62ROHUGRent800to899"},"$750 to $799",{"$f":"CntyDataLink!$AH$148","v":91},{"$f":"CntyDataLink!$AI$148","v":104}]
[null,null,{"$f":"CntyDataLink!W$69","v":"H62ROHUGRent900to999"},"$800 to $899",{"$f":"CntyDataLink!$AJ$148","v":0},{"$f":"CntyDataLink!$AK$148","v":17}]
[null,null,{"$f":"CntyDataLink!X$69","v":"H62ROHUGRent1000to1249"},"$900 to $999",{"$f":"CntyDataLink!$AL$148","v":0},{"$f":"CntyDataLink!$AM$148","v":17}]
[null,null,{"$f":"CntyDataLink!Y$69","v":"H62ROHUGRent1250to1499"},"$1000 to $1249",{"$f":"CntyDataLink!$AN$148","v":213},{"$f":"CntyDataLink!$AO$148","v":165}]
[null,null,{"$f":"CntyDataLink!Z$69","v":"H62ROHUGRent1500to1999"},"$1250 to $1499",{"$f":"CntyDataLink!$AP$148","v":40},{"$f":"CntyDataLink!$AQ$148","v":45}]
[null,null,{"$f":"CntyDataLink!AA$69","v":"H62ROHUGRent2000>"},"$1500 to $1999",{"$f":"CntyDataLink!$AR$148","v":12},{"$f":"CntyDataLink!$AS$148","v":19}]
[null,null,{"$f":"CntyDataLink!AB$69","v":"H62ROHUNoGRent"},"$2,000 to $2,499",{"$f":"CntyDataLink!$AT$148","v":0},{"$f":"CntyDataLink!$AU$148","v":17}]
[null,null,{"$f":"CntyDataLink!AC$69","v":"H63MedianGrossRnt"},"$2,500 to $2,999",{"$f":"CntyDataLink!$AV$148","v":25},{"$f":"CntyDataLink!$AW$148","v":34}]
[null,null,null,"$3,000 to $3,499",{"$f":"CntyDataLink!$AX$148","v":0},{"$f":"CntyDataLink!$AY$148","v":17}]
[null,null,null,"$3,500 or more",{"$f":"CntyDataLink!$AZ$148","v":0},{"$f":"CntyDataLink!$BA$148","v":17}]
[null,null,null,"Renter Occ. Housing Units w/ No Cash Rent",{"$f":"CntyDataLink!$BB$148","v":76},{"$f":"CntyDataLink!$BC$148","v":57}]
[]
[null,null,null,"Median Gross Rent",{"$f":"CntyDataLink!$BD$148","v":1020},{"$f":"CntyDataLink!$BE$148","v":416}]
[]
[]
[]
[]
[null,null,null,"Source: 2018-2022 American Community Survey Table B25063; B25064"]
[null,null,null,"Data from the American Community Survey are estimates"]

{"sheet":"RentalHousingCost-Prior5Yr","index":58,"n_rows":125,"n_cols":21,"rows_kept":125,"cut":false,"hidden":true,"merged":[]}
[]
[null,null,"HIDE THIS COLUMN",{"$f":"CntyDataLinkPrior5YearEstimates!A120","v":"Wolfeboro"}]
[]
[null,null,null,"RENTAL HOUSING COST CHARACTERISTICS"]
[]
[]
[]
[]
[]
[]
[]
[]
[]
[]
[]
[]
[]
[]
[]
[]
[]
[]
[]
[]
[]
[]
[]
[]
[]
[]
[]
[]
[]
[]
[]
[]
[]
[]
[null,null,null,"Source:  2013-2017 American Community Survey Table B25074"]
[]
[null,null,null,"Income in 2017 Inflation Adjusted Dollars"]
[null,null,null,"Data from the American Community Survey are estimates"]
[null,null,null,{"$f":"CntyDataLinkPrior5YearEstimates!A120","v":"Wolfeboro"}]
[]
[null,null,null,{"$f":"D4","v":"RENTAL HOUSING COST CHARACTERISTICS"}]
[]
[null,null,null,"Renter Households by "]
[null,null,null,"Gross Rent as a Percent of 2017 Household Income"]
[null,null,null,null,null,null,"By Household Income"]
[null,null,{"$f":"CntyDataLinkPrior5YearEstimates!AO$69","v":0},null,"Specified Renter Occ Housing Units",{"$f":"\"Margin of Error Renter Occupied Units\"","v":"Margin of Error Renter Occupied Units"},null,"Less than $10,000",{"$f":"\"Margin of Error \"&H50","v":"Margin of Error Less than $10,000"},"$10,000 to $19,999",{"$f":"\"Margin of Error \"&J50","v":"Margin of Error $10,000 to $19,999"},"$20,000 to $34,999",{"$f":"\"Margin of Error \"&L50","v":"Margin of Error $20,000 to $34,999"},"$35,000 to $49,999",{"$f":"\"Margin of Error \"&N50","v":"Margin of Error $35,000 to $49,999"},"$50,000 to $74,999",{"$f":"\"Margin of Error \"&P50","v":"Margin of Error $50,000 to $74,999"},"$75,000 to $99,999",{"$f":"\"Margin of Error \"&R50","v":"Margin of Error $75,000 to $99,999"},"$100,000 or More",{"$f":"\"Margin of Error \"&T50","v":"Margin of Error $100,000 or More"}]
[]
[null,null,null,"All Renter Households",{"$f":"CntyDataLinkPrior5YearEstimates!$B$156","v":633},{"$f":"CntyDataLinkPrior5YearEstimates!$C$156","v":207},null,{"$f":"CntyDataLinkPrior5YearEstimates!$BH$148","v":31},{"$f":"CntyDataLinkPrior5YearEstimates!$BI$148","v":50},{"$f":"CntyDataLinkPrior5YearEstimates!$BZ$148","v":204},{"$f":"CntyDataLinkPrior5YearEstimates!$CA$148","v":150},{"$f":"CntyDataLinkPrior5YearEstimates!$CR$148","v":125},{"$f":"CntyDataLinkPrior5YearEstimates!$CS$148","v":125},{"$f":"CntyDataLinkPrior5YearEstimates!$DJ$148","v":198},{"$f":"CntyDataLinkPrior5YearEstimates!$DK$148","v":124},{"$f":"CntyDataLinkPrior5YearEstimates!$EB$148","v":0},{"$f":"CntyDataLinkPrior5YearEstimates!$EC$148","v":16},{"$f":"CntyDataLinkPrior5YearEstimates!$ET$148","v":15},{"$f":"CntyDataLinkPrior5YearEstimates!$EU$148","v":25},{"$f":"CntyDataLinkPrior5YearEstimates!$FL$148","v":60},{"$f":"CntyDataLinkPrior5YearEstimates!$FM$148","v":77}]
[null,null,null,"Rent Less than 20% of HH Income",{"$f":"CntyDataLinkPrior5YearEstimates!$D$156","v":43},{"$f":"CntyDataLinkPrior5YearEstimates!$E$156","v":74.518454090245328},null,{"$f":"CntyDataLinkPrior5YearEstimates!$BJ$148","v":0},{"$f":"CntyDataLinkPrior5YearEstimates!$BK$148","v":16},{"$f":"CntyDataLinkPrior5YearEstimates!$CB$148","v":0},{"$f":"CntyDataLinkPrior5YearEstimates!$CC$148","v":16},{"$f":"CntyDataLinkPrior5YearEstimates!$CT$148","v":0},{"$f":"CntyDataLinkPrior5YearEstimates!$CU$148","v":16},{"$f":"CntyDataLinkPrior5YearEstimates!$DL$148","v":0},{"$f":"CntyDataLinkPrior5YearEstimates!$DM$148","v":16},{"$f":"CntyDataLinkPrior5YearEstimates!$ED$148","v":0},{"$f":"CntyDataLinkPrior5YearEstimates!$EE$148","v":16},{"$f":"CntyDataLinkPrior5YearEstimates!$EV$148","v":0},{"$f":"CntyDataLinkPrior5YearEstimates!$EW$148","v":16},{"$f":"CntyDataLinkPrior5YearEstimates!$FN$148","v":43},{"$f":"CntyDataLinkPrior5YearEstimates!$FO$148","v":71}]
[null,null,null,"Rent 20% to 24.9% of HH Income",{"$f":"CntyDataLinkPrior5YearEstimates!$F$156","v":59},{"$f":"CntyDataLinkPrior5YearEstimates!$G$156","v":75},null,{"$f":"CntyDataLinkPrior5YearEstimates!$BL$148","v":0},{"$f":"CntyDataLinkPrior5YearEstimates!$BM$148","v":16},{"$f":"CntyDataLinkPrior5YearEstimates!$CD$148","v":0},{"$f":"CntyDataLinkPrior5YearEstimates!$CE$148","v":16},{"$f":"CntyDataLinkPrior5YearEstimates!$CV$148","v":0},{"$f":"CntyDataLinkPrior5YearEstimates!$CW$148","v":16},{"$f":"CntyDataLinkPrior5YearEstimates!$DN$148","v":44},{"$f":"CntyDataLinkPrior5YearEstimates!$DO$148","v":71},{"$f":"CntyDataLinkPrior5YearEstimates!$EF$148","v":0},{"$f":"CntyDataLinkPrior5YearEstimates!$EG$148","v":16},{"$f":"CntyDataLinkPrior5YearEstimates!$EX$148","v":15},{"$f":"CntyDataLinkPrior5YearEstimates!$EY$148","v":25},{"$f":"CntyDataLinkPrior5YearEstimates!$FP$148","v":0},{"$f":"CntyDataLinkPrior5YearEstimates!$FQ$148","v":16}]
[null,null,null,"Rent 25% to 29.9% of HH Income",{"$f":"CntyDataLinkPrior5YearEstimates!$H$156","v":118},{"$f":"CntyDataLinkPrior5YearEstimates!$I$156","v":102},null,{"$f":"CntyDataLinkPrior5YearEstimates!$BN$148","v":0},{"$f":"CntyDataLinkPrior5YearEstimates!$BO$148","v":16},{"$f":"CntyDataLinkPrior5YearEstimates!$CF$148","v":18},{"$f":"CntyDataLinkPrior5YearEstimates!$CG$148","v":30},{"$f":"CntyDataLinkPrior5YearEstimates!$CX$148","v":81},{"$f":"CntyDataLinkPrior5YearEstimates!$CY$148","v":92},{"$f":"CntyDataLinkPrior5YearEstimates!$DP$148","v":19},{"$f":"CntyDataLinkPrior5YearEstimates!$DQ$148","v":30},{"$f":"CntyDataLinkPrior5YearEstimates!$EH$148","v":0},{"$f":"CntyDataLinkPrior5YearEstimates!$EI$148","v":16},{"$f":"CntyDataLinkPrior5YearEstimates!$EZ$148","v":0},{"$f":"CntyDataLinkPrior5YearEstimates!$FA$148","v":16},{"$f":"CntyDataLinkPrior5YearEstimates!$FR$148","v":0},{"$f":"CntyDataLinkPrior5YearEstimates!$FS$148","v":16}]
[null,null,null,"Rent Less Than 30% of HH Income",{"$f":"CntyDataLinkPrior5YearEstimates!$J$156","v":220},{"$f":"CntyDataLinkPrior5YearEstimates!$K$156","v":146.90813456034351},null,{"$f":"SUM(H53:H55)","v":0},{"$f":"SQRT((I53^2)+(I54^2)+(I55^2))","v":27.712812921102035},{"$f":"SUM(J53:J55)","v":18},{"$f":"SQRT((K53^2)+(K54^2)+(K55^2))","v":37.576588456111871},{"$f":"SUM(L53:L55)","v":81},{"$f":"SQRT((M53^2)+(M54^2)+(M55^2))","v":94.741754258616083},{"$f":"SUM(N53:N55)","v":63},{"$f":"SQRT((O53^2)+(O54^2)+(O55^2))","v":78.721026416072604},{"$f":"SUM(P53:P55)","v":0},{"$f":"SQRT((Q53^2)+(Q54^2)+(Q55^2))","v":27.712812921102035},{"$f":"SUM(R53:R55)","v":15},{"$f":"SQRT((S53^2)+(S54^2)+(S55^2))","v":33.719430600174732},{"$f":"SUM(T53:T55)","v":43},{"$f":"SQRT((U53^2)+(U54^2)+(U55^2))","v":74.518454090245328}]
[null,null,null,"Rent 30% or More of HH Income",{"$f":"CntyDataLinkPrior5YearEstimates!$L$156","v":396},{"$f":"CntyDataLinkPrior5YearEstimates!$M$156","v":199.76235881666997},null,{"$f":"H60+H58","v":31},{"$f":"SQRT((I58^2)+(I60^2))","v":57.166423711825814},{"$f":"J60+J58","v":186},{"$f":"SQRT((K58^2)+(K60^2))","v":151.34397906755325},{"$f":"L60+L58","v":44},{"$f":"SQRT((M58^2)+(M60^2))","v":72.505172229296846},{"$f":"N60+N58","v":135},{"$f":"SQRT((O58^2)+(O60^2))","v":111.4136436887332},0,{"$f":"SQRT((Q58^2)+(Q60^2))","v":32},{"$f":"R60+R58","v":0},{"$f":"SQRT((S58^2)+(S60^2))","v":32},0,{"$f":"SQRT((U58^2)+(U60^2))","v":32}]
[null,null,null,"Rent 30% to 34.9% of HH Income",{"$f":"CntyDataLinkPrior5YearEstimates!$N$156","v":30},{"$f":"CntyDataLinkPrior5YearEstimates!$O$156","v":45},null,{"$f":"CntyDataLinkPrior5YearEstimates!$BP$148","v":0},{"$f":"CntyDataLinkPrior5YearEstimates!$BQ$148","v":16},{"$f":"CntyDataLinkPrior5YearEstimates!$CH$148","v":0},{"$f":"CntyDataLinkPrior5YearEstimates!$CI$148","v":16},{"$f":"CntyDataLinkPrior5YearEstimates!$CZ$148","v":0},{"$f":"CntyDataLinkPrior5YearEstimates!$DA$148","v":16},{"$f":"CntyDataLinkPrior5YearEstimates!$DR$148","v":30},{"$f":"CntyDataLinkPrior5YearEstimates!$DS$148","v":45},{"$f":"CntyDataLinkPrior5YearEstimates!$EJ$148","v":0},{"$f":"CntyDataLinkPrior5YearEstimates!$EK$148","v":16},{"$f":"CntyDataLinkPrior5YearEstimates!$FB$148","v":0},{"$f":"CntyDataLinkPrior5YearEstimates!$FC$148","v":16},{"$f":"CntyDataLinkPrior5YearEstimates!$FT$148","v":0},{"$f":"CntyDataLinkPrior5YearEstimates!$FU$148","v":16}]
[null,null,null,"Rent Less Than 35% of HH Income",{"$f":"CntyDataLinkPrior5YearEstimates!$P$156","v":250},{"$f":"CntyDataLinkPrior5YearEstimates!$Q$156","v":153.64569632762255},null,{"$f":"SUM(H56,H58)","v":0},{"$f":"SQRT((I56^2)+(I58^2))","v":32},{"$f":"SUM(J56,J58)","v":18},{"$f":"SQRT((K56^2)+(K58^2))","v":40.841155713324277},{"$f":"SUM(L56,L58)","v":81},{"$f":"SQRT((M56^2)+(M58^2))","v":96.083297195714508},93,123.7210264160726,0,{"$f":"SQRT((Q58^2)+(Q56^2))","v":32},{"$f":"SUM(R56,R58)","v":15},{"$f":"SQRT((S58^2)+(S56^2))","v":37.322915213043046},43,{"$f":"SQRT((U58^2)+(U56^2))","v":76.216796049164913}]
[null,null,null,"Rent 35% or More of HH Income",{"$f":"CntyDataLinkPrior5YearEstimates!$R$156","v":366},{"$f":"CntyDataLinkPrior5YearEstimates!$S$156","v":194.62785001124581},null,{"$f":"CntyDataLinkPrior5YearEstimates!$BR$148+CntyDataLinkPrior5YearEstimates!$BT$148+CntyDataLinkPrior5YearEstimates!$BV$148","v":31},{"$f":"SQRT((CntyDataLinkPrior5YearEstimates!$BS$148^2)+(CntyDataLinkPrior5YearEstimates!$BU$148^2)+(CntyDataLinkPrior5YearEstimates!$BW$148^2))","v":54.881690936048976},{"$f":"CntyDataLinkPrior5YearEstimates!$CJ$148+CntyDataLinkPrior5YearEstimates!$CL$148+CntyDataLinkPrior5YearEstimates!$CN$148","v":186},{"$f":"SQRT((CntyDataLinkPrior5YearEstimates!$CK$148^2)+(CntyDataLinkPrior5YearEstimates!$CM$148^2)+(CntyDataLinkPrior5YearEstimates!$CO$148^2))","v":150.49584711878265},{"$f":"CntyDataLinkPrior5YearEstimates!$DB$148+CntyDataLinkPrior5YearEstimates!$DD$148+CntyDataLinkPrior5YearEstimates!$DF$148","v":44},{"$f":"SQRT((CntyDataLinkPrior5YearEstimates!$DC$148^2)+(CntyDataLinkPrior5YearEstimates!$DE$148^2)+(CntyDataLinkPrior5YearEstimates!$DG$148^2))","v":70.717748832948573},{"$f":"CntyDataLinkPrior5YearEstimates!$DT$148+CntyDataLinkPrior5YearEstimates!$DV$148+CntyDataLinkPrior5YearEstimates!$DX$148","v":105},{"$f":"SQRT((CntyDataLinkPrior5YearEstimates!$DU$148^2)+(CntyDataLinkPrior5YearEstimates!$DW$148^2)+(CntyDataLinkPrior5YearEstimates!$DY$148^2))","v":101.92153844992725},{"$f":"CntyDataLinkPrior5YearEstimates!$EL$148+CntyDataLinkPrior5YearEstimates!$EN$148+CntyDataLinkPrior5YearEstimates!$EP$148","v":0},{"$f":"SQRT((CntyDataLinkPrior5YearEstimates!$EM$148^2)+(CntyDataLinkPrior5YearEstimates!$EO$148^2)+(CntyDataLinkPrior5YearEstimates!$EQ$148^2))","v":27.712812921102035},{"$f":"CntyDataLinkPrior5YearEstimates!$FD$148+CntyDataLinkPrior5YearEstimates!$FF$148+CntyDataLinkPrior5YearEstimates!$FH$148","v":0},{"$f":"SQRT((CntyDataLinkPrior5YearEstimates!$FE$148^2)+(CntyDataLinkPrior5YearEstimates!$FG$148^2)+(CntyDataLinkPrior5YearEstimates!$FI$148^2))","v":27.712812921102035},{"$f":"CntyDataLinkPrior5YearEstimates!$FV$148+CntyDataLinkPrior5YearEstimates!$FX$148+CntyDataLinkPrior5YearEstimates!$FZ$148","v":0},{"$f":"SQRT((CntyDataLinkPrior5YearEstimates!$FW$148^2)+(CntyDataLinkPrior5YearEstimates!$FY$148^2)+(CntyDataLinkPrior5YearEstimates!$GA$148^2))","v":27.712812921102035}]
[null,null,null,"Rent 50% or More of HH Income",{"$f":"CntyDataLinkPrior5YearEstimates!$T$156","v":200},{"$f":"CntyDataLinkPrior5YearEstimates!$U$156","v":150},null,{"$f":"CntyDataLinkPrior5YearEstimates!$BV$148","v":31},{"$f":"CntyDataLinkPrior5YearEstimates!$BW$148","v":50},{"$f":"CntyDataLinkPrior5YearEstimates!$CN$148","v":169},{"$f":"CntyDataLinkPrior5YearEstimates!$CO$148","v":147},{"$f":"CntyDataLinkPrior5YearEstimates!$DF$148","v":0},{"$f":"CntyDataLinkPrior5YearEstimates!$DG$148","v":16},{"$f":"CntyDataLinkPrior5YearEstimates!$DX$148","v":0},{"$f":"CntyDataLinkPrior5YearEstimates!$DY$148","v":16},{"$f":"CntyDataLinkPrior5YearEstimates!$EP$148","v":0},{"$f":"CntyDataLinkPrior5YearEstimates!$EQ$148","v":16},{"$f":"CntyDataLinkPrior5YearEstimates!$FH$148","v":0},{"$f":"CntyDataLinkPrior5YearEstimates!$FI$148","v":16},{"$f":"CntyDataLinkPrior5YearEstimates!$FZ$148","v":0},{"$f":"CntyDataLinkPrior5YearEstimates!$GA$148","v":16}]
[null,null,null,"Percent not computed",{"$f":"CntyDataLinkPrior5YearEstimates!$V$156","v":17},{"$f":"CntyDataLinkPrior5YearEstimates!$W$156","v":26},null,{"$f":"CntyDataLinkPrior5YearEstimates!$BX$148","v":0},{"$f":"CntyDataLinkPrior5YearEstimates!$BY$148","v":16},{"$f":"CntyDataLinkPrior5YearEstimates!$CP$148","v":0},{"$f":"CntyDataLinkPrior5YearEstimates!$CQ$148","v":16},{"$f":"CntyDataLinkPrior5YearEstimates!$DH$148","v":0},{"$f":"CntyDataLinkPrior5YearEstimates!$DI$148","v":16},{"$f":"CntyDataLinkPrior5YearEstimates!$DZ$148","v":0},{"$f":"CntyDataLinkPrior5YearEstimates!$EA$148","v":16},{"$f":"CntyDataLinkPrior5YearEstimates!$ER$148","v":0},{"$f":"CntyDataLinkPrior5YearEstimates!$ES$148","v":16},{"$f":"CntyDataLinkPrior5YearEstimates!$FJ$148","v":0},{"$f":"CntyDataLinkPrior5YearEstimates!$FK$148","v":16},{"$f":"CntyDataLinkPrior5YearEstimates!$GB$148","v":17},{"$f":"CntyDataLinkPrior5YearEstimates!$GC148","v":26}]
[]
[]
[null,null,null,"Percent of Households Paying ",null,null,null,"By Household Income"]
[null,null,null,{"$f":"D56","v":"Rent Less Than 30% of HH Income"},{"$f":"E56/E$52","v":0.34755134281200634},null,null,{"$f":"H56/H$52","v":0},null,{"$f":"J56/J$52","v":8.8235294117647065E-2},null,{"$f":"L56/L$52","v":0.64800000000000002},null,{"$f":"N56/N$52","v":0.31818181818181818},null,{"$f":"P56/P$52","v":{"$error":"#DIV/0!"}},null,{"$f":"R56/R$52","v":1},null,{"$f":"T56/T$52","v":0.71666666666666667}]
[null,null,null,{"$f":"D57","v":"Rent 30% or More of HH Income"},{"$f":"E57/E$52","v":0.62559241706161139},null,null,{"$f":"H57/H$52","v":1},null,{"$f":"J57/J$52","v":0.91176470588235292},null,{"$f":"L57/L$52","v":0.35199999999999998},null,{"$f":"N57/N$52","v":0.68181818181818177},null,{"$f":"P57/P$52","v":{"$error":"#DIV/0!"}},null,{"$f":"R57/R$52","v":0},null,{"$f":"T57/T$52","v":0}]
[null,null,null,{"$f":"D59","v":"Rent Less Than 35% of HH Income"},{"$f":"E59/E$52","v":0.39494470774091628},null,null,{"$f":"H59/H$52","v":0},null,{"$f":"J59/J$52","v":8.8235294117647065E-2},null,{"$f":"L59/L$52","v":0.64800000000000002},null,{"$f":"N59/N$52","v":0.46969696969696972},null,{"$f":"P59/P$52","v":{"$error":"#DIV/0!"}},null,{"$f":"R59/R$52","v":1},null,{"$f":"T59/T$52","v":0.71666666666666667}]
[null,null,null,{"$f":"D60","v":"Rent 35% or More of HH Income"},{"$f":"E60/E$52","v":0.5781990521327014},null,null,{"$f":"H60/H$52","v":1},null,{"$f":"J60/J$52","v":0.91176470588235292},null,{"$f":"L60/L$52","v":0.35199999999999998},null,{"$f":"N60/N$52","v":0.53030303030303028},null,{"$f":"P60/P$52","v":{"$error":"#DIV/0!"}},null,{"$f":"R60/R$52","v":0},null,{"$f":"T60/T$52","v":0}]
[null,null,null,"Rent 50% or More of HH Income",{"$f":"E61/E$52","v":0.31595576619273302},null,null,{"$f":"H61/H$52","v":1},null,{"$f":"J61/J$52","v":0.82843137254901966},null,{"$f":"L61/L$52","v":0},null,{"$f":"N61/N$52","v":0},null,{"$f":"P61/P$52","v":{"$error":"#DIV/0!"}},null,{"$f":"R61/R$52","v":0},null,{"$f":"T61/T$52","v":0}]
[null,null,null,"Percent not computed",{"$f":"E62/E$52","v":2.6856240126382307E-2},null,null,{"$f":"H62/H$52","v":0},null,{"$f":"J62/J$52","v":0},null,{"$f":"L62/L$52","v":0},null,{"$f":"N62/N$52","v":0},null,{"$f":"P62/P$52","v":{"$error":"#DIV/0!"}},null,{"$f":"R62/R$52","v":0},null,{"$f":"T62/T$52","v":0.28333333333333333}]
[]
[]
[null,null,null,"Source:  2013-2017 American Community Survey Table B25070; B25074"]
[]
[null,null,null,{"$f":"D41","v":"Income in 2017 Inflation Adjusted Dollars"}]
[null,null,null,"Data from the American Community Survey are estimates"]
[]
[]
[]
[null,null,null,{"$f":"CntyDataLinkPrior5YearEstimates!A70","v":"Wolfeboro"}]
[null,null,null,{"$f":"D4","v":"RENTAL HOUSING COST CHARACTERISTICS"}]
[]
[null,null,null,"Rental Housing Costs"]
[]
[null,null,null,"Renter Occupied Housing Units By Gross Rent "]
[]
[null,null,null,null,"Units","Margin of Error"]
[null,null,{"$f":"CntyDataLinkPrior5YearEstimates!E$69","v":0},"Specified Renter Occ Housing Units",{"$f":"CntyDataLinkPrior5YearEstimates!$B$148","v":633},{"$f":"CntyDataLinkPrior5YearEstimates!$C$148","v":207}]
[null,null,{"$f":"CntyDataLinkPrior5YearEstimates!F$69","v":0},"Renter Occ. Housing Units w/ Cash Rent",{"$f":"CntyDataLinkPrior5YearEstimates!$D$148","v":616},{"$f":"CntyDataLinkPrior5YearEstimates!$E$148","v":204}]
[]
[null,null,{"$f":"CntyDataLinkPrior5YearEstimates!G$69","v":0},"Gross Rent","Units","Margin of Error 2017-2021"]
[null,null,{"$f":"CntyDataLinkPrior5YearEstimates!H$69","v":0},"Less than $100",{"$f":"CntyDataLinkPrior5YearEstimates!$F$148","v":0},{"$f":"CntyDataLinkPrior5YearEstimates!$G$148","v":16}]
[null,null,{"$f":"CntyDataLinkPrior5YearEstimates!I$69","v":0},"$100 to $149",{"$f":"CntyDataLinkPrior5YearEstimates!$H$148","v":0},{"$f":"CntyDataLinkPrior5YearEstimates!$I$148","v":16}]
[null,null,{"$f":"CntyDataLinkPrior5YearEstimates!J$69","v":0},"$150 to $199",{"$f":"CntyDataLinkPrior5YearEstimates!J$148","v":0},{"$f":"CntyDataLinkPrior5YearEstimates!$K$148","v":16}]
[null,null,{"$f":"CntyDataLinkPrior5YearEstimates!K$69","v":0},"$200 to $249",{"$f":"CntyDataLinkPrior5YearEstimates!$L$148","v":0},{"$f":"CntyDataLinkPrior5YearEstimates!$M$148","v":16}]
[null,null,{"$f":"CntyDataLinkPrior5YearEstimates!L$69","v":0},"$250 to $299",{"$f":"CntyDataLinkPrior5YearEstimates!$N$148","v":0},{"$f":"CntyDataLinkPrior5YearEstimates!$O$148","v":16}]
[null,null,{"$f":"CntyDataLinkPrior5YearEstimates!M$69","v":0},"$300 to $349",{"$f":"CntyDataLinkPrior5YearEstimates!$P$148","v":18},{"$f":"CntyDataLinkPrior5YearEstimates!$Q$148","v":30}]
[null,null,{"$f":"CntyDataLinkPrior5YearEstimates!N$69","v":0},"$350 to $399",{"$f":"CntyDataLinkPrior5YearEstimates!$R$148","v":0},{"$f":"CntyDataLinkPrior5YearEstimates!$S$148","v":16}]
[null,null,{"$f":"CntyDataLinkPrior5YearEstimates!O$69","v":0},"$400 to $449",{"$f":"CntyDataLinkPrior5YearEstimates!$T$148","v":17},{"$f":"CntyDataLinkPrior5YearEstimates!$U$148","v":28}]
[null,null,{"$f":"CntyDataLinkPrior5YearEstimates!P$69","v":0},"$450 to $499",{"$f":"CntyDataLinkPrior5YearEstimates!$V$148","v":56},{"$f":"CntyDataLinkPrior5YearEstimates!$W$148","v":86}]
[null,null,{"$f":"CntyDataLinkPrior5YearEstimates!Q$69","v":0},"$500 to $549",{"$f":"CntyDataLinkPrior5YearEstimates!$X$148","v":0},{"$f":"CntyDataLinkPrior5YearEstimates!$Y$148","v":16}]
[null,null,{"$f":"CntyDataLinkPrior5YearEstimates!R$69","v":0},"$550 to $599",{"$f":"CntyDataLinkPrior5YearEstimates!$Z$148","v":0},{"$f":"CntyDataLinkPrior5YearEstimates!$AA$148","v":16}]
[null,null,{"$f":"CntyDataLinkPrior5YearEstimates!S$69","v":0},"$600 to $649",{"$f":"CntyDataLinkPrior5YearEstimates!$AB$148","v":25},{"$f":"CntyDataLinkPrior5YearEstimates!$AC$148","v":41}]
[null,null,{"$f":"CntyDataLinkPrior5YearEstimates!T$69","v":0},"$650 to $699",{"$f":"CntyDataLinkPrior5YearEstimates!$AD$148","v":33},{"$f":"CntyDataLinkPrior5YearEstimates!$AE$148","v":49}]
[null,null,{"$f":"CntyDataLinkPrior5YearEstimates!U$69","v":0},"$700 to $749",{"$f":"CntyDataLinkPrior5YearEstimates!$AF$148","v":0},{"$f":"CntyDataLinkPrior5YearEstimates!$AG$148","v":16}]
[null,null,{"$f":"CntyDataLinkPrior5YearEstimates!V$69","v":0},"$750 to $799",{"$f":"CntyDataLinkPrior5YearEstimates!$AH$148","v":136},{"$f":"CntyDataLinkPrior5YearEstimates!$AI$148","v":141}]
[null,null,{"$f":"CntyDataLinkPrior5YearEstimates!W$69","v":0},"$800 to $899",{"$f":"CntyDataLinkPrior5YearEstimates!$AJ$148","v":63},{"$f":"CntyDataLinkPrior5YearEstimates!$AK$148","v":79}]
[null,null,{"$f":"CntyDataLinkPrior5YearEstimates!X$69","v":0},"$900 to $999",{"$f":"CntyDataLinkPrior5YearEstimates!$AL$148","v":74},{"$f":"CntyDataLinkPrior5YearEstimates!$AM$148","v":66}]
[null,null,{"$f":"CntyDataLinkPrior5YearEstimates!Y$69","v":0},"$1000 to $1249",{"$f":"CntyDataLinkPrior5YearEstimates!$AN$148","v":43},{"$f":"CntyDataLinkPrior5YearEstimates!$AO$148","v":71}]
[null,null,{"$f":"CntyDataLinkPrior5YearEstimates!Z$69","v":0},"$1250 to $1499",{"$f":"CntyDataLinkPrior5YearEstimates!$AP$148","v":133},{"$f":"CntyDataLinkPrior5YearEstimates!$AQ$148","v":109}]
[null,null,{"$f":"CntyDataLinkPrior5YearEstimates!AA$69","v":0},"$1500 to $1999",{"$f":"CntyDataLinkPrior5YearEstimates!$AR$148","v":18},{"$f":"CntyDataLinkPrior5YearEstimates!$AS$148","v":29}]
[null,null,{"$f":"CntyDataLinkPrior5YearEstimates!AB$69","v":0},"$2,000 to $2,499",{"$f":"CntyDataLinkPrior5YearEstimates!$AT$148","v":0},{"$f":"CntyDataLinkPrior5YearEstimates!$AU$148","v":16}]
[null,null,{"$f":"CntyDataLinkPrior5YearEstimates!AC$69","v":0},"$2,500 to $2,999",{"$f":"CntyDataLinkPrior5YearEstimates!$AV$148","v":0},{"$f":"CntyDataLinkPrior5YearEstimates!$AW$148","v":16}]
[null,null,null,"$3,000 to $3,499",{"$f":"CntyDataLinkPrior5YearEstimates!$AX$148","v":0},{"$f":"CntyDataLinkPrior5YearEstimates!$AY$148","v":16}]
[null,null,null,"$3,500 or more",{"$f":"CntyDataLinkPrior5YearEstimates!$AZ$148","v":0},{"$f":"CntyDataLinkPrior5YearEstimates!$BA$148","v":16}]
[null,null,null,"Renter Occ. Housing Units w/ No Cash Rent",{"$f":"CntyDataLinkPrior5YearEstimates!$BB$148","v":17},{"$f":"CntyDataLinkPrior5YearEstimates!$BC$148","v":26}]
[]
[null,null,null,"Median Gross Rent",{"$f":"CntyDataLinkPrior5YearEstimates!$BD$148","v":837},{"$f":"CntyDataLinkPrior5YearEstimates!$BE$148","v":144}]
[]
[]
[]
[]
[null,null,null,"Source: 2017-2021 American Community Survey Table B25063; B25064"]
[null,null,null,"Data from the American Community Survey are estimates"]

{"sheet":"RentalHousingCost-Prior10Yr","index":59,"n_rows":125,"n_cols":21,"rows_kept":125,"cut":false,"hidden":true,"merged":[]}
[]
[null,null,"HIDE THIS COLUMN",{"$f":"CntyDataLinkPrior10YearEstimate!A120","v":"Wolfeboro"}]
[]
[null,null,null,"RENTAL HOUSING COST CHARACTERISTICS"]
[]
[]
[]
[]
[]
[]
[]
[]
[]
[]
[]
[]
[]
[]
[]
[]
[]
[]
[]
[]
[]
[]
[]
[]
[]
[]
[]
[]
[]
[]
[]
[]
[]
[]
[null,null,null,"Source:  2008-2012 American Community Survey Table B25074"]
[]
[null,null,null,"Income in 2012 Inflation Adjusted Dollars"]
[null,null,null,"Data from the American Community Survey are estimates"]
[null,null,null,{"$f":"CntyDataLinkPrior10YearEstimate!A120","v":"Wolfeboro"}]
[]
[null,null,null,{"$f":"D4","v":"RENTAL HOUSING COST CHARACTERISTICS"}]
[]
[null,null,null,"Renter Households by "]
[null,null,null,"Gross Rent as a Percent of 2012 Household Income"]
[null,null,null,null,null,null,"By Household Income"]
[null,null,{"$f":"CntyDataLinkPrior10YearEstimate!AO$69","v":0},null,"Specified Renter Occ Housing Units",{"$f":"\"Margin of Error Renter Occupied Units\"","v":"Margin of Error Renter Occupied Units"},null,"Less than $10,000",{"$f":"\"Margin of Error \"&H50","v":"Margin of Error Less than $10,000"},"$10,000 to $19,999",{"$f":"\"Margin of Error \"&J50","v":"Margin of Error $10,000 to $19,999"},"$20,000 to $34,999",{"$f":"\"Margin of Error \"&L50","v":"Margin of Error $20,000 to $34,999"},"$35,000 to $49,999",{"$f":"\"Margin of Error \"&N50","v":"Margin of Error $35,000 to $49,999"},"$50,000 to $74,999",{"$f":"\"Margin of Error \"&P50","v":"Margin of Error $50,000 to $74,999"},"$75,000 to $99,999",{"$f":"\"Margin of Error \"&R50","v":"Margin of Error $75,000 to $99,999"},"$100,000 or More",{"$f":"\"Margin of Error \"&T50","v":"Margin of Error $100,000 or More"}]
[]
[null,null,null,"All Renter Households",{"$f":"CntyDataLinkPrior10YearEstimate!$B$156","v":425},{"$f":"CntyDataLinkPrior10YearEstimate!$C$156","v":154},null,{"$f":"CntyDataLinkPrior10YearEstimate!$BH$148","v":30},{"$f":"CntyDataLinkPrior10YearEstimate!$BI$148","v":36},{"$f":"CntyDataLinkPrior10YearEstimate!$BZ$148","v":116},{"$f":"CntyDataLinkPrior10YearEstimate!$CA$148","v":99},{"$f":"CntyDataLinkPrior10YearEstimate!$CR$148","v":110},{"$f":"CntyDataLinkPrior10YearEstimate!$CS$148","v":105},{"$f":"CntyDataLinkPrior10YearEstimate!$DJ$148","v":94},{"$f":"CntyDataLinkPrior10YearEstimate!$DK$148","v":97},{"$f":"CntyDataLinkPrior10YearEstimate!$EB$148","v":38},{"$f":"CntyDataLinkPrior10YearEstimate!$EC$148","v":36},{"$f":"CntyDataLinkPrior10YearEstimate!$ET$148","v":16},{"$f":"CntyDataLinkPrior10YearEstimate!$EU$148","v":32},{"$f":"CntyDataLinkPrior10YearEstimate!$FL$148","v":21},{"$f":"CntyDataLinkPrior10YearEstimate!$FM$148","v":25}]
[null,null,null,"Rent Less than 20% of HH Income",{"$f":"CntyDataLinkPrior10YearEstimate!$D$156","v":58},{"$f":"CntyDataLinkPrior10YearEstimate!$E$156","v":52.735187493740838},null,{"$f":"CntyDataLinkPrior10YearEstimate!$BJ$148","v":0},{"$f":"CntyDataLinkPrior10YearEstimate!$BK$148","v":16},{"$f":"CntyDataLinkPrior10YearEstimate!$CB$148","v":0},{"$f":"CntyDataLinkPrior10YearEstimate!$CC$148","v":16},{"$f":"CntyDataLinkPrior10YearEstimate!$CT$148","v":0},{"$f":"CntyDataLinkPrior10YearEstimate!$CU$148","v":16},{"$f":"CntyDataLinkPrior10YearEstimate!$DL$148","v":18},{"$f":"CntyDataLinkPrior10YearEstimate!$DM$148","v":30},{"$f":"CntyDataLinkPrior10YearEstimate!$ED$148","v":13},{"$f":"CntyDataLinkPrior10YearEstimate!$EE$148","v":22},{"$f":"CntyDataLinkPrior10YearEstimate!$EV$148","v":16},{"$f":"CntyDataLinkPrior10YearEstimate!$EW$148","v":32},{"$f":"CntyDataLinkPrior10YearEstimate!$FN$148","v":11},{"$f":"CntyDataLinkPrior10YearEstimate!$FO$148","v":18}]
[null,null,null,"Rent 20% to 24.9% of HH Income",{"$f":"CntyDataLinkPrior10YearEstimate!$F$156","v":0},{"$f":"CntyDataLinkPrior10YearEstimate!$G$156","v":16},null,{"$f":"CntyDataLinkPrior10YearEstimate!$BL$148","v":0},{"$f":"CntyDataLinkPrior10YearEstimate!$BM$148","v":16},{"$f":"CntyDataLinkPrior10YearEstimate!$CD$148","v":0},{"$f":"CntyDataLinkPrior10YearEstimate!$CE$148","v":16},{"$f":"CntyDataLinkPrior10YearEstimate!$CV$148","v":0},{"$f":"CntyDataLinkPrior10YearEstimate!$CW$148","v":16},{"$f":"CntyDataLinkPrior10YearEstimate!$DN$148","v":0},{"$f":"CntyDataLinkPrior10YearEstimate!$DO$148","v":16},{"$f":"CntyDataLinkPrior10YearEstimate!$EF$148","v":0},{"$f":"CntyDataLinkPrior10YearEstimate!$EG$148","v":16},{"$f":"CntyDataLinkPrior10YearEstimate!$EX$148","v":0},{"$f":"CntyDataLinkPrior10YearEstimate!$EY$148","v":16},{"$f":"CntyDataLinkPrior10YearEstimate!$FP$148","v":0},{"$f":"CntyDataLinkPrior10YearEstimate!$FQ$148","v":16}]
[null,null,null,"Rent 25% to 29.9% of HH Income",{"$f":"CntyDataLinkPrior10YearEstimate!$H$156","v":59},{"$f":"CntyDataLinkPrior10YearEstimate!$I$156","v":90},null,{"$f":"CntyDataLinkPrior10YearEstimate!$BN$148","v":0},{"$f":"CntyDataLinkPrior10YearEstimate!$BO$148","v":16},{"$f":"CntyDataLinkPrior10YearEstimate!$CF$148","v":0},{"$f":"CntyDataLinkPrior10YearEstimate!$CG$148","v":16},{"$f":"CntyDataLinkPrior10YearEstimate!$CX$148","v":0},{"$f":"CntyDataLinkPrior10YearEstimate!$CY$148","v":16},{"$f":"CntyDataLinkPrior10YearEstimate!$DP$148","v":59},{"$f":"CntyDataLinkPrior10YearEstimate!$DQ$148","v":90},{"$f":"CntyDataLinkPrior10YearEstimate!$EH$148","v":0},{"$f":"CntyDataLinkPrior10YearEstimate!$EI$148","v":16},{"$f":"CntyDataLinkPrior10YearEstimate!$EZ$148","v":0},{"$f":"CntyDataLinkPrior10YearEstimate!$FA$148","v":16},{"$f":"CntyDataLinkPrior10YearEstimate!$FR$148","v":0},{"$f":"CntyDataLinkPrior10YearEstimate!$FS$148","v":16}]
[null,null,null,"Rent Less Than 30% of HH Income",{"$f":"CntyDataLinkPrior10YearEstimate!$J$156","v":117},{"$f":"CntyDataLinkPrior10YearEstimate!$K$156","v":105.53198567259123},null,{"$f":"SUM(H53:H55)","v":0},{"$f":"SQRT((I53^2)+(I54^2)+(I55^2))","v":27.712812921102035},{"$f":"SUM(J53:J55)","v":0},{"$f":"SQRT((K53^2)+(K54^2)+(K55^2))","v":27.712812921102035},{"$f":"SUM(L53:L55)","v":0},{"$f":"SQRT((M53^2)+(M54^2)+(M55^2))","v":27.712812921102035},{"$f":"SUM(N53:N55)","v":77},{"$f":"SQRT((O53^2)+(O54^2)+(O55^2))","v":96.208107766445551},{"$f":"SUM(P53:P55)","v":13},{"$f":"SQRT((Q53^2)+(Q54^2)+(Q55^2))","v":31.559467676118999},{"$f":"SUM(R53:R55)","v":16},{"$f":"SQRT((S53^2)+(S54^2)+(S55^2))","v":39.191835884530846},{"$f":"SUM(T53:T55)","v":11},{"$f":"SQRT((U53^2)+(U54^2)+(U55^2))","v":28.913664589601922}]
[null,null,null,"Rent 30% or More of HH Income",{"$f":"CntyDataLinkPrior10YearEstimate!$L$156","v":271},{"$f":"CntyDataLinkPrior10YearEstimate!$M$156","v":143.11184437355283},null,{"$f":"H60+H58","v":16},{"$f":"SQRT((I58^2)+(I60^2))","v":31.384709652950431},{"$f":"J60+J58","v":103},{"$f":"SQRT((K58^2)+(K60^2))","v":98.310731865854805},{"$f":"L60+L58","v":110},{"$f":"SQRT((M58^2)+(M60^2))","v":105.22357150372724},{"$f":"N60+N58","v":17},{"$f":"SQRT((O58^2)+(O60^2))","v":30.528675044947494},25,{"$f":"SQRT((Q58^2)+(Q60^2))","v":33.120990323358392},{"$f":"R60+R58","v":0},{"$f":"SQRT((S58^2)+(S60^2))","v":22.627416997969522},0,{"$f":"SQRT((U58^2)+(U60^2))","v":22.627416997969522}]
[null,null,null,"Rent 30% to 34.9% of HH Income",{"$f":"CntyDataLinkPrior10YearEstimate!$N$156","v":10},{"$f":"CntyDataLinkPrior10YearEstimate!$O$156","v":16},null,{"$f":"CntyDataLinkPrior10YearEstimate!$BP$148","v":0},{"$f":"CntyDataLinkPrior10YearEstimate!$BQ$148","v":16},{"$f":"CntyDataLinkPrior10YearEstimate!$CH$148","v":0},{"$f":"CntyDataLinkPrior10YearEstimate!$CI$148","v":16},{"$f":"CntyDataLinkPrior10YearEstimate!$CZ$148","v":10},{"$f":"CntyDataLinkPrior10YearEstimate!$DA$148","v":16},{"$f":"CntyDataLinkPrior10YearEstimate!$DR$148","v":0},{"$f":"CntyDataLinkPrior10YearEstimate!$DS$148","v":16},{"$f":"CntyDataLinkPrior10YearEstimate!$EJ$148","v":0},{"$f":"CntyDataLinkPrior10YearEstimate!$EK$148","v":16},{"$f":"CntyDataLinkPrior10YearEstimate!$FB$148","v":0},{"$f":"CntyDataLinkPrior10YearEstimate!$FC$148","v":16},{"$f":"CntyDataLinkPrior10YearEstimate!$FT$148","v":0},{"$f":"CntyDataLinkPrior10YearEstimate!$FU$148","v":16}]
[null,null,null,"Rent Less Than 35% of HH Income",{"$f":"CntyDataLinkPrior10YearEstimate!$P$156","v":127},{"$f":"CntyDataLinkPrior10YearEstimate!$Q$156","v":106.73799698326739},null,{"$f":"SUM(H56,H58)","v":0},{"$f":"SQRT((I56^2)+(I58^2))","v":32},{"$f":"SUM(J56,J58)","v":0},{"$f":"SQRT((K56^2)+(K58^2))","v":32},{"$f":"SUM(L56,L58)","v":10},{"$f":"SQRT((M56^2)+(M58^2))","v":32},77,112.20810776644555,13,{"$f":"SQRT((Q58^2)+(Q56^2))","v":35.383612025908263},{"$f":"SUM(R56,R58)","v":16},{"$f":"SQRT((S58^2)+(S56^2))","v":42.332020977033444},11,{"$f":"SQRT((U58^2)+(U56^2))","v":33.045423283716609}]
[null,null,null,"Rent 35% or More of HH Income",{"$f":"CntyDataLinkPrior10YearEstimate!$R$156","v":261},{"$f":"CntyDataLinkPrior10YearEstimate!$S$156","v":142.21462653327893},null,{"$f":"CntyDataLinkPrior10YearEstimate!$BR$148+CntyDataLinkPrior10YearEstimate!$BT$148+CntyDataLinkPrior10YearEstimate!$BV$148","v":16},{"$f":"SQRT((CntyDataLinkPrior10YearEstimate!$BS$148^2)+(CntyDataLinkPrior10YearEstimate!$BU$148^2)+(CntyDataLinkPrior10YearEstimate!$BW$148^2))","v":27},{"$f":"CntyDataLinkPrior10YearEstimate!$CJ$148+CntyDataLinkPrior10YearEstimate!$CL$148+CntyDataLinkPrior10YearEstimate!$CN$148","v":103},{"$f":"SQRT((CntyDataLinkPrior10YearEstimate!$CK$148^2)+(CntyDataLinkPrior10YearEstimate!$CM$148^2)+(CntyDataLinkPrior10YearEstimate!$CO$148^2))","v":97},{"$f":"CntyDataLinkPrior10YearEstimate!$DB$148+CntyDataLinkPrior10YearEstimate!$DD$148+CntyDataLinkPrior10YearEstimate!$DF$148","v":100},{"$f":"SQRT((CntyDataLinkPrior10YearEstimate!$DC$148^2)+(CntyDataLinkPrior10YearEstimate!$DE$148^2)+(CntyDataLinkPrior10YearEstimate!$DG$148^2))","v":104},{"$f":"CntyDataLinkPrior10YearEstimate!$DT$148+CntyDataLinkPrior10YearEstimate!$DV$148+CntyDataLinkPrior10YearEstimate!$DX$148","v":17},{"$f":"SQRT((CntyDataLinkPrior10YearEstimate!$DU$148^2)+(CntyDataLinkPrior10YearEstimate!$DW$148^2)+(CntyDataLinkPrior10YearEstimate!$DY$148^2))","v":26},{"$f":"CntyDataLinkPrior10YearEstimate!$EL$148+CntyDataLinkPrior10YearEstimate!$EN$148+CntyDataLinkPrior10YearEstimate!$EP$148","v":25},{"$f":"SQRT((CntyDataLinkPrior10YearEstimate!$EM$148^2)+(CntyDataLinkPrior10YearEstimate!$EO$148^2)+(CntyDataLinkPrior10YearEstimate!$EQ$148^2))","v":29},{"$f":"CntyDataLinkPrior10YearEstimate!$FD$148+CntyDataLinkPrior10YearEstimate!$FF$148+CntyDataLinkPrior10YearEstimate!$FH$148","v":0},{"$f":"SQRT((CntyDataLinkPrior10YearEstimate!$FE$148^2)+(CntyDataLinkPrior10YearEstimate!$FG$148^2)+(CntyDataLinkPrior10YearEstimate!$FI$148^2))","v":16},{"$f":"CntyDataLinkPrior10YearEstimate!$FV$148+CntyDataLinkPrior10YearEstimate!$FX$148+CntyDataLinkPrior10YearEstimate!$FZ$148","v":0},{"$f":"SQRT((CntyDataLinkPrior10YearEstimate!$FW$148^2)+(CntyDataLinkPrior10YearEstimate!$FY$148^2)+(CntyDataLinkPrior10YearEstimate!$GA$148^2))","v":16}]
[null,null,null,"Rent 50% or More of HH Income",{"$f":"CntyDataLinkPrior10YearEstimate!$T$156","v":167},{"$f":"CntyDataLinkPrior10YearEstimate!$U$156","v":118},null,{"$f":"CntyDataLinkPrior10YearEstimate!$BV$148","v":0},{"$f":"CntyDataLinkPrior10YearEstimate!$BW$148","v":0},{"$f":"CntyDataLinkPrior10YearEstimate!$CN$148","v":0},{"$f":"CntyDataLinkPrior10YearEstimate!$CO$148","v":0},{"$f":"CntyDataLinkPrior10YearEstimate!$DF$148","v":0},{"$f":"CntyDataLinkPrior10YearEstimate!$DG$148","v":0},{"$f":"CntyDataLinkPrior10YearEstimate!$DX$148","v":0},{"$f":"CntyDataLinkPrior10YearEstimate!$DY$148","v":0},{"$f":"CntyDataLinkPrior10YearEstimate!$EP$148","v":0},{"$f":"CntyDataLinkPrior10YearEstimate!$EQ$148","v":0},{"$f":"CntyDataLinkPrior10YearEstimate!$FH$148","v":0},{"$f":"CntyDataLinkPrior10YearEstimate!$FI$148","v":0},{"$f":"CntyDataLinkPrior10YearEstimate!$FZ$148","v":0},{"$f":"CntyDataLinkPrior10YearEstimate!$GA$148","v":0}]
[null,null,null,"Percent not computed",{"$f":"CntyDataLinkPrior10YearEstimate!$V$156","v":37},{"$f":"CntyDataLinkPrior10YearEstimate!$W$156","v":35},null,{"$f":"CntyDataLinkPrior10YearEstimate!$BX$148","v":14},{"$f":"CntyDataLinkPrior10YearEstimate!$BY$148","v":23},{"$f":"CntyDataLinkPrior10YearEstimate!$CP$148","v":13},{"$f":"CntyDataLinkPrior10YearEstimate!$CQ$148","v":21},{"$f":"CntyDataLinkPrior10YearEstimate!$DH$148","v":0},{"$f":"CntyDataLinkPrior10YearEstimate!$DI$148","v":16},{"$f":"CntyDataLinkPrior10YearEstimate!$DZ$148","v":0},{"$f":"CntyDataLinkPrior10YearEstimate!$EA$148","v":16},{"$f":"CntyDataLinkPrior10YearEstimate!$ER$148","v":0},{"$f":"CntyDataLinkPrior10YearEstimate!$ES$148","v":16},{"$f":"CntyDataLinkPrior10YearEstimate!$FJ$148","v":0},{"$f":"CntyDataLinkPrior10YearEstimate!$FK$148","v":16},{"$f":"CntyDataLinkPrior10YearEstimate!$GB$148","v":10},{"$f":"CntyDataLinkPrior10YearEstimate!$GC148","v":16}]
[]
[]
[null,null,null,"Percent of Households Paying ",null,null,null,"By Household Income"]
[null,null,null,{"$f":"D56","v":"Rent Less Than 30% of HH Income"},{"$f":"E56/E$52","v":0.2752941176470588},null,null,{"$f":"H56/H$52","v":0},null,{"$f":"J56/J$52","v":0},null,{"$f":"L56/L$52","v":0},null,{"$f":"N56/N$52","v":0.81914893617021278},null,{"$f":"P56/P$52","v":0.34210526315789475},null,{"$f":"R56/R$52","v":1},null,{"$f":"T56/T$52","v":0.52380952380952384}]
[null,null,null,{"$f":"D57","v":"Rent 30% or More of HH Income"},{"$f":"E57/E$52","v":0.63764705882352946},null,null,{"$f":"H57/H$52","v":0.53333333333333333},null,{"$f":"J57/J$52","v":0.88793103448275867},null,{"$f":"L57/L$52","v":1},null,{"$f":"N57/N$52","v":0.18085106382978725},null,{"$f":"P57/P$52","v":0.65789473684210531},null,{"$f":"R57/R$52","v":0},null,{"$f":"T57/T$52","v":0}]
[null,null,null,{"$f":"D59","v":"Rent Less Than 35% of HH Income"},{"$f":"E59/E$52","v":0.29882352941176471},null,null,{"$f":"H59/H$52","v":0},null,{"$f":"J59/J$52","v":0},null,{"$f":"L59/L$52","v":9.0909090909090912E-2},null,{"$f":"N59/N$52","v":0.81914893617021278},null,{"$f":"P59/P$52","v":0.34210526315789475},null,{"$f":"R59/R$52","v":1},null,{"$f":"T59/T$52","v":0.52380952380952384}]
[null,null,null,{"$f":"D60","v":"Rent 35% or More of HH Income"},{"$f":"E60/E$52","v":0.61411764705882355},null,null,{"$f":"H60/H$52","v":0.53333333333333333},null,{"$f":"J60/J$52","v":0.88793103448275867},null,{"$f":"L60/L$52","v":0.90909090909090906},null,{"$f":"N60/N$52","v":0.18085106382978725},null,{"$f":"P60/P$52","v":0.65789473684210531},null,{"$f":"R60/R$52","v":0},null,{"$f":"T60/T$52","v":0}]
[null,null,null,"Rent 50% or More of HH Income",{"$f":"E61/E$52","v":0.39294117647058824},null,null,{"$f":"H61/H$52","v":0},null,{"$f":"J61/J$52","v":0},null,{"$f":"L61/L$52","v":0},null,{"$f":"N61/N$52","v":0},null,{"$f":"P61/P$52","v":0},null,{"$f":"R61/R$52","v":0},null,{"$f":"T61/T$52","v":0}]
[null,null,null,"Percent not computed",{"$f":"E62/E$52","v":8.7058823529411758E-2},null,null,{"$f":"H62/H$52","v":0.46666666666666667},null,{"$f":"J62/J$52","v":0.11206896551724138},null,{"$f":"L62/L$52","v":0},null,{"$f":"N62/N$52","v":0},null,{"$f":"P62/P$52","v":0},null,{"$f":"R62/R$52","v":0},null,{"$f":"T62/T$52","v":0.47619047619047616}]
[]
[]
[null,null,null,"Source:  2008-2012 American Community Survey Table B25070; B25074"]
[]
[null,null,null,{"$f":"D41","v":"Income in 2012 Inflation Adjusted Dollars"}]
[null,null,null,"Data from the American Community Survey are estimates"]
[]
[]
[]
[null,null,null,{"$f":"CntyDataLinkPrior10YearEstimate!A70","v":"Wolfeboro"}]
[null,null,null,{"$f":"D4","v":"RENTAL HOUSING COST CHARACTERISTICS"}]
[]
[null,null,null,"Rental Housing Costs"]
[]
[null,null,null,"Renter Occupied Housing Units By Gross Rent "]
[]
[null,null,null,null,"Units","Margin of Error"]
[null,null,{"$f":"CntyDataLinkPrior10YearEstimate!E$69","v":0},"Specified Renter Occ Housing Units",{"$f":"CntyDataLinkPrior10YearEstimate!$B$148","v":425},{"$f":"CntyDataLinkPrior10YearEstimate!$C$148","v":154}]
[null,null,{"$f":"CntyDataLinkPrior10YearEstimate!F$69","v":0},"Renter Occ. Housing Units w/ Cash Rent",{"$f":"CntyDataLinkPrior10YearEstimate!$D$148","v":402},{"$f":"CntyDataLinkPrior10YearEstimate!$E$148","v":154}]
[]
[null,null,{"$f":"CntyDataLinkPrior10YearEstimate!G$69","v":0},"Gross Rent","Units","Margin of Error 2018-2022"]
[null,null,{"$f":"CntyDataLinkPrior10YearEstimate!H$69","v":0},"Less than $100",{"$f":"CntyDataLinkPrior10YearEstimate!$F$148","v":0},{"$f":"CntyDataLinkPrior10YearEstimate!$G$148","v":16}]
[null,null,{"$f":"CntyDataLinkPrior10YearEstimate!I$69","v":0},"$100 to $149",{"$f":"CntyDataLinkPrior10YearEstimate!$H$148","v":0},{"$f":"CntyDataLinkPrior10YearEstimate!$I$148","v":16}]
[null,null,{"$f":"CntyDataLinkPrior10YearEstimate!J$69","v":0},"$150 to $199",{"$f":"CntyDataLinkPrior10YearEstimate!J$148","v":0},{"$f":"CntyDataLinkPrior10YearEstimate!$K$148","v":16}]
[null,null,{"$f":"CntyDataLinkPrior10YearEstimate!K$69","v":0},"$200 to $249",{"$f":"CntyDataLinkPrior10YearEstimate!$L$148","v":14},{"$f":"CntyDataLinkPrior10YearEstimate!$M$148","v":23}]
[null,null,{"$f":"CntyDataLinkPrior10YearEstimate!L$69","v":0},"$250 to $299",{"$f":"CntyDataLinkPrior10YearEstimate!$N$148","v":0},{"$f":"CntyDataLinkPrior10YearEstimate!$O$148","v":16}]
[null,null,{"$f":"CntyDataLinkPrior10YearEstimate!M$69","v":0},"$300 to $349",{"$f":"CntyDataLinkPrior10YearEstimate!$P$148","v":0},{"$f":"CntyDataLinkPrior10YearEstimate!$Q$148","v":16}]
[null,null,{"$f":"CntyDataLinkPrior10YearEstimate!N$69","v":0},"$350 to $399",{"$f":"CntyDataLinkPrior10YearEstimate!$R$148","v":0},{"$f":"CntyDataLinkPrior10YearEstimate!$S$148","v":16}]
[null,null,{"$f":"CntyDataLinkPrior10YearEstimate!O$69","v":0},"$400 to $449",{"$f":"CntyDataLinkPrior10YearEstimate!$T$148","v":18},{"$f":"CntyDataLinkPrior10YearEstimate!$U$148","v":30}]
[null,null,{"$f":"CntyDataLinkPrior10YearEstimate!P$69","v":0},"$450 to $499",{"$f":"CntyDataLinkPrior10YearEstimate!$V$148","v":0},{"$f":"CntyDataLinkPrior10YearEstimate!$W$148","v":16}]
[null,null,{"$f":"CntyDataLinkPrior10YearEstimate!Q$69","v":0},"$500 to $549",{"$f":"CntyDataLinkPrior10YearEstimate!$X$148","v":0},{"$f":"CntyDataLinkPrior10YearEstimate!$Y$148","v":16}]
[null,null,{"$f":"CntyDataLinkPrior10YearEstimate!R$69","v":0},"$550 to $599",{"$f":"CntyDataLinkPrior10YearEstimate!$Z$148","v":13},{"$f":"CntyDataLinkPrior10YearEstimate!$AA$148","v":22}]
[null,null,{"$f":"CntyDataLinkPrior10YearEstimate!S$69","v":0},"$600 to $649",{"$f":"CntyDataLinkPrior10YearEstimate!$AB$148","v":32},{"$f":"CntyDataLinkPrior10YearEstimate!$AC$148","v":39}]
[null,null,{"$f":"CntyDataLinkPrior10YearEstimate!T$69","v":0},"$650 to $699",{"$f":"CntyDataLinkPrior10YearEstimate!$AD$148","v":47},{"$f":"CntyDataLinkPrior10YearEstimate!$AE$148","v":75}]
[null,null,{"$f":"CntyDataLinkPrior10YearEstimate!U$69","v":0},"$700 to $749",{"$f":"CntyDataLinkPrior10YearEstimate!$AF$148","v":0},{"$f":"CntyDataLinkPrior10YearEstimate!$AG$148","v":16}]
[null,null,{"$f":"CntyDataLinkPrior10YearEstimate!V$69","v":0},"$750 to $799",{"$f":"CntyDataLinkPrior10YearEstimate!$AH$148","v":34},{"$f":"CntyDataLinkPrior10YearEstimate!$AI$148","v":57}]
[null,null,{"$f":"CntyDataLinkPrior10YearEstimate!W$69","v":0},"$800 to $899",{"$f":"CntyDataLinkPrior10YearEstimate!$AJ$148","v":59},{"$f":"CntyDataLinkPrior10YearEstimate!$AK$148","v":90}]
[null,null,{"$f":"CntyDataLinkPrior10YearEstimate!X$69","v":0},"$900 to $999",{"$f":"CntyDataLinkPrior10YearEstimate!$AL$148","v":16},{"$f":"CntyDataLinkPrior10YearEstimate!$AM$148","v":32}]
[null,null,{"$f":"CntyDataLinkPrior10YearEstimate!Y$69","v":0},"$1000 to $1249",{"$f":"CntyDataLinkPrior10YearEstimate!$AN$148","v":117},{"$f":"CntyDataLinkPrior10YearEstimate!$AO$148","v":108}]
[null,null,{"$f":"CntyDataLinkPrior10YearEstimate!Z$69","v":0},"$1250 to $1499",{"$f":"CntyDataLinkPrior10YearEstimate!$AP$148","v":27},{"$f":"CntyDataLinkPrior10YearEstimate!$AQ$148","v":33}]
[null,null,{"$f":"CntyDataLinkPrior10YearEstimate!AA$69","v":0},"$1500 to $1999",{"$f":"CntyDataLinkPrior10YearEstimate!$AR$148","v":11},{"$f":"CntyDataLinkPrior10YearEstimate!$AS$148","v":18}]
[null,null,{"$f":"CntyDataLinkPrior10YearEstimate!AB$69","v":0},"$2,000 to $2,499",{"$f":"CntyDataLinkPrior10YearEstimate!$AT$148","v":14},{"$f":"CntyDataLinkPrior10YearEstimate!$AU$148","v":22}]
[null,null,{"$f":"CntyDataLinkPrior10YearEstimate!AC$69","v":0},"$2,500 to $2,999",{"$f":"CntyDataLinkPrior10YearEstimate!$AV$148","v":0},{"$f":"CntyDataLinkPrior10YearEstimate!$AW$148","v":0}]
[null,null,null,"$3,000 to $3,499",{"$f":"CntyDataLinkPrior10YearEstimate!$AX$148","v":0},{"$f":"CntyDataLinkPrior10YearEstimate!$AY$148","v":0}]
[null,null,null,"$3,500 or more",{"$f":"CntyDataLinkPrior10YearEstimate!$AZ$148","v":0},{"$f":"CntyDataLinkPrior10YearEstimate!$BA$148","v":0}]
[null,null,null,"Renter Occ. Housing Units w/ No Cash Rent",{"$f":"CntyDataLinkPrior10YearEstimate!$BB$148","v":873},{"$f":"CntyDataLinkPrior10YearEstimate!$BC$148","v":258}]
[]
[null,null,null,"Median Gross Rent",{"$f":"CntyDataLinkPrior10YearEstimate!$BD$148","v":0},{"$f":"CntyDataLinkPrior10YearEstimate!$BE$148","v":0}]
[]
[]
[]
[]
[null,null,null,"Source: 2018-2022 American Community Survey Table B25063; B25064"]
[null,null,null,"Data from the American Community Survey are estimates"]

{"sheet":"ACS_Table_B25063_&_B25064","index":60,"n_rows":164,"n_cols":40,"rows_kept":164,"cut":false,"hidden":true,"merged":[]}
[null,"B25063. GROSS RENT"]
[null,"Universe:  RENTER-OCCUPIED HOUSING UNITS"]
[null,"Data Set: 2018-2022 American Community Survey 5-Year Estimates"]
[]
[null,null,"Albany",null,"Bartlett",null,"Brookfield",null,"Chatham",null,"Conway",null,"Eaton",null,"Effingham",null,"Freedom",null,"Hale's Location",null,"Hart's Location",null,"Jackson",null,"Madison",null,"Moultonborough",null,"Ossipee",null,"Sandwich",null,"Tamworth",null,"Tuftonboro",null,"Wakefield",null,"Wolfeboro"]
[null," ","Estimate","Margin of Error","Estimate","Margin of Error","Estimate","Margin of Error","Estimate","Margin of Error","Estimate","Margin of Error","Estimate","Margin of Error","Estimate","Margin of Error","Estimate","Margin of Error","Estimate","Margin of Error","Estimate","Margin of Error","Estimate","Margin of Error","Estimate","Margin of Error","Estimate","Margin of Error","Estimate","Margin of Error","Estimate","Margin of Error","Estimate","Margin of Error","Estimate","Margin of Error","Estimate","Margin of Error","Estimate","Margin of Error"]
[null,"Total:",91,72,346,180,1,5,19,16,1349,254,35,22,72,40,33,48,20,31,0,12,115,59,139,66,231,101,294,118,73,32,341,136,108,67,105,98,622,231]
[null,"With cash rent:",25,16,304,165,0,12,9,7,1304,247,32,22,54,37,33,48,20,31,0,12,107,57,122,58,211,96,233,110,49,29,296,131,101,66,81,87,546,229]
[null,"Less than $100",0,12,0,12,0,12,0,12,0,17,0,12,0,12,0,12,0,12,0,12,0,12,0,12,0,12,0,12,0,12,0,12,0,12,0,17,0,17]
[null,"$100 to $149",0,12,0,12,0,12,0,12,0,17,0,12,0,12,0,12,0,12,0,12,0,12,0,12,0,12,0,12,0,12,0,12,0,12,0,17,0,17]
[null,"$150 to $199",0,12,0,12,0,12,0,12,0,17,0,12,0,12,0,12,0,12,0,12,0,12,0,12,0,12,0,12,0,12,0,12,0,12,0,17,0,17]
[null,"$200 to $249",0,12,0,12,0,12,0,12,19,21,0,12,0,12,0,12,20,31,0,12,0,12,3,5,0,12,0,12,0,12,0,12,0,12,0,17,0,17]
[null,"$250 to $299",0,12,0,12,0,12,0,12,38,57,0,12,0,12,0,12,0,12,0,12,0,12,0,12,0,12,26,42,0,12,0,12,1,4,0,17,0,17]
[null,"$300 to $349",0,12,0,12,0,12,0,12,54,74,0,12,0,12,0,12,0,12,0,12,0,12,0,12,0,12,0,12,0,12,37,56,0,12,0,17,11,19]
[null,"$350 to $399",0,12,0,12,0,12,0,12,0,17,0,12,0,12,0,12,0,12,0,12,0,12,0,12,0,12,0,12,0,12,0,12,0,12,0,17,72,86]
[null,"$400 to $449",0,12,0,12,0,12,0,12,0,17,0,12,0,12,0,12,0,12,0,12,0,12,0,12,0,12,0,12,0,12,0,12,0,12,0,17,0,17]
[null,"$450 to $499",0,12,0,12,0,12,5,7,0,17,0,12,0,12,0,12,0,12,0,12,0,12,0,12,0,12,0,12,3,6,0,12,0,12,0,17,0,17]
[null,"$500 to $549",0,12,0,12,0,12,0,12,0,17,0,12,0,12,0,12,0,12,0,12,0,12,0,12,0,12,9,14,0,12,0,12,0,12,0,17,82,84]
[null,"$550 to $599",0,12,0,12,0,12,0,12,0,17,0,12,0,12,0,12,0,12,0,12,0,12,0,12,0,12,0,12,0,12,0,12,0,12,0,17,0,17]
[null,"$600 to $649",3,4,0,12,0,12,0,12,65,63,0,12,0,12,0,12,0,12,0,12,0,12,0,12,20,31,9,14,0,12,0,12,0,12,11,19,0,17]
[null,"$650 to $699",0,12,0,12,0,12,0,12,0,17,8,13,0,12,0,12,0,12,0,12,0,12,0,12,0,12,0,12,0,12,11,20,0,12,0,17,0,17]
[null,"$700 to $749",2,3,0,12,0,12,0,12,5,8,0,12,0,12,0,12,0,12,0,12,0,12,10,17,0,12,7,10,0,12,0,12,0,12,0,17,0,17]
[null,"$750 to $799",0,12,0,12,0,12,0,12,80,85,6,10,0,12,0,12,0,12,0,12,0,12,0,12,1,10,0,12,0,12,0,12,11,18,0,17,91,104]
[null,"$800 to $899",0,12,0,12,0,12,0,12,82,91,5,7,0,12,0,12,0,12,0,12,0,12,0,12,17,22,35,55,0,12,0,12,0,12,0,17,0,17]
[null,"$900 to $999",14,13,23,34,0,12,4,6,181,113,0,12,29,28,0,12,0,12,0,12,34,34,0,12,9,14,25,39,0,12,81,76,0,12,50,80,0,17]
[null,"$1,000 to $1,249",3,5,38,59,0,12,0,12,346,159,13,11,4,6,0,12,0,12,0,12,0,12,25,24,0,12,21,33,0,12,113,88,30,23,20,25,213,165]
[null,"$1,250 to $1,499",0,12,150,123,0,12,0,12,226,124,0,12,19,20,33,48,0,12,0,12,0,12,46,36,72,61,70,58,15,16,42,52,41,54,0,17,40,45]
[null,"$1,500 to $1,999",3,5,93,84,0,12,0,12,175,89,0,12,0,12,0,12,0,12,0,12,49,55,23,19,63,49,28,41,16,19,12,19,0,12,0,17,12,19]
[null,"$2,000 to $2,499",0,12,0,12,0,12,0,12,10,5,0,12,2,4,0,12,0,12,0,12,24,24,15,13,29,42,3,25,9,13,0,12,0,12,0,17,0,17]
[null," $2,500 to $2,999",0,12,0,12,0,12,0,12,23,29,0,12,0,12,0,12,0,12,0,12,0,12,0,12,0,12,0,12,3,6,0,12,0,12,0,17,25,34]
[null,"$3,000 to $3,499",0,12,0,12,0,12,0,12,0,17,0,12,0,12,0,12,0,12,0,12,0,12,0,12,0,12,0,12,0,12,0,12,18,29,0,17,0,17]
[null,"$3,500 or more",0,12,0,12,0,12,0,12,0,17,0,12,0,12,0,12,0,12,0,12,0,12,0,12,0,12,0,12,3,6,0,12,0,12,0,17,0,17]
[null,"No cash rent",66,70,42,68,1,5,10,15,45,47,3,4,18,15,0,12,0,12,0,12,8,14,17,28,20,20,61,37,24,16,45,35,7,9,24,41,76,57]
[]
[]
[]
[null,"B25064. MEDIAN GROSS RENT (DOLLARS)"]
[null,"Universe:  RENTER-OCCUPIED HOUSING UNITS PAYING CASH RENT"]
[null,"Data Set: 2018-2022 American Community Survey 5-Year Estimates"]
[null,{"$f":"RentalHousingCost!D41","v":"Income in 2022 Inflation Adjusted Dollars"}]
[null,null,"Albany",null,"Bartlett",null,"Brookfield",null,"Chatham",null,"Conway",null,"Eaton",null,"Effingham",null,"Freedom",null,"Hale's Location",null,"Hart's Location",null,"Jackson",null,"Madison",null,"Moultonborough",null,"Ossipee",null,"Sandwich",null,"Tamworth",null,"Tuftonboro",null,"Wakefield",null,"Wolfeboro"]
[null," ","Estimate","Margin of Error","Estimate","Margin of Error","Estimate","Margin of Error","Estimate","Margin of Error","Estimate","Margin of Error","Estimate","Margin of Error","Estimate","Margin of Error","Estimate","Margin of Error","Estimate","Margin of Error","Estimate","Margin of Error","Estimate","Margin of Error","Estimate","Margin of Error","Estimate","Margin of Error","Estimate","Margin of Error","Estimate","Margin of Error","Estimate","Margin of Error","Estimate","Margin of Error","Estimate","Margin of Error","Estimate","Margin of Error"]
[null,"Median gross rent",954,31,1402,100,"-","**","-","**",1092,112,840,245,993,405,"-","**","-","**","-","**",1699,635,1375,134,1453,166,1065,416,1703,471,1042,138,1302,187,959,65,1020,416]
[]
[]
[]
[]
[]
[null,"B25063. GROSS RENT"]
[null,"Universe:  RENTER-OCCUPIED HOUSING UNITS"]
[null,"Data Set: 2013-2017 American Community Survey 5-Year Estimates"]
[]
[null,null,"Albany",null,"Bartlett",null,"Brookfield",null,"Chatham",null,"Conway",null,"Eaton",null,"Effingham",null,"Freedom",null,"Hale's Location",null,"Hart's Location",null,"Jackson",null,"Madison",null,"Moultonborough",null,"Ossipee",null,"Sandwich",null,"Tamworth",null,"Tuftonboro",null,"Wakefield",null,"Wolfeboro"]
[null," ","Estimate","Margin of Error","Estimate","Margin of Error","Estimate","Margin of Error","Estimate","Margin of Error","Estimate","Margin of Error","Estimate","Margin of Error","Estimate","Margin of Error","Estimate","Margin of Error","Estimate","Margin of Error","Estimate","Margin of Error","Estimate","Margin of Error","Estimate","Margin of Error","Estimate","Margin of Error","Estimate","Margin of Error","Estimate","Margin of Error","Estimate","Margin of Error","Estimate","Margin of Error","Estimate","Margin of Error","Estimate","Margin of Error"]
[null,"Total:",42,21,436,142,36,38,18,22,1136,254,30,14,107,48,85,32,0,11,8,9,90,48,175,56,260,93,382,138,104,43,441,148,125,64,225,101,633,207]
[null,"With cash rent:",39,21,381,134,36,38,18,22,1077,243,13,11,91,39,76,30,0,11,8,9,85,49,146,52,182,76,321,129,76,34,441,148,96,56,205,100,616,204]
[null,"Less than $100",0,11,0,11,0,11,0,11,0,18,0,11,0,11,0,11,0,11,0,11,0,11,0,11,0,11,0,11,0,11,0,11,0,11,0,16,0,16]
[null,"$100 to $149",0,11,0,11,0,11,0,11,0,18,0,11,0,11,0,11,0,11,0,11,0,11,0,11,0,11,0,11,0,11,0,11,0,11,0,16,0,16]
[null,"$150 to $199",0,11,0,11,0,11,0,11,17,26,0,11,0,11,0,11,0,11,0,11,0,11,0,11,0,11,0,11,0,11,11,17,0,11,0,16,0,16]
[null,"$200 to $249",0,11,0,11,0,11,0,11,29,33,0,11,0,11,0,11,0,11,0,11,0,11,0,11,13,14,0,11,6,9,28,22,0,11,0,16,0,16]
[null,"$250 to $299",0,11,0,11,0,11,0,11,0,18,0,11,0,11,0,11,0,11,0,11,0,11,0,11,6,10,0,11,0,11,0,11,0,11,0,16,0,16]
[null,"$300 to $349",0,11,0,11,0,11,0,11,0,18,0,11,0,11,0,11,0,11,0,11,0,11,0,11,0,11,31,51,0,11,0,11,0,11,0,16,18,30]
[null,"$350 to $399",0,11,0,11,0,11,0,11,27,33,0,11,0,11,0,11,0,11,0,11,0,11,0,11,6,9,12,20,3,5,0,11,0,11,20,31,0,16]
[null,"$400 to $449",0,11,12,18,0,11,0,11,17,27,0,11,0,11,0,11,0,11,0,11,0,11,0,11,0,11,87,88,4,6,13,19,0,11,17,28,17,28]
[null,"$450 to $499",0,11,37,52,0,11,0,11,0,18,0,11,0,11,0,11,0,11,0,11,0,11,0,11,0,11,0,11,0,11,42,52,0,11,0,16,56,86]
[null,"$500 to $549",0,11,0,11,0,11,0,11,100,90,0,11,0,11,0,11,0,11,0,11,12,19,0,11,0,11,0,11,0,11,0,11,0,11,0,16,0,16]
[null,"$550 to $599",0,11,0,11,0,11,0,11,8,13,0,11,0,11,0,11,0,11,0,11,8,13,0,11,0,11,0,11,0,11,0,11,12,18,17,26,0,16]
[null,"$600 to $649",0,11,34,41,0,11,0,11,18,31,0,11,0,11,0,11,0,11,0,11,0,11,0,11,10,16,0,11,0,11,0,11,0,11,0,16,25,41]
[null,"$650 to $699",0,11,25,41,11,19,7,14,25,34,0,11,3,5,5,6,0,11,5,8,0,11,17,27,7,11,0,11,0,11,26,44,0,11,0,16,33,49]
[null,"$700 to $749",8,15,21,35,0,11,0,11,63,59,0,11,3,4,0,11,0,11,0,11,8,12,17,26,23,36,11,16,0,11,0,11,0,11,18,28,0,16]
[null,"$750 to $799",9,12,53,69,0,11,10,14,12,19,3,4,15,17,0,11,0,11,0,11,7,13,30,27,0,11,32,52,0,11,82,60,0,11,0,16,136,141]
[null,"$800 to $899",3,5,22,35,0,11,1,2,106,97,4,7,22,20,9,9,0,11,0,11,8,13,0,11,0,11,0,11,0,11,107,101,0,11,0,16,63,79]
[null,"$900 to $999",2,3,59,70,0,11,0,11,253,125,0,11,18,20,0,11,0,11,0,11,0,11,0,11,8,12,65,70,22,21,0,11,26,28,29,44,74,66]
[null,"$1,000 to $1,249",1,4,67,59,0,11,0,11,288,145,6,7,0,11,17,18,0,11,0,11,23,27,13,14,13,14,53,60,6,8,55,88,41,42,75,89,43,71]
[null,"$1,250 to $1,499",8,7,23,37,0,11,0,11,107,95,0,11,5,6,28,23,0,11,0,11,8,12,14,15,40,34,30,46,6,7,49,62,12,16,29,48,133,109]
[null,"$1,500 to $1,999",5,6,28,43,0,11,0,11,7,12,0,11,8,11,17,19,0,11,0,11,11,19,40,25,56,58,0,11,29,21,28,32,0,11,0,16,18,29]
[null,"$2,000 to $2,499",3,4,0,11,8,14,0,11,0,18,0,11,13,18,0,11,0,11,3,4,0,11,15,20,0,11,0,11,0,11,0,11,0,11,0,16,0,16]
[null," $2,500 to $2,999",0,11,0,11,17,29,0,11,0,18,0,11,4,6,0,11,0,11,0,11,0,11,0,11,0,11,0,11,0,11,0,11,5,7,0,16,0,16]
[null,"$3,000 to $3,499",0,11,0,11,0,11,0,11,0,18,0,11,0,11,0,11,0,11,0,11,0,11,0,11,0,11,0,11,0,11,0,11,0,11,0,16,0,16]
[null,"$3,500 or more",0,11,0,11,0,11,0,11,0,18,0,11,0,11,0,11,0,11,0,11,0,11,0,11,0,11,0,11,0,11,0,11,0,11,0,16,0,16]
[null,"No cash rent",3,5,55,52,0,11,0,11,59,67,17,14,16,24,9,9,0,11,0,11,5,6,29,30,78,59,61,45,28,25,0,11,29,26,20,24,17,26]
[]
[]
[]
[null,"B25064. MEDIAN GROSS RENT (DOLLARS)"]
[null,"Universe:  RENTER-OCCUPIED HOUSING UNITS PAYING CASH RENT"]
[null,"Data Set: 2013-2017 American Community Survey 5-Year Estimates"]
[null,"Income in 2016 Inflation Adjusted Dollars"]
[null,null,"Albany",null,"Bartlett",null,"Brookfield",null,"Chatham",null,"Conway",null,"Eaton",null,"Effingham",null,"Freedom",null,"Hale's Location",null,"Hart's Location",null,"Jackson",null,"Madison",null,"Moultonborough",null,"Ossipee",null,"Sandwich",null,"Tamworth",null,"Tuftonboro",null,"Wakefield",null,"Wolfeboro"]
[null," ","Estimate","Margin of Error","Estimate","Margin of Error","Estimate","Margin of Error","Estimate","Margin of Error","Estimate","Margin of Error","Estimate","Margin of Error","Estimate","Margin of Error","Estimate","Margin of Error","Estimate","Margin of Error","Estimate","Margin of Error","Estimate","Margin of Error","Estimate","Margin of Error","Estimate","Margin of Error","Estimate","Margin of Error","Estimate","Margin of Error","Estimate","Margin of Error","Estimate","Margin of Error","Estimate","Margin of Error","Estimate","Margin of Error"]
[null,"Median gross rent",883,435,839,180,2438,1933,760,127,946,47,888,271,914,94,1313,142,"-","**","-","**",894,407,1173,546,1281,484,780,493,1125,493,817,70,1061,119,1005,233,837,144]
[]
[]
[]
[]
[]
[]
[]
[]
[]
[]
[]
[]
[]
[]
[]
[]
[]
[]
[]
[]
[]
[]
[]
[]
[]
[]
[null,"B25063. GROSS RENT"]
[null,"Universe:  RENTER-OCCUPIED HOUSING UNITS"]
[null,"Data Set: 2008-2012 American Community Survey 5-Year Estimates"]
[]
[null,null,"Albany",null,"Bartlett",null,"Brookfield",null,"Chatham",null,"Conway",null,"Eaton",null,"Effingham",null,"Freedom",null,"Hale's Location",null,"Hart's Location",null,"Jackson",null,"Madison",null,"Moultonborough",null,"Ossipee",null,"Sandwich",null,"Tamworth",null,"Tuftonboro",null,"Wakefield",null,"Wolfeboro"]
[null," ","Estimate","Margin of Error","Estimate","Margin of Error","Estimate","Margin of Error","Estimate","Margin of Error","Estimate","Margin of Error","Estimate","Margin of Error","Estimate","Margin of Error","Estimate","Margin of Error","Estimate","Margin of Error","Estimate","Margin of Error","Estimate","Margin of Error","Estimate","Margin of Error","Estimate","Margin of Error","Estimate","Margin of Error","Estimate","Margin of Error","Estimate","Margin of Error","Estimate","Margin of Error","Estimate","Margin of Error","Estimate","Margin of Error"]
[null,"Total:",50,26,253,105,15,19,20,13,1618,293,20,17,61,34,72,32,0,11,21,17,73,37,191,79,162,74,293,97,98,37,283,117,134,71,225,131,425,154]
[null,"With cash rent:",46,26,222,99,3,5,15,11,1463,285,19,17,50,29,65,32,0,11,12,12,43,28,172,75,118,62,256,95,84,37,261,114,85,59,209,124,402,154]
[null,"Less than $100",0,11,0,11,0,11,0,11,0,18,0,11,0,11,0,11,0,11,0,11,0,11,0,11,0,11,0,11,0,11,0,11,0,11,0,16,0,16]
[null,"$100 to $149",0,11,0,11,0,11,0,11,0,18,0,11,0,11,0,11,0,11,0,11,0,11,0,11,0,11,0,11,3,5,0,11,0,11,0,16,0,16]
[null,"$150 to $199",0,11,0,11,0,11,0,11,30,34,0,11,0,11,0,11,0,11,0,11,0,11,7,10,0,11,0,11,0,11,0,11,0,11,0,16,0,16]
[null,"$200 to $249",4,6,0,11,0,11,0,11,6,10,0,11,0,11,0,11,0,11,0,11,9,16,0,11,0,11,0,11,0,11,72,77,0,11,0,16,14,23]
[null,"$250 to $299",0,11,0,11,0,11,0,11,24,40,0,11,0,11,0,11,0,11,0,11,0,11,0,11,0,11,0,11,0,11,0,11,0,11,0,16,0,16]
[null,"$300 to $349",0,11,0,11,0,11,0,11,32,36,0,11,0,11,0,11,0,11,0,11,0,11,0,11,0,11,0,11,0,11,7,11,0,11,0,16,0,16]
[null,"$350 to $399",0,11,0,11,0,11,0,11,56,61,0,11,0,11,0,11,0,11,0,11,0,11,0,11,0,11,10,16,0,11,7,11,0,11,18,27,0,16]
[null,"$400 to $449",0,11,12,19,0,11,0,11,63,61,0,11,0,11,0,11,0,11,0,11,0,11,0,11,0,11,0,11,0,11,21,34,0,11,0,16,18,30]
[null,"$450 to $499",7,11,0,11,0,11,0,11,46,45,2,4,0,11,0,11,0,11,0,11,0,11,0,11,0,11,0,11,0,11,0,11,8,12,0,16,0,16]
[null,"$500 to $549",0,11,22,36,0,11,3,5,13,21,0,11,0,11,0,11,0,11,0,11,0,11,0,11,0,11,0,11,0,11,0,11,0,11,0,16,0,16]
[null,"$550 to $599",0,11,0,11,0,11,0,11,58,58,5,9,0,11,0,11,0,11,0,11,6,9,0,11,0,11,0,11,0,11,13,19,0,11,0,16,13,22]
[null,"$600 to $649",0,11,0,11,0,11,0,11,0,18,0,11,3,5,30,26,0,11,0,11,0,11,0,11,0,11,10,17,0,11,0,11,0,11,13,19,32,39]
[null,"$650 to $699",5,8,24,28,0,11,6,9,78,85,0,11,0,11,0,11,0,11,0,11,5,9,19,31,0,11,9,15,0,11,7,10,5,8,0,16,47,75]
[null,"$700 to $749",0,11,18,29,0,11,0,11,128,99,0,11,18,19,6,9,0,11,0,11,0,11,5,8,0,11,17,28,0,11,46,69,20,32,0,16,0,16]
[null,"$750 to $799",0,11,0,11,0,11,0,11,93,95,7,8,0,11,0,11,0,11,0,11,11,12,26,29,6,9,11,17,0,11,0,11,0,11,0,16,34,57]
[null,"$800 to $899",13,16,16,24,3,5,0,11,208,129,0,11,19,17,8,8,0,11,0,11,0,11,36,36,8,14,43,55,17,12,23,27,0,11,113,93,59,90]
[null,"$900 to $999",10,12,82,63,0,11,1,4,280,130,0,11,8,15,9,9,0,11,2,3,0,11,21,34,15,25,35,55,10,15,0,11,28,21,0,16,16,32]
[null,"$1,000 to $1,249",5,6,48,47,0,11,0,11,289,153,5,6,0,11,12,11,0,11,10,13,12,13,58,37,26,26,27,24,36,30,28,23,24,36,0,16,117,108]
[null,"$1,250 to $1,499",2,4,0,11,0,11,0,11,19,21,0,11,2,3,0,11,0,11,0,11,0,11,0,11,45,35,84,60,8,9,37,29,0,11,51,58,27,33]
[null,"$1,500 to $1,999",0,11,0,11,0,11,5,8,40,55,0,11,0,11,0,11,0,11,0,11,0,11,0,11,9,15,10,16,7,9,0,11,0,11,14,21,11,18]
[null,"$2,000 or more",0,11,0,11,0,11,0,11,0,18,0,11,0,11,0,11,0,11,0,11,0,11,0,11,9,15,0,11,3,5,0,11,0,11,0,16,14,22]
[]
[]
[]
[null,"No cash rent",4,5,31,34,12,18,5,7,155,109,1,3,11,15,7,9,0,11,9,12,30,24,19,30,44,44,37,39,14,11,22,26,49,36,16,25,23,26]
[]
[]
[]
[]
[]
[]
[]
[null,"B25064. MEDIAN GROSS RENT (DOLLARS)"]
[null,"Universe:  RENTER-OCCUPIED HOUSING UNITS PAYING CASH RENT"]
[null,"Data Set: 2008-2012 American Community Survey 5-Year Estimates"]
[null,"Income in 2011 Inflation Adjusted Dollars"]
[null,null,"Albany",null,"Bartlett",null,"Brookfield",null,"Chatham",null,"Conway",null,"Eaton",null,"Effingham",null,"Freedom",null,"Hale's Location",null,"Hart's Location",null,"Jackson",null,"Madison",null,"Moultonborough",null,"Ossipee",null,"Sandwich",null,"Tamworth",null,"Tuftonboro",null,"Wakefield",null,"Wolfeboro"]
[null," ","Estimate","Margin of Error","Estimate","Margin of Error","Estimate","Margin of Error","Estimate","Margin of Error","Estimate","Margin of Error","Estimate","Margin of Error","Estimate","Margin of Error","Estimate","Margin of Error","Estimate","Margin of Error","Estimate","Margin of Error","Estimate","Margin of Error","Estimate","Margin of Error","Estimate","Margin of Error","Estimate","Margin of Error","Estimate","Margin of Error","Estimate","Margin of Error","Estimate","Margin of Error","Estimate","Margin of Error","Estimate","Margin of Error"]
[null,"Median gross rent",854,127,923,76,"-","**",688,963,850,80,768,191,821,127,721,207,"-","**",1100,89,757,205,881,132,1272,187,980,288,1083,95,704,372,934,228,865,148,873,258]

{"sheet":"ACS_Table_B25070","index":61,"n_rows":141,"n_cols":40,"rows_kept":141,"cut":false,"hidden":true,"merged":[]}
[null,"B25070. GROSS RENT AS A PERCENTAGE OF HOUSEHOLD INCOME IN THE PAST 12 MONTHS"]
[null,"Universe:  RENTER-OCCUPIED HOUSING UNITS"]
[null,"Data Set: 2018-2022 American Community Survey 5-Year Estimates"]
[]
[null,null,"Albany",null,"Bartlett",null,"Brookfield",null,"Chatham",null,"Conway",null,"Eaton",null,"Effingham",null,"Freedom",null,"Hale's Location",null,"Hart's Location",null,"Jackson",null,"Madison",null,"Moultonborough",null,"Ossipee",null,"Sandwich",null,"Tamworth",null,"Tuftonboro",null,"Wakefield",null,"Wolfeboro"]
[null," ","Estimate","Margin of Error","Estimate","Margin of Error","Estimate","Margin of Error","Estimate","Margin of Error","Estimate","Margin of Error","Estimate","Margin of Error","Estimate","Margin of Error","Estimate","Margin of Error","Estimate","Margin of Error","Estimate","Margin of Error","Estimate","Margin of Error","Estimate","Margin of Error","Estimate","Margin of Error","Estimate","Margin of Error","Estimate","Margin of Error","Estimate","Margin of Error","Estimate","Margin of Error","Estimate","Margin of Error","Estimate","Margin of Error"]
[null,"Total:",91,72,346,180,1,5,19,16,1349,254,35,22,72,40,33,48,20,31,0,12,115,59,139,66,231,101,294,118,73,32,341,136,108,67,105,98,622,231]
[null,"Less than 10.0 percent",3,5,0,12,0,12,0,12,32,37,0,12,4,5,0,12,20,31,0,12,0,12,20,17,29,42,0,12,0,12,0,12,1,4,0,17,72,86]
[null,"10.0 to 14.9 percent",2,3,0,12,0,12,0,12,169,110,0,12,7,7,0,12,0,12,0,12,21,24,33,29,40,53,0,12,5,7,0,12,20,22,11,19,157,166]
[null,"15.0 to 19.9 percent",0,12,61,67,0,12,5,7,140,116,2,5,0,12,0,12,0,12,0,12,24,24,0,12,43,33,59,64,0,12,81,56,6,10,0,17,107,86]
[null,"20.0 to 24.9 percent",3,4,0,12,0,12,0,12,145,88,13,15,30,32,0,12,0,12,0,12,0,12,32,25,59,49,0,12,21,22,0,12,43,54,0,17,20,32]
[null,"25.0 to 29.9 percent",0,12,0,12,0,12,0,12,143,105,2,3,3,5,0,12,0,12,0,12,13,26,0,12,0,12,28,49,5,7,60,69,0,12,6,10,27,27]
[null,"30.0 to 34.9 percent",2,4,34,47,0,12,0,12,97,87,0,12,0,12,0,12,0,12,0,12,0,12,0,12,0,12,0,12,3,6,49,59,31,36,0,17,34,38]
[null,"35.0 to 39.9 percent",0,12,0,12,0,12,0,12,89,76,3,4,0,12,0,12,0,12,0,12,0,12,18,20,0,12,63,66,3,6,78,66,0,12,14,22,0,17]
[null,"40.0 to 49.9 percent",3,5,133,129,0,12,4,6,58,47,6,10,2,4,0,12,0,12,0,12,40,54,1,4,17,24,10,20,0,12,0,12,0,12,50,80,47,34]
[null,"50.0 percent or more",12,13,76,71,0,12,0,12,395,206,6,10,8,8,33,48,0,12,0,12,9,12,18,24,23,26,67,55,12,14,28,33,0,12,0,17,82,105]
[null,"Not computed",66,70,42,68,1,5,10,15,81,70,3,4,18,15,0,12,0,12,0,12,8,14,17,28,20,20,67,39,24,16,45,35,7,9,24,41,76,57]
[]
[]
[]
[]
[]
[]
[]
[]
[]
[]
[]
[]
[]
[]
[]
[]
[]
[null,"Calculated B25070. GROSS RENT AS A PERCENTAGE OF HOUSEHOLD INCOME IN THE PAST 12 MONTHS"]
[null,"Universe:  RENTER-OCCUPIED HOUSING UNITS"]
[null,"Data Set: 2018-2022 American Community Survey 5-Year Estimates"]
[]
[null,null,"Albany",null,"Bartlett",null,"Brookfield",null,"Chatham",null,"Conway",null,"Eaton",null,"Effingham",null,"Freedom",null,"Hale's Location",null,"Hart's Location",null,"Jackson",null,"Madison",null,"Moultonborough",null,"Ossipee",null,"Sandwich",null,"Tamworth",null,"Tuftonboro",null,"Wakefield",null,"Wolfeboro"]
[null," ","Estimate","Margin of Error","Estimate","Margin of Error","Estimate","Margin of Error","Estimate","Margin of Error","Estimate","Margin of Error","Estimate","Margin of Error","Estimate","Margin of Error","Estimate","Margin of Error","Estimate","Margin of Error","Estimate","Margin of Error","Estimate","Margin of Error","Estimate","Margin of Error","Estimate","Margin of Error","Estimate","Margin of Error","Estimate","Margin of Error","Estimate","Margin of Error","Estimate","Margin of Error","Estimate","Margin of Error","Estimate","Margin of Error"]
[null,{"$f":"B7","v":"Total:"},{"$f":"C7","v":91},{"$f":"D7","v":72},{"$f":"E7","v":346},180,1,5,19,16,1349,254,35,22,72,40,33,48,20,31,0,12,115,59,{"$f":"Y7","v":139},66,231,101,294,118,73,32,341,136,108,67,105,98,622,231]
[null,"Less than 20% of HH Income",{"$f":"C8+C9+C10","v":5},{"$f":"SQRT((D8^2)+(D9^2)+(D10^2))","v":13.341664064126334},{"$f":"E8+E9+E10","v":61},{"$f":"SQRT((F8^2)+(F9^2)+(F10^2))","v":69.115844782509896},{"$f":"G8+G9+G10","v":0},{"$f":"SQRT((H8^2)+(H9^2)+(H10^2))","v":20.784609690826528},{"$f":"I8+I9+I10","v":5},{"$f":"SQRT((J8^2)+(J9^2)+(J10^2))","v":18.357559750685819},{"$f":"K8+K9+K10","v":341},{"$f":"SQRT((L8^2)+(L9^2)+(L10^2))","v":164.08839081421939},{"$f":"M8+M9+M10","v":2},{"$f":"SQRT((N8^2)+(N9^2)+(N10^2))","v":17.691806012954132},{"$f":"O8+O9+O10","v":11},{"$f":"SQRT((P8^2)+(P9^2)+(P10^2))","v":14.7648230602334},{"$f":"Q8+Q9+Q10","v":0},{"$f":"SQRT((R8^2)+(R9^2)+(R10^2))","v":20.784609690826528},{"$f":"S8+S9+S10","v":20},{"$f":"SQRT((T8^2)+(T9^2)+(T10^2))","v":35.341194094144583},{"$f":"U8+U9+U10","v":0},{"$f":"SQRT((V8^2)+(V9^2)+(V10^2))","v":20.784609690826528},{"$f":"W8+W9+W10","v":45},{"$f":"SQRT((X8^2)+(X9^2)+(X10^2))","v":36},{"$f":"Y8+Y9+Y10","v":53},{"$f":"SQRT((Z8^2)+(Z9^2)+(Z10^2))","v":35.693136595149497},{"$f":"AA8+AA9+AA10","v":112},{"$f":"SQRT((AB8^2)+(AB9^2)+(AB10^2))","v":75.246262365648434},{"$f":"AC8+AC9+AC10","v":59},{"$f":"SQRT((AD8^2)+(AD9^2)+(AD10^2))","v":66.211781428987393},{"$f":"AE8+AE9+AE10","v":5},{"$f":"SQRT((AF8^2)+(AF9^2)+(AF10^2))","v":18.357559750685819},{"$f":"AG8+AG9+AG10","v":81},{"$f":"SQRT((AH8^2)+(AH9^2)+(AH10^2))","v":58.514955353311173},{"$f":"AI8+AI9+AI10","v":27},{"$f":"SQRT((AJ8^2)+(AJ9^2)+(AJ10^2))","v":24.494897427831781},{"$f":"AK8+AK9+AK10","v":11},{"$f":"SQRT((AL8^2)+(AL9^2)+(AL10^2))","v":30.643106892089126},{"$f":"AM8+AM9+AM10","v":336},{"$f":"SQRT((AN8^2)+(AN9^2)+(AN10^2))","v":205.78629691988726}]
[null," 20% to 24.9% of HH Income",{"$f":"C11","v":3},{"$f":"D11","v":4},{"$f":"E11","v":0},12,0,12,0,12,145,88,13,15,30,32,0,12,0,12,0,12,0,12,{"$f":"Y11","v":32},25,59,49,0,12,21,22,0,12,43,54,0,17,20,32]
[null," 25% to 29.9% of HH Income",{"$f":"C12","v":0},{"$f":"D12","v":12},0,12,0,12,0,12,143,105,2,3,3,5,0,12,0,12,0,12,13,26,{"$f":"Y12","v":0},12,0,12,28,49,5,7,60,69,0,12,6,10,27,27]
[null," Less Than 30% of HH Income",{"$f":"C12+C11+C10+C9+C8","v":8},{"$f":"SQRT((D12^2)+(D11^2)+(D10^2)+(D9^2)+(D8^2))","v":18.384776310850235},{"$f":"E12+E11+E10+E9+E8","v":61},{"$f":"SQRT((F12^2)+(F11^2)+(F10^2)+(F9^2)+(F8^2))","v":71.168813394632338},{"$f":"G12+G11+G10+G9+G8","v":0},{"$f":"SQRT((H12^2)+(H11^2)+(H10^2)+(H9^2)+(H8^2))","v":26.832815729997478},{"$f":"I12+I11+I10+I9+I8","v":5},{"$f":"SQRT((J12^2)+(J11^2)+(J10^2)+(J9^2)+(J8^2))","v":25},{"$f":"K12+K11+K10+K9+K8","v":629},{"$f":"SQRT((L12^2)+(L11^2)+(L10^2)+(L9^2)+(L8^2))","v":213.76154939558236},{"$f":"M12+M11+M10+M9+M8","v":17},{"$f":"SQRT((N12^2)+(N11^2)+(N10^2)+(N9^2)+(N8^2))","v":23.388031127053001},{"$f":"O12+O11+O10+O9+O8","v":44},{"$f":"SQRT((P12^2)+(P11^2)+(P10^2)+(P9^2)+(P8^2))","v":35.594943461115371},{"$f":"Q12+Q11+Q10+Q9+Q8","v":0},{"$f":"SQRT((R12^2)+(R11^2)+(R10^2)+(R9^2)+(R8^2))","v":26.832815729997478},{"$f":"S12+S11+S10+S9+S8","v":20},{"$f":"SQRT((T12^2)+(T11^2)+(T10^2)+(T9^2)+(T8^2))","v":39.204591567825318},{"$f":"U12+U11+U10+U9+U8","v":0},{"$f":"SQRT((V12^2)+(V11^2)+(V10^2)+(V9^2)+(V8^2))","v":26.832815729997478},{"$f":"W12+W11+W10+W9+W8","v":58},{"$f":"SQRT((X12^2)+(X11^2)+(X10^2)+(X9^2)+(X8^2))","v":46},{"$f":"Y12+Y11+Y10+Y9+Y8","v":85},{"$f":"SQRT((Z12^2)+(Z11^2)+(Z10^2)+(Z9^2)+(Z8^2))","v":45.199557519958091},{"$f":"AA12+AA11+AA10+AA9+AA8","v":171},{"$f":"SQRT((AB12^2)+(AB11^2)+(AB10^2)+(AB9^2)+(AB8^2))","v":90.592494170322965},{"$f":"AC12+AC11+AC10+AC9+AC8","v":87},{"$f":"SQRT((AD12^2)+(AD11^2)+(AD10^2)+(AD9^2)+(AD8^2))","v":83.240615086627031},{"$f":"AE12+AE11+AE10+AE9+AE8","v":31},{"$f":"SQRT((AF12^2)+(AF11^2)+(AF10^2)+(AF9^2)+(AF8^2))","v":29.49576240750525},{"$f":"AG12+AG11+AG10+AG9+AG8","v":141},{"$f":"SQRT((AH12^2)+(AH11^2)+(AH10^2)+(AH9^2)+(AH8^2))","v":91.263355187062899},{"$f":"AI12+AI11+AI10+AI9+AI8","v":70},{"$f":"SQRT((AJ12^2)+(AJ11^2)+(AJ10^2)+(AJ9^2)+(AJ8^2))","v":60.497933849016697},{"$f":"AK12+AK11+AK10+AK9+AK8","v":17},{"$f":"SQRT((AL12^2)+(AL11^2)+(AL10^2)+(AL9^2)+(AL8^2))","v":36.441734316577197},{"$f":"AM12+AM11+AM10+AM9+AM8","v":383},{"$f":"SQRT((AN12^2)+(AN11^2)+(AN10^2)+(AN9^2)+(AN8^2))","v":210.00238093888365}]
[null," 30% or More of HH Income",{"$f":"C13+C14+C15+C16","v":17},{"$f":"SQRT((D13^2)+(D14^2)+(D15^2)+(D16^2))","v":18.814887722226779},{"$f":"E13+E14+E15+E16","v":243},{"$f":"SQRT((F13^2)+(F14^2)+(F15^2)+(F16^2))","v":155.03225470849605},{"$f":"G13+G14+G15+G16","v":0},{"$f":"SQRT((H13^2)+(H14^2)+(H15^2)+(H16^2))","v":24},{"$f":"I13+I14+I15+I16","v":4},{"$f":"SQRT((J13^2)+(J14^2)+(J15^2)+(J16^2))","v":21.633307652783937},{"$f":"K13+K14+K15+K16","v":639},{"$f":"SQRT((L13^2)+(L14^2)+(L15^2)+(L16^2))","v":240.81112931091869},{"$f":"M13+M14+M15+M16","v":15},{"$f":"SQRT((N13^2)+(N14^2)+(N15^2)+(N16^2))","v":18.973665961010276},{"$f":"O13+O14+O15+O16","v":10},{"$f":"SQRT((P13^2)+(P14^2)+(P15^2)+(P16^2))","v":19.183326093250876},{"$f":"Q13+Q14+Q15+Q16","v":33},{"$f":"SQRT((R13^2)+(R14^2)+(R15^2)+(R16^2))","v":52.306787322488084},{"$f":"S13+S14+S15+S16","v":0},{"$f":"SQRT((T13^2)+(T14^2)+(T15^2)+(T16^2))","v":24},{"$f":"U13+U14+U15+U16","v":0},{"$f":"SQRT((V13^2)+(V14^2)+(V15^2)+(V16^2))","v":24},{"$f":"W13+W14+W15+W16","v":49},{"$f":"SQRT((X13^2)+(X14^2)+(X15^2)+(X16^2))","v":57.86190456595773},{"$f":"Y13+Y14+Y15+Y16","v":37},{"$f":"SQRT((Z13^2)+(Z14^2)+(Z15^2)+(Z16^2))","v":33.704599092705436},{"$f":"AA13+AA14+AA15+AA16","v":40},{"$f":"SQRT((AB13^2)+(AB14^2)+(AB15^2)+(AB16^2))","v":39.242833740697165},{"$f":"AC13+AC14+AC15+AC16","v":140},{"$f":"SQRT((AD13^2)+(AD14^2)+(AD15^2)+(AD16^2))","v":89.022469073824283},{"$f":"AE13+AE14+AE15+AE16","v":18},{"$f":"SQRT((AF13^2)+(AF14^2)+(AF15^2)+(AF16^2))","v":20.297783130184438},{"$f":"AG13+AG14+AG15+AG16","v":155},{"$f":"SQRT((AH13^2)+(AH14^2)+(AH15^2)+(AH16^2))","v":95.23654760647301},{"$f":"AI13+AI14+AI15+AI16","v":31},{"$f":"SQRT((AJ13^2)+(AJ14^2)+(AJ15^2)+(AJ16^2))","v":41.569219381653056},{"$f":"AK13+AK14+AK15+AK16","v":64},{"$f":"SQRT((AL13^2)+(AL14^2)+(AL15^2)+(AL16^2))","v":86.382868671976851},{"$f":"AM13+AM14+AM15+AM16","v":163},{"$f":"SQRT((AN13^2)+(AN14^2)+(AN15^2)+(AN16^2))","v":117.957619508025}]
[null," 30% to 34.9% of HH Income",{"$f":"C13","v":2},{"$f":"D13","v":4},{"$f":"E13","v":34},47,0,12,0,12,97,87,0,12,0,12,0,12,0,12,0,12,0,12,{"$f":"Y13","v":0},12,0,12,0,12,3,6,49,59,31,36,0,17,34,38]
[null," Less Than 35% of HH Income",{"$f":"C13+C12+C11+C10+C9+C8","v":10},{"$f":"SQRT((D13^2)+(D12^2)+(D11^2)+(D10^2)+(D9^2)+(D8^2))","v":18.814887722226779},{"$f":"E13+E12+E11+E10+E9+E8","v":95},{"$f":"SQRT((F13^2)+(F12^2)+(F11^2)+(F10^2)+(F9^2)+(F8^2))","v":85.287748240881584},{"$f":"G13+G12+G11+G10+G9+G8","v":0},{"$f":"SQRT((H13^2)+(H12^2)+(H11^2)+(H10^2)+(H9^2)+(H8^2))","v":29.393876913398138},{"$f":"I13+I12+I11+I10+I9+I8","v":5},{"$f":"SQRT((J13^2)+(J12^2)+(J11^2)+(J10^2)+(J9^2)+(J8^2))","v":27.730849247724095},{"$f":"K13+K12+K11+K10+K9+K8","v":726},{"$f":"SQRT((L13^2)+(L12^2)+(L11^2)+(L10^2)+(L9^2)+(L8^2))","v":230.78778130568352},{"$f":"M13+M12+M11+M10+M9+M8","v":17},{"$f":"SQRT((N13^2)+(N12^2)+(N11^2)+(N10^2)+(N9^2)+(N8^2))","v":26.28687885618983},{"$f":"O13+O12+O11+O10+O9+O8","v":44},{"$f":"SQRT((P13^2)+(P12^2)+(P11^2)+(P10^2)+(P9^2)+(P8^2))","v":37.563279941985897},{"$f":"Q13+Q12+Q11+Q10+Q9+Q8","v":0},{"$f":"SQRT((R13^2)+(R12^2)+(R11^2)+(R10^2)+(R9^2)+(R8^2))","v":29.393876913398138},{"$f":"S13+S12+S11+S10+S9+S8","v":20},{"$f":"SQRT((T13^2)+(T12^2)+(T11^2)+(T10^2)+(T9^2)+(T8^2))","v":41},{"$f":"U13+U12+U11+U10+U9+U8","v":0},{"$f":"SQRT((V13^2)+(V12^2)+(V11^2)+(V10^2)+(V9^2)+(V8^2))","v":29.393876913398138},{"$f":"W13+W12+W11+W10+W9+W8","v":58},{"$f":"SQRT((X13^2)+(X12^2)+(X11^2)+(X10^2)+(X9^2)+(X8^2))","v":47.539457296018853},{"$f":"Y13+Y12+Y11+Y10+Y9+Y8","v":85},{"$f":"SQRT((Z13^2)+(Z12^2)+(Z11^2)+(Z10^2)+(Z9^2)+(Z8^2))","v":46.765371804359688},{"$f":"AA13+AA12+AA11+AA10+AA9+AA8","v":171},{"$f":"SQRT((AB13^2)+(AB12^2)+(AB11^2)+(AB10^2)+(AB9^2)+(AB8^2))","v":91.383806005221729},{"$f":"AC13+AC12+AC11+AC10+AC9+AC8","v":87},{"$f":"SQRT((AD13^2)+(AD12^2)+(AD11^2)+(AD10^2)+(AD9^2)+(AD8^2))","v":84.10112960002381},{"$f":"AE13+AE12+AE11+AE10+AE9+AE8","v":34},{"$f":"SQRT((AF13^2)+(AF12^2)+(AF11^2)+(AF10^2)+(AF9^2)+(AF8^2))","v":30.099833886584822},{"$f":"AG13+AG12+AG11+AG10+AG9+AG8","v":190},{"$f":"SQRT((AH13^2)+(AH12^2)+(AH11^2)+(AH10^2)+(AH9^2)+(AH8^2))","v":108.67382389517726},{"$f":"AI13+AI12+AI11+AI10+AI9+AI8","v":101},{"$f":"SQRT((AJ13^2)+(AJ12^2)+(AJ11^2)+(AJ10^2)+(AJ9^2)+(AJ8^2))","v":70.398863627192171},{"$f":"AK13+AK12+AK11+AK10+AK9+AK8","v":17},{"$f":"SQRT((AL13^2)+(AL12^2)+(AL11^2)+(AL10^2)+(AL9^2)+(AL8^2))","v":40.2119385257662},{"$f":"AM13+AM12+AM11+AM10+AM9+AM8","v":417},{"$f":"SQRT((AN13^2)+(AN12^2)+(AN11^2)+(AN10^2)+(AN9^2)+(AN8^2))","v":213.41274563624359}]
[null," 35% or More of HH Income",{"$f":"C14+C15+C16","v":15},{"$f":"SQRT((D14^2)+(D15^2)+(D16^2))","v":18.384776310850235},{"$f":"E14+E15+E16","v":209},{"$f":"SQRT((F14^2)+(F15^2)+(F16^2))","v":147.7362514753911},{"$f":"G14+G15+G16","v":0},{"$f":"SQRT((H14^2)+(H15^2)+(H16^2))","v":20.784609690826528},{"$f":"I14+I15+I16","v":4},{"$f":"SQRT((J14^2)+(J15^2)+(J16^2))","v":18},{"$f":"K14+K15+K16","v":542},{"$f":"SQRT((L14^2)+(L15^2)+(L16^2))","v":224.54620905283616},{"$f":"M14+M15+M16","v":15},{"$f":"SQRT((N14^2)+(N15^2)+(N16^2))","v":14.696938456699069},{"$f":"O14+O15+O16","v":10},{"$f":"SQRT((P14^2)+(P15^2)+(P16^2))","v":14.966629547095765},{"$f":"Q14+Q15+Q16","v":33},{"$f":"SQRT((R14^2)+(R15^2)+(R16^2))","v":50.911688245431421},{"$f":"S14+S15+S16","v":0},{"$f":"SQRT((T14^2)+(T15^2)+(T16^2))","v":20.784609690826528},{"$f":"U14+U15+U16","v":0},{"$f":"SQRT((V14^2)+(V15^2)+(V16^2))","v":20.784609690826528},{"$f":"W14+W15+W16","v":49},{"$f":"SQRT((X14^2)+(X15^2)+(X16^2))","v":56.603886792339623},{"$f":"Y14+Y15+Y16","v":37},{"$f":"SQRT((Z14^2)+(Z15^2)+(Z16^2))","v":31.496031496047245},{"$f":"AA14+AA15+AA16","v":40},{"$f":"SQRT((AB14^2)+(AB15^2)+(AB16^2))","v":37.363083384538811},{"$f":"AC14+AC15+AC16","v":140},{"$f":"SQRT((AD14^2)+(AD15^2)+(AD16^2))","v":88.209976760001467},{"$f":"AE14+AE15+AE16","v":15},{"$f":"SQRT((AF14^2)+(AF15^2)+(AF16^2))","v":19.390719429665317},{"$f":"AG14+AG15+AG16","v":106},{"$f":"SQRT((AH14^2)+(AH15^2)+(AH16^2))","v":74.759614766262672},{"$f":"AI14+AI15+AI16","v":0},{"$f":"SQRT((AJ14^2)+(AJ15^2)+(AJ16^2))","v":20.784609690826528},{"$f":"AK14+AK15+AK16","v":64},{"$f":"SQRT((AL14^2)+(AL15^2)+(AL16^2))","v":84.693565280958623},{"$f":"AM14+AM15+AM16","v":129},{"$f":"SQRT((AN14^2)+(AN15^2)+(AN16^2))","v":111.66915420114903}]
[null," 50% or More of HH Income",{"$f":"C16","v":12},{"$f":"D16","v":13},{"$f":"E16","v":76},71,0,12,0,12,395,206,6,10,8,8,33,48,0,12,0,12,9,12,{"$f":"Y16","v":18},24,23,26,67,55,12,14,28,33,0,12,0,17,82,105]
[null,"Not computed",{"$f":"C17","v":66},{"$f":"D17","v":70},42,68,1,5,10,15,81,70,3,4,18,15,0,12,0,12,0,12,8,14,{"$f":"Y17","v":17},28,20,20,67,39,24,16,45,35,7,9,24,41,76,57]
[]
[]
[]
[]
[]
[]
[]
[]
[]
[]
[]
[]
[]
[]
[]
[]
[]
[]
[]
[]
[]
[]
[]
[]
[]
[]
[]
[]
[]
[]
[]
[]
[]
[]
[]
[]
[]
[]
[]
[]
[]
[]
[]
[]
[]
[]
[]
[]
[]
[]
[]
[]
[null,"Calculated B25070. GROSS RENT AS A PERCENTAGE OF HOUSEHOLD INCOME IN THE PAST 12 MONTHS"]
[null,"Universe:  RENTER-OCCUPIED HOUSING UNITS"]
[null,"Data Set: 2013-2017 American Community Survey 5-Year Estimates"]
[]
[null,null,"Albany",null,"Bartlett",null,"Brookfield",null,"Chatham",null,"Conway",null,"Eaton",null,"Effingham",null,"Freedom",null,"Hale's Location",null,"Hart's Location",null,"Jackson",null,"Madison",null,"Moultonborough",null,"Ossipee",null,"Sandwich",null,"Tamworth",null,"Tuftonboro",null,"Wakefield",null,"Wolfeboro"]
[null," ","Estimate","Margin of Error","Estimate","Margin of Error","Estimate","Margin of Error","Estimate","Margin of Error","Estimate","Margin of Error","Estimate","Margin of Error","Estimate","Margin of Error","Estimate","Margin of Error","Estimate","Margin of Error","Estimate","Margin of Error","Estimate","Margin of Error","Estimate","Margin of Error","Estimate","Margin of Error","Estimate","Margin of Error","Estimate","Margin of Error","Estimate","Margin of Error","Estimate","Margin of Error","Estimate","Margin of Error","Estimate","Margin of Error"]
[null,"Total:",42,21,436,142,36,38,18,22,1136,254,30,14,107,48,85,32,0,11,8,9,90,48,175,56,260,93,382,138,104,43,441,148,125,64,225,101,633,207]
[null,"Less than 20% of HH Income",9,8.2462112512353212,47,56.311632901204348,28,36.373066958946424,10,20.928449536456348,258,141.66509803053114,10,17.972200755611428,24,29.444863728670914,22,23.366642891095847,0,19.05255888325765,5,17.4928556845359,40,36.249137920783717,29,30.822070014844883,42,39.824615503479755,102,96.348326399579975,11,16.673332000533065,110,82.316462509026707,7,19.05255888325765,55,50.289163842720633,43,74.518454090245328]
[null," 20% to 24.9% of HH Income",8,15,123,71,0,11,0,11,152,120,3,4,0,11,28,23,0,11,3,4,15,13,46,38,79,60,0,11,14,18,22,24,5,8,17,26,59,75]
[null," 25% to 29.9% of HH Income",3,4,57,67,0,11,0,11,183,94,0,11,5,6,0,11,0,11,0,11,11,19,24,28,6,9,31,51,16,10,30,25,29,31,0,16,118,102]
[null," Less Than 30% of HH Income",20,17.578395831246947,227,112.69871339105873,28,39.560080889704963,10,26.076809620810597,593,208.09853435332022,13,21.447610589527216,29,32,50,34.583232931581165,0,24.596747752497688,8,21.047565179849187,66,42.941821107167776,99,56.373752757821613,127,72.574100063314603,133,109.5673308974897,41,26.49528259898354,162,89.314052645706326,41,37.255872020394314,72,58.830264320330912,220,146.90813456034351]
[null," 30% or More of HH Income",19,18.708286933869708,129,81.006172604314543,8,23.643180835073778,8,21.023796041628639,484,179.56892826989863,0,22,62,31.654383582688826,26,28.354893757515651,0,22,0,22,19,29.866369046136157,47,33.852621759621513,55,39.585350825778974,174,106.85504199615477,35,25.729360660537214,279,145.67772650614782,55,48.867166891482462,133,95.168272023821046,396,199.76235881666997]
[null," 30% to 34.9% of HH Income",9,12,37,52,0,11,7,14,106,92,0,11,16,20,0,11,0,11,0,11,0,11,8,12,7,11,12,20,6,6,97,84,0,11,104,79,30,45]
[null," Less Than 35% of HH Income",29,21.283796653792763,264,124.11688039908189,28,41.060930335295616,17,29.597297173897484,699,227.52802025245154,13,24.103941586387901,45,37.735924528226413,50,36.290494623248108,0,26.944387170614959,8,23.748684174075834,66,44.328320518603,107,57.636793803958248,134,73.40299721401027,145,111.37773565663831,47,27.166155414412248,259,122.60913505934214,41,38.845849199110063,176,98.498730956292022,250,153.64569632762255]
[null," 35% or More of HH Income",10,14.352700094407323,92,62.112800613078136,8,20.928449536456348,1,15.684387141358123,378,154.21089455677247,0,19.05255888325765,46,24.535688292770594,26,26.134268690743959,0,19.05255888325765,0,19.05255888325765,19,27.766886753829642,39,31.654383582688826,48,38.026306683663087,162,104.96666137398103,29,25.019992006393608,182,119.02100654926423,55,47.613023428469653,29,53.065996645686397,366,194.62785001124581]
[null," 50% or More of HH Income",7,7,80,59,8,14,1,2,241,124,0,11,17,13,0,11,0,11,0,11,19,23,15,16,23,22,109,85,21,21,182,118,55,45,29,48,200,150]
[null,"Not computed",3,5,80,66,0,11,0,11,59,67,17,14,16,24,9,9,0,11,0,11,5,6,29,30,78,59,75,52,28,25,0,11,29,26,20,24,17,26]
[]
[]
[]
[]
[null,"Calculated B25070. GROSS RENT AS A PERCENTAGE OF HOUSEHOLD INCOME IN THE PAST 12 MONTHS"]
[null,"Universe:  RENTER-OCCUPIED HOUSING UNITS"]
[null,"Data Set: 2008-2012 American Community Survey 5-Year Estimates"]
[]
[null,null,"Albany",null,"Bartlett",null,"Brookfield",null,"Chatham",null,"Conway",null,"Eaton",null,"Effingham",null,"Freedom",null,"Hale's Location",null,"Hart's Location",null,"Jackson",null,"Madison",null,"Moultonborough",null,"Ossipee",null,"Sandwich",null,"Tamworth",null,"Tuftonboro",null,"Wakefield",null,"Wolfeboro"]
[null," ","Estimate","Margin of Error","Estimate","Margin of Error","Estimate","Margin of Error","Estimate","Margin of Error","Estimate","Margin of Error","Estimate","Margin of Error","Estimate","Margin of Error","Estimate","Margin of Error","Estimate","Margin of Error","Estimate","Margin of Error","Estimate","Margin of Error","Estimate","Margin of Error","Estimate","Margin of Error","Estimate","Margin of Error","Estimate","Margin of Error","Estimate","Margin of Error","Estimate","Margin of Error","Estimate","Margin of Error","Estimate","Margin of Error"]
[null,"Total:",50,26,253,105,15,19,20,13,1618,293,20,17,61,34,72,32,0,11,21,17,73,37,191,79,162,74,293,97,98,37,283,117,134,71,225,131,425,154]
[null,"Less than 10.0 percent",22,19.519221295943137,39,49.507575177946251,0,19.05255888325765,6,17.972200755611428,293,139.20129309744217,7,19.05255888325765,13,20.248456731316587,4,16.673332000533065,0,19.05255888325765,2,15.842979517754859,16,18.601075237738275,82,54.890800686453829,20,25.88435821108957,0,19.05255888325765,10,15.066519173319364,59,72.408563029520209,44,40.19950248448356,28,49.477267507411923,58,52.735187493740838]
[null,"10.0 to 14.9 percent",2,3,77,55,0,11,0,11,177,111,5,7,4,5,25,23,0,11,2,4,6,10,15,23,24,28,45,47,8,13,21,34,0,11,0,16,0,16]
[null,"15.0 to 19.9 percent",7,11,0,11,0,11,0,11,228,156,4,6,0,11,15,18,0,11,0,11,6,9,0,11,13,18,37,36,19,20,66,77,0,11,13,19,59,90]
[null,"20.0 to 24.9 percent",31,22.605309110914629,116,74.813100457072352,0,24.596747752497688,6,23.769728648009426,698,236.71501853494635,16,21.166010488516726,17,23.57965224510319,44,33.630343441600473,0,24.596747752497688,4,19.697715603592208,28,22.956480566497994,97,60.52272300549604,57,42.166337284616027,82,62.193247221864851,37,28.21347195933177,146,111.03152705425607,44,43.104524124504614,41,55.362442142665635,117,105.53198567259123]
[null,"25.0 to 29.9 percent",15,22.671568097509269,106,73.362115563824901,3,19.697715603592208,9,18.654758106177631,756,246.04267922456054,3,19.697715603592208,33,27.239676943752471,19,20.663978319771825,0,22,8,22.516660498395403,15,26.90724809414742,75,50.90186637049765,61,40.951190458886543,174,112.12047092302102,47,29.8496231131986,115,64.505813691480554,41,41.641325627314025,168,132.49150916190817,271,143.11184437355283]
[null,"30.0 to 34.9 percent",2,4,39,45,0,11,0,11,127,100,0,11,10,14,9,8,0,11,0,11,0,11,42,33,23,20,0,11,17,13,46,42,30,36,85,109,10,16]
[null,"35.0 to 39.9 percent",33,22.956480566497994,155,87.304066342868595,0,26.944387170614959,6,26.19160170741759,825,256.97081546354639,16,23.853720883753127,27,27.422618401604176,53,34.568772034887211,0,26.944387170614959,4,22.561028345356956,28,25.45584412271571,139,68.934751758456343,80,46.669047558312137,82,63.158530698552511,54,31.064449134018133,192,118.7097300140136,74,56.160484328395889,126,122.25383429569807,127,106.73799698326739]
[null,"40.0 to 49.9 percent",13,22.315913604421397,67,57.9396237474839,3,16.340134638368191,9,15.066519173319364,629,224.80435938833571,3,16.340134638368191,23,23.366642891095847,10,19.05255888325765,0,19.05255888325765,8,19.646882704388499,15,24.556058315617349,33,38.7556447501522,38,35.735136770411273,174,111.57956802210698,30,26.870057685088806,69,48.959166659574592,11,20.928449536456348,83,75.319320230602187,261,142.21462653327893]
[null,"50.0 percent or more",13,16,59,56,0,11,3,5,377,157,0,11,19,20,10,11,0,11,0,11,0,11,12,15,13,16,114,95,27,24,53,40,11,14,50,59,167,118]
[null,"Not computed",4,5,31,34,12,18,5,7,164,106,1,3,11,15,9,10,0,11,9,12,30,24,19,30,44,44,37,39,14,11,22,26,49,36,16,25,37,35]

{"sheet":"ACS_Table_B25074","index":62,"n_rows":485,"n_cols":40,"rows_kept":485,"cut":false,"hidden":true,"merged":[]}
[null,"B25074. HOUSEHOLD INCOME BY GROSS RENT AS A PERCENTAGE OF HOUSEHOLD INCOME IN THE PAST 12 MONTHS"]
[null,"Universe:  RENTER-OCCUPIED HOUSING UNITS",null,null,null,{"$f":"RentalHousingCost!D41","v":"Income in 2022 Inflation Adjusted Dollars"}]
[null,"Data Set: 2018-2022 American Community Survey 5-Year Estimates"]
[]
[null,null,"Albany",null,"Bartlett",null,"Brookfield",null,"Chatham",null,"Conway",null,"Eaton",null,"Effingham",null,"Freedom",null,"Hale's Location",null,"Hart's Location",null,"Jackson",null,"Madison",null,"Moultonborough",null,"Ossipee",null,"Sandwich",null,"Tamworth",null,"Tuftonboro",null,"Wakefield",null,"Wolfeboro"]
[null," ","Estimate","Margin of Error","Estimate","Margin of Error","Estimate","Margin of Error","Estimate","Margin of Error","Estimate","Margin of Error","Estimate","Margin of Error","Estimate","Margin of Error","Estimate","Margin of Error","Estimate","Margin of Error","Estimate","Margin of Error","Estimate","Margin of Error","Estimate","Margin of Error","Estimate","Margin of Error","Estimate","Margin of Error","Estimate","Margin of Error","Estimate","Margin of Error","Estimate","Margin of Error","Estimate","Margin of Error","Estimate","Margin of Error"]
[null,"Total:",91,72,346,180,1,5,19,16,1349,254,35,22,72,40,33,48,20,31,0,12,115,59,139,66,231,101,294,118,73,32,341,136,108,67,105,98,622,231]
[null,"Less than $10,000:",12,13,42,68,0,12,0,12,132,103,0,12,0,12,0,12,0,12,0,12,8,14,0,12,13,17,13,24,0,12,0,12,0,12,0,17,0,17]
[null,"Less than 20.0 percent",0,12,0,12,0,12,0,12,0,17,0,12,0,12,0,12,0,12,0,12,0,12,0,12,0,12,0,12,0,12,0,12,0,12,0,17,0,17]
[null,"20.0 to 24.9 percent",0,12,0,12,0,12,0,12,0,17,0,12,0,12,0,12,0,12,0,12,0,12,0,12,0,12,0,12,0,12,0,12,0,12,0,17,0,17]
[null,"25.0 to 29.9 percent",0,12,0,12,0,12,0,12,0,17,0,12,0,12,0,12,0,12,0,12,0,12,0,12,0,12,0,12,0,12,0,12,0,12,0,17,0,17]
[null,"30.0 to 34.9 percent",0,12,0,12,0,12,0,12,0,17,0,12,0,12,0,12,0,12,0,12,0,12,0,12,0,12,0,12,0,12,0,12,0,12,0,17,0,17]
[null,"35.0 to 39.9 percent",0,12,0,12,0,12,0,12,0,17,0,12,0,12,0,12,0,12,0,12,0,12,0,12,0,12,0,12,0,12,0,12,0,12,0,17,0,17]
[null,"40.0 to 49.9 percent",0,12,0,12,0,12,0,12,0,17,0,12,0,12,0,12,0,12,0,12,0,12,0,12,0,12,0,12,0,12,0,12,0,12,0,17,0,17]
[null,"50.0 percent or more",12,13,0,12,0,12,0,12,90,89,0,12,0,12,0,12,0,12,0,12,0,12,0,12,0,12,7,10,0,12,0,12,0,12,0,17,0,17]
[null,"Not computed",0,12,42,68,0,12,0,12,42,52,0,12,0,12,0,12,0,12,0,12,8,14,0,12,13,17,6,21,0,12,0,12,0,12,0,17,0,17]
[null,"$10,000 to $19,999:",2,4,39,54,1,5,0,12,267,189,6,10,11,10,33,48,0,12,0,12,0,12,0,12,9,14,65,66,5,6,57,62,0,12,0,17,93,106]
[null,"Less than 20.0 percent",0,12,0,12,0,12,0,12,10,15,0,12,0,12,0,12,0,12,0,12,0,12,0,12,0,12,26,42,0,12,0,12,0,12,0,17,0,17]
[null,"20.0 to 24.9 percent",0,12,0,12,0,12,0,12,38,57,0,12,0,12,0,12,0,12,0,12,0,12,0,12,0,12,0,12,0,12,0,12,0,12,0,17,0,17]
[null,"25.0 to 29.9 percent",0,12,0,12,0,12,0,12,0,17,0,12,0,12,0,12,0,12,0,12,0,12,0,12,0,12,0,12,0,12,0,12,0,12,0,17,11,19]
[null,"30.0 to 34.9 percent",0,12,0,12,0,12,0,12,0,17,0,12,0,12,0,12,0,12,0,12,0,12,0,12,0,12,0,12,0,12,37,56,0,12,0,17,0,17]
[null,"35.0 to 39.9 percent",0,12,0,12,0,12,0,12,0,17,0,12,0,12,0,12,0,12,0,12,0,12,0,12,0,12,0,12,3,6,0,12,0,12,0,17,0,17]
[null,"40.0 to 49.9 percent",0,12,0,12,0,12,0,12,12,19,0,12,0,12,0,12,0,12,0,12,0,12,0,12,0,12,0,12,0,12,0,12,0,12,0,17,0,17]
[null,"50.0 percent or more",0,12,39,54,0,12,0,12,207,172,6,10,4,6,33,48,0,12,0,12,0,12,0,12,9,14,39,49,0,12,20,31,0,12,0,17,82,105]
[null,"Not computed",2,4,0,12,1,5,0,12,0,17,0,12,7,7,0,12,0,12,0,12,0,12,0,12,0,12,0,12,2,3,0,12,0,12,0,17,0,17]
[null,"$20,000 to $34,999:",34,36,75,76,0,12,13,16,209,118,7,10,9,10,0,12,0,12,0,12,0,12,31,35,0,12,56,60,7,7,65,63,0,12,50,80,93,70]
[null,"Less than 20.0 percent",0,12,0,12,0,12,0,12,0,17,0,12,0,12,0,12,0,12,0,12,0,12,3,5,0,12,0,12,0,12,0,12,0,12,0,17,0,17]
[null,"20.0 to 24.9 percent",3,4,0,12,0,12,0,12,44,72,0,12,0,12,0,12,0,12,0,12,0,12,0,12,0,12,0,12,0,12,0,12,0,12,0,17,20,32]
[null,"25.0 to 29.9 percent",0,12,0,12,0,12,0,12,0,17,0,12,0,12,0,12,0,12,0,12,0,12,0,12,0,12,0,12,0,12,11,20,0,12,0,17,16,27]
[null,"30.0 to 34.9 percent",0,12,0,12,0,12,0,12,46,50,0,12,0,12,0,12,0,12,0,12,0,12,0,12,0,12,0,12,0,12,0,12,0,12,0,17,21,32]
[null,"35.0 to 39.9 percent",0,12,0,12,0,12,0,12,0,17,0,12,0,12,0,12,0,12,0,12,0,12,10,17,0,12,35,55,0,12,46,57,0,12,0,17,0,17]
[null,"40.0 to 49.9 percent",0,12,38,59,0,12,4,6,10,17,6,10,0,12,0,12,0,12,0,12,0,12,0,12,0,12,0,12,0,12,0,12,0,12,50,80,20,31]
[null,"50.0 percent or more",0,12,37,49,0,12,0,12,75,83,0,12,4,5,0,12,0,12,0,12,0,12,18,24,0,12,21,22,0,12,8,13,0,12,0,17,0,17]
[null,"Not computed",31,36,0,12,0,12,9,15,34,44,1,2,5,8,0,12,0,12,0,12,0,12,0,12,0,12,0,12,7,7,0,12,0,12,0,17,16,25]
[null,"$35,000 to $49,999:",5,6,95,112,0,12,5,7,181,118,11,14,6,8,0,12,0,12,0,12,62,60,1,4,51,47,27,28,9,13,32,45,13,21,14,22,33,40]
[null,"Less than 20.0 percent",0,12,0,12,0,12,5,7,0,17,0,12,0,12,0,12,0,12,0,12,0,12,0,12,20,31,9,14,0,12,0,12,0,12,0,17,0,17]
[null,"20.0 to 24.9 percent",0,12,0,12,0,12,0,12,0,17,8,13,0,12,0,12,0,12,0,12,0,12,0,12,0,12,0,12,0,12,0,12,0,12,0,17,0,17]
[null,"25.0 to 29.9 percent",0,12,0,12,0,12,0,12,60,72,0,12,0,12,0,12,0,12,0,12,13,26,0,12,0,12,0,12,0,12,0,12,0,12,0,17,0,17]
[null,"30.0 to 34.9 percent",2,4,0,12,0,12,0,12,44,70,0,12,0,12,0,12,0,12,0,12,0,12,0,12,0,12,0,12,0,12,0,12,13,21,0,17,0,17]
[null,"35.0 to 39.9 percent",0,12,0,12,0,12,0,12,28,33,3,4,0,12,0,12,0,12,0,12,0,12,0,12,0,12,0,12,0,12,32,45,0,12,14,22,0,17]
[null,"40.0 to 49.9 percent",3,5,95,112,0,12,0,12,26,39,0,12,0,12,0,12,0,12,0,12,40,54,1,4,17,24,10,20,0,12,0,12,0,12,0,17,27,39]
[null,"50.0 percent or more",0,12,0,12,0,12,0,12,23,29,0,12,0,12,0,12,0,12,0,12,9,12,0,12,14,21,0,12,9,13,0,12,0,12,0,17,0,17]
[null,"Not computed",0,12,0,12,0,12,0,12,0,17,0,12,6,8,0,12,0,12,0,12,0,12,0,12,0,12,8,14,0,12,0,12,0,12,0,17,6,10]
[null,"$50,000 to $74,999:",33,60,57,54,0,12,1,2,190,118,7,8,23,28,0,12,0,12,0,12,0,12,33,25,24,25,88,76,5,7,96,74,19,22,17,22,59,77]
[null,"Less than 20.0 percent",0,12,23,34,0,12,0,12,12,21,0,12,0,12,0,12,0,12,0,12,0,12,0,12,17,22,21,33,0,12,0,12,11,18,11,19,46,74]
[null,"20.0 to 24.9 percent",0,12,0,12,0,12,0,12,12,15,5,7,18,26,0,12,0,12,0,12,0,12,25,23,0,12,0,12,0,12,0,12,8,13,0,17,0,17]
[null,"25.0 to 29.9 percent",0,12,0,12,0,12,0,12,83,84,2,3,3,5,0,12,0,12,0,12,0,12,0,12,0,12,28,49,5,7,49,66,0,12,6,10,0,17]
[null,"30.0 to 34.9 percent",0,12,34,47,0,12,0,12,7,12,0,12,0,12,0,12,0,12,0,12,0,12,0,12,0,12,0,12,0,12,12,19,0,12,0,17,13,21]
[null,"35.0 to 39.9 percent",0,12,0,12,0,12,0,12,61,68,0,12,0,12,0,12,0,12,0,12,0,12,8,10,0,12,28,41,0,12,0,12,0,12,0,17,0,17]
[null,"40.0 to 49.9 percent",0,12,0,12,0,12,0,12,10,5,0,12,2,4,0,12,0,12,0,12,0,12,0,12,0,12,0,12,0,12,0,12,0,12,0,17,0,17]
[null,"50.0 percent or more",0,12,0,12,0,12,0,12,0,17,0,12,0,12,0,12,0,12,0,12,0,12,0,12,0,12,0,12,0,12,0,12,0,12,0,17,0,17]
[null,"Not computed",33,60,0,12,0,12,1,2,5,8,0,12,0,12,0,12,0,12,0,12,0,12,0,12,7,11,11,18,0,12,35,33,0,12,0,17,0,17]
[null,"$75,000 to $99,999:",2,3,0,12,0,12,0,12,244,136,2,5,12,19,0,12,20,31,0,12,21,24,0,12,60,55,0,12,33,25,91,59,41,54,24,41,115,89]
[null,"Less than 20.0 percent",2,3,0,12,0,12,0,12,193,132,2,5,0,12,0,12,20,31,0,12,21,24,0,12,1,10,0,12,0,12,81,56,6,10,0,17,82,81]
[null,"20.0 to 24.9 percent",0,12,0,12,0,12,0,12,51,46,0,12,12,19,0,12,0,12,0,12,0,12,0,12,59,49,0,12,21,22,0,12,35,54,0,17,0,17]
[null,"25.0 to 29.9 percent",0,12,0,12,0,12,0,12,0,17,0,12,0,12,0,12,0,12,0,12,0,12,0,12,0,12,0,12,0,12,0,12,0,12,0,17,0,17]
[null,"30.0 to 34.9 percent",0,12,0,12,0,12,0,12,0,17,0,12,0,12,0,12,0,12,0,12,0,12,0,12,0,12,0,12,3,6,0,12,0,12,0,17,0,17]
[null,"35.0 to 39.9 percent",0,12,0,12,0,12,0,12,0,17,0,12,0,12,0,12,0,12,0,12,0,12,0,12,0,12,0,12,0,12,0,12,0,12,0,17,0,17]
[null,"40.0 to 49.9 percent",0,12,0,12,0,12,0,12,0,17,0,12,0,12,0,12,0,12,0,12,0,12,0,12,0,12,0,12,0,12,0,12,0,12,0,17,0,17]
[null,"50.0 percent or more",0,12,0,12,0,12,0,12,0,17,0,12,0,12,0,12,0,12,0,12,0,12,0,12,0,12,0,12,0,12,0,12,0,12,0,17,0,17]
[null,"Not computed",0,12,0,12,0,12,0,12,0,17,0,12,0,12,0,12,0,12,0,12,0,12,0,12,0,12,0,12,9,11,10,15,0,12,24,41,33,37]
[null,"$100,000 or more:",3,5,38,58,0,12,0,12,126,84,2,3,11,8,0,12,0,12,0,12,24,24,74,48,74,68,45,38,14,11,0,12,35,33,0,17,229,183]
[null,"Less than 20.0 percent",3,5,38,58,0,12,0,12,126,84,0,12,11,8,0,12,0,12,0,12,24,24,50,32,74,68,3,25,5,7,0,12,10,14,0,17,208,180]
[null,"20.0 to 24.9 percent",0,12,0,12,0,12,0,12,0,17,0,12,0,12,0,12,0,12,0,12,0,12,7,10,0,12,0,12,0,12,0,12,0,12,0,17,0,17]
[null,"25.0 to 29.9 percent",0,12,0,12,0,12,0,12,0,17,0,12,0,12,0,12,0,12,0,12,0,12,0,12,0,12,0,12,0,12,0,12,0,12,0,17,0,17]
[null,"30.0 to 34.9 percent",0,12,0,12,0,12,0,12,0,17,0,12,0,12,0,12,0,12,0,12,0,12,0,12,0,12,0,12,0,12,0,12,18,29,0,17,0,17]
[null,"35.0 to 39.9 percent",0,12,0,12,0,12,0,12,0,17,0,12,0,12,0,12,0,12,0,12,0,12,0,12,0,12,0,12,0,12,0,12,0,12,0,17,0,17]
[null,"40.0 to 49.9 percent",0,12,0,12,0,12,0,12,0,17,0,12,0,12,0,12,0,12,0,12,0,12,0,12,0,12,0,12,0,12,0,12,0,12,0,17,0,17]
[null,"50.0 percent or more",0,12,0,12,0,12,0,12,0,17,0,12,0,12,0,12,0,12,0,12,0,12,0,12,0,12,0,12,3,6,0,12,0,12,0,17,0,17]
[null,"Not computed",0,12,0,12,0,12,0,12,0,17,2,3,0,12,0,12,0,12,0,12,0,12,17,28,0,12,42,29,6,8,0,12,7,9,0,17,21,34]
[]
[]
[]
[]
[]
[]
[]
[]
[]
[]
[]
[]
[]
[]
[]
[null,"Calculated B25074. HOUSEHOLD INCOME BY GROSS RENT AS A PERCENTAGE OF HOUSEHOLD INCOME IN THE PAST 12 MONTHS"]
[null,"Universe:  RENTER-OCCUPIED HOUSING UNITS"]
[null,"Data Set: 2018-2022 American Community Survey 5-Year Estimates"]
[]
[null,null,"Albany",null,"Bartlett",null,"Brookfield",null,"Chatham",null,"Conway",null,"Eaton",null,"Effingham",null,"Freedom",null,"Hale's Location",null,"Hart's Location",null,"Jackson",null,"Madison",null,"Moultonborough",null,"Ossipee",null,"Sandwich",null,"Tamworth",null,"Tuftonboro",null,"Wakefield",null,"Wolfeboro"]
[null," ","Estimate","Margin of Error","Estimate","Margin of Error","Estimate","Margin of Error","Estimate","Margin of Error","Estimate","Margin of Error","Estimate","Margin of Error","Estimate","Margin of Error","Estimate","Margin of Error","Estimate","Margin of Error","Estimate","Margin of Error","Estimate","Margin of Error","Estimate","Margin of Error","Estimate","Margin of Error","Estimate","Margin of Error","Estimate","Margin of Error","Estimate","Margin of Error","Estimate","Margin of Error","Estimate","Margin of Error","Estimate","Margin of Error"]
[null,"Total:",{"$f":"C7","v":91},72,346,180,1,5,19,16,1349,254,35,22,72,40,33,48,20,31,0,12,115,59,139,66,231,101,294,118,73,32,341,136,108,67,105,98,622,231]
[null,"Less than $10,000:",12,13,42,68,0,12,0,12,132,103,0,12,0,12,0,12,0,12,0,12,8,14,0,12,13,17,13,24,0,12,0,12,0,12,0,17,0,17]
[null,"Less than 30.0 percent",{"$f":"C9+C10+C11","v":0},{"$f":"SQRT((D9^2)+(D10^2)+(D11^2))","v":20.784609690826528},{"$f":"E9+E10+E11","v":0},{"$f":"SQRT((F9^2)+(F10^2)+(F11^2))","v":20.784609690826528},{"$f":"G9+G10+G11","v":0},{"$f":"SQRT((H9^2)+(H10^2)+(H11^2))","v":20.784609690826528},{"$f":"I9+I10+I11","v":0},{"$f":"SQRT((J9^2)+(J10^2)+(J11^2))","v":20.784609690826528},{"$f":"K9+K10+K11","v":0},{"$f":"SQRT((L9^2)+(L10^2)+(L11^2))","v":29.444863728670914},{"$f":"M9+M10+M11","v":0},{"$f":"SQRT((N9^2)+(N10^2)+(N11^2))","v":20.784609690826528},{"$f":"O9+O10+O11","v":0},{"$f":"SQRT((P9^2)+(P10^2)+(P11^2))","v":20.784609690826528},{"$f":"Q9+Q10+Q11","v":0},{"$f":"SQRT((R9^2)+(R10^2)+(R11^2))","v":20.784609690826528},{"$f":"S9+S10+S11","v":0},{"$f":"SQRT((T9^2)+(T10^2)+(T11^2))","v":20.784609690826528},{"$f":"U9+U10+U11","v":0},{"$f":"SQRT((V9^2)+(V10^2)+(V11^2))","v":20.784609690826528},{"$f":"W9+W10+W11","v":0},{"$f":"SQRT((X9^2)+(X10^2)+(X11^2))","v":20.784609690826528},{"$f":"Y9+Y10+Y11","v":0},{"$f":"SQRT((Z9^2)+(Z10^2)+(Z11^2))","v":20.784609690826528},{"$f":"AA9+AA10+AA11","v":0},{"$f":"SQRT((AB9^2)+(AB10^2)+(AB11^2))","v":20.784609690826528},{"$f":"AC9+AC10+AC11","v":0},{"$f":"SQRT((AD9^2)+(AD10^2)+(AD11^2))","v":20.784609690826528},{"$f":"AE9+AE10+AE11","v":0},{"$f":"SQRT((AF9^2)+(AF10^2)+(AF11^2))","v":20.784609690826528},{"$f":"AG9+AG10+AG11","v":0},{"$f":"SQRT((AH9^2)+(AH10^2)+(AH11^2))","v":20.784609690826528},{"$f":"AI9+AI10+AI11","v":0},{"$f":"SQRT((AJ9^2)+(AJ10^2)+(AJ11^2))","v":20.784609690826528},{"$f":"AK9+AK10+AK11","v":0},{"$f":"SQRT((AL9^2)+(AL10^2)+(AL11^2))","v":29.444863728670914},{"$f":"AM9+AM10+AM11","v":0},{"$f":"SQRT((AN9^2)+(AN10^2)+(AN11^2))","v":29.444863728670914}]
[null,"More than 30.0 percent",{"$f":"C12+C13+C14+C15","v":12},{"$f":"SQRT((D12^2)+(D13^2)+(D14^2)+(D15^2))","v":24.515301344262525},{"$f":"E12+E13+E14+E15","v":0},{"$f":"SQRT((F12^2)+(F13^2)+(F14^2)+(F15^2))","v":24},{"$f":"G12+G13+G14+G15","v":0},{"$f":"SQRT((H12^2)+(H13^2)+(H14^2)+(H15^2))","v":24},{"$f":"I12+I13+I14+I15","v":0},{"$f":"SQRT((J12^2)+(J13^2)+(J14^2)+(J15^2))","v":24},{"$f":"K12+K13+K14+K15","v":90},{"$f":"SQRT((L12^2)+(L13^2)+(L14^2)+(L15^2))","v":93.744333162063725},{"$f":"M12+M13+M14+M15","v":0},{"$f":"SQRT((N12^2)+(N13^2)+(N14^2)+(N15^2))","v":24},{"$f":"O12+O13+O14+O15","v":0},{"$f":"SQRT((P12^2)+(P13^2)+(P14^2)+(P15^2))","v":24},{"$f":"Q12+Q13+Q14+Q15","v":0},{"$f":"SQRT((R12^2)+(R13^2)+(R14^2)+(R15^2))","v":24},{"$f":"S12+S13+S14+S15","v":0},{"$f":"SQRT((T12^2)+(T13^2)+(T14^2)+(T15^2))","v":24},{"$f":"U12+U13+U14+U15","v":0},{"$f":"SQRT((V12^2)+(V13^2)+(V14^2)+(V15^2))","v":24},{"$f":"W12+W13+W14+W15","v":0},{"$f":"SQRT((X12^2)+(X13^2)+(X14^2)+(X15^2))","v":24},{"$f":"Y12+Y13+Y14+Y15","v":0},{"$f":"SQRT((Z12^2)+(Z13^2)+(Z14^2)+(Z15^2))","v":24},{"$f":"AA12+AA13+AA14+AA15","v":0},{"$f":"SQRT((AB12^2)+(AB13^2)+(AB14^2)+(AB15^2))","v":24},{"$f":"AC12+AC13+AC14+AC15","v":7},{"$f":"SQRT((AD12^2)+(AD13^2)+(AD14^2)+(AD15^2))","v":23.065125189341593},{"$f":"AE12+AE13+AE14+AE15","v":0},{"$f":"SQRT((AF12^2)+(AF13^2)+(AF14^2)+(AF15^2))","v":24},{"$f":"AG12+AG13+AG14+AG15","v":0},{"$f":"SQRT((AH12^2)+(AH13^2)+(AH14^2)+(AH15^2))","v":24},{"$f":"AI12+AI13+AI14+AI15","v":0},{"$f":"SQRT((AJ12^2)+(AJ13^2)+(AJ14^2)+(AJ15^2))","v":24},{"$f":"AK12+AK13+AK14+AK15","v":0},{"$f":"SQRT((AL12^2)+(AL13^2)+(AL14^2)+(AL15^2))","v":34},{"$f":"AM12+AM13+AM14+AM15","v":0},{"$f":"SQRT((AN12^2)+(AN13^2)+(AN14^2)+(AN15^2))","v":34}]
[null,"Less Than 35% of HH Income",{"$f":"C9+C10+C11+C12","v":0},{"$f":"SQRT((D9^2)+(D10^2)+(D11^2)+(D12^2))","v":24},{"$f":"E9+E10+E11+E12","v":0},{"$f":"SQRT((F9^2)+(F10^2)+(F11^2)+(F12^2))","v":24},{"$f":"G9+G10+G11+G12","v":0},{"$f":"SQRT((H9^2)+(H10^2)+(H11^2)+(H12^2))","v":24},{"$f":"I9+I10+I11+I12","v":0},{"$f":"SQRT((J9^2)+(J10^2)+(J11^2)+(J12^2))","v":24},{"$f":"K9+K10+K11+K12","v":0},{"$f":"SQRT((L9^2)+(L10^2)+(L11^2)+(L12^2))","v":34},{"$f":"M9+M10+M11+M12","v":0},{"$f":"SQRT((N9^2)+(N10^2)+(N11^2)+(N12^2))","v":24},{"$f":"O9+O10+O11+O12","v":0},{"$f":"SQRT((P9^2)+(P10^2)+(P11^2)+(P12^2))","v":24},{"$f":"Q9+Q10+Q11+Q12","v":0},{"$f":"SQRT((R9^2)+(R10^2)+(R11^2)+(R12^2))","v":24},{"$f":"S9+S10+S11+S12","v":0},{"$f":"SQRT((T9^2)+(T10^2)+(T11^2)+(T12^2))","v":24},{"$f":"U9+U10+U11+U12","v":0},{"$f":"SQRT((V9^2)+(V10^2)+(V11^2)+(V12^2))","v":24},{"$f":"W9+W10+W11+W12","v":0},{"$f":"SQRT((X9^2)+(X10^2)+(X11^2)+(X12^2))","v":24},{"$f":"Y9+Y10+Y11+Y12","v":0},{"$f":"SQRT((Z9^2)+(Z10^2)+(Z11^2)+(Z12^2))","v":24},{"$f":"AA9+AA10+AA11+AA12","v":0},{"$f":"SQRT((AB9^2)+(AB10^2)+(AB11^2)+(AB12^2))","v":24},{"$f":"AC9+AC10+AC11+AC12","v":0},{"$f":"SQRT((AD9^2)+(AD10^2)+(AD11^2)+(AD12^2))","v":24},{"$f":"AE9+AE10+AE11+AE12","v":0},{"$f":"SQRT((AF9^2)+(AF10^2)+(AF11^2)+(AF12^2))","v":24},{"$f":"AG9+AG10+AG11+AG12","v":0},{"$f":"SQRT((AH9^2)+(AH10^2)+(AH11^2)+(AH12^2))","v":24},{"$f":"AI9+AI10+AI11+AI12","v":0},{"$f":"SQRT((AJ9^2)+(AJ10^2)+(AJ11^2)+(AJ12^2))","v":24},{"$f":"AK9+AK10+AK11+AK12","v":0},{"$f":"SQRT((AL9^2)+(AL10^2)+(AL11^2)+(AL12^2))","v":34},{"$f":"AM9+AM10+AM11+AM12","v":0},{"$f":"SQRT((AN9^2)+(AN10^2)+(AN11^2)+(AN12^2))","v":34}]
[null,"35.0 percent or more",{"$f":"C13+C14++C15","v":12},{"$f":"SQRT((D13^2)+(D14^2)+(D15^2))","v":21.377558326431949},{"$f":"E13+E14++E15","v":0},{"$f":"SQRT((F13^2)+(F14^2)+(F15^2))","v":20.784609690826528},{"$f":"G13+G14++G15","v":0},{"$f":"SQRT((H13^2)+(H14^2)+(H15^2))","v":20.784609690826528},{"$f":"I13+I14++I15","v":0},{"$f":"SQRT((J13^2)+(J14^2)+(J15^2))","v":20.784609690826528},{"$f":"K13+K14++K15","v":90},{"$f":"SQRT((L13^2)+(L14^2)+(L15^2))","v":92.190021151966334},{"$f":"M13+M14++M15","v":0},{"$f":"SQRT((N13^2)+(N14^2)+(N15^2))","v":20.784609690826528},{"$f":"O13+O14++O15","v":0},{"$f":"SQRT((P13^2)+(P14^2)+(P15^2))","v":20.784609690826528},{"$f":"Q13+Q14++Q15","v":0},{"$f":"SQRT((R13^2)+(R14^2)+(R15^2))","v":20.784609690826528},{"$f":"S13+S14++S15","v":0},{"$f":"SQRT((T13^2)+(T14^2)+(T15^2))","v":20.784609690826528},{"$f":"U13+U14++U15","v":0},{"$f":"SQRT((V13^2)+(V14^2)+(V15^2))","v":20.784609690826528},{"$f":"W13+W14++W15","v":0},{"$f":"SQRT((X13^2)+(X14^2)+(X15^2))","v":20.784609690826528},{"$f":"Y13+Y14++Y15","v":0},{"$f":"SQRT((Z13^2)+(Z14^2)+(Z15^2))","v":20.784609690826528},{"$f":"AA13+AA14++AA15","v":0},{"$f":"SQRT((AB13^2)+(AB14^2)+(AB15^2))","v":20.784609690826528},{"$f":"AC13+AC14++AC15","v":7},{"$f":"SQRT((AD13^2)+(AD14^2)+(AD15^2))","v":19.697715603592208},{"$f":"AE13+AE14++AE15","v":0},{"$f":"SQRT((AF13^2)+(AF14^2)+(AF15^2))","v":20.784609690826528},{"$f":"AG13+AG14++AG15","v":0},{"$f":"SQRT((AH13^2)+(AH14^2)+(AH15^2))","v":20.784609690826528},{"$f":"AI13+AI14++AI15","v":0},{"$f":"SQRT((AJ13^2)+(AJ14^2)+(AJ15^2))","v":20.784609690826528},{"$f":"AK13+AK14++AK15","v":0},{"$f":"SQRT((AL13^2)+(AL14^2)+(AL15^2))","v":29.444863728670914},{"$f":"AM13+AM14++AM15","v":0},{"$f":"SQRT((AN13^2)+(AN14^2)+(AN15^2))","v":29.444863728670914}]
[null,"50.0 percent or more",{"$f":"C15","v":12},13,0,12,0,12,0,12,90,89,0,12,0,12,0,12,0,12,0,12,0,12,0,12,0,12,7,10,0,12,0,12,0,12,0,17,0,17]
[null,"Not Computed",{"$f":"C16","v":0},12,42,68,0,12,0,12,42,52,0,12,0,12,0,12,0,12,0,12,8,14,0,12,13,17,6,21,0,12,0,12,0,12,0,17,0,17]
[null,"$10,000 to $19,999:",{"$f":"C17","v":2},4,39,54,1,5,0,12,267,189,6,10,11,10,33,48,0,12,0,12,0,12,0,12,9,14,65,66,5,6,57,62,0,12,0,17,93,106]
[null,"Less than 30.0 percent",{"$f":"C18+C19+C20","v":0},{"$f":"SQRT((D18^2)+(D19^2)+(D20^2))","v":20.784609690826528},{"$f":"E18+E19+E20","v":0},{"$f":"SQRT((F18^2)+(F19^2)+(F20^2))","v":20.784609690826528},{"$f":"G18+G19+G20","v":0},{"$f":"SQRT((H18^2)+(H19^2)+(H20^2))","v":20.784609690826528},{"$f":"I18+I19+I20","v":0},{"$f":"SQRT((J18^2)+(J19^2)+(J20^2))","v":20.784609690826528},{"$f":"K18+K19+K20","v":48},{"$f":"SQRT((L18^2)+(L19^2)+(L20^2))","v":61.343296292260007},{"$f":"M18+M19+M20","v":0},{"$f":"SQRT((N18^2)+(N19^2)+(N20^2))","v":20.784609690826528},{"$f":"O18+O19+O20","v":0},{"$f":"SQRT((P18^2)+(P19^2)+(P20^2))","v":20.784609690826528},{"$f":"Q18+Q19+Q20","v":0},{"$f":"SQRT((R18^2)+(R19^2)+(R20^2))","v":20.784609690826528},{"$f":"S18+S19+S20","v":0},{"$f":"SQRT((T18^2)+(T19^2)+(T20^2))","v":20.784609690826528},{"$f":"U18+U19+U20","v":0},{"$f":"SQRT((V18^2)+(V19^2)+(V20^2))","v":20.784609690826528},{"$f":"W18+W19+W20","v":0},{"$f":"SQRT((X18^2)+(X19^2)+(X20^2))","v":20.784609690826528},{"$f":"Y18+Y19+Y20","v":0},{"$f":"SQRT((Z18^2)+(Z19^2)+(Z20^2))","v":20.784609690826528},{"$f":"AA18+AA19+AA20","v":0},{"$f":"SQRT((AB18^2)+(AB19^2)+(AB20^2))","v":20.784609690826528},{"$f":"AC18+AC19+AC20","v":26},{"$f":"SQRT((AD18^2)+(AD19^2)+(AD20^2))","v":45.299006611624499},{"$f":"AE18+AE19+AE20","v":0},{"$f":"SQRT((AF18^2)+(AF19^2)+(AF20^2))","v":20.784609690826528},{"$f":"AG18+AG19+AG20","v":0},{"$f":"SQRT((AH18^2)+(AH19^2)+(AH20^2))","v":20.784609690826528},{"$f":"AI18+AI19+AI20","v":0},{"$f":"SQRT((AJ18^2)+(AJ19^2)+(AJ20^2))","v":20.784609690826528},{"$f":"AK18+AK19+AK20","v":0},{"$f":"SQRT((AL18^2)+(AL19^2)+(AL20^2))","v":29.444863728670914},{"$f":"AM18+AM19+AM20","v":11},{"$f":"SQRT((AN18^2)+(AN19^2)+(AN20^2))","v":30.643106892089126}]
[null,"More than 30.0 percent",{"$f":"C21+C22+C23+C24","v":0},{"$f":"SQRT((D21^2)+(D22^2)+(D23^2)+(D24^2))","v":24},{"$f":"E21+E22+E23+E24","v":39},{"$f":"SQRT((F21^2)+(F22^2)+(F23^2)+(F24^2))","v":57.86190456595773},{"$f":"G21+G22+G23+G24","v":0},{"$f":"SQRT((H21^2)+(H22^2)+(H23^2)+(H24^2))","v":24},{"$f":"I21+I22+I23+I24","v":0},{"$f":"SQRT((J21^2)+(J22^2)+(J23^2)+(J24^2))","v":24},{"$f":"K21+K22+K23+K24","v":219},{"$f":"SQRT((L21^2)+(L22^2)+(L23^2)+(L24^2))","v":174.7083283647348},{"$f":"M21+M22+M23+M24","v":6},{"$f":"SQRT((N21^2)+(N22^2)+(N23^2)+(N24^2))","v":23.065125189341593},{"$f":"O21+O22+O23+O24","v":4},{"$f":"SQRT((P21^2)+(P22^2)+(P23^2)+(P24^2))","v":21.633307652783937},{"$f":"Q21+Q22+Q23+Q24","v":33},{"$f":"SQRT((R21^2)+(R22^2)+(R23^2)+(R24^2))","v":52.306787322488084},{"$f":"S21+S22+S23+S24","v":0},{"$f":"SQRT((T21^2)+(T22^2)+(T23^2)+(T24^2))","v":24},{"$f":"U21+U22+U23+U24","v":0},{"$f":"SQRT((V21^2)+(V22^2)+(V23^2)+(V24^2))","v":24},{"$f":"W21+W22+W23+W24","v":0},{"$f":"SQRT((X21^2)+(X22^2)+(X23^2)+(X24^2))","v":24},{"$f":"Y21+Y22+Y23+Y24","v":0},{"$f":"SQRT((Z21^2)+(Z22^2)+(Z23^2)+(Z24^2))","v":24},{"$f":"AA21+AA22+AA23+AA24","v":9},{"$f":"SQRT((AB21^2)+(AB22^2)+(AB23^2)+(AB24^2))","v":25.059928172283335},{"$f":"AC21+AC22+AC23+AC24","v":39},{"$f":"SQRT((AD21^2)+(AD22^2)+(AD23^2)+(AD24^2))","v":53.225933528685054},{"$f":"AE21+AE22+AE23+AE24","v":3},{"$f":"SQRT((AF21^2)+(AF22^2)+(AF23^2)+(AF24^2))","v":21.633307652783937},{"$f":"AG21+AG22+AG23+AG24","v":57},{"$f":"SQRT((AH21^2)+(AH22^2)+(AH23^2)+(AH24^2))","v":66.219332524573218},{"$f":"AI21+AI22+AI23+AI24","v":0},{"$f":"SQRT((AJ21^2)+(AJ22^2)+(AJ23^2)+(AJ24^2))","v":24},{"$f":"AK21+AK22+AK23+AK24","v":0},{"$f":"SQRT((AL21^2)+(AL22^2)+(AL23^2)+(AL24^2))","v":34},{"$f":"AM21+AM22+AM23+AM24","v":82},{"$f":"SQRT((AN21^2)+(AN22^2)+(AN23^2)+(AN24^2))","v":109.05044704172468}]
[null,"Less Than 35% of HH Income",{"$f":"C18+C19+C20+C21","v":0},{"$f":"SQRT((D18^2)+(D19^2)+(D20^2)+(D21^2))","v":24},{"$f":"E18+E19+E20+E21","v":0},{"$f":"SQRT((F18^2)+(F19^2)+(F20^2)+(F21^2))","v":24},{"$f":"G18+G19+G20+G21","v":0},{"$f":"SQRT((H18^2)+(H19^2)+(H20^2)+(H21^2))","v":24},{"$f":"I18+I19+I20+I21","v":0},{"$f":"SQRT((J18^2)+(J19^2)+(J20^2)+(J21^2))","v":24},{"$f":"K18+K19+K20+K21","v":48},{"$f":"SQRT((L18^2)+(L19^2)+(L20^2)+(L21^2))","v":63.655321851358195},{"$f":"M18+M19+M20+M21","v":0},{"$f":"SQRT((N18^2)+(N19^2)+(N20^2)+(N21^2))","v":24},{"$f":"O18+O19+O20+O21","v":0},{"$f":"SQRT((P18^2)+(P19^2)+(P20^2)+(P21^2))","v":24},{"$f":"Q18+Q19+Q20+Q21","v":0},{"$f":"SQRT((R18^2)+(R19^2)+(R20^2)+(R21^2))","v":24},{"$f":"S18+S19+S20+S21","v":0},{"$f":"SQRT((T18^2)+(T19^2)+(T20^2)+(T21^2))","v":24},{"$f":"U18+U19+U20+U21","v":0},{"$f":"SQRT((V18^2)+(V19^2)+(V20^2)+(V21^2))","v":24},{"$f":"W18+W19+W20+W21","v":0},{"$f":"SQRT((X18^2)+(X19^2)+(X20^2)+(X21^2))","v":24},{"$f":"Y18+Y19+Y20+Y21","v":0},{"$f":"SQRT((Z18^2)+(Z19^2)+(Z20^2)+(Z21^2))","v":24},{"$f":"AA18+AA19+AA20+AA21","v":0},{"$f":"SQRT((AB18^2)+(AB19^2)+(AB20^2)+(AB21^2))","v":24},{"$f":"AC18+AC19+AC20+AC21","v":26},{"$f":"SQRT((AD18^2)+(AD19^2)+(AD20^2)+(AD21^2))","v":46.861498055439924},{"$f":"AE18+AE19+AE20+AE21","v":0},{"$f":"SQRT((AF18^2)+(AF19^2)+(AF20^2)+(AF21^2))","v":24},{"$f":"AG18+AG19+AG20+AG21","v":37},{"$f":"SQRT((AH18^2)+(AH19^2)+(AH20^2)+(AH21^2))","v":59.732738092272314},{"$f":"AI18+AI19+AI20+AI21","v":0},{"$f":"SQRT((AJ18^2)+(AJ19^2)+(AJ20^2)+(AJ21^2))","v":24},{"$f":"AK18+AK19+AK20+AK21","v":0},{"$f":"SQRT((AL18^2)+(AL19^2)+(AL20^2)+(AL21^2))","v":34},{"$f":"AM18+AM19+AM20+AM21","v":11},{"$f":"SQRT((AN18^2)+(AN19^2)+(AN20^2)+(AN21^2))","v":35.042830935870462}]
[null,"35.0 percent or more",{"$f":"C22+C23++C24","v":0},{"$f":"SQRT((D22^2)+(D23^2)+(D24^2))","v":20.784609690826528},{"$f":"E22+E23++E24","v":39},{"$f":"SQRT((F22^2)+(F23^2)+(F24^2))","v":56.603886792339623},{"$f":"G22+G23++G24","v":0},{"$f":"SQRT((H22^2)+(H23^2)+(H24^2))","v":20.784609690826528},{"$f":"I22+I23++I24","v":0},{"$f":"SQRT((J22^2)+(J23^2)+(J24^2))","v":20.784609690826528},{"$f":"K22+K23++K24","v":219},{"$f":"SQRT((L22^2)+(L23^2)+(L24^2))","v":173.87926845946873},{"$f":"M22+M23++M24","v":6},{"$f":"SQRT((N22^2)+(N23^2)+(N24^2))","v":19.697715603592208},{"$f":"O22+O23++O24","v":4},{"$f":"SQRT((P22^2)+(P23^2)+(P24^2))","v":18},{"$f":"Q22+Q23++Q24","v":33},{"$f":"SQRT((R22^2)+(R23^2)+(R24^2))","v":50.911688245431421},{"$f":"S22+S23++S24","v":0},{"$f":"SQRT((T22^2)+(T23^2)+(T24^2))","v":20.784609690826528},{"$f":"U22+U23++U24","v":0},{"$f":"SQRT((V22^2)+(V23^2)+(V24^2))","v":20.784609690826528},{"$f":"W22+W23++W24","v":0},{"$f":"SQRT((X22^2)+(X23^2)+(X24^2))","v":20.784609690826528},{"$f":"Y22+Y23++Y24","v":0},{"$f":"SQRT((Z22^2)+(Z23^2)+(Z24^2))","v":20.784609690826528},{"$f":"AA22+AA23++AA24","v":9},{"$f":"SQRT((AB22^2)+(AB23^2)+(AB24^2))","v":22},{"$f":"AC22+AC23++AC24","v":39},{"$f":"SQRT((AD22^2)+(AD23^2)+(AD24^2))","v":51.855568649856693},{"$f":"AE22+AE23++AE24","v":3},{"$f":"SQRT((AF22^2)+(AF23^2)+(AF24^2))","v":18},{"$f":"AG22+AG23++AG24","v":20},{"$f":"SQRT((AH22^2)+(AH23^2)+(AH24^2))","v":35.341194094144583},{"$f":"AI22+AI23++AI24","v":0},{"$f":"SQRT((AJ22^2)+(AJ23^2)+(AJ24^2))","v":20.784609690826528},{"$f":"AK22+AK23++AK24","v":0},{"$f":"SQRT((AL22^2)+(AL23^2)+(AL24^2))","v":29.444863728670914},{"$f":"AM22+AM23++AM24","v":82},{"$f":"SQRT((AN22^2)+(AN23^2)+(AN24^2))","v":107.71722239270747}]
[null,"50.0 percent or more",{"$f":"C24","v":0},{"$f":"D24","v":12},{"$f":"E24","v":39},54,{"$f":"G24","v":0},12,{"$f":"I24","v":0},12,{"$f":"K24","v":207},172,{"$f":"M24","v":6},10,{"$f":"O24","v":4},6,{"$f":"Q24","v":33},48,{"$f":"S24","v":0},12,{"$f":"U24","v":0},12,{"$f":"W24","v":0},12,{"$f":"Y24","v":0},12,{"$f":"AA24","v":9},14,{"$f":"AC24","v":39},49,{"$f":"AE24","v":0},12,{"$f":"AG24","v":20},31,{"$f":"AI24","v":0},12,{"$f":"AK24","v":0},17,{"$f":"AM24","v":82},105]
[null,"Not Computed",{"$f":"C25","v":2},4,0,12,1,5,0,12,0,17,0,12,7,7,0,12,0,12,0,12,0,12,0,12,0,12,0,12,2,3,0,12,0,12,0,17,0,17]
[null,"$20,000 to $34,999:",34,36,75,76,0,12,13,16,209,118,7,10,9,10,0,12,0,12,0,12,0,12,31,35,0,12,56,60,7,7,65,63,0,12,50,80,93,70]
[null,"Less than 30.0 percent",{"$f":"C27+C28+C29","v":3},{"$f":"SQRT((D27^2)+(D28^2)+(D29^2))","v":17.435595774162696},{"$f":"E27+E28+E29","v":0},{"$f":"SQRT((F27^2)+(F28^2)+(F29^2))","v":20.784609690826528},{"$f":"G27+G28+G29","v":0},{"$f":"SQRT((H27^2)+(H28^2)+(H29^2))","v":20.784609690826528},{"$f":"I27+I28+I29","v":0},{"$f":"SQRT((J27^2)+(J28^2)+(J29^2))","v":20.784609690826528},{"$f":"K27+K28+K29","v":44},{"$f":"SQRT((L27^2)+(L28^2)+(L29^2))","v":75.907838857393372},{"$f":"M27+M28+M29","v":0},{"$f":"SQRT((N27^2)+(N28^2)+(N29^2))","v":20.784609690826528},{"$f":"O27+O28+O29","v":0},{"$f":"SQRT((P27^2)+(P28^2)+(P29^2))","v":20.784609690826528},{"$f":"Q27+Q28+Q29","v":0},{"$f":"SQRT((R27^2)+(R28^2)+(R29^2))","v":20.784609690826528},{"$f":"S27+S28+S29","v":0},{"$f":"SQRT((T27^2)+(T28^2)+(T29^2))","v":20.784609690826528},{"$f":"U27+U28+U29","v":0},{"$f":"SQRT((V27^2)+(V28^2)+(V29^2))","v":20.784609690826528},{"$f":"W27+W28+W29","v":0},{"$f":"SQRT((X27^2)+(X28^2)+(X29^2))","v":20.784609690826528},{"$f":"Y27+Y28+Y29","v":3},{"$f":"SQRT((Z27^2)+(Z28^2)+(Z29^2))","v":17.691806012954132},{"$f":"AA27+AA28+AA29","v":0},{"$f":"SQRT((AB27^2)+(AB28^2)+(AB29^2))","v":20.784609690826528},{"$f":"AC27+AC28+AC29","v":0},{"$f":"SQRT((AD27^2)+(AD28^2)+(AD29^2))","v":20.784609690826528},{"$f":"AE27+AE28+AE29","v":0},{"$f":"SQRT((AF27^2)+(AF28^2)+(AF29^2))","v":20.784609690826528},{"$f":"AG27+AG28+AG29","v":11},{"$f":"SQRT((AH27^2)+(AH28^2)+(AH29^2))","v":26.229754097208001},{"$f":"AI27+AI28+AI29","v":0},{"$f":"SQRT((AJ27^2)+(AJ28^2)+(AJ29^2))","v":20.784609690826528},{"$f":"AK27+AK28+AK29","v":0},{"$f":"SQRT((AL27^2)+(AL28^2)+(AL29^2))","v":29.444863728670914},{"$f":"AM27+AM28+AM29","v":36},{"$f":"SQRT((AN27^2)+(AN28^2)+(AN29^2))","v":45.188494110780013}]
[null,"More than 30.0 percent",{"$f":"C30+C31+C32+C33","v":0},{"$f":"SQRT((D30^2)+(D31^2)+(D32^2)+(D33^2))","v":24},{"$f":"E30+E31+E32+E33","v":75},{"$f":"SQRT((F30^2)+(F31^2)+(F32^2)+(F33^2))","v":78.549347546621931},{"$f":"G30+G31+G32+G33","v":0},{"$f":"SQRT((H30^2)+(H31^2)+(H32^2)+(H33^2))","v":24},{"$f":"I30+I31+I32+I33","v":4},{"$f":"SQRT((J30^2)+(J31^2)+(J32^2)+(J33^2))","v":21.633307652783937},{"$f":"K30+K31+K32+K33","v":131},{"$f":"SQRT((L30^2)+(L31^2)+(L32^2)+(L33^2))","v":99.834863649929432},{"$f":"M30+M31+M32+M33","v":6},{"$f":"SQRT((N30^2)+(N31^2)+(N32^2)+(N33^2))","v":23.065125189341593},{"$f":"O30+O31+O32+O33","v":4},{"$f":"SQRT((P30^2)+(P31^2)+(P32^2)+(P33^2))","v":21.377558326431949},{"$f":"Q30+Q31+Q32+Q33","v":0},{"$f":"SQRT((R30^2)+(R31^2)+(R32^2)+(R33^2))","v":24},{"$f":"S30+S31+S32+S33","v":0},{"$f":"SQRT((T30^2)+(T31^2)+(T32^2)+(T33^2))","v":24},{"$f":"U30+U31+U32+U33","v":0},{"$f":"SQRT((V30^2)+(V31^2)+(V32^2)+(V33^2))","v":24},{"$f":"W30+W31+W32+W33","v":0},{"$f":"SQRT((X30^2)+(X31^2)+(X32^2)+(X33^2))","v":24},{"$f":"Y30+Y31+Y32+Y33","v":28},{"$f":"SQRT((Z30^2)+(Z31^2)+(Z32^2)+(Z33^2))","v":33.955853692699293},{"$f":"AA30+AA31+AA32+AA33","v":0},{"$f":"SQRT((AB30^2)+(AB31^2)+(AB32^2)+(AB33^2))","v":24},{"$f":"AC30+AC31+AC32+AC33","v":56},{"$f":"SQRT((AD30^2)+(AD31^2)+(AD32^2)+(AD33^2))","v":61.619802012015583},{"$f":"AE30+AE31+AE32+AE33","v":0},{"$f":"SQRT((AF30^2)+(AF31^2)+(AF32^2)+(AF33^2))","v":24},{"$f":"AG30+AG31+AG32+AG33","v":54},{"$f":"SQRT((AH30^2)+(AH31^2)+(AH32^2)+(AH33^2))","v":60.876925020897694},{"$f":"AI30+AI31+AI32+AI33","v":0},{"$f":"SQRT((AJ30^2)+(AJ31^2)+(AJ32^2)+(AJ33^2))","v":24},{"$f":"AK30+AK31+AK32+AK33","v":50},{"$f":"SQRT((AL30^2)+(AL31^2)+(AL32^2)+(AL33^2))","v":85.246700815926005},{"$f":"AM30+AM31+AM32+AM33","v":41},{"$f":"SQRT((AN30^2)+(AN31^2)+(AN32^2)+(AN33^2))","v":50.626080235388557}]
[null,"Less Than 35% of HH Income",{"$f":"C27+C28+C29+C30","v":3},{"$f":"SQRT((D27^2)+(D28^2)+(D29^2)+(D30^2))","v":21.166010488516726},{"$f":"E27+E28+E29+E30","v":0},{"$f":"SQRT((F27^2)+(F28^2)+(F29^2)+(F30^2))","v":24},{"$f":"G27+G28+G29+G30","v":0},{"$f":"SQRT((H27^2)+(H28^2)+(H29^2)+(H30^2))","v":24},{"$f":"I27+I28+I29+I30","v":0},{"$f":"SQRT((J27^2)+(J28^2)+(J29^2)+(J30^2))","v":24},{"$f":"K27+K28+K29+K30","v":90},{"$f":"SQRT((L27^2)+(L28^2)+(L29^2)+(L30^2))","v":90.895544445258707},{"$f":"M27+M28+M29+M30","v":0},{"$f":"SQRT((N27^2)+(N28^2)+(N29^2)+(N30^2))","v":24},{"$f":"O27+O28+O29+O30","v":0},{"$f":"SQRT((P27^2)+(P28^2)+(P29^2)+(P30^2))","v":24},{"$f":"Q27+Q28+Q29+Q30","v":0},{"$f":"SQRT((R27^2)+(R28^2)+(R29^2)+(R30^2))","v":24},{"$f":"S27+S28+S29+S30","v":0},{"$f":"SQRT((T27^2)+(T28^2)+(T29^2)+(T30^2))","v":24},{"$f":"U27+U28+U29+U30","v":0},{"$f":"SQRT((V27^2)+(V28^2)+(V29^2)+(V30^2))","v":24},{"$f":"W27+W28+W29+W30","v":0},{"$f":"SQRT((X27^2)+(X28^2)+(X29^2)+(X30^2))","v":24},{"$f":"Y27+Y28+Y29+Y30","v":3},{"$f":"SQRT((Z27^2)+(Z28^2)+(Z29^2)+(Z30^2))","v":21.377558326431949},{"$f":"AA27+AA28+AA29+AA30","v":0},{"$f":"SQRT((AB27^2)+(AB28^2)+(AB29^2)+(AB30^2))","v":24},{"$f":"AC27+AC28+AC29+AC30","v":0},{"$f":"SQRT((AD27^2)+(AD28^2)+(AD29^2)+(AD30^2))","v":24},{"$f":"AE27+AE28+AE29+AE30","v":0},{"$f":"SQRT((AF27^2)+(AF28^2)+(AF29^2)+(AF30^2))","v":24},{"$f":"AG27+AG28+AG29+AG30","v":11},{"$f":"SQRT((AH27^2)+(AH28^2)+(AH29^2)+(AH30^2))","v":28.844410203711913},{"$f":"AI27+AI28+AI29+AI30","v":0},{"$f":"SQRT((AJ27^2)+(AJ28^2)+(AJ29^2)+(AJ30^2))","v":24},{"$f":"AK27+AK28+AK29+AK30","v":0},{"$f":"SQRT((AL27^2)+(AL28^2)+(AL29^2)+(AL30^2))","v":34},{"$f":"AM27+AM28+AM29+AM30","v":57},{"$f":"SQRT((AN27^2)+(AN28^2)+(AN29^2)+(AN30^2))","v":55.371472799628513}]
[null,"35.0 percent or more",{"$f":"C31+C32+C33","v":0},{"$f":"SQRT((D31^2)+(D32^2)+(D33^2))","v":20.784609690826528},{"$f":"E31+E32+E33","v":75},{"$f":"SQRT((F31^2)+(F32^2)+(F33^2))","v":77.627314780301404},{"$f":"G31+G32+G33","v":0},{"$f":"SQRT((H31^2)+(H32^2)+(H33^2))","v":20.784609690826528},{"$f":"I31+I32+I33","v":4},{"$f":"SQRT((J31^2)+(J32^2)+(J33^2))","v":18},{"$f":"K31+K32+K33","v":85},{"$f":"SQRT((L31^2)+(L32^2)+(L33^2))","v":86.411804749119781},{"$f":"M31+M32+M33","v":6},{"$f":"SQRT((N31^2)+(N32^2)+(N33^2))","v":19.697715603592208},{"$f":"O31+O32+O33","v":4},{"$f":"SQRT((P31^2)+(P32^2)+(P33^2))","v":17.691806012954132},{"$f":"Q31+Q32+Q33","v":0},{"$f":"SQRT((R31^2)+(R32^2)+(R33^2))","v":20.784609690826528},{"$f":"S31+S32+S33","v":0},{"$f":"SQRT((T31^2)+(T32^2)+(T33^2))","v":20.784609690826528},{"$f":"U31+U32+U33","v":0},{"$f":"SQRT((V31^2)+(V32^2)+(V33^2))","v":20.784609690826528},{"$f":"W31+W32+W33","v":0},{"$f":"SQRT((X31^2)+(X32^2)+(X33^2))","v":20.784609690826528},{"$f":"Y31+Y32+Y33","v":28},{"$f":"SQRT((Z31^2)+(Z32^2)+(Z33^2))","v":31.76476034853718},{"$f":"AA31+AA32+AA33","v":0},{"$f":"SQRT((AB31^2)+(AB32^2)+(AB33^2))","v":20.784609690826528},{"$f":"AC31+AC32+AC33","v":56},{"$f":"SQRT((AD31^2)+(AD32^2)+(AD33^2))","v":60.440052945046304},{"$f":"AE31+AE32+AE33","v":0},{"$f":"SQRT((AF31^2)+(AF32^2)+(AF33^2))","v":20.784609690826528},{"$f":"AG31+AG32+AG33","v":54},{"$f":"SQRT((AH31^2)+(AH32^2)+(AH33^2))","v":59.682493245507096},{"$f":"AI31+AI32+AI33","v":0},{"$f":"SQRT((AJ31^2)+(AJ32^2)+(AJ33^2))","v":20.784609690826528},{"$f":"AK31+AK32+AK33","v":50},{"$f":"SQRT((AL31^2)+(AL32^2)+(AL33^2))","v":83.534424041828402},{"$f":"AM31+AM32+AM33","v":20},{"$f":"SQRT((AN31^2)+(AN32^2)+(AN33^2))","v":39.230090491866065}]
[null,"50.0 percent or more",{"$f":"C33","v":0},12,37,49,0,12,0,12,75,83,0,12,4,5,0,12,0,12,0,12,0,12,18,24,0,12,21,22,0,12,8,13,0,12,0,17,0,17]
[null,"Not Computed",31,36,0,12,0,12,9,15,34,44,1,2,5,8,0,12,0,12,0,12,0,12,0,12,0,12,0,12,7,7,0,12,0,12,0,17,16,25]
[null,"$35,000 to $49,999:",5,6,95,112,0,12,5,7,181,118,11,14,6,8,0,12,0,12,0,12,62,60,1,4,51,47,27,28,9,13,32,45,13,21,14,22,33,40]
[null,"Less than 30.0 percent",{"$f":"C36+C37+C38","v":0},{"$f":"SQRT((D36^2)+(D37^2)+(D38^2))","v":20.784609690826528},{"$f":"E36+E37+E38","v":0},{"$f":"SQRT((F36^2)+(F37^2)+(F38^2))","v":20.784609690826528},{"$f":"G36+G37+G38","v":0},{"$f":"SQRT((H36^2)+(H37^2)+(H38^2))","v":20.784609690826528},{"$f":"I36+I37+I38","v":5},{"$f":"SQRT((J36^2)+(J37^2)+(J38^2))","v":18.357559750685819},{"$f":"K36+K37+K38","v":60},{"$f":"SQRT((L36^2)+(L37^2)+(L38^2))","v":75.907838857393372},{"$f":"M36+M37+M38","v":8},{"$f":"SQRT((N36^2)+(N37^2)+(N38^2))","v":21.377558326431949},{"$f":"O36+O37+O38","v":0},{"$f":"SQRT((P36^2)+(P37^2)+(P38^2))","v":20.784609690826528},{"$f":"Q36+Q37+Q38","v":0},{"$f":"SQRT((R36^2)+(R37^2)+(R38^2))","v":20.784609690826528},{"$f":"S36+S37+S38","v":0},{"$f":"SQRT((T36^2)+(T37^2)+(T38^2))","v":20.784609690826528},{"$f":"U36+U37+U38","v":0},{"$f":"SQRT((V36^2)+(V37^2)+(V38^2))","v":20.784609690826528},{"$f":"W36+W37+W38","v":13},{"$f":"SQRT((X36^2)+(X37^2)+(X38^2))","v":31.048349392520048},{"$f":"Y36+Y37+Y38","v":0},{"$f":"SQRT((Z36^2)+(Z37^2)+(Z38^2))","v":20.784609690826528},{"$f":"AA36+AA37+AA38","v":20},{"$f":"SQRT((AB36^2)+(AB37^2)+(AB38^2))","v":35.341194094144583},{"$f":"AC36+AC37+AC38","v":9},{"$f":"SQRT((AD36^2)+(AD37^2)+(AD38^2))","v":22},{"$f":"AE36+AE37+AE38","v":0},{"$f":"SQRT((AF36^2)+(AF37^2)+(AF38^2))","v":20.784609690826528},{"$f":"AG36+AG37+AG38","v":0},{"$f":"SQRT((AH36^2)+(AH37^2)+(AH38^2))","v":20.784609690826528},{"$f":"AI36+AI37+AI38","v":0},{"$f":"SQRT((AJ36^2)+(AJ37^2)+(AJ38^2))","v":20.784609690826528},{"$f":"AK36+AK37+AK38","v":0},{"$f":"SQRT((AL36^2)+(AL37^2)+(AL38^2))","v":29.444863728670914},{"$f":"AM36+AM37+AM38","v":0},{"$f":"SQRT((AN36^2)+(AN37^2)+(AN38^2))","v":29.444863728670914}]
[null,"More than 30.0 percent",{"$f":"C39+C40+C41+C42","v":5},{"$f":"SQRT((D39^2)+(D40^2)+(D41^2)+(D42^2))","v":18.138357147217054},{"$f":"E39+E40+E41+E42","v":95},{"$f":"SQRT((F39^2)+(F40^2)+(F41^2)+(F42^2))","v":113.91224692718514},{"$f":"G39+G40+G41+G42","v":0},{"$f":"SQRT((H39^2)+(H40^2)+(H41^2)+(H42^2))","v":24},{"$f":"I39+I40+I41+I42","v":0},{"$f":"SQRT((J39^2)+(J40^2)+(J41^2)+(J42^2))","v":24},{"$f":"K39+K40+K41+K42","v":121},{"$f":"SQRT((L39^2)+(L40^2)+(L41^2)+(L42^2))","v":91.383806005221729},{"$f":"M39+M40+M41+M42","v":3},{"$f":"SQRT((N39^2)+(N40^2)+(N41^2)+(N42^2))","v":21.166010488516726},{"$f":"O39+O40+O41+O42","v":0},{"$f":"SQRT((P39^2)+(P40^2)+(P41^2)+(P42^2))","v":24},{"$f":"Q39+Q40+Q41+Q42","v":0},{"$f":"SQRT((R39^2)+(R40^2)+(R41^2)+(R42^2))","v":24},{"$f":"S39+S40+S41+S42","v":0},{"$f":"SQRT((T39^2)+(T40^2)+(T41^2)+(T42^2))","v":24},{"$f":"U39+U40+U41+U42","v":0},{"$f":"SQRT((V39^2)+(V40^2)+(V41^2)+(V42^2))","v":24},{"$f":"W39+W40+W41+W42","v":49},{"$f":"SQRT((X39^2)+(X40^2)+(X41^2)+(X42^2))","v":57.86190456595773},{"$f":"Y39+Y40+Y41+Y42","v":1},{"$f":"SQRT((Z39^2)+(Z40^2)+(Z41^2)+(Z42^2))","v":21.166010488516726},{"$f":"AA39+AA40+AA41+AA42","v":31},{"$f":"SQRT((AB39^2)+(AB40^2)+(AB41^2)+(AB42^2))","v":36.124783736376884},{"$f":"AC39+AC40+AC41+AC42","v":10},{"$f":"SQRT((AD39^2)+(AD40^2)+(AD41^2)+(AD42^2))","v":28.844410203711913},{"$f":"AE39+AE40+AE41+AE42","v":9},{"$f":"SQRT((AF39^2)+(AF40^2)+(AF41^2)+(AF42^2))","v":24.515301344262525},{"$f":"AG39+AG40+AG41+AG42","v":32},{"$f":"SQRT((AH39^2)+(AH40^2)+(AH41^2)+(AH42^2))","v":49.568134925574917},{"$f":"AI39+AI40+AI41+AI42","v":13},{"$f":"SQRT((AJ39^2)+(AJ40^2)+(AJ41^2)+(AJ42^2))","v":29.546573405388315},{"$f":"AK39+AK40+AK41+AK42","v":14},{"$f":"SQRT((AL39^2)+(AL40^2)+(AL41^2)+(AL42^2))","v":36.755951898978211},{"$f":"AM39+AM40+AM41+AM42","v":27},{"$f":"SQRT((AN39^2)+(AN40^2)+(AN41^2)+(AN42^2))","v":48.867166891482462}]
[null,"Less Than 35% of HH Income",{"$f":"C36+C37+C38+C39","v":2},{"$f":"SQRT((D36^2)+(D37^2)+(D38^2)+(D39^2))","v":21.166010488516726},{"$f":"E36+E37+E38+E39","v":0},{"$f":"SQRT((F36^2)+(F37^2)+(F38^2)+(F39^2))","v":24},{"$f":"G36+G37+G38+G39","v":0},{"$f":"SQRT((H36^2)+(H37^2)+(H38^2)+(H39^2))","v":24},{"$f":"I36+I37+I38+I39","v":5},{"$f":"SQRT((J36^2)+(J37^2)+(J38^2)+(J39^2))","v":21.931712199461309},{"$f":"K36+K37+K38+K39","v":104},{"$f":"SQRT((L36^2)+(L37^2)+(L38^2)+(L39^2))","v":103.25696102442683},{"$f":"M36+M37+M38+M39","v":8},{"$f":"SQRT((N36^2)+(N37^2)+(N38^2)+(N39^2))","v":24.515301344262525},{"$f":"O36+O37+O38+O39","v":0},{"$f":"SQRT((P36^2)+(P37^2)+(P38^2)+(P39^2))","v":24},{"$f":"Q36+Q37+Q38+Q39","v":0},{"$f":"SQRT((R36^2)+(R37^2)+(R38^2)+(R39^2))","v":24},{"$f":"S36+S37+S38+S39","v":0},{"$f":"SQRT((T36^2)+(T37^2)+(T38^2)+(T39^2))","v":24},{"$f":"U36+U37+U38+U39","v":0},{"$f":"SQRT((V36^2)+(V37^2)+(V38^2)+(V39^2))","v":24},{"$f":"W36+W37+W38+W39","v":13},{"$f":"SQRT((X36^2)+(X37^2)+(X38^2)+(X39^2))","v":33.286633954186478},{"$f":"Y36+Y37+Y38+Y39","v":0},{"$f":"SQRT((Z36^2)+(Z37^2)+(Z38^2)+(Z39^2))","v":24},{"$f":"AA36+AA37+AA38+AA39","v":20},{"$f":"SQRT((AB36^2)+(AB37^2)+(AB38^2)+(AB39^2))","v":37.322915213043046},{"$f":"AC36+AC37+AC38+AC39","v":9},{"$f":"SQRT((AD36^2)+(AD37^2)+(AD38^2)+(AD39^2))","v":25.059928172283335},{"$f":"AE36+AE37+AE38+AE39","v":0},{"$f":"SQRT((AF36^2)+(AF37^2)+(AF38^2)+(AF39^2))","v":24},{"$f":"AG36+AG37+AG38+AG39","v":0},{"$f":"SQRT((AH36^2)+(AH37^2)+(AH38^2)+(AH39^2))","v":24},{"$f":"AI36+AI37+AI38+AI39","v":13},{"$f":"SQRT((AJ36^2)+(AJ37^2)+(AJ38^2)+(AJ39^2))","v":29.546573405388315},{"$f":"AK36+AK37+AK38+AK39","v":0},{"$f":"SQRT((AL36^2)+(AL37^2)+(AL38^2)+(AL39^2))","v":34},{"$f":"AM36+AM37+AM38+AM39","v":0},{"$f":"SQRT((AN36^2)+(AN37^2)+(AN38^2)+(AN39^2))","v":34}]
[null,"35.0 percent or more",{"$f":"C40+C41+C42","v":3},{"$f":"SQRT((D40^2)+(D41^2)+(D42^2))","v":17.691806012954132},{"$f":"E40+E41+E42","v":95},{"$f":"SQRT((F40^2)+(F41^2)+(F42^2))","v":113.27841806805037},{"$f":"G40+G41+G42","v":0},{"$f":"SQRT((H40^2)+(H41^2)+(H42^2))","v":20.784609690826528},{"$f":"I40+I41+I42","v":0},{"$f":"SQRT((J40^2)+(J41^2)+(J42^2))","v":20.784609690826528},{"$f":"K40+K41+K42","v":77},{"$f":"SQRT((L40^2)+(L41^2)+(L42^2))","v":58.745212570898062},{"$f":"M40+M41+M42","v":3},{"$f":"SQRT((N40^2)+(N41^2)+(N42^2))","v":17.435595774162696},{"$f":"O40+O41+O42","v":0},{"$f":"SQRT((P40^2)+(P41^2)+(P42^2))","v":20.784609690826528},{"$f":"Q40+Q41+Q42","v":0},{"$f":"SQRT((R40^2)+(R41^2)+(R42^2))","v":20.784609690826528},{"$f":"S40+S41+S42","v":0},{"$f":"SQRT((T40^2)+(T41^2)+(T42^2))","v":20.784609690826528},{"$f":"U40+U41+U42","v":0},{"$f":"SQRT((V40^2)+(V41^2)+(V42^2))","v":20.784609690826528},{"$f":"W40+W41+W42","v":49},{"$f":"SQRT((X40^2)+(X41^2)+(X42^2))","v":56.603886792339623},{"$f":"Y40+Y41+Y42","v":1},{"$f":"SQRT((Z40^2)+(Z41^2)+(Z42^2))","v":17.435595774162696},{"$f":"AA40+AA41+AA42","v":31},{"$f":"SQRT((AB40^2)+(AB41^2)+(AB42^2))","v":34.073450074801642},{"$f":"AC40+AC41+AC42","v":10},{"$f":"SQRT((AD40^2)+(AD41^2)+(AD42^2))","v":26.229754097208001},{"$f":"AE40+AE41+AE42","v":9},{"$f":"SQRT((AF40^2)+(AF41^2)+(AF42^2))","v":21.377558326431949},{"$f":"AG40+AG41+AG42","v":32},{"$f":"SQRT((AH40^2)+(AH41^2)+(AH42^2))","v":48.093658625644196},{"$f":"AI40+AI41+AI42","v":0},{"$f":"SQRT((AJ40^2)+(AJ41^2)+(AJ42^2))","v":20.784609690826528},{"$f":"AK40+AK41+AK42","v":14},{"$f":"SQRT((AL40^2)+(AL41^2)+(AL42^2))","v":32.58834147360065},{"$f":"AM40+AM41+AM42","v":27},{"$f":"SQRT((AN40^2)+(AN41^2)+(AN42^2))","v":45.814844755821227}]
[null,"50.0 percent or more",{"$f":"C42","v":0},{"$f":"D42","v":12},{"$f":"E42","v":0},12,{"$f":"G42","v":0},12,{"$f":"I42","v":0},12,{"$f":"K42","v":23},29,{"$f":"M42","v":0},12,{"$f":"O42","v":0},12,{"$f":"Q42","v":0},12,{"$f":"S42","v":0},12,{"$f":"U42","v":0},12,{"$f":"W42","v":9},12,{"$f":"Y42","v":0},12,{"$f":"AA42","v":14},21,{"$f":"AC42","v":0},12,{"$f":"AE42","v":9},13,{"$f":"AG42","v":0},12,{"$f":"AI42","v":0},12,{"$f":"AK42","v":0},17,{"$f":"AM42","v":0},17]
[null,"Not Computed",{"$f":"C43","v":0},12,{"$f":"E43","v":0},12,{"$f":"G43","v":0},12,{"$f":"I43","v":0},12,{"$f":"K43","v":0},17,{"$f":"M43","v":0},12,{"$f":"O43","v":6},8,{"$f":"Q43","v":0},12,{"$f":"S43","v":0},12,{"$f":"U43","v":0},12,{"$f":"W43","v":0},12,{"$f":"Y43","v":0},12,{"$f":"AA43","v":0},12,{"$f":"AC43","v":8},14,{"$f":"AE43","v":0},12,{"$f":"AG43","v":0},12,{"$f":"AI43","v":0},12,{"$f":"AK43","v":0},17,{"$f":"AM43","v":6},10]
[null,"$50,000 to $74,999:",{"$f":"C44","v":33},60,57,54,0,12,1,2,190,118,7,8,23,28,0,12,0,12,0,12,0,12,33,25,24,25,88,76,5,7,96,74,19,22,17,22,59,77]
[null,"Less than 30.0 percent",{"$f":"C45+C46+C47","v":0},{"$f":"SQRT((D45^2)+(D46^2)+(D47^2))","v":20.784609690826528},{"$f":"E45+E46+E47","v":23},{"$f":"SQRT((F45^2)+(F46^2)+(F47^2))","v":38},{"$f":"G45+G46+G47","v":0},{"$f":"SQRT((H45^2)+(H46^2)+(H47^2))","v":20.784609690826528},{"$f":"I45+I46+I47","v":0},{"$f":"SQRT((J45^2)+(J46^2)+(J47^2))","v":20.784609690826528},{"$f":"K45+K46+K47","v":107},{"$f":"SQRT((L45^2)+(L46^2)+(L47^2))","v":87.874911095260856},{"$f":"M45+M46+M47","v":7},{"$f":"SQRT((N45^2)+(N46^2)+(N47^2))","v":14.212670403551895},{"$f":"O45+O46+O47","v":21},{"$f":"SQRT((P45^2)+(P46^2)+(P47^2))","v":29.068883707497267},{"$f":"Q45+Q46+Q47","v":0},{"$f":"SQRT((R45^2)+(R46^2)+(R47^2))","v":20.784609690826528},{"$f":"S45+S46+S47","v":0},{"$f":"SQRT((T45^2)+(T46^2)+(T47^2))","v":20.784609690826528},{"$f":"U45+U46+U47","v":0},{"$f":"SQRT((V45^2)+(V46^2)+(V47^2))","v":20.784609690826528},{"$f":"W45+W46+W47","v":0},{"$f":"SQRT((X45^2)+(X46^2)+(X47^2))","v":20.784609690826528},{"$f":"Y45+Y46+Y47","v":25},{"$f":"SQRT((Z45^2)+(Z46^2)+(Z47^2))","v":28.583211855912904},{"$f":"AA45+AA46+AA47","v":17},{"$f":"SQRT((AB45^2)+(AB46^2)+(AB47^2))","v":27.784887978899608},{"$f":"AC45+AC46+AC47","v":49},{"$f":"SQRT((AD45^2)+(AD46^2)+(AD47^2))","v":60.282667492406141},{"$f":"AE45+AE46+AE47","v":5},{"$f":"SQRT((AF45^2)+(AF46^2)+(AF47^2))","v":18.357559750685819},{"$f":"AG45+AG46+AG47","v":49},{"$f":"SQRT((AH45^2)+(AH46^2)+(AH47^2))","v":68.146900149603283},{"$f":"AI45+AI46+AI47","v":19},{"$f":"SQRT((AJ45^2)+(AJ46^2)+(AJ47^2))","v":25.238858928247925},{"$f":"AK45+AK46+AK47","v":17},{"$f":"SQRT((AL45^2)+(AL46^2)+(AL47^2))","v":27.386127875258307},{"$f":"AM45+AM46+AM47","v":46},{"$f":"SQRT((AN45^2)+(AN46^2)+(AN47^2))","v":77.80745465570763}]
[null,"More than 30.0 percent",{"$f":"C48+C49+C50+C51","v":0},{"$f":"SQRT((D48^2)+(D49^2)+(D50^2)+(D51^2))","v":24},{"$f":"E48+E49+E50+E51","v":34},{"$f":"SQRT((F48^2)+(F49^2)+(F50^2)+(F51^2))","v":51.39066063011839},{"$f":"G48+G49+G50+G51","v":0},{"$f":"SQRT((H48^2)+(H49^2)+(H50^2)+(H51^2))","v":24},{"$f":"I48+I49+I50+I51","v":0},{"$f":"SQRT((J48^2)+(J49^2)+(J50^2)+(J51^2))","v":24},{"$f":"K48+K49+K50+K51","v":78},{"$f":"SQRT((L48^2)+(L49^2)+(L50^2)+(L51^2))","v":71.288147682486468},{"$f":"M48+M49+M50+M51","v":0},{"$f":"SQRT((N48^2)+(N49^2)+(N50^2)+(N51^2))","v":24},{"$f":"O48+O49+O50+O51","v":2},{"$f":"SQRT((P48^2)+(P49^2)+(P50^2)+(P51^2))","v":21.166010488516726},{"$f":"Q48+Q49+Q50+Q51","v":0},{"$f":"SQRT((R48^2)+(R49^2)+(R50^2)+(R51^2))","v":24},{"$f":"S48+S49+S50+S51","v":0},{"$f":"SQRT((T48^2)+(T49^2)+(T50^2)+(T51^2))","v":24},{"$f":"U48+U49+U50+U51","v":0},{"$f":"SQRT((V48^2)+(V49^2)+(V50^2)+(V51^2))","v":24},{"$f":"W48+W49+W50+W51","v":0},{"$f":"SQRT((X48^2)+(X49^2)+(X50^2)+(X51^2))","v":24},{"$f":"Y48+Y49+Y50+Y51","v":8},{"$f":"SQRT((Z48^2)+(Z49^2)+(Z50^2)+(Z51^2))","v":23.065125189341593},{"$f":"AA48+AA49+AA50+AA51","v":0},{"$f":"SQRT((AB48^2)+(AB49^2)+(AB50^2)+(AB51^2))","v":24},{"$f":"AC48+AC49+AC50+AC51","v":28},{"$f":"SQRT((AD48^2)+(AD49^2)+(AD50^2)+(AD51^2))","v":45.967379738244816},{"$f":"AE48+AE49+AE50+AE51","v":0},{"$f":"SQRT((AF48^2)+(AF49^2)+(AF50^2)+(AF51^2))","v":24},{"$f":"AG48+AG49+AG50+AG51","v":12},{"$f":"SQRT((AH48^2)+(AH49^2)+(AH50^2)+(AH51^2))","v":28.160255680657446},{"$f":"AI48+AI49+AI50+AI51","v":0},{"$f":"SQRT((AJ48^2)+(AJ49^2)+(AJ50^2)+(AJ51^2))","v":24},{"$f":"AK48+AK49+AK50+AK51","v":0},{"$f":"SQRT((AL48^2)+(AL49^2)+(AL50^2)+(AL51^2))","v":34},{"$f":"AM48+AM49+AM50+AM51","v":13},{"$f":"SQRT((AN48^2)+(AN49^2)+(AN50^2)+(AN51^2))","v":36.166282640050248}]
[null,"Less Than 35% of HH Income",{"$f":"C48+C47+C46+C45","v":0},{"$f":"SQRT((D48^2)+(D47^2)+(D46^2)+(D45^2))","v":24},{"$f":"E48+E47+E46+E45","v":57},{"$f":"SQRT((F48^2)+(F47^2)+(F46^2)+(F45^2))","v":60.440052945046304},{"$f":"G48+G47+G46+G45","v":0},{"$f":"SQRT((H48^2)+(H47^2)+(H46^2)+(H45^2))","v":24},{"$f":"I48+I47+I46+I45","v":0},{"$f":"SQRT((J48^2)+(J47^2)+(J46^2)+(J45^2))","v":24},{"$f":"K48+K47+K46+K45","v":114},{"$f":"SQRT((L48^2)+(L47^2)+(L46^2)+(L45^2))","v":88.690472994566903},{"$f":"M48+M47+M46+M45","v":7},{"$f":"SQRT((N48^2)+(N47^2)+(N46^2)+(N45^2))","v":18.601075237738275},{"$f":"O48+O47+O46+O45","v":21},{"$f":"SQRT((P48^2)+(P47^2)+(P46^2)+(P45^2))","v":31.448370387032774},{"$f":"Q48+Q47+Q46+Q45","v":0},{"$f":"SQRT((R48^2)+(R47^2)+(R46^2)+(R45^2))","v":24},{"$f":"S48+S47+S46+S45","v":0},{"$f":"SQRT((T48^2)+(T47^2)+(T46^2)+(T45^2))","v":24},{"$f":"U48+U47+U46+U45","v":0},{"$f":"SQRT((V48^2)+(V47^2)+(V46^2)+(V45^2))","v":24},{"$f":"W48+W47+W46+W45","v":0},{"$f":"SQRT((X48^2)+(X47^2)+(X46^2)+(X45^2))","v":24},{"$f":"Y48+Y47+Y46+Y45","v":25},{"$f":"SQRT((Z48^2)+(Z47^2)+(Z46^2)+(Z45^2))","v":31},{"$f":"AA48+AA47+AA46+AA45","v":17},{"$f":"SQRT((AB48^2)+(AB47^2)+(AB46^2)+(AB45^2))","v":30.265491900843113},{"$f":"AC48+AC47+AC46+AC45","v":49},{"$f":"SQRT((AD48^2)+(AD47^2)+(AD46^2)+(AD45^2))","v":61.465437442517235},{"$f":"AE48+AE47+AE46+AE45","v":5},{"$f":"SQRT((AF48^2)+(AF47^2)+(AF46^2)+(AF45^2))","v":21.931712199461309},{"$f":"AG48+AG47+AG46+AG45","v":61},{"$f":"SQRT((AH48^2)+(AH47^2)+(AH46^2)+(AH45^2))","v":70.746024623295966},{"$f":"AI48+AI47+AI46+AI45","v":19},{"$f":"SQRT((AJ48^2)+(AJ47^2)+(AJ46^2)+(AJ45^2))","v":27.946377224964241},{"$f":"AK48+AK47+AK46+AK45","v":17},{"$f":"SQRT((AL48^2)+(AL47^2)+(AL46^2)+(AL45^2))","v":32.233522922572398},{"$f":"AM48+AM47+AM46+AM45","v":59},{"$f":"SQRT((AN48^2)+(AN47^2)+(AN46^2)+(AN45^2))","v":80.591562833835155}]
[null,"35.0 percent or more",{"$f":"C49+C50+C51","v":0},{"$f":"SQRT((D49^2)+(D50^2)+(D51^2))","v":20.784609690826528},{"$f":"E49+E50+E51","v":0},{"$f":"SQRT((F49^2)+(F50^2)+(F51^2))","v":20.784609690826528},{"$f":"G49+G50+G51","v":0},{"$f":"SQRT((H49^2)+(H50^2)+(H51^2))","v":20.784609690826528},{"$f":"I49+I50+I51","v":0},{"$f":"SQRT((J49^2)+(J50^2)+(J51^2))","v":20.784609690826528},{"$f":"K49+K50+K51","v":71},{"$f":"SQRT((L49^2)+(L50^2)+(L51^2))","v":70.270904363043456},{"$f":"M49+M50+M51","v":0},{"$f":"SQRT((N49^2)+(N50^2)+(N51^2))","v":20.784609690826528},{"$f":"O49+O50+O51","v":2},{"$f":"SQRT((P49^2)+(P50^2)+(P51^2))","v":17.435595774162696},{"$f":"Q49+Q50+Q51","v":0},{"$f":"SQRT((R49^2)+(R50^2)+(R51^2))","v":20.784609690826528},{"$f":"S49+S50+S51","v":0},{"$f":"SQRT((T49^2)+(T50^2)+(T51^2))","v":20.784609690826528},{"$f":"U49+U50+U51","v":0},{"$f":"SQRT((V49^2)+(V50^2)+(V51^2))","v":20.784609690826528},{"$f":"W49+W50+W51","v":0},{"$f":"SQRT((X49^2)+(X50^2)+(X51^2))","v":20.784609690826528},{"$f":"Y49+Y50+Y51","v":8},{"$f":"SQRT((Z49^2)+(Z50^2)+(Z51^2))","v":19.697715603592208},{"$f":"AA49+AA50+AA51","v":0},{"$f":"SQRT((AB49^2)+(AB50^2)+(AB51^2))","v":20.784609690826528},{"$f":"AC49+AC50+AC51","v":28},{"$f":"SQRT((AD49^2)+(AD50^2)+(AD51^2))","v":44.37341546466758},{"$f":"AE49+AE50+AE51","v":0},{"$f":"SQRT((AF49^2)+(AF50^2)+(AF51^2))","v":20.784609690826528},{"$f":"AG49+AG50+AG51","v":0},{"$f":"SQRT((AH49^2)+(AH50^2)+(AH51^2))","v":20.784609690826528},{"$f":"AI49+AI50+AI51","v":0},{"$f":"SQRT((AJ49^2)+(AJ50^2)+(AJ51^2))","v":20.784609690826528},{"$f":"AK49+AK50+AK51","v":0},{"$f":"SQRT((AL49^2)+(AL50^2)+(AL51^2))","v":29.444863728670914},{"$f":"AM49+AM50+AM51","v":0},{"$f":"SQRT((AN49^2)+(AN50^2)+(AN51^2))","v":29.444863728670914}]
[null,"50.0 percent or more",{"$f":"C51","v":0},{"$f":"D51","v":12},{"$f":"E51","v":0},12,{"$f":"G51","v":0},12,{"$f":"I51","v":0},12,{"$f":"K51","v":0},17,{"$f":"M51","v":0},12,{"$f":"O51","v":0},12,{"$f":"Q51","v":0},12,{"$f":"S51","v":0},12,{"$f":"U51","v":0},12,{"$f":"W51","v":0},12,{"$f":"Y51","v":0},12,{"$f":"AA51","v":0},12,{"$f":"AC51","v":0},12,{"$f":"AE51","v":0},12,{"$f":"AG51","v":0},12,{"$f":"AI51","v":0},12,{"$f":"AK51","v":0},17,{"$f":"AM51","v":0},17]
[null,"Not Computed",{"$f":"C52","v":33},60,{"$f":"E52","v":0},12,{"$f":"G52","v":0},12,{"$f":"I52","v":1},2,{"$f":"K52","v":5},8,{"$f":"M52","v":0},12,{"$f":"O52","v":0},12,{"$f":"Q52","v":0},12,{"$f":"S52","v":0},12,{"$f":"U52","v":0},12,{"$f":"W52","v":0},12,{"$f":"Y52","v":0},12,{"$f":"AA52","v":7},11,{"$f":"AC52","v":11},18,{"$f":"AE52","v":0},12,{"$f":"AG52","v":35},33,{"$f":"AI52","v":0},12,{"$f":"AK52","v":0},17,{"$f":"AM52","v":0},17]
[null,"$75,000 to $99,999:",{"$f":"C53","v":2},3,{"$f":"E53","v":0},12,{"$f":"G53","v":0},12,{"$f":"I53","v":0},12,{"$f":"K53","v":244},136,{"$f":"M53","v":2},5,{"$f":"O53","v":12},19,{"$f":"Q53","v":0},12,{"$f":"S53","v":20},31,{"$f":"U53","v":0},12,{"$f":"W53","v":21},24,{"$f":"Y53","v":0},12,{"$f":"AA53","v":60},55,{"$f":"AC53","v":0},12,{"$f":"AE53","v":33},25,{"$f":"AG53","v":91},59,{"$f":"AI53","v":41},54,{"$f":"AK53","v":24},41,{"$f":"AM53","v":115},89]
[null,"Less than 30.0 percent",{"$f":"C54+C55+C56","v":2},{"$f":"SQRT((D54^2)+(D55^2)+(D56^2))","v":17.233687939614086},{"$f":"E54+E55+E56","v":0},{"$f":"SQRT((F54^2)+(F55^2)+(F56^2))","v":20.784609690826528},{"$f":"G54+G55+G56","v":0},{"$f":"SQRT((H54^2)+(H55^2)+(H56^2))","v":20.784609690826528},{"$f":"I54+I55+I56","v":0},{"$f":"SQRT((J54^2)+(J55^2)+(J56^2))","v":20.784609690826528},{"$f":"K54+K55+K56","v":244},{"$f":"SQRT((L54^2)+(L55^2)+(L56^2))","v":140.81548210335396},{"$f":"M54+M55+M56","v":2},{"$f":"SQRT((N54^2)+(N55^2)+(N56^2))","v":17.691806012954132},{"$f":"O54+O55+O56","v":12},{"$f":"SQRT((P54^2)+(P55^2)+(P56^2))","v":25.475478405713993},{"$f":"Q54+Q55+Q56","v":0},{"$f":"SQRT((R54^2)+(R55^2)+(R56^2))","v":20.784609690826528},{"$f":"S54+S55+S56","v":20},{"$f":"SQRT((T54^2)+(T55^2)+(T56^2))","v":35.341194094144583},{"$f":"U54+U55+U56","v":0},{"$f":"SQRT((V54^2)+(V55^2)+(V56^2))","v":20.784609690826528},{"$f":"W54+W55+W56","v":21},{"$f":"SQRT((X54^2)+(X55^2)+(X56^2))","v":29.393876913398138},{"$f":"Y54+Y55+Y56","v":0},{"$f":"SQRT((Z54^2)+(Z55^2)+(Z56^2))","v":20.784609690826528},{"$f":"AA54+AA55+AA56","v":60},{"$f":"SQRT((AB54^2)+(AB55^2)+(AB56^2))","v":51.429563482495162},{"$f":"AC54+AC55+AC56","v":0},{"$f":"SQRT((AD54^2)+(AD55^2)+(AD56^2))","v":20.784609690826528},{"$f":"AE54+AE55+AE56","v":21},{"$f":"SQRT((AF54^2)+(AF55^2)+(AF56^2))","v":27.784887978899608},{"$f":"AG54+AG55+AG56","v":81},{"$f":"SQRT((AH54^2)+(AH55^2)+(AH56^2))","v":58.514955353311173},{"$f":"AI54+AI55+AI56","v":41},{"$f":"SQRT((AJ54^2)+(AJ55^2)+(AJ56^2))","v":56.213877290220786},{"$f":"AK54+AK55+AK56","v":0},{"$f":"SQRT((AL54^2)+(AL55^2)+(AL56^2))","v":29.444863728670914},{"$f":"AM54+AM55+AM56","v":82},{"$f":"SQRT((AN54^2)+(AN55^2)+(AN56^2))","v":84.492603226554692}]
[null,"More than 30.0 percent",{"$f":"C57+C58+C59+C60","v":0},{"$f":"SQRT((D57^2)+(D58^2)+(D59^2)+(D60^2))","v":24},{"$f":"E57+E58+E59+E60","v":0},{"$f":"SQRT((F57^2)+(F58^2)+(F59^2)+(F60^2))","v":24},{"$f":"G57+G58+G59+G60","v":0},{"$f":"SQRT((H57^2)+(H58^2)+(H59^2)+(H60^2))","v":24},{"$f":"I57+I58+I59+I60","v":0},{"$f":"SQRT((J57^2)+(J58^2)+(J59^2)+(J60^2))","v":24},{"$f":"K57+K58+K59+K60","v":0},{"$f":"SQRT((L57^2)+(L58^2)+(L59^2)+(L60^2))","v":34},{"$f":"M57+M58+M59+M60","v":0},{"$f":"SQRT((N57^2)+(N58^2)+(N59^2)+(N60^2))","v":24},{"$f":"O57+O58+O59+O60","v":0},{"$f":"SQRT((P57^2)+(P58^2)+(P59^2)+(P60^2))","v":24},{"$f":"Q57+Q58+Q59+Q60","v":0},{"$f":"SQRT((R57^2)+(R58^2)+(R59^2)+(R60^2))","v":24},{"$f":"S57+S58+S59+S60","v":0},{"$f":"SQRT((T57^2)+(T58^2)+(T59^2)+(T60^2))","v":24},{"$f":"U57+U58+U59+U60","v":0},{"$f":"SQRT((V57^2)+(V58^2)+(V59^2)+(V60^2))","v":24},{"$f":"W57+W58+W59+W60","v":0},{"$f":"SQRT((X57^2)+(X58^2)+(X59^2)+(X60^2))","v":24},{"$f":"Y57+Y58+Y59+Y60","v":0},{"$f":"SQRT((Z57^2)+(Z58^2)+(Z59^2)+(Z60^2))","v":24},{"$f":"AA57+AA58+AA59+AA60","v":0},{"$f":"SQRT((AB57^2)+(AB58^2)+(AB59^2)+(AB60^2))","v":24},{"$f":"AC57+AC58+AC59+AC60","v":0},{"$f":"SQRT((AD57^2)+(AD58^2)+(AD59^2)+(AD60^2))","v":24},{"$f":"AE57+AE58+AE59+AE60","v":3},{"$f":"SQRT((AF57^2)+(AF58^2)+(AF59^2)+(AF60^2))","v":21.633307652783937},{"$f":"AG57+AG58+AG59+AG60","v":0},{"$f":"SQRT((AH57^2)+(AH58^2)+(AH59^2)+(AH60^2))","v":24},{"$f":"AI57+AI58+AI59+AI60","v":0},{"$f":"SQRT((AJ57^2)+(AJ58^2)+(AJ59^2)+(AJ60^2))","v":24},{"$f":"AK57+AK58+AK59+AK60","v":0},{"$f":"SQRT((AL57^2)+(AL58^2)+(AL59^2)+(AL60^2))","v":34},{"$f":"AM57+AM58+AM59+AM60","v":0},{"$f":"SQRT((AN57^2)+(AN58^2)+(AN59^2)+(AN60^2))","v":34}]
[null,"Less Than 35% of HH Income",{"$f":"C54+C55+C56+C57","v":2},{"$f":"SQRT((D54^2)+(D55^2)+(D56^2)+(D57^2))","v":21},{"$f":"E54+E55+E56+E57","v":0},{"$f":"SQRT((F54^2)+(F55^2)+(F56^2)+(F57^2))","v":24},{"$f":"G54+G55+G56+G57","v":0},{"$f":"SQRT((H54^2)+(H55^2)+(H56^2)+(H57^2))","v":24},{"$f":"I54+I55+I56+I57","v":0},{"$f":"SQRT((J54^2)+(J55^2)+(J56^2)+(J57^2))","v":24},{"$f":"K54+K55+K56+K57","v":244},{"$f":"SQRT((L54^2)+(L55^2)+(L56^2)+(L57^2))","v":141.83793568717786},{"$f":"M54+M55+M56+M57","v":2},{"$f":"SQRT((N54^2)+(N55^2)+(N56^2)+(N57^2))","v":21.377558326431949},{"$f":"O54+O55+O56+O57","v":12},{"$f":"SQRT((P54^2)+(P55^2)+(P56^2)+(P57^2))","v":28.160255680657446},{"$f":"Q54+Q55+Q56+Q57","v":0},{"$f":"SQRT((R54^2)+(R55^2)+(R56^2)+(R57^2))","v":24},{"$f":"S54+S55+S56+S57","v":20},{"$f":"SQRT((T54^2)+(T55^2)+(T56^2)+(T57^2))","v":37.322915213043046},{"$f":"U54+U55+U56+U57","v":0},{"$f":"SQRT((V54^2)+(V55^2)+(V56^2)+(V57^2))","v":24},{"$f":"W54+W55+W56+W57","v":21},{"$f":"SQRT((X54^2)+(X55^2)+(X56^2)+(X57^2))","v":31.749015732775089},{"$f":"Y54+Y55+Y56+Y57","v":0},{"$f":"SQRT((Z54^2)+(Z55^2)+(Z56^2)+(Z57^2))","v":24},{"$f":"AA54+AA55+AA56+AA57","v":60},{"$f":"SQRT((AB54^2)+(AB55^2)+(AB56^2)+(AB57^2))","v":52.810983706043572},{"$f":"AC54+AC55+AC56+AC57","v":0},{"$f":"SQRT((AD54^2)+(AD55^2)+(AD56^2)+(AD57^2))","v":24},{"$f":"AE54+AE55+AE56+AE57","v":24},{"$f":"SQRT((AF54^2)+(AF55^2)+(AF56^2)+(AF57^2))","v":28.42534080710379},{"$f":"AG54+AG55+AG56+AG57","v":81},{"$f":"SQRT((AH54^2)+(AH55^2)+(AH56^2)+(AH57^2))","v":59.732738092272314},{"$f":"AI54+AI55+AI56+AI57","v":41},{"$f":"SQRT((AJ54^2)+(AJ55^2)+(AJ56^2)+(AJ57^2))","v":57.480431452799657},{"$f":"AK54+AK55+AK56+AK57","v":0},{"$f":"SQRT((AL54^2)+(AL55^2)+(AL56^2)+(AL57^2))","v":34},{"$f":"AM54+AM55+AM56+AM57","v":82},{"$f":"SQRT((AN54^2)+(AN55^2)+(AN56^2)+(AN57^2))","v":86.185845705660967}]
[null,"35.0 percent or more",{"$f":"C58+C59+C60","v":0},{"$f":"SQRT((D58^2)+(D59^2)+(D60^2))","v":20.784609690826528},{"$f":"E58+E59+E60","v":0},{"$f":"SQRT((F58^2)+(F59^2)+(F60^2))","v":20.784609690826528},{"$f":"G58+G59+G60","v":0},{"$f":"SQRT((H58^2)+(H59^2)+(H60^2))","v":20.784609690826528},{"$f":"I58+I59+I60","v":0},{"$f":"SQRT((J58^2)+(J59^2)+(J60^2))","v":20.784609690826528},{"$f":"K58+K59+K60","v":0},{"$f":"SQRT((L58^2)+(L59^2)+(L60^2))","v":29.444863728670914},{"$f":"M58+M59+M60","v":0},{"$f":"SQRT((N58^2)+(N59^2)+(N60^2))","v":20.784609690826528},{"$f":"O58+O59+O60","v":0},{"$f":"SQRT((P58^2)+(P59^2)+(P60^2))","v":20.784609690826528},{"$f":"Q58+Q59+Q60","v":0},{"$f":"SQRT((R58^2)+(R59^2)+(R60^2))","v":20.784609690826528},{"$f":"S58+S59+S60","v":0},{"$f":"SQRT((T58^2)+(T59^2)+(T60^2))","v":20.784609690826528},{"$f":"U58+U59+U60","v":0},{"$f":"SQRT((V58^2)+(V59^2)+(V60^2))","v":20.784609690826528},{"$f":"W58+W59+W60","v":0},{"$f":"SQRT((X58^2)+(X59^2)+(X60^2))","v":20.784609690826528},{"$f":"Y58+Y59+Y60","v":0},{"$f":"SQRT((Z58^2)+(Z59^2)+(Z60^2))","v":20.784609690826528},{"$f":"AA58+AA59+AA60","v":0},{"$f":"SQRT((AB58^2)+(AB59^2)+(AB60^2))","v":20.784609690826528},{"$f":"AC58+AC59+AC60","v":0},{"$f":"SQRT((AD58^2)+(AD59^2)+(AD60^2))","v":20.784609690826528},{"$f":"AE58+AE59+AE60","v":0},{"$f":"SQRT((AF58^2)+(AF59^2)+(AF60^2))","v":20.784609690826528},{"$f":"AG58+AG59+AG60","v":0},{"$f":"SQRT((AH58^2)+(AH59^2)+(AH60^2))","v":20.784609690826528},{"$f":"AI58+AI59+AI60","v":0},{"$f":"SQRT((AJ58^2)+(AJ59^2)+(AJ60^2))","v":20.784609690826528},{"$f":"AK58+AK59+AK60","v":0},{"$f":"SQRT((AL58^2)+(AL59^2)+(AL60^2))","v":29.444863728670914},{"$f":"AM58+AM59+AM60","v":0},{"$f":"SQRT((AN58^2)+(AN59^2)+(AN60^2))","v":29.444863728670914}]
[null,"50.0 percent or more",{"$f":"C60","v":0},12,0,12,0,12,0,12,0,17,0,12,0,12,0,12,0,12,0,12,0,12,0,12,0,12,0,12,0,12,0,12,0,12,0,17,0,17]
[null,"Not Computed",0,12,0,12,0,12,0,12,0,17,0,12,0,12,0,12,0,12,0,12,0,12,0,12,0,12,0,12,9,11,10,15,0,12,24,41,33,37]
[null,"$100,000 or more:",3,5,38,58,0,12,0,12,126,84,2,3,11,8,0,12,0,12,0,12,24,24,74,48,74,68,45,38,14,11,0,12,35,33,0,17,229,183]
[null,"Less than 30.0 percent",{"$f":"C63+C64+C65","v":3},{"$f":"SQRT((D63^2)+(D64^2)+(D65^2))","v":17.691806012954132},{"$f":"E63+E64+E65","v":38},{"$f":"SQRT((F63^2)+(F64^2)+(F65^2))","v":60.431779718952512},{"$f":"G63+G64+G65","v":0},{"$f":"SQRT((H63^2)+(H64^2)+(H65^2))","v":20.784609690826528},{"$f":"I63+I64+I65","v":0},{"$f":"SQRT((J63^2)+(J64^2)+(J65^2))","v":20.784609690826528},{"$f":"K63+K64+K65","v":126},{"$f":"SQRT((L63^2)+(L64^2)+(L65^2))","v":87.372764635211126},{"$f":"M63+M64+M65","v":0},{"$f":"SQRT((N63^2)+(N64^2)+(N65^2))","v":20.784609690826528},{"$f":"O63+O64+O65","v":11},{"$f":"SQRT((P63^2)+(P64^2)+(P65^2))","v":18.761663039293719},{"$f":"Q63+Q64+Q65","v":0},{"$f":"SQRT((R63^2)+(R64^2)+(R65^2))","v":20.784609690826528},{"$f":"S63+S64+S65","v":0},{"$f":"SQRT((T63^2)+(T64^2)+(T65^2))","v":20.784609690826528},{"$f":"U63+U64+U65","v":0},{"$f":"SQRT((V63^2)+(V64^2)+(V65^2))","v":20.784609690826528},{"$f":"W63+W64+W65","v":24},{"$f":"SQRT((X63^2)+(X64^2)+(X65^2))","v":29.393876913398138},{"$f":"Y63+Y64+Y65","v":57},{"$f":"SQRT((Z63^2)+(Z64^2)+(Z65^2))","v":35.608987629529715},{"$f":"AA63+AA64+AA65","v":74},{"$f":"SQRT((AB63^2)+(AB64^2)+(AB65^2))","v":70.085661871740925},{"$f":"AC63+AC64+AC65","v":3},{"$f":"SQRT((AD63^2)+(AD64^2)+(AD65^2))","v":30.215889859476256},{"$f":"AE63+AE64+AE65","v":5},{"$f":"SQRT((AF63^2)+(AF64^2)+(AF65^2))","v":18.357559750685819},{"$f":"AG63+AG64+AG65","v":0},{"$f":"SQRT((AH63^2)+(AH64^2)+(AH65^2))","v":20.784609690826528},{"$f":"AI63+AI64+AI65","v":10},{"$f":"SQRT((AJ63^2)+(AJ64^2)+(AJ65^2))","v":22},{"$f":"AK63+AK64+AK65","v":0},{"$f":"SQRT((AL63^2)+(AL64^2)+(AL65^2))","v":29.444863728670914},{"$f":"AM63+AM64+AM65","v":208},{"$f":"SQRT((AN63^2)+(AN64^2)+(AN65^2))","v":181.59845814323424}]
[null,"More than 30.0 percent",{"$f":"C66+C67+C68+C69","v":0},{"$f":"SQRT((D66^2)+(D67^2)+(D68^2)+(D69^2))","v":24},{"$f":"E66+E67+E68+E69","v":0},{"$f":"SQRT((F66^2)+(F67^2)+(F68^2)+(F69^2))","v":24},{"$f":"G66+G67+G68+G69","v":0},{"$f":"SQRT((H66^2)+(H67^2)+(H68^2)+(H69^2))","v":24},{"$f":"I66+I67+I68+I69","v":0},{"$f":"SQRT((J66^2)+(J67^2)+(J68^2)+(J69^2))","v":24},{"$f":"K66+K67+K68+K69","v":0},{"$f":"SQRT((L66^2)+(L67^2)+(L68^2)+(L69^2))","v":34},{"$f":"M66+M67+M68+M69","v":0},{"$f":"SQRT((N66^2)+(N67^2)+(N68^2)+(N69^2))","v":24},{"$f":"O66+O67+O68+O69","v":0},{"$f":"SQRT((P66^2)+(P67^2)+(P68^2)+(P69^2))","v":24},{"$f":"Q66+Q67+Q68+Q69","v":0},{"$f":"SQRT((R66^2)+(R67^2)+(R68^2)+(R69^2))","v":24},{"$f":"S66+S67+S68+S69","v":0},{"$f":"SQRT((T66^2)+(T67^2)+(T68^2)+(T69^2))","v":24},{"$f":"U66+U67+U68+U69","v":0},{"$f":"SQRT((V66^2)+(V67^2)+(V68^2)+(V69^2))","v":24},{"$f":"W66+W67+W68+W69","v":0},{"$f":"SQRT((X66^2)+(X67^2)+(X68^2)+(X69^2))","v":24},{"$f":"Y66+Y67+Y68+Y69","v":0},{"$f":"SQRT((Z66^2)+(Z67^2)+(Z68^2)+(Z69^2))","v":24},{"$f":"AA66+AA67+AA68+AA69","v":0},{"$f":"SQRT((AB66^2)+(AB67^2)+(AB68^2)+(AB69^2))","v":24},{"$f":"AC66+AC67+AC68+AC69","v":0},{"$f":"SQRT((AD66^2)+(AD67^2)+(AD68^2)+(AD69^2))","v":24},{"$f":"AE66+AE67+AE68+AE69","v":3},{"$f":"SQRT((AF66^2)+(AF67^2)+(AF68^2)+(AF69^2))","v":21.633307652783937},{"$f":"AG66+AG67+AG68+AG69","v":0},{"$f":"SQRT((AH66^2)+(AH67^2)+(AH68^2)+(AH69^2))","v":24},{"$f":"AI66+AI67+AI68+AI69","v":18},{"$f":"SQRT((AJ66^2)+(AJ67^2)+(AJ68^2)+(AJ69^2))","v":35.679125549822544},{"$f":"AK66+AK67+AK68+AK69","v":0},{"$f":"SQRT((AL66^2)+(AL67^2)+(AL68^2)+(AL69^2))","v":34},{"$f":"AM66+AM67+AM68+AM69","v":0},{"$f":"SQRT((AN66^2)+(AN67^2)+(AN68^2)+(AN69^2))","v":34}]
[null,"Less Than 35% of HH Income",{"$f":"C63+C64+C65+C66","v":3},{"$f":"SQRT(((D63^2)+(D64^2)+(D65^2)+(D66^2)))","v":21.377558326431949},{"$f":"E63+E64+E65+E66","v":38},{"$f":"SQRT(((F63^2)+(F64^2)+(F65^2)+(F66^2)))","v":61.611687202997452},{"$f":"G63+G64+G65+G66","v":0},{"$f":"SQRT(((H63^2)+(H64^2)+(H65^2)+(H66^2)))","v":24},{"$f":"I63+I64+I65+I66","v":0},{"$f":"SQRT(((J63^2)+(J64^2)+(J65^2)+(J66^2)))","v":24},{"$f":"K63+K64+K65+K66","v":126},{"$f":"SQRT(((L63^2)+(L64^2)+(L65^2)+(L66^2)))","v":89.011235245894667},{"$f":"M63+M64+M65+M66","v":0},{"$f":"SQRT(((N63^2)+(N64^2)+(N65^2)+(N66^2)))","v":24},{"$f":"O63+O64+O65+O66","v":11},{"$f":"SQRT(((P63^2)+(P64^2)+(P65^2)+(P66^2)))","v":22.271057451320086},{"$f":"Q63+Q64+Q65+Q66","v":0},{"$f":"SQRT(((R63^2)+(R64^2)+(R65^2)+(R66^2)))","v":24},{"$f":"S63+S64+S65+S66","v":0},{"$f":"SQRT(((T63^2)+(T64^2)+(T65^2)+(T66^2)))","v":24},{"$f":"U63+U64+U65+U66","v":0},{"$f":"SQRT(((V63^2)+(V64^2)+(V65^2)+(V66^2)))","v":24},{"$f":"W63+W64+W65+W66","v":24},{"$f":"SQRT(((X63^2)+(X64^2)+(X65^2)+(X66^2)))","v":31.749015732775089},{"$f":"Y63+Y64+Y65+Y66","v":57},{"$f":"SQRT(((Z63^2)+(Z64^2)+(Z65^2)+(Z66^2)))","v":37.576588456111871},{"$f":"AA63+AA64+AA65+AA66","v":74},{"$f":"SQRT(((AB63^2)+(AB64^2)+(AB65^2)+(AB66^2)))","v":71.105555338524709},{"$f":"AC63+AC64+AC65+AC66","v":3},{"$f":"SQRT(((AD63^2)+(AD64^2)+(AD65^2)+(AD66^2)))","v":32.511536414017719},{"$f":"AE63+AE64+AE65+AE66","v":5},{"$f":"SQRT(((AF63^2)+(AF64^2)+(AF65^2)+(AF66^2)))","v":21.931712199461309},{"$f":"AG63+AG64+AG65+AG66","v":0},{"$f":"SQRT(((AH63^2)+(AH64^2)+(AH65^2)+(AH66^2)))","v":24},{"$f":"AI63+AI64+AI65+AI66","v":28},{"$f":"SQRT(((AJ63^2)+(AJ64^2)+(AJ65^2)+(AJ66^2)))","v":36.400549446402593},{"$f":"AK63+AK64+AK65+AK66","v":0},{"$f":"SQRT(((AL63^2)+(AL64^2)+(AL65^2)+(AL66^2)))","v":34},{"$f":"AM63+AM64+AM65+AM66","v":208},{"$f":"SQRT(((AN63^2)+(AN64^2)+(AN65^2)+(AN66^2)))","v":182.3924340536087}]
[null,"35.0 percent or more",{"$f":"C67+C68+C69","v":0},{"$f":"SQRT((D67^2)+(D68^2)+(D69^2))","v":20.784609690826528},{"$f":"E67+E68+E69","v":0},{"$f":"SQRT((F67^2)+(F68^2)+(F69^2))","v":20.784609690826528},{"$f":"G67+G68+G69","v":0},{"$f":"SQRT((H67^2)+(H68^2)+(H69^2))","v":20.784609690826528},{"$f":"I67+I68+I69","v":0},{"$f":"SQRT((J67^2)+(J68^2)+(J69^2))","v":20.784609690826528},{"$f":"K67+K68+K69","v":0},{"$f":"SQRT((L67^2)+(L68^2)+(L69^2))","v":29.444863728670914},{"$f":"M67+M68+M69","v":0},{"$f":"SQRT((N67^2)+(N68^2)+(N69^2))","v":20.784609690826528},{"$f":"O67+O68+O69","v":0},{"$f":"SQRT((P67^2)+(P68^2)+(P69^2))","v":20.784609690826528},{"$f":"Q67+Q68+Q69","v":0},{"$f":"SQRT((R67^2)+(R68^2)+(R69^2))","v":20.784609690826528},{"$f":"S67+S68+S69","v":0},{"$f":"SQRT((T67^2)+(T68^2)+(T69^2))","v":20.784609690826528},{"$f":"U67+U68+U69","v":0},{"$f":"SQRT((V67^2)+(V68^2)+(V69^2))","v":20.784609690826528},{"$f":"W67+W68+W69","v":0},{"$f":"SQRT((X67^2)+(X68^2)+(X69^2))","v":20.784609690826528},{"$f":"Y67+Y68+Y69","v":0},{"$f":"SQRT((Z67^2)+(Z68^2)+(Z69^2))","v":20.784609690826528},{"$f":"AA67+AA68+AA69","v":0},{"$f":"SQRT((AB67^2)+(AB68^2)+(AB69^2))","v":20.784609690826528},{"$f":"AC67+AC68+AC69","v":0},{"$f":"SQRT((AD67^2)+(AD68^2)+(AD69^2))","v":20.784609690826528},{"$f":"AE67+AE68+AE69","v":3},{"$f":"SQRT((AF67^2)+(AF68^2)+(AF69^2))","v":18},{"$f":"AG67+AG68+AG69","v":0},{"$f":"SQRT((AH67^2)+(AH68^2)+(AH69^2))","v":20.784609690826528},{"$f":"AI67+AI68+AI69","v":0},{"$f":"SQRT((AJ67^2)+(AJ68^2)+(AJ69^2))","v":20.784609690826528},{"$f":"AK67+AK68+AK69","v":0},{"$f":"SQRT((AL67^2)+(AL68^2)+(AL69^2))","v":29.444863728670914},{"$f":"AM67+AM68+AM69","v":0},{"$f":"SQRT((AN67^2)+(AN68^2)+(AN69^2))","v":29.444863728670914}]
[null,"50.0 percent or more",{"$f":"C69","v":0},{"$f":"D69","v":12},{"$f":"E69","v":0},12,{"$f":"G69","v":0},12,{"$f":"I69","v":0},12,{"$f":"K69","v":0},17,{"$f":"M69","v":0},12,{"$f":"O69","v":0},12,{"$f":"Q69","v":0},12,{"$f":"S69","v":0},12,{"$f":"U69","v":0},12,{"$f":"W69","v":0},12,{"$f":"Y69","v":0},12,{"$f":"AA69","v":0},12,{"$f":"AC69","v":0},12,{"$f":"AE69","v":3},6,{"$f":"AG69","v":0},12,{"$f":"AI69","v":0},12,{"$f":"AK69","v":0},17,{"$f":"AM69","v":0},17]
[null,"Not Computed",{"$f":"C70","v":0},12,{"$f":"E70","v":0},12,{"$f":"G70","v":0},12,{"$f":"I70","v":0},12,{"$f":"K70","v":0},17,{"$f":"M70","v":2},3,{"$f":"O70","v":0},12,{"$f":"Q70","v":0},12,{"$f":"S70","v":0},12,{"$f":"U70","v":0},12,{"$f":"W70","v":0},12,{"$f":"Y70","v":17},28,{"$f":"AA70","v":0},12,{"$f":"AC70","v":42},29,{"$f":"AE70","v":6},8,{"$f":"AG70","v":0},12,{"$f":"AI70","v":7},9,{"$f":"AK70","v":0},17,{"$f":"AM70","v":21},34]
[]
[]
[null,"Calculated GROSS RENT AS A PERCENTAGE OF HOUSEHOLD INCOME IN THE PAST 12 MONTHS"]
[null,"Universe:  RENTER-OCCUPIED HOUSING UNITS"]
[null,"Data Set: 2018-2022 American Community Survey 5-Year Estimates"]
[]
[null,null,"Albany",null,"Bartlett",null,"Brookfield",null,"Chatham",null,"Conway",null,"Eaton",null,"Effingham",null,"Freedom",null,"Hale's Location",null,"Hart's Location",null,"Jackson",null,"Madison",null,"Moultonborough",null,"Ossipee",null,"Sandwich",null,"Tamworth",null,"Tuftonboro",null,"Wakefield",null,"Wolfeboro"]
[null," ","Estimate","Margin of Error","Estimate","Margin of Error","Estimate","Margin of Error","Estimate","Margin of Error","Estimate","Margin of Error","Estimate","Margin of Error","Estimate","Margin of Error","Estimate","Margin of Error","Estimate","Margin of Error","Estimate","Margin of Error","Estimate","Margin of Error","Estimate","Margin of Error","Estimate","Margin of Error","Estimate","Margin of Error","Estimate","Margin of Error","Estimate","Margin of Error","Estimate","Margin of Error","Estimate","Margin of Error","Estimate","Margin of Error"]
[null,{"$f":"B92","v":"Total:"},{"$f":"C92","v":91},{"$f":"D92","v":72},{"$f":"E92","v":346},180,1,5,19,16,1349,254,35,22,72,40,33,48,20,31,0,12,115,59,139,66,231,101,294,118,73,32,341,136,108,67,105,98,622,231]
[null,"Less than 30.0 percent",{"$f":"C136+C129+C122+C115+C108+C101+C94","v":8},{"$f":"SQRT((D136^2)+(D129^2)+(D122^2)+(D115^2)+(D108^2)+(D101^2)+(D94^2))","v":51.400389103585589},{"$f":"E136+E129+E122+E115+E108+E101+E94","v":61},{"$f":"SQRT((F136^2)+(F129^2)+(F122^2)+(F115^2)+(F108^2)+(F101^2)+(F94^2))","v":85.182157756187422},{"$f":"G136+G129+G122+G115+G108+G101+G94","v":0},{"$f":"SQRT((H136^2)+(H129^2)+(H122^2)+(H115^2)+(H108^2)+(H101^2)+(H94^2))","v":54.990908339470082},{"$f":"I136+I129+I122+I115+I108+I101+I94","v":5},{"$f":"SQRT((J136^2)+(J129^2)+(J122^2)+(J115^2)+(J108^2)+(J101^2)+(J94^2))","v":54.120236510939236},{"$f":"K136+K129+K122+K115+K108+K101+K94","v":629},{"$f":"SQRT((L136^2)+(L129^2)+(L122^2)+(L115^2)+(L108^2)+(L101^2)+(L94^2))","v":226.58111130453923},{"$f":"M136+M129+M122+M115+M108+M101+M94","v":17},{"$f":"SQRT((N136^2)+(N129^2)+(N122^2)+(N115^2)+(N108^2)+(N101^2)+(N94^2))","v":51.96152422706632},{"$f":"O136+O129+O122+O115+O108+O101+O94","v":44},{"$f":"SQRT((P136^2)+(P129^2)+(P122^2)+(P115^2)+(P108^2)+(P101^2)+(P94^2))","v":59.782940710540494},{"$f":"Q136+Q129+Q122+Q115+Q108+Q101+Q94","v":0},{"$f":"SQRT((R136^2)+(R129^2)+(R122^2)+(R115^2)+(R108^2)+(R101^2)+(R94^2))","v":54.990908339470082},{"$f":"S136+S129+S122+S115+S108+S101+S94","v":20},{"$f":"SQRT((T136^2)+(T129^2)+(T122^2)+(T115^2)+(T108^2)+(T101^2)+(T94^2))","v":61.975801729384671},{"$f":"U136+U129+U122+U115+U108+U101+U94","v":0},{"$f":"SQRT((V136^2)+(V129^2)+(V122^2)+(V115^2)+(V108^2)+(V101^2)+(V94^2))","v":54.990908339470082},{"$f":"W136+W129+W122+W115+W108+W101+W94","v":58},{"$f":"SQRT((X136^2)+(X129^2)+(X122^2)+(X115^2)+(X108^2)+(X101^2)+(X94^2))","v":66.483080554378645},{"$f":"Y136+Y129+Y122+Y115+Y108+Y101+Y94","v":85},{"$f":"SQRT((Z136^2)+(Z129^2)+(Z122^2)+(Z115^2)+(Z108^2)+(Z101^2)+(Z94^2))","v":64.233947411006895},{"$f":"AA136+AA129+AA122+AA115+AA108+AA101+AA94","v":171},{"$f":"SQRT((AB136^2)+(AB129^2)+(AB122^2)+(AB115^2)+(AB108^2)+(AB101^2)+(AB94^2))","v":104.27847332982968},{"$f":"AC136+AC129+AC122+AC115+AC108+AC101+AC94","v":87},{"$f":"SQRT((AD136^2)+(AD129^2)+(AD122^2)+(AD115^2)+(AD108^2)+(AD101^2)+(AD94^2))","v":91.536877814354142},{"$f":"AE136+AE129+AE122+AE115+AE108+AE101+AE94","v":31},{"$f":"SQRT((AF136^2)+(AF129^2)+(AF122^2)+(AF115^2)+(AF108^2)+(AF101^2)+(AF94^2))","v":56.338264084013097},{"$f":"AG136+AG129+AG122+AG115+AG108+AG101+AG94","v":141},{"$f":"SQRT((AH136^2)+(AH129^2)+(AH122^2)+(AH115^2)+(AH108^2)+(AH101^2)+(AH94^2))","v":102.39140588936164},{"$f":"AI136+AI129+AI122+AI115+AI108+AI101+AI94","v":70},{"$f":"SQRT((AJ136^2)+(AJ129^2)+(AJ122^2)+(AJ115^2)+(AJ108^2)+(AJ101^2)+(AJ94^2))","v":77.517739905133979},{"$f":"AK136+AK129+AK122+AK115+AK108+AK101+AK94","v":17},{"$f":"SQRT((AL136^2)+(AL129^2)+(AL122^2)+(AL115^2)+(AL108^2)+(AL101^2)+(AL94^2))","v":77.149206087943639},{"$f":"AM136+AM129+AM122+AM115+AM108+AM101+AM94","v":383},{"$f":"SQRT((AN136^2)+(AN129^2)+(AN122^2)+(AN115^2)+(AN108^2)+(AN101^2)+(AN94^2))","v":225.57925436528953}]
[null,"More than 30.0 percent",{"$f":"C137+C130+C123+C116+C109+C102+C95","v":17},{"$f":"SQRT((D137^2)+(D130^2)+(D123^2)+(D116^2)+(D109^2)+(D102^2)+(D95^2))","v":61.725197448043858},{"$f":"E137+E130+E123+E116+E109+E102+E95","v":243},{"$f":"SQRT((F137^2)+(F130^2)+(F123^2)+(F116^2)+(F109^2)+(F102^2)+(F95^2))","v":163.89935936421472},{"$f":"G137+G130+G123+G116+G109+G102+G95","v":0},{"$f":"SQRT((H137^2)+(H130^2)+(H123^2)+(H116^2)+(H109^2)+(H102^2)+(H95^2))","v":63.498031465550177},{"$f":"I137+I130+I123+I116+I109+I102+I95","v":4},{"$f":"SQRT((J137^2)+(J130^2)+(J123^2)+(J116^2)+(J109^2)+(J102^2)+(J95^2))","v":62.641839053463301},{"$f":"K137+K130+K123+K116+K109+K102+K95","v":639},{"$f":"SQRT((L137^2)+(L130^2)+(L123^2)+(L116^2)+(L109^2)+(L102^2)+(L95^2))","v":254.99607840121777},{"$f":"M137+M130+M123+M116+M109+M102+M95","v":15},{"$f":"SQRT((N137^2)+(N130^2)+(N123^2)+(N116^2)+(N109^2)+(N102^2)+(N95^2))","v":61.773780845922005},{"$f":"O137+O130+O123+O116+O109+O102+O95","v":10},{"$f":"SQRT((P137^2)+(P130^2)+(P123^2)+(P116^2)+(P109^2)+(P102^2)+(P95^2))","v":60.638271743182131},{"$f":"Q137+Q130+Q123+Q116+Q109+Q102+Q95","v":33},{"$f":"SQRT((R137^2)+(R130^2)+(R123^2)+(R116^2)+(R109^2)+(R102^2)+(R95^2))","v":78.689262291624004},{"$f":"S137+S130+S123+S116+S109+S102+S95","v":0},{"$f":"SQRT((T137^2)+(T130^2)+(T123^2)+(T116^2)+(T109^2)+(T102^2)+(T95^2))","v":63.498031465550177},{"$f":"U137+U130+U123+U116+U109+U102+U95","v":0},{"$f":"SQRT((V137^2)+(V130^2)+(V123^2)+(V116^2)+(V109^2)+(V102^2)+(V95^2))","v":63.498031465550177},{"$f":"W137+W130+W123+W116+W109+W102+W95","v":49},{"$f":"SQRT((X137^2)+(X130^2)+(X123^2)+(X116^2)+(X109^2)+(X102^2)+(X95^2))","v":82.486362509205122},{"$f":"Y137+Y130+Y123+Y116+Y109+Y102+Y95","v":37},{"$f":"SQRT((Z137^2)+(Z130^2)+(Z123^2)+(Z116^2)+(Z109^2)+(Z102^2)+(Z95^2))","v":66.610809933523555},{"$f":"AA137+AA130+AA123+AA116+AA109+AA102+AA95","v":40},{"$f":"SQRT((AB137^2)+(AB130^2)+(AB123^2)+(AB116^2)+(AB109^2)+(AB102^2)+(AB95^2))","v":69.375788283809797},{"$f":"AC137+AC130+AC123+AC116+AC109+AC102+AC95","v":140},{"$f":"SQRT((AD137^2)+(AD130^2)+(AD123^2)+(AD116^2)+(AD109^2)+(AD102^2)+(AD95^2))","v":106.10843510296436},{"$f":"AE137+AE130+AE123+AE116+AE109+AE102+AE95","v":18},{"$f":"SQRT((AF137^2)+(AF130^2)+(AF123^2)+(AF116^2)+(AF109^2)+(AF102^2)+(AF95^2))","v":61.098281481560512},{"$f":"AG137+AG130+AG123+AG116+AG109+AG102+AG95","v":155},{"$f":"SQRT((AH137^2)+(AH130^2)+(AH123^2)+(AH116^2)+(AH109^2)+(AH102^2)+(AH95^2))","v":114.31972708154967},{"$f":"AI137+AI130+AI123+AI116+AI109+AI102+AI95","v":31},{"$f":"SQRT((AJ137^2)+(AJ130^2)+(AJ123^2)+(AJ116^2)+(AJ109^2)+(AJ102^2)+(AJ95^2))","v":70.894287499064404},{"$f":"AK137+AK130+AK123+AK116+AK109+AK102+AK95","v":64},{"$f":"SQRT((AL137^2)+(AL130^2)+(AL123^2)+(AL116^2)+(AL109^2)+(AL102^2)+(AL95^2))","v":119.99166637729472},{"$f":"AM137+AM130+AM123+AM116+AM109+AM102+AM95","v":163},{"$f":"SQRT((AN137^2)+(AN130^2)+(AN123^2)+(AN116^2)+(AN109^2)+(AN102^2)+(AN95^2))","v":147.03400967123218}]
[null,"Less Than 35% of HH Income",{"$f":"C138+C131+C124+C117+C110+C103+C96","v":10},{"$f":"SQRT((D138^2)+(D131^2)+(D124^2)+(D117^2)+(D110^2)+(D103^2)+(D96^2))","v":59.346440499831161},{"$f":"E138+E131+E124+E117+E110+E103+E96","v":95},{"$f":"SQRT((F138^2)+(F131^2)+(F124^2)+(F117^2)+(F110^2)+(F103^2)+(F96^2))","v":101.63168797181321},{"$f":"G138+G131+G124+G117+G110+G103+G96","v":0},{"$f":"SQRT((H138^2)+(H131^2)+(H124^2)+(H117^2)+(H110^2)+(H103^2)+(H96^2))","v":63.498031465550177},{"$f":"I138+I131+I124+I117+I110+I103+I96","v":5},{"$f":"SQRT((J138^2)+(J131^2)+(J124^2)+(J117^2)+(J110^2)+(J103^2)+(J96^2))","v":62.745517768203968},{"$f":"K138+K131+K124+K117+K110+K103+K96","v":726},{"$f":"SQRT((L138^2)+(L131^2)+(L124^2)+(L117^2)+(L110^2)+(L103^2)+(L96^2))","v":245.02856976279318},{"$f":"M138+M131+M124+M117+M110+M103+M96","v":17},{"$f":"SQRT((N138^2)+(N131^2)+(N124^2)+(N117^2)+(N110^2)+(N103^2)+(N96^2))","v":60.893349390553318},{"$f":"O138+O131+O124+O117+O110+O103+O96","v":44},{"$f":"SQRT((P138^2)+(P131^2)+(P124^2)+(P117^2)+(P110^2)+(P103^2)+(P96^2))","v":67.690472003081794},{"$f":"Q138+Q131+Q124+Q117+Q110+Q103+Q96","v":0},{"$f":"SQRT((R138^2)+(R131^2)+(R124^2)+(R117^2)+(R110^2)+(R103^2)+(R96^2))","v":63.498031465550177},{"$f":"S138+S131+S124+S117+S110+S103+S96","v":20},{"$f":"SQRT((T138^2)+(T131^2)+(T124^2)+(T117^2)+(T110^2)+(T103^2)+(T96^2))","v":69.634761434214738},{"$f":"U138+U131+U124+U117+U110+U103+U96","v":0},{"$f":"SQRT((V138^2)+(V131^2)+(V124^2)+(V117^2)+(V110^2)+(V103^2)+(V96^2))","v":63.498031465550177},{"$f":"W138+W131+W124+W117+W110+W103+W96","v":58},{"$f":"SQRT((X138^2)+(X131^2)+(X124^2)+(X117^2)+(X110^2)+(X103^2)+(X96^2))","v":73.674961825575451},{"$f":"Y138+Y131+Y124+Y117+Y110+Y103+Y96","v":85},{"$f":"SQRT((Z138^2)+(Z131^2)+(Z124^2)+(Z117^2)+(Z110^2)+(Z103^2)+(Z96^2))","v":71.651936470691425},{"$f":"AA138+AA131+AA124+AA117+AA110+AA103+AA96","v":171},{"$f":"SQRT((AB138^2)+(AB131^2)+(AB124^2)+(AB117^2)+(AB110^2)+(AB103^2)+(AB96^2))","v":109.00458705944443},{"$f":"AC138+AC131+AC124+AC117+AC110+AC103+AC96","v":87},{"$f":"SQRT((AD138^2)+(AD131^2)+(AD124^2)+(AD117^2)+(AD110^2)+(AD103^2)+(AD96^2))","v":96.886531571730856},{"$f":"AE138+AE131+AE124+AE117+AE110+AE103+AE96","v":34},{"$f":"SQRT((AF138^2)+(AF131^2)+(AF124^2)+(AF117^2)+(AF110^2)+(AF103^2)+(AF96^2))","v":63.827893588931794},{"$f":"AG138+AG131+AG124+AG117+AG110+AG103+AG96","v":190},{"$f":"SQRT((AH138^2)+(AH131^2)+(AH124^2)+(AH117^2)+(AH110^2)+(AH103^2)+(AH96^2))","v":121.24768039018313},{"$f":"AI138+AI131+AI124+AI117+AI110+AI103+AI96","v":101},{"$f":"SQRT((AJ138^2)+(AJ131^2)+(AJ124^2)+(AJ117^2)+(AJ110^2)+(AJ103^2)+(AJ96^2))","v":89.504189846062516},{"$f":"AK138+AK131+AK124+AK117+AK110+AK103+AK96","v":17},{"$f":"SQRT((AL138^2)+(AL131^2)+(AL124^2)+(AL117^2)+(AL110^2)+(AL103^2)+(AL96^2))","v":89.302855497458765},{"$f":"AM138+AM131+AM124+AM117+AM110+AM103+AM96","v":417},{"$f":"SQRT((AN138^2)+(AN131^2)+(AN124^2)+(AN117^2)+(AN110^2)+(AN103^2)+(AN96^2))","v":231.9396473223153}]
[null,"35.0 percent or more",{"$f":"C139+C132+C125+C118+C111+C104+C97","v":15},{"$f":"SQRT((D139^2)+(D132^2)+(D125^2)+(D118^2)+(D111^2)+(D104^2)+(D97^2))","v":54.12947441089743},{"$f":"E139+E132+E125+E118+E111+E104+E97","v":209},{"$f":"SQRT((F139^2)+(F132^2)+(F125^2)+(F118^2)+(F111^2)+(F104^2)+(F97^2))","v":154.24007261409079},{"$f":"G139+G132+G125+G118+G111+G104+G97","v":0},{"$f":"SQRT((H139^2)+(H132^2)+(H125^2)+(H118^2)+(H111^2)+(H104^2)+(H97^2))","v":54.990908339470082},{"$f":"I139+I132+I125+I118+I111+I104+I97","v":4},{"$f":"SQRT((J139^2)+(J132^2)+(J125^2)+(J118^2)+(J111^2)+(J104^2)+(J97^2))","v":54},{"$f":"K139+K132+K125+K118+K111+K104+K97","v":542},{"$f":"SQRT((L139^2)+(L132^2)+(L125^2)+(L118^2)+(L111^2)+(L104^2)+(L97^2))","v":237.32467212660382},{"$f":"M139+M132+M125+M118+M111+M104+M97","v":15},{"$f":"SQRT((N139^2)+(N132^2)+(N125^2)+(N118^2)+(N111^2)+(N104^2)+(N97^2))","v":52.990565197967079},{"$f":"O139+O132+O125+O118+O111+O104+O97","v":10},{"$f":"SQRT((P139^2)+(P132^2)+(P125^2)+(P118^2)+(P111^2)+(P104^2)+(P97^2))","v":51.662365412357957},{"$f":"Q139+Q132+Q125+Q118+Q111+Q104+Q97","v":33},{"$f":"SQRT((R139^2)+(R132^2)+(R125^2)+(R118^2)+(R111^2)+(R104^2)+(R97^2))","v":72},{"$f":"S139+S132+S125+S118+S111+S104+S97","v":0},{"$f":"SQRT((T139^2)+(T132^2)+(T125^2)+(T118^2)+(T111^2)+(T104^2)+(T97^2))","v":54.990908339470082},{"$f":"U139+U132+U125+U118+U111+U104+U97","v":0},{"$f":"SQRT((V139^2)+(V132^2)+(V125^2)+(V118^2)+(V111^2)+(V104^2)+(V97^2))","v":54.990908339470082},{"$f":"W139+W132+W125+W118+W111+W104+W97","v":49},{"$f":"SQRT((X139^2)+(X132^2)+(X125^2)+(X118^2)+(X111^2)+(X104^2)+(X97^2))","v":76.131465242697118},{"$f":"Y139+Y132+Y125+Y118+Y111+Y104+Y97","v":37},{"$f":"SQRT((Z139^2)+(Z132^2)+(Z125^2)+(Z118^2)+(Z111^2)+(Z104^2)+(Z97^2))","v":58.557663887829406},{"$f":"AA139+AA132+AA125+AA118+AA111+AA104+AA97","v":40},{"$f":"SQRT((AB139^2)+(AB132^2)+(AB125^2)+(AB118^2)+(AB111^2)+(AB104^2)+(AB97^2))","v":61.684682053164543},{"$f":"AC139+AC132+AC125+AC118+AC111+AC104+AC97","v":140},{"$f":"SQRT((AD139^2)+(AD132^2)+(AD125^2)+(AD118^2)+(AD111^2)+(AD104^2)+(AD97^2))","v":101.24722218411723},{"$f":"AE139+AE132+AE125+AE118+AE111+AE104+AE97","v":15},{"$f":"SQRT((AF139^2)+(AF132^2)+(AF125^2)+(AF118^2)+(AF111^2)+(AF104^2)+(AF97^2))","v":53.225933528685054},{"$f":"AG139+AG132+AG125+AG118+AG111+AG104+AG97","v":106},{"$f":"SQRT((AH139^2)+(AH132^2)+(AH125^2)+(AH118^2)+(AH111^2)+(AH104^2)+(AH97^2))","v":94.085067890712608},{"$f":"AI139+AI132+AI125+AI118+AI111+AI104+AI97","v":0},{"$f":"SQRT((AJ139^2)+(AJ132^2)+(AJ125^2)+(AJ118^2)+(AJ111^2)+(AJ104^2)+(AJ97^2))","v":54.990908339470082},{"$f":"AK139+AK132+AK125+AK118+AK111+AK104+AK97","v":64},{"$f":"SQRT((AL139^2)+(AL132^2)+(AL125^2)+(AL118^2)+(AL111^2)+(AL104^2)+(AL97^2))","v":111.24297730643494},{"$f":"AM139+AM132+AM125+AM118+AM111+AM104+AM97","v":129},{"$f":"SQRT((AN139^2)+(AN132^2)+(AN125^2)+(AN118^2)+(AN111^2)+(AN104^2)+(AN97^2))","v":136.78084661238211}]
[null,"50.0 percent or more",{"$f":"C140+C133+C126+C119+C112+C105+C98","v":12},{"$f":"SQRT((D140^2)+(D133^2)+(D126^2)+(D119^2)+(D112^2)+(D105^2)+(D98^2))","v":32.140317359976393},{"$f":"E140+E133+E126+E119+E112+E105+E98","v":76},{"$f":"SQRT((F140^2)+(F133^2)+(F126^2)+(F119^2)+(F112^2)+(F105^2)+(F98^2))","v":77.698133825723247},{"$f":"G140+G133+G126+G119+G112+G105+G98","v":0},{"$f":"SQRT((H140^2)+(H133^2)+(H126^2)+(H119^2)+(H112^2)+(H105^2)+(H98^2))","v":31.749015732775089},{"$f":"I140+I133+I126+I119+I112+I105+I98","v":0},{"$f":"SQRT((J140^2)+(J133^2)+(J126^2)+(J119^2)+(J112^2)+(J105^2)+(J98^2))","v":31.749015732775089},{"$f":"K140+K133+K126+K119+K112+K105+K98","v":395},{"$f":"SQRT((L140^2)+(L133^2)+(L126^2)+(L119^2)+(L112^2)+(L105^2)+(L98^2))","v":214.7137629496535},{"$f":"M140+M133+M126+M119+M112+M105+M98","v":6},{"$f":"SQRT((N140^2)+(N133^2)+(N126^2)+(N119^2)+(N112^2)+(N105^2)+(N98^2))","v":31.048349392520048},{"$f":"O140+O133+O126+O119+O112+O105+O98","v":8},{"$f":"SQRT((P140^2)+(P133^2)+(P126^2)+(P119^2)+(P112^2)+(P105^2)+(P98^2))","v":27.946377224964241},{"$f":"Q140+Q133+Q126+Q119+Q112+Q105+Q98","v":33},{"$f":"SQRT((R140^2)+(R133^2)+(R126^2)+(R119^2)+(R112^2)+(R105^2)+(R98^2))","v":56.284989117881153},{"$f":"S140+S133+S126+S119+S112+S105+S98","v":0},{"$f":"SQRT((T140^2)+(T133^2)+(T126^2)+(T119^2)+(T112^2)+(T105^2)+(T98^2))","v":31.749015732775089},{"$f":"U140+U133+U126+U119+U112+U105+U98","v":0},{"$f":"SQRT((V140^2)+(V133^2)+(V126^2)+(V119^2)+(V112^2)+(V105^2)+(V98^2))","v":31.749015732775089},{"$f":"W140+W133+W126+W119+W112+W105+W98","v":9},{"$f":"SQRT((X140^2)+(X133^2)+(X126^2)+(X119^2)+(X112^2)+(X105^2)+(X98^2))","v":31.749015732775089},{"$f":"Y140+Y133+Y126+Y119+Y112+Y105+Y98","v":18},{"$f":"SQRT((Z140^2)+(Z133^2)+(Z126^2)+(Z119^2)+(Z112^2)+(Z105^2)+(Z98^2))","v":37.947331922020552},{"$f":"AA140+AA133+AA126+AA119+AA112+AA105+AA98","v":23},{"$f":"SQRT((AB140^2)+(AB133^2)+(AB126^2)+(AB119^2)+(AB112^2)+(AB105^2)+(AB98^2))","v":36.837480912787726},{"$f":"AC140+AC133+AC126+AC119+AC112+AC105+AC98","v":67},{"$f":"SQRT((AD140^2)+(AD133^2)+(AD126^2)+(AD119^2)+(AD112^2)+(AD105^2)+(AD98^2))","v":59.674114991342769},{"$f":"AE140+AE133+AE126+AE119+AE112+AE105+AE98","v":12},{"$f":"SQRT((AF140^2)+(AF133^2)+(AF126^2)+(AF119^2)+(AF112^2)+(AF105^2)+(AF98^2))","v":30.413812651491099},{"$f":"AG140+AG133+AG126+AG119+AG112+AG105+AG98","v":28},{"$f":"SQRT((AH140^2)+(AH133^2)+(AH126^2)+(AH119^2)+(AH112^2)+(AH105^2)+(AH98^2))","v":43.011626335213137},{"$f":"AI140+AI133+AI126+AI119+AI112+AI105+AI98","v":0},{"$f":"SQRT((AJ140^2)+(AJ133^2)+(AJ126^2)+(AJ119^2)+(AJ112^2)+(AJ105^2)+(AJ98^2))","v":31.749015732775089},{"$f":"AK140+AK133+AK126+AK119+AK112+AK105+AK98","v":0},{"$f":"SQRT((AL140^2)+(AL133^2)+(AL126^2)+(AL119^2)+(AL112^2)+(AL105^2)+(AL98^2))","v":44.977772288098038},{"$f":"AM140+AM133+AM126+AM119+AM112+AM105+AM98","v":82},{"$f":"SQRT((AN140^2)+(AN133^2)+(AN126^2)+(AN119^2)+(AN112^2)+(AN105^2)+(AN98^2))","v":112.95574354586844}]
[null,"Not Computed",{"$f":"C140+C134+C127+C120+C113+C106+C99","v":66},{"$f":"SQRT((D140^2)+(D134^2)+(D127^2)+(D120^2)+(D113^2)+(D106^2)+(D99^2))","v":74.081036709808544},{"$f":"E140+E134+E127+E120+E113+E106+E99","v":42},{"$f":"SQRT((F140^2)+(F134^2)+(F127^2)+(F120^2)+(F113^2)+(F106^2)+(F99^2))","v":74.081036709808544},{"$f":"G140+G134+G127+G120+G113+G106+G99","v":1},{"$f":"SQRT((H140^2)+(H134^2)+(H127^2)+(H120^2)+(H113^2)+(H106^2)+(H99^2))","v":29.816103031751148},{"$f":"I140+I134+I127+I120+I113+I106+I99","v":10},{"$f":"SQRT((J140^2)+(J134^2)+(J127^2)+(J120^2)+(J113^2)+(J106^2)+(J99^2))","v":30.805843601498726},{"$f":"K140+K134+K127+K120+K113+K106+K99","v":81},{"$f":"SQRT((L140^2)+(L134^2)+(L127^2)+(L120^2)+(L113^2)+(L106^2)+(L99^2))","v":76.550636836018555},{"$f":"M140+M134+M127+M120+M113+M106+M99","v":1},{"$f":"SQRT((N140^2)+(N134^2)+(N127^2)+(N120^2)+(N113^2)+(N106^2)+(N99^2))","v":29.461839725312469},{"$f":"O140+O134+O127+O120+O113+O106+O99","v":18},{"$f":"SQRT((P140^2)+(P134^2)+(P127^2)+(P120^2)+(P113^2)+(P106^2)+(P99^2))","v":27.440845468024488},{"$f":"Q140+Q134+Q127+Q120+Q113+Q106+Q99","v":0},{"$f":"SQRT((R140^2)+(R134^2)+(R127^2)+(R120^2)+(R113^2)+(R106^2)+(R99^2))","v":31.749015732775089},{"$f":"S140+S134+S127+S120+S113+S106+S99","v":0},{"$f":"SQRT((T140^2)+(T134^2)+(T127^2)+(T120^2)+(T113^2)+(T106^2)+(T99^2))","v":31.749015732775089},{"$f":"U140+U134+U127+U120+U113+U106+U99","v":0},{"$f":"SQRT((V140^2)+(V134^2)+(V127^2)+(V120^2)+(V113^2)+(V106^2)+(V99^2))","v":31.749015732775089},{"$f":"W140+W134+W127+W120+W113+W106+W99","v":8},{"$f":"SQRT((X140^2)+(X134^2)+(X127^2)+(X120^2)+(X113^2)+(X106^2)+(X99^2))","v":32.557641192199412},{"$f":"Y140+Y134+Y127+Y120+Y113+Y106+Y99","v":0},{"$f":"SQRT((Z140^2)+(Z134^2)+(Z127^2)+(Z120^2)+(Z113^2)+(Z106^2)+(Z99^2))","v":31.749015732775089},{"$f":"AA140+AA134+AA127+AA120+AA113+AA106+AA99","v":20},{"$f":"SQRT((AB140^2)+(AB134^2)+(AB127^2)+(AB120^2)+(AB113^2)+(AB106^2)+(AB99^2))","v":33.61547262794322},{"$f":"AC140+AC134+AC127+AC120+AC113+AC106+AC99","v":25},{"$f":"SQRT((AD140^2)+(AD134^2)+(AD127^2)+(AD120^2)+(AD113^2)+(AD106^2)+(AD99^2))","v":39.204591567825318},{"$f":"AE140+AE134+AE127+AE120+AE113+AE106+AE99","v":21},{"$f":"SQRT((AF140^2)+(AF134^2)+(AF127^2)+(AF120^2)+(AF113^2)+(AF106^2)+(AF99^2))","v":25.436194683953808},{"$f":"AG140+AG134+AG127+AG120+AG113+AG106+AG99","v":45},{"$f":"SQRT((AH140^2)+(AH134^2)+(AH127^2)+(AH120^2)+(AH113^2)+(AH106^2)+(AH99^2))","v":45.099889135118723},{"$f":"AI140+AI134+AI127+AI120+AI113+AI106+AI99","v":0},{"$f":"SQRT((AJ140^2)+(AJ134^2)+(AJ127^2)+(AJ120^2)+(AJ113^2)+(AJ106^2)+(AJ99^2))","v":31.749015732775089},{"$f":"AK140+AK134+AK127+AK120+AK113+AK106+AK99","v":24},{"$f":"SQRT((AL140^2)+(AL134^2)+(AL127^2)+(AL120^2)+(AL113^2)+(AL106^2)+(AL99^2))","v":58.438001334747923},{"$f":"AM140+AM134+AM127+AM120+AM113+AM106+AM99","v":55},{"$f":"SQRT((AN140^2)+(AN134^2)+(AN127^2)+(AN120^2)+(AN113^2)+(AN106^2)+(AN99^2))","v":57.008771254956898}]
[]
[]
[]
[]
[]
[]
[]
[]
[]
[]
[]
[null,"B25074. HOUSEHOLD INCOME BY GROSS RENT AS A PERCENTAGE OF HOUSEHOLD INCOME IN THE PAST 12 MONTHS"]
[null,"Universe:  RENTER-OCCUPIED HOUSING UNITS"]
[null,"Data Set: 2013-2017 American Community Survey 5-Year Estimates"]
[]
[null,null,"Albany",null,"Bartlett",null,"Brookfield",null,"Chatham",null,"Conway",null,"Eaton",null,"Effingham",null,"Freedom",null,"Hale's Location",null,"Hart's Location",null,"Jackson",null,"Madison",null,"Moultonborough",null,"Ossipee",null,"Sandwich",null,"Tamworth",null,"Tuftonboro",null,"Wakefield",null,"Wolfeboro"]
[null," ","Estimate","Margin of Error","Estimate","Margin of Error","Estimate","Margin of Error","Estimate","Margin of Error","Estimate","Margin of Error","Estimate","Margin of Error","Estimate","Margin of Error","Estimate","Margin of Error","Estimate","Margin of Error","Estimate","Margin of Error","Estimate","Margin of Error","Estimate","Margin of Error","Estimate","Margin of Error","Estimate","Margin of Error","Estimate","Margin of Error","Estimate","Margin of Error","Estimate","Margin of Error","Estimate","Margin of Error","Estimate","Margin of Error"]
[null,"Total:",42,21,436,142,36,38,18,22,1136,254,30,14,107,48,85,32,0,11,8,9,90,48,175,56,260,93,382,138,104,43,441,148,125,64,225,101,633,207]
[null,"Less than $10,000:",0,11,83,78,0,11,0,11,134,103,0,11,0,11,0,11,0,11,0,11,0,11,0,11,23,22,56,71,6,9,103,87,0,11,0,16,31,50]
[null,"Less than 20.0 percent",0,11,0,11,0,11,0,11,0,18,0,11,0,11,0,11,0,11,0,11,0,11,0,11,0,11,0,11,0,11,0,11,0,11,0,16,0,16]
[null,"20.0 to 24.9 percent",0,11,0,11,0,11,0,11,0,18,0,11,0,11,0,11,0,11,0,11,0,11,0,11,0,11,0,11,0,11,0,11,0,11,0,16,0,16]
[null,"25.0 to 29.9 percent",0,11,0,11,0,11,0,11,19,29,0,11,0,11,0,11,0,11,0,11,0,11,0,11,6,9,0,11,6,9,0,11,0,11,0,16,0,16]
[null,"30.0 to 34.9 percent",0,11,0,11,0,11,0,11,0,18,0,11,0,11,0,11,0,11,0,11,0,11,0,11,0,11,0,11,0,11,0,11,0,11,0,16,0,16]
[null,"35.0 to 39.9 percent",0,11,0,11,0,11,0,11,0,18,0,11,0,11,0,11,0,11,0,11,0,11,0,11,0,11,0,11,0,11,0,11,0,11,0,16,0,16]
[null,"40.0 to 49.9 percent",0,11,0,11,0,11,0,11,0,18,0,11,0,11,0,11,0,11,0,11,0,11,0,11,0,11,0,11,0,11,0,11,0,11,0,16,0,16]
[null,"50.0 percent or more",0,11,58,67,0,11,0,11,115,99,0,11,0,11,0,11,0,11,0,11,0,11,0,11,10,16,42,65,0,11,103,87,0,11,0,16,31,50]
[null,"Not computed",0,11,25,40,0,11,0,11,0,18,0,11,0,11,0,11,0,11,0,11,0,11,0,11,7,10,14,22,0,11,0,11,0,11,0,16,0,16]
[null,"$10,000 to $19,999:",5,6,90,75,0,11,1,2,171,80,3,5,33,29,9,9,0,11,0,11,21,22,10,15,49,53,54,48,3,6,97,94,12,12,34,49,204,150]
[null,"Less than 20.0 percent",0,11,0,11,0,11,0,11,17,26,0,11,0,11,0,11,0,11,0,11,0,11,0,11,6,10,0,11,0,11,13,20,0,11,0,16,0,16]
[null,"20.0 to 24.9 percent",0,11,0,11,0,11,0,11,0,18,0,11,0,11,0,11,0,11,0,11,0,11,0,11,0,11,0,11,0,11,15,22,0,11,0,16,0,16]
[null,"25.0 to 29.9 percent",0,11,0,11,0,11,0,11,10,16,0,11,0,11,0,11,0,11,0,11,0,11,0,11,0,11,31,51,0,11,0,11,0,11,0,16,18,30]
[null,"30.0 to 34.9 percent",0,11,37,52,0,11,0,11,17,27,0,11,0,11,0,11,0,11,0,11,0,11,0,11,0,11,12,20,0,11,0,11,0,11,0,16,0,16]
[null,"35.0 to 39.9 percent",0,11,0,11,0,11,0,11,13,21,0,11,0,11,0,11,0,11,0,11,0,11,0,11,0,11,0,11,0,11,0,11,0,11,0,16,17,28]
[null,"40.0 to 49.9 percent",0,11,12,16,0,11,0,11,0,18,0,11,0,11,0,11,0,11,0,11,0,11,0,11,7,11,0,11,0,11,0,11,0,11,0,16,0,16]
[null,"50.0 percent or more",5,6,22,35,0,11,1,2,84,62,0,11,17,13,0,11,0,11,0,11,19,23,10,15,6,10,11,16,3,6,69,91,12,12,29,48,169,147]
[null,"Not computed",0,11,19,31,0,11,0,11,30,48,3,5,16,24,9,9,0,11,0,11,2,5,0,11,30,50,0,11,0,11,0,11,0,11,5,8,0,16]
[null,"$20,000 to $34,999:",14,13,22,24,8,14,7,14,219,125,0,11,41,27,17,18,0,11,0,11,3,4,38,33,33,35,165,107,20,17,82,68,60,45,17,26,125,125]
[null,"Less than 20.0 percent",0,11,0,11,0,11,0,11,0,18,0,11,0,11,0,11,0,11,0,11,0,11,0,11,6,9,31,51,0,11,0,11,0,11,0,16,0,16]
[null,"20.0 to 24.9 percent",0,11,12,18,0,11,0,11,17,28,0,11,0,11,0,11,0,11,0,11,0,11,0,11,0,11,0,11,3,5,0,11,0,11,17,26,0,16]
[null,"25.0 to 29.9 percent",0,11,0,11,0,11,0,11,55,54,0,11,0,11,0,11,0,11,0,11,0,11,17,26,0,11,0,11,4,6,14,23,12,18,0,16,81,92]
[null,"30.0 to 34.9 percent",9,12,0,11,0,11,7,14,12,19,0,11,16,20,0,11,0,11,0,11,0,11,0,11,0,11,0,11,0,11,58,64,0,11,0,16,0,16]
[null,"35.0 to 39.9 percent",0,11,0,11,0,11,0,11,37,61,0,11,15,17,17,18,0,11,0,11,0,11,0,11,0,11,32,52,0,11,0,11,0,11,0,16,44,67]
[null,"40.0 to 49.9 percent",0,11,0,11,0,11,0,11,56,58,0,11,10,9,0,11,0,11,0,11,0,11,16,25,0,11,21,33,0,11,0,11,0,11,0,16,0,16]
[null,"50.0 percent or more",2,3,0,11,8,14,0,11,42,60,0,11,0,11,0,11,0,11,0,11,0,11,5,8,7,10,56,57,9,14,10,16,38,39,0,16,0,16]
[null,"Not computed",3,5,10,15,0,11,0,11,0,18,0,11,0,11,0,11,0,11,0,11,3,4,0,11,20,32,25,30,4,6,0,11,10,15,0,16,0,16]
[null,"$35,000 to $49,999:",11,16,95,74,0,11,0,11,211,119,0,11,0,11,15,12,0,11,0,11,27,23,40,37,25,30,17,19,41,30,18,20,22,28,139,84,198,124]
[null,"Less than 20.0 percent",0,11,0,11,0,11,0,11,45,52,0,11,0,11,0,11,0,11,0,11,12,19,0,11,0,11,0,11,0,11,11,17,0,11,35,41,0,16]
[null,"20.0 to 24.9 percent",8,15,35,47,0,11,0,11,27,41,0,11,0,11,9,8,0,11,0,11,15,13,14,23,0,11,0,11,11,17,7,10,0,11,0,16,44,71]
[null,"25.0 to 29.9 percent",0,11,34,55,0,11,0,11,30,38,0,11,0,11,0,11,0,11,0,11,0,11,0,11,0,11,0,11,3,5,0,11,17,26,0,16,19,30]
[null,"30.0 to 34.9 percent",0,11,0,11,0,11,0,11,77,86,0,11,0,11,0,11,0,11,0,11,0,11,8,12,0,11,0,11,0,11,0,11,0,11,104,79,30,45]
[null,"35.0 to 39.9 percent",3,6,0,11,0,11,0,11,20,33,0,11,0,11,6,8,0,11,0,11,0,11,0,11,0,11,0,11,0,11,0,11,0,11,0,16,44,66]
[null,"40.0 to 49.9 percent",0,11,0,11,0,11,0,11,11,19,0,11,0,11,0,11,0,11,0,11,0,11,0,11,18,27,0,11,8,8,0,11,0,11,0,16,61,76]
[null,"50.0 percent or more",0,11,0,11,0,11,0,11,0,18,0,11,0,11,0,11,0,11,0,11,0,11,0,11,0,11,0,11,9,14,0,11,0,11,0,16,0,16]
[null,"Not computed",0,11,26,40,0,11,0,11,1,3,0,11,0,11,0,11,0,11,0,11,0,11,18,28,7,11,17,19,10,16,0,11,5,7,0,16,0,16]
[null,"$50,000 to $74,999:",0,11,96,72,0,11,10,14,294,146,21,13,20,19,10,11,0,11,0,11,8,13,37,33,67,47,9,14,21,19,99,87,24,24,20,31,0,16]
[null,"Less than 20.0 percent",0,11,25,41,0,11,10,14,89,86,10,9,11,17,0,11,0,11,0,11,8,13,17,27,30,37,0,11,4,6,60,73,0,11,20,31,0,16]
[null,"20.0 to 24.9 percent",0,11,48,52,0,11,0,11,108,99,3,4,0,11,7,10,0,11,0,11,0,11,0,11,23,24,0,11,0,11,0,11,5,8,0,16,0,16]
[null,"25.0 to 29.9 percent",0,11,23,37,0,11,0,11,69,61,0,11,5,6,0,11,0,11,0,11,0,11,7,12,0,11,0,11,0,11,0,11,0,11,0,16,0,16]
[null,"30.0 to 34.9 percent",0,11,0,11,0,11,0,11,0,18,0,11,0,11,0,11,0,11,0,11,0,11,0,11,7,11,0,11,6,6,39,59,0,11,0,16,0,16]
[null,"35.0 to 39.9 percent",0,11,0,11,0,11,0,11,0,18,0,11,0,11,3,5,0,11,0,11,0,11,8,11,0,11,0,11,0,11,0,11,0,11,0,16,0,16]
[null,"40.0 to 49.9 percent",0,11,0,11,0,11,0,11,0,18,0,11,4,6,0,11,0,11,0,11,0,11,0,11,0,11,0,11,0,11,0,11,0,11,0,16,0,16]
[null,"50.0 percent or more",0,11,0,11,0,11,0,11,0,18,0,11,0,11,0,11,0,11,0,11,0,11,0,11,0,11,0,11,0,11,0,11,5,7,0,16,0,16]
[null,"Not computed",0,11,0,11,0,11,0,11,28,46,8,9,0,11,0,11,0,11,0,11,0,11,5,8,7,12,9,14,11,17,0,11,14,19,0,16,0,16]
[null,"$75,000 to $99,999:",3,4,28,43,11,19,0,11,9,14,0,11,0,11,24,18,0,11,5,8,23,28,23,21,20,24,39,62,10,12,16,25,7,11,0,16,15,25]
[null,"Less than 20.0 percent",0,11,0,11,11,19,0,11,9,14,0,11,0,11,12,18,0,11,5,8,12,20,0,11,0,11,39,62,7,11,0,11,7,11,0,16,0,16]
[null,"20.0 to 24.9 percent",0,11,28,43,0,11,0,11,0,18,0,11,0,11,12,19,0,11,0,11,0,11,17,19,13,20,0,11,0,11,0,11,0,11,0,16,15,25]
[null,"25.0 to 29.9 percent",3,4,0,11,0,11,0,11,0,18,0,11,0,11,0,11,0,11,0,11,11,19,0,11,0,11,0,11,3,5,16,25,0,11,0,16,0,16]
[null,"30.0 to 34.9 percent",0,11,0,11,0,11,0,11,0,18,0,11,0,11,0,11,0,11,0,11,0,11,0,11,0,11,0,11,0,11,0,11,0,11,0,16,0,16]
[null,"35.0 to 39.9 percent",0,11,0,11,0,11,0,11,0,18,0,11,0,11,0,11,0,11,0,11,0,11,0,11,0,11,0,11,0,11,0,11,0,11,0,16,0,16]
[null,"40.0 to 49.9 percent",0,11,0,11,0,11,0,11,0,18,0,11,0,11,0,11,0,11,0,11,0,11,0,11,0,11,0,11,0,11,0,11,0,11,0,16,0,16]
[null,"50.0 percent or more",0,11,0,11,0,11,0,11,0,18,0,11,0,11,0,11,0,11,0,11,0,11,0,11,0,11,0,11,0,11,0,11,0,11,0,16,0,16]
[null,"Not computed",0,11,0,11,0,11,0,11,0,18,0,11,0,11,0,11,0,11,0,11,0,11,6,9,7,12,0,11,0,11,0,11,0,11,0,16,0,16]
[null,"$100,000 or more:",9,7,22,37,17,29,0,11,98,92,6,10,13,18,10,8,0,11,3,4,8,12,27,22,43,53,42,54,3,5,26,29,0,11,15,23,60,77]
[null,"Less than 20.0 percent",9,7,22,37,17,29,0,11,98,92,0,11,13,18,10,8,0,11,0,11,8,12,12,13,0,11,32,51,0,11,26,29,0,11,0,16,43,71]
[null,"20.0 to 24.9 percent",0,11,0,11,0,11,0,11,0,18,0,11,0,11,0,11,0,11,3,4,0,11,15,20,43,53,0,11,0,11,0,11,0,11,0,16,0,16]
[null,"25.0 to 29.9 percent",0,11,0,11,0,11,0,11,0,18,0,11,0,11,0,11,0,11,0,11,0,11,0,11,0,11,0,11,0,11,0,11,0,11,0,16,0,16]
[null,"30.0 to 34.9 percent",0,11,0,11,0,11,0,11,0,18,0,11,0,11,0,11,0,11,0,11,0,11,0,11,0,11,0,11,0,11,0,11,0,11,0,16,0,16]
[null,"35.0 to 39.9 percent",0,11,0,11,0,11,0,11,0,18,0,11,0,11,0,11,0,11,0,11,0,11,0,11,0,11,0,11,0,11,0,11,0,11,0,16,0,16]
[null,"40.0 to 49.9 percent",0,11,0,11,0,11,0,11,0,18,0,11,0,11,0,11,0,11,0,11,0,11,0,11,0,11,0,11,0,11,0,11,0,11,0,16,0,16]
[null,"50.0 percent or more",0,11,0,11,0,11,0,11,0,18,0,11,0,11,0,11,0,11,0,11,0,11,0,11,0,11,0,11,0,11,0,11,0,11,0,16,0,16]
[null,"Not computed",0,11,0,11,0,11,0,11,0,18,6,10,0,11,0,11,0,11,0,11,0,11,0,11,0,11,10,16,3,5,0,11,0,11,15,23,17,26]
[]
[]
[]
[]
[]
[]
[]
[]
[]
[]
[]
[]
[]
[]
[]
[null,"Calculated B25074. HOUSEHOLD INCOME BY GROSS RENT AS A PERCENTAGE OF HOUSEHOLD INCOME IN THE PAST 12 MONTHS"]
[null,"Universe:  RENTER-OCCUPIED HOUSING UNITS",null,null,null,null,null,{"$f":"'RentalHousingCost-Prior5Yr'!D41","v":"Income in 2017 Inflation Adjusted Dollars"}]
[null,{"$f":"B170","v":"Data Set: 2013-2017 American Community Survey 5-Year Estimates"}]
[]
[null,null,"Albany",null,"Bartlett",null,"Brookfield",null,"Chatham",null,"Conway",null,"Eaton",null,"Effingham",null,"Freedom",null,"Hale's Location",null,"Hart's Location",null,"Jackson",null,"Madison",null,"Moultonborough",null,"Ossipee",null,"Sandwich",null,"Tamworth",null,"Tuftonboro",null,"Wakefield",null,"Wolfeboro"]
[null," ","Estimate","Margin of Error","Estimate","Margin of Error","Estimate","Margin of Error","Estimate","Margin of Error","Estimate","Margin of Error","Estimate","Margin of Error","Estimate","Margin of Error","Estimate","Margin of Error","Estimate","Margin of Error","Estimate","Margin of Error","Estimate","Margin of Error","Estimate","Margin of Error","Estimate","Margin of Error","Estimate","Margin of Error","Estimate","Margin of Error","Estimate","Margin of Error","Estimate","Margin of Error","Estimate","Margin of Error","Estimate","Margin of Error"]
[null,"Total:",{"$f":"C174","v":42},21,436,142,36,38,18,22,1136,254,30,14,107,48,85,32,0,11,8,9,90,48,175,56,260,93,382,138,104,43,441,148,125,64,225,101,633,207]
[null,"Less than $10,000:",{"$f":"C175","v":0},11,83,78,0,11,0,11,134,103,0,11,0,11,0,11,0,11,0,11,0,11,0,11,23,22,56,71,6,9,103,87,0,11,0,16,31,50]
[null,"Less than 30.0 percent",{"$f":"C176+C177+C178","v":0},{"$f":"SQRT((D176^2)+(D177^2)+(D178^2))","v":19.05255888325765},{"$f":"E176+E177+E178","v":0},{"$f":"SQRT((F176^2)+(F177^2)+(F178^2))","v":19.05255888325765},{"$f":"G176+G177+G178","v":0},{"$f":"SQRT((H176^2)+(H177^2)+(H178^2))","v":19.05255888325765},{"$f":"I176+I177+I178","v":0},{"$f":"SQRT((J176^2)+(J177^2)+(J178^2))","v":19.05255888325765},{"$f":"K176+K177+K178","v":19},{"$f":"SQRT((L176^2)+(L177^2)+(L178^2))","v":38.587562763149478},{"$f":"M176+M177+M178","v":0},{"$f":"SQRT((N176^2)+(N177^2)+(N178^2))","v":19.05255888325765},{"$f":"O176+O177+O178","v":0},{"$f":"SQRT((P176^2)+(P177^2)+(P178^2))","v":19.05255888325765},{"$f":"Q176+Q177+Q178","v":0},{"$f":"SQRT((R176^2)+(R177^2)+(R178^2))","v":19.05255888325765},{"$f":"S176+S177+S178","v":0},{"$f":"SQRT((T176^2)+(T177^2)+(T178^2))","v":19.05255888325765},{"$f":"U176+U177+U178","v":0},{"$f":"SQRT((V176^2)+(V177^2)+(V178^2))","v":19.05255888325765},{"$f":"W176+W177+W178","v":0},{"$f":"SQRT((X176^2)+(X177^2)+(X178^2))","v":19.05255888325765},{"$f":"Y176+Y177+Y178","v":0},{"$f":"SQRT((Z176^2)+(Z177^2)+(Z178^2))","v":19.05255888325765},{"$f":"AA176+AA177+AA178","v":6},{"$f":"SQRT((AB176^2)+(AB177^2)+(AB178^2))","v":17.972200755611428},{"$f":"AC176+AC177+AC178","v":0},{"$f":"SQRT((AD176^2)+(AD177^2)+(AD178^2))","v":19.05255888325765},{"$f":"AE176+AE177+AE178","v":6},{"$f":"SQRT((AF176^2)+(AF177^2)+(AF178^2))","v":17.972200755611428},{"$f":"AG176+AG177+AG178","v":0},{"$f":"SQRT((AH176^2)+(AH177^2)+(AH178^2))","v":19.05255888325765},{"$f":"AI176+AI177+AI178","v":0},{"$f":"SQRT((AJ176^2)+(AJ177^2)+(AJ178^2))","v":19.05255888325765},{"$f":"AK176+AK177+AK178","v":0},{"$f":"SQRT((AL176^2)+(AL177^2)+(AL178^2))","v":27.712812921102035},{"$f":"AM176+AM177+AM178","v":0},{"$f":"SQRT((AN176^2)+(AN177^2)+(AN178^2))","v":27.712812921102035}]
[null,"More than 30.0 percent",{"$f":"C179+C180+C181+C182","v":0},{"$f":"SQRT((D179^2)+(D180^2)+(D181^2)+(D182^2))","v":22},{"$f":"E179+E180+E181+E182","v":58},{"$f":"SQRT((F179^2)+(F180^2)+(F181^2)+(F182^2))","v":69.656299069071991},{"$f":"G179+G180+G181+G182","v":0},{"$f":"SQRT((H179^2)+(H180^2)+(H181^2)+(H182^2))","v":22},{"$f":"I179+I180+I181+I182","v":0},{"$f":"SQRT((J179^2)+(J180^2)+(J181^2)+(J182^2))","v":22},{"$f":"K179+K180+K181+K182","v":115},{"$f":"SQRT((L179^2)+(L180^2)+(L181^2)+(L182^2))","v":103.79306335203717},{"$f":"M179+M180+M181+M182","v":0},{"$f":"SQRT((N179^2)+(N180^2)+(N181^2)+(N182^2))","v":22},{"$f":"O179+O180+O181+O182","v":0},{"$f":"SQRT((P179^2)+(P180^2)+(P181^2)+(P182^2))","v":22},{"$f":"Q179+Q180+Q181+Q182","v":0},{"$f":"SQRT((R179^2)+(R180^2)+(R181^2)+(R182^2))","v":22},{"$f":"S179+S180+S181+S182","v":0},{"$f":"SQRT((T179^2)+(T180^2)+(T181^2)+(T182^2))","v":22},{"$f":"U179+U180+U181+U182","v":0},{"$f":"SQRT((V179^2)+(V180^2)+(V181^2)+(V182^2))","v":22},{"$f":"W179+W180+W181+W182","v":0},{"$f":"SQRT((X179^2)+(X180^2)+(X181^2)+(X182^2))","v":22},{"$f":"Y179+Y180+Y181+Y182","v":0},{"$f":"SQRT((Z179^2)+(Z180^2)+(Z181^2)+(Z182^2))","v":22},{"$f":"AA179+AA180+AA181+AA182","v":10},{"$f":"SQRT((AB179^2)+(AB180^2)+(AB181^2)+(AB182^2))","v":24.879710609249457},{"$f":"AC179+AC180+AC181+AC182","v":42},{"$f":"SQRT((AD179^2)+(AD180^2)+(AD181^2)+(AD182^2))","v":67.734776887504395},{"$f":"AE179+AE180+AE181+AE182","v":0},{"$f":"SQRT((AF179^2)+(AF180^2)+(AF181^2)+(AF182^2))","v":22},{"$f":"AG179+AG180+AG181+AG182","v":103},{"$f":"SQRT((AH179^2)+(AH180^2)+(AH181^2)+(AH182^2))","v":89.061776312849275},{"$f":"AI179+AI180+AI181+AI182","v":0},{"$f":"SQRT((AJ179^2)+(AJ180^2)+(AJ181^2)+(AJ182^2))","v":22},{"$f":"AK179+AK180+AK181+AK182","v":0},{"$f":"SQRT((AL179^2)+(AL180^2)+(AL181^2)+(AL182^2))","v":32},{"$f":"AM179+AM180+AM181+AM182","v":31},{"$f":"SQRT((AN179^2)+(AN180^2)+(AN181^2)+(AN182^2))","v":57.166423711825807}]
[null,"Less Than 35% of HH Income",{"$f":"C176+C177+C178+C179","v":0},{"$f":"SQRT((D176^2)+(D177^2)+(D178^2)+(D179^2))","v":22},{"$f":"E176+E177+E178+E179","v":0},{"$f":"SQRT((F176^2)+(F177^2)+(F178^2)+(F179^2))","v":22},{"$f":"G176+G177+G178+G179","v":0},{"$f":"SQRT((H176^2)+(H177^2)+(H178^2)+(H179^2))","v":22},{"$f":"I176+I177+I178+I179","v":0},{"$f":"SQRT((J176^2)+(J177^2)+(J178^2)+(J179^2))","v":22},{"$f":"K176+K177+K178+K179","v":19},{"$f":"SQRT((L176^2)+(L177^2)+(L178^2)+(L179^2))","v":42.579337712087536},{"$f":"M176+M177+M178+M179","v":0},{"$f":"SQRT((N176^2)+(N177^2)+(N178^2)+(N179^2))","v":22},{"$f":"O176+O177+O178+O179","v":0},{"$f":"SQRT((P176^2)+(P177^2)+(P178^2)+(P179^2))","v":22},{"$f":"Q176+Q177+Q178+Q179","v":0},{"$f":"SQRT((R176^2)+(R177^2)+(R178^2)+(R179^2))","v":22},{"$f":"S176+S177+S178+S179","v":0},{"$f":"SQRT((T176^2)+(T177^2)+(T178^2)+(T179^2))","v":22},{"$f":"U176+U177+U178+U179","v":0},{"$f":"SQRT((V176^2)+(V177^2)+(V178^2)+(V179^2))","v":22},{"$f":"W176+W177+W178+W179","v":0},{"$f":"SQRT((X176^2)+(X177^2)+(X178^2)+(X179^2))","v":22},{"$f":"Y176+Y177+Y178+Y179","v":0},{"$f":"SQRT((Z176^2)+(Z177^2)+(Z178^2)+(Z179^2))","v":22},{"$f":"AA176+AA177+AA178+AA179","v":6},{"$f":"SQRT((AB176^2)+(AB177^2)+(AB178^2)+(AB179^2))","v":21.071307505705477},{"$f":"AC176+AC177+AC178+AC179","v":0},{"$f":"SQRT((AD176^2)+(AD177^2)+(AD178^2)+(AD179^2))","v":22},{"$f":"AE176+AE177+AE178+AE179","v":6},{"$f":"SQRT((AF176^2)+(AF177^2)+(AF178^2)+(AF179^2))","v":21.071307505705477},{"$f":"AG176+AG177+AG178+AG179","v":0},{"$f":"SQRT((AH176^2)+(AH177^2)+(AH178^2)+(AH179^2))","v":22},{"$f":"AI176+AI177+AI178+AI179","v":0},{"$f":"SQRT((AJ176^2)+(AJ177^2)+(AJ178^2)+(AJ179^2))","v":22},{"$f":"AK176+AK177+AK178+AK179","v":0},{"$f":"SQRT((AL176^2)+(AL177^2)+(AL178^2)+(AL179^2))","v":32},{"$f":"AM176+AM177+AM178+AM179","v":0},{"$f":"SQRT((AN176^2)+(AN177^2)+(AN178^2)+(AN179^2))","v":32}]
[null,"35.0 percent or more",{"$f":"C180+C181++C182","v":0},{"$f":"SQRT((D180^2)+(D181^2)+(D182^2))","v":19.05255888325765},{"$f":"E180+E181++E182","v":58},{"$f":"SQRT((F180^2)+(F181^2)+(F182^2))","v":68.782265156070579},{"$f":"G180+G181++G182","v":0},{"$f":"SQRT((H180^2)+(H181^2)+(H182^2))","v":19.05255888325765},{"$f":"I180+I181++I182","v":0},{"$f":"SQRT((J180^2)+(J181^2)+(J182^2))","v":19.05255888325765},{"$f":"K180+K181++K182","v":115},{"$f":"SQRT((L180^2)+(L181^2)+(L182^2))","v":102.22035022440492},{"$f":"M180+M181++M182","v":0},{"$f":"SQRT((N180^2)+(N181^2)+(N182^2))","v":19.05255888325765},{"$f":"O180+O181++O182","v":0},{"$f":"SQRT((P180^2)+(P181^2)+(P182^2))","v":19.05255888325765},{"$f":"Q180+Q181++Q182","v":0},{"$f":"SQRT((R180^2)+(R181^2)+(R182^2))","v":19.05255888325765},{"$f":"S180+S181++S182","v":0},{"$f":"SQRT((T180^2)+(T181^2)+(T182^2))","v":19.05255888325765},{"$f":"U180+U181++U182","v":0},{"$f":"SQRT((V180^2)+(V181^2)+(V182^2))","v":19.05255888325765},{"$f":"W180+W181++W182","v":0},{"$f":"SQRT((X180^2)+(X181^2)+(X182^2))","v":19.05255888325765},{"$f":"Y180+Y181++Y182","v":0},{"$f":"SQRT((Z180^2)+(Z181^2)+(Z182^2))","v":19.05255888325765},{"$f":"AA180+AA181++AA182","v":10},{"$f":"SQRT((AB180^2)+(AB181^2)+(AB182^2))","v":22.315913604421397},{"$f":"AC180+AC181++AC182","v":42},{"$f":"SQRT((AD180^2)+(AD181^2)+(AD182^2))","v":66.83561924602779},{"$f":"AE180+AE181++AE182","v":0},{"$f":"SQRT((AF180^2)+(AF181^2)+(AF182^2))","v":19.05255888325765},{"$f":"AG180+AG181++AG182","v":103},{"$f":"SQRT((AH180^2)+(AH181^2)+(AH182^2))","v":88.379861959611588},{"$f":"AI180+AI181++AI182","v":0},{"$f":"SQRT((AJ180^2)+(AJ181^2)+(AJ182^2))","v":19.05255888325765},{"$f":"AK180+AK181++AK182","v":0},{"$f":"SQRT((AL180^2)+(AL181^2)+(AL182^2))","v":27.712812921102035},{"$f":"AM180+AM181++AM182","v":31},{"$f":"SQRT((AN180^2)+(AN181^2)+(AN182^2))","v":54.881690936048976}]
[null,"50.0 percent or more",{"$f":"C182","v":0},11,58,67,0,11,0,11,115,99,0,11,0,11,0,11,0,11,0,11,0,11,0,11,10,16,42,65,0,11,103,87,0,11,0,16,31,50]
[null,"Not Computed",{"$f":"C183","v":0},11,25,40,0,11,0,11,0,18,0,11,0,11,0,11,0,11,0,11,0,11,0,11,7,10,14,22,0,11,0,11,0,11,0,16,0,16]
[null,"$10,000 to $19,999:",{"$f":"C184","v":5},6,90,75,0,11,1,2,171,80,3,5,33,29,9,9,0,11,0,11,21,22,10,15,49,53,54,48,3,6,97,94,12,12,34,49,204,150]
[null,"Less than 30.0 percent",{"$f":"C185+C186+C187","v":0},{"$f":"SQRT((D185^2)+(D186^2)+(D187^2))","v":19.05255888325765},{"$f":"E185+E186+E187","v":0},{"$f":"SQRT((F185^2)+(F186^2)+(F187^2))","v":19.05255888325765},{"$f":"G185+G186+G187","v":0},{"$f":"SQRT((H185^2)+(H186^2)+(H187^2))","v":19.05255888325765},{"$f":"I185+I186+I187","v":0},{"$f":"SQRT((J185^2)+(J186^2)+(J187^2))","v":19.05255888325765},{"$f":"K185+K186+K187","v":27},{"$f":"SQRT((L185^2)+(L186^2)+(L187^2))","v":35.440090293338699},{"$f":"M185+M186+M187","v":0},{"$f":"SQRT((N185^2)+(N186^2)+(N187^2))","v":19.05255888325765},{"$f":"O185+O186+O187","v":0},{"$f":"SQRT((P185^2)+(P186^2)+(P187^2))","v":19.05255888325765},{"$f":"Q185+Q186+Q187","v":0},{"$f":"SQRT((R185^2)+(R186^2)+(R187^2))","v":19.05255888325765},{"$f":"S185+S186+S187","v":0},{"$f":"SQRT((T185^2)+(T186^2)+(T187^2))","v":19.05255888325765},{"$f":"U185+U186+U187","v":0},{"$f":"SQRT((V185^2)+(V186^2)+(V187^2))","v":19.05255888325765},{"$f":"W185+W186+W187","v":0},{"$f":"SQRT((X185^2)+(X186^2)+(X187^2))","v":19.05255888325765},{"$f":"Y185+Y186+Y187","v":0},{"$f":"SQRT((Z185^2)+(Z186^2)+(Z187^2))","v":19.05255888325765},{"$f":"AA185+AA186+AA187","v":6},{"$f":"SQRT((AB185^2)+(AB186^2)+(AB187^2))","v":18.493242008906929},{"$f":"AC185+AC186+AC187","v":31},{"$f":"SQRT((AD185^2)+(AD186^2)+(AD187^2))","v":53.319789947073126},{"$f":"AE185+AE186+AE187","v":0},{"$f":"SQRT((AF185^2)+(AF186^2)+(AF187^2))","v":19.05255888325765},{"$f":"AG185+AG186+AG187","v":28},{"$f":"SQRT((AH185^2)+(AH186^2)+(AH187^2))","v":31.701734968294716},{"$f":"AI185+AI186+AI187","v":0},{"$f":"SQRT((AJ185^2)+(AJ186^2)+(AJ187^2))","v":19.05255888325765},{"$f":"AK185+AK186+AK187","v":0},{"$f":"SQRT((AL185^2)+(AL186^2)+(AL187^2))","v":27.712812921102035},{"$f":"AM185+AM186+AM187","v":18},{"$f":"SQRT((AN185^2)+(AN186^2)+(AN187^2))","v":37.576588456111871}]
[null,"More than 30.0 percent",{"$f":"C188+C189+C190+C191","v":5},{"$f":"SQRT((D188^2)+(D189^2)+(D190^2)+(D191^2))","v":19.974984355438178},{"$f":"E188+E189+E190+E191","v":71},{"$f":"SQRT((F188^2)+(F189^2)+(F190^2)+(F191^2))","v":65.620118866091673},{"$f":"G188+G189+G190+G191","v":0},{"$f":"SQRT((H188^2)+(H189^2)+(H190^2)+(H191^2))","v":22},{"$f":"I188+I189+I190+I191","v":1},{"$f":"SQRT((J188^2)+(J189^2)+(J190^2)+(J191^2))","v":19.157244060668017},{"$f":"K188+K189+K190+K191","v":114},{"$f":"SQRT((L188^2)+(L189^2)+(L190^2)+(L191^2))","v":73.061617830431317},{"$f":"M188+M189+M190+M191","v":0},{"$f":"SQRT((N188^2)+(N189^2)+(N190^2)+(N191^2))","v":22},{"$f":"O188+O189+O190+O191","v":17},{"$f":"SQRT((P188^2)+(P189^2)+(P190^2)+(P191^2))","v":23.065125189341593},{"$f":"Q188+Q189+Q190+Q191","v":0},{"$f":"SQRT((R188^2)+(R189^2)+(R190^2)+(R191^2))","v":22},{"$f":"S188+S189+S190+S191","v":0},{"$f":"SQRT((T188^2)+(T189^2)+(T190^2)+(T191^2))","v":22},{"$f":"U188+U189+U190+U191","v":0},{"$f":"SQRT((V188^2)+(V189^2)+(V190^2)+(V191^2))","v":22},{"$f":"W188+W189+W190+W191","v":19},{"$f":"SQRT((X188^2)+(X189^2)+(X190^2)+(X191^2))","v":29.866369046136157},{"$f":"Y188+Y189+Y190+Y191","v":10},{"$f":"SQRT((Z188^2)+(Z189^2)+(Z190^2)+(Z191^2))","v":24.248711305964282},{"$f":"AA188+AA189+AA190+AA191","v":13},{"$f":"SQRT((AB188^2)+(AB189^2)+(AB190^2)+(AB191^2))","v":21.517434791350013},{"$f":"AC188+AC189+AC190+AC191","v":23},{"$f":"SQRT((AD188^2)+(AD189^2)+(AD190^2)+(AD191^2))","v":29.966648127543394},{"$f":"AE188+AE189+AE190+AE191","v":3},{"$f":"SQRT((AF188^2)+(AF189^2)+(AF190^2)+(AF191^2))","v":19.974984355438178},{"$f":"AG188+AG189+AG190+AG191","v":69},{"$f":"SQRT((AH188^2)+(AH189^2)+(AH190^2)+(AH191^2))","v":92.973114393355672},{"$f":"AI188+AI189+AI190+AI191","v":12},{"$f":"SQRT((AJ188^2)+(AJ189^2)+(AJ190^2)+(AJ191^2))","v":22.516660498395403},{"$f":"AK188+AK189+AK190+AK191","v":29},{"$f":"SQRT((AL188^2)+(AL189^2)+(AL190^2)+(AL191^2))","v":55.42562584220407},{"$f":"AM188+AM189+AM190+AM191","v":186},{"$f":"SQRT((AN188^2)+(AN189^2)+(AN190^2)+(AN191^2))","v":151.34397906755325}]
[null,"Less Than 35% of HH Income",{"$f":"C185+C186+C187+C188","v":0},{"$f":"SQRT((D185^2)+(D186^2)+(D187^2)+(D188^2))","v":22},{"$f":"E185+E186+E187+E188","v":37},{"$f":"SQRT((F185^2)+(F186^2)+(F187^2)+(F188^2))","v":55.380501984001555},{"$f":"G185+G186+G187+G188","v":0},{"$f":"SQRT((H185^2)+(H186^2)+(H187^2)+(H188^2))","v":22},{"$f":"I185+I186+I187+I188","v":0},{"$f":"SQRT((J185^2)+(J186^2)+(J187^2)+(J188^2))","v":22},{"$f":"K185+K186+K187+K188","v":44},{"$f":"SQRT((L185^2)+(L186^2)+(L187^2)+(L188^2))","v":44.553338819890925},{"$f":"M185+M186+M187+M188","v":0},{"$f":"SQRT((N185^2)+(N186^2)+(N187^2)+(N188^2))","v":22},{"$f":"O185+O186+O187+O188","v":0},{"$f":"SQRT((P185^2)+(P186^2)+(P187^2)+(P188^2))","v":22},{"$f":"Q185+Q186+Q187+Q188","v":0},{"$f":"SQRT((R185^2)+(R186^2)+(R187^2)+(R188^2))","v":22},{"$f":"S185+S186+S187+S188","v":0},{"$f":"SQRT((T185^2)+(T186^2)+(T187^2)+(T188^2))","v":22},{"$f":"U185+U186+U187+U188","v":0},{"$f":"SQRT((V185^2)+(V186^2)+(V187^2)+(V188^2))","v":22},{"$f":"W185+W186+W187+W188","v":0},{"$f":"SQRT((X185^2)+(X186^2)+(X187^2)+(X188^2))","v":22},{"$f":"Y185+Y186+Y187+Y188","v":0},{"$f":"SQRT((Z185^2)+(Z186^2)+(Z187^2)+(Z188^2))","v":22},{"$f":"AA185+AA186+AA187+AA188","v":6},{"$f":"SQRT((AB185^2)+(AB186^2)+(AB187^2)+(AB188^2))","v":21.517434791350013},{"$f":"AC185+AC186+AC187+AC188","v":43},{"$f":"SQRT((AD185^2)+(AD186^2)+(AD187^2)+(AD188^2))","v":56.947344099615393},{"$f":"AE185+AE186+AE187+AE188","v":0},{"$f":"SQRT((AF185^2)+(AF186^2)+(AF187^2)+(AF188^2))","v":22},{"$f":"AG185+AG186+AG187+AG188","v":28},{"$f":"SQRT((AH185^2)+(AH186^2)+(AH187^2)+(AH188^2))","v":33.555923471125034},{"$f":"AI185+AI186+AI187+AI188","v":0},{"$f":"SQRT((AJ185^2)+(AJ186^2)+(AJ187^2)+(AJ188^2))","v":22},{"$f":"AK185+AK186+AK187+AK188","v":0},{"$f":"SQRT((AL185^2)+(AL186^2)+(AL187^2)+(AL188^2))","v":32},{"$f":"AM185+AM186+AM187+AM188","v":18},{"$f":"SQRT((AN185^2)+(AN186^2)+(AN187^2)+(AN188^2))","v":40.841155713324277}]
[null,"35.0 percent or more",{"$f":"C189+C190++C191","v":5},{"$f":"SQRT((D189^2)+(D190^2)+(D191^2))","v":16.673332000533065},{"$f":"E189+E190++E191","v":34},{"$f":"SQRT((F189^2)+(F190^2)+(F191^2))","v":40.024992192379003},{"$f":"G189+G190++G191","v":0},{"$f":"SQRT((H189^2)+(H190^2)+(H191^2))","v":19.05255888325765},{"$f":"I189+I190++I191","v":1},{"$f":"SQRT((J189^2)+(J190^2)+(J191^2))","v":15.684387141358123},{"$f":"K189+K190++K191","v":97},{"$f":"SQRT((L189^2)+(L190^2)+(L191^2))","v":67.889616289974711},{"$f":"M189+M190++M191","v":0},{"$f":"SQRT((N189^2)+(N190^2)+(N191^2))","v":19.05255888325765},{"$f":"O189+O190++O191","v":17},{"$f":"SQRT((P189^2)+(P190^2)+(P191^2))","v":20.273134932713294},{"$f":"Q189+Q190++Q191","v":0},{"$f":"SQRT((R189^2)+(R190^2)+(R191^2))","v":19.05255888325765},{"$f":"S189+S190++S191","v":0},{"$f":"SQRT((T189^2)+(T190^2)+(T191^2))","v":19.05255888325765},{"$f":"U189+U190++U191","v":0},{"$f":"SQRT((V189^2)+(V190^2)+(V191^2))","v":19.05255888325765},{"$f":"W189+W190++W191","v":19},{"$f":"SQRT((X189^2)+(X190^2)+(X191^2))","v":27.766886753829642},{"$f":"Y189+Y190++Y191","v":10},{"$f":"SQRT((Z189^2)+(Z190^2)+(Z191^2))","v":21.61018278497431},{"$f":"AA189+AA190++AA191","v":13},{"$f":"SQRT((AB189^2)+(AB190^2)+(AB191^2))","v":18.493242008906929},{"$f":"AC189+AC190++AC191","v":11},{"$f":"SQRT((AD189^2)+(AD190^2)+(AD191^2))","v":22.315913604421397},{"$f":"AE189+AE190++AE191","v":3},{"$f":"SQRT((AF189^2)+(AF190^2)+(AF191^2))","v":16.673332000533065},{"$f":"AG189+AG190++AG191","v":69},{"$f":"SQRT((AH189^2)+(AH190^2)+(AH191^2))","v":92.320095320574708},{"$f":"AI189+AI190++AI191","v":12},{"$f":"SQRT((AJ189^2)+(AJ190^2)+(AJ191^2))","v":19.646882704388499},{"$f":"AK189+AK190++AK191","v":29},{"$f":"SQRT((AL189^2)+(AL190^2)+(AL191^2))","v":53.065996645686397},{"$f":"AM189+AM190++AM191","v":186},{"$f":"SQRT((AN189^2)+(AN190^2)+(AN191^2))","v":150.49584711878265}]
[null,"50.0 percent or more",{"$f":"C191","v":5},6,22,35,0,11,1,2,84,62,0,11,17,13,0,11,0,11,0,11,19,23,10,15,6,10,11,16,3,6,69,91,12,12,29,48,169,147]
[null,"Not Computed",{"$f":"C192","v":0},11,19,31,0,11,0,11,30,48,3,5,16,24,9,9,0,11,0,11,2,5,0,11,30,50,0,11,0,11,0,11,0,11,5,8,0,16]
[null,"$20,000 to $34,999:",{"$f":"C193","v":14},13,22,24,8,14,7,14,219,125,0,11,41,27,17,18,0,11,0,11,3,4,38,33,33,35,165,107,20,17,82,68,60,45,17,26,125,125]
[null,"Less than 30.0 percent",{"$f":"C194+C195+C196","v":0},{"$f":"SQRT((D194^2)+(D195^2)+(D196^2))","v":19.05255888325765},{"$f":"E194+E195+E196","v":12},{"$f":"SQRT((F194^2)+(F195^2)+(F196^2))","v":23.790754506740637},{"$f":"G194+G195+G196","v":0},{"$f":"SQRT((H194^2)+(H195^2)+(H196^2))","v":19.05255888325765},{"$f":"I194+I195+I196","v":0},{"$f":"SQRT((J194^2)+(J195^2)+(J196^2))","v":19.05255888325765},{"$f":"K194+K195+K196","v":72},{"$f":"SQRT((L194^2)+(L195^2)+(L196^2))","v":63.435006108614822},{"$f":"M194+M195+M196","v":0},{"$f":"SQRT((N194^2)+(N195^2)+(N196^2))","v":19.05255888325765},{"$f":"O194+O195+O196","v":0},{"$f":"SQRT((P194^2)+(P195^2)+(P196^2))","v":19.05255888325765},{"$f":"Q194+Q195+Q196","v":0},{"$f":"SQRT((R194^2)+(R195^2)+(R196^2))","v":19.05255888325765},{"$f":"S194+S195+S196","v":0},{"$f":"SQRT((T194^2)+(T195^2)+(T196^2))","v":19.05255888325765},{"$f":"U194+U195+U196","v":0},{"$f":"SQRT((V194^2)+(V195^2)+(V196^2))","v":19.05255888325765},{"$f":"W194+W195+W196","v":0},{"$f":"SQRT((X194^2)+(X195^2)+(X196^2))","v":19.05255888325765},{"$f":"Y194+Y195+Y196","v":17},{"$f":"SQRT((Z194^2)+(Z195^2)+(Z196^2))","v":30.298514815086232},{"$f":"AA194+AA195+AA196","v":6},{"$f":"SQRT((AB194^2)+(AB195^2)+(AB196^2))","v":17.972200755611428},{"$f":"AC194+AC195+AC196","v":31},{"$f":"SQRT((AD194^2)+(AD195^2)+(AD196^2))","v":53.319789947073126},{"$f":"AE194+AE195+AE196","v":7},{"$f":"SQRT((AF194^2)+(AF195^2)+(AF196^2))","v":13.490737563232042},{"$f":"AG194+AG195+AG196","v":14},{"$f":"SQRT((AH194^2)+(AH195^2)+(AH196^2))","v":27.766886753829642},{"$f":"AI194+AI195+AI196","v":12},{"$f":"SQRT((AJ194^2)+(AJ195^2)+(AJ196^2))","v":23.790754506740637},{"$f":"AK194+AK195+AK196","v":17},{"$f":"SQRT((AL194^2)+(AL195^2)+(AL196^2))","v":34.467375879228172},{"$f":"AM194+AM195+AM196","v":81},{"$f":"SQRT((AN194^2)+(AN195^2)+(AN196^2))","v":94.741754258616083}]
[null,"More than 30.0 percent",{"$f":"C197+C198+C199+C200","v":11},{"$f":"SQRT((D197^2)+(D198^2)+(D199^2)+(D200^2))","v":19.874606914351791},{"$f":"E197+E198+E199+E200","v":0},{"$f":"SQRT((F197^2)+(F198^2)+(F199^2)+(F200^2))","v":22},{"$f":"G197+G198+G199+G200","v":8},{"$f":"SQRT((H197^2)+(H198^2)+(H199^2)+(H200^2))","v":23.643180835073778},{"$f":"I197+I198+I199+I200","v":7},{"$f":"SQRT((J197^2)+(J198^2)+(J199^2)+(J200^2))","v":23.643180835073778},{"$f":"K197+K198+K199+K200","v":147},{"$f":"SQRT((L197^2)+(L198^2)+(L199^2)+(L200^2))","v":105.09995242624994},{"$f":"M197+M198+M199+M200","v":0},{"$f":"SQRT((N197^2)+(N198^2)+(N199^2)+(N200^2))","v":22},{"$f":"O197+O198+O199+O200","v":41},{"$f":"SQRT((P197^2)+(P198^2)+(P199^2)+(P200^2))","v":29.8496231131986},{"$f":"Q197+Q198+Q199+Q200","v":17},{"$f":"SQRT((R197^2)+(R198^2)+(R199^2)+(R200^2))","v":26.210684844162312},{"$f":"S197+S198+S199+S200","v":0},{"$f":"SQRT((T197^2)+(T198^2)+(T199^2)+(T200^2))","v":22},{"$f":"U197+U198+U199+U200","v":0},{"$f":"SQRT((V197^2)+(V198^2)+(V199^2)+(V200^2))","v":22},{"$f":"W197+W198+W199+W200","v":0},{"$f":"SQRT((X197^2)+(X198^2)+(X199^2)+(X200^2))","v":22},{"$f":"Y197+Y198+Y199+Y200","v":21},{"$f":"SQRT((Z197^2)+(Z198^2)+(Z199^2)+(Z200^2))","v":30.512292604784715},{"$f":"AA197+AA198+AA199+AA200","v":7},{"$f":"SQRT((AB197^2)+(AB198^2)+(AB199^2)+(AB200^2))","v":21.517434791350013},{"$f":"AC197+AC198+AC199+AC200","v":109},{"$f":"SQRT((AD197^2)+(AD198^2)+(AD199^2)+(AD200^2))","v":84.63450832845902},{"$f":"AE197+AE198+AE199+AE200","v":9},{"$f":"SQRT((AF197^2)+(AF198^2)+(AF199^2)+(AF200^2))","v":23.643180835073778},{"$f":"AG197+AG198+AG199+AG200","v":68},{"$f":"SQRT((AH197^2)+(AH198^2)+(AH199^2)+(AH200^2))","v":67.779052811322174},{"$f":"AI197+AI198+AI199+AI200","v":38},{"$f":"SQRT((AJ197^2)+(AJ198^2)+(AJ199^2)+(AJ200^2))","v":43.405068828421413},{"$f":"AK197+AK198+AK199+AK200","v":0},{"$f":"SQRT((AL197^2)+(AL198^2)+(AL199^2)+(AL200^2))","v":32},{"$f":"AM197+AM198+AM199+AM200","v":44},{"$f":"SQRT((AN197^2)+(AN198^2)+(AN199^2)+(AN200^2))","v":72.505172229296861}]
[null,"Less Than 35% of HH Income",{"$f":"C194+C195+C196+C197","v":9},{"$f":"SQRT((D194^2)+(D195^2)+(D196^2)+(D197^2))","v":22.516660498395403},{"$f":"E194+E195+E196+E197","v":12},{"$f":"SQRT((F194^2)+(F195^2)+(F196^2)+(F197^2))","v":26.210684844162312},{"$f":"G194+G195+G196+G197","v":0},{"$f":"SQRT((H194^2)+(H195^2)+(H196^2)+(H197^2))","v":22},{"$f":"I194+I195+I196+I197","v":7},{"$f":"SQRT((J194^2)+(J195^2)+(J196^2)+(J197^2))","v":23.643180835073778},{"$f":"K194+K195+K196+K197","v":84},{"$f":"SQRT((L194^2)+(L195^2)+(L196^2)+(L197^2))","v":66.219332524573218},{"$f":"M194+M195+M196+M197","v":0},{"$f":"SQRT((N194^2)+(N195^2)+(N196^2)+(N197^2))","v":22},{"$f":"O194+O195+O196+O197","v":16},{"$f":"SQRT((P194^2)+(P195^2)+(P196^2)+(P197^2))","v":27.622454633866266},{"$f":"Q194+Q195+Q196+Q197","v":0},{"$f":"SQRT((R194^2)+(R195^2)+(R196^2)+(R197^2))","v":22},{"$f":"S194+S195+S196+S197","v":0},{"$f":"SQRT((T194^2)+(T195^2)+(T196^2)+(T197^2))","v":22},{"$f":"U194+U195+U196+U197","v":0},{"$f":"SQRT((V194^2)+(V195^2)+(V196^2)+(V197^2))","v":22},{"$f":"W194+W195+W196+W197","v":0},{"$f":"SQRT((X194^2)+(X195^2)+(X196^2)+(X197^2))","v":22},{"$f":"Y194+Y195+Y196+Y197","v":17},{"$f":"SQRT((Z194^2)+(Z195^2)+(Z196^2)+(Z197^2))","v":32.233522922572398},{"$f":"AA194+AA195+AA196+AA197","v":6},{"$f":"SQRT((AB194^2)+(AB195^2)+(AB196^2)+(AB197^2))","v":21.071307505705477},{"$f":"AC194+AC195+AC196+AC197","v":31},{"$f":"SQRT((AD194^2)+(AD195^2)+(AD196^2)+(AD197^2))","v":54.442630355264797},{"$f":"AE194+AE195+AE196+AE197","v":7},{"$f":"SQRT((AF194^2)+(AF195^2)+(AF196^2)+(AF197^2))","v":17.406895185529212},{"$f":"AG194+AG195+AG196+AG197","v":72},{"$f":"SQRT((AH194^2)+(AH195^2)+(AH196^2)+(AH197^2))","v":69.763887506359623},{"$f":"AI194+AI195+AI196+AI197","v":12},{"$f":"SQRT((AJ194^2)+(AJ195^2)+(AJ196^2)+(AJ197^2))","v":26.210684844162312},{"$f":"AK194+AK195+AK196+AK197","v":17},{"$f":"SQRT((AL194^2)+(AL195^2)+(AL196^2)+(AL197^2))","v":38},{"$f":"AM194+AM195+AM196+AM197","v":81},{"$f":"SQRT((AN194^2)+(AN195^2)+(AN196^2)+(AN197^2))","v":96.083297195714508}]
[null,"35.0 percent or more",{"$f":"C198+C199+C200","v":2},{"$f":"SQRT((D198^2)+(D199^2)+(D200^2))","v":15.842979517754859},{"$f":"E198+E199+E200","v":0},{"$f":"SQRT((F198^2)+(F199^2)+(F200^2))","v":19.05255888325765},{"$f":"G198+G199+G200","v":8},{"$f":"SQRT((H198^2)+(H199^2)+(H200^2))","v":20.928449536456348},{"$f":"I198+I199+I200","v":0},{"$f":"SQRT((J198^2)+(J199^2)+(J200^2))","v":19.05255888325765},{"$f":"K198+K199+K200","v":135},{"$f":"SQRT((L198^2)+(L199^2)+(L200^2))","v":103.36827366266692},{"$f":"M198+M199+M200","v":0},{"$f":"SQRT((N198^2)+(N199^2)+(N200^2))","v":19.05255888325765},{"$f":"O198+O199+O200","v":25},{"$f":"SQRT((P198^2)+(P199^2)+(P200^2))","v":22.158519806160339},{"$f":"Q198+Q199+Q200","v":17},{"$f":"SQRT((R198^2)+(R199^2)+(R200^2))","v":23.790754506740637},{"$f":"S198+S199+S200","v":0},{"$f":"SQRT((T198^2)+(T199^2)+(T200^2))","v":19.05255888325765},{"$f":"U198+U199+U200","v":0},{"$f":"SQRT((V198^2)+(V199^2)+(V200^2))","v":19.05255888325765},{"$f":"W198+W199+W200","v":0},{"$f":"SQRT((X198^2)+(X199^2)+(X200^2))","v":19.05255888325765},{"$f":"Y198+Y199+Y200","v":21},{"$f":"SQRT((Z198^2)+(Z199^2)+(Z200^2))","v":28.460498941515414},{"$f":"AA198+AA199+AA200","v":7},{"$f":"SQRT((AB198^2)+(AB199^2)+(AB200^2))","v":18.493242008906929},{"$f":"AC198+AC199+AC200","v":109},{"$f":"SQRT((AD198^2)+(AD199^2)+(AD200^2))","v":83.916625289628996},{"$f":"AE198+AE199+AE200","v":9},{"$f":"SQRT((AF198^2)+(AF199^2)+(AF200^2))","v":20.928449536456348},{"$f":"AG198+AG199+AG200","v":10},{"$f":"SQRT((AH198^2)+(AH199^2)+(AH200^2))","v":22.315913604421397},{"$f":"AI198+AI199+AI200","v":38},{"$f":"SQRT((AJ198^2)+(AJ199^2)+(AJ200^2))","v":41.98809355043403},{"$f":"AK198+AK199+AK200","v":0},{"$f":"SQRT((AL198^2)+(AL199^2)+(AL200^2))","v":27.712812921102035},{"$f":"AM198+AM199+AM200","v":44},{"$f":"SQRT((AN198^2)+(AN199^2)+(AN200^2))","v":70.717748832948573}]
[null,"50.0 percent or more",{"$f":"C200","v":2},3,0,11,8,14,0,11,42,60,0,11,0,11,0,11,0,11,0,11,0,11,5,8,7,10,56,57,9,14,10,16,38,39,0,16,0,16]
[null,"Not Computed",{"$f":"C201","v":3},5,10,15,0,11,0,11,0,18,0,11,0,11,0,11,0,11,0,11,3,4,0,11,20,32,25,30,4,6,0,11,10,15,0,16,0,16]
[null,"$35,000 to $49,999:",{"$f":"C202","v":11},16,95,74,0,11,0,11,211,119,0,11,0,11,15,12,0,11,0,11,27,23,40,37,25,30,17,19,41,30,18,20,22,28,139,84,198,124]
[null,"Less than 30.0 percent",{"$f":"C203+C204+C205","v":8},{"$f":"SQRT((D203^2)+(D204^2)+(D205^2))","v":21.61018278497431},{"$f":"E203+E204+E205","v":69},{"$f":"SQRT((F203^2)+(F204^2)+(F205^2))","v":73.177865505902801},{"$f":"G203+G204+G205","v":0},{"$f":"SQRT((H203^2)+(H204^2)+(H205^2))","v":19.05255888325765},{"$f":"I203+I204+I205","v":0},{"$f":"SQRT((J203^2)+(J204^2)+(J205^2))","v":19.05255888325765},{"$f":"K203+K204+K205","v":102},{"$f":"SQRT((L203^2)+(L204^2)+(L205^2))","v":76.347887986505555},{"$f":"M203+M204+M205","v":0},{"$f":"SQRT((N203^2)+(N204^2)+(N205^2))","v":19.05255888325765},{"$f":"O203+O204+O205","v":0},{"$f":"SQRT((P203^2)+(P204^2)+(P205^2))","v":19.05255888325765},{"$f":"Q203+Q204+Q205","v":9},{"$f":"SQRT((R203^2)+(R204^2)+(R205^2))","v":17.4928556845359},{"$f":"S203+S204+S205","v":0},{"$f":"SQRT((T203^2)+(T204^2)+(T205^2))","v":19.05255888325765},{"$f":"U203+U204+U205","v":0},{"$f":"SQRT((V203^2)+(V204^2)+(V205^2))","v":19.05255888325765},{"$f":"W203+W204+W205","v":27},{"$f":"SQRT((X203^2)+(X204^2)+(X205^2))","v":25.514701644346147},{"$f":"Y203+Y204+Y205","v":14},{"$f":"SQRT((Z203^2)+(Z204^2)+(Z205^2))","v":27.766886753829642},{"$f":"AA203+AA204+AA205","v":0},{"$f":"SQRT((AB203^2)+(AB204^2)+(AB205^2))","v":19.05255888325765},{"$f":"AC203+AC204+AC205","v":0},{"$f":"SQRT((AD203^2)+(AD204^2)+(AD205^2))","v":19.05255888325765},{"$f":"AE203+AE204+AE205","v":14},{"$f":"SQRT((AF203^2)+(AF204^2)+(AF205^2))","v":20.85665361461421},{"$f":"AG203+AG204+AG205","v":18},{"$f":"SQRT((AH203^2)+(AH204^2)+(AH205^2))","v":22.583179581272429},{"$f":"AI203+AI204+AI205","v":17},{"$f":"SQRT((AJ203^2)+(AJ204^2)+(AJ205^2))","v":30.298514815086232},{"$f":"AK203+AK204+AK205","v":35},{"$f":"SQRT((AL203^2)+(AL204^2)+(AL205^2))","v":46.82947789587238},{"$f":"AM203+AM204+AM205","v":63},{"$f":"SQRT((AN203^2)+(AN204^2)+(AN205^2))","v":78.721026416072604}]
[null,"More than 30.0 percent",{"$f":"C206+C207+C208+C209","v":3},{"$f":"SQRT((D206^2)+(D207^2)+(D208^2)+(D209^2))","v":19.974984355438178},{"$f":"E206+E207+E208+E209","v":0},{"$f":"SQRT((F206^2)+(F207^2)+(F208^2)+(F209^2))","v":22},{"$f":"G206+G207+G208+G209","v":0},{"$f":"SQRT((H206^2)+(H207^2)+(H208^2)+(H209^2))","v":22},{"$f":"I206+I207+I208+I209","v":0},{"$f":"SQRT((J206^2)+(J207^2)+(J208^2)+(J209^2))","v":22},{"$f":"K206+K207+K208+K209","v":108},{"$f":"SQRT((L206^2)+(L207^2)+(L208^2)+(L209^2))","v":95.760116958992896},{"$f":"M206+M207+M208+M209","v":0},{"$f":"SQRT((N206^2)+(N207^2)+(N208^2)+(N209^2))","v":22},{"$f":"O206+O207+O208+O209","v":0},{"$f":"SQRT((P206^2)+(P207^2)+(P208^2)+(P209^2))","v":22},{"$f":"Q206+Q207+Q208+Q209","v":6},{"$f":"SQRT((R206^2)+(R207^2)+(R208^2)+(R209^2))","v":20.663978319771825},{"$f":"S206+S207+S208+S209","v":0},{"$f":"SQRT((T206^2)+(T207^2)+(T208^2)+(T209^2))","v":22},{"$f":"U206+U207+U208+U209","v":0},{"$f":"SQRT((V206^2)+(V207^2)+(V208^2)+(V209^2))","v":22},{"$f":"W206+W207+W208+W209","v":0},{"$f":"SQRT((X206^2)+(X207^2)+(X208^2)+(X209^2))","v":22},{"$f":"Y206+Y207+Y208+Y209","v":8},{"$f":"SQRT((Z206^2)+(Z207^2)+(Z208^2)+(Z209^2))","v":22.516660498395403},{"$f":"AA206+AA207+AA208+AA209","v":18},{"$f":"SQRT((AB206^2)+(AB207^2)+(AB208^2)+(AB209^2))","v":33.045423283716609},{"$f":"AC206+AC207+AC208+AC209","v":0},{"$f":"SQRT((AD206^2)+(AD207^2)+(AD208^2)+(AD209^2))","v":22},{"$f":"AE206+AE207+AE208+AE209","v":17},{"$f":"SQRT((AF206^2)+(AF207^2)+(AF208^2)+(AF209^2))","v":22.405356502408079},{"$f":"AG206+AG207+AG208+AG209","v":0},{"$f":"SQRT((AH206^2)+(AH207^2)+(AH208^2)+(AH209^2))","v":22},{"$f":"AI206+AI207+AI208+AI209","v":0},{"$f":"SQRT((AJ206^2)+(AJ207^2)+(AJ208^2)+(AJ209^2))","v":22},{"$f":"AK206+AK207+AK208+AK209","v":104},{"$f":"SQRT((AL206^2)+(AL207^2)+(AL208^2)+(AL209^2))","v":83.719770663804383},{"$f":"AM206+AM207+AM208+AM209","v":135},{"$f":"SQRT((AN206^2)+(AN207^2)+(AN208^2)+(AN209^2))","v":111.4136436887332}]
[null,"Less Than 35% of HH Income",{"$f":"C203+C204+C205+C206","v":8},{"$f":"SQRT((D203^2)+(D204^2)+(D205^2)+(D206^2))","v":24.248711305964282},{"$f":"E203+E204+E205+E206","v":69},{"$f":"SQRT((F203^2)+(F204^2)+(F205^2)+(F206^2))","v":74},{"$f":"G203+G204+G205+G206","v":0},{"$f":"SQRT((H203^2)+(H204^2)+(H205^2)+(H206^2))","v":22},{"$f":"I203+I204+I205+I206","v":0},{"$f":"SQRT((J203^2)+(J204^2)+(J205^2)+(J206^2))","v":22},{"$f":"K203+K204+K205+K206","v":179},{"$f":"SQRT((L203^2)+(L204^2)+(L205^2)+(L206^2))","v":115},{"$f":"M203+M204+M205+M206","v":0},{"$f":"SQRT((N203^2)+(N204^2)+(N205^2)+(N206^2))","v":22},{"$f":"O203+O204+O205+O206","v":0},{"$f":"SQRT((P203^2)+(P204^2)+(P205^2)+(P206^2))","v":22},{"$f":"Q203+Q204+Q205+Q206","v":9},{"$f":"SQRT((R203^2)+(R204^2)+(R205^2)+(R206^2))","v":20.663978319771825},{"$f":"S203+S204+S205+S206","v":0},{"$f":"SQRT((T203^2)+(T204^2)+(T205^2)+(T206^2))","v":22},{"$f":"U203+U204+U205+U206","v":0},{"$f":"SQRT((V203^2)+(V204^2)+(V205^2)+(V206^2))","v":22},{"$f":"W203+W204+W205+W206","v":27},{"$f":"SQRT((X203^2)+(X204^2)+(X205^2)+(X206^2))","v":27.784887978899608},{"$f":"Y203+Y204+Y205+Y206","v":22},{"$f":"SQRT((Z203^2)+(Z204^2)+(Z205^2)+(Z206^2))","v":30.248966924508348},{"$f":"AA203+AA204+AA205+AA206","v":0},{"$f":"SQRT((AB203^2)+(AB204^2)+(AB205^2)+(AB206^2))","v":22},{"$f":"AC203+AC204+AC205+AC206","v":0},{"$f":"SQRT((AD203^2)+(AD204^2)+(AD205^2)+(AD206^2))","v":22},{"$f":"AE203+AE204+AE205+AE206","v":14},{"$f":"SQRT((AF203^2)+(AF204^2)+(AF205^2)+(AF206^2))","v":23.57965224510319},{"$f":"AG203+AG204+AG205+AG206","v":18},{"$f":"SQRT((AH203^2)+(AH204^2)+(AH205^2)+(AH206^2))","v":25.119713374160941},{"$f":"AI203+AI204+AI205+AI206","v":17},{"$f":"SQRT((AJ203^2)+(AJ204^2)+(AJ205^2)+(AJ206^2))","v":32.233522922572398},{"$f":"AK203+AK204+AK205+AK206","v":139},{"$f":"SQRT((AL203^2)+(AL204^2)+(AL205^2)+(AL206^2))","v":91.836811791350854},{"$f":"AM203+AM204+AM205+AM206","v":93},{"$f":"SQRT((AN203^2)+(AN204^2)+(AN205^2)+(AN206^2))","v":90.675244692253244}]
[null,"35.0 percent or more",{"$f":"C207+C208+C209","v":3},{"$f":"SQRT((D207^2)+(D208^2)+(D209^2))","v":16.673332000533065},{"$f":"E207+E208+E209","v":0},{"$f":"SQRT((F207^2)+(F208^2)+(F209^2))","v":19.05255888325765},{"$f":"G207+G208+G209","v":0},{"$f":"SQRT((H207^2)+(H208^2)+(H209^2))","v":19.05255888325765},{"$f":"I207+I208+I209","v":0},{"$f":"SQRT((J207^2)+(J208^2)+(J209^2))","v":19.05255888325765},{"$f":"K207+K208+K209","v":31},{"$f":"SQRT((L207^2)+(L208^2)+(L209^2))","v":42.118879377305376},{"$f":"M207+M208+M209","v":0},{"$f":"SQRT((N207^2)+(N208^2)+(N209^2))","v":19.05255888325765},{"$f":"O207+O208+O209","v":0},{"$f":"SQRT((P207^2)+(P208^2)+(P209^2))","v":19.05255888325765},{"$f":"Q207+Q208+Q209","v":6},{"$f":"SQRT((R207^2)+(R208^2)+(R209^2))","v":17.4928556845359},{"$f":"S207+S208+S209","v":0},{"$f":"SQRT((T207^2)+(T208^2)+(T209^2))","v":19.05255888325765},{"$f":"U207+U208+U209","v":0},{"$f":"SQRT((V207^2)+(V208^2)+(V209^2))","v":19.05255888325765},{"$f":"W207+W208+W209","v":0},{"$f":"SQRT((X207^2)+(X208^2)+(X209^2))","v":19.05255888325765},{"$f":"Y207+Y208+Y209","v":0},{"$f":"SQRT((Z207^2)+(Z208^2)+(Z209^2))","v":19.05255888325765},{"$f":"AA207+AA208+AA209","v":18},{"$f":"SQRT((AB207^2)+(AB208^2)+(AB209^2))","v":31.160872901765767},{"$f":"AC207+AC208+AC209","v":0},{"$f":"SQRT((AD207^2)+(AD208^2)+(AD209^2))","v":19.05255888325765},{"$f":"AE207+AE208+AE209","v":17},{"$f":"SQRT((AF207^2)+(AF208^2)+(AF209^2))","v":19.519221295943137},{"$f":"AG207+AG208+AG209","v":0},{"$f":"SQRT((AH207^2)+(AH208^2)+(AH209^2))","v":19.05255888325765},{"$f":"AI207+AI208+AI209","v":0},{"$f":"SQRT((AJ207^2)+(AJ208^2)+(AJ209^2))","v":19.05255888325765},{"$f":"AK207+AK208+AK209","v":0},{"$f":"SQRT((AL207^2)+(AL208^2)+(AL209^2))","v":27.712812921102035},{"$f":"AM207+AM208+AM209","v":105},{"$f":"SQRT((AN207^2)+(AN208^2)+(AN209^2))","v":101.92153844992725}]
[null,"50.0 percent or more",{"$f":"C209","v":0},11,0,11,0,11,0,11,0,18,0,11,0,11,0,11,0,11,0,11,0,11,0,11,0,11,0,11,9,14,0,11,0,11,0,16,0,16]
[null,"Not Computed",{"$f":"C210","v":0},11,26,40,0,11,0,11,1,3,0,11,0,11,0,11,0,11,0,11,0,11,18,28,7,11,17,19,10,16,0,11,5,7,0,16,0,16]
[null,"$50,000 to $74,999:",{"$f":"C211","v":0},11,96,72,0,11,10,14,294,146,21,13,20,19,10,11,0,11,0,11,8,13,37,33,67,47,9,14,21,19,99,87,24,24,20,31,0,16]
[null,"Less than 30.0 percent",{"$f":"C212+C213+C214","v":0},{"$f":"SQRT((D212^2)+(D213^2)+(D214^2))","v":19.05255888325765},{"$f":"E212+E213+E214","v":96},{"$f":"SQRT((F212^2)+(F213^2)+(F214^2))","v":75.855125074051529},{"$f":"G212+G213+G214","v":0},{"$f":"SQRT((H212^2)+(H213^2)+(H214^2))","v":19.05255888325765},{"$f":"I212+I213+I214","v":10},{"$f":"SQRT((J212^2)+(J213^2)+(J214^2))","v":20.928449536456348},{"$f":"K212+K213+K214","v":266},{"$f":"SQRT((L212^2)+(L213^2)+(L214^2))","v":144.63056385149025},{"$f":"M212+M213+M214","v":13},{"$f":"SQRT((N212^2)+(N213^2)+(N214^2))","v":14.7648230602334},{"$f":"O212+O213+O214","v":16},{"$f":"SQRT((P212^2)+(P213^2)+(P214^2))","v":21.118712081942874},{"$f":"Q212+Q213+Q214","v":7},{"$f":"SQRT((R212^2)+(R213^2)+(R214^2))","v":18.493242008906929},{"$f":"S212+S213+S214","v":0},{"$f":"SQRT((T212^2)+(T213^2)+(T214^2))","v":19.05255888325765},{"$f":"U212+U213+U214","v":0},{"$f":"SQRT((V212^2)+(V213^2)+(V214^2))","v":19.05255888325765},{"$f":"W212+W213+W214","v":8},{"$f":"SQRT((X212^2)+(X213^2)+(X214^2))","v":20.273134932713294},{"$f":"Y212+Y213+Y214","v":24},{"$f":"SQRT((Z212^2)+(Z213^2)+(Z214^2))","v":31.527765540868891},{"$f":"AA212+AA213+AA214","v":53},{"$f":"SQRT((AB212^2)+(AB213^2)+(AB214^2))","v":45.453272709454048},{"$f":"AC212+AC213+AC214","v":0},{"$f":"SQRT((AD212^2)+(AD213^2)+(AD214^2))","v":19.05255888325765},{"$f":"AE212+AE213+AE214","v":4},{"$f":"SQRT((AF212^2)+(AF213^2)+(AF214^2))","v":16.673332000533065},{"$f":"AG212+AG213+AG214","v":60},{"$f":"SQRT((AH212^2)+(AH213^2)+(AH214^2))","v":74.639131827748372},{"$f":"AI212+AI213+AI214","v":5},{"$f":"SQRT((AJ212^2)+(AJ213^2)+(AJ214^2))","v":17.4928556845359},{"$f":"AK212+AK213+AK214","v":20},{"$f":"SQRT((AL212^2)+(AL213^2)+(AL214^2))","v":38.379682124790975},{"$f":"AM212+AM213+AM214","v":0},{"$f":"SQRT((AN212^2)+(AN213^2)+(AN214^2))","v":27.712812921102035}]
[null,"More than 30.0 percent",{"$f":"C215+C216+C217+C218","v":0},{"$f":"SQRT((D215^2)+(D216^2)+(D217^2)+(D218^2))","v":22},{"$f":"E215+E216+E217+E218","v":0},{"$f":"SQRT((F215^2)+(F216^2)+(F217^2)+(F218^2))","v":22},{"$f":"G215+G216+G217+G218","v":0},{"$f":"SQRT((H215^2)+(H216^2)+(H217^2)+(H218^2))","v":22},{"$f":"I215+I216+I217+I218","v":0},{"$f":"SQRT((J215^2)+(J216^2)+(J217^2)+(J218^2))","v":22},{"$f":"K215+K216+K217+K218","v":0},{"$f":"SQRT((L215^2)+(L216^2)+(L217^2)+(L218^2))","v":36},{"$f":"M215+M216+M217+M218","v":0},{"$f":"SQRT((N215^2)+(N216^2)+(N217^2)+(N218^2))","v":22},{"$f":"O215+O216+O217+O218","v":4},{"$f":"SQRT((P215^2)+(P216^2)+(P217^2)+(P218^2))","v":19.974984355438178},{"$f":"Q215+Q216+Q217+Q218","v":3},{"$f":"SQRT((R215^2)+(R216^2)+(R217^2)+(R218^2))","v":19.697715603592208},{"$f":"S215+S216+S217+S218","v":0},{"$f":"SQRT((T215^2)+(T216^2)+(T217^2)+(T218^2))","v":22},{"$f":"U215+U216+U217+U218","v":0},{"$f":"SQRT((V215^2)+(V216^2)+(V217^2)+(V218^2))","v":22},{"$f":"W215+W216+W217+W218","v":0},{"$f":"SQRT((X215^2)+(X216^2)+(X217^2)+(X218^2))","v":22},{"$f":"Y215+Y216+Y217+Y218","v":8},{"$f":"SQRT((Z215^2)+(Z216^2)+(Z217^2)+(Z218^2))","v":22},{"$f":"AA215+AA216+AA217+AA218","v":7},{"$f":"SQRT((AB215^2)+(AB216^2)+(AB217^2)+(AB218^2))","v":22},{"$f":"AC215+AC216+AC217+AC218","v":0},{"$f":"SQRT((AD215^2)+(AD216^2)+(AD217^2)+(AD218^2))","v":22},{"$f":"AE215+AE216+AE217+AE218","v":6},{"$f":"SQRT((AF215^2)+(AF216^2)+(AF217^2)+(AF218^2))","v":19.974984355438178},{"$f":"AG215+AG216+AG217+AG218","v":39},{"$f":"SQRT((AH215^2)+(AH216^2)+(AH217^2)+(AH218^2))","v":62},{"$f":"AI215+AI216+AI217+AI218","v":5},{"$f":"SQRT((AJ215^2)+(AJ216^2)+(AJ217^2)+(AJ218^2))","v":20.297783130184438},{"$f":"AK215+AK216+AK217+AK218","v":0},{"$f":"SQRT((AL215^2)+(AL216^2)+(AL217^2)+(AL218^2))","v":32},{"$f":"AM215+AM216+AM217+AM218","v":0},{"$f":"SQRT((AN215^2)+(AN216^2)+(AN217^2)+(AN218^2))","v":32}]
[null,"Less Than 35% of HH Income",{"$f":"C215+C214+C213+C212","v":0},{"$f":"SQRT((D215^2)+(D214^2)+(D213^2)+(D212^2))","v":22},{"$f":"E215+E214+E213+E212","v":96},{"$f":"SQRT((F215^2)+(F214^2)+(F213^2)+(F212^2))","v":76.648548583779458},{"$f":"G215+G214+G213+G212","v":0},{"$f":"SQRT((H215^2)+(H214^2)+(H213^2)+(H212^2))","v":22},{"$f":"I215+I214+I213+I212","v":10},{"$f":"SQRT((J215^2)+(J214^2)+(J213^2)+(J212^2))","v":23.643180835073778},{"$f":"K215+K214+K213+K212","v":266},{"$f":"SQRT((L215^2)+(L214^2)+(L213^2)+(L212^2))","v":145.74635501445653},{"$f":"M215+M214+M213+M212","v":13},{"$f":"SQRT((N215^2)+(N214^2)+(N213^2)+(N212^2))","v":18.411952639521967},{"$f":"O215+O214+O213+O212","v":16},{"$f":"SQRT((P215^2)+(P214^2)+(P213^2)+(P212^2))","v":23.811761799581316},{"$f":"Q215+Q214+Q213+Q212","v":7},{"$f":"SQRT((R215^2)+(R214^2)+(R213^2)+(R212^2))","v":21.517434791350013},{"$f":"S215+S214+S213+S212","v":0},{"$f":"SQRT((T215^2)+(T214^2)+(T213^2)+(T212^2))","v":22},{"$f":"U215+U214+U213+U212","v":0},{"$f":"SQRT((V215^2)+(V214^2)+(V213^2)+(V212^2))","v":22},{"$f":"W215+W214+W213+W212","v":8},{"$f":"SQRT((X215^2)+(X214^2)+(X213^2)+(X212^2))","v":23.065125189341593},{"$f":"Y215+Y214+Y213+Y212","v":24},{"$f":"SQRT((Z215^2)+(Z214^2)+(Z213^2)+(Z212^2))","v":33.391615714128001},{"$f":"AA215+AA214+AA213+AA212","v":60},{"$f":"SQRT((AB215^2)+(AB214^2)+(AB213^2)+(AB212^2))","v":46.765371804359688},{"$f":"AC215+AC214+AC213+AC212","v":0},{"$f":"SQRT((AD215^2)+(AD214^2)+(AD213^2)+(AD212^2))","v":22},{"$f":"AE215+AE214+AE213+AE212","v":10},{"$f":"SQRT((AF215^2)+(AF214^2)+(AF213^2)+(AF212^2))","v":17.720045146669349},{"$f":"AG215+AG214+AG213+AG212","v":99},{"$f":"SQRT((AH215^2)+(AH214^2)+(AH213^2)+(AH212^2))","v":95.141999138130373},{"$f":"AI215+AI214+AI213+AI212","v":5},{"$f":"SQRT((AJ215^2)+(AJ214^2)+(AJ213^2)+(AJ212^2))","v":20.663978319771825},{"$f":"AK215+AK214+AK213+AK212","v":20},{"$f":"SQRT((AL215^2)+(AL214^2)+(AL213^2)+(AL212^2))","v":41.581245772583578},{"$f":"AM215+AM214+AM213+AM212","v":0},{"$f":"SQRT((AN215^2)+(AN214^2)+(AN213^2)+(AN212^2))","v":32}]
[null,"35.0 percent or more",{"$f":"C216+C217+C218","v":0},{"$f":"SQRT((D216^2)+(D217^2)+(D218^2))","v":19.05255888325765},{"$f":"E216+E217+E218","v":0},{"$f":"SQRT((F216^2)+(F217^2)+(F218^2))","v":19.05255888325765},{"$f":"G216+G217+G218","v":0},{"$f":"SQRT((H216^2)+(H217^2)+(H218^2))","v":19.05255888325765},{"$f":"I216+I217+I218","v":0},{"$f":"SQRT((J216^2)+(J217^2)+(J218^2))","v":19.05255888325765},{"$f":"K216+K217+K218","v":0},{"$f":"SQRT((L216^2)+(L217^2)+(L218^2))","v":31.176914536239792},{"$f":"M216+M217+M218","v":0},{"$f":"SQRT((N216^2)+(N217^2)+(N218^2))","v":19.05255888325765},{"$f":"O216+O217+O218","v":4},{"$f":"SQRT((P216^2)+(P217^2)+(P218^2))","v":16.673332000533065},{"$f":"Q216+Q217+Q218","v":3},{"$f":"SQRT((R216^2)+(R217^2)+(R218^2))","v":16.340134638368191},{"$f":"S216+S217+S218","v":0},{"$f":"SQRT((T216^2)+(T217^2)+(T218^2))","v":19.05255888325765},{"$f":"U216+U217+U218","v":0},{"$f":"SQRT((V216^2)+(V217^2)+(V218^2))","v":19.05255888325765},{"$f":"W216+W217+W218","v":0},{"$f":"SQRT((X216^2)+(X217^2)+(X218^2))","v":19.05255888325765},{"$f":"Y216+Y217+Y218","v":8},{"$f":"SQRT((Z216^2)+(Z217^2)+(Z218^2))","v":19.05255888325765},{"$f":"AA216+AA217+AA218","v":0},{"$f":"SQRT((AB216^2)+(AB217^2)+(AB218^2))","v":19.05255888325765},{"$f":"AC216+AC217+AC218","v":0},{"$f":"SQRT((AD216^2)+(AD217^2)+(AD218^2))","v":19.05255888325765},{"$f":"AE216+AE217+AE218","v":0},{"$f":"SQRT((AF216^2)+(AF217^2)+(AF218^2))","v":19.05255888325765},{"$f":"AG216+AG217+AG218","v":0},{"$f":"SQRT((AH216^2)+(AH217^2)+(AH218^2))","v":19.05255888325765},{"$f":"AI216+AI217+AI218","v":5},{"$f":"SQRT((AJ216^2)+(AJ217^2)+(AJ218^2))","v":17.058722109231979},{"$f":"AK216+AK217+AK218","v":0},{"$f":"SQRT((AL216^2)+(AL217^2)+(AL218^2))","v":27.712812921102035},{"$f":"AM216+AM217+AM218","v":0},{"$f":"SQRT((AN216^2)+(AN217^2)+(AN218^2))","v":27.712812921102035}]
[null,"50.0 percent or more",{"$f":"C218","v":0},11,0,11,0,11,0,11,0,18,0,11,0,11,0,11,0,11,0,11,0,11,0,11,0,11,0,11,0,11,0,11,5,7,0,16,0,16]
[null,"Not Computed",{"$f":"C219","v":0},11,0,11,0,11,0,11,28,46,8,9,0,11,0,11,0,11,0,11,0,11,5,8,7,12,9,14,11,17,0,11,14,19,0,16,0,16]
[null,"$75,000 to $99,999:",{"$f":"C220","v":3},4,28,43,11,19,0,11,9,14,0,11,0,11,24,18,0,11,5,8,23,28,23,21,20,24,39,62,10,12,16,25,7,11,0,16,15,25]
[null,"Less than 30.0 percent",{"$f":"C221+C222+C223","v":3},{"$f":"SQRT((D221^2)+(D222^2)+(D223^2))","v":16.06237840420901},{"$f":"E221+E222+E223","v":28},{"$f":"SQRT((F221^2)+(F222^2)+(F223^2))","v":45.727453460694704},{"$f":"G221+G222+G223","v":11},{"$f":"SQRT((H221^2)+(H222^2)+(H223^2))","v":24.556058315617349},{"$f":"I221+I222+I223","v":0},{"$f":"SQRT((J221^2)+(J222^2)+(J223^2))","v":19.05255888325765},{"$f":"K221+K222+K223","v":9},{"$f":"SQRT((L221^2)+(L222^2)+(L223^2))","v":29.051678092667899},{"$f":"M221+M222+M223","v":0},{"$f":"SQRT((N221^2)+(N222^2)+(N223^2))","v":19.05255888325765},{"$f":"O221+O222+O223","v":0},{"$f":"SQRT((P221^2)+(P222^2)+(P223^2))","v":19.05255888325765},{"$f":"Q221+Q222+Q223","v":24},{"$f":"SQRT((R221^2)+(R222^2)+(R223^2))","v":28.390139133156779},{"$f":"S221+S222+S223","v":0},{"$f":"SQRT((T221^2)+(T222^2)+(T223^2))","v":19.05255888325765},{"$f":"U221+U222+U223","v":5},{"$f":"SQRT((V221^2)+(V222^2)+(V223^2))","v":17.4928556845359},{"$f":"W221+W222+W223","v":23},{"$f":"SQRT((X221^2)+(X222^2)+(X223^2))","v":29.698484809834994},{"$f":"Y221+Y222+Y223","v":17},{"$f":"SQRT((Z221^2)+(Z222^2)+(Z223^2))","v":24.556058315617349},{"$f":"AA221+AA222+AA223","v":13},{"$f":"SQRT((AB221^2)+(AB222^2)+(AB223^2))","v":25.337718918639855},{"$f":"AC221+AC222+AC223","v":39},{"$f":"SQRT((AD221^2)+(AD222^2)+(AD223^2))","v":63.921827257987552},{"$f":"AE221+AE222+AE223","v":10},{"$f":"SQRT((AF221^2)+(AF222^2)+(AF223^2))","v":16.340134638368191},{"$f":"AG221+AG222+AG223","v":16},{"$f":"SQRT((AH221^2)+(AH222^2)+(AH223^2))","v":29.444863728670914},{"$f":"AI221+AI222+AI223","v":7},{"$f":"SQRT((AJ221^2)+(AJ222^2)+(AJ223^2))","v":19.05255888325765},{"$f":"AK221+AK222+AK223","v":0},{"$f":"SQRT((AL221^2)+(AL222^2)+(AL223^2))","v":27.712812921102035},{"$f":"AM221+AM222+AM223","v":15},{"$f":"SQRT((AN221^2)+(AN222^2)+(AN223^2))","v":33.719430600174732}]
[null,"More than 30.0 percent",{"$f":"C224+C225+C226+C227","v":0},{"$f":"SQRT((D224^2)+(D225^2)+(D226^2)+(D227^2))","v":22},{"$f":"E224+E225+E226+E227","v":0},{"$f":"SQRT((F224^2)+(F225^2)+(F226^2)+(F227^2))","v":22},{"$f":"G224+G225+G226+G227","v":0},{"$f":"SQRT((H224^2)+(H225^2)+(H226^2)+(H227^2))","v":22},{"$f":"I224+I225+I226+I227","v":0},{"$f":"SQRT((J224^2)+(J225^2)+(J226^2)+(J227^2))","v":22},{"$f":"K224+K225+K226+K227","v":0},{"$f":"SQRT((L224^2)+(L225^2)+(L226^2)+(L227^2))","v":36},{"$f":"M224+M225+M226+M227","v":0},{"$f":"SQRT((N224^2)+(N225^2)+(N226^2)+(N227^2))","v":22},{"$f":"O224+O225+O226+O227","v":0},{"$f":"SQRT((P224^2)+(P225^2)+(P226^2)+(P227^2))","v":22},{"$f":"Q224+Q225+Q226+Q227","v":0},{"$f":"SQRT((R224^2)+(R225^2)+(R226^2)+(R227^2))","v":22},{"$f":"S224+S225+S226+S227","v":0},{"$f":"SQRT((T224^2)+(T225^2)+(T226^2)+(T227^2))","v":22},{"$f":"U224+U225+U226+U227","v":0},{"$f":"SQRT((V224^2)+(V225^2)+(V226^2)+(V227^2))","v":22},{"$f":"W224+W225+W226+W227","v":0},{"$f":"SQRT((X224^2)+(X225^2)+(X226^2)+(X227^2))","v":22},{"$f":"Y224+Y225+Y226+Y227","v":0},{"$f":"SQRT((Z224^2)+(Z225^2)+(Z226^2)+(Z227^2))","v":22},{"$f":"AA224+AA225+AA226+AA227","v":0},{"$f":"SQRT((AB224^2)+(AB225^2)+(AB226^2)+(AB227^2))","v":22},{"$f":"AC224+AC225+AC226+AC227","v":0},{"$f":"SQRT((AD224^2)+(AD225^2)+(AD226^2)+(AD227^2))","v":22},{"$f":"AE224+AE225+AE226+AE227","v":0},{"$f":"SQRT((AF224^2)+(AF225^2)+(AF226^2)+(AF227^2))","v":22},{"$f":"AG224+AG225+AG226+AG227","v":0},{"$f":"SQRT((AH224^2)+(AH225^2)+(AH226^2)+(AH227^2))","v":22},{"$f":"AI224+AI225+AI226+AI227","v":0},{"$f":"SQRT((AJ224^2)+(AJ225^2)+(AJ226^2)+(AJ227^2))","v":22},{"$f":"AK224+AK225+AK226+AK227","v":0},{"$f":"SQRT((AL224^2)+(AL225^2)+(AL226^2)+(AL227^2))","v":32},{"$f":"AM224+AM225+AM226+AM227","v":0},{"$f":"SQRT((AN224^2)+(AN225^2)+(AN226^2)+(AN227^2))","v":32}]
[null,"Less Than 35% of HH Income",{"$f":"C221+C222+C223+C224","v":3},{"$f":"SQRT((D221^2)+(D222^2)+(D223^2)+(D224^2))","v":19.467922333931785},{"$f":"E221+E222+E223+E224","v":28},{"$f":"SQRT((F221^2)+(F222^2)+(F223^2)+(F224^2))","v":47.031904065219386},{"$f":"G221+G222+G223+G224","v":11},{"$f":"SQRT((H221^2)+(H222^2)+(H223^2)+(H224^2))","v":26.90724809414742},{"$f":"I221+I222+I223+I224","v":0},{"$f":"SQRT((J221^2)+(J222^2)+(J223^2)+(J224^2))","v":22},{"$f":"K221+K222+K223+K224","v":9},{"$f":"SQRT((L221^2)+(L222^2)+(L223^2)+(L224^2))","v":34.176014981270121},{"$f":"M221+M222+M223+M224","v":0},{"$f":"SQRT((N221^2)+(N222^2)+(N223^2)+(N224^2))","v":22},{"$f":"O221+O222+O223+O224","v":0},{"$f":"SQRT((P221^2)+(P222^2)+(P223^2)+(P224^2))","v":22},{"$f":"Q221+Q222+Q223+Q224","v":24},{"$f":"SQRT((R221^2)+(R222^2)+(R223^2)+(R224^2))","v":30.446674695276659},{"$f":"S221+S222+S223+S224","v":0},{"$f":"SQRT((T221^2)+(T222^2)+(T223^2)+(T224^2))","v":22},{"$f":"U221+U222+U223+U224","v":5},{"$f":"SQRT((V221^2)+(V222^2)+(V223^2)+(V224^2))","v":20.663978319771825},{"$f":"W221+W222+W223+W224","v":23},{"$f":"SQRT((X221^2)+(X222^2)+(X223^2)+(X224^2))","v":31.670175244226233},{"$f":"Y221+Y222+Y223+Y224","v":17},{"$f":"SQRT((Z221^2)+(Z222^2)+(Z223^2)+(Z224^2))","v":26.90724809414742},{"$f":"AA221+AA222+AA223+AA224","v":13},{"$f":"SQRT((AB221^2)+(AB222^2)+(AB223^2)+(AB224^2))","v":27.622454633866266},{"$f":"AC221+AC222+AC223+AC224","v":39},{"$f":"SQRT((AD221^2)+(AD222^2)+(AD223^2)+(AD224^2))","v":64.861390672726102},{"$f":"AE221+AE222+AE223+AE224","v":10},{"$f":"SQRT((AF221^2)+(AF222^2)+(AF223^2)+(AF224^2))","v":19.697715603592208},{"$f":"AG221+AG222+AG223+AG224","v":16},{"$f":"SQRT((AH221^2)+(AH222^2)+(AH223^2)+(AH224^2))","v":31.432467291003423},{"$f":"AI221+AI222+AI223+AI224","v":7},{"$f":"SQRT((AJ221^2)+(AJ222^2)+(AJ223^2)+(AJ224^2))","v":22},{"$f":"AK221+AK222+AK223+AK224","v":0},{"$f":"SQRT((AL221^2)+(AL222^2)+(AL223^2)+(AL224^2))","v":32},{"$f":"AM221+AM222+AM223+AM224","v":15},{"$f":"SQRT((AN221^2)+(AN222^2)+(AN223^2)+(AN224^2))","v":37.322915213043046}]
[null,"35.0 percent or more",{"$f":"C225+C226+C227","v":0},{"$f":"SQRT((D225^2)+(D226^2)+(D227^2))","v":19.05255888325765},{"$f":"E225+E226+E227","v":0},{"$f":"SQRT((F225^2)+(F226^2)+(F227^2))","v":19.05255888325765},{"$f":"G225+G226+G227","v":0},{"$f":"SQRT((H225^2)+(H226^2)+(H227^2))","v":19.05255888325765},{"$f":"I225+I226+I227","v":0},{"$f":"SQRT((J225^2)+(J226^2)+(J227^2))","v":19.05255888325765},{"$f":"K225+K226+K227","v":0},{"$f":"SQRT((L225^2)+(L226^2)+(L227^2))","v":31.176914536239792},{"$f":"M225+M226+M227","v":0},{"$f":"SQRT((N225^2)+(N226^2)+(N227^2))","v":19.05255888325765},{"$f":"O225+O226+O227","v":0},{"$f":"SQRT((P225^2)+(P226^2)+(P227^2))","v":19.05255888325765},{"$f":"Q225+Q226+Q227","v":0},{"$f":"SQRT((R225^2)+(R226^2)+(R227^2))","v":19.05255888325765},{"$f":"S225+S226+S227","v":0},{"$f":"SQRT((T225^2)+(T226^2)+(T227^2))","v":19.05255888325765},{"$f":"U225+U226+U227","v":0},{"$f":"SQRT((V225^2)+(V226^2)+(V227^2))","v":19.05255888325765},{"$f":"W225+W226+W227","v":0},{"$f":"SQRT((X225^2)+(X226^2)+(X227^2))","v":19.05255888325765},{"$f":"Y225+Y226+Y227","v":0},{"$f":"SQRT((Z225^2)+(Z226^2)+(Z227^2))","v":19.05255888325765},{"$f":"AA225+AA226+AA227","v":0},{"$f":"SQRT((AB225^2)+(AB226^2)+(AB227^2))","v":19.05255888325765},{"$f":"AC225+AC226+AC227","v":0},{"$f":"SQRT((AD225^2)+(AD226^2)+(AD227^2))","v":19.05255888325765},{"$f":"AE225+AE226+AE227","v":0},{"$f":"SQRT((AF225^2)+(AF226^2)+(AF227^2))","v":19.05255888325765},{"$f":"AG225+AG226+AG227","v":0},{"$f":"SQRT((AH225^2)+(AH226^2)+(AH227^2))","v":19.05255888325765},{"$f":"AI225+AI226+AI227","v":0},{"$f":"SQRT((AJ225^2)+(AJ226^2)+(AJ227^2))","v":19.05255888325765},{"$f":"AK225+AK226+AK227","v":0},{"$f":"SQRT((AL225^2)+(AL226^2)+(AL227^2))","v":27.712812921102035},{"$f":"AM225+AM226+AM227","v":0},{"$f":"SQRT((AN225^2)+(AN226^2)+(AN227^2))","v":27.712812921102035}]
[null,"50.0 percent or more",{"$f":"C227","v":0},11,0,11,0,11,0,11,0,18,0,11,0,11,0,11,0,11,0,11,0,11,0,11,0,11,0,11,0,11,0,11,0,11,0,16,0,16]
[null,"Not Computed",{"$f":"C228","v":0},11,0,11,0,11,0,11,0,18,0,11,0,11,0,11,0,11,0,11,0,11,6,9,7,12,0,11,0,11,0,11,0,11,0,16,0,16]
[null,"$100,000 or more:",{"$f":"C229","v":9},7,22,37,17,29,0,11,98,92,6,10,13,18,10,8,0,11,3,4,8,12,27,22,43,53,42,54,3,5,26,29,0,11,15,23,60,77]
[null,"Less than 30.0 percent",{"$f":"C230+C231+C232","v":9},{"$f":"SQRT((D230^2)+(D231^2)+(D232^2))","v":17.058722109231979},{"$f":"E230+E231+E232","v":22},{"$f":"SQRT((F230^2)+(F231^2)+(F232^2))","v":40.137264480778953},{"$f":"G230+G231+G232","v":17},{"$f":"SQRT((H230^2)+(H231^2)+(H232^2))","v":32.908965343808667},{"$f":"I230+I231+I232","v":0},{"$f":"SQRT((J230^2)+(J231^2)+(J232^2))","v":19.05255888325765},{"$f":"K230+K231+K232","v":98},{"$f":"SQRT((L230^2)+(L231^2)+(L232^2))","v":95.456796510253795},{"$f":"M230+M231+M232","v":0},{"$f":"SQRT((N230^2)+(N231^2)+(N232^2))","v":19.05255888325765},{"$f":"O230+O231+O232","v":13},{"$f":"SQRT((P230^2)+(P231^2)+(P232^2))","v":23.790754506740637},{"$f":"Q230+Q231+Q232","v":10},{"$f":"SQRT((R230^2)+(R231^2)+(R232^2))","v":17.4928556845359},{"$f":"S230+S231+S232","v":0},{"$f":"SQRT((T230^2)+(T231^2)+(T232^2))","v":19.05255888325765},{"$f":"U230+U231+U232","v":3},{"$f":"SQRT((V230^2)+(V231^2)+(V232^2))","v":16.06237840420901},{"$f":"W230+W231+W232","v":8},{"$f":"SQRT((X230^2)+(X231^2)+(X232^2))","v":19.646882704388499},{"$f":"Y230+Y231+Y232","v":27},{"$f":"SQRT((Z230^2)+(Z231^2)+(Z232^2))","v":26.267851073127396},{"$f":"AA230+AA231+AA232","v":43},{"$f":"SQRT((AB230^2)+(AB231^2)+(AB232^2))","v":55.235857918565905},{"$f":"AC230+AC231+AC232","v":32},{"$f":"SQRT((AD230^2)+(AD231^2)+(AD232^2))","v":53.319789947073126},{"$f":"AE230+AE231+AE232","v":0},{"$f":"SQRT((AF230^2)+(AF231^2)+(AF232^2))","v":19.05255888325765},{"$f":"AG230+AG231+AG232","v":26},{"$f":"SQRT((AH230^2)+(AH231^2)+(AH232^2))","v":32.908965343808667},{"$f":"AI230+AI231+AI232","v":0},{"$f":"SQRT((AJ230^2)+(AJ231^2)+(AJ232^2))","v":19.05255888325765},{"$f":"AK230+AK231+AK232","v":0},{"$f":"SQRT((AL230^2)+(AL231^2)+(AL232^2))","v":27.712812921102035},{"$f":"AM230+AM231+AM232","v":43},{"$f":"SQRT((AN230^2)+(AN231^2)+(AN232^2))","v":74.518454090245328}]
[null,"More than 30.0 percent",{"$f":"C233+C234+C235+C236","v":0},{"$f":"SQRT((D233^2)+(D234^2)+(D235^2)+(D236^2))","v":22},{"$f":"E233+E234+E235+E236","v":0},{"$f":"SQRT((F233^2)+(F234^2)+(F235^2)+(F236^2))","v":22},{"$f":"G233+G234+G235+G236","v":0},{"$f":"SQRT((H233^2)+(H234^2)+(H235^2)+(H236^2))","v":22},{"$f":"I233+I234+I235+I236","v":0},{"$f":"SQRT((J233^2)+(J234^2)+(J235^2)+(J236^2))","v":22},{"$f":"K233+K234+K235+K236","v":0},{"$f":"SQRT((L233^2)+(L234^2)+(L235^2)+(L236^2))","v":36},{"$f":"M233+M234+M235+M236","v":0},{"$f":"SQRT((N233^2)+(N234^2)+(N235^2)+(N236^2))","v":22},{"$f":"O233+O234+O235+O236","v":0},{"$f":"SQRT((P233^2)+(P234^2)+(P235^2)+(P236^2))","v":22},{"$f":"Q233+Q234+Q235+Q236","v":0},{"$f":"SQRT((R233^2)+(R234^2)+(R235^2)+(R236^2))","v":22},{"$f":"S233+S234+S235+S236","v":0},{"$f":"SQRT((T233^2)+(T234^2)+(T235^2)+(T236^2))","v":22},{"$f":"U233+U234+U235+U236","v":0},{"$f":"SQRT((V233^2)+(V234^2)+(V235^2)+(V236^2))","v":22},{"$f":"W233+W234+W235+W236","v":0},{"$f":"SQRT((X233^2)+(X234^2)+(X235^2)+(X236^2))","v":22},{"$f":"Y233+Y234+Y235+Y236","v":0},{"$f":"SQRT((Z233^2)+(Z234^2)+(Z235^2)+(Z236^2))","v":22},{"$f":"AA233+AA234+AA235+AA236","v":0},{"$f":"SQRT((AB233^2)+(AB234^2)+(AB235^2)+(AB236^2))","v":22},{"$f":"AC233+AC234+AC235+AC236","v":0},{"$f":"SQRT((AD233^2)+(AD234^2)+(AD235^2)+(AD236^2))","v":22},{"$f":"AE233+AE234+AE235+AE236","v":0},{"$f":"SQRT((AF233^2)+(AF234^2)+(AF235^2)+(AF236^2))","v":22},{"$f":"AG233+AG234+AG235+AG236","v":0},{"$f":"SQRT((AH233^2)+(AH234^2)+(AH235^2)+(AH236^2))","v":22},{"$f":"AI233+AI234+AI235+AI236","v":0},{"$f":"SQRT((AJ233^2)+(AJ234^2)+(AJ235^2)+(AJ236^2))","v":22},{"$f":"AK233+AK234+AK235+AK236","v":0},{"$f":"SQRT((AL233^2)+(AL234^2)+(AL235^2)+(AL236^2))","v":32},{"$f":"AM233+AM234+AM235+AM236","v":0},{"$f":"SQRT((AN233^2)+(AN234^2)+(AN235^2)+(AN236^2))","v":32}]
[null,"Less Than 35% of HH Income",{"$f":"C230+C231+C232+C233","v":9},{"$f":"SQRT(((D230^2)+(D231^2)+(D232^2)+(D233^2)))","v":20.297783130184438},{"$f":"E230+E231+E232+E233","v":22},{"$f":"SQRT(((F230^2)+(F231^2)+(F232^2)+(F233^2)))","v":41.617304093369626},{"$f":"G230+G231+G232+G233","v":17},{"$f":"SQRT(((H230^2)+(H231^2)+(H232^2)+(H233^2)))","v":34.698703145794944},{"$f":"I230+I231+I232+I233","v":0},{"$f":"SQRT(((J230^2)+(J231^2)+(J232^2)+(J233^2)))","v":22},{"$f":"K230+K231+K232+K233","v":98},{"$f":"SQRT(((L230^2)+(L231^2)+(L232^2)+(L233^2)))","v":97.139075556647128},{"$f":"M230+M231+M232+M233","v":0},{"$f":"SQRT(((N230^2)+(N231^2)+(N232^2)+(N233^2)))","v":22},{"$f":"O230+O231+O232+O233","v":13},{"$f":"SQRT(((P230^2)+(P231^2)+(P232^2)+(P233^2)))","v":26.210684844162312},{"$f":"Q230+Q231+Q232+Q233","v":10},{"$f":"SQRT(((R230^2)+(R231^2)+(R232^2)+(R233^2)))","v":20.663978319771825},{"$f":"S230+S231+S232+S233","v":0},{"$f":"SQRT(((T230^2)+(T231^2)+(T232^2)+(T233^2)))","v":22},{"$f":"U230+U231+U232+U233","v":3},{"$f":"SQRT(((V230^2)+(V231^2)+(V232^2)+(V233^2)))","v":19.467922333931785},{"$f":"W230+W231+W232+W233","v":8},{"$f":"SQRT(((X230^2)+(X231^2)+(X232^2)+(X233^2)))","v":22.516660498395403},{"$f":"Y230+Y231+Y232+Y233","v":27},{"$f":"SQRT(((Z230^2)+(Z231^2)+(Z232^2)+(Z233^2)))","v":28.478061731796284},{"$f":"AA230+AA231+AA232+AA233","v":43},{"$f":"SQRT(((AB230^2)+(AB231^2)+(AB232^2)+(AB233^2)))","v":56.320511361314892},{"$f":"AC230+AC231+AC232+AC233","v":32},{"$f":"SQRT(((AD230^2)+(AD231^2)+(AD232^2)+(AD233^2)))","v":54.442630355264797},{"$f":"AE230+AE231+AE232+AE233","v":0},{"$f":"SQRT(((AF230^2)+(AF231^2)+(AF232^2)+(AF233^2)))","v":22},{"$f":"AG230+AG231+AG232+AG233","v":26},{"$f":"SQRT(((AH230^2)+(AH231^2)+(AH232^2)+(AH233^2)))","v":34.698703145794944},{"$f":"AI230+AI231+AI232+AI233","v":0},{"$f":"SQRT(((AJ230^2)+(AJ231^2)+(AJ232^2)+(AJ233^2)))","v":22},{"$f":"AK230+AK231+AK232+AK233","v":0},{"$f":"SQRT(((AL230^2)+(AL231^2)+(AL232^2)+(AL233^2)))","v":32},{"$f":"AM230+AM231+AM232+AM233","v":43},{"$f":"SQRT(((AN230^2)+(AN231^2)+(AN232^2)+(AN233^2)))","v":76.216796049164913}]
[null,"35.0 percent or more",{"$f":"C234+C235+C236","v":0},{"$f":"SQRT((D234^2)+(D235^2)+(D236^2))","v":19.05255888325765},{"$f":"E234+E235+E236","v":0},{"$f":"SQRT((F234^2)+(F235^2)+(F236^2))","v":19.05255888325765},{"$f":"G234+G235+G236","v":0},{"$f":"SQRT((H234^2)+(H235^2)+(H236^2))","v":19.05255888325765},{"$f":"I234+I235+I236","v":0},{"$f":"SQRT((J234^2)+(J235^2)+(J236^2))","v":19.05255888325765},{"$f":"K234+K235+K236","v":0},{"$f":"SQRT((L234^2)+(L235^2)+(L236^2))","v":31.176914536239792},{"$f":"M234+M235+M236","v":0},{"$f":"SQRT((N234^2)+(N235^2)+(N236^2))","v":19.05255888325765},{"$f":"O234+O235+O236","v":0},{"$f":"SQRT((P234^2)+(P235^2)+(P236^2))","v":19.05255888325765},{"$f":"Q234+Q235+Q236","v":0},{"$f":"SQRT((R234^2)+(R235^2)+(R236^2))","v":19.05255888325765},{"$f":"S234+S235+S236","v":0},{"$f":"SQRT((T234^2)+(T235^2)+(T236^2))","v":19.05255888325765},{"$f":"U234+U235+U236","v":0},{"$f":"SQRT((V234^2)+(V235^2)+(V236^2))","v":19.05255888325765},{"$f":"W234+W235+W236","v":0},{"$f":"SQRT((X234^2)+(X235^2)+(X236^2))","v":19.05255888325765},{"$f":"Y234+Y235+Y236","v":0},{"$f":"SQRT((Z234^2)+(Z235^2)+(Z236^2))","v":19.05255888325765},{"$f":"AA234+AA235+AA236","v":0},{"$f":"SQRT((AB234^2)+(AB235^2)+(AB236^2))","v":19.05255888325765},{"$f":"AC234+AC235+AC236","v":0},{"$f":"SQRT((AD234^2)+(AD235^2)+(AD236^2))","v":19.05255888325765},{"$f":"AE234+AE235+AE236","v":0},{"$f":"SQRT((AF234^2)+(AF235^2)+(AF236^2))","v":19.05255888325765},{"$f":"AG234+AG235+AG236","v":0},{"$f":"SQRT((AH234^2)+(AH235^2)+(AH236^2))","v":19.05255888325765},{"$f":"AI234+AI235+AI236","v":0},{"$f":"SQRT((AJ234^2)+(AJ235^2)+(AJ236^2))","v":19.05255888325765},{"$f":"AK234+AK235+AK236","v":0},{"$f":"SQRT((AL234^2)+(AL235^2)+(AL236^2))","v":27.712812921102035},{"$f":"AM234+AM235+AM236","v":0},{"$f":"SQRT((AN234^2)+(AN235^2)+(AN236^2))","v":27.712812921102035}]
[null,"50.0 percent or more",{"$f":"C236","v":0},11,0,11,0,11,0,11,0,18,0,11,0,11,0,11,0,11,0,11,0,11,0,11,0,11,0,11,0,11,0,11,0,11,0,16,0,16]
[null,"Not Computed",{"$f":"C237","v":0},11,0,11,0,11,0,11,0,18,6,10,0,11,0,11,0,11,0,11,0,11,0,11,0,11,10,16,3,5,0,11,0,11,15,23,17,26]
[]
[]
[null,"Calculated GROSS RENT AS A PERCENTAGE OF HOUSEHOLD INCOME IN THE PAST 12 MONTHS"]
[null,"Universe:  RENTER-OCCUPIED HOUSING UNITS"]
[null,{"$f":"B170","v":"Data Set: 2013-2017 American Community Survey 5-Year Estimates"}]
[]
[null,null,"Albany",null,"Bartlett",null,"Brookfield",null,"Chatham",null,"Conway",null,"Eaton",null,"Effingham",null,"Freedom",null,"Hale's Location",null,"Hart's Location",null,"Jackson",null,"Madison",null,"Moultonborough",null,"Ossipee",null,"Sandwich",null,"Tamworth",null,"Tuftonboro",null,"Wakefield",null,"Wolfeboro"]
[null," ","Estimate","Margin of Error","Estimate","Margin of Error","Estimate","Margin of Error","Estimate","Margin of Error","Estimate","Margin of Error","Estimate","Margin of Error","Estimate","Margin of Error","Estimate","Margin of Error","Estimate","Margin of Error","Estimate","Margin of Error","Estimate","Margin of Error","Estimate","Margin of Error","Estimate","Margin of Error","Estimate","Margin of Error","Estimate","Margin of Error","Estimate","Margin of Error","Estimate","Margin of Error","Estimate","Margin of Error","Estimate","Margin of Error"]
[null,"Total:",{"$f":"C259","v":42},{"$f":"D259","v":21},{"$f":"E259","v":436},142,36,38,18,22,1136,254,30,14,107,48,85,32,0,11,8,9,90,48,175,56,260,93,382,138,104,43,441,148,125,64,225,101,633,207]
[null,"Less than 30.0 percent",{"$f":"C303+C296+C289+C282+C275+C268+C261","v":20},{"$f":"SQRT((D303^2)+(D296^2)+(D289^2)+(D282^2)+(D275^2)+(D268^2)+(D261^2))","v":49.678969393496885},{"$f":"E303+E296+E289+E282+E275+E268+E261","v":227},{"$f":"SQRT((F303^2)+(F296^2)+(F289^2)+(F282^2)+(F275^2)+(F268^2)+(F261^2))","v":126.89759650994182},{"$f":"G303+G296+G289+G282+G275+G268+G261","v":28},{"$f":"SQRT((H303^2)+(H296^2)+(H289^2)+(H282^2)+(H275^2)+(H268^2)+(H261^2))","v":59.169248769948062},{"$f":"I303+I296+I289+I282+I275+I268+I261","v":10},{"$f":"SQRT((J303^2)+(J296^2)+(J289^2)+(J282^2)+(J275^2)+(J268^2)+(J261^2))","v":51.146847410177685},{"$f":"K303+K296+K289+K282+K275+K268+K261","v":593},{"$f":"SQRT((L303^2)+(L296^2)+(L289^2)+(L282^2)+(L275^2)+(L268^2)+(L261^2))","v":208.49940047875438},{"$f":"M303+M296+M289+M282+M275+M268+M261","v":13},{"$f":"SQRT((N303^2)+(N296^2)+(N289^2)+(N282^2)+(N275^2)+(N268^2)+(N261^2))","v":48.948953002081666},{"$f":"O303+O296+O289+O282+O275+O268+O261","v":29},{"$f":"SQRT((P303^2)+(P296^2)+(P289^2)+(P282^2)+(P275^2)+(P268^2)+(P261^2))","v":53.169540152233779},{"$f":"Q303+Q296+Q289+Q282+Q275+Q268+Q261","v":50},{"$f":"SQRT((R303^2)+(R296^2)+(R289^2)+(R282^2)+(R275^2)+(R268^2)+(R261^2))","v":53.376024580330075},{"$f":"S303+S296+S289+S282+S275+S268+S261","v":0},{"$f":"SQRT((T303^2)+(T296^2)+(T289^2)+(T282^2)+(T275^2)+(T268^2)+(T261^2))","v":50.408332644514239},{"$f":"U303+U296+U289+U282+U275+U268+U261","v":8},{"$f":"SQRT((V303^2)+(V296^2)+(V289^2)+(V282^2)+(V275^2)+(V268^2)+(V261^2))","v":48.774993593028796},{"$f":"W303+W296+W289+W282+W275+W268+W261","v":66},{"$f":"SQRT((X303^2)+(X296^2)+(X289^2)+(X282^2)+(X275^2)+(X268^2)+(X261^2))","v":58.472215624174872},{"$f":"Y303+Y296+Y289+Y282+Y275+Y268+Y261","v":99},{"$f":"SQRT((Z303^2)+(Z296^2)+(Z289^2)+(Z282^2)+(Z275^2)+(Z268^2)+(Z261^2))","v":68.571130951735071},{"$f":"AA303+AA296+AA289+AA282+AA275+AA268+AA261","v":127},{"$f":"SQRT((AB303^2)+(AB296^2)+(AB289^2)+(AB282^2)+(AB275^2)+(AB268^2)+(AB261^2))","v":84.320815935331183},{"$f":"AC303+AC296+AC289+AC282+AC275+AC268+AC261","v":133},{"$f":"SQRT((AD303^2)+(AD296^2)+(AD289^2)+(AD282^2)+(AD275^2)+(AD268^2)+(AD261^2))","v":117.06408501329518},{"$f":"AE303+AE296+AE289+AE282+AE275+AE268+AE261","v":41},{"$f":"SQRT((AF303^2)+(AF296^2)+(AF289^2)+(AF282^2)+(AF275^2)+(AF268^2)+(AF261^2))","v":47.021271782034987},{"$f":"AG303+AG296+AG289+AG282+AG275+AG268+AG261","v":162},{"$f":"SQRT((AH303^2)+(AH296^2)+(AH289^2)+(AH282^2)+(AH275^2)+(AH268^2)+(AH261^2))","v":100.84641788382967},{"$f":"AI303+AI296+AI289+AI282+AI275+AI268+AI261","v":41},{"$f":"SQRT((AJ303^2)+(AJ296^2)+(AJ289^2)+(AJ282^2)+(AJ275^2)+(AJ268^2)+(AJ261^2))","v":56.938563381947034},{"$f":"AK303+AK296+AK289+AK282+AK275+AK268+AK261","v":72},{"$f":"SQRT((AL303^2)+(AL296^2)+(AL289^2)+(AL282^2)+(AL275^2)+(AL268^2)+(AL261^2))","v":89.028085456219941},{"$f":"AM303+AM296+AM289+AM282+AM275+AM268+AM261","v":220},{"$f":"SQRT((AN303^2)+(AN296^2)+(AN289^2)+(AN282^2)+(AN275^2)+(AN268^2)+(AN261^2))","v":157.51507864328417}]
[null,"More than 30.0 percent",{"$f":"C304+C297+C290+C283+C276+C269+C262","v":19},{"$f":"SQRT((D304^2)+(D297^2)+(D290^2)+(D283^2)+(D276^2)+(D269^2)+(D262^2))","v":55.937465083787984},{"$f":"E304+E297+E290+E283+E276+E269+E262","v":129},{"$f":"SQRT((F304^2)+(F297^2)+(F290^2)+(F283^2)+(F276^2)+(F269^2)+(F262^2))","v":107.60111523585617},{"$f":"G304+G297+G290+G283+G276+G269+G262","v":8},{"$f":"SQRT((H304^2)+(H297^2)+(H290^2)+(H283^2)+(H276^2)+(H269^2)+(H262^2))","v":58.84725991921799},{"$f":"I304+I297+I290+I283+I276+I269+I262","v":8},{"$f":"SQRT((J304^2)+(J297^2)+(J290^2)+(J283^2)+(J276^2)+(J269^2)+(J262^2))","v":57.844619455918284},{"$f":"K304+K297+K290+K283+K276+K269+K262","v":484},{"$f":"SQRT((L304^2)+(L297^2)+(L290^2)+(L283^2)+(L276^2)+(L269^2)+(L262^2))","v":200.53677966896745},{"$f":"M304+M297+M290+M283+M276+M269+M262","v":0},{"$f":"SQRT((N304^2)+(N297^2)+(N290^2)+(N283^2)+(N276^2)+(N269^2)+(N262^2))","v":58.20652884342099},{"$f":"O304+O297+O290+O283+O276+O269+O262","v":62},{"$f":"SQRT((P304^2)+(P297^2)+(P290^2)+(P283^2)+(P276^2)+(P269^2)+(P262^2))","v":61.302528495976411},{"$f":"Q304+Q297+Q290+Q283+Q276+Q269+Q262","v":26},{"$f":"SQRT((R304^2)+(R297^2)+(R290^2)+(R283^2)+(R276^2)+(R269^2)+(R262^2))","v":58.634460857076192},{"$f":"S304+S297+S290+S283+S276+S269+S262","v":0},{"$f":"SQRT((T304^2)+(T297^2)+(T290^2)+(T283^2)+(T276^2)+(T269^2)+(T262^2))","v":58.20652884342099},{"$f":"U304+U297+U290+U283+U276+U269+U262","v":0},{"$f":"SQRT((V304^2)+(V297^2)+(V290^2)+(V283^2)+(V276^2)+(V269^2)+(V262^2))","v":58.20652884342099},{"$f":"W304+W297+W290+W283+W276+W269+W262","v":19},{"$f":"SQRT((X304^2)+(X297^2)+(X290^2)+(X283^2)+(X276^2)+(X269^2)+(X262^2))","v":61.611687202997452},{"$f":"Y304+Y297+Y290+Y283+Y276+Y269+Y262","v":47},{"$f":"SQRT((Z304^2)+(Z297^2)+(Z290^2)+(Z283^2)+(Z276^2)+(Z269^2)+(Z262^2))","v":62.94441992742486},{"$f":"AA304+AA297+AA290+AA283+AA276+AA269+AA262","v":55},{"$f":"SQRT((AB304^2)+(AB297^2)+(AB290^2)+(AB283^2)+(AB276^2)+(AB269^2)+(AB262^2))","v":63.945289114992669},{"$f":"AC304+AC297+AC290+AC283+AC276+AC269+AC262","v":174},{"$f":"SQRT((AD304^2)+(AD297^2)+(AD290^2)+(AD283^2)+(AD276^2)+(AD269^2)+(AD262^2))","v":120.76837334335509},{"$f":"AE304+AE297+AE290+AE283+AE276+AE269+AE262","v":35},{"$f":"SQRT((AF304^2)+(AF297^2)+(AF290^2)+(AF283^2)+(AF276^2)+(AF269^2)+(AF262^2))","v":57.54128952326321},{"$f":"AG304+AG297+AG290+AG283+AG276+AG269+AG262","v":279},{"$f":"SQRT((AH304^2)+(AH297^2)+(AH290^2)+(AH283^2)+(AH276^2)+(AH269^2)+(AH262^2))","v":162.68374227316016},{"$f":"AI304+AI297+AI290+AI283+AI276+AI269+AI262","v":55},{"$f":"SQRT((AJ304^2)+(AJ297^2)+(AJ290^2)+(AJ283^2)+(AJ276^2)+(AJ269^2)+(AJ262^2))","v":68.840395117982865},{"$f":"AK304+AK297+AK290+AK283+AK276+AK269+AK262","v":133},{"$f":"SQRT((AL304^2)+(AL297^2)+(AL290^2)+(AL283^2)+(AL276^2)+(AL269^2)+(AL262^2))","v":123.2923355282071},{"$f":"AM304+AM297+AM290+AM283+AM276+AM269+AM262","v":396},{"$f":"SQRT((AN304^2)+(AN297^2)+(AN290^2)+(AN283^2)+(AN276^2)+(AN269^2)+(AN262^2))","v":216.59870729069459}]
[null,"Less Than 35% of HH Income",{"$f":"C305+C298+C291+C284+C277+C270+C263","v":29},{"$f":"SQRT((D305^2)+(D298^2)+(D291^2)+(D284^2)+(D277^2)+(D270^2)+(D263^2))","v":57.77542730261716},{"$f":"E305+E298+E291+E284+E277+E270+E263","v":264},{"$f":"SQRT((F305^2)+(F298^2)+(F291^2)+(F284^2)+(F277^2)+(F270^2)+(F263^2))","v":139.76050944383397},{"$f":"G305+G298+G291+G284+G277+G270+G263","v":28},{"$f":"SQRT((H305^2)+(H298^2)+(H291^2)+(H284^2)+(H277^2)+(H270^2)+(H263^2))","v":65.939366087338144},{"$f":"I305+I298+I291+I284+I277+I270+I263","v":17},{"$f":"SQRT((J305^2)+(J298^2)+(J291^2)+(J284^2)+(J277^2)+(J270^2)+(J263^2))","v":59.481089431852205},{"$f":"K305+K298+K291+K284+K277+K270+K263","v":699},{"$f":"SQRT((L305^2)+(L298^2)+(L291^2)+(L284^2)+(L277^2)+(L270^2)+(L263^2))","v":230.7682820493319},{"$f":"M305+M298+M291+M284+M277+M270+M263","v":13},{"$f":"SQRT((N305^2)+(N298^2)+(N291^2)+(N284^2)+(N277^2)+(N270^2)+(N263^2))","v":56.947344099615393},{"$f":"O305+O298+O291+O284+O277+O270+O263","v":45},{"$f":"SQRT((P305^2)+(P298^2)+(P291^2)+(P284^2)+(P277^2)+(P270^2)+(P263^2))","v":62.872887638472598},{"$f":"Q305+Q298+Q291+Q284+Q277+Q270+Q263","v":50},{"$f":"SQRT((R305^2)+(R298^2)+(R291^2)+(R284^2)+(R277^2)+(R270^2)+(R263^2))","v":60.794736614282655},{"$f":"S305+S298+S291+S284+S277+S270+S263","v":0},{"$f":"SQRT((T305^2)+(T298^2)+(T291^2)+(T284^2)+(T277^2)+(T270^2)+(T263^2))","v":58.20652884342099},{"$f":"U305+U298+U291+U284+U277+U270+U263","v":8},{"$f":"SQRT((V305^2)+(V298^2)+(V291^2)+(V284^2)+(V277^2)+(V270^2)+(V263^2))","v":56.797887284651708},{"$f":"W305+W298+W291+W284+W277+W270+W263","v":66},{"$f":"SQRT((X305^2)+(X298^2)+(X291^2)+(X284^2)+(X277^2)+(X270^2)+(X263^2))","v":65.31462317123173},{"$f":"Y305+Y298+Y291+Y284+Y277+Y270+Y263","v":107},{"$f":"SQRT((Z305^2)+(Z298^2)+(Z291^2)+(Z284^2)+(Z277^2)+(Z270^2)+(Z263^2))","v":74.645830426086093},{"$f":"AA305+AA298+AA291+AA284+AA277+AA270+AA263","v":134},{"$f":"SQRT((AB305^2)+(AB298^2)+(AB291^2)+(AB284^2)+(AB277^2)+(AB270^2)+(AB263^2))","v":89.202017914394744},{"$f":"AC305+AC298+AC291+AC284+AC277+AC270+AC263","v":145},{"$f":"SQRT((AD305^2)+(AD298^2)+(AD291^2)+(AD284^2)+(AD277^2)+(AD270^2)+(AD263^2))","v":121.77848742696716},{"$f":"AE305+AE298+AE291+AE284+AE277+AE270+AE263","v":47},{"$f":"SQRT((AF305^2)+(AF298^2)+(AF291^2)+(AF284^2)+(AF277^2)+(AF270^2)+(AF263^2))","v":54.52522352086234},{"$f":"AG305+AG298+AG291+AG284+AG277+AG270+AG263","v":259},{"$f":"SQRT((AH305^2)+(AH298^2)+(AH291^2)+(AH284^2)+(AH277^2)+(AH270^2)+(AH263^2))","v":135.46955377500879},{"$f":"AI305+AI298+AI291+AI284+AI277+AI270+AI263","v":41},{"$f":"SQRT((AJ305^2)+(AJ298^2)+(AJ291^2)+(AJ284^2)+(AJ277^2)+(AJ270^2)+(AJ263^2))","v":63.945289114992669},{"$f":"AK305+AK298+AK291+AK284+AK277+AK270+AK263","v":176},{"$f":"SQRT((AL305^2)+(AL298^2)+(AL291^2)+(AL284^2)+(AL277^2)+(AL270^2)+(AL263^2))","v":125.31161159286079},{"$f":"AM305+AM298+AM291+AM284+AM277+AM270+AM263","v":250},{"$f":"SQRT((AN305^2)+(AN298^2)+(AN291^2)+(AN284^2)+(AN277^2)+(AN270^2)+(AN263^2))","v":168.43990026119107}]
[null,"35.0 percent or more",{"$f":"C306+C299+C292+C285+C278+C271+C264","v":10},{"$f":"SQRT((D306^2)+(D299^2)+(D292^2)+(D285^2)+(D278^2)+(D271^2)+(D264^2))","v":47.528938553264581},{"$f":"E306+E299+E292+E285+E278+E271+E264","v":92},{"$f":"SQRT((F306^2)+(F299^2)+(F292^2)+(F285^2)+(F278^2)+(F271^2)+(F264^2))","v":90.266272771174073},{"$f":"G306+G299+G292+G285+G278+G271+G264","v":8},{"$f":"SQRT((H306^2)+(H299^2)+(H292^2)+(H285^2)+(H278^2)+(H271^2)+(H264^2))","v":51.146847410177685},{"$f":"I306+I299+I292+I285+I278+I271+I264","v":1},{"$f":"SQRT((J306^2)+(J299^2)+(J292^2)+(J285^2)+(J278^2)+(J271^2)+(J264^2))","v":49.234134500364682},{"$f":"K306+K299+K292+K285+K278+K271+K264","v":378},{"$f":"SQRT((L306^2)+(L299^2)+(L292^2)+(L285^2)+(L278^2)+(L271^2)+(L264^2))","v":174.4505660638566},{"$f":"M306+M299+M292+M285+M278+M271+M264","v":0},{"$f":"SQRT((N306^2)+(N299^2)+(N292^2)+(N285^2)+(N278^2)+(N271^2)+(N264^2))","v":50.408332644514239},{"$f":"O306+O299+O292+O285+O278+O271+O264","v":46},{"$f":"SQRT((P306^2)+(P299^2)+(P292^2)+(P285^2)+(P278^2)+(P271^2)+(P264^2))","v":51.303021353522638},{"$f":"Q306+Q299+Q292+Q285+Q278+Q271+Q264","v":26},{"$f":"SQRT((R306^2)+(R299^2)+(R292^2)+(R285^2)+(R278^2)+(R271^2)+(R264^2))","v":50.90186637049765},{"$f":"S306+S299+S292+S285+S278+S271+S264","v":0},{"$f":"SQRT((T306^2)+(T299^2)+(T292^2)+(T285^2)+(T278^2)+(T271^2)+(T264^2))","v":50.408332644514239},{"$f":"U306+U299+U292+U285+U278+U271+U264","v":0},{"$f":"SQRT((V306^2)+(V299^2)+(V292^2)+(V285^2)+(V278^2)+(V271^2)+(V264^2))","v":50.408332644514239},{"$f":"W306+W299+W292+W285+W278+W271+W264","v":19},{"$f":"SQRT((X306^2)+(X299^2)+(X292^2)+(X285^2)+(X278^2)+(X271^2)+(X264^2))","v":54.304695929541857},{"$f":"Y306+Y299+Y292+Y285+Y278+Y271+Y264","v":39},{"$f":"SQRT((Z306^2)+(Z299^2)+(Z292^2)+(Z285^2)+(Z278^2)+(Z271^2)+(Z264^2))","v":55.605755097831377},{"$f":"AA306+AA299+AA292+AA285+AA278+AA271+AA264","v":48},{"$f":"SQRT((AB306^2)+(AB299^2)+(AB292^2)+(AB285^2)+(AB278^2)+(AB271^2)+(AB264^2))","v":56.938563381947034},{"$f":"AC306+AC299+AC292+AC285+AC278+AC271+AC264","v":162},{"$f":"SQRT((AD306^2)+(AD299^2)+(AD292^2)+(AD285^2)+(AD278^2)+(AD271^2)+(AD264^2))","v":116.0129303138232},{"$f":"AE306+AE299+AE292+AE285+AE278+AE271+AE264","v":29},{"$f":"SQRT((AF306^2)+(AF299^2)+(AF292^2)+(AF285^2)+(AF278^2)+(AF271^2)+(AF264^2))","v":50.487622245457352},{"$f":"AG306+AG299+AG292+AG285+AG278+AG271+AG264","v":182},{"$f":"SQRT((AH306^2)+(AH299^2)+(AH292^2)+(AH285^2)+(AH278^2)+(AH271^2)+(AH264^2))","v":135.21834195108295},{"$f":"AI306+AI299+AI292+AI285+AI278+AI271+AI264","v":55},{"$f":"SQRT((AJ306^2)+(AJ299^2)+(AJ292^2)+(AJ285^2)+(AJ278^2)+(AJ271^2)+(AJ264^2))","v":62.385895841928885},{"$f":"AK306+AK299+AK292+AK285+AK278+AK271+AK264","v":29},{"$f":"SQRT((AL306^2)+(AL299^2)+(AL292^2)+(AL285^2)+(AL278^2)+(AL271^2)+(AL264^2))","v":86.16263691415206},{"$f":"AM306+AM299+AM292+AM285+AM278+AM271+AM264","v":366},{"$f":"SQRT((AN306^2)+(AN299^2)+(AN292^2)+(AN285^2)+(AN278^2)+(AN271^2)+(AN264^2))","v":208.21623375712088}]
[null,"50.0 percent or more",{"$f":"C307+C300+C293+C286+C279+C272+C265","v":7},{"$f":"SQRT((D307^2)+(D300^2)+(D293^2)+(D286^2)+(D279^2)+(D272^2)+(D265^2))","v":25.495097567963924},{"$f":"E307+E300+E293+E286+E279+E272+E265","v":80},{"$f":"SQRT((F307^2)+(F300^2)+(F293^2)+(F286^2)+(F279^2)+(F272^2)+(F265^2))","v":79.4921379760288},{"$f":"G307+G300+G293+G286+G279+G272+G265","v":8},{"$f":"SQRT((H307^2)+(H300^2)+(H293^2)+(H286^2)+(H279^2)+(H272^2)+(H265^2))","v":30.364452901377952},{"$f":"I307+I300+I293+I286+I279+I272+I265","v":1},{"$f":"SQRT((J307^2)+(J300^2)+(J293^2)+(J286^2)+(J279^2)+(J272^2)+(J265^2))","v":27.018512172212592},{"$f":"K307+K300+K293+K286+K279+K272+K265","v":241},{"$f":"SQRT((L307^2)+(L300^2)+(L293^2)+(L286^2)+(L279^2)+(L272^2)+(L265^2))","v":136.1653406708183},{"$f":"M307+M300+M293+M286+M279+M272+M265","v":0},{"$f":"SQRT((N307^2)+(N300^2)+(N293^2)+(N286^2)+(N279^2)+(N272^2)+(N265^2))","v":29.103264421710495},{"$f":"O307+O300+O293+O286+O279+O272+O265","v":17},{"$f":"SQRT((P307^2)+(P300^2)+(P293^2)+(P286^2)+(P279^2)+(P272^2)+(P265^2))","v":29.916550603303182},{"$f":"Q307+Q300+Q293+Q286+Q279+Q272+Q265","v":0},{"$f":"SQRT((R307^2)+(R300^2)+(R293^2)+(R286^2)+(R279^2)+(R272^2)+(R265^2))","v":29.103264421710495},{"$f":"S307+S300+S293+S286+S279+S272+S265","v":0},{"$f":"SQRT((T307^2)+(T300^2)+(T293^2)+(T286^2)+(T279^2)+(T272^2)+(T265^2))","v":29.103264421710495},{"$f":"U307+U300+U293+U286+U279+U272+U265","v":0},{"$f":"SQRT((V307^2)+(V300^2)+(V293^2)+(V286^2)+(V279^2)+(V272^2)+(V265^2))","v":29.103264421710495},{"$f":"W307+W300+W293+W286+W279+W272+W265","v":19},{"$f":"SQRT((X307^2)+(X300^2)+(X293^2)+(X286^2)+(X279^2)+(X272^2)+(X265^2))","v":35.425979167836701},{"$f":"Y307+Y300+Y293+Y286+Y279+Y272+Y265","v":15},{"$f":"SQRT((Z307^2)+(Z300^2)+(Z293^2)+(Z286^2)+(Z279^2)+(Z272^2)+(Z265^2))","v":29.899832775452108},{"$f":"AA307+AA300+AA293+AA286+AA279+AA272+AA265","v":23},{"$f":"SQRT((AB307^2)+(AB300^2)+(AB293^2)+(AB286^2)+(AB279^2)+(AB272^2)+(AB265^2))","v":30.659419433511783},{"$f":"AC307+AC300+AC293+AC286+AC279+AC272+AC265","v":109},{"$f":"SQRT((AD307^2)+(AD300^2)+(AD293^2)+(AD286^2)+(AD279^2)+(AD272^2)+(AD265^2))","v":90.631120482977593},{"$f":"AE307+AE300+AE293+AE286+AE279+AE272+AE265","v":21},{"$f":"SQRT((AF307^2)+(AF300^2)+(AF293^2)+(AF286^2)+(AF279^2)+(AF272^2)+(AF265^2))","v":30.199337741082999},{"$f":"AG307+AG300+AG293+AG286+AG279+AG272+AG265","v":182},{"$f":"SQRT((AH307^2)+(AH300^2)+(AH293^2)+(AH286^2)+(AH279^2)+(AH272^2)+(AH265^2))","v":128.80217389469792},{"$f":"AI307+AI300+AI293+AI286+AI279+AI272+AI265","v":55},{"$f":"SQRT((AJ307^2)+(AJ300^2)+(AJ293^2)+(AJ286^2)+(AJ279^2)+(AJ272^2)+(AJ265^2))","v":46.882832678924167},{"$f":"AK307+AK300+AK293+AK286+AK279+AK272+AK265","v":29},{"$f":"SQRT((AL307^2)+(AL300^2)+(AL293^2)+(AL286^2)+(AL279^2)+(AL272^2)+(AL265^2))","v":61.967733539318672},{"$f":"AM307+AM300+AM293+AM286+AM279+AM272+AM265","v":200},{"$f":"SQRT((AN307^2)+(AN300^2)+(AN293^2)+(AN286^2)+(AN279^2)+(AN272^2)+(AN265^2))","v":159.339260698674}]
[null,"Not Computed",{"$f":"C307+C301+C294+C287+C280+C273+C266","v":3},{"$f":"SQRT((D307^2)+(D301^2)+(D294^2)+(D287^2)+(D280^2)+(D273^2)+(D266^2))","v":27.404379212089442},{"$f":"E307+E301+E294+E287+E280+E273+E266","v":80},{"$f":"SQRT((F307^2)+(F301^2)+(F294^2)+(F287^2)+(F280^2)+(F273^2)+(F266^2))","v":68.912988616080199},{"$f":"G307+G301+G294+G287+G280+G273+G266","v":0},{"$f":"SQRT((H307^2)+(H301^2)+(H294^2)+(H287^2)+(H280^2)+(H273^2)+(H266^2))","v":29.103264421710495},{"$f":"I307+I301+I294+I287+I280+I273+I266","v":0},{"$f":"SQRT((J307^2)+(J301^2)+(J294^2)+(J287^2)+(J280^2)+(J273^2)+(J266^2))","v":29.103264421710495},{"$f":"K307+K301+K294+K287+K280+K273+K266","v":59},{"$f":"SQRT((L307^2)+(L301^2)+(L294^2)+(L287^2)+(L280^2)+(L273^2)+(L266^2))","v":75.663729752107784},{"$f":"M307+M301+M294+M287+M280+M273+M266","v":11},{"$f":"SQRT((N307^2)+(N301^2)+(N294^2)+(N287^2)+(N280^2)+(N273^2)+(N266^2))","v":26.664583251946766},{"$f":"O307+O301+O294+O287+O280+O273+O266","v":16},{"$f":"SQRT((P307^2)+(P301^2)+(P294^2)+(P287^2)+(P280^2)+(P273^2)+(P266^2))","v":36.083237105337432},{"$f":"Q307+Q301+Q294+Q287+Q280+Q273+Q266","v":9},{"$f":"SQRT((R307^2)+(R301^2)+(R294^2)+(R287^2)+(R280^2)+(R273^2)+(R266^2))","v":28.407745422683583},{"$f":"S307+S301+S294+S287+S280+S273+S266","v":0},{"$f":"SQRT((T307^2)+(T301^2)+(T294^2)+(T287^2)+(T280^2)+(T273^2)+(T266^2))","v":29.103264421710495},{"$f":"U307+U301+U294+U287+U280+U273+U266","v":0},{"$f":"SQRT((V307^2)+(V301^2)+(V294^2)+(V287^2)+(V280^2)+(V273^2)+(V266^2))","v":29.103264421710495},{"$f":"W307+W301+W294+W287+W280+W273+W266","v":5},{"$f":"SQRT((X307^2)+(X301^2)+(X294^2)+(X287^2)+(X280^2)+(X273^2)+(X266^2))","v":25.416530054277668},{"$f":"Y307+Y301+Y294+Y287+Y280+Y273+Y266","v":29},{"$f":"SQRT((Z307^2)+(Z301^2)+(Z294^2)+(Z287^2)+(Z280^2)+(Z273^2)+(Z266^2))","v":37.589892258425003},{"$f":"AA307+AA301+AA294+AA287+AA280+AA273+AA266","v":78},{"$f":"SQRT((AB307^2)+(AB301^2)+(AB294^2)+(AB287^2)+(AB280^2)+(AB273^2)+(AB266^2))","v":64.451532177288072},{"$f":"AC307+AC301+AC294+AC287+AC280+AC273+AC266","v":65},{"$f":"SQRT((AD307^2)+(AD301^2)+(AD294^2)+(AD287^2)+(AD280^2)+(AD273^2)+(AD266^2))","v":48},{"$f":"AE307+AE301+AE294+AE287+AE280+AE273+AE266","v":25},{"$f":"SQRT((AF307^2)+(AF301^2)+(AF294^2)+(AF287^2)+(AF280^2)+(AF273^2)+(AF266^2))","v":32.634337744161442},{"$f":"AG307+AG301+AG294+AG287+AG280+AG273+AG266","v":0},{"$f":"SQRT((AH307^2)+(AH301^2)+(AH294^2)+(AH287^2)+(AH280^2)+(AH273^2)+(AH266^2))","v":29.103264421710495},{"$f":"AI307+AI301+AI294+AI287+AI280+AI273+AI266","v":29},{"$f":"SQRT((AJ307^2)+(AJ301^2)+(AJ294^2)+(AJ287^2)+(AJ280^2)+(AJ273^2)+(AJ266^2))","v":33.451457367355459},{"$f":"AK307+AK301+AK294+AK287+AK280+AK273+AK266","v":5},{"$f":"SQRT((AL307^2)+(AL301^2)+(AL294^2)+(AL287^2)+(AL280^2)+(AL273^2)+(AL266^2))","v":40},{"$f":"AM307+AM301+AM294+AM287+AM280+AM273+AM266","v":0},{"$f":"SQRT((AN307^2)+(AN301^2)+(AN294^2)+(AN287^2)+(AN280^2)+(AN273^2)+(AN266^2))","v":42.332020977033451}]
[]
[]
[]
[]
[]
[]
[]
[]
[]
[]
[]
[]
[]
[]
[]
[]
[]
[]
[]
[]
[null,"B25074. HOUSEHOLD INCOME BY GROSS RENT AS A PERCENTAGE OF HOUSEHOLD INCOME IN THE PAST 12 MONTHS"]
[null,"Universe:  RENTER OCCUPIED HOUSING UNITS"]
[null,"Data Set: 2008-2012 American Community Survey 5-Year Estimates",null,null,null,null,null,{"$f":"'RentalHousingCost-Prior10Yr'!D41","v":"Income in 2012 Inflation Adjusted Dollars"}]
[]
[null,null,"Albany",null,"Bartlett",null,"Brookfield",null,"Chatham",null,"Conway",null,"Eaton",null,"Effingham",null,"Freedom",null,"Hale's Location",null,"Hart's Location",null,"Jackson",null,"Madison",null,"Moultonborough",null,"Ossipee",null,"Sandwich",null,"Tamworth",null,"Tuftonboro",null,"Wakefield",null,"Wolfeboro"]
[null," ","Estimate","Margin of Error","Estimate","Margin of Error","Estimate","Margin of Error","Estimate","Margin of Error","Estimate","Margin of Error","Estimate","Margin of Error","Estimate","Margin of Error","Estimate","Margin of Error","Estimate","Margin of Error","Estimate","Margin of Error","Estimate","Margin of Error","Estimate","Margin of Error","Estimate","Margin of Error","Estimate","Margin of Error","Estimate","Margin of Error","Estimate","Margin of Error","Estimate","Margin of Error","Estimate","Margin of Error","Estimate","Margin of Error"]
[null,"Total:",50,26,253,105,15,19,20,13,1618,293,20,17,61,34,72,32,0,11,21,17,73,37,191,79,162,74,293,97,98,37,283,117,134,71,225,131,425,154]
[null,"Less than $10,000:",2,4,43,51,0,11,4,6,293,147,0,11,3,5,2,4,0,11,0,11,9,16,0,11,0,11,48,61,19,17,34,27,7,12,18,27,30,36]
[null,"Less than 20.0 percent",0,11,0,11,0,11,0,11,0,18,0,11,0,11,0,11,0,11,0,11,0,11,0,11,0,11,0,11,3,5,0,11,0,11,0,16,0,16]
[null,"20.0 to 24.9 percent",0,11,0,11,0,11,0,11,18,28,0,11,0,11,0,11,0,11,0,11,0,11,0,11,0,11,0,11,0,11,0,11,0,11,0,16,0,16]
[null,"25.0 to 29.9 percent",0,11,0,11,0,11,0,11,12,19,0,11,0,11,0,11,0,11,0,11,0,11,0,11,0,11,0,11,0,11,7,15,0,11,0,16,0,16]
[null,"30.0 to 34.9 percent",0,11,0,11,0,11,0,11,0,18,0,11,0,11,0,11,0,11,0,11,0,11,0,11,0,11,0,11,0,11,13,20,0,11,0,16,0,16]
[null,"35.0 percent or more",2,4,43,51,0,11,3,5,193,124,0,11,3,5,0,11,0,11,0,11,9,16,0,11,0,11,35,55,13,16,14,15,7,12,18,27,16,27]
[]
[]
[null,"Not computed",0,11,0,11,0,11,1,2,70,73,0,11,0,11,2,4,0,11,0,11,0,11,0,11,0,11,13,16,3,5,0,11,0,11,0,16,14,23]
[null,"$10,000 to $19,999:",15,17,30,33,0,11,4,6,256,143,0,11,23,24,3,5,0,11,0,11,0,11,5,9,5,9,122,70,0,11,108,90,0,11,14,21,116,99]
[null,"Less than 20.0 percent",4,6,0,11,0,11,0,11,0,18,0,11,0,11,0,11,0,11,0,11,0,11,0,11,0,11,0,11,0,11,0,11,0,11,0,16,0,16]
[null,"20.0 to 24.9 percent",0,11,0,11,0,11,0,11,6,10,0,11,0,11,0,11,0,11,0,11,0,11,0,11,0,11,0,11,0,11,0,11,0,11,0,16,0,16]
[null,"25.0 to 29.9 percent",0,11,0,11,0,11,0,11,63,61,0,11,0,11,0,11,0,11,0,11,0,11,0,11,0,11,10,16,0,11,59,81,0,11,0,16,0,16]
[null,"30.0 to 34.9 percent",0,11,0,11,0,11,0,11,24,40,0,11,0,11,0,11,0,11,0,11,0,11,0,11,0,11,0,11,0,11,0,11,0,11,0,16,0,16]
[null,"35.0 percent or more",11,16,16,24,0,11,0,11,150,105,0,11,14,19,0,11,0,11,0,11,0,11,5,9,5,9,88,73,0,11,27,29,0,11,14,21,103,97]
[]
[]
[null,"Not computed",0,11,14,23,0,11,4,6,13,21,0,11,9,15,3,5,0,11,0,11,0,11,0,11,0,11,24,34,0,11,22,26,0,11,0,16,13,21]
[null,"$20,000 to $34,999:",9,11,42,43,5,5,1,4,524,223,4,6,18,16,34,22,0,11,9,12,27,24,46,42,37,32,25,31,24,21,61,46,43,45,116,115,110,105]
[null,"Less than 20.0 percent",0,11,12,19,0,11,0,11,53,51,0,11,0,11,0,11,0,11,0,11,0,11,7,10,0,11,0,11,0,11,0,11,0,11,0,16,0,16]
[null,"20.0 to 24.9 percent",0,11,0,11,0,11,0,11,22,36,0,11,0,11,0,11,0,11,0,11,0,11,0,11,0,11,0,11,0,11,21,34,0,11,0,16,0,16]
[null,"25.0 to 29.9 percent",7,11,0,11,0,11,0,11,103,126,0,11,0,11,11,17,0,11,0,11,0,11,0,11,0,11,17,28,0,11,0,11,0,11,13,19,0,16]
[null,"30.0 to 34.9 percent",0,11,22,36,0,11,0,11,0,18,0,11,10,14,9,8,0,11,0,11,0,11,11,18,14,13,0,11,5,7,12,20,20,32,85,109,10,16]
[null,"35.0 percent or more",0,11,8,10,3,5,1,4,286,177,3,5,6,5,10,11,0,11,0,11,6,9,28,37,23,28,8,13,14,18,28,23,4,7,18,33,100,104]
[]
[]
[null,"Not computed",2,3,0,11,2,4,0,11,60,66,1,3,2,3,4,7,0,11,9,12,21,22,0,11,0,11,0,11,5,7,0,11,19,24,0,16,0,16]
[null,"$35,000 to $49,999:",4,6,83,61,10,18,0,11,187,117,4,6,4,5,24,23,0,11,8,12,15,12,50,40,10,16,53,49,31,23,46,69,10,15,49,61,94,97]
[null,"Less than 20.0 percent",0,11,0,11,0,11,0,11,13,21,0,11,0,11,0,11,0,11,0,11,6,9,0,11,0,11,0,11,0,11,46,69,0,11,0,16,18,30]
[null,"20.0 to 24.9 percent",0,11,49,54,0,11,0,11,61,68,4,6,4,5,20,22,0,11,0,11,0,11,0,11,0,11,10,17,0,11,0,11,0,11,0,16,0,16]
[null,"25.0 to 29.9 percent",0,11,0,11,0,11,0,11,50,67,0,11,0,11,4,6,0,11,0,11,0,11,0,11,0,11,0,11,16,20,0,11,0,11,0,16,59,90]
[null,"30.0 to 34.9 percent",2,4,17,26,0,11,0,11,63,71,0,11,0,11,0,11,0,11,0,11,0,11,31,30,0,11,0,11,12,11,0,11,10,15,0,16,0,16]
[null,"35.0 percent or more",0,11,0,11,0,11,0,11,0,18,0,11,0,11,0,11,0,11,8,12,0,11,0,11,10,16,43,55,3,5,0,11,0,11,33,44,17,26]
[]
[]
[null,"Not computed",2,4,17,27,10,18,0,11,0,18,0,11,0,11,0,11,0,11,0,11,9,9,19,30,0,11,0,11,0,11,0,11,0,11,16,25,0,16]
[null,"$50,000 to $74,999:",10,12,55,57,0,11,11,10,219,112,5,6,5,8,5,7,0,11,2,4,17,16,70,51,66,53,19,22,11,14,34,36,62,51,28,44,38,36]
[null,"Less than 20.0 percent",8,12,27,43,0,11,6,9,109,70,0,11,5,8,0,11,0,11,0,11,5,9,55,47,0,11,0,11,3,5,13,19,37,40,28,44,13,22]
[null,"20.0 to 24.9 percent",2,3,28,35,0,11,0,11,70,62,1,4,0,11,5,7,0,11,2,4,6,10,15,23,24,28,9,15,8,13,0,11,0,11,0,16,0,16]
[null,"25.0 to 29.9 percent",0,11,0,11,0,11,0,11,0,18,4,6,0,11,0,11,0,11,0,11,6,9,0,11,13,18,10,16,0,11,0,11,0,11,0,16,0,16]
[null,"30.0 to 34.9 percent",0,11,0,11,0,11,0,11,40,55,0,11,0,11,0,11,0,11,0,11,0,11,0,11,0,11,0,11,0,11,21,31,0,11,0,16,0,16]
[null,"35.0 percent or more",0,11,0,11,0,11,5,8,0,18,0,11,0,11,0,11,0,11,0,11,0,11,0,11,0,11,0,11,0,11,0,11,0,11,0,16,25,29]
[]
[]
[null,"Not computed",0,11,0,11,0,11,0,11,0,18,0,11,0,11,0,11,0,11,0,11,0,11,0,11,29,36,0,11,0,11,0,11,25,31,0,16,0,16]
[null,"$75,000 to $99,999:",8,9,0,11,0,11,0,11,76,67,2,4,0,11,4,6,0,11,2,3,5,8,15,24,9,15,26,40,7,9,0,11,5,8,0,16,16,32]
[null,"Less than 20.0 percent",8,9,0,11,0,11,0,11,55,57,2,4,0,11,4,6,0,11,2,3,5,8,15,24,0,11,0,11,4,7,0,11,0,11,0,16,16,32]
[null,"20.0 to 24.9 percent",0,11,0,11,0,11,0,11,0,18,0,11,0,11,0,11,0,11,0,11,0,11,0,11,0,11,26,40,0,11,0,11,0,11,0,16,0,16]
[null,"25.0 to 29.9 percent",0,11,0,11,0,11,0,11,0,18,0,11,0,11,0,11,0,11,0,11,0,11,0,11,0,11,0,11,3,5,0,11,0,11,0,16,0,16]
[null,"30.0 to 34.9 percent",0,11,0,11,0,11,0,11,0,18,0,11,0,11,0,11,0,11,0,11,0,11,0,11,9,15,0,11,0,11,0,11,0,11,0,16,0,16]
[null,"35.0 percent or more",0,11,0,11,0,11,0,11,0,18,0,11,0,11,0,11,0,11,0,11,0,11,0,11,0,11,0,11,0,11,0,11,0,11,0,16,0,16]
[]
[]
[null,"Not computed",0,11,0,11,0,11,0,11,21,35,0,11,0,11,0,11,0,11,0,11,0,11,0,11,0,11,0,11,0,11,0,11,5,8,0,16,0,16]
[null,"$100,000 or more:",2,4,0,11,0,11,0,11,63,81,5,9,8,15,0,11,0,11,0,11,0,11,5,8,35,35,0,11,6,8,0,11,7,10,0,16,21,25]
[null,"Less than 20.0 percent",2,4,0,11,0,11,0,11,63,81,5,9,8,15,0,11,0,11,0,11,0,11,5,8,20,23,0,11,0,11,0,11,7,10,0,16,11,18]
[null,"20.0 to 24.9 percent",0,11,0,11,0,11,0,11,0,18,0,11,0,11,0,11,0,11,0,11,0,11,0,11,0,11,0,11,0,11,0,11,0,11,0,16,0,16]
[null,"25.0 to 29.9 percent",0,11,0,11,0,11,0,11,0,18,0,11,0,11,0,11,0,11,0,11,0,11,0,11,0,11,0,11,0,11,0,11,0,11,0,16,0,16]
[null,"30.0 to 34.9 percent",0,11,0,11,0,11,0,11,0,18,0,11,0,11,0,11,0,11,0,11,0,11,0,11,0,11,0,11,0,11,0,11,0,11,0,16,0,16]
[null,"35.0 percent or more",0,11,0,11,0,11,0,11,0,18,0,11,0,11,0,11,0,11,0,11,0,11,0,11,0,11,0,11,0,11,0,11,0,11,0,16,0,16]
[]
[]
[null,"Not computed",0,11,0,11,0,11,0,11,0,18,0,11,0,11,0,11,0,11,0,11,0,11,0,11,15,26,0,11,6,8,0,11,0,11,0,16,10,16]
[]
[null,"Calculated B25074. HOUSEHOLD INCOME BY GROSS RENT AS A PERCENTAGE OF HOUSEHOLD INCOME IN THE PAST 12 MONTHS"]
[null,"Universe:  RENTEROCCUPIED HOUSING UNITS"]
[null,{"$f":"B346","v":"Data Set: 2008-2012 American Community Survey 5-Year Estimates"}]
[]
[null,null,"Albany",null,"Bartlett",null,"Brookfield",null,"Chatham",null,"Conway",null,"Eaton",null,"Effingham",null,"Freedom",null,"Hale's Location",null,"Hart's Location",null,"Jackson",null,"Madison",null,"Moultonborough",null,"Ossipee",null,"Sandwich",null,"Tamworth",null,"Tuftonboro",null,"Wakefield",null,"Wolfeboro"]
[null,null,"Estimate","Margin of Error","Estimate","Margin of Error","Estimate","Margin of Error","Estimate","Margin of Error","Estimate","Margin of Error","Estimate","Margin of Error","Estimate","Margin of Error","Estimate","Margin of Error","Estimate","Margin of Error","Estimate","Margin of Error","Estimate","Margin of Error","Estimate","Margin of Error","Estimate","Margin of Error","Estimate","Margin of Error","Estimate","Margin of Error","Estimate","Margin of Error","Estimate","Margin of Error","Estimate","Margin of Error","Estimate","Margin of Error"]
[null,"Total:",{"$f":"C350","v":50},26,253,105,{"$f":"G350","v":15},19,20,13,1618,293,20,17,61,34,72,32,0,11,21,17,73,37,191,79,162,74,293,97,98,37,283,117,134,71,225,131,425,154]
[null,"Less than $10,000:",2,4,43,51,{"$f":"G351","v":0},11,4,6,293,147,0,11,3,5,2,4,0,11,0,11,9,16,0,11,0,11,48,61,19,17,34,27,7,12,18,27,30,36]
[null,"Less than 30.0 percent",{"$f":"C352+C353+C354","v":0},{"$f":"SQRT((D352^2)+(D353^2)+(D354^2))","v":19.05255888325765},{"$f":"E352+E353+E354","v":0},{"$f":"SQRT((F352^2)+(F353^2)+(F354^2))","v":19.05255888325765},{"$f":"G352+G353+G354","v":0},{"$f":"SQRT((H352^2)+(H353^2)+(H354^2))","v":19.05255888325765},{"$f":"I352+I353+I354","v":0},{"$f":"SQRT((J352^2)+(J353^2)+(J354^2))","v":19.05255888325765},{"$f":"K352+K353+K354","v":30},{"$f":"SQRT((L352^2)+(L353^2)+(L354^2))","v":38.327535793473601},{"$f":"M352+M353+M354","v":0},{"$f":"SQRT((N352^2)+(N353^2)+(N354^2))","v":19.05255888325765},{"$f":"O352+O353+O354","v":0},{"$f":"SQRT((P352^2)+(P353^2)+(P354^2))","v":19.05255888325765},{"$f":"Q352+Q353+Q354","v":0},{"$f":"SQRT((R352^2)+(R353^2)+(R354^2))","v":19.05255888325765},{"$f":"S352+S353+S354","v":0},{"$f":"SQRT((T352^2)+(T353^2)+(T354^2))","v":19.05255888325765},{"$f":"U352+U353+U354","v":0},{"$f":"SQRT((V352^2)+(V353^2)+(V354^2))","v":19.05255888325765},{"$f":"W352+W353+W354","v":0},{"$f":"SQRT((X352^2)+(X353^2)+(X354^2))","v":19.05255888325765},{"$f":"Y352+Y353+Y354","v":0},{"$f":"SQRT((Z352^2)+(Z353^2)+(Z354^2))","v":19.05255888325765},{"$f":"AA352+AA353+AA354","v":0},{"$f":"SQRT((AB352^2)+(AB353^2)+(AB354^2))","v":19.05255888325765},{"$f":"AC352+AC353+AC354","v":0},{"$f":"SQRT((AD352^2)+(AD353^2)+(AD354^2))","v":19.05255888325765},{"$f":"AE352+AE353+AE354","v":3},{"$f":"SQRT((AF352^2)+(AF353^2)+(AF354^2))","v":16.340134638368191},{"$f":"AG352+AG353+AG354","v":7},{"$f":"SQRT((AH352^2)+(AH353^2)+(AH354^2))","v":21.61018278497431},{"$f":"AI352+AI353+AI354","v":0},{"$f":"SQRT((AJ352^2)+(AJ353^2)+(AJ354^2))","v":19.05255888325765},{"$f":"AK352+AK353+AK354","v":0},{"$f":"SQRT((AL352^2)+(AL353^2)+(AL354^2))","v":27.712812921102035},{"$f":"AM352+AM353+AM354","v":0},{"$f":"SQRT((AN352^2)+(AN353^2)+(AN354^2))","v":27.712812921102035}]
[null,"More than 30.0 percent",{"$f":"C355+C356+C357+C358","v":2},{"$f":"SQRT((D355^2)+(D356^2+(D357^2+(D358^2))))","v":11.704699910719626},{"$f":"E355+E356+E357+E358","v":43},{"$f":"SQRT((F355^2)+(F356^2+(F357^2+(F358^2))))","v":52.172789842982326},{"$f":"G355+G356+G357+G358","v":0},{"$f":"SQRT((H355^2)+(H356^2+(H357^2+(H358^2))))","v":15.556349186104045},{"$f":"I355+I356+I357+I358","v":3},{"$f":"SQRT((J355^2)+(J356^2+(J357^2+(J358^2))))","v":12.083045973594572},{"$f":"K355+K356+K357+K358","v":193},{"$f":"SQRT((L355^2)+(L356^2+(L357^2+(L358^2))))","v":125.29964086141668},{"$f":"M355+M356+M357+M358","v":0},{"$f":"SQRT((N355^2)+(N356^2+(N357^2+(N358^2))))","v":15.556349186104045},{"$f":"O355+O356+O357+O358","v":3},{"$f":"SQRT((P355^2)+(P356^2+(P357^2+(P358^2))))","v":12.083045973594572},{"$f":"Q355+Q356+Q357+Q358","v":0},{"$f":"SQRT((R355^2)+(R356^2+(R357^2+(R358^2))))","v":15.556349186104045},{"$f":"S355+S356+S357+S358","v":0},{"$f":"SQRT((T355^2)+(T356^2+(T357^2+(T358^2))))","v":15.556349186104045},{"$f":"U355+U356+U357+U358","v":0},{"$f":"SQRT((V355^2)+(V356^2+(V357^2+(V358^2))))","v":15.556349186104045},{"$f":"W355+W356+W357+W358","v":9},{"$f":"SQRT((X355^2)+(X356^2+(X357^2+(X358^2))))","v":19.416487838947599},{"$f":"Y355+Y356+Y357+Y358","v":0},{"$f":"SQRT((Z355^2)+(Z356^2+(Z357^2+(Z358^2))))","v":15.556349186104045},{"$f":"AA355+AA356+AA357+AA358","v":0},{"$f":"SQRT((AB355^2)+(AB356^2+(AB357^2+(AB358^2))))","v":15.556349186104045},{"$f":"AC355+AC356+AC357+AC358","v":35},{"$f":"SQRT((AD355^2)+(AD356^2+(AD357^2+(AD358^2))))","v":56.089214649520635},{"$f":"AE355+AE356+AE357+AE358","v":13},{"$f":"SQRT((AF355^2)+(AF356^2+(AF357^2+(AF358^2))))","v":19.416487838947599},{"$f":"AG355+AG356+AG357+AG358","v":27},{"$f":"SQRT((AH355^2)+(AH356^2+(AH357^2+(AH358^2))))","v":25},{"$f":"AI355+AI356+AI357+AI358","v":7},{"$f":"SQRT((AJ355^2)+(AJ356^2+(AJ357^2+(AJ358^2))))","v":16.278820596099706},{"$f":"AK355+AK356+AK357+AK358","v":18},{"$f":"SQRT((AL355^2)+(AL356^2+(AL357^2+(AL358^2))))","v":31.384709652950431},{"$f":"AM355+AM356+AM357+AM358","v":16},{"$f":"SQRT((AN355^2)+(AN356^2+(AN357^2+(AN358^2))))","v":31.384709652950431}]
[null,"Less Than 35% of HH Income",{"$f":"C352+C353+C354+C355","v":0},{"$f":"SQRT((D352^2)+(D353^2)+(D354^2)+(D355^2))","v":22},{"$f":"E352+E353+E354+E355","v":0},{"$f":"SQRT((F352^2)+(F353^2)+(F354^2)+(F355^2))","v":22},{"$f":"G352+G353+G354+G355","v":0},{"$f":"SQRT((H352^2)+(H353^2)+(H354^2)+(H355^2))","v":22},{"$f":"I352+I353+I354+I355","v":0},{"$f":"SQRT((J352^2)+(J353^2)+(J354^2)+(J355^2))","v":22},{"$f":"K352+K353+K354+K355","v":30},{"$f":"SQRT((L352^2)+(L353^2)+(L354^2)+(L355^2))","v":42.343830719480259},{"$f":"M352+M353+M354+M355","v":0},{"$f":"SQRT((N352^2)+(N353^2)+(N354^2)+(N355^2))","v":22},{"$f":"O352+O353+O354+O355","v":0},{"$f":"SQRT((P352^2)+(P353^2)+(P354^2)+(P355^2))","v":22},{"$f":"Q352+Q353+Q354+Q355","v":0},{"$f":"SQRT((R352^2)+(R353^2)+(R354^2)+(R355^2))","v":22},{"$f":"S352+S353+S354+S355","v":0},{"$f":"SQRT((T352^2)+(T353^2)+(T354^2)+(T355^2))","v":22},{"$f":"U352+U353+U354+U355","v":0},{"$f":"SQRT((V352^2)+(V353^2)+(V354^2)+(V355^2))","v":22},{"$f":"W352+W353+W354+W355","v":0},{"$f":"SQRT((X352^2)+(X353^2)+(X354^2)+(X355^2))","v":22},{"$f":"Y352+Y353+Y354+Y355","v":0},{"$f":"SQRT((Z352^2)+(Z353^2)+(Z354^2)+(Z355^2))","v":22},{"$f":"AA352+AA353+AA354+AA355","v":0},{"$f":"SQRT((AB352^2)+(AB353^2)+(AB354^2)+(AB355^2))","v":22},{"$f":"AC352+AC353+AC354+AC355","v":0},{"$f":"SQRT((AD352^2)+(AD353^2)+(AD354^2)+(AD355^2))","v":22},{"$f":"AE352+AE353+AE354+AE355","v":3},{"$f":"SQRT((AF352^2)+(AF353^2)+(AF354^2)+(AF355^2))","v":19.697715603592208},{"$f":"AG352+AG353+AG354+AG355","v":20},{"$f":"SQRT((AH352^2)+(AH353^2)+(AH354^2)+(AH355^2))","v":29.444863728670914},{"$f":"AI352+AI353+AI354+AI355","v":0},{"$f":"SQRT((AJ352^2)+(AJ353^2)+(AJ354^2)+(AJ355^2))","v":22},{"$f":"AK352+AK353+AK354+AK355","v":0},{"$f":"SQRT((AL352^2)+(AL353^2)+(AL354^2)+(AL355^2))","v":32},{"$f":"AM352+AM353+AM354+AM355","v":0},{"$f":"SQRT((AN352^2)+(AN353^2)+(AN354^2)+(AN355^2))","v":32}]
[null,"35.0 percent or more",{"$f":"C356+C357+C358","v":2},{"$f":"SQRT((D356^2)+(D357^2)+(D358^2))","v":4},{"$f":"E356+E357+E358","v":43},{"$f":"SQRT((F356^2)+(F357^2)+(F358^2))","v":51},{"$f":"G356+G357+G358","v":0},{"$f":"SQRT((H356^2)+(H357^2)+(H358^2))","v":11},{"$f":"I356+I357+I358","v":3},{"$f":"SQRT((J356^2)+(J357^2)+(J358^2))","v":5},{"$f":"K356+K357+K358","v":193},{"$f":"SQRT((L356^2)+(L357^2)+(L358^2))","v":124},{"$f":"M356+M357+M358","v":0},{"$f":"SQRT((N356^2)+(N357^2)+(N358^2))","v":11},{"$f":"O356+O357+O358","v":3},{"$f":"SQRT((P356^2)+(P357^2)+(P358^2))","v":5},{"$f":"Q356+Q357+Q358","v":0},{"$f":"SQRT((R356^2)+(R357^2)+(R358^2))","v":11},{"$f":"S356+S357+S358","v":0},{"$f":"SQRT((T356^2)+(T357^2)+(T358^2))","v":11},{"$f":"U356+U357+U358","v":0},{"$f":"SQRT((V356^2)+(V357^2)+(V358^2))","v":11},{"$f":"W356+W357+W358","v":9},{"$f":"SQRT((X356^2)+(X357^2)+(X358^2))","v":16},{"$f":"Y356+Y357+Y358","v":0},{"$f":"SQRT((Z356^2)+(Z357^2)+(Z358^2))","v":11},{"$f":"AA356+AA357+AA358","v":0},{"$f":"SQRT((AB356^2)+(AB357^2)+(AB358^2))","v":11},{"$f":"AC356+AC357+AC358","v":35},{"$f":"SQRT((AD356^2)+(AD357^2)+(AD358^2))","v":55},{"$f":"AE356+AE357+AE358","v":13},{"$f":"SQRT((AF356^2)+(AF357^2)+(AF358^2))","v":16},{"$f":"AG356+AG357+AG358","v":14},{"$f":"SQRT((AH356^2)+(AH357^2)+(AH358^2))","v":15},{"$f":"AI356+AI357+AI358","v":7},{"$f":"SQRT((AJ356^2)+(AJ357^2)+(AJ358^2))","v":12},{"$f":"AK356+AK357+AK358","v":18},{"$f":"SQRT((AL356^2)+(AL357^2)+(AL358^2))","v":27},{"$f":"AM356+AM357+AM358","v":16},{"$f":"SQRT((AN356^2)+(AN357^2)+(AN358^2))","v":27}]
[null,"50.0 percent or more",{"$f":"C358","v":0},{"$f":"D358","v":0},{"$f":"E358","v":0},{"$f":"F358","v":0},0,0,0,0,0,0,0,0,0,0,0,0,0,0,0,0,0,0,0,0,0,0,0,0,0,0,0,0,0,0,0,0,0,0]
[null,"Not Computed",{"$f":"C359","v":0},11,{"$f":"E359","v":0},11,0,11,1,2,70,73,0,11,0,11,2,4,0,11,0,11,0,11,0,11,0,11,13,16,3,5,0,11,0,11,0,16,14,23]
[null,"$10,000 to $19,999:",15,17,{"$f":"E360","v":30},33,0,11,4,6,256,143,0,11,23,24,3,5,0,11,0,11,0,11,5,9,5,9,122,70,0,11,108,90,0,11,14,21,116,99]
[null,"Less than 30.0 percent",{"$f":"C361+C362+C363","v":4},{"$f":"SQRT((D361^2)+(D362^2)+(D363^2))","v":16.673332000533065},{"$f":"E361+E362+E363","v":0},{"$f":"SQRT((F361^2)+(F362^2)+(F363^2))","v":19.05255888325765},{"$f":"G361+G362+G363","v":0},{"$f":"SQRT((H361^2)+(H362^2)+(H363^2))","v":19.05255888325765},{"$f":"I361+I362+I363","v":0},{"$f":"SQRT((J361^2)+(J362^2)+(J363^2))","v":19.05255888325765},{"$f":"K361+K362+K363","v":69},{"$f":"SQRT((L361^2)+(L362^2)+(L363^2))","v":64.381674411279491},{"$f":"M361+M362+M363","v":0},{"$f":"SQRT((N361^2)+(N362^2)+(N363^2))","v":19.05255888325765},{"$f":"O361+O362+O363","v":0},{"$f":"SQRT((P361^2)+(P362^2)+(P363^2))","v":19.05255888325765},{"$f":"Q361+Q362+Q363","v":0},{"$f":"SQRT((R361^2)+(R362^2)+(R363^2))","v":19.05255888325765},{"$f":"S361+S362+S363","v":0},{"$f":"SQRT((T361^2)+(T362^2)+(T363^2))","v":19.05255888325765},{"$f":"U361+U362+U363","v":0},{"$f":"SQRT((V361^2)+(V362^2)+(V363^2))","v":19.05255888325765},{"$f":"W361+W362+W363","v":0},{"$f":"SQRT((X361^2)+(X362^2)+(X363^2))","v":19.05255888325765},{"$f":"Y361+Y362+Y363","v":0},{"$f":"SQRT((Z361^2)+(Z362^2)+(Z363^2))","v":19.05255888325765},{"$f":"AA361+AA362+AA363","v":0},{"$f":"SQRT((AB361^2)+(AB362^2)+(AB363^2))","v":19.05255888325765},{"$f":"AC361+AC362+AC363","v":10},{"$f":"SQRT((AD361^2)+(AD362^2)+(AD363^2))","v":22.315913604421397},{"$f":"AE361+AE362+AE363","v":0},{"$f":"SQRT((AF361^2)+(AF362^2)+(AF363^2))","v":19.05255888325765},{"$f":"AG361+AG362+AG363","v":59},{"$f":"SQRT((AH361^2)+(AH362^2)+(AH363^2))","v":82.480300678404419},{"$f":"AI361+AI362+AI363","v":0},{"$f":"SQRT((AJ361^2)+(AJ362^2)+(AJ363^2))","v":19.05255888325765},{"$f":"AK361+AK362+AK363","v":0},{"$f":"SQRT((AL361^2)+(AL362^2)+(AL363^2))","v":27.712812921102035},{"$f":"AM361+AM362+AM363","v":0},{"$f":"SQRT((AN361^2)+(AN362^2)+(AN363^2))","v":27.712812921102035}]
[null,"More than 30.0 percent",{"$f":"C364+C365+C366+C367","v":11},{"$f":"SQRT((D364^2)+(D365^2)+(D366^2)+(D367^2))","v":19.416487838947599},{"$f":"E364+E365+E366+E367","v":16},{"$f":"SQRT((F364^2)+(F365^2)+(F366^2)+(F367^2))","v":26.40075756488817},{"$f":"G364+G365+G366+G367","v":0},{"$f":"SQRT((H364^2)+(H365^2)+(H366^2)+(H367^2))","v":15.556349186104045},{"$f":"I364+I365+I366+I367","v":0},{"$f":"SQRT((J364^2)+(J365^2)+(J366^2)+(J367^2))","v":15.556349186104045},{"$f":"K364+K365+K366+K367","v":174},{"$f":"SQRT((L364^2)+(L365^2)+(L366^2)+(L367^2))","v":112.36102527122117},{"$f":"M364+M365+M366+M367","v":0},{"$f":"SQRT((N364^2)+(N365^2)+(N366^2)+(N367^2))","v":15.556349186104045},{"$f":"O364+O365+O366+O367","v":14},{"$f":"SQRT((P364^2)+(P365^2)+(P366^2)+(P367^2))","v":21.95449840010015},{"$f":"Q364+Q365+Q366+Q367","v":0},{"$f":"SQRT((R364^2)+(R365^2)+(R366^2)+(R367^2))","v":15.556349186104045},{"$f":"S364+S365+S366+S367","v":0},{"$f":"SQRT((T364^2)+(T365^2)+(T366^2)+(T367^2))","v":15.556349186104045},{"$f":"U364+U365+U366+U367","v":0},{"$f":"SQRT((V364^2)+(V365^2)+(V366^2)+(V367^2))","v":15.556349186104045},{"$f":"W364+W365+W366+W367","v":0},{"$f":"SQRT((X364^2)+(X365^2)+(X366^2)+(X367^2))","v":15.556349186104045},{"$f":"Y364+Y365+Y366+Y367","v":5},{"$f":"SQRT((Z364^2)+(Z365^2)+(Z366^2)+(Z367^2))","v":14.212670403551895},{"$f":"AA364+AA365+AA366+AA367","v":5},{"$f":"SQRT((AB364^2)+(AB365^2)+(AB366^2)+(AB367^2))","v":14.212670403551895},{"$f":"AC364+AC365+AC366+AC367","v":88},{"$f":"SQRT((AD364^2)+(AD365^2)+(AD366^2)+(AD367^2))","v":73.824115301166998},{"$f":"AE364+AE365+AE366+AE367","v":0},{"$f":"SQRT((AF364^2)+(AF365^2)+(AF366^2)+(AF367^2))","v":15.556349186104045},{"$f":"AG364+AG365+AG366+AG367","v":27},{"$f":"SQRT((AH364^2)+(AH365^2)+(AH366^2)+(AH367^2))","v":31.016124838541646},{"$f":"AI364+AI365+AI366+AI367","v":0},{"$f":"SQRT((AJ364^2)+(AJ365^2)+(AJ366^2)+(AJ367^2))","v":15.556349186104045},{"$f":"AK364+AK365+AK366+AK367","v":14},{"$f":"SQRT((AL364^2)+(AL365^2)+(AL366^2)+(AL367^2))","v":26.40075756488817},{"$f":"AM364+AM365+AM366+AM367","v":103},{"$f":"SQRT((AN364^2)+(AN365^2)+(AN366^2)+(AN367^2))","v":98.310731865854805}]
[null,"Less Than 35% of HH Income",{"$f":"C361+C362+C363+C367","v":4},{"$f":"SQRT((D361^2)+(D362^2)+(D363^2)+(D367^2))","v":16.673332000533065},{"$f":"E361+E362+E363+E367","v":0},{"$f":"SQRT((F361^2)+(F362^2)+(F363^2)+(F367^2))","v":19.05255888325765},{"$f":"G361+G362+G363+G367","v":0},{"$f":"SQRT((H361^2)+(H362^2)+(H363^2)+(H367^2))","v":19.05255888325765},{"$f":"I361+I362+I363+I367","v":0},{"$f":"SQRT((J361^2)+(J362^2)+(J363^2)+(J367^2))","v":19.05255888325765},{"$f":"K361+K362+K363+K367","v":69},{"$f":"SQRT((L361^2)+(L362^2)+(L363^2)+(L367^2))","v":64.381674411279491},{"$f":"M361+M362+M363+M367","v":0},{"$f":"SQRT((N361^2)+(N362^2)+(N363^2)+(N367^2))","v":19.05255888325765},{"$f":"O361+O362+O363+O367","v":0},{"$f":"SQRT((P361^2)+(P362^2)+(P363^2)+(P367^2))","v":19.05255888325765},{"$f":"Q361+Q362+Q363+Q367","v":0},{"$f":"SQRT((R361^2)+(R362^2)+(R363^2)+(R367^2))","v":19.05255888325765},{"$f":"S361+S362+S363+S367","v":0},{"$f":"SQRT((T361^2)+(T362^2)+(T363^2)+(T367^2))","v":19.05255888325765},{"$f":"U361+U362+U363+U367","v":0},{"$f":"SQRT((V361^2)+(V362^2)+(V363^2)+(V367^2))","v":19.05255888325765},{"$f":"W361+W362+W363+W367","v":0},{"$f":"SQRT((X361^2)+(X362^2)+(X363^2)+(X367^2))","v":19.05255888325765},{"$f":"Y361+Y362+Y363+Y367","v":0},{"$f":"SQRT((Z361^2)+(Z362^2)+(Z363^2)+(Z367^2))","v":19.05255888325765},{"$f":"AA361+AA362+AA363+AA367","v":0},{"$f":"SQRT((AB361^2)+(AB362^2)+(AB363^2)+(AB367^2))","v":19.05255888325765},{"$f":"AC361+AC362+AC363+AC367","v":10},{"$f":"SQRT((AD361^2)+(AD362^2)+(AD363^2)+(AD367^2))","v":22.315913604421397},{"$f":"AE361+AE362+AE363+AE367","v":0},{"$f":"SQRT((AF361^2)+(AF362^2)+(AF363^2)+(AF367^2))","v":19.05255888325765},{"$f":"AG361+AG362+AG363+AG367","v":59},{"$f":"SQRT((AH361^2)+(AH362^2)+(AH363^2)+(AH367^2))","v":82.480300678404419},{"$f":"AI361+AI362+AI363+AI367","v":0},{"$f":"SQRT((AJ361^2)+(AJ362^2)+(AJ363^2)+(AJ367^2))","v":19.05255888325765},{"$f":"AK361+AK362+AK363+AK367","v":0},{"$f":"SQRT((AL361^2)+(AL362^2)+(AL363^2)+(AL367^2))","v":27.712812921102035},{"$f":"AM361+AM362+AM363+AM367","v":0},{"$f":"SQRT((AN361^2)+(AN362^2)+(AN363^2)+(AN367^2))","v":27.712812921102035}]
[null,"35.0 percent or more",{"$f":"C365+C366+C367","v":11},{"$f":"SQRT((D365^2)+(D366^2)+(D367^2))","v":16},{"$f":"E365+E366+E367","v":16},{"$f":"SQRT((F365^2)+(F366^2)+(F367^2))","v":24},{"$f":"G365+G366+G367","v":0},{"$f":"SQRT((H365^2)+(H366^2)+(H367^2))","v":11},{"$f":"I365+I366+I367","v":0},{"$f":"SQRT((J365^2)+(J366^2)+(J367^2))","v":11},{"$f":"K365+K366+K367","v":150},{"$f":"SQRT((L365^2)+(L366^2)+(L367^2))","v":105},{"$f":"M365+M366+M367","v":0},{"$f":"SQRT((N365^2)+(N366^2)+(N367^2))","v":11},{"$f":"O365+O366+O367","v":14},{"$f":"SQRT((P365^2)+(P366^2)+(P367^2))","v":19},{"$f":"Q365+Q366+Q367","v":0},{"$f":"SQRT((R365^2)+(R366^2)+(R367^2))","v":11},{"$f":"S365+S366+S367","v":0},{"$f":"SQRT((T365^2)+(T366^2)+(T367^2))","v":11},{"$f":"U365+U366+U367","v":0},{"$f":"SQRT((V365^2)+(V366^2)+(V367^2))","v":11},{"$f":"W365+W366+W367","v":0},{"$f":"SQRT((X365^2)+(X366^2)+(X367^2))","v":11},{"$f":"Y365+Y366+Y367","v":5},{"$f":"SQRT((Z365^2)+(Z366^2)+(Z367^2))","v":9},{"$f":"AA365+AA366+AA367","v":5},{"$f":"SQRT((AB365^2)+(AB366^2)+(AB367^2))","v":9},{"$f":"AC365+AC366+AC367","v":88},{"$f":"SQRT((AD365^2)+(AD366^2)+(AD367^2))","v":73},{"$f":"AE365+AE366+AE367","v":0},{"$f":"SQRT((AF365^2)+(AF366^2)+(AF367^2))","v":11},{"$f":"AG365+AG366+AG367","v":27},{"$f":"SQRT((AH365^2)+(AH366^2)+(AH367^2))","v":29},{"$f":"AI365+AI366+AI367","v":0},{"$f":"SQRT((AJ365^2)+(AJ366^2)+(AJ367^2))","v":11},{"$f":"AK365+AK366+AK367","v":14},{"$f":"SQRT((AL365^2)+(AL366^2)+(AL367^2))","v":21},{"$f":"AM365+AM366+AM367","v":103},{"$f":"SQRT((AN365^2)+(AN366^2)+(AN367^2))","v":97}]
[null,"50.0 percent or more",{"$f":"C367","v":0},0,{"$f":"E367","v":0},0,0,0,0,0,0,0,0,0,0,0,0,0,0,0,0,0,0,0,0,0,0,0,0,0,0,0,0,0,0,0,0,0,0,0]
[null,"Not Computed",0,11,{"$f":"E368","v":14},23,0,11,4,6,13,21,0,11,9,15,3,5,0,11,0,11,0,11,0,11,0,11,24,34,0,11,22,26,0,11,0,16,13,21]
[null,"$20,000 to $34,999:",{"$f":"C369","v":9},{"$f":"D369","v":11},{"$f":"E369","v":42},{"$f":"F369","v":43},{"$f":"G369","v":5},5,1,4,524,223,4,6,18,16,34,22,0,11,9,12,27,24,46,42,37,32,25,31,24,21,61,46,43,45,116,115,110,105]
[null,"Less than 30.0 percent",{"$f":"C370+C371+C372","v":7},{"$f":"SQRT((D370^2)+(D371^2)+(D372^2))","v":19.05255888325765},{"$f":"E370+E371+E372","v":12},{"$f":"SQRT((F370^2)+(F371^2)+(F372^2))","v":24.556058315617349},{"$f":"G370+G371+G372","v":0},{"$f":"SQRT((H370^2)+(H371^2)+(H372^2))","v":19.05255888325765},{"$f":"I370+I371+I372","v":0},{"$f":"SQRT((J370^2)+(J371^2)+(J372^2))","v":19.05255888325765},{"$f":"K370+K371+K372","v":178},{"$f":"SQRT((L370^2)+(L371^2)+(L372^2))","v":140.61649974309557},{"$f":"M370+M371+M372","v":0},{"$f":"SQRT((N370^2)+(N371^2)+(N372^2))","v":19.05255888325765},{"$f":"O370+O371+O372","v":0},{"$f":"SQRT((P370^2)+(P371^2)+(P372^2))","v":19.05255888325765},{"$f":"Q370+Q371+Q372","v":11},{"$f":"SQRT((R370^2)+(R371^2)+(R372^2))","v":23.043437243605826},{"$f":"S370+S371+S372","v":0},{"$f":"SQRT((T370^2)+(T371^2)+(T372^2))","v":19.05255888325765},{"$f":"U370+U371+U372","v":0},{"$f":"SQRT((V370^2)+(V371^2)+(V372^2))","v":19.05255888325765},{"$f":"W370+W371+W372","v":0},{"$f":"SQRT((X370^2)+(X371^2)+(X372^2))","v":19.05255888325765},{"$f":"Y370+Y371+Y372","v":7},{"$f":"SQRT((Z370^2)+(Z371^2)+(Z372^2))","v":18.493242008906929},{"$f":"AA370+AA371+AA372","v":0},{"$f":"SQRT((AB370^2)+(AB371^2)+(AB372^2))","v":19.05255888325765},{"$f":"AC370+AC371+AC372","v":17},{"$f":"SQRT((AD370^2)+(AD371^2)+(AD372^2))","v":32.03123475609393},{"$f":"AE370+AE371+AE372","v":0},{"$f":"SQRT((AF370^2)+(AF371^2)+(AF372^2))","v":19.05255888325765},{"$f":"AG370+AG371+AG372","v":21},{"$f":"SQRT((AH370^2)+(AH371^2)+(AH372^2))","v":37.389838191679836},{"$f":"AI370+AI371+AI372","v":0},{"$f":"SQRT((AJ370^2)+(AJ371^2)+(AJ372^2))","v":19.05255888325765},{"$f":"AK370+AK371+AK372","v":13},{"$f":"SQRT((AL370^2)+(AL371^2)+(AL372^2))","v":29.546573405388315},{"$f":"AM370+AM371+AM372","v":0},{"$f":"SQRT((AN370^2)+(AN371^2)+(AN372^2))","v":27.712812921102035}]
[null,"More than 30.0 percent",{"$f":"C373+C374+C375+C376","v":0},{"$f":"SQRT((D373^2)+(D374^2)+(D375^2)+(D376^2))","v":15.556349186104045},{"$f":"E373+E374+E375+E376","v":30},{"$f":"SQRT((F373^2)+(F374^2)+(F375^2)+(F376^2))","v":37.363083384538811},{"$f":"G373+G374+G375+G376","v":3},{"$f":"SQRT((H373^2)+(H374^2)+(H375^2)+(H376^2))","v":12.083045973594572},{"$f":"I373+I374+I375+I376","v":1},{"$f":"SQRT((J373^2)+(J374^2)+(J375^2)+(J376^2))","v":11.704699910719626},{"$f":"K373+K374+K375+K376","v":286},{"$f":"SQRT((L373^2)+(L374^2)+(L375^2)+(L376^2))","v":177.91290003819284},{"$f":"M373+M374+M375+M376","v":3},{"$f":"SQRT((N373^2)+(N374^2)+(N375^2)+(N376^2))","v":12.083045973594572},{"$f":"O373+O374+O375+O376","v":16},{"$f":"SQRT((P373^2)+(P374^2)+(P375^2)+(P376^2))","v":14.866068747318506},{"$f":"Q373+Q374+Q375+Q376","v":19},{"$f":"SQRT((R373^2)+(R374^2)+(R375^2)+(R376^2))","v":13.601470508735444},{"$f":"S373+S374+S375+S376","v":0},{"$f":"SQRT((T373^2)+(T374^2)+(T375^2)+(T376^2))","v":15.556349186104045},{"$f":"U373+U374+U375+U376","v":0},{"$f":"SQRT((V373^2)+(V374^2)+(V375^2)+(V376^2))","v":15.556349186104045},{"$f":"W373+W374+W375+W376","v":6},{"$f":"SQRT((X373^2)+(X374^2)+(X375^2)+(X376^2))","v":14.212670403551895},{"$f":"Y373+Y374+Y375+Y376","v":39},{"$f":"SQRT((Z373^2)+(Z374^2)+(Z375^2)+(Z376^2))","v":41.146081222881968},{"$f":"AA373+AA374+AA375+AA376","v":37},{"$f":"SQRT((AB373^2)+(AB374^2)+(AB375^2)+(AB376^2))","v":30.870698080866262},{"$f":"AC373+AC374+AC375+AC376","v":8},{"$f":"SQRT((AD373^2)+(AD374^2)+(AD375^2)+(AD376^2))","v":17.029386365926403},{"$f":"AE373+AE374+AE375+AE376","v":19},{"$f":"SQRT((AF373^2)+(AF374^2)+(AF375^2)+(AF376^2))","v":19.313207915827967},{"$f":"AG373+AG374+AG375+AG376","v":40},{"$f":"SQRT((AH373^2)+(AH374^2)+(AH375^2)+(AH376^2))","v":30.479501308256342},{"$f":"AI373+AI374+AI375+AI376","v":24},{"$f":"SQRT((AJ373^2)+(AJ374^2)+(AJ375^2)+(AJ376^2))","v":32.756678708318397},{"$f":"AK373+AK374+AK375+AK376","v":103},{"$f":"SQRT((AL373^2)+(AL374^2)+(AL375^2)+(AL376^2))","v":113.88590782006349},{"$f":"AM373+AM374+AM375+AM376","v":110},{"$f":"SQRT((AN373^2)+(AN374^2)+(AN375^2)+(AN376^2))","v":105.22357150372724}]
[null,"Less Than 35% of HH Income",{"$f":"C370+C371+C372+C373","v":7},{"$f":"SQRT((D370^2)+(D371^2)+(D372^2)+(D373^2))","v":22},{"$f":"E370+E371+E372+E373","v":34},{"$f":"SQRT((F370^2)+(F371^2)+(F372^2)+(F373^2))","v":43.577517139001849},{"$f":"G370+G371+G372+G373","v":0},{"$f":"SQRT((H370^2)+(H371^2)+(H372^2)+(H373^2))","v":22},{"$f":"I370+I371+I372+I373","v":0},{"$f":"SQRT((J370^2)+(J371^2)+(J372^2)+(J373^2))","v":22},{"$f":"K370+K371+K372+K373","v":178},{"$f":"SQRT((L370^2)+(L371^2)+(L372^2)+(L373^2))","v":141.7638882085279},{"$f":"M370+M371+M372+M373","v":0},{"$f":"SQRT((N370^2)+(N371^2)+(N372^2)+(N373^2))","v":22},{"$f":"O370+O371+O372+O373","v":10},{"$f":"SQRT((P370^2)+(P371^2)+(P372^2)+(P373^2))","v":23.643180835073778},{"$f":"Q370+Q371+Q372+Q373","v":20},{"$f":"SQRT((R370^2)+(R371^2)+(R372^2)+(R373^2))","v":24.392621835300936},{"$f":"S370+S371+S372+S373","v":0},{"$f":"SQRT((T370^2)+(T371^2)+(T372^2)+(T373^2))","v":22},{"$f":"U370+U371+U372+U373","v":0},{"$f":"SQRT((V370^2)+(V371^2)+(V372^2)+(V373^2))","v":22},{"$f":"W370+W371+W372+W373","v":0},{"$f":"SQRT((X370^2)+(X371^2)+(X372^2)+(X373^2))","v":22},{"$f":"Y370+Y371+Y372+Y373","v":18},{"$f":"SQRT((Z370^2)+(Z371^2)+(Z372^2)+(Z373^2))","v":25.80697580112788},{"$f":"AA370+AA371+AA372+AA373","v":14},{"$f":"SQRT((AB370^2)+(AB371^2)+(AB372^2)+(AB373^2))","v":23.065125189341593},{"$f":"AC370+AC371+AC372+AC373","v":17},{"$f":"SQRT((AD370^2)+(AD371^2)+(AD372^2)+(AD373^2))","v":33.867388443752198},{"$f":"AE370+AE371+AE372+AE373","v":5},{"$f":"SQRT((AF370^2)+(AF371^2)+(AF372^2)+(AF373^2))","v":20.297783130184438},{"$f":"AG370+AG371+AG372+AG373","v":33},{"$f":"SQRT((AH370^2)+(AH371^2)+(AH372^2)+(AH373^2))","v":42.402830094228378},{"$f":"AI370+AI371+AI372+AI373","v":20},{"$f":"SQRT((AJ370^2)+(AJ371^2)+(AJ372^2)+(AJ373^2))","v":37.242448899072144},{"$f":"AK370+AK371+AK372+AK373","v":98},{"$f":"SQRT((AL370^2)+(AL371^2)+(AL372^2)+(AL373^2))","v":112.93360881509101},{"$f":"AM370+AM371+AM372+AM373","v":10},{"$f":"SQRT((AN370^2)+(AN371^2)+(AN372^2)+(AN373^2))","v":32}]
[null,"35.0 percent or more",{"$f":"C374+C375+C376","v":0},{"$f":"SQRT((D374^2)+(D375^2)+(D376^2))","v":11},{"$f":"E374+E375+E376","v":8},{"$f":"SQRT((F374^2)+(F375^2)+(F376^2))","v":10},{"$f":"G374+G375+G376","v":3},{"$f":"SQRT((H374^2)+(H375^2)+(H376^2))","v":5},{"$f":"I374+I375+I376","v":1},{"$f":"SQRT((J374^2)+(J375^2)+(J376^2))","v":4},{"$f":"K374+K375+K376","v":286},{"$f":"SQRT((L374^2)+(L375^2)+(L376^2))","v":177},{"$f":"M374+M375+M376","v":3},{"$f":"SQRT((N374^2)+(N375^2)+(N376^2))","v":5},{"$f":"O374+O375+O376","v":6},{"$f":"SQRT((P374^2)+(P375^2)+(P376^2))","v":5},{"$f":"Q374+Q375+Q376","v":10},{"$f":"SQRT((R374^2)+(R375^2)+(R376^2))","v":11},{"$f":"S374+S375+S376","v":0},{"$f":"SQRT((T374^2)+(T375^2)+(T376^2))","v":11},{"$f":"U374+U375+U376","v":0},{"$f":"SQRT((V374^2)+(V375^2)+(V376^2))","v":11},{"$f":"W374+W375+W376","v":6},{"$f":"SQRT((X374^2)+(X375^2)+(X376^2))","v":9},{"$f":"Y374+Y375+Y376","v":28},{"$f":"SQRT((Z374^2)+(Z375^2)+(Z376^2))","v":37},{"$f":"AA374+AA375+AA376","v":23},{"$f":"SQRT((AB374^2)+(AB375^2)+(AB376^2))","v":28},{"$f":"AC374+AC375+AC376","v":8},{"$f":"SQRT((AD374^2)+(AD375^2)+(AD376^2))","v":13},{"$f":"AE374+AE375+AE376","v":14},{"$f":"SQRT((AF374^2)+(AF375^2)+(AF376^2))","v":18},{"$f":"AG374+AG375+AG376","v":28},{"$f":"SQRT((AH374^2)+(AH375^2)+(AH376^2))","v":23},{"$f":"AI374+AI375+AI376","v":4},{"$f":"SQRT((AJ374^2)+(AJ375^2)+(AJ376^2))","v":7},{"$f":"AK374+AK375+AK376","v":18},{"$f":"SQRT((AL374^2)+(AL375^2)+(AL376^2))","v":33},{"$f":"AM374+AM375+AM376","v":100},{"$f":"SQRT((AN374^2)+(AN375^2)+(AN376^2))","v":104}]
[null,"50.0 percent or more",{"$f":"C376","v":0},0,{"$f":"E376","v":0},0,0,0,0,0,0,0,0,0,0,0,0,0,0,0,0,0,0,0,0,0,0,0,0,0,0,0,0,0,0,0,0,0,0,0]
[null,"Not Computed",2,3,{"$f":"E377","v":0},11,2,4,0,11,60,66,1,3,2,3,4,7,0,11,9,12,21,22,0,11,0,11,0,11,5,7,0,11,19,24,0,16,0,16]
[null,"$35,000 to $49,999:",4,6,{"$f":"E378","v":83},61,10,18,0,11,187,117,4,6,4,5,24,23,0,11,8,12,15,12,50,40,10,16,53,49,31,23,46,69,10,15,49,61,94,97]
[null,"Less than 30.0 percent",{"$f":"C379+C380+C381","v":0},{"$f":"SQRT((D379^2)+(D380^2)+(D381^2))","v":19.05255888325765},{"$f":"E379+E380+E381","v":49},{"$f":"SQRT((F379^2)+(F380^2)+(F381^2))","v":56.196085272908469},{"$f":"G379+G380+G381","v":0},{"$f":"SQRT((H379^2)+(H380^2)+(H381^2))","v":19.05255888325765},{"$f":"I379+I380+I381","v":0},{"$f":"SQRT((J379^2)+(J380^2)+(J381^2))","v":19.05255888325765},{"$f":"K379+K380+K381","v":124},{"$f":"SQRT((L379^2)+(L380^2)+(L381^2))","v":97.744565066299216},{"$f":"M379+M380+M381","v":4},{"$f":"SQRT((N379^2)+(N380^2)+(N381^2))","v":16.673332000533065},{"$f":"O379+O380+O381","v":4},{"$f":"SQRT((P379^2)+(P380^2)+(P381^2))","v":16.340134638368191},{"$f":"Q379+Q380+Q381","v":24},{"$f":"SQRT((R379^2)+(R380^2)+(R381^2))","v":25.317977802344327},{"$f":"S379+S380+S381","v":0},{"$f":"SQRT((T379^2)+(T380^2)+(T381^2))","v":19.05255888325765},{"$f":"U379+U380+U381","v":0},{"$f":"SQRT((V379^2)+(V380^2)+(V381^2))","v":19.05255888325765},{"$f":"W379+W380+W381","v":6},{"$f":"SQRT((X379^2)+(X380^2)+(X381^2))","v":17.972200755611428},{"$f":"Y379+Y380+Y381","v":0},{"$f":"SQRT((Z379^2)+(Z380^2)+(Z381^2))","v":19.05255888325765},{"$f":"AA379+AA380+AA381","v":0},{"$f":"SQRT((AB379^2)+(AB380^2)+(AB381^2))","v":19.05255888325765},{"$f":"AC379+AC380+AC381","v":10},{"$f":"SQRT((AD379^2)+(AD380^2)+(AD381^2))","v":23.043437243605826},{"$f":"AE379+AE380+AE381","v":16},{"$f":"SQRT((AF379^2)+(AF380^2)+(AF381^2))","v":25.337718918639855},{"$f":"AG379+AG380+AG381","v":46},{"$f":"SQRT((AH379^2)+(AH380^2)+(AH381^2))","v":70.731888141064076},{"$f":"AI379+AI380+AI381","v":0},{"$f":"SQRT((AJ379^2)+(AJ380^2)+(AJ381^2))","v":19.05255888325765},{"$f":"AK379+AK380+AK381","v":0},{"$f":"SQRT((AL379^2)+(AL380^2)+(AL381^2))","v":27.712812921102035},{"$f":"AM379+AM380+AM381","v":77},{"$f":"SQRT((AN379^2)+(AN380^2)+(AN381^2))","v":96.208107766445551}]
[null,"More than 30.0 percent",{"$f":"C382+C383+C384+C385","v":2},{"$f":"SQRT((D382^2)+(D383^2)+(D384^2)+(D385^2))","v":11.704699910719626},{"$f":"E382+E383+E384+E385","v":17},{"$f":"SQRT((F382^2)+(F383^2)+(F384^2)+(F385^2))","v":28.231188426986208},{"$f":"G382+G383+G384+G385","v":0},{"$f":"SQRT((H382^2)+(H383^2)+(H384^2)+(H385^2))","v":15.556349186104045},{"$f":"I382+I383+I384+I385","v":0},{"$f":"SQRT((J382^2)+(J383^2)+(J384^2)+(J385^2))","v":15.556349186104045},{"$f":"K382+K383+K384+K385","v":63},{"$f":"SQRT((L382^2)+(L383^2)+(L384^2)+(L385^2))","v":73.246160308919954},{"$f":"M382+M383+M384+M385","v":0},{"$f":"SQRT((N382^2)+(N383^2)+(N384^2)+(N385^2))","v":15.556349186104045},{"$f":"O382+O383+O384+O385","v":0},{"$f":"SQRT((P382^2)+(P383^2)+(P384^2)+(P385^2))","v":15.556349186104045},{"$f":"Q382+Q383+Q384+Q385","v":0},{"$f":"SQRT((R382^2)+(R383^2)+(R384^2)+(R385^2))","v":15.556349186104045},{"$f":"S382+S383+S384+S385","v":0},{"$f":"SQRT((T382^2)+(T383^2)+(T384^2)+(T385^2))","v":15.556349186104045},{"$f":"U382+U383+U384+U385","v":8},{"$f":"SQRT((V382^2)+(V383^2)+(V384^2)+(V385^2))","v":16.278820596099706},{"$f":"W382+W383+W384+W385","v":0},{"$f":"SQRT((X382^2)+(X383^2)+(X384^2)+(X385^2))","v":15.556349186104045},{"$f":"Y382+Y383+Y384+Y385","v":31},{"$f":"SQRT((Z382^2)+(Z383^2)+(Z384^2)+(Z385^2))","v":31.953090617340916},{"$f":"AA382+AA383+AA384+AA385","v":10},{"$f":"SQRT((AB382^2)+(AB383^2)+(AB384^2)+(AB385^2))","v":19.416487838947599},{"$f":"AC382+AC383+AC384+AC385","v":43},{"$f":"SQRT((AD382^2)+(AD383^2)+(AD384^2)+(AD385^2))","v":56.089214649520635},{"$f":"AE382+AE383+AE384+AE385","v":15},{"$f":"SQRT((AF382^2)+(AF383^2)+(AF384^2)+(AF385^2))","v":12.083045973594572},{"$f":"AG382+AG383+AG384+AG385","v":0},{"$f":"SQRT((AH382^2)+(AH383^2)+(AH384^2)+(AH385^2))","v":15.556349186104045},{"$f":"AI382+AI383+AI384+AI385","v":10},{"$f":"SQRT((AJ382^2)+(AJ383^2)+(AJ384^2)+(AJ385^2))","v":18.601075237738275},{"$f":"AK382+AK383+AK384+AK385","v":33},{"$f":"SQRT((AL382^2)+(AL383^2)+(AL384^2)+(AL385^2))","v":46.818799642878503},{"$f":"AM382+AM383+AM384+AM385","v":17},{"$f":"SQRT((AN382^2)+(AN383^2)+(AN384^2)+(AN385^2))","v":30.528675044947494}]
[null,"Less Than 35% of HH Income",{"$f":"C379+C380+C381+C382","v":2},{"$f":"SQRT((D379^2)+(D380^2)+(D381^2)+(D382^2))","v":19.467922333931785},{"$f":"E379+E380+E381+E382","v":66},{"$f":"SQRT((F379^2)+(F380^2)+(F381^2)+(F382^2))","v":61.919302321650882},{"$f":"G379+G380+G381+G382","v":0},{"$f":"SQRT((H379^2)+(H380^2)+(H381^2)+(H382^2))","v":22},{"$f":"I379+I380+I381+I382","v":0},{"$f":"SQRT((J379^2)+(J380^2)+(J381^2)+(J382^2))","v":22},{"$f":"K379+K380+K381+K382","v":187},{"$f":"SQRT((L379^2)+(L380^2)+(L381^2)+(L382^2))","v":120.80976781701055},{"$f":"M379+M380+M381+M382","v":4},{"$f":"SQRT((N379^2)+(N380^2)+(N381^2)+(N382^2))","v":19.974984355438178},{"$f":"O379+O380+O381+O382","v":4},{"$f":"SQRT((P379^2)+(P380^2)+(P381^2)+(P382^2))","v":19.697715603592208},{"$f":"Q379+Q380+Q381+Q382","v":24},{"$f":"SQRT((R379^2)+(R380^2)+(R381^2)+(R382^2))","v":27.604347483684521},{"$f":"S379+S380+S381+S382","v":0},{"$f":"SQRT((T379^2)+(T380^2)+(T381^2)+(T382^2))","v":22},{"$f":"U379+U380+U381+U382","v":0},{"$f":"SQRT((V379^2)+(V380^2)+(V381^2)+(V382^2))","v":22},{"$f":"W379+W380+W381+W382","v":6},{"$f":"SQRT((X379^2)+(X380^2)+(X381^2)+(X382^2))","v":21.071307505705477},{"$f":"Y379+Y380+Y381+Y382","v":31},{"$f":"SQRT((Z379^2)+(Z380^2)+(Z381^2)+(Z382^2))","v":35.538711287833721},{"$f":"AA379+AA380+AA381+AA382","v":0},{"$f":"SQRT((AB379^2)+(AB380^2)+(AB381^2)+(AB382^2))","v":22},{"$f":"AC379+AC380+AC381+AC382","v":10},{"$f":"SQRT((AD379^2)+(AD380^2)+(AD381^2)+(AD382^2))","v":25.534290669607408},{"$f":"AE379+AE380+AE381+AE382","v":28},{"$f":"SQRT((AF379^2)+(AF380^2)+(AF381^2)+(AF382^2))","v":27.622454633866266},{"$f":"AG379+AG380+AG381+AG382","v":46},{"$f":"SQRT((AH379^2)+(AH380^2)+(AH381^2)+(AH382^2))","v":71.582120672693122},{"$f":"AI379+AI380+AI381+AI382","v":10},{"$f":"SQRT((AJ379^2)+(AJ380^2)+(AJ381^2)+(AJ382^2))","v":24.248711305964282},{"$f":"AK379+AK380+AK381+AK382","v":0},{"$f":"SQRT((AL379^2)+(AL380^2)+(AL381^2)+(AL382^2))","v":32},{"$f":"AM379+AM380+AM381+AM382","v":77},{"$f":"SQRT((AN379^2)+(AN380^2)+(AN381^2)+(AN382^2))","v":97.529482721892876}]
[null,"35.0 percent or more",{"$f":"C383+C384+C385","v":0},{"$f":"SQRT((D383^2)+(D384^2)+(D385^2))","v":11},{"$f":"E383+E384+E385","v":0},{"$f":"SQRT((F383^2)+(F384^2)+(F385^2))","v":11},{"$f":"G383+G384+G385","v":0},{"$f":"SQRT((H383^2)+(H384^2)+(H385^2))","v":11},{"$f":"I383+I384+I385","v":0},{"$f":"SQRT((J383^2)+(J384^2)+(J385^2))","v":11},{"$f":"K383+K384+K385","v":0},{"$f":"SQRT((L383^2)+(L384^2)+(L385^2))","v":18},{"$f":"M383+M384+M385","v":0},{"$f":"SQRT((N383^2)+(N384^2)+(N385^2))","v":11},{"$f":"O383+O384+O385","v":0},{"$f":"SQRT((P383^2)+(P384^2)+(P385^2))","v":11},{"$f":"Q383+Q384+Q385","v":0},{"$f":"SQRT((R383^2)+(R384^2)+(R385^2))","v":11},{"$f":"S383+S384+S385","v":0},{"$f":"SQRT((T383^2)+(T384^2)+(T385^2))","v":11},{"$f":"U383+U384+U385","v":8},{"$f":"SQRT((V383^2)+(V384^2)+(V385^2))","v":12},{"$f":"W383+W384+W385","v":0},{"$f":"SQRT((X383^2)+(X384^2)+(X385^2))","v":11},{"$f":"Y383+Y384+Y385","v":0},{"$f":"SQRT((Z383^2)+(Z384^2)+(Z385^2))","v":11},{"$f":"AA383+AA384+AA385","v":10},{"$f":"SQRT((AB383^2)+(AB384^2)+(AB385^2))","v":16},{"$f":"AC383+AC384+AC385","v":43},{"$f":"SQRT((AD383^2)+(AD384^2)+(AD385^2))","v":55},{"$f":"AE383+AE384+AE385","v":3},{"$f":"SQRT((AF383^2)+(AF384^2)+(AF385^2))","v":5},{"$f":"AG383+AG384+AG385","v":0},{"$f":"SQRT((AH383^2)+(AH384^2)+(AH385^2))","v":11},{"$f":"AI383+AI384+AI385","v":0},{"$f":"SQRT((AJ383^2)+(AJ384^2)+(AJ385^2))","v":11},{"$f":"AK383+AK384+AK385","v":33},{"$f":"SQRT((AL383^2)+(AL384^2)+(AL385^2))","v":44},{"$f":"AM383+AM384+AM385","v":17},{"$f":"SQRT((AN383^2)+(AN384^2)+(AN385^2))","v":26}]
[null,"50.0 percent or more",{"$f":"C385","v":0},0,{"$f":"E385","v":0},0,0,0,0,0,0,0,0,0,0,0,0,0,0,0,0,0,0,0,0,0,0,0,0,0,0,0,0,0,0,0,0,0,0,0]
[null,"Not Computed",2,4,{"$f":"E386","v":17},27,10,18,0,11,0,18,0,11,0,11,0,11,0,11,0,11,9,9,19,30,0,11,0,11,0,11,0,11,0,11,16,25,0,16]
[null,"$50,000 to $74,999:",10,12,{"$f":"E387","v":55},57,0,11,11,10,219,112,5,6,5,8,5,7,0,11,2,4,17,16,70,51,66,53,19,22,11,14,34,36,62,51,28,44,38,36]
[null,"Less than 30.0 percent",{"$f":"C388+C389+C390","v":10},{"$f":"SQRT((D388^2)+(D389^2)+(D390^2))","v":16.552945357246848},{"$f":"E388+E389+E390","v":55},{"$f":"SQRT((F388^2)+(F389^2)+(F390^2))","v":56.524331044250317},{"$f":"G388+G389+G390","v":0},{"$f":"SQRT((H388^2)+(H389^2)+(H390^2))","v":19.05255888325765},{"$f":"I388+I389+I390","v":6},{"$f":"SQRT((J388^2)+(J389^2)+(J390^2))","v":17.972200755611428},{"$f":"K388+K389+K390","v":179},{"$f":"SQRT((L388^2)+(L389^2)+(L390^2))","v":95.226046856939305},{"$f":"M388+M389+M390","v":5},{"$f":"SQRT((N388^2)+(N389^2)+(N390^2))","v":13.152946437965905},{"$f":"O388+O389+O390","v":5},{"$f":"SQRT((P388^2)+(P389^2)+(P390^2))","v":17.4928556845359},{"$f":"Q388+Q389+Q390","v":5},{"$f":"SQRT((R388^2)+(R389^2)+(R390^2))","v":17.058722109231979},{"$f":"S388+S389+S390","v":0},{"$f":"SQRT((T388^2)+(T389^2)+(T390^2))","v":19.05255888325765},{"$f":"U388+U389+U390","v":2},{"$f":"SQRT((V388^2)+(V389^2)+(V390^2))","v":16.06237840420901},{"$f":"W388+W389+W390","v":17},{"$f":"SQRT((X388^2)+(X389^2)+(X390^2))","v":16.186414056238647},{"$f":"Y388+Y389+Y390","v":70},{"$f":"SQRT((Z388^2)+(Z389^2)+(Z390^2))","v":53.469617541179403},{"$f":"AA388+AA389+AA390","v":37},{"$f":"SQRT((AB388^2)+(AB389^2)+(AB390^2))","v":35.057096285916209},{"$f":"AC388+AC389+AC390","v":19},{"$f":"SQRT((AD388^2)+(AD389^2)+(AD390^2))","v":24.535688292770594},{"$f":"AE388+AE389+AE390","v":11},{"$f":"SQRT((AF388^2)+(AF389^2)+(AF390^2))","v":17.748239349298849},{"$f":"AG388+AG389+AG390","v":13},{"$f":"SQRT((AH388^2)+(AH389^2)+(AH390^2))","v":24.556058315617349},{"$f":"AI388+AI389+AI390","v":37},{"$f":"SQRT((AJ388^2)+(AJ389^2)+(AJ390^2))","v":42.918527467749868},{"$f":"AK388+AK389+AK390","v":28},{"$f":"SQRT((AL388^2)+(AL389^2)+(AL390^2))","v":49.477267507411923},{"$f":"AM388+AM389+AM390","v":13},{"$f":"SQRT((AN388^2)+(AN389^2)+(AN390^2))","v":31.559467676118999}]
[null,"More than 30.0 percent",{"$f":"C391+C392+C393+C394","v":0},{"$f":"SQRT((D391^2)+(D392^2)+(D393^2)+(D394^2))","v":15.556349186104045},{"$f":"E391+E392+E393+E394","v":0},{"$f":"SQRT((F391^2)+(F392^2)+(F393^2)+(F394^2))","v":15.556349186104045},{"$f":"G391+G392+G393+G394","v":0},{"$f":"SQRT((H391^2)+(H392^2)+(H393^2)+(H394^2))","v":15.556349186104045},{"$f":"I391+I392+I393+I394","v":5},{"$f":"SQRT((J391^2)+(J392^2)+(J393^2)+(J394^2))","v":13.601470508735444},{"$f":"K391+K392+K393+K394","v":40},{"$f":"SQRT((L391^2)+(L392^2)+(L393^2)+(L394^2))","v":57.870545184921149},{"$f":"M391+M392+M393+M394","v":0},{"$f":"SQRT((N391^2)+(N392^2)+(N393^2)+(N394^2))","v":15.556349186104045},{"$f":"O391+O392+O393+O394","v":0},{"$f":"SQRT((P391^2)+(P392^2)+(P393^2)+(P394^2))","v":15.556349186104045},{"$f":"Q391+Q392+Q393+Q394","v":0},{"$f":"SQRT((R391^2)+(R392^2)+(R393^2)+(R394^2))","v":15.556349186104045},{"$f":"S391+S392+S393+S394","v":0},{"$f":"SQRT((T391^2)+(T392^2)+(T393^2)+(T394^2))","v":15.556349186104045},{"$f":"U391+U392+U393+U394","v":0},{"$f":"SQRT((V391^2)+(V392^2)+(V393^2)+(V394^2))","v":15.556349186104045},{"$f":"W391+W392+W393+W394","v":0},{"$f":"SQRT((X391^2)+(X392^2)+(X393^2)+(X394^2))","v":15.556349186104045},{"$f":"Y391+Y392+Y393+Y394","v":0},{"$f":"SQRT((Z391^2)+(Z392^2)+(Z393^2)+(Z394^2))","v":15.556349186104045},{"$f":"AA391+AA392+AA393+AA394","v":0},{"$f":"SQRT((AB391^2)+(AB392^2)+(AB393^2)+(AB394^2))","v":15.556349186104045},{"$f":"AC391+AC392+AC393+AC394","v":0},{"$f":"SQRT((AD391^2)+(AD392^2)+(AD393^2)+(AD394^2))","v":15.556349186104045},{"$f":"AE391+AE392+AE393+AE394","v":0},{"$f":"SQRT((AF391^2)+(AF392^2)+(AF393^2)+(AF394^2))","v":15.556349186104045},{"$f":"AG391+AG392+AG393+AG394","v":21},{"$f":"SQRT((AH391^2)+(AH392^2)+(AH393^2)+(AH394^2))","v":32.893768406797051},{"$f":"AI391+AI392+AI393+AI394","v":0},{"$f":"SQRT((AJ391^2)+(AJ392^2)+(AJ393^2)+(AJ394^2))","v":15.556349186104045},{"$f":"AK391+AK392+AK393+AK394","v":0},{"$f":"SQRT((AL391^2)+(AL392^2)+(AL393^2)+(AL394^2))","v":22.627416997969522},{"$f":"AM391+AM392+AM393+AM394","v":25},{"$f":"SQRT((AN391^2)+(AN392^2)+(AN393^2)+(AN394^2))","v":33.120990323358392}]
[null,"Less Than 35% of HH Income",{"$f":"C388+C389+C390+C391","v":10},{"$f":"SQRT((D388^2)+(D389^2)+(D390^2)+(D391^2))","v":19.874606914351791},{"$f":"E388+E389+E390+E391","v":55},{"$f":"SQRT((F388^2)+(F389^2)+(F390^2)+(F391^2))","v":57.584720195551874},{"$f":"G388+G389+G390+G391","v":0},{"$f":"SQRT((H388^2)+(H389^2)+(H390^2)+(H391^2))","v":22},{"$f":"I388+I389+I390+I391","v":6},{"$f":"SQRT((J388^2)+(J389^2)+(J390^2)+(J391^2))","v":21.071307505705477},{"$f":"K388+K389+K390+K391","v":219},{"$f":"SQRT((L388^2)+(L389^2)+(L390^2)+(L391^2))","v":109.96817721504708},{"$f":"M388+M389+M390+M391","v":5},{"$f":"SQRT((N388^2)+(N389^2)+(N390^2)+(N391^2))","v":17.146428199482248},{"$f":"O388+O389+O390+O391","v":5},{"$f":"SQRT((P388^2)+(P389^2)+(P390^2)+(P391^2))","v":20.663978319771825},{"$f":"Q388+Q389+Q390+Q391","v":5},{"$f":"SQRT((R388^2)+(R389^2)+(R390^2)+(R391^2))","v":20.297783130184438},{"$f":"S388+S389+S390+S391","v":0},{"$f":"SQRT((T388^2)+(T389^2)+(T390^2)+(T391^2))","v":22},{"$f":"U388+U389+U390+U391","v":2},{"$f":"SQRT((V388^2)+(V389^2)+(V390^2)+(V391^2))","v":19.467922333931785},{"$f":"W388+W389+W390+W391","v":17},{"$f":"SQRT((X388^2)+(X389^2)+(X390^2)+(X391^2))","v":19.570385790780925},{"$f":"Y388+Y389+Y390+Y391","v":70},{"$f":"SQRT((Z388^2)+(Z389^2)+(Z390^2)+(Z391^2))","v":54.589376255824725},{"$f":"AA388+AA389+AA390+AA391","v":37},{"$f":"SQRT((AB388^2)+(AB389^2)+(AB390^2)+(AB391^2))","v":36.742346141747674},{"$f":"AC388+AC389+AC390+AC391","v":19},{"$f":"SQRT((AD388^2)+(AD389^2)+(AD390^2)+(AD391^2))","v":26.888659319497503},{"$f":"AE388+AE389+AE390+AE391","v":11},{"$f":"SQRT((AF388^2)+(AF389^2)+(AF390^2)+(AF391^2))","v":20.880613017821101},{"$f":"AG388+AG389+AG390+AG391","v":34},{"$f":"SQRT((AH388^2)+(AH389^2)+(AH390^2)+(AH391^2))","v":39.547439866570379},{"$f":"AI388+AI389+AI390+AI391","v":37},{"$f":"SQRT((AJ388^2)+(AJ389^2)+(AJ390^2)+(AJ391^2))","v":44.305755833751441},{"$f":"AK388+AK389+AK390+AK391","v":28},{"$f":"SQRT((AL388^2)+(AL389^2)+(AL390^2)+(AL391^2))","v":52},{"$f":"AM388+AM389+AM390+AM391","v":13},{"$f":"SQRT((AN388^2)+(AN389^2)+(AN390^2)+(AN391^2))","v":35.383612025908263}]
[null,"35.0 percent or more",{"$f":"C392+C393+C394","v":0},{"$f":"SQRT((D392^2)+(D393^2)+(D394^2))","v":11},{"$f":"E392+E393+E394","v":0},{"$f":"SQRT((F392^2)+(F393^2)+(F394^2))","v":11},{"$f":"G392+G393+G394","v":0},{"$f":"SQRT((H392^2)+(H393^2)+(H394^2))","v":11},{"$f":"I392+I393+I394","v":5},{"$f":"SQRT((J392^2)+(J393^2)+(J394^2))","v":8},{"$f":"K392+K393+K394","v":0},{"$f":"SQRT((L392^2)+(L393^2)+(L394^2))","v":18},{"$f":"M392+M393+M394","v":0},{"$f":"SQRT((N392^2)+(N393^2)+(N394^2))","v":11},{"$f":"O392+O393+O394","v":0},{"$f":"SQRT((P392^2)+(P393^2)+(P394^2))","v":11},{"$f":"Q392+Q393+Q394","v":0},{"$f":"SQRT((R392^2)+(R393^2)+(R394^2))","v":11},{"$f":"S392+S393+S394","v":0},{"$f":"SQRT((T392^2)+(T393^2)+(T394^2))","v":11},{"$f":"U392+U393+U394","v":0},{"$f":"SQRT((V392^2)+(V393^2)+(V394^2))","v":11},{"$f":"W392+W393+W394","v":0},{"$f":"SQRT((X392^2)+(X393^2)+(X394^2))","v":11},{"$f":"Y392+Y393+Y394","v":0},{"$f":"SQRT((Z392^2)+(Z393^2)+(Z394^2))","v":11},{"$f":"AA392+AA393+AA394","v":0},{"$f":"SQRT((AB392^2)+(AB393^2)+(AB394^2))","v":11},{"$f":"AC392+AC393+AC394","v":0},{"$f":"SQRT((AD392^2)+(AD393^2)+(AD394^2))","v":11},{"$f":"AE392+AE393+AE394","v":0},{"$f":"SQRT((AF392^2)+(AF393^2)+(AF394^2))","v":11},{"$f":"AG392+AG393+AG394","v":0},{"$f":"SQRT((AH392^2)+(AH393^2)+(AH394^2))","v":11},{"$f":"AI392+AI393+AI394","v":0},{"$f":"SQRT((AJ392^2)+(AJ393^2)+(AJ394^2))","v":11},{"$f":"AK392+AK393+AK394","v":0},{"$f":"SQRT((AL392^2)+(AL393^2)+(AL394^2))","v":16},{"$f":"AM392+AM393+AM394","v":25},{"$f":"SQRT((AN392^2)+(AN393^2)+(AN394^2))","v":29}]
[null,"50.0 percent or more",{"$f":"C394","v":0},0,{"$f":"E394","v":0},0,0,0,0,0,0,0,0,0,0,0,0,0,0,0,0,0,0,0,0,0,0,0,0,0,0,0,0,0,0,0,0,0,0,0]
[null,"Not Computed",0,11,{"$f":"E395","v":0},11,0,11,0,11,0,18,0,11,0,11,0,11,0,11,0,11,0,11,0,11,29,36,0,11,0,11,0,11,25,31,0,16,0,16]
[null,"$75,000 to $99,999:",8,9,{"$f":"E396","v":0},11,0,11,0,11,76,67,2,4,0,11,4,6,0,11,2,3,5,8,15,24,9,15,26,40,7,9,0,11,5,8,0,16,16,32]
[null,"Less than 30.0 percent",{"$f":"C397+C398+C399","v":8},{"$f":"SQRT((D397^2)+(D398^2)+(D399^2))","v":17.972200755611428},{"$f":"E397+E398+E399","v":0},{"$f":"SQRT((F397^2)+(F398^2)+(F399^2))","v":19.05255888325765},{"$f":"G397+G398+G399","v":0},{"$f":"SQRT((H397^2)+(H398^2)+(H399^2))","v":19.05255888325765},{"$f":"I397+I398+I399","v":0},{"$f":"SQRT((J397^2)+(J398^2)+(J399^2))","v":19.05255888325765},{"$f":"K397+K398+K399","v":55},{"$f":"SQRT((L397^2)+(L398^2)+(L399^2))","v":62.425956140054431},{"$f":"M397+M398+M399","v":2},{"$f":"SQRT((N397^2)+(N398^2)+(N399^2))","v":16.06237840420901},{"$f":"O397+O398+O399","v":0},{"$f":"SQRT((P397^2)+(P398^2)+(P399^2))","v":19.05255888325765},{"$f":"Q397+Q398+Q399","v":4},{"$f":"SQRT((R397^2)+(R398^2)+(R399^2))","v":16.673332000533065},{"$f":"S397+S398+S399","v":0},{"$f":"SQRT((T397^2)+(T398^2)+(T399^2))","v":19.05255888325765},{"$f":"U397+U398+U399","v":2},{"$f":"SQRT((V397^2)+(V398^2)+(V399^2))","v":15.842979517754859},{"$f":"W397+W398+W399","v":5},{"$f":"SQRT((X397^2)+(X398^2)+(X399^2))","v":17.4928556845359},{"$f":"Y397+Y398+Y399","v":15},{"$f":"SQRT((Z397^2)+(Z398^2)+(Z399^2))","v":28.600699292150182},{"$f":"AA397+AA398+AA399","v":0},{"$f":"SQRT((AB397^2)+(AB398^2)+(AB399^2))","v":19.05255888325765},{"$f":"AC397+AC398+AC399","v":26},{"$f":"SQRT((AD397^2)+(AD398^2)+(AD399^2))","v":42.918527467749868},{"$f":"AE397+AE398+AE399","v":7},{"$f":"SQRT((AF397^2)+(AF398^2)+(AF399^2))","v":13.964240043768941},{"$f":"AG397+AG398+AG399","v":0},{"$f":"SQRT((AH397^2)+(AH398^2)+(AH399^2))","v":19.05255888325765},{"$f":"AI397+AI398+AI399","v":0},{"$f":"SQRT((AJ397^2)+(AJ398^2)+(AJ399^2))","v":19.05255888325765},{"$f":"AK397+AK398+AK399","v":0},{"$f":"SQRT((AL397^2)+(AL398^2)+(AL399^2))","v":27.712812921102035},{"$f":"AM397+AM398+AM399","v":16},{"$f":"SQRT((AN397^2)+(AN398^2)+(AN399^2))","v":39.191835884530846}]
[null,"More than 30.0 percent",{"$f":"C400+C401+C402+C403","v":0},{"$f":"SQRT((D400^2)+(D401^2)+(D402^2)+(D403^2))","v":15.556349186104045},{"$f":"E400+E401+E402+E403","v":0},{"$f":"SQRT((F400^2)+(F401^2)+(F402^2)+(F403^2))","v":15.556349186104045},{"$f":"G400+G401+G402+G403","v":0},{"$f":"SQRT((H400^2)+(H401^2)+(H402^2)+(H403^2))","v":15.556349186104045},{"$f":"I400+I401+I402+I403","v":0},{"$f":"SQRT((J400^2)+(J401^2)+(J402^2)+(J403^2))","v":15.556349186104045},{"$f":"K400+K401+K402+K403","v":0},{"$f":"SQRT((L400^2)+(L401^2)+(L402^2)+(L403^2))","v":25.45584412271571},{"$f":"M400+M401+M402+M403","v":0},{"$f":"SQRT((N400^2)+(N401^2)+(N402^2)+(N403^2))","v":15.556349186104045},{"$f":"O400+O401+O402+O403","v":0},{"$f":"SQRT((P400^2)+(P401^2)+(P402^2)+(P403^2))","v":15.556349186104045},{"$f":"Q400+Q401+Q402+Q403","v":0},{"$f":"SQRT((R400^2)+(R401^2)+(R402^2)+(R403^2))","v":15.556349186104045},{"$f":"S400+S401+S402+S403","v":0},{"$f":"SQRT((T400^2)+(T401^2)+(T402^2)+(T403^2))","v":15.556349186104045},{"$f":"U400+U401+U402+U403","v":0},{"$f":"SQRT((V400^2)+(V401^2)+(V402^2)+(V403^2))","v":15.556349186104045},{"$f":"W400+W401+W402+W403","v":0},{"$f":"SQRT((X400^2)+(X401^2)+(X402^2)+(X403^2))","v":15.556349186104045},{"$f":"Y400+Y401+Y402+Y403","v":0},{"$f":"SQRT((Z400^2)+(Z401^2)+(Z402^2)+(Z403^2))","v":15.556349186104045},{"$f":"AA400+AA401+AA402+AA403","v":9},{"$f":"SQRT((AB400^2)+(AB401^2)+(AB402^2)+(AB403^2))","v":18.601075237738275},{"$f":"AC400+AC401+AC402+AC403","v":0},{"$f":"SQRT((AD400^2)+(AD401^2)+(AD402^2)+(AD403^2))","v":15.556349186104045},{"$f":"AE400+AE401+AE402+AE403","v":0},{"$f":"SQRT((AF400^2)+(AF401^2)+(AF402^2)+(AF403^2))","v":15.556349186104045},{"$f":"AG400+AG401+AG402+AG403","v":0},{"$f":"SQRT((AH400^2)+(AH401^2)+(AH402^2)+(AH403^2))","v":15.556349186104045},{"$f":"AI400+AI401+AI402+AI403","v":0},{"$f":"SQRT((AJ400^2)+(AJ401^2)+(AJ402^2)+(AJ403^2))","v":15.556349186104045},{"$f":"AK400+AK401+AK402+AK403","v":0},{"$f":"SQRT((AL400^2)+(AL401^2)+(AL402^2)+(AL403^2))","v":22.627416997969522},{"$f":"AM400+AM401+AM402+AM403","v":0},{"$f":"SQRT((AN400^2)+(AN401^2)+(AN402^2)+(AN403^2))","v":22.627416997969522}]
[null,"Less Than 35% of HH Income",{"$f":"C397+C398+C399+C400","v":8},{"$f":"SQRT((D397^2)+(D398^2)+(D399^2)+(D400^2))","v":21.071307505705477},{"$f":"E397+E398+E399+E400","v":0},{"$f":"SQRT((F397^2)+(F398^2)+(F399^2)+(F400^2))","v":22},{"$f":"G397+G398+G399+G400","v":0},{"$f":"SQRT((H397^2)+(H398^2)+(H399^2)+(H400^2))","v":22},{"$f":"I397+I398+I399+I400","v":0},{"$f":"SQRT((J397^2)+(J398^2)+(J399^2)+(J400^2))","v":22},{"$f":"K397+K398+K399+K400","v":55},{"$f":"SQRT((L397^2)+(L398^2)+(L399^2)+(L400^2))","v":64.969223483123145},{"$f":"M397+M398+M399+M400","v":2},{"$f":"SQRT((N397^2)+(N398^2)+(N399^2)+(N400^2))","v":19.467922333931785},{"$f":"O397+O398+O399+O400","v":0},{"$f":"SQRT((P397^2)+(P398^2)+(P399^2)+(P400^2))","v":22},{"$f":"Q397+Q398+Q399+Q400","v":4},{"$f":"SQRT((R397^2)+(R398^2)+(R399^2)+(R400^2))","v":19.974984355438178},{"$f":"S397+S398+S399+S400","v":0},{"$f":"SQRT((T397^2)+(T398^2)+(T399^2)+(T400^2))","v":22},{"$f":"U397+U398+U399+U400","v":2},{"$f":"SQRT((V397^2)+(V398^2)+(V399^2)+(V400^2))","v":19.28730152198591},{"$f":"W397+W398+W399+W400","v":5},{"$f":"SQRT((X397^2)+(X398^2)+(X399^2)+(X400^2))","v":20.663978319771825},{"$f":"Y397+Y398+Y399+Y400","v":15},{"$f":"SQRT((Z397^2)+(Z398^2)+(Z399^2)+(Z400^2))","v":30.643106892089126},{"$f":"AA397+AA398+AA399+AA400","v":9},{"$f":"SQRT((AB397^2)+(AB398^2)+(AB399^2)+(AB400^2))","v":24.248711305964282},{"$f":"AC397+AC398+AC399+AC400","v":26},{"$f":"SQRT((AD397^2)+(AD398^2)+(AD399^2)+(AD400^2))","v":44.305755833751441},{"$f":"AE397+AE398+AE399+AE400","v":7},{"$f":"SQRT((AF397^2)+(AF398^2)+(AF399^2)+(AF400^2))","v":17.776388834631177},{"$f":"AG397+AG398+AG399+AG400","v":0},{"$f":"SQRT((AH397^2)+(AH398^2)+(AH399^2)+(AH400^2))","v":22},{"$f":"AI397+AI398+AI399+AI400","v":0},{"$f":"SQRT((AJ397^2)+(AJ398^2)+(AJ399^2)+(AJ400^2))","v":22},{"$f":"AK397+AK398+AK399+AK400","v":0},{"$f":"SQRT((AL397^2)+(AL398^2)+(AL399^2)+(AL400^2))","v":32},{"$f":"AM397+AM398+AM399+AM400","v":16},{"$f":"SQRT((AN397^2)+(AN398^2)+(AN399^2)+(AN400^2))","v":42.332020977033451}]
[null,"35.0 percent or more",{"$f":"C401+C402+C403","v":0},{"$f":"SQRT((D401^2)+(D402^2)+(D403^2))","v":11},{"$f":"E401+E402+E403","v":0},{"$f":"SQRT((F401^2)+(F402^2)+(F403^2))","v":11},{"$f":"G401+G402+G403","v":0},{"$f":"SQRT((H401^2)+(H402^2)+(H403^2))","v":11},{"$f":"I401+I402+I403","v":0},{"$f":"SQRT((J401^2)+(J402^2)+(J403^2))","v":11},{"$f":"K401+K402+K403","v":0},{"$f":"SQRT((L401^2)+(L402^2)+(L403^2))","v":18},{"$f":"M401+M402+M403","v":0},{"$f":"SQRT((N401^2)+(N402^2)+(N403^2))","v":11},{"$f":"O401+O402+O403","v":0},{"$f":"SQRT((P401^2)+(P402^2)+(P403^2))","v":11},{"$f":"Q401+Q402+Q403","v":0},{"$f":"SQRT((R401^2)+(R402^2)+(R403^2))","v":11},{"$f":"S401+S402+S403","v":0},{"$f":"SQRT((T401^2)+(T402^2)+(T403^2))","v":11},{"$f":"U401+U402+U403","v":0},{"$f":"SQRT((V401^2)+(V402^2)+(V403^2))","v":11},{"$f":"W401+W402+W403","v":0},{"$f":"SQRT((X401^2)+(X402^2)+(X403^2))","v":11},{"$f":"Y401+Y402+Y403","v":0},{"$f":"SQRT((Z401^2)+(Z402^2)+(Z403^2))","v":11},{"$f":"AA401+AA402+AA403","v":0},{"$f":"SQRT((AB401^2)+(AB402^2)+(AB403^2))","v":11},{"$f":"AC401+AC402+AC403","v":0},{"$f":"SQRT((AD401^2)+(AD402^2)+(AD403^2))","v":11},{"$f":"AE401+AE402+AE403","v":0},{"$f":"SQRT((AF401^2)+(AF402^2)+(AF403^2))","v":11},{"$f":"AG401+AG402+AG403","v":0},{"$f":"SQRT((AH401^2)+(AH402^2)+(AH403^2))","v":11},{"$f":"AI401+AI402+AI403","v":0},{"$f":"SQRT((AJ401^2)+(AJ402^2)+(AJ403^2))","v":11},{"$f":"AK401+AK402+AK403","v":0},{"$f":"SQRT((AL401^2)+(AL402^2)+(AL403^2))","v":16},{"$f":"AM401+AM402+AM403","v":0},{"$f":"SQRT((AN401^2)+(AN402^2)+(AN403^2))","v":16}]
[null,"50.0 percent or more",{"$f":"C403","v":0},0,{"$f":"E403","v":0},0,0,0,0,0,0,0,0,0,0,0,0,0,0,0,0,0,0,0,0,0,0,0,0,0,0,0,0,0,0,0,0,0,0,0]
[null,"Not Computed",0,11,{"$f":"E404","v":0},11,0,11,0,11,21,35,0,11,0,11,0,11,0,11,0,11,0,11,0,11,0,11,0,11,0,11,0,11,5,8,0,16,0,16]
[null,"$100,000 or more:",2,4,{"$f":"E405","v":0},11,0,11,0,11,63,81,5,9,8,15,0,11,0,11,0,11,0,11,5,8,35,35,0,11,6,8,0,11,7,10,0,16,21,25]
[null,"Less than 30.0 percent",{"$f":"C406+C407+C408","v":2},{"$f":"SQRT((D406^2)+(D407^2)+(D408^2))","v":16.06237840420901},{"$f":"E406+E407+E408","v":0},{"$f":"SQRT((F406^2)+(F407^2)+(F408^2))","v":19.05255888325765},{"$f":"G406+G407+G408","v":0},{"$f":"SQRT((H406^2)+(H407^2)+(H408^2))","v":19.05255888325765},{"$f":"I406+I407+I408","v":0},{"$f":"SQRT((J406^2)+(J407^2)+(J408^2))","v":19.05255888325765},{"$f":"K406+K407+K408","v":63},{"$f":"SQRT((L406^2)+(L407^2)+(L408^2))","v":84.905830188509441},{"$f":"M406+M407+M408","v":5},{"$f":"SQRT((N406^2)+(N407^2)+(N408^2))","v":17.972200755611428},{"$f":"O406+O407+O408","v":8},{"$f":"SQRT((P406^2)+(P407^2)+(P408^2))","v":21.61018278497431},{"$f":"Q406+Q407+Q408","v":0},{"$f":"SQRT((R406^2)+(R407^2)+(R408^2))","v":19.05255888325765},{"$f":"S406+S407+S408","v":0},{"$f":"SQRT((T406^2)+(T407^2)+(T408^2))","v":19.05255888325765},{"$f":"U406+U407+U408","v":0},{"$f":"SQRT((V406^2)+(V407^2)+(V408^2))","v":19.05255888325765},{"$f":"W406+W407+W408","v":0},{"$f":"SQRT((X406^2)+(X407^2)+(X408^2))","v":19.05255888325765},{"$f":"Y406+Y407+Y408","v":5},{"$f":"SQRT((Z406^2)+(Z407^2)+(Z408^2))","v":17.4928556845359},{"$f":"AA406+AA407+AA408","v":20},{"$f":"SQRT((AB406^2)+(AB407^2)+(AB408^2))","v":27.766886753829642},{"$f":"AC406+AC407+AC408","v":0},{"$f":"SQRT((AD406^2)+(AD407^2)+(AD408^2))","v":19.05255888325765},{"$f":"AE406+AE407+AE408","v":0},{"$f":"SQRT((AF406^2)+(AF407^2)+(AF408^2))","v":19.05255888325765},{"$f":"AG406+AG407+AG408","v":0},{"$f":"SQRT((AH406^2)+(AH407^2)+(AH408^2))","v":19.05255888325765},{"$f":"AI406+AI407+AI408","v":7},{"$f":"SQRT((AJ406^2)+(AJ407^2)+(AJ408^2))","v":18.493242008906929},{"$f":"AK406+AK407+AK408","v":0},{"$f":"SQRT((AL406^2)+(AL407^2)+(AL408^2))","v":27.712812921102035},{"$f":"AM406+AM407+AM408","v":11},{"$f":"SQRT((AN406^2)+(AN407^2)+(AN408^2))","v":28.913664589601922}]
[null,"More than 30.0 percent",{"$f":"C409+C410+C411+C469","v":0},{"$f":"SQRT((D409^2)+(D410^2)+(D411^2)+(D469^2))","v":15.556349186104045},{"$f":"E409+E410+E411+E469","v":0},{"$f":"SQRT((F409^2)+(F410^2)+(F411^2)+(F469^2))","v":15.556349186104045},{"$f":"G409+G410+G411+G469","v":0},{"$f":"SQRT((H409^2)+(H410^2)+(H411^2)+(H469^2))","v":15.556349186104045},{"$f":"I409+I410+I411+I469","v":0},{"$f":"SQRT((J409^2)+(J410^2)+(J411^2)+(J469^2))","v":15.556349186104045},{"$f":"K409+K410+K411+K469","v":0},{"$f":"SQRT((L409^2)+(L410^2)+(L411^2)+(L469^2))","v":25.45584412271571},{"$f":"M409+M410+M411+M469","v":0},{"$f":"SQRT((N409^2)+(N410^2)+(N411^2)+(N469^2))","v":15.556349186104045},{"$f":"O409+O410+O411+O469","v":0},{"$f":"SQRT((P409^2)+(P410^2)+(P411^2)+(P469^2))","v":15.556349186104045},{"$f":"Q409+Q410+Q411+Q469","v":0},{"$f":"SQRT((R409^2)+(R410^2)+(R411^2)+(R469^2))","v":15.556349186104045},{"$f":"S409+S410+S411+S469","v":0},{"$f":"SQRT((T409^2)+(T410^2)+(T411^2)+(T469^2))","v":15.556349186104045},{"$f":"U409+U410+U411+U469","v":0},{"$f":"SQRT((V409^2)+(V410^2)+(V411^2)+(V469^2))","v":15.556349186104045},{"$f":"W409+W410+W411+W469","v":0},{"$f":"SQRT((X409^2)+(X410^2)+(X411^2)+(X469^2))","v":15.556349186104045},{"$f":"Y409+Y410+Y411+Y469","v":0},{"$f":"SQRT((Z409^2)+(Z410^2)+(Z411^2)+(Z469^2))","v":15.556349186104045},{"$f":"AA409+AA410+AA411+AA469","v":0},{"$f":"SQRT((AB409^2)+(AB410^2)+(AB411^2)+(AB469^2))","v":15.556349186104045},{"$f":"AC409+AC410+AC411+AC469","v":0},{"$f":"SQRT((AD409^2)+(AD410^2)+(AD411^2)+(AD469^2))","v":15.556349186104045},{"$f":"AE409+AE410+AE411+AE469","v":0},{"$f":"SQRT((AF409^2)+(AF410^2)+(AF411^2)+(AF469^2))","v":15.556349186104045},{"$f":"AG409+AG410+AG411+AG469","v":0},{"$f":"SQRT((AH409^2)+(AH410^2)+(AH411^2)+(AH469^2))","v":15.556349186104045},{"$f":"AI409+AI410+AI411+AI469","v":0},{"$f":"SQRT((AJ409^2)+(AJ410^2)+(AJ411^2)+(AJ469^2))","v":15.556349186104045},{"$f":"AK409+AK410+AK411+AK469","v":0},{"$f":"SQRT((AL409^2)+(AL410^2)+(AL411^2)+(AL469^2))","v":22.627416997969522},{"$f":"AM409+AM410+AM411+AM469","v":0},{"$f":"SQRT((AN409^2)+(AN410^2)+(AN411^2)+(AN469^2))","v":22.627416997969522}]
[null,"Less Than 35% of HH Income",{"$f":"C406+C407+C408+C409","v":2},{"$f":"SQRT((D406^2)+(D407^2)+(D408^2)+(D409^2))","v":19.467922333931785},{"$f":"E406+E407+E408+E409","v":0},{"$f":"SQRT((F406^2)+(F407^2)+(F408^2)+(F409^2))","v":22},{"$f":"G406+G407+G408+G409","v":0},{"$f":"SQRT((H406^2)+(H407^2)+(H408^2)+(H409^2))","v":22},{"$f":"I406+I407+I408+I409","v":0},{"$f":"SQRT((J406^2)+(J407^2)+(J408^2)+(J409^2))","v":22},{"$f":"K406+K407+K408+K409","v":63},{"$f":"SQRT((L406^2)+(L407^2)+(L408^2)+(L409^2))","v":86.792856848936594},{"$f":"M406+M407+M408+M409","v":5},{"$f":"SQRT((N406^2)+(N407^2)+(N408^2)+(N409^2))","v":21.071307505705477},{"$f":"O406+O407+O408+O409","v":8},{"$f":"SQRT((P406^2)+(P407^2)+(P408^2)+(P409^2))","v":24.248711305964282},{"$f":"Q406+Q407+Q408+Q409","v":0},{"$f":"SQRT((R406^2)+(R407^2)+(R408^2)+(R409^2))","v":22},{"$f":"S406+S407+S408+S409","v":0},{"$f":"SQRT((T406^2)+(T407^2)+(T408^2)+(T409^2))","v":22},{"$f":"U406+U407+U408+U409","v":0},{"$f":"SQRT((V406^2)+(V407^2)+(V408^2)+(V409^2))","v":22},{"$f":"W406+W407+W408+W409","v":0},{"$f":"SQRT((X406^2)+(X407^2)+(X408^2)+(X409^2))","v":22},{"$f":"Y406+Y407+Y408+Y409","v":5},{"$f":"SQRT((Z406^2)+(Z407^2)+(Z408^2)+(Z409^2))","v":20.663978319771825},{"$f":"AA406+AA407+AA408+AA409","v":20},{"$f":"SQRT((AB406^2)+(AB407^2)+(AB408^2)+(AB409^2))","v":29.866369046136157},{"$f":"AC406+AC407+AC408+AC409","v":0},{"$f":"SQRT((AD406^2)+(AD407^2)+(AD408^2)+(AD409^2))","v":22},{"$f":"AE406+AE407+AE408+AE409","v":0},{"$f":"SQRT((AF406^2)+(AF407^2)+(AF408^2)+(AF409^2))","v":22},{"$f":"AG406+AG407+AG408+AG409","v":0},{"$f":"SQRT((AH406^2)+(AH407^2)+(AH408^2)+(AH409^2))","v":22},{"$f":"AI406+AI407+AI408+AI409","v":7},{"$f":"SQRT((AJ406^2)+(AJ407^2)+(AJ408^2)+(AJ409^2))","v":21.517434791350013},{"$f":"AK406+AK407+AK408+AK409","v":0},{"$f":"SQRT((AL406^2)+(AL407^2)+(AL408^2)+(AL409^2))","v":32},{"$f":"AM406+AM407+AM408+AM409","v":11},{"$f":"SQRT((AN406^2)+(AN407^2)+(AN408^2)+(AN409^2))","v":33.045423283716609}]
[null,"35.0 percent or more",{"$f":"C410+C411+C412","v":0},{"$f":"SQRT((D410^2)+(D411^2)+(D412^2))","v":11},{"$f":"E410+E411+E412","v":0},{"$f":"SQRT((F410^2)+(F411^2)+(F412^2))","v":11},{"$f":"G410+G411+G412","v":0},{"$f":"SQRT((H410^2)+(H411^2)+(H412^2))","v":11},{"$f":"I410+I411+I412","v":0},{"$f":"SQRT((J410^2)+(J411^2)+(J412^2))","v":11},{"$f":"K410+K411+K412","v":0},{"$f":"SQRT((L410^2)+(L411^2)+(L412^2))","v":18},{"$f":"M410+M411+M412","v":0},{"$f":"SQRT((N410^2)+(N411^2)+(N412^2))","v":11},{"$f":"O410+O411+O412","v":0},{"$f":"SQRT((P410^2)+(P411^2)+(P412^2))","v":11},{"$f":"Q410+Q411+Q412","v":0},{"$f":"SQRT((R410^2)+(R411^2)+(R412^2))","v":11},{"$f":"S410+S411+S412","v":0},{"$f":"SQRT((T410^2)+(T411^2)+(T412^2))","v":11},{"$f":"U410+U411+U412","v":0},{"$f":"SQRT((V410^2)+(V411^2)+(V412^2))","v":11},{"$f":"W410+W411+W412","v":0},{"$f":"SQRT((X410^2)+(X411^2)+(X412^2))","v":11},{"$f":"Y410+Y411+Y412","v":0},{"$f":"SQRT((Z410^2)+(Z411^2)+(Z412^2))","v":11},{"$f":"AA410+AA411+AA412","v":0},{"$f":"SQRT((AB410^2)+(AB411^2)+(AB412^2))","v":11},{"$f":"AC410+AC411+AC412","v":0},{"$f":"SQRT((AD410^2)+(AD411^2)+(AD412^2))","v":11},{"$f":"AE410+AE411+AE412","v":0},{"$f":"SQRT((AF410^2)+(AF411^2)+(AF412^2))","v":11},{"$f":"AG410+AG411+AG412","v":0},{"$f":"SQRT((AH410^2)+(AH411^2)+(AH412^2))","v":11},{"$f":"AI410+AI411+AI412","v":0},{"$f":"SQRT((AJ410^2)+(AJ411^2)+(AJ412^2))","v":11},{"$f":"AK410+AK411+AK412","v":0},{"$f":"SQRT((AL410^2)+(AL411^2)+(AL412^2))","v":16},{"$f":"AM410+AM411+AM412","v":0},{"$f":"SQRT((AN410^2)+(AN411^2)+(AN412^2))","v":16}]
[null,"50.0 percent or more",{"$f":"C412","v":0},0,0,0,{"$f":"G412","v":0},0,0,0,0,0,0,0,0,0,0,0,0,0,0,0,0,0,0,0,0,0,0,0,0,0,0,0,0,0,0,0,0,0]
[null,"Not Computed",0,11,0,11,{"$f":"G413","v":0},11,0,11,0,18,0,11,0,11,0,11,0,11,0,11,0,11,0,11,15,26,0,11,6,8,0,11,0,11,0,16,10,16]
[]
[]
[null,"Calculated GROSS RENT AS A PERCENTAGE OF HOUSEHOLD INCOME IN THE PAST 12 MONTHS"]
[null,"Universe:  RENTER-OCCUPIED HOUSING UNITS"]
[null,{"$f":"B346","v":"Data Set: 2008-2012 American Community Survey 5-Year Estimates"}]
[]
[null,null,"Albany",null,"Bartlett",null,"Brookfield",null,"Chatham",null,"Conway",null,"Eaton",null,"Effingham",null,"Freedom",null,"Hale's Location",null,"Hart's Location",null,"Jackson",null,"Madison",null,"Moultonborough",null,"Ossipee",null,"Sandwich",null,"Tamworth",null,"Tuftonboro",null,"Wakefield",null,"Wolfeboro"]
[null,null,"Estimate","Margin of Error","Estimate","Margin of Error","Estimate","Margin of Error","Estimate","Margin of Error","Estimate","Margin of Error","Estimate","Margin of Error","Estimate","Margin of Error","Estimate","Margin of Error","Estimate","Margin of Error","Estimate","Margin of Error","Estimate","Margin of Error","Estimate","Margin of Error","Estimate","Margin of Error","Estimate","Margin of Error","Estimate","Margin of Error","Estimate","Margin of Error","Estimate","Margin of Error","Estimate","Margin of Error","Estimate","Margin of Error"]
[null,"Total:",{"$f":"C421","v":50},{"$f":"D421","v":26},253,105,15,19,20,13,1618,293,20,17,61,34,72,32,0,11,21,17,73,37,191,79,162,74,293,97,98,37,283,117,134,71,225,131,425,154]
[null,"Less than 30.0 percent",{"$f":"C465+C458+C450+C444+C437+C430+C423","v":31},{"$f":"SQRT((D465^2)+(D458^2)+(D450^2)+(D444^2)+(D437^2)+(D430^2)+(D423^2))","v":45.738386504117088},{"$f":"E465+E458+E450+E444+E437+E430+E423","v":116},{"$f":"SQRT((F465^2)+(F458^2)+(F450^2)+(F444^2)+(F437^2)+(F430^2)+(F423^2))","v":91.989129792601034},{"$f":"G465+G458+G450+G444+G437+G430+G423","v":0},{"$f":"SQRT((H465^2)+(H458^2)+(H450^2)+(H444^2)+(H437^2)+(H430^2)+(H423^2))","v":47.947888378947411},{"$f":"I465+I458+I450+I444+I437+I430+I423","v":11},{"$f":"SQRT((J465^2)+(J458^2)+(J450^2)+(J444^2)+(J437^2)+(J430^2)+(J423^2))","v":47.728398255126898},{"$f":"K465+K458+K450+K444+K437+K430+K423","v":738},{"$f":"SQRT((L465^2)+(L458^2)+(L450^2)+(L444^2)+(L437^2)+(L430^2)+(L423^2))","v":242.05577869573781},{"$f":"M465+M458+M450+M444+M437+M430+M423","v":16},{"$f":"SQRT((N465^2)+(N458^2)+(N450^2)+(N444^2)+(N437^2)+(N430^2)+(N423^2))","v":44.542114902640172},{"$f":"O465+O458+O450+O444+O437+O430+O423","v":17},{"$f":"SQRT((P465^2)+(P458^2)+(P450^2)+(P444^2)+(P437^2)+(P430^2)+(P423^2))","v":47.434164902525687},{"$f":"Q465+Q458+Q450+Q444+Q437+Q430+Q423","v":44},{"$f":"SQRT((R465^2)+(R458^2)+(R450^2)+(R444^2)+(R437^2)+(R430^2)+(R423^2))","v":50.872389367907616},{"$f":"S465+S458+S450+S444+S437+S430+S423","v":0},{"$f":"SQRT((T465^2)+(T458^2)+(T450^2)+(T444^2)+(T437^2)+(T430^2)+(T423^2))","v":47.947888378947411},{"$f":"U465+U458+U450+U444+U437+U430+U423","v":4},{"$f":"SQRT((V465^2)+(V458^2)+(V450^2)+(V444^2)+(V437^2)+(V430^2)+(V423^2))","v":45.628938186199335},{"$f":"W465+W458+W450+W444+W437+W430+W423","v":28},{"$f":"SQRT((X465^2)+(X458^2)+(X450^2)+(X444^2)+(X437^2)+(X430^2)+(X423^2))","v":48.342527861087284},{"$f":"Y465+Y458+Y450+Y444+Y437+Y430+Y423","v":97},{"$f":"SQRT((Z465^2)+(Z458^2)+(Z450^2)+(Z444^2)+(Z437^2)+(Z430^2)+(Z423^2))","v":71.805292284064961},{"$f":"AA465+AA458+AA450+AA444+AA437+AA430+AA423","v":86},{"$f":"SQRT((AB465^2)+(AB458^2)+(AB450^2)+(AB444^2)+(AB437^2)+(AB430^2)+(AB423^2))","v":73.450663713815416},{"$f":"AC465+AC458+AC450+AC444+AC437+AC430+AC423","v":82},{"$f":"SQRT((AD465^2)+(AD458^2)+(AD450^2)+(AD444^2)+(AD437^2)+(AD430^2)+(AD423^2))","v":71.463277282811489},{"$f":"AE465+AE458+AE450+AE444+AE437+AE430+AE423","v":37},{"$f":"SQRT((AF465^2)+(AF458^2)+(AF450^2)+(AF444^2)+(AF437^2)+(AF430^2)+(AF423^2))","v":48.877397639399746},{"$f":"AG465+AG458+AG450+AG444+AG437+AG430+AG423","v":167},{"$f":"SQRT((AH465^2)+(AH458^2)+(AH450^2)+(AH444^2)+(AH437^2)+(AH430^2)+(AH423^2))","v":125.27170470621049},{"$f":"AI465+AI458+AI450+AI444+AI437+AI430+AI423","v":69},{"$f":"SQRT((AJ465^2)+(AJ458^2)+(AJ450^2)+(AJ444^2)+(AJ437^2)+(AJ430^2)+(AJ423^2))","v":68.978257443922132},{"$f":"AK465+AK458+AK450+AK444+AK437+AK430+AK423","v":41},{"$f":"SQRT((AL465^2)+(AL458^2)+(AL450^2)+(AL444^2)+(AL437^2)+(AL430^2)+(AL423^2))","v":81.541400527584756},{"$f":"AM465+AM458+AM450+AM444+AM437+AM430+AM423","v":142},{"$f":"SQRT((AN465^2)+(AN458^2)+(AN450^2)+(AN444^2)+(AN437^2)+(AN430^2)+(AN423^2))","v":123.40178280721879}]
[null,"More than 30.0 percent",{"$f":"C466+C459+C452+C445+C438+C431+C424","v":15},{"$f":"SQRT((D466^2)+(D459^2)+(D452^2)+(D445^2)+(D438^2)+(D431^2)+(D424^2))","v":40.236799077461413},{"$f":"E466+E459+E452+E445+E438+E431+E424","v":106},{"$f":"SQRT((F466^2)+(F459^2)+(F452^2)+(F445^2)+(F438^2)+(F431^2)+(F424^2))","v":79.611556949980567},{"$f":"G466+G459+G452+G445+G438+G431+G424","v":3},{"$f":"SQRT((H466^2)+(H459^2)+(H452^2)+(H445^2)+(H438^2)+(H431^2)+(H424^2))","v":39.97499218261337},{"$f":"I466+I459+I452+I445+I438+I431+I424","v":9},{"$f":"SQRT((J466^2)+(J459^2)+(J452^2)+(J445^2)+(J438^2)+(J431^2)+(J424^2))","v":37.894590642992831},{"$f":"K466+K459+K452+K445+K438+K431+K424","v":756},{"$f":"SQRT((L466^2)+(L459^2)+(L452^2)+(L445^2)+(L438^2)+(L431^2)+(L424^2))","v":264.55245226608656},{"$f":"M466+M459+M452+M445+M438+M431+M424","v":3},{"$f":"SQRT((N466^2)+(N459^2)+(N452^2)+(N445^2)+(N438^2)+(N431^2)+(N424^2))","v":39.97499218261337},{"$f":"O466+O459+O452+O445+O438+O431+O424","v":33},{"$f":"SQRT((P466^2)+(P459^2)+(P452^2)+(P445^2)+(P438^2)+(P431^2)+(P424^2))","v":42.626282971894227},{"$f":"Q466+Q459+Q452+Q445+Q438+Q431+Q424","v":19},{"$f":"SQRT((R466^2)+(R459^2)+(R452^2)+(R445^2)+(R438^2)+(R431^2)+(R424^2))","v":40.459856648287818},{"$f":"S466+S459+S452+S445+S438+S431+S424","v":0},{"$f":"SQRT((T466^2)+(T459^2)+(T452^2)+(T445^2)+(T438^2)+(T431^2)+(T424^2))","v":41.158231254513353},{"$f":"U466+U459+U452+U445+U438+U431+U424","v":8},{"$f":"SQRT((V466^2)+(V459^2)+(V452^2)+(V445^2)+(V438^2)+(V431^2)+(V424^2))","v":41.43669871020132},{"$f":"W466+W459+W452+W445+W438+W431+W424","v":15},{"$f":"SQRT((X466^2)+(X459^2)+(X452^2)+(X445^2)+(X438^2)+(X431^2)+(X424^2))","v":42.296571965113202},{"$f":"Y466+Y459+Y452+Y445+Y438+Y431+Y424","v":75},{"$f":"SQRT((Z466^2)+(Z459^2)+(Z452^2)+(Z445^2)+(Z438^2)+(Z431^2)+(Z424^2))","v":62.321745803531535},{"$f":"AA466+AA459+AA452+AA445+AA438+AA431+AA424","v":61},{"$f":"SQRT((AB466^2)+(AB459^2)+(AB452^2)+(AB445^2)+(AB438^2)+(AB431^2)+(AB424^2))","v":51.029403288692293},{"$f":"AC466+AC459+AC452+AC445+AC438+AC431+AC424","v":174},{"$f":"SQRT((AD466^2)+(AD459^2)+(AD452^2)+(AD445^2)+(AD438^2)+(AD431^2)+(AD424^2))","v":112.9513169467271},{"$f":"AE466+AE459+AE452+AE445+AE438+AE431+AE424","v":47},{"$f":"SQRT((AF466^2)+(AF459^2)+(AF452^2)+(AF445^2)+(AF438^2)+(AF431^2)+(AF424^2))","v":43.174066289845804},{"$f":"AG466+AG459+AG452+AG445+AG438+AG431+AG424","v":115},{"$f":"SQRT((AH466^2)+(AH459^2)+(AH452^2)+(AH445^2)+(AH438^2)+(AH431^2)+(AH424^2))","v":65.757128891094382},{"$f":"AI466+AI459+AI452+AI445+AI438+AI431+AI424","v":41},{"$f":"SQRT((AJ466^2)+(AJ459^2)+(AJ452^2)+(AJ445^2)+(AJ438^2)+(AJ431^2)+(AJ424^2))","v":51.497572758334933},{"$f":"AK466+AK459+AK452+AK445+AK438+AK431+AK424","v":168},{"$f":"SQRT((AL466^2)+(AL459^2)+(AL452^2)+(AL445^2)+(AL438^2)+(AL431^2)+(AL424^2))","v":135.57285864065861},{"$f":"AM466+AM459+AM452+AM445+AM438+AM431+AM424","v":271},{"$f":"SQRT((AN466^2)+(AN459^2)+(AN452^2)+(AN445^2)+(AN438^2)+(AN431^2)+(AN424^2))","v":157.40076238697193}]
[null,"Less Than 35% of HH Income",{"$f":"C467+C460+C453+C446+C439+C432+C425","v":33},{"$f":"SQRT((D467^2)+(D460^2)+(D453^2)+(D446^2)+(D439^2)+(D432^2)+(D425^2))","v":53.319789947073126},{"$f":"E467+E460+E453+E446+E439+E432+E425","v":155},{"$f":"SQRT((F467^2)+(F460^2)+(F453^2)+(F446^2)+(F439^2)+(F432^2)+(F425^2))","v":104.23051376636306},{"$f":"G467+G460+G453+G446+G439+G432+G425","v":0},{"$f":"SQRT((H467^2)+(H460^2)+(H453^2)+(H446^2)+(H439^2)+(H432^2)+(H425^2))","v":57.157676649772952},{"$f":"I467+I460+I453+I446+I439+I432+I425","v":6},{"$f":"SQRT((J467^2)+(J460^2)+(J453^2)+(J446^2)+(J439^2)+(J432^2)+(J425^2))","v":56.806689746895124},{"$f":"K467+K460+K453+K446+K439+K432+K425","v":801},{"$f":"SQRT((L467^2)+(L460^2)+(L453^2)+(L446^2)+(L439^2)+(L432^2)+(L425^2))","v":253.92321674080927},{"$f":"M467+M460+M453+M446+M439+M432+M425","v":16},{"$f":"SQRT((N467^2)+(N460^2)+(N453^2)+(N446^2)+(N439^2)+(N432^2)+(N425^2))","v":53.3572862878164},{"$f":"O467+O460+O453+O446+O439+O432+O425","v":27},{"$f":"SQRT((P467^2)+(P460^2)+(P453^2)+(P446^2)+(P439^2)+(P432^2)+(P425^2))","v":57.384666941614292},{"$f":"Q467+Q460+Q453+Q446+Q439+Q432+Q425","v":53},{"$f":"SQRT((R467^2)+(R460^2)+(R453^2)+(R446^2)+(R439^2)+(R432^2)+(R425^2))","v":59.152345684681009},{"$f":"S467+S460+S453+S446+S439+S432+S425","v":0},{"$f":"SQRT((T467^2)+(T460^2)+(T453^2)+(T446^2)+(T439^2)+(T432^2)+(T425^2))","v":57.157676649772952},{"$f":"U467+U460+U453+U446+U439+U432+U425","v":4},{"$f":"SQRT((V467^2)+(V460^2)+(V453^2)+(V446^2)+(V439^2)+(V432^2)+(V425^2))","v":55.226805085936306},{"$f":"W467+W460+W453+W446+W439+W432+W425","v":28},{"$f":"SQRT((X467^2)+(X460^2)+(X453^2)+(X446^2)+(X439^2)+(X432^2)+(X425^2))","v":55.398555937858163},{"$f":"Y467+Y460+Y453+Y446+Y439+Y432+Y425","v":139},{"$f":"SQRT((Z467^2)+(Z460^2)+(Z453^2)+(Z446^2)+(Z439^2)+(Z432^2)+(Z425^2))","v":84.391942743368574},{"$f":"AA467+AA460+AA453+AA446+AA439+AA432+AA425","v":80},{"$f":"SQRT((AB467^2)+(AB460^2)+(AB453^2)+(AB446^2)+(AB439^2)+(AB432^2)+(AB425^2))","v":68.505474233815804},{"$f":"AC467+AC460+AC453+AC446+AC439+AC432+AC425","v":82},{"$f":"SQRT((AD467^2)+(AD460^2)+(AD453^2)+(AD446^2)+(AD439^2)+(AD432^2)+(AD425^2))","v":77.142724867611463},{"$f":"AE467+AE460+AE453+AE446+AE439+AE432+AE425","v":54},{"$f":"SQRT((AF467^2)+(AF460^2)+(AF453^2)+(AF446^2)+(AF439^2)+(AF432^2)+(AF425^2))","v":56.231663678038196},{"$f":"AG467+AG460+AG453+AG446+AG439+AG432+AG425","v":192},{"$f":"SQRT((AH467^2)+(AH460^2)+(AH453^2)+(AH446^2)+(AH439^2)+(AH432^2)+(AH425^2))","v":130.85870242364473},{"$f":"AI467+AI460+AI453+AI446+AI439+AI432+AI425","v":74},{"$f":"SQRT((AJ467^2)+(AJ460^2)+(AJ453^2)+(AJ446^2)+(AJ439^2)+(AJ432^2)+(AJ425^2))","v":75.709972922990801},{"$f":"AK467+AK460+AK453+AK446+AK439+AK432+AK425","v":126},{"$f":"SQRT((AL467^2)+(AL460^2)+(AL453^2)+(AL446^2)+(AL439^2)+(AL432^2)+(AL425^2))","v":142.55525244620065},{"$f":"AM467+AM460+AM453+AM446+AM439+AM432+AM425","v":127},{"$f":"SQRT((AN467^2)+(AN460^2)+(AN453^2)+(AN446^2)+(AN439^2)+(AN432^2)+(AN425^2))","v":128.31211945876353}]
[null,"35.0 percent or more",{"$f":"C468+C461+C454+C447+C440+C433+C426","v":13},{"$f":"SQRT((D468^2)+(D461^2)+(D454^2)+(D447^2)+(D440^2)+(D433^2)+(D426^2))","v":29.614185789921695},{"$f":"E468+E461+E454+E447+E440+E433+E426","v":67},{"$f":"SQRT((F468^2)+(F461^2)+(F454^2)+(F447^2)+(F440^2)+(F433^2)+(F426^2))","v":61.326992425847855},{"$f":"G468+G461+G454+G447+G440+G433+G426","v":3},{"$f":"SQRT((H468^2)+(H461^2)+(H454^2)+(H447^2)+(H440^2)+(H433^2)+(H426^2))","v":27.404379212089442},{"$f":"I468+I461+I454+I447+I440+I433+I426","v":9},{"$f":"SQRT((J468^2)+(J461^2)+(J454^2)+(J447^2)+(J440^2)+(J433^2)+(J426^2))","v":24.269322199023193},{"$f":"K468+K461+K454+K447+K440+K433+K426","v":629},{"$f":"SQRT((L468^2)+(L461^2)+(L454^2)+(L447^2)+(L440^2)+(L433^2)+(L426^2))","v":242.95267028785668},{"$f":"M468+M461+M454+M447+M440+M433+M426","v":3},{"$f":"SQRT((N468^2)+(N461^2)+(N454^2)+(N447^2)+(N440^2)+(N433^2)+(N426^2))","v":27.404379212089442},{"$f":"O468+O461+O454+O447+O440+O433+O426","v":23},{"$f":"SQRT((P468^2)+(P461^2)+(P454^2)+(P447^2)+(P440^2)+(P433^2)+(P426^2))","v":29.916550603303182},{"$f":"Q468+Q461+Q454+Q447+Q440+Q433+Q426","v":10},{"$f":"SQRT((R468^2)+(R461^2)+(R454^2)+(R447^2)+(R440^2)+(R433^2)+(R426^2))","v":29.103264421710495},{"$f":"S468+S461+S454+S447+S440+S433+S426","v":0},{"$f":"SQRT((T468^2)+(T461^2)+(T454^2)+(T447^2)+(T440^2)+(T433^2)+(T426^2))","v":29.103264421710495},{"$f":"U468+U461+U454+U447+U440+U433+U426","v":8},{"$f":"SQRT((V468^2)+(V461^2)+(V454^2)+(V447^2)+(V440^2)+(V433^2)+(V426^2))","v":29.49576240750525},{"$f":"W468+W461+W454+W447+W440+W433+W426","v":15},{"$f":"SQRT((X468^2)+(X461^2)+(X454^2)+(X447^2)+(X440^2)+(X433^2)+(X426^2))","v":30.692018506445613},{"$f":"Y468+Y461+Y454+Y447+Y440+Y433+Y426","v":33},{"$f":"SQRT((Z468^2)+(Z461^2)+(Z454^2)+(Z447^2)+(Z440^2)+(Z433^2)+(Z426^2))","v":45.332107826572546},{"$f":"AA468+AA461+AA454+AA447+AA440+AA433+AA426","v":38},{"$f":"SQRT((AB468^2)+(AB461^2)+(AB454^2)+(AB447^2)+(AB440^2)+(AB433^2)+(AB426^2))","v":40.06245124802026},{"$f":"AC468+AC461+AC454+AC447+AC440+AC433+AC426","v":174},{"$f":"SQRT((AD468^2)+(AD461^2)+(AD454^2)+(AD447^2)+(AD440^2)+(AD433^2)+(AD426^2))","v":109.13752791776072},{"$f":"AE468+AE461+AE454+AE447+AE440+AE433+AE426","v":30},{"$f":"SQRT((AF468^2)+(AF461^2)+(AF454^2)+(AF447^2)+(AF440^2)+(AF433^2)+(AF426^2))","v":33},{"$f":"AG468+AG461+AG454+AG447+AG440+AG433+AG426","v":69},{"$f":"SQRT((AH468^2)+(AH461^2)+(AH454^2)+(AH447^2)+(AH440^2)+(AH433^2)+(AH426^2))","v":45.596052460711988},{"$f":"AI468+AI461+AI454+AI447+AI440+AI433+AI426","v":11},{"$f":"SQRT((AJ468^2)+(AJ461^2)+(AJ454^2)+(AJ447^2)+(AJ440^2)+(AJ433^2)+(AJ426^2))","v":28.24889378365107},{"$f":"AK468+AK461+AK454+AK447+AK440+AK433+AK426","v":83},{"$f":"SQRT((AL468^2)+(AL461^2)+(AL454^2)+(AL447^2)+(AL440^2)+(AL433^2)+(AL426^2))","v":70.448562795844168},{"$f":"AM468+AM461+AM454+AM447+AM440+AM433+AM426","v":261},{"$f":"SQRT((AN468^2)+(AN461^2)+(AN454^2)+(AN447^2)+(AN440^2)+(AN433^2)+(AN426^2))","v":151.60145118038943}]
[null,"50.0 percent or more",{"$f":"C469+C462+C455+C448+C441+C434+C427","v":0},{"$f":"SQRT((D469^2)+(D462^2)+(D455^2)+(D448^2)+(D441^2)+(D434^2)+(D427^2))","v":0},{"$f":"E469+E462+E455+E448+E441+E434+E427","v":0},{"$f":"SQRT((F469^2)+(F462^2)+(F455^2)+(F448^2)+(F441^2)+(F434^2)+(F427^2))","v":0},{"$f":"G469+G462+G455+G448+G441+G434+G427","v":0},{"$f":"SQRT((H469^2)+(H462^2)+(H455^2)+(H448^2)+(H441^2)+(H434^2)+(H427^2))","v":0},{"$f":"I469+I462+I455+I448+I441+I434+I427","v":0},{"$f":"SQRT((J469^2)+(J462^2)+(J455^2)+(J448^2)+(J441^2)+(J434^2)+(J427^2))","v":0},{"$f":"K469+K462+K455+K448+K441+K434+K427","v":0},{"$f":"SQRT((L469^2)+(L462^2)+(L455^2)+(L448^2)+(L441^2)+(L434^2)+(L427^2))","v":0},{"$f":"M469+M462+M455+M448+M441+M434+M427","v":0},{"$f":"SQRT((N469^2)+(N462^2)+(N455^2)+(N448^2)+(N441^2)+(N434^2)+(N427^2))","v":0},{"$f":"O469+O462+O455+O448+O441+O434+O427","v":0},{"$f":"SQRT((P469^2)+(P462^2)+(P455^2)+(P448^2)+(P441^2)+(P434^2)+(P427^2))","v":0},{"$f":"Q469+Q462+Q455+Q448+Q441+Q434+Q427","v":0},{"$f":"SQRT((R469^2)+(R462^2)+(R455^2)+(R448^2)+(R441^2)+(R434^2)+(R427^2))","v":0},{"$f":"S469+S462+S455+S448+S441+S434+S427","v":0},{"$f":"SQRT((T469^2)+(T462^2)+(T455^2)+(T448^2)+(T441^2)+(T434^2)+(T427^2))","v":0},{"$f":"U469+U462+U455+U448+U441+U434+U427","v":0},{"$f":"SQRT((V469^2)+(V462^2)+(V455^2)+(V448^2)+(V441^2)+(V434^2)+(V427^2))","v":0},{"$f":"W469+W462+W455+W448+W441+W434+W427","v":0},{"$f":"SQRT((X469^2)+(X462^2)+(X455^2)+(X448^2)+(X441^2)+(X434^2)+(X427^2))","v":0},{"$f":"Y469+Y462+Y455+Y448+Y441+Y434+Y427","v":0},{"$f":"SQRT((Z469^2)+(Z462^2)+(Z455^2)+(Z448^2)+(Z441^2)+(Z434^2)+(Z427^2))","v":0},{"$f":"AA469+AA462+AA455+AA448+AA441+AA434+AA427","v":0},{"$f":"SQRT((AB469^2)+(AB462^2)+(AB455^2)+(AB448^2)+(AB441^2)+(AB434^2)+(AB427^2))","v":0},{"$f":"AC469+AC462+AC455+AC448+AC441+AC434+AC427","v":0},{"$f":"SQRT((AD469^2)+(AD462^2)+(AD455^2)+(AD448^2)+(AD441^2)+(AD434^2)+(AD427^2))","v":0},{"$f":"AE469+AE462+AE455+AE448+AE441+AE434+AE427","v":0},{"$f":"SQRT((AF469^2)+(AF462^2)+(AF455^2)+(AF448^2)+(AF441^2)+(AF434^2)+(AF427^2))","v":0},{"$f":"AG469+AG462+AG455+AG448+AG441+AG434+AG427","v":0},{"$f":"SQRT((AH469^2)+(AH462^2)+(AH455^2)+(AH448^2)+(AH441^2)+(AH434^2)+(AH427^2))","v":0},{"$f":"AI469+AI462+AI455+AI448+AI441+AI434+AI427","v":0},{"$f":"SQRT((AJ469^2)+(AJ462^2)+(AJ455^2)+(AJ448^2)+(AJ441^2)+(AJ434^2)+(AJ427^2))","v":0},{"$f":"AK469+AK462+AK455+AK448+AK441+AK434+AK427","v":0},{"$f":"SQRT((AL469^2)+(AL462^2)+(AL455^2)+(AL448^2)+(AL441^2)+(AL434^2)+(AL427^2))","v":0},{"$f":"AM469+AM462+AM455+AM448+AM441+AM434+AM427","v":0},{"$f":"SQRT((AN469^2)+(AN462^2)+(AN455^2)+(AN448^2)+(AN441^2)+(AN434^2)+(AN427^2))","v":0}]
[null,"Not Computed",{"$f":"C469+C463+C456+C449+C442+C435+C428","v":4},{"$f":"SQRT((D469^2)+(D463^2)+(D456^2)+(D449^2)+(D442^2)+(D435^2)+(D428^2))","v":22.561028345356956},{"$f":"E469+E463+E456+E449+E442+E435+E428","v":31},{"$f":"SQRT((F469^2)+(F463^2)+(F456^2)+(F449^2)+(F442^2)+(F435^2)+(F428^2))","v":41.737273509418415},{"$f":"G469+G463+G456+G449+G442+G435+G428","v":12},{"$f":"SQRT((H469^2)+(H463^2)+(H456^2)+(H449^2)+(H442^2)+(H435^2)+(H428^2))","v":28.705400188814647},{"$f":"I469+I463+I456+I449+I442+I435+I428","v":5},{"$f":"SQRT((J469^2)+(J463^2)+(J456^2)+(J449^2)+(J442^2)+(J435^2)+(J428^2))","v":22.891046284519195},{"$f":"K469+K463+K456+K449+K442+K435+K428","v":164},{"$f":"SQRT((L469^2)+(L463^2)+(L456^2)+(L449^2)+(L442^2)+(L435^2)+(L428^2))","v":109.53994705129266},{"$f":"M469+M463+M456+M449+M442+M435+M428","v":1},{"$f":"SQRT((N469^2)+(N463^2)+(N456^2)+(N449^2)+(N442^2)+(N435^2)+(N428^2))","v":24.779023386727733},{"$f":"O469+O463+O456+O449+O442+O435+O428","v":11},{"$f":"SQRT((P469^2)+(P463^2)+(P456^2)+(P449^2)+(P442^2)+(P435^2)+(P428^2))","v":26.795522013948524},{"$f":"Q469+Q463+Q456+Q449+Q442+Q435+Q428","v":9},{"$f":"SQRT((R469^2)+(R463^2)+(R456^2)+(R449^2)+(R442^2)+(R435^2)+(R428^2))","v":21.283796653792763},{"$f":"S469+S463+S456+S449+S442+S435+S428","v":0},{"$f":"SQRT((T469^2)+(T463^2)+(T456^2)+(T449^2)+(T442^2)+(T435^2)+(T428^2))","v":26.944387170614959},{"$f":"U469+U463+U456+U449+U442+U435+U428","v":9},{"$f":"SQRT((V469^2)+(V463^2)+(V456^2)+(V449^2)+(V442^2)+(V435^2)+(V428^2))","v":27.367864366808018},{"$f":"W469+W463+W456+W449+W442+W435+W428","v":30},{"$f":"SQRT((X469^2)+(X463^2)+(X456^2)+(X449^2)+(X442^2)+(X435^2)+(X428^2))","v":32.388269481403292},{"$f":"Y469+Y463+Y456+Y449+Y442+Y435+Y428","v":19},{"$f":"SQRT((Z469^2)+(Z463^2)+(Z456^2)+(Z449^2)+(Z442^2)+(Z435^2)+(Z428^2))","v":38.794329482541649},{"$f":"AA469+AA463+AA456+AA449+AA442+AA435+AA428","v":29},{"$f":"SQRT((AB469^2)+(AB463^2)+(AB456^2)+(AB449^2)+(AB442^2)+(AB435^2)+(AB428^2))","v":43.600458713183279},{"$f":"AC469+AC463+AC456+AC449+AC442+AC435+AC428","v":37},{"$f":"SQRT((AD469^2)+(AD463^2)+(AD456^2)+(AD449^2)+(AD442^2)+(AD435^2)+(AD428^2))","v":43.54308211415448},{"$f":"AE469+AE463+AE456+AE449+AE442+AE435+AE428","v":8},{"$f":"SQRT((AF469^2)+(AF463^2)+(AF456^2)+(AF449^2)+(AF442^2)+(AF435^2)+(AF428^2))","v":23.622023622035432},{"$f":"AG469+AG463+AG456+AG449+AG442+AG435+AG428","v":22},{"$f":"SQRT((AH469^2)+(AH463^2)+(AH456^2)+(AH449^2)+(AH442^2)+(AH435^2)+(AH428^2))","v":35.791060336346561},{"$f":"AI469+AI463+AI456+AI449+AI442+AI435+AI428","v":49},{"$f":"SQRT((AJ469^2)+(AJ463^2)+(AJ456^2)+(AJ449^2)+(AJ442^2)+(AJ435^2)+(AJ428^2))","v":44.317039612320677},{"$f":"AK469+AK463+AK456+AK449+AK442+AK435+AK428","v":16},{"$f":"SQRT((AL469^2)+(AL463^2)+(AL456^2)+(AL449^2)+(AL442^2)+(AL435^2)+(AL428^2))","v":43.646305685590391},{"$f":"AM469+AM463+AM456+AM449+AM442+AM435+AM428","v":27},{"$f":"SQRT((AN469^2)+(AN463^2)+(AN456^2)+(AN449^2)+(AN442^2)+(AN435^2)+(AN428^2))","v":44.654227123532216}]

{"sheet":"PlaceOfBirthAndPriorRes","index":63,"n_rows":57,"n_cols":16,"rows_kept":57,"cut":false,"hidden":true,"merged":[[1,3,1,5],[1,7,1,9],[53,2,54,14],[4,3,4,5],[4,7,4,9],[40,3,40,5],[40,7,40,9],[40,11,40,13],[40,14,40,15],[4,11,4,13],[4,14,4,15]]}
[]
[]
[null,null,"SOCIAL CHARACTERISTICS"]
[]
[null,null,"Place of Birth","2008-2012",null,null,null,"2013-2017",null,null,null,"2018-2022",null,null,"Statistically Significant Change "]
[null,null,"Universe: Total Population","Estimate","Margin of Error",null,null,"Estimate","Margin of Error",null,null,"Estimate","Margin of Error",null,"2012-2022","2017-2022"]
[null,null,"  Total:",{"$f":"CntyDataLinkPrior10YearEstimate!$B$136","v":6286},{"$f":"CntyDataLinkPrior10YearEstimate!$C$136","v":17},null,null,{"$f":"CntyDataLinkPrior5YearEstimates!$B$136","v":6235},{"$f":"CntyDataLinkPrior5YearEstimates!$C$136","v":19},null,null,{"$f":"CntyDataLink!$B$136","v":6484},{"$f":"CntyDataLink!$C$136","v":18}]
[null,null,"   United States Native",{"$f":"CntyDataLinkPrior10YearEstimate!$D$136","v":6136},{"$f":"CntyDataLinkPrior10YearEstimate!$E$136","v":96},{"$f":"D8/$D$7","v":0.97613744829780469},null,{"$f":"CntyDataLinkPrior5YearEstimates!$D$136","v":5985},{"$f":"CntyDataLinkPrior5YearEstimates!$E$136","v":143},{"$f":"H8/$H$7","v":0.95990376904570973},null,{"$f":"CntyDataLink!$D$136","v":6273},{"$f":"CntyDataLink!$E$136","v":157},{"$f":"L8/$L$7","v":0.96745835903763111},{"$f":"StatisticallySignificantCalcs!A26","v":"N"},{"$f":"StatisticallySignificantCalcs!J26","v":"Y"}]
[null,null,"      New Hampshire Native",{"$f":"CntyDataLinkPrior10YearEstimate!$F$136","v":2649},{"$f":"CntyDataLinkPrior10YearEstimate!$G$136","v":356},{"$f":"D9/$D$7","v":0.42141266306076997},null,{"$f":"CntyDataLinkPrior5YearEstimates!$F$136","v":2361},{"$f":"CntyDataLinkPrior5YearEstimates!$G$136","v":404},{"$f":"H9/$H$7","v":0.37866880513231754},null,{"$f":"CntyDataLink!$F$136","v":2219},{"$f":"CntyDataLink!$G$136","v":406},{"$f":"L9/$L$7","v":0.34222702035780384},{"$f":"StatisticallySignificantCalcs!A27","v":"N"},{"$f":"StatisticallySignificantCalcs!J27","v":"N"}]
[null,null,"      Born in Different State",{"$f":"CntyDataLinkPrior10YearEstimate!$H$136","v":3461},{"$f":"CntyDataLinkPrior10YearEstimate!$I$136","v":348},0.55058860960865419,null,{"$f":"CntyDataLinkPrior5YearEstimates!$H$136","v":3494},{"$f":"CntyDataLinkPrior5YearEstimates!$I$136","v":364},{"$f":"H10/$H$7","v":0.56038492381716121},null,{"$f":"CntyDataLink!$H$136","v":3954},{"$f":"CntyDataLink!$I$136","v":426},0.6098087600246761,{"$f":"StatisticallySignificantCalcs!A28","v":"N"},{"$f":"StatisticallySignificantCalcs!J28","v":"N"}]
[null,null,"          Northeast",{"$f":"CntyDataLinkPrior10YearEstimate!$J$136","v":2833},{"$f":"CntyDataLinkPrior10YearEstimate!$K$136","v":385},0.45068405981546295,null,{"$f":"CntyDataLinkPrior5YearEstimates!$J$136","v":2931},{"$f":"CntyDataLinkPrior5YearEstimates!$K$136","v":335},0.47008821170809945,null,{"$f":"CntyDataLink!$J$136","v":3332},{"$f":"CntyDataLink!$K$136","v":457},0.51388032078963608,{"$f":"StatisticallySignificantCalcs!A29","v":"N"},{"$f":"StatisticallySignificantCalcs!J29","v":"N"}]
[null,null,"          Midwest",{"$f":"CntyDataLinkPrior10YearEstimate!$L$136","v":309},{"$f":"CntyDataLinkPrior10YearEstimate!$M$136","v":116},4.9156856506522434E-2,null,{"$f":"CntyDataLinkPrior5YearEstimates!$L$136","v":167},{"$f":"CntyDataLinkPrior5YearEstimates!$M$136","v":91},2.6784282277465918E-2,null,{"$f":"CntyDataLink!$L$136","v":240},{"$f":"CntyDataLink!$M$136","v":153},3.701418877236274E-2,{"$f":"StatisticallySignificantCalcs!A30","v":"N"},{"$f":"StatisticallySignificantCalcs!J30","v":"N"}]
[null,null,"          South",{"$f":"CntyDataLinkPrior10YearEstimate!$N$136","v":211},{"$f":"CntyDataLinkPrior10YearEstimate!$O$136","v":101},3.3566656061088135E-2,null,{"$f":"CntyDataLinkPrior5YearEstimates!$N$136","v":221},{"$f":"CntyDataLinkPrior5YearEstimates!$O$136","v":115},3.5445068163592622E-2,null,{"$f":"CntyDataLink!$N$136","v":218},{"$f":"CntyDataLink!$O$136","v":127},3.362122146822949E-2,{"$f":"StatisticallySignificantCalcs!A31","v":"N"},{"$f":"StatisticallySignificantCalcs!J31","v":"N"}]
[null,null,"          West",{"$f":"CntyDataLinkPrior10YearEstimate!$P$136","v":108},{"$f":"CntyDataLinkPrior10YearEstimate!$Q$136","v":103},1.7181037225580655E-2,null,{"$f":"CntyDataLinkPrior5YearEstimates!$P$136","v":175},{"$f":"CntyDataLinkPrior5YearEstimates!$Q$136","v":133},2.8067361668003207E-2,null,{"$f":"CntyDataLink!$P$136","v":164},{"$f":"CntyDataLink!$Q$136","v":106},2.5293028994447873E-2,{"$f":"StatisticallySignificantCalcs!A32","v":"N"},{"$f":"StatisticallySignificantCalcs!J32","v":"N"}]
[null,null,"      Native Born Outside US",{"$f":"CntyDataLinkPrior10YearEstimate!$R136","v":26},{"$f":"CntyDataLinkPrior10YearEstimate!$S$136","v":40},4.1361756283805279E-3,null,{"$f":"CntyDataLinkPrior5YearEstimates!$R136","v":130},{"$f":"CntyDataLinkPrior5YearEstimates!$S$136","v":117},2.0850040096230954E-2,null,{"$f":"CntyDataLink!$R136","v":100},{"$f":"CntyDataLink!$S$136","v":79},1.5422578655151141E-2,{"$f":"StatisticallySignificantCalcs!A33","v":"N"},{"$f":"StatisticallySignificantCalcs!J33","v":"N"}]
[null,null,"   Foreign Born",{"$f":"CntyDataLinkPrior10YearEstimate!$Z136","v":150},{"$f":"CntyDataLinkPrior10YearEstimate!$AA$136","v":98},2.3862551702195353E-2,null,{"$f":"CntyDataLinkPrior5YearEstimates!$Z136","v":250},{"$f":"CntyDataLinkPrior5YearEstimates!$AA$136","v":145},4.0096230954290296E-2,null,{"$f":"CntyDataLink!$Z136","v":211},{"$f":"CntyDataLink!$AA$136","v":158},3.254164096236891E-2,{"$f":"StatisticallySignificantCalcs!A34","v":"N"},{"$f":"StatisticallySignificantCalcs!J34","v":"N"}]
[null,null,"      Naturalized Citizen",{"$f":"CntyDataLinkPrior10YearEstimate!$AB136","v":150},{"$f":"CntyDataLinkPrior10YearEstimate!$AC$136","v":98},{"$f":"D17/$L$7","v":2.3133867982726711E-2},null,{"$f":"CntyDataLinkPrior5YearEstimates!$AB136","v":160},{"$f":"CntyDataLinkPrior5YearEstimates!$AC$136","v":110},2.566158781074579E-2,null,{"$f":"CntyDataLink!$AB136","v":78},{"$f":"CntyDataLink!$AC$136","v":60},1.2029611351017891E-2,{"$f":"StatisticallySignificantCalcs!A35","v":"N"},{"$f":"StatisticallySignificantCalcs!J35","v":"N"}]
[null,null,"      Not a Citizen",{"$f":"CntyDataLinkPrior10YearEstimate!$AD$136","v":0},{"$f":"CntyDataLinkPrior10YearEstimate!$AE$136","v":16},{"$f":"D18/$L$7","v":0},null,{"$f":"CntyDataLinkPrior5YearEstimates!$AD$136","v":90},{"$f":"CntyDataLinkPrior5YearEstimates!$AE$136","v":77},1.4434643143544507E-2,null,{"$f":"CntyDataLink!$AD$136","v":133},{"$f":"CntyDataLink!$AE$136","v":125},2.0512029611351019E-2,{"$f":"StatisticallySignificantCalcs!A36","v":"Y"},{"$f":"StatisticallySignificantCalcs!J36","v":"N"}]
[null,null,null,{"$f":"\"Source: \"& D42&\", \"& H42&\" and \"&L42& \"  American Community Survey Table B05002\"","v":"Source: Estimate, Estimate and Estimate  American Community Survey Table B05002"}]
[]
[]
[]
[]
[]
[]
[]
[]
[]
[]
[]
[]
[]
[]
[]
[]
[]
[]
[]
[]
[null,null,"Place of Residence Prior year for Population"]
[null,null,"Universe: Population",{"$f":"D5","v":"2008-2012"},null,null,null,{"$f":"H5","v":"2013-2017"},null,null,null,{"$f":"L5","v":"2018-2022"},null,null,"Statistically Significant Change "]
[null,null,null,"Estimate","Margin of Error",null,null,"Estimate","Margin of Error",null,null,"Estimate","Margin of Error",null,{"$f":"O6","v":"2012-2022"},{"$f":"P6","v":"2017-2022"}]
[null,null,"  Total:",{"$f":"CntyDataLinkPrior10YearEstimate!$AF$136","v":6267},{"$f":"CntyDataLinkPrior10YearEstimate!$AG$136","v":43},null,null,{"$f":"CntyDataLinkPrior5YearEstimates!$AF$136","v":6213},{"$f":"CntyDataLinkPrior5YearEstimates!$AG$136","v":40},null,null,{"$f":"CntyDataLink!$AF$136","v":6482},{"$f":"CntyDataLink!$AG$136","v":19},null,{"$f":"StatisticallySignificantCalcs!$A37","v":"N"},{"$f":"StatisticallySignificantCalcs!$J37","v":"Y"}]
["Same House",null,"    Same House ",{"$f":"CntyDataLinkPrior10YearEstimate!$AH$136","v":5342},{"$f":"CntyDataLinkPrior10YearEstimate!$AI$136","v":376},{"$f":"IF($D$44=\"-\",\"-\",VALUE(D44/$D$43))","v":0.85240146800702088},null,{"$f":"CntyDataLinkPrior5YearEstimates!$AH$136","v":5550},{"$f":"CntyDataLinkPrior5YearEstimates!$AI$136","v":279},{"$f":"IF($H$44=\"-\",\"-\",VALUE($H$44/$H$43))","v":0.89328826653790439},null,{"$f":"CntyDataLink!$AH$136","v":5631},{"$f":"CntyDataLink!$AI$136","v":336},{"$f":"IF($L$44=\"-\",\"-\",VALUE($L$44/$L$43))","v":0.8687133600740512},{"$f":"StatisticallySignificantCalcs!$A38","v":"N"},{"$f":"StatisticallySignificantCalcs!$J38","v":"Y"}]
[null,null,"    Different House 1  ",{"$f":"CntyDataLinkPrior10YearEstimate!$AJ$136","v":925},{"$f":"CntyDataLinkPrior10YearEstimate!$AK$136","v":412.58453679215853},{"$f":"IF($D$45=\"-\",\"-\",VALUE(D45/$D$43))","v":0.14759853199297909},null,{"$f":"CntyDataLinkPrior5YearEstimates!$AJ$136","v":663},{"$f":"CntyDataLinkPrior5YearEstimates!$AK$136","v":300.41304898422771},{"$f":"IF($H$45=\"-\",\"-\",VALUE($H$45/$H$43))","v":0.1067117334620956},null,{"$f":"CntyDataLink!$AJ$136","v":851},{"$f":"CntyDataLink!$AK$136","v":342.87023784516498},{"$f":"IF($L$45=\"-\",\"-\",VALUE($L$45/$L$43))","v":0.13128663992594877},{"$f":"StatisticallySignificantCalcs!$A39","v":"N"},{"$f":"StatisticallySignificantCalcs!$J39","v":"N"}]
["Different House in NH",null,"      in New Hampshire",{"$f":"CntyDataLinkPrior10YearEstimate!$AL$136","v":595},{"$f":"CntyDataLinkPrior10YearEstimate!$AM$136","v":328.29255245893108},{"$f":"IF($D$46=\"-\",\"-\",VALUE(D46/$D$43))","v":9.4941758417105476E-2},null,{"$f":"CntyDataLinkPrior5YearEstimates!$AL$136","v":272},{"$f":"CntyDataLinkPrior5YearEstimates!$AM$136","v":177.27944043232989},{"$f":"IF($H$46=\"-\",\"-\",VALUE($H$46/$H$43))","v":4.37791727023982E-2},null,{"$f":"CntyDataLink!$AL$136","v":383},{"$f":"CntyDataLink!$AM$136","v":222.25210910135362},{"$f":"IF($L$46=\"-\",\"-\",VALUE($L$46/$L$43))","v":5.908670163529775E-2},{"$f":"StatisticallySignificantCalcs!$A40","v":"N"},{"$f":"StatisticallySignificantCalcs!$J40","v":"N"}]
[null,null,"          Same county",{"$f":"CntyDataLinkPrior10YearEstimate!$AN$136","v":343},{"$f":"CntyDataLinkPrior10YearEstimate!$AO$136","v":240},{"$f":"IF($D$47=\"-\",\"-\",VALUE(D47/$D$43))","v":5.4731131322801982E-2},null,{"$f":"CntyDataLinkPrior5YearEstimates!$AN$136","v":104},{"$f":"CntyDataLinkPrior5YearEstimates!$AO$136","v":72},{"$f":"IF($H$47=\"-\",\"-\",VALUE($H$47/$H$43))","v":1.6739095445034605E-2},null,{"$f":"CntyDataLink!$AN$136","v":180},{"$f":"CntyDataLink!$AO$136","v":150},{"$f":"IF($L$47=\"-\",\"-\",VALUE($L$47/$L$43))","v":2.7769207034865781E-2},{"$f":"StatisticallySignificantCalcs!$A41","v":"N"},{"$f":"StatisticallySignificantCalcs!$J41","v":"N"}]
[null,null,"          Different county",{"$f":"CntyDataLinkPrior10YearEstimate!$AP$136","v":252},{"$f":"CntyDataLinkPrior10YearEstimate!$AQ$136","v":224},{"$f":"IF($D$48=\"-\",\"-\",VALUE(D48/$D$43))","v":4.0210627094303494E-2},null,{"$f":"CntyDataLinkPrior5YearEstimates!$AP$136","v":168},{"$f":"CntyDataLinkPrior5YearEstimates!$AQ$136","v":162},{"$f":"IF($H$48=\"-\",\"-\",VALUE($H$48/$H$43))","v":2.7040077257363591E-2},null,{"$f":"CntyDataLink!$AP$136","v":203},{"$f":"CntyDataLink!$AQ$136","v":164},{"$f":"IF($L$48=\"-\",\"-\",VALUE($L$48/$L$43))","v":3.1317494600431962E-2},{"$f":"StatisticallySignificantCalcs!$A42","v":"N"},{"$f":"StatisticallySignificantCalcs!$J42","v":"N"}]
["Different House in US",null,"      in Different state",{"$f":"CntyDataLinkPrior10YearEstimate!$AR$136","v":330},{"$f":"CntyDataLinkPrior10YearEstimate!$AS$136","v":235},{"$f":"IF($D$49=\"-\",\"-\",VALUE(D49/$D$43))","v":5.2656773575873624E-2},null,{"$f":"CntyDataLinkPrior5YearEstimates!$AR$136","v":391},{"$f":"CntyDataLinkPrior5YearEstimates!$AS$136","v":242},{"$f":"IF($H$49=\"-\",\"-\",VALUE($H$49/$H$43))","v":6.2932560759697415E-2},null,{"$f":"CntyDataLink!$AR$136","v":444},{"$f":"CntyDataLink!$AS$136","v":258},{"$f":"IF($L$49=\"-\",\"-\",VALUE($L$49/$L$43))","v":6.8497377352668934E-2},{"$f":"StatisticallySignificantCalcs!$A43","v":"N"},{"$f":"StatisticallySignificantCalcs!$J43","v":"N"}]
["Elsewhere",null,"       Elsewhere",{"$f":"CntyDataLinkPrior10YearEstimate!$AT$136","v":0},{"$f":"CntyDataLinkPrior10YearEstimate!$AU$136","v":85},{"$f":"IF($D$50=\"-\",\"-\",VALUE(D50/$D$43))","v":0},null,{"$f":"CntyDataLinkPrior5YearEstimates!$AT$136","v":0},{"$f":"CntyDataLinkPrior5YearEstimates!$AU$136","v":16},{"$f":"IF($H$50=\"-\",\"-\",VALUE($H$50/$H$43))","v":0},null,{"$f":"CntyDataLink!$AT$136","v":24},{"$f":"CntyDataLink!$AU$136","v":40},{"$f":"IF($L$50=\"-\",\"-\",VALUE($L$50/$L$43))","v":3.7025609379821045E-3},{"$f":"StatisticallySignificantCalcs!$A44","v":"N"},{"$f":"StatisticallySignificantCalcs!$J44","v":"N"}]
[]
[null,null,"Data from the American Community Survey are estimates"]
[]
[null,null,"1   The number for Different House was calculated by adding In New Hampshire, In Different State, and Elsewhere totals. The number is not located in the source Table B07003."]
[]
[]
[null,null,{"$f":"\"Source: \"& D41&\", \"& H41&\" and \"&L41& \" American Community Survey Table B07003.\"","v":"Source: 2008-2012, 2013-2017 and 2018-2022 American Community Survey Table B07003."}]

{"sheet":"ACS_Table_B05002","index":64,"n_rows":84,"n_cols":40,"rows_kept":84,"cut":false,"hidden":true,"merged":[]}
[null,"B05002. PLACE OF BIRTH BY CITIZENSHIP STATUS"]
[null,"Universe: TOTAL POPULATION"]
[null,"Data Set: 2018-2022 American Community Survey 5-Year Estimates"]
[]
[null,null,"Albany",null,"Bartlett",null,"Brookfield",null,"Chatham",null,"Conway",null,"Eaton",null,"Effingham",null,"Freedom",null,"Hale's Location",null,"Hart's Location",null,"Jackson",null,"Madison",null,"Moultonborough",null,"Ossipee",null,"Sandwich",null,"Tamworth",null,"Tuftonboro",null,"Wakefield",null,"Wolfeboro"]
[null," ","Estimate","Margin of Error","Estimate","Margin of Error","Estimate","Margin of Error","Estimate","Margin of Error","Estimate","Margin of Error","Estimate","Margin of Error","Estimate","Margin of Error","Estimate","Margin of Error","Estimate","Margin of Error","Estimate","Margin of Error","Estimate","Margin of Error","Estimate","Margin of Error","Estimate","Margin of Error","Estimate","Margin of Error","Estimate","Margin of Error","Estimate","Margin of Error","Estimate","Margin of Error","Estimate","Margin of Error","Estimate","Margin of Error"]
[null,"Total:",708,164,3207,17,536,142,423,109,9981,18,355,72,1794,280,1336,184,196,61,53,37,1149,182,2609,21,4950,16,4443,15,1838,254,2844,15,2507,27,5266,18,6484,18]
[null,"Native:",695,164,3201,19,533,141,404,105,9797,93,346,72,1750,284,1303,183,182,58,53,37,1100,175,2560,40,4862,47,4179,149,1751,243,2803,39,2447,50,5153,103,6273,157]
[null,"Born in state of residence",291,98,828,316,151,55,156,43,3146,444,117,49,871,158,405,97,10,10,20,24,350,97,1103,215,1590,337,1959,343,578,126,1185,242,1020,209,2049,494,2219,406]
[null,"Born in other state in the United States:",404,102,2328,318,382,113,248,83,6471,409,229,49,879,199,889,157,172,56,33,29,750,148,1439,206,3148,321,2213,371,1148,202,1612,240,1374,198,2991,453,3954,426]
[null,"Northeast",321,81,1908,317,284,89,190,73,5564,500,196,45,731,157,803,156,142,49,33,29,600,126,1188,177,2554,348,1847,364,893,195,1297,249,899,154,2585,374,3332,457]
[null,"Midwest",46,62,86,77,40,26,22,10,323,120,4,5,75,73,44,26,27,21,0,12,63,51,47,32,187,108,97,63,97,57,110,101,179,105,47,44,240,153]
[null,"South",14,18,231,165,23,13,23,22,304,143,11,8,45,33,30,22,0,12,0,12,50,43,121,52,284,124,119,63,105,38,155,102,262,219,123,120,218,127]
[null,"West",23,24,103,107,35,19,13,13,280,192,18,18,28,26,12,12,3,4,0,12,37,37,83,50,123,69,150,77,53,30,50,62,34,30,236,218,164,106]
[null,"Born outside the United States:",0,12,45,55,0,12,0,12,180,102,0,12,0,12,9,9,0,12,0,12,0,12,18,21,124,90,7,14,25,20,6,9,53,47,113,101,100,79]
[null,"Puerto Rico",0,12,4,7,0,12,0,12,87,95,0,12,0,12,0,12,0,12,0,12,0,12,0,12,1,4,0,12,5,10,0,12,0,12,0,17,0,17]
[null,"U.S. Island Areas",0,12,0,12,0,12,0,12,0,17,0,12,0,12,0,12,0,12,0,12,0,12,0,12,0,12,0,12,0,12,0,12,0,12,0,17,0,17]
[null,"Born abroad of American parent(s)",0,12,41,55,0,12,0,12,93,101,0,12,0,12,9,9,0,12,0,12,0,12,18,21,123,89,7,14,20,17,6,9,53,47,113,101,100,79]
[null,"Foreign born:",13,12,6,9,3,6,19,17,184,91,9,9,44,32,33,22,14,12,0,12,49,55,49,34,88,43,264,149,87,83,41,37,60,45,113,97,211,158]
[null,"Naturalized U.S. citizen",13,12,0,12,1,4,14,14,156,89,7,7,36,31,33,22,14,12,0,12,49,55,25,26,71,35,165,141,75,81,18,28,60,45,104,96,78,60]
[null,"Europe",0,12,0,12,0,12,5,8,26,38,4,4,4,6,10,9,4,5,0,12,22,21,13,13,57,32,0,12,3,4,0,12,41,39,0,17,32,47]
[null,"Asia",5,7,0,12,0,12,6,9,66,59,0,12,16,19,6,11,5,8,0,12,0,12,12,21,1,2,13,25,72,81,18,28,0,12,0,17,16,26]
[null,"Africa",0,12,0,12,0,12,0,12,0,17,0,12,0,12,0,12,0,12,0,12,0,12,0,12,0,12,141,129,0,12,0,12,0,12,0,17,0,17]
[null,"Oceania",0,12,0,12,0,12,0,12,0,17,0,12,0,12,0,12,0,12,0,12,0,12,0,12,0,12,0,12,0,12,0,12,9,13,0,17,0,17]
[null,"Latin America",5,9,0,12,1,4,0,12,58,55,3,4,16,24,0,12,0,12,0,12,27,52,0,12,0,12,0,12,0,12,0,12,0,12,77,95,22,33]
[null,"Northern America",3,4,0,12,0,12,3,5,6,11,0,12,0,12,17,15,5,8,0,12,0,12,0,12,13,16,11,18,0,12,0,12,10,14,27,29,8,13]
[null,"Not a U.S. citizen",0,12,6,9,2,5,5,6,28,44,2,3,8,8,0,12,0,12,0,12,0,12,24,21,17,20,99,45,12,10,23,22,0,12,9,14,133,125]
[null,"Europe",0,12,0,12,0,12,5,6,0,17,2,3,0,12,0,12,0,12,0,12,0,12,19,21,0,12,5,12,12,10,10,16,0,12,9,14,59,57]
[null,"Asia",0,12,3,7,0,12,0,12,0,17,0,12,0,12,0,12,0,12,0,12,0,12,4,6,0,12,54,25,0,12,13,14,0,12,0,17,58,93]
[null,"Africa",0,12,0,12,2,5,0,12,0,17,0,12,0,12,0,12,0,12,0,12,0,12,0,12,2,4,40,20,0,12,0,12,0,12,0,17,0,17]
[null,"Oceania",0,12,0,12,0,12,0,12,28,44,0,12,0,12,0,12,0,12,0,12,0,12,0,12,0,12,0,12,0,12,0,12,0,12,0,17,0,17]
[null,"Latin America",0,12,3,8,0,12,0,12,0,17,0,12,5,8,0,12,0,12,0,12,0,12,0,12,0,12,0,12,0,12,0,12,0,12,0,17,0,17]
[null,"Northern America",0,12,0,12,0,12,0,12,0,17,0,12,3,4,0,12,0,12,0,12,0,12,1,3,15,20,0,12,0,12,0,12,0,12,0,17,16,27]
[]
[]
[]
[]
[]
[]
[null,"B05002. PLACE OF BIRTH BY CITIZENSHIP STATUS"]
[null,"Universe: TOTAL POPULATION"]
[null,"Data Set: 2013-2017 American Community Survey 5-Year Estimates"]
[]
[null,null,"Albany",null,"Bartlett",null,"Brookfield",null,"Chatham",null,"Conway",null,"Eaton",null,"Effingham",null,"Freedom",null,"Hale's Location",null,"Hart's Location",null,"Jackson",null,"Madison",null,"Moultonborough",null,"Ossipee",null,"Sandwich",null,"Tamworth",null,"Tuftonboro",null,"Wakefield",null,"Wolfeboro"]
[null," ","Estimate","Margin of Error","Estimate","Margin of Error","Estimate","Margin of Error","Estimate","Margin of Error","Estimate","Margin of Error","Estimate","Margin of Error","Estimate","Margin of Error","Estimate","Margin of Error","Estimate","Margin of Error","Estimate","Margin of Error","Estimate","Margin of Error","Estimate","Margin of Error","Estimate","Margin of Error","Estimate","Margin of Error","Estimate","Margin of Error","Estimate","Margin of Error","Estimate","Margin of Error","Estimate","Margin of Error","Estimate","Margin of Error"]
[null,"Total:",782,141,2760,22,876,265,339,109,10021,19,321,68,1435,174,1314,175,159,48,52,31,957,220,2518,22,4049,20,4287,18,1342,199,2917,13,2153,183,5007,19,6235,19]
[null,"Native:",778,141,2755,23,855,254,331,108,9724,144,310,65,1420,174,1268,172,147,46,52,31,920,211,2439,63,3950,75,4159,107,1320,199,2871,42,2100,187,4791,184,5985,143]
[null,"Born in state of residence",375,96,998,212,350,133,129,63,4146,460,85,32,636,123,413,93,3,4,9,10,212,90,846,171,1095,247,1573,243,457,129,1460,316,802,137,2264,361,2361,404]
[null,"Born in other state in the United States:",399,79,1705,241,505,175,202,58,5510,441,221,58,777,116,848,138,144,45,43,26,708,157,1578,160,2842,256,2583,233,852,127,1395,310,1293,149,2527,380,3494,364]
[null,"Northeast",290,61,1419,215,389,149,163,45,4639,449,191,56,640,99,725,127,131,43,43,26,596,141,1310,180,2551,278,1893,213,655,107,1052,284,1069,143,2086,375,2931,335]
[null,"Midwest",31,16,94,66,26,18,17,12,350,166,10,10,42,20,60,30,5,5,0,11,49,28,72,54,127,64,83,50,100,59,202,117,70,35,57,51,167,91]
[null,"South",73,38,131,160,62,48,9,10,324,139,14,9,71,40,49,28,0,11,0,11,55,42,152,62,129,68,262,134,51,31,64,46,108,50,229,143,221,115]
[null,"West",5,6,61,50,28,18,13,15,197,155,6,6,24,13,14,11,8,8,0,11,8,12,44,36,35,32,345,162,46,30,77,72,46,23,155,131,175,133]
[null,"Born outside the United States:",4,5,52,54,0,11,0,11,68,49,4,5,7,7,7,7,0,11,0,11,0,11,15,18,13,15,3,8,11,9,16,22,5,9,0,16,130,117]
[null,"Puerto Rico",0,11,0,11,0,11,0,11,0,18,0,11,0,11,0,11,0,11,0,11,0,11,0,11,0,11,0,11,0,11,0,11,0,11,0,16,1,3]
[null,"U.S. Island Areas",0,11,0,11,0,11,0,11,0,18,0,11,0,11,0,11,0,11,0,11,0,11,0,11,0,11,0,11,0,11,16,22,0,11,0,16,0,16]
[null,"Born abroad of American parent(s)",4,5,52,54,0,11,0,11,68,49,4,5,7,7,7,7,0,11,0,11,0,11,15,18,13,15,3,8,11,9,0,11,5,9,0,16,129,117]
[null,"Foreign born:",4,5,5,6,21,30,8,7,297,141,11,11,15,18,46,26,12,10,0,11,37,44,79,60,99,70,128,103,22,17,46,40,53,32,216,185,250,145]
[null,"Naturalized U.S. citizen",4,5,3,6,3,5,5,6,138,83,11,11,3,5,27,23,10,9,0,11,37,44,46,43,78,61,79,66,10,10,46,40,53,32,79,100,160,110]
[null,"Not a U.S. citizen",0,11,2,4,18,30,3,5,159,113,0,11,12,17,19,22,2,4,0,11,0,11,33,32,21,35,49,75,12,12,0,11,0,11,137,114,90,77]
[]
[]
[]
[null,"B05002. PLACE OF BIRTH BY CITIZENSHIP STATUS"]
[null,"Universe: TOTAL POPULATION"]
[null,"Data Set: 2008-2012 American Community Survey 5-Year Estimates"]
[]
[null,null,"Albany",null,"Bartlett",null,"Brookfield",null,"Chatham",null,"Conway",null,"Eaton",null,"Effingham",null,"Freedom",null,"Hale's Location",null,"Hart's Location",null,"Jackson",null,"Madison",null,"Moultonborough",null,"Ossipee",null,"Sandwich",null,"Tamworth",null,"Tuftonboro",null,"Wakefield",null,"Wolfeboro"]
[null," ","Estimate","Margin of Error","Estimate","Margin of Error","Estimate","Margin of Error","Estimate","Margin of Error","Estimate","Margin of Error","Estimate","Margin of Error","Estimate","Margin of Error","Estimate","Margin of Error","Estimate","Margin of Error","Estimate","Margin of Error","Estimate","Margin of Error","Estimate","Margin of Error","Estimate","Margin of Error","Estimate","Margin of Error","Estimate","Margin of Error","Estimate","Margin of Error","Estimate","Margin of Error","Estimate","Margin of Error","Estimate","Margin of Error"]
[null,"Total:",875,179,2793,17,681,160,446,148,10063,28,393,77,1344,202,1197,167,110,29,33,21,990,232,2496,24,4078,16,4341,24,1224,201,2854,18,2513,307,5044,19,6286,17]
[null,"Native:",866,178,2712,68,681,160,443,148,9519,266,365,73,1305,207,1177,163,109,30,33,21,893,210,2403,64,4011,58,4300,40,1197,199,2819,36,2448,313,4971,61,6136,96]
[null,"Born in state of residence",398,109,1139,248,249,93,176,72,4467,496,139,44,541,129,428,116,12,9,6,7,243,94,933,134,1097,193,1543,288,458,137,1106,188,843,192,1822,275,2649,356]
[null,"Born in other state in the United States:",468,111,1558,237,422,106,267,104,5035,489,224,51,764,136,742,102,97,28,27,21,636,156,1469,150,2897,194,2665,288,724,119,1638,192,1571,250,3105,253,3461,348]
[null,"Northeast",396,104,1455,220,341,96,225,99,4429,500,206,51,618,117,647,97,73,22,17,17,490,114,1297,157,2274,196,2122,302,586,102,1252,192,1290,225,2622,326,2833,385]
[null,"Midwest",23,14,11,15,13,10,25,17,184,87,5,8,34,20,33,21,13,10,10,12,5,9,70,47,255,112,210,155,31,18,112,49,124,71,130,113,309,116]
[null,"South",36,35,73,58,41,26,9,17,255,131,8,7,62,35,38,17,11,10,0,11,90,72,71,55,268,123,251,106,59,21,92,49,89,45,253,109,211,101]
[null,"West",13,15,19,24,27,30,8,13,167,95,5,5,50,67,24,17,0,11,0,11,51,31,31,27,100,66,82,70,48,22,182,166,68,47,100,65,108,103]
[null,"Born outside the United States:",0,11,15,25,10,12,0,11,17,20,2,4,0,11,7,8,0,11,0,11,14,22,1,3,17,22,92,74,15,14,75,71,34,38,44,53,26,40]
[null,"Puerto Rico",0,11,0,11,0,11,0,11,0,18,0,11,0,11,0,11,0,11,0,11,0,11,0,11,0,11,0,11,0,11,0,11,0,11,0,16,25,40]
[null,"U.S. Island Areas",0,11,0,11,5,9,0,11,0,18,0,11,0,11,0,11,0,11,0,11,0,11,0,11,0,11,0,11,0,11,0,11,0,11,18,28,0,16]
[null,"Born abroad of American parent(s)",0,11,15,25,5,8,0,11,17,20,2,4,0,11,7,8,0,11,0,11,14,22,1,3,17,22,92,74,15,14,75,71,34,38,26,45,1,2]
[null,"Foreign born:",9,10,81,70,0,11,3,5,544,260,28,19,39,50,20,14,1,3,0,11,97,54,93,59,67,57,41,29,27,20,35,31,65,62,73,58,150,98]
[null,"Naturalized U.S. citizen",5,7,11,19,0,11,3,5,179,106,10,11,36,49,16,12,1,3,0,11,59,50,43,37,39,36,31,22,19,15,35,31,51,49,40,43,150,98]
[null,"Not a U.S. citizen",4,6,70,59,0,11,0,11,365,214,18,15,3,5,4,6,0,11,0,11,38,25,50,41,28,44,10,16,8,13,0,11,14,22,33,36,0,16]

{"sheet":"ACS_Table_B07003","index":65,"n_rows":89,"n_cols":40,"rows_kept":89,"cut":false,"hidden":true,"merged":[]}
[null,"B07003. GEOGRAPHICAL MOBILITY IN THE PAST YEAR BY SEX FOR CURRENT RESIDENCE IN THE UNITED STATES - Universe:  POPULATION 1 YEAR AND OVER IN THE UNITED STATES"]
[null,"Data Set: 2018-2022 American Community Survey 5-Year Estimates"]
[null,"Survey: American Community Survey"]
[]
[null,null,"Albany",null,"Bartlett",null,"Brookfield",null,"Chatham",null,"Conway",null,"Eaton",null,"Effingham",null,"Freedom",null,"Hale's Location",null,"Hart's Location",null,"Jackson",null,"Madison",null,"Moultonborough",null,"Ossipee",null,"Sandwich",null,"Tamworth",null,"Tuftonboro",null,"Wakefield",null,"Wolfeboro"]
[null," ","Estimate","Margin of Error","Estimate","Margin of Error","Estimate","Margin of Error","Estimate","Margin of Error","Estimate","Margin of Error","Estimate","Margin of Error","Estimate","Margin of Error","Estimate","Margin of Error","Estimate","Margin of Error","Estimate","Margin of Error","Estimate","Margin of Error","Estimate","Margin of Error","Estimate","Margin of Error","Estimate","Margin of Error","Estimate","Margin of Error","Estimate","Margin of Error","Estimate","Margin of Error","Estimate","Margin of Error","Estimate","Margin of Error"]
[null,"Total:",708,164,3207,17,525,136,423,109,9932,46,355,72,1755,280,1332,183,196,61,53,37,1149,182,2599,26,4918,36,4386,57,1834,253,2815,24,2470,53,5266,18,6482,19]
[null,"Male",304,77,1736,181,272,80,222,58,5126,308,179,44,786,120,629,97,111,42,41,32,494,88,1248,148,2549,167,2436,167,1003,183,1393,156,1243,100,2800,184,2976,250]
[null,"Female",404,116,1471,179,253,65,201,63,4806,319,176,46,969,204,703,127,85,32,12,13,655,117,1351,150,2369,159,1950,153,831,137,1422,160,1227,107,2466,184,3506,253]
[null,"Same house 1 year ago:",631,164,3072,106,504,131,411,107,8903,355,315,71,1273,156,1201,181,170,56,48,36,1065,146,2372,146,4588,178,3907,180,1705,248,2381,252,2191,144,4565,356,5631,336]
[null,"Male",278,74,1601,192,262,77,217,56,4335,390,151,42,602,100,554,86,96,41,39,31,443,78,1137,167,2380,192,2166,182,942,185,1183,188,1107,121,2446,248,2596,248]
[null,"Female",353,117,1471,179,242,63,194,63,4568,285,164,46,671,109,647,127,74,27,9,12,622,93,1235,153,2208,165,1741,169,763,125,1198,203,1084,124,2119,252,3035,271]
[null,"Moved within same county:",41,31,37,49,3,5,2,4,498,194,26,21,329,208,27,31,0,12,0,12,0,12,122,78,148,99,272,115,8,14,105,87,20,24,443,308,180,150]
[null,"Male",18,14,37,49,0,12,0,12,338,149,17,15,98,65,23,26,0,12,0,12,0,12,61,52,40,34,131,59,4,7,60,60,0,12,195,142,22,35]
[null,"Female",23,20,0,12,3,5,2,4,160,90,9,11,231,154,4,7,0,12,0,12,0,12,61,42,108,79,141,67,4,8,45,57,20,24,248,182,158,132]
[null,"Moved from different county within same state:",11,18,0,12,6,6,0,12,96,106,0,12,125,78,6,8,0,12,2,5,0,12,0,12,28,44,67,38,22,19,54,50,26,27,91,95,203,164]
[null,"Male",0,12,0,12,2,3,0,12,84,106,0,12,76,59,0,12,0,12,2,5,0,12,0,12,28,44,67,38,16,15,17,22,16,16,80,92,148,154]
[null,"Female",11,18,0,12,4,4,0,12,12,20,0,12,49,37,6,8,0,12,0,12,0,12,0,12,0,12,0,12,6,7,37,47,10,14,11,19,55,47]
[null,"Moved from different state:",25,23,98,91,12,15,10,10,435,321,14,16,28,21,96,56,26,31,3,5,84,99,105,95,154,111,121,96,99,61,275,230,233,131,167,124,444,258]
[null,"Male",8,12,98,91,8,10,5,6,369,309,11,11,10,9,52,35,15,16,0,12,51,54,50,48,101,95,72,64,41,28,133,126,120,75,79,64,202,132]
[null,"Female",17,16,0,12,4,6,5,6,66,77,3,7,18,13,44,26,11,17,3,5,33,53,55,51,53,39,49,43,58,51,142,110,113,77,88,67,242,194]
[null,"Moved from abroad:",0,12,0,12,0,12,0,12,0,17,0,12,0,12,2,3,0,12,0,12,0,12,0,12,0,12,19,29,0,12,0,12,0,12,0,17,24,40]
[null,"Male",0,12,0,12,0,12,0,12,0,17,0,12,0,12,0,12,0,12,0,12,0,12,0,12,0,12,0,12,0,12,0,12,0,12,0,17,8,13]
[null,"Female",0,12,0,12,0,12,0,12,0,17,0,12,0,12,2,3,0,12,0,12,0,12,0,12,0,12,19,29,0,12,0,12,0,12,0,17,16,27]
[]
[null,"Calculated B07003. GEOGRAPHICAL MOBILITY IN THE PAST YEAR BY SEX FOR CURRENT RESIDENCE IN THE UNITED STATES "]
[null,null,{"$f":"C5","v":"Albany"},null,"Bartlett",null,"Brookfield",null,"Chatham",null,"Conway",null,"Eaton",null,"Effingham",null,"Freedom",null,"Hale's Location",null,"Hart's Location",null,"Jackson",null,{"$f":"Y5","v":"Madison"},null,{"$f":"AA5","v":"Moultonborough"},null,{"$f":"AC5","v":"Ossipee"},null,{"$f":"AE5","v":"Sandwich"},null,{"$f":"AG5","v":"Tamworth"},null,{"$f":"AI5","v":"Tuftonboro"},null,{"$f":"AK5","v":"Wakefield"},null,{"$f":"AM5","v":"Wolfeboro"}]
[null,null,"Estimate","Margin of Error","Estimate","Margin of Error","Estimate","Margin of Error","Estimate","Margin of Error","Estimate","Margin of Error","Estimate","Margin of Error","Estimate","Margin of Error","Estimate","Margin of Error","Estimate","Margin of Error","Estimate","Margin of Error","Estimate",{"$f":"X6","v":"Margin of Error"},{"$f":"Y6","v":"Estimate"},{"$f":"Z6","v":"Margin of Error"},"Estimate","Margin of Error","Estimate","Margin of Error","Estimate","Margin of Error","Estimate","Margin of Error","Estimate","Margin of Error","Estimate","Margin of Error","Estimate","Margin of Error"]
[]
[null,"  Total:",{"$f":"C7","v":708},{"$f":"D7","v":164},{"$f":"E7","v":3207},17,525,136,423,109,9932,46,355,72,1755,280,1332,183,196,61,53,37,1149,182,{"$f":"Y7","v":2599},26,4918,36,4386,57,1834,253,2815,24,2470,53,5266,18,6482,19]
[null,"    Same house ",{"$f":"C10","v":631},{"$f":"D10","v":164},{"$f":"E10","v":3072},106,504,131,411,107,8903,355,315,71,1273,156,1201,181,170,56,48,36,1065,146,{"$f":"Y10","v":2372},146,4588,178,3907,180,1705,248,2381,252,2191,144,4565,356,5631,336]
[null,"    Different house 2",{"$f":"C13+C16+C19+C22","v":77},{"$f":"SQRT((D13^2)+(D16^2)+(D19^2)+(D22^2))","v":44.24929377967517},{"$f":"E13+E16+E19+E22","v":135},{"$f":"SQRT((F13^2)+(F16^2)+(F19^2)+(F22^2))","v":104.7377677822093},{"$f":"G13+G16+G19+G22","v":21},{"$f":"SQRT((H13^2)+(H16^2)+(H19^2)+(H22^2))","v":20.73644135332772},{"$f":"I13+I16+I19+I22","v":12},{"$f":"SQRT((J13^2)+(J16^2)+(J19^2)+(J22^2))","v":20.09975124224178},{"$f":"K13+K16+K19+K22","v":1029},{"$f":"SQRT((L13^2)+(L16^2)+(L19^2)+(L22^2))","v":390.13074731428179},{"$f":"M13+M16+M19+M22","v":40},{"$f":"SQRT((N13^2)+(N16^2)+(N19^2)+(N22^2))","v":31.384709652950431},{"$f":"O13+O16+O19+O22","v":482},{"$f":"SQRT((P13^2)+(P16^2)+(P19^2)+(P22^2))","v":223.45693097328621},{"$f":"Q13+Q16+Q19+Q22","v":131},{"$f":"SQRT((R13^2)+(R16^2)+(R19^2)+(R22^2))","v":64.575537163851763},{"$f":"S13+S16+S19+S22","v":26},{"$f":"SQRT((T13^2)+(T16^2)+(T19^2)+(T22^2))","v":37.322915213043046},{"$f":"U13+U16+U19+U22","v":5},{"$f":"SQRT((V13^2)+(V16^2)+(V19^2)+(V22^2))","v":18.384776310850235},{"$f":"W13+W16+W19+W22","v":84},{"$f":"SQRT((X13^2)+(X16^2)+(X19^2)+(X22^2))","v":101.1582918005242},{"$f":"Y13+Y16+Y19+Y22","v":227},{"$f":"SQRT((Z13^2)+(Z16^2)+(Z19^2)+(Z22^2))","v":124.08464852672147},{"$f":"AA13+AA16+AA19+AA22","v":330},{"$f":"SQRT((AB13^2)+(AB16^2)+(AB19^2)+(AB22^2))","v":155.56991997169632},{"$f":"AC13+AC16+AC19+AC22","v":479},{"$f":"SQRT((AD13^2)+(AD16^2)+(AD19^2)+(AD22^2))","v":157.24503171801646},{"$f":"AE13+AE16+AE19+AE22","v":129},{"$f":"SQRT((AF13^2)+(AF16^2)+(AF19^2)+(AF22^2))","v":66.498120274185197},{"$f":"AG13+AG16+AG19+AG22","v":434},{"$f":"SQRT((AH13^2)+(AH16^2)+(AH19^2)+(AH22^2))","v":251.22300850041583},{"$f":"AI13+AI16+AI19+AI22","v":279},{"$f":"SQRT((AJ13^2)+(AJ16^2)+(AJ19^2)+(AJ22^2))","v":136.41847382227965},{"$f":"AK13+AK16+AK19+AK22","v":701},{"$f":"SQRT((AL13^2)+(AL16^2)+(AL19^2)+(AL22^2))","v":345.7658167025769},{"$f":"AM13+AM16+AM19+AM22","v":851},{"$f":"SQRT((AN13^2)+(AN16^2)+(AN19^2)+(AN22^2))","v":342.87023784516498}]
[null,"      in New Hampshire",{"$f":"C16+C13","v":52},{"$f":"SQRT((D16^2)+(D13^2))","v":35.846896657869841},{"$f":"E16+E13","v":37},{"$f":"SQRT((F16^2)+(F13^2))","v":50.447993022517757},{"$f":"G16+G13","v":9},{"$f":"SQRT((H16^2)+(H13^2))","v":7.810249675906654},{"$f":"I16+I13","v":2},{"$f":"SQRT((J16^2)+(J13^2))","v":12.649110640673518},{"$f":"K16+K13","v":594},{"$f":"SQRT((L16^2)+(L13^2))","v":221.07012462112559},{"$f":"M16+M13","v":26},{"$f":"SQRT((N16^2)+(N13^2))","v":24.186773244895647},{"$f":"O16+O13","v":454},{"$f":"SQRT((P16^2)+(P13^2))","v":222.14409737825582},{"$f":"Q16+Q13","v":33},{"$f":"SQRT((R16^2)+(R13^2))","v":32.015621187164243},{"$f":"S16+S13","v":0},{"$f":"SQRT((T16^2)+(T13^2))","v":16.970562748477139},{"$f":"U16+U13","v":2},{"$f":"SQRT((V16^2)+(V13^2))","v":13},{"$f":"W16+W13","v":0},{"$f":"SQRT((X16^2)+(X13^2))","v":16.970562748477139},{"$f":"Y16+Y13","v":122},{"$f":"SQRT((Z16^2)+(Z13^2))","v":78.917678627795439},{"$f":"AA16+AA13","v":176},{"$f":"SQRT((AB16^2)+(AB13^2))","v":108.33743581975715},{"$f":"AC16+AC13","v":339},{"$f":"SQRT((AD16^2)+(AD13^2))","v":121.1156472137271},{"$f":"AE16+AE13","v":30},{"$f":"SQRT((AF16^2)+(AF13^2))","v":23.600847442411894},{"$f":"AG16+AG13","v":159},{"$f":"SQRT((AH16^2)+(AH13^2))","v":100.34440691936945},{"$f":"AI16+AI13","v":46},{"$f":"SQRT((AJ16^2)+(AJ13^2))","v":36.124783736376884},{"$f":"AK16+AK13","v":534},{"$f":"SQRT((AL16^2)+(AL13^2))","v":322.31816579274584},{"$f":"AM16+AM13","v":383},{"$f":"SQRT((AN16^2)+(AN13^2))","v":222.25210910135362}]
[null,"          Same county",{"$f":"C13","v":41},{"$f":"D13","v":31},{"$f":"E13","v":37},49,3,5,2,4,498,194,26,21,329,208,27,31,0,12,0,12,0,12,{"$f":"Y13","v":122},78,148,99,272,115,8,14,105,87,20,24,443,308,180,150]
[null,"          Different county",{"$f":"C16","v":11},{"$f":"D16","v":18},{"$f":"E16","v":0},12,6,6,0,12,96,106,0,12,125,78,6,8,0,12,2,5,0,12,{"$f":"Y16","v":0},12,28,44,67,38,22,19,54,50,26,27,91,95,203,164]
[null,"      in Different state",{"$f":"C19","v":25},{"$f":"D19","v":23},{"$f":"E19","v":98},91,12,15,10,10,435,321,14,16,28,21,96,56,26,31,3,5,84,99,{"$f":"Y19","v":105},95,154,111,121,96,99,61,275,230,233,131,167,124,444,258]
[null,"       Elsewhere",{"$f":"C22","v":0},{"$f":"D22","v":12},{"$f":"E22","v":0},12,0,12,0,12,0,17,0,12,0,12,2,3,0,12,0,12,0,12,{"$f":"Y22","v":0},12,0,12,19,29,0,12,0,12,0,12,0,17,24,40]
[]
[]
[]
[]
[]
[]
[]
[]
[]
[]
[]
[]
[]
[]
[]
[]
[]
[]
[]
[]
[]
[]
[null,"Calculated GEOGRAPHICAL MOBILITY IN THE PAST YEAR BY SEX FOR CURRENT RESIDENCE IN THE UNITED STATES"]
[null,"Universe:  POPULATION 1 YEAR AND OVER IN THE UNITED STATES"]
[null,"Data Set: 2013-2017 American Community Survey 5-Year Estimates"]
[null,null,"Albany",null,"Bartlett",null,"Brookfield",null,"Chatham",null,"Conway",null,"Eaton",null,"Effingham",null,"Freedom",null,"Hale's Location",null,"Hart's Location",null,"Jackson",null,"Madison",null,"Moultonborough",null,"Ossipee",null,"Sandwich",null,"Tamworth",null,"Tuftonboro",null,"Wakefield",null,"Wolfeboro"]
[null,null,"Estimate","Margin of Error","Estimate","Margin of Error","Estimate","Margin of Error","Estimate","Margin of Error","Estimate","Margin of Error","Estimate","Margin of Error","Estimate","Margin of Error","Estimate","Margin of Error","Estimate","Margin of Error","Estimate","Margin of Error","Estimate","Margin of Error","Estimate","Margin of Error","Estimate","Margin of Error","Estimate","Margin of Error","Estimate","Margin of Error","Estimate","Margin of Error","Estimate","Margin of Error","Estimate","Margin of Error","Estimate","Margin of Error"]
[]
[null,"  Total:",779,140,2760,22,876,265,332,106,9912,84,318,67,1430,174,1314,175,159,48,52,31,957,220,2490,33,4049,20,4262,30,1339,200,2917,13,2128,175,4974,44,6213,40]
[null,"    Same house ",680,135,2546,142,727,215,274,79,8335,419,293,64,1261,161,1107,147,152,45,52,31,893,215,2142,148,3650,197,3699,206,1137,171,2627,304,1990,165,4216,340,5550,279]
[null,"    Different house 2",99,66.226882759193799,214,133.18408313308313,149,116.56328753085167,58,44.407206622349037,1577,463.50080906078256,25,18.439088914585774,169,109.67223896684156,207,114.19719786404568,7,16.941074346097416,0,22,64,54.753995288015282,348,147.2922265430189,399,217.28782754678184,563,213.56966076669224,202,90.835015274947793,290,308.28071623116489,138,82.915619758885001,758,405.7844255266582,663,300.41304898422771]
[null,"      in New Hampshire",46,33.600595232822883,166,121.24768039018313,118,108.55873986004075,30,35.128336140500593,1168,421.63135557024219,21,13.038404810405298,141,107.78682665335315,198,113.64858116140297,2,11.401754250991379,0,15.556349186104045,36,27.586228448267445,245,122.5275479229059,361,214.80456233516085,344,172.5340546095176,133,73.661387442811588,272,307.14817271147814,107,77.620873481300123,643,397.29585953040083,272,177.27944043232989]
[null,"          Same county",17,20,121,110,118,108,29,35,995,397,14,11,129,107,142,100,2,3,0,11,24,20,219,118,203,171,160,122,100,49,211,302,26,20,270,188,104,72]
[null,"          Different county",29,27,45,51,0,11,1,3,173,142,7,7,12,13,56,54,0,11,0,11,12,19,26,33,158,130,184,122,33,55,61,56,81,75,373,350,168,162]
[null,"      in Different state",53,56,48,54,31,41,26,27,401,192,4,7,28,17,6,10,5,6,0,11,28,46,103,81,29,28,184,120,69,52,18,24,31,27,115,81,391,242]
[null,"       Elsewhere",0,11,0,11,0,11,2,3,8,14,0,11,0,11,3,5,0,11,0,11,0,11,0,11,9,17,35,38,0,11,0,11,0,11,0,16,0,16]
[]
[]
[]
[null,"Calculated GEOGRAPHICAL MOBILITY IN THE PAST YEAR BY SEX FOR CURRENT RESIDENCE IN THE UNITED STATES"]
[null,"Universe:  POPULATION 1 YEAR AND OVER IN THE UNITED STATES"]
[null,"Data Set: 2008-2012 American Community Survey 3-Year Estimates"]
[null,null,"Albany",null,"Bartlett",null,"Brookfield",null,"Chatham",null,"Conway",null,"Eaton",null,"Effingham",null,"Freedom",null,"Hale's Location",null,"Hart's Location",null,"Jackson",null,"Madison",null,"Moultonborough",null,"Ossipee",null,"Sandwich",null,"Tamworth",null,"Tuftonboro",null,"Wakefield",null,"Wolfeboro"]
[null," ","Estimate","Margin of Error","Estimate","Margin of Error","Estimate","Margin of Error","Estimate","Margin of Error","Estimate","Margin of Error","Estimate","Margin of Error","Estimate","Margin of Error","Estimate","Margin of Error","Estimate","Margin of Error","Estimate","Margin of Error","Estimate","Margin of Error","Estimate","Margin of Error","Estimate","Margin of Error","Estimate","Margin of Error","Estimate","Margin of Error","Estimate","Margin of Error","Estimate","Margin of Error","Estimate","Margin of Error","Estimate","Margin of Error"]
[null,"Total",991,213,2783,34,637,151,354,142,9912,150,413,83,1461,274,1071,131,125,34,44,26,878,170,2271,289,4128,14,4325,50,1399,182,2820,38,2548,258,4978,96,6267,43]
[null,"    Same house ",914,199,2619,142,563,146,321,138,8766,514,397,80,1298,269,996,127,120,33,44,26,826,170,1966,315,3894,112,3838,248,1230,172,2454,187,2182,274,4698,198,5342,376]
[null,"    Different house ",77,97.462813421324952,164,133.41289293018121,74,107.53139076567363,33,92.412120417183374,1146,446.84561092171424,16,120.97520407091694,163,116.53754759733019,75,126.43970895252804,5,120.3951826278776,0,170,52,126.21410380777579,305,159.58070058750837,234,150.77798247754876,487,263.14064680318774,169,69.806876452108924,366,165.71662559924394,366,213.33307291650772,280,176.23280057923384,925,412.58453679215853]
[null,"      in New Hampshire",72,47.169905660283021,42,42.201895692018383,69,65.375836514724611,32,36.138621999185304,686,284.41167345944154,2,85.094065598019228,105,88.141930997681229,42,90.476516290140168,0,120.20815280171308,0,120.20815280171308,37,91.547801721286575,241,126.24183141890805,166,113.1591799192624,351,229.78685776170926,121,64.031242374328485,226,134.12307780542466,230,171.05846953600397,194,136.56134152826706,595,328.29255245893108]
[null,"          Same county",37,40,15,25,66,65,26,35,552,261,2,4,51,37,42,31,0,85,0,85,37,34,219,121,103,94,282,211,70,50,205,130,211,170,132,93,343,240]
[null,"          Different county",35,25,27,34,3,7,6,9,134,113,0,85,54,80,0,85,0,85,0,85,0,85,22,36,63,63,69,91,51,40,21,33,19,19,62,100,252,224]
[null,"      in Different state",5,7,96,113,5,8,1,3,460,334,14,13,54,76,33,24,4,6,0,85,15,18,64,48,68,52,136,96,37,22,135,97,136,95,86,72,330,235]
[null,"       Elsewhere",0,85,26,57,0,85,0,85,0,85,0,85,4,6,0,85,1,3,0,85,0,85,0,85,0,85,0,85,11,17,5,8,0,85,0,85,0,85]

{"sheet":"ACS_Table_B14001","index":66,"n_rows":117,"n_cols":40,"rows_kept":117,"cut":false,"hidden":true,"merged":[]}
[null,"B14001. SCHOOL ENROLLMENT BY LEVEL OF SCHOOL FOR THE POPULATION 3 YEARS AND OVER"]
[null,"Universe: POPULATION 3 YEARS AND OVER"]
[null,"Data Set: 2018-2022 American Community Survey 5-Year Estimates"]
[]
[null,null,"Albany",null,"Bartlett",null,"Brookfield",null,"Chatham",null,"Conway",null,"Eaton",null,"Effingham",null,"Freedom",null,"Hale's Location",null,"Hart's Location",null,"Jackson",null,"Madison",null,"Moultonborough",null,"Ossipee",null,"Sandwich",null,"Tamworth",null,"Tuftonboro",null,"Wakefield",null,"Wolfeboro"]
[null," ","Estimate","Margin of Error","Estimate","Margin of Error","Estimate","Margin of Error","Estimate","Margin of Error","Estimate","Margin of Error","Estimate","Margin of Error","Estimate","Margin of Error","Estimate","Margin of Error","Estimate","Margin of Error","Estimate","Margin of Error","Estimate","Margin of Error","Estimate","Margin of Error","Estimate","Margin of Error","Estimate","Margin of Error","Estimate","Margin of Error","Estimate","Margin of Error","Estimate","Margin of Error","Estimate","Margin of Error","Estimate","Margin of Error"]
[null,"Total:",702,164,3204,18,517,136,411,105,9766,131,353,71,1681,273,1332,183,196,61,53,37,1149,182,2552,51,4900,40,4334,70,1802,246,2803,38,2452,55,5175,87,6482,19]
[null,"Enrolled in school:",110,48,247,210,50,24,99,70,1806,438,50,28,317,111,259,128,23,31,0,12,244,86,658,188,892,226,455,198,243,101,619,206,335,77,852,259,1082,243]
[null,"Enrolled in nursery school, preschool",4,6,44,68,0,12,5,7,61,49,9,13,13,22,25,18,0,12,0,12,81,47,48,22,30,33,33,35,4,7,8,12,30,26,127,86,24,34]
[null,"Enrolled in kindergarten",4,5,75,73,1,3,10,9,133,79,0,12,32,43,16,16,0,12,0,12,20,23,71,54,45,40,3,10,9,9,95,60,0,12,69,54,40,37]
[null,"Enrolled in grade 1 to grade 4",30,30,2,6,11,11,7,7,307,101,6,6,79,34,47,48,0,12,0,12,45,24,179,74,212,92,114,110,24,16,75,47,69,42,280,152,191,72]
[null,"Enrolled in grade 5 to grade 8",24,18,37,55,14,11,20,19,441,207,1,3,104,68,67,52,0,12,0,12,26,5,74,53,198,116,149,86,49,40,246,126,58,26,208,132,189,91]
[null,"Enrolled in grade 9 to grade 12",18,18,13,20,12,12,41,54,317,156,17,12,79,48,78,62,2,3,0,12,42,28,209,109,160,95,91,86,61,31,110,81,134,55,115,97,481,231]
[null,"Enrolled in college, undergraduate years",22,21,23,34,7,7,5,8,505,317,14,14,7,8,9,12,1,2,0,12,0,12,70,43,147,80,44,45,55,32,50,51,35,25,53,77,139,102]
[null,"Graduate or professional school",8,13,53,65,5,6,11,12,42,39,3,6,3,4,17,22,20,31,0,12,30,30,7,10,100,112,21,23,41,39,35,53,9,13,0,17,18,28]
[null,"Not enrolled in school",592,153,2957,207,467,122,312,69,7960,432,303,63,1364,195,1073,115,173,57,53,37,905,170,1894,175,4008,225,3879,194,1559,209,2184,206,2117,104,4323,265,5400,241]
[]
[]
[]
[null,"B14001. Calculated  SCHOOL ENROLLMENT BY LEVEL OF SCHOOL FOR THE POPULATION 3 YEARS AND OVER "]
[null,"Universe: POPULATION 3 YEARS AND OVER"]
[null,"Data Set: 2018-2022 American Community Survey 5-Year Estimates"]
[]
[null,null,"Albany",null,"Bartlett",null,"Brookfield",null,"Chatham",null,"Conway",null,"Eaton",null,"Effingham",null,"Freedom",null,"Hale's Location",null,"Hart's Location",null,"Jackson",null,"Madison",null,"Moultonborough",null,"Ossipee",null,"Sandwich",null,"Tamworth",null,"Tuftonboro",null,"Wakefield",null,"Wolfeboro"]
[null," ","Estimate","Margin of Error","Estimate","Margin of Error","Estimate","Margin of Error","Estimate","Margin of Error","Estimate","Margin of Error","Estimate","Margin of Error","Estimate","Margin of Error","Estimate","Margin of Error","Estimate","Margin of Error","Estimate","Margin of Error","Estimate","Margin of Error","Estimate","Margin of Error","Estimate","Margin of Error","Estimate","Margin of Error","Estimate","Margin of Error","Estimate","Margin of Error","Estimate","Margin of Error","Estimate","Margin of Error","Estimate","Margin of Error"]
[null,"Total:",{"$f":"C7","v":702},164,3204,18,517,136,411,105,9766,131,353,71,1681,273,1332,183,196,61,53,37,1149,182,2552,51,4900,40,4334,70,1802,246,2803,38,2452,55,5175,87,6482,19]
[null,"Enrolled in school:",{"$f":"C8","v":110},48,247,210,50,24,99,70,1806,438,50,28,317,111,259,128,23,31,0,12,244,86,658,188,892,226,455,198,243,101,619,206,335,77,852,259,1082,243]
[null,"Enrolled in nursery school, preschool, and Kindergarten",{"$f":"C9+C10","v":8},{"$f":"SQRT((D9^2)+(D10^2))","v":7.810249675906654},{"$f":"E9+E10","v":119},{"$f":"SQRT((F9^2)+(F10^2))","v":99.76472322419383},{"$f":"G9+G10","v":1},{"$f":"SQRT((H9^2)+(H10^2))","v":12.369316876852981},{"$f":"I9+I10","v":15},{"$f":"SQRT((J9^2)+(J10^2))","v":11.401754250991379},{"$f":"K9+K10","v":194},{"$f":"SQRT((L9^2)+(L10^2))","v":92.962357973536797},{"$f":"M9+M10","v":9},{"$f":"SQRT((N9^2)+(N10^2))","v":17.691806012954132},{"$f":"O9+O10","v":45},{"$f":"SQRT((P9^2)+(P10^2))","v":48.301138702933287},{"$f":"Q9+Q10","v":41},{"$f":"SQRT((R9^2)+(R10^2))","v":24.083189157584592},{"$f":"S9+S10","v":0},{"$f":"SQRT((T9^2)+(T10^2))","v":16.970562748477139},{"$f":"U9+U10","v":0},{"$f":"SQRT((V9^2)+(V10^2))","v":16.970562748477139},{"$f":"W9+W10","v":101},{"$f":"SQRT((X9^2)+(X10^2))","v":52.32590180780452},{"$f":"Y9+Y10","v":119},{"$f":"SQRT((Z9^2)+(Z10^2))","v":58.309518948453004},{"$f":"AA9+AA10","v":75},{"$f":"SQRT((AB9^2)+(AB10^2))","v":51.855568649856693},{"$f":"AC9+AC10","v":36},{"$f":"SQRT((AD9^2)+(AD10^2))","v":36.400549446402593},{"$f":"AE9+AE10","v":13},{"$f":"SQRT((AF9^2)+(AF10^2))","v":11.401754250991379},{"$f":"AG9+AG10","v":103},{"$f":"SQRT((AH9^2)+(AH10^2))","v":61.188234163113421},{"$f":"AI9+AI10","v":30},{"$f":"SQRT((AJ9^2)+(AJ10^2))","v":28.635642126552707},{"$f":"AK9+AK10","v":196},{"$f":"SQRT((AL9^2)+(AL10^2))","v":101.54801819828883},{"$f":"AM9+AM10","v":64},{"$f":"SQRT((AN9^2)+(AN10^2))","v":50.24937810560445}]
[null,{"$f":"B9","v":"Enrolled in nursery school, preschool"},4,6,44,68,0,12,5,7,61,49,9,13,13,22,25,18,0,12,0,12,81,47,48,22,30,33,33,35,4,7,8,12,30,26,127,86,24,34]
[null,{"$f":"B10","v":"Enrolled in kindergarten"},4,5,75,73,1,3,10,9,133,79,0,12,32,43,16,16,0,12,0,12,20,23,71,54,45,40,3,10,9,9,95,60,0,12,69,54,40,37]
[null,"Enrolled in grade Elementary School (grade 1 to grade 8)",{"$f":"C11+C12","v":54},{"$f":"SQRT((D11^2)+(D12^2))","v":34.985711369071801},{"$f":"E11+E12","v":39},{"$f":"SQRT((F11^2)+(F12^2))","v":55.326304774492215},{"$f":"G11+G12","v":25},{"$f":"SQRT((H11^2)+(H12^2))","v":15.556349186104045},{"$f":"I11+I12","v":27},{"$f":"SQRT((J11^2)+(J12^2))","v":20.248456731316587},{"$f":"K11+K12","v":748},{"$f":"SQRT((L11^2)+(L12^2))","v":230.32585612562042},{"$f":"M11+M12","v":7},{"$f":"SQRT((N11^2)+(N12^2))","v":6.7082039324993694},{"$f":"O11+O12","v":183},{"$f":"SQRT((P11^2)+(P12^2))","v":76.026311234992846},{"$f":"Q11+Q12","v":114},{"$f":"SQRT((R11^2)+(R12^2))","v":70.767224051816527},{"$f":"S11+S12","v":0},{"$f":"SQRT((T11^2)+(T12^2))","v":16.970562748477139},{"$f":"U11+U12","v":0},{"$f":"SQRT((V11^2)+(V12^2))","v":16.970562748477139},{"$f":"W11+W12","v":71},{"$f":"SQRT((X11^2)+(X12^2))","v":24.515301344262525},{"$f":"Y11+Y12","v":253},{"$f":"SQRT((Z11^2)+(Z12^2))","v":91.021975368588869},{"$f":"AA11+AA12","v":410},{"$f":"SQRT((AB11^2)+(AB12^2))","v":148.05404418657398},{"$f":"AC11+AC12","v":263},{"$f":"SQRT((AD11^2)+(AD12^2))","v":139.62807740565648},{"$f":"AE11+AE12","v":73},{"$f":"SQRT((AF11^2)+(AF12^2))","v":43.08131845707603},{"$f":"AG11+AG12","v":321},{"$f":"SQRT((AH11^2)+(AH12^2))","v":134.48048185517482},{"$f":"AI11+AI12","v":127},{"$f":"SQRT((AJ11^2)+(AJ12^2))","v":49.396356140913873},{"$f":"AK11+AK12","v":488},{"$f":"SQRT((AL11^2)+(AL12^2))","v":201.31567251458591},{"$f":"AM11+AM12","v":380},{"$f":"SQRT((AN11^2)+(AN12^2))","v":116.03878661895772}]
[null,"Enrolled in grade 9 to grade 12",{"$f":"C13","v":18},18,13,20,12,12,41,54,317,156,17,12,79,48,78,62,2,3,0,12,42,28,209,109,160,95,91,86,61,31,110,81,134,55,115,97,481,231]
[null,"Enrolled in Elementary and High School",{"$f":"C11+C12+C13","v":72},{"$f":"SQRT((D11^2)+(D12^2)+(D13^2))","v":39.344631145812002},{"$f":"E11+E12+E13","v":52},{"$f":"SQRT((F11^2)+(F12^2)+(F13^2))","v":58.830264320330912},{"$f":"G11+G12+G13","v":37},{"$f":"SQRT((H11^2)+(H12^2)+(H13^2))","v":19.646882704388499},{"$f":"I11+I12+I13","v":68},{"$f":"SQRT((J11^2)+(J12^2)+(J13^2))","v":57.67148342118486},{"$f":"K11+K12+K13","v":1065},{"$f":"SQRT((L11^2)+(L12^2)+(L13^2))","v":278.18339274658365},{"$f":"M11+M12+M13","v":24},{"$f":"SQRT((N11^2)+(N12^2)+(N13^2))","v":13.74772708486752},{"$f":"O11+O12+O13","v":262},{"$f":"SQRT((P11^2)+(P12^2)+(P13^2))","v":89.911067171956091},{"$f":"Q11+Q12+Q13","v":192},{"$f":"SQRT((R11^2)+(R12^2)+(R13^2))","v":94.085067890712608},{"$f":"S11+S12+S13","v":2},{"$f":"SQRT((T11^2)+(T12^2)+(T13^2))","v":17.233687939614086},{"$f":"U11+U12+U13","v":0},{"$f":"SQRT((V11^2)+(V12^2)+(V13^2))","v":20.784609690826528},{"$f":"W11+W12+W13","v":113},{"$f":"SQRT((X11^2)+(X12^2)+(X13^2))","v":37.215588131856791},{"$f":"Y11+Y12+Y13","v":462},{"$f":"SQRT((Z11^2)+(Z12^2)+(Z13^2))","v":142.00704207890536},{"$f":"AA11+AA12+AA13","v":570},{"$f":"SQRT((AB11^2)+(AB12^2)+(AB13^2))","v":175.91190977304521},{"$f":"AC11+AC12+AC13","v":354},{"$f":"SQRT((AD11^2)+(AD12^2)+(AD13^2))","v":163.98780442459739},{"$f":"AE11+AE12+AE13","v":134},{"$f":"SQRT((AF11^2)+(AF12^2)+(AF13^2))","v":53.075418038862395},{"$f":"AG11+AG12+AG13","v":431},{"$f":"SQRT((AH11^2)+(AH12^2)+(AH13^2))","v":156.99044556914922},{"$f":"AI11+AI12+AI13","v":261},{"$f":"SQRT((AJ11^2)+(AJ12^2)+(AJ13^2))","v":73.925638313104884},{"$f":"AK11+AK12+AK13","v":603},{"$f":"SQRT((AL11^2)+(AL12^2)+(AL13^2))","v":223.46588106464932},{"$f":"AM11+AM12+AM13","v":861},{"$f":"SQRT((AN11^2)+(AN12^2)+(AN13^2))","v":258.50725328315258}]
[null,"Enrolled in College or Graduate School",{"$f":"C14+C15","v":30},{"$f":"SQRT((D14^2)+(D15^2))","v":24.698178070456937},{"$f":"E14+E15","v":76},{"$f":"SQRT((F14^2)+(F15^2))","v":73.355299740373226},{"$f":"G14+G15","v":12},{"$f":"SQRT((H14^2)+(H15^2))","v":9.2195444572928871},{"$f":"I14+I15","v":16},{"$f":"SQRT((J14^2)+(J15^2))","v":14.422205101855956},{"$f":"K14+K15","v":547},{"$f":"SQRT((L14^2)+(L15^2))","v":319.3900436770063},{"$f":"M14+M15","v":17},{"$f":"SQRT((N14^2)+(N15^2))","v":15.231546211727817},{"$f":"O14+O15","v":10},{"$f":"SQRT((P14^2)+(P15^2))","v":8.9442719099991592},{"$f":"Q14+Q15","v":26},{"$f":"SQRT((R14^2)+(R15^2))","v":25.059928172283335},{"$f":"S14+S15","v":21},{"$f":"SQRT((T14^2)+(T15^2))","v":31.064449134018133},{"$f":"U14+U15","v":0},{"$f":"SQRT((V14^2)+(V15^2))","v":16.970562748477139},{"$f":"W14+W15","v":30},{"$f":"SQRT((X14^2)+(X15^2))","v":32.310988842807021},{"$f":"Y14+Y15","v":77},{"$f":"SQRT((Z14^2)+(Z15^2))","v":44.147480109288232},{"$f":"AA14+AA15","v":247},{"$f":"SQRT((AB14^2)+(AB15^2))","v":137.63720427268203},{"$f":"AC14+AC15","v":65},{"$f":"SQRT((AD14^2)+(AD15^2))","v":50.537115073973112},{"$f":"AE14+AE15","v":96},{"$f":"SQRT((AF14^2)+(AF15^2))","v":50.447993022517757},{"$f":"AG14+AG15","v":85},{"$f":"SQRT((AH14^2)+(AH15^2))","v":73.552702193733168},{"$f":"AI14+AI15","v":44},{"$f":"SQRT((AJ14^2)+(AJ15^2))","v":28.178005607210743},{"$f":"AK14+AK15","v":53},{"$f":"SQRT((AL14^2)+(AL15^2))","v":78.854296014865284},{"$f":"AM14+AM15","v":157},{"$f":"SQRT((AN14^2)+(AN15^2))","v":105.77334257741882}]
[null,"Not enrolled in school",{"$f":"C16","v":592},153,2957,207,467,122,312,69,7960,432,303,63,1364,195,1073,115,173,57,53,37,905,170,1894,175,4008,225,3879,194,1559,209,2184,206,2117,104,4323,265,5400,241]
[]
[]
[]
[]
[]
[]
[]
[]
[]
[]
[]
[]
[]
[]
[]
[]
[]
[]
[]
[]
[]
[]
[]
[]
[]
[]
[]
[]
[]
[]
[]
[]
[]
[]
[]
[]
[]
[]
[]
[]
[]
[]
[]
[]
[]
[]
[]
[null,"B14001. Calculated  SCHOOL ENROLLMENT BY LEVEL OF SCHOOL FOR THE POPULATION 3 YEARS AND OVER "]
[null,"Universe: POPULATION 3 YEARS AND OVER"]
[null,"Data Set: 2013-2017 American Community Survey 5-Year Estimates"]
[]
[null,null,"Albany",null,"Bartlett",null,"Brookfield",null,"Chatham",null,"Conway",null,"Eaton",null,"Effingham",null,"Freedom",null,"Hale's Location",null,"Hart's Location",null,"Jackson",null,"Madison",null,"Moultonborough",null,"Ossipee",null,"Sandwich",null,"Tamworth",null,"Tuftonboro",null,"Wakefield",null,"Wolfeboro"]
[null," ","Estimate","Margin of Error","Estimate","Margin of Error","Estimate","Margin of Error","Estimate","Margin of Error","Estimate","Margin of Error","Estimate","Margin of Error","Estimate","Margin of Error","Estimate","Margin of Error","Estimate","Margin of Error","Estimate","Margin of Error","Estimate","Margin of Error","Estimate","Margin of Error","Estimate","Margin of Error","Estimate","Margin of Error","Estimate","Margin of Error","Estimate","Margin of Error","Estimate","Margin of Error","Estimate","Margin of Error","Estimate","Margin of Error"]
[null,"Total:",767,135,2738,34,864,261,325,100,9759,101,315,66,1396,167,1314,175,159,48,52,31,935,213,2425,48,3969,48,4229,39,1320,194,2826,100,2122,174,4826,81,6094,66]
[null,"Enrolled in school:",194,77,539,184,214,119,57,37,2164,301,33,15,292,80,227,73,5,8,2,5,120,73,440,106,718,138,640,201,193,90,433,219,344,87,782,205,839,237]
[null,"Enrolled in nursery school, preschool, and Kindergarten",40,33.286633954186478,59,65.115282384398824,3,12.529964086141668,2,11.704699910719626,306,156.38733964103361,4,12.529964086141668,30,23.600847442411894,20,14.422205101855956,0,15.556349186104045,0,15.556349186104045,11,21.95449840010015,23,17.464249196572979,51,51.195702944680818,68,68.8839603971781,18,17.4928556845359,56,62.297672508690084,20,28.231188426986208,156,108.67382389517726,46,45.694638635183452]
[null,"Enrolled in nursery school, preschool",18,18,27,44,3,6,2,4,208,144,4,6,13,14,12,12,0,11,0,11,11,19,4,7,0,11,68,68,10,15,42,59,20,26,121,97,37,42]
[null,"Enrolled in kindergarten",22,28,32,48,0,11,0,11,98,61,0,11,17,19,8,8,0,11,0,11,0,11,19,16,51,50,0,11,8,9,14,20,0,11,35,49,9,18]
[null,"Enrolled in grade Elementary School (grade 1 to grade 8)",112,49.739320461783549,169,79.202272694664515,112,64.899922958351809,23,13.601470508735444,915,190.41270965983338,14,9.8994949366116654,147,52.801515129776341,84,36.400549446402593,0,15.556349186104045,0,15.556349186104045,60,39.824615503479755,204,85.603738236130781,287,101.51354589413178,199,92.005434622091755,118,52.40229002629561,272,133.96268137059664,128,42.720018726587654,275,130.11533345459327,375,175.72706109191037]
[null,"Enrolled in grade 9 to grade 12",38,21,134,64,70,52,29,30,637,164,6,7,64,28,82,51,0,11,2,5,18,19,99,47,238,79,212,121,26,18,48,72,107,40,277,176,213,90]
[null,"Enrolled in Elementary and High School",150,53.990739946772351,303,101.82828683622247,182,83.162491545167157,52,32.939338184001208,1552,251.30260643296162,20,12.124355652982141,211,59.766211189935738,166,62.657800791282163,0,19.05255888325765,2,16.340134638368191,78,44.124822945820419,303,97.657564991146486,525,128.63125592172378,411,152.00657880499779,144,55.407580708780273,320,152.0855022676389,235,58.523499553598128,552,218.87439320304236,588,197.43353311937665]
[null,"Enrolled in College or Graduate School",4,5,177,93.648278147545241,29,18.027756377319946,3,4.2426406871192848,306,175.13708916160505,9,16.278820596099706,51,30.083217912982647,41,22.825424421026653,5,13.601470508735444,0,15.556349186104045,31,28.442925306655784,114,54.571054598569013,142,83.054199171384468,161,95.817534929677663,31,24.839484696748443,57,42.5205832509386,89,50.774009099144415,74,68.095521144932874,205,136.75159962501354]
[null,"Not enrolled in school",573,86,2199,193,650,170,268,76,7595,295,282,62,1104,132,1087,136,154,45,50,30,815,173,1985,105,3251,143,3589,196,1127,141,2393,213,1778,172,4044,216,5255,245]
[]
[]
[]
[null,"B14001.Calculated  SCHOOL ENROLLMENT BY LEVEL OF SCHOOL FOR THE POPULATION 3 YEARS AND OVER "]
[null,"Universe: POPULATION 3 YEARS AND OVER"]
[null,"Data Set: 2008-2012 American Community Survey 5-Year Estimates"]
[]
[null,null,"Albany",null,"Bartlett",null,"Brookfield",null,"Chatham",null,"Conway",null,"Eaton",null,"Effingham",null,"Freedom",null,"Hale's Location",null,"Hart's Location",null,"Jackson",null,"Madison",null,"Moultonborough",null,"Ossipee",null,"Sandwich",null,"Tamworth",null,"Tuftonboro",null,"Wakefield",null,"Wolfeboro"]
[null," ","Estimate","Margin of Error","Estimate","Margin of Error","Estimate","Margin of Error","Estimate","Margin of Error","Estimate","Margin of Error","Estimate","Margin of Error","Estimate","Margin of Error","Estimate","Margin of Error","Estimate","Margin of Error","Estimate","Margin of Error","Estimate","Margin of Error","Estimate","Margin of Error","Estimate","Margin of Error","Estimate","Margin of Error","Estimate","Margin of Error","Estimate","Margin of Error","Estimate","Margin of Error","Estimate","Margin of Error","Estimate","Margin of Error"]
[null,"Total:",852,174,2737,63,669,154,415,132,9701,191,392,77,1310,193,1150,154,110,29,33,21,957,216,2470,45,4000,58,4198,79,1221,200,2826,40,2454,293,4943,75,6121,115]
[null,"Enrolled in school:",175,68,487,166,160,71,86,59,1959,284,54,26,220,68,179,57,4,6,0,11,206,96,426,103,720,134,1081,223,235,87,466,156,587,176,870,171,1382,228]
[null,"Enrolled in nursery school, preschool, and Kindergarten",22,23.323807579381203,12,13.038404810405298,23,21.95449840010015,10,12.529964086141668,415,154.93547043850222,2,11.401754250991379,19,17.720045146669349,17,21.095023109728988,0,15.556349186104045,0,15.556349186104045,18,24.596747752497688,70,36.249137920783717,95,47.434164902525687,35,47.296934361541872,22,17.204650534085253,87,63.953107821277925,50,48.010415536631214,145,81.394102980498531,68,59.539902586416787]
[null,"Enrolled in nursery school, preschool",14,20,4,7,0,11,7,11,235,113,2,3,3,5,17,18,0,11,0,11,18,22,59,33,27,27,35,46,15,14,87,63,32,39,69,55,27,29]
[null,"Enrolled in kindergarten",8,12,8,11,23,19,3,6,180,106,0,11,16,17,0,11,0,11,0,11,0,11,11,15,68,39,0,11,7,10,0,11,18,28,76,60,41,52]
[null,"Enrolled in grade Elementary School (grade 1 to grade 8)",27,19.209372712298546,350,158.8238017426859,82,40.80441152620633,42,27.856776554368238,554,185.85209172887994,8,7.810249675906654,111,49.091750834534309,77,29.529646120466801,4,12.529964086141668,0,15.556349186104045,95,45.607017003965517,164,72.835430938520574,318,109.77249200050075,604,165.12419568312816,117,58.523499553598128,161,80.156097709406993,326,99.005050376230813,325,120.91732712891069,814,189.84203960134857]
[null,"Enrolled in grade 9 to grade 12",95,55,81,59,28,24,21,20,560,140,26,15,44,19,52,24,0,11,0,11,55,41,165,72,100,58,354,175,44,25,153,102,127,63,234,112,296,134]
[null,"Enrolled in Elementary and High School",122,58.258046654518033,431,169.42845097562571,110,47.339201514178498,63,34.292856398964496,1114,232.68218668389721,34,16.911534525287763,155,52.640288753007425,129,38.052595180880893,4,16.673332000533065,0,19.05255888325765,150,61.326992425847855,329,102.41581909060729,418,124.15313125330347,958,240.60548622174016,161,63.63961030678928,314,129.72663566130126,453,117.3499041328965,559,164.81808153233675,1110,232.37039398339883]
[null,"Enrolled in College or Graduate School",31,27.313000567495326,44,51.195702944680818,27,17.804493814764857,13,21.095023109728988,430,142.04576727238302,18,18.601075237738275,46,24.596747752497688,33,21.587033144922902,0,15.556349186104045,0,15.556349186104045,38,30.083217912982647,27,25.298221281347036,207,83.868945385047027,88,54.571054598569013,52,26.40075756488817,65,44.721359549995796,84,66.708320320631671,166,84.693565280958623,204,99.126182212370111]
[null,"Not enrolled in school",677,132,2250,195,509,130,329,99,7742,283,338,67,1090,154,971,122,106,28,33,21,751,156,2044,95,3280,141,3117,200,986,138,2360,155,1867,207,4073,162,4739,243]

{"sheet":"ACS_Table_B15002","index":67,"n_rows":141,"n_cols":40,"rows_kept":141,"cut":false,"hidden":true,"merged":[]}
[null,"B15002. SEX BY EDUCATIONAL ATTAINMENT FOR THE POPULATION 25 YEARS AND OVER"]
[null,"Universe: Population 25 years an over"]
[null,"Data Set: 2018-2022 American Community Survey 5-Year Estimates"]
[]
[null,null,"Albany",null,"Bartlett",null,"Brookfield",null,"Chatham",null,"Conway",null,"Eaton",null,"Effingham",null,"Freedom",null,"Hale's Location",null,"Hart's Location",null,"Jackson",null,"Madison",null,"Moultonborough",null,"Ossipee",null,"Sandwich",null,"Tamworth",null,"Tuftonboro",null,"Wakefield",null,"Wolfeboro"]
[null," ","Estimate","Margin of Error","Estimate","Margin of Error","Estimate","Margin of Error","Estimate","Margin of Error","Estimate","Margin of Error","Estimate","Margin of Error","Estimate","Margin of Error","Estimate","Margin of Error","Estimate","Margin of Error","Estimate","Margin of Error","Estimate","Margin of Error","Estimate","Margin of Error","Estimate","Margin of Error","Estimate","Margin of Error","Estimate","Margin of Error","Estimate","Margin of Error","Estimate","Margin of Error","Estimate","Margin of Error","Estimate","Margin of Error"]
[null,"Total:",571,152,2882,182,448,108,296,67,7692,423,312,65,1258,192,1056,115,194,61,53,37,935,172,1876,171,4032,223,3530,212,1569,220,2027,201,2022,124,3996,309,5243,306]
[null,"Male:",248,69,1462,230,211,57,153,38,3846,420,155,41,571,95,503,68,111,42,41,32,464,86,839,92,1998,184,1874,189,870,178,988,192,1052,95,2129,211,2384,286]
[null,"No schooling completed",0,12,0,12,0,12,3,5,34,44,0,12,0,12,7,10,0,12,0,12,30,7,0,12,13,20,12,19,3,4,35,33,0,12,0,17,0,17]
[null,"Nursery to 4th grade",0,12,0,12,0,12,0,12,0,17,0,12,0,12,0,12,0,12,0,12,0,12,0,12,0,12,0,12,0,12,0,12,0,12,0,17,0,17]
[null,"5th and 6th grade",0,12,0,12,0,12,0,12,0,17,0,12,0,12,0,12,0,12,0,12,0,12,0,12,0,12,0,12,0,12,0,12,0,12,9,19,0,17]
[null,"7th and 8th grade",2,4,37,53,0,12,0,12,105,75,1,2,4,6,10,8,0,12,0,12,0,12,0,12,0,12,12,27,7,8,0,12,0,12,13,20,0,17]
[null,"9th grade",0,12,18,30,0,12,0,12,57,45,0,12,16,14,2,4,0,12,0,12,0,12,0,12,6,11,3,14,0,12,0,12,0,12,16,25,27,44]
[null,"10th grade",0,12,0,12,0,12,0,12,26,43,4,6,4,6,3,4,0,12,0,12,0,12,23,20,0,12,41,40,0,12,0,12,47,69,0,17,70,102]
[null,"11th grade",5,5,0,12,0,12,0,12,121,93,2,4,6,8,19,16,0,12,0,12,10,13,0,12,19,29,22,30,7,11,0,12,16,19,15,26,0,17]
[null,"12th grade, no diploma",0,12,0,12,7,6,3,4,0,17,3,4,3,4,0,12,0,12,0,12,0,12,10,17,52,50,1,3,8,12,5,8,24,29,77,75,123,135]
[null,"High school graduate, GED, or alternative",77,34,420,213,60,25,68,23,975,317,28,21,295,91,108,38,32,19,7,9,112,56,257,71,342,111,827,189,140,47,311,187,266,78,985,260,510,218]
[null,"Some college, less than 1 year",11,11,74,103,21,19,11,9,326,172,9,9,23,18,36,20,3,3,9,17,6,10,54,39,101,52,114,70,41,25,174,112,47,29,130,97,125,82]
[null,"Some college, 1 or more years, no degree",48,34,225,128,22,13,16,13,528,202,22,18,65,30,63,28,22,19,5,8,7,10,135,78,279,116,297,112,22,15,133,94,136,64,273,137,244,139]
[null,"Associates degree",28,19,158,103,16,11,14,11,217,93,7,6,28,16,52,23,2,3,18,24,30,26,99,48,201,75,280,136,75,58,63,42,117,48,192,103,324,196]
[null,"Bachelors degree",44,25,233,136,48,21,17,11,1022,289,58,25,58,26,152,60,36,31,2,5,139,57,154,62,448,124,204,81,221,60,221,92,195,85,189,97,571,218]
[null,"Masters degree",23,16,209,109,24,16,14,13,269,101,13,8,66,36,44,30,11,9,0,12,105,60,50,31,421,146,50,34,65,32,35,53,126,98,178,104,339,173]
[null,"Professional school degree",10,9,88,87,4,5,4,4,116,74,6,6,3,4,5,6,2,5,0,12,10,14,43,34,70,53,11,17,48,27,11,16,32,29,52,71,25,29]
[null,"Doctorate degree",0,12,0,12,9,12,3,4,50,44,2,4,0,12,2,4,3,3,0,12,15,16,14,14,46,33,0,12,233,171,0,12,46,45,0,17,26,33]
[null,"Female:",323,110,1420,178,237,60,143,36,3846,330,157,42,687,143,553,74,83,31,12,13,471,100,1037,133,2034,166,1656,179,699,109,1039,155,970,110,1867,196,2859,272]
[null,"No schooling completed",0,12,0,12,0,12,0,12,38,37,0,12,12,18,0,12,2,3,0,12,0,12,0,12,0,12,0,12,2,3,0,12,0,12,19,31,0,17]
[null,"Nursery to 4th grade",0,12,0,12,0,12,0,12,68,82,0,12,0,12,0,12,0,12,0,12,0,12,0,12,0,12,0,12,0,12,0,12,0,12,0,17,0,17]
[null,"5th and 6th grade",0,12,0,12,0,12,0,12,0,17,0,12,6,9,0,12,0,12,0,12,0,12,0,12,0,12,0,12,0,12,0,12,0,12,0,17,0,17]
[null,"7th and 8th grade",6,10,0,12,0,12,0,12,0,17,3,4,0,12,0,12,0,12,0,12,0,12,0,12,0,12,25,39,0,12,74,73,21,23,0,17,0,17]
[null,"9th grade",0,12,0,12,2,3,0,12,51,85,0,12,0,12,0,12,0,12,0,12,0,12,0,12,0,12,44,31,0,12,0,12,0,12,18,28,0,17]
[null,"10th grade",0,12,0,12,0,12,1,3,43,46,0,12,0,12,7,8,0,12,0,12,0,12,17,23,10,14,17,27,0,12,0,12,10,13,0,17,0,17]
[null,"11th grade",0,12,0,12,0,12,1,3,29,39,0,12,0,12,2,4,0,12,0,12,0,12,22,31,17,25,33,46,3,5,0,12,6,9,0,17,0,17]
[null,"12th grade, no diploma",0,12,13,20,1,4,0,12,0,17,0,12,9,9,1,3,0,12,0,12,0,12,12,21,33,32,33,44,6,6,0,12,0,12,14,22,0,17]
[null,"High school graduate, GED, or alternative",62,26,415,198,76,33,29,19,979,270,29,19,299,131,156,45,8,7,2,4,107,60,218,87,394,137,474,134,86,34,228,113,215,72,418,158,734,241]
[null,"Some college, less than 1 year",16,12,3,8,14,10,7,9,374,154,1,3,56,34,23,17,5,5,0,12,9,14,95,52,114,65,179,107,26,14,97,73,102,54,177,111,238,160]
[null,"Some college, 1 or more years, no degree",10,8,258,164,29,15,26,16,469,156,29,17,95,42,20,13,15,11,7,11,70,47,197,71,275,113,137,91,81,33,72,81,119,130,324,182,330,141]
[null,"Associates degree",46,22,124,97,32,18,16,11,453,210,14,10,62,32,133,61,4,5,0,12,17,21,56,28,361,167,224,91,89,44,34,31,77,37,241,114,380,173]
[null,"Bachelors degree",117,74,251,144,54,23,45,18,788,195,65,29,70,22,102,30,27,18,3,5,142,66,206,76,537,145,368,140,201,56,432,147,256,98,309,121,662,173]
[null,"Masters degree",59,61,356,155,25,11,16,12,492,237,16,8,68,28,106,36,9,9,0,12,126,75,199,87,160,97,122,55,146,49,102,78,163,89,315,243,419,169]
[null,"Professional school degree",7,7,0,12,4,5,2,3,28,22,0,12,0,12,3,4,13,16,0,12,0,12,0,12,15,27,0,12,38,32,0,12,0,12,17,24,71,63]
[null,"Doctorate degree",0,12,0,12,0,12,0,12,34,33,0,12,10,13,0,12,0,12,0,12,0,12,15,15,118,79,0,12,21,13,0,12,1,5,15,25,25,25]
[]
[]
[]
[]
[]
[]
[]
[]
[null,"Calculated B15002. SEX BY EDUCATIONAL ATTAINMENT FOR THE POPULATION 25 YEARS AND OVER"]
[]
[null,null,"Albany",null,"Bartlett",null,"Brookfield",null,"Chatham",null,"Conway",null,"Eaton",null,"Effingham",null,"Freedom",null,"Hale's Location",null,"Hart's Location",null,"Jackson",null,"Madison",null,"Moultonborough",null,"Ossipee",null,"Sandwich",null,"Tamworth",null,"Tuftonboro",null,"Wakefield",null,"Wolfeboro"]
[null," ","Estimate","Margin of Error","Estimate","Margin of Error","Estimate","Margin of Error","Estimate","Margin of Error","Estimate","Margin of Error","Estimate","Margin of Error","Estimate","Margin of Error","Estimate","Margin of Error","Estimate","Margin of Error","Estimate","Margin of Error","Estimate","Margin of Error","Estimate","Margin of Error","Estimate","Margin of Error","Estimate","Margin of Error","Estimate","Margin of Error","Estimate","Margin of Error","Estimate","Margin of Error","Estimate","Margin of Error","Estimate","Margin of Error"]
[null,"Total:",{"$f":"C7","v":571},{"$f":"D7","v":152},{"$f":"E7","v":2882},{"$f":"F7","v":182},{"$f":"G7","v":448},108,296,67,7692,423,312,65,1258,192,1056,115,194,61,53,37,935,172,1876,171,4032,223,3530,212,1569,220,2027,201,2022,124,3996,309,5243,306]
[null,"Less than 9th grade",{"$f":"(C12+C11+C10)+(C27+C28+C29)","v":8},{"$f":"SQRT((D12^2)+(D11^2)+(D10^2)+(D27^2)+(D28^2)+(D29^2))","v":26.305892875931811},{"$f":"(E12+E11+E10)+(E27+E28+E29)","v":37},{"$f":"SQRT((F12^2)+(F11^2)+(F10^2)+(F27^2)+(F28^2)+(F29^2))","v":59.405386961116584},{"$f":"(G12+G11+G10)+(G27+G28+G29)","v":0},{"$f":"SQRT((H12^2)+(H11^2)+(H10^2)+(H27^2)+(H28^2)+(H29^2))","v":29.393876913398138},{"$f":"(I12+I11+I10)+(I27+I28+I29)","v":0},{"$f":"SQRT((J12^2)+(J11^2)+(J10^2)+(J27^2)+(J28^2)+(J29^2))","v":29.393876913398138},{"$f":"(K12+K11+K10)+(K27+K28+K29)","v":173},{"$f":"SQRT((L12^2)+(L11^2)+(L10^2)+(L27^2)+(L28^2)+(L29^2))","v":116.21101496846157},{"$f":"(M12+M11+M10)+(M27+M28+M29)","v":4},{"$f":"SQRT((N12^2)+(N11^2)+(N10^2)+(N27^2)+(N28^2)+(N29^2))","v":24.413111231467404},{"$f":"(O12+O11+O10)+(O27+O28+O29)","v":10},{"$f":"SQRT((P12^2)+(P11^2)+(P10^2)+(P27^2)+(P28^2)+(P29^2))","v":26.324893162176366},{"$f":"(Q12+Q11+Q10)+(Q27+Q28+Q29)","v":10},{"$f":"SQRT((R12^2)+(R11^2)+(R10^2)+(R27^2)+(R28^2)+(R29^2))","v":28},{"$f":"(S12+S11+S10)+(S27+S28+S29)","v":0},{"$f":"SQRT((T12^2)+(T11^2)+(T10^2)+(T27^2)+(T28^2)+(T29^2))","v":29.393876913398138},{"$f":"(U12+U11+U10)+(U27+U28+U29)","v":0},{"$f":"SQRT((V12^2)+(V11^2)+(V10^2)+(V27^2)+(V28^2)+(V29^2))","v":29.393876913398138},{"$f":"(W12+W11+W10)+(W27+W28+W29)","v":0},{"$f":"SQRT((X12^2)+(X11^2)+(X10^2)+(X27^2)+(X28^2)+(X29^2))","v":29.393876913398138},{"$f":"(Y12+Y11+Y10)+(Y27+Y28+Y29)","v":0},{"$f":"SQRT((Z12^2)+(Z11^2)+(Z10^2)+(Z27^2)+(Z28^2)+(Z29^2))","v":29.393876913398138},{"$f":"(AA12+AA11+AA10)+(AA27+AA28+AA29)","v":0},{"$f":"SQRT((AB12^2)+(AB11^2)+(AB10^2)+(AB27^2)+(AB28^2)+(AB29^2))","v":29.393876913398138},{"$f":"(AC12+AC11+AC10)+(AC27+AC28+AC29)","v":37},{"$f":"SQRT((AD12^2)+(AD11^2)+(AD10^2)+(AD27^2)+(AD28^2)+(AD29^2))","v":53.160135440008048},{"$f":"(AE12+AE11+AE10)+(AE27+AE28+AE29)","v":7},{"$f":"SQRT((AF12^2)+(AF11^2)+(AF10^2)+(AF27^2)+(AF28^2)+(AF29^2))","v":28},{"$f":"(AG12+AG11+AG10)+(AG27+AG28+AG29)","v":74},{"$f":"SQRT((AH12^2)+(AH11^2)+(AH10^2)+(AH27^2)+(AH28^2)+(AH29^2))","v":77.775317421403045},{"$f":"(AI12+AI11+AI10)+(AI27+AI28+AI29)","v":21},{"$f":"SQRT((AJ12^2)+(AJ11^2)+(AJ10^2)+(AJ27^2)+(AJ28^2)+(AJ29^2))","v":35.341194094144583},{"$f":"(AK12+AK11+AK10)+(AK27+AK28+AK29)","v":22},{"$f":"SQRT((AL12^2)+(AL11^2)+(AL10^2)+(AL27^2)+(AL28^2)+(AL29^2))","v":43.783558557979269},{"$f":"(AM12+AM11+AM10)+(AM27+AM28+AM29)","v":0},{"$f":"SQRT((AN12^2)+(AN11^2)+(AN10^2)+(AN27^2)+(AN28^2)+(AN29^2))","v":41.641325627314025}]
[null,"9th to 12th grade, no diploma",{"$f":"(C13+C14+C15+C16)+(C30+C31+C32+C33)","v":5},{"$f":"SQRT((D13^2)+(D14^2)+(D15^2)+(D16^2)+(D30^2)+(D31^2)+(D32^2)+(D33^2))","v":32.140317359976393},{"$f":"(E13+E14+E15+E16)+(E30+E31+E32+E33)","v":31},{"$f":"SQRT((F13^2)+(F14^2)+(F15^2)+(F16^2)+(F30^2)+(F31^2)+(F32^2)+(F33^2))","v":46.518813398452032},{"$f":"(G13+G14+G15+G16)+(G30+G31+G32+G33)","v":10},{"$f":"SQRT((H13^2)+(H14^2)+(H15^2)+(H16^2)+(H30^2)+(H31^2)+(H32^2)+(H33^2))","v":27.946377224964241},{"$f":"(I13+I14+I15+I16)+(I30+I31+I32+I33)","v":5},{"$f":"SQRT((J13^2)+(J14^2)+(J15^2)+(J16^2)+(J30^2)+(J31^2)+(J32^2)+(J33^2))","v":27.459060435491963},{"$f":"(K13+K14+K15+K16)+(K30+K31+K32+K33)","v":327},{"$f":"SQRT((L13^2)+(L14^2)+(L15^2)+(L16^2)+(L30^2)+(L31^2)+(L32^2)+(L33^2))","v":154.79987080097968},{"$f":"(M13+M14+M15+M16)+(M30+M31+M32+M33)","v":9},{"$f":"SQRT((N13^2)+(N14^2)+(N15^2)+(N16^2)+(N30^2)+(N31^2)+(N32^2)+(N33^2))","v":28.071337695236398},{"$f":"(O13+O14+O15+O16)+(O30+O31+O32+O33)","v":38},{"$f":"SQRT((P13^2)+(P14^2)+(P15^2)+(P16^2)+(P30^2)+(P31^2)+(P32^2)+(P33^2))","v":28.722813232690143},{"$f":"(Q13+Q14+Q15+Q16)+(Q30+Q31+Q32+Q33)","v":34},{"$f":"SQRT((R13^2)+(R14^2)+(R15^2)+(R16^2)+(R30^2)+(R31^2)+(R32^2)+(R33^2))","v":25.787593916455254},{"$f":"(S13+S14+S15+S16)+(S30+S31+S32+S33)","v":0},{"$f":"SQRT((T13^2)+(T14^2)+(T15^2)+(T16^2)+(T30^2)+(T31^2)+(T32^2)+(T33^2))","v":33.941125496954278},{"$f":"(U13+U14+U15+U16)+(U30+U31+U32+U33)","v":0},{"$f":"SQRT((V13^2)+(V14^2)+(V15^2)+(V16^2)+(V30^2)+(V31^2)+(V32^2)+(V33^2))","v":33.941125496954278},{"$f":"(W13+W14+W15+W16)+(W30+W31+W32+W33)","v":10},{"$f":"SQRT((X13^2)+(X14^2)+(X15^2)+(X16^2)+(X30^2)+(X31^2)+(X32^2)+(X33^2))","v":34.307433596816885},{"$f":"(Y13+Y14+Y15+Y16)+(Y30+Y31+Y32+Y33)","v":84},{"$f":"SQRT((Z13^2)+(Z14^2)+(Z15^2)+(Z16^2)+(Z30^2)+(Z31^2)+(Z32^2)+(Z33^2))","v":55.244909267732531},{"$f":"(AA13+AA14+AA15+AA16)+(AA30+AA31+AA32+AA33)","v":137},{"$f":"SQRT((AB13^2)+(AB14^2)+(AB15^2)+(AB16^2)+(AB30^2)+(AB31^2)+(AB32^2)+(AB33^2))","v":74.79973261984297},{"$f":"(AC13+AC14+AC15+AC16)+(AC30+AC31+AC32+AC33)","v":194},{"$f":"SQRT((AD13^2)+(AD14^2)+(AD15^2)+(AD16^2)+(AD30^2)+(AD31^2)+(AD32^2)+(AD33^2))","v":91.907562256867635},{"$f":"(AE13+AE14+AE15+AE16)+(AE30+AE31+AE32+AE33)","v":24},{"$f":"SQRT((AF13^2)+(AF14^2)+(AF15^2)+(AF16^2)+(AF30^2)+(AF31^2)+(AF32^2)+(AF33^2))","v":30.033314835362415},{"$f":"(AG13+AG14+AG15+AG16)+(AG30+AG31+AG32+AG33)","v":5},{"$f":"SQRT((AH13^2)+(AH14^2)+(AH15^2)+(AH16^2)+(AH30^2)+(AH31^2)+(AH32^2)+(AH33^2))","v":32.741411087489801},{"$f":"(AI13+AI14+AI15+AI16)+(AI30+AI31+AI32+AI33)","v":103},{"$f":"SQRT((AJ13^2)+(AJ14^2)+(AJ15^2)+(AJ16^2)+(AJ30^2)+(AJ31^2)+(AJ32^2)+(AJ33^2))","v":81.516869419771027},{"$f":"(AK13+AK14+AK15+AK16)+(AK30+AK31+AK32+AK33)","v":140},{"$f":"SQRT((AL13^2)+(AL14^2)+(AL15^2)+(AL16^2)+(AL30^2)+(AL31^2)+(AL32^2)+(AL33^2))","v":95.189285111298105},{"$f":"(AM13+AM14+AM15+AM16)+(AM30+AM31+AM32+AM33)","v":220},{"$f":"SQRT((AN13^2)+(AN14^2)+(AN15^2)+(AN16^2)+(AN30^2)+(AN31^2)+(AN32^2)+(AN33^2))","v":178.91338686638292}]
[null,"High school graduate (includes equivalency)",{"$f":"C17+C34","v":139},{"$f":"SQRT((D17^2)+(D34^2))","v":42.80186911806539},{"$f":"E17+E34","v":835},{"$f":"SQRT((F17^2)+(F34^2))","v":290.81437378506587},{"$f":"G17+G34","v":136},{"$f":"SQRT((H17^2)+(H34^2))","v":41.400483088968905},{"$f":"I17+I34","v":97},{"$f":"SQRT((J17^2)+(J34^2))","v":29.832867780352597},{"$f":"K17+K34","v":1954},{"$f":"SQRT((L17^2)+(L34^2))","v":416.40004803073691},{"$f":"M17+M34","v":57},{"$f":"SQRT((N17^2)+(N34^2))","v":28.319604517012593},{"$f":"O17+O34","v":594},{"$f":"SQRT((P17^2)+(P34^2))","v":159.5054857990784},{"$f":"Q17+Q34","v":264},{"$f":"SQRT((R17^2)+(R34^2))","v":58.898217290508889},{"$f":"S17+S34","v":40},{"$f":"SQRT((T17^2)+(T34^2))","v":20.248456731316587},{"$f":"U17+U34","v":9},{"$f":"SQRT((V17^2)+(V34^2))","v":9.8488578017961039},{"$f":"W17+W34","v":219},{"$f":"SQRT((X17^2)+(X34^2))","v":82.073138114732771},{"$f":"Y17+Y34","v":475},{"$f":"SQRT((Z17^2)+(Z34^2))","v":112.29425630903836},{"$f":"AA17+AA34","v":736},{"$f":"SQRT((AB17^2)+(AB34^2))","v":176.32356620712955},{"$f":"AC17+AC34","v":1301},{"$f":"SQRT((AD17^2)+(AD34^2))","v":231.68297304722245},{"$f":"AE17+AE34","v":226},{"$f":"SQRT((AF17^2)+(AF34^2))","v":58.008620049092706},{"$f":"AG17+AG34","v":539},{"$f":"SQRT((AH17^2)+(AH34^2))","v":218.49027438309469},{"$f":"AI17+AI34","v":481},{"$f":"SQRT((AJ17^2)+(AJ34^2))","v":106.15083607772479},{"$f":"AK17+AK34","v":1403},{"$f":"SQRT((AL17^2)+(AL34^2))","v":304.24332367366748},{"$f":"AM17+AM34","v":1244},{"$f":"SQRT((AN17^2)+(AN34^2))","v":324.9692293125612}]
[null,"Some college, no degree",{"$f":"(C18+C19)+(C35+C36)","v":85},{"$f":"SQRT((D18^2)+(D19^2)+(D35^2)+(D36^2))","v":38.535697735995385},{"$f":"(E18+E19)+(E35+E36)","v":560},{"$f":"SQRT((F18^2)+(F19^2)+(F35^2)+(F36^2))","v":232.27785085969776},{"$f":"(G18+G19)+(G35+G36)","v":86},{"$f":"SQRT((H18^2)+(H19^2)+(H35^2)+(H36^2))","v":29.240383034426891},{"$f":"(I18+I19)+(I35+I36)","v":60},{"$f":"SQRT((J18^2)+(J19^2)+(J35^2)+(J36^2))","v":24.228082879171435},{"$f":"(K18+K19)+(K35+K36)","v":1697},{"$f":"SQRT((L18^2)+(L19^2)+(L35^2)+(L36^2))","v":344.15112959279969},{"$f":"(M18+M19)+(M35+M36)","v":61},{"$f":"SQRT((N18^2)+(N19^2)+(N35^2)+(N36^2))","v":26.514147167125703},{"$f":"(O18+O19)+(O35+O36)","v":239},{"$f":"SQRT((P18^2)+(P19^2)+(P35^2)+(P36^2))","v":64.373907757724325},{"$f":"(Q18+Q19)+(Q35+Q36)","v":142},{"$f":"SQRT((R18^2)+(R19^2)+(R35^2)+(R36^2))","v":40.521599178709621},{"$f":"(S18+S19)+(S35+S36)","v":45},{"$f":"SQRT((T18^2)+(T19^2)+(T35^2)+(T36^2))","v":22.715633383201094},{"$f":"(U18+U19)+(U35+U36)","v":21},{"$f":"SQRT((V18^2)+(V19^2)+(V35^2)+(V36^2))","v":24.859605789312106},{"$f":"(W18+W19)+(W35+W36)","v":92},{"$f":"SQRT((X18^2)+(X19^2)+(X35^2)+(X36^2))","v":51.039200620699383},{"$f":"(Y18+Y19)+(Y35+Y36)","v":481},{"$f":"SQRT((Z18^2)+(Z19^2)+(Z35^2)+(Z36^2))","v":123.89511693363868},{"$f":"(AA18+AA19)+(AA35+AA36)","v":769},{"$f":"SQRT((AB18^2)+(AB19^2)+(AB35^2)+(AB36^2))","v":182.08239892971534},{"$f":"(AC18+AC19)+(AC35+AC36)","v":727},{"$f":"SQRT((AD18^2)+(AD19^2)+(AD35^2)+(AD36^2))","v":192.80560157837738},{"$f":"(AE18+AE19)+(AE35+AE36)","v":170},{"$f":"SQRT((AF18^2)+(AF19^2)+(AF35^2)+(AF36^2))","v":46.206060208591687},{"$f":"(AG18+AG19)+(AG35+AG36)","v":476},{"$f":"SQRT((AH18^2)+(AH19^2)+(AH35^2)+(AH36^2))","v":182.40065789355037},{"$f":"(AI18+AI19)+(AI35+AI36)","v":404},{"$f":"SQRT((AJ18^2)+(AJ19^2)+(AJ35^2)+(AJ36^2))","v":157.33086156250465},{"$f":"(AK18+AK19)+(AK35+AK36)","v":904},{"$f":"SQRT((AL18^2)+(AL19^2)+(AL35^2)+(AL36^2))","v":271.33558557623803},{"$f":"(AM18+AM19)+(AM35+AM36)","v":937},{"$f":"SQRT((AN18^2)+(AN19^2)+(AN35^2)+(AN36^2))","v":267.44345196695321}]
[null,"Associates degree",{"$f":"C20+C37","v":74},{"$f":"SQRT((D20^2)+(D37^2))","v":29.068883707497267},{"$f":"E20+E37","v":282},{"$f":"SQRT((F20^2)+(F37^2))","v":141.48498153514387},{"$f":"G20+G37","v":48},{"$f":"SQRT((H20^2)+(H37^2))","v":21.095023109728988},{"$f":"I20+I37","v":30},{"$f":"SQRT((J20^2)+(J37^2))","v":15.556349186104045},{"$f":"K20+K37","v":670},{"$f":"SQRT((L20^2)+(L37^2))","v":229.67150454507848},{"$f":"M20+M37","v":21},{"$f":"SQRT((N20^2)+(N37^2))","v":11.661903789690601},{"$f":"O20+O37","v":90},{"$f":"SQRT((P20^2)+(P37^2))","v":35.777087639996637},{"$f":"Q20+Q37","v":185},{"$f":"SQRT((R20^2)+(R37^2))","v":65.192024052026483},{"$f":"S20+S37","v":6},{"$f":"SQRT((T20^2)+(T37^2))","v":5.8309518948453007},{"$f":"U20+U37","v":18},{"$f":"SQRT((V20^2)+(V37^2))","v":26.832815729997478},{"$f":"W20+W37","v":47},{"$f":"SQRT((X20^2)+(X37^2))","v":33.421549934136806},{"$f":"Y20+Y37","v":155},{"$f":"SQRT((Z20^2)+(Z37^2))","v":55.569775957799216},{"$f":"AA20+AA37","v":562},{"$f":"SQRT((AB20^2)+(AB37^2))","v":183.06829326784035},{"$f":"AC20+AC37","v":504},{"$f":"SQRT((AD20^2)+(AD37^2))","v":163.63679292872982},{"$f":"AE20+AE37","v":164},{"$f":"SQRT((AF20^2)+(AF37^2))","v":72.801098892805186},{"$f":"AG20+AG37","v":97},{"$f":"SQRT((AH20^2)+(AH37^2))","v":52.201532544552748},{"$f":"AI20+AI37","v":194},{"$f":"SQRT((AJ20^2)+(AJ37^2))","v":60.605280298007038},{"$f":"AK20+AK37","v":433},{"$f":"SQRT((AL20^2)+(AL37^2))","v":153.63918770938616},{"$f":"AM20+AM37","v":704},{"$f":"SQRT((AN20^2)+(AN37^2))","v":261.42876658852981}]
[null,"Bachelors degree",{"$f":"C21+C38","v":161},{"$f":"SQRT((D21^2)+(D38^2))","v":78.108898340714035},{"$f":"E21+E38","v":484},{"$f":"SQRT((F21^2)+(F38^2))","v":198.07069445023916},{"$f":"G21+G38","v":102},{"$f":"SQRT((H21^2)+(H38^2))","v":31.144823004794873},{"$f":"I21+I38","v":62},{"$f":"SQRT((J21^2)+(J38^2))","v":21.095023109728988},{"$f":"K21+K38","v":1810},{"$f":"SQRT((L21^2)+(L38^2))","v":348.63447907514825},{"$f":"M21+M38","v":123},{"$f":"SQRT((N21^2)+(N38^2))","v":38.288379438153292},{"$f":"O21+O38","v":128},{"$f":"SQRT((P21^2)+(P38^2))","v":34.058772731852805},{"$f":"Q21+Q38","v":254},{"$f":"SQRT((R21^2)+(R38^2))","v":67.082039324993687},{"$f":"S21+S38","v":63},{"$f":"SQRT((T21^2)+(T38^2))","v":35.846896657869841},{"$f":"U21+U38","v":5},{"$f":"SQRT((V21^2)+(V38^2))","v":7.0710678118654755},{"$f":"W21+W38","v":281},{"$f":"SQRT((X21^2)+(X38^2))","v":87.206651122491792},{"$f":"Y21+Y38","v":360},{"$f":"SQRT((Z21^2)+(Z38^2))","v":98.081598681913832},{"$f":"AA21+AA38","v":985},{"$f":"SQRT((AB21^2)+(AB38^2))","v":190.79046097748179},{"$f":"AC21+AC38","v":572},{"$f":"SQRT((AD21^2)+(AD38^2))","v":161.74362429474616},{"$f":"AE21+AE38","v":422},{"$f":"SQRT((AF21^2)+(AF38^2))","v":82.073138114732771},{"$f":"AG21+AG38","v":653},{"$f":"SQRT((AH21^2)+(AH38^2))","v":173.4156855650607},{"$f":"AI21+AI38","v":451},{"$f":"SQRT((AJ21^2)+(AJ38^2))","v":129.72663566130126},{"$f":"AK21+AK38","v":498},{"$f":"SQRT((AL21^2)+(AL38^2))","v":155.08062419270823},{"$f":"AM21+AM38","v":1233},{"$f":"SQRT((AN21^2)+(AN38^2))","v":278.30379084734005}]
[null,"Graduate or professional degree",{"$f":"(C22+C23+C24)+(C39+C40+C41)","v":99},{"$f":"SQRT((D22^2)+(D23^2)+(D24^2)+(D39^2)+(D41^2)+(D40^2))","v":66.294796175868882},{"$f":"(E22+E23+E24)+(E39+E40+E41)","v":653},{"$f":"SQRT((F22^2)+(F23^2)+(F24^2)+(F39^2)+(F41^2)+(F40^2))","v":209.53997232031887},{"$f":"(G22+G23+G24)+(G39+G40+G41)","v":66},{"$f":"SQRT((H22^2)+(H23^2)+(H24^2)+(H39^2)+(H41^2)+(H40^2))","v":26.739483914241877},{"$f":"(I22+I23+I24)+(I39+I40+I41)","v":39},{"$f":"SQRT((J22^2)+(J23^2)+(J24^2)+(J39^2)+(J41^2)+(J40^2))","v":22.315913604421397},{"$f":"(K22+K23+K24)+(K39+K40+K41)","v":989},{"$f":"SQRT((L22^2)+(L23^2)+(L24^2)+(L39^2)+(L41^2)+(L40^2))","v":274.50865195836724},{"$f":"(M22+M23+M24)+(M39+M40+M41)","v":37},{"$f":"SQRT((N22^2)+(N23^2)+(N24^2)+(N39^2)+(N41^2)+(N40^2))","v":21.633307652783937},{"$f":"(O22+O23+O24)+(O39+O40+O41)","v":147},{"$f":"SQRT((P22^2)+(P23^2)+(P24^2)+(P39^2)+(P41^2)+(P40^2))","v":50.527220386639122},{"$f":"(Q22+Q23+Q24)+(Q39+Q40+Q41)","v":160},{"$f":"SQRT((R22^2)+(R23^2)+(R24^2)+(R39^2)+(R41^2)+(R40^2))","v":49.071376585541188},{"$f":"(S22+S23+S24)+(S39+S40+S41)","v":38},{"$f":"SQRT((T22^2)+(T23^2)+(T24^2)+(T39^2)+(T41^2)+(T40^2))","v":24.413111231467404},{"$f":"(U22+U23+U24)+(U39+U40+U41)","v":0},{"$f":"SQRT((V22^2)+(V23^2)+(V24^2)+(V39^2)+(V41^2)+(V40^2))","v":29.393876913398138},{"$f":"(W22+W23+W24)+(W39+W40+W41)","v":256},{"$f":"SQRT((X22^2)+(X23^2)+(X24^2)+(X39^2)+(X41^2)+(X40^2))","v":99.824846606443629},{"$f":"(Y22+Y23+Y24)+(Y39+Y40+Y41)","v":321},{"$f":"SQRT((Z22^2)+(Z23^2)+(Z24^2)+(Z39^2)+(Z41^2)+(Z40^2))","v":101.24722218411723},{"$f":"(AA22+AA23+AA24)+(AA39+AA40+AA41)","v":830},{"$f":"SQRT((AB22^2)+(AB23^2)+(AB24^2)+(AB39^2)+(AB41^2)+(AB40^2))","v":203.94361965994426},{"$f":"(AC22+AC23+AC24)+(AC39+AC40+AC41)","v":183},{"$f":"SQRT((AD22^2)+(AD23^2)+(AD24^2)+(AD39^2)+(AD41^2)+(AD40^2))","v":70.014284256857181},{"$f":"(AE22+AE23+AE24)+(AE39+AE40+AE41)","v":551},{"$f":"SQRT((AF22^2)+(AF23^2)+(AF24^2)+(AF39^2)+(AF41^2)+(AF40^2))","v":185.97849338028308},{"$f":"(AG22+AG23+AG24)+(AG39+AG40+AG41)","v":148},{"$f":"SQRT((AH22^2)+(AH23^2)+(AH24^2)+(AH39^2)+(AH41^2)+(AH40^2))","v":97.882582720318538},{"$f":"(AI22+AI23+AI24)+(AI39+AI40+AI41)","v":368},{"$f":"SQRT((AJ22^2)+(AJ23^2)+(AJ24^2)+(AJ39^2)+(AJ41^2)+(AJ40^2))","v":143.38758663147937},{"$f":"(AK22+AK23+AK24)+(AK39+AK40+AK41)","v":577},{"$f":"SQRT((AL22^2)+(AL23^2)+(AL24^2)+(AL39^2)+(AL41^2)+(AL40^2))","v":276.39826338094093},{"$f":"(AM22+AM23+AM24)+(AM39+AM40+AM41)","v":905},{"$f":"SQRT((AN22^2)+(AN23^2)+(AN24^2)+(AN39^2)+(AN41^2)+(AN40^2))","v":254.97843046030383}]
[]
[]
[]
[]
[]
[]
[]
[]
[]
[]
[]
[]
[]
[]
[]
[]
[]
[]
[]
[]
[]
[]
[]
[]
[]
[]
[]
[null,"Calculated B15002. SEX BY EDUCATIONAL ATTAINMENT FOR THE POPULATION 25 YEARS AND OVER"]
[null,"Universe:  POPULATION 25 YEARS AND OVER"]
[null,"Data Set: 2013-2017 American Community Survey 5-Year Estimates"]
[null,null,"Albany",null,"Bartlett",null,"Brookfield",null,"Chatham",null,"Conway",null,"Eaton",null,"Effingham",null,"Freedom",null,"Hale's Location",null,"Hart's Location",null,"Jackson",null,"Madison",null,"Moultonborough",null,"Ossipee",null,"Sandwich",null,"Tamworth",null,"Tuftonboro",null,"Wakefield",null,"Wolfeboro"]
[null," ","Estimate","Margin of Error","Estimate","Margin of Error","Estimate","Margin of Error","Estimate","Margin of Error","Estimate","Margin of Error","Estimate","Margin of Error","Estimate","Margin of Error","Estimate","Margin of Error","Estimate","Margin of Error","Estimate","Margin of Error","Estimate","Margin of Error","Estimate","Margin of Error","Estimate","Margin of Error","Estimate","Margin of Error","Estimate","Margin of Error","Estimate","Margin of Error","Estimate","Margin of Error","Estimate","Margin of Error","Estimate","Margin of Error"]
[null,"Total:",543,79,1967,213,616,154,254,71,7234,370,279,61,1005,115,1046,123,154,45,50,30,799,163,1893,99,3149,138,3498,183,1105,143,2330,200,1695,141,3845,187,5112,242]
[null,"Less than 9th grade",0,26.944387170614959,22,41.158231254513353,9,28.301943396169811,8,24.779023386727733,57,61.171888968708494,2,24.779023386727733,7,22.912878474779198,13,28.809720581775867,0,26.944387170614959,0,26.944387170614959,0,26.944387170614959,30,33.075670817082454,7,26.944387170614959,97,82.800966177937809,4,25.099800796022265,48,78.930349042684469,0,26.944387170614959,124,105.9669759878048,89,91.285267157411553]
[null,"9th to 12th grade, no diploma",9,25.592967784139454,106,69.742383096650784,18,24,17,28.035691537752374,246,108.94494022211403,2,29.257477676655586,58,28.0178514522438,35,23.173260452512935,2,29.257477676655586,5,30.182776545573141,8,31.874754901018456,27,37.920970451717082,65,58.813263810130451,406,151.45956556124145,31,27.892651361962706,212,143.5130656072819,29,36.013886210738214,215,111.54371340420759,269,142.46754016266303]
[null,"High school graduate (includes equivalency)",181,43.840620433565945,430,156.73225577397909,142,50.990195135927848,87,36.400549446402593,2115,287.3673607075097,29,13.45362404707371,441,78.409183135650636,377,68.680419334771102,30,15,14,12.727922061357855,75,41.725292090050132,681,103.9471019317037,757,138.94603268895446,1478,234.76371099469355,245,59.816385714952723,840,200.32224040280698,411,92.849340331528467,1211,241.35036772294339,1384,261.34460009726621]
[null,"Some college, no degree",129,37.229020937972571,412,142.99300682201209,151,46.249324319388712,30,16.552945357246848,1547,265.08300586797338,42,19.157244060668017,205,47,152,38.288379438153292,43,16.852299546352718,10,17.720045146669349,151,51.546095875439491,397,94.857788293845431,583,145.58159224297555,469,141.90489773083945,177,50.813384063650005,508,174.39323381370048,436,97.416631023660429,803,217.66488003350472,801,289.25767059837841]
[null,"Associates degree",38,16.278820596099706,233,116.69190203266035,80,30.479501308256342,35,17.029386365926403,718,208.19702207284331,38,17.804493814764857,95,31.144823004794873,110,33.241540277189323,7,12.529964086141668,4,12.529964086141668,85,39.962482405376171,175,64.884512790033341,331,98.412397592986224,382,141.49558296992879,119,40,254,102.92715870944851,175,53.814496188294839,562,235.30830839560255,304,117.64777940955791]
[null,"Bachelors degree",125,34.132096331752024,372,136.40014662748717,138,50.209560842532767,50,17.4928556845359,1758,309.04530412222738,123,35.383612025908263,133,38.013155617496423,239,54.671747731346578,43,16.278820596099706,17,12.041594578792296,335,82.219219164377861,317,76.694197955256044,966,155.56670594957006,463,141.87318280774559,302,57.384666941614292,329,130.41855696180662,338,72.945184899347538,678,187.66459442313567,1253,293.47061181658376]
[null,"Graduate or professional degree",61,25.13961017995307,392,141.58036587041298,78,37.828560638755476,27,15.716233645501712,748,200.94775440397436,43,25.278449319529077,66,32.12475680841802,109,34.452866353904433,29,20.591260281974002,0,26.944387170614959,145,53.44155686354955,266,82.559069762201176,432,112.13384859176109,179,77.259303646874784,220,48.764741360946438,128,93.936148526539029,287,74.919957287761449,242,130.73637596323374,1012,221.63709075874462]
[]
[]
[]
[]
[]
[]
[]
[]
[]
[]
[]
[]
[]
[]
[]
[]
[]
[]
[]
[]
[]
[]
[]
[]
[]
[]
[]
[null,"Calculated B15002. SEX BY EDUCATIONAL ATTAINMENT FOR THE POPULATION 25 YEARS AND OVER"]
[null,"Universe:  POPULATION 25 YEARS AND OVER"]
[null,"Data Set: 2008-2012 American Community Survey 5-Year Estimates"]
[null,null,"Albany",null,"Bartlett",null,"Brookfield",null,"Chatham",null,"Conway",null,"Eaton",null,"Effingham",null,"Freedom",null,"Hale's Location",null,"Hart's Location",null,"Jackson",null,"Madison",null,"Moultonborough",null,"Ossipee",null,"Sandwich",null,"Tamworth",null,"Tuftonboro",null,"Wakefield",null,"Wolfeboro"]
[null," ","Estimate","Margin of Error","Estimate","Margin of Error","Estimate","Margin of Error","Estimate","Margin of Error","Estimate","Margin of Error","Estimate","Margin of Error","Estimate","Margin of Error","Estimate","Margin of Error","Estimate","Margin of Error","Estimate","Margin of Error","Estimate","Margin of Error","Estimate","Margin of Error","Estimate","Margin of Error","Estimate","Margin of Error","Estimate","Margin of Error","Estimate","Margin of Error","Estimate","Margin of Error","Estimate","Margin of Error","Estimate","Margin of Error"]
[null,"Total:",631,120,2201,208,480,112,308,91,7427,350,319,60,1037,142,919,106,104,27,33,21,760,158,2004,103,3349,120,2876,213,1000,141,2249,162,1883,210,3922,196,4605,243]
[null,"Less than 9th grade",8,23.108440016582687,75,64.683846515184911,16,28.583211855912904,1,24.779023386727733,172,110.25878649794764,0,26.944387170614959,50,69.086901797663501,19,26.776855677991769,0,26.944387170614959,0,26.944387170614959,0,26.944387170614959,32,40.149719799769464,7,26.944387170614959,51,47.89572005931219,2,24.779023386727733,40,47.465777145223271,23,35.749125863438955,88,86.544786093675228,37,51.166395221864128]
[null,"9th to 12th grade, no diploma",98,47.085029467974216,138,80.641180546914114,10,29.765752132274432,49,29.899832775452108,567,188.68492255609615,16,27.730849247724095,105,39.1279950930277,27,27.874719729532707,1,29.257477676655586,0,31.11269837220809,9,28.687976575562104,140,62.721607122266882,103,71.253070109294242,284,101.83319694480774,20,23.280893453645632,230,109.4120651482276,64,47.010637094172637,263,125.15590277729612,99,82.152297594163485]
[null,"High school graduate (includes equivalency)",242,66.241980646716783,567,170.41420128616042,143,50.209560842532767,111,45,2220,319.62478001556764,81,24.758836806279895,368,91.706052144883003,315,53.037722424704477,21,9.2195444572928871,9,8.9442719099991592,136,57.201398584300364,826,133.80956617521784,764,135.20724832641184,1260,176.18456232031227,214,50.219518117958877,913,177.40913167027227,410,129.0348790056394,1539,255.78311124857325,1051,210.10711553871752]
[null,"Some college, no degree",102,41.315856520227193,316,111.75419455215092,76,31.859064644147981,43,35.028559776273987,1758,341.81573983653823,41,22.693611435820433,186,52.306787322488084,196,45,22,9.4868329805051381,0,22,114,45.803929962395145,342,100.5236290630218,624,152.28919856641178,549,141.1913595090011,160,44.192759587968709,412,132.07952150125317,445,117.80916772475732,917,211.83012061555362,1032,249.90198078446679]
[null,"Associates degree",50,31.11269837220809,293,112.69871339105873,50,26.40075756488817,12,10.770329614269007,802,230.52114870440846,35,16.124515496597098,136,76.550636836018555,106,35.805027579936315,3,5,2,11.401754250991379,25,22.203603311174518,94,47.381430961928537,329,101.17806086301516,355,129.4488315899375,66,26.248809496813376,148,63.702433234531945,206,69.404610797842537,472,175.38529014715002,558,144.40221604947757]
[null,"Bachelors degree",78,27.784887978899608,531,165.46298679765212,107,35.383612025908263,62,27.586228448267445,1417,322.83277404873252,90,25.80697580112788,139,37.536648758246919,154,36.400549446402593,37,13.45362404707371,22,17.691806012954132,260,75.690157880665041,362,91.836811791350854,1022,185.80096878111266,242,93.407708461347028,264,57.280013966478741,252,75.471849056452825,439,110.78808600206071,287,113.07077429645558,1060,248.92770034690795]
[null,"Graduate or professional degree",24,21.977260975835911,174,84.604964393349874,37,20.297783130184438,9,14.212670403551895,166,101.39526616169022,33,17.233687939614086,18,24.879710609249457,55,24.79919353527449,10,20.663978319771825,0,22,98,41.448763552125413,66,35.594943461115371,289,97.826376811164792,47,38.729833462074168,127,35.888716889852724,81,38.820097887563342,157,78.78451624526231,176,112.2007130102122,349,144.75496537252184]

{"sheet":"ACS_TableB19101_ACS_Tbl_B19113","index":68,"n_rows":130,"n_cols":40,"rows_kept":130,"cut":false,"hidden":true,"merged":[]}
["B19101. FAMILY INCOME IN THE PAST 12 MONTHS (IN 2022 INFLATION-ADJUSTED DOLLARS)"]
["Universe:  FAMILIES"]
["Data Set: 2018-2022 American Community Survey 5-Year Estimates"]
[]
[null,null,"Albany",null,"Bartlett",null,"Brookfield",null,"Chatham",null,"Conway",null,"Eaton",null,"Effingham",null,"Freedom",null,"Hale's Location",null,"Hart's Location",null,"Jackson",null,"Madison",null,"Moultonborough",null,"Ossipee",null,"Sandwich",null,"Tamworth",null,"Tuftonboro",null,"Wakefield",null,"Wolfeboro"]
[null," ","Estimate","Margin of Error","Estimate","Margin of Error","Estimate","Margin of Error","Estimate","Margin of Error","Estimate","Margin of Error","Estimate","Margin of Error","Estimate","Margin of Error","Estimate","Margin of Error","Estimate","Margin of Error","Estimate","Margin of Error","Estimate","Margin of Error","Estimate","Margin of Error","Estimate","Margin of Error","Estimate","Margin of Error","Estimate","Margin of Error","Estimate","Margin of Error","Estimate","Margin of Error","Estimate","Margin of Error","Estimate","Margin of Error"]
[null,"Total:",211,79,763,163,161,39,108,31,2400,262,84,21,412,55,410,76,70,28,2,4,354,89,683,73,1511,131,1270,117,510,90,660,94,729,96,1480,231,1708,198]
[null,"Less than $10,000",5,5,0,12,0,12,0,12,0,17,1,3,29,21,12,13,5,8,0,12,40,59,19,20,18,21,16,25,0,12,0,12,0,12,0,17,63,72]
[null,"$10,000 to $14,999",3,4,0,12,4,5,0,12,0,17,4,6,4,5,33,48,0,12,0,12,0,12,9,11,0,12,16,29,0,12,39,45,9,12,25,30,27,39]
[null,"$15,000 to $19,999",0,12,0,12,2,3,0,12,106,105,2,4,19,26,5,7,1,2,0,12,8,12,0,12,0,12,0,12,5,9,0,12,5,8,61,96,47,72]
[null,"$20,000 to $24,999",2,4,0,12,1,4,0,12,93,99,1,2,0,12,5,6,0,12,0,12,8,14,6,6,0,12,28,29,0,12,7,9,0,12,0,17,8,13]
[null,"$25,000 to $29,999",2,4,41,55,0,12,0,12,108,74,5,5,0,12,14,16,3,4,0,12,10,16,0,12,20,23,41,57,3,6,43,56,23,26,29,40,33,37]
[null,"$30,000 to $34,999",3,4,44,70,2,3,11,16,18,21,0,12,13,11,17,22,2,3,0,12,0,12,8,8,45,43,15,22,2,4,8,13,19,19,26,30,140,125]
[null,"$35,000 to $39,999",4,5,49,59,5,6,2,3,28,26,2,3,15,20,6,7,0,12,0,12,8,12,8,12,56,53,63,54,8,13,28,32,0,12,87,71,16,33]
[null,"$40,000 to $44,999",4,4,4,10,0,12,1,3,206,106,2,3,10,11,30,18,2,3,0,12,0,12,0,12,34,40,13,23,7,7,15,23,16,17,0,17,28,33]
[null,"$45,000 to $49,999",21,18,43,60,8,12,3,4,69,45,4,5,15,12,16,28,1,3,0,12,40,54,16,14,108,83,18,24,24,28,0,12,0,12,6,9,115,119]
[null,"$50,000 to $59,999",22,20,52,45,10,9,5,5,167,108,8,8,32,17,13,9,3,4,0,12,20,21,19,22,94,65,177,102,24,17,96,80,27,23,62,45,22,33]
[null,"$60,000 to $74,999",55,64,15,24,16,9,11,9,268,127,11,7,33,21,35,21,9,10,1,2,7,11,72,37,106,57,181,92,39,21,47,37,82,49,194,100,152,102]
[null,"$75,000 to $99,999",29,22,51,55,22,11,24,14,526,163,17,12,54,31,33,15,4,5,0,12,41,33,168,66,203,85,113,81,78,35,199,91,192,90,220,119,186,76]
[null,"$100,000 to $124,999",8,8,165,126,36,17,11,7,339,144,1,3,58,30,67,28,3,4,0,12,72,40,118,48,95,66,178,72,59,29,63,52,169,101,274,106,233,175]
[null,"$125,000 to $149,999",9,8,15,22,13,8,18,12,134,71,5,7,53,33,48,24,1,2,1,3,20,21,57,36,226,93,151,71,82,57,37,26,58,36,300,249,246,151]
[null,"$150,000 to $199,999",30,16,39,61,19,13,8,8,155,94,4,4,29,15,43,25,8,9,0,12,54,33,53,34,185,89,143,110,72,34,45,70,52,37,118,106,137,75]
[null,"$200,000 or more",14,10,245,128,23,14,14,10,183,87,17,9,48,30,33,21,28,18,0,12,26,24,130,71,321,91,117,83,107,40,33,31,77,46,78,46,255,128]
[]
[]
[null,"B19113. MEDIAN FAMILY INCOME IN THE PAST 12 MONTHS (IN 2022 INFLATION-ADJUSTED DOLLARS)"]
[null,"Universe:  FAMILIES"]
[null,"Data Set: 2018-2022 American Community Survey 5-Year Estimates"]
[]
[null,null,"Albany",null,"Bartlett",null,"Brookfield",null,"Chatham",null,"Conway",null,"Eaton",null,"Effingham",null,"Freedom",null,"Hale's Location",null,"Hart's Location",null,"Jackson",null,"Madison",null,"Moultonborough",null,"Ossipee",null,"Sandwich",null,"Tamworth",null,"Tuftonboro",null,"Wakefield",null,"Wolfeboro"]
[null," ","Estimate","Margin of Error","Estimate","Margin of Error","Estimate","Margin of Error","Estimate","Margin of Error","Estimate","Margin of Error","Estimate","Margin of Error","Estimate","Margin of Error","Estimate","Margin of Error","Estimate","Margin of Error","Estimate","Margin of Error","Estimate","Margin of Error","Estimate","Margin of Error","Estimate","Margin of Error","Estimate","Margin of Error","Estimate","Margin of Error","Estimate","Margin of Error","Estimate","Margin of Error","Estimate","Margin of Error","Estimate","Margin of Error"]
[null,"Median family income in the past 12 months",69179,7572,120530,36963,107750,14098,92500,33461,84238,5044,75714,11129,93750,16329,88333,35849,156250,81427,"-","**",93611,47126,106369,18660,109659,43171,87581,29333,125577,9741,77026,5429,97468,9701,101415,17678,101214,31280]
[]
[]
[]
[]
[]
[]
[]
[]
[]
[]
[]
[]
[]
[]
[]
[]
[]
["B19101. FAMILY INCOME IN THE PAST 12 MONTHS (IN 2017 INFLATION-ADJUSTED DOLLARS)"]
["Universe:  FAMILIES"]
["Data Set: 2013-2017 American Community Survey 5-Year Estimates"]
[]
[null,null,"Albany",null,"Bartlett",null,"Brookfield",null,"Chatham",null,"Conway",null,"Eaton",null,"Effingham",null,"Freedom",null,"Hale's Location",null,"Hart's Location",null,"Jackson",null,"Madison",null,"Moultonborough",null,"Ossipee",null,"Sandwich",null,"Tamworth",null,"Tuftonboro",null,"Wakefield",null,"Wolfeboro"]
[null," ","Estimate","Margin of Error","Estimate","Margin of Error","Estimate","Margin of Error","Estimate","Margin of Error","Estimate","Margin of Error","Estimate","Margin of Error","Estimate","Margin of Error","Estimate","Margin of Error","Estimate","Margin of Error","Estimate","Margin of Error","Estimate","Margin of Error","Estimate","Margin of Error","Estimate","Margin of Error","Estimate","Margin of Error","Estimate","Margin of Error","Estimate","Margin of Error","Estimate","Margin of Error","Estimate","Margin of Error","Estimate","Margin of Error"]
[null,"Total:",222,43,669,104,285,70,93,27,2832,214,95,28,406,49,408,57,62,21,17,12,274,70,738,63,1307,105,1076,131,413,64,929,110,718,79,1507,150,2010,153]
[null,"Less than $10,000",0,11,39,61,3,5,0,11,107,83,0,11,4,5,15,19,0,11,0,11,13,24,13,15,21,26,0,11,5,6,14,21,16,12,0,16,31,50]
[null,"$10,000 to $14,999",8,13,0,11,2,3,0,11,56,67,0,11,4,5,0,11,0,11,0,11,2,5,22,20,0,11,23,27,9,14,0,11,8,11,5,8,33,49]
[null,"$15,000 to $19,999",15,14,19,31,0,11,7,14,81,68,0,11,18,12,12,16,0,11,4,6,20,22,11,11,6,10,62,80,3,5,0,11,22,23,0,16,33,38]
[null,"$20,000 to $24,999",16,15,0,11,9,14,0,11,136,70,3,5,33,18,9,10,4,5,0,11,3,5,43,32,73,65,110,66,21,16,42,64,33,22,66,80,0,16]
[null,"$25,000 to $29,999",5,6,18,20,13,17,4,6,116,93,0,11,23,19,5,7,0,11,2,3,0,11,16,24,17,20,7,12,11,9,88,84,52,41,46,50,135,127]
[null,"$30,000 to $34,999",4,5,12,18,3,6,0,11,264,149,2,3,29,15,26,17,4,5,0,11,4,5,5,8,6,10,62,65,18,17,43,37,6,8,79,92,210,120]
[null,"$35,000 to $39,999",16,11,65,58,5,6,3,4,79,53,2,3,22,18,21,16,5,5,0,11,11,18,45,35,25,30,28,26,14,11,16,22,13,13,46,56,113,88]
[null,"$40,000 to $44,999",10,16,22,24,0,11,5,6,104,82,5,6,9,9,9,9,0,11,3,6,11,19,13,13,37,29,4,8,5,6,0,11,53,38,144,99,124,116]
[null,"$45,000 to $49,999",7,8,46,45,15,16,6,6,153,103,0,11,33,19,16,12,0,11,0,11,3,5,19,17,58,38,51,35,51,35,14,21,40,36,68,47,87,80]
[null,"$50,000 to $59,999",9,8,50,36,25,15,8,7,336,150,11,9,40,22,43,21,13,10,0,11,41,35,95,53,119,57,136,63,48,25,159,100,58,38,184,105,126,96]
[null,"$60,000 to $74,999",20,16,87,66,37,21,7,7,304,104,27,15,53,30,49,26,8,8,8,8,29,25,107,43,174,71,149,77,27,15,199,108,101,48,339,153,143,63]
[null,"$75,000 to $99,999",28,13,193,92,52,32,22,11,468,187,11,9,52,21,80,27,10,7,0,11,25,22,100,42,169,73,207,120,78,24,76,65,142,48,107,75,182,86]
[null,"$100,000 to $124,999",48,22,29,44,36,15,4,5,302,152,15,10,39,18,65,28,3,4,0,11,41,27,68,43,203,63,49,42,44,25,108,94,65,39,180,107,293,155]
[null,"$125,000 to $149,999",18,17,43,49,46,24,6,6,180,102,6,7,12,8,10,10,0,11,0,11,10,17,104,49,77,58,63,38,36,21,58,51,51,36,72,66,114,84]
[null,"$150,000 to $199,999",14,13,23,36,16,12,9,8,136,77,2,4,19,19,17,16,2,3,0,11,32,29,7,10,45,27,109,88,14,10,63,64,34,28,111,75,168,103]
[null,"$200,000 or more",4,4,23,37,23,28,12,8,10,15,11,14,16,16,31,17,13,9,0,11,29,19,70,39,277,81,16,20,29,23,49,43,24,16,60,62,218,132]
[]
[]
[null,"B19113. MEDIAN FAMILY INCOME IN THE PAST 12 MONTHS (IN 2017 INFLATION-ADJUSTED DOLLARS)"]
[null,"Universe:  FAMILIES"]
[null,"Data Set: 2013-2017 American Community Survey 5-Year Estimates"]
[]
[null,null,"Albany",null,"Bartlett",null,"Brookfield",null,"Chatham",null,"Conway",null,"Eaton",null,"Effingham",null,"Freedom",null,"Hale's Location",null,"Hart's Location",null,"Jackson",null,"Madison",null,"Moultonborough",null,"Ossipee",null,"Sandwich",null,"Tamworth",null,"Tuftonboro",null,"Wakefield",null,"Wolfeboro"]
[null," ","Estimate","Margin of Error","Estimate","Margin of Error","Estimate","Margin of Error","Estimate","Margin of Error","Estimate","Margin of Error","Estimate","Margin of Error","Estimate","Margin of Error","Estimate","Margin of Error","Estimate","Margin of Error","Estimate","Margin of Error","Estimate","Margin of Error","Estimate","Margin of Error","Estimate","Margin of Error","Estimate","Margin of Error","Estimate","Margin of Error","Estimate","Margin of Error","Estimate","Margin of Error","Estimate","Margin of Error","Estimate","Margin of Error"]
[null,"Median family income in the past 12 months",75833,18881,73951,19214,88281,9913,80694,10981,59216,8740,73750,27018,58125,8708,74375,12693,68333,19273,42083,39633,75000,26949,71643,7250,87067,18659,62115,5836,71250,18880,63400,5713,67417,9888,64361,6745,72581,28617]
[]
[]
[]
[]
[]
[]
[]
[]
[]
[]
[]
[]
[]
[]
[]
[]
[]
[null,"B19101. FAMILY INCOME IN THE PAST 12 MONTHS (IN 2012 INFLATION-ADJUSTED DOLLARS)"]
[null,"Universe:  FAMILIES"]
[null,"Data Set: 2008-2012 American Community Survey 5-Year Estimates"]
[]
[null,null,"Albany",null,"Bartlett",null,"Brookfield",null,"Chatham",null,"Conway",null,"Eaton",null,"Effingham",null,"Freedom",null,"Hale's Location",null,"Hart's Location",null,"Jackson",null,"Madison",null,"Moultonborough",null,"Ossipee",null,"Sandwich",null,"Tamworth",null,"Tuftonboro",null,"Wakefield",null,"Wolfeboro"]
[null," ","Estimate","Margin of Error","Estimate","Margin of Error","Estimate","Margin of Error","Estimate","Margin of Error","Estimate","Margin of Error","Estimate","Margin of Error","Estimate","Margin of Error","Estimate","Margin of Error","Estimate","Margin of Error","Estimate","Margin of Error","Estimate","Margin of Error","Estimate","Margin of Error","Estimate","Margin of Error","Estimate","Margin of Error","Estimate","Margin of Error","Estimate","Margin of Error","Estimate","Margin of Error","Estimate","Margin of Error","Estimate","Margin of Error"]
[null,"Total:",259,62,742,110,183,48,122,41,2660,238,138,29,340,58,384,62,44,14,2,4,305,75,790,81,1361,88,1099,114,373,67,740,90,807,109,1567,173,1778,171]
[null,"Less than $10,000",2,3,0,11,0,11,22,24,76,68,2,3,11,8,23,13,0,11,0,11,19,25,6,8,0,11,56,59,12,13,16,26,14,16,46,42,15,24]
[null,"$10,000 to $14,999",6,7,13,22,4,5,0,11,65,54,8,9,19,19,8,8,0,11,0,11,4,7,4,6,8,14,95,76,3,5,11,17,0,11,32,34,71,79]
[null,"$15,000 to $19,999",27,25,28,29,6,11,7,7,74,65,1,3,16,19,12,9,0,11,0,11,0,11,22,19,0,11,35,45,5,9,64,45,26,26,0,16,10,17]
[null,"$20,000 to $24,999",22,27,18,28,0,11,4,6,205,137,3,5,7,7,15,11,0,11,0,11,15,16,0,11,9,16,48,32,15,14,53,52,30,20,100,77,15,24]
[null,"$25,000 to $29,999",2,3,63,41,17,19,5,11,207,148,13,12,4,5,30,17,1,2,0,11,12,20,73,54,40,43,44,58,23,21,29,27,44,38,112,100,31,35]
[null,"$30,000 to $34,999",0,11,34,52,7,8,2,3,150,92,0,11,25,14,25,25,0,11,0,11,11,17,19,29,34,31,61,56,7,7,41,32,27,32,126,118,91,70]
[null,"$35,000 to $39,999",5,6,84,50,2,4,9,10,182,106,6,7,18,12,42,29,4,4,0,11,12,13,71,46,47,41,19,27,11,9,48,37,6,8,71,56,66,52]
[null,"$40,000 to $44,999",10,10,87,71,11,8,3,5,123,85,8,7,27,17,16,13,1,3,0,11,0,11,75,48,55,51,71,44,6,7,0,11,78,48,78,55,120,70]
[null,"$45,000 to $49,999",0,11,33,49,2,4,8,9,210,84,14,12,26,20,36,25,3,4,0,11,17,13,49,36,96,77,49,56,20,19,54,70,33,21,191,103,160,109]
[null,"$50,000 to $59,999",25,25,97,65,12,9,7,7,321,155,19,13,57,30,35,18,6,7,0,11,24,22,68,48,138,64,164,76,58,27,152,62,97,71,133,83,95,62]
[null,"$60,000 to $74,999",44,25,83,64,42,28,11,12,252,132,13,11,43,25,38,21,11,8,2,4,56,37,96,67,247,89,181,82,45,20,67,37,196,79,222,106,284,115]
[null,"$75,000 to $99,999",55,33,71,55,32,16,29,20,356,129,28,15,46,21,44,20,8,7,0,11,20,15,148,62,182,79,203,73,65,25,100,58,152,70,167,82,234,102]
[null,"$100,000 to $124,999",16,14,76,69,12,10,7,12,137,79,6,7,31,21,31,16,5,5,0,11,52,29,80,48,123,66,54,43,36,16,30,23,31,27,160,82,295,144]
[null,"$125,000 to $149,999",28,20,39,47,11,10,1,3,91,71,7,6,0,11,14,10,0,11,0,11,19,18,42,34,175,85,8,12,29,20,37,36,17,17,41,37,105,68]
[null,"$150,000 to $199,999",2,3,0,11,15,20,3,6,180,89,5,6,7,7,4,5,0,11,0,11,19,21,15,16,103,63,11,22,25,17,16,17,27,41,37,43,34,37]
[null,"$200,000 or more",15,16,16,25,10,9,4,7,31,28,5,8,3,4,11,16,5,5,0,11,25,19,22,35,104,59,0,11,13,9,22,19,29,22,51,50,152,88]
[]
[]
[null,"B19113. MEDIAN FAMILY INCOME IN THE PAST 12 MONTHS (IN 2012 INFLATION-ADJUSTED DOLLARS)"]
[null,"Universe:  FAMILIES"]
[null,"Data Set: 2008-2012 American Community Survey 5-Year Estimates"]
[]
[null,null,"Albany",null,"Bartlett",null,"Brookfield",null,"Chatham",null,"Conway",null,"Eaton",null,"Effingham",null,"Freedom",null,"Hale's Location",null,"Hart's Location",null,"Jackson",null,"Madison",null,"Moultonborough",null,"Ossipee",null,"Sandwich",null,"Tamworth",null,"Tuftonboro",null,"Wakefield",null,"Wolfeboro"]
[null," ","Estimate","Margin of Error","Estimate","Margin of Error","Estimate","Margin of Error","Estimate","Margin of Error","Estimate","Margin of Error","Estimate","Margin of Error","Estimate","Margin of Error","Estimate","Margin of Error","Estimate","Margin of Error","Estimate","Margin of Error","Estimate","Margin of Error","Estimate","Margin of Error","Estimate","Margin of Error","Estimate","Margin of Error","Estimate","Margin of Error","Estimate","Margin of Error","Estimate","Margin of Error","Estimate","Margin of Error","Estimate","Margin of Error"]
[null,"Median family income in the past 12 months",70875,10614,52538,11715,71181,4004,51250,30535,50805,4864,57500,10412,53261,4527,48500,3387,67500,22895,"-","**",72813,9187,61176,14118,76806,9759,53011,5815,64432,12768,52455,3591,64659,9503,53338,10050,70673,6628]

{"sheet":"PopComparison","index":69,"n_rows":53,"n_cols":14,"rows_kept":53,"cut":false,"hidden":true,"merged":[[50,1,50,2],[42,1,42,2],[43,1,43,2],[44,1,44,2],[45,1,45,2],[46,1,46,2],[47,1,47,2],[41,1,41,2],[30,1,30,2],[31,1,31,2],[32,1,32,2],[33,1,33,2],[34,1,34,2],[35,1,35,2],[36,1,36,2],[37,1,37,2],[38,1,38,2],[39,1,39,2],[40,1,40,2],[29,1,29,2],[26,13,26,14],[27,3,27,4],[27,5,27,6],[27,7,27,8],[27,9,27,10]]}
[]
[]
[]
[]
[]
[]
[]
[]
[]
[]
[]
[]
[]
[]
[]
[]
[]
[]
[]
[]
[]
[]
[]
[]
[]
[]
[]
[null,null,null,2000,null,2010,null,2020,null,2030,null,null,"2000-2010","2020-2030"]
[null,null,null,"#","%","#","%","#","%","#","%",null,"% Change","% Change"]
[null,"Albany",null,{"$f":"CntyQuery!G70","v":654},{"$f":"D30/$D$51","v":1.4977327898135849E-2},{"$f":"CntyQuery!H70","v":735},{"$f":"F30/$F$51","v":1.5370780877493832E-2},{"$f":"CntyQuery!I70","v":759},{"$f":"H30/$H$51","v":1.5147584169876464E-2},{"$f":"CntyQuery!J70","v":792},{"$f":"J30/J$51","v":1.5142824366181026E-2},null,{"$f":"(F30-D30)/D30","v":0.12385321100917432},{"$f":"(H30-F30)/F30","v":3.2653061224489799E-2}]
[null,"Bartlett",null,{"$f":"CntyQuery!G71","v":2705},{"$f":"D31/$D$51","v":6.1947510649017545E-2},{"$f":"CntyQuery!H71","v":2788},{"$f":"F31/$F$51","v":5.8304404199255512E-2},{"$f":"CntyQuery!I71","v":3200},{"$f":"H31/$H$51","v":6.3863332468517373E-2},{"$f":"CntyQuery!J71","v":3340},{"$f":"J31/J$51","v":6.385989063515736E-2},null,{"$f":"(F31-D31)/D31","v":3.0683918669131238E-2},{"$f":"(H31-F31)/F31","v":0.14777618364418937}]
[null,"Brookfield",null,{"$f":"CntyQuery!G72","v":604},1.3832272248431273E-2,{"$f":"CntyQuery!H72","v":712},1.4889790455477017E-2,{"$f":"CntyQuery!I72","v":755},1.5067755004290818E-2,{"$f":"CntyQuery!J72","v":788},1.5066345455240717E-2,null,0.17880794701986755,6.0393258426966294E-2]
[null,"Chatham",null,{"$f":"CntyQuery!G73","v":260},5.9542893784637931E-3,{"$f":"CntyQuery!H73","v":337},7.0475553138985318E-3,{"$f":"CntyQuery!I73","v":341},6.8054363661763824E-3,{"$f":"CntyQuery!J73","v":356},6.8066230736874307E-3,null,0.29615384615384616,1.1869436201780416E-2]
[null,"Conway",null,{"$f":"CntyQuery!G74","v":8604},0.19704117620116338,{"$f":"CntyQuery!H74","v":10115},0.21153122255217702,{"$f":"CntyQuery!I74","v":9822},0.19602051609555551,{"$f":"CntyQuery!J74","v":10256},0.19609192765095024,null,0.17561599256159927,-2.8966880869995056E-2]
[null,"Eaton",null,{"$f":"CntyQuery!G75","v":375},8.5879173727843178E-3,{"$f":"CntyQuery!H75","v":393},8.2186624283742526E-3,{"$f":"CntyQuery!I75","v":405},8.0827030155467307E-3,{"$f":"CntyQuery!J75","v":423},8.0876448319375932E-3,null,4.8000000000000001E-2,3.0534351145038167E-2]
[null,"Effingham",null,{"$f":"CntyQuery!G76","v":1273},2.9153116841478494E-2,{"$f":"CntyQuery!H76","v":1465},3.0636998619766615E-2,{"$f":"CntyQuery!I76","v":1691},3.3747779751332148E-2,{"$f":"CntyQuery!J76","v":1765},3.3746319452410994E-2,null,0.15082482325216026,0.15426621160409557]
[null,"Freedom",null,{"$f":"CntyQuery!G77","v":1303},2.9840150231301241E-2,{"$f":"CntyQuery!H77","v":1489},3.1138901668827639E-2,{"$f":"CntyQuery!I77","v":1689},3.3707865168539325E-2,{"$f":"CntyQuery!J77","v":1763},3.3708079996940844E-2,null,0.1427475057559478,0.13431833445265279]
[null,"Hale's Location",null,{"$f":"CntyQuery!G78","v":58},1.3282645536573077E-3,{"$f":"CntyQuery!H78","v":120},2.5095152453051151E-3,{"$f":"CntyQuery!I78","v":132},2.6343624643263416E-3,{"$f":"CntyQuery!J78","v":138},2.6385224274406332E-3,null,{"$f":"(F38-D38)/D38","v":1.0689655172413792},{"$f":"(H38-F38)/F38","v":0.1}]
[null,"Hart's Location",null,{"$f":"CntyQuery!G79","v":37},8.47341180781386E-4,{"$f":"CntyQuery!H79","v":41},8.5741770881258108E-4,{"$f":"CntyQuery!I79","v":68},1.3570958149559942E-3,{"$f":"CntyQuery!J79","v":71},1.3575006691904708E-3,null,0.10810810810810811,0.65853658536585369]
[null,"Jackson",null,{"$f":"CntyQuery!G80","v":835},1.9122429350066413E-2,{"$f":"CntyQuery!H80","v":816},1.7064703668074784E-2,{"$f":"CntyQuery!I80","v":1028},2.0516095555511205E-2,{"$f":"CntyQuery!J80","v":1073},2.0515467859737676E-2,null,-2.2754491017964073E-2,0.25980392156862747]
[null,"Madison",null,{"$f":"CntyQuery!G81","v":1984},4.5435808180277565E-2,{"$f":"CntyQuery!H81","v":2502},5.2323392864611649E-2,{"$f":"CntyQuery!I81","v":2565},5.1190452431795957E-2,{"$f":"CntyQuery!J81","v":2677},5.1183511146801267E-2,null,0.26108870967741937,2.5179856115107913E-2]
[null,"Moultonborough",null,{"$f":"CntyQuery!G82","v":4484},0.10268859066550634,{"$f":"CntyQuery!H82","v":4044},8.4570663766782378E-2,{"$f":"CntyQuery!I82","v":4918},9.8149959087552641E-2,{"$f":"CntyQuery!J82","v":5133},9.8141562464150511E-2,null,{"$f":"(F42-D42)/D42","v":-9.8126672613737739E-2},0.21612265084075172]
[null,"Ossipee",null,{"$f":"CntyQuery!G83","v":4211},9.6436586818119355E-2,{"$f":"CntyQuery!H83","v":4345},9.0865364507089375E-2,{"$f":"CntyQuery!I83","v":4372},8.7253277985111857E-2,{"$f":"CntyQuery!J83","v":4563},8.7243317655156596E-2,null,{"$f":"(F43-D43)/D43","v":3.1821420090239846E-2},6.2140391254315308E-3]
[null,"Sandwich",null,{"$f":"CntyQuery!G84","v":1286},2.9450831310401687E-2,{"$f":"CntyQuery!H84","v":1326},2.7730143460621522E-2,{"$f":"CntyQuery!I84","v":1466},2.9257389187139521E-2,{"$f":"CntyQuery!J84","v":1530},2.9253183434667891E-2,null,3.110419906687403E-2,0.10558069381598793]
[null,"Tamworth",null,{"$f":"CntyQuery!G85","v":2510},5.7481793615169696E-2,{"$f":"CntyQuery!H85","v":2856},5.9726462838261746E-2,{"$f":"CntyQuery!I85","v":2812},5.6119903406709644E-2,{"$f":"CntyQuery!J85","v":2935},5.6116400902451152E-2,null,0.13784860557768924,-1.5406162464985995E-2]
[null,"Tuftonboro",null,{"$f":"CntyQuery!G86","v":2148},4.9191590711308568E-2,{"$f":"CntyQuery!H86","v":2387},4.9918440754527581E-2,{"$f":"CntyQuery!I86","v":2467},4.9234637874947612E-2,{"$f":"CntyQuery!J86","v":2575},4.9233298917823409E-2,null,0.11126629422718808,3.3514872224549644E-2]
[null,"Wakefield",null,{"$f":"CntyQuery!G87","v":4252},9.7375532450877114E-2,{"$f":"CntyQuery!H87","v":5078},0.10619432013049479,{"$f":"CntyQuery!I87","v":5201},0.10379787255273715,{"$f":"CntyQuery!J87","v":5428},0.10378188214599825,null,{"$f":"(F47-D47)/D47","v":0.19426152398871119},2.4222134698700274E-2]
[null,"Wolfeboro",null,{"$f":"CntyQuery!G88","v":6083},0.13930747034305868,{"$f":"CntyQuery!H88","v":6269},0.13110125894014807,{"$f":"CntyQuery!I88","v":6416},0.12804598159937733,{"$f":"CntyQuery!J88","v":6696},0.12802569691407595,null,{"$f":"(F48-D48)/D48","v":3.057701791879007E-2},2.3448715903652894E-2]
[]
[]
[null,"Carroll County",null,{"$f":"SUM(D30:D50)","v":43666},null,{"$f":"SUM(F30:F50)","v":47818},null,{"$f":"SUM(H30:H50)","v":50107},null,{"$f":"SUM(J30:J50)","v":52302},null,null,9.5085421151467966E-2,{"$f":"(J51-F51)/F51","v":9.3772219666234474E-2}]
[]
[null,"Source: US Census and Office of Planning and Development, NH BEA"]

{"sheet":"HousingComparison","index":70,"n_rows":56,"n_cols":15,"rows_kept":56,"cut":false,"hidden":true,"merged":[[28,3,28,4],[28,5,28,8],[28,9,28,14],[29,5,29,6],[29,7,29,8],[29,9,29,10],[29,11,29,12],[29,13,29,14]]}
[]
[]
[]
[]
[]
[]
[]
[]
[]
[]
[]
[]
[]
[]
[]
[]
[]
[]
[]
[]
[]
[]
[]
[]
[]
[]
[]
[null,"Housing Units",null,"In 2022"]
[null,null,null,"Total Units",null,"Occupied Units",null,null,null,"Vacant Units"]
[null,null,null,null,null,"Owner",null,"Renter",null,"For Sale",null,"For Rent",null,"Seasonal"]
[null,null,null,"#","%","#","%","#","%","#","%","#","%","#","%"]
[]
[null,"Albany",null,{"$f":"ACS_Table_B25001!$C$7","v":538},{"$f":"D33/D$53","v":1.3487427611622253E-2},{"$f":"ACS_Table_B25003!$C$8","v":252},{"$f":"F33/$F$53","v":1.4277620396600566E-2},{"$f":"ACS_Table_B25003!$C$9","v":91},{"$f":"H33/$H$53","v":2.2784176264396595E-2},{"$f":"ACS_Table_B25004!$C$10","v":7},{"$f":"J33/$J$53","v":2.4734982332155476E-2},{"$f":"ACS_Table_B25004!$C$8","v":0},{"$f":"L33/$L$53","v":0},{"$f":"ACS_Table_B25004!$C$12","v":177},{"$f":"N33/$N$53","v":1.057158215373589E-2}]
[null,"Bartlett",null,{"$f":"ACS_Table_B25001!$E$7","v":4613},{"$f":"D34/D$53","v":0.11564591742084283},{"$f":"ACS_Table_B25003!$E$8","v":1376},{"$f":"F34/$F$53","v":7.7960339943342782E-2},{"$f":"ACS_Table_B25003!$E$9","v":346},{"$f":"H34/$H$53","v":8.6629944917376064E-2},{"$f":"ACS_Table_B25004!$E$10","v":24},{"$f":"J34/$J$53","v":8.4805653710247356E-2},{"$f":"ACS_Table_B25004!$E$8","v":55},{"$f":"L34/$L$53","v":0.2722772277227723},{"$f":"ACS_Table_B25004!$E$12","v":2748},{"$f":"N34/$N$53","v":0.16412829242071314}]
[null,"Brookfield",null,{"$f":"ACS_Table_B25001!$G$7","v":291},7.2952443029406606E-3,{"$f":"ACS_Table_B25003!$G$8","v":231},1.3087818696883852E-2,{"$f":"ACS_Table_B25003!$G$9","v":1},2.503755633450175E-4,{"$f":"ACS_Table_B25004!$G$10","v":11},3.8869257950530034E-2,{"$f":"ACS_Table_B25004!$G$8","v":0},0,{"$f":"ACS_Table_B25004!$G$12","v":29},1.7320671325329988E-3]
[null,"Chatham",null,{"$f":"ACS_Table_B25001!$I$7","v":269},6.7437138058111263E-3,{"$f":"ACS_Table_B25003!$I$8","v":141},7.9886685552407934E-3,{"$f":"ACS_Table_B25003!$I$9","v":19},{"$f":"H36/$H$53","v":4.7571357035553329E-3},{"$f":"ACS_Table_B25004!$I$10","v":5},1.7667844522968199E-2,{"$f":"ACS_Table_B25004!$I$8","v":0},0,{"$f":"ACS_Table_B25004!$I$12","v":101},6.0323717374425132E-3]
[null,"Conway",null,{"$f":"ACS_Table_B25001!$K$7","v":6810},0.17072375842964227,{"$f":"ACS_Table_B25003!$K$8","v":3119},{"$f":"F37/$F$53","v":0.17671388101983002},{"$f":"ACS_Table_B25003!$K$9","v":1349},{"$f":"H37/$H$53","v":0.33775663495242864},{"$f":"ACS_Table_B25004!$K$10","v":0},0,{"$f":"ACS_Table_B25004!$K$8","v":0},0,{"$f":"ACS_Table_B25004!$K$12","v":2132},0.12733679746759841]
[null,"Eaton",null,{"$f":"ACS_Table_B25001!$M$7","v":260},6.5180876933490436E-3,{"$f":"ACS_Table_B25003!$M$8","v":123},6.9688385269121812E-3,{"$f":"ACS_Table_B25003!$M$9","v":35},8.7631447170756129E-3,{"$f":"ACS_Table_B25004!$M$10","v":4},1.4134275618374558E-2,{"$f":"ACS_Table_B25004!$M$8","v":0},0,{"$f":"ACS_Table_B25004!$M$12","v":74},4.4197575106014455E-3]
[null,"Effingham",null,{"$f":"ACS_Table_B25001!$O$7","v":886},2.2211637293489433E-2,{"$f":"ACS_Table_B25003!$O$8","v":477},2.7025495750708214E-2,{"$f":"ACS_Table_B25003!$O$9","v":72},1.8027040560841263E-2,{"$f":"ACS_Table_B25004!$O$10","v":3},1.0600706713780919E-2,{"$f":"ACS_Table_B25004!$O$8","v":0},0,{"$f":"ACS_Table_B25004!$O$12","v":293},1.7499850683867887E-2]
[null,"Freedom",null,{"$f":"ACS_Table_B25001!$Q$7","v":1728},4.33202135927198E-2,{"$f":"ACS_Table_B25003!$Q$8","v":543},3.0764872521246458E-2,{"$f":"ACS_Table_B25003!$Q$9","v":33},8.2623935903855788E-3,{"$f":"ACS_Table_B25004!$Q$10","v":5},1.7667844522968199E-2,{"$f":"ACS_Table_B25004!$Q$8","v":0},0,{"$f":"ACS_Table_B25004!$Q$12","v":1128},6.7371438810249054E-2]
[null,"Hale's Location",null,{"$f":"ACS_Table_B25001!$S$7","v":133},3.3342525508285492E-3,{"$f":"ACS_Table_B25003!$S$8","v":85},4.8158640226628894E-3,{"$f":"ACS_Table_B25003!$S$9","v":20},5.0075112669003509E-3,{"$f":"ACS_Table_B25004!$S$10","v":1},3.5335689045936395E-3,{"$f":"ACS_Table_B25004!$S$8","v":0},0,{"$f":"ACS_Table_B25004!$S$12","v":20},1.1945290569193095E-3]
[null,"Hart's Location",null,{"$f":"ACS_Table_B25001!$U$7","v":69},1.7298001955426308E-3,{"$f":"ACS_Table_B25003!$U$8","v":43},2.4362606232294619E-3,{"$f":"ACS_Table_B25003!$U$9","v":0},0,{"$f":"ACS_Table_B25004!$U$10","v":0},0,{"$f":"ACS_Table_B25004!$U$8","v":0},0,{"$f":"ACS_Table_B25004!$U$12","v":26},1.5528877739951024E-3]
[null,"Jackson",null,{"$f":"ACS_Table_B25001!$W$7","v":1065},2.6699089974679735E-2,{"$f":"ACS_Table_B25003!$W$8","v":385},2.1813031161473088E-2,{"$f":"ACS_Table_B25003!$W$9","v":115},2.8793189784677015E-2,{"$f":"ACS_Table_B25004!$W$10","v":0},0,{"$f":"ACS_Table_B25004!$W$8","v":8},3.9603960396039604E-2,{"$f":"ACS_Table_B25004!$W$12","v":549},3.278982261243505E-2]
[null,"Madison",null,{"$f":"ACS_Table_B25001!$Y$7","v":1822},4.5676752989545988E-2,{"$f":"ACS_Table_B25003!$Y$8","v":839},4.753541076487252E-2,{"$f":"ACS_Table_B25003!$Y$9","v":139},3.4802203304957438E-2,{"$f":"ACS_Table_B25004!$Y$10","v":0},0,{"$f":"ACS_Table_B25004!$Y$8","v":34},0.16831683168316833,{"$f":"ACS_Table_B25004!$Y$12","v":777},4.6407453861315173E-2]
[null,"Moultonborough",null,{"$f":"ACS_Table_B25001!$AA$7","v":4998},0.1252977011206097,{"$f":"ACS_Table_B25003!$AA$8","v":1880},0.10651558073654391,{"$f":"ACS_Table_B25003!$AA$9","v":231},5.783675513269905E-2,{"$f":"ACS_Table_B25004!$AA$10","v":27},9.5406360424028266E-2,{"$f":"ACS_Table_B25004!$AA$8","v":54},0.26732673267326734,{"$f":"ACS_Table_B25004!$AA$12","v":2674},0.15970853491011169]
[null,"Ossipee",null,{"$f":"ACS_Table_B25001!$AC$7","v":2879},7.2175286419814993E-2,{"$f":"ACS_Table_B25003!$AC$8","v":1383},7.8356940509915013E-2,{"$f":"ACS_Table_B25003!$AC$9","v":294},7.3610415623435149E-2,{"$f":"ACS_Table_B25004!$AC$10","v":102},0.36042402826855124,{"$f":"ACS_Table_B25004!$AC$8","v":36},0.17821782178217821,{"$f":"ACS_Table_B25004!$AC$12","v":961},5.7397121184972824E-2]
[null,"Sandwich",null,{"$f":"ACS_Table_B25001!$AE$7","v":1325},3.3217177668028779E-2,{"$f":"ACS_Table_B25003!$AE$8","v":857},4.8555240793201136E-2,{"$f":"ACS_Table_B25003!$AE$9","v":73},1.8277416124186281E-2,{"$f":"ACS_Table_B25004!$AE$10","v":5},1.7667844522968199E-2,{"$f":"ACS_Table_B25004!$AE$8","v":0},0,{"$f":"ACS_Table_B25004!$AE$12","v":381},2.2755778534312848E-2]
[null,"Tamworth",null,{"$f":"ACS_Table_B25001!$AG$7","v":1591},3.9885682769685876E-2,{"$f":"ACS_Table_B25003!$AG$8","v":646},3.6600566572237959E-2,{"$f":"ACS_Table_B25003!$AG$9","v":341},8.5378067100650976E-2,{"$f":"ACS_Table_B25004!$AG$10","v":0},0,{"$f":"ACS_Table_B25004!$AG$8","v":0},0,{"$f":"ACS_Table_B25004!$AG$12","v":560},3.3446813593740667E-2]
[null,"Tuftonboro",null,{"$f":"ACS_Table_B25001!$AI$7","v":2542},6.3726841986512572E-2,{"$f":"ACS_Table_B25003!$AI$8","v":1005},5.6940509915014162E-2,{"$f":"ACS_Table_B25003!$AI$9","v":108},2.7040560841261892E-2,{"$f":"ACS_Table_B25004!$AI$10","v":35},0.12367491166077739,{"$f":"ACS_Table_B25004!$AI$8","v":15},7.4257425742574254E-2,{"$f":"ACS_Table_B25004!$AI$12","v":1298},7.7524935794063193E-2]
[null,"Wakefield",null,{"$f":"ACS_Table_B25001!$AK$7","v":3785},9.4888315074331264E-2,{"$f":"ACS_Table_B25003!$AK$8","v":2100},0.11898016997167139,{"$f":"ACS_Table_B25003!$AK$9","v":105},2.628943415122684E-2,{"$f":"ACS_Table_B25004!$AK$10","v":0},0,{"$f":"ACS_Table_B25004!$AK$8","v":0},0,{"$f":"ACS_Table_B25004!$AK$12","v":1440},8.6006092098190282E-2]
[null,"Wolfeboro",null,{"$f":"ACS_Table_B25001!$AM$7","v":4285},0.1074230991000025,{"$f":"ACS_Table_B25003!$AM$8","v":2165},0.1226628895184136,{"$f":"ACS_Table_B25003!$AM$9","v":622},0.15573360040060091,{"$f":"ACS_Table_B25004!$AM$10","v":54},0.19081272084805653,{"$f":"ACS_Table_B25004!$AM$8","v":0},0,{"$f":"ACS_Table_B25004!$AM$12","v":1375},8.2123872663202535E-2]
[]
[null,"Carroll County",null,{"$f":"SUM(D33:D52)","v":39889},null,{"$f":"SUM(F33:F52)","v":17650},null,{"$f":"SUM(H33:H52)","v":3994},null,{"$f":"SUM(J33:J52)","v":283},null,{"$f":"SUM(L33:L52)","v":202},null,{"$f":"SUM(N33:N52)","v":16743}]
[]
[null,"Source: 2018-2022 American Community Survey Tables B25001; B25003; and B25004"]
[null,"Margin of error is not displayed.  The American Community Survey data are estimates only."]

{"sheet":"Housing_EmploymentComparison","index":71,"n_rows":59,"n_cols":11,"rows_kept":59,"cut":false,"hidden":true,"merged":[[56,2,56,13],[57,2,57,13],[58,2,58,13],[28,3,28,4],[28,5,28,10],[29,5,29,6],[29,7,29,8],[29,9,29,10]]}
[]
[]
[]
[]
[]
[]
[]
[]
[]
[]
[]
[]
[]
[]
[]
[]
[]
[]
[]
[]
[]
[]
[]
[]
[]
[]
[]
[null,null,null,"In 2022"]
[null,null,null,"Total Units",null,"Employment"]
[null,null,null,null,null,"Total Private",null,"Goods Producing",null,"Service Providing"]
[null,null,null,"#","%","#","%","#","%","#","%"]
[]
[null,"Albany",null,{"$f":"ACS_Table_B25001!$C$7","v":538},{"$f":"D33/D$53","v":1.3487427611622253E-2},{"$f":"CntyQuery!$FB$99","v":101},{"$f":"F33/$F$53","v":6.7333333333333334E-3},{"$f":"CntyQuery!$FD$99","v":"n"},"n",{"$f":"CntyQuery!$FE$99","v":"n"},"n"]
[null,"Bartlett",null,{"$f":"ACS_Table_B25001!$E$7","v":4613},{"$f":"D34/D$53","v":0.11564591742084283},{"$f":"CntyQuery!$FB$100","v":680},{"$f":"F34/$F$53","v":4.5333333333333337E-2},{"$f":"CntyQuery!$FD$100","v":36},{"$f":"H34/$H$53","v":1.7357762777242044E-2},{"$f":"CntyQuery!$FE$100","v":644},{"$f":"J34/$J$53","v":4.9822064056939501E-2}]
[null,"Brookfield",null,{"$f":"ACS_Table_B25001!$G$7","v":291},7.2952443029406606E-3,{"$f":"CntyQuery!$FB$101","v":14},9.3333333333333332E-4,{"$f":"CntyQuery!$FD$101","v":"n"},"n",{"$f":"CntyQuery!$FE$101","v":"n"},"n"]
[null,"Chatham",null,{"$f":"ACS_Table_B25001!$I$7","v":269},6.7437138058111263E-3,{"$f":"CntyQuery!$FB$102","v":"n"},{"$f":"CntyQuery!$EB$102","v":"n"},{"$f":"CntyQuery!$FD$102","v":0},0,{"$f":"CntyQuery!$FE$102","v":"n"},"n"]
[null,"Conway",null,{"$f":"ACS_Table_B25001!$K$7","v":6810},0.17072375842964227,{"$f":"CntyQuery!$FB$103","v":7000},{"$f":"F37/$F$53","v":0.46666666666666667},{"$f":"CntyQuery!$FD$103","v":750},0.36162005785920925,{"$f":"CntyQuery!$FE$103","v":6251},0.48359894785703234]
[null,"Eaton",null,{"$f":"ACS_Table_B25001!$M$7","v":260},6.5180876933490436E-3,{"$f":"CntyQuery!$FB$104","v":""},null,{"$f":"CntyQuery!$FD$104","v":"n"},"n",{"$f":"CntyQuery!$FE$104","v":"n"},"n"]
[null,"Effingham",null,{"$f":"ACS_Table_B25001!$O$7","v":886},2.2211637293489433E-2,{"$f":"CntyQuery!$FB$105","v":56},3.7333333333333333E-3,{"$f":"CntyQuery!$FD$105","v":"n"},"n",{"$f":"CntyQuery!$FE$105","v":"n"},"n"]
[null,"Freedom",null,{"$f":"ACS_Table_B25001!$Q$7","v":1728},4.33202135927198E-2,{"$f":"CntyQuery!$FB$106","v":179},1.1933333333333334E-2,{"$f":"CntyQuery!$FD$106","v":27},1.3018322082931534E-2,{"$f":"CntyQuery!$FE$106","v":152},1.1759244932693796E-2]
[null,"Hale's Location",null,{"$f":"ACS_Table_B25001!$S$7","v":133},3.3342525508285492E-3,{"$f":"CntyQuery!$FB$107","v":"n"},{"$f":"F41","v":"n"},{"$f":"CntyQuery!$FD$107","v":0},0,{"$f":"CntyQuery!$FE$107","v":"n"},"n"]
[null,"Hart's Location",null,{"$f":"ACS_Table_B25001!$U$7","v":69},1.7298001955426308E-3,{"$f":"CntyQuery!$FB$108","v":"n"},{"$f":"CntyQuery!$EB$108","v":"n"},{"$f":"CntyQuery!$FD$108","v":0},0,{"$f":"CntyQuery!$FE$108","v":"n"},"n"]
[null,"Jackson",null,{"$f":"ACS_Table_B25001!$W$7","v":1065},2.6699089974679735E-2,{"$f":"CntyQuery!$FB$109","v":372},2.4799999999999999E-2,{"$f":"CntyQuery!$FD$109","v":10},4.8216007714561235E-3,{"$f":"CntyQuery!$FE$109","v":362},2.8005570168652329E-2]
[null,"Madison",null,{"$f":"ACS_Table_B25001!$Y$7","v":1822},4.5676752989545988E-2,{"$f":"CntyQuery!$FB$110","v":430},2.8666666666666667E-2,{"$f":"CntyQuery!$FD$110","v":161},7.762777242044358E-2,{"$f":"CntyQuery!$FE$110","v":270},2.0888132446232398E-2]
[null,"Moultonborough",null,{"$f":"ACS_Table_B25001!$AA$7","v":4998},0.1252977011206097,{"$f":"CntyQuery!$FB$111","v":1156},7.7066666666666672E-2,{"$f":"CntyQuery!$FD$111","v":199},9.5949855351976851E-2,{"$f":"CntyQuery!$FE$111","v":957},7.403682500386817E-2]
[null,"Ossipee",null,{"$f":"ACS_Table_B25001!$AC$7","v":2879},7.2175286419814993E-2,{"$f":"CntyQuery!$FB$112","v":1103},7.3533333333333339E-2,{"$f":"CntyQuery!$FD$112","v":182},8.7753134040501446E-2,{"$f":"CntyQuery!$FE$112","v":921},7.1251740677703859E-2]
[null,"Sandwich",null,{"$f":"ACS_Table_B25001!$AE$7","v":1325},3.3217177668028779E-2,{"$f":"CntyQuery!$FB$113","v":143},9.5333333333333329E-3,{"$f":"CntyQuery!$FD$113","v":43},2.0732883317261332E-2,{"$f":"CntyQuery!$FE$113","v":100},7.7363453504564446E-3]
[null,"Tamworth",null,{"$f":"ACS_Table_B25001!$AG$7","v":1591},3.9885682769685876E-2,{"$f":"CntyQuery!$FB$114","v":457},3.0466666666666666E-2,{"$f":"CntyQuery!$FD$114","v":150},7.2324011571841845E-2,{"$f":"CntyQuery!$FE$114","v":307},2.3750580225901284E-2]
[null,"Tuftonboro",null,{"$f":"ACS_Table_B25001!$AI$7","v":2542},6.3726841986512572E-2,{"$f":"CntyQuery!$FB$115","v":268},1.7866666666666666E-2,{"$f":"CntyQuery!$FD$115","v":60},2.8929604628736741E-2,{"$f":"CntyQuery!$FE$115","v":207},1.601423487544484E-2]
[null,"Wakefield",null,{"$f":"ACS_Table_B25001!$AK$7","v":3785},9.4888315074331264E-2,{"$f":"CntyQuery!$FB$116","v":496},3.3066666666666668E-2,{"$f":"CntyQuery!$FD$116","v":91},4.3876567020250723E-2,{"$f":"CntyQuery!$FE$116","v":405},3.1332198669348603E-2]
[null,"Wolfeboro",null,{"$f":"ACS_Table_B25001!$AM$7","v":4285},0.1074230991000025,{"$f":"CntyQuery!$FB$117","v":2509},0.16726666666666667,{"$f":"CntyQuery!$FD$117","v":312},0.15043394406943106,{"$f":"CntyQuery!$FE$117","v":2196},0.16989014389602353]
[]
[null,"Carroll County",null,{"$f":"SUM(D33:D52)","v":39889},null,{"$f":"CntyQuery!$FB$125","v":15000},null,{"$f":"CntyQuery!$FD$125","v":2074},null,{"$f":"CntyQuery!$FE$125","v":12926}]
[]
[]
[null,"Source: ","2018-2022 American Community Survey Table B25001"]
[null,null,"Employment data provided by NH Department of Employment Security 2022 Covered Private Employment."]
[null,null,"Margin of error is not displayed.  The American Community Survey data are estimates only. Total Employment "]
[null,null,"at the county level is the number provided by NH Department of Employment Security."]

{"sheet":"DropDownList","index":72,"n_rows":117,"n_cols":186,"rows_kept":117,"cut":false,"hidden":true,"merged":[]}
["List Range for Combo Box on Start Page"]
["Albany"]
["Bartlett"]
["Brookfield"]
["Chatham"]
["Conway"]
["Eaton"]
["Effingham"]
["Freedom"]
["Hale's Location"]
["Hart's Location"]
["Jackson"]
["Madison"]
["Moultonborough"]
["Ossipee"]
["Sandwich"]
["Tamworth"]
["Tuftonboro"]
["Wakefield"]
["Wolfeboro"]
[]
[]
[]
["Wolfeboro","Wolfeboro"]
[]
[]
[]
[]
[]
[]
[]
[]
[]
[]
[]
[]
[]
[]
[]
[]
[]
[]
[]
[]
[]
[]
[]
[]
[]
[]
[]
[]
[]
[]
[]
[]
[]
[]
[]
[]
[]
[]
[]
[]
[]
[]
[]
[]
[]
[]
[]
[]
[]
[]
[]
[]
[]
[]
[]
[]
[]
[]
[]
[]
[]
[]
[]
[]
[]
[]
[]
[]
[]
[]
[]
[]
[]
[]
[null,null,null,null,null,null,null,null,null,null,null,null,null,null,null,null,null,null,null,null,null,null,null,null,null,null,null,null,null,null,null,null,null,null,null,null,null,null,null,null,null,null,null,null,null,null,null,null,null,null,null,null,null,null,null,null,null,null,null,null,null,null,null,null,null,null,null,null,null,null,null,null,null,null,null,null,null,null,null,null,null,null,null,null,null,null,null,null,null,null,null,null,null,null,null,null,null,null,null,null,null,null,null,null,null,null,null,null,null,null,null,null,null,null,null,null,null,null,null,null,null,null,null,null,null,null,null,null,null,null,null,null,null,null,null,null,null,null,null,null,null,null,null,null,null,null,null,null,null,null,null,null,null,null,null,null,null,null,null,null,null,null,null,null,null,null,null,null,null,null,null,null,null,null,null,null,128,119,9,23,96,806,852,225,889,843]
[null,null,null,null,null,null,null,null,null,null,null,null,null,null,null,null,null,null,null,null,null,null,null,null,null,null,null,null,null,null,null,null,null,null,null,null,null,null,null,null,null,null,null,null,null,null,null,null,null,null,null,null,null,null,null,null,null,null,null,null,null,null,null,null,null,null,null,null,null,null,null,null,null,null,null,null,null,null,null,null,null,null,null,null,null,null,null,null,null,null,null,null,null,null,null,null,null,null,null,null,null,null,null,null,null,null,null,null,null,null,null,null,null,null,null,null,null,null,null,null,null,null,null,null,null,null,null,null,null,null,null,null,null,null,null,null,null,null,null,null,null,null,null,null,null,null,null,null,null,null,null,null,null,null,null,null,null,null,null,null,null,null,null,null,null,null,null,null,null,null,null,null,null,null,null,null,930,834,96,45,790,814,817,786,853,815]
[null,null,null,null,null,null,null,null,null,null,null,null,null,null,null,null,null,null,null,null,null,null,null,null,null,null,null,null,null,null,null,null,null,null,null,null,null,null,null,null,null,null,null,null,null,null,null,null,null,null,null,null,null,null,null,null,null,null,null,null,null,null,null,null,null,null,null,null,null,null,null,null,null,null,null,null,null,null,null,null,null,null,null,null,null,null,null,null,null,null,null,null,null,null,null,null,null,null,null,null,null,null,null,null,null,null,null,null,null,null,null,null,null,null,null,null,null,null,null,null,null,null,null,null,null,null,null,null,null,null,null,null,null,null,null,null,null,null,null,null,null,null,null,null,null,null,null,null,null,null,null,null,null,null,null,null,null,null,null,null,null,null,null,null,null,null,null,null,null,null,null,null,null,null,null,null,24,24,0,"n",0,1096,1096,0,"n",0]
[null,null,null,null,null,null,null,null,null,null,null,null,null,null,null,null,null,null,null,null,null,null,null,null,null,null,null,null,null,null,null,null,null,null,null,null,null,null,null,null,null,null,null,null,null,null,null,null,null,null,null,null,null,null,null,null,null,null,null,null,null,null,null,null,null,null,null,null,null,null,null,null,null,null,null,null,null,null,null,null,null,null,null,null,null,null,null,null,null,null,null,null,null,null,null,null,null,null,null,null,null,null,null,null,null,null,null,null,null,null,null,null,null,null,null,null,null,null,null,null,null,null,null,null,null,null,null,null,null,null,null,null,null,null,null,null,null,null,null,null,null,null,null,null,null,null,null,null,null,null,null,null,null,null,null,null,null,null,null,null,null,null,null,null,null,null,null,null,null,null,null,null,null,null,null,null,0,0,0,0,0,0,0,0,0,0]
[null,null,null,null,null,null,null,null,null,null,null,null,null,null,null,null,null,null,null,null,null,null,null,null,null,null,null,null,null,null,null,null,null,null,null,null,null,null,null,null,null,null,null,null,null,null,null,null,null,null,null,null,null,null,null,null,null,null,null,null,null,null,null,null,null,null,null,null,null,null,null,null,null,null,null,null,null,null,null,null,null,null,null,null,null,null,null,null,null,null,null,null,null,null,null,null,null,null,null,null,null,null,null,null,null,null,null,null,null,null,null,null,null,null,null,null,null,null,null,null,null,null,null,null,null,null,null,null,null,null,null,null,null,null,null,null,null,null,null,null,null,null,null,null,null,null,null,null,null,null,null,null,null,null,null,null,null,null,null,null,null,null,null,null,null,null,null,null,null,null,null,null,null,null,null,null,8392,7643,750,855,6788,900,900,904,957,893]
[null,null,null,null,null,null,null,null,null,null,null,null,null,null,null,null,null,null,null,null,null,null,null,null,null,null,null,null,null,null,null,null,null,null,null,null,null,null,null,null,null,null,null,null,null,null,null,null,null,null,null,null,null,null,null,null,null,null,null,null,null,null,null,null,null,null,null,null,null,null,null,null,null,null,null,null,null,null,null,null,null,null,null,null,null,null,null,null,null,null,null,null,null,null,null,null,null,null,null,null,null,null,null,null,null,null,null,null,null,null,null,null,null,null,null,null,null,null,null,null,null,null,null,null,null,null,null,null,null,null,null,null,null,null,null,null,null,null,null,null,null,null,null,null,null,null,null,null,null,null,null,null,null,null,null,null,null,null,null,null,null,null,null,null,null,null,null,null,null,null,null,null,null,null,null,null,45,39,5,6,33,807,813,758,650,843]
[null,null,null,null,null,null,null,null,null,null,null,null,null,null,null,null,null,null,null,null,null,null,null,null,null,null,null,null,null,null,null,null,null,null,null,null,null,null,null,null,null,null,null,null,null,null,null,null,null,null,null,null,null,null,null,null,null,null,null,null,null,null,null,null,null,null,null,null,null,null,null,null,null,null,null,null,null,null,null,null,null,null,null,null,null,null,null,null,null,null,null,null,null,null,null,null,null,null,null,null,null,null,null,null,null,null,null,null,null,null,null,null,null,null,null,null,null,null,null,null,null,null,null,null,null,null,null,null,null,null,null,null,null,null,null,null,null,null,null,null,null,null,null,null,null,null,null,null,null,null,null,null,null,null,null,null,null,null,null,null,null,null,null,null,null,null,null,null,null,null,null,null,null,null,null,null,94,50,0,0,0,867,953,0,0,0]
[null,null,null,null,null,null,null,null,null,null,null,null,null,null,null,null,null,null,null,null,null,null,null,null,null,null,null,null,null,null,null,null,null,null,null,null,null,null,null,null,null,null,null,null,null,null,null,null,null,null,null,null,null,null,null,null,null,null,null,null,null,null,null,null,null,null,null,null,null,null,null,null,null,null,null,null,null,null,null,null,null,null,null,null,null,null,null,null,null,null,null,null,null,null,null,null,null,null,null,null,null,null,null,null,null,null,null,null,null,null,null,null,null,null,null,null,null,null,null,null,null,null,null,null,null,null,null,null,null,null,null,null,null,null,null,null,null,null,null,null,null,null,null,null,null,null,null,null,null,null,null,null,null,null,null,null,null,null,null,null,null,null,null,null,null,null,null,null,null,null,null,null,null,null,null,null,296,240,56,31,210,929,955,820,1280,908]
[null,null,null,null,null,null,null,null,null,null,null,null,null,null,null,null,null,null,null,null,null,null,null,null,null,null,null,null,null,null,null,null,null,null,null,null,null,null,null,null,null,null,null,null,null,null,null,null,null,null,null,null,null,null,null,null,null,null,null,null,null,null,null,null,null,null,null,null,null,null,null,null,null,null,null,null,null,null,null,null,null,null,null,null,null,null,null,null,null,null,null,null,null,null,null,null,null,null,null,null,null,null,null,null,null,null,null,null,null,null,null,null,null,null,null,null,null,null,null,null,null,null,null,null,null,null,null,null,null,null,null,null,null,null,null,null,null,null,null,null,null,null,null,null,null,null,null,null,null,null,null,null,null,null,null,null,null,null,null,null,null,null,null,null,null,null,null,null,null,null,null,null,null,null,null,null,"n","n",0,0,"n","n","n",0,0,"n"]
[null,null,null,null,null,null,null,null,null,null,null,null,null,null,null,null,null,null,null,null,null,null,null,null,null,null,null,null,null,null,null,null,null,null,null,null,null,null,null,null,null,null,null,null,null,null,null,null,null,null,null,null,null,null,null,null,null,null,null,null,null,null,null,null,null,null,null,null,null,null,null,null,null,null,null,null,null,null,null,null,null,null,null,null,null,null,null,null,null,null,null,null,null,null,null,null,null,null,null,null,null,null,null,null,null,null,null,null,null,null,null,null,null,null,null,null,null,null,null,null,null,null,null,null,null,null,null,null,null,null,null,null,null,null,null,null,null,null,null,null,null,null,null,null,null,null,null,null,null,null,null,null,null,null,null,null,null,null,null,null,null,null,null,null,null,null,null,null,null,null,null,null,null,null,null,null,"n","n",0,0,"n","n","n",0,0,865]
[null,null,null,null,null,null,null,null,null,null,null,null,null,null,null,null,null,null,null,null,null,null,null,null,null,null,null,null,null,null,null,null,null,null,null,null,null,null,null,null,null,null,null,null,null,null,null,null,null,null,null,null,null,null,null,null,null,null,null,null,null,null,null,null,null,null,null,null,null,null,null,null,null,null,null,null,null,null,null,null,null,null,null,null,null,null,null,null,null,null,null,null,null,null,null,null,null,null,null,null,null,null,null,null,null,null,null,null,null,null,null,null,null,null,null,null,null,null,null,null,null,null,null,null,null,null,null,null,null,null,null,null,null,null,null,null,null,null,null,null,null,null,null,null,null,null,null,null,null,null,null,null,null,null,null,null,null,null,null,null,null,null,null,null,null,null,null,null,null,null,null,null,null,null,null,null,470,419,50,11,409,809,817,745,1749,792]
[null,null,null,null,null,null,null,null,null,null,null,null,null,null,null,null,null,null,null,null,null,null,null,null,null,null,null,null,null,null,null,null,null,null,null,null,null,null,null,null,null,null,null,null,null,null,null,null,null,null,null,null,null,null,null,null,null,null,null,null,null,null,null,null,null,null,null,null,null,null,null,null,null,null,null,null,null,null,null,null,null,null,null,null,null,null,null,null,null,null,null,null,null,null,null,null,null,null,null,null,null,null,null,null,null,null,null,null,null,null,null,null,null,null,null,null,null,null,null,null,null,null,null,null,null,null,null,null,null,null,null,null,null,null,null,null,null,null,null,null,null,null,null,null,null,null,null,null,null,null,null,null,null,null,null,null,null,null,null,null,null,null,null,null,null,null,null,null,null,null,null,null,null,null,null,null,497,425,72,172,253,913,910,929,1160,741]
[null,null,null,null,null,null,null,null,null,null,null,null,null,null,null,null,null,null,null,null,null,null,null,null,null,null,null,null,null,null,null,null,null,null,null,null,null,null,null,null,null,null,null,null,null,null,null,null,null,null,null,null,null,null,null,null,null,null,null,null,null,null,null,null,null,null,null,null,null,null,null,null,null,null,null,null,null,null,null,null,null,null,null,null,null,null,null,null,null,null,null,null,null,null,null,null,null,null,null,null,null,null,null,null,null,null,null,null,null,null,null,null,null,null,null,null,null,null,null,null,null,null,null,null,null,null,null,null,null,null,null,null,null,null,null,null,null,null,null,null,null,null,null,null,null,null,null,null,null,null,null,null,null,null,null,null,null,null,null,null,null,null,null,null,null,null,null,null,null,null,null,null,null,null,null,null,1581,1345,236,216,1129,959,951,1002,1268,890]
[null,null,null,null,null,null,null,null,null,null,null,null,null,null,null,null,null,null,null,null,null,null,null,null,null,null,null,null,null,null,null,null,null,null,null,null,null,null,null,null,null,null,null,null,null,null,null,null,null,null,null,null,null,null,null,null,null,null,null,null,null,null,null,null,null,null,null,null,null,null,null,null,null,null,null,null,null,null,null,null,null,null,null,null,null,null,null,null,null,null,null,null,null,null,null,null,null,null,null,null,null,null,null,null,null,null,null,null,null,null,null,null,null,null,null,null,null,null,null,null,null,null,null,null,null,null,null,null,null,null,null,null,null,null,null,null,null,null,null,null,null,null,null,null,null,null,null,null,null,null,null,null,null,null,null,null,null,null,null,null,null,null,null,null,null,null,null,null,null,null,null,null,null,null,null,null,1661,1195,467,196,999,839,797,945,1187,721]
[null,null,null,null,null,null,null,null,null,null,null,null,null,null,null,null,null,null,null,null,null,null,null,null,null,null,null,null,null,null,null,null,null,null,null,null,null,null,null,null,null,null,null,null,null,null,null,null,null,null,null,null,null,null,null,null,null,null,null,null,null,null,null,null,null,null,null,null,null,null,null,null,null,null,null,null,null,null,null,null,null,null,null,null,null,null,null,null,null,null,null,null,null,null,null,null,null,null,null,null,null,null,null,null,null,null,null,null,null,null,null,null,null,null,null,null,null,null,null,null,null,null,null,null,null,null,null,null,null,null,null,null,null,null,null,null,null,null,null,null,null,null,null,null,null,null,null,null,null,null,null,null,null,null,null,null,null,null,null,null,null,null,null,null,null,null,null,null,null,null,null,null,null,null,null,null,245,195,49,45,151,1304,1413,873,1068,1516]
[null,null,null,null,null,null,null,null,null,null,null,null,null,null,null,null,null,null,null,null,null,null,null,null,null,null,null,null,null,null,null,null,null,null,null,null,null,null,null,null,null,null,null,null,null,null,null,null,null,null,null,null,null,null,null,null,null,null,null,null,null,null,null,null,null,null,null,null,null,null,null,null,null,null,null,null,null,null,null,null,null,null,null,null,null,null,null,null,null,null,null,null,null,null,null,null,null,null,null,null,null,null,null,null,null,null,null,null,null,null,null,null,null,null,null,null,null,null,null,null,null,null,null,null,null,null,null,null,null,null,null,null,null,null,null,null,null,null,null,null,null,null,null,null,null,null,null,null,null,null,null,null,null,null,null,null,null,null,null,null,null,null,null,null,null,null,null,null,null,null,null,null,null,null,null,null,636,482,153,138,344,940,917,1013,1007,881]
[null,null,null,null,null,null,null,null,null,null,null,null,null,null,null,null,null,null,null,null,null,null,null,null,null,null,null,null,null,null,null,null,null,null,null,null,null,null,null,null,null,null,null,null,null,null,null,null,null,null,null,null,null,null,null,null,null,null,null,null,null,null,null,null,null,null,null,null,null,null,null,null,null,null,null,null,null,null,null,null,null,null,null,null,null,null,null,null,null,null,null,null,null,null,null,null,null,null,null,null,null,null,null,null,null,null,null,null,null,null,null,null,null,null,null,null,null,null,null,null,null,null,null,null,null,null,null,null,null,null,null,null,null,null,null,null,null,null,null,null,null,null,null,null,null,null,null,null,null,null,null,null,null,null,null,null,null,null,null,null,null,null,null,null,null,null,null,null,null,null,null,null,null,null,null,null,381,316,65,63,254,906,896,954,926,888]
[null,null,null,null,null,null,null,null,null,null,null,null,null,null,null,null,null,null,null,null,null,null,null,null,null,null,null,null,null,null,null,null,null,null,null,null,null,null,null,null,null,null,null,null,null,null,null,null,null,null,null,null,null,null,null,null,null,null,null,null,null,null,null,null,null,null,null,null,null,null,null,null,null,null,null,null,null,null,null,null,null,null,null,null,null,null,null,null,null,null,null,null,null,null,null,null,null,null,null,null,null,null,null,null,null,null,null,null,null,null,null,null,null,null,null,null,null,null,null,null,null,null,null,null,null,null,null,null,null,null,null,null,null,null,null,null,null,null,null,null,null,null,null,null,null,null,null,null,null,null,null,null,null,null,null,null,null,null,null,null,null,null,null,null,null,null,null,null,null,null,null,null,null,null,null,null,816,508,309,84,424,760,717,832,931,674]
[null,null,null,null,null,null,null,null,null,null,null,null,null,null,null,null,null,null,null,null,null,null,null,null,null,null,null,null,null,null,null,null,null,null,null,null,null,null,null,null,null,null,null,null,null,null,null,null,null,null,null,null,null,null,null,null,null,null,null,null,null,null,null,null,null,null,null,null,null,null,null,null,null,null,null,null,null,null,null,null,null,null,null,null,null,null,null,null,null,null,null,null,null,null,null,null,null,null,null,null,null,null,null,null,null,null,null,null,null,null,null,null,null,null,null,null,null,null,null,null,null,null,null,null,null,null,null,null,null,null,null,null,null,null,null,null,null,null,null,null,null,null,null,null,null,null,null,null,null,null,null,null,null,null,null,null,null,null,null,null,null,null,null,null,null,null,null,null,null,null,null,null,null,null,null,null,3197,2688,509,274,2414,1046,1039,1080,1159,1026]

{"sheet":"CntyQryCensus","index":73,"n_rows":308,"n_cols":216,"rows_kept":308,"cut":false,"hidden":true,"merged":[]}
[]
["Census 2000 SF1   -           Query Name:  TownAllQuery3"]
["NAME","COUNTY","LOGRECNO","COUSUB","TRACT","AREALAND","AREAWATR","POP100","HU100","P01TotalPopulation","P03PopOfOneRace","P03PopWhite","P03PopBlack","P03PopAmIndian","P03PopAsian","P03PopHawaiian","P03PopOtherRace","P03Pop2orMoreRaces","P04PopHispanicLatino","P04PopNotHispanicLatino","P12PopMale","P12PopMale<15","P12PopMale15to24","P12PopMale25to34","P12PopMale35to44","P12PopMale45to54","P12PopMale55to64","P12PopMale65to74","P12PopMale75to84","P12PopMale85andOver","P12PopFemale","P12PopFemale<15","P12PopFemale15to24","P12PopFemale25to34","P12PopFemale35t44","P12PopFemale45to54","P12PopFemale55to64","P12PopFemale65to74","P12PopFemale75to84","P12PopFemale85andOver","P15Households2000","P16PopInHH","P17AvgHHSize","P18HHs1Person","P18HHs2orMorePerson","P18HHsFamily","P18HHMarriedCoupleFam","P18HHSingleParentFam","P18HHsNonFamily","P31Families","P32PopInFam","P33AvgFamSize","H01TotHsUnits","H04OccHsUnits","H04OwnerOccHU","H04RenterOccHU","H05VctHsUnits","H05VctHUForRent","H05VctHUForSale","H05VctHUSeasonal","H10PopInOccHU","H11PopInOwnOccHU","H11PopInRntOccHU","H12AvgHHSize2","H12AvgHHSizOwnOcc","H12AvgHHSizRntOcc","H14OwnOccWhtHsHldr","H14OwnOccBlkHsHldr","H14OwnOccAmIHsHldr","H14OwnOccAsnHsHldr","H14OwnOccPIsHsHldr","H14OwnOccORHsHldr","H14OwnOcc2RcHsHldr","H14RntOccWhtHsHldr","H14RntOccBlkHsHldr","H14RntOccAmIHsHldr","H14RntOccAsnHsHldr","H14RntOccPIsHsHldr","H14RntOccORHsHldr","H14RntOcc2RcHsHldr","H16OwnOccHH15to24","H16OwnOccHH25to34","H16OwnOccHH35to44","H16OwnOccHH45to54","H16OwnOccHH55to64","H16OwnOccHH65to74","H16OwnOccHH75to84","H16OwnOccHH85Over","H16RntOccHH15to24","H16RntOccHH25to34","H16RntOccHH35to44","H16RntOccHH45to54","H16RntOccHH55to64","H16RntOccHH65to74","H16RntOccHH75to84","H16RntOccHH85Over","P27TotalPop","P27PopInHseHlds","P27PopInGrpQtrs","P13MedianPopTotal","P13MedianPopMale","P13MedianPopFemale"]
["Albany","003","0002057","00420","","     193586162","        853295","      654","      506",654,650,644,1,2,1,2,0,4,5,649,328,68,37,43,77,43,35,15,6,4,326,82,26,47,73,36,35,20,5,2,262,651,2.48,61,201,183,135,48,18,183,521,2.85,506,262,221,41,244,6,7,201,651,539,112,2.48,2.44,2.73,216,0,1,1,1,0,2,39,1,0,0,0,0,1,3,33,74,40,36,21,9,5,5,14,15,3,2,2,0,0,654,651,3,37.4,37.799999999999997,36.6]
["Bartlett","003","0002117","03700","","     194986736","         18607","     2705","     3589",2705,2695,2655,4,8,11,0,17,10,11,2694,1356,253,123,162,214,240,176,120,62,6,1349,247,112,170,252,228,172,114,41,13,1206,2689,2.23,350,856,745,582,163,111,745,2037,2.73,3589,1206,870,336,2383,37,33,2261,2689,1976,713,2.23,2.27,2.12,858,1,3,3,0,1,4,329,1,1,1,0,0,4,7,75,182,225,181,133,56,11,29,89,91,54,38,16,16,3,2705,2689,16,41.5,42.3,40.700000000000003]
["Brookfield","003","0002325","07940","","      59217407","       1016788","      604","      280",604,601,598,0,2,0,1,0,3,2,602,293,55,27,33,44,56,31,28,17,2,311,53,39,28,48,58,31,33,15,6,236,604,2.56,43,193,180,157,23,13,180,527,2.93,280,236,223,13,44,0,3,34,604,571,33,2.56,2.56,2.54,223,0,0,0,0,0,0,13,0,0,0,0,0,0,1,20,41,64,35,36,21,5,1,3,4,3,1,1,0,0,604,604,0,43,43.3,42.7]
["Chatham","003","0002362","11780","","     146866601","       1322089","      260","      253",260,258,255,0,0,0,0,3,2,0,260,134,30,11,9,27,27,13,13,3,1,126,27,7,23,19,29,10,8,3,0,107,260,2.4300000000000002,29,78,71,61,10,7,71,209,2.94,253,107,92,15,146,0,2,86,260,230,30,2.4300000000000002,2.5,2,89,0,0,0,0,1,2,15,0,0,0,0,0,0,1,8,23,28,12,14,5,1,1,6,4,1,1,2,0,0,260,260,0,40.799999999999997,43.4,37]
["Conway","003","0002429","14660","","     180414957","       5317307","     8604","     5927",8604,8519,8383,21,27,67,0,21,85,36,8568,4169,821,472,544,691,673,418,315,183,52,4435,758,495,553,710,723,417,355,278,146,3714,8444,2.27,1158,2556,2244,1726,518,312,2244,6393,2.85,5927,3714,2447,1267,2213,169,51,1797,8444,5927,2517,2.27,2.42,1.99,2426,1,5,4,0,2,9,1212,4,6,15,0,5,25,35,233,497,595,414,360,247,66,132,332,315,187,102,75,87,37,8604,8444,160,39.9,38.799999999999997,41.1]
["Eaton","003","0002804","23380","","      63176816","       3067657","      375","      239",375,372,370,1,0,1,0,0,3,0,375,184,36,17,8,25,46,30,12,9,1,191,33,17,13,35,54,16,14,7,2,157,373,2.38,37,120,112,96,16,8,112,319,2.85,239,157,123,34,82,7,3,72,373,306,67,2.38,2.4900000000000002,1.97,123,0,0,0,0,0,0,34,0,0,0,0,0,0,0,5,23,44,22,16,10,3,1,10,5,13,5,0,0,0,375,373,2,45.3,46.6,44.6]
["Effingham","003","0002871","23620","","      99832973","       2871343","     1273","      791",1273,1265,1252,5,4,3,0,1,8,5,1268,657,130,84,73,116,100,73,45,32,4,616,129,72,74,109,90,63,42,29,8,490,1193,2.4300000000000002,114,376,336,262,74,40,336,969,2.88,791,490,396,94,301,1,12,260,1193,998,195,2.4300000000000002,2.52,2.0699999999999998,388,1,1,2,0,0,4,91,0,1,1,0,0,1,5,44,95,85,76,49,31,11,17,26,18,14,6,6,6,1,1273,1193,80,38.5,38.799999999999997,38.299999999999997]
["Freedom","003","0002954","27700","","      89731743","       8594638","     1303","     1406",1303,1295,1292,2,0,1,0,0,8,0,1303,635,86,37,62,88,115,94,101,45,7,668,93,43,58,105,108,101,93,59,8,602,1297,2.15,169,433,402,356,46,31,402,1045,2.6,1406,602,536,66,804,4,17,771,1297,1171,126,2.15,2.1800000000000002,1.91,534,0,0,0,0,0,2,66,0,0,0,0,0,0,2,38,90,111,99,113,74,9,1,22,14,12,5,6,4,2,1303,1297,6,48.6,48.9,48.3]
["Hale's Location","003","0003060","32500","","       6291455","             0","       58","       65",58,58,58,0,0,0,0,0,0,0,58,28,0,0,0,3,1,8,15,1,0,30,2,0,1,0,1,16,7,3,0,29,58,2,2,27,27,26,1,0,27,56,2.0699999999999998,65,29,28,1,36,4,2,27,58,54,4,2,1.93,4,28,0,0,0,0,0,0,1,0,0,0,0,0,0,0,0,1,1,8,16,2,0,0,0,1,0,0,0,0,0,58,58,0,64.400000000000006,66.5,63]
["Hart's Location","003","0003078","34500","","      48165241","             0","       37","       50",37,36,36,0,0,0,0,0,1,0,37,18,3,2,2,5,1,0,4,0,1,19,5,1,2,4,1,1,4,1,0,15,37,2.4700000000000002,4,11,10,10,0,1,10,31,3.1,50,15,12,3,35,0,0,35,37,30,7,2.4700000000000002,2.5,2.33,12,0,0,0,0,0,0,3,0,0,0,0,0,0,0,2,3,1,0,5,1,0,0,2,1,0,0,0,0,0,37,37,0,39.299999999999997,40,36.799999999999997]
["Jackson","003","0003119","38260","","     173347171","         17696","      835","      910",835,833,829,0,2,1,1,0,2,1,834,416,63,18,44,74,63,59,65,24,6,419,66,21,48,74,59,64,50,32,5,377,822,2.1800000000000002,102,275,241,218,23,34,241,643,2.67,910,377,297,80,533,3,5,428,822,665,157,2.1800000000000002,2.2400000000000002,1.96,296,0,1,0,0,0,0,78,0,0,0,1,0,1,0,19,60,45,65,70,36,2,3,24,26,17,2,3,2,3,835,822,13,45.6,46.3,45.1]
["Madison","003","0003197","45060","","     100303571","       5746519","     1984","     1589",1984,1966,1940,1,13,4,0,8,18,15,1969,1013,214,120,110,184,174,100,62,39,10,971,182,84,121,202,160,94,64,47,17,777,1984,2.5499999999999998,167,610,560,466,94,50,560,1663,2.97,1589,777,633,144,812,4,11,765,1984,1649,335,2.5499999999999998,2.61,2.33,624,0,1,1,0,4,3,140,0,2,0,0,0,2,4,67,165,164,103,72,45,13,6,41,41,30,6,5,9,6,1984,1984,0,39.6,38.799999999999997,40.299999999999997]
["Moultonborough","003","0003349","49380","","     154973795","      38205710","     4484","     4523",4484,4458,4416,6,10,25,0,1,26,28,4456,2215,368,217,166,307,392,334,262,146,23,2269,372,174,183,344,420,316,268,157,35,1884,4453,2.36,447,1437,1377,1200,177,60,1377,3810,2.77,4523,1884,1636,248,2639,19,40,2519,4453,3851,602,2.36,2.35,2.4300000000000002,1621,2,1,8,0,0,4,244,0,1,1,0,0,2,6,101,259,390,362,300,176,42,10,61,80,49,21,14,12,1,4484,4453,31,46.6,46.3,46.9]
["Ossipee","003","0003633","58740","","     184272307","      11437718","     4211","     2742",4211,4159,4125,6,16,9,0,3,52,14,4197,2104,424,253,198,336,298,257,211,102,25,2107,397,195,195,361,320,229,208,127,75,1672,4064,2.4300000000000002,423,1249,1154,915,239,95,1154,3343,2.9,2742,1672,1323,349,1070,33,32,920,4064,3182,882,2.4300000000000002,2.41,2.5299999999999998,1304,0,2,3,0,1,13,339,0,2,0,0,1,7,21,105,281,283,248,240,116,29,26,75,104,54,29,36,20,5,4211,4064,147,41.5,41,42.2]
["Sandwich","003","0003872","67780","","     234650883","       7446288","     1286","      965",1286,1274,1258,8,4,4,0,0,12,6,1280,601,107,52,26,87,119,73,76,49,12,685,111,55,49,98,130,71,90,60,21,564,1286,2.2799999999999998,151,413,391,337,54,22,391,1063,2.72,965,564,451,113,401,2,18,360,1286,1040,246,2.2799999999999998,2.31,2.1800000000000002,449,0,0,0,0,0,2,109,1,0,0,0,0,3,1,14,66,126,77,93,59,15,6,17,29,21,6,8,16,10,1286,1286,0,47.2,47.6,46.8]
["Tamworth","003","0003992","76100","","     155221633","       2113258","     2510","     1662",2510,2485,2461,4,6,5,0,9,25,16,2494,1278,280,139,131,224,191,132,104,68,9,1232,218,115,136,221,188,141,103,76,34,1074,2504,2.33,308,766,676,544,132,90,676,1932,2.86,1662,1074,791,283,588,11,20,526,2504,1941,563,2.33,2.4500000000000002,1.99,780,0,2,0,0,2,7,272,0,1,1,0,3,6,12,66,193,174,134,101,87,24,29,66,64,42,32,23,20,7,2510,2504,6,40.6,39.6,41.4]
["Tuftonboro","003","0004134","77620","","     106529663","      23164940","     2148","     2019",2148,2123,2112,0,5,5,0,1,25,9,2139,1059,171,78,96,142,180,147,150,75,20,1089,170,88,101,144,193,163,121,92,17,926,2148,2.3199999999999998,212,714,666,582,84,48,666,1788,2.68,2019,926,808,118,1093,3,19,1043,2148,1893,255,2.3199999999999998,2.34,2.16,804,0,2,0,0,0,2,116,0,1,0,0,0,1,3,54,129,182,157,160,97,26,9,29,24,24,15,8,5,4,2148,2148,0,47.7,47.6,47.7]
["Wakefield","003","0004273","78180","","     101842488","      13788934","     4252","     3331",4252,4215,4176,4,19,8,0,8,37,24,4228,2103,473,202,207,371,310,237,198,95,10,2149,438,202,251,378,319,227,197,109,28,1685,4252,2.52,368,1317,1214,1012,202,103,1214,3550,2.92,3331,1685,1404,281,1646,7,20,1588,4252,3542,710,2.52,2.52,2.5299999999999998,1387,1,7,1,0,0,8,274,0,1,1,0,1,4,12,150,324,302,245,231,120,20,21,68,75,41,27,23,22,4,4252,4252,0,40.1,40,40.1]
["Wolfeboro","003","0004531","86420","","     125115350","      26367985","     6083","     3903",6083,6069,6030,10,4,22,0,3,14,37,6046,2864,533,279,220,458,421,340,330,215,68,3219,529,261,280,457,461,349,419,296,167,2574,5978,2.3199999999999998,736,1838,1723,1460,263,115,1723,4875,2.83,3903,2574,1987,587,1329,24,40,1194,5978,4784,1194,2.3199999999999998,2.41,2.0299999999999998,1980,1,0,4,0,0,2,581,2,1,0,0,1,2,4,126,364,386,345,388,287,87,34,121,139,101,52,57,47,36,6083,5978,105,45.3,44.1,46.7]
[]
[]
[]
["Census 2000 DemoProfile Sample Data Tables 2&3   -  DPTab23TownQry"]
[]
["TOWN_NAME","COUSUB","AREANAME","PopInSchool","Preschool","Kindergarten","Elementary","HighSchool","College","Pop25andOver","HighSchoolGrad","SomeCollege","AssocDegree","BachelDegree","GradDegree","HSGradorHigher","CollegeGradorHigher","Pop5to20yrs","Pop5to20wDis","Pop21to64","Pop21to64wDis","Pop65over","Pop65overwDis","Pop5yrsOver","SameHUin95","DiffHUinUSin95","HUinSameCountyin95","HUinSameStatein95","TotalPop","NativePop","NatPopBornUS","NatPopBornInStatRes","NatPopBornDiffState","NatPopBornOutUS","FornBornPop","FornPopEnt90to00","FornPopNatCit","FornPopNotCit","Households","HHIncLessThn10k","HHInc10to15K","HHInc15to25K","HHInc25to35K","HHInc35to50K","HHInc50to75K","HHInc75to100K","HHInc100to150K","HHInc150to200K","HHIncOver200K","MedianHHInc","HHwithPubAssistInc","MeanPubAssist","FamilyHH","FHHIncLessThn10k","FHHInc10to15K","FHHInc15to25K","FHHInc25to35K","FHHInc35to50K","FHHInc50to75K","FHHInc75to100K","FHHInc100to150K","FHHInc150to200K","FHHIncOver200K","MedianFHHInc","PerCapitaInc","PovStatFamilies","PovStatFHHwChilUnd18","PovStatFHHwChilUnd5","PovStFmalHH","DP3088","DP3089","PovStatIndiv","PovStatIndiv18yrOver","PovStatIndiv65yrOver","DP3093","DP3094","DP3095","CNTY_NAME"]
["Albany","00420","Albany town, Carroll County, New Hampshire",132,12,8,59,38,15,409,165,69,20,54,21,329,75,123,16,386,135,46,21,555,336,215,128,87,609,605,605,298,307,0,4,0,4,0,249,24,25,44,23,59,50,10,3,8,3,36635,11,5309,167,13,9,27,21,46,36,5,2,8,0,39250,20690,18,16,12,10,10,8,95,57,2,38,21,34]
["Bartlett","03700","Bartlett town, Carroll County, New Hampshire",625,50,29,311,144,91,2000,515,424,197,419,213,1768,632,546,43,1692,312,371,115,2610,1438,1142,629,513,2736,2667,2652,971,1681,15,69,13,35,34,1229,81,78,190,196,244,259,105,37,25,14,39107,38,1231,771,32,28,107,123,164,190,71,28,19,9,43203,21631,48,41,20,22,22,11,222,143,22,76,56,78]
["Brookfield","07940","Brookfield town, Carroll County, New Hampshire",126,0,0,68,38,20,446,136,103,20,100,52,411,152,123,9,355,51,105,45,583,363,218,62,156,605,587,587,186,401,0,18,0,11,7,239,2,9,24,22,48,84,18,16,4,12,52132,8,4875,189,0,4,15,17,36,73,12,16,4,12,54688,25745,2,0,0,0,0,0,9,7,2,0,0,5]
["Chatham","11780","Chatham town, Carroll County, New Hampshire",71,12,8,34,6,11,174,80,32,7,19,4,142,23,60,1,155,42,24,10,239,184,55,20,35,260,257,254,109,145,3,3,0,3,0,93,6,3,17,17,24,13,6,4,2,1,37188,0,0,75,5,3,9,12,22,11,6,4,2,1,40156,15317,10,8,3,2,2,0,40,23,0,17,12,5]
["Conway",14660,"Conway town, Carroll County, New Hampshire",1846,105,92,916,507,226,6094,2238,1153,587,881,493,5352,1374,1747,159,5062,1437,1230,521,8149,4943,3027,1747,1280,8604,8367,8305,3214,5091,62,237,116,77,160,3736,334,246,708,536,698,671,250,199,65,29,35873,110,3903,2264,116,99,291,357,470,468,202,178,59,24,41818,19673,182,125,58,70,66,36,875,617,169,250,188,327]
["Eaton","23380","Eaton town, Carroll County, New Hampshire",74,5,0,37,16,16,247,63,51,35,61,21,231,82,66,4,211,86,44,20,321,240,72,37,35,333,322,320,119,201,2,11,5,2,9,150,10,9,26,8,28,38,15,16,0,0,46429,2,3400,110,4,2,16,3,24,30,17,14,0,0,53750,21122,4,2,0,0,0,0,24,19,7,5,5,8]
["Effingham","23620","Effingham town, Carroll County, New Hampshire",341,10,11,182,89,49,856,316,167,79,94,52,708,146,324,72,736,149,158,79,1218,785,430,211,219,1273,1255,1252,475,777,3,18,2,14,4,492,48,31,74,83,117,77,31,22,5,4,36000,25,1136,346,19,20,58,52,90,53,28,20,4,2,38000,17089,28,22,13,12,12,10,191,135,10,38,24,108]
["Freedom","27700","Freedom town, Carroll County, New Hampshire",235,16,10,103,48,58,1053,336,213,92,203,126,970,329,182,15,759,158,310,97,1251,840,407,117,290,1303,1271,1268,385,883,3,32,10,28,4,609,50,21,99,98,119,125,40,41,6,10,40187,7,1843,416,17,8,44,54,90,119,36,32,6,10,49167,23036,19,8,4,3,3,2,88,76,25,10,6,43]
["Hale's Location","32500",""]
["Hart's Location","34500","Hart's Location town, Carroll County, New Hampshire",12,2,0,5,3,2,21,5,3,0,8,3,19,11,10,0,21,0,0,0,31,29,2,0,2,33,33,33,15,18,0,0,0,0,0,13,0,0,3,2,3,3,2,0,0,0,41250,0,0,8,0,0,0,0,3,3,2,0,0,0,70833,19610,0,0,0,0,0,0,0,0,0,0,0,0]
["Jackson","38260","Jackson town, Carroll County, New Hampshire",165,17,8,72,23,45,636,85,135,62,235,103,620,338,107,0,474,65,179,51,760,436,317,103,214,805,776,761,206,555,15,29,3,19,10,363,31,15,47,32,59,87,47,30,12,3,49583,2,350,229,12,6,14,18,40,65,34,25,12,3,59327,25718,14,4,2,4,4,2,65,58,26,7,5,33]
["Madison","45060","Madison town, Carroll County, New Hampshire",529,25,18,296,126,64,1412,526,244,149,288,85,1292,373,490,37,1217,287,237,88,1944,1195,749,362,387,2026,1996,1991,741,1250,5,30,2,20,10,780,27,50,110,109,151,218,56,35,12,12,43523,23,2213,561,7,20,53,72,119,194,45,28,11,12,51080,20608,11,9,0,2,2,0,90,61,9,26,26,41]
["Moultonborough","49380","Moultonborough town, Carroll County, New Hampshire",956,41,45,535,241,94,3368,982,803,316,672,344,3117,1016,865,43,2559,279,892,310,4319,2612,1656,495,1161,4484,4326,4294,1554,2740,32,158,28,119,39,1882,84,76,224,301,348,396,210,150,42,51,45050,46,3134,1377,22,39,143,200,252,327,188,116,42,48,51729,25733,44,16,0,0,0,0,180,149,23,31,31,62]
["Ossipee","58740","Ossipee town, Carroll County, New Hampshire",997,51,28,579,259,80,2933,1147,524,258,303,169,2401,472,922,77,2317,490,635,267,4022,2420,1602,745,857,4211,4165,4157,1776,2381,8,46,13,33,13,1672,140,124,284,293,391,261,81,68,6,24,34709,97,2703,1166,62,38,180,236,286,214,81,56,0,13,38790,18092,90,75,19,54,54,13,403,250,42,145,113,138]
["Sandwich","67780","Sandwich town, Carroll County, New Hampshire",277,16,19,132,90,20,967,265,220,46,225,159,915,384,245,8,683,88,303,106,1231,854,373,165,208,1286,1263,1259,561,698,4,23,2,18,5,573,36,28,93,56,89,156,70,24,10,11,47292,10,1470,398,10,10,48,30,67,137,64,20,8,4,55417,23714,14,14,5,9,9,5,78,52,16,22,17,40]
["Tamworth","76100","Tamworth town, Carroll County, New Hampshire",586,48,34,313,142,49,1778,544,285,166,251,146,1392,397,555,60,1461,368,404,177,2420,1484,929,507,422,2555,2516,2485,1138,1347,31,39,9,23,16,1090,106,100,155,180,211,200,71,50,12,5,35200,58,3682,694,34,41,79,111,160,155,56,43,10,5,41121,17961,49,26,16,19,19,9,241,182,41,48,26,119]
["Tuftonboro","77620","Tuftonboro town, Carroll County, New Hampshire",393,7,30,205,104,47,1655,472,373,166,289,196,1496,485,369,16,1205,191,478,135,2052,1285,757,322,435,2148,2096,2073,751,1322,23,52,11,38,14,927,63,36,89,133,200,195,108,55,23,25,45729,34,1623,658,20,18,59,81,136,172,82,52,16,22,51875,25070,29,11,7,5,5,3,137,106,29,29,21,56]
["Wakefield","78180","Wakefield town, Carroll County, New Hampshire",1043,52,71,557,218,145,2916,1072,694,229,363,147,2505,510,951,51,2407,485,633,210,3995,2105,1823,466,1357,4251,4156,4099,1779,2320,57,95,38,59,36,1682,113,119,210,215,339,402,114,104,20,46,42500,41,2912,1198,35,54,127,197,252,299,105,78,13,38,45774,21507,61,41,17,24,24,17,298,204,37,94,76,97]
["Wolfeboro","86420","Wolfeboro town, Carroll County, New Hampshire",1401,83,53,655,411,199,4508,1202,925,425,913,623,4088,1536,1219,119,3097,451,1403,522,5820,2896,2918,1240,1678,6083,5909,5847,2157,3690,62,174,20,135,39,2575,151,170,412,302,415,533,224,203,79,86,44012,72,1254,1734,33,64,188,187,311,406,214,190,64,77,53269,26361,61,53,22,27,27,8,375,250,40,119,94,156]
[]
[]
[]
[]
["Census 2000 DemoProfile Sample Data Table 4   -  DPTab4TownQry"]
[]
["TOWN_NAME","COUSUB","TotHousingUnits","1UnitDet","1UnitAtt","2Units","3to4Units","5to9Units","10to19Units","20orMoreUnits","MobileHomes","BoatRvVan","SingleFamilyUnits","MultiFamUnits","MobileHomeUnits","YearBuilt99to00","YearBuilt95to98","YearBUilt90to94","YearBuilt80to89","YearBuilt70to79","YearBuilt60to69","YearBuilt40to59","YearBuilt39orEarlier","Rooms1","Rooms2","Rooms3","Rooms4","Rooms5","Rooms6","Rooms7","Rooms8","Rooms9orMore","MedianRooms","OccHU1","YrHHMvdIn99to00","YrHHMvdIn95to98","YrHHMvdIn90to94","YrHHMvdIn80to89","YrHHMvdIn70to79","YrHHMvdIn69orBefore","HeatFuelNatGas","HeatFuelBotGas","HeatFuelElectric","HeatFuelOil","HeatFuelCoal","HeatFuelWood","HeatFuelSolar","HeatFuelOther","HeatFuelNone","LackCompPlumb","LackCompKit","NoTelephone","OccHU","OccPerRm1orLess","OccPerRm1to1_5","OccPerRm1_5orMore","SpecOwnOccUnits","Value<50K","Value50to100K","Value100to150K","Value150to200K","Value200to300K","Value300to500K","Value500Kto1mil","Value1MilorMore","MedianValue","WithMortg","MnthOwnCst<300","MnthOwnCst300to500","MnthOwnCst500to700","MnthOwnCst700to1000","MnthOwnCst1000to1500","MnthOwnCst1500to2000","MnthOwnCst2000orMore","MediMnthOwnCst","NotMrtg","NotMrtgMediMnthOwnCst","OwnCst%HHInc<15","OwnCst%HHInc15to20","OwnCst%HHInc20to25","OwnCst%HHInc25to30","OwnCst%HHInc30to35","OwnCst%HHInc35orMor","NotComputed","SpecRntOccUnits","Rnt<200","Rnt200to300","Rnt300to500","Rnt500to750","Rnt750to1000","Rnt1000to1500","Rnt1500orMore","NoRent","MedianRent","Rnt%HHInc<15","Rnt%HHInc15to20","Rnt%HHInc20to25","Rnt%HHInc25to30","Rnt%HHInc30to35","Rnt%HHInc35orMore","Rnt%NotCompute"]
["Albany","00420",491,393,0,14,0,0,0,0,84,0,393,14,84,7,26,35,64,103,64,110,82,16,35,45,125,105,83,46,17,19,4.7,237,40,78,38,51,12,18,0,55,2,160,0,20,0,0,0,0,0,6,237,236,1,0,122,6,68,28,16,2,2,0,0,85700,84,3,13,20,32,10,4,2,746,38,350,29,37,15,12,6,23,0,50,0,3,8,25,10,0,0,4,675,9,5,9,4,2,15,6]
["Bartlett","03700",3613,1792,637,149,291,491,126,65,62,0,1792,1759,62,36,141,250,1408,815,232,278,453,45,175,313,653,923,877,318,165,144,5.2,1220,189,396,208,233,117,77,38,304,84,615,2,177,0,0,0,7,5,21,1220,1201,19,0,676,17,263,217,75,72,25,7,0,113300,428,0,35,71,189,94,23,16,840,248,332,211,135,84,72,44,128,2,327,0,6,93,119,60,19,0,30,605,72,54,38,24,8,95,36]
["Brookfield","07940",281,275,4,0,0,0,0,0,0,2,275,4,2,12,6,20,37,41,25,25,115,2,2,4,18,35,53,73,41,53,6.9,237,43,53,36,60,17,28,0,24,0,203,0,8,0,2,0,2,2,2,237,237,0,0,151,4,41,71,25,10,0,0,0,120600,97,0,5,10,35,35,12,0,985,54,346,60,30,18,15,14,14,0,9,0,0,0,5,4,0,0,0,545,0,5,0,2,0,2,0]
["Chatham","11780",249,214,2,0,0,4,0,0,25,4,214,6,29,6,11,12,47,57,7,27,82,12,18,34,40,60,33,17,25,10,4.8,105,10,22,21,24,13,15,2,11,0,57,0,35,0,0,0,6,2,2,105,95,7,3,35,2,12,12,4,4,1,0,0,110900,25,2,5,15,0,0,2,1,569,10,325,19,2,4,0,4,6,0,13,2,0,0,11,0,0,0,0,592,5,0,0,5,0,3,0]
["Conway","14660",5931,3231,404,282,417,542,167,250,633,5,3231,2062,638,83,264,488,1883,1120,457,531,1105,26,167,554,1269,1325,1197,583,414,396,5.2,3716,722,1094,601,648,379,272,126,756,434,2098,13,267,0,6,16,13,29,27,3716,3655,61,0,1699,50,739,567,177,137,6,16,7,104400,1166,0,66,235,474,314,58,19,880,533,386,530,408,254,140,108,247,12,1258,98,83,358,428,171,59,18,43,525,285,156,167,143,154,310,43]
["Eaton","23380",213,194,4,4,11,0,0,0,0,0,194,19,0,8,9,16,50,15,17,16,82,2,0,6,21,38,56,29,10,51,6.2,144,18,24,39,36,16,11,0,25,3,86,0,30,0,0,0,0,0,3,144,144,0,0,58,3,20,22,9,2,2,0,0,107900,19,0,2,0,5,10,2,0,1156,39,388,29,10,7,0,6,4,2,22,0,0,2,11,5,0,0,4,636,5,2,0,4,0,7,4]
["Effingham","23620",791,614,4,9,12,2,20,0,130,0,614,47,130,17,44,95,217,90,67,84,177,10,14,101,159,191,130,99,53,34,5.0999999999999996,490,57,120,95,115,61,42,4,52,7,355,0,72,0,0,0,15,3,18,490,488,2,0,235,17,124,71,15,5,3,0,0,93800,156,0,11,19,88,28,10,0,859,79,342,67,35,32,33,28,36,4,86,2,0,21,43,6,2,0,12,544,12,11,14,12,4,21,12]
["Freedom","27700",1406,1204,85,10,4,4,0,0,97,2,1204,103,99,15,81,97,472,187,192,148,214,9,7,84,324,322,232,158,148,122,5.4,602,80,139,90,165,74,54,2,76,32,433,0,59,0,0,0,15,2,2,602,602,0,0,361,9,70,133,77,50,18,4,0,134300,176,0,14,18,65,63,14,2,936,185,346,132,56,48,35,29,57,4,66,0,2,13,28,4,0,0,19,563,5,14,4,4,5,15,19]
["Hale's Location","32500"]
["Hart's Location","34500",54,54,0,0,0,0,0,0,0,0,54,0,0,0,2,0,10,29,2,11,0,4,9,15,15,0,4,4,3,0,3.4,12,0,2,5,5,0,0,0,5,0,0,0,7,0,0,0,0,3,0,12,12,0,0,7,0,0,2,2,3,0,0,0,168800,2,0,0,0,2,0,0,0,950,5,308,7,0,0,0,0,0,0,3,0,0,0,0,0,0,0,3,0,0,0,0,0,0,0,3]
["Jackson","38260",886,706,66,16,77,16,0,2,3,0,706,177,3,5,58,58,160,158,134,107,206,8,29,86,112,134,189,118,105,105,5.9,364,43,118,64,67,33,39,3,79,24,208,0,47,0,3,0,0,0,0,364,364,0,0,211,0,31,47,29,56,35,13,0,195800,81,0,5,8,22,24,12,10,1098,130,406,103,22,10,14,13,47,2,76,0,0,29,25,4,10,0,8,536,20,8,11,4,5,20,8]
["Madison","45060",1615,1441,34,33,4,0,2,20,78,3,1441,93,81,51,133,89,469,316,204,133,220,9,32,80,214,418,368,230,139,125,5.6,790,113,230,87,194,116,50,2,135,28,526,3,96,0,0,0,4,0,4,790,777,13,0,474,13,182,200,38,30,5,6,0,108000,310,0,25,59,125,80,14,7,866,164,340,175,88,67,51,25,68,0,136,2,2,18,73,23,2,0,16,588,22,29,23,13,3,30,16]
["Moultonborough","49380",4523,4137,133,33,24,35,15,0,137,9,4137,240,146,113,444,494,1001,909,605,460,497,23,80,260,625,1101,995,639,419,381,5.7,1884,244,448,348,469,275,100,2,418,84,1214,0,157,4,0,5,19,10,7,1884,1877,7,0,1348,12,282,345,167,220,175,110,37,158000,826,0,23,115,256,241,109,82,1034,522,436,445,197,136,105,74,367,24,231,0,10,32,83,39,5,0,62,630,42,49,24,12,15,27,62]
["Ossipee","58740",2742,2031,70,52,39,20,11,13,506,0,2031,205,506,53,147,226,727,471,243,333,542,24,136,270,463,701,593,251,239,65,5.2,1672,289,486,227,381,166,123,7,365,65,1065,0,165,0,0,5,14,6,42,1672,1627,29,16,852,99,374,208,50,58,49,14,0,95700,513,0,24,112,160,114,75,28,887,339,322,239,123,115,116,81,172,6,329,7,19,142,81,50,8,0,22,484,63,57,44,23,27,93,22]
["Sandwich","67780",965,886,33,8,0,8,0,0,28,2,886,49,30,15,46,84,138,116,70,88,408,24,43,80,123,161,167,158,98,111,5.8,564,55,156,65,149,82,57,0,69,22,341,5,125,2,0,0,21,15,6,564,557,3,4,229,14,43,71,65,27,5,4,0,140900,109,0,8,18,22,43,16,2,1058,120,363,99,40,31,14,10,35,0,72,7,14,5,17,15,0,0,14,575,16,10,5,6,5,16,14]
["Tamworth","76100",1677,1331,44,28,42,19,17,0,184,12,1331,150,196,39,95,100,380,288,157,109,509,25,73,177,290,325,322,215,120,130,5.3,1099,183,264,186,255,108,103,2,181,57,678,2,179,0,0,0,9,8,13,1099,1081,13,5,532,30,247,167,48,33,4,0,3,98200,328,2,25,58,151,74,14,4,882,204,324,162,90,84,63,44,87,2,249,35,6,59,91,32,3,0,23,526,41,42,28,37,18,60,23]
["Tuftonboro","77620",2019,1732,43,19,47,22,2,0,152,2,1732,133,154,49,107,114,358,322,217,372,480,13,36,151,381,425,350,269,163,231,5.5,926,101,242,161,212,132,78,9,106,26,723,0,60,0,0,2,2,0,4,926,915,8,3,592,12,111,149,133,94,59,24,10,158000,332,0,12,43,110,87,34,46,1006,260,390,222,101,83,51,43,81,11,105,4,0,13,43,16,4,0,25,617,19,18,13,11,2,17,25]
["Wakefield","78180",3330,2918,39,58,86,4,0,27,185,13,2918,214,198,64,157,271,776,609,390,446,617,15,71,221,568,958,621,433,224,219,5.3,1684,236,580,250,407,125,86,0,362,110,1059,0,148,0,5,0,0,0,5,1684,1659,16,9,1083,17,471,320,124,130,17,4,0,106600,689,7,26,100,277,216,38,25,905,394,366,375,196,149,78,74,207,4,283,14,20,61,98,37,13,0,40,568,21,71,31,23,20,77,40]
["Wolfeboro","86420",3903,3092,157,151,217,76,0,87,107,16,3092,688,123,156,295,279,811,485,414,517,946,8,121,299,500,679,968,484,308,536,5.9,2574,395,941,326,472,267,173,0,247,316,1884,0,109,0,18,0,33,37,10,2574,2559,15,0,1552,0,351,427,284,305,97,75,13,149800,913,0,29,72,276,314,131,91,1098,639,441,517,182,253,167,119,299,15,579,61,18,136,192,99,26,9,38,606,67,90,116,52,34,164,56]
[]
[]
[]
[]
[]
[]
["Census 2000 SummaryFile3 Sample Data  -  SF3TownQry1SocialChar"]
[]
["TOWN_NAME","LOGRECNO","COUSUB","P01TotalPopulation","P02SampleCountOfPop","P03Pop100pctCount","P05UrbanPopulation","P05RuralPopulation","P06WhiteAlone","P06BlackOrAfAm","P06AmIndAlone","P06AsianAlone","P06HawaiianOrPI","P06OtherRace","P06TwoPlusRaces","P07NotHispanicOrLatino","P07HispanicOrLatino","P08MalePop","P08FemalePop","P09PopInHouseholds","P09PopInFamHH","P09PopInNonFamHH","P09PopInGroupQtr","P13TotalHH","P13FamilyHH","P13FamHHolder15to24yrs","P13FamHHolder25to34yrs","P13FamHHolder35to44yrs","P13FamHHolder45to54yrs","P13FamHHolder55to64yrs","P13FamHHolder65to74yrs","P13FamHHolder75to84yrs","P13FamHHolder85yrsOver","P13NonFamilyHH","P13NonFamHHolder15to24yrs","P13NonFamHHolder25to34yrs","P13NonFamHHolder35to44yrs","P13NonFamHHolder45to54yrs","P13NonFamHHolder55to64yrs","P13NonFamHHolder65to74yrs","P13NonFamHHolder75to84yrs","P13NonFamHHolder85yrsOver","P18Pop15yrsOver","P18MaritalStatNeverMarried","P18MaritalStatNowMarried","P18MaritalStatSeparated","P18MaritalStatWidowed","P18MaritalStatWidowFemale","P18MaritalStatDivorced","P18MaritalStatDivorcedFemale","P21NativeBornPop","P21NatPopBornInState","P21NatPopBornOtherState","P021005","P021006","P021007","P021008","P21NatPopBornOutUS","P21ForeignBornPop","P021014","P021015","P24Pop5YrsPlus","P24ResSameHouseIn95","P24ResDiffHouseIn95","P24ResDiffHouseInUSIn95","P24ResDiffHouseSameCountyIn95","P24ResDiffHouseDiffCountyIn95","P24ResDiffHouseDiffCntySamStIn95","P24ResDiffHouseDiffCntyDifStIn95","P24ResDiffHouseDiffCntyNEStIn95","P24ResDiffHouseDiffCntyMWStIn95","P24ResDiffHouseDiffCntySoStIn95","P24ResDiffHouseDiffCntyWstStIn95","P24ResDiffInPR","P24ResDiffElsewhereIn95","P26Workers16yrsOver","P26WorkedInState","P26WorkedInCnty","P26WorkedOutsideCnty","P26WorkedOutsideState","P30Workers16Over","P30TranspToWrkCar","P30TranspToWrkPublic","P30TranspToWrkOther","P30WrkdAtHome","P31WrkrsNotWrkAtHom","P31TravTim<5min","P31TravTim5to9Min","P31TravTim10to14Min","P31TravTim15to19Min","P31TravTim20to24Min","P31TravTim25to29Min","P31TravTim30to34Min","P31TravTim35to39Min","P31TravTim40to44Min","P31TravTim45to59Min","P31TravTim60to89Min","P31TravTim90MinMore","P31WorkAtHome","P36SchEnrlPop3yrOver","P36NurserSchEnrl","P36KinderSchEnrl","P36ElemSchEnrl","P36HighSchEnrl","P36CollGradSchEnrl","P37Pop25yrsOver","P37EduAtain<9grd","P37EduAtainHSnoDip","P37EduAtainHSgrad","P37EduAtainCollNoDeg","P37EduAtainAssocDeg","P37EduAtainBachDeg","P37EduAtainGradProfDeg","P42NIPop5to15","P42NIPop5to15wDisabl","P42NIPop16to20","P42NIPop16to20wDisab","P42NIPop16to20wDisEmp","P42NIPop16to21NoDis","P42NIPop16to21NoDisEmpl","P42NIPop21to64","P42NIPop21to64wDis","P42NIPop21to64wDisEmp","P42NIPop21to64NoDis","P42NIPop21to64NoDisEmp","P42NIPop65to74","P42NIPop65to74wDis","P42NIPop75Over","P42NIPop75OverwDis","P43Pop16YrsOver","P43Pop16OvrInLaborForce","P43Pop16OvrCivlLabFrc","P43Pop16OvrCivlLbrFrcEmp","P48Families","P48MarriedFam","P48MarrFamNoWorkers","P48MarrFam1Worker","P48MarrFam2Worker","P48MarrFamHusbWifeWorked","P48MarrFamOther","P48MarrFam3PlusWorker","P48MarrFam3WorkHsbWif","P48MarrFam3PlsWrkOther","P48OtherFam","P48MaleHHNoWif","P48MaleHHNoWifNoWorker","P48MaleHHNoWif1Worker","P48MaleHHNoWif2Worker","P48MaleHHNoWif3PlusWorker","P48FemaleHHNoHsb","P48FemaleHHNoHsbNoWorker","P48FemaleHHNoHsb1Worker","P48FemaleHHNoHsb2Worker","P48FemaleHHNoHsb3Worker","P49EmpCivPop16YrOver","P49IndustAgricult","P49IndustConst","P49IndustMnftg","P49IndustWhlslTrd","P49IndustRtlTrd","P49IndustTrspWrhsUtlt","P49IndustInfrm","P49IndustFinInsRE","P49IndustPrfsScntfMngmt","P49IndustEduHlthSocSrv","P49IndustArtsEntRec","P49IndustOthrSrvc","P49IndustPubAdm","P50OccupMngmtProfs","P50OccupService","P50OccupSalesOff","P50OccupFarmFishForest","P50OccupConstExtrctMaint","P50OccupPrdctTrnspMatMv"]
["Albany","0000308","00420",609,268,654,0,609,607,0,2,0,0,0,0,602,7,307,302,600,499,101,9,249,167,4,47,55,23,25,8,5,0,82,3,16,12,18,11,13,5,4,473,102,266,6,34,22,65,24,605,298,307,272,11,11,13,0,4,4,0,555,336,219,215,128,87,13,74,60,0,14,0,0,4,298,275,267,8,23,298,267,0,0,21,277,18,26,86,61,16,5,27,2,3,21,5,7,21,587,12,8,59,38,15,409,18,62,165,69,20,54,21,86,3,37,13,12,24,9,386,135,95,251,188,32,12,14,9,469,325,325,309,167,128,11,29,72,68,4,16,16,0,39,17,2,9,6,0,22,9,13,0,0,309,2,64,30,3,42,12,5,4,26,47,40,23,11,82,49,67,2,61,48]
["Bartlett","0000313","03700",2736,1149,2705,0,2736,2713,0,0,8,0,0,15,2727,9,1384,1352,2720,2131,589,16,1229,771,6,109,195,187,147,89,38,0,458,28,60,92,85,87,67,29,10,2233,506,1226,38,113,73,350,185,2667,971,1681,1436,112,98,35,15,69,35,34,2610,1438,1172,1142,629,513,108,405,296,24,60,25,0,30,1423,1371,1275,96,52,1423,1254,4,25,58,1365,182,249,336,201,148,46,81,9,10,42,24,37,58,2677,50,29,311,144,91,2000,33,199,515,424,197,419,213,419,26,127,17,17,110,65,1692,312,213,1380,1142,262,50,109,65,2191,1551,1550,1503,771,604,95,96,362,349,13,51,51,0,167,57,2,37,14,4,110,14,63,28,5,1503,13,136,56,27,230,49,25,80,112,238,480,35,22,454,341,431,7,159,111]
["Brookfield","0000320","07940",605,272,604,0,605,601,0,0,2,0,0,2,605,0,269,336,605,543,62,0,239,189,3,20,34,57,32,28,9,6,50,0,0,4,20,9,5,8,4,511,78,358,4,22,20,49,32,587,186,401,299,43,32,27,0,18,11,7,583,363,220,218,62,156,40,116,76,0,15,25,0,2,293,249,159,90,44,293,255,4,4,30,263,6,4,28,26,39,12,49,2,22,16,18,41,30,593,0,0,68,38,20,446,12,23,136,103,20,100,52,82,0,41,9,1,32,17,355,51,35,304,235,68,30,37,15,501,315,315,310,189,169,24,47,71,69,2,27,27,0,20,6,0,2,2,2,14,0,7,4,3,310,4,20,29,10,58,10,7,23,19,54,37,25,14,107,33,104,2,35,29]
["Chatham","0000325","11780",260,150,260,0,260,250,0,0,2,0,8,0,260,0,143,117,260,239,21,0,93,75,0,13,25,15,12,8,1,1,18,1,2,3,4,1,6,1,0,193,40,133,2,7,5,11,4,257,109,145,126,9,8,2,3,3,3,0,239,184,55,55,20,35,11,24,22,0,0,2,0,0,117,97,93,4,20,117,100,0,4,10,107,6,7,4,5,22,12,28,6,8,1,3,5,10,251,12,8,34,6,11,174,10,22,80,32,7,19,4,47,1,13,0,0,13,7,155,42,21,113,80,17,7,7,3,192,124,124,117,75,65,8,19,28,24,4,10,10,0,10,7,0,3,3,1,3,0,3,0,0,117,9,11,20,6,25,4,1,2,7,18,11,0,3,29,19,32,3,12,22]
["Conway","0000330","14660",8604,1422,8604,0,8604,8330,2,44,36,0,14,178,8558,46,4149,4455,8444,6637,1807,160,3736,2264,73,308,551,550,355,273,137,17,1472,104,196,254,282,196,161,207,72,7038,1743,3628,106,510,421,1051,598,8367,3214,5091,4288,254,402,147,62,237,77,160,8149,4943,3206,3027,1747,1280,235,1045,737,0,219,89,0,179,4593,4371,4215,156,222,4593,4146,17,35,185,4408,371,951,1142,886,385,81,211,27,51,71,100,132,185,8305,105,92,916,507,226,6094,179,563,2238,1153,587,881,493,1207,79,540,80,50,460,237,5062,1437,1138,3625,3036,655,190,575,331,6942,4855,4855,4665,2264,1720,230,317,939,913,26,234,222,12,544,151,16,89,36,10,393,56,192,115,30,4665,55,472,267,120,988,151,54,233,203,764,1007,214,137,1275,956,1449,26,539,420]
["Eaton","0000363","23380",333,138,375,0,333,330,0,0,0,0,3,0,330,3,181,152,331,286,45,2,150,110,2,9,28,32,25,6,8,0,40,0,3,7,14,2,8,4,2,277,41,202,7,8,4,19,7,322,119,201,176,12,11,2,2,11,2,9,321,240,81,72,37,35,8,27,15,3,9,0,0,9,171,153,147,6,18,171,149,0,3,10,161,13,8,10,29,38,2,18,13,6,4,4,16,10,321,5,0,37,16,16,247,8,8,63,51,35,61,21,48,0,18,4,0,14,10,211,86,78,125,87,22,5,22,15,273,182,182,180,110,103,18,15,57,57,0,13,13,0,7,5,0,2,3,0,2,0,0,0,2,180,3,24,9,13,32,4,8,5,8,35,26,7,6,50,21,57,3,30,19]
["Effingham","0000368","23620",1273,569,1273,0,1273,1252,3,5,0,0,0,13,1273,0,651,622,1193,1004,189,80,492,346,17,55,73,82,55,34,28,2,146,6,18,38,16,29,20,7,12,1017,246,568,14,74,54,115,52,1255,475,777,666,55,44,12,3,18,14,4,1218,785,433,430,211,219,67,152,127,0,14,11,0,3,616,567,516,51,49,616,553,0,10,43,573,25,50,67,67,79,59,66,21,25,41,27,46,43,1234,10,11,182,89,49,856,59,89,316,167,79,94,52,216,29,108,43,14,65,30,736,149,65,587,490,86,34,72,45,1002,704,704,636,346,262,34,54,140,130,10,34,34,0,84,27,4,16,4,3,57,7,41,5,4,636,17,63,67,12,108,18,11,19,46,151,65,36,23,175,125,125,14,101,96]
["Freedom","0000373","27700",1303,592,1303,0,1303,1294,0,1,4,0,0,4,1298,5,630,673,1297,1073,224,6,609,416,1,46,77,90,72,86,40,4,193,0,16,23,31,43,34,44,2,1126,173,746,3,88,70,116,64,1271,385,883,789,40,43,11,3,32,28,4,1251,840,411,407,117,290,77,213,172,22,4,15,0,4,611,536,480,56,75,611,550,5,11,34,577,12,53,64,75,63,48,99,28,13,39,35,48,34,1273,16,10,103,48,58,1053,33,50,336,213,92,203,126,136,8,46,7,2,39,22,759,158,104,601,453,193,36,117,61,1115,643,643,619,416,369,89,82,142,137,5,56,56,0,47,14,0,7,7,0,33,0,18,13,2,619,16,74,60,12,79,16,22,30,46,132,77,22,33,251,60,124,2,101,81]
["Hale's Location","0000378","32500",61,26,58,0,61,61,0,0,0,0,0,0,61,0,32,29,61,56,5,0,33,28,0,0,0,2,7,17,2,0,5,0,0,3,0,0,0,2,0,61,3,54,0,4,4,0,0,56,3,53,46,5,0,2,0,5,5,0,61,21,40,40,5,35,0,35,30,0,5,0,0,0,21,21,15,6,0,21,18,0,3,0,21,5,3,0,4,3,0,0,0,0,0,0,6,0,61,0,0,0,0,0,61,3,2,17,19,9,2,9,0,0,0,0,0,0,0,32,3,3,29,10,22,0,7,2,61,21,21,21,28,26,9,10,7,7,0,0,0,0,2,0,0,0,0,0,2,0,2,0,0,21,0,6,2,0,0,0,0,2,3,5,3,0,0,8,8,2,0,3,0]
["Hart's Location","0000383","34500",33,13,37,0,33,33,0,0,0,0,0,0,33,0,18,15,33,28,5,0,13,8,0,0,2,3,3,0,0,0,5,0,2,0,3,0,0,0,0,23,5,16,0,0,0,2,0,33,15,18,11,2,0,5,0,0,0,0,31,29,2,2,0,2,0,2,2,0,0,0,0,0,18,18,16,2,0,18,12,0,0,3,15,3,0,6,4,0,0,2,0,0,0,0,0,3,33,2,0,5,3,2,21,0,2,5,3,0,8,3,8,0,2,0,0,2,0,21,0,0,21,18,0,0,0,0,23,21,21,18,8,8,0,0,5,5,0,3,3,0,0,0,0,0,0,0,0,0,0,0,0,18,0,0,0,0,0,0,0,2,0,5,11,0,0,16,2,0,0,0,0]
["Jackson","0000388","38260",805,346,835,0,805,787,2,0,3,0,0,13,803,2,385,420,793,622,171,12,363,229,0,16,53,34,44,53,29,0,134,5,27,26,17,20,15,18,6,678,143,430,14,30,26,61,29,776,206,555,427,36,67,25,15,29,19,10,760,436,324,317,103,214,19,195,147,9,26,13,0,7,391,367,333,34,24,391,338,0,7,18,373,51,95,45,81,46,8,19,0,5,12,4,7,18,780,17,8,72,23,45,636,2,14,85,135,62,235,103,96,0,11,0,0,11,8,474,65,54,409,312,104,15,75,36,664,428,428,420,229,206,39,81,77,77,0,9,9,0,23,2,0,0,2,0,21,0,12,7,2,420,6,34,11,2,49,5,5,27,28,88,118,30,17,188,88,92,0,35,17]
["Madison","0000393","45060",2026,850,1984,0,2026,1977,3,16,5,0,5,20,2020,6,1032,994,2026,1736,290,0,780,561,7,73,167,136,85,53,32,8,219,9,31,33,68,31,21,17,9,1616,365,996,20,90,67,145,87,1996,741,1250,1089,61,74,26,5,30,20,10,1944,1195,749,749,362,387,63,324,263,2,44,15,0,0,1127,1060,1002,58,67,1127,1032,0,11,54,1073,63,81,129,225,191,75,157,15,16,42,41,38,54,1987,25,18,296,126,64,1412,29,91,526,244,149,288,85,365,22,125,15,15,110,70,1217,287,238,930,793,135,37,102,51,1579,1172,1172,1144,561,481,58,66,283,268,15,74,73,1,80,28,0,14,14,0,52,8,31,10,3,1144,24,143,88,28,212,27,30,37,76,230,167,46,36,329,211,311,19,161,113]
["Moultonborough","0000399","49380",4484,1037,4484,0,4484,4432,14,0,25,0,0,13,4461,23,2219,2265,4453,3882,571,31,1882,1377,8,137,245,324,309,244,105,5,505,13,43,94,91,81,69,100,14,3744,605,2524,44,199,147,372,193,4326,1554,2740,2268,174,205,93,32,158,119,39,4319,2612,1707,1656,495,1161,630,531,322,50,127,32,0,51,2060,1918,947,971,142,2060,1850,9,31,133,1927,87,191,238,293,232,132,228,67,57,129,139,134,133,4411,41,45,535,241,94,3368,69,182,982,803,316,672,344,633,24,232,19,0,213,126,2559,279,127,2280,1761,532,137,360,173,3686,2194,2191,2138,1377,1210,240,270,594,553,41,106,106,0,167,61,4,31,21,5,106,0,63,32,11,2138,24,255,225,61,269,68,30,238,171,366,250,104,77,659,334,664,19,306,156]
["Ossipee","0000407","58740",4211,710,4211,0,4211,4170,0,6,11,0,0,24,4211,0,2087,2124,4063,3458,605,148,1672,1166,41,137,276,228,214,212,58,0,506,5,59,88,113,59,86,90,6,3397,716,1935,56,298,229,392,172,4165,1776,2381,2101,104,128,48,8,46,33,13,4022,2420,1602,1602,745,857,271,586,509,15,51,11,0,0,1772,1636,1448,188,136,1772,1619,5,9,92,1680,102,245,255,312,141,87,191,26,34,110,113,64,92,4108,51,28,579,259,80,2933,90,442,1147,524,258,303,169,711,45,211,32,21,179,96,2317,490,222,1827,1393,412,129,223,138,3311,1956,1956,1834,1166,912,123,287,416,378,38,86,80,6,254,85,5,67,13,0,169,45,61,55,8,1834,20,228,146,47,340,67,43,77,105,377,190,105,89,451,338,523,4,305,213]
["Sandwich","0000414","67780",1286,616,1286,0,1286,1264,2,11,0,1,0,8,1282,4,607,679,1286,1083,203,0,573,398,3,24,84,95,71,63,45,13,175,6,5,14,53,25,34,22,16,1065,169,681,6,81,73,128,68,1263,561,698,529,73,59,37,4,23,18,5,1231,854,377,373,165,208,75,133,57,16,40,20,0,4,569,552,412,140,17,569,454,0,10,66,503,56,50,83,56,55,30,49,9,34,50,7,24,66,1253,16,19,132,90,20,967,18,34,265,220,46,225,159,184,8,61,0,0,61,11,683,88,50,595,495,164,31,139,75,1047,611,611,602,398,345,83,68,164,156,8,30,28,2,53,12,2,6,4,0,41,2,31,8,0,602,25,117,35,13,43,30,12,42,48,117,62,33,25,204,97,129,5,107,60]
["Tamworth","0000419","76100",2555,1161,2510,0,2555,2500,0,15,2,0,9,29,2544,11,1325,1230,2555,2052,503,0,1090,694,21,78,187,156,114,79,55,4,396,20,39,92,58,58,54,50,25,2044,475,1143,26,146,119,254,126,2516,1138,1347,1129,89,92,37,31,39,23,16,2420,1484,936,929,507,422,143,279,231,4,36,8,0,7,1205,1168,1032,136,37,1205,1085,0,0,78,1127,88,138,99,143,167,91,175,37,25,62,64,38,78,2477,48,34,313,142,49,1778,93,293,544,285,166,251,146,408,28,147,32,16,115,52,1461,368,229,1093,875,215,68,189,109,2012,1316,1316,1243,694,568,80,136,296,283,13,56,56,0,126,49,10,20,15,4,77,7,36,26,8,1243,41,151,118,32,203,65,20,61,94,209,164,41,44,313,239,329,25,168,169]
["Tuftonboro","0000425","77620",2148,998,2148,0,2148,2097,0,14,11,0,2,24,2135,13,1051,1097,2148,1823,325,0,927,658,3,53,122,157,135,113,63,12,269,3,29,27,60,38,53,37,22,1807,301,1216,11,111,80,168,94,2096,751,1322,1135,60,63,64,23,52,38,14,2052,1285,767,757,322,435,138,297,198,12,62,25,0,10,988,921,758,163,67,988,859,5,9,92,896,40,47,124,236,143,30,66,17,14,43,77,59,92,2075,7,30,205,104,47,1655,64,95,472,373,166,289,196,278,12,91,4,1,87,46,1205,191,108,1014,794,268,41,210,94,1774,1053,1053,1035,658,580,121,133,277,269,8,49,49,0,78,33,4,19,10,0,45,5,20,15,5,1035,27,122,66,41,173,24,38,71,119,200,73,39,42,301,185,299,24,143,83]
["Wakefield","0000432","78180",4251,1016,4252,0,4251,4147,0,35,28,0,14,27,4225,26,2129,2122,4251,3627,624,0,1682,1198,20,189,351,248,179,128,68,15,484,7,38,39,98,84,130,73,15,3323,575,2069,50,244,177,385,200,4156,1779,2320,1834,185,198,103,57,95,59,36,3995,2105,1890,1823,466,1357,729,628,471,50,51,56,0,67,1990,1771,811,960,219,1990,1837,8,14,90,1900,51,150,127,101,172,159,310,92,117,248,202,171,90,4140,52,71,557,218,145,2916,79,332,1072,694,229,363,147,762,45,189,6,4,183,78,2407,485,289,1922,1516,389,108,244,102,3233,2137,2133,2041,1198,987,166,215,504,500,4,102,90,12,211,69,3,43,19,4,142,28,80,34,0,2041,39,143,384,96,324,79,47,133,174,325,94,114,89,579,318,513,22,251,358]
["Wolfeboro","0000440","86420",6083,780,6083,0,6083,6066,8,0,0,0,0,9,6026,57,2840,3243,5977,5027,950,106,2575,1734,6,187,394,355,305,261,204,22,841,16,70,106,137,76,188,126,122,5023,832,3196,40,462,408,493,241,5909,2157,3690,3012,172,324,182,62,174,135,39,5820,2896,2924,2918,1240,1678,755,923,692,20,181,30,0,6,2522,2348,1890,458,174,2522,2220,6,26,168,2354,181,508,448,238,183,58,114,0,79,205,169,171,168,5938,83,53,655,411,199,4508,123,297,1202,925,425,913,623,886,61,333,58,42,275,83,3097,451,302,2646,1999,718,154,685,368,4934,2662,2662,2583,1734,1493,319,291,717,624,93,166,166,0,241,64,16,37,11,0,177,7,81,80,9,2583,26,298,210,132,254,104,8,136,244,699,270,104,98,950,423,593,8,347,262]
[]
[]
[]
[]
["Census 2000 SummaryFile3 Sample Data  -  SF3TownQry2aIncomeChar"]
[]
["TOWN_NAME","LOGRECNO","COUSUB","TotalPop","P52Households1","P52HHInc<10K","P52HHInc10to15K","P52HHInc15to20K","P52HHInc20to25K","P52HHInc25to30K","P52HHInc30to35K","P52HHInc35to40K","P52HHInc40to45K","P52HHInc45to50K","P52HHInc50to60K","P52HHInc60to75K","P52HHInc75to100K","P52HHInc100to125K","P52HHInc125to150K","P52HHInc150to200K","P52HHInc>200K","P53MedianHHInc","P54AggregHHInc","P55Households2","P55HHUnder25yrs","P55HH<25HHInc<10K","P55HH<25HHInc10to15K","P55HH<25HHInc15to20K","P55HH<25HHInc20to25K","P55HH<25HHInc25to30K","P55HH<25HHInc30to35K","P55HH<25HHInc35to40K","P55HH<25HHInc40to45K","P55HH<25HHInc45to50K","P55HH<25HHInc50to60K","P55HH<25HHInc60to75K","P55HH<25HHInc75to100K","P55HH<25HHInc100to125K","P55HH<25HHInc125to150K","P55HH<25HHInc150to200K","P55HH<25HHInc>200K","P55HH25to34yrs","P55HH25to34HHInc<10K","P55HH25to34HHInc10to15K","P55HH25to34HHInc15to20K","P55HH25to34HHInc20to25K","P55HH25to34HHInc25to30K","P55HH25to34HHInc30to35K","P55HH25to34HHInc35to40K","P55HH25to34HHInc40to45K","P55HH25to34HHInc45to50K","P55HH25to34HHInc50to60K","P55HH25to34HHInc60to75K","P55HH25to34HHInc75to100K","P55HH25to34HHInc100to125K","P55HH25to34HHInc125to150K","P55HH25to34HHInc150to200K","P55HH25to34HHInc>200K","P55HH35to44yrs","P55HH35to44HHInc<10K","P55HH35to44HHInc10to15K","P55HH35to44HHInc15to20K","P55HH35to44HHInc20to25K","P55HH35to44HHInc25to30K","P55HH35to44HHInc30to35K","P55HH35to44HHInc35to40K","P55HH35to44HHInc40to45K","P55HH35to44HHInc45to50K","P55HH35to44HHInc50to60K","P55HH35to44HHInc60to75K","P55HH35to44HHInc75to100K","P55HH35to44HHInc100to125K","P55HH35to44HHInc125to150K","P55HH35to44HHInc150to200K","P55HH35to44HHInc>200K","P55HH45to54yrs","P55HH45to55HHInc<10K","P55HH45to55HHInc10to15K","P55HH45to55HHInc15to20K","P55HH45to55HHInc20to25K","P55HH45to55HHInc25to30K","P55HH45to55HHInc30to35K","P55HH45to55HHInc35to40K","P55HH45to55HHInc40to45K","P55HH45to55HHInc45to50K","P55HH45to55HHInc50to60K","P55HH45to55HHInc60to75K","P55HH45to55HHInc75to100K","P55HH45to55HHInc100to125K","P55HH45to55HHInc125to150K","P55HH45to55HHInc150to200K","P55HH45to55HHInc>200K","P55HH55to64yrs","P55HH55to64HHInc<10K","P55HH55to64HHInc10to15K","P55HH55to64HHInc15to20K","P55HH55to64HHInc20to25K","P55HH55to64HHInc25to30K","P55HH55to64HHInc30to35K","P55HH55to64HHInc35to40K","P55HH55to64HHInc40to45K","P55HH55to64HHInc45to50K","P55HH55to64HHInc50to60K","P55HH55to64HHInc60to75K","P55HH55to64HHInc75to100K","P55HH55to64HHInc100to125K","P55HH55to64HHInc125to150K","P55HH55to64HHInc150to200K","P55HH55to64HHInc>200K","P55HH65to74yrs","P55HH65to74HHInc<10K","P55HH65to74HHInc10to15K","P55HH65to74HHInc15to20K","P55HH65to74HHInc20to25K","P55HH65to74HHInc25to30K","P55HH65to74HHInc30to35K","P55HH65to74HHInc35to40K","P55HH65to74HHInc40to45K","P55HH65to74HHInc45to50K","P55HH65to74HHInc50to60K","P55HH65to74HHInc60to75K","P55HH65to74HHInc75to100K","P55HH65to74HHInc100to125K","P55HH65to74HHInc125to150K","P55HH65to74HHInc150to200K","P55HH65to74HHInc>200K","P55HH>75yrs","P55HH>75HHInc<10K","P55HH>75HHInc10to15K","P55HH>75HHInc15to20K","P55HH>75HHInc20to25K","P55HH>75HHInc25to30K","P55HH>75HHInc30to35K","P55HH>75HHInc35to40K","P55HH>75HHInc40to45K","P55HH>75HHInc45to50K","P55HH>75HHInc50to60K","P55HH>75HHInc60to75K","P55HH>75HHInc75to100K","P55HH>75HHInc100to125K","P55HH>75HHInc125to150K","P55HH>75HHInc150to200K","P55HH>75HHInc>200K","P56MedHHInc","P56MedHHIncHH<25y","P56MedHHIncHH25to34y","P56MedHHIncHH35to44y","P56MedHHIncHH45to54y","P56MedHHIncHH55to64y","P56MedHHIncHH65to74y","P56MedHHIncHH>75y","P58Households3","P58HHwithEarnings","P58HHNoEarnings","P59HHwWageSalInc","P59HHNoWageSalInc","P60HHwSelfEmpInc","P60HHNoSelfEmpInc","P61HHwIndDivInc","P61HHNoIndDivInc","P62HHwSocSecInc","P62HHNoSocSecInc","P63HHwSSI","P63HHNoSSI","P64HHwPubAssInc","P64HHNoPubAssInc","P65HHwRetInc","P65HHNoRetInc","P66HHwOtherTypInc","P66HHNoOtherTypInc","P67AggregEarnings","P68AggregWageSalInc","P69AggregSelfEmpInc","P70AggregIntDivInc","P71AggregSocSecInc","P72AggregSSIInc","P73AggregPublicAssInc","P74AggregRetireInc","P76Families1","P76FamInc<10K","P76FamInc10to15K","P76FamInc15to20K","P76FamInc20to25K","P76FamInc25to30K","P76FamInc30to35K","P76FamInc35to40K","P76FamInc40to45K","P76FamInc45to50K","P76FamInc50to60K","P76FamInc60to75K","P76FamInc75to100K","P76FamInc100to125K","P76FamInc125to150K","P76FamInc150to200K","P76FamInc>200K","P77MedFamInc","P78AggregFamInc","P79NonFamHH","P79NonFamHHwInc<10K","P79NonFamHHwInc10to15K","P79NonFamHHwInc15to20K","P79NonFamHHwInc20to25K","P79NonFamHHwInc25to30K","P79NonFamHHwInc30to35K","P79NonFamHHwInc35to40K","P79NonFamHHwInc40to45K","P79NonFamHHwInc45to50K","P79NonFamHHwInc50to60K","P79NonFamHHwInc60to75K","P79NonFamHHwInc75to100K","P79NonFamHHwInc100to125K","P79NonFamHHwInc125to150K","P79NonFamHHwInc150to200K","P79NonFamHHwInc200KorMore","P80MedNonFamInc","P82PerCapitaInc"]
["Albany","0000308","00420",654,249,24,25,30,14,17,6,21,26,12,30,20,10,3,0,8,3,36635,12798700,249,7,0,0,3,1,0,1,0,1,0,1,0,0,0,0,0,0,63,6,0,12,0,0,3,12,10,0,11,7,2,0,0,0,0,67,2,5,2,5,7,0,7,8,4,13,4,3,1,0,3,3,41,5,4,2,6,2,2,2,2,0,0,4,5,2,0,5,0,36,3,6,7,0,6,0,0,3,6,3,2,0,0,0,0,0,21,8,5,4,0,0,0,0,2,2,0,0,0,0,0,0,0,14,0,5,0,2,2,0,0,0,0,2,3,0,0,0,0,0,36635,23750,39375,42292,31875,26667,12083,26250,249,202,47,182,67,34,215,41,208,64,185,9,240,11,238,30,219,30,219,8409800,7320400,1089400,3198100,610900,36400,58400,350900,167,13,9,19,8,15,6,15,25,6,22,14,5,2,0,8,0,39250,7285700,82,16,15,12,9,4,3,0,0,6,4,6,3,1,0,0,3,19583,20690]
["Bartlett","0000313","03700",2705,1229,81,78,109,81,99,97,77,88,79,129,130,105,22,15,25,14,39107,58037700,1229,34,7,3,8,0,4,0,5,0,1,3,2,1,0,0,0,0,169,17,8,3,3,15,25,11,25,9,28,19,6,0,0,0,0,287,16,16,16,13,32,25,17,20,18,35,33,30,2,7,7,0,272,9,0,15,24,22,9,19,23,8,45,40,42,8,4,2,2,234,11,20,26,16,12,19,6,17,32,11,20,15,7,2,16,4,156,8,12,30,17,7,13,15,0,11,7,12,11,5,0,0,8,77,13,19,11,8,7,6,4,3,0,0,4,0,0,2,0,0,39107,19167,40347,41635,52188,41944,32000,16806,1229,1022,207,943,286,255,974,432,797,339,890,18,1211,38,1191,167,1062,143,1086,45389000,38886700,6502300,4654300,3637800,112000,46800,3005600,771,32,28,60,47,59,64,56,51,57,87,103,71,17,11,19,9,43203,40066200,458,49,52,59,45,39,27,14,37,22,35,31,28,5,4,6,5,28026,21631]
["Brookfield","0000320","07940",604,239,2,9,11,13,9,13,26,16,6,40,44,18,12,4,4,12,52132,15421500,239,3,0,0,0,0,0,1,0,0,0,0,0,0,2,0,0,0,20,0,0,0,0,0,0,0,2,2,6,10,0,0,0,0,0,38,0,0,0,3,2,2,4,4,2,5,5,6,0,2,0,3,77,0,5,4,3,4,5,9,4,2,10,8,7,5,0,2,9,41,0,0,2,0,0,0,7,2,0,9,16,3,0,0,2,0,33,0,4,3,7,3,2,4,2,0,2,0,2,2,2,0,0,27,2,0,2,0,0,3,2,2,0,8,5,0,3,0,0,0,52132,100992,57500,51667,51250,60625,27083,51250,239,197,42,179,60,49,190,125,114,69,170,3,236,8,231,55,184,32,207,9682400,8579200,1103200,3219200,837500,27200,39000,1334300,189,0,4,5,10,4,13,16,14,6,35,38,12,12,4,4,12,54688,13392700,50,2,5,6,3,5,0,10,2,0,5,8,4,0,0,0,0,36111,25745]
["Chatham","0000325","11780",260,93,6,3,12,5,11,6,8,10,6,5,8,6,3,1,2,1,37188,4200900,93,1,0,0,0,0,1,0,0,0,0,0,0,0,0,0,0,0,15,5,0,2,1,0,4,0,3,0,0,0,0,0,0,0,0,28,0,0,9,0,4,0,5,3,0,0,4,3,0,0,0,0,19,0,0,0,0,2,2,1,2,0,4,2,1,1,1,2,1,13,0,2,1,1,1,0,2,0,2,0,2,0,2,0,0,0,14,0,1,0,2,2,0,0,2,4,1,0,2,0,0,0,0,3,1,0,0,1,1,0,0,0,0,0,0,0,0,0,0,0,37188,26250,21250,36250,55625,36875,45000,23750,93,80,13,65,28,31,62,34,59,33,60,3,90,0,93,19,74,7,86,2833700,2190600,643100,303200,482700,8700,0,486500,75,5,3,6,3,6,6,8,10,4,4,7,6,3,1,2,1,40156,3694500,18,1,0,6,2,5,0,0,0,2,1,1,0,0,0,0,0,23750,15317]
["Conway","0000330","14660",8604,3736,334,246,375,333,251,285,276,262,160,327,344,250,134,65,65,29,35873,167457700,3736,177,13,11,55,14,10,0,18,23,33,0,0,0,0,0,0,0,504,26,28,52,46,38,82,35,44,7,64,38,35,0,0,9,0,805,49,38,42,40,45,72,59,65,52,104,111,55,46,6,14,7,832,16,45,50,62,66,64,47,39,29,96,126,105,51,5,14,17,551,51,14,71,70,43,7,56,38,30,38,40,25,14,33,16,5,434,46,43,55,41,41,40,28,20,9,14,28,22,15,20,12,0,433,133,67,50,60,8,20,33,33,0,11,1,8,8,1,0,0,35873,21696,32183,44148,49783,37599,29167,16289,3736,3009,727,2839,897,602,3134,1059,2677,1113,2623,104,3632,110,3626,524,3212,449,3287,133738000,119981400,13756700,9297000,11438900,765500,429300,8451800,2264,116,99,128,163,180,177,173,178,119,204,264,202,108,70,59,24,41818,120081100,1472,245,172,247,179,97,107,78,68,41,91,87,40,14,0,6,0,21385,19673]
["Eaton","0000363","23380",375,150,10,9,13,13,3,5,5,13,10,29,9,15,11,5,0,0,46429,7388500,150,2,0,0,0,0,0,0,0,0,0,0,0,0,2,0,0,0,12,0,0,0,2,0,0,0,0,0,5,2,0,3,0,0,0,35,4,0,2,0,3,0,0,6,5,9,3,0,0,3,0,0,46,2,3,6,2,0,3,2,3,0,10,4,7,4,0,0,0,27,0,2,3,7,0,0,3,0,3,3,0,6,0,0,0,0,14,4,4,2,0,0,0,0,2,0,0,0,0,0,2,0,0,14,0,0,0,2,0,2,0,2,2,2,0,2,2,0,0,0,46429,102264,59167,47917,50625,38750,11875,46250,150,124,26,100,50,50,100,54,96,35,115,2,148,2,148,23,127,12,138,5588900,4443400,1145500,586400,417000,4100,6800,701200,110,4,2,7,9,0,3,3,11,10,21,9,17,9,5,0,0,53750,6325000,40,6,7,6,4,3,2,2,2,0,8,0,0,0,0,0,0,23125,21122]
["Effingham","0000368","23620",1273,492,48,31,41,33,45,38,50,37,30,32,45,31,20,2,5,4,36000,21428400,492,23,4,2,5,2,2,2,3,0,3,0,0,0,0,0,0,0,73,2,2,3,6,9,13,6,4,3,3,16,3,3,0,0,0,111,11,3,5,2,3,11,15,15,14,11,12,4,4,0,1,0,98,8,7,2,6,12,6,9,9,0,6,15,8,6,0,2,2,84,9,6,8,6,12,2,7,7,4,2,2,9,4,2,2,2,54,4,11,15,0,7,4,3,0,0,7,0,0,3,0,0,0,49,10,0,3,11,0,0,7,2,6,3,0,7,0,0,0,0,36000,23125,35625,42292,39167,31250,18750,35417,492,407,85,372,120,110,382,164,328,130,362,23,469,25,467,80,412,59,433,16342500,13511500,2831000,2106400,1344500,132400,28400,970100,346,19,20,35,23,26,26,40,26,24,24,29,28,18,2,4,2,38000,15980300,146,32,15,11,7,24,10,9,11,6,6,9,1,2,0,1,2,26176,17089]
["Freedom","0000373","27700",1303,609,50,21,44,55,58,40,35,40,44,65,60,40,18,23,6,10,40188,30492600,609,1,0,0,0,1,0,0,0,0,0,0,0,0,0,0,0,0,62,4,0,2,6,13,6,7,3,2,8,4,4,0,3,0,0,100,4,3,5,9,6,5,9,3,5,12,13,14,7,2,0,3,121,5,4,6,4,9,4,9,7,13,13,17,13,2,12,0,3,115,16,4,5,13,3,9,0,13,10,10,14,7,7,4,0,0,120,8,7,10,10,15,9,8,8,9,10,12,2,2,2,6,2,90,13,3,16,12,12,7,2,6,5,12,0,0,0,0,0,2,40188,23750,35000,50833,49750,42083,36250,25500,609,431,178,395,214,118,491,309,300,233,376,16,593,7,602,179,430,66,543,18625200,15952400,2672800,4969500,3092400,135900,12900,3057300,416,17,8,23,21,32,22,26,31,33,67,52,36,12,20,6,10,49167,24674200,193,33,16,23,34,24,18,12,9,8,2,4,4,6,0,0,0,23750,23036]
["Hale's Location","0000378","32500",58,33,0,3,5,0,5,4,0,3,0,6,2,0,5,0,0,0,32188,1557000,33,0,0,0,0,0,0,0,0,0,0,0,0,0,0,0,0,0,0,0,0,0,0,0,0,0,0,0,0,0,0,0,0,0,0,3,0,3,0,0,0,0,0,0,0,0,0,0,0,0,0,0,2,0,0,0,0,0,0,0,0,0,0,0,0,2,0,0,0,7,0,0,0,0,0,0,0,0,0,2,2,0,3,0,0,0,17,0,0,3,0,5,2,0,3,0,4,0,0,0,0,0,0,4,0,0,2,0,0,2,0,0,0,0,0,0,0,0,0,0,32188,0,0,11250,102264,64375,30625,23750,33,22,11,20,13,2,31,18,15,21,12,0,33,0,33,10,23,0,33,892400,866200,26100,111600,254800,0,0,298100,28,0,0,3,0,5,4,0,3,0,6,2,0,5,0,0,0,44167,1492200,5,0,3,2,0,0,0,0,0,0,0,0,0,0,0,0,0,12083,25103]
["Hart's Location","0000383","34500",37,13,0,0,3,0,2,0,0,3,0,0,3,2,0,0,0,0,41250,603200,13,0,0,0,0,0,0,0,0,0,0,0,0,0,0,0,0,0,2,0,0,0,0,2,0,0,0,0,0,0,0,0,0,0,0,2,0,0,0,0,0,0,0,0,0,0,0,2,0,0,0,0,6,0,0,3,0,0,0,0,0,0,0,3,0,0,0,0,0,3,0,0,0,0,0,0,0,3,0,0,0,0,0,0,0,0,0,0,0,0,0,0,0,0,0,0,0,0,0,0,0,0,0,0,0,0,0,0,0,0,0,0,0,0,0,0,0,0,0,0,41250,0,26250,80488,43750,41250,0,0,13,13,0,13,0,3,10,0,13,0,13,0,13,0,13,0,13,0,13,603200,533200,70000,0,0,0,0,0,8,0,0,0,0,0,0,0,3,0,0,3,2,0,0,0,0,70833,502200,5,0,0,3,0,2,0,0,0,0,0,0,0,0,0,0,0,17083,19609]
["Jackson","0000388","38260",835,363,31,15,25,22,22,10,19,15,25,40,47,47,15,15,12,3,49583,20483400,363,5,0,0,2,3,0,0,0,0,0,0,0,0,0,0,0,0,43,0,0,2,5,7,2,2,6,3,8,5,0,0,3,0,0,79,0,8,5,5,7,2,4,5,7,10,3,15,2,3,3,0,51,0,0,5,6,0,0,2,2,7,5,14,7,0,0,0,3,64,9,2,2,3,0,2,2,0,3,5,10,12,7,2,5,0,68,7,0,2,0,5,0,9,0,3,5,12,10,4,7,4,0,53,15,5,7,0,3,4,0,2,2,7,3,3,2,0,0,0,49583,20417,41458,48250,58750,65500,61500,19375,363,288,75,260,103,62,301,189,174,129,234,9,354,2,361,78,285,33,330,13242100,11741600,1500500,3765600,1624000,67200,700,1607000,229,12,6,7,7,12,6,11,15,14,28,37,34,13,12,12,3,59327,15438700,134,23,7,16,15,10,4,8,2,11,12,10,11,2,3,0,0,26500,25718]
["Madison","0000393","45060",1984,780,27,50,42,68,57,52,54,53,44,114,104,56,24,11,12,12,43523,41493600,780,16,0,0,3,0,5,0,4,0,0,0,0,4,0,0,0,0,104,2,0,4,11,16,12,3,7,17,13,5,7,4,3,0,0,200,2,12,0,8,15,19,10,14,16,43,32,10,9,6,2,2,204,5,11,8,16,4,14,18,22,9,25,40,15,9,2,6,0,116,3,14,14,8,5,3,12,2,2,22,18,0,2,0,1,10,74,6,5,5,15,7,0,5,6,0,8,6,8,0,0,3,0,66,9,8,8,10,5,4,2,2,0,3,3,12,0,0,0,0,43523,31250,43125,51667,46667,39643,27143,24167,780,653,127,598,182,184,596,257,523,190,590,1,779,23,757,130,650,88,692,34081500,28626700,5454800,2451200,2350700,6200,50900,1933700,561,7,20,22,31,33,39,41,43,35,105,89,45,17,11,11,12,51080,33986900,219,23,32,20,39,23,17,15,8,7,8,13,8,6,0,0,0,24338,20608]
["Moultonborough","0000399","49380",4484,1882,84,76,98,126,146,155,142,113,93,196,200,210,108,42,42,51,45050,115107500,1882,21,0,9,4,0,0,0,0,8,0,0,0,0,0,0,0,0,180,4,0,17,15,15,8,19,15,9,33,15,24,4,0,0,2,339,8,12,4,34,26,29,21,27,12,38,43,55,23,0,4,3,415,4,10,20,13,31,40,27,21,29,42,43,65,17,22,21,10,390,30,8,9,22,21,33,18,20,26,38,49,36,49,4,6,21,313,21,23,4,19,33,28,44,12,17,20,30,22,10,11,4,15,224,17,14,40,23,20,17,13,10,0,25,20,8,5,5,7,0,45050,18438,43125,46771,54750,51333,38708,27368,1882,1453,429,1283,599,436,1446,908,974,635,1247,24,1858,46,1836,420,1462,226,1656,73410900,61580600,11830300,23455600,8246600,165400,144200,8020200,1377,22,39,49,94,76,124,89,82,81,163,164,188,79,37,42,48,51729,95522900,505,62,48,55,36,75,36,43,18,10,33,30,24,27,5,0,3,28321,25733]
["Ossipee","0000407","58740",4211,1672,140,124,143,141,162,131,172,71,148,150,111,81,45,23,6,24,34709,73887200,1672,46,0,0,0,13,0,3,8,0,18,4,0,0,0,0,0,0,196,6,27,5,14,26,5,36,10,33,17,11,0,0,0,0,6,364,40,18,44,39,22,31,46,34,31,19,28,0,0,5,0,7,341,24,0,13,27,13,40,36,7,28,50,31,55,0,11,6,0,273,23,23,11,17,27,19,25,13,24,25,17,18,18,7,0,6,298,20,23,43,9,61,33,14,7,14,22,24,8,15,0,0,5,154,27,33,27,22,13,0,7,0,0,13,0,0,12,0,0,0,34709,39375,36875,32262,46875,38482,28833,16574,1672,1309,363,1239,433,267,1405,489,1183,554,1118,96,1576,97,1575,367,1305,229,1443,49752500,43663800,6088700,8554100,6419700,631600,262200,5832700,1166,62,38,74,106,137,99,82,71,133,110,104,81,33,23,0,13,38790,53832900,506,97,85,63,31,39,41,80,0,5,30,6,0,12,0,6,11,22700,18092]
["Sandwich","0000414","67780",1286,573,36,28,54,39,26,30,31,26,32,75,81,70,7,17,10,11,47292,30772600,573,9,0,0,3,0,0,3,0,0,0,0,3,0,0,0,0,0,29,4,0,0,3,0,0,2,0,8,6,3,1,0,2,0,0,98,2,2,10,6,2,11,9,8,5,17,14,9,0,2,1,0,148,5,7,18,12,6,7,2,5,11,20,20,24,2,2,0,7,96,5,11,5,5,5,0,5,4,4,14,11,13,3,5,2,4,97,4,5,10,7,4,3,4,5,2,11,18,13,0,6,5,0,96,16,3,8,6,9,6,9,4,2,7,12,10,2,0,2,0,47292,33750,48438,44583,50357,52500,53125,35000,573,416,157,363,210,196,377,321,252,226,347,11,562,10,563,147,426,65,508,19186100,13491100,5695000,5307300,2786300,88000,14700,2979300,398,10,10,25,23,17,13,29,19,19,68,69,64,7,13,8,4,55417,23496000,175,31,21,24,16,10,17,4,7,8,8,12,6,2,0,2,7,23393,23714]
["Tamworth","0000419","76100",2510,1090,106,100,86,69,98,82,95,59,57,111,89,71,31,19,12,5,35200,46291000,1090,41,10,2,2,5,4,3,4,3,2,2,0,4,0,0,0,0,117,9,5,16,9,17,12,16,9,3,8,4,6,0,3,0,0,279,12,7,20,19,21,21,34,17,12,52,25,19,14,3,3,0,214,21,9,11,9,13,12,8,6,24,25,35,23,6,6,4,2,172,16,20,5,16,20,8,15,12,7,18,8,9,10,2,3,3,133,11,29,11,7,9,16,12,6,8,0,13,6,0,3,2,0,134,27,28,21,4,14,10,6,6,1,6,4,4,1,2,0,0,35200,26875,30781,41146,48333,36250,29821,17308,1090,852,238,794,296,205,885,305,785,361,729,48,1042,58,1032,203,887,111,979,35239500,30569800,4669700,2757600,3632200,339000,213600,3217000,694,34,41,49,30,57,54,69,38,53,79,76,56,24,19,10,5,41121,34559700,396,76,62,39,44,42,26,27,19,1,27,18,11,4,0,0,0,21810,17961]
["Tuftonboro","0000425","77620",2148,927,63,36,35,54,64,69,69,63,68,83,112,108,35,20,23,25,45729,54422400,927,6,0,0,0,3,0,0,0,0,3,0,0,0,0,0,0,0,82,3,0,3,8,7,9,13,12,8,0,12,5,0,2,0,0,149,3,6,9,7,8,6,14,12,8,26,22,16,2,4,2,4,217,10,6,4,4,11,17,19,12,22,17,36,24,9,9,5,12,173,20,0,11,7,10,8,7,12,12,13,22,19,12,2,11,7,166,15,10,6,15,7,17,10,11,10,12,16,24,8,3,2,0,134,12,14,2,10,21,12,6,4,5,15,4,20,4,0,3,2,45729,33750,39167,50625,51094,47396,41875,33333,927,668,259,586,341,263,664,484,443,352,575,30,897,34,893,233,694,103,824,36693900,29235100,7458800,7095500,4238600,207400,55200,5339500,658,20,18,27,32,33,48,45,31,60,82,90,82,33,19,16,22,51875,42892100,269,43,18,16,22,30,23,24,27,10,8,20,17,2,3,3,3,30859,25070]
["Wakefield","0000432","78180",4252,1682,113,119,112,98,118,97,114,124,101,225,177,114,70,34,20,46,42500,90795200,1682,27,2,3,8,7,3,0,0,0,4,0,0,0,0,0,0,0,227,6,5,7,11,14,19,21,16,22,47,28,15,9,3,4,0,390,21,8,19,10,31,28,21,17,27,87,48,32,13,5,4,19,346,12,20,4,11,22,16,23,52,12,50,39,34,21,18,9,3,263,18,19,25,8,15,7,24,22,17,20,30,16,10,8,0,24,258,32,33,28,41,18,13,4,17,13,17,18,8,13,0,3,0,171,22,31,21,10,15,14,21,0,6,4,14,9,4,0,0,0,42500,20179,48828,50929,50227,43839,24479,25750,1682,1277,405,1194,488,293,1389,664,1018,564,1118,59,1623,41,1641,363,1319,310,1372,65110900,57025300,8085500,6921900,6129400,479700,119400,9027500,1198,35,54,65,62,109,88,91,82,79,166,133,105,47,31,13,38,45774,67054400,484,82,68,51,37,25,16,28,37,17,33,43,9,23,0,7,8,25500,21507]
["Wolfeboro","0000440","86420",6083,2575,151,170,184,228,187,115,124,168,123,255,278,224,139,64,79,86,44013,157196700,2575,22,0,0,0,8,0,8,0,0,0,6,0,0,0,0,0,0,257,17,15,8,41,20,25,8,24,11,27,45,7,9,0,0,0,500,32,27,8,6,60,14,43,24,29,73,64,50,28,17,11,14,492,17,0,0,44,30,8,26,59,37,17,88,36,62,17,17,34,381,7,17,18,33,27,8,0,0,20,64,9,101,0,11,28,38,449,24,26,80,34,28,37,16,36,26,37,28,24,28,9,16,0,474,54,85,70,62,22,15,31,25,0,31,44,6,12,10,7,0,44013,30938,38281,50625,61176,58750,34408,21750,2575,1820,755,1608,967,590,1985,1149,1426,951,1624,64,2511,72,2503,709,1866,332,2243,107224100,83810600,23413500,17876300,11917200,362300,90300,16185500,1734,33,64,49,139,122,65,85,113,113,187,219,214,126,64,64,77,53269,122919400,841,118,106,143,81,65,58,50,42,10,68,53,10,13,0,15,9,21651,26361]
[]
[]
[]
[]
["Census 2000 SummaryFile3 Sample Data  -  SF3TownQry2bPovertyChar"]
[]
["TOWN_NAME","LOGRECNO","COUSUB","TotalPop","P52Households1","P82PerCapitaInc","P87PopForPovStatus","P87PopWIncBelowPovStatus","P87PopUnder5yrBelowPoverty","P87Pop5yrBelowPoverty","P87Pop5to11yrBelowPoverty","P87Pop12to17yrBelowPoverty","P87Pop18to64yrBelowPoverty","P87Pop65to74yrBelowPoverty","P87PopOver75yrBelowPoverty","P87PopWIncAbovePovStatus","P87PopUnder5yrAbovePoverty","P87Pop5yrAbovePoverty","P87Pop5to11yrAbovePoverty","P87Pop12to17yrAbovePoverty","P87Pop18to64yrAbovePoverty","P87Pop65to74yrAbovePoverty","P87PopOver75yrAbovePoverty","P90Families","P90FamWIncBelowPov","P90MarCupFamWIncBelowPov","P90MCFamWRltdChld<18WIncBelowPov","P90MCFamWRltdChld<5WIncBelowPov","P90MaleHhlrWIncBelowPov","P90MaleHhlrWRltdChld<18yrWIncBelowPov","P90MaleHhlrWRltdChld<5yrWIncBelowPov","P90FemaleHhlrWIncBelowPov","P90FemaleHhlrWRltdChld<18yWIncBelowPov","P90FemaleHhlrWRltdChld<5yWIncBelowPov","P90FamWIncAbovePov","P90MarCupFamWIncAbovePov","P90MCFamWRltdChld<18WIncAbovePov","P90MCFamWRltdChld<5WIncAbovePov","P90MaleHhlrWIncAbovePov","P90MaleHhlrWRltdChld<18yrWIncAbovePov","P90MaleHhlrWRltdChld<5yrWIncAbovePov","P90FemaleHhlrWIncAbovePov","P90FemaleHhlrWRltdChld<18yWIncAbovePov","P90FemaleHhlrWRltdChld<5yWIncAbovePov","P92Households","P92HHwIncBelowPov","P92FamHHwIncBelowPov","P92MCFamHHwIncBelowPov","P92MaleFamHHwIncBelowPov","P92FemaleFamHHwIncBelowPov","P92NonFamHHwIncBelowPov","P92NonFamMaleHHwIncBelowPov","P92NonFamFemaleHHwIncBelowPov","P92HHwIncAbovePov","P92FamHHwIncAbovePov","P92MCFamHHwIncAbovePov","P92MaleFamHHwIncAbovePov","P92FemaleFamHHwIncAbovePov","P92NonFamHHwIncAbovePov","P92NonFamMaleHHwIncAbovePov","P92NonFamFemaleHHwIncAbovePov"]
["Albany","0000308","00420",654,249,20690,605,95,17,2,19,0,55,2,0,510,35,7,26,53,345,30,14,167,18,4,4,0,4,2,0,10,10,1,149,124,53,11,13,13,0,12,10,1,249,28,18,4,4,10,10,4,6,221,149,124,13,12,72,45,27]
["Bartlett","0000313","03700",2705,1229,21631,2726,222,20,0,31,28,121,12,10,2504,106,32,179,187,1651,250,99,771,48,21,14,3,5,5,0,22,22,4,723,583,202,30,52,36,5,88,64,13,1229,87,48,21,5,22,39,13,26,1142,723,583,52,88,419,226,193]
["Brookfield","0000320","07940",604,239,25745,605,9,0,0,0,2,5,2,0,596,22,0,51,53,367,66,37,189,2,2,0,0,0,0,0,0,0,0,187,167,56,11,6,4,0,14,11,3,239,5,2,2,0,0,3,0,3,234,187,167,6,14,47,16,31]
["Chatham","0000325","11780",260,93,15317,260,40,5,2,10,0,23,0,0,220,16,9,20,9,142,17,7,75,10,5,3,0,3,3,0,2,2,0,65,60,26,5,4,1,0,1,1,0,93,13,10,5,3,2,3,1,2,80,65,60,4,1,15,9,6]
["Conway","0000330","14660",8604,3736,19673,8466,875,62,9,109,78,448,34,135,7591,393,52,587,602,4896,621,440,2264,182,84,43,6,28,16,0,70,66,23,2082,1636,715,155,123,72,3,323,203,25,3736,400,182,84,28,70,218,68,150,3336,2082,1636,123,323,1254,582,672]
["Eaton","0000363","23380",375,150,21122,333,24,0,0,0,5,12,7,0,309,12,5,24,22,209,15,22,110,4,4,2,0,0,0,0,0,0,0,106,99,33,6,5,2,0,2,2,0,150,10,4,4,0,0,6,2,4,140,106,99,5,2,34,22,12]
["Effingham","0000368","23620",1273,492,17089,1248,191,14,3,15,24,125,2,8,1057,38,7,91,111,662,84,64,346,28,13,7,0,3,3,0,12,12,7,318,249,100,10,24,13,0,45,27,2,492,59,28,13,3,12,31,19,12,433,318,249,24,45,115,60,55]
["Freedom","0000373","27700",1303,609,23036,1297,88,4,2,3,3,51,13,12,1209,48,12,63,78,723,180,105,416,19,14,3,0,2,2,2,3,3,0,397,355,95,12,12,3,0,30,16,4,609,47,19,14,2,3,28,7,21,562,397,355,12,30,165,63,102]
["Hale's Location","0000378","32500",58,33,25103,61,0,0,0,0,0,0,0,0,61,0,0,0,0,32,22,7,28,0,0,0,0,0,0,0,0,0,0,28,26,0,0,0,0,0,2,0,0,33,0,0,0,0,0,0,0,0,33,28,26,0,2,5,3,2]
["Hart's Location","0000383","34500",37,13,19609,33,0,0,0,0,0,0,0,0,33,2,0,5,3,23,0,0,8,0,0,0,0,0,0,0,0,0,0,8,8,5,0,0,0,0,0,0,0,13,0,0,0,0,0,0,0,0,13,8,8,0,0,5,2,3]
["Jackson","0000388","38260",835,363,25718,805,65,2,0,3,2,32,7,19,740,43,7,47,46,444,97,56,229,14,10,0,0,0,0,0,4,4,2,215,196,62,13,2,0,0,17,8,2,363,41,14,10,0,4,27,7,20,322,215,196,2,17,107,63,44]
["Madison","0000393","45060",1984,780,20608,2019,90,0,2,12,15,52,6,3,1929,82,9,180,204,1226,129,99,561,11,8,6,0,1,1,0,2,2,0,550,473,222,30,27,16,0,50,29,5,780,30,11,8,1,2,19,11,8,750,550,473,27,50,200,105,95]
["Moultonborough","0000399","49380",4484,1882,25733,4477,180,0,4,27,0,126,8,15,4297,165,13,379,349,2522,524,345,1377,44,44,16,0,0,0,0,0,0,0,1333,1166,381,45,61,40,0,106,81,3,1882,87,44,44,0,0,43,11,32,1795,1333,1166,61,106,462,251,211]
["Ossipee","0000407","58740",4211,1672,18092,4034,403,32,2,37,82,208,22,20,3631,148,32,355,289,2214,390,203,1166,90,15,0,0,21,21,5,54,54,7,1076,897,345,34,64,39,17,115,67,14,1672,174,90,15,21,54,84,38,46,1498,1076,897,64,115,422,214,208]
["Sandwich","0000414","67780",1286,573,23714,1283,78,5,2,9,10,36,4,12,1205,50,9,85,107,667,160,127,398,14,2,2,0,3,3,0,9,9,3,384,343,112,17,9,5,2,32,22,0,573,41,14,2,3,9,27,3,24,532,384,343,9,32,148,68,80]
["Tamworth","0000419","76100",2510,1090,17961,2540,241,22,0,20,17,141,19,22,2299,110,41,202,186,1397,196,167,694,49,25,7,2,5,0,0,19,19,9,645,543,223,22,44,31,6,58,30,3,1090,117,49,25,5,19,68,29,39,973,645,543,44,58,328,160,168]
["Tuftonboro","0000425","77620",2148,927,25070,2136,137,8,2,4,17,77,17,12,1999,83,21,134,144,1168,251,198,658,29,20,2,0,4,4,0,5,5,0,629,560,178,23,29,15,6,40,17,2,927,64,29,20,4,5,35,14,21,863,629,560,29,40,234,125,109]
["Wakefield","0000432","78180",4252,1682,21507,4203,298,18,0,27,49,167,23,14,3905,223,59,346,341,2340,366,230,1198,61,30,13,0,7,4,0,24,24,13,1137,957,406,69,62,53,3,118,79,25,1682,117,61,30,7,24,56,27,29,1565,1137,957,62,118,428,228,200]
["Wolfeboro","0000440","86420",6083,2575,26361,5964,375,25,7,21,72,210,16,24,5589,238,71,428,464,3025,702,661,1734,61,28,20,0,6,6,0,27,27,0,1673,1465,473,57,58,29,15,150,111,0,2575,133,61,28,6,27,72,33,39,2442,1673,1465,58,150,769,273,496]
[]
[]
[]
[]
["Census 2000 SummaryFile3 Sample Data  -  SF3TownQry7HousingA"]
[]
["TOWN_NAME","LOGRECNO","COUSUB","TotalPop","H1HousingUnitsTotal","H2SampleHU","H2SampleOccHU","H2SampleVacHU","H3HU100pctCount","H5HUTotal","H5HUUrban","H5HUUrbanInUrbanAreas","H5HUUrbanInUrbanClusters","H5HURural","H5HURuralFarm","H5HURuralNonFarm","H7HUOcc","H7HUOwnrOcc","H7HURentrOcc","H8HUVacant","H8HUVacantForRent","H8HUVacantForSale","H8HUVacRentedorSold","H8HUVacSeasonal","H8HUVacForMigrantWrkrs","H8HUOtherVacant","H14OccHUa","H14OwnerOccHU","H14OwnOccHuHh15to24","H14OwnOccHuHh25to34","H14OwnOccHuHh35to44","H14OwnOccHuHh45to54","H14OwnOccHuHh55to59","H14OwnOccHuHh60to64","H14OwnOccHuHh65to74","H14OwnOccHuHh75to84","H14OwnOccHuHh85Over","H14RenterOccHU1","H14RntrOccHuHh15to24","H14RntrOccHuHh25to34","H14RntrOccHuHh35to44","H14RntrOccHuHh45to54","H14RntrOccHuHh55to59","H14RntrOccHuHh60to64","H14RntrOccHuHh65to74","H14RntrOccHuHh75to84","H14RntrOccHuHh85Over","H15PopInOccHU","H15PopInOwnOccHU1","H15PopInRentOccHU1","H17OccupHUb","H17OwnOccHU2","H17OwnOccHU1PersonHH","H17OwnOccHU2PersonHH","H17OwnOccHU3PersonHH","H17OwnOccHU4PersonHH","H17OwnOccHU5PersonHH","H17OwnOccHU6PersonHH","H17OwnOccHU7PlusPersonHH","H17RentOccHU2","H17RntOccHU1PersonHH","H17RntOccHU2PersonHH","H17RntOccHU3PersonHH","H17RntOccHU4PersonHH","H17RntOccHU5PersonHH","H17RntOccHU6PersonHH","H17RntOccHU7PlusPersonHH","H18AvgHHSize","H18AvgHHSizeOwnOcc","H18AvgHHSizeRentOcc","H23TotHU","H23HU1Room","H23HU2Room","H23HU3Room","H23HU4Room","H23HU5Room","H23HU6Room","H23HU7Room","H23HU8Room","H23HU9orMoreRoom","H24MedianNumRooms","H25AggregNumRooms","H30TotalHU","H30Det1HU","H30Att1HU","H30Units2","H30Units3or4","H30Units5to9","H30Units10to19","H30Units20to49","H30Units50orMore","H30UnitsMobileHome","H30UnitsBoatRv","H32OccHUcTotal","H32OwnerOccHU3","H32OwnOccHU1Det","H32OwnOccHU1Att","H32OwnOccHU2Unit","H32OwnOccHU3to4Unit","H32OwnOccHU5to9Unit","H32OwnOccHU10to19Unit","H32OwnOccHU20to49Unit","H32OwnOccHU50plusUnit","H32OwnOccHUMobHom","H32OwnOccHUBoatRVOth","H32RentrOccHU3","H32RntrOccHU1Det","H32RntrOccHU1Att","H32RntrOccHU2Unit","H32RntrOccHU3to4Unit","H32RntrOccHU5to9Unit","H32RntrOccHU10to19Unit","H32RntrOccHU20to49Unit","H32RntrOccHU50PlusUnit","H32RntrOccHUMobHom","H32RntrOccHUBoatRVOth","H33TotPopInOccHU","H33PopInOwnOccHU2","H33PopInOOHU1Det","H33PopInOOHU1Att","H33PopInOOHU2unit","H33PopInOOHU3to4Unit","H33PopInOOHU5to9Unit","H33PopInOOHU10to19Unit","H33PopInOOHU20to49Unit","H33PopInOOHU50PlusUnit","H33PopInOOHUMobilHome","H33PopInOOHUOtherUnit","H33PopInRentOccHU2","H33PopInROHU1Det","H33PopInROHU1Att","H33PopInROHU2Unit","H33PopInROHU3to4Unit","H33PopInROHU5to9Unit","H33PopInROHU10to19Unit","H33PopInROHU20to49Unit","H33PopInROHU50PlusUnit","H33PopInROHUMobilHome","H33PopInROHUOtherUnit","H36OccHousingUnitsdTotal","H36OwnerOccHU4","H36OOHUBuilt99to0300","H36OOHUBuilt95to98","H36OOHUBuilt90to94","H36OOHUBuilt80to89","H36OOHUBuilt70to79","H36OOHUBuilt60to69","H36OOHUBuilt50to59","H36OOHUBuilt40to49","H36OOHUBuilt39Earlier","H36RentOccHU4","H36ROHUBuilt99to0300","H36ROHUBuilt95to98","H36ROHUBuilt90to94","H36ROHUBuilt80to89","H36ROHUBuilt70to79","H36ROHUBuilt60to69","H36ROHUBuilt50to59","H36ROHUBuilt40to49","H36ROHUBuilt39Earlier","H40OccupHousUnitse","H40HeatFuelUtilGas","H40HeatFuelBotGas","H40HeatFuelElect","H40HeatFuelOilKero","H40HeatFuelCoal","H40HeatFuelWood","H40HeatFuelSolar","H40HeatFuelOther","H40HeatFuelNone","H41TotalHU","H41HUNoBdrm","H41HU1Bdrm","H41HU2Bdrm","H41HU3Bdrm","H41HU4Bdrm","H41HU5MoreBdrm","H42OccuHousUnitf","H42OwnerOccHU5","H42OOHUNoBdrm","H42OOHU1Bdrm","H42OOHU2Bdrm","H42OOHU3Bdrm","H42OOHU4Bdrm","H42OOHU5PlusBdrm","H42RentOccHU5","H42ROHUNoBdrm","H42ROHU1Bdrm","H42ROHU2Bdrm","H42ROHU3Bdrm","H42ROHU4Bdrm","H42ROHU5PlusBdrm","H48OccupHousUnitsg","H48OwnerOccHU6","H48OOHUwCompltPlumFacil","H48OOHULackCompltPlumFacil","H48RentOccHU6","H48ROHUwCompltPlumFacil","H48ROHULackCompltPlumFacil","H51OccupHousUnitf","H51OwnerOccHU7","H51OOHUwCompleteKitFacil","H51OOHULackCompleteKitFacil","H51RenterOccHU7","H51ROHUwCompleteKitFacil","H51ROHULackCompleteKitFacil"]
["Albany","0000308","00420",654,491,228,108,120,506,491,0,0,0,491,0,491,237,187,50,254,6,7,3,207,0,31,237,187,4,31,52,40,15,11,21,9,4,50,9,16,16,5,0,4,0,0,0,600,447,153,237,187,53,59,31,35,9,0,0,50,9,16,14,8,2,1,0,3,2,3,491,16,35,45,125,105,83,46,17,19,5,2392,491,393,0,14,0,0,0,0,0,84,0,237,187,137,0,0,0,0,0,0,0,50,0,50,35,0,6,0,0,0,0,0,9,0,600,447,330,0,0,0,0,0,0,0,117,0,153,104,0,13,0,0,0,0,0,36,0,237,187,5,15,21,42,49,13,13,8,21,50,0,3,4,1,17,2,6,6,11,237,0,55,2,160,0,20,0,0,0,491,16,100,184,140,49,2,237,187,0,7,75,86,17,2,50,0,9,15,16,10,0,237,187,187,0,50,50,0,237,187,187,0,50,50,0]
["Bartlett","0000313","03700",2705,3613,1632,506,1126,3589,3613,0,0,0,3613,8,3605,1220,891,329,2393,40,34,10,2277,0,32,1220,891,7,69,195,221,110,62,155,63,9,329,31,94,83,50,35,22,6,8,0,2720,2006,714,1220,891,228,399,104,129,24,3,4,329,115,108,61,29,8,6,2,2,2,2,3613,45,175,313,653,923,877,318,165,144,5,18809,3613,1792,637,149,291,491,126,65,0,62,0,1220,891,719,88,27,10,18,0,0,0,29,0,329,137,27,52,60,33,0,0,0,20,0,2720,2006,1672,179,37,19,35,0,0,0,64,0,714,340,55,116,106,65,0,0,0,32,0,1220,891,14,71,70,252,182,74,46,33,149,329,0,3,27,54,82,36,10,14,103,1220,38,304,84,615,2,177,0,0,0,3613,49,364,1477,1377,257,89,1220,891,0,31,258,443,109,50,329,7,87,112,103,20,0,1220,891,887,4,329,326,3,1220,891,889,2,329,326,3]
["Brookfield","0000320","07940",604,281,135,110,25,280,281,0,0,0,281,4,277,237,226,11,44,0,3,1,38,0,2,237,226,2,18,32,69,34,10,38,14,9,11,2,5,0,4,0,0,0,0,0,605,582,23,237,226,38,111,29,36,8,2,2,11,2,3,6,0,0,0,0,3,3,2,281,2,2,4,18,35,53,73,41,53,7,1952,281,275,4,0,0,0,0,0,0,0,2,237,226,221,3,0,0,0,0,0,0,0,2,11,11,0,0,0,0,0,0,0,0,0,605,582,574,5,0,0,0,0,0,0,0,3,23,23,0,0,0,0,0,0,0,0,0,237,226,12,4,16,34,39,22,8,2,89,11,0,0,4,0,2,0,0,0,5,237,0,24,0,203,0,8,0,2,0,281,2,12,66,133,43,25,237,226,2,7,48,112,36,21,11,0,0,3,6,2,0,237,226,224,2,11,11,0,237,226,224,2,11,11,0]
["Chatham","0000325","11780",260,249,112,54,58,253,249,0,0,0,249,0,249,105,86,19,144,0,2,0,108,0,34,105,86,0,8,23,25,4,6,14,4,2,19,2,9,0,3,5,0,0,0,0,260,230,30,105,86,13,27,23,11,5,4,3,19,3,7,6,3,0,0,0,2,3,2,249,12,18,34,40,60,33,17,25,10,5,1227,249,214,2,0,0,4,0,0,0,25,4,105,86,78,2,0,0,0,0,0,0,6,0,19,14,0,0,0,2,0,0,0,3,0,260,230,202,6,0,0,0,0,0,0,22,0,30,20,0,0,0,2,0,0,0,8,0,105,86,2,2,12,16,17,2,4,0,31,19,0,0,0,6,5,0,0,0,8,105,2,11,0,57,0,35,0,0,0,249,12,52,94,54,29,8,105,86,0,6,28,26,20,6,19,0,5,8,6,0,0,105,86,82,4,19,17,2,105,86,86,0,19,17,2]
["Conway","0000330","14660",8604,5931,956,606,350,5927,5931,0,0,0,5931,4,5927,3716,2456,1260,2215,159,61,24,1857,0,114,3716,2456,23,242,455,609,221,217,389,236,64,1260,132,262,342,205,60,65,61,114,19,8444,5812,2632,3716,2456,591,1054,360,301,116,17,17,1260,583,312,173,124,50,15,3,2,2,2,5931,26,167,554,1269,1325,1197,583,414,396,5,32258,5931,3231,404,282,417,542,167,250,0,633,5,3716,2456,1836,77,40,6,42,13,55,0,387,0,1260,320,27,149,197,200,109,159,0,99,0,8444,5812,4647,181,68,11,70,21,66,0,748,0,2632,904,39,342,376,367,142,279,0,183,0,3716,2456,57,110,165,665,539,176,125,92,527,1260,0,26,60,324,206,105,116,26,397,3716,126,756,434,2098,13,267,0,6,16,5931,26,649,2222,2239,622,173,3716,2456,7,89,760,1143,372,85,1260,14,427,534,245,26,14,3716,2456,2443,13,1260,1260,0,3716,2456,2443,13,1260,1244,16]
["Eaton","0000363","23380",375,213,93,60,33,239,213,0,0,0,213,2,211,144,120,24,69,7,3,0,59,0,0,144,120,0,6,30,31,13,7,16,14,3,24,1,6,4,8,0,5,0,0,0,331,270,61,144,120,29,55,13,16,7,0,0,24,10,9,2,0,2,1,0,2,2,3,213,2,0,6,21,38,56,29,10,51,6,1423,213,194,4,4,11,0,0,0,0,0,0,144,120,114,0,3,3,0,0,0,0,0,0,24,20,2,0,2,0,0,0,0,0,0,331,270,263,0,2,5,0,0,0,0,0,0,61,56,3,0,2,0,0,0,0,0,0,144,120,2,0,8,37,11,8,6,0,48,24,0,5,3,0,2,4,0,2,8,144,0,25,3,86,0,30,0,0,0,213,2,7,59,94,38,13,144,120,0,2,31,49,29,9,24,0,0,8,12,2,2,144,120,120,0,24,24,0,144,120,120,0,24,24,0]
["Effingham","0000368","23620",1273,791,369,236,133,791,791,0,0,0,791,0,791,490,392,98,301,0,13,2,276,0,10,490,392,4,34,87,94,47,37,48,29,12,98,17,26,30,12,0,6,0,5,2,1193,994,199,490,392,75,170,63,47,31,6,0,98,41,31,11,12,3,0,0,2,3,2,791,10,14,101,159,191,130,99,53,34,5,4169,791,614,4,9,12,2,20,0,0,130,0,490,392,325,0,2,2,0,0,0,0,63,0,98,41,4,7,10,2,20,0,0,14,0,1193,994,826,0,4,8,0,0,0,0,156,0,199,83,6,14,19,2,38,0,0,37,0,490,392,2,22,43,95,55,25,7,14,129,98,5,0,21,14,18,14,10,2,14,490,4,52,7,355,0,72,0,0,0,791,13,78,309,298,83,10,490,392,4,25,112,183,62,6,98,4,25,42,17,10,0,490,392,381,11,98,94,4,490,392,391,1,98,96,2]
["Freedom","0000373","27700",1303,1406,641,274,367,1406,1406,0,0,0,1406,4,1402,602,534,68,804,2,19,0,772,0,11,602,534,2,42,75,117,50,56,118,70,4,68,0,27,13,4,0,4,11,7,2,1297,1163,134,602,534,134,266,62,49,19,4,0,68,34,24,4,4,2,0,0,2,2,2,1406,9,7,84,324,322,232,158,148,122,5,8083,1406,1204,85,10,4,4,0,0,0,97,2,602,534,484,13,2,0,2,0,0,0,33,0,68,47,5,8,4,0,0,0,0,4,0,1297,1163,1064,31,2,0,4,0,0,0,62,0,134,90,11,13,6,0,0,0,0,14,0,602,534,9,43,35,154,99,55,30,5,104,68,0,4,0,21,10,0,2,4,27,602,2,76,32,433,0,59,0,0,0,1406,9,71,521,586,160,59,602,534,0,15,165,255,73,26,68,0,4,36,19,9,0,602,534,520,14,68,67,1,602,534,532,2,68,68,0]
["Hale's Location","0000378","32500",58,61,29,14,15,65,61,0,0,0,61,0,61,31,31,0,30,2,2,0,26,0,0,31,31,0,0,3,2,2,4,16,4,0,0,0,0,0,0,0,0,0,0,0,61,61,0,31,31,5,26,0,0,0,0,0,0,0,0,0,0,0,0,0,2,2,0,61,0,0,4,2,0,9,33,13,0,7,409,61,59,2,0,0,0,0,0,0,0,0,31,31,29,2,0,0,0,0,0,0,0,0,0,0,0,0,0,0,0,0,0,0,0,61,61,57,4,0,0,0,0,0,0,0,0,0,0,0,0,0,0,0,0,0,0,0,31,31,7,17,2,0,0,0,0,0,5,0,0,0,0,0,0,0,0,0,0,31,0,14,0,17,0,0,0,0,0,61,0,4,7,39,11,0,31,31,0,0,2,23,6,0,0,0,0,0,0,0,0,31,31,31,0,0,0,0,31,31,31,0,0,0,0]
["Hart's Location","0000383","34500",37,54,24,5,19,50,54,0,0,0,54,0,54,12,9,3,42,0,0,0,42,0,0,12,9,0,2,2,2,3,0,0,0,0,3,0,0,0,3,0,0,0,0,0,33,30,3,12,9,2,3,0,2,2,0,0,3,3,0,0,0,0,0,0,3,3,1,54,4,9,15,15,0,4,4,3,0,3,203,54,54,0,0,0,0,0,0,0,0,0,12,9,9,0,0,0,0,0,0,0,0,0,3,3,0,0,0,0,0,0,0,0,0,33,30,30,0,0,0,0,0,0,0,0,0,3,3,0,0,0,0,0,0,0,0,0,12,9,0,0,0,5,4,0,0,0,0,3,0,0,0,3,0,0,0,0,0,12,0,5,0,0,0,7,0,0,0,54,4,30,9,11,0,0,12,9,0,0,2,7,0,0,3,0,3,0,0,0,0,12,9,9,0,3,3,0,12,9,9,0,3,0,3]
["Jackson","0000388","38260",835,886,388,155,233,910,886,0,0,0,886,2,884,364,269,95,522,2,4,3,433,0,80,364,269,0,6,49,39,33,32,62,45,3,95,4,40,32,12,0,0,3,2,2,793,622,171,364,269,58,136,43,19,5,4,4,95,42,33,12,3,3,2,0,2,2,2,886,8,29,86,112,134,189,118,105,105,6,5292,886,706,66,16,77,16,0,2,0,3,0,364,269,246,21,0,2,0,0,0,0,0,0,95,70,4,11,5,0,0,2,0,3,0,793,622,569,48,0,5,0,0,0,0,0,0,171,139,4,15,7,0,0,4,0,2,0,364,269,5,33,18,61,34,45,19,7,47,95,0,2,9,8,29,14,13,4,16,364,3,79,24,208,0,47,0,3,0,886,12,94,228,371,117,64,364,269,0,5,58,138,53,15,95,2,30,28,26,7,2,364,269,269,0,95,95,0,364,269,269,0,95,95,0]
["Madison","0000393","45060",1984,1615,715,326,389,1589,1615,0,0,0,1615,0,1615,790,643,147,825,4,11,14,774,0,22,790,643,5,74,151,178,56,60,65,45,9,147,10,42,42,28,0,2,7,7,9,2026,1673,353,790,643,115,258,100,111,36,12,11,147,50,47,20,19,11,0,0,3,3,2,1615,9,32,80,214,418,368,230,139,125,6,9439,1615,1441,34,33,4,0,2,20,0,78,3,790,643,598,6,2,0,0,0,3,0,34,0,147,70,6,24,4,0,2,15,0,26,0,2026,1673,1563,7,4,0,0,0,4,0,95,0,353,170,12,49,15,0,4,23,0,80,0,790,643,17,28,31,222,152,40,32,11,110,147,2,4,2,44,25,38,2,0,30,790,2,135,28,526,3,96,0,0,0,1615,12,89,423,770,266,55,790,643,0,22,161,329,106,25,147,7,20,77,26,13,4,790,643,643,0,147,143,4,790,643,643,0,147,147,0]
["Moultonborough","0000399","49380",4484,4523,1126,453,673,4523,4523,0,0,0,4523,8,4515,1884,1631,253,2639,17,42,12,2536,4,28,1884,1631,5,106,235,384,214,154,338,184,11,253,15,71,67,36,13,4,27,16,4,4453,3889,564,1884,1631,350,794,194,192,77,24,0,253,95,49,56,30,23,0,0,2,2,2,4523,23,80,260,625,1101,995,639,419,381,6,26573,4523,4137,133,33,24,35,15,0,0,137,9,1884,1631,1554,31,0,0,0,0,0,0,46,0,253,153,19,22,3,12,7,0,0,32,5,4453,3889,3732,61,0,0,0,0,0,0,96,0,564,384,33,52,8,18,8,0,0,58,3,1884,1631,40,136,191,364,318,210,114,40,218,253,0,12,19,51,36,37,11,16,71,1884,2,418,84,1214,0,157,4,0,5,4523,23,316,1052,2247,684,201,1884,1631,0,50,326,937,265,53,253,8,44,57,95,34,15,1884,1631,1612,19,253,253,0,1884,1631,1626,5,253,248,5]
["Ossipee","0000407","58740",4211,2742,471,277,194,2742,2742,0,0,0,2742,20,2722,1672,1322,350,1070,33,32,0,947,0,58,1672,1322,31,97,248,296,168,109,232,141,0,350,15,114,116,37,7,6,42,7,6,4063,3229,834,1672,1322,304,552,192,179,67,21,7,350,118,112,35,41,28,0,16,2,2,2,2742,24,136,270,463,701,593,251,239,65,5,14340,2742,2031,70,52,39,20,11,13,0,506,0,1672,1322,1024,17,9,7,0,0,0,0,265,0,350,154,13,43,18,20,11,13,0,78,0,4063,3229,2533,50,8,14,0,0,0,0,624,0,834,358,12,80,43,27,42,12,0,260,0,1672,1322,40,112,99,378,222,76,50,73,272,350,7,0,15,80,75,32,5,10,126,1672,7,365,65,1065,0,165,0,0,5,2742,37,336,979,1155,214,21,1672,1322,6,105,482,584,131,14,350,7,89,124,128,0,2,1672,1322,1316,6,350,342,8,1672,1322,1322,0,350,344,6]
["Sandwich","0000414","67780",1286,965,467,268,199,965,965,0,0,0,965,15,950,564,452,112,401,1,19,9,367,0,5,564,452,0,15,70,118,36,45,85,62,21,112,6,17,29,27,2,0,11,12,8,1286,1035,251,564,452,104,218,50,62,10,6,2,112,46,28,23,10,2,2,1,2,2,2,965,24,43,80,123,161,167,158,98,111,6,5649,965,886,33,8,0,8,0,0,0,28,2,564,452,434,4,2,0,0,0,0,0,12,0,112,80,17,4,0,8,0,0,0,3,0,1286,1035,998,10,2,0,0,0,0,0,25,0,251,205,26,7,0,8,0,0,0,5,0,564,452,5,34,39,89,62,15,14,16,178,112,0,2,17,14,12,6,2,2,57,564,0,69,22,341,5,125,2,0,0,965,28,136,269,313,169,50,564,452,2,16,124,191,96,23,112,6,19,43,29,11,4,564,452,442,10,112,101,11,564,452,444,8,112,105,7]
["Tamworth","0000419","76100",2510,1677,779,500,279,1662,1677,0,0,0,1677,17,1660,1099,825,274,578,11,20,8,526,0,13,1099,825,8,52,194,182,73,75,115,100,26,274,33,58,59,48,13,15,24,16,8,2555,1936,619,1099,825,192,342,123,106,56,6,0,274,111,82,34,29,11,7,0,2,2,2,1677,25,73,177,290,325,322,215,120,130,5,9184,1677,1331,44,28,42,19,17,0,0,184,12,1099,825,711,12,2,2,0,0,0,0,98,0,274,129,24,22,37,19,17,0,0,26,0,2555,1936,1682,19,3,5,0,0,0,0,227,0,619,294,31,45,115,48,24,0,0,62,0,1099,825,14,64,67,190,161,65,20,22,222,274,4,23,12,49,52,10,9,7,108,1099,2,181,57,678,2,179,0,0,0,1677,29,196,570,590,195,97,1099,825,0,42,252,356,128,47,274,11,85,104,40,25,9,1099,825,821,4,274,269,5,1099,825,820,5,274,271,3]
["Tuftonboro","0000425","77620",2148,2019,919,430,489,2019,2019,0,0,0,2019,17,2002,926,806,120,1093,2,20,6,1054,0,11,926,806,0,46,111,212,82,73,158,95,29,120,5,26,24,30,8,8,13,4,2,2148,1916,232,926,806,172,385,103,105,22,9,10,120,42,45,19,14,0,0,0,2,2,2,2019,13,36,151,381,425,350,269,163,231,6,11784,2019,1732,43,19,47,22,2,0,0,152,2,926,806,743,9,7,0,2,0,0,0,45,0,120,73,6,12,18,3,2,0,0,6,0,2148,1916,1780,22,32,0,4,0,0,0,78,0,232,141,7,21,34,8,4,0,0,17,0,926,806,12,51,55,167,179,62,63,4,213,120,0,4,0,26,38,12,5,9,26,926,9,106,26,723,0,60,0,0,2,2019,13,160,682,796,280,88,926,806,0,31,195,395,151,34,120,0,22,49,37,10,2,926,806,804,2,120,120,0,926,806,806,0,120,120,0]
["Wakefield","0000432","78180",4252,3330,803,404,399,3331,3330,0,0,0,3330,6,3324,1684,1401,283,1646,16,11,3,1601,0,15,1684,1401,11,157,294,312,147,108,222,121,29,283,20,82,67,35,20,14,40,5,0,4251,3649,602,1684,1401,303,582,180,194,100,28,14,283,71,90,56,42,14,5,5,3,3,2,3330,15,71,221,568,958,621,433,224,219,5,18621,3330,2918,39,58,86,4,0,27,0,185,13,1684,1401,1251,26,14,7,4,0,0,0,99,0,283,107,0,32,54,0,0,24,0,66,0,4251,3649,3270,50,40,18,4,0,0,0,267,0,602,244,0,75,104,0,0,29,0,150,0,1684,1401,11,70,99,357,321,78,88,33,344,283,0,5,52,83,19,18,19,5,82,1684,0,362,110,1059,0,148,0,5,0,3330,19,269,1266,1323,315,138,1684,1401,0,48,434,639,194,86,283,0,72,103,75,23,10,1684,1401,1401,0,283,283,0,1684,1401,1401,0,283,283,0]
["Wolfeboro","0000440","86420",6083,3903,498,315,183,3903,3903,0,0,0,3903,20,3883,2574,1985,589,1329,9,55,0,1210,0,55,2574,1985,6,152,403,337,207,119,363,310,88,589,21,103,170,113,22,10,50,51,49,5977,5023,954,2574,1985,442,888,264,240,103,13,35,589,295,146,61,58,21,8,0,2,3,2,3903,8,121,299,500,679,968,484,308,536,6,23562,3903,3092,157,151,217,76,0,87,0,107,16,2574,1985,1772,52,47,8,0,0,16,0,82,8,589,173,16,66,182,71,0,71,0,10,0,5977,5023,4548,100,156,17,0,0,25,0,168,9,954,379,74,86,261,83,0,59,0,12,0,2574,1985,106,197,172,409,275,194,152,38,442,589,0,10,19,69,60,56,71,35,269,2574,0,247,316,1884,0,109,0,18,0,3903,16,489,1193,1410,611,184,2574,1985,0,65,576,906,325,113,589,8,250,159,136,36,0,2574,1985,1960,25,589,581,8,2574,1985,1959,26,589,578,11]
[]
[]
[]
[]
["Census 2000 SummaryFile3 Sample Data  -  SF3TownQry8HousingCostA"]
[]
["TOWN_NAME","LOGRECNO","COUSUB","TotalPop","H62RntrOccHU","H62RntrOccHUwRent","H62ROHUGRent<100","H62ROHUGRent100to149","H62ROHUGRent150to199","H62ROHUGRent200to249","H62ROHUGRent250to299","H62ROHUGRent300to349","H62ROHUGRent350to399","H62ROHUGRent400to449","H62ROHUGRent450to499","H62ROHUGRent500to549","H62ROHUGRent550to599","H62ROHUGRent600to649","H62ROHUGRent650to699","H62ROHUGRent700to749","H62ROHUGRent750to799","H62ROHUGRent800to899","H62ROHUGRent900to999","H62ROHUGRent1000to1249","H62ROHUGRent1250to1499","H62ROHUGRent1500to1999","H62ROHUGRent2000>","H62ROHUNoGRent","H63MedianGrossRnt","H69RenterOccHsU","H69GRnt<10PctHHInc","H69GRnt10to15PctHHInc","H69GRnt15to20PctHHInc","H69GRnt20to25PctHHInc","H69GRnt25to30PctHHInc","H69GRnt30to35PctHHInc","H69GRnt35to40PctHHInc","H69GRnt40to50PctHHInc","H69GRnt>50PctHHInc","H69GRntPctNotcomputed","H73RenterOccHU","H73ROHUHhInc<10k","H73ROHUHhInc<10kRnt<20pct","H73ROHUHhInc<10kRnt20to25pct","H73ROHUHhInc<10kRnt25to30pct","H73ROHUHhInc<10kRnt30to35pct","H73ROHUHhInc<10kRnt>35pct","H73ROHUHhInc<10kPctNotComput","H73ROHUHhInc10to20k","H73ROHUHhInc10to20kRnt<20pct","H73ROHUHhInc10to20kRnt20to25pct","H73ROHUHhInc10to20kRnt25to30pct","H73ROHUHhInc10to20kRnt30to35pct","H73ROHUHhInc10to20kRnt>35pct","H73ROHUHhInc10to20kRntPctNC","H73ROHUHhInc20to35k","H73ROHUHhInc20to35kRnt<20pct","H73ROHUHhInc20to35kRnt20to25pct","H73ROHUHhInc20to35kRnt25to30pct","H73ROHUHhInc20to35kRnt30to35pct","H73ROHUHhInc20to35kRnt>35pct","H73ROHUHhInc20to35kRntPctNC","H73ROHUHhInc35to40k","H73ROHUHhInc35to40kRnt<20pct","H73ROHUHhInc35to40kRnt20to25pct","H73ROHUHhInc35to40kRnt25to30pct","H73ROHUHhInc35to40kRnt30to35pct","H73ROHUHhInc35to40kRnt>35pct","H73ROHUHhInc35to40kRntPctNC","H73ROHUHhInc50to75k","H73ROHUHhInc50to75kRnt<20pct","H73ROHUHhInc50to75kRnt20to25pct","H73ROHUHhInc50to75kRnt25to30pct","H73ROHUHhInc50to75kRnt30to35pct","H73ROHUHhInc50to75kRnt>35pct","H73ROHUHhInc50to75kRntPctNC","H73ROHUHhInc75to100k","H73ROHUHhInc75to100kRnt<20pct","H73ROHUHhInc75to100kRnt20to25pct","H73ROHUHhInc75to100kRnt25to30pct","H73ROHUHhInc75to100kRnt30to35pct","H73ROHUHhInc75to100kRnt>35pct","H73ROHUHhInc75to100kRntPctNC","H73ROHUHhInc>100k","H73ROHUHhInc>100kRnt<20pct","H73ROHUHhInc>100kRnt20to25pct","H73ROHUHhInc>100kRnt25to30pct","H73ROHUHhInc>100kRnt30to35pct","H73ROHUHhInc>100kRnt>35pct","H73ROHUHhInc>100kRntPctNC"]
["Albany","0000308","00420",654,50,46,0,0,0,0,3,1,2,3,2,0,4,4,8,9,2,6,2,0,0,0,0,4,675,50,4,5,5,9,4,2,0,8,7,6,50,7,0,0,0,0,5,2,13,3,0,0,0,8,2,10,0,0,4,2,2,2,7,0,7,0,0,0,0,9,7,2,0,0,0,0,2,2,0,0,0,0,0,2,2,0,0,0,0,0]
["Bartlett","0000313","03700",2705,327,297,0,0,0,3,3,16,13,32,32,23,25,15,33,23,10,37,13,19,0,0,0,30,605,327,26,46,54,38,24,8,17,16,62,36,327,45,0,0,0,0,36,9,61,0,0,3,0,48,10,84,22,20,13,8,11,10,50,24,13,8,0,0,5,62,55,5,0,0,0,2,21,21,0,0,0,0,0,4,4,0,0,0,0,0]
["Brookfield","0000320","07940",604,9,9,0,0,0,0,0,0,0,0,0,5,0,0,0,0,0,2,2,0,0,0,0,0,545,9,0,0,5,0,2,0,0,0,2,0,9,0,0,0,0,0,0,0,2,0,0,0,0,2,0,2,0,0,2,0,0,0,3,3,0,0,0,0,0,2,2,0,0,0,0,0,0,0,0,0,0,0,0,0,0,0,0,0,0,0]
["Chatham","0000325","11780",260,13,13,0,2,0,0,0,0,0,0,0,2,3,3,3,0,0,0,0,0,0,0,0,0,592,13,2,3,0,0,5,0,3,0,0,0,13,0,0,0,0,0,0,0,2,2,0,0,0,0,0,8,0,0,5,0,3,0,0,0,0,0,0,0,0,3,3,0,0,0,0,0,0,0,0,0,0,0,0,0,0,0,0,0,0,0]
["Conway","0000330","14660",8604,1258,1215,22,30,46,54,29,67,74,111,106,139,80,88,53,68,62,73,36,38,21,18,0,43,525,1258,123,162,156,167,143,154,72,88,150,43,1258,190,11,29,0,13,131,6,296,32,27,27,55,137,18,345,70,53,95,86,33,8,184,127,32,9,0,9,7,175,141,18,12,0,0,4,49,41,8,0,0,0,0,19,19,0,0,0,0,0]
["Eaton","0000363","23380",375,22,18,0,0,0,0,0,2,0,0,0,0,2,7,0,2,0,1,4,0,0,0,0,4,636,22,0,5,2,0,4,0,0,0,7,4,22,4,0,0,0,0,4,0,3,0,0,0,0,3,0,8,0,0,4,0,0,4,2,2,0,0,0,0,0,4,4,0,0,0,0,0,0,0,0,0,0,0,0,1,1,0,0,0,0,0]
["Effingham","0000368","23620",1273,86,74,0,0,2,0,0,2,5,4,10,16,7,11,2,7,0,6,0,2,0,0,0,12,544,86,4,8,11,14,12,4,6,3,12,12,86,8,0,0,0,0,6,2,21,2,0,2,0,13,4,35,4,11,8,4,2,6,11,8,1,2,0,0,0,9,7,2,0,0,0,0,0,0,0,0,0,0,0,2,2,0,0,0,0,0]
["Freedom","0000373","27700",1303,66,47,0,0,0,0,2,6,0,2,5,6,10,6,3,3,2,2,0,0,0,0,0,19,563,66,3,2,14,4,4,5,5,4,6,19,66,17,0,0,0,0,6,11,8,0,2,2,0,4,0,28,8,2,2,5,5,6,6,4,0,0,0,0,2,3,3,0,0,0,0,0,2,2,0,0,0,0,0,2,2,0,0,0,0,0]
["Hale's Location","0000378","32500",58,0,0,0,0,0,0,0,0,0,0,0,0,0,0,0,0,0,0,0,0,0,0,0,0,0,0,0,0,0,0,0,0,0,0,0,0,0,0,0,0,0,0,0,0,0,0,0,0,0,0,0,0,0,0,0,0,0,0,0,0,0,0,0,0,0,0,0,0,0,0,0,0,0,0,0,0,0,0,0,0,0,0,0,0,0,0]
["Hart's Location","0000383","34500",37,3,0,0,0,0,0,0,0,0,0,0,0,0,0,0,0,0,0,0,0,0,0,0,3,0,3,0,0,0,0,0,0,0,0,0,3,3,0,0,0,0,0,0,0,3,0,0,0,0,0,3,0,0,0,0,0,0,0,0,0,0,0,0,0,0,0,0,0,0,0,0,0,0,0,0,0,0,0,0,0,0,0,0,0,0,0]
["Jackson","0000388","38260",835,76,68,0,0,0,0,0,2,0,8,19,7,5,6,2,5,4,0,0,8,2,0,0,8,536,76,5,15,8,11,4,5,7,6,7,8,76,0,0,0,0,0,0,0,18,0,0,2,0,16,0,17,2,9,2,0,4,0,21,8,0,0,5,0,8,18,18,0,0,0,0,0,2,0,2,0,0,0,0,0,0,0,0,0,0,0]
["Madison","0000393","45060",1984,136,120,2,0,0,2,0,0,5,5,8,26,16,18,7,6,14,9,0,0,2,0,0,16,588,136,18,4,29,23,13,3,8,7,15,16,136,9,0,0,0,0,7,2,24,0,0,0,0,19,5,47,9,16,13,3,4,2,27,18,7,0,0,0,2,12,10,0,0,0,0,2,10,7,0,0,0,0,3,7,7,0,0,0,0,0]
["Moultonborough","0000399","49380",4484,231,169,0,0,0,0,10,0,11,9,12,13,15,24,27,4,14,15,10,5,0,0,0,62,630,231,16,26,49,24,12,15,3,0,24,62,231,28,0,0,0,0,24,4,14,0,0,4,4,3,3,62,8,6,8,11,0,29,73,37,14,0,0,0,22,29,25,4,0,0,0,0,21,17,0,0,0,0,4,4,4,0,0,0,0,0]
["Ossipee","0000407","58740",4211,329,307,0,0,7,6,13,25,18,54,45,28,19,21,13,0,12,17,21,1,7,0,0,22,484,329,21,42,57,44,23,27,25,21,47,22,329,48,7,0,0,0,41,0,56,0,0,11,7,38,0,102,35,21,5,13,14,14,78,34,22,7,7,0,8,38,37,1,0,0,0,0,0,0,0,0,0,0,0,7,7,0,0,0,0,0]
["Sandwich","0000414","67780",1286,72,58,0,2,5,4,10,2,0,3,0,0,6,2,6,3,3,4,8,0,0,0,0,14,575,72,10,6,10,5,6,5,3,0,13,14,72,10,0,0,0,0,8,2,19,4,2,0,0,7,6,16,4,0,4,5,1,2,14,11,1,2,0,0,0,9,5,2,0,0,0,2,4,2,0,0,0,0,2,0,0,0,0,0,0,0]
["Tamworth","0000419","76100",2510,249,226,2,23,10,4,2,16,9,16,18,25,26,20,10,10,10,20,2,3,0,0,0,23,526,249,8,33,42,28,37,18,11,20,29,23,249,59,4,6,13,2,25,9,58,10,2,8,7,26,5,71,19,14,14,9,9,6,32,21,6,2,0,0,3,20,20,0,0,0,0,0,7,7,0,0,0,0,0,2,2,0,0,0,0,0]
["Tuftonboro","0000425","77620",2148,105,80,0,4,0,0,0,0,3,2,8,11,9,9,9,5,8,8,0,2,2,0,0,25,617,105,10,9,18,13,11,2,2,6,9,25,105,9,0,0,0,0,5,4,12,2,0,0,0,10,0,28,2,4,9,2,0,11,40,19,9,2,0,2,8,12,12,0,0,0,0,0,4,2,0,0,0,0,2,0,0,0,0,0,0,0]
["Wakefield","0000432","78180",4252,283,243,0,9,5,15,5,4,7,18,32,10,45,18,15,10,8,19,10,13,0,0,0,40,568,283,10,11,71,31,23,20,27,14,36,40,283,40,5,4,5,0,26,0,74,5,5,5,15,38,6,58,14,14,4,5,13,8,48,21,4,9,0,0,14,58,42,4,0,0,0,12,0,0,0,0,0,0,0,5,5,0,0,0,0,0]
["Wolfeboro","0000440","86420",6083,579,541,10,10,41,10,8,10,11,37,78,37,9,80,66,0,22,56,21,26,0,0,9,38,606,579,47,20,90,116,52,34,48,30,86,56,579,116,10,10,20,0,58,18,81,10,11,0,0,50,10,164,52,27,11,18,56,0,87,19,40,21,7,0,0,92,44,28,0,0,0,20,39,22,0,0,9,0,8,0,0,0,0,0,0,0]
[]
[]
[]
[]
["Census 2000 SummaryFile3 Sample Data  -  SF3TownQry8HousingCostB"]
[]
["TOWN_NAME","LOGRECNO","COUSUB","TotalPop","H74SpecOwnerOccHU","H74OOHU<10k","H74OOHU10to15k","H74OOHU15to20k","H74OOHU20to25k","H74OOHU25to30k","H74OOHU30to35k","H74OOHU35to40k","H74OOHU40to50k","H74OOHU50to60k","H74OOHU60to70k","H74OOHU70to80k","H74OOHU80to90k","H74OOHU90to100k","H74OOHU100to125k","H74OOHU125to150k","H74OOHU150to175k","H74OOHU175to200k","H74OOHU200to250k","H74OOHU250to300k","H74OOHU300to400k","H74OOHU400to500k","H74OOHU500to750k","H74OOHU750to1000k","H74OOHU1000kmore","H76OOHUMedianVal","H84OwnerOccHU","H84AllOOHU<10k","H84AllOOHU10to15k","H84AllOOHU15to20k","H84AllOOHU20to25k","H84AllOOHU25to30k","H84AllOOHU30to35k","H84AllOOHU35to40k","H84AllOOHU40to50k","H84AllOOHU50to60k","H84AllOOHU60to70k","H84AllOOHU70to80k","H84AllOOHU80to90k","H84AllOOHU90to100k","H84AllOOHU100to125k","H84AllOOHU125to150k","H84AllOOHU150to175k","H84AllOOHU175to200k","H84AllOOHU200to250k","H84AllOOHU250to300k","H84AllOOHU300to400k","H84AllOOHU400to500k","H84AllOOHU500to750k","H84AllOOHU750to1000k","H84AllOOHU1000kmore","H85OOHUMedVal","H90SOOHU","H90HUwMorgt","H90HUwMtgHC<200","H90HUwMtgHC200to300","H90HUwMtgHC300to400","H90HUwMtgHC400to500","H90HUwMtgHC500to600","H90HUwMtgHC600to700","H90HUwMtgHC700to800","H90HUwMtgHC800to900","H90HUwMtgHC900to1000","H90HUwMtgHC1000to1250","H90HUwMtgHC1250to1500","H90HUwMtgHC1500to2000","H90HUwMtgHC2000to2500","H90HUwMtgHC2500to3000","H90HUwMtgHC3000orMore","H90HUwOutMorgt","H90HUwOutMtgHC<100","H90HUwOutMtgHC100to150","H90HUwOutMtgHC150to200","H90HUwOutMtgHC200to250","H90HUwOutMtgHC250to300","H90HUwOutMtgHC300to350","H90HUwOutMtgHC350to400","H90HUwOutMtgHC400to500","H90HUwOutMtgHC500to600","H90HUwOutMtgHC600to700","H90HUwOutMtgHC700to800","H90HUwOutMtgHC800to900","H90HUwOutMtgHC900to1000","H90HUwOutMtgHC1000orMore","H91MedianOCHUwMtg","H91MedianOCHUwOutMtg","H94SpecOOHU","H94HUwMortg","H94HUwMtgHC<10pct","H94HUwMtgHC10to15pct","H94HUwMtgHC15to20pct","H94HUwMtgHC20to25pct","H94HUwMtgHC25to30pct","H94HUwMtgHC30to35pct","H94HUwMtgHC35to40pct","H94HUwMtgHC40to50pct","H94HUwMtgHC50pctOrMore","H94HUwMtgHCpctNotComp","H94HUWOutMortg","H94HUWOutMortgHC<10pct","H94HUWOutMortgHC10to15pct","H94HUWOutMortgHC15to20pct","H94HUWOutMortgHC20to25pct","H94HUWOutMortgHC25to30pct","H94HUWOutMortgHC30to35pct","H94HUWOutMortgHC35to40pct","H94HUWOutMortgHC40to50pct","H94HUWOutMortgHC50pctOrMore","H94HUWOutMortgHCpctNotComp","H97SpecifOwnOccHU","H97SOOHUInc<10k","H97SOOHUInc<10kHC<20pct","H97SOOHUInc<10kHC20to25pct","H97SOOHUInc<10kHC25to30pct","H97SOOHUInc<10kHC30to35pct","H97SOOHUInc<10kHC>35pct","H97SOOHUInc<10kHCpctNotComput","H97SOOHUInc10to20k","H97SOOHUInc10to20kHC<20pct","H97SOOHUInc10to20kHC20to25pct","H97SOOHUInc10to20kHC25to30pct","H97SOOHUInc10to20kHC30to35pct","H97SOOHUInc10to20kHC>35pct","H97SOOHUInc10to20kHCpctNotComput","H97SOOHUInc20to35k","H97SOOHUInc20to35kRC<20pct","H97SOOHUInc20to35kRC20to25pct","H97SOOHUInc20to35kRC25to30pct","H97SOOHUInc20to35kRC30to35pct","H97SOOHUInc20to35kRC>35pct","H97SOOHUInc20to35kRCpctNotComput","H97SOOHUInc35to50k","H97SOOHUInc35to50kRC<20pct","H97SOOHUInc35to50kRC20to25pct","H97SOOHUInc35to50kRC25to30pct","H97SOOHUInc35to50kRC30to35pct","H97SOOHUInc35to50kRC>35pct","H97SOOHUInc35to50kRCpctNotCompute","H97SOOHUInc50to75k","H97SOOHUInc50to75kRC<20pct","H97SOOHUInc50to75kRC20to25pct","H97SOOHUInc50to75kRC25to30pct","H97SOOHUInc50to75kRC30to35pct","H97SOOHUInc50to75kRC>35pct","H97SOOHUInc50to75kRCpctNotComput","H97SOOHUInc75to100k","H97SOOHUInc75to100kRC<20pct","H97SOOHUInc75to100kRC20to25pct","H97SOOHUInc75to100kRC25to30pct","H97SOOHUInc75to100kRC30to35pct","H97SOOHUInc75to100kRC>35pct","H97SOOHUInc75to100kRCpctNotCompute","H97SOOHUInc100to150k","H97SOOHUInc100to150kRC<20pct","H97SOOHUInc100to150kRC20to25pct","H97SOOHUInc100to150kRC25to30pct","H97SOOHUInc100to150kRC30to35pct","H97SOOHUInc100to150kRC>35pct","H97SOOHUInc100to150kRCpctNotCompute","H97SOOHUInc>150k","H97SOOHUInc>150kRC<20pct","H97SOOHUInc>150kRC20to25pct","H97SOOHUInc>150kRC25to30pct","H97SOOHUInc>150kRC30to35pct","H97SOOHUInc>150kRC>35pct","H97SOOHUInc>150kRCpctNotCompute"]
["Albany","0000308","00420",654,122,2,0,0,0,0,0,0,4,7,12,28,14,7,16,12,14,2,0,2,0,2,0,0,0,85700,187,4,12,8,14,3,3,0,12,7,12,30,14,7,20,14,16,4,0,2,0,2,3,0,0,76200,122,84,0,3,2,11,8,12,13,9,10,6,4,4,0,0,2,38,2,2,2,0,3,10,6,5,6,0,2,0,0,0,746,350,122,84,6,9,32,8,10,6,2,7,4,0,38,6,8,5,7,2,0,0,4,6,0,122,9,0,2,0,0,7,0,17,3,3,2,0,9,0,21,10,2,2,2,5,0,38,21,7,6,2,2,0,27,22,1,2,2,0,0,4,4,0,0,0,0,0,2,2,0,0,0,0,0,4,4,0,0,0,0,0]
["Bartlett","0000313","03700",2705,676,0,0,0,0,7,3,7,0,17,28,81,66,71,109,108,42,33,46,26,21,4,4,3,0,113300,891,3,0,0,2,9,6,13,6,22,34,91,83,94,145,133,51,43,68,32,34,9,7,6,0,114200,676,428,0,0,9,26,24,47,89,48,52,59,35,23,14,0,2,248,0,8,9,35,41,48,54,32,10,2,2,2,0,5,840,332,676,428,19,46,101,66,60,36,34,30,36,0,248,98,48,34,18,12,8,10,11,7,2,676,27,3,0,0,0,22,2,93,11,16,10,13,43,0,123,52,2,16,14,39,0,161,86,28,28,11,8,0,156,96,26,16,4,14,0,54,38,12,2,2,0,0,34,32,0,0,0,2,0,28,28,0,0,0,0,0]
["Brookfield","0000320","07940",604,151,0,0,0,0,0,0,0,4,0,4,13,6,18,37,34,18,7,8,2,0,0,0,0,0,120600,226,0,0,0,0,0,0,0,4,0,4,15,6,22,42,46,25,13,21,15,1,12,0,0,0,135900,151,97,0,0,0,5,5,5,11,14,10,20,15,12,0,0,0,54,0,0,0,0,4,25,5,15,5,0,0,0,0,0,985,346,151,97,9,20,23,14,11,8,7,3,2,0,54,17,14,7,4,4,6,0,0,2,0,151,2,0,0,0,0,2,0,11,0,2,4,3,2,0,15,6,2,0,5,2,0,32,17,4,4,2,5,0,62,40,8,7,4,3,0,16,14,2,0,0,0,0,6,6,0,0,0,0,0,7,7,0,0,0,0,0]
["Chatham","0000325","11780",260,35,0,0,0,0,2,0,0,0,1,2,0,3,6,8,4,4,0,4,0,1,0,0,0,0,110900,86,0,0,0,0,2,0,0,5,4,6,2,5,8,21,7,11,2,6,0,5,0,0,0,2,113100,35,25,0,2,0,5,8,7,0,0,0,0,0,2,0,1,0,10,0,0,0,4,0,2,0,4,0,0,0,0,0,0,569,325,35,25,3,6,2,4,0,4,0,4,2,0,10,6,4,0,0,0,0,0,0,0,0,35,0,0,0,0,0,0,0,6,0,0,0,0,6,0,5,2,1,0,2,0,0,10,8,2,0,0,0,0,6,4,0,0,2,0,0,6,6,0,0,0,0,0,2,1,1,0,0,0,0,0,0,0,0,0,0,0]
["Conway","0000330","14660",8604,1699,0,5,0,0,0,16,21,8,33,151,86,294,175,346,221,106,71,74,63,6,0,16,0,7,104400,2456,26,71,32,79,20,73,37,69,87,177,146,319,198,407,237,131,107,85,87,23,14,18,6,7,94600,1699,1166,0,0,14,52,89,146,159,153,162,202,112,58,12,7,0,533,0,0,44,42,57,67,79,124,58,22,21,0,7,12,880,386,1699,1166,81,178,327,197,118,72,54,47,86,6,533,144,127,81,57,22,36,6,18,36,6,1699,79,0,7,2,9,49,12,173,26,7,20,27,93,0,283,128,33,35,21,66,0,398,158,106,59,44,31,0,419,308,72,24,7,8,0,154,130,24,0,0,0,0,144,139,5,0,0,0,0,49,49,0,0,0,0,0]
["Eaton","0000363","23380",375,58,0,0,0,3,0,0,0,0,0,2,5,5,8,19,3,5,4,0,2,2,0,0,0,0,107900,120,0,0,0,3,0,0,0,0,0,2,5,5,13,32,6,13,8,10,5,8,2,8,0,0,125000,58,19,0,0,0,2,0,0,3,0,2,4,6,2,0,0,0,39,0,0,5,4,0,6,6,14,0,2,2,0,0,0,1156,388,58,19,2,3,5,3,0,2,2,0,2,0,39,12,12,5,4,0,4,0,0,0,2,58,4,0,0,0,2,0,2,11,5,2,0,2,2,0,2,0,2,0,0,0,0,13,11,0,0,2,0,0,18,16,0,0,0,2,0,7,4,3,0,0,0,0,3,3,0,0,0,0,0,0,0,0,0,0,0,0]
["Effingham","0000368","23620",1273,235,0,0,0,0,0,4,2,11,12,11,21,42,38,48,23,12,3,5,0,1,2,0,0,0,93800,392,4,2,2,2,2,10,8,31,17,19,35,59,48,64,40,15,7,14,4,5,2,2,0,0,91000,235,156,0,0,4,7,7,12,24,41,23,23,5,10,0,0,0,79,0,2,8,4,12,16,18,17,2,0,0,0,0,0,859,342,235,156,8,15,26,25,24,24,4,13,14,3,79,29,15,9,7,9,4,0,2,3,1,235,19,0,0,0,4,11,4,19,6,0,7,0,6,0,53,8,9,6,15,15,0,57,20,14,12,9,2,0,50,33,9,6,0,2,0,26,24,0,2,0,0,0,8,8,0,0,0,0,0,3,3,0,0,0,0,0]
["Freedom","0000373","27700",1303,361,2,0,0,0,0,0,0,7,3,15,15,14,23,83,50,52,25,31,19,9,9,2,2,0,134300,534,5,0,0,3,8,0,5,12,3,17,25,19,32,99,70,64,41,46,37,29,11,6,2,0,138900,361,176,0,0,7,7,7,11,25,26,14,39,24,14,0,0,2,185,0,0,8,12,35,41,26,39,7,12,0,3,0,2,936,346,361,176,13,15,31,34,21,20,8,18,16,0,185,49,55,25,14,14,9,0,6,9,4,361,18,0,0,0,2,12,4,43,11,9,11,3,9,0,101,46,5,9,14,27,0,79,43,10,13,6,7,0,72,50,14,2,4,2,0,22,14,8,0,0,0,0,19,19,0,0,0,0,0,7,5,2,0,0,0,0]
["Hale's Location","0000378","32500",58,31,0,0,2,0,0,0,0,0,0,0,0,0,0,0,0,0,0,3,0,20,6,0,0,0,352500,31,0,0,2,0,0,0,0,0,0,0,0,0,0,0,0,0,0,3,0,20,6,0,0,0,352500,31,11,0,0,0,0,0,0,0,3,0,2,0,2,4,0,0,20,0,0,0,0,0,8,6,6,0,0,0,0,0,0,1563,367,31,11,0,0,0,5,0,2,2,0,2,0,20,9,4,2,2,0,0,0,3,0,0,31,0,0,0,0,0,0,0,7,0,2,0,0,5,0,8,6,0,0,0,2,0,3,0,3,0,0,0,0,9,7,0,0,2,0,0,0,0,0,0,0,0,0,4,2,2,0,0,0,0,0,0,0,0,0,0,0]
["Hart's Location","0000383","34500",37,7,0,0,0,0,0,0,0,0,0,0,0,0,0,2,0,2,0,3,0,0,0,0,0,0,168800,9,0,0,0,0,0,0,0,2,0,0,0,0,0,2,0,2,0,3,0,0,0,0,0,0,156300,7,2,0,0,0,0,0,0,0,0,2,0,0,0,0,0,0,5,0,0,0,2,0,3,0,0,0,0,0,0,0,0,950,308,7,2,0,2,0,0,0,0,0,0,0,0,5,0,5,0,0,0,0,0,0,0,0,7,0,0,0,0,0,0,0,0,0,0,0,0,0,0,2,2,0,0,0,0,0,3,3,0,0,0,0,0,0,0,0,0,0,0,0,2,2,0,0,0,0,0,0,0,0,0,0,0,0,0,0,0,0,0,0,0]
["Jackson","0000388","38260",835,211,0,0,0,0,0,0,0,0,8,0,2,17,4,24,23,20,9,37,19,23,12,13,0,0,195800,269,0,0,0,0,0,0,0,0,10,0,2,17,4,26,27,26,14,41,33,31,21,17,0,0,210400,211,81,0,0,0,5,4,4,3,9,10,14,10,12,4,3,3,130,3,2,3,13,12,12,18,35,16,6,7,0,3,0,1098,406,211,81,4,20,13,6,11,5,5,7,10,0,130,59,20,9,4,3,8,5,2,18,2,211,30,3,0,0,0,25,2,24,7,2,3,5,7,0,22,6,2,3,6,5,0,21,13,0,6,0,2,0,44,34,3,0,2,5,0,36,28,3,2,0,3,0,27,27,0,0,0,0,0,7,7,0,0,0,0,0]
["Madison","0000393","45060",1984,474,0,0,0,0,0,0,3,10,13,23,38,72,36,132,68,33,5,25,5,5,0,6,0,0,108000,643,2,0,0,0,2,0,5,30,17,37,48,77,43,159,94,38,14,37,18,5,5,9,0,3,109500,474,310,0,0,9,16,36,23,33,58,34,54,26,14,7,0,0,164,0,2,6,23,26,31,36,19,10,7,2,0,2,0,866,340,474,310,18,53,63,51,43,22,22,21,17,0,164,67,37,25,16,8,3,4,0,4,0,474,6,0,0,0,0,6,0,48,11,9,7,3,18,0,95,35,10,13,11,26,0,105,54,19,16,3,13,0,156,99,29,15,8,5,0,33,33,0,0,0,0,0,15,15,0,0,0,0,0,16,16,0,0,0,0,0]
["Moultonborough","0000399","49380",4484,1348,0,0,0,0,0,0,0,12,9,26,57,68,122,167,178,110,57,113,107,108,67,78,32,37,158000,1631,0,0,4,4,5,0,0,17,10,31,66,76,143,206,203,144,85,137,124,126,87,82,37,44,158800,1348,826,0,0,0,23,48,67,102,63,91,138,103,109,50,0,32,522,0,0,8,21,63,58,77,94,58,30,29,32,8,44,1034,436,1348,826,40,85,133,106,92,64,61,102,135,8,522,196,124,64,30,13,10,16,17,36,16,1348,45,0,0,0,0,21,24,140,16,8,9,8,99,0,286,58,27,30,21,150,0,239,134,22,24,29,30,0,301,207,24,19,12,39,0,159,77,35,19,4,24,0,115,91,16,4,0,4,0,63,59,4,0,0,0,0]
["Ossipee","0000407","58740",4211,852,0,0,19,0,10,14,19,37,55,67,73,69,110,144,64,38,12,27,31,49,0,14,0,0,95700,1322,11,44,42,38,60,14,37,76,80,69,106,128,129,178,71,70,23,40,38,49,0,19,0,0,86600,852,513,0,0,6,18,47,65,78,49,33,78,36,75,21,0,7,339,0,12,26,59,50,52,33,47,33,27,0,0,0,0,887,322,852,513,19,69,90,49,95,47,12,77,55,0,339,75,76,33,66,21,34,5,7,16,6,852,48,0,0,6,7,29,6,143,13,40,6,27,57,0,203,93,30,29,14,37,0,208,73,24,54,26,31,0,146,86,21,14,7,18,0,33,33,0,0,0,0,0,45,45,0,0,0,0,0,26,19,0,7,0,0,0]
["Sandwich","0000414","67780",1286,229,0,0,0,4,4,2,4,0,2,2,13,8,18,34,37,45,20,17,10,3,2,4,0,0,140900,452,0,0,0,6,4,4,4,0,6,2,19,16,33,60,54,68,43,47,30,30,12,12,2,0,156600,229,109,0,0,4,4,7,11,6,8,8,28,15,16,0,2,0,120,2,6,6,8,15,17,24,26,10,0,4,2,0,0,1058,363,229,109,10,17,19,22,12,8,2,8,11,0,120,55,17,21,9,2,2,0,4,10,0,229,16,0,0,2,0,14,0,23,6,6,0,2,9,0,30,19,3,2,0,6,0,30,17,2,4,3,4,0,76,52,11,6,5,2,0,38,29,9,0,0,0,0,12,12,0,0,0,0,0,4,4,0,0,0,0,0]
["Tamworth","0000419","76100",2510,532,0,0,0,4,5,4,3,14,4,51,53,77,62,104,63,41,7,28,5,4,0,0,0,3,98200,825,6,3,13,8,24,12,12,26,21,56,73,90,76,136,85,55,19,49,22,20,7,6,0,6,99000,532,328,0,2,7,18,25,33,37,51,63,53,21,14,4,0,0,204,0,0,16,33,38,31,31,35,10,5,2,0,0,3,882,324,532,328,12,46,64,62,51,35,17,19,22,0,204,56,48,26,22,12,9,10,7,12,2,532,28,0,0,2,0,24,2,74,15,14,7,11,27,0,105,39,16,15,14,21,0,131,54,28,22,19,8,0,128,80,24,17,0,7,0,41,39,2,0,0,0,0,23,23,0,0,0,0,0,2,2,0,0,0,0,0]
["Tuftonboro","0000425","77620",2148,592,0,0,0,2,4,4,0,2,6,16,16,36,37,62,87,75,58,61,33,36,23,24,0,10,158000,806,0,0,10,6,13,4,6,8,12,22,22,45,48,80,111,86,77,74,57,54,27,28,2,14,154700,592,332,0,0,7,5,23,20,34,45,31,42,45,34,28,12,6,260,0,0,4,19,36,38,41,58,26,15,12,0,9,2,1006,390,592,332,22,43,73,60,41,38,16,10,29,0,260,96,61,28,23,10,5,6,6,14,11,592,38,0,0,0,3,24,11,37,0,11,6,2,18,0,114,52,14,12,12,24,0,104,50,21,12,13,8,0,139,96,20,12,7,4,0,91,68,11,7,2,3,0,34,24,4,2,4,0,0,35,33,2,0,0,0,0]
["Wakefield","0000432","78180",4252,1083,0,0,0,4,0,0,9,4,45,45,101,137,143,202,118,89,35,80,50,17,0,4,0,0,106600,1401,0,0,4,4,0,0,13,18,56,61,140,151,160,288,151,107,51,93,70,25,0,4,0,5,108100,1083,689,4,3,15,11,34,66,116,92,69,163,53,38,20,5,0,394,0,8,9,36,36,79,90,90,21,13,4,0,8,0,905,366,1083,689,39,81,157,128,66,66,43,29,80,0,394,152,103,39,21,12,8,5,22,28,4,1083,65,0,0,0,4,57,4,98,21,5,12,7,53,0,185,65,26,16,19,59,0,249,116,52,32,29,20,0,288,187,58,10,15,18,0,85,73,4,8,0,0,0,78,74,4,0,0,0,0,35,35,0,0,0,0,0]
["Wolfeboro","0000440","86420",6083,1552,0,0,0,0,0,0,0,0,15,9,92,86,149,204,223,183,101,189,116,53,44,61,14,13,149800,1985,0,7,0,8,0,0,8,0,31,34,114,99,157,240,324,190,116,243,188,60,53,61,31,21,147700,1552,913,0,0,0,29,37,35,98,76,102,203,111,131,51,27,13,639,0,0,8,74,48,65,62,152,107,31,30,15,6,41,1098,441,1552,913,61,113,102,184,127,82,29,35,165,15,639,211,132,80,69,40,37,24,8,38,0,1552,46,0,0,0,7,24,15,256,34,24,8,37,153,0,267,93,47,32,8,87,0,230,47,45,65,38,35,0,376,207,104,49,16,0,0,111,78,20,7,6,0,0,151,125,13,6,7,0,0,115,115,0,0,0,0,0]
[]
[]
[]
[]
["Census 2000 SummaryFile3 Sample Data  -  SF3TownQry9HHIncomeByTenure"]
[]
["TOWN_NAME","LOGRECNO","COUSUB","TotalPop","HCT11OccHU","HCT11OwnOccHU","HCT11OOHUInc<5K","HCT11OOHUInc5to10K","HCT11OOHUInc10to15K","HCT11OOHUInc15to20K","HCT11OOHUInc20to25K","HCT11OOHUInc25to35K","HCT11OOHUInc35to50K","HCT11OOHUInc50to75K","HCT11OOHUInc75to100K","HCT11OOHUInc100to150K","HCT11OOHUInc>150K","HCT11RentOccHU","HCT11ROHUInc<5K","HCT11ROHUInc5to10K","HCT11ROHUInc10to15K","HCT11ROHUInc15to20K","HCT11ROHUInc20to25K","HCT11ROHUInc25to35K","HCT11ROHUInc35to50K","HCT11ROHUInc50to75K","HCT11ROHUInc75to100K","HCT11ROHUInc100to150K","HCT11ROHUInc>150K","HCT12MedHHInc","HCT12MedOwnOccHHInc","HCT12MedRentOccHHInc","SummaryLevel"]
["Albany","0000308","00420",654,237,187,4,11,22,19,10,20,45,37,8,2,9,50,4,3,2,11,4,6,7,9,2,2,0,35481,36442,28750,"060"]
["Bartlett","0000313","03700",2705,1220,891,6,26,48,69,60,130,205,191,82,37,37,329,25,20,33,28,21,63,50,64,21,4,0,39900,42292,31012,"060"]
["Brookfield","0000320","07940",604,237,226,0,2,7,10,12,18,52,80,17,16,12,11,0,0,2,0,2,2,3,2,0,0,0,51417,52000,34375,"060"]
["Chatham","0000325","11780",260,105,86,3,2,3,8,5,14,22,16,6,3,4,19,0,3,0,2,3,8,0,3,0,0,0,35750,39375,26875,"060"]
["Conway","0000330","14660",8604,3716,2456,41,105,134,188,216,309,505,508,194,178,78,1260,37,153,118,178,114,231,184,175,51,10,9,35669,40203,26442,"060"]
["Eaton","0000363","23380",375,144,120,2,4,7,14,7,5,26,30,12,13,0,24,2,2,3,0,6,2,2,6,0,1,0,45313,46875,23750,"060"]
["Effingham","0000368","23620",1273,490,392,10,29,25,26,23,55,95,64,34,21,10,98,4,6,6,17,11,28,15,9,0,0,2,35595,38370,26250,"060"]
["Freedom","0000373","27700",1303,602,534,14,18,20,38,40,86,116,117,33,37,15,68,6,11,4,4,14,14,6,3,4,2,0,38864,42105,22917,"060"]
["Hale's Location","0000378","32500",58,31,31,0,0,3,4,0,8,3,9,0,4,0,0,0,0,0,0,0,0,0,0,0,0,0,42917,42917,0,"060"]
["Hart's Location","0000383","34500",37,12,9,0,0,0,0,0,2,3,2,2,0,0,3,0,0,0,3,0,0,0,0,0,0,0,40833,42083,16250,"060"]
["Jackson","0000388","38260",835,364,269,9,23,9,17,12,18,32,63,42,29,15,95,0,0,8,10,9,15,28,23,2,0,0,48750,57750,39583,"060"]
["Madison","0000393","45060",1984,790,643,5,10,37,31,61,70,122,201,53,28,25,147,5,7,14,10,9,40,31,14,10,7,0,43929,47440,31719,"060"]
["Moultonborough","0000399","49380",4484,1884,1631,36,21,62,97,91,250,295,360,184,147,88,253,4,28,10,9,30,45,73,29,21,4,0,44314,47534,35074,"060"]
["Ossipee","0000407","58740",4211,1672,1322,38,50,93,109,106,220,319,223,76,56,32,350,11,46,32,24,39,70,78,43,0,7,0,34891,36278,28158,"060"]
["Sandwich","0000414","67780",1286,564,452,8,15,16,35,27,36,69,142,65,22,17,112,2,10,10,19,12,19,16,15,4,2,3,47857,52273,26875,"060"]
["Tamworth","0000419","76100",2510,1099,825,16,33,71,51,43,129,188,169,65,44,16,274,0,59,23,38,27,55,36,25,7,4,0,35230,39315,23214,"060"]
["Tuftonboro","0000425","77620",2148,926,806,28,23,26,29,42,109,152,189,104,54,50,120,4,5,7,5,10,23,48,12,4,2,0,46389,49483,37143,"060"]
["Wakefield","0000432","78180",4252,1684,1401,24,56,73,89,79,179,280,348,111,103,59,283,3,37,48,26,22,36,48,58,0,0,5,42071,45256,26528,"060"]
["Wolfeboro","0000440","86420",6083,2574,1985,39,15,137,142,156,196,326,455,179,187,153,589,48,68,40,41,72,102,87,92,39,0,0,43360,49111,27781,"060"]
[]
[]
[]
[]
[]
["Census 2000 SummaryFile3 Sample Data - SF3TownQry10aDisabil"]
[]
["TOWN_NAME","LOGRECNO","COUSUB","TotalPop","PCT026001","PCT026002","PCT026003","PCT026004","PCT026005","PCT026006","PCT026007","PCT026008","PCT026009","PCT026010","PCT026011","PCT026012","PCT026013","PCT026014","PCT026015","PCT026016","PCT026017","PCT026018","PCT026019","PCT026020","PCT026021","PCT026022","PCT026023","PCT026024","PCT026025","PCT026026","PCT026027","PCT026028","PCT026029","PCT026030","PCT026031","PCT026032","PCT026033","PCT026034","PCT026035","PCT026036","PCT026037","PCT026038","PCT026039","PCT026040","PCT026041","PCT026042","PCT026043","PCT026044","PCT026045","PCT026046","PCT026047","PCT026048","PCT026049","PCT026050","PCT026051","PCT026052","PCT026053","PCT026054","PCT026055","PCT026056","PCT026057","PCT026058","PCT026059","PCT026060","PCT026061","PCT026062","PCT026063","PCT026064","PCT026065","PCT026066","PCT026067","PCT026068","PCT026069","PCT026070","PCT026071","PCT026072","PCT026073","PCT026074","PCT026075","PCT026076","PCT026077","PCT026078","PCT026079","PCT026080","PCT026081","PCT026082","PCT026083","PCT026084","PCT026085","PCT026086","PCT026087","PCT026088","PCT026089","PCT026090","PCT026091","PCT026092","PCT026093","PCT026094","PCT026095","PCT026096","PCT026097","PCT026098","PCT026099","PCT026100","PCT026101"]
["Albany","0000308","00420",654,555,280,30,0,0,0,0,0,0,0,0,30,24,5,0,0,1,0,0,4,4,0,4,0,4,15,204,60,3,2,14,0,0,41,17,2,15,0,15,127,22,4,0,2,2,0,0,7,4,3,11,275,56,3,0,3,0,0,0,0,0,53,13,4,0,0,0,0,0,4,0,0,0,0,0,9,182,34,2,4,0,0,0,28,24,7,17,0,17,124,24,2,0,2,0,0,0,8,6,2,14]
["Bartlett","0000313","03700",2705,2609,1324,224,16,7,3,6,0,0,0,0,208,74,7,6,0,0,0,0,1,0,0,0,0,0,67,833,127,10,29,11,0,0,77,42,8,34,0,34,664,193,36,8,23,5,0,0,37,13,24,120,1285,195,8,0,2,6,0,2,0,2,185,53,7,0,0,0,0,0,7,3,3,0,0,0,43,859,106,10,10,6,3,0,77,37,15,22,2,20,716,178,21,6,11,4,0,0,21,17,4,136]
["Brookfield","0000320","07940",604,583,263,36,0,0,0,0,0,0,0,0,36,13,0,0,0,0,0,0,0,3,0,3,0,3,10,171,17,2,9,0,0,2,4,10,0,10,3,7,144,43,0,0,0,0,0,0,15,3,12,28,320,46,0,0,0,0,0,0,0,0,46,28,6,0,0,1,0,3,2,0,0,0,0,0,22,184,10,1,2,2,0,3,2,14,0,14,4,10,160,62,26,10,10,6,0,0,4,0,4,32]
["Chatham","0000325","11780",260,239,134,24,1,0,0,1,0,0,0,0,23,4,0,0,0,0,0,0,0,0,0,0,0,0,4,92,18,0,6,5,0,0,7,12,1,11,0,11,62,14,2,0,2,0,0,0,6,1,5,6,105,23,0,0,0,0,0,0,0,0,23,9,0,0,0,0,0,0,0,0,0,0,0,0,9,63,8,0,1,3,0,0,4,4,2,2,0,2,51,10,2,0,2,0,0,0,0,0,0,8]
["Conway","0000330","14660",8604,8039,3862,615,32,13,0,11,8,9,9,0,574,285,18,0,0,0,0,0,18,23,0,23,21,2,244,2451,558,42,72,26,0,8,410,189,45,144,58,86,1704,511,144,87,44,0,6,7,79,23,56,288,4177,592,16,0,0,16,0,22,22,0,554,255,24,0,0,4,0,7,13,15,0,15,8,7,216,2611,457,14,59,5,4,24,351,233,65,168,41,127,1921,719,139,30,82,10,0,17,159,81,78,421]
["Eaton","0000363","23380",375,321,169,25,0,0,0,0,0,0,0,0,25,12,2,0,0,0,0,0,2,2,2,0,0,0,8,107,32,0,0,0,0,0,32,7,0,7,0,7,68,25,9,4,2,3,0,0,4,2,2,12,152,23,0,0,0,0,0,0,0,0,23,6,0,0,0,0,0,0,0,0,0,0,0,0,6,104,35,2,0,0,0,0,33,12,2,10,0,10,57,19,5,3,2,0,0,0,2,0,2,12]
["Effingham","0000368","23620",1273,1218,632,110,7,2,0,5,0,12,8,4,91,60,3,0,0,0,0,3,0,28,0,28,12,16,29,379,33,8,2,4,0,4,15,61,25,36,1,35,285,83,31,11,17,0,0,3,14,7,7,38,586,106,10,10,0,0,0,0,0,0,96,48,0,0,0,0,0,0,0,12,0,12,5,7,36,357,28,3,7,9,0,0,9,27,18,9,1,8,302,75,15,2,9,0,0,4,19,6,13,41]
["Freedom","0000373","27700",1303,1251,605,58,6,2,0,4,0,0,0,0,52,19,3,1,0,0,0,0,2,0,0,0,0,0,16,377,32,6,0,1,0,0,25,44,25,19,10,9,301,151,28,10,16,2,0,0,23,3,20,100,646,78,2,0,0,2,0,0,0,0,76,27,4,0,0,2,0,2,0,0,0,0,0,0,23,382,42,2,6,5,0,4,25,40,10,30,12,18,300,159,18,2,8,0,0,8,28,3,25,113]
["Hale's Location","0000378","32500",58,61,32,0,0,0,0,0,0,0,0,0,0,0,0,0,0,0,0,0,0,0,0,0,0,0,0,15,3,3,0,0,0,0,0,0,0,0,0,0,12,17,2,2,0,0,0,0,0,0,0,15,29,0,0,0,0,0,0,0,0,0,0,0,0,0,0,0,0,0,0,0,0,0,0,0,0,17,0,0,0,0,0,0,0,0,0,0,0,0,17,12,0,0,0,0,0,0,0,0,0,12]
["Hart's Location","0000383","34500",37,31,18,5,0,0,0,0,0,0,0,0,5,2,0,0,0,0,0,0,0,0,0,0,0,0,2,11,0,0,0,0,0,0,0,0,0,0,0,0,11,0,0,0,0,0,0,0,0,0,0,0,13,3,0,0,0,0,0,0,0,0,3,0,0,0,0,0,0,0,0,0,0,0,0,0,0,10,0,0,0,0,0,0,0,0,0,0,0,0,10,0,0,0,0,0,0,0,0,0,0,0]
["Jackson","0000388","38260",835,760,358,34,0,0,0,0,0,0,0,0,34,2,0,0,0,0,0,0,0,0,0,0,0,0,2,230,31,0,6,0,0,0,25,7,2,5,3,2,192,92,11,6,5,0,0,0,12,5,7,69,402,62,0,0,0,0,0,0,0,0,62,9,0,0,0,0,0,0,0,0,0,0,0,0,9,244,25,0,7,2,0,0,16,2,0,2,0,2,217,87,19,6,11,2,0,0,9,4,5,59]
["Madison","0000393","45060",1984,1944,979,191,17,1,0,16,0,3,3,0,171,78,8,0,0,1,0,0,7,0,0,0,0,0,70,604,116,18,17,10,0,0,71,32,6,26,4,22,456,106,25,16,6,3,0,0,22,2,20,59,965,174,2,0,0,2,0,0,0,0,172,47,7,0,0,3,0,0,4,0,0,0,0,0,40,613,106,0,14,2,0,0,90,33,7,26,2,24,474,131,24,9,12,0,0,3,17,6,11,90]
["Moultonborough","0000399","49380",4484,4316,2112,311,20,0,0,20,0,4,0,4,287,109,11,0,0,11,0,0,0,8,0,8,0,8,90,1266,73,23,17,2,0,8,23,85,36,49,0,49,1108,426,101,33,56,4,0,8,51,22,29,274,2204,322,0,0,0,0,0,0,0,0,322,123,0,0,0,0,0,0,0,0,0,0,0,0,123,1293,53,10,11,12,0,0,20,68,23,45,12,33,1172,466,86,19,50,5,0,12,72,55,17,308]
["Ossipee","0000407","58740",4211,3874,1930,363,23,0,0,23,0,0,0,0,340,96,5,0,0,5,0,0,0,0,0,0,0,0,91,1167,145,39,35,22,0,6,43,139,40,99,4,95,883,304,100,36,50,14,0,0,34,20,14,170,1944,348,13,6,0,7,0,9,9,0,326,115,11,5,0,0,0,6,0,16,8,8,8,0,88,1150,116,24,26,17,0,6,43,90,16,74,6,68,944,331,90,16,37,32,0,5,43,16,27,198]
["Sandwich","0000414","67780",1286,1231,578,87,3,0,0,3,0,1,1,0,83,30,0,0,0,0,0,0,0,0,0,0,0,0,30,327,30,6,16,0,0,0,8,25,6,19,0,19,272,134,32,15,17,0,0,0,15,6,9,87,653,97,4,2,0,2,0,0,0,0,93,31,0,0,0,0,0,0,0,0,0,0,0,0,31,356,26,5,10,0,0,0,11,7,5,2,0,2,323,169,23,4,17,2,0,0,36,12,24,110]
["Tamworth","0000419","76100",2510,2420,1249,227,7,0,0,7,0,2,2,0,218,94,16,0,5,0,2,0,9,0,0,0,0,0,78,736,114,24,24,5,0,0,61,80,10,70,3,67,542,192,49,25,22,0,0,2,45,8,37,98,1171,181,13,2,4,7,0,6,6,0,162,53,12,0,5,2,0,0,5,4,0,4,2,2,37,725,105,7,18,7,0,3,70,69,15,54,5,49,551,212,46,15,25,0,0,6,37,23,14,129]
["Tuftonboro","0000425","77620",2148,2052,1003,134,7,3,0,4,0,0,0,0,127,41,1,0,0,1,0,0,0,0,0,0,0,0,40,583,61,7,8,3,0,0,43,44,15,29,2,27,478,245,32,16,10,0,0,6,27,6,21,186,1049,144,5,2,0,3,0,0,0,0,139,50,3,0,0,3,0,0,0,0,0,0,0,0,47,622,54,6,13,5,0,0,30,32,11,21,3,18,536,233,38,12,18,0,3,5,38,14,24,157]
["Wakefield","0000432","78180",4252,3991,1990,397,41,3,0,34,4,0,0,0,356,87,0,0,0,0,0,0,0,0,0,0,0,0,87,1192,155,15,45,31,0,0,64,136,19,117,41,76,901,314,73,22,38,9,0,4,52,20,32,189,2001,365,0,0,0,0,0,4,0,4,361,102,4,0,0,4,0,0,0,2,0,2,0,2,96,1215,91,6,35,4,0,9,37,103,11,92,20,72,1021,319,43,8,31,4,0,0,42,8,34,234]
["Wolfeboro","0000440","86420",6083,5719,2700,424,29,0,9,20,0,7,7,0,388,165,11,6,0,0,0,0,5,10,6,4,4,0,144,1516,185,49,18,9,0,0,109,91,9,82,31,51,1240,595,101,23,53,0,0,25,92,41,51,402,3019,462,25,0,0,25,0,0,0,0,437,168,37,0,0,0,0,10,27,0,0,0,0,0,131,1581,85,6,24,0,0,0,55,90,6,84,27,57,1406,808,199,44,121,8,0,26,130,52,78,479]
[]
[]
[]
["2010 Census Demographic Profile Data -  QRY_CountyState"]
["TownName","LOGRECNO","COUNTY","TotalPop","TotalPop1Race","TotalPopWhite","TotalPopAfricanAmerican","TotalPopAmericanIndAlaska","TotalPopAsian","TotalPopNativeHawaiianPIsland","TotalPopSomeOtherRace","TotalPopTwoOrMoreRaces","TotalPopHispanicLatino","TotalNonHispanicLatino","TotPopUnder15yrs","TotPop15to24yrs","TotPop25to34yrs","TotPop35to44yrs","TotPop45to54yrs","TotPop55to64yrs","TotPop65to74yrs","TotPopOver74yrs","MedianAge","MedianAgeMale","MedianAgeFemale","TotalHH","TotalPopInHouseholds","TotalPopInFamilyHH","TotalPopInNonFamilyHH","AvgHHSize","TotalFamilyHH","TotalFamilyHHSpouse","TotalSingleParentHH","TotalNonFamilyHH","AvgFamilyHHSize","AvgNonFamilyHHSize","AverageHHSizeOwnerOccupied","AverageHHSizeRentalOccupied","TotalHousingUnits","TotalOccupiedHU","TotalOwnerOccupiedHUs","TotalRentalOccupiedHU","TotalVacantHU","VacantHUForRent","VacantHURentNotOccupied","VacantHUForSale","VacantHUsSoldNotOccupied","VacantHUSeasonalRecreational","VacantHUsAllOtherVacants","HomeOwnerVacancyRate","HomeRentalVacancyRate","TotalHousingUnits2010","SingFamHU2010","MultiFamHU2010","MobileHom2010"]
["Albany","0000022","003",735,724,713,3,4,3,0,1,11,10,725,112,84,59,103,146,102,83,46,45.6,46.7,44.9,318,735,347,388,2.31,205,161,44,113,2.69,3.4336283185840708,2.3199999999999998,2.29,560,318,253,65,242,8,0,1,0,223,10,0.4,11,560,452,18,90]
["Bartlett","0000023","003",2788,2752,2725,8,7,12,0,0,36,25,2763,385,244,248,329,484,527,359,212,49,49.8,48.4,1307,2788,1268,1520,2.13,762,607,155,545,2.66,2.7889908256880735,2.14,2.1,4115,1307,997,310,2808,42,5,26,4,2691,40,2.5,11.8,4115,1861,2192,62]
["Brookfield","0000024","003",712,702,696,0,5,0,0,1,10,5,707,108,70,31,107,132,131,83,50,48.2,47.8,48.6,292,712,382,330,2.44,212,182,30,80,2.8,4.125,2.4300000000000002,2.48,338,292,269,23,46,1,1,2,2,33,7,0.7,4,338,328,2,8]
["Chatham","0000025","003",337,330,329,0,0,1,0,0,7,1,336,50,37,37,44,57,56,31,25,45.1,45.9,43.8,139,337,176,161,2.42,95,78,17,44,2.85,3.6590909090909092,2.41,2.54,270,139,126,13,131,1,0,3,1,121,5,2.2999999999999998,7.1,270,233,12,25]
["Conway","0000026","003",10115,9998,9800,33,40,98,4,23,117,106,10009,1619,1063,1106,1346,1668,1574,909,830,44.5,43.3,45.7,4479,9953,4692,5261,2.2200000000000002,2638,1966,672,1841,2.78,2.8576860401955457,2.3199999999999998,2.02,6921,4479,3053,1426,2442,151,9,95,8,2081,98,3,9.5,6921,3995,2193,733]
["Eaton","0000027","003",393,387,383,2,0,2,0,0,6,5,388,31,38,28,39,57,115,58,27,55.2,55.4,55.1,196,393,175,218,2.0099999999999998,114,94,20,82,2.54,2.6585365853658538,2.02,1.94,291,196,160,36,95,3,0,2,1,86,3,1.2,7.7,291,266,25,0]
["Effingham","0000028","003",1465,1443,1429,3,4,4,0,3,22,19,1446,217,158,131,205,295,236,141,82,45.6,45.5,45.6,621,1465,750,715,2.36,416,328,88,205,2.8,3.4878048780487805,2.38,2.25,963,621,533,88,342,10,4,30,5,280,13,5.3,9.8000000000000007,963,816,48,99]
["Freedom","0000029","003",1489,1478,1471,2,0,4,0,1,11,8,1481,184,122,81,168,241,293,233,167,53.1,53,53.2,699,1479,719,760,2.12,457,398,59,242,2.57,3.1404958677685952,2.1,2.1800000000000002,1580,699,601,98,881,10,0,27,1,827,16,4.3,9.3000000000000007,1580,1338,96,146]
["Hale's Location"]
["Hart's Location","0000030","003",41,41,41,0,0,0,0,0,0,0,41,4,3,5,7,9,5,4,4,47.5,47.5,47,21,41,18,23,1.95,12,11,1,9,2.5,2.5555555555555554,2.14,1.57,54,21,14,7,33,0,0,2,0,30,1,12.5,0,62,61,1,0]
["Jackson","0000031","003",816,809,801,0,2,5,0,1,7,6,810,87,43,52,94,142,181,128,89,54.3,54.2,54.4,399,816,358,458,2.0499999999999998,241,215,26,158,2.4900000000000002,2.8987341772151898,2.15,1.68,1009,399,309,90,610,9,2,9,1,570,19,2.8,8.9,1009,799,203,7]
["Madison","0000032","003",2502,2482,2443,23,10,2,0,4,20,36,2466,412,230,191,327,499,421,241,181,47.4,46.3,48.4,1075,2498,1278,1220,2.3199999999999998,720,590,130,355,2.78,3.436619718309859,2.2999999999999998,2.4300000000000002,1877,1075,897,178,802,23,2,25,6,726,20,2.7,11.3,1877,1634,127,115]
["Moultonborough","0000033","003",4044,4022,3961,13,9,27,0,12,22,42,4002,571,375,243,424,698,828,545,360,50.5,50.4,50.5,1741,4044,2118,1926,2.3199999999999998,1242,1059,183,499,2.71,3.8597194388777556,2.33,2.31,4940,1741,1492,249,3199,60,12,56,11,2991,69,3.6,18.7,5226,4840,240,146]
["Ossipee","0000034","003",4345,4281,4218,17,15,25,0,6,64,45,4300,657,460,380,510,780,715,463,380,47.4,47,47.7,1826,4168,2048,2120,2.2799999999999998,1165,896,269,661,2.76,3.2072617246596065,2.27,2.3199999999999998,3057,1826,1455,371,1231,52,5,58,7,1045,64,3.8,12.1,3057,2174,341,541]
["Sandwich","0000035","003",1326,1312,1299,2,3,7,1,0,14,6,1320,168,98,80,131,243,299,169,138,53.2,53,53.3,617,1326,644,682,2.15,405,340,65,212,2.59,3.2169811320754715,2.16,2.08,1057,617,530,87,440,10,0,23,2,373,32,4.0999999999999996,10.3,1057,1024,14,19]
["Tamworth","0000036","003",2856,2815,2785,7,11,11,0,1,41,21,2835,417,298,252,345,544,479,286,235,47.6,47.2,48,1292,2856,1358,1498,2.21,770,619,151,522,2.76,2.8697318007662833,2.2599999999999998,2.06,1969,1292,982,310,677,48,6,28,8,493,94,2.8,13.2,1969,1556,226,187]
["Tuftonboro","0000037","003",2387,2357,2342,4,2,6,0,3,30,12,2375,372,184,169,262,383,452,315,250,50.8,51,50.4,1029,2387,1234,1153,2.3199999999999998,736,628,108,293,2.68,3.9351535836177476,2.2999999999999998,2.42,2435,1029,886,143,1406,20,0,46,3,1293,44,4.9000000000000004,12.3,2435,2121,134,179]
["Wakefield","0000038","003",5078,5027,4952,11,9,48,1,6,51,45,5033,835,485,469,674,919,815,535,346,45.9,45.7,46.2,2098,5078,2684,2394,2.42,1483,1230,253,615,2.81,3.8926829268292682,2.41,2.46,3832,2098,1806,292,1734,31,4,72,10,1573,44,3.8,9.5,3832,3395,289,148]
["Wolfeboro","0000039","003",6269,6205,6119,11,11,50,1,13,64,81,6188,876,546,364,626,1041,1060,861,895,52.1,50.7,53.2,2839,6185,3102,3083,2.1800000000000002,1848,1539,309,991,2.68,3.1109989909182643,2.25,1.93,4443,2839,2238,601,1604,100,8,93,14,1322,67,4,14.1,4443,3386,887,170]

{"sheet":"CntyDataLinkPrior5YearEstimates","index":74,"n_rows":160,"n_cols":185,"rows_kept":160,"cut":false,"hidden":true,"merged":[]}
[1,{"$f":"A1+1","v":2},3,4,5,6,7,8,9,10,11,12,13,14,15,16,17,18,19,20,21,22,23,24,25,26,27,28,29,30,31,32,33,34,35,36,37,38,39,40,41,42,43,44,45,46,47,48,49,50,51,52,53,54,55,56,57,58,59,60,61,62,63,64,65,{"$f":"BM1+1","v":66},67,68,69,70,71,72,73,74,75,76,77,78,79,80,81,82,83,84,85,86,87,88,89,90,91,92,93,94,95,96,97,98,99,100,101,102,103,104,105,106,107,108,109,110,111,112,113,114,115,116,117,118,119,120,121,122,123,124,125,126,127,128,129,{"$f":"DY1+1","v":130},131,132,133,134,135,136,137,138,139,140,141,142,143,144,145,146,147,148,149,150,151,152,153,154,155,156,157,158,159,160,161,162,163,164,165,166,167,168,169,170,171,172,173,174,175,176,177,178,179,180,181,182,183]
[]
["Census 1990 Data -           Query Name:  DPCnty90Census"]
["TownName"]
[{"$f":"VLOOKUP(DropDownList!$A$24,CntyQuery!$A$4:$FA$22,A1)","v":"Wolfeboro"}]
[]
[]
["Census 1990 Data -    Query Name:  TownSTF1Qry1"]
["NAME"]
[{"$f":"VLOOKUP(DropDownList!$B$24,CntyQuery!$A$37:$CE$45,A$1)","v":"Wolfeboro"}]
[]
[]
["Census 1990 Data -          Query Name: TownSTF3Qry1"]
["NAME"]
[{"$f":"A20","v":"Wolfeboro"}]
[]
[]
[]
["TOWN_NAME"]
[{"$f":"VLOOKUP(DropDownList!$B$24,CntyQuery!$A$99:$DZ$117,A$1)","v":"Wolfeboro"}]
[]
[]
["NH Employment Data"]
["AreaName"]
[{"$f":"VLOOKUP(DropDownList!$B$24,CntyQuery!$A$99:$FT$117,A$1)","v":"Wolfeboro"}]
[]
[]
[]
[]
[]
[]
[]
["Census 2000   -           Query Name:  TownAllQuery3"]
["NAME"]
[{"$f":"VLOOKUP(DropDownList!$B$24,CntyQryCensus!$A$4:$CX$22,A$1)","v":"Wolfeboro"}]
[]
[]
["Census 2000 DemoProfile Sample Data Tables 2&3   -  DPTab23TownQry"]
["NAME"]
[{"$f":"VLOOKUP(DropDownList!$B$24,CntyQryCensus!$A$29:$BY$47,A$1)","v":"Wolfeboro"}]
[]
[]
["Census 2000 DemoProfile Sample Data Table 4   -  DPTab4TownQry"]
["NAME"]
[{"$f":"VLOOKUP(DropDownList!$B$24,CntyQryCensus!$A$55:$CW$73,A$1)","v":"Wolfeboro"}]
[]
[]
["Census 2000 SummaryFile3 Sample Data  -  SF3TownQry1SocialChar"]
["NAME"]
[{"$f":"VLOOKUP(DropDownList!$B$24,CntyQryCensus!$A$83:$FR$101,A$1)","v":"Wolfeboro"}]
[]
[]
["Census 2000 SummaryFile3 Sample Data  -  SF3TownQry2aIncomeChar"]
["NAME"]
[{"$f":"VLOOKUP(DropDownList!$B$24,CntyQryCensus!$A$109:$HH$127,A$1)","v":"Wolfeboro"}]
[]
[]
["Census 2000 SummaryFile3 Sample Data  -  SF3TownQry2bPovertyChar"]
["NAME"]
[{"$f":"VLOOKUP(DropDownList!$B$24,CntyQryCensus!$A$135:$FZ$153,A$1)","v":"Wolfeboro"}]
[]
[]
["Census 2000 SummaryFile3 Sample Data  -  SF3TownQry7HousingA"]
["NAME"]
[{"$f":"VLOOKUP(DropDownList!$B$24,CntyQryCensus!$A$161:$GX$179,A$1)","v":"Wolfeboro"}]
[]
[]
["Census 2000 SummaryFile3 Sample Data  -  SF3TownQry8HousingCostA"]
["NAME"]
[{"$f":"VLOOKUP(DropDownList!$B$24,CntyQryCensus!$A$187:$CL$205,A$1)","v":"Wolfeboro"}]
[]
[]
["Census 2000 SummaryFile3 Sample Data  -  SF3TownQry8HousingCostB"]
["NAME"]
[{"$f":"VLOOKUP(DropDownList!$B$24,CntyQryCensus!$A$213:$FN$231,A$1)","v":"Wolfeboro"}]
[]
[]
["Census 2000 SummaryFile3 Sample Data  -  SF3TownQry9HHIncomeByTenure"]
["NAME"]
[{"$f":"VLOOKUP(DropDownList!$B$24,CntyQryCensus!$A$239:$AX$257,A$1)","v":"Wolfeboro"}]
[]
[]
[]
[]
[]
[{"$f":"A96","v":"Wolfeboro"}]
[]
[]
[]
[]
[]
[]
[]
["Census 2000 SummaryFile3 Sample Data - SF3TownQry10Disabil"]
["NAME"]
[{"$f":"VLOOKUP(DropDownList!$B$24,CntyQuery!$A$70:$CF$88,A$1)","v":"Wolfeboro"}]
[]
[]
[]
[]
[]
[]
[]
[]
["ACS",2,{"$f":"B105+1","v":3},{"$f":"C105+1","v":4},5,6,7,8,9,10,11,{"$f":"K105+1","v":12},13,14,15,{"$f":"O105+1","v":16},17,18,19,20,21,22,23,24,25,26,27,28,29,30,31,32,33,34,35,36,37,38,39,40,41,42,43,44,45,46,47,48,49,50,51,52,53,54,55,56,57,58,59,60,61,62,63,64,65,66,67,{"$f":"BO105+1","v":68},69,70,71,72,73,74,75,76,77,78,79,80,81,82,83,84,85,86,87,88,89,90,91,92,93,94,95,96,97,98,99,100,101,102,103,104,105,106,107,108,109,110,111,112,113,114,115,116,117,118,119,120,121,122,123,124,125]
["Househould Data (Housing Unit Type)"]
["NAME","TotalHU",{"$f":"\"MOE \"&B107","v":"MOE TotalHU"},"TotalOccHU",{"$f":"\"MOE \"&D107","v":"MOE TotalOccHU"},"TotalOwnerOccUn",{"$f":"\"MOE \"&F107","v":"MOE TotalOwnerOccUn"},"TotalRenterOccn",{"$f":"\"MOE \"&H107","v":"MOE TotalRenterOccn"},"TotalVacantUntis",{"$f":"\"MOE \"&J107","v":"MOE TotalVacantUntis"},"VacantUnitsForRent",{"$f":"\"MOE \"&L107","v":"MOE VacantUnitsForRent"},"VacantUnitRentedNotOcc",{"$f":"\"MOE \"&N107","v":"MOE VacantUnitRentedNotOcc"},"VacantUnitForSale",{"$f":"\"MOE \"&P107","v":"MOE VacantUnitForSale"},"VacantUnitSoldNotOcc",{"$f":"\"MOE \"&R107","v":"MOE VacantUnitSoldNotOcc"},"VacantUnitSeasonalRec",{"$f":"\"MOE \"&T107","v":"MOE VacantUnitSeasonalRec"},"TotalPopInHousingUnits",{"$f":"\"MOE \"&V107","v":"MOE TotalPopInHousingUnits"},"OwnerOccPopHousingUnits",{"$f":"\"MOE \"&X107","v":"MOE OwnerOccPopHousingUnits"},"RenterOccPopHousingUnits",{"$f":"\"MOE \"&Z107","v":"MOE RenterOccPopHousingUnits"},"TotalUntis",{"$f":"\"MOE \"&AB107","v":"MOE TotalUntis"},"TotalOwnerOccUnits",{"$f":"\"MOE \"&AD107","v":"MOE TotalOwnerOccUnits"},"SigFamOwnerOcc",{"$f":"\"MOE \"&AF107","v":"MOE SigFamOwnerOcc"},"MultiFamOwnerOcc",{"$f":"\"MOE \"&AH107","v":"MOE MultiFamOwnerOcc"},"MobileOwnerOcc",{"$f":"\"MOE \"&AJ107","v":"MOE MobileOwnerOcc"},"TotalRenterOccUnits",{"$f":"\"MOE \"&AL107","v":"MOE TotalRenterOccUnits"},"SigFamRenterOcc",{"$f":"\"MOE \"&AN107","v":"MOE SigFamRenterOcc"},"MultiFamRenterOcc",{"$f":"\"MOE \"&AP107","v":"MOE MultiFamRenterOcc"},"MobileRenterOcc",{"$f":"\"MOE \"&AR107","v":"MOE MobileRenterOcc"},"TotalSigFamilyUnits",{"$f":"\"MOE \"&AT107","v":"MOE TotalSigFamilyUnits"},"TotalMultiFamilyUnits",{"$f":"\"MOE \"&AV107","v":"MOE TotalMultiFamilyUnits"},"TotalMobileUnits",{"$f":"\"MOE \"&AX107","v":"MOE TotalMobileUnits"},"YrHouseBuilt2005Later",{"$f":"\"MOE \"&AZ107","v":"MOE YrHouseBuilt2005Later"},"YrHouseBuilt2000-2004",{"$f":"\"MOE \"&BB107","v":"MOE YrHouseBuilt2000-2004"},"YrHouseBuilt1990-1999",{"$f":"\"MOE \"&BD107","v":"MOE YrHouseBuilt1990-1999"},"YrHouseBuilt1980-1989",{"$f":"\"MOE \"&BF107","v":"MOE YrHouseBuilt1980-1989"},"YrHouseBuilt1970-1979",{"$f":"\"MOE \"&BH107","v":"MOE YrHouseBuilt1970-1979"},"YrHouseBuilt1960-1969",{"$f":"\"MOE \"&BJ107","v":"MOE YrHouseBuilt1960-1969"},"YrHouseBuilt1950-1959",{"$f":"\"MOE \"&BL107","v":"MOE YrHouseBuilt1950-1959"},"YrHouseBuilt1940-1949",{"$f":"\"MOE \"&BN107","v":"MOE YrHouseBuilt1940-1949"},"YrHouseBuilt1939orEarlier",{"$f":"\"MOE \"&BP107","v":"MOE YrHouseBuilt1939orEarlier"},"NoBedrooms",{"$f":"\"MOE \"&BR107","v":"MOE NoBedrooms"},"1Bedroom",{"$f":"\"MOE \"&BT107","v":"MOE 1Bedroom"},"2Bedroom",{"$f":"\"MOE \"&BV107","v":"MOE 2Bedroom"},"3Bedroom",{"$f":"\"MOE \"&BX107","v":"MOE 3Bedroom"},"4+Bedroom",{"$f":"\"MOE \"&BZ107","v":"MOE 4+Bedroom"}]
[{"$f":"VLOOKUP(DropDownList!$B$24,CntyQuery!$A$70:$CF$88,A$1)","v":"Wolfeboro"},4758,248,2935,210,2302,218,633,207,1823,249,53,72,36,59,96,93,0,16,1337,244,6130,40,4992,356,1138,354,2935,210,2302,218,2116,219,155,111.10805551354051,31,39.395431207184416,633,207,211,148,422,217.51551668789057,0,22.627416997969522,3636,321,916,270.51062825700581,206,134.9518432626987,0,16,168,122,692,265,855,242,710,211,287,150,334,163,438,197,183,142,153,102,417,155,1435,320,1799,319,737,247]
[]
["Disability Data"]
["NAME","TotalPop",{"$f":"\"MOE \"&B111","v":"MOE TotalPop"},"PopUnder 5 years:",{"$f":"\"MOE \"&D111","v":"MOE PopUnder 5 years:"},{"$f":"D$111&\"-WithDisability\"","v":"PopUnder 5 years:-WithDisability"},{"$f":"\"MOE \"&F111","v":"MOE PopUnder 5 years:-WithDisability"},{"$f":"D111&\"-NoDisability\"","v":"PopUnder 5 years:-NoDisability"},{"$f":"\"MOE \"&H111","v":"MOE PopUnder 5 years:-NoDisability"},"PopUnder 5 to 17years:",{"$f":"\"MOE \"&J111","v":"MOE PopUnder 5 to 17years:"},{"$f":"J$111&\"-WithDisability\"","v":"PopUnder 5 to 17years:-WithDisability"},{"$f":"\"MOE \"&L111","v":"MOE PopUnder 5 to 17years:-WithDisability"},{"$f":"J111&\"-NoDisability\"","v":"PopUnder 5 to 17years:-NoDisability"},{"$f":"\"MOE \"&N111","v":"MOE PopUnder 5 to 17years:-NoDisability"},"PopUnder 18 to 34 years:",{"$f":"\"MOE \"&P111","v":"MOE PopUnder 18 to 34 years:"},{"$f":"P$111&\"-WithDisability\"","v":"PopUnder 18 to 34 years:-WithDisability"},{"$f":"\"MOE \"&R111","v":"MOE PopUnder 18 to 34 years:-WithDisability"},{"$f":"P111&\"-NoDisability\"","v":"PopUnder 18 to 34 years:-NoDisability"},{"$f":"\"MOE \"&T111","v":"MOE PopUnder 18 to 34 years:-NoDisability"},"Pop 35 years to 64:",{"$f":"\"MOE \"&V111","v":"MOE Pop 35 years to 64:"},{"$f":"$V$111&\"-WithDisability\"","v":"Pop 35 years to 64:-WithDisability"},{"$f":"\"MOE \"&X111","v":"MOE Pop 35 years to 64:-WithDisability"},{"$f":"$V$111&\"-NoDisability\"","v":"Pop 35 years to 64:-NoDisability"},{"$f":"\"MOE \"&Z111","v":"MOE Pop 35 years to 64:-NoDisability"},"Pop 65 years to 74:",{"$f":"\"MOE \"&AB111","v":"MOE Pop 65 years to 74:"},{"$f":"$AB$111&\"-WithDisability\"","v":"Pop 65 years to 74:-WithDisability"},{"$f":"\"MOE \"&AD111","v":"MOE Pop 65 years to 74:-WithDisability"},{"$f":"$AB$111&\"-NoDisability\"","v":"Pop 65 years to 74:-NoDisability"},{"$f":"\"MOE \"&AF111","v":"MOE Pop 65 years to 74:-NoDisability"},"Pop 75 and older:",{"$f":"\"MOE \"&AH111","v":"MOE Pop 75 and older:"},{"$f":"$AH$111&\"-WithDisability\"","v":"Pop 75 and older:-WithDisability"},{"$f":"\"MOE \"&AJ111","v":"MOE Pop 75 and older:-WithDisability"},{"$f":"$AH$111&\"-NoDisability\"","v":"Pop 75 and older:-NoDisability"},{"$f":"\"MOE \"&AL111","v":"MOE Pop 75 and older:-NoDisability"},"TotalPopUnder5_HearingDisability",{"$f":"\"MOE \"&AN111","v":"MOE TotalPopUnder5_HearingDisability"},"TotalUnder5_HearingDisability",{"$f":"\"MOE \"&AP111","v":"MOE TotalUnder5_HearingDisability"},"TotalPop18To34_HearingDisability",{"$f":"\"MOE \"&AR111","v":"MOE TotalPop18To34_HearingDisability"},"TotalPop35To64_HearingDisability",{"$f":"\"MOE \"&AT111","v":"MOE TotalPop35To64_HearingDisability"},"TotalPop65To74_HearingDisability",{"$f":"\"MOE \"&AV111","v":"MOE TotalPop65To74_HearingDisability"},"TotalPop75andOlder_HearingDisability",{"$f":"\"MOE \"&AX111","v":"MOE TotalPop75andOlder_HearingDisability"},"TotalUnder5_VisionDisability",{"$f":"\"MOE \"&AZ111","v":"MOE TotalUnder5_VisionDisability"},"Total5To17_VisionDisability",{"$f":"\"MOE \"&BB111","v":"MOE Total5To17_VisionDisability"},"Total18To34_VisionDisability",{"$f":"\"MOE \"&BD111","v":"MOE Total18To34_VisionDisability"},"Total35To64_VisionDisability",{"$f":"\"MOE \"&BF111","v":"MOE Total35To64_VisionDisability"},"Total65To74_VisionDisability",{"$f":"\"MOE \"&BH111","v":"MOE Total65To74_VisionDisability"},"Total75andOlder_VisionDisability",{"$f":"\"MOE \"&BJ111","v":"MOE Total75andOlder_VisionDisability"},"Total5To17_CongnitiveDisability",{"$f":"\"MOE \"&BL111","v":"MOE Total5To17_CongnitiveDisability"},"Total18To34_CongnitiveDisability",{"$f":"\"MOE \"&BN111","v":"MOE Total18To34_CongnitiveDisability"},"Total35To64_CongnitiveDisability",{"$f":"\"MOE \"&BP111","v":"MOE Total35To64_CongnitiveDisability"},"Total65To74_CongnitiveDisability",{"$f":"\"MOE \"&BR111","v":"MOE Total65To74_CongnitiveDisability"},"Total75andOlder_CongnitiveDisability",{"$f":"\"MOE \"&BT111","v":"MOE Total75andOlder_CongnitiveDisability"},"Total5To17_AmbulatoryDisability",{"$f":"\"MOE \"&BV111","v":"MOE Total5To17_AmbulatoryDisability"},"Total18To34_AmbulatoryDisability",{"$f":"\"MOE \"&BX111","v":"MOE Total18To34_AmbulatoryDisability"},"Total35To64_AmbulatoryDisability",{"$f":"\"MOE \"&BZ111","v":"MOE Total35To64_AmbulatoryDisability"},"Total65To74_AmbulatoryDisability",{"$f":"\"MOE \"&CB111","v":"MOE Total65To74_AmbulatoryDisability"},"Total75andOlder_AmbulatoryDisability",{"$f":"\"MOE \"&CD111","v":"MOE Total75andOlder_AmbulatoryDisability"},"Total5To17_SelfCareDisability",{"$f":"\"MOE \"&CF111","v":"MOE Total5To17_SelfCareDisability"},"Total18To34_SelfCareDisability",{"$f":"\"MOE \"&CH111","v":"MOE Total18To34_SelfCareDisability"},"Total35To64_SelfCareDisability",{"$f":"\"MOE \"&CJ111","v":"MOE Total35To64_SelfCareDisability"},"Total65To74_SelfCareDisability",{"$f":"\"MOE \"&CL111","v":"MOE Total65To74_SelfCareDisability"},"Total75andOlder_SelfCareDisability",{"$f":"\"MOE \"&CN111","v":"MOE Total75andOlder_SelfCareDisability"},"Total18To34_IndependantLivingDisability",{"$f":"\"MOE \"&CP111","v":"MOE Total18To34_IndependantLivingDisability"},"Total35To64_IndependantLivingDisability",{"$f":"\"MOE \"&CR111","v":"MOE Total35To64_IndependantLivingDisability"},"Total65To74_IndependantLivingDisability",{"$f":"\"MOE \"&CT111","v":"MOE Total65To74_IndependantLivingDisability"},"Total75andOlder_IndependantLivingDisability",{"$f":"\"MOE \"&CV111","v":"MOE Total75andOlder_IndependantLivingDisability"},"TotalUnder18_OneDisability",{"$f":"\"MOE \"&CX111","v":"MOE TotalUnder18_OneDisability"},"TotalUnder18_TwoDisability",{"$f":"\"MOE \"&CZ111","v":"MOE TotalUnder18_TwoDisability"},"18to6YearWIthOneDisability",{"$f":"\"MOE \"&DB111","v":"MOE 18to6YearWIthOneDisability"},"18to64YearWIthTwoOrMoreDisability",{"$f":"\"MOE \"&DD111","v":"MOE 18to64YearWIthTwoOrMoreDisability"},"Over64YearsWIthOneDisability",{"$f":"\"MOE \"&DF111","v":"MOE Over64YearsWIthOneDisability"},"Over64YearsWIthTwoOrMoreDisability",{"$f":"\"MOE \"&DH111","v":"MOE Over64YearsWIthTwoOrMoreDisability"}]
[{"$f":"VLOOKUP(DropDownList!$B$24,CntyQuery!$A$70:$CF$88,A$1)","v":"Wolfeboro"},6130,40,201,81.584312217484552,0,22.627416997969522,201,81.584312217484552,597,179.40178371465541,0,22.627416997969522,597,179.40178371465541,773,216.67025638051939,33,41.231056256176608,740,221.16509670379727,2351,196.65706191235543,310,152.3975065412817,2041,220.09543384632039,1222,170.18225524419401,218,97.652444925869617,1004,162.68988905276197,986,230.20208513391012,557,217.27862297059966,429,156.20499351813308,0,22.627416997969522,0,22.627416997969522,0,22.627416997969522,43,50.596442562694072,135,76.53757247260981,291,157.8131806916013,0,22.627416997969522,0,22.627416997969522,0,22.627416997969522,108,105.38026380684383,18,33.120990323358392,118,117.51595636338071,0,22.627416997969522,33,41.231056256176608,153,112.57886124845996,32,36.796738985948195,194,143.95138068111746,0,22.627416997969522,0,22.627416997969522,120,96.041657628343756,125,94.826156729037578,469,206.64946164943183,0,22.627416997969522,0,22.627416997969522,56,54.083269131959838,32,36.796738985948195,52,84.528101836016646,38,48.703182647543684,47,51.546095875439491,14,28.0178514522438,75,50.089919145472777,0,16,0,16,205,123,138,99,221,125,554,272]
[]
["Househould Income By Age"]
["NAME","TotalHouseholds",{"$f":"\"MOE \"&B115","v":"MOE TotalHouseholds"},"HHInc<10K",{"$f":"\"MOE \"&D115","v":"MOE HHInc<10K"},"HHInc10to15K",{"$f":"\"MOE \"&F115","v":"MOE HHInc10to15K"},"HHInc15to20K",{"$f":"\"MOE \"&H115","v":"MOE HHInc15to20K"},"HHInc20to25K",{"$f":"\"MOE \"&J115","v":"MOE HHInc20to25K"},"HHInc25to30K",{"$f":"\"MOE \"&L115","v":"MOE HHInc25to30K"},"HHInc30to35K",{"$f":"\"MOE \"&N115","v":"MOE HHInc30to35K"},"HHInc35to40K",{"$f":"\"MOE \"&P115","v":"MOE HHInc35to40K"},"HHInc40to45K",{"$f":"\"MOE \"&R115","v":"MOE HHInc40to45K"},"HHInc45to50K",{"$f":"\"MOE \"&T115","v":"MOE HHInc45to50K"},"HHInc50to60K",{"$f":"\"MOE \"&V115","v":"MOE HHInc50to60K"},"HHInc60to75K",{"$f":"\"MOE \"&X115","v":"MOE HHInc60to75K"},"HHInc75to100K",{"$f":"\"MOE \"&Z115","v":"MOE HHInc75to100K"},"HHInc100to125K",{"$f":"\"MOE \"&AB115","v":"MOE HHInc100to125K"},"HHInc125to150K",{"$f":"\"MOE \"&AD115","v":"MOE HHInc125to150K"},"HHInc150to200K",{"$f":"\"MOE \"&AF115","v":"MOE HHInc150to200K"},"HHInc>200K",{"$f":"\"MOE \"&AH115","v":"MOE HHInc>200K"},"TotalHH",{"$f":"\"MOE \"&AJ115","v":"MOE TotalHH"},"HHAgeHHUnder25yrs",{"$f":"\"MOE \"&AL115","v":"MOE HHAgeHHUnder25yrs"},"HHAgeHH<25HHInc<10K",{"$f":"\"MOE \"&AN115","v":"MOE HHAgeHH<25HHInc<10K"},"HHAgeHH<25HHInc10to15K",{"$f":"\"MOE \"&AP115","v":"MOE HHAgeHH<25HHInc10to15K"},"HHAgeHH<25HHInc15to20K",{"$f":"\"MOE \"&AR115","v":"MOE HHAgeHH<25HHInc15to20K"},"HHAgeHH<25HHInc20to25K",{"$f":"\"MOE \"&AT115","v":"MOE HHAgeHH<25HHInc20to25K"},"HHAgeHH<25HHInc25to30K",{"$f":"\"MOE \"&AV115","v":"MOE HHAgeHH<25HHInc25to30K"},"HHAgeHH<25HHInc30to35K",{"$f":"\"MOE \"&AX115","v":"MOE HHAgeHH<25HHInc30to35K"},"HHAgeHH<25HHInc35to40K",{"$f":"\"MOE \"&AZ115","v":"MOE HHAgeHH<25HHInc35to40K"},"HHAgeHH<25HHInc40to45K",{"$f":"\"MOE \"&BB115","v":"MOE HHAgeHH<25HHInc40to45K"},"HHAgeHH<25HHInc45to50K",{"$f":"\"MOE \"&BD115","v":"MOE HHAgeHH<25HHInc45to50K"},"HHAgeHH<25HHInc50to60K",{"$f":"\"MOE \"&BF115","v":"MOE HHAgeHH<25HHInc50to60K"},"HHAgeHH<25HHInc60to75K",{"$f":"\"MOE \"&BH115","v":"MOE HHAgeHH<25HHInc60to75K"},"HHAgeHH<25HHInc75to100K",{"$f":"\"MOE \"&BJ115","v":"MOE HHAgeHH<25HHInc75to100K"},"HHAgeHH<25HHInc100to125K",{"$f":"\"MOE \"&BL115","v":"MOE HHAgeHH<25HHInc100to125K"},"HHAgeHH<25HHInc125to150K",{"$f":"\"MOE \"&BN115","v":"MOE HHAgeHH<25HHInc125to150K"},"HHAgeHH<25HHInc150to200K",{"$f":"\"MOE \"&BP115","v":"MOE HHAgeHH<25HHInc150to200K"},"HHAge<25HHInc>200K",{"$f":"\"MOE \"&BR115","v":"MOE HHAge<25HHInc>200K"},"HHAgeHH25to44yrs",{"$f":"\"MOE \"&BT115","v":"MOE HHAgeHH25to44yrs"},"HHAgeHH25To44yrsHHInc<10K",{"$f":"\"MOE \"&BV115","v":"MOE HHAgeHH25To44yrsHHInc<10K"},"HHAgeHH25To44yrsHHInc10to15K",{"$f":"\"MOE \"&BX115","v":"MOE HHAgeHH25To44yrsHHInc10to15K"},"HHAgeHH25To44yrsHHInc15to20K",{"$f":"\"MOE \"&BZ115","v":"MOE HHAgeHH25To44yrsHHInc15to20K"},"HHAgeHH25To44yrsHHInc20to25K",{"$f":"\"MOE \"&CB115","v":"MOE HHAgeHH25To44yrsHHInc20to25K"},"HHAgeHH25To44yrsHHInc25to30K",{"$f":"\"MOE \"&CD115","v":"MOE HHAgeHH25To44yrsHHInc25to30K"},"HHAgeHH25To44yrsHHInc30to35K",{"$f":"\"MOE \"&CF115","v":"MOE HHAgeHH25To44yrsHHInc30to35K"},"HHAgeHH25To44yrsHHInc35to40K",{"$f":"\"MOE \"&CH115","v":"MOE HHAgeHH25To44yrsHHInc35to40K"},"HHAgeHH25To44yrsHHInc40to45K",{"$f":"\"MOE \"&CJ115","v":"MOE HHAgeHH25To44yrsHHInc40to45K"},"HHAgeHH25To44yrsHHInc45to50K",{"$f":"\"MOE \"&CL115","v":"MOE HHAgeHH25To44yrsHHInc45to50K"},"HHAgeHH25To44yrsHHInc50to60K",{"$f":"\"MOE \"&CN115","v":"MOE HHAgeHH25To44yrsHHInc50to60K"},"HHAgeHH25To44yrsHHInc60to75K",{"$f":"\"MOE \"&CP115","v":"MOE HHAgeHH25To44yrsHHInc60to75K"},"HHAgeHH25To44yrsHHInc75to100K",{"$f":"\"MOE \"&CR115","v":"MOE HHAgeHH25To44yrsHHInc75to100K"},"HHAgeHH25To44yrsHHInc100to125K",{"$f":"\"MOE \"&CT115","v":"MOE HHAgeHH25To44yrsHHInc100to125K"},"HHAgeHH25To44yrsHHInc125to150K",{"$f":"\"MOE \"&CV115","v":"MOE HHAgeHH25To44yrsHHInc125to150K"},"HHAgeHH25To44yrsHHInc150to200K",{"$f":"\"MOE \"&CX115","v":"MOE HHAgeHH25To44yrsHHInc150to200K"},"HHAge25To44yrsHHInc>200K",{"$f":"\"MOE \"&CZ115","v":"MOE HHAge25To44yrsHHInc>200K"},"HHAgeHH45To64yrs",{"$f":"\"MOE \"&DB115","v":"MOE HHAgeHH45To64yrs"},"HHAgeHH45To64yrsHHInc<10K",{"$f":"\"MOE \"&DD115","v":"MOE HHAgeHH45To64yrsHHInc<10K"},"HHAgeHH45To64yrsHHInc10to15K",{"$f":"\"MOE \"&DF115","v":"MOE HHAgeHH45To64yrsHHInc10to15K"},"HHAgeHH45To64yrsHHInc15to20K",{"$f":"\"MOE \"&DH115","v":"MOE HHAgeHH45To64yrsHHInc15to20K"},"HHAgeHH45To64yrsHHInc20to25K",{"$f":"\"MOE \"&DJ115","v":"MOE HHAgeHH45To64yrsHHInc20to25K"},"HHAgeHH45To64yrsHHInc25to30K",{"$f":"\"MOE \"&DL115","v":"MOE HHAgeHH45To64yrsHHInc25to30K"},"HHAgeHH45To64yrsHHInc30to35K",{"$f":"\"MOE \"&DN115","v":"MOE HHAgeHH45To64yrsHHInc30to35K"},"HHAgeHH45To64yrsHHInc35to40K",{"$f":"\"MOE \"&DP115","v":"MOE HHAgeHH45To64yrsHHInc35to40K"},"HHAgeHH45To64yrsHHInc40to45K",{"$f":"\"MOE \"&DR115","v":"MOE HHAgeHH45To64yrsHHInc40to45K"},"HHAgeHH45To64yrsHHInc45to50K",{"$f":"\"MOE \"&DT115","v":"MOE HHAgeHH45To64yrsHHInc45to50K"},"HHAgeHH45To64yrsHHInc50to60K",{"$f":"\"MOE \"&DV115","v":"MOE HHAgeHH45To64yrsHHInc50to60K"},"HHAgeHH45To64yrsHHInc60to75K",{"$f":"\"MOE \"&DX115","v":"MOE HHAgeHH45To64yrsHHInc60to75K"},"HHAgeHH45To64yrsHHInc75to100K",{"$f":"\"MOE \"&DZ115","v":"MOE HHAgeHH45To64yrsHHInc75to100K"},"HHAgeHH45To64yrsHHInc100to125K",{"$f":"\"MOE \"&EB115","v":"MOE HHAgeHH45To64yrsHHInc100to125K"},"HHAgeHH45To64yrsHHInc125to150K",{"$f":"\"MOE \"&ED115","v":"MOE HHAgeHH45To64yrsHHInc125to150K"},"HHAgeHH45To64yrsHHInc150to200K",{"$f":"\"MOE \"&EF115","v":"MOE HHAgeHH45To64yrsHHInc150to200K"},"HHAge45To64yrsHHInc>200K",{"$f":"\"MOE \"&EH115","v":"MOE HHAge45To64yrsHHInc>200K"},"HHAgeHH65yrsorOlder",{"$f":"\"MOE \"&EJ115","v":"MOE HHAgeHH65yrsorOlder"},"HHAgeHH65yrsorOlderHHInc<10K",{"$f":"\"MOE \"&EL115","v":"MOE HHAgeHH65yrsorOlderHHInc<10K"},"HHAgeHH65yrsorOlderHHInc10to15K",{"$f":"\"MOE \"&EN115","v":"MOE HHAgeHH65yrsorOlderHHInc10to15K"},"HHAgeHH65yrsorOlderHHInc15to20K",{"$f":"\"MOE \"&EP115","v":"MOE HHAgeHH65yrsorOlderHHInc15to20K"},"HHAgeHH65yrsorOlderHHInc20to25K",{"$f":"\"MOE \"&ER115","v":"MOE HHAgeHH65yrsorOlderHHInc20to25K"},"HHAgeHH65yrsorOlderHHInc25to30K",{"$f":"\"MOE \"&ET115","v":"MOE HHAgeHH65yrsorOlderHHInc25to30K"},"HHAgeHH65yrsorOlderHHInc30to35K",{"$f":"\"MOE \"&EV115","v":"MOE HHAgeHH65yrsorOlderHHInc30to35K"},"HHAgeHH65yrsorOlderHHInc35to40K",{"$f":"\"MOE \"&EX115","v":"MOE HHAgeHH65yrsorOlderHHInc35to40K"},"HHAgeHH65yrsorOlderHHInc40to45K",{"$f":"\"MOE \"&EZ115","v":"MOE HHAgeHH65yrsorOlderHHInc40to45K"},"HHAgeHH65yrsorOlderHHInc45to50K",{"$f":"\"MOE \"&FB115","v":"MOE HHAgeHH65yrsorOlderHHInc45to50K"},"HHAgeHH65yrsorOlderHHInc50to60K",{"$f":"\"MOE \"&FD115","v":"MOE HHAgeHH65yrsorOlderHHInc50to60K"},"HHAgeHH65yrsorOlderHHInc60to75K",{"$f":"\"MOE \"&FF115","v":"MOE HHAgeHH65yrsorOlderHHInc60to75K"},"HHAgeHH65yrsorOlderHHInc75to100K",{"$f":"\"MOE \"&FH115","v":"MOE HHAgeHH65yrsorOlderHHInc75to100K"},"HHAgeHH65yrsorOlderHHInc100to125K",{"$f":"\"MOE \"&FJ115","v":"MOE HHAgeHH65yrsorOlderHHInc100to125K"},"HHAgeHH65yrsorOlderHHInc125to150K",{"$f":"\"MOE \"&FL115","v":"MOE HHAgeHH65yrsorOlderHHInc125to150K"},"HHAgeHH65yrsorOlderHHInc150to200K",{"$f":"\"MOE \"&FN115","v":"MOE HHAgeHH65yrsorOlderHHInc150to200K"},"HHAge65yrsorOlderHHInc>200K",{"$f":"\"MOE \"&FP115","v":"MOE HHAge65yrsorOlderHHInc>200K"},"MedianHHInc",{"$f":"\"MOE \"&FR115","v":"MOE MedianHHInc"},"HH under 25 years",{"$f":"\"MOE \"&FT115","v":"MOE HH under 25 years"},"Householder 25 to 44 years",{"$f":"\"MOE \"&FV115","v":"MOE Householder 25 to 44 years"},"Householder 45 to 64 years",{"$f":"\"MOE \"&FX115","v":"MOE Householder 45 to 64 years"},"Householder 65 years and over",{"$f":"\"MOE \"&FZ115","v":"MOE Householder 65 years and over"}]
[{"$f":"VLOOKUP(DropDownList!$B$24,CntyQuery!$A$70:$CF$88,A$1)","v":"Wolfeboro"},2935,210,54,65,221,157,83,85,195,141,166,126,249,125,149,104,183,139,149,111,163,97,171,74,242,111,345,161,147,100,200,108,218,132,2935,210,44,67,0,16,0,16,0,16,0,16,0,16,44,67,0,16,0,16,0,16,0,16,0,16,0,16,0,16,0,16,0,16,0,16,457,144,31,50,86,122,0,16,0,16,0,16,48,55,30,45,0,16,37,61,0,16,0,16,79,69,114,104,0,16,0,16,32,51,1061,199,23,38,68,59,50,76,68,80,0,16,107,65,0,16,87,110,31,47,83,75,65,53,55,56,110,100,121,92,62,58,131,97,1373,205,0,16,67,87,33,38,127,121,166,126,50,48,119,97,96,98,81,80,80,55,106,62,108,55,121,76,26,35,138,89,55,51,50907,13342,"-","**","-","**",62411,38719,46619,13503]
[]
["Number of Households by Income"]
["NAME","HHIncLessThn10k",{"$f":"\"MOE \"&B119","v":"MOE HHIncLessThn10k"},"HHInc10to15K",{"$f":"\"MOE \"&D119","v":"MOE HHInc10to15K"},"HHInc15to25K",{"$f":"\"MOE \"&F119","v":"MOE HHInc15to25K"},"HHInc25to35K",{"$f":"\"MOE \"&H119","v":"MOE HHInc25to35K"},"HHInc35to50K",{"$f":"\"MOE \"&J119","v":"MOE HHInc35to50K"},"HHInc50to75K",{"$f":"\"MOE \"&L119","v":"MOE HHInc50to75K"},"HHInc75to100K",{"$f":"\"MOE \"&N119","v":"MOE HHInc75to100K"},"HHInc100to150K",{"$f":"\"MOE \"&P119","v":"MOE HHInc100to150K"},"HHInc150to200K",{"$f":"\"MOE \"&R119","v":"MOE HHInc150to200K"},"HHIncOver200K",{"$f":"\"MOE \"&T119","v":"MOE HHIncOver200K"}]
[{"$f":"VLOOKUP(DropDownList!$B$24,CntyQuery!$A$70:$CF$88,A$1)","v":"Wolfeboro"},54,65,221,157,278,164.63899902513984,415,177.48521065147935,481,206.05339113928702,334,122.00409829181969,242,111,492,189.52836199366047,200,108,218,132]
[]
[]
["NAME","TotalPop",{"$f":"\"MOE \"&B123","v":"MOE TotalPop"},"Total Individuals living in Poverty",{"$f":"\"MOE \"&D123","v":"MOE Total Individuals living in Poverty"},"Under 5 yrs.",{"$f":"\"MOE \"&F123","v":"MOE Under 5 yrs."},"5 to 17 yrs.",{"$f":"\"MOE \"&H123","v":"MOE 5 to 17 yrs."},"18 to 64 yrs.",{"$f":"\"MOE \"&J123","v":"MOE 18 to 64 yrs."},"65 to 74 yrs.",{"$f":"\"MOE \"&L123","v":"MOE 65 to 74 yrs."},"75 yrs. & Over",{"$f":"\"MOE \"&N123","v":"MOE 75 yrs. & Over"},"Total Individuals  Not living Poverty",{"$f":"\"MOE \"&P123","v":"MOE Total Individuals  Not living Poverty"},"Under 5 yrs.",{"$f":"\"MOE \"&R123","v":"MOE Under 5 yrs."},"5 to 17 yrs.",{"$f":"\"MOE \"&T123","v":"MOE 5 to 17 yrs."},"18 to 64 yrs.",{"$f":"\"MOE \"&V123","v":"MOE 18 to 64 yrs."},"65 to 74 yrs.",{"$f":"\"MOE \"&X123","v":"MOE 65 to 74 yrs."},"75 yrs. & Over",{"$f":"\"MOE \"&Z123","v":"MOE 75 yrs. & Over"},"Total HH",{"$f":"\"MOE \"&AB123","v":"MOE Total HH"},"Total Households Below Poverty",{"$f":"\"MOE \"&AD123","v":"MOE Total Households Below Poverty"},"Family Households in Poverty",{"$f":"\"MOE \"&AF123","v":"MOE Family Households in Poverty"},"Married Couple Fam HH",{"$f":"\"MOE \"&AH123","v":"MOE Married Couple Fam HH"},"Other Family",{"$f":"\"MOE \"&AJ123","v":"MOE Other Family"},"Male Head of Family HH no wife",{"$f":"\"MOE \"&AL123","v":"MOE Male Head of Family HH no wife"},"Female Head of Family HH no husband",{"$f":"\"MOE \"&AN123","v":"MOE Female Head of Family HH no husband"},"Non-Family HH",{"$f":"\"MOE \"&AP123","v":"MOE Non-Family HH"},"Non-Family Male HH",{"$f":"\"MOE \"&AR123","v":"MOE Non-Family Male HH"},"Non-Family Female HH",{"$f":"\"MOE \"&AT123","v":"MOE Non-Family Female HH"},"Total Households at or Above Poverty",{"$f":"\"MOE \"&AV123","v":"MOE Total Households at or Above Poverty"},"Family Households above Poverty",{"$f":"\"MOE \"&AX123","v":"MOE Family Households above Poverty"},"Married Couple Fam HH",{"$f":"\"MOE \"&AZ123","v":"MOE Married Couple Fam HH"},"Other Family",{"$f":"\"MOE \"&BB123","v":"MOE Other Family"},"Male Head of Family HH no wife",{"$f":"\"MOE \"&BD123","v":"MOE Male Head of Family HH no wife"},"Female Head of Family HH no husband",{"$f":"\"MOE \"&BF123","v":"MOE Female Head of Family HH no husband"},"Non-Family HH",{"$f":"\"MOE \"&BH123","v":"MOE Non-Family HH"},"Non-Family Male HH",{"$f":"\"MOE \"&BJ123","v":"MOE Non-Family Male HH"},"Non-Family Female HH",{"$f":"\"MOE \"&BL123","v":"MOE Non-Family Female HH"},"Married Couple with Children Below Poverty",{"$f":"\"MOE \"&BN123","v":"MOE Married Couple with Children Below Poverty"},"Male HH with children below poverty",{"$f":"\"MOE \"&BP123","v":"MOE Male HH with children below poverty"},"Female HH with children below poverty",{"$f":"\"MOE \"&BR123","v":"MOE Female HH with children below poverty"},"Married Couple with Children At or Above Poverty",{"$f":"\"MOE \"&BT123","v":"MOE Married Couple with Children At or Above Poverty"},"Male HH with children at or above poverty",{"$f":"\"MOE \"&BV123","v":"MOE Male HH with children at or above poverty"},"Female HH with children at or above poverty",{"$f":"\"MOE \"&BX123","v":"MOE Female HH with children at or above poverty"}]
[{"$f":"VLOOKUP(DropDownList!$B$24,CntyQuery!$A$70:$CF$88,A$1)","v":"Wolfeboro"},6130,40,340,252,39,72.718635850791372,0,48.166378315169183,301,196.80701207020039,0,22.627416997969522,0,22.627416997969522,5790,246,162,72.780491891715045,597,209.81896959045434,2823,359.93332715935043,1222,170.18225524419401,986,230.20208513391012,2935,210,190,143,64,67,64,67,0,16,0,16,0,16,126,131,17,28,109,127,2745,198,1946,158,1690,191,256,154,137,121,119,107,799,241,799,241,503,208,31,50,0,16,0,16,405,128,18,33,69,93]
[]
["Household Income By Tenure"]
["NAME","TotalOccHU",{"$f":"\"MOE \"&B127","v":"MOE TotalOccHU"},"OwnOccHU",{"$f":"\"MOE \"&D127","v":"MOE OwnOccHU"},"OOHUInc<5K",{"$f":"\"MOE \"&F127","v":"MOE OOHUInc<5K"},"OOHUInc5to10K",{"$f":"\"MOE \"&H127","v":"MOE OOHUInc5to10K"},"OOHUInc10to15K",{"$f":"\"MOE \"&J127","v":"MOE OOHUInc10to15K"},"OOHUInc15to20K",{"$f":"\"MOE \"&L127","v":"MOE OOHUInc15to20K"},"OOHUInc20to25K",{"$f":"\"MOE \"&N127","v":"MOE OOHUInc20to25K"},"OOHUInc25to35K",{"$f":"\"MOE \"&P127","v":"MOE OOHUInc25to35K"},"OOHUInc35to50K",{"$f":"\"MOE \"&R127","v":"MOE OOHUInc35to50K"},"OOHUInc50to75K",{"$f":"\"MOE \"&T127","v":"MOE OOHUInc50to75K"},"OOHUInc75to100K",{"$f":"\"MOE \"&V127","v":"MOE OOHUInc75to100K"},"OOHUInc100to150K",{"$f":"\"MOE \"&X127","v":"MOE OOHUInc100to150K"},"OOHUInc>150K",{"$f":"\"MOE \"&Z127","v":"MOE OOHUInc>150K"},"RentOccHU",{"$f":"\"MOE \"&AB127","v":"MOE RentOccHU"},"ROHUInc<5K",{"$f":"\"MOE \"&AD127","v":"MOE ROHUInc<5K"},"ROHUInc5to10K",{"$f":"\"MOE \"&AF127","v":"MOE ROHUInc5to10K"},"ROHUInc10to15K",{"$f":"\"MOE \"&AH127","v":"MOE ROHUInc10to15K"},"ROHUInc15to20K",{"$f":"\"MOE \"&AJ127","v":"MOE ROHUInc15to20K"},"ROHUInc20to25K",{"$f":"\"MOE \"&AL127","v":"MOE ROHUInc20to25K"},"ROHUInc25to35K",{"$f":"\"MOE \"&AN127","v":"MOE ROHUInc25to35K"},"ROHUInc35to50K",{"$f":"\"MOE \"&AP127","v":"MOE ROHUInc35to50K"},"ROHUInc50to75K",{"$f":"\"MOE \"&AR127","v":"MOE ROHUInc50to75K"},"ROHUInc75to100K",{"$f":"\"MOE \"&AT127","v":"MOE ROHUInc75to100K"},"ROHUInc100to150K",{"$f":"\"MOE \"&AV127","v":"MOE ROHUInc100to150K"},"ROHUInc>150K",{"$f":"\"MOE \"&AX127","v":"MOE ROHUInc>150K"},"Total OCC HUInc<5K",{"$f":"\"MOE \"&AZ127","v":"MOE Total OCC HUInc<5K"},"Total OCC HUInc5to10K",{"$f":"\"MOE \"&BB127","v":"MOE Total OCC HUInc5to10K"},"Total OCC HUInc10to15K",{"$f":"\"MOE \"&BD127","v":"MOE Total OCC HUInc10to15K"},"Total OCC HUInc15to20K",{"$f":"\"MOE \"&BF127","v":"MOE Total OCC HUInc15to20K"},"Total OCC HUInc20to25K",{"$f":"\"MOE \"&BH127","v":"MOE Total OCC HUInc20to25K"},"Total OCC HUInc25to35K",{"$f":"\"MOE \"&BJ127","v":"MOE Total OCC HUInc25to35K"},"Total OCC HUInc35to50K",{"$f":"\"MOE \"&BL127","v":"MOE Total OCC HUInc35to50K"},"Total OCC HUInc50to75K",{"$f":"\"MOE \"&BN127","v":"MOE Total OCC HUInc50to75K"},"Total OCC HUInc75to100K",{"$f":"\"MOE \"&BP127","v":"MOE Total OCC HUInc75to100K"},"Total OCC HUInc100to150K",{"$f":"\"MOE \"&BR127","v":"MOE Total OCC HUInc100to150K"},"Total OCC HUInc>150K",{"$f":"\"MOE \"&BT127","v":"MOE Total OCC HUInc>150K"},"MedHHInc",{"$f":"\"MOE \"&BV127","v":"MOE MedHHInc"},"MedOwnOccHHInc",{"$f":"\"MOE \"&BX127","v":"MOE MedOwnOccHHInc"},"MedRentOccHHInc",{"$f":"\"MOE \"&BZ127","v":"MOE MedRentOccHHInc"}]
[{"$f":"VLOOKUP(DropDownList!$B$24,CntyQuery!$A$70:$CF$88,A$1)","v":"Wolfeboro"},2935,210,2302,218,23,38,0,16,67,87,33,38,139,117,346,148,283,145,334,127,227,106,449,188,401,155,633,207,31,50,0,16,154,131,50,76,56,86,69,93,198,124,0,16,15,25,43,71,17,26,54,62.801273872430329,0,22.627416997969522,221,157.25775020646836,83,84.970583144992005,195,145.2067491544384,415,174.79416466232504,481,190.79046097748179,334,128.00390619039717,242,108.90821823902914,492,200.9601950635996,418,157.16551784663199,50907,13342,67447,21646,30924,16226]
[]
["Population Data"]
["NAME","Total Population","MOE Total Population","Under 15 Years","MOE Under 15 yrs.","15 to 24 yrs.","MOE 15 to 24 yrs.","25 to 34 yrs.","MOE 25 to 34 yrs.","35 to 44 yrs.","MOE 35 to 44 yrs.","45 to 54 yrs.","MOE 45 to 54 yrs.","55 to 64 yrs.","MOE 55 to 64 yrs.","65 to 74 yrs.","MOE 65 to 74 yrs.","Over 74 yrs. ","MOE Over 74 yrs. ","TotalHH","MOE TotalHH","FamilyHH","MOE FamilyHH","MarriedFamilyHH","MOE MarriedFamilyHH","SingleFamilyHH","MOE SingleFamilyHH","Sfamily-MaleHH","MOE Sfamily-MaleHH","Sfamily-FemaleHH","MOE Sfamily-FemaleHH","NonFamilyHH","MOE NonFamilyHH","NonFamilyHH-LivingAlone","MOE NonFamilyHH-LivingAlone","NonFamilyHH-NotLivingAlone","MOE NonFamilyHH-NotLivingAlone","PopRaceWhite","MOE PopRaceWhite","PopRaceBlack","MOE PopRaceBlack","PopRaceAmerican Indian","MOE PopRaceAmerican Indian","PopRaceAsian &Pacific Is.","MOE PopRaceAsian &Pacific Is.","PopRaceOther*","MOE PopRaceOther*","PopRaceHispanic or Latino:","MOE PopRaceHispanic or Latino:","AvgAgeTotalPop","MOE AvgAgeTotalPop","AvgAgeMale","MOE AvgAgeMale","AvgAgeFemale","MOE AvgAgeFemale","AvgHHSizeTotal","MOE AvgHHSizeTotal","AvgHHSizeFamilyHH","MOE AvgHHSizeFamilyHH","AvgHHSizeNonFamilyHH","MOE AvgHHSizeNonFamilyHH"]
[{"$f":"VLOOKUP(DropDownList!$B$24,CntyQuery!$A$70:$CF$88,A$1)","v":"Wolfeboro"},6235,19,585,197.08627552419779,538,201.57628828808214,451,184.40715821247286,619,167.08081876744561,765,214.82551058940834,973,232.37900077244501,1232,233.4866163187946,1072,293.69882532962231,2935,210,2010,153,1754,187,256,154,137,121,119,107,925,261,860,260,65,56,6048,164,0,85,0,85,107,138.2244551445221,63,112.69871339105873,84,102,57.2,4.2,52.7,5.9,60.4,4.8,2.0885860306643953,0.21206297554320677,2.5572139303482588,0.39357217918576809,1.0702702702702702,0.44244557729846928]
[]
["Nativity and Prior Place of Residence"]
["NAME","TotalPop",{"$f":"\"MOE \"&B135","v":"MOE TotalPop"},"Native:",{"$f":"\"MOE \"&D135","v":"MOE Native:"},"NatBornInStateOfResidence",{"$f":"\"MOE \"&F135","v":"MOE NatBornInStateOfResidence"},"Born in other state in the United States:",{"$f":"\"MOE \"&H135","v":"MOE Born in other state in the United States:"},"Northeast",{"$f":"\"MOE \"&J135","v":"MOE Northeast"},"Midwest",{"$f":"\"MOE \"&L135","v":"MOE Midwest"},"South",{"$f":"\"MOE \"&N135","v":"MOE South"},"West",{"$f":"\"MOE \"&P135","v":"MOE West"},"Born outside the United States:",{"$f":"\"MOE \"&R135","v":"MOE Born outside the United States:"},"Puerto Rico",{"$f":"\"MOE \"&T135","v":"MOE Puerto Rico"},"U.S. Island Areas",{"$f":"\"MOE \"&V135","v":"MOE U.S. Island Areas"},"Born abroad of American parent(s)",{"$f":"\"MOE \"&X135","v":"MOE Born abroad of American parent(s)"},"Foreign born:",{"$f":"\"MOE \"&Z135","v":"MOE Foreign born:"},"Naturalized U.S. citizen",{"$f":"\"MOE \"&AB135","v":"MOE Naturalized U.S. citizen"},"Not a U.S. citizen",{"$f":"\"MOE \"&AD135","v":"MOE Not a U.S. citizen"},"CurrentResideneTotal:",{"$f":"\"MOE \"&AF135","v":"MOE CurrentResideneTotal:"},"SameHouse:",{"$f":"\"MOE \"&AH135","v":"MOE SameHouse:"},"DifferentHouse:",{"$f":"\"MOE \"&AJ135","v":"MOE DifferentHouse:"},"DiffHouseInNH",{"$f":"\"MOE \"&AL135","v":"MOE DiffHouseInNH"},"DiffHouseInNHSameCnty",{"$f":"\"MOE \"&AN135","v":"MOE DiffHouseInNHSameCnty"},"DiffHouseInNHDiffCnty",{"$f":"\"MOE \"&AP135","v":"MOE DiffHouseInNHDiffCnty"},"DiffHouseInDiffState",{"$f":"\"MOE \"&AR135","v":"MOE DiffHouseInDiffState"},"DiffHouseInElsewhere",{"$f":"\"MOE \"&AT135","v":"MOE DiffHouseInElsewhere"}]
[{"$f":"VLOOKUP(DropDownList!$B$24,CntyQuery!$A$70:$CF$88,A$1)","v":"Wolfeboro"},6235,19,5985,143,2361,404,3494,364,2931,335,167,91,221,115,175,133,130,117,1,3,0,16,129,117,250,145,160,110,90,77,6213,40,5550,279,663,300.41304898422771,272,177.27944043232989,104,72,168,162,391,242,0,16,35,43]
[]
["School Enrollment - Education"]
["NAME","Total Pop 3 Years and Older","MOE Total Pop 3 Years and Older","P36SchEnrlPop3yrOver",{"$f":"\"MOE \"&D139","v":"MOE P36SchEnrlPop3yrOver"},"TotalEnrollNursy&Kinder",{"$f":"\"MOE \"&F139","v":"MOE TotalEnrollNursy&Kinder"},"P36NurserSchEnrl",{"$f":"\"MOE \"&H139","v":"MOE P36NurserSchEnrl"},"P36KinderSchEnrl",{"$f":"\"MOE \"&J139","v":"MOE P36KinderSchEnrl"},"P36ElemSchEnrl",{"$f":"\"MOE \"&L139","v":"MOE P36ElemSchEnrl"},"P36HighSchEnrl",{"$f":"\"MOE \"&N139","v":"MOE P36HighSchEnrl"},"TotalElementry&HSEnroll",{"$f":"\"MOE \"&P139","v":"MOE TotalElementry&HSEnroll"},"P36CollGradSchEnrl",{"$f":"\"MOE \"&R139","v":"MOE P36CollGradSchEnrl"},"PopNotEnrolled","MOE PopNotEnrolled","P37Pop25yrsOver",{"$f":"\"MOE \"&V139","v":"MOE P37Pop25yrsOver"},"P37EduAtain<9grd",{"$f":"\"MOE \"&X139","v":"MOE P37EduAtain<9grd"},"P37EduAtainHSnoDip",{"$f":"\"MOE \"&Z139","v":"MOE P37EduAtainHSnoDip"},"P37EduAtainHSgrad",{"$f":"\"MOE \"&AB139","v":"MOE P37EduAtainHSgrad"},"P37EduAtainCollNoDeg",{"$f":"\"MOE \"&AD139","v":"MOE P37EduAtainCollNoDeg"},"P37EduAtainAssocDeg",{"$f":"\"MOE \"&AF139","v":"MOE P37EduAtainAssocDeg"},"P37EduAtainBachDeg",{"$f":"\"MOE \"&AH139","v":"MOE P37EduAtainBachDeg"},"P37EduAtainGradProfDeg",{"$f":"\"MOE \"&AJ139","v":"MOE P37EduAtainGradProfDeg"}]
[{"$f":"VLOOKUP(DropDownList!$B$24,CntyQuery!$A$70:$CF$88,A$1)","v":"Wolfeboro"},6094,66,839,237,46,45.694638635183452,37,42,9,18,375,175.72706109191037,213,90,588,197.43353311937665,205,136.75159962501354,5255,245,5112,242,89,91.285267157411553,269,142.46754016266303,1384,261.34460009726621,801,289.25767059837841,304,117.64777940955791,1253,293.47061181658376,1012,221.63709075874462]
[]
["Occupied Owner Housing Value"]
["NAME","OwnerOccHU","MOE OwnerOccHU","AllOOHU<10k","MOE AllOOHU<10k","AllOOHU10to15k","MOE AllOOHU10to15k","AllOOHU15to20k","MOE AllOOHU15to20k","AllOOHU20to25k","MOE AllOOHU20to25k","AllOOHU25to30k","MOE AllOOHU25to30k","AllOOHU30to35k","MOE AllOOHU30to35k","AllOOHU35to40k","MOE AllOOHU35to40k","AllOOHU40to50k","MOE AllOOHU40to50k","AllOOHU50to60k","MOE AllOOHU50to60k","AllOOHU60to70k","MOE AllOOHU60to70k","AllOOHU70to80k","MOE AllOOHU70to80k","AllOOHU80to90k","MOE AllOOHU80to90k","AllOOHU90to100k","MOE AllOOHU90to100k","AllOOHU100to125k","MOE AllOOHU100to125k","AllOOHU125to150k","MOE AllOOHU125to150k","AllOOHU150to175k","MOE AllOOHU150to175k","AllOOHU175to200k","MOE AllOOHU175to200k","AllOOHU200to250k","MOE AllOOHU200to250k","AllOOHU250to300k","MOE AllOOHU250to300k","AllOOHU300to400k","MOE AllOOHU300to400k","AllOOHU400to500k","MOE AllOOHU400to500k","AllOOHU500to750k","MOE AllOOHU500to750k","AllOOHU750to1000k","MOE AllOOHU750to1000k","AllOOHU1000k-1499k","MOE AllOOHU1000k-1499k","AllOOHU1500k-1999k","MOE AllOOHU1500k-1999k","AllOOHU2000k or more","MOE AllOOHU2000k or more","MedianOwnOCCHomeValue","MOE MedianOwnOCCHomeValue","OnwerOccHsU","MOE OnwerOccHsU","OwnerCosts>20PctHHInc","MOE OwnerCosts>20PctHHInc","OwnerCosts20to29.9PctHHInc","MOE OwnerCosts20to29.9PctHHInc","OwnerCosts<30PctHHInc","MOE OwnerCosts<30PctHHInc","OwnerCosts>30PctHHInc","MOE OwnerCosts>30PctHHInc","OwnerCosts30to34.9PctHHInc","MOE OwnerCosts30to34.9PctHHInc","OwnerCosts<35PctHHInc","MOE OwnerCosts<35PctHHInc","OwnerCosts>35PctHHInc","MOE OwnerCosts>35PctHHInc","OwnerCosts>50PctHHInc","MOE OwnerCosts>50PctHHInc","OwnerCostsPctNotcomputed","MOE OwnerCostsPctNotcomputed","OwnerOHUHhInc<20k","MOE OwnerOHUHhInc<20k","OwnerOHUHhInc<20kHCosts<20pct","MOE OwnerOHUHhInc<20kHCosts<20pct","OwnerOHUHhInc<20kHCosts20to29pct","MOE OwnerOHUHhInc<20kHCosts20to29pct","OwnerOHUHhInc>20kHCosts30pct","MOE OwnerOHUHhInc>20kHCosts30pct","OwnerOHUHhInc20kTo34999","MOE OwnerOHUHhInc20kTo34999","OwnerOHUHhInc20kTo34999HCosts<20pct","MOE OwnerOHUHhInc20kTo34999HCosts<20pct","OwnerOHUHhInc20kTo34999HCosts20to29pct","MOE OwnerOHUHhInc20kTo34999HCosts20to29pct","OwnerOHUHhInc20kTo34999HCosts30pct","MOE OwnerOHUHhInc20kTo34999HCosts30pct","OwnerOHUHhInc35kTo49999","MOE OwnerOHUHhInc35kTo49999","OwnerOHUHhInc35kTo49999HCosts<20pct","MOE OwnerOHUHhInc35kTo49999HCosts<20pct","OwnerOHUHhInc35kTo49999HCosts20to29pct","MOE OwnerOHUHhInc35kTo49999HCosts20to29pct","OwnerOHUHhInc35kTo49999HCosts30pct","MOE OwnerOHUHhInc35kTo49999HCosts30pct","OwnerOHUHhInc50kTo74999","MOE OwnerOHUHhInc50kTo74999","OwnerOHUHhInc50kTo74999HCosts<20pct","MOE OwnerOHUHhInc50kTo74999HCosts<20pct","OwnerOHUHhInc50kTo74999HCosts20to29pct","MOE OwnerOHUHhInc50kTo74999HCosts20to29pct","OwnerOHUHhInc50kTo74999HCosts30pct","MOE OwnerOHUHhInc50kTo74999HCosts30pct","OwnerOHUHhInc>75000","MOE OwnerOHUHhInc>75000","OwnerOHUHhInc>75000HCosts<20pct","MOE OwnerOHUHhInc>75000HCosts<20pct","OwnerOHUHhInc>75000HCosts20to29pct","MOE OwnerOHUHhInc>75000HCosts20to29pct","OwnerOHUHhInc>75000HCosts30pct","MOE OwnerOHUHhInc>75000HCosts30pct","ZeroOrNegativeIncome","MOE ZeroOrNegativeIncome"]
[{"$f":"VLOOKUP(DropDownList!$B$24,CntyQuery!$A$70:$CF$88,A$1)","v":"Wolfeboro"},2302,218,19,30,0,16,0,16,0,16,0,16,0,16,0,16,31,36,0,16,0,16,0,16,20,31,0,16,56,58,0,16,117,77,233,133,330,154,500,170,460,176,134,72,212,133,129,93,61,57,0,16,0,16,284500,20074,2302,218,1190,259.00579144104097,453,169.09760495051373,1643,309.31860597125416,636,237.10967926257248,242,157.4102919125684,1885,347.06771673550969,394,177.32174147577055,198,136.49908424601244,23,41.231056256176608,100,95,0,16,0,16,100,95,485,200,44,49,124,102,317,170,283,145,86,72,40,38,157,124,334,127,224,103,78,68,32,36,1077,219,836,199,211,123,30,34,23,38]
[]
["Occupied Rental Housing Value"]
["NAME","RntrOccHU","MOE RntrOccHU","RntrOccHUwRent","MOE RntrOccHUwRent","ROHUGRent<100","MOE ROHUGRent<100","ROHUGRent100to149","MOE ROHUGRent100to149","ROHUGRent150to199","MOE ROHUGRent150to199","ROHUGRent200to249","MOE ROHUGRent200to249","ROHUGRent250to299","MOE ROHUGRent250to299","ROHUGRent300to349","MOE ROHUGRent300to349","ROHUGRent350to399","MOE ROHUGRent350to399","ROHUGRent400to449","MOE ROHUGRent400to449","ROHUGRent450to499","MOE ROHUGRent450to499","ROHUGRent500to549","MOE ROHUGRent500to549","ROHUGRent550to599","MOE ROHUGRent550to599","ROHUGRent600to649","MOE ROHUGRent600to649","ROHUGRent650to699","MOE ROHUGRent650to699","ROHUGRent700to749","MOE ROHUGRent700to749","ROHUGRent750to799","MOE ROHUGRent750to799","ROHUGRent800to899","MOE ROHUGRent800to899","ROHUGRent900to999","MOE ROHUGRent900to999","ROHUGRent1000to1249","MOE ROHUGRent1000to1249","ROHUGRent1250to1499","MOE ROHUGRent1250to1499","ROHUGRent1500to1999","MOE ROHUGRent1500to1999","ROHUGRent2000-2499","MOE ROHUGRent2000-2499","ROHUGRent2500-2999","MOE ROHUGRent2500-2999","ROHUGRent3000-3499","MOE ROHUGRent3000-3499","ROHUGRent3500<","MOE ROHUGRent3500<","ROHUNoGRent","MOE ROHUNoGRent","MedianGrossRnt","MOE MedianGrossRnt","H73RenterOccHU","MOE H73RenterOccHU","H73ROHUHhInc<10k","MOE H73ROHUHhInc<10k","H73ROHUHhInc<10kRnt<20pct","MOE H73ROHUHhInc<10kRnt<20pct","H73ROHUHhInc<10kRnt20to25pct","MOE H73ROHUHhInc<10kRnt20to25pct","H73ROHUHhInc<10kRnt25to30pct","MOE H73ROHUHhInc<10kRnt25to30pct","H73ROHUHhInc<10kRnt30to35pct","MOE H73ROHUHhInc<10kRnt30to35pct","H73ROHUHhInc<10kRnt35to39.9","MOE H73ROHUHhInc<10kRnt35to39.9","H73ROHUHhInc<10kRnt40to49.9","MOE H73ROHUHhInc<10kRnt40to49.9","H73ROHUHhInc<10kRnt>50pct","MOE H73ROHUHhInc<10kRnt>50pct","H73ROHUHhInc<10kPctNotComput","MOE H73ROHUHhInc<10kPctNotComput","H73ROHUHhInc10to20k","MOE H73ROHUHhInc10to20k","H73ROHUHhInc10to20kRnt<20pct","MOE H73ROHUHhInc10to20kRnt<20pct","H73ROHUHhInc10to20kRnt20to25pct","MOE H73ROHUHhInc10to20kRnt20to25pct","H73ROHUHhInc10to20kRnt25to30pct","MOE H73ROHUHhInc10to20kRnt25to30pct","H73ROHUHhInc10to20kRnt30to35pct","MOE H73ROHUHhInc10to20kRnt30to35pct","H73ROHUHhInc10to20kRnt35to39.9","MOE H73ROHUHhInc10to20kRnt35to39.9","H73ROHUHhInc10to20kRnt40to49.9","MOE H73ROHUHhInc10to20kRnt40to49.9","H73ROHUHhInc10to20kRnt>50pct","MOE H73ROHUHhInc10to20kRnt>50pct","H73ROHUHhInc10to20kRntPctNC","MOE H73ROHUHhInc10to20kRntPctNC","H73ROHUHhInc20to34.9k","MOE H73ROHUHhInc20to34.9k","H73ROHUHhInc20to34.9kRnt<20pct","MOE H73ROHUHhInc20to34.9kRnt<20pct","H73ROHUHhInc20to34.9kRnt20to25pct","MOE H73ROHUHhInc20to34.9kRnt20to25pct","H73ROHUHhInc20to34.9kRnt25to30pct","MOE H73ROHUHhInc20to34.9kRnt25to30pct","H73ROHUHhInc20to34.9kRnt30to35pct","MOE H73ROHUHhInc20to34.9kRnt30to35pct","H73ROHUHhInc20to34.9kRnt35to39.9","MOE H73ROHUHhInc20to34.9kRnt35to39.9","H73ROHUHhInc20to34.9kRnt40to49.9","MOE H73ROHUHhInc20to34.9kRnt40to49.9","H73ROHUHhInc20to34.9kRnt>50pct","MOE H73ROHUHhInc20to34.9kRnt>50pct","H73ROHUHhInc20to34.9kRntPctNC","MOE H73ROHUHhInc20to34.9kRntPctNC","H73ROHUHhInc35to49.9k","MOE H73ROHUHhInc35to49.9k","H73ROHUHhInc35to49.9kRnt<20pct","MOE H73ROHUHhInc35to49.9kRnt<20pct","H73ROHUHhInc35to49.9kRnt20to25pct","MOE H73ROHUHhInc35to49.9kRnt20to25pct","H73ROHUHhInc35to49.9kRnt25to30pct","MOE H73ROHUHhInc35to49.9kRnt25to30pct","H73ROHUHhInc35to49.9kRnt30to35pct","MOE H73ROHUHhInc35to49.9kRnt30to35pct","H73ROHUHhInc35to49.9kRnt35to39.9","MOE H73ROHUHhInc35to49.9kRnt35to39.9","H73ROHUHhInc35to49.9kRnt40to49.9","MOE H73ROHUHhInc35to49.9kRnt40to49.9","H73ROHUHhInc35to49.9kRnt>50pct","MOE H73ROHUHhInc35to49.9kRnt>50pct","H73ROHUHhInc35to49.9kRntPctNC","MOE H73ROHUHhInc35to49.9kRntPctNC","H73ROHUHhInc50to74.9k","MOE H73ROHUHhInc50to74.9k","H73ROHUHhInc50to74.9kRnt<20pct","MOE H73ROHUHhInc50to74.9kRnt<20pct","H73ROHUHhInc50to74.9kRnt20to25pct","MOE H73ROHUHhInc50to74.9kRnt20to25pct","H73ROHUHhInc50to74.9kRnt25to30pct","MOE H73ROHUHhInc50to74.9kRnt25to30pct","H73ROHUHhInc50to74.9kRnt30to35pct","MOE H73ROHUHhInc50to74.9kRnt30to35pct","H73ROHUHhInc50to74.9kRnt35to39.9","MOE H73ROHUHhInc50to74.9kRnt35to39.9","H73ROHUHhInc50to74.9kRnt40to49.9","MOE H73ROHUHhInc50to74.9kRnt40to49.9","H73ROHUHhInc50to74.9kRnt>50pct","MOE H73ROHUHhInc50to74.9kRnt>50pct","H73ROHUHhInc50to74.9kRntPctNC","MOE H73ROHUHhInc50to74.9kRntPctNC","H73ROHUHhInc75to99.9k","MOE H73ROHUHhInc75to99.9k","H73ROHUHhInc75to99.9kRnt<20pct","MOE H73ROHUHhInc75to99.9kRnt<20pct","H73ROHUHhInc75to99.9kRnt20to25pct","MOE H73ROHUHhInc75to99.9kRnt20to25pct","H73ROHUHhInc75to99.9kRnt25to30pct","MOE H73ROHUHhInc75to99.9kRnt25to30pct","H73ROHUHhInc75to99.9kRnt30to35pct","MOE H73ROHUHhInc75to99.9kRnt30to35pct","H73ROHUHhInc75to99.9kRnt35to39.9","MOE H73ROHUHhInc75to99.9kRnt35to39.9","H73ROHUHhInc75to99.9kRnt40to49.9","MOE H73ROHUHhInc75to99.9kRnt40to49.9","H73ROHUHhInc75to99.9kRnt>50pct","MOE H73ROHUHhInc75to99.9kRnt>50pct","H73ROHUHhInc75to99.9kRntPctNC","MOE H73ROHUHhInc75to99.9kRntPctNC","H73ROHUHhInc>100k","MOE H73ROHUHhInc>100k","H73ROHUHhInc>100kRnt<20pct","MOE H73ROHUHhInc>100kRnt<20pct","H73ROHUHhInc>100kRnt20to25pct","MOE H73ROHUHhInc>100kRnt20to25pct","H73ROHUHhInc>100kRnt25to30pct","MOE H73ROHUHhInc>100kRnt25to30pct","H73ROHUHhInc>100kRnt30to35pct","MOE H73ROHUHhInc>100kRnt30to35pct","H73ROHUHhInc>100kRnt35to39.9","MOE H73ROHUHhInc>100kRnt35to39.9","H73ROHUHhInc>100kRnt40to49.9","MOE H73ROHUHhInc>100kRnt40to49.9","H73ROHUHhInc>100kRnt>50pct","MOE H73ROHUHhInc>100kRnt>50pct","H73ROHUHhInc>100kRntPctNC","MOE H73ROHUHhInc>100kRntPctNC"]
[{"$f":"VLOOKUP(DropDownList!$B$24,CntyQuery!$A$70:$CF$88,A$1)","v":"Wolfeboro"},633,207,616,204,0,16,0,16,0,16,0,16,0,16,18,30,0,16,17,28,56,86,0,16,0,16,25,41,33,49,0,16,136,141,63,79,74,66,43,71,133,109,18,29,0,16,0,16,0,16,0,16,17,26,837,144,633,207,31,50,0,16,0,16,0,16,0,16,0,16,0,16,31,50,0,16,204,150,0,16,0,16,18,30,0,16,17,28,0,16,169,147,0,16,125,125,0,16,0,16,81,92,0,16,44,67,0,16,0,16,0,16,198,124,0,16,44,71,19,30,30,45,44,66,61,76,0,16,0,16,0,16,0,16,0,16,0,16,0,16,0,16,0,16,0,16,0,16,15,25,0,16,15,25,0,16,0,16,0,16,0,16,0,16,0,16,60,77,43,71,0,16,0,16,0,16,0,16,0,16,0,16,17,26]
[]
[]
[]
[]
[]
["Occupied Rental Housing Cost Burdern All Incomes"]
["NAME","RenterOccHsU",{"$f":"\"MOE \"&B155","v":"MOE RenterOccHsU"},"GRnt<20PctHHInc",{"$f":"\"MOE \"&D155","v":"MOE GRnt<20PctHHInc"},"GRnt20to249PctHHInc",{"$f":"\"MOE \"&F155","v":"MOE GRnt20to249PctHHInc"},"GRnt25to29.9PctHHInc",{"$f":"\"MOE \"&H155","v":"MOE GRnt25to29.9PctHHInc"},"GRnt<30PctHHInc",{"$f":"\"MOE \"&J155","v":"MOE GRnt<30PctHHInc"},"GRnt>30PctHHInc",{"$f":"\"MOE \"&L155","v":"MOE GRnt>30PctHHInc"},"GRnt30to349PctHHInc",{"$f":"\"MOE \"&N155","v":"MOE GRnt30to349PctHHInc"},"GRnt<35PctHHInc",{"$f":"\"MOE \"&P155","v":"MOE GRnt<35PctHHInc"},"GRnt>35PctHHInc",{"$f":"\"MOE \"&R155","v":"MOE GRnt>35PctHHInc"},"GRnt>50PctHHInc",{"$f":"\"MOE \"&T155","v":"MOE GRnt>50PctHHInc"},"HCB Not Calculated",{"$f":"\"MOE \"&V155","v":"MOE HCB Not Calculated"}]
[{"$f":"VLOOKUP(DropDownList!$B$24,CntyQuery!$A$70:$CF$88,A$1)","v":"Wolfeboro"},633,207,43,74.518454090245328,59,75,118,102,220,146.90813456034351,396,199.76235881666997,30,45,250,153.64569632762255,366,194.62785001124581,200,150,17,26]
[]
["Income By Household Type and Tenure"]
["NAME","TotalFamilyHouseholds",{"$f":"\"MOE \"&B159","v":"MOE TotalFamilyHouseholds"},"FamInc<10K",{"$f":"\"MOE \"&D159","v":"MOE FamInc<10K"},"FamInc10to15K",{"$f":"\"MOE \"&F159","v":"MOE FamInc10to15K"},"FamInc15to20K",{"$f":"\"MOE \"&H159","v":"MOE FamInc15to20K"},"FamInc20to25K",{"$f":"\"MOE \"&J159","v":"MOE FamInc20to25K"},"FamInc25to30K",{"$f":"\"MOE \"&L159","v":"MOE FamInc25to30K"},"FamInc30to35K",{"$f":"\"MOE \"&N159","v":"MOE FamInc30to35K"},"FamInc35to40K",{"$f":"\"MOE \"&P159","v":"MOE FamInc35to40K"},"FamInc40to45K",{"$f":"\"MOE \"&R159","v":"MOE FamInc40to45K"},"FamInc45to50K",{"$f":"\"MOE \"&T159","v":"MOE FamInc45to50K"},"FamInc50to60K",{"$f":"\"MOE \"&V159","v":"MOE FamInc50to60K"},"FamInc60to75K",{"$f":"\"MOE \"&X159","v":"MOE FamInc60to75K"},"FamInc75to100K",{"$f":"\"MOE \"&Z159","v":"MOE FamInc75to100K"},"FamInc100to125K",{"$f":"\"MOE \"&AB159","v":"MOE FamInc100to125K"},"FamInc125to150K",{"$f":"\"MOE \"&AD159","v":"MOE FamInc125to150K"},"FamInc150to200K",{"$f":"\"MOE \"&AF159","v":"MOE FamInc150to200K"},"FamInc>200K",{"$f":"\"MOE \"&AH159","v":"MOE FamInc>200K"},"MedFamInc",{"$f":"\"MOE \"&AJ159","v":"MOE MedFamInc"},"TotalNonNonFamilyHouseholds",{"$f":"\"MOE \"&AL159","v":"MOE TotalNonNonFamilyHouseholds"},"NonFamInc<10K",{"$f":"\"MOE \"&AN159","v":"MOE NonFamInc<10K"},"NonFamInc10to15K",{"$f":"\"MOE \"&AP159","v":"MOE NonFamInc10to15K"},"NonFamInc15to20K",{"$f":"\"MOE \"&AR159","v":"MOE NonFamInc15to20K"},"NonFamInc20to25K",{"$f":"\"MOE \"&AT159","v":"MOE NonFamInc20to25K"},"NonFamInc25to30K",{"$f":"\"MOE \"&AV159","v":"MOE NonFamInc25to30K"},"NonFamInc30to35K",{"$f":"\"MOE \"&AX159","v":"MOE NonFamInc30to35K"},"NonFamInc35to40K",{"$f":"\"MOE \"&AZ159","v":"MOE NonFamInc35to40K"},"NonFamInc40to45K",{"$f":"\"MOE \"&BB159","v":"MOE NonFamInc40to45K"},"NonFamInc45to50K",{"$f":"\"MOE \"&BD159","v":"MOE NonFamInc45to50K"},"NonFamInc50to60K",{"$f":"\"MOE \"&BF159","v":"MOE NonFamInc50to60K"},"NonFamInc60to75K",{"$f":"\"MOE \"&BH159","v":"MOE NonFamInc60to75K"},"NonFamInc75to100K",{"$f":"\"MOE \"&BJ159","v":"MOE NonFamInc75to100K"},"NonFamInc100to125K",{"$f":"\"MOE \"&BL159","v":"MOE NonFamInc100to125K"},"NonFamInc125to150K",{"$f":"\"MOE \"&BN159","v":"MOE NonFamInc125to150K"},"NonFamInc150to200K",{"$f":"\"MOE \"&BP159","v":"MOE NonFamInc150to200K"},"NonFamInc>200K",{"$f":"\"MOE \"&BR159","v":"MOE NonFamInc>200K"},"MedNonFamInc",{"$f":"\"MOE \"&BT159","v":"MOE MedNonFamInc"}]
[{"$f":"VLOOKUP(DropDownList!$B$24,CntyQuery!$A$70:$CF$88,A$1)","v":"Wolfeboro"},2010,153,31,50,33,49,33,38,0,16,135,127,210,120,113,88,124,116,87,80,126,96,143,63,182,86,293,155,114,84,168,103,218,132,72581,28617,925,261,23,38,188,149,50,76,195,141,63,61,39,44,36,41,59,75,62,73,37,42,28,31,60,62,52,50,33,52,0,16,0,16,null,null,25258,9392]

{"sheet":"CntyDataLinkPrior10YearEstimate","index":75,"n_rows":160,"n_cols":185,"rows_kept":160,"cut":false,"hidden":true,"merged":[]}
[1,{"$f":"A1+1","v":2},3,4,5,6,7,8,9,10,11,12,13,14,15,16,17,18,19,20,21,22,23,24,25,26,27,28,29,30,31,32,33,34,35,36,37,38,39,40,41,42,43,44,45,46,47,48,49,50,51,52,53,54,55,56,57,58,59,60,61,62,63,64,65,{"$f":"BM1+1","v":66},67,68,69,70,71,72,73,74,75,76,77,78,79,80,81,82,83,84,85,86,87,88,89,90,91,92,93,94,95,96,97,98,99,100,101,102,103,104,105,106,107,108,109,110,111,112,113,114,115,116,117,118,119,120,121,122,123,124,125,126,127,128,129,{"$f":"DY1+1","v":130},131,132,133,134,135,136,137,138,139,140,141,142,143,144,145,146,147,148,149,150,151,152,153,154,155,156,157,158,159,160,161,162,163,164,165,166,167,168,169,170,171,172,173,174,175,176,177,178,179,180,181,182,183]
[]
["Census 1990 Data -           Query Name:  DPCnty90Census"]
["TownName"]
[{"$f":"VLOOKUP(DropDownList!$A$24,CntyQuery!$A$4:$FA$22,A1)","v":"Wolfeboro"}]
[]
[]
["Census 1990 Data -    Query Name:  TownSTF1Qry1"]
["NAME"]
[{"$f":"VLOOKUP(DropDownList!$B$24,CntyQuery!$A$37:$CE$45,A$1)","v":"Wolfeboro"}]
[]
[]
["Census 1990 Data -          Query Name: TownSTF3Qry1"]
["NAME"]
[{"$f":"A20","v":"Wolfeboro"}]
[]
[]
[]
["TOWN_NAME"]
[{"$f":"VLOOKUP(DropDownList!$B$24,CntyQuery!$A$99:$DZ$117,A$1)","v":"Wolfeboro"}]
[]
[]
["NH Employment Data"]
["AreaName"]
[{"$f":"VLOOKUP(DropDownList!$B$24,CntyQuery!$A$99:$FT$117,A$1)","v":"Wolfeboro"}]
[]
[]
[]
[]
[]
[]
[]
["Census 2000   -           Query Name:  TownAllQuery3"]
["NAME"]
[{"$f":"VLOOKUP(DropDownList!$B$24,CntyQryCensus!$A$4:$CX$22,A$1)","v":"Wolfeboro"}]
[]
[]
["Census 2000 DemoProfile Sample Data Tables 2&3   -  DPTab23TownQry"]
["NAME"]
[{"$f":"VLOOKUP(DropDownList!$B$24,CntyQryCensus!$A$29:$BY$47,A$1)","v":"Wolfeboro"}]
[]
[]
["Census 2000 DemoProfile Sample Data Table 4   -  DPTab4TownQry"]
["NAME"]
[{"$f":"VLOOKUP(DropDownList!$B$24,CntyQryCensus!$A$55:$CW$73,A$1)","v":"Wolfeboro"}]
[]
[]
["Census 2000 SummaryFile3 Sample Data  -  SF3TownQry1SocialChar"]
["NAME"]
[{"$f":"VLOOKUP(DropDownList!$B$24,CntyQryCensus!$A$83:$FR$101,A$1)","v":"Wolfeboro"}]
[]
[]
["Census 2000 SummaryFile3 Sample Data  -  SF3TownQry2aIncomeChar"]
["NAME"]
[{"$f":"VLOOKUP(DropDownList!$B$24,CntyQryCensus!$A$109:$HH$127,A$1)","v":"Wolfeboro"}]
[]
[]
["Census 2000 SummaryFile3 Sample Data  -  SF3TownQry2bPovertyChar"]
["NAME"]
[{"$f":"VLOOKUP(DropDownList!$B$24,CntyQryCensus!$A$135:$FZ$153,A$1)","v":"Wolfeboro"}]
[]
[]
["Census 2000 SummaryFile3 Sample Data  -  SF3TownQry7HousingA"]
["NAME"]
[{"$f":"VLOOKUP(DropDownList!$B$24,CntyQryCensus!$A$161:$GX$179,A$1)","v":"Wolfeboro"}]
[]
[]
["Census 2000 SummaryFile3 Sample Data  -  SF3TownQry8HousingCostA"]
["NAME"]
[{"$f":"VLOOKUP(DropDownList!$B$24,CntyQryCensus!$A$187:$CL$205,A$1)","v":"Wolfeboro"}]
[]
[]
["Census 2000 SummaryFile3 Sample Data  -  SF3TownQry8HousingCostB"]
["NAME"]
[{"$f":"VLOOKUP(DropDownList!$B$24,CntyQryCensus!$A$213:$FN$231,A$1)","v":"Wolfeboro"}]
[]
[]
["Census 2000 SummaryFile3 Sample Data  -  SF3TownQry9HHIncomeByTenure"]
["NAME"]
[{"$f":"VLOOKUP(DropDownList!$B$24,CntyQryCensus!$A$239:$AX$257,A$1)","v":"Wolfeboro"}]
[]
[]
[]
[]
[]
[{"$f":"A96","v":"Wolfeboro"}]
[]
[]
[]
[]
[]
[]
[]
["Census 2000 SummaryFile3 Sample Data - SF3TownQry10Disabil"]
["NAME"]
[{"$f":"VLOOKUP(DropDownList!$B$24,CntyQuery!$A$70:$CF$88,A$1)","v":"Wolfeboro"}]
[]
[]
[]
[]
[]
[]
[]
[]
["ACS",2,{"$f":"B105+1","v":3},{"$f":"C105+1","v":4},5,6,7,8,9,10,11,{"$f":"K105+1","v":12},13,14,15,{"$f":"O105+1","v":16},17,18,19,20,21,22,23,24,25,26,27,28,29,30,31,32,33,34,35,36,37,38,39,40,41,42,43,44,45,46,47,48,49,50,51,52,53,54,55,56,57,58,59,60,61,62,63,64,65,66,67,{"$f":"BO105+1","v":68},69,70,71,72,73,74,75,76,77,78,79,80,81,82,83,84,85,86,87,88,89,90,91,92,93,94,95,96,97,98,99,100,101,102,103,104,105,106,107,108,109,110,111,112,113,114,115,116,117,118,119,120,121,122,123,124,125]
["Househould Data (Housing Unit Type)"]
["NAME","TotalHU",{"$f":"\"MOE \"&B107","v":"MOE TotalHU"},"TotalOccHU",{"$f":"\"MOE \"&D107","v":"MOE TotalOccHU"},"TotalOwnerOccUn",{"$f":"\"MOE \"&F107","v":"MOE TotalOwnerOccUn"},"TotalRenterOccn",{"$f":"\"MOE \"&H107","v":"MOE TotalRenterOccn"},"TotalVacantUntis",{"$f":"\"MOE \"&J107","v":"MOE TotalVacantUntis"},"VacantUnitsForRent",{"$f":"\"MOE \"&L107","v":"MOE VacantUnitsForRent"},"VacantUnitRentedNotOcc",{"$f":"\"MOE \"&N107","v":"MOE VacantUnitRentedNotOcc"},"VacantUnitForSale",{"$f":"\"MOE \"&P107","v":"MOE VacantUnitForSale"},"VacantUnitSoldNotOcc",{"$f":"\"MOE \"&R107","v":"MOE VacantUnitSoldNotOcc"},"VacantUnitSeasonalRec",{"$f":"\"MOE \"&T107","v":"MOE VacantUnitSeasonalRec"},"TotalPopInHousingUnits",{"$f":"\"MOE \"&V107","v":"MOE TotalPopInHousingUnits"},"OwnerOccPopHousingUnits",{"$f":"\"MOE \"&X107","v":"MOE OwnerOccPopHousingUnits"},"RenterOccPopHousingUnits",{"$f":"\"MOE \"&Z107","v":"MOE RenterOccPopHousingUnits"},"TotalUntis",{"$f":"\"MOE \"&AB107","v":"MOE TotalUntis"},"TotalOwnerOccUnits",{"$f":"\"MOE \"&AD107","v":"MOE TotalOwnerOccUnits"},"SigFamOwnerOcc",{"$f":"\"MOE \"&AF107","v":"MOE SigFamOwnerOcc"},"MultiFamOwnerOcc",{"$f":"\"MOE \"&AH107","v":"MOE MultiFamOwnerOcc"},"MobileOwnerOcc",{"$f":"\"MOE \"&AJ107","v":"MOE MobileOwnerOcc"},"TotalRenterOccUnits",{"$f":"\"MOE \"&AL107","v":"MOE TotalRenterOccUnits"},"SigFamRenterOcc",{"$f":"\"MOE \"&AN107","v":"MOE SigFamRenterOcc"},"MultiFamRenterOcc",{"$f":"\"MOE \"&AP107","v":"MOE MultiFamRenterOcc"},"MobileRenterOcc",{"$f":"\"MOE \"&AR107","v":"MOE MobileRenterOcc"},"TotalSigFamilyUnits",{"$f":"\"MOE \"&AT107","v":"MOE TotalSigFamilyUnits"},"TotalMultiFamilyUnits",{"$f":"\"MOE \"&AV107","v":"MOE TotalMultiFamilyUnits"},"TotalMobileUnits",{"$f":"\"MOE \"&AX107","v":"MOE TotalMobileUnits"},"YrHouseBuilt2005Later",{"$f":"\"MOE \"&AZ107","v":"MOE YrHouseBuilt2005Later"},"YrHouseBuilt2000-2004",{"$f":"\"MOE \"&BB107","v":"MOE YrHouseBuilt2000-2004"},"YrHouseBuilt1990-1999",{"$f":"\"MOE \"&BD107","v":"MOE YrHouseBuilt1990-1999"},"YrHouseBuilt1980-1989",{"$f":"\"MOE \"&BF107","v":"MOE YrHouseBuilt1980-1989"},"YrHouseBuilt1970-1979",{"$f":"\"MOE \"&BH107","v":"MOE YrHouseBuilt1970-1979"},"YrHouseBuilt1960-1969",{"$f":"\"MOE \"&BJ107","v":"MOE YrHouseBuilt1960-1969"},"YrHouseBuilt1950-1959",{"$f":"\"MOE \"&BL107","v":"MOE YrHouseBuilt1950-1959"},"YrHouseBuilt1940-1949",{"$f":"\"MOE \"&BN107","v":"MOE YrHouseBuilt1940-1949"},"YrHouseBuilt1939orEarlier",{"$f":"\"MOE \"&BP107","v":"MOE YrHouseBuilt1939orEarlier"},"NoBedrooms",{"$f":"\"MOE \"&BR107","v":"MOE NoBedrooms"},"1Bedroom",{"$f":"\"MOE \"&BT107","v":"MOE 1Bedroom"},"2Bedroom",{"$f":"\"MOE \"&BV107","v":"MOE 2Bedroom"},"3Bedroom",{"$f":"\"MOE \"&BX107","v":"MOE 3Bedroom"},"4+Bedroom",{"$f":"\"MOE \"&BZ107","v":"MOE 4+Bedroom"}]
[{"$f":"VLOOKUP(DropDownList!$B$24,CntyQuery!$A$70:$CF$88,A$1)","v":"Wolfeboro"},4182,237,2590,178,2165,196,425,154,1592,248,87,101,86,99,101,88,0,16,1225,282,6191,32,5320,322,871,321,2590,178,2165,196,1963,189,115,74.256312862947894,87,59.203040462462738,425,154,226,121,199,139.27670300520472,0,22.627416997969522,3187,267,835,299.79993328885183,160,103.24727599312246,0,16,458,162,553,160,601,220,437,162,547,212,380,183,155,110,1051,256,59,83,523,221,943,268,1743,300,963,227.06827167175956]
[]
["Disability Data"]
["NAME","TotalPop",{"$f":"\"MOE \"&B111","v":"MOE TotalPop"},"PopUnder 5 years:",{"$f":"\"MOE \"&D111","v":"MOE PopUnder 5 years:"},{"$f":"D$111&\"-WithDisability\"","v":"PopUnder 5 years:-WithDisability"},{"$f":"\"MOE \"&F111","v":"MOE PopUnder 5 years:-WithDisability"},{"$f":"D111&\"-NoDisability\"","v":"PopUnder 5 years:-NoDisability"},{"$f":"\"MOE \"&H111","v":"MOE PopUnder 5 years:-NoDisability"},"PopUnder 5 to 17years:",{"$f":"\"MOE \"&J111","v":"MOE PopUnder 5 to 17years:"},{"$f":"J$111&\"-WithDisability\"","v":"PopUnder 5 to 17years:-WithDisability"},{"$f":"\"MOE \"&L111","v":"MOE PopUnder 5 to 17years:-WithDisability"},{"$f":"J111&\"-NoDisability\"","v":"PopUnder 5 to 17years:-NoDisability"},{"$f":"\"MOE \"&N111","v":"MOE PopUnder 5 to 17years:-NoDisability"},"PopUnder 18 to 34 years:",{"$f":"\"MOE \"&P111","v":"MOE PopUnder 18 to 34 years:"},{"$f":"P$111&\"-WithDisability\"","v":"PopUnder 18 to 34 years:-WithDisability"},{"$f":"\"MOE \"&R111","v":"MOE PopUnder 18 to 34 years:-WithDisability"},{"$f":"P111&\"-NoDisability\"","v":"PopUnder 18 to 34 years:-NoDisability"},{"$f":"\"MOE \"&T111","v":"MOE PopUnder 18 to 34 years:-NoDisability"},"Pop 35 years to 64:",{"$f":"\"MOE \"&V111","v":"MOE Pop 35 years to 64:"},{"$f":"$V$111&\"-WithDisability\"","v":"Pop 35 years to 64:-WithDisability"},{"$f":"\"MOE \"&X111","v":"MOE Pop 35 years to 64:-WithDisability"},{"$f":"$V$111&\"-NoDisability\"","v":"Pop 35 years to 64:-NoDisability"},{"$f":"\"MOE \"&Z111","v":"MOE Pop 35 years to 64:-NoDisability"},"Pop 65 years to 74:",{"$f":"\"MOE \"&AB111","v":"MOE Pop 65 years to 74:"},{"$f":"$AB$111&\"-WithDisability\"","v":"Pop 65 years to 74:-WithDisability"},{"$f":"\"MOE \"&AD111","v":"MOE Pop 65 years to 74:-WithDisability"},{"$f":"$AB$111&\"-NoDisability\"","v":"Pop 65 years to 74:-NoDisability"},{"$f":"\"MOE \"&AF111","v":"MOE Pop 65 years to 74:-NoDisability"},"Pop 75 and older:",{"$f":"\"MOE \"&AH111","v":"MOE Pop 75 and older:"},{"$f":"$AH$111&\"-WithDisability\"","v":"Pop 75 and older:-WithDisability"},{"$f":"\"MOE \"&AJ111","v":"MOE Pop 75 and older:-WithDisability"},{"$f":"$AH$111&\"-NoDisability\"","v":"Pop 75 and older:-NoDisability"},{"$f":"\"MOE \"&AL111","v":"MOE Pop 75 and older:-NoDisability"},"TotalPopUnder5_HearingDisability",{"$f":"\"MOE \"&AN111","v":"MOE TotalPopUnder5_HearingDisability"},"TotalPopUnder5_HearingDisability",{"$f":"\"MOE \"&AP111","v":"MOE TotalPopUnder5_HearingDisability"},"TotalPop18To34_HearingDisability",{"$f":"\"MOE \"&AR111","v":"MOE TotalPop18To34_HearingDisability"},"TotalPop35To64_HearingDisability",{"$f":"\"MOE \"&AT111","v":"MOE TotalPop35To64_HearingDisability"},"TotalPop65To74_HearingDisability",{"$f":"\"MOE \"&AV111","v":"MOE TotalPop65To74_HearingDisability"},"TotalPop75andOlder_HearingDisability",{"$f":"\"MOE \"&AX111","v":"MOE TotalPop75andOlder_HearingDisability"},"TotalPopUnder5_VisionDisability",{"$f":"\"MOE \"&AZ111","v":"MOE TotalPopUnder5_VisionDisability"},"TotalPop5To17_VisionDisability",{"$f":"\"MOE \"&BB111","v":"MOE TotalPop5To17_VisionDisability"},"TotalPop18To34_VisionDisability",{"$f":"\"MOE \"&BD111","v":"MOE TotalPop18To34_VisionDisability"},"TotalPop35To64_VisionDisability",{"$f":"\"MOE \"&BF111","v":"MOE TotalPop35To64_VisionDisability"},"TotalPop65To74_VisionDisability",{"$f":"\"MOE \"&BH111","v":"MOE TotalPop65To74_VisionDisability"},"TotalPop75andOlder_VisionDisability",{"$f":"\"MOE \"&BJ111","v":"MOE TotalPop75andOlder_VisionDisability"},"TotalPop5To17_CongnitiveDisability",{"$f":"\"MOE \"&BL111","v":"MOE TotalPop5To17_CongnitiveDisability"},"TotalPop18To34_CongnitiveDisability",{"$f":"\"MOE \"&BN111","v":"MOE TotalPop18To34_CongnitiveDisability"},"TotalPop35To64_CongnitiveDisability",{"$f":"\"MOE \"&BP111","v":"MOE TotalPop35To64_CongnitiveDisability"},"TotalPop65To74_CongnitiveDisability",{"$f":"\"MOE \"&BR111","v":"MOE TotalPop65To74_CongnitiveDisability"},"TotalPop75andOlder_CongnitiveDisability",{"$f":"\"MOE \"&BT111","v":"MOE TotalPop75andOlder_CongnitiveDisability"},"TotalPop5To17_AmbulatoryDisability",{"$f":"\"MOE \"&BV111","v":"MOE TotalPop5To17_AmbulatoryDisability"},"TotalPop18To34_AmbulatoryDisability",{"$f":"\"MOE \"&BX111","v":"MOE TotalPop18To34_AmbulatoryDisability"},"TotalPop35To64_AmbulatoryDisability",{"$f":"\"MOE \"&BZ111","v":"MOE TotalPop35To64_AmbulatoryDisability"},"TotalPop65To74_AmbulatoryDisability",{"$f":"\"MOE \"&CB111","v":"MOE TotalPop65To74_AmbulatoryDisability"},"TotalPop75andOlder_AmbulatoryDisability",{"$f":"\"MOE \"&CD111","v":"MOE TotalPop75andOlder_AmbulatoryDisability"},"TotalPop5To17_SelfCareDisability",{"$f":"\"MOE \"&CF111","v":"MOE TotalPop5To17_SelfCareDisability"},"TotalPop18To34_SelfCareDisability",{"$f":"\"MOE \"&CH111","v":"MOE TotalPop18To34_SelfCareDisability"},"TotalPop35To64_SelfCareDisability",{"$f":"\"MOE \"&CJ111","v":"MOE TotalPop35To64_SelfCareDisability"},"TotalPop65To74_SelfCareDisability",{"$f":"\"MOE \"&CL111","v":"MOE TotalPop65To74_SelfCareDisability"},"TotalPop75andOlder_SelfCareDisability",{"$f":"\"MOE \"&CN111","v":"MOE TotalPop75andOlder_SelfCareDisability"},"TotalPop18To34_IndependantLivingDisability",{"$f":"\"MOE \"&CP111","v":"MOE TotalPop18To34_IndependantLivingDisability"},"TotalPop35To64_IndependantLivingDisability",{"$f":"\"MOE \"&CR111","v":"MOE TotalPop35To64_IndependantLivingDisability"},"TotalPop65To74_IndependantLivingDisability",{"$f":"\"MOE \"&CT111","v":"MOE TotalPop65To74_IndependantLivingDisability"},"TotalPop75andOlder_IndependantLivingDisability",{"$f":"\"MOE \"&CV111","v":"MOE TotalPop75andOlder_IndependantLivingDisability"},"TotalUnder18",{"$f":"\"MOE \"&CX111","v":"MOE TotalUnder18"},"Under 18_Total",{"$f":"\"MOE \"&CZ111","v":"MOE Under 18_Total"},"Under18_OneDisability",{"$f":"\"MOE \"&DB111","v":"MOE Under18_OneDisability"},"Under18_TwoDisability",{"$f":"\"MOE \"&DD111","v":"MOE Under18_TwoDisability"},"Under18_NoDisability",{"$f":"\"MOE \"&DF111","v":"MOE Under18_NoDisability"},"18-64._Total",{"$f":"\"MOE \"&DH111","v":"MOE 18-64._Total"},"18-64._OneDisability",{"$f":"\"MOE \"&DJ111","v":"MOE 18-64._OneDisability"},"18-64_TwoDisability",{"$f":"\"MOE \"&DL111","v":"MOE 18-64_TwoDisability"},"18-64_NoDisability",{"$f":"\"MOE \"&DN111","v":"MOE 18-64_NoDisability"},"64 and Over_Total",{"$f":"\"MOE \"&DP111","v":"MOE 64 and Over_Total"},"64 and Over_OneDisability",{"$f":"\"MOE \"&DR111","v":"MOE 64 and Over_OneDisability"},"64 and Over_TwoDisability",{"$f":"\"MOE \"&DT111","v":"MOE 64 and Over_TwoDisability"},"64 and Over_NoDisability",{"$f":"\"MOE \"&DV111","v":"MOE 64 and Over_NoDisability"}]
[{"$f":"VLOOKUP(DropDownList!$B$24,CntyQuery!$A$70:$CF$88,A$1)","v":"Wolfeboro"}]
[]
["Househould Income By Age"]
["NAME","TotalHouseholds",{"$f":"\"MOE \"&B115","v":"MOE TotalHouseholds"},"HHInc<10K",{"$f":"\"MOE \"&D115","v":"MOE HHInc<10K"},"HHInc10to15K",{"$f":"\"MOE \"&F115","v":"MOE HHInc10to15K"},"HHInc15to20K",{"$f":"\"MOE \"&H115","v":"MOE HHInc15to20K"},"HHInc20to25K",{"$f":"\"MOE \"&J115","v":"MOE HHInc20to25K"},"HHInc25to30K",{"$f":"\"MOE \"&L115","v":"MOE HHInc25to30K"},"HHInc30to35K",{"$f":"\"MOE \"&N115","v":"MOE HHInc30to35K"},"HHInc35to40K",{"$f":"\"MOE \"&P115","v":"MOE HHInc35to40K"},"HHInc40to45K",{"$f":"\"MOE \"&R115","v":"MOE HHInc40to45K"},"HHInc45to50K",{"$f":"\"MOE \"&T115","v":"MOE HHInc45to50K"},"HHInc50to60K",{"$f":"\"MOE \"&V115","v":"MOE HHInc50to60K"},"HHInc60to75K",{"$f":"\"MOE \"&X115","v":"MOE HHInc60to75K"},"HHInc75to100K",{"$f":"\"MOE \"&Z115","v":"MOE HHInc75to100K"},"HHInc100to125K",{"$f":"\"MOE \"&AB115","v":"MOE HHInc100to125K"},"HHInc125to150K",{"$f":"\"MOE \"&AD115","v":"MOE HHInc125to150K"},"HHInc150to200K",{"$f":"\"MOE \"&AF115","v":"MOE HHInc150to200K"},"HHInc>200K",{"$f":"\"MOE \"&AH115","v":"MOE HHInc>200K"},"TotalHH",{"$f":"\"MOE \"&AJ115","v":"MOE TotalHH"},"HHAgeHHUnder25yrs",{"$f":"\"MOE \"&AL115","v":"MOE HHAgeHHUnder25yrs"},"HHAgeHH<25HHInc<10K",{"$f":"\"MOE \"&AN115","v":"MOE HHAgeHH<25HHInc<10K"},"HHAgeHH<25HHInc10to15K",{"$f":"\"MOE \"&AP115","v":"MOE HHAgeHH<25HHInc10to15K"},"HHAgeHH<25HHInc15to20K",{"$f":"\"MOE \"&AR115","v":"MOE HHAgeHH<25HHInc15to20K"},"HHAgeHH<25HHInc20to25K",{"$f":"\"MOE \"&AT115","v":"MOE HHAgeHH<25HHInc20to25K"},"HHAgeHH<25HHInc25to30K",{"$f":"\"MOE \"&AV115","v":"MOE HHAgeHH<25HHInc25to30K"},"HHAgeHH<25HHInc30to35K",{"$f":"\"MOE \"&AX115","v":"MOE HHAgeHH<25HHInc30to35K"},"HHAgeHH<25HHInc35to40K",{"$f":"\"MOE \"&AZ115","v":"MOE HHAgeHH<25HHInc35to40K"},"HHAgeHH<25HHInc40to45K",{"$f":"\"MOE \"&BB115","v":"MOE HHAgeHH<25HHInc40to45K"},"HHAgeHH<25HHInc45to50K",{"$f":"\"MOE \"&BD115","v":"MOE HHAgeHH<25HHInc45to50K"},"HHAgeHH<25HHInc50to60K",{"$f":"\"MOE \"&BF115","v":"MOE HHAgeHH<25HHInc50to60K"},"HHAgeHH<25HHInc60to75K",{"$f":"\"MOE \"&BH115","v":"MOE HHAgeHH<25HHInc60to75K"},"HHAgeHH<25HHInc75to100K",{"$f":"\"MOE \"&BJ115","v":"MOE HHAgeHH<25HHInc75to100K"},"HHAgeHH<25HHInc100to125K",{"$f":"\"MOE \"&BL115","v":"MOE HHAgeHH<25HHInc100to125K"},"HHAgeHH<25HHInc125to150K",{"$f":"\"MOE \"&BN115","v":"MOE HHAgeHH<25HHInc125to150K"},"HHAgeHH<25HHInc150to200K",{"$f":"\"MOE \"&BP115","v":"MOE HHAgeHH<25HHInc150to200K"},"HHAge<25HHInc>200K",{"$f":"\"MOE \"&BR115","v":"MOE HHAge<25HHInc>200K"},"HHAgeHH25to44yrs",{"$f":"\"MOE \"&BT115","v":"MOE HHAgeHH25to44yrs"},"HHAgeHH25To44yrsHHInc<10K",{"$f":"\"MOE \"&BV115","v":"MOE HHAgeHH25To44yrsHHInc<10K"},"HHAgeHH25To44yrsHHInc10to15K",{"$f":"\"MOE \"&BX115","v":"MOE HHAgeHH25To44yrsHHInc10to15K"},"HHAgeHH25To44yrsHHInc15to20K",{"$f":"\"MOE \"&BZ115","v":"MOE HHAgeHH25To44yrsHHInc15to20K"},"HHAgeHH25To44yrsHHInc20to25K",{"$f":"\"MOE \"&CB115","v":"MOE HHAgeHH25To44yrsHHInc20to25K"},"HHAgeHH25To44yrsHHInc25to30K",{"$f":"\"MOE \"&CD115","v":"MOE HHAgeHH25To44yrsHHInc25to30K"},"HHAgeHH25To44yrsHHInc30to35K",{"$f":"\"MOE \"&CF115","v":"MOE HHAgeHH25To44yrsHHInc30to35K"},"HHAgeHH25To44yrsHHInc35to40K",{"$f":"\"MOE \"&CH115","v":"MOE HHAgeHH25To44yrsHHInc35to40K"},"HHAgeHH25To44yrsHHInc40to45K",{"$f":"\"MOE \"&CJ115","v":"MOE HHAgeHH25To44yrsHHInc40to45K"},"HHAgeHH25To44yrsHHInc45to50K",{"$f":"\"MOE \"&CL115","v":"MOE HHAgeHH25To44yrsHHInc45to50K"},"HHAgeHH25To44yrsHHInc50to60K",{"$f":"\"MOE \"&CN115","v":"MOE HHAgeHH25To44yrsHHInc50to60K"},"HHAgeHH25To44yrsHHInc60to75K",{"$f":"\"MOE \"&CP115","v":"MOE HHAgeHH25To44yrsHHInc60to75K"},"HHAgeHH25To44yrsHHInc75to100K",{"$f":"\"MOE \"&CR115","v":"MOE HHAgeHH25To44yrsHHInc75to100K"},"HHAgeHH25To44yrsHHInc100to125K",{"$f":"\"MOE \"&CT115","v":"MOE HHAgeHH25To44yrsHHInc100to125K"},"HHAgeHH25To44yrsHHInc125to150K",{"$f":"\"MOE \"&CV115","v":"MOE HHAgeHH25To44yrsHHInc125to150K"},"HHAgeHH25To44yrsHHInc150to200K",{"$f":"\"MOE \"&CX115","v":"MOE HHAgeHH25To44yrsHHInc150to200K"},"HHAge25To44yrsHHInc>200K",{"$f":"\"MOE \"&CZ115","v":"MOE HHAge25To44yrsHHInc>200K"},"HHAgeHH45To64yrs",{"$f":"\"MOE \"&DB115","v":"MOE HHAgeHH45To64yrs"},"HHAgeHH45To64yrsHHInc<10K",{"$f":"\"MOE \"&DD115","v":"MOE HHAgeHH45To64yrsHHInc<10K"},"HHAgeHH45To64yrsHHInc10to15K",{"$f":"\"MOE \"&DF115","v":"MOE HHAgeHH45To64yrsHHInc10to15K"},"HHAgeHH45To64yrsHHInc15to20K",{"$f":"\"MOE \"&DH115","v":"MOE HHAgeHH45To64yrsHHInc15to20K"},"HHAgeHH45To64yrsHHInc20to25K",{"$f":"\"MOE \"&DJ115","v":"MOE HHAgeHH45To64yrsHHInc20to25K"},"HHAgeHH45To64yrsHHInc25to30K",{"$f":"\"MOE \"&DL115","v":"MOE HHAgeHH45To64yrsHHInc25to30K"},"HHAgeHH45To64yrsHHInc30to35K",{"$f":"\"MOE \"&DN115","v":"MOE HHAgeHH45To64yrsHHInc30to35K"},"HHAgeHH45To64yrsHHInc35to40K",{"$f":"\"MOE \"&DP115","v":"MOE HHAgeHH45To64yrsHHInc35to40K"},"HHAgeHH45To64yrsHHInc40to45K",{"$f":"\"MOE \"&DR115","v":"MOE HHAgeHH45To64yrsHHInc40to45K"},"HHAgeHH45To64yrsHHInc45to50K",{"$f":"\"MOE \"&DT115","v":"MOE HHAgeHH45To64yrsHHInc45to50K"},"HHAgeHH45To64yrsHHInc50to60K",{"$f":"\"MOE \"&DV115","v":"MOE HHAgeHH45To64yrsHHInc50to60K"},"HHAgeHH45To64yrsHHInc60to75K",{"$f":"\"MOE \"&DX115","v":"MOE HHAgeHH45To64yrsHHInc60to75K"},"HHAgeHH45To64yrsHHInc75to100K",{"$f":"\"MOE \"&DZ115","v":"MOE HHAgeHH45To64yrsHHInc75to100K"},"HHAgeHH45To64yrsHHInc100to125K",{"$f":"\"MOE \"&EB115","v":"MOE HHAgeHH45To64yrsHHInc100to125K"},"HHAgeHH45To64yrsHHInc125to150K",{"$f":"\"MOE \"&ED115","v":"MOE HHAgeHH45To64yrsHHInc125to150K"},"HHAgeHH45To64yrsHHInc150to200K",{"$f":"\"MOE \"&EF115","v":"MOE HHAgeHH45To64yrsHHInc150to200K"},"HHAge45To64yrsHHInc>200K",{"$f":"\"MOE \"&EH115","v":"MOE HHAge45To64yrsHHInc>200K"},"HHAgeHH65yrsorOlder",{"$f":"\"MOE \"&EJ115","v":"MOE HHAgeHH65yrsorOlder"},"HHAgeHH65yrsorOlderHHInc<10K",{"$f":"\"MOE \"&EL115","v":"MOE HHAgeHH65yrsorOlderHHInc<10K"},"HHAgeHH65yrsorOlderHHInc10to15K",{"$f":"\"MOE \"&EN115","v":"MOE HHAgeHH65yrsorOlderHHInc10to15K"},"HHAgeHH65yrsorOlderHHInc15to20K",{"$f":"\"MOE \"&EP115","v":"MOE HHAgeHH65yrsorOlderHHInc15to20K"},"HHAgeHH65yrsorOlderHHInc20to25K",{"$f":"\"MOE \"&ER115","v":"MOE HHAgeHH65yrsorOlderHHInc20to25K"},"HHAgeHH65yrsorOlderHHInc25to30K",{"$f":"\"MOE \"&ET115","v":"MOE HHAgeHH65yrsorOlderHHInc25to30K"},"HHAgeHH65yrsorOlderHHInc30to35K",{"$f":"\"MOE \"&EV115","v":"MOE HHAgeHH65yrsorOlderHHInc30to35K"},"HHAgeHH65yrsorOlderHHInc35to40K",{"$f":"\"MOE \"&EX115","v":"MOE HHAgeHH65yrsorOlderHHInc35to40K"},"HHAgeHH65yrsorOlderHHInc40to45K",{"$f":"\"MOE \"&EZ115","v":"MOE HHAgeHH65yrsorOlderHHInc40to45K"},"HHAgeHH65yrsorOlderHHInc45to50K",{"$f":"\"MOE \"&FB115","v":"MOE HHAgeHH65yrsorOlderHHInc45to50K"},"HHAgeHH65yrsorOlderHHInc50to60K",{"$f":"\"MOE \"&FD115","v":"MOE HHAgeHH65yrsorOlderHHInc50to60K"},"HHAgeHH65yrsorOlderHHInc60to75K",{"$f":"\"MOE \"&FF115","v":"MOE HHAgeHH65yrsorOlderHHInc60to75K"},"HHAgeHH65yrsorOlderHHInc75to100K",{"$f":"\"MOE \"&FH115","v":"MOE HHAgeHH65yrsorOlderHHInc75to100K"},"HHAgeHH65yrsorOlderHHInc100to125K",{"$f":"\"MOE \"&FJ115","v":"MOE HHAgeHH65yrsorOlderHHInc100to125K"},"HHAgeHH65yrsorOlderHHInc125to150K",{"$f":"\"MOE \"&FL115","v":"MOE HHAgeHH65yrsorOlderHHInc125to150K"},"HHAgeHH65yrsorOlderHHInc150to200K",{"$f":"\"MOE \"&FN115","v":"MOE HHAgeHH65yrsorOlderHHInc150to200K"},"HHAge65yrsorOlderHHInc>200K",{"$f":"\"MOE \"&FP115","v":"MOE HHAge65yrsorOlderHHInc>200K"},"MedianHHInc",{"$f":"\"MOE \"&FR115","v":"MOE MedianHHInc"},"HH under 25 years",{"$f":"\"MOE \"&FT115","v":"MOE HH under 25 years"},"Householder 25 to 44 years",{"$f":"\"MOE \"&FV115","v":"MOE Householder 25 to 44 years"},"Householder 45 to 64 years",{"$f":"\"MOE \"&FX115","v":"MOE Householder 45 to 64 years"},"Householder 65 years and over",{"$f":"\"MOE \"&FZ115","v":"MOE Householder 65 years and over"}]
[{"$f":"VLOOKUP(DropDownList!$B$24,CntyQuery!$A$70:$CF$88,A$1)","v":"Wolfeboro"},2590,178,81,59,150,107,34,31,73,78,72,74,103,73,194,117,117,70,196,115,106,62,400,145,379,140,333,150,95,71,90,75,167,91,2590,178,51,61,0,16,34,57,0,16,0,16,17,27,0,16,0,16,0,16,0,16,0,16,0,16,0,16,0,16,0,16,0,16,0,16,417,114,0,16,16,26,0,16,0,16,0,16,52,70,17,26,0,16,44,50,20,32,33,40,73,58,92,78,39,55,0,16,31,46,1168,197,54,51,56,78,10,17,73,78,0,16,12,19,87,95,25,26,32,37,43,42,223,118,161,73,181,105,56,52,64,80,91,66,954,179,27,31,44,48,24,27,0,16,55,69,39,37,90,61,92,67,120,100,43,39,144,85,145,109,60,43,0,16,26,29,45,44,67533,6552,11875,25308,76656,34420,71779,13570,48600,13879]
[]
["Number of Households by Income"]
["NAME","HHIncLessThn10k",{"$f":"\"MOE \"&B119","v":"MOE HHIncLessThn10k"},"HHInc10to15K",{"$f":"\"MOE \"&D119","v":"MOE HHInc10to15K"},"HHInc15to25K",{"$f":"\"MOE \"&F119","v":"MOE HHInc15to25K"},"HHInc25to35K",{"$f":"\"MOE \"&H119","v":"MOE HHInc25to35K"},"HHInc35to50K",{"$f":"\"MOE \"&J119","v":"MOE HHInc35to50K"},"HHInc50to75K",{"$f":"\"MOE \"&L119","v":"MOE HHInc50to75K"},"HHInc75to100K",{"$f":"\"MOE \"&N119","v":"MOE HHInc75to100K"},"HHInc100to150K",{"$f":"\"MOE \"&P119","v":"MOE HHInc100to150K"},"HHInc150to200K",{"$f":"\"MOE \"&R119","v":"MOE HHInc150to200K"},"HHIncOver200K",{"$f":"\"MOE \"&T119","v":"MOE HHIncOver200K"}]
[{"$f":"VLOOKUP(DropDownList!$B$24,CntyQuery!$A$70:$CF$88,A$1)","v":"Wolfeboro"},81,59,150,107,34,31,73,78,72,74,103,73,194,117,117,70,196,115,106,62,400,145,379,140,333,150,95,71,90,75,167,91]
[]
[]
["NAME","TotalPop",{"$f":"\"MOE \"&B123","v":"MOE TotalPop"},"Total Individuals living in Poverty",{"$f":"\"MOE \"&D123","v":"MOE Total Individuals living in Poverty"},"Under 5 yrs.",{"$f":"\"MOE \"&F123","v":"MOE Under 5 yrs."},"5 to 17 yrs.",{"$f":"\"MOE \"&H123","v":"MOE 5 to 17 yrs."},"18 to 64 yrs.",{"$f":"\"MOE \"&J123","v":"MOE 18 to 64 yrs."},"65 to 74 yrs.",{"$f":"\"MOE \"&L123","v":"MOE 65 to 74 yrs."},"75 yrs. & Over",{"$f":"\"MOE \"&N123","v":"MOE 75 yrs. & Over"},"Total Individuals  Not living Poverty",{"$f":"\"MOE \"&P123","v":"MOE Total Individuals  Not living Poverty"},"Under 5 yrs.",{"$f":"\"MOE \"&R123","v":"MOE Under 5 yrs."},"5 to 17 yrs.",{"$f":"\"MOE \"&T123","v":"MOE 5 to 17 yrs."},"18 to 64 yrs.",{"$f":"\"MOE \"&V123","v":"MOE 18 to 64 yrs."},"65 to 74 yrs.",{"$f":"\"MOE \"&X123","v":"MOE 65 to 74 yrs."},"75 yrs. & Over",{"$f":"\"MOE \"&Z123","v":"MOE 75 yrs. & Over"},"Total HH",{"$f":"\"MOE \"&AB123","v":"MOE Total HH"},"Total Households Below Poverty",{"$f":"\"MOE \"&AD123","v":"MOE Total Households Below Poverty"},"Family Households in Poverty",{"$f":"\"MOE \"&AF123","v":"MOE Family Households in Poverty"},"Married Couple Fam HH",{"$f":"\"MOE \"&AH123","v":"MOE Married Couple Fam HH"},"Other Family",{"$f":"\"MOE \"&AJ123","v":"MOE Other Family"},"Male Head of Family HH no wife",{"$f":"\"MOE \"&AL123","v":"MOE Male Head of Family HH no wife"},"Female Head of Family HH no husband",{"$f":"\"MOE \"&AN123","v":"MOE Female Head of Family HH no husband"},"Non-Family HH",{"$f":"\"MOE \"&AP123","v":"MOE Non-Family HH"},"Non-Family Male HH",{"$f":"\"MOE \"&AR123","v":"MOE Non-Family Male HH"},"Non-Family Female HH",{"$f":"\"MOE \"&AT123","v":"MOE Non-Family Female HH"},"Total Households at or Above Poverty",{"$f":"\"MOE \"&AV123","v":"MOE Total Households at or Above Poverty"},"Family Households above Poverty",{"$f":"\"MOE \"&AX123","v":"MOE Family Households above Poverty"},"Married Couple Fam HH",{"$f":"\"MOE \"&AZ123","v":"MOE Married Couple Fam HH"},"Other Family",{"$f":"\"MOE \"&BB123","v":"MOE Other Family"},"Male Head of Family HH no wife",{"$f":"\"MOE \"&BD123","v":"MOE Male Head of Family HH no wife"},"Female Head of Family HH no husband",{"$f":"\"MOE \"&BF123","v":"MOE Female Head of Family HH no husband"},"Non-Family HH",{"$f":"\"MOE \"&BH123","v":"MOE Non-Family HH"},"Non-Family Male HH",{"$f":"\"MOE \"&BJ123","v":"MOE Non-Family Male HH"},"Non-Family Female HH",{"$f":"\"MOE \"&BL123","v":"MOE Non-Family Female HH"},"Married Couple with Children Below Poverty",{"$f":"\"MOE \"&BN123","v":"MOE Married Couple with Children Below Poverty"},"Male HH with children below poverty",{"$f":"\"MOE \"&BP123","v":"MOE Male HH with children below poverty"},"Female HH with children below poverty",{"$f":"\"MOE \"&BR123","v":"MOE Female HH with children below poverty"},"Married Couple with Children At or Above Poverty",{"$f":"\"MOE \"&BT123","v":"MOE Married Couple with Children At or Above Poverty"},"Male HH with children at or above poverty",{"$f":"\"MOE \"&BV123","v":"MOE Male HH with children at or above poverty"},"Female HH with children at or above poverty",{"$f":"\"MOE \"&BX123","v":"MOE Female HH with children at or above poverty"}]
[{"$f":"VLOOKUP(DropDownList!$B$24,CntyQuery!$A$70:$CF$88,A$1)","v":"Wolfeboro"},6155,58,484,239,75,98.615414616580097,52,92.870878105033555,265,154.60595072635465,0,22.627416997969522,92,89.537701556383496,5671,262,117,74.330343736592525,1020,246.70630312174839,2947,340.03088095053954,936,200.11246837716035,651,152.04275714416653,2590,178,258,135,86,81,31,35,55,75,21,40,34,57,172,109,129,105,43,41,2332,203,1692,175,1074,172,640,178,72,89,146,95,640,178,172,95,468,158,16,26,21,40,34,57,null,null,12,17,108,85]
[]
["Household Income By Tenure"]
["NAME","TotalOccHU",{"$f":"\"MOE \"&B127","v":"MOE TotalOccHU"},"OwnOccHU",{"$f":"\"MOE \"&D127","v":"MOE OwnOccHU"},"OOHUInc<5K",{"$f":"\"MOE \"&F127","v":"MOE OOHUInc<5K"},"OOHUInc5to10K",{"$f":"\"MOE \"&H127","v":"MOE OOHUInc5to10K"},"OOHUInc10to15K",{"$f":"\"MOE \"&J127","v":"MOE OOHUInc10to15K"},"OOHUInc15to20K",{"$f":"\"MOE \"&L127","v":"MOE OOHUInc15to20K"},"OOHUInc20to25K",{"$f":"\"MOE \"&N127","v":"MOE OOHUInc20to25K"},"OOHUInc25to35K",{"$f":"\"MOE \"&P127","v":"MOE OOHUInc25to35K"},"OOHUInc35to50K",{"$f":"\"MOE \"&R127","v":"MOE OOHUInc35to50K"},"OOHUInc50to75K",{"$f":"\"MOE \"&T127","v":"MOE OOHUInc50to75K"},"OOHUInc75to100K",{"$f":"\"MOE \"&V127","v":"MOE OOHUInc75to100K"},"OOHUInc100to150K",{"$f":"\"MOE \"&X127","v":"MOE OOHUInc100to150K"},"OOHUInc>150K",{"$f":"\"MOE \"&Z127","v":"MOE OOHUInc>150K"},"RentOccHU",{"$f":"\"MOE \"&AB127","v":"MOE RentOccHU"},"ROHUInc<5K",{"$f":"\"MOE \"&AD127","v":"MOE ROHUInc<5K"},"ROHUInc5to10K",{"$f":"\"MOE \"&AF127","v":"MOE ROHUInc5to10K"},"ROHUInc10to15K",{"$f":"\"MOE \"&AH127","v":"MOE ROHUInc10to15K"},"ROHUInc15to20K",{"$f":"\"MOE \"&AJ127","v":"MOE ROHUInc15to20K"},"ROHUInc20to25K",{"$f":"\"MOE \"&AL127","v":"MOE ROHUInc20to25K"},"ROHUInc25to35K",{"$f":"\"MOE \"&AN127","v":"MOE ROHUInc25to35K"},"ROHUInc35to50K",{"$f":"\"MOE \"&AP127","v":"MOE ROHUInc35to50K"},"ROHUInc50to75K",{"$f":"\"MOE \"&AR127","v":"MOE ROHUInc50to75K"},"ROHUInc75to100K",{"$f":"\"MOE \"&AT127","v":"MOE ROHUInc75to100K"},"ROHUInc100to150K",{"$f":"\"MOE \"&AV127","v":"MOE ROHUInc100to150K"},"ROHUInc>150K",{"$f":"\"MOE \"&AX127","v":"MOE ROHUInc>150K"},"Total OCC HUInc<5K",{"$f":"\"MOE \"&AZ127","v":"MOE Total OCC HUInc<5K"},"Total OCC HUInc5to10K",{"$f":"\"MOE \"&BB127","v":"MOE Total OCC HUInc5to10K"},"Total OCC HUInc10to15K",{"$f":"\"MOE \"&BD127","v":"MOE Total OCC HUInc10to15K"},"Total OCC HUInc15to20K",{"$f":"\"MOE \"&BF127","v":"MOE Total OCC HUInc15to20K"},"Total OCC HUInc20to25K",{"$f":"\"MOE \"&BH127","v":"MOE Total OCC HUInc20to25K"},"Total OCC HUInc25to35K",{"$f":"\"MOE \"&BJ127","v":"MOE Total OCC HUInc25to35K"},"Total OCC HUInc35to50K",{"$f":"\"MOE \"&BL127","v":"MOE Total OCC HUInc35to50K"},"Total OCC HUInc50to75K",{"$f":"\"MOE \"&BN127","v":"MOE Total OCC HUInc50to75K"},"Total OCC HUInc75to100K",{"$f":"\"MOE \"&BP127","v":"MOE Total OCC HUInc75to100K"},"Total OCC HUInc100to150K",{"$f":"\"MOE \"&BR127","v":"MOE Total OCC HUInc100to150K"},"Total OCC HUInc>150K",{"$f":"\"MOE \"&BT127","v":"MOE Total OCC HUInc>150K"},"MedHHInc",{"$f":"\"MOE \"&BV127","v":"MOE MedHHInc"},"MedOwnOccHHInc",{"$f":"\"MOE \"&BX127","v":"MOE MedOwnOccHHInc"},"MedRentOccHHInc",{"$f":"\"MOE \"&BZ127","v":"MOE MedRentOccHHInc"}]
[{"$f":"VLOOKUP(DropDownList!$B$24,CntyQuery!$A$70:$CF$88,A$1)","v":"Wolfeboro"},2590,178,2165,196,15,24,36,40,47,47,21,24,15,24,123,80,413,144,468,148,363,139,407,158,257,117,425,154,14,23,16,27,103,97,13,21,58,76,52,70,94,97,38,36,16,32,21,25,0,16,29,33.241540277189323,52,48.259714048054619,150,107.78682665335315,34,31.89043743820395,73,79.699435380685102,175,106.30145812734649,507,173.62315513778685,506,152.31546211727817,379,142.63590010933433,428,159.96562130657949,257,118.0889495253472,67533,6552,71322,7259,30409,17590,131,60.207972893961475,97,130.24976007655445,256,116.97008164483771,418,127.05904139414872,510,129.71121771072848,449,123.0690862889621,508,128.41339493993607,207,136.45878498652991]
[]
["Population Data"]
["NAME","Total Population","MOE Total Population","Under 15 Years","MOE Under 15 yrs.","15 to 24 yrs.","MOE 15 to 24 yrs.","25 to 34 yrs.","MOE 25 to 34 yrs.","35 to 44 yrs.","MOE 35 to 44 yrs.","45 to 54 yrs.","MOE 45 to 54 yrs.","55 to 64 yrs.","MOE 55 to 64 yrs.","65 to 74 yrs.","MOE 65 to 74 yrs.","Over 74 yrs. ","MOE Over 74 yrs. ","TotalHH","MOE TotalHH","FamilyHH","MOE FamilyHH","MarriedFamilyHH","MOE MarriedFamilyHH","SingleFamilyHH","MOE SingleFamilyHH","Sfamily-MaleHH","MOE Sfamily-MaleHH","Sfamily-FemaleHH","MOE Sfamily-FemaleHH","NonFamilyHH","MOE NonFamilyHH","NonFamilyHH-LivingAlone","MOE NonFamilyHH-LivingAlone","NonFamilyHH-NotLivingAlone","MOE NonFamilyHH-NotLivingAlone","PopRaceWhite","MOE PopRaceWhite","PopRaceBlack","MOE PopRaceBlack","PopRaceAmerican Indian","MOE PopRaceAmerican Indian","PopRaceAsian &Pacific Is.","MOE PopRaceAsian &Pacific Is.","PopRaceOther*","MOE PopRaceOther*","PopRaceHispanic or Latino:","MOE PopRaceHispanic or Latino:","AvgAgeTotalPop","MOE AvgAgeTotalPop","AvgAgeMale","MOE AvgAgeMale","AvgAgeFemale","MOE AvgAgeFemale","AvgHHSizeTotal","MOE AvgHHSizeTotal","AvgHHSizeFamilyHH","MOE AvgHHSizeFamilyHH","AvgHHSizeNonFamilyHH","MOE AvgHHSizeNonFamilyHH"]
[{"$f":"VLOOKUP(DropDownList!$B$24,CntyQuery!$A$70:$CF$88,A$1)","v":"Wolfeboro"},6286,17,1105,230.95887079737813,576,175.920436561532,433,142.95104056983985,449,151.22499793354271,802,182.48013590525409,1152,279.30091299528544,949,230.7834482799839,820,183.18296864064629,2590,178,1778,171,1505,167,273,125,93,95,180,90,812,205,521,185,291,143,5991,156,1,2,0,16,92,99.297532698451278,123,122.05326705991938,79,78,52.9,2.7,51.9,8.4,53.6,2.7,2.39,0.16,2.46,0.19,2.0499999999999998,0.47]
[]
["Nativity and Prior Place of Residence"]
["NAME","TotalPop",{"$f":"\"MOE \"&B135","v":"MOE TotalPop"},"Native:",{"$f":"\"MOE \"&D135","v":"MOE Native:"},"NatBornInStateOfResidence",{"$f":"\"MOE \"&F135","v":"MOE NatBornInStateOfResidence"},"Born in other state in the United States:",{"$f":"\"MOE \"&H135","v":"MOE Born in other state in the United States:"},"Northeast",{"$f":"\"MOE \"&J135","v":"MOE Northeast"},"Midwest",{"$f":"\"MOE \"&L135","v":"MOE Midwest"},"South",{"$f":"\"MOE \"&N135","v":"MOE South"},"West",{"$f":"\"MOE \"&P135","v":"MOE West"},"Born outside the United States:",{"$f":"\"MOE \"&R135","v":"MOE Born outside the United States:"},"Puerto Rico",{"$f":"\"MOE \"&T135","v":"MOE Puerto Rico"},"U.S. Island Areas",{"$f":"\"MOE \"&V135","v":"MOE U.S. Island Areas"},"Born abroad of American parent(s)",{"$f":"\"MOE \"&X135","v":"MOE Born abroad of American parent(s)"},"Foreign born:",{"$f":"\"MOE \"&Z135","v":"MOE Foreign born:"},"Naturalized U.S. citizen",{"$f":"\"MOE \"&AB135","v":"MOE Naturalized U.S. citizen"},"Not a U.S. citizen",{"$f":"\"MOE \"&AD135","v":"MOE Not a U.S. citizen"},"CurrentResideneTotal:",{"$f":"\"MOE \"&AF135","v":"MOE CurrentResideneTotal:"},"SameHouse:",{"$f":"\"MOE \"&AH135","v":"MOE SameHouse:"},"DifferentHouse:",{"$f":"\"MOE \"&AJ135","v":"MOE DifferentHouse:"},"DiffHouseInNH",{"$f":"\"MOE \"&AL135","v":"MOE DiffHouseInNH"},"DiffHouseInNHSameCnty",{"$f":"\"MOE \"&AN135","v":"MOE DiffHouseInNHSameCnty"},"DiffHouseInNHDiffCnty",{"$f":"\"MOE \"&AP135","v":"MOE DiffHouseInNHDiffCnty"},"DiffHouseInDiffState",{"$f":"\"MOE \"&AR135","v":"MOE DiffHouseInDiffState"},"DiffHouseInElsewhere",{"$f":"\"MOE \"&AT135","v":"MOE DiffHouseInElsewhere"}]
[{"$f":"VLOOKUP(DropDownList!$B$24,CntyQuery!$A$70:$CF$88,A$1)","v":"Wolfeboro"},6286,17,6136,96,2649,356,3461,348,2833,385,309,116,211,101,108,103,26,40,25,40,0,16,1,2,150,98,150,98,0,16,6267,43,5342,376,925,412.58453679215853,595,328.29255245893108,343,240,252,224,330,235,0,85]
[]
["School Enrollment - Education"]
["NAME","Total Pop 3 Years and Older","MOE Total Pop 3 Years and Older","P36SchEnrlPop3yrOver",{"$f":"\"MOE \"&D139","v":"MOE P36SchEnrlPop3yrOver"},"TotalEnrollNursy&Kinder",{"$f":"\"MOE \"&F139","v":"MOE TotalEnrollNursy&Kinder"},"P36NurserSchEnrl",{"$f":"\"MOE \"&H139","v":"MOE P36NurserSchEnrl"},"P36KinderSchEnrl",{"$f":"\"MOE \"&J139","v":"MOE P36KinderSchEnrl"},"P36ElemSchEnrl",{"$f":"\"MOE \"&L139","v":"MOE P36ElemSchEnrl"},"P36HighSchEnrl",{"$f":"\"MOE \"&N139","v":"MOE P36HighSchEnrl"},"TotalElementry&HSEnroll",{"$f":"\"MOE \"&P139","v":"MOE TotalElementry&HSEnroll"},"P36CollGradSchEnrl",{"$f":"\"MOE \"&R139","v":"MOE P36CollGradSchEnrl"},"PopNotEnrolled","MOE PopNotEnrolled","P37Pop25yrsOver",{"$f":"\"MOE \"&V139","v":"MOE P37Pop25yrsOver"},"P37EduAtain<9grd",{"$f":"\"MOE \"&X139","v":"MOE P37EduAtain<9grd"},"P37EduAtainHSnoDip",{"$f":"\"MOE \"&Z139","v":"MOE P37EduAtainHSnoDip"},"P37EduAtainHSgrad",{"$f":"\"MOE \"&AB139","v":"MOE P37EduAtainHSgrad"},"P37EduAtainCollNoDeg",{"$f":"\"MOE \"&AD139","v":"MOE P37EduAtainCollNoDeg"},"P37EduAtainAssocDeg",{"$f":"\"MOE \"&AF139","v":"MOE P37EduAtainAssocDeg"},"P37EduAtainBachDeg",{"$f":"\"MOE \"&AH139","v":"MOE P37EduAtainBachDeg"},"P37EduAtainGradProfDeg",{"$f":"\"MOE \"&AJ139","v":"MOE P37EduAtainGradProfDeg"}]
[{"$f":"VLOOKUP(DropDownList!$B$24,CntyQuery!$A$70:$CF$88,A$1)","v":"Wolfeboro"},6121,115,1382,228,68,59.539902586416787,27,29,41,52,814,189.84203960134857,296,134,1110,232.37039398339883,204,99.126182212370111,578,107,4605,243,37,51.166395221864128,99,82.152297594163485,1051,210.10711553871752,1032,249.90198078446679,558,144.40221604947757,1060,248.92770034690795,349,144.75496537252184]
[]
["Occupied Owner Housing Value"]
["NAME","OwnerOccHU","MOE OwnerOccHU","AllOOHU<10k","MOE AllOOHU<10k","AllOOHU10to15k","MOE AllOOHU10to15k","AllOOHU15to20k","MOE AllOOHU15to20k","AllOOHU20to25k","MOE AllOOHU20to25k","AllOOHU25to30k","MOE AllOOHU25to30k","AllOOHU30to35k","MOE AllOOHU30to35k","AllOOHU35to40k","MOE AllOOHU35to40k","AllOOHU40to50k","MOE AllOOHU40to50k","AllOOHU50to60k","MOE AllOOHU50to60k","AllOOHU60to70k","MOE AllOOHU60to70k","AllOOHU70to80k","MOE AllOOHU70to80k","AllOOHU80to90k","MOE AllOOHU80to90k","AllOOHU90to100k","MOE AllOOHU90to100k","AllOOHU100to125k","MOE AllOOHU100to125k","AllOOHU125to150k","MOE AllOOHU125to150k","AllOOHU150to175k","MOE AllOOHU150to175k","AllOOHU175to200k","MOE AllOOHU175to200k","AllOOHU200to250k","MOE AllOOHU200to250k","AllOOHU250to300k","MOE AllOOHU250to300k","AllOOHU300to400k","MOE AllOOHU300to400k","AllOOHU400to500k","MOE AllOOHU400to500k","AllOOHU500to750k","MOE AllOOHU500to750k","AllOOHU750to1000k","MOE AllOOHU750to1000k","AllOOHU1000k-1499k","MOE AllOOHU1000k-1499k","AllOOHU1500k-1999k","MOE AllOOHU1500k-1999k","AllOOHU2000k or more","MOE AllOOHU2000k or more","MedianOwnOCCHomeValue","MOE MedianOwnOCCHomeValue","OnwerOccHsU","MOE OnwerOccHsU","OwnerCosts>20PctHHInc","MOE OwnerCosts>20PctHHInc","OwnerCosts20to29.9PctHHInc","MOE OwnerCosts20to29.9PctHHInc","OwnerCosts<30PctHHInc","MOE OwnerCosts<30PctHHInc","OwnerCosts>30PctHHInc","MOE OwnerCosts>30PctHHInc","OwnerCosts30to34.9PctHHInc","MOE OwnerCosts30to34.9PctHHInc","OwnerCosts<35PctHHInc","MOE OwnerCosts<35PctHHInc","OwnerCosts>35PctHHInc","MOE OwnerCosts>35PctHHInc","OwnerCosts>50PctHHInc","MOE OwnerCosts>50PctHHInc","OwnerCostsPctNotcomputed","MOE OwnerCostsPctNotcomputed","OwnerOHUHhInc<20k","MOE OwnerOHUHhInc<20k","OwnerOHUHhInc<20kHCosts<20pct","MOE OwnerOHUHhInc<20kHCosts<20pct","OwnerOHUHhInc<20kHCosts20to29pct","MOE OwnerOHUHhInc<20kHCosts20to29pct","OwnerOHUHhInc>20kHCosts30pct","MOE OwnerOHUHhInc>20kHCosts30pct","OwnerOHUHhInc20kTo34999","MOE OwnerOHUHhInc20kTo34999","OwnerOHUHhInc20kTo34999HCosts<20pct","MOE OwnerOHUHhInc20kTo34999HCosts<20pct","OwnerOHUHhInc20kTo34999HCosts20to29pct","MOE OwnerOHUHhInc20kTo34999HCosts20to29pct","OwnerOHUHhInc20kTo34999HCosts30pct","MOE OwnerOHUHhInc20kTo34999HCosts30pct","OwnerOHUHhInc35kTo49999","MOE OwnerOHUHhInc35kTo49999","OwnerOHUHhInc35kTo49999HCosts<20pct","MOE OwnerOHUHhInc35kTo49999HCosts<20pct","OwnerOHUHhInc35kTo49999HCosts20to29pct","MOE OwnerOHUHhInc35kTo49999HCosts20to29pct","OwnerOHUHhInc35kTo49999HCosts30pct","MOE OwnerOHUHhInc35kTo49999HCosts30pct","OwnerOHUHhInc50kTo74999","MOE OwnerOHUHhInc50kTo74999","OwnerOHUHhInc50kTo74999HCosts<20pct","MOE OwnerOHUHhInc50kTo74999HCosts<20pct","OwnerOHUHhInc50kTo74999HCosts20to29pct","MOE OwnerOHUHhInc50kTo74999HCosts20to29pct","OwnerOHUHhInc50kTo74999HCosts30pct","MOE OwnerOHUHhInc50kTo74999HCosts30pct","OwnerOHUHhInc>75000","MOE OwnerOHUHhInc>75000","OwnerOHUHhInc>75000HCosts<20pct","MOE OwnerOHUHhInc>75000HCosts<20pct","OwnerOHUHhInc>75000HCosts20to29pct","MOE OwnerOHUHhInc>75000HCosts20to29pct","OwnerOHUHhInc>75000HCosts30pct","MOE OwnerOHUHhInc>75000HCosts30pct","ZeroOrNegativeIncome","MOE ZeroOrNegativeIncome"]
[{"$f":"VLOOKUP(DropDownList!$B$24,CntyQuery!$A$70:$CF$88,A$1)","v":"Wolfeboro"},2165,196,0,16,0,16,24,31,0,16,0,16,0,16,0,16,23,28,10,17,0,16,23,35,13,21,0,16,38,36,46,34,110,76,97,70,359,146,448,195,391,116,207,101,142,89,51,67,183,95,null,null,null,null,287900,17900,2165,196,1129,251.04581255221129,604,198.07574308834484,1733,319.77804802706515,432,140.46351839534705,55,40.80441152620633,1788,322.3709043943017,377,134.40610105199838,254,111.83022847155415,0,22.627416997969522,119,71,0,16,0,16,119,71,138,82,25,29,71,72,42,39,413,144,233,121,81,58,99,63,468,148,209,91,133,96,126,77,1027,208,662,199,319,130,46,49,0,16,425,154]
[]
["Occupied Rental Housing Value"]
["NAME","RntrOccHU","MOE RntrOccHU","RntrOccHUwRent","MOE RntrOccHUwRent","ROHUGRent<100","MOE ROHUGRent<100","ROHUGRent100to149","MOE ROHUGRent100to149","ROHUGRent150to199","MOE ROHUGRent150to199","ROHUGRent200to249","MOE ROHUGRent200to249","ROHUGRent250to299","MOE ROHUGRent250to299","ROHUGRent300to349","MOE ROHUGRent300to349","ROHUGRent350to399","MOE ROHUGRent350to399","ROHUGRent400to449","MOE ROHUGRent400to449","ROHUGRent450to499","MOE ROHUGRent450to499","ROHUGRent500to549","MOE ROHUGRent500to549","ROHUGRent550to599","MOE ROHUGRent550to599","ROHUGRent600to649","MOE ROHUGRent600to649","ROHUGRent650to699","MOE ROHUGRent650to699","ROHUGRent700to749","MOE ROHUGRent700to749","ROHUGRent750to799","MOE ROHUGRent750to799","ROHUGRent800to899","MOE ROHUGRent800to899","ROHUGRent900to999","MOE ROHUGRent900to999","ROHUGRent1000to1249","MOE ROHUGRent1000to1249","ROHUGRent1250to1499","MOE ROHUGRent1250to1499","ROHUGRent1500to1999","MOE ROHUGRent1500to1999","ROHUGRent2000-2499","MOE ROHUGRent2000-2499","ROHUGRent2500-2999","MOE ROHUGRent2500-2999","ROHUGRent3000-3499","MOE ROHUGRent3000-3499","ROHUGRent3500<","MOE ROHUGRent3500<","ROHUNoGRent","MOE ROHUNoGRent","MedianGrossRnt","MOE MedianGrossRnt","H73RenterOccHU","MOE H73RenterOccHU","H73ROHUHhInc<10k","MOE H73ROHUHhInc<10k","H73ROHUHhInc<10kRnt<20pct","MOE H73ROHUHhInc<10kRnt<20pct","H73ROHUHhInc<10kRnt20to25pct","MOE H73ROHUHhInc<10kRnt20to25pct","H73ROHUHhInc<10kRnt25to30pct","MOE H73ROHUHhInc<10kRnt25to30pct","H73ROHUHhInc<10kRnt30to35pct","MOE H73ROHUHhInc<10kRnt30to35pct","H73ROHUHhInc<10kRnt35to39.9","MOE H73ROHUHhInc<10kRnt35to39.9","H73ROHUHhInc<10kRnt40to49.9","MOE H73ROHUHhInc<10kRnt40to49.9","H73ROHUHhInc<10kRnt>50pct","MOE H73ROHUHhInc<10kRnt>50pct","H73ROHUHhInc<10kPctNotComput","MOE H73ROHUHhInc<10kPctNotComput","H73ROHUHhInc10to20k","MOE H73ROHUHhInc10to20k","H73ROHUHhInc10to20kRnt<20pct","MOE H73ROHUHhInc10to20kRnt<20pct","H73ROHUHhInc10to20kRnt20to25pct","MOE H73ROHUHhInc10to20kRnt20to25pct","H73ROHUHhInc10to20kRnt25to30pct","MOE H73ROHUHhInc10to20kRnt25to30pct","H73ROHUHhInc10to20kRnt30to35pct","MOE H73ROHUHhInc10to20kRnt30to35pct","H73ROHUHhInc10to20kRnt35to39.9","MOE H73ROHUHhInc10to20kRnt35to39.9","H73ROHUHhInc10to20kRnt40to49.9","MOE H73ROHUHhInc10to20kRnt40to49.9","H73ROHUHhInc10to20kRnt>50pct","MOE H73ROHUHhInc10to20kRnt>50pct","H73ROHUHhInc10to20kRntPctNC","MOE H73ROHUHhInc10to20kRntPctNC","H73ROHUHhInc20to34.9k","MOE H73ROHUHhInc20to34.9k","H73ROHUHhInc20to34.9kRnt<20pct","MOE H73ROHUHhInc20to34.9kRnt<20pct","H73ROHUHhInc20to34.9kRnt20to25pct","MOE H73ROHUHhInc20to34.9kRnt20to25pct","H73ROHUHhInc20to34.9kRnt25to30pct","MOE H73ROHUHhInc20to34.9kRnt25to30pct","H73ROHUHhInc20to34.9kRnt30to35pct","MOE H73ROHUHhInc20to34.9kRnt30to35pct","H73ROHUHhInc20to34.9kRnt35to39.9","MOE H73ROHUHhInc20to34.9kRnt35to39.9","H73ROHUHhInc20to34.9kRnt40to49.9","MOE H73ROHUHhInc20to34.9kRnt40to49.9","H73ROHUHhInc20to34.9kRnt>50pct","MOE H73ROHUHhInc20to34.9kRnt>50pct","H73ROHUHhInc20to34.9kRntPctNC","MOE H73ROHUHhInc20to34.9kRntPctNC","H73ROHUHhInc35to49.9k","MOE H73ROHUHhInc35to49.9k","H73ROHUHhInc35to49.9kRnt<20pct","MOE H73ROHUHhInc35to49.9kRnt<20pct","H73ROHUHhInc35to49.9kRnt20to25pct","MOE H73ROHUHhInc35to49.9kRnt20to25pct","H73ROHUHhInc35to49.9kRnt25to30pct","MOE H73ROHUHhInc35to49.9kRnt25to30pct","H73ROHUHhInc35to49.9kRnt30to35pct","MOE H73ROHUHhInc35to49.9kRnt30to35pct","H73ROHUHhInc35to49.9kRnt35to39.9","MOE H73ROHUHhInc35to49.9kRnt35to39.9","H73ROHUHhInc35to49.9kRnt40to49.9","MOE H73ROHUHhInc35to49.9kRnt40to49.9","H73ROHUHhInc35to49.9kRnt>50pct","MOE H73ROHUHhInc35to49.9kRnt>50pct","H73ROHUHhInc35to49.9kRntPctNC","MOE H73ROHUHhInc35to49.9kRntPctNC","H73ROHUHhInc50to74.9k","MOE H73ROHUHhInc50to74.9k","H73ROHUHhInc50to74.9kRnt<20pct","MOE H73ROHUHhInc50to74.9kRnt<20pct","H73ROHUHhInc50to74.9kRnt20to25pct","MOE H73ROHUHhInc50to74.9kRnt20to25pct","H73ROHUHhInc50to74.9kRnt25to30pct","MOE H73ROHUHhInc50to74.9kRnt25to30pct","H73ROHUHhInc50to74.9kRnt30to35pct","MOE H73ROHUHhInc50to74.9kRnt30to35pct","H73ROHUHhInc50to74.9kRnt35to39.9","MOE H73ROHUHhInc50to74.9kRnt35to39.9","H73ROHUHhInc50to74.9kRnt40to49.9","MOE H73ROHUHhInc50to74.9kRnt40to49.9","H73ROHUHhInc50to74.9kRnt>50pct","MOE H73ROHUHhInc50to74.9kRnt>50pct","H73ROHUHhInc50to74.9kRntPctNC","MOE H73ROHUHhInc50to74.9kRntPctNC","H73ROHUHhInc75to99.9k","MOE H73ROHUHhInc75to99.9k","H73ROHUHhInc75to99.9kRnt<20pct","MOE H73ROHUHhInc75to99.9kRnt<20pct","H73ROHUHhInc75to99.9kRnt20to25pct","MOE H73ROHUHhInc75to99.9kRnt20to25pct","H73ROHUHhInc75to99.9kRnt25to30pct","MOE H73ROHUHhInc75to99.9kRnt25to30pct","H73ROHUHhInc75to99.9kRnt30to35pct","MOE H73ROHUHhInc75to99.9kRnt30to35pct","H73ROHUHhInc75to99.9kRnt35to39.9","MOE H73ROHUHhInc75to99.9kRnt35to39.9","H73ROHUHhInc75to99.9kRnt40to49.9","MOE H73ROHUHhInc75to99.9kRnt40to49.9","H73ROHUHhInc75to99.9kRnt>50pct","MOE H73ROHUHhInc75to99.9kRnt>50pct","H73ROHUHhInc75to99.9kRntPctNC","MOE H73ROHUHhInc75to99.9kRntPctNC","H73ROHUHhInc>100k","MOE H73ROHUHhInc>100k","H73ROHUHhInc>100kRnt<20pct","MOE H73ROHUHhInc>100kRnt<20pct","H73ROHUHhInc>100kRnt20to25pct","MOE H73ROHUHhInc>100kRnt20to25pct","H73ROHUHhInc>100kRnt25to30pct","MOE H73ROHUHhInc>100kRnt25to30pct","H73ROHUHhInc>100kRnt30to35pct","MOE H73ROHUHhInc>100kRnt30to35pct","H73ROHUHhInc>100kRnt35to39.9","MOE H73ROHUHhInc>100kRnt35to39.9","H73ROHUHhInc>100kRnt40to49.9","MOE H73ROHUHhInc>100kRnt40to49.9","H73ROHUHhInc>100kRnt>50pct","MOE H73ROHUHhInc>100kRnt>50pct","H73ROHUHhInc>100kRntPctNC","MOE H73ROHUHhInc>100kRntPctNC"]
[{"$f":"VLOOKUP(DropDownList!$B$24,CntyQuery!$A$70:$CF$88,A$1)","v":"Wolfeboro"},425,154,402,154,0,16,0,16,0,16,14,23,0,16,0,16,0,16,18,30,0,16,0,16,13,22,32,39,47,75,0,16,34,57,59,90,16,32,117,108,27,33,11,18,14,22,null,null,null,null,null,null,873,258,null,null,425,154,30,36,0,16,0,16,0,16,0,16,16,27,null,null,null,null,14,23,116,99,0,16,0,16,0,16,0,16,103,97,null,null,null,null,13,21,110,105,0,16,0,16,0,16,10,16,100,104,null,null,null,null,0,16,94,97,18,30,0,16,59,90,0,16,17,26,null,null,null,null,0,16,38,36,13,22,0,16,0,16,0,16,25,29,null,null,null,null,0,16,16,32,16,32,0,16,0,16,0,16,0,16,null,null,null,null,0,16,21,25,11,18,0,16,0,16,0,16,0,16,null,null,null,null,10,16]
[]
[]
[]
[]
[]
["Occupied Rental Housing Cost Burdern All Incomes"]
["NAME","RenterOccHsU",{"$f":"\"MOE \"&B155","v":"MOE RenterOccHsU"},"GRnt<20PctHHInc",{"$f":"\"MOE \"&D155","v":"MOE GRnt<20PctHHInc"},"GRnt20to249PctHHInc",{"$f":"\"MOE \"&F155","v":"MOE GRnt20to249PctHHInc"},"GRnt25to29.9PctHHInc",{"$f":"\"MOE \"&H155","v":"MOE GRnt25to29.9PctHHInc"},"GRnt<30PctHHInc",{"$f":"\"MOE \"&J155","v":"MOE GRnt<30PctHHInc"},"GRnt>30PctHHInc",{"$f":"\"MOE \"&L155","v":"MOE GRnt>30PctHHInc"},"GRnt30to349PctHHInc",{"$f":"\"MOE \"&N155","v":"MOE GRnt30to349PctHHInc"},"GRnt<35PctHHInc",{"$f":"\"MOE \"&P155","v":"MOE GRnt<35PctHHInc"},"GRnt>35PctHHInc",{"$f":"\"MOE \"&R155","v":"MOE GRnt>35PctHHInc"},"GRnt>50PctHHInc",{"$f":"\"MOE \"&T155","v":"MOE GRnt>50PctHHInc"},"HCB Not Calculated",{"$f":"\"MOE \"&V155","v":"MOE HCB Not Calculated"}]
[{"$f":"VLOOKUP(DropDownList!$B$24,CntyQuery!$A$70:$CF$88,A$1)","v":"Wolfeboro"},425,154,58,52.735187493740838,0,16,59,90,117,105.53198567259123,271,143.11184437355283,10,16,127,106.73799698326739,261,142.21462653327893,167,118,37,35]
[]
["Income By Household Type and Tenure"]
["NAME","TotalFamilyHouseholds",{"$f":"\"MOE \"&B159","v":"MOE TotalFamilyHouseholds"},"FamInc<10K",{"$f":"\"MOE \"&D159","v":"MOE FamInc<10K"},"FamInc10to15K",{"$f":"\"MOE \"&F159","v":"MOE FamInc10to15K"},"FamInc15to20K",{"$f":"\"MOE \"&H159","v":"MOE FamInc15to20K"},"FamInc20to25K",{"$f":"\"MOE \"&J159","v":"MOE FamInc20to25K"},"FamInc25to30K",{"$f":"\"MOE \"&L159","v":"MOE FamInc25to30K"},"FamInc30to35K",{"$f":"\"MOE \"&N159","v":"MOE FamInc30to35K"},"FamInc35to40K",{"$f":"\"MOE \"&P159","v":"MOE FamInc35to40K"},"FamInc40to45K",{"$f":"\"MOE \"&R159","v":"MOE FamInc40to45K"},"FamInc45to50K",{"$f":"\"MOE \"&T159","v":"MOE FamInc45to50K"},"FamInc50to60K",{"$f":"\"MOE \"&V159","v":"MOE FamInc50to60K"},"FamInc60to75K",{"$f":"\"MOE \"&X159","v":"MOE FamInc60to75K"},"FamInc75to100K",{"$f":"\"MOE \"&Z159","v":"MOE FamInc75to100K"},"FamInc100to125K",{"$f":"\"MOE \"&AB159","v":"MOE FamInc100to125K"},"FamInc125to150K",{"$f":"\"MOE \"&AD159","v":"MOE FamInc125to150K"},"FamInc150to200K",{"$f":"\"MOE \"&AF159","v":"MOE FamInc150to200K"},"FamInc>200K",{"$f":"\"MOE \"&AH159","v":"MOE FamInc>200K"},"MedFamInc",{"$f":"\"MOE \"&AJ159","v":"MOE MedFamInc"},"TotalNonNonFamilyHouseholds",{"$f":"\"MOE \"&AL159","v":"MOE TotalNonNonFamilyHouseholds"},"NonFamInc<10K",{"$f":"\"MOE \"&AN159","v":"MOE NonFamInc<10K"},"NonFamInc10to15K",{"$f":"\"MOE \"&AP159","v":"MOE NonFamInc10to15K"},"NonFamInc15to20K",{"$f":"\"MOE \"&AR159","v":"MOE NonFamInc15to20K"},"NonFamInc20to25K",{"$f":"\"MOE \"&AT159","v":"MOE NonFamInc20to25K"},"NonFamInc25to30K",{"$f":"\"MOE \"&AV159","v":"MOE NonFamInc25to30K"},"NonFamInc30to35K",{"$f":"\"MOE \"&AX159","v":"MOE NonFamInc30to35K"},"NonFamInc35to40K",{"$f":"\"MOE \"&AZ159","v":"MOE NonFamInc35to40K"},"NonFamInc40to45K",{"$f":"\"MOE \"&BB159","v":"MOE NonFamInc40to45K"},"NonFamInc45to50K",{"$f":"\"MOE \"&BD159","v":"MOE NonFamInc45to50K"},"NonFamInc50to60K",{"$f":"\"MOE \"&BF159","v":"MOE NonFamInc50to60K"},"NonFamInc60to75K",{"$f":"\"MOE \"&BH159","v":"MOE NonFamInc60to75K"},"NonFamInc75to100K",{"$f":"\"MOE \"&BJ159","v":"MOE NonFamInc75to100K"},"NonFamInc100to125K",{"$f":"\"MOE \"&BL159","v":"MOE NonFamInc100to125K"},"NonFamInc125to150K",{"$f":"\"MOE \"&BN159","v":"MOE NonFamInc125to150K"},"NonFamInc150to200K",{"$f":"\"MOE \"&BP159","v":"MOE NonFamInc150to200K"},"NonFamInc>200K",{"$f":"\"MOE \"&BR159","v":"MOE NonFamInc>200K"},"MedNonFamInc",{"$f":"\"MOE \"&BT159","v":"MOE MedNonFamInc"}]
[{"$f":"VLOOKUP(DropDownList!$B$24,CntyQuery!$A$70:$CF$88,A$1)","v":"Wolfeboro"},1778,171,15,24,71,79,10,17,15,24,31,35,91,70,66,52,120,70,160,109,95,62,284,115,234,102,295,144,105,68,34,37,152,88,70673,6628,66,53,100,90,24,27,58,76,41,66,12,19,128,104,13,21,15,24,11,18,116,88,145,87,22,25,0,16,46,74,15,24,null,null,35224,6146]

{"sheet":"StatisticallySignificantCalcs","index":76,"n_rows":271,"n_cols":16,"rows_kept":271,"cut":false,"hidden":true,"merged":[]}
[]
["Statistically Significant Change  10 Year","Standard Error Estimate  1","Standard Error Estimate  2","Square Root of Sum of Squared SE","Difference between the estimates","Value","Test Statistic (90%) Confidence Interval",null,null,"Statistically Significant Change  5Year","Standard Error Estimate  1","Standard Error Estimate  2","Square Root of Sum of Squared SE","Difference between the estimates","Value","Test Statistic (90%) Confidence Interval"]
[{"$f":"IF(F3>G3,\"Y\",\"N\")","v":"Y"},{"$f":"PopulationCharacteristics!Q22/1.645","v":119.80928603294699},{"$f":"PopulationCharacteristics!T22/1.645","v":88.091378172049474},{"$f":"SQRT((B3^2)+(C3^2))","v":148.70896384541027},{"$f":"(PopulationCharacteristics!M22-PopulationCharacteristics!S22)","v":-514},{"$f":"ABS((E3/D3))","v":3.4564157177123929},1.645,"Population By Age Under 15 yrs.",null,{"$f":"IF(O3>P3,\"Y\",\"N\")","v":"N"},{"$f":"PopulationCharacteristics!P22/1.645","v":355.62310030395139},{"$f":"PopulationCharacteristics!T22/1.645","v":88.091378172049474},{"$f":"SQRT((K3^2)+(L3^2))","v":366.37123301106124},{"$f":"(PopulationCharacteristics!P22-PopulationCharacteristics!S22)","v":71},{"$f":"ABS((N3/M3))","v":0.19379250771540901},1.645]
["Y",{"$f":"PopulationCharacteristics!Q23/1.645","v":122.53877707482197},{"$f":"PopulationCharacteristics!T23/1.645","v":156.01442061893533},198.38410049208829,{"$f":"(PopulationCharacteristics!M23-PopulationCharacteristics!S23)","v":-727},3.664608192877802,1.645,"Population By Age 15 to 24 yrs.",null,{"$f":"IF(O4>P4,\"Y\",\"N\")","v":"N"},{"$f":"PopulationCharacteristics!P23/1.645","v":327.05167173252278},{"$f":"PopulationCharacteristics!T23/1.645","v":156.01442061893533},362.35796586262586,{"$f":"(PopulationCharacteristics!P23-PopulationCharacteristics!S23)","v":-189},0.52158367637942893,1.645]
["Y",{"$f":"PopulationCharacteristics!Q24/1.645","v":112.10161593463395},{"$f":"PopulationCharacteristics!T24/1.645","v":89.586797533822519},143.50110308817241,{"$f":"(PopulationCharacteristics!M24-PopulationCharacteristics!S24)","v":-259},1.8048641747433869,1.645,"Population By Age 25 to 34 yrs.",null,"N",{"$f":"PopulationCharacteristics!P24/1.645","v":274.16413373860183},{"$f":"PopulationCharacteristics!T24/1.645","v":89.586797533822519},288.42982945771064,{"$f":"(PopulationCharacteristics!P24-PopulationCharacteristics!S24)","v":192},0.66567317382181823,1.645]
["Y",{"$f":"PopulationCharacteristics!Q25/1.645","v":101.56888678872073},{"$f":"PopulationCharacteristics!T25/1.645","v":150.35119624064234},181.4434373971462,{"$f":"(PopulationCharacteristics!M25-PopulationCharacteristics!S25)","v":-717},3.9516447124544896,1.645,"Population By Age 35 to 44 yrs.",null,"N",{"$f":"PopulationCharacteristics!P25/1.645","v":376.29179331306989},{"$f":"PopulationCharacteristics!T25/1.645","v":150.35119624064234},405.21722066782678,{"$f":"(PopulationCharacteristics!P25-PopulationCharacteristics!S25)","v":-98},0.24184559540310019,1.645]
["Y",{"$f":"PopulationCharacteristics!Q26/1.645","v":130.59301555587132},{"$f":"PopulationCharacteristics!T26/1.645","v":136.14171434307758},188.65074104346419,{"$f":"(PopulationCharacteristics!M26-PopulationCharacteristics!S26)","v":-681},3.6098453482517781,1.645,"Population By Age 45 to 54 yrs.",null,"N",{"$f":"PopulationCharacteristics!P26/1.645","v":465.04559270516717},{"$f":"PopulationCharacteristics!T26/1.645","v":136.14171434307758},484.56369001274987,{"$f":"(PopulationCharacteristics!P26-PopulationCharacteristics!S26)","v":84},0.17335182501559246,1.645]
["Y",{"$f":"PopulationCharacteristics!Q27/1.645","v":141.26383025680548},{"$f":"PopulationCharacteristics!T27/1.645","v":219.55221758297066},261.07210878304033,{"$f":"(PopulationCharacteristics!M27-PopulationCharacteristics!S27)","v":-1365},5.2284405498649447,1.645,"Population By Age 55 to 64 yrs.",null,"N",{"$f":"PopulationCharacteristics!P27/1.645","v":591.48936170212767},{"$f":"PopulationCharacteristics!T27/1.645","v":219.55221758297066},630.92221489846952,{"$f":"(PopulationCharacteristics!P27-PopulationCharacteristics!S27)","v":-392},0.62131272404646931,1.645]
["Y",{"$f":"PopulationCharacteristics!Q28/1.645","v":141.93715277738275},{"$f":"PopulationCharacteristics!T28/1.645","v":144.68723645585888},202.68337803525898,{"$f":"(PopulationCharacteristics!M28-PopulationCharacteristics!S28)","v":-999},4.9288698939397637,1.645,"Population By Age 65 to 74 yrs.",null,"N",{"$f":"PopulationCharacteristics!P28/1.645","v":748.936170212766},{"$f":"PopulationCharacteristics!T28/1.645","v":144.68723645585888},762.78423125166842,{"$f":"(PopulationCharacteristics!P28-PopulationCharacteristics!S28)","v":233},0.3054599065553118,1.645]
["Y",{"$f":"PopulationCharacteristics!Q29/1.645","v":178.54031934931447},{"$f":"PopulationCharacteristics!T29/1.645","v":170.1280727201835},246.61753133311353,{"$f":"(PopulationCharacteristics!M29-PopulationCharacteristics!S29)","v":-1222},4.9550410848505688,1.645,"Population By Age Over 74 yrs. ",null,"N",{"$f":"PopulationCharacteristics!P29/1.645","v":651.67173252279633},{"$f":"PopulationCharacteristics!T29/1.645","v":170.1280727201835},673.51288636279787,{"$f":"(PopulationCharacteristics!P29-PopulationCharacteristics!S29)","v":-150},0.22271288795980101,1.645]
["N",{"$f":"PopulationCharacteristics!Q$30/1.645","v":2.5531914893617023},{"$f":"PopulationCharacteristics!T$30/1.645","v":0.97264437689969607},2.7321829853184481,{"$f":"(PopulationCharacteristics!P30-PopulationCharacteristics!S30)","v":0.60000000000000142},0.21960461770830797,1.645,"Population By Age Median Age        ",null,"N",{"$f":"PopulationCharacteristics!P30/1.645","v":34.772036474164132},{"$f":"PopulationCharacteristics!T30/1.645","v":0.97264437689969607},34.78563723211802,{"$f":"(PopulationCharacteristics!P30-PopulationCharacteristics!S30)","v":0.60000000000000142},1.7248498165961836E-2,1.645]
["N",{"$f":"PopulationCharacteristics!E51/1.645","v":108.20668693009118},{"$f":"PopulationCharacteristics!K51/1.645","v":158.05471124620061},191.54628381544399,{"$f":"PopulationCharacteristics!D51-PopulationCharacteristics!J51","v":-197},1.0284720542519672,1.645,"Total Households",null,"N",{"$f":"PopulationCharacteristics!H51/1.645","v":127.65957446808511},{"$f":"PopulationCharacteristics!K51/1.645","v":158.05471124620061},203.17051631694108,{"$f":"PopulationCharacteristics!G51-PopulationCharacteristics!J51","v":148},0.72845215281691555,1.645]
["N",{"$f":"PopulationCharacteristics!E52/1.645","v":9.7264437689969604E-2},{"$f":"PopulationCharacteristics!K52/1.645","v":0.12891366294419865},0.16149025770255132,{"$f":"PopulationCharacteristics!D52-PopulationCharacteristics!J52","v":0.11802296376031585},0.73083643211284099,1.645,"Persons per Household",null,"N",{"$f":"PopulationCharacteristics!H52/1.645","v":0.12891366294419865},{"$f":"PopulationCharacteristics!K52/1.645","v":0.12891366294419865},0.18231145051087963,{"$f":"PopulationCharacteristics!G52-PopulationCharacteristics!J52","v":-0.18339100557528898},1.0059214879887368,1.645]
["N",{"$f":"PopulationCharacteristics!E53/1.645","v":108.20668693009118},{"$f":"PopulationCharacteristics!K53/1.645","v":158.05471124620061},191.54628381544399,{"$f":"PopulationCharacteristics!D53-PopulationCharacteristics!J53","v":70},0.36544692283064822,1.645,"Family Households",null,"N",{"$f":"PopulationCharacteristics!H53/1.645","v":127.65957446808511},{"$f":"PopulationCharacteristics!K53/1.645","v":158.05471124620061},203.17051631694108,{"$f":"PopulationCharacteristics!G53-PopulationCharacteristics!J53","v":302},1.4864361496669494,1.645]
["Y",{"$f":"PopulationCharacteristics!E54/1.645","v":0.11550151975683891},{"$f":"PopulationCharacteristics!K54/1.645","v":0.23925360436824808},0.26567440273639015,{"$f":"PopulationCharacteristics!D54-PopulationCharacteristics!J54","v":-0.51189695550351288},1.9267831233686141,1.645,"Persons per Family Household",null,"N",{"$f":"PopulationCharacteristics!H54/1.645","v":0.23925360436824808},{"$f":"PopulationCharacteristics!K54/1.645","v":0.23925360436824808},0.33835569214422323,{"$f":"PopulationCharacteristics!G54-PopulationCharacteristics!J54","v":-0.41468302515525401},1.2255831209084447,1.645]
["N",{"$f":"PopulationCharacteristics!E55/1.645","v":101.51975683890578},{"$f":"PopulationCharacteristics!K55/1.645","v":116.71732522796353},154.69064301696068,{"$f":"PopulationCharacteristics!D55-PopulationCharacteristics!J55","v":200},1.2929030230876439,1.645,"Married-Couple Family Hh",null,"Y",{"$f":"PopulationCharacteristics!H55/1.645","v":113.67781155015197},{"$f":"PopulationCharacteristics!K55/1.645","v":116.71732522796353},162.92814013301103,{"$f":"PopulationCharacteristics!G55-PopulationCharacteristics!J55","v":449},2.7558161508100816,1.645]
["N",{"$f":"PopulationCharacteristics!E56/1.645","v":75.98784194528875},{"$f":"PopulationCharacteristics!K56/1.645","v":113.67781155015197},136.73623134463685,{"$f":"PopulationCharacteristics!D56-PopulationCharacteristics!J56","v":-130},0.95073557843159717,1.645,"Single-Parent Family Hh",null,"N",{"$f":"PopulationCharacteristics!H56/1.645","v":93.61702127659575},{"$f":"PopulationCharacteristics!K56/1.645","v":113.67781155015197},147.2643592711232,{"$f":"PopulationCharacteristics!G56-PopulationCharacteristics!J56","v":-147},0.99820486591303126,1.645]
["N",{"$f":"PopulationCharacteristics!E57/1.645","v":124.62006079027356},{"$f":"PopulationCharacteristics!K57/1.645","v":183.58662613981764},221.88782942913443,{"$f":"PopulationCharacteristics!D57-PopulationCharacteristics!J57","v":-267},1.2033107029210599,1.645,"Non-Family Households*",null,"N",{"$f":"PopulationCharacteristics!H57/1.645","v":158.66261398176292},{"$f":"PopulationCharacteristics!K57/1.645","v":183.58662613981764},242.64763417953839,{"$f":"PopulationCharacteristics!G57-PopulationCharacteristics!J57","v":-154},0.63466516177138266,1.645]
["Y",{"$f":"PopulationCharacteristics!E58/1.645","v":0.2857142857142857},{"$f":"PopulationCharacteristics!K58/1.645","v":0.26896387677718497},0.39239548936275659,{"$f":"PopulationCharacteristics!D58-PopulationCharacteristics!J58","v":0.88595922150139006},2.2578221348572898,1.645,"Persons per Non-Family Hh",null,"N",{"$f":"PopulationCharacteristics!H58/1.645","v":0.26896387677718497},{"$f":"PopulationCharacteristics!K58/1.645","v":0.26896387677718497},0.38037236232674093,{"$f":"PopulationCharacteristics!G58-PopulationCharacteristics!J58","v":-9.3770508228339544E-2},0.24652292730929387,1.645]
["N",{"$f":"PopulationCharacteristics!D36/1.645","v":94.832826747720361},{"$f":"PopulationCharacteristics!J36/1.645","v":72.340425531914889},{"$f":"SQRT((B20^2)+(C20^2))","v":119.27448258157177},{"$f":"PopulationCharacteristics!C36-PopulationCharacteristics!I36","v":-175},{"$f":"ABS((E20/D20))","v":1.4672040172575687},1.645,"Ethnicity -White",null,"N",{"$f":"PopulationCharacteristics!G36/1.645","v":99.696048632218847},{"$f":"PopulationCharacteristics!J36/1.645","v":72.340425531914889},{"$f":"SQRT((K20^2)+(L20^2))","v":123.17645586318949},{"$f":"PopulationCharacteristics!F36-PopulationCharacteristics!I36","v":-118},{"$f":"ABS((N20/M20))","v":0.95797528166471269},1.645]
["N",{"$f":"PopulationCharacteristics!D37/1.645","v":1.21580547112462},{"$f":"PopulationCharacteristics!J37/1.645","v":10.334346504559271},10.405618704330511,{"$f":"PopulationCharacteristics!C37-PopulationCharacteristics!I37","v":1},9.6101926124184195E-2,1.645,"Ethnicity -Black",null,"N",{"$f":"PopulationCharacteristics!G37/1.645","v":51.671732522796354},{"$f":"PopulationCharacteristics!J37/1.645","v":10.334346504559271},52.695034486977107,{"$f":"PopulationCharacteristics!F37-PopulationCharacteristics!I37","v":0},{"$f":"ABS((N21/M21))","v":0},1.645]
["N",{"$f":"PopulationCharacteristics!D38/1.645","v":9.7264437689969601},{"$f":"PopulationCharacteristics!J38/1.645","v":23.100303951367781},25.064471888253255,{"$f":"PopulationCharacteristics!C38-PopulationCharacteristics!I38","v":-27},1.077221978598873,1.645,"Ethnicity -American Indian",null,"N",{"$f":"PopulationCharacteristics!G38/1.645","v":51.671732522796354},{"$f":"PopulationCharacteristics!J38/1.645","v":23.100303951367781},56.600282548349426,{"$f":"PopulationCharacteristics!F38-PopulationCharacteristics!I38","v":-27},0.47702942077958538,1.645]
["N",{"$f":"PopulationCharacteristics!D39/1.645","v":60.363241761976461},{"$f":"PopulationCharacteristics!J39/1.645","v":18.884163607305855},63.248182512719794,{"$f":"PopulationCharacteristics!C39-PopulationCharacteristics!I39","v":76},1.2016155560630648,1.645,"Ethnicity -Asian &Pacific Is",null,"N",{"$f":"PopulationCharacteristics!G39/1.645","v":84.027024403964802},{"$f":"PopulationCharacteristics!J39/1.645","v":18.884163607305855},86.122891645206565,{"$f":"PopulationCharacteristics!F39-PopulationCharacteristics!I39","v":91},1.0566296400599884,1.645]
["N",{"$f":"PopulationCharacteristics!D40/1.645","v":74.19651493004217},{"$f":"PopulationCharacteristics!J40/1.645","v":33.257335845811383},81.309121353788228,{"$f":"PopulationCharacteristics!C40-PopulationCharacteristics!I40","v":90},1.1068868842942781,1.645,"Ethnicity -Other*",null,"N",{"$f":"PopulationCharacteristics!G40/1.645","v":68.509856164777347},{"$f":"PopulationCharacteristics!J40/1.645","v":33.257335845811383},76.155438277772205,{"$f":"PopulationCharacteristics!F40-PopulationCharacteristics!I40","v":30},0.39393115814758856,1.645]
["Y",{"$f":"PopulationCharacteristics!D42/1.645","v":47.416413373860181},{"$f":"PopulationCharacteristics!J42/1.645","v":59.574468085106382},76.140879328151613,{"$f":"PopulationCharacteristics!C42-PopulationCharacteristics!I42","v":-163},2.1407685521663513,1.645,"Ethnicity -Hispanic",null,"Y",{"$f":"PopulationCharacteristics!G42/1.645","v":62.006079027355625},{"$f":"PopulationCharacteristics!J42/1.645","v":59.574468085106382},85.987621690392331,{"$f":"PopulationCharacteristics!F42-PopulationCharacteristics!I41","v":-6400},74.429317548098808,1.645]
["N",{"$f":"PlaceOfBirthAndPriorRes!E8/1.645","v":58.358662613981764},{"$f":"PlaceOfBirthAndPriorRes!M8/1.645","v":95.440729483282681},111.86896954202133,{"$f":"PlaceOfBirthAndPriorRes!D8-PlaceOfBirthAndPriorRes!L8","v":-137},1.2246470183900164,1.645,"Place of Birth - United States Native",null,"Y",{"$f":"PlaceOfBirthAndPriorRes!I8/1.645","v":86.930091185410333},{"$f":"PlaceOfBirthAndPriorRes!M8/1.645","v":95.440729483282681},129.09598598641594,{"$f":"PlaceOfBirthAndPriorRes!H8-PlaceOfBirthAndPriorRes!L8","v":-288},2.2308981785870916,1.645]
["N",{"$f":"PlaceOfBirthAndPriorRes!E9/1.645","v":216.41337386018236},{"$f":"PlaceOfBirthAndPriorRes!M9/1.645","v":246.80851063829786},328.25171638399985,{"$f":"PlaceOfBirthAndPriorRes!D9-PlaceOfBirthAndPriorRes!L9","v":430},1.3099703018672768,1.645,"Place of Birth - New Hampshire Native",null,"N",{"$f":"PlaceOfBirthAndPriorRes!I9/1.645","v":245.59270516717325},{"$f":"PlaceOfBirthAndPriorRes!M9/1.645","v":246.80851063829786},{"$f":"SQRT((K27^2)+(L27^2))","v":348.18130012225652},{"$f":"PlaceOfBirthAndPriorRes!H9-PlaceOfBirthAndPriorRes!L9","v":142},0.40783350498760185,1.645]
["N",{"$f":"PlaceOfBirthAndPriorRes!E10/1.645","v":211.55015197568389},{"$f":"PlaceOfBirthAndPriorRes!M10/1.645","v":258.96656534954406},334.39071274464936,{"$f":"PlaceOfBirthAndPriorRes!D10-PlaceOfBirthAndPriorRes!L10","v":-493},1.4743232428720872,1.645,"Place of Birth - Born in Different State",null,"N",{"$f":"PlaceOfBirthAndPriorRes!I10/1.645","v":221.27659574468086},{"$f":"PlaceOfBirthAndPriorRes!M10/1.645","v":258.96656534954406},340.62738262402598,{"$f":"PlaceOfBirthAndPriorRes!H10-PlaceOfBirthAndPriorRes!L10","v":-460},1.350449269393394,1.645]
["N",{"$f":"PlaceOfBirthAndPriorRes!E11/1.645","v":234.04255319148936},{"$f":"PlaceOfBirthAndPriorRes!M11/1.645","v":277.81155015197567},363.25634764204028,{"$f":"PlaceOfBirthAndPriorRes!D11-PlaceOfBirthAndPriorRes!L11","v":-499},1.3736855618328356,1.645,"Place of Birth - Northeast",null,"N",{"$f":"PlaceOfBirthAndPriorRes!I11/1.645","v":203.64741641337386},{"$f":"PlaceOfBirthAndPriorRes!M11/1.645","v":277.81155015197567},344.45831040880086,{"$f":"PlaceOfBirthAndPriorRes!H11-PlaceOfBirthAndPriorRes!L11","v":-401},1.1641466844684218,1.645]
["N",{"$f":"PlaceOfBirthAndPriorRes!E12/1.645","v":70.516717325227958},{"$f":"PlaceOfBirthAndPriorRes!M12/1.645","v":93.00911854103343},116.71890829726824,{"$f":"PlaceOfBirthAndPriorRes!D12-PlaceOfBirthAndPriorRes!L12","v":69},0.59116385688140394,1.645,"Place of Birth - Midwest",null,"N",{"$f":"PlaceOfBirthAndPriorRes!I12/1.645","v":55.319148936170215},{"$f":"PlaceOfBirthAndPriorRes!M12/1.645","v":93.00911854103343},108.21693199680996,{"$f":"PlaceOfBirthAndPriorRes!H12-PlaceOfBirthAndPriorRes!L12","v":-73},0.67457096272283812,1.645]
["N",{"$f":"PlaceOfBirthAndPriorRes!E13/1.645","v":61.398176291793312},{"$f":"PlaceOfBirthAndPriorRes!M13/1.645","v":77.203647416413375},98.64146808698662,{"$f":"PlaceOfBirthAndPriorRes!D13-PlaceOfBirthAndPriorRes!L13","v":-7},7.0964069531356477E-2,1.645,"Place of Birth - South",null,"N",{"$f":"PlaceOfBirthAndPriorRes!I13/1.645","v":69.908814589665653},{"$f":"PlaceOfBirthAndPriorRes!M13/1.645","v":77.203647416413375},104.15203085744474,{"$f":"PlaceOfBirthAndPriorRes!H13-PlaceOfBirthAndPriorRes!L13","v":3},2.8804047077163272E-2,1.645]
["N",{"$f":"PlaceOfBirthAndPriorRes!E14/1.645","v":62.61398176291793},{"$f":"PlaceOfBirthAndPriorRes!M14/1.645","v":64.437689969604861},89.848353356229822,{"$f":"PlaceOfBirthAndPriorRes!D14-PlaceOfBirthAndPriorRes!L14","v":-56},0.62327241299539216,1.645,"Place of Birth - West",null,"N",{"$f":"PlaceOfBirthAndPriorRes!I14/1.645","v":80.851063829787236},{"$f":"PlaceOfBirthAndPriorRes!M14/1.645","v":64.437689969604861},103.3881541136471,{"$f":"PlaceOfBirthAndPriorRes!H14-PlaceOfBirthAndPriorRes!L14","v":11},0.10639516774724982,1.645]
["N",{"$f":"PlaceOfBirthAndPriorRes!E15/1.645","v":24.316109422492399},{"$f":"PlaceOfBirthAndPriorRes!M15/1.645","v":48.024316109422493},53.82943539759971,{"$f":"PlaceOfBirthAndPriorRes!D15-PlaceOfBirthAndPriorRes!L15","v":-74},1.3747125425599338,1.645,"Place of Birth - Native Born Outside US",null,"N",{"$f":"PlaceOfBirthAndPriorRes!I15/1.645","v":71.124620060790278},{"$f":"PlaceOfBirthAndPriorRes!M15/1.645","v":48.024316109422493},85.819849199177156,{"$f":"PlaceOfBirthAndPriorRes!H15-PlaceOfBirthAndPriorRes!L15","v":30},0.34956947932143001,1.645]
["N",{"$f":"PlaceOfBirthAndPriorRes!E16/1.645","v":59.574468085106382},{"$f":"PlaceOfBirthAndPriorRes!M16/1.645","v":96.048632218844986},113.02414343287148,{"$f":"PlaceOfBirthAndPriorRes!D16-PlaceOfBirthAndPriorRes!L16","v":-61},0.53970769560602583,1.645,"Place of Birth - Foreign Born",null,"N",{"$f":"PlaceOfBirthAndPriorRes!I16/1.645","v":88.145896656534958},{"$f":"PlaceOfBirthAndPriorRes!M16/1.645","v":96.048632218844986},130.36502156826995,{"$f":"PlaceOfBirthAndPriorRes!H16-PlaceOfBirthAndPriorRes!L16","v":39},0.29916000113248448,1.645]
["N",{"$f":"PlaceOfBirthAndPriorRes!E17/1.645","v":59.574468085106382},{"$f":"PlaceOfBirthAndPriorRes!M17/1.645","v":36.474164133738604},69.853288375553674,{"$f":"PlaceOfBirthAndPriorRes!D17-PlaceOfBirthAndPriorRes!L17","v":72},1.030731718926458,1.645,"Place of Birth - Naturalized Citizen",null,"N",{"$f":"PlaceOfBirthAndPriorRes!I17/1.645","v":66.869300911854097},{"$f":"PlaceOfBirthAndPriorRes!M17/1.645","v":36.474164133738604},76.169994444630191,{"$f":"PlaceOfBirthAndPriorRes!H17-PlaceOfBirthAndPriorRes!L17","v":82},1.0765393984583755,1.645]
["Y",{"$f":"PlaceOfBirthAndPriorRes!E18/1.645","v":9.7264437689969601},{"$f":"PlaceOfBirthAndPriorRes!M18/1.645","v":75.98784194528875},76.607805293544629,{"$f":"PlaceOfBirthAndPriorRes!D18-PlaceOfBirthAndPriorRes!L18","v":-133},1.7361155236124128,1.645,"Place of Birth - Not a Citizen",null,"N",{"$f":"PlaceOfBirthAndPriorRes!I18/1.645","v":46.808510638297875},{"$f":"PlaceOfBirthAndPriorRes!M18/1.645","v":75.98784194528875},89.247906371398045,{"$f":"PlaceOfBirthAndPriorRes!H18-PlaceOfBirthAndPriorRes!L18","v":-43},0.48180401925686556,1.645]
["N",{"$f":"PlaceOfBirthAndPriorRes!E43/1.645","v":26.13981762917933},{"$f":"PlaceOfBirthAndPriorRes!I43/1.645","v":24.316109422492399},35.701025799455373,{"$f":"PlaceOfBirthAndPriorRes!D43-PlaceOfBirthAndPriorRes!H43","v":54},1.5125615802564358,1.645,"Place of Residence for Population Total:",null,"Y",{"$f":"PlaceOfBirthAndPriorRes!I7/1.645","v":11.550151975683891},{"$f":"PlaceOfBirthAndPriorRes!M7/1.645","v":10.94224924012158},{"$f":"SQRT((K37^2)+(L37^2))","v":15.910337177267355},{"$f":"PlaceOfBirthAndPriorRes!H7-PlaceOfBirthAndPriorRes!L7","v":-249},15.650202583749797,1.645]
["N",{"$f":"PlaceOfBirthAndPriorRes!E44/1.645","v":228.57142857142856},{"$f":"PlaceOfBirthAndPriorRes!I44/1.645","v":169.6048632218845},284.62380010761188,{"$f":"PlaceOfBirthAndPriorRes!D44-PlaceOfBirthAndPriorRes!H44","v":-208},0.73078920287536886,1.645,"Place of Residence for Population  Same house ",null,"Y",{"$f":"PlaceOfBirthAndPriorRes!I8/1.645","v":86.930091185410333},{"$f":"PlaceOfBirthAndPriorRes!M8/1.645","v":95.440729483282681},{"$f":"SQRT((K38^2)+(L38^2))","v":129.09598598641594},{"$f":"PlaceOfBirthAndPriorRes!H8-PlaceOfBirthAndPriorRes!L8","v":-288},2.2308981785870916,1.645]
["N",{"$f":"PlaceOfBirthAndPriorRes!E45/1.645","v":250.81126856666171},{"$f":"PlaceOfBirthAndPriorRes!I45/1.645","v":182.62191427612626},310.25321273742662,{"$f":"PlaceOfBirthAndPriorRes!D45-PlaceOfBirthAndPriorRes!H45","v":262},0.84447151308546076,1.645,"Place of Residence for Population  Different house",null,"N",{"$f":"PlaceOfBirthAndPriorRes!I9/1.645","v":245.59270516717325},{"$f":"PlaceOfBirthAndPriorRes!M9/1.645","v":246.80851063829786},348.18130012225652,{"$f":"PlaceOfBirthAndPriorRes!H9-PlaceOfBirthAndPriorRes!L9","v":142},0.40783350498760185,1.645]
["N",{"$f":"PlaceOfBirthAndPriorRes!E46/1.645","v":199.56994070451736},{"$f":"PlaceOfBirthAndPriorRes!I46/1.645","v":107.76865679776893},226.8088283572751,{"$f":"PlaceOfBirthAndPriorRes!D46-PlaceOfBirthAndPriorRes!H46","v":323},1.4241068230871599,1.645,"Place of Residence for Population in New Hampshire",null,"N",{"$f":"PlaceOfBirthAndPriorRes!I10/1.645","v":221.27659574468086},{"$f":"PlaceOfBirthAndPriorRes!M10/1.645","v":258.96656534954406},340.62738262402598,{"$f":"PlaceOfBirthAndPriorRes!H10-PlaceOfBirthAndPriorRes!L10","v":-460},1.350449269393394,1.645]
["N",{"$f":"PlaceOfBirthAndPriorRes!E47/1.645","v":145.89665653495442},{"$f":"PlaceOfBirthAndPriorRes!I47/1.645","v":43.768996960486319},152.32058128501714,{"$f":"PlaceOfBirthAndPriorRes!D47-PlaceOfBirthAndPriorRes!H47","v":239},1.5690591381921741,1.645,"Place of Residence for Population Same county",null,"N",{"$f":"PlaceOfBirthAndPriorRes!I11/1.645","v":203.64741641337386},{"$f":"PlaceOfBirthAndPriorRes!M11/1.645","v":277.81155015197567},344.45831040880086,{"$f":"PlaceOfBirthAndPriorRes!H11-PlaceOfBirthAndPriorRes!L11","v":-401},1.1641466844684218,1.645]
["N",{"$f":"PlaceOfBirthAndPriorRes!E48/1.645","v":136.17021276595744},{"$f":"PlaceOfBirthAndPriorRes!I48/1.645","v":98.480243161094222},168.04965081128364,{"$f":"PlaceOfBirthAndPriorRes!D48-PlaceOfBirthAndPriorRes!H48","v":84},0.4998522733875258,1.645,"Place of Residence for Population Different county",null,"N",{"$f":"PlaceOfBirthAndPriorRes!I12/1.645","v":55.319148936170215},{"$f":"PlaceOfBirthAndPriorRes!M12/1.645","v":93.00911854103343},108.21693199680996,{"$f":"PlaceOfBirthAndPriorRes!H12-PlaceOfBirthAndPriorRes!L12","v":-73},0.67457096272283812,1.645]
["N",{"$f":"PlaceOfBirthAndPriorRes!E49/1.645","v":142.85714285714286},{"$f":"PlaceOfBirthAndPriorRes!I49/1.645","v":147.11246200607903},205.06155110794458,{"$f":"PlaceOfBirthAndPriorRes!D49-PlaceOfBirthAndPriorRes!H49","v":-61},0.29747165994999009,1.645,"Place of Residence for Population in Different state",null,"N",{"$f":"PlaceOfBirthAndPriorRes!I13/1.645","v":69.908814589665653},{"$f":"PlaceOfBirthAndPriorRes!M13/1.645","v":77.203647416413375},104.15203085744474,{"$f":"PlaceOfBirthAndPriorRes!H13-PlaceOfBirthAndPriorRes!L13","v":3},2.8804047077163272E-2,1.645]
["N",{"$f":"PlaceOfBirthAndPriorRes!E50/1.645","v":51.671732522796354},{"$f":"PlaceOfBirthAndPriorRes!I50/1.645","v":9.7264437689969601},52.579194081869211,{"$f":"PlaceOfBirthAndPriorRes!D50-PlaceOfBirthAndPriorRes!H50","v":0},0,1.645,"Place of Residence for Population Elsewhere",null,"N",{"$f":"PlaceOfBirthAndPriorRes!I14/1.645","v":80.851063829787236},{"$f":"PlaceOfBirthAndPriorRes!M14/1.645","v":64.437689969604861},103.3881541136471,{"$f":"PlaceOfBirthAndPriorRes!H14-PlaceOfBirthAndPriorRes!L14","v":11},0.10639516774724982,1.645]
["Y",{"$f":"SchoolEnrolEduAttain!G23/1.645","v":69.908814589665653},{"$f":"SchoolEnrolEduAttain!M23/1.645","v":11.550151975683891},{"$f":"SQRT((B45^2)+(C45^2))","v":70.856533700101664},{"$f":"SchoolEnrolEduAttain!F23-SchoolEnrolEduAttain!L23","v":-361},5.0948018643971862,1.645,"Total Population 3 years & over",null,"Y",{"$f":"SchoolEnrolEduAttain!J23/1.645","v":40.121580547112458},{"$f":"SchoolEnrolEduAttain!M23/1.645","v":11.550151975683891},{"$f":"SQRT((K45^2)+(L45^2))","v":41.751014793173916},{"$f":"SchoolEnrolEduAttain!I23-SchoolEnrolEduAttain!L23","v":-388},9.293187289508376,1.645]
["N",{"$f":"SchoolEnrolEduAttain!G24/1.645","v":138.60182370820669},{"$f":"SchoolEnrolEduAttain!M24/1.645","v":147.72036474164133},{"$f":"SQRT((B46^2)+(C46^2))","v":202.56300672789285},{"$f":"SchoolEnrolEduAttain!F24-SchoolEnrolEduAttain!L24","v":300},1.4810206702894981,1.645,"Population 3 years & over enrolled in school",null,"N",{"$f":"SchoolEnrolEduAttain!J24/1.645","v":144.07294832826747},{"$f":"SchoolEnrolEduAttain!M24/1.645","v":147.72036474164133},{"$f":"SQRT((K46^2)+(L46^2))","v":206.34514920250291},{"$f":"SchoolEnrolEduAttain!I24-SchoolEnrolEduAttain!L24","v":-243},1.1776385388227604,1.645]
["N",{"$f":"SchoolEnrolEduAttain!G25/1.645","v":36.194469657396226},{"$f":"SchoolEnrolEduAttain!M25/1.645","v":30.546734410701792},47.361826579410227,{"$f":"SchoolEnrolEduAttain!F25-SchoolEnrolEduAttain!L25","v":4},8.4456202154562468E-2,1.645,"Preprimary (Nursery, Preschool, Kindergarten)",null,"N",{"$f":"SchoolEnrolEduAttain!J25/1.645","v":27.77789582685924},{"$f":"SchoolEnrolEduAttain!M25/1.645","v":30.546734410701792},41.288188138083719,{"$f":"SchoolEnrolEduAttain!I25-SchoolEnrolEduAttain!L25","v":-18},0.43596003631355817,1.645]
["N",{"$f":"SchoolEnrolEduAttain!G26/1.645","v":17.62917933130699},{"$f":"SchoolEnrolEduAttain!M26/1.645","v":20.668693009118542},27.16583947903262,{"$f":"SchoolEnrolEduAttain!F26-SchoolEnrolEduAttain!L26","v":3},0.11043281037994378,1.645,"Nursery school and Preschool",null,"N",{"$f":"SchoolEnrolEduAttain!J26/1.645","v":25.531914893617021},{"$f":"SchoolEnrolEduAttain!M26/1.645","v":20.668693009118542},32.84925492062321,{"$f":"SchoolEnrolEduAttain!I26-SchoolEnrolEduAttain!L26","v":13},0.39574718000189474,1.645]
["N",{"$f":"SchoolEnrolEduAttain!G27/1.645","v":31.610942249240122},{"$f":"SchoolEnrolEduAttain!M27/1.645","v":22.492401215805472},38.796388779595993,{"$f":"SchoolEnrolEduAttain!F27-SchoolEnrolEduAttain!L27","v":1},2.5775594880261779E-2,1.645,"Kindergarten",null,"N",{"$f":"SchoolEnrolEduAttain!J27/1.645","v":10.94224924012158},{"$f":"SchoolEnrolEduAttain!M27/1.645","v":22.492401215805472},25.012815333058949,{"$f":"SchoolEnrolEduAttain!I27-SchoolEnrolEduAttain!L27","v":-31},1.2393646851511315,1.645]
["N",{"$f":"SchoolEnrolEduAttain!G28/1.645","v":141.2585981661999},{"$f":"SchoolEnrolEduAttain!M28/1.645","v":157.14726643352739},211.30370300449061,{"$f":"SchoolEnrolEduAttain!F28-SchoolEnrolEduAttain!L28","v":249},1.1783986577590089,1.645,"Elementary through High school",null,"N",{"$f":"SchoolEnrolEduAttain!J28/1.645","v":120.020384875001},{"$f":"SchoolEnrolEduAttain!M28/1.645","v":157.14726643352739},197.73759413190353,{"$f":"SchoolEnrolEduAttain!I28-SchoolEnrolEduAttain!L28","v":-273},1.3806175866481498,1.645]
["Y",{"$f":"SchoolEnrolEduAttain!G29/1.645","v":115.40549519838819},{"$f":"SchoolEnrolEduAttain!M29/1.645","v":70.540295816995567},135.25665105988114,{"$f":"SchoolEnrolEduAttain!F29-SchoolEnrolEduAttain!L29","v":434},3.2087146665183846,1.645,"Elementary school (grades 1-8)",null,"N",{"$f":"SchoolEnrolEduAttain!J29/1.645","v":106.82496115009749},{"$f":"SchoolEnrolEduAttain!M29/1.645","v":70.540295816995567},128.01369324673468,{"$f":"SchoolEnrolEduAttain!I29-SchoolEnrolEduAttain!L29","v":-5},3.905832159972885E-2,1.645]
["N",{"$f":"SchoolEnrolEduAttain!G30/1.645","v":81.458966565349542},{"$f":"SchoolEnrolEduAttain!M30/1.645","v":140.42553191489361},162.34190231568542,{"$f":"SchoolEnrolEduAttain!F30-SchoolEnrolEduAttain!L30","v":-185},1.13957023640301,1.645,"High school (grades 9-12)",null,"Y",{"$f":"SchoolEnrolEduAttain!J30/1.645","v":54.711246200607903},{"$f":"SchoolEnrolEduAttain!M30/1.645","v":140.42553191489361},150.70716795960416,{"$f":"SchoolEnrolEduAttain!I30-SchoolEnrolEduAttain!L30","v":-268},1.7782830347647116,1.645]
["N",{"$f":"SchoolEnrolEduAttain!G31/1.645","v":60.259077332747786},{"$f":"SchoolEnrolEduAttain!M31/1.645","v":64.299904302382259},88.122835260161679,{"$f":"SchoolEnrolEduAttain!F31-SchoolEnrolEduAttain!L31","v":47},0.5333464346811323,1.645,"College or Graduate School",null,"N",{"$f":"SchoolEnrolEduAttain!J31/1.645","v":83.131671504567507},{"$f":"SchoolEnrolEduAttain!M31/1.645","v":64.299904302382259},105.0968719821805,{"$f":"SchoolEnrolEduAttain!I31-SchoolEnrolEduAttain!L31","v":48},0.45672149032312348,1.645]
["N",{"$f":"SchoolEnrolEduAttain!G52/1.645","v":147.72036474164133},{"$f":"SchoolEnrolEduAttain!M52/1.645","v":186.01823708206686},{"$f":"SQRT((B54^2)+(C54^2))","v":237.53755637061602},{"$f":"SchoolEnrolEduAttain!I52-SchoolEnrolEduAttain!L52","v":-131},0.55149173882890468,1.645,"Population 25 years and over",null,"N",{"$f":"SchoolEnrolEduAttain!J52/1.645","v":147.11246200607903},{"$f":"SchoolEnrolEduAttain!M52/1.645","v":186.01823708206686},{"$f":"SQRT((K54^2)+(L54^2))","v":237.15999031162502},{"$f":"SchoolEnrolEduAttain!I52-SchoolEnrolEduAttain!L52","v":-131},0.55236973077907348,1.645]
["Y",{"$f":"SchoolEnrolEduAttain!G53/1.645","v":31.104191624233511},{"$f":"SchoolEnrolEduAttain!M53/1.645","v":25.313875761285122},{"$f":"SQRT((B55^2)+(C55^2))","v":40.103155021205211},{"$f":"SchoolEnrolEduAttain!I53-SchoolEnrolEduAttain!L53","v":89},2.2192767614652706,1.645,"Less than 9th Grade",null,"N",{"$f":"SchoolEnrolEduAttain!J53/1.645","v":55.492563621526777},{"$f":"SchoolEnrolEduAttain!M53/1.645","v":25.313875761285122},{"$f":"SQRT((K55^2)+(L55^2))","v":60.993581001175656},{"$f":"SchoolEnrolEduAttain!I53-SchoolEnrolEduAttain!L53","v":89},1.4591699411497829,1.645]
["N",{"$f":"SchoolEnrolEduAttain!G54/1.645","v":49.940606440220961},{"$f":"SchoolEnrolEduAttain!M54/1.645","v":108.76193730479204},119.67966902489559,{"$f":"SchoolEnrolEduAttain!I54-SchoolEnrolEduAttain!L54","v":49},0.40942626595839843,1.645,"9th to 12th Grade, no Diploma",null,"N",{"$f":"SchoolEnrolEduAttain!J54/1.645","v":86.606407393716125},{"$f":"SchoolEnrolEduAttain!M54/1.645","v":108.76193730479204},139.0317546747427,{"$f":"SchoolEnrolEduAttain!I54-SchoolEnrolEduAttain!L54","v":49},0.35243747095498335,1.645]
["N",{"$f":"SchoolEnrolEduAttain!G55/1.645","v":127.72469029709272},{"$f":"SchoolEnrolEduAttain!M55/1.645","v":197.54968347268158},235.2434355123325,{"$f":"SchoolEnrolEduAttain!I55-SchoolEnrolEduAttain!L55","v":140},0.59512819006020934,1.645,"High School Graduate ",null,"N",{"$f":"SchoolEnrolEduAttain!J55/1.645","v":158.87209732356609},{"$f":"SchoolEnrolEduAttain!M55/1.645","v":197.54968347268158},253.507831729407,{"$f":"SchoolEnrolEduAttain!I55-SchoolEnrolEduAttain!L55","v":140},0.55225118310914867,1.645]
["N",{"$f":"SchoolEnrolEduAttain!G56/1.645","v":151.9160977413172},{"$f":"SchoolEnrolEduAttain!M56/1.645","v":162.57960605893811},222.5098403649352,{"$f":"SchoolEnrolEduAttain!I56-SchoolEnrolEduAttain!L56","v":-136},0.61120892351074607,1.645,"Some College, No Degree",null,"N",{"$f":"SchoolEnrolEduAttain!J56/1.645","v":175.8405292391358},{"$f":"SchoolEnrolEduAttain!M56/1.645","v":162.57960605893811},239.48281781660012,{"$f":"SchoolEnrolEduAttain!I56-SchoolEnrolEduAttain!L56","v":-136},0.56789042838201043,1.645]
["Y",{"$f":"SchoolEnrolEduAttain!G57/1.645","v":87.782502157737127},{"$f":"SchoolEnrolEduAttain!M57/1.645","v":158.9232623638479},181.55542130556597,{"$f":"SchoolEnrolEduAttain!I57-SchoolEnrolEduAttain!L57","v":-400},2.2031840036700525,1.645,"Associate Degree",null,"Y",{"$f":"SchoolEnrolEduAttain!J57/1.645","v":71.518406935901467},{"$f":"SchoolEnrolEduAttain!M57/1.645","v":158.9232623638479},174.27416862810631,{"$f":"SchoolEnrolEduAttain!I57-SchoolEnrolEduAttain!L57","v":-400},2.2952340163135885,1.645]
["N",{"$f":"SchoolEnrolEduAttain!G58/1.645","v":151.32382999812035},{"$f":"SchoolEnrolEduAttain!M58/1.645","v":169.18163577345899},226.9830993891029,{"$f":"SchoolEnrolEduAttain!I58-SchoolEnrolEduAttain!L58","v":20},8.8112287010916404E-2,1.645,"Bachelor's Degree",null,"N",{"$f":"SchoolEnrolEduAttain!J58/1.645","v":178.40158773044604},{"$f":"SchoolEnrolEduAttain!M58/1.645","v":169.18163577345899},245.86490678363876,{"$f":"SchoolEnrolEduAttain!I58-SchoolEnrolEduAttain!L58","v":20},8.1345484646981395E-2,1.645]
["N",{"$f":"SchoolEnrolEduAttain!G59/1.645","v":87.996939436183482},{"$f":"SchoolEnrolEduAttain!M59/1.645","v":155.00208538620294},178.23890659507279,{"$f":"SchoolEnrolEduAttain!I59-SchoolEnrolEduAttain!L59","v":107},0.6003178657456929,1.645,"Graduate or Professional Degree",null,"N",{"$f":"SchoolEnrolEduAttain!J59/1.645","v":134.73379377431283},{"$f":"SchoolEnrolEduAttain!M59/1.645","v":155.00208538620294},205.37488078850052,{"$f":"SchoolEnrolEduAttain!I59-SchoolEnrolEduAttain!L59","v":107},0.52099847648939557,1.645]
["N",{"$f":"HousingCharacteristics!D32/1.645","v":150.75987841945289},{"$f":"HousingCharacteristics!J32/1.645","v":174.46808510638297},230.58112165078975,{"$f":"HousingCharacteristics!C32-HousingCharacteristics!I32","v":-103},0.44669745407861849,1.645,"Total Housing Units",null,"Y",{"$f":"HousingCharacteristics!G32/1.645","v":150.75987841945289},{"$f":"HousingCharacteristics!J32/1.645","v":174.46808510638297},{"$f":"SQRT((K62^2)+(L62^2))","v":230.58112165078975},{"$f":"HousingCharacteristics!G32-HousingCharacteristics!I32","v":-4037},{"$f":"ABS((N62/M62))","v":17.507938078790126},1.645]
["N",{"$f":"HousingCharacteristics!D33/1.645","v":127.65957446808511},{"$f":"HousingCharacteristics!J33/1.645","v":158.05471124620061},203.17051631694108,{"$f":"HousingCharacteristics!C33-HousingCharacteristics!I33","v":-197},0.96962887908738082,1.645,"Occupied Units",null,"Y",{"$f":"HousingCharacteristics!G33/1.645","v":127.65957446808511},{"$f":"HousingCharacteristics!J33/1.645","v":158.05471124620061},{"$f":"SQRT((K63^2)+(L63^2))","v":203.17051631694108},{"$f":"HousingCharacteristics!G33-HousingCharacteristics!I33","v":-2577},{"$f":"ABS((N63/M63))","v":12.683927012224267},1.645]
["N",{"$f":"HousingCharacteristics!D34/1.645","v":132.52279635258358},{"$f":"HousingCharacteristics!J34/1.645","v":164.13373860182369},210.95538793906198,{"$f":"HousingCharacteristics!C34-HousingCharacteristics!I34","v":0},0,1.645,"Owner Occupied",null,"Y",{"$f":"HousingCharacteristics!G34/1.645","v":132.52279635258358},{"$f":"HousingCharacteristics!J34/1.645","v":164.13373860182369},210.95538793906198,{"$f":"HousingCharacteristics!G34-HousingCharacteristics!I34","v":-1947},9.2294395465377903,1.645]
["N",{"$f":"HousingCharacteristics!D35/1.645","v":125.83586626139818},{"$f":"HousingCharacteristics!J35/1.645","v":140.42553191489361},188.5576708896705,{"$f":"HousingCharacteristics!C35-HousingCharacteristics!I35","v":-197},1.0447731936361757,1.645,"Renter Occupied",null,"Y",{"$f":"HousingCharacteristics!G35/1.645","v":125.83586626139818},{"$f":"HousingCharacteristics!J35/1.645","v":140.42553191489361},188.5576708896705,{"$f":"HousingCharacteristics!G35-HousingCharacteristics!I35","v":-415},2.2009181490305223,1.645]
["N",{"$f":"HousingCharacteristics!D36/1.645","v":151.36778115501519},{"$f":"HousingCharacteristics!J36/1.645","v":165.34954407294833},224.17108845014886,{"$f":"HousingCharacteristics!C36-HousingCharacteristics!I36","v":94},0.41932258370108111,1.645,"Vacant Units",null,"Y",{"$f":"HousingCharacteristics!G36/1.645","v":151.36778115501519},{"$f":"HousingCharacteristics!J36/1.645","v":165.34954407294833},224.17108845014886,{"$f":"HousingCharacteristics!G36-HousingCharacteristics!I36","v":-1249},5.5716373089643652,1.645]
["N",{"$f":"HousingCharacteristics!D37/1.645","v":56.534954407294833},{"$f":"HousingCharacteristics!J37/1.645","v":52.27963525835866},77.002346279720101,{"$f":"HousingCharacteristics!C37-HousingCharacteristics!I37","v":47},0.6103710116736828,1.645,"Vacant For Sale",null,"N",{"$f":"HousingCharacteristics!G37/1.645","v":56.534954407294833},{"$f":"HousingCharacteristics!J37/1.645","v":52.27963525835866},77.002346279720101,{"$f":"HousingCharacteristics!G37-HousingCharacteristics!I37","v":39},0.50647807351646013,1.645]
[{"$f":"IF(F68>G68,\"Y\",\"N\")","v":"Y"},{"$f":"HousingCharacteristics!D38/1.645","v":43.768996960486319},{"$f":"HousingCharacteristics!J38/1.645","v":10.334346504559271},44.972478390715331,{"$f":"HousingCharacteristics!C38-HousingCharacteristics!I38","v":87},{"$f":"ABS((E68/D68))","v":1.934516466807872},1.645,"Vacant For Rent",null,"N",{"$f":"HousingCharacteristics!G38/1.645","v":43.768996960486319},{"$f":"HousingCharacteristics!J38/1.645","v":10.334346504559271},44.972478390715331,{"$f":"HousingCharacteristics!G38-HousingCharacteristics!I38","v":72},1.6009791449444459,1.645]
["N",{"$f":"HousingCharacteristics!D39/1.645","v":148.32826747720364},{"$f":"HousingCharacteristics!J39/1.645","v":152.58358662613981},212.79808702261769,{"$f":"HousingCharacteristics!C39-HousingCharacteristics!I39","v":-150},0.70489355472475146,1.645,"Vacant Seasonal",null,{"$f":"IF(O69>P69,\"Y\",\"N\")","v":"Y"},{"$f":"HousingCharacteristics!G39/1.645","v":148.32826747720364},{"$f":"HousingCharacteristics!J39/1.645","v":152.58358662613981},212.79808702261769,{"$f":"HousingCharacteristics!G39-HousingCharacteristics!I39","v":-1131},5.3148974026246263,1.645]
["N",{"$f":"HousingCharacteristics!E71/1.645","v":144.07294832826747},{"$f":"HousingCharacteristics!K71/1.645","v":174.46808510638297},226.26561197116922,{"$f":"HousingCharacteristics!D71-HousingCharacteristics!J71","v":-103},0.45521720734622401,1.645,"Total Housing Units",null,"Y",{"$f":"HousingCharacteristics!H71/1.645","v":150.75987841945289},{"$f":"HousingCharacteristics!K71/1.645","v":174.46808510638297},230.58112165078975,{"$f":"HousingCharacteristics!G71-HousingCharacteristics!J71","v":473},2.0513387939726848,1.645]
["N",{"$f":"HousingCharacteristics!E72/1.645","v":162.31003039513678},{"$f":"HousingCharacteristics!K72/1.645","v":227.35562310030394},279.34767821157504,{"$f":"HousingCharacteristics!D72-HousingCharacteristics!J72","v":-247},0.8842028026913642,1.645,"Single Family Units",null,"N",{"$f":"HousingCharacteristics!H72/1.645","v":195.13677811550153},{"$f":"HousingCharacteristics!K72/1.645","v":227.35562310030394},299.61465506317597,{"$f":"HousingCharacteristics!G72-HousingCharacteristics!J72","v":202},0.674199330995364,1.645]
["N",{"$f":"HousingCharacteristics!E73/1.645","v":114.8936170212766},{"$f":"HousingCharacteristics!K73/1.645","v":172.03647416413375},206.87457957675332,{"$f":"HousingCharacteristics!D73-HousingCharacteristics!J73","v":162},0.78308316242351939,1.645,"SF Owner Occ.",null,"N",{"$f":"HousingCharacteristics!H73/1.645","v":133.13069908814589},{"$f":"HousingCharacteristics!K73/1.645","v":172.03647416413375},217.53236881559747,{"$f":"HousingCharacteristics!G73-HousingCharacteristics!J73","v":315},1.4480603586265637,1.645]
["N",{"$f":"HousingCharacteristics!E74/1.645","v":73.556231003039514},{"$f":"HousingCharacteristics!K74/1.645","v":79.027355623100306},107.96222513524106,{"$f":"HousingCharacteristics!D74-HousingCharacteristics!J74","v":-31},0.28713746832438131,1.645,"SF Renter Occ.",null,"N",{"$f":"HousingCharacteristics!H74/1.645","v":89.969604863221889},{"$f":"HousingCharacteristics!K74/1.645","v":79.027355623100306},119.74912415556217,{"$f":"HousingCharacteristics!G74-HousingCharacteristics!J74","v":-46},0.38413642124215375,1.645]
["N",{"$f":"HousingCharacteristics!E75/1.645","v":182.24919956769108},{"$f":"HousingCharacteristics!K75/1.645","v":154.77184545983241},239.10059575439442,{"$f":"HousingCharacteristics!D75-HousingCharacteristics!J75","v":201},0.84065035206548966,1.645,"Multi-family Units",null,"N",{"$f":"HousingCharacteristics!H75/1.645","v":164.44415091611296},{"$f":"HousingCharacteristics!K75/1.645","v":154.77184545983241},225.82338877442163,{"$f":"HousingCharacteristics!G75-HousingCharacteristics!J75","v":282},1.2487634763186288,1.645]
["N",{"$f":"HousingCharacteristics!E76/1.645","v":45.140615722156774},{"$f":"HousingCharacteristics!K76/1.645","v":66.536891392156235},80.404185860606916,{"$f":"HousingCharacteristics!D76-HousingCharacteristics!J76","v":-88},1.0944703818351149,1.645,"MF Owner Occ.",null,"N",{"$f":"HousingCharacteristics!H76/1.645","v":67.54289088969027},{"$f":"HousingCharacteristics!K76/1.645","v":66.536891392156235},94.811391857034778,{"$f":"HousingCharacteristics!G76-HousingCharacteristics!J76","v":-48},0.50626827704817112,1.645]
["N",{"$f":"HousingCharacteristics!E77/1.645","v":84.666688756963353},{"$f":"HousingCharacteristics!K77/1.645","v":122.01745206365351},148.51500527951541,{"$f":"HousingCharacteristics!D77-HousingCharacteristics!J77","v":-145},0.97633232229362998,1.645,"MF Renter Occ.",null,"N",{"$f":"HousingCharacteristics!H77/1.645","v":132.22827762181797},{"$f":"HousingCharacteristics!K77/1.645","v":122.01745206365351},179.92380612620039,{"$f":"HousingCharacteristics!G77-HousingCharacteristics!J77","v":78},0.43351684070806062,1.645]
["N",{"$f":"HousingCharacteristics!E78/1.645","v":62.764301515575958},{"$f":"HousingCharacteristics!K78/1.645","v":87.542215365959592},107.71720854124555,{"$f":"HousingCharacteristics!D78-HousingCharacteristics!J78","v":-57},0.52916335998601716,1.645,"Mobile Home & Other",null,"N",{"$f":"HousingCharacteristics!H78/1.645","v":82.037594688570636},{"$f":"HousingCharacteristics!K78/1.645","v":87.542215365959592},119.97419061392432,{"$f":"HousingCharacteristics!G78-HousingCharacteristics!J78","v":-11},9.1686386411206425E-2,1.645]
["N",{"$f":"HousingCharacteristics!H88/1.645","v":62.006079027355625},{"$f":"HousingCharacteristics!L88/1.645","v":53.495440729483285},81.893320943702918,{"$f":"HousingCharacteristics!G88-HousingCharacteristics!K88","v":31},0.378541249063654,1.645,"No Bedrooms",null,"N",{"$f":"HousingCharacteristics!H88/1.645","v":62.006079027355625},{"$f":"HousingCharacteristics!L88/1.645","v":53.495440729483285},81.893320943702918,{"$f":"HousingCharacteristics!G88-HousingCharacteristics!K88","v":31},0.378541249063654,1.645]
["N",{"$f":"HousingCharacteristics!H89/1.645","v":94.224924012158056},{"$f":"HousingCharacteristics!L89/1.645","v":89.361702127659569},129.86088753835591,{"$f":"HousingCharacteristics!G89-HousingCharacteristics!K89","v":130},1.0010712421906327,1.645,"1 Bedroom",null,"N",{"$f":"HousingCharacteristics!H89/1.645","v":94.224924012158056},{"$f":"HousingCharacteristics!L89/1.645","v":89.361702127659569},129.86088753835591,{"$f":"HousingCharacteristics!G89-HousingCharacteristics!K89","v":130},1.0010712421906327,1.645]
["N",{"$f":"HousingCharacteristics!H90/1.645","v":194.52887537993919},{"$f":"HousingCharacteristics!L90/1.645","v":162.31003039513678},253.3496187552966,{"$f":"HousingCharacteristics!G90-HousingCharacteristics!K90","v":362},1.4288555150724178,1.645,"2 Bedrooms",null,"N",{"$f":"HousingCharacteristics!H90/1.645","v":194.52887537993919},{"$f":"HousingCharacteristics!L90/1.645","v":162.31003039513678},253.3496187552966,{"$f":"HousingCharacteristics!G90-HousingCharacteristics!K90","v":362},1.4288555150724178,1.645]
["N",{"$f":"HousingCharacteristics!H91/1.645","v":193.92097264437689},{"$f":"HousingCharacteristics!L91/1.645","v":175.68389057750758},261.66805888337007,{"$f":"HousingCharacteristics!G91-HousingCharacteristics!K91","v":-84},0.32101740028361747,1.645,"3 Bedrooms",null,"N",{"$f":"HousingCharacteristics!H91/1.645","v":193.92097264437689},{"$f":"HousingCharacteristics!L91/1.645","v":175.68389057750758},261.66805888337007,{"$f":"HousingCharacteristics!G91-HousingCharacteristics!K91","v":-84},0.32101740028361747,1.645]
["N",{"$f":"HousingCharacteristics!H92/1.645","v":150.15197568389058},{"$f":"HousingCharacteristics!L92/1.645","v":171.08871440054429},227.63339824596628,{"$f":"HousingCharacteristics!G92-HousingCharacteristics!K92","v":-183},0.80392421063916886,1.645,"4+ Bedrooms",null,"N",{"$f":"HousingCharacteristics!H92/1.645","v":150.15197568389058},{"$f":"HousingCharacteristics!L92/1.645","v":171.08871440054429},{"$f":"SQRT((K82^2)+(L82^2))","v":227.63339824596628},{"$f":"HousingCharacteristics!G92-HousingCharacteristics!K92","v":-183},0.80392421063916886,1.645]
["N",{"$f":"'HHIncome-10YearComparison'!$F$30/1.645","v":35.866261398176292},{"$f":"'HHIncome-10YearComparison'!$M$30/1.645","v":74.164133738601819},{"$f":"SQRT((B83^2)+(C83^2))","v":82.381475101381426},{"$f":"'HHIncome-10YearComparison'!$E$30-'HHIncome-10YearComparison'!$L$30","v":-63},0.76473503202595083,1.645,"Household Income Less than $10,000",null,"N",{"$f":"'HHIncome-10YearComparison'!$F$30/1.645","v":35.866261398176292},{"$f":"'HHIncome-10YearComparison'!$J$30/1.645","v":39.513677811550153},{"$f":"SQRT((K83^2)+(L83^2))","v":53.36402759235196},{"$f":"'HHIncome-10YearComparison'!$E$30-'HHIncome-10YearComparison'!$I$30","v":27},0.50595881192201453,1.645]
["N",{"$f":"'HHIncome-10YearComparison'!$F$31/1.645","v":65.045592705167167},{"$f":"'HHIncome-10YearComparison'!$M$31/1.645","v":83.890577507598778},{"$f":"SQRT((B84^2)+(C84^2))","v":106.15346496900105},{"$f":"'HHIncome-10YearComparison'!$E$31-'HHIncome-10YearComparison'!$L$31","v":-23},0.21666744469166846,1.645,"Household Income $10,000 to $14,999",null,"N",{"$f":"'HHIncome-10YearComparison'!$F$31/1.645","v":65.045592705167167},{"$f":"'HHIncome-10YearComparison'!$J$31/1.645","v":95.440729483282681},{"$f":"SQRT((K84^2)+(L84^2))","v":115.49832022444153},{"$f":"'HHIncome-10YearComparison'!$E$31-'HHIncome-10YearComparison'!$I$31","v":-71},0.61472755501577514,1.645]
["Y",{"$f":"'HHIncome-10YearComparison'!$F$32/1.645","v":18.844984802431611},{"$f":"'HHIncome-10YearComparison'!$M$32/1.645","v":57.532783319542091},60.540520386739814,{"$f":"'HHIncome-10YearComparison'!$E$32-'HHIncome-10YearComparison'!$L$32","v":-109},1.8004470279359255,1.645,"Household Income $15,000 to $24,999",null,"Y",{"$f":"'HHIncome-10YearComparison'!$F$32/1.645","v":18.844984802431611},{"$f":"'HHIncome-10YearComparison'!$J$32/1.645","v":100.084497887623},101.84321366503264,{"$f":"'HHIncome-10YearComparison'!$E$32-'HHIncome-10YearComparison'!$I$32","v":-244},2.3958395578769545,1.645]
["Y",{"$f":"'HHIncome-10YearComparison'!$F$33/1.645","v":47.416413373860181},{"$f":"'HHIncome-10YearComparison'!$M$33/1.645","v":97.547081728751351},108.460819704797,{"$f":"'HHIncome-10YearComparison'!$E$33-'HHIncome-10YearComparison'!$L$33","v":-228},2.1021415901203633,1.645,"Household Income $25,000 to $34,999",null,"Y",{"$f":"'HHIncome-10YearComparison'!$F$33/1.645","v":47.416413373860181},{"$f":"'HHIncome-10YearComparison'!$J$33/1.645","v":107.89374507688714},117.85319887027714,{"$f":"'HHIncome-10YearComparison'!$E$33-'HHIncome-10YearComparison'!$I$33","v":-342},2.901915291891608,1.645]
["Y",{"$f":"'HHIncome-10YearComparison'!$F$34/1.645","v":44.984802431610944},{"$f":"'HHIncome-10YearComparison'!$M$34/1.645","v":108.13152678107798},117.11558194287409,{"$f":"'HHIncome-10YearComparison'!$E$34-'HHIncome-10YearComparison'!$L$34","v":-255},2.177336232888142,1.645,"Household Income $35,000 to $49,999",null,"Y",{"$f":"'HHIncome-10YearComparison'!$F$34/1.645","v":44.984802431610944},{"$f":"'HHIncome-10YearComparison'!$J$34/1.645","v":125.26042014546323},133.09322035636919,{"$f":"'HHIncome-10YearComparison'!$E$34-'HHIncome-10YearComparison'!$I$34","v":-409},3.0730340651827746,1.645]
["Y",{"$f":"'HHIncome-10YearComparison'!$F$35/1.645","v":44.376899696048632},{"$f":"'HHIncome-10YearComparison'!$M$35/1.645","v":74.016994905081589},86.300780769423142,{"$f":"'HHIncome-10YearComparison'!$E$35-'HHIncome-10YearComparison'!$L$35","v":-164},1.9003304319826748,1.645,"Household Income $50,000 to $74,999",null,"Y",{"$f":"'HHIncome-10YearComparison'!$F$35/1.645","v":44.376899696048632},{"$f":"'HHIncome-10YearComparison'!$J$35/1.645","v":74.166625101410148},86.429147314816674,{"$f":"'HHIncome-10YearComparison'!$E$35-'HHIncome-10YearComparison'!$I$35","v":-231},2.6727094640721898,1.645]
["N",{"$f":"'HHIncome-10YearComparison'!$F$36/1.645","v":71.124620060790278},{"$f":"'HHIncome-10YearComparison'!$M$36/1.645","v":75.379939209726444},103.63805678443525,{"$f":"'HHIncome-10YearComparison'!$E$36-'HHIncome-10YearComparison'!$L$36","v":-145},1.3990999493708824,1.645,"Household Income $75,000 to $99,999",null,"N",{"$f":"'HHIncome-10YearComparison'!$F$36/1.645","v":71.124620060790278},{"$f":"'HHIncome-10YearComparison'!$J$36/1.645","v":67.477203647416417},98.040219251420879,{"$f":"'HHIncome-10YearComparison'!$E$36-'HHIncome-10YearComparison'!$I$36","v":-48},0.48959498832724557,1.645]
["Y",{"$f":"'HHIncome-10YearComparison'!$F$37/1.645","v":42.553191489361701},{"$f":"'HHIncome-10YearComparison'!$M$37/1.645","v":155.3914023674167},161.11257565951419,{"$f":"'HHIncome-10YearComparison'!$E$37-'HHIncome-10YearComparison'!$L$37","v":-553},3.432382591714489,1.645,"Household Income $100,000 to $149,999",null,"Y",{"$f":"'HHIncome-10YearComparison'!$F$37/1.645","v":42.553191489361701},{"$f":"'HHIncome-10YearComparison'!$J$37/1.645","v":115.21480972258995},122.82192998541788,{"$f":"'HHIncome-10YearComparison'!$E$37-'HHIncome-10YearComparison'!$I$37","v":-375},3.0532006787755424,1.645]
["N",{"$f":"'HHIncome-10YearComparison'!$F$38/1.645","v":69.908814589665653},{"$f":"'HHIncome-10YearComparison'!$M$38/1.645","v":47.416413373860181},84.47223576165743,{"$f":"'HHIncome-10YearComparison'!$E$38-'HHIncome-10YearComparison'!$L$38","v":42},0.49720478712680305,1.645,"Household Income $150,000 to $199,999",null,"N",{"$f":"'HHIncome-10YearComparison'!$F$38/1.645","v":69.908814589665653},{"$f":"'HHIncome-10YearComparison'!$J$38/1.645","v":65.653495440729486},95.904242976617752,{"$f":"'HHIncome-10YearComparison'!$E$38-'HHIncome-10YearComparison'!$I$38","v":-4},4.1708269372140637E-2,1.645]
["Y",{"$f":"'HHIncome-10YearComparison'!$F$39/1.645","v":37.689969604863222},{"$f":"'HHIncome-10YearComparison'!$M$39/1.645","v":82.066869300911847},90.307833800110956,{"$f":"'HHIncome-10YearComparison'!$E$39-'HHIncome-10YearComparison'!$L$39","v":-163},1.8049375468443551,1.645,"Household Income Greater than $200,000",null,"N",{"$f":"'HHIncome-10YearComparison'!$F$39/1.645","v":37.689969604863222},{"$f":"'HHIncome-10YearComparison'!$J$39/1.645","v":80.243161094224916},88.653813855971492,{"$f":"'HHIncome-10YearComparison'!$E$39-'HHIncome-10YearComparison'!$I$39","v":-112},1.2633410242446774,1.645]
["Y",{"$f":"'HHIncome-10YearComparison'!$F$41/1.645","v":3982.9787234042551},{"$f":"'HHIncome-10YearComparison'!$M$41/1.645","v":9157.4468085106382},9986.1379702962586,{"$f":"'HHIncome-10YearComparison'!$E$41-'HHIncome-10YearComparison'!$I$41","v":16626},1.6649079002767631,1.645,"Median Household Income",null,"Y",{"$f":"'HHIncome-10YearComparison'!$F$41/1.645","v":3982.9787234042551},{"$f":"'HHIncome-10YearComparison'!$J$41/1.645","v":8110.6382978723404},9035.8493297533751,{"$f":"'HHIncome-10YearComparison'!$E$41-'HHIncome-10YearComparison'!$I$41","v":16626},1.8400041206147237,1.645]
["N",{"$f":"PovertyCharacteristics!$E$54/1.645","v":82.066869300911847},{"$f":"PovertyCharacteristics!$M54/1.645","v":116.10942249240121},142.18427841492135,{"$f":"PovertyCharacteristics!$D54-PovertyCharacteristics!$L54","v":-106},0.74551139677110712,1.645,"Total Households Below Poverty Level",null,"N",{"$f":"PovertyCharacteristics!$I$54/1.645","v":86.930091185410333},{"$f":"PovertyCharacteristics!$M54/1.645","v":116.10942249240121},145.0456436609617,{"$f":"PovertyCharacteristics!$H54-PovertyCharacteristics!$L54","v":-174},1.199622378226801,1.645]
["N",{"$f":"PovertyCharacteristics!$E$55/1.645","v":49.240121580547111},{"$f":"PovertyCharacteristics!$M55/1.645","v":55.319148936170215},74.059420820644036,{"$f":"PovertyCharacteristics!$D55-PovertyCharacteristics!$L55","v":-12},0.16203205300594256,1.645,"Family Households Below Poverty Level",null,"N",{"$f":"PovertyCharacteristics!$I$55/1.645","v":40.729483282674771},{"$f":"PovertyCharacteristics!$M55/1.645","v":55.319148936170215},68.695698900992809,{"$f":"PovertyCharacteristics!$H55-PovertyCharacteristics!$L55","v":-34},0.49493637220289816,1.645]
["N",{"$f":"PovertyCharacteristics!$E$56/1.645","v":21.276595744680851},{"$f":"PovertyCharacteristics!$M56/1.645","v":43.768996960486319},48.666401360791326,{"$f":"PovertyCharacteristics!$D56-PovertyCharacteristics!$L56","v":-32},0.65753783113664099,1.645,"Married Couple Fam HH Below Poverty Level",null,"N",{"$f":"PovertyCharacteristics!$I$56/1.645","v":40.729483282674771},{"$f":"PovertyCharacteristics!$M56/1.645","v":43.768996960486319},59.788091652106978,{"$f":"PovertyCharacteristics!$H56-PovertyCharacteristics!$L56","v":1},1.6725738727684566E-2,1.645]
["N",{"$f":"PovertyCharacteristics!$E$57/1.645","v":15.805471124620061},{"$f":"PovertyCharacteristics!$M57/1.645","v":10.334346504559271},18.884163607305858,{"$f":"PovertyCharacteristics!$D57-PovertyCharacteristics!$L57","v":16},0.84727077845321996,1.645,"M C Fam HH w/Children Below Poverty Level",null,"N",{"$f":"PovertyCharacteristics!$I$57/1.645","v":30.3951367781155},{"$f":"PovertyCharacteristics!$M57/1.645","v":10.334346504559271},32.103941462640471,{"$f":"PovertyCharacteristics!$H57-PovertyCharacteristics!$L57","v":31},0.96561352244162502,1.645]
["N",{"$f":"PovertyCharacteristics!$E$58/1.645","v":24.316109422492399},{"$f":"PovertyCharacteristics!$M58/1.645","v":7.9027355623100304},25.568073975456642,{"$f":"PovertyCharacteristics!$D58-PovertyCharacteristics!$L58","v":13},0.50844658899528317,1.645,"Male Head of Family HH  Below Poverty Level",null,"N",{"$f":"PovertyCharacteristics!$I$58/1.645","v":9.7264437689969601},{"$f":"PovertyCharacteristics!$M58/1.645","v":7.9027355623100304},12.532235944126628,{"$f":"PovertyCharacteristics!$H58-PovertyCharacteristics!$L58","v":-8},0.63835376509562836,1.645]
["N",{"$f":"PovertyCharacteristics!$E$59/1.645","v":24.316109422492399},{"$f":"PovertyCharacteristics!$M59/1.645","v":7.9027355623100304},25.568073975456642,{"$f":"PovertyCharacteristics!$D59-PovertyCharacteristics!$L59","v":13},0.50844658899528317,1.645,"Male Head of HH w/Children Below Poverty Level",null,"N",{"$f":"PovertyCharacteristics!$I$59/1.645","v":9.7264437689969601},{"$f":"PovertyCharacteristics!$M59/1.645","v":7.9027355623100304},12.532235944126628,{"$f":"PovertyCharacteristics!$H59-PovertyCharacteristics!$L59","v":-8},0.63835376509562836,1.645]
["N",{"$f":"PovertyCharacteristics!$E$60/1.645","v":34.650455927051674},{"$f":"PovertyCharacteristics!$M60/1.645","v":23.70820668693009},41.984915865852905,{"$f":"PovertyCharacteristics!$D60-PovertyCharacteristics!$L60","v":7},0.16672654584722479,1.645,"Female Head of Family HH  Below Poverty Level",null,"N",{"$f":"PovertyCharacteristics!$I$60/1.645","v":9.7264437689969601},{"$f":"PovertyCharacteristics!$M60/1.645","v":23.70820668693009},25.62582238098236,{"$f":"PovertyCharacteristics!$H60-PovertyCharacteristics!$L60","v":-27},1.0536247226952395,1.645]
["N",{"$f":"PovertyCharacteristics!$E$61/1.645","v":34.650455927051674},{"$f":"PovertyCharacteristics!$M61/1.645","v":23.70820668693009},41.984915865852905,{"$f":"PovertyCharacteristics!$D61-PovertyCharacteristics!$L61","v":7},0.16672654584722479,1.645,"Female Head of HH w/Children Below Poverty Level",null,"N",{"$f":"PovertyCharacteristics!$I$61/1.645","v":9.7264437689969601},{"$f":"PovertyCharacteristics!$M61/1.645","v":23.70820668693009},25.62582238098236,{"$f":"PovertyCharacteristics!$H61-PovertyCharacteristics!$L61","v":-27},1.0536247226952395,1.645]
["N",{"$f":"PovertyCharacteristics!$E$62/1.645","v":66.261398176291792},{"$f":"PovertyCharacteristics!$M62/1.645","v":103.34346504559271},122.76173938123689,{"$f":"PovertyCharacteristics!$D62-PovertyCharacteristics!$L62","v":-94},0.76571088413860577,1.645,"Non-Family HH  Below Poverty Level",null,"N",{"$f":"PovertyCharacteristics!$I$62/1.645","v":79.635258358662611},{"$f":"PovertyCharacteristics!$M62/1.645","v":103.34346504559271},130.46703086021611,{"$f":"PovertyCharacteristics!$H62-PovertyCharacteristics!$L62","v":-140},1.073068031646996,1.645]
["N",{"$f":"PovertyCharacteristics!$E$68/1.645","v":123.40425531914893},{"$f":"PovertyCharacteristics!$M68/1.645","v":167.17325227963525},207.78716637132396,{"$f":"PovertyCharacteristics!$D68-PovertyCharacteristics!$L68","v":-91},0.43794812542647299,1.645,"Total Households At or Above Poverty Level",null,"N",{"$f":"PovertyCharacteristics!$I$68/1.645","v":120.36474164133739},{"$f":"PovertyCharacteristics!$M68/1.645","v":167.17325227963525},205.99652256321338,{"$f":"PovertyCharacteristics!$H68-PovertyCharacteristics!$L68","v":322},1.5631331829943347,1.645]
["N",{"$f":"PovertyCharacteristics!$E$69/1.645","v":106.38297872340425},{"$f":"PovertyCharacteristics!$M69/1.645","v":125.83586626139818},164.77864970869487,{"$f":"PovertyCharacteristics!$D69-PovertyCharacteristics!$L69","v":82},0.49763728580713762,1.645,"Family Households At or Above Poverty Level",null,"Y",{"$f":"PovertyCharacteristics!$I$69/1.645","v":96.048632218844986},{"$f":"PovertyCharacteristics!$M69/1.645","v":125.83586626139818},158.30352171972498,{"$f":"PovertyCharacteristics!$H69-PovertyCharacteristics!$L69","v":336},2.1225048966054278,1.645]
["N",{"$f":"PovertyCharacteristics!$E$70/1.645","v":104.55927051671732},{"$f":"PovertyCharacteristics!$M70/1.645","v":121.580547112462},160.35732127705819,{"$f":"PovertyCharacteristics!$D70-PovertyCharacteristics!$L70","v":-168},1.0476603042634838,1.645,"Married Couple Fam HH At or Above Poverty Level",null,"Y",{"$f":"PovertyCharacteristics!$I$70/1.645","v":116.10942249240121},{"$f":"PovertyCharacteristics!$M70/1.645","v":121.580547112462},168.11670775887956,{"$f":"PovertyCharacteristics!$H70-PovertyCharacteristics!$L70","v":448},2.6648154485783855,1.645]
["Y",{"$f":"PovertyCharacteristics!$E$71/1.645","v":0},{"$f":"PovertyCharacteristics!$M71/1.645","v":64.437689969604861},64.437689969604861,{"$f":"PovertyCharacteristics!$D71-PovertyCharacteristics!$L71","v":-209},3.2434433962264153,1.645,"M C Fam HH w/Children At or Above Poverty Level",null,"Y",{"$f":"PovertyCharacteristics!$I$71/1.645","v":77.81155015197568},{"$f":"PovertyCharacteristics!$M71/1.645","v":64.437689969604861},101.0289722093239,{"$f":"PovertyCharacteristics!$H71-PovertyCharacteristics!$L71","v":196},1.9400375527319409,1.645]
["N",{"$f":"PovertyCharacteristics!$E$72/1.645","v":54.10334346504559},{"$f":"PovertyCharacteristics!$M72/1.645","v":10.334346504559271},55.081489556592309,{"$f":"PovertyCharacteristics!$D72-PovertyCharacteristics!$L72","v":72},1.3071541924447254,1.645,"Male Head of Family HH  At or Above Poverty Level",null,"Y",{"$f":"PovertyCharacteristics!$I$72/1.645","v":73.556231003039514},{"$f":"PovertyCharacteristics!$M72/1.645","v":10.334346504559271},74.278649940940682,{"$f":"PovertyCharacteristics!$H72-PovertyCharacteristics!$L72","v":137},1.8444061666297027,1.645]
["N",{"$f":"PovertyCharacteristics!$E$73/1.645","v":10.334346504559271},{"$f":"PovertyCharacteristics!$M73/1.645","v":10.334346504559271},14.614972985010709,{"$f":"PovertyCharacteristics!$D73-PovertyCharacteristics!$L73","v":12},0.82107575650720277,1.645,"Male Head of HH w/Children At or Above Poverty Level",null,"N",{"$f":"PovertyCharacteristics!$I$73/1.645","v":20.060790273556229},{"$f":"PovertyCharacteristics!$M73/1.645","v":10.334346504559271},22.566214216742349,{"$f":"PovertyCharacteristics!$H73-PovertyCharacteristics!$L73","v":18},0.79765262472096099,1.645]
["Y",{"$f":"PovertyCharacteristics!$E$74/1.645","v":57.750759878419451},{"$f":"PovertyCharacteristics!$M74/1.645","v":111.85410334346504},125.88284514303535,{"$f":"PovertyCharacteristics!$D74-PovertyCharacteristics!$L74","v":-222},1.7635445063840969,1.645,"Female Head of Family HH  At or Above Poverty Level",null,"Y",{"$f":"PovertyCharacteristics!$I$74/1.645","v":65.045592705167167},{"$f":"PovertyCharacteristics!$M74/1.645","v":111.85410334346504},129.39192233341714,{"$f":"PovertyCharacteristics!$H74-PovertyCharacteristics!$L74","v":-249},1.9243859702337269,1.645]
["N",{"$f":"PovertyCharacteristics!$E$75/1.645","v":51.671732522796354},{"$f":"PovertyCharacteristics!$M75/1.645","v":106.99088145896657},118.81505231776842,{"$f":"PovertyCharacteristics!$D75-PovertyCharacteristics!$L75","v":-156},1.3129649565173038,1.645,"Female Head of HH w/Children At or Above Poverty Level",null,"N",{"$f":"PovertyCharacteristics!$I$75/1.645","v":56.534954407294833},{"$f":"PovertyCharacteristics!$M75/1.645","v":106.99088145896657},121.0092962759537,{"$f":"PovertyCharacteristics!$H75-PovertyCharacteristics!$L75","v":-195},1.6114464425552513,1.645]
["N",{"$f":"PovertyCharacteristics!$E$76/1.645","v":108.20668693009118},{"$f":"PovertyCharacteristics!$M76/1.645","v":159.87841945288753},193.05386839724349,{"$f":"PovertyCharacteristics!$D76-PovertyCharacteristics!$L76","v":-173},0.8961229393446859,1.645,"Non-Family HH  At or Above Poverty Level",null,"N",{"$f":"PovertyCharacteristics!$I76/1.645","v":146.50455927051672},{"$f":"PovertyCharacteristics!$M76/1.645","v":159.87841945288753},216.85178093297225,{"$f":"PovertyCharacteristics!$H76-PovertyCharacteristics!$L76","v":-14},6.4560226066703724E-2,1.645]
["N",{"$f":"PovertyCharacteristics!I24/1.645","v":153.19148936170214},{"$f":"PovertyCharacteristics!M24/1.645","v":147.11246200607903},212.39046327541769,{"$f":"PovertyCharacteristics!H24-PovertyCharacteristics!L24","v":-248},1.1676607140237063,1.645,"Total Individuals Living in Poverty",null,{"$f":"IF(O112>P112,\"Y\",\"N\")","v":"N"},{"$f":"PovertyCharacteristics!$I24/1.645","v":153.19148936170214},{"$f":"PovertyCharacteristics!$M24/1.645","v":147.11246200607903},{"$f":"SQRT((K112^2)+(L112^2))","v":212.39046327541769},{"$f":"PovertyCharacteristics!$H24-PovertyCharacteristics!$L24","v":-248},{"$f":"ABS((N112/M112))","v":1.1676607140237063},1.645]
["N",{"$f":"PovertyCharacteristics!I25/1.645","v":44.205857660055543},{"$f":"PovertyCharacteristics!M25/1.645","v":52.283169457129532},68.466690148889285,{"$f":"PovertyCharacteristics!H25-PovertyCharacteristics!L25","v":15},0.21908463761546884,1.645,"Individuals Under 5 yrs. Living in Poverty",null,"N",{"$f":"PovertyCharacteristics!$I25/1.645","v":44.205857660055543},{"$f":"PovertyCharacteristics!$M25/1.645","v":52.283169457129532},68.466690148889285,{"$f":"PovertyCharacteristics!$H25-PovertyCharacteristics!$L25","v":15},0.21908463761546884,1.645]
["Y",{"$f":"PovertyCharacteristics!I26/1.645","v":29.280473139920474},{"$f":"PovertyCharacteristics!M26/1.645","v":39.227394054472164},48.950327390145638,{"$f":"PovertyCharacteristics!H26-PovertyCharacteristics!L26","v":-115},2.349320344344644,1.645,"Individuals 5 to 17 yrs. Living in Poverty",null,"Y",{"$f":"PovertyCharacteristics!$I26/1.645","v":29.280473139920474},{"$f":"PovertyCharacteristics!$M26/1.645","v":39.227394054472164},48.950327390145638,{"$f":"PovertyCharacteristics!$H26-PovertyCharacteristics!$L26","v":-115},2.349320344344644,1.645]
["N",{"$f":"PovertyCharacteristics!I27/1.645","v":119.63952101531939},{"$f":"PovertyCharacteristics!M27/1.645","v":99.764599458456203},155.77737413976797,{"$f":"PovertyCharacteristics!H27-PovertyCharacteristics!L27","v":37},0.23751844710646186,1.645,"Individuals 18 to 64 yrs. Living in Poverty",null,"N",{"$f":"PovertyCharacteristics!$I27/1.645","v":119.63952101531939},{"$f":"PovertyCharacteristics!$M27/1.645","v":99.764599458456203},155.77737413976797,{"$f":"PovertyCharacteristics!$H27-PovertyCharacteristics!$L27","v":37},0.23751844710646186,1.645]
["N",{"$f":"PovertyCharacteristics!I28/1.645","v":13.755268691774786},{"$f":"PovertyCharacteristics!M28/1.645","v":58.06982727824559},59.676731285386225,{"$f":"PovertyCharacteristics!H28-PovertyCharacteristics!L28","v":-70},1.1729864972872897,1.645,"Individuals 65 to 74 yrs. Living in Poverty",null,"N",{"$f":"PovertyCharacteristics!$I28/1.645","v":13.755268691774786},{"$f":"PovertyCharacteristics!$M28/1.645","v":58.06982727824559},59.676731285386225,{"$f":"PovertyCharacteristics!$H28-PovertyCharacteristics!$L28","v":-70},1.1729864972872897,1.645]
["Y",{"$f":"PovertyCharacteristics!I29/1.645","v":13.755268691774786},{"$f":"PovertyCharacteristics!M29/1.645","v":65.079671781573595},66.51744956009864,{"$f":"PovertyCharacteristics!H29-PovertyCharacteristics!L29","v":-115},1.7288696539108477,1.645,"Individuals 75 yrs. & Over Living in Poverty",null,"Y",{"$f":"PovertyCharacteristics!$I29/1.645","v":13.755268691774786},{"$f":"PovertyCharacteristics!$M29/1.645","v":65.079671781573595},66.51744956009864,{"$f":"PovertyCharacteristics!$H29-PovertyCharacteristics!$L29","v":-115},1.7288696539108477,1.645]
[null,null,null,null,null,null,null,"Under 5",null,"Y",{"$f":"DisabilityByAgePrior5YearEst!$E$31/1.645","v":49.595326575978447},{"$f":"DisabilityByAge!$E$31/1.645","v":23.108301287231868},54.714623333798393,{"$f":"DisabilityByAge!$D$31-DisabilityByAgePrior5YearEst!$D$31","v":-175},3.1984136842608719,1.645]
[null,null,null,null,null,null,null,"5 to 17",null,"N",{"$f":"DisabilityByAgePrior5YearEst!$F$31/1.645","v":362.91793313069911},{"$f":"DisabilityByAge!$F$31/1.645","v":496.65653495440728},{"$f":"SQRT((K119^2)+(L119^2))","v":615.12367854015906},{"$f":"DisabilityByAge!$D$31-DisabilityByAgePrior5YearEst!$D$31","v":-175},0.28449563251299054,1.645]
[null,null,null,null,null,null,null,"18 to 34",null,"N",{"$f":"DisabilityByAgePrior5YearEst!$I$31/1.645","v":131.71444156870479},{"$f":"DisabilityByAge!$I$31/1.645","v":170.35382778368114},215.33490371583477,{"$f":"DisabilityByAge!$D$31-DisabilityByAgePrior5YearEst!$D$31","v":-175},0.81268757168571959,1.645]
[null,null,null,null,null,null,null,"35 to 64",null,"N",{"$f":"DisabilityByAgePrior5YearEst!$K$31/1.645","v":119.54836590416744},{"$f":"DisabilityByAge!$K$31/1.645","v":218.42580591168269},249.00129413022088,{"$f":"DisabilityByAge!$D$31-DisabilityByAgePrior5YearEst!$D$31","v":-175},0.70280759227090517,1.645]
[null,null,null,null,null,null,null,"65 to 74",null,"N",{"$f":"DisabilityByAgePrior5YearEst!$M$31/1.645","v":103.45425850710882},{"$f":"DisabilityByAge!$M$31/1.645","v":145.29384076251819},178.36222628903153,{"$f":"DisabilityByAge!$D$31-DisabilityByAgePrior5YearEst!$D$31","v":-175},0.98114944874267762,1.645]
[null,null,null,null,null,null,null,"75 and Over",null,"N",{"$f":"DisabilityByAgePrior5YearEst!$O$31/1.645","v":139.94047728505174},{"$f":"DisabilityByAge!$O$31/1.645","v":130.84038449866799},191.57907870779459,{"$f":"DisabilityByAge!$D$31-DisabilityByAgePrior5YearEst!$D$31","v":-175},0.91346091222684189,1.645]
[null,null,null,null,null,null,null,"With a Disability -Under 5",null,"Y",{"$f":"DisabilityByAgePrior5YearEst!$E$33/1.645","v":13.755268691774786},{"$f":"DisabilityByAge!$E$33/1.645","v":14.614972985010708},20.069998807561312,{"$f":"DisabilityByAge!$D$31-DisabilityByAgePrior5YearEst!$D$31","v":-175},8.7194823317114132,1.645]
[null,null,null,null,null,null,null,"With a Disability -5 to 17",null,"Y",{"$f":"DisabilityByAgePrior5YearEst!$F$33/1.645","v":0},{"$f":"DisabilityByAge!$F$33/1.645","v":43.768996960486319},43.768996960486319,{"$f":"DisabilityByAge!$D$31-DisabilityByAgePrior5YearEst!$D$31","v":-175},3.9982638888888893,1.645]
[null,null,null,null,null,null,null,"With a Disability -18 to 34",null,"Y",{"$f":"DisabilityByAgePrior5YearEst!$I$33/1.645","v":25.064471888253255},{"$f":"DisabilityByAge!$I$33/1.645","v":34.415027002354194},42.574896765697574,{"$f":"DisabilityByAge!$D$31-DisabilityByAgePrior5YearEst!$D$31","v":-175},4.1104033901262866,1.645]
[null,null,null,null,null,null,null,"With a Disability -35 to 64",null,"N",{"$f":"DisabilityByAgePrior5YearEst!$K$33/1.645","v":92.642861119320187},{"$f":"DisabilityByAge!$K$33/1.645","v":106.15346496900106},140.89449187707297,{"$f":"DisabilityByAge!$D$31-DisabilityByAgePrior5YearEst!$D$31","v":-175},{"$f":"ABS((N127/M127))","v":1.2420641692131107},1.645]
[null,null,null,null,null,null,null,"With a Disability -65 to 74",null,"Y",{"$f":"DisabilityByAgePrior5YearEst!$M$33/1.645","v":59.363188404783962},{"$f":"DisabilityByAge!$M$33/1.645","v":70.684215702121008},92.305181257640385,{"$f":"DisabilityByAge!$D$31-DisabilityByAgePrior5YearEst!$D$31","v":-175},1.8958849071705248,1.645]
[null,null,null,null,null,null,null,"With a Disability -75 and Over",null,"N",{"$f":"DisabilityByAgePrior5YearEst!$O$33/1.645","v":132.0842692830393},{"$f":"DisabilityByAge!$O$33/1.645","v":128.95850963452585},184.5983515614171,{"$f":"DisabilityByAge!$D$31-DisabilityByAgePrior5YearEst!$D$31","v":-175},0.94800413177999765,1.645]
[null,null,null,null,null,null,null,"Hearing Disability - Under 5",null,"Y",{"$f":"DisabilityByAgePrior5YearEst!$E$38/1.645","v":13.755268691774786},{"$f":"DisabilityByAge!$E$38/1.645","v":14.614972985010708},20.069998807561312,{"$f":"DisabilityByAge!$D$31-DisabilityByAgePrior5YearEst!$D$31","v":-175},8.7194823317114132,1.645]
[null,null,null,null,null,null,null,"Hearing Disability - 5 to 17",null,{"$error":"#DIV/0!"},{"$f":"DisabilityByAgePrior5YearEst!$F$38/1.645","v":0},{"$f":"DisabilityByAge!$F$38/1.645","v":0},0,{"$f":"DisabilityByAge!$D$31-DisabilityByAgePrior5YearEst!$D$31","v":-175},{"$error":"#DIV/0!"},1.645]
[null,null,null,null,null,null,null,"Hearing Disability - 18 to 34",null,"Y",{"$f":"DisabilityByAgePrior5YearEst!$I$38/1.645","v":13.755268691774786},{"$f":"DisabilityByAge!$I$38/1.645","v":14.614972985010708},20.069998807561312,{"$f":"DisabilityByAge!$D$31-DisabilityByAgePrior5YearEst!$D$31","v":-175},8.7194823317114132,1.645]
[null,null,null,null,null,null,null,"Hearing Disability - 35 to 64",null,"Y",{"$f":"DisabilityByAgePrior5YearEst!$K$38/1.645","v":30.757715843583021},{"$f":"DisabilityByAge!$K$38/1.645","v":22.027563443153117},37.831873270520632,{"$f":"DisabilityByAge!$D$31-DisabilityByAgePrior5YearEst!$D$31","v":-175},4.6257291767881759,1.645]
[null,null,null,null,null,null,null,"Hearing Disability - 65 to 74",null,"Y",{"$f":"DisabilityByAgePrior5YearEst!$M$38/1.645","v":46.527399679398059},{"$f":"DisabilityByAge!$M$38/1.645","v":66.328289484493595},81.020003128025323,{"$f":"DisabilityByAge!$D$31-DisabilityByAgePrior5YearEst!$D$31","v":-175},2.1599604201874736,1.645]
[null,null,null,null,null,null,null,"Hearing Disability - 75 and Over",null,"N",{"$f":"DisabilityByAgePrior5YearEst!$O$38/1.645","v":95.935064250213557},{"$f":"DisabilityByAge!$O$38/1.645","v":94.508837876693107},134.6679508624664,{"$f":"DisabilityByAge!$D$31-DisabilityByAgePrior5YearEst!$D$31","v":-175},1.2994925583944164,1.645]
[null,null,null,null,null,null,null,"Visual Disability - Under 5",null,"Y",{"$f":"DisabilityByAgePrior5YearEst!$E$39/1.645","v":13.755268691774786},{"$f":"DisabilityByAge!$E$39/1.645","v":14.614972985010708},20.069998807561312,{"$f":"DisabilityByAge!$D$31-DisabilityByAgePrior5YearEst!$D$31","v":-175},8.7194823317114132,1.645]
[null,null,null,null,null,null,null,"Visual Disability - 5 to 17",null,{"$error":"#DIV/0!"},{"$f":"DisabilityByAgePrior5YearEst!$F$39/1.645","v":0},{"$f":"DisabilityByAge!$F$39/1.645","v":0},0,{"$f":"DisabilityByAge!$D$31-DisabilityByAgePrior5YearEst!$D$31","v":-175},{"$error":"#DIV/0!"},1.645]
[null,null,null,null,null,null,null,"Visual Disability - 18 to 34",null,"Y",{"$f":"DisabilityByAgePrior5YearEst!$I$39/1.645","v":13.755268691774786},{"$f":"DisabilityByAge!$I$39/1.645","v":14.614972985010708},20.069998807561312,{"$f":"DisabilityByAge!$D$31-DisabilityByAgePrior5YearEst!$D$31","v":-175},8.7194823317114132,1.645]
[null,null,null,null,null,null,null,"Visual Disability - 35 to 64",null,"Y",{"$f":"DisabilityByAgePrior5YearEst!$K$39/1.645","v":64.060950642458252},{"$f":"DisabilityByAge!$K$39/1.645","v":57.471730333366523},{"$f":"SQRT((K140^2)+(L140^2))","v":27.604407391471678},{"$f":"DisabilityByAge!$D$31-DisabilityByAgePrior5YearEst!$D$31","v":-175},{"$f":"ABS((N140/M140))","v":6.3395673566992015},1.645]
[null,null,null,null,null,null,null,"Visual Disability - 65 to 74",null,"Y",{"$f":"DisabilityByAgePrior5YearEst!$M$39/1.645","v":20.134340622102364},{"$f":"DisabilityByAge!$M$39/1.645","v":18.884163607305855},27.604407391471678,{"$f":"DisabilityByAge!$D$31-DisabilityByAgePrior5YearEst!$D$31","v":-175},6.3395673566992015,1.645]
[null,null,null,null,null,null,null,"Visual Disability - 75 and Over",null,"N",{"$f":"DisabilityByAgePrior5YearEst!$O$39/1.645","v":71.438271345520192},{"$f":"DisabilityByAge!$O$39/1.645","v":83.749495923620785},110.07908375480214,{"$f":"DisabilityByAge!$D$31-DisabilityByAgePrior5YearEst!$D$31","v":-175},1.5897661393131437,1.645]
[null,null,null,null,null,null,null,"Cognative Disability - 5 to 17",null,"Y",{"$f":"DisabilityByAgePrior5YearEst!$F$40/1.645","v":0},{"$f":"DisabilityByAge!$F$40/1.645","v":43.768996960486319},43.768996960486319,{"$f":"DisabilityByAge!$D$31-DisabilityByAgePrior5YearEst!$D$31","v":-175},3.9982638888888893,1.645]
[null,null,null,null,null,null,null,"Cognative Disability - 18 to 34",null,"Y",{"$f":"DisabilityByAgePrior5YearEst!$I$40/1.645","v":25.064471888253255},{"$f":"DisabilityByAge!$I$40/1.645","v":34.415027002354194},42.574896765697574,{"$f":"DisabilityByAge!$D$31-DisabilityByAgePrior5YearEst!$D$31","v":-175},4.1104033901262866,1.645]
[null,null,null,null,null,null,null,"Cognative Disability - 35 to 64",null,{"$f":"IF(O144>P144,\"Y\",\"N\")","v":"Y"},{"$f":"DisabilityByAgePrior5YearEst!$K$40/1.645","v":68.436997719428547},{"$f":"DisabilityByAge!$K$40/1.645","v":102.63479527892821},{"$f":"SQRT((K145^2)+(L145^2))","v":26.720074134754903},{"$f":"DisabilityByAge!$D$31-DisabilityByAgePrior5YearEst!$D$31","v":-175},{"$f":"ABS((N145/M145))","v":6.5493830263134196},1.645]
[null,null,null,null,null,null,null,"Cognative Disability - 65 to 74",null,"Y",{"$f":"DisabilityByAgePrior5YearEst!$M$40/1.645","v":22.36883828933021},{"$f":"DisabilityByAge!$M$40/1.645","v":14.614972985010708},{"$f":"SQRT((K145^2)+(L145^2))","v":26.720074134754903},{"$f":"DisabilityByAge!$D$31-DisabilityByAgePrior5YearEst!$D$31","v":-175},{"$f":"ABS((N145/M145))","v":6.5493830263134196},1.645]
[null,null,null,null,null,null,null,"Cognative Disability - 75 and Over",null,"N",{"$f":"DisabilityByAgePrior5YearEst!$O$40/1.645","v":87.508438104022773},{"$f":"DisabilityByAge!$O$40/1.645","v":78.936117545010418},{"$f":"SQRT((K146^2)+(L146^2))","v":117.850063184053},{"$f":"DisabilityByAge!$D$31-DisabilityByAgePrior5YearEst!$D$31","v":-175},{"$f":"ABS((N146/M146))","v":1.4849376849861571},1.645]
[null,null,null,null,null,null,null,"Amblatory Disability - 5 to 17",null,{"$error":"#DIV/0!"},{"$f":"DisabilityByAgePrior5YearEst!$F$41/1.645","v":0},{"$f":"DisabilityByAge!$F$41/1.645","v":0},{"$f":"SQRT((K147^2)+(L147^2))","v":0},{"$f":"DisabilityByAge!$D$31-DisabilityByAgePrior5YearEst!$D$31","v":-175},{"$f":"ABS((N147/M147))","v":{"$error":"#DIV/0!"}},1.645]
[null,null,null,null,null,null,null,"Amblatory Disability - 18 to 34",null,"Y",{"$f":"DisabilityByAgePrior5YearEst!$I$41/1.645","v":13.755268691774786},{"$f":"DisabilityByAge!$I$41/1.645","v":25.064471888253255},{"$f":"SQRT((K148^2)+(L148^2))","v":28.590823139950995},{"$f":"DisabilityByAge!$D$31-DisabilityByAgePrior5YearEst!$D$31","v":-175},{"$f":"ABS((N148/M148))","v":6.1208451097536312},1.645]
[null,null,null,null,null,null,null,"Amblatory Disability - 35 to 64",null,"Y",{"$f":"DisabilityByAgePrior5YearEst!$K$41/1.645","v":58.383986400208968},{"$f":"DisabilityByAge!$K$41/1.645","v":34.527591054499517},{"$f":"SQRT((K150^2)+(L150^2))","v":79.984847189780069},{"$f":"DisabilityByAge!$D$31-DisabilityByAgePrior5YearEst!$D$31","v":-175},{"$f":"ABS((N150/M150))","v":2.1879144131484987},1.645]
[null,null,null,null,null,null,null,"Amblatory Disability - 65 to 74",null,"Y",{"$f":"DisabilityByAgePrior5YearEst!$M$41/1.645","v":57.645080078442298},{"$f":"DisabilityByAge!$M$41/1.645","v":55.449260795094851},{"$f":"SQRT((K150^2)+(L150^2))","v":79.984847189780069},{"$f":"DisabilityByAge!$D$31-DisabilityByAgePrior5YearEst!$D$31","v":-175},{"$f":"ABS((N150/M150))","v":2.1879144131484987},1.645]
[null,null,null,null,null,null,null,"Amblatory Disability - 75 and Over",null,"N",{"$f":"DisabilityByAgePrior5YearEst!$O$41/1.645","v":125.62277303916828},{"$f":"DisabilityByAge!$O$41/1.645","v":33.073484519721447},{"$f":"SQRT((K151^2)+(L151^2))","v":129.90356609549502},{"$f":"DisabilityByAge!$D$31-DisabilityByAgePrior5YearEst!$D$31","v":-175},{"$f":"ABS((N151/M151))","v":1.3471531633808542},1.645]
[null,null,null,null,null,null,null,"Self Care Disability - 5 to 17",null,"Y",{"$f":"DisabilityByAgePrior5YearEst!$F$42/1.645","v":0},{"$f":"DisabilityByAge!$F$42/1.645","v":7.9027355623100304},{"$f":"SQRT((K152^2)+(L152^2))","v":7.9027355623100304},{"$f":"DisabilityByAge!$D$31-DisabilityByAgePrior5YearEst!$D$31","v":-175},{"$f":"ABS((N152/M152))","v":22.14423076923077},1.645]
[null,null,null,null,null,null,null,"Self Care Disability - 18 to 34",null,"Y",{"$f":"DisabilityByAgePrior5YearEst!$I$42/1.645","v":13.755268691774786},{"$f":"DisabilityByAge!$I$42/1.645","v":31.529002990613836},{"$f":"SQRT((K153^2)+(L153^2))","v":34.398916354516977},{"$f":"DisabilityByAge!$D$31-DisabilityByAgePrior5YearEst!$D$31","v":-175},{"$f":"ABS((N153/M153))","v":5.0873695611931815},1.645]
[null,null,null,null,null,null,null,"Self Care Disability - 35 to 64",null,"Y",{"$f":"DisabilityByAgePrior5YearEst!$K$42/1.645","v":32.877367253471029},{"$f":"DisabilityByAge!$K$42/1.645","v":100.15647258723659},{"$f":"SQRT((K155^2)+(L155^2))","v":26.720074134754903},{"$f":"DisabilityByAge!$D$31-DisabilityByAgePrior5YearEst!$D$31","v":-175},{"$f":"ABS((N155/M155))","v":6.5493830263134196},1.645]
[null,null,null,null,null,null,null,"Self Care Disability - 65 to 74",null,"Y",{"$f":"DisabilityByAgePrior5YearEst!$M$42/1.645","v":22.36883828933021},{"$f":"DisabilityByAge!$M$42/1.645","v":14.614972985010708},{"$f":"SQRT((K155^2)+(L155^2))","v":26.720074134754903},{"$f":"DisabilityByAge!$D$31-DisabilityByAgePrior5YearEst!$D$31","v":-175},{"$f":"ABS((N155/M155))","v":6.5493830263134196},1.645]
[null,null,null,null,null,null,null,"Self Care Disability - 75 and Over",null,"Y",{"$f":"DisabilityByAgePrior5YearEst!$O$42/1.645","v":51.384864338004043},{"$f":"DisabilityByAge!$O$42/1.645","v":63.186803453793473},{"$f":"SQRT((K156^2)+(L156^2))","v":81.443086961039285},{"$f":"DisabilityByAge!$D$31-DisabilityByAgePrior5YearEst!$D$31","v":-175},{"$f":"ABS((N156/M156))","v":2.1487397706783442},1.645]
[null,null,null,null,null,null,null,"Independant Living Disability - 18 to 34",null,"Y",{"$f":"DisabilityByAgePrior5YearEst!$I$43/1.645","v":29.606797962032633},{"$f":"DisabilityByAge!$I$43/1.645","v":15.498539554993267},{"$f":"SQRT((K157^2)+(L157^2))","v":33.418067177835269},{"$f":"DisabilityByAge!$D$31-DisabilityByAgePrior5YearEst!$D$31","v":-175},{"$f":"ABS((N157/M157))","v":5.2366882581428822},1.645]
[null,null,null,null,null,null,null,"Independant Living Disability - 35 to 64",null,"Y",{"$f":"DisabilityByAgePrior5YearEst!$K$43/1.645","v":31.335012690236773},{"$f":"DisabilityByAge!$K$43/1.645","v":83.318165179985002},{"$f":"SQRT((K159^2)+(L159^2))","v":20.371545386159319},{"$f":"DisabilityByAge!$D$31-DisabilityByAgePrior5YearEst!$D$31","v":-175},{"$f":"ABS((N159/M159))","v":8.590413573576857},1.645]
[null,null,null,null,null,null,null,"Independant Living Disability - 65 to 74",null,"Y",{"$f":"DisabilityByAgePrior5YearEst!$M$43/1.645","v":17.032128542397448},{"$f":"DisabilityByAge!$M$43/1.645","v":11.176155812067012},{"$f":"SQRT((K159^2)+(L159^2))","v":20.371545386159319},{"$f":"DisabilityByAge!$D$31-DisabilityByAgePrior5YearEst!$D$31","v":-175},{"$f":"ABS((N159/M159))","v":8.590413573576857},1.645]
[null,null,null,null,null,null,null,"Independant Living Disability - 75 and Over",null,"Y",{"$f":"DisabilityByAgePrior5YearEst!$O$43/1.645","v":30.449798872627827},{"$f":"DisabilityByAge!$O$43/1.645","v":75.673514016269593},{"$f":"SQRT((K160^2)+(L160^2))","v":81.570037237664891},{"$f":"DisabilityByAge!$D$31-DisabilityByAgePrior5YearEst!$D$31","v":-175},2.1453956124859279,1.645]
[null,null,null,null,null,null,null,"No Disability - Under 5",null,"Y",{"$f":"DisabilityByAgePrior5YearEst!$E$47/1.645","v":49.595326575978447},{"$f":"DisabilityByAge!$E$47/1.645","v":23.108301287231868},{"$f":"SQRT((K161^2)+(L161^2))","v":54.714623333798393},{"$f":"DisabilityByAge!$D$47-DisabilityByAgePrior5YearEst!$D$47","v":-175},3.1984136842608719,1.645]
[null,null,null,null,null,null,null,"No Disability - 5 to 17",null,"N",{"$f":"DisabilityByAgePrior5YearEst!$F$47/1.645","v":362.91793313069911},{"$f":"DisabilityByAge!$F$47/1.645","v":452.88753799392094},{"$f":"SQRT((K162^2)+(L162^2))","v":580.35898223259528},{"$f":"DisabilityByAge!$D$47-DisabilityByAgePrior5YearEst!$D$47","v":-175},0.30153750584989447,1.645]
[null,null,null,null,null,null,null,"No Disability - 18 to 34",null,"N",{"$f":"DisabilityByAgePrior5YearEst!$I$47/1.645","v":134.44686729714121},{"$f":"DisabilityByAge!$I$47/1.645","v":168.82302829177894},215.81745760624159,{"$f":"DisabilityByAge!$D$47-DisabilityByAgePrior5YearEst!$D$47","v":-175},0.81087045478631792,1.645]
[null,null,null,null,null,null,null,"No Disability - 35 to 64",null,"N",{"$f":"DisabilityByAgePrior5YearEst!$K$47/1.645","v":133.7966163199516},{"$f":"DisabilityByAge!$K$47/1.645","v":215.8225944660042},253.93094892254794,{"$f":"DisabilityByAge!$D$47-DisabilityByAgePrior5YearEst!$D$47","v":-175},0.68916373030755362,1.645]
[null,null,null,null,null,null,null,"No Disability - 65 to 74",null,{"$f":"IF(O165>P165,\"Y\",\"N\")","v":"N"},{"$f":"DisabilityByAgePrior5YearEst!$M$47/1.645","v":98.89962860350272},{"$f":"DisabilityByAge!$M$47/1.645","v":136.91313835325479},168.8974363086908,{"$f":"DisabilityByAge!$D$47-DisabilityByAgePrior5YearEst!$D$47","v":-175},1.0361317721848404,1.645]
[null,null,null,null,null,null,null,"No Disability - 75 and Over",null,"N",{"$f":"DisabilityByAgePrior5YearEst!$O$47/1.645","v":94.957442868165998},{"$f":"DisabilityByAge!$O$47/1.645","v":99.655266326912468},137.6520543353744,{"$f":"DisabilityByAge!$D$47-DisabilityByAgePrior5YearEst!$D$47","v":-175},{"$f":"ABS((N166/M166))","v":1.2713213823429861},1.645]
[{"$f":"IF(F167>G167,\"Y\",\"N\")","v":"N"},null,null,null,null,null,null,"Renter Total:",null,"N",{"$f":"'RentalHousingCost-Prior5Yr'!$F$52/1.645","v":125.83586626139818},{"$f":"RentalHousingCost!$F$52/1.645","v":140.42553191489361},188.5576708896705,{"$f":"'RentalHousingCost-Prior5Yr'!$E$52-RentalHousingCost!$E$52","v":11},{"$f":"ABS((N167/M167))","v":5.8337589492375289E-2},1.645]
["N",null,null,null,null,null,null,"Renter Less than 20.0 percent",null,"Y",{"$f":"'RentalHousingCost-Prior5Yr'!$F$53/1.645","v":45.299972091334546},{"$f":"RentalHousingCost!$F$53/1.645","v":125.09805283883725},133.04739868011026,{"$f":"'RentalHousingCost-Prior5Yr'!$E$53-RentalHousingCost!$E$53","v":-293},2.2022226883553615,1.645]
["N",null,null,null,null,null,null,"Renter 20.0 to 24.9 percent",null,"N",{"$f":"'RentalHousingCost-Prior5Yr'!$F$54/1.645","v":45.59270516717325},{"$f":"RentalHousingCost!$F$54/1.645","v":19.45288753799392},49.56924044230076,{"$f":"'RentalHousingCost-Prior5Yr'!$E$54-RentalHousingCost!$E$54","v":39},0.78677824497626725,1.645]
["N",null,null,null,null,null,null,"Renter 25.0 to 29.9 percent",null,"N",{"$f":"'RentalHousingCost-Prior5Yr'!$F$55/1.645","v":62.006079027355625},{"$f":"RentalHousingCost!$F$55/1.645","v":16.413373860182372},64.141661015449145,{"$f":"'RentalHousingCost-Prior5Yr'!$E$55-RentalHousingCost!$E$55","v":91},1.4187346969091081,1.645]
["N",null,null,null,null,null,null,"Renter 30.0 to 34.9 percent",null,"N",{"$f":"'RentalHousingCost-Prior5Yr'!$F$56/1.645","v":89.305856875588759},{"$f":"RentalHousingCost!$F$56/1.645","v":127.66102184734568},155.79753711593651,{"$f":"'RentalHousingCost-Prior5Yr'!$E$56-RentalHousingCost!$E$56","v":-163},1.0462296324922247,1.645]
["N",null,null,null,null,null,null,"Renter 35.0 to 39.9 percent",null,"Y",{"$f":"'RentalHousingCost-Prior5Yr'!$F$57/1.645","v":121.43608438703342},{"$f":"RentalHousingCost!$F$57/1.645","v":71.70675957934651},141.02688382228726,{"$f":"'RentalHousingCost-Prior5Yr'!$E$57-RentalHousingCost!$E$57","v":233},1.6521672583619671,1.645]
["N",null,null,null,null,null,null,"Renter 40.0 to 49.9 percent",null,"N",{"$f":"'RentalHousingCost-Prior5Yr'!$F$58/1.645","v":27.355623100303951},{"$f":"RentalHousingCost!$F$58/1.645","v":23.100303951367781},35.804387410643699,{"$f":"'RentalHousingCost-Prior5Yr'!$E$58-RentalHousingCost!$E$58","v":-4},0.11171815213939132,1.645]
["N",null,null,null,null,null,null,"Renter 50.0 percent or more",null,"N",{"$f":"'RentalHousingCost-Prior5Yr'!$F$59/1.645","v":93.401639104937715},{"$f":"RentalHousingCost!$F$59/1.645","v":129.73419187613592},159.85877119896512,{"$f":"'RentalHousingCost-Prior5Yr'!$E$59-RentalHousingCost!$E$59","v":-167},1.0446721111858586,1.645]
["N",null,null,null,null,null,null,"Renter Not computed",null,"Y",{"$f":"'RentalHousingCost-Prior5Yr'!$F$60/1.645","v":118.3148024384473},{"$f":"RentalHousingCost!$F$60/1.645","v":67.883984316807911},{"$f":"SQRT((K175^2)+(L175^2))","v":136.40611350952506},{"$f":"'RentalHousingCost-Prior5Yr'!$E$60-RentalHousingCost!$E$60","v":237},1.7374587832051283,1.645]
["N",null,null,null,null,null,null,"Renter Less than $10,000:",null,"N",{"$f":"'RentalHousingCost-Prior5Yr'!$I$52/1.645","v":30.3951367781155},{"$f":"RentalHousingCost!$I$52/1.645","v":10.334346504559271},{"$f":"SQRT((K176^2)+(L176^2))","v":32.103941462640471},{"$f":"'RentalHousingCost-Prior5Yr'!$H$52-RentalHousingCost!$H$52","v":31},0.96561352244162502,1.645]
["N",null,null,null,null,null,null,"Renter Less than 20.0 percent",null,"N",{"$f":"'RentalHousingCost-Prior5Yr'!$I$53/1.645","v":9.7264437689969601},{"$f":"RentalHousingCost!$I$53/1.645","v":10.334346504559271},14.191632255232525,{"$f":"'RentalHousingCost-Prior5Yr'!$H$53-RentalHousingCost!$H$53","v":0},0,1.645]
["N",null,null,null,null,null,null,"Renter 20.0 to 24.9 percent",null,"N",{"$f":"'RentalHousingCost-Prior5Yr'!$I$54/1.645","v":9.7264437689969601},{"$f":"RentalHousingCost!$I$54/1.645","v":10.334346504559271},14.191632255232525,{"$f":"'RentalHousingCost-Prior5Yr'!$H$54-RentalHousingCost!$H$54","v":0},0,1.645]
["N",null,null,null,null,null,null,"Renter 25.0 to 29.9 percent",null,"N",{"$f":"'RentalHousingCost-Prior5Yr'!$I$55/1.645","v":9.7264437689969601},{"$f":"RentalHousingCost!$I$55/1.645","v":10.334346504559271},14.191632255232525,{"$f":"'RentalHousingCost-Prior5Yr'!$H$55-RentalHousingCost!$H$55","v":0},0,1.645]
["N",null,null,null,null,null,null,"Renter 30.0 to 34.9 percent",null,"N",{"$f":"'RentalHousingCost-Prior5Yr'!$I$56/1.645","v":16.846694784864457},{"$f":"RentalHousingCost!$I$56/1.645","v":17.899613208918488},24.58062810839602,{"$f":"'RentalHousingCost-Prior5Yr'!$H$56-RentalHousingCost!$H$56","v":0},0,1.645]
["N",null,null,null,null,null,null,"Renter 35.0 to 39.9 percent",null,"N",{"$f":"'RentalHousingCost-Prior5Yr'!$I$57/1.645","v":34.751625356733015},{"$f":"RentalHousingCost!$I$57/1.645","v":20.668693009118542},40.433529843929215,{"$f":"'RentalHousingCost-Prior5Yr'!$H$57-RentalHousingCost!$H$57","v":31},0.76669042054102066,1.645]
["N",null,null,null,null,null,null,"Renter 40.0 to 49.9 percent",null,"N",{"$f":"'RentalHousingCost-Prior5Yr'!$I$58/1.645","v":9.7264437689969601},{"$f":"RentalHousingCost!$I$58/1.645","v":10.334346504559271},14.191632255232525,{"$f":"'RentalHousingCost-Prior5Yr'!$H$58-RentalHousingCost!$H$58","v":0},0,1.645]
["N",null,null,null,null,null,null,"Renter 50.0 percent or more",null,"N",{"$f":"'RentalHousingCost-Prior5Yr'!$I$59/1.645","v":19.45288753799392},{"$f":"RentalHousingCost!$I$59/1.645","v":20.668693009118542},28.38326451046505,{"$f":"'RentalHousingCost-Prior5Yr'!$H$59-RentalHousingCost!$H$59","v":0},0,1.645]
["N",null,null,null,null,null,null,"Renter Not computed",null,"N",{"$f":"'RentalHousingCost-Prior5Yr'!$I$60/1.645","v":33.362730052309409},{"$f":"RentalHousingCost!$I$60/1.645","v":17.899613208918488},{"$f":"SQRT((K184^2)+(L184^2))","v":37.861166246857195},{"$f":"'RentalHousingCost-Prior5Yr'!$H$60-RentalHousingCost!$H$60","v":31},0.81878090595197317,1.645]
["N",null,null,null,null,null,null,"Renter $10,000 to $19,999:",null,"N",{"$f":"'RentalHousingCost-Prior5Yr'!$K$52/1.645","v":91.1854103343465},{"$f":"RentalHousingCost!$K$52/1.645","v":64.437689969604861},{"$f":"SQRT((K185^2)+(L185^2))","v":111.65569822656639},{"$f":"'RentalHousingCost-Prior5Yr'!$J$52-RentalHousingCost!$J$52","v":111},0.99412749875751194,1.645]
["N",null,null,null,null,null,null,"Renter Less than 20.0 percent",null,"N",{"$f":"'RentalHousingCost-Prior5Yr'!$K$53/1.645","v":9.7264437689969601},{"$f":"RentalHousingCost!$K$53/1.645","v":10.334346504559271},14.191632255232525,{"$f":"'RentalHousingCost-Prior5Yr'!$J$53-RentalHousingCost!$J$53","v":0},0,1.645]
["N",null,null,null,null,null,null,"Renter 20.0 to 24.9 percent",null,"N",{"$f":"'RentalHousingCost-Prior5Yr'!$K$54/1.645","v":9.7264437689969601},{"$f":"RentalHousingCost!$K$54/1.645","v":10.334346504559271},14.191632255232525,{"$f":"'RentalHousingCost-Prior5Yr'!$J$54-RentalHousingCost!$J$54","v":0},0,1.645]
["N",null,null,null,null,null,null,"Renter 25.0 to 29.9 percent",null,"N",{"$f":"'RentalHousingCost-Prior5Yr'!$K$55/1.645","v":18.237082066869302},{"$f":"RentalHousingCost!$K$55/1.645","v":11.550151975683891},21.586967665124259,{"$f":"'RentalHousingCost-Prior5Yr'!$J$55-RentalHousingCost!$J$55","v":7},0.32426972183356473,1.645]
["N",null,null,null,null,null,null,"Renter 30.0 to 34.9 percent",null,"N",{"$f":"'RentalHousingCost-Prior5Yr'!$K$56/1.645","v":22.842910915569526},{"$f":"RentalHousingCost!$K$56/1.645","v":18.628028505829256},29.475447835624699,{"$f":"'RentalHousingCost-Prior5Yr'!$J$56-RentalHousingCost!$J$56","v":7},0.23748578949628851,1.645]
["N",null,null,null,null,null,null,"Renter 35.0 to 39.9 percent",null,"N",{"$f":"'RentalHousingCost-Prior5Yr'!$K$57/1.645","v":92.002418886050606},{"$f":"RentalHousingCost!$K$57/1.645","v":66.29206507095725},113.39789668356443,{"$f":"'RentalHousingCost-Prior5Yr'!$J$57-RentalHousingCost!$J$57","v":104},0.91712459438476934,1.645]
["N",null,null,null,null,null,null,"Renter 40.0 to 49.9 percent",null,"N",{"$f":"'RentalHousingCost-Prior5Yr'!$K$58/1.645","v":9.7264437689969601},{"$f":"RentalHousingCost!$K$58/1.645","v":10.334346504559271},14.191632255232525,{"$f":"'RentalHousingCost-Prior5Yr'!$J$58-RentalHousingCost!$J$58","v":0},0,1.645]
["N",null,null,null,null,null,null,"Renter 50.0 percent or more",null,"N",{"$f":"'RentalHousingCost-Prior5Yr'!$K$59/1.645","v":24.827450281656095},{"$f":"RentalHousingCost!$K$59/1.645","v":21.302632787763198},32.71397944577194,{"$f":"'RentalHousingCost-Prior5Yr'!$J$59-RentalHousingCost!$J$59","v":7},0.21397580235090299,1.645]
["N",null,null,null,null,null,null,"Renter Not computed",null,"N",{"$f":"'RentalHousingCost-Prior5Yr'!$K$60/1.645","v":91.486837154275165},{"$f":"RentalHousingCost!$K$60/1.645","v":65.481594159700592},{"$f":"SQRT((K193^2)+(L193^2))","v":112.50635780340859},{"$f":"'RentalHousingCost-Prior5Yr'!$J$60-RentalHousingCost!$J$60","v":104},0.92439220352086737,1.645]
["N",null,null,null,null,null,null,"Renter $20,000 to $34,999:",null,"N",{"$f":"'RentalHousingCost-Prior5Yr'!$M$52/1.645","v":75.98784194528875},{"$f":"RentalHousingCost!$M$52/1.645","v":42.553191489361701},{"$f":"SQRT((K194^2)+(L194^2))","v":87.091481956804884},{"$f":"'RentalHousingCost-Prior5Yr'!$L$52-RentalHousingCost!$L$52","v":32},0.36742973343674606,1.645]
["N",null,null,null,null,null,null,"Renter Less than 20.0 percent",null,"N",{"$f":"'RentalHousingCost-Prior5Yr'!$M$53/1.645","v":9.7264437689969601},{"$f":"RentalHousingCost!$M$53/1.645","v":10.334346504559271},14.191632255232525,{"$f":"'RentalHousingCost-Prior5Yr'!$L$53-RentalHousingCost!$L$53","v":0},0,1.645]
["N",null,null,null,null,null,null,"Renter 20.0 to 24.9 percent",null,"N",{"$f":"'RentalHousingCost-Prior5Yr'!$M$54/1.645","v":9.7264437689969601},{"$f":"RentalHousingCost!$M$54/1.645","v":19.45288753799392},21.748989446806466,{"$f":"'RentalHousingCost-Prior5Yr'!$L$54-RentalHousingCost!$L$54","v":-20},0.9195829557467885,1.645]
["N",null,null,null,null,null,null,"Renter 25.0 to 29.9 percent",null,"N",{"$f":"'RentalHousingCost-Prior5Yr'!$M$55/1.645","v":55.927051671732521},{"$f":"RentalHousingCost!$M$55/1.645","v":16.413373860182372},58.285795440799788,{"$f":"'RentalHousingCost-Prior5Yr'!$L$55-RentalHousingCost!$L$55","v":65},1.1151945256716922,1.645]
["N",null,null,null,null,null,null,"Renter 30.0 to 34.9 percent",null,"N",{"$f":"'RentalHousingCost-Prior5Yr'!$M$56/1.645","v":57.59377158578485},{"$f":"RentalHousingCost!$M$56/1.645","v":27.470209185884507},63.809520592085718,{"$f":"'RentalHousingCost-Prior5Yr'!$L$56-RentalHousingCost!$L$56","v":45},0.70522391615619406,1.645]
["N",null,null,null,null,null,null,"Renter 35.0 to 39.9 percent",null,"N",{"$f":"'RentalHousingCost-Prior5Yr'!$M$57/1.645","v":44.076092540605984},{"$f":"RentalHousingCost!$M$57/1.645","v":30.775732665889699},53.75730326914077,{"$f":"'RentalHousingCost-Prior5Yr'!$L$57-RentalHousingCost!$L$57","v":3},5.580637081031075E-2,1.645]
["N",null,null,null,null,null,null,"Renter 40.0 to 49.9 percent",null,"N",{"$f":"'RentalHousingCost-Prior5Yr'!$M$58/1.645","v":9.7264437689969601},{"$f":"RentalHousingCost!$M$58/1.645","v":19.45288753799392},21.748989446806466,{"$f":"'RentalHousingCost-Prior5Yr'!$L$58-RentalHousingCost!$L$58","v":-21},0.96556210353412797,1.645]
["N",null,null,null,null,null,null,"Renter 50.0 percent or more",null,"N",{"$f":"'RentalHousingCost-Prior5Yr'!$M$59/1.645","v":58.409299207121279},{"$f":"RentalHousingCost!$M$59/1.645","v":33.660469787008218},67.414193313790463,{"$f":"'RentalHousingCost-Prior5Yr'!$L$59-RentalHousingCost!$L$59","v":24},0.35600811669269777,1.645]
["N",null,null,null,null,null,null,"Renter Not computed",null,"N",{"$f":"'RentalHousingCost-Prior5Yr'!$M$60/1.645","v":42.989512968357793},{"$f":"RentalHousingCost!$M$60/1.645","v":23.848079326362349},49.16125621679204,{"$f":"'RentalHousingCost-Prior5Yr'!$L$60-RentalHousingCost!$L$60","v":24},0.4881893150607145,1.645]
["N",null,null,null,null,null,null,"Renter $35,000 to $49,999:",null,"Y",{"$f":"'RentalHousingCost-Prior5Yr'!$O$52/1.645","v":75.379939209726444},{"$f":"RentalHousingCost!$O$52/1.645","v":24.316109422492399},79.204850941774254,{"$f":"'RentalHousingCost-Prior5Yr'!$N$52-RentalHousingCost!$N$52","v":165},2.0832057385133673,1.645]
["N",null,null,null,null,null,null,"Renter Less than 20.0 percent",null,"N",{"$f":"'RentalHousingCost-Prior5Yr'!$O$53/1.645","v":9.7264437689969601},{"$f":"RentalHousingCost!$O$53/1.645","v":10.334346504559271},14.191632255232525,{"$f":"'RentalHousingCost-Prior5Yr'!$N$53-RentalHousingCost!$N$53","v":0},0,1.645]
["N",null,null,null,null,null,null,"Renter 20.0 to 24.9 percent",null,"N",{"$f":"'RentalHousingCost-Prior5Yr'!$O$54/1.645","v":43.161094224924014},{"$f":"RentalHousingCost!$O$54/1.645","v":10.334346504559271},44.38106321810087,{"$f":"'RentalHousingCost-Prior5Yr'!$N$54-RentalHousingCost!$N$54","v":44},0.99141383305243902,1.645]
["N",null,null,null,null,null,null,"Renter 25.0 to 29.9 percent",null,"N",{"$f":"'RentalHousingCost-Prior5Yr'!$O$55/1.645","v":18.237082066869302},{"$f":"RentalHousingCost!$O$55/1.645","v":10.334346504559271},20.961628753272546,{"$f":"'RentalHousingCost-Prior5Yr'!$N$55-RentalHousingCost!$N$55","v":19},0.90641811395661254,1.645]
["N",null,null,null,null,null,null,"Renter 30.0 to 34.9 percent",null,"N",{"$f":"'RentalHousingCost-Prior5Yr'!$O$56/1.645","v":47.854727304603408},{"$f":"RentalHousingCost!$O$56/1.645","v":17.899613208918488},51.092769336050324,{"$f":"'RentalHousingCost-Prior5Yr'!$N$56-RentalHousingCost!$N$56","v":63},1.2330511894086764,1.645]
["N",null,null,null,null,null,null,"Renter 35.0 to 39.9 percent",null,{"$f":"IF(O208>P208,\"Y\",\"N\")","v":"N"},{"$f":"'RentalHousingCost-Prior5Yr'!$O$57/1.645","v":67.728658777345416},{"$f":"RentalHousingCost!$O$57/1.645","v":29.706484432512134},73.957058061534426,{"$f":"'RentalHousingCost-Prior5Yr'!$N$57-RentalHousingCost!$N$57","v":108},1.4603068703752502,1.645]
["N",null,null,null,null,null,null,"Renter 40.0 to 49.9 percent",null,"N",{"$f":"'RentalHousingCost-Prior5Yr'!$O$58/1.645","v":27.355623100303951},{"$f":"RentalHousingCost!$O$58/1.645","v":10.334346504559271},29.242585947247886,{"$f":"'RentalHousingCost-Prior5Yr'!$N$58-RentalHousingCost!$N$58","v":30},1.0259010627212808,1.645]
["N",null,null,null,null,null,null,"Renter 50.0 percent or more",null,"N",{"$f":"'RentalHousingCost-Prior5Yr'!$O$59/1.645","v":75.210350404907359},{"$f":"RentalHousingCost!$O$59/1.645","v":28.233959713477756},80.335255580169985,{"$f":"'RentalHousingCost-Prior5Yr'!$N$59-RentalHousingCost!$N$59","v":93},1.1576486478864976,1.645]
["N",null,null,null,null,null,null,"Renter Not computed",null,"N",{"$f":"'RentalHousingCost-Prior5Yr'!$O$60/1.645","v":61.958382036429938},{"$f":"RentalHousingCost!$O$60/1.645","v":27.850969456426277},67.930240719689735,{"$f":"'RentalHousingCost-Prior5Yr'!$N$60-RentalHousingCost!$N$60","v":78},1.1482367672133322,1.645]
["N",null,null,null,null,null,null,"Renter $50,000 to $74,999:",null,"N",{"$f":"'RentalHousingCost-Prior5Yr'!$Q$52/1.645","v":9.7264437689969601},{"$f":"RentalHousingCost!$Q$52/1.645","v":46.808510638297875},47.808371406764167,{"$f":"'RentalHousingCost-Prior5Yr'!$P$52-RentalHousingCost!$P$52","v":-59},1.2340934916610105,1.645]
["N",null,null,null,null,null,null,"Renter Less than 20.0 percent",null,"N",{"$f":"'RentalHousingCost-Prior5Yr'!$Q$53/1.645","v":9.7264437689969601},{"$f":"RentalHousingCost!$Q$53/1.645","v":44.984802431610944},46.024299649234528,{"$f":"'RentalHousingCost-Prior5Yr'!$P$53-RentalHousingCost!$P$53","v":-46},0.9994720256599291,1.645]
["N",null,null,null,null,null,null,"Renter 20.0 to 24.9 percent",null,"N",{"$f":"'RentalHousingCost-Prior5Yr'!$Q$54/1.645","v":9.7264437689969601},{"$f":"RentalHousingCost!$Q$54/1.645","v":10.334346504559271},14.191632255232525,{"$f":"'RentalHousingCost-Prior5Yr'!$P$54-RentalHousingCost!$P$54","v":0},0,1.645]
["N",null,null,null,null,null,null,"Renter 25.0 to 29.9 percent",null,"N",{"$f":"'RentalHousingCost-Prior5Yr'!$Q$55/1.645","v":9.7264437689969601},{"$f":"RentalHousingCost!$Q$55/1.645","v":10.334346504559271},14.191632255232525,{"$f":"'RentalHousingCost-Prior5Yr'!$P$55-RentalHousingCost!$P$55","v":0},0,1.645]
["N",null,null,null,null,null,null,"Renter 30.0 to 34.9 percent",null,"N",{"$f":"'RentalHousingCost-Prior5Yr'!$Q$56/1.645","v":16.846694784864457},{"$f":"RentalHousingCost!$Q$56/1.645","v":47.299364532345066},50.209969232594055,{"$f":"'RentalHousingCost-Prior5Yr'!$P$56-RentalHousingCost!$P$56","v":-46},0.91615272231911404,1.645]
["N",null,null,null,null,null,null,"Renter 35.0 to 39.9 percent",null,"N",{"$f":"'RentalHousingCost-Prior5Yr'!$Q$57/1.645","v":19.45288753799392},{"$f":"RentalHousingCost!$Q$57/1.645","v":21.985582152006231},29.356100833190606,{"$f":"'RentalHousingCost-Prior5Yr'!$P$57-RentalHousingCost!$P$57","v":-13},0.44283810284852049,1.645]
["N",null,null,null,null,null,null,"Renter 40.0 to 49.9 percent",null,"N",{"$f":"'RentalHousingCost-Prior5Yr'!$Q$58/1.645","v":9.7264437689969601},{"$f":"RentalHousingCost!$Q$58/1.645","v":12.76595744680851},16.049092744612871,{"$f":"'RentalHousingCost-Prior5Yr'!$P$58-RentalHousingCost!$P$58","v":-13},0.81001463489976111,1.645]
["N",null,null,null,null,null,null,"Renter 50.0 percent or more",null,"N",{"$f":"'RentalHousingCost-Prior5Yr'!$Q$59/1.645","v":19.45288753799392},{"$f":"RentalHousingCost!$Q$59/1.645","v":48.991831509930186},52.712563855908463,{"$f":"'RentalHousingCost-Prior5Yr'!$P$59-RentalHousingCost!$P$59","v":-59},1.1192777524781086,1.645]
["N",null,null,null,null,null,null,"Renter Not computed",null,"N",{"$f":"'RentalHousingCost-Prior5Yr'!$Q$60/1.645","v":16.846694784864457},{"$f":"RentalHousingCost!$Q$60/1.645","v":17.899613208918488},24.58062810839602,{"$f":"'RentalHousingCost-Prior5Yr'!$P$60-RentalHousingCost!$P$60","v":0},0,1.645]
["N",null,null,null,null,null,null,"Renter $75,000 to $99,999:",null,"Y",{"$f":"'RentalHousingCost-Prior5Yr'!$S$52/1.645","v":15.19756838905775},{"$f":"RentalHousingCost!$S$52/1.645","v":54.10334346504559},56.197311848848955,{"$f":"'RentalHousingCost-Prior5Yr'!$R$52-RentalHousingCost!$R$52","v":-100},1.7794445447669258,1.645]
["N",null,null,null,null,null,null,"Renter Less than 20.0 percent",null,"N",{"$f":"'RentalHousingCost-Prior5Yr'!$S$53/1.645","v":9.7264437689969601},{"$f":"RentalHousingCost!$S$53/1.645","v":49.240121580547111},50.191565841867508,{"$f":"'RentalHousingCost-Prior5Yr'!$R$53-RentalHousingCost!$R$53","v":-82},1.6337406220468889,1.645]
["N",null,null,null,null,null,null,"Renter 20.0 to 24.9 percent",null,"N",{"$f":"'RentalHousingCost-Prior5Yr'!$S$54/1.645","v":15.19756838905775},{"$f":"RentalHousingCost!$S$54/1.645","v":10.334346504559271},18.378378672134922,{"$f":"'RentalHousingCost-Prior5Yr'!$R$54-RentalHousingCost!$R$54","v":15},0.81617645754262436,1.645]
["N",null,null,null,null,null,null,"Renter 25.0 to 29.9 percent",null,"N",{"$f":"'RentalHousingCost-Prior5Yr'!$S$55/1.645","v":9.7264437689969601},{"$f":"RentalHousingCost!$S$55/1.645","v":10.334346504559271},14.191632255232525,{"$f":"'RentalHousingCost-Prior5Yr'!$R$55-RentalHousingCost!$R$55","v":0},0,1.645]
["N",null,null,null,null,null,null,"Renter 30.0 to 34.9 percent",null,"N",{"$f":"'RentalHousingCost-Prior5Yr'!$S$56/1.645","v":20.498134103449686},{"$f":"RentalHousingCost!$S$56/1.645","v":51.36328463620346},55.302445789880409,{"$f":"'RentalHousingCost-Prior5Yr'!$R$56-RentalHousingCost!$R$56","v":-67},1.211519654204156,1.645]
["N",null,null,null,null,null,null,"Renter 35.0 to 39.9 percent",null,"N",{"$f":"'RentalHousingCost-Prior5Yr'!$S$57/1.645","v":19.45288753799392},{"$f":"RentalHousingCost!$S$57/1.645","v":20.668693009118542},28.38326451046505,{"$f":"'RentalHousingCost-Prior5Yr'!$R$57-RentalHousingCost!$R$57","v":0},0,1.645]
["N",null,null,null,null,null,null,"Renter 40.0 to 49.9 percent",null,"N",{"$f":"'RentalHousingCost-Prior5Yr'!$S$58/1.645","v":9.7264437689969601},{"$f":"RentalHousingCost!$S$58/1.645","v":10.334346504559271},14.191632255232525,{"$f":"'RentalHousingCost-Prior5Yr'!$R$58-RentalHousingCost!$R$58","v":0},0,1.645]
["N",null,null,null,null,null,null,"Renter 50.0 percent or more",null,"N",{"$f":"'RentalHousingCost-Prior5Yr'!$S$59/1.645","v":22.688702257169027},{"$f":"RentalHousingCost!$S$59/1.645","v":52.392611371222472},57.094333662898784,{"$f":"'RentalHousingCost-Prior5Yr'!$R$59-RentalHousingCost!$R$59","v":-67},1.1734964873324749,1.645]
["N",null,null,null,null,null,null,"Renter Not computed",null,"N",{"$f":"'RentalHousingCost-Prior5Yr'!$S$60/1.645","v":16.846694784864457},{"$f":"RentalHousingCost!$S$60/1.645","v":17.899613208918488},24.58062810839602,{"$f":"'RentalHousingCost-Prior5Yr'!$R$60-RentalHousingCost!$R$60","v":0},0,1.645]
["N",null,null,null,null,null,null,"Renter $100,000 or more:",null,"N",{"$f":"'RentalHousingCost-Prior5Yr'!$U$52/1.645","v":46.808510638297875},{"$f":"RentalHousingCost!$U$52/1.645","v":111.24620060790274},120.6928076476365,{"$f":"'RentalHousingCost-Prior5Yr'!$T$52-RentalHousingCost!$T$52","v":-169},1.4002491390654916,1.645]
[{"$f":"IF(F231>G231,\"Y\",\"N\")","v":"N"},null,null,null,null,null,null,"Renter Less than 20.0 percent",null,"N",{"$f":"'RentalHousingCost-Prior5Yr'!$U$53/1.645","v":43.161094224924014},{"$f":"RentalHousingCost!$U$53/1.645","v":109.42249240121581},117.62721580479111,{"$f":"'RentalHousingCost-Prior5Yr'!$T$53-RentalHousingCost!$T$53","v":-165},{"$f":"ABS((N231/M231))","v":1.4027365934923315},1.645]
["N",null,null,null,null,null,null,"Renter 20.0 to 24.9 percent",null,"N",{"$f":"'RentalHousingCost-Prior5Yr'!$U$54/1.645","v":9.7264437689969601},{"$f":"RentalHousingCost!$U$54/1.645","v":10.334346504559271},14.191632255232525,{"$f":"'RentalHousingCost-Prior5Yr'!$T$54-RentalHousingCost!$T$54","v":0},0,1.645]
["N",null,null,null,null,null,null,"Renter 25.0 to 29.9 percent",null,"N",{"$f":"'RentalHousingCost-Prior5Yr'!$U$55/1.645","v":9.7264437689969601},{"$f":"RentalHousingCost!$U$55/1.645","v":10.334346504559271},14.191632255232525,{"$f":"'RentalHousingCost-Prior5Yr'!$T$55-RentalHousingCost!$T$55","v":0},0,1.645]
["N",null,null,null,null,null,null,"Renter 30.0 to 34.9 percent",null,"N",{"$f":"'RentalHousingCost-Prior5Yr'!$U$56/1.645","v":45.299972091334546},{"$f":"RentalHousingCost!$U$56/1.645","v":110.39419947916974},119.32714171605053,{"$f":"'RentalHousingCost-Prior5Yr'!$T$56-RentalHousingCost!$T$56","v":-165},1.382753308485609,1.645]
["N",null,null,null,null,null,null,"Renter 35.0 to 39.9 percent",null,"N",{"$f":"'RentalHousingCost-Prior5Yr'!$U$57/1.645","v":19.45288753799392},{"$f":"RentalHousingCost!$U$57/1.645","v":20.668693009118542},28.38326451046505,{"$f":"'RentalHousingCost-Prior5Yr'!$T$57-RentalHousingCost!$T$57","v":0},0,1.645]
["N",null,null,null,null,null,null,"Renter 40.0 to 49.9 percent",null,"N",{"$f":"'RentalHousingCost-Prior5Yr'!$U$58/1.645","v":9.7264437689969601},{"$f":"RentalHousingCost!$U$58/1.645","v":10.334346504559271},14.191632255232525,{"$f":"'RentalHousingCost-Prior5Yr'!$T$58-RentalHousingCost!$T$58","v":0},0,1.645]
["N",null,null,null,null,null,null,"Renter 50.0 percent or more",null,"N",{"$f":"'RentalHousingCost-Prior5Yr'!$U$59/1.645","v":46.332398814082012},{"$f":"RentalHousingCost!$U$59/1.645","v":110.87685960705696},120.16808717871049,{"$f":"'RentalHousingCost-Prior5Yr'!$T$59-RentalHousingCost!$T$59","v":-165},1.373076695101394,1.645]
["N",null,null,null,null,null,null,"Renter Not computed",null,"N",{"$f":"'RentalHousingCost-Prior5Yr'!$U$60/1.645","v":16.846694784864457},{"$f":"RentalHousingCost!$U$60/1.645","v":17.899613208918488},24.58062810839602,{"$f":"'RentalHousingCost-Prior5Yr'!$T$60-RentalHousingCost!$T$60","v":0},0,1.645]
[null,null,null,null,null,null,null,"Total Owner Housing",null,"N",{"$f":"OwnerHousingCostPrior5Year!$F$50/1.645","v":132.52279635258358},{"$f":"OwnerHousingCost!$F$50/1.645","v":119.14893617021276},178.20987779469962,{"$f":"OwnerHousingCostPrior5Year!$E$50-OwnerHousingCost!$E$50","v":137},0.76875648923246553,1.645]
[null,null,null,null,null,null,null,"Monthly Costs Less than 20% of HH Income",null,"N",{"$f":"OwnerHousingCostPrior5Year!$F$51/1.645","v":157.45032914348994},{"$f":"OwnerHousingCost!$F$51/1.645","v":152.61143620195216},219.27347447198403,{"$f":"OwnerHousingCostPrior5Year!$E$51-OwnerHousingCost!$E$51","v":61},0.27819142350386666,1.645]
[null,null,null,null,null,null,null,"Monthly Costs 20% to 29.9% of HH Income",null,"N",{"$f":"OwnerHousingCostPrior5Year!$F$52/1.645","v":102.79489662645211},{"$f":"OwnerHousingCost!$F$52/1.645","v":120.41078607194216},158.32102884615801,{"$f":"OwnerHousingCostPrior5Year!$E$52-OwnerHousingCost!$E$52","v":-151},0.95375832951874051,1.645]
[null,null,null,null,null,null,null,"Monthly Costs Less Than 30% of HH Income",null,"N",{"$f":"OwnerHousingCostPrior5Year!$F$53/1.645","v":188.0356267302457},{"$f":"OwnerHousingCost!$F$53/1.645","v":194.39395016842866},270.45592021976859,{"$f":"OwnerHousingCostPrior5Year!$E$53-OwnerHousingCost!$E$53","v":-90},0.33277141771149732,1.645]
[null,null,null,null,null,null,null,"Monthly Costs 30% or More of HH Income",null,"N",{"$f":"OwnerHousingCostPrior5Year!$F$54/1.645","v":144.13962265201974},{"$f":"OwnerHousingCost!$F$54/1.645","v":85.388157079238326},167.53318533250456,{"$f":"OwnerHousingCostPrior5Year!$E$54-OwnerHousingCost!$E$54","v":204},1.2176692014487722,1.645]
[null,null,null,null,null,null,null,"Monthly Costs 35% or More of HH Income",null,"N",{"$f":"OwnerHousingCostPrior5Year!$F$56/1.645","v":107.79437171779365},{"$f":"OwnerHousingCost!$F$56/1.645","v":81.705836505774087},135.2607492702231,{"$f":"OwnerHousingCostPrior5Year!$E$56-OwnerHousingCost!$E$56","v":17},0.12568317188630609,1.645]
[null,null,null,null,null,null,null,"Monthly Costs 50% or More of HH Income",null,"N",{"$f":"OwnerHousingCostPrior5Year!$F$57/1.645","v":82.978166714901178},{"$f":"OwnerHousingCost!$F$57/1.645","v":67.981901806415891},107.27029003681824,{"$f":"OwnerHousingCostPrior5Year!$E$57-OwnerHousingCost!$E$57","v":-56},0.52204575918252105,1.645]
[null,null,null,null,null,null,null,"Percent not computed",null,"N",{"$f":"OwnerHousingCostPrior5Year!$F$58/1.645","v":25.064471888253255},{"$f":"OwnerHousingCost!$F$58/1.645","v":13.755268691774786},28.590823139950995,{"$f":"OwnerHousingCostPrior5Year!$E$58-OwnerHousingCost!$E$58","v":23},0.80445392871047716,1.645]
[null,null,null,null,null,null,null,"Owner Less than $20,000:",null,"N",{"$f":"OwnerHousingCostPrior5Year!$I$50/1.645","v":57.750759878419451},{"$f":"OwnerHousingCost!$I$50/1.645","v":43.161094224924014},72.097366950725956,{"$f":"OwnerHousingCostPrior5Year!$H$50-OwnerHousingCost!$H$50","v":-19},0.26353250893316688,1.645]
[null,null,null,null,null,null,null,"Owner Less than 20.0 percent",null,"N",{"$f":"OwnerHousingCostPrior5Year!$I$51/1.645","v":9.7264437689969601},{"$f":"OwnerHousingCost!$I$51/1.645","v":9.7264437689969601},13.755268691774784,{"$f":"OwnerHousingCostPrior5Year!$H$51-OwnerHousingCost!$H$51","v":0},0,1.645]
[null,null,null,null,null,null,null,"Owner 20.0 to 24.9 percent",null,"N",{"$f":"OwnerHousingCostPrior5Year!$I$52/1.645","v":9.7264437689969601},{"$f":"OwnerHousingCost!$I$52/1.645","v":9.7264437689969601},13.755268691774784,{"$f":"OwnerHousingCostPrior5Year!$H$52-OwnerHousingCost!$H$52","v":0},0,1.645]
[null,null,null,null,null,null,null,"Owner 25.0 to 29.9 percent",null,"N",{"$f":"OwnerHousingCostPrior5Year!$I$53/1.645","v":13.755268691774786},{"$f":"OwnerHousingCost!$I$53/1.645","v":13.755268691774786},19.452887537993924,{"$f":"OwnerHousingCostPrior5Year!$H$53-OwnerHousingCost!$H$53","v":0},0,1.645]
[null,null,null,null,null,null,null,"Owner 30.0 or more",null,"N",{"$f":"OwnerHousingCostPrior5Year!$I$54/1.645","v":57.750759878419451},{"$f":"OwnerHousingCost!$I$54/1.645","v":43.161094224924014},72.097366950725956,{"$f":"OwnerHousingCostPrior5Year!$H$54-OwnerHousingCost!$H$54","v":-19},0.26353250893316688,1.645]
[null,null,null,null,null,null,null,"Owner $20,000 to $34,999:",null,"N",{"$f":"OwnerHousingCostPrior5Year!$J$50/1.645","v":294.83282674772039},{"$f":"OwnerHousingCost!$J$50/1.645","v":83.890577507598778},306.53551951219254,{"$f":"OwnerHousingCostPrior5Year!$K$50-OwnerHousingCost!$K$50","v":118},0.38494723282893978,1.645]
[null,null,null,null,null,null,null,"Owner Less than 20.0 percent",null,"N",{"$f":"OwnerHousingCostPrior5Year!$J$51/1.645","v":26.747720364741642},{"$f":"OwnerHousingCost!$J$51/1.645","v":15.19756838905775},30.763722623416403,{"$f":"OwnerHousingCostPrior5Year!$K$51-OwnerHousingCost!$K$51","v":20},0.650116380414138,1.645]
[null,null,null,null,null,null,null,"Owner 20.0 to 24.9 percent",null,"N",{"$f":"OwnerHousingCostPrior5Year!$J$52/1.645","v":75.379939209726444},{"$f":"OwnerHousingCost!$J$52/1.645","v":43.161094224924014},86.862047465822627,{"$f":"OwnerHousingCostPrior5Year!$K$52-OwnerHousingCost!$K$52","v":30},0.34537523435426754,1.645]
[null,null,null,null,null,null,null,"Owner 25.0 to 29.9 percent",null,"N",{"$f":"OwnerHousingCostPrior5Year!$J$53/1.645","v":102.12765957446808},{"$f":"OwnerHousingCost!$J$53/1.645","v":58.358662613981764},117.62564495997884,{"$f":"OwnerHousingCostPrior5Year!$K$53-OwnerHousingCost!$K$53","v":35.538306437962277},0.30213059788155799,1.645]
[null,null,null,null,null,null,null,"Owner 30.0 or more",null,"N",{"$f":"OwnerHousingCostPrior5Year!$J$54/1.645","v":192.70516717325228},{"$f":"OwnerHousingCost!$J$54/1.645","v":25.531914893617021},194.38919757385185,{"$f":"OwnerHousingCostPrior5Year!$K$54-OwnerHousingCost!$K$54","v":131},0.67390576037658068,1.645]
[null,null,null,null,null,null,null,"Owner $35,000 to $49,999:",null,"N",{"$f":"OwnerHousingCostPrior5Year!$M$50/1.645","v":88.145896656534958},{"$f":"OwnerHousingCost!$M$50/1.645","v":87.537993920972639},124.22801405919996,{"$f":"OwnerHousingCostPrior5Year!$L$50-OwnerHousingCost!$L$50","v":-130},1.0464628367805142,1.645]
[null,null,null,null,null,null,null,"Owner Less than 20.0 percent",null,"Y",{"$f":"OwnerHousingCostPrior5Year!$M$51/1.645","v":43.768996960486319},{"$f":"OwnerHousingCost!$M$51/1.645","v":73.556231003039514},{"$f":"SQRT((K258^2)+(L258^2))","v":85.593482312028712},{"$f":"OwnerHousingCostPrior5Year!$L$51-OwnerHousingCost!$L$51","v":-147},1.71742048610799,1.645]
[null,null,null,null,null,null,null,"Owner 20.0 to 24.9 percent",null,"N",{"$f":"OwnerHousingCostPrior5Year!$M$52/1.645","v":23.100303951367781},{"$f":"OwnerHousingCost!$M$52/1.645","v":35.258358662613979},42.151819631269824,{"$f":"OwnerHousingCostPrior5Year!$L$52-OwnerHousingCost!$L$52","v":-41},0.97267449800873218,1.645]
[null,null,null,null,null,null,null,"Owner 25.0 to 29.9 percent",null,"Y",{"$f":"OwnerHousingCostPrior5Year!$M$53/1.645","v":49.490899542972933},{"$f":"OwnerHousingCost!$M$53/1.645","v":81.570037237664906},95.409748519355603,{"$f":"OwnerHousingCostPrior5Year!$L$53-OwnerHousingCost!$L$53","v":-188},1.9704485434406189,1.645]
[null,null,null,null,null,null,null,"Owner 30.0 or more",null,"N",{"$f":"OwnerHousingCostPrior5Year!$M$54/1.645","v":75.379939209726444},{"$f":"OwnerHousingCost!$M$54/1.645","v":38.297872340425535},84.550944767433478,{"$f":"OwnerHousingCostPrior5Year!$L$54-OwnerHousingCost!$L$54","v":58},0.68597695932949387,1.645]
[null,null,null,null,null,null,null,"Owner $50,000 to $74,999:",null,"N",{"$f":"OwnerHousingCostPrior5Year!$O$50/1.645","v":77.203647416413375},{"$f":"OwnerHousingCost!$O$50/1.645","v":89.969604863221889},118.55350257854954,{"$f":"OwnerHousingCostPrior5Year!$N$50-OwnerHousingCost!$N$50","v":-134},1.1302913628487368,1.645]
[null,null,null,null,null,null,null,"Owner Less than 20.0 percent",null,"N",{"$f":"OwnerHousingCostPrior5Year!$O$51/1.645","v":62.61398176291793},{"$f":"OwnerHousingCost!$O$51/1.645","v":55.319148936170215},83.550696892540643,{"$f":"OwnerHousingCostPrior5Year!$N$51-OwnerHousingCost!$N$51","v":15},0.17953171616620223,1.645]
[null,null,null,null,null,null,null,"Owner 20.0 to 24.9 percent",null,"N",{"$f":"OwnerHousingCostPrior5Year!$O$52/1.645","v":41.337386018237083},{"$f":"OwnerHousingCost!$O$52/1.645","v":58.358662613981764},71.515823318432794,{"$f":"OwnerHousingCostPrior5Year!$N$52-OwnerHousingCost!$N$52","v":-55},0.76906057216325252,1.645]
[null,null,null,null,null,null,null,"Owner 25.0 to 29.9 percent",null,"N",{"$f":"OwnerHousingCostPrior5Year!$O$53/1.645","v":75.028595848701329},{"$f":"OwnerHousingCost!$O$53/1.645","v":80.411079716135731},109.97832484695562,{"$f":"OwnerHousingCostPrior5Year!$N$53-OwnerHousingCost!$N$53","v":-40},0.36370803115671629,1.645]
[null,null,null,null,null,null,null,"Owner 30.0 or more",null,"Y",{"$f":"OwnerHousingCostPrior5Year!$O$54/1.645","v":21.88449848024316},{"$f":"OwnerHousingCost!$O$54/1.645","v":46.808510638297875},51.671732522796354,{"$f":"OwnerHousingCostPrior5Year!$N$54-OwnerHousingCost!$N$54","v":-94},1.8191764705882352,1.645]
[null,null,null,null,null,null,null,"Owner $75,000 or more",null,"N",{"$f":"OwnerHousingCostPrior5Year!$Q$50/1.645","v":133.13069908814589},{"$f":"OwnerHousingCost!$Q$50/1.645","v":126.44376899696049},183.60776061445537,{"$f":"OwnerHousingCostPrior5Year!$P$50-OwnerHousingCost!$P$50","v":50},0.27231964396641911,1.645]
[null,null,null,null,null,null,null,"Owner Less than 20.0 percent",null,"N",{"$f":"OwnerHousingCostPrior5Year!$Q$51/1.645","v":120.97264437689969},{"$f":"OwnerHousingCost!$Q$51/1.645","v":120.97264437689969},171.08115435394888,{"$f":"OwnerHousingCostPrior5Year!$P$51-OwnerHousingCost!$P$51","v":174},1.0170611757739976,1.645]
[null,null,null,null,null,null,null,"Owner 20.0 to 24.9 percent",null,"N",{"$f":"OwnerHousingCostPrior5Year!$Q$52/1.645","v":74.772036474164139},{"$f":"OwnerHousingCost!$Q$52/1.645","v":79.027355623100306},108.79421112942406,{"$f":"OwnerHousingCostPrior5Year!$P$52-OwnerHousingCost!$P$52","v":-108},0.99269987694033424,1.645]
[null,null,null,null,null,null,null,"Owner 25.0 to 29.9 percent",null,"N",{"$f":"OwnerHousingCostPrior5Year!$Q$53/1.645","v":142.21546373736427},{"$f":"OwnerHousingCost!$Q$53/1.645","v":144.49810941434427},202.74353688922707,{"$f":"OwnerHousingCostPrior5Year!$P$53-OwnerHousingCost!$P$53","v":66},0.3255344215291085,1.645]
[null,null,null,null,null,null,null,"Owner 30.0 or more",null,"N",{"$f":"OwnerHousingCostPrior5Year!$Q$54/1.645","v":20.668693009118542},{"$f":"OwnerHousingCost!$Q$54/1.645","v":29.787234042553191},36.255677936166428,{"$f":"OwnerHousingCostPrior5Year!$P$54-OwnerHousingCost!$P$54","v":-16},0.44131018672910777,1.645]

{"sheet":"SmallTownEmploymentandWages","index":77,"n_rows":77,"n_cols":14,"rows_kept":77,"cut":false,"hidden":true,"merged":[[66,1,67,3],[35,1,35,2],[73,1,73,2]]}
[]
[null,{"$f":"CntyDataLink!A35","v":"Wolfeboro"}]
[]
[null,"EMPLOYMENT CHARACTERISTICS"]
[]
[]
[]
[]
[]
[]
[]
[]
[]
[]
[]
[]
[]
[]
[]
[]
[]
[]
[]
[]
[]
[]
[]
[]
[null,"Annual Average Covered Private Employment "]
[null,null,null,"Source: NH Department of Employment Security, Covered Private Employment by location of employment"]
[null,null,2012,{"$f":"C31+1","v":2013},{"$f":"D31+1","v":2014},{"$f":"E31+1","v":2015},{"$f":"F31+1","v":2016},{"$f":"G31+1","v":2017},{"$f":"H31+1","v":2018},{"$f":"I31+1","v":2019},{"$f":"J31+1","v":2020},{"$f":"K31+1","v":2021},{"$f":"L31+1","v":2022},"Total Change  "]
[null,"Goods Producing",{"$f":"IF((CntyDataLink!$CO$25)=\"n\",NA(),IF(VALUE(CntyDataLink!$CO$25)=\"\",NA(),VALUE(CntyDataLink!$CO$25)))","v":211},{"$f":"IF((CntyDataLink!$CW$25)=\"n\",NA(),IF(VALUE(CntyDataLink!$CW$25)=\"\",NA(),VALUE(CntyDataLink!$CW$25)))","v":216},{"$f":"IF((CntyDataLink!$DE$25)=\"n\",NA(),IF(VALUE(CntyDataLink!$DE$25)=\"\",NA(),VALUE(CntyDataLink!$DE$25)))","v":214},{"$f":"IF((CntyDataLink!$DM$25)=\"n\",NA(),IF(VALUE(CntyDataLink!$DM$25)=\"\",NA(),VALUE(CntyDataLink!$DM$25)))","v":223},{"$f":"IF((CntyDataLink!$DU$25)=\"n\",NA(),IF(VALUE(CntyDataLink!$DU$25)=\"\",NA(),VALUE(CntyDataLink!$DU$25)))","v":253},{"$f":"IF((CntyDataLink!$EC$25)=\"n\",NA(),IF(VALUE(CntyDataLink!$EC$25)=\"\",NA(),VALUE(CntyDataLink!$EC$25)))","v":270},{"$f":"IF((CntyDataLink!$EK$25)=\"n\",NA(),IF(VALUE(CntyDataLink!$EK$25)=\"\",NA(),VALUE(CntyDataLink!$EK$25)))","v":300},{"$f":"IF((CntyDataLink!$ET$25)=\"n\",NA(),IF(VALUE(CntyDataLink!$ET$25)=\"\",NA(),VALUE(CntyDataLink!$ET$25)))","v":312},{"$f":"IF((CntyDataLink!$FD$25)=\"n\",NA(),IF(VALUE(CntyDataLink!$FD$25)=\"\",NA(),VALUE(CntyDataLink!$FD$25)))","v":312},{"$f":"IF((CntyDataLink!$FO$25)=\"n\",NA(),IF(VALUE(CntyDataLink!$FO$25)=\"\",NA(),VALUE(CntyDataLink!$FO$25)))","v":309},{"$f":"IF((CntyDataLink!$FX$25)=\"n\",NA(),IF(VALUE(CntyDataLink!$FX$25)=\"\",NA(),VALUE(CntyDataLink!$FX$25)))","v":274},{"$f":"$M32-C32","v":63}]
[null,"Service Providing",{"$f":"IF((CntyDataLink!$CP$25)=\"n\",NA(),IF(VALUE(CntyDataLink!$CP$25)=\"\",NA(),VALUE(CntyDataLink!$CP$25)))","v":2306},{"$f":"IF((CntyDataLink!$CX$25)=\"n\",NA(),IF(VALUE(CntyDataLink!$CX$25)=\"\",NA(),VALUE(CntyDataLink!$CX$25)))","v":2264},{"$f":"IF((CntyDataLink!$DF$25)=\"n\",NA(),IF(VALUE(CntyDataLink!$DF$25)=\"\",NA(),VALUE(CntyDataLink!$DF$25)))","v":2262},{"$f":"IF((CntyDataLink!$DN$25)=\"n\",NA(),IF(VALUE(CntyDataLink!$DN$25)=\"\",NA(),VALUE(CntyDataLink!$DN$25)))","v":2292},{"$f":"IF((CntyDataLink!$DV$25)=\"n\",NA(),IF(VALUE(CntyDataLink!$DV$25)=\"\",NA(),VALUE(CntyDataLink!$DV$25)))","v":2358},{"$f":"IF((CntyDataLink!$ED$25)=\"n\",NA(),IF(VALUE(CntyDataLink!$ED$25)=\"\",NA(),VALUE(CntyDataLink!$ED$25)))","v":2295},{"$f":"IF((CntyDataLink!$EL$25)=\"n\",NA(),IF(VALUE(CntyDataLink!$EL$25)=\"\",NA(),VALUE(CntyDataLink!$EL$25)))","v":2269},{"$f":"IF((CntyDataLink!$EU$25)=\"n\",NA(),IF(VALUE(CntyDataLink!$EU$25)=\"\",NA(),VALUE(CntyDataLink!$EU$25)))","v":2342},{"$f":"IF((CntyDataLink!$FE$25)=\"n\",NA(),IF(VALUE(CntyDataLink!$FE$25)=\"\",NA(),VALUE(CntyDataLink!$FE$25)))","v":2196},{"$f":"IF((CntyDataLink!$FP$25)=\"n\",NA(),IF(VALUE(CntyDataLink!$FP$25)=\"\",NA(),VALUE(CntyDataLink!$FP$25)))","v":1005.07},{"$f":"IF((CntyDataLink!$FY$25)=\"n\",NA(),IF(VALUE(CntyDataLink!$FY$25)=\"\",NA(),VALUE(CntyDataLink!$FY$25)))","v":2414},{"$f":"$M33-C33","v":108}]
[null,"Total Private Emp",{"$f":"IF((CntyDataLink!$CN$25)=\"n\",NA(),IF(VALUE(CntyDataLink!$CN$25)=\"\",NA(),VALUE(CntyDataLink!$CN$25)))","v":2517},{"$f":"IF((CntyDataLink!$CV$25)=\"n\",NA(),IF(VALUE(CntyDataLink!$CV$25)=\"\",NA(),VALUE(CntyDataLink!$CV$25)))","v":2480},{"$f":"IF((CntyDataLink!$DD$25)=\"n\",NA(),IF(VALUE(CntyDataLink!$DD$25)=\"\",NA(),VALUE(CntyDataLink!$DD$25)))","v":2477},{"$f":"IF((CntyDataLink!$DL$25)=\"n\",NA(),IF(VALUE(CntyDataLink!$DL$25)=\"\",NA(),VALUE(CntyDataLink!$DL$25)))","v":2515},{"$f":"IF((CntyDataLink!$DT$25)=\"n\",NA(),IF(VALUE(CntyDataLink!$DT$25)=\"\",NA(),VALUE(CntyDataLink!$DT$25)))","v":2611},{"$f":"IF((CntyDataLink!$EB$25)=\"n\",NA(),IF(VALUE(CntyDataLink!$EB$25)=\"\",NA(),VALUE(CntyDataLink!$EB$25)))","v":2565},{"$f":"IF((CntyDataLink!$EJ$25)=\"n\",NA(),IF(VALUE(CntyDataLink!$EJ$25)=\"\",NA(),VALUE(CntyDataLink!$EJ$25)))","v":2569},{"$f":"IF((CntyDataLink!$ER$25)=\"n\",NA(),IF(VALUE(CntyDataLink!$ER$25)=\"\",NA(),VALUE(CntyDataLink!$ER$25)))","v":2653},{"$f":"IF((CntyDataLink!$FB$25)=\"n\",NA(),IF(VALUE(CntyDataLink!$FB$25)=\"\",NA(),VALUE(CntyDataLink!$FB$25)))","v":2509},{"$f":"IF((CntyDataLink!$FL$25)=\"n\",NA(),IF(VALUE(CntyDataLink!$FL$25)=\"\",NA(),VALUE(CntyDataLink!$FL$25)))","v":2636},{"$f":"IF((CntyDataLink!$FV$25)=\"n\",NA(),IF(VALUE(CntyDataLink!$FV$25)=\"\",NA(),VALUE(CntyDataLink!$FV$25)))","v":2688},{"$f":"$M34-C34","v":171}]
[]
[null,"% Change from prior Year",null,"12-13","13-14","14-15","15-16","16-17","17-18","18-19","19-20","20-21","21-22","Total % Change"]
[null,"Goods Producing",null,{"$f":"(D32-C32)/C32","v":2.3696682464454975E-2},-9.2592592592592587E-3,4.2056074766355138E-2,0.13452914798206278,6.7193675889328064E-2,0.1111111111111111,0.04,0,-9.6153846153846159E-3,{"$f":"(M32-L32)/L32","v":-0.11326860841423948},{"$f":"N32/C32","v":0.29857819905213268}]
[null,"Service Providing",null,-1.8213356461405029E-2,-8.8339222614840988E-4,1.3262599469496022E-2,2.8795811518324606E-2,-2.6717557251908396E-2,-1.1328976034858388E-2,3.2172763331864258E-2,-6.2339880444064903E-2,-0.54231785063752269,1.4018227586138277,{"$f":"N33/C33","v":4.6834345186470075E-2}]
[null,"Total Private Emp",null,-1.4700039729837107E-2,-1.2096774193548388E-3,1.5341138473960436E-2,3.8170974155069586E-2,-1.7617770968977403E-2,1.5594541910331384E-3,3.2697547683923703E-2,-5.427817565020731E-2,5.0617776006377041E-2,1.9726858877086494E-2,{"$f":"N34/C34","v":6.7938021454112041E-2}]
[]
[]
[null,"EMPLOYMENT CHARACTERISTICS"]
[]
[]
[]
[]
[]
[]
[]
[]
[]
[]
[]
[]
[]
[]
[]
[]
[]
[]
[]
[]
[]
[]
[]
[]
[null,"Covered Private Employment Average Wages",null,null,null,null,"Source: NH Department of Employment Security, Covered Private Employment"]
[]
[null,null,2012,2013,2014,2015,2016,2017,2018,2019,2020,2021,{"$f":"L69+1","v":2022},"Total $ Change"]
[null,"Goods Producing",{"$f":"IF((CntyDataLink!$CK$25)=\"n\",NA(),IF(VALUE(CntyDataLink!$CK$25)=\"\",NA(),VALUE(CntyDataLink!$CK$25)))","v":851.81},{"$f":"IF((CntyDataLink!$CS$25)=\"n\",NA(),IF(VALUE(CntyDataLink!$CS$25)=\"\",NA(),VALUE(CntyDataLink!$CS$25)))","v":781.9},{"$f":"IF((CntyDataLink!$DA$25)=\"n\",NA(),IF(VALUE(CntyDataLink!$DA$25)=\"\",NA(),VALUE(CntyDataLink!$DA$25)))","v":827.03},{"$f":"IF((CntyDataLink!$DI$25)=\"n\",NA(),IF(VALUE(CntyDataLink!$DI$25)=\"\",NA(),VALUE(CntyDataLink!$DI$25)))","v":818.56},{"$f":"IF((CntyDataLink!$DQ$25)=\"n\",NA(),IF(VALUE(CntyDataLink!$DQ$25)=\"\",NA(),VALUE(CntyDataLink!$DQ$25)))","v":865.09},{"$f":"IF((CntyDataLink!$DY$25)=\"n\",NA(),IF(VALUE(CntyDataLink!$DY$25)=\"\",NA(),VALUE(CntyDataLink!$DY$25)))","v":958.13},{"$f":"IF((CntyDataLink!$EG$25)=\"n\",NA(),IF(VALUE(CntyDataLink!$EG$25)=\"\",NA(),VALUE(CntyDataLink!$EG$25)))","v":971.06},{"$f":"IF((CntyDataLink!$EO$25)=\"n\",NA(),IF(VALUE(CntyDataLink!$EO$25)=\"\",NA(),VALUE(CntyDataLink!$EO$25)))","v":935.78},{"$f":"IF((CntyDataLink!$EY$25)=\"n\",NA(),IF(VALUE(CntyDataLink!$EY$25)=\"\",NA(),VALUE(CntyDataLink!$EY$25)))","v":1003.32},{"$f":"IF((CntyDataLink!$FI$25)=\"n\",NA(),IF(VALUE(CntyDataLink!$FI$25)=\"\",NA(),VALUE(CntyDataLink!$FI$25)))","v":1079.8699999999999},{"$f":"IF((CntyDataLink!$FS$25)=\"n\",NA(),IF(VALUE(CntyDataLink!$FS$25)=\"\",NA(),VALUE(CntyDataLink!$FS$25)))","v":1081.19},{"$f":"M70-C70","v":229.38000000000011}]
[null,"Service Providing",{"$f":"IF((CntyDataLink!$CL$25)=\"n\",NA(),IF(VALUE(CntyDataLink!$CL$25)=\"\",NA(),VALUE(CntyDataLink!$CL$25)))","v":684.4},{"$f":"IF((CntyDataLink!$CT$25)=\"n\",NA(),IF(VALUE(CntyDataLink!$CT$25)=\"\",NA(),VALUE(CntyDataLink!$CT$25)))","v":695.7},{"$f":"IF((CntyDataLink!$DB$25)=\"n\",NA(),IF(VALUE(CntyDataLink!$DB$25)=\"\",NA(),VALUE(CntyDataLink!$DB$25)))","v":716.89},{"$f":"IF((CntyDataLink!$DJ$25)=\"n\",NA(),IF(VALUE(CntyDataLink!$DJ$25)=\"\",NA(),VALUE(CntyDataLink!$DJ$25)))","v":727.19},{"$f":"IF((CntyDataLink!$DR$25)=\"n\",NA(),IF(VALUE(CntyDataLink!$DR$25)=\"\",NA(),VALUE(CntyDataLink!$DR$25)))","v":743.05},{"$f":"IF((CntyDataLink!$DZ$25)=\"n\",NA(),IF(VALUE(CntyDataLink!$DZ$25)=\"\",NA(),VALUE(CntyDataLink!$DZ$25)))","v":753.77},{"$f":"IF((CntyDataLink!EE$25)=\"n\",NA(),IF(VALUE(CntyDataLink!$EE$25)=\"\",NA(),VALUE(CntyDataLink!$EE$25)))","v":822.13},{"$f":"IF((CntyDataLink!EM$25)=\"n\",NA(),IF(VALUE(CntyDataLink!$EM$25)=\"\",NA(),VALUE(CntyDataLink!$EM$25)))","v":860.01},{"$f":"IF((CntyDataLink!EZ$25)=\"n\",NA(),IF(VALUE(CntyDataLink!$EZ$25)=\"\",NA(),VALUE(CntyDataLink!$EZ$25)))","v":842.51},{"$f":"IF((CntyDataLink!FJ$25)=\"n\",NA(),IF(VALUE(CntyDataLink!$FJ$25)=\"\",NA(),VALUE(CntyDataLink!$FJ$25)))","v":956.6},{"$f":"IF((CntyDataLink!FT$25)=\"n\",NA(),IF(VALUE(CntyDataLink!$FT$25)=\"\",NA(),VALUE(CntyDataLink!$FT$25)))","v":993.18},{"$f":"M71-C71","v":308.77999999999997}]
[null,"Total Private Emp",{"$f":"IF((CntyDataLink!$CJ$25)=\"n\",NA(),IF(VALUE(CntyDataLink!$CJ$25)=\"\",NA(),VALUE(CntyDataLink!$CJ$25)))","v":701.84},{"$f":"IF((CntyDataLink!$CR$25)=\"n\",NA(),IF(VALUE(CntyDataLink!$CR$25)=\"\",NA(),VALUE(CntyDataLink!$CR$25)))","v":702.92},{"$f":"IF((CntyDataLink!$CZ$25)=\"n\",NA(),IF(VALUE(CntyDataLink!$CZ$25)=\"\",NA(),VALUE(CntyDataLink!$CZ$25)))","v":726.5},{"$f":"IF((CntyDataLink!$DH$25)=\"n\",NA(),IF(VALUE(CntyDataLink!$DH$25)=\"\",NA(),VALUE(CntyDataLink!$DH$25)))","v":735.1},{"$f":"IF((CntyDataLink!$DP$25)=\"n\",NA(),IF(VALUE(CntyDataLink!$DP$25)=\"\",NA(),VALUE(CntyDataLink!$DP$25)))","v":753.87},{"$f":"IF((CntyDataLink!$DX$25)=\"n\",NA(),IF(VALUE(CntyDataLink!$DX$25)=\"\",NA(),VALUE(CntyDataLink!$DX$25)))","v":773.56},{"$f":"IF((CntyDataLink!$EF$25)=\"n\",NA(),IF(VALUE(CntyDataLink!$EF$25)=\"\",NA(),VALUE(CntyDataLink!$EF$25)))","v":808.54},{"$f":"IF((CntyDataLink!$EN$25)=\"n\",NA(),IF(VALUE(CntyDataLink!$EN$25)=\"\",NA(),VALUE(CntyDataLink!$EN$25)))","v":855.1},{"$f":"IF((CntyDataLink!$EW$25)=\"n\",NA(),IF(VALUE(CntyDataLink!$EW$25)=\"\",NA(),VALUE(CntyDataLink!$EW$25)))","v":861.4},{"$f":"IF((CntyDataLink!$FG$25)=\"n\",NA(),IF(VALUE(CntyDataLink!$FG$25)=\"\",NA(),VALUE(CntyDataLink!$FG$25)))","v":971.94},{"$f":"IF((CntyDataLink!$FQ$25)=\"n\",NA(),IF(VALUE(CntyDataLink!$FQ$25)=\"\",NA(),VALUE(CntyDataLink!$FQ$25)))","v":1003.49},{"$f":"M72-C72","v":301.64999999999998}]
[]
[null,"% Change from prior Year",null,{"$f":"D36","v":"12-13"},"13-14","14-15","15-16","16-17","17-18","18-19","19-20","20-21","21-22","Total % Change"]
[null,"Goods Producing",null,{"$f":"(D70-C70)/C70","v":-8.2072293117009629E-2},{"$f":"(E70-D70)/D70","v":5.7718378309246705E-2},-1.0241466452244812E-2,5.6843725566849211E-2,0.10754950351986493,1.3495037207894493E-2,-3.6331431631413072E-2,7.2175083887238534E-2,7.629669497269051E-2,{"$f":"(M70-L70)/L70","v":1.2223693592748792E-3},{"$f":"N70/C70","v":0.26928540402202383}]
[null,"Service Providing",null,1.6510812390415061E-2,3.0458530975995313E-2,1.4367615673255407E-2,2.1809980885325566E-2,1.4427023753448662E-2,9.0690794274115472E-2,4.607543819104034E-2,-2.0348600597667469E-2,0.13541679030515963,{"$f":"(M71-L71)/L71","v":3.8239598578298062E-2},{"$f":"N71/C71","v":0.45116890707188778}]
[null,"Total Private Emp",null,1.5388122649035781E-3,3.3545780458658227E-2,1.1837577426015173E-2,2.5533940960413525E-2,2.6118561555705813E-2,4.5219504627953905E-2,5.7585277166250351E-2,7.367559349783598E-3,0.12832598096122599,{"$f":"(M72-L72)/L72","v":3.2460851492890457E-2},{"$f":"N72/C72","v":0.42979881454462548}]